{"text_format":"1","workbook":"xlsx","n_sheets":22,"sheets":["Contents","Business & other details","2.1 Expenditure summary","2.2 Repex","2.3 Augex","2.5 Connections","2.6 Non-network","2.7 Vegetation management","2.8 Maintenance","2.9 Emergency Response","2.10 Overheads","2.11 Labour","2.12 Input tables","4.1 Public lighting","4.2 Metering","4.3 Fee-based services","4.4 Quoted services","5.2 Asset Age Profile","5.3 MD - Network level","5.4 MD & utilisation-Spatial","6.3 Sustained interruptions","Sheet1"],"not_rendered":{"charts":0,"images":2,"macros":1,"external_links":2,"defined_names":89,"comments":3,"pivot_tables":0},"unopened":[],"bounds":{"document_bytes":16777216,"sheet_cells":100000,"rows_first":2000,"rows_last":500,"rows_between":2000,"halvings":0,"cell_chars":16384,"cell_head_chars":4096},"cells_cut":0,"cells_raw":0,"read":"whole","date_system":"1900"}

{"sheet":"Contents","index":0,"n_rows":27,"n_cols":19,"rows_kept":27,"cut":false,"hidden":false,"merged":[]}
[null,"REGULATORY REPORTING STATEMENT"]
[null,"Australian Distribution Co."]
[null,"Category Analysis RIN response 2014-15"]
[null,"CONTENTS"]
[]
[]
[null,null,null,null,"1. Business details",null,null,null,null,null,null,"2. Expenditure"]
[]
[]
[]
[]
[]
[]
[]
[]
[]
[]
[]
[]
[]
[]
[]
[]
[]
[]
[]
[null,null,null,null,"4. Alternative control services",null,null,null,null,null,null,"5. Network information",null,null,null,null,null,null,"6. Service & quality"]

{"sheet":"Business & other details","index":1,"n_rows":82,"n_cols":20,"rows_kept":82,"cut":false,"hidden":false,"merged":[[51,3,51,4],[58,3,58,9],[59,0,65,0],[30,3,30,4],[30,6,30,7],[32,0,41,0],[32,2,32,9],[38,3,38,4],[43,0,46,0],[24,3,24,4],[24,5,24,8],[28,3,28,4],[28,6,28,7],[29,3,29,4],[29,6,29,7],[23,5,23,8],[0,11,0,19],[7,2,7,9],[11,2,11,9],[13,3,13,5],[14,3,14,5],[17,3,17,4],[17,5,17,8],[18,5,18,8],[19,3,19,4],[19,5,19,8],[22,3,22,4],[22,5,22,8]]}
["HIDE THIS COLUMN",null,{"$f":"(LOOKUP(dms_Model,dms_Model_List,dms_Worksheet_List))","v":"REGULATORY REPORTING STATEMENT"},null,null,null,null,null,null,null,null,"Data in these columns used for data validation and database purposes."]
[null,null,{"$f":"dms_TradingName","v":"Essential Energy"},null,null,null,null,null,null,null,null,"Date last modified:"]
[null,null,{"$f":"CONCATENATE(\"Category Analysis RIN response \",CRY)","v":"Category Analysis RIN response 2014-15"},null,null,null,null,null,null,null,null,"14 April 2015","merged cell C46/47"]
[null,null,"BUSINESS & OTHER DETAILS",null,null,null,null,null,null,null,null,"17 April 2015","adjusted dms_RYE to automate based on dms_Model (NB: EB & CA refer to CRCP_y5)"]
[null,null,null,null,null,null,null,null,null,null,null,"14 May 2015","adapted this cover for use in CA & EB RINs"]
[]
[null,null,"Instructions"]
[null,null,"Complete the following business details regulatory template before entering data or values in any other regulatory template. This regulatory template is linked to other cells within the spreadsheet and automatically generates column headings."]
[]
[null,null,"SUBMISSION PARTICULARS INPUT SHEETS"]
[]
[null,null,"Entity details"]
[]
[null,null,"Trading name","Essential Energy"]
[null,null,"ACN / ABN",{"$f":"INDEX(dms_ABN_List,MATCH(dms_TradingName,dms_TradingName_List))","v":37428185226}]
[]
[null,null,null,null,null,null,null,null,null,null,null,"dms_Model_List ","dms_Worksheet_List ",null,"dms_RYE_List1","dms_RYE_List2"]
[null,null,"Business address","Address 1",null,"8 Buller Street",null,null,null,null,null,"CA","REGULATORY REPORTING STATEMENT",null,"dms_RYE",{"$f":"CONCATENATE(LEFT(CRY, 2) &IF(CRY>\"2009-10\",,\"\") &RIGHT(CRY,2))","v":"2015"}]
[null,null,null,null,"Address 2",null,null,null,null,null,null,"CAM/Service change Backcast","REGULATORY REPORTING STATEMENT",null,"dms_RYE",{"$f":"CONCATENATE(LEFT(CRCP_y5, 2) &IF(CRCP_y5>\"2009-10\",,\"\") &RIGHT(CRCP_y5,2))","v":"2016"}]
[null,null,null,"Suburb",null,"Port Macquarie",null,null,null,null,null,"CPI","CPI",null,"dms_RYE",{"$f":"CONCATENATE(LEFT(CRCP_y5, 2) &IF(CRCP_y5>\"2009-10\",,\"\") &RIGHT(CRCP_y5,2))","v":"2016"}]
[null,null,null,null,"State",{"$f":"INDEX(dms_State_List,MATCH(dms_TradingName,dms_TradingName_List))","v":"NSW"},"p/code",2444,null,null,null,"EB","REGULATORY REPORTING STATEMENT",null,"dms_RYE",{"$f":"CONCATENATE(LEFT(CRY, 2) &IF(CRY>\"2009-10\",,\"\") &RIGHT(CRY,2))","v":"2015"}]
[null,null,null,null,null,null,null,null,null,null,null,"PTRM","POST TAX REVENUE MODEL",null,"FRCP",{"$f":"CONCATENATE(LEFT(FRCP_y5, 2) &IF(FRCP_y1>\"2009-10\",,\"\") &RIGHT(FRCP_y5,2))","v":"2021"}]
[null,null,"Postal address","Address 1",null,"PO Box 5730",null,null,null,null,null,"Reset","REGULATORY REPORTING STATEMENT",null,"FRCP",{"$f":"CONCATENATE(LEFT(CRCP_y5, 2) &IF(CRCP_y5>\"2009-10\",,\"\") &RIGHT(CRCP_y5,2))","v":"2016"}]
[null,null,null,null,"Address 2",null,null,null,null,null,null,"RFM","ROLL FORWARD MODEL",null,"CRCP",{"$f":"CONCATENATE(LEFT(CRCP_y5, 2) &IF(CRCP_y1>\"2009-10\",,\"\") &RIGHT(CRCP_y5,2))","v":"2016"}]
[null,null,null,"Suburb",null,"Port Macquarie",null,null,null,null,null,"WACC","WEIGHTED AVERAGE COST OF CAPITAL",null,"dms_RYE",{"$f":"CONCATENATE(LEFT(CRCP_y5, 2) &IF(CRCP_y5>\"2009-10\",,\"\") &RIGHT(CRCP_y5,2))","v":"2016"}]
[null,null,null,null,"State","NSW","p/code",2444]
[]
[null,null,null,null,null,null,null,null,null,null,null,"dms_TradingName_List","dms_ABN_List","dms_State_List","dms_Sector_List","dms_Segment_List","dms_FormControl","dms_CRCPlength_List","dms_FRCPlength_List","dms_JurisdictionList"]
[null,null,"Contact name/s","Natalie Lindsay",null,null,"Catherine Waddell",null,null,null,null,"ActewAGL Distribution",76670568688,"ACT","Electricity","Distribution","Revenue cap",5,6,"ACT"]
[null,null,"Contact phone/s","02 6589 8419",null,null,"02 6338 3553",null,null,null,null,"ActewAGL Distribution (Tx Assets)",76670568688,"ACT","Electricity","Distribution","Revenue cap",5,5,"ACT"]
[null,null,"Contact email address/s","natalie.lindsay@essentialenergy.com.au",null,null,"catherine.waddell@essentialenergy.com.au",null,null,null,null,"AGN",78551685,"SA","Gas","Distribution","Revenue cap",5,5,"SA"]
[null,null,null,null,null,null,null,null,null,null,null,"Ausgrid",67505337385,"NSW","Electricity","Distribution","Revenue cap",5,5,"NSW"]
["KEEP VISIBLE FOR\n RESET, PTRM & RFMS",null,"Regulatory control period details",null,null,null,null,null,null,null,null,"Ausgrid (Tx Assets)",67505337385,"NSW","Electricity","Distribution","Revenue cap",5,5,"NSW"]
[null,null,null,null,null,null,null,null,null,null,null,"AusNet (D)",91064651118,"Vic","Electricity","Distribution","Revenue cap",5,5,"Vic"]
[null,null,"Forthcoming regulatory control period",{"$f":"CONCATENATE(IF(dms_RPT=\"Calendar\",CRCP_y5+1,(LEFT(CRCP_y5,4)+1&\"-\"&IF(MID(CRCP_y5,6,2)<\"09\",\"0\"&RIGHT(CRCP_y5,1)+1,RIGHT(CRCP_y5,2)+1))))","v":"2016-17"},{"$f":"CONCATENATE(IF(dms_RPT=\"Calendar\",FRCP_y1+1,(LEFT(FRCP_y1,4)+1&\"-\"&IF(MID(FRCP_y1,6,2)<\"09\",\"0\"&RIGHT(FRCP_y1,1)+1,RIGHT(FRCP_y1,2)+1))))","v":"2017-18"},{"$f":"CONCATENATE(IF(dms_RPT=\"Calendar\",FRCP_y2+1,(LEFT(FRCP_y2,4)+1&\"-\"&IF(MID(FRCP_y2,6,2)<\"09\",\"0\"&RIGHT(FRCP_y2,1)+1,RIGHT(FRCP_y2,2)+1))))","v":"2018-19"},{"$f":"CONCATENATE(IF(dms_RPT=\"Calendar\",FRCP_y3+1,(LEFT(FRCP_y3,4)+1&\"-\"&IF(MID(FRCP_y3,6,2)<\"09\",\"0\"&RIGHT(FRCP_y3,1)+1,RIGHT(FRCP_y3,2)+1))))","v":"2019-20"},{"$f":"CONCATENATE(IF(dms_RPT=\"Calendar\",FRCP_y4+1,(LEFT(FRCP_y4,4)+1&\"-\"&IF(MID(FRCP_y4,6,2)<\"09\",\"0\"&RIGHT(FRCP_y4,1)+1,RIGHT(FRCP_y4,2)+1))))","v":"2020-21"},null,null,null,"AusNet (T)",78079798173,"Vic","Electricity","Transmission","Revenue cap",5,5,"Vic"]
[null,null,null,null,null,null,null,null,null,null,null,"Australian Distribution Co.",11222333444,"-","Electricity","Distribution","Revenue cap",5,5,"-"]
[null,null,null,null,null,null,null,null,null,null,null,"Australian Transmission Co.",11222333444,"-","Electricity","Transmission","Revenue cap",5,5,"-"]
[null,null,"Current regulatory control period","2011-12",{"$f":"CONCATENATE(IF(dms_RPT=\"Calendar\",CRCP_y1+1,(LEFT(CRCP_y1,4)+1&\"-\"&IF(MID(CRCP_y1,6,2)<\"09\",\"0\"&RIGHT(CRCP_y1,1)+1,RIGHT(CRCP_y1,2)+1))))","v":"2012-13"},{"$f":"CONCATENATE(IF(dms_RPT=\"Calendar\",CRCP_y2+1,(LEFT(CRCP_y2,4)+1&\"-\"&IF(MID(CRCP_y2,6,2)<\"09\",\"0\"&RIGHT(CRCP_y2,1)+1,RIGHT(CRCP_y2,2)+1))))","v":"2013-14"},{"$f":"CONCATENATE(IF(dms_RPT=\"Calendar\",CRCP_y3+1,(LEFT(CRCP_y3,4)+1&\"-\"&IF(MID(CRCP_y3,6,2)<\"09\",\"0\"&RIGHT(CRCP_y3,1)+1,RIGHT(CRCP_y3,2)+1))))","v":"2014-15"},{"$f":"CONCATENATE(IF(dms_RPT=\"Calendar\",CRCP_y4+1,(LEFT(CRCP_y4,4)+1&\"-\"&IF(MID(CRCP_y4,6,2)<\"09\",\"0\"&RIGHT(CRCP_y4,1)+1,RIGHT(CRCP_y4,2)+1))))","v":"2015-16"},null,null,null,"CitiPower",76064651056,"Vic","Electricity","Distribution","Revenue cap",5,5,"Vic"]
[null,null,null,null,null,null,null,null,null,null,null,"Directlink",16779340889,"NSW","Electricity","Transmission","Revenue cap",10,5,"Qld"]
[null,null,null,null,null,null,null,null,null,null,null,"ElectraNet",41094482416,"SA","Electricity","Transmission","Revenue cap",5,5,"SA"]
[null,null,"Previous regulatory control period",{"$f":"CONCATENATE(IF(dms_RPT=\"Calendar\",PRCP_y2-1,(LEFT(PRCP_y2,4)-1&\"-\"&IF(MID(PRCP_y2,3,1)=\"0\",\"0\"&RIGHT(PRCP_y2,2)-1,RIGHT(PRCP_y2,2)-1))))","v":"2006-07"},{"$f":"CONCATENATE(IF(dms_RPT=\"Calendar\",PRCP_y3-1,(LEFT(PRCP_y3,4)-1&\"-\"&IF(MID(PRCP_y3,3,1)=\"0\",\"0\"&RIGHT(PRCP_y3,2)-1,RIGHT(PRCP_y3,2)-1))))","v":"2007-08"},{"$f":"CONCATENATE(IF(dms_RPT=\"Calendar\",PRCP_y4-1,(LEFT(PRCP_y4,4)-1&\"-\"&IF(MID(PRCP_y4,3,1)=\"0\",\"0\"&RIGHT(PRCP_y4,2)-1,RIGHT(PRCP_y4,2)-1))))","v":"2008-09"},{"$f":"CONCATENATE(IF(dms_RPT=\"Calendar\",PRCP_y5-1,(LEFT(PRCP_y5,4)-1&\"-\"&IF(MID(PRCP_y5,3,1)=\"0\",\"0\"&RIGHT(PRCP_y5,2)-1,RIGHT(PRCP_y5,2)-1))))","v":"2009-10"},{"$f":"CONCATENATE(IF(dms_RPT=\"Calendar\",CRCP_y1-1,(LEFT(CRCP_y1,4)-1&\"-\"&IF(MID(CRCP_y1,3,1)=\"0\",\"0\"&RIGHT(CRCP_y1,2)-1,RIGHT(CRCP_y1,2)-1))))","v":"2010-11"},null,null,null,"Endeavour Energy",59253130878,"NSW","Electricity","Distribution","Revenue cap",5,5,"NSW"]
[null,null,null,null,null,null,null,null,null,null,null,"Energex",40078849055,"Qld","Electricity","Distribution","Revenue cap",5,5,"Qld"]
[null,null,null,null,null,null,null,null,null,null,null,"Ergon Energy",50087646062,"Qld","Electricity","Distribution","Revenue cap",5,5,"Qld"]
["KEEP VISIBLE FOR\nCA & EB ONLY",null,null,null,null,null,null,null,null,null,null,"Essential Energy",37428185226,"NSW","Electricity","Distribution","Revenue cap",5,5,"NSW"]
[null,null,"Current regulatory year","2014-15",null,null,null,null,null,null,null,"Jemena Electricity",82064651083,"Vic","Electricity","Distribution","Revenue cap",5,5,"Vic"]
[null,null,null,null,null,null,null,null,null,null,null,"Murraylink",79181207909,"NSW","Electricity","Transmission","Revenue cap",5,5,"SA"]
[null,null,null,null,null,null,null,null,null,null,null,"Powercor Australia",89064651109,"Vic","Electricity","Distribution","Revenue cap",5,5,"Vic"]
[null,null,null,null,null,null,null,null,null,null,null,"Powerlink",82078849233,"Qld","Electricity","Transmission","Revenue cap",5,5,"Qld"]
[null,null,null,null,null,null,null,null,null,null,null,"Qld,SA &ACT Gas Reset",22222222222,"-","Gas","Distribution","?",5,5,"-"]
[null,null,"Sector",{"$f":"INDEX(dms_Sector_List,MATCH(dms_TradingName,dms_TradingName_List))","v":"Electricity"},null,null,null,null,null,null,null,"SA Power Networks",13332330749,"SA","Electricity","Distribution","Revenue cap",5,5,"SA"]
[null,null,"Segment",{"$f":"INDEX(dms_Segment_List,MATCH(dms_TradingName,dms_TradingName_List))","v":"Distribution"},null,null,null,null,null,null,null,"TasNetworks (D)",24167357299,"Tas","Electricity","Distribution","Revenue cap",5,5,"Tas"]
[null,null,"Source","Reporting",null,null,null,null,null,null,null,"TasNetworks (T)",24167357299,"Tas","Electricity","Transmission","Revenue cap",5,5,"Tas"]
[null,null,"Regulatory Year Ending",{"$f":"(LOOKUP(dms_Model,dms_Model_List,dms_RYE_List2))","v":"2015"},null,null,null,null,null,null,null,"TransGrid",19622755774,"NSW","Electricity","Transmission","Revenue cap",5,5,"NSW"]
[null,null,"Reporting Period Type",{"$f":"IF(LEN(CRCP_y1)>4,\"Financial\",\"Calendar\")","v":"Financial"},null,null,null,null,null,null,null,"United Energy",70064651029,"Vic","Electricity","Distribution","Revenue cap",5,5,"Vic"]
[null,null,"Model or RIN Type","CA",null,null,null,null,null,null,null,"Victorian DNSP Backcasting",33333333666,"Vic","Electricity","Distribution","?",5,5,"Vic"]
[null,null,"Security Classification",{"$f":"IF(dms_DataQuality=\"Public\",\"Public\",\"Confidential\")","v":"Confidential"},null,null,null,null,null,null,null,"Victorian DNSP Reset ",33333333333,"Vic","Electricity","Distribution","?",5,5,"Vic"]
[null,null,"Data quality (actual, estimate, public, consolidated)","Consolidated"]
[null,null,"EBSS - First application of scheme in forthcoming period?","No"]
[null,null,"Amended RIN submission - amendment reason","Corrected data errors in Tables 2.3.3.1 and 5.2.1. V# - conf update table 2.12"]
["HIDE THESE ROWS",null,"Template - version no.",3]
[null,null,"Dollar $ real  (the last month before the FRCP_y1)",{"$f":"CONCATENATE(IF(dms_RPT=\"Financial\",\"June \",\"December \"),(dms_RYE))","v":"June 2015"},null,null,null,null,null,null,null,"dms_SourceList","dms_FormControl"]
[null,null,"Form of control",{"$f":"INDEX(dms_FormControl_List,MATCH(dms_TradingName,dms_TradingName_List))","v":"Revenue cap"},null,null,null,null,null,null,null,"After appeal","Revenue cap"]
[null,null,"Length of current reg control period",{"$f":"INDEX(dms_CRCPlength_List,MATCH(dms_TradingName,dms_TradingName_List))","v":5},null,null,null,null,null,null,null,"Draft decision","Revenue yield"]
[null,null,"Length of forthcoming reg control period",{"$f":"INDEX(dms_FRCPlength_List,MATCH(dms_TradingName,dms_TradingName_List))","v":5},null,null,null,null,null,null,null,"Final decision","Weighted average price cap"]
[null,null,"RIN response - version no.",1,null,null,null,null,null,null,null,"Pass through decision"]
[null,null,"Jurisdiction",{"$f":"INDEX(dms_JurisdictionList,MATCH(dms_TradingName,dms_TradingName_List))","v":"NSW"},null,null,null,null,null,null,null,"PTRM annual update"]
[null,null,null,null,null,null,null,null,null,null,null,"PTRM interim update 1"]
[null,null,null,null,null,null,null,null,null,null,null,"PTRM interim update 2"]
[null,null,null,null,null,null,null,null,null,null,null,"PTRM interim update 3"]
[null,null,null,null,null,null,null,null,null,null,null,"PTRM interim update 4"]
[null,null,null,null,null,null,null,null,null,null,null,"Regulatory proposal"]
[null,null,null,null,null,null,null,null,null,null,null,"Reporting"]
[null,null,null,null,null,null,null,null,null,null,null,"Revised regulatory proposal"]
[null,null,null,null,null,null,null,null,null,null,null,"RFM annual update"]
[null,null,null,null,null,null,null,null,null,null,null,"WACC annual update"]
[]
[]
[]
[null,null,null,null,null,null,null,null,null,null,null,"Notes"]
[null,null,null,null,null,null,null,null,null,null,null,"RFM - Base year is usually CRCP_y1","EG. Victorian 2016-20 - base year = 2011"]
[null,null,null,null,null,null,null,null,null,null,null,"RFM - Form of Control Field is not relevant"]
[null,null,null,null,null,null,null,null,null,null,null,"PTRM - capture base year input by NSP","='[Published version - PTRM - TNSP - version 3 - January 2015 - Appendix A.xlsm]PTRM input'!Q7"]

{"sheet":"2.1 Expenditure summary","index":2,"n_rows":141,"n_cols":3,"rows_kept":141,"cut":false,"hidden":false,"merged":[]}
[null,{"$f":"(LOOKUP(dms_Model,dms_Model_List,dms_Worksheet_List))","v":"REGULATORY REPORTING STATEMENT"}]
[null,"Australian Distribution Co."]
[null,{"$f":"CONCATENATE(\"Category Analysis RIN response \",CRY)","v":"Category Analysis RIN response 2014-15"}]
[null,"2.1 EXPENDITURE SUMMARY & RECONCILIATION"]
[]
[]
[]
[]
[]
[]
[null,"TABLE 2.1.1 - STANDARD CONTROL SERVICES CAPEX"]
[]
[]
[null,null,"Actual ($0's)"]
[null,null,{"$f":"CRY","v":"2014-15"}]
["ED_EXP211_00001","Replacement expenditure",{"$f":"SUM('2.2 Repex'!D11:D113,'2.2 Repex'!D123:D130,'2.2 Repex'!D132:D140)","v":152900919.09327409}]
["ED_EXP211_00002","Connections",{"$f":"SUM('2.5 Connections'!D18,'2.5 Connections'!D20,'2.5 Connections'!D22,'2.5 Connections'!D31,'2.5 Connections'!D33,'2.5 Connections'!D35)+C33","v":166439704.63908085}]
["ED_EXP211_00003","Augmentation Expenditure",{"$f":"SUM('2.3 Augex'!M172:M180)-'4.2 Metering'!H14","v":121054119.75658143}]
["ED_EXP211_00004","Non-network",{"$f":"SUM('2.6 Non-network'!E15,'2.6 Non-network'!E17,'2.6 Non-network'!E19,'2.6 Non-network'!E21,'2.6 Non-network'!E23,'2.6 Non-network'!E27,'2.6 Non-network'!E29,'2.6 Non-network'!E31,'2.6 Non-network'!E35,'2.6 Non-network'!E37)","v":52925673.024407603}]
["ED_EXP211_00005","capitalised network overheads",{"$f":"SUM('2.10 Overheads'!E71:E76)","v":68347969.798803151}]
["ED_EXP211_00006","capitalised corporate overheads",{"$f":"SUM('2.10 Overheads'!E154:E167)","v":61969205.244284935}]
["ED_EXP211_00007","Metering"]
["ED_EXP211_00008","Public Lighting"]
["ED_EXP211_00002"]
["ED_EXP211_00003"]
["ED_EXP211_00004"]
["ED_EXP211_00005"]
["ED_EXP211_00006"]
["ED_EXP211_00007"]
["ED_EXP211_00008"]
["ED_EXP211_00009","balancing item"]
["ED_EXP211_00010","TOTAL GROSS CAPEX \n(includes capcons)",{"$f":"+SUM(C16:C31)","v":623637591.55643213}]
["ED_EXP211_00011","capcons",159526464.63908085]
[]
[null,"TABLE 2.1.2 - STANDARD CONTROL SERVICES OPEX"]
[]
[]
[null,null,"Actual ($0's)"]
[null,null,{"$f":"CRY","v":"2014-15"}]
["ED_EXP212_00001","Vegetation management",{"$f":"SUM('2.7 Vegetation management'!P6:P167)","v":0}]
["ED_EXP212_00002","Maintenance",{"$f":"SUM('2.8 Maintenance'!M13:N18,'2.8 Maintenance'!M21:N29,'2.8 Maintenance'!M32:N37)","v":89486134.029818282}]
["ED_EXP212_00003","Emergency response",{"$f":"'2.9 Emergency Response'!D11","v":41771363.110747427}]
["ED_EXP212_00004","Non-network",{"$f":"SUM('2.6 Non-network'!E14,'2.6 Non-network'!E16,'2.6 Non-network'!E18,'2.6 Non-network'!E20,'2.6 Non-network'!E22,'2.6 Non-network'!E26,'2.6 Non-network'!E28,'2.6 Non-network'!E30,'2.6 Non-network'!E36)","v":137399299.51278248}]
["ED_EXP212_00005","network overheads",{"$f":"SUM('2.10 Overheads'!E7:E34)","v":104929790.37944289}]
["ED_EXP212_00006","corporate overheads",{"$f":"SUM('2.10 Overheads'!E104:E124)","v":54632704.480641797}]
["ED_EXP212_00007","Metering"]
["ED_EXP212_00008","Public Lighting"]
["ED_EXP211_00002"]
["ED_EXP211_00003"]
["ED_EXP211_00004"]
["ED_EXP211_00005"]
["ED_EXP211_00006"]
["ED_EXP211_00007"]
["ED_EXP211_00008"]
["ED_EXP212_00009","balancing item",-97228348.785470679]
[null,"TOTAL OPEX",{"$f":"+SUM(C40:C55)","v":330990942.7279622}]
[]
[null,"TABLE 2.1.3 - ALTERNATIVE CONTROL SERVICES CAPEX"]
[]
[]
[null,null,"Actual ($0's)"]
[null,null,{"$f":"CRY","v":"2014-15"}]
["ED_EXP213_00001","Connections"]
["ED_EXP213_00002","capitalised network overheads",{"$f":"SUM('2.10 Overheads'!E79:E84)","v":2530654.9651364107}]
["ED_EXP213_00003","capitalised corporate overheads",{"$f":"SUM('2.10 Overheads'!E169:E173)","v":1739541.1871265327}]
["ED_EXP213_00004","Metering",{"$f":"'4.2 Metering'!H14+'4.2 Metering'!H32","v":3988692.7221863288}]
["ED_EXP213_00005","Public lighting",{"$f":"'4.1 Public lighting'!D129","v":1569565.2032752133}]
["ED_EXP213_00006","Fee and quoted"]
["ED_EXP211_00002"]
["ED_EXP211_00003"]
["ED_EXP211_00004"]
["ED_EXP211_00005"]
["ED_EXP211_00006"]
["ED_EXP211_00007"]
["ED_EXP211_00008"]
["ED_EXP213_00007","balancing item"]
[null,"TOTAL CAPEX",{"$f":"+SUM(C63:C76)","v":9828454.0777244847}]
[]
[null,"TABLE 2.1.4 - ALTERNATIVE CONTROL SERVICES OPEX"]
[]
[]
[null,null,"Actual ($0's)"]
[null,null,{"$f":"CRY","v":"2014-15"}]
["ED_EXP214_00001","Connections"]
["ED_EXP214_00002","network overheads",{"$f":"SUM('2.10 Overheads'!E41:E46)","v":17046951.933630981}]
["ED_EXP214_00003","corporate overheads",{"$f":"SUM('2.10 Overheads'!E131:E144)","v":13281818.212116649}]
["ED_EXP214_00004","Metering",{"$f":"'4.2 Metering'!H17+SUM('4.2 Metering'!H22:H23)+'4.2 Metering'!H35+'4.2 Metering'!H40","v":30416733.141886957}]
["ED_EXP214_00005","Public lighting",{"$f":"'4.1 Public lighting'!D133","v":7754267.3799999999}]
["ED_EXP214_00006","Fee and quoted",{"$f":"SUM('4.3 Fee-based services'!D14:D32)+SUM('4.4 Quoted services'!D11:D12)","v":24391473.144944824}]
["ED_EXP211_00002"]
["ED_EXP211_00003"]
["ED_EXP211_00004"]
["ED_EXP211_00005"]
["ED_EXP211_00006"]
["ED_EXP211_00007"]
["ED_EXP211_00008"]
["ED_EXP214_00007","balancing item"]
[null,"TOTAL OPEX",{"$f":"+SUM(C84:C97)","v":92891243.812579423}]
[]
[null,"TABLE 2.1.5 - DUAL FUNCTION ASSETS CAPEX"]
[]
[]
[null,null,"Actual ($0's)"]
[null,null,{"$f":"CRY","v":"2014-15"}]
["ED_EXP215_00001","Replacement expenditure"]
["ED_EXP215_00002","Connections"]
["ED_EXP215_00003","Augmentation Expenditure"]
["ED_EXP215_00004","Non-network"]
["ED_EXP215_00005","Capitalised network overheads"]
["ED_EXP215_00006","Capitalised corporate overheads"]
["ED_EXP211_00002"]
["ED_EXP211_00003"]
["ED_EXP211_00004"]
["ED_EXP211_00005"]
["ED_EXP211_00006"]
["ED_EXP211_00007"]
["ED_EXP211_00008"]
["ED_EXP215_00007","balancing item"]
["ED_EXP215_00008","TOTAL GROSS CAPEX (includes capcons)",{"$f":"SUM(C105:C118)","v":0}]
["ED_EXP215_00009","capcons"]
[]
[null,"TABLE 2.1.6 - DUAL FUNCTION ASSETS OPEX"]
[]
[]
[null,null,"Actual ($0's)"]
[null,null,{"$f":"CRY","v":"2014-15"}]
["ED_EXP216_00001","Vegetation management"]
["ED_EXP216_00002","Maintenance"]
["ED_EXP216_00003","Emergency response"]
["ED_EXP216_00004","Non-network"]
["ED_EXP216_00005","Network overheads"]
["ED_EXP216_00006","Corporate overheads"]
["ED_EXP211_00002"]
["ED_EXP211_00003"]
["ED_EXP211_00004"]
["ED_EXP211_00005"]
["ED_EXP211_00006"]
["ED_EXP211_00007"]
["ED_EXP211_00008"]
["ED_EXP216_00007","balancing item"]
[null,"TOTAL OPEX",{"$f":"SUM(C127:C140)","v":0}]

{"sheet":"2.2 Repex","index":3,"n_rows":146,"n_cols":11,"rows_kept":146,"cut":false,"hidden":false,"merged":[[113,1,121,1],[122,1,129,1],[30,1,36,1],[37,1,45,1],[46,1,53,1],[54,1,69,1],[70,1,98,1],[99,1,112,1],[10,1,29,1],[10,7,13,7],[14,7,17,7],[25,7,28,7],[29,7,30,7],[18,7,24,7]]}
[null,{"$f":"(LOOKUP(dms_Model,dms_Model_List,dms_Worksheet_List))","v":"REGULATORY REPORTING STATEMENT"}]
[null,"Australian Distribution Co."]
[null,{"$f":"CONCATENATE(\"Category Analysis RIN response \",CRY)","v":"Category Analysis RIN response 2014-15"}]
[null,"2.2 REPEX"]
[]
[null,"TABLE 2.2.1 - REPLACEMENT EXPENDITURE, VOLUMES AND ASSET FAILURES BY ASSET CATEGORY",null,null,null,null,null,"Table 2.2.2 - SELECTED ASSET CHARACTERISTICS"]
[]
[]
[null,null,null,"EXPENDITURE ($0's)","ASSET REPLACEMENTS ","ASSET FAILURES  ",null,null,null,"ASSET VOLUMES CURRENTLY IN COMMISSION","ASSET REPLACEMENTS "]
[null,"ASSET GROUP","ASSET CATEGORY",{"$f":"CRY","v":"2014-15"},{"$f":"CRY","v":"2014-15"},{"$f":"CRY","v":"2014-15"},null,"ASSET GROUP","METRIC",{"$f":"CRY","v":"2014-15"},{"$f":"CRY","v":"2014-15"}]
["ED_REP221_00001","POLES BY: \nHIGHEST OPERATING VOLTAGE ; MATERIAL TYPE;  STAKING (IF WOOD)","Staking of a wooden pole",509884.4527404554,435,1,"ED_REP222_00001","TOTAL POLES BY: \nFEEDER TYPE","Total CBD poles",0,0]
["ED_REP221_00002",null,"˂ = 1 kV; Wood",14130246.15583032,2411,17,"ED_REP222_00002",null,"Total urban poles",83145.17242103329,335.52527075812276]
["ED_REP221_00003",null,"> 1 kV & < = 11 kV; Wood",16462821.008597001,2809,31,"ED_REP222_00003",null,"Total rural long poles",640490.79778470972,4569.5875451263537]
["ED_REP221_00004",null,"˃ 11 kV & < = 22 kV; Wood",15325837.286394147,2615,57,"ED_REP222_00004",null,"Total rural short poles",655535.02979425702,3711.8871841155233]
["ED_REP221_00005",null,"> 22 kV & < = 66 kV; Wood",7009446.0399722373,598,13,"ED_REP222_00005","OVERHEAD CONDUCTORS BY:\nCONDUCTOR LENGTH BY FEEDER TYPE","Conductors CBD (km)",0,0]
["ED_REP221_00006",null,"> 66 kV & < = 132 kV; Wood",395600.00643656019,25,2,"ED_REP222_00006",null,"Conductors urban (km)",4288.6169209323525,12.805302145625072]
["ED_REP221_00007",null,"> 132 kV; Wood",0,0,0,"ED_REP222_00007",null,"Conductors rural long (km)",113242.02846333328,130.57671841104244]
["ED_REP221_00008",null,"˂ = 1 kV; Concrete",164100.74341072128,20,0,"ED_REP222_00008",null,"Conductors rural short (km)",69018.940027040226,202.69705073293247]
["ED_REP221_00009",null,"> 1 kV & < = 11 kV; Concrete",262561.18945715402,32,0,"ED_REP222_00009","OVERHEAD CONDUCTORS BY: \nCONDUCTOR LENGTH MATERIAL TYPE","OH conductor LV ABC",2882.2778625830701,1.3056242484]
["ED_REP221_00010",null,"˃ 11 kV & < = 22 kV; Concrete",464170.6742188973,44,0,"ED_REP222_00010",null,"OH conductor steel",78193.760181968624,113.4080342261001]
["ED_REP221_00011",null,"> 22 kV & < = 66 kV; Concrete",58607.408360971873,4,0,"ED_REP222_00011",null,"OH conductor ACSR",50609.813588640674,38.420266287700031]
["ED_REP221_00012",null,"> 66 kV & < = 132 kV; Concrete",0,0,0,"ED_REP222_00012",null,"OH conductor AAAC",13386.953503098795,4.5573972142500008]
["ED_REP221_00013",null,"> 132 kV; Concrete",0,0,0,"ED_REP222_00013",null,"OH conductor AAC",11114.435747836314,10.172988892530002]
["ED_REP221_00014",null,"˂ = 1 kV; Steel",319996.44965090643,39,0,"ED_REP222_00014",null,"OH conductor HDBC",13662.823506983164,162.0061785089101]
["ED_REP221_00015",null,"> 1 kV & < = 11 kV; Steel",43955.556270728906,5,0,"ED_REP222_00015",null,"Other",16699.521020194803,16.208581911709999]
["ED_REP221_00016",null,"˃ 11 kV & < = 22 kV; Steel",147690.66906964913,14,0,"ED_REP222_00016","UNDERGROUND CABLES BY: \nCABLE LENGTH BY FEEDER TYPE","Cable CBD (km)",0,0]
["ED_REP221_00017",null,"> 22 kV & < = 66 kV; Steel",14651.852090242968,1,0,"ED_REP222_00017",null,"Cable urban (km)",1813.4428436745686,2.0732645398399998]
["ED_REP221_00018",null,"> 66 kV & < = 132 kV; Steel",0,0,0,"ED_REP222_00018",null,"Cable rural long (km)",765.10668179523987,0]
["ED_REP221_00019",null,"> 132 kV; Steel",0,0,0,"ED_REP222_00019",null,"Cable rural short (km)",6115.1005990629019,1.4819299971699997]
["ED_REP221_00020",null,"Other",0,0,1,"ED_REP222_00020","TRANSFORMERS BY: \nTOTAL MVA","Total MVA replaced",21081.189699999999,145.648]
["ED_REP221_00021","POLE TOP STRUCTURES BY: \nHIGHEST OPERATING VOLTAGE","˂ = 1 kV",228551.47528271368,222,206,"ED_REP222_00021",null,"Total MVA disposed of",21081.189699999999,260.99349999999998]
["ED_REP221_00022",null,"> 1 kV & < = 11 kV",2011762.7746342802,1395.7822706065319,243]
["ED_REP221_00023",null,"˃ 11 kV & < = 22 kV",260260.41870031544,158,118]
["ED_REP221_00024",null,"> 22 kV & < = 66 kV",375158.3461283904,121.46811819595646,6]
["ED_REP221_00025",null,"> 66 kV & < = 132 kV",2984293.4444543007,579.74961119751163,2]
["ED_REP221_00026",null,"> 132 kV",0,0,0]
["ED_REP221_00027",null,"Other",0,0,0]
["ED_REP221_00028","OVERHEAD CONDUCTORS BY: \nHIGHEST OPERATING VOLTAGE; NUMBER OF PHASES (AT HV)","˂ = 1 kV",1567487.2755713549,30.34838566340003,395]
["ED_REP221_00029",null,"> 1 kV & < = 11 kV",11891730.923622802,230.23780919940006,353]
["ED_REP221_00030",null,"˃ 11 kV & < = 22 kV  ; SWER",0,0,0]
["ED_REP221_00031",null,"˃ 11 kV & < = 22 kV ; Single-Phase",329000.26719948335,7.0068126629999998,44]
["ED_REP221_00032",null,"˃ 11 kV & < = 22 kV ; Multiple-Phase",4359017.6034011263,77.362702472700022,127]
["ED_REP221_00033",null,"> 22 kV & < = 66 kV",94944.039305225262,1.1233612911000002,23]
["ED_REP221_00034",null,"> 66 kV & < = 132 kV",0,0,0]
["ED_REP221_00035",null,"> 132 kV",0,0,0]
["ED_REP221_00036",null,"Other",0,0,0]
["ED_REP221_00037","UNDERGROUND CABLES BY: \nHIGHEST OPERATING VOLTAGE","˂ = 1 kV",1314985.5613554679,1.6299793787099999,49]
["ED_REP221_00038",null,"> 1 kV & < = 11 kV",887477.26724172744,0.73337669360000002,9]
["ED_REP221_00039",null,"> 11 kV & < = 22 kV",1442273.1904028046,1.1918384647,3]
["ED_REP221_00040",null,"> 22 kV & < = 33 kV",0,0,0]
["ED_REP221_00041",null,"> 33 kV & < = 66 kV",0,0,0]
["ED_REP221_00042",null,"> 66 kV & < = 132 kV",0,0,0]
["ED_REP221_00043",null,">  132 kV",0,0,0]
["ED_REP221_00044",null,"Other",0,0,0]
["ED_REP221_00045","SERVICE LINES BY: \nCONNECTION VOLTAGE; CUSTOMER TYPE; CONNECTION COMPLEXITY ","˂ = 11 kV ; Residential ; Simple Type",1330452.0304453124,44,1415]
["ED_REP221_00046",null,"˂ = 11 kV ; Commercial & Industrial ; Simple Type",217710.33225468744,6,208]
["ED_REP221_00047",null,"˂ = 11 kV ; Residential ; Complex Type",0,0,0]
["ED_REP221_00048",null,"˂ = 11 kV ; Commercial & Industrial ; Complex Type",0,0,0]
["ED_REP221_00049",null,"˂ = 11 kV ; Subdivision ; Complex Type",0,0,0]
["ED_REP221_00050",null,"> 11 kV  & < = 22 kV ; Commercial & Industrial  ",0,0,0]
["ED_REP221_00051",null,"> 11 kV  & < = 22 kV ; Subdivision  ",0,0,0]
["ED_REP221_00052",null,"> 22 kV & < = 33 kV ; Commercial & Industrial  ",0,0,0]
["ED_REP221_00053",null,"> 22 kV & < = 33 kV ; Subdivision  ",0,0,0]
["ED_REP221_00054",null,"> 33 kV & < = 66 kV ; Commercial & Industrial  ",0,0,0]
["ED_REP221_00055",null,"> 33 kV & < = 66 kV ; Subdivision  ",0,0,0]
["ED_REP221_00056",null,"> 66 kV & < = 132 kV ; Commercial & Industrial  ",0,0,0]
["ED_REP221_00057",null,"> 66 kV & < = 132 kV ; Subdivision  ",0,0,0]
["ED_REP221_00058",null,"> 132 kV ; Commercial & Industrial  ",0,0,0]
["ED_REP221_00059",null,"> 132 kV ; Subdivision  ",0,0,0]
["ED_REP221_00060",null,"Other",0,0,0]
["ED_REP221_00061","TRANSFORMERS BY: \nMOUNTING TYPE; HIGHEST OPERATING VOLTAGE ; AMPERE RATING; NUMBER OF PHASES (AT LV)","Pole Mounted ; < = 22kV ;  < = 60 kVA ; Single Phase",419379.03433564946,231,159]
["ED_REP221_00062",null,"Pole Mounted ; < = 22kV ;  > 60 kVA and < = 600 kVA ; Single Phase",10892.961930796089,3,1]
["ED_REP221_00063",null,"Pole Mounted ; < = 22kV ;  > 600 kVA ; Single Phase",0,0,0]
["ED_REP221_00064",null,"Pole Mounted ; < = 22kV ;  < = 60 kVA  ; Multiple Phase",254169.11171857541,70,54]
["ED_REP221_00065",null,"Pole Mounted ; < = 22kV ;  > 60 kVA and < = 600 kVA  ; Multiple Phase",1189148.3441119066,131,49]
["ED_REP221_00066",null,"Pole Mounted ; < = 22kV ;  > 600 kVA  ; Multiple Phase",0,0,0]
["ED_REP221_00073",null,"Kiosk Mounted ; < = 22kV ;  < = 60 kVA ; Single Phase",10892.961930796089,2,0]
["ED_REP221_00074",null,"Kiosk Mounted ; < = 22kV ;  > 60 kVA and < = 600 kVA ; Single Phase",0,0,0]
["ED_REP221_00075",null,"Kiosk Mounted ; < = 22kV ;  > 600 kVA ; Single Phase",0,0,0]
["ED_REP221_00076",null,"Kiosk Mounted ; < = 22kV ;  < = 60 kVA  ; Multiple Phase",0,0,0]
["ED_REP221_00077",null,"Kiosk Mounted ; < = 22kV ;  > 60 kVA and < = 600 kVA  ; Multiple Phase",1089296.193079609,30,2]
["ED_REP221_00078",null,"Kiosk Mounted ; < = 22kV ;  > 600 kVA  ; Multiple Phase",272324.04826990224,5,0]
["ED_REP221_00085",null,"Ground Outdoor / Indoor Chamber Mounted; ˂ 22 kV ;  < = 60 kVA ; Single Phase",0,0,0]
["ED_REP221_00086",null,"Ground Outdoor / Indoor Chamber Mounted; ˂  22 kV ;  > 60 kVA  and < = 600 kVA ; Single Phase",0,0,0]
["ED_REP221_00087",null,"Ground Outdoor / Indoor Chamber Mounted; ˂  22 kV ;  >  600 kVA ; Single Phase",0,0,0]
["ED_REP221_00088",null,"Ground Outdoor / Indoor Chamber Mounted; ˂  22 kV ;  < = 60 kVA ; Multiple Phase",0,0,0]
["ED_REP221_00089",null,"Ground Outdoor / Indoor Chamber Mounted; ˂  22 kV ;  > 60 kVA  and < = 600 kVA ; Multiple Phase",835127.0813610336,23,0]
["ED_REP221_00090",null,"Ground Outdoor / Indoor Chamber Mounted; ˂  22 kV ;  >  600 kVA ; Multiple Phase",508338.22343715082,7,0]
["ED_REP221_00091",null,"Ground Outdoor / Indoor Chamber Mounted; > = 22 kV & < = 33 kV ;  < = 15 MVA",726197.46205307264,4,0]
["ED_REP221_00092",null,"Ground Outdoor / Indoor Chamber Mounted; > = 22 kV & < = 33 kV ;  > 15 MVA and < = 40 MVA",0,0,0]
["ED_REP221_00093",null,"Ground Outdoor / Indoor Chamber Mounted; > = 22 kV & < = 33 kV ;  > 40 MVA",0,0,0]
["ED_REP221_00094",null,"Ground Outdoor / Indoor Chamber Mounted; > 33 kV & < = 66 kV ;  < = 15 MVA",2723240.4826990222,10,3]
["ED_REP221_00095",null,"Ground Outdoor / Indoor Chamber Mounted; > 33 kV & < = 66 kV ;  > 15 MVA and < = 40 MVA",1089296.193079609,3,1]
["ED_REP221_00096",null,"Ground Outdoor / Indoor Chamber Mounted; > 33 kV & < = 66 kV ;  > 40 MVA",0,0,0]
["ED_REP221_00097",null,"Ground Outdoor / Indoor Chamber Mounted; > 66 kV & < = 132 kV ;  < = 100 MVA",0,0,0]
["ED_REP221_00098",null,"Ground Outdoor / Indoor Chamber Mounted; > 66 kV & < = 132 kV ;  > 100 MVA",0,0,0]
["ED_REP221_00099",null,"Ground Outdoor / Indoor Chamber Mounted; > 132 kV ;  < = 100 MVA",0,0,0]
["ED_REP221_00100",null,"Ground Outdoor / Indoor Chamber Mounted; > 132 kV ;  > 100 MVA",0,0,0]
["ED_REP221_00101",null,"Other",1270845.5585928771,28,5]
["ED_REP221_00102","SWITCHGEAR BY: \nHIGHEST OPERATING VOLTAGE ; SWITCH FUNCTION","˂ = 11 kV ;  FUSE",3493668.7668324704,2006,368]
["ED_REP221_00103",null,"˂ = 11 kV  ; Switch",2083806.6665504959,239.29665071770336,85]
["ED_REP221_00104",null,"˂ = 11 kV ;  Circuit Breaker",10319036.611905476,158,44]
["ED_REP221_00105",null,"> 11 kV & < = 22 kV  ; Switch",2605581.22287009,149.60765550239233,28]
["ED_REP221_00106",null,"> 11 kV & < = 22 kV  ; Circuit Breaker",7750162.5186463073,89,10]
["ED_REP221_00107",null,"> 22 kV & < = 33 kV ; Switch",436652.34769858234,20.057416267942585,3]
["ED_REP221_00108",null,"> 22 kV & < = 33 kV ; Circuit Breaker",1959310.7490959766,15,4]
["ED_REP221_00109",null,"> 33 kV & < = 66 kV ; Switch",1077620.9120027872,33,3]
["ED_REP221_00110",null,"> 33 kV & < = 66 kV ; Circuit Breaker",3918621.4981919532,20,2]
["ED_REP221_00111",null,"> 66 kV & < = 132 kV ; Switch",326551.7915159961,5,2]
["ED_REP221_00112",null,"> 66 kV & < = 132 kV  ; Circuit Breaker",849034.65794158983,3,0]
["ED_REP221_00113",null,"> 132 kV ; Switch",0,0,0]
["ED_REP221_00114",null,"> 132 kV ; Circuit Breaker",0,0,0]
["ED_REP221_00115",null,"Other",3435324.8467482789,1052,62]
["ED_REP221_00116","PUBLIC LIGHTING BY: \nASSET TYPE ; LIGHTING OBLIGATION","Luminaires ;  Major Road",192468.92621277008,22,661]
["ED_REP221_00117",null,"Luminaires ;  Minor Road",731832.79849862948,244,2353]
["ED_REP221_00118",null,"Brackets ; Major Road","",0,0]
["ED_REP221_00119",null,"Brackets ; Minor Road","",0,0]
["ED_REP221_00120",null,"Lamps ; Major Road","",0,0]
["ED_REP221_00121",null,"Lamps ; Minor Road","",0,0]
["ED_REP221_00122",null,"Poles / Columns ; Major Road",111527.02098633819,41,1]
["ED_REP221_00123",null,"Poles / Columns ; Minor Road",533736.45757747558,190,11]
["ED_REP221_00124",null,"Other",0,0,0]
["ED_REP221_00125","SCADA, NETWORK CONTROL AND PROTECTION SYSTEMS BY: \nFUNCTION","Field Devices",1643484.6473834335,15,17]
["ED_REP221_00126",null,"Local Network Wiring Assets"]
["ED_REP221_00127",null,"Communications Network Assets",848051.98744468379,55,10]
["ED_REP221_00128",null,"Master Station Assets",0]
["ED_REP221_00129",null,"Communications Site Infrastructure"]
["ED_REP221_00130",null,"Communications Linear Assets"]
["ED_REP221_00131",null,"AFLC",781534.89762910758,2,0]
["ED_REP221_00124",null,"Other",0]
["ED_REP221_00132","OTHER BY: \nDNSP DEFINED","OTHER - Type 5 & 6 Meters - Meter Bulk Replacement Program",1967151.7156831217,13136,0]
["ED_REP221_00133",null,"OTHER - Refurbished ground outdoor / indoor Chamber mounted; > 33 KV & < = 66 KV ;  > 15 MVA AND < = 40 MVA",272277.67075671599,3,0]
["ED_REP221_00134",null,"OTHER - Refurbished ground outdoor / indoor chamber mounted; > 66 KV & < = 132 KV ;  < = 100 MVA",340347.088445895,2,0]
["ED_REP221_00135",null,"OTHER - Zone Sustation Property",7749703.2039130284,69,0]
["ED_REP221_00136",null,"OTHER - Zone Sustation Batteries",435644.2732107456,24,0]
["ED_REP221_00137",null,"OTHER - Zone Sustation Current transformers",571783.10858910356,24,3]
["ED_REP221_00138",null,"OTHER - Zone Sustation Voltage transformers",796412.18696339417,39,0]
["ED_REP221_00139",null,"OTHER - Zone Sustation Surge Diverters",1029209.5954603865,1008,0]
["ED_REP221_00140",null,"OTHER - Zone Sustation Protection Relays",2110151.9483645489,62,25]
["ED_REP221_00141",null,"OTHER - Frequency Injection Refurbishment",3063123.7960130549,3,0]
["ED_REP221_00142"]
["ED_REP221_00143"]
["ED_REP221_00144"]
["ED_REP221_00145"]
["ED_REP221_00146"]
["ED_REP221_00147"]

{"sheet":"2.3 Augex","index":4,"n_rows":180,"n_cols":50,"rows_kept":180,"cut":false,"hidden":false,"merged":[[71,23,71,25],[71,37,71,38],[72,39,72,40],[72,43,72,45],[72,46,72,47],[70,45,71,45],[70,43,70,44],[71,20,71,22],[11,45,11,47],[11,48,11,49],[70,1,70,16],[70,17,70,38],[70,39,70,40],[70,41,72,41],[70,42,72,42],[70,46,70,47],[71,1,72,1],[71,12,72,12],[71,13,72,13],[71,14,72,14],[71,15,72,15],[71,17,71,19],[10,16,11,16],[10,17,10,18],[10,19,10,20],[10,21,10,23],[9,1,9,20],[9,21,9,40],[10,1,11,1],[10,12,11,12],[10,13,11,13],[10,14,11,14],[10,15,11,15],[10,24,10,25],[10,36,10,37],[10,39,10,40],[11,41,11,42],[9,48,9,49],[9,41,9,42],[9,43,11,43],[9,44,11,44],[9,45,9,46],[9,47,10,47]]}
[null,{"$f":"(LOOKUP(dms_Model,dms_Model_List,dms_Worksheet_List))","v":"REGULATORY REPORTING STATEMENT"},null,null,null,null,null,null,null,null,"New line on new route - single circuit","New line on new route - dual circuit",null,null,"Worksheet navigation"]
[null,"Australian Distribution Co."]
[null,{"$f":"CONCATENATE(\"Category Analysis RIN response \",CRY)","v":"Category Analysis RIN response 2014-15"}]
[null,"2.3 AUGEX PROJECT DATA"]
[]
[]
[null,"TABLE 2.3.1 - AUGEX ASSET DATA - SUBTRANSMISSION SUBSTATIONS, SWITCHING STATIONS AND ZONE SUBSTATIONS"]
[null,"NOTE: DNSP MUST PROVIDE EXPENDITURE INFORMATION ON A PROJECT CLOSE BASIS. "]
["AUG231","AUG231_1",null,null,null,null,null,null,null,null,null,null,"AUG231_2","AUG231_3","AUG231_4","AUG231_5","AUG231_6","ED_AUG231_00001","ED_AUG231_00002","ED_AUG231_00003","ED_AUG231_00004","ED_AUG231_00005","ED_AUG231_00006","ED_AUG231_00007","ED_AUG231_00008","ED_AUG231_00009",null,null,null,null,null,null,null,null,null,null,"ED_AUG231_00010","ED_AUG231_00011","ED_AUG231_00012","ED_AUG231_00013","ED_AUG231_00014","ED_AUG231_00015","ED_AUG231_00016","ED_AUG231_00017","ED_AUG231_00018","ED_AUG231_00019","ED_AUG231_00020","ED_AUG231_00021","ED_AUG231_00022","ED_AUG231_00023"]
[null,"PROJECT DESCRIPTION AND CHANGES",null,null,null,null,null,null,null,null,null,null,null,null,null,null,null,null,null,null,null,"PLANT AND EQUIPMENT EXPENDITURE AND VOLUME",null,null,null,null,null,null,null,null,null,null,null,null,null,null,null,null,null,null,null,"OTHER EXPENDITURE",null,"TOTAL DIRECT EXPENDITURE ($0's)","YEARS INCURRED","ALL RELATED PARTY CONTRACTS",null,"ALL NON RELATED PARTYCONTRACTS","LAND AND EASEMENTS"]
[null,"SUBSTATION ID",null,null,null,null,null,null,null,null,null,null,"SUBSTATION TYPE","PROJECT ID","PROJECT TYPE","PROJECT TRIGGER","VOLTAGE (KV)","SUBSTATION RATING\nNORMAL CYCLIC\n(MVA)",null,"SUBSTATION RATING\nN-1 EMERGENCY\n(MVA)",null,"TRANSFORMERS",null,null,"SWITCHGEAR",null,null,null,null,null,null,null,null,null,null,null,"CAPACITORS",null,"OTHER PLANT ITEM","INSTALLATION (LABOUR)",null,"CIVIL WORKS","OTHER DIRECT",null,null,"RELATED PARTY MARGINS","TOTAL",null,"LAND PURCHASE","EASEMENTS"]
[null,null,null,null,null,null,null,null,null,null,null,null,null,null,null,null,null,"PRE","POST","PRE","POST","UNITS ADDED ","MVA ADDED","EXPENDITURE ($0's)","UNITS ADDED ","EXPENDITURE ($0's)",null,null,null,null,null,null,null,null,null,null,"MVAR ADDED","EXPENDITURE ($0's)","EXPENDITURE ($0's)","VOLUME","EXPENDITURE ($0's)","EXPENDITURE ($0's)",null,null,null,"EXPENDITURE ($0's)",null,null,"EXPENDITURE ($0's)"]
["AUG231_1",null,null,null,null,null,null,null,null,null,null,null,null,null,null,null,null,null,null,null,null,null,null,null,null,null,null,null,null,null,null,null,null,null,null,null,null,null,null,null,null,null,null,{"$f":"SUM(X13,Z13,AL13,AM13,AO13,AP13,AQ13)","v":0}]
["AUG231_2",null,null,null,null,null,null,null,null,null,null,null,null,null,null,null,null,null,null,null,null,null,null,null,null,null,null,null,null,null,null,null,null,null,null,null,null,null,null,null,null,null,null,{"$f":"SUM(X14,Z14,AL14,AM14,AO14,AP14,AQ14)","v":0}]
["AUG231_3",null,null,null,null,null,null,null,null,null,null,null,null,null,null,null,null,null,null,null,null,null,null,null,null,null,null,null,null,null,null,null,null,null,null,null,null,null,null,null,null,null,null,0]
["AUG231_4",null,null,null,null,null,null,null,null,null,null,null,null,null,null,null,null,null,null,null,null,null,null,null,null,null,null,null,null,null,null,null,null,null,null,null,null,null,null,null,null,null,null,0]
["AUG231_5",null,null,null,null,null,null,null,null,null,null,null,null,null,null,null,null,null,null,null,null,null,null,null,null,null,null,null,null,null,null,null,null,null,null,null,null,null,null,null,null,null,null,0]
["AUG231_6",null,null,null,null,null,null,null,null,null,null,null,null,null,null,null,null,null,null,null,null,null,null,null,null,null,null,null,null,null,null,null,null,null,null,null,null,null,null,null,null,null,null,0]
["AUG231_7",null,null,null,null,null,null,null,null,null,null,null,null,null,null,null,null,null,null,null,null,null,null,null,null,null,null,null,null,null,null,null,null,null,null,null,null,null,null,null,null,null,null,0]
["AUG231_8",null,null,null,null,null,null,null,null,null,null,null,null,null,null,null,null,null,null,null,null,null,null,null,null,null,null,null,null,null,null,null,null,null,null,null,null,null,null,null,null,null,null,0]
["AUG231_9",null,null,null,null,null,null,null,null,null,null,null,null,null,null,null,null,null,null,null,null,null,null,null,null,null,null,null,null,null,null,null,null,null,null,null,null,null,null,null,null,null,null,0]
["AUG231_10",null,null,null,null,null,null,null,null,null,null,null,null,null,null,null,null,null,null,null,null,null,null,null,null,null,null,null,null,null,null,null,null,null,null,null,null,null,null,null,null,null,null,0]
["AUG231_11",null,null,null,null,null,null,null,null,null,null,null,null,null,null,null,null,null,null,null,null,null,null,null,null,null,null,null,null,null,null,null,null,null,null,null,null,null,null,null,null,null,null,0]
["AUG231_12",null,null,null,null,null,null,null,null,null,null,null,null,null,null,null,null,null,null,null,null,null,null,null,null,null,null,null,null,null,null,null,null,null,null,null,null,null,null,null,null,null,null,0]
["AUG231_13",null,null,null,null,null,null,null,null,null,null,null,null,null,null,null,null,null,null,null,null,null,null,null,null,null,null,null,null,null,null,null,null,null,null,null,null,null,null,null,null,null,null,0]
["AUG231_14",null,null,null,null,null,null,null,null,null,null,null,null,null,null,null,null,null,null,null,null,null,null,null,null,null,null,null,null,null,null,null,null,null,null,null,null,null,null,null,null,null,null,0]
["AUG231_15",null,null,null,null,null,null,null,null,null,null,null,null,null,null,null,null,null,null,null,null,null,null,null,null,null,null,null,null,null,null,null,null,null,null,null,null,null,null,null,null,null,null,0]
["AUG231_16",null,null,null,null,null,null,null,null,null,null,null,null,null,null,null,null,null,null,null,null,null,null,null,null,null,null,null,null,null,null,null,null,null,null,null,null,null,null,null,null,null,null,0]
["AUG231_17",null,null,null,null,null,null,null,null,null,null,null,null,null,null,null,null,null,null,null,null,null,null,null,null,null,null,null,null,null,null,null,null,null,null,null,null,null,null,null,null,null,null,0]
["AUG231_18",null,null,null,null,null,null,null,null,null,null,null,null,null,null,null,null,null,null,null,null,null,null,null,null,null,null,null,null,null,null,null,null,null,null,null,null,null,null,null,null,null,null,0]
["AUG231_19",null,null,null,null,null,null,null,null,null,null,null,null,null,null,null,null,null,null,null,null,null,null,null,null,null,null,null,null,null,null,null,null,null,null,null,null,null,null,null,null,null,null,0]
["AUG231_20",null,null,null,null,null,null,null,null,null,null,null,null,null,null,null,null,null,null,null,null,null,null,null,null,null,null,null,null,null,null,null,null,null,null,null,null,null,null,null,null,null,null,0]
["AUG231_21",null,null,null,null,null,null,null,null,null,null,null,null,null,null,null,null,null,null,null,null,null,null,null,null,null,null,null,null,null,null,null,null,null,null,null,null,null,null,null,null,null,null,0]
["AUG231_22",null,null,null,null,null,null,null,null,null,null,null,null,null,null,null,null,null,null,null,null,null,null,null,null,null,null,null,null,null,null,null,null,null,null,null,null,null,null,null,null,null,null,0]
["AUG231_23",null,null,null,null,null,null,null,null,null,null,null,null,null,null,null,null,null,null,null,null,null,null,null,null,null,null,null,null,null,null,null,null,null,null,null,null,null,null,null,null,null,null,0]
["AUG231_24",null,null,null,null,null,null,null,null,null,null,null,null,null,null,null,null,null,null,null,null,null,null,null,null,null,null,null,null,null,null,null,null,null,null,null,null,null,null,null,null,null,null,0]
["AUG231_25",null,null,null,null,null,null,null,null,null,null,null,null,null,null,null,null,null,null,null,null,null,null,null,null,null,null,null,null,null,null,null,null,null,null,null,null,null,null,null,null,null,null,0]
["AUG231_26",null,null,null,null,null,null,null,null,null,null,null,null,null,null,null,null,null,null,null,null,null,null,null,null,null,null,null,null,null,null,null,null,null,null,null,null,null,null,null,null,null,null,0]
["AUG231_27",null,null,null,null,null,null,null,null,null,null,null,null,null,null,null,null,null,null,null,null,null,null,null,null,null,null,null,null,null,null,null,null,null,null,null,null,null,null,null,null,null,null,0]
["AUG231_28",null,null,null,null,null,null,null,null,null,null,null,null,null,null,null,null,null,null,null,null,null,null,null,null,null,null,null,null,null,null,null,null,null,null,null,null,null,null,null,null,null,null,0]
["AUG231_29",null,null,null,null,null,null,null,null,null,null,null,null,null,null,null,null,null,null,null,null,null,null,null,null,null,null,null,null,null,null,null,null,null,null,null,null,null,null,null,null,null,null,0]
["AUG231_30",null,null,null,null,null,null,null,null,null,null,null,null,null,null,null,null,null,null,null,null,null,null,null,null,null,null,null,null,null,null,null,null,null,null,null,null,null,null,null,null,null,null,0]
["AUG231_31",null,null,null,null,null,null,null,null,null,null,null,null,null,null,null,null,null,null,null,null,null,null,null,null,null,null,null,null,null,null,null,null,null,null,null,null,null,null,null,null,null,null,0]
["AUG231_32",null,null,null,null,null,null,null,null,null,null,null,null,null,null,null,null,null,null,null,null,null,null,null,null,null,null,null,null,null,null,null,null,null,null,null,null,null,null,null,null,null,null,0]
["AUG231_33",null,null,null,null,null,null,null,null,null,null,null,null,null,null,null,null,null,null,null,null,null,null,null,null,null,null,null,null,null,null,null,null,null,null,null,null,null,null,null,null,null,null,0]
["AUG231_34",null,null,null,null,null,null,null,null,null,null,null,null,null,null,null,null,null,null,null,null,null,null,null,null,null,null,null,null,null,null,null,null,null,null,null,null,null,null,null,null,null,null,0]
["AUG231_35",null,null,null,null,null,null,null,null,null,null,null,null,null,null,null,null,null,null,null,null,null,null,null,null,null,null,null,null,null,null,null,null,null,null,null,null,null,null,null,null,null,null,0]
["AUG231_36",null,null,null,null,null,null,null,null,null,null,null,null,null,null,null,null,null,null,null,null,null,null,null,null,null,null,null,null,null,null,null,null,null,null,null,null,null,null,null,null,null,null,0]
["AUG231_37",null,null,null,null,null,null,null,null,null,null,null,null,null,null,null,null,null,null,null,null,null,null,null,null,null,null,null,null,null,null,null,null,null,null,null,null,null,null,null,null,null,null,0]
["AUG231_38",null,null,null,null,null,null,null,null,null,null,null,null,null,null,null,null,null,null,null,null,null,null,null,null,null,null,null,null,null,null,null,null,null,null,null,null,null,null,null,null,null,null,0]
["AUG231_39",null,null,null,null,null,null,null,null,null,null,null,null,null,null,null,null,null,null,null,null,null,null,null,null,null,null,null,null,null,null,null,null,null,null,null,null,null,null,null,null,null,null,0]
["AUG231_40",null,null,null,null,null,null,null,null,null,null,null,null,null,null,null,null,null,null,null,null,null,null,null,null,null,null,null,null,null,null,null,null,null,null,null,null,null,null,null,null,null,null,0]
["AUG231_41",null,null,null,null,null,null,null,null,null,null,null,null,null,null,null,null,null,null,null,null,null,null,null,null,null,null,null,null,null,null,null,null,null,null,null,null,null,null,null,null,null,null,0]
["AUG231_42",null,null,null,null,null,null,null,null,null,null,null,null,null,null,null,null,null,null,null,null,null,null,null,null,null,null,null,null,null,null,null,null,null,null,null,null,null,null,null,null,null,null,0]
["AUG231_43",null,null,null,null,null,null,null,null,null,null,null,null,null,null,null,null,null,null,null,null,null,null,null,null,null,null,null,null,null,null,null,null,null,null,null,null,null,null,null,null,null,null,0]
["AUG231_44",null,null,null,null,null,null,null,null,null,null,null,null,null,null,null,null,null,null,null,null,null,null,null,null,null,null,null,null,null,null,null,null,null,null,null,null,null,null,null,null,null,null,0]
["AUG231_45",null,null,null,null,null,null,null,null,null,null,null,null,null,null,null,null,null,null,null,null,null,null,null,null,null,null,null,null,null,null,null,null,null,null,null,null,null,null,null,null,null,null,0]
["AUG231_46",null,null,null,null,null,null,null,null,null,null,null,null,null,null,null,null,null,null,null,null,null,null,null,null,null,null,null,null,null,null,null,null,null,null,null,null,null,null,null,null,null,null,0]
["AUG231_47",null,null,null,null,null,null,null,null,null,null,null,null,null,null,null,null,null,null,null,null,null,null,null,null,null,null,null,null,null,null,null,null,null,null,null,null,null,null,null,null,null,null,0]
["AUG231_48",null,null,null,null,null,null,null,null,null,null,null,null,null,null,null,null,null,null,null,null,null,null,null,null,null,null,null,null,null,null,null,null,null,null,null,null,null,null,null,null,null,null,0]
["AUG231_49",null,null,null,null,null,null,null,null,null,null,null,null,null,null,null,null,null,null,null,null,null,null,null,null,null,null,null,null,null,null,null,null,null,null,null,null,null,null,null,null,null,null,0]
["AUG231_50",null,null,null,null,null,null,null,null,null,null,null,null,null,null,null,null,null,null,null,null,null,null,null,null,null,null,null,null,null,null,null,null,null,null,null,null,null,null,null,null,null,null,0]
["AUG231_51",null,null,null,null,null,null,null,null,null,null,null,null,null,null,null,null,null,null,null,null,null,null,null,null,null,null,null,null,null,null,null,null,null,null,null,null,null,null,null,null,null,null,0]
["AUG231_52",null,null,null,null,null,null,null,null,null,null,null,null,null,null,null,null,null,null,null,null,null,null,null,null,null,null,null,null,null,null,null,null,null,null,null,null,null,null,null,null,null,null,0]
[null,null,null,null,null,null,null,null,null,null,null,null,null,"Non material projects - [actual]",null,null,null,null,null,null,null,null,null,null,null,null,null,null,null,null,null,null,null,null,null,null,null,null,null,null,null,null,null,24947171,"2009, 2010, 2011, 2012, 2013, 2014, 2015"]
[null,null,null,null,null,null,null,null,null,null,null,null,null,"Non material projects - [forecast]"]
[]
["AUG232","AUG232_1","AUG232_2","AUG232_3","AUG232_4","AUG232_5","AUG232_6","AUG232_7","AUG232_8","AUG232_9","AUG232_10","AUG232_11","AUG232_2","AUG232_3","AUG232_4","AUG232_5","AUG232_6","ED_AUG232_00001","ED_AUG232_00002","ED_AUG232_00003","ED_AUG232_00004","ED_AUG232_00005","ED_AUG232_00006","ED_AUG232_00007","ED_AUG232_00008","ED_AUG232_00009",null,null,null,null,null,null,null,null,null,null,"ED_AUG232_00010","ED_AUG232_00011","ED_AUG232_00012","ED_AUG232_00013","ED_AUG232_00014","ED_AUG232_00015","ED_AUG232_00016","ED_AUG232_00017","ED_AUG232_00018","ED_AUG232_00019","ED_AUG232_00020","ED_AUG232_00021"]
[null,"TABLE 2.3.2 - AUGEX ASSET DATA - SUBTRANSMISSION LINES"]
[null,"NOTE: DNSP MUST PROVIDE EXPENDITURE INFORMATION ON A PROJECT CLOSE BASIS."]
[null,"PROJECT DESCRIPTION AND CHANGES",null,null,null,null,null,null,null,null,null,null,null,null,null,null,null,"PLANT AND EQUIPMENT EXPENDITURE AND VOLUME",null,null,null,null,null,null,null,null,null,null,null,null,null,null,null,null,null,null,null,null,null,"OTHER EXPENDITURE",null,"TOTAL DIRECT EXPENDITURE ($0's)","YEARS INCURRED","ALL RELATED PARTY CONTRACTS",null,"ALL NON RELATED PARTYCONTRACTS","LAND AND EASEMENTS"]
[null,"LINE ID",null,null,null,null,null,null,null,null,null,null,"PROJECT ID","PROJECT TYPE","PROJECT TRIGGER","VOLTAGE (KV)","ROUTE LINE LENGTH ADDED","POLES/TOWERS (INCLUDING STRUCTURES, AND CIVIL WORKS)",null,null,"OVERHEAD LINES",null,null,"UNDERGROUND CABLES",null,null,null,null,null,null,null,null,null,null,null,null,"OTHER PLANT ITEM","INSTALLATION (LABOUR)",null,"CIVIL WORKS","OTHER DIRECT",null,null,"RELATED PARTY MARGINS","TOTAL",null,"LAND PURCHASE","EASEMENTS"]
[null,null,null,null,null,null,null,null,null,null,null,null,null,null,null,null,"KM ADDED","POLES/TOWERS ADDED","POLES/TOWERS UPGRADED","EXPENDITURE ($0's)","CIRCUIT KM ADDED","CIRCUIT KM UPGRADED","EXPENDITURE ($0's)","CIRCUIT KM ADDED","CIRCUIT KM UPGRADED","EXPENDITURE ($0's)",null,null,null,null,null,null,null,null,null,null,"EXPENDITURE ($0's)","VOLUME","EXPENDITURE ($0's)","EXPENDITURE ($0's)",null,null,null,"EXPENDITURE ($0's)",null,null,"EXPENDITURE ($0's)"]
["AUG232_1",{"$f":"'[2]2.3 Augex'!B74","v":"81T (Yarrandale to Gilgandra)"},{"$f":"'[2]2.3 Augex'!C74","v":0},{"$f":"'[2]2.3 Augex'!D74","v":0},{"$f":"'[2]2.3 Augex'!E74","v":0},{"$f":"'[2]2.3 Augex'!F74","v":0},{"$f":"'[2]2.3 Augex'!G74","v":0},{"$f":"'[2]2.3 Augex'!H74","v":0},{"$f":"'[2]2.3 Augex'!I74","v":0},{"$f":"'[2]2.3 Augex'!J74","v":0},{"$f":"'[2]2.3 Augex'!K74","v":0},{"$f":"'[2]2.3 Augex'!L74","v":0},{"$f":"'[2]2.3 Augex'!M74","v":"603314"},{"$f":"'[2]2.3 Augex'!N74","v":"New line on new route - single circuit"},{"$f":"'[2]2.3 Augex'!O74","v":"Demand growth"},{"$f":"'[2]2.3 Augex'!P74","v":66},{"$f":"'[2]2.3 Augex'!Q74","v":65},{"$f":"'[2]2.3 Augex'!R74","v":307},{"$f":"'[2]2.3 Augex'!S74","v":10},null,{"$f":"'[2]2.3 Augex'!U74","v":63.8},{"$f":"'[2]2.3 Augex'!V74","v":1.2},null,{"$f":"'[2]2.3 Augex'!X74","v":0},{"$f":"'[2]2.3 Augex'!Y74","v":0},null,0,0,0,0,0,0,0,0,0,0,null,{"$f":"'[2]2.3 Augex'!AL74","v":13606},null,0,null,{"$f":"SUM(T74,W74,Z74,AK74,AM74,AN74,AO74)","v":0},{"$f":"'[2]2.3 Augex'!AQ74","v":"2011, 2012, 2013, 2014, 2015"},null,null,null,null,null,null,"New line on new route - single circuit"]
["AUG232_2",{"$f":"'[2]2.3 Augex'!B75","v":"87C  (Coffs Harbour North to Coffs Harbour South)"},{"$f":"'[2]2.3 Augex'!C75","v":0},{"$f":"'[2]2.3 Augex'!D75","v":0},{"$f":"'[2]2.3 Augex'!E75","v":0},{"$f":"'[2]2.3 Augex'!F75","v":0},{"$f":"'[2]2.3 Augex'!G75","v":0},{"$f":"'[2]2.3 Augex'!H75","v":0},{"$f":"'[2]2.3 Augex'!I75","v":0},{"$f":"'[2]2.3 Augex'!J75","v":0},{"$f":"'[2]2.3 Augex'!K75","v":0},{"$f":"'[2]2.3 Augex'!L75","v":0},{"$f":"'[2]2.3 Augex'!M75","v":"S201434"},{"$f":"'[2]2.3 Augex'!N75","v":"New line on new route - single circuit"},{"$f":"'[2]2.3 Augex'!O75","v":"Demand growth"},{"$f":"'[2]2.3 Augex'!P75","v":66},{"$f":"'[2]2.3 Augex'!Q75","v":7},{"$f":"'[2]2.3 Augex'!R75","v":1},{"$f":"'[2]2.3 Augex'!S75","v":10},null,{"$f":"'[2]2.3 Augex'!U75","v":1.7},{"$f":"'[2]2.3 Augex'!V75","v":0},null,{"$f":"'[2]2.3 Augex'!X75","v":5.3},{"$f":"'[2]2.3 Augex'!Y75","v":0},null,0,0,0,0,0,0,0,0,0,0,null,{"$f":"'[2]2.3 Augex'!AL75","v":9703},null,0,null,0,{"$f":"'[2]2.3 Augex'!AQ75","v":"2010, 2011, 2012, 2013, 2014, 2015"},null,null,null,null,null,null,"New line on new route - dual circuit"]
["AUG232_3",{"$f":"'[2]2.3 Augex'!B76","v":"974 (Cooma to Bega)"},{"$f":"'[2]2.3 Augex'!C76","v":0},{"$f":"'[2]2.3 Augex'!D76","v":0},{"$f":"'[2]2.3 Augex'!E76","v":0},{"$f":"'[2]2.3 Augex'!F76","v":0},{"$f":"'[2]2.3 Augex'!G76","v":0},{"$f":"'[2]2.3 Augex'!H76","v":0},{"$f":"'[2]2.3 Augex'!I76","v":0},{"$f":"'[2]2.3 Augex'!J76","v":0},{"$f":"'[2]2.3 Augex'!K76","v":0},{"$f":"'[2]2.3 Augex'!L76","v":0},{"$f":"'[2]2.3 Augex'!M76","v":"569908, 571120, 581293, S201747"},{"$f":"'[2]2.3 Augex'!N76","v":"Line rebuild over existing route - dual circuit"},{"$f":"'[2]2.3 Augex'!O76","v":"Demand growth"},{"$f":"'[2]2.3 Augex'!P76","v":132},{"$f":"'[2]2.3 Augex'!Q76","v":91},{"$f":"'[2]2.3 Augex'!R76","v":0},{"$f":"'[2]2.3 Augex'!S76","v":446},null,{"$f":"'[2]2.3 Augex'!U76","v":48},{"$f":"'[2]2.3 Augex'!V76","v":53},null,{"$f":"'[2]2.3 Augex'!X76","v":0},{"$f":"'[2]2.3 Augex'!Y76","v":0},null,0,0,0,0,0,0,0,0,0,0,null,{"$f":"'[2]2.3 Augex'!AL76","v":48538},null,0,null,0,{"$f":"'[2]2.3 Augex'!AQ76","v":"2008, 2009, 2010, 2011, 2012, 2013, 2014, 2015"},null,null,null,null,null,null,"New line on new route - other"]
["AUG232_4",null,null,null,null,null,null,null,null,null,null,null,null,null,null,null,null,null,null,null,null,null,null,null,null,null,null,null,null,null,null,null,null,null,null,null,null,null,null,null,null,0,null,null,null,null,null,null,null,"Line rebuild over existing route - single circuit"]
["AUG232_5",null,null,null,null,null,null,null,null,null,null,null,null,null,null,null,null,null,null,null,null,null,null,null,null,null,null,null,null,null,null,null,null,null,null,null,null,null,null,null,null,0,null,null,null,null,null,null,null,"Line rebuild over existing route - dual circuit"]
["AUG232_6",null,null,null,null,null,null,null,null,null,null,null,null,null,null,null,null,null,null,null,null,null,null,null,null,null,null,null,null,null,null,null,null,null,null,null,null,null,null,null,null,0,null,null,null,null,null,null,null,"Reconductor - Single circuit"]
["AUG232_7",null,null,null,null,null,null,null,null,null,null,null,null,null,null,null,null,null,null,null,null,null,null,null,null,null,null,null,null,null,null,null,null,null,null,null,null,null,null,null,null,0,null,null,null,null,null,null,null,"Reconductor - Dual circuit"]
["AUG232_8",null,null,null,null,null,null,null,null,null,null,null,null,null,null,null,null,null,null,null,null,null,null,null,null,null,null,null,null,null,null,null,null,null,null,null,null,null,null,null,null,0,null,null,null,null,null,null,null,"Reconductor - Other"]
["AUG232_9",null,null,null,null,null,null,null,null,null,null,null,null,null,null,null,null,null,null,null,null,null,null,null,null,null,null,null,null,null,null,null,null,null,null,null,null,null,null,null,null,0,null,null,null,null,null,null,null,"Line upgrade - raising/retensoring"]
["AUG232_10",null,null,null,null,null,null,null,null,null,null,null,null,null,null,null,null,null,null,null,null,null,null,null,null,null,null,null,null,null,null,null,null,null,null,null,null,null,null,null,null,0,null,null,null,null,null,null,null,"Line upgrade - voltage upgrade"]
["AUG232_11",null,null,null,null,null,null,null,null,null,null,null,null,null,null,null,null,null,null,null,null,null,null,null,null,null,null,null,null,null,null,null,null,null,null,null,null,null,null,null,null,0,null,null,null,null,null,null,null,"Line upgrade - capacity"]
["AUG232_12",null,null,null,null,null,null,null,null,null,null,null,null,null,null,null,null,null,null,null,null,null,null,null,null,null,null,null,null,null,null,null,null,null,null,null,null,null,null,null,null,0,null,null,null,null,null,null,null,"String spare circuit"]
["AUG232_13",null,null,null,null,null,null,null,null,null,null,null,null,null,null,null,null,null,null,null,null,null,null,null,null,null,null,null,null,null,null,null,null,null,null,null,null,null,null,null,null,0,null,null,null,null,null,null,null,"Other"]
["AUG232_14",null,null,null,null,null,null,null,null,null,null,null,null,null,null,null,null,null,null,null,null,null,null,null,null,null,null,null,null,null,null,null,null,null,null,null,null,null,null,null,null,0]
["AUG232_15",null,null,null,null,null,null,null,null,null,null,null,null,null,null,null,null,null,null,null,null,null,null,null,null,null,null,null,null,null,null,null,null,null,null,null,null,null,null,null,null,0]
["AUG232_16",null,null,null,null,null,null,null,null,null,null,null,null,null,null,null,null,null,null,null,null,null,null,null,null,null,null,null,null,null,null,null,null,null,null,null,null,null,null,null,null,0]
["AUG232_17",null,null,null,null,null,null,null,null,null,null,null,null,null,null,null,null,null,null,null,null,null,null,null,null,null,null,null,null,null,null,null,null,null,null,null,null,null,null,null,null,0]
["AUG232_18",null,null,null,null,null,null,null,null,null,null,null,null,null,null,null,null,null,null,null,null,null,null,null,null,null,null,null,null,null,null,null,null,null,null,null,null,null,null,null,null,0]
["AUG232_19",null,null,null,null,null,null,null,null,null,null,null,null,null,null,null,null,null,null,null,null,null,null,null,null,null,null,null,null,null,null,null,null,null,null,null,null,null,null,null,null,0]
["AUG232_20",null,null,null,null,null,null,null,null,null,null,null,null,null,null,null,null,null,null,null,null,null,null,null,null,null,null,null,null,null,null,null,null,null,null,null,null,null,null,null,null,0]
["AUG232_21",null,null,null,null,null,null,null,null,null,null,null,null,null,null,null,null,null,null,null,null,null,null,null,null,null,null,null,null,null,null,null,null,null,null,null,null,null,null,null,null,0]
["AUG232_22",null,null,null,null,null,null,null,null,null,null,null,null,null,null,null,null,null,null,null,null,null,null,null,null,null,null,null,null,null,null,null,null,null,null,null,null,null,null,null,null,0]
["AUG232_23",null,null,null,null,null,null,null,null,null,null,null,null,null,null,null,null,null,null,null,null,null,null,null,null,null,null,null,null,null,null,null,null,null,null,null,null,null,null,null,null,0]
["AUG232_24",null,null,null,null,null,null,null,null,null,null,null,null,null,null,null,null,null,null,null,null,null,null,null,null,null,null,null,null,null,null,null,null,null,null,null,null,null,null,null,null,0]
["AUG232_25",null,null,null,null,null,null,null,null,null,null,null,null,null,null,null,null,null,null,null,null,null,null,null,null,null,null,null,null,null,null,null,null,null,null,null,null,null,null,null,null,0]
["AUG232_26",null,null,null,null,null,null,null,null,null,null,null,null,null,null,null,null,null,null,null,null,null,null,null,null,null,null,null,null,null,null,null,null,null,null,null,null,null,null,null,null,0]
["AUG232_27",null,null,null,null,null,null,null,null,null,null,null,null,null,null,null,null,null,null,null,null,null,null,null,null,null,null,null,null,null,null,null,null,null,null,null,null,null,null,null,null,0]
["AUG232_28",null,null,null,null,null,null,null,null,null,null,null,null,null,null,null,null,null,null,null,null,null,null,null,null,null,null,null,null,null,null,null,null,null,null,null,null,null,null,null,null,0]
["AUG232_29",null,null,null,null,null,null,null,null,null,null,null,null,null,null,null,null,null,null,null,null,null,null,null,null,null,null,null,null,null,null,null,null,null,null,null,null,null,null,null,null,0]
["AUG232_30",null,null,null,null,null,null,null,null,null,null,null,null,null,null,null,null,null,null,null,null,null,null,null,null,null,null,null,null,null,null,null,null,null,null,null,null,null,null,null,null,0]
["AUG232_31",null,null,null,null,null,null,null,null,null,null,null,null,null,null,null,null,null,null,null,null,null,null,null,null,null,null,null,null,null,null,null,null,null,null,null,null,null,null,null,null,0]
["AUG232_32",null,null,null,null,null,null,null,null,null,null,null,null,null,null,null,null,null,null,null,null,null,null,null,null,null,null,null,null,null,null,null,null,null,null,null,null,null,null,null,null,0]
["AUG232_33",null,null,null,null,null,null,null,null,null,null,null,null,null,null,null,null,null,null,null,null,null,null,null,null,null,null,null,null,null,null,null,null,null,null,null,null,null,null,null,null,0]
["AUG232_34",null,null,null,null,null,null,null,null,null,null,null,null,null,null,null,null,null,null,null,null,null,null,null,null,null,null,null,null,null,null,null,null,null,null,null,null,null,null,null,null,0]
["AUG232_35",null,null,null,null,null,null,null,null,null,null,null,null,null,null,null,null,null,null,null,null,null,null,null,null,null,null,null,null,null,null,null,null,null,null,null,null,null,null,null,null,0]
["AUG232_36",null,null,null,null,null,null,null,null,null,null,null,null,null,null,null,null,null,null,null,null,null,null,null,null,null,null,null,null,null,null,null,null,null,null,null,null,null,null,null,null,0]
["AUG232_37",null,null,null,null,null,null,null,null,null,null,null,null,null,null,null,null,null,null,null,null,null,null,null,null,null,null,null,null,null,null,null,null,null,null,null,null,null,null,null,null,0]
["AUG232_38",null,null,null,null,null,null,null,null,null,null,null,null,null,null,null,null,null,null,null,null,null,null,null,null,null,null,null,null,null,null,null,null,null,null,null,null,null,null,null,null,0]
["AUG232_39",null,null,null,null,null,null,null,null,null,null,null,null,null,null,null,null,null,null,null,null,null,null,null,null,null,null,null,null,null,null,null,null,null,null,null,null,null,null,null,null,0]
["AUG232_40",null,null,null,null,null,null,null,null,null,null,null,null,null,null,null,null,null,null,null,null,null,null,null,null,null,null,null,null,null,null,null,null,null,null,null,null,null,null,null,null,0]
["AUG232_41",null,null,null,null,null,null,null,null,null,null,null,null,null,null,null,null,null,null,null,null,null,null,null,null,null,null,null,null,null,null,null,null,null,null,null,null,null,null,null,null,0]
["AUG232_42",null,null,null,null,null,null,null,null,null,null,null,null,null,null,null,null,null,null,null,null,null,null,null,null,null,null,null,null,null,null,null,null,null,null,null,null,null,null,null,null,0]
["AUG232_43",null,null,null,null,null,null,null,null,null,null,null,null,null,null,null,null,null,null,null,null,null,null,null,null,null,null,null,null,null,null,null,null,null,null,null,null,null,null,null,null,0]
["AUG232_44",null,null,null,null,null,null,null,null,null,null,null,null,null,null,null,null,null,null,null,null,null,null,null,null,null,null,null,null,null,null,null,null,null,null,null,null,null,null,null,null,0]
["AUG232_45",null,null,null,null,null,null,null,null,null,null,null,null,null,null,null,null,null,null,null,null,null,null,null,null,null,null,null,null,null,null,null,null,null,null,null,null,null,null,null,null,0]
["AUG232_46",null,null,null,null,null,null,null,null,null,null,null,null,null,null,null,null,null,null,null,null,null,null,null,null,null,null,null,null,null,null,null,null,null,null,null,null,null,null,null,null,0]
["AUG232_47",null,null,null,null,null,null,null,null,null,null,null,null,null,null,null,null,null,null,null,null,null,null,null,null,null,null,null,null,null,null,null,null,null,null,null,null,null,null,null,null,0]
["AUG232_48",null,null,null,null,null,null,null,null,null,null,null,null,null,null,null,null,null,null,null,null,null,null,null,null,null,null,null,null,null,null,null,null,null,null,null,null,null,null,null,null,0]
["AUG232_49",null,null,null,null,null,null,null,null,null,null,null,null,null,null,null,null,null,null,null,null,null,null,null,null,null,null,null,null,null,null,null,null,null,null,null,null,null,null,null,null,0]
["AUG232_50",null,null,null,null,null,null,null,null,null,null,null,null,null,null,null,null,null,null,null,null,null,null,null,null,null,null,null,null,null,null,null,null,null,null,null,null,null,null,null,null,0]
["AUG232_51",null,null,null,null,null,null,null,null,null,null,null,null,null,null,null,null,null,null,null,null,null,null,null,null,null,null,null,null,null,null,null,null,null,null,null,null,null,null,null,null,0]
["AUG232_52",null,null,null,null,null,null,null,null,null,null,null,null,null,null,null,null,null,null,null,null,null,null,null,null,null,null,null,null,null,null,null,null,null,null,null,null,null,null,null,null,0]
["AUG232_53",null,null,null,null,null,null,null,null,null,null,null,null,null,null,null,null,null,null,null,null,null,null,null,null,null,null,null,null,null,null,null,null,null,null,null,null,null,null,null,null,0]
["AUG232_54",null,null,null,null,null,null,null,null,null,null,null,null,null,null,null,null,null,null,null,null,null,null,null,null,null,null,null,null,null,null,null,null,null,null,null,null,null,null,null,null,0]
[null,null,null,null,null,null,null,null,null,null,null,null,"Non material projects - [actual]",null,null,null,null,null,null,null,null,null,null,null,null,null,null,null,null,null,null,null,null,null,null,null,null,null,null,null,null,5086226,"2008, 2009, 2010, 2011, 2012, 2013, 2014, 2015"]
[null,null,null,null,null,null,null,null,null,null,null,null,"Non material projects - [forecast]"]
[]
[]
[null,"TABLE 2.3.3 - AUGEX DATA - HV/LV FEEDERS AND DISTRIBUTION SUBSTATIONS"]
[null,"NOTE: DNSP MUST PROVIDE EXPENDITURE INFORMATION ON AN AS INCURRED BASIS."]
[null,"Table 2.3.3.1 Descriptor Metrics"]
[]
[]
[null,null,null,null,null,null,null,null,null,null,null,null,"UNITS ADDED","UNITS UPGRADED",null,null,null,null,null,null,null,null,null,null,null,null,null,null,null,null,null,null,null,null,null,null,"UNITS UPGRADED"]
[null,"PROJECT TYPE",null,null,null,null,null,null,null,null,null,null,{"$f":"CRY","v":"2014-15"},{"$f":"CRY","v":"2014-15"},null,null,null,null,null,null,null,null,null,null,null,"PROJECT TYPE",null,"DNSP NAME","SERVICE CATEGORY","SERVICE SUB-CATEGORY","ASSET CATEGORY","ASSET SUB-CATEGORY","DATA TYPE","MEASUREMENT","DENOMINATION",null,"2014-15"]
["ED_AUG2331_00001","HV Feeder Augmentations - Overhead Lines\n(Circuit Line Length in KM)",null,null,null,null,null,null,null,null,null,null,{"$f":"'[2]2.3 Augex'!M139","v":37.76},{"$f":"'[2]2.3 Augex'!N139","v":273.8},null,null,null,null,null,null,null,null,null,null,"ED_AUG2333_00001","HV Feeder Augmentations - Overhead Lines\n(Circuit Line Length in KM)",null,"DNSP NAME","AUGMENTATION","HV FEEDER PROJECTS","HV FEEDERS","OVERHEAD","DESCRIPTOR METRIC","KM UPGRADED","0's",null,{"$f":"N139","v":273.8}]
["ED_AUG2331_00002","HV Feeder Augmentations - Underground Cables\n(Circuit Line Length in KM)",null,null,null,null,null,null,null,null,null,null,{"$f":"'[2]2.3 Augex'!M140","v":5.52},{"$f":"'[2]2.3 Augex'!N140","v":45.84},null,null,null,null,null,null,null,null,null,null,"ED_AUG2333_00002","HV Feeder Augmentations - Underground Cables\n(Circuit Line Length in KM)",null,"DNSP NAME","AUGMENTATION","HV FEEDER PROJECTS","HV FEEDERS","UNDERGROUND","DESCRIPTOR METRIC","KM UPGRADED","0's",null,{"$f":"N140","v":45.84}]
["ED_AUG2331_00003","LV Feeder Augmentations - Overhead Lines\n(Circuit Line Length in KM)",null,null,null,null,null,null,null,null,null,null,{"$f":"'[2]2.3 Augex'!M141","v":13.55},{"$f":"'[2]2.3 Augex'!N141","v":1.1000000000000001},null,null,null,null,null,null,null,null,null,null,"ED_AUG2333_00003","LV Feeder Augmentations - Overhead Lines\n(Circuit Line Length in KM)",null,"DNSP NAME","AUGMENTATION","LV FEEDER PROJECTS","HV FEEDERS","OVERHEAD","DESCRIPTOR METRIC","KM UPGRADED","0's",null,1.1000000000000001]
["ED_AUG2331_00004","LV Feeder Augmentations - Underground Cables\n(Circuit Line Length in KM)",null,null,null,null,null,null,null,null,null,null,{"$f":"'[2]2.3 Augex'!M142","v":4.3499999999999996},{"$f":"'[2]2.3 Augex'!N142","v":0.2},null,null,null,null,null,null,null,null,null,null,"ED_AUG2333_00004","LV Feeder Augmentations - Underground Cables\n(Circuit Line Length in KM)",null,"DNSP NAME","AUGMENTATION","LV FEEDER PROJECTS","HV FEEDERS","UNDERGROUND","DESCRIPTOR METRIC","KM UPGRADED","0's",null,0.2]
["ED_AUG2331_00005","Distribution Substation Augmentations - Pole Mounted",null,null,null,null,null,null,null,null,null,null,{"$f":"'[2]2.3 Augex'!M143","v":120},{"$f":"'[2]2.3 Augex'!N143","v":229},null,null,null,null,null,null,null,null,null,null,"ED_AUG2333_00005","Distribution Substation Augmentations - Pole Mounted",null,"DNSP NAME","AUGMENTATION","SUBSTATION AUGMENTATIONS","SUBSTATIONS","POLE MOUNTED","DESCRIPTOR METRIC","VOLUME UPGRADED","0's",null,229]
["ED_AUG2331_00006","Distribution Substation Augmentations - Ground Mounted",null,null,null,null,null,null,null,null,null,null,{"$f":"'[2]2.3 Augex'!M144","v":0},{"$f":"'[2]2.3 Augex'!N144","v":6},null,null,null,null,null,null,null,null,null,null,"ED_AUG2333_00006","Distribution Substation Augmentations - Ground Mounted",null,"DNSP NAME","AUGMENTATION","SUBSTATION AUGMENTATIONS","SUBSTATIONS","GROUND MOUNTED","DESCRIPTOR METRIC","VOLUME UPGRADED","0's",null,6]
["ED_AUG2331_00007","Distribution Substation Augmentations - Indoor",null,null,null,null,null,null,null,null,null,null,{"$f":"'[2]2.3 Augex'!M145","v":0},{"$f":"'[2]2.3 Augex'!N145","v":0},null,null,null,null,null,null,null,null,null,null,"ED_AUG2333_00007","Distribution Substation Augmentations - Indoor",null,"DNSP NAME","AUGMENTATION","SUBSTATION AUGMENTATIONS","SUBSTATIONS","INDOOR","DESCRIPTOR METRIC","VOLUME UPGRADED","0's",null,0]
[]
[null,"Table 2.3.3.2 Cost Metrics"]
[]
[]
[null,null,null,null,null,null,null,null,null,null,null,null,"TOTAL DIRECT EXPENDITURE\n($0's)"]
[null,"PROJECT TYPE",null,null,null,null,null,null,null,null,null,null,{"$f":"CRY","v":"2014-15"}]
["ED_AUG2332_00001","HV Feeder Augmentations - Overhead Lines",null,null,null,null,null,null,null,null,null,null,{"$f":"'[2]2.3 Augex'!M152","v":36305924.092980728}]
["ED_AUG2332_00002","HV Feeder Augmentations - Underground Cables",null,null,null,null,null,null,null,null,null,null,{"$f":"'[2]2.3 Augex'!M153","v":8225437.8535923138}]
["ED_AUG2332_00003","HV Feeder Non-Material Projects",null,null,null,null,null,null,null,null,null,null,{"$f":"'[2]2.3 Augex'!M154","v":0}]
["ED_AUG2332_00004","LV Feeder Augmentations - Overhead Lines",null,null,null,null,null,null,null,null,null,null,{"$f":"'[2]2.3 Augex'!M155","v":17246495.834267352}]
["ED_AUG2332_00005","LV Feeder Augmentations - Underground Cables",null,null,null,null,null,null,null,null,null,null,{"$f":"'[2]2.3 Augex'!M156","v":2229624.2375236922}]
["ED_AUG2332_00006","LV Feeder Non-Material Projects",null,null,null,null,null,null,null,null,null,null,{"$f":"'[2]2.3 Augex'!M157","v":0}]
["ED_AUG2332_00007","Distribution Substation Augmentations - Pole Mounted",null,null,null,null,null,null,null,null,null,null,{"$f":"'[2]2.3 Augex'!M158","v":2347137.0689884564}]
["ED_AUG2332_00008","Distribution Substation Augmentations - Ground Mounted",null,null,null,null,null,null,null,null,null,null,{"$f":"'[2]2.3 Augex'!M159","v":300618.54085566429}]
["ED_AUG2332_00009","Distribution Substation Augmentations - Indoor",null,null,null,null,null,null,null,null,null,null,{"$f":"'[2]2.3 Augex'!M160","v":0}]
[]
[]
[]
[]
[]
[]
[]
[null,"TABLE 2.3.4 - AUGEX DATA - TOTAL EXPENDITURE"]
[]
[null,"AUGMENTATION CAPEX",null,null,null,null,null,null,null,null,null,null,"Expenditure ($0's)"]
[null,"AS INCURRED ($0's)",null,null,null,null,null,null,null,null,null,null,{"$f":"CRY","v":"2014-15"}]
["ED_AUG234_00001","Subtransmission Substations, Switching Stations, Zone Substations",null,null,null,null,null,null,null,null,null,null,{"$f":"'[2]2.3 Augex'!M172","v":19871658.981817741}]
["ED_AUG234_00002","Subtransmission Lines",null,null,null,null,null,null,null,null,null,null,{"$f":"'[2]2.3 Augex'!M173","v":20853446.420801282}]
["ED_AUG234_00003","HV Feeders",null,null,null,null,null,null,null,null,null,null,{"$f":"'[2]2.3 Augex'!M174","v":44531361.946573041}]
["ED_AUG234_00004","HV Feeders - Land Purchases and Easements",null,null,null,null,null,null,null,null,null,null,{"$f":"'[2]2.3 Augex'!M175","v":9279513.8177918326}]
["ED_AUG234_00005","Distribution Substations",null,null,null,null,null,null,null,null,null,null,{"$f":"'[2]2.3 Augex'!M176","v":2647755.6098441207}]
["ED_AUG234_00006","Distribution Substations - Land Purchases And Easements",null,null,null,null,null,null,null,null,null,null,{"$f":"'[2]2.3 Augex'!M177","v":0}]
["ED_AUG234_00007","LV Feeders",null,null,null,null,null,null,null,null,null,null,{"$f":"'[2]2.3 Augex'!M178","v":19476120.071791045}]
["ED_AUG234_00008","LV Feeders - Land Purchases And Easements",null,null,null,null,null,null,null,null,null,null,{"$f":"'[2]2.3 Augex'!M179","v":0}]
["ED_AUG234_00009","Other Assets",null,null,null,null,null,null,null,null,null,null,{"$f":"'[2]2.3 Augex'!M180","v":6415803.9144655913}]

{"sheet":"2.5 Connections","index":5,"n_rows":54,"n_cols":10,"rows_kept":54,"cut":false,"hidden":false,"merged":[]}
[null,{"$f":"(LOOKUP(dms_Model,dms_Model_List,dms_Worksheet_List))","v":"REGULATORY REPORTING STATEMENT"}]
[null,"Australian Distribution Co."]
[null,{"$f":"CONCATENATE(\"Category Analysis RIN response \",CRY)","v":"Category Analysis RIN response 2014-15"}]
[null,"2.5 CONNECTIONS"]
[]
[]
[]
[]
[null,"TABLE 2.5.1 DESCRIPTOR METRICS",null,null,null,"TABLE 2.5.2 COST METRICS BY CONNECTION CLASSIFICATION"]
[null,"<<<GROUP-ROW>>>"]
[]
[null,null,null,"VOLUMES AND EXPENDITURE",null,null,null,"EXPENDITURE\n($0's)",null,"VOLUMES\n(000s)"]
[null,"CONNECTION SUBCATEGORY","DESCRIPTOR METRIC",{"$f":"CRY","v":"2014-15"},null,"CONNECTION SUBCATEGORY","CONNECTION CLASSICIATION",{"$f":"CRY","v":"2014-15"},null,{"$f":"CRY","v":"2014-15"}]
["ED_CON251_00001","RESIDENTIAL","Underground connections  (0's)",4933,"ED_CON252_00001","RESIDENTIAL","Simple connection LV",7938870.1241534306,null,8062]
["ED_CON251_00002",null,"Overhead connections  (0's)",3129,"ED_CON252_00002",null,"Complex connection LV",0,null,0]
["ED_CON251_00003",null,"Distribution substation installed (MVA added)",7.758,"ED_CON252_00003",null,"Complex connection HV",0,null,0]
["ED_CON251_00004",null,"Distribution substations installed (0's)",101,"ED_CON252_00004","COMMERCIAL/INDUSTRIAL","Simple connection LV",1068291.2304269788,null,1086]
["ED_CON251_00005",null,"Distribution substation installed (total spend $0's)",1217409,"ED_CON252_00005",null,"Complex connection HV (customer connected at LV, minor HV works)",0,null,0]
["ED_CON251_00006",null,"Augmentation HV (net circuit KM added)",44.53,"ED_CON252_00006",null,"Complex connection HV (customer connected at LV, upstream asset works)",0,null,0]
["ED_CON251_00007",null,"Augmentation HV (total spend $0's)",3206160,"ED_CON252_00007",null,"Complex connection HV (customer connected at HV)",0,null,0]
["ED_CON251_00008",null,"Augmentation LV (net circuit KM added)",9.16,"ED_CON252_00008",null,"Complex connection sub-transmission",0,null,0]
["ED_CON251_00009",null,"Augmentation LV (total spend $0's)",613720,"ED_CON252_00009","SUBDIVISION","Complex connection LV",0,null,0]
["ED_CON251_00010",null,"Mean days to connect residential customer with LV single phase connection (0's)",31.05,"ED_CON252_00010",null,"Complex connection HV (no upstream asset works)",0,null,0]
["ED_CON251_00011",null,"Volume of GSL breaches for residential customers (0's)",0,"ED_CON252_00011",null,"Complex connection HV (with upstream asset works)",0,null,0]
["ED_CON251_00012",null,"Volume of customer complaints relating to connection services (0's)",10,"ED_CON252_00012","EMBEDDED GENERATION","Simple connection LV",0,null,14.225000000000001]
["ED_CON251_00013",null,"GSL payments ($0's)",0,"ED_CON252_00013",null,"Complex connection HV (small capacity)",0,null,0]
["ED_CON251_00014","COMMERCIAL/INDUSTRIAL","Underground connections  (0's)",332,"ED_CON252_00014",null,"Complex connection HV (large capacity)",0,null,0]
["ED_CON251_00015",null,"Overhead connections  (0's)",754]
["ED_CON251_00016",null,"Distribution substation installed (MVA added)",5.4489999999999998]
["ED_CON251_00017",null,"Distribution substations installed (0's)",14]
["ED_CON251_00018",null,"Distribution substation installed total spend ($0's)",531791]
["ED_CON251_00019",null,"Augmentation HV (net circuit KM added)",13.34]
["ED_CON251_00020",null,"Augmentation HV (total spend $0's)",1160580]
["ED_CON251_00021",null,"Augmentation LV (net circuit KM added)",2.74]
["ED_CON251_00022",null,"Augmentation LV (total spend $0's)",183580]
["ED_CON251_00023","SUBDIVISION","Underground connections  (0's)",0]
["ED_CON251_00024",null,"Overhead connections  (0's)",0]
["ED_CON251_00025",null,"Distribution substation installed (MVA added)",0]
["ED_CON251_00026",null,"Distribution substations installed (0's)",0]
["ED_CON251_00027",null,"Distribution substation installed (total spend $0's)",0]
["ED_CON251_00028",null,"Augmentation HV (net circuit KM added)",0]
["ED_CON251_00029",null,"Augmentation HV (total spend $0's)",0]
["ED_CON251_00030",null,"Augmentation LV (net circuit KM added)",0]
["ED_CON251_00031",null,"Augmentation LV (total spend $0's)",0]
["ED_CON251_00032",null,"Cost per lot ($)",0]
["ED_CON251_00033","EMBEDDED GENERATION","Underground connections  (0's)",4482]
["ED_CON251_00034",null,"Overhead connections  (0's)",9743]
["ED_CON251_00035",null,"Distribution substation installed (MVA added)",0.1]
["ED_CON251_00036",null,"Distribution substations installed (0's)",1]
["ED_CON251_00037",null,"Distribution substation installed (total spend $0's)",0]
["ED_CON251_00038",null,"Augmentation HV (net circuit KM added)",0]
["ED_CON251_00039",null,"Augmentation HV (total spend $0's)",0]
["ED_CON251_00040",null,"Augmentation LV (net circuit KM added)",0.57999999999999996]
["ED_CON251_00041",null,"Augmentation LV (total spend $0's)",0]

{"sheet":"2.6 Non-network","index":6,"n_rows":55,"n_cols":14,"rows_kept":55,"cut":false,"hidden":false,"merged":[[33,11,37,11],[13,1,18,1],[13,11,17,11],[18,11,22,11],[23,11,27,11],[28,11,32,11]]}
[null,{"$f":"(LOOKUP(dms_Model,dms_Model_List,dms_Worksheet_List))","v":"REGULATORY REPORTING STATEMENT"}]
[null,"Australian Distribution Co."]
[null,{"$f":"CONCATENATE(\"Category Analysis RIN response \",CRY)","v":"Category Analysis RIN response 2014-15"}]
[null,"2.6 NON NETWORK EXPENDITURE"]
[]
[]
[]
[]
[null,"TABLE 2.6.1 NON-NETWORK EXPENDITURE",null,null,null,null,"TABLE 2.6.2 ANNUAL DESCRIPTOR METRICS - IT & COMMUNICATIONS EXPENDITURE",null,null,null,"TABLE 2.6.3 ANNUAL DESCRIPTOR METRICS - MOTOR VEHICLES"]
[]
[]
[null,null,null,null,"EXPENDITURE\n($0's)",null,null,null,"VOLUMES",null,null,"ASSET REPORTING CATEGORY",null,"VOLUMES / %"]
["ED_NON261_00001","SERVICE SUBCATEGORY","ASSET CATEGORY","ASSET REPORTING CATEGORY",{"$f":"CRY","v":"2014-15"},null,"NON-NETWORK CATEGORY","DESCRIPTOR METRIC",{"$f":"CRY","v":"2014-15"},null,"NON-NETWORK CATEGORY","ASSET CATEGORY","DESCRIPTOR METRIC",{"$f":"CRY","v":"2014-15"}]
["ED_NON261_00002","IT & COMMUNICATIONS","Client device expenditure","Opex ",2816094.5330946459,"ED_NON262_00001","IT & COMMUNICATIONS","Employee numbers",3528,"ED_NON263_00001","MOTOR VEHICLES","CAR","Average kilometres travelled (0's)",26910]
["ED_NON261_00003",null,null,"Capex ",327745.74742032535,"ED_NON262_00002",null,"User numbers",2323.0277879918049,"ED_NON263_00002",null,null,"Number purchased",8]
["ED_NON261_00004",null,"Recurrent expenditure","Opex ",31966322.73207913,"ED_NON262_00003",null,"Number of devices",3589.7126648106314,"ED_NON263_00003",null,null,"Number leased",0]
["ED_NON261_00005",null,null,"Capex ",3076127.9436450535,null,null,null,null,"ED_NON263_00004",null,null,"Number in fleet",128]
["ED_NON261_00006",null,"Non-recurrent expenditure","Opex ",6107621.1241298951,null,null,null,null,"ED_NON263_00005",null,null,"Proportion of total fleet expenditure allocated as regulatory expenditure (%)",0.98099999999999998]
["ED_NON261_00007",null,null,"Capex ",18756420.91665462,null,null,null,null,"ED_NON263_00006",null,"LIGHT COMMERCIAL VEHICLE","Average kilometres travelled (0's)",27219]
["ED_NON261_00008","MOTOR VEHICLES","Car","Opex ",1382246.3566971051,null,null,null,null,"ED_NON263_00007",null,null,"Number purchased",158]
["ED_NON261_00009",null,null,"Capex ",238521.78749999998,null,null,null,null,"ED_NON263_00008",null,null,"Number leased",0]
["ED_NON261_00010",null,"Light commercial vehicle","Opex ",29528155.243256543,null,null,null,null,"ED_NON263_00009",null,null,"Number in fleet",1408]
["ED_NON261_00011",null,null,"Capex ",8870926.8379999995,null,null,null,null,"ED_NON263_00010",null,null,"Proportion of total fleet expenditure allocated as regulatory expenditure (%)",0.98099999999999998]
["ED_NON261_00012",null,"Elevated work platform (LCV)  ","Opex ",0,null,null,null,null,"ED_NON263_00011",null,"ELEVATED WORK PLATFORM (LCV) ","Average kilometres travelled (0's)",0]
["ED_NON261_00013",null,null,"Capex ",0,null,null,null,null,"ED_NON263_00012",null,null,"Number purchased",0]
["ED_NON261_00014",null,"Elevated work platform (HCV)","Opex ",11300569.699939243,null,null,null,null,"ED_NON263_00013",null,null,"Number leased",0]
["ED_NON261_00015",null,null,"Capex ",4825713.2437478267,null,null,null,null,"ED_NON263_00014",null,null,"Number in fleet",0]
["ED_NON261_00016",null,"Heavy commercial vehicle","Opex ",12866437.696548503,null,null,null,null,"ED_NON263_00015",null,null,"Proportion of total fleet expenditure allocated as regulatory expenditure (%)",0.98099999999999998]
["ED_NON261_00017",null,null,"Capex ",1607541.1456521743,null,null,null,null,"ED_NON263_00016",null,"ELEVATED WORK PLATFORM (HCV)","Average kilometres travelled (0's)",19167]
["ED_NON261_00018","BUILDINGS AND PROPERTY","Total buildings and property expenditure","Opex ",29322746.458000008,null,null,null,null,"ED_NON263_00017",null,null,"Number purchased",13]
["ED_NON261_00019",null,null,"Capex ",4353400.0580824995,null,null,null,null,"ED_NON263_00018",null,null,"Number leased",0]
["ED_NON261_00020","OTHER","Other expenditure","Opex ",0,null,null,null,null,"ED_NON263_00019",null,null,"Number in fleet",234]
["ED_NON261_00021",null,null,"Capex ",0,null,null,null,null,"ED_NON263_00020",null,null,"Proportion of total fleet expenditure allocated as regulatory expenditure (%)",0.98099999999999998]
["ED_NON261_00022","OTHER - DNSP nominated","Furniture, fittings, plant and equipment","Opex ",0,null,null,null,null,"ED_NON263_00021",null,"HEAVY COMMERCIAL VEHICLE ","Average kilometres travelled (0's)",14914]
["ED_NON261_00023",null,null,"Capex ",9775777.3105050996,null,null,null,null,"ED_NON263_00022",null,null,"Number purchased",17]
["ED_NON261_00024",null,"Other fleet assets","Opex ",12109105.669037407,null,null,null,null,"ED_NON263_00023",null,null,"Number leased",0]
["ED_NON261_00025",null,null,"Capex ",1093498.0331999999,null,null,null,null,"ED_NON263_00024",null,null,"Number in fleet",503]
["ED_NON261_00026",null,null,"Opex ",0,null,null,null,null,"ED_NON263_00025",null,null,"Proportion of total fleet expenditure allocated as regulatory expenditure (%)",0.98099999999999998]
["ED_NON261_00027",null,null,"Capex ",0]
["ED_NON261_00028",null,null,"Opex ",0]
["ED_NON261_00029",null,null,"Capex ",0]
["ED_NON261_00030",null,null,"Opex ",0]
["ED_NON261_00031",null,null,"Capex ",0]
["ED_NON261_00032",null,null,"Opex ",0]
["ED_NON261_00033",null,null,"Capex ",0]
["ED_NON261_00034",null,null,"Opex ",0]
["ED_NON261_00035",null,null,"Capex ",0]
["ED_NON261_00036",null,null,"Opex ",0]
["ED_NON261_00037",null,null,"Capex ",0]
["ED_NON261_00038",null,null,"Opex ",0]
["ED_NON261_00039",null,null,"Capex ",0]
["ED_NON261_00040",null,null,"Opex ",0]
["ED_NON261_00041",null,null,"Capex ",0]
["ED_NON261_00042",null,null,"Opex ",0]
["ED_NON261_00043",null,null,"Capex ",0]

{"sheet":"2.7 Vegetation management","index":7,"n_rows":226,"n_cols":16,"rows_kept":226,"cut":false,"hidden":false,"merged":[[10,8,21,8]]}
[null,{"$f":"(LOOKUP(dms_Model,dms_Model_List,dms_Worksheet_List))","v":"REGULATORY REPORTING STATEMENT"}]
[null,"Australian Distribution Co."]
[null,{"$f":"CONCATENATE(\"Category Analysis RIN response \",CRY)","v":"Category Analysis RIN response 2014-15"}]
[null,"2.7 VEGETATION MANAGEMENT"]
[]
[null,"TABLE 2.7.3 - DESCRIPTOR METRICS ACROSS ALL ZONES - UNPLANNED VEGETATION EVENTS",null,null,null,null,null,null,"TABLE 2.7.1 - DESCRIPTOR METRICS BY ZONE",null,null,null,null,"TABLE 2.7.2 - EXPENDITURE METRICS BY ZONE"]
[]
[]
[null,null,"VOLUMES",null,null,null,null,null,null,null,null,"VOLUMES",null,null,null,"EXPENDITURE\n($0's)"]
[null,"DESCRIPTOR METRIC",{"$f":"CRY","v":"2014-15"},null,null,null,null,null,"ZONES","ASSET","ASSET SUBCATEGORY",{"$f":"CRY","v":"2014-15"},null,"ZONES","SERVICE SUBCATEGORY",{"$f":"CRY","v":"2014-15"}]
["ED_VEG273_00001","Number of fire starts caused by vegetation grow-ins (NSP responsibility) (0's)",4,null,null,null,null,"ED_VEG271_00001","ZONE 1 - FNC","Route line length within zone (KM)","Urban and CBD",182.48469152380068,"ED_VEG272_00001",{"$f":"I11","v":"ZONE 1 - FNC"},"Tree trimming (excluding hazard trees) "]
["ED_VEG273_00002","Number of fire starts caused by vegetation blow-ins and fall-ins (NSP responsibility) (0's)",28,null,null,null,null,"ED_VEG271_00002",null,null,"Rural",7783.6416100120869,"ED_VEG272_00002",null,"Hazard tree cutting "]
["ED_VEG273_00003","Number of fire starts caused by vegetation grow-ins (other party responsibility) (0's)",0,null,null,null,null,"ED_VEG271_00003",null,"Number of maintenance spans (0's)","Urban and CBD",731.16599999999994,"ED_VEG272_00003",null,"Ground clearance "]
["ED_VEG273_00004","Number of fire starts caused by vegetation blow-ins and fall-ins (other party responsibility) (0's)",4,null,null,null,null,"ED_VEG271_00004",null,null,"Rural",18376.072,"ED_VEG272_00004",null,"Vegetation corridor clearance "]
[null,null,null,null,null,null,null,"ED_VEG271_00005",null,"Total length of maintenance spans (KM)","Urban and CBD",33.942152623426928,"ED_VEG272_00005",null,"Inspection "]
[null,null,null,null,null,null,null,"ED_VEG271_00006",null,null,"Rural",2226.1215004634569,"ED_VEG272_00006",null,"Audit "]
[null,null,null,null,null,null,null,"ED_VEG271_00007",null,"Length of vegetation corridors (KM)","Urban and CBD",0,"ED_VEG272_00007",null,"Contractor liaison expenditure "]
[null,null,null,null,null,null,null,"ED_VEG271_00008",null,null,"Rural",1361.9304578337676,"ED_VEG272_00008",null,"Tree replacement program costs "]
[null,null,null,null,null,null,null,"ED_VEG271_00009",null,"Average number of trees per maintenance span (0's)","Urban and CBD",2.4,"ED_VEG272_00009",null,"Other vegetation management costs not specified in sheet "]
[null,null,null,null,null,null,null,"ED_VEG271_00010",null,null,"Rural",10.5,"ED_VEG272_00010",{"$f":"I23","v":"ZONE 2 - MNC"},"Tree trimming (excluding hazard trees) "]
[null,null,null,null,null,null,null,"ED_VEG271_00011",null,"Average frequency of cutting cycle (years)","Urban and CBD",2.3611111111111112,"ED_VEG272_00011",null,"Hazard tree cutting "]
[null,null,null,null,null,null,null,"ED_VEG271_00012",null,null,"Rural",4.67741935483871,"ED_VEG272_00012",null,"Ground clearance "]
[null,null,null,null,null,null,null,"ED_VEG271_00013","ZONE 2 - MNC","Route line length within zone (KM)","Urban and CBD",216.64196563689785,"ED_VEG272_00013",null,"Vegetation corridor clearance "]
[null,null,null,null,null,null,null,"ED_VEG271_00014",null,null,"Rural",9698.5701835592226,"ED_VEG272_00014",null,"Inspection "]
[null,null,null,null,null,null,null,"ED_VEG271_00015",null,"Number of maintenance spans (0's)","Urban and CBD",793.45500000000004,"ED_VEG272_00015",null,"Audit "]
[null,null,null,null,null,null,null,"ED_VEG271_00016",null,null,"Rural",26656.185999999998,"ED_VEG272_00016",null,"Contractor liaison expenditure "]
[null,null,null,null,null,null,null,"ED_VEG271_00017",null,"Total length of maintenance spans (KM)","Urban and CBD",36.612492192635742,"ED_VEG272_00017",null,"Tree replacement program costs "]
[null,null,null,null,null,null,null,"ED_VEG271_00018",null,null,"Rural",3355.705283511491,"ED_VEG272_00018",null,"Other vegetation management costs not specified in sheet "]
[null,null,null,null,null,null,null,"ED_VEG271_00019",null,"Length of vegetation corridors (KM)","Urban and CBD",0,"ED_VEG272_00019",{"$f":"I35","v":"ZONE 3 - SE"},"Tree trimming (excluding hazard trees) "]
[null,null,null,null,null,null,null,"ED_VEG271_00020",null,null,"Rural",2053.0043989856431,"ED_VEG272_00020",null,"Hazard tree cutting "]
[null,null,null,null,null,null,null,"ED_VEG271_00021",null,"Average number of trees per maintenance span (0's)","Urban and CBD",2.4,"ED_VEG272_00021",null,"Ground clearance "]
[null,null,null,null,null,null,null,"ED_VEG271_00022",null,null,"Rural",10.5,"ED_VEG272_00022",null,"Vegetation corridor clearance "]
[null,null,null,null,null,null,null,"ED_VEG271_00023",null,"Average frequency of cutting cycle (years)","Urban and CBD",3.3333333333333335,"ED_VEG272_00023",null,"Inspection "]
[null,null,null,null,null,null,null,"ED_VEG271_00024",null,null,"Rural",4.2307692307692308,"ED_VEG272_00024",null,"Audit "]
[null,null,null,null,null,null,null,"ED_VEG271_00025","ZONE 3 - SE","Route line length within zone (KM)","Urban and CBD",113.66563831893492,"ED_VEG272_00025",null,"Contractor liaison expenditure "]
[null,null,null,null,null,null,null,"ED_VEG271_00026",null,null,"Rural",18478.116246076366,"ED_VEG272_00026",null,"Tree replacement program costs "]
[null,null,null,null,null,null,null,"ED_VEG271_00027",null,"Number of maintenance spans (0's)","Urban and CBD",792.87,"ED_VEG272_00027",null,"Other vegetation management costs not specified in sheet "]
[null,null,null,null,null,null,null,"ED_VEG271_00028",null,null,"Rural",29693.985000000001,"ED_VEG272_00028",{"$f":"I47","v":"ZONE 4 - STH & CW"},"Tree trimming (excluding hazard trees) "]
[null,null,null,null,null,null,null,"ED_VEG271_00029",null,"Total length of maintenance spans (KM)","Urban and CBD",36.486669900378111,"ED_VEG272_00029",null,"Hazard tree cutting "]
[null,null,null,null,null,null,null,"ED_VEG271_00030",null,null,"Rural",4711.9196427494735,"ED_VEG272_00030",null,"Ground clearance "]
[null,null,null,null,null,null,null,"ED_VEG271_00031",null,"Length of vegetation corridors (KM)","Urban and CBD",0,"ED_VEG272_00031",null,"Vegetation corridor clearance "]
[null,null,null,null,null,null,null,"ED_VEG271_00032",null,null,"Rural",2882.7298397637737,"ED_VEG272_00032",null,"Inspection "]
[null,null,null,null,null,null,null,"ED_VEG271_00033",null,"Average number of trees per maintenance span (0's)","Urban and CBD",2.4,"ED_VEG272_00033",null,"Audit "]
[null,null,null,null,null,null,null,"ED_VEG271_00034",null,null,"Rural",7.7,"ED_VEG272_00034",null,"Contractor liaison expenditure "]
[null,null,null,null,null,null,null,"ED_VEG271_00035",null,"Average frequency of cutting cycle (years)","Urban and CBD",1.8395061728395061,"ED_VEG272_00035",null,"Tree replacement program costs "]
[null,null,null,null,null,null,null,"ED_VEG271_00036",null,null,"Rural",3.683098591549296,"ED_VEG272_00036",null,"Other vegetation management costs not specified in sheet "]
[null,null,null,null,null,null,null,"ED_VEG271_00037","ZONE 4 - STH & CW","Route line length within zone (KM)","Urban and CBD",445.34612127469944,"ED_VEG272_00037",{"$f":"I59","v":"ZONE 5 - NTH & NW"},"Tree trimming (excluding hazard trees) "]
[null,null,null,null,null,null,null,"ED_VEG271_00038",null,null,"Rural",42655.912769858725,"ED_VEG272_00038",null,"Hazard tree cutting "]
[null,null,null,null,null,null,null,"ED_VEG271_00039",null,"Number of maintenance spans (0's)","Urban and CBD",1481.568,"ED_VEG272_00039",null,"Ground clearance "]
[null,null,null,null,null,null,null,"ED_VEG271_00040",null,null,"Rural",53679.747000000003,"ED_VEG272_00040",null,"Vegetation corridor clearance "]
[null,null,null,null,null,null,null,"ED_VEG271_00041",null,"Total length of maintenance spans (KM)","Urban and CBD",78.380917344347097,"ED_VEG272_00041",null,"Inspection "]
[null,null,null,null,null,null,null,"ED_VEG271_00042",null,null,"Rural",9341.6448965990603,"ED_VEG272_00042",null,"Audit "]
[null,null,null,null,null,null,null,"ED_VEG271_00043",null,"Length of vegetation corridors (KM)","Urban and CBD",0,"ED_VEG272_00043",null,"Contractor liaison expenditure "]
[null,null,null,null,null,null,null,"ED_VEG271_00044",null,null,"Rural",5715.1735465907414,"ED_VEG272_00044",null,"Tree replacement program costs "]
[null,null,null,null,null,null,null,"ED_VEG271_00045",null,"Average number of trees per maintenance span (0's)","Urban and CBD",2.4,"ED_VEG272_00045",null,"Other vegetation management costs not specified in sheet "]
[null,null,null,null,null,null,null,"ED_VEG271_00046",null,null,"Rural",2.4,"ED_VEG272_00046",{"$f":"I71","v":"ZONE 6 - FW"},"Tree trimming (excluding hazard trees) "]
[null,null,null,null,null,null,null,"ED_VEG271_00047",null,"Average frequency of cutting cycle (years)","Urban and CBD",2.0060975609756095,"ED_VEG272_00047",null,"Hazard tree cutting "]
[null,null,null,null,null,null,null,"ED_VEG271_00048",null,null,"Rural",5.9013157894736841,"ED_VEG272_00048",null,"Ground clearance "]
[null,null,null,null,null,null,null,"ED_VEG271_00049","ZONE 5 - NTH & NW","Route line length within zone (KM)","Urban and CBD",189.20800846762239,"ED_VEG272_00049",null,"Vegetation corridor clearance "]
[null,null,null,null,null,null,null,"ED_VEG271_00050",null,null,"Rural",45592.189071427805,"ED_VEG272_00050",null,"Inspection "]
[null,null,null,null,null,null,null,"ED_VEG271_00051",null,"Number of maintenance spans (0's)","Urban and CBD",1317.9640000000002,"ED_VEG272_00051",null,"Audit "]
[null,null,null,null,null,null,null,"ED_VEG271_00052",null,null,"Rural",61817.167999999998,"ED_VEG272_00052",null,"Contractor liaison expenditure "]
[null,null,null,null,null,null,null,"ED_VEG271_00053",null,"Total length of maintenance spans (KM)","Urban and CBD",63.19547482818588,"ED_VEG272_00053",null,"Tree replacement program costs "]
[null,null,null,null,null,null,null,"ED_VEG271_00054",null,null,"Rural",10850.940998999817,"ED_VEG272_00054",null,"Other vegetation management costs not specified in sheet "]
[null,null,null,null,null,null,null,"ED_VEG271_00055",null,"Length of vegetation corridors (KM)","Urban and CBD",0,"ED_VEG272_00055",{"$f":"I83","v":"ZONE 7 - FNC - (LV, Subt)"},"Tree trimming (excluding hazard trees) "]
[null,null,null,null,null,null,null,"ED_VEG271_00056",null,null,"Rural",6638.5536636784364,"ED_VEG272_00056",null,"Hazard tree cutting "]
[null,null,null,null,null,null,null,"ED_VEG271_00057",null,"Average number of trees per maintenance span (0's)","Urban and CBD",2.4,"ED_VEG272_00057",null,"Ground clearance "]
[null,null,null,null,null,null,null,"ED_VEG271_00058",null,null,"Rural",10.3,"ED_VEG272_00058",null,"Vegetation corridor clearance "]
[null,null,null,null,null,null,null,"ED_VEG271_00059",null,"Average frequency of cutting cycle (years)","Urban and CBD",2.125,"ED_VEG272_00059",null,"Inspection "]
[null,null,null,null,null,null,null,"ED_VEG271_00060",null,null,"Rural",3.6351931330472103,"ED_VEG272_00060",null,"Audit "]
[null,null,null,null,null,null,null,"ED_VEG271_00061","ZONE 6 - FW","Route line length within zone (KM)","Urban and CBD",6.4272861048548986,"ED_VEG272_00061",null,"Contractor liaison expenditure "]
[null,null,null,null,null,null,null,"ED_VEG271_00062",null,null,"Rural",17618.828465568848,"ED_VEG272_00062",null,"Tree replacement program costs "]
[null,null,null,null,null,null,null,"ED_VEG271_00063",null,"Number of maintenance spans (0's)","Urban and CBD",31.598000000000003,"ED_VEG272_00063",null,"Other vegetation management costs not specified in sheet "]
[null,null,null,null,null,null,null,"ED_VEG271_00064",null,null,"Rural",15288.34,"ED_VEG272_00064",{"$f":"I95","v":"ZONE 8 - MNC - (LV, Subt)"},"Tree trimming (excluding hazard trees) "]
[null,null,null,null,null,null,null,"ED_VEG271_00065",null,"Total length of maintenance spans (KM)","Urban and CBD",1.6646671011574188,"ED_VEG272_00065",null,"Hazard tree cutting "]
[null,null,null,null,null,null,null,"ED_VEG271_00066",null,null,"Rural",3840.9046054940086,"ED_VEG272_00066",null,"Ground clearance "]
[null,null,null,null,null,null,null,"ED_VEG271_00067",null,"Length of vegetation corridors (KM)","Urban and CBD",0,"ED_VEG272_00067",null,"Vegetation corridor clearance "]
[null,null,null,null,null,null,null,"ED_VEG271_00068",null,null,"Rural",2349.8470172302946,"ED_VEG272_00068",null,"Inspection "]
[null,null,null,null,null,null,null,"ED_VEG271_00069",null,"Average number of trees per maintenance span (0's)","Urban and CBD",2.4,"ED_VEG272_00069",null,"Audit "]
[null,null,null,null,null,null,null,"ED_VEG271_00070",null,null,"Rural",4,"ED_VEG272_00070",null,"Contractor liaison expenditure "]
[null,null,null,null,null,null,null,"ED_VEG271_00071",null,"Average frequency of cutting cycle (years)","Urban and CBD",2.1052631578947367,"ED_VEG272_00071",null,"Tree replacement program costs "]
[null,null,null,null,null,null,null,"ED_VEG271_00072",null,null,"Rural",5.5686274509803919,"ED_VEG272_00072",null,"Other vegetation management costs not specified in sheet "]
[null,null,null,null,null,null,null,"ED_VEG271_00073","ZONE 7 - FNC - (LV, Subt)","Route line length within zone (KM)","Urban and CBD",3406.5046540000003,"ED_VEG272_00073",{"$f":"I107","v":"ZONE 9 - SE - (LV, Subt)"},"Tree trimming (excluding hazard trees) "]
[null,null,null,null,null,null,null,"ED_VEG271_00074",null,null,"Rural",0,"ED_VEG272_00074",null,"Hazard tree cutting "]
[null,null,null,null,null,null,null,"ED_VEG271_00075",null,"Number of maintenance spans (0's)","Urban and CBD",14710.398999999999,"ED_VEG272_00075",null,"Ground clearance "]
[null,null,null,null,null,null,null,"ED_VEG271_00076",null,null,"Rural",0,"ED_VEG272_00076",null,"Vegetation corridor clearance "]
[null,null,null,null,null,null,null,"ED_VEG271_00077",null,"Total length of maintenance spans (KM)","Urban and CBD",974.26033104400005,"ED_VEG272_00077",null,"Inspection "]
[null,null,null,null,null,null,null,"ED_VEG271_00078",null,null,"Rural",0,"ED_VEG272_00078",null,"Audit "]
[null,null,null,null,null,null,null,"ED_VEG271_00079",null,"Length of vegetation corridors (KM)","Urban and CBD",596.04779812413221,"ED_VEG272_00079",null,"Contractor liaison expenditure "]
[null,null,null,null,null,null,null,"ED_VEG271_00080",null,null,"Rural",0,"ED_VEG272_00080",null,"Tree replacement program costs "]
[null,null,null,null,null,null,null,"ED_VEG271_00081",null,"Average number of trees per maintenance span (0's)","Urban and CBD",2.4,"ED_VEG272_00081",null,"Other vegetation management costs not specified in sheet "]
[null,null,null,null,null,null,null,"ED_VEG271_00082",null,null,"Rural",10.5,"ED_VEG272_00082",{"$f":"I119","v":"ZONE 10 - STH & CW - (LV, Subt)"},"Tree trimming (excluding hazard trees) "]
[null,null,null,null,null,null,null,"ED_VEG271_00083",null,"Average frequency of cutting cycle (years)","Urban and CBD",2.3611111111111112,"ED_VEG272_00083",null,"Hazard tree cutting "]
[null,null,null,null,null,null,null,"ED_VEG271_00084",null,null,"Rural",4.67741935483871,"ED_VEG272_00084",null,"Ground clearance "]
[null,null,null,null,null,null,null,"ED_VEG271_00085","ZONE 8 - MNC - (LV, Subt)","Route line length within zone (KM)","Urban and CBD",3834.3938054999999,"ED_VEG272_00085",null,"Vegetation corridor clearance "]
[null,null,null,null,null,null,null,"ED_VEG271_00086",null,null,"Rural",0,"ED_VEG272_00086",null,"Inspection "]
[null,null,null,null,null,null,null,"ED_VEG271_00087",null,"Number of maintenance spans (0's)","Urban and CBD",17363.085999999999,"ED_VEG272_00087",null,"Audit "]
[null,null,null,null,null,null,null,"ED_VEG271_00088",null,null,"Rural",0,"ED_VEG272_00088",null,"Contractor liaison expenditure "]
[null,null,null,null,null,null,null,"ED_VEG271_00089",null,"Total length of maintenance spans (KM)","Urban and CBD",1326.7002567029999,"ED_VEG272_00089",null,"Tree replacement program costs "]
[null,null,null,null,null,null,null,"ED_VEG271_00090",null,null,"Rural",0,"ED_VEG272_00090",null,"Other vegetation management costs not specified in sheet "]
[null,null,null,null,null,null,null,"ED_VEG271_00091",null,"Length of vegetation corridors (KM)","Urban and CBD",811.66885439250291,"ED_VEG272_00091",{"$f":"I131","v":"ZONE 11 - NTH & NW - (LV, Subt)"},"Tree trimming (excluding hazard trees) "]
[null,null,null,null,null,null,null,"ED_VEG271_00092",null,null,"Rural",0,"ED_VEG272_00092",null,"Hazard tree cutting "]
[null,null,null,null,null,null,null,"ED_VEG271_00093",null,"Average number of trees per maintenance span (0's)","Urban and CBD",2.4,"ED_VEG272_00093",null,"Ground clearance "]
[null,null,null,null,null,null,null,"ED_VEG271_00094",null,null,"Rural",10.5,"ED_VEG272_00094",null,"Vegetation corridor clearance "]
[null,null,null,null,null,null,null,"ED_VEG271_00095",null,"Average frequency of cutting cycle (years)","Urban and CBD",3.3333333333333335,"ED_VEG272_00095",null,"Inspection "]
[null,null,null,null,null,null,null,"ED_VEG271_00096",null,null,"Rural",4.2307692307692308,"ED_VEG272_00096",null,"Audit "]
[null,null,null,null,null,null,null,"ED_VEG271_00097","ZONE 9 - SE - (LV, Subt)","Route line length within zone (KM)","Urban and CBD",3952.8564356000002,"ED_VEG272_00097",null,"Contractor liaison expenditure "]
[null,null,null,null,null,null,null,"ED_VEG271_00098",null,null,"Rural",0,"ED_VEG272_00098",null,"Tree replacement program costs "]
[null,null,null,null,null,null,null,"ED_VEG271_00099",null,"Number of maintenance spans (0's)","Urban and CBD",14684.13,"ED_VEG272_00099",null,"Other vegetation management costs not specified in sheet "]
[null,null,null,null,null,null,null,"ED_VEG271_00100",null,null,"Rural",0,"ED_VEG272_00100",{"$f":"I143","v":"ZONE 12 - FW - (LV, Subt)"},"Tree trimming (excluding hazard trees) "]
[null,null,null,null,null,null,null,"ED_VEG271_00101",null,"Total length of maintenance spans (KM)","Urban and CBD",1007.9783910780001,"ED_VEG272_00101",null,"Hazard tree cutting "]
[null,null,null,null,null,null,null,"ED_VEG271_00102",null,null,"Rural",0,"ED_VEG272_00102",null,"Ground clearance "]
[null,null,null,null,null,null,null,"ED_VEG271_00103",null,"Length of vegetation corridors (KM)","Urban and CBD",616.67634554609992,"ED_VEG272_00103",null,"Vegetation corridor clearance "]
[null,null,null,null,null,null,null,"ED_VEG271_00104",null,null,"Rural",0,"ED_VEG272_00104",null,"Inspection "]
[null,null,null,null,null,null,null,"ED_VEG271_00105",null,"Average number of trees per maintenance span (0's)","Urban and CBD",2.4,"ED_VEG272_00105",null,"Audit "]
[null,null,null,null,null,null,null,"ED_VEG271_00106",null,null,"Rural",7.7,"ED_VEG272_00106",null,"Contractor liaison expenditure "]
[null,null,null,null,null,null,null,"ED_VEG271_00107",null,"Average frequency of cutting cycle (years)","Urban and CBD",1.8395061728395061,"ED_VEG272_00107",null,"Tree replacement program costs "]
[null,null,null,null,null,null,null,"ED_VEG271_00108",null,null,"Rural",3.683098591549296,"ED_VEG272_00108",null,"Other vegetation management costs not specified in sheet "]
[null,null,null,null,null,null,null,"ED_VEG271_00109","ZONE 10 - STH & CW - (LV, Subt)","Route line length within zone (KM)","Urban and CBD",9188.3600800000004,"ED_VEG272_00109",{"$f":"I155","v":"ZONE 13"},"Tree trimming (excluding hazard trees) "]
[null,null,null,null,null,null,null,"ED_VEG271_00110",null,null,"Rural",0,"ED_VEG272_00110",null,"Hazard tree cutting "]
[null,null,null,null,null,null,null,"ED_VEG271_00111",null,"Number of maintenance spans (0's)","Urban and CBD",31663.785,"ED_VEG272_00111",null,"Ground clearance "]
[null,null,null,null,null,null,null,"ED_VEG271_00112",null,null,"Rural",0,"ED_VEG272_00112",null,"Vegetation corridor clearance "]
[null,null,null,null,null,null,null,"ED_VEG271_00113",null,"Total length of maintenance spans (KM)","Urban and CBD",2012.2508575200002,"ED_VEG272_00113",null,"Inspection "]
[null,null,null,null,null,null,null,"ED_VEG271_00114",null,null,"Rural",0,"ED_VEG272_00114",null,"Audit "]
[null,null,null,null,null,null,null,"ED_VEG271_00115",null,"Length of vegetation corridors (KM)","Urban and CBD",1231.0854241729619,"ED_VEG272_00115",null,"Contractor liaison expenditure "]
[null,null,null,null,null,null,null,"ED_VEG271_00116",null,null,"Rural",0,"ED_VEG272_00116",null,"Tree replacement program costs "]
[null,null,null,null,null,null,null,"ED_VEG271_00117",null,"Average number of trees per maintenance span (0's)","Urban and CBD",2.4,"ED_VEG272_00117",null,"Other vegetation management costs not specified in sheet "]
[null,null,null,null,null,null,null,"ED_VEG271_00118",null,null,"Rural",2.4,"ED_VEG272_00118",{"$f":"I167","v":"ZONE 14"},"Tree trimming (excluding hazard trees) "]
[null,null,null,null,null,null,null,"ED_VEG271_00119",null,"Average frequency of cutting cycle (years)","Urban and CBD",2.0060975609756095,"ED_VEG272_00119",null,"Hazard tree cutting "]
[null,null,null,null,null,null,null,"ED_VEG271_00120",null,null,"Rural",5.9013157894736841,"ED_VEG272_00120",null,"Ground clearance "]
[null,null,null,null,null,null,null,"ED_VEG271_00121","ZONE 11 - NTH & NW - (LV, Subt)","Route line length within zone (KM)","Urban and CBD",8170.4072200000001,"ED_VEG272_00121",null,"Vegetation corridor clearance "]
[null,null,null,null,null,null,null,"ED_VEG271_00122",null,null,"Rural",0,"ED_VEG272_00122",null,"Inspection "]
[null,null,null,null,null,null,null,"ED_VEG271_00123",null,"Number of maintenance spans (0's)","Urban and CBD",28193.144,"ED_VEG272_00123",null,"Audit "]
[null,null,null,null,null,null,null,"ED_VEG271_00124",null,null,"Rural",0,"ED_VEG272_00124",null,"Contractor liaison expenditure "]
[null,null,null,null,null,null,null,"ED_VEG271_00125",null,"Total length of maintenance spans (KM)","Urban and CBD",1944.5569183599998,"ED_VEG272_00125",null,"Tree replacement program costs "]
[null,null,null,null,null,null,null,"ED_VEG271_00126",null,null,"Rural",0,"ED_VEG272_00126",null,"Other vegetation management costs not specified in sheet "]
[null,null,null,null,null,null,null,"ED_VEG271_00127",null,"Length of vegetation corridors (KM)","Urban and CBD",1189.6705968450033,"ED_VEG272_00127",{"$f":"I179","v":"ZONE 15"},"Tree trimming (excluding hazard trees) "]
[null,null,null,null,null,null,null,"ED_VEG271_00128",null,null,"Rural",0,"ED_VEG272_00128",null,"Hazard tree cutting "]
[null,null,null,null,null,null,null,"ED_VEG271_00129",null,"Average number of trees per maintenance span (0's)","Urban and CBD",2.4,"ED_VEG272_00129",null,"Ground clearance "]
[null,null,null,null,null,null,null,"ED_VEG271_00130",null,null,"Rural",10.3,"ED_VEG272_00130",null,"Vegetation corridor clearance "]
[null,null,null,null,null,null,null,"ED_VEG271_00131",null,"Average frequency of cutting cycle (years)","Urban and CBD",2.125,"ED_VEG272_00131",null,"Inspection "]
[null,null,null,null,null,null,null,"ED_VEG271_00132",null,null,"Rural",3.6351931330472103,"ED_VEG272_00132",null,"Audit "]
[null,null,null,null,null,null,null,"ED_VEG271_00133","ZONE 12 - FW - (LV, Subt)","Route line length within zone (KM)","Urban and CBD",3152.7923694000001,"ED_VEG272_00133",null,"Contractor liaison expenditure "]
[null,null,null,null,null,null,null,"ED_VEG271_00134",null,null,"Rural",0,"ED_VEG272_00134",null,"Tree replacement program costs "]
[null,null,null,null,null,null,null,"ED_VEG271_00135",null,"Number of maintenance spans (0's)","Urban and CBD",6672.085,"ED_VEG272_00135",null,"Other vegetation management costs not specified in sheet "]
[null,null,null,null,null,null,null,"ED_VEG271_00136",null,null,"Rural",0,"ED_VEG272_00136",{"$f":"I191","v":"ZONE 16"},"Tree trimming (excluding hazard trees) "]
[null,null,null,null,null,null,null,"ED_VEG271_00137",null,"Total length of maintenance spans (KM)","Urban and CBD",687.30873652920002,"ED_VEG272_00137",null,"Hazard tree cutting "]
[null,null,null,null,null,null,null,"ED_VEG271_00138",null,null,"Rural",0,"ED_VEG272_00138",null,"Ground clearance "]
[null,null,null,null,null,null,null,"ED_VEG271_00139",null,"Length of vegetation corridors (KM)","Urban and CBD",420.49218877742373,"ED_VEG272_00139",null,"Vegetation corridor clearance "]
[null,null,null,null,null,null,null,"ED_VEG271_00140",null,null,"Rural",0,"ED_VEG272_00140",null,"Inspection "]
[null,null,null,null,null,null,null,"ED_VEG271_00141",null,"Average number of trees per maintenance span (0's)","Urban and CBD",2.4,"ED_VEG272_00141",null,"Audit "]
[null,null,null,null,null,null,null,"ED_VEG271_00142",null,null,"Rural",4,"ED_VEG272_00142",null,"Contractor liaison expenditure "]
[null,null,null,null,null,null,null,"ED_VEG271_00143",null,"Average frequency of cutting cycle (years)","Urban and CBD",2.1052631578947367,"ED_VEG272_00143",null,"Tree replacement program costs "]
[null,null,null,null,null,null,null,"ED_VEG271_00144",null,null,"Rural",5.5686274509803919,"ED_VEG272_00144",null,"Other vegetation management costs not specified in sheet "]
[null,null,null,null,null,null,null,"ED_VEG271_00145","ZONE 13","Route line length within zone (KM)","Urban and CBD",null,"ED_VEG272_00145",{"$f":"I203","v":"ZONE 17"},"Tree trimming (excluding hazard trees) "]
[null,null,null,null,null,null,null,"ED_VEG271_00146",null,null,"Rural",null,"ED_VEG272_00146",null,"Hazard tree cutting "]
[null,null,null,null,null,null,null,"ED_VEG271_00147",null,"Number of maintenance spans (0's)","Urban and CBD",null,"ED_VEG272_00147",null,"Ground clearance "]
[null,null,null,null,null,null,null,"ED_VEG271_00148",null,null,"Rural",null,"ED_VEG272_00148",null,"Vegetation corridor clearance "]
[null,null,null,null,null,null,null,"ED_VEG271_00149",null,"Total length of maintenance spans (KM)","Urban and CBD",null,"ED_VEG272_00149",null,"Inspection "]
[null,null,null,null,null,null,null,"ED_VEG271_00150",null,null,"Rural",null,"ED_VEG272_00150",null,"Audit "]
[null,null,null,null,null,null,null,"ED_VEG271_00151",null,"Length of vegetation corridors (KM)","Urban and CBD",null,"ED_VEG272_00151",null,"Contractor liaison expenditure "]
[null,null,null,null,null,null,null,"ED_VEG271_00152",null,null,"Rural",null,"ED_VEG272_00152",null,"Tree replacement program costs "]
[null,null,null,null,null,null,null,"ED_VEG271_00153",null,"Average number of trees per maintenance span (0's)","Urban and CBD",null,"ED_VEG272_00153",null,"Other vegetation management costs not specified in sheet "]
[null,null,null,null,null,null,null,"ED_VEG271_00154",null,null,"Rural",null,"ED_VEG272_00154",{"$f":"I215","v":"ZONE 18"},"Tree trimming (excluding hazard trees) "]
[null,null,null,null,null,null,null,"ED_VEG271_00155",null,"Average frequency of cutting cycle (years)","Urban and CBD",null,"ED_VEG272_00155",null,"Hazard tree cutting "]
[null,null,null,null,null,null,null,"ED_VEG271_00156",null,null,"Rural",null,"ED_VEG272_00156",null,"Ground clearance "]
[null,null,null,null,null,null,null,"ED_VEG271_00157","ZONE 14","Route line length within zone (KM)","Urban and CBD",null,"ED_VEG272_00157",null,"Vegetation corridor clearance "]
[null,null,null,null,null,null,null,"ED_VEG271_00158",null,null,"Rural",null,"ED_VEG272_00158",null,"Inspection "]
[null,null,null,null,null,null,null,"ED_VEG271_00159",null,"Number of maintenance spans (0's)","Urban and CBD",null,"ED_VEG272_00159",null,"Audit "]
[null,null,null,null,null,null,null,"ED_VEG271_00160",null,null,"Rural",null,"ED_VEG272_00160",null,"Contractor liaison expenditure "]
[null,null,null,null,null,null,null,"ED_VEG271_00161",null,"Total length of maintenance spans (KM)","Urban and CBD",null,"ED_VEG272_00161",null,"Tree replacement program costs "]
[null,null,null,null,null,null,null,"ED_VEG271_00162",null,null,"Rural",null,"ED_VEG272_00162",null,"Other vegetation management costs not specified in sheet "]
[null,null,null,null,null,null,null,"ED_VEG271_00163",null,"Length of vegetation corridors (KM)","Urban and CBD"]
[null,null,null,null,null,null,null,"ED_VEG271_00164",null,null,"Rural"]
[null,null,null,null,null,null,null,"ED_VEG271_00165",null,"Average number of trees per maintenance span (0's)","Urban and CBD"]
[null,null,null,null,null,null,null,"ED_VEG271_00166",null,null,"Rural"]
[null,null,null,null,null,null,null,"ED_VEG271_00167",null,"Average frequency of cutting cycle (years)","Urban and CBD"]
[null,null,null,null,null,null,null,"ED_VEG271_00168",null,null,"Rural"]
[null,null,null,null,null,null,null,"ED_VEG271_00169","ZONE 15","Route line length within zone (KM)","Urban and CBD"]
[null,null,null,null,null,null,null,"ED_VEG271_00170",null,null,"Rural"]
[null,null,null,null,null,null,null,"ED_VEG271_00171",null,"Number of maintenance spans (0's)","Urban and CBD"]
[null,null,null,null,null,null,null,"ED_VEG271_00172",null,null,"Rural"]
[null,null,null,null,null,null,null,"ED_VEG271_00173",null,"Total length of maintenance spans (KM)","Urban and CBD"]
[null,null,null,null,null,null,null,"ED_VEG271_00174",null,null,"Rural"]
[null,null,null,null,null,null,null,"ED_VEG271_00175",null,"Length of vegetation corridors (KM)","Urban and CBD"]
[null,null,null,null,null,null,null,"ED_VEG271_00176",null,null,"Rural"]
[null,null,null,null,null,null,null,"ED_VEG271_00177",null,"Average number of trees per maintenance span (0's)","Urban and CBD"]
[null,null,null,null,null,null,null,"ED_VEG271_00178",null,null,"Rural"]
[null,null,null,null,null,null,null,"ED_VEG271_00179",null,"Average frequency of cutting cycle (years)","Urban and CBD"]
[null,null,null,null,null,null,null,"ED_VEG271_00180",null,null,"Rural"]
[null,null,null,null,null,null,null,"ED_VEG271_00181","ZONE 16","Route line length within zone (KM)","Urban and CBD"]
[null,null,null,null,null,null,null,"ED_VEG271_00182",null,null,"Rural"]
[null,null,null,null,null,null,null,"ED_VEG271_00183",null,"Number of maintenance spans (0's)","Urban and CBD"]
[null,null,null,null,null,null,null,"ED_VEG271_00184",null,null,"Rural"]
[null,null,null,null,null,null,null,"ED_VEG271_00185",null,"Total length of maintenance spans (KM)","Urban and CBD"]
[null,null,null,null,null,null,null,"ED_VEG271_00186",null,null,"Rural"]
[null,null,null,null,null,null,null,"ED_VEG271_00187",null,"Length of vegetation corridors (KM)","Urban and CBD"]
[null,null,null,null,null,null,null,"ED_VEG271_00188",null,null,"Rural"]
[null,null,null,null,null,null,null,"ED_VEG271_00189",null,"Average number of trees per maintenance span (0's)","Urban and CBD"]
[null,null,null,null,null,null,null,"ED_VEG271_00190",null,null,"Rural"]
[null,null,null,null,null,null,null,"ED_VEG271_00191",null,"Average frequency of cutting cycle (years)","Urban and CBD"]
[null,null,null,null,null,null,null,"ED_VEG271_00192",null,null,"Rural"]
[null,null,null,null,null,null,null,"ED_VEG271_00193","ZONE 17","Route line length within zone (KM)","Urban and CBD"]
[null,null,null,null,null,null,null,"ED_VEG271_00194",null,null,"Rural"]
[null,null,null,null,null,null,null,"ED_VEG271_00195",null,"Number of maintenance spans (0's)","Urban and CBD"]
[null,null,null,null,null,null,null,"ED_VEG271_00196",null,null,"Rural"]
[null,null,null,null,null,null,null,"ED_VEG271_00197",null,"Total length of maintenance spans (KM)","Urban and CBD"]
[null,null,null,null,null,null,null,"ED_VEG271_00198",null,null,"Rural"]
[null,null,null,null,null,null,null,"ED_VEG271_00199",null,"Length of vegetation corridors (KM)","Urban and CBD"]
[null,null,null,null,null,null,null,"ED_VEG271_00200",null,null,"Rural"]
[null,null,null,null,null,null,null,"ED_VEG271_00201",null,"Average number of trees per maintenance span (0's)","Urban and CBD"]
[null,null,null,null,null,null,null,"ED_VEG271_00202",null,null,"Rural"]
[null,null,null,null,null,null,null,"ED_VEG271_00203",null,"Average frequency of cutting cycle (years)","Urban and CBD"]
[null,null,null,null,null,null,null,"ED_VEG271_00204",null,null,"Rural"]
[null,null,null,null,null,null,null,"ED_VEG271_00205","ZONE 18","Route line length within zone (KM)","Urban and CBD"]
[null,null,null,null,null,null,null,"ED_VEG271_00206",null,null,"Rural"]
[null,null,null,null,null,null,null,"ED_VEG271_00207",null,"Number of maintenance spans (0's)","Urban and CBD"]
[null,null,null,null,null,null,null,"ED_VEG271_00208",null,null,"Rural"]
[null,null,null,null,null,null,null,"ED_VEG271_00209",null,"Total length of maintenance spans (KM)","Urban and CBD"]
[null,null,null,null,null,null,null,"ED_VEG271_00210",null,null,"Rural"]
[null,null,null,null,null,null,null,"ED_VEG271_00211",null,"Length of vegetation corridors (KM)","Urban and CBD"]
[null,null,null,null,null,null,null,"ED_VEG271_00212",null,null,"Rural"]
[null,null,null,null,null,null,null,"ED_VEG271_00213",null,"Average number of trees per maintenance span (0's)","Urban and CBD"]
[null,null,null,null,null,null,null,"ED_VEG271_00214",null,null,"Rural"]
[null,null,null,null,null,null,null,"ED_VEG271_00215",null,"Average frequency of cutting cycle (years)","Urban and CBD"]
[null,null,null,null,null,null,null,"ED_VEG271_00216",null,null,"Rural"]

{"sheet":"2.8 Maintenance","index":8,"n_rows":40,"n_cols":14,"rows_kept":40,"cut":false,"hidden":false,"merged":[[10,7,11,7],[10,8,11,8],[29,1,30,1],[29,10,30,10],[12,10,13,10],[16,10,17,10],[18,10,19,10],[20,10,23,10],[24,10,27,10]]}
[null,{"$f":"(LOOKUP(dms_Model,dms_Model_List,dms_Worksheet_List))","v":"REGULATORY REPORTING STATEMENT"}]
[null,"Australian Distribution Co."]
[null,{"$f":"CONCATENATE(\"Category Analysis RIN response \",CRY)","v":"Category Analysis RIN response 2014-15"}]
[null,"2.8 MAINTENANCE"]
[]
[]
[]
[null,"TABLE 2.8.1 - DESCRIPTOR METRICS FOR ROUTINE AND NON-ROUTINE MAINTENANCE",null,null,null,null,null,null,null,null,"TABLE 2.8.2 - COST METRICS FOR ROUTINE AND NON-ROUTINE MAINTENANCE"]
[]
[]
[null,null,null,null," ASSET QUANTITY - AT YEAR END\n(0s)","ASSET QUANTITY - INSPECTED/ MAINTAINED","AVERAGE AGE OF ASSET GROUP ","INSPECTION \nCYCLE \n(YEARS)","MAINTENANCE \nCYCLE \n(YEARS)",null,null,null," ROUTINE MAINTENANCE EXPENDITURE \n($0's)","NON-ROUTINE MAINTENANCE EXPENDITURE \n($0's)"]
[null,"MAINTENANCE ACTIVITY","MAINTENANCE ASSET CATEGORY","UNIT OF MEASURE - ASSET QUANTITY",{"$f":"CRY","v":"2014-15"},{"$f":"CRY","v":"2014-15"},{"$f":"CRY","v":"2014-15"},null,null,null,"MAINTENANCE ACTIVITY","MAINTENANCE ASSET CATEGORY",{"$f":"CRY","v":"2014-15"},{"$f":"CRY","v":"2014-15"}]
["ED_MAI281_00001","Pole top, overhead line & service line maintenance","Pole tops and overhead lines","Number of poles",1379171,134692,35.167087260542147,0,4,"ED_MAI282_00001","Pole top, overhead line & service line maintenance","Pole tops and overhead lines",0,46786399.288736083]
["ED_MAI281_00002",null,"Service lines","Number of customers",867001,4065,29.7193527548792,0,4,"ED_MAI282_00002",null,"Service lines",0,1412011.9465796943]
["ED_MAI281_00003","Pole inspection and treatment","All poles","Number of poles",1379171,346324,35.167087260542147,4,0,"ED_MAI282_00003","Pole inspection and treatment","All poles",12400389.267915774,0]
["ED_MAI281_00004","Overhead asset inspection","All overhead assets","Line patrolled (route KM)",174685.52095992005,174685.52095992005,47.293331707765802,1,0,"ED_MAI282_00004","Overhead asset inspection","All overhead assets",3572168.3586066794,0]
["ED_MAI281_00005","Network underground cable maintenance: by voltage","LV - 11 to 22 KV","Length (KM)",8603.9236486290702,2908,18.627112852887876,0,4,"ED_MAI282_00005","Network underground cable maintenance: by voltage","LV - 11 to 22 KV",0,1010118.2633834566]
["ED_MAI281_00006",null,"33 KV and above","Length (KM)",89.726475903639994,6,13.606354019592573,0,4,"ED_MAI282_00006",null,"33 KV and above",0,2084.1504746563751]
["ED_MAI281_00007","Network underground cable maintenance: by location","Cbd","Length (KM)",0,0,0,0,0,"ED_MAI282_00007","Network underground cable maintenance: by location","CBD",0,0]
["ED_MAI281_00008",null,"Non-CBD","Length (KM)",8693.6501245327108,2914,18.575293997744211,0,4,"ED_MAI282_00008",null,"Non-CBD",0,1012202.413858113]
["ED_MAI281_00009","Distribution substation equipment & property maintenance","Distribution substation transformers","Number of installed transformers",143492,740,26.7,0,4,"ED_MAI282_00009","Distribution substation equipment & property maintenance","Distribution substation transformers",0,257045.22520761963]
["ED_MAI281_00010",null,"Distribution substation switchgear (within-substations and stand-alone switchgear)","Number of switches",380437,8291,27.47,0,4,"ED_MAI282_00010",null,"Distribution substation switchgear (within-substations and stand-alone switchgear)",0,2879948.5975626679]
["ED_MAI281_00011",null,"Distribution substation - other equipment","Earth mat",0,0,0,0,0,"ED_MAI282_00011",null,"Distribution substation - other equipment",0,0]
["ED_MAI281_00012",null,"Distribution substation - property","Number of distribution substation properties maintained",142116,54,28.24,0,4,"ED_MAI282_00012",null,"Distribution substation - property",0,18757.354271907378]
["ED_MAI281_00013","Zone substation equipment maintenance","Transformers - zone substation","Number of zone substation transformers",757,7475.4059945504086,28.85,0.19500000000000001,6,"ED_MAI282_00013","Zone substation equipment maintenance","Transformers - zone substation",9188059.4342426434,5521661.6341479616]
["ED_MAI281_00014",null,"Transformers - distribution","Number of distribution transformers within zone substations",0,0,0,0,0,"ED_MAI282_00014",null,"Transformers - distribution",0,0]
["ED_MAI281_00015",null,"Transformers - HV","Number of HV transformers",0,0,0,0,0,"ED_MAI282_00015",null,"Transformers - HV",0,0]
["ED_MAI281_00016",null,"Zone substation - other equipment","DNSP to nominate",32812,252719.8910081744,15.04,0.19500000000000001,9.36,"ED_MAI282_00016",null,"Zone substation - other equipment",195603.61603667168,1116173.4587375808]
["ED_MAI281_00017","Zone substation property maintenance","All zone substation properties","Number of zone substation properties maintained",367,9855,27.66,5.9073008179339595E-2,6,"ED_MAI282_00017","Zone substation property maintenance","All zone substation properties",0,0]
["ED_MAI281_00018","Public lighting maintenance","Minor roads","Number of public lights maintained",115977,37881,6.8282421867331466,3,3,"ED_MAI282_00018","Public lighting maintenance","Minor roads",4404103,1668029]
["ED_MAI281_00019",null,"Major roads","Number of public lights maintained",38032,10494,8.9145708921060454,3,3,"ED_MAI282_00019",null,"Major roads",1255911,426224]
["ED_MAI281_00020","SCADA & network control maintenance","SCADA & network control maintenance","Number of systems",980,635,6.759780287641548,1,2,"ED_MAI282_00020","SCADA & network control maintenance","SCADA & network control maintenance",1065456,394365]
["ED_MAI281_00021","Protection systems maintenance","Protection systems maintenance","Number of systems",4712,1521,11.63,0,1,"ED_MAI282_00021","Protection systems maintenance","Protection systems maintenance",0,528332.14532539109]
["ED_MAI281_00022","Subtransmission asset maintenance - for DNSPs with dual function assets","Subtransmission asset maintenance - for DNSPs with dual function assets","<DNSP to nominate>",0,0,0,0,0,"ED_MAI282_00022","Subtransmission asset maintenance - for DNSPs with dual function assets","Subtransmission asset maintenance - for DNSPs with dual function assets",0,0]
["ED_MAI281_00023","Various assets"," includes rates, electricity, communications equip, metering","Units not quoted as various UOM",0,0,0,0,0,"ED_MAI282_00023","Various assets"," includes rates, electricity, communications equip, metering",0,0]
["ED_MAI281_00024","Ground clearance - access tracks","Ground clearance - access tracks","Units not quoted",0,0,0,0,0,"ED_MAI282_00024","Ground clearance - access tracks","Ground clearance - access tracks",0,0]
["ED_MAI281_00025","Other","Other Routine Inspection Programs","Number of Assets",131234,60827,20.363913404739609,2,0,"ED_MAI282_00025","Other","Other Routine Inspection Programs",3137560.2885894943,0]
["ED_MAI281_00026",null,"< DNSP to nominate >","< DNSP to nominate >",0,0,0,0,0]
["ED_MAI281_00027",null,"< DNSP to nominate >","< DNSP to nominate >",0,0,0,0,0]
["ED_MAI281_00028",null,"< DNSP to nominate >","< DNSP to nominate >",0,0,0,0,0]

{"sheet":"2.9 Emergency Response","index":9,"n_rows":603,"n_cols":4,"rows_kept":603,"cut":false,"hidden":false,"merged":[]}
[null,{"$f":"(LOOKUP(dms_Model,dms_Model_List,dms_Worksheet_List))","v":"REGULATORY REPORTING STATEMENT"}]
[null,"Australian Distribution Co."]
[null,{"$f":"CONCATENATE(\"Category Analysis RIN response \",CRY)","v":"Category Analysis RIN response 2014-15"}]
[null,"2.9 EMERGENCY RESPONSE"]
[]
[null,"TABLE 2.9.1 - EMERGENCY RESPONSE EXPENDITURE (OPEX)"]
[]
[]
[null,null,null,"EXPENDITURE\n($0's)"]
[null,null,null,{"$f":"CRY","v":"2014-15"}]
["ED_EME291_99999","(A) TOTAL EMERGENCY RESPONSE EXPENDITURE ($0's)","Total Expenditure",41771363.110747427]
["ED_EME291_00002","(B) MAJOR EVENTS O&M EXPENDITURE ($0's)","Major event day - 5/11/2014",460924.44999999978]
["ED_EME291_00003",null,"Major event day - 11/12/2014",570590.99000000034]
["ED_EME291_00004",null,"Major event day - 18/12/2014",405474.34999999963]
["ED_EME291_00005",null,"Major event day - 16/02/2015",471244.85]
["ED_EME291_00006",null,"Major event day - 21/04/2015",548673.30000000028]
["ED_EME291_00007"]
["ED_EME291_00008"]
["ED_EME291_00009"]
["ED_EME291_00010"]
["ED_EME291_00011"]
["ED_EME291_00012"]
["ED_EME291_00013"]
["ED_EME291_00014"]
["ED_EME291_00015"]
["ED_EME291_00016"]
["ED_EME291_00017"]
["ED_EME291_00018"]
["ED_EME291_00019"]
["ED_EME291_00020"]
["ED_EME291_00021"]
["ED_EME291_00022"]
["ED_EME291_00023"]
["ED_EME291_00024"]
["ED_EME291_00025"]
["ED_EME291_00026"]
["ED_EME291_00027"]
["ED_EME291_00028"]
["ED_EME291_00029"]
["ED_EME291_00030"]
["ED_EME291_00031"]
["ED_EME291_00032"]
["ED_EME291_00033"]
["ED_EME291_00034"]
["ED_EME291_00035"]
["ED_EME291_00036"]
["ED_EME291_00037"]
["ED_EME291_00038"]
["ED_EME291_00039"]
["ED_EME291_00040"]
["ED_EME291_00041"]
["ED_EME291_00042"]
["ED_EME291_00043"]
["ED_EME291_00044"]
["ED_EME291_00045","(C) MAJOR EVENT DAYS O&M EXPENDITURE ($0's)","2014-07-01",0]
["ED_EME291_00046",null,null,0]
["ED_EME291_00047",null,null,0]
["ED_EME291_00048",null,null,0]
["ED_EME291_00049",null,null,0]
["ED_EME291_00050",null,null,0]
["ED_EME291_00051",null,null,0]
["ED_EME291_00052",null,null,0]
["ED_EME291_00053",null,null,0]
["ED_EME291_00054",null,null,0]
["ED_EME291_00055",null,null,0]
["ED_EME291_00056",null,null,0]
["ED_EME291_00057",null,null,0]
["ED_EME291_00058",null,null,0]
["ED_EME291_00059",null,null,0]
["ED_EME291_00060",null,null,0]
["ED_EME291_00061",null,null,0]
["ED_EME291_00062",null,null,0]
["ED_EME291_00063",null,null,0]
["ED_EME291_00064",null,null,0]
["ED_EME291_00065",null,null,0]
["ED_EME291_00066",null,null,0]
["ED_EME291_00067",null,null,0]
["ED_EME291_00068",null,null,0]
["ED_EME291_00069",null,null,0]
["ED_EME291_00070",null,null,0]
["ED_EME291_00071",null,null,0]
["ED_EME291_00072",null,null,0]
["ED_EME291_00073",null,null,0]
["ED_EME291_00074",null,null,0]
["ED_EME291_00075",null,null,0]
["ED_EME291_00076",null,null,0]
["ED_EME291_00077",null,null,0]
["ED_EME291_00078",null,null,0]
["ED_EME291_00079",null,null,0]
["ED_EME291_00080",null,null,0]
["ED_EME291_00081",null,null,0]
["ED_EME291_00082",null,null,0]
["ED_EME291_00083",null,null,0]
["ED_EME291_00084",null,null,0]
["ED_EME291_00085",null,null,0]
["ED_EME291_00086",null,null,0]
["ED_EME291_00087",null,null,0]
["ED_EME291_00088",null,null,0]
["ED_EME291_00089",null,null,0]
["ED_EME291_00090",null,null,0]
["ED_EME291_00091",null,null,0]
["ED_EME291_00092",null,null,0]
["ED_EME291_00093",null,null,0]
["ED_EME291_00094",null,null,0]
["ED_EME291_00095",null,null,0]
["ED_EME291_00096",null,null,0]
["ED_EME291_00097",null,null,0]
["ED_EME291_00098",null,null,0]
["ED_EME291_00099",null,null,0]
["ED_EME291_00100",null,null,0]
["ED_EME291_00101",null,null,0]
["ED_EME291_00102",null,null,0]
["ED_EME291_00103",null,null,0]
["ED_EME291_00104",null,null,0]
["ED_EME291_00105",null,null,0]
["ED_EME291_00106",null,null,0]
["ED_EME291_00107",null,null,0]
["ED_EME291_00108",null,null,0]
["ED_EME291_00109",null,null,0]
["ED_EME291_00110",null,null,0]
["ED_EME291_00111",null,null,0]
["ED_EME291_00112",null,null,0]
["ED_EME291_00113",null,null,0]
["ED_EME291_00114",null,null,0]
["ED_EME291_00115",null,null,0]
["ED_EME291_00116",null,null,0]
["ED_EME291_00117",null,null,0]
["ED_EME291_00118",null,null,0]
["ED_EME291_00119",null,null,0]
["ED_EME291_00120",null,null,0]
["ED_EME291_00121",null,null,0]
["ED_EME291_00122",null,null,0]
["ED_EME291_00123",null,null,0]
["ED_EME291_00124",null,null,0]
["ED_EME291_00125",null,null,0]
["ED_EME291_00126",null,null,0]
["ED_EME291_00127",null,null,0]
["ED_EME291_00128",null,null,0]
["ED_EME291_00129",null,null,0]
["ED_EME291_00130",null,null,0]
["ED_EME291_00131",null,null,0]
["ED_EME291_00132",null,null,0]
["ED_EME291_00133",null,null,0]
["ED_EME291_00134",null,null,0]
["ED_EME291_00135",null,null,0]
["ED_EME291_00136",null,null,0]
["ED_EME291_00137",null,null,0]
["ED_EME291_00138",null,null,0]
["ED_EME291_00139",null,null,0]
["ED_EME291_00140",null,null,0]
["ED_EME291_00141",null,null,0]
["ED_EME291_00142",null,null,0]
["ED_EME291_00143",null,null,0]
["ED_EME291_00144",null,null,0]
["ED_EME291_00145",null,null,0]
["ED_EME291_00146",null,null,0]
["ED_EME291_00147",null,null,0]
["ED_EME291_00148",null,null,0]
["ED_EME291_00149",null,null,0]
["ED_EME291_00150",null,null,0]
["ED_EME291_00151",null,null,0]
["ED_EME291_00152",null,null,0]
["ED_EME291_00153",null,null,0]
["ED_EME291_00154",null,null,0]
["ED_EME291_00155",null,null,0]
["ED_EME291_00156",null,null,0]
["ED_EME291_00157",null,null,0]
["ED_EME291_00158",null,null,0]
["ED_EME291_00159",null,null,0]
["ED_EME291_00160",null,null,0]
["ED_EME291_00161",null,null,0]
["ED_EME291_00162",null,null,0]
["ED_EME291_00163",null,null,0]
["ED_EME291_00164",null,null,0]
["ED_EME291_00165",null,null,0]
["ED_EME291_00166",null,null,0]
["ED_EME291_00167",null,null,0]
["ED_EME291_00168",null,null,0]
["ED_EME291_00169",null,null,0]
["ED_EME291_00170",null,null,0]
["ED_EME291_00171",null,null,0]
["ED_EME291_00172",null,null,460924.44999999978]
["ED_EME291_00173",null,null,0]
["ED_EME291_00174",null,null,0]
["ED_EME291_00175",null,null,0]
["ED_EME291_00176",null,null,0]
["ED_EME291_00177",null,null,0]
["ED_EME291_00178",null,null,0]
["ED_EME291_00179",null,null,0]
["ED_EME291_00180",null,null,0]
["ED_EME291_00181",null,null,0]
["ED_EME291_00182",null,null,0]
["ED_EME291_00183",null,null,0]
["ED_EME291_00184",null,null,0]
["ED_EME291_00185",null,null,0]
["ED_EME291_00186",null,null,0]
["ED_EME291_00187",null,null,0]
["ED_EME291_00188",null,null,0]
["ED_EME291_00189",null,null,0]
["ED_EME291_00190",null,null,0]
["ED_EME291_00191",null,null,0]
["ED_EME291_00192",null,null,0]
["ED_EME291_00193",null,null,0]
["ED_EME291_00194",null,null,0]
["ED_EME291_00195",null,null,0]
["ED_EME291_00196",null,null,0]
["ED_EME291_00197",null,null,0]
["ED_EME291_00198",null,null,0]
["ED_EME291_00199",null,null,0]
["ED_EME291_00200",null,null,0]
["ED_EME291_00201",null,null,0]
["ED_EME291_00202",null,null,0]
["ED_EME291_00203",null,null,0]
["ED_EME291_00204",null,null,0]
["ED_EME291_00205",null,null,0]
["ED_EME291_00206",null,null,0]
["ED_EME291_00207",null,null,0]
["ED_EME291_00208",null,null,570590.99000000034]
["ED_EME291_00209",null,null,0]
["ED_EME291_00210",null,null,0]
["ED_EME291_00211",null,null,0]
["ED_EME291_00212",null,null,0]
["ED_EME291_00213",null,null,0]
["ED_EME291_00214",null,null,0]
["ED_EME291_00215",null,null,405474.34999999963]
["ED_EME291_00216",null,null,0]
["ED_EME291_00217",null,null,0]
["ED_EME291_00218",null,null,0]
["ED_EME291_00219",null,null,0]
["ED_EME291_00220",null,null,0]
["ED_EME291_00221",null,null,0]
["ED_EME291_00222",null,null,0]
["ED_EME291_00223",null,null,0]
["ED_EME291_00224",null,null,0]
["ED_EME291_00225",null,null,0]
["ED_EME291_00226",null,null,0]
["ED_EME291_00227",null,null,0]
["ED_EME291_00228",null,null,0]
["ED_EME291_00229",null,null,0]
["ED_EME291_00230",null,null,0]
["ED_EME291_00231",null,null,0]
["ED_EME291_00232",null,null,0]
["ED_EME291_00233",null,null,0]
["ED_EME291_00234",null,null,0]
["ED_EME291_00235",null,null,0]
["ED_EME291_00236",null,null,0]
["ED_EME291_00237",null,null,0]
["ED_EME291_00238",null,null,0]
["ED_EME291_00239",null,null,0]
["ED_EME291_00240",null,null,0]
["ED_EME291_00241",null,null,0]
["ED_EME291_00242",null,null,0]
["ED_EME291_00243",null,null,0]
["ED_EME291_00244",null,null,0]
["ED_EME291_00245",null,null,0]
["ED_EME291_00246",null,null,0]
["ED_EME291_00247",null,null,0]
["ED_EME291_00248",null,null,0]
["ED_EME291_00249",null,null,0]
["ED_EME291_00250",null,null,0]
["ED_EME291_00251",null,null,0]
["ED_EME291_00252",null,null,0]
["ED_EME291_00253",null,null,0]
["ED_EME291_00254",null,null,0]
["ED_EME291_00255",null,null,0]
["ED_EME291_00256",null,null,0]
["ED_EME291_00257",null,null,0]
["ED_EME291_00258",null,null,0]
["ED_EME291_00259",null,null,0]
["ED_EME291_00260",null,null,0]
["ED_EME291_00261",null,null,0]
["ED_EME291_00262",null,null,0]
["ED_EME291_00263",null,null,0]
["ED_EME291_00264",null,null,0]
["ED_EME291_00265",null,null,0]
["ED_EME291_00266",null,null,0]
["ED_EME291_00267",null,null,0]
["ED_EME291_00268",null,null,0]
["ED_EME291_00269",null,null,0]
["ED_EME291_00270",null,null,0]
["ED_EME291_00271",null,null,0]
["ED_EME291_00272",null,null,0]
["ED_EME291_00273",null,null,0]
["ED_EME291_00274",null,null,0]
["ED_EME291_00275",null,null,471244.85]
["ED_EME291_00276",null,null,0]
["ED_EME291_00277",null,null,0]
["ED_EME291_00278",null,null,0]
["ED_EME291_00279",null,null,0]
["ED_EME291_00280",null,null,0]
["ED_EME291_00281",null,null,0]
["ED_EME291_00282",null,null,0]
["ED_EME291_00283",null,null,0]
["ED_EME291_00284",null,null,0]
["ED_EME291_00285",null,null,0]
["ED_EME291_00286",null,null,0]
["ED_EME291_00287",null,null,0]
["ED_EME291_00288",null,null,0]
["ED_EME291_00289",null,null,0]
["ED_EME291_00290",null,null,0]
["ED_EME291_00291",null,null,0]
["ED_EME291_00292",null,null,0]
["ED_EME291_00293",null,null,0]
["ED_EME291_00294",null,null,0]
["ED_EME291_00295",null,null,0]
["ED_EME291_00296",null,null,0]
["ED_EME291_00297",null,null,0]
["ED_EME291_00298",null,null,0]
["ED_EME291_00299",null,null,0]
["ED_EME291_00300",null,null,0]
["ED_EME291_00301",null,null,0]
["ED_EME291_00302",null,null,0]
["ED_EME291_00303",null,null,0]
["ED_EME291_00304",null,null,0]
["ED_EME291_00305",null,null,0]
["ED_EME291_00306",null,null,0]
["ED_EME291_00307",null,null,0]
["ED_EME291_00308",null,null,0]
["ED_EME291_00309",null,null,0]
["ED_EME291_00310",null,null,0]
["ED_EME291_00311",null,null,0]
["ED_EME291_00312",null,null,0]
["ED_EME291_00313",null,null,0]
["ED_EME291_00314",null,null,0]
["ED_EME291_00315",null,null,0]
["ED_EME291_00316",null,null,0]
["ED_EME291_00317",null,null,0]
["ED_EME291_00318",null,null,0]
["ED_EME291_00319",null,null,0]
["ED_EME291_00320",null,null,0]
["ED_EME291_00321",null,null,0]
["ED_EME291_00322",null,null,0]
["ED_EME291_00323",null,null,0]
["ED_EME291_00324",null,null,0]
["ED_EME291_00325",null,null,0]
["ED_EME291_00326",null,null,0]
["ED_EME291_00327",null,null,0]
["ED_EME291_00328",null,null,0]
["ED_EME291_00329",null,null,0]
["ED_EME291_00330",null,null,0]
["ED_EME291_00331",null,null,0]
["ED_EME291_00332",null,null,0]
["ED_EME291_00333",null,null,0]
["ED_EME291_00334",null,null,0]
["ED_EME291_00335",null,null,0]
["ED_EME291_00336",null,null,0]
["ED_EME291_00337",null,null,0]
["ED_EME291_00338",null,null,0]
["ED_EME291_00339",null,null,548673.30000000028]
["ED_EME291_00340",null,null,0]
["ED_EME291_00341",null,null,0]
["ED_EME291_00342",null,null,0]
["ED_EME291_00343",null,null,0]
["ED_EME291_00344",null,null,0]
["ED_EME291_00345",null,null,0]
["ED_EME291_00346",null,null,0]
["ED_EME291_00347",null,null,0]
["ED_EME291_00348",null,null,0]
["ED_EME291_00349",null,null,0]
["ED_EME291_00350",null,null,0]
["ED_EME291_00351",null,null,0]
["ED_EME291_00352",null,null,0]
["ED_EME291_00353",null,null,0]
["ED_EME291_00354",null,null,0]
["ED_EME291_00355",null,null,0]
["ED_EME291_00356",null,null,0]
["ED_EME291_00357",null,null,0]
["ED_EME291_00358",null,null,0]
["ED_EME291_00359",null,null,0]
["ED_EME291_00360",null,null,0]
["ED_EME291_00361",null,null,0]
["ED_EME291_00362",null,null,0]
["ED_EME291_00363",null,null,0]
["ED_EME291_00364",null,null,0]
["ED_EME291_00365",null,null,0]
["ED_EME291_00366",null,null,0]
["ED_EME291_00367",null,null,0]
["ED_EME291_00368",null,null,0]
["ED_EME291_00369",null,null,0]
["ED_EME291_00370",null,null,0]
["ED_EME291_00371",null,null,0]
["ED_EME291_00372",null,null,0]
["ED_EME291_00373",null,null,0]
["ED_EME291_00374",null,null,0]
["ED_EME291_00375",null,null,0]
["ED_EME291_00376",null,null,0]
["ED_EME291_00377",null,null,0]
["ED_EME291_00378",null,null,0]
["ED_EME291_00379",null,null,0]
["ED_EME291_00380",null,null,0]
["ED_EME291_00381",null,null,0]
["ED_EME291_00382",null,null,0]
["ED_EME291_00383",null,null,0]
["ED_EME291_00384",null,null,0]
["ED_EME291_00385",null,null,0]
["ED_EME291_00386",null,null,0]
["ED_EME291_00387",null,null,0]
["ED_EME291_00388",null,null,0]
["ED_EME291_00389",null,null,0]
["ED_EME291_00390",null,null,0]
["ED_EME291_00391",null,null,0]
["ED_EME291_00392",null,null,0]
["ED_EME291_00393",null,null,0]
["ED_EME291_00394",null,null,0]
["ED_EME291_00395",null,null,0]
["ED_EME291_00396",null,null,0]
["ED_EME291_00397",null,null,0]
["ED_EME291_00398",null,null,0]
["ED_EME291_00399",null,null,0]
["ED_EME291_00400",null,null,0]
["ED_EME291_00401",null,null,0]
["ED_EME291_00402",null,null,0]
["ED_EME291_00403",null,null,0]
["ED_EME291_00404",null,null,0]
["ED_EME291_00405",null,null,0]
["ED_EME291_00406",null,null,0]
["ED_EME291_00407",null,null,0]
["ED_EME291_00408",null,null,0]
["ED_EME291_00409",null,null,0]
["ED_EME291_00410"]
["ED_EME291_00411"]
["ED_EME291_00412"]
["ED_EME291_00413"]
["ED_EME291_00414"]
["ED_EME291_00415"]
["ED_EME291_00416"]
["ED_EME291_00417"]
["ED_EME291_00418"]
["ED_EME291_00419"]
["ED_EME291_00420"]
["ED_EME291_00421"]
["ED_EME291_00422"]
["ED_EME291_00423"]
["ED_EME291_00424"]
["ED_EME291_00425"]
["ED_EME291_00426"]
["ED_EME291_00427"]
["ED_EME291_00428"]
["ED_EME291_00429"]
["ED_EME291_00430"]
["ED_EME291_00431"]
["ED_EME291_00432"]
["ED_EME291_00433"]
["ED_EME291_00434"]
["ED_EME291_00435"]
["ED_EME291_00436"]
["ED_EME291_00437"]
["ED_EME291_00438"]
["ED_EME291_00439"]
["ED_EME291_00440"]
["ED_EME291_00441"]
["ED_EME291_00442"]
["ED_EME291_00443"]
["ED_EME291_00444"]
["ED_EME291_00445"]
["ED_EME291_00446"]
["ED_EME291_00447"]
["ED_EME291_00448"]
["ED_EME291_00449"]
["ED_EME291_00450"]
["ED_EME291_00451"]
["ED_EME291_00452"]
["ED_EME291_00453"]
["ED_EME291_00454"]
["ED_EME291_00455"]
["ED_EME291_00456"]
["ED_EME291_00457"]
["ED_EME291_00458"]
["ED_EME291_00459"]
["ED_EME291_00460"]
["ED_EME291_00461"]
["ED_EME291_00462"]
["ED_EME291_00463"]
["ED_EME291_00464"]
["ED_EME291_00465"]
["ED_EME291_00466"]
["ED_EME291_00467"]
["ED_EME291_00468"]
["ED_EME291_00469"]
["ED_EME291_00470"]
["ED_EME291_00471"]
["ED_EME291_00472"]
["ED_EME291_00473"]
["ED_EME291_00474"]
["ED_EME291_00475"]
["ED_EME291_00476"]
["ED_EME291_00477"]
["ED_EME291_00478"]
["ED_EME291_00479"]
["ED_EME291_00480"]
["ED_EME291_00481"]
["ED_EME291_00482"]
["ED_EME291_00483"]
["ED_EME291_00484"]
["ED_EME291_00485"]
["ED_EME291_00486"]
["ED_EME291_00487"]
["ED_EME291_00488"]
["ED_EME291_00489"]
["ED_EME291_00490"]
["ED_EME291_00491"]
["ED_EME291_00492"]
["ED_EME291_00493"]
["ED_EME291_00494"]
["ED_EME291_00495"]
["ED_EME291_00496"]
["ED_EME291_00497"]
["ED_EME291_00498"]
["ED_EME291_00499"]
["ED_EME291_00500"]
["ED_EME291_00501"]
["ED_EME291_00502"]
["ED_EME291_00503"]
["ED_EME291_00504"]
["ED_EME291_00505"]
["ED_EME291_00506"]
["ED_EME291_00507"]
["ED_EME291_00508"]
["ED_EME291_00509"]
["ED_EME291_00510"]
["ED_EME291_00511"]
["ED_EME291_00512"]
["ED_EME291_00513"]
["ED_EME291_00514"]
["ED_EME291_00515"]
["ED_EME291_00516"]
["ED_EME291_00517"]
["ED_EME291_00518"]
["ED_EME291_00519"]
["ED_EME291_00520"]
["ED_EME291_00521"]
["ED_EME291_00522"]
["ED_EME291_00523"]
["ED_EME291_00524"]
["ED_EME291_00525"]
["ED_EME291_00526"]
["ED_EME291_00527"]
["ED_EME291_00528"]
["ED_EME291_00529"]
["ED_EME291_00530"]
["ED_EME291_00531"]
["ED_EME291_00532"]
["ED_EME291_00533"]
["ED_EME291_00534"]
["ED_EME291_00535"]
["ED_EME291_00536"]
["ED_EME291_00537"]
["ED_EME291_00538"]
["ED_EME291_00539"]
["ED_EME291_00540"]
["ED_EME291_00541"]
["ED_EME291_00542"]
["ED_EME291_00543"]
["ED_EME291_00544"]
["ED_EME291_00545"]
["ED_EME291_00546"]
["ED_EME291_00547"]
["ED_EME291_00548"]
["ED_EME291_00549"]
["ED_EME291_00550"]
["ED_EME291_00551"]
["ED_EME291_00552"]
["ED_EME291_00553"]
["ED_EME291_00554"]
["ED_EME291_00555"]
["ED_EME291_00556"]
["ED_EME291_00557"]
["ED_EME291_00558"]
["ED_EME291_00559"]
["ED_EME291_00560"]
["ED_EME291_00561"]
["ED_EME291_00562"]
["ED_EME291_00563"]
["ED_EME291_00564"]
["ED_EME291_00565"]
["ED_EME291_00566"]
["ED_EME291_00567"]
["ED_EME291_00568"]
["ED_EME291_00569"]
["ED_EME291_00570"]
["ED_EME291_00571"]
["ED_EME291_00572"]
["ED_EME291_00573"]
["ED_EME291_00574"]
["ED_EME291_00575"]
["ED_EME291_00576"]
["ED_EME291_00577"]
["ED_EME291_00578"]
["ED_EME291_00579"]
["ED_EME291_00580"]
["ED_EME291_00581"]
["ED_EME291_00582"]
["ED_EME291_00583"]
["ED_EME291_00584"]
["ED_EME291_00585"]
["ED_EME291_00586"]
["ED_EME291_00587"]
["ED_EME291_00588"]
["ED_EME291_00589"]
["ED_EME291_00590"]
["ED_EME291_00591"]
["ED_EME291_00592"]
["ED_EME291_00593"]

{"sheet":"2.10 Overheads","index":10,"n_rows":173,"n_cols":5,"rows_kept":173,"cut":false,"hidden":false,"merged":[[67,1,68,1],[150,1,151,1]]}
[null,{"$f":"(LOOKUP(dms_Model,dms_Model_List,dms_Worksheet_List))","v":"REGULATORY REPORTING STATEMENT"}]
[null,"Australian Distribution Co."]
[null,{"$f":"CONCATENATE(\"Category Analysis RIN response \",CRY)","v":"Category Analysis RIN response 2014-15"}]
[null,"2.10 OVERHEADS"]
[]
[]
[]
[null,"TABLE 2.10.1 - NETWORK OVERHEADS EXPENDITURE"]
[]
[null,null,null,null,"EXPENDITURE\n($0's)"]
["OVE2101",null,null,null,{"$f":"CRY","v":"2014-15"}]
["ED_OVE2101_00001","NETWORK OVERHEADS","Total Overhead Expenditure - Standard Control Services","Network management",""]
["ED_OVE2101_00002",null,null,"Network planning",6044424.5222361032]
["ED_OVE2101_00003",null,null,"Network control and operational switching",13281929.582745161]
["ED_OVE2101_00004",null,null,"Quality and standard functions",5825537.7346390355]
["ED_OVE2101_00005",null,null,"Project governance and related functions",47747533.310421415]
["ED_OVE2101_00006",null,null,"Other",1462990.7983926153]
["ED_OVE2101_00007"]
["ED_OVE2101_00008",null,null,"Network management (cell E12 will not allow input)",1469499.6588048541]
["ED_OVE2101_00009"]
["ED_OVE2101_00010",null,null,"Essential Energy Direct Costs (2.1.2 balancing items) Reassigned to Overheads per AER RIN Response to :-"]
["ED_OVE2101_00011",null,null,"Design",912898.50931894057]
["ED_OVE2101_00012",null,null,"Other Distribution maintenance",3643138.9128377768]
["ED_OVE2101_00013",null,null,"Other Network Operating Costs",24541837.350046996]
["ED_OVE2101_00014",null,null,null,""]
["ED_OVE2101_00015",null,null,null,""]
["ED_OVE2101_00016",null,null,null,""]
["ED_OVE2101_00017",null,null,null,""]
["ED_OVE2101_00018",null,null,null,""]
["ED_OVE2101_00019",null,null,null,""]
["ED_OVE2101_00020",null,null,null,""]
["ED_OVE2101_00021",null,null,null,""]
["ED_OVE2101_00022",null,null,null,""]
["ED_OVE2101_00023",null,null,null,""]
["ED_OVE2101_00024",null,null,null,""]
["ED_OVE2101_00025",null,null,null,""]
["ED_OVE2101_00026",null,null,null,""]
["ED_OVE2101_00027",null,null,null,""]
["ED_OVE2101_00028",null,null,null,""]
["ED_OVE2101_00029","NETWORK OVERHEADS","Total Overhead Expenditure - Alternative Control Services",null,""]
["ED_OVE2101_00030",null,null,"Network management",1418707.1865169618]
["ED_OVE2101_00031",null,null,"Network planning",0]
["ED_OVE2101_00032",null,null,"Network control and operational switching",103885.52093990301]
["ED_OVE2101_00033",null,null,"Quality and standard functions",957769.40593048173]
["ED_OVE2101_00034",null,null,"Project governance and related functions",11719593.899215825]
["ED_OVE2101_00035",null,null,"Other",2846995.9210278108]
["ED_OVE2101_00036",null,null,null,""]
["ED_OVE2101_00037",null,null,null,""]
["ED_OVE2101_00038",null,null,null,""]
["ED_OVE2101_00039",null,null,null,""]
["ED_OVE2101_00040",null,null,null,""]
["ED_OVE2101_00041",null,null,null,""]
["ED_OVE2101_00042",null,null,null,""]
["ED_OVE2101_00043",null,null,null,""]
["ED_OVE2101_00044",null,null,null,""]
["ED_OVE2101_00045",null,null,null,""]
["ED_OVE2101_00046",null,null,null,""]
["ED_OVE2101_00047",null,null,null,""]
["ED_OVE2101_00048",null,null,null,""]
["ED_OVE2101_00049",null,null,null,""]
["ED_OVE2101_00050",null,null,null,""]
["ED_OVE2101_00051",null,null,null,""]
["ED_OVE2101_00052",null,null,null,""]
["ED_OVE2101_00053",null,null,null,""]
["ED_OVE2101_00054",null,null,null,""]
["ED_OVE2101_00055",null,null,null,""]
["ED_OVE2101_00056",null,null,null,""]
["ED_OVE2101_00057","NETWORK OVERHEADS","Total Overhead Expenditure - Negotiated Services","Total  ",""]
["ED_OVE2101_00058",null,"Total Overhead Expenditure - Unregulated Services","Total  ",1602024.1297074407]
["ED_OVE2101_00059","NETWORK OVERHEADS","Capitalised Overheads - Standard Control Services","Network management",""]
["ED_OVE2101_00060",null,null,"Network planning",5447892.7690110998]
["ED_OVE2101_00061",null,null,"Network control and operational switching",11971119.478150638]
["ED_OVE2101_00062",null,null,"Quality and standard functions",5250608.1899754461]
["ED_OVE2101_00063",null,null,"Project governance and related functions",43035270.024966769]
["ED_OVE2101_00064",null,null,"Other",1318606.4218971115]
["ED_OVE2101_00065",null,null,"Network management (cell E70 will not allow input)",1324472.9148020837]
["ED_OVE2101_00066"]
["ED_OVE2101_00067",null,null,"CAPITALISED OVERHEADS - Alternative Control Services"]
["ED_OVE2101_00068",null,null,"Network management",210609.99054915129]
["ED_OVE2101_00069",null,null,"Network planning",0]
["ED_OVE2101_00070",null,null,"Network control and operational switching",15422.018575279169]
["ED_OVE2101_00071",null,null,"Quality and standard functions",142182.83198135707]
["ED_OVE2101_00072",null,null,"Project governance and related functions",1739797.7424880168]
["ED_OVE2101_00073",null,null,"Other",422642.38154260645]
["ED_OVE2101_00074"]
["ED_OVE2101_00075",null,null,null,""]
["ED_OVE2101_00076",null,null,null,""]
["ED_OVE2101_00077",null,null,null,""]
["ED_OVE2101_00078",null,null,null,""]
["ED_OVE2101_00079",null,null,null,""]
["ED_OVE2101_00080",null,null,null,""]
["ED_OVE2101_00081",null,null,null,""]
["ED_OVE2101_00082",null,null,null,""]
["ED_OVE2101_00083",null,null,null,""]
["ED_OVE2101_00084",null,null,null,""]
["ED_OVE2101_00085",null,null,null,""]
["ED_OVE2101_00086",null,null,null,""]
[]
[]
[]
[]
[]
[]
[]
[null,"TABLE 2.10.2 - CORPORATE OVERHEADS EXPENDITURE"]
[]
[null,null,null,null,"EXPENDITURE\n($0's)"]
["OVE2102",null,null,null,{"$f":"CRY","v":"2014-15"}]
["ED_OVE2102_00002","CORPORATE OVERHEADS","Total Overhead Expenditure - Standard Control Services",null,""]
["ED_OVE2102_00003",null,null,"Network Management",28.741619435548277]
["ED_OVE2102_00004",null,null,"Network Planning",0]
["ED_OVE2102_00005",null,null,"Nework Control & Operational Switching",0]
["ED_OVE2102_00006",null,null,"Quality and standard functions",1078729.5668336416]
["ED_OVE2102_00007",null,null,"Project Governance & related functions",0]
["ED_OVE2102_00008",null,null,"Meter Reading",0]
["ED_OVE2102_00009",null,null,"Metering Services",0]
["ED_OVE2102_00010",null,null,"Essential Energy Mgmt",320219.73447503953]
["ED_OVE2102_00011",null,null,"People & Services",21972876.32756884]
["ED_OVE2102_00012",null,null,"NNSW, Legal, Internal Audit",4434147.5331642274]
["ED_OVE2102_00013",null,null,"Health, Safety & Environment",3238320.2312643835]
["ED_OVE2102_00014",null,null,"Finance & Compliance",7561050.9092957005]
["ED_OVE2102_00015",null,null,"Information, Comm & Tech",15287969.906540394]
["ED_OVE2102_00016",null,null,"Other",739361.52988013683]
["ED_OVE2102_00017",null,null,null,""]
["ED_OVE2102_00018",null,null,null,""]
["ED_OVE2102_00019",null,null,null,""]
["ED_OVE2102_00020",null,null,null,""]
["ED_OVE2102_00021",null,null,null,""]
["ED_OVE2102_00022",null,null,null,""]
["ED_OVE2102_00023","CORPORATE OVERHEADS","Total Overhead Expenditure - Alternative Control Services",null,""]
["ED_OVE2102_00024",null,null,"   Network Management",0.45803314884747498]
["ED_OVE2102_00025",null,null,"Network Planning",0]
["ED_OVE2102_00026",null,null,"Nework Control & Operational Switching",0]
["ED_OVE2102_00027",null,null,"Quality and standard functions",95611.978811489957]
["ED_OVE2102_00028",null,null,"Project Governance & related functions",0]
["ED_OVE2102_00029",null,null,"Meter Reading",0]
["ED_OVE2102_00030",null,null,"Metering Services",0]
["ED_OVE2102_00031",null,null,"Essential Energy Mgmt",62206.098574654381]
["ED_OVE2102_00032",null,null,"People & Services",6129727.4609943088]
["ED_OVE2102_00033",null,null,"NNSW, Legal, Internal Audit",807843.06993786886]
["ED_OVE2102_00034",null,null,"Health, Safety & Environment",648653.46974241687]
["ED_OVE2102_00035",null,null,"Finance & Compliance",1745799.0175722209]
["ED_OVE2102_00036",null,null,"Information, Comm & Tech",3648347.795958885]
["ED_OVE2102_00037",null,null,"Other",143628.86249165822]
["ED_OVE2102_00038",null,null,null,""]
["ED_OVE2102_00039",null,null,null,""]
["ED_OVE2102_00040",null,null,null,""]
["ED_OVE2102_00041",null,null,null,""]
["ED_OVE2102_00042",null,null,null,""]
["ED_OVE2102_00043",null,null,null,""]
["ED_OVE2102_00044","CORPORATE OVERHEADS","Total Overhead Expenditure - Negotiated Services","Total",""]
["ED_OVE2102_00045",null,"Total Overhead Expenditure - Unregulated Services","Total",1363460.2695474033]
["ED_OVE2102_00046","CORPORATE OVERHEADS","Capitalised Overheads - Standard Control Services",null,""]
["ED_OVE2102_00047",null,null,"   Network Management",32.601265684837585]
["ED_OVE2102_00048",null,null,"Network Planning",0]
["ED_OVE2102_00049",null,null,"Nework Control & Operational Switching",0]
["ED_OVE2102_00050",null,null,"Quality and standard functions",1223589.6898327449]
["ED_OVE2102_00051",null,null,"Project Governance & related functions",0]
["ED_OVE2102_00052",null,null,"Meter Reading",0]
["ED_OVE2102_00053",null,null,"Metering services",0]
["ED_OVE2102_00054",null,null,"Essential Energy Mgmt",363221.30924317427]
["ED_OVE2102_00055",null,null,"People & Services",24923563.566816989]
["ED_OVE2102_00056",null,null,"NNSW, Legal, Internal Audit",5029599.0502073299]
["ED_OVE2102_00057",null,null,"Health, Safety & Environment",3673186.8386462382]
["ED_OVE2102_00058",null,null,"Finance & Compliance",8576407.1194142755]
["ED_OVE2102_00059",null,null,"Information, Comm & Tech",17340956.372433346]
["ED_OVE2102_00060",null,null,"Other",838648.69642515015]
["ED_OVE2102_00061",null,null,"CAPITALISED OVERHEADS - Alternative Control Services"]
["ED_OVE2102_00062",null,null,"People & Services",802820.30772960384]
["ED_OVE2102_00063",null,null,"NNSW, Legal, Internal Audit",105804.51188600568]
["ED_OVE2102_00064",null,null,"Finance & Compliance",228650.11755253823]
["ED_OVE2102_00065",null,null,"Information, Comm & Tech",477830.00449765893]
["ED_OVE2102_00066",null,null,"Other",124436.245460726]

{"sheet":"2.11 Labour","index":11,"n_rows":66,"n_cols":16,"rows_kept":66,"cut":false,"hidden":false,"merged":[[9,14,9,15],[9,4,10,4],[9,5,10,5],[9,6,10,6],[9,7,10,7],[9,12,9,13]]}
[null,{"$f":"(LOOKUP(dms_Model,dms_Model_List,dms_Worksheet_List))","v":"REGULATORY REPORTING STATEMENT"}]
[null,"Australian Distribution Co."]
[null,{"$f":"CONCATENATE(\"Category Analysis RIN response \",CRY)","v":"Category Analysis RIN response 2014-15"}]
[null,"2.11 LABOUR"]
[]
[null,"TABLE 2.11.1 - COST METRICS PER ANNUM",null,null,null,null,null,null,null,"TABLE 2.11.2 - EXTRA DESCRIPTOR METRICS FOR CURRENT YEAR"]
[]
[]
[]
[null,null,null,null,"ASL \n(0'S)","TOTAL LABOUR EXPENDITURE\n($0's)","AVERAGE PRODUCTIVE WORK HOURS PER ASL \n(0'S)","STAND-DOWN OCCURENCES PER ASL \n(0'S)",null,null,null,null,"AVERAGE PRODUCTIVE WORK HOURS \nORDINARY TIME (0's)",null,"AVERAGE PRODUCTIVE WORK HOURS \nOVERTIME (0's)"]
[null,null,null,null,null,null,null,null,null,null,null,null,"PER ASL","HOURLY RATE PER ASL","PER ASL","HOURLY RATE PER ASL"]
[null,null,null,null,{"$f":"CRY","v":"2014-15"},{"$f":"CRY","v":"2014-15"},{"$f":"CRY","v":"2014-15"},{"$f":"CRY","v":"2014-15"},null,null,null,null,{"$f":"CRY","v":"2014-15"},{"$f":"CRY","v":"2014-15"},{"$f":"CRY","v":"2014-15"},{"$f":"CRY","v":"2014-15"}]
["ED_LAB2111_00001","CORPORATE OVERHEADS \nINTERNAL LABOUR COSTS","LABOUR CLASSIFICATION LEVEL","Executive manager",4.4775035106060468,2232.856525463199,1549.9,0,"ED_LAB2112_00001","CORPORATE OVERHEADS \nINTERNAL LABOUR COSTS","LABOUR CLASSIFICATION LEVEL","Executive manager",1549.9,321.7519625689157,0,0]
["ED_LAB2111_00002",null,null,"Employee (optional)",4.4775035106060468,2232.856525463199,0,0,"ED_LAB2112_00002",null,null,"Employee (optional)",0,0,0,0]
["ED_LAB2111_00003",null,null,"Labour hire (optional)",0,0,0,0,"ED_LAB2112_00003",null,null,"Labour hire (optional)",0,0,0,0]
["ED_LAB2111_00004",null,null,"Senior manager",73.831124820154614,18344.004315160586,1549.9,0,"ED_LAB2112_00004",null,null,"Senior manager",1549.9,160.30644406281161,0,0]
["ED_LAB2111_00005",null,null,"Employee (optional)",73.831124820154614,18344.004315160586,0,0,"ED_LAB2112_00005",null,null,"Employee (optional)",0,0,0,0]
["ED_LAB2111_00006",null,null,"Labour hire (optional)",0,0,0,0,"ED_LAB2112_00006",null,null,"Labour hire (optional)",0,0,0,0]
["ED_LAB2111_00007",null,null,"Manager",67.091128119910792,9375.5537981738016,1552.3050426203906,0,"ED_LAB2112_00007",null,null,"Manager",1549.9,90.008909311606303,2.4050426203905664,99.275598166997469]
["ED_LAB2111_00008",null,null,"Employee (optional)",67.091128119910792,9375.5537981738016,0,0,"ED_LAB2112_00008",null,null,"Employee (optional)",0,0,0,0]
["ED_LAB2111_00009",null,null,"Labour hire (optional)",0,0,0,0,"ED_LAB2112_00009",null,null,"Labour hire (optional)",0,0,0,0]
["ED_LAB2111_00010",null,null,"Professional",128.96937687350805,16646.823717782139,1560.5829311801201,5.2141801690035169E-2,"ED_LAB2112_00010",null,null,"Professional",1549.9,82.537181872659062,10.682931180120098,107.7801600059704]
["ED_LAB2111_00011",null,null,"Employee (optional)",90.549552171141301,11731.991532776907,0,5.2141801690035169E-2,"ED_LAB2112_00011",null,null,"Employee (optional)",0,0,0,0]
["ED_LAB2111_00012",null,null,"Labour hire (optional)",38.419824702366739,4914.8321850052334,0,0,"ED_LAB2112_00012",null,null,"Labour hire (optional)",0,0,0,0]
["ED_LAB2111_00013",null,null,"Semi professional",28.730878923217627,3523.7084392267925,1573.0902442429751,0,"ED_LAB2112_00013",null,null,"Semi professional",1549.9,77.711684308276332,23.19024424297498,94.867537586355638]
["ED_LAB2111_00014",null,null,"Employee (optional)",28.730878923217627,3523.7084392267925,0,0,"ED_LAB2112_00014",null,null,"Employee (optional)",0,0,0,0]
["ED_LAB2111_00015",null,null,"Labour hire (optional)",0,0,0,0,"ED_LAB2112_00015",null,null,"Labour hire (optional)",0,0,0,0]
["ED_LAB2111_00016",null,null,"Support staff",362.24184628248094,36417.891216431868,1566.0008422805902,4.610070225294486E-2,"ED_LAB2112_00016",null,null,"Support staff",1549.9,64.036900581096049,16.100842280590118,79.744375214081685]
["ED_LAB2111_00017",null,null,"Employee (optional)",335.54668580148365,33768.375390502697,0,4.610070225294486E-2,"ED_LAB2112_00017",null,null,"Employee (optional)",0,0,0,0]
["ED_LAB2111_00018",null,null,"Labour hire (optional)",26.695160480997291,2649.5158259291716,0,0,"ED_LAB2112_00018",null,null,"Labour hire (optional)",0,0,0,0]
["ED_LAB2111_00019",null,null,"Intern, junior staff, apprentice",0,0,0,0,"ED_LAB2112_00019",null,null,"Intern, junior staff, apprentice",0,0,0,0]
["ED_LAB2111_00020",null,null,"Employee (optional)",0,0,0,0,"ED_LAB2112_00020",null,null,"Employee (optional)",0,0,0,0]
["ED_LAB2111_00021",null,null,"Labour hire (optional)",0,0,0,0,"ED_LAB2112_00021",null,null,"Labour hire (optional)",0,0,0,0]
["ED_LAB2111_00022","NETWORK OVERHEADS \nINTERNAL LABOUR COSTS","LABOUR CLASSIFICATION LEVEL","Executive manager",2.8063838783429356,1293.1378773668687,1549.9,0,"ED_LAB2112_00022","NETWORK OVERHEADS \nINTERNAL LABOUR COSTS","LABOUR CLASSIFICATION LEVEL","Executive manager",1549.9,297.29943081413302,0,0]
["ED_LAB2111_00023",null,null,"Employee (optional)",2.8063838783429356,1293.1378773668687,0,0,"ED_LAB2112_00023",null,null,"Employee (optional)",0,0,0,0]
["ED_LAB2111_00024",null,null,"Labour hire (optional)",0,0,0,0,"ED_LAB2112_00024",null,null,"Labour hire (optional)",0,0,0,0]
["ED_LAB2111_00025",null,null,"Senior manager",69.958507412962092,12712.343006569092,1549.9,0,"ED_LAB2112_00025",null,null,"Senior manager",1549.9,117.24150620662058,0,0]
["ED_LAB2111_00026",null,null,"Employee (optional)",69.958507412962092,12712.343006569092,0,0,"ED_LAB2112_00026",null,null,"Employee (optional)",0,0,0,0]
["ED_LAB2111_00027",null,null,"Labour hire (optional)",0,0,0,0,"ED_LAB2112_00027",null,null,"Labour hire (optional)",0,0,0,0]
["ED_LAB2111_00028",null,null,"Manager",152.47726979665867,24343.575134978317,1570.3407477562605,5.4343062881310231E-2,"ED_LAB2112_00028",null,null,"Manager",1549.9,101.60800581206456,20.440747756260322,106.23628760515608]
["ED_LAB2111_00029",null,null,"Employee (optional)",152.47726979665867,24343.575134978317,0,5.4343062881310231E-2,"ED_LAB2112_00029",null,null,"Employee (optional)",0,0,0,0]
["ED_LAB2111_00030",null,null,"Labour hire (optional)",0,0,0,0,"ED_LAB2112_00030",null,null,"Labour hire (optional)",0,0,0,0]
["ED_LAB2111_00031",null,null,"Professional",54.651502219430569,8156.3652557634878,1553.0055862991953,0,"ED_LAB2112_00031",null,null,"Professional",1549.9,96.083744652290378,3.1055862991952772,104.00852558139412]
["ED_LAB2111_00032",null,null,"Employee (optional)",48.228699357136321,7199.880195690851,0,0,"ED_LAB2112_00032",null,null,"Employee (optional)",0,0,0,0]
["ED_LAB2111_00033",null,null,"Labour hire (optional)",6.4228028622942466,956.48506007263711,0,0,"ED_LAB2112_00033",null,null,"Labour hire (optional)",0,0,0,0]
["ED_LAB2111_00034",null,null,"Semi professional",19.731058711986776,2351.1785098205032,1566.6627353300539,0.36324238704339784,"ED_LAB2112_00034",null,null,"Semi professional",1549.9,75.728309927669329,16.762735330053914,106.78373834377678]
["ED_LAB2111_00035",null,null,"Employee (optional)",19.731058711986776,2351.1785098205032,0,0.36324238704339784,"ED_LAB2112_00035",null,null,"Employee (optional)",0,0,0,0]
["ED_LAB2111_00036",null,null,"Labour hire (optional)",0,0,0,0,"ED_LAB2112_00036",null,null,"Labour hire (optional)",0,0,0,0]
["ED_LAB2111_00037",null,null,"Support staff",297.34629411153617,31413.650394989771,1637.722962347279,0.12316029821397877,"ED_LAB2112_00037",null,null,"Support staff",1549.9,65.733333942904224,87.822962347279002,42.888454703023491]
["ED_LAB2111_00038",null,null,"Employee (optional)",292.7437869544645,30944.746531911642,0,0.12316029821397877,"ED_LAB2112_00038",null,null,"Employee (optional)",0,0,0,0]
["ED_LAB2111_00039",null,null,"Labour hire (optional)",4.6025071570716944,468.90386307812776,0,0,"ED_LAB2112_00039",null,null,"Labour hire (optional)",0,0,0,0]
["ED_LAB2111_00040",null,null,"Intern, junior staff, apprentice",0,0,0,0,"ED_LAB2112_00040",null,null,"Intern, junior staff, apprentice",1549.9,0,0,0]
["ED_LAB2111_00041",null,null,"Employee (optional)",0,0,0,0,"ED_LAB2112_00041",null,null,"Employee (optional)",0,0,0,0]
["ED_LAB2111_00042",null,null,"Labour hire (optional)",0,0,0,0,"ED_LAB2112_00042",null,null,"Labour hire (optional)",0,0,0,0]
["ED_LAB2111_00043","TOTAL DIRECT NETWORK LABOUR \nINTERNAL LABOUR COSTS","LABOUR CLASSIFICATION LEVEL","Skilled electrical worker",1757.7947986933384,220859.45012119127,1699.9444240617113,2.0386714181217194,"ED_LAB2112_00043","TOTAL DIRECT NETWORK LABOUR \nINTERNAL LABOUR COSTS","LABOUR CLASSIFICATION LEVEL","Skilled electrical worker",1549.9,73.308701377640517,150.04442406171125,80.140240148253028]
["ED_LAB2111_00044",null,null,"Employee (optional)",1757.7947986933384,220859.45012119127,0,2.0386714181217194,"ED_LAB2112_00044",null,null,"Employee (optional)",0,0,0,0]
["ED_LAB2111_00045",null,null,"Labour hire (optional)",0,0,0,0,"ED_LAB2112_00045",null,null,"Labour hire (optional)",0,0,0,0]
["ED_LAB2111_00046",null,null,"Skilled non electical worker",36.745410318262472,4644.7162233346216,1562.2508279498149,0.13832178398657594,"ED_LAB2112_00046",null,null,"Skilled non electical worker",1549.9,80.751785958232858,12.350827949814907,100.83771649921671]
["ED_LAB2111_00047",null,null,"Employee (optional)",36.745410318262472,4644.7162233346216,0,0.13832178398657594,"ED_LAB2112_00047",null,null,"Employee (optional)",0,0,0,0]
["ED_LAB2111_00048",null,null,"Labour hire (optional)",0,0,0,0,"ED_LAB2112_00048",null,null,"Labour hire (optional)",0,0,0,0]
["ED_LAB2111_00049",null,null,"Apprentice",190.0936017790755,16867.873547180599,1665.0528407042013,1.1151735695242937,"ED_LAB2112_00049",null,null,"Apprentice",1549.9,52.381581273332763,115.15284070420124,65.550747029585921]
["ED_LAB2111_00050",null,null,"Employee (optional)",190.0936017790755,16867.873547180599,0,1.1151735695242937,"ED_LAB2112_00050",null,null,"Employee (optional)",0,0,0,0]
["ED_LAB2111_00051",null,null,"Labour hire (optional)",0,0,0,0,"ED_LAB2112_00051",null,null,"Labour hire (optional)",0,0,0,0]
["ED_LAB2111_00052",null,null,"Unskilled worker",319.98251327231998,33504.337250364173,1625.7525341366131,0.43112836843430363,"ED_LAB2112_00052",null,null,"Unskilled worker",1549.9,64.064463808303458,75.852534136613031,71.365621748744729]
["ED_LAB2111_00053",null,null,"Employee (optional)",319.98251327231998,33504.337250364173,0,0.43112836843430363,"ED_LAB2112_00053",null,null,"Employee (optional)",0,0,0,0]
["ED_LAB2111_00054",null,null,"Labour hire (optional)",0,0,0,0,"ED_LAB2112_00054",null,null,"Labour hire (optional)",0,0,0,0]

{"sheet":"2.12 Input tables","index":12,"n_rows":79,"n_cols":18,"rows_kept":79,"cut":false,"hidden":false,"merged":[]}
[null,{"$f":"(LOOKUP(dms_Model,dms_Model_List,dms_Worksheet_List))","v":"REGULATORY REPORTING STATEMENT"}]
[null,"Australian Distribution Co."]
[null,{"$f":"CONCATENATE(\"Category Analysis RIN response \",CRY)","v":"Category Analysis RIN response 2014-15"}]
[null,"2.12 INPUT TABLES"]
[null,null,null,null,1]
[]
[null,null,null,null,null,null,null,null,null,null,null,null,"DIRECT MATERIAL EXPENDITURE","DIRECT LABOUR EXPENDITURE","CONTRACT EXPENDITURE","OTHER EXPENDITURE","RELATED PARTY CONTRACT EXPENDITURE","RELATED PARTY CONTRACT MARGIN\nEXPENDITURE"]
[null,null,null,null,"DNSP NAME","SERVICE","SERVICE SUBCATEGORY","DATA CATEGORY","DATA SUBCATEGORY","MEASUREMENT","DENOMINATION",null,{"$f":"CRY","v":"2014-15"},"2014-15","2014-15","2014-15","2014-15","2014-15"]
["ED_INP212_00001","VEGETATION MANAGEMENT",{"$f":"'2.7 Vegetation management'!I11","v":"ZONE 1 - FNC"},null,"DNSP NAME","INPUT COSTS","VEGETATION MANAGEMENT","DIRECT MATERIAL COST",{"$f":"$C$9","v":"ZONE 1 - FNC"},"EXPENDITURE","$0's",null,48005.671968637638,1949050.901199765,null,410931.10734128731,"",""]
["ED_INP212_00002",null,{"$f":"'2.7 Vegetation management'!I23","v":"ZONE 2 - MNC"},null,"DNSP NAME","INPUT COSTS","VEGETATION MANAGEMENT","DIRECT MATERIAL COST",{"$f":"$C$10","v":"ZONE 2 - MNC"},"EXPENDITURE","$0's",null,29697.422134477642,1205728.0942203659,null,254211.51423263538]
["ED_INP212_00003",null,{"$f":"'2.7 Vegetation management'!I35","v":"ZONE 3 - SE"},null,"DNSP NAME","INPUT COSTS","VEGETATION MANAGEMENT","DIRECT MATERIAL COST",{"$f":"$C$11","v":"ZONE 3 - SE"},"EXPENDITURE","$0's",null,39748.572055950244,1613809.098176284,null,340249.89257222816,"",""]
["ED_INP212_00004",null,{"$f":"'2.7 Vegetation management'!I47","v":"ZONE 4 - STH & CW"},null,"DNSP NAME","INPUT COSTS","VEGETATION MANAGEMENT","DIRECT MATERIAL COST",{"$f":"$C$12","v":"ZONE 4 - STH & CW"},"EXPENDITURE","$0's",null,44521.826305329661,1807605.2708970089,null,381109.20302205236,"",""]
["ED_INP212_00005",null,{"$f":"'2.7 Vegetation management'!I59","v":"ZONE 5 - NTH & NW"},null,"DNSP NAME","INPUT COSTS","VEGETATION MANAGEMENT","DIRECT MATERIAL COST",{"$f":"$C$13","v":"ZONE 5 - NTH & NW"},"EXPENDITURE","$0's",null,44882.901266138513,1822265.0693938392,null,384200.02390620392,"",""]
["ED_INP212_00006",null,{"$f":"'2.7 Vegetation management'!I71","v":"ZONE 6 - FW"},null,"DNSP NAME","INPUT COSTS","VEGETATION MANAGEMENT","DIRECT MATERIAL COST",{"$f":"$C$14","v":"ZONE 6 - FW"},"EXPENDITURE","$0's",null,5937.355186726847,241059.17077867893,null,50824.076437346019,"",""]
["ED_INP212_00007",null,{"$f":"'2.7 Vegetation management'!I83","v":"ZONE 7 - FNC - (LV, Subt)"},null,"DNSP NAME","INPUT COSTS","VEGETATION MANAGEMENT","DIRECT MATERIAL COST",{"$f":"$C$15","v":"ZONE 7 - FNC - (LV, Subt)"},"EXPENDITURE","$0's",null,"","","","","",""]
["ED_INP212_00008",null,{"$f":"'2.7 Vegetation management'!I95","v":"ZONE 8 - MNC - (LV, Subt)"},null,"DNSP NAME","INPUT COSTS","VEGETATION MANAGEMENT","DIRECT MATERIAL COST",{"$f":"$C$16","v":"ZONE 8 - MNC - (LV, Subt)"},"EXPENDITURE","$0's",null,"","","","","",""]
["ED_INP212_00009",null,{"$f":"'2.7 Vegetation management'!I107","v":"ZONE 9 - SE - (LV, Subt)"},null,"DNSP NAME","INPUT COSTS","VEGETATION MANAGEMENT","DIRECT MATERIAL COST",{"$f":"$C$17","v":"ZONE 9 - SE - (LV, Subt)"},"EXPENDITURE","$0's",null,"","","","","",""]
["ED_INP212_00010",null,{"$f":"'2.7 Vegetation management'!I119","v":"ZONE 10 - STH & CW - (LV, Subt)"},null,"DNSP NAME","INPUT COSTS","VEGETATION MANAGEMENT","DIRECT MATERIAL COST",{"$f":"$C$18","v":"ZONE 10 - STH & CW - (LV, Subt)"},"EXPENDITURE","$0's",null,"","","","","",""]
["ED_INP212_00011",null,{"$f":"'2.7 Vegetation management'!I131","v":"ZONE 11 - NTH & NW - (LV, Subt)"},null,"DNSP NAME","INPUT COSTS","VEGETATION MANAGEMENT","DIRECT MATERIAL COST",{"$f":"$C$19","v":"ZONE 11 - NTH & NW - (LV, Subt)"},"EXPENDITURE","$0's",null,"","","","","",""]
["ED_INP212_00012",null,{"$f":"'2.7 Vegetation management'!I143","v":"ZONE 12 - FW - (LV, Subt)"},null,"DNSP NAME","INPUT COSTS","VEGETATION MANAGEMENT","DIRECT MATERIAL COST",{"$f":"$C$20","v":"ZONE 12 - FW - (LV, Subt)"},"EXPENDITURE","$0's",null,"","","","","",""]
["ED_INP212_00013",null,{"$f":"'2.7 Vegetation management'!I155","v":"ZONE 13"},null,"DNSP NAME","INPUT COSTS","VEGETATION MANAGEMENT","DIRECT MATERIAL COST",{"$f":"$C$21","v":"ZONE 13"},"EXPENDITURE","$0's",null,"","","","","",""]
["ED_INP212_00014",null,{"$f":"'2.7 Vegetation management'!I167","v":"ZONE 14"},null,"DNSP NAME","INPUT COSTS","VEGETATION MANAGEMENT","DIRECT MATERIAL COST",{"$f":"$C$22","v":"ZONE 14"},"EXPENDITURE","$0's",null,"","","","","",""]
["ED_INP212_00015",null,{"$f":"'2.7 Vegetation management'!I179","v":"ZONE 15"},null,"DNSP NAME","INPUT COSTS","VEGETATION MANAGEMENT","DIRECT MATERIAL COST",{"$f":"$C$23","v":"ZONE 15"},"EXPENDITURE","$0's",null,"","","","","",""]
["ED_INP212_00016",null,{"$f":"'2.7 Vegetation management'!I191","v":"ZONE 16"},null,"DNSP NAME","INPUT COSTS","VEGETATION MANAGEMENT","DIRECT MATERIAL COST",{"$f":"$C$24","v":"ZONE 16"},"EXPENDITURE","$0's",null,"","","","","",""]
["ED_INP212_00017",null,{"$f":"'2.7 Vegetation management'!I203","v":"ZONE 17"},null,"DNSP NAME","INPUT COSTS","VEGETATION MANAGEMENT","DIRECT MATERIAL COST",{"$f":"$C$25","v":"ZONE 17"},"EXPENDITURE","$0's",null,"","","","","",""]
["ED_INP212_00018",null,{"$f":"'2.7 Vegetation management'!I215","v":"ZONE 18"},null,"DNSP NAME","INPUT COSTS","VEGETATION MANAGEMENT","DIRECT MATERIAL COST",{"$f":"$C$26","v":"ZONE 18"},"EXPENDITURE","$0's",null,"","","","","",""]
["ED_INP212_00019","ROUTINE MAINTENANCE","Pole top, overhead line & service line maintenance",null,"DNSP NAME","INPUT COSTS","ROUTINE MAINTENANCE","DIRECT MATERIAL COST",{"$f":"$C$27","v":"Pole top, overhead line & service line maintenance"},"EXPENDITURE","$0's",null,0,0,0,0,"",""]
["ED_INP212_00020",null,"Pole inspection and treatment",null,"DNSP NAME","INPUT COSTS","ROUTINE MAINTENANCE","DIRECT MATERIAL COST",{"$f":"$C$28","v":"Pole inspection and treatment"},"EXPENDITURE","$0's",null,1124127.5539102349,7556462.6476728823,2031508.7552314124,1688290.3111012434,"",""]
["ED_INP212_00021",null,"Overhead asset inspection",null,"DNSP NAME","INPUT COSTS","ROUTINE MAINTENANCE","DIRECT MATERIAL COST",{"$f":"$C$29","v":"Overhead asset inspection"},"EXPENDITURE","$0's",null,323826.35676653992,2176783.0178404739,585214.79760689905,486344.18639276637,"",""]
["ED_INP212_00022",null,"Network underground cable maintenance",null,"DNSP NAME","INPUT COSTS","ROUTINE MAINTENANCE","DIRECT MATERIAL COST",{"$f":"$C$30","v":"Network underground cable maintenance"},"EXPENDITURE","$0's",null,0,0,0,0,null,""]
["ED_INP212_00023",null,"Distribution substation equipment & property maintenance",null,"DNSP NAME","INPUT COSTS","ROUTINE MAINTENANCE","DIRECT MATERIAL COST",{"$f":"$C$31","v":"Distribution substation equipment & property maintenance"},"EXPENDITURE","$0's",null,0,0,0,0,"",""]
["ED_INP212_00024",null,"Zone substation equipment maintenance",null,"DNSP NAME","INPUT COSTS","ROUTINE MAINTENANCE","DIRECT MATERIAL COST",{"$f":"$C$32","v":"Zone substation equipment maintenance"},"EXPENDITURE","$0's",null,1734720.9478127596,6090252.1084707696,25099.853273910896,1533590.1407218745,"",""]
["ED_INP212_00025",null,"Zone substation property maintenance",null,"DNSP NAME","INPUT COSTS","ROUTINE MAINTENANCE","DIRECT MATERIAL COST",{"$f":"$C$33","v":"Zone substation property maintenance"},"EXPENDITURE","$0's",null,0,0,0,0,"",""]
["ED_INP212_00026",null,"Public lighting maintenance",null,"DNSP NAME","INPUT COSTS","ROUTINE MAINTENANCE","DIRECT MATERIAL COST",{"$f":"$C$34","v":"Public lighting maintenance"},"EXPENDITURE","$0's",null,1763962.4994324464,2036119.438089092,1238476.8809738858,621455.26129321952,"",""]
["ED_INP212_00027",null,"Scada & network control maintenance",null,"DNSP NAME","INPUT COSTS","ROUTINE MAINTENANCE","DIRECT MATERIAL COST",{"$f":"$C$35","v":"Scada & network control maintenance"},"EXPENDITURE","$0's",null,157172.5130926235,853449.19840104226,679.49370177216645,54153.677426521157,"",""]
["ED_INP212_00028",null,"Protection systems maintenance",null,"DNSP NAME","INPUT COSTS","ROUTINE MAINTENANCE","DIRECT MATERIAL COST",{"$f":"$C$36","v":"Protection systems maintenance"},"EXPENDITURE","$0's",null,0,0,0,0,"",""]
["ED_INP212_00029",null,"Subtransmission asset maintenance - for dnsps with dual function assets",null,"DNSP NAME","INPUT COSTS","ROUTINE MAINTENANCE","DIRECT MATERIAL COST",{"$f":"$C$37","v":"Subtransmission asset maintenance - for dnsps with dual function assets"},"EXPENDITURE","$0's",null,0,0,0,0,"",""]
["ED_INP212_00031",null,"Other",null,"DNSP NAME","INPUT COSTS","ROUTINE MAINTENANCE","DIRECT MATERIAL COST",{"$f":"$C$38","v":"Other"},"EXPENDITURE","$0's",null,284428.00433561002,1911944.5860374337,514014.60539853497,427173.0928179152,"",""]
["ED_INP212_00032","NON-ROUTINE MAINTENANCE","Pole top, overhead line & service line maintenance",null,"DNSP NAME","INPUT COSTS","NON-ROUTINE MAINTENANCE","DIRECT MATERIAL COST",{"$f":"$C$39","v":"Pole top, overhead line & service line maintenance"},"EXPENDITURE","$0's",null,9350873.3877652735,27718530.318963043,2702204.5591986608,8426802.9693888016,"",""]
["ED_INP212_00033",null,"Pole inspection and treatment",null,"DNSP NAME","INPUT COSTS","NON-ROUTINE MAINTENANCE","DIRECT MATERIAL COST",{"$f":"$C$40","v":"Pole inspection and treatment"},"EXPENDITURE","$0's",null,0,0,0,0,"",""]
["ED_INP212_00034",null,"Overhead asset inspection",null,"DNSP NAME","INPUT COSTS","NON-ROUTINE MAINTENANCE","DIRECT MATERIAL COST",{"$f":"$C$41","v":"Overhead asset inspection"},"EXPENDITURE","$0's",null,0,0,0,0,"",""]
["ED_INP212_00035",null,"Network underground cable maintenance",null,"DNSP NAME","INPUT COSTS","NON-ROUTINE MAINTENANCE","DIRECT MATERIAL COST",{"$f":"$C$42","v":"Network underground cable maintenance"},"EXPENDITURE","$0's",null,196375.28234213777,582109.71229889884,56748.301602837309,176969.11761423908,"",""]
["ED_INP212_00036",null,"Distribution substation equipment & property maintenance",null,"DNSP NAME","INPUT COSTS","NON-ROUTINE MAINTENANCE","DIRECT MATERIAL COST",{"$f":"$C$43","v":"Distribution substation equipment & property maintenance"},"EXPENDITURE","$0's",null,612240.71382234781,1814847.8847753936,176924.61223808405,551737.96620636992,"",""]
["ED_INP212_00037",null,"Zone substation equipment maintenance",null,"DNSP NAME","INPUT COSTS","NON-ROUTINE MAINTENANCE","DIRECT MATERIAL COST",{"$f":"$C$44","v":"Zone substation equipment maintenance"},"EXPENDITURE","$0's",null,1287792.562692574,3817367.1820039474,372144.80294034246,1160530.5452486794,"",""]
["ED_INP212_00038",null,"Zone substation property maintenance",null,"DNSP NAME","INPUT COSTS","NON-ROUTINE MAINTENANCE","DIRECT MATERIAL COST",{"$f":"$C$45","v":"Zone substation property maintenance"},"EXPENDITURE","$0's",null,0,0,0,0,"",""]
["ED_INP212_00039",null,"Public lighting maintenance",null,"DNSP NAME","INPUT COSTS","NON-ROUTINE MAINTENANCE","DIRECT MATERIAL COST",{"$f":"$C$46","v":"Public lighting maintenance"},"EXPENDITURE","$0's",null,652681.11172712874,753381.49132353417,458246.96827878273,229943.72667221507,"",""]
["ED_INP212_00040",null,"SCADA & network control maintenance",null,"DNSP NAME","INPUT COSTS","NON-ROUTINE MAINTENANCE","DIRECT MATERIAL COST",{"$f":"$C$47","v":"SCADA & network control maintenance"},"EXPENDITURE","$0's",null,58175.486907376508,315893.8015989578,251.5062982278337,20044.322573478843,"",""]
["ED_INP212_00041",null,"Protection systems maintenance",null,"DNSP NAME","INPUT COSTS","NON-ROUTINE MAINTENANCE","DIRECT MATERIAL COST",{"$f":"$C$48","v":"Protection systems maintenance"},"EXPENDITURE","$0's",null,102500.61923211787,303839.69540378347,29620.510205187213,92371.320484302531,"",""]
["ED_INP212_00042",null,"Subtransmission asset maintenance - for DNSP with dual function assets",null,"DNSP NAME","INPUT COSTS","NON-ROUTINE MAINTENANCE","DIRECT MATERIAL COST",{"$f":"$C$49","v":"Subtransmission asset maintenance - for DNSP with dual function assets"},"EXPENDITURE","$0's",null,0,0,0,0,"",""]
["ED_INP212_00044",null,"Other",null,"DNSP NAME","INPUT COSTS","NON-ROUTINE MAINTENANCE","DIRECT MATERIAL COST",{"$f":"$C$50","v":"Other"},"EXPENDITURE","$0's",null,0,0,0,0,"",""]
["ED_INP212_00045","OVERHEADS","Network overheads",null,"DNSP NAME","INPUT COSTS","OVERHEADS","DIRECT MATERIAL COST",{"$f":"$C$51","v":"Network overheads"},"EXPENDITURE","$0's",null,"","","",186647194.8867636,"",""]
["ED_INP212_00046",null,"Corporate overheads",null,"DNSP NAME","INPUT COSTS","OVERHEADS","DIRECT MATERIAL COST",{"$f":"$C$52","v":"Corporate overheads"},"EXPENDITURE","$0's",null,"","","",131059125.08663328,"",""]
["ED_INP212_00047","AUGMENTATION","Subtransmission substations, switching stations, zone substations",null,"DNSP NAME","INPUT COSTS","AUGMENTATION","DIRECT MATERIAL COST",{"$f":"$C$53","v":"Subtransmission substations, switching stations, zone substations"},"EXPENDITURE","$0's",null,2433755.2544973097,6949989.7131459033,3034288.3711048206,7453625.6430697069,"",""]
["ED_INP212_00048",null,"Subtransmission lines",null,"DNSP NAME","INPUT COSTS","AUGMENTATION","DIRECT MATERIAL COST",{"$f":"$C$54","v":"Subtransmission lines"},"EXPENDITURE","$0's",null,2523236.3272159235,7205517.6811971013,3145849.0458613932,7727670.6264148392,"",""]
["ED_INP212_00049",null,"HV feeders",null,"DNSP NAME","INPUT COSTS","AUGMENTATION","DIRECT MATERIAL COST",{"$f":"$C$55","v":"HV feeders"},"EXPENDITURE","$0's",null,6019492.6670641536,17189654.562489741,7504812.3947023991,18435315.062428776,"",""]
["ED_INP212_00050",null,"Distribution substations",null,"DNSP NAME","INPUT COSTS","AUGMENTATION","DIRECT MATERIAL COST",{"$f":"$C$56","v":"Distribution substations"},"EXPENDITURE","$0's",null,538511.34568285942,1537808.0051361907,671389.90697362029,1649246.3520514497,"",""]
["ED_INP212_00051",null,"LV feeders",null,"DNSP NAME","INPUT COSTS","AUGMENTATION","DIRECT MATERIAL COST",{"$f":"$C$57","v":"LV feeders"},"EXPENDITURE","$0's",null,2482960.4147041026,7090503.1672571879,3095634.9856166644,7604321.5042130901,"",""]
["ED_INP212_00052",null,"Other assets",null,"DNSP NAME","INPUT COSTS","AUGMENTATION","DIRECT MATERIAL COST",{"$f":"$C$58","v":"Other assets"},"EXPENDITURE","$0's",null,1922263.3619486627,5489340.2148031117,2396585.0118180532,5887129.1436875965,"",""]
["ED_INP212_00053","CONNECTIONS","Simple and complex customer connections",null,"DNSP NAME","INPUT COSTS","CONNECTIONS","DIRECT MATERIAL COST",{"$f":"$C$59","v":"Simple and complex customer connections"},"EXPENDITURE","$0's",null,227681.18017608393,13535703.172048908,-2508.0776455889336,2150534.6277876035,"",""]
["ED_INP212_00054","EMERGENCY RESPONSE","Major storms",null,"DNSP NAME","INPUT COSTS","EMERGENCY RESPONSE","DIRECT MATERIAL COST",{"$f":"$C$60","v":"Major storms"},"EXPENDITURE","$0's",null,8599915.2325405478,24109529.006237641,779848.9114481603,5825162.0205210801,"",""]
["ED_INP212_00055",null,"Major event days",null,"DNSP NAME","INPUT COSTS","EMERGENCY RESPONSE","DIRECT MATERIAL COST",{"$f":"$C$61","v":"Major event days"},"EXPENDITURE","$0's",null,537440.99788205512,1506695.0053821492,48735.687019338016,364036.24971645745,"",""]
["ED_INP212_00056","PUBLIC LIGHTING","All public lighting services",null,"DNSP NAME","INPUT COSTS","PUBLIC LIGHTING","DIRECT MATERIAL COST",{"$f":"$C$62","v":"All public lighting services"},"EXPENDITURE","$0's",null,2416643.6111595747,2789500.9294126257,1696723.8492526682,851398.98796543444,"",""]
["ED_INP212_00057","METERING","All metering services",null,"DNSP NAME","INPUT COSTS","METERING","DIRECT MATERIAL COST",{"$f":"$C$63","v":"All metering services"},"EXPENDITURE","$0's",null,10694.548163231699,27875823.111102041,5056.1492405182526,2525159.3333811709,"",""]
["ED_INP212_00058","FEE-BASED SERVICES","All fee-based services",null,"DNSP NAME","INPUT COSTS","FEE-BASED SERVICES","DIRECT MATERIAL COST",{"$f":"$C$64","v":"All fee-based services"},"EXPENDITURE","$0's",null,129370.9377431638,18489928.009394258,78685.269578842635,5440288.6082285289,"",""]
["ED_INP212_00059","QUOTED SERVICES","All quoted services",null,"DNSP NAME","INPUT COSTS","QUOTED SERVICES","DIRECT MATERIAL COST",{"$f":"$C$65","v":"All quoted services"},"EXPENDITURE","$0's",null,649.93985365380513,92890.57739036229,395.30278969076699,27331.179966293123,"",""]
["ED_INP212_00060","REPLACEMENT","Poles",null,"DNSP NAME","INPUT COSTS","REPLACEMENT","DIRECT MATERIAL COST",{"$f":"$C$66","v":"Poles"},"EXPENDITURE","$0's",null,6773966.6577170016,19344179.535444137,8445454.0849087685,20745969.214430083,"",""]
["ED_INP212_00061",null,"Pole top structures",null,"DNSP NAME","INPUT COSTS","REPLACEMENT","DIRECT MATERIAL COST",{"$f":"$C$67","v":"Pole top structures"},"EXPENDITURE","$0's",null,717699.02048040659,2049507.977540652,894792.43558811396,2198027.0255908277,"",""]
["ED_INP212_00062",null,"Overhead conductors",null,"DNSP NAME","INPUT COSTS","REPLACEMENT","DIRECT MATERIAL COST",{"$f":"$C$68","v":"Overhead conductors"},"EXPENDITURE","$0's",null,2234186.976267607,6380089.5647215052,2785476.2916014222,6842427.2765094563,"",""]
["ED_INP212_00063",null,"Underground cables",null,"DNSP NAME","INPUT COSTS","REPLACEMENT","DIRECT MATERIAL COST",{"$f":"$C$69","v":"Underground cables"},"EXPENDITURE","$0's",null,446384.24228259613,1274723.859862919,556530.2891075958,1367097.6277468894,"",""]
["ED_INP212_00064",null,"Service lines",null,"DNSP NAME","INPUT COSTS","REPLACEMENT","DIRECT MATERIAL COST",{"$f":"$C$70","v":"Service lines"},"EXPENDITURE","$0's",null,189609.14579319308,541460.20243652654,236395.51473890417,580697.49973137607,"",""]
["ED_INP212_00065",null,"Transformers",null,"DNSP NAME","INPUT COSTS","REPLACEMENT","DIRECT MATERIAL COST",{"$f":"$C$71","v":"Transformers"},"EXPENDITURE","$0's",null,1273621.9092075282,3637037.5168467253,1587890.2125230087,3900598.0180227379,"",""]
["ED_INP212_00066",null,"Switchgear",null,"DNSP NAME","INPUT COSTS","REPLACEMENT","DIRECT MATERIAL COST",{"$f":"$C$72","v":"Switchgear"},"EXPENDITURE","$0's",null,4685276.3596060993,13379579.743006598,5841376.0163823524,14349140.471004954,"",""]
["ED_INP212_00067",null,"Public lighting",null,"DNSP NAME","INPUT COSTS","REPLACEMENT","DIRECT MATERIAL COST",{"$f":"$C$74","v":"SCADA network control and protection systems"},"EXPENDITURE","$0's",null,870797.25598929427,507433.44188988215,20328.336695362559,171006.16870067437,"",""]
["ED_INP212_00068",null,"SCADA network control and protection systems",null,"DNSP NAME","INPUT COSTS","REPLACEMENT","DIRECT MATERIAL COST",{"$f":"$C$74","v":"SCADA network control and protection systems"},"EXPENDITURE","$0's",null,400865.12393112056,1144736.5064880745,499779.25334851549,1227690.6486895143,"",""]
["ED_INP212_00069",null,"Other",null,"DNSP NAME","INPUT COSTS","REPLACEMENT","DIRECT MATERIAL COST",{"$f":"$C$75","v":"Other"},"EXPENDITURE","$0's",null,2245653.5109047345,6412834.1464234674,2799772.2125417111,6877544.7175300792,"",""]
["ED_INP212_00070","NON-NETWORK EXPENDITURE","IT and communications",null,"DNSP NAME","INPUT COSTS","NON-NETWORK","DIRECT MATERIAL COST",{"$f":"$C$76","v":"IT and communications"},"EXPENDITURE","$0's",null,"","","",63050332.997023672,"",""]
["ED_INP212_00071",null,"Motor vehicles",null,"DNSP NAME","INPUT COSTS","NON-NETWORK","DIRECT MATERIAL COST",{"$f":"$C$77","v":"Motor vehicles"},"EXPENDITURE","$0's",null,"","","",83822715.71357879,"",""]
["ED_INP212_00072",null,"Buildings and property",null,"DNSP NAME","INPUT COSTS","NON-NETWORK","DIRECT MATERIAL COST",{"$f":"$C$78","v":"Buildings and property"},"EXPENDITURE","$0's",null,"","","",33676146.51608251,"",""]
["ED_INP212_00073",null,"Other",null,"DNSP NAME","INPUT COSTS","NON-NETWORK","DIRECT MATERIAL COST",{"$f":"$C$79","v":"Other"},"EXPENDITURE","$0's",null,"","","",9775777.3105050996,"",""]

{"sheet":"4.1 Public lighting","index":13,"n_rows":237,"n_cols":4,"rows_kept":237,"cut":false,"hidden":false,"merged":[]}
[null,{"$f":"(LOOKUP(dms_Model,dms_Model_List,dms_Worksheet_List))","v":"REGULATORY REPORTING STATEMENT"}]
[null,"Australian Distribution Co."]
[null,{"$f":"CONCATENATE(\"Category Analysis RIN response \",CRY)","v":"Category Analysis RIN response 2014-15"}]
[null,"4.1 PUBLIC LIGHTING"]
[]
[null,"TABLE 4.1.1 - DESCRIPTOR METRICS OVER 2013-14 YEAR"]
[]
[]
[null,null,"LIGHT TYPE","VOLUME \n(0's)"]
["PUB411",null,null,{"$f":"CRY","v":"2014-15"}]
["ED_PUB411_00001","POPULATION OF LIGHTS","High Pressure Sodium 1000",30]
["ED_PUB411_00002",null,"High Pressure Sodium 150",9817]
["ED_PUB411_00003",null,"High Pressure Sodium 220",80]
["ED_PUB411_00004",null,"High Pressure Sodium 250",23232]
["ED_PUB411_00005",null,"High Pressure Sodium 2x250",9]
["ED_PUB411_00006",null,"High Pressure Sodium 2x400",45]
["ED_PUB411_00007",null,"High Pressure Sodium 310 (Retrofit)",99]
["ED_PUB411_00008",null,"High Pressure Sodium 360",146]
["ED_PUB411_00009",null,"High Pressure Sodium 3x400",3]
["ED_PUB411_00010",null,"High Pressure Sodium 400",2245]
["ED_PUB411_00011",null,"Incandescent 150",18]
["ED_PUB411_00012",null,"Incandescent 1500",3]
["ED_PUB411_00013",null,"Incandescent 200",2]
["ED_PUB411_00014",null,"Incandescent 300",4]
["ED_PUB411_00015",null,"Incandescent 500",5]
["ED_PUB411_00016",null,"LED285",4]
["ED_PUB411_00017",null,"Low Pressure Sodium 150",133]
["ED_PUB411_00018",null,"Low Pressure Sodium 310",2]
["ED_PUB411_00019",null,"Mercury Vapour 1000",6]
["ED_PUB411_00020",null,"Mercury Vapour 250",764]
["ED_PUB411_00021",null,"Mercury Vapour 400",815]
["ED_PUB411_00022",null,"Mercury Vapour 700",1]
["ED_PUB411_00023",null,"Metal Hallide (Constant Ctrl Gear) 250",3]
["ED_PUB411_00024",null,"Metal Hallide (Reactor Ctrl Gear) 1000",10]
["ED_PUB411_00025",null,"Metal Hallide (Reactor Ctrl Gear) 150",183]
["ED_PUB411_00026",null,"Metal Hallide (Reactor Ctrl Gear) 175",29]
["ED_PUB411_00027",null,"Metal Hallide (Reactor Ctrl Gear) 250",189]
["ED_PUB411_00028",null,"Metal Hallide (Reactor Ctrl Gear) 400",154]
["ED_PUB411_00029",null,"Mercury Vapour 2x125",1]
["ED_PUB411_00030",null,"Compact Fluorescent 32",4]
["ED_PUB411_00031",null,"Compact Fluorescent 42",57974]
["ED_PUB411_00032",null,"Fluorescent 15",42]
["ED_PUB411_00033",null,"Fluorescent 20",313]
["ED_PUB411_00034",null,"Fluorescent 26",130]
["ED_PUB411_00035",null,"Fluorescent 2x40",72]
["ED_PUB411_00036",null,"Fluorescent 2x58",4]
["ED_PUB411_00037",null,"Fluorescent 2x80",1]
["ED_PUB411_00038",null,"Fluorescent 3x20",1]
["ED_PUB411_00039",null,"Fluorescent 3x40",2]
["ED_PUB411_00040",null,"Fluorescent 40",1399]
["ED_PUB411_00041",null,"Fluorescent 4x20",28]
["ED_PUB411_00042",null,"Fluorescent 4x40",15]
["ED_PUB411_00043",null,"Fluorescent 65",2]
["ED_PUB411_00044",null,"Fluorescent 80",26]
["ED_PUB411_00045",null,"Fluorescent 9",47]
["ED_PUB411_00046",null,"Fluorescent Twin 20",242]
["ED_PUB411_00047",null,"High Pressure Sodium 100",102]
["ED_PUB411_00048",null,"High Pressure Sodium 120",65]
["ED_PUB411_00049",null,"High Pressure Sodium 50",2707]
["ED_PUB411_00050",null,"High Pressure Sodium 70",29270]
["ED_PUB411_00051",null,"Incandescent 100",30]
["ED_PUB411_00052",null,"Incandescent 30",8]
["ED_PUB411_00053",null,"Incandescent 60",114]
["ED_PUB411_00054",null,"Incandescent 75",32]
["ED_PUB411_00055",null,"LED146",2]
["ED_PUB411_00056",null,"LED28",7]
["ED_PUB411_00057",null,"LED70",9]
["ED_PUB411_00058",null,"LED90",7]
["ED_PUB411_00059",null,"Low Pressure Sodium 135",41]
["ED_PUB411_00060",null,"Low Pressure Sodium 55",343]
["ED_PUB411_00061",null,"Low Pressure Sodium 90/100",233]
["ED_PUB411_00062",null,"Mercury Vapour 125",637]
["ED_PUB411_00063",null,"Mercury Vapour 50",2087]
["ED_PUB411_00064",null,"Mercury Vapour 80",19810]
["ED_PUB411_00065",null,"Metal Hallide (Reactor Ctrl Gear) 100",9]
["ED_PUB411_00066",null,"Metal Hallide (Reactor Ctrl Gear) 70",158]
["ED_PUB411_00067",null,"StreetLED 18w",3]
["ED_PUB411_00068",null,"EvolveLED 25w",1]
["ED_PUB411_00069"]
["ED_PUB411_00070"]
["ED_PUB411_00071"]
["ED_PUB411_00072"]
["ED_PUB411_00073"]
["ED_PUB411_00074"]
["ED_PUB411_00075"]
["ED_PUB411_00076"]
["ED_PUB411_00077"]
["ED_PUB411_00078"]
["ED_PUB411_00079"]
["ED_PUB411_00080"]
["ED_PUB411_00081"]
["ED_PUB411_00082"]
["ED_PUB411_00083"]
["ED_PUB411_00084"]
["ED_PUB411_00085"]
["ED_PUB411_00086"]
["ED_PUB411_00087"]
["ED_PUB411_00088"]
["ED_PUB411_00089"]
["ED_PUB411_00090"]
["ED_PUB411_00091"]
["ED_PUB411_00092"]
["ED_PUB411_00093"]
["ED_PUB411_00094"]
["ED_PUB411_00095"]
["ED_PUB411_00096"]
["ED_PUB411_00097"]
["ED_PUB411_00098"]
["ED_PUB411_00099"]
["ED_PUB411_00100"]
["ED_PUB411_00101"]
["ED_PUB411_00102"]
[]
[]
[]
[]
[null,"TABLE 4.1.2 - DESCRIPTOR METRICS ANNUALLY"]
[]
[]
[null,null,null,"VOLUMES \n& EXPENDITURE"]
["PUB412","SERVICE/SERVICE QUALITY - Volumes and Expenditure","DESCRIPTOR METRIC",{"$f":"CRY","v":"2014-15"}]
["ED_PUB412_00001","LIGHT INSTALLATION","Major road light installation (volume)",331]
["ED_PUB412_00002",null,"Minor road light installation (volume)",729]
["ED_PUB412_00003",null,"Number of poles installed",185]
["ED_PUB412_00004",null,"Total cost ($'s)",0]
["ED_PUB412_00005","LIGHT REPLACEMENT","Major road light replacement (volume)",683]
["ED_PUB412_00006",null,"Minor road light replacement (volume)",2597]
["ED_PUB412_00007",null,"Number of poles replaced",243]
["ED_PUB412_00008",null,"Total cost ($'s)",1569565.2032752133]
["ED_PUB412_00009","LIGHT MAINTENANCE","Major road light maintenance (volume)",10494]
["ED_PUB412_00010",null,"Minor road light maintenance (volume)",37881]
["ED_PUB412_00011",null,"Number of poles installed",11778]
["ED_PUB412_00012",null,"Total cost ($'s)",7754267.3799999999]
["ED_PUB412_00013","QUALITY OF SUPPLY","Mean days to rectify/replace public lighting assets (days)",3.56]
["ED_PUB412_00014",null,"GSO breaches (volume 0's)",44]
["ED_PUB412_00015",null,"GSL payments ($0's)",660]
["ED_PUB412_00016",null,"Customer complaints (volume 0's)",66]
[]
[]
[]
[]
[]
[null,"TABLE 4.1.3 - COST METRICS"]
[]
[]
[null,null,null,"AVERAGE UNIT COST \n($)"]
["PUB413","ROAD TYPE","LIGHT TYPE",{"$f":"CRY","v":"2014-15"}]
["PUB413_00001","LIGHT INSTALLATION - Major Road","High Pressure Sodium 1000",0]
["PUB413_00002",null,"High Pressure Sodium 150",0]
["PUB413_00003",null,"High Pressure Sodium 220",0]
["PUB413_00004",null,"High Pressure Sodium 250",0]
["PUB413_00005",null,"High Pressure Sodium 360",0]
["PUB413_00006",null,"High Pressure Sodium 400",0]
["PUB413_00007",null,"Low Pressure Sodium 150",0]
["PUB413_00008",null,"Mercury Vapour 250",0]
["PUB413_00009",null,"Mercury Vapour 400",0]
["PUB413_00010",null,"Metal Hallide (Reactor Ctrl Gear) 1000",0]
["PUB413_00011",null,"Metal Hallide (Reactor Ctrl Gear) 150",0]
["PUB413_00012",null,"Metal Hallide (Reactor Ctrl Gear) 250",0]
["PUB413_00013",null,"Metal Hallide (Reactor Ctrl Gear) 400",0]
["PUB413_00014"]
["PUB413_00015"]
["PUB413_00010","LIGHT INSTALLATION - Minor Road","Compact Fluorescent 42",0]
["PUB413_00011",null,"Fluorescent 20",0]
["PUB413_00012",null,"Fluorescent 2x14",0]
["PUB413_00013",null,"Fluorescent 40",0]
["PUB413_00014",null,"Fluorescent Twin 20",0]
["PUB413_00014",null,"High Pressure Sodium 50",0]
["PUB413_00015",null,"High Pressure Sodium 70",0]
["PUB413_00016",null,"Low Pressure Sodium 135",0]
["PUB413_00017",null,"Low Pressure Sodium 55",0]
["PUB413_00018",null,"Low Pressure Sodium 90/100",0]
["PUB413_00019",null,"Mercury Vapour 125",0]
["PUB413_00020",null,"Mercury Vapour 50",0]
["PUB413_00021",null,"Mercury Vapour 80",0]
["PUB413_00022",null,"Metal Hallide (Reactor Ctrl Gear) 70",0]
["PUB413_00023"]
["PUB413_00024","LIGHT REPLACEMENT - Major Road","High Pressure Sodium 1000",1250.1599999999999]
["PUB413_00025",null,"High Pressure Sodium 150",441.10561538461536]
["PUB413_00026",null,"High Pressure Sodium 250",468.29098705501616]
["PUB413_00027",null,"High Pressure Sodium 360",588.15]
["PUB413_00028",null,"High Pressure Sodium 3x400",1759.6699999999998]
["PUB413_00029",null,"High Pressure Sodium 400",555.44000000000005]
["PUB413_00030",null,"Low Pressure Sodium 150",490.37000000000006]
["PUB413_00025",null,"Mercury Vapour 250",473.83000000000004]
["PUB413_00026",null,"Mercury Vapour 400",503.88]
["PUB413_00027",null,"Metal Hallide (Reactor Ctrl Gear )250",775.19]
["PUB413_00028",null,"Metal Hallide (Reactor Ctrl Gear) 400",1223.57]
["PUB413_00029"]
["PUB413_00030"]
["PUB413_00025"]
["PUB413_00031"]
["PUB413_00032","LIGHT REPLACEMENT - Minor Road","Compact Fluorescent 32",333]
["PUB413_00033",null,"Compact Fluorescent 42",329.63833449477357]
["PUB413_00034",null,"EvolveLED 25",337.73]
["PUB413_00035",null,"Fluorescent 20",327.60000000000002]
["PUB413_00036",null,"Fluorescent 40",327.60000000000002]
["PUB413_00036",null,"Fluorescent Twin 20",303.53777777777776]
["PUB413_00033",null,"High Pressure Sodium 50",389.181625]
["PUB413_00034",null,"High Pressure Sodium 70",344.75111564625848]
["PUB413_00035",null,"Low Pressure Sodium 55",311.51]
["PUB413_00036",null,"Mercury Vapour 125",327.60000000000002]
["PUB413_00033",null,"Mercury Vapour 50",327.60000000000002]
["PUB413_00034",null,"Mercury Vapour 80",327.60000000000002]
["PUB413_00035",null,"Metal Hallide (Reactor Ctrl Gear) 70",311.51]
["PUB413_00036",null,"StreetLED 18",443.8300000000001]
["PUB413_00037"]
["PUB413_00038","LIGHT MAINTENANCE - Major Road","High Pressure Sodium 150",96.640847039199329]
["PUB413_00039",null,"High Pressure Sodium 220",248.43000000000006]
["PUB413_00040",null,"High Pressure Sodium 250",117.30762028509828]
["PUB413_00041",null,"High Pressure Sodium 2x400",227.63]
["PUB413_00042",null,"High Pressure Sodium 310 (Retrofit)",201.92]
["PUB413_00043",null,"High Pressure Sodium 360",210.32999999999998]
["PUB413_00044",null,"High Pressure Sodium 3x400",227.63]
["PUB413_00039",null,"High Pressure Sodium 400",125.99752419354837]
["PUB413_00040",null,"Low Pressure Sodium 150",144.63083333333336]
["PUB413_00041",null,"Mercury Vapour 250",91.358231046931408]
["PUB413_00042",null,"Mercury Vapour 400",82.974429967426715]
["PUB413_00043",null,"Metal Hallide (Constant Ctrl Gear) 250",93.44]
["PUB413_00044",null,"Metal Hallide (Reactor Ctrl Gear) 150",191.93]
["PUB413_00045",null,"Metal Hallide (Reactor Ctrl Gear) 250",159.19627368421052]
["PUB413_00047",null,"Metal Hallide (Reactor Ctrl Gear) 400",124.08613636363637]
["PUB413_00048","LIGHT MAINTENANCE - Minor Road","Compact Fluorescent (32 & 42)",79.329203760297631]
["PUB413_00049",null,"Fluorescent (26, 40, 80 & 9)",176.86492857142858]
["PUB413_00050",null,"Fluorescent 4x20",158.83000000000001]
["PUB413_00051",null,"Fluorescent Twin 20",181.20000000000002]
["PUB413_00052",null,"High Pressure Sodium 100",181.88947368421054]
["PUB413_00049",null,"High Pressure Sodium 50",87.980982721699078]
["PUB413_00050",null,"High Pressure Sodium 70",112.73441066420406]
["PUB413_00051",null,"Incandescent 100",181.20000000000002]
["PUB413_00052",null,"Low Pressure Sodium 135",211.35000000000002]
["PUB413_00049",null,"Low Pressure Sodium 55",256.63]
["PUB413_00050",null,"Low Pressure Sodium 90/100",137.2990322580645]
["PUB413_00051",null,"Mercury Vapour 125",180.35000000000002]
["PUB413_00052",null,"Mercury Vapour 50",79.109377593361003]
["PUB413_00049",null,"Mercury Vapour 80",72.337872621564486]
["PUB413_00050",null,"Metal Hallide (Reactor Ctrl Gear) (100 & 70)",185.74115384615385]

{"sheet":"4.2 Metering","index":14,"n_rows":45,"n_cols":10,"rows_kept":45,"cut":false,"hidden":false,"merged":[]}
[null,{"$f":"(LOOKUP(dms_Model,dms_Model_List,dms_Worksheet_List))","v":"REGULATORY REPORTING STATEMENT"}]
[null,"Australian Distribution Co."]
[null,{"$f":"CONCATENATE(\"Category Analysis RIN response \",CRY)","v":"Category Analysis RIN response 2014-15"}]
[null,"4.2 METERING"]
[]
[]
[null,"TABLE 4.2.1 - METERING DESCRIPTOR METRIC",null,null,null,"TABLE 4.2.2 - COST METRICS"]
[]
[]
[null,null,null,"VOLUMES\n(0's)",null,null,null,"EXPENDITURE\n($0's)",null,"VOLUMES\n(0's)"]
[null,"ASSET CATEGORY","ASSET SUBCATEGORY",{"$f":"CRY","v":"2014-15"},null,"SERVICE SUBCATEGORY","METER TYPE",{"$f":"CRY","v":"2014-15"},null,{"$f":"CRY","v":"2014-15"}]
["ED_MET421_00001","Meter Type 4","Single phase meter population ",0,"ED_MET422_00001","Meter purchase ","Meter Type 4",0,"ED_MET422_00001",0]
["ED_MET421_00002",null,"Multi phase meter population ",0,"ED_MET422_00002",null,"Meter Type 5",0,"ED_MET422_00002",0]
["ED_MET421_00003",null,"Current transformer connected meter population ",0,"ED_MET422_00003",null,"Meter Type 6",2021541.0065032071,"ED_MET422_00003",24728]
["ED_MET421_00004",null,"Direct connect meter population ",0,"ED_MET422_00004","Meter testing ","Meter Type 4",0,"ED_MET422_00004",0]
["ED_MET421_00005","Meter Type 5","Single phase meter population ",135,"ED_MET422_00005",null,"Meter Type 5",0,"ED_MET422_00005",0]
["ED_MET421_00006",null,"Multi phase meter population ",416,"ED_MET422_00006",null,"Meter Type 6",413698.33588153205,"ED_MET422_00006",622]
["ED_MET421_00007",null,"Current transformer connected meter population ",273,"ED_MET422_00007","Meter investigation ","Meter Type 4",0,"ED_MET422_00007",0]
["ED_MET421_00008",null,"Direct connect meter population ",278,"ED_MET422_00008",null,"Meter Type 5",0,"ED_MET422_00008",0]
["ED_MET421_00009","Meter Type 6","Single phase meter population ",1305949,"ED_MET422_00009",null,"Meter Type 6",0,"ED_MET422_00009",0]
["ED_MET421_00010",null,"Multi phase meter population ",146547,"ED_MET422_00010","Scheduled meter reading ","Meter Type 4",0,"ED_MET422_00010",0]
["ED_MET421_00011",null,"Current transformer connected meter population ",6521,"ED_MET422_00011",null,"Meter Type 5",162249.49504542325,"ED_MET422_00011",14326]
["ED_MET421_00012",null,"Direct connect meter population ",1445975,"ED_MET422_00012",null,"Meter Type 6",13025759.504954576,"ED_MET422_00012",8792733]
[null,null,null,null,"ED_MET422_00013","Special meter reading ","Meter Type 4",0,"ED_MET422_00013",0]
[null,null,null,null,"ED_MET422_00014",null,"Meter Type 5",0,"ED_MET422_00014",0]
[null,null,null,null,"ED_MET422_00015",null,"Meter Type 6",0,"ED_MET422_00015",0]
[null,null,null,null,"ED_MET422_00016","New meter installation ","Meter Type 4",0,"ED_MET422_00016",0]
[null,null,null,null,"ED_MET422_00017",null,"Meter Type 5",0,"ED_MET422_00017",0]
[null,null,null,null,"ED_MET422_00018",null,"Meter Type 6",0,"ED_MET422_00018",0]
[null,null,null,null,"ED_MET422_00019","Meter replacement ","Meter Type 4",0,"ED_MET422_00019",0]
[null,null,null,null,"ED_MET422_00020",null,"Meter Type 5",0,"ED_MET422_00020",0]
[null,null,null,null,"ED_MET422_00021",null,"Meter Type 6",1967151.7156831217,"ED_MET422_00021",13136]
[null,null,null,null,"ED_MET422_00022","Meter maintenance ","Meter Type 4",0,"ED_MET422_00022",0]
[null,null,null,null,"ED_MET422_00023",null,"Meter Type 5",0,"ED_MET422_00023",0]
[null,null,null,null,"ED_MET422_00024",null,"Meter Type 6",1695826.8060054258,"ED_MET422_00024",7169]
[null,null,null,null,"ED_MET422_00025","Remote meter reading ","Meter Type 4",0,"ED_MET422_00025",0]
[null,null,null,null,"ED_MET422_00026","Remote meter re-configuration ","Meter Type 4",0,"ED_MET422_00026",0]
[null,null,null,null,"ED_MET422_00027","Other metering ","Meter Type 4",0]
[null,null,null,null,"ED_MET422_00028",null,"Meter Type 5",0]
[null,null,null,null,"ED_MET422_00029",null,"Meter Type 6",15119199]
[null,null,null,null,"ED_MET422_00030",null,"Meter Type 7",0]
[null,null,null,null,"ED_MET422_00031","IT infrastructure capex ","Meter Type 4",0]
[null,null,null,null,"ED_MET422_00032","IT infrastructure opex ","Meter Type 4",0]
[null,null,null,null,"ED_MET422_00033","Communications infrastructure capex ","Meter Type 4",0]
[null,null,null,null,"ED_MET422_00034","Communications infrastructure opex ","Meter Type 4",0]

{"sheet":"4.3 Fee-based services","index":15,"n_rows":481,"n_cols":6,"rows_kept":481,"cut":false,"hidden":false,"merged":[]}
[null,{"$f":"(LOOKUP(dms_Model,dms_Model_List,dms_Worksheet_List))","v":"REGULATORY REPORTING STATEMENT"}]
[null,"Australian Distribution Co."]
[null,{"$f":"CONCATENATE(\"Category Analysis RIN response \",CRY)","v":"Category Analysis RIN response 2014-15"}]
[null,"4.3 ANCILLARY SERVICES - FEE BASED SERVICES"]
[]
[null,"TABLE 4.3.1 - COST METRICS FOR FEE-BASED SERVICES"]
[]
[]
[null,null,null,"EXPENDITURE ($0's)",null,"VOLUMES \n(0's)"]
[null,"SERVICE","SERVICE SUBCATEGORY",{"$f":"CRY","v":"2014-15"},null,{"$f":"CRY","v":"2014-15"}]
["ED_FEE431_00001","Common Fee-Based Services","Energisation",0,"ED_FEE431_00001",0]
["ED_FEE431_00002","Common Fee-Based Services","De-energisation",0,"ED_FEE431_00002",0]
["ED_FEE431_00003","Common Fee-Based Services","Re-energisation",0,"ED_FEE431_00003",0]
["ED_FEE431_00004","Miscellaneous Fee-Based Services","Special Meter Reading business hours",6258946.9015835738,"ED_FEE431_00004",121886]
["ED_FEE431_00005","Miscellaneous Fee-Based Services","Off Peak Conversion",89042.334044483505,"ED_FEE431_00005",1734]
["ED_FEE431_00006","Miscellaneous Fee-Based Services","Disconnection site visit (only) business hours payment received",772693.93628127873,"ED_FEE431_00006",13256]
["ED_FEE431_00007","Miscellaneous Fee-Based Services","Disconnection / De-energisation at meter box",4815996.6069785049,"ED_FEE431_00007",73774]
["ED_FEE431_00008","Miscellaneous Fee-Based Services","Disconnection / De-energisation at meter box no payment",959491.39438515017,"ED_FEE431_00008",14698]
["ED_FEE431_00009","Miscellaneous Fee-Based Services","Disconnection / De-energisation at pole top / pillar box",16538.165610814012,"ED_FEE431_00009",81]
["ED_FEE431_00010","Miscellaneous Fee-Based Services","Reconnection outside of business hours",200737.24572964601,"ED_FEE431_00010",3075]
["ED_FEE431_00011","Miscellaneous Fee-Based Services","Meter Test",44708.52814783802,"ED_FEE431_00011",182]
["ED_FEE431_00012","Miscellaneous Fee-Based Services","Supply of Conveyancing information - desk enquiry",28727.569999999963,"ED_FEE431_00012",8541.3090593844827]
["ED_FEE431_00013","Miscellaneous Fee-Based Services","Site Establishment",123579.15,"ED_FEE431_00013",16464.43641618497]
["ED_FEE431_00014","Miscellaneous Fee-Based Services","Inspection of Service Work Level 2",3336708.440000027,"ED_FEE431_00014",19282.120312989045]
["ED_FEE431_00015","Miscellaneous Fee-Based Services","Design Information",338777.05761236406,"ED_FEE431_00015",2343]
["ED_FEE431_00016","Miscellaneous Fee-Based Services","Design Certification",261572.99582918198,"ED_FEE431_00016",1956]
["ED_FEE431_00017","Miscellaneous Fee-Based Services","Design Rechecking",67956.150986498862,"ED_FEE431_00017",457]
["ED_FEE431_00018","Miscellaneous Fee-Based Services","Inspection Level 1",592583.8573889801,"ED_FEE431_00018",5358]
["ED_FEE431_00019","Miscellaneous Fee-Based Services","Access Permit",3962863.2490109112,"ED_FEE431_00019",2769]
["ED_FEE431_00020","Miscellaneous Fee-Based Services","Substation Commissioning",2171408.7874576794,"ED_FEE431_00020",1517]
["ED_FEE431_00021","Miscellaneous Fee-Based Services","Administration (Contestable Works)",212859.16732453849,"ED_FEE431_00021",1278]
["ED_FEE431_00022","Miscellaneous Fee-Based Services","Notice of Arrangement",29160.726573352753,"ED_FEE431_00022",206]
["ED_FEE431_00023","Miscellaneous Fee-Based Services",null,null,"ED_FEE431_00023"]
["ED_FEE431_00024","Miscellaneous Fee-Based Services",null,null,"ED_FEE431_00024"]
["ED_FEE431_00025","Miscellaneous Fee-Based Services",null,null,"ED_FEE431_00025"]
["ED_FEE431_00026","Miscellaneous Fee-Based Services",null,null,"ED_FEE431_00026"]
["ED_FEE431_00027","Miscellaneous Fee-Based Services",null,null,"ED_FEE431_00027"]
["ED_FEE431_00028","Miscellaneous Fee-Based Services",null,null,"ED_FEE431_00028"]
["ED_FEE431_00029","Miscellaneous Fee-Based Services",null,null,"ED_FEE431_00029"]
["ED_FEE431_00030","Miscellaneous Fee-Based Services",null,null,"ED_FEE431_00030"]
["ED_FEE431_00031","Miscellaneous Fee-Based Services",null,null,"ED_FEE431_00031"]
["ED_FEE431_00032","Miscellaneous Fee-Based Services",null,null,"ED_FEE431_00032"]
["ED_FEE431_00033","Miscellaneous Fee-Based Services",null,null,"ED_FEE431_00033"]
["ED_FEE431_00034","Miscellaneous Fee-Based Services",null,null,"ED_FEE431_00034"]
["ED_FEE431_00035","Miscellaneous Fee-Based Services",null,null,"ED_FEE431_00035"]
["ED_FEE431_00036","Miscellaneous Fee-Based Services",null,null,"ED_FEE431_00036"]
["ED_FEE431_00037","Miscellaneous Fee-Based Services",null,null,"ED_FEE431_00037"]
["ED_FEE431_00038","Miscellaneous Fee-Based Services",null,null,"ED_FEE431_00038"]
["ED_FEE431_00039","Miscellaneous Fee-Based Services",null,null,"ED_FEE431_00039"]
["ED_FEE431_00040","Miscellaneous Fee-Based Services",null,null,"ED_FEE431_00040"]
["ED_FEE431_00041","Miscellaneous Fee-Based Services",null,null,"ED_FEE431_00041"]
["ED_FEE431_00042","Miscellaneous Fee-Based Services",null,null,"ED_FEE431_00042"]
["ED_FEE431_00043","Miscellaneous Fee-Based Services",null,null,"ED_FEE431_00043"]
["ED_FEE431_00044","Miscellaneous Fee-Based Services",null,null,"ED_FEE431_00044"]
["ED_FEE431_00045","Miscellaneous Fee-Based Services",null,null,"ED_FEE431_00045"]
["ED_FEE431_00046","Miscellaneous Fee-Based Services",null,null,"ED_FEE431_00046"]
["ED_FEE431_00047","Miscellaneous Fee-Based Services",null,null,"ED_FEE431_00047"]
["ED_FEE431_00048","Miscellaneous Fee-Based Services",null,null,"ED_FEE431_00048"]
["ED_FEE431_00049","Miscellaneous Fee-Based Services",null,null,"ED_FEE431_00049"]
["ED_FEE431_00050","Miscellaneous Fee-Based Services",null,null,"ED_FEE431_00050"]
["ED_FEE431_00051","Miscellaneous Fee-Based Services",null,null,"ED_FEE431_00051"]
["ED_FEE431_00052","Miscellaneous Fee-Based Services",null,null,"ED_FEE431_00052"]
["ED_FEE431_00053","Miscellaneous Fee-Based Services",null,null,"ED_FEE431_00053"]
["ED_FEE431_00054","Miscellaneous Fee-Based Services",null,null,"ED_FEE431_00054"]
["ED_FEE431_00055","Miscellaneous Fee-Based Services",null,null,"ED_FEE431_00055"]
["ED_FEE431_00056","Miscellaneous Fee-Based Services",null,null,"ED_FEE431_00056"]
["ED_FEE431_00057","Miscellaneous Fee-Based Services",null,null,"ED_FEE431_00057"]
["ED_FEE431_00058","Miscellaneous Fee-Based Services",null,null,"ED_FEE431_00058"]
["ED_FEE431_00059","Miscellaneous Fee-Based Services",null,null,"ED_FEE431_00059"]
["ED_FEE431_00060","Miscellaneous Fee-Based Services",null,null,"ED_FEE431_00060"]
["ED_FEE431_00061","Miscellaneous Fee-Based Services",null,null,"ED_FEE431_00061"]
["ED_FEE431_00062","Miscellaneous Fee-Based Services",null,null,"ED_FEE431_00062"]
["ED_FEE431_00063","Miscellaneous Fee-Based Services",null,null,"ED_FEE431_00063"]
["ED_FEE431_00064","Miscellaneous Fee-Based Services",null,null,"ED_FEE431_00064"]
["ED_FEE431_00065","Miscellaneous Fee-Based Services",null,null,"ED_FEE431_00065"]
["ED_FEE431_00066","Miscellaneous Fee-Based Services",null,null,"ED_FEE431_00066"]
["ED_FEE431_00067","Miscellaneous Fee-Based Services",null,null,"ED_FEE431_00067"]
["ED_FEE431_00068","Miscellaneous Fee-Based Services",null,null,"ED_FEE431_00068"]
["ED_FEE431_00069","Miscellaneous Fee-Based Services",null,null,"ED_FEE431_00069"]
["ED_FEE431_00070","Miscellaneous Fee-Based Services",null,null,"ED_FEE431_00070"]
["ED_FEE431_00071","Miscellaneous Fee-Based Services",null,null,"ED_FEE431_00071"]
["ED_FEE431_00072","Miscellaneous Fee-Based Services",null,null,"ED_FEE431_00072"]
["ED_FEE431_00073","Miscellaneous Fee-Based Services",null,null,"ED_FEE431_00073"]
["ED_FEE431_00074","Miscellaneous Fee-Based Services",null,null,"ED_FEE431_00074"]
["ED_FEE431_00075","Miscellaneous Fee-Based Services",null,null,"ED_FEE431_00075"]
["ED_FEE431_00076","Miscellaneous Fee-Based Services",null,null,"ED_FEE431_00076"]
["ED_FEE431_00077","Miscellaneous Fee-Based Services",null,null,"ED_FEE431_00077"]
["ED_FEE431_00078","Miscellaneous Fee-Based Services",null,null,"ED_FEE431_00078"]
["ED_FEE431_00079","Miscellaneous Fee-Based Services",null,null,"ED_FEE431_00079"]
["ED_FEE431_00080","Miscellaneous Fee-Based Services",null,null,"ED_FEE431_00080"]
["ED_FEE431_00081","Miscellaneous Fee-Based Services",null,null,"ED_FEE431_00081"]
["ED_FEE431_00082","Miscellaneous Fee-Based Services",null,null,"ED_FEE431_00082"]
["ED_FEE431_00083","Miscellaneous Fee-Based Services",null,null,"ED_FEE431_00083"]
["ED_FEE431_00084","Miscellaneous Fee-Based Services",null,null,"ED_FEE431_00084"]
["ED_FEE431_00085","Miscellaneous Fee-Based Services",null,null,"ED_FEE431_00085"]
["ED_FEE431_00086","Miscellaneous Fee-Based Services",null,null,"ED_FEE431_00086"]
["ED_FEE431_00087","Miscellaneous Fee-Based Services",null,null,"ED_FEE431_00087"]
["ED_FEE431_00088","Miscellaneous Fee-Based Services",null,null,"ED_FEE431_00088"]
["ED_FEE431_00089","Miscellaneous Fee-Based Services",null,null,"ED_FEE431_00089"]
["ED_FEE431_00090","Miscellaneous Fee-Based Services",null,null,"ED_FEE431_00090"]
["ED_FEE431_00091","Miscellaneous Fee-Based Services",null,null,"ED_FEE431_00091"]
["ED_FEE431_00092","Miscellaneous Fee-Based Services",null,null,"ED_FEE431_00092"]
["ED_FEE431_00093","Miscellaneous Fee-Based Services",null,null,"ED_FEE431_00093"]
["ED_FEE431_00094","Miscellaneous Fee-Based Services",null,null,"ED_FEE431_00094"]
["ED_FEE431_00095","Miscellaneous Fee-Based Services",null,null,"ED_FEE431_00095"]
["ED_FEE431_00096","Miscellaneous Fee-Based Services",null,null,"ED_FEE431_00096"]
["ED_FEE431_00097","Miscellaneous Fee-Based Services",null,null,"ED_FEE431_00097"]
["ED_FEE431_00098","Miscellaneous Fee-Based Services",null,null,"ED_FEE431_00098"]
["ED_FEE431_00099","Miscellaneous Fee-Based Services",null,null,"ED_FEE431_00099"]
["ED_FEE431_00100","Miscellaneous Fee-Based Services",null,null,"ED_FEE431_00100"]
["ED_FEE431_00101","Miscellaneous Fee-Based Services",null,null,"ED_FEE431_00101"]
["ED_FEE431_00102","Miscellaneous Fee-Based Services",null,null,"ED_FEE431_00102"]
["ED_FEE431_00103","Miscellaneous Fee-Based Services",null,null,"ED_FEE431_00103"]
["ED_FEE431_00104","Miscellaneous Fee-Based Services",null,null,"ED_FEE431_00104"]
["ED_FEE431_00105","Miscellaneous Fee-Based Services",null,null,"ED_FEE431_00105"]
["ED_FEE431_00106","Miscellaneous Fee-Based Services",null,null,"ED_FEE431_00106"]
["ED_FEE431_00107","Miscellaneous Fee-Based Services",null,null,"ED_FEE431_00107"]
["ED_FEE431_00108","Miscellaneous Fee-Based Services",null,null,"ED_FEE431_00108"]
["ED_FEE431_00109","Miscellaneous Fee-Based Services",null,null,"ED_FEE431_00109"]
["ED_FEE431_00110","Miscellaneous Fee-Based Services",null,null,"ED_FEE431_00110"]
["ED_FEE431_00111","Miscellaneous Fee-Based Services",null,null,"ED_FEE431_00111"]
["ED_FEE431_00112","Miscellaneous Fee-Based Services",null,null,"ED_FEE431_00112"]
["ED_FEE431_00113","Miscellaneous Fee-Based Services",null,null,"ED_FEE431_00113"]
["ED_FEE431_00114","Miscellaneous Fee-Based Services",null,null,"ED_FEE431_00114"]
["ED_FEE431_00115","Miscellaneous Fee-Based Services",null,null,"ED_FEE431_00115"]
["ED_FEE431_00116","Miscellaneous Fee-Based Services",null,null,"ED_FEE431_00116"]
["ED_FEE431_00117","Miscellaneous Fee-Based Services",null,null,"ED_FEE431_00117"]
["ED_FEE431_00118","Miscellaneous Fee-Based Services",null,null,"ED_FEE431_00118"]
["ED_FEE431_00119","Miscellaneous Fee-Based Services",null,null,"ED_FEE431_00119"]
["ED_FEE431_00120","Miscellaneous Fee-Based Services",null,null,"ED_FEE431_00120"]
["ED_FEE431_00121","Miscellaneous Fee-Based Services",null,null,"ED_FEE431_00121"]
["ED_FEE431_00122","Miscellaneous Fee-Based Services",null,null,"ED_FEE431_00122"]
["ED_FEE431_00123","Miscellaneous Fee-Based Services",null,null,"ED_FEE431_00123"]
["ED_FEE431_00124","Miscellaneous Fee-Based Services",null,null,"ED_FEE431_00124"]
["ED_FEE431_00125","Miscellaneous Fee-Based Services",null,null,"ED_FEE431_00125"]
["ED_FEE431_00126","Miscellaneous Fee-Based Services",null,null,"ED_FEE431_00126"]
["ED_FEE431_00127","Miscellaneous Fee-Based Services",null,null,"ED_FEE431_00127"]
["ED_FEE431_00128","Miscellaneous Fee-Based Services",null,null,"ED_FEE431_00128"]
["ED_FEE431_00129","Miscellaneous Fee-Based Services",null,null,"ED_FEE431_00129"]
["ED_FEE431_00130","Miscellaneous Fee-Based Services",null,null,"ED_FEE431_00130"]
["ED_FEE431_00131","Miscellaneous Fee-Based Services",null,null,"ED_FEE431_00131"]
["ED_FEE431_00132","Miscellaneous Fee-Based Services",null,null,"ED_FEE431_00132"]
["ED_FEE431_00133","Miscellaneous Fee-Based Services",null,null,"ED_FEE431_00133"]
["ED_FEE431_00134","Miscellaneous Fee-Based Services",null,null,"ED_FEE431_00134"]
["ED_FEE431_00135","Miscellaneous Fee-Based Services",null,null,"ED_FEE431_00135"]
["ED_FEE431_00136","Miscellaneous Fee-Based Services",null,null,"ED_FEE431_00136"]
["ED_FEE431_00137","Miscellaneous Fee-Based Services",null,null,"ED_FEE431_00137"]
["ED_FEE431_00138","Miscellaneous Fee-Based Services",null,null,"ED_FEE431_00138"]
["ED_FEE431_00139","Miscellaneous Fee-Based Services",null,null,"ED_FEE431_00139"]
["ED_FEE431_00140","Miscellaneous Fee-Based Services",null,null,"ED_FEE431_00140"]
["ED_FEE431_00141","Miscellaneous Fee-Based Services",null,null,"ED_FEE431_00141"]
["ED_FEE431_00142","Miscellaneous Fee-Based Services",null,null,"ED_FEE431_00142"]
["ED_FEE431_00143","Miscellaneous Fee-Based Services",null,null,"ED_FEE431_00143"]
["ED_FEE431_00144","Miscellaneous Fee-Based Services",null,null,"ED_FEE431_00144"]
["ED_FEE431_00145","Miscellaneous Fee-Based Services",null,null,"ED_FEE431_00145"]
["ED_FEE431_00146","Miscellaneous Fee-Based Services",null,null,"ED_FEE431_00146"]
["ED_FEE431_00147","Miscellaneous Fee-Based Services",null,null,"ED_FEE431_00147"]
["ED_FEE431_00148","Miscellaneous Fee-Based Services",null,null,"ED_FEE431_00148"]
["ED_FEE431_00149","Miscellaneous Fee-Based Services",null,null,"ED_FEE431_00149"]
["ED_FEE431_00150","Miscellaneous Fee-Based Services",null,null,"ED_FEE431_00150"]
["ED_FEE431_00151","Miscellaneous Fee-Based Services",null,null,"ED_FEE431_00151"]
["ED_FEE431_00152","Miscellaneous Fee-Based Services",null,null,"ED_FEE431_00152"]
["ED_FEE431_00153","Miscellaneous Fee-Based Services",null,null,"ED_FEE431_00153"]
["ED_FEE431_00154","Miscellaneous Fee-Based Services",null,null,"ED_FEE431_00154"]
["ED_FEE431_00155","Miscellaneous Fee-Based Services",null,null,"ED_FEE431_00155"]
["ED_FEE431_00156","Miscellaneous Fee-Based Services",null,null,"ED_FEE431_00156"]
["ED_FEE431_00157","Miscellaneous Fee-Based Services",null,null,"ED_FEE431_00157"]
["ED_FEE431_00158","Miscellaneous Fee-Based Services",null,null,"ED_FEE431_00158"]
["ED_FEE431_00159","Miscellaneous Fee-Based Services",null,null,"ED_FEE431_00159"]
["ED_FEE431_00160","Miscellaneous Fee-Based Services",null,null,"ED_FEE431_00160"]
["ED_FEE431_00161","Miscellaneous Fee-Based Services",null,null,"ED_FEE431_00161"]
["ED_FEE431_00162","Miscellaneous Fee-Based Services",null,null,"ED_FEE431_00162"]
["ED_FEE431_00163","Miscellaneous Fee-Based Services",null,null,"ED_FEE431_00163"]
["ED_FEE431_00164","Miscellaneous Fee-Based Services",null,null,"ED_FEE431_00164"]
["ED_FEE431_00165","Miscellaneous Fee-Based Services",null,null,"ED_FEE431_00165"]
["ED_FEE431_00166","Miscellaneous Fee-Based Services",null,null,"ED_FEE431_00166"]
["ED_FEE431_00167","Miscellaneous Fee-Based Services",null,null,"ED_FEE431_00167"]
["ED_FEE431_00168","Miscellaneous Fee-Based Services",null,null,"ED_FEE431_00168"]
["ED_FEE431_00169","Miscellaneous Fee-Based Services",null,null,"ED_FEE431_00169"]
["ED_FEE431_00170","Miscellaneous Fee-Based Services",null,null,"ED_FEE431_00170"]
["ED_FEE431_00171","Miscellaneous Fee-Based Services",null,null,"ED_FEE431_00171"]
["ED_FEE431_00172","Miscellaneous Fee-Based Services",null,null,"ED_FEE431_00172"]
["ED_FEE431_00173","Miscellaneous Fee-Based Services",null,null,"ED_FEE431_00173"]
["ED_FEE431_00174","Miscellaneous Fee-Based Services",null,null,"ED_FEE431_00174"]
["ED_FEE431_00175","Miscellaneous Fee-Based Services",null,null,"ED_FEE431_00175"]
["ED_FEE431_00176","Miscellaneous Fee-Based Services",null,null,"ED_FEE431_00176"]
["ED_FEE431_00177","Miscellaneous Fee-Based Services",null,null,"ED_FEE431_00177"]
["ED_FEE431_00178","Miscellaneous Fee-Based Services",null,null,"ED_FEE431_00178"]
["ED_FEE431_00179","Miscellaneous Fee-Based Services",null,null,"ED_FEE431_00179"]
["ED_FEE431_00180","Miscellaneous Fee-Based Services",null,null,"ED_FEE431_00180"]
["ED_FEE431_00181","Miscellaneous Fee-Based Services",null,null,"ED_FEE431_00181"]
["ED_FEE431_00182","Miscellaneous Fee-Based Services",null,null,"ED_FEE431_00182"]
["ED_FEE431_00183","Miscellaneous Fee-Based Services",null,null,"ED_FEE431_00183"]
["ED_FEE431_00184","Miscellaneous Fee-Based Services",null,null,"ED_FEE431_00184"]
["ED_FEE431_00185","Miscellaneous Fee-Based Services",null,null,"ED_FEE431_00185"]
["ED_FEE431_00186","Miscellaneous Fee-Based Services",null,null,"ED_FEE431_00186"]
["ED_FEE431_00187","Miscellaneous Fee-Based Services",null,null,"ED_FEE431_00187"]
["ED_FEE431_00188","Miscellaneous Fee-Based Services",null,null,"ED_FEE431_00188"]
["ED_FEE431_00189","Miscellaneous Fee-Based Services",null,null,"ED_FEE431_00189"]
["ED_FEE431_00190","Miscellaneous Fee-Based Services",null,null,"ED_FEE431_00190"]
["ED_FEE431_00191","Miscellaneous Fee-Based Services",null,null,"ED_FEE431_00191"]
["ED_FEE431_00192","Miscellaneous Fee-Based Services",null,null,"ED_FEE431_00192"]
["ED_FEE431_00193","Miscellaneous Fee-Based Services",null,null,"ED_FEE431_00193"]
["ED_FEE431_00194","Miscellaneous Fee-Based Services",null,null,"ED_FEE431_00194"]
["ED_FEE431_00195","Miscellaneous Fee-Based Services",null,null,"ED_FEE431_00195"]
["ED_FEE431_00196","Miscellaneous Fee-Based Services",null,null,"ED_FEE431_00196"]
["ED_FEE431_00197","Miscellaneous Fee-Based Services",null,null,"ED_FEE431_00197"]
["ED_FEE431_00198","Miscellaneous Fee-Based Services",null,null,"ED_FEE431_00198"]
["ED_FEE431_00199","Miscellaneous Fee-Based Services",null,null,"ED_FEE431_00199"]
["ED_FEE431_00200","Miscellaneous Fee-Based Services",null,null,"ED_FEE431_00200"]
["ED_FEE431_00201","Miscellaneous Fee-Based Services",null,null,"ED_FEE431_00201"]
["ED_FEE431_00202","Miscellaneous Fee-Based Services",null,null,"ED_FEE431_00202"]
["ED_FEE431_00203","Miscellaneous Fee-Based Services",null,null,"ED_FEE431_00203"]
["ED_FEE431_00204","Miscellaneous Fee-Based Services",null,null,"ED_FEE431_00204"]
["ED_FEE431_00205","Miscellaneous Fee-Based Services",null,null,"ED_FEE431_00205"]
["ED_FEE431_00206","Miscellaneous Fee-Based Services",null,null,"ED_FEE431_00206"]
["ED_FEE431_00207","Miscellaneous Fee-Based Services",null,null,"ED_FEE431_00207"]
["ED_FEE431_00208","Miscellaneous Fee-Based Services",null,null,"ED_FEE431_00208"]
["ED_FEE431_00209","Miscellaneous Fee-Based Services",null,null,"ED_FEE431_00209"]
["ED_FEE431_00210","Miscellaneous Fee-Based Services",null,null,"ED_FEE431_00210"]
["ED_FEE431_00211","Miscellaneous Fee-Based Services",null,null,"ED_FEE431_00211"]
["ED_FEE431_00212","Miscellaneous Fee-Based Services",null,null,"ED_FEE431_00212"]
["ED_FEE431_00213","Miscellaneous Fee-Based Services",null,null,"ED_FEE431_00213"]
["ED_FEE431_00214","Miscellaneous Fee-Based Services",null,null,"ED_FEE431_00214"]
["ED_FEE431_00215","Miscellaneous Fee-Based Services",null,null,"ED_FEE431_00215"]
["ED_FEE431_00216","Miscellaneous Fee-Based Services",null,null,"ED_FEE431_00216"]
["ED_FEE431_00217","Miscellaneous Fee-Based Services",null,null,"ED_FEE431_00217"]
["ED_FEE431_00218","Miscellaneous Fee-Based Services",null,null,"ED_FEE431_00218"]
["ED_FEE431_00219","Miscellaneous Fee-Based Services",null,null,"ED_FEE431_00219"]
["ED_FEE431_00220","Miscellaneous Fee-Based Services",null,null,"ED_FEE431_00220"]
["ED_FEE431_00221","Miscellaneous Fee-Based Services",null,null,"ED_FEE431_00221"]
["ED_FEE431_00222","Miscellaneous Fee-Based Services",null,null,"ED_FEE431_00222"]
["ED_FEE431_00223","Miscellaneous Fee-Based Services",null,null,"ED_FEE431_00223"]
["ED_FEE431_00224","Miscellaneous Fee-Based Services",null,null,"ED_FEE431_00224"]
["ED_FEE431_00225","Miscellaneous Fee-Based Services",null,null,"ED_FEE431_00225"]
["ED_FEE431_00226","Miscellaneous Fee-Based Services",null,null,"ED_FEE431_00226"]
["ED_FEE431_00227","Miscellaneous Fee-Based Services",null,null,"ED_FEE431_00227"]
["ED_FEE431_00228","Miscellaneous Fee-Based Services",null,null,"ED_FEE431_00228"]
["ED_FEE431_00229","Miscellaneous Fee-Based Services",null,null,"ED_FEE431_00229"]
["ED_FEE431_00230","Miscellaneous Fee-Based Services",null,null,"ED_FEE431_00230"]
["ED_FEE431_00231","Miscellaneous Fee-Based Services",null,null,"ED_FEE431_00231"]
["ED_FEE431_00232","Miscellaneous Fee-Based Services",null,null,"ED_FEE431_00232"]
["ED_FEE431_00233","Miscellaneous Fee-Based Services",null,null,"ED_FEE431_00233"]
["ED_FEE431_00234","Miscellaneous Fee-Based Services",null,null,"ED_FEE431_00234"]
["ED_FEE431_00235","Miscellaneous Fee-Based Services",null,null,"ED_FEE431_00235"]
["ED_FEE431_00236","Miscellaneous Fee-Based Services",null,null,"ED_FEE431_00236"]
["ED_FEE431_00237","Miscellaneous Fee-Based Services",null,null,"ED_FEE431_00237"]
["ED_FEE431_00238","Miscellaneous Fee-Based Services",null,null,"ED_FEE431_00238"]
["ED_FEE431_00239","Miscellaneous Fee-Based Services",null,null,"ED_FEE431_00239"]
["ED_FEE431_00240","Miscellaneous Fee-Based Services",null,null,"ED_FEE431_00240"]
["ED_FEE431_00241","Miscellaneous Fee-Based Services",null,null,"ED_FEE431_00241"]
["ED_FEE431_00242","Miscellaneous Fee-Based Services",null,null,"ED_FEE431_00242"]
["ED_FEE431_00243","Miscellaneous Fee-Based Services",null,null,"ED_FEE431_00243"]
["ED_FEE431_00244","Miscellaneous Fee-Based Services",null,null,"ED_FEE431_00244"]
["ED_FEE431_00245","Miscellaneous Fee-Based Services",null,null,"ED_FEE431_00245"]
["ED_FEE431_00246","Miscellaneous Fee-Based Services",null,null,"ED_FEE431_00246"]
["ED_FEE431_00247","Miscellaneous Fee-Based Services",null,null,"ED_FEE431_00247"]
["ED_FEE431_00248","Miscellaneous Fee-Based Services",null,null,"ED_FEE431_00248"]
["ED_FEE431_00249","Miscellaneous Fee-Based Services",null,null,"ED_FEE431_00249"]
["ED_FEE431_00250","Miscellaneous Fee-Based Services",null,null,"ED_FEE431_00250"]
["ED_FEE431_00251","Miscellaneous Fee-Based Services",null,null,"ED_FEE431_00251"]
["ED_FEE431_00252","Miscellaneous Fee-Based Services",null,null,"ED_FEE431_00252"]
["ED_FEE431_00253","Miscellaneous Fee-Based Services",null,null,"ED_FEE431_00253"]
["ED_FEE431_00254","Miscellaneous Fee-Based Services",null,null,"ED_FEE431_00254"]
["ED_FEE431_00255","Miscellaneous Fee-Based Services",null,null,"ED_FEE431_00255"]
["ED_FEE431_00256","Miscellaneous Fee-Based Services",null,null,"ED_FEE431_00256"]
["ED_FEE431_00257","Miscellaneous Fee-Based Services",null,null,"ED_FEE431_00257"]
["ED_FEE431_00258","Miscellaneous Fee-Based Services",null,null,"ED_FEE431_00258"]
["ED_FEE431_00259","Miscellaneous Fee-Based Services",null,null,"ED_FEE431_00259"]
["ED_FEE431_00260","Miscellaneous Fee-Based Services",null,null,"ED_FEE431_00260"]
["ED_FEE431_00261","Miscellaneous Fee-Based Services",null,null,"ED_FEE431_00261"]
["ED_FEE431_00262","Miscellaneous Fee-Based Services",null,null,"ED_FEE431_00262"]
["ED_FEE431_00263","Miscellaneous Fee-Based Services",null,null,"ED_FEE431_00263"]
["ED_FEE431_00264","Miscellaneous Fee-Based Services",null,null,"ED_FEE431_00264"]
["ED_FEE431_00265","Miscellaneous Fee-Based Services",null,null,"ED_FEE431_00265"]
["ED_FEE431_00266","Miscellaneous Fee-Based Services",null,null,"ED_FEE431_00266"]
["ED_FEE431_00267","Miscellaneous Fee-Based Services",null,null,"ED_FEE431_00267"]
["ED_FEE431_00268","Miscellaneous Fee-Based Services",null,null,"ED_FEE431_00268"]
["ED_FEE431_00269","Miscellaneous Fee-Based Services",null,null,"ED_FEE431_00269"]
["ED_FEE431_00270","Miscellaneous Fee-Based Services",null,null,"ED_FEE431_00270"]
["ED_FEE431_00271","Miscellaneous Fee-Based Services",null,null,"ED_FEE431_00271"]
["ED_FEE431_00272","Miscellaneous Fee-Based Services",null,null,"ED_FEE431_00272"]
["ED_FEE431_00273","Miscellaneous Fee-Based Services",null,null,"ED_FEE431_00273"]
["ED_FEE431_00274","Miscellaneous Fee-Based Services",null,null,"ED_FEE431_00274"]
["ED_FEE431_00275","Miscellaneous Fee-Based Services",null,null,"ED_FEE431_00275"]
["ED_FEE431_00276","Miscellaneous Fee-Based Services",null,null,"ED_FEE431_00276"]
["ED_FEE431_00277","Miscellaneous Fee-Based Services",null,null,"ED_FEE431_00277"]
["ED_FEE431_00278","Miscellaneous Fee-Based Services",null,null,"ED_FEE431_00278"]
["ED_FEE431_00279","Miscellaneous Fee-Based Services",null,null,"ED_FEE431_00279"]
["ED_FEE431_00280","Miscellaneous Fee-Based Services",null,null,"ED_FEE431_00280"]
["ED_FEE431_00281","Miscellaneous Fee-Based Services",null,null,"ED_FEE431_00281"]
["ED_FEE431_00282","Miscellaneous Fee-Based Services",null,null,"ED_FEE431_00282"]
["ED_FEE431_00283","Miscellaneous Fee-Based Services",null,null,"ED_FEE431_00283"]
["ED_FEE431_00284","Miscellaneous Fee-Based Services",null,null,"ED_FEE431_00284"]
["ED_FEE431_00285","Miscellaneous Fee-Based Services",null,null,"ED_FEE431_00285"]
["ED_FEE431_00286","Miscellaneous Fee-Based Services",null,null,"ED_FEE431_00286"]
["ED_FEE431_00287","Miscellaneous Fee-Based Services",null,null,"ED_FEE431_00287"]
["ED_FEE431_00288","Miscellaneous Fee-Based Services",null,null,"ED_FEE431_00288"]
["ED_FEE431_00289","Miscellaneous Fee-Based Services",null,null,"ED_FEE431_00289"]
["ED_FEE431_00290","Miscellaneous Fee-Based Services",null,null,"ED_FEE431_00290"]
["ED_FEE431_00291","Miscellaneous Fee-Based Services",null,null,"ED_FEE431_00291"]
["ED_FEE431_00292","Miscellaneous Fee-Based Services",null,null,"ED_FEE431_00292"]
["ED_FEE431_00293","Miscellaneous Fee-Based Services",null,null,"ED_FEE431_00293"]
["ED_FEE431_00294","Miscellaneous Fee-Based Services",null,null,"ED_FEE431_00294"]
["ED_FEE431_00295","Miscellaneous Fee-Based Services",null,null,"ED_FEE431_00295"]
["ED_FEE431_00296","Miscellaneous Fee-Based Services",null,null,"ED_FEE431_00296"]
["ED_FEE431_00297","Miscellaneous Fee-Based Services",null,null,"ED_FEE431_00297"]
["ED_FEE431_00298","Miscellaneous Fee-Based Services",null,null,"ED_FEE431_00298"]
["ED_FEE431_00299","Miscellaneous Fee-Based Services",null,null,"ED_FEE431_00299"]
["ED_FEE431_00300","Miscellaneous Fee-Based Services",null,null,"ED_FEE431_00300"]
["ED_FEE431_00301","Miscellaneous Fee-Based Services",null,null,"ED_FEE431_00301"]
["ED_FEE431_00302","Miscellaneous Fee-Based Services",null,null,"ED_FEE431_00302"]
["ED_FEE431_00303","Miscellaneous Fee-Based Services",null,null,"ED_FEE431_00303"]
["ED_FEE431_00304","Miscellaneous Fee-Based Services",null,null,"ED_FEE431_00304"]
["ED_FEE431_00305","Miscellaneous Fee-Based Services",null,null,"ED_FEE431_00305"]
["ED_FEE431_00306","Miscellaneous Fee-Based Services",null,null,"ED_FEE431_00306"]
["ED_FEE431_00307","Miscellaneous Fee-Based Services",null,null,"ED_FEE431_00307"]
["ED_FEE431_00308","Miscellaneous Fee-Based Services",null,null,"ED_FEE431_00308"]
["ED_FEE431_00309","Miscellaneous Fee-Based Services",null,null,"ED_FEE431_00309"]
["ED_FEE431_00310","Miscellaneous Fee-Based Services",null,null,"ED_FEE431_00310"]
["ED_FEE431_00311","Miscellaneous Fee-Based Services",null,null,"ED_FEE431_00311"]
["ED_FEE431_00312","Miscellaneous Fee-Based Services",null,null,"ED_FEE431_00312"]
["ED_FEE431_00313","Miscellaneous Fee-Based Services",null,null,"ED_FEE431_00313"]
["ED_FEE431_00314","Miscellaneous Fee-Based Services",null,null,"ED_FEE431_00314"]
["ED_FEE431_00315","Miscellaneous Fee-Based Services",null,null,"ED_FEE431_00315"]
["ED_FEE431_00316","Miscellaneous Fee-Based Services",null,null,"ED_FEE431_00316"]
["ED_FEE431_00317","Miscellaneous Fee-Based Services",null,null,"ED_FEE431_00317"]
["ED_FEE431_00318","Miscellaneous Fee-Based Services",null,null,"ED_FEE431_00318"]
["ED_FEE431_00319","Miscellaneous Fee-Based Services",null,null,"ED_FEE431_00319"]
["ED_FEE431_00320","Miscellaneous Fee-Based Services",null,null,"ED_FEE431_00320"]
["ED_FEE431_00321","Miscellaneous Fee-Based Services",null,null,"ED_FEE431_00321"]
["ED_FEE431_00322","Miscellaneous Fee-Based Services",null,null,"ED_FEE431_00322"]
["ED_FEE431_00323","Miscellaneous Fee-Based Services",null,null,"ED_FEE431_00323"]
["ED_FEE431_00324","Miscellaneous Fee-Based Services",null,null,"ED_FEE431_00324"]
["ED_FEE431_00325","Miscellaneous Fee-Based Services",null,null,"ED_FEE431_00325"]
["ED_FEE431_00326","Miscellaneous Fee-Based Services",null,null,"ED_FEE431_00326"]
["ED_FEE431_00327","Miscellaneous Fee-Based Services",null,null,"ED_FEE431_00327"]
["ED_FEE431_00328","Miscellaneous Fee-Based Services",null,null,"ED_FEE431_00328"]
["ED_FEE431_00329","Miscellaneous Fee-Based Services",null,null,"ED_FEE431_00329"]
["ED_FEE431_00330","Miscellaneous Fee-Based Services",null,null,"ED_FEE431_00330"]
["ED_FEE431_00331","Miscellaneous Fee-Based Services",null,null,"ED_FEE431_00331"]
["ED_FEE431_00332","Miscellaneous Fee-Based Services",null,null,"ED_FEE431_00332"]
["ED_FEE431_00333","Miscellaneous Fee-Based Services",null,null,"ED_FEE431_00333"]
["ED_FEE431_00334","Miscellaneous Fee-Based Services",null,null,"ED_FEE431_00334"]
["ED_FEE431_00335","Miscellaneous Fee-Based Services",null,null,"ED_FEE431_00335"]
["ED_FEE431_00336","Miscellaneous Fee-Based Services",null,null,"ED_FEE431_00336"]
["ED_FEE431_00337","Miscellaneous Fee-Based Services",null,null,"ED_FEE431_00337"]
["ED_FEE431_00338","Miscellaneous Fee-Based Services",null,null,"ED_FEE431_00338"]
["ED_FEE431_00339","Miscellaneous Fee-Based Services",null,null,"ED_FEE431_00339"]
["ED_FEE431_00340","Miscellaneous Fee-Based Services",null,null,"ED_FEE431_00340"]
["ED_FEE431_00341","Miscellaneous Fee-Based Services",null,null,"ED_FEE431_00341"]
["ED_FEE431_00342","Miscellaneous Fee-Based Services",null,null,"ED_FEE431_00342"]
["ED_FEE431_00343","Miscellaneous Fee-Based Services",null,null,"ED_FEE431_00343"]
["ED_FEE431_00344","Miscellaneous Fee-Based Services",null,null,"ED_FEE431_00344"]
["ED_FEE431_00345","Miscellaneous Fee-Based Services",null,null,"ED_FEE431_00345"]
["ED_FEE431_00346","Miscellaneous Fee-Based Services",null,null,"ED_FEE431_00346"]
["ED_FEE431_00347","Miscellaneous Fee-Based Services",null,null,"ED_FEE431_00347"]
["ED_FEE431_00348","Miscellaneous Fee-Based Services",null,null,"ED_FEE431_00348"]
["ED_FEE431_00349","Miscellaneous Fee-Based Services",null,null,"ED_FEE431_00349"]
["ED_FEE431_00350","Miscellaneous Fee-Based Services",null,null,"ED_FEE431_00350"]
["ED_FEE431_00351","Miscellaneous Fee-Based Services",null,null,"ED_FEE431_00351"]
["ED_FEE431_00352","Miscellaneous Fee-Based Services",null,null,"ED_FEE431_00352"]
["ED_FEE431_00353","Miscellaneous Fee-Based Services",null,null,"ED_FEE431_00353"]
["ED_FEE431_00354","Miscellaneous Fee-Based Services",null,null,"ED_FEE431_00354"]
["ED_FEE431_00355","Miscellaneous Fee-Based Services",null,null,"ED_FEE431_00355"]
["ED_FEE431_00356","Miscellaneous Fee-Based Services",null,null,"ED_FEE431_00356"]
["ED_FEE431_00357","Miscellaneous Fee-Based Services",null,null,"ED_FEE431_00357"]
["ED_FEE431_00358","Miscellaneous Fee-Based Services",null,null,"ED_FEE431_00358"]
["ED_FEE431_00359","Miscellaneous Fee-Based Services",null,null,"ED_FEE431_00359"]
["ED_FEE431_00360","Miscellaneous Fee-Based Services",null,null,"ED_FEE431_00360"]
["ED_FEE431_00361","Miscellaneous Fee-Based Services",null,null,"ED_FEE431_00361"]
["ED_FEE431_00362","Miscellaneous Fee-Based Services",null,null,"ED_FEE431_00362"]
["ED_FEE431_00363","Miscellaneous Fee-Based Services",null,null,"ED_FEE431_00363"]
["ED_FEE431_00364","Miscellaneous Fee-Based Services",null,null,"ED_FEE431_00364"]
["ED_FEE431_00365","Miscellaneous Fee-Based Services",null,null,"ED_FEE431_00365"]
["ED_FEE431_00366","Miscellaneous Fee-Based Services",null,null,"ED_FEE431_00366"]
["ED_FEE431_00367","Miscellaneous Fee-Based Services",null,null,"ED_FEE431_00367"]
["ED_FEE431_00368","Miscellaneous Fee-Based Services",null,null,"ED_FEE431_00368"]
["ED_FEE431_00369","Miscellaneous Fee-Based Services",null,null,"ED_FEE431_00369"]
["ED_FEE431_00370","Miscellaneous Fee-Based Services",null,null,"ED_FEE431_00370"]
["ED_FEE431_00371","Miscellaneous Fee-Based Services",null,null,"ED_FEE431_00371"]
["ED_FEE431_00372","Miscellaneous Fee-Based Services",null,null,"ED_FEE431_00372"]
["ED_FEE431_00373","Miscellaneous Fee-Based Services",null,null,"ED_FEE431_00373"]
["ED_FEE431_00374","Miscellaneous Fee-Based Services",null,null,"ED_FEE431_00374"]
["ED_FEE431_00375","Miscellaneous Fee-Based Services",null,null,"ED_FEE431_00375"]
["ED_FEE431_00376","Miscellaneous Fee-Based Services",null,null,"ED_FEE431_00376"]
["ED_FEE431_00377","Miscellaneous Fee-Based Services",null,null,"ED_FEE431_00377"]
["ED_FEE431_00378","Miscellaneous Fee-Based Services",null,null,"ED_FEE431_00378"]
["ED_FEE431_00379","Miscellaneous Fee-Based Services",null,null,"ED_FEE431_00379"]
["ED_FEE431_00380","Miscellaneous Fee-Based Services",null,null,"ED_FEE431_00380"]
["ED_FEE431_00381","Miscellaneous Fee-Based Services",null,null,"ED_FEE431_00381"]
["ED_FEE431_00382","Miscellaneous Fee-Based Services",null,null,"ED_FEE431_00382"]
["ED_FEE431_00383","Miscellaneous Fee-Based Services",null,null,"ED_FEE431_00383"]
["ED_FEE431_00384","Miscellaneous Fee-Based Services",null,null,"ED_FEE431_00384"]
["ED_FEE431_00385","Miscellaneous Fee-Based Services",null,null,"ED_FEE431_00385"]
["ED_FEE431_00386","Miscellaneous Fee-Based Services",null,null,"ED_FEE431_00386"]
["ED_FEE431_00387","Miscellaneous Fee-Based Services",null,null,"ED_FEE431_00387"]
["ED_FEE431_00388","Miscellaneous Fee-Based Services",null,null,"ED_FEE431_00388"]
["ED_FEE431_00389","Miscellaneous Fee-Based Services",null,null,"ED_FEE431_00389"]
["ED_FEE431_00390","Miscellaneous Fee-Based Services",null,null,"ED_FEE431_00390"]
["ED_FEE431_00391","Miscellaneous Fee-Based Services",null,null,"ED_FEE431_00391"]
["ED_FEE431_00392","Miscellaneous Fee-Based Services",null,null,"ED_FEE431_00392"]
["ED_FEE431_00393","Miscellaneous Fee-Based Services",null,null,"ED_FEE431_00393"]
["ED_FEE431_00394","Miscellaneous Fee-Based Services",null,null,"ED_FEE431_00394"]
["ED_FEE431_00395","Miscellaneous Fee-Based Services",null,null,"ED_FEE431_00395"]
["ED_FEE431_00396","Miscellaneous Fee-Based Services",null,null,"ED_FEE431_00396"]
["ED_FEE431_00397","Miscellaneous Fee-Based Services",null,null,"ED_FEE431_00397"]
["ED_FEE431_00398","Miscellaneous Fee-Based Services",null,null,"ED_FEE431_00398"]
["ED_FEE431_00399","Miscellaneous Fee-Based Services",null,null,"ED_FEE431_00399"]
["ED_FEE431_00400","Miscellaneous Fee-Based Services",null,null,"ED_FEE431_00400"]
["ED_FEE431_00401","Miscellaneous Fee-Based Services",null,null,"ED_FEE431_00401"]
["ED_FEE431_00402","Miscellaneous Fee-Based Services",null,null,"ED_FEE431_00402"]
["ED_FEE431_00403","Miscellaneous Fee-Based Services",null,null,"ED_FEE431_00403"]
["ED_FEE431_00404","Miscellaneous Fee-Based Services",null,null,"ED_FEE431_00404"]
["ED_FEE431_00405","Miscellaneous Fee-Based Services",null,null,"ED_FEE431_00405"]
["ED_FEE431_00406","Miscellaneous Fee-Based Services",null,null,"ED_FEE431_00406"]
["ED_FEE431_00407","Miscellaneous Fee-Based Services",null,null,"ED_FEE431_00407"]
["ED_FEE431_00408","Miscellaneous Fee-Based Services",null,null,"ED_FEE431_00408"]
["ED_FEE431_00409","Miscellaneous Fee-Based Services",null,null,"ED_FEE431_00409"]
["ED_FEE431_00410","Miscellaneous Fee-Based Services",null,null,"ED_FEE431_00410"]
["ED_FEE431_00411","Miscellaneous Fee-Based Services",null,null,"ED_FEE431_00411"]
["ED_FEE431_00412","Miscellaneous Fee-Based Services",null,null,"ED_FEE431_00412"]
["ED_FEE431_00413","Miscellaneous Fee-Based Services",null,null,"ED_FEE431_00413"]
["ED_FEE431_00414","Miscellaneous Fee-Based Services",null,null,"ED_FEE431_00414"]
["ED_FEE431_00415","Miscellaneous Fee-Based Services",null,null,"ED_FEE431_00415"]
["ED_FEE431_00416","Miscellaneous Fee-Based Services",null,null,"ED_FEE431_00416"]
["ED_FEE431_00417","Miscellaneous Fee-Based Services",null,null,"ED_FEE431_00417"]
["ED_FEE431_00418","Miscellaneous Fee-Based Services",null,null,"ED_FEE431_00418"]
["ED_FEE431_00419","Miscellaneous Fee-Based Services",null,null,"ED_FEE431_00419"]
["ED_FEE431_00420","Miscellaneous Fee-Based Services",null,null,"ED_FEE431_00420"]
["ED_FEE431_00421","Miscellaneous Fee-Based Services",null,null,"ED_FEE431_00421"]
["ED_FEE431_00422","Miscellaneous Fee-Based Services",null,null,"ED_FEE431_00422"]
["ED_FEE431_00423","Miscellaneous Fee-Based Services",null,null,"ED_FEE431_00423"]
["ED_FEE431_00424","Miscellaneous Fee-Based Services",null,null,"ED_FEE431_00424"]
["ED_FEE431_00425","Miscellaneous Fee-Based Services",null,null,"ED_FEE431_00425"]
["ED_FEE431_00426","Miscellaneous Fee-Based Services",null,null,"ED_FEE431_00426"]
["ED_FEE431_00427","Miscellaneous Fee-Based Services",null,null,"ED_FEE431_00427"]
["ED_FEE431_00428","Miscellaneous Fee-Based Services",null,null,"ED_FEE431_00428"]
["ED_FEE431_00429","Miscellaneous Fee-Based Services",null,null,"ED_FEE431_00429"]
["ED_FEE431_00430","Miscellaneous Fee-Based Services",null,null,"ED_FEE431_00430"]
["ED_FEE431_00431","Miscellaneous Fee-Based Services",null,null,"ED_FEE431_00431"]
["ED_FEE431_00432","Miscellaneous Fee-Based Services",null,null,"ED_FEE431_00432"]
["ED_FEE431_00433","Miscellaneous Fee-Based Services",null,null,"ED_FEE431_00433"]
["ED_FEE431_00434","Miscellaneous Fee-Based Services",null,null,"ED_FEE431_00434"]
["ED_FEE431_00435","Miscellaneous Fee-Based Services",null,null,"ED_FEE431_00435"]
["ED_FEE431_00436","Miscellaneous Fee-Based Services",null,null,"ED_FEE431_00436"]
["ED_FEE431_00437","Miscellaneous Fee-Based Services",null,null,"ED_FEE431_00437"]
["ED_FEE431_00438","Miscellaneous Fee-Based Services",null,null,"ED_FEE431_00438"]
["ED_FEE431_00439","Miscellaneous Fee-Based Services",null,null,"ED_FEE431_00439"]
["ED_FEE431_00440","Miscellaneous Fee-Based Services",null,null,"ED_FEE431_00440"]
["ED_FEE431_00441","Miscellaneous Fee-Based Services",null,null,"ED_FEE431_00441"]
["ED_FEE431_00442","Miscellaneous Fee-Based Services",null,null,"ED_FEE431_00442"]
["ED_FEE431_00443","Miscellaneous Fee-Based Services",null,null,"ED_FEE431_00443"]
["ED_FEE431_00444","Miscellaneous Fee-Based Services",null,null,"ED_FEE431_00444"]
["ED_FEE431_00445","Miscellaneous Fee-Based Services",null,null,"ED_FEE431_00445"]
["ED_FEE431_00446","Miscellaneous Fee-Based Services",null,null,"ED_FEE431_00446"]
["ED_FEE431_00447","Miscellaneous Fee-Based Services",null,null,"ED_FEE431_00447"]
["ED_FEE431_00448","Miscellaneous Fee-Based Services",null,null,"ED_FEE431_00448"]
["ED_FEE431_00449","Miscellaneous Fee-Based Services",null,null,"ED_FEE431_00449"]
["ED_FEE431_00450","Miscellaneous Fee-Based Services",null,null,"ED_FEE431_00450"]
["ED_FEE431_00451","Miscellaneous Fee-Based Services",null,null,"ED_FEE431_00451"]
["ED_FEE431_00452","Miscellaneous Fee-Based Services",null,null,"ED_FEE431_00452"]
["ED_FEE431_00453","Miscellaneous Fee-Based Services",null,null,"ED_FEE431_00453"]
["ED_FEE431_00454","Miscellaneous Fee-Based Services",null,null,"ED_FEE431_00454"]
["ED_FEE431_00455","Miscellaneous Fee-Based Services",null,null,"ED_FEE431_00455"]
["ED_FEE431_00456","Miscellaneous Fee-Based Services",null,null,"ED_FEE431_00456"]
["ED_FEE431_00457","Miscellaneous Fee-Based Services",null,null,"ED_FEE431_00457"]
["ED_FEE431_00458","Miscellaneous Fee-Based Services",null,null,"ED_FEE431_00458"]
["ED_FEE431_00459","Miscellaneous Fee-Based Services",null,null,"ED_FEE431_00459"]
["ED_FEE431_00460","Miscellaneous Fee-Based Services",null,null,"ED_FEE431_00460"]
["ED_FEE431_00461","Miscellaneous Fee-Based Services",null,null,"ED_FEE431_00461"]
["ED_FEE431_00462","Miscellaneous Fee-Based Services",null,null,"ED_FEE431_00462"]
["ED_FEE431_00463","Miscellaneous Fee-Based Services",null,null,"ED_FEE431_00463"]
["ED_FEE431_00464","Miscellaneous Fee-Based Services",null,null,"ED_FEE431_00464"]
["ED_FEE431_00465","Miscellaneous Fee-Based Services",null,null,"ED_FEE431_00465"]
["ED_FEE431_00466","Miscellaneous Fee-Based Services",null,null,"ED_FEE431_00466"]
["ED_FEE431_00467","Miscellaneous Fee-Based Services",null,null,"ED_FEE431_00467"]
["ED_FEE431_00468","Miscellaneous Fee-Based Services",null,null,"ED_FEE431_00468"]
["ED_FEE431_00469","Miscellaneous Fee-Based Services",null,null,"ED_FEE431_00469"]
["ED_FEE431_00470","Miscellaneous Fee-Based Services",null,null,"ED_FEE431_00470"]
["ED_FEE431_00471","Miscellaneous Fee-Based Services",null,null,"ED_FEE431_00471"]

{"sheet":"4.4 Quoted services","index":16,"n_rows":483,"n_cols":6,"rows_kept":483,"cut":false,"hidden":false,"merged":[]}
[null,{"$f":"(LOOKUP(dms_Model,dms_Model_List,dms_Worksheet_List))","v":"REGULATORY REPORTING STATEMENT"}]
[null,"Australian Distribution Co."]
[null,{"$f":"CONCATENATE(\"Category Analysis RIN response \",CRY)","v":"Category Analysis RIN response 2014-15"}]
[null,"4.4 ANCILLARY SERVICES - QUOTED SERVICES"]
[]
[null,"TABLE 4.4.1 - COST METRICS FOR QUOTED SERVICES"]
[]
[]
[null,null,null,"EXPENDITURE \n($0's)",null,"VOLUMES \n(0's)"]
[null,"SERVICE","SERVICE SUBCATEGORY",{"$f":"CRY","v":"2014-15"},null,{"$f":"CRY","v":"2014-15"}]
["ED_QUO441_00001","Quoted Services ","High Load Escorts",35043.880000000005,"ED_QUO441_00001",42]
["ED_QUO441_00002","Quoted Services","CT Meter Installs",72077,"ED_QUO441_00002",161]
["ED_QUO441_00003","Quoted Services",null,null,"ED_QUO441_00003"]
["ED_QUO441_00004","Quoted Services",null,null,"ED_QUO441_00004"]
["ED_QUO441_00005","Quoted Services",null,null,"ED_QUO441_00005"]
["ED_QUO441_00006","Quoted Services",null,null,"ED_QUO441_00006"]
["ED_QUO441_00007","Quoted Services",null,null,"ED_QUO441_00007"]
["ED_QUO441_00008","Quoted Services",null,null,"ED_QUO441_00008"]
["ED_QUO441_00009","Quoted Services",null,null,"ED_QUO441_00009"]
["ED_QUO441_00010","Quoted Services",null,null,"ED_QUO441_00010"]
["ED_QUO441_00011","Quoted Services",null,null,"ED_QUO441_00011"]
["ED_QUO441_00012","Quoted Services",null,null,"ED_QUO441_00012"]
["ED_QUO441_00013","Quoted Services",null,null,"ED_QUO441_00013"]
["ED_QUO441_00014","Quoted Services",null,null,"ED_QUO441_00014"]
["ED_QUO441_00015","Quoted Services",null,null,"ED_QUO441_00015"]
["ED_QUO441_00016","Quoted Services",null,null,"ED_QUO441_00016"]
["ED_QUO441_00017","Quoted Services",null,null,"ED_QUO441_00017"]
["ED_QUO441_00018","Quoted Services",null,null,"ED_QUO441_00018"]
["ED_QUO441_00019","Quoted Services",null,null,"ED_QUO441_00019"]
["ED_QUO441_00020","Quoted Services",null,null,"ED_QUO441_00020"]
["ED_QUO441_00021","Quoted Services",null,null,"ED_QUO441_00021"]
["ED_QUO441_00022","Quoted Services",null,null,"ED_QUO441_00022"]
["ED_QUO441_00023","Quoted Services",null,null,"ED_QUO441_00023"]
["ED_QUO441_00024","Quoted Services",null,null,"ED_QUO441_00024"]
["ED_QUO441_00025","Quoted Services",null,null,"ED_QUO441_00025"]
["ED_QUO441_00026","Quoted Services",null,null,"ED_QUO441_00026"]
["ED_QUO441_00027","Quoted Services",null,null,"ED_QUO441_00027"]
["ED_QUO441_00028","Quoted Services",null,null,"ED_QUO441_00028"]
["ED_QUO441_00029","Quoted Services",null,null,"ED_QUO441_00029"]
["ED_QUO441_00030","Quoted Services",null,null,"ED_QUO441_00030"]
["ED_QUO441_00031","Quoted Services",null,null,"ED_QUO441_00031"]
["ED_QUO441_00032","Quoted Services",null,null,"ED_QUO441_00032"]
["ED_QUO441_00033","Quoted Services",null,null,"ED_QUO441_00033"]
["ED_QUO441_00034","Quoted Services",null,null,"ED_QUO441_00034"]
["ED_QUO441_00035","Quoted Services",null,null,"ED_QUO441_00035"]
["ED_QUO441_00036","Quoted Services",null,null,"ED_QUO441_00036"]
["ED_QUO441_00037","Quoted Services",null,null,"ED_QUO441_00037"]
["ED_QUO441_00038","Quoted Services",null,null,"ED_QUO441_00038"]
["ED_QUO441_00039","Quoted Services",null,null,"ED_QUO441_00039"]
["ED_QUO441_00040","Quoted Services",null,null,"ED_QUO441_00040"]
["ED_QUO441_00041","Quoted Services",null,null,"ED_QUO441_00041"]
["ED_QUO441_00042","Quoted Services",null,null,"ED_QUO441_00042"]
["ED_QUO441_00043","Quoted Services",null,null,"ED_QUO441_00043"]
["ED_QUO441_00044","Quoted Services",null,null,"ED_QUO441_00044"]
["ED_QUO441_00045","Quoted Services",null,null,"ED_QUO441_00045"]
["ED_QUO441_00046","Quoted Services",null,null,"ED_QUO441_00046"]
["ED_QUO441_00047","Quoted Services",null,null,"ED_QUO441_00047"]
["ED_QUO441_00048","Quoted Services",null,null,"ED_QUO441_00048"]
["ED_QUO441_00049","Quoted Services",null,null,"ED_QUO441_00049"]
["ED_QUO441_00050","Quoted Services",null,null,"ED_QUO441_00050"]
["ED_QUO441_00051","Quoted Services",null,null,"ED_QUO441_00051"]
["ED_QUO441_00052","Quoted Services",null,null,"ED_QUO441_00052"]
["ED_QUO441_00053","Quoted Services",null,null,"ED_QUO441_00053"]
["ED_QUO441_00054","Quoted Services",null,null,"ED_QUO441_00054"]
["ED_QUO441_00055","Quoted Services",null,null,"ED_QUO441_00055"]
["ED_QUO441_00056","Quoted Services",null,null,"ED_QUO441_00056"]
["ED_QUO441_00057","Quoted Services",null,null,"ED_QUO441_00057"]
["ED_QUO441_00058","Quoted Services",null,null,"ED_QUO441_00058"]
["ED_QUO441_00059","Quoted Services",null,null,"ED_QUO441_00059"]
["ED_QUO441_00060","Quoted Services",null,null,"ED_QUO441_00060"]
["ED_QUO441_00061","Quoted Services",null,null,"ED_QUO441_00061"]
["ED_QUO441_00062","Quoted Services",null,null,"ED_QUO441_00062"]
["ED_QUO441_00063","Quoted Services",null,null,"ED_QUO441_00063"]
["ED_QUO441_00064","Quoted Services",null,null,"ED_QUO441_00064"]
["ED_QUO441_00065","Quoted Services",null,null,"ED_QUO441_00065"]
["ED_QUO441_00066","Quoted Services",null,null,"ED_QUO441_00066"]
["ED_QUO441_00067","Quoted Services",null,null,"ED_QUO441_00067"]
["ED_QUO441_00068","Quoted Services",null,null,"ED_QUO441_00068"]
["ED_QUO441_00069","Quoted Services",null,null,"ED_QUO441_00069"]
["ED_QUO441_00070","Quoted Services",null,null,"ED_QUO441_00070"]
["ED_QUO441_00071","Quoted Services",null,null,"ED_QUO441_00071"]
["ED_QUO441_00072","Quoted Services",null,null,"ED_QUO441_00072"]
["ED_QUO441_00073","Quoted Services",null,null,"ED_QUO441_00073"]
["ED_QUO441_00074","Quoted Services",null,null,"ED_QUO441_00074"]
["ED_QUO441_00075","Quoted Services",null,null,"ED_QUO441_00075"]
["ED_QUO441_00076","Quoted Services",null,null,"ED_QUO441_00076"]
["ED_QUO441_00077","Quoted Services",null,null,"ED_QUO441_00077"]
["ED_QUO441_00078","Quoted Services",null,null,"ED_QUO441_00078"]
["ED_QUO441_00079","Quoted Services",null,null,"ED_QUO441_00079"]
["ED_QUO441_00080","Quoted Services",null,null,"ED_QUO441_00080"]
["ED_QUO441_00081","Quoted Services",null,null,"ED_QUO441_00081"]
["ED_QUO441_00082","Quoted Services",null,null,"ED_QUO441_00082"]
["ED_QUO441_00083","Quoted Services",null,null,"ED_QUO441_00083"]
["ED_QUO441_00084","Quoted Services",null,null,"ED_QUO441_00084"]
["ED_QUO441_00085","Quoted Services",null,null,"ED_QUO441_00085"]
["ED_QUO441_00086","Quoted Services",null,null,"ED_QUO441_00086"]
["ED_QUO441_00087","Quoted Services",null,null,"ED_QUO441_00087"]
["ED_QUO441_00088","Quoted Services",null,null,"ED_QUO441_00088"]
["ED_QUO441_00089","Quoted Services",null,null,"ED_QUO441_00089"]
["ED_QUO441_00090","Quoted Services",null,null,"ED_QUO441_00090"]
["ED_QUO441_00091","Quoted Services",null,null,"ED_QUO441_00091"]
["ED_QUO441_00092","Quoted Services",null,null,"ED_QUO441_00092"]
["ED_QUO441_00093","Quoted Services",null,null,"ED_QUO441_00093"]
["ED_QUO441_00094","Quoted Services",null,null,"ED_QUO441_00094"]
["ED_QUO441_00095","Quoted Services",null,null,"ED_QUO441_00095"]
["ED_QUO441_00096","Quoted Services",null,null,"ED_QUO441_00096"]
["ED_QUO441_00097","Quoted Services",null,null,"ED_QUO441_00097"]
["ED_QUO441_00098","Quoted Services",null,null,"ED_QUO441_00098"]
["ED_QUO441_00099","Quoted Services",null,null,"ED_QUO441_00099"]
["ED_QUO441_00100","Quoted Services",null,null,"ED_QUO441_00100"]
["ED_QUO441_00101","Quoted Services",null,null,"ED_QUO441_00101"]
["ED_QUO441_00102","Quoted Services",null,null,"ED_QUO441_00102"]
["ED_QUO441_00103","Quoted Services",null,null,"ED_QUO441_00103"]
["ED_QUO441_00104","Quoted Services",null,null,"ED_QUO441_00104"]
["ED_QUO441_00105","Quoted Services",null,null,"ED_QUO441_00105"]
["ED_QUO441_00106","Quoted Services",null,null,"ED_QUO441_00106"]
["ED_QUO441_00107","Quoted Services",null,null,"ED_QUO441_00107"]
["ED_QUO441_00108","Quoted Services",null,null,"ED_QUO441_00108"]
["ED_QUO441_00109","Quoted Services",null,null,"ED_QUO441_00109"]
["ED_QUO441_00110","Quoted Services",null,null,"ED_QUO441_00110"]
["ED_QUO441_00111","Quoted Services",null,null,"ED_QUO441_00111"]
["ED_QUO441_00112","Quoted Services",null,null,"ED_QUO441_00112"]
["ED_QUO441_00113","Quoted Services",null,null,"ED_QUO441_00113"]
["ED_QUO441_00114","Quoted Services",null,null,"ED_QUO441_00114"]
["ED_QUO441_00115","Quoted Services",null,null,"ED_QUO441_00115"]
["ED_QUO441_00116","Quoted Services",null,null,"ED_QUO441_00116"]
["ED_QUO441_00117","Quoted Services",null,null,"ED_QUO441_00117"]
["ED_QUO441_00118","Quoted Services",null,null,"ED_QUO441_00118"]
["ED_QUO441_00119","Quoted Services",null,null,"ED_QUO441_00119"]
["ED_QUO441_00120","Quoted Services",null,null,"ED_QUO441_00120"]
["ED_QUO441_00121","Quoted Services",null,null,"ED_QUO441_00121"]
["ED_QUO441_00122","Quoted Services",null,null,"ED_QUO441_00122"]
["ED_QUO441_00123","Quoted Services",null,null,"ED_QUO441_00123"]
["ED_QUO441_00124","Quoted Services",null,null,"ED_QUO441_00124"]
["ED_QUO441_00125","Quoted Services",null,null,"ED_QUO441_00125"]
["ED_QUO441_00126","Quoted Services",null,null,"ED_QUO441_00126"]
["ED_QUO441_00127","Quoted Services",null,null,"ED_QUO441_00127"]
["ED_QUO441_00128","Quoted Services",null,null,"ED_QUO441_00128"]
["ED_QUO441_00129","Quoted Services",null,null,"ED_QUO441_00129"]
["ED_QUO441_00130","Quoted Services",null,null,"ED_QUO441_00130"]
["ED_QUO441_00131","Quoted Services",null,null,"ED_QUO441_00131"]
["ED_QUO441_00132","Quoted Services",null,null,"ED_QUO441_00132"]
["ED_QUO441_00133","Quoted Services",null,null,"ED_QUO441_00133"]
["ED_QUO441_00134","Quoted Services",null,null,"ED_QUO441_00134"]
["ED_QUO441_00135","Quoted Services",null,null,"ED_QUO441_00135"]
["ED_QUO441_00136","Quoted Services",null,null,"ED_QUO441_00136"]
["ED_QUO441_00137","Quoted Services",null,null,"ED_QUO441_00137"]
["ED_QUO441_00138","Quoted Services",null,null,"ED_QUO441_00138"]
["ED_QUO441_00139","Quoted Services",null,null,"ED_QUO441_00139"]
["ED_QUO441_00140","Quoted Services",null,null,"ED_QUO441_00140"]
["ED_QUO441_00141","Quoted Services",null,null,"ED_QUO441_00141"]
["ED_QUO441_00142","Quoted Services",null,null,"ED_QUO441_00142"]
["ED_QUO441_00143","Quoted Services",null,null,"ED_QUO441_00143"]
["ED_QUO441_00144","Quoted Services",null,null,"ED_QUO441_00144"]
["ED_QUO441_00145","Quoted Services",null,null,"ED_QUO441_00145"]
["ED_QUO441_00146","Quoted Services",null,null,"ED_QUO441_00146"]
["ED_QUO441_00147","Quoted Services",null,null,"ED_QUO441_00147"]
["ED_QUO441_00148","Quoted Services",null,null,"ED_QUO441_00148"]
["ED_QUO441_00149","Quoted Services",null,null,"ED_QUO441_00149"]
["ED_QUO441_00150","Quoted Services",null,null,"ED_QUO441_00150"]
["ED_QUO441_00151","Quoted Services",null,null,"ED_QUO441_00151"]
["ED_QUO441_00152","Quoted Services",null,null,"ED_QUO441_00152"]
["ED_QUO441_00153","Quoted Services",null,null,"ED_QUO441_00153"]
["ED_QUO441_00154","Quoted Services",null,null,"ED_QUO441_00154"]
["ED_QUO441_00155","Quoted Services",null,null,"ED_QUO441_00155"]
["ED_QUO441_00156","Quoted Services",null,null,"ED_QUO441_00156"]
["ED_QUO441_00157","Quoted Services",null,null,"ED_QUO441_00157"]
["ED_QUO441_00158","Quoted Services",null,null,"ED_QUO441_00158"]
["ED_QUO441_00159","Quoted Services",null,null,"ED_QUO441_00159"]
["ED_QUO441_00160","Quoted Services",null,null,"ED_QUO441_00160"]
["ED_QUO441_00161","Quoted Services",null,null,"ED_QUO441_00161"]
["ED_QUO441_00162","Quoted Services",null,null,"ED_QUO441_00162"]
["ED_QUO441_00163","Quoted Services",null,null,"ED_QUO441_00163"]
["ED_QUO441_00164","Quoted Services",null,null,"ED_QUO441_00164"]
["ED_QUO441_00165","Quoted Services",null,null,"ED_QUO441_00165"]
["ED_QUO441_00166","Quoted Services",null,null,"ED_QUO441_00166"]
["ED_QUO441_00167","Quoted Services",null,null,"ED_QUO441_00167"]
["ED_QUO441_00168","Quoted Services",null,null,"ED_QUO441_00168"]
["ED_QUO441_00169","Quoted Services",null,null,"ED_QUO441_00169"]
["ED_QUO441_00170","Quoted Services",null,null,"ED_QUO441_00170"]
["ED_QUO441_00171","Quoted Services",null,null,"ED_QUO441_00171"]
["ED_QUO441_00172","Quoted Services",null,null,"ED_QUO441_00172"]
["ED_QUO441_00173","Quoted Services",null,null,"ED_QUO441_00173"]
["ED_QUO441_00174","Quoted Services",null,null,"ED_QUO441_00174"]
["ED_QUO441_00175","Quoted Services",null,null,"ED_QUO441_00175"]
["ED_QUO441_00176","Quoted Services",null,null,"ED_QUO441_00176"]
["ED_QUO441_00177","Quoted Services",null,null,"ED_QUO441_00177"]
["ED_QUO441_00178","Quoted Services",null,null,"ED_QUO441_00178"]
["ED_QUO441_00179","Quoted Services",null,null,"ED_QUO441_00179"]
["ED_QUO441_00180","Quoted Services",null,null,"ED_QUO441_00180"]
["ED_QUO441_00181","Quoted Services",null,null,"ED_QUO441_00181"]
["ED_QUO441_00182","Quoted Services",null,null,"ED_QUO441_00182"]
["ED_QUO441_00183","Quoted Services",null,null,"ED_QUO441_00183"]
["ED_QUO441_00184","Quoted Services",null,null,"ED_QUO441_00184"]
["ED_QUO441_00185","Quoted Services",null,null,"ED_QUO441_00185"]
["ED_QUO441_00186","Quoted Services",null,null,"ED_QUO441_00186"]
["ED_QUO441_00187","Quoted Services",null,null,"ED_QUO441_00187"]
["ED_QUO441_00188","Quoted Services",null,null,"ED_QUO441_00188"]
["ED_QUO441_00189","Quoted Services",null,null,"ED_QUO441_00189"]
["ED_QUO441_00190","Quoted Services",null,null,"ED_QUO441_00190"]
["ED_QUO441_00191","Quoted Services",null,null,"ED_QUO441_00191"]
["ED_QUO441_00192","Quoted Services",null,null,"ED_QUO441_00192"]
["ED_QUO441_00193","Quoted Services",null,null,"ED_QUO441_00193"]
["ED_QUO441_00194","Quoted Services",null,null,"ED_QUO441_00194"]
["ED_QUO441_00195","Quoted Services",null,null,"ED_QUO441_00195"]
["ED_QUO441_00196","Quoted Services",null,null,"ED_QUO441_00196"]
["ED_QUO441_00197","Quoted Services",null,null,"ED_QUO441_00197"]
["ED_QUO441_00198","Quoted Services",null,null,"ED_QUO441_00198"]
["ED_QUO441_00199","Quoted Services",null,null,"ED_QUO441_00199"]
["ED_QUO441_00200","Quoted Services",null,null,"ED_QUO441_00200"]
["ED_QUO441_00201","Quoted Services",null,null,"ED_QUO441_00201"]
["ED_QUO441_00202","Quoted Services",null,null,"ED_QUO441_00202"]
["ED_QUO441_00203","Quoted Services",null,null,"ED_QUO441_00203"]
["ED_QUO441_00204","Quoted Services",null,null,"ED_QUO441_00204"]
["ED_QUO441_00205","Quoted Services",null,null,"ED_QUO441_00205"]
["ED_QUO441_00206","Quoted Services",null,null,"ED_QUO441_00206"]
["ED_QUO441_00207","Quoted Services",null,null,"ED_QUO441_00207"]
["ED_QUO441_00208","Quoted Services",null,null,"ED_QUO441_00208"]
["ED_QUO441_00209","Quoted Services",null,null,"ED_QUO441_00209"]
["ED_QUO441_00210","Quoted Services",null,null,"ED_QUO441_00210"]
["ED_QUO441_00211","Quoted Services",null,null,"ED_QUO441_00211"]
["ED_QUO441_00212","Quoted Services",null,null,"ED_QUO441_00212"]
["ED_QUO441_00213","Quoted Services",null,null,"ED_QUO441_00213"]
["ED_QUO441_00214","Quoted Services",null,null,"ED_QUO441_00214"]
["ED_QUO441_00215","Quoted Services",null,null,"ED_QUO441_00215"]
["ED_QUO441_00216","Quoted Services",null,null,"ED_QUO441_00216"]
["ED_QUO441_00217","Quoted Services",null,null,"ED_QUO441_00217"]
["ED_QUO441_00218","Quoted Services",null,null,"ED_QUO441_00218"]
["ED_QUO441_00219","Quoted Services",null,null,"ED_QUO441_00219"]
["ED_QUO441_00220","Quoted Services",null,null,"ED_QUO441_00220"]
["ED_QUO441_00221","Quoted Services",null,null,"ED_QUO441_00221"]
["ED_QUO441_00222","Quoted Services",null,null,"ED_QUO441_00222"]
["ED_QUO441_00223","Quoted Services",null,null,"ED_QUO441_00223"]
["ED_QUO441_00224","Quoted Services",null,null,"ED_QUO441_00224"]
["ED_QUO441_00225","Quoted Services",null,null,"ED_QUO441_00225"]
["ED_QUO441_00226","Quoted Services",null,null,"ED_QUO441_00226"]
["ED_QUO441_00227","Quoted Services",null,null,"ED_QUO441_00227"]
["ED_QUO441_00228","Quoted Services",null,null,"ED_QUO441_00228"]
["ED_QUO441_00229","Quoted Services",null,null,"ED_QUO441_00229"]
["ED_QUO441_00230","Quoted Services",null,null,"ED_QUO441_00230"]
["ED_QUO441_00231","Quoted Services",null,null,"ED_QUO441_00231"]
["ED_QUO441_00232","Quoted Services",null,null,"ED_QUO441_00232"]
["ED_QUO441_00233","Quoted Services",null,null,"ED_QUO441_00233"]
["ED_QUO441_00234","Quoted Services",null,null,"ED_QUO441_00234"]
["ED_QUO441_00235","Quoted Services",null,null,"ED_QUO441_00235"]
["ED_QUO441_00236","Quoted Services",null,null,"ED_QUO441_00236"]
["ED_QUO441_00237","Quoted Services",null,null,"ED_QUO441_00237"]
["ED_QUO441_00238","Quoted Services",null,null,"ED_QUO441_00238"]
["ED_QUO441_00239","Quoted Services",null,null,"ED_QUO441_00239"]
["ED_QUO441_00240","Quoted Services",null,null,"ED_QUO441_00240"]
["ED_QUO441_00241","Quoted Services",null,null,"ED_QUO441_00241"]
["ED_QUO441_00242","Quoted Services",null,null,"ED_QUO441_00242"]
["ED_QUO441_00243","Quoted Services",null,null,"ED_QUO441_00243"]
["ED_QUO441_00244","Quoted Services",null,null,"ED_QUO441_00244"]
["ED_QUO441_00245","Quoted Services",null,null,"ED_QUO441_00245"]
["ED_QUO441_00246","Quoted Services",null,null,"ED_QUO441_00246"]
["ED_QUO441_00247","Quoted Services",null,null,"ED_QUO441_00247"]
["ED_QUO441_00248","Quoted Services",null,null,"ED_QUO441_00248"]
["ED_QUO441_00249","Quoted Services",null,null,"ED_QUO441_00249"]
["ED_QUO441_00250","Quoted Services",null,null,"ED_QUO441_00250"]
["ED_QUO441_00251","Quoted Services",null,null,"ED_QUO441_00251"]
["ED_QUO441_00252","Quoted Services",null,null,"ED_QUO441_00252"]
["ED_QUO441_00253","Quoted Services",null,null,"ED_QUO441_00253"]
["ED_QUO441_00254","Quoted Services",null,null,"ED_QUO441_00254"]
["ED_QUO441_00255","Quoted Services",null,null,"ED_QUO441_00255"]
["ED_QUO441_00256","Quoted Services",null,null,"ED_QUO441_00256"]
["ED_QUO441_00257","Quoted Services",null,null,"ED_QUO441_00257"]
["ED_QUO441_00258","Quoted Services",null,null,"ED_QUO441_00258"]
["ED_QUO441_00259","Quoted Services",null,null,"ED_QUO441_00259"]
["ED_QUO441_00260","Quoted Services",null,null,"ED_QUO441_00260"]
["ED_QUO441_00261","Quoted Services",null,null,"ED_QUO441_00261"]
["ED_QUO441_00262","Quoted Services",null,null,"ED_QUO441_00262"]
["ED_QUO441_00263","Quoted Services",null,null,"ED_QUO441_00263"]
["ED_QUO441_00264","Quoted Services",null,null,"ED_QUO441_00264"]
["ED_QUO441_00265","Quoted Services",null,null,"ED_QUO441_00265"]
["ED_QUO441_00266","Quoted Services",null,null,"ED_QUO441_00266"]
["ED_QUO441_00267","Quoted Services",null,null,"ED_QUO441_00267"]
["ED_QUO441_00268","Quoted Services",null,null,"ED_QUO441_00268"]
["ED_QUO441_00269","Quoted Services",null,null,"ED_QUO441_00269"]
["ED_QUO441_00270","Quoted Services",null,null,"ED_QUO441_00270"]
["ED_QUO441_00271","Quoted Services",null,null,"ED_QUO441_00271"]
["ED_QUO441_00272","Quoted Services",null,null,"ED_QUO441_00272"]
["ED_QUO441_00273","Quoted Services",null,null,"ED_QUO441_00273"]
["ED_QUO441_00274","Quoted Services",null,null,"ED_QUO441_00274"]
["ED_QUO441_00275","Quoted Services",null,null,"ED_QUO441_00275"]
["ED_QUO441_00276","Quoted Services",null,null,"ED_QUO441_00276"]
["ED_QUO441_00277","Quoted Services",null,null,"ED_QUO441_00277"]
["ED_QUO441_00278","Quoted Services",null,null,"ED_QUO441_00278"]
["ED_QUO441_00279","Quoted Services",null,null,"ED_QUO441_00279"]
["ED_QUO441_00280","Quoted Services",null,null,"ED_QUO441_00280"]
["ED_QUO441_00281","Quoted Services",null,null,"ED_QUO441_00281"]
["ED_QUO441_00282","Quoted Services",null,null,"ED_QUO441_00282"]
["ED_QUO441_00283","Quoted Services",null,null,"ED_QUO441_00283"]
["ED_QUO441_00284","Quoted Services",null,null,"ED_QUO441_00284"]
["ED_QUO441_00285","Quoted Services",null,null,"ED_QUO441_00285"]
["ED_QUO441_00286","Quoted Services",null,null,"ED_QUO441_00286"]
["ED_QUO441_00287","Quoted Services",null,null,"ED_QUO441_00287"]
["ED_QUO441_00288","Quoted Services",null,null,"ED_QUO441_00288"]
["ED_QUO441_00289","Quoted Services",null,null,"ED_QUO441_00289"]
["ED_QUO441_00290","Quoted Services",null,null,"ED_QUO441_00290"]
["ED_QUO441_00291","Quoted Services",null,null,"ED_QUO441_00291"]
["ED_QUO441_00292","Quoted Services",null,null,"ED_QUO441_00292"]
["ED_QUO441_00293","Quoted Services",null,null,"ED_QUO441_00293"]
["ED_QUO441_00294","Quoted Services",null,null,"ED_QUO441_00294"]
["ED_QUO441_00295","Quoted Services",null,null,"ED_QUO441_00295"]
["ED_QUO441_00296","Quoted Services",null,null,"ED_QUO441_00296"]
["ED_QUO441_00297","Quoted Services",null,null,"ED_QUO441_00297"]
["ED_QUO441_00298","Quoted Services",null,null,"ED_QUO441_00298"]
["ED_QUO441_00299","Quoted Services",null,null,"ED_QUO441_00299"]
["ED_QUO441_00300","Quoted Services",null,null,"ED_QUO441_00300"]
["ED_QUO441_00301","Quoted Services",null,null,"ED_QUO441_00301"]
["ED_QUO441_00302","Quoted Services",null,null,"ED_QUO441_00302"]
["ED_QUO441_00303","Quoted Services",null,null,"ED_QUO441_00303"]
["ED_QUO441_00304","Quoted Services",null,null,"ED_QUO441_00304"]
["ED_QUO441_00305","Quoted Services",null,null,"ED_QUO441_00305"]
["ED_QUO441_00306","Quoted Services",null,null,"ED_QUO441_00306"]
["ED_QUO441_00307","Quoted Services",null,null,"ED_QUO441_00307"]
["ED_QUO441_00308","Quoted Services",null,null,"ED_QUO441_00308"]
["ED_QUO441_00309","Quoted Services",null,null,"ED_QUO441_00309"]
["ED_QUO441_00310","Quoted Services",null,null,"ED_QUO441_00310"]
["ED_QUO441_00311","Quoted Services",null,null,"ED_QUO441_00311"]
["ED_QUO441_00312","Quoted Services",null,null,"ED_QUO441_00312"]
["ED_QUO441_00313","Quoted Services",null,null,"ED_QUO441_00313"]
["ED_QUO441_00314","Quoted Services",null,null,"ED_QUO441_00314"]
["ED_QUO441_00315","Quoted Services",null,null,"ED_QUO441_00315"]
["ED_QUO441_00316","Quoted Services",null,null,"ED_QUO441_00316"]
["ED_QUO441_00317","Quoted Services",null,null,"ED_QUO441_00317"]
["ED_QUO441_00318","Quoted Services",null,null,"ED_QUO441_00318"]
["ED_QUO441_00319","Quoted Services",null,null,"ED_QUO441_00319"]
["ED_QUO441_00320","Quoted Services",null,null,"ED_QUO441_00320"]
["ED_QUO441_00321","Quoted Services",null,null,"ED_QUO441_00321"]
["ED_QUO441_00322","Quoted Services",null,null,"ED_QUO441_00322"]
["ED_QUO441_00323","Quoted Services",null,null,"ED_QUO441_00323"]
["ED_QUO441_00324","Quoted Services",null,null,"ED_QUO441_00324"]
["ED_QUO441_00325","Quoted Services",null,null,"ED_QUO441_00325"]
["ED_QUO441_00326","Quoted Services",null,null,"ED_QUO441_00326"]
["ED_QUO441_00327","Quoted Services",null,null,"ED_QUO441_00327"]
["ED_QUO441_00328","Quoted Services",null,null,"ED_QUO441_00328"]
["ED_QUO441_00329","Quoted Services",null,null,"ED_QUO441_00329"]
["ED_QUO441_00330","Quoted Services",null,null,"ED_QUO441_00330"]
["ED_QUO441_00331","Quoted Services",null,null,"ED_QUO441_00331"]
["ED_QUO441_00332","Quoted Services",null,null,"ED_QUO441_00332"]
["ED_QUO441_00333","Quoted Services",null,null,"ED_QUO441_00333"]
["ED_QUO441_00334","Quoted Services",null,null,"ED_QUO441_00334"]
["ED_QUO441_00335","Quoted Services",null,null,"ED_QUO441_00335"]
["ED_QUO441_00336","Quoted Services",null,null,"ED_QUO441_00336"]
["ED_QUO441_00337","Quoted Services",null,null,"ED_QUO441_00337"]
["ED_QUO441_00338","Quoted Services",null,null,"ED_QUO441_00338"]
["ED_QUO441_00339","Quoted Services",null,null,"ED_QUO441_00339"]
["ED_QUO441_00340","Quoted Services",null,null,"ED_QUO441_00340"]
["ED_QUO441_00341","Quoted Services",null,null,"ED_QUO441_00341"]
["ED_QUO441_00342","Quoted Services",null,null,"ED_QUO441_00342"]
["ED_QUO441_00343","Quoted Services",null,null,"ED_QUO441_00343"]
["ED_QUO441_00344","Quoted Services",null,null,"ED_QUO441_00344"]
["ED_QUO441_00345","Quoted Services",null,null,"ED_QUO441_00345"]
["ED_QUO441_00346","Quoted Services",null,null,"ED_QUO441_00346"]
["ED_QUO441_00347","Quoted Services",null,null,"ED_QUO441_00347"]
["ED_QUO441_00348","Quoted Services",null,null,"ED_QUO441_00348"]
["ED_QUO441_00349","Quoted Services",null,null,"ED_QUO441_00349"]
["ED_QUO441_00350","Quoted Services",null,null,"ED_QUO441_00350"]
["ED_QUO441_00351","Quoted Services",null,null,"ED_QUO441_00351"]
["ED_QUO441_00352","Quoted Services",null,null,"ED_QUO441_00352"]
["ED_QUO441_00353","Quoted Services",null,null,"ED_QUO441_00353"]
["ED_QUO441_00354","Quoted Services",null,null,"ED_QUO441_00354"]
["ED_QUO441_00355","Quoted Services",null,null,"ED_QUO441_00355"]
["ED_QUO441_00356","Quoted Services",null,null,"ED_QUO441_00356"]
["ED_QUO441_00357","Quoted Services",null,null,"ED_QUO441_00357"]
["ED_QUO441_00358","Quoted Services",null,null,"ED_QUO441_00358"]
["ED_QUO441_00359","Quoted Services",null,null,"ED_QUO441_00359"]
["ED_QUO441_00360","Quoted Services",null,null,"ED_QUO441_00360"]
["ED_QUO441_00361","Quoted Services",null,null,"ED_QUO441_00361"]
["ED_QUO441_00362","Quoted Services",null,null,"ED_QUO441_00362"]
["ED_QUO441_00363","Quoted Services",null,null,"ED_QUO441_00363"]
["ED_QUO441_00364","Quoted Services",null,null,"ED_QUO441_00364"]
["ED_QUO441_00365","Quoted Services",null,null,"ED_QUO441_00365"]
["ED_QUO441_00366","Quoted Services",null,null,"ED_QUO441_00366"]
["ED_QUO441_00367","Quoted Services",null,null,"ED_QUO441_00367"]
["ED_QUO441_00368","Quoted Services",null,null,"ED_QUO441_00368"]
["ED_QUO441_00369","Quoted Services",null,null,"ED_QUO441_00369"]
["ED_QUO441_00370","Quoted Services",null,null,"ED_QUO441_00370"]
["ED_QUO441_00371","Quoted Services",null,null,"ED_QUO441_00371"]
["ED_QUO441_00372","Quoted Services",null,null,"ED_QUO441_00372"]
["ED_QUO441_00373","Quoted Services",null,null,"ED_QUO441_00373"]
["ED_QUO441_00374","Quoted Services",null,null,"ED_QUO441_00374"]
["ED_QUO441_00375","Quoted Services",null,null,"ED_QUO441_00375"]
["ED_QUO441_00376","Quoted Services",null,null,"ED_QUO441_00376"]
["ED_QUO441_00377","Quoted Services",null,null,"ED_QUO441_00377"]
["ED_QUO441_00378","Quoted Services",null,null,"ED_QUO441_00378"]
["ED_QUO441_00379","Quoted Services",null,null,"ED_QUO441_00379"]
["ED_QUO441_00380","Quoted Services",null,null,"ED_QUO441_00380"]
["ED_QUO441_00381","Quoted Services",null,null,"ED_QUO441_00381"]
["ED_QUO441_00382","Quoted Services",null,null,"ED_QUO441_00382"]
["ED_QUO441_00383","Quoted Services",null,null,"ED_QUO441_00383"]
["ED_QUO441_00384","Quoted Services",null,null,"ED_QUO441_00384"]
["ED_QUO441_00385","Quoted Services",null,null,"ED_QUO441_00385"]
["ED_QUO441_00386","Quoted Services",null,null,"ED_QUO441_00386"]
["ED_QUO441_00387","Quoted Services",null,null,"ED_QUO441_00387"]
["ED_QUO441_00388","Quoted Services",null,null,"ED_QUO441_00388"]
["ED_QUO441_00389","Quoted Services",null,null,"ED_QUO441_00389"]
["ED_QUO441_00390","Quoted Services",null,null,"ED_QUO441_00390"]
["ED_QUO441_00391","Quoted Services",null,null,"ED_QUO441_00391"]
["ED_QUO441_00392","Quoted Services",null,null,"ED_QUO441_00392"]
["ED_QUO441_00393","Quoted Services",null,null,"ED_QUO441_00393"]
["ED_QUO441_00394","Quoted Services",null,null,"ED_QUO441_00394"]
["ED_QUO441_00395","Quoted Services",null,null,"ED_QUO441_00395"]
["ED_QUO441_00396","Quoted Services",null,null,"ED_QUO441_00396"]
["ED_QUO441_00397","Quoted Services",null,null,"ED_QUO441_00397"]
["ED_QUO441_00398","Quoted Services",null,null,"ED_QUO441_00398"]
["ED_QUO441_00399","Quoted Services",null,null,"ED_QUO441_00399"]
["ED_QUO441_00400","Quoted Services",null,null,"ED_QUO441_00400"]
["ED_QUO441_00401","Quoted Services",null,null,"ED_QUO441_00401"]
["ED_QUO441_00402","Quoted Services",null,null,"ED_QUO441_00402"]
["ED_QUO441_00403","Quoted Services",null,null,"ED_QUO441_00403"]
["ED_QUO441_00404","Quoted Services",null,null,"ED_QUO441_00404"]
["ED_QUO441_00405","Quoted Services",null,null,"ED_QUO441_00405"]
["ED_QUO441_00406","Quoted Services",null,null,"ED_QUO441_00406"]
["ED_QUO441_00407","Quoted Services",null,null,"ED_QUO441_00407"]
["ED_QUO441_00408","Quoted Services",null,null,"ED_QUO441_00408"]
["ED_QUO441_00409","Quoted Services",null,null,"ED_QUO441_00409"]
["ED_QUO441_00410","Quoted Services",null,null,"ED_QUO441_00410"]
["ED_QUO441_00411","Quoted Services",null,null,"ED_QUO441_00411"]
["ED_QUO441_00412","Quoted Services",null,null,"ED_QUO441_00412"]
["ED_QUO441_00413","Quoted Services",null,null,"ED_QUO441_00413"]
["ED_QUO441_00414","Quoted Services",null,null,"ED_QUO441_00414"]
["ED_QUO441_00415","Quoted Services",null,null,"ED_QUO441_00415"]
["ED_QUO441_00416","Quoted Services",null,null,"ED_QUO441_00416"]
["ED_QUO441_00417","Quoted Services",null,null,"ED_QUO441_00417"]
["ED_QUO441_00418","Quoted Services",null,null,"ED_QUO441_00418"]
["ED_QUO441_00419","Quoted Services",null,null,"ED_QUO441_00419"]
["ED_QUO441_00420","Quoted Services",null,null,"ED_QUO441_00420"]
["ED_QUO441_00421","Quoted Services",null,null,"ED_QUO441_00421"]
["ED_QUO441_00422","Quoted Services",null,null,"ED_QUO441_00422"]
["ED_QUO441_00423","Quoted Services",null,null,"ED_QUO441_00423"]
["ED_QUO441_00424","Quoted Services",null,null,"ED_QUO441_00424"]
["ED_QUO441_00425","Quoted Services",null,null,"ED_QUO441_00425"]
["ED_QUO441_00426","Quoted Services",null,null,"ED_QUO441_00426"]
["ED_QUO441_00427","Quoted Services",null,null,"ED_QUO441_00427"]
["ED_QUO441_00428","Quoted Services",null,null,"ED_QUO441_00428"]
["ED_QUO441_00429","Quoted Services",null,null,"ED_QUO441_00429"]
["ED_QUO441_00430","Quoted Services",null,null,"ED_QUO441_00430"]
["ED_QUO441_00431","Quoted Services",null,null,"ED_QUO441_00431"]
["ED_QUO441_00432","Quoted Services",null,null,"ED_QUO441_00432"]
["ED_QUO441_00433","Quoted Services",null,null,"ED_QUO441_00433"]
["ED_QUO441_00434","Quoted Services",null,null,"ED_QUO441_00434"]
["ED_QUO441_00435","Quoted Services",null,null,"ED_QUO441_00435"]
["ED_QUO441_00436","Quoted Services",null,null,"ED_QUO441_00436"]
["ED_QUO441_00437","Quoted Services",null,null,"ED_QUO441_00437"]
["ED_QUO441_00438","Quoted Services",null,null,"ED_QUO441_00438"]
["ED_QUO441_00439","Quoted Services",null,null,"ED_QUO441_00439"]
["ED_QUO441_00440","Quoted Services",null,null,"ED_QUO441_00440"]
["ED_QUO441_00441","Quoted Services",null,null,"ED_QUO441_00441"]
["ED_QUO441_00442","Quoted Services",null,null,"ED_QUO441_00442"]
["ED_QUO441_00443","Quoted Services",null,null,"ED_QUO441_00443"]
["ED_QUO441_00444","Quoted Services",null,null,"ED_QUO441_00444"]
["ED_QUO441_00445","Quoted Services",null,null,"ED_QUO441_00445"]
["ED_QUO441_00446","Quoted Services",null,null,"ED_QUO441_00446"]
["ED_QUO441_00447","Quoted Services",null,null,"ED_QUO441_00447"]
["ED_QUO441_00448","Quoted Services",null,null,"ED_QUO441_00448"]
["ED_QUO441_00449","Quoted Services",null,null,"ED_QUO441_00449"]
["ED_QUO441_00450","Quoted Services",null,null,"ED_QUO441_00450"]
["ED_QUO441_00451","Quoted Services",null,null,"ED_QUO441_00451"]
["ED_QUO441_00452","Quoted Services",null,null,"ED_QUO441_00452"]
["ED_QUO441_00453","Quoted Services",null,null,"ED_QUO441_00453"]
["ED_QUO441_00454","Quoted Services",null,null,"ED_QUO441_00454"]
["ED_QUO441_00455","Quoted Services",null,null,"ED_QUO441_00455"]
["ED_QUO441_00456","Quoted Services",null,null,"ED_QUO441_00456"]
["ED_QUO441_00457","Quoted Services",null,null,"ED_QUO441_00457"]
["ED_QUO441_00458","Quoted Services",null,null,"ED_QUO441_00458"]
["ED_QUO441_00459","Quoted Services",null,null,"ED_QUO441_00459"]
["ED_QUO441_00460","Quoted Services",null,null,"ED_QUO441_00460"]
["ED_QUO441_00461","Quoted Services",null,null,"ED_QUO441_00461"]
["ED_QUO441_00462","Quoted Services",null,null,"ED_QUO441_00462"]
["ED_QUO441_00463","Quoted Services",null,null,"ED_QUO441_00463"]
["ED_QUO441_00464","Quoted Services",null,null,"ED_QUO441_00464"]
["ED_QUO441_00465","Quoted Services",null,null,"ED_QUO441_00465"]
["ED_QUO441_00466","Quoted Services",null,null,"ED_QUO441_00466"]
["ED_QUO441_00467","Quoted Services",null,null,"ED_QUO441_00467"]
["ED_QUO441_00468","Quoted Services",null,null,"ED_QUO441_00468"]
["ED_QUO441_00469","Quoted Services",null,null,"ED_QUO441_00469"]
["ED_QUO441_00470","Quoted Services",null,null,"ED_QUO441_00470"]
["ED_QUO441_00471","Quoted Services",null,null,"ED_QUO441_00471"]
["ED_QUO441_00472","Quoted Services",null,null,"ED_QUO441_00472"]
["ED_QUO441_00473","Quoted Services",null,null,"ED_QUO441_00473"]

{"sheet":"5.2 Asset Age Profile","index":17,"n_rows":148,"n_cols":140,"rows_kept":148,"cut":false,"hidden":false,"merged":[[8,13,8,24]]}
[null,{"$f":"(LOOKUP(dms_Model,dms_Model_List,dms_Worksheet_List))","v":"REGULATORY REPORTING STATEMENT"}]
[null,"Australian Distribution Co."]
[null,{"$f":"CONCATENATE(\"Category Analysis RIN response \",CRY)","v":"Category Analysis RIN response 2014-15"}]
[null,"5.2 ASSET AGE PROFILE"]
[]
[null,"TABLE 5.2.1 - ASSET AGE PROFILE"]
[null,null,null,null,1,null,null,null,null,null,null,null,null,null,null,2,null,null,null,null,null,null,null,null,null,null,3]
[]
[null,null,null,null,null,null,null,null,null,null,null,null,null,"ECONOMIC LIFE (YEARS)",null,null,null,null,null,null,null,null,null,null,null,null,null,null,null,null,null,null,null,null,null,"INSTALLED ASSETS -˃ QUANTITY CURRENTLY IN COMMISSION BY YEAR"]
[null,"ASSET GROUP","ASSET CATEGORY",null,"DNSP NAME","SERVICE","ASSET GROUP","ASSET CATEGORY","DATA TYPE","DATA TYPE SUBCATEGORY","MEASUREMENT","DENOMINATION",null,"MEAN ",null,"DNSP NAME","SERVICE","ASSET GROUP","ASSET CATEGORY","DATA TYPE","DATA TYPE SUBCATEGORY","MEASUREMENT","DENOMINATION",null,"STANDARD DEVIATION ",null,"DNSP NAME","SERVICE","ASSET GROUP","ASSET CATEGORY","DATA TYPE","DATA TYPE SUBCATEGORY","MEASUREMENT","DENOMINATION",null,"2014-15","2013-14","2012-13","2011-12","2010-11","2009-10","2008-09","2007-08","2006-07","2005-06","2004-05","2003-04","2002-03","2001-02","2000-01","1999-00","1998-99","1997-98","1996-97","1995-96","1994-95","1993-94","1992-93","1991-92","1990-91","1989-90","1988-89","1987-88","1986-87","1985-86","1984-85","1983-84","1982-83","1981-82","1980-81","1979-80","1978-79","1977-78","1976-77","1975-76","1974-75","1973-74","1972-73","1971-72","1970-71","1969-70","1968-69","1967-68","1966-67","1965-66","1964-65","1963-64","1962-63","1961-62","1960-61","1959-60","1958-59","1957-58","1956-57","1955-56","1954-55","1953-54","1952-53","1951-52","1950-51","1949-50","1948-49","1947-48","1946-47","1945-46","1944-45","1943-44","1942-43","1941-42","1940-41","1939-40","1938-39","1937-38","1936-37","1935-36","1934-35","1933-34","1932-33","1931-32","1930-31","1929-30","1928-29","1927-28","1926-27","1925-26","1924-25","1923-24","1922-23","1921-22","1920-21","1919-20","1918-19","1917-18","1916-17","1915-16","1914-15","1913-14","1912-13","1911-12","1910-11"]
["ED_ASS521_00001","POLES BY: \nHIGHEST OPERATING VOLTAGE ; MATERIAL TYPE;  STAKING (IF WOOD)","Staking of a wooden pole",null,"DNSP NAME","REPEX","POLES",{"$f":"C11","v":"Staking of a wooden pole"},"DESCRIPTOR METRIC","MEAN ECONOMIC LIFE","YEARS","NUMBER",null,{"$f":"'[2]5.2 Asset Age Profile'!N11","v":53.8},{"$f":"'[2]5.2 Asset Age Profile'!O11","v":0},{"$f":"'[2]5.2 Asset Age Profile'!P11","v":0},{"$f":"'[2]5.2 Asset Age Profile'!Q11","v":0},{"$f":"'[2]5.2 Asset Age Profile'!R11","v":0},{"$f":"'[2]5.2 Asset Age Profile'!S11","v":0},{"$f":"'[2]5.2 Asset Age Profile'!T11","v":0},{"$f":"'[2]5.2 Asset Age Profile'!U11","v":0},{"$f":"'[2]5.2 Asset Age Profile'!V11","v":0},{"$f":"'[2]5.2 Asset Age Profile'!W11","v":0},{"$f":"'[2]5.2 Asset Age Profile'!X11","v":0},{"$f":"'[2]5.2 Asset Age Profile'!Y11","v":7.334848328356899},{"$f":"'[2]5.2 Asset Age Profile'!Z11","v":0},{"$f":"'[2]5.2 Asset Age Profile'!AA11","v":0},{"$f":"'[2]5.2 Asset Age Profile'!AB11","v":0},{"$f":"'[2]5.2 Asset Age Profile'!AC11","v":0},{"$f":"'[2]5.2 Asset Age Profile'!AD11","v":0},{"$f":"'[2]5.2 Asset Age Profile'!AE11","v":0},{"$f":"'[2]5.2 Asset Age Profile'!AF11","v":0},{"$f":"'[2]5.2 Asset Age Profile'!AG11","v":0},{"$f":"'[2]5.2 Asset Age Profile'!AH11","v":0},{"$f":"'[2]5.2 Asset Age Profile'!AI11","v":0},{"$f":"'[2]5.2 Asset Age Profile'!AJ11","v":901},{"$f":"'[2]5.2 Asset Age Profile'!AK11","v":577},{"$f":"'[2]5.2 Asset Age Profile'!AL11","v":382},{"$f":"'[2]5.2 Asset Age Profile'!AM11","v":609},{"$f":"'[2]5.2 Asset Age Profile'!AN11","v":289},{"$f":"'[2]5.2 Asset Age Profile'!AO11","v":773},{"$f":"'[2]5.2 Asset Age Profile'!AP11","v":695},{"$f":"'[2]5.2 Asset Age Profile'!AQ11","v":793},{"$f":"'[2]5.2 Asset Age Profile'!AR11","v":847},{"$f":"'[2]5.2 Asset Age Profile'!AS11","v":949},{"$f":"'[2]5.2 Asset Age Profile'!AT11","v":589},{"$f":"'[2]5.2 Asset Age Profile'!AU11","v":830},{"$f":"'[2]5.2 Asset Age Profile'!AV11","v":755},{"$f":"'[2]5.2 Asset Age Profile'!AW11","v":766},{"$f":"'[2]5.2 Asset Age Profile'!AX11","v":766},{"$f":"'[2]5.2 Asset Age Profile'!AY11","v":766},{"$f":"'[2]5.2 Asset Age Profile'!AZ11","v":766},{"$f":"'[2]5.2 Asset Age Profile'!BA11","v":766},{"$f":"'[2]5.2 Asset Age Profile'!BB11","v":767},{"$f":"'[2]5.2 Asset Age Profile'!BC11","v":767},{"$f":"'[2]5.2 Asset Age Profile'!BD11","v":767},{"$f":"'[2]5.2 Asset Age Profile'!BE11","v":767},{"$f":"'[2]5.2 Asset Age Profile'!BF11","v":767},{"$f":"'[2]5.2 Asset Age Profile'!BG11","v":767},{"$f":"'[2]5.2 Asset Age Profile'!BH11","v":767},{"$f":"'[2]5.2 Asset Age Profile'!BI11","v":767},{"$f":"'[2]5.2 Asset Age Profile'!BJ11","v":0},{"$f":"'[2]5.2 Asset Age Profile'!BK11","v":0},{"$f":"'[2]5.2 Asset Age Profile'!BL11","v":0},{"$f":"'[2]5.2 Asset Age Profile'!BM11","v":0},{"$f":"'[2]5.2 Asset Age Profile'!BN11","v":0},{"$f":"'[2]5.2 Asset Age Profile'!BO11","v":0},{"$f":"'[2]5.2 Asset Age Profile'!BP11","v":0},{"$f":"'[2]5.2 Asset Age Profile'!BQ11","v":0},{"$f":"'[2]5.2 Asset Age Profile'!BR11","v":0},{"$f":"'[2]5.2 Asset Age Profile'!BS11","v":0},{"$f":"'[2]5.2 Asset Age Profile'!BT11","v":0},{"$f":"'[2]5.2 Asset Age Profile'!BU11","v":0},{"$f":"'[2]5.2 Asset Age Profile'!BV11","v":0},{"$f":"'[2]5.2 Asset Age Profile'!BW11","v":0},{"$f":"'[2]5.2 Asset Age Profile'!BX11","v":0},{"$f":"'[2]5.2 Asset Age Profile'!BY11","v":0},{"$f":"'[2]5.2 Asset Age Profile'!BZ11","v":0},{"$f":"'[2]5.2 Asset Age Profile'!CA11","v":0},{"$f":"'[2]5.2 Asset Age Profile'!CB11","v":0},{"$f":"'[2]5.2 Asset Age Profile'!CC11","v":0},{"$f":"'[2]5.2 Asset Age Profile'!CD11","v":0},{"$f":"'[2]5.2 Asset Age Profile'!CE11","v":0},{"$f":"'[2]5.2 Asset Age Profile'!CF11","v":0},{"$f":"'[2]5.2 Asset Age Profile'!CG11","v":0},{"$f":"'[2]5.2 Asset Age Profile'!CH11","v":0},{"$f":"'[2]5.2 Asset Age Profile'!CI11","v":0},{"$f":"'[2]5.2 Asset Age Profile'!CJ11","v":0},{"$f":"'[2]5.2 Asset Age Profile'!CK11","v":0},{"$f":"'[2]5.2 Asset Age Profile'!CL11","v":0},{"$f":"'[2]5.2 Asset Age Profile'!CM11","v":0},{"$f":"'[2]5.2 Asset Age Profile'!CN11","v":0},{"$f":"'[2]5.2 Asset Age Profile'!CO11","v":0},{"$f":"'[2]5.2 Asset Age Profile'!CP11","v":0},{"$f":"'[2]5.2 Asset Age Profile'!CQ11","v":0},{"$f":"'[2]5.2 Asset Age Profile'!CR11","v":0},{"$f":"'[2]5.2 Asset Age Profile'!CS11","v":0},{"$f":"'[2]5.2 Asset Age Profile'!CT11","v":0},{"$f":"'[2]5.2 Asset Age Profile'!CU11","v":0},{"$f":"'[2]5.2 Asset Age Profile'!CV11","v":0},{"$f":"'[2]5.2 Asset Age Profile'!CW11","v":0},{"$f":"'[2]5.2 Asset Age Profile'!CX11","v":0},{"$f":"'[2]5.2 Asset Age Profile'!CY11","v":0},{"$f":"'[2]5.2 Asset Age Profile'!CZ11","v":0},{"$f":"'[2]5.2 Asset Age Profile'!DA11","v":0},{"$f":"'[2]5.2 Asset Age Profile'!DB11","v":0},{"$f":"'[2]5.2 Asset Age Profile'!DC11","v":0},{"$f":"'[2]5.2 Asset Age Profile'!DD11","v":0},{"$f":"'[2]5.2 Asset Age Profile'!DE11","v":0},{"$f":"'[2]5.2 Asset Age Profile'!DF11","v":0},{"$f":"'[2]5.2 Asset Age Profile'!DG11","v":0},{"$f":"'[2]5.2 Asset Age Profile'!DH11","v":0},{"$f":"'[2]5.2 Asset Age Profile'!DI11","v":0},{"$f":"'[2]5.2 Asset Age Profile'!DJ11","v":0},{"$f":"'[2]5.2 Asset Age Profile'!DK11","v":0},{"$f":"'[2]5.2 Asset Age Profile'!DL11","v":0},{"$f":"'[2]5.2 Asset Age Profile'!DM11","v":0},{"$f":"'[2]5.2 Asset Age Profile'!DN11","v":0},{"$f":"'[2]5.2 Asset Age Profile'!DO11","v":0},{"$f":"'[2]5.2 Asset Age Profile'!DP11","v":0},{"$f":"'[2]5.2 Asset Age Profile'!DQ11","v":0},{"$f":"'[2]5.2 Asset Age Profile'!DR11","v":0},{"$f":"'[2]5.2 Asset Age Profile'!DS11","v":0},{"$f":"'[2]5.2 Asset Age Profile'!DT11","v":0},{"$f":"'[2]5.2 Asset Age Profile'!DU11","v":0},{"$f":"'[2]5.2 Asset Age Profile'!DV11","v":0},{"$f":"'[2]5.2 Asset Age Profile'!DW11","v":0},{"$f":"'[2]5.2 Asset Age Profile'!DX11","v":0},{"$f":"'[2]5.2 Asset Age Profile'!DY11","v":0},{"$f":"'[2]5.2 Asset Age Profile'!DZ11","v":0},{"$f":"'[2]5.2 Asset Age Profile'!EA11","v":0},{"$f":"'[2]5.2 Asset Age Profile'!EB11","v":0},{"$f":"'[2]5.2 Asset Age Profile'!EC11","v":0},{"$f":"'[2]5.2 Asset Age Profile'!ED11","v":0},{"$f":"'[2]5.2 Asset Age Profile'!EE11","v":0},{"$f":"'[2]5.2 Asset Age Profile'!EF11","v":0},{"$f":"'[2]5.2 Asset Age Profile'!EG11","v":0},{"$f":"'[2]5.2 Asset Age Profile'!EH11","v":0},{"$f":"'[2]5.2 Asset Age Profile'!EI11","v":0},{"$f":"'[2]5.2 Asset Age Profile'!EJ11","v":0}]
["ED_ASS521_00002",null,"˂ = 1 kV; Wood",null,"TNSP NAME","REPEX","POLES",{"$f":"C12","v":"˂ = 1 kV; Wood"},"DESCRIPTOR METRIC","MEAN ECONOMIC LIFE","YEARS","NUMBER",null,{"$f":"'[2]5.2 Asset Age Profile'!N12","v":53.8},{"$f":"'[2]5.2 Asset Age Profile'!O12","v":0},{"$f":"'[2]5.2 Asset Age Profile'!P12","v":0},{"$f":"'[2]5.2 Asset Age Profile'!Q12","v":0},{"$f":"'[2]5.2 Asset Age Profile'!R12","v":0},{"$f":"'[2]5.2 Asset Age Profile'!S12","v":0},{"$f":"'[2]5.2 Asset Age Profile'!T12","v":0},{"$f":"'[2]5.2 Asset Age Profile'!U12","v":0},{"$f":"'[2]5.2 Asset Age Profile'!V12","v":0},{"$f":"'[2]5.2 Asset Age Profile'!W12","v":0},{"$f":"'[2]5.2 Asset Age Profile'!X12","v":0},{"$f":"'[2]5.2 Asset Age Profile'!Y12","v":7.334848328356899},{"$f":"'[2]5.2 Asset Age Profile'!Z12","v":0},{"$f":"'[2]5.2 Asset Age Profile'!AA12","v":0},{"$f":"'[2]5.2 Asset Age Profile'!AB12","v":0},{"$f":"'[2]5.2 Asset Age Profile'!AC12","v":0},{"$f":"'[2]5.2 Asset Age Profile'!AD12","v":0},{"$f":"'[2]5.2 Asset Age Profile'!AE12","v":0},{"$f":"'[2]5.2 Asset Age Profile'!AF12","v":0},{"$f":"'[2]5.2 Asset Age Profile'!AG12","v":0},{"$f":"'[2]5.2 Asset Age Profile'!AH12","v":0},{"$f":"'[2]5.2 Asset Age Profile'!AI12","v":0},{"$f":"'[2]5.2 Asset Age Profile'!AJ12","v":2840},{"$f":"'[2]5.2 Asset Age Profile'!AK12","v":3261},{"$f":"'[2]5.2 Asset Age Profile'!AL12","v":3051},{"$f":"'[2]5.2 Asset Age Profile'!AM12","v":2552},{"$f":"'[2]5.2 Asset Age Profile'!AN12","v":2075},{"$f":"'[2]5.2 Asset Age Profile'!AO12","v":2137},{"$f":"'[2]5.2 Asset Age Profile'!AP12","v":2367},{"$f":"'[2]5.2 Asset Age Profile'!AQ12","v":2715},{"$f":"'[2]5.2 Asset Age Profile'!AR12","v":2439},{"$f":"'[2]5.2 Asset Age Profile'!AS12","v":2591},{"$f":"'[2]5.2 Asset Age Profile'!AT12","v":3149},{"$f":"'[2]5.2 Asset Age Profile'!AU12","v":3235},{"$f":"'[2]5.2 Asset Age Profile'!AV12","v":2818},{"$f":"'[2]5.2 Asset Age Profile'!AW12","v":2650},{"$f":"'[2]5.2 Asset Age Profile'!AX12","v":2990},{"$f":"'[2]5.2 Asset Age Profile'!AY12","v":3101},{"$f":"'[2]5.2 Asset Age Profile'!AZ12","v":2441},{"$f":"'[2]5.2 Asset Age Profile'!BA12","v":2184},{"$f":"'[2]5.2 Asset Age Profile'!BB12","v":2697},{"$f":"'[2]5.2 Asset Age Profile'!BC12","v":4184},{"$f":"'[2]5.2 Asset Age Profile'!BD12","v":5078},{"$f":"'[2]5.2 Asset Age Profile'!BE12","v":5524},{"$f":"'[2]5.2 Asset Age Profile'!BF12","v":5951},{"$f":"'[2]5.2 Asset Age Profile'!BG12","v":6080},{"$f":"'[2]5.2 Asset Age Profile'!BH12","v":7534},{"$f":"'[2]5.2 Asset Age Profile'!BI12","v":8270},{"$f":"'[2]5.2 Asset Age Profile'!BJ12","v":6789},{"$f":"'[2]5.2 Asset Age Profile'!BK12","v":7952},{"$f":"'[2]5.2 Asset Age Profile'!BL12","v":8384},{"$f":"'[2]5.2 Asset Age Profile'!BM12","v":6980},{"$f":"'[2]5.2 Asset Age Profile'!BN12","v":6207},{"$f":"'[2]5.2 Asset Age Profile'!BO12","v":5042},{"$f":"'[2]5.2 Asset Age Profile'!BP12","v":4832},{"$f":"'[2]5.2 Asset Age Profile'!BQ12","v":6248},{"$f":"'[2]5.2 Asset Age Profile'!BR12","v":6548},{"$f":"'[2]5.2 Asset Age Profile'!BS12","v":7722},{"$f":"'[2]5.2 Asset Age Profile'!BT12","v":5366},{"$f":"'[2]5.2 Asset Age Profile'!BU12","v":5829},{"$f":"'[2]5.2 Asset Age Profile'!BV12","v":7203},{"$f":"'[2]5.2 Asset Age Profile'!BW12","v":5222},{"$f":"'[2]5.2 Asset Age Profile'!BX12","v":6784},{"$f":"'[2]5.2 Asset Age Profile'!BY12","v":6999},{"$f":"'[2]5.2 Asset Age Profile'!BZ12","v":5393},{"$f":"'[2]5.2 Asset Age Profile'!CA12","v":5409},{"$f":"'[2]5.2 Asset Age Profile'!CB12","v":9174},{"$f":"'[2]5.2 Asset Age Profile'!CC12","v":13301},{"$f":"'[2]5.2 Asset Age Profile'!CD12","v":5953},{"$f":"'[2]5.2 Asset Age Profile'!CE12","v":5359},{"$f":"'[2]5.2 Asset Age Profile'!CF12","v":13307},{"$f":"'[2]5.2 Asset Age Profile'!CG12","v":6353},{"$f":"'[2]5.2 Asset Age Profile'!CH12","v":8814},{"$f":"'[2]5.2 Asset Age Profile'!CI12","v":4376},{"$f":"'[2]5.2 Asset Age Profile'!CJ12","v":1439},{"$f":"'[2]5.2 Asset Age Profile'!CK12","v":1922},{"$f":"'[2]5.2 Asset Age Profile'!CL12","v":9843},{"$f":"'[2]5.2 Asset Age Profile'!CM12","v":15937},{"$f":"'[2]5.2 Asset Age Profile'!CN12","v":1322},{"$f":"'[2]5.2 Asset Age Profile'!CO12","v":3345},{"$f":"'[2]5.2 Asset Age Profile'!CP12","v":1514},{"$f":"'[2]5.2 Asset Age Profile'!CQ12","v":2233},{"$f":"'[2]5.2 Asset Age Profile'!CR12","v":6713},{"$f":"'[2]5.2 Asset Age Profile'!CS12","v":1107},{"$f":"'[2]5.2 Asset Age Profile'!CT12","v":1440},{"$f":"'[2]5.2 Asset Age Profile'!CU12","v":3185},{"$f":"'[2]5.2 Asset Age Profile'!CV12","v":1573},{"$f":"'[2]5.2 Asset Age Profile'!CW12","v":10550},{"$f":"'[2]5.2 Asset Age Profile'!CX12","v":748},{"$f":"'[2]5.2 Asset Age Profile'!CY12","v":242},{"$f":"'[2]5.2 Asset Age Profile'!CZ12","v":313},{"$f":"'[2]5.2 Asset Age Profile'!DA12","v":229},{"$f":"'[2]5.2 Asset Age Profile'!DB12","v":72},{"$f":"'[2]5.2 Asset Age Profile'!DC12","v":29},{"$f":"'[2]5.2 Asset Age Profile'!DD12","v":18},{"$f":"'[2]5.2 Asset Age Profile'!DE12","v":4},{"$f":"'[2]5.2 Asset Age Profile'!DF12","v":16},{"$f":"'[2]5.2 Asset Age Profile'!DG12","v":258},{"$f":"'[2]5.2 Asset Age Profile'!DH12","v":54},{"$f":"'[2]5.2 Asset Age Profile'!DI12","v":59},{"$f":"'[2]5.2 Asset Age Profile'!DJ12","v":40},{"$f":"'[2]5.2 Asset Age Profile'!DK12","v":80},{"$f":"'[2]5.2 Asset Age Profile'!DL12","v":41},{"$f":"'[2]5.2 Asset Age Profile'!DM12","v":5},{"$f":"'[2]5.2 Asset Age Profile'!DN12","v":2},{"$f":"'[2]5.2 Asset Age Profile'!DO12","v":0},{"$f":"'[2]5.2 Asset Age Profile'!DP12","v":1177},{"$f":"'[2]5.2 Asset Age Profile'!DQ12","v":392},{"$f":"'[2]5.2 Asset Age Profile'!DR12","v":0},{"$f":"'[2]5.2 Asset Age Profile'!DS12","v":8},{"$f":"'[2]5.2 Asset Age Profile'!DT12","v":1},{"$f":"'[2]5.2 Asset Age Profile'!DU12","v":19},{"$f":"'[2]5.2 Asset Age Profile'!DV12","v":17},{"$f":"'[2]5.2 Asset Age Profile'!DW12","v":0},{"$f":"'[2]5.2 Asset Age Profile'!DX12","v":2},{"$f":"'[2]5.2 Asset Age Profile'!DY12","v":0},{"$f":"'[2]5.2 Asset Age Profile'!DZ12","v":3},{"$f":"'[2]5.2 Asset Age Profile'!EA12","v":0},{"$f":"'[2]5.2 Asset Age Profile'!EB12","v":0},{"$f":"'[2]5.2 Asset Age Profile'!EC12","v":0},{"$f":"'[2]5.2 Asset Age Profile'!ED12","v":0},{"$f":"'[2]5.2 Asset Age Profile'!EE12","v":0},{"$f":"'[2]5.2 Asset Age Profile'!EF12","v":0},{"$f":"'[2]5.2 Asset Age Profile'!EG12","v":0},{"$f":"'[2]5.2 Asset Age Profile'!EH12","v":1},{"$f":"'[2]5.2 Asset Age Profile'!EI12","v":0},{"$f":"'[2]5.2 Asset Age Profile'!EJ12","v":0}]
["ED_ASS521_00003",null,"> 1 kV & < = 11 kV; Wood",null,"TNSP NAME","REPEX","POLES","> 1 kV & < = 11 kV; Wood","DESCRIPTOR METRIC","MEAN ECONOMIC LIFE","YEARS","NUMBER",null,{"$f":"'[2]5.2 Asset Age Profile'!N13","v":53.8},{"$f":"'[2]5.2 Asset Age Profile'!O13","v":0},{"$f":"'[2]5.2 Asset Age Profile'!P13","v":0},{"$f":"'[2]5.2 Asset Age Profile'!Q13","v":0},{"$f":"'[2]5.2 Asset Age Profile'!R13","v":0},{"$f":"'[2]5.2 Asset Age Profile'!S13","v":0},{"$f":"'[2]5.2 Asset Age Profile'!T13","v":0},{"$f":"'[2]5.2 Asset Age Profile'!U13","v":0},{"$f":"'[2]5.2 Asset Age Profile'!V13","v":0},{"$f":"'[2]5.2 Asset Age Profile'!W13","v":0},{"$f":"'[2]5.2 Asset Age Profile'!X13","v":0},{"$f":"'[2]5.2 Asset Age Profile'!Y13","v":7.334848328356899},{"$f":"'[2]5.2 Asset Age Profile'!Z13","v":0},{"$f":"'[2]5.2 Asset Age Profile'!AA13","v":0},{"$f":"'[2]5.2 Asset Age Profile'!AB13","v":0},{"$f":"'[2]5.2 Asset Age Profile'!AC13","v":0},{"$f":"'[2]5.2 Asset Age Profile'!AD13","v":0},{"$f":"'[2]5.2 Asset Age Profile'!AE13","v":0},{"$f":"'[2]5.2 Asset Age Profile'!AF13","v":0},{"$f":"'[2]5.2 Asset Age Profile'!AG13","v":0},{"$f":"'[2]5.2 Asset Age Profile'!AH13","v":0},{"$f":"'[2]5.2 Asset Age Profile'!AI13","v":0},{"$f":"'[2]5.2 Asset Age Profile'!AJ13","v":4885},{"$f":"'[2]5.2 Asset Age Profile'!AK13","v":6238},{"$f":"'[2]5.2 Asset Age Profile'!AL13","v":5912},{"$f":"'[2]5.2 Asset Age Profile'!AM13","v":6451},{"$f":"'[2]5.2 Asset Age Profile'!AN13","v":5711},{"$f":"'[2]5.2 Asset Age Profile'!AO13","v":5290},{"$f":"'[2]5.2 Asset Age Profile'!AP13","v":5347},{"$f":"'[2]5.2 Asset Age Profile'!AQ13","v":5528},{"$f":"'[2]5.2 Asset Age Profile'!AR13","v":5421},{"$f":"'[2]5.2 Asset Age Profile'!AS13","v":5307},{"$f":"'[2]5.2 Asset Age Profile'!AT13","v":5963},{"$f":"'[2]5.2 Asset Age Profile'!AU13","v":5617},{"$f":"'[2]5.2 Asset Age Profile'!AV13","v":5466},{"$f":"'[2]5.2 Asset Age Profile'!AW13","v":5112},{"$f":"'[2]5.2 Asset Age Profile'!AX13","v":4794},{"$f":"'[2]5.2 Asset Age Profile'!AY13","v":4707},{"$f":"'[2]5.2 Asset Age Profile'!AZ13","v":3325},{"$f":"'[2]5.2 Asset Age Profile'!BA13","v":3297},{"$f":"'[2]5.2 Asset Age Profile'!BB13","v":4035},{"$f":"'[2]5.2 Asset Age Profile'!BC13","v":5152},{"$f":"'[2]5.2 Asset Age Profile'!BD13","v":6531},{"$f":"'[2]5.2 Asset Age Profile'!BE13","v":6974},{"$f":"'[2]5.2 Asset Age Profile'!BF13","v":6994},{"$f":"'[2]5.2 Asset Age Profile'!BG13","v":7633},{"$f":"'[2]5.2 Asset Age Profile'!BH13","v":8018},{"$f":"'[2]5.2 Asset Age Profile'!BI13","v":8848},{"$f":"'[2]5.2 Asset Age Profile'!BJ13","v":7365},{"$f":"'[2]5.2 Asset Age Profile'!BK13","v":8739},{"$f":"'[2]5.2 Asset Age Profile'!BL13","v":10616},{"$f":"'[2]5.2 Asset Age Profile'!BM13","v":8749},{"$f":"'[2]5.2 Asset Age Profile'!BN13","v":7156},{"$f":"'[2]5.2 Asset Age Profile'!BO13","v":5844},{"$f":"'[2]5.2 Asset Age Profile'!BP13","v":6129},{"$f":"'[2]5.2 Asset Age Profile'!BQ13","v":7846},{"$f":"'[2]5.2 Asset Age Profile'!BR13","v":7811},{"$f":"'[2]5.2 Asset Age Profile'!BS13","v":7847},{"$f":"'[2]5.2 Asset Age Profile'!BT13","v":5970},{"$f":"'[2]5.2 Asset Age Profile'!BU13","v":6461},{"$f":"'[2]5.2 Asset Age Profile'!BV13","v":8169},{"$f":"'[2]5.2 Asset Age Profile'!BW13","v":6100},{"$f":"'[2]5.2 Asset Age Profile'!BX13","v":6723},{"$f":"'[2]5.2 Asset Age Profile'!BY13","v":5595},{"$f":"'[2]5.2 Asset Age Profile'!BZ13","v":5133},{"$f":"'[2]5.2 Asset Age Profile'!CA13","v":6267},{"$f":"'[2]5.2 Asset Age Profile'!CB13","v":9341},{"$f":"'[2]5.2 Asset Age Profile'!CC13","v":16346},{"$f":"'[2]5.2 Asset Age Profile'!CD13","v":9263},{"$f":"'[2]5.2 Asset Age Profile'!CE13","v":5140},{"$f":"'[2]5.2 Asset Age Profile'!CF13","v":11413},{"$f":"'[2]5.2 Asset Age Profile'!CG13","v":7134},{"$f":"'[2]5.2 Asset Age Profile'!CH13","v":7814},{"$f":"'[2]5.2 Asset Age Profile'!CI13","v":5665},{"$f":"'[2]5.2 Asset Age Profile'!CJ13","v":1908},{"$f":"'[2]5.2 Asset Age Profile'!CK13","v":4853},{"$f":"'[2]5.2 Asset Age Profile'!CL13","v":14988},{"$f":"'[2]5.2 Asset Age Profile'!CM13","v":24282},{"$f":"'[2]5.2 Asset Age Profile'!CN13","v":3303},{"$f":"'[2]5.2 Asset Age Profile'!CO13","v":3564},{"$f":"'[2]5.2 Asset Age Profile'!CP13","v":2559},{"$f":"'[2]5.2 Asset Age Profile'!CQ13","v":2876},{"$f":"'[2]5.2 Asset Age Profile'!CR13","v":10051},{"$f":"'[2]5.2 Asset Age Profile'!CS13","v":1183},{"$f":"'[2]5.2 Asset Age Profile'!CT13","v":3911},{"$f":"'[2]5.2 Asset Age Profile'!CU13","v":4667},{"$f":"'[2]5.2 Asset Age Profile'!CV13","v":3282},{"$f":"'[2]5.2 Asset Age Profile'!CW13","v":17641},{"$f":"'[2]5.2 Asset Age Profile'!CX13","v":508},{"$f":"'[2]5.2 Asset Age Profile'!CY13","v":271},{"$f":"'[2]5.2 Asset Age Profile'!CZ13","v":380},{"$f":"'[2]5.2 Asset Age Profile'!DA13","v":181},{"$f":"'[2]5.2 Asset Age Profile'!DB13","v":56},{"$f":"'[2]5.2 Asset Age Profile'!DC13","v":18},{"$f":"'[2]5.2 Asset Age Profile'!DD13","v":0},{"$f":"'[2]5.2 Asset Age Profile'!DE13","v":0},{"$f":"'[2]5.2 Asset Age Profile'!DF13","v":1},{"$f":"'[2]5.2 Asset Age Profile'!DG13","v":217},{"$f":"'[2]5.2 Asset Age Profile'!DH13","v":151},{"$f":"'[2]5.2 Asset Age Profile'!DI13","v":103},{"$f":"'[2]5.2 Asset Age Profile'!DJ13","v":14},{"$f":"'[2]5.2 Asset Age Profile'!DK13","v":195},{"$f":"'[2]5.2 Asset Age Profile'!DL13","v":8},{"$f":"'[2]5.2 Asset Age Profile'!DM13","v":8},{"$f":"'[2]5.2 Asset Age Profile'!DN13","v":1},{"$f":"'[2]5.2 Asset Age Profile'!DO13","v":2},{"$f":"'[2]5.2 Asset Age Profile'!DP13","v":30},{"$f":"'[2]5.2 Asset Age Profile'!DQ13","v":31},{"$f":"'[2]5.2 Asset Age Profile'!DR13","v":0},{"$f":"'[2]5.2 Asset Age Profile'!DS13","v":0},{"$f":"'[2]5.2 Asset Age Profile'!DT13","v":0},{"$f":"'[2]5.2 Asset Age Profile'!DU13","v":0},{"$f":"'[2]5.2 Asset Age Profile'!DV13","v":0},{"$f":"'[2]5.2 Asset Age Profile'!DW13","v":0},{"$f":"'[2]5.2 Asset Age Profile'!DX13","v":0},{"$f":"'[2]5.2 Asset Age Profile'!DY13","v":0},{"$f":"'[2]5.2 Asset Age Profile'!DZ13","v":0},{"$f":"'[2]5.2 Asset Age Profile'!EA13","v":0},{"$f":"'[2]5.2 Asset Age Profile'!EB13","v":0},{"$f":"'[2]5.2 Asset Age Profile'!EC13","v":0},{"$f":"'[2]5.2 Asset Age Profile'!ED13","v":0},{"$f":"'[2]5.2 Asset Age Profile'!EE13","v":0},{"$f":"'[2]5.2 Asset Age Profile'!EF13","v":0},{"$f":"'[2]5.2 Asset Age Profile'!EG13","v":2},{"$f":"'[2]5.2 Asset Age Profile'!EH13","v":0},{"$f":"'[2]5.2 Asset Age Profile'!EI13","v":0},{"$f":"'[2]5.2 Asset Age Profile'!EJ13","v":0}]
["ED_ASS521_00004",null,"˃ 11 kV & < = 22 kV; Wood",null,"DNSP NAME","REPEX","POLES","˃ 11 kV & < = 22 kV; Wood","DESCRIPTOR METRIC","MEAN ECONOMIC LIFE","YEARS","NUMBER",null,{"$f":"'[2]5.2 Asset Age Profile'!N14","v":53.8},{"$f":"'[2]5.2 Asset Age Profile'!O14","v":0},{"$f":"'[2]5.2 Asset Age Profile'!P14","v":0},{"$f":"'[2]5.2 Asset Age Profile'!Q14","v":0},{"$f":"'[2]5.2 Asset Age Profile'!R14","v":0},{"$f":"'[2]5.2 Asset Age Profile'!S14","v":0},{"$f":"'[2]5.2 Asset Age Profile'!T14","v":0},{"$f":"'[2]5.2 Asset Age Profile'!U14","v":0},{"$f":"'[2]5.2 Asset Age Profile'!V14","v":0},{"$f":"'[2]5.2 Asset Age Profile'!W14","v":0},{"$f":"'[2]5.2 Asset Age Profile'!X14","v":0},{"$f":"'[2]5.2 Asset Age Profile'!Y14","v":7.334848328356899},{"$f":"'[2]5.2 Asset Age Profile'!Z14","v":0},{"$f":"'[2]5.2 Asset Age Profile'!AA14","v":0},{"$f":"'[2]5.2 Asset Age Profile'!AB14","v":0},{"$f":"'[2]5.2 Asset Age Profile'!AC14","v":0},{"$f":"'[2]5.2 Asset Age Profile'!AD14","v":0},{"$f":"'[2]5.2 Asset Age Profile'!AE14","v":0},{"$f":"'[2]5.2 Asset Age Profile'!AF14","v":0},{"$f":"'[2]5.2 Asset Age Profile'!AG14","v":0},{"$f":"'[2]5.2 Asset Age Profile'!AH14","v":0},{"$f":"'[2]5.2 Asset Age Profile'!AI14","v":0},{"$f":"'[2]5.2 Asset Age Profile'!AJ14","v":3000},{"$f":"'[2]5.2 Asset Age Profile'!AK14","v":3182},{"$f":"'[2]5.2 Asset Age Profile'!AL14","v":2321},{"$f":"'[2]5.2 Asset Age Profile'!AM14","v":2190},{"$f":"'[2]5.2 Asset Age Profile'!AN14","v":2024},{"$f":"'[2]5.2 Asset Age Profile'!AO14","v":1742},{"$f":"'[2]5.2 Asset Age Profile'!AP14","v":1912},{"$f":"'[2]5.2 Asset Age Profile'!AQ14","v":1976},{"$f":"'[2]5.2 Asset Age Profile'!AR14","v":1881},{"$f":"'[2]5.2 Asset Age Profile'!AS14","v":2335},{"$f":"'[2]5.2 Asset Age Profile'!AT14","v":2450},{"$f":"'[2]5.2 Asset Age Profile'!AU14","v":2415},{"$f":"'[2]5.2 Asset Age Profile'!AV14","v":2450},{"$f":"'[2]5.2 Asset Age Profile'!AW14","v":2686},{"$f":"'[2]5.2 Asset Age Profile'!AX14","v":3070},{"$f":"'[2]5.2 Asset Age Profile'!AY14","v":2470},{"$f":"'[2]5.2 Asset Age Profile'!AZ14","v":1956},{"$f":"'[2]5.2 Asset Age Profile'!BA14","v":1446},{"$f":"'[2]5.2 Asset Age Profile'!BB14","v":1998},{"$f":"'[2]5.2 Asset Age Profile'!BC14","v":2872},{"$f":"'[2]5.2 Asset Age Profile'!BD14","v":4253},{"$f":"'[2]5.2 Asset Age Profile'!BE14","v":3349},{"$f":"'[2]5.2 Asset Age Profile'!BF14","v":3141},{"$f":"'[2]5.2 Asset Age Profile'!BG14","v":4600},{"$f":"'[2]5.2 Asset Age Profile'!BH14","v":4773},{"$f":"'[2]5.2 Asset Age Profile'!BI14","v":4440},{"$f":"'[2]5.2 Asset Age Profile'!BJ14","v":4447},{"$f":"'[2]5.2 Asset Age Profile'!BK14","v":4998},{"$f":"'[2]5.2 Asset Age Profile'!BL14","v":7827},{"$f":"'[2]5.2 Asset Age Profile'!BM14","v":4920},{"$f":"'[2]5.2 Asset Age Profile'!BN14","v":5010},{"$f":"'[2]5.2 Asset Age Profile'!BO14","v":4092},{"$f":"'[2]5.2 Asset Age Profile'!BP14","v":5329},{"$f":"'[2]5.2 Asset Age Profile'!BQ14","v":9089},{"$f":"'[2]5.2 Asset Age Profile'!BR14","v":6921},{"$f":"'[2]5.2 Asset Age Profile'!BS14","v":6222},{"$f":"'[2]5.2 Asset Age Profile'!BT14","v":4084},{"$f":"'[2]5.2 Asset Age Profile'!BU14","v":5925},{"$f":"'[2]5.2 Asset Age Profile'!BV14","v":4077},{"$f":"'[2]5.2 Asset Age Profile'!BW14","v":4090},{"$f":"'[2]5.2 Asset Age Profile'!BX14","v":3786},{"$f":"'[2]5.2 Asset Age Profile'!BY14","v":4155},{"$f":"'[2]5.2 Asset Age Profile'!BZ14","v":2833},{"$f":"'[2]5.2 Asset Age Profile'!CA14","v":2980},{"$f":"'[2]5.2 Asset Age Profile'!CB14","v":3489},{"$f":"'[2]5.2 Asset Age Profile'!CC14","v":7807},{"$f":"'[2]5.2 Asset Age Profile'!CD14","v":4482},{"$f":"'[2]5.2 Asset Age Profile'!CE14","v":6317},{"$f":"'[2]5.2 Asset Age Profile'!CF14","v":9717},{"$f":"'[2]5.2 Asset Age Profile'!CG14","v":8289},{"$f":"'[2]5.2 Asset Age Profile'!CH14","v":16723},{"$f":"'[2]5.2 Asset Age Profile'!CI14","v":7454},{"$f":"'[2]5.2 Asset Age Profile'!CJ14","v":2499},{"$f":"'[2]5.2 Asset Age Profile'!CK14","v":2272},{"$f":"'[2]5.2 Asset Age Profile'!CL14","v":13811},{"$f":"'[2]5.2 Asset Age Profile'!CM14","v":7805},{"$f":"'[2]5.2 Asset Age Profile'!CN14","v":3485},{"$f":"'[2]5.2 Asset Age Profile'!CO14","v":4360},{"$f":"'[2]5.2 Asset Age Profile'!CP14","v":841},{"$f":"'[2]5.2 Asset Age Profile'!CQ14","v":2240},{"$f":"'[2]5.2 Asset Age Profile'!CR14","v":9202},{"$f":"'[2]5.2 Asset Age Profile'!CS14","v":2697},{"$f":"'[2]5.2 Asset Age Profile'!CT14","v":813},{"$f":"'[2]5.2 Asset Age Profile'!CU14","v":719},{"$f":"'[2]5.2 Asset Age Profile'!CV14","v":517},{"$f":"'[2]5.2 Asset Age Profile'!CW14","v":2263},{"$f":"'[2]5.2 Asset Age Profile'!CX14","v":267},{"$f":"'[2]5.2 Asset Age Profile'!CY14","v":27},{"$f":"'[2]5.2 Asset Age Profile'!CZ14","v":29},{"$f":"'[2]5.2 Asset Age Profile'!DA14","v":65},{"$f":"'[2]5.2 Asset Age Profile'!DB14","v":7},{"$f":"'[2]5.2 Asset Age Profile'!DC14","v":45},{"$f":"'[2]5.2 Asset Age Profile'!DD14","v":3},{"$f":"'[2]5.2 Asset Age Profile'!DE14","v":5},{"$f":"'[2]5.2 Asset Age Profile'!DF14","v":13},{"$f":"'[2]5.2 Asset Age Profile'!DG14","v":240},{"$f":"'[2]5.2 Asset Age Profile'!DH14","v":19},{"$f":"'[2]5.2 Asset Age Profile'!DI14","v":12},{"$f":"'[2]5.2 Asset Age Profile'!DJ14","v":12},{"$f":"'[2]5.2 Asset Age Profile'!DK14","v":0},{"$f":"'[2]5.2 Asset Age Profile'!DL14","v":1},{"$f":"'[2]5.2 Asset Age Profile'!DM14","v":1},{"$f":"'[2]5.2 Asset Age Profile'!DN14","v":6},{"$f":"'[2]5.2 Asset Age Profile'!DO14","v":0},{"$f":"'[2]5.2 Asset Age Profile'!DP14","v":2625},{"$f":"'[2]5.2 Asset Age Profile'!DQ14","v":441},{"$f":"'[2]5.2 Asset Age Profile'!DR14","v":0},{"$f":"'[2]5.2 Asset Age Profile'!DS14","v":0},{"$f":"'[2]5.2 Asset Age Profile'!DT14","v":0},{"$f":"'[2]5.2 Asset Age Profile'!DU14","v":0},{"$f":"'[2]5.2 Asset Age Profile'!DV14","v":0},{"$f":"'[2]5.2 Asset Age Profile'!DW14","v":0},{"$f":"'[2]5.2 Asset Age Profile'!DX14","v":0},{"$f":"'[2]5.2 Asset Age Profile'!DY14","v":0},{"$f":"'[2]5.2 Asset Age Profile'!DZ14","v":0},{"$f":"'[2]5.2 Asset Age Profile'!EA14","v":0},{"$f":"'[2]5.2 Asset Age Profile'!EB14","v":0},{"$f":"'[2]5.2 Asset Age Profile'!EC14","v":0},{"$f":"'[2]5.2 Asset Age Profile'!ED14","v":0},{"$f":"'[2]5.2 Asset Age Profile'!EE14","v":0},{"$f":"'[2]5.2 Asset Age Profile'!EF14","v":0},{"$f":"'[2]5.2 Asset Age Profile'!EG14","v":0},{"$f":"'[2]5.2 Asset Age Profile'!EH14","v":0},{"$f":"'[2]5.2 Asset Age Profile'!EI14","v":0},{"$f":"'[2]5.2 Asset Age Profile'!EJ14","v":0}]
["ED_ASS521_00005",null,"> 22 kV & < = 66 kV; Wood",null,"DNSP NAME","REPEX","POLES","> 22 kV & < = 66 kV; Wood","DESCRIPTOR METRIC","MEAN ECONOMIC LIFE","YEARS","NUMBER",null,{"$f":"'[2]5.2 Asset Age Profile'!N15","v":54.9},{"$f":"'[2]5.2 Asset Age Profile'!O15","v":0},{"$f":"'[2]5.2 Asset Age Profile'!P15","v":0},{"$f":"'[2]5.2 Asset Age Profile'!Q15","v":0},{"$f":"'[2]5.2 Asset Age Profile'!R15","v":0},{"$f":"'[2]5.2 Asset Age Profile'!S15","v":0},{"$f":"'[2]5.2 Asset Age Profile'!T15","v":0},{"$f":"'[2]5.2 Asset Age Profile'!U15","v":0},{"$f":"'[2]5.2 Asset Age Profile'!V15","v":0},{"$f":"'[2]5.2 Asset Age Profile'!W15","v":0},{"$f":"'[2]5.2 Asset Age Profile'!X15","v":0},{"$f":"'[2]5.2 Asset Age Profile'!Y15","v":7.4094534211370817},{"$f":"'[2]5.2 Asset Age Profile'!Z15","v":0},{"$f":"'[2]5.2 Asset Age Profile'!AA15","v":0},{"$f":"'[2]5.2 Asset Age Profile'!AB15","v":0},{"$f":"'[2]5.2 Asset Age Profile'!AC15","v":0},{"$f":"'[2]5.2 Asset Age Profile'!AD15","v":0},{"$f":"'[2]5.2 Asset Age Profile'!AE15","v":0},{"$f":"'[2]5.2 Asset Age Profile'!AF15","v":0},{"$f":"'[2]5.2 Asset Age Profile'!AG15","v":0},{"$f":"'[2]5.2 Asset Age Profile'!AH15","v":0},{"$f":"'[2]5.2 Asset Age Profile'!AI15","v":0},{"$f":"'[2]5.2 Asset Age Profile'!AJ15","v":398},{"$f":"'[2]5.2 Asset Age Profile'!AK15","v":513},{"$f":"'[2]5.2 Asset Age Profile'!AL15","v":288},{"$f":"'[2]5.2 Asset Age Profile'!AM15","v":265},{"$f":"'[2]5.2 Asset Age Profile'!AN15","v":285},{"$f":"'[2]5.2 Asset Age Profile'!AO15","v":134},{"$f":"'[2]5.2 Asset Age Profile'!AP15","v":217},{"$f":"'[2]5.2 Asset Age Profile'!AQ15","v":282},{"$f":"'[2]5.2 Asset Age Profile'!AR15","v":551},{"$f":"'[2]5.2 Asset Age Profile'!AS15","v":322},{"$f":"'[2]5.2 Asset Age Profile'!AT15","v":479},{"$f":"'[2]5.2 Asset Age Profile'!AU15","v":480},{"$f":"'[2]5.2 Asset Age Profile'!AV15","v":521},{"$f":"'[2]5.2 Asset Age Profile'!AW15","v":601},{"$f":"'[2]5.2 Asset Age Profile'!AX15","v":519},{"$f":"'[2]5.2 Asset Age Profile'!AY15","v":372},{"$f":"'[2]5.2 Asset Age Profile'!AZ15","v":195},{"$f":"'[2]5.2 Asset Age Profile'!BA15","v":203},{"$f":"'[2]5.2 Asset Age Profile'!BB15","v":264},{"$f":"'[2]5.2 Asset Age Profile'!BC15","v":389},{"$f":"'[2]5.2 Asset Age Profile'!BD15","v":374},{"$f":"'[2]5.2 Asset Age Profile'!BE15","v":503},{"$f":"'[2]5.2 Asset Age Profile'!BF15","v":453},{"$f":"'[2]5.2 Asset Age Profile'!BG15","v":429},{"$f":"'[2]5.2 Asset Age Profile'!BH15","v":847},{"$f":"'[2]5.2 Asset Age Profile'!BI15","v":524},{"$f":"'[2]5.2 Asset Age Profile'!BJ15","v":643},{"$f":"'[2]5.2 Asset Age Profile'!BK15","v":629},{"$f":"'[2]5.2 Asset Age Profile'!BL15","v":892},{"$f":"'[2]5.2 Asset Age Profile'!BM15","v":527},{"$f":"'[2]5.2 Asset Age Profile'!BN15","v":718},{"$f":"'[2]5.2 Asset Age Profile'!BO15","v":1015},{"$f":"'[2]5.2 Asset Age Profile'!BP15","v":1122},{"$f":"'[2]5.2 Asset Age Profile'!BQ15","v":1690},{"$f":"'[2]5.2 Asset Age Profile'!BR15","v":1518},{"$f":"'[2]5.2 Asset Age Profile'!BS15","v":808},{"$f":"'[2]5.2 Asset Age Profile'!BT15","v":778},{"$f":"'[2]5.2 Asset Age Profile'!BU15","v":1398},{"$f":"'[2]5.2 Asset Age Profile'!BV15","v":1239},{"$f":"'[2]5.2 Asset Age Profile'!BW15","v":642},{"$f":"'[2]5.2 Asset Age Profile'!BX15","v":539},{"$f":"'[2]5.2 Asset Age Profile'!BY15","v":762},{"$f":"'[2]5.2 Asset Age Profile'!BZ15","v":529},{"$f":"'[2]5.2 Asset Age Profile'!CA15","v":1229},{"$f":"'[2]5.2 Asset Age Profile'!CB15","v":2082},{"$f":"'[2]5.2 Asset Age Profile'!CC15","v":2957},{"$f":"'[2]5.2 Asset Age Profile'!CD15","v":2040},{"$f":"'[2]5.2 Asset Age Profile'!CE15","v":2012},{"$f":"'[2]5.2 Asset Age Profile'!CF15","v":3405},{"$f":"'[2]5.2 Asset Age Profile'!CG15","v":2802},{"$f":"'[2]5.2 Asset Age Profile'!CH15","v":3275},{"$f":"'[2]5.2 Asset Age Profile'!CI15","v":1279},{"$f":"'[2]5.2 Asset Age Profile'!CJ15","v":726},{"$f":"'[2]5.2 Asset Age Profile'!CK15","v":1151},{"$f":"'[2]5.2 Asset Age Profile'!CL15","v":2222},{"$f":"'[2]5.2 Asset Age Profile'!CM15","v":3245},{"$f":"'[2]5.2 Asset Age Profile'!CN15","v":169},{"$f":"'[2]5.2 Asset Age Profile'!CO15","v":134},{"$f":"'[2]5.2 Asset Age Profile'!CP15","v":129},{"$f":"'[2]5.2 Asset Age Profile'!CQ15","v":324},{"$f":"'[2]5.2 Asset Age Profile'!CR15","v":1197},{"$f":"'[2]5.2 Asset Age Profile'!CS15","v":6},{"$f":"'[2]5.2 Asset Age Profile'!CT15","v":68},{"$f":"'[2]5.2 Asset Age Profile'!CU15","v":532},{"$f":"'[2]5.2 Asset Age Profile'!CV15","v":28},{"$f":"'[2]5.2 Asset Age Profile'!CW15","v":1422},{"$f":"'[2]5.2 Asset Age Profile'!CX15","v":58},{"$f":"'[2]5.2 Asset Age Profile'!CY15","v":43},{"$f":"'[2]5.2 Asset Age Profile'!CZ15","v":50},{"$f":"'[2]5.2 Asset Age Profile'!DA15","v":194},{"$f":"'[2]5.2 Asset Age Profile'!DB15","v":201},{"$f":"'[2]5.2 Asset Age Profile'!DC15","v":0},{"$f":"'[2]5.2 Asset Age Profile'!DD15","v":29},{"$f":"'[2]5.2 Asset Age Profile'!DE15","v":0},{"$f":"'[2]5.2 Asset Age Profile'!DF15","v":0},{"$f":"'[2]5.2 Asset Age Profile'!DG15","v":79},{"$f":"'[2]5.2 Asset Age Profile'!DH15","v":0},{"$f":"'[2]5.2 Asset Age Profile'!DI15","v":0},{"$f":"'[2]5.2 Asset Age Profile'!DJ15","v":81},{"$f":"'[2]5.2 Asset Age Profile'!DK15","v":16},{"$f":"'[2]5.2 Asset Age Profile'!DL15","v":94},{"$f":"'[2]5.2 Asset Age Profile'!DM15","v":0},{"$f":"'[2]5.2 Asset Age Profile'!DN15","v":1},{"$f":"'[2]5.2 Asset Age Profile'!DO15","v":0},{"$f":"'[2]5.2 Asset Age Profile'!DP15","v":788},{"$f":"'[2]5.2 Asset Age Profile'!DQ15","v":5},{"$f":"'[2]5.2 Asset Age Profile'!DR15","v":0},{"$f":"'[2]5.2 Asset Age Profile'!DS15","v":0},{"$f":"'[2]5.2 Asset Age Profile'!DT15","v":0},{"$f":"'[2]5.2 Asset Age Profile'!DU15","v":0},{"$f":"'[2]5.2 Asset Age Profile'!DV15","v":0},{"$f":"'[2]5.2 Asset Age Profile'!DW15","v":0},{"$f":"'[2]5.2 Asset Age Profile'!DX15","v":0},{"$f":"'[2]5.2 Asset Age Profile'!DY15","v":0},{"$f":"'[2]5.2 Asset Age Profile'!DZ15","v":0},{"$f":"'[2]5.2 Asset Age Profile'!EA15","v":0},{"$f":"'[2]5.2 Asset Age Profile'!EB15","v":0},{"$f":"'[2]5.2 Asset Age Profile'!EC15","v":0},{"$f":"'[2]5.2 Asset Age Profile'!ED15","v":0},{"$f":"'[2]5.2 Asset Age Profile'!EE15","v":0},{"$f":"'[2]5.2 Asset Age Profile'!EF15","v":0},{"$f":"'[2]5.2 Asset Age Profile'!EG15","v":0},{"$f":"'[2]5.2 Asset Age Profile'!EH15","v":0},{"$f":"'[2]5.2 Asset Age Profile'!EI15","v":0},{"$f":"'[2]5.2 Asset Age Profile'!EJ15","v":0}]
["ED_ASS521_00006",null,"> 66 kV & < = 132 kV; Wood",null,"DNSP NAME","REPEX","POLES","> 66 kV & < = 132 kV; Wood","DESCRIPTOR METRIC","MEAN ECONOMIC LIFE","YEARS","NUMBER",null,{"$f":"'[2]5.2 Asset Age Profile'!N16","v":54.9},{"$f":"'[2]5.2 Asset Age Profile'!O16","v":0},{"$f":"'[2]5.2 Asset Age Profile'!P16","v":0},{"$f":"'[2]5.2 Asset Age Profile'!Q16","v":0},{"$f":"'[2]5.2 Asset Age Profile'!R16","v":0},{"$f":"'[2]5.2 Asset Age Profile'!S16","v":0},{"$f":"'[2]5.2 Asset Age Profile'!T16","v":0},{"$f":"'[2]5.2 Asset Age Profile'!U16","v":0},{"$f":"'[2]5.2 Asset Age Profile'!V16","v":0},{"$f":"'[2]5.2 Asset Age Profile'!W16","v":0},{"$f":"'[2]5.2 Asset Age Profile'!X16","v":0},{"$f":"'[2]5.2 Asset Age Profile'!Y16","v":7.4094534211370817},{"$f":"'[2]5.2 Asset Age Profile'!Z16","v":0},{"$f":"'[2]5.2 Asset Age Profile'!AA16","v":0},{"$f":"'[2]5.2 Asset Age Profile'!AB16","v":0},{"$f":"'[2]5.2 Asset Age Profile'!AC16","v":0},{"$f":"'[2]5.2 Asset Age Profile'!AD16","v":0},{"$f":"'[2]5.2 Asset Age Profile'!AE16","v":0},{"$f":"'[2]5.2 Asset Age Profile'!AF16","v":0},{"$f":"'[2]5.2 Asset Age Profile'!AG16","v":0},{"$f":"'[2]5.2 Asset Age Profile'!AH16","v":0},{"$f":"'[2]5.2 Asset Age Profile'!AI16","v":0},{"$f":"'[2]5.2 Asset Age Profile'!AJ16","v":22},{"$f":"'[2]5.2 Asset Age Profile'!AK16","v":44},{"$f":"'[2]5.2 Asset Age Profile'!AL16","v":3},{"$f":"'[2]5.2 Asset Age Profile'!AM16","v":3},{"$f":"'[2]5.2 Asset Age Profile'!AN16","v":7},{"$f":"'[2]5.2 Asset Age Profile'!AO16","v":4},{"$f":"'[2]5.2 Asset Age Profile'!AP16","v":31},{"$f":"'[2]5.2 Asset Age Profile'!AQ16","v":24},{"$f":"'[2]5.2 Asset Age Profile'!AR16","v":9},{"$f":"'[2]5.2 Asset Age Profile'!AS16","v":7},{"$f":"'[2]5.2 Asset Age Profile'!AT16","v":7},{"$f":"'[2]5.2 Asset Age Profile'!AU16","v":5},{"$f":"'[2]5.2 Asset Age Profile'!AV16","v":3},{"$f":"'[2]5.2 Asset Age Profile'!AW16","v":1},{"$f":"'[2]5.2 Asset Age Profile'!AX16","v":5},{"$f":"'[2]5.2 Asset Age Profile'!AY16","v":13},{"$f":"'[2]5.2 Asset Age Profile'!AZ16","v":10},{"$f":"'[2]5.2 Asset Age Profile'!BA16","v":7},{"$f":"'[2]5.2 Asset Age Profile'!BB16","v":9},{"$f":"'[2]5.2 Asset Age Profile'!BC16","v":6},{"$f":"'[2]5.2 Asset Age Profile'!BD16","v":18},{"$f":"'[2]5.2 Asset Age Profile'!BE16","v":9},{"$f":"'[2]5.2 Asset Age Profile'!BF16","v":10},{"$f":"'[2]5.2 Asset Age Profile'!BG16","v":344},{"$f":"'[2]5.2 Asset Age Profile'!BH16","v":79},{"$f":"'[2]5.2 Asset Age Profile'!BI16","v":237},{"$f":"'[2]5.2 Asset Age Profile'!BJ16","v":90},{"$f":"'[2]5.2 Asset Age Profile'!BK16","v":11},{"$f":"'[2]5.2 Asset Age Profile'!BL16","v":17},{"$f":"'[2]5.2 Asset Age Profile'!BM16","v":165},{"$f":"'[2]5.2 Asset Age Profile'!BN16","v":8},{"$f":"'[2]5.2 Asset Age Profile'!BO16","v":102},{"$f":"'[2]5.2 Asset Age Profile'!BP16","v":1978},{"$f":"'[2]5.2 Asset Age Profile'!BQ16","v":629},{"$f":"'[2]5.2 Asset Age Profile'!BR16","v":310},{"$f":"'[2]5.2 Asset Age Profile'!BS16","v":144},{"$f":"'[2]5.2 Asset Age Profile'!BT16","v":218},{"$f":"'[2]5.2 Asset Age Profile'!BU16","v":58},{"$f":"'[2]5.2 Asset Age Profile'!BV16","v":29},{"$f":"'[2]5.2 Asset Age Profile'!BW16","v":40},{"$f":"'[2]5.2 Asset Age Profile'!BX16","v":14},{"$f":"'[2]5.2 Asset Age Profile'!BY16","v":8},{"$f":"'[2]5.2 Asset Age Profile'!BZ16","v":14},{"$f":"'[2]5.2 Asset Age Profile'!CA16","v":120},{"$f":"'[2]5.2 Asset Age Profile'!CB16","v":307},{"$f":"'[2]5.2 Asset Age Profile'!CC16","v":320},{"$f":"'[2]5.2 Asset Age Profile'!CD16","v":53},{"$f":"'[2]5.2 Asset Age Profile'!CE16","v":364},{"$f":"'[2]5.2 Asset Age Profile'!CF16","v":707},{"$f":"'[2]5.2 Asset Age Profile'!CG16","v":221},{"$f":"'[2]5.2 Asset Age Profile'!CH16","v":1496},{"$f":"'[2]5.2 Asset Age Profile'!CI16","v":884},{"$f":"'[2]5.2 Asset Age Profile'!CJ16","v":50},{"$f":"'[2]5.2 Asset Age Profile'!CK16","v":93},{"$f":"'[2]5.2 Asset Age Profile'!CL16","v":179},{"$f":"'[2]5.2 Asset Age Profile'!CM16","v":36},{"$f":"'[2]5.2 Asset Age Profile'!CN16","v":1},{"$f":"'[2]5.2 Asset Age Profile'!CO16","v":14},{"$f":"'[2]5.2 Asset Age Profile'!CP16","v":0},{"$f":"'[2]5.2 Asset Age Profile'!CQ16","v":0},{"$f":"'[2]5.2 Asset Age Profile'!CR16","v":2},{"$f":"'[2]5.2 Asset Age Profile'!CS16","v":0},{"$f":"'[2]5.2 Asset Age Profile'!CT16","v":0},{"$f":"'[2]5.2 Asset Age Profile'!CU16","v":1},{"$f":"'[2]5.2 Asset Age Profile'!CV16","v":1},{"$f":"'[2]5.2 Asset Age Profile'!CW16","v":2},{"$f":"'[2]5.2 Asset Age Profile'!CX16","v":0},{"$f":"'[2]5.2 Asset Age Profile'!CY16","v":0},{"$f":"'[2]5.2 Asset Age Profile'!CZ16","v":0},{"$f":"'[2]5.2 Asset Age Profile'!DA16","v":0},{"$f":"'[2]5.2 Asset Age Profile'!DB16","v":0},{"$f":"'[2]5.2 Asset Age Profile'!DC16","v":0},{"$f":"'[2]5.2 Asset Age Profile'!DD16","v":0},{"$f":"'[2]5.2 Asset Age Profile'!DE16","v":0},{"$f":"'[2]5.2 Asset Age Profile'!DF16","v":0},{"$f":"'[2]5.2 Asset Age Profile'!DG16","v":0},{"$f":"'[2]5.2 Asset Age Profile'!DH16","v":0},{"$f":"'[2]5.2 Asset Age Profile'!DI16","v":0},{"$f":"'[2]5.2 Asset Age Profile'!DJ16","v":0},{"$f":"'[2]5.2 Asset Age Profile'!DK16","v":0},{"$f":"'[2]5.2 Asset Age Profile'!DL16","v":0},{"$f":"'[2]5.2 Asset Age Profile'!DM16","v":0},{"$f":"'[2]5.2 Asset Age Profile'!DN16","v":0},{"$f":"'[2]5.2 Asset Age Profile'!DO16","v":0},{"$f":"'[2]5.2 Asset Age Profile'!DP16","v":0},{"$f":"'[2]5.2 Asset Age Profile'!DQ16","v":0},{"$f":"'[2]5.2 Asset Age Profile'!DR16","v":0},{"$f":"'[2]5.2 Asset Age Profile'!DS16","v":0},{"$f":"'[2]5.2 Asset Age Profile'!DT16","v":0},{"$f":"'[2]5.2 Asset Age Profile'!DU16","v":0},{"$f":"'[2]5.2 Asset Age Profile'!DV16","v":0},{"$f":"'[2]5.2 Asset Age Profile'!DW16","v":0},{"$f":"'[2]5.2 Asset Age Profile'!DX16","v":0},{"$f":"'[2]5.2 Asset Age Profile'!DY16","v":0},{"$f":"'[2]5.2 Asset Age Profile'!DZ16","v":0},{"$f":"'[2]5.2 Asset Age Profile'!EA16","v":0},{"$f":"'[2]5.2 Asset Age Profile'!EB16","v":0},{"$f":"'[2]5.2 Asset Age Profile'!EC16","v":0},{"$f":"'[2]5.2 Asset Age Profile'!ED16","v":0},{"$f":"'[2]5.2 Asset Age Profile'!EE16","v":0},{"$f":"'[2]5.2 Asset Age Profile'!EF16","v":0},{"$f":"'[2]5.2 Asset Age Profile'!EG16","v":0},{"$f":"'[2]5.2 Asset Age Profile'!EH16","v":0},{"$f":"'[2]5.2 Asset Age Profile'!EI16","v":0},{"$f":"'[2]5.2 Asset Age Profile'!EJ16","v":0}]
["ED_ASS521_00007",null,"> 132 kV; Wood",null,"DNSP NAME","REPEX","POLES","> 132 kV; Wood","DESCRIPTOR METRIC","MEAN ECONOMIC LIFE","YEARS","NUMBER",null,{"$f":"'[2]5.2 Asset Age Profile'!N17","v":54.9},{"$f":"'[2]5.2 Asset Age Profile'!O17","v":0},{"$f":"'[2]5.2 Asset Age Profile'!P17","v":0},{"$f":"'[2]5.2 Asset Age Profile'!Q17","v":0},{"$f":"'[2]5.2 Asset Age Profile'!R17","v":0},{"$f":"'[2]5.2 Asset Age Profile'!S17","v":0},{"$f":"'[2]5.2 Asset Age Profile'!T17","v":0},{"$f":"'[2]5.2 Asset Age Profile'!U17","v":0},{"$f":"'[2]5.2 Asset Age Profile'!V17","v":0},{"$f":"'[2]5.2 Asset Age Profile'!W17","v":0},{"$f":"'[2]5.2 Asset Age Profile'!X17","v":0},{"$f":"'[2]5.2 Asset Age Profile'!Y17","v":7.4094534211370817},{"$f":"'[2]5.2 Asset Age Profile'!Z17","v":0},{"$f":"'[2]5.2 Asset Age Profile'!AA17","v":0},{"$f":"'[2]5.2 Asset Age Profile'!AB17","v":0},{"$f":"'[2]5.2 Asset Age Profile'!AC17","v":0},{"$f":"'[2]5.2 Asset Age Profile'!AD17","v":0},{"$f":"'[2]5.2 Asset Age Profile'!AE17","v":0},{"$f":"'[2]5.2 Asset Age Profile'!AF17","v":0},{"$f":"'[2]5.2 Asset Age Profile'!AG17","v":0},{"$f":"'[2]5.2 Asset Age Profile'!AH17","v":0},{"$f":"'[2]5.2 Asset Age Profile'!AI17","v":0},{"$f":"'[2]5.2 Asset Age Profile'!AJ17","v":0},{"$f":"'[2]5.2 Asset Age Profile'!AK17","v":0},{"$f":"'[2]5.2 Asset Age Profile'!AL17","v":0},{"$f":"'[2]5.2 Asset Age Profile'!AM17","v":0},{"$f":"'[2]5.2 Asset Age Profile'!AN17","v":0},{"$f":"'[2]5.2 Asset Age Profile'!AO17","v":0},{"$f":"'[2]5.2 Asset Age Profile'!AP17","v":0},{"$f":"'[2]5.2 Asset Age Profile'!AQ17","v":0},{"$f":"'[2]5.2 Asset Age Profile'!AR17","v":0},{"$f":"'[2]5.2 Asset Age Profile'!AS17","v":0},{"$f":"'[2]5.2 Asset Age Profile'!AT17","v":0},{"$f":"'[2]5.2 Asset Age Profile'!AU17","v":0},{"$f":"'[2]5.2 Asset Age Profile'!AV17","v":0},{"$f":"'[2]5.2 Asset Age Profile'!AW17","v":0},{"$f":"'[2]5.2 Asset Age Profile'!AX17","v":0},{"$f":"'[2]5.2 Asset Age Profile'!AY17","v":0},{"$f":"'[2]5.2 Asset Age Profile'!AZ17","v":0},{"$f":"'[2]5.2 Asset Age Profile'!BA17","v":0},{"$f":"'[2]5.2 Asset Age Profile'!BB17","v":0},{"$f":"'[2]5.2 Asset Age Profile'!BC17","v":0},{"$f":"'[2]5.2 Asset Age Profile'!BD17","v":0},{"$f":"'[2]5.2 Asset Age Profile'!BE17","v":0},{"$f":"'[2]5.2 Asset Age Profile'!BF17","v":0},{"$f":"'[2]5.2 Asset Age Profile'!BG17","v":0},{"$f":"'[2]5.2 Asset Age Profile'!BH17","v":0},{"$f":"'[2]5.2 Asset Age Profile'!BI17","v":0},{"$f":"'[2]5.2 Asset Age Profile'!BJ17","v":0},{"$f":"'[2]5.2 Asset Age Profile'!BK17","v":0},{"$f":"'[2]5.2 Asset Age Profile'!BL17","v":0},{"$f":"'[2]5.2 Asset Age Profile'!BM17","v":0},{"$f":"'[2]5.2 Asset Age Profile'!BN17","v":0},{"$f":"'[2]5.2 Asset Age Profile'!BO17","v":0},{"$f":"'[2]5.2 Asset Age Profile'!BP17","v":0},{"$f":"'[2]5.2 Asset Age Profile'!BQ17","v":0},{"$f":"'[2]5.2 Asset Age Profile'!BR17","v":0},{"$f":"'[2]5.2 Asset Age Profile'!BS17","v":0},{"$f":"'[2]5.2 Asset Age Profile'!BT17","v":0},{"$f":"'[2]5.2 Asset Age Profile'!BU17","v":0},{"$f":"'[2]5.2 Asset Age Profile'!BV17","v":0},{"$f":"'[2]5.2 Asset Age Profile'!BW17","v":0},{"$f":"'[2]5.2 Asset Age Profile'!BX17","v":0},{"$f":"'[2]5.2 Asset Age Profile'!BY17","v":0},{"$f":"'[2]5.2 Asset Age Profile'!BZ17","v":0},{"$f":"'[2]5.2 Asset Age Profile'!CA17","v":0},{"$f":"'[2]5.2 Asset Age Profile'!CB17","v":0},{"$f":"'[2]5.2 Asset Age Profile'!CC17","v":0},{"$f":"'[2]5.2 Asset Age Profile'!CD17","v":0},{"$f":"'[2]5.2 Asset Age Profile'!CE17","v":0},{"$f":"'[2]5.2 Asset Age Profile'!CF17","v":0},{"$f":"'[2]5.2 Asset Age Profile'!CG17","v":0},{"$f":"'[2]5.2 Asset Age Profile'!CH17","v":0},{"$f":"'[2]5.2 Asset Age Profile'!CI17","v":0},{"$f":"'[2]5.2 Asset Age Profile'!CJ17","v":0},{"$f":"'[2]5.2 Asset Age Profile'!CK17","v":0},{"$f":"'[2]5.2 Asset Age Profile'!CL17","v":0},{"$f":"'[2]5.2 Asset Age Profile'!CM17","v":0},{"$f":"'[2]5.2 Asset Age Profile'!CN17","v":0},{"$f":"'[2]5.2 Asset Age Profile'!CO17","v":0},{"$f":"'[2]5.2 Asset Age Profile'!CP17","v":0},{"$f":"'[2]5.2 Asset Age Profile'!CQ17","v":0},{"$f":"'[2]5.2 Asset Age Profile'!CR17","v":0},{"$f":"'[2]5.2 Asset Age Profile'!CS17","v":0},{"$f":"'[2]5.2 Asset Age Profile'!CT17","v":0},{"$f":"'[2]5.2 Asset Age Profile'!CU17","v":0},{"$f":"'[2]5.2 Asset Age Profile'!CV17","v":0},{"$f":"'[2]5.2 Asset Age Profile'!CW17","v":0},{"$f":"'[2]5.2 Asset Age Profile'!CX17","v":0},{"$f":"'[2]5.2 Asset Age Profile'!CY17","v":0},{"$f":"'[2]5.2 Asset Age Profile'!CZ17","v":0},{"$f":"'[2]5.2 Asset Age Profile'!DA17","v":0},{"$f":"'[2]5.2 Asset Age Profile'!DB17","v":0},{"$f":"'[2]5.2 Asset Age Profile'!DC17","v":0},{"$f":"'[2]5.2 Asset Age Profile'!DD17","v":0},{"$f":"'[2]5.2 Asset Age Profile'!DE17","v":0},{"$f":"'[2]5.2 Asset Age Profile'!DF17","v":0},{"$f":"'[2]5.2 Asset Age Profile'!DG17","v":0},{"$f":"'[2]5.2 Asset Age Profile'!DH17","v":0},{"$f":"'[2]5.2 Asset Age Profile'!DI17","v":0},{"$f":"'[2]5.2 Asset Age Profile'!DJ17","v":0},{"$f":"'[2]5.2 Asset Age Profile'!DK17","v":0},{"$f":"'[2]5.2 Asset Age Profile'!DL17","v":0},{"$f":"'[2]5.2 Asset Age Profile'!DM17","v":0},{"$f":"'[2]5.2 Asset Age Profile'!DN17","v":0},{"$f":"'[2]5.2 Asset Age Profile'!DO17","v":0},{"$f":"'[2]5.2 Asset Age Profile'!DP17","v":0},{"$f":"'[2]5.2 Asset Age Profile'!DQ17","v":0},{"$f":"'[2]5.2 Asset Age Profile'!DR17","v":0},{"$f":"'[2]5.2 Asset Age Profile'!DS17","v":0},{"$f":"'[2]5.2 Asset Age Profile'!DT17","v":0},{"$f":"'[2]5.2 Asset Age Profile'!DU17","v":0},{"$f":"'[2]5.2 Asset Age Profile'!DV17","v":0},{"$f":"'[2]5.2 Asset Age Profile'!DW17","v":0},{"$f":"'[2]5.2 Asset Age Profile'!DX17","v":0},{"$f":"'[2]5.2 Asset Age Profile'!DY17","v":0},{"$f":"'[2]5.2 Asset Age Profile'!DZ17","v":0},{"$f":"'[2]5.2 Asset Age Profile'!EA17","v":0},{"$f":"'[2]5.2 Asset Age Profile'!EB17","v":0},{"$f":"'[2]5.2 Asset Age Profile'!EC17","v":0},{"$f":"'[2]5.2 Asset Age Profile'!ED17","v":0},{"$f":"'[2]5.2 Asset Age Profile'!EE17","v":0},{"$f":"'[2]5.2 Asset Age Profile'!EF17","v":0},{"$f":"'[2]5.2 Asset Age Profile'!EG17","v":0},{"$f":"'[2]5.2 Asset Age Profile'!EH17","v":0},{"$f":"'[2]5.2 Asset Age Profile'!EI17","v":0},{"$f":"'[2]5.2 Asset Age Profile'!EJ17","v":0}]
["ED_ASS521_00008",null,"˂ = 1 kV; Concrete",null,"DNSP NAME","REPEX","POLES","˂ = 1 kV; Concrete","DESCRIPTOR METRIC","MEAN ECONOMIC LIFE","YEARS","NUMBER",null,{"$f":"'[2]5.2 Asset Age Profile'!N18","v":53.8},{"$f":"'[2]5.2 Asset Age Profile'!O18","v":0},{"$f":"'[2]5.2 Asset Age Profile'!P18","v":0},{"$f":"'[2]5.2 Asset Age Profile'!Q18","v":0},{"$f":"'[2]5.2 Asset Age Profile'!R18","v":0},{"$f":"'[2]5.2 Asset Age Profile'!S18","v":0},{"$f":"'[2]5.2 Asset Age Profile'!T18","v":0},{"$f":"'[2]5.2 Asset Age Profile'!U18","v":0},{"$f":"'[2]5.2 Asset Age Profile'!V18","v":0},{"$f":"'[2]5.2 Asset Age Profile'!W18","v":0},{"$f":"'[2]5.2 Asset Age Profile'!X18","v":0},{"$f":"'[2]5.2 Asset Age Profile'!Y18","v":7.334848328356899},{"$f":"'[2]5.2 Asset Age Profile'!Z18","v":0},{"$f":"'[2]5.2 Asset Age Profile'!AA18","v":0},{"$f":"'[2]5.2 Asset Age Profile'!AB18","v":0},{"$f":"'[2]5.2 Asset Age Profile'!AC18","v":0},{"$f":"'[2]5.2 Asset Age Profile'!AD18","v":0},{"$f":"'[2]5.2 Asset Age Profile'!AE18","v":0},{"$f":"'[2]5.2 Asset Age Profile'!AF18","v":0},{"$f":"'[2]5.2 Asset Age Profile'!AG18","v":0},{"$f":"'[2]5.2 Asset Age Profile'!AH18","v":0},{"$f":"'[2]5.2 Asset Age Profile'!AI18","v":0},{"$f":"'[2]5.2 Asset Age Profile'!AJ18","v":36},{"$f":"'[2]5.2 Asset Age Profile'!AK18","v":91},{"$f":"'[2]5.2 Asset Age Profile'!AL18","v":250},{"$f":"'[2]5.2 Asset Age Profile'!AM18","v":283},{"$f":"'[2]5.2 Asset Age Profile'!AN18","v":324},{"$f":"'[2]5.2 Asset Age Profile'!AO18","v":281},{"$f":"'[2]5.2 Asset Age Profile'!AP18","v":311},{"$f":"'[2]5.2 Asset Age Profile'!AQ18","v":312},{"$f":"'[2]5.2 Asset Age Profile'!AR18","v":264},{"$f":"'[2]5.2 Asset Age Profile'!AS18","v":180},{"$f":"'[2]5.2 Asset Age Profile'!AT18","v":307},{"$f":"'[2]5.2 Asset Age Profile'!AU18","v":268},{"$f":"'[2]5.2 Asset Age Profile'!AV18","v":249},{"$f":"'[2]5.2 Asset Age Profile'!AW18","v":347},{"$f":"'[2]5.2 Asset Age Profile'!AX18","v":377},{"$f":"'[2]5.2 Asset Age Profile'!AY18","v":621},{"$f":"'[2]5.2 Asset Age Profile'!AZ18","v":179},{"$f":"'[2]5.2 Asset Age Profile'!BA18","v":300},{"$f":"'[2]5.2 Asset Age Profile'!BB18","v":319},{"$f":"'[2]5.2 Asset Age Profile'!BC18","v":443},{"$f":"'[2]5.2 Asset Age Profile'!BD18","v":804},{"$f":"'[2]5.2 Asset Age Profile'!BE18","v":589},{"$f":"'[2]5.2 Asset Age Profile'!BF18","v":662},{"$f":"'[2]5.2 Asset Age Profile'!BG18","v":491},{"$f":"'[2]5.2 Asset Age Profile'!BH18","v":637},{"$f":"'[2]5.2 Asset Age Profile'!BI18","v":541},{"$f":"'[2]5.2 Asset Age Profile'!BJ18","v":616},{"$f":"'[2]5.2 Asset Age Profile'!BK18","v":393},{"$f":"'[2]5.2 Asset Age Profile'!BL18","v":319},{"$f":"'[2]5.2 Asset Age Profile'!BM18","v":353},{"$f":"'[2]5.2 Asset Age Profile'!BN18","v":190},{"$f":"'[2]5.2 Asset Age Profile'!BO18","v":94},{"$f":"'[2]5.2 Asset Age Profile'!BP18","v":70},{"$f":"'[2]5.2 Asset Age Profile'!BQ18","v":22},{"$f":"'[2]5.2 Asset Age Profile'!BR18","v":74},{"$f":"'[2]5.2 Asset Age Profile'!BS18","v":77},{"$f":"'[2]5.2 Asset Age Profile'!BT18","v":20},{"$f":"'[2]5.2 Asset Age Profile'!BU18","v":17},{"$f":"'[2]5.2 Asset Age Profile'!BV18","v":21},{"$f":"'[2]5.2 Asset Age Profile'!BW18","v":6},{"$f":"'[2]5.2 Asset Age Profile'!BX18","v":5},{"$f":"'[2]5.2 Asset Age Profile'!BY18","v":4},{"$f":"'[2]5.2 Asset Age Profile'!BZ18","v":12},{"$f":"'[2]5.2 Asset Age Profile'!CA18","v":3},{"$f":"'[2]5.2 Asset Age Profile'!CB18","v":19},{"$f":"'[2]5.2 Asset Age Profile'!CC18","v":20},{"$f":"'[2]5.2 Asset Age Profile'!CD18","v":5},{"$f":"'[2]5.2 Asset Age Profile'!CE18","v":12},{"$f":"'[2]5.2 Asset Age Profile'!CF18","v":14},{"$f":"'[2]5.2 Asset Age Profile'!CG18","v":15},{"$f":"'[2]5.2 Asset Age Profile'!CH18","v":32},{"$f":"'[2]5.2 Asset Age Profile'!CI18","v":1},{"$f":"'[2]5.2 Asset Age Profile'!CJ18","v":1},{"$f":"'[2]5.2 Asset Age Profile'!CK18","v":3},{"$f":"'[2]5.2 Asset Age Profile'!CL18","v":3},{"$f":"'[2]5.2 Asset Age Profile'!CM18","v":92},{"$f":"'[2]5.2 Asset Age Profile'!CN18","v":1},{"$f":"'[2]5.2 Asset Age Profile'!CO18","v":5},{"$f":"'[2]5.2 Asset Age Profile'!CP18","v":1},{"$f":"'[2]5.2 Asset Age Profile'!CQ18","v":3},{"$f":"'[2]5.2 Asset Age Profile'!CR18","v":6},{"$f":"'[2]5.2 Asset Age Profile'!CS18","v":0},{"$f":"'[2]5.2 Asset Age Profile'!CT18","v":0},{"$f":"'[2]5.2 Asset Age Profile'!CU18","v":5},{"$f":"'[2]5.2 Asset Age Profile'!CV18","v":0},{"$f":"'[2]5.2 Asset Age Profile'!CW18","v":37},{"$f":"'[2]5.2 Asset Age Profile'!CX18","v":0},{"$f":"'[2]5.2 Asset Age Profile'!CY18","v":22},{"$f":"'[2]5.2 Asset Age Profile'!CZ18","v":0},{"$f":"'[2]5.2 Asset Age Profile'!DA18","v":0},{"$f":"'[2]5.2 Asset Age Profile'!DB18","v":0},{"$f":"'[2]5.2 Asset Age Profile'!DC18","v":0},{"$f":"'[2]5.2 Asset Age Profile'!DD18","v":0},{"$f":"'[2]5.2 Asset Age Profile'!DE18","v":0},{"$f":"'[2]5.2 Asset Age Profile'!DF18","v":0},{"$f":"'[2]5.2 Asset Age Profile'!DG18","v":5},{"$f":"'[2]5.2 Asset Age Profile'!DH18","v":0},{"$f":"'[2]5.2 Asset Age Profile'!DI18","v":0},{"$f":"'[2]5.2 Asset Age Profile'!DJ18","v":0},{"$f":"'[2]5.2 Asset Age Profile'!DK18","v":0},{"$f":"'[2]5.2 Asset Age Profile'!DL18","v":0},{"$f":"'[2]5.2 Asset Age Profile'!DM18","v":0},{"$f":"'[2]5.2 Asset Age Profile'!DN18","v":0},{"$f":"'[2]5.2 Asset Age Profile'!DO18","v":0},{"$f":"'[2]5.2 Asset Age Profile'!DP18","v":0},{"$f":"'[2]5.2 Asset Age Profile'!DQ18","v":2},{"$f":"'[2]5.2 Asset Age Profile'!DR18","v":0},{"$f":"'[2]5.2 Asset Age Profile'!DS18","v":0},{"$f":"'[2]5.2 Asset Age Profile'!DT18","v":0},{"$f":"'[2]5.2 Asset Age Profile'!DU18","v":0},{"$f":"'[2]5.2 Asset Age Profile'!DV18","v":0},{"$f":"'[2]5.2 Asset Age Profile'!DW18","v":0},{"$f":"'[2]5.2 Asset Age Profile'!DX18","v":0},{"$f":"'[2]5.2 Asset Age Profile'!DY18","v":0},{"$f":"'[2]5.2 Asset Age Profile'!DZ18","v":0},{"$f":"'[2]5.2 Asset Age Profile'!EA18","v":0},{"$f":"'[2]5.2 Asset Age Profile'!EB18","v":0},{"$f":"'[2]5.2 Asset Age Profile'!EC18","v":0},{"$f":"'[2]5.2 Asset Age Profile'!ED18","v":0},{"$f":"'[2]5.2 Asset Age Profile'!EE18","v":0},{"$f":"'[2]5.2 Asset Age Profile'!EF18","v":0},{"$f":"'[2]5.2 Asset Age Profile'!EG18","v":0},{"$f":"'[2]5.2 Asset Age Profile'!EH18","v":0},{"$f":"'[2]5.2 Asset Age Profile'!EI18","v":0},{"$f":"'[2]5.2 Asset Age Profile'!EJ18","v":0}]
["ED_ASS521_00009",null,"> 1 kV & < = 11 kV; Concrete",null,"DNSP NAME","REPEX","POLES","> 1 kV & < = 11 kV; Concrete","DESCRIPTOR METRIC","MEAN ECONOMIC LIFE","YEARS","NUMBER",null,{"$f":"'[2]5.2 Asset Age Profile'!N19","v":53.8},{"$f":"'[2]5.2 Asset Age Profile'!O19","v":0},{"$f":"'[2]5.2 Asset Age Profile'!P19","v":0},{"$f":"'[2]5.2 Asset Age Profile'!Q19","v":0},{"$f":"'[2]5.2 Asset Age Profile'!R19","v":0},{"$f":"'[2]5.2 Asset Age Profile'!S19","v":0},{"$f":"'[2]5.2 Asset Age Profile'!T19","v":0},{"$f":"'[2]5.2 Asset Age Profile'!U19","v":0},{"$f":"'[2]5.2 Asset Age Profile'!V19","v":0},{"$f":"'[2]5.2 Asset Age Profile'!W19","v":0},{"$f":"'[2]5.2 Asset Age Profile'!X19","v":0},{"$f":"'[2]5.2 Asset Age Profile'!Y19","v":7.334848328356899},{"$f":"'[2]5.2 Asset Age Profile'!Z19","v":0},{"$f":"'[2]5.2 Asset Age Profile'!AA19","v":0},{"$f":"'[2]5.2 Asset Age Profile'!AB19","v":0},{"$f":"'[2]5.2 Asset Age Profile'!AC19","v":0},{"$f":"'[2]5.2 Asset Age Profile'!AD19","v":0},{"$f":"'[2]5.2 Asset Age Profile'!AE19","v":0},{"$f":"'[2]5.2 Asset Age Profile'!AF19","v":0},{"$f":"'[2]5.2 Asset Age Profile'!AG19","v":0},{"$f":"'[2]5.2 Asset Age Profile'!AH19","v":0},{"$f":"'[2]5.2 Asset Age Profile'!AI19","v":0},{"$f":"'[2]5.2 Asset Age Profile'!AJ19","v":31},{"$f":"'[2]5.2 Asset Age Profile'!AK19","v":199},{"$f":"'[2]5.2 Asset Age Profile'!AL19","v":360},{"$f":"'[2]5.2 Asset Age Profile'!AM19","v":441},{"$f":"'[2]5.2 Asset Age Profile'!AN19","v":351},{"$f":"'[2]5.2 Asset Age Profile'!AO19","v":410},{"$f":"'[2]5.2 Asset Age Profile'!AP19","v":435},{"$f":"'[2]5.2 Asset Age Profile'!AQ19","v":490},{"$f":"'[2]5.2 Asset Age Profile'!AR19","v":548},{"$f":"'[2]5.2 Asset Age Profile'!AS19","v":519},{"$f":"'[2]5.2 Asset Age Profile'!AT19","v":666},{"$f":"'[2]5.2 Asset Age Profile'!AU19","v":563},{"$f":"'[2]5.2 Asset Age Profile'!AV19","v":550},{"$f":"'[2]5.2 Asset Age Profile'!AW19","v":721},{"$f":"'[2]5.2 Asset Age Profile'!AX19","v":728},{"$f":"'[2]5.2 Asset Age Profile'!AY19","v":823},{"$f":"'[2]5.2 Asset Age Profile'!AZ19","v":353},{"$f":"'[2]5.2 Asset Age Profile'!BA19","v":524},{"$f":"'[2]5.2 Asset Age Profile'!BB19","v":536},{"$f":"'[2]5.2 Asset Age Profile'!BC19","v":736},{"$f":"'[2]5.2 Asset Age Profile'!BD19","v":1072},{"$f":"'[2]5.2 Asset Age Profile'!BE19","v":1199},{"$f":"'[2]5.2 Asset Age Profile'!BF19","v":1180},{"$f":"'[2]5.2 Asset Age Profile'!BG19","v":955},{"$f":"'[2]5.2 Asset Age Profile'!BH19","v":1611},{"$f":"'[2]5.2 Asset Age Profile'!BI19","v":1098},{"$f":"'[2]5.2 Asset Age Profile'!BJ19","v":977},{"$f":"'[2]5.2 Asset Age Profile'!BK19","v":1439},{"$f":"'[2]5.2 Asset Age Profile'!BL19","v":1380},{"$f":"'[2]5.2 Asset Age Profile'!BM19","v":694},{"$f":"'[2]5.2 Asset Age Profile'!BN19","v":370},{"$f":"'[2]5.2 Asset Age Profile'!BO19","v":196},{"$f":"'[2]5.2 Asset Age Profile'!BP19","v":199},{"$f":"'[2]5.2 Asset Age Profile'!BQ19","v":84},{"$f":"'[2]5.2 Asset Age Profile'!BR19","v":27},{"$f":"'[2]5.2 Asset Age Profile'!BS19","v":69},{"$f":"'[2]5.2 Asset Age Profile'!BT19","v":6},{"$f":"'[2]5.2 Asset Age Profile'!BU19","v":5},{"$f":"'[2]5.2 Asset Age Profile'!BV19","v":4},{"$f":"'[2]5.2 Asset Age Profile'!BW19","v":3},{"$f":"'[2]5.2 Asset Age Profile'!BX19","v":2},{"$f":"'[2]5.2 Asset Age Profile'!BY19","v":4},{"$f":"'[2]5.2 Asset Age Profile'!BZ19","v":1},{"$f":"'[2]5.2 Asset Age Profile'!CA19","v":1},{"$f":"'[2]5.2 Asset Age Profile'!CB19","v":1},{"$f":"'[2]5.2 Asset Age Profile'!CC19","v":3},{"$f":"'[2]5.2 Asset Age Profile'!CD19","v":1},{"$f":"'[2]5.2 Asset Age Profile'!CE19","v":5},{"$f":"'[2]5.2 Asset Age Profile'!CF19","v":17},{"$f":"'[2]5.2 Asset Age Profile'!CG19","v":15},{"$f":"'[2]5.2 Asset Age Profile'!CH19","v":4},{"$f":"'[2]5.2 Asset Age Profile'!CI19","v":1},{"$f":"'[2]5.2 Asset Age Profile'!CJ19","v":0},{"$f":"'[2]5.2 Asset Age Profile'!CK19","v":3},{"$f":"'[2]5.2 Asset Age Profile'!CL19","v":79},{"$f":"'[2]5.2 Asset Age Profile'!CM19","v":13},{"$f":"'[2]5.2 Asset Age Profile'!CN19","v":2},{"$f":"'[2]5.2 Asset Age Profile'!CO19","v":0},{"$f":"'[2]5.2 Asset Age Profile'!CP19","v":3},{"$f":"'[2]5.2 Asset Age Profile'!CQ19","v":0},{"$f":"'[2]5.2 Asset Age Profile'!CR19","v":0},{"$f":"'[2]5.2 Asset Age Profile'!CS19","v":1},{"$f":"'[2]5.2 Asset Age Profile'!CT19","v":0},{"$f":"'[2]5.2 Asset Age Profile'!CU19","v":18},{"$f":"'[2]5.2 Asset Age Profile'!CV19","v":0},{"$f":"'[2]5.2 Asset Age Profile'!CW19","v":26},{"$f":"'[2]5.2 Asset Age Profile'!CX19","v":0},{"$f":"'[2]5.2 Asset Age Profile'!CY19","v":0},{"$f":"'[2]5.2 Asset Age Profile'!CZ19","v":0},{"$f":"'[2]5.2 Asset Age Profile'!DA19","v":0},{"$f":"'[2]5.2 Asset Age Profile'!DB19","v":0},{"$f":"'[2]5.2 Asset Age Profile'!DC19","v":0},{"$f":"'[2]5.2 Asset Age Profile'!DD19","v":0},{"$f":"'[2]5.2 Asset Age Profile'!DE19","v":0},{"$f":"'[2]5.2 Asset Age Profile'!DF19","v":0},{"$f":"'[2]5.2 Asset Age Profile'!DG19","v":8},{"$f":"'[2]5.2 Asset Age Profile'!DH19","v":0},{"$f":"'[2]5.2 Asset Age Profile'!DI19","v":0},{"$f":"'[2]5.2 Asset Age Profile'!DJ19","v":0},{"$f":"'[2]5.2 Asset Age Profile'!DK19","v":0},{"$f":"'[2]5.2 Asset Age Profile'!DL19","v":0},{"$f":"'[2]5.2 Asset Age Profile'!DM19","v":0},{"$f":"'[2]5.2 Asset Age Profile'!DN19","v":0},{"$f":"'[2]5.2 Asset Age Profile'!DO19","v":0},{"$f":"'[2]5.2 Asset Age Profile'!DP19","v":0},{"$f":"'[2]5.2 Asset Age Profile'!DQ19","v":4},{"$f":"'[2]5.2 Asset Age Profile'!DR19","v":0},{"$f":"'[2]5.2 Asset Age Profile'!DS19","v":0},{"$f":"'[2]5.2 Asset Age Profile'!DT19","v":0},{"$f":"'[2]5.2 Asset Age Profile'!DU19","v":0},{"$f":"'[2]5.2 Asset Age Profile'!DV19","v":0},{"$f":"'[2]5.2 Asset Age Profile'!DW19","v":0},{"$f":"'[2]5.2 Asset Age Profile'!DX19","v":0},{"$f":"'[2]5.2 Asset Age Profile'!DY19","v":0},{"$f":"'[2]5.2 Asset Age Profile'!DZ19","v":0},{"$f":"'[2]5.2 Asset Age Profile'!EA19","v":0},{"$f":"'[2]5.2 Asset Age Profile'!EB19","v":0},{"$f":"'[2]5.2 Asset Age Profile'!EC19","v":0},{"$f":"'[2]5.2 Asset Age Profile'!ED19","v":0},{"$f":"'[2]5.2 Asset Age Profile'!EE19","v":0},{"$f":"'[2]5.2 Asset Age Profile'!EF19","v":0},{"$f":"'[2]5.2 Asset Age Profile'!EG19","v":0},{"$f":"'[2]5.2 Asset Age Profile'!EH19","v":0},{"$f":"'[2]5.2 Asset Age Profile'!EI19","v":0},{"$f":"'[2]5.2 Asset Age Profile'!EJ19","v":0}]
["ED_ASS521_00010",null,"˃ 11 kV & < = 22 kV; Concrete",null,"DNSP NAME","REPEX","POLES","˃ 11 kV & < = 22 kV; Concrete","DESCRIPTOR METRIC","MEAN ECONOMIC LIFE","YEARS","NUMBER",null,{"$f":"'[2]5.2 Asset Age Profile'!N20","v":53.8},{"$f":"'[2]5.2 Asset Age Profile'!O20","v":0},{"$f":"'[2]5.2 Asset Age Profile'!P20","v":0},{"$f":"'[2]5.2 Asset Age Profile'!Q20","v":0},{"$f":"'[2]5.2 Asset Age Profile'!R20","v":0},{"$f":"'[2]5.2 Asset Age Profile'!S20","v":0},{"$f":"'[2]5.2 Asset Age Profile'!T20","v":0},{"$f":"'[2]5.2 Asset Age Profile'!U20","v":0},{"$f":"'[2]5.2 Asset Age Profile'!V20","v":0},{"$f":"'[2]5.2 Asset Age Profile'!W20","v":0},{"$f":"'[2]5.2 Asset Age Profile'!X20","v":0},{"$f":"'[2]5.2 Asset Age Profile'!Y20","v":7.334848328356899},{"$f":"'[2]5.2 Asset Age Profile'!Z20","v":0},{"$f":"'[2]5.2 Asset Age Profile'!AA20","v":0},{"$f":"'[2]5.2 Asset Age Profile'!AB20","v":0},{"$f":"'[2]5.2 Asset Age Profile'!AC20","v":0},{"$f":"'[2]5.2 Asset Age Profile'!AD20","v":0},{"$f":"'[2]5.2 Asset Age Profile'!AE20","v":0},{"$f":"'[2]5.2 Asset Age Profile'!AF20","v":0},{"$f":"'[2]5.2 Asset Age Profile'!AG20","v":0},{"$f":"'[2]5.2 Asset Age Profile'!AH20","v":0},{"$f":"'[2]5.2 Asset Age Profile'!AI20","v":0},{"$f":"'[2]5.2 Asset Age Profile'!AJ20","v":22},{"$f":"'[2]5.2 Asset Age Profile'!AK20","v":111},{"$f":"'[2]5.2 Asset Age Profile'!AL20","v":367},{"$f":"'[2]5.2 Asset Age Profile'!AM20","v":512},{"$f":"'[2]5.2 Asset Age Profile'!AN20","v":636},{"$f":"'[2]5.2 Asset Age Profile'!AO20","v":620},{"$f":"'[2]5.2 Asset Age Profile'!AP20","v":612},{"$f":"'[2]5.2 Asset Age Profile'!AQ20","v":710},{"$f":"'[2]5.2 Asset Age Profile'!AR20","v":900},{"$f":"'[2]5.2 Asset Age Profile'!AS20","v":1150},{"$f":"'[2]5.2 Asset Age Profile'!AT20","v":998},{"$f":"'[2]5.2 Asset Age Profile'!AU20","v":783},{"$f":"'[2]5.2 Asset Age Profile'!AV20","v":740},{"$f":"'[2]5.2 Asset Age Profile'!AW20","v":981},{"$f":"'[2]5.2 Asset Age Profile'!AX20","v":1170},{"$f":"'[2]5.2 Asset Age Profile'!AY20","v":1018},{"$f":"'[2]5.2 Asset Age Profile'!AZ20","v":497},{"$f":"'[2]5.2 Asset Age Profile'!BA20","v":671},{"$f":"'[2]5.2 Asset Age Profile'!BB20","v":885},{"$f":"'[2]5.2 Asset Age Profile'!BC20","v":923},{"$f":"'[2]5.2 Asset Age Profile'!BD20","v":3691},{"$f":"'[2]5.2 Asset Age Profile'!BE20","v":4941},{"$f":"'[2]5.2 Asset Age Profile'!BF20","v":3420},{"$f":"'[2]5.2 Asset Age Profile'!BG20","v":741},{"$f":"'[2]5.2 Asset Age Profile'!BH20","v":402},{"$f":"'[2]5.2 Asset Age Profile'!BI20","v":736},{"$f":"'[2]5.2 Asset Age Profile'!BJ20","v":3296},{"$f":"'[2]5.2 Asset Age Profile'!BK20","v":4029},{"$f":"'[2]5.2 Asset Age Profile'!BL20","v":2677},{"$f":"'[2]5.2 Asset Age Profile'!BM20","v":2306},{"$f":"'[2]5.2 Asset Age Profile'!BN20","v":1975},{"$f":"'[2]5.2 Asset Age Profile'!BO20","v":1540},{"$f":"'[2]5.2 Asset Age Profile'!BP20","v":430},{"$f":"'[2]5.2 Asset Age Profile'!BQ20","v":538},{"$f":"'[2]5.2 Asset Age Profile'!BR20","v":97},{"$f":"'[2]5.2 Asset Age Profile'!BS20","v":202},{"$f":"'[2]5.2 Asset Age Profile'!BT20","v":16},{"$f":"'[2]5.2 Asset Age Profile'!BU20","v":11},{"$f":"'[2]5.2 Asset Age Profile'!BV20","v":20},{"$f":"'[2]5.2 Asset Age Profile'!BW20","v":5},{"$f":"'[2]5.2 Asset Age Profile'!BX20","v":12},{"$f":"'[2]5.2 Asset Age Profile'!BY20","v":11},{"$f":"'[2]5.2 Asset Age Profile'!BZ20","v":6},{"$f":"'[2]5.2 Asset Age Profile'!CA20","v":4},{"$f":"'[2]5.2 Asset Age Profile'!CB20","v":12},{"$f":"'[2]5.2 Asset Age Profile'!CC20","v":22},{"$f":"'[2]5.2 Asset Age Profile'!CD20","v":11},{"$f":"'[2]5.2 Asset Age Profile'!CE20","v":41},{"$f":"'[2]5.2 Asset Age Profile'!CF20","v":9},{"$f":"'[2]5.2 Asset Age Profile'!CG20","v":26},{"$f":"'[2]5.2 Asset Age Profile'!CH20","v":102},{"$f":"'[2]5.2 Asset Age Profile'!CI20","v":3},{"$f":"'[2]5.2 Asset Age Profile'!CJ20","v":1},{"$f":"'[2]5.2 Asset Age Profile'!CK20","v":2},{"$f":"'[2]5.2 Asset Age Profile'!CL20","v":14},{"$f":"'[2]5.2 Asset Age Profile'!CM20","v":28},{"$f":"'[2]5.2 Asset Age Profile'!CN20","v":12},{"$f":"'[2]5.2 Asset Age Profile'!CO20","v":17},{"$f":"'[2]5.2 Asset Age Profile'!CP20","v":0},{"$f":"'[2]5.2 Asset Age Profile'!CQ20","v":0},{"$f":"'[2]5.2 Asset Age Profile'!CR20","v":2},{"$f":"'[2]5.2 Asset Age Profile'!CS20","v":0},{"$f":"'[2]5.2 Asset Age Profile'!CT20","v":0},{"$f":"'[2]5.2 Asset Age Profile'!CU20","v":1},{"$f":"'[2]5.2 Asset Age Profile'!CV20","v":0},{"$f":"'[2]5.2 Asset Age Profile'!CW20","v":10},{"$f":"'[2]5.2 Asset Age Profile'!CX20","v":1},{"$f":"'[2]5.2 Asset Age Profile'!CY20","v":0},{"$f":"'[2]5.2 Asset Age Profile'!CZ20","v":0},{"$f":"'[2]5.2 Asset Age Profile'!DA20","v":0},{"$f":"'[2]5.2 Asset Age Profile'!DB20","v":0},{"$f":"'[2]5.2 Asset Age Profile'!DC20","v":0},{"$f":"'[2]5.2 Asset Age Profile'!DD20","v":0},{"$f":"'[2]5.2 Asset Age Profile'!DE20","v":0},{"$f":"'[2]5.2 Asset Age Profile'!DF20","v":0},{"$f":"'[2]5.2 Asset Age Profile'!DG20","v":31},{"$f":"'[2]5.2 Asset Age Profile'!DH20","v":0},{"$f":"'[2]5.2 Asset Age Profile'!DI20","v":0},{"$f":"'[2]5.2 Asset Age Profile'!DJ20","v":0},{"$f":"'[2]5.2 Asset Age Profile'!DK20","v":0},{"$f":"'[2]5.2 Asset Age Profile'!DL20","v":0},{"$f":"'[2]5.2 Asset Age Profile'!DM20","v":0},{"$f":"'[2]5.2 Asset Age Profile'!DN20","v":0},{"$f":"'[2]5.2 Asset Age Profile'!DO20","v":0},{"$f":"'[2]5.2 Asset Age Profile'!DP20","v":1},{"$f":"'[2]5.2 Asset Age Profile'!DQ20","v":0},{"$f":"'[2]5.2 Asset Age Profile'!DR20","v":0},{"$f":"'[2]5.2 Asset Age Profile'!DS20","v":0},{"$f":"'[2]5.2 Asset Age Profile'!DT20","v":0},{"$f":"'[2]5.2 Asset Age Profile'!DU20","v":0},{"$f":"'[2]5.2 Asset Age Profile'!DV20","v":0},{"$f":"'[2]5.2 Asset Age Profile'!DW20","v":0},{"$f":"'[2]5.2 Asset Age Profile'!DX20","v":0},{"$f":"'[2]5.2 Asset Age Profile'!DY20","v":0},{"$f":"'[2]5.2 Asset Age Profile'!DZ20","v":0},{"$f":"'[2]5.2 Asset Age Profile'!EA20","v":0},{"$f":"'[2]5.2 Asset Age Profile'!EB20","v":0},{"$f":"'[2]5.2 Asset Age Profile'!EC20","v":0},{"$f":"'[2]5.2 Asset Age Profile'!ED20","v":0},{"$f":"'[2]5.2 Asset Age Profile'!EE20","v":0},{"$f":"'[2]5.2 Asset Age Profile'!EF20","v":0},{"$f":"'[2]5.2 Asset Age Profile'!EG20","v":0},{"$f":"'[2]5.2 Asset Age Profile'!EH20","v":0},{"$f":"'[2]5.2 Asset Age Profile'!EI20","v":0},{"$f":"'[2]5.2 Asset Age Profile'!EJ20","v":1}]
["ED_ASS521_00011",null,"> 22 kV & < = 66 kV; Concrete",null,null,null,null,null,null,null,null,null,null,{"$f":"'[2]5.2 Asset Age Profile'!N21","v":54.9},{"$f":"'[2]5.2 Asset Age Profile'!O21","v":0},{"$f":"'[2]5.2 Asset Age Profile'!P21","v":0},{"$f":"'[2]5.2 Asset Age Profile'!Q21","v":0},{"$f":"'[2]5.2 Asset Age Profile'!R21","v":0},{"$f":"'[2]5.2 Asset Age Profile'!S21","v":0},{"$f":"'[2]5.2 Asset Age Profile'!T21","v":0},{"$f":"'[2]5.2 Asset Age Profile'!U21","v":0},{"$f":"'[2]5.2 Asset Age Profile'!V21","v":0},{"$f":"'[2]5.2 Asset Age Profile'!W21","v":0},{"$f":"'[2]5.2 Asset Age Profile'!X21","v":0},{"$f":"'[2]5.2 Asset Age Profile'!Y21","v":7.4094534211370817},{"$f":"'[2]5.2 Asset Age Profile'!Z21","v":0},{"$f":"'[2]5.2 Asset Age Profile'!AA21","v":0},{"$f":"'[2]5.2 Asset Age Profile'!AB21","v":0},{"$f":"'[2]5.2 Asset Age Profile'!AC21","v":0},{"$f":"'[2]5.2 Asset Age Profile'!AD21","v":0},{"$f":"'[2]5.2 Asset Age Profile'!AE21","v":0},{"$f":"'[2]5.2 Asset Age Profile'!AF21","v":0},{"$f":"'[2]5.2 Asset Age Profile'!AG21","v":0},{"$f":"'[2]5.2 Asset Age Profile'!AH21","v":0},{"$f":"'[2]5.2 Asset Age Profile'!AI21","v":0},{"$f":"'[2]5.2 Asset Age Profile'!AJ21","v":18},{"$f":"'[2]5.2 Asset Age Profile'!AK21","v":324},{"$f":"'[2]5.2 Asset Age Profile'!AL21","v":539},{"$f":"'[2]5.2 Asset Age Profile'!AM21","v":384},{"$f":"'[2]5.2 Asset Age Profile'!AN21","v":285},{"$f":"'[2]5.2 Asset Age Profile'!AO21","v":525},{"$f":"'[2]5.2 Asset Age Profile'!AP21","v":439},{"$f":"'[2]5.2 Asset Age Profile'!AQ21","v":207},{"$f":"'[2]5.2 Asset Age Profile'!AR21","v":359},{"$f":"'[2]5.2 Asset Age Profile'!AS21","v":396},{"$f":"'[2]5.2 Asset Age Profile'!AT21","v":764},{"$f":"'[2]5.2 Asset Age Profile'!AU21","v":240},{"$f":"'[2]5.2 Asset Age Profile'!AV21","v":187},{"$f":"'[2]5.2 Asset Age Profile'!AW21","v":274},{"$f":"'[2]5.2 Asset Age Profile'!AX21","v":421},{"$f":"'[2]5.2 Asset Age Profile'!AY21","v":621},{"$f":"'[2]5.2 Asset Age Profile'!AZ21","v":165},{"$f":"'[2]5.2 Asset Age Profile'!BA21","v":208},{"$f":"'[2]5.2 Asset Age Profile'!BB21","v":136},{"$f":"'[2]5.2 Asset Age Profile'!BC21","v":157},{"$f":"'[2]5.2 Asset Age Profile'!BD21","v":749},{"$f":"'[2]5.2 Asset Age Profile'!BE21","v":1335},{"$f":"'[2]5.2 Asset Age Profile'!BF21","v":1115},{"$f":"'[2]5.2 Asset Age Profile'!BG21","v":519},{"$f":"'[2]5.2 Asset Age Profile'!BH21","v":590},{"$f":"'[2]5.2 Asset Age Profile'!BI21","v":344},{"$f":"'[2]5.2 Asset Age Profile'!BJ21","v":400},{"$f":"'[2]5.2 Asset Age Profile'!BK21","v":1679},{"$f":"'[2]5.2 Asset Age Profile'!BL21","v":723},{"$f":"'[2]5.2 Asset Age Profile'!BM21","v":681},{"$f":"'[2]5.2 Asset Age Profile'!BN21","v":580},{"$f":"'[2]5.2 Asset Age Profile'!BO21","v":450},{"$f":"'[2]5.2 Asset Age Profile'!BP21","v":89},{"$f":"'[2]5.2 Asset Age Profile'!BQ21","v":1045},{"$f":"'[2]5.2 Asset Age Profile'!BR21","v":131},{"$f":"'[2]5.2 Asset Age Profile'!BS21","v":8},{"$f":"'[2]5.2 Asset Age Profile'!BT21","v":2},{"$f":"'[2]5.2 Asset Age Profile'!BU21","v":4},{"$f":"'[2]5.2 Asset Age Profile'!BV21","v":1},{"$f":"'[2]5.2 Asset Age Profile'!BW21","v":10},{"$f":"'[2]5.2 Asset Age Profile'!BX21","v":0},{"$f":"'[2]5.2 Asset Age Profile'!BY21","v":2},{"$f":"'[2]5.2 Asset Age Profile'!BZ21","v":3},{"$f":"'[2]5.2 Asset Age Profile'!CA21","v":2},{"$f":"'[2]5.2 Asset Age Profile'!CB21","v":2},{"$f":"'[2]5.2 Asset Age Profile'!CC21","v":1},{"$f":"'[2]5.2 Asset Age Profile'!CD21","v":1},{"$f":"'[2]5.2 Asset Age Profile'!CE21","v":4},{"$f":"'[2]5.2 Asset Age Profile'!CF21","v":17},{"$f":"'[2]5.2 Asset Age Profile'!CG21","v":12},{"$f":"'[2]5.2 Asset Age Profile'!CH21","v":3},{"$f":"'[2]5.2 Asset Age Profile'!CI21","v":0},{"$f":"'[2]5.2 Asset Age Profile'!CJ21","v":1},{"$f":"'[2]5.2 Asset Age Profile'!CK21","v":1},{"$f":"'[2]5.2 Asset Age Profile'!CL21","v":1},{"$f":"'[2]5.2 Asset Age Profile'!CM21","v":1},{"$f":"'[2]5.2 Asset Age Profile'!CN21","v":0},{"$f":"'[2]5.2 Asset Age Profile'!CO21","v":0},{"$f":"'[2]5.2 Asset Age Profile'!CP21","v":0},{"$f":"'[2]5.2 Asset Age Profile'!CQ21","v":2},{"$f":"'[2]5.2 Asset Age Profile'!CR21","v":0},{"$f":"'[2]5.2 Asset Age Profile'!CS21","v":0},{"$f":"'[2]5.2 Asset Age Profile'!CT21","v":0},{"$f":"'[2]5.2 Asset Age Profile'!CU21","v":0},{"$f":"'[2]5.2 Asset Age Profile'!CV21","v":0},{"$f":"'[2]5.2 Asset Age Profile'!CW21","v":1},{"$f":"'[2]5.2 Asset Age Profile'!CX21","v":0},{"$f":"'[2]5.2 Asset Age Profile'!CY21","v":0},{"$f":"'[2]5.2 Asset Age Profile'!CZ21","v":0},{"$f":"'[2]5.2 Asset Age Profile'!DA21","v":0},{"$f":"'[2]5.2 Asset Age Profile'!DB21","v":0},{"$f":"'[2]5.2 Asset Age Profile'!DC21","v":0},{"$f":"'[2]5.2 Asset Age Profile'!DD21","v":0},{"$f":"'[2]5.2 Asset Age Profile'!DE21","v":0},{"$f":"'[2]5.2 Asset Age Profile'!DF21","v":0},{"$f":"'[2]5.2 Asset Age Profile'!DG21","v":5},{"$f":"'[2]5.2 Asset Age Profile'!DH21","v":0},{"$f":"'[2]5.2 Asset Age Profile'!DI21","v":0},{"$f":"'[2]5.2 Asset Age Profile'!DJ21","v":0},{"$f":"'[2]5.2 Asset Age Profile'!DK21","v":0},{"$f":"'[2]5.2 Asset Age Profile'!DL21","v":0},{"$f":"'[2]5.2 Asset Age Profile'!DM21","v":0},{"$f":"'[2]5.2 Asset Age Profile'!DN21","v":0},{"$f":"'[2]5.2 Asset Age Profile'!DO21","v":0},{"$f":"'[2]5.2 Asset Age Profile'!DP21","v":0},{"$f":"'[2]5.2 Asset Age Profile'!DQ21","v":0},{"$f":"'[2]5.2 Asset Age Profile'!DR21","v":0},{"$f":"'[2]5.2 Asset Age Profile'!DS21","v":0},{"$f":"'[2]5.2 Asset Age Profile'!DT21","v":0},{"$f":"'[2]5.2 Asset Age Profile'!DU21","v":0},{"$f":"'[2]5.2 Asset Age Profile'!DV21","v":0},{"$f":"'[2]5.2 Asset Age Profile'!DW21","v":0},{"$f":"'[2]5.2 Asset Age Profile'!DX21","v":0},{"$f":"'[2]5.2 Asset Age Profile'!DY21","v":0},{"$f":"'[2]5.2 Asset Age Profile'!DZ21","v":0},{"$f":"'[2]5.2 Asset Age Profile'!EA21","v":0},{"$f":"'[2]5.2 Asset Age Profile'!EB21","v":0},{"$f":"'[2]5.2 Asset Age Profile'!EC21","v":0},{"$f":"'[2]5.2 Asset Age Profile'!ED21","v":0},{"$f":"'[2]5.2 Asset Age Profile'!EE21","v":0},{"$f":"'[2]5.2 Asset Age Profile'!EF21","v":0},{"$f":"'[2]5.2 Asset Age Profile'!EG21","v":0},{"$f":"'[2]5.2 Asset Age Profile'!EH21","v":0},{"$f":"'[2]5.2 Asset Age Profile'!EI21","v":0},{"$f":"'[2]5.2 Asset Age Profile'!EJ21","v":0}]
["ED_ASS521_00012",null,"> 66 kV & < = 132 kV; Concrete",null,null,null,null,null,null,null,null,null,null,{"$f":"'[2]5.2 Asset Age Profile'!N22","v":54.9},{"$f":"'[2]5.2 Asset Age Profile'!O22","v":0},{"$f":"'[2]5.2 Asset Age Profile'!P22","v":0},{"$f":"'[2]5.2 Asset Age Profile'!Q22","v":0},{"$f":"'[2]5.2 Asset Age Profile'!R22","v":0},{"$f":"'[2]5.2 Asset Age Profile'!S22","v":0},{"$f":"'[2]5.2 Asset Age Profile'!T22","v":0},{"$f":"'[2]5.2 Asset Age Profile'!U22","v":0},{"$f":"'[2]5.2 Asset Age Profile'!V22","v":0},{"$f":"'[2]5.2 Asset Age Profile'!W22","v":0},{"$f":"'[2]5.2 Asset Age Profile'!X22","v":0},{"$f":"'[2]5.2 Asset Age Profile'!Y22","v":7.4094534211370817},{"$f":"'[2]5.2 Asset Age Profile'!Z22","v":0},{"$f":"'[2]5.2 Asset Age Profile'!AA22","v":0},{"$f":"'[2]5.2 Asset Age Profile'!AB22","v":0},{"$f":"'[2]5.2 Asset Age Profile'!AC22","v":0},{"$f":"'[2]5.2 Asset Age Profile'!AD22","v":0},{"$f":"'[2]5.2 Asset Age Profile'!AE22","v":0},{"$f":"'[2]5.2 Asset Age Profile'!AF22","v":0},{"$f":"'[2]5.2 Asset Age Profile'!AG22","v":0},{"$f":"'[2]5.2 Asset Age Profile'!AH22","v":0},{"$f":"'[2]5.2 Asset Age Profile'!AI22","v":0},{"$f":"'[2]5.2 Asset Age Profile'!AJ22","v":0},{"$f":"'[2]5.2 Asset Age Profile'!AK22","v":183},{"$f":"'[2]5.2 Asset Age Profile'!AL22","v":23},{"$f":"'[2]5.2 Asset Age Profile'!AM22","v":254},{"$f":"'[2]5.2 Asset Age Profile'!AN22","v":95},{"$f":"'[2]5.2 Asset Age Profile'!AO22","v":42},{"$f":"'[2]5.2 Asset Age Profile'!AP22","v":31},{"$f":"'[2]5.2 Asset Age Profile'!AQ22","v":15},{"$f":"'[2]5.2 Asset Age Profile'!AR22","v":75},{"$f":"'[2]5.2 Asset Age Profile'!AS22","v":42},{"$f":"'[2]5.2 Asset Age Profile'!AT22","v":199},{"$f":"'[2]5.2 Asset Age Profile'!AU22","v":336},{"$f":"'[2]5.2 Asset Age Profile'!AV22","v":4},{"$f":"'[2]5.2 Asset Age Profile'!AW22","v":8},{"$f":"'[2]5.2 Asset Age Profile'!AX22","v":12},{"$f":"'[2]5.2 Asset Age Profile'!AY22","v":9},{"$f":"'[2]5.2 Asset Age Profile'!AZ22","v":0},{"$f":"'[2]5.2 Asset Age Profile'!BA22","v":158},{"$f":"'[2]5.2 Asset Age Profile'!BB22","v":194},{"$f":"'[2]5.2 Asset Age Profile'!BC22","v":25},{"$f":"'[2]5.2 Asset Age Profile'!BD22","v":10},{"$f":"'[2]5.2 Asset Age Profile'!BE22","v":93},{"$f":"'[2]5.2 Asset Age Profile'!BF22","v":191},{"$f":"'[2]5.2 Asset Age Profile'!BG22","v":99},{"$f":"'[2]5.2 Asset Age Profile'!BH22","v":1263},{"$f":"'[2]5.2 Asset Age Profile'!BI22","v":52},{"$f":"'[2]5.2 Asset Age Profile'!BJ22","v":89},{"$f":"'[2]5.2 Asset Age Profile'!BK22","v":166},{"$f":"'[2]5.2 Asset Age Profile'!BL22","v":322},{"$f":"'[2]5.2 Asset Age Profile'!BM22","v":404},{"$f":"'[2]5.2 Asset Age Profile'!BN22","v":69},{"$f":"'[2]5.2 Asset Age Profile'!BO22","v":1},{"$f":"'[2]5.2 Asset Age Profile'!BP22","v":0},{"$f":"'[2]5.2 Asset Age Profile'!BQ22","v":143},{"$f":"'[2]5.2 Asset Age Profile'!BR22","v":0},{"$f":"'[2]5.2 Asset Age Profile'!BS22","v":0},{"$f":"'[2]5.2 Asset Age Profile'!BT22","v":0},{"$f":"'[2]5.2 Asset Age Profile'!BU22","v":0},{"$f":"'[2]5.2 Asset Age Profile'!BV22","v":0},{"$f":"'[2]5.2 Asset Age Profile'!BW22","v":0},{"$f":"'[2]5.2 Asset Age Profile'!BX22","v":0},{"$f":"'[2]5.2 Asset Age Profile'!BY22","v":0},{"$f":"'[2]5.2 Asset Age Profile'!BZ22","v":2},{"$f":"'[2]5.2 Asset Age Profile'!CA22","v":0},{"$f":"'[2]5.2 Asset Age Profile'!CB22","v":0},{"$f":"'[2]5.2 Asset Age Profile'!CC22","v":0},{"$f":"'[2]5.2 Asset Age Profile'!CD22","v":0},{"$f":"'[2]5.2 Asset Age Profile'!CE22","v":0},{"$f":"'[2]5.2 Asset Age Profile'!CF22","v":0},{"$f":"'[2]5.2 Asset Age Profile'!CG22","v":0},{"$f":"'[2]5.2 Asset Age Profile'!CH22","v":2},{"$f":"'[2]5.2 Asset Age Profile'!CI22","v":3},{"$f":"'[2]5.2 Asset Age Profile'!CJ22","v":0},{"$f":"'[2]5.2 Asset Age Profile'!CK22","v":0},{"$f":"'[2]5.2 Asset Age Profile'!CL22","v":0},{"$f":"'[2]5.2 Asset Age Profile'!CM22","v":0},{"$f":"'[2]5.2 Asset Age Profile'!CN22","v":0},{"$f":"'[2]5.2 Asset Age Profile'!CO22","v":0},{"$f":"'[2]5.2 Asset Age Profile'!CP22","v":0},{"$f":"'[2]5.2 Asset Age Profile'!CQ22","v":0},{"$f":"'[2]5.2 Asset Age Profile'!CR22","v":0},{"$f":"'[2]5.2 Asset Age Profile'!CS22","v":0},{"$f":"'[2]5.2 Asset Age Profile'!CT22","v":0},{"$f":"'[2]5.2 Asset Age Profile'!CU22","v":0},{"$f":"'[2]5.2 Asset Age Profile'!CV22","v":0},{"$f":"'[2]5.2 Asset Age Profile'!CW22","v":0},{"$f":"'[2]5.2 Asset Age Profile'!CX22","v":0},{"$f":"'[2]5.2 Asset Age Profile'!CY22","v":0},{"$f":"'[2]5.2 Asset Age Profile'!CZ22","v":0},{"$f":"'[2]5.2 Asset Age Profile'!DA22","v":0},{"$f":"'[2]5.2 Asset Age Profile'!DB22","v":0},{"$f":"'[2]5.2 Asset Age Profile'!DC22","v":0},{"$f":"'[2]5.2 Asset Age Profile'!DD22","v":0},{"$f":"'[2]5.2 Asset Age Profile'!DE22","v":0},{"$f":"'[2]5.2 Asset Age Profile'!DF22","v":0},{"$f":"'[2]5.2 Asset Age Profile'!DG22","v":0},{"$f":"'[2]5.2 Asset Age Profile'!DH22","v":0},{"$f":"'[2]5.2 Asset Age Profile'!DI22","v":0},{"$f":"'[2]5.2 Asset Age Profile'!DJ22","v":0},{"$f":"'[2]5.2 Asset Age Profile'!DK22","v":0},{"$f":"'[2]5.2 Asset Age Profile'!DL22","v":0},{"$f":"'[2]5.2 Asset Age Profile'!DM22","v":0},{"$f":"'[2]5.2 Asset Age Profile'!DN22","v":0},{"$f":"'[2]5.2 Asset Age Profile'!DO22","v":0},{"$f":"'[2]5.2 Asset Age Profile'!DP22","v":0},{"$f":"'[2]5.2 Asset Age Profile'!DQ22","v":0},{"$f":"'[2]5.2 Asset Age Profile'!DR22","v":0},{"$f":"'[2]5.2 Asset Age Profile'!DS22","v":0},{"$f":"'[2]5.2 Asset Age Profile'!DT22","v":0},{"$f":"'[2]5.2 Asset Age Profile'!DU22","v":0},{"$f":"'[2]5.2 Asset Age Profile'!DV22","v":0},{"$f":"'[2]5.2 Asset Age Profile'!DW22","v":0},{"$f":"'[2]5.2 Asset Age Profile'!DX22","v":0},{"$f":"'[2]5.2 Asset Age Profile'!DY22","v":0},{"$f":"'[2]5.2 Asset Age Profile'!DZ22","v":0},{"$f":"'[2]5.2 Asset Age Profile'!EA22","v":0},{"$f":"'[2]5.2 Asset Age Profile'!EB22","v":0},{"$f":"'[2]5.2 Asset Age Profile'!EC22","v":0},{"$f":"'[2]5.2 Asset Age Profile'!ED22","v":0},{"$f":"'[2]5.2 Asset Age Profile'!EE22","v":0},{"$f":"'[2]5.2 Asset Age Profile'!EF22","v":0},{"$f":"'[2]5.2 Asset Age Profile'!EG22","v":0},{"$f":"'[2]5.2 Asset Age Profile'!EH22","v":0},{"$f":"'[2]5.2 Asset Age Profile'!EI22","v":0},{"$f":"'[2]5.2 Asset Age Profile'!EJ22","v":0}]
["ED_ASS521_00013",null,"> 132 kV; Concrete",null,null,null,null,null,null,null,null,null,null,{"$f":"'[2]5.2 Asset Age Profile'!N23","v":0},{"$f":"'[2]5.2 Asset Age Profile'!O23","v":0},{"$f":"'[2]5.2 Asset Age Profile'!P23","v":0},{"$f":"'[2]5.2 Asset Age Profile'!Q23","v":0},{"$f":"'[2]5.2 Asset Age Profile'!R23","v":0},{"$f":"'[2]5.2 Asset Age Profile'!S23","v":0},{"$f":"'[2]5.2 Asset Age Profile'!T23","v":0},{"$f":"'[2]5.2 Asset Age Profile'!U23","v":0},{"$f":"'[2]5.2 Asset Age Profile'!V23","v":0},{"$f":"'[2]5.2 Asset Age Profile'!W23","v":0},{"$f":"'[2]5.2 Asset Age Profile'!X23","v":0},{"$f":"'[2]5.2 Asset Age Profile'!Y23","v":0},{"$f":"'[2]5.2 Asset Age Profile'!Z23","v":0},{"$f":"'[2]5.2 Asset Age Profile'!AA23","v":0},{"$f":"'[2]5.2 Asset Age Profile'!AB23","v":0},{"$f":"'[2]5.2 Asset Age Profile'!AC23","v":0},{"$f":"'[2]5.2 Asset Age Profile'!AD23","v":0},{"$f":"'[2]5.2 Asset Age Profile'!AE23","v":0},{"$f":"'[2]5.2 Asset Age Profile'!AF23","v":0},{"$f":"'[2]5.2 Asset Age Profile'!AG23","v":0},{"$f":"'[2]5.2 Asset Age Profile'!AH23","v":0},{"$f":"'[2]5.2 Asset Age Profile'!AI23","v":0},{"$f":"'[2]5.2 Asset Age Profile'!AJ23","v":0},{"$f":"'[2]5.2 Asset Age Profile'!AK23","v":0},{"$f":"'[2]5.2 Asset Age Profile'!AL23","v":0},{"$f":"'[2]5.2 Asset Age Profile'!AM23","v":0},{"$f":"'[2]5.2 Asset Age Profile'!AN23","v":0},{"$f":"'[2]5.2 Asset Age Profile'!AO23","v":0},{"$f":"'[2]5.2 Asset Age Profile'!AP23","v":0},{"$f":"'[2]5.2 Asset Age Profile'!AQ23","v":0},{"$f":"'[2]5.2 Asset Age Profile'!AR23","v":0},{"$f":"'[2]5.2 Asset Age Profile'!AS23","v":0},{"$f":"'[2]5.2 Asset Age Profile'!AT23","v":0},{"$f":"'[2]5.2 Asset Age Profile'!AU23","v":0},{"$f":"'[2]5.2 Asset Age Profile'!AV23","v":0},{"$f":"'[2]5.2 Asset Age Profile'!AW23","v":0},{"$f":"'[2]5.2 Asset Age Profile'!AX23","v":0},{"$f":"'[2]5.2 Asset Age Profile'!AY23","v":0},{"$f":"'[2]5.2 Asset Age Profile'!AZ23","v":0},{"$f":"'[2]5.2 Asset Age Profile'!BA23","v":0},{"$f":"'[2]5.2 Asset Age Profile'!BB23","v":0},{"$f":"'[2]5.2 Asset Age Profile'!BC23","v":0},{"$f":"'[2]5.2 Asset Age Profile'!BD23","v":0},{"$f":"'[2]5.2 Asset Age Profile'!BE23","v":0},{"$f":"'[2]5.2 Asset Age Profile'!BF23","v":0},{"$f":"'[2]5.2 Asset Age Profile'!BG23","v":0},{"$f":"'[2]5.2 Asset Age Profile'!BH23","v":0},{"$f":"'[2]5.2 Asset Age Profile'!BI23","v":0},{"$f":"'[2]5.2 Asset Age Profile'!BJ23","v":0},{"$f":"'[2]5.2 Asset Age Profile'!BK23","v":0},{"$f":"'[2]5.2 Asset Age Profile'!BL23","v":0},{"$f":"'[2]5.2 Asset Age Profile'!BM23","v":0},{"$f":"'[2]5.2 Asset Age Profile'!BN23","v":0},{"$f":"'[2]5.2 Asset Age Profile'!BO23","v":0},{"$f":"'[2]5.2 Asset Age Profile'!BP23","v":0},{"$f":"'[2]5.2 Asset Age Profile'!BQ23","v":0},{"$f":"'[2]5.2 Asset Age Profile'!BR23","v":0},{"$f":"'[2]5.2 Asset Age Profile'!BS23","v":0},{"$f":"'[2]5.2 Asset Age Profile'!BT23","v":0},{"$f":"'[2]5.2 Asset Age Profile'!BU23","v":0},{"$f":"'[2]5.2 Asset Age Profile'!BV23","v":0},{"$f":"'[2]5.2 Asset Age Profile'!BW23","v":0},{"$f":"'[2]5.2 Asset Age Profile'!BX23","v":0},{"$f":"'[2]5.2 Asset Age Profile'!BY23","v":0},{"$f":"'[2]5.2 Asset Age Profile'!BZ23","v":0},{"$f":"'[2]5.2 Asset Age Profile'!CA23","v":0},{"$f":"'[2]5.2 Asset Age Profile'!CB23","v":0},{"$f":"'[2]5.2 Asset Age Profile'!CC23","v":0},{"$f":"'[2]5.2 Asset Age Profile'!CD23","v":0},{"$f":"'[2]5.2 Asset Age Profile'!CE23","v":0},{"$f":"'[2]5.2 Asset Age Profile'!CF23","v":0},{"$f":"'[2]5.2 Asset Age Profile'!CG23","v":0},{"$f":"'[2]5.2 Asset Age Profile'!CH23","v":0},{"$f":"'[2]5.2 Asset Age Profile'!CI23","v":0},{"$f":"'[2]5.2 Asset Age Profile'!CJ23","v":0},{"$f":"'[2]5.2 Asset Age Profile'!CK23","v":0},{"$f":"'[2]5.2 Asset Age Profile'!CL23","v":0},{"$f":"'[2]5.2 Asset Age Profile'!CM23","v":0},{"$f":"'[2]5.2 Asset Age Profile'!CN23","v":0},{"$f":"'[2]5.2 Asset Age Profile'!CO23","v":0},{"$f":"'[2]5.2 Asset Age Profile'!CP23","v":0},{"$f":"'[2]5.2 Asset Age Profile'!CQ23","v":0},{"$f":"'[2]5.2 Asset Age Profile'!CR23","v":0},{"$f":"'[2]5.2 Asset Age Profile'!CS23","v":0},{"$f":"'[2]5.2 Asset Age Profile'!CT23","v":0},{"$f":"'[2]5.2 Asset Age Profile'!CU23","v":0},{"$f":"'[2]5.2 Asset Age Profile'!CV23","v":0},{"$f":"'[2]5.2 Asset Age Profile'!CW23","v":0},{"$f":"'[2]5.2 Asset Age Profile'!CX23","v":0},{"$f":"'[2]5.2 Asset Age Profile'!CY23","v":0},{"$f":"'[2]5.2 Asset Age Profile'!CZ23","v":0},{"$f":"'[2]5.2 Asset Age Profile'!DA23","v":0},{"$f":"'[2]5.2 Asset Age Profile'!DB23","v":0},{"$f":"'[2]5.2 Asset Age Profile'!DC23","v":0},{"$f":"'[2]5.2 Asset Age Profile'!DD23","v":0},{"$f":"'[2]5.2 Asset Age Profile'!DE23","v":0},{"$f":"'[2]5.2 Asset Age Profile'!DF23","v":0},{"$f":"'[2]5.2 Asset Age Profile'!DG23","v":0},{"$f":"'[2]5.2 Asset Age Profile'!DH23","v":0},{"$f":"'[2]5.2 Asset Age Profile'!DI23","v":0},{"$f":"'[2]5.2 Asset Age Profile'!DJ23","v":0},{"$f":"'[2]5.2 Asset Age Profile'!DK23","v":0},{"$f":"'[2]5.2 Asset Age Profile'!DL23","v":0},{"$f":"'[2]5.2 Asset Age Profile'!DM23","v":0},{"$f":"'[2]5.2 Asset Age Profile'!DN23","v":0},{"$f":"'[2]5.2 Asset Age Profile'!DO23","v":0},{"$f":"'[2]5.2 Asset Age Profile'!DP23","v":0},{"$f":"'[2]5.2 Asset Age Profile'!DQ23","v":0},{"$f":"'[2]5.2 Asset Age Profile'!DR23","v":0},{"$f":"'[2]5.2 Asset Age Profile'!DS23","v":0},{"$f":"'[2]5.2 Asset Age Profile'!DT23","v":0},{"$f":"'[2]5.2 Asset Age Profile'!DU23","v":0},{"$f":"'[2]5.2 Asset Age Profile'!DV23","v":0},{"$f":"'[2]5.2 Asset Age Profile'!DW23","v":0},{"$f":"'[2]5.2 Asset Age Profile'!DX23","v":0},{"$f":"'[2]5.2 Asset Age Profile'!DY23","v":0},{"$f":"'[2]5.2 Asset Age Profile'!DZ23","v":0},{"$f":"'[2]5.2 Asset Age Profile'!EA23","v":0},{"$f":"'[2]5.2 Asset Age Profile'!EB23","v":0},{"$f":"'[2]5.2 Asset Age Profile'!EC23","v":0},{"$f":"'[2]5.2 Asset Age Profile'!ED23","v":0},{"$f":"'[2]5.2 Asset Age Profile'!EE23","v":0},{"$f":"'[2]5.2 Asset Age Profile'!EF23","v":0},{"$f":"'[2]5.2 Asset Age Profile'!EG23","v":0},{"$f":"'[2]5.2 Asset Age Profile'!EH23","v":0},{"$f":"'[2]5.2 Asset Age Profile'!EI23","v":0},{"$f":"'[2]5.2 Asset Age Profile'!EJ23","v":0}]
["ED_ASS521_00014",null,"˂ = 1 kV; Steel",null,null,null,null,null,null,null,null,null,null,{"$f":"'[2]5.2 Asset Age Profile'!N24","v":53.8},{"$f":"'[2]5.2 Asset Age Profile'!O24","v":0},{"$f":"'[2]5.2 Asset Age Profile'!P24","v":0},{"$f":"'[2]5.2 Asset Age Profile'!Q24","v":0},{"$f":"'[2]5.2 Asset Age Profile'!R24","v":0},{"$f":"'[2]5.2 Asset Age Profile'!S24","v":0},{"$f":"'[2]5.2 Asset Age Profile'!T24","v":0},{"$f":"'[2]5.2 Asset Age Profile'!U24","v":0},{"$f":"'[2]5.2 Asset Age Profile'!V24","v":0},{"$f":"'[2]5.2 Asset Age Profile'!W24","v":0},{"$f":"'[2]5.2 Asset Age Profile'!X24","v":0},{"$f":"'[2]5.2 Asset Age Profile'!Y24","v":7.334848328356899},{"$f":"'[2]5.2 Asset Age Profile'!Z24","v":0},{"$f":"'[2]5.2 Asset Age Profile'!AA24","v":0},{"$f":"'[2]5.2 Asset Age Profile'!AB24","v":0},{"$f":"'[2]5.2 Asset Age Profile'!AC24","v":0},{"$f":"'[2]5.2 Asset Age Profile'!AD24","v":0},{"$f":"'[2]5.2 Asset Age Profile'!AE24","v":0},{"$f":"'[2]5.2 Asset Age Profile'!AF24","v":0},{"$f":"'[2]5.2 Asset Age Profile'!AG24","v":0},{"$f":"'[2]5.2 Asset Age Profile'!AH24","v":0},{"$f":"'[2]5.2 Asset Age Profile'!AI24","v":0},{"$f":"'[2]5.2 Asset Age Profile'!AJ24","v":924},{"$f":"'[2]5.2 Asset Age Profile'!AK24","v":625},{"$f":"'[2]5.2 Asset Age Profile'!AL24","v":243},{"$f":"'[2]5.2 Asset Age Profile'!AM24","v":503},{"$f":"'[2]5.2 Asset Age Profile'!AN24","v":285},{"$f":"'[2]5.2 Asset Age Profile'!AO24","v":395},{"$f":"'[2]5.2 Asset Age Profile'!AP24","v":483},{"$f":"'[2]5.2 Asset Age Profile'!AQ24","v":383},{"$f":"'[2]5.2 Asset Age Profile'!AR24","v":143},{"$f":"'[2]5.2 Asset Age Profile'!AS24","v":342},{"$f":"'[2]5.2 Asset Age Profile'!AT24","v":276},{"$f":"'[2]5.2 Asset Age Profile'!AU24","v":181},{"$f":"'[2]5.2 Asset Age Profile'!AV24","v":285},{"$f":"'[2]5.2 Asset Age Profile'!AW24","v":164},{"$f":"'[2]5.2 Asset Age Profile'!AX24","v":502},{"$f":"'[2]5.2 Asset Age Profile'!AY24","v":883},{"$f":"'[2]5.2 Asset Age Profile'!AZ24","v":326},{"$f":"'[2]5.2 Asset Age Profile'!BA24","v":87},{"$f":"'[2]5.2 Asset Age Profile'!BB24","v":49},{"$f":"'[2]5.2 Asset Age Profile'!BC24","v":170},{"$f":"'[2]5.2 Asset Age Profile'!BD24","v":243},{"$f":"'[2]5.2 Asset Age Profile'!BE24","v":78},{"$f":"'[2]5.2 Asset Age Profile'!BF24","v":126},{"$f":"'[2]5.2 Asset Age Profile'!BG24","v":86},{"$f":"'[2]5.2 Asset Age Profile'!BH24","v":425},{"$f":"'[2]5.2 Asset Age Profile'!BI24","v":437},{"$f":"'[2]5.2 Asset Age Profile'!BJ24","v":77},{"$f":"'[2]5.2 Asset Age Profile'!BK24","v":52},{"$f":"'[2]5.2 Asset Age Profile'!BL24","v":31},{"$f":"'[2]5.2 Asset Age Profile'!BM24","v":76},{"$f":"'[2]5.2 Asset Age Profile'!BN24","v":60},{"$f":"'[2]5.2 Asset Age Profile'!BO24","v":45},{"$f":"'[2]5.2 Asset Age Profile'!BP24","v":20},{"$f":"'[2]5.2 Asset Age Profile'!BQ24","v":33},{"$f":"'[2]5.2 Asset Age Profile'!BR24","v":378},{"$f":"'[2]5.2 Asset Age Profile'!BS24","v":756},{"$f":"'[2]5.2 Asset Age Profile'!BT24","v":13},{"$f":"'[2]5.2 Asset Age Profile'!BU24","v":33},{"$f":"'[2]5.2 Asset Age Profile'!BV24","v":104},{"$f":"'[2]5.2 Asset Age Profile'!BW24","v":15},{"$f":"'[2]5.2 Asset Age Profile'!BX24","v":100},{"$f":"'[2]5.2 Asset Age Profile'!BY24","v":25},{"$f":"'[2]5.2 Asset Age Profile'!BZ24","v":22},{"$f":"'[2]5.2 Asset Age Profile'!CA24","v":23},{"$f":"'[2]5.2 Asset Age Profile'!CB24","v":78},{"$f":"'[2]5.2 Asset Age Profile'!CC24","v":219},{"$f":"'[2]5.2 Asset Age Profile'!CD24","v":40},{"$f":"'[2]5.2 Asset Age Profile'!CE24","v":47},{"$f":"'[2]5.2 Asset Age Profile'!CF24","v":52},{"$f":"'[2]5.2 Asset Age Profile'!CG24","v":264},{"$f":"'[2]5.2 Asset Age Profile'!CH24","v":229},{"$f":"'[2]5.2 Asset Age Profile'!CI24","v":61},{"$f":"'[2]5.2 Asset Age Profile'!CJ24","v":20},{"$f":"'[2]5.2 Asset Age Profile'!CK24","v":8},{"$f":"'[2]5.2 Asset Age Profile'!CL24","v":62},{"$f":"'[2]5.2 Asset Age Profile'!CM24","v":201},{"$f":"'[2]5.2 Asset Age Profile'!CN24","v":8},{"$f":"'[2]5.2 Asset Age Profile'!CO24","v":18},{"$f":"'[2]5.2 Asset Age Profile'!CP24","v":36},{"$f":"'[2]5.2 Asset Age Profile'!CQ24","v":16},{"$f":"'[2]5.2 Asset Age Profile'!CR24","v":39},{"$f":"'[2]5.2 Asset Age Profile'!CS24","v":0},{"$f":"'[2]5.2 Asset Age Profile'!CT24","v":13},{"$f":"'[2]5.2 Asset Age Profile'!CU24","v":28},{"$f":"'[2]5.2 Asset Age Profile'!CV24","v":4},{"$f":"'[2]5.2 Asset Age Profile'!CW24","v":277},{"$f":"'[2]5.2 Asset Age Profile'!CX24","v":0},{"$f":"'[2]5.2 Asset Age Profile'!CY24","v":3},{"$f":"'[2]5.2 Asset Age Profile'!CZ24","v":12},{"$f":"'[2]5.2 Asset Age Profile'!DA24","v":6},{"$f":"'[2]5.2 Asset Age Profile'!DB24","v":0},{"$f":"'[2]5.2 Asset Age Profile'!DC24","v":0},{"$f":"'[2]5.2 Asset Age Profile'!DD24","v":0},{"$f":"'[2]5.2 Asset Age Profile'!DE24","v":0},{"$f":"'[2]5.2 Asset Age Profile'!DF24","v":1},{"$f":"'[2]5.2 Asset Age Profile'!DG24","v":314},{"$f":"'[2]5.2 Asset Age Profile'!DH24","v":3},{"$f":"'[2]5.2 Asset Age Profile'!DI24","v":0},{"$f":"'[2]5.2 Asset Age Profile'!DJ24","v":3},{"$f":"'[2]5.2 Asset Age Profile'!DK24","v":0},{"$f":"'[2]5.2 Asset Age Profile'!DL24","v":0},{"$f":"'[2]5.2 Asset Age Profile'!DM24","v":0},{"$f":"'[2]5.2 Asset Age Profile'!DN24","v":0},{"$f":"'[2]5.2 Asset Age Profile'!DO24","v":0},{"$f":"'[2]5.2 Asset Age Profile'!DP24","v":1},{"$f":"'[2]5.2 Asset Age Profile'!DQ24","v":1},{"$f":"'[2]5.2 Asset Age Profile'!DR24","v":0},{"$f":"'[2]5.2 Asset Age Profile'!DS24","v":0},{"$f":"'[2]5.2 Asset Age Profile'!DT24","v":0},{"$f":"'[2]5.2 Asset Age Profile'!DU24","v":0},{"$f":"'[2]5.2 Asset Age Profile'!DV24","v":1},{"$f":"'[2]5.2 Asset Age Profile'!DW24","v":0},{"$f":"'[2]5.2 Asset Age Profile'!DX24","v":0},{"$f":"'[2]5.2 Asset Age Profile'!DY24","v":0},{"$f":"'[2]5.2 Asset Age Profile'!DZ24","v":0},{"$f":"'[2]5.2 Asset Age Profile'!EA24","v":0},{"$f":"'[2]5.2 Asset Age Profile'!EB24","v":0},{"$f":"'[2]5.2 Asset Age Profile'!EC24","v":0},{"$f":"'[2]5.2 Asset Age Profile'!ED24","v":0},{"$f":"'[2]5.2 Asset Age Profile'!EE24","v":0},{"$f":"'[2]5.2 Asset Age Profile'!EF24","v":0},{"$f":"'[2]5.2 Asset Age Profile'!EG24","v":0},{"$f":"'[2]5.2 Asset Age Profile'!EH24","v":0},{"$f":"'[2]5.2 Asset Age Profile'!EI24","v":0},{"$f":"'[2]5.2 Asset Age Profile'!EJ24","v":0}]
["ED_ASS521_00015",null,"> 1 kV & < = 11 kV; Steel",null,null,null,null,null,null,null,null,null,null,{"$f":"'[2]5.2 Asset Age Profile'!N25","v":53.8},{"$f":"'[2]5.2 Asset Age Profile'!O25","v":0},{"$f":"'[2]5.2 Asset Age Profile'!P25","v":0},{"$f":"'[2]5.2 Asset Age Profile'!Q25","v":0},{"$f":"'[2]5.2 Asset Age Profile'!R25","v":0},{"$f":"'[2]5.2 Asset Age Profile'!S25","v":0},{"$f":"'[2]5.2 Asset Age Profile'!T25","v":0},{"$f":"'[2]5.2 Asset Age Profile'!U25","v":0},{"$f":"'[2]5.2 Asset Age Profile'!V25","v":0},{"$f":"'[2]5.2 Asset Age Profile'!W25","v":0},{"$f":"'[2]5.2 Asset Age Profile'!X25","v":0},{"$f":"'[2]5.2 Asset Age Profile'!Y25","v":7.334848328356899},{"$f":"'[2]5.2 Asset Age Profile'!Z25","v":0},{"$f":"'[2]5.2 Asset Age Profile'!AA25","v":0},{"$f":"'[2]5.2 Asset Age Profile'!AB25","v":0},{"$f":"'[2]5.2 Asset Age Profile'!AC25","v":0},{"$f":"'[2]5.2 Asset Age Profile'!AD25","v":0},{"$f":"'[2]5.2 Asset Age Profile'!AE25","v":0},{"$f":"'[2]5.2 Asset Age Profile'!AF25","v":0},{"$f":"'[2]5.2 Asset Age Profile'!AG25","v":0},{"$f":"'[2]5.2 Asset Age Profile'!AH25","v":0},{"$f":"'[2]5.2 Asset Age Profile'!AI25","v":0},{"$f":"'[2]5.2 Asset Age Profile'!AJ25","v":154},{"$f":"'[2]5.2 Asset Age Profile'!AK25","v":417},{"$f":"'[2]5.2 Asset Age Profile'!AL25","v":1217},{"$f":"'[2]5.2 Asset Age Profile'!AM25","v":1089},{"$f":"'[2]5.2 Asset Age Profile'!AN25","v":702},{"$f":"'[2]5.2 Asset Age Profile'!AO25","v":767},{"$f":"'[2]5.2 Asset Age Profile'!AP25","v":1114},{"$f":"'[2]5.2 Asset Age Profile'!AQ25","v":272},{"$f":"'[2]5.2 Asset Age Profile'!AR25","v":236},{"$f":"'[2]5.2 Asset Age Profile'!AS25","v":23},{"$f":"'[2]5.2 Asset Age Profile'!AT25","v":6},{"$f":"'[2]5.2 Asset Age Profile'!AU25","v":3},{"$f":"'[2]5.2 Asset Age Profile'!AV25","v":5},{"$f":"'[2]5.2 Asset Age Profile'!AW25","v":0},{"$f":"'[2]5.2 Asset Age Profile'!AX25","v":1},{"$f":"'[2]5.2 Asset Age Profile'!AY25","v":13},{"$f":"'[2]5.2 Asset Age Profile'!AZ25","v":0},{"$f":"'[2]5.2 Asset Age Profile'!BA25","v":4},{"$f":"'[2]5.2 Asset Age Profile'!BB25","v":3},{"$f":"'[2]5.2 Asset Age Profile'!BC25","v":0},{"$f":"'[2]5.2 Asset Age Profile'!BD25","v":1},{"$f":"'[2]5.2 Asset Age Profile'!BE25","v":2},{"$f":"'[2]5.2 Asset Age Profile'!BF25","v":0},{"$f":"'[2]5.2 Asset Age Profile'!BG25","v":1},{"$f":"'[2]5.2 Asset Age Profile'!BH25","v":1},{"$f":"'[2]5.2 Asset Age Profile'!BI25","v":0},{"$f":"'[2]5.2 Asset Age Profile'!BJ25","v":2},{"$f":"'[2]5.2 Asset Age Profile'!BK25","v":2},{"$f":"'[2]5.2 Asset Age Profile'!BL25","v":4},{"$f":"'[2]5.2 Asset Age Profile'!BM25","v":1},{"$f":"'[2]5.2 Asset Age Profile'!BN25","v":3},{"$f":"'[2]5.2 Asset Age Profile'!BO25","v":1},{"$f":"'[2]5.2 Asset Age Profile'!BP25","v":2},{"$f":"'[2]5.2 Asset Age Profile'!BQ25","v":1},{"$f":"'[2]5.2 Asset Age Profile'!BR25","v":1},{"$f":"'[2]5.2 Asset Age Profile'!BS25","v":0},{"$f":"'[2]5.2 Asset Age Profile'!BT25","v":0},{"$f":"'[2]5.2 Asset Age Profile'!BU25","v":19},{"$f":"'[2]5.2 Asset Age Profile'!BV25","v":7},{"$f":"'[2]5.2 Asset Age Profile'!BW25","v":3},{"$f":"'[2]5.2 Asset Age Profile'!BX25","v":2},{"$f":"'[2]5.2 Asset Age Profile'!BY25","v":1},{"$f":"'[2]5.2 Asset Age Profile'!BZ25","v":0},{"$f":"'[2]5.2 Asset Age Profile'!CA25","v":1},{"$f":"'[2]5.2 Asset Age Profile'!CB25","v":2},{"$f":"'[2]5.2 Asset Age Profile'!CC25","v":9},{"$f":"'[2]5.2 Asset Age Profile'!CD25","v":0},{"$f":"'[2]5.2 Asset Age Profile'!CE25","v":1},{"$f":"'[2]5.2 Asset Age Profile'!CF25","v":1},{"$f":"'[2]5.2 Asset Age Profile'!CG25","v":61},{"$f":"'[2]5.2 Asset Age Profile'!CH25","v":5},{"$f":"'[2]5.2 Asset Age Profile'!CI25","v":0},{"$f":"'[2]5.2 Asset Age Profile'!CJ25","v":0},{"$f":"'[2]5.2 Asset Age Profile'!CK25","v":19},{"$f":"'[2]5.2 Asset Age Profile'!CL25","v":7},{"$f":"'[2]5.2 Asset Age Profile'!CM25","v":6},{"$f":"'[2]5.2 Asset Age Profile'!CN25","v":0},{"$f":"'[2]5.2 Asset Age Profile'!CO25","v":9},{"$f":"'[2]5.2 Asset Age Profile'!CP25","v":0},{"$f":"'[2]5.2 Asset Age Profile'!CQ25","v":1},{"$f":"'[2]5.2 Asset Age Profile'!CR25","v":7},{"$f":"'[2]5.2 Asset Age Profile'!CS25","v":0},{"$f":"'[2]5.2 Asset Age Profile'!CT25","v":0},{"$f":"'[2]5.2 Asset Age Profile'!CU25","v":1},{"$f":"'[2]5.2 Asset Age Profile'!CV25","v":0},{"$f":"'[2]5.2 Asset Age Profile'!CW25","v":5},{"$f":"'[2]5.2 Asset Age Profile'!CX25","v":0},{"$f":"'[2]5.2 Asset Age Profile'!CY25","v":0},{"$f":"'[2]5.2 Asset Age Profile'!CZ25","v":0},{"$f":"'[2]5.2 Asset Age Profile'!DA25","v":0},{"$f":"'[2]5.2 Asset Age Profile'!DB25","v":0},{"$f":"'[2]5.2 Asset Age Profile'!DC25","v":0},{"$f":"'[2]5.2 Asset Age Profile'!DD25","v":0},{"$f":"'[2]5.2 Asset Age Profile'!DE25","v":0},{"$f":"'[2]5.2 Asset Age Profile'!DF25","v":0},{"$f":"'[2]5.2 Asset Age Profile'!DG25","v":0},{"$f":"'[2]5.2 Asset Age Profile'!DH25","v":0},{"$f":"'[2]5.2 Asset Age Profile'!DI25","v":0},{"$f":"'[2]5.2 Asset Age Profile'!DJ25","v":0},{"$f":"'[2]5.2 Asset Age Profile'!DK25","v":0},{"$f":"'[2]5.2 Asset Age Profile'!DL25","v":0},{"$f":"'[2]5.2 Asset Age Profile'!DM25","v":0},{"$f":"'[2]5.2 Asset Age Profile'!DN25","v":0},{"$f":"'[2]5.2 Asset Age Profile'!DO25","v":0},{"$f":"'[2]5.2 Asset Age Profile'!DP25","v":0},{"$f":"'[2]5.2 Asset Age Profile'!DQ25","v":0},{"$f":"'[2]5.2 Asset Age Profile'!DR25","v":0},{"$f":"'[2]5.2 Asset Age Profile'!DS25","v":0},{"$f":"'[2]5.2 Asset Age Profile'!DT25","v":0},{"$f":"'[2]5.2 Asset Age Profile'!DU25","v":0},{"$f":"'[2]5.2 Asset Age Profile'!DV25","v":0},{"$f":"'[2]5.2 Asset Age Profile'!DW25","v":0},{"$f":"'[2]5.2 Asset Age Profile'!DX25","v":0},{"$f":"'[2]5.2 Asset Age Profile'!DY25","v":0},{"$f":"'[2]5.2 Asset Age Profile'!DZ25","v":0},{"$f":"'[2]5.2 Asset Age Profile'!EA25","v":0},{"$f":"'[2]5.2 Asset Age Profile'!EB25","v":0},{"$f":"'[2]5.2 Asset Age Profile'!EC25","v":0},{"$f":"'[2]5.2 Asset Age Profile'!ED25","v":0},{"$f":"'[2]5.2 Asset Age Profile'!EE25","v":0},{"$f":"'[2]5.2 Asset Age Profile'!EF25","v":0},{"$f":"'[2]5.2 Asset Age Profile'!EG25","v":0},{"$f":"'[2]5.2 Asset Age Profile'!EH25","v":0},{"$f":"'[2]5.2 Asset Age Profile'!EI25","v":0},{"$f":"'[2]5.2 Asset Age Profile'!EJ25","v":0}]
["ED_ASS521_00016",null,"˃ 11 kV & < = 22 kV; Steel",null,null,null,null,null,null,null,null,null,null,{"$f":"'[2]5.2 Asset Age Profile'!N26","v":53.8},{"$f":"'[2]5.2 Asset Age Profile'!O26","v":0},{"$f":"'[2]5.2 Asset Age Profile'!P26","v":0},{"$f":"'[2]5.2 Asset Age Profile'!Q26","v":0},{"$f":"'[2]5.2 Asset Age Profile'!R26","v":0},{"$f":"'[2]5.2 Asset Age Profile'!S26","v":0},{"$f":"'[2]5.2 Asset Age Profile'!T26","v":0},{"$f":"'[2]5.2 Asset Age Profile'!U26","v":0},{"$f":"'[2]5.2 Asset Age Profile'!V26","v":0},{"$f":"'[2]5.2 Asset Age Profile'!W26","v":0},{"$f":"'[2]5.2 Asset Age Profile'!X26","v":0},{"$f":"'[2]5.2 Asset Age Profile'!Y26","v":7.334848328356899},{"$f":"'[2]5.2 Asset Age Profile'!Z26","v":0},{"$f":"'[2]5.2 Asset Age Profile'!AA26","v":0},{"$f":"'[2]5.2 Asset Age Profile'!AB26","v":0},{"$f":"'[2]5.2 Asset Age Profile'!AC26","v":0},{"$f":"'[2]5.2 Asset Age Profile'!AD26","v":0},{"$f":"'[2]5.2 Asset Age Profile'!AE26","v":0},{"$f":"'[2]5.2 Asset Age Profile'!AF26","v":0},{"$f":"'[2]5.2 Asset Age Profile'!AG26","v":0},{"$f":"'[2]5.2 Asset Age Profile'!AH26","v":0},{"$f":"'[2]5.2 Asset Age Profile'!AI26","v":0},{"$f":"'[2]5.2 Asset Age Profile'!AJ26","v":488},{"$f":"'[2]5.2 Asset Age Profile'!AK26","v":783},{"$f":"'[2]5.2 Asset Age Profile'!AL26","v":2018},{"$f":"'[2]5.2 Asset Age Profile'!AM26","v":2107},{"$f":"'[2]5.2 Asset Age Profile'!AN26","v":1097},{"$f":"'[2]5.2 Asset Age Profile'!AO26","v":1188},{"$f":"'[2]5.2 Asset Age Profile'!AP26","v":1055},{"$f":"'[2]5.2 Asset Age Profile'!AQ26","v":630},{"$f":"'[2]5.2 Asset Age Profile'!AR26","v":412},{"$f":"'[2]5.2 Asset Age Profile'!AS26","v":86},{"$f":"'[2]5.2 Asset Age Profile'!AT26","v":3},{"$f":"'[2]5.2 Asset Age Profile'!AU26","v":3},{"$f":"'[2]5.2 Asset Age Profile'!AV26","v":1},{"$f":"'[2]5.2 Asset Age Profile'!AW26","v":4},{"$f":"'[2]5.2 Asset Age Profile'!AX26","v":3},{"$f":"'[2]5.2 Asset Age Profile'!AY26","v":8},{"$f":"'[2]5.2 Asset Age Profile'!AZ26","v":0},{"$f":"'[2]5.2 Asset Age Profile'!BA26","v":3},{"$f":"'[2]5.2 Asset Age Profile'!BB26","v":0},{"$f":"'[2]5.2 Asset Age Profile'!BC26","v":2},{"$f":"'[2]5.2 Asset Age Profile'!BD26","v":0},{"$f":"'[2]5.2 Asset Age Profile'!BE26","v":2},{"$f":"'[2]5.2 Asset Age Profile'!BF26","v":4},{"$f":"'[2]5.2 Asset Age Profile'!BG26","v":0},{"$f":"'[2]5.2 Asset Age Profile'!BH26","v":2},{"$f":"'[2]5.2 Asset Age Profile'!BI26","v":2},{"$f":"'[2]5.2 Asset Age Profile'!BJ26","v":1},{"$f":"'[2]5.2 Asset Age Profile'!BK26","v":8},{"$f":"'[2]5.2 Asset Age Profile'!BL26","v":8},{"$f":"'[2]5.2 Asset Age Profile'!BM26","v":3},{"$f":"'[2]5.2 Asset Age Profile'!BN26","v":2},{"$f":"'[2]5.2 Asset Age Profile'!BO26","v":1},{"$f":"'[2]5.2 Asset Age Profile'!BP26","v":3},{"$f":"'[2]5.2 Asset Age Profile'!BQ26","v":7},{"$f":"'[2]5.2 Asset Age Profile'!BR26","v":31},{"$f":"'[2]5.2 Asset Age Profile'!BS26","v":26},{"$f":"'[2]5.2 Asset Age Profile'!BT26","v":3},{"$f":"'[2]5.2 Asset Age Profile'!BU26","v":12},{"$f":"'[2]5.2 Asset Age Profile'!BV26","v":7},{"$f":"'[2]5.2 Asset Age Profile'!BW26","v":13},{"$f":"'[2]5.2 Asset Age Profile'!BX26","v":0},{"$f":"'[2]5.2 Asset Age Profile'!BY26","v":3},{"$f":"'[2]5.2 Asset Age Profile'!BZ26","v":0},{"$f":"'[2]5.2 Asset Age Profile'!CA26","v":0},{"$f":"'[2]5.2 Asset Age Profile'!CB26","v":4},{"$f":"'[2]5.2 Asset Age Profile'!CC26","v":2},{"$f":"'[2]5.2 Asset Age Profile'!CD26","v":5},{"$f":"'[2]5.2 Asset Age Profile'!CE26","v":9},{"$f":"'[2]5.2 Asset Age Profile'!CF26","v":43},{"$f":"'[2]5.2 Asset Age Profile'!CG26","v":0},{"$f":"'[2]5.2 Asset Age Profile'!CH26","v":15},{"$f":"'[2]5.2 Asset Age Profile'!CI26","v":4},{"$f":"'[2]5.2 Asset Age Profile'!CJ26","v":0},{"$f":"'[2]5.2 Asset Age Profile'!CK26","v":3},{"$f":"'[2]5.2 Asset Age Profile'!CL26","v":13},{"$f":"'[2]5.2 Asset Age Profile'!CM26","v":16},{"$f":"'[2]5.2 Asset Age Profile'!CN26","v":3},{"$f":"'[2]5.2 Asset Age Profile'!CO26","v":5},{"$f":"'[2]5.2 Asset Age Profile'!CP26","v":0},{"$f":"'[2]5.2 Asset Age Profile'!CQ26","v":1},{"$f":"'[2]5.2 Asset Age Profile'!CR26","v":1},{"$f":"'[2]5.2 Asset Age Profile'!CS26","v":0},{"$f":"'[2]5.2 Asset Age Profile'!CT26","v":0},{"$f":"'[2]5.2 Asset Age Profile'!CU26","v":0},{"$f":"'[2]5.2 Asset Age Profile'!CV26","v":0},{"$f":"'[2]5.2 Asset Age Profile'!CW26","v":1},{"$f":"'[2]5.2 Asset Age Profile'!CX26","v":0},{"$f":"'[2]5.2 Asset Age Profile'!CY26","v":0},{"$f":"'[2]5.2 Asset Age Profile'!CZ26","v":0},{"$f":"'[2]5.2 Asset Age Profile'!DA26","v":0},{"$f":"'[2]5.2 Asset Age Profile'!DB26","v":0},{"$f":"'[2]5.2 Asset Age Profile'!DC26","v":0},{"$f":"'[2]5.2 Asset Age Profile'!DD26","v":0},{"$f":"'[2]5.2 Asset Age Profile'!DE26","v":0},{"$f":"'[2]5.2 Asset Age Profile'!DF26","v":0},{"$f":"'[2]5.2 Asset Age Profile'!DG26","v":5},{"$f":"'[2]5.2 Asset Age Profile'!DH26","v":0},{"$f":"'[2]5.2 Asset Age Profile'!DI26","v":0},{"$f":"'[2]5.2 Asset Age Profile'!DJ26","v":0},{"$f":"'[2]5.2 Asset Age Profile'!DK26","v":0},{"$f":"'[2]5.2 Asset Age Profile'!DL26","v":0},{"$f":"'[2]5.2 Asset Age Profile'!DM26","v":0},{"$f":"'[2]5.2 Asset Age Profile'!DN26","v":0},{"$f":"'[2]5.2 Asset Age Profile'!DO26","v":0},{"$f":"'[2]5.2 Asset Age Profile'!DP26","v":0},{"$f":"'[2]5.2 Asset Age Profile'!DQ26","v":0},{"$f":"'[2]5.2 Asset Age Profile'!DR26","v":0},{"$f":"'[2]5.2 Asset Age Profile'!DS26","v":0},{"$f":"'[2]5.2 Asset Age Profile'!DT26","v":0},{"$f":"'[2]5.2 Asset Age Profile'!DU26","v":0},{"$f":"'[2]5.2 Asset Age Profile'!DV26","v":0},{"$f":"'[2]5.2 Asset Age Profile'!DW26","v":0},{"$f":"'[2]5.2 Asset Age Profile'!DX26","v":0},{"$f":"'[2]5.2 Asset Age Profile'!DY26","v":0},{"$f":"'[2]5.2 Asset Age Profile'!DZ26","v":0},{"$f":"'[2]5.2 Asset Age Profile'!EA26","v":0},{"$f":"'[2]5.2 Asset Age Profile'!EB26","v":0},{"$f":"'[2]5.2 Asset Age Profile'!EC26","v":0},{"$f":"'[2]5.2 Asset Age Profile'!ED26","v":0},{"$f":"'[2]5.2 Asset Age Profile'!EE26","v":0},{"$f":"'[2]5.2 Asset Age Profile'!EF26","v":0},{"$f":"'[2]5.2 Asset Age Profile'!EG26","v":0},{"$f":"'[2]5.2 Asset Age Profile'!EH26","v":0},{"$f":"'[2]5.2 Asset Age Profile'!EI26","v":0},{"$f":"'[2]5.2 Asset Age Profile'!EJ26","v":0}]
["ED_ASS521_00017",null,"> 22 kV & < = 66 kV; Steel",null,null,null,null,null,null,null,null,null,null,{"$f":"'[2]5.2 Asset Age Profile'!N27","v":54.9},{"$f":"'[2]5.2 Asset Age Profile'!O27","v":0},{"$f":"'[2]5.2 Asset Age Profile'!P27","v":0},{"$f":"'[2]5.2 Asset Age Profile'!Q27","v":0},{"$f":"'[2]5.2 Asset Age Profile'!R27","v":0},{"$f":"'[2]5.2 Asset Age Profile'!S27","v":0},{"$f":"'[2]5.2 Asset Age Profile'!T27","v":0},{"$f":"'[2]5.2 Asset Age Profile'!U27","v":0},{"$f":"'[2]5.2 Asset Age Profile'!V27","v":0},{"$f":"'[2]5.2 Asset Age Profile'!W27","v":0},{"$f":"'[2]5.2 Asset Age Profile'!X27","v":0},{"$f":"'[2]5.2 Asset Age Profile'!Y27","v":7.4094534211370817},{"$f":"'[2]5.2 Asset Age Profile'!Z27","v":0},{"$f":"'[2]5.2 Asset Age Profile'!AA27","v":0},{"$f":"'[2]5.2 Asset Age Profile'!AB27","v":0},{"$f":"'[2]5.2 Asset Age Profile'!AC27","v":0},{"$f":"'[2]5.2 Asset Age Profile'!AD27","v":0},{"$f":"'[2]5.2 Asset Age Profile'!AE27","v":0},{"$f":"'[2]5.2 Asset Age Profile'!AF27","v":0},{"$f":"'[2]5.2 Asset Age Profile'!AG27","v":0},{"$f":"'[2]5.2 Asset Age Profile'!AH27","v":0},{"$f":"'[2]5.2 Asset Age Profile'!AI27","v":0},{"$f":"'[2]5.2 Asset Age Profile'!AJ27","v":150},{"$f":"'[2]5.2 Asset Age Profile'!AK27","v":274},{"$f":"'[2]5.2 Asset Age Profile'!AL27","v":578},{"$f":"'[2]5.2 Asset Age Profile'!AM27","v":437},{"$f":"'[2]5.2 Asset Age Profile'!AN27","v":430},{"$f":"'[2]5.2 Asset Age Profile'!AO27","v":216},{"$f":"'[2]5.2 Asset Age Profile'!AP27","v":144},{"$f":"'[2]5.2 Asset Age Profile'!AQ27","v":253},{"$f":"'[2]5.2 Asset Age Profile'!AR27","v":308},{"$f":"'[2]5.2 Asset Age Profile'!AS27","v":38},{"$f":"'[2]5.2 Asset Age Profile'!AT27","v":299},{"$f":"'[2]5.2 Asset Age Profile'!AU27","v":2},{"$f":"'[2]5.2 Asset Age Profile'!AV27","v":1},{"$f":"'[2]5.2 Asset Age Profile'!AW27","v":0},{"$f":"'[2]5.2 Asset Age Profile'!AX27","v":4},{"$f":"'[2]5.2 Asset Age Profile'!AY27","v":1},{"$f":"'[2]5.2 Asset Age Profile'!AZ27","v":2},{"$f":"'[2]5.2 Asset Age Profile'!BA27","v":1},{"$f":"'[2]5.2 Asset Age Profile'!BB27","v":0},{"$f":"'[2]5.2 Asset Age Profile'!BC27","v":0},{"$f":"'[2]5.2 Asset Age Profile'!BD27","v":1},{"$f":"'[2]5.2 Asset Age Profile'!BE27","v":1},{"$f":"'[2]5.2 Asset Age Profile'!BF27","v":2},{"$f":"'[2]5.2 Asset Age Profile'!BG27","v":0},{"$f":"'[2]5.2 Asset Age Profile'!BH27","v":0},{"$f":"'[2]5.2 Asset Age Profile'!BI27","v":2},{"$f":"'[2]5.2 Asset Age Profile'!BJ27","v":0},{"$f":"'[2]5.2 Asset Age Profile'!BK27","v":2},{"$f":"'[2]5.2 Asset Age Profile'!BL27","v":0},{"$f":"'[2]5.2 Asset Age Profile'!BM27","v":1},{"$f":"'[2]5.2 Asset Age Profile'!BN27","v":1},{"$f":"'[2]5.2 Asset Age Profile'!BO27","v":0},{"$f":"'[2]5.2 Asset Age Profile'!BP27","v":1},{"$f":"'[2]5.2 Asset Age Profile'!BQ27","v":0},{"$f":"'[2]5.2 Asset Age Profile'!BR27","v":0},{"$f":"'[2]5.2 Asset Age Profile'!BS27","v":1},{"$f":"'[2]5.2 Asset Age Profile'!BT27","v":1},{"$f":"'[2]5.2 Asset Age Profile'!BU27","v":1},{"$f":"'[2]5.2 Asset Age Profile'!BV27","v":0},{"$f":"'[2]5.2 Asset Age Profile'!BW27","v":0},{"$f":"'[2]5.2 Asset Age Profile'!BX27","v":0},{"$f":"'[2]5.2 Asset Age Profile'!BY27","v":0},{"$f":"'[2]5.2 Asset Age Profile'!BZ27","v":1},{"$f":"'[2]5.2 Asset Age Profile'!CA27","v":1},{"$f":"'[2]5.2 Asset Age Profile'!CB27","v":1},{"$f":"'[2]5.2 Asset Age Profile'!CC27","v":1},{"$f":"'[2]5.2 Asset Age Profile'!CD27","v":0},{"$f":"'[2]5.2 Asset Age Profile'!CE27","v":3},{"$f":"'[2]5.2 Asset Age Profile'!CF27","v":0},{"$f":"'[2]5.2 Asset Age Profile'!CG27","v":3},{"$f":"'[2]5.2 Asset Age Profile'!CH27","v":0},{"$f":"'[2]5.2 Asset Age Profile'!CI27","v":2},{"$f":"'[2]5.2 Asset Age Profile'!CJ27","v":0},{"$f":"'[2]5.2 Asset Age Profile'!CK27","v":0},{"$f":"'[2]5.2 Asset Age Profile'!CL27","v":2},{"$f":"'[2]5.2 Asset Age Profile'!CM27","v":10},{"$f":"'[2]5.2 Asset Age Profile'!CN27","v":2},{"$f":"'[2]5.2 Asset Age Profile'!CO27","v":0},{"$f":"'[2]5.2 Asset Age Profile'!CP27","v":0},{"$f":"'[2]5.2 Asset Age Profile'!CQ27","v":0},{"$f":"'[2]5.2 Asset Age Profile'!CR27","v":3},{"$f":"'[2]5.2 Asset Age Profile'!CS27","v":1},{"$f":"'[2]5.2 Asset Age Profile'!CT27","v":0},{"$f":"'[2]5.2 Asset Age Profile'!CU27","v":2},{"$f":"'[2]5.2 Asset Age Profile'!CV27","v":0},{"$f":"'[2]5.2 Asset Age Profile'!CW27","v":72},{"$f":"'[2]5.2 Asset Age Profile'!CX27","v":0},{"$f":"'[2]5.2 Asset Age Profile'!CY27","v":0},{"$f":"'[2]5.2 Asset Age Profile'!CZ27","v":0},{"$f":"'[2]5.2 Asset Age Profile'!DA27","v":0},{"$f":"'[2]5.2 Asset Age Profile'!DB27","v":0},{"$f":"'[2]5.2 Asset Age Profile'!DC27","v":0},{"$f":"'[2]5.2 Asset Age Profile'!DD27","v":0},{"$f":"'[2]5.2 Asset Age Profile'!DE27","v":0},{"$f":"'[2]5.2 Asset Age Profile'!DF27","v":0},{"$f":"'[2]5.2 Asset Age Profile'!DG27","v":0},{"$f":"'[2]5.2 Asset Age Profile'!DH27","v":0},{"$f":"'[2]5.2 Asset Age Profile'!DI27","v":0},{"$f":"'[2]5.2 Asset Age Profile'!DJ27","v":1},{"$f":"'[2]5.2 Asset Age Profile'!DK27","v":0},{"$f":"'[2]5.2 Asset Age Profile'!DL27","v":0},{"$f":"'[2]5.2 Asset Age Profile'!DM27","v":0},{"$f":"'[2]5.2 Asset Age Profile'!DN27","v":0},{"$f":"'[2]5.2 Asset Age Profile'!DO27","v":0},{"$f":"'[2]5.2 Asset Age Profile'!DP27","v":0},{"$f":"'[2]5.2 Asset Age Profile'!DQ27","v":0},{"$f":"'[2]5.2 Asset Age Profile'!DR27","v":0},{"$f":"'[2]5.2 Asset Age Profile'!DS27","v":9},{"$f":"'[2]5.2 Asset Age Profile'!DT27","v":0},{"$f":"'[2]5.2 Asset Age Profile'!DU27","v":0},{"$f":"'[2]5.2 Asset Age Profile'!DV27","v":0},{"$f":"'[2]5.2 Asset Age Profile'!DW27","v":0},{"$f":"'[2]5.2 Asset Age Profile'!DX27","v":0},{"$f":"'[2]5.2 Asset Age Profile'!DY27","v":0},{"$f":"'[2]5.2 Asset Age Profile'!DZ27","v":0},{"$f":"'[2]5.2 Asset Age Profile'!EA27","v":0},{"$f":"'[2]5.2 Asset Age Profile'!EB27","v":0},{"$f":"'[2]5.2 Asset Age Profile'!EC27","v":0},{"$f":"'[2]5.2 Asset Age Profile'!ED27","v":0},{"$f":"'[2]5.2 Asset Age Profile'!EE27","v":0},{"$f":"'[2]5.2 Asset Age Profile'!EF27","v":0},{"$f":"'[2]5.2 Asset Age Profile'!EG27","v":0},{"$f":"'[2]5.2 Asset Age Profile'!EH27","v":0},{"$f":"'[2]5.2 Asset Age Profile'!EI27","v":0},{"$f":"'[2]5.2 Asset Age Profile'!EJ27","v":0}]
["ED_ASS521_00018",null,"> 66 kV & < = 132 kV; Steel",null,null,null,null,null,null,null,null,null,null,{"$f":"'[2]5.2 Asset Age Profile'!N28","v":54.9},{"$f":"'[2]5.2 Asset Age Profile'!O28","v":0},{"$f":"'[2]5.2 Asset Age Profile'!P28","v":0},{"$f":"'[2]5.2 Asset Age Profile'!Q28","v":0},{"$f":"'[2]5.2 Asset Age Profile'!R28","v":0},{"$f":"'[2]5.2 Asset Age Profile'!S28","v":0},{"$f":"'[2]5.2 Asset Age Profile'!T28","v":0},{"$f":"'[2]5.2 Asset Age Profile'!U28","v":0},{"$f":"'[2]5.2 Asset Age Profile'!V28","v":0},{"$f":"'[2]5.2 Asset Age Profile'!W28","v":0},{"$f":"'[2]5.2 Asset Age Profile'!X28","v":0},{"$f":"'[2]5.2 Asset Age Profile'!Y28","v":7.4094534211370817},{"$f":"'[2]5.2 Asset Age Profile'!Z28","v":0},{"$f":"'[2]5.2 Asset Age Profile'!AA28","v":0},{"$f":"'[2]5.2 Asset Age Profile'!AB28","v":0},{"$f":"'[2]5.2 Asset Age Profile'!AC28","v":0},{"$f":"'[2]5.2 Asset Age Profile'!AD28","v":0},{"$f":"'[2]5.2 Asset Age Profile'!AE28","v":0},{"$f":"'[2]5.2 Asset Age Profile'!AF28","v":0},{"$f":"'[2]5.2 Asset Age Profile'!AG28","v":0},{"$f":"'[2]5.2 Asset Age Profile'!AH28","v":0},{"$f":"'[2]5.2 Asset Age Profile'!AI28","v":0},{"$f":"'[2]5.2 Asset Age Profile'!AJ28","v":153},{"$f":"'[2]5.2 Asset Age Profile'!AK28","v":365},{"$f":"'[2]5.2 Asset Age Profile'!AL28","v":159},{"$f":"'[2]5.2 Asset Age Profile'!AM28","v":40},{"$f":"'[2]5.2 Asset Age Profile'!AN28","v":201},{"$f":"'[2]5.2 Asset Age Profile'!AO28","v":0},{"$f":"'[2]5.2 Asset Age Profile'!AP28","v":52},{"$f":"'[2]5.2 Asset Age Profile'!AQ28","v":19},{"$f":"'[2]5.2 Asset Age Profile'!AR28","v":5},{"$f":"'[2]5.2 Asset Age Profile'!AS28","v":1},{"$f":"'[2]5.2 Asset Age Profile'!AT28","v":0},{"$f":"'[2]5.2 Asset Age Profile'!AU28","v":0},{"$f":"'[2]5.2 Asset Age Profile'!AV28","v":0},{"$f":"'[2]5.2 Asset Age Profile'!AW28","v":0},{"$f":"'[2]5.2 Asset Age Profile'!AX28","v":0},{"$f":"'[2]5.2 Asset Age Profile'!AY28","v":0},{"$f":"'[2]5.2 Asset Age Profile'!AZ28","v":0},{"$f":"'[2]5.2 Asset Age Profile'!BA28","v":0},{"$f":"'[2]5.2 Asset Age Profile'!BB28","v":0},{"$f":"'[2]5.2 Asset Age Profile'!BC28","v":0},{"$f":"'[2]5.2 Asset Age Profile'!BD28","v":29},{"$f":"'[2]5.2 Asset Age Profile'!BE28","v":1},{"$f":"'[2]5.2 Asset Age Profile'!BF28","v":1},{"$f":"'[2]5.2 Asset Age Profile'!BG28","v":0},{"$f":"'[2]5.2 Asset Age Profile'!BH28","v":0},{"$f":"'[2]5.2 Asset Age Profile'!BI28","v":0},{"$f":"'[2]5.2 Asset Age Profile'!BJ28","v":0},{"$f":"'[2]5.2 Asset Age Profile'!BK28","v":0},{"$f":"'[2]5.2 Asset Age Profile'!BL28","v":0},{"$f":"'[2]5.2 Asset Age Profile'!BM28","v":1},{"$f":"'[2]5.2 Asset Age Profile'!BN28","v":0},{"$f":"'[2]5.2 Asset Age Profile'!BO28","v":0},{"$f":"'[2]5.2 Asset Age Profile'!BP28","v":0},{"$f":"'[2]5.2 Asset Age Profile'!BQ28","v":0},{"$f":"'[2]5.2 Asset Age Profile'!BR28","v":0},{"$f":"'[2]5.2 Asset Age Profile'!BS28","v":0},{"$f":"'[2]5.2 Asset Age Profile'!BT28","v":0},{"$f":"'[2]5.2 Asset Age Profile'!BU28","v":0},{"$f":"'[2]5.2 Asset Age Profile'!BV28","v":0},{"$f":"'[2]5.2 Asset Age Profile'!BW28","v":0},{"$f":"'[2]5.2 Asset Age Profile'!BX28","v":2},{"$f":"'[2]5.2 Asset Age Profile'!BY28","v":0},{"$f":"'[2]5.2 Asset Age Profile'!BZ28","v":24},{"$f":"'[2]5.2 Asset Age Profile'!CA28","v":0},{"$f":"'[2]5.2 Asset Age Profile'!CB28","v":0},{"$f":"'[2]5.2 Asset Age Profile'!CC28","v":0},{"$f":"'[2]5.2 Asset Age Profile'!CD28","v":0},{"$f":"'[2]5.2 Asset Age Profile'!CE28","v":0},{"$f":"'[2]5.2 Asset Age Profile'!CF28","v":0},{"$f":"'[2]5.2 Asset Age Profile'!CG28","v":3},{"$f":"'[2]5.2 Asset Age Profile'!CH28","v":2},{"$f":"'[2]5.2 Asset Age Profile'!CI28","v":4},{"$f":"'[2]5.2 Asset Age Profile'!CJ28","v":0},{"$f":"'[2]5.2 Asset Age Profile'!CK28","v":0},{"$f":"'[2]5.2 Asset Age Profile'!CL28","v":0},{"$f":"'[2]5.2 Asset Age Profile'!CM28","v":0},{"$f":"'[2]5.2 Asset Age Profile'!CN28","v":0},{"$f":"'[2]5.2 Asset Age Profile'!CO28","v":0},{"$f":"'[2]5.2 Asset Age Profile'!CP28","v":0},{"$f":"'[2]5.2 Asset Age Profile'!CQ28","v":0},{"$f":"'[2]5.2 Asset Age Profile'!CR28","v":0},{"$f":"'[2]5.2 Asset Age Profile'!CS28","v":0},{"$f":"'[2]5.2 Asset Age Profile'!CT28","v":0},{"$f":"'[2]5.2 Asset Age Profile'!CU28","v":0},{"$f":"'[2]5.2 Asset Age Profile'!CV28","v":0},{"$f":"'[2]5.2 Asset Age Profile'!CW28","v":0},{"$f":"'[2]5.2 Asset Age Profile'!CX28","v":0},{"$f":"'[2]5.2 Asset Age Profile'!CY28","v":0},{"$f":"'[2]5.2 Asset Age Profile'!CZ28","v":0},{"$f":"'[2]5.2 Asset Age Profile'!DA28","v":0},{"$f":"'[2]5.2 Asset Age Profile'!DB28","v":0},{"$f":"'[2]5.2 Asset Age Profile'!DC28","v":0},{"$f":"'[2]5.2 Asset Age Profile'!DD28","v":0},{"$f":"'[2]5.2 Asset Age Profile'!DE28","v":0},{"$f":"'[2]5.2 Asset Age Profile'!DF28","v":0},{"$f":"'[2]5.2 Asset Age Profile'!DG28","v":0},{"$f":"'[2]5.2 Asset Age Profile'!DH28","v":0},{"$f":"'[2]5.2 Asset Age Profile'!DI28","v":0},{"$f":"'[2]5.2 Asset Age Profile'!DJ28","v":0},{"$f":"'[2]5.2 Asset Age Profile'!DK28","v":0},{"$f":"'[2]5.2 Asset Age Profile'!DL28","v":0},{"$f":"'[2]5.2 Asset Age Profile'!DM28","v":0},{"$f":"'[2]5.2 Asset Age Profile'!DN28","v":0},{"$f":"'[2]5.2 Asset Age Profile'!DO28","v":0},{"$f":"'[2]5.2 Asset Age Profile'!DP28","v":0},{"$f":"'[2]5.2 Asset Age Profile'!DQ28","v":0},{"$f":"'[2]5.2 Asset Age Profile'!DR28","v":0},{"$f":"'[2]5.2 Asset Age Profile'!DS28","v":0},{"$f":"'[2]5.2 Asset Age Profile'!DT28","v":0},{"$f":"'[2]5.2 Asset Age Profile'!DU28","v":0},{"$f":"'[2]5.2 Asset Age Profile'!DV28","v":0},{"$f":"'[2]5.2 Asset Age Profile'!DW28","v":0},{"$f":"'[2]5.2 Asset Age Profile'!DX28","v":0},{"$f":"'[2]5.2 Asset Age Profile'!DY28","v":0},{"$f":"'[2]5.2 Asset Age Profile'!DZ28","v":0},{"$f":"'[2]5.2 Asset Age Profile'!EA28","v":0},{"$f":"'[2]5.2 Asset Age Profile'!EB28","v":0},{"$f":"'[2]5.2 Asset Age Profile'!EC28","v":0},{"$f":"'[2]5.2 Asset Age Profile'!ED28","v":0},{"$f":"'[2]5.2 Asset Age Profile'!EE28","v":0},{"$f":"'[2]5.2 Asset Age Profile'!EF28","v":0},{"$f":"'[2]5.2 Asset Age Profile'!EG28","v":0},{"$f":"'[2]5.2 Asset Age Profile'!EH28","v":0},{"$f":"'[2]5.2 Asset Age Profile'!EI28","v":0},{"$f":"'[2]5.2 Asset Age Profile'!EJ28","v":0}]
["ED_ASS521_00019",null,"> 132 kV; Steel",null,null,null,null,null,null,null,null,null,null,{"$f":"'[2]5.2 Asset Age Profile'!N29","v":54.9},{"$f":"'[2]5.2 Asset Age Profile'!O29","v":0},{"$f":"'[2]5.2 Asset Age Profile'!P29","v":0},{"$f":"'[2]5.2 Asset Age Profile'!Q29","v":0},{"$f":"'[2]5.2 Asset Age Profile'!R29","v":0},{"$f":"'[2]5.2 Asset Age Profile'!S29","v":0},{"$f":"'[2]5.2 Asset Age Profile'!T29","v":0},{"$f":"'[2]5.2 Asset Age Profile'!U29","v":0},{"$f":"'[2]5.2 Asset Age Profile'!V29","v":0},{"$f":"'[2]5.2 Asset Age Profile'!W29","v":0},{"$f":"'[2]5.2 Asset Age Profile'!X29","v":0},{"$f":"'[2]5.2 Asset Age Profile'!Y29","v":7.4094534211370817},{"$f":"'[2]5.2 Asset Age Profile'!Z29","v":0},{"$f":"'[2]5.2 Asset Age Profile'!AA29","v":0},{"$f":"'[2]5.2 Asset Age Profile'!AB29","v":0},{"$f":"'[2]5.2 Asset Age Profile'!AC29","v":0},{"$f":"'[2]5.2 Asset Age Profile'!AD29","v":0},{"$f":"'[2]5.2 Asset Age Profile'!AE29","v":0},{"$f":"'[2]5.2 Asset Age Profile'!AF29","v":0},{"$f":"'[2]5.2 Asset Age Profile'!AG29","v":0},{"$f":"'[2]5.2 Asset Age Profile'!AH29","v":0},{"$f":"'[2]5.2 Asset Age Profile'!AI29","v":0},{"$f":"'[2]5.2 Asset Age Profile'!AJ29","v":0},{"$f":"'[2]5.2 Asset Age Profile'!AK29","v":0},{"$f":"'[2]5.2 Asset Age Profile'!AL29","v":0},{"$f":"'[2]5.2 Asset Age Profile'!AM29","v":0},{"$f":"'[2]5.2 Asset Age Profile'!AN29","v":0},{"$f":"'[2]5.2 Asset Age Profile'!AO29","v":0},{"$f":"'[2]5.2 Asset Age Profile'!AP29","v":0},{"$f":"'[2]5.2 Asset Age Profile'!AQ29","v":0},{"$f":"'[2]5.2 Asset Age Profile'!AR29","v":0},{"$f":"'[2]5.2 Asset Age Profile'!AS29","v":0},{"$f":"'[2]5.2 Asset Age Profile'!AT29","v":0},{"$f":"'[2]5.2 Asset Age Profile'!AU29","v":0},{"$f":"'[2]5.2 Asset Age Profile'!AV29","v":0},{"$f":"'[2]5.2 Asset Age Profile'!AW29","v":0},{"$f":"'[2]5.2 Asset Age Profile'!AX29","v":0},{"$f":"'[2]5.2 Asset Age Profile'!AY29","v":0},{"$f":"'[2]5.2 Asset Age Profile'!AZ29","v":0},{"$f":"'[2]5.2 Asset Age Profile'!BA29","v":0},{"$f":"'[2]5.2 Asset Age Profile'!BB29","v":0},{"$f":"'[2]5.2 Asset Age Profile'!BC29","v":0},{"$f":"'[2]5.2 Asset Age Profile'!BD29","v":0},{"$f":"'[2]5.2 Asset Age Profile'!BE29","v":0},{"$f":"'[2]5.2 Asset Age Profile'!BF29","v":0},{"$f":"'[2]5.2 Asset Age Profile'!BG29","v":0},{"$f":"'[2]5.2 Asset Age Profile'!BH29","v":0},{"$f":"'[2]5.2 Asset Age Profile'!BI29","v":0},{"$f":"'[2]5.2 Asset Age Profile'!BJ29","v":0},{"$f":"'[2]5.2 Asset Age Profile'!BK29","v":0},{"$f":"'[2]5.2 Asset Age Profile'!BL29","v":0},{"$f":"'[2]5.2 Asset Age Profile'!BM29","v":0},{"$f":"'[2]5.2 Asset Age Profile'!BN29","v":0},{"$f":"'[2]5.2 Asset Age Profile'!BO29","v":0},{"$f":"'[2]5.2 Asset Age Profile'!BP29","v":0},{"$f":"'[2]5.2 Asset Age Profile'!BQ29","v":0},{"$f":"'[2]5.2 Asset Age Profile'!BR29","v":0},{"$f":"'[2]5.2 Asset Age Profile'!BS29","v":0},{"$f":"'[2]5.2 Asset Age Profile'!BT29","v":0},{"$f":"'[2]5.2 Asset Age Profile'!BU29","v":0},{"$f":"'[2]5.2 Asset Age Profile'!BV29","v":0},{"$f":"'[2]5.2 Asset Age Profile'!BW29","v":0},{"$f":"'[2]5.2 Asset Age Profile'!BX29","v":0},{"$f":"'[2]5.2 Asset Age Profile'!BY29","v":0},{"$f":"'[2]5.2 Asset Age Profile'!BZ29","v":0},{"$f":"'[2]5.2 Asset Age Profile'!CA29","v":0},{"$f":"'[2]5.2 Asset Age Profile'!CB29","v":0},{"$f":"'[2]5.2 Asset Age Profile'!CC29","v":0},{"$f":"'[2]5.2 Asset Age Profile'!CD29","v":0},{"$f":"'[2]5.2 Asset Age Profile'!CE29","v":0},{"$f":"'[2]5.2 Asset Age Profile'!CF29","v":0},{"$f":"'[2]5.2 Asset Age Profile'!CG29","v":0},{"$f":"'[2]5.2 Asset Age Profile'!CH29","v":10},{"$f":"'[2]5.2 Asset Age Profile'!CI29","v":0},{"$f":"'[2]5.2 Asset Age Profile'!CJ29","v":0},{"$f":"'[2]5.2 Asset Age Profile'!CK29","v":0},{"$f":"'[2]5.2 Asset Age Profile'!CL29","v":0},{"$f":"'[2]5.2 Asset Age Profile'!CM29","v":0},{"$f":"'[2]5.2 Asset Age Profile'!CN29","v":0},{"$f":"'[2]5.2 Asset Age Profile'!CO29","v":0},{"$f":"'[2]5.2 Asset Age Profile'!CP29","v":0},{"$f":"'[2]5.2 Asset Age Profile'!CQ29","v":0},{"$f":"'[2]5.2 Asset Age Profile'!CR29","v":0},{"$f":"'[2]5.2 Asset Age Profile'!CS29","v":0},{"$f":"'[2]5.2 Asset Age Profile'!CT29","v":0},{"$f":"'[2]5.2 Asset Age Profile'!CU29","v":0},{"$f":"'[2]5.2 Asset Age Profile'!CV29","v":0},{"$f":"'[2]5.2 Asset Age Profile'!CW29","v":0},{"$f":"'[2]5.2 Asset Age Profile'!CX29","v":0},{"$f":"'[2]5.2 Asset Age Profile'!CY29","v":0},{"$f":"'[2]5.2 Asset Age Profile'!CZ29","v":0},{"$f":"'[2]5.2 Asset Age Profile'!DA29","v":0},{"$f":"'[2]5.2 Asset Age Profile'!DB29","v":0},{"$f":"'[2]5.2 Asset Age Profile'!DC29","v":0},{"$f":"'[2]5.2 Asset Age Profile'!DD29","v":0},{"$f":"'[2]5.2 Asset Age Profile'!DE29","v":0},{"$f":"'[2]5.2 Asset Age Profile'!DF29","v":0},{"$f":"'[2]5.2 Asset Age Profile'!DG29","v":0},{"$f":"'[2]5.2 Asset Age Profile'!DH29","v":0},{"$f":"'[2]5.2 Asset Age Profile'!DI29","v":0},{"$f":"'[2]5.2 Asset Age Profile'!DJ29","v":0},{"$f":"'[2]5.2 Asset Age Profile'!DK29","v":0},{"$f":"'[2]5.2 Asset Age Profile'!DL29","v":0},{"$f":"'[2]5.2 Asset Age Profile'!DM29","v":0},{"$f":"'[2]5.2 Asset Age Profile'!DN29","v":0},{"$f":"'[2]5.2 Asset Age Profile'!DO29","v":0},{"$f":"'[2]5.2 Asset Age Profile'!DP29","v":0},{"$f":"'[2]5.2 Asset Age Profile'!DQ29","v":0},{"$f":"'[2]5.2 Asset Age Profile'!DR29","v":0},{"$f":"'[2]5.2 Asset Age Profile'!DS29","v":0},{"$f":"'[2]5.2 Asset Age Profile'!DT29","v":0},{"$f":"'[2]5.2 Asset Age Profile'!DU29","v":0},{"$f":"'[2]5.2 Asset Age Profile'!DV29","v":0},{"$f":"'[2]5.2 Asset Age Profile'!DW29","v":0},{"$f":"'[2]5.2 Asset Age Profile'!DX29","v":0},{"$f":"'[2]5.2 Asset Age Profile'!DY29","v":0},{"$f":"'[2]5.2 Asset Age Profile'!DZ29","v":0},{"$f":"'[2]5.2 Asset Age Profile'!EA29","v":0},{"$f":"'[2]5.2 Asset Age Profile'!EB29","v":0},{"$f":"'[2]5.2 Asset Age Profile'!EC29","v":0},{"$f":"'[2]5.2 Asset Age Profile'!ED29","v":0},{"$f":"'[2]5.2 Asset Age Profile'!EE29","v":0},{"$f":"'[2]5.2 Asset Age Profile'!EF29","v":0},{"$f":"'[2]5.2 Asset Age Profile'!EG29","v":0},{"$f":"'[2]5.2 Asset Age Profile'!EH29","v":0},{"$f":"'[2]5.2 Asset Age Profile'!EI29","v":0},{"$f":"'[2]5.2 Asset Age Profile'!EJ29","v":0}]
["ED_ASS521_00020",null,"Other",null,"DNSP NAME","REPEX","POLES","Other","DESCRIPTOR METRIC","MEAN ECONOMIC LIFE","YEARS","NUMBER",null,{"$f":"'[2]5.2 Asset Age Profile'!N30","v":54.04444444444443},{"$f":"'[2]5.2 Asset Age Profile'!O30","v":0},{"$f":"'[2]5.2 Asset Age Profile'!P30","v":0},{"$f":"'[2]5.2 Asset Age Profile'!Q30","v":0},{"$f":"'[2]5.2 Asset Age Profile'!R30","v":0},{"$f":"'[2]5.2 Asset Age Profile'!S30","v":0},{"$f":"'[2]5.2 Asset Age Profile'!T30","v":0},{"$f":"'[2]5.2 Asset Age Profile'!U30","v":0},{"$f":"'[2]5.2 Asset Age Profile'!V30","v":0},{"$f":"'[2]5.2 Asset Age Profile'!W30","v":0},{"$f":"'[2]5.2 Asset Age Profile'!X30","v":0},{"$f":"'[2]5.2 Asset Age Profile'!Y30","v":7.3514926677814509},{"$f":"'[2]5.2 Asset Age Profile'!Z30","v":0},{"$f":"'[2]5.2 Asset Age Profile'!AA30","v":0},{"$f":"'[2]5.2 Asset Age Profile'!AB30","v":0},{"$f":"'[2]5.2 Asset Age Profile'!AC30","v":0},{"$f":"'[2]5.2 Asset Age Profile'!AD30","v":0},{"$f":"'[2]5.2 Asset Age Profile'!AE30","v":0},{"$f":"'[2]5.2 Asset Age Profile'!AF30","v":0},{"$f":"'[2]5.2 Asset Age Profile'!AG30","v":0},{"$f":"'[2]5.2 Asset Age Profile'!AH30","v":0},{"$f":"'[2]5.2 Asset Age Profile'!AI30","v":0},{"$f":"'[2]5.2 Asset Age Profile'!AJ30","v":164},{"$f":"'[2]5.2 Asset Age Profile'!AK30","v":210},{"$f":"'[2]5.2 Asset Age Profile'!AL30","v":244},{"$f":"'[2]5.2 Asset Age Profile'!AM30","v":232},{"$f":"'[2]5.2 Asset Age Profile'!AN30","v":194},{"$f":"'[2]5.2 Asset Age Profile'!AO30","v":173},{"$f":"'[2]5.2 Asset Age Profile'!AP30","v":188},{"$f":"'[2]5.2 Asset Age Profile'!AQ30","v":209},{"$f":"'[2]5.2 Asset Age Profile'!AR30","v":184},{"$f":"'[2]5.2 Asset Age Profile'!AS30","v":156},{"$f":"'[2]5.2 Asset Age Profile'!AT30","v":245},{"$f":"'[2]5.2 Asset Age Profile'!AU30","v":195},{"$f":"'[2]5.2 Asset Age Profile'!AV30","v":217},{"$f":"'[2]5.2 Asset Age Profile'!AW30","v":203},{"$f":"'[2]5.2 Asset Age Profile'!AX30","v":195},{"$f":"'[2]5.2 Asset Age Profile'!AY30","v":234},{"$f":"'[2]5.2 Asset Age Profile'!AZ30","v":172},{"$f":"'[2]5.2 Asset Age Profile'!BA30","v":158},{"$f":"'[2]5.2 Asset Age Profile'!BB30","v":187},{"$f":"'[2]5.2 Asset Age Profile'!BC30","v":230},{"$f":"'[2]5.2 Asset Age Profile'!BD30","v":366},{"$f":"'[2]5.2 Asset Age Profile'!BE30","v":357},{"$f":"'[2]5.2 Asset Age Profile'!BF30","v":425},{"$f":"'[2]5.2 Asset Age Profile'!BG30","v":412},{"$f":"'[2]5.2 Asset Age Profile'!BH30","v":482},{"$f":"'[2]5.2 Asset Age Profile'!BI30","v":555},{"$f":"'[2]5.2 Asset Age Profile'!BJ30","v":424},{"$f":"'[2]5.2 Asset Age Profile'!BK30","v":553},{"$f":"'[2]5.2 Asset Age Profile'!BL30","v":522},{"$f":"'[2]5.2 Asset Age Profile'!BM30","v":487},{"$f":"'[2]5.2 Asset Age Profile'!BN30","v":399},{"$f":"'[2]5.2 Asset Age Profile'!BO30","v":295},{"$f":"'[2]5.2 Asset Age Profile'!BP30","v":346},{"$f":"'[2]5.2 Asset Age Profile'!BQ30","v":435},{"$f":"'[2]5.2 Asset Age Profile'!BR30","v":468},{"$f":"'[2]5.2 Asset Age Profile'!BS30","v":485},{"$f":"'[2]5.2 Asset Age Profile'!BT30","v":264},{"$f":"'[2]5.2 Asset Age Profile'!BU30","v":346},{"$f":"'[2]5.2 Asset Age Profile'!BV30","v":367},{"$f":"'[2]5.2 Asset Age Profile'!BW30","v":289},{"$f":"'[2]5.2 Asset Age Profile'!BX30","v":347},{"$f":"'[2]5.2 Asset Age Profile'!BY30","v":345},{"$f":"'[2]5.2 Asset Age Profile'!BZ30","v":238},{"$f":"'[2]5.2 Asset Age Profile'!CA30","v":299},{"$f":"'[2]5.2 Asset Age Profile'!CB30","v":642},{"$f":"'[2]5.2 Asset Age Profile'!CC30","v":881},{"$f":"'[2]5.2 Asset Age Profile'!CD30","v":454},{"$f":"'[2]5.2 Asset Age Profile'!CE30","v":291},{"$f":"'[2]5.2 Asset Age Profile'!CF30","v":619},{"$f":"'[2]5.2 Asset Age Profile'!CG30","v":329},{"$f":"'[2]5.2 Asset Age Profile'!CH30","v":415},{"$f":"'[2]5.2 Asset Age Profile'!CI30","v":210},{"$f":"'[2]5.2 Asset Age Profile'!CJ30","v":79},{"$f":"'[2]5.2 Asset Age Profile'!CK30","v":98},{"$f":"'[2]5.2 Asset Age Profile'!CL30","v":369},{"$f":"'[2]5.2 Asset Age Profile'!CM30","v":664},{"$f":"'[2]5.2 Asset Age Profile'!CN30","v":66},{"$f":"'[2]5.2 Asset Age Profile'!CO30","v":93},{"$f":"'[2]5.2 Asset Age Profile'!CP30","v":54},{"$f":"'[2]5.2 Asset Age Profile'!CQ30","v":73},{"$f":"'[2]5.2 Asset Age Profile'!CR30","v":288},{"$f":"'[2]5.2 Asset Age Profile'!CS30","v":55},{"$f":"'[2]5.2 Asset Age Profile'!CT30","v":74},{"$f":"'[2]5.2 Asset Age Profile'!CU30","v":152},{"$f":"'[2]5.2 Asset Age Profile'!CV30","v":69},{"$f":"'[2]5.2 Asset Age Profile'!CW30","v":517},{"$f":"'[2]5.2 Asset Age Profile'!CX30","v":42},{"$f":"'[2]5.2 Asset Age Profile'!CY30","v":9},{"$f":"'[2]5.2 Asset Age Profile'!CZ30","v":11},{"$f":"'[2]5.2 Asset Age Profile'!DA30","v":13},{"$f":"'[2]5.2 Asset Age Profile'!DB30","v":6},{"$f":"'[2]5.2 Asset Age Profile'!DC30","v":1},{"$f":"'[2]5.2 Asset Age Profile'!DD30","v":1},{"$f":"'[2]5.2 Asset Age Profile'!DE30","v":2},{"$f":"'[2]5.2 Asset Age Profile'!DF30","v":1},{"$f":"'[2]5.2 Asset Age Profile'!DG30","v":18},{"$f":"'[2]5.2 Asset Age Profile'!DH30","v":3},{"$f":"'[2]5.2 Asset Age Profile'!DI30","v":2},{"$f":"'[2]5.2 Asset Age Profile'!DJ30","v":3},{"$f":"'[2]5.2 Asset Age Profile'!DK30","v":5},{"$f":"'[2]5.2 Asset Age Profile'!DL30","v":0},{"$f":"'[2]5.2 Asset Age Profile'!DM30","v":0},{"$f":"'[2]5.2 Asset Age Profile'!DN30","v":0},{"$f":"'[2]5.2 Asset Age Profile'!DO30","v":0},{"$f":"'[2]5.2 Asset Age Profile'!DP30","v":57},{"$f":"'[2]5.2 Asset Age Profile'!DQ30","v":10},{"$f":"'[2]5.2 Asset Age Profile'!DR30","v":0},{"$f":"'[2]5.2 Asset Age Profile'!DS30","v":0},{"$f":"'[2]5.2 Asset Age Profile'!DT30","v":0},{"$f":"'[2]5.2 Asset Age Profile'!DU30","v":0},{"$f":"'[2]5.2 Asset Age Profile'!DV30","v":0},{"$f":"'[2]5.2 Asset Age Profile'!DW30","v":0},{"$f":"'[2]5.2 Asset Age Profile'!DX30","v":0},{"$f":"'[2]5.2 Asset Age Profile'!DY30","v":0},{"$f":"'[2]5.2 Asset Age Profile'!DZ30","v":0},{"$f":"'[2]5.2 Asset Age Profile'!EA30","v":0},{"$f":"'[2]5.2 Asset Age Profile'!EB30","v":0},{"$f":"'[2]5.2 Asset Age Profile'!EC30","v":0},{"$f":"'[2]5.2 Asset Age Profile'!ED30","v":0},{"$f":"'[2]5.2 Asset Age Profile'!EE30","v":0},{"$f":"'[2]5.2 Asset Age Profile'!EF30","v":0},{"$f":"'[2]5.2 Asset Age Profile'!EG30","v":0},{"$f":"'[2]5.2 Asset Age Profile'!EH30","v":0},{"$f":"'[2]5.2 Asset Age Profile'!EI30","v":0},{"$f":"'[2]5.2 Asset Age Profile'!EJ30","v":0}]
["ED_ASS521_00021","POLE TOP STRUCTURES BY: \nHighest operating voltage","˂ = 1 kV",null,null,null,null,null,null,null,null,null,null,{"$f":"'[2]5.2 Asset Age Profile'!N31","v":0},{"$f":"'[2]5.2 Asset Age Profile'!O31","v":0},{"$f":"'[2]5.2 Asset Age Profile'!P31","v":0},{"$f":"'[2]5.2 Asset Age Profile'!Q31","v":0},{"$f":"'[2]5.2 Asset Age Profile'!R31","v":0},{"$f":"'[2]5.2 Asset Age Profile'!S31","v":0},{"$f":"'[2]5.2 Asset Age Profile'!T31","v":0},{"$f":"'[2]5.2 Asset Age Profile'!U31","v":0},{"$f":"'[2]5.2 Asset Age Profile'!V31","v":0},{"$f":"'[2]5.2 Asset Age Profile'!W31","v":0},{"$f":"'[2]5.2 Asset Age Profile'!X31","v":0},{"$f":"'[2]5.2 Asset Age Profile'!Y31","v":0},{"$f":"'[2]5.2 Asset Age Profile'!Z31","v":0},{"$f":"'[2]5.2 Asset Age Profile'!AA31","v":0},{"$f":"'[2]5.2 Asset Age Profile'!AB31","v":0},{"$f":"'[2]5.2 Asset Age Profile'!AC31","v":0},{"$f":"'[2]5.2 Asset Age Profile'!AD31","v":0},{"$f":"'[2]5.2 Asset Age Profile'!AE31","v":0},{"$f":"'[2]5.2 Asset Age Profile'!AF31","v":0},{"$f":"'[2]5.2 Asset Age Profile'!AG31","v":0},{"$f":"'[2]5.2 Asset Age Profile'!AH31","v":0},{"$f":"'[2]5.2 Asset Age Profile'!AI31","v":0},{"$f":"'[2]5.2 Asset Age Profile'!AJ31","v":0},{"$f":"'[2]5.2 Asset Age Profile'!AK31","v":0},{"$f":"'[2]5.2 Asset Age Profile'!AL31","v":0},{"$f":"'[2]5.2 Asset Age Profile'!AM31","v":0},{"$f":"'[2]5.2 Asset Age Profile'!AN31","v":0},{"$f":"'[2]5.2 Asset Age Profile'!AO31","v":0},{"$f":"'[2]5.2 Asset Age Profile'!AP31","v":0},{"$f":"'[2]5.2 Asset Age Profile'!AQ31","v":0},{"$f":"'[2]5.2 Asset Age Profile'!AR31","v":0},{"$f":"'[2]5.2 Asset Age Profile'!AS31","v":0},{"$f":"'[2]5.2 Asset Age Profile'!AT31","v":0},{"$f":"'[2]5.2 Asset Age Profile'!AU31","v":0},{"$f":"'[2]5.2 Asset Age Profile'!AV31","v":0},{"$f":"'[2]5.2 Asset Age Profile'!AW31","v":0},{"$f":"'[2]5.2 Asset Age Profile'!AX31","v":0},{"$f":"'[2]5.2 Asset Age Profile'!AY31","v":0},{"$f":"'[2]5.2 Asset Age Profile'!AZ31","v":0},{"$f":"'[2]5.2 Asset Age Profile'!BA31","v":0},{"$f":"'[2]5.2 Asset Age Profile'!BB31","v":0},{"$f":"'[2]5.2 Asset Age Profile'!BC31","v":0},{"$f":"'[2]5.2 Asset Age Profile'!BD31","v":0},{"$f":"'[2]5.2 Asset Age Profile'!BE31","v":0},{"$f":"'[2]5.2 Asset Age Profile'!BF31","v":0},{"$f":"'[2]5.2 Asset Age Profile'!BG31","v":0},{"$f":"'[2]5.2 Asset Age Profile'!BH31","v":0},{"$f":"'[2]5.2 Asset Age Profile'!BI31","v":0},{"$f":"'[2]5.2 Asset Age Profile'!BJ31","v":0},{"$f":"'[2]5.2 Asset Age Profile'!BK31","v":0},{"$f":"'[2]5.2 Asset Age Profile'!BL31","v":0},{"$f":"'[2]5.2 Asset Age Profile'!BM31","v":0},{"$f":"'[2]5.2 Asset Age Profile'!BN31","v":0},{"$f":"'[2]5.2 Asset Age Profile'!BO31","v":0},{"$f":"'[2]5.2 Asset Age Profile'!BP31","v":0},{"$f":"'[2]5.2 Asset Age Profile'!BQ31","v":0},{"$f":"'[2]5.2 Asset Age Profile'!BR31","v":0},{"$f":"'[2]5.2 Asset Age Profile'!BS31","v":0},{"$f":"'[2]5.2 Asset Age Profile'!BT31","v":0},{"$f":"'[2]5.2 Asset Age Profile'!BU31","v":0},{"$f":"'[2]5.2 Asset Age Profile'!BV31","v":0},{"$f":"'[2]5.2 Asset Age Profile'!BW31","v":0},{"$f":"'[2]5.2 Asset Age Profile'!BX31","v":0},{"$f":"'[2]5.2 Asset Age Profile'!BY31","v":0},{"$f":"'[2]5.2 Asset Age Profile'!BZ31","v":0},{"$f":"'[2]5.2 Asset Age Profile'!CA31","v":0},{"$f":"'[2]5.2 Asset Age Profile'!CB31","v":0},{"$f":"'[2]5.2 Asset Age Profile'!CC31","v":0},{"$f":"'[2]5.2 Asset Age Profile'!CD31","v":0},{"$f":"'[2]5.2 Asset Age Profile'!CE31","v":0},{"$f":"'[2]5.2 Asset Age Profile'!CF31","v":0},{"$f":"'[2]5.2 Asset Age Profile'!CG31","v":0},{"$f":"'[2]5.2 Asset Age Profile'!CH31","v":0},{"$f":"'[2]5.2 Asset Age Profile'!CI31","v":0},{"$f":"'[2]5.2 Asset Age Profile'!CJ31","v":0},{"$f":"'[2]5.2 Asset Age Profile'!CK31","v":0},{"$f":"'[2]5.2 Asset Age Profile'!CL31","v":0},{"$f":"'[2]5.2 Asset Age Profile'!CM31","v":0},{"$f":"'[2]5.2 Asset Age Profile'!CN31","v":0},{"$f":"'[2]5.2 Asset Age Profile'!CO31","v":0},{"$f":"'[2]5.2 Asset Age Profile'!CP31","v":0},{"$f":"'[2]5.2 Asset Age Profile'!CQ31","v":0},{"$f":"'[2]5.2 Asset Age Profile'!CR31","v":0},{"$f":"'[2]5.2 Asset Age Profile'!CS31","v":0},{"$f":"'[2]5.2 Asset Age Profile'!CT31","v":0},{"$f":"'[2]5.2 Asset Age Profile'!CU31","v":0},{"$f":"'[2]5.2 Asset Age Profile'!CV31","v":0},{"$f":"'[2]5.2 Asset Age Profile'!CW31","v":0},{"$f":"'[2]5.2 Asset Age Profile'!CX31","v":0},{"$f":"'[2]5.2 Asset Age Profile'!CY31","v":0},{"$f":"'[2]5.2 Asset Age Profile'!CZ31","v":0},{"$f":"'[2]5.2 Asset Age Profile'!DA31","v":0},{"$f":"'[2]5.2 Asset Age Profile'!DB31","v":0},{"$f":"'[2]5.2 Asset Age Profile'!DC31","v":0},{"$f":"'[2]5.2 Asset Age Profile'!DD31","v":0},{"$f":"'[2]5.2 Asset Age Profile'!DE31","v":0},{"$f":"'[2]5.2 Asset Age Profile'!DF31","v":0},{"$f":"'[2]5.2 Asset Age Profile'!DG31","v":0},{"$f":"'[2]5.2 Asset Age Profile'!DH31","v":0},{"$f":"'[2]5.2 Asset Age Profile'!DI31","v":0},{"$f":"'[2]5.2 Asset Age Profile'!DJ31","v":0},{"$f":"'[2]5.2 Asset Age Profile'!DK31","v":0},{"$f":"'[2]5.2 Asset Age Profile'!DL31","v":0},{"$f":"'[2]5.2 Asset Age Profile'!DM31","v":0},{"$f":"'[2]5.2 Asset Age Profile'!DN31","v":0},{"$f":"'[2]5.2 Asset Age Profile'!DO31","v":0},{"$f":"'[2]5.2 Asset Age Profile'!DP31","v":0},{"$f":"'[2]5.2 Asset Age Profile'!DQ31","v":0},{"$f":"'[2]5.2 Asset Age Profile'!DR31","v":0},{"$f":"'[2]5.2 Asset Age Profile'!DS31","v":0},{"$f":"'[2]5.2 Asset Age Profile'!DT31","v":0},{"$f":"'[2]5.2 Asset Age Profile'!DU31","v":0},{"$f":"'[2]5.2 Asset Age Profile'!DV31","v":0},{"$f":"'[2]5.2 Asset Age Profile'!DW31","v":0},{"$f":"'[2]5.2 Asset Age Profile'!DX31","v":0},{"$f":"'[2]5.2 Asset Age Profile'!DY31","v":0},{"$f":"'[2]5.2 Asset Age Profile'!DZ31","v":0},{"$f":"'[2]5.2 Asset Age Profile'!EA31","v":0},{"$f":"'[2]5.2 Asset Age Profile'!EB31","v":0},{"$f":"'[2]5.2 Asset Age Profile'!EC31","v":0},{"$f":"'[2]5.2 Asset Age Profile'!ED31","v":0},{"$f":"'[2]5.2 Asset Age Profile'!EE31","v":0},{"$f":"'[2]5.2 Asset Age Profile'!EF31","v":0},{"$f":"'[2]5.2 Asset Age Profile'!EG31","v":0},{"$f":"'[2]5.2 Asset Age Profile'!EH31","v":0},{"$f":"'[2]5.2 Asset Age Profile'!EI31","v":0},{"$f":"'[2]5.2 Asset Age Profile'!EJ31","v":0}]
["ED_ASS521_00022",null,"> 1 kV & < = 11 kV",null,null,null,null,null,null,null,null,null,null,{"$f":"'[2]5.2 Asset Age Profile'!N32","v":0},{"$f":"'[2]5.2 Asset Age Profile'!O32","v":0},{"$f":"'[2]5.2 Asset Age Profile'!P32","v":0},{"$f":"'[2]5.2 Asset Age Profile'!Q32","v":0},{"$f":"'[2]5.2 Asset Age Profile'!R32","v":0},{"$f":"'[2]5.2 Asset Age Profile'!S32","v":0},{"$f":"'[2]5.2 Asset Age Profile'!T32","v":0},{"$f":"'[2]5.2 Asset Age Profile'!U32","v":0},{"$f":"'[2]5.2 Asset Age Profile'!V32","v":0},{"$f":"'[2]5.2 Asset Age Profile'!W32","v":0},{"$f":"'[2]5.2 Asset Age Profile'!X32","v":0},{"$f":"'[2]5.2 Asset Age Profile'!Y32","v":0},{"$f":"'[2]5.2 Asset Age Profile'!Z32","v":0},{"$f":"'[2]5.2 Asset Age Profile'!AA32","v":0},{"$f":"'[2]5.2 Asset Age Profile'!AB32","v":0},{"$f":"'[2]5.2 Asset Age Profile'!AC32","v":0},{"$f":"'[2]5.2 Asset Age Profile'!AD32","v":0},{"$f":"'[2]5.2 Asset Age Profile'!AE32","v":0},{"$f":"'[2]5.2 Asset Age Profile'!AF32","v":0},{"$f":"'[2]5.2 Asset Age Profile'!AG32","v":0},{"$f":"'[2]5.2 Asset Age Profile'!AH32","v":0},{"$f":"'[2]5.2 Asset Age Profile'!AI32","v":0},{"$f":"'[2]5.2 Asset Age Profile'!AJ32","v":0},{"$f":"'[2]5.2 Asset Age Profile'!AK32","v":0},{"$f":"'[2]5.2 Asset Age Profile'!AL32","v":0},{"$f":"'[2]5.2 Asset Age Profile'!AM32","v":0},{"$f":"'[2]5.2 Asset Age Profile'!AN32","v":0},{"$f":"'[2]5.2 Asset Age Profile'!AO32","v":0},{"$f":"'[2]5.2 Asset Age Profile'!AP32","v":0},{"$f":"'[2]5.2 Asset Age Profile'!AQ32","v":0},{"$f":"'[2]5.2 Asset Age Profile'!AR32","v":0},{"$f":"'[2]5.2 Asset Age Profile'!AS32","v":0},{"$f":"'[2]5.2 Asset Age Profile'!AT32","v":0},{"$f":"'[2]5.2 Asset Age Profile'!AU32","v":0},{"$f":"'[2]5.2 Asset Age Profile'!AV32","v":0},{"$f":"'[2]5.2 Asset Age Profile'!AW32","v":0},{"$f":"'[2]5.2 Asset Age Profile'!AX32","v":0},{"$f":"'[2]5.2 Asset Age Profile'!AY32","v":0},{"$f":"'[2]5.2 Asset Age Profile'!AZ32","v":0},{"$f":"'[2]5.2 Asset Age Profile'!BA32","v":0},{"$f":"'[2]5.2 Asset Age Profile'!BB32","v":0},{"$f":"'[2]5.2 Asset Age Profile'!BC32","v":0},{"$f":"'[2]5.2 Asset Age Profile'!BD32","v":0},{"$f":"'[2]5.2 Asset Age Profile'!BE32","v":0},{"$f":"'[2]5.2 Asset Age Profile'!BF32","v":0},{"$f":"'[2]5.2 Asset Age Profile'!BG32","v":0},{"$f":"'[2]5.2 Asset Age Profile'!BH32","v":0},{"$f":"'[2]5.2 Asset Age Profile'!BI32","v":0},{"$f":"'[2]5.2 Asset Age Profile'!BJ32","v":0},{"$f":"'[2]5.2 Asset Age Profile'!BK32","v":0},{"$f":"'[2]5.2 Asset Age Profile'!BL32","v":0},{"$f":"'[2]5.2 Asset Age Profile'!BM32","v":0},{"$f":"'[2]5.2 Asset Age Profile'!BN32","v":0},{"$f":"'[2]5.2 Asset Age Profile'!BO32","v":0},{"$f":"'[2]5.2 Asset Age Profile'!BP32","v":0},{"$f":"'[2]5.2 Asset Age Profile'!BQ32","v":0},{"$f":"'[2]5.2 Asset Age Profile'!BR32","v":0},{"$f":"'[2]5.2 Asset Age Profile'!BS32","v":0},{"$f":"'[2]5.2 Asset Age Profile'!BT32","v":0},{"$f":"'[2]5.2 Asset Age Profile'!BU32","v":0},{"$f":"'[2]5.2 Asset Age Profile'!BV32","v":0},{"$f":"'[2]5.2 Asset Age Profile'!BW32","v":0},{"$f":"'[2]5.2 Asset Age Profile'!BX32","v":0},{"$f":"'[2]5.2 Asset Age Profile'!BY32","v":0},{"$f":"'[2]5.2 Asset Age Profile'!BZ32","v":0},{"$f":"'[2]5.2 Asset Age Profile'!CA32","v":0},{"$f":"'[2]5.2 Asset Age Profile'!CB32","v":0},{"$f":"'[2]5.2 Asset Age Profile'!CC32","v":0},{"$f":"'[2]5.2 Asset Age Profile'!CD32","v":0},{"$f":"'[2]5.2 Asset Age Profile'!CE32","v":0},{"$f":"'[2]5.2 Asset Age Profile'!CF32","v":0},{"$f":"'[2]5.2 Asset Age Profile'!CG32","v":0},{"$f":"'[2]5.2 Asset Age Profile'!CH32","v":0},{"$f":"'[2]5.2 Asset Age Profile'!CI32","v":0},{"$f":"'[2]5.2 Asset Age Profile'!CJ32","v":0},{"$f":"'[2]5.2 Asset Age Profile'!CK32","v":0},{"$f":"'[2]5.2 Asset Age Profile'!CL32","v":0},{"$f":"'[2]5.2 Asset Age Profile'!CM32","v":0},{"$f":"'[2]5.2 Asset Age Profile'!CN32","v":0},{"$f":"'[2]5.2 Asset Age Profile'!CO32","v":0},{"$f":"'[2]5.2 Asset Age Profile'!CP32","v":0},{"$f":"'[2]5.2 Asset Age Profile'!CQ32","v":0},{"$f":"'[2]5.2 Asset Age Profile'!CR32","v":0},{"$f":"'[2]5.2 Asset Age Profile'!CS32","v":0},{"$f":"'[2]5.2 Asset Age Profile'!CT32","v":0},{"$f":"'[2]5.2 Asset Age Profile'!CU32","v":0},{"$f":"'[2]5.2 Asset Age Profile'!CV32","v":0},{"$f":"'[2]5.2 Asset Age Profile'!CW32","v":0},{"$f":"'[2]5.2 Asset Age Profile'!CX32","v":0},{"$f":"'[2]5.2 Asset Age Profile'!CY32","v":0},{"$f":"'[2]5.2 Asset Age Profile'!CZ32","v":0},{"$f":"'[2]5.2 Asset Age Profile'!DA32","v":0},{"$f":"'[2]5.2 Asset Age Profile'!DB32","v":0},{"$f":"'[2]5.2 Asset Age Profile'!DC32","v":0},{"$f":"'[2]5.2 Asset Age Profile'!DD32","v":0},{"$f":"'[2]5.2 Asset Age Profile'!DE32","v":0},{"$f":"'[2]5.2 Asset Age Profile'!DF32","v":0},{"$f":"'[2]5.2 Asset Age Profile'!DG32","v":0},{"$f":"'[2]5.2 Asset Age Profile'!DH32","v":0},{"$f":"'[2]5.2 Asset Age Profile'!DI32","v":0},{"$f":"'[2]5.2 Asset Age Profile'!DJ32","v":0},{"$f":"'[2]5.2 Asset Age Profile'!DK32","v":0},{"$f":"'[2]5.2 Asset Age Profile'!DL32","v":0},{"$f":"'[2]5.2 Asset Age Profile'!DM32","v":0},{"$f":"'[2]5.2 Asset Age Profile'!DN32","v":0},{"$f":"'[2]5.2 Asset Age Profile'!DO32","v":0},{"$f":"'[2]5.2 Asset Age Profile'!DP32","v":0},{"$f":"'[2]5.2 Asset Age Profile'!DQ32","v":0},{"$f":"'[2]5.2 Asset Age Profile'!DR32","v":0},{"$f":"'[2]5.2 Asset Age Profile'!DS32","v":0},{"$f":"'[2]5.2 Asset Age Profile'!DT32","v":0},{"$f":"'[2]5.2 Asset Age Profile'!DU32","v":0},{"$f":"'[2]5.2 Asset Age Profile'!DV32","v":0},{"$f":"'[2]5.2 Asset Age Profile'!DW32","v":0},{"$f":"'[2]5.2 Asset Age Profile'!DX32","v":0},{"$f":"'[2]5.2 Asset Age Profile'!DY32","v":0},{"$f":"'[2]5.2 Asset Age Profile'!DZ32","v":0},{"$f":"'[2]5.2 Asset Age Profile'!EA32","v":0},{"$f":"'[2]5.2 Asset Age Profile'!EB32","v":0},{"$f":"'[2]5.2 Asset Age Profile'!EC32","v":0},{"$f":"'[2]5.2 Asset Age Profile'!ED32","v":0},{"$f":"'[2]5.2 Asset Age Profile'!EE32","v":0},{"$f":"'[2]5.2 Asset Age Profile'!EF32","v":0},{"$f":"'[2]5.2 Asset Age Profile'!EG32","v":0},{"$f":"'[2]5.2 Asset Age Profile'!EH32","v":0},{"$f":"'[2]5.2 Asset Age Profile'!EI32","v":0},{"$f":"'[2]5.2 Asset Age Profile'!EJ32","v":0}]
["ED_ASS521_00023",null,"˃ 11 kV & < = 22 kV",null,null,null,null,null,null,null,null,null,null,{"$f":"'[2]5.2 Asset Age Profile'!N33","v":0},{"$f":"'[2]5.2 Asset Age Profile'!O33","v":0},{"$f":"'[2]5.2 Asset Age Profile'!P33","v":0},{"$f":"'[2]5.2 Asset Age Profile'!Q33","v":0},{"$f":"'[2]5.2 Asset Age Profile'!R33","v":0},{"$f":"'[2]5.2 Asset Age Profile'!S33","v":0},{"$f":"'[2]5.2 Asset Age Profile'!T33","v":0},{"$f":"'[2]5.2 Asset Age Profile'!U33","v":0},{"$f":"'[2]5.2 Asset Age Profile'!V33","v":0},{"$f":"'[2]5.2 Asset Age Profile'!W33","v":0},{"$f":"'[2]5.2 Asset Age Profile'!X33","v":0},{"$f":"'[2]5.2 Asset Age Profile'!Y33","v":0},{"$f":"'[2]5.2 Asset Age Profile'!Z33","v":0},{"$f":"'[2]5.2 Asset Age Profile'!AA33","v":0},{"$f":"'[2]5.2 Asset Age Profile'!AB33","v":0},{"$f":"'[2]5.2 Asset Age Profile'!AC33","v":0},{"$f":"'[2]5.2 Asset Age Profile'!AD33","v":0},{"$f":"'[2]5.2 Asset Age Profile'!AE33","v":0},{"$f":"'[2]5.2 Asset Age Profile'!AF33","v":0},{"$f":"'[2]5.2 Asset Age Profile'!AG33","v":0},{"$f":"'[2]5.2 Asset Age Profile'!AH33","v":0},{"$f":"'[2]5.2 Asset Age Profile'!AI33","v":0},{"$f":"'[2]5.2 Asset Age Profile'!AJ33","v":0},{"$f":"'[2]5.2 Asset Age Profile'!AK33","v":0},{"$f":"'[2]5.2 Asset Age Profile'!AL33","v":0},{"$f":"'[2]5.2 Asset Age Profile'!AM33","v":0},{"$f":"'[2]5.2 Asset Age Profile'!AN33","v":0},{"$f":"'[2]5.2 Asset Age Profile'!AO33","v":0},{"$f":"'[2]5.2 Asset Age Profile'!AP33","v":0},{"$f":"'[2]5.2 Asset Age Profile'!AQ33","v":0},{"$f":"'[2]5.2 Asset Age Profile'!AR33","v":0},{"$f":"'[2]5.2 Asset Age Profile'!AS33","v":0},{"$f":"'[2]5.2 Asset Age Profile'!AT33","v":0},{"$f":"'[2]5.2 Asset Age Profile'!AU33","v":0},{"$f":"'[2]5.2 Asset Age Profile'!AV33","v":0},{"$f":"'[2]5.2 Asset Age Profile'!AW33","v":0},{"$f":"'[2]5.2 Asset Age Profile'!AX33","v":0},{"$f":"'[2]5.2 Asset Age Profile'!AY33","v":0},{"$f":"'[2]5.2 Asset Age Profile'!AZ33","v":0},{"$f":"'[2]5.2 Asset Age Profile'!BA33","v":0},{"$f":"'[2]5.2 Asset Age Profile'!BB33","v":0},{"$f":"'[2]5.2 Asset Age Profile'!BC33","v":0},{"$f":"'[2]5.2 Asset Age Profile'!BD33","v":0},{"$f":"'[2]5.2 Asset Age Profile'!BE33","v":0},{"$f":"'[2]5.2 Asset Age Profile'!BF33","v":0},{"$f":"'[2]5.2 Asset Age Profile'!BG33","v":0},{"$f":"'[2]5.2 Asset Age Profile'!BH33","v":0},{"$f":"'[2]5.2 Asset Age Profile'!BI33","v":0},{"$f":"'[2]5.2 Asset Age Profile'!BJ33","v":0},{"$f":"'[2]5.2 Asset Age Profile'!BK33","v":0},{"$f":"'[2]5.2 Asset Age Profile'!BL33","v":0},{"$f":"'[2]5.2 Asset Age Profile'!BM33","v":0},{"$f":"'[2]5.2 Asset Age Profile'!BN33","v":0},{"$f":"'[2]5.2 Asset Age Profile'!BO33","v":0},{"$f":"'[2]5.2 Asset Age Profile'!BP33","v":0},{"$f":"'[2]5.2 Asset Age Profile'!BQ33","v":0},{"$f":"'[2]5.2 Asset Age Profile'!BR33","v":0},{"$f":"'[2]5.2 Asset Age Profile'!BS33","v":0},{"$f":"'[2]5.2 Asset Age Profile'!BT33","v":0},{"$f":"'[2]5.2 Asset Age Profile'!BU33","v":0},{"$f":"'[2]5.2 Asset Age Profile'!BV33","v":0},{"$f":"'[2]5.2 Asset Age Profile'!BW33","v":0},{"$f":"'[2]5.2 Asset Age Profile'!BX33","v":0},{"$f":"'[2]5.2 Asset Age Profile'!BY33","v":0},{"$f":"'[2]5.2 Asset Age Profile'!BZ33","v":0},{"$f":"'[2]5.2 Asset Age Profile'!CA33","v":0},{"$f":"'[2]5.2 Asset Age Profile'!CB33","v":0},{"$f":"'[2]5.2 Asset Age Profile'!CC33","v":0},{"$f":"'[2]5.2 Asset Age Profile'!CD33","v":0},{"$f":"'[2]5.2 Asset Age Profile'!CE33","v":0},{"$f":"'[2]5.2 Asset Age Profile'!CF33","v":0},{"$f":"'[2]5.2 Asset Age Profile'!CG33","v":0},{"$f":"'[2]5.2 Asset Age Profile'!CH33","v":0},{"$f":"'[2]5.2 Asset Age Profile'!CI33","v":0},{"$f":"'[2]5.2 Asset Age Profile'!CJ33","v":0},{"$f":"'[2]5.2 Asset Age Profile'!CK33","v":0},{"$f":"'[2]5.2 Asset Age Profile'!CL33","v":0},{"$f":"'[2]5.2 Asset Age Profile'!CM33","v":0},{"$f":"'[2]5.2 Asset Age Profile'!CN33","v":0},{"$f":"'[2]5.2 Asset Age Profile'!CO33","v":0},{"$f":"'[2]5.2 Asset Age Profile'!CP33","v":0},{"$f":"'[2]5.2 Asset Age Profile'!CQ33","v":0},{"$f":"'[2]5.2 Asset Age Profile'!CR33","v":0},{"$f":"'[2]5.2 Asset Age Profile'!CS33","v":0},{"$f":"'[2]5.2 Asset Age Profile'!CT33","v":0},{"$f":"'[2]5.2 Asset Age Profile'!CU33","v":0},{"$f":"'[2]5.2 Asset Age Profile'!CV33","v":0},{"$f":"'[2]5.2 Asset Age Profile'!CW33","v":0},{"$f":"'[2]5.2 Asset Age Profile'!CX33","v":0},{"$f":"'[2]5.2 Asset Age Profile'!CY33","v":0},{"$f":"'[2]5.2 Asset Age Profile'!CZ33","v":0},{"$f":"'[2]5.2 Asset Age Profile'!DA33","v":0},{"$f":"'[2]5.2 Asset Age Profile'!DB33","v":0},{"$f":"'[2]5.2 Asset Age Profile'!DC33","v":0},{"$f":"'[2]5.2 Asset Age Profile'!DD33","v":0},{"$f":"'[2]5.2 Asset Age Profile'!DE33","v":0},{"$f":"'[2]5.2 Asset Age Profile'!DF33","v":0},{"$f":"'[2]5.2 Asset Age Profile'!DG33","v":0},{"$f":"'[2]5.2 Asset Age Profile'!DH33","v":0},{"$f":"'[2]5.2 Asset Age Profile'!DI33","v":0},{"$f":"'[2]5.2 Asset Age Profile'!DJ33","v":0},{"$f":"'[2]5.2 Asset Age Profile'!DK33","v":0},{"$f":"'[2]5.2 Asset Age Profile'!DL33","v":0},{"$f":"'[2]5.2 Asset Age Profile'!DM33","v":0},{"$f":"'[2]5.2 Asset Age Profile'!DN33","v":0},{"$f":"'[2]5.2 Asset Age Profile'!DO33","v":0},{"$f":"'[2]5.2 Asset Age Profile'!DP33","v":0},{"$f":"'[2]5.2 Asset Age Profile'!DQ33","v":0},{"$f":"'[2]5.2 Asset Age Profile'!DR33","v":0},{"$f":"'[2]5.2 Asset Age Profile'!DS33","v":0},{"$f":"'[2]5.2 Asset Age Profile'!DT33","v":0},{"$f":"'[2]5.2 Asset Age Profile'!DU33","v":0},{"$f":"'[2]5.2 Asset Age Profile'!DV33","v":0},{"$f":"'[2]5.2 Asset Age Profile'!DW33","v":0},{"$f":"'[2]5.2 Asset Age Profile'!DX33","v":0},{"$f":"'[2]5.2 Asset Age Profile'!DY33","v":0},{"$f":"'[2]5.2 Asset Age Profile'!DZ33","v":0},{"$f":"'[2]5.2 Asset Age Profile'!EA33","v":0},{"$f":"'[2]5.2 Asset Age Profile'!EB33","v":0},{"$f":"'[2]5.2 Asset Age Profile'!EC33","v":0},{"$f":"'[2]5.2 Asset Age Profile'!ED33","v":0},{"$f":"'[2]5.2 Asset Age Profile'!EE33","v":0},{"$f":"'[2]5.2 Asset Age Profile'!EF33","v":0},{"$f":"'[2]5.2 Asset Age Profile'!EG33","v":0},{"$f":"'[2]5.2 Asset Age Profile'!EH33","v":0},{"$f":"'[2]5.2 Asset Age Profile'!EI33","v":0},{"$f":"'[2]5.2 Asset Age Profile'!EJ33","v":0}]
["ED_ASS521_00024",null,"> 22 kV & < = 66 kV",null,null,null,null,null,null,null,null,null,null,{"$f":"'[2]5.2 Asset Age Profile'!N34","v":0},{"$f":"'[2]5.2 Asset Age Profile'!O34","v":0},{"$f":"'[2]5.2 Asset Age Profile'!P34","v":0},{"$f":"'[2]5.2 Asset Age Profile'!Q34","v":0},{"$f":"'[2]5.2 Asset Age Profile'!R34","v":0},{"$f":"'[2]5.2 Asset Age Profile'!S34","v":0},{"$f":"'[2]5.2 Asset Age Profile'!T34","v":0},{"$f":"'[2]5.2 Asset Age Profile'!U34","v":0},{"$f":"'[2]5.2 Asset Age Profile'!V34","v":0},{"$f":"'[2]5.2 Asset Age Profile'!W34","v":0},{"$f":"'[2]5.2 Asset Age Profile'!X34","v":0},{"$f":"'[2]5.2 Asset Age Profile'!Y34","v":0},{"$f":"'[2]5.2 Asset Age Profile'!Z34","v":0},{"$f":"'[2]5.2 Asset Age Profile'!AA34","v":0},{"$f":"'[2]5.2 Asset Age Profile'!AB34","v":0},{"$f":"'[2]5.2 Asset Age Profile'!AC34","v":0},{"$f":"'[2]5.2 Asset Age Profile'!AD34","v":0},{"$f":"'[2]5.2 Asset Age Profile'!AE34","v":0},{"$f":"'[2]5.2 Asset Age Profile'!AF34","v":0},{"$f":"'[2]5.2 Asset Age Profile'!AG34","v":0},{"$f":"'[2]5.2 Asset Age Profile'!AH34","v":0},{"$f":"'[2]5.2 Asset Age Profile'!AI34","v":0},{"$f":"'[2]5.2 Asset Age Profile'!AJ34","v":0},{"$f":"'[2]5.2 Asset Age Profile'!AK34","v":0},{"$f":"'[2]5.2 Asset Age Profile'!AL34","v":0},{"$f":"'[2]5.2 Asset Age Profile'!AM34","v":0},{"$f":"'[2]5.2 Asset Age Profile'!AN34","v":0},{"$f":"'[2]5.2 Asset Age Profile'!AO34","v":0},{"$f":"'[2]5.2 Asset Age Profile'!AP34","v":0},{"$f":"'[2]5.2 Asset Age Profile'!AQ34","v":0},{"$f":"'[2]5.2 Asset Age Profile'!AR34","v":0},{"$f":"'[2]5.2 Asset Age Profile'!AS34","v":0},{"$f":"'[2]5.2 Asset Age Profile'!AT34","v":0},{"$f":"'[2]5.2 Asset Age Profile'!AU34","v":0},{"$f":"'[2]5.2 Asset Age Profile'!AV34","v":0},{"$f":"'[2]5.2 Asset Age Profile'!AW34","v":0},{"$f":"'[2]5.2 Asset Age Profile'!AX34","v":0},{"$f":"'[2]5.2 Asset Age Profile'!AY34","v":0},{"$f":"'[2]5.2 Asset Age Profile'!AZ34","v":0},{"$f":"'[2]5.2 Asset Age Profile'!BA34","v":0},{"$f":"'[2]5.2 Asset Age Profile'!BB34","v":0},{"$f":"'[2]5.2 Asset Age Profile'!BC34","v":0},{"$f":"'[2]5.2 Asset Age Profile'!BD34","v":0},{"$f":"'[2]5.2 Asset Age Profile'!BE34","v":0},{"$f":"'[2]5.2 Asset Age Profile'!BF34","v":0},{"$f":"'[2]5.2 Asset Age Profile'!BG34","v":0},{"$f":"'[2]5.2 Asset Age Profile'!BH34","v":0},{"$f":"'[2]5.2 Asset Age Profile'!BI34","v":0},{"$f":"'[2]5.2 Asset Age Profile'!BJ34","v":0},{"$f":"'[2]5.2 Asset Age Profile'!BK34","v":0},{"$f":"'[2]5.2 Asset Age Profile'!BL34","v":0},{"$f":"'[2]5.2 Asset Age Profile'!BM34","v":0},{"$f":"'[2]5.2 Asset Age Profile'!BN34","v":0},{"$f":"'[2]5.2 Asset Age Profile'!BO34","v":0},{"$f":"'[2]5.2 Asset Age Profile'!BP34","v":0},{"$f":"'[2]5.2 Asset Age Profile'!BQ34","v":0},{"$f":"'[2]5.2 Asset Age Profile'!BR34","v":0},{"$f":"'[2]5.2 Asset Age Profile'!BS34","v":0},{"$f":"'[2]5.2 Asset Age Profile'!BT34","v":0},{"$f":"'[2]5.2 Asset Age Profile'!BU34","v":0},{"$f":"'[2]5.2 Asset Age Profile'!BV34","v":0},{"$f":"'[2]5.2 Asset Age Profile'!BW34","v":0},{"$f":"'[2]5.2 Asset Age Profile'!BX34","v":0},{"$f":"'[2]5.2 Asset Age Profile'!BY34","v":0},{"$f":"'[2]5.2 Asset Age Profile'!BZ34","v":0},{"$f":"'[2]5.2 Asset Age Profile'!CA34","v":0},{"$f":"'[2]5.2 Asset Age Profile'!CB34","v":0},{"$f":"'[2]5.2 Asset Age Profile'!CC34","v":0},{"$f":"'[2]5.2 Asset Age Profile'!CD34","v":0},{"$f":"'[2]5.2 Asset Age Profile'!CE34","v":0},{"$f":"'[2]5.2 Asset Age Profile'!CF34","v":0},{"$f":"'[2]5.2 Asset Age Profile'!CG34","v":0},{"$f":"'[2]5.2 Asset Age Profile'!CH34","v":0},{"$f":"'[2]5.2 Asset Age Profile'!CI34","v":0},{"$f":"'[2]5.2 Asset Age Profile'!CJ34","v":0},{"$f":"'[2]5.2 Asset Age Profile'!CK34","v":0},{"$f":"'[2]5.2 Asset Age Profile'!CL34","v":0},{"$f":"'[2]5.2 Asset Age Profile'!CM34","v":0},{"$f":"'[2]5.2 Asset Age Profile'!CN34","v":0},{"$f":"'[2]5.2 Asset Age Profile'!CO34","v":0},{"$f":"'[2]5.2 Asset Age Profile'!CP34","v":0},{"$f":"'[2]5.2 Asset Age Profile'!CQ34","v":0},{"$f":"'[2]5.2 Asset Age Profile'!CR34","v":0},{"$f":"'[2]5.2 Asset Age Profile'!CS34","v":0},{"$f":"'[2]5.2 Asset Age Profile'!CT34","v":0},{"$f":"'[2]5.2 Asset Age Profile'!CU34","v":0},{"$f":"'[2]5.2 Asset Age Profile'!CV34","v":0},{"$f":"'[2]5.2 Asset Age Profile'!CW34","v":0},{"$f":"'[2]5.2 Asset Age Profile'!CX34","v":0},{"$f":"'[2]5.2 Asset Age Profile'!CY34","v":0},{"$f":"'[2]5.2 Asset Age Profile'!CZ34","v":0},{"$f":"'[2]5.2 Asset Age Profile'!DA34","v":0},{"$f":"'[2]5.2 Asset Age Profile'!DB34","v":0},{"$f":"'[2]5.2 Asset Age Profile'!DC34","v":0},{"$f":"'[2]5.2 Asset Age Profile'!DD34","v":0},{"$f":"'[2]5.2 Asset Age Profile'!DE34","v":0},{"$f":"'[2]5.2 Asset Age Profile'!DF34","v":0},{"$f":"'[2]5.2 Asset Age Profile'!DG34","v":0},{"$f":"'[2]5.2 Asset Age Profile'!DH34","v":0},{"$f":"'[2]5.2 Asset Age Profile'!DI34","v":0},{"$f":"'[2]5.2 Asset Age Profile'!DJ34","v":0},{"$f":"'[2]5.2 Asset Age Profile'!DK34","v":0},{"$f":"'[2]5.2 Asset Age Profile'!DL34","v":0},{"$f":"'[2]5.2 Asset Age Profile'!DM34","v":0},{"$f":"'[2]5.2 Asset Age Profile'!DN34","v":0},{"$f":"'[2]5.2 Asset Age Profile'!DO34","v":0},{"$f":"'[2]5.2 Asset Age Profile'!DP34","v":0},{"$f":"'[2]5.2 Asset Age Profile'!DQ34","v":0},{"$f":"'[2]5.2 Asset Age Profile'!DR34","v":0},{"$f":"'[2]5.2 Asset Age Profile'!DS34","v":0},{"$f":"'[2]5.2 Asset Age Profile'!DT34","v":0},{"$f":"'[2]5.2 Asset Age Profile'!DU34","v":0},{"$f":"'[2]5.2 Asset Age Profile'!DV34","v":0},{"$f":"'[2]5.2 Asset Age Profile'!DW34","v":0},{"$f":"'[2]5.2 Asset Age Profile'!DX34","v":0},{"$f":"'[2]5.2 Asset Age Profile'!DY34","v":0},{"$f":"'[2]5.2 Asset Age Profile'!DZ34","v":0},{"$f":"'[2]5.2 Asset Age Profile'!EA34","v":0},{"$f":"'[2]5.2 Asset Age Profile'!EB34","v":0},{"$f":"'[2]5.2 Asset Age Profile'!EC34","v":0},{"$f":"'[2]5.2 Asset Age Profile'!ED34","v":0},{"$f":"'[2]5.2 Asset Age Profile'!EE34","v":0},{"$f":"'[2]5.2 Asset Age Profile'!EF34","v":0},{"$f":"'[2]5.2 Asset Age Profile'!EG34","v":0},{"$f":"'[2]5.2 Asset Age Profile'!EH34","v":0},{"$f":"'[2]5.2 Asset Age Profile'!EI34","v":0},{"$f":"'[2]5.2 Asset Age Profile'!EJ34","v":0}]
["ED_ASS521_00025",null,"> 66 kV & < = 132 kV",null,null,null,null,null,null,null,null,null,null,{"$f":"'[2]5.2 Asset Age Profile'!N35","v":0},{"$f":"'[2]5.2 Asset Age Profile'!O35","v":0},{"$f":"'[2]5.2 Asset Age Profile'!P35","v":0},{"$f":"'[2]5.2 Asset Age Profile'!Q35","v":0},{"$f":"'[2]5.2 Asset Age Profile'!R35","v":0},{"$f":"'[2]5.2 Asset Age Profile'!S35","v":0},{"$f":"'[2]5.2 Asset Age Profile'!T35","v":0},{"$f":"'[2]5.2 Asset Age Profile'!U35","v":0},{"$f":"'[2]5.2 Asset Age Profile'!V35","v":0},{"$f":"'[2]5.2 Asset Age Profile'!W35","v":0},{"$f":"'[2]5.2 Asset Age Profile'!X35","v":0},{"$f":"'[2]5.2 Asset Age Profile'!Y35","v":0},{"$f":"'[2]5.2 Asset Age Profile'!Z35","v":0},{"$f":"'[2]5.2 Asset Age Profile'!AA35","v":0},{"$f":"'[2]5.2 Asset Age Profile'!AB35","v":0},{"$f":"'[2]5.2 Asset Age Profile'!AC35","v":0},{"$f":"'[2]5.2 Asset Age Profile'!AD35","v":0},{"$f":"'[2]5.2 Asset Age Profile'!AE35","v":0},{"$f":"'[2]5.2 Asset Age Profile'!AF35","v":0},{"$f":"'[2]5.2 Asset Age Profile'!AG35","v":0},{"$f":"'[2]5.2 Asset Age Profile'!AH35","v":0},{"$f":"'[2]5.2 Asset Age Profile'!AI35","v":0},{"$f":"'[2]5.2 Asset Age Profile'!AJ35","v":0},{"$f":"'[2]5.2 Asset Age Profile'!AK35","v":0},{"$f":"'[2]5.2 Asset Age Profile'!AL35","v":0},{"$f":"'[2]5.2 Asset Age Profile'!AM35","v":0},{"$f":"'[2]5.2 Asset Age Profile'!AN35","v":0},{"$f":"'[2]5.2 Asset Age Profile'!AO35","v":0},{"$f":"'[2]5.2 Asset Age Profile'!AP35","v":0},{"$f":"'[2]5.2 Asset Age Profile'!AQ35","v":0},{"$f":"'[2]5.2 Asset Age Profile'!AR35","v":0},{"$f":"'[2]5.2 Asset Age Profile'!AS35","v":0},{"$f":"'[2]5.2 Asset Age Profile'!AT35","v":0},{"$f":"'[2]5.2 Asset Age Profile'!AU35","v":0},{"$f":"'[2]5.2 Asset Age Profile'!AV35","v":0},{"$f":"'[2]5.2 Asset Age Profile'!AW35","v":0},{"$f":"'[2]5.2 Asset Age Profile'!AX35","v":0},{"$f":"'[2]5.2 Asset Age Profile'!AY35","v":0},{"$f":"'[2]5.2 Asset Age Profile'!AZ35","v":0},{"$f":"'[2]5.2 Asset Age Profile'!BA35","v":0},{"$f":"'[2]5.2 Asset Age Profile'!BB35","v":0},{"$f":"'[2]5.2 Asset Age Profile'!BC35","v":0},{"$f":"'[2]5.2 Asset Age Profile'!BD35","v":0},{"$f":"'[2]5.2 Asset Age Profile'!BE35","v":0},{"$f":"'[2]5.2 Asset Age Profile'!BF35","v":0},{"$f":"'[2]5.2 Asset Age Profile'!BG35","v":0},{"$f":"'[2]5.2 Asset Age Profile'!BH35","v":0},{"$f":"'[2]5.2 Asset Age Profile'!BI35","v":0},{"$f":"'[2]5.2 Asset Age Profile'!BJ35","v":0},{"$f":"'[2]5.2 Asset Age Profile'!BK35","v":0},{"$f":"'[2]5.2 Asset Age Profile'!BL35","v":0},{"$f":"'[2]5.2 Asset Age Profile'!BM35","v":0},{"$f":"'[2]5.2 Asset Age Profile'!BN35","v":0},{"$f":"'[2]5.2 Asset Age Profile'!BO35","v":0},{"$f":"'[2]5.2 Asset Age Profile'!BP35","v":0},{"$f":"'[2]5.2 Asset Age Profile'!BQ35","v":0},{"$f":"'[2]5.2 Asset Age Profile'!BR35","v":0},{"$f":"'[2]5.2 Asset Age Profile'!BS35","v":0},{"$f":"'[2]5.2 Asset Age Profile'!BT35","v":0},{"$f":"'[2]5.2 Asset Age Profile'!BU35","v":0},{"$f":"'[2]5.2 Asset Age Profile'!BV35","v":0},{"$f":"'[2]5.2 Asset Age Profile'!BW35","v":0},{"$f":"'[2]5.2 Asset Age Profile'!BX35","v":0},{"$f":"'[2]5.2 Asset Age Profile'!BY35","v":0},{"$f":"'[2]5.2 Asset Age Profile'!BZ35","v":0},{"$f":"'[2]5.2 Asset Age Profile'!CA35","v":0},{"$f":"'[2]5.2 Asset Age Profile'!CB35","v":0},{"$f":"'[2]5.2 Asset Age Profile'!CC35","v":0},{"$f":"'[2]5.2 Asset Age Profile'!CD35","v":0},{"$f":"'[2]5.2 Asset Age Profile'!CE35","v":0},{"$f":"'[2]5.2 Asset Age Profile'!CF35","v":0},{"$f":"'[2]5.2 Asset Age Profile'!CG35","v":0},{"$f":"'[2]5.2 Asset Age Profile'!CH35","v":0},{"$f":"'[2]5.2 Asset Age Profile'!CI35","v":0},{"$f":"'[2]5.2 Asset Age Profile'!CJ35","v":0},{"$f":"'[2]5.2 Asset Age Profile'!CK35","v":0},{"$f":"'[2]5.2 Asset Age Profile'!CL35","v":0},{"$f":"'[2]5.2 Asset Age Profile'!CM35","v":0},{"$f":"'[2]5.2 Asset Age Profile'!CN35","v":0},{"$f":"'[2]5.2 Asset Age Profile'!CO35","v":0},{"$f":"'[2]5.2 Asset Age Profile'!CP35","v":0},{"$f":"'[2]5.2 Asset Age Profile'!CQ35","v":0},{"$f":"'[2]5.2 Asset Age Profile'!CR35","v":0},{"$f":"'[2]5.2 Asset Age Profile'!CS35","v":0},{"$f":"'[2]5.2 Asset Age Profile'!CT35","v":0},{"$f":"'[2]5.2 Asset Age Profile'!CU35","v":0},{"$f":"'[2]5.2 Asset Age Profile'!CV35","v":0},{"$f":"'[2]5.2 Asset Age Profile'!CW35","v":0},{"$f":"'[2]5.2 Asset Age Profile'!CX35","v":0},{"$f":"'[2]5.2 Asset Age Profile'!CY35","v":0},{"$f":"'[2]5.2 Asset Age Profile'!CZ35","v":0},{"$f":"'[2]5.2 Asset Age Profile'!DA35","v":0},{"$f":"'[2]5.2 Asset Age Profile'!DB35","v":0},{"$f":"'[2]5.2 Asset Age Profile'!DC35","v":0},{"$f":"'[2]5.2 Asset Age Profile'!DD35","v":0},{"$f":"'[2]5.2 Asset Age Profile'!DE35","v":0},{"$f":"'[2]5.2 Asset Age Profile'!DF35","v":0},{"$f":"'[2]5.2 Asset Age Profile'!DG35","v":0},{"$f":"'[2]5.2 Asset Age Profile'!DH35","v":0},{"$f":"'[2]5.2 Asset Age Profile'!DI35","v":0},{"$f":"'[2]5.2 Asset Age Profile'!DJ35","v":0},{"$f":"'[2]5.2 Asset Age Profile'!DK35","v":0},{"$f":"'[2]5.2 Asset Age Profile'!DL35","v":0},{"$f":"'[2]5.2 Asset Age Profile'!DM35","v":0},{"$f":"'[2]5.2 Asset Age Profile'!DN35","v":0},{"$f":"'[2]5.2 Asset Age Profile'!DO35","v":0},{"$f":"'[2]5.2 Asset Age Profile'!DP35","v":0},{"$f":"'[2]5.2 Asset Age Profile'!DQ35","v":0},{"$f":"'[2]5.2 Asset Age Profile'!DR35","v":0},{"$f":"'[2]5.2 Asset Age Profile'!DS35","v":0},{"$f":"'[2]5.2 Asset Age Profile'!DT35","v":0},{"$f":"'[2]5.2 Asset Age Profile'!DU35","v":0},{"$f":"'[2]5.2 Asset Age Profile'!DV35","v":0},{"$f":"'[2]5.2 Asset Age Profile'!DW35","v":0},{"$f":"'[2]5.2 Asset Age Profile'!DX35","v":0},{"$f":"'[2]5.2 Asset Age Profile'!DY35","v":0},{"$f":"'[2]5.2 Asset Age Profile'!DZ35","v":0},{"$f":"'[2]5.2 Asset Age Profile'!EA35","v":0},{"$f":"'[2]5.2 Asset Age Profile'!EB35","v":0},{"$f":"'[2]5.2 Asset Age Profile'!EC35","v":0},{"$f":"'[2]5.2 Asset Age Profile'!ED35","v":0},{"$f":"'[2]5.2 Asset Age Profile'!EE35","v":0},{"$f":"'[2]5.2 Asset Age Profile'!EF35","v":0},{"$f":"'[2]5.2 Asset Age Profile'!EG35","v":0},{"$f":"'[2]5.2 Asset Age Profile'!EH35","v":0},{"$f":"'[2]5.2 Asset Age Profile'!EI35","v":0},{"$f":"'[2]5.2 Asset Age Profile'!EJ35","v":0}]
["ED_ASS521_00026",null,"> 132 kV",null,null,null,null,null,null,null,null,null,null,{"$f":"'[2]5.2 Asset Age Profile'!N36","v":0},{"$f":"'[2]5.2 Asset Age Profile'!O36","v":0},{"$f":"'[2]5.2 Asset Age Profile'!P36","v":0},{"$f":"'[2]5.2 Asset Age Profile'!Q36","v":0},{"$f":"'[2]5.2 Asset Age Profile'!R36","v":0},{"$f":"'[2]5.2 Asset Age Profile'!S36","v":0},{"$f":"'[2]5.2 Asset Age Profile'!T36","v":0},{"$f":"'[2]5.2 Asset Age Profile'!U36","v":0},{"$f":"'[2]5.2 Asset Age Profile'!V36","v":0},{"$f":"'[2]5.2 Asset Age Profile'!W36","v":0},{"$f":"'[2]5.2 Asset Age Profile'!X36","v":0},{"$f":"'[2]5.2 Asset Age Profile'!Y36","v":0},{"$f":"'[2]5.2 Asset Age Profile'!Z36","v":0},{"$f":"'[2]5.2 Asset Age Profile'!AA36","v":0},{"$f":"'[2]5.2 Asset Age Profile'!AB36","v":0},{"$f":"'[2]5.2 Asset Age Profile'!AC36","v":0},{"$f":"'[2]5.2 Asset Age Profile'!AD36","v":0},{"$f":"'[2]5.2 Asset Age Profile'!AE36","v":0},{"$f":"'[2]5.2 Asset Age Profile'!AF36","v":0},{"$f":"'[2]5.2 Asset Age Profile'!AG36","v":0},{"$f":"'[2]5.2 Asset Age Profile'!AH36","v":0},{"$f":"'[2]5.2 Asset Age Profile'!AI36","v":0},{"$f":"'[2]5.2 Asset Age Profile'!AJ36","v":0},{"$f":"'[2]5.2 Asset Age Profile'!AK36","v":0},{"$f":"'[2]5.2 Asset Age Profile'!AL36","v":0},{"$f":"'[2]5.2 Asset Age Profile'!AM36","v":0},{"$f":"'[2]5.2 Asset Age Profile'!AN36","v":0},{"$f":"'[2]5.2 Asset Age Profile'!AO36","v":0},{"$f":"'[2]5.2 Asset Age Profile'!AP36","v":0},{"$f":"'[2]5.2 Asset Age Profile'!AQ36","v":0},{"$f":"'[2]5.2 Asset Age Profile'!AR36","v":0},{"$f":"'[2]5.2 Asset Age Profile'!AS36","v":0},{"$f":"'[2]5.2 Asset Age Profile'!AT36","v":0},{"$f":"'[2]5.2 Asset Age Profile'!AU36","v":0},{"$f":"'[2]5.2 Asset Age Profile'!AV36","v":0},{"$f":"'[2]5.2 Asset Age Profile'!AW36","v":0},{"$f":"'[2]5.2 Asset Age Profile'!AX36","v":0},{"$f":"'[2]5.2 Asset Age Profile'!AY36","v":0},{"$f":"'[2]5.2 Asset Age Profile'!AZ36","v":0},{"$f":"'[2]5.2 Asset Age Profile'!BA36","v":0},{"$f":"'[2]5.2 Asset Age Profile'!BB36","v":0},{"$f":"'[2]5.2 Asset Age Profile'!BC36","v":0},{"$f":"'[2]5.2 Asset Age Profile'!BD36","v":0},{"$f":"'[2]5.2 Asset Age Profile'!BE36","v":0},{"$f":"'[2]5.2 Asset Age Profile'!BF36","v":0},{"$f":"'[2]5.2 Asset Age Profile'!BG36","v":0},{"$f":"'[2]5.2 Asset Age Profile'!BH36","v":0},{"$f":"'[2]5.2 Asset Age Profile'!BI36","v":0},{"$f":"'[2]5.2 Asset Age Profile'!BJ36","v":0},{"$f":"'[2]5.2 Asset Age Profile'!BK36","v":0},{"$f":"'[2]5.2 Asset Age Profile'!BL36","v":0},{"$f":"'[2]5.2 Asset Age Profile'!BM36","v":0},{"$f":"'[2]5.2 Asset Age Profile'!BN36","v":0},{"$f":"'[2]5.2 Asset Age Profile'!BO36","v":0},{"$f":"'[2]5.2 Asset Age Profile'!BP36","v":0},{"$f":"'[2]5.2 Asset Age Profile'!BQ36","v":0},{"$f":"'[2]5.2 Asset Age Profile'!BR36","v":0},{"$f":"'[2]5.2 Asset Age Profile'!BS36","v":0},{"$f":"'[2]5.2 Asset Age Profile'!BT36","v":0},{"$f":"'[2]5.2 Asset Age Profile'!BU36","v":0},{"$f":"'[2]5.2 Asset Age Profile'!BV36","v":0},{"$f":"'[2]5.2 Asset Age Profile'!BW36","v":0},{"$f":"'[2]5.2 Asset Age Profile'!BX36","v":0},{"$f":"'[2]5.2 Asset Age Profile'!BY36","v":0},{"$f":"'[2]5.2 Asset Age Profile'!BZ36","v":0},{"$f":"'[2]5.2 Asset Age Profile'!CA36","v":0},{"$f":"'[2]5.2 Asset Age Profile'!CB36","v":0},{"$f":"'[2]5.2 Asset Age Profile'!CC36","v":0},{"$f":"'[2]5.2 Asset Age Profile'!CD36","v":0},{"$f":"'[2]5.2 Asset Age Profile'!CE36","v":0},{"$f":"'[2]5.2 Asset Age Profile'!CF36","v":0},{"$f":"'[2]5.2 Asset Age Profile'!CG36","v":0},{"$f":"'[2]5.2 Asset Age Profile'!CH36","v":0},{"$f":"'[2]5.2 Asset Age Profile'!CI36","v":0},{"$f":"'[2]5.2 Asset Age Profile'!CJ36","v":0},{"$f":"'[2]5.2 Asset Age Profile'!CK36","v":0},{"$f":"'[2]5.2 Asset Age Profile'!CL36","v":0},{"$f":"'[2]5.2 Asset Age Profile'!CM36","v":0},{"$f":"'[2]5.2 Asset Age Profile'!CN36","v":0},{"$f":"'[2]5.2 Asset Age Profile'!CO36","v":0},{"$f":"'[2]5.2 Asset Age Profile'!CP36","v":0},{"$f":"'[2]5.2 Asset Age Profile'!CQ36","v":0},{"$f":"'[2]5.2 Asset Age Profile'!CR36","v":0},{"$f":"'[2]5.2 Asset Age Profile'!CS36","v":0},{"$f":"'[2]5.2 Asset Age Profile'!CT36","v":0},{"$f":"'[2]5.2 Asset Age Profile'!CU36","v":0},{"$f":"'[2]5.2 Asset Age Profile'!CV36","v":0},{"$f":"'[2]5.2 Asset Age Profile'!CW36","v":0},{"$f":"'[2]5.2 Asset Age Profile'!CX36","v":0},{"$f":"'[2]5.2 Asset Age Profile'!CY36","v":0},{"$f":"'[2]5.2 Asset Age Profile'!CZ36","v":0},{"$f":"'[2]5.2 Asset Age Profile'!DA36","v":0},{"$f":"'[2]5.2 Asset Age Profile'!DB36","v":0},{"$f":"'[2]5.2 Asset Age Profile'!DC36","v":0},{"$f":"'[2]5.2 Asset Age Profile'!DD36","v":0},{"$f":"'[2]5.2 Asset Age Profile'!DE36","v":0},{"$f":"'[2]5.2 Asset Age Profile'!DF36","v":0},{"$f":"'[2]5.2 Asset Age Profile'!DG36","v":0},{"$f":"'[2]5.2 Asset Age Profile'!DH36","v":0},{"$f":"'[2]5.2 Asset Age Profile'!DI36","v":0},{"$f":"'[2]5.2 Asset Age Profile'!DJ36","v":0},{"$f":"'[2]5.2 Asset Age Profile'!DK36","v":0},{"$f":"'[2]5.2 Asset Age Profile'!DL36","v":0},{"$f":"'[2]5.2 Asset Age Profile'!DM36","v":0},{"$f":"'[2]5.2 Asset Age Profile'!DN36","v":0},{"$f":"'[2]5.2 Asset Age Profile'!DO36","v":0},{"$f":"'[2]5.2 Asset Age Profile'!DP36","v":0},{"$f":"'[2]5.2 Asset Age Profile'!DQ36","v":0},{"$f":"'[2]5.2 Asset Age Profile'!DR36","v":0},{"$f":"'[2]5.2 Asset Age Profile'!DS36","v":0},{"$f":"'[2]5.2 Asset Age Profile'!DT36","v":0},{"$f":"'[2]5.2 Asset Age Profile'!DU36","v":0},{"$f":"'[2]5.2 Asset Age Profile'!DV36","v":0},{"$f":"'[2]5.2 Asset Age Profile'!DW36","v":0},{"$f":"'[2]5.2 Asset Age Profile'!DX36","v":0},{"$f":"'[2]5.2 Asset Age Profile'!DY36","v":0},{"$f":"'[2]5.2 Asset Age Profile'!DZ36","v":0},{"$f":"'[2]5.2 Asset Age Profile'!EA36","v":0},{"$f":"'[2]5.2 Asset Age Profile'!EB36","v":0},{"$f":"'[2]5.2 Asset Age Profile'!EC36","v":0},{"$f":"'[2]5.2 Asset Age Profile'!ED36","v":0},{"$f":"'[2]5.2 Asset Age Profile'!EE36","v":0},{"$f":"'[2]5.2 Asset Age Profile'!EF36","v":0},{"$f":"'[2]5.2 Asset Age Profile'!EG36","v":0},{"$f":"'[2]5.2 Asset Age Profile'!EH36","v":0},{"$f":"'[2]5.2 Asset Age Profile'!EI36","v":0},{"$f":"'[2]5.2 Asset Age Profile'!EJ36","v":0}]
["ED_ASS521_00027",null,"Other",null,null,null,null,null,null,null,null,null,null,{"$f":"'[2]5.2 Asset Age Profile'!N37","v":0},{"$f":"'[2]5.2 Asset Age Profile'!O37","v":0},{"$f":"'[2]5.2 Asset Age Profile'!P37","v":0},{"$f":"'[2]5.2 Asset Age Profile'!Q37","v":0},{"$f":"'[2]5.2 Asset Age Profile'!R37","v":0},{"$f":"'[2]5.2 Asset Age Profile'!S37","v":0},{"$f":"'[2]5.2 Asset Age Profile'!T37","v":0},{"$f":"'[2]5.2 Asset Age Profile'!U37","v":0},{"$f":"'[2]5.2 Asset Age Profile'!V37","v":0},{"$f":"'[2]5.2 Asset Age Profile'!W37","v":0},{"$f":"'[2]5.2 Asset Age Profile'!X37","v":0},{"$f":"'[2]5.2 Asset Age Profile'!Y37","v":0},{"$f":"'[2]5.2 Asset Age Profile'!Z37","v":0},{"$f":"'[2]5.2 Asset Age Profile'!AA37","v":0},{"$f":"'[2]5.2 Asset Age Profile'!AB37","v":0},{"$f":"'[2]5.2 Asset Age Profile'!AC37","v":0},{"$f":"'[2]5.2 Asset Age Profile'!AD37","v":0},{"$f":"'[2]5.2 Asset Age Profile'!AE37","v":0},{"$f":"'[2]5.2 Asset Age Profile'!AF37","v":0},{"$f":"'[2]5.2 Asset Age Profile'!AG37","v":0},{"$f":"'[2]5.2 Asset Age Profile'!AH37","v":0},{"$f":"'[2]5.2 Asset Age Profile'!AI37","v":0},{"$f":"'[2]5.2 Asset Age Profile'!AJ37","v":0},{"$f":"'[2]5.2 Asset Age Profile'!AK37","v":0},{"$f":"'[2]5.2 Asset Age Profile'!AL37","v":0},{"$f":"'[2]5.2 Asset Age Profile'!AM37","v":0},{"$f":"'[2]5.2 Asset Age Profile'!AN37","v":0},{"$f":"'[2]5.2 Asset Age Profile'!AO37","v":0},{"$f":"'[2]5.2 Asset Age Profile'!AP37","v":0},{"$f":"'[2]5.2 Asset Age Profile'!AQ37","v":0},{"$f":"'[2]5.2 Asset Age Profile'!AR37","v":0},{"$f":"'[2]5.2 Asset Age Profile'!AS37","v":0},{"$f":"'[2]5.2 Asset Age Profile'!AT37","v":0},{"$f":"'[2]5.2 Asset Age Profile'!AU37","v":0},{"$f":"'[2]5.2 Asset Age Profile'!AV37","v":0},{"$f":"'[2]5.2 Asset Age Profile'!AW37","v":0},{"$f":"'[2]5.2 Asset Age Profile'!AX37","v":0},{"$f":"'[2]5.2 Asset Age Profile'!AY37","v":0},{"$f":"'[2]5.2 Asset Age Profile'!AZ37","v":0},{"$f":"'[2]5.2 Asset Age Profile'!BA37","v":0},{"$f":"'[2]5.2 Asset Age Profile'!BB37","v":0},{"$f":"'[2]5.2 Asset Age Profile'!BC37","v":0},{"$f":"'[2]5.2 Asset Age Profile'!BD37","v":0},{"$f":"'[2]5.2 Asset Age Profile'!BE37","v":0},{"$f":"'[2]5.2 Asset Age Profile'!BF37","v":0},{"$f":"'[2]5.2 Asset Age Profile'!BG37","v":0},{"$f":"'[2]5.2 Asset Age Profile'!BH37","v":0},{"$f":"'[2]5.2 Asset Age Profile'!BI37","v":0},{"$f":"'[2]5.2 Asset Age Profile'!BJ37","v":0},{"$f":"'[2]5.2 Asset Age Profile'!BK37","v":0},{"$f":"'[2]5.2 Asset Age Profile'!BL37","v":0},{"$f":"'[2]5.2 Asset Age Profile'!BM37","v":0},{"$f":"'[2]5.2 Asset Age Profile'!BN37","v":0},{"$f":"'[2]5.2 Asset Age Profile'!BO37","v":0},{"$f":"'[2]5.2 Asset Age Profile'!BP37","v":0},{"$f":"'[2]5.2 Asset Age Profile'!BQ37","v":0},{"$f":"'[2]5.2 Asset Age Profile'!BR37","v":0},{"$f":"'[2]5.2 Asset Age Profile'!BS37","v":0},{"$f":"'[2]5.2 Asset Age Profile'!BT37","v":0},{"$f":"'[2]5.2 Asset Age Profile'!BU37","v":0},{"$f":"'[2]5.2 Asset Age Profile'!BV37","v":0},{"$f":"'[2]5.2 Asset Age Profile'!BW37","v":0},{"$f":"'[2]5.2 Asset Age Profile'!BX37","v":0},{"$f":"'[2]5.2 Asset Age Profile'!BY37","v":0},{"$f":"'[2]5.2 Asset Age Profile'!BZ37","v":0},{"$f":"'[2]5.2 Asset Age Profile'!CA37","v":0},{"$f":"'[2]5.2 Asset Age Profile'!CB37","v":0},{"$f":"'[2]5.2 Asset Age Profile'!CC37","v":0},{"$f":"'[2]5.2 Asset Age Profile'!CD37","v":0},{"$f":"'[2]5.2 Asset Age Profile'!CE37","v":0},{"$f":"'[2]5.2 Asset Age Profile'!CF37","v":0},{"$f":"'[2]5.2 Asset Age Profile'!CG37","v":0},{"$f":"'[2]5.2 Asset Age Profile'!CH37","v":0},{"$f":"'[2]5.2 Asset Age Profile'!CI37","v":0},{"$f":"'[2]5.2 Asset Age Profile'!CJ37","v":0},{"$f":"'[2]5.2 Asset Age Profile'!CK37","v":0},{"$f":"'[2]5.2 Asset Age Profile'!CL37","v":0},{"$f":"'[2]5.2 Asset Age Profile'!CM37","v":0},{"$f":"'[2]5.2 Asset Age Profile'!CN37","v":0},{"$f":"'[2]5.2 Asset Age Profile'!CO37","v":0},{"$f":"'[2]5.2 Asset Age Profile'!CP37","v":0},{"$f":"'[2]5.2 Asset Age Profile'!CQ37","v":0},{"$f":"'[2]5.2 Asset Age Profile'!CR37","v":0},{"$f":"'[2]5.2 Asset Age Profile'!CS37","v":0},{"$f":"'[2]5.2 Asset Age Profile'!CT37","v":0},{"$f":"'[2]5.2 Asset Age Profile'!CU37","v":0},{"$f":"'[2]5.2 Asset Age Profile'!CV37","v":0},{"$f":"'[2]5.2 Asset Age Profile'!CW37","v":0},{"$f":"'[2]5.2 Asset Age Profile'!CX37","v":0},{"$f":"'[2]5.2 Asset Age Profile'!CY37","v":0},{"$f":"'[2]5.2 Asset Age Profile'!CZ37","v":0},{"$f":"'[2]5.2 Asset Age Profile'!DA37","v":0},{"$f":"'[2]5.2 Asset Age Profile'!DB37","v":0},{"$f":"'[2]5.2 Asset Age Profile'!DC37","v":0},{"$f":"'[2]5.2 Asset Age Profile'!DD37","v":0},{"$f":"'[2]5.2 Asset Age Profile'!DE37","v":0},{"$f":"'[2]5.2 Asset Age Profile'!DF37","v":0},{"$f":"'[2]5.2 Asset Age Profile'!DG37","v":0},{"$f":"'[2]5.2 Asset Age Profile'!DH37","v":0},{"$f":"'[2]5.2 Asset Age Profile'!DI37","v":0},{"$f":"'[2]5.2 Asset Age Profile'!DJ37","v":0},{"$f":"'[2]5.2 Asset Age Profile'!DK37","v":0},{"$f":"'[2]5.2 Asset Age Profile'!DL37","v":0},{"$f":"'[2]5.2 Asset Age Profile'!DM37","v":0},{"$f":"'[2]5.2 Asset Age Profile'!DN37","v":0},{"$f":"'[2]5.2 Asset Age Profile'!DO37","v":0},{"$f":"'[2]5.2 Asset Age Profile'!DP37","v":0},{"$f":"'[2]5.2 Asset Age Profile'!DQ37","v":0},{"$f":"'[2]5.2 Asset Age Profile'!DR37","v":0},{"$f":"'[2]5.2 Asset Age Profile'!DS37","v":0},{"$f":"'[2]5.2 Asset Age Profile'!DT37","v":0},{"$f":"'[2]5.2 Asset Age Profile'!DU37","v":0},{"$f":"'[2]5.2 Asset Age Profile'!DV37","v":0},{"$f":"'[2]5.2 Asset Age Profile'!DW37","v":0},{"$f":"'[2]5.2 Asset Age Profile'!DX37","v":0},{"$f":"'[2]5.2 Asset Age Profile'!DY37","v":0},{"$f":"'[2]5.2 Asset Age Profile'!DZ37","v":0},{"$f":"'[2]5.2 Asset Age Profile'!EA37","v":0},{"$f":"'[2]5.2 Asset Age Profile'!EB37","v":0},{"$f":"'[2]5.2 Asset Age Profile'!EC37","v":0},{"$f":"'[2]5.2 Asset Age Profile'!ED37","v":0},{"$f":"'[2]5.2 Asset Age Profile'!EE37","v":0},{"$f":"'[2]5.2 Asset Age Profile'!EF37","v":0},{"$f":"'[2]5.2 Asset Age Profile'!EG37","v":0},{"$f":"'[2]5.2 Asset Age Profile'!EH37","v":0},{"$f":"'[2]5.2 Asset Age Profile'!EI37","v":0},{"$f":"'[2]5.2 Asset Age Profile'!EJ37","v":0}]
["ED_ASS521_00028","OVERHEAD CONDUCTORS BY: \nHIGHEST OPERATING VOLTAGE; NUMBER OF PHASES (AT HV)","˂ = 1 kV",null,"DNSP NAME","REPEX","OVERHEAD CONDUCTORS","˂ = 1 kV","DESCRIPTOR METRIC","MEAN ECONOMIC LIFE","YEARS","NUMBER",null,{"$f":"'[2]5.2 Asset Age Profile'!N38","v":53.8},{"$f":"'[2]5.2 Asset Age Profile'!O38","v":0},{"$f":"'[2]5.2 Asset Age Profile'!P38","v":0},{"$f":"'[2]5.2 Asset Age Profile'!Q38","v":0},{"$f":"'[2]5.2 Asset Age Profile'!R38","v":0},{"$f":"'[2]5.2 Asset Age Profile'!S38","v":0},{"$f":"'[2]5.2 Asset Age Profile'!T38","v":0},{"$f":"'[2]5.2 Asset Age Profile'!U38","v":0},{"$f":"'[2]5.2 Asset Age Profile'!V38","v":0},{"$f":"'[2]5.2 Asset Age Profile'!W38","v":0},{"$f":"'[2]5.2 Asset Age Profile'!X38","v":0},{"$f":"'[2]5.2 Asset Age Profile'!Y38","v":7.334848328356899},{"$f":"'[2]5.2 Asset Age Profile'!Z38","v":0},{"$f":"'[2]5.2 Asset Age Profile'!AA38","v":0},{"$f":"'[2]5.2 Asset Age Profile'!AB38","v":0},{"$f":"'[2]5.2 Asset Age Profile'!AC38","v":0},{"$f":"'[2]5.2 Asset Age Profile'!AD38","v":0},{"$f":"'[2]5.2 Asset Age Profile'!AE38","v":0},{"$f":"'[2]5.2 Asset Age Profile'!AF38","v":0},{"$f":"'[2]5.2 Asset Age Profile'!AG38","v":0},{"$f":"'[2]5.2 Asset Age Profile'!AH38","v":0},{"$f":"'[2]5.2 Asset Age Profile'!AI38","v":0},{"$f":"'[2]5.2 Asset Age Profile'!AJ38","v":93.709343598899991},{"$f":"'[2]5.2 Asset Age Profile'!AK38","v":129.31510569190002},{"$f":"'[2]5.2 Asset Age Profile'!AL38","v":230.53019108629996},{"$f":"'[2]5.2 Asset Age Profile'!AM38","v":418.33868135699998},{"$f":"'[2]5.2 Asset Age Profile'!AN38","v":564.52769517770025},{"$f":"'[2]5.2 Asset Age Profile'!AO38","v":154.67802760910007},{"$f":"'[2]5.2 Asset Age Profile'!AP38","v":140.7652664661},{"$f":"'[2]5.2 Asset Age Profile'!AQ38","v":156.60968703750007},{"$f":"'[2]5.2 Asset Age Profile'!AR38","v":120.3392600164},{"$f":"'[2]5.2 Asset Age Profile'!AS38","v":179.95398030089996},{"$f":"'[2]5.2 Asset Age Profile'!AT38","v":141.61581342359997},{"$f":"'[2]5.2 Asset Age Profile'!AU38","v":358.97162964570225},{"$f":"'[2]5.2 Asset Age Profile'!AV38","v":485.66445646806926},{"$f":"'[2]5.2 Asset Age Profile'!AW38","v":388.32122937247584},{"$f":"'[2]5.2 Asset Age Profile'!AX38","v":301.00731082212872},{"$f":"'[2]5.2 Asset Age Profile'!AY38","v":41.611248550078685},{"$f":"'[2]5.2 Asset Age Profile'!AZ38","v":8.4606909891844531},{"$f":"'[2]5.2 Asset Age Profile'!BA38","v":6.3602862507909537},{"$f":"'[2]5.2 Asset Age Profile'!BB38","v":12.117476343533163},{"$f":"'[2]5.2 Asset Age Profile'!BC38","v":16.484708967075996},{"$f":"'[2]5.2 Asset Age Profile'!BD38","v":32.33943151865077},{"$f":"'[2]5.2 Asset Age Profile'!BE38","v":32.349827199146972},{"$f":"'[2]5.2 Asset Age Profile'!BF38","v":37.938797833692121},{"$f":"'[2]5.2 Asset Age Profile'!BG38","v":52.902462593672709},{"$f":"'[2]5.2 Asset Age Profile'!BH38","v":83.380712059195332},{"$f":"'[2]5.2 Asset Age Profile'!BI38","v":104.24534113643946},{"$f":"'[2]5.2 Asset Age Profile'!BJ38","v":116.74450683336909},{"$f":"'[2]5.2 Asset Age Profile'!BK38","v":88.988623970999214},{"$f":"'[2]5.2 Asset Age Profile'!BL38","v":135.68483346886919},{"$f":"'[2]5.2 Asset Age Profile'!BM38","v":144.91591766850797},{"$f":"'[2]5.2 Asset Age Profile'!BN38","v":143.86823502514733},{"$f":"'[2]5.2 Asset Age Profile'!BO38","v":115.10851691551284},{"$f":"'[2]5.2 Asset Age Profile'!BP38","v":55.900579584991107},{"$f":"'[2]5.2 Asset Age Profile'!BQ38","v":126.00847480310327},{"$f":"'[2]5.2 Asset Age Profile'!BR38","v":173.9537851738645},{"$f":"'[2]5.2 Asset Age Profile'!BS38","v":272.08672008068936},{"$f":"'[2]5.2 Asset Age Profile'!BT38","v":129.21967125755651},{"$f":"'[2]5.2 Asset Age Profile'!BU38","v":195.14299356155385},{"$f":"'[2]5.2 Asset Age Profile'!BV38","v":341.87376222776356},{"$f":"'[2]5.2 Asset Age Profile'!BW38","v":154.68524662785305},{"$f":"'[2]5.2 Asset Age Profile'!BX38","v":270.3792578047545},{"$f":"'[2]5.2 Asset Age Profile'!BY38","v":237.6998597004046},{"$f":"'[2]5.2 Asset Age Profile'!BZ38","v":233.69189059595317},{"$f":"'[2]5.2 Asset Age Profile'!CA38","v":271.59265303195878},{"$f":"'[2]5.2 Asset Age Profile'!CB38","v":852.78135743751261},{"$f":"'[2]5.2 Asset Age Profile'!CC38","v":1245.5226930703798},{"$f":"'[2]5.2 Asset Age Profile'!CD38","v":536.0658913829086},{"$f":"'[2]5.2 Asset Age Profile'!CE38","v":510.55082284666446},{"$f":"'[2]5.2 Asset Age Profile'!CF38","v":792.88544443342334},{"$f":"'[2]5.2 Asset Age Profile'!CG38","v":2233.4412127135511},{"$f":"'[2]5.2 Asset Age Profile'!CH38","v":1302.4155757077895},{"$f":"'[2]5.2 Asset Age Profile'!CI38","v":548.16458941650694},{"$f":"'[2]5.2 Asset Age Profile'!CJ38","v":442.89229597125308},{"$f":"'[2]5.2 Asset Age Profile'!CK38","v":378.66329042564382},{"$f":"'[2]5.2 Asset Age Profile'!CL38","v":1167.1801279637154},{"$f":"'[2]5.2 Asset Age Profile'!CM38","v":4064.1160861197259},{"$f":"'[2]5.2 Asset Age Profile'!CN38","v":239.01361048224805},{"$f":"'[2]5.2 Asset Age Profile'!CO38","v":629.63743870589099},{"$f":"'[2]5.2 Asset Age Profile'!CP38","v":374.70152373379995},{"$f":"'[2]5.2 Asset Age Profile'!CQ38","v":376.74408416914139},{"$f":"'[2]5.2 Asset Age Profile'!CR38","v":1195.9608992327128},{"$f":"'[2]5.2 Asset Age Profile'!CS38","v":218.16552470807238},{"$f":"'[2]5.2 Asset Age Profile'!CT38","v":238.02435249446381},{"$f":"'[2]5.2 Asset Age Profile'!CU38","v":442.29305077466779},{"$f":"'[2]5.2 Asset Age Profile'!CV38","v":58.060367417900309},{"$f":"'[2]5.2 Asset Age Profile'!CW38","v":2401.1773867904449},{"$f":"'[2]5.2 Asset Age Profile'!CX38","v":98.732389391528869},{"$f":"'[2]5.2 Asset Age Profile'!CY38","v":130.95426463702066},{"$f":"'[2]5.2 Asset Age Profile'!CZ38","v":102.51157291810986},{"$f":"'[2]5.2 Asset Age Profile'!DA38","v":88.19229639846499},{"$f":"'[2]5.2 Asset Age Profile'!DB38","v":41.624824521704682},{"$f":"'[2]5.2 Asset Age Profile'!DC38","v":11.291901171056754},{"$f":"'[2]5.2 Asset Age Profile'!DD38","v":12.747770510500935},{"$f":"'[2]5.2 Asset Age Profile'!DE38","v":15.666097773930145},{"$f":"'[2]5.2 Asset Age Profile'!DF38","v":1.6348815016303471},{"$f":"'[2]5.2 Asset Age Profile'!DG38","v":189.10120028071037},{"$f":"'[2]5.2 Asset Age Profile'!DH38","v":21.991284492210823},{"$f":"'[2]5.2 Asset Age Profile'!DI38","v":27.600207047533011},{"$f":"'[2]5.2 Asset Age Profile'!DJ38","v":21.122886431065176},{"$f":"'[2]5.2 Asset Age Profile'!DK38","v":31.552021190396189},{"$f":"'[2]5.2 Asset Age Profile'!DL38","v":31.541123602266978},{"$f":"'[2]5.2 Asset Age Profile'!DM38","v":11.870422104215471},{"$f":"'[2]5.2 Asset Age Profile'!DN38","v":0},{"$f":"'[2]5.2 Asset Age Profile'!DO38","v":0},{"$f":"'[2]5.2 Asset Age Profile'!DP38","v":1.6719760813364628},{"$f":"'[2]5.2 Asset Age Profile'!DQ38","v":361.97368644731097},{"$f":"'[2]5.2 Asset Age Profile'!DR38","v":0},{"$f":"'[2]5.2 Asset Age Profile'!DS38","v":1.3328180526301554},{"$f":"'[2]5.2 Asset Age Profile'!DT38","v":4.3323777907869427},{"$f":"'[2]5.2 Asset Age Profile'!DU38","v":0},{"$f":"'[2]5.2 Asset Age Profile'!DV38","v":19.183096080336515},{"$f":"'[2]5.2 Asset Age Profile'!DW38","v":0},{"$f":"'[2]5.2 Asset Age Profile'!DX38","v":4.5591760057753685},{"$f":"'[2]5.2 Asset Age Profile'!DY38","v":0},{"$f":"'[2]5.2 Asset Age Profile'!DZ38","v":0},{"$f":"'[2]5.2 Asset Age Profile'!EA38","v":0},{"$f":"'[2]5.2 Asset Age Profile'!EB38","v":0},{"$f":"'[2]5.2 Asset Age Profile'!EC38","v":0},{"$f":"'[2]5.2 Asset Age Profile'!ED38","v":0},{"$f":"'[2]5.2 Asset Age Profile'!EE38","v":0},{"$f":"'[2]5.2 Asset Age Profile'!EF38","v":0},{"$f":"'[2]5.2 Asset Age Profile'!EG38","v":0},{"$f":"'[2]5.2 Asset Age Profile'!EH38","v":2.5550694825304738},{"$f":"'[2]5.2 Asset Age Profile'!EI38","v":0},{"$f":"'[2]5.2 Asset Age Profile'!EJ38","v":0}]
["ED_ASS521_00029",null,"> 1 kV & < = 11 kV",null,"DNSP NAME","REPEX","OVERHEAD CONDUCTORS","> 1 kV & < = 11 kV","DESCRIPTOR METRIC","MEAN ECONOMIC LIFE","YEARS","NUMBER",null,{"$f":"'[2]5.2 Asset Age Profile'!N39","v":53.8},{"$f":"'[2]5.2 Asset Age Profile'!O39","v":0},{"$f":"'[2]5.2 Asset Age Profile'!P39","v":0},{"$f":"'[2]5.2 Asset Age Profile'!Q39","v":0},{"$f":"'[2]5.2 Asset Age Profile'!R39","v":0},{"$f":"'[2]5.2 Asset Age Profile'!S39","v":0},{"$f":"'[2]5.2 Asset Age Profile'!T39","v":0},{"$f":"'[2]5.2 Asset Age Profile'!U39","v":0},{"$f":"'[2]5.2 Asset Age Profile'!V39","v":0},{"$f":"'[2]5.2 Asset Age Profile'!W39","v":0},{"$f":"'[2]5.2 Asset Age Profile'!X39","v":0},{"$f":"'[2]5.2 Asset Age Profile'!Y39","v":7.334848328356899},{"$f":"'[2]5.2 Asset Age Profile'!Z39","v":0},{"$f":"'[2]5.2 Asset Age Profile'!AA39","v":0},{"$f":"'[2]5.2 Asset Age Profile'!AB39","v":0},{"$f":"'[2]5.2 Asset Age Profile'!AC39","v":0},{"$f":"'[2]5.2 Asset Age Profile'!AD39","v":0},{"$f":"'[2]5.2 Asset Age Profile'!AE39","v":0},{"$f":"'[2]5.2 Asset Age Profile'!AF39","v":0},{"$f":"'[2]5.2 Asset Age Profile'!AG39","v":0},{"$f":"'[2]5.2 Asset Age Profile'!AH39","v":0},{"$f":"'[2]5.2 Asset Age Profile'!AI39","v":0},{"$f":"'[2]5.2 Asset Age Profile'!AJ39","v":441.41501809599998},{"$f":"'[2]5.2 Asset Age Profile'!AK39","v":744.60354480249998},{"$f":"'[2]5.2 Asset Age Profile'!AL39","v":948.82568987970001},{"$f":"'[2]5.2 Asset Age Profile'!AM39","v":909.71300226810013},{"$f":"'[2]5.2 Asset Age Profile'!AN39","v":748.71104918840001},{"$f":"'[2]5.2 Asset Age Profile'!AO39","v":713.45360467649994},{"$f":"'[2]5.2 Asset Age Profile'!AP39","v":667.73354023489992},{"$f":"'[2]5.2 Asset Age Profile'!AQ39","v":473.028784035},{"$f":"'[2]5.2 Asset Age Profile'!AR39","v":402.867924389},{"$f":"'[2]5.2 Asset Age Profile'!AS39","v":553.88021391860002},{"$f":"'[2]5.2 Asset Age Profile'!AT39","v":686.17821845749995},{"$f":"'[2]5.2 Asset Age Profile'!AU39","v":536.88928281820483},{"$f":"'[2]5.2 Asset Age Profile'!AV39","v":227.82700949224861},{"$f":"'[2]5.2 Asset Age Profile'!AW39","v":302.67727437070607},{"$f":"'[2]5.2 Asset Age Profile'!AX39","v":300.79974150609235},{"$f":"'[2]5.2 Asset Age Profile'!AY39","v":268.49222436236766},{"$f":"'[2]5.2 Asset Age Profile'!AZ39","v":149.96878600866259},{"$f":"'[2]5.2 Asset Age Profile'!BA39","v":166.91536502594846},{"$f":"'[2]5.2 Asset Age Profile'!BB39","v":174.82913889436827},{"$f":"'[2]5.2 Asset Age Profile'!BC39","v":215.00921582038762},{"$f":"'[2]5.2 Asset Age Profile'!BD39","v":267.31071975411385},{"$f":"'[2]5.2 Asset Age Profile'!BE39","v":332.49299844165125},{"$f":"'[2]5.2 Asset Age Profile'!BF39","v":307.69907265023994},{"$f":"'[2]5.2 Asset Age Profile'!BG39","v":336.83977942900708},{"$f":"'[2]5.2 Asset Age Profile'!BH39","v":435.99784106011595},{"$f":"'[2]5.2 Asset Age Profile'!BI39","v":394.91486769371136},{"$f":"'[2]5.2 Asset Age Profile'!BJ39","v":413.6098258036447},{"$f":"'[2]5.2 Asset Age Profile'!BK39","v":428.97557945954566},{"$f":"'[2]5.2 Asset Age Profile'!BL39","v":472.62270530977491},{"$f":"'[2]5.2 Asset Age Profile'!BM39","v":419.35648053125442},{"$f":"'[2]5.2 Asset Age Profile'!BN39","v":376.04252641867515},{"$f":"'[2]5.2 Asset Age Profile'!BO39","v":303.25469886840972},{"$f":"'[2]5.2 Asset Age Profile'!BP39","v":203.94079969196974},{"$f":"'[2]5.2 Asset Age Profile'!BQ39","v":395.06761267532625},{"$f":"'[2]5.2 Asset Age Profile'!BR39","v":366.46560001557191},{"$f":"'[2]5.2 Asset Age Profile'!BS39","v":456.41772286190383},{"$f":"'[2]5.2 Asset Age Profile'!BT39","v":358.79493433232949},{"$f":"'[2]5.2 Asset Age Profile'!BU39","v":388.18264074885826},{"$f":"'[2]5.2 Asset Age Profile'!BV39","v":723.20478938120289},{"$f":"'[2]5.2 Asset Age Profile'!BW39","v":354.02368986586328},{"$f":"'[2]5.2 Asset Age Profile'!BX39","v":525.88336878895109},{"$f":"'[2]5.2 Asset Age Profile'!BY39","v":487.01392003333353},{"$f":"'[2]5.2 Asset Age Profile'!BZ39","v":526.84331844797555},{"$f":"'[2]5.2 Asset Age Profile'!CA39","v":641.98879846568173},{"$f":"'[2]5.2 Asset Age Profile'!CB39","v":1152.8698094164747},{"$f":"'[2]5.2 Asset Age Profile'!CC39","v":2264.8959061315963},{"$f":"'[2]5.2 Asset Age Profile'!CD39","v":1572.2305772903835},{"$f":"'[2]5.2 Asset Age Profile'!CE39","v":819.76728332084178},{"$f":"'[2]5.2 Asset Age Profile'!CF39","v":1484.4856145784279},{"$f":"'[2]5.2 Asset Age Profile'!CG39","v":2688.5278642648082},{"$f":"'[2]5.2 Asset Age Profile'!CH39","v":1981.8323842276184},{"$f":"'[2]5.2 Asset Age Profile'!CI39","v":975.99086492277411},{"$f":"'[2]5.2 Asset Age Profile'!CJ39","v":1786.6986831383206},{"$f":"'[2]5.2 Asset Age Profile'!CK39","v":1227.2060054282097},{"$f":"'[2]5.2 Asset Age Profile'!CL39","v":3815.4862878809813},{"$f":"'[2]5.2 Asset Age Profile'!CM39","v":4245.1067783726621},{"$f":"'[2]5.2 Asset Age Profile'!CN39","v":1307.4273779777477},{"$f":"'[2]5.2 Asset Age Profile'!CO39","v":1523.3669599518691},{"$f":"'[2]5.2 Asset Age Profile'!CP39","v":1547.7987956702805},{"$f":"'[2]5.2 Asset Age Profile'!CQ39","v":1368.9993315877373},{"$f":"'[2]5.2 Asset Age Profile'!CR39","v":3639.7168053320788},{"$f":"'[2]5.2 Asset Age Profile'!CS39","v":1717.9963209914611},{"$f":"'[2]5.2 Asset Age Profile'!CT39","v":2890.5427594867783},{"$f":"'[2]5.2 Asset Age Profile'!CU39","v":3200.8948758178258},{"$f":"'[2]5.2 Asset Age Profile'!CV39","v":1070.7471005731325},{"$f":"'[2]5.2 Asset Age Profile'!CW39","v":5292.3981293313609},{"$f":"'[2]5.2 Asset Age Profile'!CX39","v":429.63750049796761},{"$f":"'[2]5.2 Asset Age Profile'!CY39","v":734.98914460924073},{"$f":"'[2]5.2 Asset Age Profile'!CZ39","v":167.14934165517496},{"$f":"'[2]5.2 Asset Age Profile'!DA39","v":222.17571650560825},{"$f":"'[2]5.2 Asset Age Profile'!DB39","v":47.521860917155507},{"$f":"'[2]5.2 Asset Age Profile'!DC39","v":69.819045779874756},{"$f":"'[2]5.2 Asset Age Profile'!DD39","v":0},{"$f":"'[2]5.2 Asset Age Profile'!DE39","v":0},{"$f":"'[2]5.2 Asset Age Profile'!DF39","v":3.2886334047602053},{"$f":"'[2]5.2 Asset Age Profile'!DG39","v":525.9344384941146},{"$f":"'[2]5.2 Asset Age Profile'!DH39","v":333.2871335890793},{"$f":"'[2]5.2 Asset Age Profile'!DI39","v":123.5889540278983},{"$f":"'[2]5.2 Asset Age Profile'!DJ39","v":113.48406082119629},{"$f":"'[2]5.2 Asset Age Profile'!DK39","v":213.32810096066373},{"$f":"'[2]5.2 Asset Age Profile'!DL39","v":12.374213227846528},{"$f":"'[2]5.2 Asset Age Profile'!DM39","v":4.9310495993614367},{"$f":"'[2]5.2 Asset Age Profile'!DN39","v":64.588406451477141},{"$f":"'[2]5.2 Asset Age Profile'!DO39","v":0},{"$f":"'[2]5.2 Asset Age Profile'!DP39","v":42.669023895935347},{"$f":"'[2]5.2 Asset Age Profile'!DQ39","v":95.184025081045718},{"$f":"'[2]5.2 Asset Age Profile'!DR39","v":0},{"$f":"'[2]5.2 Asset Age Profile'!DS39","v":87.553478236373067},{"$f":"'[2]5.2 Asset Age Profile'!DT39","v":0},{"$f":"'[2]5.2 Asset Age Profile'!DU39","v":0},{"$f":"'[2]5.2 Asset Age Profile'!DV39","v":0},{"$f":"'[2]5.2 Asset Age Profile'!DW39","v":0},{"$f":"'[2]5.2 Asset Age Profile'!DX39","v":0},{"$f":"'[2]5.2 Asset Age Profile'!DY39","v":0},{"$f":"'[2]5.2 Asset Age Profile'!DZ39","v":0},{"$f":"'[2]5.2 Asset Age Profile'!EA39","v":0},{"$f":"'[2]5.2 Asset Age Profile'!EB39","v":0},{"$f":"'[2]5.2 Asset Age Profile'!EC39","v":0},{"$f":"'[2]5.2 Asset Age Profile'!ED39","v":0},{"$f":"'[2]5.2 Asset Age Profile'!EE39","v":0},{"$f":"'[2]5.2 Asset Age Profile'!EF39","v":0},{"$f":"'[2]5.2 Asset Age Profile'!EG39","v":0},{"$f":"'[2]5.2 Asset Age Profile'!EH39","v":0},{"$f":"'[2]5.2 Asset Age Profile'!EI39","v":0},{"$f":"'[2]5.2 Asset Age Profile'!EJ39","v":0}]
["ED_ASS521_00030",null,"˃ 11 kV & < = 22 kV  ; SWER",null,null,null,null,null,null,null,null,null,null,{"$f":"'[2]5.2 Asset Age Profile'!N40","v":53.8},{"$f":"'[2]5.2 Asset Age Profile'!O40","v":0},{"$f":"'[2]5.2 Asset Age Profile'!P40","v":0},{"$f":"'[2]5.2 Asset Age Profile'!Q40","v":0},{"$f":"'[2]5.2 Asset Age Profile'!R40","v":0},{"$f":"'[2]5.2 Asset Age Profile'!S40","v":0},{"$f":"'[2]5.2 Asset Age Profile'!T40","v":0},{"$f":"'[2]5.2 Asset Age Profile'!U40","v":0},{"$f":"'[2]5.2 Asset Age Profile'!V40","v":0},{"$f":"'[2]5.2 Asset Age Profile'!W40","v":0},{"$f":"'[2]5.2 Asset Age Profile'!X40","v":0},{"$f":"'[2]5.2 Asset Age Profile'!Y40","v":7.334848328356899},{"$f":"'[2]5.2 Asset Age Profile'!Z40","v":0},{"$f":"'[2]5.2 Asset Age Profile'!AA40","v":0},{"$f":"'[2]5.2 Asset Age Profile'!AB40","v":0},{"$f":"'[2]5.2 Asset Age Profile'!AC40","v":0},{"$f":"'[2]5.2 Asset Age Profile'!AD40","v":0},{"$f":"'[2]5.2 Asset Age Profile'!AE40","v":0},{"$f":"'[2]5.2 Asset Age Profile'!AF40","v":0},{"$f":"'[2]5.2 Asset Age Profile'!AG40","v":0},{"$f":"'[2]5.2 Asset Age Profile'!AH40","v":0},{"$f":"'[2]5.2 Asset Age Profile'!AI40","v":0},{"$f":"'[2]5.2 Asset Age Profile'!AJ40","v":117.66039840000001},{"$f":"'[2]5.2 Asset Age Profile'!AK40","v":166.782411247},{"$f":"'[2]5.2 Asset Age Profile'!AL40","v":279.68952486999996},{"$f":"'[2]5.2 Asset Age Profile'!AM40","v":217.58914049359998},{"$f":"'[2]5.2 Asset Age Profile'!AN40","v":247.46109764484999},{"$f":"'[2]5.2 Asset Age Profile'!AO40","v":184.74835246300003},{"$f":"'[2]5.2 Asset Age Profile'!AP40","v":147.33009178529997},{"$f":"'[2]5.2 Asset Age Profile'!AQ40","v":239.43358694199998},{"$f":"'[2]5.2 Asset Age Profile'!AR40","v":182.6582540428},{"$f":"'[2]5.2 Asset Age Profile'!AS40","v":147.8773276508},{"$f":"'[2]5.2 Asset Age Profile'!AT40","v":92.562143885000012},{"$f":"'[2]5.2 Asset Age Profile'!AU40","v":53.024989530685389},{"$f":"'[2]5.2 Asset Age Profile'!AV40","v":47.9957044076925},{"$f":"'[2]5.2 Asset Age Profile'!AW40","v":40.777035091237558},{"$f":"'[2]5.2 Asset Age Profile'!AX40","v":58.681350223841626},{"$f":"'[2]5.2 Asset Age Profile'!AY40","v":71.209814199017245},{"$f":"'[2]5.2 Asset Age Profile'!AZ40","v":33.565393062057353},{"$f":"'[2]5.2 Asset Age Profile'!BA40","v":17.190382626246848},{"$f":"'[2]5.2 Asset Age Profile'!BB40","v":28.20223398477486},{"$f":"'[2]5.2 Asset Age Profile'!BC40","v":25.686145116916297},{"$f":"'[2]5.2 Asset Age Profile'!BD40","v":56.139210546190206},{"$f":"'[2]5.2 Asset Age Profile'!BE40","v":73.063272337738198},{"$f":"'[2]5.2 Asset Age Profile'!BF40","v":23.878967150880015},{"$f":"'[2]5.2 Asset Age Profile'!BG40","v":48.980928867435573},{"$f":"'[2]5.2 Asset Age Profile'!BH40","v":34.596657195672954},{"$f":"'[2]5.2 Asset Age Profile'!BI40","v":42.28129972281755},{"$f":"'[2]5.2 Asset Age Profile'!BJ40","v":69.907821434181059},{"$f":"'[2]5.2 Asset Age Profile'!BK40","v":88.760268207604881},{"$f":"'[2]5.2 Asset Age Profile'!BL40","v":59.629653882701149},{"$f":"'[2]5.2 Asset Age Profile'!BM40","v":108.74386669996527},{"$f":"'[2]5.2 Asset Age Profile'!BN40","v":122.62661832092149},{"$f":"'[2]5.2 Asset Age Profile'!BO40","v":112.62932845549217},{"$f":"'[2]5.2 Asset Age Profile'!BP40","v":64.211835165131816},{"$f":"'[2]5.2 Asset Age Profile'!BQ40","v":154.30727647960688},{"$f":"'[2]5.2 Asset Age Profile'!BR40","v":147.39675254660676},{"$f":"'[2]5.2 Asset Age Profile'!BS40","v":185.43365244392152},{"$f":"'[2]5.2 Asset Age Profile'!BT40","v":77.203044601502569},{"$f":"'[2]5.2 Asset Age Profile'!BU40","v":67.667800859673221},{"$f":"'[2]5.2 Asset Age Profile'!BV40","v":231.01035109208797},{"$f":"'[2]5.2 Asset Age Profile'!BW40","v":83.403365226261371},{"$f":"'[2]5.2 Asset Age Profile'!BX40","v":185.55536951734047},{"$f":"'[2]5.2 Asset Age Profile'!BY40","v":126.79496199746333},{"$f":"'[2]5.2 Asset Age Profile'!BZ40","v":191.65782572842909},{"$f":"'[2]5.2 Asset Age Profile'!CA40","v":99.489577037831978},{"$f":"'[2]5.2 Asset Age Profile'!CB40","v":73.98252074218567},{"$f":"'[2]5.2 Asset Age Profile'!CC40","v":403.29172186874689},{"$f":"'[2]5.2 Asset Age Profile'!CD40","v":220.43970203961186},{"$f":"'[2]5.2 Asset Age Profile'!CE40","v":419.35510193388797},{"$f":"'[2]5.2 Asset Age Profile'!CF40","v":848.7852100589073},{"$f":"'[2]5.2 Asset Age Profile'!CG40","v":1342.497043652422},{"$f":"'[2]5.2 Asset Age Profile'!CH40","v":1604.8376732148638},{"$f":"'[2]5.2 Asset Age Profile'!CI40","v":652.04251675964406},{"$f":"'[2]5.2 Asset Age Profile'!CJ40","v":632.71763740561437},{"$f":"'[2]5.2 Asset Age Profile'!CK40","v":389.55650260270534},{"$f":"'[2]5.2 Asset Age Profile'!CL40","v":1235.4212533305233},{"$f":"'[2]5.2 Asset Age Profile'!CM40","v":1620.7781993164122},{"$f":"'[2]5.2 Asset Age Profile'!CN40","v":875.28865246861574},{"$f":"'[2]5.2 Asset Age Profile'!CO40","v":1154.7056203340019},{"$f":"'[2]5.2 Asset Age Profile'!CP40","v":163.05013697488818},{"$f":"'[2]5.2 Asset Age Profile'!CQ40","v":767.55524273984963},{"$f":"'[2]5.2 Asset Age Profile'!CR40","v":814.25428255201916},{"$f":"'[2]5.2 Asset Age Profile'!CS40","v":424.4353594169857},{"$f":"'[2]5.2 Asset Age Profile'!CT40","v":263.60189000675217},{"$f":"'[2]5.2 Asset Age Profile'!CU40","v":48.699431671964305},{"$f":"'[2]5.2 Asset Age Profile'!CV40","v":9.4331842860844226},{"$f":"'[2]5.2 Asset Age Profile'!CW40","v":799.38901340795474},{"$f":"'[2]5.2 Asset Age Profile'!CX40","v":45.309179829999998},{"$f":"'[2]5.2 Asset Age Profile'!CY40","v":54.807698989760141},{"$f":"'[2]5.2 Asset Age Profile'!CZ40","v":6.8361600115999996},{"$f":"'[2]5.2 Asset Age Profile'!DA40","v":0},{"$f":"'[2]5.2 Asset Age Profile'!DB40","v":25.553654467957518},{"$f":"'[2]5.2 Asset Age Profile'!DC40","v":153.39885874999999},{"$f":"'[2]5.2 Asset Age Profile'!DD40","v":8.6836523299999996E-2},{"$f":"'[2]5.2 Asset Age Profile'!DE40","v":1.401994636},{"$f":"'[2]5.2 Asset Age Profile'!DF40","v":0},{"$f":"'[2]5.2 Asset Age Profile'!DG40","v":789.18350853165498},{"$f":"'[2]5.2 Asset Age Profile'!DH40","v":4.9987302359999992},{"$f":"'[2]5.2 Asset Age Profile'!DI40","v":6.2095985780000005},{"$f":"'[2]5.2 Asset Age Profile'!DJ40","v":16.6927579},{"$f":"'[2]5.2 Asset Age Profile'!DK40","v":0},{"$f":"'[2]5.2 Asset Age Profile'!DL40","v":0},{"$f":"'[2]5.2 Asset Age Profile'!DM40","v":0},{"$f":"'[2]5.2 Asset Age Profile'!DN40","v":0},{"$f":"'[2]5.2 Asset Age Profile'!DO40","v":0},{"$f":"'[2]5.2 Asset Age Profile'!DP40","v":8.9047997270000003},{"$f":"'[2]5.2 Asset Age Profile'!DQ40","v":516.7757828090289},{"$f":"'[2]5.2 Asset Age Profile'!DR40","v":0},{"$f":"'[2]5.2 Asset Age Profile'!DS40","v":0},{"$f":"'[2]5.2 Asset Age Profile'!DT40","v":0},{"$f":"'[2]5.2 Asset Age Profile'!DU40","v":0},{"$f":"'[2]5.2 Asset Age Profile'!DV40","v":0},{"$f":"'[2]5.2 Asset Age Profile'!DW40","v":0},{"$f":"'[2]5.2 Asset Age Profile'!DX40","v":0},{"$f":"'[2]5.2 Asset Age Profile'!DY40","v":0},{"$f":"'[2]5.2 Asset Age Profile'!DZ40","v":0},{"$f":"'[2]5.2 Asset Age Profile'!EA40","v":0},{"$f":"'[2]5.2 Asset Age Profile'!EB40","v":0},{"$f":"'[2]5.2 Asset Age Profile'!EC40","v":0},{"$f":"'[2]5.2 Asset Age Profile'!ED40","v":0},{"$f":"'[2]5.2 Asset Age Profile'!EE40","v":0},{"$f":"'[2]5.2 Asset Age Profile'!EF40","v":0},{"$f":"'[2]5.2 Asset Age Profile'!EG40","v":0},{"$f":"'[2]5.2 Asset Age Profile'!EH40","v":0},{"$f":"'[2]5.2 Asset Age Profile'!EI40","v":0},{"$f":"'[2]5.2 Asset Age Profile'!EJ40","v":0}]
["ED_ASS521_00031",null,"˃ 11 kV & < = 22 kV ; Single-Phase",null,null,null,null,null,null,null,null,null,null,{"$f":"'[2]5.2 Asset Age Profile'!N41","v":53.8},{"$f":"'[2]5.2 Asset Age Profile'!O41","v":0},{"$f":"'[2]5.2 Asset Age Profile'!P41","v":0},{"$f":"'[2]5.2 Asset Age Profile'!Q41","v":0},{"$f":"'[2]5.2 Asset Age Profile'!R41","v":0},{"$f":"'[2]5.2 Asset Age Profile'!S41","v":0},{"$f":"'[2]5.2 Asset Age Profile'!T41","v":0},{"$f":"'[2]5.2 Asset Age Profile'!U41","v":0},{"$f":"'[2]5.2 Asset Age Profile'!V41","v":0},{"$f":"'[2]5.2 Asset Age Profile'!W41","v":0},{"$f":"'[2]5.2 Asset Age Profile'!X41","v":0},{"$f":"'[2]5.2 Asset Age Profile'!Y41","v":7.334848328356899},{"$f":"'[2]5.2 Asset Age Profile'!Z41","v":0},{"$f":"'[2]5.2 Asset Age Profile'!AA41","v":0},{"$f":"'[2]5.2 Asset Age Profile'!AB41","v":0},{"$f":"'[2]5.2 Asset Age Profile'!AC41","v":0},{"$f":"'[2]5.2 Asset Age Profile'!AD41","v":0},{"$f":"'[2]5.2 Asset Age Profile'!AE41","v":0},{"$f":"'[2]5.2 Asset Age Profile'!AF41","v":0},{"$f":"'[2]5.2 Asset Age Profile'!AG41","v":0},{"$f":"'[2]5.2 Asset Age Profile'!AH41","v":0},{"$f":"'[2]5.2 Asset Age Profile'!AI41","v":0},{"$f":"'[2]5.2 Asset Age Profile'!AJ41","v":39.107594333000002},{"$f":"'[2]5.2 Asset Age Profile'!AK41","v":84.178829933000003},{"$f":"'[2]5.2 Asset Age Profile'!AL41","v":73.768005736999996},{"$f":"'[2]5.2 Asset Age Profile'!AM41","v":73.983650850000004},{"$f":"'[2]5.2 Asset Age Profile'!AN41","v":29.867374869999999},{"$f":"'[2]5.2 Asset Age Profile'!AO41","v":59.326948257000005},{"$f":"'[2]5.2 Asset Age Profile'!AP41","v":45.017572136000005},{"$f":"'[2]5.2 Asset Age Profile'!AQ41","v":123.525486876},{"$f":"'[2]5.2 Asset Age Profile'!AR41","v":99.735497940000016},{"$f":"'[2]5.2 Asset Age Profile'!AS41","v":112.33493519199999},{"$f":"'[2]5.2 Asset Age Profile'!AT41","v":133.85428191400001},{"$f":"'[2]5.2 Asset Age Profile'!AU41","v":97.506771800646561},{"$f":"'[2]5.2 Asset Age Profile'!AV41","v":22.561126414048704},{"$f":"'[2]5.2 Asset Age Profile'!AW41","v":42.627593907973797},{"$f":"'[2]5.2 Asset Age Profile'!AX41","v":60.745035299185332},{"$f":"'[2]5.2 Asset Age Profile'!AY41","v":49.367284010204635},{"$f":"'[2]5.2 Asset Age Profile'!AZ41","v":38.119815621027513},{"$f":"'[2]5.2 Asset Age Profile'!BA41","v":25.534611939767007},{"$f":"'[2]5.2 Asset Age Profile'!BB41","v":51.170833718550959},{"$f":"'[2]5.2 Asset Age Profile'!BC41","v":52.90234671903017},{"$f":"'[2]5.2 Asset Age Profile'!BD41","v":67.479524779181091},{"$f":"'[2]5.2 Asset Age Profile'!BE41","v":83.22563851384524},{"$f":"'[2]5.2 Asset Age Profile'!BF41","v":43.507598711448765},{"$f":"'[2]5.2 Asset Age Profile'!BG41","v":69.1370666984145},{"$f":"'[2]5.2 Asset Age Profile'!BH41","v":80.17166017141102},{"$f":"'[2]5.2 Asset Age Profile'!BI41","v":113.74955457458927},{"$f":"'[2]5.2 Asset Age Profile'!BJ41","v":115.49204720857756},{"$f":"'[2]5.2 Asset Age Profile'!BK41","v":122.18577180332417},{"$f":"'[2]5.2 Asset Age Profile'!BL41","v":144.32912484468011},{"$f":"'[2]5.2 Asset Age Profile'!BM41","v":96.246216095326872},{"$f":"'[2]5.2 Asset Age Profile'!BN41","v":108.47284044628799},{"$f":"'[2]5.2 Asset Age Profile'!BO41","v":93.274125050514726},{"$f":"'[2]5.2 Asset Age Profile'!BP41","v":81.521405877013592},{"$f":"'[2]5.2 Asset Age Profile'!BQ41","v":111.9305771981026},{"$f":"'[2]5.2 Asset Age Profile'!BR41","v":129.40133108016462},{"$f":"'[2]5.2 Asset Age Profile'!BS41","v":392.3656135737267},{"$f":"'[2]5.2 Asset Age Profile'!BT41","v":103.69217798708296},{"$f":"'[2]5.2 Asset Age Profile'!BU41","v":121.83528073094361},{"$f":"'[2]5.2 Asset Age Profile'!BV41","v":173.74452259901048},{"$f":"'[2]5.2 Asset Age Profile'!BW41","v":187.21169378059727},{"$f":"'[2]5.2 Asset Age Profile'!BX41","v":188.35838506794829},{"$f":"'[2]5.2 Asset Age Profile'!BY41","v":174.68963451915289},{"$f":"'[2]5.2 Asset Age Profile'!BZ41","v":131.45948332648084},{"$f":"'[2]5.2 Asset Age Profile'!CA41","v":106.05479202958006},{"$f":"'[2]5.2 Asset Age Profile'!CB41","v":135.1181457394043},{"$f":"'[2]5.2 Asset Age Profile'!CC41","v":392.04229016730392},{"$f":"'[2]5.2 Asset Age Profile'!CD41","v":258.61306628662697},{"$f":"'[2]5.2 Asset Age Profile'!CE41","v":358.14665763903923},{"$f":"'[2]5.2 Asset Age Profile'!CF41","v":832.92883886068932},{"$f":"'[2]5.2 Asset Age Profile'!CG41","v":1479.0231232427461},{"$f":"'[2]5.2 Asset Age Profile'!CH41","v":1023.0221838843763},{"$f":"'[2]5.2 Asset Age Profile'!CI41","v":369.67699908819094},{"$f":"'[2]5.2 Asset Age Profile'!CJ41","v":443.27115593729098},{"$f":"'[2]5.2 Asset Age Profile'!CK41","v":502.40456009755275},{"$f":"'[2]5.2 Asset Age Profile'!CL41","v":1685.7427734399407},{"$f":"'[2]5.2 Asset Age Profile'!CM41","v":1378.6647353537348},{"$f":"'[2]5.2 Asset Age Profile'!CN41","v":1083.2582431952562},{"$f":"'[2]5.2 Asset Age Profile'!CO41","v":1161.4627887662223},{"$f":"'[2]5.2 Asset Age Profile'!CP41","v":92.364238704620007},{"$f":"'[2]5.2 Asset Age Profile'!CQ41","v":1130.019005349719},{"$f":"'[2]5.2 Asset Age Profile'!CR41","v":1559.4930786656457},{"$f":"'[2]5.2 Asset Age Profile'!CS41","v":596.34309085373127},{"$f":"'[2]5.2 Asset Age Profile'!CT41","v":191.13919860893012},{"$f":"'[2]5.2 Asset Age Profile'!CU41","v":177.9095591449736},{"$f":"'[2]5.2 Asset Age Profile'!CV41","v":31.879895999991977},{"$f":"'[2]5.2 Asset Age Profile'!CW41","v":1178.2091740797991},{"$f":"'[2]5.2 Asset Age Profile'!CX41","v":31.164574961190041},{"$f":"'[2]5.2 Asset Age Profile'!CY41","v":21.1136236535568},{"$f":"'[2]5.2 Asset Age Profile'!CZ41","v":0.56066829646576688},{"$f":"'[2]5.2 Asset Age Profile'!DA41","v":4.7410056473148678},{"$f":"'[2]5.2 Asset Age Profile'!DB41","v":9.2987603788960023},{"$f":"'[2]5.2 Asset Age Profile'!DC41","v":35.426732605059762},{"$f":"'[2]5.2 Asset Age Profile'!DD41","v":0.17700311695588128},{"$f":"'[2]5.2 Asset Age Profile'!DE41","v":0},{"$f":"'[2]5.2 Asset Age Profile'!DF41","v":0.17365018997592135},{"$f":"'[2]5.2 Asset Age Profile'!DG41","v":139.72461678050155},{"$f":"'[2]5.2 Asset Age Profile'!DH41","v":6.9549208128536186},{"$f":"'[2]5.2 Asset Age Profile'!DI41","v":16.298841195020547},{"$f":"'[2]5.2 Asset Age Profile'!DJ41","v":9.4890520849573612},{"$f":"'[2]5.2 Asset Age Profile'!DK41","v":0},{"$f":"'[2]5.2 Asset Age Profile'!DL41","v":0},{"$f":"'[2]5.2 Asset Age Profile'!DM41","v":0},{"$f":"'[2]5.2 Asset Age Profile'!DN41","v":0},{"$f":"'[2]5.2 Asset Age Profile'!DO41","v":0},{"$f":"'[2]5.2 Asset Age Profile'!DP41","v":20.255484368988572},{"$f":"'[2]5.2 Asset Age Profile'!DQ41","v":476.78843909423802},{"$f":"'[2]5.2 Asset Age Profile'!DR41","v":0},{"$f":"'[2]5.2 Asset Age Profile'!DS41","v":0},{"$f":"'[2]5.2 Asset Age Profile'!DT41","v":0},{"$f":"'[2]5.2 Asset Age Profile'!DU41","v":0},{"$f":"'[2]5.2 Asset Age Profile'!DV41","v":0},{"$f":"'[2]5.2 Asset Age Profile'!DW41","v":0},{"$f":"'[2]5.2 Asset Age Profile'!DX41","v":0},{"$f":"'[2]5.2 Asset Age Profile'!DY41","v":0},{"$f":"'[2]5.2 Asset Age Profile'!DZ41","v":0},{"$f":"'[2]5.2 Asset Age Profile'!EA41","v":0},{"$f":"'[2]5.2 Asset Age Profile'!EB41","v":0},{"$f":"'[2]5.2 Asset Age Profile'!EC41","v":0},{"$f":"'[2]5.2 Asset Age Profile'!ED41","v":0},{"$f":"'[2]5.2 Asset Age Profile'!EE41","v":0},{"$f":"'[2]5.2 Asset Age Profile'!EF41","v":0},{"$f":"'[2]5.2 Asset Age Profile'!EG41","v":0},{"$f":"'[2]5.2 Asset Age Profile'!EH41","v":0},{"$f":"'[2]5.2 Asset Age Profile'!EI41","v":0},{"$f":"'[2]5.2 Asset Age Profile'!EJ41","v":0}]
["ED_ASS521_00032",null,"˃ 11 kV & < = 22 kV ; Multiple-Phase",null,null,null,null,null,null,null,null,null,null,{"$f":"'[2]5.2 Asset Age Profile'!N42","v":53.8},{"$f":"'[2]5.2 Asset Age Profile'!O42","v":0},{"$f":"'[2]5.2 Asset Age Profile'!P42","v":0},{"$f":"'[2]5.2 Asset Age Profile'!Q42","v":0},{"$f":"'[2]5.2 Asset Age Profile'!R42","v":0},{"$f":"'[2]5.2 Asset Age Profile'!S42","v":0},{"$f":"'[2]5.2 Asset Age Profile'!T42","v":0},{"$f":"'[2]5.2 Asset Age Profile'!U42","v":0},{"$f":"'[2]5.2 Asset Age Profile'!V42","v":0},{"$f":"'[2]5.2 Asset Age Profile'!W42","v":0},{"$f":"'[2]5.2 Asset Age Profile'!X42","v":0},{"$f":"'[2]5.2 Asset Age Profile'!Y42","v":7.334848328356899},{"$f":"'[2]5.2 Asset Age Profile'!Z42","v":0},{"$f":"'[2]5.2 Asset Age Profile'!AA42","v":0},{"$f":"'[2]5.2 Asset Age Profile'!AB42","v":0},{"$f":"'[2]5.2 Asset Age Profile'!AC42","v":0},{"$f":"'[2]5.2 Asset Age Profile'!AD42","v":0},{"$f":"'[2]5.2 Asset Age Profile'!AE42","v":0},{"$f":"'[2]5.2 Asset Age Profile'!AF42","v":0},{"$f":"'[2]5.2 Asset Age Profile'!AG42","v":0},{"$f":"'[2]5.2 Asset Age Profile'!AH42","v":0},{"$f":"'[2]5.2 Asset Age Profile'!AI42","v":0},{"$f":"'[2]5.2 Asset Age Profile'!AJ42","v":3.2908616630000003},{"$f":"'[2]5.2 Asset Age Profile'!AK42","v":23.410873162000001},{"$f":"'[2]5.2 Asset Age Profile'!AL42","v":36.344942460000006},{"$f":"'[2]5.2 Asset Age Profile'!AM42","v":27.469755553699997},{"$f":"'[2]5.2 Asset Age Profile'!AN42","v":6.2989438580000003},{"$f":"'[2]5.2 Asset Age Profile'!AO42","v":24.332543503600004},{"$f":"'[2]5.2 Asset Age Profile'!AP42","v":18.801434117799996},{"$f":"'[2]5.2 Asset Age Profile'!AQ42","v":68.401845827900004},{"$f":"'[2]5.2 Asset Age Profile'!AR42","v":70.049457399999994},{"$f":"'[2]5.2 Asset Age Profile'!AS42","v":69.339063207999999},{"$f":"'[2]5.2 Asset Age Profile'!AT42","v":33.312042465999994},{"$f":"'[2]5.2 Asset Age Profile'!AU42","v":16.479599222738866},{"$f":"'[2]5.2 Asset Age Profile'!AV42","v":56.102482010281513},{"$f":"'[2]5.2 Asset Age Profile'!AW42","v":28.45630583765794},{"$f":"'[2]5.2 Asset Age Profile'!AX42","v":67.581496379306685},{"$f":"'[2]5.2 Asset Age Profile'!AY42","v":24.136787818513476},{"$f":"'[2]5.2 Asset Age Profile'!AZ42","v":4.6649098065934087},{"$f":"'[2]5.2 Asset Age Profile'!BA42","v":14.949257197143327},{"$f":"'[2]5.2 Asset Age Profile'!BB42","v":14.222482455024132},{"$f":"'[2]5.2 Asset Age Profile'!BC42","v":418.24764040987912},{"$f":"'[2]5.2 Asset Age Profile'!BD42","v":1049.6251101673208},{"$f":"'[2]5.2 Asset Age Profile'!BE42","v":1217.5557620926245},{"$f":"'[2]5.2 Asset Age Profile'!BF42","v":951.82935463023694},{"$f":"'[2]5.2 Asset Age Profile'!BG42","v":148.2868554476311},{"$f":"'[2]5.2 Asset Age Profile'!BH42","v":19.874903147570411},{"$f":"'[2]5.2 Asset Age Profile'!BI42","v":135.45794247580221},{"$f":"'[2]5.2 Asset Age Profile'!BJ42","v":401.2092389754755},{"$f":"'[2]5.2 Asset Age Profile'!BK42","v":818.63435561868096},{"$f":"'[2]5.2 Asset Age Profile'!BL42","v":90.719960615559486},{"$f":"'[2]5.2 Asset Age Profile'!BM42","v":148.93699262123536},{"$f":"'[2]5.2 Asset Age Profile'!BN42","v":264.88126831404543},{"$f":"'[2]5.2 Asset Age Profile'!BO42","v":591.29559952698196},{"$f":"'[2]5.2 Asset Age Profile'!BP42","v":89.699595220836741},{"$f":"'[2]5.2 Asset Age Profile'!BQ42","v":761.71091205461437},{"$f":"'[2]5.2 Asset Age Profile'!BR42","v":1230.2576197225173},{"$f":"'[2]5.2 Asset Age Profile'!BS42","v":609.03912000424066},{"$f":"'[2]5.2 Asset Age Profile'!BT42","v":23.031658886172629},{"$f":"'[2]5.2 Asset Age Profile'!BU42","v":503.75824002420478},{"$f":"'[2]5.2 Asset Age Profile'!BV42","v":142.75097130813208},{"$f":"'[2]5.2 Asset Age Profile'!BW42","v":251.8743240353767},{"$f":"'[2]5.2 Asset Age Profile'!BX42","v":229.09957094901222},{"$f":"'[2]5.2 Asset Age Profile'!BY42","v":409.18638770256933},{"$f":"'[2]5.2 Asset Age Profile'!BZ42","v":75.939144216380754},{"$f":"'[2]5.2 Asset Age Profile'!CA42","v":152.60937383635584},{"$f":"'[2]5.2 Asset Age Profile'!CB42","v":341.6899653668749},{"$f":"'[2]5.2 Asset Age Profile'!CC42","v":739.89482548429589},{"$f":"'[2]5.2 Asset Age Profile'!CD42","v":177.38712294669628},{"$f":"'[2]5.2 Asset Age Profile'!CE42","v":429.65864419891091},{"$f":"'[2]5.2 Asset Age Profile'!CF42","v":325.56401283993972},{"$f":"'[2]5.2 Asset Age Profile'!CG42","v":2030.0953544769791},{"$f":"'[2]5.2 Asset Age Profile'!CH42","v":2354.3592333896336},{"$f":"'[2]5.2 Asset Age Profile'!CI42","v":2220.1731813696811},{"$f":"'[2]5.2 Asset Age Profile'!CJ42","v":1352.903357315776},{"$f":"'[2]5.2 Asset Age Profile'!CK42","v":403.37057243788848},{"$f":"'[2]5.2 Asset Age Profile'!CL42","v":1060.8042277296024},{"$f":"'[2]5.2 Asset Age Profile'!CM42","v":1834.162572827425},{"$f":"'[2]5.2 Asset Age Profile'!CN42","v":712.47939954675633},{"$f":"'[2]5.2 Asset Age Profile'!CO42","v":352.86536009084233},{"$f":"'[2]5.2 Asset Age Profile'!CP42","v":276.55198681312987},{"$f":"'[2]5.2 Asset Age Profile'!CQ42","v":197.97800794916222},{"$f":"'[2]5.2 Asset Age Profile'!CR42","v":453.12885425901391},{"$f":"'[2]5.2 Asset Age Profile'!CS42","v":26.20147079951273},{"$f":"'[2]5.2 Asset Age Profile'!CT42","v":641.3194675490397},{"$f":"'[2]5.2 Asset Age Profile'!CU42","v":270.88939106941228},{"$f":"'[2]5.2 Asset Age Profile'!CV42","v":144.46779995659446},{"$f":"'[2]5.2 Asset Age Profile'!CW42","v":501.43249821613011},{"$f":"'[2]5.2 Asset Age Profile'!CX42","v":8.2715583897190831E-2},{"$f":"'[2]5.2 Asset Age Profile'!CY42","v":48.977565498576304},{"$f":"'[2]5.2 Asset Age Profile'!CZ42","v":1.2479964746563826E-2},{"$f":"'[2]5.2 Asset Age Profile'!DA42","v":0},{"$f":"'[2]5.2 Asset Age Profile'!DB42","v":32.950583584754703},{"$f":"'[2]5.2 Asset Age Profile'!DC42","v":0.28004206251969466},{"$f":"'[2]5.2 Asset Age Profile'!DD42","v":1.5852711868347927E-4},{"$f":"'[2]5.2 Asset Age Profile'!DE42","v":2.559454957529067E-3},{"$f":"'[2]5.2 Asset Age Profile'!DF42","v":0},{"$f":"'[2]5.2 Asset Age Profile'!DG42","v":1239.9959301649719},{"$f":"'[2]5.2 Asset Age Profile'!DH42","v":9.1255876130760336E-3},{"$f":"'[2]5.2 Asset Age Profile'!DI42","v":1.1336126014056695E-2},{"$f":"'[2]5.2 Asset Age Profile'!DJ42","v":3.0473983897601378E-2},{"$f":"'[2]5.2 Asset Age Profile'!DK42","v":0},{"$f":"'[2]5.2 Asset Age Profile'!DL42","v":0},{"$f":"'[2]5.2 Asset Age Profile'!DM42","v":0},{"$f":"'[2]5.2 Asset Age Profile'!DN42","v":0},{"$f":"'[2]5.2 Asset Age Profile'!DO42","v":0},{"$f":"'[2]5.2 Asset Age Profile'!DP42","v":1.6256434384156686E-2},{"$f":"'[2]5.2 Asset Age Profile'!DQ42","v":174.11158289222496},{"$f":"'[2]5.2 Asset Age Profile'!DR42","v":0},{"$f":"'[2]5.2 Asset Age Profile'!DS42","v":0},{"$f":"'[2]5.2 Asset Age Profile'!DT42","v":0},{"$f":"'[2]5.2 Asset Age Profile'!DU42","v":0},{"$f":"'[2]5.2 Asset Age Profile'!DV42","v":0},{"$f":"'[2]5.2 Asset Age Profile'!DW42","v":0},{"$f":"'[2]5.2 Asset Age Profile'!DX42","v":0},{"$f":"'[2]5.2 Asset Age Profile'!DY42","v":0},{"$f":"'[2]5.2 Asset Age Profile'!DZ42","v":0},{"$f":"'[2]5.2 Asset Age Profile'!EA42","v":0},{"$f":"'[2]5.2 Asset Age Profile'!EB42","v":0},{"$f":"'[2]5.2 Asset Age Profile'!EC42","v":0},{"$f":"'[2]5.2 Asset Age Profile'!ED42","v":0},{"$f":"'[2]5.2 Asset Age Profile'!EE42","v":0},{"$f":"'[2]5.2 Asset Age Profile'!EF42","v":0},{"$f":"'[2]5.2 Asset Age Profile'!EG42","v":0},{"$f":"'[2]5.2 Asset Age Profile'!EH42","v":0},{"$f":"'[2]5.2 Asset Age Profile'!EI42","v":0},{"$f":"'[2]5.2 Asset Age Profile'!EJ42","v":0}]
["ED_ASS521_00033",null,"> 22 kV & < = 66 kV",null,null,null,null,null,null,null,null,null,null,{"$f":"'[2]5.2 Asset Age Profile'!N43","v":54.9},{"$f":"'[2]5.2 Asset Age Profile'!O43","v":0},{"$f":"'[2]5.2 Asset Age Profile'!P43","v":0},{"$f":"'[2]5.2 Asset Age Profile'!Q43","v":0},{"$f":"'[2]5.2 Asset Age Profile'!R43","v":0},{"$f":"'[2]5.2 Asset Age Profile'!S43","v":0},{"$f":"'[2]5.2 Asset Age Profile'!T43","v":0},{"$f":"'[2]5.2 Asset Age Profile'!U43","v":0},{"$f":"'[2]5.2 Asset Age Profile'!V43","v":0},{"$f":"'[2]5.2 Asset Age Profile'!W43","v":0},{"$f":"'[2]5.2 Asset Age Profile'!X43","v":0},{"$f":"'[2]5.2 Asset Age Profile'!Y43","v":7.4094534211370817},{"$f":"'[2]5.2 Asset Age Profile'!Z43","v":0},{"$f":"'[2]5.2 Asset Age Profile'!AA43","v":0},{"$f":"'[2]5.2 Asset Age Profile'!AB43","v":0},{"$f":"'[2]5.2 Asset Age Profile'!AC43","v":0},{"$f":"'[2]5.2 Asset Age Profile'!AD43","v":0},{"$f":"'[2]5.2 Asset Age Profile'!AE43","v":0},{"$f":"'[2]5.2 Asset Age Profile'!AF43","v":0},{"$f":"'[2]5.2 Asset Age Profile'!AG43","v":0},{"$f":"'[2]5.2 Asset Age Profile'!AH43","v":0},{"$f":"'[2]5.2 Asset Age Profile'!AI43","v":0},{"$f":"'[2]5.2 Asset Age Profile'!AJ43","v":24.29287493},{"$f":"'[2]5.2 Asset Age Profile'!AK43","v":174.57898364585998},{"$f":"'[2]5.2 Asset Age Profile'!AL43","v":163.460198572},{"$f":"'[2]5.2 Asset Age Profile'!AM43","v":87.537124227800021},{"$f":"'[2]5.2 Asset Age Profile'!AN43","v":135.49260078719999},{"$f":"'[2]5.2 Asset Age Profile'!AO43","v":97.709904521699997},{"$f":"'[2]5.2 Asset Age Profile'!AP43","v":77.445464782499997},{"$f":"'[2]5.2 Asset Age Profile'!AQ43","v":61.276211520300009},{"$f":"'[2]5.2 Asset Age Profile'!AR43","v":55.992100948299985},{"$f":"'[2]5.2 Asset Age Profile'!AS43","v":106.5386075341},{"$f":"'[2]5.2 Asset Age Profile'!AT43","v":201.5569051496},{"$f":"'[2]5.2 Asset Age Profile'!AU43","v":53.470845473656084},{"$f":"'[2]5.2 Asset Age Profile'!AV43","v":15.321657588803843},{"$f":"'[2]5.2 Asset Age Profile'!AW43","v":10.734196273901192},{"$f":"'[2]5.2 Asset Age Profile'!AX43","v":47.455618073064464},{"$f":"'[2]5.2 Asset Age Profile'!AY43","v":32.363026917980307},{"$f":"'[2]5.2 Asset Age Profile'!AZ43","v":5.433789769827329},{"$f":"'[2]5.2 Asset Age Profile'!BA43","v":160.31997824882282},{"$f":"'[2]5.2 Asset Age Profile'!BB43","v":12.269686304703249},{"$f":"'[2]5.2 Asset Age Profile'!BC43","v":1.0892976207563294},{"$f":"'[2]5.2 Asset Age Profile'!BD43","v":84.348549130348857},{"$f":"'[2]5.2 Asset Age Profile'!BE43","v":126.66429769505909},{"$f":"'[2]5.2 Asset Age Profile'!BF43","v":46.715491979151487},{"$f":"'[2]5.2 Asset Age Profile'!BG43","v":322.6468981749199},{"$f":"'[2]5.2 Asset Age Profile'!BH43","v":53.647862686349022},{"$f":"'[2]5.2 Asset Age Profile'!BI43","v":74.96540129373065},{"$f":"'[2]5.2 Asset Age Profile'!BJ43","v":76.437600251313015},{"$f":"'[2]5.2 Asset Age Profile'!BK43","v":40.235349977255794},{"$f":"'[2]5.2 Asset Age Profile'!BL43","v":216.8138484699457},{"$f":"'[2]5.2 Asset Age Profile'!BM43","v":260.69056384350512},{"$f":"'[2]5.2 Asset Age Profile'!BN43","v":279.5911089445699},{"$f":"'[2]5.2 Asset Age Profile'!BO43","v":283.25969457311675},{"$f":"'[2]5.2 Asset Age Profile'!BP43","v":35.49592357389124},{"$f":"'[2]5.2 Asset Age Profile'!BQ43","v":286.62087678051154},{"$f":"'[2]5.2 Asset Age Profile'!BR43","v":338.49719727439788},{"$f":"'[2]5.2 Asset Age Profile'!BS43","v":137.93019606590795},{"$f":"'[2]5.2 Asset Age Profile'!BT43","v":78.934003804057895},{"$f":"'[2]5.2 Asset Age Profile'!BU43","v":163.77935816376643},{"$f":"'[2]5.2 Asset Age Profile'!BV43","v":272.95511164081768},{"$f":"'[2]5.2 Asset Age Profile'!BW43","v":75.381742412711304},{"$f":"'[2]5.2 Asset Age Profile'!BX43","v":82.195237686635068},{"$f":"'[2]5.2 Asset Age Profile'!BY43","v":140.37449568476774},{"$f":"'[2]5.2 Asset Age Profile'!BZ43","v":63.335662298422356},{"$f":"'[2]5.2 Asset Age Profile'!CA43","v":93.67630996641789},{"$f":"'[2]5.2 Asset Age Profile'!CB43","v":288.57986896669991},{"$f":"'[2]5.2 Asset Age Profile'!CC43","v":190.63527592244236},{"$f":"'[2]5.2 Asset Age Profile'!CD43","v":333.91219398062282},{"$f":"'[2]5.2 Asset Age Profile'!CE43","v":305.25768285461396},{"$f":"'[2]5.2 Asset Age Profile'!CF43","v":561.53897601701067},{"$f":"'[2]5.2 Asset Age Profile'!CG43","v":1013.2139012098114},{"$f":"'[2]5.2 Asset Age Profile'!CH43","v":721.35864573800973},{"$f":"'[2]5.2 Asset Age Profile'!CI43","v":274.59630887092595},{"$f":"'[2]5.2 Asset Age Profile'!CJ43","v":347.92806907625368},{"$f":"'[2]5.2 Asset Age Profile'!CK43","v":276.49869715381567},{"$f":"'[2]5.2 Asset Age Profile'!CL43","v":414.65592505961894},{"$f":"'[2]5.2 Asset Age Profile'!CM43","v":759.66955921287649},{"$f":"'[2]5.2 Asset Age Profile'!CN43","v":102.47325348038345},{"$f":"'[2]5.2 Asset Age Profile'!CO43","v":246.0442359227946},{"$f":"'[2]5.2 Asset Age Profile'!CP43","v":82.49830978938445},{"$f":"'[2]5.2 Asset Age Profile'!CQ43","v":80.214460401562633},{"$f":"'[2]5.2 Asset Age Profile'!CR43","v":440.30462911884894},{"$f":"'[2]5.2 Asset Age Profile'!CS43","v":29.045411362896971},{"$f":"'[2]5.2 Asset Age Profile'!CT43","v":48.932116800135539},{"$f":"'[2]5.2 Asset Age Profile'!CU43","v":217.8523040631907},{"$f":"'[2]5.2 Asset Age Profile'!CV43","v":10.251396797224336},{"$f":"'[2]5.2 Asset Age Profile'!CW43","v":467.79965505861304},{"$f":"'[2]5.2 Asset Age Profile'!CX43","v":0},{"$f":"'[2]5.2 Asset Age Profile'!CY43","v":6.617496785178302},{"$f":"'[2]5.2 Asset Age Profile'!CZ43","v":49.223755089811448},{"$f":"'[2]5.2 Asset Age Profile'!DA43","v":4.3410355250428116},{"$f":"'[2]5.2 Asset Age Profile'!DB43","v":107.23220200788683},{"$f":"'[2]5.2 Asset Age Profile'!DC43","v":0},{"$f":"'[2]5.2 Asset Age Profile'!DD43","v":3.5754406938134862},{"$f":"'[2]5.2 Asset Age Profile'!DE43","v":0},{"$f":"'[2]5.2 Asset Age Profile'!DF43","v":0},{"$f":"'[2]5.2 Asset Age Profile'!DG43","v":0},{"$f":"'[2]5.2 Asset Age Profile'!DH43","v":0},{"$f":"'[2]5.2 Asset Age Profile'!DI43","v":0},{"$f":"'[2]5.2 Asset Age Profile'!DJ43","v":20.852881941937888},{"$f":"'[2]5.2 Asset Age Profile'!DK43","v":3.8854269930316443},{"$f":"'[2]5.2 Asset Age Profile'!DL43","v":47.516891079123084},{"$f":"'[2]5.2 Asset Age Profile'!DM43","v":0},{"$f":"'[2]5.2 Asset Age Profile'!DN43","v":26.844740033814929},{"$f":"'[2]5.2 Asset Age Profile'!DO43","v":0},{"$f":"'[2]5.2 Asset Age Profile'!DP43","v":0},{"$f":"'[2]5.2 Asset Age Profile'!DQ43","v":158.4657601572043},{"$f":"'[2]5.2 Asset Age Profile'!DR43","v":0},{"$f":"'[2]5.2 Asset Age Profile'!DS43","v":82.792466568554715},{"$f":"'[2]5.2 Asset Age Profile'!DT43","v":0},{"$f":"'[2]5.2 Asset Age Profile'!DU43","v":50.094293543978317},{"$f":"'[2]5.2 Asset Age Profile'!DV43","v":0},{"$f":"'[2]5.2 Asset Age Profile'!DW43","v":0},{"$f":"'[2]5.2 Asset Age Profile'!DX43","v":0},{"$f":"'[2]5.2 Asset Age Profile'!DY43","v":0},{"$f":"'[2]5.2 Asset Age Profile'!DZ43","v":0},{"$f":"'[2]5.2 Asset Age Profile'!EA43","v":0},{"$f":"'[2]5.2 Asset Age Profile'!EB43","v":0},{"$f":"'[2]5.2 Asset Age Profile'!EC43","v":0},{"$f":"'[2]5.2 Asset Age Profile'!ED43","v":0},{"$f":"'[2]5.2 Asset Age Profile'!EE43","v":0},{"$f":"'[2]5.2 Asset Age Profile'!EF43","v":0},{"$f":"'[2]5.2 Asset Age Profile'!EG43","v":0},{"$f":"'[2]5.2 Asset Age Profile'!EH43","v":0},{"$f":"'[2]5.2 Asset Age Profile'!EI43","v":0},{"$f":"'[2]5.2 Asset Age Profile'!EJ43","v":0}]
["ED_ASS521_00034",null,"> 66 kV & < = 132 kV",null,null,null,null,null,null,null,null,null,null,{"$f":"'[2]5.2 Asset Age Profile'!N44","v":54.9},{"$f":"'[2]5.2 Asset Age Profile'!O44","v":0},{"$f":"'[2]5.2 Asset Age Profile'!P44","v":0},{"$f":"'[2]5.2 Asset Age Profile'!Q44","v":0},{"$f":"'[2]5.2 Asset Age Profile'!R44","v":0},{"$f":"'[2]5.2 Asset Age Profile'!S44","v":0},{"$f":"'[2]5.2 Asset Age Profile'!T44","v":0},{"$f":"'[2]5.2 Asset Age Profile'!U44","v":0},{"$f":"'[2]5.2 Asset Age Profile'!V44","v":0},{"$f":"'[2]5.2 Asset Age Profile'!W44","v":0},{"$f":"'[2]5.2 Asset Age Profile'!X44","v":0},{"$f":"'[2]5.2 Asset Age Profile'!Y44","v":7.4094534211370817},{"$f":"'[2]5.2 Asset Age Profile'!Z44","v":0},{"$f":"'[2]5.2 Asset Age Profile'!AA44","v":0},{"$f":"'[2]5.2 Asset Age Profile'!AB44","v":0},{"$f":"'[2]5.2 Asset Age Profile'!AC44","v":0},{"$f":"'[2]5.2 Asset Age Profile'!AD44","v":0},{"$f":"'[2]5.2 Asset Age Profile'!AE44","v":0},{"$f":"'[2]5.2 Asset Age Profile'!AF44","v":0},{"$f":"'[2]5.2 Asset Age Profile'!AG44","v":0},{"$f":"'[2]5.2 Asset Age Profile'!AH44","v":0},{"$f":"'[2]5.2 Asset Age Profile'!AI44","v":0},{"$f":"'[2]5.2 Asset Age Profile'!AJ44","v":30.527696899999999},{"$f":"'[2]5.2 Asset Age Profile'!AK44","v":170.3970027},{"$f":"'[2]5.2 Asset Age Profile'!AL44","v":35.753477564999997},{"$f":"'[2]5.2 Asset Age Profile'!AM44","v":64.335654761000001},{"$f":"'[2]5.2 Asset Age Profile'!AN44","v":14.077427500000001},{"$f":"'[2]5.2 Asset Age Profile'!AO44","v":2.88434605},{"$f":"'[2]5.2 Asset Age Profile'!AP44","v":4.3041464300000003},{"$f":"'[2]5.2 Asset Age Profile'!AQ44","v":1.152675559},{"$f":"'[2]5.2 Asset Age Profile'!AR44","v":0.24357432200000001},{"$f":"'[2]5.2 Asset Age Profile'!AS44","v":119.1604049},{"$f":"'[2]5.2 Asset Age Profile'!AT44","v":0},{"$f":"'[2]5.2 Asset Age Profile'!AU44","v":0},{"$f":"'[2]5.2 Asset Age Profile'!AV44","v":0},{"$f":"'[2]5.2 Asset Age Profile'!AW44","v":0},{"$f":"'[2]5.2 Asset Age Profile'!AX44","v":11.59834780131103},{"$f":"'[2]5.2 Asset Age Profile'!AY44","v":0},{"$f":"'[2]5.2 Asset Age Profile'!AZ44","v":0},{"$f":"'[2]5.2 Asset Age Profile'!BA44","v":28.441670968980315},{"$f":"'[2]5.2 Asset Age Profile'!BB44","v":73.786360767397838},{"$f":"'[2]5.2 Asset Age Profile'!BC44","v":2.1472340220674919},{"$f":"'[2]5.2 Asset Age Profile'!BD44","v":8.7625537997271188},{"$f":"'[2]5.2 Asset Age Profile'!BE44","v":21.595890630314472},{"$f":"'[2]5.2 Asset Age Profile'!BF44","v":40.269664335160137},{"$f":"'[2]5.2 Asset Age Profile'!BG44","v":215.21598106369802},{"$f":"'[2]5.2 Asset Age Profile'!BH44","v":9.2695273887905802},{"$f":"'[2]5.2 Asset Age Profile'!BI44","v":5.5836866356506132},{"$f":"'[2]5.2 Asset Age Profile'!BJ44","v":45.444357697249266},{"$f":"'[2]5.2 Asset Age Profile'!BK44","v":47.001503068856827},{"$f":"'[2]5.2 Asset Age Profile'!BL44","v":78.916030723891026},{"$f":"'[2]5.2 Asset Age Profile'!BM44","v":47.625605809542577},{"$f":"'[2]5.2 Asset Age Profile'!BN44","v":0},{"$f":"'[2]5.2 Asset Age Profile'!BO44","v":116.6632874326753},{"$f":"'[2]5.2 Asset Age Profile'!BP44","v":215.40378004138987},{"$f":"'[2]5.2 Asset Age Profile'!BQ44","v":0},{"$f":"'[2]5.2 Asset Age Profile'!BR44","v":0},{"$f":"'[2]5.2 Asset Age Profile'!BS44","v":0},{"$f":"'[2]5.2 Asset Age Profile'!BT44","v":0.10378570579204849},{"$f":"'[2]5.2 Asset Age Profile'!BU44","v":92.605884112503404},{"$f":"'[2]5.2 Asset Age Profile'!BV44","v":0},{"$f":"'[2]5.2 Asset Age Profile'!BW44","v":0},{"$f":"'[2]5.2 Asset Age Profile'!BX44","v":0},{"$f":"'[2]5.2 Asset Age Profile'!BY44","v":0},{"$f":"'[2]5.2 Asset Age Profile'!BZ44","v":21.020016518786083},{"$f":"'[2]5.2 Asset Age Profile'!CA44","v":9.7821507635164124},{"$f":"'[2]5.2 Asset Age Profile'!CB44","v":0.15318619868347486},{"$f":"'[2]5.2 Asset Age Profile'!CC44","v":0},{"$f":"'[2]5.2 Asset Age Profile'!CD44","v":10.28519329198801},{"$f":"'[2]5.2 Asset Age Profile'!CE44","v":75.108396722249296},{"$f":"'[2]5.2 Asset Age Profile'!CF44","v":27.690561073424085},{"$f":"'[2]5.2 Asset Age Profile'!CG44","v":304.16350736162195},{"$f":"'[2]5.2 Asset Age Profile'!CH44","v":43.926266228106904},{"$f":"'[2]5.2 Asset Age Profile'!CI44","v":0},{"$f":"'[2]5.2 Asset Age Profile'!CJ44","v":0},{"$f":"'[2]5.2 Asset Age Profile'!CK44","v":0},{"$f":"'[2]5.2 Asset Age Profile'!CL44","v":0},{"$f":"'[2]5.2 Asset Age Profile'!CM44","v":0},{"$f":"'[2]5.2 Asset Age Profile'!CN44","v":0},{"$f":"'[2]5.2 Asset Age Profile'!CO44","v":92.978825847025846},{"$f":"'[2]5.2 Asset Age Profile'!CP44","v":0},{"$f":"'[2]5.2 Asset Age Profile'!CQ44","v":0},{"$f":"'[2]5.2 Asset Age Profile'!CR44","v":0},{"$f":"'[2]5.2 Asset Age Profile'!CS44","v":0},{"$f":"'[2]5.2 Asset Age Profile'!CT44","v":0},{"$f":"'[2]5.2 Asset Age Profile'!CU44","v":0},{"$f":"'[2]5.2 Asset Age Profile'!CV44","v":0},{"$f":"'[2]5.2 Asset Age Profile'!CW44","v":0},{"$f":"'[2]5.2 Asset Age Profile'!CX44","v":0},{"$f":"'[2]5.2 Asset Age Profile'!CY44","v":0},{"$f":"'[2]5.2 Asset Age Profile'!CZ44","v":0},{"$f":"'[2]5.2 Asset Age Profile'!DA44","v":0},{"$f":"'[2]5.2 Asset Age Profile'!DB44","v":0},{"$f":"'[2]5.2 Asset Age Profile'!DC44","v":0},{"$f":"'[2]5.2 Asset Age Profile'!DD44","v":0},{"$f":"'[2]5.2 Asset Age Profile'!DE44","v":0},{"$f":"'[2]5.2 Asset Age Profile'!DF44","v":0},{"$f":"'[2]5.2 Asset Age Profile'!DG44","v":0},{"$f":"'[2]5.2 Asset Age Profile'!DH44","v":0},{"$f":"'[2]5.2 Asset Age Profile'!DI44","v":0},{"$f":"'[2]5.2 Asset Age Profile'!DJ44","v":0},{"$f":"'[2]5.2 Asset Age Profile'!DK44","v":0},{"$f":"'[2]5.2 Asset Age Profile'!DL44","v":0},{"$f":"'[2]5.2 Asset Age Profile'!DM44","v":0},{"$f":"'[2]5.2 Asset Age Profile'!DN44","v":0},{"$f":"'[2]5.2 Asset Age Profile'!DO44","v":0},{"$f":"'[2]5.2 Asset Age Profile'!DP44","v":0},{"$f":"'[2]5.2 Asset Age Profile'!DQ44","v":0},{"$f":"'[2]5.2 Asset Age Profile'!DR44","v":0},{"$f":"'[2]5.2 Asset Age Profile'!DS44","v":0},{"$f":"'[2]5.2 Asset Age Profile'!DT44","v":0},{"$f":"'[2]5.2 Asset Age Profile'!DU44","v":0},{"$f":"'[2]5.2 Asset Age Profile'!DV44","v":0},{"$f":"'[2]5.2 Asset Age Profile'!DW44","v":0},{"$f":"'[2]5.2 Asset Age Profile'!DX44","v":0},{"$f":"'[2]5.2 Asset Age Profile'!DY44","v":0},{"$f":"'[2]5.2 Asset Age Profile'!DZ44","v":0},{"$f":"'[2]5.2 Asset Age Profile'!EA44","v":0},{"$f":"'[2]5.2 Asset Age Profile'!EB44","v":0},{"$f":"'[2]5.2 Asset Age Profile'!EC44","v":0},{"$f":"'[2]5.2 Asset Age Profile'!ED44","v":0},{"$f":"'[2]5.2 Asset Age Profile'!EE44","v":0},{"$f":"'[2]5.2 Asset Age Profile'!EF44","v":0},{"$f":"'[2]5.2 Asset Age Profile'!EG44","v":0},{"$f":"'[2]5.2 Asset Age Profile'!EH44","v":0},{"$f":"'[2]5.2 Asset Age Profile'!EI44","v":0},{"$f":"'[2]5.2 Asset Age Profile'!EJ44","v":0}]
["ED_ASS521_00035",null,"> 132 kV",null,null,null,null,null,null,null,null,null,null,{"$f":"'[2]5.2 Asset Age Profile'!N45","v":54.9},{"$f":"'[2]5.2 Asset Age Profile'!O45","v":0},{"$f":"'[2]5.2 Asset Age Profile'!P45","v":0},{"$f":"'[2]5.2 Asset Age Profile'!Q45","v":0},{"$f":"'[2]5.2 Asset Age Profile'!R45","v":0},{"$f":"'[2]5.2 Asset Age Profile'!S45","v":0},{"$f":"'[2]5.2 Asset Age Profile'!T45","v":0},{"$f":"'[2]5.2 Asset Age Profile'!U45","v":0},{"$f":"'[2]5.2 Asset Age Profile'!V45","v":0},{"$f":"'[2]5.2 Asset Age Profile'!W45","v":0},{"$f":"'[2]5.2 Asset Age Profile'!X45","v":0},{"$f":"'[2]5.2 Asset Age Profile'!Y45","v":7.4094534211370817},{"$f":"'[2]5.2 Asset Age Profile'!Z45","v":0},{"$f":"'[2]5.2 Asset Age Profile'!AA45","v":0},{"$f":"'[2]5.2 Asset Age Profile'!AB45","v":0},{"$f":"'[2]5.2 Asset Age Profile'!AC45","v":0},{"$f":"'[2]5.2 Asset Age Profile'!AD45","v":0},{"$f":"'[2]5.2 Asset Age Profile'!AE45","v":0},{"$f":"'[2]5.2 Asset Age Profile'!AF45","v":0},{"$f":"'[2]5.2 Asset Age Profile'!AG45","v":0},{"$f":"'[2]5.2 Asset Age Profile'!AH45","v":0},{"$f":"'[2]5.2 Asset Age Profile'!AI45","v":0},{"$f":"'[2]5.2 Asset Age Profile'!AJ45","v":0},{"$f":"'[2]5.2 Asset Age Profile'!AK45","v":0},{"$f":"'[2]5.2 Asset Age Profile'!AL45","v":0},{"$f":"'[2]5.2 Asset Age Profile'!AM45","v":0},{"$f":"'[2]5.2 Asset Age Profile'!AN45","v":0},{"$f":"'[2]5.2 Asset Age Profile'!AO45","v":0},{"$f":"'[2]5.2 Asset Age Profile'!AP45","v":0},{"$f":"'[2]5.2 Asset Age Profile'!AQ45","v":0},{"$f":"'[2]5.2 Asset Age Profile'!AR45","v":0},{"$f":"'[2]5.2 Asset Age Profile'!AS45","v":0},{"$f":"'[2]5.2 Asset Age Profile'!AT45","v":0},{"$f":"'[2]5.2 Asset Age Profile'!AU45","v":0},{"$f":"'[2]5.2 Asset Age Profile'!AV45","v":0},{"$f":"'[2]5.2 Asset Age Profile'!AW45","v":0},{"$f":"'[2]5.2 Asset Age Profile'!AX45","v":0},{"$f":"'[2]5.2 Asset Age Profile'!AY45","v":0},{"$f":"'[2]5.2 Asset Age Profile'!AZ45","v":0},{"$f":"'[2]5.2 Asset Age Profile'!BA45","v":0},{"$f":"'[2]5.2 Asset Age Profile'!BB45","v":0},{"$f":"'[2]5.2 Asset Age Profile'!BC45","v":0},{"$f":"'[2]5.2 Asset Age Profile'!BD45","v":0},{"$f":"'[2]5.2 Asset Age Profile'!BE45","v":0},{"$f":"'[2]5.2 Asset Age Profile'!BF45","v":0},{"$f":"'[2]5.2 Asset Age Profile'!BG45","v":0},{"$f":"'[2]5.2 Asset Age Profile'!BH45","v":0},{"$f":"'[2]5.2 Asset Age Profile'!BI45","v":0},{"$f":"'[2]5.2 Asset Age Profile'!BJ45","v":0},{"$f":"'[2]5.2 Asset Age Profile'!BK45","v":0},{"$f":"'[2]5.2 Asset Age Profile'!BL45","v":0},{"$f":"'[2]5.2 Asset Age Profile'!BM45","v":2.9724200500000002},{"$f":"'[2]5.2 Asset Age Profile'!BN45","v":0},{"$f":"'[2]5.2 Asset Age Profile'!BO45","v":0},{"$f":"'[2]5.2 Asset Age Profile'!BP45","v":0},{"$f":"'[2]5.2 Asset Age Profile'!BQ45","v":0},{"$f":"'[2]5.2 Asset Age Profile'!BR45","v":0},{"$f":"'[2]5.2 Asset Age Profile'!BS45","v":0},{"$f":"'[2]5.2 Asset Age Profile'!BT45","v":0},{"$f":"'[2]5.2 Asset Age Profile'!BU45","v":0},{"$f":"'[2]5.2 Asset Age Profile'!BV45","v":0},{"$f":"'[2]5.2 Asset Age Profile'!BW45","v":0},{"$f":"'[2]5.2 Asset Age Profile'!BX45","v":0},{"$f":"'[2]5.2 Asset Age Profile'!BY45","v":0},{"$f":"'[2]5.2 Asset Age Profile'!BZ45","v":0},{"$f":"'[2]5.2 Asset Age Profile'!CA45","v":0},{"$f":"'[2]5.2 Asset Age Profile'!CB45","v":0},{"$f":"'[2]5.2 Asset Age Profile'!CC45","v":0},{"$f":"'[2]5.2 Asset Age Profile'!CD45","v":0},{"$f":"'[2]5.2 Asset Age Profile'!CE45","v":0},{"$f":"'[2]5.2 Asset Age Profile'!CF45","v":0},{"$f":"'[2]5.2 Asset Age Profile'!CG45","v":0},{"$f":"'[2]5.2 Asset Age Profile'!CH45","v":0},{"$f":"'[2]5.2 Asset Age Profile'!CI45","v":0},{"$f":"'[2]5.2 Asset Age Profile'!CJ45","v":0},{"$f":"'[2]5.2 Asset Age Profile'!CK45","v":0},{"$f":"'[2]5.2 Asset Age Profile'!CL45","v":0},{"$f":"'[2]5.2 Asset Age Profile'!CM45","v":0},{"$f":"'[2]5.2 Asset Age Profile'!CN45","v":0},{"$f":"'[2]5.2 Asset Age Profile'!CO45","v":0},{"$f":"'[2]5.2 Asset Age Profile'!CP45","v":0},{"$f":"'[2]5.2 Asset Age Profile'!CQ45","v":0},{"$f":"'[2]5.2 Asset Age Profile'!CR45","v":0},{"$f":"'[2]5.2 Asset Age Profile'!CS45","v":0},{"$f":"'[2]5.2 Asset Age Profile'!CT45","v":0},{"$f":"'[2]5.2 Asset Age Profile'!CU45","v":0},{"$f":"'[2]5.2 Asset Age Profile'!CV45","v":0},{"$f":"'[2]5.2 Asset Age Profile'!CW45","v":0},{"$f":"'[2]5.2 Asset Age Profile'!CX45","v":0},{"$f":"'[2]5.2 Asset Age Profile'!CY45","v":0},{"$f":"'[2]5.2 Asset Age Profile'!CZ45","v":0},{"$f":"'[2]5.2 Asset Age Profile'!DA45","v":0},{"$f":"'[2]5.2 Asset Age Profile'!DB45","v":0},{"$f":"'[2]5.2 Asset Age Profile'!DC45","v":0},{"$f":"'[2]5.2 Asset Age Profile'!DD45","v":0},{"$f":"'[2]5.2 Asset Age Profile'!DE45","v":0},{"$f":"'[2]5.2 Asset Age Profile'!DF45","v":0},{"$f":"'[2]5.2 Asset Age Profile'!DG45","v":0},{"$f":"'[2]5.2 Asset Age Profile'!DH45","v":0},{"$f":"'[2]5.2 Asset Age Profile'!DI45","v":0},{"$f":"'[2]5.2 Asset Age Profile'!DJ45","v":0},{"$f":"'[2]5.2 Asset Age Profile'!DK45","v":0},{"$f":"'[2]5.2 Asset Age Profile'!DL45","v":0},{"$f":"'[2]5.2 Asset Age Profile'!DM45","v":0},{"$f":"'[2]5.2 Asset Age Profile'!DN45","v":0},{"$f":"'[2]5.2 Asset Age Profile'!DO45","v":0},{"$f":"'[2]5.2 Asset Age Profile'!DP45","v":0},{"$f":"'[2]5.2 Asset Age Profile'!DQ45","v":0},{"$f":"'[2]5.2 Asset Age Profile'!DR45","v":0},{"$f":"'[2]5.2 Asset Age Profile'!DS45","v":0},{"$f":"'[2]5.2 Asset Age Profile'!DT45","v":0},{"$f":"'[2]5.2 Asset Age Profile'!DU45","v":0},{"$f":"'[2]5.2 Asset Age Profile'!DV45","v":0},{"$f":"'[2]5.2 Asset Age Profile'!DW45","v":0},{"$f":"'[2]5.2 Asset Age Profile'!DX45","v":0},{"$f":"'[2]5.2 Asset Age Profile'!DY45","v":0},{"$f":"'[2]5.2 Asset Age Profile'!DZ45","v":0},{"$f":"'[2]5.2 Asset Age Profile'!EA45","v":0},{"$f":"'[2]5.2 Asset Age Profile'!EB45","v":0},{"$f":"'[2]5.2 Asset Age Profile'!EC45","v":0},{"$f":"'[2]5.2 Asset Age Profile'!ED45","v":0},{"$f":"'[2]5.2 Asset Age Profile'!EE45","v":0},{"$f":"'[2]5.2 Asset Age Profile'!EF45","v":0},{"$f":"'[2]5.2 Asset Age Profile'!EG45","v":0},{"$f":"'[2]5.2 Asset Age Profile'!EH45","v":0},{"$f":"'[2]5.2 Asset Age Profile'!EI45","v":0},{"$f":"'[2]5.2 Asset Age Profile'!EJ45","v":0}]
["ED_ASS521_00036",null,"Other",null,"DNSP NAME","REPEX","OVERHEAD CONDUCTORS","Other","DESCRIPTOR METRIC","MEAN ECONOMIC LIFE","YEARS","NUMBER",null,{"$f":"'[2]5.2 Asset Age Profile'!N46","v":0},{"$f":"'[2]5.2 Asset Age Profile'!O46","v":0},{"$f":"'[2]5.2 Asset Age Profile'!P46","v":0},{"$f":"'[2]5.2 Asset Age Profile'!Q46","v":0},{"$f":"'[2]5.2 Asset Age Profile'!R46","v":0},{"$f":"'[2]5.2 Asset Age Profile'!S46","v":0},{"$f":"'[2]5.2 Asset Age Profile'!T46","v":0},{"$f":"'[2]5.2 Asset Age Profile'!U46","v":0},{"$f":"'[2]5.2 Asset Age Profile'!V46","v":0},{"$f":"'[2]5.2 Asset Age Profile'!W46","v":0},{"$f":"'[2]5.2 Asset Age Profile'!X46","v":0},{"$f":"'[2]5.2 Asset Age Profile'!Y46","v":0},{"$f":"'[2]5.2 Asset Age Profile'!Z46","v":0},{"$f":"'[2]5.2 Asset Age Profile'!AA46","v":0},{"$f":"'[2]5.2 Asset Age Profile'!AB46","v":0},{"$f":"'[2]5.2 Asset Age Profile'!AC46","v":0},{"$f":"'[2]5.2 Asset Age Profile'!AD46","v":0},{"$f":"'[2]5.2 Asset Age Profile'!AE46","v":0},{"$f":"'[2]5.2 Asset Age Profile'!AF46","v":0},{"$f":"'[2]5.2 Asset Age Profile'!AG46","v":0},{"$f":"'[2]5.2 Asset Age Profile'!AH46","v":0},{"$f":"'[2]5.2 Asset Age Profile'!AI46","v":0},{"$f":"'[2]5.2 Asset Age Profile'!AJ46","v":0},{"$f":"'[2]5.2 Asset Age Profile'!AK46","v":0},{"$f":"'[2]5.2 Asset Age Profile'!AL46","v":0},{"$f":"'[2]5.2 Asset Age Profile'!AM46","v":0},{"$f":"'[2]5.2 Asset Age Profile'!AN46","v":0},{"$f":"'[2]5.2 Asset Age Profile'!AO46","v":0},{"$f":"'[2]5.2 Asset Age Profile'!AP46","v":0},{"$f":"'[2]5.2 Asset Age Profile'!AQ46","v":0},{"$f":"'[2]5.2 Asset Age Profile'!AR46","v":0},{"$f":"'[2]5.2 Asset Age Profile'!AS46","v":0},{"$f":"'[2]5.2 Asset Age Profile'!AT46","v":0},{"$f":"'[2]5.2 Asset Age Profile'!AU46","v":0},{"$f":"'[2]5.2 Asset Age Profile'!AV46","v":0},{"$f":"'[2]5.2 Asset Age Profile'!AW46","v":0},{"$f":"'[2]5.2 Asset Age Profile'!AX46","v":0},{"$f":"'[2]5.2 Asset Age Profile'!AY46","v":0},{"$f":"'[2]5.2 Asset Age Profile'!AZ46","v":0},{"$f":"'[2]5.2 Asset Age Profile'!BA46","v":0},{"$f":"'[2]5.2 Asset Age Profile'!BB46","v":0},{"$f":"'[2]5.2 Asset Age Profile'!BC46","v":0},{"$f":"'[2]5.2 Asset Age Profile'!BD46","v":0},{"$f":"'[2]5.2 Asset Age Profile'!BE46","v":0},{"$f":"'[2]5.2 Asset Age Profile'!BF46","v":0},{"$f":"'[2]5.2 Asset Age Profile'!BG46","v":0},{"$f":"'[2]5.2 Asset Age Profile'!BH46","v":0},{"$f":"'[2]5.2 Asset Age Profile'!BI46","v":0},{"$f":"'[2]5.2 Asset Age Profile'!BJ46","v":0},{"$f":"'[2]5.2 Asset Age Profile'!BK46","v":0},{"$f":"'[2]5.2 Asset Age Profile'!BL46","v":0},{"$f":"'[2]5.2 Asset Age Profile'!BM46","v":0},{"$f":"'[2]5.2 Asset Age Profile'!BN46","v":0},{"$f":"'[2]5.2 Asset Age Profile'!BO46","v":0},{"$f":"'[2]5.2 Asset Age Profile'!BP46","v":0},{"$f":"'[2]5.2 Asset Age Profile'!BQ46","v":0},{"$f":"'[2]5.2 Asset Age Profile'!BR46","v":0},{"$f":"'[2]5.2 Asset Age Profile'!BS46","v":0},{"$f":"'[2]5.2 Asset Age Profile'!BT46","v":0},{"$f":"'[2]5.2 Asset Age Profile'!BU46","v":0},{"$f":"'[2]5.2 Asset Age Profile'!BV46","v":0},{"$f":"'[2]5.2 Asset Age Profile'!BW46","v":0},{"$f":"'[2]5.2 Asset Age Profile'!BX46","v":0},{"$f":"'[2]5.2 Asset Age Profile'!BY46","v":0},{"$f":"'[2]5.2 Asset Age Profile'!BZ46","v":0},{"$f":"'[2]5.2 Asset Age Profile'!CA46","v":0},{"$f":"'[2]5.2 Asset Age Profile'!CB46","v":0},{"$f":"'[2]5.2 Asset Age Profile'!CC46","v":0},{"$f":"'[2]5.2 Asset Age Profile'!CD46","v":0},{"$f":"'[2]5.2 Asset Age Profile'!CE46","v":0},{"$f":"'[2]5.2 Asset Age Profile'!CF46","v":0},{"$f":"'[2]5.2 Asset Age Profile'!CG46","v":0},{"$f":"'[2]5.2 Asset Age Profile'!CH46","v":0},{"$f":"'[2]5.2 Asset Age Profile'!CI46","v":0},{"$f":"'[2]5.2 Asset Age Profile'!CJ46","v":0},{"$f":"'[2]5.2 Asset Age Profile'!CK46","v":0},{"$f":"'[2]5.2 Asset Age Profile'!CL46","v":0},{"$f":"'[2]5.2 Asset Age Profile'!CM46","v":0},{"$f":"'[2]5.2 Asset Age Profile'!CN46","v":0},{"$f":"'[2]5.2 Asset Age Profile'!CO46","v":0},{"$f":"'[2]5.2 Asset Age Profile'!CP46","v":0},{"$f":"'[2]5.2 Asset Age Profile'!CQ46","v":0},{"$f":"'[2]5.2 Asset Age Profile'!CR46","v":0},{"$f":"'[2]5.2 Asset Age Profile'!CS46","v":0},{"$f":"'[2]5.2 Asset Age Profile'!CT46","v":0},{"$f":"'[2]5.2 Asset Age Profile'!CU46","v":0},{"$f":"'[2]5.2 Asset Age Profile'!CV46","v":0},{"$f":"'[2]5.2 Asset Age Profile'!CW46","v":0},{"$f":"'[2]5.2 Asset Age Profile'!CX46","v":0},{"$f":"'[2]5.2 Asset Age Profile'!CY46","v":0},{"$f":"'[2]5.2 Asset Age Profile'!CZ46","v":0},{"$f":"'[2]5.2 Asset Age Profile'!DA46","v":0},{"$f":"'[2]5.2 Asset Age Profile'!DB46","v":0},{"$f":"'[2]5.2 Asset Age Profile'!DC46","v":0},{"$f":"'[2]5.2 Asset Age Profile'!DD46","v":0},{"$f":"'[2]5.2 Asset Age Profile'!DE46","v":0},{"$f":"'[2]5.2 Asset Age Profile'!DF46","v":0},{"$f":"'[2]5.2 Asset Age Profile'!DG46","v":0},{"$f":"'[2]5.2 Asset Age Profile'!DH46","v":0},{"$f":"'[2]5.2 Asset Age Profile'!DI46","v":0},{"$f":"'[2]5.2 Asset Age Profile'!DJ46","v":0},{"$f":"'[2]5.2 Asset Age Profile'!DK46","v":0},{"$f":"'[2]5.2 Asset Age Profile'!DL46","v":0},{"$f":"'[2]5.2 Asset Age Profile'!DM46","v":0},{"$f":"'[2]5.2 Asset Age Profile'!DN46","v":0},{"$f":"'[2]5.2 Asset Age Profile'!DO46","v":0},{"$f":"'[2]5.2 Asset Age Profile'!DP46","v":0},{"$f":"'[2]5.2 Asset Age Profile'!DQ46","v":0},{"$f":"'[2]5.2 Asset Age Profile'!DR46","v":0},{"$f":"'[2]5.2 Asset Age Profile'!DS46","v":0},{"$f":"'[2]5.2 Asset Age Profile'!DT46","v":0},{"$f":"'[2]5.2 Asset Age Profile'!DU46","v":0},{"$f":"'[2]5.2 Asset Age Profile'!DV46","v":0},{"$f":"'[2]5.2 Asset Age Profile'!DW46","v":0},{"$f":"'[2]5.2 Asset Age Profile'!DX46","v":0},{"$f":"'[2]5.2 Asset Age Profile'!DY46","v":0},{"$f":"'[2]5.2 Asset Age Profile'!DZ46","v":0},{"$f":"'[2]5.2 Asset Age Profile'!EA46","v":0},{"$f":"'[2]5.2 Asset Age Profile'!EB46","v":0},{"$f":"'[2]5.2 Asset Age Profile'!EC46","v":0},{"$f":"'[2]5.2 Asset Age Profile'!ED46","v":0},{"$f":"'[2]5.2 Asset Age Profile'!EE46","v":0},{"$f":"'[2]5.2 Asset Age Profile'!EF46","v":0},{"$f":"'[2]5.2 Asset Age Profile'!EG46","v":0},{"$f":"'[2]5.2 Asset Age Profile'!EH46","v":0},{"$f":"'[2]5.2 Asset Age Profile'!EI46","v":0},{"$f":"'[2]5.2 Asset Age Profile'!EJ46","v":0}]
["ED_ASS521_00037","UNDERGROUND CABLES BY: \nHIGHEST OPERATING VOLTAGE","˂ = 1 kV",null,"DNSP NAME","REPEX","UNDERGROUND CABLES","˂ = 1 kV","DESCRIPTOR METRIC","MEAN ECONOMIC LIFE","YEARS","NUMBER",null,{"$f":"'[2]5.2 Asset Age Profile'!N47","v":53.8},{"$f":"'[2]5.2 Asset Age Profile'!O47","v":0},{"$f":"'[2]5.2 Asset Age Profile'!P47","v":0},{"$f":"'[2]5.2 Asset Age Profile'!Q47","v":0},{"$f":"'[2]5.2 Asset Age Profile'!R47","v":0},{"$f":"'[2]5.2 Asset Age Profile'!S47","v":0},{"$f":"'[2]5.2 Asset Age Profile'!T47","v":0},{"$f":"'[2]5.2 Asset Age Profile'!U47","v":0},{"$f":"'[2]5.2 Asset Age Profile'!V47","v":0},{"$f":"'[2]5.2 Asset Age Profile'!W47","v":0},{"$f":"'[2]5.2 Asset Age Profile'!X47","v":0},{"$f":"'[2]5.2 Asset Age Profile'!Y47","v":7.334848328356899},{"$f":"'[2]5.2 Asset Age Profile'!Z47","v":0},{"$f":"'[2]5.2 Asset Age Profile'!AA47","v":0},{"$f":"'[2]5.2 Asset Age Profile'!AB47","v":0},{"$f":"'[2]5.2 Asset Age Profile'!AC47","v":0},{"$f":"'[2]5.2 Asset Age Profile'!AD47","v":0},{"$f":"'[2]5.2 Asset Age Profile'!AE47","v":0},{"$f":"'[2]5.2 Asset Age Profile'!AF47","v":0},{"$f":"'[2]5.2 Asset Age Profile'!AG47","v":0},{"$f":"'[2]5.2 Asset Age Profile'!AH47","v":0},{"$f":"'[2]5.2 Asset Age Profile'!AI47","v":0},{"$f":"'[2]5.2 Asset Age Profile'!AJ47","v":114.55814429537001},{"$f":"'[2]5.2 Asset Age Profile'!AK47","v":170.29846693318004},{"$f":"'[2]5.2 Asset Age Profile'!AL47","v":144.08364457050001},{"$f":"'[2]5.2 Asset Age Profile'!AM47","v":159.77906597029994},{"$f":"'[2]5.2 Asset Age Profile'!AN47","v":132.28467293309001},{"$f":"'[2]5.2 Asset Age Profile'!AO47","v":134.3273130755},{"$f":"'[2]5.2 Asset Age Profile'!AP47","v":186.86151270223999},{"$f":"'[2]5.2 Asset Age Profile'!AQ47","v":204.07492971039994},{"$f":"'[2]5.2 Asset Age Profile'!AR47","v":173.54750638279998},{"$f":"'[2]5.2 Asset Age Profile'!AS47","v":278.7203399265},{"$f":"'[2]5.2 Asset Age Profile'!AT47","v":202.99912301740005},{"$f":"'[2]5.2 Asset Age Profile'!AU47","v":304.26638164466249},{"$f":"'[2]5.2 Asset Age Profile'!AV47","v":267.48026725066745},{"$f":"'[2]5.2 Asset Age Profile'!AW47","v":284.46818418789769},{"$f":"'[2]5.2 Asset Age Profile'!AX47","v":150.39629192235202},{"$f":"'[2]5.2 Asset Age Profile'!AY47","v":126.40813072423637},{"$f":"'[2]5.2 Asset Age Profile'!AZ47","v":109.36484889486525},{"$f":"'[2]5.2 Asset Age Profile'!BA47","v":101.68660664532909},{"$f":"'[2]5.2 Asset Age Profile'!BB47","v":109.38750270528243},{"$f":"'[2]5.2 Asset Age Profile'!BC47","v":133.69521480065873},{"$f":"'[2]5.2 Asset Age Profile'!BD47","v":153.96525660377245},{"$f":"'[2]5.2 Asset Age Profile'!BE47","v":175.29581870046138},{"$f":"'[2]5.2 Asset Age Profile'!BF47","v":160.49655704920619},{"$f":"'[2]5.2 Asset Age Profile'!BG47","v":136.57110587699589},{"$f":"'[2]5.2 Asset Age Profile'!BH47","v":155.26502337140153},{"$f":"'[2]5.2 Asset Age Profile'!BI47","v":168.80147306849832},{"$f":"'[2]5.2 Asset Age Profile'!BJ47","v":170.40824846540676},{"$f":"'[2]5.2 Asset Age Profile'!BK47","v":90.869739637629479},{"$f":"'[2]5.2 Asset Age Profile'!BL47","v":55.37376169378161},{"$f":"'[2]5.2 Asset Age Profile'!BM47","v":94.17249894460781},{"$f":"'[2]5.2 Asset Age Profile'!BN47","v":81.741332988246384},{"$f":"'[2]5.2 Asset Age Profile'!BO47","v":71.032992625588605},{"$f":"'[2]5.2 Asset Age Profile'!BP47","v":86.383185663150442},{"$f":"'[2]5.2 Asset Age Profile'!BQ47","v":141.43410353935374},{"$f":"'[2]5.2 Asset Age Profile'!BR47","v":118.18165540311351},{"$f":"'[2]5.2 Asset Age Profile'!BS47","v":90.307293136980292},{"$f":"'[2]5.2 Asset Age Profile'!BT47","v":73.109201194844033},{"$f":"'[2]5.2 Asset Age Profile'!BU47","v":64.059881558668451},{"$f":"'[2]5.2 Asset Age Profile'!BV47","v":84.870219660123311},{"$f":"'[2]5.2 Asset Age Profile'!BW47","v":70.787212433042711},{"$f":"'[2]5.2 Asset Age Profile'!BX47","v":71.004636220831912},{"$f":"'[2]5.2 Asset Age Profile'!BY47","v":69.487883323938959},{"$f":"'[2]5.2 Asset Age Profile'!BZ47","v":53.169044762701105},{"$f":"'[2]5.2 Asset Age Profile'!CA47","v":45.247114297391967},{"$f":"'[2]5.2 Asset Age Profile'!CB47","v":38.605044347174804},{"$f":"'[2]5.2 Asset Age Profile'!CC47","v":28.808688010132919},{"$f":"'[2]5.2 Asset Age Profile'!CD47","v":37.828943022823729},{"$f":"'[2]5.2 Asset Age Profile'!CE47","v":15.486895710233286},{"$f":"'[2]5.2 Asset Age Profile'!CF47","v":11.430137565553727},{"$f":"'[2]5.2 Asset Age Profile'!CG47","v":24.826435320865944},{"$f":"'[2]5.2 Asset Age Profile'!CH47","v":12.057173251028996},{"$f":"'[2]5.2 Asset Age Profile'!CI47","v":10.396782474341396},{"$f":"'[2]5.2 Asset Age Profile'!CJ47","v":13.235949771604766},{"$f":"'[2]5.2 Asset Age Profile'!CK47","v":6.8678215683760051},{"$f":"'[2]5.2 Asset Age Profile'!CL47","v":3.914901305424074},{"$f":"'[2]5.2 Asset Age Profile'!CM47","v":4.5990407763958352},{"$f":"'[2]5.2 Asset Age Profile'!CN47","v":3.4463863904309875},{"$f":"'[2]5.2 Asset Age Profile'!CO47","v":0.5249114794320362},{"$f":"'[2]5.2 Asset Age Profile'!CP47","v":1.7959346968957888},{"$f":"'[2]5.2 Asset Age Profile'!CQ47","v":3.4184534312596551},{"$f":"'[2]5.2 Asset Age Profile'!CR47","v":4.2638669836254195},{"$f":"'[2]5.2 Asset Age Profile'!CS47","v":1.9437370255068853},{"$f":"'[2]5.2 Asset Age Profile'!CT47","v":1.3039387675549012},{"$f":"'[2]5.2 Asset Age Profile'!CU47","v":0.19901713090782977},{"$f":"'[2]5.2 Asset Age Profile'!CV47","v":0.47872492098694513},{"$f":"'[2]5.2 Asset Age Profile'!CW47","v":8.609732804278778},{"$f":"'[2]5.2 Asset Age Profile'!CX47","v":1.1342265857225362},{"$f":"'[2]5.2 Asset Age Profile'!CY47","v":2.3750165929206641},{"$f":"'[2]5.2 Asset Age Profile'!CZ47","v":5.1602314516812679E-2},{"$f":"'[2]5.2 Asset Age Profile'!DA47","v":7.9074470463150387E-2},{"$f":"'[2]5.2 Asset Age Profile'!DB47","v":0},{"$f":"'[2]5.2 Asset Age Profile'!DC47","v":0},{"$f":"'[2]5.2 Asset Age Profile'!DD47","v":4.0357012367379097E-2},{"$f":"'[2]5.2 Asset Age Profile'!DE47","v":0},{"$f":"'[2]5.2 Asset Age Profile'!DF47","v":0},{"$f":"'[2]5.2 Asset Age Profile'!DG47","v":0.64470867947020583},{"$f":"'[2]5.2 Asset Age Profile'!DH47","v":0.53395584980950428},{"$f":"'[2]5.2 Asset Age Profile'!DI47","v":4.5757427400818229E-2},{"$f":"'[2]5.2 Asset Age Profile'!DJ47","v":0.24521495798581641},{"$f":"'[2]5.2 Asset Age Profile'!DK47","v":0},{"$f":"'[2]5.2 Asset Age Profile'!DL47","v":0},{"$f":"'[2]5.2 Asset Age Profile'!DM47","v":0},{"$f":"'[2]5.2 Asset Age Profile'!DN47","v":0},{"$f":"'[2]5.2 Asset Age Profile'!DO47","v":0},{"$f":"'[2]5.2 Asset Age Profile'!DP47","v":0},{"$f":"'[2]5.2 Asset Age Profile'!DQ47","v":0},{"$f":"'[2]5.2 Asset Age Profile'!DR47","v":0},{"$f":"'[2]5.2 Asset Age Profile'!DS47","v":0},{"$f":"'[2]5.2 Asset Age Profile'!DT47","v":0},{"$f":"'[2]5.2 Asset Age Profile'!DU47","v":0},{"$f":"'[2]5.2 Asset Age Profile'!DV47","v":0},{"$f":"'[2]5.2 Asset Age Profile'!DW47","v":0},{"$f":"'[2]5.2 Asset Age Profile'!DX47","v":0},{"$f":"'[2]5.2 Asset Age Profile'!DY47","v":0},{"$f":"'[2]5.2 Asset Age Profile'!DZ47","v":0},{"$f":"'[2]5.2 Asset Age Profile'!EA47","v":0},{"$f":"'[2]5.2 Asset Age Profile'!EB47","v":0},{"$f":"'[2]5.2 Asset Age Profile'!EC47","v":0},{"$f":"'[2]5.2 Asset Age Profile'!ED47","v":0},{"$f":"'[2]5.2 Asset Age Profile'!EE47","v":0},{"$f":"'[2]5.2 Asset Age Profile'!EF47","v":0},{"$f":"'[2]5.2 Asset Age Profile'!EG47","v":0},{"$f":"'[2]5.2 Asset Age Profile'!EH47","v":0},{"$f":"'[2]5.2 Asset Age Profile'!EI47","v":0},{"$f":"'[2]5.2 Asset Age Profile'!EJ47","v":0}]
["ED_ASS521_00038",null,"> 1 kV & < = 11 kV",null,null,null,null,null,null,null,null,null,null,{"$f":"'[2]5.2 Asset Age Profile'!N48","v":53.8},{"$f":"'[2]5.2 Asset Age Profile'!O48","v":0},{"$f":"'[2]5.2 Asset Age Profile'!P48","v":0},{"$f":"'[2]5.2 Asset Age Profile'!Q48","v":0},{"$f":"'[2]5.2 Asset Age Profile'!R48","v":0},{"$f":"'[2]5.2 Asset Age Profile'!S48","v":0},{"$f":"'[2]5.2 Asset Age Profile'!T48","v":0},{"$f":"'[2]5.2 Asset Age Profile'!U48","v":0},{"$f":"'[2]5.2 Asset Age Profile'!V48","v":0},{"$f":"'[2]5.2 Asset Age Profile'!W48","v":0},{"$f":"'[2]5.2 Asset Age Profile'!X48","v":0},{"$f":"'[2]5.2 Asset Age Profile'!Y48","v":7.334848328356899},{"$f":"'[2]5.2 Asset Age Profile'!Z48","v":0},{"$f":"'[2]5.2 Asset Age Profile'!AA48","v":0},{"$f":"'[2]5.2 Asset Age Profile'!AB48","v":0},{"$f":"'[2]5.2 Asset Age Profile'!AC48","v":0},{"$f":"'[2]5.2 Asset Age Profile'!AD48","v":0},{"$f":"'[2]5.2 Asset Age Profile'!AE48","v":0},{"$f":"'[2]5.2 Asset Age Profile'!AF48","v":0},{"$f":"'[2]5.2 Asset Age Profile'!AG48","v":0},{"$f":"'[2]5.2 Asset Age Profile'!AH48","v":0},{"$f":"'[2]5.2 Asset Age Profile'!AI48","v":0},{"$f":"'[2]5.2 Asset Age Profile'!AJ48","v":46.493451940799986},{"$f":"'[2]5.2 Asset Age Profile'!AK48","v":67.826093422},{"$f":"'[2]5.2 Asset Age Profile'!AL48","v":108.29353671432999},{"$f":"'[2]5.2 Asset Age Profile'!AM48","v":86.729431061799986},{"$f":"'[2]5.2 Asset Age Profile'!AN48","v":77.47836453699999},{"$f":"'[2]5.2 Asset Age Profile'!AO48","v":98.849903834540015},{"$f":"'[2]5.2 Asset Age Profile'!AP48","v":110.94111549099999},{"$f":"'[2]5.2 Asset Age Profile'!AQ48","v":126.07374829012998},{"$f":"'[2]5.2 Asset Age Profile'!AR48","v":99.424245268000007},{"$f":"'[2]5.2 Asset Age Profile'!AS48","v":82.406297461899996},{"$f":"'[2]5.2 Asset Age Profile'!AT48","v":95.092944943299997},{"$f":"'[2]5.2 Asset Age Profile'!AU48","v":117.43699172976974},{"$f":"'[2]5.2 Asset Age Profile'!AV48","v":70.812466787233319},{"$f":"'[2]5.2 Asset Age Profile'!AW48","v":91.563773395589038},{"$f":"'[2]5.2 Asset Age Profile'!AX48","v":43.003725738397861},{"$f":"'[2]5.2 Asset Age Profile'!AY48","v":55.514869786256753},{"$f":"'[2]5.2 Asset Age Profile'!AZ48","v":26.106526430247566},{"$f":"'[2]5.2 Asset Age Profile'!BA48","v":19.985609145758165},{"$f":"'[2]5.2 Asset Age Profile'!BB48","v":11.578723473010559},{"$f":"'[2]5.2 Asset Age Profile'!BC48","v":48.702298504375733},{"$f":"'[2]5.2 Asset Age Profile'!BD48","v":42.345888745409532},{"$f":"'[2]5.2 Asset Age Profile'!BE48","v":30.562170136601239},{"$f":"'[2]5.2 Asset Age Profile'!BF48","v":25.64430224782517},{"$f":"'[2]5.2 Asset Age Profile'!BG48","v":43.42676211735327},{"$f":"'[2]5.2 Asset Age Profile'!BH48","v":42.157654133690116},{"$f":"'[2]5.2 Asset Age Profile'!BI48","v":31.71715210436696},{"$f":"'[2]5.2 Asset Age Profile'!BJ48","v":29.460144648869413},{"$f":"'[2]5.2 Asset Age Profile'!BK48","v":13.713381030565429},{"$f":"'[2]5.2 Asset Age Profile'!BL48","v":10.480644792664091},{"$f":"'[2]5.2 Asset Age Profile'!BM48","v":23.341089839503567},{"$f":"'[2]5.2 Asset Age Profile'!BN48","v":14.426237475348662},{"$f":"'[2]5.2 Asset Age Profile'!BO48","v":14.836904335994298},{"$f":"'[2]5.2 Asset Age Profile'!BP48","v":21.784312970911323},{"$f":"'[2]5.2 Asset Age Profile'!BQ48","v":43.537779694931501},{"$f":"'[2]5.2 Asset Age Profile'!BR48","v":31.416866910101636},{"$f":"'[2]5.2 Asset Age Profile'!BS48","v":22.073448580580489},{"$f":"'[2]5.2 Asset Age Profile'!BT48","v":9.612951535395613},{"$f":"'[2]5.2 Asset Age Profile'!BU48","v":13.640364391242006},{"$f":"'[2]5.2 Asset Age Profile'!BV48","v":10.558117224709754},{"$f":"'[2]5.2 Asset Age Profile'!BW48","v":10.254753410709279},{"$f":"'[2]5.2 Asset Age Profile'!BX48","v":14.051953896268159},{"$f":"'[2]5.2 Asset Age Profile'!BY48","v":12.641391227821993},{"$f":"'[2]5.2 Asset Age Profile'!BZ48","v":6.8856147609545637},{"$f":"'[2]5.2 Asset Age Profile'!CA48","v":7.4988682761661032},{"$f":"'[2]5.2 Asset Age Profile'!CB48","v":17.759134751801188},{"$f":"'[2]5.2 Asset Age Profile'!CC48","v":8.2012255993676284},{"$f":"'[2]5.2 Asset Age Profile'!CD48","v":10.794533844796819},{"$f":"'[2]5.2 Asset Age Profile'!CE48","v":4.7772994031707974},{"$f":"'[2]5.2 Asset Age Profile'!CF48","v":1.7284939644570114},{"$f":"'[2]5.2 Asset Age Profile'!CG48","v":0.91000184446656252},{"$f":"'[2]5.2 Asset Age Profile'!CH48","v":0.7548504531855309},{"$f":"'[2]5.2 Asset Age Profile'!CI48","v":2.5576120065173682},{"$f":"'[2]5.2 Asset Age Profile'!CJ48","v":1.6120642181282849},{"$f":"'[2]5.2 Asset Age Profile'!CK48","v":3.6377407459788236E-2},{"$f":"'[2]5.2 Asset Age Profile'!CL48","v":1.4606654413984812E-2},{"$f":"'[2]5.2 Asset Age Profile'!CM48","v":0.65042489568915718},{"$f":"'[2]5.2 Asset Age Profile'!CN48","v":1.1237248367922077},{"$f":"'[2]5.2 Asset Age Profile'!CO48","v":0},{"$f":"'[2]5.2 Asset Age Profile'!CP48","v":5.2647382204080148E-2},{"$f":"'[2]5.2 Asset Age Profile'!CQ48","v":0.10059918559335715},{"$f":"'[2]5.2 Asset Age Profile'!CR48","v":2.1607784519270798},{"$f":"'[2]5.2 Asset Age Profile'!CS48","v":0.37183898208052513},{"$f":"'[2]5.2 Asset Age Profile'!CT48","v":3.5577181279473511E-3},{"$f":"'[2]5.2 Asset Age Profile'!CU48","v":4.2985957246180234E-2},{"$f":"'[2]5.2 Asset Age Profile'!CV48","v":1.7627182276051148},{"$f":"'[2]5.2 Asset Age Profile'!CW48","v":1.8734214195530781},{"$f":"'[2]5.2 Asset Age Profile'!CX48","v":0},{"$f":"'[2]5.2 Asset Age Profile'!CY48","v":0},{"$f":"'[2]5.2 Asset Age Profile'!CZ48","v":0},{"$f":"'[2]5.2 Asset Age Profile'!DA48","v":0},{"$f":"'[2]5.2 Asset Age Profile'!DB48","v":0},{"$f":"'[2]5.2 Asset Age Profile'!DC48","v":0},{"$f":"'[2]5.2 Asset Age Profile'!DD48","v":0},{"$f":"'[2]5.2 Asset Age Profile'!DE48","v":0},{"$f":"'[2]5.2 Asset Age Profile'!DF48","v":0},{"$f":"'[2]5.2 Asset Age Profile'!DG48","v":6.6243779093547353E-2},{"$f":"'[2]5.2 Asset Age Profile'!DH48","v":0},{"$f":"'[2]5.2 Asset Age Profile'!DI48","v":0},{"$f":"'[2]5.2 Asset Age Profile'!DJ48","v":0},{"$f":"'[2]5.2 Asset Age Profile'!DK48","v":0},{"$f":"'[2]5.2 Asset Age Profile'!DL48","v":0},{"$f":"'[2]5.2 Asset Age Profile'!DM48","v":0},{"$f":"'[2]5.2 Asset Age Profile'!DN48","v":0},{"$f":"'[2]5.2 Asset Age Profile'!DO48","v":0},{"$f":"'[2]5.2 Asset Age Profile'!DP48","v":0},{"$f":"'[2]5.2 Asset Age Profile'!DQ48","v":0},{"$f":"'[2]5.2 Asset Age Profile'!DR48","v":0},{"$f":"'[2]5.2 Asset Age Profile'!DS48","v":0},{"$f":"'[2]5.2 Asset Age Profile'!DT48","v":0},{"$f":"'[2]5.2 Asset Age Profile'!DU48","v":0},{"$f":"'[2]5.2 Asset Age Profile'!DV48","v":0},{"$f":"'[2]5.2 Asset Age Profile'!DW48","v":0},{"$f":"'[2]5.2 Asset Age Profile'!DX48","v":0},{"$f":"'[2]5.2 Asset Age Profile'!DY48","v":0},{"$f":"'[2]5.2 Asset Age Profile'!DZ48","v":0},{"$f":"'[2]5.2 Asset Age Profile'!EA48","v":0},{"$f":"'[2]5.2 Asset Age Profile'!EB48","v":0},{"$f":"'[2]5.2 Asset Age Profile'!EC48","v":0},{"$f":"'[2]5.2 Asset Age Profile'!ED48","v":0},{"$f":"'[2]5.2 Asset Age Profile'!EE48","v":0},{"$f":"'[2]5.2 Asset Age Profile'!EF48","v":0},{"$f":"'[2]5.2 Asset Age Profile'!EG48","v":0},{"$f":"'[2]5.2 Asset Age Profile'!EH48","v":0},{"$f":"'[2]5.2 Asset Age Profile'!EI48","v":0},{"$f":"'[2]5.2 Asset Age Profile'!EJ48","v":0}]
["ED_ASS521_00039",null,"> 11 kV & < = 22 kV",null,null,null,null,null,null,null,null,null,null,{"$f":"'[2]5.2 Asset Age Profile'!N49","v":53.8},{"$f":"'[2]5.2 Asset Age Profile'!O49","v":0},{"$f":"'[2]5.2 Asset Age Profile'!P49","v":0},{"$f":"'[2]5.2 Asset Age Profile'!Q49","v":0},{"$f":"'[2]5.2 Asset Age Profile'!R49","v":0},{"$f":"'[2]5.2 Asset Age Profile'!S49","v":0},{"$f":"'[2]5.2 Asset Age Profile'!T49","v":0},{"$f":"'[2]5.2 Asset Age Profile'!U49","v":0},{"$f":"'[2]5.2 Asset Age Profile'!V49","v":0},{"$f":"'[2]5.2 Asset Age Profile'!W49","v":0},{"$f":"'[2]5.2 Asset Age Profile'!X49","v":0},{"$f":"'[2]5.2 Asset Age Profile'!Y49","v":7.334848328356899},{"$f":"'[2]5.2 Asset Age Profile'!Z49","v":0},{"$f":"'[2]5.2 Asset Age Profile'!AA49","v":0},{"$f":"'[2]5.2 Asset Age Profile'!AB49","v":0},{"$f":"'[2]5.2 Asset Age Profile'!AC49","v":0},{"$f":"'[2]5.2 Asset Age Profile'!AD49","v":0},{"$f":"'[2]5.2 Asset Age Profile'!AE49","v":0},{"$f":"'[2]5.2 Asset Age Profile'!AF49","v":0},{"$f":"'[2]5.2 Asset Age Profile'!AG49","v":0},{"$f":"'[2]5.2 Asset Age Profile'!AH49","v":0},{"$f":"'[2]5.2 Asset Age Profile'!AI49","v":0},{"$f":"'[2]5.2 Asset Age Profile'!AJ49","v":9.5118214540000015},{"$f":"'[2]5.2 Asset Age Profile'!AK49","v":12.702531438500001},{"$f":"'[2]5.2 Asset Age Profile'!AL49","v":19.624077372000002},{"$f":"'[2]5.2 Asset Age Profile'!AM49","v":19.157278819699997},{"$f":"'[2]5.2 Asset Age Profile'!AN49","v":8.8292699530900034},{"$f":"'[2]5.2 Asset Age Profile'!AO49","v":14.0862708682},{"$f":"'[2]5.2 Asset Age Profile'!AP49","v":25.717866805600003},{"$f":"'[2]5.2 Asset Age Profile'!AQ49","v":19.720383752200004},{"$f":"'[2]5.2 Asset Age Profile'!AR49","v":16.681288508899996},{"$f":"'[2]5.2 Asset Age Profile'!AS49","v":23.928154230099999},{"$f":"'[2]5.2 Asset Age Profile'!AT49","v":27.118592633700001},{"$f":"'[2]5.2 Asset Age Profile'!AU49","v":13.206456580361017},{"$f":"'[2]5.2 Asset Age Profile'!AV49","v":5.721166480169285},{"$f":"'[2]5.2 Asset Age Profile'!AW49","v":2.7320056598200324},{"$f":"'[2]5.2 Asset Age Profile'!AX49","v":3.3369937226912181},{"$f":"'[2]5.2 Asset Age Profile'!AY49","v":7.1141806875698599},{"$f":"'[2]5.2 Asset Age Profile'!AZ49","v":4.1760841259205357},{"$f":"'[2]5.2 Asset Age Profile'!BA49","v":6.055750451792254},{"$f":"'[2]5.2 Asset Age Profile'!BB49","v":6.8754213756420617},{"$f":"'[2]5.2 Asset Age Profile'!BC49","v":1.361188472824294},{"$f":"'[2]5.2 Asset Age Profile'!BD49","v":20.554135744362199},{"$f":"'[2]5.2 Asset Age Profile'!BE49","v":2.5105864972054852},{"$f":"'[2]5.2 Asset Age Profile'!BF49","v":1.9392896185713238},{"$f":"'[2]5.2 Asset Age Profile'!BG49","v":3.0491588908738692},{"$f":"'[2]5.2 Asset Age Profile'!BH49","v":5.5116625257078846},{"$f":"'[2]5.2 Asset Age Profile'!BI49","v":10.276932185285746},{"$f":"'[2]5.2 Asset Age Profile'!BJ49","v":1.2647367028067733},{"$f":"'[2]5.2 Asset Age Profile'!BK49","v":1.9782482435852615},{"$f":"'[2]5.2 Asset Age Profile'!BL49","v":3.758270380659996},{"$f":"'[2]5.2 Asset Age Profile'!BM49","v":1.3282112828427324},{"$f":"'[2]5.2 Asset Age Profile'!BN49","v":1.7251346808506687},{"$f":"'[2]5.2 Asset Age Profile'!BO49","v":1.0712966855644552},{"$f":"'[2]5.2 Asset Age Profile'!BP49","v":0.76677481427266925},{"$f":"'[2]5.2 Asset Age Profile'!BQ49","v":1.2232499021969354},{"$f":"'[2]5.2 Asset Age Profile'!BR49","v":1.2569617126011434},{"$f":"'[2]5.2 Asset Age Profile'!BS49","v":1.606764758357718},{"$f":"'[2]5.2 Asset Age Profile'!BT49","v":1.9305476006078575},{"$f":"'[2]5.2 Asset Age Profile'!BU49","v":2.1236808623078973},{"$f":"'[2]5.2 Asset Age Profile'!BV49","v":2.1291478340296455},{"$f":"'[2]5.2 Asset Age Profile'!BW49","v":1.116422808954822},{"$f":"'[2]5.2 Asset Age Profile'!BX49","v":2.0881890794167064},{"$f":"'[2]5.2 Asset Age Profile'!BY49","v":5.4350833202786522},{"$f":"'[2]5.2 Asset Age Profile'!BZ49","v":0.19629498814774976},{"$f":"'[2]5.2 Asset Age Profile'!CA49","v":0.15687994127558547},{"$f":"'[2]5.2 Asset Age Profile'!CB49","v":0.44029803062123829},{"$f":"'[2]5.2 Asset Age Profile'!CC49","v":0.17511116893259493},{"$f":"'[2]5.2 Asset Age Profile'!CD49","v":0.36793780631248924},{"$f":"'[2]5.2 Asset Age Profile'!CE49","v":0.14887698299295277},{"$f":"'[2]5.2 Asset Age Profile'!CF49","v":1.9069941397549064},{"$f":"'[2]5.2 Asset Age Profile'!CG49","v":3.2859458780906793E-3},{"$f":"'[2]5.2 Asset Age Profile'!CH49","v":2.6458462786847648E-2},{"$f":"'[2]5.2 Asset Age Profile'!CI49","v":0},{"$f":"'[2]5.2 Asset Age Profile'!CJ49","v":0.39332956856197826},{"$f":"'[2]5.2 Asset Age Profile'!CK49","v":0},{"$f":"'[2]5.2 Asset Age Profile'!CL49","v":0.14015717978257713},{"$f":"'[2]5.2 Asset Age Profile'!CM49","v":6.1431120766371116E-3},{"$f":"'[2]5.2 Asset Age Profile'!CN49","v":6.7791922653573904E-3},{"$f":"'[2]5.2 Asset Age Profile'!CO49","v":0},{"$f":"'[2]5.2 Asset Age Profile'!CP49","v":0},{"$f":"'[2]5.2 Asset Age Profile'!CQ49","v":0},{"$f":"'[2]5.2 Asset Age Profile'!CR49","v":0},{"$f":"'[2]5.2 Asset Age Profile'!CS49","v":0},{"$f":"'[2]5.2 Asset Age Profile'!CT49","v":0},{"$f":"'[2]5.2 Asset Age Profile'!CU49","v":0},{"$f":"'[2]5.2 Asset Age Profile'!CV49","v":0},{"$f":"'[2]5.2 Asset Age Profile'!CW49","v":0},{"$f":"'[2]5.2 Asset Age Profile'!CX49","v":0},{"$f":"'[2]5.2 Asset Age Profile'!CY49","v":0},{"$f":"'[2]5.2 Asset Age Profile'!CZ49","v":0},{"$f":"'[2]5.2 Asset Age Profile'!DA49","v":0},{"$f":"'[2]5.2 Asset Age Profile'!DB49","v":0},{"$f":"'[2]5.2 Asset Age Profile'!DC49","v":0},{"$f":"'[2]5.2 Asset Age Profile'!DD49","v":0},{"$f":"'[2]5.2 Asset Age Profile'!DE49","v":0},{"$f":"'[2]5.2 Asset Age Profile'!DF49","v":0},{"$f":"'[2]5.2 Asset Age Profile'!DG49","v":0},{"$f":"'[2]5.2 Asset Age Profile'!DH49","v":0},{"$f":"'[2]5.2 Asset Age Profile'!DI49","v":0},{"$f":"'[2]5.2 Asset Age Profile'!DJ49","v":0},{"$f":"'[2]5.2 Asset Age Profile'!DK49","v":0},{"$f":"'[2]5.2 Asset Age Profile'!DL49","v":0},{"$f":"'[2]5.2 Asset Age Profile'!DM49","v":0},{"$f":"'[2]5.2 Asset Age Profile'!DN49","v":0},{"$f":"'[2]5.2 Asset Age Profile'!DO49","v":0},{"$f":"'[2]5.2 Asset Age Profile'!DP49","v":0},{"$f":"'[2]5.2 Asset Age Profile'!DQ49","v":0},{"$f":"'[2]5.2 Asset Age Profile'!DR49","v":0},{"$f":"'[2]5.2 Asset Age Profile'!DS49","v":0},{"$f":"'[2]5.2 Asset Age Profile'!DT49","v":0},{"$f":"'[2]5.2 Asset Age Profile'!DU49","v":0},{"$f":"'[2]5.2 Asset Age Profile'!DV49","v":0},{"$f":"'[2]5.2 Asset Age Profile'!DW49","v":0},{"$f":"'[2]5.2 Asset Age Profile'!DX49","v":0},{"$f":"'[2]5.2 Asset Age Profile'!DY49","v":0},{"$f":"'[2]5.2 Asset Age Profile'!DZ49","v":0},{"$f":"'[2]5.2 Asset Age Profile'!EA49","v":0},{"$f":"'[2]5.2 Asset Age Profile'!EB49","v":0},{"$f":"'[2]5.2 Asset Age Profile'!EC49","v":0},{"$f":"'[2]5.2 Asset Age Profile'!ED49","v":0},{"$f":"'[2]5.2 Asset Age Profile'!EE49","v":0},{"$f":"'[2]5.2 Asset Age Profile'!EF49","v":0},{"$f":"'[2]5.2 Asset Age Profile'!EG49","v":0},{"$f":"'[2]5.2 Asset Age Profile'!EH49","v":0},{"$f":"'[2]5.2 Asset Age Profile'!EI49","v":0},{"$f":"'[2]5.2 Asset Age Profile'!EJ49","v":0}]
["ED_ASS521_00040",null,"> 22 kV & < = 33 kV",null,null,null,null,null,null,null,null,null,null,{"$f":"'[2]5.2 Asset Age Profile'!N50","v":54.9},{"$f":"'[2]5.2 Asset Age Profile'!O50","v":0},{"$f":"'[2]5.2 Asset Age Profile'!P50","v":0},{"$f":"'[2]5.2 Asset Age Profile'!Q50","v":0},{"$f":"'[2]5.2 Asset Age Profile'!R50","v":0},{"$f":"'[2]5.2 Asset Age Profile'!S50","v":0},{"$f":"'[2]5.2 Asset Age Profile'!T50","v":0},{"$f":"'[2]5.2 Asset Age Profile'!U50","v":0},{"$f":"'[2]5.2 Asset Age Profile'!V50","v":0},{"$f":"'[2]5.2 Asset Age Profile'!W50","v":0},{"$f":"'[2]5.2 Asset Age Profile'!X50","v":0},{"$f":"'[2]5.2 Asset Age Profile'!Y50","v":7.4094534211370817},{"$f":"'[2]5.2 Asset Age Profile'!Z50","v":0},{"$f":"'[2]5.2 Asset Age Profile'!AA50","v":0},{"$f":"'[2]5.2 Asset Age Profile'!AB50","v":0},{"$f":"'[2]5.2 Asset Age Profile'!AC50","v":0},{"$f":"'[2]5.2 Asset Age Profile'!AD50","v":0},{"$f":"'[2]5.2 Asset Age Profile'!AE50","v":0},{"$f":"'[2]5.2 Asset Age Profile'!AF50","v":0},{"$f":"'[2]5.2 Asset Age Profile'!AG50","v":0},{"$f":"'[2]5.2 Asset Age Profile'!AH50","v":0},{"$f":"'[2]5.2 Asset Age Profile'!AI50","v":0},{"$f":"'[2]5.2 Asset Age Profile'!AJ50","v":0.32213671729999999},{"$f":"'[2]5.2 Asset Age Profile'!AK50","v":9.2993968199999999E-2},{"$f":"'[2]5.2 Asset Age Profile'!AL50","v":0.59864735459999996},{"$f":"'[2]5.2 Asset Age Profile'!AM50","v":0.92695946289999998},{"$f":"'[2]5.2 Asset Age Profile'!AN50","v":0.45468969780000001},{"$f":"'[2]5.2 Asset Age Profile'!AO50","v":0},{"$f":"'[2]5.2 Asset Age Profile'!AP50","v":1.2462596349999999},{"$f":"'[2]5.2 Asset Age Profile'!AQ50","v":0.60311589842999991},{"$f":"'[2]5.2 Asset Age Profile'!AR50","v":0.94347647570000004},{"$f":"'[2]5.2 Asset Age Profile'!AS50","v":3.1453250489999998},{"$f":"'[2]5.2 Asset Age Profile'!AT50","v":0.75317453150000002},{"$f":"'[2]5.2 Asset Age Profile'!AU50","v":0},{"$f":"'[2]5.2 Asset Age Profile'!AV50","v":1.3810274336279451},{"$f":"'[2]5.2 Asset Age Profile'!AW50","v":17.22522302888105},{"$f":"'[2]5.2 Asset Age Profile'!AX50","v":5.4267475260729024E-2},{"$f":"'[2]5.2 Asset Age Profile'!AY50","v":8.5636903833798683E-2},{"$f":"'[2]5.2 Asset Age Profile'!AZ50","v":1.0412536353540973},{"$f":"'[2]5.2 Asset Age Profile'!BA50","v":0},{"$f":"'[2]5.2 Asset Age Profile'!BB50","v":0},{"$f":"'[2]5.2 Asset Age Profile'!BC50","v":4.300680971470844},{"$f":"'[2]5.2 Asset Age Profile'!BD50","v":6.0132834839584912E-2},{"$f":"'[2]5.2 Asset Age Profile'!BE50","v":0},{"$f":"'[2]5.2 Asset Age Profile'!BF50","v":7.3184034789766719E-2},{"$f":"'[2]5.2 Asset Age Profile'!BG50","v":0},{"$f":"'[2]5.2 Asset Age Profile'!BH50","v":0},{"$f":"'[2]5.2 Asset Age Profile'!BI50","v":0},{"$f":"'[2]5.2 Asset Age Profile'!BJ50","v":0},{"$f":"'[2]5.2 Asset Age Profile'!BK50","v":0},{"$f":"'[2]5.2 Asset Age Profile'!BL50","v":0},{"$f":"'[2]5.2 Asset Age Profile'!BM50","v":8.0928392787763386},{"$f":"'[2]5.2 Asset Age Profile'!BN50","v":3.5463037078642565},{"$f":"'[2]5.2 Asset Age Profile'!BO50","v":0},{"$f":"'[2]5.2 Asset Age Profile'!BP50","v":0},{"$f":"'[2]5.2 Asset Age Profile'!BQ50","v":4.8952544639666647E-2},{"$f":"'[2]5.2 Asset Age Profile'!BR50","v":0},{"$f":"'[2]5.2 Asset Age Profile'!BS50","v":0.30708050037960605},{"$f":"'[2]5.2 Asset Age Profile'!BT50","v":0},{"$f":"'[2]5.2 Asset Age Profile'!BU50","v":0},{"$f":"'[2]5.2 Asset Age Profile'!BV50","v":0},{"$f":"'[2]5.2 Asset Age Profile'!BW50","v":0},{"$f":"'[2]5.2 Asset Age Profile'!BX50","v":0},{"$f":"'[2]5.2 Asset Age Profile'!BY50","v":0},{"$f":"'[2]5.2 Asset Age Profile'!BZ50","v":0},{"$f":"'[2]5.2 Asset Age Profile'!CA50","v":0},{"$f":"'[2]5.2 Asset Age Profile'!CB50","v":0},{"$f":"'[2]5.2 Asset Age Profile'!CC50","v":8.5981471933050002E-2},{"$f":"'[2]5.2 Asset Age Profile'!CD50","v":0},{"$f":"'[2]5.2 Asset Age Profile'!CE50","v":0},{"$f":"'[2]5.2 Asset Age Profile'!CF50","v":0},{"$f":"'[2]5.2 Asset Age Profile'!CG50","v":0},{"$f":"'[2]5.2 Asset Age Profile'!CH50","v":0},{"$f":"'[2]5.2 Asset Age Profile'!CI50","v":1.3923671574904881},{"$f":"'[2]5.2 Asset Age Profile'!CJ50","v":0},{"$f":"'[2]5.2 Asset Age Profile'!CK50","v":0.12559284516878108},{"$f":"'[2]5.2 Asset Age Profile'!CL50","v":0},{"$f":"'[2]5.2 Asset Age Profile'!CM50","v":0},{"$f":"'[2]5.2 Asset Age Profile'!CN50","v":0},{"$f":"'[2]5.2 Asset Age Profile'!CO50","v":0},{"$f":"'[2]5.2 Asset Age Profile'!CP50","v":0},{"$f":"'[2]5.2 Asset Age Profile'!CQ50","v":0},{"$f":"'[2]5.2 Asset Age Profile'!CR50","v":0},{"$f":"'[2]5.2 Asset Age Profile'!CS50","v":0},{"$f":"'[2]5.2 Asset Age Profile'!CT50","v":0},{"$f":"'[2]5.2 Asset Age Profile'!CU50","v":0},{"$f":"'[2]5.2 Asset Age Profile'!CV50","v":0},{"$f":"'[2]5.2 Asset Age Profile'!CW50","v":0},{"$f":"'[2]5.2 Asset Age Profile'!CX50","v":0},{"$f":"'[2]5.2 Asset Age Profile'!CY50","v":0},{"$f":"'[2]5.2 Asset Age Profile'!CZ50","v":0},{"$f":"'[2]5.2 Asset Age Profile'!DA50","v":0},{"$f":"'[2]5.2 Asset Age Profile'!DB50","v":0},{"$f":"'[2]5.2 Asset Age Profile'!DC50","v":0},{"$f":"'[2]5.2 Asset Age Profile'!DD50","v":0},{"$f":"'[2]5.2 Asset Age Profile'!DE50","v":0},{"$f":"'[2]5.2 Asset Age Profile'!DF50","v":0},{"$f":"'[2]5.2 Asset Age Profile'!DG50","v":0},{"$f":"'[2]5.2 Asset Age Profile'!DH50","v":0},{"$f":"'[2]5.2 Asset Age Profile'!DI50","v":0},{"$f":"'[2]5.2 Asset Age Profile'!DJ50","v":0},{"$f":"'[2]5.2 Asset Age Profile'!DK50","v":0},{"$f":"'[2]5.2 Asset Age Profile'!DL50","v":0},{"$f":"'[2]5.2 Asset Age Profile'!DM50","v":0},{"$f":"'[2]5.2 Asset Age Profile'!DN50","v":0},{"$f":"'[2]5.2 Asset Age Profile'!DO50","v":0},{"$f":"'[2]5.2 Asset Age Profile'!DP50","v":0},{"$f":"'[2]5.2 Asset Age Profile'!DQ50","v":0},{"$f":"'[2]5.2 Asset Age Profile'!DR50","v":0},{"$f":"'[2]5.2 Asset Age Profile'!DS50","v":0},{"$f":"'[2]5.2 Asset Age Profile'!DT50","v":0},{"$f":"'[2]5.2 Asset Age Profile'!DU50","v":0},{"$f":"'[2]5.2 Asset Age Profile'!DV50","v":0},{"$f":"'[2]5.2 Asset Age Profile'!DW50","v":0},{"$f":"'[2]5.2 Asset Age Profile'!DX50","v":0},{"$f":"'[2]5.2 Asset Age Profile'!DY50","v":0},{"$f":"'[2]5.2 Asset Age Profile'!DZ50","v":0},{"$f":"'[2]5.2 Asset Age Profile'!EA50","v":0},{"$f":"'[2]5.2 Asset Age Profile'!EB50","v":0},{"$f":"'[2]5.2 Asset Age Profile'!EC50","v":0},{"$f":"'[2]5.2 Asset Age Profile'!ED50","v":0},{"$f":"'[2]5.2 Asset Age Profile'!EE50","v":0},{"$f":"'[2]5.2 Asset Age Profile'!EF50","v":0},{"$f":"'[2]5.2 Asset Age Profile'!EG50","v":0},{"$f":"'[2]5.2 Asset Age Profile'!EH50","v":0},{"$f":"'[2]5.2 Asset Age Profile'!EI50","v":0},{"$f":"'[2]5.2 Asset Age Profile'!EJ50","v":0}]
["ED_ASS521_00041",null,"> 33 kV & < = 66 kV",null,null,null,null,null,null,null,null,null,null,{"$f":"'[2]5.2 Asset Age Profile'!N51","v":54.9},{"$f":"'[2]5.2 Asset Age Profile'!O51","v":0},{"$f":"'[2]5.2 Asset Age Profile'!P51","v":0},{"$f":"'[2]5.2 Asset Age Profile'!Q51","v":0},{"$f":"'[2]5.2 Asset Age Profile'!R51","v":0},{"$f":"'[2]5.2 Asset Age Profile'!S51","v":0},{"$f":"'[2]5.2 Asset Age Profile'!T51","v":0},{"$f":"'[2]5.2 Asset Age Profile'!U51","v":0},{"$f":"'[2]5.2 Asset Age Profile'!V51","v":0},{"$f":"'[2]5.2 Asset Age Profile'!W51","v":0},{"$f":"'[2]5.2 Asset Age Profile'!X51","v":0},{"$f":"'[2]5.2 Asset Age Profile'!Y51","v":7.4094534211370817},{"$f":"'[2]5.2 Asset Age Profile'!Z51","v":0},{"$f":"'[2]5.2 Asset Age Profile'!AA51","v":0},{"$f":"'[2]5.2 Asset Age Profile'!AB51","v":0},{"$f":"'[2]5.2 Asset Age Profile'!AC51","v":0},{"$f":"'[2]5.2 Asset Age Profile'!AD51","v":0},{"$f":"'[2]5.2 Asset Age Profile'!AE51","v":0},{"$f":"'[2]5.2 Asset Age Profile'!AF51","v":0},{"$f":"'[2]5.2 Asset Age Profile'!AG51","v":0},{"$f":"'[2]5.2 Asset Age Profile'!AH51","v":0},{"$f":"'[2]5.2 Asset Age Profile'!AI51","v":0},{"$f":"'[2]5.2 Asset Age Profile'!AJ51","v":0.27916426},{"$f":"'[2]5.2 Asset Age Profile'!AK51","v":9.2154275450000007},{"$f":"'[2]5.2 Asset Age Profile'!AL51","v":1.2646641989999998},{"$f":"'[2]5.2 Asset Age Profile'!AM51","v":0.32248848299999999},{"$f":"'[2]5.2 Asset Age Profile'!AN51","v":2.599720767},{"$f":"'[2]5.2 Asset Age Profile'!AO51","v":4.5817503199999994},{"$f":"'[2]5.2 Asset Age Profile'!AP51","v":2.6465627167000001},{"$f":"'[2]5.2 Asset Age Profile'!AQ51","v":1.8112031559999999},{"$f":"'[2]5.2 Asset Age Profile'!AR51","v":2.726266538},{"$f":"'[2]5.2 Asset Age Profile'!AS51","v":1.567161177},{"$f":"'[2]5.2 Asset Age Profile'!AT51","v":0.221152079},{"$f":"'[2]5.2 Asset Age Profile'!AU51","v":2.8266714741168677},{"$f":"'[2]5.2 Asset Age Profile'!AV51","v":0.28058501910421646},{"$f":"'[2]5.2 Asset Age Profile'!AW51","v":1.0249828762719939},{"$f":"'[2]5.2 Asset Age Profile'!AX51","v":0},{"$f":"'[2]5.2 Asset Age Profile'!AY51","v":0},{"$f":"'[2]5.2 Asset Age Profile'!AZ51","v":0},{"$f":"'[2]5.2 Asset Age Profile'!BA51","v":0},{"$f":"'[2]5.2 Asset Age Profile'!BB51","v":0},{"$f":"'[2]5.2 Asset Age Profile'!BC51","v":0},{"$f":"'[2]5.2 Asset Age Profile'!BD51","v":0},{"$f":"'[2]5.2 Asset Age Profile'!BE51","v":0},{"$f":"'[2]5.2 Asset Age Profile'!BF51","v":0},{"$f":"'[2]5.2 Asset Age Profile'!BG51","v":0},{"$f":"'[2]5.2 Asset Age Profile'!BH51","v":0},{"$f":"'[2]5.2 Asset Age Profile'!BI51","v":0},{"$f":"'[2]5.2 Asset Age Profile'!BJ51","v":0},{"$f":"'[2]5.2 Asset Age Profile'!BK51","v":0},{"$f":"'[2]5.2 Asset Age Profile'!BL51","v":0},{"$f":"'[2]5.2 Asset Age Profile'!BM51","v":0},{"$f":"'[2]5.2 Asset Age Profile'!BN51","v":0},{"$f":"'[2]5.2 Asset Age Profile'!BO51","v":0},{"$f":"'[2]5.2 Asset Age Profile'!BP51","v":0},{"$f":"'[2]5.2 Asset Age Profile'!BQ51","v":0},{"$f":"'[2]5.2 Asset Age Profile'!BR51","v":0},{"$f":"'[2]5.2 Asset Age Profile'!BS51","v":0},{"$f":"'[2]5.2 Asset Age Profile'!BT51","v":0.14751204254941502},{"$f":"'[2]5.2 Asset Age Profile'!BU51","v":0},{"$f":"'[2]5.2 Asset Age Profile'!BV51","v":0},{"$f":"'[2]5.2 Asset Age Profile'!BW51","v":0},{"$f":"'[2]5.2 Asset Age Profile'!BX51","v":0.61354032923997393},{"$f":"'[2]5.2 Asset Age Profile'!BY51","v":0},{"$f":"'[2]5.2 Asset Age Profile'!BZ51","v":0},{"$f":"'[2]5.2 Asset Age Profile'!CA51","v":0},{"$f":"'[2]5.2 Asset Age Profile'!CB51","v":0},{"$f":"'[2]5.2 Asset Age Profile'!CC51","v":0},{"$f":"'[2]5.2 Asset Age Profile'!CD51","v":0},{"$f":"'[2]5.2 Asset Age Profile'!CE51","v":0},{"$f":"'[2]5.2 Asset Age Profile'!CF51","v":0},{"$f":"'[2]5.2 Asset Age Profile'!CG51","v":0},{"$f":"'[2]5.2 Asset Age Profile'!CH51","v":0.55415826943748103},{"$f":"'[2]5.2 Asset Age Profile'!CI51","v":0},{"$f":"'[2]5.2 Asset Age Profile'!CJ51","v":0},{"$f":"'[2]5.2 Asset Age Profile'!CK51","v":0},{"$f":"'[2]5.2 Asset Age Profile'!CL51","v":0},{"$f":"'[2]5.2 Asset Age Profile'!CM51","v":0},{"$f":"'[2]5.2 Asset Age Profile'!CN51","v":0},{"$f":"'[2]5.2 Asset Age Profile'!CO51","v":0},{"$f":"'[2]5.2 Asset Age Profile'!CP51","v":0},{"$f":"'[2]5.2 Asset Age Profile'!CQ51","v":0},{"$f":"'[2]5.2 Asset Age Profile'!CR51","v":0},{"$f":"'[2]5.2 Asset Age Profile'!CS51","v":0},{"$f":"'[2]5.2 Asset Age Profile'!CT51","v":0},{"$f":"'[2]5.2 Asset Age Profile'!CU51","v":0},{"$f":"'[2]5.2 Asset Age Profile'!CV51","v":0},{"$f":"'[2]5.2 Asset Age Profile'!CW51","v":0.31755079518005191},{"$f":"'[2]5.2 Asset Age Profile'!CX51","v":0},{"$f":"'[2]5.2 Asset Age Profile'!CY51","v":0},{"$f":"'[2]5.2 Asset Age Profile'!CZ51","v":0},{"$f":"'[2]5.2 Asset Age Profile'!DA51","v":0},{"$f":"'[2]5.2 Asset Age Profile'!DB51","v":0},{"$f":"'[2]5.2 Asset Age Profile'!DC51","v":0},{"$f":"'[2]5.2 Asset Age Profile'!DD51","v":0},{"$f":"'[2]5.2 Asset Age Profile'!DE51","v":0},{"$f":"'[2]5.2 Asset Age Profile'!DF51","v":0},{"$f":"'[2]5.2 Asset Age Profile'!DG51","v":0},{"$f":"'[2]5.2 Asset Age Profile'!DH51","v":0},{"$f":"'[2]5.2 Asset Age Profile'!DI51","v":0},{"$f":"'[2]5.2 Asset Age Profile'!DJ51","v":0},{"$f":"'[2]5.2 Asset Age Profile'!DK51","v":0},{"$f":"'[2]5.2 Asset Age Profile'!DL51","v":0},{"$f":"'[2]5.2 Asset Age Profile'!DM51","v":0},{"$f":"'[2]5.2 Asset Age Profile'!DN51","v":0},{"$f":"'[2]5.2 Asset Age Profile'!DO51","v":0},{"$f":"'[2]5.2 Asset Age Profile'!DP51","v":0},{"$f":"'[2]5.2 Asset Age Profile'!DQ51","v":0},{"$f":"'[2]5.2 Asset Age Profile'!DR51","v":0},{"$f":"'[2]5.2 Asset Age Profile'!DS51","v":0},{"$f":"'[2]5.2 Asset Age Profile'!DT51","v":0},{"$f":"'[2]5.2 Asset Age Profile'!DU51","v":0},{"$f":"'[2]5.2 Asset Age Profile'!DV51","v":0},{"$f":"'[2]5.2 Asset Age Profile'!DW51","v":0},{"$f":"'[2]5.2 Asset Age Profile'!DX51","v":0},{"$f":"'[2]5.2 Asset Age Profile'!DY51","v":0},{"$f":"'[2]5.2 Asset Age Profile'!DZ51","v":0},{"$f":"'[2]5.2 Asset Age Profile'!EA51","v":0},{"$f":"'[2]5.2 Asset Age Profile'!EB51","v":0},{"$f":"'[2]5.2 Asset Age Profile'!EC51","v":0},{"$f":"'[2]5.2 Asset Age Profile'!ED51","v":0},{"$f":"'[2]5.2 Asset Age Profile'!EE51","v":0},{"$f":"'[2]5.2 Asset Age Profile'!EF51","v":0},{"$f":"'[2]5.2 Asset Age Profile'!EG51","v":0},{"$f":"'[2]5.2 Asset Age Profile'!EH51","v":0},{"$f":"'[2]5.2 Asset Age Profile'!EI51","v":0},{"$f":"'[2]5.2 Asset Age Profile'!EJ51","v":0}]
["ED_ASS521_00042",null,"> 66 kV & < = 132 kV",null,null,null,null,null,null,null,null,null,null,{"$f":"'[2]5.2 Asset Age Profile'!N52","v":54.9},{"$f":"'[2]5.2 Asset Age Profile'!O52","v":0},{"$f":"'[2]5.2 Asset Age Profile'!P52","v":0},{"$f":"'[2]5.2 Asset Age Profile'!Q52","v":0},{"$f":"'[2]5.2 Asset Age Profile'!R52","v":0},{"$f":"'[2]5.2 Asset Age Profile'!S52","v":0},{"$f":"'[2]5.2 Asset Age Profile'!T52","v":0},{"$f":"'[2]5.2 Asset Age Profile'!U52","v":0},{"$f":"'[2]5.2 Asset Age Profile'!V52","v":0},{"$f":"'[2]5.2 Asset Age Profile'!W52","v":0},{"$f":"'[2]5.2 Asset Age Profile'!X52","v":0},{"$f":"'[2]5.2 Asset Age Profile'!Y52","v":7.4094534211370817},{"$f":"'[2]5.2 Asset Age Profile'!Z52","v":0},{"$f":"'[2]5.2 Asset Age Profile'!AA52","v":0},{"$f":"'[2]5.2 Asset Age Profile'!AB52","v":0},{"$f":"'[2]5.2 Asset Age Profile'!AC52","v":0},{"$f":"'[2]5.2 Asset Age Profile'!AD52","v":0},{"$f":"'[2]5.2 Asset Age Profile'!AE52","v":0},{"$f":"'[2]5.2 Asset Age Profile'!AF52","v":0},{"$f":"'[2]5.2 Asset Age Profile'!AG52","v":0},{"$f":"'[2]5.2 Asset Age Profile'!AH52","v":0},{"$f":"'[2]5.2 Asset Age Profile'!AI52","v":0},{"$f":"'[2]5.2 Asset Age Profile'!AJ52","v":0},{"$f":"'[2]5.2 Asset Age Profile'!AK52","v":0},{"$f":"'[2]5.2 Asset Age Profile'!AL52","v":7.7333142510000004},{"$f":"'[2]5.2 Asset Age Profile'!AM52","v":0},{"$f":"'[2]5.2 Asset Age Profile'!AN52","v":0},{"$f":"'[2]5.2 Asset Age Profile'!AO52","v":0},{"$f":"'[2]5.2 Asset Age Profile'!AP52","v":0},{"$f":"'[2]5.2 Asset Age Profile'!AQ52","v":0},{"$f":"'[2]5.2 Asset Age Profile'!AR52","v":0},{"$f":"'[2]5.2 Asset Age Profile'!AS52","v":0},{"$f":"'[2]5.2 Asset Age Profile'!AT52","v":0},{"$f":"'[2]5.2 Asset Age Profile'!AU52","v":0},{"$f":"'[2]5.2 Asset Age Profile'!AV52","v":0},{"$f":"'[2]5.2 Asset Age Profile'!AW52","v":0},{"$f":"'[2]5.2 Asset Age Profile'!AX52","v":0},{"$f":"'[2]5.2 Asset Age Profile'!AY52","v":0},{"$f":"'[2]5.2 Asset Age Profile'!AZ52","v":0},{"$f":"'[2]5.2 Asset Age Profile'!BA52","v":0},{"$f":"'[2]5.2 Asset Age Profile'!BB52","v":2.0852969912999999},{"$f":"'[2]5.2 Asset Age Profile'!BC52","v":0},{"$f":"'[2]5.2 Asset Age Profile'!BD52","v":0},{"$f":"'[2]5.2 Asset Age Profile'!BE52","v":0},{"$f":"'[2]5.2 Asset Age Profile'!BF52","v":0},{"$f":"'[2]5.2 Asset Age Profile'!BG52","v":0},{"$f":"'[2]5.2 Asset Age Profile'!BH52","v":0},{"$f":"'[2]5.2 Asset Age Profile'!BI52","v":0},{"$f":"'[2]5.2 Asset Age Profile'!BJ52","v":0},{"$f":"'[2]5.2 Asset Age Profile'!BK52","v":0},{"$f":"'[2]5.2 Asset Age Profile'!BL52","v":0},{"$f":"'[2]5.2 Asset Age Profile'!BM52","v":0},{"$f":"'[2]5.2 Asset Age Profile'!BN52","v":0},{"$f":"'[2]5.2 Asset Age Profile'!BO52","v":0},{"$f":"'[2]5.2 Asset Age Profile'!BP52","v":0},{"$f":"'[2]5.2 Asset Age Profile'!BQ52","v":0},{"$f":"'[2]5.2 Asset Age Profile'!BR52","v":0},{"$f":"'[2]5.2 Asset Age Profile'!BS52","v":0},{"$f":"'[2]5.2 Asset Age Profile'!BT52","v":0},{"$f":"'[2]5.2 Asset Age Profile'!BU52","v":0},{"$f":"'[2]5.2 Asset Age Profile'!BV52","v":0},{"$f":"'[2]5.2 Asset Age Profile'!BW52","v":0},{"$f":"'[2]5.2 Asset Age Profile'!BX52","v":0},{"$f":"'[2]5.2 Asset Age Profile'!BY52","v":0},{"$f":"'[2]5.2 Asset Age Profile'!BZ52","v":0},{"$f":"'[2]5.2 Asset Age Profile'!CA52","v":0},{"$f":"'[2]5.2 Asset Age Profile'!CB52","v":0},{"$f":"'[2]5.2 Asset Age Profile'!CC52","v":0},{"$f":"'[2]5.2 Asset Age Profile'!CD52","v":0},{"$f":"'[2]5.2 Asset Age Profile'!CE52","v":0},{"$f":"'[2]5.2 Asset Age Profile'!CF52","v":0},{"$f":"'[2]5.2 Asset Age Profile'!CG52","v":0},{"$f":"'[2]5.2 Asset Age Profile'!CH52","v":0},{"$f":"'[2]5.2 Asset Age Profile'!CI52","v":0},{"$f":"'[2]5.2 Asset Age Profile'!CJ52","v":0},{"$f":"'[2]5.2 Asset Age Profile'!CK52","v":0},{"$f":"'[2]5.2 Asset Age Profile'!CL52","v":0},{"$f":"'[2]5.2 Asset Age Profile'!CM52","v":0},{"$f":"'[2]5.2 Asset Age Profile'!CN52","v":0},{"$f":"'[2]5.2 Asset Age Profile'!CO52","v":0},{"$f":"'[2]5.2 Asset Age Profile'!CP52","v":0},{"$f":"'[2]5.2 Asset Age Profile'!CQ52","v":0},{"$f":"'[2]5.2 Asset Age Profile'!CR52","v":0},{"$f":"'[2]5.2 Asset Age Profile'!CS52","v":0},{"$f":"'[2]5.2 Asset Age Profile'!CT52","v":0},{"$f":"'[2]5.2 Asset Age Profile'!CU52","v":0},{"$f":"'[2]5.2 Asset Age Profile'!CV52","v":0},{"$f":"'[2]5.2 Asset Age Profile'!CW52","v":0},{"$f":"'[2]5.2 Asset Age Profile'!CX52","v":0},{"$f":"'[2]5.2 Asset Age Profile'!CY52","v":0},{"$f":"'[2]5.2 Asset Age Profile'!CZ52","v":0},{"$f":"'[2]5.2 Asset Age Profile'!DA52","v":0},{"$f":"'[2]5.2 Asset Age Profile'!DB52","v":0},{"$f":"'[2]5.2 Asset Age Profile'!DC52","v":0},{"$f":"'[2]5.2 Asset Age Profile'!DD52","v":0},{"$f":"'[2]5.2 Asset Age Profile'!DE52","v":0},{"$f":"'[2]5.2 Asset Age Profile'!DF52","v":0},{"$f":"'[2]5.2 Asset Age Profile'!DG52","v":0},{"$f":"'[2]5.2 Asset Age Profile'!DH52","v":0},{"$f":"'[2]5.2 Asset Age Profile'!DI52","v":0},{"$f":"'[2]5.2 Asset Age Profile'!DJ52","v":0},{"$f":"'[2]5.2 Asset Age Profile'!DK52","v":0},{"$f":"'[2]5.2 Asset Age Profile'!DL52","v":0},{"$f":"'[2]5.2 Asset Age Profile'!DM52","v":0},{"$f":"'[2]5.2 Asset Age Profile'!DN52","v":0},{"$f":"'[2]5.2 Asset Age Profile'!DO52","v":0},{"$f":"'[2]5.2 Asset Age Profile'!DP52","v":0},{"$f":"'[2]5.2 Asset Age Profile'!DQ52","v":0},{"$f":"'[2]5.2 Asset Age Profile'!DR52","v":0},{"$f":"'[2]5.2 Asset Age Profile'!DS52","v":0},{"$f":"'[2]5.2 Asset Age Profile'!DT52","v":0},{"$f":"'[2]5.2 Asset Age Profile'!DU52","v":0},{"$f":"'[2]5.2 Asset Age Profile'!DV52","v":0},{"$f":"'[2]5.2 Asset Age Profile'!DW52","v":0},{"$f":"'[2]5.2 Asset Age Profile'!DX52","v":0},{"$f":"'[2]5.2 Asset Age Profile'!DY52","v":0},{"$f":"'[2]5.2 Asset Age Profile'!DZ52","v":0},{"$f":"'[2]5.2 Asset Age Profile'!EA52","v":0},{"$f":"'[2]5.2 Asset Age Profile'!EB52","v":0},{"$f":"'[2]5.2 Asset Age Profile'!EC52","v":0},{"$f":"'[2]5.2 Asset Age Profile'!ED52","v":0},{"$f":"'[2]5.2 Asset Age Profile'!EE52","v":0},{"$f":"'[2]5.2 Asset Age Profile'!EF52","v":0},{"$f":"'[2]5.2 Asset Age Profile'!EG52","v":0},{"$f":"'[2]5.2 Asset Age Profile'!EH52","v":0},{"$f":"'[2]5.2 Asset Age Profile'!EI52","v":0},{"$f":"'[2]5.2 Asset Age Profile'!EJ52","v":0}]
["ED_ASS521_00043",null,">  132 kV",null,null,null,null,null,null,null,null,null,null,{"$f":"'[2]5.2 Asset Age Profile'!N53","v":54.9},{"$f":"'[2]5.2 Asset Age Profile'!O53","v":0},{"$f":"'[2]5.2 Asset Age Profile'!P53","v":0},{"$f":"'[2]5.2 Asset Age Profile'!Q53","v":0},{"$f":"'[2]5.2 Asset Age Profile'!R53","v":0},{"$f":"'[2]5.2 Asset Age Profile'!S53","v":0},{"$f":"'[2]5.2 Asset Age Profile'!T53","v":0},{"$f":"'[2]5.2 Asset Age Profile'!U53","v":0},{"$f":"'[2]5.2 Asset Age Profile'!V53","v":0},{"$f":"'[2]5.2 Asset Age Profile'!W53","v":0},{"$f":"'[2]5.2 Asset Age Profile'!X53","v":0},{"$f":"'[2]5.2 Asset Age Profile'!Y53","v":7.4094534211370817},{"$f":"'[2]5.2 Asset Age Profile'!Z53","v":0},{"$f":"'[2]5.2 Asset Age Profile'!AA53","v":0},{"$f":"'[2]5.2 Asset Age Profile'!AB53","v":0},{"$f":"'[2]5.2 Asset Age Profile'!AC53","v":0},{"$f":"'[2]5.2 Asset Age Profile'!AD53","v":0},{"$f":"'[2]5.2 Asset Age Profile'!AE53","v":0},{"$f":"'[2]5.2 Asset Age Profile'!AF53","v":0},{"$f":"'[2]5.2 Asset Age Profile'!AG53","v":0},{"$f":"'[2]5.2 Asset Age Profile'!AH53","v":0},{"$f":"'[2]5.2 Asset Age Profile'!AI53","v":0},{"$f":"'[2]5.2 Asset Age Profile'!AJ53","v":0},{"$f":"'[2]5.2 Asset Age Profile'!AK53","v":0},{"$f":"'[2]5.2 Asset Age Profile'!AL53","v":0},{"$f":"'[2]5.2 Asset Age Profile'!AM53","v":0},{"$f":"'[2]5.2 Asset Age Profile'!AN53","v":0},{"$f":"'[2]5.2 Asset Age Profile'!AO53","v":0},{"$f":"'[2]5.2 Asset Age Profile'!AP53","v":0},{"$f":"'[2]5.2 Asset Age Profile'!AQ53","v":0},{"$f":"'[2]5.2 Asset Age Profile'!AR53","v":0},{"$f":"'[2]5.2 Asset Age Profile'!AS53","v":0},{"$f":"'[2]5.2 Asset Age Profile'!AT53","v":0},{"$f":"'[2]5.2 Asset Age Profile'!AU53","v":0},{"$f":"'[2]5.2 Asset Age Profile'!AV53","v":0},{"$f":"'[2]5.2 Asset Age Profile'!AW53","v":0},{"$f":"'[2]5.2 Asset Age Profile'!AX53","v":0},{"$f":"'[2]5.2 Asset Age Profile'!AY53","v":0},{"$f":"'[2]5.2 Asset Age Profile'!AZ53","v":0},{"$f":"'[2]5.2 Asset Age Profile'!BA53","v":0},{"$f":"'[2]5.2 Asset Age Profile'!BB53","v":0},{"$f":"'[2]5.2 Asset Age Profile'!BC53","v":0},{"$f":"'[2]5.2 Asset Age Profile'!BD53","v":0},{"$f":"'[2]5.2 Asset Age Profile'!BE53","v":0},{"$f":"'[2]5.2 Asset Age Profile'!BF53","v":0},{"$f":"'[2]5.2 Asset Age Profile'!BG53","v":0},{"$f":"'[2]5.2 Asset Age Profile'!BH53","v":0},{"$f":"'[2]5.2 Asset Age Profile'!BI53","v":0},{"$f":"'[2]5.2 Asset Age Profile'!BJ53","v":0},{"$f":"'[2]5.2 Asset Age Profile'!BK53","v":0},{"$f":"'[2]5.2 Asset Age Profile'!BL53","v":0},{"$f":"'[2]5.2 Asset Age Profile'!BM53","v":0},{"$f":"'[2]5.2 Asset Age Profile'!BN53","v":0},{"$f":"'[2]5.2 Asset Age Profile'!BO53","v":0},{"$f":"'[2]5.2 Asset Age Profile'!BP53","v":0},{"$f":"'[2]5.2 Asset Age Profile'!BQ53","v":0},{"$f":"'[2]5.2 Asset Age Profile'!BR53","v":0},{"$f":"'[2]5.2 Asset Age Profile'!BS53","v":0},{"$f":"'[2]5.2 Asset Age Profile'!BT53","v":0},{"$f":"'[2]5.2 Asset Age Profile'!BU53","v":0},{"$f":"'[2]5.2 Asset Age Profile'!BV53","v":0},{"$f":"'[2]5.2 Asset Age Profile'!BW53","v":0},{"$f":"'[2]5.2 Asset Age Profile'!BX53","v":0},{"$f":"'[2]5.2 Asset Age Profile'!BY53","v":0},{"$f":"'[2]5.2 Asset Age Profile'!BZ53","v":0},{"$f":"'[2]5.2 Asset Age Profile'!CA53","v":0},{"$f":"'[2]5.2 Asset Age Profile'!CB53","v":0},{"$f":"'[2]5.2 Asset Age Profile'!CC53","v":0},{"$f":"'[2]5.2 Asset Age Profile'!CD53","v":0},{"$f":"'[2]5.2 Asset Age Profile'!CE53","v":0},{"$f":"'[2]5.2 Asset Age Profile'!CF53","v":0},{"$f":"'[2]5.2 Asset Age Profile'!CG53","v":0},{"$f":"'[2]5.2 Asset Age Profile'!CH53","v":0},{"$f":"'[2]5.2 Asset Age Profile'!CI53","v":0},{"$f":"'[2]5.2 Asset Age Profile'!CJ53","v":0},{"$f":"'[2]5.2 Asset Age Profile'!CK53","v":0},{"$f":"'[2]5.2 Asset Age Profile'!CL53","v":0},{"$f":"'[2]5.2 Asset Age Profile'!CM53","v":0},{"$f":"'[2]5.2 Asset Age Profile'!CN53","v":0},{"$f":"'[2]5.2 Asset Age Profile'!CO53","v":0},{"$f":"'[2]5.2 Asset Age Profile'!CP53","v":0},{"$f":"'[2]5.2 Asset Age Profile'!CQ53","v":0},{"$f":"'[2]5.2 Asset Age Profile'!CR53","v":0},{"$f":"'[2]5.2 Asset Age Profile'!CS53","v":0},{"$f":"'[2]5.2 Asset Age Profile'!CT53","v":0},{"$f":"'[2]5.2 Asset Age Profile'!CU53","v":0},{"$f":"'[2]5.2 Asset Age Profile'!CV53","v":0},{"$f":"'[2]5.2 Asset Age Profile'!CW53","v":0},{"$f":"'[2]5.2 Asset Age Profile'!CX53","v":0},{"$f":"'[2]5.2 Asset Age Profile'!CY53","v":0},{"$f":"'[2]5.2 Asset Age Profile'!CZ53","v":0},{"$f":"'[2]5.2 Asset Age Profile'!DA53","v":0},{"$f":"'[2]5.2 Asset Age Profile'!DB53","v":0},{"$f":"'[2]5.2 Asset Age Profile'!DC53","v":0},{"$f":"'[2]5.2 Asset Age Profile'!DD53","v":0},{"$f":"'[2]5.2 Asset Age Profile'!DE53","v":0},{"$f":"'[2]5.2 Asset Age Profile'!DF53","v":0},{"$f":"'[2]5.2 Asset Age Profile'!DG53","v":0},{"$f":"'[2]5.2 Asset Age Profile'!DH53","v":0},{"$f":"'[2]5.2 Asset Age Profile'!DI53","v":0},{"$f":"'[2]5.2 Asset Age Profile'!DJ53","v":0},{"$f":"'[2]5.2 Asset Age Profile'!DK53","v":0},{"$f":"'[2]5.2 Asset Age Profile'!DL53","v":0},{"$f":"'[2]5.2 Asset Age Profile'!DM53","v":0},{"$f":"'[2]5.2 Asset Age Profile'!DN53","v":0},{"$f":"'[2]5.2 Asset Age Profile'!DO53","v":0},{"$f":"'[2]5.2 Asset Age Profile'!DP53","v":0},{"$f":"'[2]5.2 Asset Age Profile'!DQ53","v":0},{"$f":"'[2]5.2 Asset Age Profile'!DR53","v":0},{"$f":"'[2]5.2 Asset Age Profile'!DS53","v":0},{"$f":"'[2]5.2 Asset Age Profile'!DT53","v":0},{"$f":"'[2]5.2 Asset Age Profile'!DU53","v":0},{"$f":"'[2]5.2 Asset Age Profile'!DV53","v":0},{"$f":"'[2]5.2 Asset Age Profile'!DW53","v":0},{"$f":"'[2]5.2 Asset Age Profile'!DX53","v":0},{"$f":"'[2]5.2 Asset Age Profile'!DY53","v":0},{"$f":"'[2]5.2 Asset Age Profile'!DZ53","v":0},{"$f":"'[2]5.2 Asset Age Profile'!EA53","v":0},{"$f":"'[2]5.2 Asset Age Profile'!EB53","v":0},{"$f":"'[2]5.2 Asset Age Profile'!EC53","v":0},{"$f":"'[2]5.2 Asset Age Profile'!ED53","v":0},{"$f":"'[2]5.2 Asset Age Profile'!EE53","v":0},{"$f":"'[2]5.2 Asset Age Profile'!EF53","v":0},{"$f":"'[2]5.2 Asset Age Profile'!EG53","v":0},{"$f":"'[2]5.2 Asset Age Profile'!EH53","v":0},{"$f":"'[2]5.2 Asset Age Profile'!EI53","v":0},{"$f":"'[2]5.2 Asset Age Profile'!EJ53","v":0}]
["ED_ASS521_00044",null,"Other",null,"DNSP NAME","REPEX","SERVICE LINES","Other","DESCRIPTOR METRIC","MEAN ECONOMIC LIFE","YEARS","NUMBER",null,{"$f":"'[2]5.2 Asset Age Profile'!N54","v":0},{"$f":"'[2]5.2 Asset Age Profile'!O54","v":0},{"$f":"'[2]5.2 Asset Age Profile'!P54","v":0},{"$f":"'[2]5.2 Asset Age Profile'!Q54","v":0},{"$f":"'[2]5.2 Asset Age Profile'!R54","v":0},{"$f":"'[2]5.2 Asset Age Profile'!S54","v":0},{"$f":"'[2]5.2 Asset Age Profile'!T54","v":0},{"$f":"'[2]5.2 Asset Age Profile'!U54","v":0},{"$f":"'[2]5.2 Asset Age Profile'!V54","v":0},{"$f":"'[2]5.2 Asset Age Profile'!W54","v":0},{"$f":"'[2]5.2 Asset Age Profile'!X54","v":0},{"$f":"'[2]5.2 Asset Age Profile'!Y54","v":0},{"$f":"'[2]5.2 Asset Age Profile'!Z54","v":0},{"$f":"'[2]5.2 Asset Age Profile'!AA54","v":0},{"$f":"'[2]5.2 Asset Age Profile'!AB54","v":0},{"$f":"'[2]5.2 Asset Age Profile'!AC54","v":0},{"$f":"'[2]5.2 Asset Age Profile'!AD54","v":0},{"$f":"'[2]5.2 Asset Age Profile'!AE54","v":0},{"$f":"'[2]5.2 Asset Age Profile'!AF54","v":0},{"$f":"'[2]5.2 Asset Age Profile'!AG54","v":0},{"$f":"'[2]5.2 Asset Age Profile'!AH54","v":0},{"$f":"'[2]5.2 Asset Age Profile'!AI54","v":0},{"$f":"'[2]5.2 Asset Age Profile'!AJ54","v":0},{"$f":"'[2]5.2 Asset Age Profile'!AK54","v":0},{"$f":"'[2]5.2 Asset Age Profile'!AL54","v":0},{"$f":"'[2]5.2 Asset Age Profile'!AM54","v":0},{"$f":"'[2]5.2 Asset Age Profile'!AN54","v":0},{"$f":"'[2]5.2 Asset Age Profile'!AO54","v":0},{"$f":"'[2]5.2 Asset Age Profile'!AP54","v":0},{"$f":"'[2]5.2 Asset Age Profile'!AQ54","v":0},{"$f":"'[2]5.2 Asset Age Profile'!AR54","v":0},{"$f":"'[2]5.2 Asset Age Profile'!AS54","v":0},{"$f":"'[2]5.2 Asset Age Profile'!AT54","v":0},{"$f":"'[2]5.2 Asset Age Profile'!AU54","v":0},{"$f":"'[2]5.2 Asset Age Profile'!AV54","v":0},{"$f":"'[2]5.2 Asset Age Profile'!AW54","v":0},{"$f":"'[2]5.2 Asset Age Profile'!AX54","v":0},{"$f":"'[2]5.2 Asset Age Profile'!AY54","v":0},{"$f":"'[2]5.2 Asset Age Profile'!AZ54","v":0},{"$f":"'[2]5.2 Asset Age Profile'!BA54","v":0},{"$f":"'[2]5.2 Asset Age Profile'!BB54","v":0},{"$f":"'[2]5.2 Asset Age Profile'!BC54","v":0},{"$f":"'[2]5.2 Asset Age Profile'!BD54","v":0},{"$f":"'[2]5.2 Asset Age Profile'!BE54","v":0},{"$f":"'[2]5.2 Asset Age Profile'!BF54","v":0},{"$f":"'[2]5.2 Asset Age Profile'!BG54","v":0},{"$f":"'[2]5.2 Asset Age Profile'!BH54","v":0},{"$f":"'[2]5.2 Asset Age Profile'!BI54","v":0},{"$f":"'[2]5.2 Asset Age Profile'!BJ54","v":0},{"$f":"'[2]5.2 Asset Age Profile'!BK54","v":0},{"$f":"'[2]5.2 Asset Age Profile'!BL54","v":0},{"$f":"'[2]5.2 Asset Age Profile'!BM54","v":0},{"$f":"'[2]5.2 Asset Age Profile'!BN54","v":0},{"$f":"'[2]5.2 Asset Age Profile'!BO54","v":0},{"$f":"'[2]5.2 Asset Age Profile'!BP54","v":0},{"$f":"'[2]5.2 Asset Age Profile'!BQ54","v":0},{"$f":"'[2]5.2 Asset Age Profile'!BR54","v":0},{"$f":"'[2]5.2 Asset Age Profile'!BS54","v":0},{"$f":"'[2]5.2 Asset Age Profile'!BT54","v":0},{"$f":"'[2]5.2 Asset Age Profile'!BU54","v":0},{"$f":"'[2]5.2 Asset Age Profile'!BV54","v":0},{"$f":"'[2]5.2 Asset Age Profile'!BW54","v":0},{"$f":"'[2]5.2 Asset Age Profile'!BX54","v":0},{"$f":"'[2]5.2 Asset Age Profile'!BY54","v":0},{"$f":"'[2]5.2 Asset Age Profile'!BZ54","v":0},{"$f":"'[2]5.2 Asset Age Profile'!CA54","v":0},{"$f":"'[2]5.2 Asset Age Profile'!CB54","v":0},{"$f":"'[2]5.2 Asset Age Profile'!CC54","v":0},{"$f":"'[2]5.2 Asset Age Profile'!CD54","v":0},{"$f":"'[2]5.2 Asset Age Profile'!CE54","v":0},{"$f":"'[2]5.2 Asset Age Profile'!CF54","v":0},{"$f":"'[2]5.2 Asset Age Profile'!CG54","v":0},{"$f":"'[2]5.2 Asset Age Profile'!CH54","v":0},{"$f":"'[2]5.2 Asset Age Profile'!CI54","v":0},{"$f":"'[2]5.2 Asset Age Profile'!CJ54","v":0},{"$f":"'[2]5.2 Asset Age Profile'!CK54","v":0},{"$f":"'[2]5.2 Asset Age Profile'!CL54","v":0},{"$f":"'[2]5.2 Asset Age Profile'!CM54","v":0},{"$f":"'[2]5.2 Asset Age Profile'!CN54","v":0},{"$f":"'[2]5.2 Asset Age Profile'!CO54","v":0},{"$f":"'[2]5.2 Asset Age Profile'!CP54","v":0},{"$f":"'[2]5.2 Asset Age Profile'!CQ54","v":0},{"$f":"'[2]5.2 Asset Age Profile'!CR54","v":0},{"$f":"'[2]5.2 Asset Age Profile'!CS54","v":0},{"$f":"'[2]5.2 Asset Age Profile'!CT54","v":0},{"$f":"'[2]5.2 Asset Age Profile'!CU54","v":0},{"$f":"'[2]5.2 Asset Age Profile'!CV54","v":0},{"$f":"'[2]5.2 Asset Age Profile'!CW54","v":0},{"$f":"'[2]5.2 Asset Age Profile'!CX54","v":0},{"$f":"'[2]5.2 Asset Age Profile'!CY54","v":0},{"$f":"'[2]5.2 Asset Age Profile'!CZ54","v":0},{"$f":"'[2]5.2 Asset Age Profile'!DA54","v":0},{"$f":"'[2]5.2 Asset Age Profile'!DB54","v":0},{"$f":"'[2]5.2 Asset Age Profile'!DC54","v":0},{"$f":"'[2]5.2 Asset Age Profile'!DD54","v":0},{"$f":"'[2]5.2 Asset Age Profile'!DE54","v":0},{"$f":"'[2]5.2 Asset Age Profile'!DF54","v":0},{"$f":"'[2]5.2 Asset Age Profile'!DG54","v":0},{"$f":"'[2]5.2 Asset Age Profile'!DH54","v":0},{"$f":"'[2]5.2 Asset Age Profile'!DI54","v":0},{"$f":"'[2]5.2 Asset Age Profile'!DJ54","v":0},{"$f":"'[2]5.2 Asset Age Profile'!DK54","v":0},{"$f":"'[2]5.2 Asset Age Profile'!DL54","v":0},{"$f":"'[2]5.2 Asset Age Profile'!DM54","v":0},{"$f":"'[2]5.2 Asset Age Profile'!DN54","v":0},{"$f":"'[2]5.2 Asset Age Profile'!DO54","v":0},{"$f":"'[2]5.2 Asset Age Profile'!DP54","v":0},{"$f":"'[2]5.2 Asset Age Profile'!DQ54","v":0},{"$f":"'[2]5.2 Asset Age Profile'!DR54","v":0},{"$f":"'[2]5.2 Asset Age Profile'!DS54","v":0},{"$f":"'[2]5.2 Asset Age Profile'!DT54","v":0},{"$f":"'[2]5.2 Asset Age Profile'!DU54","v":0},{"$f":"'[2]5.2 Asset Age Profile'!DV54","v":0},{"$f":"'[2]5.2 Asset Age Profile'!DW54","v":0},{"$f":"'[2]5.2 Asset Age Profile'!DX54","v":0},{"$f":"'[2]5.2 Asset Age Profile'!DY54","v":0},{"$f":"'[2]5.2 Asset Age Profile'!DZ54","v":0},{"$f":"'[2]5.2 Asset Age Profile'!EA54","v":0},{"$f":"'[2]5.2 Asset Age Profile'!EB54","v":0},{"$f":"'[2]5.2 Asset Age Profile'!EC54","v":0},{"$f":"'[2]5.2 Asset Age Profile'!ED54","v":0},{"$f":"'[2]5.2 Asset Age Profile'!EE54","v":0},{"$f":"'[2]5.2 Asset Age Profile'!EF54","v":0},{"$f":"'[2]5.2 Asset Age Profile'!EG54","v":0},{"$f":"'[2]5.2 Asset Age Profile'!EH54","v":0},{"$f":"'[2]5.2 Asset Age Profile'!EI54","v":0},{"$f":"'[2]5.2 Asset Age Profile'!EJ54","v":0}]
["ED_ASS521_00045","SERVICE LINES BY: \nCONNECTION VOLTAGE; CUSTOMER TYPE; CONNECTION COMPLEXITY ","˂ = 11 kV ; Residential ; Simple Type",null,"DNSP NAME","REPEX","SERVICE LINES","˂ = 11 kV ; Residential ; Simple Type","DESCRIPTOR METRIC","MEAN ECONOMIC LIFE","YEARS","NUMBER",null,{"$f":"'[2]5.2 Asset Age Profile'!N55","v":53.8},{"$f":"'[2]5.2 Asset Age Profile'!O55","v":0},{"$f":"'[2]5.2 Asset Age Profile'!P55","v":0},{"$f":"'[2]5.2 Asset Age Profile'!Q55","v":0},{"$f":"'[2]5.2 Asset Age Profile'!R55","v":0},{"$f":"'[2]5.2 Asset Age Profile'!S55","v":0},{"$f":"'[2]5.2 Asset Age Profile'!T55","v":0},{"$f":"'[2]5.2 Asset Age Profile'!U55","v":0},{"$f":"'[2]5.2 Asset Age Profile'!V55","v":0},{"$f":"'[2]5.2 Asset Age Profile'!W55","v":0},{"$f":"'[2]5.2 Asset Age Profile'!X55","v":0},{"$f":"'[2]5.2 Asset Age Profile'!Y55","v":7.334848328356899},{"$f":"'[2]5.2 Asset Age Profile'!Z55","v":0},{"$f":"'[2]5.2 Asset Age Profile'!AA55","v":0},{"$f":"'[2]5.2 Asset Age Profile'!AB55","v":0},{"$f":"'[2]5.2 Asset Age Profile'!AC55","v":0},{"$f":"'[2]5.2 Asset Age Profile'!AD55","v":0},{"$f":"'[2]5.2 Asset Age Profile'!AE55","v":0},{"$f":"'[2]5.2 Asset Age Profile'!AF55","v":0},{"$f":"'[2]5.2 Asset Age Profile'!AG55","v":0},{"$f":"'[2]5.2 Asset Age Profile'!AH55","v":0},{"$f":"'[2]5.2 Asset Age Profile'!AI55","v":0},{"$f":"'[2]5.2 Asset Age Profile'!AJ55","v":3999.1741313516773},{"$f":"'[2]5.2 Asset Age Profile'!AK55","v":5126.863118517259},{"$f":"'[2]5.2 Asset Age Profile'!AL55","v":17291.82383419689},{"$f":"'[2]5.2 Asset Age Profile'!AM55","v":26826.252388563309},{"$f":"'[2]5.2 Asset Age Profile'!AN55","v":21792.312603754312},{"$f":"'[2]5.2 Asset Age Profile'!AO55","v":7316.6760213143871},{"$f":"'[2]5.2 Asset Age Profile'!AP55","v":7969.3772771370059},{"$f":"'[2]5.2 Asset Age Profile'!AQ55","v":12524.529670018412},{"$f":"'[2]5.2 Asset Age Profile'!AR55","v":9597.5651849781007},{"$f":"'[2]5.2 Asset Age Profile'!AS55","v":10330.351468798888},{"$f":"'[2]5.2 Asset Age Profile'!AT55","v":10240.547740950327},{"$f":"'[2]5.2 Asset Age Profile'!AU55","v":10287.15736945286},{"$f":"'[2]5.2 Asset Age Profile'!AV55","v":8803.1283582089545},{"$f":"'[2]5.2 Asset Age Profile'!AW55","v":8616.124933827421},{"$f":"'[2]5.2 Asset Age Profile'!AX55","v":6842.2184300341296},{"$f":"'[2]5.2 Asset Age Profile'!AY55","v":8629.5430727310832},{"$f":"'[2]5.2 Asset Age Profile'!AZ55","v":7628.9900491822027},{"$f":"'[2]5.2 Asset Age Profile'!BA55","v":7678.5024165979021},{"$f":"'[2]5.2 Asset Age Profile'!BB55","v":8058.897605934585},{"$f":"'[2]5.2 Asset Age Profile'!BC55","v":9086.6324048646529},{"$f":"'[2]5.2 Asset Age Profile'!BD55","v":11894.243793023436},{"$f":"'[2]5.2 Asset Age Profile'!BE55","v":12888.811696567313},{"$f":"'[2]5.2 Asset Age Profile'!BF55","v":11310.087352283615},{"$f":"'[2]5.2 Asset Age Profile'!BG55","v":11932.604338763222},{"$f":"'[2]5.2 Asset Age Profile'!BH55","v":14182.672014609014},{"$f":"'[2]5.2 Asset Age Profile'!BI55","v":14730.340689655173},{"$f":"'[2]5.2 Asset Age Profile'!BJ55","v":11605.814665216716},{"$f":"'[2]5.2 Asset Age Profile'!BK55","v":8963.7327586206902},{"$f":"'[2]5.2 Asset Age Profile'!BL55","v":9234.2878228782283},{"$f":"'[2]5.2 Asset Age Profile'!BM55","v":10020.716203788854},{"$f":"'[2]5.2 Asset Age Profile'!BN55","v":10688.560072973678},{"$f":"'[2]5.2 Asset Age Profile'!BO55","v":9002.6608910891082},{"$f":"'[2]5.2 Asset Age Profile'!BP55","v":10365.353981514398},{"$f":"'[2]5.2 Asset Age Profile'!BQ55","v":12795.419611819236},{"$f":"'[2]5.2 Asset Age Profile'!BR55","v":9690.5346375578865},{"$f":"'[2]5.2 Asset Age Profile'!BS55","v":10198.356979203383},{"$f":"'[2]5.2 Asset Age Profile'!BT55","v":8212.2706783612739},{"$f":"'[2]5.2 Asset Age Profile'!BU55","v":9475.7246504351224},{"$f":"'[2]5.2 Asset Age Profile'!BV55","v":10681.490848875719},{"$f":"'[2]5.2 Asset Age Profile'!BW55","v":10530.39118705036},{"$f":"'[2]5.2 Asset Age Profile'!BX55","v":12175.194694384114},{"$f":"'[2]5.2 Asset Age Profile'!BY55","v":11336.465065684881},{"$f":"'[2]5.2 Asset Age Profile'!BZ55","v":8313.7750872846045},{"$f":"'[2]5.2 Asset Age Profile'!CA55","v":7672.8},{"$f":"'[2]5.2 Asset Age Profile'!CB55","v":7291.5443593926466},{"$f":"'[2]5.2 Asset Age Profile'!CC55","v":8578.3135359116022},{"$f":"'[2]5.2 Asset Age Profile'!CD55","v":9247.0923687367358},{"$f":"'[2]5.2 Asset Age Profile'!CE55","v":6167.4044063285528},{"$f":"'[2]5.2 Asset Age Profile'!CF55","v":8781.1279416298421},{"$f":"'[2]5.2 Asset Age Profile'!CG55","v":6456.2853951410225},{"$f":"'[2]5.2 Asset Age Profile'!CH55","v":7706.7324414715722},{"$f":"'[2]5.2 Asset Age Profile'!CI55","v":6254.7978553832781},{"$f":"'[2]5.2 Asset Age Profile'!CJ55","v":5134.0418963616321},{"$f":"'[2]5.2 Asset Age Profile'!CK55","v":3088.5131938125569},{"$f":"'[2]5.2 Asset Age Profile'!CL55","v":76454.124401567678},{"$f":"'[2]5.2 Asset Age Profile'!CM55","v":4886.07885065152},{"$f":"'[2]5.2 Asset Age Profile'!CN55","v":178.71014492753622},{"$f":"'[2]5.2 Asset Age Profile'!CO55","v":1002.6068601583113},{"$f":"'[2]5.2 Asset Age Profile'!CP55","v":321.66666666666669},{"$f":"'[2]5.2 Asset Age Profile'!CQ55","v":491.22631578947369},{"$f":"'[2]5.2 Asset Age Profile'!CR55","v":1239.1621621621621},{"$f":"'[2]5.2 Asset Age Profile'!CS55","v":486.37571157495256},{"$f":"'[2]5.2 Asset Age Profile'!CT55","v":515.74237288135589},{"$f":"'[2]5.2 Asset Age Profile'!CU55","v":645.2234482758621},{"$f":"'[2]5.2 Asset Age Profile'!CV55","v":461.57},{"$f":"'[2]5.2 Asset Age Profile'!CW55","v":2653.9479712041884},{"$f":"'[2]5.2 Asset Age Profile'!CX55","v":364},{"$f":"'[2]5.2 Asset Age Profile'!CY55","v":196.58415841584159},{"$f":"'[2]5.2 Asset Age Profile'!CZ55","v":37.924999999999997},{"$f":"'[2]5.2 Asset Age Profile'!DA55","v":69.813333333333333},{"$f":"'[2]5.2 Asset Age Profile'!DB55","v":6},{"$f":"'[2]5.2 Asset Age Profile'!DC55","v":8},{"$f":"'[2]5.2 Asset Age Profile'!DD55","v":7.875},{"$f":"'[2]5.2 Asset Age Profile'!DE55","v":0},{"$f":"'[2]5.2 Asset Age Profile'!DF55","v":10},{"$f":"'[2]5.2 Asset Age Profile'!DG55","v":92},{"$f":"'[2]5.2 Asset Age Profile'!DH55","v":2},{"$f":"'[2]5.2 Asset Age Profile'!DI55","v":1},{"$f":"'[2]5.2 Asset Age Profile'!DJ55","v":7},{"$f":"'[2]5.2 Asset Age Profile'!DK55","v":14},{"$f":"'[2]5.2 Asset Age Profile'!DL55","v":6},{"$f":"'[2]5.2 Asset Age Profile'!DM55","v":1},{"$f":"'[2]5.2 Asset Age Profile'!DN55","v":0},{"$f":"'[2]5.2 Asset Age Profile'!DO55","v":0},{"$f":"'[2]5.2 Asset Age Profile'!DP55","v":280.67307692307691},{"$f":"'[2]5.2 Asset Age Profile'!DQ55","v":68},{"$f":"'[2]5.2 Asset Age Profile'!DR55","v":0},{"$f":"'[2]5.2 Asset Age Profile'!DS55","v":1},{"$f":"'[2]5.2 Asset Age Profile'!DT55","v":7},{"$f":"'[2]5.2 Asset Age Profile'!DU55","v":3},{"$f":"'[2]5.2 Asset Age Profile'!DV55","v":4},{"$f":"'[2]5.2 Asset Age Profile'!DW55","v":1},{"$f":"'[2]5.2 Asset Age Profile'!DX55","v":7},{"$f":"'[2]5.2 Asset Age Profile'!DY55","v":0},{"$f":"'[2]5.2 Asset Age Profile'!DZ55","v":10},{"$f":"'[2]5.2 Asset Age Profile'!EA55","v":1},{"$f":"'[2]5.2 Asset Age Profile'!EB55","v":1},{"$f":"'[2]5.2 Asset Age Profile'!EC55","v":0},{"$f":"'[2]5.2 Asset Age Profile'!ED55","v":2},{"$f":"'[2]5.2 Asset Age Profile'!EE55","v":1},{"$f":"'[2]5.2 Asset Age Profile'!EF55","v":2},{"$f":"'[2]5.2 Asset Age Profile'!EG55","v":0},{"$f":"'[2]5.2 Asset Age Profile'!EH55","v":3},{"$f":"'[2]5.2 Asset Age Profile'!EI55","v":0},{"$f":"'[2]5.2 Asset Age Profile'!EJ55","v":0}]
["ED_ASS521_00046",null,"˂ = 11 kV ; Commercial & Industrial ; Simple Type",null,"DNSP NAME","REPEX","SERVICE LINES","˂ = 11 kV ; Commercial & Industrial ; Simple Type","DESCRIPTOR METRIC","MEAN ECONOMIC LIFE","YEARS","NUMBER",null,{"$f":"'[2]5.2 Asset Age Profile'!N56","v":53.8},{"$f":"'[2]5.2 Asset Age Profile'!O56","v":0},{"$f":"'[2]5.2 Asset Age Profile'!P56","v":0},{"$f":"'[2]5.2 Asset Age Profile'!Q56","v":0},{"$f":"'[2]5.2 Asset Age Profile'!R56","v":0},{"$f":"'[2]5.2 Asset Age Profile'!S56","v":0},{"$f":"'[2]5.2 Asset Age Profile'!T56","v":0},{"$f":"'[2]5.2 Asset Age Profile'!U56","v":0},{"$f":"'[2]5.2 Asset Age Profile'!V56","v":0},{"$f":"'[2]5.2 Asset Age Profile'!W56","v":0},{"$f":"'[2]5.2 Asset Age Profile'!X56","v":0},{"$f":"'[2]5.2 Asset Age Profile'!Y56","v":7.334848328356899},{"$f":"'[2]5.2 Asset Age Profile'!Z56","v":0},{"$f":"'[2]5.2 Asset Age Profile'!AA56","v":0},{"$f":"'[2]5.2 Asset Age Profile'!AB56","v":0},{"$f":"'[2]5.2 Asset Age Profile'!AC56","v":0},{"$f":"'[2]5.2 Asset Age Profile'!AD56","v":0},{"$f":"'[2]5.2 Asset Age Profile'!AE56","v":0},{"$f":"'[2]5.2 Asset Age Profile'!AF56","v":0},{"$f":"'[2]5.2 Asset Age Profile'!AG56","v":0},{"$f":"'[2]5.2 Asset Age Profile'!AH56","v":0},{"$f":"'[2]5.2 Asset Age Profile'!AI56","v":0},{"$f":"'[2]5.2 Asset Age Profile'!AJ56","v":1218.825868648323},{"$f":"'[2]5.2 Asset Age Profile'!AK56","v":1091.136881482741},{"$f":"'[2]5.2 Asset Age Profile'!AL56","v":1457.1761658031089},{"$f":"'[2]5.2 Asset Age Profile'!AM56","v":2107.7476114366896},{"$f":"'[2]5.2 Asset Age Profile'!AN56","v":2243.6873962456903},{"$f":"'[2]5.2 Asset Age Profile'!AO56","v":1314.3239786856127},{"$f":"'[2]5.2 Asset Age Profile'!AP56","v":1483.6227228629946},{"$f":"'[2]5.2 Asset Age Profile'!AQ56","v":1897.470329981589},{"$f":"'[2]5.2 Asset Age Profile'!AR56","v":1326.4348150218991},{"$f":"'[2]5.2 Asset Age Profile'!AS56","v":1413.6485312011125},{"$f":"'[2]5.2 Asset Age Profile'!AT56","v":1145.4522590496722},{"$f":"'[2]5.2 Asset Age Profile'!AU56","v":1176.8426305471396},{"$f":"'[2]5.2 Asset Age Profile'!AV56","v":1159.8716417910448},{"$f":"'[2]5.2 Asset Age Profile'!AW56","v":1048.875066172578},{"$f":"'[2]5.2 Asset Age Profile'!AX56","v":1248.7815699658704},{"$f":"'[2]5.2 Asset Age Profile'!AY56","v":1086.4569272689164},{"$f":"'[2]5.2 Asset Age Profile'!AZ56","v":1281.0099508177971},{"$f":"'[2]5.2 Asset Age Profile'!BA56","v":969.49758340209837},{"$f":"'[2]5.2 Asset Age Profile'!BB56","v":1025.1023940654154},{"$f":"'[2]5.2 Asset Age Profile'!BC56","v":1289.3675951353473},{"$f":"'[2]5.2 Asset Age Profile'!BD56","v":1296.7562069765643},{"$f":"'[2]5.2 Asset Age Profile'!BE56","v":1534.1883034326881},{"$f":"'[2]5.2 Asset Age Profile'!BF56","v":1480.9126477163845},{"$f":"'[2]5.2 Asset Age Profile'!BG56","v":1273.3956612367792},{"$f":"'[2]5.2 Asset Age Profile'!BH56","v":1427.3279853909867},{"$f":"'[2]5.2 Asset Age Profile'!BI56","v":1611.6593103448276},{"$f":"'[2]5.2 Asset Age Profile'!BJ56","v":1520.1853347832841},{"$f":"'[2]5.2 Asset Age Profile'!BK56","v":1408.2672413793102},{"$f":"'[2]5.2 Asset Age Profile'!BL56","v":1253.7121771217712},{"$f":"'[2]5.2 Asset Age Profile'!BM56","v":1073.283796211146},{"$f":"'[2]5.2 Asset Age Profile'!BN56","v":1012.4399270263226},{"$f":"'[2]5.2 Asset Age Profile'!BO56","v":877.33910891089113},{"$f":"'[2]5.2 Asset Age Profile'!BP56","v":1083.6460184856026},{"$f":"'[2]5.2 Asset Age Profile'!BQ56","v":1291.5803881807649},{"$f":"'[2]5.2 Asset Age Profile'!BR56","v":1092.4653624421132},{"$f":"'[2]5.2 Asset Age Profile'!BS56","v":1366.6430207966162},{"$f":"'[2]5.2 Asset Age Profile'!BT56","v":929.72932163872542},{"$f":"'[2]5.2 Asset Age Profile'!BU56","v":942.27534956487727},{"$f":"'[2]5.2 Asset Age Profile'!BV56","v":997.50915112428095},{"$f":"'[2]5.2 Asset Age Profile'!BW56","v":819.60881294964031},{"$f":"'[2]5.2 Asset Age Profile'!BX56","v":937.8053056158858},{"$f":"'[2]5.2 Asset Age Profile'!BY56","v":862.53493431512004},{"$f":"'[2]5.2 Asset Age Profile'!BZ56","v":729.22491271539593},{"$f":"'[2]5.2 Asset Age Profile'!CA56","v":667.2},{"$f":"'[2]5.2 Asset Age Profile'!CB56","v":845.45564060735353},{"$f":"'[2]5.2 Asset Age Profile'!CC56","v":1002.6864640883978},{"$f":"'[2]5.2 Asset Age Profile'!CD56","v":1868.9076312632646},{"$f":"'[2]5.2 Asset Age Profile'!CE56","v":716.59559367144755},{"$f":"'[2]5.2 Asset Age Profile'!CF56","v":1124.8720583701572},{"$f":"'[2]5.2 Asset Age Profile'!CG56","v":885.71460485897796},{"$f":"'[2]5.2 Asset Age Profile'!CH56","v":796.26755852842814},{"$f":"'[2]5.2 Asset Age Profile'!CI56","v":798.20214461672219},{"$f":"'[2]5.2 Asset Age Profile'!CJ56","v":391.95810363836824},{"$f":"'[2]5.2 Asset Age Profile'!CK56","v":275.48680618744311},{"$f":"'[2]5.2 Asset Age Profile'!CL56","v":7936.8755984323179},{"$f":"'[2]5.2 Asset Age Profile'!CM56","v":1307.9211493484797},{"$f":"'[2]5.2 Asset Age Profile'!CN56","v":30.289855072463769},{"$f":"'[2]5.2 Asset Age Profile'!CO56","v":145.39313984168865},{"$f":"'[2]5.2 Asset Age Profile'!CP56","v":64.333333333333329},{"$f":"'[2]5.2 Asset Age Profile'!CQ56","v":95.773684210526312},{"$f":"'[2]5.2 Asset Age Profile'!CR56","v":239.83783783783784},{"$f":"'[2]5.2 Asset Age Profile'!CS56","v":47.624288425047439},{"$f":"'[2]5.2 Asset Age Profile'!CT56","v":76.257627118644066},{"$f":"'[2]5.2 Asset Age Profile'!CU56","v":93.776551724137931},{"$f":"'[2]5.2 Asset Age Profile'!CV56","v":43.43},{"$f":"'[2]5.2 Asset Age Profile'!CW56","v":431.05202879581151},{"$f":"'[2]5.2 Asset Age Profile'!CX56","v":57},{"$f":"'[2]5.2 Asset Age Profile'!CY56","v":12.415841584158416},{"$f":"'[2]5.2 Asset Age Profile'!CZ56","v":3.0750000000000002},{"$f":"'[2]5.2 Asset Age Profile'!DA56","v":7.1866666666666665},{"$f":"'[2]5.2 Asset Age Profile'!DB56","v":3},{"$f":"'[2]5.2 Asset Age Profile'!DC56","v":3},{"$f":"'[2]5.2 Asset Age Profile'!DD56","v":1.125},{"$f":"'[2]5.2 Asset Age Profile'!DE56","v":0},{"$f":"'[2]5.2 Asset Age Profile'!DF56","v":2},{"$f":"'[2]5.2 Asset Age Profile'!DG56","v":34},{"$f":"'[2]5.2 Asset Age Profile'!DH56","v":4},{"$f":"'[2]5.2 Asset Age Profile'!DI56","v":1},{"$f":"'[2]5.2 Asset Age Profile'!DJ56","v":0},{"$f":"'[2]5.2 Asset Age Profile'!DK56","v":6},{"$f":"'[2]5.2 Asset Age Profile'!DL56","v":4},{"$f":"'[2]5.2 Asset Age Profile'!DM56","v":0},{"$f":"'[2]5.2 Asset Age Profile'!DN56","v":0},{"$f":"'[2]5.2 Asset Age Profile'!DO56","v":0},{"$f":"'[2]5.2 Asset Age Profile'!DP56","v":34.32692307692308},{"$f":"'[2]5.2 Asset Age Profile'!DQ56","v":14},{"$f":"'[2]5.2 Asset Age Profile'!DR56","v":2},{"$f":"'[2]5.2 Asset Age Profile'!DS56","v":0},{"$f":"'[2]5.2 Asset Age Profile'!DT56","v":0},{"$f":"'[2]5.2 Asset Age Profile'!DU56","v":0},{"$f":"'[2]5.2 Asset Age Profile'!DV56","v":1},{"$f":"'[2]5.2 Asset Age Profile'!DW56","v":0},{"$f":"'[2]5.2 Asset Age Profile'!DX56","v":2},{"$f":"'[2]5.2 Asset Age Profile'!DY56","v":1},{"$f":"'[2]5.2 Asset Age Profile'!DZ56","v":2},{"$f":"'[2]5.2 Asset Age Profile'!EA56","v":1},{"$f":"'[2]5.2 Asset Age Profile'!EB56","v":0},{"$f":"'[2]5.2 Asset Age Profile'!EC56","v":0},{"$f":"'[2]5.2 Asset Age Profile'!ED56","v":1},{"$f":"'[2]5.2 Asset Age Profile'!EE56","v":1},{"$f":"'[2]5.2 Asset Age Profile'!EF56","v":0},{"$f":"'[2]5.2 Asset Age Profile'!EG56","v":0},{"$f":"'[2]5.2 Asset Age Profile'!EH56","v":2},{"$f":"'[2]5.2 Asset Age Profile'!EI56","v":5},{"$f":"'[2]5.2 Asset Age Profile'!EJ56","v":0}]
["ED_ASS521_00047",null,"˂ = 11 kV ; Residential ; Complex Type",null,"DNSP NAME","REPEX","SERVICE LINES","˂ = 11 kV ; Residential ; Complex Type","DESCRIPTOR METRIC","MEAN ECONOMIC LIFE","YEARS","NUMBER",null,{"$f":"'[2]5.2 Asset Age Profile'!N57","v":53.8},{"$f":"'[2]5.2 Asset Age Profile'!O57","v":0},{"$f":"'[2]5.2 Asset Age Profile'!P57","v":0},{"$f":"'[2]5.2 Asset Age Profile'!Q57","v":0},{"$f":"'[2]5.2 Asset Age Profile'!R57","v":0},{"$f":"'[2]5.2 Asset Age Profile'!S57","v":0},{"$f":"'[2]5.2 Asset Age Profile'!T57","v":0},{"$f":"'[2]5.2 Asset Age Profile'!U57","v":0},{"$f":"'[2]5.2 Asset Age Profile'!V57","v":0},{"$f":"'[2]5.2 Asset Age Profile'!W57","v":0},{"$f":"'[2]5.2 Asset Age Profile'!X57","v":0},{"$f":"'[2]5.2 Asset Age Profile'!Y57","v":7.334848328356899},{"$f":"'[2]5.2 Asset Age Profile'!Z57","v":0},{"$f":"'[2]5.2 Asset Age Profile'!AA57","v":0},{"$f":"'[2]5.2 Asset Age Profile'!AB57","v":0},{"$f":"'[2]5.2 Asset Age Profile'!AC57","v":0},{"$f":"'[2]5.2 Asset Age Profile'!AD57","v":0},{"$f":"'[2]5.2 Asset Age Profile'!AE57","v":0},{"$f":"'[2]5.2 Asset Age Profile'!AF57","v":0},{"$f":"'[2]5.2 Asset Age Profile'!AG57","v":0},{"$f":"'[2]5.2 Asset Age Profile'!AH57","v":0},{"$f":"'[2]5.2 Asset Age Profile'!AI57","v":0},{"$f":"'[2]5.2 Asset Age Profile'!AJ57","v":0},{"$f":"'[2]5.2 Asset Age Profile'!AK57","v":0},{"$f":"'[2]5.2 Asset Age Profile'!AL57","v":0},{"$f":"'[2]5.2 Asset Age Profile'!AM57","v":0},{"$f":"'[2]5.2 Asset Age Profile'!AN57","v":0},{"$f":"'[2]5.2 Asset Age Profile'!AO57","v":0},{"$f":"'[2]5.2 Asset Age Profile'!AP57","v":0},{"$f":"'[2]5.2 Asset Age Profile'!AQ57","v":0},{"$f":"'[2]5.2 Asset Age Profile'!AR57","v":0},{"$f":"'[2]5.2 Asset Age Profile'!AS57","v":0},{"$f":"'[2]5.2 Asset Age Profile'!AT57","v":0},{"$f":"'[2]5.2 Asset Age Profile'!AU57","v":0},{"$f":"'[2]5.2 Asset Age Profile'!AV57","v":0},{"$f":"'[2]5.2 Asset Age Profile'!AW57","v":0},{"$f":"'[2]5.2 Asset Age Profile'!AX57","v":0},{"$f":"'[2]5.2 Asset Age Profile'!AY57","v":0},{"$f":"'[2]5.2 Asset Age Profile'!AZ57","v":0},{"$f":"'[2]5.2 Asset Age Profile'!BA57","v":0},{"$f":"'[2]5.2 Asset Age Profile'!BB57","v":0},{"$f":"'[2]5.2 Asset Age Profile'!BC57","v":0},{"$f":"'[2]5.2 Asset Age Profile'!BD57","v":0},{"$f":"'[2]5.2 Asset Age Profile'!BE57","v":0},{"$f":"'[2]5.2 Asset Age Profile'!BF57","v":0},{"$f":"'[2]5.2 Asset Age Profile'!BG57","v":0},{"$f":"'[2]5.2 Asset Age Profile'!BH57","v":0},{"$f":"'[2]5.2 Asset Age Profile'!BI57","v":0},{"$f":"'[2]5.2 Asset Age Profile'!BJ57","v":0},{"$f":"'[2]5.2 Asset Age Profile'!BK57","v":0},{"$f":"'[2]5.2 Asset Age Profile'!BL57","v":0},{"$f":"'[2]5.2 Asset Age Profile'!BM57","v":0},{"$f":"'[2]5.2 Asset Age Profile'!BN57","v":0},{"$f":"'[2]5.2 Asset Age Profile'!BO57","v":0},{"$f":"'[2]5.2 Asset Age Profile'!BP57","v":0},{"$f":"'[2]5.2 Asset Age Profile'!BQ57","v":0},{"$f":"'[2]5.2 Asset Age Profile'!BR57","v":0},{"$f":"'[2]5.2 Asset Age Profile'!BS57","v":0},{"$f":"'[2]5.2 Asset Age Profile'!BT57","v":0},{"$f":"'[2]5.2 Asset Age Profile'!BU57","v":0},{"$f":"'[2]5.2 Asset Age Profile'!BV57","v":0},{"$f":"'[2]5.2 Asset Age Profile'!BW57","v":0},{"$f":"'[2]5.2 Asset Age Profile'!BX57","v":0},{"$f":"'[2]5.2 Asset Age Profile'!BY57","v":0},{"$f":"'[2]5.2 Asset Age Profile'!BZ57","v":0},{"$f":"'[2]5.2 Asset Age Profile'!CA57","v":0},{"$f":"'[2]5.2 Asset Age Profile'!CB57","v":0},{"$f":"'[2]5.2 Asset Age Profile'!CC57","v":0},{"$f":"'[2]5.2 Asset Age Profile'!CD57","v":0},{"$f":"'[2]5.2 Asset Age Profile'!CE57","v":0},{"$f":"'[2]5.2 Asset Age Profile'!CF57","v":0},{"$f":"'[2]5.2 Asset Age Profile'!CG57","v":0},{"$f":"'[2]5.2 Asset Age Profile'!CH57","v":0},{"$f":"'[2]5.2 Asset Age Profile'!CI57","v":0},{"$f":"'[2]5.2 Asset Age Profile'!CJ57","v":0},{"$f":"'[2]5.2 Asset Age Profile'!CK57","v":0},{"$f":"'[2]5.2 Asset Age Profile'!CL57","v":0},{"$f":"'[2]5.2 Asset Age Profile'!CM57","v":0},{"$f":"'[2]5.2 Asset Age Profile'!CN57","v":0},{"$f":"'[2]5.2 Asset Age Profile'!CO57","v":0},{"$f":"'[2]5.2 Asset Age Profile'!CP57","v":0},{"$f":"'[2]5.2 Asset Age Profile'!CQ57","v":0},{"$f":"'[2]5.2 Asset Age Profile'!CR57","v":0},{"$f":"'[2]5.2 Asset Age Profile'!CS57","v":0},{"$f":"'[2]5.2 Asset Age Profile'!CT57","v":0},{"$f":"'[2]5.2 Asset Age Profile'!CU57","v":0},{"$f":"'[2]5.2 Asset Age Profile'!CV57","v":0},{"$f":"'[2]5.2 Asset Age Profile'!CW57","v":0},{"$f":"'[2]5.2 Asset Age Profile'!CX57","v":0},{"$f":"'[2]5.2 Asset Age Profile'!CY57","v":0},{"$f":"'[2]5.2 Asset Age Profile'!CZ57","v":0},{"$f":"'[2]5.2 Asset Age Profile'!DA57","v":0},{"$f":"'[2]5.2 Asset Age Profile'!DB57","v":0},{"$f":"'[2]5.2 Asset Age Profile'!DC57","v":0},{"$f":"'[2]5.2 Asset Age Profile'!DD57","v":0},{"$f":"'[2]5.2 Asset Age Profile'!DE57","v":0},{"$f":"'[2]5.2 Asset Age Profile'!DF57","v":0},{"$f":"'[2]5.2 Asset Age Profile'!DG57","v":0},{"$f":"'[2]5.2 Asset Age Profile'!DH57","v":0},{"$f":"'[2]5.2 Asset Age Profile'!DI57","v":0},{"$f":"'[2]5.2 Asset Age Profile'!DJ57","v":0},{"$f":"'[2]5.2 Asset Age Profile'!DK57","v":0},{"$f":"'[2]5.2 Asset Age Profile'!DL57","v":0},{"$f":"'[2]5.2 Asset Age Profile'!DM57","v":0},{"$f":"'[2]5.2 Asset Age Profile'!DN57","v":0},{"$f":"'[2]5.2 Asset Age Profile'!DO57","v":0},{"$f":"'[2]5.2 Asset Age Profile'!DP57","v":0},{"$f":"'[2]5.2 Asset Age Profile'!DQ57","v":0},{"$f":"'[2]5.2 Asset Age Profile'!DR57","v":0},{"$f":"'[2]5.2 Asset Age Profile'!DS57","v":0},{"$f":"'[2]5.2 Asset Age Profile'!DT57","v":0},{"$f":"'[2]5.2 Asset Age Profile'!DU57","v":0},{"$f":"'[2]5.2 Asset Age Profile'!DV57","v":0},{"$f":"'[2]5.2 Asset Age Profile'!DW57","v":0},{"$f":"'[2]5.2 Asset Age Profile'!DX57","v":0},{"$f":"'[2]5.2 Asset Age Profile'!DY57","v":0},{"$f":"'[2]5.2 Asset Age Profile'!DZ57","v":0},{"$f":"'[2]5.2 Asset Age Profile'!EA57","v":0},{"$f":"'[2]5.2 Asset Age Profile'!EB57","v":0},{"$f":"'[2]5.2 Asset Age Profile'!EC57","v":0},{"$f":"'[2]5.2 Asset Age Profile'!ED57","v":0},{"$f":"'[2]5.2 Asset Age Profile'!EE57","v":0},{"$f":"'[2]5.2 Asset Age Profile'!EF57","v":0},{"$f":"'[2]5.2 Asset Age Profile'!EG57","v":0},{"$f":"'[2]5.2 Asset Age Profile'!EH57","v":0},{"$f":"'[2]5.2 Asset Age Profile'!EI57","v":0},{"$f":"'[2]5.2 Asset Age Profile'!EJ57","v":0}]
["ED_ASS521_00048",null,"˂ = 11 kV ; Commercial & Industrial ; Complex Type",null,null,null,null,null,null,null,null,null,null,{"$f":"'[2]5.2 Asset Age Profile'!N58","v":53.8},{"$f":"'[2]5.2 Asset Age Profile'!O58","v":0},{"$f":"'[2]5.2 Asset Age Profile'!P58","v":0},{"$f":"'[2]5.2 Asset Age Profile'!Q58","v":0},{"$f":"'[2]5.2 Asset Age Profile'!R58","v":0},{"$f":"'[2]5.2 Asset Age Profile'!S58","v":0},{"$f":"'[2]5.2 Asset Age Profile'!T58","v":0},{"$f":"'[2]5.2 Asset Age Profile'!U58","v":0},{"$f":"'[2]5.2 Asset Age Profile'!V58","v":0},{"$f":"'[2]5.2 Asset Age Profile'!W58","v":0},{"$f":"'[2]5.2 Asset Age Profile'!X58","v":0},{"$f":"'[2]5.2 Asset Age Profile'!Y58","v":7.334848328356899},{"$f":"'[2]5.2 Asset Age Profile'!Z58","v":0},{"$f":"'[2]5.2 Asset Age Profile'!AA58","v":0},{"$f":"'[2]5.2 Asset Age Profile'!AB58","v":0},{"$f":"'[2]5.2 Asset Age Profile'!AC58","v":0},{"$f":"'[2]5.2 Asset Age Profile'!AD58","v":0},{"$f":"'[2]5.2 Asset Age Profile'!AE58","v":0},{"$f":"'[2]5.2 Asset Age Profile'!AF58","v":0},{"$f":"'[2]5.2 Asset Age Profile'!AG58","v":0},{"$f":"'[2]5.2 Asset Age Profile'!AH58","v":0},{"$f":"'[2]5.2 Asset Age Profile'!AI58","v":0},{"$f":"'[2]5.2 Asset Age Profile'!AJ58","v":0},{"$f":"'[2]5.2 Asset Age Profile'!AK58","v":0},{"$f":"'[2]5.2 Asset Age Profile'!AL58","v":0},{"$f":"'[2]5.2 Asset Age Profile'!AM58","v":0},{"$f":"'[2]5.2 Asset Age Profile'!AN58","v":0},{"$f":"'[2]5.2 Asset Age Profile'!AO58","v":0},{"$f":"'[2]5.2 Asset Age Profile'!AP58","v":0},{"$f":"'[2]5.2 Asset Age Profile'!AQ58","v":0},{"$f":"'[2]5.2 Asset Age Profile'!AR58","v":0},{"$f":"'[2]5.2 Asset Age Profile'!AS58","v":0},{"$f":"'[2]5.2 Asset Age Profile'!AT58","v":0},{"$f":"'[2]5.2 Asset Age Profile'!AU58","v":0},{"$f":"'[2]5.2 Asset Age Profile'!AV58","v":0},{"$f":"'[2]5.2 Asset Age Profile'!AW58","v":0},{"$f":"'[2]5.2 Asset Age Profile'!AX58","v":0},{"$f":"'[2]5.2 Asset Age Profile'!AY58","v":0},{"$f":"'[2]5.2 Asset Age Profile'!AZ58","v":0},{"$f":"'[2]5.2 Asset Age Profile'!BA58","v":0},{"$f":"'[2]5.2 Asset Age Profile'!BB58","v":0},{"$f":"'[2]5.2 Asset Age Profile'!BC58","v":0},{"$f":"'[2]5.2 Asset Age Profile'!BD58","v":0},{"$f":"'[2]5.2 Asset Age Profile'!BE58","v":0},{"$f":"'[2]5.2 Asset Age Profile'!BF58","v":0},{"$f":"'[2]5.2 Asset Age Profile'!BG58","v":0},{"$f":"'[2]5.2 Asset Age Profile'!BH58","v":0},{"$f":"'[2]5.2 Asset Age Profile'!BI58","v":0},{"$f":"'[2]5.2 Asset Age Profile'!BJ58","v":0},{"$f":"'[2]5.2 Asset Age Profile'!BK58","v":0},{"$f":"'[2]5.2 Asset Age Profile'!BL58","v":0},{"$f":"'[2]5.2 Asset Age Profile'!BM58","v":0},{"$f":"'[2]5.2 Asset Age Profile'!BN58","v":0},{"$f":"'[2]5.2 Asset Age Profile'!BO58","v":0},{"$f":"'[2]5.2 Asset Age Profile'!BP58","v":0},{"$f":"'[2]5.2 Asset Age Profile'!BQ58","v":0},{"$f":"'[2]5.2 Asset Age Profile'!BR58","v":0},{"$f":"'[2]5.2 Asset Age Profile'!BS58","v":0},{"$f":"'[2]5.2 Asset Age Profile'!BT58","v":0},{"$f":"'[2]5.2 Asset Age Profile'!BU58","v":0},{"$f":"'[2]5.2 Asset Age Profile'!BV58","v":0},{"$f":"'[2]5.2 Asset Age Profile'!BW58","v":0},{"$f":"'[2]5.2 Asset Age Profile'!BX58","v":0},{"$f":"'[2]5.2 Asset Age Profile'!BY58","v":0},{"$f":"'[2]5.2 Asset Age Profile'!BZ58","v":0},{"$f":"'[2]5.2 Asset Age Profile'!CA58","v":0},{"$f":"'[2]5.2 Asset Age Profile'!CB58","v":0},{"$f":"'[2]5.2 Asset Age Profile'!CC58","v":0},{"$f":"'[2]5.2 Asset Age Profile'!CD58","v":0},{"$f":"'[2]5.2 Asset Age Profile'!CE58","v":0},{"$f":"'[2]5.2 Asset Age Profile'!CF58","v":0},{"$f":"'[2]5.2 Asset Age Profile'!CG58","v":0},{"$f":"'[2]5.2 Asset Age Profile'!CH58","v":0},{"$f":"'[2]5.2 Asset Age Profile'!CI58","v":0},{"$f":"'[2]5.2 Asset Age Profile'!CJ58","v":0},{"$f":"'[2]5.2 Asset Age Profile'!CK58","v":0},{"$f":"'[2]5.2 Asset Age Profile'!CL58","v":0},{"$f":"'[2]5.2 Asset Age Profile'!CM58","v":0},{"$f":"'[2]5.2 Asset Age Profile'!CN58","v":0},{"$f":"'[2]5.2 Asset Age Profile'!CO58","v":0},{"$f":"'[2]5.2 Asset Age Profile'!CP58","v":0},{"$f":"'[2]5.2 Asset Age Profile'!CQ58","v":0},{"$f":"'[2]5.2 Asset Age Profile'!CR58","v":0},{"$f":"'[2]5.2 Asset Age Profile'!CS58","v":0},{"$f":"'[2]5.2 Asset Age Profile'!CT58","v":0},{"$f":"'[2]5.2 Asset Age Profile'!CU58","v":0},{"$f":"'[2]5.2 Asset Age Profile'!CV58","v":0},{"$f":"'[2]5.2 Asset Age Profile'!CW58","v":0},{"$f":"'[2]5.2 Asset Age Profile'!CX58","v":0},{"$f":"'[2]5.2 Asset Age Profile'!CY58","v":0},{"$f":"'[2]5.2 Asset Age Profile'!CZ58","v":0},{"$f":"'[2]5.2 Asset Age Profile'!DA58","v":0},{"$f":"'[2]5.2 Asset Age Profile'!DB58","v":0},{"$f":"'[2]5.2 Asset Age Profile'!DC58","v":0},{"$f":"'[2]5.2 Asset Age Profile'!DD58","v":0},{"$f":"'[2]5.2 Asset Age Profile'!DE58","v":0},{"$f":"'[2]5.2 Asset Age Profile'!DF58","v":0},{"$f":"'[2]5.2 Asset Age Profile'!DG58","v":0},{"$f":"'[2]5.2 Asset Age Profile'!DH58","v":0},{"$f":"'[2]5.2 Asset Age Profile'!DI58","v":0},{"$f":"'[2]5.2 Asset Age Profile'!DJ58","v":0},{"$f":"'[2]5.2 Asset Age Profile'!DK58","v":0},{"$f":"'[2]5.2 Asset Age Profile'!DL58","v":0},{"$f":"'[2]5.2 Asset Age Profile'!DM58","v":0},{"$f":"'[2]5.2 Asset Age Profile'!DN58","v":0},{"$f":"'[2]5.2 Asset Age Profile'!DO58","v":0},{"$f":"'[2]5.2 Asset Age Profile'!DP58","v":0},{"$f":"'[2]5.2 Asset Age Profile'!DQ58","v":0},{"$f":"'[2]5.2 Asset Age Profile'!DR58","v":0},{"$f":"'[2]5.2 Asset Age Profile'!DS58","v":0},{"$f":"'[2]5.2 Asset Age Profile'!DT58","v":0},{"$f":"'[2]5.2 Asset Age Profile'!DU58","v":0},{"$f":"'[2]5.2 Asset Age Profile'!DV58","v":0},{"$f":"'[2]5.2 Asset Age Profile'!DW58","v":0},{"$f":"'[2]5.2 Asset Age Profile'!DX58","v":0},{"$f":"'[2]5.2 Asset Age Profile'!DY58","v":0},{"$f":"'[2]5.2 Asset Age Profile'!DZ58","v":0},{"$f":"'[2]5.2 Asset Age Profile'!EA58","v":0},{"$f":"'[2]5.2 Asset Age Profile'!EB58","v":0},{"$f":"'[2]5.2 Asset Age Profile'!EC58","v":0},{"$f":"'[2]5.2 Asset Age Profile'!ED58","v":0},{"$f":"'[2]5.2 Asset Age Profile'!EE58","v":0},{"$f":"'[2]5.2 Asset Age Profile'!EF58","v":0},{"$f":"'[2]5.2 Asset Age Profile'!EG58","v":0},{"$f":"'[2]5.2 Asset Age Profile'!EH58","v":0},{"$f":"'[2]5.2 Asset Age Profile'!EI58","v":0},{"$f":"'[2]5.2 Asset Age Profile'!EJ58","v":0}]
["ED_ASS521_00049",null,"˂ = 11 kV ; Subdivision ; Complex Type",null,null,null,null,null,null,null,null,null,null,{"$f":"'[2]5.2 Asset Age Profile'!N59","v":53.8},{"$f":"'[2]5.2 Asset Age Profile'!O59","v":0},{"$f":"'[2]5.2 Asset Age Profile'!P59","v":0},{"$f":"'[2]5.2 Asset Age Profile'!Q59","v":0},{"$f":"'[2]5.2 Asset Age Profile'!R59","v":0},{"$f":"'[2]5.2 Asset Age Profile'!S59","v":0},{"$f":"'[2]5.2 Asset Age Profile'!T59","v":0},{"$f":"'[2]5.2 Asset Age Profile'!U59","v":0},{"$f":"'[2]5.2 Asset Age Profile'!V59","v":0},{"$f":"'[2]5.2 Asset Age Profile'!W59","v":0},{"$f":"'[2]5.2 Asset Age Profile'!X59","v":0},{"$f":"'[2]5.2 Asset Age Profile'!Y59","v":7.334848328356899},{"$f":"'[2]5.2 Asset Age Profile'!Z59","v":0},{"$f":"'[2]5.2 Asset Age Profile'!AA59","v":0},{"$f":"'[2]5.2 Asset Age Profile'!AB59","v":0},{"$f":"'[2]5.2 Asset Age Profile'!AC59","v":0},{"$f":"'[2]5.2 Asset Age Profile'!AD59","v":0},{"$f":"'[2]5.2 Asset Age Profile'!AE59","v":0},{"$f":"'[2]5.2 Asset Age Profile'!AF59","v":0},{"$f":"'[2]5.2 Asset Age Profile'!AG59","v":0},{"$f":"'[2]5.2 Asset Age Profile'!AH59","v":0},{"$f":"'[2]5.2 Asset Age Profile'!AI59","v":0},{"$f":"'[2]5.2 Asset Age Profile'!AJ59","v":0},{"$f":"'[2]5.2 Asset Age Profile'!AK59","v":0},{"$f":"'[2]5.2 Asset Age Profile'!AL59","v":0},{"$f":"'[2]5.2 Asset Age Profile'!AM59","v":0},{"$f":"'[2]5.2 Asset Age Profile'!AN59","v":0},{"$f":"'[2]5.2 Asset Age Profile'!AO59","v":0},{"$f":"'[2]5.2 Asset Age Profile'!AP59","v":0},{"$f":"'[2]5.2 Asset Age Profile'!AQ59","v":0},{"$f":"'[2]5.2 Asset Age Profile'!AR59","v":0},{"$f":"'[2]5.2 Asset Age Profile'!AS59","v":0},{"$f":"'[2]5.2 Asset Age Profile'!AT59","v":0},{"$f":"'[2]5.2 Asset Age Profile'!AU59","v":0},{"$f":"'[2]5.2 Asset Age Profile'!AV59","v":0},{"$f":"'[2]5.2 Asset Age Profile'!AW59","v":0},{"$f":"'[2]5.2 Asset Age Profile'!AX59","v":0},{"$f":"'[2]5.2 Asset Age Profile'!AY59","v":0},{"$f":"'[2]5.2 Asset Age Profile'!AZ59","v":0},{"$f":"'[2]5.2 Asset Age Profile'!BA59","v":0},{"$f":"'[2]5.2 Asset Age Profile'!BB59","v":0},{"$f":"'[2]5.2 Asset Age Profile'!BC59","v":0},{"$f":"'[2]5.2 Asset Age Profile'!BD59","v":0},{"$f":"'[2]5.2 Asset Age Profile'!BE59","v":0},{"$f":"'[2]5.2 Asset Age Profile'!BF59","v":0},{"$f":"'[2]5.2 Asset Age Profile'!BG59","v":0},{"$f":"'[2]5.2 Asset Age Profile'!BH59","v":0},{"$f":"'[2]5.2 Asset Age Profile'!BI59","v":0},{"$f":"'[2]5.2 Asset Age Profile'!BJ59","v":0},{"$f":"'[2]5.2 Asset Age Profile'!BK59","v":0},{"$f":"'[2]5.2 Asset Age Profile'!BL59","v":0},{"$f":"'[2]5.2 Asset Age Profile'!BM59","v":0},{"$f":"'[2]5.2 Asset Age Profile'!BN59","v":0},{"$f":"'[2]5.2 Asset Age Profile'!BO59","v":0},{"$f":"'[2]5.2 Asset Age Profile'!BP59","v":0},{"$f":"'[2]5.2 Asset Age Profile'!BQ59","v":0},{"$f":"'[2]5.2 Asset Age Profile'!BR59","v":0},{"$f":"'[2]5.2 Asset Age Profile'!BS59","v":0},{"$f":"'[2]5.2 Asset Age Profile'!BT59","v":0},{"$f":"'[2]5.2 Asset Age Profile'!BU59","v":0},{"$f":"'[2]5.2 Asset Age Profile'!BV59","v":0},{"$f":"'[2]5.2 Asset Age Profile'!BW59","v":0},{"$f":"'[2]5.2 Asset Age Profile'!BX59","v":0},{"$f":"'[2]5.2 Asset Age Profile'!BY59","v":0},{"$f":"'[2]5.2 Asset Age Profile'!BZ59","v":0},{"$f":"'[2]5.2 Asset Age Profile'!CA59","v":0},{"$f":"'[2]5.2 Asset Age Profile'!CB59","v":0},{"$f":"'[2]5.2 Asset Age Profile'!CC59","v":0},{"$f":"'[2]5.2 Asset Age Profile'!CD59","v":0},{"$f":"'[2]5.2 Asset Age Profile'!CE59","v":0},{"$f":"'[2]5.2 Asset Age Profile'!CF59","v":0},{"$f":"'[2]5.2 Asset Age Profile'!CG59","v":0},{"$f":"'[2]5.2 Asset Age Profile'!CH59","v":0},{"$f":"'[2]5.2 Asset Age Profile'!CI59","v":0},{"$f":"'[2]5.2 Asset Age Profile'!CJ59","v":0},{"$f":"'[2]5.2 Asset Age Profile'!CK59","v":0},{"$f":"'[2]5.2 Asset Age Profile'!CL59","v":0},{"$f":"'[2]5.2 Asset Age Profile'!CM59","v":0},{"$f":"'[2]5.2 Asset Age Profile'!CN59","v":0},{"$f":"'[2]5.2 Asset Age Profile'!CO59","v":0},{"$f":"'[2]5.2 Asset Age Profile'!CP59","v":0},{"$f":"'[2]5.2 Asset Age Profile'!CQ59","v":0},{"$f":"'[2]5.2 Asset Age Profile'!CR59","v":0},{"$f":"'[2]5.2 Asset Age Profile'!CS59","v":0},{"$f":"'[2]5.2 Asset Age Profile'!CT59","v":0},{"$f":"'[2]5.2 Asset Age Profile'!CU59","v":0},{"$f":"'[2]5.2 Asset Age Profile'!CV59","v":0},{"$f":"'[2]5.2 Asset Age Profile'!CW59","v":0},{"$f":"'[2]5.2 Asset Age Profile'!CX59","v":0},{"$f":"'[2]5.2 Asset Age Profile'!CY59","v":0},{"$f":"'[2]5.2 Asset Age Profile'!CZ59","v":0},{"$f":"'[2]5.2 Asset Age Profile'!DA59","v":0},{"$f":"'[2]5.2 Asset Age Profile'!DB59","v":0},{"$f":"'[2]5.2 Asset Age Profile'!DC59","v":0},{"$f":"'[2]5.2 Asset Age Profile'!DD59","v":0},{"$f":"'[2]5.2 Asset Age Profile'!DE59","v":0},{"$f":"'[2]5.2 Asset Age Profile'!DF59","v":0},{"$f":"'[2]5.2 Asset Age Profile'!DG59","v":0},{"$f":"'[2]5.2 Asset Age Profile'!DH59","v":0},{"$f":"'[2]5.2 Asset Age Profile'!DI59","v":0},{"$f":"'[2]5.2 Asset Age Profile'!DJ59","v":0},{"$f":"'[2]5.2 Asset Age Profile'!DK59","v":0},{"$f":"'[2]5.2 Asset Age Profile'!DL59","v":0},{"$f":"'[2]5.2 Asset Age Profile'!DM59","v":0},{"$f":"'[2]5.2 Asset Age Profile'!DN59","v":0},{"$f":"'[2]5.2 Asset Age Profile'!DO59","v":0},{"$f":"'[2]5.2 Asset Age Profile'!DP59","v":0},{"$f":"'[2]5.2 Asset Age Profile'!DQ59","v":0},{"$f":"'[2]5.2 Asset Age Profile'!DR59","v":0},{"$f":"'[2]5.2 Asset Age Profile'!DS59","v":0},{"$f":"'[2]5.2 Asset Age Profile'!DT59","v":0},{"$f":"'[2]5.2 Asset Age Profile'!DU59","v":0},{"$f":"'[2]5.2 Asset Age Profile'!DV59","v":0},{"$f":"'[2]5.2 Asset Age Profile'!DW59","v":0},{"$f":"'[2]5.2 Asset Age Profile'!DX59","v":0},{"$f":"'[2]5.2 Asset Age Profile'!DY59","v":0},{"$f":"'[2]5.2 Asset Age Profile'!DZ59","v":0},{"$f":"'[2]5.2 Asset Age Profile'!EA59","v":0},{"$f":"'[2]5.2 Asset Age Profile'!EB59","v":0},{"$f":"'[2]5.2 Asset Age Profile'!EC59","v":0},{"$f":"'[2]5.2 Asset Age Profile'!ED59","v":0},{"$f":"'[2]5.2 Asset Age Profile'!EE59","v":0},{"$f":"'[2]5.2 Asset Age Profile'!EF59","v":0},{"$f":"'[2]5.2 Asset Age Profile'!EG59","v":0},{"$f":"'[2]5.2 Asset Age Profile'!EH59","v":0},{"$f":"'[2]5.2 Asset Age Profile'!EI59","v":0},{"$f":"'[2]5.2 Asset Age Profile'!EJ59","v":0}]
["ED_ASS521_00050",null,"> 11 kV  & < = 22 kV ; Commercial & Industrial  ",null,null,null,null,null,null,null,null,null,null,{"$f":"'[2]5.2 Asset Age Profile'!N60","v":53.8},{"$f":"'[2]5.2 Asset Age Profile'!O60","v":0},{"$f":"'[2]5.2 Asset Age Profile'!P60","v":0},{"$f":"'[2]5.2 Asset Age Profile'!Q60","v":0},{"$f":"'[2]5.2 Asset Age Profile'!R60","v":0},{"$f":"'[2]5.2 Asset Age Profile'!S60","v":0},{"$f":"'[2]5.2 Asset Age Profile'!T60","v":0},{"$f":"'[2]5.2 Asset Age Profile'!U60","v":0},{"$f":"'[2]5.2 Asset Age Profile'!V60","v":0},{"$f":"'[2]5.2 Asset Age Profile'!W60","v":0},{"$f":"'[2]5.2 Asset Age Profile'!X60","v":0},{"$f":"'[2]5.2 Asset Age Profile'!Y60","v":7.334848328356899},{"$f":"'[2]5.2 Asset Age Profile'!Z60","v":0},{"$f":"'[2]5.2 Asset Age Profile'!AA60","v":0},{"$f":"'[2]5.2 Asset Age Profile'!AB60","v":0},{"$f":"'[2]5.2 Asset Age Profile'!AC60","v":0},{"$f":"'[2]5.2 Asset Age Profile'!AD60","v":0},{"$f":"'[2]5.2 Asset Age Profile'!AE60","v":0},{"$f":"'[2]5.2 Asset Age Profile'!AF60","v":0},{"$f":"'[2]5.2 Asset Age Profile'!AG60","v":0},{"$f":"'[2]5.2 Asset Age Profile'!AH60","v":0},{"$f":"'[2]5.2 Asset Age Profile'!AI60","v":0},{"$f":"'[2]5.2 Asset Age Profile'!AJ60","v":0},{"$f":"'[2]5.2 Asset Age Profile'!AK60","v":0},{"$f":"'[2]5.2 Asset Age Profile'!AL60","v":0},{"$f":"'[2]5.2 Asset Age Profile'!AM60","v":0},{"$f":"'[2]5.2 Asset Age Profile'!AN60","v":0},{"$f":"'[2]5.2 Asset Age Profile'!AO60","v":0},{"$f":"'[2]5.2 Asset Age Profile'!AP60","v":0},{"$f":"'[2]5.2 Asset Age Profile'!AQ60","v":0},{"$f":"'[2]5.2 Asset Age Profile'!AR60","v":0},{"$f":"'[2]5.2 Asset Age Profile'!AS60","v":0},{"$f":"'[2]5.2 Asset Age Profile'!AT60","v":0},{"$f":"'[2]5.2 Asset Age Profile'!AU60","v":0},{"$f":"'[2]5.2 Asset Age Profile'!AV60","v":0},{"$f":"'[2]5.2 Asset Age Profile'!AW60","v":0},{"$f":"'[2]5.2 Asset Age Profile'!AX60","v":0},{"$f":"'[2]5.2 Asset Age Profile'!AY60","v":0},{"$f":"'[2]5.2 Asset Age Profile'!AZ60","v":0},{"$f":"'[2]5.2 Asset Age Profile'!BA60","v":0},{"$f":"'[2]5.2 Asset Age Profile'!BB60","v":0},{"$f":"'[2]5.2 Asset Age Profile'!BC60","v":0},{"$f":"'[2]5.2 Asset Age Profile'!BD60","v":0},{"$f":"'[2]5.2 Asset Age Profile'!BE60","v":0},{"$f":"'[2]5.2 Asset Age Profile'!BF60","v":0},{"$f":"'[2]5.2 Asset Age Profile'!BG60","v":0},{"$f":"'[2]5.2 Asset Age Profile'!BH60","v":0},{"$f":"'[2]5.2 Asset Age Profile'!BI60","v":0},{"$f":"'[2]5.2 Asset Age Profile'!BJ60","v":0},{"$f":"'[2]5.2 Asset Age Profile'!BK60","v":0},{"$f":"'[2]5.2 Asset Age Profile'!BL60","v":0},{"$f":"'[2]5.2 Asset Age Profile'!BM60","v":0},{"$f":"'[2]5.2 Asset Age Profile'!BN60","v":0},{"$f":"'[2]5.2 Asset Age Profile'!BO60","v":0},{"$f":"'[2]5.2 Asset Age Profile'!BP60","v":0},{"$f":"'[2]5.2 Asset Age Profile'!BQ60","v":0},{"$f":"'[2]5.2 Asset Age Profile'!BR60","v":0},{"$f":"'[2]5.2 Asset Age Profile'!BS60","v":0},{"$f":"'[2]5.2 Asset Age Profile'!BT60","v":0},{"$f":"'[2]5.2 Asset Age Profile'!BU60","v":0},{"$f":"'[2]5.2 Asset Age Profile'!BV60","v":0},{"$f":"'[2]5.2 Asset Age Profile'!BW60","v":0},{"$f":"'[2]5.2 Asset Age Profile'!BX60","v":0},{"$f":"'[2]5.2 Asset Age Profile'!BY60","v":0},{"$f":"'[2]5.2 Asset Age Profile'!BZ60","v":0},{"$f":"'[2]5.2 Asset Age Profile'!CA60","v":0},{"$f":"'[2]5.2 Asset Age Profile'!CB60","v":0},{"$f":"'[2]5.2 Asset Age Profile'!CC60","v":0},{"$f":"'[2]5.2 Asset Age Profile'!CD60","v":0},{"$f":"'[2]5.2 Asset Age Profile'!CE60","v":0},{"$f":"'[2]5.2 Asset Age Profile'!CF60","v":0},{"$f":"'[2]5.2 Asset Age Profile'!CG60","v":0},{"$f":"'[2]5.2 Asset Age Profile'!CH60","v":0},{"$f":"'[2]5.2 Asset Age Profile'!CI60","v":0},{"$f":"'[2]5.2 Asset Age Profile'!CJ60","v":0},{"$f":"'[2]5.2 Asset Age Profile'!CK60","v":0},{"$f":"'[2]5.2 Asset Age Profile'!CL60","v":0},{"$f":"'[2]5.2 Asset Age Profile'!CM60","v":0},{"$f":"'[2]5.2 Asset Age Profile'!CN60","v":0},{"$f":"'[2]5.2 Asset Age Profile'!CO60","v":0},{"$f":"'[2]5.2 Asset Age Profile'!CP60","v":0},{"$f":"'[2]5.2 Asset Age Profile'!CQ60","v":0},{"$f":"'[2]5.2 Asset Age Profile'!CR60","v":0},{"$f":"'[2]5.2 Asset Age Profile'!CS60","v":0},{"$f":"'[2]5.2 Asset Age Profile'!CT60","v":0},{"$f":"'[2]5.2 Asset Age Profile'!CU60","v":0},{"$f":"'[2]5.2 Asset Age Profile'!CV60","v":0},{"$f":"'[2]5.2 Asset Age Profile'!CW60","v":0},{"$f":"'[2]5.2 Asset Age Profile'!CX60","v":0},{"$f":"'[2]5.2 Asset Age Profile'!CY60","v":0},{"$f":"'[2]5.2 Asset Age Profile'!CZ60","v":0},{"$f":"'[2]5.2 Asset Age Profile'!DA60","v":0},{"$f":"'[2]5.2 Asset Age Profile'!DB60","v":0},{"$f":"'[2]5.2 Asset Age Profile'!DC60","v":0},{"$f":"'[2]5.2 Asset Age Profile'!DD60","v":0},{"$f":"'[2]5.2 Asset Age Profile'!DE60","v":0},{"$f":"'[2]5.2 Asset Age Profile'!DF60","v":0},{"$f":"'[2]5.2 Asset Age Profile'!DG60","v":0},{"$f":"'[2]5.2 Asset Age Profile'!DH60","v":0},{"$f":"'[2]5.2 Asset Age Profile'!DI60","v":0},{"$f":"'[2]5.2 Asset Age Profile'!DJ60","v":0},{"$f":"'[2]5.2 Asset Age Profile'!DK60","v":0},{"$f":"'[2]5.2 Asset Age Profile'!DL60","v":0},{"$f":"'[2]5.2 Asset Age Profile'!DM60","v":0},{"$f":"'[2]5.2 Asset Age Profile'!DN60","v":0},{"$f":"'[2]5.2 Asset Age Profile'!DO60","v":0},{"$f":"'[2]5.2 Asset Age Profile'!DP60","v":0},{"$f":"'[2]5.2 Asset Age Profile'!DQ60","v":0},{"$f":"'[2]5.2 Asset Age Profile'!DR60","v":0},{"$f":"'[2]5.2 Asset Age Profile'!DS60","v":0},{"$f":"'[2]5.2 Asset Age Profile'!DT60","v":0},{"$f":"'[2]5.2 Asset Age Profile'!DU60","v":0},{"$f":"'[2]5.2 Asset Age Profile'!DV60","v":0},{"$f":"'[2]5.2 Asset Age Profile'!DW60","v":0},{"$f":"'[2]5.2 Asset Age Profile'!DX60","v":0},{"$f":"'[2]5.2 Asset Age Profile'!DY60","v":0},{"$f":"'[2]5.2 Asset Age Profile'!DZ60","v":0},{"$f":"'[2]5.2 Asset Age Profile'!EA60","v":0},{"$f":"'[2]5.2 Asset Age Profile'!EB60","v":0},{"$f":"'[2]5.2 Asset Age Profile'!EC60","v":0},{"$f":"'[2]5.2 Asset Age Profile'!ED60","v":0},{"$f":"'[2]5.2 Asset Age Profile'!EE60","v":0},{"$f":"'[2]5.2 Asset Age Profile'!EF60","v":0},{"$f":"'[2]5.2 Asset Age Profile'!EG60","v":0},{"$f":"'[2]5.2 Asset Age Profile'!EH60","v":0},{"$f":"'[2]5.2 Asset Age Profile'!EI60","v":0},{"$f":"'[2]5.2 Asset Age Profile'!EJ60","v":0}]
["ED_ASS521_00051",null,"> 11 kV  & < = 22 kV ; Subdivision  ",null,null,null,null,null,null,null,null,null,null,{"$f":"'[2]5.2 Asset Age Profile'!N61","v":53.8},{"$f":"'[2]5.2 Asset Age Profile'!O61","v":0},{"$f":"'[2]5.2 Asset Age Profile'!P61","v":0},{"$f":"'[2]5.2 Asset Age Profile'!Q61","v":0},{"$f":"'[2]5.2 Asset Age Profile'!R61","v":0},{"$f":"'[2]5.2 Asset Age Profile'!S61","v":0},{"$f":"'[2]5.2 Asset Age Profile'!T61","v":0},{"$f":"'[2]5.2 Asset Age Profile'!U61","v":0},{"$f":"'[2]5.2 Asset Age Profile'!V61","v":0},{"$f":"'[2]5.2 Asset Age Profile'!W61","v":0},{"$f":"'[2]5.2 Asset Age Profile'!X61","v":0},{"$f":"'[2]5.2 Asset Age Profile'!Y61","v":7.334848328356899},{"$f":"'[2]5.2 Asset Age Profile'!Z61","v":0},{"$f":"'[2]5.2 Asset Age Profile'!AA61","v":0},{"$f":"'[2]5.2 Asset Age Profile'!AB61","v":0},{"$f":"'[2]5.2 Asset Age Profile'!AC61","v":0},{"$f":"'[2]5.2 Asset Age Profile'!AD61","v":0},{"$f":"'[2]5.2 Asset Age Profile'!AE61","v":0},{"$f":"'[2]5.2 Asset Age Profile'!AF61","v":0},{"$f":"'[2]5.2 Asset Age Profile'!AG61","v":0},{"$f":"'[2]5.2 Asset Age Profile'!AH61","v":0},{"$f":"'[2]5.2 Asset Age Profile'!AI61","v":0},{"$f":"'[2]5.2 Asset Age Profile'!AJ61","v":0},{"$f":"'[2]5.2 Asset Age Profile'!AK61","v":0},{"$f":"'[2]5.2 Asset Age Profile'!AL61","v":0},{"$f":"'[2]5.2 Asset Age Profile'!AM61","v":0},{"$f":"'[2]5.2 Asset Age Profile'!AN61","v":0},{"$f":"'[2]5.2 Asset Age Profile'!AO61","v":0},{"$f":"'[2]5.2 Asset Age Profile'!AP61","v":0},{"$f":"'[2]5.2 Asset Age Profile'!AQ61","v":0},{"$f":"'[2]5.2 Asset Age Profile'!AR61","v":0},{"$f":"'[2]5.2 Asset Age Profile'!AS61","v":0},{"$f":"'[2]5.2 Asset Age Profile'!AT61","v":0},{"$f":"'[2]5.2 Asset Age Profile'!AU61","v":0},{"$f":"'[2]5.2 Asset Age Profile'!AV61","v":0},{"$f":"'[2]5.2 Asset Age Profile'!AW61","v":0},{"$f":"'[2]5.2 Asset Age Profile'!AX61","v":0},{"$f":"'[2]5.2 Asset Age Profile'!AY61","v":0},{"$f":"'[2]5.2 Asset Age Profile'!AZ61","v":0},{"$f":"'[2]5.2 Asset Age Profile'!BA61","v":0},{"$f":"'[2]5.2 Asset Age Profile'!BB61","v":0},{"$f":"'[2]5.2 Asset Age Profile'!BC61","v":0},{"$f":"'[2]5.2 Asset Age Profile'!BD61","v":0},{"$f":"'[2]5.2 Asset Age Profile'!BE61","v":0},{"$f":"'[2]5.2 Asset Age Profile'!BF61","v":0},{"$f":"'[2]5.2 Asset Age Profile'!BG61","v":0},{"$f":"'[2]5.2 Asset Age Profile'!BH61","v":0},{"$f":"'[2]5.2 Asset Age Profile'!BI61","v":0},{"$f":"'[2]5.2 Asset Age Profile'!BJ61","v":0},{"$f":"'[2]5.2 Asset Age Profile'!BK61","v":0},{"$f":"'[2]5.2 Asset Age Profile'!BL61","v":0},{"$f":"'[2]5.2 Asset Age Profile'!BM61","v":0},{"$f":"'[2]5.2 Asset Age Profile'!BN61","v":0},{"$f":"'[2]5.2 Asset Age Profile'!BO61","v":0},{"$f":"'[2]5.2 Asset Age Profile'!BP61","v":0},{"$f":"'[2]5.2 Asset Age Profile'!BQ61","v":0},{"$f":"'[2]5.2 Asset Age Profile'!BR61","v":0},{"$f":"'[2]5.2 Asset Age Profile'!BS61","v":0},{"$f":"'[2]5.2 Asset Age Profile'!BT61","v":0},{"$f":"'[2]5.2 Asset Age Profile'!BU61","v":0},{"$f":"'[2]5.2 Asset Age Profile'!BV61","v":0},{"$f":"'[2]5.2 Asset Age Profile'!BW61","v":0},{"$f":"'[2]5.2 Asset Age Profile'!BX61","v":0},{"$f":"'[2]5.2 Asset Age Profile'!BY61","v":0},{"$f":"'[2]5.2 Asset Age Profile'!BZ61","v":0},{"$f":"'[2]5.2 Asset Age Profile'!CA61","v":0},{"$f":"'[2]5.2 Asset Age Profile'!CB61","v":0},{"$f":"'[2]5.2 Asset Age Profile'!CC61","v":0},{"$f":"'[2]5.2 Asset Age Profile'!CD61","v":0},{"$f":"'[2]5.2 Asset Age Profile'!CE61","v":0},{"$f":"'[2]5.2 Asset Age Profile'!CF61","v":0},{"$f":"'[2]5.2 Asset Age Profile'!CG61","v":0},{"$f":"'[2]5.2 Asset Age Profile'!CH61","v":0},{"$f":"'[2]5.2 Asset Age Profile'!CI61","v":0},{"$f":"'[2]5.2 Asset Age Profile'!CJ61","v":0},{"$f":"'[2]5.2 Asset Age Profile'!CK61","v":0},{"$f":"'[2]5.2 Asset Age Profile'!CL61","v":0},{"$f":"'[2]5.2 Asset Age Profile'!CM61","v":0},{"$f":"'[2]5.2 Asset Age Profile'!CN61","v":0},{"$f":"'[2]5.2 Asset Age Profile'!CO61","v":0},{"$f":"'[2]5.2 Asset Age Profile'!CP61","v":0},{"$f":"'[2]5.2 Asset Age Profile'!CQ61","v":0},{"$f":"'[2]5.2 Asset Age Profile'!CR61","v":0},{"$f":"'[2]5.2 Asset Age Profile'!CS61","v":0},{"$f":"'[2]5.2 Asset Age Profile'!CT61","v":0},{"$f":"'[2]5.2 Asset Age Profile'!CU61","v":0},{"$f":"'[2]5.2 Asset Age Profile'!CV61","v":0},{"$f":"'[2]5.2 Asset Age Profile'!CW61","v":0},{"$f":"'[2]5.2 Asset Age Profile'!CX61","v":0},{"$f":"'[2]5.2 Asset Age Profile'!CY61","v":0},{"$f":"'[2]5.2 Asset Age Profile'!CZ61","v":0},{"$f":"'[2]5.2 Asset Age Profile'!DA61","v":0},{"$f":"'[2]5.2 Asset Age Profile'!DB61","v":0},{"$f":"'[2]5.2 Asset Age Profile'!DC61","v":0},{"$f":"'[2]5.2 Asset Age Profile'!DD61","v":0},{"$f":"'[2]5.2 Asset Age Profile'!DE61","v":0},{"$f":"'[2]5.2 Asset Age Profile'!DF61","v":0},{"$f":"'[2]5.2 Asset Age Profile'!DG61","v":0},{"$f":"'[2]5.2 Asset Age Profile'!DH61","v":0},{"$f":"'[2]5.2 Asset Age Profile'!DI61","v":0},{"$f":"'[2]5.2 Asset Age Profile'!DJ61","v":0},{"$f":"'[2]5.2 Asset Age Profile'!DK61","v":0},{"$f":"'[2]5.2 Asset Age Profile'!DL61","v":0},{"$f":"'[2]5.2 Asset Age Profile'!DM61","v":0},{"$f":"'[2]5.2 Asset Age Profile'!DN61","v":0},{"$f":"'[2]5.2 Asset Age Profile'!DO61","v":0},{"$f":"'[2]5.2 Asset Age Profile'!DP61","v":0},{"$f":"'[2]5.2 Asset Age Profile'!DQ61","v":0},{"$f":"'[2]5.2 Asset Age Profile'!DR61","v":0},{"$f":"'[2]5.2 Asset Age Profile'!DS61","v":0},{"$f":"'[2]5.2 Asset Age Profile'!DT61","v":0},{"$f":"'[2]5.2 Asset Age Profile'!DU61","v":0},{"$f":"'[2]5.2 Asset Age Profile'!DV61","v":0},{"$f":"'[2]5.2 Asset Age Profile'!DW61","v":0},{"$f":"'[2]5.2 Asset Age Profile'!DX61","v":0},{"$f":"'[2]5.2 Asset Age Profile'!DY61","v":0},{"$f":"'[2]5.2 Asset Age Profile'!DZ61","v":0},{"$f":"'[2]5.2 Asset Age Profile'!EA61","v":0},{"$f":"'[2]5.2 Asset Age Profile'!EB61","v":0},{"$f":"'[2]5.2 Asset Age Profile'!EC61","v":0},{"$f":"'[2]5.2 Asset Age Profile'!ED61","v":0},{"$f":"'[2]5.2 Asset Age Profile'!EE61","v":0},{"$f":"'[2]5.2 Asset Age Profile'!EF61","v":0},{"$f":"'[2]5.2 Asset Age Profile'!EG61","v":0},{"$f":"'[2]5.2 Asset Age Profile'!EH61","v":0},{"$f":"'[2]5.2 Asset Age Profile'!EI61","v":0},{"$f":"'[2]5.2 Asset Age Profile'!EJ61","v":0}]
["ED_ASS521_00052",null,"> 22 kV & < = 33 kV ; Commercial & Industrial  ",null,null,null,null,null,null,null,null,null,null,{"$f":"'[2]5.2 Asset Age Profile'!N62","v":54.9},{"$f":"'[2]5.2 Asset Age Profile'!O62","v":0},{"$f":"'[2]5.2 Asset Age Profile'!P62","v":0},{"$f":"'[2]5.2 Asset Age Profile'!Q62","v":0},{"$f":"'[2]5.2 Asset Age Profile'!R62","v":0},{"$f":"'[2]5.2 Asset Age Profile'!S62","v":0},{"$f":"'[2]5.2 Asset Age Profile'!T62","v":0},{"$f":"'[2]5.2 Asset Age Profile'!U62","v":0},{"$f":"'[2]5.2 Asset Age Profile'!V62","v":0},{"$f":"'[2]5.2 Asset Age Profile'!W62","v":0},{"$f":"'[2]5.2 Asset Age Profile'!X62","v":0},{"$f":"'[2]5.2 Asset Age Profile'!Y62","v":7.4094534211370817},{"$f":"'[2]5.2 Asset Age Profile'!Z62","v":0},{"$f":"'[2]5.2 Asset Age Profile'!AA62","v":0},{"$f":"'[2]5.2 Asset Age Profile'!AB62","v":0},{"$f":"'[2]5.2 Asset Age Profile'!AC62","v":0},{"$f":"'[2]5.2 Asset Age Profile'!AD62","v":0},{"$f":"'[2]5.2 Asset Age Profile'!AE62","v":0},{"$f":"'[2]5.2 Asset Age Profile'!AF62","v":0},{"$f":"'[2]5.2 Asset Age Profile'!AG62","v":0},{"$f":"'[2]5.2 Asset Age Profile'!AH62","v":0},{"$f":"'[2]5.2 Asset Age Profile'!AI62","v":0},{"$f":"'[2]5.2 Asset Age Profile'!AJ62","v":0},{"$f":"'[2]5.2 Asset Age Profile'!AK62","v":0},{"$f":"'[2]5.2 Asset Age Profile'!AL62","v":0},{"$f":"'[2]5.2 Asset Age Profile'!AM62","v":0},{"$f":"'[2]5.2 Asset Age Profile'!AN62","v":0},{"$f":"'[2]5.2 Asset Age Profile'!AO62","v":0},{"$f":"'[2]5.2 Asset Age Profile'!AP62","v":0},{"$f":"'[2]5.2 Asset Age Profile'!AQ62","v":0},{"$f":"'[2]5.2 Asset Age Profile'!AR62","v":0},{"$f":"'[2]5.2 Asset Age Profile'!AS62","v":0},{"$f":"'[2]5.2 Asset Age Profile'!AT62","v":0},{"$f":"'[2]5.2 Asset Age Profile'!AU62","v":0},{"$f":"'[2]5.2 Asset Age Profile'!AV62","v":0},{"$f":"'[2]5.2 Asset Age Profile'!AW62","v":0},{"$f":"'[2]5.2 Asset Age Profile'!AX62","v":0},{"$f":"'[2]5.2 Asset Age Profile'!AY62","v":0},{"$f":"'[2]5.2 Asset Age Profile'!AZ62","v":0},{"$f":"'[2]5.2 Asset Age Profile'!BA62","v":0},{"$f":"'[2]5.2 Asset Age Profile'!BB62","v":0},{"$f":"'[2]5.2 Asset Age Profile'!BC62","v":0},{"$f":"'[2]5.2 Asset Age Profile'!BD62","v":0},{"$f":"'[2]5.2 Asset Age Profile'!BE62","v":0},{"$f":"'[2]5.2 Asset Age Profile'!BF62","v":0},{"$f":"'[2]5.2 Asset Age Profile'!BG62","v":0},{"$f":"'[2]5.2 Asset Age Profile'!BH62","v":0},{"$f":"'[2]5.2 Asset Age Profile'!BI62","v":0},{"$f":"'[2]5.2 Asset Age Profile'!BJ62","v":0},{"$f":"'[2]5.2 Asset Age Profile'!BK62","v":0},{"$f":"'[2]5.2 Asset Age Profile'!BL62","v":0},{"$f":"'[2]5.2 Asset Age Profile'!BM62","v":0},{"$f":"'[2]5.2 Asset Age Profile'!BN62","v":0},{"$f":"'[2]5.2 Asset Age Profile'!BO62","v":0},{"$f":"'[2]5.2 Asset Age Profile'!BP62","v":0},{"$f":"'[2]5.2 Asset Age Profile'!BQ62","v":0},{"$f":"'[2]5.2 Asset Age Profile'!BR62","v":0},{"$f":"'[2]5.2 Asset Age Profile'!BS62","v":0},{"$f":"'[2]5.2 Asset Age Profile'!BT62","v":0},{"$f":"'[2]5.2 Asset Age Profile'!BU62","v":0},{"$f":"'[2]5.2 Asset Age Profile'!BV62","v":0},{"$f":"'[2]5.2 Asset Age Profile'!BW62","v":0},{"$f":"'[2]5.2 Asset Age Profile'!BX62","v":0},{"$f":"'[2]5.2 Asset Age Profile'!BY62","v":0},{"$f":"'[2]5.2 Asset Age Profile'!BZ62","v":0},{"$f":"'[2]5.2 Asset Age Profile'!CA62","v":0},{"$f":"'[2]5.2 Asset Age Profile'!CB62","v":0},{"$f":"'[2]5.2 Asset Age Profile'!CC62","v":0},{"$f":"'[2]5.2 Asset Age Profile'!CD62","v":0},{"$f":"'[2]5.2 Asset Age Profile'!CE62","v":0},{"$f":"'[2]5.2 Asset Age Profile'!CF62","v":0},{"$f":"'[2]5.2 Asset Age Profile'!CG62","v":0},{"$f":"'[2]5.2 Asset Age Profile'!CH62","v":0},{"$f":"'[2]5.2 Asset Age Profile'!CI62","v":0},{"$f":"'[2]5.2 Asset Age Profile'!CJ62","v":0},{"$f":"'[2]5.2 Asset Age Profile'!CK62","v":0},{"$f":"'[2]5.2 Asset Age Profile'!CL62","v":0},{"$f":"'[2]5.2 Asset Age Profile'!CM62","v":0},{"$f":"'[2]5.2 Asset Age Profile'!CN62","v":0},{"$f":"'[2]5.2 Asset Age Profile'!CO62","v":0},{"$f":"'[2]5.2 Asset Age Profile'!CP62","v":0},{"$f":"'[2]5.2 Asset Age Profile'!CQ62","v":0},{"$f":"'[2]5.2 Asset Age Profile'!CR62","v":0},{"$f":"'[2]5.2 Asset Age Profile'!CS62","v":0},{"$f":"'[2]5.2 Asset Age Profile'!CT62","v":0},{"$f":"'[2]5.2 Asset Age Profile'!CU62","v":0},{"$f":"'[2]5.2 Asset Age Profile'!CV62","v":0},{"$f":"'[2]5.2 Asset Age Profile'!CW62","v":0},{"$f":"'[2]5.2 Asset Age Profile'!CX62","v":0},{"$f":"'[2]5.2 Asset Age Profile'!CY62","v":0},{"$f":"'[2]5.2 Asset Age Profile'!CZ62","v":0},{"$f":"'[2]5.2 Asset Age Profile'!DA62","v":0},{"$f":"'[2]5.2 Asset Age Profile'!DB62","v":0},{"$f":"'[2]5.2 Asset Age Profile'!DC62","v":0},{"$f":"'[2]5.2 Asset Age Profile'!DD62","v":0},{"$f":"'[2]5.2 Asset Age Profile'!DE62","v":0},{"$f":"'[2]5.2 Asset Age Profile'!DF62","v":0},{"$f":"'[2]5.2 Asset Age Profile'!DG62","v":0},{"$f":"'[2]5.2 Asset Age Profile'!DH62","v":0},{"$f":"'[2]5.2 Asset Age Profile'!DI62","v":0},{"$f":"'[2]5.2 Asset Age Profile'!DJ62","v":0},{"$f":"'[2]5.2 Asset Age Profile'!DK62","v":0},{"$f":"'[2]5.2 Asset Age Profile'!DL62","v":0},{"$f":"'[2]5.2 Asset Age Profile'!DM62","v":0},{"$f":"'[2]5.2 Asset Age Profile'!DN62","v":0},{"$f":"'[2]5.2 Asset Age Profile'!DO62","v":0},{"$f":"'[2]5.2 Asset Age Profile'!DP62","v":0},{"$f":"'[2]5.2 Asset Age Profile'!DQ62","v":0},{"$f":"'[2]5.2 Asset Age Profile'!DR62","v":0},{"$f":"'[2]5.2 Asset Age Profile'!DS62","v":0},{"$f":"'[2]5.2 Asset Age Profile'!DT62","v":0},{"$f":"'[2]5.2 Asset Age Profile'!DU62","v":0},{"$f":"'[2]5.2 Asset Age Profile'!DV62","v":0},{"$f":"'[2]5.2 Asset Age Profile'!DW62","v":0},{"$f":"'[2]5.2 Asset Age Profile'!DX62","v":0},{"$f":"'[2]5.2 Asset Age Profile'!DY62","v":0},{"$f":"'[2]5.2 Asset Age Profile'!DZ62","v":0},{"$f":"'[2]5.2 Asset Age Profile'!EA62","v":0},{"$f":"'[2]5.2 Asset Age Profile'!EB62","v":0},{"$f":"'[2]5.2 Asset Age Profile'!EC62","v":0},{"$f":"'[2]5.2 Asset Age Profile'!ED62","v":0},{"$f":"'[2]5.2 Asset Age Profile'!EE62","v":0},{"$f":"'[2]5.2 Asset Age Profile'!EF62","v":0},{"$f":"'[2]5.2 Asset Age Profile'!EG62","v":0},{"$f":"'[2]5.2 Asset Age Profile'!EH62","v":0},{"$f":"'[2]5.2 Asset Age Profile'!EI62","v":0},{"$f":"'[2]5.2 Asset Age Profile'!EJ62","v":0}]
["ED_ASS521_00053",null,"> 22 kV & < = 33 kV ; Subdivision  ",null,null,null,null,null,null,null,null,null,null,{"$f":"'[2]5.2 Asset Age Profile'!N63","v":54.9},{"$f":"'[2]5.2 Asset Age Profile'!O63","v":0},{"$f":"'[2]5.2 Asset Age Profile'!P63","v":0},{"$f":"'[2]5.2 Asset Age Profile'!Q63","v":0},{"$f":"'[2]5.2 Asset Age Profile'!R63","v":0},{"$f":"'[2]5.2 Asset Age Profile'!S63","v":0},{"$f":"'[2]5.2 Asset Age Profile'!T63","v":0},{"$f":"'[2]5.2 Asset Age Profile'!U63","v":0},{"$f":"'[2]5.2 Asset Age Profile'!V63","v":0},{"$f":"'[2]5.2 Asset Age Profile'!W63","v":0},{"$f":"'[2]5.2 Asset Age Profile'!X63","v":0},{"$f":"'[2]5.2 Asset Age Profile'!Y63","v":7.4094534211370817},{"$f":"'[2]5.2 Asset Age Profile'!Z63","v":0},{"$f":"'[2]5.2 Asset Age Profile'!AA63","v":0},{"$f":"'[2]5.2 Asset Age Profile'!AB63","v":0},{"$f":"'[2]5.2 Asset Age Profile'!AC63","v":0},{"$f":"'[2]5.2 Asset Age Profile'!AD63","v":0},{"$f":"'[2]5.2 Asset Age Profile'!AE63","v":0},{"$f":"'[2]5.2 Asset Age Profile'!AF63","v":0},{"$f":"'[2]5.2 Asset Age Profile'!AG63","v":0},{"$f":"'[2]5.2 Asset Age Profile'!AH63","v":0},{"$f":"'[2]5.2 Asset Age Profile'!AI63","v":0},{"$f":"'[2]5.2 Asset Age Profile'!AJ63","v":0},{"$f":"'[2]5.2 Asset Age Profile'!AK63","v":0},{"$f":"'[2]5.2 Asset Age Profile'!AL63","v":0},{"$f":"'[2]5.2 Asset Age Profile'!AM63","v":0},{"$f":"'[2]5.2 Asset Age Profile'!AN63","v":0},{"$f":"'[2]5.2 Asset Age Profile'!AO63","v":0},{"$f":"'[2]5.2 Asset Age Profile'!AP63","v":0},{"$f":"'[2]5.2 Asset Age Profile'!AQ63","v":0},{"$f":"'[2]5.2 Asset Age Profile'!AR63","v":0},{"$f":"'[2]5.2 Asset Age Profile'!AS63","v":0},{"$f":"'[2]5.2 Asset Age Profile'!AT63","v":0},{"$f":"'[2]5.2 Asset Age Profile'!AU63","v":0},{"$f":"'[2]5.2 Asset Age Profile'!AV63","v":0},{"$f":"'[2]5.2 Asset Age Profile'!AW63","v":0},{"$f":"'[2]5.2 Asset Age Profile'!AX63","v":0},{"$f":"'[2]5.2 Asset Age Profile'!AY63","v":0},{"$f":"'[2]5.2 Asset Age Profile'!AZ63","v":0},{"$f":"'[2]5.2 Asset Age Profile'!BA63","v":0},{"$f":"'[2]5.2 Asset Age Profile'!BB63","v":0},{"$f":"'[2]5.2 Asset Age Profile'!BC63","v":0},{"$f":"'[2]5.2 Asset Age Profile'!BD63","v":0},{"$f":"'[2]5.2 Asset Age Profile'!BE63","v":0},{"$f":"'[2]5.2 Asset Age Profile'!BF63","v":0},{"$f":"'[2]5.2 Asset Age Profile'!BG63","v":0},{"$f":"'[2]5.2 Asset Age Profile'!BH63","v":0},{"$f":"'[2]5.2 Asset Age Profile'!BI63","v":0},{"$f":"'[2]5.2 Asset Age Profile'!BJ63","v":0},{"$f":"'[2]5.2 Asset Age Profile'!BK63","v":0},{"$f":"'[2]5.2 Asset Age Profile'!BL63","v":0},{"$f":"'[2]5.2 Asset Age Profile'!BM63","v":0},{"$f":"'[2]5.2 Asset Age Profile'!BN63","v":0},{"$f":"'[2]5.2 Asset Age Profile'!BO63","v":0},{"$f":"'[2]5.2 Asset Age Profile'!BP63","v":0},{"$f":"'[2]5.2 Asset Age Profile'!BQ63","v":0},{"$f":"'[2]5.2 Asset Age Profile'!BR63","v":0},{"$f":"'[2]5.2 Asset Age Profile'!BS63","v":0},{"$f":"'[2]5.2 Asset Age Profile'!BT63","v":0},{"$f":"'[2]5.2 Asset Age Profile'!BU63","v":0},{"$f":"'[2]5.2 Asset Age Profile'!BV63","v":0},{"$f":"'[2]5.2 Asset Age Profile'!BW63","v":0},{"$f":"'[2]5.2 Asset Age Profile'!BX63","v":0},{"$f":"'[2]5.2 Asset Age Profile'!BY63","v":0},{"$f":"'[2]5.2 Asset Age Profile'!BZ63","v":0},{"$f":"'[2]5.2 Asset Age Profile'!CA63","v":0},{"$f":"'[2]5.2 Asset Age Profile'!CB63","v":0},{"$f":"'[2]5.2 Asset Age Profile'!CC63","v":0},{"$f":"'[2]5.2 Asset Age Profile'!CD63","v":0},{"$f":"'[2]5.2 Asset Age Profile'!CE63","v":0},{"$f":"'[2]5.2 Asset Age Profile'!CF63","v":0},{"$f":"'[2]5.2 Asset Age Profile'!CG63","v":0},{"$f":"'[2]5.2 Asset Age Profile'!CH63","v":0},{"$f":"'[2]5.2 Asset Age Profile'!CI63","v":0},{"$f":"'[2]5.2 Asset Age Profile'!CJ63","v":0},{"$f":"'[2]5.2 Asset Age Profile'!CK63","v":0},{"$f":"'[2]5.2 Asset Age Profile'!CL63","v":0},{"$f":"'[2]5.2 Asset Age Profile'!CM63","v":0},{"$f":"'[2]5.2 Asset Age Profile'!CN63","v":0},{"$f":"'[2]5.2 Asset Age Profile'!CO63","v":0},{"$f":"'[2]5.2 Asset Age Profile'!CP63","v":0},{"$f":"'[2]5.2 Asset Age Profile'!CQ63","v":0},{"$f":"'[2]5.2 Asset Age Profile'!CR63","v":0},{"$f":"'[2]5.2 Asset Age Profile'!CS63","v":0},{"$f":"'[2]5.2 Asset Age Profile'!CT63","v":0},{"$f":"'[2]5.2 Asset Age Profile'!CU63","v":0},{"$f":"'[2]5.2 Asset Age Profile'!CV63","v":0},{"$f":"'[2]5.2 Asset Age Profile'!CW63","v":0},{"$f":"'[2]5.2 Asset Age Profile'!CX63","v":0},{"$f":"'[2]5.2 Asset Age Profile'!CY63","v":0},{"$f":"'[2]5.2 Asset Age Profile'!CZ63","v":0},{"$f":"'[2]5.2 Asset Age Profile'!DA63","v":0},{"$f":"'[2]5.2 Asset Age Profile'!DB63","v":0},{"$f":"'[2]5.2 Asset Age Profile'!DC63","v":0},{"$f":"'[2]5.2 Asset Age Profile'!DD63","v":0},{"$f":"'[2]5.2 Asset Age Profile'!DE63","v":0},{"$f":"'[2]5.2 Asset Age Profile'!DF63","v":0},{"$f":"'[2]5.2 Asset Age Profile'!DG63","v":0},{"$f":"'[2]5.2 Asset Age Profile'!DH63","v":0},{"$f":"'[2]5.2 Asset Age Profile'!DI63","v":0},{"$f":"'[2]5.2 Asset Age Profile'!DJ63","v":0},{"$f":"'[2]5.2 Asset Age Profile'!DK63","v":0},{"$f":"'[2]5.2 Asset Age Profile'!DL63","v":0},{"$f":"'[2]5.2 Asset Age Profile'!DM63","v":0},{"$f":"'[2]5.2 Asset Age Profile'!DN63","v":0},{"$f":"'[2]5.2 Asset Age Profile'!DO63","v":0},{"$f":"'[2]5.2 Asset Age Profile'!DP63","v":0},{"$f":"'[2]5.2 Asset Age Profile'!DQ63","v":0},{"$f":"'[2]5.2 Asset Age Profile'!DR63","v":0},{"$f":"'[2]5.2 Asset Age Profile'!DS63","v":0},{"$f":"'[2]5.2 Asset Age Profile'!DT63","v":0},{"$f":"'[2]5.2 Asset Age Profile'!DU63","v":0},{"$f":"'[2]5.2 Asset Age Profile'!DV63","v":0},{"$f":"'[2]5.2 Asset Age Profile'!DW63","v":0},{"$f":"'[2]5.2 Asset Age Profile'!DX63","v":0},{"$f":"'[2]5.2 Asset Age Profile'!DY63","v":0},{"$f":"'[2]5.2 Asset Age Profile'!DZ63","v":0},{"$f":"'[2]5.2 Asset Age Profile'!EA63","v":0},{"$f":"'[2]5.2 Asset Age Profile'!EB63","v":0},{"$f":"'[2]5.2 Asset Age Profile'!EC63","v":0},{"$f":"'[2]5.2 Asset Age Profile'!ED63","v":0},{"$f":"'[2]5.2 Asset Age Profile'!EE63","v":0},{"$f":"'[2]5.2 Asset Age Profile'!EF63","v":0},{"$f":"'[2]5.2 Asset Age Profile'!EG63","v":0},{"$f":"'[2]5.2 Asset Age Profile'!EH63","v":0},{"$f":"'[2]5.2 Asset Age Profile'!EI63","v":0},{"$f":"'[2]5.2 Asset Age Profile'!EJ63","v":0}]
["ED_ASS521_00054",null,"> 33 kV & < = 66 kV ; Commercial & Industrial  ",null,null,null,null,null,null,null,null,null,null,{"$f":"'[2]5.2 Asset Age Profile'!N64","v":54.9},{"$f":"'[2]5.2 Asset Age Profile'!O64","v":0},{"$f":"'[2]5.2 Asset Age Profile'!P64","v":0},{"$f":"'[2]5.2 Asset Age Profile'!Q64","v":0},{"$f":"'[2]5.2 Asset Age Profile'!R64","v":0},{"$f":"'[2]5.2 Asset Age Profile'!S64","v":0},{"$f":"'[2]5.2 Asset Age Profile'!T64","v":0},{"$f":"'[2]5.2 Asset Age Profile'!U64","v":0},{"$f":"'[2]5.2 Asset Age Profile'!V64","v":0},{"$f":"'[2]5.2 Asset Age Profile'!W64","v":0},{"$f":"'[2]5.2 Asset Age Profile'!X64","v":0},{"$f":"'[2]5.2 Asset Age Profile'!Y64","v":7.4094534211370817},{"$f":"'[2]5.2 Asset Age Profile'!Z64","v":0},{"$f":"'[2]5.2 Asset Age Profile'!AA64","v":0},{"$f":"'[2]5.2 Asset Age Profile'!AB64","v":0},{"$f":"'[2]5.2 Asset Age Profile'!AC64","v":0},{"$f":"'[2]5.2 Asset Age Profile'!AD64","v":0},{"$f":"'[2]5.2 Asset Age Profile'!AE64","v":0},{"$f":"'[2]5.2 Asset Age Profile'!AF64","v":0},{"$f":"'[2]5.2 Asset Age Profile'!AG64","v":0},{"$f":"'[2]5.2 Asset Age Profile'!AH64","v":0},{"$f":"'[2]5.2 Asset Age Profile'!AI64","v":0},{"$f":"'[2]5.2 Asset Age Profile'!AJ64","v":0},{"$f":"'[2]5.2 Asset Age Profile'!AK64","v":0},{"$f":"'[2]5.2 Asset Age Profile'!AL64","v":0},{"$f":"'[2]5.2 Asset Age Profile'!AM64","v":0},{"$f":"'[2]5.2 Asset Age Profile'!AN64","v":0},{"$f":"'[2]5.2 Asset Age Profile'!AO64","v":0},{"$f":"'[2]5.2 Asset Age Profile'!AP64","v":0},{"$f":"'[2]5.2 Asset Age Profile'!AQ64","v":0},{"$f":"'[2]5.2 Asset Age Profile'!AR64","v":0},{"$f":"'[2]5.2 Asset Age Profile'!AS64","v":0},{"$f":"'[2]5.2 Asset Age Profile'!AT64","v":0},{"$f":"'[2]5.2 Asset Age Profile'!AU64","v":0},{"$f":"'[2]5.2 Asset Age Profile'!AV64","v":0},{"$f":"'[2]5.2 Asset Age Profile'!AW64","v":0},{"$f":"'[2]5.2 Asset Age Profile'!AX64","v":0},{"$f":"'[2]5.2 Asset Age Profile'!AY64","v":0},{"$f":"'[2]5.2 Asset Age Profile'!AZ64","v":0},{"$f":"'[2]5.2 Asset Age Profile'!BA64","v":0},{"$f":"'[2]5.2 Asset Age Profile'!BB64","v":0},{"$f":"'[2]5.2 Asset Age Profile'!BC64","v":0},{"$f":"'[2]5.2 Asset Age Profile'!BD64","v":0},{"$f":"'[2]5.2 Asset Age Profile'!BE64","v":0},{"$f":"'[2]5.2 Asset Age Profile'!BF64","v":0},{"$f":"'[2]5.2 Asset Age Profile'!BG64","v":0},{"$f":"'[2]5.2 Asset Age Profile'!BH64","v":0},{"$f":"'[2]5.2 Asset Age Profile'!BI64","v":0},{"$f":"'[2]5.2 Asset Age Profile'!BJ64","v":0},{"$f":"'[2]5.2 Asset Age Profile'!BK64","v":0},{"$f":"'[2]5.2 Asset Age Profile'!BL64","v":0},{"$f":"'[2]5.2 Asset Age Profile'!BM64","v":0},{"$f":"'[2]5.2 Asset Age Profile'!BN64","v":0},{"$f":"'[2]5.2 Asset Age Profile'!BO64","v":0},{"$f":"'[2]5.2 Asset Age Profile'!BP64","v":0},{"$f":"'[2]5.2 Asset Age Profile'!BQ64","v":0},{"$f":"'[2]5.2 Asset Age Profile'!BR64","v":0},{"$f":"'[2]5.2 Asset Age Profile'!BS64","v":0},{"$f":"'[2]5.2 Asset Age Profile'!BT64","v":0},{"$f":"'[2]5.2 Asset Age Profile'!BU64","v":0},{"$f":"'[2]5.2 Asset Age Profile'!BV64","v":0},{"$f":"'[2]5.2 Asset Age Profile'!BW64","v":0},{"$f":"'[2]5.2 Asset Age Profile'!BX64","v":0},{"$f":"'[2]5.2 Asset Age Profile'!BY64","v":0},{"$f":"'[2]5.2 Asset Age Profile'!BZ64","v":0},{"$f":"'[2]5.2 Asset Age Profile'!CA64","v":0},{"$f":"'[2]5.2 Asset Age Profile'!CB64","v":0},{"$f":"'[2]5.2 Asset Age Profile'!CC64","v":0},{"$f":"'[2]5.2 Asset Age Profile'!CD64","v":0},{"$f":"'[2]5.2 Asset Age Profile'!CE64","v":0},{"$f":"'[2]5.2 Asset Age Profile'!CF64","v":0},{"$f":"'[2]5.2 Asset Age Profile'!CG64","v":0},{"$f":"'[2]5.2 Asset Age Profile'!CH64","v":0},{"$f":"'[2]5.2 Asset Age Profile'!CI64","v":0},{"$f":"'[2]5.2 Asset Age Profile'!CJ64","v":0},{"$f":"'[2]5.2 Asset Age Profile'!CK64","v":0},{"$f":"'[2]5.2 Asset Age Profile'!CL64","v":0},{"$f":"'[2]5.2 Asset Age Profile'!CM64","v":0},{"$f":"'[2]5.2 Asset Age Profile'!CN64","v":0},{"$f":"'[2]5.2 Asset Age Profile'!CO64","v":0},{"$f":"'[2]5.2 Asset Age Profile'!CP64","v":0},{"$f":"'[2]5.2 Asset Age Profile'!CQ64","v":0},{"$f":"'[2]5.2 Asset Age Profile'!CR64","v":0},{"$f":"'[2]5.2 Asset Age Profile'!CS64","v":0},{"$f":"'[2]5.2 Asset Age Profile'!CT64","v":0},{"$f":"'[2]5.2 Asset Age Profile'!CU64","v":0},{"$f":"'[2]5.2 Asset Age Profile'!CV64","v":0},{"$f":"'[2]5.2 Asset Age Profile'!CW64","v":0},{"$f":"'[2]5.2 Asset Age Profile'!CX64","v":0},{"$f":"'[2]5.2 Asset Age Profile'!CY64","v":0},{"$f":"'[2]5.2 Asset Age Profile'!CZ64","v":0},{"$f":"'[2]5.2 Asset Age Profile'!DA64","v":0},{"$f":"'[2]5.2 Asset Age Profile'!DB64","v":0},{"$f":"'[2]5.2 Asset Age Profile'!DC64","v":0},{"$f":"'[2]5.2 Asset Age Profile'!DD64","v":0},{"$f":"'[2]5.2 Asset Age Profile'!DE64","v":0},{"$f":"'[2]5.2 Asset Age Profile'!DF64","v":0},{"$f":"'[2]5.2 Asset Age Profile'!DG64","v":0},{"$f":"'[2]5.2 Asset Age Profile'!DH64","v":0},{"$f":"'[2]5.2 Asset Age Profile'!DI64","v":0},{"$f":"'[2]5.2 Asset Age Profile'!DJ64","v":0},{"$f":"'[2]5.2 Asset Age Profile'!DK64","v":0},{"$f":"'[2]5.2 Asset Age Profile'!DL64","v":0},{"$f":"'[2]5.2 Asset Age Profile'!DM64","v":0},{"$f":"'[2]5.2 Asset Age Profile'!DN64","v":0},{"$f":"'[2]5.2 Asset Age Profile'!DO64","v":0},{"$f":"'[2]5.2 Asset Age Profile'!DP64","v":0},{"$f":"'[2]5.2 Asset Age Profile'!DQ64","v":0},{"$f":"'[2]5.2 Asset Age Profile'!DR64","v":0},{"$f":"'[2]5.2 Asset Age Profile'!DS64","v":0},{"$f":"'[2]5.2 Asset Age Profile'!DT64","v":0},{"$f":"'[2]5.2 Asset Age Profile'!DU64","v":0},{"$f":"'[2]5.2 Asset Age Profile'!DV64","v":0},{"$f":"'[2]5.2 Asset Age Profile'!DW64","v":0},{"$f":"'[2]5.2 Asset Age Profile'!DX64","v":0},{"$f":"'[2]5.2 Asset Age Profile'!DY64","v":0},{"$f":"'[2]5.2 Asset Age Profile'!DZ64","v":0},{"$f":"'[2]5.2 Asset Age Profile'!EA64","v":0},{"$f":"'[2]5.2 Asset Age Profile'!EB64","v":0},{"$f":"'[2]5.2 Asset Age Profile'!EC64","v":0},{"$f":"'[2]5.2 Asset Age Profile'!ED64","v":0},{"$f":"'[2]5.2 Asset Age Profile'!EE64","v":0},{"$f":"'[2]5.2 Asset Age Profile'!EF64","v":0},{"$f":"'[2]5.2 Asset Age Profile'!EG64","v":0},{"$f":"'[2]5.2 Asset Age Profile'!EH64","v":0},{"$f":"'[2]5.2 Asset Age Profile'!EI64","v":0},{"$f":"'[2]5.2 Asset Age Profile'!EJ64","v":0}]
["ED_ASS521_00055",null,"> 33 kV & < = 66 kV ; Subdivision  ",null,null,null,null,null,null,null,null,null,null,{"$f":"'[2]5.2 Asset Age Profile'!N65","v":54.9},{"$f":"'[2]5.2 Asset Age Profile'!O65","v":0},{"$f":"'[2]5.2 Asset Age Profile'!P65","v":0},{"$f":"'[2]5.2 Asset Age Profile'!Q65","v":0},{"$f":"'[2]5.2 Asset Age Profile'!R65","v":0},{"$f":"'[2]5.2 Asset Age Profile'!S65","v":0},{"$f":"'[2]5.2 Asset Age Profile'!T65","v":0},{"$f":"'[2]5.2 Asset Age Profile'!U65","v":0},{"$f":"'[2]5.2 Asset Age Profile'!V65","v":0},{"$f":"'[2]5.2 Asset Age Profile'!W65","v":0},{"$f":"'[2]5.2 Asset Age Profile'!X65","v":0},{"$f":"'[2]5.2 Asset Age Profile'!Y65","v":7.4094534211370817},{"$f":"'[2]5.2 Asset Age Profile'!Z65","v":0},{"$f":"'[2]5.2 Asset Age Profile'!AA65","v":0},{"$f":"'[2]5.2 Asset Age Profile'!AB65","v":0},{"$f":"'[2]5.2 Asset Age Profile'!AC65","v":0},{"$f":"'[2]5.2 Asset Age Profile'!AD65","v":0},{"$f":"'[2]5.2 Asset Age Profile'!AE65","v":0},{"$f":"'[2]5.2 Asset Age Profile'!AF65","v":0},{"$f":"'[2]5.2 Asset Age Profile'!AG65","v":0},{"$f":"'[2]5.2 Asset Age Profile'!AH65","v":0},{"$f":"'[2]5.2 Asset Age Profile'!AI65","v":0},{"$f":"'[2]5.2 Asset Age Profile'!AJ65","v":0},{"$f":"'[2]5.2 Asset Age Profile'!AK65","v":0},{"$f":"'[2]5.2 Asset Age Profile'!AL65","v":0},{"$f":"'[2]5.2 Asset Age Profile'!AM65","v":0},{"$f":"'[2]5.2 Asset Age Profile'!AN65","v":0},{"$f":"'[2]5.2 Asset Age Profile'!AO65","v":0},{"$f":"'[2]5.2 Asset Age Profile'!AP65","v":0},{"$f":"'[2]5.2 Asset Age Profile'!AQ65","v":0},{"$f":"'[2]5.2 Asset Age Profile'!AR65","v":0},{"$f":"'[2]5.2 Asset Age Profile'!AS65","v":0},{"$f":"'[2]5.2 Asset Age Profile'!AT65","v":0},{"$f":"'[2]5.2 Asset Age Profile'!AU65","v":0},{"$f":"'[2]5.2 Asset Age Profile'!AV65","v":0},{"$f":"'[2]5.2 Asset Age Profile'!AW65","v":0},{"$f":"'[2]5.2 Asset Age Profile'!AX65","v":0},{"$f":"'[2]5.2 Asset Age Profile'!AY65","v":0},{"$f":"'[2]5.2 Asset Age Profile'!AZ65","v":0},{"$f":"'[2]5.2 Asset Age Profile'!BA65","v":0},{"$f":"'[2]5.2 Asset Age Profile'!BB65","v":0},{"$f":"'[2]5.2 Asset Age Profile'!BC65","v":0},{"$f":"'[2]5.2 Asset Age Profile'!BD65","v":0},{"$f":"'[2]5.2 Asset Age Profile'!BE65","v":0},{"$f":"'[2]5.2 Asset Age Profile'!BF65","v":0},{"$f":"'[2]5.2 Asset Age Profile'!BG65","v":0},{"$f":"'[2]5.2 Asset Age Profile'!BH65","v":0},{"$f":"'[2]5.2 Asset Age Profile'!BI65","v":0},{"$f":"'[2]5.2 Asset Age Profile'!BJ65","v":0},{"$f":"'[2]5.2 Asset Age Profile'!BK65","v":0},{"$f":"'[2]5.2 Asset Age Profile'!BL65","v":0},{"$f":"'[2]5.2 Asset Age Profile'!BM65","v":0},{"$f":"'[2]5.2 Asset Age Profile'!BN65","v":0},{"$f":"'[2]5.2 Asset Age Profile'!BO65","v":0},{"$f":"'[2]5.2 Asset Age Profile'!BP65","v":0},{"$f":"'[2]5.2 Asset Age Profile'!BQ65","v":0},{"$f":"'[2]5.2 Asset Age Profile'!BR65","v":0},{"$f":"'[2]5.2 Asset Age Profile'!BS65","v":0},{"$f":"'[2]5.2 Asset Age Profile'!BT65","v":0},{"$f":"'[2]5.2 Asset Age Profile'!BU65","v":0},{"$f":"'[2]5.2 Asset Age Profile'!BV65","v":0},{"$f":"'[2]5.2 Asset Age Profile'!BW65","v":0},{"$f":"'[2]5.2 Asset Age Profile'!BX65","v":0},{"$f":"'[2]5.2 Asset Age Profile'!BY65","v":0},{"$f":"'[2]5.2 Asset Age Profile'!BZ65","v":0},{"$f":"'[2]5.2 Asset Age Profile'!CA65","v":0},{"$f":"'[2]5.2 Asset Age Profile'!CB65","v":0},{"$f":"'[2]5.2 Asset Age Profile'!CC65","v":0},{"$f":"'[2]5.2 Asset Age Profile'!CD65","v":0},{"$f":"'[2]5.2 Asset Age Profile'!CE65","v":0},{"$f":"'[2]5.2 Asset Age Profile'!CF65","v":0},{"$f":"'[2]5.2 Asset Age Profile'!CG65","v":0},{"$f":"'[2]5.2 Asset Age Profile'!CH65","v":0},{"$f":"'[2]5.2 Asset Age Profile'!CI65","v":0},{"$f":"'[2]5.2 Asset Age Profile'!CJ65","v":0},{"$f":"'[2]5.2 Asset Age Profile'!CK65","v":0},{"$f":"'[2]5.2 Asset Age Profile'!CL65","v":0},{"$f":"'[2]5.2 Asset Age Profile'!CM65","v":0},{"$f":"'[2]5.2 Asset Age Profile'!CN65","v":0},{"$f":"'[2]5.2 Asset Age Profile'!CO65","v":0},{"$f":"'[2]5.2 Asset Age Profile'!CP65","v":0},{"$f":"'[2]5.2 Asset Age Profile'!CQ65","v":0},{"$f":"'[2]5.2 Asset Age Profile'!CR65","v":0},{"$f":"'[2]5.2 Asset Age Profile'!CS65","v":0},{"$f":"'[2]5.2 Asset Age Profile'!CT65","v":0},{"$f":"'[2]5.2 Asset Age Profile'!CU65","v":0},{"$f":"'[2]5.2 Asset Age Profile'!CV65","v":0},{"$f":"'[2]5.2 Asset Age Profile'!CW65","v":0},{"$f":"'[2]5.2 Asset Age Profile'!CX65","v":0},{"$f":"'[2]5.2 Asset Age Profile'!CY65","v":0},{"$f":"'[2]5.2 Asset Age Profile'!CZ65","v":0},{"$f":"'[2]5.2 Asset Age Profile'!DA65","v":0},{"$f":"'[2]5.2 Asset Age Profile'!DB65","v":0},{"$f":"'[2]5.2 Asset Age Profile'!DC65","v":0},{"$f":"'[2]5.2 Asset Age Profile'!DD65","v":0},{"$f":"'[2]5.2 Asset Age Profile'!DE65","v":0},{"$f":"'[2]5.2 Asset Age Profile'!DF65","v":0},{"$f":"'[2]5.2 Asset Age Profile'!DG65","v":0},{"$f":"'[2]5.2 Asset Age Profile'!DH65","v":0},{"$f":"'[2]5.2 Asset Age Profile'!DI65","v":0},{"$f":"'[2]5.2 Asset Age Profile'!DJ65","v":0},{"$f":"'[2]5.2 Asset Age Profile'!DK65","v":0},{"$f":"'[2]5.2 Asset Age Profile'!DL65","v":0},{"$f":"'[2]5.2 Asset Age Profile'!DM65","v":0},{"$f":"'[2]5.2 Asset Age Profile'!DN65","v":0},{"$f":"'[2]5.2 Asset Age Profile'!DO65","v":0},{"$f":"'[2]5.2 Asset Age Profile'!DP65","v":0},{"$f":"'[2]5.2 Asset Age Profile'!DQ65","v":0},{"$f":"'[2]5.2 Asset Age Profile'!DR65","v":0},{"$f":"'[2]5.2 Asset Age Profile'!DS65","v":0},{"$f":"'[2]5.2 Asset Age Profile'!DT65","v":0},{"$f":"'[2]5.2 Asset Age Profile'!DU65","v":0},{"$f":"'[2]5.2 Asset Age Profile'!DV65","v":0},{"$f":"'[2]5.2 Asset Age Profile'!DW65","v":0},{"$f":"'[2]5.2 Asset Age Profile'!DX65","v":0},{"$f":"'[2]5.2 Asset Age Profile'!DY65","v":0},{"$f":"'[2]5.2 Asset Age Profile'!DZ65","v":0},{"$f":"'[2]5.2 Asset Age Profile'!EA65","v":0},{"$f":"'[2]5.2 Asset Age Profile'!EB65","v":0},{"$f":"'[2]5.2 Asset Age Profile'!EC65","v":0},{"$f":"'[2]5.2 Asset Age Profile'!ED65","v":0},{"$f":"'[2]5.2 Asset Age Profile'!EE65","v":0},{"$f":"'[2]5.2 Asset Age Profile'!EF65","v":0},{"$f":"'[2]5.2 Asset Age Profile'!EG65","v":0},{"$f":"'[2]5.2 Asset Age Profile'!EH65","v":0},{"$f":"'[2]5.2 Asset Age Profile'!EI65","v":0},{"$f":"'[2]5.2 Asset Age Profile'!EJ65","v":0}]
["ED_ASS521_00056",null,"> 66 kV & < = 132 kV ; Commercial & Industrial  ",null,null,null,null,null,null,null,null,null,null,{"$f":"'[2]5.2 Asset Age Profile'!N66","v":54.9},{"$f":"'[2]5.2 Asset Age Profile'!O66","v":0},{"$f":"'[2]5.2 Asset Age Profile'!P66","v":0},{"$f":"'[2]5.2 Asset Age Profile'!Q66","v":0},{"$f":"'[2]5.2 Asset Age Profile'!R66","v":0},{"$f":"'[2]5.2 Asset Age Profile'!S66","v":0},{"$f":"'[2]5.2 Asset Age Profile'!T66","v":0},{"$f":"'[2]5.2 Asset Age Profile'!U66","v":0},{"$f":"'[2]5.2 Asset Age Profile'!V66","v":0},{"$f":"'[2]5.2 Asset Age Profile'!W66","v":0},{"$f":"'[2]5.2 Asset Age Profile'!X66","v":0},{"$f":"'[2]5.2 Asset Age Profile'!Y66","v":7.4094534211370817},{"$f":"'[2]5.2 Asset Age Profile'!Z66","v":0},{"$f":"'[2]5.2 Asset Age Profile'!AA66","v":0},{"$f":"'[2]5.2 Asset Age Profile'!AB66","v":0},{"$f":"'[2]5.2 Asset Age Profile'!AC66","v":0},{"$f":"'[2]5.2 Asset Age Profile'!AD66","v":0},{"$f":"'[2]5.2 Asset Age Profile'!AE66","v":0},{"$f":"'[2]5.2 Asset Age Profile'!AF66","v":0},{"$f":"'[2]5.2 Asset Age Profile'!AG66","v":0},{"$f":"'[2]5.2 Asset Age Profile'!AH66","v":0},{"$f":"'[2]5.2 Asset Age Profile'!AI66","v":0},{"$f":"'[2]5.2 Asset Age Profile'!AJ66","v":0},{"$f":"'[2]5.2 Asset Age Profile'!AK66","v":0},{"$f":"'[2]5.2 Asset Age Profile'!AL66","v":0},{"$f":"'[2]5.2 Asset Age Profile'!AM66","v":0},{"$f":"'[2]5.2 Asset Age Profile'!AN66","v":0},{"$f":"'[2]5.2 Asset Age Profile'!AO66","v":0},{"$f":"'[2]5.2 Asset Age Profile'!AP66","v":0},{"$f":"'[2]5.2 Asset Age Profile'!AQ66","v":0},{"$f":"'[2]5.2 Asset Age Profile'!AR66","v":0},{"$f":"'[2]5.2 Asset Age Profile'!AS66","v":0},{"$f":"'[2]5.2 Asset Age Profile'!AT66","v":0},{"$f":"'[2]5.2 Asset Age Profile'!AU66","v":0},{"$f":"'[2]5.2 Asset Age Profile'!AV66","v":0},{"$f":"'[2]5.2 Asset Age Profile'!AW66","v":0},{"$f":"'[2]5.2 Asset Age Profile'!AX66","v":0},{"$f":"'[2]5.2 Asset Age Profile'!AY66","v":0},{"$f":"'[2]5.2 Asset Age Profile'!AZ66","v":0},{"$f":"'[2]5.2 Asset Age Profile'!BA66","v":0},{"$f":"'[2]5.2 Asset Age Profile'!BB66","v":0},{"$f":"'[2]5.2 Asset Age Profile'!BC66","v":0},{"$f":"'[2]5.2 Asset Age Profile'!BD66","v":0},{"$f":"'[2]5.2 Asset Age Profile'!BE66","v":0},{"$f":"'[2]5.2 Asset Age Profile'!BF66","v":0},{"$f":"'[2]5.2 Asset Age Profile'!BG66","v":0},{"$f":"'[2]5.2 Asset Age Profile'!BH66","v":0},{"$f":"'[2]5.2 Asset Age Profile'!BI66","v":0},{"$f":"'[2]5.2 Asset Age Profile'!BJ66","v":0},{"$f":"'[2]5.2 Asset Age Profile'!BK66","v":0},{"$f":"'[2]5.2 Asset Age Profile'!BL66","v":0},{"$f":"'[2]5.2 Asset Age Profile'!BM66","v":0},{"$f":"'[2]5.2 Asset Age Profile'!BN66","v":0},{"$f":"'[2]5.2 Asset Age Profile'!BO66","v":0},{"$f":"'[2]5.2 Asset Age Profile'!BP66","v":0},{"$f":"'[2]5.2 Asset Age Profile'!BQ66","v":0},{"$f":"'[2]5.2 Asset Age Profile'!BR66","v":0},{"$f":"'[2]5.2 Asset Age Profile'!BS66","v":0},{"$f":"'[2]5.2 Asset Age Profile'!BT66","v":0},{"$f":"'[2]5.2 Asset Age Profile'!BU66","v":0},{"$f":"'[2]5.2 Asset Age Profile'!BV66","v":0},{"$f":"'[2]5.2 Asset Age Profile'!BW66","v":0},{"$f":"'[2]5.2 Asset Age Profile'!BX66","v":0},{"$f":"'[2]5.2 Asset Age Profile'!BY66","v":0},{"$f":"'[2]5.2 Asset Age Profile'!BZ66","v":0},{"$f":"'[2]5.2 Asset Age Profile'!CA66","v":0},{"$f":"'[2]5.2 Asset Age Profile'!CB66","v":0},{"$f":"'[2]5.2 Asset Age Profile'!CC66","v":0},{"$f":"'[2]5.2 Asset Age Profile'!CD66","v":0},{"$f":"'[2]5.2 Asset Age Profile'!CE66","v":0},{"$f":"'[2]5.2 Asset Age Profile'!CF66","v":0},{"$f":"'[2]5.2 Asset Age Profile'!CG66","v":0},{"$f":"'[2]5.2 Asset Age Profile'!CH66","v":0},{"$f":"'[2]5.2 Asset Age Profile'!CI66","v":0},{"$f":"'[2]5.2 Asset Age Profile'!CJ66","v":0},{"$f":"'[2]5.2 Asset Age Profile'!CK66","v":0},{"$f":"'[2]5.2 Asset Age Profile'!CL66","v":0},{"$f":"'[2]5.2 Asset Age Profile'!CM66","v":0},{"$f":"'[2]5.2 Asset Age Profile'!CN66","v":0},{"$f":"'[2]5.2 Asset Age Profile'!CO66","v":0},{"$f":"'[2]5.2 Asset Age Profile'!CP66","v":0},{"$f":"'[2]5.2 Asset Age Profile'!CQ66","v":0},{"$f":"'[2]5.2 Asset Age Profile'!CR66","v":0},{"$f":"'[2]5.2 Asset Age Profile'!CS66","v":0},{"$f":"'[2]5.2 Asset Age Profile'!CT66","v":0},{"$f":"'[2]5.2 Asset Age Profile'!CU66","v":0},{"$f":"'[2]5.2 Asset Age Profile'!CV66","v":0},{"$f":"'[2]5.2 Asset Age Profile'!CW66","v":0},{"$f":"'[2]5.2 Asset Age Profile'!CX66","v":0},{"$f":"'[2]5.2 Asset Age Profile'!CY66","v":0},{"$f":"'[2]5.2 Asset Age Profile'!CZ66","v":0},{"$f":"'[2]5.2 Asset Age Profile'!DA66","v":0},{"$f":"'[2]5.2 Asset Age Profile'!DB66","v":0},{"$f":"'[2]5.2 Asset Age Profile'!DC66","v":0},{"$f":"'[2]5.2 Asset Age Profile'!DD66","v":0},{"$f":"'[2]5.2 Asset Age Profile'!DE66","v":0},{"$f":"'[2]5.2 Asset Age Profile'!DF66","v":0},{"$f":"'[2]5.2 Asset Age Profile'!DG66","v":0},{"$f":"'[2]5.2 Asset Age Profile'!DH66","v":0},{"$f":"'[2]5.2 Asset Age Profile'!DI66","v":0},{"$f":"'[2]5.2 Asset Age Profile'!DJ66","v":0},{"$f":"'[2]5.2 Asset Age Profile'!DK66","v":0},{"$f":"'[2]5.2 Asset Age Profile'!DL66","v":0},{"$f":"'[2]5.2 Asset Age Profile'!DM66","v":0},{"$f":"'[2]5.2 Asset Age Profile'!DN66","v":0},{"$f":"'[2]5.2 Asset Age Profile'!DO66","v":0},{"$f":"'[2]5.2 Asset Age Profile'!DP66","v":0},{"$f":"'[2]5.2 Asset Age Profile'!DQ66","v":0},{"$f":"'[2]5.2 Asset Age Profile'!DR66","v":0},{"$f":"'[2]5.2 Asset Age Profile'!DS66","v":0},{"$f":"'[2]5.2 Asset Age Profile'!DT66","v":0},{"$f":"'[2]5.2 Asset Age Profile'!DU66","v":0},{"$f":"'[2]5.2 Asset Age Profile'!DV66","v":0},{"$f":"'[2]5.2 Asset Age Profile'!DW66","v":0},{"$f":"'[2]5.2 Asset Age Profile'!DX66","v":0},{"$f":"'[2]5.2 Asset Age Profile'!DY66","v":0},{"$f":"'[2]5.2 Asset Age Profile'!DZ66","v":0},{"$f":"'[2]5.2 Asset Age Profile'!EA66","v":0},{"$f":"'[2]5.2 Asset Age Profile'!EB66","v":0},{"$f":"'[2]5.2 Asset Age Profile'!EC66","v":0},{"$f":"'[2]5.2 Asset Age Profile'!ED66","v":0},{"$f":"'[2]5.2 Asset Age Profile'!EE66","v":0},{"$f":"'[2]5.2 Asset Age Profile'!EF66","v":0},{"$f":"'[2]5.2 Asset Age Profile'!EG66","v":0},{"$f":"'[2]5.2 Asset Age Profile'!EH66","v":0},{"$f":"'[2]5.2 Asset Age Profile'!EI66","v":0},{"$f":"'[2]5.2 Asset Age Profile'!EJ66","v":0}]
["ED_ASS521_00057",null,"> 66 kV & < = 132 kV ; Subdivision  ",null,null,null,null,null,null,null,null,null,null,{"$f":"'[2]5.2 Asset Age Profile'!N67","v":54.9},{"$f":"'[2]5.2 Asset Age Profile'!O67","v":0},{"$f":"'[2]5.2 Asset Age Profile'!P67","v":0},{"$f":"'[2]5.2 Asset Age Profile'!Q67","v":0},{"$f":"'[2]5.2 Asset Age Profile'!R67","v":0},{"$f":"'[2]5.2 Asset Age Profile'!S67","v":0},{"$f":"'[2]5.2 Asset Age Profile'!T67","v":0},{"$f":"'[2]5.2 Asset Age Profile'!U67","v":0},{"$f":"'[2]5.2 Asset Age Profile'!V67","v":0},{"$f":"'[2]5.2 Asset Age Profile'!W67","v":0},{"$f":"'[2]5.2 Asset Age Profile'!X67","v":0},{"$f":"'[2]5.2 Asset Age Profile'!Y67","v":7.4094534211370817},{"$f":"'[2]5.2 Asset Age Profile'!Z67","v":0},{"$f":"'[2]5.2 Asset Age Profile'!AA67","v":0},{"$f":"'[2]5.2 Asset Age Profile'!AB67","v":0},{"$f":"'[2]5.2 Asset Age Profile'!AC67","v":0},{"$f":"'[2]5.2 Asset Age Profile'!AD67","v":0},{"$f":"'[2]5.2 Asset Age Profile'!AE67","v":0},{"$f":"'[2]5.2 Asset Age Profile'!AF67","v":0},{"$f":"'[2]5.2 Asset Age Profile'!AG67","v":0},{"$f":"'[2]5.2 Asset Age Profile'!AH67","v":0},{"$f":"'[2]5.2 Asset Age Profile'!AI67","v":0},{"$f":"'[2]5.2 Asset Age Profile'!AJ67","v":0},{"$f":"'[2]5.2 Asset Age Profile'!AK67","v":0},{"$f":"'[2]5.2 Asset Age Profile'!AL67","v":0},{"$f":"'[2]5.2 Asset Age Profile'!AM67","v":0},{"$f":"'[2]5.2 Asset Age Profile'!AN67","v":0},{"$f":"'[2]5.2 Asset Age Profile'!AO67","v":0},{"$f":"'[2]5.2 Asset Age Profile'!AP67","v":0},{"$f":"'[2]5.2 Asset Age Profile'!AQ67","v":0},{"$f":"'[2]5.2 Asset Age Profile'!AR67","v":0},{"$f":"'[2]5.2 Asset Age Profile'!AS67","v":0},{"$f":"'[2]5.2 Asset Age Profile'!AT67","v":0},{"$f":"'[2]5.2 Asset Age Profile'!AU67","v":0},{"$f":"'[2]5.2 Asset Age Profile'!AV67","v":0},{"$f":"'[2]5.2 Asset Age Profile'!AW67","v":0},{"$f":"'[2]5.2 Asset Age Profile'!AX67","v":0},{"$f":"'[2]5.2 Asset Age Profile'!AY67","v":0},{"$f":"'[2]5.2 Asset Age Profile'!AZ67","v":0},{"$f":"'[2]5.2 Asset Age Profile'!BA67","v":0},{"$f":"'[2]5.2 Asset Age Profile'!BB67","v":0},{"$f":"'[2]5.2 Asset Age Profile'!BC67","v":0},{"$f":"'[2]5.2 Asset Age Profile'!BD67","v":0},{"$f":"'[2]5.2 Asset Age Profile'!BE67","v":0},{"$f":"'[2]5.2 Asset Age Profile'!BF67","v":0},{"$f":"'[2]5.2 Asset Age Profile'!BG67","v":0},{"$f":"'[2]5.2 Asset Age Profile'!BH67","v":0},{"$f":"'[2]5.2 Asset Age Profile'!BI67","v":0},{"$f":"'[2]5.2 Asset Age Profile'!BJ67","v":0},{"$f":"'[2]5.2 Asset Age Profile'!BK67","v":0},{"$f":"'[2]5.2 Asset Age Profile'!BL67","v":0},{"$f":"'[2]5.2 Asset Age Profile'!BM67","v":0},{"$f":"'[2]5.2 Asset Age Profile'!BN67","v":0},{"$f":"'[2]5.2 Asset Age Profile'!BO67","v":0},{"$f":"'[2]5.2 Asset Age Profile'!BP67","v":0},{"$f":"'[2]5.2 Asset Age Profile'!BQ67","v":0},{"$f":"'[2]5.2 Asset Age Profile'!BR67","v":0},{"$f":"'[2]5.2 Asset Age Profile'!BS67","v":0},{"$f":"'[2]5.2 Asset Age Profile'!BT67","v":0},{"$f":"'[2]5.2 Asset Age Profile'!BU67","v":0},{"$f":"'[2]5.2 Asset Age Profile'!BV67","v":0},{"$f":"'[2]5.2 Asset Age Profile'!BW67","v":0},{"$f":"'[2]5.2 Asset Age Profile'!BX67","v":0},{"$f":"'[2]5.2 Asset Age Profile'!BY67","v":0},{"$f":"'[2]5.2 Asset Age Profile'!BZ67","v":0},{"$f":"'[2]5.2 Asset Age Profile'!CA67","v":0},{"$f":"'[2]5.2 Asset Age Profile'!CB67","v":0},{"$f":"'[2]5.2 Asset Age Profile'!CC67","v":0},{"$f":"'[2]5.2 Asset Age Profile'!CD67","v":0},{"$f":"'[2]5.2 Asset Age Profile'!CE67","v":0},{"$f":"'[2]5.2 Asset Age Profile'!CF67","v":0},{"$f":"'[2]5.2 Asset Age Profile'!CG67","v":0},{"$f":"'[2]5.2 Asset Age Profile'!CH67","v":0},{"$f":"'[2]5.2 Asset Age Profile'!CI67","v":0},{"$f":"'[2]5.2 Asset Age Profile'!CJ67","v":0},{"$f":"'[2]5.2 Asset Age Profile'!CK67","v":0},{"$f":"'[2]5.2 Asset Age Profile'!CL67","v":0},{"$f":"'[2]5.2 Asset Age Profile'!CM67","v":0},{"$f":"'[2]5.2 Asset Age Profile'!CN67","v":0},{"$f":"'[2]5.2 Asset Age Profile'!CO67","v":0},{"$f":"'[2]5.2 Asset Age Profile'!CP67","v":0},{"$f":"'[2]5.2 Asset Age Profile'!CQ67","v":0},{"$f":"'[2]5.2 Asset Age Profile'!CR67","v":0},{"$f":"'[2]5.2 Asset Age Profile'!CS67","v":0},{"$f":"'[2]5.2 Asset Age Profile'!CT67","v":0},{"$f":"'[2]5.2 Asset Age Profile'!CU67","v":0},{"$f":"'[2]5.2 Asset Age Profile'!CV67","v":0},{"$f":"'[2]5.2 Asset Age Profile'!CW67","v":0},{"$f":"'[2]5.2 Asset Age Profile'!CX67","v":0},{"$f":"'[2]5.2 Asset Age Profile'!CY67","v":0},{"$f":"'[2]5.2 Asset Age Profile'!CZ67","v":0},{"$f":"'[2]5.2 Asset Age Profile'!DA67","v":0},{"$f":"'[2]5.2 Asset Age Profile'!DB67","v":0},{"$f":"'[2]5.2 Asset Age Profile'!DC67","v":0},{"$f":"'[2]5.2 Asset Age Profile'!DD67","v":0},{"$f":"'[2]5.2 Asset Age Profile'!DE67","v":0},{"$f":"'[2]5.2 Asset Age Profile'!DF67","v":0},{"$f":"'[2]5.2 Asset Age Profile'!DG67","v":0},{"$f":"'[2]5.2 Asset Age Profile'!DH67","v":0},{"$f":"'[2]5.2 Asset Age Profile'!DI67","v":0},{"$f":"'[2]5.2 Asset Age Profile'!DJ67","v":0},{"$f":"'[2]5.2 Asset Age Profile'!DK67","v":0},{"$f":"'[2]5.2 Asset Age Profile'!DL67","v":0},{"$f":"'[2]5.2 Asset Age Profile'!DM67","v":0},{"$f":"'[2]5.2 Asset Age Profile'!DN67","v":0},{"$f":"'[2]5.2 Asset Age Profile'!DO67","v":0},{"$f":"'[2]5.2 Asset Age Profile'!DP67","v":0},{"$f":"'[2]5.2 Asset Age Profile'!DQ67","v":0},{"$f":"'[2]5.2 Asset Age Profile'!DR67","v":0},{"$f":"'[2]5.2 Asset Age Profile'!DS67","v":0},{"$f":"'[2]5.2 Asset Age Profile'!DT67","v":0},{"$f":"'[2]5.2 Asset Age Profile'!DU67","v":0},{"$f":"'[2]5.2 Asset Age Profile'!DV67","v":0},{"$f":"'[2]5.2 Asset Age Profile'!DW67","v":0},{"$f":"'[2]5.2 Asset Age Profile'!DX67","v":0},{"$f":"'[2]5.2 Asset Age Profile'!DY67","v":0},{"$f":"'[2]5.2 Asset Age Profile'!DZ67","v":0},{"$f":"'[2]5.2 Asset Age Profile'!EA67","v":0},{"$f":"'[2]5.2 Asset Age Profile'!EB67","v":0},{"$f":"'[2]5.2 Asset Age Profile'!EC67","v":0},{"$f":"'[2]5.2 Asset Age Profile'!ED67","v":0},{"$f":"'[2]5.2 Asset Age Profile'!EE67","v":0},{"$f":"'[2]5.2 Asset Age Profile'!EF67","v":0},{"$f":"'[2]5.2 Asset Age Profile'!EG67","v":0},{"$f":"'[2]5.2 Asset Age Profile'!EH67","v":0},{"$f":"'[2]5.2 Asset Age Profile'!EI67","v":0},{"$f":"'[2]5.2 Asset Age Profile'!EJ67","v":0}]
["ED_ASS521_00058",null,"> 132 kV ; Commercial & Industrial  ",null,null,null,null,null,null,null,null,null,null,{"$f":"'[2]5.2 Asset Age Profile'!N68","v":54.9},{"$f":"'[2]5.2 Asset Age Profile'!O68","v":0},{"$f":"'[2]5.2 Asset Age Profile'!P68","v":0},{"$f":"'[2]5.2 Asset Age Profile'!Q68","v":0},{"$f":"'[2]5.2 Asset Age Profile'!R68","v":0},{"$f":"'[2]5.2 Asset Age Profile'!S68","v":0},{"$f":"'[2]5.2 Asset Age Profile'!T68","v":0},{"$f":"'[2]5.2 Asset Age Profile'!U68","v":0},{"$f":"'[2]5.2 Asset Age Profile'!V68","v":0},{"$f":"'[2]5.2 Asset Age Profile'!W68","v":0},{"$f":"'[2]5.2 Asset Age Profile'!X68","v":0},{"$f":"'[2]5.2 Asset Age Profile'!Y68","v":7.4094534211370817},{"$f":"'[2]5.2 Asset Age Profile'!Z68","v":0},{"$f":"'[2]5.2 Asset Age Profile'!AA68","v":0},{"$f":"'[2]5.2 Asset Age Profile'!AB68","v":0},{"$f":"'[2]5.2 Asset Age Profile'!AC68","v":0},{"$f":"'[2]5.2 Asset Age Profile'!AD68","v":0},{"$f":"'[2]5.2 Asset Age Profile'!AE68","v":0},{"$f":"'[2]5.2 Asset Age Profile'!AF68","v":0},{"$f":"'[2]5.2 Asset Age Profile'!AG68","v":0},{"$f":"'[2]5.2 Asset Age Profile'!AH68","v":0},{"$f":"'[2]5.2 Asset Age Profile'!AI68","v":0},{"$f":"'[2]5.2 Asset Age Profile'!AJ68","v":0},{"$f":"'[2]5.2 Asset Age Profile'!AK68","v":0},{"$f":"'[2]5.2 Asset Age Profile'!AL68","v":0},{"$f":"'[2]5.2 Asset Age Profile'!AM68","v":0},{"$f":"'[2]5.2 Asset Age Profile'!AN68","v":0},{"$f":"'[2]5.2 Asset Age Profile'!AO68","v":0},{"$f":"'[2]5.2 Asset Age Profile'!AP68","v":0},{"$f":"'[2]5.2 Asset Age Profile'!AQ68","v":0},{"$f":"'[2]5.2 Asset Age Profile'!AR68","v":0},{"$f":"'[2]5.2 Asset Age Profile'!AS68","v":0},{"$f":"'[2]5.2 Asset Age Profile'!AT68","v":0},{"$f":"'[2]5.2 Asset Age Profile'!AU68","v":0},{"$f":"'[2]5.2 Asset Age Profile'!AV68","v":0},{"$f":"'[2]5.2 Asset Age Profile'!AW68","v":0},{"$f":"'[2]5.2 Asset Age Profile'!AX68","v":0},{"$f":"'[2]5.2 Asset Age Profile'!AY68","v":0},{"$f":"'[2]5.2 Asset Age Profile'!AZ68","v":0},{"$f":"'[2]5.2 Asset Age Profile'!BA68","v":0},{"$f":"'[2]5.2 Asset Age Profile'!BB68","v":0},{"$f":"'[2]5.2 Asset Age Profile'!BC68","v":0},{"$f":"'[2]5.2 Asset Age Profile'!BD68","v":0},{"$f":"'[2]5.2 Asset Age Profile'!BE68","v":0},{"$f":"'[2]5.2 Asset Age Profile'!BF68","v":0},{"$f":"'[2]5.2 Asset Age Profile'!BG68","v":0},{"$f":"'[2]5.2 Asset Age Profile'!BH68","v":0},{"$f":"'[2]5.2 Asset Age Profile'!BI68","v":0},{"$f":"'[2]5.2 Asset Age Profile'!BJ68","v":0},{"$f":"'[2]5.2 Asset Age Profile'!BK68","v":0},{"$f":"'[2]5.2 Asset Age Profile'!BL68","v":0},{"$f":"'[2]5.2 Asset Age Profile'!BM68","v":0},{"$f":"'[2]5.2 Asset Age Profile'!BN68","v":0},{"$f":"'[2]5.2 Asset Age Profile'!BO68","v":0},{"$f":"'[2]5.2 Asset Age Profile'!BP68","v":0},{"$f":"'[2]5.2 Asset Age Profile'!BQ68","v":0},{"$f":"'[2]5.2 Asset Age Profile'!BR68","v":0},{"$f":"'[2]5.2 Asset Age Profile'!BS68","v":0},{"$f":"'[2]5.2 Asset Age Profile'!BT68","v":0},{"$f":"'[2]5.2 Asset Age Profile'!BU68","v":0},{"$f":"'[2]5.2 Asset Age Profile'!BV68","v":0},{"$f":"'[2]5.2 Asset Age Profile'!BW68","v":0},{"$f":"'[2]5.2 Asset Age Profile'!BX68","v":0},{"$f":"'[2]5.2 Asset Age Profile'!BY68","v":0},{"$f":"'[2]5.2 Asset Age Profile'!BZ68","v":0},{"$f":"'[2]5.2 Asset Age Profile'!CA68","v":0},{"$f":"'[2]5.2 Asset Age Profile'!CB68","v":0},{"$f":"'[2]5.2 Asset Age Profile'!CC68","v":0},{"$f":"'[2]5.2 Asset Age Profile'!CD68","v":0},{"$f":"'[2]5.2 Asset Age Profile'!CE68","v":0},{"$f":"'[2]5.2 Asset Age Profile'!CF68","v":0},{"$f":"'[2]5.2 Asset Age Profile'!CG68","v":0},{"$f":"'[2]5.2 Asset Age Profile'!CH68","v":0},{"$f":"'[2]5.2 Asset Age Profile'!CI68","v":0},{"$f":"'[2]5.2 Asset Age Profile'!CJ68","v":0},{"$f":"'[2]5.2 Asset Age Profile'!CK68","v":0},{"$f":"'[2]5.2 Asset Age Profile'!CL68","v":0},{"$f":"'[2]5.2 Asset Age Profile'!CM68","v":0},{"$f":"'[2]5.2 Asset Age Profile'!CN68","v":0},{"$f":"'[2]5.2 Asset Age Profile'!CO68","v":0},{"$f":"'[2]5.2 Asset Age Profile'!CP68","v":0},{"$f":"'[2]5.2 Asset Age Profile'!CQ68","v":0},{"$f":"'[2]5.2 Asset Age Profile'!CR68","v":0},{"$f":"'[2]5.2 Asset Age Profile'!CS68","v":0},{"$f":"'[2]5.2 Asset Age Profile'!CT68","v":0},{"$f":"'[2]5.2 Asset Age Profile'!CU68","v":0},{"$f":"'[2]5.2 Asset Age Profile'!CV68","v":0},{"$f":"'[2]5.2 Asset Age Profile'!CW68","v":0},{"$f":"'[2]5.2 Asset Age Profile'!CX68","v":0},{"$f":"'[2]5.2 Asset Age Profile'!CY68","v":0},{"$f":"'[2]5.2 Asset Age Profile'!CZ68","v":0},{"$f":"'[2]5.2 Asset Age Profile'!DA68","v":0},{"$f":"'[2]5.2 Asset Age Profile'!DB68","v":0},{"$f":"'[2]5.2 Asset Age Profile'!DC68","v":0},{"$f":"'[2]5.2 Asset Age Profile'!DD68","v":0},{"$f":"'[2]5.2 Asset Age Profile'!DE68","v":0},{"$f":"'[2]5.2 Asset Age Profile'!DF68","v":0},{"$f":"'[2]5.2 Asset Age Profile'!DG68","v":0},{"$f":"'[2]5.2 Asset Age Profile'!DH68","v":0},{"$f":"'[2]5.2 Asset Age Profile'!DI68","v":0},{"$f":"'[2]5.2 Asset Age Profile'!DJ68","v":0},{"$f":"'[2]5.2 Asset Age Profile'!DK68","v":0},{"$f":"'[2]5.2 Asset Age Profile'!DL68","v":0},{"$f":"'[2]5.2 Asset Age Profile'!DM68","v":0},{"$f":"'[2]5.2 Asset Age Profile'!DN68","v":0},{"$f":"'[2]5.2 Asset Age Profile'!DO68","v":0},{"$f":"'[2]5.2 Asset Age Profile'!DP68","v":0},{"$f":"'[2]5.2 Asset Age Profile'!DQ68","v":0},{"$f":"'[2]5.2 Asset Age Profile'!DR68","v":0},{"$f":"'[2]5.2 Asset Age Profile'!DS68","v":0},{"$f":"'[2]5.2 Asset Age Profile'!DT68","v":0},{"$f":"'[2]5.2 Asset Age Profile'!DU68","v":0},{"$f":"'[2]5.2 Asset Age Profile'!DV68","v":0},{"$f":"'[2]5.2 Asset Age Profile'!DW68","v":0},{"$f":"'[2]5.2 Asset Age Profile'!DX68","v":0},{"$f":"'[2]5.2 Asset Age Profile'!DY68","v":0},{"$f":"'[2]5.2 Asset Age Profile'!DZ68","v":0},{"$f":"'[2]5.2 Asset Age Profile'!EA68","v":0},{"$f":"'[2]5.2 Asset Age Profile'!EB68","v":0},{"$f":"'[2]5.2 Asset Age Profile'!EC68","v":0},{"$f":"'[2]5.2 Asset Age Profile'!ED68","v":0},{"$f":"'[2]5.2 Asset Age Profile'!EE68","v":0},{"$f":"'[2]5.2 Asset Age Profile'!EF68","v":0},{"$f":"'[2]5.2 Asset Age Profile'!EG68","v":0},{"$f":"'[2]5.2 Asset Age Profile'!EH68","v":0},{"$f":"'[2]5.2 Asset Age Profile'!EI68","v":0},{"$f":"'[2]5.2 Asset Age Profile'!EJ68","v":0}]
["ED_ASS521_00059",null,"> 132 kV ; Subdivision  ",null,null,null,null,null,null,null,null,null,null,{"$f":"'[2]5.2 Asset Age Profile'!N69","v":54.9},{"$f":"'[2]5.2 Asset Age Profile'!O69","v":0},{"$f":"'[2]5.2 Asset Age Profile'!P69","v":0},{"$f":"'[2]5.2 Asset Age Profile'!Q69","v":0},{"$f":"'[2]5.2 Asset Age Profile'!R69","v":0},{"$f":"'[2]5.2 Asset Age Profile'!S69","v":0},{"$f":"'[2]5.2 Asset Age Profile'!T69","v":0},{"$f":"'[2]5.2 Asset Age Profile'!U69","v":0},{"$f":"'[2]5.2 Asset Age Profile'!V69","v":0},{"$f":"'[2]5.2 Asset Age Profile'!W69","v":0},{"$f":"'[2]5.2 Asset Age Profile'!X69","v":0},{"$f":"'[2]5.2 Asset Age Profile'!Y69","v":7.4094534211370817},{"$f":"'[2]5.2 Asset Age Profile'!Z69","v":0},{"$f":"'[2]5.2 Asset Age Profile'!AA69","v":0},{"$f":"'[2]5.2 Asset Age Profile'!AB69","v":0},{"$f":"'[2]5.2 Asset Age Profile'!AC69","v":0},{"$f":"'[2]5.2 Asset Age Profile'!AD69","v":0},{"$f":"'[2]5.2 Asset Age Profile'!AE69","v":0},{"$f":"'[2]5.2 Asset Age Profile'!AF69","v":0},{"$f":"'[2]5.2 Asset Age Profile'!AG69","v":0},{"$f":"'[2]5.2 Asset Age Profile'!AH69","v":0},{"$f":"'[2]5.2 Asset Age Profile'!AI69","v":0},{"$f":"'[2]5.2 Asset Age Profile'!AJ69","v":0},{"$f":"'[2]5.2 Asset Age Profile'!AK69","v":0},{"$f":"'[2]5.2 Asset Age Profile'!AL69","v":0},{"$f":"'[2]5.2 Asset Age Profile'!AM69","v":0},{"$f":"'[2]5.2 Asset Age Profile'!AN69","v":0},{"$f":"'[2]5.2 Asset Age Profile'!AO69","v":0},{"$f":"'[2]5.2 Asset Age Profile'!AP69","v":0},{"$f":"'[2]5.2 Asset Age Profile'!AQ69","v":0},{"$f":"'[2]5.2 Asset Age Profile'!AR69","v":0},{"$f":"'[2]5.2 Asset Age Profile'!AS69","v":0},{"$f":"'[2]5.2 Asset Age Profile'!AT69","v":0},{"$f":"'[2]5.2 Asset Age Profile'!AU69","v":0},{"$f":"'[2]5.2 Asset Age Profile'!AV69","v":0},{"$f":"'[2]5.2 Asset Age Profile'!AW69","v":0},{"$f":"'[2]5.2 Asset Age Profile'!AX69","v":0},{"$f":"'[2]5.2 Asset Age Profile'!AY69","v":0},{"$f":"'[2]5.2 Asset Age Profile'!AZ69","v":0},{"$f":"'[2]5.2 Asset Age Profile'!BA69","v":0},{"$f":"'[2]5.2 Asset Age Profile'!BB69","v":0},{"$f":"'[2]5.2 Asset Age Profile'!BC69","v":0},{"$f":"'[2]5.2 Asset Age Profile'!BD69","v":0},{"$f":"'[2]5.2 Asset Age Profile'!BE69","v":0},{"$f":"'[2]5.2 Asset Age Profile'!BF69","v":0},{"$f":"'[2]5.2 Asset Age Profile'!BG69","v":0},{"$f":"'[2]5.2 Asset Age Profile'!BH69","v":0},{"$f":"'[2]5.2 Asset Age Profile'!BI69","v":0},{"$f":"'[2]5.2 Asset Age Profile'!BJ69","v":0},{"$f":"'[2]5.2 Asset Age Profile'!BK69","v":0},{"$f":"'[2]5.2 Asset Age Profile'!BL69","v":0},{"$f":"'[2]5.2 Asset Age Profile'!BM69","v":0},{"$f":"'[2]5.2 Asset Age Profile'!BN69","v":0},{"$f":"'[2]5.2 Asset Age Profile'!BO69","v":0},{"$f":"'[2]5.2 Asset Age Profile'!BP69","v":0},{"$f":"'[2]5.2 Asset Age Profile'!BQ69","v":0},{"$f":"'[2]5.2 Asset Age Profile'!BR69","v":0},{"$f":"'[2]5.2 Asset Age Profile'!BS69","v":0},{"$f":"'[2]5.2 Asset Age Profile'!BT69","v":0},{"$f":"'[2]5.2 Asset Age Profile'!BU69","v":0},{"$f":"'[2]5.2 Asset Age Profile'!BV69","v":0},{"$f":"'[2]5.2 Asset Age Profile'!BW69","v":0},{"$f":"'[2]5.2 Asset Age Profile'!BX69","v":0},{"$f":"'[2]5.2 Asset Age Profile'!BY69","v":0},{"$f":"'[2]5.2 Asset Age Profile'!BZ69","v":0},{"$f":"'[2]5.2 Asset Age Profile'!CA69","v":0},{"$f":"'[2]5.2 Asset Age Profile'!CB69","v":0},{"$f":"'[2]5.2 Asset Age Profile'!CC69","v":0},{"$f":"'[2]5.2 Asset Age Profile'!CD69","v":0},{"$f":"'[2]5.2 Asset Age Profile'!CE69","v":0},{"$f":"'[2]5.2 Asset Age Profile'!CF69","v":0},{"$f":"'[2]5.2 Asset Age Profile'!CG69","v":0},{"$f":"'[2]5.2 Asset Age Profile'!CH69","v":0},{"$f":"'[2]5.2 Asset Age Profile'!CI69","v":0},{"$f":"'[2]5.2 Asset Age Profile'!CJ69","v":0},{"$f":"'[2]5.2 Asset Age Profile'!CK69","v":0},{"$f":"'[2]5.2 Asset Age Profile'!CL69","v":0},{"$f":"'[2]5.2 Asset Age Profile'!CM69","v":0},{"$f":"'[2]5.2 Asset Age Profile'!CN69","v":0},{"$f":"'[2]5.2 Asset Age Profile'!CO69","v":0},{"$f":"'[2]5.2 Asset Age Profile'!CP69","v":0},{"$f":"'[2]5.2 Asset Age Profile'!CQ69","v":0},{"$f":"'[2]5.2 Asset Age Profile'!CR69","v":0},{"$f":"'[2]5.2 Asset Age Profile'!CS69","v":0},{"$f":"'[2]5.2 Asset Age Profile'!CT69","v":0},{"$f":"'[2]5.2 Asset Age Profile'!CU69","v":0},{"$f":"'[2]5.2 Asset Age Profile'!CV69","v":0},{"$f":"'[2]5.2 Asset Age Profile'!CW69","v":0},{"$f":"'[2]5.2 Asset Age Profile'!CX69","v":0},{"$f":"'[2]5.2 Asset Age Profile'!CY69","v":0},{"$f":"'[2]5.2 Asset Age Profile'!CZ69","v":0},{"$f":"'[2]5.2 Asset Age Profile'!DA69","v":0},{"$f":"'[2]5.2 Asset Age Profile'!DB69","v":0},{"$f":"'[2]5.2 Asset Age Profile'!DC69","v":0},{"$f":"'[2]5.2 Asset Age Profile'!DD69","v":0},{"$f":"'[2]5.2 Asset Age Profile'!DE69","v":0},{"$f":"'[2]5.2 Asset Age Profile'!DF69","v":0},{"$f":"'[2]5.2 Asset Age Profile'!DG69","v":0},{"$f":"'[2]5.2 Asset Age Profile'!DH69","v":0},{"$f":"'[2]5.2 Asset Age Profile'!DI69","v":0},{"$f":"'[2]5.2 Asset Age Profile'!DJ69","v":0},{"$f":"'[2]5.2 Asset Age Profile'!DK69","v":0},{"$f":"'[2]5.2 Asset Age Profile'!DL69","v":0},{"$f":"'[2]5.2 Asset Age Profile'!DM69","v":0},{"$f":"'[2]5.2 Asset Age Profile'!DN69","v":0},{"$f":"'[2]5.2 Asset Age Profile'!DO69","v":0},{"$f":"'[2]5.2 Asset Age Profile'!DP69","v":0},{"$f":"'[2]5.2 Asset Age Profile'!DQ69","v":0},{"$f":"'[2]5.2 Asset Age Profile'!DR69","v":0},{"$f":"'[2]5.2 Asset Age Profile'!DS69","v":0},{"$f":"'[2]5.2 Asset Age Profile'!DT69","v":0},{"$f":"'[2]5.2 Asset Age Profile'!DU69","v":0},{"$f":"'[2]5.2 Asset Age Profile'!DV69","v":0},{"$f":"'[2]5.2 Asset Age Profile'!DW69","v":0},{"$f":"'[2]5.2 Asset Age Profile'!DX69","v":0},{"$f":"'[2]5.2 Asset Age Profile'!DY69","v":0},{"$f":"'[2]5.2 Asset Age Profile'!DZ69","v":0},{"$f":"'[2]5.2 Asset Age Profile'!EA69","v":0},{"$f":"'[2]5.2 Asset Age Profile'!EB69","v":0},{"$f":"'[2]5.2 Asset Age Profile'!EC69","v":0},{"$f":"'[2]5.2 Asset Age Profile'!ED69","v":0},{"$f":"'[2]5.2 Asset Age Profile'!EE69","v":0},{"$f":"'[2]5.2 Asset Age Profile'!EF69","v":0},{"$f":"'[2]5.2 Asset Age Profile'!EG69","v":0},{"$f":"'[2]5.2 Asset Age Profile'!EH69","v":0},{"$f":"'[2]5.2 Asset Age Profile'!EI69","v":0},{"$f":"'[2]5.2 Asset Age Profile'!EJ69","v":0}]
["ED_ASS521_00060",null,"Other",null,"DNSP NAME","REPEX","SERVICE LINES","Other","DESCRIPTOR METRIC","MEAN ECONOMIC LIFE","YEARS","NUMBER",null,{"$f":"'[2]5.2 Asset Age Profile'!N70","v":0},{"$f":"'[2]5.2 Asset Age Profile'!O70","v":0},{"$f":"'[2]5.2 Asset Age Profile'!P70","v":0},{"$f":"'[2]5.2 Asset Age Profile'!Q70","v":0},{"$f":"'[2]5.2 Asset Age Profile'!R70","v":0},{"$f":"'[2]5.2 Asset Age Profile'!S70","v":0},{"$f":"'[2]5.2 Asset Age Profile'!T70","v":0},{"$f":"'[2]5.2 Asset Age Profile'!U70","v":0},{"$f":"'[2]5.2 Asset Age Profile'!V70","v":0},{"$f":"'[2]5.2 Asset Age Profile'!W70","v":0},{"$f":"'[2]5.2 Asset Age Profile'!X70","v":0},{"$f":"'[2]5.2 Asset Age Profile'!Y70","v":0},{"$f":"'[2]5.2 Asset Age Profile'!Z70","v":0},{"$f":"'[2]5.2 Asset Age Profile'!AA70","v":0},{"$f":"'[2]5.2 Asset Age Profile'!AB70","v":0},{"$f":"'[2]5.2 Asset Age Profile'!AC70","v":0},{"$f":"'[2]5.2 Asset Age Profile'!AD70","v":0},{"$f":"'[2]5.2 Asset Age Profile'!AE70","v":0},{"$f":"'[2]5.2 Asset Age Profile'!AF70","v":0},{"$f":"'[2]5.2 Asset Age Profile'!AG70","v":0},{"$f":"'[2]5.2 Asset Age Profile'!AH70","v":0},{"$f":"'[2]5.2 Asset Age Profile'!AI70","v":0},{"$f":"'[2]5.2 Asset Age Profile'!AJ70","v":0},{"$f":"'[2]5.2 Asset Age Profile'!AK70","v":0},{"$f":"'[2]5.2 Asset Age Profile'!AL70","v":0},{"$f":"'[2]5.2 Asset Age Profile'!AM70","v":0},{"$f":"'[2]5.2 Asset Age Profile'!AN70","v":0},{"$f":"'[2]5.2 Asset Age Profile'!AO70","v":0},{"$f":"'[2]5.2 Asset Age Profile'!AP70","v":0},{"$f":"'[2]5.2 Asset Age Profile'!AQ70","v":0},{"$f":"'[2]5.2 Asset Age Profile'!AR70","v":0},{"$f":"'[2]5.2 Asset Age Profile'!AS70","v":0},{"$f":"'[2]5.2 Asset Age Profile'!AT70","v":0},{"$f":"'[2]5.2 Asset Age Profile'!AU70","v":0},{"$f":"'[2]5.2 Asset Age Profile'!AV70","v":0},{"$f":"'[2]5.2 Asset Age Profile'!AW70","v":0},{"$f":"'[2]5.2 Asset Age Profile'!AX70","v":0},{"$f":"'[2]5.2 Asset Age Profile'!AY70","v":0},{"$f":"'[2]5.2 Asset Age Profile'!AZ70","v":0},{"$f":"'[2]5.2 Asset Age Profile'!BA70","v":0},{"$f":"'[2]5.2 Asset Age Profile'!BB70","v":0},{"$f":"'[2]5.2 Asset Age Profile'!BC70","v":0},{"$f":"'[2]5.2 Asset Age Profile'!BD70","v":0},{"$f":"'[2]5.2 Asset Age Profile'!BE70","v":0},{"$f":"'[2]5.2 Asset Age Profile'!BF70","v":0},{"$f":"'[2]5.2 Asset Age Profile'!BG70","v":0},{"$f":"'[2]5.2 Asset Age Profile'!BH70","v":0},{"$f":"'[2]5.2 Asset Age Profile'!BI70","v":0},{"$f":"'[2]5.2 Asset Age Profile'!BJ70","v":0},{"$f":"'[2]5.2 Asset Age Profile'!BK70","v":0},{"$f":"'[2]5.2 Asset Age Profile'!BL70","v":0},{"$f":"'[2]5.2 Asset Age Profile'!BM70","v":0},{"$f":"'[2]5.2 Asset Age Profile'!BN70","v":0},{"$f":"'[2]5.2 Asset Age Profile'!BO70","v":0},{"$f":"'[2]5.2 Asset Age Profile'!BP70","v":0},{"$f":"'[2]5.2 Asset Age Profile'!BQ70","v":0},{"$f":"'[2]5.2 Asset Age Profile'!BR70","v":0},{"$f":"'[2]5.2 Asset Age Profile'!BS70","v":0},{"$f":"'[2]5.2 Asset Age Profile'!BT70","v":0},{"$f":"'[2]5.2 Asset Age Profile'!BU70","v":0},{"$f":"'[2]5.2 Asset Age Profile'!BV70","v":0},{"$f":"'[2]5.2 Asset Age Profile'!BW70","v":0},{"$f":"'[2]5.2 Asset Age Profile'!BX70","v":0},{"$f":"'[2]5.2 Asset Age Profile'!BY70","v":0},{"$f":"'[2]5.2 Asset Age Profile'!BZ70","v":0},{"$f":"'[2]5.2 Asset Age Profile'!CA70","v":0},{"$f":"'[2]5.2 Asset Age Profile'!CB70","v":0},{"$f":"'[2]5.2 Asset Age Profile'!CC70","v":0},{"$f":"'[2]5.2 Asset Age Profile'!CD70","v":0},{"$f":"'[2]5.2 Asset Age Profile'!CE70","v":0},{"$f":"'[2]5.2 Asset Age Profile'!CF70","v":0},{"$f":"'[2]5.2 Asset Age Profile'!CG70","v":0},{"$f":"'[2]5.2 Asset Age Profile'!CH70","v":0},{"$f":"'[2]5.2 Asset Age Profile'!CI70","v":0},{"$f":"'[2]5.2 Asset Age Profile'!CJ70","v":0},{"$f":"'[2]5.2 Asset Age Profile'!CK70","v":0},{"$f":"'[2]5.2 Asset Age Profile'!CL70","v":0},{"$f":"'[2]5.2 Asset Age Profile'!CM70","v":0},{"$f":"'[2]5.2 Asset Age Profile'!CN70","v":0},{"$f":"'[2]5.2 Asset Age Profile'!CO70","v":0},{"$f":"'[2]5.2 Asset Age Profile'!CP70","v":0},{"$f":"'[2]5.2 Asset Age Profile'!CQ70","v":0},{"$f":"'[2]5.2 Asset Age Profile'!CR70","v":0},{"$f":"'[2]5.2 Asset Age Profile'!CS70","v":0},{"$f":"'[2]5.2 Asset Age Profile'!CT70","v":0},{"$f":"'[2]5.2 Asset Age Profile'!CU70","v":0},{"$f":"'[2]5.2 Asset Age Profile'!CV70","v":0},{"$f":"'[2]5.2 Asset Age Profile'!CW70","v":0},{"$f":"'[2]5.2 Asset Age Profile'!CX70","v":0},{"$f":"'[2]5.2 Asset Age Profile'!CY70","v":0},{"$f":"'[2]5.2 Asset Age Profile'!CZ70","v":0},{"$f":"'[2]5.2 Asset Age Profile'!DA70","v":0},{"$f":"'[2]5.2 Asset Age Profile'!DB70","v":0},{"$f":"'[2]5.2 Asset Age Profile'!DC70","v":0},{"$f":"'[2]5.2 Asset Age Profile'!DD70","v":0},{"$f":"'[2]5.2 Asset Age Profile'!DE70","v":0},{"$f":"'[2]5.2 Asset Age Profile'!DF70","v":0},{"$f":"'[2]5.2 Asset Age Profile'!DG70","v":0},{"$f":"'[2]5.2 Asset Age Profile'!DH70","v":0},{"$f":"'[2]5.2 Asset Age Profile'!DI70","v":0},{"$f":"'[2]5.2 Asset Age Profile'!DJ70","v":0},{"$f":"'[2]5.2 Asset Age Profile'!DK70","v":0},{"$f":"'[2]5.2 Asset Age Profile'!DL70","v":0},{"$f":"'[2]5.2 Asset Age Profile'!DM70","v":0},{"$f":"'[2]5.2 Asset Age Profile'!DN70","v":0},{"$f":"'[2]5.2 Asset Age Profile'!DO70","v":0},{"$f":"'[2]5.2 Asset Age Profile'!DP70","v":0},{"$f":"'[2]5.2 Asset Age Profile'!DQ70","v":0},{"$f":"'[2]5.2 Asset Age Profile'!DR70","v":0},{"$f":"'[2]5.2 Asset Age Profile'!DS70","v":0},{"$f":"'[2]5.2 Asset Age Profile'!DT70","v":0},{"$f":"'[2]5.2 Asset Age Profile'!DU70","v":0},{"$f":"'[2]5.2 Asset Age Profile'!DV70","v":0},{"$f":"'[2]5.2 Asset Age Profile'!DW70","v":0},{"$f":"'[2]5.2 Asset Age Profile'!DX70","v":0},{"$f":"'[2]5.2 Asset Age Profile'!DY70","v":0},{"$f":"'[2]5.2 Asset Age Profile'!DZ70","v":0},{"$f":"'[2]5.2 Asset Age Profile'!EA70","v":0},{"$f":"'[2]5.2 Asset Age Profile'!EB70","v":0},{"$f":"'[2]5.2 Asset Age Profile'!EC70","v":0},{"$f":"'[2]5.2 Asset Age Profile'!ED70","v":0},{"$f":"'[2]5.2 Asset Age Profile'!EE70","v":0},{"$f":"'[2]5.2 Asset Age Profile'!EF70","v":0},{"$f":"'[2]5.2 Asset Age Profile'!EG70","v":0},{"$f":"'[2]5.2 Asset Age Profile'!EH70","v":0},{"$f":"'[2]5.2 Asset Age Profile'!EI70","v":0},{"$f":"'[2]5.2 Asset Age Profile'!EJ70","v":0}]
["ED_ASS521_00061","TRANSFORMERS BY: \nMOUNTING TYPE; HIGHEST OPERATING VOLTAGE ; AMPERE RATING; NUMBER OF PHASES (AT LV)","Pole Mounted ; < = 22kV ;  < = 60 kVA ; Single Phase",null,"DNSP NAME","REPEX","TRANSFORMERS","Pole Mounted ; < = 22kV ;  < = 60 kVA ; Single Phase","DESCRIPTOR METRIC","MEAN ECONOMIC LIFE","YEARS","NUMBER",null,{"$f":"'[2]5.2 Asset Age Profile'!N71","v":45.8},{"$f":"'[2]5.2 Asset Age Profile'!O71","v":0},{"$f":"'[2]5.2 Asset Age Profile'!P71","v":0},{"$f":"'[2]5.2 Asset Age Profile'!Q71","v":0},{"$f":"'[2]5.2 Asset Age Profile'!R71","v":0},{"$f":"'[2]5.2 Asset Age Profile'!S71","v":0},{"$f":"'[2]5.2 Asset Age Profile'!T71","v":0},{"$f":"'[2]5.2 Asset Age Profile'!U71","v":0},{"$f":"'[2]5.2 Asset Age Profile'!V71","v":0},{"$f":"'[2]5.2 Asset Age Profile'!W71","v":0},{"$f":"'[2]5.2 Asset Age Profile'!X71","v":0},{"$f":"'[2]5.2 Asset Age Profile'!Y71","v":6.7675697262754522},{"$f":"'[2]5.2 Asset Age Profile'!Z71","v":0},{"$f":"'[2]5.2 Asset Age Profile'!AA71","v":0},{"$f":"'[2]5.2 Asset Age Profile'!AB71","v":0},{"$f":"'[2]5.2 Asset Age Profile'!AC71","v":0},{"$f":"'[2]5.2 Asset Age Profile'!AD71","v":0},{"$f":"'[2]5.2 Asset Age Profile'!AE71","v":0},{"$f":"'[2]5.2 Asset Age Profile'!AF71","v":0},{"$f":"'[2]5.2 Asset Age Profile'!AG71","v":0},{"$f":"'[2]5.2 Asset Age Profile'!AH71","v":0},{"$f":"'[2]5.2 Asset Age Profile'!AI71","v":0},{"$f":"'[2]5.2 Asset Age Profile'!AJ71","v":538},{"$f":"'[2]5.2 Asset Age Profile'!AK71","v":1053},{"$f":"'[2]5.2 Asset Age Profile'!AL71","v":1111},{"$f":"'[2]5.2 Asset Age Profile'!AM71","v":1433},{"$f":"'[2]5.2 Asset Age Profile'!AN71","v":1485},{"$f":"'[2]5.2 Asset Age Profile'!AO71","v":1407},{"$f":"'[2]5.2 Asset Age Profile'!AP71","v":1568},{"$f":"'[2]5.2 Asset Age Profile'!AQ71","v":1513},{"$f":"'[2]5.2 Asset Age Profile'!AR71","v":1527},{"$f":"'[2]5.2 Asset Age Profile'!AS71","v":1897},{"$f":"'[2]5.2 Asset Age Profile'!AT71","v":2022},{"$f":"'[2]5.2 Asset Age Profile'!AU71","v":2143},{"$f":"'[2]5.2 Asset Age Profile'!AV71","v":1913},{"$f":"'[2]5.2 Asset Age Profile'!AW71","v":1553},{"$f":"'[2]5.2 Asset Age Profile'!AX71","v":2144},{"$f":"'[2]5.2 Asset Age Profile'!AY71","v":1329},{"$f":"'[2]5.2 Asset Age Profile'!AZ71","v":1032},{"$f":"'[2]5.2 Asset Age Profile'!BA71","v":1049},{"$f":"'[2]5.2 Asset Age Profile'!BB71","v":977},{"$f":"'[2]5.2 Asset Age Profile'!BC71","v":1343},{"$f":"'[2]5.2 Asset Age Profile'!BD71","v":1547},{"$f":"'[2]5.2 Asset Age Profile'!BE71","v":2031},{"$f":"'[2]5.2 Asset Age Profile'!BF71","v":1698},{"$f":"'[2]5.2 Asset Age Profile'!BG71","v":2080},{"$f":"'[2]5.2 Asset Age Profile'!BH71","v":1849},{"$f":"'[2]5.2 Asset Age Profile'!BI71","v":1968},{"$f":"'[2]5.2 Asset Age Profile'!BJ71","v":2154},{"$f":"'[2]5.2 Asset Age Profile'!BK71","v":1764},{"$f":"'[2]5.2 Asset Age Profile'!BL71","v":1665},{"$f":"'[2]5.2 Asset Age Profile'!BM71","v":1764},{"$f":"'[2]5.2 Asset Age Profile'!BN71","v":1491},{"$f":"'[2]5.2 Asset Age Profile'!BO71","v":1298},{"$f":"'[2]5.2 Asset Age Profile'!BP71","v":1240},{"$f":"'[2]5.2 Asset Age Profile'!BQ71","v":1677},{"$f":"'[2]5.2 Asset Age Profile'!BR71","v":1755},{"$f":"'[2]5.2 Asset Age Profile'!BS71","v":1739},{"$f":"'[2]5.2 Asset Age Profile'!BT71","v":1209},{"$f":"'[2]5.2 Asset Age Profile'!BU71","v":1193},{"$f":"'[2]5.2 Asset Age Profile'!BV71","v":1193},{"$f":"'[2]5.2 Asset Age Profile'!BW71","v":1130},{"$f":"'[2]5.2 Asset Age Profile'!BX71","v":1108},{"$f":"'[2]5.2 Asset Age Profile'!BY71","v":844},{"$f":"'[2]5.2 Asset Age Profile'!BZ71","v":787},{"$f":"'[2]5.2 Asset Age Profile'!CA71","v":809},{"$f":"'[2]5.2 Asset Age Profile'!CB71","v":859},{"$f":"'[2]5.2 Asset Age Profile'!CC71","v":1265},{"$f":"'[2]5.2 Asset Age Profile'!CD71","v":938},{"$f":"'[2]5.2 Asset Age Profile'!CE71","v":688},{"$f":"'[2]5.2 Asset Age Profile'!CF71","v":655},{"$f":"'[2]5.2 Asset Age Profile'!CG71","v":1429},{"$f":"'[2]5.2 Asset Age Profile'!CH71","v":972},{"$f":"'[2]5.2 Asset Age Profile'!CI71","v":492},{"$f":"'[2]5.2 Asset Age Profile'!CJ71","v":648},{"$f":"'[2]5.2 Asset Age Profile'!CK71","v":568},{"$f":"'[2]5.2 Asset Age Profile'!CL71","v":1789},{"$f":"'[2]5.2 Asset Age Profile'!CM71","v":1966},{"$f":"'[2]5.2 Asset Age Profile'!CN71","v":493},{"$f":"'[2]5.2 Asset Age Profile'!CO71","v":335},{"$f":"'[2]5.2 Asset Age Profile'!CP71","v":372},{"$f":"'[2]5.2 Asset Age Profile'!CQ71","v":393},{"$f":"'[2]5.2 Asset Age Profile'!CR71","v":784},{"$f":"'[2]5.2 Asset Age Profile'!CS71","v":216},{"$f":"'[2]5.2 Asset Age Profile'!CT71","v":129},{"$f":"'[2]5.2 Asset Age Profile'!CU71","v":128},{"$f":"'[2]5.2 Asset Age Profile'!CV71","v":38},{"$f":"'[2]5.2 Asset Age Profile'!CW71","v":1056},{"$f":"'[2]5.2 Asset Age Profile'!CX71","v":43},{"$f":"'[2]5.2 Asset Age Profile'!CY71","v":42},{"$f":"'[2]5.2 Asset Age Profile'!CZ71","v":58},{"$f":"'[2]5.2 Asset Age Profile'!DA71","v":115},{"$f":"'[2]5.2 Asset Age Profile'!DB71","v":15},{"$f":"'[2]5.2 Asset Age Profile'!DC71","v":21},{"$f":"'[2]5.2 Asset Age Profile'!DD71","v":11},{"$f":"'[2]5.2 Asset Age Profile'!DE71","v":12},{"$f":"'[2]5.2 Asset Age Profile'!DF71","v":16},{"$f":"'[2]5.2 Asset Age Profile'!DG71","v":50},{"$f":"'[2]5.2 Asset Age Profile'!DH71","v":14},{"$f":"'[2]5.2 Asset Age Profile'!DI71","v":14},{"$f":"'[2]5.2 Asset Age Profile'!DJ71","v":19},{"$f":"'[2]5.2 Asset Age Profile'!DK71","v":13},{"$f":"'[2]5.2 Asset Age Profile'!DL71","v":6},{"$f":"'[2]5.2 Asset Age Profile'!DM71","v":2},{"$f":"'[2]5.2 Asset Age Profile'!DN71","v":4},{"$f":"'[2]5.2 Asset Age Profile'!DO71","v":15},{"$f":"'[2]5.2 Asset Age Profile'!DP71","v":4},{"$f":"'[2]5.2 Asset Age Profile'!DQ71","v":238},{"$f":"'[2]5.2 Asset Age Profile'!DR71","v":0},{"$f":"'[2]5.2 Asset Age Profile'!DS71","v":0},{"$f":"'[2]5.2 Asset Age Profile'!DT71","v":0},{"$f":"'[2]5.2 Asset Age Profile'!DU71","v":0},{"$f":"'[2]5.2 Asset Age Profile'!DV71","v":0},{"$f":"'[2]5.2 Asset Age Profile'!DW71","v":0},{"$f":"'[2]5.2 Asset Age Profile'!DX71","v":0},{"$f":"'[2]5.2 Asset Age Profile'!DY71","v":0},{"$f":"'[2]5.2 Asset Age Profile'!DZ71","v":0},{"$f":"'[2]5.2 Asset Age Profile'!EA71","v":3},{"$f":"'[2]5.2 Asset Age Profile'!EB71","v":0},{"$f":"'[2]5.2 Asset Age Profile'!EC71","v":0},{"$f":"'[2]5.2 Asset Age Profile'!ED71","v":0},{"$f":"'[2]5.2 Asset Age Profile'!EE71","v":0},{"$f":"'[2]5.2 Asset Age Profile'!EF71","v":1},{"$f":"'[2]5.2 Asset Age Profile'!EG71","v":0},{"$f":"'[2]5.2 Asset Age Profile'!EH71","v":0},{"$f":"'[2]5.2 Asset Age Profile'!EI71","v":0},{"$f":"'[2]5.2 Asset Age Profile'!EJ71","v":0}]
["ED_ASS521_00062",null,"Pole Mounted ; < = 22kV ;  > 60 kVA and < = 600 kVA ; Single Phase",null,"DNSP NAME","REPEX","TRANSFORMERS","Pole Mounted ; < = 22kV ;  > 60 kVA and < = 600 kVA ; Single Phase","DESCRIPTOR METRIC","MEAN ECONOMIC LIFE","YEARS","NUMBER",null,{"$f":"'[2]5.2 Asset Age Profile'!N72","v":45.8},{"$f":"'[2]5.2 Asset Age Profile'!O72","v":0},{"$f":"'[2]5.2 Asset Age Profile'!P72","v":0},{"$f":"'[2]5.2 Asset Age Profile'!Q72","v":0},{"$f":"'[2]5.2 Asset Age Profile'!R72","v":0},{"$f":"'[2]5.2 Asset Age Profile'!S72","v":0},{"$f":"'[2]5.2 Asset Age Profile'!T72","v":0},{"$f":"'[2]5.2 Asset Age Profile'!U72","v":0},{"$f":"'[2]5.2 Asset Age Profile'!V72","v":0},{"$f":"'[2]5.2 Asset Age Profile'!W72","v":0},{"$f":"'[2]5.2 Asset Age Profile'!X72","v":0},{"$f":"'[2]5.2 Asset Age Profile'!Y72","v":6.7675697262754522},{"$f":"'[2]5.2 Asset Age Profile'!Z72","v":0},{"$f":"'[2]5.2 Asset Age Profile'!AA72","v":0},{"$f":"'[2]5.2 Asset Age Profile'!AB72","v":0},{"$f":"'[2]5.2 Asset Age Profile'!AC72","v":0},{"$f":"'[2]5.2 Asset Age Profile'!AD72","v":0},{"$f":"'[2]5.2 Asset Age Profile'!AE72","v":0},{"$f":"'[2]5.2 Asset Age Profile'!AF72","v":0},{"$f":"'[2]5.2 Asset Age Profile'!AG72","v":0},{"$f":"'[2]5.2 Asset Age Profile'!AH72","v":0},{"$f":"'[2]5.2 Asset Age Profile'!AI72","v":0},{"$f":"'[2]5.2 Asset Age Profile'!AJ72","v":5},{"$f":"'[2]5.2 Asset Age Profile'!AK72","v":10},{"$f":"'[2]5.2 Asset Age Profile'!AL72","v":11},{"$f":"'[2]5.2 Asset Age Profile'!AM72","v":10},{"$f":"'[2]5.2 Asset Age Profile'!AN72","v":21},{"$f":"'[2]5.2 Asset Age Profile'!AO72","v":11},{"$f":"'[2]5.2 Asset Age Profile'!AP72","v":21},{"$f":"'[2]5.2 Asset Age Profile'!AQ72","v":18},{"$f":"'[2]5.2 Asset Age Profile'!AR72","v":20},{"$f":"'[2]5.2 Asset Age Profile'!AS72","v":31},{"$f":"'[2]5.2 Asset Age Profile'!AT72","v":41},{"$f":"'[2]5.2 Asset Age Profile'!AU72","v":95},{"$f":"'[2]5.2 Asset Age Profile'!AV72","v":58},{"$f":"'[2]5.2 Asset Age Profile'!AW72","v":32},{"$f":"'[2]5.2 Asset Age Profile'!AX72","v":43},{"$f":"'[2]5.2 Asset Age Profile'!AY72","v":39},{"$f":"'[2]5.2 Asset Age Profile'!AZ72","v":29},{"$f":"'[2]5.2 Asset Age Profile'!BA72","v":42},{"$f":"'[2]5.2 Asset Age Profile'!BB72","v":38},{"$f":"'[2]5.2 Asset Age Profile'!BC72","v":40},{"$f":"'[2]5.2 Asset Age Profile'!BD72","v":37},{"$f":"'[2]5.2 Asset Age Profile'!BE72","v":31},{"$f":"'[2]5.2 Asset Age Profile'!BF72","v":18},{"$f":"'[2]5.2 Asset Age Profile'!BG72","v":17},{"$f":"'[2]5.2 Asset Age Profile'!BH72","v":17},{"$f":"'[2]5.2 Asset Age Profile'!BI72","v":13},{"$f":"'[2]5.2 Asset Age Profile'!BJ72","v":14},{"$f":"'[2]5.2 Asset Age Profile'!BK72","v":10},{"$f":"'[2]5.2 Asset Age Profile'!BL72","v":11},{"$f":"'[2]5.2 Asset Age Profile'!BM72","v":9},{"$f":"'[2]5.2 Asset Age Profile'!BN72","v":9},{"$f":"'[2]5.2 Asset Age Profile'!BO72","v":11},{"$f":"'[2]5.2 Asset Age Profile'!BP72","v":4},{"$f":"'[2]5.2 Asset Age Profile'!BQ72","v":8},{"$f":"'[2]5.2 Asset Age Profile'!BR72","v":6},{"$f":"'[2]5.2 Asset Age Profile'!BS72","v":7},{"$f":"'[2]5.2 Asset Age Profile'!BT72","v":4},{"$f":"'[2]5.2 Asset Age Profile'!BU72","v":5},{"$f":"'[2]5.2 Asset Age Profile'!BV72","v":5},{"$f":"'[2]5.2 Asset Age Profile'!BW72","v":5},{"$f":"'[2]5.2 Asset Age Profile'!BX72","v":6},{"$f":"'[2]5.2 Asset Age Profile'!BY72","v":4},{"$f":"'[2]5.2 Asset Age Profile'!BZ72","v":3},{"$f":"'[2]5.2 Asset Age Profile'!CA72","v":8},{"$f":"'[2]5.2 Asset Age Profile'!CB72","v":6},{"$f":"'[2]5.2 Asset Age Profile'!CC72","v":9},{"$f":"'[2]5.2 Asset Age Profile'!CD72","v":2},{"$f":"'[2]5.2 Asset Age Profile'!CE72","v":7},{"$f":"'[2]5.2 Asset Age Profile'!CF72","v":7},{"$f":"'[2]5.2 Asset Age Profile'!CG72","v":12},{"$f":"'[2]5.2 Asset Age Profile'!CH72","v":5},{"$f":"'[2]5.2 Asset Age Profile'!CI72","v":2},{"$f":"'[2]5.2 Asset Age Profile'!CJ72","v":3},{"$f":"'[2]5.2 Asset Age Profile'!CK72","v":0},{"$f":"'[2]5.2 Asset Age Profile'!CL72","v":7},{"$f":"'[2]5.2 Asset Age Profile'!CM72","v":19},{"$f":"'[2]5.2 Asset Age Profile'!CN72","v":3},{"$f":"'[2]5.2 Asset Age Profile'!CO72","v":4},{"$f":"'[2]5.2 Asset Age Profile'!CP72","v":4},{"$f":"'[2]5.2 Asset Age Profile'!CQ72","v":2},{"$f":"'[2]5.2 Asset Age Profile'!CR72","v":2},{"$f":"'[2]5.2 Asset Age Profile'!CS72","v":1},{"$f":"'[2]5.2 Asset Age Profile'!CT72","v":0},{"$f":"'[2]5.2 Asset Age Profile'!CU72","v":0},{"$f":"'[2]5.2 Asset Age Profile'!CV72","v":1},{"$f":"'[2]5.2 Asset Age Profile'!CW72","v":12},{"$f":"'[2]5.2 Asset Age Profile'!CX72","v":1},{"$f":"'[2]5.2 Asset Age Profile'!CY72","v":0},{"$f":"'[2]5.2 Asset Age Profile'!CZ72","v":0},{"$f":"'[2]5.2 Asset Age Profile'!DA72","v":0},{"$f":"'[2]5.2 Asset Age Profile'!DB72","v":0},{"$f":"'[2]5.2 Asset Age Profile'!DC72","v":0},{"$f":"'[2]5.2 Asset Age Profile'!DD72","v":0},{"$f":"'[2]5.2 Asset Age Profile'!DE72","v":0},{"$f":"'[2]5.2 Asset Age Profile'!DF72","v":0},{"$f":"'[2]5.2 Asset Age Profile'!DG72","v":2},{"$f":"'[2]5.2 Asset Age Profile'!DH72","v":0},{"$f":"'[2]5.2 Asset Age Profile'!DI72","v":0},{"$f":"'[2]5.2 Asset Age Profile'!DJ72","v":0},{"$f":"'[2]5.2 Asset Age Profile'!DK72","v":0},{"$f":"'[2]5.2 Asset Age Profile'!DL72","v":0},{"$f":"'[2]5.2 Asset Age Profile'!DM72","v":0},{"$f":"'[2]5.2 Asset Age Profile'!DN72","v":0},{"$f":"'[2]5.2 Asset Age Profile'!DO72","v":0},{"$f":"'[2]5.2 Asset Age Profile'!DP72","v":0},{"$f":"'[2]5.2 Asset Age Profile'!DQ72","v":1},{"$f":"'[2]5.2 Asset Age Profile'!DR72","v":0},{"$f":"'[2]5.2 Asset Age Profile'!DS72","v":0},{"$f":"'[2]5.2 Asset Age Profile'!DT72","v":0},{"$f":"'[2]5.2 Asset Age Profile'!DU72","v":0},{"$f":"'[2]5.2 Asset Age Profile'!DV72","v":0},{"$f":"'[2]5.2 Asset Age Profile'!DW72","v":0},{"$f":"'[2]5.2 Asset Age Profile'!DX72","v":0},{"$f":"'[2]5.2 Asset Age Profile'!DY72","v":0},{"$f":"'[2]5.2 Asset Age Profile'!DZ72","v":0},{"$f":"'[2]5.2 Asset Age Profile'!EA72","v":0},{"$f":"'[2]5.2 Asset Age Profile'!EB72","v":0},{"$f":"'[2]5.2 Asset Age Profile'!EC72","v":0},{"$f":"'[2]5.2 Asset Age Profile'!ED72","v":0},{"$f":"'[2]5.2 Asset Age Profile'!EE72","v":0},{"$f":"'[2]5.2 Asset Age Profile'!EF72","v":0},{"$f":"'[2]5.2 Asset Age Profile'!EG72","v":0},{"$f":"'[2]5.2 Asset Age Profile'!EH72","v":0},{"$f":"'[2]5.2 Asset Age Profile'!EI72","v":0},{"$f":"'[2]5.2 Asset Age Profile'!EJ72","v":0}]
["ED_ASS521_00063",null,"Pole Mounted ; < = 22kV ;  > 600 kVA ; Single Phase",null,"DNSP NAME","REPEX","TRANSFORMERS","Pole Mounted ; < = 22kV ;  > 600 kVA ; Single Phase","DESCRIPTOR METRIC","MEAN ECONOMIC LIFE","YEARS","NUMBER",null,{"$f":"'[2]5.2 Asset Age Profile'!N73","v":45.8},{"$f":"'[2]5.2 Asset Age Profile'!O73","v":0},{"$f":"'[2]5.2 Asset Age Profile'!P73","v":0},{"$f":"'[2]5.2 Asset Age Profile'!Q73","v":0},{"$f":"'[2]5.2 Asset Age Profile'!R73","v":0},{"$f":"'[2]5.2 Asset Age Profile'!S73","v":0},{"$f":"'[2]5.2 Asset Age Profile'!T73","v":0},{"$f":"'[2]5.2 Asset Age Profile'!U73","v":0},{"$f":"'[2]5.2 Asset Age Profile'!V73","v":0},{"$f":"'[2]5.2 Asset Age Profile'!W73","v":0},{"$f":"'[2]5.2 Asset Age Profile'!X73","v":0},{"$f":"'[2]5.2 Asset Age Profile'!Y73","v":6.7675697262754522},{"$f":"'[2]5.2 Asset Age Profile'!Z73","v":0},{"$f":"'[2]5.2 Asset Age Profile'!AA73","v":0},{"$f":"'[2]5.2 Asset Age Profile'!AB73","v":0},{"$f":"'[2]5.2 Asset Age Profile'!AC73","v":0},{"$f":"'[2]5.2 Asset Age Profile'!AD73","v":0},{"$f":"'[2]5.2 Asset Age Profile'!AE73","v":0},{"$f":"'[2]5.2 Asset Age Profile'!AF73","v":0},{"$f":"'[2]5.2 Asset Age Profile'!AG73","v":0},{"$f":"'[2]5.2 Asset Age Profile'!AH73","v":0},{"$f":"'[2]5.2 Asset Age Profile'!AI73","v":0},{"$f":"'[2]5.2 Asset Age Profile'!AJ73","v":0},{"$f":"'[2]5.2 Asset Age Profile'!AK73","v":0},{"$f":"'[2]5.2 Asset Age Profile'!AL73","v":1},{"$f":"'[2]5.2 Asset Age Profile'!AM73","v":0},{"$f":"'[2]5.2 Asset Age Profile'!AN73","v":0},{"$f":"'[2]5.2 Asset Age Profile'!AO73","v":0},{"$f":"'[2]5.2 Asset Age Profile'!AP73","v":0},{"$f":"'[2]5.2 Asset Age Profile'!AQ73","v":0},{"$f":"'[2]5.2 Asset Age Profile'!AR73","v":0},{"$f":"'[2]5.2 Asset Age Profile'!AS73","v":0},{"$f":"'[2]5.2 Asset Age Profile'!AT73","v":0},{"$f":"'[2]5.2 Asset Age Profile'!AU73","v":0},{"$f":"'[2]5.2 Asset Age Profile'!AV73","v":0},{"$f":"'[2]5.2 Asset Age Profile'!AW73","v":0},{"$f":"'[2]5.2 Asset Age Profile'!AX73","v":0},{"$f":"'[2]5.2 Asset Age Profile'!AY73","v":0},{"$f":"'[2]5.2 Asset Age Profile'!AZ73","v":0},{"$f":"'[2]5.2 Asset Age Profile'!BA73","v":0},{"$f":"'[2]5.2 Asset Age Profile'!BB73","v":0},{"$f":"'[2]5.2 Asset Age Profile'!BC73","v":0},{"$f":"'[2]5.2 Asset Age Profile'!BD73","v":0},{"$f":"'[2]5.2 Asset Age Profile'!BE73","v":0},{"$f":"'[2]5.2 Asset Age Profile'!BF73","v":1},{"$f":"'[2]5.2 Asset Age Profile'!BG73","v":0},{"$f":"'[2]5.2 Asset Age Profile'!BH73","v":0},{"$f":"'[2]5.2 Asset Age Profile'!BI73","v":0},{"$f":"'[2]5.2 Asset Age Profile'!BJ73","v":0},{"$f":"'[2]5.2 Asset Age Profile'!BK73","v":0},{"$f":"'[2]5.2 Asset Age Profile'!BL73","v":0},{"$f":"'[2]5.2 Asset Age Profile'!BM73","v":0},{"$f":"'[2]5.2 Asset Age Profile'!BN73","v":0},{"$f":"'[2]5.2 Asset Age Profile'!BO73","v":0},{"$f":"'[2]5.2 Asset Age Profile'!BP73","v":0},{"$f":"'[2]5.2 Asset Age Profile'!BQ73","v":0},{"$f":"'[2]5.2 Asset Age Profile'!BR73","v":0},{"$f":"'[2]5.2 Asset Age Profile'!BS73","v":0},{"$f":"'[2]5.2 Asset Age Profile'!BT73","v":0},{"$f":"'[2]5.2 Asset Age Profile'!BU73","v":0},{"$f":"'[2]5.2 Asset Age Profile'!BV73","v":0},{"$f":"'[2]5.2 Asset Age Profile'!BW73","v":0},{"$f":"'[2]5.2 Asset Age Profile'!BX73","v":0},{"$f":"'[2]5.2 Asset Age Profile'!BY73","v":0},{"$f":"'[2]5.2 Asset Age Profile'!BZ73","v":0},{"$f":"'[2]5.2 Asset Age Profile'!CA73","v":0},{"$f":"'[2]5.2 Asset Age Profile'!CB73","v":0},{"$f":"'[2]5.2 Asset Age Profile'!CC73","v":0},{"$f":"'[2]5.2 Asset Age Profile'!CD73","v":0},{"$f":"'[2]5.2 Asset Age Profile'!CE73","v":0},{"$f":"'[2]5.2 Asset Age Profile'!CF73","v":0},{"$f":"'[2]5.2 Asset Age Profile'!CG73","v":0},{"$f":"'[2]5.2 Asset Age Profile'!CH73","v":0},{"$f":"'[2]5.2 Asset Age Profile'!CI73","v":0},{"$f":"'[2]5.2 Asset Age Profile'!CJ73","v":0},{"$f":"'[2]5.2 Asset Age Profile'!CK73","v":0},{"$f":"'[2]5.2 Asset Age Profile'!CL73","v":0},{"$f":"'[2]5.2 Asset Age Profile'!CM73","v":0},{"$f":"'[2]5.2 Asset Age Profile'!CN73","v":0},{"$f":"'[2]5.2 Asset Age Profile'!CO73","v":0},{"$f":"'[2]5.2 Asset Age Profile'!CP73","v":0},{"$f":"'[2]5.2 Asset Age Profile'!CQ73","v":0},{"$f":"'[2]5.2 Asset Age Profile'!CR73","v":0},{"$f":"'[2]5.2 Asset Age Profile'!CS73","v":0},{"$f":"'[2]5.2 Asset Age Profile'!CT73","v":0},{"$f":"'[2]5.2 Asset Age Profile'!CU73","v":0},{"$f":"'[2]5.2 Asset Age Profile'!CV73","v":0},{"$f":"'[2]5.2 Asset Age Profile'!CW73","v":0},{"$f":"'[2]5.2 Asset Age Profile'!CX73","v":0},{"$f":"'[2]5.2 Asset Age Profile'!CY73","v":0},{"$f":"'[2]5.2 Asset Age Profile'!CZ73","v":0},{"$f":"'[2]5.2 Asset Age Profile'!DA73","v":0},{"$f":"'[2]5.2 Asset Age Profile'!DB73","v":0},{"$f":"'[2]5.2 Asset Age Profile'!DC73","v":0},{"$f":"'[2]5.2 Asset Age Profile'!DD73","v":0},{"$f":"'[2]5.2 Asset Age Profile'!DE73","v":0},{"$f":"'[2]5.2 Asset Age Profile'!DF73","v":0},{"$f":"'[2]5.2 Asset Age Profile'!DG73","v":0},{"$f":"'[2]5.2 Asset Age Profile'!DH73","v":0},{"$f":"'[2]5.2 Asset Age Profile'!DI73","v":0},{"$f":"'[2]5.2 Asset Age Profile'!DJ73","v":0},{"$f":"'[2]5.2 Asset Age Profile'!DK73","v":0},{"$f":"'[2]5.2 Asset Age Profile'!DL73","v":0},{"$f":"'[2]5.2 Asset Age Profile'!DM73","v":0},{"$f":"'[2]5.2 Asset Age Profile'!DN73","v":0},{"$f":"'[2]5.2 Asset Age Profile'!DO73","v":0},{"$f":"'[2]5.2 Asset Age Profile'!DP73","v":0},{"$f":"'[2]5.2 Asset Age Profile'!DQ73","v":0},{"$f":"'[2]5.2 Asset Age Profile'!DR73","v":0},{"$f":"'[2]5.2 Asset Age Profile'!DS73","v":0},{"$f":"'[2]5.2 Asset Age Profile'!DT73","v":0},{"$f":"'[2]5.2 Asset Age Profile'!DU73","v":0},{"$f":"'[2]5.2 Asset Age Profile'!DV73","v":0},{"$f":"'[2]5.2 Asset Age Profile'!DW73","v":0},{"$f":"'[2]5.2 Asset Age Profile'!DX73","v":0},{"$f":"'[2]5.2 Asset Age Profile'!DY73","v":0},{"$f":"'[2]5.2 Asset Age Profile'!DZ73","v":0},{"$f":"'[2]5.2 Asset Age Profile'!EA73","v":0},{"$f":"'[2]5.2 Asset Age Profile'!EB73","v":0},{"$f":"'[2]5.2 Asset Age Profile'!EC73","v":0},{"$f":"'[2]5.2 Asset Age Profile'!ED73","v":0},{"$f":"'[2]5.2 Asset Age Profile'!EE73","v":0},{"$f":"'[2]5.2 Asset Age Profile'!EF73","v":0},{"$f":"'[2]5.2 Asset Age Profile'!EG73","v":0},{"$f":"'[2]5.2 Asset Age Profile'!EH73","v":0},{"$f":"'[2]5.2 Asset Age Profile'!EI73","v":0},{"$f":"'[2]5.2 Asset Age Profile'!EJ73","v":0}]
["ED_ASS521_00064",null,"Pole Mounted ; < = 22kV ;  < = 60 kVA  ; Multiple Phase",null,"DNSP NAME","REPEX","TRANSFORMERS","Pole Mounted ; < = 22kV ;  < = 60 kVA  ; Multiple Phase","DESCRIPTOR METRIC","MEAN ECONOMIC LIFE","YEARS","NUMBER",null,{"$f":"'[2]5.2 Asset Age Profile'!N74","v":45.8},{"$f":"'[2]5.2 Asset Age Profile'!O74","v":0},{"$f":"'[2]5.2 Asset Age Profile'!P74","v":0},{"$f":"'[2]5.2 Asset Age Profile'!Q74","v":0},{"$f":"'[2]5.2 Asset Age Profile'!R74","v":0},{"$f":"'[2]5.2 Asset Age Profile'!S74","v":0},{"$f":"'[2]5.2 Asset Age Profile'!T74","v":0},{"$f":"'[2]5.2 Asset Age Profile'!U74","v":0},{"$f":"'[2]5.2 Asset Age Profile'!V74","v":0},{"$f":"'[2]5.2 Asset Age Profile'!W74","v":0},{"$f":"'[2]5.2 Asset Age Profile'!X74","v":0},{"$f":"'[2]5.2 Asset Age Profile'!Y74","v":6.7675697262754522},{"$f":"'[2]5.2 Asset Age Profile'!Z74","v":0},{"$f":"'[2]5.2 Asset Age Profile'!AA74","v":0},{"$f":"'[2]5.2 Asset Age Profile'!AB74","v":0},{"$f":"'[2]5.2 Asset Age Profile'!AC74","v":0},{"$f":"'[2]5.2 Asset Age Profile'!AD74","v":0},{"$f":"'[2]5.2 Asset Age Profile'!AE74","v":0},{"$f":"'[2]5.2 Asset Age Profile'!AF74","v":0},{"$f":"'[2]5.2 Asset Age Profile'!AG74","v":0},{"$f":"'[2]5.2 Asset Age Profile'!AH74","v":0},{"$f":"'[2]5.2 Asset Age Profile'!AI74","v":0},{"$f":"'[2]5.2 Asset Age Profile'!AJ74","v":138},{"$f":"'[2]5.2 Asset Age Profile'!AK74","v":312},{"$f":"'[2]5.2 Asset Age Profile'!AL74","v":253},{"$f":"'[2]5.2 Asset Age Profile'!AM74","v":343},{"$f":"'[2]5.2 Asset Age Profile'!AN74","v":352},{"$f":"'[2]5.2 Asset Age Profile'!AO74","v":292},{"$f":"'[2]5.2 Asset Age Profile'!AP74","v":315},{"$f":"'[2]5.2 Asset Age Profile'!AQ74","v":368},{"$f":"'[2]5.2 Asset Age Profile'!AR74","v":295},{"$f":"'[2]5.2 Asset Age Profile'!AS74","v":397},{"$f":"'[2]5.2 Asset Age Profile'!AT74","v":416},{"$f":"'[2]5.2 Asset Age Profile'!AU74","v":454},{"$f":"'[2]5.2 Asset Age Profile'!AV74","v":452},{"$f":"'[2]5.2 Asset Age Profile'!AW74","v":423},{"$f":"'[2]5.2 Asset Age Profile'!AX74","v":693},{"$f":"'[2]5.2 Asset Age Profile'!AY74","v":349},{"$f":"'[2]5.2 Asset Age Profile'!AZ74","v":291},{"$f":"'[2]5.2 Asset Age Profile'!BA74","v":266},{"$f":"'[2]5.2 Asset Age Profile'!BB74","v":264},{"$f":"'[2]5.2 Asset Age Profile'!BC74","v":419},{"$f":"'[2]5.2 Asset Age Profile'!BD74","v":530},{"$f":"'[2]5.2 Asset Age Profile'!BE74","v":780},{"$f":"'[2]5.2 Asset Age Profile'!BF74","v":586},{"$f":"'[2]5.2 Asset Age Profile'!BG74","v":589},{"$f":"'[2]5.2 Asset Age Profile'!BH74","v":652},{"$f":"'[2]5.2 Asset Age Profile'!BI74","v":543},{"$f":"'[2]5.2 Asset Age Profile'!BJ74","v":729},{"$f":"'[2]5.2 Asset Age Profile'!BK74","v":507},{"$f":"'[2]5.2 Asset Age Profile'!BL74","v":541},{"$f":"'[2]5.2 Asset Age Profile'!BM74","v":559},{"$f":"'[2]5.2 Asset Age Profile'!BN74","v":424},{"$f":"'[2]5.2 Asset Age Profile'!BO74","v":353},{"$f":"'[2]5.2 Asset Age Profile'!BP74","v":271},{"$f":"'[2]5.2 Asset Age Profile'!BQ74","v":575},{"$f":"'[2]5.2 Asset Age Profile'!BR74","v":494},{"$f":"'[2]5.2 Asset Age Profile'!BS74","v":536},{"$f":"'[2]5.2 Asset Age Profile'!BT74","v":274},{"$f":"'[2]5.2 Asset Age Profile'!BU74","v":363},{"$f":"'[2]5.2 Asset Age Profile'!BV74","v":306},{"$f":"'[2]5.2 Asset Age Profile'!BW74","v":237},{"$f":"'[2]5.2 Asset Age Profile'!BX74","v":264},{"$f":"'[2]5.2 Asset Age Profile'!BY74","v":316},{"$f":"'[2]5.2 Asset Age Profile'!BZ74","v":273},{"$f":"'[2]5.2 Asset Age Profile'!CA74","v":305},{"$f":"'[2]5.2 Asset Age Profile'!CB74","v":462},{"$f":"'[2]5.2 Asset Age Profile'!CC74","v":491},{"$f":"'[2]5.2 Asset Age Profile'!CD74","v":258},{"$f":"'[2]5.2 Asset Age Profile'!CE74","v":343},{"$f":"'[2]5.2 Asset Age Profile'!CF74","v":302},{"$f":"'[2]5.2 Asset Age Profile'!CG74","v":458},{"$f":"'[2]5.2 Asset Age Profile'!CH74","v":435},{"$f":"'[2]5.2 Asset Age Profile'!CI74","v":339},{"$f":"'[2]5.2 Asset Age Profile'!CJ74","v":396},{"$f":"'[2]5.2 Asset Age Profile'!CK74","v":112},{"$f":"'[2]5.2 Asset Age Profile'!CL74","v":299},{"$f":"'[2]5.2 Asset Age Profile'!CM74","v":471},{"$f":"'[2]5.2 Asset Age Profile'!CN74","v":102},{"$f":"'[2]5.2 Asset Age Profile'!CO74","v":46},{"$f":"'[2]5.2 Asset Age Profile'!CP74","v":41},{"$f":"'[2]5.2 Asset Age Profile'!CQ74","v":52},{"$f":"'[2]5.2 Asset Age Profile'!CR74","v":66},{"$f":"'[2]5.2 Asset Age Profile'!CS74","v":36},{"$f":"'[2]5.2 Asset Age Profile'!CT74","v":44},{"$f":"'[2]5.2 Asset Age Profile'!CU74","v":65},{"$f":"'[2]5.2 Asset Age Profile'!CV74","v":47},{"$f":"'[2]5.2 Asset Age Profile'!CW74","v":246},{"$f":"'[2]5.2 Asset Age Profile'!CX74","v":26},{"$f":"'[2]5.2 Asset Age Profile'!CY74","v":8},{"$f":"'[2]5.2 Asset Age Profile'!CZ74","v":29},{"$f":"'[2]5.2 Asset Age Profile'!DA74","v":34},{"$f":"'[2]5.2 Asset Age Profile'!DB74","v":4},{"$f":"'[2]5.2 Asset Age Profile'!DC74","v":3},{"$f":"'[2]5.2 Asset Age Profile'!DD74","v":4},{"$f":"'[2]5.2 Asset Age Profile'!DE74","v":7},{"$f":"'[2]5.2 Asset Age Profile'!DF74","v":7},{"$f":"'[2]5.2 Asset Age Profile'!DG74","v":23},{"$f":"'[2]5.2 Asset Age Profile'!DH74","v":7},{"$f":"'[2]5.2 Asset Age Profile'!DI74","v":18},{"$f":"'[2]5.2 Asset Age Profile'!DJ74","v":4},{"$f":"'[2]5.2 Asset Age Profile'!DK74","v":12},{"$f":"'[2]5.2 Asset Age Profile'!DL74","v":9},{"$f":"'[2]5.2 Asset Age Profile'!DM74","v":8},{"$f":"'[2]5.2 Asset Age Profile'!DN74","v":11},{"$f":"'[2]5.2 Asset Age Profile'!DO74","v":12},{"$f":"'[2]5.2 Asset Age Profile'!DP74","v":3},{"$f":"'[2]5.2 Asset Age Profile'!DQ74","v":41},{"$f":"'[2]5.2 Asset Age Profile'!DR74","v":0},{"$f":"'[2]5.2 Asset Age Profile'!DS74","v":0},{"$f":"'[2]5.2 Asset Age Profile'!DT74","v":0},{"$f":"'[2]5.2 Asset Age Profile'!DU74","v":0},{"$f":"'[2]5.2 Asset Age Profile'!DV74","v":0},{"$f":"'[2]5.2 Asset Age Profile'!DW74","v":1},{"$f":"'[2]5.2 Asset Age Profile'!DX74","v":0},{"$f":"'[2]5.2 Asset Age Profile'!DY74","v":0},{"$f":"'[2]5.2 Asset Age Profile'!DZ74","v":0},{"$f":"'[2]5.2 Asset Age Profile'!EA74","v":0},{"$f":"'[2]5.2 Asset Age Profile'!EB74","v":0},{"$f":"'[2]5.2 Asset Age Profile'!EC74","v":0},{"$f":"'[2]5.2 Asset Age Profile'!ED74","v":0},{"$f":"'[2]5.2 Asset Age Profile'!EE74","v":0},{"$f":"'[2]5.2 Asset Age Profile'!EF74","v":0},{"$f":"'[2]5.2 Asset Age Profile'!EG74","v":0},{"$f":"'[2]5.2 Asset Age Profile'!EH74","v":0},{"$f":"'[2]5.2 Asset Age Profile'!EI74","v":0},{"$f":"'[2]5.2 Asset Age Profile'!EJ74","v":0}]
["ED_ASS521_00065",null,"Pole Mounted ; < = 22kV ;  > 60 kVA and < = 600 kVA  ; Multiple Phase",null,"DNSP NAME","REPEX","TRANSFORMERS","Pole Mounted ; < = 22kV ;  > 60 kVA and < = 600 kVA  ; Multiple Phase","DESCRIPTOR METRIC","MEAN ECONOMIC LIFE","YEARS","NUMBER",null,{"$f":"'[2]5.2 Asset Age Profile'!N75","v":45.8},{"$f":"'[2]5.2 Asset Age Profile'!O75","v":0},{"$f":"'[2]5.2 Asset Age Profile'!P75","v":0},{"$f":"'[2]5.2 Asset Age Profile'!Q75","v":0},{"$f":"'[2]5.2 Asset Age Profile'!R75","v":0},{"$f":"'[2]5.2 Asset Age Profile'!S75","v":0},{"$f":"'[2]5.2 Asset Age Profile'!T75","v":0},{"$f":"'[2]5.2 Asset Age Profile'!U75","v":0},{"$f":"'[2]5.2 Asset Age Profile'!V75","v":0},{"$f":"'[2]5.2 Asset Age Profile'!W75","v":0},{"$f":"'[2]5.2 Asset Age Profile'!X75","v":0},{"$f":"'[2]5.2 Asset Age Profile'!Y75","v":6.7675697262754522},{"$f":"'[2]5.2 Asset Age Profile'!Z75","v":0},{"$f":"'[2]5.2 Asset Age Profile'!AA75","v":0},{"$f":"'[2]5.2 Asset Age Profile'!AB75","v":0},{"$f":"'[2]5.2 Asset Age Profile'!AC75","v":0},{"$f":"'[2]5.2 Asset Age Profile'!AD75","v":0},{"$f":"'[2]5.2 Asset Age Profile'!AE75","v":0},{"$f":"'[2]5.2 Asset Age Profile'!AF75","v":0},{"$f":"'[2]5.2 Asset Age Profile'!AG75","v":0},{"$f":"'[2]5.2 Asset Age Profile'!AH75","v":0},{"$f":"'[2]5.2 Asset Age Profile'!AI75","v":0},{"$f":"'[2]5.2 Asset Age Profile'!AJ75","v":226},{"$f":"'[2]5.2 Asset Age Profile'!AK75","v":684},{"$f":"'[2]5.2 Asset Age Profile'!AL75","v":508},{"$f":"'[2]5.2 Asset Age Profile'!AM75","v":671},{"$f":"'[2]5.2 Asset Age Profile'!AN75","v":794},{"$f":"'[2]5.2 Asset Age Profile'!AO75","v":843},{"$f":"'[2]5.2 Asset Age Profile'!AP75","v":745},{"$f":"'[2]5.2 Asset Age Profile'!AQ75","v":736},{"$f":"'[2]5.2 Asset Age Profile'!AR75","v":663},{"$f":"'[2]5.2 Asset Age Profile'!AS75","v":928},{"$f":"'[2]5.2 Asset Age Profile'!AT75","v":750},{"$f":"'[2]5.2 Asset Age Profile'!AU75","v":857},{"$f":"'[2]5.2 Asset Age Profile'!AV75","v":873},{"$f":"'[2]5.2 Asset Age Profile'!AW75","v":686},{"$f":"'[2]5.2 Asset Age Profile'!AX75","v":683},{"$f":"'[2]5.2 Asset Age Profile'!AY75","v":436},{"$f":"'[2]5.2 Asset Age Profile'!AZ75","v":454},{"$f":"'[2]5.2 Asset Age Profile'!BA75","v":374},{"$f":"'[2]5.2 Asset Age Profile'!BB75","v":255},{"$f":"'[2]5.2 Asset Age Profile'!BC75","v":290},{"$f":"'[2]5.2 Asset Age Profile'!BD75","v":416},{"$f":"'[2]5.2 Asset Age Profile'!BE75","v":422},{"$f":"'[2]5.2 Asset Age Profile'!BF75","v":315},{"$f":"'[2]5.2 Asset Age Profile'!BG75","v":326},{"$f":"'[2]5.2 Asset Age Profile'!BH75","v":382},{"$f":"'[2]5.2 Asset Age Profile'!BI75","v":268},{"$f":"'[2]5.2 Asset Age Profile'!BJ75","v":355},{"$f":"'[2]5.2 Asset Age Profile'!BK75","v":217},{"$f":"'[2]5.2 Asset Age Profile'!BL75","v":307},{"$f":"'[2]5.2 Asset Age Profile'!BM75","v":305},{"$f":"'[2]5.2 Asset Age Profile'!BN75","v":238},{"$f":"'[2]5.2 Asset Age Profile'!BO75","v":213},{"$f":"'[2]5.2 Asset Age Profile'!BP75","v":190},{"$f":"'[2]5.2 Asset Age Profile'!BQ75","v":378},{"$f":"'[2]5.2 Asset Age Profile'!BR75","v":377},{"$f":"'[2]5.2 Asset Age Profile'!BS75","v":327},{"$f":"'[2]5.2 Asset Age Profile'!BT75","v":272},{"$f":"'[2]5.2 Asset Age Profile'!BU75","v":263},{"$f":"'[2]5.2 Asset Age Profile'!BV75","v":262},{"$f":"'[2]5.2 Asset Age Profile'!BW75","v":196},{"$f":"'[2]5.2 Asset Age Profile'!BX75","v":205},{"$f":"'[2]5.2 Asset Age Profile'!BY75","v":177},{"$f":"'[2]5.2 Asset Age Profile'!BZ75","v":178},{"$f":"'[2]5.2 Asset Age Profile'!CA75","v":177},{"$f":"'[2]5.2 Asset Age Profile'!CB75","v":259},{"$f":"'[2]5.2 Asset Age Profile'!CC75","v":278},{"$f":"'[2]5.2 Asset Age Profile'!CD75","v":243},{"$f":"'[2]5.2 Asset Age Profile'!CE75","v":188},{"$f":"'[2]5.2 Asset Age Profile'!CF75","v":139},{"$f":"'[2]5.2 Asset Age Profile'!CG75","v":227},{"$f":"'[2]5.2 Asset Age Profile'!CH75","v":202},{"$f":"'[2]5.2 Asset Age Profile'!CI75","v":88},{"$f":"'[2]5.2 Asset Age Profile'!CJ75","v":93},{"$f":"'[2]5.2 Asset Age Profile'!CK75","v":35},{"$f":"'[2]5.2 Asset Age Profile'!CL75","v":130},{"$f":"'[2]5.2 Asset Age Profile'!CM75","v":184},{"$f":"'[2]5.2 Asset Age Profile'!CN75","v":40},{"$f":"'[2]5.2 Asset Age Profile'!CO75","v":19},{"$f":"'[2]5.2 Asset Age Profile'!CP75","v":23},{"$f":"'[2]5.2 Asset Age Profile'!CQ75","v":26},{"$f":"'[2]5.2 Asset Age Profile'!CR75","v":30},{"$f":"'[2]5.2 Asset Age Profile'!CS75","v":25},{"$f":"'[2]5.2 Asset Age Profile'!CT75","v":13},{"$f":"'[2]5.2 Asset Age Profile'!CU75","v":26},{"$f":"'[2]5.2 Asset Age Profile'!CV75","v":8},{"$f":"'[2]5.2 Asset Age Profile'!CW75","v":121},{"$f":"'[2]5.2 Asset Age Profile'!CX75","v":27},{"$f":"'[2]5.2 Asset Age Profile'!CY75","v":5},{"$f":"'[2]5.2 Asset Age Profile'!CZ75","v":3},{"$f":"'[2]5.2 Asset Age Profile'!DA75","v":8},{"$f":"'[2]5.2 Asset Age Profile'!DB75","v":5},{"$f":"'[2]5.2 Asset Age Profile'!DC75","v":2},{"$f":"'[2]5.2 Asset Age Profile'!DD75","v":2},{"$f":"'[2]5.2 Asset Age Profile'!DE75","v":4},{"$f":"'[2]5.2 Asset Age Profile'!DF75","v":2},{"$f":"'[2]5.2 Asset Age Profile'!DG75","v":14},{"$f":"'[2]5.2 Asset Age Profile'!DH75","v":5},{"$f":"'[2]5.2 Asset Age Profile'!DI75","v":8},{"$f":"'[2]5.2 Asset Age Profile'!DJ75","v":3},{"$f":"'[2]5.2 Asset Age Profile'!DK75","v":2},{"$f":"'[2]5.2 Asset Age Profile'!DL75","v":3},{"$f":"'[2]5.2 Asset Age Profile'!DM75","v":2},{"$f":"'[2]5.2 Asset Age Profile'!DN75","v":4},{"$f":"'[2]5.2 Asset Age Profile'!DO75","v":8},{"$f":"'[2]5.2 Asset Age Profile'!DP75","v":1},{"$f":"'[2]5.2 Asset Age Profile'!DQ75","v":23},{"$f":"'[2]5.2 Asset Age Profile'!DR75","v":0},{"$f":"'[2]5.2 Asset Age Profile'!DS75","v":0},{"$f":"'[2]5.2 Asset Age Profile'!DT75","v":0},{"$f":"'[2]5.2 Asset Age Profile'!DU75","v":0},{"$f":"'[2]5.2 Asset Age Profile'!DV75","v":0},{"$f":"'[2]5.2 Asset Age Profile'!DW75","v":0},{"$f":"'[2]5.2 Asset Age Profile'!DX75","v":0},{"$f":"'[2]5.2 Asset Age Profile'!DY75","v":0},{"$f":"'[2]5.2 Asset Age Profile'!DZ75","v":0},{"$f":"'[2]5.2 Asset Age Profile'!EA75","v":0},{"$f":"'[2]5.2 Asset Age Profile'!EB75","v":0},{"$f":"'[2]5.2 Asset Age Profile'!EC75","v":0},{"$f":"'[2]5.2 Asset Age Profile'!ED75","v":0},{"$f":"'[2]5.2 Asset Age Profile'!EE75","v":0},{"$f":"'[2]5.2 Asset Age Profile'!EF75","v":0},{"$f":"'[2]5.2 Asset Age Profile'!EG75","v":0},{"$f":"'[2]5.2 Asset Age Profile'!EH75","v":0},{"$f":"'[2]5.2 Asset Age Profile'!EI75","v":0},{"$f":"'[2]5.2 Asset Age Profile'!EJ75","v":0}]
["ED_ASS521_00066",null,"Pole Mounted ; < = 22kV ;  > 600 kVA  ; Multiple Phase",null,"DNSP NAME","REPEX","TRANSFORMERS","Pole Mounted ; < = 22kV ;  > 600 kVA  ; Multiple Phase","DESCRIPTOR METRIC","MEAN ECONOMIC LIFE","YEARS","NUMBER",null,{"$f":"'[2]5.2 Asset Age Profile'!N76","v":45.8},{"$f":"'[2]5.2 Asset Age Profile'!O76","v":0},{"$f":"'[2]5.2 Asset Age Profile'!P76","v":0},{"$f":"'[2]5.2 Asset Age Profile'!Q76","v":0},{"$f":"'[2]5.2 Asset Age Profile'!R76","v":0},{"$f":"'[2]5.2 Asset Age Profile'!S76","v":0},{"$f":"'[2]5.2 Asset Age Profile'!T76","v":0},{"$f":"'[2]5.2 Asset Age Profile'!U76","v":0},{"$f":"'[2]5.2 Asset Age Profile'!V76","v":0},{"$f":"'[2]5.2 Asset Age Profile'!W76","v":0},{"$f":"'[2]5.2 Asset Age Profile'!X76","v":0},{"$f":"'[2]5.2 Asset Age Profile'!Y76","v":6.7675697262754522},{"$f":"'[2]5.2 Asset Age Profile'!Z76","v":0},{"$f":"'[2]5.2 Asset Age Profile'!AA76","v":0},{"$f":"'[2]5.2 Asset Age Profile'!AB76","v":0},{"$f":"'[2]5.2 Asset Age Profile'!AC76","v":0},{"$f":"'[2]5.2 Asset Age Profile'!AD76","v":0},{"$f":"'[2]5.2 Asset Age Profile'!AE76","v":0},{"$f":"'[2]5.2 Asset Age Profile'!AF76","v":0},{"$f":"'[2]5.2 Asset Age Profile'!AG76","v":0},{"$f":"'[2]5.2 Asset Age Profile'!AH76","v":0},{"$f":"'[2]5.2 Asset Age Profile'!AI76","v":0},{"$f":"'[2]5.2 Asset Age Profile'!AJ76","v":0},{"$f":"'[2]5.2 Asset Age Profile'!AK76","v":0},{"$f":"'[2]5.2 Asset Age Profile'!AL76","v":0},{"$f":"'[2]5.2 Asset Age Profile'!AM76","v":0},{"$f":"'[2]5.2 Asset Age Profile'!AN76","v":0},{"$f":"'[2]5.2 Asset Age Profile'!AO76","v":0},{"$f":"'[2]5.2 Asset Age Profile'!AP76","v":1},{"$f":"'[2]5.2 Asset Age Profile'!AQ76","v":0},{"$f":"'[2]5.2 Asset Age Profile'!AR76","v":0},{"$f":"'[2]5.2 Asset Age Profile'!AS76","v":0},{"$f":"'[2]5.2 Asset Age Profile'!AT76","v":0},{"$f":"'[2]5.2 Asset Age Profile'!AU76","v":0},{"$f":"'[2]5.2 Asset Age Profile'!AV76","v":3},{"$f":"'[2]5.2 Asset Age Profile'!AW76","v":0},{"$f":"'[2]5.2 Asset Age Profile'!AX76","v":1},{"$f":"'[2]5.2 Asset Age Profile'!AY76","v":1},{"$f":"'[2]5.2 Asset Age Profile'!AZ76","v":2},{"$f":"'[2]5.2 Asset Age Profile'!BA76","v":1},{"$f":"'[2]5.2 Asset Age Profile'!BB76","v":0},{"$f":"'[2]5.2 Asset Age Profile'!BC76","v":4},{"$f":"'[2]5.2 Asset Age Profile'!BD76","v":0},{"$f":"'[2]5.2 Asset Age Profile'!BE76","v":1},{"$f":"'[2]5.2 Asset Age Profile'!BF76","v":2},{"$f":"'[2]5.2 Asset Age Profile'!BG76","v":1},{"$f":"'[2]5.2 Asset Age Profile'!BH76","v":1},{"$f":"'[2]5.2 Asset Age Profile'!BI76","v":0},{"$f":"'[2]5.2 Asset Age Profile'!BJ76","v":1},{"$f":"'[2]5.2 Asset Age Profile'!BK76","v":0},{"$f":"'[2]5.2 Asset Age Profile'!BL76","v":0},{"$f":"'[2]5.2 Asset Age Profile'!BM76","v":1},{"$f":"'[2]5.2 Asset Age Profile'!BN76","v":0},{"$f":"'[2]5.2 Asset Age Profile'!BO76","v":0},{"$f":"'[2]5.2 Asset Age Profile'!BP76","v":0},{"$f":"'[2]5.2 Asset Age Profile'!BQ76","v":0},{"$f":"'[2]5.2 Asset Age Profile'!BR76","v":0},{"$f":"'[2]5.2 Asset Age Profile'!BS76","v":2},{"$f":"'[2]5.2 Asset Age Profile'!BT76","v":0},{"$f":"'[2]5.2 Asset Age Profile'!BU76","v":1},{"$f":"'[2]5.2 Asset Age Profile'!BV76","v":2},{"$f":"'[2]5.2 Asset Age Profile'!BW76","v":1},{"$f":"'[2]5.2 Asset Age Profile'!BX76","v":0},{"$f":"'[2]5.2 Asset Age Profile'!BY76","v":0},{"$f":"'[2]5.2 Asset Age Profile'!BZ76","v":2},{"$f":"'[2]5.2 Asset Age Profile'!CA76","v":0},{"$f":"'[2]5.2 Asset Age Profile'!CB76","v":2},{"$f":"'[2]5.2 Asset Age Profile'!CC76","v":1},{"$f":"'[2]5.2 Asset Age Profile'!CD76","v":0},{"$f":"'[2]5.2 Asset Age Profile'!CE76","v":1},{"$f":"'[2]5.2 Asset Age Profile'!CF76","v":1},{"$f":"'[2]5.2 Asset Age Profile'!CG76","v":1},{"$f":"'[2]5.2 Asset Age Profile'!CH76","v":0},{"$f":"'[2]5.2 Asset Age Profile'!CI76","v":0},{"$f":"'[2]5.2 Asset Age Profile'!CJ76","v":0},{"$f":"'[2]5.2 Asset Age Profile'!CK76","v":0},{"$f":"'[2]5.2 Asset Age Profile'!CL76","v":1},{"$f":"'[2]5.2 Asset Age Profile'!CM76","v":0},{"$f":"'[2]5.2 Asset Age Profile'!CN76","v":0},{"$f":"'[2]5.2 Asset Age Profile'!CO76","v":1},{"$f":"'[2]5.2 Asset Age Profile'!CP76","v":0},{"$f":"'[2]5.2 Asset Age Profile'!CQ76","v":0},{"$f":"'[2]5.2 Asset Age Profile'!CR76","v":0},{"$f":"'[2]5.2 Asset Age Profile'!CS76","v":0},{"$f":"'[2]5.2 Asset Age Profile'!CT76","v":0},{"$f":"'[2]5.2 Asset Age Profile'!CU76","v":0},{"$f":"'[2]5.2 Asset Age Profile'!CV76","v":0},{"$f":"'[2]5.2 Asset Age Profile'!CW76","v":0},{"$f":"'[2]5.2 Asset Age Profile'!CX76","v":0},{"$f":"'[2]5.2 Asset Age Profile'!CY76","v":0},{"$f":"'[2]5.2 Asset Age Profile'!CZ76","v":0},{"$f":"'[2]5.2 Asset Age Profile'!DA76","v":0},{"$f":"'[2]5.2 Asset Age Profile'!DB76","v":0},{"$f":"'[2]5.2 Asset Age Profile'!DC76","v":0},{"$f":"'[2]5.2 Asset Age Profile'!DD76","v":0},{"$f":"'[2]5.2 Asset Age Profile'!DE76","v":0},{"$f":"'[2]5.2 Asset Age Profile'!DF76","v":0},{"$f":"'[2]5.2 Asset Age Profile'!DG76","v":0},{"$f":"'[2]5.2 Asset Age Profile'!DH76","v":0},{"$f":"'[2]5.2 Asset Age Profile'!DI76","v":0},{"$f":"'[2]5.2 Asset Age Profile'!DJ76","v":0},{"$f":"'[2]5.2 Asset Age Profile'!DK76","v":0},{"$f":"'[2]5.2 Asset Age Profile'!DL76","v":0},{"$f":"'[2]5.2 Asset Age Profile'!DM76","v":0},{"$f":"'[2]5.2 Asset Age Profile'!DN76","v":0},{"$f":"'[2]5.2 Asset Age Profile'!DO76","v":0},{"$f":"'[2]5.2 Asset Age Profile'!DP76","v":0},{"$f":"'[2]5.2 Asset Age Profile'!DQ76","v":0},{"$f":"'[2]5.2 Asset Age Profile'!DR76","v":0},{"$f":"'[2]5.2 Asset Age Profile'!DS76","v":0},{"$f":"'[2]5.2 Asset Age Profile'!DT76","v":0},{"$f":"'[2]5.2 Asset Age Profile'!DU76","v":0},{"$f":"'[2]5.2 Asset Age Profile'!DV76","v":0},{"$f":"'[2]5.2 Asset Age Profile'!DW76","v":0},{"$f":"'[2]5.2 Asset Age Profile'!DX76","v":0},{"$f":"'[2]5.2 Asset Age Profile'!DY76","v":0},{"$f":"'[2]5.2 Asset Age Profile'!DZ76","v":0},{"$f":"'[2]5.2 Asset Age Profile'!EA76","v":0},{"$f":"'[2]5.2 Asset Age Profile'!EB76","v":0},{"$f":"'[2]5.2 Asset Age Profile'!EC76","v":0},{"$f":"'[2]5.2 Asset Age Profile'!ED76","v":0},{"$f":"'[2]5.2 Asset Age Profile'!EE76","v":0},{"$f":"'[2]5.2 Asset Age Profile'!EF76","v":0},{"$f":"'[2]5.2 Asset Age Profile'!EG76","v":0},{"$f":"'[2]5.2 Asset Age Profile'!EH76","v":0},{"$f":"'[2]5.2 Asset Age Profile'!EI76","v":0},{"$f":"'[2]5.2 Asset Age Profile'!EJ76","v":0}]
["ED_ASS521_00067",null,"Kiosk Mounted ; < = 22kV ;  < = 60 kVA ; Single Phase",null,null,null,null,null,null,null,null,null,null,{"$f":"'[2]5.2 Asset Age Profile'!N77","v":45.8},{"$f":"'[2]5.2 Asset Age Profile'!O77","v":0},{"$f":"'[2]5.2 Asset Age Profile'!P77","v":0},{"$f":"'[2]5.2 Asset Age Profile'!Q77","v":0},{"$f":"'[2]5.2 Asset Age Profile'!R77","v":0},{"$f":"'[2]5.2 Asset Age Profile'!S77","v":0},{"$f":"'[2]5.2 Asset Age Profile'!T77","v":0},{"$f":"'[2]5.2 Asset Age Profile'!U77","v":0},{"$f":"'[2]5.2 Asset Age Profile'!V77","v":0},{"$f":"'[2]5.2 Asset Age Profile'!W77","v":0},{"$f":"'[2]5.2 Asset Age Profile'!X77","v":0},{"$f":"'[2]5.2 Asset Age Profile'!Y77","v":6.7675697262754522},{"$f":"'[2]5.2 Asset Age Profile'!Z77","v":0},{"$f":"'[2]5.2 Asset Age Profile'!AA77","v":0},{"$f":"'[2]5.2 Asset Age Profile'!AB77","v":0},{"$f":"'[2]5.2 Asset Age Profile'!AC77","v":0},{"$f":"'[2]5.2 Asset Age Profile'!AD77","v":0},{"$f":"'[2]5.2 Asset Age Profile'!AE77","v":0},{"$f":"'[2]5.2 Asset Age Profile'!AF77","v":0},{"$f":"'[2]5.2 Asset Age Profile'!AG77","v":0},{"$f":"'[2]5.2 Asset Age Profile'!AH77","v":0},{"$f":"'[2]5.2 Asset Age Profile'!AI77","v":0},{"$f":"'[2]5.2 Asset Age Profile'!AJ77","v":0},{"$f":"'[2]5.2 Asset Age Profile'!AK77","v":0},{"$f":"'[2]5.2 Asset Age Profile'!AL77","v":1},{"$f":"'[2]5.2 Asset Age Profile'!AM77","v":1},{"$f":"'[2]5.2 Asset Age Profile'!AN77","v":0},{"$f":"'[2]5.2 Asset Age Profile'!AO77","v":1},{"$f":"'[2]5.2 Asset Age Profile'!AP77","v":0},{"$f":"'[2]5.2 Asset Age Profile'!AQ77","v":11},{"$f":"'[2]5.2 Asset Age Profile'!AR77","v":17},{"$f":"'[2]5.2 Asset Age Profile'!AS77","v":8},{"$f":"'[2]5.2 Asset Age Profile'!AT77","v":20},{"$f":"'[2]5.2 Asset Age Profile'!AU77","v":4},{"$f":"'[2]5.2 Asset Age Profile'!AV77","v":0},{"$f":"'[2]5.2 Asset Age Profile'!AW77","v":0},{"$f":"'[2]5.2 Asset Age Profile'!AX77","v":0},{"$f":"'[2]5.2 Asset Age Profile'!AY77","v":1},{"$f":"'[2]5.2 Asset Age Profile'!AZ77","v":0},{"$f":"'[2]5.2 Asset Age Profile'!BA77","v":0},{"$f":"'[2]5.2 Asset Age Profile'!BB77","v":0},{"$f":"'[2]5.2 Asset Age Profile'!BC77","v":0},{"$f":"'[2]5.2 Asset Age Profile'!BD77","v":0},{"$f":"'[2]5.2 Asset Age Profile'!BE77","v":0},{"$f":"'[2]5.2 Asset Age Profile'!BF77","v":0},{"$f":"'[2]5.2 Asset Age Profile'!BG77","v":0},{"$f":"'[2]5.2 Asset Age Profile'!BH77","v":0},{"$f":"'[2]5.2 Asset Age Profile'!BI77","v":0},{"$f":"'[2]5.2 Asset Age Profile'!BJ77","v":0},{"$f":"'[2]5.2 Asset Age Profile'!BK77","v":0},{"$f":"'[2]5.2 Asset Age Profile'!BL77","v":0},{"$f":"'[2]5.2 Asset Age Profile'!BM77","v":0},{"$f":"'[2]5.2 Asset Age Profile'!BN77","v":0},{"$f":"'[2]5.2 Asset Age Profile'!BO77","v":0},{"$f":"'[2]5.2 Asset Age Profile'!BP77","v":0},{"$f":"'[2]5.2 Asset Age Profile'!BQ77","v":0},{"$f":"'[2]5.2 Asset Age Profile'!BR77","v":0},{"$f":"'[2]5.2 Asset Age Profile'!BS77","v":0},{"$f":"'[2]5.2 Asset Age Profile'!BT77","v":0},{"$f":"'[2]5.2 Asset Age Profile'!BU77","v":0},{"$f":"'[2]5.2 Asset Age Profile'!BV77","v":0},{"$f":"'[2]5.2 Asset Age Profile'!BW77","v":0},{"$f":"'[2]5.2 Asset Age Profile'!BX77","v":0},{"$f":"'[2]5.2 Asset Age Profile'!BY77","v":0},{"$f":"'[2]5.2 Asset Age Profile'!BZ77","v":0},{"$f":"'[2]5.2 Asset Age Profile'!CA77","v":0},{"$f":"'[2]5.2 Asset Age Profile'!CB77","v":0},{"$f":"'[2]5.2 Asset Age Profile'!CC77","v":0},{"$f":"'[2]5.2 Asset Age Profile'!CD77","v":0},{"$f":"'[2]5.2 Asset Age Profile'!CE77","v":0},{"$f":"'[2]5.2 Asset Age Profile'!CF77","v":0},{"$f":"'[2]5.2 Asset Age Profile'!CG77","v":0},{"$f":"'[2]5.2 Asset Age Profile'!CH77","v":0},{"$f":"'[2]5.2 Asset Age Profile'!CI77","v":0},{"$f":"'[2]5.2 Asset Age Profile'!CJ77","v":0},{"$f":"'[2]5.2 Asset Age Profile'!CK77","v":0},{"$f":"'[2]5.2 Asset Age Profile'!CL77","v":0},{"$f":"'[2]5.2 Asset Age Profile'!CM77","v":0},{"$f":"'[2]5.2 Asset Age Profile'!CN77","v":0},{"$f":"'[2]5.2 Asset Age Profile'!CO77","v":0},{"$f":"'[2]5.2 Asset Age Profile'!CP77","v":0},{"$f":"'[2]5.2 Asset Age Profile'!CQ77","v":0},{"$f":"'[2]5.2 Asset Age Profile'!CR77","v":0},{"$f":"'[2]5.2 Asset Age Profile'!CS77","v":0},{"$f":"'[2]5.2 Asset Age Profile'!CT77","v":0},{"$f":"'[2]5.2 Asset Age Profile'!CU77","v":0},{"$f":"'[2]5.2 Asset Age Profile'!CV77","v":0},{"$f":"'[2]5.2 Asset Age Profile'!CW77","v":0},{"$f":"'[2]5.2 Asset Age Profile'!CX77","v":0},{"$f":"'[2]5.2 Asset Age Profile'!CY77","v":0},{"$f":"'[2]5.2 Asset Age Profile'!CZ77","v":0},{"$f":"'[2]5.2 Asset Age Profile'!DA77","v":0},{"$f":"'[2]5.2 Asset Age Profile'!DB77","v":0},{"$f":"'[2]5.2 Asset Age Profile'!DC77","v":0},{"$f":"'[2]5.2 Asset Age Profile'!DD77","v":0},{"$f":"'[2]5.2 Asset Age Profile'!DE77","v":0},{"$f":"'[2]5.2 Asset Age Profile'!DF77","v":0},{"$f":"'[2]5.2 Asset Age Profile'!DG77","v":0},{"$f":"'[2]5.2 Asset Age Profile'!DH77","v":0},{"$f":"'[2]5.2 Asset Age Profile'!DI77","v":0},{"$f":"'[2]5.2 Asset Age Profile'!DJ77","v":0},{"$f":"'[2]5.2 Asset Age Profile'!DK77","v":0},{"$f":"'[2]5.2 Asset Age Profile'!DL77","v":0},{"$f":"'[2]5.2 Asset Age Profile'!DM77","v":0},{"$f":"'[2]5.2 Asset Age Profile'!DN77","v":0},{"$f":"'[2]5.2 Asset Age Profile'!DO77","v":0},{"$f":"'[2]5.2 Asset Age Profile'!DP77","v":0},{"$f":"'[2]5.2 Asset Age Profile'!DQ77","v":0},{"$f":"'[2]5.2 Asset Age Profile'!DR77","v":0},{"$f":"'[2]5.2 Asset Age Profile'!DS77","v":0},{"$f":"'[2]5.2 Asset Age Profile'!DT77","v":0},{"$f":"'[2]5.2 Asset Age Profile'!DU77","v":0},{"$f":"'[2]5.2 Asset Age Profile'!DV77","v":0},{"$f":"'[2]5.2 Asset Age Profile'!DW77","v":0},{"$f":"'[2]5.2 Asset Age Profile'!DX77","v":0},{"$f":"'[2]5.2 Asset Age Profile'!DY77","v":0},{"$f":"'[2]5.2 Asset Age Profile'!DZ77","v":0},{"$f":"'[2]5.2 Asset Age Profile'!EA77","v":0},{"$f":"'[2]5.2 Asset Age Profile'!EB77","v":0},{"$f":"'[2]5.2 Asset Age Profile'!EC77","v":0},{"$f":"'[2]5.2 Asset Age Profile'!ED77","v":0},{"$f":"'[2]5.2 Asset Age Profile'!EE77","v":0},{"$f":"'[2]5.2 Asset Age Profile'!EF77","v":0},{"$f":"'[2]5.2 Asset Age Profile'!EG77","v":0},{"$f":"'[2]5.2 Asset Age Profile'!EH77","v":0},{"$f":"'[2]5.2 Asset Age Profile'!EI77","v":0},{"$f":"'[2]5.2 Asset Age Profile'!EJ77","v":0}]
["ED_ASS521_00068",null,"Kiosk Mounted ; < = 22kV ;  > 60 kVA and < = 600 kVA ; Single Phase",null,null,null,null,null,null,null,null,null,null,{"$f":"'[2]5.2 Asset Age Profile'!N78","v":45.8},{"$f":"'[2]5.2 Asset Age Profile'!O78","v":0},{"$f":"'[2]5.2 Asset Age Profile'!P78","v":0},{"$f":"'[2]5.2 Asset Age Profile'!Q78","v":0},{"$f":"'[2]5.2 Asset Age Profile'!R78","v":0},{"$f":"'[2]5.2 Asset Age Profile'!S78","v":0},{"$f":"'[2]5.2 Asset Age Profile'!T78","v":0},{"$f":"'[2]5.2 Asset Age Profile'!U78","v":0},{"$f":"'[2]5.2 Asset Age Profile'!V78","v":0},{"$f":"'[2]5.2 Asset Age Profile'!W78","v":0},{"$f":"'[2]5.2 Asset Age Profile'!X78","v":0},{"$f":"'[2]5.2 Asset Age Profile'!Y78","v":6.7675697262754522},{"$f":"'[2]5.2 Asset Age Profile'!Z78","v":0},{"$f":"'[2]5.2 Asset Age Profile'!AA78","v":0},{"$f":"'[2]5.2 Asset Age Profile'!AB78","v":0},{"$f":"'[2]5.2 Asset Age Profile'!AC78","v":0},{"$f":"'[2]5.2 Asset Age Profile'!AD78","v":0},{"$f":"'[2]5.2 Asset Age Profile'!AE78","v":0},{"$f":"'[2]5.2 Asset Age Profile'!AF78","v":0},{"$f":"'[2]5.2 Asset Age Profile'!AG78","v":0},{"$f":"'[2]5.2 Asset Age Profile'!AH78","v":0},{"$f":"'[2]5.2 Asset Age Profile'!AI78","v":0},{"$f":"'[2]5.2 Asset Age Profile'!AJ78","v":0},{"$f":"'[2]5.2 Asset Age Profile'!AK78","v":0},{"$f":"'[2]5.2 Asset Age Profile'!AL78","v":0},{"$f":"'[2]5.2 Asset Age Profile'!AM78","v":0},{"$f":"'[2]5.2 Asset Age Profile'!AN78","v":0},{"$f":"'[2]5.2 Asset Age Profile'!AO78","v":0},{"$f":"'[2]5.2 Asset Age Profile'!AP78","v":0},{"$f":"'[2]5.2 Asset Age Profile'!AQ78","v":0},{"$f":"'[2]5.2 Asset Age Profile'!AR78","v":0},{"$f":"'[2]5.2 Asset Age Profile'!AS78","v":1},{"$f":"'[2]5.2 Asset Age Profile'!AT78","v":1},{"$f":"'[2]5.2 Asset Age Profile'!AU78","v":0},{"$f":"'[2]5.2 Asset Age Profile'!AV78","v":0},{"$f":"'[2]5.2 Asset Age Profile'!AW78","v":0},{"$f":"'[2]5.2 Asset Age Profile'!AX78","v":0},{"$f":"'[2]5.2 Asset Age Profile'!AY78","v":0},{"$f":"'[2]5.2 Asset Age Profile'!AZ78","v":0},{"$f":"'[2]5.2 Asset Age Profile'!BA78","v":0},{"$f":"'[2]5.2 Asset Age Profile'!BB78","v":0},{"$f":"'[2]5.2 Asset Age Profile'!BC78","v":0},{"$f":"'[2]5.2 Asset Age Profile'!BD78","v":0},{"$f":"'[2]5.2 Asset Age Profile'!BE78","v":0},{"$f":"'[2]5.2 Asset Age Profile'!BF78","v":0},{"$f":"'[2]5.2 Asset Age Profile'!BG78","v":0},{"$f":"'[2]5.2 Asset Age Profile'!BH78","v":0},{"$f":"'[2]5.2 Asset Age Profile'!BI78","v":0},{"$f":"'[2]5.2 Asset Age Profile'!BJ78","v":0},{"$f":"'[2]5.2 Asset Age Profile'!BK78","v":0},{"$f":"'[2]5.2 Asset Age Profile'!BL78","v":0},{"$f":"'[2]5.2 Asset Age Profile'!BM78","v":0},{"$f":"'[2]5.2 Asset Age Profile'!BN78","v":0},{"$f":"'[2]5.2 Asset Age Profile'!BO78","v":0},{"$f":"'[2]5.2 Asset Age Profile'!BP78","v":0},{"$f":"'[2]5.2 Asset Age Profile'!BQ78","v":0},{"$f":"'[2]5.2 Asset Age Profile'!BR78","v":0},{"$f":"'[2]5.2 Asset Age Profile'!BS78","v":0},{"$f":"'[2]5.2 Asset Age Profile'!BT78","v":0},{"$f":"'[2]5.2 Asset Age Profile'!BU78","v":0},{"$f":"'[2]5.2 Asset Age Profile'!BV78","v":0},{"$f":"'[2]5.2 Asset Age Profile'!BW78","v":0},{"$f":"'[2]5.2 Asset Age Profile'!BX78","v":0},{"$f":"'[2]5.2 Asset Age Profile'!BY78","v":0},{"$f":"'[2]5.2 Asset Age Profile'!BZ78","v":1},{"$f":"'[2]5.2 Asset Age Profile'!CA78","v":0},{"$f":"'[2]5.2 Asset Age Profile'!CB78","v":0},{"$f":"'[2]5.2 Asset Age Profile'!CC78","v":0},{"$f":"'[2]5.2 Asset Age Profile'!CD78","v":0},{"$f":"'[2]5.2 Asset Age Profile'!CE78","v":0},{"$f":"'[2]5.2 Asset Age Profile'!CF78","v":0},{"$f":"'[2]5.2 Asset Age Profile'!CG78","v":0},{"$f":"'[2]5.2 Asset Age Profile'!CH78","v":0},{"$f":"'[2]5.2 Asset Age Profile'!CI78","v":0},{"$f":"'[2]5.2 Asset Age Profile'!CJ78","v":0},{"$f":"'[2]5.2 Asset Age Profile'!CK78","v":0},{"$f":"'[2]5.2 Asset Age Profile'!CL78","v":0},{"$f":"'[2]5.2 Asset Age Profile'!CM78","v":0},{"$f":"'[2]5.2 Asset Age Profile'!CN78","v":0},{"$f":"'[2]5.2 Asset Age Profile'!CO78","v":0},{"$f":"'[2]5.2 Asset Age Profile'!CP78","v":0},{"$f":"'[2]5.2 Asset Age Profile'!CQ78","v":0},{"$f":"'[2]5.2 Asset Age Profile'!CR78","v":0},{"$f":"'[2]5.2 Asset Age Profile'!CS78","v":0},{"$f":"'[2]5.2 Asset Age Profile'!CT78","v":0},{"$f":"'[2]5.2 Asset Age Profile'!CU78","v":0},{"$f":"'[2]5.2 Asset Age Profile'!CV78","v":0},{"$f":"'[2]5.2 Asset Age Profile'!CW78","v":0},{"$f":"'[2]5.2 Asset Age Profile'!CX78","v":0},{"$f":"'[2]5.2 Asset Age Profile'!CY78","v":0},{"$f":"'[2]5.2 Asset Age Profile'!CZ78","v":0},{"$f":"'[2]5.2 Asset Age Profile'!DA78","v":0},{"$f":"'[2]5.2 Asset Age Profile'!DB78","v":0},{"$f":"'[2]5.2 Asset Age Profile'!DC78","v":0},{"$f":"'[2]5.2 Asset Age Profile'!DD78","v":0},{"$f":"'[2]5.2 Asset Age Profile'!DE78","v":0},{"$f":"'[2]5.2 Asset Age Profile'!DF78","v":0},{"$f":"'[2]5.2 Asset Age Profile'!DG78","v":0},{"$f":"'[2]5.2 Asset Age Profile'!DH78","v":0},{"$f":"'[2]5.2 Asset Age Profile'!DI78","v":0},{"$f":"'[2]5.2 Asset Age Profile'!DJ78","v":0},{"$f":"'[2]5.2 Asset Age Profile'!DK78","v":0},{"$f":"'[2]5.2 Asset Age Profile'!DL78","v":0},{"$f":"'[2]5.2 Asset Age Profile'!DM78","v":0},{"$f":"'[2]5.2 Asset Age Profile'!DN78","v":0},{"$f":"'[2]5.2 Asset Age Profile'!DO78","v":0},{"$f":"'[2]5.2 Asset Age Profile'!DP78","v":0},{"$f":"'[2]5.2 Asset Age Profile'!DQ78","v":0},{"$f":"'[2]5.2 Asset Age Profile'!DR78","v":0},{"$f":"'[2]5.2 Asset Age Profile'!DS78","v":0},{"$f":"'[2]5.2 Asset Age Profile'!DT78","v":0},{"$f":"'[2]5.2 Asset Age Profile'!DU78","v":0},{"$f":"'[2]5.2 Asset Age Profile'!DV78","v":0},{"$f":"'[2]5.2 Asset Age Profile'!DW78","v":0},{"$f":"'[2]5.2 Asset Age Profile'!DX78","v":0},{"$f":"'[2]5.2 Asset Age Profile'!DY78","v":0},{"$f":"'[2]5.2 Asset Age Profile'!DZ78","v":0},{"$f":"'[2]5.2 Asset Age Profile'!EA78","v":0},{"$f":"'[2]5.2 Asset Age Profile'!EB78","v":0},{"$f":"'[2]5.2 Asset Age Profile'!EC78","v":0},{"$f":"'[2]5.2 Asset Age Profile'!ED78","v":0},{"$f":"'[2]5.2 Asset Age Profile'!EE78","v":0},{"$f":"'[2]5.2 Asset Age Profile'!EF78","v":0},{"$f":"'[2]5.2 Asset Age Profile'!EG78","v":0},{"$f":"'[2]5.2 Asset Age Profile'!EH78","v":0},{"$f":"'[2]5.2 Asset Age Profile'!EI78","v":0},{"$f":"'[2]5.2 Asset Age Profile'!EJ78","v":0}]
["ED_ASS521_00069",null,"Kiosk Mounted ; < = 22kV ;  > 600 kVA ; Single Phase",null,null,null,null,null,null,null,null,null,null,{"$f":"'[2]5.2 Asset Age Profile'!N79","v":45.8},{"$f":"'[2]5.2 Asset Age Profile'!O79","v":0},{"$f":"'[2]5.2 Asset Age Profile'!P79","v":0},{"$f":"'[2]5.2 Asset Age Profile'!Q79","v":0},{"$f":"'[2]5.2 Asset Age Profile'!R79","v":0},{"$f":"'[2]5.2 Asset Age Profile'!S79","v":0},{"$f":"'[2]5.2 Asset Age Profile'!T79","v":0},{"$f":"'[2]5.2 Asset Age Profile'!U79","v":0},{"$f":"'[2]5.2 Asset Age Profile'!V79","v":0},{"$f":"'[2]5.2 Asset Age Profile'!W79","v":0},{"$f":"'[2]5.2 Asset Age Profile'!X79","v":0},{"$f":"'[2]5.2 Asset Age Profile'!Y79","v":6.7675697262754522},{"$f":"'[2]5.2 Asset Age Profile'!Z79","v":0},{"$f":"'[2]5.2 Asset Age Profile'!AA79","v":0},{"$f":"'[2]5.2 Asset Age Profile'!AB79","v":0},{"$f":"'[2]5.2 Asset Age Profile'!AC79","v":0},{"$f":"'[2]5.2 Asset Age Profile'!AD79","v":0},{"$f":"'[2]5.2 Asset Age Profile'!AE79","v":0},{"$f":"'[2]5.2 Asset Age Profile'!AF79","v":0},{"$f":"'[2]5.2 Asset Age Profile'!AG79","v":0},{"$f":"'[2]5.2 Asset Age Profile'!AH79","v":0},{"$f":"'[2]5.2 Asset Age Profile'!AI79","v":0},{"$f":"'[2]5.2 Asset Age Profile'!AJ79","v":0},{"$f":"'[2]5.2 Asset Age Profile'!AK79","v":0},{"$f":"'[2]5.2 Asset Age Profile'!AL79","v":0},{"$f":"'[2]5.2 Asset Age Profile'!AM79","v":0},{"$f":"'[2]5.2 Asset Age Profile'!AN79","v":0},{"$f":"'[2]5.2 Asset Age Profile'!AO79","v":0},{"$f":"'[2]5.2 Asset Age Profile'!AP79","v":0},{"$f":"'[2]5.2 Asset Age Profile'!AQ79","v":0},{"$f":"'[2]5.2 Asset Age Profile'!AR79","v":0},{"$f":"'[2]5.2 Asset Age Profile'!AS79","v":0},{"$f":"'[2]5.2 Asset Age Profile'!AT79","v":0},{"$f":"'[2]5.2 Asset Age Profile'!AU79","v":0},{"$f":"'[2]5.2 Asset Age Profile'!AV79","v":0},{"$f":"'[2]5.2 Asset Age Profile'!AW79","v":0},{"$f":"'[2]5.2 Asset Age Profile'!AX79","v":0},{"$f":"'[2]5.2 Asset Age Profile'!AY79","v":0},{"$f":"'[2]5.2 Asset Age Profile'!AZ79","v":0},{"$f":"'[2]5.2 Asset Age Profile'!BA79","v":0},{"$f":"'[2]5.2 Asset Age Profile'!BB79","v":0},{"$f":"'[2]5.2 Asset Age Profile'!BC79","v":0},{"$f":"'[2]5.2 Asset Age Profile'!BD79","v":0},{"$f":"'[2]5.2 Asset Age Profile'!BE79","v":0},{"$f":"'[2]5.2 Asset Age Profile'!BF79","v":0},{"$f":"'[2]5.2 Asset Age Profile'!BG79","v":0},{"$f":"'[2]5.2 Asset Age Profile'!BH79","v":0},{"$f":"'[2]5.2 Asset Age Profile'!BI79","v":0},{"$f":"'[2]5.2 Asset Age Profile'!BJ79","v":0},{"$f":"'[2]5.2 Asset Age Profile'!BK79","v":0},{"$f":"'[2]5.2 Asset Age Profile'!BL79","v":0},{"$f":"'[2]5.2 Asset Age Profile'!BM79","v":0},{"$f":"'[2]5.2 Asset Age Profile'!BN79","v":0},{"$f":"'[2]5.2 Asset Age Profile'!BO79","v":0},{"$f":"'[2]5.2 Asset Age Profile'!BP79","v":0},{"$f":"'[2]5.2 Asset Age Profile'!BQ79","v":0},{"$f":"'[2]5.2 Asset Age Profile'!BR79","v":0},{"$f":"'[2]5.2 Asset Age Profile'!BS79","v":0},{"$f":"'[2]5.2 Asset Age Profile'!BT79","v":0},{"$f":"'[2]5.2 Asset Age Profile'!BU79","v":0},{"$f":"'[2]5.2 Asset Age Profile'!BV79","v":0},{"$f":"'[2]5.2 Asset Age Profile'!BW79","v":0},{"$f":"'[2]5.2 Asset Age Profile'!BX79","v":0},{"$f":"'[2]5.2 Asset Age Profile'!BY79","v":0},{"$f":"'[2]5.2 Asset Age Profile'!BZ79","v":0},{"$f":"'[2]5.2 Asset Age Profile'!CA79","v":0},{"$f":"'[2]5.2 Asset Age Profile'!CB79","v":0},{"$f":"'[2]5.2 Asset Age Profile'!CC79","v":0},{"$f":"'[2]5.2 Asset Age Profile'!CD79","v":0},{"$f":"'[2]5.2 Asset Age Profile'!CE79","v":0},{"$f":"'[2]5.2 Asset Age Profile'!CF79","v":0},{"$f":"'[2]5.2 Asset Age Profile'!CG79","v":0},{"$f":"'[2]5.2 Asset Age Profile'!CH79","v":0},{"$f":"'[2]5.2 Asset Age Profile'!CI79","v":0},{"$f":"'[2]5.2 Asset Age Profile'!CJ79","v":0},{"$f":"'[2]5.2 Asset Age Profile'!CK79","v":0},{"$f":"'[2]5.2 Asset Age Profile'!CL79","v":0},{"$f":"'[2]5.2 Asset Age Profile'!CM79","v":0},{"$f":"'[2]5.2 Asset Age Profile'!CN79","v":0},{"$f":"'[2]5.2 Asset Age Profile'!CO79","v":0},{"$f":"'[2]5.2 Asset Age Profile'!CP79","v":0},{"$f":"'[2]5.2 Asset Age Profile'!CQ79","v":0},{"$f":"'[2]5.2 Asset Age Profile'!CR79","v":0},{"$f":"'[2]5.2 Asset Age Profile'!CS79","v":0},{"$f":"'[2]5.2 Asset Age Profile'!CT79","v":0},{"$f":"'[2]5.2 Asset Age Profile'!CU79","v":0},{"$f":"'[2]5.2 Asset Age Profile'!CV79","v":0},{"$f":"'[2]5.2 Asset Age Profile'!CW79","v":0},{"$f":"'[2]5.2 Asset Age Profile'!CX79","v":0},{"$f":"'[2]5.2 Asset Age Profile'!CY79","v":0},{"$f":"'[2]5.2 Asset Age Profile'!CZ79","v":0},{"$f":"'[2]5.2 Asset Age Profile'!DA79","v":0},{"$f":"'[2]5.2 Asset Age Profile'!DB79","v":0},{"$f":"'[2]5.2 Asset Age Profile'!DC79","v":0},{"$f":"'[2]5.2 Asset Age Profile'!DD79","v":0},{"$f":"'[2]5.2 Asset Age Profile'!DE79","v":0},{"$f":"'[2]5.2 Asset Age Profile'!DF79","v":0},{"$f":"'[2]5.2 Asset Age Profile'!DG79","v":0},{"$f":"'[2]5.2 Asset Age Profile'!DH79","v":0},{"$f":"'[2]5.2 Asset Age Profile'!DI79","v":0},{"$f":"'[2]5.2 Asset Age Profile'!DJ79","v":0},{"$f":"'[2]5.2 Asset Age Profile'!DK79","v":0},{"$f":"'[2]5.2 Asset Age Profile'!DL79","v":0},{"$f":"'[2]5.2 Asset Age Profile'!DM79","v":0},{"$f":"'[2]5.2 Asset Age Profile'!DN79","v":0},{"$f":"'[2]5.2 Asset Age Profile'!DO79","v":0},{"$f":"'[2]5.2 Asset Age Profile'!DP79","v":0},{"$f":"'[2]5.2 Asset Age Profile'!DQ79","v":0},{"$f":"'[2]5.2 Asset Age Profile'!DR79","v":0},{"$f":"'[2]5.2 Asset Age Profile'!DS79","v":0},{"$f":"'[2]5.2 Asset Age Profile'!DT79","v":0},{"$f":"'[2]5.2 Asset Age Profile'!DU79","v":0},{"$f":"'[2]5.2 Asset Age Profile'!DV79","v":0},{"$f":"'[2]5.2 Asset Age Profile'!DW79","v":0},{"$f":"'[2]5.2 Asset Age Profile'!DX79","v":0},{"$f":"'[2]5.2 Asset Age Profile'!DY79","v":0},{"$f":"'[2]5.2 Asset Age Profile'!DZ79","v":0},{"$f":"'[2]5.2 Asset Age Profile'!EA79","v":0},{"$f":"'[2]5.2 Asset Age Profile'!EB79","v":0},{"$f":"'[2]5.2 Asset Age Profile'!EC79","v":0},{"$f":"'[2]5.2 Asset Age Profile'!ED79","v":0},{"$f":"'[2]5.2 Asset Age Profile'!EE79","v":0},{"$f":"'[2]5.2 Asset Age Profile'!EF79","v":0},{"$f":"'[2]5.2 Asset Age Profile'!EG79","v":0},{"$f":"'[2]5.2 Asset Age Profile'!EH79","v":0},{"$f":"'[2]5.2 Asset Age Profile'!EI79","v":0},{"$f":"'[2]5.2 Asset Age Profile'!EJ79","v":0}]
["ED_ASS521_00070",null,"Kiosk Mounted ; < = 22kV ;  < = 60 kVA  ; Multiple Phase",null,null,null,null,null,null,null,null,null,null,{"$f":"'[2]5.2 Asset Age Profile'!N80","v":45.8},{"$f":"'[2]5.2 Asset Age Profile'!O80","v":0},{"$f":"'[2]5.2 Asset Age Profile'!P80","v":0},{"$f":"'[2]5.2 Asset Age Profile'!Q80","v":0},{"$f":"'[2]5.2 Asset Age Profile'!R80","v":0},{"$f":"'[2]5.2 Asset Age Profile'!S80","v":0},{"$f":"'[2]5.2 Asset Age Profile'!T80","v":0},{"$f":"'[2]5.2 Asset Age Profile'!U80","v":0},{"$f":"'[2]5.2 Asset Age Profile'!V80","v":0},{"$f":"'[2]5.2 Asset Age Profile'!W80","v":0},{"$f":"'[2]5.2 Asset Age Profile'!X80","v":0},{"$f":"'[2]5.2 Asset Age Profile'!Y80","v":6.7675697262754522},{"$f":"'[2]5.2 Asset Age Profile'!Z80","v":0},{"$f":"'[2]5.2 Asset Age Profile'!AA80","v":0},{"$f":"'[2]5.2 Asset Age Profile'!AB80","v":0},{"$f":"'[2]5.2 Asset Age Profile'!AC80","v":0},{"$f":"'[2]5.2 Asset Age Profile'!AD80","v":0},{"$f":"'[2]5.2 Asset Age Profile'!AE80","v":0},{"$f":"'[2]5.2 Asset Age Profile'!AF80","v":0},{"$f":"'[2]5.2 Asset Age Profile'!AG80","v":0},{"$f":"'[2]5.2 Asset Age Profile'!AH80","v":0},{"$f":"'[2]5.2 Asset Age Profile'!AI80","v":0},{"$f":"'[2]5.2 Asset Age Profile'!AJ80","v":5},{"$f":"'[2]5.2 Asset Age Profile'!AK80","v":0},{"$f":"'[2]5.2 Asset Age Profile'!AL80","v":2},{"$f":"'[2]5.2 Asset Age Profile'!AM80","v":4},{"$f":"'[2]5.2 Asset Age Profile'!AN80","v":2},{"$f":"'[2]5.2 Asset Age Profile'!AO80","v":0},{"$f":"'[2]5.2 Asset Age Profile'!AP80","v":0},{"$f":"'[2]5.2 Asset Age Profile'!AQ80","v":0},{"$f":"'[2]5.2 Asset Age Profile'!AR80","v":1},{"$f":"'[2]5.2 Asset Age Profile'!AS80","v":0},{"$f":"'[2]5.2 Asset Age Profile'!AT80","v":4},{"$f":"'[2]5.2 Asset Age Profile'!AU80","v":1},{"$f":"'[2]5.2 Asset Age Profile'!AV80","v":1},{"$f":"'[2]5.2 Asset Age Profile'!AW80","v":2},{"$f":"'[2]5.2 Asset Age Profile'!AX80","v":1},{"$f":"'[2]5.2 Asset Age Profile'!AY80","v":12},{"$f":"'[2]5.2 Asset Age Profile'!AZ80","v":3},{"$f":"'[2]5.2 Asset Age Profile'!BA80","v":6},{"$f":"'[2]5.2 Asset Age Profile'!BB80","v":2},{"$f":"'[2]5.2 Asset Age Profile'!BC80","v":3},{"$f":"'[2]5.2 Asset Age Profile'!BD80","v":14},{"$f":"'[2]5.2 Asset Age Profile'!BE80","v":3},{"$f":"'[2]5.2 Asset Age Profile'!BF80","v":12},{"$f":"'[2]5.2 Asset Age Profile'!BG80","v":1},{"$f":"'[2]5.2 Asset Age Profile'!BH80","v":3},{"$f":"'[2]5.2 Asset Age Profile'!BI80","v":10},{"$f":"'[2]5.2 Asset Age Profile'!BJ80","v":3},{"$f":"'[2]5.2 Asset Age Profile'!BK80","v":4},{"$f":"'[2]5.2 Asset Age Profile'!BL80","v":1},{"$f":"'[2]5.2 Asset Age Profile'!BM80","v":3},{"$f":"'[2]5.2 Asset Age Profile'!BN80","v":6},{"$f":"'[2]5.2 Asset Age Profile'!BO80","v":12},{"$f":"'[2]5.2 Asset Age Profile'!BP80","v":7},{"$f":"'[2]5.2 Asset Age Profile'!BQ80","v":4},{"$f":"'[2]5.2 Asset Age Profile'!BR80","v":1},{"$f":"'[2]5.2 Asset Age Profile'!BS80","v":12},{"$f":"'[2]5.2 Asset Age Profile'!BT80","v":1},{"$f":"'[2]5.2 Asset Age Profile'!BU80","v":0},{"$f":"'[2]5.2 Asset Age Profile'!BV80","v":0},{"$f":"'[2]5.2 Asset Age Profile'!BW80","v":0},{"$f":"'[2]5.2 Asset Age Profile'!BX80","v":0},{"$f":"'[2]5.2 Asset Age Profile'!BY80","v":0},{"$f":"'[2]5.2 Asset Age Profile'!BZ80","v":0},{"$f":"'[2]5.2 Asset Age Profile'!CA80","v":0},{"$f":"'[2]5.2 Asset Age Profile'!CB80","v":0},{"$f":"'[2]5.2 Asset Age Profile'!CC80","v":0},{"$f":"'[2]5.2 Asset Age Profile'!CD80","v":0},{"$f":"'[2]5.2 Asset Age Profile'!CE80","v":1},{"$f":"'[2]5.2 Asset Age Profile'!CF80","v":0},{"$f":"'[2]5.2 Asset Age Profile'!CG80","v":0},{"$f":"'[2]5.2 Asset Age Profile'!CH80","v":0},{"$f":"'[2]5.2 Asset Age Profile'!CI80","v":0},{"$f":"'[2]5.2 Asset Age Profile'!CJ80","v":0},{"$f":"'[2]5.2 Asset Age Profile'!CK80","v":0},{"$f":"'[2]5.2 Asset Age Profile'!CL80","v":1},{"$f":"'[2]5.2 Asset Age Profile'!CM80","v":0},{"$f":"'[2]5.2 Asset Age Profile'!CN80","v":0},{"$f":"'[2]5.2 Asset Age Profile'!CO80","v":0},{"$f":"'[2]5.2 Asset Age Profile'!CP80","v":0},{"$f":"'[2]5.2 Asset Age Profile'!CQ80","v":0},{"$f":"'[2]5.2 Asset Age Profile'!CR80","v":0},{"$f":"'[2]5.2 Asset Age Profile'!CS80","v":1},{"$f":"'[2]5.2 Asset Age Profile'!CT80","v":0},{"$f":"'[2]5.2 Asset Age Profile'!CU80","v":1},{"$f":"'[2]5.2 Asset Age Profile'!CV80","v":0},{"$f":"'[2]5.2 Asset Age Profile'!CW80","v":0},{"$f":"'[2]5.2 Asset Age Profile'!CX80","v":0},{"$f":"'[2]5.2 Asset Age Profile'!CY80","v":0},{"$f":"'[2]5.2 Asset Age Profile'!CZ80","v":0},{"$f":"'[2]5.2 Asset Age Profile'!DA80","v":0},{"$f":"'[2]5.2 Asset Age Profile'!DB80","v":0},{"$f":"'[2]5.2 Asset Age Profile'!DC80","v":0},{"$f":"'[2]5.2 Asset Age Profile'!DD80","v":0},{"$f":"'[2]5.2 Asset Age Profile'!DE80","v":0},{"$f":"'[2]5.2 Asset Age Profile'!DF80","v":0},{"$f":"'[2]5.2 Asset Age Profile'!DG80","v":0},{"$f":"'[2]5.2 Asset Age Profile'!DH80","v":0},{"$f":"'[2]5.2 Asset Age Profile'!DI80","v":0},{"$f":"'[2]5.2 Asset Age Profile'!DJ80","v":0},{"$f":"'[2]5.2 Asset Age Profile'!DK80","v":0},{"$f":"'[2]5.2 Asset Age Profile'!DL80","v":0},{"$f":"'[2]5.2 Asset Age Profile'!DM80","v":0},{"$f":"'[2]5.2 Asset Age Profile'!DN80","v":0},{"$f":"'[2]5.2 Asset Age Profile'!DO80","v":0},{"$f":"'[2]5.2 Asset Age Profile'!DP80","v":0},{"$f":"'[2]5.2 Asset Age Profile'!DQ80","v":0},{"$f":"'[2]5.2 Asset Age Profile'!DR80","v":0},{"$f":"'[2]5.2 Asset Age Profile'!DS80","v":0},{"$f":"'[2]5.2 Asset Age Profile'!DT80","v":0},{"$f":"'[2]5.2 Asset Age Profile'!DU80","v":0},{"$f":"'[2]5.2 Asset Age Profile'!DV80","v":0},{"$f":"'[2]5.2 Asset Age Profile'!DW80","v":0},{"$f":"'[2]5.2 Asset Age Profile'!DX80","v":0},{"$f":"'[2]5.2 Asset Age Profile'!DY80","v":0},{"$f":"'[2]5.2 Asset Age Profile'!DZ80","v":0},{"$f":"'[2]5.2 Asset Age Profile'!EA80","v":0},{"$f":"'[2]5.2 Asset Age Profile'!EB80","v":0},{"$f":"'[2]5.2 Asset Age Profile'!EC80","v":0},{"$f":"'[2]5.2 Asset Age Profile'!ED80","v":0},{"$f":"'[2]5.2 Asset Age Profile'!EE80","v":0},{"$f":"'[2]5.2 Asset Age Profile'!EF80","v":0},{"$f":"'[2]5.2 Asset Age Profile'!EG80","v":0},{"$f":"'[2]5.2 Asset Age Profile'!EH80","v":0},{"$f":"'[2]5.2 Asset Age Profile'!EI80","v":0},{"$f":"'[2]5.2 Asset Age Profile'!EJ80","v":1}]
["ED_ASS521_00071",null,"Kiosk Mounted ; < = 22kV ;  > 60 kVA and < = 600 kVA  ; Multiple Phase",null,null,null,null,null,null,null,null,null,null,{"$f":"'[2]5.2 Asset Age Profile'!N81","v":45.8},{"$f":"'[2]5.2 Asset Age Profile'!O81","v":0},{"$f":"'[2]5.2 Asset Age Profile'!P81","v":0},{"$f":"'[2]5.2 Asset Age Profile'!Q81","v":0},{"$f":"'[2]5.2 Asset Age Profile'!R81","v":0},{"$f":"'[2]5.2 Asset Age Profile'!S81","v":0},{"$f":"'[2]5.2 Asset Age Profile'!T81","v":0},{"$f":"'[2]5.2 Asset Age Profile'!U81","v":0},{"$f":"'[2]5.2 Asset Age Profile'!V81","v":0},{"$f":"'[2]5.2 Asset Age Profile'!W81","v":0},{"$f":"'[2]5.2 Asset Age Profile'!X81","v":0},{"$f":"'[2]5.2 Asset Age Profile'!Y81","v":6.7675697262754522},{"$f":"'[2]5.2 Asset Age Profile'!Z81","v":0},{"$f":"'[2]5.2 Asset Age Profile'!AA81","v":0},{"$f":"'[2]5.2 Asset Age Profile'!AB81","v":0},{"$f":"'[2]5.2 Asset Age Profile'!AC81","v":0},{"$f":"'[2]5.2 Asset Age Profile'!AD81","v":0},{"$f":"'[2]5.2 Asset Age Profile'!AE81","v":0},{"$f":"'[2]5.2 Asset Age Profile'!AF81","v":0},{"$f":"'[2]5.2 Asset Age Profile'!AG81","v":0},{"$f":"'[2]5.2 Asset Age Profile'!AH81","v":0},{"$f":"'[2]5.2 Asset Age Profile'!AI81","v":0},{"$f":"'[2]5.2 Asset Age Profile'!AJ81","v":43},{"$f":"'[2]5.2 Asset Age Profile'!AK81","v":77},{"$f":"'[2]5.2 Asset Age Profile'!AL81","v":107},{"$f":"'[2]5.2 Asset Age Profile'!AM81","v":94},{"$f":"'[2]5.2 Asset Age Profile'!AN81","v":156},{"$f":"'[2]5.2 Asset Age Profile'!AO81","v":142},{"$f":"'[2]5.2 Asset Age Profile'!AP81","v":146},{"$f":"'[2]5.2 Asset Age Profile'!AQ81","v":174},{"$f":"'[2]5.2 Asset Age Profile'!AR81","v":200},{"$f":"'[2]5.2 Asset Age Profile'!AS81","v":133},{"$f":"'[2]5.2 Asset Age Profile'!AT81","v":205},{"$f":"'[2]5.2 Asset Age Profile'!AU81","v":253},{"$f":"'[2]5.2 Asset Age Profile'!AV81","v":151},{"$f":"'[2]5.2 Asset Age Profile'!AW81","v":134},{"$f":"'[2]5.2 Asset Age Profile'!AX81","v":99},{"$f":"'[2]5.2 Asset Age Profile'!AY81","v":112},{"$f":"'[2]5.2 Asset Age Profile'!AZ81","v":90},{"$f":"'[2]5.2 Asset Age Profile'!BA81","v":75},{"$f":"'[2]5.2 Asset Age Profile'!BB81","v":42},{"$f":"'[2]5.2 Asset Age Profile'!BC81","v":44},{"$f":"'[2]5.2 Asset Age Profile'!BD81","v":126},{"$f":"'[2]5.2 Asset Age Profile'!BE81","v":129},{"$f":"'[2]5.2 Asset Age Profile'!BF81","v":93},{"$f":"'[2]5.2 Asset Age Profile'!BG81","v":99},{"$f":"'[2]5.2 Asset Age Profile'!BH81","v":108},{"$f":"'[2]5.2 Asset Age Profile'!BI81","v":97},{"$f":"'[2]5.2 Asset Age Profile'!BJ81","v":76},{"$f":"'[2]5.2 Asset Age Profile'!BK81","v":37},{"$f":"'[2]5.2 Asset Age Profile'!BL81","v":49},{"$f":"'[2]5.2 Asset Age Profile'!BM81","v":100},{"$f":"'[2]5.2 Asset Age Profile'!BN81","v":38},{"$f":"'[2]5.2 Asset Age Profile'!BO81","v":39},{"$f":"'[2]5.2 Asset Age Profile'!BP81","v":54},{"$f":"'[2]5.2 Asset Age Profile'!BQ81","v":144},{"$f":"'[2]5.2 Asset Age Profile'!BR81","v":91},{"$f":"'[2]5.2 Asset Age Profile'!BS81","v":84},{"$f":"'[2]5.2 Asset Age Profile'!BT81","v":34},{"$f":"'[2]5.2 Asset Age Profile'!BU81","v":52},{"$f":"'[2]5.2 Asset Age Profile'!BV81","v":41},{"$f":"'[2]5.2 Asset Age Profile'!BW81","v":48},{"$f":"'[2]5.2 Asset Age Profile'!BX81","v":39},{"$f":"'[2]5.2 Asset Age Profile'!BY81","v":55},{"$f":"'[2]5.2 Asset Age Profile'!BZ81","v":23},{"$f":"'[2]5.2 Asset Age Profile'!CA81","v":15},{"$f":"'[2]5.2 Asset Age Profile'!CB81","v":13},{"$f":"'[2]5.2 Asset Age Profile'!CC81","v":35},{"$f":"'[2]5.2 Asset Age Profile'!CD81","v":13},{"$f":"'[2]5.2 Asset Age Profile'!CE81","v":9},{"$f":"'[2]5.2 Asset Age Profile'!CF81","v":7},{"$f":"'[2]5.2 Asset Age Profile'!CG81","v":8},{"$f":"'[2]5.2 Asset Age Profile'!CH81","v":5},{"$f":"'[2]5.2 Asset Age Profile'!CI81","v":5},{"$f":"'[2]5.2 Asset Age Profile'!CJ81","v":25},{"$f":"'[2]5.2 Asset Age Profile'!CK81","v":7},{"$f":"'[2]5.2 Asset Age Profile'!CL81","v":2},{"$f":"'[2]5.2 Asset Age Profile'!CM81","v":3},{"$f":"'[2]5.2 Asset Age Profile'!CN81","v":4},{"$f":"'[2]5.2 Asset Age Profile'!CO81","v":1},{"$f":"'[2]5.2 Asset Age Profile'!CP81","v":0},{"$f":"'[2]5.2 Asset Age Profile'!CQ81","v":2},{"$f":"'[2]5.2 Asset Age Profile'!CR81","v":0},{"$f":"'[2]5.2 Asset Age Profile'!CS81","v":1},{"$f":"'[2]5.2 Asset Age Profile'!CT81","v":2},{"$f":"'[2]5.2 Asset Age Profile'!CU81","v":1},{"$f":"'[2]5.2 Asset Age Profile'!CV81","v":0},{"$f":"'[2]5.2 Asset Age Profile'!CW81","v":2},{"$f":"'[2]5.2 Asset Age Profile'!CX81","v":2},{"$f":"'[2]5.2 Asset Age Profile'!CY81","v":0},{"$f":"'[2]5.2 Asset Age Profile'!CZ81","v":0},{"$f":"'[2]5.2 Asset Age Profile'!DA81","v":0},{"$f":"'[2]5.2 Asset Age Profile'!DB81","v":0},{"$f":"'[2]5.2 Asset Age Profile'!DC81","v":0},{"$f":"'[2]5.2 Asset Age Profile'!DD81","v":0},{"$f":"'[2]5.2 Asset Age Profile'!DE81","v":0},{"$f":"'[2]5.2 Asset Age Profile'!DF81","v":0},{"$f":"'[2]5.2 Asset Age Profile'!DG81","v":1},{"$f":"'[2]5.2 Asset Age Profile'!DH81","v":0},{"$f":"'[2]5.2 Asset Age Profile'!DI81","v":0},{"$f":"'[2]5.2 Asset Age Profile'!DJ81","v":1},{"$f":"'[2]5.2 Asset Age Profile'!DK81","v":1},{"$f":"'[2]5.2 Asset Age Profile'!DL81","v":0},{"$f":"'[2]5.2 Asset Age Profile'!DM81","v":0},{"$f":"'[2]5.2 Asset Age Profile'!DN81","v":0},{"$f":"'[2]5.2 Asset Age Profile'!DO81","v":0},{"$f":"'[2]5.2 Asset Age Profile'!DP81","v":0},{"$f":"'[2]5.2 Asset Age Profile'!DQ81","v":1},{"$f":"'[2]5.2 Asset Age Profile'!DR81","v":0},{"$f":"'[2]5.2 Asset Age Profile'!DS81","v":0},{"$f":"'[2]5.2 Asset Age Profile'!DT81","v":0},{"$f":"'[2]5.2 Asset Age Profile'!DU81","v":0},{"$f":"'[2]5.2 Asset Age Profile'!DV81","v":0},{"$f":"'[2]5.2 Asset Age Profile'!DW81","v":0},{"$f":"'[2]5.2 Asset Age Profile'!DX81","v":0},{"$f":"'[2]5.2 Asset Age Profile'!DY81","v":0},{"$f":"'[2]5.2 Asset Age Profile'!DZ81","v":0},{"$f":"'[2]5.2 Asset Age Profile'!EA81","v":0},{"$f":"'[2]5.2 Asset Age Profile'!EB81","v":0},{"$f":"'[2]5.2 Asset Age Profile'!EC81","v":0},{"$f":"'[2]5.2 Asset Age Profile'!ED81","v":0},{"$f":"'[2]5.2 Asset Age Profile'!EE81","v":0},{"$f":"'[2]5.2 Asset Age Profile'!EF81","v":0},{"$f":"'[2]5.2 Asset Age Profile'!EG81","v":0},{"$f":"'[2]5.2 Asset Age Profile'!EH81","v":0},{"$f":"'[2]5.2 Asset Age Profile'!EI81","v":0},{"$f":"'[2]5.2 Asset Age Profile'!EJ81","v":0}]
["ED_ASS521_00072",null,"Kiosk Mounted ; < = 22kV ;  > 600 kVA  ; Multiple Phase",null,null,null,null,null,null,null,null,null,null,{"$f":"'[2]5.2 Asset Age Profile'!N82","v":45.8},{"$f":"'[2]5.2 Asset Age Profile'!O82","v":0},{"$f":"'[2]5.2 Asset Age Profile'!P82","v":0},{"$f":"'[2]5.2 Asset Age Profile'!Q82","v":0},{"$f":"'[2]5.2 Asset Age Profile'!R82","v":0},{"$f":"'[2]5.2 Asset Age Profile'!S82","v":0},{"$f":"'[2]5.2 Asset Age Profile'!T82","v":0},{"$f":"'[2]5.2 Asset Age Profile'!U82","v":0},{"$f":"'[2]5.2 Asset Age Profile'!V82","v":0},{"$f":"'[2]5.2 Asset Age Profile'!W82","v":0},{"$f":"'[2]5.2 Asset Age Profile'!X82","v":0},{"$f":"'[2]5.2 Asset Age Profile'!Y82","v":6.7675697262754522},{"$f":"'[2]5.2 Asset Age Profile'!Z82","v":0},{"$f":"'[2]5.2 Asset Age Profile'!AA82","v":0},{"$f":"'[2]5.2 Asset Age Profile'!AB82","v":0},{"$f":"'[2]5.2 Asset Age Profile'!AC82","v":0},{"$f":"'[2]5.2 Asset Age Profile'!AD82","v":0},{"$f":"'[2]5.2 Asset Age Profile'!AE82","v":0},{"$f":"'[2]5.2 Asset Age Profile'!AF82","v":0},{"$f":"'[2]5.2 Asset Age Profile'!AG82","v":0},{"$f":"'[2]5.2 Asset Age Profile'!AH82","v":0},{"$f":"'[2]5.2 Asset Age Profile'!AI82","v":0},{"$f":"'[2]5.2 Asset Age Profile'!AJ82","v":12},{"$f":"'[2]5.2 Asset Age Profile'!AK82","v":55},{"$f":"'[2]5.2 Asset Age Profile'!AL82","v":46},{"$f":"'[2]5.2 Asset Age Profile'!AM82","v":35},{"$f":"'[2]5.2 Asset Age Profile'!AN82","v":92},{"$f":"'[2]5.2 Asset Age Profile'!AO82","v":63},{"$f":"'[2]5.2 Asset Age Profile'!AP82","v":81},{"$f":"'[2]5.2 Asset Age Profile'!AQ82","v":71},{"$f":"'[2]5.2 Asset Age Profile'!AR82","v":116},{"$f":"'[2]5.2 Asset Age Profile'!AS82","v":77},{"$f":"'[2]5.2 Asset Age Profile'!AT82","v":76},{"$f":"'[2]5.2 Asset Age Profile'!AU82","v":53},{"$f":"'[2]5.2 Asset Age Profile'!AV82","v":61},{"$f":"'[2]5.2 Asset Age Profile'!AW82","v":38},{"$f":"'[2]5.2 Asset Age Profile'!AX82","v":43},{"$f":"'[2]5.2 Asset Age Profile'!AY82","v":38},{"$f":"'[2]5.2 Asset Age Profile'!AZ82","v":47},{"$f":"'[2]5.2 Asset Age Profile'!BA82","v":29},{"$f":"'[2]5.2 Asset Age Profile'!BB82","v":12},{"$f":"'[2]5.2 Asset Age Profile'!BC82","v":25},{"$f":"'[2]5.2 Asset Age Profile'!BD82","v":20},{"$f":"'[2]5.2 Asset Age Profile'!BE82","v":30},{"$f":"'[2]5.2 Asset Age Profile'!BF82","v":11},{"$f":"'[2]5.2 Asset Age Profile'!BG82","v":16},{"$f":"'[2]5.2 Asset Age Profile'!BH82","v":18},{"$f":"'[2]5.2 Asset Age Profile'!BI82","v":16},{"$f":"'[2]5.2 Asset Age Profile'!BJ82","v":9},{"$f":"'[2]5.2 Asset Age Profile'!BK82","v":15},{"$f":"'[2]5.2 Asset Age Profile'!BL82","v":19},{"$f":"'[2]5.2 Asset Age Profile'!BM82","v":2},{"$f":"'[2]5.2 Asset Age Profile'!BN82","v":10},{"$f":"'[2]5.2 Asset Age Profile'!BO82","v":8},{"$f":"'[2]5.2 Asset Age Profile'!BP82","v":11},{"$f":"'[2]5.2 Asset Age Profile'!BQ82","v":16},{"$f":"'[2]5.2 Asset Age Profile'!BR82","v":12},{"$f":"'[2]5.2 Asset Age Profile'!BS82","v":14},{"$f":"'[2]5.2 Asset Age Profile'!BT82","v":10},{"$f":"'[2]5.2 Asset Age Profile'!BU82","v":9},{"$f":"'[2]5.2 Asset Age Profile'!BV82","v":4},{"$f":"'[2]5.2 Asset Age Profile'!BW82","v":2},{"$f":"'[2]5.2 Asset Age Profile'!BX82","v":1},{"$f":"'[2]5.2 Asset Age Profile'!BY82","v":9},{"$f":"'[2]5.2 Asset Age Profile'!BZ82","v":2},{"$f":"'[2]5.2 Asset Age Profile'!CA82","v":0},{"$f":"'[2]5.2 Asset Age Profile'!CB82","v":1},{"$f":"'[2]5.2 Asset Age Profile'!CC82","v":5},{"$f":"'[2]5.2 Asset Age Profile'!CD82","v":2},{"$f":"'[2]5.2 Asset Age Profile'!CE82","v":3},{"$f":"'[2]5.2 Asset Age Profile'!CF82","v":0},{"$f":"'[2]5.2 Asset Age Profile'!CG82","v":0},{"$f":"'[2]5.2 Asset Age Profile'!CH82","v":2},{"$f":"'[2]5.2 Asset Age Profile'!CI82","v":0},{"$f":"'[2]5.2 Asset Age Profile'!CJ82","v":1},{"$f":"'[2]5.2 Asset Age Profile'!CK82","v":2},{"$f":"'[2]5.2 Asset Age Profile'!CL82","v":0},{"$f":"'[2]5.2 Asset Age Profile'!CM82","v":1},{"$f":"'[2]5.2 Asset Age Profile'!CN82","v":0},{"$f":"'[2]5.2 Asset Age Profile'!CO82","v":0},{"$f":"'[2]5.2 Asset Age Profile'!CP82","v":0},{"$f":"'[2]5.2 Asset Age Profile'!CQ82","v":0},{"$f":"'[2]5.2 Asset Age Profile'!CR82","v":0},{"$f":"'[2]5.2 Asset Age Profile'!CS82","v":0},{"$f":"'[2]5.2 Asset Age Profile'!CT82","v":0},{"$f":"'[2]5.2 Asset Age Profile'!CU82","v":0},{"$f":"'[2]5.2 Asset Age Profile'!CV82","v":0},{"$f":"'[2]5.2 Asset Age Profile'!CW82","v":0},{"$f":"'[2]5.2 Asset Age Profile'!CX82","v":0},{"$f":"'[2]5.2 Asset Age Profile'!CY82","v":0},{"$f":"'[2]5.2 Asset Age Profile'!CZ82","v":0},{"$f":"'[2]5.2 Asset Age Profile'!DA82","v":0},{"$f":"'[2]5.2 Asset Age Profile'!DB82","v":0},{"$f":"'[2]5.2 Asset Age Profile'!DC82","v":0},{"$f":"'[2]5.2 Asset Age Profile'!DD82","v":0},{"$f":"'[2]5.2 Asset Age Profile'!DE82","v":0},{"$f":"'[2]5.2 Asset Age Profile'!DF82","v":0},{"$f":"'[2]5.2 Asset Age Profile'!DG82","v":0},{"$f":"'[2]5.2 Asset Age Profile'!DH82","v":0},{"$f":"'[2]5.2 Asset Age Profile'!DI82","v":0},{"$f":"'[2]5.2 Asset Age Profile'!DJ82","v":0},{"$f":"'[2]5.2 Asset Age Profile'!DK82","v":0},{"$f":"'[2]5.2 Asset Age Profile'!DL82","v":0},{"$f":"'[2]5.2 Asset Age Profile'!DM82","v":0},{"$f":"'[2]5.2 Asset Age Profile'!DN82","v":0},{"$f":"'[2]5.2 Asset Age Profile'!DO82","v":0},{"$f":"'[2]5.2 Asset Age Profile'!DP82","v":0},{"$f":"'[2]5.2 Asset Age Profile'!DQ82","v":0},{"$f":"'[2]5.2 Asset Age Profile'!DR82","v":0},{"$f":"'[2]5.2 Asset Age Profile'!DS82","v":0},{"$f":"'[2]5.2 Asset Age Profile'!DT82","v":0},{"$f":"'[2]5.2 Asset Age Profile'!DU82","v":0},{"$f":"'[2]5.2 Asset Age Profile'!DV82","v":0},{"$f":"'[2]5.2 Asset Age Profile'!DW82","v":0},{"$f":"'[2]5.2 Asset Age Profile'!DX82","v":0},{"$f":"'[2]5.2 Asset Age Profile'!DY82","v":0},{"$f":"'[2]5.2 Asset Age Profile'!DZ82","v":0},{"$f":"'[2]5.2 Asset Age Profile'!EA82","v":0},{"$f":"'[2]5.2 Asset Age Profile'!EB82","v":0},{"$f":"'[2]5.2 Asset Age Profile'!EC82","v":0},{"$f":"'[2]5.2 Asset Age Profile'!ED82","v":0},{"$f":"'[2]5.2 Asset Age Profile'!EE82","v":0},{"$f":"'[2]5.2 Asset Age Profile'!EF82","v":0},{"$f":"'[2]5.2 Asset Age Profile'!EG82","v":0},{"$f":"'[2]5.2 Asset Age Profile'!EH82","v":0},{"$f":"'[2]5.2 Asset Age Profile'!EI82","v":0},{"$f":"'[2]5.2 Asset Age Profile'!EJ82","v":0}]
["ED_ASS521_00073",null,"Ground Outdoor / Indoor Chamber Mounted; ˂ 22 kV ;  < = 60 kVA ; Single Phase",null,null,null,null,null,null,null,null,null,null,{"$f":"'[2]5.2 Asset Age Profile'!N83","v":0},{"$f":"'[2]5.2 Asset Age Profile'!O83","v":0},{"$f":"'[2]5.2 Asset Age Profile'!P83","v":0},{"$f":"'[2]5.2 Asset Age Profile'!Q83","v":0},{"$f":"'[2]5.2 Asset Age Profile'!R83","v":0},{"$f":"'[2]5.2 Asset Age Profile'!S83","v":0},{"$f":"'[2]5.2 Asset Age Profile'!T83","v":0},{"$f":"'[2]5.2 Asset Age Profile'!U83","v":0},{"$f":"'[2]5.2 Asset Age Profile'!V83","v":0},{"$f":"'[2]5.2 Asset Age Profile'!W83","v":0},{"$f":"'[2]5.2 Asset Age Profile'!X83","v":0},{"$f":"'[2]5.2 Asset Age Profile'!Y83","v":0},{"$f":"'[2]5.2 Asset Age Profile'!Z83","v":0},{"$f":"'[2]5.2 Asset Age Profile'!AA83","v":0},{"$f":"'[2]5.2 Asset Age Profile'!AB83","v":0},{"$f":"'[2]5.2 Asset Age Profile'!AC83","v":0},{"$f":"'[2]5.2 Asset Age Profile'!AD83","v":0},{"$f":"'[2]5.2 Asset Age Profile'!AE83","v":0},{"$f":"'[2]5.2 Asset Age Profile'!AF83","v":0},{"$f":"'[2]5.2 Asset Age Profile'!AG83","v":0},{"$f":"'[2]5.2 Asset Age Profile'!AH83","v":0},{"$f":"'[2]5.2 Asset Age Profile'!AI83","v":0},{"$f":"'[2]5.2 Asset Age Profile'!AJ83","v":0},{"$f":"'[2]5.2 Asset Age Profile'!AK83","v":0},{"$f":"'[2]5.2 Asset Age Profile'!AL83","v":0},{"$f":"'[2]5.2 Asset Age Profile'!AM83","v":0},{"$f":"'[2]5.2 Asset Age Profile'!AN83","v":0},{"$f":"'[2]5.2 Asset Age Profile'!AO83","v":0},{"$f":"'[2]5.2 Asset Age Profile'!AP83","v":0},{"$f":"'[2]5.2 Asset Age Profile'!AQ83","v":0},{"$f":"'[2]5.2 Asset Age Profile'!AR83","v":0},{"$f":"'[2]5.2 Asset Age Profile'!AS83","v":0},{"$f":"'[2]5.2 Asset Age Profile'!AT83","v":0},{"$f":"'[2]5.2 Asset Age Profile'!AU83","v":0},{"$f":"'[2]5.2 Asset Age Profile'!AV83","v":0},{"$f":"'[2]5.2 Asset Age Profile'!AW83","v":0},{"$f":"'[2]5.2 Asset Age Profile'!AX83","v":0},{"$f":"'[2]5.2 Asset Age Profile'!AY83","v":0},{"$f":"'[2]5.2 Asset Age Profile'!AZ83","v":0},{"$f":"'[2]5.2 Asset Age Profile'!BA83","v":0},{"$f":"'[2]5.2 Asset Age Profile'!BB83","v":0},{"$f":"'[2]5.2 Asset Age Profile'!BC83","v":0},{"$f":"'[2]5.2 Asset Age Profile'!BD83","v":0},{"$f":"'[2]5.2 Asset Age Profile'!BE83","v":0},{"$f":"'[2]5.2 Asset Age Profile'!BF83","v":0},{"$f":"'[2]5.2 Asset Age Profile'!BG83","v":0},{"$f":"'[2]5.2 Asset Age Profile'!BH83","v":0},{"$f":"'[2]5.2 Asset Age Profile'!BI83","v":0},{"$f":"'[2]5.2 Asset Age Profile'!BJ83","v":0},{"$f":"'[2]5.2 Asset Age Profile'!BK83","v":0},{"$f":"'[2]5.2 Asset Age Profile'!BL83","v":0},{"$f":"'[2]5.2 Asset Age Profile'!BM83","v":0},{"$f":"'[2]5.2 Asset Age Profile'!BN83","v":0},{"$f":"'[2]5.2 Asset Age Profile'!BO83","v":0},{"$f":"'[2]5.2 Asset Age Profile'!BP83","v":0},{"$f":"'[2]5.2 Asset Age Profile'!BQ83","v":0},{"$f":"'[2]5.2 Asset Age Profile'!BR83","v":0},{"$f":"'[2]5.2 Asset Age Profile'!BS83","v":0},{"$f":"'[2]5.2 Asset Age Profile'!BT83","v":0},{"$f":"'[2]5.2 Asset Age Profile'!BU83","v":0},{"$f":"'[2]5.2 Asset Age Profile'!BV83","v":0},{"$f":"'[2]5.2 Asset Age Profile'!BW83","v":0},{"$f":"'[2]5.2 Asset Age Profile'!BX83","v":0},{"$f":"'[2]5.2 Asset Age Profile'!BY83","v":0},{"$f":"'[2]5.2 Asset Age Profile'!BZ83","v":0},{"$f":"'[2]5.2 Asset Age Profile'!CA83","v":0},{"$f":"'[2]5.2 Asset Age Profile'!CB83","v":0},{"$f":"'[2]5.2 Asset Age Profile'!CC83","v":0},{"$f":"'[2]5.2 Asset Age Profile'!CD83","v":0},{"$f":"'[2]5.2 Asset Age Profile'!CE83","v":0},{"$f":"'[2]5.2 Asset Age Profile'!CF83","v":0},{"$f":"'[2]5.2 Asset Age Profile'!CG83","v":0},{"$f":"'[2]5.2 Asset Age Profile'!CH83","v":0},{"$f":"'[2]5.2 Asset Age Profile'!CI83","v":0},{"$f":"'[2]5.2 Asset Age Profile'!CJ83","v":0},{"$f":"'[2]5.2 Asset Age Profile'!CK83","v":0},{"$f":"'[2]5.2 Asset Age Profile'!CL83","v":0},{"$f":"'[2]5.2 Asset Age Profile'!CM83","v":0},{"$f":"'[2]5.2 Asset Age Profile'!CN83","v":0},{"$f":"'[2]5.2 Asset Age Profile'!CO83","v":0},{"$f":"'[2]5.2 Asset Age Profile'!CP83","v":0},{"$f":"'[2]5.2 Asset Age Profile'!CQ83","v":0},{"$f":"'[2]5.2 Asset Age Profile'!CR83","v":0},{"$f":"'[2]5.2 Asset Age Profile'!CS83","v":0},{"$f":"'[2]5.2 Asset Age Profile'!CT83","v":0},{"$f":"'[2]5.2 Asset Age Profile'!CU83","v":0},{"$f":"'[2]5.2 Asset Age Profile'!CV83","v":0},{"$f":"'[2]5.2 Asset Age Profile'!CW83","v":0},{"$f":"'[2]5.2 Asset Age Profile'!CX83","v":0},{"$f":"'[2]5.2 Asset Age Profile'!CY83","v":0},{"$f":"'[2]5.2 Asset Age Profile'!CZ83","v":0},{"$f":"'[2]5.2 Asset Age Profile'!DA83","v":0},{"$f":"'[2]5.2 Asset Age Profile'!DB83","v":0},{"$f":"'[2]5.2 Asset Age Profile'!DC83","v":0},{"$f":"'[2]5.2 Asset Age Profile'!DD83","v":0},{"$f":"'[2]5.2 Asset Age Profile'!DE83","v":0},{"$f":"'[2]5.2 Asset Age Profile'!DF83","v":0},{"$f":"'[2]5.2 Asset Age Profile'!DG83","v":0},{"$f":"'[2]5.2 Asset Age Profile'!DH83","v":0},{"$f":"'[2]5.2 Asset Age Profile'!DI83","v":0},{"$f":"'[2]5.2 Asset Age Profile'!DJ83","v":0},{"$f":"'[2]5.2 Asset Age Profile'!DK83","v":0},{"$f":"'[2]5.2 Asset Age Profile'!DL83","v":0},{"$f":"'[2]5.2 Asset Age Profile'!DM83","v":0},{"$f":"'[2]5.2 Asset Age Profile'!DN83","v":0},{"$f":"'[2]5.2 Asset Age Profile'!DO83","v":0},{"$f":"'[2]5.2 Asset Age Profile'!DP83","v":0},{"$f":"'[2]5.2 Asset Age Profile'!DQ83","v":0},{"$f":"'[2]5.2 Asset Age Profile'!DR83","v":0},{"$f":"'[2]5.2 Asset Age Profile'!DS83","v":0},{"$f":"'[2]5.2 Asset Age Profile'!DT83","v":0},{"$f":"'[2]5.2 Asset Age Profile'!DU83","v":0},{"$f":"'[2]5.2 Asset Age Profile'!DV83","v":0},{"$f":"'[2]5.2 Asset Age Profile'!DW83","v":0},{"$f":"'[2]5.2 Asset Age Profile'!DX83","v":0},{"$f":"'[2]5.2 Asset Age Profile'!DY83","v":0},{"$f":"'[2]5.2 Asset Age Profile'!DZ83","v":0},{"$f":"'[2]5.2 Asset Age Profile'!EA83","v":0},{"$f":"'[2]5.2 Asset Age Profile'!EB83","v":0},{"$f":"'[2]5.2 Asset Age Profile'!EC83","v":0},{"$f":"'[2]5.2 Asset Age Profile'!ED83","v":0},{"$f":"'[2]5.2 Asset Age Profile'!EE83","v":0},{"$f":"'[2]5.2 Asset Age Profile'!EF83","v":0},{"$f":"'[2]5.2 Asset Age Profile'!EG83","v":0},{"$f":"'[2]5.2 Asset Age Profile'!EH83","v":0},{"$f":"'[2]5.2 Asset Age Profile'!EI83","v":0},{"$f":"'[2]5.2 Asset Age Profile'!EJ83","v":0}]
["ED_ASS521_00074",null,"Ground Outdoor / Indoor Chamber Mounted; ˂  22 kV ;  > 60 kVA  and < = 600 kVA ; Single Phase",null,null,null,null,null,null,null,null,null,null,{"$f":"'[2]5.2 Asset Age Profile'!N84","v":45.8},{"$f":"'[2]5.2 Asset Age Profile'!O84","v":0},{"$f":"'[2]5.2 Asset Age Profile'!P84","v":0},{"$f":"'[2]5.2 Asset Age Profile'!Q84","v":0},{"$f":"'[2]5.2 Asset Age Profile'!R84","v":0},{"$f":"'[2]5.2 Asset Age Profile'!S84","v":0},{"$f":"'[2]5.2 Asset Age Profile'!T84","v":0},{"$f":"'[2]5.2 Asset Age Profile'!U84","v":0},{"$f":"'[2]5.2 Asset Age Profile'!V84","v":0},{"$f":"'[2]5.2 Asset Age Profile'!W84","v":0},{"$f":"'[2]5.2 Asset Age Profile'!X84","v":0},{"$f":"'[2]5.2 Asset Age Profile'!Y84","v":6.7675697262754522},{"$f":"'[2]5.2 Asset Age Profile'!Z84","v":0},{"$f":"'[2]5.2 Asset Age Profile'!AA84","v":0},{"$f":"'[2]5.2 Asset Age Profile'!AB84","v":0},{"$f":"'[2]5.2 Asset Age Profile'!AC84","v":0},{"$f":"'[2]5.2 Asset Age Profile'!AD84","v":0},{"$f":"'[2]5.2 Asset Age Profile'!AE84","v":0},{"$f":"'[2]5.2 Asset Age Profile'!AF84","v":0},{"$f":"'[2]5.2 Asset Age Profile'!AG84","v":0},{"$f":"'[2]5.2 Asset Age Profile'!AH84","v":0},{"$f":"'[2]5.2 Asset Age Profile'!AI84","v":0},{"$f":"'[2]5.2 Asset Age Profile'!AJ84","v":0},{"$f":"'[2]5.2 Asset Age Profile'!AK84","v":0},{"$f":"'[2]5.2 Asset Age Profile'!AL84","v":0},{"$f":"'[2]5.2 Asset Age Profile'!AM84","v":0},{"$f":"'[2]5.2 Asset Age Profile'!AN84","v":0},{"$f":"'[2]5.2 Asset Age Profile'!AO84","v":0},{"$f":"'[2]5.2 Asset Age Profile'!AP84","v":0},{"$f":"'[2]5.2 Asset Age Profile'!AQ84","v":0},{"$f":"'[2]5.2 Asset Age Profile'!AR84","v":0},{"$f":"'[2]5.2 Asset Age Profile'!AS84","v":0},{"$f":"'[2]5.2 Asset Age Profile'!AT84","v":0},{"$f":"'[2]5.2 Asset Age Profile'!AU84","v":0},{"$f":"'[2]5.2 Asset Age Profile'!AV84","v":0},{"$f":"'[2]5.2 Asset Age Profile'!AW84","v":0},{"$f":"'[2]5.2 Asset Age Profile'!AX84","v":0},{"$f":"'[2]5.2 Asset Age Profile'!AY84","v":0},{"$f":"'[2]5.2 Asset Age Profile'!AZ84","v":0},{"$f":"'[2]5.2 Asset Age Profile'!BA84","v":0},{"$f":"'[2]5.2 Asset Age Profile'!BB84","v":0},{"$f":"'[2]5.2 Asset Age Profile'!BC84","v":0},{"$f":"'[2]5.2 Asset Age Profile'!BD84","v":0},{"$f":"'[2]5.2 Asset Age Profile'!BE84","v":1},{"$f":"'[2]5.2 Asset Age Profile'!BF84","v":0},{"$f":"'[2]5.2 Asset Age Profile'!BG84","v":0},{"$f":"'[2]5.2 Asset Age Profile'!BH84","v":0},{"$f":"'[2]5.2 Asset Age Profile'!BI84","v":0},{"$f":"'[2]5.2 Asset Age Profile'!BJ84","v":0},{"$f":"'[2]5.2 Asset Age Profile'!BK84","v":0},{"$f":"'[2]5.2 Asset Age Profile'!BL84","v":0},{"$f":"'[2]5.2 Asset Age Profile'!BM84","v":0},{"$f":"'[2]5.2 Asset Age Profile'!BN84","v":0},{"$f":"'[2]5.2 Asset Age Profile'!BO84","v":0},{"$f":"'[2]5.2 Asset Age Profile'!BP84","v":0},{"$f":"'[2]5.2 Asset Age Profile'!BQ84","v":0},{"$f":"'[2]5.2 Asset Age Profile'!BR84","v":0},{"$f":"'[2]5.2 Asset Age Profile'!BS84","v":0},{"$f":"'[2]5.2 Asset Age Profile'!BT84","v":0},{"$f":"'[2]5.2 Asset Age Profile'!BU84","v":0},{"$f":"'[2]5.2 Asset Age Profile'!BV84","v":0},{"$f":"'[2]5.2 Asset Age Profile'!BW84","v":0},{"$f":"'[2]5.2 Asset Age Profile'!BX84","v":0},{"$f":"'[2]5.2 Asset Age Profile'!BY84","v":0},{"$f":"'[2]5.2 Asset Age Profile'!BZ84","v":0},{"$f":"'[2]5.2 Asset Age Profile'!CA84","v":0},{"$f":"'[2]5.2 Asset Age Profile'!CB84","v":0},{"$f":"'[2]5.2 Asset Age Profile'!CC84","v":0},{"$f":"'[2]5.2 Asset Age Profile'!CD84","v":0},{"$f":"'[2]5.2 Asset Age Profile'!CE84","v":0},{"$f":"'[2]5.2 Asset Age Profile'!CF84","v":0},{"$f":"'[2]5.2 Asset Age Profile'!CG84","v":0},{"$f":"'[2]5.2 Asset Age Profile'!CH84","v":0},{"$f":"'[2]5.2 Asset Age Profile'!CI84","v":0},{"$f":"'[2]5.2 Asset Age Profile'!CJ84","v":0},{"$f":"'[2]5.2 Asset Age Profile'!CK84","v":0},{"$f":"'[2]5.2 Asset Age Profile'!CL84","v":0},{"$f":"'[2]5.2 Asset Age Profile'!CM84","v":0},{"$f":"'[2]5.2 Asset Age Profile'!CN84","v":0},{"$f":"'[2]5.2 Asset Age Profile'!CO84","v":0},{"$f":"'[2]5.2 Asset Age Profile'!CP84","v":0},{"$f":"'[2]5.2 Asset Age Profile'!CQ84","v":0},{"$f":"'[2]5.2 Asset Age Profile'!CR84","v":0},{"$f":"'[2]5.2 Asset Age Profile'!CS84","v":0},{"$f":"'[2]5.2 Asset Age Profile'!CT84","v":0},{"$f":"'[2]5.2 Asset Age Profile'!CU84","v":0},{"$f":"'[2]5.2 Asset Age Profile'!CV84","v":0},{"$f":"'[2]5.2 Asset Age Profile'!CW84","v":0},{"$f":"'[2]5.2 Asset Age Profile'!CX84","v":0},{"$f":"'[2]5.2 Asset Age Profile'!CY84","v":0},{"$f":"'[2]5.2 Asset Age Profile'!CZ84","v":0},{"$f":"'[2]5.2 Asset Age Profile'!DA84","v":0},{"$f":"'[2]5.2 Asset Age Profile'!DB84","v":0},{"$f":"'[2]5.2 Asset Age Profile'!DC84","v":0},{"$f":"'[2]5.2 Asset Age Profile'!DD84","v":0},{"$f":"'[2]5.2 Asset Age Profile'!DE84","v":0},{"$f":"'[2]5.2 Asset Age Profile'!DF84","v":0},{"$f":"'[2]5.2 Asset Age Profile'!DG84","v":0},{"$f":"'[2]5.2 Asset Age Profile'!DH84","v":0},{"$f":"'[2]5.2 Asset Age Profile'!DI84","v":0},{"$f":"'[2]5.2 Asset Age Profile'!DJ84","v":0},{"$f":"'[2]5.2 Asset Age Profile'!DK84","v":0},{"$f":"'[2]5.2 Asset Age Profile'!DL84","v":0},{"$f":"'[2]5.2 Asset Age Profile'!DM84","v":0},{"$f":"'[2]5.2 Asset Age Profile'!DN84","v":0},{"$f":"'[2]5.2 Asset Age Profile'!DO84","v":0},{"$f":"'[2]5.2 Asset Age Profile'!DP84","v":0},{"$f":"'[2]5.2 Asset Age Profile'!DQ84","v":0},{"$f":"'[2]5.2 Asset Age Profile'!DR84","v":0},{"$f":"'[2]5.2 Asset Age Profile'!DS84","v":0},{"$f":"'[2]5.2 Asset Age Profile'!DT84","v":0},{"$f":"'[2]5.2 Asset Age Profile'!DU84","v":0},{"$f":"'[2]5.2 Asset Age Profile'!DV84","v":0},{"$f":"'[2]5.2 Asset Age Profile'!DW84","v":0},{"$f":"'[2]5.2 Asset Age Profile'!DX84","v":0},{"$f":"'[2]5.2 Asset Age Profile'!DY84","v":0},{"$f":"'[2]5.2 Asset Age Profile'!DZ84","v":0},{"$f":"'[2]5.2 Asset Age Profile'!EA84","v":0},{"$f":"'[2]5.2 Asset Age Profile'!EB84","v":0},{"$f":"'[2]5.2 Asset Age Profile'!EC84","v":0},{"$f":"'[2]5.2 Asset Age Profile'!ED84","v":0},{"$f":"'[2]5.2 Asset Age Profile'!EE84","v":0},{"$f":"'[2]5.2 Asset Age Profile'!EF84","v":0},{"$f":"'[2]5.2 Asset Age Profile'!EG84","v":0},{"$f":"'[2]5.2 Asset Age Profile'!EH84","v":0},{"$f":"'[2]5.2 Asset Age Profile'!EI84","v":0},{"$f":"'[2]5.2 Asset Age Profile'!EJ84","v":0}]
["ED_ASS521_00075",null,"Ground Outdoor / Indoor Chamber Mounted; ˂  22 kV ;  >  600 kVA ; Single Phase",null,null,null,null,null,null,null,null,null,null,{"$f":"'[2]5.2 Asset Age Profile'!N85","v":45.8},{"$f":"'[2]5.2 Asset Age Profile'!O85","v":0},{"$f":"'[2]5.2 Asset Age Profile'!P85","v":0},{"$f":"'[2]5.2 Asset Age Profile'!Q85","v":0},{"$f":"'[2]5.2 Asset Age Profile'!R85","v":0},{"$f":"'[2]5.2 Asset Age Profile'!S85","v":0},{"$f":"'[2]5.2 Asset Age Profile'!T85","v":0},{"$f":"'[2]5.2 Asset Age Profile'!U85","v":0},{"$f":"'[2]5.2 Asset Age Profile'!V85","v":0},{"$f":"'[2]5.2 Asset Age Profile'!W85","v":0},{"$f":"'[2]5.2 Asset Age Profile'!X85","v":0},{"$f":"'[2]5.2 Asset Age Profile'!Y85","v":6.7675697262754522},{"$f":"'[2]5.2 Asset Age Profile'!Z85","v":0},{"$f":"'[2]5.2 Asset Age Profile'!AA85","v":0},{"$f":"'[2]5.2 Asset Age Profile'!AB85","v":0},{"$f":"'[2]5.2 Asset Age Profile'!AC85","v":0},{"$f":"'[2]5.2 Asset Age Profile'!AD85","v":0},{"$f":"'[2]5.2 Asset Age Profile'!AE85","v":0},{"$f":"'[2]5.2 Asset Age Profile'!AF85","v":0},{"$f":"'[2]5.2 Asset Age Profile'!AG85","v":0},{"$f":"'[2]5.2 Asset Age Profile'!AH85","v":0},{"$f":"'[2]5.2 Asset Age Profile'!AI85","v":0},{"$f":"'[2]5.2 Asset Age Profile'!AJ85","v":0},{"$f":"'[2]5.2 Asset Age Profile'!AK85","v":0},{"$f":"'[2]5.2 Asset Age Profile'!AL85","v":0},{"$f":"'[2]5.2 Asset Age Profile'!AM85","v":0},{"$f":"'[2]5.2 Asset Age Profile'!AN85","v":0},{"$f":"'[2]5.2 Asset Age Profile'!AO85","v":0},{"$f":"'[2]5.2 Asset Age Profile'!AP85","v":0},{"$f":"'[2]5.2 Asset Age Profile'!AQ85","v":0},{"$f":"'[2]5.2 Asset Age Profile'!AR85","v":0},{"$f":"'[2]5.2 Asset Age Profile'!AS85","v":0},{"$f":"'[2]5.2 Asset Age Profile'!AT85","v":0},{"$f":"'[2]5.2 Asset Age Profile'!AU85","v":0},{"$f":"'[2]5.2 Asset Age Profile'!AV85","v":0},{"$f":"'[2]5.2 Asset Age Profile'!AW85","v":0},{"$f":"'[2]5.2 Asset Age Profile'!AX85","v":0},{"$f":"'[2]5.2 Asset Age Profile'!AY85","v":0},{"$f":"'[2]5.2 Asset Age Profile'!AZ85","v":0},{"$f":"'[2]5.2 Asset Age Profile'!BA85","v":0},{"$f":"'[2]5.2 Asset Age Profile'!BB85","v":0},{"$f":"'[2]5.2 Asset Age Profile'!BC85","v":0},{"$f":"'[2]5.2 Asset Age Profile'!BD85","v":0},{"$f":"'[2]5.2 Asset Age Profile'!BE85","v":0},{"$f":"'[2]5.2 Asset Age Profile'!BF85","v":0},{"$f":"'[2]5.2 Asset Age Profile'!BG85","v":0},{"$f":"'[2]5.2 Asset Age Profile'!BH85","v":0},{"$f":"'[2]5.2 Asset Age Profile'!BI85","v":0},{"$f":"'[2]5.2 Asset Age Profile'!BJ85","v":0},{"$f":"'[2]5.2 Asset Age Profile'!BK85","v":0},{"$f":"'[2]5.2 Asset Age Profile'!BL85","v":0},{"$f":"'[2]5.2 Asset Age Profile'!BM85","v":0},{"$f":"'[2]5.2 Asset Age Profile'!BN85","v":0},{"$f":"'[2]5.2 Asset Age Profile'!BO85","v":0},{"$f":"'[2]5.2 Asset Age Profile'!BP85","v":0},{"$f":"'[2]5.2 Asset Age Profile'!BQ85","v":0},{"$f":"'[2]5.2 Asset Age Profile'!BR85","v":0},{"$f":"'[2]5.2 Asset Age Profile'!BS85","v":0},{"$f":"'[2]5.2 Asset Age Profile'!BT85","v":0},{"$f":"'[2]5.2 Asset Age Profile'!BU85","v":0},{"$f":"'[2]5.2 Asset Age Profile'!BV85","v":0},{"$f":"'[2]5.2 Asset Age Profile'!BW85","v":0},{"$f":"'[2]5.2 Asset Age Profile'!BX85","v":0},{"$f":"'[2]5.2 Asset Age Profile'!BY85","v":0},{"$f":"'[2]5.2 Asset Age Profile'!BZ85","v":0},{"$f":"'[2]5.2 Asset Age Profile'!CA85","v":0},{"$f":"'[2]5.2 Asset Age Profile'!CB85","v":0},{"$f":"'[2]5.2 Asset Age Profile'!CC85","v":0},{"$f":"'[2]5.2 Asset Age Profile'!CD85","v":0},{"$f":"'[2]5.2 Asset Age Profile'!CE85","v":0},{"$f":"'[2]5.2 Asset Age Profile'!CF85","v":0},{"$f":"'[2]5.2 Asset Age Profile'!CG85","v":0},{"$f":"'[2]5.2 Asset Age Profile'!CH85","v":0},{"$f":"'[2]5.2 Asset Age Profile'!CI85","v":0},{"$f":"'[2]5.2 Asset Age Profile'!CJ85","v":0},{"$f":"'[2]5.2 Asset Age Profile'!CK85","v":0},{"$f":"'[2]5.2 Asset Age Profile'!CL85","v":0},{"$f":"'[2]5.2 Asset Age Profile'!CM85","v":0},{"$f":"'[2]5.2 Asset Age Profile'!CN85","v":0},{"$f":"'[2]5.2 Asset Age Profile'!CO85","v":0},{"$f":"'[2]5.2 Asset Age Profile'!CP85","v":0},{"$f":"'[2]5.2 Asset Age Profile'!CQ85","v":0},{"$f":"'[2]5.2 Asset Age Profile'!CR85","v":0},{"$f":"'[2]5.2 Asset Age Profile'!CS85","v":0},{"$f":"'[2]5.2 Asset Age Profile'!CT85","v":0},{"$f":"'[2]5.2 Asset Age Profile'!CU85","v":0},{"$f":"'[2]5.2 Asset Age Profile'!CV85","v":0},{"$f":"'[2]5.2 Asset Age Profile'!CW85","v":0},{"$f":"'[2]5.2 Asset Age Profile'!CX85","v":0},{"$f":"'[2]5.2 Asset Age Profile'!CY85","v":0},{"$f":"'[2]5.2 Asset Age Profile'!CZ85","v":0},{"$f":"'[2]5.2 Asset Age Profile'!DA85","v":0},{"$f":"'[2]5.2 Asset Age Profile'!DB85","v":0},{"$f":"'[2]5.2 Asset Age Profile'!DC85","v":0},{"$f":"'[2]5.2 Asset Age Profile'!DD85","v":0},{"$f":"'[2]5.2 Asset Age Profile'!DE85","v":0},{"$f":"'[2]5.2 Asset Age Profile'!DF85","v":0},{"$f":"'[2]5.2 Asset Age Profile'!DG85","v":0},{"$f":"'[2]5.2 Asset Age Profile'!DH85","v":0},{"$f":"'[2]5.2 Asset Age Profile'!DI85","v":0},{"$f":"'[2]5.2 Asset Age Profile'!DJ85","v":0},{"$f":"'[2]5.2 Asset Age Profile'!DK85","v":0},{"$f":"'[2]5.2 Asset Age Profile'!DL85","v":0},{"$f":"'[2]5.2 Asset Age Profile'!DM85","v":0},{"$f":"'[2]5.2 Asset Age Profile'!DN85","v":0},{"$f":"'[2]5.2 Asset Age Profile'!DO85","v":0},{"$f":"'[2]5.2 Asset Age Profile'!DP85","v":0},{"$f":"'[2]5.2 Asset Age Profile'!DQ85","v":0},{"$f":"'[2]5.2 Asset Age Profile'!DR85","v":0},{"$f":"'[2]5.2 Asset Age Profile'!DS85","v":0},{"$f":"'[2]5.2 Asset Age Profile'!DT85","v":0},{"$f":"'[2]5.2 Asset Age Profile'!DU85","v":0},{"$f":"'[2]5.2 Asset Age Profile'!DV85","v":0},{"$f":"'[2]5.2 Asset Age Profile'!DW85","v":0},{"$f":"'[2]5.2 Asset Age Profile'!DX85","v":0},{"$f":"'[2]5.2 Asset Age Profile'!DY85","v":0},{"$f":"'[2]5.2 Asset Age Profile'!DZ85","v":0},{"$f":"'[2]5.2 Asset Age Profile'!EA85","v":0},{"$f":"'[2]5.2 Asset Age Profile'!EB85","v":0},{"$f":"'[2]5.2 Asset Age Profile'!EC85","v":0},{"$f":"'[2]5.2 Asset Age Profile'!ED85","v":0},{"$f":"'[2]5.2 Asset Age Profile'!EE85","v":0},{"$f":"'[2]5.2 Asset Age Profile'!EF85","v":0},{"$f":"'[2]5.2 Asset Age Profile'!EG85","v":0},{"$f":"'[2]5.2 Asset Age Profile'!EH85","v":0},{"$f":"'[2]5.2 Asset Age Profile'!EI85","v":0},{"$f":"'[2]5.2 Asset Age Profile'!EJ85","v":0}]
["ED_ASS521_00076",null,"Ground Outdoor / Indoor Chamber Mounted; ˂  22 kV ;  < = 60 kVA ; Multiple Phase",null,null,null,null,null,null,null,null,null,null,{"$f":"'[2]5.2 Asset Age Profile'!N86","v":45.8},{"$f":"'[2]5.2 Asset Age Profile'!O86","v":0},{"$f":"'[2]5.2 Asset Age Profile'!P86","v":0},{"$f":"'[2]5.2 Asset Age Profile'!Q86","v":0},{"$f":"'[2]5.2 Asset Age Profile'!R86","v":0},{"$f":"'[2]5.2 Asset Age Profile'!S86","v":0},{"$f":"'[2]5.2 Asset Age Profile'!T86","v":0},{"$f":"'[2]5.2 Asset Age Profile'!U86","v":0},{"$f":"'[2]5.2 Asset Age Profile'!V86","v":0},{"$f":"'[2]5.2 Asset Age Profile'!W86","v":0},{"$f":"'[2]5.2 Asset Age Profile'!X86","v":0},{"$f":"'[2]5.2 Asset Age Profile'!Y86","v":6.7675697262754522},{"$f":"'[2]5.2 Asset Age Profile'!Z86","v":0},{"$f":"'[2]5.2 Asset Age Profile'!AA86","v":0},{"$f":"'[2]5.2 Asset Age Profile'!AB86","v":0},{"$f":"'[2]5.2 Asset Age Profile'!AC86","v":0},{"$f":"'[2]5.2 Asset Age Profile'!AD86","v":0},{"$f":"'[2]5.2 Asset Age Profile'!AE86","v":0},{"$f":"'[2]5.2 Asset Age Profile'!AF86","v":0},{"$f":"'[2]5.2 Asset Age Profile'!AG86","v":0},{"$f":"'[2]5.2 Asset Age Profile'!AH86","v":0},{"$f":"'[2]5.2 Asset Age Profile'!AI86","v":0},{"$f":"'[2]5.2 Asset Age Profile'!AJ86","v":1},{"$f":"'[2]5.2 Asset Age Profile'!AK86","v":1},{"$f":"'[2]5.2 Asset Age Profile'!AL86","v":1},{"$f":"'[2]5.2 Asset Age Profile'!AM86","v":1},{"$f":"'[2]5.2 Asset Age Profile'!AN86","v":0},{"$f":"'[2]5.2 Asset Age Profile'!AO86","v":2},{"$f":"'[2]5.2 Asset Age Profile'!AP86","v":0},{"$f":"'[2]5.2 Asset Age Profile'!AQ86","v":2},{"$f":"'[2]5.2 Asset Age Profile'!AR86","v":1},{"$f":"'[2]5.2 Asset Age Profile'!AS86","v":0},{"$f":"'[2]5.2 Asset Age Profile'!AT86","v":1},{"$f":"'[2]5.2 Asset Age Profile'!AU86","v":0},{"$f":"'[2]5.2 Asset Age Profile'!AV86","v":1},{"$f":"'[2]5.2 Asset Age Profile'!AW86","v":1},{"$f":"'[2]5.2 Asset Age Profile'!AX86","v":1},{"$f":"'[2]5.2 Asset Age Profile'!AY86","v":0},{"$f":"'[2]5.2 Asset Age Profile'!AZ86","v":1},{"$f":"'[2]5.2 Asset Age Profile'!BA86","v":0},{"$f":"'[2]5.2 Asset Age Profile'!BB86","v":1},{"$f":"'[2]5.2 Asset Age Profile'!BC86","v":0},{"$f":"'[2]5.2 Asset Age Profile'!BD86","v":1},{"$f":"'[2]5.2 Asset Age Profile'!BE86","v":1},{"$f":"'[2]5.2 Asset Age Profile'!BF86","v":0},{"$f":"'[2]5.2 Asset Age Profile'!BG86","v":1},{"$f":"'[2]5.2 Asset Age Profile'!BH86","v":1},{"$f":"'[2]5.2 Asset Age Profile'!BI86","v":1},{"$f":"'[2]5.2 Asset Age Profile'!BJ86","v":0},{"$f":"'[2]5.2 Asset Age Profile'!BK86","v":1},{"$f":"'[2]5.2 Asset Age Profile'!BL86","v":0},{"$f":"'[2]5.2 Asset Age Profile'!BM86","v":1},{"$f":"'[2]5.2 Asset Age Profile'!BN86","v":1},{"$f":"'[2]5.2 Asset Age Profile'!BO86","v":1},{"$f":"'[2]5.2 Asset Age Profile'!BP86","v":0},{"$f":"'[2]5.2 Asset Age Profile'!BQ86","v":0},{"$f":"'[2]5.2 Asset Age Profile'!BR86","v":4},{"$f":"'[2]5.2 Asset Age Profile'!BS86","v":1},{"$f":"'[2]5.2 Asset Age Profile'!BT86","v":0},{"$f":"'[2]5.2 Asset Age Profile'!BU86","v":0},{"$f":"'[2]5.2 Asset Age Profile'!BV86","v":0},{"$f":"'[2]5.2 Asset Age Profile'!BW86","v":2},{"$f":"'[2]5.2 Asset Age Profile'!BX86","v":0},{"$f":"'[2]5.2 Asset Age Profile'!BY86","v":0},{"$f":"'[2]5.2 Asset Age Profile'!BZ86","v":0},{"$f":"'[2]5.2 Asset Age Profile'!CA86","v":0},{"$f":"'[2]5.2 Asset Age Profile'!CB86","v":0},{"$f":"'[2]5.2 Asset Age Profile'!CC86","v":0},{"$f":"'[2]5.2 Asset Age Profile'!CD86","v":0},{"$f":"'[2]5.2 Asset Age Profile'!CE86","v":1},{"$f":"'[2]5.2 Asset Age Profile'!CF86","v":0},{"$f":"'[2]5.2 Asset Age Profile'!CG86","v":1},{"$f":"'[2]5.2 Asset Age Profile'!CH86","v":0},{"$f":"'[2]5.2 Asset Age Profile'!CI86","v":1},{"$f":"'[2]5.2 Asset Age Profile'!CJ86","v":1},{"$f":"'[2]5.2 Asset Age Profile'!CK86","v":1},{"$f":"'[2]5.2 Asset Age Profile'!CL86","v":0},{"$f":"'[2]5.2 Asset Age Profile'!CM86","v":0},{"$f":"'[2]5.2 Asset Age Profile'!CN86","v":0},{"$f":"'[2]5.2 Asset Age Profile'!CO86","v":0},{"$f":"'[2]5.2 Asset Age Profile'!CP86","v":2},{"$f":"'[2]5.2 Asset Age Profile'!CQ86","v":0},{"$f":"'[2]5.2 Asset Age Profile'!CR86","v":0},{"$f":"'[2]5.2 Asset Age Profile'!CS86","v":0},{"$f":"'[2]5.2 Asset Age Profile'!CT86","v":0},{"$f":"'[2]5.2 Asset Age Profile'!CU86","v":0},{"$f":"'[2]5.2 Asset Age Profile'!CV86","v":0},{"$f":"'[2]5.2 Asset Age Profile'!CW86","v":0},{"$f":"'[2]5.2 Asset Age Profile'!CX86","v":0},{"$f":"'[2]5.2 Asset Age Profile'!CY86","v":0},{"$f":"'[2]5.2 Asset Age Profile'!CZ86","v":0},{"$f":"'[2]5.2 Asset Age Profile'!DA86","v":0},{"$f":"'[2]5.2 Asset Age Profile'!DB86","v":0},{"$f":"'[2]5.2 Asset Age Profile'!DC86","v":0},{"$f":"'[2]5.2 Asset Age Profile'!DD86","v":0},{"$f":"'[2]5.2 Asset Age Profile'!DE86","v":0},{"$f":"'[2]5.2 Asset Age Profile'!DF86","v":0},{"$f":"'[2]5.2 Asset Age Profile'!DG86","v":0},{"$f":"'[2]5.2 Asset Age Profile'!DH86","v":0},{"$f":"'[2]5.2 Asset Age Profile'!DI86","v":0},{"$f":"'[2]5.2 Asset Age Profile'!DJ86","v":0},{"$f":"'[2]5.2 Asset Age Profile'!DK86","v":0},{"$f":"'[2]5.2 Asset Age Profile'!DL86","v":0},{"$f":"'[2]5.2 Asset Age Profile'!DM86","v":0},{"$f":"'[2]5.2 Asset Age Profile'!DN86","v":0},{"$f":"'[2]5.2 Asset Age Profile'!DO86","v":0},{"$f":"'[2]5.2 Asset Age Profile'!DP86","v":0},{"$f":"'[2]5.2 Asset Age Profile'!DQ86","v":0},{"$f":"'[2]5.2 Asset Age Profile'!DR86","v":0},{"$f":"'[2]5.2 Asset Age Profile'!DS86","v":0},{"$f":"'[2]5.2 Asset Age Profile'!DT86","v":0},{"$f":"'[2]5.2 Asset Age Profile'!DU86","v":0},{"$f":"'[2]5.2 Asset Age Profile'!DV86","v":0},{"$f":"'[2]5.2 Asset Age Profile'!DW86","v":0},{"$f":"'[2]5.2 Asset Age Profile'!DX86","v":0},{"$f":"'[2]5.2 Asset Age Profile'!DY86","v":0},{"$f":"'[2]5.2 Asset Age Profile'!DZ86","v":0},{"$f":"'[2]5.2 Asset Age Profile'!EA86","v":0},{"$f":"'[2]5.2 Asset Age Profile'!EB86","v":0},{"$f":"'[2]5.2 Asset Age Profile'!EC86","v":0},{"$f":"'[2]5.2 Asset Age Profile'!ED86","v":0},{"$f":"'[2]5.2 Asset Age Profile'!EE86","v":0},{"$f":"'[2]5.2 Asset Age Profile'!EF86","v":0},{"$f":"'[2]5.2 Asset Age Profile'!EG86","v":0},{"$f":"'[2]5.2 Asset Age Profile'!EH86","v":0},{"$f":"'[2]5.2 Asset Age Profile'!EI86","v":0},{"$f":"'[2]5.2 Asset Age Profile'!EJ86","v":0}]
["ED_ASS521_00077",null,"Ground Outdoor / Indoor Chamber Mounted; ˂  22 kV ;  > 60 kVA  and < = 600 kVA ; Multiple Phase",null,null,null,null,null,null,null,null,null,null,{"$f":"'[2]5.2 Asset Age Profile'!N87","v":45.8},{"$f":"'[2]5.2 Asset Age Profile'!O87","v":0},{"$f":"'[2]5.2 Asset Age Profile'!P87","v":0},{"$f":"'[2]5.2 Asset Age Profile'!Q87","v":0},{"$f":"'[2]5.2 Asset Age Profile'!R87","v":0},{"$f":"'[2]5.2 Asset Age Profile'!S87","v":0},{"$f":"'[2]5.2 Asset Age Profile'!T87","v":0},{"$f":"'[2]5.2 Asset Age Profile'!U87","v":0},{"$f":"'[2]5.2 Asset Age Profile'!V87","v":0},{"$f":"'[2]5.2 Asset Age Profile'!W87","v":0},{"$f":"'[2]5.2 Asset Age Profile'!X87","v":0},{"$f":"'[2]5.2 Asset Age Profile'!Y87","v":6.7675697262754522},{"$f":"'[2]5.2 Asset Age Profile'!Z87","v":0},{"$f":"'[2]5.2 Asset Age Profile'!AA87","v":0},{"$f":"'[2]5.2 Asset Age Profile'!AB87","v":0},{"$f":"'[2]5.2 Asset Age Profile'!AC87","v":0},{"$f":"'[2]5.2 Asset Age Profile'!AD87","v":0},{"$f":"'[2]5.2 Asset Age Profile'!AE87","v":0},{"$f":"'[2]5.2 Asset Age Profile'!AF87","v":0},{"$f":"'[2]5.2 Asset Age Profile'!AG87","v":0},{"$f":"'[2]5.2 Asset Age Profile'!AH87","v":0},{"$f":"'[2]5.2 Asset Age Profile'!AI87","v":0},{"$f":"'[2]5.2 Asset Age Profile'!AJ87","v":2},{"$f":"'[2]5.2 Asset Age Profile'!AK87","v":6},{"$f":"'[2]5.2 Asset Age Profile'!AL87","v":5},{"$f":"'[2]5.2 Asset Age Profile'!AM87","v":4},{"$f":"'[2]5.2 Asset Age Profile'!AN87","v":5},{"$f":"'[2]5.2 Asset Age Profile'!AO87","v":3},{"$f":"'[2]5.2 Asset Age Profile'!AP87","v":8},{"$f":"'[2]5.2 Asset Age Profile'!AQ87","v":27},{"$f":"'[2]5.2 Asset Age Profile'!AR87","v":22},{"$f":"'[2]5.2 Asset Age Profile'!AS87","v":12},{"$f":"'[2]5.2 Asset Age Profile'!AT87","v":10},{"$f":"'[2]5.2 Asset Age Profile'!AU87","v":9},{"$f":"'[2]5.2 Asset Age Profile'!AV87","v":4},{"$f":"'[2]5.2 Asset Age Profile'!AW87","v":3},{"$f":"'[2]5.2 Asset Age Profile'!AX87","v":3},{"$f":"'[2]5.2 Asset Age Profile'!AY87","v":4},{"$f":"'[2]5.2 Asset Age Profile'!AZ87","v":3},{"$f":"'[2]5.2 Asset Age Profile'!BA87","v":3},{"$f":"'[2]5.2 Asset Age Profile'!BB87","v":3},{"$f":"'[2]5.2 Asset Age Profile'!BC87","v":4},{"$f":"'[2]5.2 Asset Age Profile'!BD87","v":1},{"$f":"'[2]5.2 Asset Age Profile'!BE87","v":4},{"$f":"'[2]5.2 Asset Age Profile'!BF87","v":2},{"$f":"'[2]5.2 Asset Age Profile'!BG87","v":2},{"$f":"'[2]5.2 Asset Age Profile'!BH87","v":2},{"$f":"'[2]5.2 Asset Age Profile'!BI87","v":4},{"$f":"'[2]5.2 Asset Age Profile'!BJ87","v":1},{"$f":"'[2]5.2 Asset Age Profile'!BK87","v":7},{"$f":"'[2]5.2 Asset Age Profile'!BL87","v":3},{"$f":"'[2]5.2 Asset Age Profile'!BM87","v":2},{"$f":"'[2]5.2 Asset Age Profile'!BN87","v":2},{"$f":"'[2]5.2 Asset Age Profile'!BO87","v":3},{"$f":"'[2]5.2 Asset Age Profile'!BP87","v":4},{"$f":"'[2]5.2 Asset Age Profile'!BQ87","v":7},{"$f":"'[2]5.2 Asset Age Profile'!BR87","v":16},{"$f":"'[2]5.2 Asset Age Profile'!BS87","v":6},{"$f":"'[2]5.2 Asset Age Profile'!BT87","v":5},{"$f":"'[2]5.2 Asset Age Profile'!BU87","v":6},{"$f":"'[2]5.2 Asset Age Profile'!BV87","v":3},{"$f":"'[2]5.2 Asset Age Profile'!BW87","v":3},{"$f":"'[2]5.2 Asset Age Profile'!BX87","v":4},{"$f":"'[2]5.2 Asset Age Profile'!BY87","v":1},{"$f":"'[2]5.2 Asset Age Profile'!BZ87","v":1},{"$f":"'[2]5.2 Asset Age Profile'!CA87","v":3},{"$f":"'[2]5.2 Asset Age Profile'!CB87","v":1},{"$f":"'[2]5.2 Asset Age Profile'!CC87","v":5},{"$f":"'[2]5.2 Asset Age Profile'!CD87","v":2},{"$f":"'[2]5.2 Asset Age Profile'!CE87","v":5},{"$f":"'[2]5.2 Asset Age Profile'!CF87","v":2},{"$f":"'[2]5.2 Asset Age Profile'!CG87","v":2},{"$f":"'[2]5.2 Asset Age Profile'!CH87","v":2},{"$f":"'[2]5.2 Asset Age Profile'!CI87","v":5},{"$f":"'[2]5.2 Asset Age Profile'!CJ87","v":5},{"$f":"'[2]5.2 Asset Age Profile'!CK87","v":3},{"$f":"'[2]5.2 Asset Age Profile'!CL87","v":2},{"$f":"'[2]5.2 Asset Age Profile'!CM87","v":5},{"$f":"'[2]5.2 Asset Age Profile'!CN87","v":1},{"$f":"'[2]5.2 Asset Age Profile'!CO87","v":2},{"$f":"'[2]5.2 Asset Age Profile'!CP87","v":1},{"$f":"'[2]5.2 Asset Age Profile'!CQ87","v":1},{"$f":"'[2]5.2 Asset Age Profile'!CR87","v":1},{"$f":"'[2]5.2 Asset Age Profile'!CS87","v":0},{"$f":"'[2]5.2 Asset Age Profile'!CT87","v":1},{"$f":"'[2]5.2 Asset Age Profile'!CU87","v":2},{"$f":"'[2]5.2 Asset Age Profile'!CV87","v":0},{"$f":"'[2]5.2 Asset Age Profile'!CW87","v":0},{"$f":"'[2]5.2 Asset Age Profile'!CX87","v":2},{"$f":"'[2]5.2 Asset Age Profile'!CY87","v":0},{"$f":"'[2]5.2 Asset Age Profile'!CZ87","v":0},{"$f":"'[2]5.2 Asset Age Profile'!DA87","v":0},{"$f":"'[2]5.2 Asset Age Profile'!DB87","v":0},{"$f":"'[2]5.2 Asset Age Profile'!DC87","v":0},{"$f":"'[2]5.2 Asset Age Profile'!DD87","v":0},{"$f":"'[2]5.2 Asset Age Profile'!DE87","v":0},{"$f":"'[2]5.2 Asset Age Profile'!DF87","v":0},{"$f":"'[2]5.2 Asset Age Profile'!DG87","v":0},{"$f":"'[2]5.2 Asset Age Profile'!DH87","v":0},{"$f":"'[2]5.2 Asset Age Profile'!DI87","v":0},{"$f":"'[2]5.2 Asset Age Profile'!DJ87","v":0},{"$f":"'[2]5.2 Asset Age Profile'!DK87","v":1},{"$f":"'[2]5.2 Asset Age Profile'!DL87","v":0},{"$f":"'[2]5.2 Asset Age Profile'!DM87","v":0},{"$f":"'[2]5.2 Asset Age Profile'!DN87","v":0},{"$f":"'[2]5.2 Asset Age Profile'!DO87","v":0},{"$f":"'[2]5.2 Asset Age Profile'!DP87","v":0},{"$f":"'[2]5.2 Asset Age Profile'!DQ87","v":0},{"$f":"'[2]5.2 Asset Age Profile'!DR87","v":0},{"$f":"'[2]5.2 Asset Age Profile'!DS87","v":0},{"$f":"'[2]5.2 Asset Age Profile'!DT87","v":0},{"$f":"'[2]5.2 Asset Age Profile'!DU87","v":0},{"$f":"'[2]5.2 Asset Age Profile'!DV87","v":0},{"$f":"'[2]5.2 Asset Age Profile'!DW87","v":0},{"$f":"'[2]5.2 Asset Age Profile'!DX87","v":0},{"$f":"'[2]5.2 Asset Age Profile'!DY87","v":0},{"$f":"'[2]5.2 Asset Age Profile'!DZ87","v":0},{"$f":"'[2]5.2 Asset Age Profile'!EA87","v":0},{"$f":"'[2]5.2 Asset Age Profile'!EB87","v":0},{"$f":"'[2]5.2 Asset Age Profile'!EC87","v":0},{"$f":"'[2]5.2 Asset Age Profile'!ED87","v":0},{"$f":"'[2]5.2 Asset Age Profile'!EE87","v":0},{"$f":"'[2]5.2 Asset Age Profile'!EF87","v":0},{"$f":"'[2]5.2 Asset Age Profile'!EG87","v":0},{"$f":"'[2]5.2 Asset Age Profile'!EH87","v":0},{"$f":"'[2]5.2 Asset Age Profile'!EI87","v":0},{"$f":"'[2]5.2 Asset Age Profile'!EJ87","v":0}]
["ED_ASS521_00078",null,"Ground Outdoor / Indoor Chamber Mounted; ˂  22 kV ;  >  600 kVA ; Multiple Phase",null,null,null,null,null,null,null,null,null,null,{"$f":"'[2]5.2 Asset Age Profile'!N88","v":45.8},{"$f":"'[2]5.2 Asset Age Profile'!O88","v":0},{"$f":"'[2]5.2 Asset Age Profile'!P88","v":0},{"$f":"'[2]5.2 Asset Age Profile'!Q88","v":0},{"$f":"'[2]5.2 Asset Age Profile'!R88","v":0},{"$f":"'[2]5.2 Asset Age Profile'!S88","v":0},{"$f":"'[2]5.2 Asset Age Profile'!T88","v":0},{"$f":"'[2]5.2 Asset Age Profile'!U88","v":0},{"$f":"'[2]5.2 Asset Age Profile'!V88","v":0},{"$f":"'[2]5.2 Asset Age Profile'!W88","v":0},{"$f":"'[2]5.2 Asset Age Profile'!X88","v":0},{"$f":"'[2]5.2 Asset Age Profile'!Y88","v":6.7675697262754522},{"$f":"'[2]5.2 Asset Age Profile'!Z88","v":0},{"$f":"'[2]5.2 Asset Age Profile'!AA88","v":0},{"$f":"'[2]5.2 Asset Age Profile'!AB88","v":0},{"$f":"'[2]5.2 Asset Age Profile'!AC88","v":0},{"$f":"'[2]5.2 Asset Age Profile'!AD88","v":0},{"$f":"'[2]5.2 Asset Age Profile'!AE88","v":0},{"$f":"'[2]5.2 Asset Age Profile'!AF88","v":0},{"$f":"'[2]5.2 Asset Age Profile'!AG88","v":0},{"$f":"'[2]5.2 Asset Age Profile'!AH88","v":0},{"$f":"'[2]5.2 Asset Age Profile'!AI88","v":0},{"$f":"'[2]5.2 Asset Age Profile'!AJ88","v":0},{"$f":"'[2]5.2 Asset Age Profile'!AK88","v":7},{"$f":"'[2]5.2 Asset Age Profile'!AL88","v":5},{"$f":"'[2]5.2 Asset Age Profile'!AM88","v":3},{"$f":"'[2]5.2 Asset Age Profile'!AN88","v":15},{"$f":"'[2]5.2 Asset Age Profile'!AO88","v":3},{"$f":"'[2]5.2 Asset Age Profile'!AP88","v":5},{"$f":"'[2]5.2 Asset Age Profile'!AQ88","v":8},{"$f":"'[2]5.2 Asset Age Profile'!AR88","v":7},{"$f":"'[2]5.2 Asset Age Profile'!AS88","v":2},{"$f":"'[2]5.2 Asset Age Profile'!AT88","v":1},{"$f":"'[2]5.2 Asset Age Profile'!AU88","v":7},{"$f":"'[2]5.2 Asset Age Profile'!AV88","v":3},{"$f":"'[2]5.2 Asset Age Profile'!AW88","v":9},{"$f":"'[2]5.2 Asset Age Profile'!AX88","v":3},{"$f":"'[2]5.2 Asset Age Profile'!AY88","v":3},{"$f":"'[2]5.2 Asset Age Profile'!AZ88","v":4},{"$f":"'[2]5.2 Asset Age Profile'!BA88","v":3},{"$f":"'[2]5.2 Asset Age Profile'!BB88","v":5},{"$f":"'[2]5.2 Asset Age Profile'!BC88","v":2},{"$f":"'[2]5.2 Asset Age Profile'!BD88","v":19},{"$f":"'[2]5.2 Asset Age Profile'!BE88","v":8},{"$f":"'[2]5.2 Asset Age Profile'!BF88","v":8},{"$f":"'[2]5.2 Asset Age Profile'!BG88","v":3},{"$f":"'[2]5.2 Asset Age Profile'!BH88","v":2},{"$f":"'[2]5.2 Asset Age Profile'!BI88","v":4},{"$f":"'[2]5.2 Asset Age Profile'!BJ88","v":2},{"$f":"'[2]5.2 Asset Age Profile'!BK88","v":11},{"$f":"'[2]5.2 Asset Age Profile'!BL88","v":4},{"$f":"'[2]5.2 Asset Age Profile'!BM88","v":8},{"$f":"'[2]5.2 Asset Age Profile'!BN88","v":2},{"$f":"'[2]5.2 Asset Age Profile'!BO88","v":2},{"$f":"'[2]5.2 Asset Age Profile'!BP88","v":5},{"$f":"'[2]5.2 Asset Age Profile'!BQ88","v":5},{"$f":"'[2]5.2 Asset Age Profile'!BR88","v":11},{"$f":"'[2]5.2 Asset Age Profile'!BS88","v":14},{"$f":"'[2]5.2 Asset Age Profile'!BT88","v":0},{"$f":"'[2]5.2 Asset Age Profile'!BU88","v":4},{"$f":"'[2]5.2 Asset Age Profile'!BV88","v":7},{"$f":"'[2]5.2 Asset Age Profile'!BW88","v":1},{"$f":"'[2]5.2 Asset Age Profile'!BX88","v":13},{"$f":"'[2]5.2 Asset Age Profile'!BY88","v":5},{"$f":"'[2]5.2 Asset Age Profile'!BZ88","v":3},{"$f":"'[2]5.2 Asset Age Profile'!CA88","v":8},{"$f":"'[2]5.2 Asset Age Profile'!CB88","v":1},{"$f":"'[2]5.2 Asset Age Profile'!CC88","v":7},{"$f":"'[2]5.2 Asset Age Profile'!CD88","v":2},{"$f":"'[2]5.2 Asset Age Profile'!CE88","v":1},{"$f":"'[2]5.2 Asset Age Profile'!CF88","v":1},{"$f":"'[2]5.2 Asset Age Profile'!CG88","v":1},{"$f":"'[2]5.2 Asset Age Profile'!CH88","v":0},{"$f":"'[2]5.2 Asset Age Profile'!CI88","v":4},{"$f":"'[2]5.2 Asset Age Profile'!CJ88","v":2},{"$f":"'[2]5.2 Asset Age Profile'!CK88","v":3},{"$f":"'[2]5.2 Asset Age Profile'!CL88","v":0},{"$f":"'[2]5.2 Asset Age Profile'!CM88","v":0},{"$f":"'[2]5.2 Asset Age Profile'!CN88","v":0},{"$f":"'[2]5.2 Asset Age Profile'!CO88","v":0},{"$f":"'[2]5.2 Asset Age Profile'!CP88","v":0},{"$f":"'[2]5.2 Asset Age Profile'!CQ88","v":0},{"$f":"'[2]5.2 Asset Age Profile'!CR88","v":0},{"$f":"'[2]5.2 Asset Age Profile'!CS88","v":0},{"$f":"'[2]5.2 Asset Age Profile'!CT88","v":0},{"$f":"'[2]5.2 Asset Age Profile'!CU88","v":0},{"$f":"'[2]5.2 Asset Age Profile'!CV88","v":0},{"$f":"'[2]5.2 Asset Age Profile'!CW88","v":0},{"$f":"'[2]5.2 Asset Age Profile'!CX88","v":0},{"$f":"'[2]5.2 Asset Age Profile'!CY88","v":0},{"$f":"'[2]5.2 Asset Age Profile'!CZ88","v":0},{"$f":"'[2]5.2 Asset Age Profile'!DA88","v":0},{"$f":"'[2]5.2 Asset Age Profile'!DB88","v":0},{"$f":"'[2]5.2 Asset Age Profile'!DC88","v":0},{"$f":"'[2]5.2 Asset Age Profile'!DD88","v":0},{"$f":"'[2]5.2 Asset Age Profile'!DE88","v":0},{"$f":"'[2]5.2 Asset Age Profile'!DF88","v":0},{"$f":"'[2]5.2 Asset Age Profile'!DG88","v":0},{"$f":"'[2]5.2 Asset Age Profile'!DH88","v":0},{"$f":"'[2]5.2 Asset Age Profile'!DI88","v":0},{"$f":"'[2]5.2 Asset Age Profile'!DJ88","v":0},{"$f":"'[2]5.2 Asset Age Profile'!DK88","v":1},{"$f":"'[2]5.2 Asset Age Profile'!DL88","v":0},{"$f":"'[2]5.2 Asset Age Profile'!DM88","v":2},{"$f":"'[2]5.2 Asset Age Profile'!DN88","v":0},{"$f":"'[2]5.2 Asset Age Profile'!DO88","v":0},{"$f":"'[2]5.2 Asset Age Profile'!DP88","v":0},{"$f":"'[2]5.2 Asset Age Profile'!DQ88","v":0},{"$f":"'[2]5.2 Asset Age Profile'!DR88","v":0},{"$f":"'[2]5.2 Asset Age Profile'!DS88","v":0},{"$f":"'[2]5.2 Asset Age Profile'!DT88","v":0},{"$f":"'[2]5.2 Asset Age Profile'!DU88","v":0},{"$f":"'[2]5.2 Asset Age Profile'!DV88","v":0},{"$f":"'[2]5.2 Asset Age Profile'!DW88","v":0},{"$f":"'[2]5.2 Asset Age Profile'!DX88","v":0},{"$f":"'[2]5.2 Asset Age Profile'!DY88","v":0},{"$f":"'[2]5.2 Asset Age Profile'!DZ88","v":0},{"$f":"'[2]5.2 Asset Age Profile'!EA88","v":0},{"$f":"'[2]5.2 Asset Age Profile'!EB88","v":0},{"$f":"'[2]5.2 Asset Age Profile'!EC88","v":0},{"$f":"'[2]5.2 Asset Age Profile'!ED88","v":0},{"$f":"'[2]5.2 Asset Age Profile'!EE88","v":0},{"$f":"'[2]5.2 Asset Age Profile'!EF88","v":0},{"$f":"'[2]5.2 Asset Age Profile'!EG88","v":0},{"$f":"'[2]5.2 Asset Age Profile'!EH88","v":0},{"$f":"'[2]5.2 Asset Age Profile'!EI88","v":0},{"$f":"'[2]5.2 Asset Age Profile'!EJ88","v":0}]
["ED_ASS521_00079",null,"Ground Outdoor / Indoor Chamber Mounted; > = 22 kV & < = 33 kV ;  < = 15 MVA",null,null,null,null,null,null,null,null,null,null,{"$f":"'[2]5.2 Asset Age Profile'!N89","v":45.8},{"$f":"'[2]5.2 Asset Age Profile'!O89","v":0},{"$f":"'[2]5.2 Asset Age Profile'!P89","v":0},{"$f":"'[2]5.2 Asset Age Profile'!Q89","v":0},{"$f":"'[2]5.2 Asset Age Profile'!R89","v":0},{"$f":"'[2]5.2 Asset Age Profile'!S89","v":0},{"$f":"'[2]5.2 Asset Age Profile'!T89","v":0},{"$f":"'[2]5.2 Asset Age Profile'!U89","v":0},{"$f":"'[2]5.2 Asset Age Profile'!V89","v":0},{"$f":"'[2]5.2 Asset Age Profile'!W89","v":0},{"$f":"'[2]5.2 Asset Age Profile'!X89","v":0},{"$f":"'[2]5.2 Asset Age Profile'!Y89","v":6.7675697262754522},{"$f":"'[2]5.2 Asset Age Profile'!Z89","v":0},{"$f":"'[2]5.2 Asset Age Profile'!AA89","v":0},{"$f":"'[2]5.2 Asset Age Profile'!AB89","v":0},{"$f":"'[2]5.2 Asset Age Profile'!AC89","v":0},{"$f":"'[2]5.2 Asset Age Profile'!AD89","v":0},{"$f":"'[2]5.2 Asset Age Profile'!AE89","v":0},{"$f":"'[2]5.2 Asset Age Profile'!AF89","v":0},{"$f":"'[2]5.2 Asset Age Profile'!AG89","v":0},{"$f":"'[2]5.2 Asset Age Profile'!AH89","v":0},{"$f":"'[2]5.2 Asset Age Profile'!AI89","v":0},{"$f":"'[2]5.2 Asset Age Profile'!AJ89","v":1},{"$f":"'[2]5.2 Asset Age Profile'!AK89","v":3},{"$f":"'[2]5.2 Asset Age Profile'!AL89","v":4},{"$f":"'[2]5.2 Asset Age Profile'!AM89","v":5},{"$f":"'[2]5.2 Asset Age Profile'!AN89","v":9},{"$f":"'[2]5.2 Asset Age Profile'!AO89","v":13},{"$f":"'[2]5.2 Asset Age Profile'!AP89","v":5},{"$f":"'[2]5.2 Asset Age Profile'!AQ89","v":5},{"$f":"'[2]5.2 Asset Age Profile'!AR89","v":8},{"$f":"'[2]5.2 Asset Age Profile'!AS89","v":8},{"$f":"'[2]5.2 Asset Age Profile'!AT89","v":6},{"$f":"'[2]5.2 Asset Age Profile'!AU89","v":5},{"$f":"'[2]5.2 Asset Age Profile'!AV89","v":5},{"$f":"'[2]5.2 Asset Age Profile'!AW89","v":9},{"$f":"'[2]5.2 Asset Age Profile'!AX89","v":11},{"$f":"'[2]5.2 Asset Age Profile'!AY89","v":5},{"$f":"'[2]5.2 Asset Age Profile'!AZ89","v":6},{"$f":"'[2]5.2 Asset Age Profile'!BA89","v":5},{"$f":"'[2]5.2 Asset Age Profile'!BB89","v":3},{"$f":"'[2]5.2 Asset Age Profile'!BC89","v":6},{"$f":"'[2]5.2 Asset Age Profile'!BD89","v":7},{"$f":"'[2]5.2 Asset Age Profile'!BE89","v":10},{"$f":"'[2]5.2 Asset Age Profile'!BF89","v":6},{"$f":"'[2]5.2 Asset Age Profile'!BG89","v":4},{"$f":"'[2]5.2 Asset Age Profile'!BH89","v":7},{"$f":"'[2]5.2 Asset Age Profile'!BI89","v":5},{"$f":"'[2]5.2 Asset Age Profile'!BJ89","v":6},{"$f":"'[2]5.2 Asset Age Profile'!BK89","v":4},{"$f":"'[2]5.2 Asset Age Profile'!BL89","v":5},{"$f":"'[2]5.2 Asset Age Profile'!BM89","v":11},{"$f":"'[2]5.2 Asset Age Profile'!BN89","v":5},{"$f":"'[2]5.2 Asset Age Profile'!BO89","v":3},{"$f":"'[2]5.2 Asset Age Profile'!BP89","v":7},{"$f":"'[2]5.2 Asset Age Profile'!BQ89","v":13},{"$f":"'[2]5.2 Asset Age Profile'!BR89","v":8},{"$f":"'[2]5.2 Asset Age Profile'!BS89","v":14},{"$f":"'[2]5.2 Asset Age Profile'!BT89","v":11},{"$f":"'[2]5.2 Asset Age Profile'!BU89","v":5},{"$f":"'[2]5.2 Asset Age Profile'!BV89","v":3},{"$f":"'[2]5.2 Asset Age Profile'!BW89","v":12},{"$f":"'[2]5.2 Asset Age Profile'!BX89","v":5},{"$f":"'[2]5.2 Asset Age Profile'!BY89","v":4},{"$f":"'[2]5.2 Asset Age Profile'!BZ89","v":4},{"$f":"'[2]5.2 Asset Age Profile'!CA89","v":5},{"$f":"'[2]5.2 Asset Age Profile'!CB89","v":7},{"$f":"'[2]5.2 Asset Age Profile'!CC89","v":13},{"$f":"'[2]5.2 Asset Age Profile'!CD89","v":3},{"$f":"'[2]5.2 Asset Age Profile'!CE89","v":3},{"$f":"'[2]5.2 Asset Age Profile'!CF89","v":6},{"$f":"'[2]5.2 Asset Age Profile'!CG89","v":8},{"$f":"'[2]5.2 Asset Age Profile'!CH89","v":10},{"$f":"'[2]5.2 Asset Age Profile'!CI89","v":7},{"$f":"'[2]5.2 Asset Age Profile'!CJ89","v":8},{"$f":"'[2]5.2 Asset Age Profile'!CK89","v":5},{"$f":"'[2]5.2 Asset Age Profile'!CL89","v":7},{"$f":"'[2]5.2 Asset Age Profile'!CM89","v":5},{"$f":"'[2]5.2 Asset Age Profile'!CN89","v":2},{"$f":"'[2]5.2 Asset Age Profile'!CO89","v":3},{"$f":"'[2]5.2 Asset Age Profile'!CP89","v":2},{"$f":"'[2]5.2 Asset Age Profile'!CQ89","v":2},{"$f":"'[2]5.2 Asset Age Profile'!CR89","v":3},{"$f":"'[2]5.2 Asset Age Profile'!CS89","v":0},{"$f":"'[2]5.2 Asset Age Profile'!CT89","v":0},{"$f":"'[2]5.2 Asset Age Profile'!CU89","v":0},{"$f":"'[2]5.2 Asset Age Profile'!CV89","v":0},{"$f":"'[2]5.2 Asset Age Profile'!CW89","v":1},{"$f":"'[2]5.2 Asset Age Profile'!CX89","v":0},{"$f":"'[2]5.2 Asset Age Profile'!CY89","v":0},{"$f":"'[2]5.2 Asset Age Profile'!CZ89","v":0},{"$f":"'[2]5.2 Asset Age Profile'!DA89","v":0},{"$f":"'[2]5.2 Asset Age Profile'!DB89","v":0},{"$f":"'[2]5.2 Asset Age Profile'!DC89","v":0},{"$f":"'[2]5.2 Asset Age Profile'!DD89","v":0},{"$f":"'[2]5.2 Asset Age Profile'!DE89","v":2},{"$f":"'[2]5.2 Asset Age Profile'!DF89","v":0},{"$f":"'[2]5.2 Asset Age Profile'!DG89","v":0},{"$f":"'[2]5.2 Asset Age Profile'!DH89","v":0},{"$f":"'[2]5.2 Asset Age Profile'!DI89","v":0},{"$f":"'[2]5.2 Asset Age Profile'!DJ89","v":0},{"$f":"'[2]5.2 Asset Age Profile'!DK89","v":0},{"$f":"'[2]5.2 Asset Age Profile'!DL89","v":0},{"$f":"'[2]5.2 Asset Age Profile'!DM89","v":0},{"$f":"'[2]5.2 Asset Age Profile'!DN89","v":0},{"$f":"'[2]5.2 Asset Age Profile'!DO89","v":0},{"$f":"'[2]5.2 Asset Age Profile'!DP89","v":0},{"$f":"'[2]5.2 Asset Age Profile'!DQ89","v":0},{"$f":"'[2]5.2 Asset Age Profile'!DR89","v":0},{"$f":"'[2]5.2 Asset Age Profile'!DS89","v":0},{"$f":"'[2]5.2 Asset Age Profile'!DT89","v":0},{"$f":"'[2]5.2 Asset Age Profile'!DU89","v":0},{"$f":"'[2]5.2 Asset Age Profile'!DV89","v":0},{"$f":"'[2]5.2 Asset Age Profile'!DW89","v":0},{"$f":"'[2]5.2 Asset Age Profile'!DX89","v":0},{"$f":"'[2]5.2 Asset Age Profile'!DY89","v":0},{"$f":"'[2]5.2 Asset Age Profile'!DZ89","v":0},{"$f":"'[2]5.2 Asset Age Profile'!EA89","v":0},{"$f":"'[2]5.2 Asset Age Profile'!EB89","v":0},{"$f":"'[2]5.2 Asset Age Profile'!EC89","v":0},{"$f":"'[2]5.2 Asset Age Profile'!ED89","v":0},{"$f":"'[2]5.2 Asset Age Profile'!EE89","v":0},{"$f":"'[2]5.2 Asset Age Profile'!EF89","v":0},{"$f":"'[2]5.2 Asset Age Profile'!EG89","v":0},{"$f":"'[2]5.2 Asset Age Profile'!EH89","v":0},{"$f":"'[2]5.2 Asset Age Profile'!EI89","v":0},{"$f":"'[2]5.2 Asset Age Profile'!EJ89","v":0}]
["ED_ASS521_00080",null,"Ground Outdoor / Indoor Chamber Mounted; > = 22 kV & < = 33 kV ;  > 15 MVA and < = 40 MVA",null,null,null,null,null,null,null,null,null,null,{"$f":"'[2]5.2 Asset Age Profile'!N90","v":45.8},{"$f":"'[2]5.2 Asset Age Profile'!O90","v":0},{"$f":"'[2]5.2 Asset Age Profile'!P90","v":0},{"$f":"'[2]5.2 Asset Age Profile'!Q90","v":0},{"$f":"'[2]5.2 Asset Age Profile'!R90","v":0},{"$f":"'[2]5.2 Asset Age Profile'!S90","v":0},{"$f":"'[2]5.2 Asset Age Profile'!T90","v":0},{"$f":"'[2]5.2 Asset Age Profile'!U90","v":0},{"$f":"'[2]5.2 Asset Age Profile'!V90","v":0},{"$f":"'[2]5.2 Asset Age Profile'!W90","v":0},{"$f":"'[2]5.2 Asset Age Profile'!X90","v":0},{"$f":"'[2]5.2 Asset Age Profile'!Y90","v":6.7675697262754522},{"$f":"'[2]5.2 Asset Age Profile'!Z90","v":0},{"$f":"'[2]5.2 Asset Age Profile'!AA90","v":0},{"$f":"'[2]5.2 Asset Age Profile'!AB90","v":0},{"$f":"'[2]5.2 Asset Age Profile'!AC90","v":0},{"$f":"'[2]5.2 Asset Age Profile'!AD90","v":0},{"$f":"'[2]5.2 Asset Age Profile'!AE90","v":0},{"$f":"'[2]5.2 Asset Age Profile'!AF90","v":0},{"$f":"'[2]5.2 Asset Age Profile'!AG90","v":0},{"$f":"'[2]5.2 Asset Age Profile'!AH90","v":0},{"$f":"'[2]5.2 Asset Age Profile'!AI90","v":0},{"$f":"'[2]5.2 Asset Age Profile'!AJ90","v":0},{"$f":"'[2]5.2 Asset Age Profile'!AK90","v":0},{"$f":"'[2]5.2 Asset Age Profile'!AL90","v":1},{"$f":"'[2]5.2 Asset Age Profile'!AM90","v":2},{"$f":"'[2]5.2 Asset Age Profile'!AN90","v":1},{"$f":"'[2]5.2 Asset Age Profile'!AO90","v":0},{"$f":"'[2]5.2 Asset Age Profile'!AP90","v":1},{"$f":"'[2]5.2 Asset Age Profile'!AQ90","v":0},{"$f":"'[2]5.2 Asset Age Profile'!AR90","v":6},{"$f":"'[2]5.2 Asset Age Profile'!AS90","v":1},{"$f":"'[2]5.2 Asset Age Profile'!AT90","v":2},{"$f":"'[2]5.2 Asset Age Profile'!AU90","v":3},{"$f":"'[2]5.2 Asset Age Profile'!AV90","v":0},{"$f":"'[2]5.2 Asset Age Profile'!AW90","v":0},{"$f":"'[2]5.2 Asset Age Profile'!AX90","v":1},{"$f":"'[2]5.2 Asset Age Profile'!AY90","v":0},{"$f":"'[2]5.2 Asset Age Profile'!AZ90","v":0},{"$f":"'[2]5.2 Asset Age Profile'!BA90","v":0},{"$f":"'[2]5.2 Asset Age Profile'!BB90","v":0},{"$f":"'[2]5.2 Asset Age Profile'!BC90","v":0},{"$f":"'[2]5.2 Asset Age Profile'!BD90","v":1},{"$f":"'[2]5.2 Asset Age Profile'!BE90","v":0},{"$f":"'[2]5.2 Asset Age Profile'!BF90","v":0},{"$f":"'[2]5.2 Asset Age Profile'!BG90","v":1},{"$f":"'[2]5.2 Asset Age Profile'!BH90","v":1},{"$f":"'[2]5.2 Asset Age Profile'!BI90","v":0},{"$f":"'[2]5.2 Asset Age Profile'!BJ90","v":0},{"$f":"'[2]5.2 Asset Age Profile'!BK90","v":0},{"$f":"'[2]5.2 Asset Age Profile'!BL90","v":1},{"$f":"'[2]5.2 Asset Age Profile'!BM90","v":0},{"$f":"'[2]5.2 Asset Age Profile'!BN90","v":2},{"$f":"'[2]5.2 Asset Age Profile'!BO90","v":0},{"$f":"'[2]5.2 Asset Age Profile'!BP90","v":0},{"$f":"'[2]5.2 Asset Age Profile'!BQ90","v":0},{"$f":"'[2]5.2 Asset Age Profile'!BR90","v":1},{"$f":"'[2]5.2 Asset Age Profile'!BS90","v":0},{"$f":"'[2]5.2 Asset Age Profile'!BT90","v":0},{"$f":"'[2]5.2 Asset Age Profile'!BU90","v":0},{"$f":"'[2]5.2 Asset Age Profile'!BV90","v":2},{"$f":"'[2]5.2 Asset Age Profile'!BW90","v":0},{"$f":"'[2]5.2 Asset Age Profile'!BX90","v":0},{"$f":"'[2]5.2 Asset Age Profile'!BY90","v":0},{"$f":"'[2]5.2 Asset Age Profile'!BZ90","v":0},{"$f":"'[2]5.2 Asset Age Profile'!CA90","v":0},{"$f":"'[2]5.2 Asset Age Profile'!CB90","v":0},{"$f":"'[2]5.2 Asset Age Profile'!CC90","v":0},{"$f":"'[2]5.2 Asset Age Profile'!CD90","v":0},{"$f":"'[2]5.2 Asset Age Profile'!CE90","v":0},{"$f":"'[2]5.2 Asset Age Profile'!CF90","v":1},{"$f":"'[2]5.2 Asset Age Profile'!CG90","v":0},{"$f":"'[2]5.2 Asset Age Profile'!CH90","v":0},{"$f":"'[2]5.2 Asset Age Profile'!CI90","v":0},{"$f":"'[2]5.2 Asset Age Profile'!CJ90","v":0},{"$f":"'[2]5.2 Asset Age Profile'!CK90","v":0},{"$f":"'[2]5.2 Asset Age Profile'!CL90","v":0},{"$f":"'[2]5.2 Asset Age Profile'!CM90","v":0},{"$f":"'[2]5.2 Asset Age Profile'!CN90","v":0},{"$f":"'[2]5.2 Asset Age Profile'!CO90","v":0},{"$f":"'[2]5.2 Asset Age Profile'!CP90","v":0},{"$f":"'[2]5.2 Asset Age Profile'!CQ90","v":0},{"$f":"'[2]5.2 Asset Age Profile'!CR90","v":0},{"$f":"'[2]5.2 Asset Age Profile'!CS90","v":0},{"$f":"'[2]5.2 Asset Age Profile'!CT90","v":0},{"$f":"'[2]5.2 Asset Age Profile'!CU90","v":0},{"$f":"'[2]5.2 Asset Age Profile'!CV90","v":0},{"$f":"'[2]5.2 Asset Age Profile'!CW90","v":0},{"$f":"'[2]5.2 Asset Age Profile'!CX90","v":0},{"$f":"'[2]5.2 Asset Age Profile'!CY90","v":0},{"$f":"'[2]5.2 Asset Age Profile'!CZ90","v":0},{"$f":"'[2]5.2 Asset Age Profile'!DA90","v":0},{"$f":"'[2]5.2 Asset Age Profile'!DB90","v":0},{"$f":"'[2]5.2 Asset Age Profile'!DC90","v":0},{"$f":"'[2]5.2 Asset Age Profile'!DD90","v":0},{"$f":"'[2]5.2 Asset Age Profile'!DE90","v":0},{"$f":"'[2]5.2 Asset Age Profile'!DF90","v":0},{"$f":"'[2]5.2 Asset Age Profile'!DG90","v":0},{"$f":"'[2]5.2 Asset Age Profile'!DH90","v":0},{"$f":"'[2]5.2 Asset Age Profile'!DI90","v":0},{"$f":"'[2]5.2 Asset Age Profile'!DJ90","v":0},{"$f":"'[2]5.2 Asset Age Profile'!DK90","v":0},{"$f":"'[2]5.2 Asset Age Profile'!DL90","v":0},{"$f":"'[2]5.2 Asset Age Profile'!DM90","v":0},{"$f":"'[2]5.2 Asset Age Profile'!DN90","v":0},{"$f":"'[2]5.2 Asset Age Profile'!DO90","v":0},{"$f":"'[2]5.2 Asset Age Profile'!DP90","v":0},{"$f":"'[2]5.2 Asset Age Profile'!DQ90","v":0},{"$f":"'[2]5.2 Asset Age Profile'!DR90","v":0},{"$f":"'[2]5.2 Asset Age Profile'!DS90","v":0},{"$f":"'[2]5.2 Asset Age Profile'!DT90","v":0},{"$f":"'[2]5.2 Asset Age Profile'!DU90","v":0},{"$f":"'[2]5.2 Asset Age Profile'!DV90","v":0},{"$f":"'[2]5.2 Asset Age Profile'!DW90","v":0},{"$f":"'[2]5.2 Asset Age Profile'!DX90","v":0},{"$f":"'[2]5.2 Asset Age Profile'!DY90","v":0},{"$f":"'[2]5.2 Asset Age Profile'!DZ90","v":0},{"$f":"'[2]5.2 Asset Age Profile'!EA90","v":0},{"$f":"'[2]5.2 Asset Age Profile'!EB90","v":0},{"$f":"'[2]5.2 Asset Age Profile'!EC90","v":0},{"$f":"'[2]5.2 Asset Age Profile'!ED90","v":0},{"$f":"'[2]5.2 Asset Age Profile'!EE90","v":0},{"$f":"'[2]5.2 Asset Age Profile'!EF90","v":0},{"$f":"'[2]5.2 Asset Age Profile'!EG90","v":0},{"$f":"'[2]5.2 Asset Age Profile'!EH90","v":0},{"$f":"'[2]5.2 Asset Age Profile'!EI90","v":0},{"$f":"'[2]5.2 Asset Age Profile'!EJ90","v":0}]
["ED_ASS521_00081",null,"Ground Outdoor / Indoor Chamber Mounted; > = 22 kV & < = 33 kV ;  > 40 MVA",null,null,null,null,null,null,null,null,null,null,{"$f":"'[2]5.2 Asset Age Profile'!N91","v":45.8},{"$f":"'[2]5.2 Asset Age Profile'!O91","v":0},{"$f":"'[2]5.2 Asset Age Profile'!P91","v":0},{"$f":"'[2]5.2 Asset Age Profile'!Q91","v":0},{"$f":"'[2]5.2 Asset Age Profile'!R91","v":0},{"$f":"'[2]5.2 Asset Age Profile'!S91","v":0},{"$f":"'[2]5.2 Asset Age Profile'!T91","v":0},{"$f":"'[2]5.2 Asset Age Profile'!U91","v":0},{"$f":"'[2]5.2 Asset Age Profile'!V91","v":0},{"$f":"'[2]5.2 Asset Age Profile'!W91","v":0},{"$f":"'[2]5.2 Asset Age Profile'!X91","v":0},{"$f":"'[2]5.2 Asset Age Profile'!Y91","v":6.7675697262754522},{"$f":"'[2]5.2 Asset Age Profile'!Z91","v":0},{"$f":"'[2]5.2 Asset Age Profile'!AA91","v":0},{"$f":"'[2]5.2 Asset Age Profile'!AB91","v":0},{"$f":"'[2]5.2 Asset Age Profile'!AC91","v":0},{"$f":"'[2]5.2 Asset Age Profile'!AD91","v":0},{"$f":"'[2]5.2 Asset Age Profile'!AE91","v":0},{"$f":"'[2]5.2 Asset Age Profile'!AF91","v":0},{"$f":"'[2]5.2 Asset Age Profile'!AG91","v":0},{"$f":"'[2]5.2 Asset Age Profile'!AH91","v":0},{"$f":"'[2]5.2 Asset Age Profile'!AI91","v":0},{"$f":"'[2]5.2 Asset Age Profile'!AJ91","v":0},{"$f":"'[2]5.2 Asset Age Profile'!AK91","v":0},{"$f":"'[2]5.2 Asset Age Profile'!AL91","v":0},{"$f":"'[2]5.2 Asset Age Profile'!AM91","v":0},{"$f":"'[2]5.2 Asset Age Profile'!AN91","v":0},{"$f":"'[2]5.2 Asset Age Profile'!AO91","v":0},{"$f":"'[2]5.2 Asset Age Profile'!AP91","v":0},{"$f":"'[2]5.2 Asset Age Profile'!AQ91","v":0},{"$f":"'[2]5.2 Asset Age Profile'!AR91","v":0},{"$f":"'[2]5.2 Asset Age Profile'!AS91","v":2},{"$f":"'[2]5.2 Asset Age Profile'!AT91","v":0},{"$f":"'[2]5.2 Asset Age Profile'!AU91","v":0},{"$f":"'[2]5.2 Asset Age Profile'!AV91","v":0},{"$f":"'[2]5.2 Asset Age Profile'!AW91","v":0},{"$f":"'[2]5.2 Asset Age Profile'!AX91","v":0},{"$f":"'[2]5.2 Asset Age Profile'!AY91","v":0},{"$f":"'[2]5.2 Asset Age Profile'!AZ91","v":0},{"$f":"'[2]5.2 Asset Age Profile'!BA91","v":0},{"$f":"'[2]5.2 Asset Age Profile'!BB91","v":0},{"$f":"'[2]5.2 Asset Age Profile'!BC91","v":0},{"$f":"'[2]5.2 Asset Age Profile'!BD91","v":0},{"$f":"'[2]5.2 Asset Age Profile'!BE91","v":0},{"$f":"'[2]5.2 Asset Age Profile'!BF91","v":0},{"$f":"'[2]5.2 Asset Age Profile'!BG91","v":0},{"$f":"'[2]5.2 Asset Age Profile'!BH91","v":0},{"$f":"'[2]5.2 Asset Age Profile'!BI91","v":0},{"$f":"'[2]5.2 Asset Age Profile'!BJ91","v":0},{"$f":"'[2]5.2 Asset Age Profile'!BK91","v":0},{"$f":"'[2]5.2 Asset Age Profile'!BL91","v":0},{"$f":"'[2]5.2 Asset Age Profile'!BM91","v":0},{"$f":"'[2]5.2 Asset Age Profile'!BN91","v":0},{"$f":"'[2]5.2 Asset Age Profile'!BO91","v":0},{"$f":"'[2]5.2 Asset Age Profile'!BP91","v":0},{"$f":"'[2]5.2 Asset Age Profile'!BQ91","v":0},{"$f":"'[2]5.2 Asset Age Profile'!BR91","v":0},{"$f":"'[2]5.2 Asset Age Profile'!BS91","v":0},{"$f":"'[2]5.2 Asset Age Profile'!BT91","v":0},{"$f":"'[2]5.2 Asset Age Profile'!BU91","v":0},{"$f":"'[2]5.2 Asset Age Profile'!BV91","v":0},{"$f":"'[2]5.2 Asset Age Profile'!BW91","v":0},{"$f":"'[2]5.2 Asset Age Profile'!BX91","v":0},{"$f":"'[2]5.2 Asset Age Profile'!BY91","v":0},{"$f":"'[2]5.2 Asset Age Profile'!BZ91","v":0},{"$f":"'[2]5.2 Asset Age Profile'!CA91","v":0},{"$f":"'[2]5.2 Asset Age Profile'!CB91","v":0},{"$f":"'[2]5.2 Asset Age Profile'!CC91","v":0},{"$f":"'[2]5.2 Asset Age Profile'!CD91","v":0},{"$f":"'[2]5.2 Asset Age Profile'!CE91","v":0},{"$f":"'[2]5.2 Asset Age Profile'!CF91","v":0},{"$f":"'[2]5.2 Asset Age Profile'!CG91","v":0},{"$f":"'[2]5.2 Asset Age Profile'!CH91","v":0},{"$f":"'[2]5.2 Asset Age Profile'!CI91","v":0},{"$f":"'[2]5.2 Asset Age Profile'!CJ91","v":0},{"$f":"'[2]5.2 Asset Age Profile'!CK91","v":0},{"$f":"'[2]5.2 Asset Age Profile'!CL91","v":0},{"$f":"'[2]5.2 Asset Age Profile'!CM91","v":0},{"$f":"'[2]5.2 Asset Age Profile'!CN91","v":0},{"$f":"'[2]5.2 Asset Age Profile'!CO91","v":0},{"$f":"'[2]5.2 Asset Age Profile'!CP91","v":0},{"$f":"'[2]5.2 Asset Age Profile'!CQ91","v":0},{"$f":"'[2]5.2 Asset Age Profile'!CR91","v":0},{"$f":"'[2]5.2 Asset Age Profile'!CS91","v":0},{"$f":"'[2]5.2 Asset Age Profile'!CT91","v":0},{"$f":"'[2]5.2 Asset Age Profile'!CU91","v":0},{"$f":"'[2]5.2 Asset Age Profile'!CV91","v":0},{"$f":"'[2]5.2 Asset Age Profile'!CW91","v":0},{"$f":"'[2]5.2 Asset Age Profile'!CX91","v":0},{"$f":"'[2]5.2 Asset Age Profile'!CY91","v":0},{"$f":"'[2]5.2 Asset Age Profile'!CZ91","v":0},{"$f":"'[2]5.2 Asset Age Profile'!DA91","v":0},{"$f":"'[2]5.2 Asset Age Profile'!DB91","v":0},{"$f":"'[2]5.2 Asset Age Profile'!DC91","v":0},{"$f":"'[2]5.2 Asset Age Profile'!DD91","v":0},{"$f":"'[2]5.2 Asset Age Profile'!DE91","v":0},{"$f":"'[2]5.2 Asset Age Profile'!DF91","v":0},{"$f":"'[2]5.2 Asset Age Profile'!DG91","v":0},{"$f":"'[2]5.2 Asset Age Profile'!DH91","v":0},{"$f":"'[2]5.2 Asset Age Profile'!DI91","v":0},{"$f":"'[2]5.2 Asset Age Profile'!DJ91","v":0},{"$f":"'[2]5.2 Asset Age Profile'!DK91","v":0},{"$f":"'[2]5.2 Asset Age Profile'!DL91","v":0},{"$f":"'[2]5.2 Asset Age Profile'!DM91","v":0},{"$f":"'[2]5.2 Asset Age Profile'!DN91","v":0},{"$f":"'[2]5.2 Asset Age Profile'!DO91","v":0},{"$f":"'[2]5.2 Asset Age Profile'!DP91","v":0},{"$f":"'[2]5.2 Asset Age Profile'!DQ91","v":0},{"$f":"'[2]5.2 Asset Age Profile'!DR91","v":0},{"$f":"'[2]5.2 Asset Age Profile'!DS91","v":0},{"$f":"'[2]5.2 Asset Age Profile'!DT91","v":0},{"$f":"'[2]5.2 Asset Age Profile'!DU91","v":0},{"$f":"'[2]5.2 Asset Age Profile'!DV91","v":0},{"$f":"'[2]5.2 Asset Age Profile'!DW91","v":0},{"$f":"'[2]5.2 Asset Age Profile'!DX91","v":0},{"$f":"'[2]5.2 Asset Age Profile'!DY91","v":0},{"$f":"'[2]5.2 Asset Age Profile'!DZ91","v":0},{"$f":"'[2]5.2 Asset Age Profile'!EA91","v":0},{"$f":"'[2]5.2 Asset Age Profile'!EB91","v":0},{"$f":"'[2]5.2 Asset Age Profile'!EC91","v":0},{"$f":"'[2]5.2 Asset Age Profile'!ED91","v":0},{"$f":"'[2]5.2 Asset Age Profile'!EE91","v":0},{"$f":"'[2]5.2 Asset Age Profile'!EF91","v":0},{"$f":"'[2]5.2 Asset Age Profile'!EG91","v":0},{"$f":"'[2]5.2 Asset Age Profile'!EH91","v":0},{"$f":"'[2]5.2 Asset Age Profile'!EI91","v":0},{"$f":"'[2]5.2 Asset Age Profile'!EJ91","v":0}]
["ED_ASS521_00082",null,"Ground Outdoor / Indoor Chamber Mounted; > 33 kV & < = 66 kV ;  < = 15 MVA",null,null,null,null,null,null,null,null,null,null,{"$f":"'[2]5.2 Asset Age Profile'!N92","v":45.8},{"$f":"'[2]5.2 Asset Age Profile'!O92","v":0},{"$f":"'[2]5.2 Asset Age Profile'!P92","v":0},{"$f":"'[2]5.2 Asset Age Profile'!Q92","v":0},{"$f":"'[2]5.2 Asset Age Profile'!R92","v":0},{"$f":"'[2]5.2 Asset Age Profile'!S92","v":0},{"$f":"'[2]5.2 Asset Age Profile'!T92","v":0},{"$f":"'[2]5.2 Asset Age Profile'!U92","v":0},{"$f":"'[2]5.2 Asset Age Profile'!V92","v":0},{"$f":"'[2]5.2 Asset Age Profile'!W92","v":0},{"$f":"'[2]5.2 Asset Age Profile'!X92","v":0},{"$f":"'[2]5.2 Asset Age Profile'!Y92","v":6.7675697262754522},{"$f":"'[2]5.2 Asset Age Profile'!Z92","v":0},{"$f":"'[2]5.2 Asset Age Profile'!AA92","v":0},{"$f":"'[2]5.2 Asset Age Profile'!AB92","v":0},{"$f":"'[2]5.2 Asset Age Profile'!AC92","v":0},{"$f":"'[2]5.2 Asset Age Profile'!AD92","v":0},{"$f":"'[2]5.2 Asset Age Profile'!AE92","v":0},{"$f":"'[2]5.2 Asset Age Profile'!AF92","v":0},{"$f":"'[2]5.2 Asset Age Profile'!AG92","v":0},{"$f":"'[2]5.2 Asset Age Profile'!AH92","v":0},{"$f":"'[2]5.2 Asset Age Profile'!AI92","v":0},{"$f":"'[2]5.2 Asset Age Profile'!AJ92","v":1},{"$f":"'[2]5.2 Asset Age Profile'!AK92","v":4},{"$f":"'[2]5.2 Asset Age Profile'!AL92","v":6},{"$f":"'[2]5.2 Asset Age Profile'!AM92","v":7},{"$f":"'[2]5.2 Asset Age Profile'!AN92","v":8},{"$f":"'[2]5.2 Asset Age Profile'!AO92","v":6},{"$f":"'[2]5.2 Asset Age Profile'!AP92","v":6},{"$f":"'[2]5.2 Asset Age Profile'!AQ92","v":19},{"$f":"'[2]5.2 Asset Age Profile'!AR92","v":3},{"$f":"'[2]5.2 Asset Age Profile'!AS92","v":4},{"$f":"'[2]5.2 Asset Age Profile'!AT92","v":3},{"$f":"'[2]5.2 Asset Age Profile'!AU92","v":6},{"$f":"'[2]5.2 Asset Age Profile'!AV92","v":2},{"$f":"'[2]5.2 Asset Age Profile'!AW92","v":1},{"$f":"'[2]5.2 Asset Age Profile'!AX92","v":0},{"$f":"'[2]5.2 Asset Age Profile'!AY92","v":2},{"$f":"'[2]5.2 Asset Age Profile'!AZ92","v":3},{"$f":"'[2]5.2 Asset Age Profile'!BA92","v":2},{"$f":"'[2]5.2 Asset Age Profile'!BB92","v":1},{"$f":"'[2]5.2 Asset Age Profile'!BC92","v":1},{"$f":"'[2]5.2 Asset Age Profile'!BD92","v":3},{"$f":"'[2]5.2 Asset Age Profile'!BE92","v":3},{"$f":"'[2]5.2 Asset Age Profile'!BF92","v":3},{"$f":"'[2]5.2 Asset Age Profile'!BG92","v":5},{"$f":"'[2]5.2 Asset Age Profile'!BH92","v":4},{"$f":"'[2]5.2 Asset Age Profile'!BI92","v":3},{"$f":"'[2]5.2 Asset Age Profile'!BJ92","v":4},{"$f":"'[2]5.2 Asset Age Profile'!BK92","v":2},{"$f":"'[2]5.2 Asset Age Profile'!BL92","v":11},{"$f":"'[2]5.2 Asset Age Profile'!BM92","v":0},{"$f":"'[2]5.2 Asset Age Profile'!BN92","v":9},{"$f":"'[2]5.2 Asset Age Profile'!BO92","v":9},{"$f":"'[2]5.2 Asset Age Profile'!BP92","v":0},{"$f":"'[2]5.2 Asset Age Profile'!BQ92","v":2},{"$f":"'[2]5.2 Asset Age Profile'!BR92","v":7},{"$f":"'[2]5.2 Asset Age Profile'!BS92","v":8},{"$f":"'[2]5.2 Asset Age Profile'!BT92","v":3},{"$f":"'[2]5.2 Asset Age Profile'!BU92","v":4},{"$f":"'[2]5.2 Asset Age Profile'!BV92","v":4},{"$f":"'[2]5.2 Asset Age Profile'!BW92","v":1},{"$f":"'[2]5.2 Asset Age Profile'!BX92","v":1},{"$f":"'[2]5.2 Asset Age Profile'!BY92","v":3},{"$f":"'[2]5.2 Asset Age Profile'!BZ92","v":3},{"$f":"'[2]5.2 Asset Age Profile'!CA92","v":2},{"$f":"'[2]5.2 Asset Age Profile'!CB92","v":8},{"$f":"'[2]5.2 Asset Age Profile'!CC92","v":6},{"$f":"'[2]5.2 Asset Age Profile'!CD92","v":7},{"$f":"'[2]5.2 Asset Age Profile'!CE92","v":11},{"$f":"'[2]5.2 Asset Age Profile'!CF92","v":6},{"$f":"'[2]5.2 Asset Age Profile'!CG92","v":13},{"$f":"'[2]5.2 Asset Age Profile'!CH92","v":15},{"$f":"'[2]5.2 Asset Age Profile'!CI92","v":2},{"$f":"'[2]5.2 Asset Age Profile'!CJ92","v":7},{"$f":"'[2]5.2 Asset Age Profile'!CK92","v":1},{"$f":"'[2]5.2 Asset Age Profile'!CL92","v":5},{"$f":"'[2]5.2 Asset Age Profile'!CM92","v":10},{"$f":"'[2]5.2 Asset Age Profile'!CN92","v":3},{"$f":"'[2]5.2 Asset Age Profile'!CO92","v":2},{"$f":"'[2]5.2 Asset Age Profile'!CP92","v":2},{"$f":"'[2]5.2 Asset Age Profile'!CQ92","v":1},{"$f":"'[2]5.2 Asset Age Profile'!CR92","v":0},{"$f":"'[2]5.2 Asset Age Profile'!CS92","v":0},{"$f":"'[2]5.2 Asset Age Profile'!CT92","v":2},{"$f":"'[2]5.2 Asset Age Profile'!CU92","v":3},{"$f":"'[2]5.2 Asset Age Profile'!CV92","v":1},{"$f":"'[2]5.2 Asset Age Profile'!CW92","v":3},{"$f":"'[2]5.2 Asset Age Profile'!CX92","v":0},{"$f":"'[2]5.2 Asset Age Profile'!CY92","v":3},{"$f":"'[2]5.2 Asset Age Profile'!CZ92","v":1},{"$f":"'[2]5.2 Asset Age Profile'!DA92","v":0},{"$f":"'[2]5.2 Asset Age Profile'!DB92","v":3},{"$f":"'[2]5.2 Asset Age Profile'!DC92","v":0},{"$f":"'[2]5.2 Asset Age Profile'!DD92","v":0},{"$f":"'[2]5.2 Asset Age Profile'!DE92","v":0},{"$f":"'[2]5.2 Asset Age Profile'!DF92","v":0},{"$f":"'[2]5.2 Asset Age Profile'!DG92","v":0},{"$f":"'[2]5.2 Asset Age Profile'!DH92","v":0},{"$f":"'[2]5.2 Asset Age Profile'!DI92","v":0},{"$f":"'[2]5.2 Asset Age Profile'!DJ92","v":0},{"$f":"'[2]5.2 Asset Age Profile'!DK92","v":1},{"$f":"'[2]5.2 Asset Age Profile'!DL92","v":0},{"$f":"'[2]5.2 Asset Age Profile'!DM92","v":0},{"$f":"'[2]5.2 Asset Age Profile'!DN92","v":0},{"$f":"'[2]5.2 Asset Age Profile'!DO92","v":0},{"$f":"'[2]5.2 Asset Age Profile'!DP92","v":0},{"$f":"'[2]5.2 Asset Age Profile'!DQ92","v":0},{"$f":"'[2]5.2 Asset Age Profile'!DR92","v":0},{"$f":"'[2]5.2 Asset Age Profile'!DS92","v":0},{"$f":"'[2]5.2 Asset Age Profile'!DT92","v":0},{"$f":"'[2]5.2 Asset Age Profile'!DU92","v":0},{"$f":"'[2]5.2 Asset Age Profile'!DV92","v":0},{"$f":"'[2]5.2 Asset Age Profile'!DW92","v":0},{"$f":"'[2]5.2 Asset Age Profile'!DX92","v":0},{"$f":"'[2]5.2 Asset Age Profile'!DY92","v":0},{"$f":"'[2]5.2 Asset Age Profile'!DZ92","v":0},{"$f":"'[2]5.2 Asset Age Profile'!EA92","v":0},{"$f":"'[2]5.2 Asset Age Profile'!EB92","v":0},{"$f":"'[2]5.2 Asset Age Profile'!EC92","v":0},{"$f":"'[2]5.2 Asset Age Profile'!ED92","v":0},{"$f":"'[2]5.2 Asset Age Profile'!EE92","v":0},{"$f":"'[2]5.2 Asset Age Profile'!EF92","v":0},{"$f":"'[2]5.2 Asset Age Profile'!EG92","v":0},{"$f":"'[2]5.2 Asset Age Profile'!EH92","v":0},{"$f":"'[2]5.2 Asset Age Profile'!EI92","v":0},{"$f":"'[2]5.2 Asset Age Profile'!EJ92","v":0}]
["ED_ASS521_00083",null,"Ground Outdoor / Indoor Chamber Mounted; > 33 kV & < = 66 kV ;  > 15 MVA and < = 40 MVA",null,null,null,null,null,null,null,null,null,null,{"$f":"'[2]5.2 Asset Age Profile'!N93","v":45.8},{"$f":"'[2]5.2 Asset Age Profile'!O93","v":0},{"$f":"'[2]5.2 Asset Age Profile'!P93","v":0},{"$f":"'[2]5.2 Asset Age Profile'!Q93","v":0},{"$f":"'[2]5.2 Asset Age Profile'!R93","v":0},{"$f":"'[2]5.2 Asset Age Profile'!S93","v":0},{"$f":"'[2]5.2 Asset Age Profile'!T93","v":0},{"$f":"'[2]5.2 Asset Age Profile'!U93","v":0},{"$f":"'[2]5.2 Asset Age Profile'!V93","v":0},{"$f":"'[2]5.2 Asset Age Profile'!W93","v":0},{"$f":"'[2]5.2 Asset Age Profile'!X93","v":0},{"$f":"'[2]5.2 Asset Age Profile'!Y93","v":6.7675697262754522},{"$f":"'[2]5.2 Asset Age Profile'!Z93","v":0},{"$f":"'[2]5.2 Asset Age Profile'!AA93","v":0},{"$f":"'[2]5.2 Asset Age Profile'!AB93","v":0},{"$f":"'[2]5.2 Asset Age Profile'!AC93","v":0},{"$f":"'[2]5.2 Asset Age Profile'!AD93","v":0},{"$f":"'[2]5.2 Asset Age Profile'!AE93","v":0},{"$f":"'[2]5.2 Asset Age Profile'!AF93","v":0},{"$f":"'[2]5.2 Asset Age Profile'!AG93","v":0},{"$f":"'[2]5.2 Asset Age Profile'!AH93","v":0},{"$f":"'[2]5.2 Asset Age Profile'!AI93","v":0},{"$f":"'[2]5.2 Asset Age Profile'!AJ93","v":1},{"$f":"'[2]5.2 Asset Age Profile'!AK93","v":2},{"$f":"'[2]5.2 Asset Age Profile'!AL93","v":2},{"$f":"'[2]5.2 Asset Age Profile'!AM93","v":6},{"$f":"'[2]5.2 Asset Age Profile'!AN93","v":5},{"$f":"'[2]5.2 Asset Age Profile'!AO93","v":12},{"$f":"'[2]5.2 Asset Age Profile'!AP93","v":5},{"$f":"'[2]5.2 Asset Age Profile'!AQ93","v":6},{"$f":"'[2]5.2 Asset Age Profile'!AR93","v":17},{"$f":"'[2]5.2 Asset Age Profile'!AS93","v":6},{"$f":"'[2]5.2 Asset Age Profile'!AT93","v":3},{"$f":"'[2]5.2 Asset Age Profile'!AU93","v":10},{"$f":"'[2]5.2 Asset Age Profile'!AV93","v":4},{"$f":"'[2]5.2 Asset Age Profile'!AW93","v":3},{"$f":"'[2]5.2 Asset Age Profile'!AX93","v":1},{"$f":"'[2]5.2 Asset Age Profile'!AY93","v":0},{"$f":"'[2]5.2 Asset Age Profile'!AZ93","v":0},{"$f":"'[2]5.2 Asset Age Profile'!BA93","v":0},{"$f":"'[2]5.2 Asset Age Profile'!BB93","v":0},{"$f":"'[2]5.2 Asset Age Profile'!BC93","v":0},{"$f":"'[2]5.2 Asset Age Profile'!BD93","v":2},{"$f":"'[2]5.2 Asset Age Profile'!BE93","v":1},{"$f":"'[2]5.2 Asset Age Profile'!BF93","v":0},{"$f":"'[2]5.2 Asset Age Profile'!BG93","v":0},{"$f":"'[2]5.2 Asset Age Profile'!BH93","v":0},{"$f":"'[2]5.2 Asset Age Profile'!BI93","v":4},{"$f":"'[2]5.2 Asset Age Profile'!BJ93","v":1},{"$f":"'[2]5.2 Asset Age Profile'!BK93","v":2},{"$f":"'[2]5.2 Asset Age Profile'!BL93","v":5},{"$f":"'[2]5.2 Asset Age Profile'!BM93","v":1},{"$f":"'[2]5.2 Asset Age Profile'!BN93","v":5},{"$f":"'[2]5.2 Asset Age Profile'!BO93","v":5},{"$f":"'[2]5.2 Asset Age Profile'!BP93","v":5},{"$f":"'[2]5.2 Asset Age Profile'!BQ93","v":7},{"$f":"'[2]5.2 Asset Age Profile'!BR93","v":7},{"$f":"'[2]5.2 Asset Age Profile'!BS93","v":1},{"$f":"'[2]5.2 Asset Age Profile'!BT93","v":3},{"$f":"'[2]5.2 Asset Age Profile'!BU93","v":3},{"$f":"'[2]5.2 Asset Age Profile'!BV93","v":8},{"$f":"'[2]5.2 Asset Age Profile'!BW93","v":2},{"$f":"'[2]5.2 Asset Age Profile'!BX93","v":0},{"$f":"'[2]5.2 Asset Age Profile'!BY93","v":0},{"$f":"'[2]5.2 Asset Age Profile'!BZ93","v":2},{"$f":"'[2]5.2 Asset Age Profile'!CA93","v":0},{"$f":"'[2]5.2 Asset Age Profile'!CB93","v":0},{"$f":"'[2]5.2 Asset Age Profile'!CC93","v":3},{"$f":"'[2]5.2 Asset Age Profile'!CD93","v":0},{"$f":"'[2]5.2 Asset Age Profile'!CE93","v":0},{"$f":"'[2]5.2 Asset Age Profile'!CF93","v":2},{"$f":"'[2]5.2 Asset Age Profile'!CG93","v":2},{"$f":"'[2]5.2 Asset Age Profile'!CH93","v":1},{"$f":"'[2]5.2 Asset Age Profile'!CI93","v":0},{"$f":"'[2]5.2 Asset Age Profile'!CJ93","v":2},{"$f":"'[2]5.2 Asset Age Profile'!CK93","v":0},{"$f":"'[2]5.2 Asset Age Profile'!CL93","v":0},{"$f":"'[2]5.2 Asset Age Profile'!CM93","v":0},{"$f":"'[2]5.2 Asset Age Profile'!CN93","v":0},{"$f":"'[2]5.2 Asset Age Profile'!CO93","v":0},{"$f":"'[2]5.2 Asset Age Profile'!CP93","v":0},{"$f":"'[2]5.2 Asset Age Profile'!CQ93","v":0},{"$f":"'[2]5.2 Asset Age Profile'!CR93","v":0},{"$f":"'[2]5.2 Asset Age Profile'!CS93","v":0},{"$f":"'[2]5.2 Asset Age Profile'!CT93","v":0},{"$f":"'[2]5.2 Asset Age Profile'!CU93","v":0},{"$f":"'[2]5.2 Asset Age Profile'!CV93","v":0},{"$f":"'[2]5.2 Asset Age Profile'!CW93","v":0},{"$f":"'[2]5.2 Asset Age Profile'!CX93","v":0},{"$f":"'[2]5.2 Asset Age Profile'!CY93","v":0},{"$f":"'[2]5.2 Asset Age Profile'!CZ93","v":0},{"$f":"'[2]5.2 Asset Age Profile'!DA93","v":0},{"$f":"'[2]5.2 Asset Age Profile'!DB93","v":0},{"$f":"'[2]5.2 Asset Age Profile'!DC93","v":0},{"$f":"'[2]5.2 Asset Age Profile'!DD93","v":0},{"$f":"'[2]5.2 Asset Age Profile'!DE93","v":0},{"$f":"'[2]5.2 Asset Age Profile'!DF93","v":0},{"$f":"'[2]5.2 Asset Age Profile'!DG93","v":0},{"$f":"'[2]5.2 Asset Age Profile'!DH93","v":0},{"$f":"'[2]5.2 Asset Age Profile'!DI93","v":0},{"$f":"'[2]5.2 Asset Age Profile'!DJ93","v":0},{"$f":"'[2]5.2 Asset Age Profile'!DK93","v":0},{"$f":"'[2]5.2 Asset Age Profile'!DL93","v":0},{"$f":"'[2]5.2 Asset Age Profile'!DM93","v":0},{"$f":"'[2]5.2 Asset Age Profile'!DN93","v":0},{"$f":"'[2]5.2 Asset Age Profile'!DO93","v":0},{"$f":"'[2]5.2 Asset Age Profile'!DP93","v":0},{"$f":"'[2]5.2 Asset Age Profile'!DQ93","v":0},{"$f":"'[2]5.2 Asset Age Profile'!DR93","v":0},{"$f":"'[2]5.2 Asset Age Profile'!DS93","v":0},{"$f":"'[2]5.2 Asset Age Profile'!DT93","v":0},{"$f":"'[2]5.2 Asset Age Profile'!DU93","v":0},{"$f":"'[2]5.2 Asset Age Profile'!DV93","v":0},{"$f":"'[2]5.2 Asset Age Profile'!DW93","v":0},{"$f":"'[2]5.2 Asset Age Profile'!DX93","v":0},{"$f":"'[2]5.2 Asset Age Profile'!DY93","v":0},{"$f":"'[2]5.2 Asset Age Profile'!DZ93","v":0},{"$f":"'[2]5.2 Asset Age Profile'!EA93","v":0},{"$f":"'[2]5.2 Asset Age Profile'!EB93","v":0},{"$f":"'[2]5.2 Asset Age Profile'!EC93","v":0},{"$f":"'[2]5.2 Asset Age Profile'!ED93","v":0},{"$f":"'[2]5.2 Asset Age Profile'!EE93","v":0},{"$f":"'[2]5.2 Asset Age Profile'!EF93","v":0},{"$f":"'[2]5.2 Asset Age Profile'!EG93","v":0},{"$f":"'[2]5.2 Asset Age Profile'!EH93","v":0},{"$f":"'[2]5.2 Asset Age Profile'!EI93","v":0},{"$f":"'[2]5.2 Asset Age Profile'!EJ93","v":0}]
["ED_ASS521_00084",null,"Ground Outdoor / Indoor Chamber Mounted; > 33 kV & < = 66 kV ;  > 40 MVA",null,null,null,null,null,null,null,null,null,null,{"$f":"'[2]5.2 Asset Age Profile'!N94","v":45.8},{"$f":"'[2]5.2 Asset Age Profile'!O94","v":0},{"$f":"'[2]5.2 Asset Age Profile'!P94","v":0},{"$f":"'[2]5.2 Asset Age Profile'!Q94","v":0},{"$f":"'[2]5.2 Asset Age Profile'!R94","v":0},{"$f":"'[2]5.2 Asset Age Profile'!S94","v":0},{"$f":"'[2]5.2 Asset Age Profile'!T94","v":0},{"$f":"'[2]5.2 Asset Age Profile'!U94","v":0},{"$f":"'[2]5.2 Asset Age Profile'!V94","v":0},{"$f":"'[2]5.2 Asset Age Profile'!W94","v":0},{"$f":"'[2]5.2 Asset Age Profile'!X94","v":0},{"$f":"'[2]5.2 Asset Age Profile'!Y94","v":6.7675697262754522},{"$f":"'[2]5.2 Asset Age Profile'!Z94","v":0},{"$f":"'[2]5.2 Asset Age Profile'!AA94","v":0},{"$f":"'[2]5.2 Asset Age Profile'!AB94","v":0},{"$f":"'[2]5.2 Asset Age Profile'!AC94","v":0},{"$f":"'[2]5.2 Asset Age Profile'!AD94","v":0},{"$f":"'[2]5.2 Asset Age Profile'!AE94","v":0},{"$f":"'[2]5.2 Asset Age Profile'!AF94","v":0},{"$f":"'[2]5.2 Asset Age Profile'!AG94","v":0},{"$f":"'[2]5.2 Asset Age Profile'!AH94","v":0},{"$f":"'[2]5.2 Asset Age Profile'!AI94","v":0},{"$f":"'[2]5.2 Asset Age Profile'!AJ94","v":0},{"$f":"'[2]5.2 Asset Age Profile'!AK94","v":0},{"$f":"'[2]5.2 Asset Age Profile'!AL94","v":0},{"$f":"'[2]5.2 Asset Age Profile'!AM94","v":0},{"$f":"'[2]5.2 Asset Age Profile'!AN94","v":0},{"$f":"'[2]5.2 Asset Age Profile'!AO94","v":0},{"$f":"'[2]5.2 Asset Age Profile'!AP94","v":0},{"$f":"'[2]5.2 Asset Age Profile'!AQ94","v":0},{"$f":"'[2]5.2 Asset Age Profile'!AR94","v":0},{"$f":"'[2]5.2 Asset Age Profile'!AS94","v":0},{"$f":"'[2]5.2 Asset Age Profile'!AT94","v":2},{"$f":"'[2]5.2 Asset Age Profile'!AU94","v":0},{"$f":"'[2]5.2 Asset Age Profile'!AV94","v":0},{"$f":"'[2]5.2 Asset Age Profile'!AW94","v":0},{"$f":"'[2]5.2 Asset Age Profile'!AX94","v":0},{"$f":"'[2]5.2 Asset Age Profile'!AY94","v":0},{"$f":"'[2]5.2 Asset Age Profile'!AZ94","v":0},{"$f":"'[2]5.2 Asset Age Profile'!BA94","v":0},{"$f":"'[2]5.2 Asset Age Profile'!BB94","v":0},{"$f":"'[2]5.2 Asset Age Profile'!BC94","v":0},{"$f":"'[2]5.2 Asset Age Profile'!BD94","v":0},{"$f":"'[2]5.2 Asset Age Profile'!BE94","v":0},{"$f":"'[2]5.2 Asset Age Profile'!BF94","v":0},{"$f":"'[2]5.2 Asset Age Profile'!BG94","v":0},{"$f":"'[2]5.2 Asset Age Profile'!BH94","v":0},{"$f":"'[2]5.2 Asset Age Profile'!BI94","v":0},{"$f":"'[2]5.2 Asset Age Profile'!BJ94","v":0},{"$f":"'[2]5.2 Asset Age Profile'!BK94","v":0},{"$f":"'[2]5.2 Asset Age Profile'!BL94","v":0},{"$f":"'[2]5.2 Asset Age Profile'!BM94","v":0},{"$f":"'[2]5.2 Asset Age Profile'!BN94","v":0},{"$f":"'[2]5.2 Asset Age Profile'!BO94","v":0},{"$f":"'[2]5.2 Asset Age Profile'!BP94","v":0},{"$f":"'[2]5.2 Asset Age Profile'!BQ94","v":0},{"$f":"'[2]5.2 Asset Age Profile'!BR94","v":0},{"$f":"'[2]5.2 Asset Age Profile'!BS94","v":0},{"$f":"'[2]5.2 Asset Age Profile'!BT94","v":0},{"$f":"'[2]5.2 Asset Age Profile'!BU94","v":0},{"$f":"'[2]5.2 Asset Age Profile'!BV94","v":0},{"$f":"'[2]5.2 Asset Age Profile'!BW94","v":0},{"$f":"'[2]5.2 Asset Age Profile'!BX94","v":0},{"$f":"'[2]5.2 Asset Age Profile'!BY94","v":0},{"$f":"'[2]5.2 Asset Age Profile'!BZ94","v":0},{"$f":"'[2]5.2 Asset Age Profile'!CA94","v":0},{"$f":"'[2]5.2 Asset Age Profile'!CB94","v":0},{"$f":"'[2]5.2 Asset Age Profile'!CC94","v":0},{"$f":"'[2]5.2 Asset Age Profile'!CD94","v":0},{"$f":"'[2]5.2 Asset Age Profile'!CE94","v":0},{"$f":"'[2]5.2 Asset Age Profile'!CF94","v":0},{"$f":"'[2]5.2 Asset Age Profile'!CG94","v":0},{"$f":"'[2]5.2 Asset Age Profile'!CH94","v":0},{"$f":"'[2]5.2 Asset Age Profile'!CI94","v":0},{"$f":"'[2]5.2 Asset Age Profile'!CJ94","v":0},{"$f":"'[2]5.2 Asset Age Profile'!CK94","v":0},{"$f":"'[2]5.2 Asset Age Profile'!CL94","v":0},{"$f":"'[2]5.2 Asset Age Profile'!CM94","v":0},{"$f":"'[2]5.2 Asset Age Profile'!CN94","v":0},{"$f":"'[2]5.2 Asset Age Profile'!CO94","v":0},{"$f":"'[2]5.2 Asset Age Profile'!CP94","v":0},{"$f":"'[2]5.2 Asset Age Profile'!CQ94","v":0},{"$f":"'[2]5.2 Asset Age Profile'!CR94","v":0},{"$f":"'[2]5.2 Asset Age Profile'!CS94","v":0},{"$f":"'[2]5.2 Asset Age Profile'!CT94","v":0},{"$f":"'[2]5.2 Asset Age Profile'!CU94","v":0},{"$f":"'[2]5.2 Asset Age Profile'!CV94","v":0},{"$f":"'[2]5.2 Asset Age Profile'!CW94","v":0},{"$f":"'[2]5.2 Asset Age Profile'!CX94","v":0},{"$f":"'[2]5.2 Asset Age Profile'!CY94","v":0},{"$f":"'[2]5.2 Asset Age Profile'!CZ94","v":0},{"$f":"'[2]5.2 Asset Age Profile'!DA94","v":0},{"$f":"'[2]5.2 Asset Age Profile'!DB94","v":0},{"$f":"'[2]5.2 Asset Age Profile'!DC94","v":0},{"$f":"'[2]5.2 Asset Age Profile'!DD94","v":0},{"$f":"'[2]5.2 Asset Age Profile'!DE94","v":0},{"$f":"'[2]5.2 Asset Age Profile'!DF94","v":0},{"$f":"'[2]5.2 Asset Age Profile'!DG94","v":0},{"$f":"'[2]5.2 Asset Age Profile'!DH94","v":0},{"$f":"'[2]5.2 Asset Age Profile'!DI94","v":0},{"$f":"'[2]5.2 Asset Age Profile'!DJ94","v":0},{"$f":"'[2]5.2 Asset Age Profile'!DK94","v":0},{"$f":"'[2]5.2 Asset Age Profile'!DL94","v":0},{"$f":"'[2]5.2 Asset Age Profile'!DM94","v":0},{"$f":"'[2]5.2 Asset Age Profile'!DN94","v":0},{"$f":"'[2]5.2 Asset Age Profile'!DO94","v":0},{"$f":"'[2]5.2 Asset Age Profile'!DP94","v":0},{"$f":"'[2]5.2 Asset Age Profile'!DQ94","v":0},{"$f":"'[2]5.2 Asset Age Profile'!DR94","v":0},{"$f":"'[2]5.2 Asset Age Profile'!DS94","v":0},{"$f":"'[2]5.2 Asset Age Profile'!DT94","v":0},{"$f":"'[2]5.2 Asset Age Profile'!DU94","v":0},{"$f":"'[2]5.2 Asset Age Profile'!DV94","v":0},{"$f":"'[2]5.2 Asset Age Profile'!DW94","v":0},{"$f":"'[2]5.2 Asset Age Profile'!DX94","v":0},{"$f":"'[2]5.2 Asset Age Profile'!DY94","v":0},{"$f":"'[2]5.2 Asset Age Profile'!DZ94","v":0},{"$f":"'[2]5.2 Asset Age Profile'!EA94","v":0},{"$f":"'[2]5.2 Asset Age Profile'!EB94","v":0},{"$f":"'[2]5.2 Asset Age Profile'!EC94","v":0},{"$f":"'[2]5.2 Asset Age Profile'!ED94","v":0},{"$f":"'[2]5.2 Asset Age Profile'!EE94","v":0},{"$f":"'[2]5.2 Asset Age Profile'!EF94","v":0},{"$f":"'[2]5.2 Asset Age Profile'!EG94","v":0},{"$f":"'[2]5.2 Asset Age Profile'!EH94","v":0},{"$f":"'[2]5.2 Asset Age Profile'!EI94","v":0},{"$f":"'[2]5.2 Asset Age Profile'!EJ94","v":0}]
["ED_ASS521_00085",null,"Ground Outdoor / Indoor Chamber Mounted; > 66 kV & < = 132 kV ;  < = 100 MVA",null,null,null,null,null,null,null,null,null,null,{"$f":"'[2]5.2 Asset Age Profile'!N95","v":45.8},{"$f":"'[2]5.2 Asset Age Profile'!O95","v":0},{"$f":"'[2]5.2 Asset Age Profile'!P95","v":0},{"$f":"'[2]5.2 Asset Age Profile'!Q95","v":0},{"$f":"'[2]5.2 Asset Age Profile'!R95","v":0},{"$f":"'[2]5.2 Asset Age Profile'!S95","v":0},{"$f":"'[2]5.2 Asset Age Profile'!T95","v":0},{"$f":"'[2]5.2 Asset Age Profile'!U95","v":0},{"$f":"'[2]5.2 Asset Age Profile'!V95","v":0},{"$f":"'[2]5.2 Asset Age Profile'!W95","v":0},{"$f":"'[2]5.2 Asset Age Profile'!X95","v":0},{"$f":"'[2]5.2 Asset Age Profile'!Y95","v":6.7675697262754522},{"$f":"'[2]5.2 Asset Age Profile'!Z95","v":0},{"$f":"'[2]5.2 Asset Age Profile'!AA95","v":0},{"$f":"'[2]5.2 Asset Age Profile'!AB95","v":0},{"$f":"'[2]5.2 Asset Age Profile'!AC95","v":0},{"$f":"'[2]5.2 Asset Age Profile'!AD95","v":0},{"$f":"'[2]5.2 Asset Age Profile'!AE95","v":0},{"$f":"'[2]5.2 Asset Age Profile'!AF95","v":0},{"$f":"'[2]5.2 Asset Age Profile'!AG95","v":0},{"$f":"'[2]5.2 Asset Age Profile'!AH95","v":0},{"$f":"'[2]5.2 Asset Age Profile'!AI95","v":0},{"$f":"'[2]5.2 Asset Age Profile'!AJ95","v":0},{"$f":"'[2]5.2 Asset Age Profile'!AK95","v":0},{"$f":"'[2]5.2 Asset Age Profile'!AL95","v":2},{"$f":"'[2]5.2 Asset Age Profile'!AM95","v":7},{"$f":"'[2]5.2 Asset Age Profile'!AN95","v":3},{"$f":"'[2]5.2 Asset Age Profile'!AO95","v":4},{"$f":"'[2]5.2 Asset Age Profile'!AP95","v":0},{"$f":"'[2]5.2 Asset Age Profile'!AQ95","v":12},{"$f":"'[2]5.2 Asset Age Profile'!AR95","v":2},{"$f":"'[2]5.2 Asset Age Profile'!AS95","v":1},{"$f":"'[2]5.2 Asset Age Profile'!AT95","v":0},{"$f":"'[2]5.2 Asset Age Profile'!AU95","v":1},{"$f":"'[2]5.2 Asset Age Profile'!AV95","v":2},{"$f":"'[2]5.2 Asset Age Profile'!AW95","v":3},{"$f":"'[2]5.2 Asset Age Profile'!AX95","v":3},{"$f":"'[2]5.2 Asset Age Profile'!AY95","v":2},{"$f":"'[2]5.2 Asset Age Profile'!AZ95","v":4},{"$f":"'[2]5.2 Asset Age Profile'!BA95","v":0},{"$f":"'[2]5.2 Asset Age Profile'!BB95","v":0},{"$f":"'[2]5.2 Asset Age Profile'!BC95","v":0},{"$f":"'[2]5.2 Asset Age Profile'!BD95","v":5},{"$f":"'[2]5.2 Asset Age Profile'!BE95","v":2},{"$f":"'[2]5.2 Asset Age Profile'!BF95","v":0},{"$f":"'[2]5.2 Asset Age Profile'!BG95","v":1},{"$f":"'[2]5.2 Asset Age Profile'!BH95","v":2},{"$f":"'[2]5.2 Asset Age Profile'!BI95","v":2},{"$f":"'[2]5.2 Asset Age Profile'!BJ95","v":0},{"$f":"'[2]5.2 Asset Age Profile'!BK95","v":0},{"$f":"'[2]5.2 Asset Age Profile'!BL95","v":0},{"$f":"'[2]5.2 Asset Age Profile'!BM95","v":0},{"$f":"'[2]5.2 Asset Age Profile'!BN95","v":0},{"$f":"'[2]5.2 Asset Age Profile'!BO95","v":6},{"$f":"'[2]5.2 Asset Age Profile'!BP95","v":0},{"$f":"'[2]5.2 Asset Age Profile'!BQ95","v":4},{"$f":"'[2]5.2 Asset Age Profile'!BR95","v":1},{"$f":"'[2]5.2 Asset Age Profile'!BS95","v":0},{"$f":"'[2]5.2 Asset Age Profile'!BT95","v":0},{"$f":"'[2]5.2 Asset Age Profile'!BU95","v":1},{"$f":"'[2]5.2 Asset Age Profile'!BV95","v":0},{"$f":"'[2]5.2 Asset Age Profile'!BW95","v":1},{"$f":"'[2]5.2 Asset Age Profile'!BX95","v":0},{"$f":"'[2]5.2 Asset Age Profile'!BY95","v":0},{"$f":"'[2]5.2 Asset Age Profile'!BZ95","v":0},{"$f":"'[2]5.2 Asset Age Profile'!CA95","v":0},{"$f":"'[2]5.2 Asset Age Profile'!CB95","v":0},{"$f":"'[2]5.2 Asset Age Profile'!CC95","v":0},{"$f":"'[2]5.2 Asset Age Profile'!CD95","v":0},{"$f":"'[2]5.2 Asset Age Profile'!CE95","v":0},{"$f":"'[2]5.2 Asset Age Profile'!CF95","v":0},{"$f":"'[2]5.2 Asset Age Profile'!CG95","v":2},{"$f":"'[2]5.2 Asset Age Profile'!CH95","v":2},{"$f":"'[2]5.2 Asset Age Profile'!CI95","v":2},{"$f":"'[2]5.2 Asset Age Profile'!CJ95","v":0},{"$f":"'[2]5.2 Asset Age Profile'!CK95","v":0},{"$f":"'[2]5.2 Asset Age Profile'!CL95","v":2},{"$f":"'[2]5.2 Asset Age Profile'!CM95","v":0},{"$f":"'[2]5.2 Asset Age Profile'!CN95","v":0},{"$f":"'[2]5.2 Asset Age Profile'!CO95","v":0},{"$f":"'[2]5.2 Asset Age Profile'!CP95","v":0},{"$f":"'[2]5.2 Asset Age Profile'!CQ95","v":1},{"$f":"'[2]5.2 Asset Age Profile'!CR95","v":0},{"$f":"'[2]5.2 Asset Age Profile'!CS95","v":0},{"$f":"'[2]5.2 Asset Age Profile'!CT95","v":0},{"$f":"'[2]5.2 Asset Age Profile'!CU95","v":0},{"$f":"'[2]5.2 Asset Age Profile'!CV95","v":0},{"$f":"'[2]5.2 Asset Age Profile'!CW95","v":0},{"$f":"'[2]5.2 Asset Age Profile'!CX95","v":0},{"$f":"'[2]5.2 Asset Age Profile'!CY95","v":0},{"$f":"'[2]5.2 Asset Age Profile'!CZ95","v":0},{"$f":"'[2]5.2 Asset Age Profile'!DA95","v":0},{"$f":"'[2]5.2 Asset Age Profile'!DB95","v":0},{"$f":"'[2]5.2 Asset Age Profile'!DC95","v":0},{"$f":"'[2]5.2 Asset Age Profile'!DD95","v":0},{"$f":"'[2]5.2 Asset Age Profile'!DE95","v":0},{"$f":"'[2]5.2 Asset Age Profile'!DF95","v":0},{"$f":"'[2]5.2 Asset Age Profile'!DG95","v":0},{"$f":"'[2]5.2 Asset Age Profile'!DH95","v":0},{"$f":"'[2]5.2 Asset Age Profile'!DI95","v":0},{"$f":"'[2]5.2 Asset Age Profile'!DJ95","v":0},{"$f":"'[2]5.2 Asset Age Profile'!DK95","v":0},{"$f":"'[2]5.2 Asset Age Profile'!DL95","v":0},{"$f":"'[2]5.2 Asset Age Profile'!DM95","v":0},{"$f":"'[2]5.2 Asset Age Profile'!DN95","v":0},{"$f":"'[2]5.2 Asset Age Profile'!DO95","v":0},{"$f":"'[2]5.2 Asset Age Profile'!DP95","v":0},{"$f":"'[2]5.2 Asset Age Profile'!DQ95","v":0},{"$f":"'[2]5.2 Asset Age Profile'!DR95","v":0},{"$f":"'[2]5.2 Asset Age Profile'!DS95","v":0},{"$f":"'[2]5.2 Asset Age Profile'!DT95","v":0},{"$f":"'[2]5.2 Asset Age Profile'!DU95","v":0},{"$f":"'[2]5.2 Asset Age Profile'!DV95","v":0},{"$f":"'[2]5.2 Asset Age Profile'!DW95","v":0},{"$f":"'[2]5.2 Asset Age Profile'!DX95","v":0},{"$f":"'[2]5.2 Asset Age Profile'!DY95","v":0},{"$f":"'[2]5.2 Asset Age Profile'!DZ95","v":0},{"$f":"'[2]5.2 Asset Age Profile'!EA95","v":0},{"$f":"'[2]5.2 Asset Age Profile'!EB95","v":0},{"$f":"'[2]5.2 Asset Age Profile'!EC95","v":0},{"$f":"'[2]5.2 Asset Age Profile'!ED95","v":0},{"$f":"'[2]5.2 Asset Age Profile'!EE95","v":0},{"$f":"'[2]5.2 Asset Age Profile'!EF95","v":0},{"$f":"'[2]5.2 Asset Age Profile'!EG95","v":0},{"$f":"'[2]5.2 Asset Age Profile'!EH95","v":0},{"$f":"'[2]5.2 Asset Age Profile'!EI95","v":0},{"$f":"'[2]5.2 Asset Age Profile'!EJ95","v":0}]
["ED_ASS521_00086",null,"Ground Outdoor / Indoor Chamber Mounted; > 66 kV & < = 132 kV ;  > 100 MVA",null,null,null,null,null,null,null,null,null,null,{"$f":"'[2]5.2 Asset Age Profile'!N96","v":45.8},{"$f":"'[2]5.2 Asset Age Profile'!O96","v":0},{"$f":"'[2]5.2 Asset Age Profile'!P96","v":0},{"$f":"'[2]5.2 Asset Age Profile'!Q96","v":0},{"$f":"'[2]5.2 Asset Age Profile'!R96","v":0},{"$f":"'[2]5.2 Asset Age Profile'!S96","v":0},{"$f":"'[2]5.2 Asset Age Profile'!T96","v":0},{"$f":"'[2]5.2 Asset Age Profile'!U96","v":0},{"$f":"'[2]5.2 Asset Age Profile'!V96","v":0},{"$f":"'[2]5.2 Asset Age Profile'!W96","v":0},{"$f":"'[2]5.2 Asset Age Profile'!X96","v":0},{"$f":"'[2]5.2 Asset Age Profile'!Y96","v":6.7675697262754522},{"$f":"'[2]5.2 Asset Age Profile'!Z96","v":0},{"$f":"'[2]5.2 Asset Age Profile'!AA96","v":0},{"$f":"'[2]5.2 Asset Age Profile'!AB96","v":0},{"$f":"'[2]5.2 Asset Age Profile'!AC96","v":0},{"$f":"'[2]5.2 Asset Age Profile'!AD96","v":0},{"$f":"'[2]5.2 Asset Age Profile'!AE96","v":0},{"$f":"'[2]5.2 Asset Age Profile'!AF96","v":0},{"$f":"'[2]5.2 Asset Age Profile'!AG96","v":0},{"$f":"'[2]5.2 Asset Age Profile'!AH96","v":0},{"$f":"'[2]5.2 Asset Age Profile'!AI96","v":0},{"$f":"'[2]5.2 Asset Age Profile'!AJ96","v":0},{"$f":"'[2]5.2 Asset Age Profile'!AK96","v":0},{"$f":"'[2]5.2 Asset Age Profile'!AL96","v":0},{"$f":"'[2]5.2 Asset Age Profile'!AM96","v":0},{"$f":"'[2]5.2 Asset Age Profile'!AN96","v":0},{"$f":"'[2]5.2 Asset Age Profile'!AO96","v":0},{"$f":"'[2]5.2 Asset Age Profile'!AP96","v":0},{"$f":"'[2]5.2 Asset Age Profile'!AQ96","v":0},{"$f":"'[2]5.2 Asset Age Profile'!AR96","v":0},{"$f":"'[2]5.2 Asset Age Profile'!AS96","v":3},{"$f":"'[2]5.2 Asset Age Profile'!AT96","v":0},{"$f":"'[2]5.2 Asset Age Profile'!AU96","v":0},{"$f":"'[2]5.2 Asset Age Profile'!AV96","v":0},{"$f":"'[2]5.2 Asset Age Profile'!AW96","v":0},{"$f":"'[2]5.2 Asset Age Profile'!AX96","v":0},{"$f":"'[2]5.2 Asset Age Profile'!AY96","v":0},{"$f":"'[2]5.2 Asset Age Profile'!AZ96","v":0},{"$f":"'[2]5.2 Asset Age Profile'!BA96","v":0},{"$f":"'[2]5.2 Asset Age Profile'!BB96","v":0},{"$f":"'[2]5.2 Asset Age Profile'!BC96","v":0},{"$f":"'[2]5.2 Asset Age Profile'!BD96","v":0},{"$f":"'[2]5.2 Asset Age Profile'!BE96","v":0},{"$f":"'[2]5.2 Asset Age Profile'!BF96","v":0},{"$f":"'[2]5.2 Asset Age Profile'!BG96","v":0},{"$f":"'[2]5.2 Asset Age Profile'!BH96","v":0},{"$f":"'[2]5.2 Asset Age Profile'!BI96","v":0},{"$f":"'[2]5.2 Asset Age Profile'!BJ96","v":0},{"$f":"'[2]5.2 Asset Age Profile'!BK96","v":0},{"$f":"'[2]5.2 Asset Age Profile'!BL96","v":0},{"$f":"'[2]5.2 Asset Age Profile'!BM96","v":0},{"$f":"'[2]5.2 Asset Age Profile'!BN96","v":0},{"$f":"'[2]5.2 Asset Age Profile'!BO96","v":0},{"$f":"'[2]5.2 Asset Age Profile'!BP96","v":0},{"$f":"'[2]5.2 Asset Age Profile'!BQ96","v":0},{"$f":"'[2]5.2 Asset Age Profile'!BR96","v":0},{"$f":"'[2]5.2 Asset Age Profile'!BS96","v":0},{"$f":"'[2]5.2 Asset Age Profile'!BT96","v":0},{"$f":"'[2]5.2 Asset Age Profile'!BU96","v":0},{"$f":"'[2]5.2 Asset Age Profile'!BV96","v":0},{"$f":"'[2]5.2 Asset Age Profile'!BW96","v":0},{"$f":"'[2]5.2 Asset Age Profile'!BX96","v":0},{"$f":"'[2]5.2 Asset Age Profile'!BY96","v":0},{"$f":"'[2]5.2 Asset Age Profile'!BZ96","v":0},{"$f":"'[2]5.2 Asset Age Profile'!CA96","v":0},{"$f":"'[2]5.2 Asset Age Profile'!CB96","v":0},{"$f":"'[2]5.2 Asset Age Profile'!CC96","v":0},{"$f":"'[2]5.2 Asset Age Profile'!CD96","v":0},{"$f":"'[2]5.2 Asset Age Profile'!CE96","v":0},{"$f":"'[2]5.2 Asset Age Profile'!CF96","v":0},{"$f":"'[2]5.2 Asset Age Profile'!CG96","v":0},{"$f":"'[2]5.2 Asset Age Profile'!CH96","v":0},{"$f":"'[2]5.2 Asset Age Profile'!CI96","v":0},{"$f":"'[2]5.2 Asset Age Profile'!CJ96","v":0},{"$f":"'[2]5.2 Asset Age Profile'!CK96","v":0},{"$f":"'[2]5.2 Asset Age Profile'!CL96","v":0},{"$f":"'[2]5.2 Asset Age Profile'!CM96","v":0},{"$f":"'[2]5.2 Asset Age Profile'!CN96","v":0},{"$f":"'[2]5.2 Asset Age Profile'!CO96","v":0},{"$f":"'[2]5.2 Asset Age Profile'!CP96","v":0},{"$f":"'[2]5.2 Asset Age Profile'!CQ96","v":0},{"$f":"'[2]5.2 Asset Age Profile'!CR96","v":0},{"$f":"'[2]5.2 Asset Age Profile'!CS96","v":0},{"$f":"'[2]5.2 Asset Age Profile'!CT96","v":0},{"$f":"'[2]5.2 Asset Age Profile'!CU96","v":0},{"$f":"'[2]5.2 Asset Age Profile'!CV96","v":0},{"$f":"'[2]5.2 Asset Age Profile'!CW96","v":0},{"$f":"'[2]5.2 Asset Age Profile'!CX96","v":0},{"$f":"'[2]5.2 Asset Age Profile'!CY96","v":0},{"$f":"'[2]5.2 Asset Age Profile'!CZ96","v":0},{"$f":"'[2]5.2 Asset Age Profile'!DA96","v":0},{"$f":"'[2]5.2 Asset Age Profile'!DB96","v":0},{"$f":"'[2]5.2 Asset Age Profile'!DC96","v":0},{"$f":"'[2]5.2 Asset Age Profile'!DD96","v":0},{"$f":"'[2]5.2 Asset Age Profile'!DE96","v":0},{"$f":"'[2]5.2 Asset Age Profile'!DF96","v":0},{"$f":"'[2]5.2 Asset Age Profile'!DG96","v":0},{"$f":"'[2]5.2 Asset Age Profile'!DH96","v":0},{"$f":"'[2]5.2 Asset Age Profile'!DI96","v":0},{"$f":"'[2]5.2 Asset Age Profile'!DJ96","v":0},{"$f":"'[2]5.2 Asset Age Profile'!DK96","v":0},{"$f":"'[2]5.2 Asset Age Profile'!DL96","v":0},{"$f":"'[2]5.2 Asset Age Profile'!DM96","v":0},{"$f":"'[2]5.2 Asset Age Profile'!DN96","v":0},{"$f":"'[2]5.2 Asset Age Profile'!DO96","v":0},{"$f":"'[2]5.2 Asset Age Profile'!DP96","v":0},{"$f":"'[2]5.2 Asset Age Profile'!DQ96","v":0},{"$f":"'[2]5.2 Asset Age Profile'!DR96","v":0},{"$f":"'[2]5.2 Asset Age Profile'!DS96","v":0},{"$f":"'[2]5.2 Asset Age Profile'!DT96","v":0},{"$f":"'[2]5.2 Asset Age Profile'!DU96","v":0},{"$f":"'[2]5.2 Asset Age Profile'!DV96","v":0},{"$f":"'[2]5.2 Asset Age Profile'!DW96","v":0},{"$f":"'[2]5.2 Asset Age Profile'!DX96","v":0},{"$f":"'[2]5.2 Asset Age Profile'!DY96","v":0},{"$f":"'[2]5.2 Asset Age Profile'!DZ96","v":0},{"$f":"'[2]5.2 Asset Age Profile'!EA96","v":0},{"$f":"'[2]5.2 Asset Age Profile'!EB96","v":0},{"$f":"'[2]5.2 Asset Age Profile'!EC96","v":0},{"$f":"'[2]5.2 Asset Age Profile'!ED96","v":0},{"$f":"'[2]5.2 Asset Age Profile'!EE96","v":0},{"$f":"'[2]5.2 Asset Age Profile'!EF96","v":0},{"$f":"'[2]5.2 Asset Age Profile'!EG96","v":0},{"$f":"'[2]5.2 Asset Age Profile'!EH96","v":0},{"$f":"'[2]5.2 Asset Age Profile'!EI96","v":0},{"$f":"'[2]5.2 Asset Age Profile'!EJ96","v":0}]
["ED_ASS521_00087",null,"Ground Outdoor / Indoor Chamber Mounted; > 132 kV ;  < = 100 MVA",null,null,null,null,null,null,null,null,null,null,{"$f":"'[2]5.2 Asset Age Profile'!N97","v":45.8},{"$f":"'[2]5.2 Asset Age Profile'!O97","v":0},{"$f":"'[2]5.2 Asset Age Profile'!P97","v":0},{"$f":"'[2]5.2 Asset Age Profile'!Q97","v":0},{"$f":"'[2]5.2 Asset Age Profile'!R97","v":0},{"$f":"'[2]5.2 Asset Age Profile'!S97","v":0},{"$f":"'[2]5.2 Asset Age Profile'!T97","v":0},{"$f":"'[2]5.2 Asset Age Profile'!U97","v":0},{"$f":"'[2]5.2 Asset Age Profile'!V97","v":0},{"$f":"'[2]5.2 Asset Age Profile'!W97","v":0},{"$f":"'[2]5.2 Asset Age Profile'!X97","v":0},{"$f":"'[2]5.2 Asset Age Profile'!Y97","v":6.7675697262754522},{"$f":"'[2]5.2 Asset Age Profile'!Z97","v":0},{"$f":"'[2]5.2 Asset Age Profile'!AA97","v":0},{"$f":"'[2]5.2 Asset Age Profile'!AB97","v":0},{"$f":"'[2]5.2 Asset Age Profile'!AC97","v":0},{"$f":"'[2]5.2 Asset Age Profile'!AD97","v":0},{"$f":"'[2]5.2 Asset Age Profile'!AE97","v":0},{"$f":"'[2]5.2 Asset Age Profile'!AF97","v":0},{"$f":"'[2]5.2 Asset Age Profile'!AG97","v":0},{"$f":"'[2]5.2 Asset Age Profile'!AH97","v":0},{"$f":"'[2]5.2 Asset Age Profile'!AI97","v":0},{"$f":"'[2]5.2 Asset Age Profile'!AJ97","v":0},{"$f":"'[2]5.2 Asset Age Profile'!AK97","v":0},{"$f":"'[2]5.2 Asset Age Profile'!AL97","v":0},{"$f":"'[2]5.2 Asset Age Profile'!AM97","v":0},{"$f":"'[2]5.2 Asset Age Profile'!AN97","v":0},{"$f":"'[2]5.2 Asset Age Profile'!AO97","v":0},{"$f":"'[2]5.2 Asset Age Profile'!AP97","v":0},{"$f":"'[2]5.2 Asset Age Profile'!AQ97","v":0},{"$f":"'[2]5.2 Asset Age Profile'!AR97","v":0},{"$f":"'[2]5.2 Asset Age Profile'!AS97","v":0},{"$f":"'[2]5.2 Asset Age Profile'!AT97","v":0},{"$f":"'[2]5.2 Asset Age Profile'!AU97","v":0},{"$f":"'[2]5.2 Asset Age Profile'!AV97","v":0},{"$f":"'[2]5.2 Asset Age Profile'!AW97","v":0},{"$f":"'[2]5.2 Asset Age Profile'!AX97","v":0},{"$f":"'[2]5.2 Asset Age Profile'!AY97","v":0},{"$f":"'[2]5.2 Asset Age Profile'!AZ97","v":0},{"$f":"'[2]5.2 Asset Age Profile'!BA97","v":0},{"$f":"'[2]5.2 Asset Age Profile'!BB97","v":0},{"$f":"'[2]5.2 Asset Age Profile'!BC97","v":0},{"$f":"'[2]5.2 Asset Age Profile'!BD97","v":0},{"$f":"'[2]5.2 Asset Age Profile'!BE97","v":0},{"$f":"'[2]5.2 Asset Age Profile'!BF97","v":0},{"$f":"'[2]5.2 Asset Age Profile'!BG97","v":0},{"$f":"'[2]5.2 Asset Age Profile'!BH97","v":0},{"$f":"'[2]5.2 Asset Age Profile'!BI97","v":0},{"$f":"'[2]5.2 Asset Age Profile'!BJ97","v":0},{"$f":"'[2]5.2 Asset Age Profile'!BK97","v":0},{"$f":"'[2]5.2 Asset Age Profile'!BL97","v":0},{"$f":"'[2]5.2 Asset Age Profile'!BM97","v":0},{"$f":"'[2]5.2 Asset Age Profile'!BN97","v":0},{"$f":"'[2]5.2 Asset Age Profile'!BO97","v":0},{"$f":"'[2]5.2 Asset Age Profile'!BP97","v":0},{"$f":"'[2]5.2 Asset Age Profile'!BQ97","v":0},{"$f":"'[2]5.2 Asset Age Profile'!BR97","v":0},{"$f":"'[2]5.2 Asset Age Profile'!BS97","v":0},{"$f":"'[2]5.2 Asset Age Profile'!BT97","v":0},{"$f":"'[2]5.2 Asset Age Profile'!BU97","v":0},{"$f":"'[2]5.2 Asset Age Profile'!BV97","v":0},{"$f":"'[2]5.2 Asset Age Profile'!BW97","v":0},{"$f":"'[2]5.2 Asset Age Profile'!BX97","v":0},{"$f":"'[2]5.2 Asset Age Profile'!BY97","v":0},{"$f":"'[2]5.2 Asset Age Profile'!BZ97","v":0},{"$f":"'[2]5.2 Asset Age Profile'!CA97","v":0},{"$f":"'[2]5.2 Asset Age Profile'!CB97","v":0},{"$f":"'[2]5.2 Asset Age Profile'!CC97","v":0},{"$f":"'[2]5.2 Asset Age Profile'!CD97","v":0},{"$f":"'[2]5.2 Asset Age Profile'!CE97","v":0},{"$f":"'[2]5.2 Asset Age Profile'!CF97","v":0},{"$f":"'[2]5.2 Asset Age Profile'!CG97","v":0},{"$f":"'[2]5.2 Asset Age Profile'!CH97","v":0},{"$f":"'[2]5.2 Asset Age Profile'!CI97","v":0},{"$f":"'[2]5.2 Asset Age Profile'!CJ97","v":0},{"$f":"'[2]5.2 Asset Age Profile'!CK97","v":0},{"$f":"'[2]5.2 Asset Age Profile'!CL97","v":0},{"$f":"'[2]5.2 Asset Age Profile'!CM97","v":0},{"$f":"'[2]5.2 Asset Age Profile'!CN97","v":0},{"$f":"'[2]5.2 Asset Age Profile'!CO97","v":0},{"$f":"'[2]5.2 Asset Age Profile'!CP97","v":0},{"$f":"'[2]5.2 Asset Age Profile'!CQ97","v":0},{"$f":"'[2]5.2 Asset Age Profile'!CR97","v":0},{"$f":"'[2]5.2 Asset Age Profile'!CS97","v":0},{"$f":"'[2]5.2 Asset Age Profile'!CT97","v":0},{"$f":"'[2]5.2 Asset Age Profile'!CU97","v":0},{"$f":"'[2]5.2 Asset Age Profile'!CV97","v":0},{"$f":"'[2]5.2 Asset Age Profile'!CW97","v":0},{"$f":"'[2]5.2 Asset Age Profile'!CX97","v":0},{"$f":"'[2]5.2 Asset Age Profile'!CY97","v":0},{"$f":"'[2]5.2 Asset Age Profile'!CZ97","v":0},{"$f":"'[2]5.2 Asset Age Profile'!DA97","v":0},{"$f":"'[2]5.2 Asset Age Profile'!DB97","v":0},{"$f":"'[2]5.2 Asset Age Profile'!DC97","v":0},{"$f":"'[2]5.2 Asset Age Profile'!DD97","v":0},{"$f":"'[2]5.2 Asset Age Profile'!DE97","v":0},{"$f":"'[2]5.2 Asset Age Profile'!DF97","v":0},{"$f":"'[2]5.2 Asset Age Profile'!DG97","v":0},{"$f":"'[2]5.2 Asset Age Profile'!DH97","v":0},{"$f":"'[2]5.2 Asset Age Profile'!DI97","v":0},{"$f":"'[2]5.2 Asset Age Profile'!DJ97","v":0},{"$f":"'[2]5.2 Asset Age Profile'!DK97","v":0},{"$f":"'[2]5.2 Asset Age Profile'!DL97","v":0},{"$f":"'[2]5.2 Asset Age Profile'!DM97","v":0},{"$f":"'[2]5.2 Asset Age Profile'!DN97","v":0},{"$f":"'[2]5.2 Asset Age Profile'!DO97","v":0},{"$f":"'[2]5.2 Asset Age Profile'!DP97","v":0},{"$f":"'[2]5.2 Asset Age Profile'!DQ97","v":0},{"$f":"'[2]5.2 Asset Age Profile'!DR97","v":0},{"$f":"'[2]5.2 Asset Age Profile'!DS97","v":0},{"$f":"'[2]5.2 Asset Age Profile'!DT97","v":0},{"$f":"'[2]5.2 Asset Age Profile'!DU97","v":0},{"$f":"'[2]5.2 Asset Age Profile'!DV97","v":0},{"$f":"'[2]5.2 Asset Age Profile'!DW97","v":0},{"$f":"'[2]5.2 Asset Age Profile'!DX97","v":0},{"$f":"'[2]5.2 Asset Age Profile'!DY97","v":0},{"$f":"'[2]5.2 Asset Age Profile'!DZ97","v":0},{"$f":"'[2]5.2 Asset Age Profile'!EA97","v":0},{"$f":"'[2]5.2 Asset Age Profile'!EB97","v":0},{"$f":"'[2]5.2 Asset Age Profile'!EC97","v":0},{"$f":"'[2]5.2 Asset Age Profile'!ED97","v":0},{"$f":"'[2]5.2 Asset Age Profile'!EE97","v":0},{"$f":"'[2]5.2 Asset Age Profile'!EF97","v":0},{"$f":"'[2]5.2 Asset Age Profile'!EG97","v":0},{"$f":"'[2]5.2 Asset Age Profile'!EH97","v":0},{"$f":"'[2]5.2 Asset Age Profile'!EI97","v":0},{"$f":"'[2]5.2 Asset Age Profile'!EJ97","v":0}]
["ED_ASS521_00088",null,"Ground Outdoor / Indoor Chamber Mounted; > 132 kV ;  > 100 MVA",null,null,null,null,null,null,null,null,null,null,{"$f":"'[2]5.2 Asset Age Profile'!N98","v":45.8},{"$f":"'[2]5.2 Asset Age Profile'!O98","v":0},{"$f":"'[2]5.2 Asset Age Profile'!P98","v":0},{"$f":"'[2]5.2 Asset Age Profile'!Q98","v":0},{"$f":"'[2]5.2 Asset Age Profile'!R98","v":0},{"$f":"'[2]5.2 Asset Age Profile'!S98","v":0},{"$f":"'[2]5.2 Asset Age Profile'!T98","v":0},{"$f":"'[2]5.2 Asset Age Profile'!U98","v":0},{"$f":"'[2]5.2 Asset Age Profile'!V98","v":0},{"$f":"'[2]5.2 Asset Age Profile'!W98","v":0},{"$f":"'[2]5.2 Asset Age Profile'!X98","v":0},{"$f":"'[2]5.2 Asset Age Profile'!Y98","v":6.7675697262754522},{"$f":"'[2]5.2 Asset Age Profile'!Z98","v":0},{"$f":"'[2]5.2 Asset Age Profile'!AA98","v":0},{"$f":"'[2]5.2 Asset Age Profile'!AB98","v":0},{"$f":"'[2]5.2 Asset Age Profile'!AC98","v":0},{"$f":"'[2]5.2 Asset Age Profile'!AD98","v":0},{"$f":"'[2]5.2 Asset Age Profile'!AE98","v":0},{"$f":"'[2]5.2 Asset Age Profile'!AF98","v":0},{"$f":"'[2]5.2 Asset Age Profile'!AG98","v":0},{"$f":"'[2]5.2 Asset Age Profile'!AH98","v":0},{"$f":"'[2]5.2 Asset Age Profile'!AI98","v":0},{"$f":"'[2]5.2 Asset Age Profile'!AJ98","v":0},{"$f":"'[2]5.2 Asset Age Profile'!AK98","v":0},{"$f":"'[2]5.2 Asset Age Profile'!AL98","v":0},{"$f":"'[2]5.2 Asset Age Profile'!AM98","v":0},{"$f":"'[2]5.2 Asset Age Profile'!AN98","v":0},{"$f":"'[2]5.2 Asset Age Profile'!AO98","v":0},{"$f":"'[2]5.2 Asset Age Profile'!AP98","v":0},{"$f":"'[2]5.2 Asset Age Profile'!AQ98","v":0},{"$f":"'[2]5.2 Asset Age Profile'!AR98","v":0},{"$f":"'[2]5.2 Asset Age Profile'!AS98","v":0},{"$f":"'[2]5.2 Asset Age Profile'!AT98","v":0},{"$f":"'[2]5.2 Asset Age Profile'!AU98","v":0},{"$f":"'[2]5.2 Asset Age Profile'!AV98","v":0},{"$f":"'[2]5.2 Asset Age Profile'!AW98","v":0},{"$f":"'[2]5.2 Asset Age Profile'!AX98","v":0},{"$f":"'[2]5.2 Asset Age Profile'!AY98","v":0},{"$f":"'[2]5.2 Asset Age Profile'!AZ98","v":0},{"$f":"'[2]5.2 Asset Age Profile'!BA98","v":0},{"$f":"'[2]5.2 Asset Age Profile'!BB98","v":0},{"$f":"'[2]5.2 Asset Age Profile'!BC98","v":0},{"$f":"'[2]5.2 Asset Age Profile'!BD98","v":0},{"$f":"'[2]5.2 Asset Age Profile'!BE98","v":0},{"$f":"'[2]5.2 Asset Age Profile'!BF98","v":0},{"$f":"'[2]5.2 Asset Age Profile'!BG98","v":0},{"$f":"'[2]5.2 Asset Age Profile'!BH98","v":0},{"$f":"'[2]5.2 Asset Age Profile'!BI98","v":0},{"$f":"'[2]5.2 Asset Age Profile'!BJ98","v":0},{"$f":"'[2]5.2 Asset Age Profile'!BK98","v":0},{"$f":"'[2]5.2 Asset Age Profile'!BL98","v":0},{"$f":"'[2]5.2 Asset Age Profile'!BM98","v":0},{"$f":"'[2]5.2 Asset Age Profile'!BN98","v":0},{"$f":"'[2]5.2 Asset Age Profile'!BO98","v":0},{"$f":"'[2]5.2 Asset Age Profile'!BP98","v":0},{"$f":"'[2]5.2 Asset Age Profile'!BQ98","v":0},{"$f":"'[2]5.2 Asset Age Profile'!BR98","v":0},{"$f":"'[2]5.2 Asset Age Profile'!BS98","v":0},{"$f":"'[2]5.2 Asset Age Profile'!BT98","v":0},{"$f":"'[2]5.2 Asset Age Profile'!BU98","v":0},{"$f":"'[2]5.2 Asset Age Profile'!BV98","v":0},{"$f":"'[2]5.2 Asset Age Profile'!BW98","v":0},{"$f":"'[2]5.2 Asset Age Profile'!BX98","v":0},{"$f":"'[2]5.2 Asset Age Profile'!BY98","v":0},{"$f":"'[2]5.2 Asset Age Profile'!BZ98","v":0},{"$f":"'[2]5.2 Asset Age Profile'!CA98","v":0},{"$f":"'[2]5.2 Asset Age Profile'!CB98","v":0},{"$f":"'[2]5.2 Asset Age Profile'!CC98","v":0},{"$f":"'[2]5.2 Asset Age Profile'!CD98","v":0},{"$f":"'[2]5.2 Asset Age Profile'!CE98","v":0},{"$f":"'[2]5.2 Asset Age Profile'!CF98","v":0},{"$f":"'[2]5.2 Asset Age Profile'!CG98","v":0},{"$f":"'[2]5.2 Asset Age Profile'!CH98","v":0},{"$f":"'[2]5.2 Asset Age Profile'!CI98","v":0},{"$f":"'[2]5.2 Asset Age Profile'!CJ98","v":0},{"$f":"'[2]5.2 Asset Age Profile'!CK98","v":0},{"$f":"'[2]5.2 Asset Age Profile'!CL98","v":0},{"$f":"'[2]5.2 Asset Age Profile'!CM98","v":0},{"$f":"'[2]5.2 Asset Age Profile'!CN98","v":0},{"$f":"'[2]5.2 Asset Age Profile'!CO98","v":0},{"$f":"'[2]5.2 Asset Age Profile'!CP98","v":0},{"$f":"'[2]5.2 Asset Age Profile'!CQ98","v":0},{"$f":"'[2]5.2 Asset Age Profile'!CR98","v":0},{"$f":"'[2]5.2 Asset Age Profile'!CS98","v":0},{"$f":"'[2]5.2 Asset Age Profile'!CT98","v":0},{"$f":"'[2]5.2 Asset Age Profile'!CU98","v":0},{"$f":"'[2]5.2 Asset Age Profile'!CV98","v":0},{"$f":"'[2]5.2 Asset Age Profile'!CW98","v":0},{"$f":"'[2]5.2 Asset Age Profile'!CX98","v":0},{"$f":"'[2]5.2 Asset Age Profile'!CY98","v":0},{"$f":"'[2]5.2 Asset Age Profile'!CZ98","v":0},{"$f":"'[2]5.2 Asset Age Profile'!DA98","v":0},{"$f":"'[2]5.2 Asset Age Profile'!DB98","v":0},{"$f":"'[2]5.2 Asset Age Profile'!DC98","v":0},{"$f":"'[2]5.2 Asset Age Profile'!DD98","v":0},{"$f":"'[2]5.2 Asset Age Profile'!DE98","v":0},{"$f":"'[2]5.2 Asset Age Profile'!DF98","v":0},{"$f":"'[2]5.2 Asset Age Profile'!DG98","v":0},{"$f":"'[2]5.2 Asset Age Profile'!DH98","v":0},{"$f":"'[2]5.2 Asset Age Profile'!DI98","v":0},{"$f":"'[2]5.2 Asset Age Profile'!DJ98","v":0},{"$f":"'[2]5.2 Asset Age Profile'!DK98","v":0},{"$f":"'[2]5.2 Asset Age Profile'!DL98","v":0},{"$f":"'[2]5.2 Asset Age Profile'!DM98","v":0},{"$f":"'[2]5.2 Asset Age Profile'!DN98","v":0},{"$f":"'[2]5.2 Asset Age Profile'!DO98","v":0},{"$f":"'[2]5.2 Asset Age Profile'!DP98","v":0},{"$f":"'[2]5.2 Asset Age Profile'!DQ98","v":0},{"$f":"'[2]5.2 Asset Age Profile'!DR98","v":0},{"$f":"'[2]5.2 Asset Age Profile'!DS98","v":0},{"$f":"'[2]5.2 Asset Age Profile'!DT98","v":0},{"$f":"'[2]5.2 Asset Age Profile'!DU98","v":0},{"$f":"'[2]5.2 Asset Age Profile'!DV98","v":0},{"$f":"'[2]5.2 Asset Age Profile'!DW98","v":0},{"$f":"'[2]5.2 Asset Age Profile'!DX98","v":0},{"$f":"'[2]5.2 Asset Age Profile'!DY98","v":0},{"$f":"'[2]5.2 Asset Age Profile'!DZ98","v":0},{"$f":"'[2]5.2 Asset Age Profile'!EA98","v":0},{"$f":"'[2]5.2 Asset Age Profile'!EB98","v":0},{"$f":"'[2]5.2 Asset Age Profile'!EC98","v":0},{"$f":"'[2]5.2 Asset Age Profile'!ED98","v":0},{"$f":"'[2]5.2 Asset Age Profile'!EE98","v":0},{"$f":"'[2]5.2 Asset Age Profile'!EF98","v":0},{"$f":"'[2]5.2 Asset Age Profile'!EG98","v":0},{"$f":"'[2]5.2 Asset Age Profile'!EH98","v":0},{"$f":"'[2]5.2 Asset Age Profile'!EI98","v":0},{"$f":"'[2]5.2 Asset Age Profile'!EJ98","v":0}]
["ED_ASS521_00089",null,"Other",null,"DNSP NAME","REPEX","TRANSFORMERS",{"$f":"C99","v":"Other"},"DESCRIPTOR METRIC","MEAN ECONOMIC LIFE","YEARS","NUMBER",null,{"$f":"'[2]5.2 Asset Age Profile'!N99","v":45.8},{"$f":"'[2]5.2 Asset Age Profile'!O99","v":0},{"$f":"'[2]5.2 Asset Age Profile'!P99","v":0},{"$f":"'[2]5.2 Asset Age Profile'!Q99","v":0},{"$f":"'[2]5.2 Asset Age Profile'!R99","v":0},{"$f":"'[2]5.2 Asset Age Profile'!S99","v":0},{"$f":"'[2]5.2 Asset Age Profile'!T99","v":0},{"$f":"'[2]5.2 Asset Age Profile'!U99","v":0},{"$f":"'[2]5.2 Asset Age Profile'!V99","v":0},{"$f":"'[2]5.2 Asset Age Profile'!W99","v":0},{"$f":"'[2]5.2 Asset Age Profile'!X99","v":0},{"$f":"'[2]5.2 Asset Age Profile'!Y99","v":6.7675697262754522},{"$f":"'[2]5.2 Asset Age Profile'!Z99","v":0},{"$f":"'[2]5.2 Asset Age Profile'!AA99","v":0},{"$f":"'[2]5.2 Asset Age Profile'!AB99","v":0},{"$f":"'[2]5.2 Asset Age Profile'!AC99","v":0},{"$f":"'[2]5.2 Asset Age Profile'!AD99","v":0},{"$f":"'[2]5.2 Asset Age Profile'!AE99","v":0},{"$f":"'[2]5.2 Asset Age Profile'!AF99","v":0},{"$f":"'[2]5.2 Asset Age Profile'!AG99","v":0},{"$f":"'[2]5.2 Asset Age Profile'!AH99","v":0},{"$f":"'[2]5.2 Asset Age Profile'!AI99","v":0},{"$f":"'[2]5.2 Asset Age Profile'!AJ99","v":42},{"$f":"'[2]5.2 Asset Age Profile'!AK99","v":73},{"$f":"'[2]5.2 Asset Age Profile'!AL99","v":54},{"$f":"'[2]5.2 Asset Age Profile'!AM99","v":162},{"$f":"'[2]5.2 Asset Age Profile'!AN99","v":142},{"$f":"'[2]5.2 Asset Age Profile'!AO99","v":143},{"$f":"'[2]5.2 Asset Age Profile'!AP99","v":78},{"$f":"'[2]5.2 Asset Age Profile'!AQ99","v":113},{"$f":"'[2]5.2 Asset Age Profile'!AR99","v":93},{"$f":"'[2]5.2 Asset Age Profile'!AS99","v":148},{"$f":"'[2]5.2 Asset Age Profile'!AT99","v":85},{"$f":"'[2]5.2 Asset Age Profile'!AU99","v":80},{"$f":"'[2]5.2 Asset Age Profile'!AV99","v":65},{"$f":"'[2]5.2 Asset Age Profile'!AW99","v":72},{"$f":"'[2]5.2 Asset Age Profile'!AX99","v":60},{"$f":"'[2]5.2 Asset Age Profile'!AY99","v":70},{"$f":"'[2]5.2 Asset Age Profile'!AZ99","v":75},{"$f":"'[2]5.2 Asset Age Profile'!BA99","v":77},{"$f":"'[2]5.2 Asset Age Profile'!BB99","v":41},{"$f":"'[2]5.2 Asset Age Profile'!BC99","v":46},{"$f":"'[2]5.2 Asset Age Profile'!BD99","v":81},{"$f":"'[2]5.2 Asset Age Profile'!BE99","v":60},{"$f":"'[2]5.2 Asset Age Profile'!BF99","v":57},{"$f":"'[2]5.2 Asset Age Profile'!BG99","v":31},{"$f":"'[2]5.2 Asset Age Profile'!BH99","v":41},{"$f":"'[2]5.2 Asset Age Profile'!BI99","v":32},{"$f":"'[2]5.2 Asset Age Profile'!BJ99","v":36},{"$f":"'[2]5.2 Asset Age Profile'!BK99","v":12},{"$f":"'[2]5.2 Asset Age Profile'!BL99","v":22},{"$f":"'[2]5.2 Asset Age Profile'!BM99","v":46},{"$f":"'[2]5.2 Asset Age Profile'!BN99","v":58},{"$f":"'[2]5.2 Asset Age Profile'!BO99","v":19},{"$f":"'[2]5.2 Asset Age Profile'!BP99","v":32},{"$f":"'[2]5.2 Asset Age Profile'!BQ99","v":47},{"$f":"'[2]5.2 Asset Age Profile'!BR99","v":37},{"$f":"'[2]5.2 Asset Age Profile'!BS99","v":32},{"$f":"'[2]5.2 Asset Age Profile'!BT99","v":24},{"$f":"'[2]5.2 Asset Age Profile'!BU99","v":19},{"$f":"'[2]5.2 Asset Age Profile'!BV99","v":24},{"$f":"'[2]5.2 Asset Age Profile'!BW99","v":27},{"$f":"'[2]5.2 Asset Age Profile'!BX99","v":21},{"$f":"'[2]5.2 Asset Age Profile'!BY99","v":12},{"$f":"'[2]5.2 Asset Age Profile'!BZ99","v":16},{"$f":"'[2]5.2 Asset Age Profile'!CA99","v":16},{"$f":"'[2]5.2 Asset Age Profile'!CB99","v":13},{"$f":"'[2]5.2 Asset Age Profile'!CC99","v":34},{"$f":"'[2]5.2 Asset Age Profile'!CD99","v":25},{"$f":"'[2]5.2 Asset Age Profile'!CE99","v":29},{"$f":"'[2]5.2 Asset Age Profile'!CF99","v":25},{"$f":"'[2]5.2 Asset Age Profile'!CG99","v":9},{"$f":"'[2]5.2 Asset Age Profile'!CH99","v":6},{"$f":"'[2]5.2 Asset Age Profile'!CI99","v":3},{"$f":"'[2]5.2 Asset Age Profile'!CJ99","v":17},{"$f":"'[2]5.2 Asset Age Profile'!CK99","v":28},{"$f":"'[2]5.2 Asset Age Profile'!CL99","v":19},{"$f":"'[2]5.2 Asset Age Profile'!CM99","v":20},{"$f":"'[2]5.2 Asset Age Profile'!CN99","v":6},{"$f":"'[2]5.2 Asset Age Profile'!CO99","v":6},{"$f":"'[2]5.2 Asset Age Profile'!CP99","v":0},{"$f":"'[2]5.2 Asset Age Profile'!CQ99","v":1},{"$f":"'[2]5.2 Asset Age Profile'!CR99","v":2},{"$f":"'[2]5.2 Asset Age Profile'!CS99","v":0},{"$f":"'[2]5.2 Asset Age Profile'!CT99","v":1},{"$f":"'[2]5.2 Asset Age Profile'!CU99","v":0},{"$f":"'[2]5.2 Asset Age Profile'!CV99","v":0},{"$f":"'[2]5.2 Asset Age Profile'!CW99","v":6},{"$f":"'[2]5.2 Asset Age Profile'!CX99","v":1},{"$f":"'[2]5.2 Asset Age Profile'!CY99","v":0},{"$f":"'[2]5.2 Asset Age Profile'!CZ99","v":0},{"$f":"'[2]5.2 Asset Age Profile'!DA99","v":2},{"$f":"'[2]5.2 Asset Age Profile'!DB99","v":0},{"$f":"'[2]5.2 Asset Age Profile'!DC99","v":0},{"$f":"'[2]5.2 Asset Age Profile'!DD99","v":0},{"$f":"'[2]5.2 Asset Age Profile'!DE99","v":0},{"$f":"'[2]5.2 Asset Age Profile'!DF99","v":0},{"$f":"'[2]5.2 Asset Age Profile'!DG99","v":6},{"$f":"'[2]5.2 Asset Age Profile'!DH99","v":0},{"$f":"'[2]5.2 Asset Age Profile'!DI99","v":0},{"$f":"'[2]5.2 Asset Age Profile'!DJ99","v":0},{"$f":"'[2]5.2 Asset Age Profile'!DK99","v":0},{"$f":"'[2]5.2 Asset Age Profile'!DL99","v":0},{"$f":"'[2]5.2 Asset Age Profile'!DM99","v":0},{"$f":"'[2]5.2 Asset Age Profile'!DN99","v":0},{"$f":"'[2]5.2 Asset Age Profile'!DO99","v":0},{"$f":"'[2]5.2 Asset Age Profile'!DP99","v":0},{"$f":"'[2]5.2 Asset Age Profile'!DQ99","v":0},{"$f":"'[2]5.2 Asset Age Profile'!DR99","v":0},{"$f":"'[2]5.2 Asset Age Profile'!DS99","v":0},{"$f":"'[2]5.2 Asset Age Profile'!DT99","v":0},{"$f":"'[2]5.2 Asset Age Profile'!DU99","v":0},{"$f":"'[2]5.2 Asset Age Profile'!DV99","v":0},{"$f":"'[2]5.2 Asset Age Profile'!DW99","v":0},{"$f":"'[2]5.2 Asset Age Profile'!DX99","v":0},{"$f":"'[2]5.2 Asset Age Profile'!DY99","v":0},{"$f":"'[2]5.2 Asset Age Profile'!DZ99","v":0},{"$f":"'[2]5.2 Asset Age Profile'!EA99","v":0},{"$f":"'[2]5.2 Asset Age Profile'!EB99","v":0},{"$f":"'[2]5.2 Asset Age Profile'!EC99","v":0},{"$f":"'[2]5.2 Asset Age Profile'!ED99","v":0},{"$f":"'[2]5.2 Asset Age Profile'!EE99","v":0},{"$f":"'[2]5.2 Asset Age Profile'!EF99","v":0},{"$f":"'[2]5.2 Asset Age Profile'!EG99","v":0},{"$f":"'[2]5.2 Asset Age Profile'!EH99","v":0},{"$f":"'[2]5.2 Asset Age Profile'!EI99","v":0},{"$f":"'[2]5.2 Asset Age Profile'!EJ99","v":0}]
["ED_ASS521_00090","SWITCHGEAR BY: \nHIGHEST OPERATING VOLTAGE ; SWITCH FUNCTION","˂ = 11 kV ;  Fuse",null,"DNSP NAME","REPEX","SWITCHGEAR","˂ = 11 kV ;  Fuse","DESCRIPTOR METRIC","MEAN ECONOMIC LIFE","YEARS","NUMBER",null,{"$f":"'[2]5.2 Asset Age Profile'!N100","v":53.8},{"$f":"'[2]5.2 Asset Age Profile'!O100","v":0},{"$f":"'[2]5.2 Asset Age Profile'!P100","v":0},{"$f":"'[2]5.2 Asset Age Profile'!Q100","v":0},{"$f":"'[2]5.2 Asset Age Profile'!R100","v":0},{"$f":"'[2]5.2 Asset Age Profile'!S100","v":0},{"$f":"'[2]5.2 Asset Age Profile'!T100","v":0},{"$f":"'[2]5.2 Asset Age Profile'!U100","v":0},{"$f":"'[2]5.2 Asset Age Profile'!V100","v":0},{"$f":"'[2]5.2 Asset Age Profile'!W100","v":0},{"$f":"'[2]5.2 Asset Age Profile'!X100","v":0},{"$f":"'[2]5.2 Asset Age Profile'!Y100","v":7.334848328356899},{"$f":"'[2]5.2 Asset Age Profile'!Z100","v":0},{"$f":"'[2]5.2 Asset Age Profile'!AA100","v":0},{"$f":"'[2]5.2 Asset Age Profile'!AB100","v":0},{"$f":"'[2]5.2 Asset Age Profile'!AC100","v":0},{"$f":"'[2]5.2 Asset Age Profile'!AD100","v":0},{"$f":"'[2]5.2 Asset Age Profile'!AE100","v":0},{"$f":"'[2]5.2 Asset Age Profile'!AF100","v":0},{"$f":"'[2]5.2 Asset Age Profile'!AG100","v":0},{"$f":"'[2]5.2 Asset Age Profile'!AH100","v":0},{"$f":"'[2]5.2 Asset Age Profile'!AI100","v":0},{"$f":"'[2]5.2 Asset Age Profile'!AJ100","v":5627},{"$f":"'[2]5.2 Asset Age Profile'!AK100","v":5918},{"$f":"'[2]5.2 Asset Age Profile'!AL100","v":9557},{"$f":"'[2]5.2 Asset Age Profile'!AM100","v":9654},{"$f":"'[2]5.2 Asset Age Profile'!AN100","v":8952},{"$f":"'[2]5.2 Asset Age Profile'!AO100","v":8844},{"$f":"'[2]5.2 Asset Age Profile'!AP100","v":6565},{"$f":"'[2]5.2 Asset Age Profile'!AQ100","v":6922},{"$f":"'[2]5.2 Asset Age Profile'!AR100","v":6663},{"$f":"'[2]5.2 Asset Age Profile'!AS100","v":6490},{"$f":"'[2]5.2 Asset Age Profile'!AT100","v":6112},{"$f":"'[2]5.2 Asset Age Profile'!AU100","v":5648},{"$f":"'[2]5.2 Asset Age Profile'!AV100","v":4276},{"$f":"'[2]5.2 Asset Age Profile'!AW100","v":4557},{"$f":"'[2]5.2 Asset Age Profile'!AX100","v":4859},{"$f":"'[2]5.2 Asset Age Profile'!AY100","v":3952},{"$f":"'[2]5.2 Asset Age Profile'!AZ100","v":3013},{"$f":"'[2]5.2 Asset Age Profile'!BA100","v":2764},{"$f":"'[2]5.2 Asset Age Profile'!BB100","v":2851},{"$f":"'[2]5.2 Asset Age Profile'!BC100","v":3272},{"$f":"'[2]5.2 Asset Age Profile'!BD100","v":5820},{"$f":"'[2]5.2 Asset Age Profile'!BE100","v":5550},{"$f":"'[2]5.2 Asset Age Profile'!BF100","v":5475},{"$f":"'[2]5.2 Asset Age Profile'!BG100","v":5432},{"$f":"'[2]5.2 Asset Age Profile'!BH100","v":7375},{"$f":"'[2]5.2 Asset Age Profile'!BI100","v":7300},{"$f":"'[2]5.2 Asset Age Profile'!BJ100","v":5896},{"$f":"'[2]5.2 Asset Age Profile'!BK100","v":6231},{"$f":"'[2]5.2 Asset Age Profile'!BL100","v":7818},{"$f":"'[2]5.2 Asset Age Profile'!BM100","v":5896},{"$f":"'[2]5.2 Asset Age Profile'!BN100","v":14060},{"$f":"'[2]5.2 Asset Age Profile'!BO100","v":4838},{"$f":"'[2]5.2 Asset Age Profile'!BP100","v":3326},{"$f":"'[2]5.2 Asset Age Profile'!BQ100","v":5799},{"$f":"'[2]5.2 Asset Age Profile'!BR100","v":5550},{"$f":"'[2]5.2 Asset Age Profile'!BS100","v":6382},{"$f":"'[2]5.2 Asset Age Profile'!BT100","v":3423},{"$f":"'[2]5.2 Asset Age Profile'!BU100","v":4503},{"$f":"'[2]5.2 Asset Age Profile'!BV100","v":4795},{"$f":"'[2]5.2 Asset Age Profile'!BW100","v":4384},{"$f":"'[2]5.2 Asset Age Profile'!BX100","v":5291},{"$f":"'[2]5.2 Asset Age Profile'!BY100","v":4427},{"$f":"'[2]5.2 Asset Age Profile'!BZ100","v":4222},{"$f":"'[2]5.2 Asset Age Profile'!CA100","v":4417},{"$f":"'[2]5.2 Asset Age Profile'!CB100","v":5378},{"$f":"'[2]5.2 Asset Age Profile'!CC100","v":9168},{"$f":"'[2]5.2 Asset Age Profile'!CD100","v":6360},{"$f":"'[2]5.2 Asset Age Profile'!CE100","v":4654},{"$f":"'[2]5.2 Asset Age Profile'!CF100","v":3725},{"$f":"'[2]5.2 Asset Age Profile'!CG100","v":8196},{"$f":"'[2]5.2 Asset Age Profile'!CH100","v":5637},{"$f":"'[2]5.2 Asset Age Profile'!CI100","v":1836},{"$f":"'[2]5.2 Asset Age Profile'!CJ100","v":1231},{"$f":"'[2]5.2 Asset Age Profile'!CK100","v":2073},{"$f":"'[2]5.2 Asset Age Profile'!CL100","v":5378},{"$f":"'[2]5.2 Asset Age Profile'!CM100","v":11619},{"$f":"'[2]5.2 Asset Age Profile'!CN100","v":1231},{"$f":"'[2]5.2 Asset Age Profile'!CO100","v":2365},{"$f":"'[2]5.2 Asset Age Profile'!CP100","v":1209},{"$f":"'[2]5.2 Asset Age Profile'!CQ100","v":2365},{"$f":"'[2]5.2 Asset Age Profile'!CR100","v":4244},{"$f":"'[2]5.2 Asset Age Profile'!CS100","v":3218},{"$f":"'[2]5.2 Asset Age Profile'!CT100","v":497},{"$f":"'[2]5.2 Asset Age Profile'!CU100","v":1523},{"$f":"'[2]5.2 Asset Age Profile'!CV100","v":108},{"$f":"'[2]5.2 Asset Age Profile'!CW100","v":6771},{"$f":"'[2]5.2 Asset Age Profile'!CX100","v":497},{"$f":"'[2]5.2 Asset Age Profile'!CY100","v":108},{"$f":"'[2]5.2 Asset Age Profile'!CZ100","v":129},{"$f":"'[2]5.2 Asset Age Profile'!DA100","v":130},{"$f":"'[2]5.2 Asset Age Profile'!DB100","v":43},{"$f":"'[2]5.2 Asset Age Profile'!DC100","v":22},{"$f":"'[2]5.2 Asset Age Profile'!DD100","v":0},{"$f":"'[2]5.2 Asset Age Profile'!DE100","v":11},{"$f":"'[2]5.2 Asset Age Profile'!DF100","v":0},{"$f":"'[2]5.2 Asset Age Profile'!DG100","v":139},{"$f":"'[2]5.2 Asset Age Profile'!DH100","v":32},{"$f":"'[2]5.2 Asset Age Profile'!DI100","v":43},{"$f":"'[2]5.2 Asset Age Profile'!DJ100","v":22},{"$f":"'[2]5.2 Asset Age Profile'!DK100","v":96},{"$f":"'[2]5.2 Asset Age Profile'!DL100","v":0},{"$f":"'[2]5.2 Asset Age Profile'!DM100","v":22},{"$f":"'[2]5.2 Asset Age Profile'!DN100","v":0},{"$f":"'[2]5.2 Asset Age Profile'!DO100","v":32},{"$f":"'[2]5.2 Asset Age Profile'!DP100","v":0},{"$f":"'[2]5.2 Asset Age Profile'!DQ100","v":162},{"$f":"'[2]5.2 Asset Age Profile'!DR100","v":0},{"$f":"'[2]5.2 Asset Age Profile'!DS100","v":0},{"$f":"'[2]5.2 Asset Age Profile'!DT100","v":0},{"$f":"'[2]5.2 Asset Age Profile'!DU100","v":0},{"$f":"'[2]5.2 Asset Age Profile'!DV100","v":0},{"$f":"'[2]5.2 Asset Age Profile'!DW100","v":0},{"$f":"'[2]5.2 Asset Age Profile'!DX100","v":0},{"$f":"'[2]5.2 Asset Age Profile'!DY100","v":0},{"$f":"'[2]5.2 Asset Age Profile'!DZ100","v":0},{"$f":"'[2]5.2 Asset Age Profile'!EA100","v":0},{"$f":"'[2]5.2 Asset Age Profile'!EB100","v":0},{"$f":"'[2]5.2 Asset Age Profile'!EC100","v":0},{"$f":"'[2]5.2 Asset Age Profile'!ED100","v":0},{"$f":"'[2]5.2 Asset Age Profile'!EE100","v":0},{"$f":"'[2]5.2 Asset Age Profile'!EF100","v":0},{"$f":"'[2]5.2 Asset Age Profile'!EG100","v":0},{"$f":"'[2]5.2 Asset Age Profile'!EH100","v":0},{"$f":"'[2]5.2 Asset Age Profile'!EI100","v":0},{"$f":"'[2]5.2 Asset Age Profile'!EJ100","v":0}]
["ED_ASS521_00091",null,"˂ = 11 kV  ; Switch",null,"DNSP NAME","REPEX","SWITCHGEAR","˂ = 11 kV  ; Switch","DESCRIPTOR METRIC","MEAN ECONOMIC LIFE","YEARS","NUMBER",null,{"$f":"'[2]5.2 Asset Age Profile'!N101","v":53.8},{"$f":"'[2]5.2 Asset Age Profile'!O101","v":0},{"$f":"'[2]5.2 Asset Age Profile'!P101","v":0},{"$f":"'[2]5.2 Asset Age Profile'!Q101","v":0},{"$f":"'[2]5.2 Asset Age Profile'!R101","v":0},{"$f":"'[2]5.2 Asset Age Profile'!S101","v":0},{"$f":"'[2]5.2 Asset Age Profile'!T101","v":0},{"$f":"'[2]5.2 Asset Age Profile'!U101","v":0},{"$f":"'[2]5.2 Asset Age Profile'!V101","v":0},{"$f":"'[2]5.2 Asset Age Profile'!W101","v":0},{"$f":"'[2]5.2 Asset Age Profile'!X101","v":0},{"$f":"'[2]5.2 Asset Age Profile'!Y101","v":7.334848328356899},{"$f":"'[2]5.2 Asset Age Profile'!Z101","v":0},{"$f":"'[2]5.2 Asset Age Profile'!AA101","v":0},{"$f":"'[2]5.2 Asset Age Profile'!AB101","v":0},{"$f":"'[2]5.2 Asset Age Profile'!AC101","v":0},{"$f":"'[2]5.2 Asset Age Profile'!AD101","v":0},{"$f":"'[2]5.2 Asset Age Profile'!AE101","v":0},{"$f":"'[2]5.2 Asset Age Profile'!AF101","v":0},{"$f":"'[2]5.2 Asset Age Profile'!AG101","v":0},{"$f":"'[2]5.2 Asset Age Profile'!AH101","v":0},{"$f":"'[2]5.2 Asset Age Profile'!AI101","v":0},{"$f":"'[2]5.2 Asset Age Profile'!AJ101","v":891},{"$f":"'[2]5.2 Asset Age Profile'!AK101","v":1276},{"$f":"'[2]5.2 Asset Age Profile'!AL101","v":2181},{"$f":"'[2]5.2 Asset Age Profile'!AM101","v":2107},{"$f":"'[2]5.2 Asset Age Profile'!AN101","v":1929},{"$f":"'[2]5.2 Asset Age Profile'!AO101","v":1417},{"$f":"'[2]5.2 Asset Age Profile'!AP101","v":1365},{"$f":"'[2]5.2 Asset Age Profile'!AQ101","v":1159},{"$f":"'[2]5.2 Asset Age Profile'!AR101","v":1122},{"$f":"'[2]5.2 Asset Age Profile'!AS101","v":976},{"$f":"'[2]5.2 Asset Age Profile'!AT101","v":799},{"$f":"'[2]5.2 Asset Age Profile'!AU101","v":630},{"$f":"'[2]5.2 Asset Age Profile'!AV101","v":566},{"$f":"'[2]5.2 Asset Age Profile'!AW101","v":546},{"$f":"'[2]5.2 Asset Age Profile'!AX101","v":506},{"$f":"'[2]5.2 Asset Age Profile'!AY101","v":370},{"$f":"'[2]5.2 Asset Age Profile'!AZ101","v":412},{"$f":"'[2]5.2 Asset Age Profile'!BA101","v":329},{"$f":"'[2]5.2 Asset Age Profile'!BB101","v":247},{"$f":"'[2]5.2 Asset Age Profile'!BC101","v":394},{"$f":"'[2]5.2 Asset Age Profile'!BD101","v":663},{"$f":"'[2]5.2 Asset Age Profile'!BE101","v":781},{"$f":"'[2]5.2 Asset Age Profile'!BF101","v":671},{"$f":"'[2]5.2 Asset Age Profile'!BG101","v":691},{"$f":"'[2]5.2 Asset Age Profile'!BH101","v":815},{"$f":"'[2]5.2 Asset Age Profile'!BI101","v":804},{"$f":"'[2]5.2 Asset Age Profile'!BJ101","v":655},{"$f":"'[2]5.2 Asset Age Profile'!BK101","v":668},{"$f":"'[2]5.2 Asset Age Profile'!BL101","v":789},{"$f":"'[2]5.2 Asset Age Profile'!BM101","v":698},{"$f":"'[2]5.2 Asset Age Profile'!BN101","v":1077},{"$f":"'[2]5.2 Asset Age Profile'!BO101","v":563},{"$f":"'[2]5.2 Asset Age Profile'!BP101","v":457},{"$f":"'[2]5.2 Asset Age Profile'!BQ101","v":745},{"$f":"'[2]5.2 Asset Age Profile'!BR101","v":726},{"$f":"'[2]5.2 Asset Age Profile'!BS101","v":777},{"$f":"'[2]5.2 Asset Age Profile'!BT101","v":416},{"$f":"'[2]5.2 Asset Age Profile'!BU101","v":560},{"$f":"'[2]5.2 Asset Age Profile'!BV101","v":632},{"$f":"'[2]5.2 Asset Age Profile'!BW101","v":493},{"$f":"'[2]5.2 Asset Age Profile'!BX101","v":641},{"$f":"'[2]5.2 Asset Age Profile'!BY101","v":580},{"$f":"'[2]5.2 Asset Age Profile'!BZ101","v":574},{"$f":"'[2]5.2 Asset Age Profile'!CA101","v":631},{"$f":"'[2]5.2 Asset Age Profile'!CB101","v":755},{"$f":"'[2]5.2 Asset Age Profile'!CC101","v":1330},{"$f":"'[2]5.2 Asset Age Profile'!CD101","v":833},{"$f":"'[2]5.2 Asset Age Profile'!CE101","v":598},{"$f":"'[2]5.2 Asset Age Profile'!CF101","v":470},{"$f":"'[2]5.2 Asset Age Profile'!CG101","v":1143},{"$f":"'[2]5.2 Asset Age Profile'!CH101","v":843},{"$f":"'[2]5.2 Asset Age Profile'!CI101","v":208},{"$f":"'[2]5.2 Asset Age Profile'!CJ101","v":235},{"$f":"'[2]5.2 Asset Age Profile'!CK101","v":140},{"$f":"'[2]5.2 Asset Age Profile'!CL101","v":392},{"$f":"'[2]5.2 Asset Age Profile'!CM101","v":1425},{"$f":"'[2]5.2 Asset Age Profile'!CN101","v":58},{"$f":"'[2]5.2 Asset Age Profile'!CO101","v":248},{"$f":"'[2]5.2 Asset Age Profile'!CP101","v":113},{"$f":"'[2]5.2 Asset Age Profile'!CQ101","v":123},{"$f":"'[2]5.2 Asset Age Profile'!CR101","v":524},{"$f":"'[2]5.2 Asset Age Profile'!CS101","v":71},{"$f":"'[2]5.2 Asset Age Profile'!CT101","v":208},{"$f":"'[2]5.2 Asset Age Profile'!CU101","v":402},{"$f":"'[2]5.2 Asset Age Profile'!CV101","v":16},{"$f":"'[2]5.2 Asset Age Profile'!CW101","v":1199},{"$f":"'[2]5.2 Asset Age Profile'!CX101","v":122},{"$f":"'[2]5.2 Asset Age Profile'!CY101","v":28},{"$f":"'[2]5.2 Asset Age Profile'!CZ101","v":10},{"$f":"'[2]5.2 Asset Age Profile'!DA101","v":31},{"$f":"'[2]5.2 Asset Age Profile'!DB101","v":10},{"$f":"'[2]5.2 Asset Age Profile'!DC101","v":2},{"$f":"'[2]5.2 Asset Age Profile'!DD101","v":3},{"$f":"'[2]5.2 Asset Age Profile'!DE101","v":4},{"$f":"'[2]5.2 Asset Age Profile'!DF101","v":0},{"$f":"'[2]5.2 Asset Age Profile'!DG101","v":15},{"$f":"'[2]5.2 Asset Age Profile'!DH101","v":5},{"$f":"'[2]5.2 Asset Age Profile'!DI101","v":9},{"$f":"'[2]5.2 Asset Age Profile'!DJ101","v":1},{"$f":"'[2]5.2 Asset Age Profile'!DK101","v":6},{"$f":"'[2]5.2 Asset Age Profile'!DL101","v":0},{"$f":"'[2]5.2 Asset Age Profile'!DM101","v":1},{"$f":"'[2]5.2 Asset Age Profile'!DN101","v":0},{"$f":"'[2]5.2 Asset Age Profile'!DO101","v":0},{"$f":"'[2]5.2 Asset Age Profile'!DP101","v":0},{"$f":"'[2]5.2 Asset Age Profile'!DQ101","v":53},{"$f":"'[2]5.2 Asset Age Profile'!DR101","v":0},{"$f":"'[2]5.2 Asset Age Profile'!DS101","v":0},{"$f":"'[2]5.2 Asset Age Profile'!DT101","v":0},{"$f":"'[2]5.2 Asset Age Profile'!DU101","v":0},{"$f":"'[2]5.2 Asset Age Profile'!DV101","v":1},{"$f":"'[2]5.2 Asset Age Profile'!DW101","v":0},{"$f":"'[2]5.2 Asset Age Profile'!DX101","v":0},{"$f":"'[2]5.2 Asset Age Profile'!DY101","v":0},{"$f":"'[2]5.2 Asset Age Profile'!DZ101","v":0},{"$f":"'[2]5.2 Asset Age Profile'!EA101","v":0},{"$f":"'[2]5.2 Asset Age Profile'!EB101","v":0},{"$f":"'[2]5.2 Asset Age Profile'!EC101","v":0},{"$f":"'[2]5.2 Asset Age Profile'!ED101","v":0},{"$f":"'[2]5.2 Asset Age Profile'!EE101","v":0},{"$f":"'[2]5.2 Asset Age Profile'!EF101","v":0},{"$f":"'[2]5.2 Asset Age Profile'!EG101","v":0},{"$f":"'[2]5.2 Asset Age Profile'!EH101","v":0},{"$f":"'[2]5.2 Asset Age Profile'!EI101","v":0},{"$f":"'[2]5.2 Asset Age Profile'!EJ101","v":0}]
["ED_ASS521_00092",null,"˂ = 11 kV ;  Circuit Breaker",null,null,null,null,null,null,null,null,null,null,{"$f":"'[2]5.2 Asset Age Profile'!N102","v":53.8},{"$f":"'[2]5.2 Asset Age Profile'!O102","v":0},{"$f":"'[2]5.2 Asset Age Profile'!P102","v":0},{"$f":"'[2]5.2 Asset Age Profile'!Q102","v":0},{"$f":"'[2]5.2 Asset Age Profile'!R102","v":0},{"$f":"'[2]5.2 Asset Age Profile'!S102","v":0},{"$f":"'[2]5.2 Asset Age Profile'!T102","v":0},{"$f":"'[2]5.2 Asset Age Profile'!U102","v":0},{"$f":"'[2]5.2 Asset Age Profile'!V102","v":0},{"$f":"'[2]5.2 Asset Age Profile'!W102","v":0},{"$f":"'[2]5.2 Asset Age Profile'!X102","v":0},{"$f":"'[2]5.2 Asset Age Profile'!Y102","v":7.334848328356899},{"$f":"'[2]5.2 Asset Age Profile'!Z102","v":0},{"$f":"'[2]5.2 Asset Age Profile'!AA102","v":0},{"$f":"'[2]5.2 Asset Age Profile'!AB102","v":0},{"$f":"'[2]5.2 Asset Age Profile'!AC102","v":0},{"$f":"'[2]5.2 Asset Age Profile'!AD102","v":0},{"$f":"'[2]5.2 Asset Age Profile'!AE102","v":0},{"$f":"'[2]5.2 Asset Age Profile'!AF102","v":0},{"$f":"'[2]5.2 Asset Age Profile'!AG102","v":0},{"$f":"'[2]5.2 Asset Age Profile'!AH102","v":0},{"$f":"'[2]5.2 Asset Age Profile'!AI102","v":0},{"$f":"'[2]5.2 Asset Age Profile'!AJ102","v":197},{"$f":"'[2]5.2 Asset Age Profile'!AK102","v":207},{"$f":"'[2]5.2 Asset Age Profile'!AL102","v":618},{"$f":"'[2]5.2 Asset Age Profile'!AM102","v":734},{"$f":"'[2]5.2 Asset Age Profile'!AN102","v":796},{"$f":"'[2]5.2 Asset Age Profile'!AO102","v":583},{"$f":"'[2]5.2 Asset Age Profile'!AP102","v":796},{"$f":"'[2]5.2 Asset Age Profile'!AQ102","v":944},{"$f":"'[2]5.2 Asset Age Profile'!AR102","v":1025},{"$f":"'[2]5.2 Asset Age Profile'!AS102","v":615},{"$f":"'[2]5.2 Asset Age Profile'!AT102","v":530},{"$f":"'[2]5.2 Asset Age Profile'!AU102","v":370},{"$f":"'[2]5.2 Asset Age Profile'!AV102","v":110},{"$f":"'[2]5.2 Asset Age Profile'!AW102","v":241},{"$f":"'[2]5.2 Asset Age Profile'!AX102","v":251},{"$f":"'[2]5.2 Asset Age Profile'!AY102","v":85},{"$f":"'[2]5.2 Asset Age Profile'!AZ102","v":50},{"$f":"'[2]5.2 Asset Age Profile'!BA102","v":56},{"$f":"'[2]5.2 Asset Age Profile'!BB102","v":50},{"$f":"'[2]5.2 Asset Age Profile'!BC102","v":41},{"$f":"'[2]5.2 Asset Age Profile'!BD102","v":100},{"$f":"'[2]5.2 Asset Age Profile'!BE102","v":75},{"$f":"'[2]5.2 Asset Age Profile'!BF102","v":119},{"$f":"'[2]5.2 Asset Age Profile'!BG102","v":107},{"$f":"'[2]5.2 Asset Age Profile'!BH102","v":110},{"$f":"'[2]5.2 Asset Age Profile'!BI102","v":82},{"$f":"'[2]5.2 Asset Age Profile'!BJ102","v":72},{"$f":"'[2]5.2 Asset Age Profile'!BK102","v":78},{"$f":"'[2]5.2 Asset Age Profile'!BL102","v":179},{"$f":"'[2]5.2 Asset Age Profile'!BM102","v":63},{"$f":"'[2]5.2 Asset Age Profile'!BN102","v":116},{"$f":"'[2]5.2 Asset Age Profile'!BO102","v":31},{"$f":"'[2]5.2 Asset Age Profile'!BP102","v":28},{"$f":"'[2]5.2 Asset Age Profile'!BQ102","v":138},{"$f":"'[2]5.2 Asset Age Profile'!BR102","v":53},{"$f":"'[2]5.2 Asset Age Profile'!BS102","v":60},{"$f":"'[2]5.2 Asset Age Profile'!BT102","v":25},{"$f":"'[2]5.2 Asset Age Profile'!BU102","v":28},{"$f":"'[2]5.2 Asset Age Profile'!BV102","v":107},{"$f":"'[2]5.2 Asset Age Profile'!BW102","v":22},{"$f":"'[2]5.2 Asset Age Profile'!BX102","v":47},{"$f":"'[2]5.2 Asset Age Profile'!BY102","v":34},{"$f":"'[2]5.2 Asset Age Profile'!BZ102","v":41},{"$f":"'[2]5.2 Asset Age Profile'!CA102","v":91},{"$f":"'[2]5.2 Asset Age Profile'!CB102","v":66},{"$f":"'[2]5.2 Asset Age Profile'!CC102","v":41},{"$f":"'[2]5.2 Asset Age Profile'!CD102","v":91},{"$f":"'[2]5.2 Asset Age Profile'!CE102","v":50},{"$f":"'[2]5.2 Asset Age Profile'!CF102","v":38},{"$f":"'[2]5.2 Asset Age Profile'!CG102","v":94},{"$f":"'[2]5.2 Asset Age Profile'!CH102","v":56},{"$f":"'[2]5.2 Asset Age Profile'!CI102","v":9},{"$f":"'[2]5.2 Asset Age Profile'!CJ102","v":6},{"$f":"'[2]5.2 Asset Age Profile'!CK102","v":6},{"$f":"'[2]5.2 Asset Age Profile'!CL102","v":3},{"$f":"'[2]5.2 Asset Age Profile'!CM102","v":28},{"$f":"'[2]5.2 Asset Age Profile'!CN102","v":0},{"$f":"'[2]5.2 Asset Age Profile'!CO102","v":3},{"$f":"'[2]5.2 Asset Age Profile'!CP102","v":9},{"$f":"'[2]5.2 Asset Age Profile'!CQ102","v":9},{"$f":"'[2]5.2 Asset Age Profile'!CR102","v":66},{"$f":"'[2]5.2 Asset Age Profile'!CS102","v":0},{"$f":"'[2]5.2 Asset Age Profile'!CT102","v":9},{"$f":"'[2]5.2 Asset Age Profile'!CU102","v":25},{"$f":"'[2]5.2 Asset Age Profile'!CV102","v":6},{"$f":"'[2]5.2 Asset Age Profile'!CW102","v":60},{"$f":"'[2]5.2 Asset Age Profile'!CX102","v":0},{"$f":"'[2]5.2 Asset Age Profile'!CY102","v":0},{"$f":"'[2]5.2 Asset Age Profile'!CZ102","v":0},{"$f":"'[2]5.2 Asset Age Profile'!DA102","v":0},{"$f":"'[2]5.2 Asset Age Profile'!DB102","v":3},{"$f":"'[2]5.2 Asset Age Profile'!DC102","v":0},{"$f":"'[2]5.2 Asset Age Profile'!DD102","v":0},{"$f":"'[2]5.2 Asset Age Profile'!DE102","v":0},{"$f":"'[2]5.2 Asset Age Profile'!DF102","v":0},{"$f":"'[2]5.2 Asset Age Profile'!DG102","v":6},{"$f":"'[2]5.2 Asset Age Profile'!DH102","v":0},{"$f":"'[2]5.2 Asset Age Profile'!DI102","v":0},{"$f":"'[2]5.2 Asset Age Profile'!DJ102","v":0},{"$f":"'[2]5.2 Asset Age Profile'!DK102","v":3},{"$f":"'[2]5.2 Asset Age Profile'!DL102","v":3},{"$f":"'[2]5.2 Asset Age Profile'!DM102","v":0},{"$f":"'[2]5.2 Asset Age Profile'!DN102","v":0},{"$f":"'[2]5.2 Asset Age Profile'!DO102","v":0},{"$f":"'[2]5.2 Asset Age Profile'!DP102","v":0},{"$f":"'[2]5.2 Asset Age Profile'!DQ102","v":0},{"$f":"'[2]5.2 Asset Age Profile'!DR102","v":0},{"$f":"'[2]5.2 Asset Age Profile'!DS102","v":0},{"$f":"'[2]5.2 Asset Age Profile'!DT102","v":0},{"$f":"'[2]5.2 Asset Age Profile'!DU102","v":0},{"$f":"'[2]5.2 Asset Age Profile'!DV102","v":0},{"$f":"'[2]5.2 Asset Age Profile'!DW102","v":0},{"$f":"'[2]5.2 Asset Age Profile'!DX102","v":0},{"$f":"'[2]5.2 Asset Age Profile'!DY102","v":0},{"$f":"'[2]5.2 Asset Age Profile'!DZ102","v":0},{"$f":"'[2]5.2 Asset Age Profile'!EA102","v":0},{"$f":"'[2]5.2 Asset Age Profile'!EB102","v":0},{"$f":"'[2]5.2 Asset Age Profile'!EC102","v":0},{"$f":"'[2]5.2 Asset Age Profile'!ED102","v":0},{"$f":"'[2]5.2 Asset Age Profile'!EE102","v":0},{"$f":"'[2]5.2 Asset Age Profile'!EF102","v":0},{"$f":"'[2]5.2 Asset Age Profile'!EG102","v":0},{"$f":"'[2]5.2 Asset Age Profile'!EH102","v":0},{"$f":"'[2]5.2 Asset Age Profile'!EI102","v":0},{"$f":"'[2]5.2 Asset Age Profile'!EJ102","v":0}]
["ED_ASS521_00093",null,"> 11 kV & < = 22 kV  ; Switch",null,null,null,null,null,null,null,null,null,null,{"$f":"'[2]5.2 Asset Age Profile'!N103","v":53.8},{"$f":"'[2]5.2 Asset Age Profile'!O103","v":0},{"$f":"'[2]5.2 Asset Age Profile'!P103","v":0},{"$f":"'[2]5.2 Asset Age Profile'!Q103","v":0},{"$f":"'[2]5.2 Asset Age Profile'!R103","v":0},{"$f":"'[2]5.2 Asset Age Profile'!S103","v":0},{"$f":"'[2]5.2 Asset Age Profile'!T103","v":0},{"$f":"'[2]5.2 Asset Age Profile'!U103","v":0},{"$f":"'[2]5.2 Asset Age Profile'!V103","v":0},{"$f":"'[2]5.2 Asset Age Profile'!W103","v":0},{"$f":"'[2]5.2 Asset Age Profile'!X103","v":0},{"$f":"'[2]5.2 Asset Age Profile'!Y103","v":7.334848328356899},{"$f":"'[2]5.2 Asset Age Profile'!Z103","v":0},{"$f":"'[2]5.2 Asset Age Profile'!AA103","v":0},{"$f":"'[2]5.2 Asset Age Profile'!AB103","v":0},{"$f":"'[2]5.2 Asset Age Profile'!AC103","v":0},{"$f":"'[2]5.2 Asset Age Profile'!AD103","v":0},{"$f":"'[2]5.2 Asset Age Profile'!AE103","v":0},{"$f":"'[2]5.2 Asset Age Profile'!AF103","v":0},{"$f":"'[2]5.2 Asset Age Profile'!AG103","v":0},{"$f":"'[2]5.2 Asset Age Profile'!AH103","v":0},{"$f":"'[2]5.2 Asset Age Profile'!AI103","v":0},{"$f":"'[2]5.2 Asset Age Profile'!AJ103","v":878},{"$f":"'[2]5.2 Asset Age Profile'!AK103","v":1077},{"$f":"'[2]5.2 Asset Age Profile'!AL103","v":1729},{"$f":"'[2]5.2 Asset Age Profile'!AM103","v":1805},{"$f":"'[2]5.2 Asset Age Profile'!AN103","v":1579},{"$f":"'[2]5.2 Asset Age Profile'!AO103","v":1346},{"$f":"'[2]5.2 Asset Age Profile'!AP103","v":775},{"$f":"'[2]5.2 Asset Age Profile'!AQ103","v":832},{"$f":"'[2]5.2 Asset Age Profile'!AR103","v":669},{"$f":"'[2]5.2 Asset Age Profile'!AS103","v":832},{"$f":"'[2]5.2 Asset Age Profile'!AT103","v":524},{"$f":"'[2]5.2 Asset Age Profile'!AU103","v":395},{"$f":"'[2]5.2 Asset Age Profile'!AV103","v":604},{"$f":"'[2]5.2 Asset Age Profile'!AW103","v":630},{"$f":"'[2]5.2 Asset Age Profile'!AX103","v":1993},{"$f":"'[2]5.2 Asset Age Profile'!AY103","v":653},{"$f":"'[2]5.2 Asset Age Profile'!AZ103","v":727},{"$f":"'[2]5.2 Asset Age Profile'!BA103","v":574},{"$f":"'[2]5.2 Asset Age Profile'!BB103","v":733},{"$f":"'[2]5.2 Asset Age Profile'!BC103","v":659},{"$f":"'[2]5.2 Asset Age Profile'!BD103","v":1328},{"$f":"'[2]5.2 Asset Age Profile'!BE103","v":1103},{"$f":"'[2]5.2 Asset Age Profile'!BF103","v":1023},{"$f":"'[2]5.2 Asset Age Profile'!BG103","v":1341},{"$f":"'[2]5.2 Asset Age Profile'!BH103","v":1148},{"$f":"'[2]5.2 Asset Age Profile'!BI103","v":1138},{"$f":"'[2]5.2 Asset Age Profile'!BJ103","v":1018},{"$f":"'[2]5.2 Asset Age Profile'!BK103","v":1243},{"$f":"'[2]5.2 Asset Age Profile'!BL103","v":1751},{"$f":"'[2]5.2 Asset Age Profile'!BM103","v":1330},{"$f":"'[2]5.2 Asset Age Profile'!BN103","v":2289},{"$f":"'[2]5.2 Asset Age Profile'!BO103","v":1130},{"$f":"'[2]5.2 Asset Age Profile'!BP103","v":1023},{"$f":"'[2]5.2 Asset Age Profile'!BQ103","v":2152},{"$f":"'[2]5.2 Asset Age Profile'!BR103","v":1116},{"$f":"'[2]5.2 Asset Age Profile'!BS103","v":1593},{"$f":"'[2]5.2 Asset Age Profile'!BT103","v":639},{"$f":"'[2]5.2 Asset Age Profile'!BU103","v":757},{"$f":"'[2]5.2 Asset Age Profile'!BV103","v":619},{"$f":"'[2]5.2 Asset Age Profile'!BW103","v":630},{"$f":"'[2]5.2 Asset Age Profile'!BX103","v":592},{"$f":"'[2]5.2 Asset Age Profile'!BY103","v":514},{"$f":"'[2]5.2 Asset Age Profile'!BZ103","v":566},{"$f":"'[2]5.2 Asset Age Profile'!CA103","v":598},{"$f":"'[2]5.2 Asset Age Profile'!CB103","v":630},{"$f":"'[2]5.2 Asset Age Profile'!CC103","v":1165},{"$f":"'[2]5.2 Asset Age Profile'!CD103","v":781},{"$f":"'[2]5.2 Asset Age Profile'!CE103","v":789},{"$f":"'[2]5.2 Asset Age Profile'!CF103","v":593},{"$f":"'[2]5.2 Asset Age Profile'!CG103","v":2309},{"$f":"'[2]5.2 Asset Age Profile'!CH103","v":1341},{"$f":"'[2]5.2 Asset Age Profile'!CI103","v":995},{"$f":"'[2]5.2 Asset Age Profile'!CJ103","v":758},{"$f":"'[2]5.2 Asset Age Profile'!CK103","v":305},{"$f":"'[2]5.2 Asset Age Profile'!CL103","v":1749},{"$f":"'[2]5.2 Asset Age Profile'!CM103","v":1883},{"$f":"'[2]5.2 Asset Age Profile'!CN103","v":728},{"$f":"'[2]5.2 Asset Age Profile'!CO103","v":1232},{"$f":"'[2]5.2 Asset Age Profile'!CP103","v":92},{"$f":"'[2]5.2 Asset Age Profile'!CQ103","v":500},{"$f":"'[2]5.2 Asset Age Profile'!CR103","v":1048},{"$f":"'[2]5.2 Asset Age Profile'!CS103","v":520},{"$f":"'[2]5.2 Asset Age Profile'!CT103","v":73},{"$f":"'[2]5.2 Asset Age Profile'!CU103","v":143},{"$f":"'[2]5.2 Asset Age Profile'!CV103","v":114},{"$f":"'[2]5.2 Asset Age Profile'!CW103","v":605},{"$f":"'[2]5.2 Asset Age Profile'!CX103","v":97},{"$f":"'[2]5.2 Asset Age Profile'!CY103","v":18},{"$f":"'[2]5.2 Asset Age Profile'!CZ103","v":5},{"$f":"'[2]5.2 Asset Age Profile'!DA103","v":0},{"$f":"'[2]5.2 Asset Age Profile'!DB103","v":4},{"$f":"'[2]5.2 Asset Age Profile'!DC103","v":6},{"$f":"'[2]5.2 Asset Age Profile'!DD103","v":0},{"$f":"'[2]5.2 Asset Age Profile'!DE103","v":5},{"$f":"'[2]5.2 Asset Age Profile'!DF103","v":0},{"$f":"'[2]5.2 Asset Age Profile'!DG103","v":96},{"$f":"'[2]5.2 Asset Age Profile'!DH103","v":1},{"$f":"'[2]5.2 Asset Age Profile'!DI103","v":0},{"$f":"'[2]5.2 Asset Age Profile'!DJ103","v":5},{"$f":"'[2]5.2 Asset Age Profile'!DK103","v":0},{"$f":"'[2]5.2 Asset Age Profile'!DL103","v":0},{"$f":"'[2]5.2 Asset Age Profile'!DM103","v":0},{"$f":"'[2]5.2 Asset Age Profile'!DN103","v":0},{"$f":"'[2]5.2 Asset Age Profile'!DO103","v":0},{"$f":"'[2]5.2 Asset Age Profile'!DP103","v":0},{"$f":"'[2]5.2 Asset Age Profile'!DQ103","v":120},{"$f":"'[2]5.2 Asset Age Profile'!DR103","v":0},{"$f":"'[2]5.2 Asset Age Profile'!DS103","v":0},{"$f":"'[2]5.2 Asset Age Profile'!DT103","v":0},{"$f":"'[2]5.2 Asset Age Profile'!DU103","v":0},{"$f":"'[2]5.2 Asset Age Profile'!DV103","v":0},{"$f":"'[2]5.2 Asset Age Profile'!DW103","v":0},{"$f":"'[2]5.2 Asset Age Profile'!DX103","v":0},{"$f":"'[2]5.2 Asset Age Profile'!DY103","v":0},{"$f":"'[2]5.2 Asset Age Profile'!DZ103","v":0},{"$f":"'[2]5.2 Asset Age Profile'!EA103","v":0},{"$f":"'[2]5.2 Asset Age Profile'!EB103","v":0},{"$f":"'[2]5.2 Asset Age Profile'!EC103","v":0},{"$f":"'[2]5.2 Asset Age Profile'!ED103","v":0},{"$f":"'[2]5.2 Asset Age Profile'!EE103","v":0},{"$f":"'[2]5.2 Asset Age Profile'!EF103","v":0},{"$f":"'[2]5.2 Asset Age Profile'!EG103","v":0},{"$f":"'[2]5.2 Asset Age Profile'!EH103","v":0},{"$f":"'[2]5.2 Asset Age Profile'!EI103","v":0},{"$f":"'[2]5.2 Asset Age Profile'!EJ103","v":0}]
["ED_ASS521_00094",null,"> 11 kV & < = 22 kV  ; Circuit Breaker",null,null,null,null,null,null,null,null,null,null,{"$f":"'[2]5.2 Asset Age Profile'!N104","v":53.8},{"$f":"'[2]5.2 Asset Age Profile'!O104","v":0},{"$f":"'[2]5.2 Asset Age Profile'!P104","v":0},{"$f":"'[2]5.2 Asset Age Profile'!Q104","v":0},{"$f":"'[2]5.2 Asset Age Profile'!R104","v":0},{"$f":"'[2]5.2 Asset Age Profile'!S104","v":0},{"$f":"'[2]5.2 Asset Age Profile'!T104","v":0},{"$f":"'[2]5.2 Asset Age Profile'!U104","v":0},{"$f":"'[2]5.2 Asset Age Profile'!V104","v":0},{"$f":"'[2]5.2 Asset Age Profile'!W104","v":0},{"$f":"'[2]5.2 Asset Age Profile'!X104","v":0},{"$f":"'[2]5.2 Asset Age Profile'!Y104","v":7.334848328356899},{"$f":"'[2]5.2 Asset Age Profile'!Z104","v":0},{"$f":"'[2]5.2 Asset Age Profile'!AA104","v":0},{"$f":"'[2]5.2 Asset Age Profile'!AB104","v":0},{"$f":"'[2]5.2 Asset Age Profile'!AC104","v":0},{"$f":"'[2]5.2 Asset Age Profile'!AD104","v":0},{"$f":"'[2]5.2 Asset Age Profile'!AE104","v":0},{"$f":"'[2]5.2 Asset Age Profile'!AF104","v":0},{"$f":"'[2]5.2 Asset Age Profile'!AG104","v":0},{"$f":"'[2]5.2 Asset Age Profile'!AH104","v":0},{"$f":"'[2]5.2 Asset Age Profile'!AI104","v":0},{"$f":"'[2]5.2 Asset Age Profile'!AJ104","v":75},{"$f":"'[2]5.2 Asset Age Profile'!AK104","v":109},{"$f":"'[2]5.2 Asset Age Profile'!AL104","v":168},{"$f":"'[2]5.2 Asset Age Profile'!AM104","v":265},{"$f":"'[2]5.2 Asset Age Profile'!AN104","v":281},{"$f":"'[2]5.2 Asset Age Profile'!AO104","v":227},{"$f":"'[2]5.2 Asset Age Profile'!AP104","v":133},{"$f":"'[2]5.2 Asset Age Profile'!AQ104","v":160},{"$f":"'[2]5.2 Asset Age Profile'!AR104","v":115},{"$f":"'[2]5.2 Asset Age Profile'!AS104","v":77},{"$f":"'[2]5.2 Asset Age Profile'!AT104","v":69},{"$f":"'[2]5.2 Asset Age Profile'!AU104","v":57},{"$f":"'[2]5.2 Asset Age Profile'!AV104","v":49},{"$f":"'[2]5.2 Asset Age Profile'!AW104","v":38},{"$f":"'[2]5.2 Asset Age Profile'!AX104","v":47},{"$f":"'[2]5.2 Asset Age Profile'!AY104","v":34},{"$f":"'[2]5.2 Asset Age Profile'!AZ104","v":21},{"$f":"'[2]5.2 Asset Age Profile'!BA104","v":24},{"$f":"'[2]5.2 Asset Age Profile'!BB104","v":16},{"$f":"'[2]5.2 Asset Age Profile'!BC104","v":15},{"$f":"'[2]5.2 Asset Age Profile'!BD104","v":51},{"$f":"'[2]5.2 Asset Age Profile'!BE104","v":58},{"$f":"'[2]5.2 Asset Age Profile'!BF104","v":38},{"$f":"'[2]5.2 Asset Age Profile'!BG104","v":40},{"$f":"'[2]5.2 Asset Age Profile'!BH104","v":46},{"$f":"'[2]5.2 Asset Age Profile'!BI104","v":32},{"$f":"'[2]5.2 Asset Age Profile'!BJ104","v":22},{"$f":"'[2]5.2 Asset Age Profile'!BK104","v":26},{"$f":"'[2]5.2 Asset Age Profile'!BL104","v":41},{"$f":"'[2]5.2 Asset Age Profile'!BM104","v":17},{"$f":"'[2]5.2 Asset Age Profile'!BN104","v":13},{"$f":"'[2]5.2 Asset Age Profile'!BO104","v":15},{"$f":"'[2]5.2 Asset Age Profile'!BP104","v":21},{"$f":"'[2]5.2 Asset Age Profile'!BQ104","v":32},{"$f":"'[2]5.2 Asset Age Profile'!BR104","v":28},{"$f":"'[2]5.2 Asset Age Profile'!BS104","v":20},{"$f":"'[2]5.2 Asset Age Profile'!BT104","v":9},{"$f":"'[2]5.2 Asset Age Profile'!BU104","v":5},{"$f":"'[2]5.2 Asset Age Profile'!BV104","v":9},{"$f":"'[2]5.2 Asset Age Profile'!BW104","v":8},{"$f":"'[2]5.2 Asset Age Profile'!BX104","v":5},{"$f":"'[2]5.2 Asset Age Profile'!BY104","v":7},{"$f":"'[2]5.2 Asset Age Profile'!BZ104","v":5},{"$f":"'[2]5.2 Asset Age Profile'!CA104","v":21},{"$f":"'[2]5.2 Asset Age Profile'!CB104","v":5},{"$f":"'[2]5.2 Asset Age Profile'!CC104","v":25},{"$f":"'[2]5.2 Asset Age Profile'!CD104","v":8},{"$f":"'[2]5.2 Asset Age Profile'!CE104","v":11},{"$f":"'[2]5.2 Asset Age Profile'!CF104","v":20},{"$f":"'[2]5.2 Asset Age Profile'!CG104","v":16},{"$f":"'[2]5.2 Asset Age Profile'!CH104","v":40},{"$f":"'[2]5.2 Asset Age Profile'!CI104","v":21},{"$f":"'[2]5.2 Asset Age Profile'!CJ104","v":22},{"$f":"'[2]5.2 Asset Age Profile'!CK104","v":1},{"$f":"'[2]5.2 Asset Age Profile'!CL104","v":1},{"$f":"'[2]5.2 Asset Age Profile'!CM104","v":9},{"$f":"'[2]5.2 Asset Age Profile'!CN104","v":7},{"$f":"'[2]5.2 Asset Age Profile'!CO104","v":7},{"$f":"'[2]5.2 Asset Age Profile'!CP104","v":0},{"$f":"'[2]5.2 Asset Age Profile'!CQ104","v":7},{"$f":"'[2]5.2 Asset Age Profile'!CR104","v":42},{"$f":"'[2]5.2 Asset Age Profile'!CS104","v":1},{"$f":"'[2]5.2 Asset Age Profile'!CT104","v":1},{"$f":"'[2]5.2 Asset Age Profile'!CU104","v":0},{"$f":"'[2]5.2 Asset Age Profile'!CV104","v":0},{"$f":"'[2]5.2 Asset Age Profile'!CW104","v":12},{"$f":"'[2]5.2 Asset Age Profile'!CX104","v":0},{"$f":"'[2]5.2 Asset Age Profile'!CY104","v":0},{"$f":"'[2]5.2 Asset Age Profile'!CZ104","v":0},{"$f":"'[2]5.2 Asset Age Profile'!DA104","v":0},{"$f":"'[2]5.2 Asset Age Profile'!DB104","v":0},{"$f":"'[2]5.2 Asset Age Profile'!DC104","v":0},{"$f":"'[2]5.2 Asset Age Profile'!DD104","v":0},{"$f":"'[2]5.2 Asset Age Profile'!DE104","v":0},{"$f":"'[2]5.2 Asset Age Profile'!DF104","v":0},{"$f":"'[2]5.2 Asset Age Profile'!DG104","v":1},{"$f":"'[2]5.2 Asset Age Profile'!DH104","v":0},{"$f":"'[2]5.2 Asset Age Profile'!DI104","v":0},{"$f":"'[2]5.2 Asset Age Profile'!DJ104","v":0},{"$f":"'[2]5.2 Asset Age Profile'!DK104","v":0},{"$f":"'[2]5.2 Asset Age Profile'!DL104","v":0},{"$f":"'[2]5.2 Asset Age Profile'!DM104","v":0},{"$f":"'[2]5.2 Asset Age Profile'!DN104","v":0},{"$f":"'[2]5.2 Asset Age Profile'!DO104","v":0},{"$f":"'[2]5.2 Asset Age Profile'!DP104","v":0},{"$f":"'[2]5.2 Asset Age Profile'!DQ104","v":1},{"$f":"'[2]5.2 Asset Age Profile'!DR104","v":0},{"$f":"'[2]5.2 Asset Age Profile'!DS104","v":0},{"$f":"'[2]5.2 Asset Age Profile'!DT104","v":0},{"$f":"'[2]5.2 Asset Age Profile'!DU104","v":0},{"$f":"'[2]5.2 Asset Age Profile'!DV104","v":0},{"$f":"'[2]5.2 Asset Age Profile'!DW104","v":0},{"$f":"'[2]5.2 Asset Age Profile'!DX104","v":0},{"$f":"'[2]5.2 Asset Age Profile'!DY104","v":0},{"$f":"'[2]5.2 Asset Age Profile'!DZ104","v":0},{"$f":"'[2]5.2 Asset Age Profile'!EA104","v":0},{"$f":"'[2]5.2 Asset Age Profile'!EB104","v":0},{"$f":"'[2]5.2 Asset Age Profile'!EC104","v":0},{"$f":"'[2]5.2 Asset Age Profile'!ED104","v":0},{"$f":"'[2]5.2 Asset Age Profile'!EE104","v":0},{"$f":"'[2]5.2 Asset Age Profile'!EF104","v":0},{"$f":"'[2]5.2 Asset Age Profile'!EG104","v":0},{"$f":"'[2]5.2 Asset Age Profile'!EH104","v":0},{"$f":"'[2]5.2 Asset Age Profile'!EI104","v":0},{"$f":"'[2]5.2 Asset Age Profile'!EJ104","v":0}]
["ED_ASS521_00095",null,"> 22 kV & < = 33 kV ; Switch",null,null,null,null,null,null,null,null,null,null,{"$f":"'[2]5.2 Asset Age Profile'!N105","v":54.9},{"$f":"'[2]5.2 Asset Age Profile'!O105","v":0},{"$f":"'[2]5.2 Asset Age Profile'!P105","v":0},{"$f":"'[2]5.2 Asset Age Profile'!Q105","v":0},{"$f":"'[2]5.2 Asset Age Profile'!R105","v":0},{"$f":"'[2]5.2 Asset Age Profile'!S105","v":0},{"$f":"'[2]5.2 Asset Age Profile'!T105","v":0},{"$f":"'[2]5.2 Asset Age Profile'!U105","v":0},{"$f":"'[2]5.2 Asset Age Profile'!V105","v":0},{"$f":"'[2]5.2 Asset Age Profile'!W105","v":0},{"$f":"'[2]5.2 Asset Age Profile'!X105","v":0},{"$f":"'[2]5.2 Asset Age Profile'!Y105","v":7.4094534211370817},{"$f":"'[2]5.2 Asset Age Profile'!Z105","v":0},{"$f":"'[2]5.2 Asset Age Profile'!AA105","v":0},{"$f":"'[2]5.2 Asset Age Profile'!AB105","v":0},{"$f":"'[2]5.2 Asset Age Profile'!AC105","v":0},{"$f":"'[2]5.2 Asset Age Profile'!AD105","v":0},{"$f":"'[2]5.2 Asset Age Profile'!AE105","v":0},{"$f":"'[2]5.2 Asset Age Profile'!AF105","v":0},{"$f":"'[2]5.2 Asset Age Profile'!AG105","v":0},{"$f":"'[2]5.2 Asset Age Profile'!AH105","v":0},{"$f":"'[2]5.2 Asset Age Profile'!AI105","v":0},{"$f":"'[2]5.2 Asset Age Profile'!AJ105","v":25},{"$f":"'[2]5.2 Asset Age Profile'!AK105","v":43},{"$f":"'[2]5.2 Asset Age Profile'!AL105","v":100},{"$f":"'[2]5.2 Asset Age Profile'!AM105","v":101},{"$f":"'[2]5.2 Asset Age Profile'!AN105","v":70},{"$f":"'[2]5.2 Asset Age Profile'!AO105","v":68},{"$f":"'[2]5.2 Asset Age Profile'!AP105","v":67},{"$f":"'[2]5.2 Asset Age Profile'!AQ105","v":39},{"$f":"'[2]5.2 Asset Age Profile'!AR105","v":87},{"$f":"'[2]5.2 Asset Age Profile'!AS105","v":77},{"$f":"'[2]5.2 Asset Age Profile'!AT105","v":59},{"$f":"'[2]5.2 Asset Age Profile'!AU105","v":29},{"$f":"'[2]5.2 Asset Age Profile'!AV105","v":54},{"$f":"'[2]5.2 Asset Age Profile'!AW105","v":42},{"$f":"'[2]5.2 Asset Age Profile'!AX105","v":95},{"$f":"'[2]5.2 Asset Age Profile'!AY105","v":158},{"$f":"'[2]5.2 Asset Age Profile'!AZ105","v":10},{"$f":"'[2]5.2 Asset Age Profile'!BA105","v":29},{"$f":"'[2]5.2 Asset Age Profile'!BB105","v":14},{"$f":"'[2]5.2 Asset Age Profile'!BC105","v":12},{"$f":"'[2]5.2 Asset Age Profile'!BD105","v":89},{"$f":"'[2]5.2 Asset Age Profile'!BE105","v":91},{"$f":"'[2]5.2 Asset Age Profile'!BF105","v":24},{"$f":"'[2]5.2 Asset Age Profile'!BG105","v":17},{"$f":"'[2]5.2 Asset Age Profile'!BH105","v":55},{"$f":"'[2]5.2 Asset Age Profile'!BI105","v":43},{"$f":"'[2]5.2 Asset Age Profile'!BJ105","v":38},{"$f":"'[2]5.2 Asset Age Profile'!BK105","v":20},{"$f":"'[2]5.2 Asset Age Profile'!BL105","v":29},{"$f":"'[2]5.2 Asset Age Profile'!BM105","v":52},{"$f":"'[2]5.2 Asset Age Profile'!BN105","v":37},{"$f":"'[2]5.2 Asset Age Profile'!BO105","v":15},{"$f":"'[2]5.2 Asset Age Profile'!BP105","v":16},{"$f":"'[2]5.2 Asset Age Profile'!BQ105","v":75},{"$f":"'[2]5.2 Asset Age Profile'!BR105","v":31},{"$f":"'[2]5.2 Asset Age Profile'!BS105","v":42},{"$f":"'[2]5.2 Asset Age Profile'!BT105","v":11},{"$f":"'[2]5.2 Asset Age Profile'!BU105","v":25},{"$f":"'[2]5.2 Asset Age Profile'!BV105","v":16},{"$f":"'[2]5.2 Asset Age Profile'!BW105","v":28},{"$f":"'[2]5.2 Asset Age Profile'!BX105","v":17},{"$f":"'[2]5.2 Asset Age Profile'!BY105","v":12},{"$f":"'[2]5.2 Asset Age Profile'!BZ105","v":19},{"$f":"'[2]5.2 Asset Age Profile'!CA105","v":7},{"$f":"'[2]5.2 Asset Age Profile'!CB105","v":80},{"$f":"'[2]5.2 Asset Age Profile'!CC105","v":16},{"$f":"'[2]5.2 Asset Age Profile'!CD105","v":43},{"$f":"'[2]5.2 Asset Age Profile'!CE105","v":46},{"$f":"'[2]5.2 Asset Age Profile'!CF105","v":27},{"$f":"'[2]5.2 Asset Age Profile'!CG105","v":69},{"$f":"'[2]5.2 Asset Age Profile'!CH105","v":22},{"$f":"'[2]5.2 Asset Age Profile'!CI105","v":10},{"$f":"'[2]5.2 Asset Age Profile'!CJ105","v":10},{"$f":"'[2]5.2 Asset Age Profile'!CK105","v":85},{"$f":"'[2]5.2 Asset Age Profile'!CL105","v":24},{"$f":"'[2]5.2 Asset Age Profile'!CM105","v":27},{"$f":"'[2]5.2 Asset Age Profile'!CN105","v":0},{"$f":"'[2]5.2 Asset Age Profile'!CO105","v":0},{"$f":"'[2]5.2 Asset Age Profile'!CP105","v":1},{"$f":"'[2]5.2 Asset Age Profile'!CQ105","v":0},{"$f":"'[2]5.2 Asset Age Profile'!CR105","v":12},{"$f":"'[2]5.2 Asset Age Profile'!CS105","v":0},{"$f":"'[2]5.2 Asset Age Profile'!CT105","v":0},{"$f":"'[2]5.2 Asset Age Profile'!CU105","v":0},{"$f":"'[2]5.2 Asset Age Profile'!CV105","v":0},{"$f":"'[2]5.2 Asset Age Profile'!CW105","v":12},{"$f":"'[2]5.2 Asset Age Profile'!CX105","v":0},{"$f":"'[2]5.2 Asset Age Profile'!CY105","v":0},{"$f":"'[2]5.2 Asset Age Profile'!CZ105","v":0},{"$f":"'[2]5.2 Asset Age Profile'!DA105","v":0},{"$f":"'[2]5.2 Asset Age Profile'!DB105","v":1},{"$f":"'[2]5.2 Asset Age Profile'!DC105","v":0},{"$f":"'[2]5.2 Asset Age Profile'!DD105","v":0},{"$f":"'[2]5.2 Asset Age Profile'!DE105","v":0},{"$f":"'[2]5.2 Asset Age Profile'!DF105","v":0},{"$f":"'[2]5.2 Asset Age Profile'!DG105","v":0},{"$f":"'[2]5.2 Asset Age Profile'!DH105","v":0},{"$f":"'[2]5.2 Asset Age Profile'!DI105","v":0},{"$f":"'[2]5.2 Asset Age Profile'!DJ105","v":0},{"$f":"'[2]5.2 Asset Age Profile'!DK105","v":0},{"$f":"'[2]5.2 Asset Age Profile'!DL105","v":0},{"$f":"'[2]5.2 Asset Age Profile'!DM105","v":0},{"$f":"'[2]5.2 Asset Age Profile'!DN105","v":0},{"$f":"'[2]5.2 Asset Age Profile'!DO105","v":0},{"$f":"'[2]5.2 Asset Age Profile'!DP105","v":0},{"$f":"'[2]5.2 Asset Age Profile'!DQ105","v":0},{"$f":"'[2]5.2 Asset Age Profile'!DR105","v":0},{"$f":"'[2]5.2 Asset Age Profile'!DS105","v":0},{"$f":"'[2]5.2 Asset Age Profile'!DT105","v":0},{"$f":"'[2]5.2 Asset Age Profile'!DU105","v":0},{"$f":"'[2]5.2 Asset Age Profile'!DV105","v":0},{"$f":"'[2]5.2 Asset Age Profile'!DW105","v":0},{"$f":"'[2]5.2 Asset Age Profile'!DX105","v":0},{"$f":"'[2]5.2 Asset Age Profile'!DY105","v":0},{"$f":"'[2]5.2 Asset Age Profile'!DZ105","v":0},{"$f":"'[2]5.2 Asset Age Profile'!EA105","v":0},{"$f":"'[2]5.2 Asset Age Profile'!EB105","v":0},{"$f":"'[2]5.2 Asset Age Profile'!EC105","v":0},{"$f":"'[2]5.2 Asset Age Profile'!ED105","v":0},{"$f":"'[2]5.2 Asset Age Profile'!EE105","v":0},{"$f":"'[2]5.2 Asset Age Profile'!EF105","v":0},{"$f":"'[2]5.2 Asset Age Profile'!EG105","v":0},{"$f":"'[2]5.2 Asset Age Profile'!EH105","v":0},{"$f":"'[2]5.2 Asset Age Profile'!EI105","v":0},{"$f":"'[2]5.2 Asset Age Profile'!EJ105","v":0}]
["ED_ASS521_00096",null,"> 22 kV & < = 33 kV ; Circuit Breaker",null,null,null,null,null,null,null,null,null,null,{"$f":"'[2]5.2 Asset Age Profile'!N106","v":54.9},{"$f":"'[2]5.2 Asset Age Profile'!O106","v":0},{"$f":"'[2]5.2 Asset Age Profile'!P106","v":0},{"$f":"'[2]5.2 Asset Age Profile'!Q106","v":0},{"$f":"'[2]5.2 Asset Age Profile'!R106","v":0},{"$f":"'[2]5.2 Asset Age Profile'!S106","v":0},{"$f":"'[2]5.2 Asset Age Profile'!T106","v":0},{"$f":"'[2]5.2 Asset Age Profile'!U106","v":0},{"$f":"'[2]5.2 Asset Age Profile'!V106","v":0},{"$f":"'[2]5.2 Asset Age Profile'!W106","v":0},{"$f":"'[2]5.2 Asset Age Profile'!X106","v":0},{"$f":"'[2]5.2 Asset Age Profile'!Y106","v":7.4094534211370817},{"$f":"'[2]5.2 Asset Age Profile'!Z106","v":0},{"$f":"'[2]5.2 Asset Age Profile'!AA106","v":0},{"$f":"'[2]5.2 Asset Age Profile'!AB106","v":0},{"$f":"'[2]5.2 Asset Age Profile'!AC106","v":0},{"$f":"'[2]5.2 Asset Age Profile'!AD106","v":0},{"$f":"'[2]5.2 Asset Age Profile'!AE106","v":0},{"$f":"'[2]5.2 Asset Age Profile'!AF106","v":0},{"$f":"'[2]5.2 Asset Age Profile'!AG106","v":0},{"$f":"'[2]5.2 Asset Age Profile'!AH106","v":0},{"$f":"'[2]5.2 Asset Age Profile'!AI106","v":0},{"$f":"'[2]5.2 Asset Age Profile'!AJ106","v":4},{"$f":"'[2]5.2 Asset Age Profile'!AK106","v":5},{"$f":"'[2]5.2 Asset Age Profile'!AL106","v":4},{"$f":"'[2]5.2 Asset Age Profile'!AM106","v":15},{"$f":"'[2]5.2 Asset Age Profile'!AN106","v":10},{"$f":"'[2]5.2 Asset Age Profile'!AO106","v":16},{"$f":"'[2]5.2 Asset Age Profile'!AP106","v":19},{"$f":"'[2]5.2 Asset Age Profile'!AQ106","v":14},{"$f":"'[2]5.2 Asset Age Profile'!AR106","v":37},{"$f":"'[2]5.2 Asset Age Profile'!AS106","v":26},{"$f":"'[2]5.2 Asset Age Profile'!AT106","v":12},{"$f":"'[2]5.2 Asset Age Profile'!AU106","v":5},{"$f":"'[2]5.2 Asset Age Profile'!AV106","v":11},{"$f":"'[2]5.2 Asset Age Profile'!AW106","v":1},{"$f":"'[2]5.2 Asset Age Profile'!AX106","v":2},{"$f":"'[2]5.2 Asset Age Profile'!AY106","v":4},{"$f":"'[2]5.2 Asset Age Profile'!AZ106","v":1},{"$f":"'[2]5.2 Asset Age Profile'!BA106","v":5},{"$f":"'[2]5.2 Asset Age Profile'!BB106","v":4},{"$f":"'[2]5.2 Asset Age Profile'!BC106","v":3},{"$f":"'[2]5.2 Asset Age Profile'!BD106","v":5},{"$f":"'[2]5.2 Asset Age Profile'!BE106","v":2},{"$f":"'[2]5.2 Asset Age Profile'!BF106","v":1},{"$f":"'[2]5.2 Asset Age Profile'!BG106","v":1},{"$f":"'[2]5.2 Asset Age Profile'!BH106","v":2},{"$f":"'[2]5.2 Asset Age Profile'!BI106","v":2},{"$f":"'[2]5.2 Asset Age Profile'!BJ106","v":0},{"$f":"'[2]5.2 Asset Age Profile'!BK106","v":0},{"$f":"'[2]5.2 Asset Age Profile'!BL106","v":1},{"$f":"'[2]5.2 Asset Age Profile'!BM106","v":0},{"$f":"'[2]5.2 Asset Age Profile'!BN106","v":1},{"$f":"'[2]5.2 Asset Age Profile'!BO106","v":0},{"$f":"'[2]5.2 Asset Age Profile'!BP106","v":1},{"$f":"'[2]5.2 Asset Age Profile'!BQ106","v":3},{"$f":"'[2]5.2 Asset Age Profile'!BR106","v":0},{"$f":"'[2]5.2 Asset Age Profile'!BS106","v":1},{"$f":"'[2]5.2 Asset Age Profile'!BT106","v":1},{"$f":"'[2]5.2 Asset Age Profile'!BU106","v":2},{"$f":"'[2]5.2 Asset Age Profile'!BV106","v":0},{"$f":"'[2]5.2 Asset Age Profile'!BW106","v":1},{"$f":"'[2]5.2 Asset Age Profile'!BX106","v":0},{"$f":"'[2]5.2 Asset Age Profile'!BY106","v":0},{"$f":"'[2]5.2 Asset Age Profile'!BZ106","v":1},{"$f":"'[2]5.2 Asset Age Profile'!CA106","v":0},{"$f":"'[2]5.2 Asset Age Profile'!CB106","v":0},{"$f":"'[2]5.2 Asset Age Profile'!CC106","v":0},{"$f":"'[2]5.2 Asset Age Profile'!CD106","v":1},{"$f":"'[2]5.2 Asset Age Profile'!CE106","v":0},{"$f":"'[2]5.2 Asset Age Profile'!CF106","v":2},{"$f":"'[2]5.2 Asset Age Profile'!CG106","v":1},{"$f":"'[2]5.2 Asset Age Profile'!CH106","v":0},{"$f":"'[2]5.2 Asset Age Profile'!CI106","v":0},{"$f":"'[2]5.2 Asset Age Profile'!CJ106","v":2},{"$f":"'[2]5.2 Asset Age Profile'!CK106","v":0},{"$f":"'[2]5.2 Asset Age Profile'!CL106","v":1},{"$f":"'[2]5.2 Asset Age Profile'!CM106","v":1},{"$f":"'[2]5.2 Asset Age Profile'!CN106","v":0},{"$f":"'[2]5.2 Asset Age Profile'!CO106","v":0},{"$f":"'[2]5.2 Asset Age Profile'!CP106","v":0},{"$f":"'[2]5.2 Asset Age Profile'!CQ106","v":0},{"$f":"'[2]5.2 Asset Age Profile'!CR106","v":0},{"$f":"'[2]5.2 Asset Age Profile'!CS106","v":0},{"$f":"'[2]5.2 Asset Age Profile'!CT106","v":0},{"$f":"'[2]5.2 Asset Age Profile'!CU106","v":0},{"$f":"'[2]5.2 Asset Age Profile'!CV106","v":0},{"$f":"'[2]5.2 Asset Age Profile'!CW106","v":0},{"$f":"'[2]5.2 Asset Age Profile'!CX106","v":0},{"$f":"'[2]5.2 Asset Age Profile'!CY106","v":0},{"$f":"'[2]5.2 Asset Age Profile'!CZ106","v":0},{"$f":"'[2]5.2 Asset Age Profile'!DA106","v":0},{"$f":"'[2]5.2 Asset Age Profile'!DB106","v":0},{"$f":"'[2]5.2 Asset Age Profile'!DC106","v":0},{"$f":"'[2]5.2 Asset Age Profile'!DD106","v":0},{"$f":"'[2]5.2 Asset Age Profile'!DE106","v":0},{"$f":"'[2]5.2 Asset Age Profile'!DF106","v":0},{"$f":"'[2]5.2 Asset Age Profile'!DG106","v":0},{"$f":"'[2]5.2 Asset Age Profile'!DH106","v":0},{"$f":"'[2]5.2 Asset Age Profile'!DI106","v":0},{"$f":"'[2]5.2 Asset Age Profile'!DJ106","v":0},{"$f":"'[2]5.2 Asset Age Profile'!DK106","v":0},{"$f":"'[2]5.2 Asset Age Profile'!DL106","v":0},{"$f":"'[2]5.2 Asset Age Profile'!DM106","v":0},{"$f":"'[2]5.2 Asset Age Profile'!DN106","v":0},{"$f":"'[2]5.2 Asset Age Profile'!DO106","v":0},{"$f":"'[2]5.2 Asset Age Profile'!DP106","v":0},{"$f":"'[2]5.2 Asset Age Profile'!DQ106","v":0},{"$f":"'[2]5.2 Asset Age Profile'!DR106","v":0},{"$f":"'[2]5.2 Asset Age Profile'!DS106","v":0},{"$f":"'[2]5.2 Asset Age Profile'!DT106","v":0},{"$f":"'[2]5.2 Asset Age Profile'!DU106","v":0},{"$f":"'[2]5.2 Asset Age Profile'!DV106","v":0},{"$f":"'[2]5.2 Asset Age Profile'!DW106","v":0},{"$f":"'[2]5.2 Asset Age Profile'!DX106","v":0},{"$f":"'[2]5.2 Asset Age Profile'!DY106","v":0},{"$f":"'[2]5.2 Asset Age Profile'!DZ106","v":0},{"$f":"'[2]5.2 Asset Age Profile'!EA106","v":0},{"$f":"'[2]5.2 Asset Age Profile'!EB106","v":0},{"$f":"'[2]5.2 Asset Age Profile'!EC106","v":0},{"$f":"'[2]5.2 Asset Age Profile'!ED106","v":0},{"$f":"'[2]5.2 Asset Age Profile'!EE106","v":0},{"$f":"'[2]5.2 Asset Age Profile'!EF106","v":0},{"$f":"'[2]5.2 Asset Age Profile'!EG106","v":0},{"$f":"'[2]5.2 Asset Age Profile'!EH106","v":0},{"$f":"'[2]5.2 Asset Age Profile'!EI106","v":0},{"$f":"'[2]5.2 Asset Age Profile'!EJ106","v":0}]
["ED_ASS521_00097",null,"> 33 kV & < = 66 kV ; Switch",null,null,null,null,null,null,null,null,null,null,{"$f":"'[2]5.2 Asset Age Profile'!N107","v":54.9},{"$f":"'[2]5.2 Asset Age Profile'!O107","v":0},{"$f":"'[2]5.2 Asset Age Profile'!P107","v":0},{"$f":"'[2]5.2 Asset Age Profile'!Q107","v":0},{"$f":"'[2]5.2 Asset Age Profile'!R107","v":0},{"$f":"'[2]5.2 Asset Age Profile'!S107","v":0},{"$f":"'[2]5.2 Asset Age Profile'!T107","v":0},{"$f":"'[2]5.2 Asset Age Profile'!U107","v":0},{"$f":"'[2]5.2 Asset Age Profile'!V107","v":0},{"$f":"'[2]5.2 Asset Age Profile'!W107","v":0},{"$f":"'[2]5.2 Asset Age Profile'!X107","v":0},{"$f":"'[2]5.2 Asset Age Profile'!Y107","v":7.4094534211370817},{"$f":"'[2]5.2 Asset Age Profile'!Z107","v":0},{"$f":"'[2]5.2 Asset Age Profile'!AA107","v":0},{"$f":"'[2]5.2 Asset Age Profile'!AB107","v":0},{"$f":"'[2]5.2 Asset Age Profile'!AC107","v":0},{"$f":"'[2]5.2 Asset Age Profile'!AD107","v":0},{"$f":"'[2]5.2 Asset Age Profile'!AE107","v":0},{"$f":"'[2]5.2 Asset Age Profile'!AF107","v":0},{"$f":"'[2]5.2 Asset Age Profile'!AG107","v":0},{"$f":"'[2]5.2 Asset Age Profile'!AH107","v":0},{"$f":"'[2]5.2 Asset Age Profile'!AI107","v":0},{"$f":"'[2]5.2 Asset Age Profile'!AJ107","v":52},{"$f":"'[2]5.2 Asset Age Profile'!AK107","v":25},{"$f":"'[2]5.2 Asset Age Profile'!AL107","v":141},{"$f":"'[2]5.2 Asset Age Profile'!AM107","v":68},{"$f":"'[2]5.2 Asset Age Profile'!AN107","v":168},{"$f":"'[2]5.2 Asset Age Profile'!AO107","v":23},{"$f":"'[2]5.2 Asset Age Profile'!AP107","v":66},{"$f":"'[2]5.2 Asset Age Profile'!AQ107","v":57},{"$f":"'[2]5.2 Asset Age Profile'!AR107","v":170},{"$f":"'[2]5.2 Asset Age Profile'!AS107","v":120},{"$f":"'[2]5.2 Asset Age Profile'!AT107","v":32},{"$f":"'[2]5.2 Asset Age Profile'!AU107","v":26},{"$f":"'[2]5.2 Asset Age Profile'!AV107","v":26},{"$f":"'[2]5.2 Asset Age Profile'!AW107","v":9},{"$f":"'[2]5.2 Asset Age Profile'!AX107","v":19},{"$f":"'[2]5.2 Asset Age Profile'!AY107","v":16},{"$f":"'[2]5.2 Asset Age Profile'!AZ107","v":26},{"$f":"'[2]5.2 Asset Age Profile'!BA107","v":24},{"$f":"'[2]5.2 Asset Age Profile'!BB107","v":3},{"$f":"'[2]5.2 Asset Age Profile'!BC107","v":4},{"$f":"'[2]5.2 Asset Age Profile'!BD107","v":37},{"$f":"'[2]5.2 Asset Age Profile'!BE107","v":4},{"$f":"'[2]5.2 Asset Age Profile'!BF107","v":10},{"$f":"'[2]5.2 Asset Age Profile'!BG107","v":22},{"$f":"'[2]5.2 Asset Age Profile'!BH107","v":18},{"$f":"'[2]5.2 Asset Age Profile'!BI107","v":10},{"$f":"'[2]5.2 Asset Age Profile'!BJ107","v":11},{"$f":"'[2]5.2 Asset Age Profile'!BK107","v":27},{"$f":"'[2]5.2 Asset Age Profile'!BL107","v":17},{"$f":"'[2]5.2 Asset Age Profile'!BM107","v":24},{"$f":"'[2]5.2 Asset Age Profile'!BN107","v":2},{"$f":"'[2]5.2 Asset Age Profile'!BO107","v":3},{"$f":"'[2]5.2 Asset Age Profile'!BP107","v":5},{"$f":"'[2]5.2 Asset Age Profile'!BQ107","v":10},{"$f":"'[2]5.2 Asset Age Profile'!BR107","v":3},{"$f":"'[2]5.2 Asset Age Profile'!BS107","v":3},{"$f":"'[2]5.2 Asset Age Profile'!BT107","v":21},{"$f":"'[2]5.2 Asset Age Profile'!BU107","v":2},{"$f":"'[2]5.2 Asset Age Profile'!BV107","v":8},{"$f":"'[2]5.2 Asset Age Profile'!BW107","v":0},{"$f":"'[2]5.2 Asset Age Profile'!BX107","v":0},{"$f":"'[2]5.2 Asset Age Profile'!BY107","v":5},{"$f":"'[2]5.2 Asset Age Profile'!BZ107","v":5},{"$f":"'[2]5.2 Asset Age Profile'!CA107","v":7},{"$f":"'[2]5.2 Asset Age Profile'!CB107","v":9},{"$f":"'[2]5.2 Asset Age Profile'!CC107","v":6},{"$f":"'[2]5.2 Asset Age Profile'!CD107","v":13},{"$f":"'[2]5.2 Asset Age Profile'!CE107","v":4},{"$f":"'[2]5.2 Asset Age Profile'!CF107","v":5},{"$f":"'[2]5.2 Asset Age Profile'!CG107","v":8},{"$f":"'[2]5.2 Asset Age Profile'!CH107","v":8},{"$f":"'[2]5.2 Asset Age Profile'!CI107","v":2},{"$f":"'[2]5.2 Asset Age Profile'!CJ107","v":3},{"$f":"'[2]5.2 Asset Age Profile'!CK107","v":3},{"$f":"'[2]5.2 Asset Age Profile'!CL107","v":5},{"$f":"'[2]5.2 Asset Age Profile'!CM107","v":6},{"$f":"'[2]5.2 Asset Age Profile'!CN107","v":0},{"$f":"'[2]5.2 Asset Age Profile'!CO107","v":0},{"$f":"'[2]5.2 Asset Age Profile'!CP107","v":0},{"$f":"'[2]5.2 Asset Age Profile'!CQ107","v":2},{"$f":"'[2]5.2 Asset Age Profile'!CR107","v":4},{"$f":"'[2]5.2 Asset Age Profile'!CS107","v":0},{"$f":"'[2]5.2 Asset Age Profile'!CT107","v":0},{"$f":"'[2]5.2 Asset Age Profile'!CU107","v":2},{"$f":"'[2]5.2 Asset Age Profile'!CV107","v":0},{"$f":"'[2]5.2 Asset Age Profile'!CW107","v":2},{"$f":"'[2]5.2 Asset Age Profile'!CX107","v":0},{"$f":"'[2]5.2 Asset Age Profile'!CY107","v":0},{"$f":"'[2]5.2 Asset Age Profile'!CZ107","v":0},{"$f":"'[2]5.2 Asset Age Profile'!DA107","v":0},{"$f":"'[2]5.2 Asset Age Profile'!DB107","v":0},{"$f":"'[2]5.2 Asset Age Profile'!DC107","v":0},{"$f":"'[2]5.2 Asset Age Profile'!DD107","v":0},{"$f":"'[2]5.2 Asset Age Profile'!DE107","v":0},{"$f":"'[2]5.2 Asset Age Profile'!DF107","v":0},{"$f":"'[2]5.2 Asset Age Profile'!DG107","v":1},{"$f":"'[2]5.2 Asset Age Profile'!DH107","v":0},{"$f":"'[2]5.2 Asset Age Profile'!DI107","v":0},{"$f":"'[2]5.2 Asset Age Profile'!DJ107","v":0},{"$f":"'[2]5.2 Asset Age Profile'!DK107","v":0},{"$f":"'[2]5.2 Asset Age Profile'!DL107","v":0},{"$f":"'[2]5.2 Asset Age Profile'!DM107","v":0},{"$f":"'[2]5.2 Asset Age Profile'!DN107","v":0},{"$f":"'[2]5.2 Asset Age Profile'!DO107","v":0},{"$f":"'[2]5.2 Asset Age Profile'!DP107","v":0},{"$f":"'[2]5.2 Asset Age Profile'!DQ107","v":2},{"$f":"'[2]5.2 Asset Age Profile'!DR107","v":0},{"$f":"'[2]5.2 Asset Age Profile'!DS107","v":0},{"$f":"'[2]5.2 Asset Age Profile'!DT107","v":0},{"$f":"'[2]5.2 Asset Age Profile'!DU107","v":0},{"$f":"'[2]5.2 Asset Age Profile'!DV107","v":0},{"$f":"'[2]5.2 Asset Age Profile'!DW107","v":0},{"$f":"'[2]5.2 Asset Age Profile'!DX107","v":0},{"$f":"'[2]5.2 Asset Age Profile'!DY107","v":0},{"$f":"'[2]5.2 Asset Age Profile'!DZ107","v":0},{"$f":"'[2]5.2 Asset Age Profile'!EA107","v":0},{"$f":"'[2]5.2 Asset Age Profile'!EB107","v":0},{"$f":"'[2]5.2 Asset Age Profile'!EC107","v":0},{"$f":"'[2]5.2 Asset Age Profile'!ED107","v":0},{"$f":"'[2]5.2 Asset Age Profile'!EE107","v":0},{"$f":"'[2]5.2 Asset Age Profile'!EF107","v":0},{"$f":"'[2]5.2 Asset Age Profile'!EG107","v":0},{"$f":"'[2]5.2 Asset Age Profile'!EH107","v":0},{"$f":"'[2]5.2 Asset Age Profile'!EI107","v":0},{"$f":"'[2]5.2 Asset Age Profile'!EJ107","v":0}]
["ED_ASS521_00098",null,"> 33 kV & < = 66 kV ; Circuit Breaker",null,null,null,null,null,null,null,null,null,null,{"$f":"'[2]5.2 Asset Age Profile'!N108","v":0},{"$f":"'[2]5.2 Asset Age Profile'!O108","v":0},{"$f":"'[2]5.2 Asset Age Profile'!P108","v":0},{"$f":"'[2]5.2 Asset Age Profile'!Q108","v":0},{"$f":"'[2]5.2 Asset Age Profile'!R108","v":0},{"$f":"'[2]5.2 Asset Age Profile'!S108","v":0},{"$f":"'[2]5.2 Asset Age Profile'!T108","v":0},{"$f":"'[2]5.2 Asset Age Profile'!U108","v":0},{"$f":"'[2]5.2 Asset Age Profile'!V108","v":0},{"$f":"'[2]5.2 Asset Age Profile'!W108","v":0},{"$f":"'[2]5.2 Asset Age Profile'!X108","v":0},{"$f":"'[2]5.2 Asset Age Profile'!Y108","v":0},{"$f":"'[2]5.2 Asset Age Profile'!Z108","v":0},{"$f":"'[2]5.2 Asset Age Profile'!AA108","v":0},{"$f":"'[2]5.2 Asset Age Profile'!AB108","v":0},{"$f":"'[2]5.2 Asset Age Profile'!AC108","v":0},{"$f":"'[2]5.2 Asset Age Profile'!AD108","v":0},{"$f":"'[2]5.2 Asset Age Profile'!AE108","v":0},{"$f":"'[2]5.2 Asset Age Profile'!AF108","v":0},{"$f":"'[2]5.2 Asset Age Profile'!AG108","v":0},{"$f":"'[2]5.2 Asset Age Profile'!AH108","v":0},{"$f":"'[2]5.2 Asset Age Profile'!AI108","v":0},{"$f":"'[2]5.2 Asset Age Profile'!AJ108","v":3},{"$f":"'[2]5.2 Asset Age Profile'!AK108","v":1},{"$f":"'[2]5.2 Asset Age Profile'!AL108","v":16},{"$f":"'[2]5.2 Asset Age Profile'!AM108","v":14},{"$f":"'[2]5.2 Asset Age Profile'!AN108","v":36},{"$f":"'[2]5.2 Asset Age Profile'!AO108","v":30},{"$f":"'[2]5.2 Asset Age Profile'!AP108","v":43},{"$f":"'[2]5.2 Asset Age Profile'!AQ108","v":21},{"$f":"'[2]5.2 Asset Age Profile'!AR108","v":28},{"$f":"'[2]5.2 Asset Age Profile'!AS108","v":26},{"$f":"'[2]5.2 Asset Age Profile'!AT108","v":16},{"$f":"'[2]5.2 Asset Age Profile'!AU108","v":11},{"$f":"'[2]5.2 Asset Age Profile'!AV108","v":24},{"$f":"'[2]5.2 Asset Age Profile'!AW108","v":5},{"$f":"'[2]5.2 Asset Age Profile'!AX108","v":10},{"$f":"'[2]5.2 Asset Age Profile'!AY108","v":2},{"$f":"'[2]5.2 Asset Age Profile'!AZ108","v":4},{"$f":"'[2]5.2 Asset Age Profile'!BA108","v":0},{"$f":"'[2]5.2 Asset Age Profile'!BB108","v":0},{"$f":"'[2]5.2 Asset Age Profile'!BC108","v":0},{"$f":"'[2]5.2 Asset Age Profile'!BD108","v":1},{"$f":"'[2]5.2 Asset Age Profile'!BE108","v":1},{"$f":"'[2]5.2 Asset Age Profile'!BF108","v":1},{"$f":"'[2]5.2 Asset Age Profile'!BG108","v":4},{"$f":"'[2]5.2 Asset Age Profile'!BH108","v":4},{"$f":"'[2]5.2 Asset Age Profile'!BI108","v":0},{"$f":"'[2]5.2 Asset Age Profile'!BJ108","v":1},{"$f":"'[2]5.2 Asset Age Profile'!BK108","v":0},{"$f":"'[2]5.2 Asset Age Profile'!BL108","v":5},{"$f":"'[2]5.2 Asset Age Profile'!BM108","v":12},{"$f":"'[2]5.2 Asset Age Profile'!BN108","v":1},{"$f":"'[2]5.2 Asset Age Profile'!BO108","v":0},{"$f":"'[2]5.2 Asset Age Profile'!BP108","v":10},{"$f":"'[2]5.2 Asset Age Profile'!BQ108","v":9},{"$f":"'[2]5.2 Asset Age Profile'!BR108","v":16},{"$f":"'[2]5.2 Asset Age Profile'!BS108","v":0},{"$f":"'[2]5.2 Asset Age Profile'!BT108","v":0},{"$f":"'[2]5.2 Asset Age Profile'!BU108","v":0},{"$f":"'[2]5.2 Asset Age Profile'!BV108","v":0},{"$f":"'[2]5.2 Asset Age Profile'!BW108","v":1},{"$f":"'[2]5.2 Asset Age Profile'!BX108","v":0},{"$f":"'[2]5.2 Asset Age Profile'!BY108","v":0},{"$f":"'[2]5.2 Asset Age Profile'!BZ108","v":0},{"$f":"'[2]5.2 Asset Age Profile'!CA108","v":0},{"$f":"'[2]5.2 Asset Age Profile'!CB108","v":0},{"$f":"'[2]5.2 Asset Age Profile'!CC108","v":0},{"$f":"'[2]5.2 Asset Age Profile'!CD108","v":0},{"$f":"'[2]5.2 Asset Age Profile'!CE108","v":5},{"$f":"'[2]5.2 Asset Age Profile'!CF108","v":6},{"$f":"'[2]5.2 Asset Age Profile'!CG108","v":6},{"$f":"'[2]5.2 Asset Age Profile'!CH108","v":3},{"$f":"'[2]5.2 Asset Age Profile'!CI108","v":0},{"$f":"'[2]5.2 Asset Age Profile'!CJ108","v":2},{"$f":"'[2]5.2 Asset Age Profile'!CK108","v":0},{"$f":"'[2]5.2 Asset Age Profile'!CL108","v":1},{"$f":"'[2]5.2 Asset Age Profile'!CM108","v":0},{"$f":"'[2]5.2 Asset Age Profile'!CN108","v":0},{"$f":"'[2]5.2 Asset Age Profile'!CO108","v":0},{"$f":"'[2]5.2 Asset Age Profile'!CP108","v":1},{"$f":"'[2]5.2 Asset Age Profile'!CQ108","v":0},{"$f":"'[2]5.2 Asset Age Profile'!CR108","v":0},{"$f":"'[2]5.2 Asset Age Profile'!CS108","v":1},{"$f":"'[2]5.2 Asset Age Profile'!CT108","v":0},{"$f":"'[2]5.2 Asset Age Profile'!CU108","v":1},{"$f":"'[2]5.2 Asset Age Profile'!CV108","v":0},{"$f":"'[2]5.2 Asset Age Profile'!CW108","v":0},{"$f":"'[2]5.2 Asset Age Profile'!CX108","v":0},{"$f":"'[2]5.2 Asset Age Profile'!CY108","v":0},{"$f":"'[2]5.2 Asset Age Profile'!CZ108","v":0},{"$f":"'[2]5.2 Asset Age Profile'!DA108","v":0},{"$f":"'[2]5.2 Asset Age Profile'!DB108","v":0},{"$f":"'[2]5.2 Asset Age Profile'!DC108","v":0},{"$f":"'[2]5.2 Asset Age Profile'!DD108","v":0},{"$f":"'[2]5.2 Asset Age Profile'!DE108","v":0},{"$f":"'[2]5.2 Asset Age Profile'!DF108","v":0},{"$f":"'[2]5.2 Asset Age Profile'!DG108","v":0},{"$f":"'[2]5.2 Asset Age Profile'!DH108","v":0},{"$f":"'[2]5.2 Asset Age Profile'!DI108","v":0},{"$f":"'[2]5.2 Asset Age Profile'!DJ108","v":0},{"$f":"'[2]5.2 Asset Age Profile'!DK108","v":0},{"$f":"'[2]5.2 Asset Age Profile'!DL108","v":0},{"$f":"'[2]5.2 Asset Age Profile'!DM108","v":0},{"$f":"'[2]5.2 Asset Age Profile'!DN108","v":0},{"$f":"'[2]5.2 Asset Age Profile'!DO108","v":0},{"$f":"'[2]5.2 Asset Age Profile'!DP108","v":0},{"$f":"'[2]5.2 Asset Age Profile'!DQ108","v":0},{"$f":"'[2]5.2 Asset Age Profile'!DR108","v":0},{"$f":"'[2]5.2 Asset Age Profile'!DS108","v":0},{"$f":"'[2]5.2 Asset Age Profile'!DT108","v":0},{"$f":"'[2]5.2 Asset Age Profile'!DU108","v":0},{"$f":"'[2]5.2 Asset Age Profile'!DV108","v":0},{"$f":"'[2]5.2 Asset Age Profile'!DW108","v":0},{"$f":"'[2]5.2 Asset Age Profile'!DX108","v":0},{"$f":"'[2]5.2 Asset Age Profile'!DY108","v":0},{"$f":"'[2]5.2 Asset Age Profile'!DZ108","v":0},{"$f":"'[2]5.2 Asset Age Profile'!EA108","v":0},{"$f":"'[2]5.2 Asset Age Profile'!EB108","v":0},{"$f":"'[2]5.2 Asset Age Profile'!EC108","v":0},{"$f":"'[2]5.2 Asset Age Profile'!ED108","v":0},{"$f":"'[2]5.2 Asset Age Profile'!EE108","v":0},{"$f":"'[2]5.2 Asset Age Profile'!EF108","v":0},{"$f":"'[2]5.2 Asset Age Profile'!EG108","v":0},{"$f":"'[2]5.2 Asset Age Profile'!EH108","v":0},{"$f":"'[2]5.2 Asset Age Profile'!EI108","v":0},{"$f":"'[2]5.2 Asset Age Profile'!EJ108","v":0}]
["ED_ASS521_00099",null,"> 66 kV & < = 132 kV ; Switch",null,null,null,null,null,null,null,null,null,null,{"$f":"'[2]5.2 Asset Age Profile'!N109","v":0},{"$f":"'[2]5.2 Asset Age Profile'!O109","v":0},{"$f":"'[2]5.2 Asset Age Profile'!P109","v":0},{"$f":"'[2]5.2 Asset Age Profile'!Q109","v":0},{"$f":"'[2]5.2 Asset Age Profile'!R109","v":0},{"$f":"'[2]5.2 Asset Age Profile'!S109","v":0},{"$f":"'[2]5.2 Asset Age Profile'!T109","v":0},{"$f":"'[2]5.2 Asset Age Profile'!U109","v":0},{"$f":"'[2]5.2 Asset Age Profile'!V109","v":0},{"$f":"'[2]5.2 Asset Age Profile'!W109","v":0},{"$f":"'[2]5.2 Asset Age Profile'!X109","v":0},{"$f":"'[2]5.2 Asset Age Profile'!Y109","v":0},{"$f":"'[2]5.2 Asset Age Profile'!Z109","v":0},{"$f":"'[2]5.2 Asset Age Profile'!AA109","v":0},{"$f":"'[2]5.2 Asset Age Profile'!AB109","v":0},{"$f":"'[2]5.2 Asset Age Profile'!AC109","v":0},{"$f":"'[2]5.2 Asset Age Profile'!AD109","v":0},{"$f":"'[2]5.2 Asset Age Profile'!AE109","v":0},{"$f":"'[2]5.2 Asset Age Profile'!AF109","v":0},{"$f":"'[2]5.2 Asset Age Profile'!AG109","v":0},{"$f":"'[2]5.2 Asset Age Profile'!AH109","v":0},{"$f":"'[2]5.2 Asset Age Profile'!AI109","v":0},{"$f":"'[2]5.2 Asset Age Profile'!AJ109","v":2},{"$f":"'[2]5.2 Asset Age Profile'!AK109","v":31},{"$f":"'[2]5.2 Asset Age Profile'!AL109","v":18},{"$f":"'[2]5.2 Asset Age Profile'!AM109","v":70},{"$f":"'[2]5.2 Asset Age Profile'!AN109","v":27},{"$f":"'[2]5.2 Asset Age Profile'!AO109","v":10},{"$f":"'[2]5.2 Asset Age Profile'!AP109","v":2},{"$f":"'[2]5.2 Asset Age Profile'!AQ109","v":23},{"$f":"'[2]5.2 Asset Age Profile'!AR109","v":3},{"$f":"'[2]5.2 Asset Age Profile'!AS109","v":43},{"$f":"'[2]5.2 Asset Age Profile'!AT109","v":5},{"$f":"'[2]5.2 Asset Age Profile'!AU109","v":1},{"$f":"'[2]5.2 Asset Age Profile'!AV109","v":40},{"$f":"'[2]5.2 Asset Age Profile'!AW109","v":5},{"$f":"'[2]5.2 Asset Age Profile'!AX109","v":2},{"$f":"'[2]5.2 Asset Age Profile'!AY109","v":1},{"$f":"'[2]5.2 Asset Age Profile'!AZ109","v":7},{"$f":"'[2]5.2 Asset Age Profile'!BA109","v":5},{"$f":"'[2]5.2 Asset Age Profile'!BB109","v":4},{"$f":"'[2]5.2 Asset Age Profile'!BC109","v":2},{"$f":"'[2]5.2 Asset Age Profile'!BD109","v":16},{"$f":"'[2]5.2 Asset Age Profile'!BE109","v":9},{"$f":"'[2]5.2 Asset Age Profile'!BF109","v":1},{"$f":"'[2]5.2 Asset Age Profile'!BG109","v":6},{"$f":"'[2]5.2 Asset Age Profile'!BH109","v":13},{"$f":"'[2]5.2 Asset Age Profile'!BI109","v":0},{"$f":"'[2]5.2 Asset Age Profile'!BJ109","v":7},{"$f":"'[2]5.2 Asset Age Profile'!BK109","v":4},{"$f":"'[2]5.2 Asset Age Profile'!BL109","v":3},{"$f":"'[2]5.2 Asset Age Profile'!BM109","v":3},{"$f":"'[2]5.2 Asset Age Profile'!BN109","v":1},{"$f":"'[2]5.2 Asset Age Profile'!BO109","v":3},{"$f":"'[2]5.2 Asset Age Profile'!BP109","v":0},{"$f":"'[2]5.2 Asset Age Profile'!BQ109","v":1},{"$f":"'[2]5.2 Asset Age Profile'!BR109","v":0},{"$f":"'[2]5.2 Asset Age Profile'!BS109","v":0},{"$f":"'[2]5.2 Asset Age Profile'!BT109","v":1},{"$f":"'[2]5.2 Asset Age Profile'!BU109","v":0},{"$f":"'[2]5.2 Asset Age Profile'!BV109","v":3},{"$f":"'[2]5.2 Asset Age Profile'!BW109","v":0},{"$f":"'[2]5.2 Asset Age Profile'!BX109","v":5},{"$f":"'[2]5.2 Asset Age Profile'!BY109","v":0},{"$f":"'[2]5.2 Asset Age Profile'!BZ109","v":0},{"$f":"'[2]5.2 Asset Age Profile'!CA109","v":2},{"$f":"'[2]5.2 Asset Age Profile'!CB109","v":0},{"$f":"'[2]5.2 Asset Age Profile'!CC109","v":0},{"$f":"'[2]5.2 Asset Age Profile'!CD109","v":2},{"$f":"'[2]5.2 Asset Age Profile'!CE109","v":3},{"$f":"'[2]5.2 Asset Age Profile'!CF109","v":0},{"$f":"'[2]5.2 Asset Age Profile'!CG109","v":5},{"$f":"'[2]5.2 Asset Age Profile'!CH109","v":0},{"$f":"'[2]5.2 Asset Age Profile'!CI109","v":0},{"$f":"'[2]5.2 Asset Age Profile'!CJ109","v":0},{"$f":"'[2]5.2 Asset Age Profile'!CK109","v":0},{"$f":"'[2]5.2 Asset Age Profile'!CL109","v":0},{"$f":"'[2]5.2 Asset Age Profile'!CM109","v":3},{"$f":"'[2]5.2 Asset Age Profile'!CN109","v":0},{"$f":"'[2]5.2 Asset Age Profile'!CO109","v":0},{"$f":"'[2]5.2 Asset Age Profile'!CP109","v":1},{"$f":"'[2]5.2 Asset Age Profile'!CQ109","v":0},{"$f":"'[2]5.2 Asset Age Profile'!CR109","v":0},{"$f":"'[2]5.2 Asset Age Profile'!CS109","v":0},{"$f":"'[2]5.2 Asset Age Profile'!CT109","v":0},{"$f":"'[2]5.2 Asset Age Profile'!CU109","v":0},{"$f":"'[2]5.2 Asset Age Profile'!CV109","v":0},{"$f":"'[2]5.2 Asset Age Profile'!CW109","v":4},{"$f":"'[2]5.2 Asset Age Profile'!CX109","v":0},{"$f":"'[2]5.2 Asset Age Profile'!CY109","v":0},{"$f":"'[2]5.2 Asset Age Profile'!CZ109","v":0},{"$f":"'[2]5.2 Asset Age Profile'!DA109","v":0},{"$f":"'[2]5.2 Asset Age Profile'!DB109","v":0},{"$f":"'[2]5.2 Asset Age Profile'!DC109","v":0},{"$f":"'[2]5.2 Asset Age Profile'!DD109","v":0},{"$f":"'[2]5.2 Asset Age Profile'!DE109","v":0},{"$f":"'[2]5.2 Asset Age Profile'!DF109","v":0},{"$f":"'[2]5.2 Asset Age Profile'!DG109","v":0},{"$f":"'[2]5.2 Asset Age Profile'!DH109","v":0},{"$f":"'[2]5.2 Asset Age Profile'!DI109","v":0},{"$f":"'[2]5.2 Asset Age Profile'!DJ109","v":0},{"$f":"'[2]5.2 Asset Age Profile'!DK109","v":0},{"$f":"'[2]5.2 Asset Age Profile'!DL109","v":0},{"$f":"'[2]5.2 Asset Age Profile'!DM109","v":0},{"$f":"'[2]5.2 Asset Age Profile'!DN109","v":0},{"$f":"'[2]5.2 Asset Age Profile'!DO109","v":0},{"$f":"'[2]5.2 Asset Age Profile'!DP109","v":0},{"$f":"'[2]5.2 Asset Age Profile'!DQ109","v":0},{"$f":"'[2]5.2 Asset Age Profile'!DR109","v":0},{"$f":"'[2]5.2 Asset Age Profile'!DS109","v":0},{"$f":"'[2]5.2 Asset Age Profile'!DT109","v":0},{"$f":"'[2]5.2 Asset Age Profile'!DU109","v":0},{"$f":"'[2]5.2 Asset Age Profile'!DV109","v":0},{"$f":"'[2]5.2 Asset Age Profile'!DW109","v":0},{"$f":"'[2]5.2 Asset Age Profile'!DX109","v":0},{"$f":"'[2]5.2 Asset Age Profile'!DY109","v":0},{"$f":"'[2]5.2 Asset Age Profile'!DZ109","v":0},{"$f":"'[2]5.2 Asset Age Profile'!EA109","v":0},{"$f":"'[2]5.2 Asset Age Profile'!EB109","v":0},{"$f":"'[2]5.2 Asset Age Profile'!EC109","v":0},{"$f":"'[2]5.2 Asset Age Profile'!ED109","v":0},{"$f":"'[2]5.2 Asset Age Profile'!EE109","v":0},{"$f":"'[2]5.2 Asset Age Profile'!EF109","v":0},{"$f":"'[2]5.2 Asset Age Profile'!EG109","v":0},{"$f":"'[2]5.2 Asset Age Profile'!EH109","v":0},{"$f":"'[2]5.2 Asset Age Profile'!EI109","v":0},{"$f":"'[2]5.2 Asset Age Profile'!EJ109","v":0}]
["ED_ASS521_00100",null,"> 66 kV & < = 132 kV  ; Circuit Breaker",null,null,null,null,null,null,null,null,null,null,{"$f":"'[2]5.2 Asset Age Profile'!N110","v":54.9},{"$f":"'[2]5.2 Asset Age Profile'!O110","v":0},{"$f":"'[2]5.2 Asset Age Profile'!P110","v":0},{"$f":"'[2]5.2 Asset Age Profile'!Q110","v":0},{"$f":"'[2]5.2 Asset Age Profile'!R110","v":0},{"$f":"'[2]5.2 Asset Age Profile'!S110","v":0},{"$f":"'[2]5.2 Asset Age Profile'!T110","v":0},{"$f":"'[2]5.2 Asset Age Profile'!U110","v":0},{"$f":"'[2]5.2 Asset Age Profile'!V110","v":0},{"$f":"'[2]5.2 Asset Age Profile'!W110","v":0},{"$f":"'[2]5.2 Asset Age Profile'!X110","v":0},{"$f":"'[2]5.2 Asset Age Profile'!Y110","v":7.4094534211370817},{"$f":"'[2]5.2 Asset Age Profile'!Z110","v":0},{"$f":"'[2]5.2 Asset Age Profile'!AA110","v":0},{"$f":"'[2]5.2 Asset Age Profile'!AB110","v":0},{"$f":"'[2]5.2 Asset Age Profile'!AC110","v":0},{"$f":"'[2]5.2 Asset Age Profile'!AD110","v":0},{"$f":"'[2]5.2 Asset Age Profile'!AE110","v":0},{"$f":"'[2]5.2 Asset Age Profile'!AF110","v":0},{"$f":"'[2]5.2 Asset Age Profile'!AG110","v":0},{"$f":"'[2]5.2 Asset Age Profile'!AH110","v":0},{"$f":"'[2]5.2 Asset Age Profile'!AI110","v":0},{"$f":"'[2]5.2 Asset Age Profile'!AJ110","v":0},{"$f":"'[2]5.2 Asset Age Profile'!AK110","v":3},{"$f":"'[2]5.2 Asset Age Profile'!AL110","v":3},{"$f":"'[2]5.2 Asset Age Profile'!AM110","v":5},{"$f":"'[2]5.2 Asset Age Profile'!AN110","v":13},{"$f":"'[2]5.2 Asset Age Profile'!AO110","v":4},{"$f":"'[2]5.2 Asset Age Profile'!AP110","v":1},{"$f":"'[2]5.2 Asset Age Profile'!AQ110","v":21},{"$f":"'[2]5.2 Asset Age Profile'!AR110","v":1},{"$f":"'[2]5.2 Asset Age Profile'!AS110","v":7},{"$f":"'[2]5.2 Asset Age Profile'!AT110","v":1},{"$f":"'[2]5.2 Asset Age Profile'!AU110","v":0},{"$f":"'[2]5.2 Asset Age Profile'!AV110","v":13},{"$f":"'[2]5.2 Asset Age Profile'!AW110","v":2},{"$f":"'[2]5.2 Asset Age Profile'!AX110","v":0},{"$f":"'[2]5.2 Asset Age Profile'!AY110","v":1},{"$f":"'[2]5.2 Asset Age Profile'!AZ110","v":0},{"$f":"'[2]5.2 Asset Age Profile'!BA110","v":0},{"$f":"'[2]5.2 Asset Age Profile'!BB110","v":1},{"$f":"'[2]5.2 Asset Age Profile'!BC110","v":0},{"$f":"'[2]5.2 Asset Age Profile'!BD110","v":3},{"$f":"'[2]5.2 Asset Age Profile'!BE110","v":2},{"$f":"'[2]5.2 Asset Age Profile'!BF110","v":0},{"$f":"'[2]5.2 Asset Age Profile'!BG110","v":1},{"$f":"'[2]5.2 Asset Age Profile'!BH110","v":0},{"$f":"'[2]5.2 Asset Age Profile'!BI110","v":2},{"$f":"'[2]5.2 Asset Age Profile'!BJ110","v":1},{"$f":"'[2]5.2 Asset Age Profile'!BK110","v":0},{"$f":"'[2]5.2 Asset Age Profile'!BL110","v":0},{"$f":"'[2]5.2 Asset Age Profile'!BM110","v":2},{"$f":"'[2]5.2 Asset Age Profile'!BN110","v":1},{"$f":"'[2]5.2 Asset Age Profile'!BO110","v":3},{"$f":"'[2]5.2 Asset Age Profile'!BP110","v":0},{"$f":"'[2]5.2 Asset Age Profile'!BQ110","v":0},{"$f":"'[2]5.2 Asset Age Profile'!BR110","v":4},{"$f":"'[2]5.2 Asset Age Profile'!BS110","v":0},{"$f":"'[2]5.2 Asset Age Profile'!BT110","v":0},{"$f":"'[2]5.2 Asset Age Profile'!BU110","v":0},{"$f":"'[2]5.2 Asset Age Profile'!BV110","v":0},{"$f":"'[2]5.2 Asset Age Profile'!BW110","v":0},{"$f":"'[2]5.2 Asset Age Profile'!BX110","v":0},{"$f":"'[2]5.2 Asset Age Profile'!BY110","v":0},{"$f":"'[2]5.2 Asset Age Profile'!BZ110","v":0},{"$f":"'[2]5.2 Asset Age Profile'!CA110","v":0},{"$f":"'[2]5.2 Asset Age Profile'!CB110","v":1},{"$f":"'[2]5.2 Asset Age Profile'!CC110","v":0},{"$f":"'[2]5.2 Asset Age Profile'!CD110","v":0},{"$f":"'[2]5.2 Asset Age Profile'!CE110","v":0},{"$f":"'[2]5.2 Asset Age Profile'!CF110","v":0},{"$f":"'[2]5.2 Asset Age Profile'!CG110","v":0},{"$f":"'[2]5.2 Asset Age Profile'!CH110","v":4},{"$f":"'[2]5.2 Asset Age Profile'!CI110","v":0},{"$f":"'[2]5.2 Asset Age Profile'!CJ110","v":0},{"$f":"'[2]5.2 Asset Age Profile'!CK110","v":0},{"$f":"'[2]5.2 Asset Age Profile'!CL110","v":0},{"$f":"'[2]5.2 Asset Age Profile'!CM110","v":0},{"$f":"'[2]5.2 Asset Age Profile'!CN110","v":0},{"$f":"'[2]5.2 Asset Age Profile'!CO110","v":0},{"$f":"'[2]5.2 Asset Age Profile'!CP110","v":0},{"$f":"'[2]5.2 Asset Age Profile'!CQ110","v":0},{"$f":"'[2]5.2 Asset Age Profile'!CR110","v":0},{"$f":"'[2]5.2 Asset Age Profile'!CS110","v":0},{"$f":"'[2]5.2 Asset Age Profile'!CT110","v":0},{"$f":"'[2]5.2 Asset Age Profile'!CU110","v":0},{"$f":"'[2]5.2 Asset Age Profile'!CV110","v":0},{"$f":"'[2]5.2 Asset Age Profile'!CW110","v":0},{"$f":"'[2]5.2 Asset Age Profile'!CX110","v":0},{"$f":"'[2]5.2 Asset Age Profile'!CY110","v":0},{"$f":"'[2]5.2 Asset Age Profile'!CZ110","v":0},{"$f":"'[2]5.2 Asset Age Profile'!DA110","v":0},{"$f":"'[2]5.2 Asset Age Profile'!DB110","v":0},{"$f":"'[2]5.2 Asset Age Profile'!DC110","v":0},{"$f":"'[2]5.2 Asset Age Profile'!DD110","v":0},{"$f":"'[2]5.2 Asset Age Profile'!DE110","v":0},{"$f":"'[2]5.2 Asset Age Profile'!DF110","v":0},{"$f":"'[2]5.2 Asset Age Profile'!DG110","v":0},{"$f":"'[2]5.2 Asset Age Profile'!DH110","v":0},{"$f":"'[2]5.2 Asset Age Profile'!DI110","v":0},{"$f":"'[2]5.2 Asset Age Profile'!DJ110","v":0},{"$f":"'[2]5.2 Asset Age Profile'!DK110","v":0},{"$f":"'[2]5.2 Asset Age Profile'!DL110","v":0},{"$f":"'[2]5.2 Asset Age Profile'!DM110","v":0},{"$f":"'[2]5.2 Asset Age Profile'!DN110","v":0},{"$f":"'[2]5.2 Asset Age Profile'!DO110","v":0},{"$f":"'[2]5.2 Asset Age Profile'!DP110","v":0},{"$f":"'[2]5.2 Asset Age Profile'!DQ110","v":0},{"$f":"'[2]5.2 Asset Age Profile'!DR110","v":0},{"$f":"'[2]5.2 Asset Age Profile'!DS110","v":0},{"$f":"'[2]5.2 Asset Age Profile'!DT110","v":0},{"$f":"'[2]5.2 Asset Age Profile'!DU110","v":0},{"$f":"'[2]5.2 Asset Age Profile'!DV110","v":0},{"$f":"'[2]5.2 Asset Age Profile'!DW110","v":0},{"$f":"'[2]5.2 Asset Age Profile'!DX110","v":0},{"$f":"'[2]5.2 Asset Age Profile'!DY110","v":0},{"$f":"'[2]5.2 Asset Age Profile'!DZ110","v":0},{"$f":"'[2]5.2 Asset Age Profile'!EA110","v":0},{"$f":"'[2]5.2 Asset Age Profile'!EB110","v":0},{"$f":"'[2]5.2 Asset Age Profile'!EC110","v":0},{"$f":"'[2]5.2 Asset Age Profile'!ED110","v":0},{"$f":"'[2]5.2 Asset Age Profile'!EE110","v":0},{"$f":"'[2]5.2 Asset Age Profile'!EF110","v":0},{"$f":"'[2]5.2 Asset Age Profile'!EG110","v":0},{"$f":"'[2]5.2 Asset Age Profile'!EH110","v":0},{"$f":"'[2]5.2 Asset Age Profile'!EI110","v":0},{"$f":"'[2]5.2 Asset Age Profile'!EJ110","v":0}]
["ED_ASS521_00101",null,"> 132 kV ; Switch",null,null,null,null,null,null,null,null,null,null,{"$f":"'[2]5.2 Asset Age Profile'!N111","v":0},{"$f":"'[2]5.2 Asset Age Profile'!O111","v":0},{"$f":"'[2]5.2 Asset Age Profile'!P111","v":0},{"$f":"'[2]5.2 Asset Age Profile'!Q111","v":0},{"$f":"'[2]5.2 Asset Age Profile'!R111","v":0},{"$f":"'[2]5.2 Asset Age Profile'!S111","v":0},{"$f":"'[2]5.2 Asset Age Profile'!T111","v":0},{"$f":"'[2]5.2 Asset Age Profile'!U111","v":0},{"$f":"'[2]5.2 Asset Age Profile'!V111","v":0},{"$f":"'[2]5.2 Asset Age Profile'!W111","v":0},{"$f":"'[2]5.2 Asset Age Profile'!X111","v":0},{"$f":"'[2]5.2 Asset Age Profile'!Y111","v":0},{"$f":"'[2]5.2 Asset Age Profile'!Z111","v":0},{"$f":"'[2]5.2 Asset Age Profile'!AA111","v":0},{"$f":"'[2]5.2 Asset Age Profile'!AB111","v":0},{"$f":"'[2]5.2 Asset Age Profile'!AC111","v":0},{"$f":"'[2]5.2 Asset Age Profile'!AD111","v":0},{"$f":"'[2]5.2 Asset Age Profile'!AE111","v":0},{"$f":"'[2]5.2 Asset Age Profile'!AF111","v":0},{"$f":"'[2]5.2 Asset Age Profile'!AG111","v":0},{"$f":"'[2]5.2 Asset Age Profile'!AH111","v":0},{"$f":"'[2]5.2 Asset Age Profile'!AI111","v":0},{"$f":"'[2]5.2 Asset Age Profile'!AJ111","v":0},{"$f":"'[2]5.2 Asset Age Profile'!AK111","v":0},{"$f":"'[2]5.2 Asset Age Profile'!AL111","v":0},{"$f":"'[2]5.2 Asset Age Profile'!AM111","v":0},{"$f":"'[2]5.2 Asset Age Profile'!AN111","v":0},{"$f":"'[2]5.2 Asset Age Profile'!AO111","v":0},{"$f":"'[2]5.2 Asset Age Profile'!AP111","v":0},{"$f":"'[2]5.2 Asset Age Profile'!AQ111","v":0},{"$f":"'[2]5.2 Asset Age Profile'!AR111","v":0},{"$f":"'[2]5.2 Asset Age Profile'!AS111","v":0},{"$f":"'[2]5.2 Asset Age Profile'!AT111","v":0},{"$f":"'[2]5.2 Asset Age Profile'!AU111","v":0},{"$f":"'[2]5.2 Asset Age Profile'!AV111","v":0},{"$f":"'[2]5.2 Asset Age Profile'!AW111","v":0},{"$f":"'[2]5.2 Asset Age Profile'!AX111","v":0},{"$f":"'[2]5.2 Asset Age Profile'!AY111","v":0},{"$f":"'[2]5.2 Asset Age Profile'!AZ111","v":0},{"$f":"'[2]5.2 Asset Age Profile'!BA111","v":0},{"$f":"'[2]5.2 Asset Age Profile'!BB111","v":0},{"$f":"'[2]5.2 Asset Age Profile'!BC111","v":0},{"$f":"'[2]5.2 Asset Age Profile'!BD111","v":0},{"$f":"'[2]5.2 Asset Age Profile'!BE111","v":0},{"$f":"'[2]5.2 Asset Age Profile'!BF111","v":0},{"$f":"'[2]5.2 Asset Age Profile'!BG111","v":0},{"$f":"'[2]5.2 Asset Age Profile'!BH111","v":0},{"$f":"'[2]5.2 Asset Age Profile'!BI111","v":0},{"$f":"'[2]5.2 Asset Age Profile'!BJ111","v":0},{"$f":"'[2]5.2 Asset Age Profile'!BK111","v":0},{"$f":"'[2]5.2 Asset Age Profile'!BL111","v":0},{"$f":"'[2]5.2 Asset Age Profile'!BM111","v":0},{"$f":"'[2]5.2 Asset Age Profile'!BN111","v":0},{"$f":"'[2]5.2 Asset Age Profile'!BO111","v":0},{"$f":"'[2]5.2 Asset Age Profile'!BP111","v":0},{"$f":"'[2]5.2 Asset Age Profile'!BQ111","v":0},{"$f":"'[2]5.2 Asset Age Profile'!BR111","v":0},{"$f":"'[2]5.2 Asset Age Profile'!BS111","v":0},{"$f":"'[2]5.2 Asset Age Profile'!BT111","v":0},{"$f":"'[2]5.2 Asset Age Profile'!BU111","v":0},{"$f":"'[2]5.2 Asset Age Profile'!BV111","v":0},{"$f":"'[2]5.2 Asset Age Profile'!BW111","v":0},{"$f":"'[2]5.2 Asset Age Profile'!BX111","v":0},{"$f":"'[2]5.2 Asset Age Profile'!BY111","v":0},{"$f":"'[2]5.2 Asset Age Profile'!BZ111","v":0},{"$f":"'[2]5.2 Asset Age Profile'!CA111","v":0},{"$f":"'[2]5.2 Asset Age Profile'!CB111","v":0},{"$f":"'[2]5.2 Asset Age Profile'!CC111","v":0},{"$f":"'[2]5.2 Asset Age Profile'!CD111","v":0},{"$f":"'[2]5.2 Asset Age Profile'!CE111","v":0},{"$f":"'[2]5.2 Asset Age Profile'!CF111","v":0},{"$f":"'[2]5.2 Asset Age Profile'!CG111","v":0},{"$f":"'[2]5.2 Asset Age Profile'!CH111","v":0},{"$f":"'[2]5.2 Asset Age Profile'!CI111","v":0},{"$f":"'[2]5.2 Asset Age Profile'!CJ111","v":0},{"$f":"'[2]5.2 Asset Age Profile'!CK111","v":0},{"$f":"'[2]5.2 Asset Age Profile'!CL111","v":0},{"$f":"'[2]5.2 Asset Age Profile'!CM111","v":0},{"$f":"'[2]5.2 Asset Age Profile'!CN111","v":0},{"$f":"'[2]5.2 Asset Age Profile'!CO111","v":0},{"$f":"'[2]5.2 Asset Age Profile'!CP111","v":0},{"$f":"'[2]5.2 Asset Age Profile'!CQ111","v":0},{"$f":"'[2]5.2 Asset Age Profile'!CR111","v":0},{"$f":"'[2]5.2 Asset Age Profile'!CS111","v":0},{"$f":"'[2]5.2 Asset Age Profile'!CT111","v":0},{"$f":"'[2]5.2 Asset Age Profile'!CU111","v":0},{"$f":"'[2]5.2 Asset Age Profile'!CV111","v":0},{"$f":"'[2]5.2 Asset Age Profile'!CW111","v":0},{"$f":"'[2]5.2 Asset Age Profile'!CX111","v":0},{"$f":"'[2]5.2 Asset Age Profile'!CY111","v":0},{"$f":"'[2]5.2 Asset Age Profile'!CZ111","v":0},{"$f":"'[2]5.2 Asset Age Profile'!DA111","v":0},{"$f":"'[2]5.2 Asset Age Profile'!DB111","v":0},{"$f":"'[2]5.2 Asset Age Profile'!DC111","v":0},{"$f":"'[2]5.2 Asset Age Profile'!DD111","v":0},{"$f":"'[2]5.2 Asset Age Profile'!DE111","v":0},{"$f":"'[2]5.2 Asset Age Profile'!DF111","v":0},{"$f":"'[2]5.2 Asset Age Profile'!DG111","v":0},{"$f":"'[2]5.2 Asset Age Profile'!DH111","v":0},{"$f":"'[2]5.2 Asset Age Profile'!DI111","v":0},{"$f":"'[2]5.2 Asset Age Profile'!DJ111","v":0},{"$f":"'[2]5.2 Asset Age Profile'!DK111","v":0},{"$f":"'[2]5.2 Asset Age Profile'!DL111","v":0},{"$f":"'[2]5.2 Asset Age Profile'!DM111","v":0},{"$f":"'[2]5.2 Asset Age Profile'!DN111","v":0},{"$f":"'[2]5.2 Asset Age Profile'!DO111","v":0},{"$f":"'[2]5.2 Asset Age Profile'!DP111","v":0},{"$f":"'[2]5.2 Asset Age Profile'!DQ111","v":0},{"$f":"'[2]5.2 Asset Age Profile'!DR111","v":0},{"$f":"'[2]5.2 Asset Age Profile'!DS111","v":0},{"$f":"'[2]5.2 Asset Age Profile'!DT111","v":0},{"$f":"'[2]5.2 Asset Age Profile'!DU111","v":0},{"$f":"'[2]5.2 Asset Age Profile'!DV111","v":0},{"$f":"'[2]5.2 Asset Age Profile'!DW111","v":0},{"$f":"'[2]5.2 Asset Age Profile'!DX111","v":0},{"$f":"'[2]5.2 Asset Age Profile'!DY111","v":0},{"$f":"'[2]5.2 Asset Age Profile'!DZ111","v":0},{"$f":"'[2]5.2 Asset Age Profile'!EA111","v":0},{"$f":"'[2]5.2 Asset Age Profile'!EB111","v":0},{"$f":"'[2]5.2 Asset Age Profile'!EC111","v":0},{"$f":"'[2]5.2 Asset Age Profile'!ED111","v":0},{"$f":"'[2]5.2 Asset Age Profile'!EE111","v":0},{"$f":"'[2]5.2 Asset Age Profile'!EF111","v":0},{"$f":"'[2]5.2 Asset Age Profile'!EG111","v":0},{"$f":"'[2]5.2 Asset Age Profile'!EH111","v":0},{"$f":"'[2]5.2 Asset Age Profile'!EI111","v":0},{"$f":"'[2]5.2 Asset Age Profile'!EJ111","v":0}]
["ED_ASS521_00102",null,"> 132 kV ; Circuit Breaker",null,null,null,null,null,null,null,null,null,null,{"$f":"'[2]5.2 Asset Age Profile'!N112","v":0},{"$f":"'[2]5.2 Asset Age Profile'!O112","v":0},{"$f":"'[2]5.2 Asset Age Profile'!P112","v":0},{"$f":"'[2]5.2 Asset Age Profile'!Q112","v":0},{"$f":"'[2]5.2 Asset Age Profile'!R112","v":0},{"$f":"'[2]5.2 Asset Age Profile'!S112","v":0},{"$f":"'[2]5.2 Asset Age Profile'!T112","v":0},{"$f":"'[2]5.2 Asset Age Profile'!U112","v":0},{"$f":"'[2]5.2 Asset Age Profile'!V112","v":0},{"$f":"'[2]5.2 Asset Age Profile'!W112","v":0},{"$f":"'[2]5.2 Asset Age Profile'!X112","v":0},{"$f":"'[2]5.2 Asset Age Profile'!Y112","v":0},{"$f":"'[2]5.2 Asset Age Profile'!Z112","v":0},{"$f":"'[2]5.2 Asset Age Profile'!AA112","v":0},{"$f":"'[2]5.2 Asset Age Profile'!AB112","v":0},{"$f":"'[2]5.2 Asset Age Profile'!AC112","v":0},{"$f":"'[2]5.2 Asset Age Profile'!AD112","v":0},{"$f":"'[2]5.2 Asset Age Profile'!AE112","v":0},{"$f":"'[2]5.2 Asset Age Profile'!AF112","v":0},{"$f":"'[2]5.2 Asset Age Profile'!AG112","v":0},{"$f":"'[2]5.2 Asset Age Profile'!AH112","v":0},{"$f":"'[2]5.2 Asset Age Profile'!AI112","v":0},{"$f":"'[2]5.2 Asset Age Profile'!AJ112","v":0},{"$f":"'[2]5.2 Asset Age Profile'!AK112","v":0},{"$f":"'[2]5.2 Asset Age Profile'!AL112","v":0},{"$f":"'[2]5.2 Asset Age Profile'!AM112","v":0},{"$f":"'[2]5.2 Asset Age Profile'!AN112","v":0},{"$f":"'[2]5.2 Asset Age Profile'!AO112","v":0},{"$f":"'[2]5.2 Asset Age Profile'!AP112","v":0},{"$f":"'[2]5.2 Asset Age Profile'!AQ112","v":0},{"$f":"'[2]5.2 Asset Age Profile'!AR112","v":0},{"$f":"'[2]5.2 Asset Age Profile'!AS112","v":0},{"$f":"'[2]5.2 Asset Age Profile'!AT112","v":0},{"$f":"'[2]5.2 Asset Age Profile'!AU112","v":0},{"$f":"'[2]5.2 Asset Age Profile'!AV112","v":0},{"$f":"'[2]5.2 Asset Age Profile'!AW112","v":0},{"$f":"'[2]5.2 Asset Age Profile'!AX112","v":0},{"$f":"'[2]5.2 Asset Age Profile'!AY112","v":0},{"$f":"'[2]5.2 Asset Age Profile'!AZ112","v":0},{"$f":"'[2]5.2 Asset Age Profile'!BA112","v":0},{"$f":"'[2]5.2 Asset Age Profile'!BB112","v":0},{"$f":"'[2]5.2 Asset Age Profile'!BC112","v":0},{"$f":"'[2]5.2 Asset Age Profile'!BD112","v":0},{"$f":"'[2]5.2 Asset Age Profile'!BE112","v":0},{"$f":"'[2]5.2 Asset Age Profile'!BF112","v":0},{"$f":"'[2]5.2 Asset Age Profile'!BG112","v":0},{"$f":"'[2]5.2 Asset Age Profile'!BH112","v":0},{"$f":"'[2]5.2 Asset Age Profile'!BI112","v":0},{"$f":"'[2]5.2 Asset Age Profile'!BJ112","v":0},{"$f":"'[2]5.2 Asset Age Profile'!BK112","v":0},{"$f":"'[2]5.2 Asset Age Profile'!BL112","v":0},{"$f":"'[2]5.2 Asset Age Profile'!BM112","v":0},{"$f":"'[2]5.2 Asset Age Profile'!BN112","v":0},{"$f":"'[2]5.2 Asset Age Profile'!BO112","v":0},{"$f":"'[2]5.2 Asset Age Profile'!BP112","v":0},{"$f":"'[2]5.2 Asset Age Profile'!BQ112","v":0},{"$f":"'[2]5.2 Asset Age Profile'!BR112","v":0},{"$f":"'[2]5.2 Asset Age Profile'!BS112","v":0},{"$f":"'[2]5.2 Asset Age Profile'!BT112","v":0},{"$f":"'[2]5.2 Asset Age Profile'!BU112","v":0},{"$f":"'[2]5.2 Asset Age Profile'!BV112","v":0},{"$f":"'[2]5.2 Asset Age Profile'!BW112","v":0},{"$f":"'[2]5.2 Asset Age Profile'!BX112","v":0},{"$f":"'[2]5.2 Asset Age Profile'!BY112","v":0},{"$f":"'[2]5.2 Asset Age Profile'!BZ112","v":0},{"$f":"'[2]5.2 Asset Age Profile'!CA112","v":0},{"$f":"'[2]5.2 Asset Age Profile'!CB112","v":0},{"$f":"'[2]5.2 Asset Age Profile'!CC112","v":0},{"$f":"'[2]5.2 Asset Age Profile'!CD112","v":0},{"$f":"'[2]5.2 Asset Age Profile'!CE112","v":0},{"$f":"'[2]5.2 Asset Age Profile'!CF112","v":0},{"$f":"'[2]5.2 Asset Age Profile'!CG112","v":0},{"$f":"'[2]5.2 Asset Age Profile'!CH112","v":0},{"$f":"'[2]5.2 Asset Age Profile'!CI112","v":0},{"$f":"'[2]5.2 Asset Age Profile'!CJ112","v":0},{"$f":"'[2]5.2 Asset Age Profile'!CK112","v":0},{"$f":"'[2]5.2 Asset Age Profile'!CL112","v":0},{"$f":"'[2]5.2 Asset Age Profile'!CM112","v":0},{"$f":"'[2]5.2 Asset Age Profile'!CN112","v":0},{"$f":"'[2]5.2 Asset Age Profile'!CO112","v":0},{"$f":"'[2]5.2 Asset Age Profile'!CP112","v":0},{"$f":"'[2]5.2 Asset Age Profile'!CQ112","v":0},{"$f":"'[2]5.2 Asset Age Profile'!CR112","v":0},{"$f":"'[2]5.2 Asset Age Profile'!CS112","v":0},{"$f":"'[2]5.2 Asset Age Profile'!CT112","v":0},{"$f":"'[2]5.2 Asset Age Profile'!CU112","v":0},{"$f":"'[2]5.2 Asset Age Profile'!CV112","v":0},{"$f":"'[2]5.2 Asset Age Profile'!CW112","v":0},{"$f":"'[2]5.2 Asset Age Profile'!CX112","v":0},{"$f":"'[2]5.2 Asset Age Profile'!CY112","v":0},{"$f":"'[2]5.2 Asset Age Profile'!CZ112","v":0},{"$f":"'[2]5.2 Asset Age Profile'!DA112","v":0},{"$f":"'[2]5.2 Asset Age Profile'!DB112","v":0},{"$f":"'[2]5.2 Asset Age Profile'!DC112","v":0},{"$f":"'[2]5.2 Asset Age Profile'!DD112","v":0},{"$f":"'[2]5.2 Asset Age Profile'!DE112","v":0},{"$f":"'[2]5.2 Asset Age Profile'!DF112","v":0},{"$f":"'[2]5.2 Asset Age Profile'!DG112","v":0},{"$f":"'[2]5.2 Asset Age Profile'!DH112","v":0},{"$f":"'[2]5.2 Asset Age Profile'!DI112","v":0},{"$f":"'[2]5.2 Asset Age Profile'!DJ112","v":0},{"$f":"'[2]5.2 Asset Age Profile'!DK112","v":0},{"$f":"'[2]5.2 Asset Age Profile'!DL112","v":0},{"$f":"'[2]5.2 Asset Age Profile'!DM112","v":0},{"$f":"'[2]5.2 Asset Age Profile'!DN112","v":0},{"$f":"'[2]5.2 Asset Age Profile'!DO112","v":0},{"$f":"'[2]5.2 Asset Age Profile'!DP112","v":0},{"$f":"'[2]5.2 Asset Age Profile'!DQ112","v":0},{"$f":"'[2]5.2 Asset Age Profile'!DR112","v":0},{"$f":"'[2]5.2 Asset Age Profile'!DS112","v":0},{"$f":"'[2]5.2 Asset Age Profile'!DT112","v":0},{"$f":"'[2]5.2 Asset Age Profile'!DU112","v":0},{"$f":"'[2]5.2 Asset Age Profile'!DV112","v":0},{"$f":"'[2]5.2 Asset Age Profile'!DW112","v":0},{"$f":"'[2]5.2 Asset Age Profile'!DX112","v":0},{"$f":"'[2]5.2 Asset Age Profile'!DY112","v":0},{"$f":"'[2]5.2 Asset Age Profile'!DZ112","v":0},{"$f":"'[2]5.2 Asset Age Profile'!EA112","v":0},{"$f":"'[2]5.2 Asset Age Profile'!EB112","v":0},{"$f":"'[2]5.2 Asset Age Profile'!EC112","v":0},{"$f":"'[2]5.2 Asset Age Profile'!ED112","v":0},{"$f":"'[2]5.2 Asset Age Profile'!EE112","v":0},{"$f":"'[2]5.2 Asset Age Profile'!EF112","v":0},{"$f":"'[2]5.2 Asset Age Profile'!EG112","v":0},{"$f":"'[2]5.2 Asset Age Profile'!EH112","v":0},{"$f":"'[2]5.2 Asset Age Profile'!EI112","v":0},{"$f":"'[2]5.2 Asset Age Profile'!EJ112","v":0}]
["ED_ASS521_00103",null,"Other",null,"DNSP NAME","REPEX","SWITCHGEAR","Other","DESCRIPTOR METRIC","MEAN ECONOMIC LIFE","YEARS","NUMBER",null,{"$f":"'[2]5.2 Asset Age Profile'!N113","v":54.625},{"$f":"'[2]5.2 Asset Age Profile'!O113","v":0},{"$f":"'[2]5.2 Asset Age Profile'!P113","v":0},{"$f":"'[2]5.2 Asset Age Profile'!Q113","v":0},{"$f":"'[2]5.2 Asset Age Profile'!R113","v":0},{"$f":"'[2]5.2 Asset Age Profile'!S113","v":0},{"$f":"'[2]5.2 Asset Age Profile'!T113","v":0},{"$f":"'[2]5.2 Asset Age Profile'!U113","v":0},{"$f":"'[2]5.2 Asset Age Profile'!V113","v":0},{"$f":"'[2]5.2 Asset Age Profile'!W113","v":0},{"$f":"'[2]5.2 Asset Age Profile'!X113","v":0},{"$f":"'[2]5.2 Asset Age Profile'!Y113","v":7.390872749547241},{"$f":"'[2]5.2 Asset Age Profile'!Z113","v":0},{"$f":"'[2]5.2 Asset Age Profile'!AA113","v":0},{"$f":"'[2]5.2 Asset Age Profile'!AB113","v":0},{"$f":"'[2]5.2 Asset Age Profile'!AC113","v":0},{"$f":"'[2]5.2 Asset Age Profile'!AD113","v":0},{"$f":"'[2]5.2 Asset Age Profile'!AE113","v":0},{"$f":"'[2]5.2 Asset Age Profile'!AF113","v":0},{"$f":"'[2]5.2 Asset Age Profile'!AG113","v":0},{"$f":"'[2]5.2 Asset Age Profile'!AH113","v":0},{"$f":"'[2]5.2 Asset Age Profile'!AI113","v":0},{"$f":"'[2]5.2 Asset Age Profile'!AJ113","v":0},{"$f":"'[2]5.2 Asset Age Profile'!AK113","v":0},{"$f":"'[2]5.2 Asset Age Profile'!AL113","v":0},{"$f":"'[2]5.2 Asset Age Profile'!AM113","v":0},{"$f":"'[2]5.2 Asset Age Profile'!AN113","v":0},{"$f":"'[2]5.2 Asset Age Profile'!AO113","v":0},{"$f":"'[2]5.2 Asset Age Profile'!AP113","v":0},{"$f":"'[2]5.2 Asset Age Profile'!AQ113","v":0},{"$f":"'[2]5.2 Asset Age Profile'!AR113","v":0},{"$f":"'[2]5.2 Asset Age Profile'!AS113","v":0},{"$f":"'[2]5.2 Asset Age Profile'!AT113","v":0},{"$f":"'[2]5.2 Asset Age Profile'!AU113","v":0},{"$f":"'[2]5.2 Asset Age Profile'!AV113","v":0},{"$f":"'[2]5.2 Asset Age Profile'!AW113","v":0},{"$f":"'[2]5.2 Asset Age Profile'!AX113","v":0},{"$f":"'[2]5.2 Asset Age Profile'!AY113","v":0},{"$f":"'[2]5.2 Asset Age Profile'!AZ113","v":0},{"$f":"'[2]5.2 Asset Age Profile'!BA113","v":0},{"$f":"'[2]5.2 Asset Age Profile'!BB113","v":0},{"$f":"'[2]5.2 Asset Age Profile'!BC113","v":0},{"$f":"'[2]5.2 Asset Age Profile'!BD113","v":0},{"$f":"'[2]5.2 Asset Age Profile'!BE113","v":0},{"$f":"'[2]5.2 Asset Age Profile'!BF113","v":0},{"$f":"'[2]5.2 Asset Age Profile'!BG113","v":0},{"$f":"'[2]5.2 Asset Age Profile'!BH113","v":0},{"$f":"'[2]5.2 Asset Age Profile'!BI113","v":0},{"$f":"'[2]5.2 Asset Age Profile'!BJ113","v":0},{"$f":"'[2]5.2 Asset Age Profile'!BK113","v":0},{"$f":"'[2]5.2 Asset Age Profile'!BL113","v":0},{"$f":"'[2]5.2 Asset Age Profile'!BM113","v":0},{"$f":"'[2]5.2 Asset Age Profile'!BN113","v":0},{"$f":"'[2]5.2 Asset Age Profile'!BO113","v":0},{"$f":"'[2]5.2 Asset Age Profile'!BP113","v":0},{"$f":"'[2]5.2 Asset Age Profile'!BQ113","v":0},{"$f":"'[2]5.2 Asset Age Profile'!BR113","v":0},{"$f":"'[2]5.2 Asset Age Profile'!BS113","v":0},{"$f":"'[2]5.2 Asset Age Profile'!BT113","v":0},{"$f":"'[2]5.2 Asset Age Profile'!BU113","v":0},{"$f":"'[2]5.2 Asset Age Profile'!BV113","v":0},{"$f":"'[2]5.2 Asset Age Profile'!BW113","v":0},{"$f":"'[2]5.2 Asset Age Profile'!BX113","v":0},{"$f":"'[2]5.2 Asset Age Profile'!BY113","v":0},{"$f":"'[2]5.2 Asset Age Profile'!BZ113","v":0},{"$f":"'[2]5.2 Asset Age Profile'!CA113","v":0},{"$f":"'[2]5.2 Asset Age Profile'!CB113","v":0},{"$f":"'[2]5.2 Asset Age Profile'!CC113","v":0},{"$f":"'[2]5.2 Asset Age Profile'!CD113","v":0},{"$f":"'[2]5.2 Asset Age Profile'!CE113","v":0},{"$f":"'[2]5.2 Asset Age Profile'!CF113","v":0},{"$f":"'[2]5.2 Asset Age Profile'!CG113","v":0},{"$f":"'[2]5.2 Asset Age Profile'!CH113","v":0},{"$f":"'[2]5.2 Asset Age Profile'!CI113","v":0},{"$f":"'[2]5.2 Asset Age Profile'!CJ113","v":0},{"$f":"'[2]5.2 Asset Age Profile'!CK113","v":0},{"$f":"'[2]5.2 Asset Age Profile'!CL113","v":0},{"$f":"'[2]5.2 Asset Age Profile'!CM113","v":0},{"$f":"'[2]5.2 Asset Age Profile'!CN113","v":0},{"$f":"'[2]5.2 Asset Age Profile'!CO113","v":0},{"$f":"'[2]5.2 Asset Age Profile'!CP113","v":0},{"$f":"'[2]5.2 Asset Age Profile'!CQ113","v":0},{"$f":"'[2]5.2 Asset Age Profile'!CR113","v":0},{"$f":"'[2]5.2 Asset Age Profile'!CS113","v":0},{"$f":"'[2]5.2 Asset Age Profile'!CT113","v":0},{"$f":"'[2]5.2 Asset Age Profile'!CU113","v":0},{"$f":"'[2]5.2 Asset Age Profile'!CV113","v":0},{"$f":"'[2]5.2 Asset Age Profile'!CW113","v":0},{"$f":"'[2]5.2 Asset Age Profile'!CX113","v":0},{"$f":"'[2]5.2 Asset Age Profile'!CY113","v":0},{"$f":"'[2]5.2 Asset Age Profile'!CZ113","v":0},{"$f":"'[2]5.2 Asset Age Profile'!DA113","v":0},{"$f":"'[2]5.2 Asset Age Profile'!DB113","v":0},{"$f":"'[2]5.2 Asset Age Profile'!DC113","v":0},{"$f":"'[2]5.2 Asset Age Profile'!DD113","v":0},{"$f":"'[2]5.2 Asset Age Profile'!DE113","v":0},{"$f":"'[2]5.2 Asset Age Profile'!DF113","v":0},{"$f":"'[2]5.2 Asset Age Profile'!DG113","v":0},{"$f":"'[2]5.2 Asset Age Profile'!DH113","v":0},{"$f":"'[2]5.2 Asset Age Profile'!DI113","v":0},{"$f":"'[2]5.2 Asset Age Profile'!DJ113","v":0},{"$f":"'[2]5.2 Asset Age Profile'!DK113","v":0},{"$f":"'[2]5.2 Asset Age Profile'!DL113","v":0},{"$f":"'[2]5.2 Asset Age Profile'!DM113","v":0},{"$f":"'[2]5.2 Asset Age Profile'!DN113","v":0},{"$f":"'[2]5.2 Asset Age Profile'!DO113","v":0},{"$f":"'[2]5.2 Asset Age Profile'!DP113","v":0},{"$f":"'[2]5.2 Asset Age Profile'!DQ113","v":0},{"$f":"'[2]5.2 Asset Age Profile'!DR113","v":0},{"$f":"'[2]5.2 Asset Age Profile'!DS113","v":0},{"$f":"'[2]5.2 Asset Age Profile'!DT113","v":0},{"$f":"'[2]5.2 Asset Age Profile'!DU113","v":0},{"$f":"'[2]5.2 Asset Age Profile'!DV113","v":0},{"$f":"'[2]5.2 Asset Age Profile'!DW113","v":0},{"$f":"'[2]5.2 Asset Age Profile'!DX113","v":0},{"$f":"'[2]5.2 Asset Age Profile'!DY113","v":0},{"$f":"'[2]5.2 Asset Age Profile'!DZ113","v":0},{"$f":"'[2]5.2 Asset Age Profile'!EA113","v":0},{"$f":"'[2]5.2 Asset Age Profile'!EB113","v":0},{"$f":"'[2]5.2 Asset Age Profile'!EC113","v":0},{"$f":"'[2]5.2 Asset Age Profile'!ED113","v":0},{"$f":"'[2]5.2 Asset Age Profile'!EE113","v":0},{"$f":"'[2]5.2 Asset Age Profile'!EF113","v":0},{"$f":"'[2]5.2 Asset Age Profile'!EG113","v":0},{"$f":"'[2]5.2 Asset Age Profile'!EH113","v":0},{"$f":"'[2]5.2 Asset Age Profile'!EI113","v":0},{"$f":"'[2]5.2 Asset Age Profile'!EJ113","v":0}]
["ED_ASS521_00104","PUBLIC LIGHTING BY: \nASSET TYPE ; LIGHTING OBLIGATION","Luminaires ;  Major Road",null,"DNSP NAME","REPEX","PUBLIC LIGHTING","Luminaires ;  Major Road","DESCRIPTOR METRIC","MEAN ECONOMIC LIFE","YEARS","NUMBER",null,{"$f":"'[2]5.2 Asset Age Profile'!N114","v":20},{"$f":"'[2]5.2 Asset Age Profile'!O114","v":0},{"$f":"'[2]5.2 Asset Age Profile'!P114","v":0},{"$f":"'[2]5.2 Asset Age Profile'!Q114","v":0},{"$f":"'[2]5.2 Asset Age Profile'!R114","v":0},{"$f":"'[2]5.2 Asset Age Profile'!S114","v":0},{"$f":"'[2]5.2 Asset Age Profile'!T114","v":0},{"$f":"'[2]5.2 Asset Age Profile'!U114","v":0},{"$f":"'[2]5.2 Asset Age Profile'!V114","v":0},{"$f":"'[2]5.2 Asset Age Profile'!W114","v":0},{"$f":"'[2]5.2 Asset Age Profile'!X114","v":0},{"$f":"'[2]5.2 Asset Age Profile'!Y114","v":4.4721359549995796},{"$f":"'[2]5.2 Asset Age Profile'!Z114","v":0},{"$f":"'[2]5.2 Asset Age Profile'!AA114","v":0},{"$f":"'[2]5.2 Asset Age Profile'!AB114","v":0},{"$f":"'[2]5.2 Asset Age Profile'!AC114","v":0},{"$f":"'[2]5.2 Asset Age Profile'!AD114","v":0},{"$f":"'[2]5.2 Asset Age Profile'!AE114","v":0},{"$f":"'[2]5.2 Asset Age Profile'!AF114","v":0},{"$f":"'[2]5.2 Asset Age Profile'!AG114","v":0},{"$f":"'[2]5.2 Asset Age Profile'!AH114","v":0},{"$f":"'[2]5.2 Asset Age Profile'!AI114","v":0},{"$f":"'[2]5.2 Asset Age Profile'!AJ114","v":438},{"$f":"'[2]5.2 Asset Age Profile'!AK114","v":356},{"$f":"'[2]5.2 Asset Age Profile'!AL114","v":3494},{"$f":"'[2]5.2 Asset Age Profile'!AM114","v":4049},{"$f":"'[2]5.2 Asset Age Profile'!AN114","v":453},{"$f":"'[2]5.2 Asset Age Profile'!AO114","v":975},{"$f":"'[2]5.2 Asset Age Profile'!AP114","v":1564},{"$f":"'[2]5.2 Asset Age Profile'!AQ114","v":1698},{"$f":"'[2]5.2 Asset Age Profile'!AR114","v":4140},{"$f":"'[2]5.2 Asset Age Profile'!AS114","v":3493},{"$f":"'[2]5.2 Asset Age Profile'!AT114","v":1186},{"$f":"'[2]5.2 Asset Age Profile'!AU114","v":1479},{"$f":"'[2]5.2 Asset Age Profile'!AV114","v":456},{"$f":"'[2]5.2 Asset Age Profile'!AW114","v":445},{"$f":"'[2]5.2 Asset Age Profile'!AX114","v":371},{"$f":"'[2]5.2 Asset Age Profile'!AY114","v":3745},{"$f":"'[2]5.2 Asset Age Profile'!AZ114","v":828},{"$f":"'[2]5.2 Asset Age Profile'!BA114","v":529},{"$f":"'[2]5.2 Asset Age Profile'!BB114","v":75},{"$f":"'[2]5.2 Asset Age Profile'!BC114","v":77},{"$f":"'[2]5.2 Asset Age Profile'!BD114","v":83},{"$f":"'[2]5.2 Asset Age Profile'!BE114","v":76},{"$f":"'[2]5.2 Asset Age Profile'!BF114","v":66},{"$f":"'[2]5.2 Asset Age Profile'!BG114","v":470},{"$f":"'[2]5.2 Asset Age Profile'!BH114","v":37},{"$f":"'[2]5.2 Asset Age Profile'!BI114","v":989},{"$f":"'[2]5.2 Asset Age Profile'!BJ114","v":5},{"$f":"'[2]5.2 Asset Age Profile'!BK114","v":2},{"$f":"'[2]5.2 Asset Age Profile'!BL114","v":3},{"$f":"'[2]5.2 Asset Age Profile'!BM114","v":19},{"$f":"'[2]5.2 Asset Age Profile'!BN114","v":17},{"$f":"'[2]5.2 Asset Age Profile'!BO114","v":6},{"$f":"'[2]5.2 Asset Age Profile'!BP114","v":2},{"$f":"'[2]5.2 Asset Age Profile'!BQ114","v":0},{"$f":"'[2]5.2 Asset Age Profile'!BR114","v":1},{"$f":"'[2]5.2 Asset Age Profile'!BS114","v":58},{"$f":"'[2]5.2 Asset Age Profile'!BT114","v":7},{"$f":"'[2]5.2 Asset Age Profile'!BU114","v":47},{"$f":"'[2]5.2 Asset Age Profile'!BV114","v":9},{"$f":"'[2]5.2 Asset Age Profile'!BW114","v":47},{"$f":"'[2]5.2 Asset Age Profile'!BX114","v":0},{"$f":"'[2]5.2 Asset Age Profile'!BY114","v":3},{"$f":"'[2]5.2 Asset Age Profile'!BZ114","v":0},{"$f":"'[2]5.2 Asset Age Profile'!CA114","v":0},{"$f":"'[2]5.2 Asset Age Profile'!CB114","v":4},{"$f":"'[2]5.2 Asset Age Profile'!CC114","v":2},{"$f":"'[2]5.2 Asset Age Profile'!CD114","v":0},{"$f":"'[2]5.2 Asset Age Profile'!CE114","v":0},{"$f":"'[2]5.2 Asset Age Profile'!CF114","v":0},{"$f":"'[2]5.2 Asset Age Profile'!CG114","v":0},{"$f":"'[2]5.2 Asset Age Profile'!CH114","v":0},{"$f":"'[2]5.2 Asset Age Profile'!CI114","v":0},{"$f":"'[2]5.2 Asset Age Profile'!CJ114","v":0},{"$f":"'[2]5.2 Asset Age Profile'!CK114","v":0},{"$f":"'[2]5.2 Asset Age Profile'!CL114","v":0},{"$f":"'[2]5.2 Asset Age Profile'!CM114","v":0},{"$f":"'[2]5.2 Asset Age Profile'!CN114","v":0},{"$f":"'[2]5.2 Asset Age Profile'!CO114","v":0},{"$f":"'[2]5.2 Asset Age Profile'!CP114","v":0},{"$f":"'[2]5.2 Asset Age Profile'!CQ114","v":0},{"$f":"'[2]5.2 Asset Age Profile'!CR114","v":0},{"$f":"'[2]5.2 Asset Age Profile'!CS114","v":0},{"$f":"'[2]5.2 Asset Age Profile'!CT114","v":0},{"$f":"'[2]5.2 Asset Age Profile'!CU114","v":0},{"$f":"'[2]5.2 Asset Age Profile'!CV114","v":0},{"$f":"'[2]5.2 Asset Age Profile'!CW114","v":0},{"$f":"'[2]5.2 Asset Age Profile'!CX114","v":0},{"$f":"'[2]5.2 Asset Age Profile'!CY114","v":0},{"$f":"'[2]5.2 Asset Age Profile'!CZ114","v":0},{"$f":"'[2]5.2 Asset Age Profile'!DA114","v":0},{"$f":"'[2]5.2 Asset Age Profile'!DB114","v":0},{"$f":"'[2]5.2 Asset Age Profile'!DC114","v":0},{"$f":"'[2]5.2 Asset Age Profile'!DD114","v":0},{"$f":"'[2]5.2 Asset Age Profile'!DE114","v":0},{"$f":"'[2]5.2 Asset Age Profile'!DF114","v":0},{"$f":"'[2]5.2 Asset Age Profile'!DG114","v":0},{"$f":"'[2]5.2 Asset Age Profile'!DH114","v":0},{"$f":"'[2]5.2 Asset Age Profile'!DI114","v":0},{"$f":"'[2]5.2 Asset Age Profile'!DJ114","v":0},{"$f":"'[2]5.2 Asset Age Profile'!DK114","v":0},{"$f":"'[2]5.2 Asset Age Profile'!DL114","v":0},{"$f":"'[2]5.2 Asset Age Profile'!DM114","v":0},{"$f":"'[2]5.2 Asset Age Profile'!DN114","v":0},{"$f":"'[2]5.2 Asset Age Profile'!DO114","v":0},{"$f":"'[2]5.2 Asset Age Profile'!DP114","v":0},{"$f":"'[2]5.2 Asset Age Profile'!DQ114","v":0},{"$f":"'[2]5.2 Asset Age Profile'!DR114","v":0},{"$f":"'[2]5.2 Asset Age Profile'!DS114","v":0},{"$f":"'[2]5.2 Asset Age Profile'!DT114","v":0},{"$f":"'[2]5.2 Asset Age Profile'!DU114","v":0},{"$f":"'[2]5.2 Asset Age Profile'!DV114","v":0},{"$f":"'[2]5.2 Asset Age Profile'!DW114","v":0},{"$f":"'[2]5.2 Asset Age Profile'!DX114","v":0},{"$f":"'[2]5.2 Asset Age Profile'!DY114","v":0},{"$f":"'[2]5.2 Asset Age Profile'!DZ114","v":0},{"$f":"'[2]5.2 Asset Age Profile'!EA114","v":0},{"$f":"'[2]5.2 Asset Age Profile'!EB114","v":0},{"$f":"'[2]5.2 Asset Age Profile'!EC114","v":0},{"$f":"'[2]5.2 Asset Age Profile'!ED114","v":0},{"$f":"'[2]5.2 Asset Age Profile'!EE114","v":0},{"$f":"'[2]5.2 Asset Age Profile'!EF114","v":0},{"$f":"'[2]5.2 Asset Age Profile'!EG114","v":0},{"$f":"'[2]5.2 Asset Age Profile'!EH114","v":0},{"$f":"'[2]5.2 Asset Age Profile'!EI114","v":0},{"$f":"'[2]5.2 Asset Age Profile'!EJ114","v":0}]
["ED_ASS521_00105",null,"Luminaires ;  Minor Road",null,"DNSP NAME","REPEX","PUBLIC LIGHTING","Luminaires ;  Minor Road","DESCRIPTOR METRIC","MEAN ECONOMIC LIFE","YEARS","NUMBER",null,{"$f":"'[2]5.2 Asset Age Profile'!N115","v":20},{"$f":"'[2]5.2 Asset Age Profile'!O115","v":0},{"$f":"'[2]5.2 Asset Age Profile'!P115","v":0},{"$f":"'[2]5.2 Asset Age Profile'!Q115","v":0},{"$f":"'[2]5.2 Asset Age Profile'!R115","v":0},{"$f":"'[2]5.2 Asset Age Profile'!S115","v":0},{"$f":"'[2]5.2 Asset Age Profile'!T115","v":0},{"$f":"'[2]5.2 Asset Age Profile'!U115","v":0},{"$f":"'[2]5.2 Asset Age Profile'!V115","v":0},{"$f":"'[2]5.2 Asset Age Profile'!W115","v":0},{"$f":"'[2]5.2 Asset Age Profile'!X115","v":0},{"$f":"'[2]5.2 Asset Age Profile'!Y115","v":4.4721359549995796},{"$f":"'[2]5.2 Asset Age Profile'!Z115","v":0},{"$f":"'[2]5.2 Asset Age Profile'!AA115","v":0},{"$f":"'[2]5.2 Asset Age Profile'!AB115","v":0},{"$f":"'[2]5.2 Asset Age Profile'!AC115","v":0},{"$f":"'[2]5.2 Asset Age Profile'!AD115","v":0},{"$f":"'[2]5.2 Asset Age Profile'!AE115","v":0},{"$f":"'[2]5.2 Asset Age Profile'!AF115","v":0},{"$f":"'[2]5.2 Asset Age Profile'!AG115","v":0},{"$f":"'[2]5.2 Asset Age Profile'!AH115","v":0},{"$f":"'[2]5.2 Asset Age Profile'!AI115","v":0},{"$f":"'[2]5.2 Asset Age Profile'!AJ115","v":3807},{"$f":"'[2]5.2 Asset Age Profile'!AK115","v":4844},{"$f":"'[2]5.2 Asset Age Profile'!AL115","v":33483},{"$f":"'[2]5.2 Asset Age Profile'!AM115","v":27442},{"$f":"'[2]5.2 Asset Age Profile'!AN115","v":3867},{"$f":"'[2]5.2 Asset Age Profile'!AO115","v":4636},{"$f":"'[2]5.2 Asset Age Profile'!AP115","v":2510},{"$f":"'[2]5.2 Asset Age Profile'!AQ115","v":4041},{"$f":"'[2]5.2 Asset Age Profile'!AR115","v":5074},{"$f":"'[2]5.2 Asset Age Profile'!AS115","v":7098},{"$f":"'[2]5.2 Asset Age Profile'!AT115","v":3381},{"$f":"'[2]5.2 Asset Age Profile'!AU115","v":3026},{"$f":"'[2]5.2 Asset Age Profile'!AV115","v":1176},{"$f":"'[2]5.2 Asset Age Profile'!AW115","v":1188},{"$f":"'[2]5.2 Asset Age Profile'!AX115","v":874},{"$f":"'[2]5.2 Asset Age Profile'!AY115","v":7895},{"$f":"'[2]5.2 Asset Age Profile'!AZ115","v":1426},{"$f":"'[2]5.2 Asset Age Profile'!BA115","v":742},{"$f":"'[2]5.2 Asset Age Profile'!BB115","v":134},{"$f":"'[2]5.2 Asset Age Profile'!BC115","v":175},{"$f":"'[2]5.2 Asset Age Profile'!BD115","v":255},{"$f":"'[2]5.2 Asset Age Profile'!BE115","v":260},{"$f":"'[2]5.2 Asset Age Profile'!BF115","v":84},{"$f":"'[2]5.2 Asset Age Profile'!BG115","v":714},{"$f":"'[2]5.2 Asset Age Profile'!BH115","v":60},{"$f":"'[2]5.2 Asset Age Profile'!BI115","v":2328},{"$f":"'[2]5.2 Asset Age Profile'!BJ115","v":47},{"$f":"'[2]5.2 Asset Age Profile'!BK115","v":12},{"$f":"'[2]5.2 Asset Age Profile'!BL115","v":28},{"$f":"'[2]5.2 Asset Age Profile'!BM115","v":24},{"$f":"'[2]5.2 Asset Age Profile'!BN115","v":43},{"$f":"'[2]5.2 Asset Age Profile'!BO115","v":14},{"$f":"'[2]5.2 Asset Age Profile'!BP115","v":3},{"$f":"'[2]5.2 Asset Age Profile'!BQ115","v":22},{"$f":"'[2]5.2 Asset Age Profile'!BR115","v":7},{"$f":"'[2]5.2 Asset Age Profile'!BS115","v":1158},{"$f":"'[2]5.2 Asset Age Profile'!BT115","v":12},{"$f":"'[2]5.2 Asset Age Profile'!BU115","v":71},{"$f":"'[2]5.2 Asset Age Profile'!BV115","v":11},{"$f":"'[2]5.2 Asset Age Profile'!BW115","v":33},{"$f":"'[2]5.2 Asset Age Profile'!BX115","v":38},{"$f":"'[2]5.2 Asset Age Profile'!BY115","v":29},{"$f":"'[2]5.2 Asset Age Profile'!BZ115","v":11},{"$f":"'[2]5.2 Asset Age Profile'!CA115","v":20},{"$f":"'[2]5.2 Asset Age Profile'!CB115","v":1},{"$f":"'[2]5.2 Asset Age Profile'!CC115","v":19},{"$f":"'[2]5.2 Asset Age Profile'!CD115","v":0},{"$f":"'[2]5.2 Asset Age Profile'!CE115","v":0},{"$f":"'[2]5.2 Asset Age Profile'!CF115","v":11},{"$f":"'[2]5.2 Asset Age Profile'!CG115","v":1},{"$f":"'[2]5.2 Asset Age Profile'!CH115","v":1},{"$f":"'[2]5.2 Asset Age Profile'!CI115","v":0},{"$f":"'[2]5.2 Asset Age Profile'!CJ115","v":0},{"$f":"'[2]5.2 Asset Age Profile'!CK115","v":0},{"$f":"'[2]5.2 Asset Age Profile'!CL115","v":69},{"$f":"'[2]5.2 Asset Age Profile'!CM115","v":0},{"$f":"'[2]5.2 Asset Age Profile'!CN115","v":0},{"$f":"'[2]5.2 Asset Age Profile'!CO115","v":0},{"$f":"'[2]5.2 Asset Age Profile'!CP115","v":0},{"$f":"'[2]5.2 Asset Age Profile'!CQ115","v":0},{"$f":"'[2]5.2 Asset Age Profile'!CR115","v":0},{"$f":"'[2]5.2 Asset Age Profile'!CS115","v":0},{"$f":"'[2]5.2 Asset Age Profile'!CT115","v":0},{"$f":"'[2]5.2 Asset Age Profile'!CU115","v":0},{"$f":"'[2]5.2 Asset Age Profile'!CV115","v":0},{"$f":"'[2]5.2 Asset Age Profile'!CW115","v":0},{"$f":"'[2]5.2 Asset Age Profile'!CX115","v":0},{"$f":"'[2]5.2 Asset Age Profile'!CY115","v":0},{"$f":"'[2]5.2 Asset Age Profile'!CZ115","v":0},{"$f":"'[2]5.2 Asset Age Profile'!DA115","v":0},{"$f":"'[2]5.2 Asset Age Profile'!DB115","v":0},{"$f":"'[2]5.2 Asset Age Profile'!DC115","v":0},{"$f":"'[2]5.2 Asset Age Profile'!DD115","v":0},{"$f":"'[2]5.2 Asset Age Profile'!DE115","v":0},{"$f":"'[2]5.2 Asset Age Profile'!DF115","v":0},{"$f":"'[2]5.2 Asset Age Profile'!DG115","v":0},{"$f":"'[2]5.2 Asset Age Profile'!DH115","v":0},{"$f":"'[2]5.2 Asset Age Profile'!DI115","v":0},{"$f":"'[2]5.2 Asset Age Profile'!DJ115","v":0},{"$f":"'[2]5.2 Asset Age Profile'!DK115","v":0},{"$f":"'[2]5.2 Asset Age Profile'!DL115","v":0},{"$f":"'[2]5.2 Asset Age Profile'!DM115","v":0},{"$f":"'[2]5.2 Asset Age Profile'!DN115","v":0},{"$f":"'[2]5.2 Asset Age Profile'!DO115","v":0},{"$f":"'[2]5.2 Asset Age Profile'!DP115","v":0},{"$f":"'[2]5.2 Asset Age Profile'!DQ115","v":0},{"$f":"'[2]5.2 Asset Age Profile'!DR115","v":0},{"$f":"'[2]5.2 Asset Age Profile'!DS115","v":0},{"$f":"'[2]5.2 Asset Age Profile'!DT115","v":0},{"$f":"'[2]5.2 Asset Age Profile'!DU115","v":0},{"$f":"'[2]5.2 Asset Age Profile'!DV115","v":0},{"$f":"'[2]5.2 Asset Age Profile'!DW115","v":0},{"$f":"'[2]5.2 Asset Age Profile'!DX115","v":0},{"$f":"'[2]5.2 Asset Age Profile'!DY115","v":0},{"$f":"'[2]5.2 Asset Age Profile'!DZ115","v":0},{"$f":"'[2]5.2 Asset Age Profile'!EA115","v":0},{"$f":"'[2]5.2 Asset Age Profile'!EB115","v":0},{"$f":"'[2]5.2 Asset Age Profile'!EC115","v":0},{"$f":"'[2]5.2 Asset Age Profile'!ED115","v":0},{"$f":"'[2]5.2 Asset Age Profile'!EE115","v":0},{"$f":"'[2]5.2 Asset Age Profile'!EF115","v":0},{"$f":"'[2]5.2 Asset Age Profile'!EG115","v":0},{"$f":"'[2]5.2 Asset Age Profile'!EH115","v":0},{"$f":"'[2]5.2 Asset Age Profile'!EI115","v":0},{"$f":"'[2]5.2 Asset Age Profile'!EJ115","v":0}]
["ED_ASS521_00106",null,"Brackets ; Major Road",null,"DNSP NAME","REPEX","PUBLIC LIGHTING","Brackets ; Major Road","DESCRIPTOR METRIC","MEAN ECONOMIC LIFE","YEARS","NUMBER",null,{"$f":"'[2]5.2 Asset Age Profile'!N116","v":0},{"$f":"'[2]5.2 Asset Age Profile'!O116","v":0},{"$f":"'[2]5.2 Asset Age Profile'!P116","v":0},{"$f":"'[2]5.2 Asset Age Profile'!Q116","v":0},{"$f":"'[2]5.2 Asset Age Profile'!R116","v":0},{"$f":"'[2]5.2 Asset Age Profile'!S116","v":0},{"$f":"'[2]5.2 Asset Age Profile'!T116","v":0},{"$f":"'[2]5.2 Asset Age Profile'!U116","v":0},{"$f":"'[2]5.2 Asset Age Profile'!V116","v":0},{"$f":"'[2]5.2 Asset Age Profile'!W116","v":0},{"$f":"'[2]5.2 Asset Age Profile'!X116","v":0},{"$f":"'[2]5.2 Asset Age Profile'!Y116","v":0},{"$f":"'[2]5.2 Asset Age Profile'!Z116","v":0},{"$f":"'[2]5.2 Asset Age Profile'!AA116","v":0},{"$f":"'[2]5.2 Asset Age Profile'!AB116","v":0},{"$f":"'[2]5.2 Asset Age Profile'!AC116","v":0},{"$f":"'[2]5.2 Asset Age Profile'!AD116","v":0},{"$f":"'[2]5.2 Asset Age Profile'!AE116","v":0},{"$f":"'[2]5.2 Asset Age Profile'!AF116","v":0},{"$f":"'[2]5.2 Asset Age Profile'!AG116","v":0},{"$f":"'[2]5.2 Asset Age Profile'!AH116","v":0},{"$f":"'[2]5.2 Asset Age Profile'!AI116","v":0},{"$f":"'[2]5.2 Asset Age Profile'!AJ116","v":0},{"$f":"'[2]5.2 Asset Age Profile'!AK116","v":0},{"$f":"'[2]5.2 Asset Age Profile'!AL116","v":0},{"$f":"'[2]5.2 Asset Age Profile'!AM116","v":0},{"$f":"'[2]5.2 Asset Age Profile'!AN116","v":0},{"$f":"'[2]5.2 Asset Age Profile'!AO116","v":0},{"$f":"'[2]5.2 Asset Age Profile'!AP116","v":0},{"$f":"'[2]5.2 Asset Age Profile'!AQ116","v":0},{"$f":"'[2]5.2 Asset Age Profile'!AR116","v":0},{"$f":"'[2]5.2 Asset Age Profile'!AS116","v":0},{"$f":"'[2]5.2 Asset Age Profile'!AT116","v":0},{"$f":"'[2]5.2 Asset Age Profile'!AU116","v":0},{"$f":"'[2]5.2 Asset Age Profile'!AV116","v":0},{"$f":"'[2]5.2 Asset Age Profile'!AW116","v":0},{"$f":"'[2]5.2 Asset Age Profile'!AX116","v":0},{"$f":"'[2]5.2 Asset Age Profile'!AY116","v":0},{"$f":"'[2]5.2 Asset Age Profile'!AZ116","v":0},{"$f":"'[2]5.2 Asset Age Profile'!BA116","v":0},{"$f":"'[2]5.2 Asset Age Profile'!BB116","v":0},{"$f":"'[2]5.2 Asset Age Profile'!BC116","v":0},{"$f":"'[2]5.2 Asset Age Profile'!BD116","v":0},{"$f":"'[2]5.2 Asset Age Profile'!BE116","v":0},{"$f":"'[2]5.2 Asset Age Profile'!BF116","v":0},{"$f":"'[2]5.2 Asset Age Profile'!BG116","v":0},{"$f":"'[2]5.2 Asset Age Profile'!BH116","v":0},{"$f":"'[2]5.2 Asset Age Profile'!BI116","v":0},{"$f":"'[2]5.2 Asset Age Profile'!BJ116","v":0},{"$f":"'[2]5.2 Asset Age Profile'!BK116","v":0},{"$f":"'[2]5.2 Asset Age Profile'!BL116","v":0},{"$f":"'[2]5.2 Asset Age Profile'!BM116","v":0},{"$f":"'[2]5.2 Asset Age Profile'!BN116","v":0},{"$f":"'[2]5.2 Asset Age Profile'!BO116","v":0},{"$f":"'[2]5.2 Asset Age Profile'!BP116","v":0},{"$f":"'[2]5.2 Asset Age Profile'!BQ116","v":0},{"$f":"'[2]5.2 Asset Age Profile'!BR116","v":0},{"$f":"'[2]5.2 Asset Age Profile'!BS116","v":0},{"$f":"'[2]5.2 Asset Age Profile'!BT116","v":0},{"$f":"'[2]5.2 Asset Age Profile'!BU116","v":0},{"$f":"'[2]5.2 Asset Age Profile'!BV116","v":0},{"$f":"'[2]5.2 Asset Age Profile'!BW116","v":0},{"$f":"'[2]5.2 Asset Age Profile'!BX116","v":0},{"$f":"'[2]5.2 Asset Age Profile'!BY116","v":0},{"$f":"'[2]5.2 Asset Age Profile'!BZ116","v":0},{"$f":"'[2]5.2 Asset Age Profile'!CA116","v":0},{"$f":"'[2]5.2 Asset Age Profile'!CB116","v":0},{"$f":"'[2]5.2 Asset Age Profile'!CC116","v":0},{"$f":"'[2]5.2 Asset Age Profile'!CD116","v":0},{"$f":"'[2]5.2 Asset Age Profile'!CE116","v":0},{"$f":"'[2]5.2 Asset Age Profile'!CF116","v":0},{"$f":"'[2]5.2 Asset Age Profile'!CG116","v":0},{"$f":"'[2]5.2 Asset Age Profile'!CH116","v":0},{"$f":"'[2]5.2 Asset Age Profile'!CI116","v":0},{"$f":"'[2]5.2 Asset Age Profile'!CJ116","v":0},{"$f":"'[2]5.2 Asset Age Profile'!CK116","v":0},{"$f":"'[2]5.2 Asset Age Profile'!CL116","v":0},{"$f":"'[2]5.2 Asset Age Profile'!CM116","v":0},{"$f":"'[2]5.2 Asset Age Profile'!CN116","v":0},{"$f":"'[2]5.2 Asset Age Profile'!CO116","v":0},{"$f":"'[2]5.2 Asset Age Profile'!CP116","v":0},{"$f":"'[2]5.2 Asset Age Profile'!CQ116","v":0},{"$f":"'[2]5.2 Asset Age Profile'!CR116","v":0},{"$f":"'[2]5.2 Asset Age Profile'!CS116","v":0},{"$f":"'[2]5.2 Asset Age Profile'!CT116","v":0},{"$f":"'[2]5.2 Asset Age Profile'!CU116","v":0},{"$f":"'[2]5.2 Asset Age Profile'!CV116","v":0},{"$f":"'[2]5.2 Asset Age Profile'!CW116","v":0},{"$f":"'[2]5.2 Asset Age Profile'!CX116","v":0},{"$f":"'[2]5.2 Asset Age Profile'!CY116","v":0},{"$f":"'[2]5.2 Asset Age Profile'!CZ116","v":0},{"$f":"'[2]5.2 Asset Age Profile'!DA116","v":0},{"$f":"'[2]5.2 Asset Age Profile'!DB116","v":0},{"$f":"'[2]5.2 Asset Age Profile'!DC116","v":0},{"$f":"'[2]5.2 Asset Age Profile'!DD116","v":0},{"$f":"'[2]5.2 Asset Age Profile'!DE116","v":0},{"$f":"'[2]5.2 Asset Age Profile'!DF116","v":0},{"$f":"'[2]5.2 Asset Age Profile'!DG116","v":0},{"$f":"'[2]5.2 Asset Age Profile'!DH116","v":0},{"$f":"'[2]5.2 Asset Age Profile'!DI116","v":0},{"$f":"'[2]5.2 Asset Age Profile'!DJ116","v":0},{"$f":"'[2]5.2 Asset Age Profile'!DK116","v":0},{"$f":"'[2]5.2 Asset Age Profile'!DL116","v":0},{"$f":"'[2]5.2 Asset Age Profile'!DM116","v":0},{"$f":"'[2]5.2 Asset Age Profile'!DN116","v":0},{"$f":"'[2]5.2 Asset Age Profile'!DO116","v":0},{"$f":"'[2]5.2 Asset Age Profile'!DP116","v":0},{"$f":"'[2]5.2 Asset Age Profile'!DQ116","v":0},{"$f":"'[2]5.2 Asset Age Profile'!DR116","v":0},{"$f":"'[2]5.2 Asset Age Profile'!DS116","v":0},{"$f":"'[2]5.2 Asset Age Profile'!DT116","v":0},{"$f":"'[2]5.2 Asset Age Profile'!DU116","v":0},{"$f":"'[2]5.2 Asset Age Profile'!DV116","v":0},{"$f":"'[2]5.2 Asset Age Profile'!DW116","v":0},{"$f":"'[2]5.2 Asset Age Profile'!DX116","v":0},{"$f":"'[2]5.2 Asset Age Profile'!DY116","v":0},{"$f":"'[2]5.2 Asset Age Profile'!DZ116","v":0},{"$f":"'[2]5.2 Asset Age Profile'!EA116","v":0},{"$f":"'[2]5.2 Asset Age Profile'!EB116","v":0},{"$f":"'[2]5.2 Asset Age Profile'!EC116","v":0},{"$f":"'[2]5.2 Asset Age Profile'!ED116","v":0},{"$f":"'[2]5.2 Asset Age Profile'!EE116","v":0},{"$f":"'[2]5.2 Asset Age Profile'!EF116","v":0},{"$f":"'[2]5.2 Asset Age Profile'!EG116","v":0},{"$f":"'[2]5.2 Asset Age Profile'!EH116","v":0},{"$f":"'[2]5.2 Asset Age Profile'!EI116","v":0},{"$f":"'[2]5.2 Asset Age Profile'!EJ116","v":0}]
["ED_ASS521_00107",null,"Brackets ; Minor Road",null,"DNSP NAME","REPEX","PUBLIC LIGHTING","Brackets ; Minor Road","DESCRIPTOR METRIC","MEAN ECONOMIC LIFE","YEARS","NUMBER",null,{"$f":"'[2]5.2 Asset Age Profile'!N117","v":0},{"$f":"'[2]5.2 Asset Age Profile'!O117","v":0},{"$f":"'[2]5.2 Asset Age Profile'!P117","v":0},{"$f":"'[2]5.2 Asset Age Profile'!Q117","v":0},{"$f":"'[2]5.2 Asset Age Profile'!R117","v":0},{"$f":"'[2]5.2 Asset Age Profile'!S117","v":0},{"$f":"'[2]5.2 Asset Age Profile'!T117","v":0},{"$f":"'[2]5.2 Asset Age Profile'!U117","v":0},{"$f":"'[2]5.2 Asset Age Profile'!V117","v":0},{"$f":"'[2]5.2 Asset Age Profile'!W117","v":0},{"$f":"'[2]5.2 Asset Age Profile'!X117","v":0},{"$f":"'[2]5.2 Asset Age Profile'!Y117","v":0},{"$f":"'[2]5.2 Asset Age Profile'!Z117","v":0},{"$f":"'[2]5.2 Asset Age Profile'!AA117","v":0},{"$f":"'[2]5.2 Asset Age Profile'!AB117","v":0},{"$f":"'[2]5.2 Asset Age Profile'!AC117","v":0},{"$f":"'[2]5.2 Asset Age Profile'!AD117","v":0},{"$f":"'[2]5.2 Asset Age Profile'!AE117","v":0},{"$f":"'[2]5.2 Asset Age Profile'!AF117","v":0},{"$f":"'[2]5.2 Asset Age Profile'!AG117","v":0},{"$f":"'[2]5.2 Asset Age Profile'!AH117","v":0},{"$f":"'[2]5.2 Asset Age Profile'!AI117","v":0},{"$f":"'[2]5.2 Asset Age Profile'!AJ117","v":0},{"$f":"'[2]5.2 Asset Age Profile'!AK117","v":0},{"$f":"'[2]5.2 Asset Age Profile'!AL117","v":0},{"$f":"'[2]5.2 Asset Age Profile'!AM117","v":0},{"$f":"'[2]5.2 Asset Age Profile'!AN117","v":0},{"$f":"'[2]5.2 Asset Age Profile'!AO117","v":0},{"$f":"'[2]5.2 Asset Age Profile'!AP117","v":0},{"$f":"'[2]5.2 Asset Age Profile'!AQ117","v":0},{"$f":"'[2]5.2 Asset Age Profile'!AR117","v":0},{"$f":"'[2]5.2 Asset Age Profile'!AS117","v":0},{"$f":"'[2]5.2 Asset Age Profile'!AT117","v":0},{"$f":"'[2]5.2 Asset Age Profile'!AU117","v":0},{"$f":"'[2]5.2 Asset Age Profile'!AV117","v":0},{"$f":"'[2]5.2 Asset Age Profile'!AW117","v":0},{"$f":"'[2]5.2 Asset Age Profile'!AX117","v":0},{"$f":"'[2]5.2 Asset Age Profile'!AY117","v":0},{"$f":"'[2]5.2 Asset Age Profile'!AZ117","v":0},{"$f":"'[2]5.2 Asset Age Profile'!BA117","v":0},{"$f":"'[2]5.2 Asset Age Profile'!BB117","v":0},{"$f":"'[2]5.2 Asset Age Profile'!BC117","v":0},{"$f":"'[2]5.2 Asset Age Profile'!BD117","v":0},{"$f":"'[2]5.2 Asset Age Profile'!BE117","v":0},{"$f":"'[2]5.2 Asset Age Profile'!BF117","v":0},{"$f":"'[2]5.2 Asset Age Profile'!BG117","v":0},{"$f":"'[2]5.2 Asset Age Profile'!BH117","v":0},{"$f":"'[2]5.2 Asset Age Profile'!BI117","v":0},{"$f":"'[2]5.2 Asset Age Profile'!BJ117","v":0},{"$f":"'[2]5.2 Asset Age Profile'!BK117","v":0},{"$f":"'[2]5.2 Asset Age Profile'!BL117","v":0},{"$f":"'[2]5.2 Asset Age Profile'!BM117","v":0},{"$f":"'[2]5.2 Asset Age Profile'!BN117","v":0},{"$f":"'[2]5.2 Asset Age Profile'!BO117","v":0},{"$f":"'[2]5.2 Asset Age Profile'!BP117","v":0},{"$f":"'[2]5.2 Asset Age Profile'!BQ117","v":0},{"$f":"'[2]5.2 Asset Age Profile'!BR117","v":0},{"$f":"'[2]5.2 Asset Age Profile'!BS117","v":0},{"$f":"'[2]5.2 Asset Age Profile'!BT117","v":0},{"$f":"'[2]5.2 Asset Age Profile'!BU117","v":0},{"$f":"'[2]5.2 Asset Age Profile'!BV117","v":0},{"$f":"'[2]5.2 Asset Age Profile'!BW117","v":0},{"$f":"'[2]5.2 Asset Age Profile'!BX117","v":0},{"$f":"'[2]5.2 Asset Age Profile'!BY117","v":0},{"$f":"'[2]5.2 Asset Age Profile'!BZ117","v":0},{"$f":"'[2]5.2 Asset Age Profile'!CA117","v":0},{"$f":"'[2]5.2 Asset Age Profile'!CB117","v":0},{"$f":"'[2]5.2 Asset Age Profile'!CC117","v":0},{"$f":"'[2]5.2 Asset Age Profile'!CD117","v":0},{"$f":"'[2]5.2 Asset Age Profile'!CE117","v":0},{"$f":"'[2]5.2 Asset Age Profile'!CF117","v":0},{"$f":"'[2]5.2 Asset Age Profile'!CG117","v":0},{"$f":"'[2]5.2 Asset Age Profile'!CH117","v":0},{"$f":"'[2]5.2 Asset Age Profile'!CI117","v":0},{"$f":"'[2]5.2 Asset Age Profile'!CJ117","v":0},{"$f":"'[2]5.2 Asset Age Profile'!CK117","v":0},{"$f":"'[2]5.2 Asset Age Profile'!CL117","v":0},{"$f":"'[2]5.2 Asset Age Profile'!CM117","v":0},{"$f":"'[2]5.2 Asset Age Profile'!CN117","v":0},{"$f":"'[2]5.2 Asset Age Profile'!CO117","v":0},{"$f":"'[2]5.2 Asset Age Profile'!CP117","v":0},{"$f":"'[2]5.2 Asset Age Profile'!CQ117","v":0},{"$f":"'[2]5.2 Asset Age Profile'!CR117","v":0},{"$f":"'[2]5.2 Asset Age Profile'!CS117","v":0},{"$f":"'[2]5.2 Asset Age Profile'!CT117","v":0},{"$f":"'[2]5.2 Asset Age Profile'!CU117","v":0},{"$f":"'[2]5.2 Asset Age Profile'!CV117","v":0},{"$f":"'[2]5.2 Asset Age Profile'!CW117","v":0},{"$f":"'[2]5.2 Asset Age Profile'!CX117","v":0},{"$f":"'[2]5.2 Asset Age Profile'!CY117","v":0},{"$f":"'[2]5.2 Asset Age Profile'!CZ117","v":0},{"$f":"'[2]5.2 Asset Age Profile'!DA117","v":0},{"$f":"'[2]5.2 Asset Age Profile'!DB117","v":0},{"$f":"'[2]5.2 Asset Age Profile'!DC117","v":0},{"$f":"'[2]5.2 Asset Age Profile'!DD117","v":0},{"$f":"'[2]5.2 Asset Age Profile'!DE117","v":0},{"$f":"'[2]5.2 Asset Age Profile'!DF117","v":0},{"$f":"'[2]5.2 Asset Age Profile'!DG117","v":0},{"$f":"'[2]5.2 Asset Age Profile'!DH117","v":0},{"$f":"'[2]5.2 Asset Age Profile'!DI117","v":0},{"$f":"'[2]5.2 Asset Age Profile'!DJ117","v":0},{"$f":"'[2]5.2 Asset Age Profile'!DK117","v":0},{"$f":"'[2]5.2 Asset Age Profile'!DL117","v":0},{"$f":"'[2]5.2 Asset Age Profile'!DM117","v":0},{"$f":"'[2]5.2 Asset Age Profile'!DN117","v":0},{"$f":"'[2]5.2 Asset Age Profile'!DO117","v":0},{"$f":"'[2]5.2 Asset Age Profile'!DP117","v":0},{"$f":"'[2]5.2 Asset Age Profile'!DQ117","v":0},{"$f":"'[2]5.2 Asset Age Profile'!DR117","v":0},{"$f":"'[2]5.2 Asset Age Profile'!DS117","v":0},{"$f":"'[2]5.2 Asset Age Profile'!DT117","v":0},{"$f":"'[2]5.2 Asset Age Profile'!DU117","v":0},{"$f":"'[2]5.2 Asset Age Profile'!DV117","v":0},{"$f":"'[2]5.2 Asset Age Profile'!DW117","v":0},{"$f":"'[2]5.2 Asset Age Profile'!DX117","v":0},{"$f":"'[2]5.2 Asset Age Profile'!DY117","v":0},{"$f":"'[2]5.2 Asset Age Profile'!DZ117","v":0},{"$f":"'[2]5.2 Asset Age Profile'!EA117","v":0},{"$f":"'[2]5.2 Asset Age Profile'!EB117","v":0},{"$f":"'[2]5.2 Asset Age Profile'!EC117","v":0},{"$f":"'[2]5.2 Asset Age Profile'!ED117","v":0},{"$f":"'[2]5.2 Asset Age Profile'!EE117","v":0},{"$f":"'[2]5.2 Asset Age Profile'!EF117","v":0},{"$f":"'[2]5.2 Asset Age Profile'!EG117","v":0},{"$f":"'[2]5.2 Asset Age Profile'!EH117","v":0},{"$f":"'[2]5.2 Asset Age Profile'!EI117","v":0},{"$f":"'[2]5.2 Asset Age Profile'!EJ117","v":0}]
["ED_ASS521_00108",null,"Lamps ; Major Road",null,"DNSP NAME","REPEX","PUBLIC LIGHTING","Lamps ; Major Road","DESCRIPTOR METRIC","MEAN ECONOMIC LIFE","YEARS","NUMBER",null,{"$f":"'[2]5.2 Asset Age Profile'!N118","v":0},{"$f":"'[2]5.2 Asset Age Profile'!O118","v":0},{"$f":"'[2]5.2 Asset Age Profile'!P118","v":0},{"$f":"'[2]5.2 Asset Age Profile'!Q118","v":0},{"$f":"'[2]5.2 Asset Age Profile'!R118","v":0},{"$f":"'[2]5.2 Asset Age Profile'!S118","v":0},{"$f":"'[2]5.2 Asset Age Profile'!T118","v":0},{"$f":"'[2]5.2 Asset Age Profile'!U118","v":0},{"$f":"'[2]5.2 Asset Age Profile'!V118","v":0},{"$f":"'[2]5.2 Asset Age Profile'!W118","v":0},{"$f":"'[2]5.2 Asset Age Profile'!X118","v":0},{"$f":"'[2]5.2 Asset Age Profile'!Y118","v":0},{"$f":"'[2]5.2 Asset Age Profile'!Z118","v":0},{"$f":"'[2]5.2 Asset Age Profile'!AA118","v":0},{"$f":"'[2]5.2 Asset Age Profile'!AB118","v":0},{"$f":"'[2]5.2 Asset Age Profile'!AC118","v":0},{"$f":"'[2]5.2 Asset Age Profile'!AD118","v":0},{"$f":"'[2]5.2 Asset Age Profile'!AE118","v":0},{"$f":"'[2]5.2 Asset Age Profile'!AF118","v":0},{"$f":"'[2]5.2 Asset Age Profile'!AG118","v":0},{"$f":"'[2]5.2 Asset Age Profile'!AH118","v":0},{"$f":"'[2]5.2 Asset Age Profile'!AI118","v":0},{"$f":"'[2]5.2 Asset Age Profile'!AJ118","v":0},{"$f":"'[2]5.2 Asset Age Profile'!AK118","v":0},{"$f":"'[2]5.2 Asset Age Profile'!AL118","v":0},{"$f":"'[2]5.2 Asset Age Profile'!AM118","v":0},{"$f":"'[2]5.2 Asset Age Profile'!AN118","v":0},{"$f":"'[2]5.2 Asset Age Profile'!AO118","v":0},{"$f":"'[2]5.2 Asset Age Profile'!AP118","v":0},{"$f":"'[2]5.2 Asset Age Profile'!AQ118","v":0},{"$f":"'[2]5.2 Asset Age Profile'!AR118","v":0},{"$f":"'[2]5.2 Asset Age Profile'!AS118","v":0},{"$f":"'[2]5.2 Asset Age Profile'!AT118","v":0},{"$f":"'[2]5.2 Asset Age Profile'!AU118","v":0},{"$f":"'[2]5.2 Asset Age Profile'!AV118","v":0},{"$f":"'[2]5.2 Asset Age Profile'!AW118","v":0},{"$f":"'[2]5.2 Asset Age Profile'!AX118","v":0},{"$f":"'[2]5.2 Asset Age Profile'!AY118","v":0},{"$f":"'[2]5.2 Asset Age Profile'!AZ118","v":0},{"$f":"'[2]5.2 Asset Age Profile'!BA118","v":0},{"$f":"'[2]5.2 Asset Age Profile'!BB118","v":0},{"$f":"'[2]5.2 Asset Age Profile'!BC118","v":0},{"$f":"'[2]5.2 Asset Age Profile'!BD118","v":0},{"$f":"'[2]5.2 Asset Age Profile'!BE118","v":0},{"$f":"'[2]5.2 Asset Age Profile'!BF118","v":0},{"$f":"'[2]5.2 Asset Age Profile'!BG118","v":0},{"$f":"'[2]5.2 Asset Age Profile'!BH118","v":0},{"$f":"'[2]5.2 Asset Age Profile'!BI118","v":0},{"$f":"'[2]5.2 Asset Age Profile'!BJ118","v":0},{"$f":"'[2]5.2 Asset Age Profile'!BK118","v":0},{"$f":"'[2]5.2 Asset Age Profile'!BL118","v":0},{"$f":"'[2]5.2 Asset Age Profile'!BM118","v":0},{"$f":"'[2]5.2 Asset Age Profile'!BN118","v":0},{"$f":"'[2]5.2 Asset Age Profile'!BO118","v":0},{"$f":"'[2]5.2 Asset Age Profile'!BP118","v":0},{"$f":"'[2]5.2 Asset Age Profile'!BQ118","v":0},{"$f":"'[2]5.2 Asset Age Profile'!BR118","v":0},{"$f":"'[2]5.2 Asset Age Profile'!BS118","v":0},{"$f":"'[2]5.2 Asset Age Profile'!BT118","v":0},{"$f":"'[2]5.2 Asset Age Profile'!BU118","v":0},{"$f":"'[2]5.2 Asset Age Profile'!BV118","v":0},{"$f":"'[2]5.2 Asset Age Profile'!BW118","v":0},{"$f":"'[2]5.2 Asset Age Profile'!BX118","v":0},{"$f":"'[2]5.2 Asset Age Profile'!BY118","v":0},{"$f":"'[2]5.2 Asset Age Profile'!BZ118","v":0},{"$f":"'[2]5.2 Asset Age Profile'!CA118","v":0},{"$f":"'[2]5.2 Asset Age Profile'!CB118","v":0},{"$f":"'[2]5.2 Asset Age Profile'!CC118","v":0},{"$f":"'[2]5.2 Asset Age Profile'!CD118","v":0},{"$f":"'[2]5.2 Asset Age Profile'!CE118","v":0},{"$f":"'[2]5.2 Asset Age Profile'!CF118","v":0},{"$f":"'[2]5.2 Asset Age Profile'!CG118","v":0},{"$f":"'[2]5.2 Asset Age Profile'!CH118","v":0},{"$f":"'[2]5.2 Asset Age Profile'!CI118","v":0},{"$f":"'[2]5.2 Asset Age Profile'!CJ118","v":0},{"$f":"'[2]5.2 Asset Age Profile'!CK118","v":0},{"$f":"'[2]5.2 Asset Age Profile'!CL118","v":0},{"$f":"'[2]5.2 Asset Age Profile'!CM118","v":0},{"$f":"'[2]5.2 Asset Age Profile'!CN118","v":0},{"$f":"'[2]5.2 Asset Age Profile'!CO118","v":0},{"$f":"'[2]5.2 Asset Age Profile'!CP118","v":0},{"$f":"'[2]5.2 Asset Age Profile'!CQ118","v":0},{"$f":"'[2]5.2 Asset Age Profile'!CR118","v":0},{"$f":"'[2]5.2 Asset Age Profile'!CS118","v":0},{"$f":"'[2]5.2 Asset Age Profile'!CT118","v":0},{"$f":"'[2]5.2 Asset Age Profile'!CU118","v":0},{"$f":"'[2]5.2 Asset Age Profile'!CV118","v":0},{"$f":"'[2]5.2 Asset Age Profile'!CW118","v":0},{"$f":"'[2]5.2 Asset Age Profile'!CX118","v":0},{"$f":"'[2]5.2 Asset Age Profile'!CY118","v":0},{"$f":"'[2]5.2 Asset Age Profile'!CZ118","v":0},{"$f":"'[2]5.2 Asset Age Profile'!DA118","v":0},{"$f":"'[2]5.2 Asset Age Profile'!DB118","v":0},{"$f":"'[2]5.2 Asset Age Profile'!DC118","v":0},{"$f":"'[2]5.2 Asset Age Profile'!DD118","v":0},{"$f":"'[2]5.2 Asset Age Profile'!DE118","v":0},{"$f":"'[2]5.2 Asset Age Profile'!DF118","v":0},{"$f":"'[2]5.2 Asset Age Profile'!DG118","v":0},{"$f":"'[2]5.2 Asset Age Profile'!DH118","v":0},{"$f":"'[2]5.2 Asset Age Profile'!DI118","v":0},{"$f":"'[2]5.2 Asset Age Profile'!DJ118","v":0},{"$f":"'[2]5.2 Asset Age Profile'!DK118","v":0},{"$f":"'[2]5.2 Asset Age Profile'!DL118","v":0},{"$f":"'[2]5.2 Asset Age Profile'!DM118","v":0},{"$f":"'[2]5.2 Asset Age Profile'!DN118","v":0},{"$f":"'[2]5.2 Asset Age Profile'!DO118","v":0},{"$f":"'[2]5.2 Asset Age Profile'!DP118","v":0},{"$f":"'[2]5.2 Asset Age Profile'!DQ118","v":0},{"$f":"'[2]5.2 Asset Age Profile'!DR118","v":0},{"$f":"'[2]5.2 Asset Age Profile'!DS118","v":0},{"$f":"'[2]5.2 Asset Age Profile'!DT118","v":0},{"$f":"'[2]5.2 Asset Age Profile'!DU118","v":0},{"$f":"'[2]5.2 Asset Age Profile'!DV118","v":0},{"$f":"'[2]5.2 Asset Age Profile'!DW118","v":0},{"$f":"'[2]5.2 Asset Age Profile'!DX118","v":0},{"$f":"'[2]5.2 Asset Age Profile'!DY118","v":0},{"$f":"'[2]5.2 Asset Age Profile'!DZ118","v":0},{"$f":"'[2]5.2 Asset Age Profile'!EA118","v":0},{"$f":"'[2]5.2 Asset Age Profile'!EB118","v":0},{"$f":"'[2]5.2 Asset Age Profile'!EC118","v":0},{"$f":"'[2]5.2 Asset Age Profile'!ED118","v":0},{"$f":"'[2]5.2 Asset Age Profile'!EE118","v":0},{"$f":"'[2]5.2 Asset Age Profile'!EF118","v":0},{"$f":"'[2]5.2 Asset Age Profile'!EG118","v":0},{"$f":"'[2]5.2 Asset Age Profile'!EH118","v":0},{"$f":"'[2]5.2 Asset Age Profile'!EI118","v":0},{"$f":"'[2]5.2 Asset Age Profile'!EJ118","v":0}]
["ED_ASS521_00109",null,"Lamps ; Minor Road",null,"DNSP NAME","REPEX","PUBLIC LIGHTING","Lamps ; Minor Road","DESCRIPTOR METRIC","MEAN ECONOMIC LIFE","YEARS","NUMBER",null,{"$f":"'[2]5.2 Asset Age Profile'!N119","v":0},{"$f":"'[2]5.2 Asset Age Profile'!O119","v":0},{"$f":"'[2]5.2 Asset Age Profile'!P119","v":0},{"$f":"'[2]5.2 Asset Age Profile'!Q119","v":0},{"$f":"'[2]5.2 Asset Age Profile'!R119","v":0},{"$f":"'[2]5.2 Asset Age Profile'!S119","v":0},{"$f":"'[2]5.2 Asset Age Profile'!T119","v":0},{"$f":"'[2]5.2 Asset Age Profile'!U119","v":0},{"$f":"'[2]5.2 Asset Age Profile'!V119","v":0},{"$f":"'[2]5.2 Asset Age Profile'!W119","v":0},{"$f":"'[2]5.2 Asset Age Profile'!X119","v":0},{"$f":"'[2]5.2 Asset Age Profile'!Y119","v":0},{"$f":"'[2]5.2 Asset Age Profile'!Z119","v":0},{"$f":"'[2]5.2 Asset Age Profile'!AA119","v":0},{"$f":"'[2]5.2 Asset Age Profile'!AB119","v":0},{"$f":"'[2]5.2 Asset Age Profile'!AC119","v":0},{"$f":"'[2]5.2 Asset Age Profile'!AD119","v":0},{"$f":"'[2]5.2 Asset Age Profile'!AE119","v":0},{"$f":"'[2]5.2 Asset Age Profile'!AF119","v":0},{"$f":"'[2]5.2 Asset Age Profile'!AG119","v":0},{"$f":"'[2]5.2 Asset Age Profile'!AH119","v":0},{"$f":"'[2]5.2 Asset Age Profile'!AI119","v":0},{"$f":"'[2]5.2 Asset Age Profile'!AJ119","v":0},{"$f":"'[2]5.2 Asset Age Profile'!AK119","v":0},{"$f":"'[2]5.2 Asset Age Profile'!AL119","v":0},{"$f":"'[2]5.2 Asset Age Profile'!AM119","v":0},{"$f":"'[2]5.2 Asset Age Profile'!AN119","v":0},{"$f":"'[2]5.2 Asset Age Profile'!AO119","v":0},{"$f":"'[2]5.2 Asset Age Profile'!AP119","v":0},{"$f":"'[2]5.2 Asset Age Profile'!AQ119","v":0},{"$f":"'[2]5.2 Asset Age Profile'!AR119","v":0},{"$f":"'[2]5.2 Asset Age Profile'!AS119","v":0},{"$f":"'[2]5.2 Asset Age Profile'!AT119","v":0},{"$f":"'[2]5.2 Asset Age Profile'!AU119","v":0},{"$f":"'[2]5.2 Asset Age Profile'!AV119","v":0},{"$f":"'[2]5.2 Asset Age Profile'!AW119","v":0},{"$f":"'[2]5.2 Asset Age Profile'!AX119","v":0},{"$f":"'[2]5.2 Asset Age Profile'!AY119","v":0},{"$f":"'[2]5.2 Asset Age Profile'!AZ119","v":0},{"$f":"'[2]5.2 Asset Age Profile'!BA119","v":0},{"$f":"'[2]5.2 Asset Age Profile'!BB119","v":0},{"$f":"'[2]5.2 Asset Age Profile'!BC119","v":0},{"$f":"'[2]5.2 Asset Age Profile'!BD119","v":0},{"$f":"'[2]5.2 Asset Age Profile'!BE119","v":0},{"$f":"'[2]5.2 Asset Age Profile'!BF119","v":0},{"$f":"'[2]5.2 Asset Age Profile'!BG119","v":0},{"$f":"'[2]5.2 Asset Age Profile'!BH119","v":0},{"$f":"'[2]5.2 Asset Age Profile'!BI119","v":0},{"$f":"'[2]5.2 Asset Age Profile'!BJ119","v":0},{"$f":"'[2]5.2 Asset Age Profile'!BK119","v":0},{"$f":"'[2]5.2 Asset Age Profile'!BL119","v":0},{"$f":"'[2]5.2 Asset Age Profile'!BM119","v":0},{"$f":"'[2]5.2 Asset Age Profile'!BN119","v":0},{"$f":"'[2]5.2 Asset Age Profile'!BO119","v":0},{"$f":"'[2]5.2 Asset Age Profile'!BP119","v":0},{"$f":"'[2]5.2 Asset Age Profile'!BQ119","v":0},{"$f":"'[2]5.2 Asset Age Profile'!BR119","v":0},{"$f":"'[2]5.2 Asset Age Profile'!BS119","v":0},{"$f":"'[2]5.2 Asset Age Profile'!BT119","v":0},{"$f":"'[2]5.2 Asset Age Profile'!BU119","v":0},{"$f":"'[2]5.2 Asset Age Profile'!BV119","v":0},{"$f":"'[2]5.2 Asset Age Profile'!BW119","v":0},{"$f":"'[2]5.2 Asset Age Profile'!BX119","v":0},{"$f":"'[2]5.2 Asset Age Profile'!BY119","v":0},{"$f":"'[2]5.2 Asset Age Profile'!BZ119","v":0},{"$f":"'[2]5.2 Asset Age Profile'!CA119","v":0},{"$f":"'[2]5.2 Asset Age Profile'!CB119","v":0},{"$f":"'[2]5.2 Asset Age Profile'!CC119","v":0},{"$f":"'[2]5.2 Asset Age Profile'!CD119","v":0},{"$f":"'[2]5.2 Asset Age Profile'!CE119","v":0},{"$f":"'[2]5.2 Asset Age Profile'!CF119","v":0},{"$f":"'[2]5.2 Asset Age Profile'!CG119","v":0},{"$f":"'[2]5.2 Asset Age Profile'!CH119","v":0},{"$f":"'[2]5.2 Asset Age Profile'!CI119","v":0},{"$f":"'[2]5.2 Asset Age Profile'!CJ119","v":0},{"$f":"'[2]5.2 Asset Age Profile'!CK119","v":0},{"$f":"'[2]5.2 Asset Age Profile'!CL119","v":0},{"$f":"'[2]5.2 Asset Age Profile'!CM119","v":0},{"$f":"'[2]5.2 Asset Age Profile'!CN119","v":0},{"$f":"'[2]5.2 Asset Age Profile'!CO119","v":0},{"$f":"'[2]5.2 Asset Age Profile'!CP119","v":0},{"$f":"'[2]5.2 Asset Age Profile'!CQ119","v":0},{"$f":"'[2]5.2 Asset Age Profile'!CR119","v":0},{"$f":"'[2]5.2 Asset Age Profile'!CS119","v":0},{"$f":"'[2]5.2 Asset Age Profile'!CT119","v":0},{"$f":"'[2]5.2 Asset Age Profile'!CU119","v":0},{"$f":"'[2]5.2 Asset Age Profile'!CV119","v":0},{"$f":"'[2]5.2 Asset Age Profile'!CW119","v":0},{"$f":"'[2]5.2 Asset Age Profile'!CX119","v":0},{"$f":"'[2]5.2 Asset Age Profile'!CY119","v":0},{"$f":"'[2]5.2 Asset Age Profile'!CZ119","v":0},{"$f":"'[2]5.2 Asset Age Profile'!DA119","v":0},{"$f":"'[2]5.2 Asset Age Profile'!DB119","v":0},{"$f":"'[2]5.2 Asset Age Profile'!DC119","v":0},{"$f":"'[2]5.2 Asset Age Profile'!DD119","v":0},{"$f":"'[2]5.2 Asset Age Profile'!DE119","v":0},{"$f":"'[2]5.2 Asset Age Profile'!DF119","v":0},{"$f":"'[2]5.2 Asset Age Profile'!DG119","v":0},{"$f":"'[2]5.2 Asset Age Profile'!DH119","v":0},{"$f":"'[2]5.2 Asset Age Profile'!DI119","v":0},{"$f":"'[2]5.2 Asset Age Profile'!DJ119","v":0},{"$f":"'[2]5.2 Asset Age Profile'!DK119","v":0},{"$f":"'[2]5.2 Asset Age Profile'!DL119","v":0},{"$f":"'[2]5.2 Asset Age Profile'!DM119","v":0},{"$f":"'[2]5.2 Asset Age Profile'!DN119","v":0},{"$f":"'[2]5.2 Asset Age Profile'!DO119","v":0},{"$f":"'[2]5.2 Asset Age Profile'!DP119","v":0},{"$f":"'[2]5.2 Asset Age Profile'!DQ119","v":0},{"$f":"'[2]5.2 Asset Age Profile'!DR119","v":0},{"$f":"'[2]5.2 Asset Age Profile'!DS119","v":0},{"$f":"'[2]5.2 Asset Age Profile'!DT119","v":0},{"$f":"'[2]5.2 Asset Age Profile'!DU119","v":0},{"$f":"'[2]5.2 Asset Age Profile'!DV119","v":0},{"$f":"'[2]5.2 Asset Age Profile'!DW119","v":0},{"$f":"'[2]5.2 Asset Age Profile'!DX119","v":0},{"$f":"'[2]5.2 Asset Age Profile'!DY119","v":0},{"$f":"'[2]5.2 Asset Age Profile'!DZ119","v":0},{"$f":"'[2]5.2 Asset Age Profile'!EA119","v":0},{"$f":"'[2]5.2 Asset Age Profile'!EB119","v":0},{"$f":"'[2]5.2 Asset Age Profile'!EC119","v":0},{"$f":"'[2]5.2 Asset Age Profile'!ED119","v":0},{"$f":"'[2]5.2 Asset Age Profile'!EE119","v":0},{"$f":"'[2]5.2 Asset Age Profile'!EF119","v":0},{"$f":"'[2]5.2 Asset Age Profile'!EG119","v":0},{"$f":"'[2]5.2 Asset Age Profile'!EH119","v":0},{"$f":"'[2]5.2 Asset Age Profile'!EI119","v":0},{"$f":"'[2]5.2 Asset Age Profile'!EJ119","v":0}]
["ED_ASS521_00110",null,"Poles / Columns ; Major Road",null,"DNSP NAME","REPEX","PUBLIC LIGHTING","Poles / Columns ; Major Road","DESCRIPTOR METRIC","MEAN ECONOMIC LIFE","YEARS","NUMBER",null,{"$f":"'[2]5.2 Asset Age Profile'!N120","v":20},{"$f":"'[2]5.2 Asset Age Profile'!O120","v":0},{"$f":"'[2]5.2 Asset Age Profile'!P120","v":0},{"$f":"'[2]5.2 Asset Age Profile'!Q120","v":0},{"$f":"'[2]5.2 Asset Age Profile'!R120","v":0},{"$f":"'[2]5.2 Asset Age Profile'!S120","v":0},{"$f":"'[2]5.2 Asset Age Profile'!T120","v":0},{"$f":"'[2]5.2 Asset Age Profile'!U120","v":0},{"$f":"'[2]5.2 Asset Age Profile'!V120","v":0},{"$f":"'[2]5.2 Asset Age Profile'!W120","v":0},{"$f":"'[2]5.2 Asset Age Profile'!X120","v":0},{"$f":"'[2]5.2 Asset Age Profile'!Y120","v":4.4721359549995796},{"$f":"'[2]5.2 Asset Age Profile'!Z120","v":0},{"$f":"'[2]5.2 Asset Age Profile'!AA120","v":0},{"$f":"'[2]5.2 Asset Age Profile'!AB120","v":0},{"$f":"'[2]5.2 Asset Age Profile'!AC120","v":0},{"$f":"'[2]5.2 Asset Age Profile'!AD120","v":0},{"$f":"'[2]5.2 Asset Age Profile'!AE120","v":0},{"$f":"'[2]5.2 Asset Age Profile'!AF120","v":0},{"$f":"'[2]5.2 Asset Age Profile'!AG120","v":0},{"$f":"'[2]5.2 Asset Age Profile'!AH120","v":0},{"$f":"'[2]5.2 Asset Age Profile'!AI120","v":0},{"$f":"'[2]5.2 Asset Age Profile'!AJ120","v":44},{"$f":"'[2]5.2 Asset Age Profile'!AK120","v":58},{"$f":"'[2]5.2 Asset Age Profile'!AL120","v":137},{"$f":"'[2]5.2 Asset Age Profile'!AM120","v":194},{"$f":"'[2]5.2 Asset Age Profile'!AN120","v":88},{"$f":"'[2]5.2 Asset Age Profile'!AO120","v":160},{"$f":"'[2]5.2 Asset Age Profile'!AP120","v":231},{"$f":"'[2]5.2 Asset Age Profile'!AQ120","v":470},{"$f":"'[2]5.2 Asset Age Profile'!AR120","v":595},{"$f":"'[2]5.2 Asset Age Profile'!AS120","v":381},{"$f":"'[2]5.2 Asset Age Profile'!AT120","v":301},{"$f":"'[2]5.2 Asset Age Profile'!AU120","v":376},{"$f":"'[2]5.2 Asset Age Profile'!AV120","v":313},{"$f":"'[2]5.2 Asset Age Profile'!AW120","v":253},{"$f":"'[2]5.2 Asset Age Profile'!AX120","v":268},{"$f":"'[2]5.2 Asset Age Profile'!AY120","v":993},{"$f":"'[2]5.2 Asset Age Profile'!AZ120","v":383},{"$f":"'[2]5.2 Asset Age Profile'!BA120","v":270},{"$f":"'[2]5.2 Asset Age Profile'!BB120","v":235},{"$f":"'[2]5.2 Asset Age Profile'!BC120","v":219},{"$f":"'[2]5.2 Asset Age Profile'!BD120","v":229},{"$f":"'[2]5.2 Asset Age Profile'!BE120","v":177},{"$f":"'[2]5.2 Asset Age Profile'!BF120","v":183},{"$f":"'[2]5.2 Asset Age Profile'!BG120","v":239},{"$f":"'[2]5.2 Asset Age Profile'!BH120","v":330},{"$f":"'[2]5.2 Asset Age Profile'!BI120","v":768},{"$f":"'[2]5.2 Asset Age Profile'!BJ120","v":225},{"$f":"'[2]5.2 Asset Age Profile'!BK120","v":147},{"$f":"'[2]5.2 Asset Age Profile'!BL120","v":181},{"$f":"'[2]5.2 Asset Age Profile'!BM120","v":173},{"$f":"'[2]5.2 Asset Age Profile'!BN120","v":176},{"$f":"'[2]5.2 Asset Age Profile'!BO120","v":174},{"$f":"'[2]5.2 Asset Age Profile'!BP120","v":93},{"$f":"'[2]5.2 Asset Age Profile'!BQ120","v":129},{"$f":"'[2]5.2 Asset Age Profile'!BR120","v":187},{"$f":"'[2]5.2 Asset Age Profile'!BS120","v":887},{"$f":"'[2]5.2 Asset Age Profile'!BT120","v":99},{"$f":"'[2]5.2 Asset Age Profile'!BU120","v":159},{"$f":"'[2]5.2 Asset Age Profile'!BV120","v":125},{"$f":"'[2]5.2 Asset Age Profile'!BW120","v":102},{"$f":"'[2]5.2 Asset Age Profile'!BX120","v":318},{"$f":"'[2]5.2 Asset Age Profile'!BY120","v":120},{"$f":"'[2]5.2 Asset Age Profile'!BZ120","v":107},{"$f":"'[2]5.2 Asset Age Profile'!CA120","v":74},{"$f":"'[2]5.2 Asset Age Profile'!CB120","v":101},{"$f":"'[2]5.2 Asset Age Profile'!CC120","v":513},{"$f":"'[2]5.2 Asset Age Profile'!CD120","v":129},{"$f":"'[2]5.2 Asset Age Profile'!CE120","v":100},{"$f":"'[2]5.2 Asset Age Profile'!CF120","v":112},{"$f":"'[2]5.2 Asset Age Profile'!CG120","v":162},{"$f":"'[2]5.2 Asset Age Profile'!CH120","v":203},{"$f":"'[2]5.2 Asset Age Profile'!CI120","v":20},{"$f":"'[2]5.2 Asset Age Profile'!CJ120","v":5},{"$f":"'[2]5.2 Asset Age Profile'!CK120","v":11},{"$f":"'[2]5.2 Asset Age Profile'!CL120","v":103},{"$f":"'[2]5.2 Asset Age Profile'!CM120","v":236},{"$f":"'[2]5.2 Asset Age Profile'!CN120","v":0},{"$f":"'[2]5.2 Asset Age Profile'!CO120","v":34},{"$f":"'[2]5.2 Asset Age Profile'!CP120","v":56},{"$f":"'[2]5.2 Asset Age Profile'!CQ120","v":12},{"$f":"'[2]5.2 Asset Age Profile'!CR120","v":42},{"$f":"'[2]5.2 Asset Age Profile'!CS120","v":2},{"$f":"'[2]5.2 Asset Age Profile'!CT120","v":43},{"$f":"'[2]5.2 Asset Age Profile'!CU120","v":17},{"$f":"'[2]5.2 Asset Age Profile'!CV120","v":7},{"$f":"'[2]5.2 Asset Age Profile'!CW120","v":223},{"$f":"'[2]5.2 Asset Age Profile'!CX120","v":6},{"$f":"'[2]5.2 Asset Age Profile'!CY120","v":13},{"$f":"'[2]5.2 Asset Age Profile'!CZ120","v":1},{"$f":"'[2]5.2 Asset Age Profile'!DA120","v":5},{"$f":"'[2]5.2 Asset Age Profile'!DB120","v":0},{"$f":"'[2]5.2 Asset Age Profile'!DC120","v":0},{"$f":"'[2]5.2 Asset Age Profile'!DD120","v":0},{"$f":"'[2]5.2 Asset Age Profile'!DE120","v":0},{"$f":"'[2]5.2 Asset Age Profile'!DF120","v":0},{"$f":"'[2]5.2 Asset Age Profile'!DG120","v":80},{"$f":"'[2]5.2 Asset Age Profile'!DH120","v":0},{"$f":"'[2]5.2 Asset Age Profile'!DI120","v":0},{"$f":"'[2]5.2 Asset Age Profile'!DJ120","v":0},{"$f":"'[2]5.2 Asset Age Profile'!DK120","v":0},{"$f":"'[2]5.2 Asset Age Profile'!DL120","v":0},{"$f":"'[2]5.2 Asset Age Profile'!DM120","v":2},{"$f":"'[2]5.2 Asset Age Profile'!DN120","v":0},{"$f":"'[2]5.2 Asset Age Profile'!DO120","v":0},{"$f":"'[2]5.2 Asset Age Profile'!DP120","v":0},{"$f":"'[2]5.2 Asset Age Profile'!DQ120","v":2},{"$f":"'[2]5.2 Asset Age Profile'!DR120","v":0},{"$f":"'[2]5.2 Asset Age Profile'!DS120","v":0},{"$f":"'[2]5.2 Asset Age Profile'!DT120","v":0},{"$f":"'[2]5.2 Asset Age Profile'!DU120","v":0},{"$f":"'[2]5.2 Asset Age Profile'!DV120","v":0},{"$f":"'[2]5.2 Asset Age Profile'!DW120","v":0},{"$f":"'[2]5.2 Asset Age Profile'!DX120","v":1},{"$f":"'[2]5.2 Asset Age Profile'!DY120","v":0},{"$f":"'[2]5.2 Asset Age Profile'!DZ120","v":0},{"$f":"'[2]5.2 Asset Age Profile'!EA120","v":0},{"$f":"'[2]5.2 Asset Age Profile'!EB120","v":0},{"$f":"'[2]5.2 Asset Age Profile'!EC120","v":0},{"$f":"'[2]5.2 Asset Age Profile'!ED120","v":0},{"$f":"'[2]5.2 Asset Age Profile'!EE120","v":0},{"$f":"'[2]5.2 Asset Age Profile'!EF120","v":0},{"$f":"'[2]5.2 Asset Age Profile'!EG120","v":0},{"$f":"'[2]5.2 Asset Age Profile'!EH120","v":0},{"$f":"'[2]5.2 Asset Age Profile'!EI120","v":0},{"$f":"'[2]5.2 Asset Age Profile'!EJ120","v":0}]
["ED_ASS521_00111",null,"Poles / Columns ; Minor Road",null,"DNSP NAME","REPEX","PUBLIC LIGHTING","Poles / Columns ; Minor Road","DESCRIPTOR METRIC","MEAN ECONOMIC LIFE","YEARS","NUMBER",null,{"$f":"'[2]5.2 Asset Age Profile'!N121","v":20},{"$f":"'[2]5.2 Asset Age Profile'!O121","v":0},{"$f":"'[2]5.2 Asset Age Profile'!P121","v":0},{"$f":"'[2]5.2 Asset Age Profile'!Q121","v":0},{"$f":"'[2]5.2 Asset Age Profile'!R121","v":0},{"$f":"'[2]5.2 Asset Age Profile'!S121","v":0},{"$f":"'[2]5.2 Asset Age Profile'!T121","v":0},{"$f":"'[2]5.2 Asset Age Profile'!U121","v":0},{"$f":"'[2]5.2 Asset Age Profile'!V121","v":0},{"$f":"'[2]5.2 Asset Age Profile'!W121","v":0},{"$f":"'[2]5.2 Asset Age Profile'!X121","v":0},{"$f":"'[2]5.2 Asset Age Profile'!Y121","v":4.4721359549995796},{"$f":"'[2]5.2 Asset Age Profile'!Z121","v":0},{"$f":"'[2]5.2 Asset Age Profile'!AA121","v":0},{"$f":"'[2]5.2 Asset Age Profile'!AB121","v":0},{"$f":"'[2]5.2 Asset Age Profile'!AC121","v":0},{"$f":"'[2]5.2 Asset Age Profile'!AD121","v":0},{"$f":"'[2]5.2 Asset Age Profile'!AE121","v":0},{"$f":"'[2]5.2 Asset Age Profile'!AF121","v":0},{"$f":"'[2]5.2 Asset Age Profile'!AG121","v":0},{"$f":"'[2]5.2 Asset Age Profile'!AH121","v":0},{"$f":"'[2]5.2 Asset Age Profile'!AI121","v":0},{"$f":"'[2]5.2 Asset Age Profile'!AJ121","v":504},{"$f":"'[2]5.2 Asset Age Profile'!AK121","v":1505},{"$f":"'[2]5.2 Asset Age Profile'!AL121","v":1815},{"$f":"'[2]5.2 Asset Age Profile'!AM121","v":2609},{"$f":"'[2]5.2 Asset Age Profile'!AN121","v":1191},{"$f":"'[2]5.2 Asset Age Profile'!AO121","v":1292},{"$f":"'[2]5.2 Asset Age Profile'!AP121","v":1197},{"$f":"'[2]5.2 Asset Age Profile'!AQ121","v":1609},{"$f":"'[2]5.2 Asset Age Profile'!AR121","v":1552},{"$f":"'[2]5.2 Asset Age Profile'!AS121","v":1451},{"$f":"'[2]5.2 Asset Age Profile'!AT121","v":2312},{"$f":"'[2]5.2 Asset Age Profile'!AU121","v":1869},{"$f":"'[2]5.2 Asset Age Profile'!AV121","v":1219},{"$f":"'[2]5.2 Asset Age Profile'!AW121","v":1196},{"$f":"'[2]5.2 Asset Age Profile'!AX121","v":1163},{"$f":"'[2]5.2 Asset Age Profile'!AY121","v":4560},{"$f":"'[2]5.2 Asset Age Profile'!AZ121","v":1078},{"$f":"'[2]5.2 Asset Age Profile'!BA121","v":470},{"$f":"'[2]5.2 Asset Age Profile'!BB121","v":461},{"$f":"'[2]5.2 Asset Age Profile'!BC121","v":742},{"$f":"'[2]5.2 Asset Age Profile'!BD121","v":1025},{"$f":"'[2]5.2 Asset Age Profile'!BE121","v":700},{"$f":"'[2]5.2 Asset Age Profile'!BF121","v":618},{"$f":"'[2]5.2 Asset Age Profile'!BG121","v":627},{"$f":"'[2]5.2 Asset Age Profile'!BH121","v":863},{"$f":"'[2]5.2 Asset Age Profile'!BI121","v":1986},{"$f":"'[2]5.2 Asset Age Profile'!BJ121","v":886},{"$f":"'[2]5.2 Asset Age Profile'!BK121","v":240},{"$f":"'[2]5.2 Asset Age Profile'!BL121","v":261},{"$f":"'[2]5.2 Asset Age Profile'!BM121","v":401},{"$f":"'[2]5.2 Asset Age Profile'!BN121","v":605},{"$f":"'[2]5.2 Asset Age Profile'!BO121","v":152},{"$f":"'[2]5.2 Asset Age Profile'!BP121","v":115},{"$f":"'[2]5.2 Asset Age Profile'!BQ121","v":218},{"$f":"'[2]5.2 Asset Age Profile'!BR121","v":503},{"$f":"'[2]5.2 Asset Age Profile'!BS121","v":2158},{"$f":"'[2]5.2 Asset Age Profile'!BT121","v":117},{"$f":"'[2]5.2 Asset Age Profile'!BU121","v":158},{"$f":"'[2]5.2 Asset Age Profile'!BV121","v":211},{"$f":"'[2]5.2 Asset Age Profile'!BW121","v":144},{"$f":"'[2]5.2 Asset Age Profile'!BX121","v":561},{"$f":"'[2]5.2 Asset Age Profile'!BY121","v":285},{"$f":"'[2]5.2 Asset Age Profile'!BZ121","v":182},{"$f":"'[2]5.2 Asset Age Profile'!CA121","v":87},{"$f":"'[2]5.2 Asset Age Profile'!CB121","v":152},{"$f":"'[2]5.2 Asset Age Profile'!CC121","v":563},{"$f":"'[2]5.2 Asset Age Profile'!CD121","v":127},{"$f":"'[2]5.2 Asset Age Profile'!CE121","v":106},{"$f":"'[2]5.2 Asset Age Profile'!CF121","v":268},{"$f":"'[2]5.2 Asset Age Profile'!CG121","v":311},{"$f":"'[2]5.2 Asset Age Profile'!CH121","v":197},{"$f":"'[2]5.2 Asset Age Profile'!CI121","v":72},{"$f":"'[2]5.2 Asset Age Profile'!CJ121","v":7},{"$f":"'[2]5.2 Asset Age Profile'!CK121","v":9},{"$f":"'[2]5.2 Asset Age Profile'!CL121","v":102},{"$f":"'[2]5.2 Asset Age Profile'!CM121","v":241},{"$f":"'[2]5.2 Asset Age Profile'!CN121","v":8},{"$f":"'[2]5.2 Asset Age Profile'!CO121","v":47},{"$f":"'[2]5.2 Asset Age Profile'!CP121","v":27},{"$f":"'[2]5.2 Asset Age Profile'!CQ121","v":22},{"$f":"'[2]5.2 Asset Age Profile'!CR121","v":126},{"$f":"'[2]5.2 Asset Age Profile'!CS121","v":10},{"$f":"'[2]5.2 Asset Age Profile'!CT121","v":147},{"$f":"'[2]5.2 Asset Age Profile'!CU121","v":111},{"$f":"'[2]5.2 Asset Age Profile'!CV121","v":15},{"$f":"'[2]5.2 Asset Age Profile'!CW121","v":336},{"$f":"'[2]5.2 Asset Age Profile'!CX121","v":22},{"$f":"'[2]5.2 Asset Age Profile'!CY121","v":5},{"$f":"'[2]5.2 Asset Age Profile'!CZ121","v":2},{"$f":"'[2]5.2 Asset Age Profile'!DA121","v":1},{"$f":"'[2]5.2 Asset Age Profile'!DB121","v":1},{"$f":"'[2]5.2 Asset Age Profile'!DC121","v":0},{"$f":"'[2]5.2 Asset Age Profile'!DD121","v":2},{"$f":"'[2]5.2 Asset Age Profile'!DE121","v":0},{"$f":"'[2]5.2 Asset Age Profile'!DF121","v":0},{"$f":"'[2]5.2 Asset Age Profile'!DG121","v":94},{"$f":"'[2]5.2 Asset Age Profile'!DH121","v":4},{"$f":"'[2]5.2 Asset Age Profile'!DI121","v":0},{"$f":"'[2]5.2 Asset Age Profile'!DJ121","v":4},{"$f":"'[2]5.2 Asset Age Profile'!DK121","v":0},{"$f":"'[2]5.2 Asset Age Profile'!DL121","v":3},{"$f":"'[2]5.2 Asset Age Profile'!DM121","v":0},{"$f":"'[2]5.2 Asset Age Profile'!DN121","v":0},{"$f":"'[2]5.2 Asset Age Profile'!DO121","v":0},{"$f":"'[2]5.2 Asset Age Profile'!DP121","v":10},{"$f":"'[2]5.2 Asset Age Profile'!DQ121","v":7},{"$f":"'[2]5.2 Asset Age Profile'!DR121","v":0},{"$f":"'[2]5.2 Asset Age Profile'!DS121","v":0},{"$f":"'[2]5.2 Asset Age Profile'!DT121","v":0},{"$f":"'[2]5.2 Asset Age Profile'!DU121","v":1},{"$f":"'[2]5.2 Asset Age Profile'!DV121","v":2},{"$f":"'[2]5.2 Asset Age Profile'!DW121","v":0},{"$f":"'[2]5.2 Asset Age Profile'!DX121","v":2},{"$f":"'[2]5.2 Asset Age Profile'!DY121","v":0},{"$f":"'[2]5.2 Asset Age Profile'!DZ121","v":0},{"$f":"'[2]5.2 Asset Age Profile'!EA121","v":0},{"$f":"'[2]5.2 Asset Age Profile'!EB121","v":0},{"$f":"'[2]5.2 Asset Age Profile'!EC121","v":0},{"$f":"'[2]5.2 Asset Age Profile'!ED121","v":0},{"$f":"'[2]5.2 Asset Age Profile'!EE121","v":0},{"$f":"'[2]5.2 Asset Age Profile'!EF121","v":0},{"$f":"'[2]5.2 Asset Age Profile'!EG121","v":0},{"$f":"'[2]5.2 Asset Age Profile'!EH121","v":0},{"$f":"'[2]5.2 Asset Age Profile'!EI121","v":0},{"$f":"'[2]5.2 Asset Age Profile'!EJ121","v":0}]
["ED_ASS521_00112",null,"Other",null,"DNSP NAME","REPEX","PUBLIC LIGHTING","Other","DESCRIPTOR METRIC","MEAN ECONOMIC LIFE","YEARS","NUMBER",null,{"$f":"'[2]5.2 Asset Age Profile'!N122","v":0},{"$f":"'[2]5.2 Asset Age Profile'!O122","v":0},{"$f":"'[2]5.2 Asset Age Profile'!P122","v":0},{"$f":"'[2]5.2 Asset Age Profile'!Q122","v":0},{"$f":"'[2]5.2 Asset Age Profile'!R122","v":0},{"$f":"'[2]5.2 Asset Age Profile'!S122","v":0},{"$f":"'[2]5.2 Asset Age Profile'!T122","v":0},{"$f":"'[2]5.2 Asset Age Profile'!U122","v":0},{"$f":"'[2]5.2 Asset Age Profile'!V122","v":0},{"$f":"'[2]5.2 Asset Age Profile'!W122","v":0},{"$f":"'[2]5.2 Asset Age Profile'!X122","v":0},{"$f":"'[2]5.2 Asset Age Profile'!Y122","v":0},{"$f":"'[2]5.2 Asset Age Profile'!Z122","v":0},{"$f":"'[2]5.2 Asset Age Profile'!AA122","v":0},{"$f":"'[2]5.2 Asset Age Profile'!AB122","v":0},{"$f":"'[2]5.2 Asset Age Profile'!AC122","v":0},{"$f":"'[2]5.2 Asset Age Profile'!AD122","v":0},{"$f":"'[2]5.2 Asset Age Profile'!AE122","v":0},{"$f":"'[2]5.2 Asset Age Profile'!AF122","v":0},{"$f":"'[2]5.2 Asset Age Profile'!AG122","v":0},{"$f":"'[2]5.2 Asset Age Profile'!AH122","v":0},{"$f":"'[2]5.2 Asset Age Profile'!AI122","v":0},{"$f":"'[2]5.2 Asset Age Profile'!AJ122","v":0},{"$f":"'[2]5.2 Asset Age Profile'!AK122","v":0},{"$f":"'[2]5.2 Asset Age Profile'!AL122","v":0},{"$f":"'[2]5.2 Asset Age Profile'!AM122","v":0},{"$f":"'[2]5.2 Asset Age Profile'!AN122","v":0},{"$f":"'[2]5.2 Asset Age Profile'!AO122","v":0},{"$f":"'[2]5.2 Asset Age Profile'!AP122","v":0},{"$f":"'[2]5.2 Asset Age Profile'!AQ122","v":0},{"$f":"'[2]5.2 Asset Age Profile'!AR122","v":0},{"$f":"'[2]5.2 Asset Age Profile'!AS122","v":0},{"$f":"'[2]5.2 Asset Age Profile'!AT122","v":0},{"$f":"'[2]5.2 Asset Age Profile'!AU122","v":0},{"$f":"'[2]5.2 Asset Age Profile'!AV122","v":0},{"$f":"'[2]5.2 Asset Age Profile'!AW122","v":0},{"$f":"'[2]5.2 Asset Age Profile'!AX122","v":0},{"$f":"'[2]5.2 Asset Age Profile'!AY122","v":0},{"$f":"'[2]5.2 Asset Age Profile'!AZ122","v":0},{"$f":"'[2]5.2 Asset Age Profile'!BA122","v":0},{"$f":"'[2]5.2 Asset Age Profile'!BB122","v":0},{"$f":"'[2]5.2 Asset Age Profile'!BC122","v":0},{"$f":"'[2]5.2 Asset Age Profile'!BD122","v":0},{"$f":"'[2]5.2 Asset Age Profile'!BE122","v":0},{"$f":"'[2]5.2 Asset Age Profile'!BF122","v":0},{"$f":"'[2]5.2 Asset Age Profile'!BG122","v":0},{"$f":"'[2]5.2 Asset Age Profile'!BH122","v":0},{"$f":"'[2]5.2 Asset Age Profile'!BI122","v":0},{"$f":"'[2]5.2 Asset Age Profile'!BJ122","v":0},{"$f":"'[2]5.2 Asset Age Profile'!BK122","v":0},{"$f":"'[2]5.2 Asset Age Profile'!BL122","v":0},{"$f":"'[2]5.2 Asset Age Profile'!BM122","v":0},{"$f":"'[2]5.2 Asset Age Profile'!BN122","v":0},{"$f":"'[2]5.2 Asset Age Profile'!BO122","v":0},{"$f":"'[2]5.2 Asset Age Profile'!BP122","v":0},{"$f":"'[2]5.2 Asset Age Profile'!BQ122","v":0},{"$f":"'[2]5.2 Asset Age Profile'!BR122","v":0},{"$f":"'[2]5.2 Asset Age Profile'!BS122","v":0},{"$f":"'[2]5.2 Asset Age Profile'!BT122","v":0},{"$f":"'[2]5.2 Asset Age Profile'!BU122","v":0},{"$f":"'[2]5.2 Asset Age Profile'!BV122","v":0},{"$f":"'[2]5.2 Asset Age Profile'!BW122","v":0},{"$f":"'[2]5.2 Asset Age Profile'!BX122","v":0},{"$f":"'[2]5.2 Asset Age Profile'!BY122","v":0},{"$f":"'[2]5.2 Asset Age Profile'!BZ122","v":0},{"$f":"'[2]5.2 Asset Age Profile'!CA122","v":0},{"$f":"'[2]5.2 Asset Age Profile'!CB122","v":0},{"$f":"'[2]5.2 Asset Age Profile'!CC122","v":0},{"$f":"'[2]5.2 Asset Age Profile'!CD122","v":0},{"$f":"'[2]5.2 Asset Age Profile'!CE122","v":0},{"$f":"'[2]5.2 Asset Age Profile'!CF122","v":0},{"$f":"'[2]5.2 Asset Age Profile'!CG122","v":0},{"$f":"'[2]5.2 Asset Age Profile'!CH122","v":0},{"$f":"'[2]5.2 Asset Age Profile'!CI122","v":0},{"$f":"'[2]5.2 Asset Age Profile'!CJ122","v":0},{"$f":"'[2]5.2 Asset Age Profile'!CK122","v":0},{"$f":"'[2]5.2 Asset Age Profile'!CL122","v":0},{"$f":"'[2]5.2 Asset Age Profile'!CM122","v":0},{"$f":"'[2]5.2 Asset Age Profile'!CN122","v":0},{"$f":"'[2]5.2 Asset Age Profile'!CO122","v":0},{"$f":"'[2]5.2 Asset Age Profile'!CP122","v":0},{"$f":"'[2]5.2 Asset Age Profile'!CQ122","v":0},{"$f":"'[2]5.2 Asset Age Profile'!CR122","v":0},{"$f":"'[2]5.2 Asset Age Profile'!CS122","v":0},{"$f":"'[2]5.2 Asset Age Profile'!CT122","v":0},{"$f":"'[2]5.2 Asset Age Profile'!CU122","v":0},{"$f":"'[2]5.2 Asset Age Profile'!CV122","v":0},{"$f":"'[2]5.2 Asset Age Profile'!CW122","v":0},{"$f":"'[2]5.2 Asset Age Profile'!CX122","v":0},{"$f":"'[2]5.2 Asset Age Profile'!CY122","v":0},{"$f":"'[2]5.2 Asset Age Profile'!CZ122","v":0},{"$f":"'[2]5.2 Asset Age Profile'!DA122","v":0},{"$f":"'[2]5.2 Asset Age Profile'!DB122","v":0},{"$f":"'[2]5.2 Asset Age Profile'!DC122","v":0},{"$f":"'[2]5.2 Asset Age Profile'!DD122","v":0},{"$f":"'[2]5.2 Asset Age Profile'!DE122","v":0},{"$f":"'[2]5.2 Asset Age Profile'!DF122","v":0},{"$f":"'[2]5.2 Asset Age Profile'!DG122","v":0},{"$f":"'[2]5.2 Asset Age Profile'!DH122","v":0},{"$f":"'[2]5.2 Asset Age Profile'!DI122","v":0},{"$f":"'[2]5.2 Asset Age Profile'!DJ122","v":0},{"$f":"'[2]5.2 Asset Age Profile'!DK122","v":0},{"$f":"'[2]5.2 Asset Age Profile'!DL122","v":0},{"$f":"'[2]5.2 Asset Age Profile'!DM122","v":0},{"$f":"'[2]5.2 Asset Age Profile'!DN122","v":0},{"$f":"'[2]5.2 Asset Age Profile'!DO122","v":0},{"$f":"'[2]5.2 Asset Age Profile'!DP122","v":0},{"$f":"'[2]5.2 Asset Age Profile'!DQ122","v":0},{"$f":"'[2]5.2 Asset Age Profile'!DR122","v":0},{"$f":"'[2]5.2 Asset Age Profile'!DS122","v":0},{"$f":"'[2]5.2 Asset Age Profile'!DT122","v":0},{"$f":"'[2]5.2 Asset Age Profile'!DU122","v":0},{"$f":"'[2]5.2 Asset Age Profile'!DV122","v":0},{"$f":"'[2]5.2 Asset Age Profile'!DW122","v":0},{"$f":"'[2]5.2 Asset Age Profile'!DX122","v":0},{"$f":"'[2]5.2 Asset Age Profile'!DY122","v":0},{"$f":"'[2]5.2 Asset Age Profile'!DZ122","v":0},{"$f":"'[2]5.2 Asset Age Profile'!EA122","v":0},{"$f":"'[2]5.2 Asset Age Profile'!EB122","v":0},{"$f":"'[2]5.2 Asset Age Profile'!EC122","v":0},{"$f":"'[2]5.2 Asset Age Profile'!ED122","v":0},{"$f":"'[2]5.2 Asset Age Profile'!EE122","v":0},{"$f":"'[2]5.2 Asset Age Profile'!EF122","v":0},{"$f":"'[2]5.2 Asset Age Profile'!EG122","v":0},{"$f":"'[2]5.2 Asset Age Profile'!EH122","v":0},{"$f":"'[2]5.2 Asset Age Profile'!EI122","v":0},{"$f":"'[2]5.2 Asset Age Profile'!EJ122","v":0}]
["ED_ASS521_00113","SCADA, NETWORK CONTROL AND PROTECTION SYSTEMS BY: \nFUNCTION","Field Devices",null,"DNSP NAME","REPEX","SCADA AND PROTECTION","Field Devices","DESCRIPTOR METRIC","MEAN ECONOMIC LIFE","YEARS","NUMBER",null,{"$f":"'[2]5.2 Asset Age Profile'!N123","v":8.0399999999999991},{"$f":"'[2]5.2 Asset Age Profile'!O123","v":0},{"$f":"'[2]5.2 Asset Age Profile'!P123","v":0},{"$f":"'[2]5.2 Asset Age Profile'!Q123","v":0},{"$f":"'[2]5.2 Asset Age Profile'!R123","v":0},{"$f":"'[2]5.2 Asset Age Profile'!S123","v":0},{"$f":"'[2]5.2 Asset Age Profile'!T123","v":0},{"$f":"'[2]5.2 Asset Age Profile'!U123","v":0},{"$f":"'[2]5.2 Asset Age Profile'!V123","v":0},{"$f":"'[2]5.2 Asset Age Profile'!W123","v":0},{"$f":"'[2]5.2 Asset Age Profile'!X123","v":0},{"$f":"'[2]5.2 Asset Age Profile'!Y123","v":2.8354893757515649},{"$f":"'[2]5.2 Asset Age Profile'!Z123","v":0},{"$f":"'[2]5.2 Asset Age Profile'!AA123","v":0},{"$f":"'[2]5.2 Asset Age Profile'!AB123","v":0},{"$f":"'[2]5.2 Asset Age Profile'!AC123","v":0},{"$f":"'[2]5.2 Asset Age Profile'!AD123","v":0},{"$f":"'[2]5.2 Asset Age Profile'!AE123","v":0},{"$f":"'[2]5.2 Asset Age Profile'!AF123","v":0},{"$f":"'[2]5.2 Asset Age Profile'!AG123","v":0},{"$f":"'[2]5.2 Asset Age Profile'!AH123","v":0},{"$f":"'[2]5.2 Asset Age Profile'!AI123","v":0},{"$f":"'[2]5.2 Asset Age Profile'!AJ123","v":345},{"$f":"'[2]5.2 Asset Age Profile'!AK123","v":341},{"$f":"'[2]5.2 Asset Age Profile'!AL123","v":323},{"$f":"'[2]5.2 Asset Age Profile'!AM123","v":264},{"$f":"'[2]5.2 Asset Age Profile'!AN123","v":261},{"$f":"'[2]5.2 Asset Age Profile'!AO123","v":244},{"$f":"'[2]5.2 Asset Age Profile'!AP123","v":225},{"$f":"'[2]5.2 Asset Age Profile'!AQ123","v":218},{"$f":"'[2]5.2 Asset Age Profile'!AR123","v":215},{"$f":"'[2]5.2 Asset Age Profile'!AS123","v":206},{"$f":"'[2]5.2 Asset Age Profile'!AT123","v":203},{"$f":"'[2]5.2 Asset Age Profile'!AU123","v":203},{"$f":"'[2]5.2 Asset Age Profile'!AV123","v":200},{"$f":"'[2]5.2 Asset Age Profile'!AW123","v":195},{"$f":"'[2]5.2 Asset Age Profile'!AX123","v":0},{"$f":"'[2]5.2 Asset Age Profile'!AY123","v":0},{"$f":"'[2]5.2 Asset Age Profile'!AZ123","v":0},{"$f":"'[2]5.2 Asset Age Profile'!BA123","v":0},{"$f":"'[2]5.2 Asset Age Profile'!BB123","v":0},{"$f":"'[2]5.2 Asset Age Profile'!BC123","v":0},{"$f":"'[2]5.2 Asset Age Profile'!BD123","v":0},{"$f":"'[2]5.2 Asset Age Profile'!BE123","v":0},{"$f":"'[2]5.2 Asset Age Profile'!BF123","v":0},{"$f":"'[2]5.2 Asset Age Profile'!BG123","v":0},{"$f":"'[2]5.2 Asset Age Profile'!BH123","v":0},{"$f":"'[2]5.2 Asset Age Profile'!BI123","v":0},{"$f":"'[2]5.2 Asset Age Profile'!BJ123","v":0},{"$f":"'[2]5.2 Asset Age Profile'!BK123","v":0},{"$f":"'[2]5.2 Asset Age Profile'!BL123","v":0},{"$f":"'[2]5.2 Asset Age Profile'!BM123","v":0},{"$f":"'[2]5.2 Asset Age Profile'!BN123","v":0},{"$f":"'[2]5.2 Asset Age Profile'!BO123","v":0},{"$f":"'[2]5.2 Asset Age Profile'!BP123","v":0},{"$f":"'[2]5.2 Asset Age Profile'!BQ123","v":0},{"$f":"'[2]5.2 Asset Age Profile'!BR123","v":0},{"$f":"'[2]5.2 Asset Age Profile'!BS123","v":0},{"$f":"'[2]5.2 Asset Age Profile'!BT123","v":0},{"$f":"'[2]5.2 Asset Age Profile'!BU123","v":0},{"$f":"'[2]5.2 Asset Age Profile'!BV123","v":0},{"$f":"'[2]5.2 Asset Age Profile'!BW123","v":0},{"$f":"'[2]5.2 Asset Age Profile'!BX123","v":0},{"$f":"'[2]5.2 Asset Age Profile'!BY123","v":0},{"$f":"'[2]5.2 Asset Age Profile'!BZ123","v":0},{"$f":"'[2]5.2 Asset Age Profile'!CA123","v":0},{"$f":"'[2]5.2 Asset Age Profile'!CB123","v":0},{"$f":"'[2]5.2 Asset Age Profile'!CC123","v":0},{"$f":"'[2]5.2 Asset Age Profile'!CD123","v":0},{"$f":"'[2]5.2 Asset Age Profile'!CE123","v":0},{"$f":"'[2]5.2 Asset Age Profile'!CF123","v":0},{"$f":"'[2]5.2 Asset Age Profile'!CG123","v":0},{"$f":"'[2]5.2 Asset Age Profile'!CH123","v":0},{"$f":"'[2]5.2 Asset Age Profile'!CI123","v":0},{"$f":"'[2]5.2 Asset Age Profile'!CJ123","v":0},{"$f":"'[2]5.2 Asset Age Profile'!CK123","v":0},{"$f":"'[2]5.2 Asset Age Profile'!CL123","v":0},{"$f":"'[2]5.2 Asset Age Profile'!CM123","v":0},{"$f":"'[2]5.2 Asset Age Profile'!CN123","v":0},{"$f":"'[2]5.2 Asset Age Profile'!CO123","v":0},{"$f":"'[2]5.2 Asset Age Profile'!CP123","v":0},{"$f":"'[2]5.2 Asset Age Profile'!CQ123","v":0},{"$f":"'[2]5.2 Asset Age Profile'!CR123","v":0},{"$f":"'[2]5.2 Asset Age Profile'!CS123","v":0},{"$f":"'[2]5.2 Asset Age Profile'!CT123","v":0},{"$f":"'[2]5.2 Asset Age Profile'!CU123","v":0},{"$f":"'[2]5.2 Asset Age Profile'!CV123","v":0},{"$f":"'[2]5.2 Asset Age Profile'!CW123","v":0},{"$f":"'[2]5.2 Asset Age Profile'!CX123","v":0},{"$f":"'[2]5.2 Asset Age Profile'!CY123","v":0},{"$f":"'[2]5.2 Asset Age Profile'!CZ123","v":0},{"$f":"'[2]5.2 Asset Age Profile'!DA123","v":0},{"$f":"'[2]5.2 Asset Age Profile'!DB123","v":0},{"$f":"'[2]5.2 Asset Age Profile'!DC123","v":0},{"$f":"'[2]5.2 Asset Age Profile'!DD123","v":0},{"$f":"'[2]5.2 Asset Age Profile'!DE123","v":0},{"$f":"'[2]5.2 Asset Age Profile'!DF123","v":0},{"$f":"'[2]5.2 Asset Age Profile'!DG123","v":0},{"$f":"'[2]5.2 Asset Age Profile'!DH123","v":0},{"$f":"'[2]5.2 Asset Age Profile'!DI123","v":0},{"$f":"'[2]5.2 Asset Age Profile'!DJ123","v":0},{"$f":"'[2]5.2 Asset Age Profile'!DK123","v":0},{"$f":"'[2]5.2 Asset Age Profile'!DL123","v":0},{"$f":"'[2]5.2 Asset Age Profile'!DM123","v":0},{"$f":"'[2]5.2 Asset Age Profile'!DN123","v":0},{"$f":"'[2]5.2 Asset Age Profile'!DO123","v":0},{"$f":"'[2]5.2 Asset Age Profile'!DP123","v":0},{"$f":"'[2]5.2 Asset Age Profile'!DQ123","v":0},{"$f":"'[2]5.2 Asset Age Profile'!DR123","v":0},{"$f":"'[2]5.2 Asset Age Profile'!DS123","v":0},{"$f":"'[2]5.2 Asset Age Profile'!DT123","v":0},{"$f":"'[2]5.2 Asset Age Profile'!DU123","v":0},{"$f":"'[2]5.2 Asset Age Profile'!DV123","v":0},{"$f":"'[2]5.2 Asset Age Profile'!DW123","v":0},{"$f":"'[2]5.2 Asset Age Profile'!DX123","v":0},{"$f":"'[2]5.2 Asset Age Profile'!DY123","v":0},{"$f":"'[2]5.2 Asset Age Profile'!DZ123","v":0},{"$f":"'[2]5.2 Asset Age Profile'!EA123","v":0},{"$f":"'[2]5.2 Asset Age Profile'!EB123","v":0},{"$f":"'[2]5.2 Asset Age Profile'!EC123","v":0},{"$f":"'[2]5.2 Asset Age Profile'!ED123","v":0},{"$f":"'[2]5.2 Asset Age Profile'!EE123","v":0},{"$f":"'[2]5.2 Asset Age Profile'!EF123","v":0},{"$f":"'[2]5.2 Asset Age Profile'!EG123","v":0},{"$f":"'[2]5.2 Asset Age Profile'!EH123","v":0},{"$f":"'[2]5.2 Asset Age Profile'!EI123","v":0},{"$f":"'[2]5.2 Asset Age Profile'!EJ123","v":0}]
["ED_ASS521_00114",null,"Local Network Wiring Assets",null,"DNSP NAME","REPEX","SCADA AND PROTECTION","Local Network Wiring Assets","DESCRIPTOR METRIC","MEAN ECONOMIC LIFE","YEARS","NUMBER",null,{"$f":"'[2]5.2 Asset Age Profile'!N124","v":0},{"$f":"'[2]5.2 Asset Age Profile'!O124","v":0},{"$f":"'[2]5.2 Asset Age Profile'!P124","v":0},{"$f":"'[2]5.2 Asset Age Profile'!Q124","v":0},{"$f":"'[2]5.2 Asset Age Profile'!R124","v":0},{"$f":"'[2]5.2 Asset Age Profile'!S124","v":0},{"$f":"'[2]5.2 Asset Age Profile'!T124","v":0},{"$f":"'[2]5.2 Asset Age Profile'!U124","v":0},{"$f":"'[2]5.2 Asset Age Profile'!V124","v":0},{"$f":"'[2]5.2 Asset Age Profile'!W124","v":0},{"$f":"'[2]5.2 Asset Age Profile'!X124","v":0},{"$f":"'[2]5.2 Asset Age Profile'!Y124","v":0},{"$f":"'[2]5.2 Asset Age Profile'!Z124","v":0},{"$f":"'[2]5.2 Asset Age Profile'!AA124","v":0},{"$f":"'[2]5.2 Asset Age Profile'!AB124","v":0},{"$f":"'[2]5.2 Asset Age Profile'!AC124","v":0},{"$f":"'[2]5.2 Asset Age Profile'!AD124","v":0},{"$f":"'[2]5.2 Asset Age Profile'!AE124","v":0},{"$f":"'[2]5.2 Asset Age Profile'!AF124","v":0},{"$f":"'[2]5.2 Asset Age Profile'!AG124","v":0},{"$f":"'[2]5.2 Asset Age Profile'!AH124","v":0},{"$f":"'[2]5.2 Asset Age Profile'!AI124","v":0},{"$f":"'[2]5.2 Asset Age Profile'!AJ124","v":0},{"$f":"'[2]5.2 Asset Age Profile'!AK124","v":0},{"$f":"'[2]5.2 Asset Age Profile'!AL124","v":0},{"$f":"'[2]5.2 Asset Age Profile'!AM124","v":0},{"$f":"'[2]5.2 Asset Age Profile'!AN124","v":0},{"$f":"'[2]5.2 Asset Age Profile'!AO124","v":0},{"$f":"'[2]5.2 Asset Age Profile'!AP124","v":0},{"$f":"'[2]5.2 Asset Age Profile'!AQ124","v":0},{"$f":"'[2]5.2 Asset Age Profile'!AR124","v":0},{"$f":"'[2]5.2 Asset Age Profile'!AS124","v":0},{"$f":"'[2]5.2 Asset Age Profile'!AT124","v":0},{"$f":"'[2]5.2 Asset Age Profile'!AU124","v":0},{"$f":"'[2]5.2 Asset Age Profile'!AV124","v":0},{"$f":"'[2]5.2 Asset Age Profile'!AW124","v":0},{"$f":"'[2]5.2 Asset Age Profile'!AX124","v":0},{"$f":"'[2]5.2 Asset Age Profile'!AY124","v":0},{"$f":"'[2]5.2 Asset Age Profile'!AZ124","v":0},{"$f":"'[2]5.2 Asset Age Profile'!BA124","v":0},{"$f":"'[2]5.2 Asset Age Profile'!BB124","v":0},{"$f":"'[2]5.2 Asset Age Profile'!BC124","v":0},{"$f":"'[2]5.2 Asset Age Profile'!BD124","v":0},{"$f":"'[2]5.2 Asset Age Profile'!BE124","v":0},{"$f":"'[2]5.2 Asset Age Profile'!BF124","v":0},{"$f":"'[2]5.2 Asset Age Profile'!BG124","v":0},{"$f":"'[2]5.2 Asset Age Profile'!BH124","v":0},{"$f":"'[2]5.2 Asset Age Profile'!BI124","v":0},{"$f":"'[2]5.2 Asset Age Profile'!BJ124","v":0},{"$f":"'[2]5.2 Asset Age Profile'!BK124","v":0},{"$f":"'[2]5.2 Asset Age Profile'!BL124","v":0},{"$f":"'[2]5.2 Asset Age Profile'!BM124","v":0},{"$f":"'[2]5.2 Asset Age Profile'!BN124","v":0},{"$f":"'[2]5.2 Asset Age Profile'!BO124","v":0},{"$f":"'[2]5.2 Asset Age Profile'!BP124","v":0},{"$f":"'[2]5.2 Asset Age Profile'!BQ124","v":0},{"$f":"'[2]5.2 Asset Age Profile'!BR124","v":0},{"$f":"'[2]5.2 Asset Age Profile'!BS124","v":0},{"$f":"'[2]5.2 Asset Age Profile'!BT124","v":0},{"$f":"'[2]5.2 Asset Age Profile'!BU124","v":0},{"$f":"'[2]5.2 Asset Age Profile'!BV124","v":0},{"$f":"'[2]5.2 Asset Age Profile'!BW124","v":0},{"$f":"'[2]5.2 Asset Age Profile'!BX124","v":0},{"$f":"'[2]5.2 Asset Age Profile'!BY124","v":0},{"$f":"'[2]5.2 Asset Age Profile'!BZ124","v":0},{"$f":"'[2]5.2 Asset Age Profile'!CA124","v":0},{"$f":"'[2]5.2 Asset Age Profile'!CB124","v":0},{"$f":"'[2]5.2 Asset Age Profile'!CC124","v":0},{"$f":"'[2]5.2 Asset Age Profile'!CD124","v":0},{"$f":"'[2]5.2 Asset Age Profile'!CE124","v":0},{"$f":"'[2]5.2 Asset Age Profile'!CF124","v":0},{"$f":"'[2]5.2 Asset Age Profile'!CG124","v":0},{"$f":"'[2]5.2 Asset Age Profile'!CH124","v":0},{"$f":"'[2]5.2 Asset Age Profile'!CI124","v":0},{"$f":"'[2]5.2 Asset Age Profile'!CJ124","v":0},{"$f":"'[2]5.2 Asset Age Profile'!CK124","v":0},{"$f":"'[2]5.2 Asset Age Profile'!CL124","v":0},{"$f":"'[2]5.2 Asset Age Profile'!CM124","v":0},{"$f":"'[2]5.2 Asset Age Profile'!CN124","v":0},{"$f":"'[2]5.2 Asset Age Profile'!CO124","v":0},{"$f":"'[2]5.2 Asset Age Profile'!CP124","v":0},{"$f":"'[2]5.2 Asset Age Profile'!CQ124","v":0},{"$f":"'[2]5.2 Asset Age Profile'!CR124","v":0},{"$f":"'[2]5.2 Asset Age Profile'!CS124","v":0},{"$f":"'[2]5.2 Asset Age Profile'!CT124","v":0},{"$f":"'[2]5.2 Asset Age Profile'!CU124","v":0},{"$f":"'[2]5.2 Asset Age Profile'!CV124","v":0},{"$f":"'[2]5.2 Asset Age Profile'!CW124","v":0},{"$f":"'[2]5.2 Asset Age Profile'!CX124","v":0},{"$f":"'[2]5.2 Asset Age Profile'!CY124","v":0},{"$f":"'[2]5.2 Asset Age Profile'!CZ124","v":0},{"$f":"'[2]5.2 Asset Age Profile'!DA124","v":0},{"$f":"'[2]5.2 Asset Age Profile'!DB124","v":0},{"$f":"'[2]5.2 Asset Age Profile'!DC124","v":0},{"$f":"'[2]5.2 Asset Age Profile'!DD124","v":0},{"$f":"'[2]5.2 Asset Age Profile'!DE124","v":0},{"$f":"'[2]5.2 Asset Age Profile'!DF124","v":0},{"$f":"'[2]5.2 Asset Age Profile'!DG124","v":0},{"$f":"'[2]5.2 Asset Age Profile'!DH124","v":0},{"$f":"'[2]5.2 Asset Age Profile'!DI124","v":0},{"$f":"'[2]5.2 Asset Age Profile'!DJ124","v":0},{"$f":"'[2]5.2 Asset Age Profile'!DK124","v":0},{"$f":"'[2]5.2 Asset Age Profile'!DL124","v":0},{"$f":"'[2]5.2 Asset Age Profile'!DM124","v":0},{"$f":"'[2]5.2 Asset Age Profile'!DN124","v":0},{"$f":"'[2]5.2 Asset Age Profile'!DO124","v":0},{"$f":"'[2]5.2 Asset Age Profile'!DP124","v":0},{"$f":"'[2]5.2 Asset Age Profile'!DQ124","v":0},{"$f":"'[2]5.2 Asset Age Profile'!DR124","v":0},{"$f":"'[2]5.2 Asset Age Profile'!DS124","v":0},{"$f":"'[2]5.2 Asset Age Profile'!DT124","v":0},{"$f":"'[2]5.2 Asset Age Profile'!DU124","v":0},{"$f":"'[2]5.2 Asset Age Profile'!DV124","v":0},{"$f":"'[2]5.2 Asset Age Profile'!DW124","v":0},{"$f":"'[2]5.2 Asset Age Profile'!DX124","v":0},{"$f":"'[2]5.2 Asset Age Profile'!DY124","v":0},{"$f":"'[2]5.2 Asset Age Profile'!DZ124","v":0},{"$f":"'[2]5.2 Asset Age Profile'!EA124","v":0},{"$f":"'[2]5.2 Asset Age Profile'!EB124","v":0},{"$f":"'[2]5.2 Asset Age Profile'!EC124","v":0},{"$f":"'[2]5.2 Asset Age Profile'!ED124","v":0},{"$f":"'[2]5.2 Asset Age Profile'!EE124","v":0},{"$f":"'[2]5.2 Asset Age Profile'!EF124","v":0},{"$f":"'[2]5.2 Asset Age Profile'!EG124","v":0},{"$f":"'[2]5.2 Asset Age Profile'!EH124","v":0},{"$f":"'[2]5.2 Asset Age Profile'!EI124","v":0},{"$f":"'[2]5.2 Asset Age Profile'!EJ124","v":0}]
["ED_ASS521_00115",null,"Communications Network Assets",null,"DNSP NAME","REPEX","SCADA AND PROTECTION","Communications Network Assets","DESCRIPTOR METRIC","MEAN ECONOMIC LIFE","YEARS","NUMBER",null,{"$f":"'[2]5.2 Asset Age Profile'!N125","v":10},{"$f":"'[2]5.2 Asset Age Profile'!O125","v":0},{"$f":"'[2]5.2 Asset Age Profile'!P125","v":0},{"$f":"'[2]5.2 Asset Age Profile'!Q125","v":0},{"$f":"'[2]5.2 Asset Age Profile'!R125","v":0},{"$f":"'[2]5.2 Asset Age Profile'!S125","v":0},{"$f":"'[2]5.2 Asset Age Profile'!T125","v":0},{"$f":"'[2]5.2 Asset Age Profile'!U125","v":0},{"$f":"'[2]5.2 Asset Age Profile'!V125","v":0},{"$f":"'[2]5.2 Asset Age Profile'!W125","v":0},{"$f":"'[2]5.2 Asset Age Profile'!X125","v":0},{"$f":"'[2]5.2 Asset Age Profile'!Y125","v":3.1622776601683795},{"$f":"'[2]5.2 Asset Age Profile'!Z125","v":0},{"$f":"'[2]5.2 Asset Age Profile'!AA125","v":0},{"$f":"'[2]5.2 Asset Age Profile'!AB125","v":0},{"$f":"'[2]5.2 Asset Age Profile'!AC125","v":0},{"$f":"'[2]5.2 Asset Age Profile'!AD125","v":0},{"$f":"'[2]5.2 Asset Age Profile'!AE125","v":0},{"$f":"'[2]5.2 Asset Age Profile'!AF125","v":0},{"$f":"'[2]5.2 Asset Age Profile'!AG125","v":0},{"$f":"'[2]5.2 Asset Age Profile'!AH125","v":0},{"$f":"'[2]5.2 Asset Age Profile'!AI125","v":0},{"$f":"'[2]5.2 Asset Age Profile'!AJ125","v":81},{"$f":"'[2]5.2 Asset Age Profile'!AK125","v":141},{"$f":"'[2]5.2 Asset Age Profile'!AL125","v":39},{"$f":"'[2]5.2 Asset Age Profile'!AM125","v":55},{"$f":"'[2]5.2 Asset Age Profile'!AN125","v":57},{"$f":"'[2]5.2 Asset Age Profile'!AO125","v":45},{"$f":"'[2]5.2 Asset Age Profile'!AP125","v":21},{"$f":"'[2]5.2 Asset Age Profile'!AQ125","v":26},{"$f":"'[2]5.2 Asset Age Profile'!AR125","v":31},{"$f":"'[2]5.2 Asset Age Profile'!AS125","v":17},{"$f":"'[2]5.2 Asset Age Profile'!AT125","v":12},{"$f":"'[2]5.2 Asset Age Profile'!AU125","v":23},{"$f":"'[2]5.2 Asset Age Profile'!AV125","v":14},{"$f":"'[2]5.2 Asset Age Profile'!AW125","v":0},{"$f":"'[2]5.2 Asset Age Profile'!AX125","v":20},{"$f":"'[2]5.2 Asset Age Profile'!AY125","v":5},{"$f":"'[2]5.2 Asset Age Profile'!AZ125","v":4},{"$f":"'[2]5.2 Asset Age Profile'!BA125","v":3},{"$f":"'[2]5.2 Asset Age Profile'!BB125","v":21},{"$f":"'[2]5.2 Asset Age Profile'!BC125","v":0},{"$f":"'[2]5.2 Asset Age Profile'!BD125","v":0},{"$f":"'[2]5.2 Asset Age Profile'!BE125","v":24},{"$f":"'[2]5.2 Asset Age Profile'!BF125","v":0},{"$f":"'[2]5.2 Asset Age Profile'!BG125","v":0},{"$f":"'[2]5.2 Asset Age Profile'!BH125","v":0},{"$f":"'[2]5.2 Asset Age Profile'!BI125","v":0},{"$f":"'[2]5.2 Asset Age Profile'!BJ125","v":0},{"$f":"'[2]5.2 Asset Age Profile'!BK125","v":0},{"$f":"'[2]5.2 Asset Age Profile'!BL125","v":0},{"$f":"'[2]5.2 Asset Age Profile'!BM125","v":0},{"$f":"'[2]5.2 Asset Age Profile'!BN125","v":0},{"$f":"'[2]5.2 Asset Age Profile'!BO125","v":0},{"$f":"'[2]5.2 Asset Age Profile'!BP125","v":0},{"$f":"'[2]5.2 Asset Age Profile'!BQ125","v":0},{"$f":"'[2]5.2 Asset Age Profile'!BR125","v":0},{"$f":"'[2]5.2 Asset Age Profile'!BS125","v":0},{"$f":"'[2]5.2 Asset Age Profile'!BT125","v":0},{"$f":"'[2]5.2 Asset Age Profile'!BU125","v":0},{"$f":"'[2]5.2 Asset Age Profile'!BV125","v":0},{"$f":"'[2]5.2 Asset Age Profile'!BW125","v":0},{"$f":"'[2]5.2 Asset Age Profile'!BX125","v":0},{"$f":"'[2]5.2 Asset Age Profile'!BY125","v":0},{"$f":"'[2]5.2 Asset Age Profile'!BZ125","v":0},{"$f":"'[2]5.2 Asset Age Profile'!CA125","v":0},{"$f":"'[2]5.2 Asset Age Profile'!CB125","v":0},{"$f":"'[2]5.2 Asset Age Profile'!CC125","v":0},{"$f":"'[2]5.2 Asset Age Profile'!CD125","v":0},{"$f":"'[2]5.2 Asset Age Profile'!CE125","v":0},{"$f":"'[2]5.2 Asset Age Profile'!CF125","v":0},{"$f":"'[2]5.2 Asset Age Profile'!CG125","v":0},{"$f":"'[2]5.2 Asset Age Profile'!CH125","v":0},{"$f":"'[2]5.2 Asset Age Profile'!CI125","v":0},{"$f":"'[2]5.2 Asset Age Profile'!CJ125","v":0},{"$f":"'[2]5.2 Asset Age Profile'!CK125","v":0},{"$f":"'[2]5.2 Asset Age Profile'!CL125","v":0},{"$f":"'[2]5.2 Asset Age Profile'!CM125","v":0},{"$f":"'[2]5.2 Asset Age Profile'!CN125","v":0},{"$f":"'[2]5.2 Asset Age Profile'!CO125","v":0},{"$f":"'[2]5.2 Asset Age Profile'!CP125","v":0},{"$f":"'[2]5.2 Asset Age Profile'!CQ125","v":0},{"$f":"'[2]5.2 Asset Age Profile'!CR125","v":0},{"$f":"'[2]5.2 Asset Age Profile'!CS125","v":0},{"$f":"'[2]5.2 Asset Age Profile'!CT125","v":0},{"$f":"'[2]5.2 Asset Age Profile'!CU125","v":0},{"$f":"'[2]5.2 Asset Age Profile'!CV125","v":0},{"$f":"'[2]5.2 Asset Age Profile'!CW125","v":0},{"$f":"'[2]5.2 Asset Age Profile'!CX125","v":0},{"$f":"'[2]5.2 Asset Age Profile'!CY125","v":0},{"$f":"'[2]5.2 Asset Age Profile'!CZ125","v":0},{"$f":"'[2]5.2 Asset Age Profile'!DA125","v":0},{"$f":"'[2]5.2 Asset Age Profile'!DB125","v":0},{"$f":"'[2]5.2 Asset Age Profile'!DC125","v":0},{"$f":"'[2]5.2 Asset Age Profile'!DD125","v":0},{"$f":"'[2]5.2 Asset Age Profile'!DE125","v":0},{"$f":"'[2]5.2 Asset Age Profile'!DF125","v":0},{"$f":"'[2]5.2 Asset Age Profile'!DG125","v":0},{"$f":"'[2]5.2 Asset Age Profile'!DH125","v":0},{"$f":"'[2]5.2 Asset Age Profile'!DI125","v":0},{"$f":"'[2]5.2 Asset Age Profile'!DJ125","v":0},{"$f":"'[2]5.2 Asset Age Profile'!DK125","v":0},{"$f":"'[2]5.2 Asset Age Profile'!DL125","v":0},{"$f":"'[2]5.2 Asset Age Profile'!DM125","v":0},{"$f":"'[2]5.2 Asset Age Profile'!DN125","v":0},{"$f":"'[2]5.2 Asset Age Profile'!DO125","v":0},{"$f":"'[2]5.2 Asset Age Profile'!DP125","v":0},{"$f":"'[2]5.2 Asset Age Profile'!DQ125","v":0},{"$f":"'[2]5.2 Asset Age Profile'!DR125","v":0},{"$f":"'[2]5.2 Asset Age Profile'!DS125","v":0},{"$f":"'[2]5.2 Asset Age Profile'!DT125","v":0},{"$f":"'[2]5.2 Asset Age Profile'!DU125","v":0},{"$f":"'[2]5.2 Asset Age Profile'!DV125","v":0},{"$f":"'[2]5.2 Asset Age Profile'!DW125","v":0},{"$f":"'[2]5.2 Asset Age Profile'!DX125","v":0},{"$f":"'[2]5.2 Asset Age Profile'!DY125","v":0},{"$f":"'[2]5.2 Asset Age Profile'!DZ125","v":0},{"$f":"'[2]5.2 Asset Age Profile'!EA125","v":0},{"$f":"'[2]5.2 Asset Age Profile'!EB125","v":0},{"$f":"'[2]5.2 Asset Age Profile'!EC125","v":0},{"$f":"'[2]5.2 Asset Age Profile'!ED125","v":0},{"$f":"'[2]5.2 Asset Age Profile'!EE125","v":0},{"$f":"'[2]5.2 Asset Age Profile'!EF125","v":0},{"$f":"'[2]5.2 Asset Age Profile'!EG125","v":0},{"$f":"'[2]5.2 Asset Age Profile'!EH125","v":0},{"$f":"'[2]5.2 Asset Age Profile'!EI125","v":0},{"$f":"'[2]5.2 Asset Age Profile'!EJ125","v":0}]
["ED_ASS521_00116",null,"Master Station Assets",null,"DNSP NAME","REPEX","SCADA AND PROTECTION","Master Station Assets","DESCRIPTOR METRIC","MEAN ECONOMIC LIFE","YEARS","NUMBER",null,{"$f":"'[2]5.2 Asset Age Profile'!N126","v":0},{"$f":"'[2]5.2 Asset Age Profile'!O126","v":0},{"$f":"'[2]5.2 Asset Age Profile'!P126","v":0},{"$f":"'[2]5.2 Asset Age Profile'!Q126","v":0},{"$f":"'[2]5.2 Asset Age Profile'!R126","v":0},{"$f":"'[2]5.2 Asset Age Profile'!S126","v":0},{"$f":"'[2]5.2 Asset Age Profile'!T126","v":0},{"$f":"'[2]5.2 Asset Age Profile'!U126","v":0},{"$f":"'[2]5.2 Asset Age Profile'!V126","v":0},{"$f":"'[2]5.2 Asset Age Profile'!W126","v":0},{"$f":"'[2]5.2 Asset Age Profile'!X126","v":0},{"$f":"'[2]5.2 Asset Age Profile'!Y126","v":0},{"$f":"'[2]5.2 Asset Age Profile'!Z126","v":0},{"$f":"'[2]5.2 Asset Age Profile'!AA126","v":0},{"$f":"'[2]5.2 Asset Age Profile'!AB126","v":0},{"$f":"'[2]5.2 Asset Age Profile'!AC126","v":0},{"$f":"'[2]5.2 Asset Age Profile'!AD126","v":0},{"$f":"'[2]5.2 Asset Age Profile'!AE126","v":0},{"$f":"'[2]5.2 Asset Age Profile'!AF126","v":0},{"$f":"'[2]5.2 Asset Age Profile'!AG126","v":0},{"$f":"'[2]5.2 Asset Age Profile'!AH126","v":0},{"$f":"'[2]5.2 Asset Age Profile'!AI126","v":0},{"$f":"'[2]5.2 Asset Age Profile'!AJ126","v":0},{"$f":"'[2]5.2 Asset Age Profile'!AK126","v":0},{"$f":"'[2]5.2 Asset Age Profile'!AL126","v":0},{"$f":"'[2]5.2 Asset Age Profile'!AM126","v":0},{"$f":"'[2]5.2 Asset Age Profile'!AN126","v":0},{"$f":"'[2]5.2 Asset Age Profile'!AO126","v":0},{"$f":"'[2]5.2 Asset Age Profile'!AP126","v":0},{"$f":"'[2]5.2 Asset Age Profile'!AQ126","v":0},{"$f":"'[2]5.2 Asset Age Profile'!AR126","v":0},{"$f":"'[2]5.2 Asset Age Profile'!AS126","v":0},{"$f":"'[2]5.2 Asset Age Profile'!AT126","v":0},{"$f":"'[2]5.2 Asset Age Profile'!AU126","v":0},{"$f":"'[2]5.2 Asset Age Profile'!AV126","v":0},{"$f":"'[2]5.2 Asset Age Profile'!AW126","v":0},{"$f":"'[2]5.2 Asset Age Profile'!AX126","v":0},{"$f":"'[2]5.2 Asset Age Profile'!AY126","v":0},{"$f":"'[2]5.2 Asset Age Profile'!AZ126","v":0},{"$f":"'[2]5.2 Asset Age Profile'!BA126","v":0},{"$f":"'[2]5.2 Asset Age Profile'!BB126","v":0},{"$f":"'[2]5.2 Asset Age Profile'!BC126","v":0},{"$f":"'[2]5.2 Asset Age Profile'!BD126","v":0},{"$f":"'[2]5.2 Asset Age Profile'!BE126","v":0},{"$f":"'[2]5.2 Asset Age Profile'!BF126","v":0},{"$f":"'[2]5.2 Asset Age Profile'!BG126","v":0},{"$f":"'[2]5.2 Asset Age Profile'!BH126","v":0},{"$f":"'[2]5.2 Asset Age Profile'!BI126","v":0},{"$f":"'[2]5.2 Asset Age Profile'!BJ126","v":0},{"$f":"'[2]5.2 Asset Age Profile'!BK126","v":0},{"$f":"'[2]5.2 Asset Age Profile'!BL126","v":0},{"$f":"'[2]5.2 Asset Age Profile'!BM126","v":0},{"$f":"'[2]5.2 Asset Age Profile'!BN126","v":0},{"$f":"'[2]5.2 Asset Age Profile'!BO126","v":0},{"$f":"'[2]5.2 Asset Age Profile'!BP126","v":0},{"$f":"'[2]5.2 Asset Age Profile'!BQ126","v":0},{"$f":"'[2]5.2 Asset Age Profile'!BR126","v":0},{"$f":"'[2]5.2 Asset Age Profile'!BS126","v":0},{"$f":"'[2]5.2 Asset Age Profile'!BT126","v":0},{"$f":"'[2]5.2 Asset Age Profile'!BU126","v":0},{"$f":"'[2]5.2 Asset Age Profile'!BV126","v":0},{"$f":"'[2]5.2 Asset Age Profile'!BW126","v":0},{"$f":"'[2]5.2 Asset Age Profile'!BX126","v":0},{"$f":"'[2]5.2 Asset Age Profile'!BY126","v":0},{"$f":"'[2]5.2 Asset Age Profile'!BZ126","v":0},{"$f":"'[2]5.2 Asset Age Profile'!CA126","v":0},{"$f":"'[2]5.2 Asset Age Profile'!CB126","v":0},{"$f":"'[2]5.2 Asset Age Profile'!CC126","v":0},{"$f":"'[2]5.2 Asset Age Profile'!CD126","v":0},{"$f":"'[2]5.2 Asset Age Profile'!CE126","v":0},{"$f":"'[2]5.2 Asset Age Profile'!CF126","v":0},{"$f":"'[2]5.2 Asset Age Profile'!CG126","v":0},{"$f":"'[2]5.2 Asset Age Profile'!CH126","v":0},{"$f":"'[2]5.2 Asset Age Profile'!CI126","v":0},{"$f":"'[2]5.2 Asset Age Profile'!CJ126","v":0},{"$f":"'[2]5.2 Asset Age Profile'!CK126","v":0},{"$f":"'[2]5.2 Asset Age Profile'!CL126","v":0},{"$f":"'[2]5.2 Asset Age Profile'!CM126","v":0},{"$f":"'[2]5.2 Asset Age Profile'!CN126","v":0},{"$f":"'[2]5.2 Asset Age Profile'!CO126","v":0},{"$f":"'[2]5.2 Asset Age Profile'!CP126","v":0},{"$f":"'[2]5.2 Asset Age Profile'!CQ126","v":0},{"$f":"'[2]5.2 Asset Age Profile'!CR126","v":0},{"$f":"'[2]5.2 Asset Age Profile'!CS126","v":0},{"$f":"'[2]5.2 Asset Age Profile'!CT126","v":0},{"$f":"'[2]5.2 Asset Age Profile'!CU126","v":0},{"$f":"'[2]5.2 Asset Age Profile'!CV126","v":0},{"$f":"'[2]5.2 Asset Age Profile'!CW126","v":0},{"$f":"'[2]5.2 Asset Age Profile'!CX126","v":0},{"$f":"'[2]5.2 Asset Age Profile'!CY126","v":0},{"$f":"'[2]5.2 Asset Age Profile'!CZ126","v":0},{"$f":"'[2]5.2 Asset Age Profile'!DA126","v":0},{"$f":"'[2]5.2 Asset Age Profile'!DB126","v":0},{"$f":"'[2]5.2 Asset Age Profile'!DC126","v":0},{"$f":"'[2]5.2 Asset Age Profile'!DD126","v":0},{"$f":"'[2]5.2 Asset Age Profile'!DE126","v":0},{"$f":"'[2]5.2 Asset Age Profile'!DF126","v":0},{"$f":"'[2]5.2 Asset Age Profile'!DG126","v":0},{"$f":"'[2]5.2 Asset Age Profile'!DH126","v":0},{"$f":"'[2]5.2 Asset Age Profile'!DI126","v":0},{"$f":"'[2]5.2 Asset Age Profile'!DJ126","v":0},{"$f":"'[2]5.2 Asset Age Profile'!DK126","v":0},{"$f":"'[2]5.2 Asset Age Profile'!DL126","v":0},{"$f":"'[2]5.2 Asset Age Profile'!DM126","v":0},{"$f":"'[2]5.2 Asset Age Profile'!DN126","v":0},{"$f":"'[2]5.2 Asset Age Profile'!DO126","v":0},{"$f":"'[2]5.2 Asset Age Profile'!DP126","v":0},{"$f":"'[2]5.2 Asset Age Profile'!DQ126","v":0},{"$f":"'[2]5.2 Asset Age Profile'!DR126","v":0},{"$f":"'[2]5.2 Asset Age Profile'!DS126","v":0},{"$f":"'[2]5.2 Asset Age Profile'!DT126","v":0},{"$f":"'[2]5.2 Asset Age Profile'!DU126","v":0},{"$f":"'[2]5.2 Asset Age Profile'!DV126","v":0},{"$f":"'[2]5.2 Asset Age Profile'!DW126","v":0},{"$f":"'[2]5.2 Asset Age Profile'!DX126","v":0},{"$f":"'[2]5.2 Asset Age Profile'!DY126","v":0},{"$f":"'[2]5.2 Asset Age Profile'!DZ126","v":0},{"$f":"'[2]5.2 Asset Age Profile'!EA126","v":0},{"$f":"'[2]5.2 Asset Age Profile'!EB126","v":0},{"$f":"'[2]5.2 Asset Age Profile'!EC126","v":0},{"$f":"'[2]5.2 Asset Age Profile'!ED126","v":0},{"$f":"'[2]5.2 Asset Age Profile'!EE126","v":0},{"$f":"'[2]5.2 Asset Age Profile'!EF126","v":0},{"$f":"'[2]5.2 Asset Age Profile'!EG126","v":0},{"$f":"'[2]5.2 Asset Age Profile'!EH126","v":0},{"$f":"'[2]5.2 Asset Age Profile'!EI126","v":0},{"$f":"'[2]5.2 Asset Age Profile'!EJ126","v":0}]
["ED_ASS521_00117",null,"Communications Site Infrastructure",null,null,null,null,null,null,null,null,null,null,{"$f":"'[2]5.2 Asset Age Profile'!N127","v":0},{"$f":"'[2]5.2 Asset Age Profile'!O127","v":0},{"$f":"'[2]5.2 Asset Age Profile'!P127","v":0},{"$f":"'[2]5.2 Asset Age Profile'!Q127","v":0},{"$f":"'[2]5.2 Asset Age Profile'!R127","v":0},{"$f":"'[2]5.2 Asset Age Profile'!S127","v":0},{"$f":"'[2]5.2 Asset Age Profile'!T127","v":0},{"$f":"'[2]5.2 Asset Age Profile'!U127","v":0},{"$f":"'[2]5.2 Asset Age Profile'!V127","v":0},{"$f":"'[2]5.2 Asset Age Profile'!W127","v":0},{"$f":"'[2]5.2 Asset Age Profile'!X127","v":0},{"$f":"'[2]5.2 Asset Age Profile'!Y127","v":0},{"$f":"'[2]5.2 Asset Age Profile'!Z127","v":0},{"$f":"'[2]5.2 Asset Age Profile'!AA127","v":0},{"$f":"'[2]5.2 Asset Age Profile'!AB127","v":0},{"$f":"'[2]5.2 Asset Age Profile'!AC127","v":0},{"$f":"'[2]5.2 Asset Age Profile'!AD127","v":0},{"$f":"'[2]5.2 Asset Age Profile'!AE127","v":0},{"$f":"'[2]5.2 Asset Age Profile'!AF127","v":0},{"$f":"'[2]5.2 Asset Age Profile'!AG127","v":0},{"$f":"'[2]5.2 Asset Age Profile'!AH127","v":0},{"$f":"'[2]5.2 Asset Age Profile'!AI127","v":0},{"$f":"'[2]5.2 Asset Age Profile'!AJ127","v":0},{"$f":"'[2]5.2 Asset Age Profile'!AK127","v":0},{"$f":"'[2]5.2 Asset Age Profile'!AL127","v":0},{"$f":"'[2]5.2 Asset Age Profile'!AM127","v":0},{"$f":"'[2]5.2 Asset Age Profile'!AN127","v":0},{"$f":"'[2]5.2 Asset Age Profile'!AO127","v":0},{"$f":"'[2]5.2 Asset Age Profile'!AP127","v":0},{"$f":"'[2]5.2 Asset Age Profile'!AQ127","v":0},{"$f":"'[2]5.2 Asset Age Profile'!AR127","v":0},{"$f":"'[2]5.2 Asset Age Profile'!AS127","v":0},{"$f":"'[2]5.2 Asset Age Profile'!AT127","v":0},{"$f":"'[2]5.2 Asset Age Profile'!AU127","v":0},{"$f":"'[2]5.2 Asset Age Profile'!AV127","v":0},{"$f":"'[2]5.2 Asset Age Profile'!AW127","v":0},{"$f":"'[2]5.2 Asset Age Profile'!AX127","v":0},{"$f":"'[2]5.2 Asset Age Profile'!AY127","v":0},{"$f":"'[2]5.2 Asset Age Profile'!AZ127","v":0},{"$f":"'[2]5.2 Asset Age Profile'!BA127","v":0},{"$f":"'[2]5.2 Asset Age Profile'!BB127","v":0},{"$f":"'[2]5.2 Asset Age Profile'!BC127","v":0},{"$f":"'[2]5.2 Asset Age Profile'!BD127","v":0},{"$f":"'[2]5.2 Asset Age Profile'!BE127","v":0},{"$f":"'[2]5.2 Asset Age Profile'!BF127","v":0},{"$f":"'[2]5.2 Asset Age Profile'!BG127","v":0},{"$f":"'[2]5.2 Asset Age Profile'!BH127","v":0},{"$f":"'[2]5.2 Asset Age Profile'!BI127","v":0},{"$f":"'[2]5.2 Asset Age Profile'!BJ127","v":0},{"$f":"'[2]5.2 Asset Age Profile'!BK127","v":0},{"$f":"'[2]5.2 Asset Age Profile'!BL127","v":0},{"$f":"'[2]5.2 Asset Age Profile'!BM127","v":0},{"$f":"'[2]5.2 Asset Age Profile'!BN127","v":0},{"$f":"'[2]5.2 Asset Age Profile'!BO127","v":0},{"$f":"'[2]5.2 Asset Age Profile'!BP127","v":0},{"$f":"'[2]5.2 Asset Age Profile'!BQ127","v":0},{"$f":"'[2]5.2 Asset Age Profile'!BR127","v":0},{"$f":"'[2]5.2 Asset Age Profile'!BS127","v":0},{"$f":"'[2]5.2 Asset Age Profile'!BT127","v":0},{"$f":"'[2]5.2 Asset Age Profile'!BU127","v":0},{"$f":"'[2]5.2 Asset Age Profile'!BV127","v":0},{"$f":"'[2]5.2 Asset Age Profile'!BW127","v":0},{"$f":"'[2]5.2 Asset Age Profile'!BX127","v":0},{"$f":"'[2]5.2 Asset Age Profile'!BY127","v":0},{"$f":"'[2]5.2 Asset Age Profile'!BZ127","v":0},{"$f":"'[2]5.2 Asset Age Profile'!CA127","v":0},{"$f":"'[2]5.2 Asset Age Profile'!CB127","v":0},{"$f":"'[2]5.2 Asset Age Profile'!CC127","v":0},{"$f":"'[2]5.2 Asset Age Profile'!CD127","v":0},{"$f":"'[2]5.2 Asset Age Profile'!CE127","v":0},{"$f":"'[2]5.2 Asset Age Profile'!CF127","v":0},{"$f":"'[2]5.2 Asset Age Profile'!CG127","v":0},{"$f":"'[2]5.2 Asset Age Profile'!CH127","v":0},{"$f":"'[2]5.2 Asset Age Profile'!CI127","v":0},{"$f":"'[2]5.2 Asset Age Profile'!CJ127","v":0},{"$f":"'[2]5.2 Asset Age Profile'!CK127","v":0},{"$f":"'[2]5.2 Asset Age Profile'!CL127","v":0},{"$f":"'[2]5.2 Asset Age Profile'!CM127","v":0},{"$f":"'[2]5.2 Asset Age Profile'!CN127","v":0},{"$f":"'[2]5.2 Asset Age Profile'!CO127","v":0},{"$f":"'[2]5.2 Asset Age Profile'!CP127","v":0},{"$f":"'[2]5.2 Asset Age Profile'!CQ127","v":0},{"$f":"'[2]5.2 Asset Age Profile'!CR127","v":0},{"$f":"'[2]5.2 Asset Age Profile'!CS127","v":0},{"$f":"'[2]5.2 Asset Age Profile'!CT127","v":0},{"$f":"'[2]5.2 Asset Age Profile'!CU127","v":0},{"$f":"'[2]5.2 Asset Age Profile'!CV127","v":0},{"$f":"'[2]5.2 Asset Age Profile'!CW127","v":0},{"$f":"'[2]5.2 Asset Age Profile'!CX127","v":0},{"$f":"'[2]5.2 Asset Age Profile'!CY127","v":0},{"$f":"'[2]5.2 Asset Age Profile'!CZ127","v":0},{"$f":"'[2]5.2 Asset Age Profile'!DA127","v":0},{"$f":"'[2]5.2 Asset Age Profile'!DB127","v":0},{"$f":"'[2]5.2 Asset Age Profile'!DC127","v":0},{"$f":"'[2]5.2 Asset Age Profile'!DD127","v":0},{"$f":"'[2]5.2 Asset Age Profile'!DE127","v":0},{"$f":"'[2]5.2 Asset Age Profile'!DF127","v":0},{"$f":"'[2]5.2 Asset Age Profile'!DG127","v":0},{"$f":"'[2]5.2 Asset Age Profile'!DH127","v":0},{"$f":"'[2]5.2 Asset Age Profile'!DI127","v":0},{"$f":"'[2]5.2 Asset Age Profile'!DJ127","v":0},{"$f":"'[2]5.2 Asset Age Profile'!DK127","v":0},{"$f":"'[2]5.2 Asset Age Profile'!DL127","v":0},{"$f":"'[2]5.2 Asset Age Profile'!DM127","v":0},{"$f":"'[2]5.2 Asset Age Profile'!DN127","v":0},{"$f":"'[2]5.2 Asset Age Profile'!DO127","v":0},{"$f":"'[2]5.2 Asset Age Profile'!DP127","v":0},{"$f":"'[2]5.2 Asset Age Profile'!DQ127","v":0},{"$f":"'[2]5.2 Asset Age Profile'!DR127","v":0},{"$f":"'[2]5.2 Asset Age Profile'!DS127","v":0},{"$f":"'[2]5.2 Asset Age Profile'!DT127","v":0},{"$f":"'[2]5.2 Asset Age Profile'!DU127","v":0},{"$f":"'[2]5.2 Asset Age Profile'!DV127","v":0},{"$f":"'[2]5.2 Asset Age Profile'!DW127","v":0},{"$f":"'[2]5.2 Asset Age Profile'!DX127","v":0},{"$f":"'[2]5.2 Asset Age Profile'!DY127","v":0},{"$f":"'[2]5.2 Asset Age Profile'!DZ127","v":0},{"$f":"'[2]5.2 Asset Age Profile'!EA127","v":0},{"$f":"'[2]5.2 Asset Age Profile'!EB127","v":0},{"$f":"'[2]5.2 Asset Age Profile'!EC127","v":0},{"$f":"'[2]5.2 Asset Age Profile'!ED127","v":0},{"$f":"'[2]5.2 Asset Age Profile'!EE127","v":0},{"$f":"'[2]5.2 Asset Age Profile'!EF127","v":0},{"$f":"'[2]5.2 Asset Age Profile'!EG127","v":0},{"$f":"'[2]5.2 Asset Age Profile'!EH127","v":0},{"$f":"'[2]5.2 Asset Age Profile'!EI127","v":0},{"$f":"'[2]5.2 Asset Age Profile'!EJ127","v":0}]
["ED_ASS521_00118",null,"Communications Linear Assets",null,null,null,null,null,null,null,null,null,null,{"$f":"'[2]5.2 Asset Age Profile'!N128","v":0},{"$f":"'[2]5.2 Asset Age Profile'!O128","v":0},{"$f":"'[2]5.2 Asset Age Profile'!P128","v":0},{"$f":"'[2]5.2 Asset Age Profile'!Q128","v":0},{"$f":"'[2]5.2 Asset Age Profile'!R128","v":0},{"$f":"'[2]5.2 Asset Age Profile'!S128","v":0},{"$f":"'[2]5.2 Asset Age Profile'!T128","v":0},{"$f":"'[2]5.2 Asset Age Profile'!U128","v":0},{"$f":"'[2]5.2 Asset Age Profile'!V128","v":0},{"$f":"'[2]5.2 Asset Age Profile'!W128","v":0},{"$f":"'[2]5.2 Asset Age Profile'!X128","v":0},{"$f":"'[2]5.2 Asset Age Profile'!Y128","v":0},{"$f":"'[2]5.2 Asset Age Profile'!Z128","v":0},{"$f":"'[2]5.2 Asset Age Profile'!AA128","v":0},{"$f":"'[2]5.2 Asset Age Profile'!AB128","v":0},{"$f":"'[2]5.2 Asset Age Profile'!AC128","v":0},{"$f":"'[2]5.2 Asset Age Profile'!AD128","v":0},{"$f":"'[2]5.2 Asset Age Profile'!AE128","v":0},{"$f":"'[2]5.2 Asset Age Profile'!AF128","v":0},{"$f":"'[2]5.2 Asset Age Profile'!AG128","v":0},{"$f":"'[2]5.2 Asset Age Profile'!AH128","v":0},{"$f":"'[2]5.2 Asset Age Profile'!AI128","v":0},{"$f":"'[2]5.2 Asset Age Profile'!AJ128","v":0},{"$f":"'[2]5.2 Asset Age Profile'!AK128","v":0},{"$f":"'[2]5.2 Asset Age Profile'!AL128","v":0},{"$f":"'[2]5.2 Asset Age Profile'!AM128","v":0},{"$f":"'[2]5.2 Asset Age Profile'!AN128","v":0},{"$f":"'[2]5.2 Asset Age Profile'!AO128","v":0},{"$f":"'[2]5.2 Asset Age Profile'!AP128","v":0},{"$f":"'[2]5.2 Asset Age Profile'!AQ128","v":0},{"$f":"'[2]5.2 Asset Age Profile'!AR128","v":0},{"$f":"'[2]5.2 Asset Age Profile'!AS128","v":0},{"$f":"'[2]5.2 Asset Age Profile'!AT128","v":0},{"$f":"'[2]5.2 Asset Age Profile'!AU128","v":0},{"$f":"'[2]5.2 Asset Age Profile'!AV128","v":0},{"$f":"'[2]5.2 Asset Age Profile'!AW128","v":0},{"$f":"'[2]5.2 Asset Age Profile'!AX128","v":0},{"$f":"'[2]5.2 Asset Age Profile'!AY128","v":0},{"$f":"'[2]5.2 Asset Age Profile'!AZ128","v":0},{"$f":"'[2]5.2 Asset Age Profile'!BA128","v":0},{"$f":"'[2]5.2 Asset Age Profile'!BB128","v":0},{"$f":"'[2]5.2 Asset Age Profile'!BC128","v":0},{"$f":"'[2]5.2 Asset Age Profile'!BD128","v":0},{"$f":"'[2]5.2 Asset Age Profile'!BE128","v":0},{"$f":"'[2]5.2 Asset Age Profile'!BF128","v":0},{"$f":"'[2]5.2 Asset Age Profile'!BG128","v":0},{"$f":"'[2]5.2 Asset Age Profile'!BH128","v":0},{"$f":"'[2]5.2 Asset Age Profile'!BI128","v":0},{"$f":"'[2]5.2 Asset Age Profile'!BJ128","v":0},{"$f":"'[2]5.2 Asset Age Profile'!BK128","v":0},{"$f":"'[2]5.2 Asset Age Profile'!BL128","v":0},{"$f":"'[2]5.2 Asset Age Profile'!BM128","v":0},{"$f":"'[2]5.2 Asset Age Profile'!BN128","v":0},{"$f":"'[2]5.2 Asset Age Profile'!BO128","v":0},{"$f":"'[2]5.2 Asset Age Profile'!BP128","v":0},{"$f":"'[2]5.2 Asset Age Profile'!BQ128","v":0},{"$f":"'[2]5.2 Asset Age Profile'!BR128","v":0},{"$f":"'[2]5.2 Asset Age Profile'!BS128","v":0},{"$f":"'[2]5.2 Asset Age Profile'!BT128","v":0},{"$f":"'[2]5.2 Asset Age Profile'!BU128","v":0},{"$f":"'[2]5.2 Asset Age Profile'!BV128","v":0},{"$f":"'[2]5.2 Asset Age Profile'!BW128","v":0},{"$f":"'[2]5.2 Asset Age Profile'!BX128","v":0},{"$f":"'[2]5.2 Asset Age Profile'!BY128","v":0},{"$f":"'[2]5.2 Asset Age Profile'!BZ128","v":0},{"$f":"'[2]5.2 Asset Age Profile'!CA128","v":0},{"$f":"'[2]5.2 Asset Age Profile'!CB128","v":0},{"$f":"'[2]5.2 Asset Age Profile'!CC128","v":0},{"$f":"'[2]5.2 Asset Age Profile'!CD128","v":0},{"$f":"'[2]5.2 Asset Age Profile'!CE128","v":0},{"$f":"'[2]5.2 Asset Age Profile'!CF128","v":0},{"$f":"'[2]5.2 Asset Age Profile'!CG128","v":0},{"$f":"'[2]5.2 Asset Age Profile'!CH128","v":0},{"$f":"'[2]5.2 Asset Age Profile'!CI128","v":0},{"$f":"'[2]5.2 Asset Age Profile'!CJ128","v":0},{"$f":"'[2]5.2 Asset Age Profile'!CK128","v":0},{"$f":"'[2]5.2 Asset Age Profile'!CL128","v":0},{"$f":"'[2]5.2 Asset Age Profile'!CM128","v":0},{"$f":"'[2]5.2 Asset Age Profile'!CN128","v":0},{"$f":"'[2]5.2 Asset Age Profile'!CO128","v":0},{"$f":"'[2]5.2 Asset Age Profile'!CP128","v":0},{"$f":"'[2]5.2 Asset Age Profile'!CQ128","v":0},{"$f":"'[2]5.2 Asset Age Profile'!CR128","v":0},{"$f":"'[2]5.2 Asset Age Profile'!CS128","v":0},{"$f":"'[2]5.2 Asset Age Profile'!CT128","v":0},{"$f":"'[2]5.2 Asset Age Profile'!CU128","v":0},{"$f":"'[2]5.2 Asset Age Profile'!CV128","v":0},{"$f":"'[2]5.2 Asset Age Profile'!CW128","v":0},{"$f":"'[2]5.2 Asset Age Profile'!CX128","v":0},{"$f":"'[2]5.2 Asset Age Profile'!CY128","v":0},{"$f":"'[2]5.2 Asset Age Profile'!CZ128","v":0},{"$f":"'[2]5.2 Asset Age Profile'!DA128","v":0},{"$f":"'[2]5.2 Asset Age Profile'!DB128","v":0},{"$f":"'[2]5.2 Asset Age Profile'!DC128","v":0},{"$f":"'[2]5.2 Asset Age Profile'!DD128","v":0},{"$f":"'[2]5.2 Asset Age Profile'!DE128","v":0},{"$f":"'[2]5.2 Asset Age Profile'!DF128","v":0},{"$f":"'[2]5.2 Asset Age Profile'!DG128","v":0},{"$f":"'[2]5.2 Asset Age Profile'!DH128","v":0},{"$f":"'[2]5.2 Asset Age Profile'!DI128","v":0},{"$f":"'[2]5.2 Asset Age Profile'!DJ128","v":0},{"$f":"'[2]5.2 Asset Age Profile'!DK128","v":0},{"$f":"'[2]5.2 Asset Age Profile'!DL128","v":0},{"$f":"'[2]5.2 Asset Age Profile'!DM128","v":0},{"$f":"'[2]5.2 Asset Age Profile'!DN128","v":0},{"$f":"'[2]5.2 Asset Age Profile'!DO128","v":0},{"$f":"'[2]5.2 Asset Age Profile'!DP128","v":0},{"$f":"'[2]5.2 Asset Age Profile'!DQ128","v":0},{"$f":"'[2]5.2 Asset Age Profile'!DR128","v":0},{"$f":"'[2]5.2 Asset Age Profile'!DS128","v":0},{"$f":"'[2]5.2 Asset Age Profile'!DT128","v":0},{"$f":"'[2]5.2 Asset Age Profile'!DU128","v":0},{"$f":"'[2]5.2 Asset Age Profile'!DV128","v":0},{"$f":"'[2]5.2 Asset Age Profile'!DW128","v":0},{"$f":"'[2]5.2 Asset Age Profile'!DX128","v":0},{"$f":"'[2]5.2 Asset Age Profile'!DY128","v":0},{"$f":"'[2]5.2 Asset Age Profile'!DZ128","v":0},{"$f":"'[2]5.2 Asset Age Profile'!EA128","v":0},{"$f":"'[2]5.2 Asset Age Profile'!EB128","v":0},{"$f":"'[2]5.2 Asset Age Profile'!EC128","v":0},{"$f":"'[2]5.2 Asset Age Profile'!ED128","v":0},{"$f":"'[2]5.2 Asset Age Profile'!EE128","v":0},{"$f":"'[2]5.2 Asset Age Profile'!EF128","v":0},{"$f":"'[2]5.2 Asset Age Profile'!EG128","v":0},{"$f":"'[2]5.2 Asset Age Profile'!EH128","v":0},{"$f":"'[2]5.2 Asset Age Profile'!EI128","v":0},{"$f":"'[2]5.2 Asset Age Profile'!EJ128","v":0}]
["ED_ASS521_00119",null,"AFLC",null,"DNSP NAME","REPEX","SCADA AND PROTECTION","AFLC","DESCRIPTOR METRIC","MEAN ECONOMIC LIFE","YEARS","NUMBER",null,{"$f":"'[2]5.2 Asset Age Profile'!N129","v":10.56},{"$f":"'[2]5.2 Asset Age Profile'!O129","v":0},{"$f":"'[2]5.2 Asset Age Profile'!P129","v":0},{"$f":"'[2]5.2 Asset Age Profile'!Q129","v":0},{"$f":"'[2]5.2 Asset Age Profile'!R129","v":0},{"$f":"'[2]5.2 Asset Age Profile'!S129","v":0},{"$f":"'[2]5.2 Asset Age Profile'!T129","v":0},{"$f":"'[2]5.2 Asset Age Profile'!U129","v":0},{"$f":"'[2]5.2 Asset Age Profile'!V129","v":0},{"$f":"'[2]5.2 Asset Age Profile'!W129","v":0},{"$f":"'[2]5.2 Asset Age Profile'!X129","v":0},{"$f":"'[2]5.2 Asset Age Profile'!Y129","v":3.2496153618543842},{"$f":"'[2]5.2 Asset Age Profile'!Z129","v":0},{"$f":"'[2]5.2 Asset Age Profile'!AA129","v":0},{"$f":"'[2]5.2 Asset Age Profile'!AB129","v":0},{"$f":"'[2]5.2 Asset Age Profile'!AC129","v":0},{"$f":"'[2]5.2 Asset Age Profile'!AD129","v":0},{"$f":"'[2]5.2 Asset Age Profile'!AE129","v":0},{"$f":"'[2]5.2 Asset Age Profile'!AF129","v":0},{"$f":"'[2]5.2 Asset Age Profile'!AG129","v":0},{"$f":"'[2]5.2 Asset Age Profile'!AH129","v":0},{"$f":"'[2]5.2 Asset Age Profile'!AI129","v":0},{"$f":"'[2]5.2 Asset Age Profile'!AJ129","v":69},{"$f":"'[2]5.2 Asset Age Profile'!AK129","v":71},{"$f":"'[2]5.2 Asset Age Profile'!AL129","v":73},{"$f":"'[2]5.2 Asset Age Profile'!AM129","v":69},{"$f":"'[2]5.2 Asset Age Profile'!AN129","v":64},{"$f":"'[2]5.2 Asset Age Profile'!AO129","v":78},{"$f":"'[2]5.2 Asset Age Profile'!AP129","v":78},{"$f":"'[2]5.2 Asset Age Profile'!AQ129","v":78},{"$f":"'[2]5.2 Asset Age Profile'!AR129","v":78},{"$f":"'[2]5.2 Asset Age Profile'!AS129","v":78},{"$f":"'[2]5.2 Asset Age Profile'!AT129","v":78},{"$f":"'[2]5.2 Asset Age Profile'!AU129","v":75},{"$f":"'[2]5.2 Asset Age Profile'!AV129","v":73},{"$f":"'[2]5.2 Asset Age Profile'!AW129","v":72},{"$f":"'[2]5.2 Asset Age Profile'!AX129","v":70},{"$f":"'[2]5.2 Asset Age Profile'!AY129","v":67},{"$f":"'[2]5.2 Asset Age Profile'!AZ129","v":65},{"$f":"'[2]5.2 Asset Age Profile'!BA129","v":0},{"$f":"'[2]5.2 Asset Age Profile'!BB129","v":0},{"$f":"'[2]5.2 Asset Age Profile'!BC129","v":0},{"$f":"'[2]5.2 Asset Age Profile'!BD129","v":0},{"$f":"'[2]5.2 Asset Age Profile'!BE129","v":0},{"$f":"'[2]5.2 Asset Age Profile'!BF129","v":0},{"$f":"'[2]5.2 Asset Age Profile'!BG129","v":0},{"$f":"'[2]5.2 Asset Age Profile'!BH129","v":0},{"$f":"'[2]5.2 Asset Age Profile'!BI129","v":0},{"$f":"'[2]5.2 Asset Age Profile'!BJ129","v":0},{"$f":"'[2]5.2 Asset Age Profile'!BK129","v":0},{"$f":"'[2]5.2 Asset Age Profile'!BL129","v":0},{"$f":"'[2]5.2 Asset Age Profile'!BM129","v":0},{"$f":"'[2]5.2 Asset Age Profile'!BN129","v":0},{"$f":"'[2]5.2 Asset Age Profile'!BO129","v":0},{"$f":"'[2]5.2 Asset Age Profile'!BP129","v":0},{"$f":"'[2]5.2 Asset Age Profile'!BQ129","v":0},{"$f":"'[2]5.2 Asset Age Profile'!BR129","v":0},{"$f":"'[2]5.2 Asset Age Profile'!BS129","v":0},{"$f":"'[2]5.2 Asset Age Profile'!BT129","v":0},{"$f":"'[2]5.2 Asset Age Profile'!BU129","v":0},{"$f":"'[2]5.2 Asset Age Profile'!BV129","v":0},{"$f":"'[2]5.2 Asset Age Profile'!BW129","v":0},{"$f":"'[2]5.2 Asset Age Profile'!BX129","v":0},{"$f":"'[2]5.2 Asset Age Profile'!BY129","v":0},{"$f":"'[2]5.2 Asset Age Profile'!BZ129","v":0},{"$f":"'[2]5.2 Asset Age Profile'!CA129","v":0},{"$f":"'[2]5.2 Asset Age Profile'!CB129","v":0},{"$f":"'[2]5.2 Asset Age Profile'!CC129","v":0},{"$f":"'[2]5.2 Asset Age Profile'!CD129","v":0},{"$f":"'[2]5.2 Asset Age Profile'!CE129","v":0},{"$f":"'[2]5.2 Asset Age Profile'!CF129","v":0},{"$f":"'[2]5.2 Asset Age Profile'!CG129","v":0},{"$f":"'[2]5.2 Asset Age Profile'!CH129","v":0},{"$f":"'[2]5.2 Asset Age Profile'!CI129","v":0},{"$f":"'[2]5.2 Asset Age Profile'!CJ129","v":0},{"$f":"'[2]5.2 Asset Age Profile'!CK129","v":0},{"$f":"'[2]5.2 Asset Age Profile'!CL129","v":0},{"$f":"'[2]5.2 Asset Age Profile'!CM129","v":0},{"$f":"'[2]5.2 Asset Age Profile'!CN129","v":0},{"$f":"'[2]5.2 Asset Age Profile'!CO129","v":0},{"$f":"'[2]5.2 Asset Age Profile'!CP129","v":0},{"$f":"'[2]5.2 Asset Age Profile'!CQ129","v":0},{"$f":"'[2]5.2 Asset Age Profile'!CR129","v":0},{"$f":"'[2]5.2 Asset Age Profile'!CS129","v":0},{"$f":"'[2]5.2 Asset Age Profile'!CT129","v":0},{"$f":"'[2]5.2 Asset Age Profile'!CU129","v":0},{"$f":"'[2]5.2 Asset Age Profile'!CV129","v":0},{"$f":"'[2]5.2 Asset Age Profile'!CW129","v":0},{"$f":"'[2]5.2 Asset Age Profile'!CX129","v":0},{"$f":"'[2]5.2 Asset Age Profile'!CY129","v":0},{"$f":"'[2]5.2 Asset Age Profile'!CZ129","v":0},{"$f":"'[2]5.2 Asset Age Profile'!DA129","v":0},{"$f":"'[2]5.2 Asset Age Profile'!DB129","v":0},{"$f":"'[2]5.2 Asset Age Profile'!DC129","v":0},{"$f":"'[2]5.2 Asset Age Profile'!DD129","v":0},{"$f":"'[2]5.2 Asset Age Profile'!DE129","v":0},{"$f":"'[2]5.2 Asset Age Profile'!DF129","v":0},{"$f":"'[2]5.2 Asset Age Profile'!DG129","v":0},{"$f":"'[2]5.2 Asset Age Profile'!DH129","v":0},{"$f":"'[2]5.2 Asset Age Profile'!DI129","v":0},{"$f":"'[2]5.2 Asset Age Profile'!DJ129","v":0},{"$f":"'[2]5.2 Asset Age Profile'!DK129","v":0},{"$f":"'[2]5.2 Asset Age Profile'!DL129","v":0},{"$f":"'[2]5.2 Asset Age Profile'!DM129","v":0},{"$f":"'[2]5.2 Asset Age Profile'!DN129","v":0},{"$f":"'[2]5.2 Asset Age Profile'!DO129","v":0},{"$f":"'[2]5.2 Asset Age Profile'!DP129","v":0},{"$f":"'[2]5.2 Asset Age Profile'!DQ129","v":0},{"$f":"'[2]5.2 Asset Age Profile'!DR129","v":0},{"$f":"'[2]5.2 Asset Age Profile'!DS129","v":0},{"$f":"'[2]5.2 Asset Age Profile'!DT129","v":0},{"$f":"'[2]5.2 Asset Age Profile'!DU129","v":0},{"$f":"'[2]5.2 Asset Age Profile'!DV129","v":0},{"$f":"'[2]5.2 Asset Age Profile'!DW129","v":0},{"$f":"'[2]5.2 Asset Age Profile'!DX129","v":0},{"$f":"'[2]5.2 Asset Age Profile'!DY129","v":0},{"$f":"'[2]5.2 Asset Age Profile'!DZ129","v":0},{"$f":"'[2]5.2 Asset Age Profile'!EA129","v":0},{"$f":"'[2]5.2 Asset Age Profile'!EB129","v":0},{"$f":"'[2]5.2 Asset Age Profile'!EC129","v":0},{"$f":"'[2]5.2 Asset Age Profile'!ED129","v":0},{"$f":"'[2]5.2 Asset Age Profile'!EE129","v":0},{"$f":"'[2]5.2 Asset Age Profile'!EF129","v":0},{"$f":"'[2]5.2 Asset Age Profile'!EG129","v":0},{"$f":"'[2]5.2 Asset Age Profile'!EH129","v":0},{"$f":"'[2]5.2 Asset Age Profile'!EI129","v":0},{"$f":"'[2]5.2 Asset Age Profile'!EJ129","v":0}]
["ED_ASS521_00120",null,"Other",null,"DNSP NAME","REPEX","PUBLIC LIGHTING","Other","DESCRIPTOR METRIC","MEAN ECONOMIC LIFE","YEARS","NUMBER",null,{"$f":"'[2]5.2 Asset Age Profile'!N130","v":0},{"$f":"'[2]5.2 Asset Age Profile'!O130","v":0},{"$f":"'[2]5.2 Asset Age Profile'!P130","v":0},{"$f":"'[2]5.2 Asset Age Profile'!Q130","v":0},{"$f":"'[2]5.2 Asset Age Profile'!R130","v":0},{"$f":"'[2]5.2 Asset Age Profile'!S130","v":0},{"$f":"'[2]5.2 Asset Age Profile'!T130","v":0},{"$f":"'[2]5.2 Asset Age Profile'!U130","v":0},{"$f":"'[2]5.2 Asset Age Profile'!V130","v":0},{"$f":"'[2]5.2 Asset Age Profile'!W130","v":0},{"$f":"'[2]5.2 Asset Age Profile'!X130","v":0},{"$f":"'[2]5.2 Asset Age Profile'!Y130","v":0},{"$f":"'[2]5.2 Asset Age Profile'!Z130","v":0},{"$f":"'[2]5.2 Asset Age Profile'!AA130","v":0},{"$f":"'[2]5.2 Asset Age Profile'!AB130","v":0},{"$f":"'[2]5.2 Asset Age Profile'!AC130","v":0},{"$f":"'[2]5.2 Asset Age Profile'!AD130","v":0},{"$f":"'[2]5.2 Asset Age Profile'!AE130","v":0},{"$f":"'[2]5.2 Asset Age Profile'!AF130","v":0},{"$f":"'[2]5.2 Asset Age Profile'!AG130","v":0},{"$f":"'[2]5.2 Asset Age Profile'!AH130","v":0},{"$f":"'[2]5.2 Asset Age Profile'!AI130","v":0},{"$f":"'[2]5.2 Asset Age Profile'!AJ130","v":0},{"$f":"'[2]5.2 Asset Age Profile'!AK130","v":0},{"$f":"'[2]5.2 Asset Age Profile'!AL130","v":0},{"$f":"'[2]5.2 Asset Age Profile'!AM130","v":0},{"$f":"'[2]5.2 Asset Age Profile'!AN130","v":0},{"$f":"'[2]5.2 Asset Age Profile'!AO130","v":0},{"$f":"'[2]5.2 Asset Age Profile'!AP130","v":0},{"$f":"'[2]5.2 Asset Age Profile'!AQ130","v":0},{"$f":"'[2]5.2 Asset Age Profile'!AR130","v":0},{"$f":"'[2]5.2 Asset Age Profile'!AS130","v":0},{"$f":"'[2]5.2 Asset Age Profile'!AT130","v":0},{"$f":"'[2]5.2 Asset Age Profile'!AU130","v":0},{"$f":"'[2]5.2 Asset Age Profile'!AV130","v":0},{"$f":"'[2]5.2 Asset Age Profile'!AW130","v":0},{"$f":"'[2]5.2 Asset Age Profile'!AX130","v":0},{"$f":"'[2]5.2 Asset Age Profile'!AY130","v":0},{"$f":"'[2]5.2 Asset Age Profile'!AZ130","v":0},{"$f":"'[2]5.2 Asset Age Profile'!BA130","v":0},{"$f":"'[2]5.2 Asset Age Profile'!BB130","v":0},{"$f":"'[2]5.2 Asset Age Profile'!BC130","v":0},{"$f":"'[2]5.2 Asset Age Profile'!BD130","v":0},{"$f":"'[2]5.2 Asset Age Profile'!BE130","v":0},{"$f":"'[2]5.2 Asset Age Profile'!BF130","v":0},{"$f":"'[2]5.2 Asset Age Profile'!BG130","v":0},{"$f":"'[2]5.2 Asset Age Profile'!BH130","v":0},{"$f":"'[2]5.2 Asset Age Profile'!BI130","v":0},{"$f":"'[2]5.2 Asset Age Profile'!BJ130","v":0},{"$f":"'[2]5.2 Asset Age Profile'!BK130","v":0},{"$f":"'[2]5.2 Asset Age Profile'!BL130","v":0},{"$f":"'[2]5.2 Asset Age Profile'!BM130","v":0},{"$f":"'[2]5.2 Asset Age Profile'!BN130","v":0},{"$f":"'[2]5.2 Asset Age Profile'!BO130","v":0},{"$f":"'[2]5.2 Asset Age Profile'!BP130","v":0},{"$f":"'[2]5.2 Asset Age Profile'!BQ130","v":0},{"$f":"'[2]5.2 Asset Age Profile'!BR130","v":0},{"$f":"'[2]5.2 Asset Age Profile'!BS130","v":0},{"$f":"'[2]5.2 Asset Age Profile'!BT130","v":0},{"$f":"'[2]5.2 Asset Age Profile'!BU130","v":0},{"$f":"'[2]5.2 Asset Age Profile'!BV130","v":0},{"$f":"'[2]5.2 Asset Age Profile'!BW130","v":0},{"$f":"'[2]5.2 Asset Age Profile'!BX130","v":0},{"$f":"'[2]5.2 Asset Age Profile'!BY130","v":0},{"$f":"'[2]5.2 Asset Age Profile'!BZ130","v":0},{"$f":"'[2]5.2 Asset Age Profile'!CA130","v":0},{"$f":"'[2]5.2 Asset Age Profile'!CB130","v":0},{"$f":"'[2]5.2 Asset Age Profile'!CC130","v":0},{"$f":"'[2]5.2 Asset Age Profile'!CD130","v":0},{"$f":"'[2]5.2 Asset Age Profile'!CE130","v":0},{"$f":"'[2]5.2 Asset Age Profile'!CF130","v":0},{"$f":"'[2]5.2 Asset Age Profile'!CG130","v":0},{"$f":"'[2]5.2 Asset Age Profile'!CH130","v":0},{"$f":"'[2]5.2 Asset Age Profile'!CI130","v":0},{"$f":"'[2]5.2 Asset Age Profile'!CJ130","v":0},{"$f":"'[2]5.2 Asset Age Profile'!CK130","v":0},{"$f":"'[2]5.2 Asset Age Profile'!CL130","v":0},{"$f":"'[2]5.2 Asset Age Profile'!CM130","v":0},{"$f":"'[2]5.2 Asset Age Profile'!CN130","v":0},{"$f":"'[2]5.2 Asset Age Profile'!CO130","v":0},{"$f":"'[2]5.2 Asset Age Profile'!CP130","v":0},{"$f":"'[2]5.2 Asset Age Profile'!CQ130","v":0},{"$f":"'[2]5.2 Asset Age Profile'!CR130","v":0},{"$f":"'[2]5.2 Asset Age Profile'!CS130","v":0},{"$f":"'[2]5.2 Asset Age Profile'!CT130","v":0},{"$f":"'[2]5.2 Asset Age Profile'!CU130","v":0},{"$f":"'[2]5.2 Asset Age Profile'!CV130","v":0},{"$f":"'[2]5.2 Asset Age Profile'!CW130","v":0},{"$f":"'[2]5.2 Asset Age Profile'!CX130","v":0},{"$f":"'[2]5.2 Asset Age Profile'!CY130","v":0},{"$f":"'[2]5.2 Asset Age Profile'!CZ130","v":0},{"$f":"'[2]5.2 Asset Age Profile'!DA130","v":0},{"$f":"'[2]5.2 Asset Age Profile'!DB130","v":0},{"$f":"'[2]5.2 Asset Age Profile'!DC130","v":0},{"$f":"'[2]5.2 Asset Age Profile'!DD130","v":0},{"$f":"'[2]5.2 Asset Age Profile'!DE130","v":0},{"$f":"'[2]5.2 Asset Age Profile'!DF130","v":0},{"$f":"'[2]5.2 Asset Age Profile'!DG130","v":0},{"$f":"'[2]5.2 Asset Age Profile'!DH130","v":0},{"$f":"'[2]5.2 Asset Age Profile'!DI130","v":0},{"$f":"'[2]5.2 Asset Age Profile'!DJ130","v":0},{"$f":"'[2]5.2 Asset Age Profile'!DK130","v":0},{"$f":"'[2]5.2 Asset Age Profile'!DL130","v":0},{"$f":"'[2]5.2 Asset Age Profile'!DM130","v":0},{"$f":"'[2]5.2 Asset Age Profile'!DN130","v":0},{"$f":"'[2]5.2 Asset Age Profile'!DO130","v":0},{"$f":"'[2]5.2 Asset Age Profile'!DP130","v":0},{"$f":"'[2]5.2 Asset Age Profile'!DQ130","v":0},{"$f":"'[2]5.2 Asset Age Profile'!DR130","v":0},{"$f":"'[2]5.2 Asset Age Profile'!DS130","v":0},{"$f":"'[2]5.2 Asset Age Profile'!DT130","v":0},{"$f":"'[2]5.2 Asset Age Profile'!DU130","v":0},{"$f":"'[2]5.2 Asset Age Profile'!DV130","v":0},{"$f":"'[2]5.2 Asset Age Profile'!DW130","v":0},{"$f":"'[2]5.2 Asset Age Profile'!DX130","v":0},{"$f":"'[2]5.2 Asset Age Profile'!DY130","v":0},{"$f":"'[2]5.2 Asset Age Profile'!DZ130","v":0},{"$f":"'[2]5.2 Asset Age Profile'!EA130","v":0},{"$f":"'[2]5.2 Asset Age Profile'!EB130","v":0},{"$f":"'[2]5.2 Asset Age Profile'!EC130","v":0},{"$f":"'[2]5.2 Asset Age Profile'!ED130","v":0},{"$f":"'[2]5.2 Asset Age Profile'!EE130","v":0},{"$f":"'[2]5.2 Asset Age Profile'!EF130","v":0},{"$f":"'[2]5.2 Asset Age Profile'!EG130","v":0},{"$f":"'[2]5.2 Asset Age Profile'!EH130","v":0},{"$f":"'[2]5.2 Asset Age Profile'!EI130","v":0},{"$f":"'[2]5.2 Asset Age Profile'!EJ130","v":0}]
["ED_ASS521_00121","OTHER BY: \nDNSP DEFINED","Type 5 & 6 Installed Meters",null,"DNSP NAME","REPEX","OTHER","Type 5 & 6 Installed Meters","DESCRIPTOR METRIC","MEAN ECONOMIC LIFE","YEARS","NUMBER",null,{"$f":"'[2]5.2 Asset Age Profile'!N131","v":25},{"$f":"'[2]5.2 Asset Age Profile'!O131","v":0},{"$f":"'[2]5.2 Asset Age Profile'!P131","v":0},{"$f":"'[2]5.2 Asset Age Profile'!Q131","v":0},{"$f":"'[2]5.2 Asset Age Profile'!R131","v":0},{"$f":"'[2]5.2 Asset Age Profile'!S131","v":0},{"$f":"'[2]5.2 Asset Age Profile'!T131","v":0},{"$f":"'[2]5.2 Asset Age Profile'!U131","v":0},{"$f":"'[2]5.2 Asset Age Profile'!V131","v":0},{"$f":"'[2]5.2 Asset Age Profile'!W131","v":0},{"$f":"'[2]5.2 Asset Age Profile'!X131","v":0},{"$f":"'[2]5.2 Asset Age Profile'!Y131","v":5},{"$f":"'[2]5.2 Asset Age Profile'!Z131","v":0},{"$f":"'[2]5.2 Asset Age Profile'!AA131","v":0},{"$f":"'[2]5.2 Asset Age Profile'!AB131","v":0},{"$f":"'[2]5.2 Asset Age Profile'!AC131","v":0},{"$f":"'[2]5.2 Asset Age Profile'!AD131","v":0},{"$f":"'[2]5.2 Asset Age Profile'!AE131","v":0},{"$f":"'[2]5.2 Asset Age Profile'!AF131","v":0},{"$f":"'[2]5.2 Asset Age Profile'!AG131","v":0},{"$f":"'[2]5.2 Asset Age Profile'!AH131","v":0},{"$f":"'[2]5.2 Asset Age Profile'!AI131","v":0},{"$f":"'[2]5.2 Asset Age Profile'!AJ131","v":57520},{"$f":"'[2]5.2 Asset Age Profile'!AK131","v":42288.093105485852},{"$f":"'[2]5.2 Asset Age Profile'!AL131","v":38079.380862474572},{"$f":"'[2]5.2 Asset Age Profile'!AM131","v":43857.620774902149},{"$f":"'[2]5.2 Asset Age Profile'!AN131","v":46548.995695552454},{"$f":"'[2]5.2 Asset Age Profile'!AO131","v":24677.280705693651},{"$f":"'[2]5.2 Asset Age Profile'!AP131","v":22464.021716100575},{"$f":"'[2]5.2 Asset Age Profile'!AQ131","v":22807.522482102853},{"$f":"'[2]5.2 Asset Age Profile'!AR131","v":24093.329403489774},{"$f":"'[2]5.2 Asset Age Profile'!AS131","v":22728.610143967198},{"$f":"'[2]5.2 Asset Age Profile'!AT131","v":25134.972266880475},{"$f":"'[2]5.2 Asset Age Profile'!AU131","v":29630.190399267096},{"$f":"'[2]5.2 Asset Age Profile'!AV131","v":23231.792347138107},{"$f":"'[2]5.2 Asset Age Profile'!AW131","v":23490.810492312798},{"$f":"'[2]5.2 Asset Age Profile'!AX131","v":22823.304949729987},{"$f":"'[2]5.2 Asset Age Profile'!AY131","v":20893.201996976626},{"$f":"'[2]5.2 Asset Age Profile'!AZ131","v":22492.801510008871},{"$f":"'[2]5.2 Asset Age Profile'!BA131","v":22551.289478274124},{"$f":"'[2]5.2 Asset Age Profile'!BB131","v":22593.066598463593},{"$f":"'[2]5.2 Asset Age Profile'!BC131","v":23313.489826619731},{"$f":"'[2]5.2 Asset Age Profile'!BD131","v":23321.845250657621},{"$f":"'[2]5.2 Asset Age Profile'!BE131","v":22630.201816409786},{"$f":"'[2]5.2 Asset Age Profile'!BF131","v":22630.201816409786},{"$f":"'[2]5.2 Asset Age Profile'!BG131","v":22630.201816409786},{"$f":"'[2]5.2 Asset Age Profile'!BH131","v":21730.601161663271},{"$f":"'[2]5.2 Asset Age Profile'!BI131","v":21748.240390187708},{"$f":"'[2]5.2 Asset Age Profile'!BJ131","v":21748.240390187708},{"$f":"'[2]5.2 Asset Age Profile'!BK131","v":21725.030878971338},{"$f":"'[2]5.2 Asset Age Profile'!BL131","v":24224.231046750105},{"$f":"'[2]5.2 Asset Age Profile'!BM131","v":21598.771137954285},{"$f":"'[2]5.2 Asset Age Profile'!BN131","v":21598.771137954285},{"$f":"'[2]5.2 Asset Age Profile'!BO131","v":27058.576556493255},{"$f":"'[2]5.2 Asset Age Profile'!BP131","v":23738.688072103636},{"$f":"'[2]5.2 Asset Age Profile'!BQ131","v":23738.688072103636},{"$f":"'[2]5.2 Asset Age Profile'!BR131","v":25882.318528047603},{"$f":"'[2]5.2 Asset Age Profile'!BS131","v":26266.668033790698},{"$f":"'[2]5.2 Asset Age Profile'!BT131","v":23110.174508364325},{"$f":"'[2]5.2 Asset Age Profile'!BU131","v":20536.703904693175},{"$f":"'[2]5.2 Asset Age Profile'!BV131","v":24657.784716271901},{"$f":"'[2]5.2 Asset Age Profile'!BW131","v":25803.406189911948},{"$f":"'[2]5.2 Asset Age Profile'!BX131","v":26742.927203950618},{"$f":"'[2]5.2 Asset Age Profile'!BY131","v":28681.385580741873},{"$f":"'[2]5.2 Asset Age Profile'!BZ131","v":27718.65505548683},{"$f":"'[2]5.2 Asset Age Profile'!CA131","v":27122.634807450439},{"$f":"'[2]5.2 Asset Age Profile'!CB131","v":25097.837048934285},{"$f":"'[2]5.2 Asset Age Profile'!CC131","v":22358.186344953923},{"$f":"'[2]5.2 Asset Age Profile'!CD131","v":20403.945500535538},{"$f":"'[2]5.2 Asset Age Profile'!CE131","v":18588.033342966715},{"$f":"'[2]5.2 Asset Age Profile'!CF131","v":16577.16129118039},{"$f":"'[2]5.2 Asset Age Profile'!CG131","v":14968.277973661592},{"$f":"'[2]5.2 Asset Age Profile'!CH131","v":13016.822270589171},{"$f":"'[2]5.2 Asset Age Profile'!CI131","v":11881.41298188433},{"$f":"'[2]5.2 Asset Age Profile'!CJ131","v":11303.031962372381},{"$f":"'[2]5.2 Asset Age Profile'!CK131","v":10817.488987725912},{"$f":"'[2]5.2 Asset Age Profile'!CL131","v":10331.946013079443},{"$f":"'[2]5.2 Asset Age Profile'!CM131","v":9846.4030384329744},{"$f":"'[2]5.2 Asset Age Profile'!CN131","v":9360.8600637865056},{"$f":"'[2]5.2 Asset Age Profile'!CO131","v":8875.3170891400368},{"$f":"'[2]5.2 Asset Age Profile'!CP131","v":8389.774114493568},{"$f":"'[2]5.2 Asset Age Profile'!CQ131","v":7811.3930949816195},{"$f":"'[2]5.2 Asset Age Profile'!CR131","v":7233.0120754696682},{"$f":"'[2]5.2 Asset Age Profile'!CS131","v":6840.307145688681},{"$f":"'[2]5.2 Asset Age Profile'!CT131","v":6261.9261261767315},{"$f":"'[2]5.2 Asset Age Profile'!CU131","v":5683.5451066647811},{"$f":"'[2]5.2 Asset Age Profile'!CV131","v":5105.1640871528316},{"$f":"'[2]5.2 Asset Age Profile'!CW131","v":4898.1352471028076},{"$f":"'[2]5.2 Asset Age Profile'!CX131","v":4691.1064070527837},{"$f":"'[2]5.2 Asset Age Profile'!CY131","v":4484.0775670027597},{"$f":"'[2]5.2 Asset Age Profile'!CZ131","v":4091.372637221772},{"$f":"'[2]5.2 Asset Age Profile'!DA131","v":3884.3437971717485},{"$f":"'[2]5.2 Asset Age Profile'!DB131","v":3677.3149571217245},{"$f":"'[2]5.2 Asset Age Profile'!DC131","v":3377.448072206219},{"$f":"'[2]5.2 Asset Age Profile'!DD131","v":3077.5811872907138},{"$f":"'[2]5.2 Asset Age Profile'!DE131","v":2777.7143023752083},{"$f":"'[2]5.2 Asset Age Profile'!DF131","v":2477.8474174597031},{"$f":"'[2]5.2 Asset Age Profile'!DG131","v":2177.9805325441971},{"$f":"'[2]5.2 Asset Age Profile'!DH131","v":1878.113647628692},{"$f":"'[2]5.2 Asset Age Profile'!DI131","v":1671.084807578668},{"$f":"'[2]5.2 Asset Age Profile'!DJ131","v":891.24523070862301},{"$f":"'[2]5.2 Asset Age Profile'!DK131","v":375.06570125654548},{"$f":"'[2]5.2 Asset Age Profile'!DL131","v":0},{"$f":"'[2]5.2 Asset Age Profile'!DM131","v":0},{"$f":"'[2]5.2 Asset Age Profile'!DN131","v":0},{"$f":"'[2]5.2 Asset Age Profile'!DO131","v":0},{"$f":"'[2]5.2 Asset Age Profile'!DP131","v":0},{"$f":"'[2]5.2 Asset Age Profile'!DQ131","v":0},{"$f":"'[2]5.2 Asset Age Profile'!DR131","v":0},{"$f":"'[2]5.2 Asset Age Profile'!DS131","v":0},{"$f":"'[2]5.2 Asset Age Profile'!DT131","v":0},{"$f":"'[2]5.2 Asset Age Profile'!DU131","v":0},{"$f":"'[2]5.2 Asset Age Profile'!DV131","v":0},{"$f":"'[2]5.2 Asset Age Profile'!DW131","v":0},{"$f":"'[2]5.2 Asset Age Profile'!DX131","v":0},{"$f":"'[2]5.2 Asset Age Profile'!DY131","v":0},{"$f":"'[2]5.2 Asset Age Profile'!DZ131","v":0},{"$f":"'[2]5.2 Asset Age Profile'!EA131","v":0},{"$f":"'[2]5.2 Asset Age Profile'!EB131","v":0},{"$f":"'[2]5.2 Asset Age Profile'!EC131","v":0},{"$f":"'[2]5.2 Asset Age Profile'!ED131","v":0},{"$f":"'[2]5.2 Asset Age Profile'!EE131","v":0},{"$f":"'[2]5.2 Asset Age Profile'!EF131","v":0},{"$f":"'[2]5.2 Asset Age Profile'!EG131","v":0},{"$f":"'[2]5.2 Asset Age Profile'!EH131","v":0},{"$f":"'[2]5.2 Asset Age Profile'!EI131","v":0},{"$f":"'[2]5.2 Asset Age Profile'!EJ131","v":0}]
["ED_ASS521_00122",null,"OTHER - Zone Substation Property",null,null,null,null,null,null,null,null,null,null,{"$f":"'[2]5.2 Asset Age Profile'!N132","v":40},{"$f":"'[2]5.2 Asset Age Profile'!O132","v":0},{"$f":"'[2]5.2 Asset Age Profile'!P132","v":0},{"$f":"'[2]5.2 Asset Age Profile'!Q132","v":0},{"$f":"'[2]5.2 Asset Age Profile'!R132","v":0},{"$f":"'[2]5.2 Asset Age Profile'!S132","v":0},{"$f":"'[2]5.2 Asset Age Profile'!T132","v":0},{"$f":"'[2]5.2 Asset Age Profile'!U132","v":0},{"$f":"'[2]5.2 Asset Age Profile'!V132","v":0},{"$f":"'[2]5.2 Asset Age Profile'!W132","v":0},{"$f":"'[2]5.2 Asset Age Profile'!X132","v":0},{"$f":"'[2]5.2 Asset Age Profile'!Y132","v":6.324555320336759},{"$f":"'[2]5.2 Asset Age Profile'!Z132","v":0},{"$f":"'[2]5.2 Asset Age Profile'!AA132","v":0},{"$f":"'[2]5.2 Asset Age Profile'!AB132","v":0},{"$f":"'[2]5.2 Asset Age Profile'!AC132","v":0},{"$f":"'[2]5.2 Asset Age Profile'!AD132","v":0},{"$f":"'[2]5.2 Asset Age Profile'!AE132","v":0},{"$f":"'[2]5.2 Asset Age Profile'!AF132","v":0},{"$f":"'[2]5.2 Asset Age Profile'!AG132","v":0},{"$f":"'[2]5.2 Asset Age Profile'!AH132","v":0},{"$f":"'[2]5.2 Asset Age Profile'!AI132","v":0},{"$f":"'[2]5.2 Asset Age Profile'!AJ132","v":5},{"$f":"'[2]5.2 Asset Age Profile'!AK132","v":7},{"$f":"'[2]5.2 Asset Age Profile'!AL132","v":4},{"$f":"'[2]5.2 Asset Age Profile'!AM132","v":4},{"$f":"'[2]5.2 Asset Age Profile'!AN132","v":13},{"$f":"'[2]5.2 Asset Age Profile'!AO132","v":9},{"$f":"'[2]5.2 Asset Age Profile'!AP132","v":11},{"$f":"'[2]5.2 Asset Age Profile'!AQ132","v":8},{"$f":"'[2]5.2 Asset Age Profile'!AR132","v":6},{"$f":"'[2]5.2 Asset Age Profile'!AS132","v":3},{"$f":"'[2]5.2 Asset Age Profile'!AT132","v":4},{"$f":"'[2]5.2 Asset Age Profile'!AU132","v":4},{"$f":"'[2]5.2 Asset Age Profile'!AV132","v":1},{"$f":"'[2]5.2 Asset Age Profile'!AW132","v":6},{"$f":"'[2]5.2 Asset Age Profile'!AX132","v":3},{"$f":"'[2]5.2 Asset Age Profile'!AY132","v":2},{"$f":"'[2]5.2 Asset Age Profile'!AZ132","v":2},{"$f":"'[2]5.2 Asset Age Profile'!BA132","v":3},{"$f":"'[2]5.2 Asset Age Profile'!BB132","v":4},{"$f":"'[2]5.2 Asset Age Profile'!BC132","v":4},{"$f":"'[2]5.2 Asset Age Profile'!BD132","v":5},{"$f":"'[2]5.2 Asset Age Profile'!BE132","v":2},{"$f":"'[2]5.2 Asset Age Profile'!BF132","v":6},{"$f":"'[2]5.2 Asset Age Profile'!BG132","v":7},{"$f":"'[2]5.2 Asset Age Profile'!BH132","v":8},{"$f":"'[2]5.2 Asset Age Profile'!BI132","v":3},{"$f":"'[2]5.2 Asset Age Profile'!BJ132","v":13},{"$f":"'[2]5.2 Asset Age Profile'!BK132","v":6},{"$f":"'[2]5.2 Asset Age Profile'!BL132","v":8},{"$f":"'[2]5.2 Asset Age Profile'!BM132","v":12},{"$f":"'[2]5.2 Asset Age Profile'!BN132","v":9},{"$f":"'[2]5.2 Asset Age Profile'!BO132","v":9},{"$f":"'[2]5.2 Asset Age Profile'!BP132","v":11},{"$f":"'[2]5.2 Asset Age Profile'!BQ132","v":9},{"$f":"'[2]5.2 Asset Age Profile'!BR132","v":5},{"$f":"'[2]5.2 Asset Age Profile'!BS132","v":4},{"$f":"'[2]5.2 Asset Age Profile'!BT132","v":7},{"$f":"'[2]5.2 Asset Age Profile'!BU132","v":8},{"$f":"'[2]5.2 Asset Age Profile'!BV132","v":2},{"$f":"'[2]5.2 Asset Age Profile'!BW132","v":9},{"$f":"'[2]5.2 Asset Age Profile'!BX132","v":3},{"$f":"'[2]5.2 Asset Age Profile'!BY132","v":6},{"$f":"'[2]5.2 Asset Age Profile'!BZ132","v":7},{"$f":"'[2]5.2 Asset Age Profile'!CA132","v":5},{"$f":"'[2]5.2 Asset Age Profile'!CB132","v":12},{"$f":"'[2]5.2 Asset Age Profile'!CC132","v":5},{"$f":"'[2]5.2 Asset Age Profile'!CD132","v":4},{"$f":"'[2]5.2 Asset Age Profile'!CE132","v":14},{"$f":"'[2]5.2 Asset Age Profile'!CF132","v":6},{"$f":"'[2]5.2 Asset Age Profile'!CG132","v":12},{"$f":"'[2]5.2 Asset Age Profile'!CH132","v":5},{"$f":"'[2]5.2 Asset Age Profile'!CI132","v":4},{"$f":"'[2]5.2 Asset Age Profile'!CJ132","v":2},{"$f":"'[2]5.2 Asset Age Profile'!CK132","v":6},{"$f":"'[2]5.2 Asset Age Profile'!CL132","v":4},{"$f":"'[2]5.2 Asset Age Profile'!CM132","v":2},{"$f":"'[2]5.2 Asset Age Profile'!CN132","v":5},{"$f":"'[2]5.2 Asset Age Profile'!CO132","v":3},{"$f":"'[2]5.2 Asset Age Profile'!CP132","v":2},{"$f":"'[2]5.2 Asset Age Profile'!CQ132","v":3},{"$f":"'[2]5.2 Asset Age Profile'!CR132","v":2},{"$f":"'[2]5.2 Asset Age Profile'!CS132","v":1},{"$f":"'[2]5.2 Asset Age Profile'!CT132","v":2},{"$f":"'[2]5.2 Asset Age Profile'!CU132","v":1},{"$f":"'[2]5.2 Asset Age Profile'!CV132","v":4},{"$f":"'[2]5.2 Asset Age Profile'!CW132","v":0},{"$f":"'[2]5.2 Asset Age Profile'!CX132","v":0},{"$f":"'[2]5.2 Asset Age Profile'!CY132","v":0},{"$f":"'[2]5.2 Asset Age Profile'!CZ132","v":0},{"$f":"'[2]5.2 Asset Age Profile'!DA132","v":0},{"$f":"'[2]5.2 Asset Age Profile'!DB132","v":0},{"$f":"'[2]5.2 Asset Age Profile'!DC132","v":0},{"$f":"'[2]5.2 Asset Age Profile'!DD132","v":0},{"$f":"'[2]5.2 Asset Age Profile'!DE132","v":0},{"$f":"'[2]5.2 Asset Age Profile'!DF132","v":0},{"$f":"'[2]5.2 Asset Age Profile'!DG132","v":0},{"$f":"'[2]5.2 Asset Age Profile'!DH132","v":0},{"$f":"'[2]5.2 Asset Age Profile'!DI132","v":0},{"$f":"'[2]5.2 Asset Age Profile'!DJ132","v":0},{"$f":"'[2]5.2 Asset Age Profile'!DK132","v":0},{"$f":"'[2]5.2 Asset Age Profile'!DL132","v":0},{"$f":"'[2]5.2 Asset Age Profile'!DM132","v":0},{"$f":"'[2]5.2 Asset Age Profile'!DN132","v":0},{"$f":"'[2]5.2 Asset Age Profile'!DO132","v":0},{"$f":"'[2]5.2 Asset Age Profile'!DP132","v":0},{"$f":"'[2]5.2 Asset Age Profile'!DQ132","v":0},{"$f":"'[2]5.2 Asset Age Profile'!DR132","v":0},{"$f":"'[2]5.2 Asset Age Profile'!DS132","v":0},{"$f":"'[2]5.2 Asset Age Profile'!DT132","v":0},{"$f":"'[2]5.2 Asset Age Profile'!DU132","v":0},{"$f":"'[2]5.2 Asset Age Profile'!DV132","v":0},{"$f":"'[2]5.2 Asset Age Profile'!DW132","v":0},{"$f":"'[2]5.2 Asset Age Profile'!DX132","v":0},{"$f":"'[2]5.2 Asset Age Profile'!DY132","v":0},{"$f":"'[2]5.2 Asset Age Profile'!DZ132","v":0},{"$f":"'[2]5.2 Asset Age Profile'!EA132","v":0},{"$f":"'[2]5.2 Asset Age Profile'!EB132","v":0},{"$f":"'[2]5.2 Asset Age Profile'!EC132","v":0},{"$f":"'[2]5.2 Asset Age Profile'!ED132","v":0},{"$f":"'[2]5.2 Asset Age Profile'!EE132","v":0},{"$f":"'[2]5.2 Asset Age Profile'!EF132","v":0},{"$f":"'[2]5.2 Asset Age Profile'!EG132","v":0},{"$f":"'[2]5.2 Asset Age Profile'!EH132","v":0},{"$f":"'[2]5.2 Asset Age Profile'!EI132","v":0},{"$f":"'[2]5.2 Asset Age Profile'!EJ132","v":0}]
["ED_ASS521_00123",null,"OTHER - Zone Substation Batteries",null,null,null,null,null,null,null,null,null,null,{"$f":"'[2]5.2 Asset Age Profile'!N133","v":15},{"$f":"'[2]5.2 Asset Age Profile'!O133","v":0},{"$f":"'[2]5.2 Asset Age Profile'!P133","v":0},{"$f":"'[2]5.2 Asset Age Profile'!Q133","v":0},{"$f":"'[2]5.2 Asset Age Profile'!R133","v":0},{"$f":"'[2]5.2 Asset Age Profile'!S133","v":0},{"$f":"'[2]5.2 Asset Age Profile'!T133","v":0},{"$f":"'[2]5.2 Asset Age Profile'!U133","v":0},{"$f":"'[2]5.2 Asset Age Profile'!V133","v":0},{"$f":"'[2]5.2 Asset Age Profile'!W133","v":0},{"$f":"'[2]5.2 Asset Age Profile'!X133","v":0},{"$f":"'[2]5.2 Asset Age Profile'!Y133","v":3.872983346207417},{"$f":"'[2]5.2 Asset Age Profile'!Z133","v":0},{"$f":"'[2]5.2 Asset Age Profile'!AA133","v":0},{"$f":"'[2]5.2 Asset Age Profile'!AB133","v":0},{"$f":"'[2]5.2 Asset Age Profile'!AC133","v":0},{"$f":"'[2]5.2 Asset Age Profile'!AD133","v":0},{"$f":"'[2]5.2 Asset Age Profile'!AE133","v":0},{"$f":"'[2]5.2 Asset Age Profile'!AF133","v":0},{"$f":"'[2]5.2 Asset Age Profile'!AG133","v":0},{"$f":"'[2]5.2 Asset Age Profile'!AH133","v":0},{"$f":"'[2]5.2 Asset Age Profile'!AI133","v":0},{"$f":"'[2]5.2 Asset Age Profile'!AJ133","v":23},{"$f":"'[2]5.2 Asset Age Profile'!AK133","v":44},{"$f":"'[2]5.2 Asset Age Profile'!AL133","v":40},{"$f":"'[2]5.2 Asset Age Profile'!AM133","v":40},{"$f":"'[2]5.2 Asset Age Profile'!AN133","v":62},{"$f":"'[2]5.2 Asset Age Profile'!AO133","v":55},{"$f":"'[2]5.2 Asset Age Profile'!AP133","v":102},{"$f":"'[2]5.2 Asset Age Profile'!AQ133","v":105},{"$f":"'[2]5.2 Asset Age Profile'!AR133","v":53},{"$f":"'[2]5.2 Asset Age Profile'!AS133","v":32},{"$f":"'[2]5.2 Asset Age Profile'!AT133","v":37},{"$f":"'[2]5.2 Asset Age Profile'!AU133","v":21},{"$f":"'[2]5.2 Asset Age Profile'!AV133","v":20},{"$f":"'[2]5.2 Asset Age Profile'!AW133","v":14},{"$f":"'[2]5.2 Asset Age Profile'!AX133","v":14},{"$f":"'[2]5.2 Asset Age Profile'!AY133","v":5},{"$f":"'[2]5.2 Asset Age Profile'!AZ133","v":3},{"$f":"'[2]5.2 Asset Age Profile'!BA133","v":4},{"$f":"'[2]5.2 Asset Age Profile'!BB133","v":1},{"$f":"'[2]5.2 Asset Age Profile'!BC133","v":2},{"$f":"'[2]5.2 Asset Age Profile'!BD133","v":1},{"$f":"'[2]5.2 Asset Age Profile'!BE133","v":1},{"$f":"'[2]5.2 Asset Age Profile'!BF133","v":0},{"$f":"'[2]5.2 Asset Age Profile'!BG133","v":0},{"$f":"'[2]5.2 Asset Age Profile'!BH133","v":0},{"$f":"'[2]5.2 Asset Age Profile'!BI133","v":0},{"$f":"'[2]5.2 Asset Age Profile'!BJ133","v":0},{"$f":"'[2]5.2 Asset Age Profile'!BK133","v":0},{"$f":"'[2]5.2 Asset Age Profile'!BL133","v":0},{"$f":"'[2]5.2 Asset Age Profile'!BM133","v":0},{"$f":"'[2]5.2 Asset Age Profile'!BN133","v":0},{"$f":"'[2]5.2 Asset Age Profile'!BO133","v":0},{"$f":"'[2]5.2 Asset Age Profile'!BP133","v":0},{"$f":"'[2]5.2 Asset Age Profile'!BQ133","v":0},{"$f":"'[2]5.2 Asset Age Profile'!BR133","v":0},{"$f":"'[2]5.2 Asset Age Profile'!BS133","v":0},{"$f":"'[2]5.2 Asset Age Profile'!BT133","v":0},{"$f":"'[2]5.2 Asset Age Profile'!BU133","v":0},{"$f":"'[2]5.2 Asset Age Profile'!BV133","v":0},{"$f":"'[2]5.2 Asset Age Profile'!BW133","v":0},{"$f":"'[2]5.2 Asset Age Profile'!BX133","v":0},{"$f":"'[2]5.2 Asset Age Profile'!BY133","v":0},{"$f":"'[2]5.2 Asset Age Profile'!BZ133","v":0},{"$f":"'[2]5.2 Asset Age Profile'!CA133","v":0},{"$f":"'[2]5.2 Asset Age Profile'!CB133","v":0},{"$f":"'[2]5.2 Asset Age Profile'!CC133","v":0},{"$f":"'[2]5.2 Asset Age Profile'!CD133","v":0},{"$f":"'[2]5.2 Asset Age Profile'!CE133","v":0},{"$f":"'[2]5.2 Asset Age Profile'!CF133","v":0},{"$f":"'[2]5.2 Asset Age Profile'!CG133","v":0},{"$f":"'[2]5.2 Asset Age Profile'!CH133","v":0},{"$f":"'[2]5.2 Asset Age Profile'!CI133","v":0},{"$f":"'[2]5.2 Asset Age Profile'!CJ133","v":0},{"$f":"'[2]5.2 Asset Age Profile'!CK133","v":0},{"$f":"'[2]5.2 Asset Age Profile'!CL133","v":0},{"$f":"'[2]5.2 Asset Age Profile'!CM133","v":0},{"$f":"'[2]5.2 Asset Age Profile'!CN133","v":0},{"$f":"'[2]5.2 Asset Age Profile'!CO133","v":0},{"$f":"'[2]5.2 Asset Age Profile'!CP133","v":0},{"$f":"'[2]5.2 Asset Age Profile'!CQ133","v":0},{"$f":"'[2]5.2 Asset Age Profile'!CR133","v":0},{"$f":"'[2]5.2 Asset Age Profile'!CS133","v":0},{"$f":"'[2]5.2 Asset Age Profile'!CT133","v":0},{"$f":"'[2]5.2 Asset Age Profile'!CU133","v":0},{"$f":"'[2]5.2 Asset Age Profile'!CV133","v":0},{"$f":"'[2]5.2 Asset Age Profile'!CW133","v":0},{"$f":"'[2]5.2 Asset Age Profile'!CX133","v":0},{"$f":"'[2]5.2 Asset Age Profile'!CY133","v":0},{"$f":"'[2]5.2 Asset Age Profile'!CZ133","v":0},{"$f":"'[2]5.2 Asset Age Profile'!DA133","v":0},{"$f":"'[2]5.2 Asset Age Profile'!DB133","v":0},{"$f":"'[2]5.2 Asset Age Profile'!DC133","v":0},{"$f":"'[2]5.2 Asset Age Profile'!DD133","v":0},{"$f":"'[2]5.2 Asset Age Profile'!DE133","v":0},{"$f":"'[2]5.2 Asset Age Profile'!DF133","v":0},{"$f":"'[2]5.2 Asset Age Profile'!DG133","v":0},{"$f":"'[2]5.2 Asset Age Profile'!DH133","v":0},{"$f":"'[2]5.2 Asset Age Profile'!DI133","v":0},{"$f":"'[2]5.2 Asset Age Profile'!DJ133","v":0},{"$f":"'[2]5.2 Asset Age Profile'!DK133","v":0},{"$f":"'[2]5.2 Asset Age Profile'!DL133","v":0},{"$f":"'[2]5.2 Asset Age Profile'!DM133","v":0},{"$f":"'[2]5.2 Asset Age Profile'!DN133","v":0},{"$f":"'[2]5.2 Asset Age Profile'!DO133","v":0},{"$f":"'[2]5.2 Asset Age Profile'!DP133","v":0},{"$f":"'[2]5.2 Asset Age Profile'!DQ133","v":0},{"$f":"'[2]5.2 Asset Age Profile'!DR133","v":0},{"$f":"'[2]5.2 Asset Age Profile'!DS133","v":0},{"$f":"'[2]5.2 Asset Age Profile'!DT133","v":0},{"$f":"'[2]5.2 Asset Age Profile'!DU133","v":0},{"$f":"'[2]5.2 Asset Age Profile'!DV133","v":0},{"$f":"'[2]5.2 Asset Age Profile'!DW133","v":0},{"$f":"'[2]5.2 Asset Age Profile'!DX133","v":0},{"$f":"'[2]5.2 Asset Age Profile'!DY133","v":0},{"$f":"'[2]5.2 Asset Age Profile'!DZ133","v":0},{"$f":"'[2]5.2 Asset Age Profile'!EA133","v":0},{"$f":"'[2]5.2 Asset Age Profile'!EB133","v":0},{"$f":"'[2]5.2 Asset Age Profile'!EC133","v":0},{"$f":"'[2]5.2 Asset Age Profile'!ED133","v":0},{"$f":"'[2]5.2 Asset Age Profile'!EE133","v":0},{"$f":"'[2]5.2 Asset Age Profile'!EF133","v":0},{"$f":"'[2]5.2 Asset Age Profile'!EG133","v":0},{"$f":"'[2]5.2 Asset Age Profile'!EH133","v":0},{"$f":"'[2]5.2 Asset Age Profile'!EI133","v":0},{"$f":"'[2]5.2 Asset Age Profile'!EJ133","v":0}]
["ED_ASS521_00124",null,"OTHER - Zone Substation Current Transformers",null,null,null,null,null,null,null,null,null,null,{"$f":"'[2]5.2 Asset Age Profile'!N134","v":40},{"$f":"'[2]5.2 Asset Age Profile'!O134","v":0},{"$f":"'[2]5.2 Asset Age Profile'!P134","v":0},{"$f":"'[2]5.2 Asset Age Profile'!Q134","v":0},{"$f":"'[2]5.2 Asset Age Profile'!R134","v":0},{"$f":"'[2]5.2 Asset Age Profile'!S134","v":0},{"$f":"'[2]5.2 Asset Age Profile'!T134","v":0},{"$f":"'[2]5.2 Asset Age Profile'!U134","v":0},{"$f":"'[2]5.2 Asset Age Profile'!V134","v":0},{"$f":"'[2]5.2 Asset Age Profile'!W134","v":0},{"$f":"'[2]5.2 Asset Age Profile'!X134","v":0},{"$f":"'[2]5.2 Asset Age Profile'!Y134","v":6.324555320336759},{"$f":"'[2]5.2 Asset Age Profile'!Z134","v":0},{"$f":"'[2]5.2 Asset Age Profile'!AA134","v":0},{"$f":"'[2]5.2 Asset Age Profile'!AB134","v":0},{"$f":"'[2]5.2 Asset Age Profile'!AC134","v":0},{"$f":"'[2]5.2 Asset Age Profile'!AD134","v":0},{"$f":"'[2]5.2 Asset Age Profile'!AE134","v":0},{"$f":"'[2]5.2 Asset Age Profile'!AF134","v":0},{"$f":"'[2]5.2 Asset Age Profile'!AG134","v":0},{"$f":"'[2]5.2 Asset Age Profile'!AH134","v":0},{"$f":"'[2]5.2 Asset Age Profile'!AI134","v":0},{"$f":"'[2]5.2 Asset Age Profile'!AJ134","v":21},{"$f":"'[2]5.2 Asset Age Profile'!AK134","v":21},{"$f":"'[2]5.2 Asset Age Profile'!AL134","v":15},{"$f":"'[2]5.2 Asset Age Profile'!AM134","v":24},{"$f":"'[2]5.2 Asset Age Profile'!AN134","v":43},{"$f":"'[2]5.2 Asset Age Profile'!AO134","v":61},{"$f":"'[2]5.2 Asset Age Profile'!AP134","v":19},{"$f":"'[2]5.2 Asset Age Profile'!AQ134","v":61},{"$f":"'[2]5.2 Asset Age Profile'!AR134","v":34},{"$f":"'[2]5.2 Asset Age Profile'!AS134","v":78},{"$f":"'[2]5.2 Asset Age Profile'!AT134","v":47},{"$f":"'[2]5.2 Asset Age Profile'!AU134","v":22},{"$f":"'[2]5.2 Asset Age Profile'!AV134","v":42},{"$f":"'[2]5.2 Asset Age Profile'!AW134","v":126},{"$f":"'[2]5.2 Asset Age Profile'!AX134","v":18},{"$f":"'[2]5.2 Asset Age Profile'!AY134","v":77},{"$f":"'[2]5.2 Asset Age Profile'!AZ134","v":20},{"$f":"'[2]5.2 Asset Age Profile'!BA134","v":13},{"$f":"'[2]5.2 Asset Age Profile'!BB134","v":20},{"$f":"'[2]5.2 Asset Age Profile'!BC134","v":23},{"$f":"'[2]5.2 Asset Age Profile'!BD134","v":21},{"$f":"'[2]5.2 Asset Age Profile'!BE134","v":25},{"$f":"'[2]5.2 Asset Age Profile'!BF134","v":28},{"$f":"'[2]5.2 Asset Age Profile'!BG134","v":24},{"$f":"'[2]5.2 Asset Age Profile'!BH134","v":36},{"$f":"'[2]5.2 Asset Age Profile'!BI134","v":12},{"$f":"'[2]5.2 Asset Age Profile'!BJ134","v":13},{"$f":"'[2]5.2 Asset Age Profile'!BK134","v":23},{"$f":"'[2]5.2 Asset Age Profile'!BL134","v":50},{"$f":"'[2]5.2 Asset Age Profile'!BM134","v":20},{"$f":"'[2]5.2 Asset Age Profile'!BN134","v":13},{"$f":"'[2]5.2 Asset Age Profile'!BO134","v":12},{"$f":"'[2]5.2 Asset Age Profile'!BP134","v":56},{"$f":"'[2]5.2 Asset Age Profile'!BQ134","v":15},{"$f":"'[2]5.2 Asset Age Profile'!BR134","v":32},{"$f":"'[2]5.2 Asset Age Profile'!BS134","v":24},{"$f":"'[2]5.2 Asset Age Profile'!BT134","v":12},{"$f":"'[2]5.2 Asset Age Profile'!BU134","v":15},{"$f":"'[2]5.2 Asset Age Profile'!BV134","v":19},{"$f":"'[2]5.2 Asset Age Profile'!BW134","v":16},{"$f":"'[2]5.2 Asset Age Profile'!BX134","v":23},{"$f":"'[2]5.2 Asset Age Profile'!BY134","v":12},{"$f":"'[2]5.2 Asset Age Profile'!BZ134","v":13},{"$f":"'[2]5.2 Asset Age Profile'!CA134","v":12},{"$f":"'[2]5.2 Asset Age Profile'!CB134","v":12},{"$f":"'[2]5.2 Asset Age Profile'!CC134","v":12},{"$f":"'[2]5.2 Asset Age Profile'!CD134","v":12},{"$f":"'[2]5.2 Asset Age Profile'!CE134","v":18},{"$f":"'[2]5.2 Asset Age Profile'!CF134","v":12},{"$f":"'[2]5.2 Asset Age Profile'!CG134","v":12},{"$f":"'[2]5.2 Asset Age Profile'!CH134","v":12},{"$f":"'[2]5.2 Asset Age Profile'!CI134","v":18},{"$f":"'[2]5.2 Asset Age Profile'!CJ134","v":12},{"$f":"'[2]5.2 Asset Age Profile'!CK134","v":12},{"$f":"'[2]5.2 Asset Age Profile'!CL134","v":12},{"$f":"'[2]5.2 Asset Age Profile'!CM134","v":16},{"$f":"'[2]5.2 Asset Age Profile'!CN134","v":12},{"$f":"'[2]5.2 Asset Age Profile'!CO134","v":15},{"$f":"'[2]5.2 Asset Age Profile'!CP134","v":15},{"$f":"'[2]5.2 Asset Age Profile'!CQ134","v":12},{"$f":"'[2]5.2 Asset Age Profile'!CR134","v":12},{"$f":"'[2]5.2 Asset Age Profile'!CS134","v":12},{"$f":"'[2]5.2 Asset Age Profile'!CT134","v":12},{"$f":"'[2]5.2 Asset Age Profile'!CU134","v":12},{"$f":"'[2]5.2 Asset Age Profile'!CV134","v":22},{"$f":"'[2]5.2 Asset Age Profile'!CW134","v":0},{"$f":"'[2]5.2 Asset Age Profile'!CX134","v":0},{"$f":"'[2]5.2 Asset Age Profile'!CY134","v":0},{"$f":"'[2]5.2 Asset Age Profile'!CZ134","v":0},{"$f":"'[2]5.2 Asset Age Profile'!DA134","v":0},{"$f":"'[2]5.2 Asset Age Profile'!DB134","v":0},{"$f":"'[2]5.2 Asset Age Profile'!DC134","v":0},{"$f":"'[2]5.2 Asset Age Profile'!DD134","v":0},{"$f":"'[2]5.2 Asset Age Profile'!DE134","v":0},{"$f":"'[2]5.2 Asset Age Profile'!DF134","v":0},{"$f":"'[2]5.2 Asset Age Profile'!DG134","v":0},{"$f":"'[2]5.2 Asset Age Profile'!DH134","v":0},{"$f":"'[2]5.2 Asset Age Profile'!DI134","v":0},{"$f":"'[2]5.2 Asset Age Profile'!DJ134","v":0},{"$f":"'[2]5.2 Asset Age Profile'!DK134","v":0},{"$f":"'[2]5.2 Asset Age Profile'!DL134","v":0},{"$f":"'[2]5.2 Asset Age Profile'!DM134","v":0},{"$f":"'[2]5.2 Asset Age Profile'!DN134","v":0},{"$f":"'[2]5.2 Asset Age Profile'!DO134","v":0},{"$f":"'[2]5.2 Asset Age Profile'!DP134","v":0},{"$f":"'[2]5.2 Asset Age Profile'!DQ134","v":0},{"$f":"'[2]5.2 Asset Age Profile'!DR134","v":0},{"$f":"'[2]5.2 Asset Age Profile'!DS134","v":0},{"$f":"'[2]5.2 Asset Age Profile'!DT134","v":0},{"$f":"'[2]5.2 Asset Age Profile'!DU134","v":0},{"$f":"'[2]5.2 Asset Age Profile'!DV134","v":0},{"$f":"'[2]5.2 Asset Age Profile'!DW134","v":0},{"$f":"'[2]5.2 Asset Age Profile'!DX134","v":0},{"$f":"'[2]5.2 Asset Age Profile'!DY134","v":0},{"$f":"'[2]5.2 Asset Age Profile'!DZ134","v":0},{"$f":"'[2]5.2 Asset Age Profile'!EA134","v":0},{"$f":"'[2]5.2 Asset Age Profile'!EB134","v":0},{"$f":"'[2]5.2 Asset Age Profile'!EC134","v":0},{"$f":"'[2]5.2 Asset Age Profile'!ED134","v":0},{"$f":"'[2]5.2 Asset Age Profile'!EE134","v":0},{"$f":"'[2]5.2 Asset Age Profile'!EF134","v":0},{"$f":"'[2]5.2 Asset Age Profile'!EG134","v":0},{"$f":"'[2]5.2 Asset Age Profile'!EH134","v":0},{"$f":"'[2]5.2 Asset Age Profile'!EI134","v":0},{"$f":"'[2]5.2 Asset Age Profile'!EJ134","v":0}]
["ED_ASS521_00125",null,"OTHER - Zone SubstationVoltage Transformers",null,null,null,null,null,null,null,null,null,null,{"$f":"'[2]5.2 Asset Age Profile'!N135","v":40},{"$f":"'[2]5.2 Asset Age Profile'!O135","v":0},{"$f":"'[2]5.2 Asset Age Profile'!P135","v":0},{"$f":"'[2]5.2 Asset Age Profile'!Q135","v":0},{"$f":"'[2]5.2 Asset Age Profile'!R135","v":0},{"$f":"'[2]5.2 Asset Age Profile'!S135","v":0},{"$f":"'[2]5.2 Asset Age Profile'!T135","v":0},{"$f":"'[2]5.2 Asset Age Profile'!U135","v":0},{"$f":"'[2]5.2 Asset Age Profile'!V135","v":0},{"$f":"'[2]5.2 Asset Age Profile'!W135","v":0},{"$f":"'[2]5.2 Asset Age Profile'!X135","v":0},{"$f":"'[2]5.2 Asset Age Profile'!Y135","v":6.324555320336759},{"$f":"'[2]5.2 Asset Age Profile'!Z135","v":0},{"$f":"'[2]5.2 Asset Age Profile'!AA135","v":0},{"$f":"'[2]5.2 Asset Age Profile'!AB135","v":0},{"$f":"'[2]5.2 Asset Age Profile'!AC135","v":0},{"$f":"'[2]5.2 Asset Age Profile'!AD135","v":0},{"$f":"'[2]5.2 Asset Age Profile'!AE135","v":0},{"$f":"'[2]5.2 Asset Age Profile'!AF135","v":0},{"$f":"'[2]5.2 Asset Age Profile'!AG135","v":0},{"$f":"'[2]5.2 Asset Age Profile'!AH135","v":0},{"$f":"'[2]5.2 Asset Age Profile'!AI135","v":0},{"$f":"'[2]5.2 Asset Age Profile'!AJ135","v":43},{"$f":"'[2]5.2 Asset Age Profile'!AK135","v":94},{"$f":"'[2]5.2 Asset Age Profile'!AL135","v":76},{"$f":"'[2]5.2 Asset Age Profile'!AM135","v":141},{"$f":"'[2]5.2 Asset Age Profile'!AN135","v":56},{"$f":"'[2]5.2 Asset Age Profile'!AO135","v":149},{"$f":"'[2]5.2 Asset Age Profile'!AP135","v":118},{"$f":"'[2]5.2 Asset Age Profile'!AQ135","v":179},{"$f":"'[2]5.2 Asset Age Profile'!AR135","v":134},{"$f":"'[2]5.2 Asset Age Profile'!AS135","v":74},{"$f":"'[2]5.2 Asset Age Profile'!AT135","v":69},{"$f":"'[2]5.2 Asset Age Profile'!AU135","v":123},{"$f":"'[2]5.2 Asset Age Profile'!AV135","v":32},{"$f":"'[2]5.2 Asset Age Profile'!AW135","v":44},{"$f":"'[2]5.2 Asset Age Profile'!AX135","v":23},{"$f":"'[2]5.2 Asset Age Profile'!AY135","v":38},{"$f":"'[2]5.2 Asset Age Profile'!AZ135","v":11},{"$f":"'[2]5.2 Asset Age Profile'!BA135","v":7},{"$f":"'[2]5.2 Asset Age Profile'!BB135","v":8},{"$f":"'[2]5.2 Asset Age Profile'!BC135","v":16},{"$f":"'[2]5.2 Asset Age Profile'!BD135","v":12},{"$f":"'[2]5.2 Asset Age Profile'!BE135","v":9},{"$f":"'[2]5.2 Asset Age Profile'!BF135","v":10},{"$f":"'[2]5.2 Asset Age Profile'!BG135","v":10},{"$f":"'[2]5.2 Asset Age Profile'!BH135","v":22},{"$f":"'[2]5.2 Asset Age Profile'!BI135","v":7},{"$f":"'[2]5.2 Asset Age Profile'!BJ135","v":15},{"$f":"'[2]5.2 Asset Age Profile'!BK135","v":20},{"$f":"'[2]5.2 Asset Age Profile'!BL135","v":19},{"$f":"'[2]5.2 Asset Age Profile'!BM135","v":17},{"$f":"'[2]5.2 Asset Age Profile'!BN135","v":8},{"$f":"'[2]5.2 Asset Age Profile'!BO135","v":12},{"$f":"'[2]5.2 Asset Age Profile'!BP135","v":69},{"$f":"'[2]5.2 Asset Age Profile'!BQ135","v":95},{"$f":"'[2]5.2 Asset Age Profile'!BR135","v":11},{"$f":"'[2]5.2 Asset Age Profile'!BS135","v":6},{"$f":"'[2]5.2 Asset Age Profile'!BT135","v":6},{"$f":"'[2]5.2 Asset Age Profile'!BU135","v":6},{"$f":"'[2]5.2 Asset Age Profile'!BV135","v":6},{"$f":"'[2]5.2 Asset Age Profile'!BW135","v":6},{"$f":"'[2]5.2 Asset Age Profile'!BX135","v":6},{"$f":"'[2]5.2 Asset Age Profile'!BY135","v":7},{"$f":"'[2]5.2 Asset Age Profile'!BZ135","v":9},{"$f":"'[2]5.2 Asset Age Profile'!CA135","v":8},{"$f":"'[2]5.2 Asset Age Profile'!CB135","v":14},{"$f":"'[2]5.2 Asset Age Profile'!CC135","v":13},{"$f":"'[2]5.2 Asset Age Profile'!CD135","v":11},{"$f":"'[2]5.2 Asset Age Profile'!CE135","v":11},{"$f":"'[2]5.2 Asset Age Profile'!CF135","v":10},{"$f":"'[2]5.2 Asset Age Profile'!CG135","v":10},{"$f":"'[2]5.2 Asset Age Profile'!CH135","v":6},{"$f":"'[2]5.2 Asset Age Profile'!CI135","v":12},{"$f":"'[2]5.2 Asset Age Profile'!CJ135","v":8},{"$f":"'[2]5.2 Asset Age Profile'!CK135","v":7},{"$f":"'[2]5.2 Asset Age Profile'!CL135","v":6},{"$f":"'[2]5.2 Asset Age Profile'!CM135","v":6},{"$f":"'[2]5.2 Asset Age Profile'!CN135","v":6},{"$f":"'[2]5.2 Asset Age Profile'!CO135","v":6},{"$f":"'[2]5.2 Asset Age Profile'!CP135","v":6},{"$f":"'[2]5.2 Asset Age Profile'!CQ135","v":6},{"$f":"'[2]5.2 Asset Age Profile'!CR135","v":6},{"$f":"'[2]5.2 Asset Age Profile'!CS135","v":6},{"$f":"'[2]5.2 Asset Age Profile'!CT135","v":6},{"$f":"'[2]5.2 Asset Age Profile'!CU135","v":6},{"$f":"'[2]5.2 Asset Age Profile'!CV135","v":9},{"$f":"'[2]5.2 Asset Age Profile'!CW135","v":0},{"$f":"'[2]5.2 Asset Age Profile'!CX135","v":0},{"$f":"'[2]5.2 Asset Age Profile'!CY135","v":0},{"$f":"'[2]5.2 Asset Age Profile'!CZ135","v":0},{"$f":"'[2]5.2 Asset Age Profile'!DA135","v":0},{"$f":"'[2]5.2 Asset Age Profile'!DB135","v":0},{"$f":"'[2]5.2 Asset Age Profile'!DC135","v":0},{"$f":"'[2]5.2 Asset Age Profile'!DD135","v":0},{"$f":"'[2]5.2 Asset Age Profile'!DE135","v":0},{"$f":"'[2]5.2 Asset Age Profile'!DF135","v":0},{"$f":"'[2]5.2 Asset Age Profile'!DG135","v":0},{"$f":"'[2]5.2 Asset Age Profile'!DH135","v":0},{"$f":"'[2]5.2 Asset Age Profile'!DI135","v":0},{"$f":"'[2]5.2 Asset Age Profile'!DJ135","v":0},{"$f":"'[2]5.2 Asset Age Profile'!DK135","v":0},{"$f":"'[2]5.2 Asset Age Profile'!DL135","v":0},{"$f":"'[2]5.2 Asset Age Profile'!DM135","v":0},{"$f":"'[2]5.2 Asset Age Profile'!DN135","v":0},{"$f":"'[2]5.2 Asset Age Profile'!DO135","v":0},{"$f":"'[2]5.2 Asset Age Profile'!DP135","v":0},{"$f":"'[2]5.2 Asset Age Profile'!DQ135","v":0},{"$f":"'[2]5.2 Asset Age Profile'!DR135","v":0},{"$f":"'[2]5.2 Asset Age Profile'!DS135","v":0},{"$f":"'[2]5.2 Asset Age Profile'!DT135","v":0},{"$f":"'[2]5.2 Asset Age Profile'!DU135","v":0},{"$f":"'[2]5.2 Asset Age Profile'!DV135","v":0},{"$f":"'[2]5.2 Asset Age Profile'!DW135","v":0},{"$f":"'[2]5.2 Asset Age Profile'!DX135","v":0},{"$f":"'[2]5.2 Asset Age Profile'!DY135","v":0},{"$f":"'[2]5.2 Asset Age Profile'!DZ135","v":0},{"$f":"'[2]5.2 Asset Age Profile'!EA135","v":0},{"$f":"'[2]5.2 Asset Age Profile'!EB135","v":0},{"$f":"'[2]5.2 Asset Age Profile'!EC135","v":0},{"$f":"'[2]5.2 Asset Age Profile'!ED135","v":0},{"$f":"'[2]5.2 Asset Age Profile'!EE135","v":0},{"$f":"'[2]5.2 Asset Age Profile'!EF135","v":0},{"$f":"'[2]5.2 Asset Age Profile'!EG135","v":0},{"$f":"'[2]5.2 Asset Age Profile'!EH135","v":0},{"$f":"'[2]5.2 Asset Age Profile'!EI135","v":0},{"$f":"'[2]5.2 Asset Age Profile'!EJ135","v":0}]
["ED_ASS521_00126",null,"OTHER - Zone Substation Surge Diverters",null,null,null,null,null,null,null,null,null,null,{"$f":"'[2]5.2 Asset Age Profile'!N136","v":20},{"$f":"'[2]5.2 Asset Age Profile'!O136","v":0},{"$f":"'[2]5.2 Asset Age Profile'!P136","v":0},{"$f":"'[2]5.2 Asset Age Profile'!Q136","v":0},{"$f":"'[2]5.2 Asset Age Profile'!R136","v":0},{"$f":"'[2]5.2 Asset Age Profile'!S136","v":0},{"$f":"'[2]5.2 Asset Age Profile'!T136","v":0},{"$f":"'[2]5.2 Asset Age Profile'!U136","v":0},{"$f":"'[2]5.2 Asset Age Profile'!V136","v":0},{"$f":"'[2]5.2 Asset Age Profile'!W136","v":0},{"$f":"'[2]5.2 Asset Age Profile'!X136","v":0},{"$f":"'[2]5.2 Asset Age Profile'!Y136","v":4.4721359549995796},{"$f":"'[2]5.2 Asset Age Profile'!Z136","v":0},{"$f":"'[2]5.2 Asset Age Profile'!AA136","v":0},{"$f":"'[2]5.2 Asset Age Profile'!AB136","v":0},{"$f":"'[2]5.2 Asset Age Profile'!AC136","v":0},{"$f":"'[2]5.2 Asset Age Profile'!AD136","v":0},{"$f":"'[2]5.2 Asset Age Profile'!AE136","v":0},{"$f":"'[2]5.2 Asset Age Profile'!AF136","v":0},{"$f":"'[2]5.2 Asset Age Profile'!AG136","v":0},{"$f":"'[2]5.2 Asset Age Profile'!AH136","v":0},{"$f":"'[2]5.2 Asset Age Profile'!AI136","v":0},{"$f":"'[2]5.2 Asset Age Profile'!AJ136","v":384},{"$f":"'[2]5.2 Asset Age Profile'!AK136","v":465},{"$f":"'[2]5.2 Asset Age Profile'!AL136","v":453},{"$f":"'[2]5.2 Asset Age Profile'!AM136","v":414},{"$f":"'[2]5.2 Asset Age Profile'!AN136","v":438},{"$f":"'[2]5.2 Asset Age Profile'!AO136","v":450},{"$f":"'[2]5.2 Asset Age Profile'!AP136","v":459},{"$f":"'[2]5.2 Asset Age Profile'!AQ136","v":540},{"$f":"'[2]5.2 Asset Age Profile'!AR136","v":150},{"$f":"'[2]5.2 Asset Age Profile'!AS136","v":117},{"$f":"'[2]5.2 Asset Age Profile'!AT136","v":69},{"$f":"'[2]5.2 Asset Age Profile'!AU136","v":45},{"$f":"'[2]5.2 Asset Age Profile'!AV136","v":51},{"$f":"'[2]5.2 Asset Age Profile'!AW136","v":45},{"$f":"'[2]5.2 Asset Age Profile'!AX136","v":45},{"$f":"'[2]5.2 Asset Age Profile'!AY136","v":48},{"$f":"'[2]5.2 Asset Age Profile'!AZ136","v":39},{"$f":"'[2]5.2 Asset Age Profile'!BA136","v":42},{"$f":"'[2]5.2 Asset Age Profile'!BB136","v":54},{"$f":"'[2]5.2 Asset Age Profile'!BC136","v":51},{"$f":"'[2]5.2 Asset Age Profile'!BD136","v":39},{"$f":"'[2]5.2 Asset Age Profile'!BE136","v":45},{"$f":"'[2]5.2 Asset Age Profile'!BF136","v":42},{"$f":"'[2]5.2 Asset Age Profile'!BG136","v":57},{"$f":"'[2]5.2 Asset Age Profile'!BH136","v":39},{"$f":"'[2]5.2 Asset Age Profile'!BI136","v":48},{"$f":"'[2]5.2 Asset Age Profile'!BJ136","v":69},{"$f":"'[2]5.2 Asset Age Profile'!BK136","v":57},{"$f":"'[2]5.2 Asset Age Profile'!BL136","v":51},{"$f":"'[2]5.2 Asset Age Profile'!BM136","v":48},{"$f":"'[2]5.2 Asset Age Profile'!BN136","v":42},{"$f":"'[2]5.2 Asset Age Profile'!BO136","v":39},{"$f":"'[2]5.2 Asset Age Profile'!BP136","v":42},{"$f":"'[2]5.2 Asset Age Profile'!BQ136","v":72},{"$f":"'[2]5.2 Asset Age Profile'!BR136","v":42},{"$f":"'[2]5.2 Asset Age Profile'!BS136","v":48},{"$f":"'[2]5.2 Asset Age Profile'!BT136","v":45},{"$f":"'[2]5.2 Asset Age Profile'!BU136","v":36},{"$f":"'[2]5.2 Asset Age Profile'!BV136","v":36},{"$f":"'[2]5.2 Asset Age Profile'!BW136","v":36},{"$f":"'[2]5.2 Asset Age Profile'!BX136","v":36},{"$f":"'[2]5.2 Asset Age Profile'!BY136","v":36},{"$f":"'[2]5.2 Asset Age Profile'!BZ136","v":36},{"$f":"'[2]5.2 Asset Age Profile'!CA136","v":36},{"$f":"'[2]5.2 Asset Age Profile'!CB136","v":36},{"$f":"'[2]5.2 Asset Age Profile'!CC136","v":36},{"$f":"'[2]5.2 Asset Age Profile'!CD136","v":51},{"$f":"'[2]5.2 Asset Age Profile'!CE136","v":36},{"$f":"'[2]5.2 Asset Age Profile'!CF136","v":42},{"$f":"'[2]5.2 Asset Age Profile'!CG136","v":42},{"$f":"'[2]5.2 Asset Age Profile'!CH136","v":54},{"$f":"'[2]5.2 Asset Age Profile'!CI136","v":36},{"$f":"'[2]5.2 Asset Age Profile'!CJ136","v":48},{"$f":"'[2]5.2 Asset Age Profile'!CK136","v":36},{"$f":"'[2]5.2 Asset Age Profile'!CL136","v":36},{"$f":"'[2]5.2 Asset Age Profile'!CM136","v":0},{"$f":"'[2]5.2 Asset Age Profile'!CN136","v":0},{"$f":"'[2]5.2 Asset Age Profile'!CO136","v":0},{"$f":"'[2]5.2 Asset Age Profile'!CP136","v":0},{"$f":"'[2]5.2 Asset Age Profile'!CQ136","v":0},{"$f":"'[2]5.2 Asset Age Profile'!CR136","v":0},{"$f":"'[2]5.2 Asset Age Profile'!CS136","v":0},{"$f":"'[2]5.2 Asset Age Profile'!CT136","v":0},{"$f":"'[2]5.2 Asset Age Profile'!CU136","v":0},{"$f":"'[2]5.2 Asset Age Profile'!CV136","v":0},{"$f":"'[2]5.2 Asset Age Profile'!CW136","v":0},{"$f":"'[2]5.2 Asset Age Profile'!CX136","v":0},{"$f":"'[2]5.2 Asset Age Profile'!CY136","v":0},{"$f":"'[2]5.2 Asset Age Profile'!CZ136","v":0},{"$f":"'[2]5.2 Asset Age Profile'!DA136","v":0},{"$f":"'[2]5.2 Asset Age Profile'!DB136","v":0},{"$f":"'[2]5.2 Asset Age Profile'!DC136","v":0},{"$f":"'[2]5.2 Asset Age Profile'!DD136","v":0},{"$f":"'[2]5.2 Asset Age Profile'!DE136","v":0},{"$f":"'[2]5.2 Asset Age Profile'!DF136","v":0},{"$f":"'[2]5.2 Asset Age Profile'!DG136","v":0},{"$f":"'[2]5.2 Asset Age Profile'!DH136","v":0},{"$f":"'[2]5.2 Asset Age Profile'!DI136","v":0},{"$f":"'[2]5.2 Asset Age Profile'!DJ136","v":0},{"$f":"'[2]5.2 Asset Age Profile'!DK136","v":0},{"$f":"'[2]5.2 Asset Age Profile'!DL136","v":0},{"$f":"'[2]5.2 Asset Age Profile'!DM136","v":0},{"$f":"'[2]5.2 Asset Age Profile'!DN136","v":0},{"$f":"'[2]5.2 Asset Age Profile'!DO136","v":0},{"$f":"'[2]5.2 Asset Age Profile'!DP136","v":0},{"$f":"'[2]5.2 Asset Age Profile'!DQ136","v":0},{"$f":"'[2]5.2 Asset Age Profile'!DR136","v":0},{"$f":"'[2]5.2 Asset Age Profile'!DS136","v":0},{"$f":"'[2]5.2 Asset Age Profile'!DT136","v":0},{"$f":"'[2]5.2 Asset Age Profile'!DU136","v":0},{"$f":"'[2]5.2 Asset Age Profile'!DV136","v":0},{"$f":"'[2]5.2 Asset Age Profile'!DW136","v":0},{"$f":"'[2]5.2 Asset Age Profile'!DX136","v":0},{"$f":"'[2]5.2 Asset Age Profile'!DY136","v":0},{"$f":"'[2]5.2 Asset Age Profile'!DZ136","v":0},{"$f":"'[2]5.2 Asset Age Profile'!EA136","v":0},{"$f":"'[2]5.2 Asset Age Profile'!EB136","v":0},{"$f":"'[2]5.2 Asset Age Profile'!EC136","v":0},{"$f":"'[2]5.2 Asset Age Profile'!ED136","v":0},{"$f":"'[2]5.2 Asset Age Profile'!EE136","v":0},{"$f":"'[2]5.2 Asset Age Profile'!EF136","v":0},{"$f":"'[2]5.2 Asset Age Profile'!EG136","v":0},{"$f":"'[2]5.2 Asset Age Profile'!EH136","v":0},{"$f":"'[2]5.2 Asset Age Profile'!EI136","v":0},{"$f":"'[2]5.2 Asset Age Profile'!EJ136","v":0}]
["ED_ASS521_00127",null,"OTHER - Zone Substation Protection Relays",null,null,null,null,null,null,null,null,null,null,{"$f":"'[2]5.2 Asset Age Profile'!N137","v":15},{"$f":"'[2]5.2 Asset Age Profile'!O137","v":0},{"$f":"'[2]5.2 Asset Age Profile'!P137","v":0},{"$f":"'[2]5.2 Asset Age Profile'!Q137","v":0},{"$f":"'[2]5.2 Asset Age Profile'!R137","v":0},{"$f":"'[2]5.2 Asset Age Profile'!S137","v":0},{"$f":"'[2]5.2 Asset Age Profile'!T137","v":0},{"$f":"'[2]5.2 Asset Age Profile'!U137","v":0},{"$f":"'[2]5.2 Asset Age Profile'!V137","v":0},{"$f":"'[2]5.2 Asset Age Profile'!W137","v":0},{"$f":"'[2]5.2 Asset Age Profile'!X137","v":0},{"$f":"'[2]5.2 Asset Age Profile'!Y137","v":3.872983346207417},{"$f":"'[2]5.2 Asset Age Profile'!Z137","v":0},{"$f":"'[2]5.2 Asset Age Profile'!AA137","v":0},{"$f":"'[2]5.2 Asset Age Profile'!AB137","v":0},{"$f":"'[2]5.2 Asset Age Profile'!AC137","v":0},{"$f":"'[2]5.2 Asset Age Profile'!AD137","v":0},{"$f":"'[2]5.2 Asset Age Profile'!AE137","v":0},{"$f":"'[2]5.2 Asset Age Profile'!AF137","v":0},{"$f":"'[2]5.2 Asset Age Profile'!AG137","v":0},{"$f":"'[2]5.2 Asset Age Profile'!AH137","v":0},{"$f":"'[2]5.2 Asset Age Profile'!AI137","v":0},{"$f":"'[2]5.2 Asset Age Profile'!AJ137","v":127},{"$f":"'[2]5.2 Asset Age Profile'!AK137","v":133},{"$f":"'[2]5.2 Asset Age Profile'!AL137","v":396},{"$f":"'[2]5.2 Asset Age Profile'!AM137","v":349},{"$f":"'[2]5.2 Asset Age Profile'!AN137","v":543},{"$f":"'[2]5.2 Asset Age Profile'!AO137","v":150},{"$f":"'[2]5.2 Asset Age Profile'!AP137","v":249},{"$f":"'[2]5.2 Asset Age Profile'!AQ137","v":271},{"$f":"'[2]5.2 Asset Age Profile'!AR137","v":450},{"$f":"'[2]5.2 Asset Age Profile'!AS137","v":436},{"$f":"'[2]5.2 Asset Age Profile'!AT137","v":120},{"$f":"'[2]5.2 Asset Age Profile'!AU137","v":85},{"$f":"'[2]5.2 Asset Age Profile'!AV137","v":229},{"$f":"'[2]5.2 Asset Age Profile'!AW137","v":48},{"$f":"'[2]5.2 Asset Age Profile'!AX137","v":69},{"$f":"'[2]5.2 Asset Age Profile'!AY137","v":44},{"$f":"'[2]5.2 Asset Age Profile'!AZ137","v":82},{"$f":"'[2]5.2 Asset Age Profile'!BA137","v":64},{"$f":"'[2]5.2 Asset Age Profile'!BB137","v":18},{"$f":"'[2]5.2 Asset Age Profile'!BC137","v":13},{"$f":"'[2]5.2 Asset Age Profile'!BD137","v":127},{"$f":"'[2]5.2 Asset Age Profile'!BE137","v":36},{"$f":"'[2]5.2 Asset Age Profile'!BF137","v":27},{"$f":"'[2]5.2 Asset Age Profile'!BG137","v":73},{"$f":"'[2]5.2 Asset Age Profile'!BH137","v":78},{"$f":"'[2]5.2 Asset Age Profile'!BI137","v":27},{"$f":"'[2]5.2 Asset Age Profile'!BJ137","v":44},{"$f":"'[2]5.2 Asset Age Profile'!BK137","v":69},{"$f":"'[2]5.2 Asset Age Profile'!BL137","v":56},{"$f":"'[2]5.2 Asset Age Profile'!BM137","v":91},{"$f":"'[2]5.2 Asset Age Profile'!BN137","v":11},{"$f":"'[2]5.2 Asset Age Profile'!BO137","v":20},{"$f":"'[2]5.2 Asset Age Profile'!BP137","v":33},{"$f":"'[2]5.2 Asset Age Profile'!BQ137","v":44},{"$f":"'[2]5.2 Asset Age Profile'!BR137","v":51},{"$f":"'[2]5.2 Asset Age Profile'!BS137","v":7},{"$f":"'[2]5.2 Asset Age Profile'!BT137","v":49},{"$f":"'[2]5.2 Asset Age Profile'!BU137","v":4},{"$f":"'[2]5.2 Asset Age Profile'!BV137","v":24},{"$f":"'[2]5.2 Asset Age Profile'!BW137","v":2},{"$f":"'[2]5.2 Asset Age Profile'!BX137","v":11},{"$f":"'[2]5.2 Asset Age Profile'!BY137","v":11},{"$f":"'[2]5.2 Asset Age Profile'!BZ137","v":11},{"$f":"'[2]5.2 Asset Age Profile'!CA137","v":20},{"$f":"'[2]5.2 Asset Age Profile'!CB137","v":22},{"$f":"'[2]5.2 Asset Age Profile'!CC137","v":13},{"$f":"'[2]5.2 Asset Age Profile'!CD137","v":33},{"$f":"'[2]5.2 Asset Age Profile'!CE137","v":27},{"$f":"'[2]5.2 Asset Age Profile'!CF137","v":24},{"$f":"'[2]5.2 Asset Age Profile'!CG137","v":42},{"$f":"'[2]5.2 Asset Age Profile'!CH137","v":33},{"$f":"'[2]5.2 Asset Age Profile'!CI137","v":4},{"$f":"'[2]5.2 Asset Age Profile'!CJ137","v":11},{"$f":"'[2]5.2 Asset Age Profile'!CK137","v":7},{"$f":"'[2]5.2 Asset Age Profile'!CL137","v":13},{"$f":"'[2]5.2 Asset Age Profile'!CM137","v":20},{"$f":"'[2]5.2 Asset Age Profile'!CN137","v":1},{"$f":"'[2]5.2 Asset Age Profile'!CO137","v":1},{"$f":"'[2]5.2 Asset Age Profile'!CP137","v":4},{"$f":"'[2]5.2 Asset Age Profile'!CQ137","v":4},{"$f":"'[2]5.2 Asset Age Profile'!CR137","v":9},{"$f":"'[2]5.2 Asset Age Profile'!CS137","v":2},{"$f":"'[2]5.2 Asset Age Profile'!CT137","v":1},{"$f":"'[2]5.2 Asset Age Profile'!CU137","v":7},{"$f":"'[2]5.2 Asset Age Profile'!CV137","v":0},{"$f":"'[2]5.2 Asset Age Profile'!CW137","v":13},{"$f":"'[2]5.2 Asset Age Profile'!CX137","v":0},{"$f":"'[2]5.2 Asset Age Profile'!CY137","v":0},{"$f":"'[2]5.2 Asset Age Profile'!CZ137","v":0},{"$f":"'[2]5.2 Asset Age Profile'!DA137","v":0},{"$f":"'[2]5.2 Asset Age Profile'!DB137","v":0},{"$f":"'[2]5.2 Asset Age Profile'!DC137","v":0},{"$f":"'[2]5.2 Asset Age Profile'!DD137","v":0},{"$f":"'[2]5.2 Asset Age Profile'!DE137","v":0},{"$f":"'[2]5.2 Asset Age Profile'!DF137","v":2},{"$f":"'[2]5.2 Asset Age Profile'!DG137","v":0},{"$f":"'[2]5.2 Asset Age Profile'!DH137","v":0},{"$f":"'[2]5.2 Asset Age Profile'!DI137","v":0},{"$f":"'[2]5.2 Asset Age Profile'!DJ137","v":0},{"$f":"'[2]5.2 Asset Age Profile'!DK137","v":0},{"$f":"'[2]5.2 Asset Age Profile'!DL137","v":0},{"$f":"'[2]5.2 Asset Age Profile'!DM137","v":0},{"$f":"'[2]5.2 Asset Age Profile'!DN137","v":4},{"$f":"'[2]5.2 Asset Age Profile'!DO137","v":0},{"$f":"'[2]5.2 Asset Age Profile'!DP137","v":0},{"$f":"'[2]5.2 Asset Age Profile'!DQ137","v":0},{"$f":"'[2]5.2 Asset Age Profile'!DR137","v":0},{"$f":"'[2]5.2 Asset Age Profile'!DS137","v":0},{"$f":"'[2]5.2 Asset Age Profile'!DT137","v":0},{"$f":"'[2]5.2 Asset Age Profile'!DU137","v":0},{"$f":"'[2]5.2 Asset Age Profile'!DV137","v":0},{"$f":"'[2]5.2 Asset Age Profile'!DW137","v":0},{"$f":"'[2]5.2 Asset Age Profile'!DX137","v":0},{"$f":"'[2]5.2 Asset Age Profile'!DY137","v":0},{"$f":"'[2]5.2 Asset Age Profile'!DZ137","v":0},{"$f":"'[2]5.2 Asset Age Profile'!EA137","v":0},{"$f":"'[2]5.2 Asset Age Profile'!EB137","v":0},{"$f":"'[2]5.2 Asset Age Profile'!EC137","v":0},{"$f":"'[2]5.2 Asset Age Profile'!ED137","v":0},{"$f":"'[2]5.2 Asset Age Profile'!EE137","v":0},{"$f":"'[2]5.2 Asset Age Profile'!EF137","v":0},{"$f":"'[2]5.2 Asset Age Profile'!EG137","v":0},{"$f":"'[2]5.2 Asset Age Profile'!EH137","v":0},{"$f":"'[2]5.2 Asset Age Profile'!EI137","v":0},{"$f":"'[2]5.2 Asset Age Profile'!EJ137","v":0}]
["ED_ASS521_00128",null,"OTHER - Frequency Injection Refurbishment",null,null,null,null,null,null,null,null,null,null,{"$f":"'[2]5.2 Asset Age Profile'!N138","v":20},{"$f":"'[2]5.2 Asset Age Profile'!O138","v":0},{"$f":"'[2]5.2 Asset Age Profile'!P138","v":0},{"$f":"'[2]5.2 Asset Age Profile'!Q138","v":0},{"$f":"'[2]5.2 Asset Age Profile'!R138","v":0},{"$f":"'[2]5.2 Asset Age Profile'!S138","v":0},{"$f":"'[2]5.2 Asset Age Profile'!T138","v":0},{"$f":"'[2]5.2 Asset Age Profile'!U138","v":0},{"$f":"'[2]5.2 Asset Age Profile'!V138","v":0},{"$f":"'[2]5.2 Asset Age Profile'!W138","v":0},{"$f":"'[2]5.2 Asset Age Profile'!X138","v":0},{"$f":"'[2]5.2 Asset Age Profile'!Y138","v":4.4721359549995796},{"$f":"'[2]5.2 Asset Age Profile'!Z138","v":0},{"$f":"'[2]5.2 Asset Age Profile'!AA138","v":0},{"$f":"'[2]5.2 Asset Age Profile'!AB138","v":0},{"$f":"'[2]5.2 Asset Age Profile'!AC138","v":0},{"$f":"'[2]5.2 Asset Age Profile'!AD138","v":0},{"$f":"'[2]5.2 Asset Age Profile'!AE138","v":0},{"$f":"'[2]5.2 Asset Age Profile'!AF138","v":0},{"$f":"'[2]5.2 Asset Age Profile'!AG138","v":0},{"$f":"'[2]5.2 Asset Age Profile'!AH138","v":0},{"$f":"'[2]5.2 Asset Age Profile'!AI138","v":0},{"$f":"'[2]5.2 Asset Age Profile'!AJ138","v":1},{"$f":"'[2]5.2 Asset Age Profile'!AK138","v":6},{"$f":"'[2]5.2 Asset Age Profile'!AL138","v":4},{"$f":"'[2]5.2 Asset Age Profile'!AM138","v":3},{"$f":"'[2]5.2 Asset Age Profile'!AN138","v":6},{"$f":"'[2]5.2 Asset Age Profile'!AO138","v":9},{"$f":"'[2]5.2 Asset Age Profile'!AP138","v":7},{"$f":"'[2]5.2 Asset Age Profile'!AQ138","v":5},{"$f":"'[2]5.2 Asset Age Profile'!AR138","v":2},{"$f":"'[2]5.2 Asset Age Profile'!AS138","v":3},{"$f":"'[2]5.2 Asset Age Profile'!AT138","v":1},{"$f":"'[2]5.2 Asset Age Profile'!AU138","v":1},{"$f":"'[2]5.2 Asset Age Profile'!AV138","v":1},{"$f":"'[2]5.2 Asset Age Profile'!AW138","v":3},{"$f":"'[2]5.2 Asset Age Profile'!AX138","v":2},{"$f":"'[2]5.2 Asset Age Profile'!AY138","v":2},{"$f":"'[2]5.2 Asset Age Profile'!AZ138","v":1},{"$f":"'[2]5.2 Asset Age Profile'!BA138","v":2},{"$f":"'[2]5.2 Asset Age Profile'!BB138","v":1},{"$f":"'[2]5.2 Asset Age Profile'!BC138","v":3},{"$f":"'[2]5.2 Asset Age Profile'!BD138","v":4},{"$f":"'[2]5.2 Asset Age Profile'!BE138","v":1},{"$f":"'[2]5.2 Asset Age Profile'!BF138","v":1},{"$f":"'[2]5.2 Asset Age Profile'!BG138","v":0},{"$f":"'[2]5.2 Asset Age Profile'!BH138","v":0},{"$f":"'[2]5.2 Asset Age Profile'!BI138","v":0},{"$f":"'[2]5.2 Asset Age Profile'!BJ138","v":0},{"$f":"'[2]5.2 Asset Age Profile'!BK138","v":0},{"$f":"'[2]5.2 Asset Age Profile'!BL138","v":0},{"$f":"'[2]5.2 Asset Age Profile'!BM138","v":0},{"$f":"'[2]5.2 Asset Age Profile'!BN138","v":0},{"$f":"'[2]5.2 Asset Age Profile'!BO138","v":0},{"$f":"'[2]5.2 Asset Age Profile'!BP138","v":0},{"$f":"'[2]5.2 Asset Age Profile'!BQ138","v":0},{"$f":"'[2]5.2 Asset Age Profile'!BR138","v":0},{"$f":"'[2]5.2 Asset Age Profile'!BS138","v":0},{"$f":"'[2]5.2 Asset Age Profile'!BT138","v":0},{"$f":"'[2]5.2 Asset Age Profile'!BU138","v":0},{"$f":"'[2]5.2 Asset Age Profile'!BV138","v":0},{"$f":"'[2]5.2 Asset Age Profile'!BW138","v":0},{"$f":"'[2]5.2 Asset Age Profile'!BX138","v":0},{"$f":"'[2]5.2 Asset Age Profile'!BY138","v":0},{"$f":"'[2]5.2 Asset Age Profile'!BZ138","v":0},{"$f":"'[2]5.2 Asset Age Profile'!CA138","v":0},{"$f":"'[2]5.2 Asset Age Profile'!CB138","v":0},{"$f":"'[2]5.2 Asset Age Profile'!CC138","v":0},{"$f":"'[2]5.2 Asset Age Profile'!CD138","v":0},{"$f":"'[2]5.2 Asset Age Profile'!CE138","v":0},{"$f":"'[2]5.2 Asset Age Profile'!CF138","v":0},{"$f":"'[2]5.2 Asset Age Profile'!CG138","v":0},{"$f":"'[2]5.2 Asset Age Profile'!CH138","v":0},{"$f":"'[2]5.2 Asset Age Profile'!CI138","v":0},{"$f":"'[2]5.2 Asset Age Profile'!CJ138","v":0},{"$f":"'[2]5.2 Asset Age Profile'!CK138","v":0},{"$f":"'[2]5.2 Asset Age Profile'!CL138","v":0},{"$f":"'[2]5.2 Asset Age Profile'!CM138","v":0},{"$f":"'[2]5.2 Asset Age Profile'!CN138","v":0},{"$f":"'[2]5.2 Asset Age Profile'!CO138","v":0},{"$f":"'[2]5.2 Asset Age Profile'!CP138","v":0},{"$f":"'[2]5.2 Asset Age Profile'!CQ138","v":0},{"$f":"'[2]5.2 Asset Age Profile'!CR138","v":0},{"$f":"'[2]5.2 Asset Age Profile'!CS138","v":0},{"$f":"'[2]5.2 Asset Age Profile'!CT138","v":0},{"$f":"'[2]5.2 Asset Age Profile'!CU138","v":0},{"$f":"'[2]5.2 Asset Age Profile'!CV138","v":0},{"$f":"'[2]5.2 Asset Age Profile'!CW138","v":0},{"$f":"'[2]5.2 Asset Age Profile'!CX138","v":0},{"$f":"'[2]5.2 Asset Age Profile'!CY138","v":0},{"$f":"'[2]5.2 Asset Age Profile'!CZ138","v":0},{"$f":"'[2]5.2 Asset Age Profile'!DA138","v":0},{"$f":"'[2]5.2 Asset Age Profile'!DB138","v":0},{"$f":"'[2]5.2 Asset Age Profile'!DC138","v":0},{"$f":"'[2]5.2 Asset Age Profile'!DD138","v":0},{"$f":"'[2]5.2 Asset Age Profile'!DE138","v":0},{"$f":"'[2]5.2 Asset Age Profile'!DF138","v":0},{"$f":"'[2]5.2 Asset Age Profile'!DG138","v":0},{"$f":"'[2]5.2 Asset Age Profile'!DH138","v":0},{"$f":"'[2]5.2 Asset Age Profile'!DI138","v":0},{"$f":"'[2]5.2 Asset Age Profile'!DJ138","v":0},{"$f":"'[2]5.2 Asset Age Profile'!DK138","v":0},{"$f":"'[2]5.2 Asset Age Profile'!DL138","v":0},{"$f":"'[2]5.2 Asset Age Profile'!DM138","v":0},{"$f":"'[2]5.2 Asset Age Profile'!DN138","v":0},{"$f":"'[2]5.2 Asset Age Profile'!DO138","v":0},{"$f":"'[2]5.2 Asset Age Profile'!DP138","v":0},{"$f":"'[2]5.2 Asset Age Profile'!DQ138","v":0},{"$f":"'[2]5.2 Asset Age Profile'!DR138","v":0},{"$f":"'[2]5.2 Asset Age Profile'!DS138","v":0},{"$f":"'[2]5.2 Asset Age Profile'!DT138","v":0},{"$f":"'[2]5.2 Asset Age Profile'!DU138","v":0},{"$f":"'[2]5.2 Asset Age Profile'!DV138","v":0},{"$f":"'[2]5.2 Asset Age Profile'!DW138","v":0},{"$f":"'[2]5.2 Asset Age Profile'!DX138","v":0},{"$f":"'[2]5.2 Asset Age Profile'!DY138","v":0},{"$f":"'[2]5.2 Asset Age Profile'!DZ138","v":0},{"$f":"'[2]5.2 Asset Age Profile'!EA138","v":0},{"$f":"'[2]5.2 Asset Age Profile'!EB138","v":0},{"$f":"'[2]5.2 Asset Age Profile'!EC138","v":0},{"$f":"'[2]5.2 Asset Age Profile'!ED138","v":0},{"$f":"'[2]5.2 Asset Age Profile'!EE138","v":0},{"$f":"'[2]5.2 Asset Age Profile'!EF138","v":0},{"$f":"'[2]5.2 Asset Age Profile'!EG138","v":0},{"$f":"'[2]5.2 Asset Age Profile'!EH138","v":0},{"$f":"'[2]5.2 Asset Age Profile'!EI138","v":0},{"$f":"'[2]5.2 Asset Age Profile'!EJ138","v":0}]
["ED_ASS521_00129",null,null,null,null,null,null,null,null,null,null,null,null,{"$f":"'[2]5.2 Asset Age Profile'!N139","v":0},{"$f":"'[2]5.2 Asset Age Profile'!O139","v":0},{"$f":"'[2]5.2 Asset Age Profile'!P139","v":0},{"$f":"'[2]5.2 Asset Age Profile'!Q139","v":0},{"$f":"'[2]5.2 Asset Age Profile'!R139","v":0},{"$f":"'[2]5.2 Asset Age Profile'!S139","v":0},{"$f":"'[2]5.2 Asset Age Profile'!T139","v":0},{"$f":"'[2]5.2 Asset Age Profile'!U139","v":0},{"$f":"'[2]5.2 Asset Age Profile'!V139","v":0},{"$f":"'[2]5.2 Asset Age Profile'!W139","v":0},{"$f":"'[2]5.2 Asset Age Profile'!X139","v":0},{"$f":"'[2]5.2 Asset Age Profile'!Y139","v":0},{"$f":"'[2]5.2 Asset Age Profile'!Z139","v":0},{"$f":"'[2]5.2 Asset Age Profile'!AA139","v":0},{"$f":"'[2]5.2 Asset Age Profile'!AB139","v":0},{"$f":"'[2]5.2 Asset Age Profile'!AC139","v":0},{"$f":"'[2]5.2 Asset Age Profile'!AD139","v":0},{"$f":"'[2]5.2 Asset Age Profile'!AE139","v":0},{"$f":"'[2]5.2 Asset Age Profile'!AF139","v":0},{"$f":"'[2]5.2 Asset Age Profile'!AG139","v":0},{"$f":"'[2]5.2 Asset Age Profile'!AH139","v":0},{"$f":"'[2]5.2 Asset Age Profile'!AI139","v":0},{"$f":"'[2]5.2 Asset Age Profile'!AJ139","v":0},{"$f":"'[2]5.2 Asset Age Profile'!AK139","v":0},{"$f":"'[2]5.2 Asset Age Profile'!AL139","v":0},{"$f":"'[2]5.2 Asset Age Profile'!AM139","v":0},{"$f":"'[2]5.2 Asset Age Profile'!AN139","v":0},{"$f":"'[2]5.2 Asset Age Profile'!AO139","v":0},{"$f":"'[2]5.2 Asset Age Profile'!AP139","v":0},{"$f":"'[2]5.2 Asset Age Profile'!AQ139","v":0},{"$f":"'[2]5.2 Asset Age Profile'!AR139","v":0},{"$f":"'[2]5.2 Asset Age Profile'!AS139","v":0},{"$f":"'[2]5.2 Asset Age Profile'!AT139","v":0},{"$f":"'[2]5.2 Asset Age Profile'!AU139","v":0},{"$f":"'[2]5.2 Asset Age Profile'!AV139","v":0},{"$f":"'[2]5.2 Asset Age Profile'!AW139","v":0},{"$f":"'[2]5.2 Asset Age Profile'!AX139","v":0},{"$f":"'[2]5.2 Asset Age Profile'!AY139","v":0},{"$f":"'[2]5.2 Asset Age Profile'!AZ139","v":0},{"$f":"'[2]5.2 Asset Age Profile'!BA139","v":0},{"$f":"'[2]5.2 Asset Age Profile'!BB139","v":0},{"$f":"'[2]5.2 Asset Age Profile'!BC139","v":0},{"$f":"'[2]5.2 Asset Age Profile'!BD139","v":0},{"$f":"'[2]5.2 Asset Age Profile'!BE139","v":0},{"$f":"'[2]5.2 Asset Age Profile'!BF139","v":0},{"$f":"'[2]5.2 Asset Age Profile'!BG139","v":0},{"$f":"'[2]5.2 Asset Age Profile'!BH139","v":0},{"$f":"'[2]5.2 Asset Age Profile'!BI139","v":0},{"$f":"'[2]5.2 Asset Age Profile'!BJ139","v":0},{"$f":"'[2]5.2 Asset Age Profile'!BK139","v":0},{"$f":"'[2]5.2 Asset Age Profile'!BL139","v":0},{"$f":"'[2]5.2 Asset Age Profile'!BM139","v":0},{"$f":"'[2]5.2 Asset Age Profile'!BN139","v":0},{"$f":"'[2]5.2 Asset Age Profile'!BO139","v":0},{"$f":"'[2]5.2 Asset Age Profile'!BP139","v":0},{"$f":"'[2]5.2 Asset Age Profile'!BQ139","v":0},{"$f":"'[2]5.2 Asset Age Profile'!BR139","v":0},{"$f":"'[2]5.2 Asset Age Profile'!BS139","v":0},{"$f":"'[2]5.2 Asset Age Profile'!BT139","v":0},{"$f":"'[2]5.2 Asset Age Profile'!BU139","v":0},{"$f":"'[2]5.2 Asset Age Profile'!BV139","v":0},{"$f":"'[2]5.2 Asset Age Profile'!BW139","v":0},{"$f":"'[2]5.2 Asset Age Profile'!BX139","v":0},{"$f":"'[2]5.2 Asset Age Profile'!BY139","v":0},{"$f":"'[2]5.2 Asset Age Profile'!BZ139","v":0},{"$f":"'[2]5.2 Asset Age Profile'!CA139","v":0},{"$f":"'[2]5.2 Asset Age Profile'!CB139","v":0},{"$f":"'[2]5.2 Asset Age Profile'!CC139","v":0},{"$f":"'[2]5.2 Asset Age Profile'!CD139","v":0},{"$f":"'[2]5.2 Asset Age Profile'!CE139","v":0},{"$f":"'[2]5.2 Asset Age Profile'!CF139","v":0},{"$f":"'[2]5.2 Asset Age Profile'!CG139","v":0},{"$f":"'[2]5.2 Asset Age Profile'!CH139","v":0},{"$f":"'[2]5.2 Asset Age Profile'!CI139","v":0},{"$f":"'[2]5.2 Asset Age Profile'!CJ139","v":0},{"$f":"'[2]5.2 Asset Age Profile'!CK139","v":0},{"$f":"'[2]5.2 Asset Age Profile'!CL139","v":0},{"$f":"'[2]5.2 Asset Age Profile'!CM139","v":0},{"$f":"'[2]5.2 Asset Age Profile'!CN139","v":0},{"$f":"'[2]5.2 Asset Age Profile'!CO139","v":0},{"$f":"'[2]5.2 Asset Age Profile'!CP139","v":0},{"$f":"'[2]5.2 Asset Age Profile'!CQ139","v":0},{"$f":"'[2]5.2 Asset Age Profile'!CR139","v":0},{"$f":"'[2]5.2 Asset Age Profile'!CS139","v":0},{"$f":"'[2]5.2 Asset Age Profile'!CT139","v":0},{"$f":"'[2]5.2 Asset Age Profile'!CU139","v":0},{"$f":"'[2]5.2 Asset Age Profile'!CV139","v":0},{"$f":"'[2]5.2 Asset Age Profile'!CW139","v":0},{"$f":"'[2]5.2 Asset Age Profile'!CX139","v":0},{"$f":"'[2]5.2 Asset Age Profile'!CY139","v":0},{"$f":"'[2]5.2 Asset Age Profile'!CZ139","v":0},{"$f":"'[2]5.2 Asset Age Profile'!DA139","v":0},{"$f":"'[2]5.2 Asset Age Profile'!DB139","v":0},{"$f":"'[2]5.2 Asset Age Profile'!DC139","v":0},{"$f":"'[2]5.2 Asset Age Profile'!DD139","v":0},{"$f":"'[2]5.2 Asset Age Profile'!DE139","v":0},{"$f":"'[2]5.2 Asset Age Profile'!DF139","v":0},{"$f":"'[2]5.2 Asset Age Profile'!DG139","v":0},{"$f":"'[2]5.2 Asset Age Profile'!DH139","v":0},{"$f":"'[2]5.2 Asset Age Profile'!DI139","v":0},{"$f":"'[2]5.2 Asset Age Profile'!DJ139","v":0},{"$f":"'[2]5.2 Asset Age Profile'!DK139","v":0},{"$f":"'[2]5.2 Asset Age Profile'!DL139","v":0},{"$f":"'[2]5.2 Asset Age Profile'!DM139","v":0},{"$f":"'[2]5.2 Asset Age Profile'!DN139","v":0},{"$f":"'[2]5.2 Asset Age Profile'!DO139","v":0},{"$f":"'[2]5.2 Asset Age Profile'!DP139","v":0},{"$f":"'[2]5.2 Asset Age Profile'!DQ139","v":0},{"$f":"'[2]5.2 Asset Age Profile'!DR139","v":0},{"$f":"'[2]5.2 Asset Age Profile'!DS139","v":0},{"$f":"'[2]5.2 Asset Age Profile'!DT139","v":0},{"$f":"'[2]5.2 Asset Age Profile'!DU139","v":0},{"$f":"'[2]5.2 Asset Age Profile'!DV139","v":0},{"$f":"'[2]5.2 Asset Age Profile'!DW139","v":0},{"$f":"'[2]5.2 Asset Age Profile'!DX139","v":0},{"$f":"'[2]5.2 Asset Age Profile'!DY139","v":0},{"$f":"'[2]5.2 Asset Age Profile'!DZ139","v":0},{"$f":"'[2]5.2 Asset Age Profile'!EA139","v":0},{"$f":"'[2]5.2 Asset Age Profile'!EB139","v":0},{"$f":"'[2]5.2 Asset Age Profile'!EC139","v":0},{"$f":"'[2]5.2 Asset Age Profile'!ED139","v":0},{"$f":"'[2]5.2 Asset Age Profile'!EE139","v":0},{"$f":"'[2]5.2 Asset Age Profile'!EF139","v":0},{"$f":"'[2]5.2 Asset Age Profile'!EG139","v":0},{"$f":"'[2]5.2 Asset Age Profile'!EH139","v":0},{"$f":"'[2]5.2 Asset Age Profile'!EI139","v":0},{"$f":"'[2]5.2 Asset Age Profile'!EJ139","v":0}]
["ED_ASS521_00130",null,null,null,null,null,null,null,null,null,null,null,null,{"$f":"'[2]5.2 Asset Age Profile'!N140","v":0},{"$f":"'[2]5.2 Asset Age Profile'!O140","v":0},{"$f":"'[2]5.2 Asset Age Profile'!P140","v":0},{"$f":"'[2]5.2 Asset Age Profile'!Q140","v":0},{"$f":"'[2]5.2 Asset Age Profile'!R140","v":0},{"$f":"'[2]5.2 Asset Age Profile'!S140","v":0},{"$f":"'[2]5.2 Asset Age Profile'!T140","v":0},{"$f":"'[2]5.2 Asset Age Profile'!U140","v":0},{"$f":"'[2]5.2 Asset Age Profile'!V140","v":0},{"$f":"'[2]5.2 Asset Age Profile'!W140","v":0},{"$f":"'[2]5.2 Asset Age Profile'!X140","v":0},{"$f":"'[2]5.2 Asset Age Profile'!Y140","v":0},{"$f":"'[2]5.2 Asset Age Profile'!Z140","v":0},{"$f":"'[2]5.2 Asset Age Profile'!AA140","v":0},{"$f":"'[2]5.2 Asset Age Profile'!AB140","v":0},{"$f":"'[2]5.2 Asset Age Profile'!AC140","v":0},{"$f":"'[2]5.2 Asset Age Profile'!AD140","v":0},{"$f":"'[2]5.2 Asset Age Profile'!AE140","v":0},{"$f":"'[2]5.2 Asset Age Profile'!AF140","v":0},{"$f":"'[2]5.2 Asset Age Profile'!AG140","v":0},{"$f":"'[2]5.2 Asset Age Profile'!AH140","v":0},{"$f":"'[2]5.2 Asset Age Profile'!AI140","v":0},{"$f":"'[2]5.2 Asset Age Profile'!AJ140","v":0},{"$f":"'[2]5.2 Asset Age Profile'!AK140","v":0},{"$f":"'[2]5.2 Asset Age Profile'!AL140","v":0},{"$f":"'[2]5.2 Asset Age Profile'!AM140","v":0},{"$f":"'[2]5.2 Asset Age Profile'!AN140","v":0},{"$f":"'[2]5.2 Asset Age Profile'!AO140","v":0},{"$f":"'[2]5.2 Asset Age Profile'!AP140","v":0},{"$f":"'[2]5.2 Asset Age Profile'!AQ140","v":0},{"$f":"'[2]5.2 Asset Age Profile'!AR140","v":0},{"$f":"'[2]5.2 Asset Age Profile'!AS140","v":0},{"$f":"'[2]5.2 Asset Age Profile'!AT140","v":0},{"$f":"'[2]5.2 Asset Age Profile'!AU140","v":0},{"$f":"'[2]5.2 Asset Age Profile'!AV140","v":0},{"$f":"'[2]5.2 Asset Age Profile'!AW140","v":0},{"$f":"'[2]5.2 Asset Age Profile'!AX140","v":0},{"$f":"'[2]5.2 Asset Age Profile'!AY140","v":0},{"$f":"'[2]5.2 Asset Age Profile'!AZ140","v":0},{"$f":"'[2]5.2 Asset Age Profile'!BA140","v":0},{"$f":"'[2]5.2 Asset Age Profile'!BB140","v":0},{"$f":"'[2]5.2 Asset Age Profile'!BC140","v":0},{"$f":"'[2]5.2 Asset Age Profile'!BD140","v":0},{"$f":"'[2]5.2 Asset Age Profile'!BE140","v":0},{"$f":"'[2]5.2 Asset Age Profile'!BF140","v":0},{"$f":"'[2]5.2 Asset Age Profile'!BG140","v":0},{"$f":"'[2]5.2 Asset Age Profile'!BH140","v":0},{"$f":"'[2]5.2 Asset Age Profile'!BI140","v":0},{"$f":"'[2]5.2 Asset Age Profile'!BJ140","v":0},{"$f":"'[2]5.2 Asset Age Profile'!BK140","v":0},{"$f":"'[2]5.2 Asset Age Profile'!BL140","v":0},{"$f":"'[2]5.2 Asset Age Profile'!BM140","v":0},{"$f":"'[2]5.2 Asset Age Profile'!BN140","v":0},{"$f":"'[2]5.2 Asset Age Profile'!BO140","v":0},{"$f":"'[2]5.2 Asset Age Profile'!BP140","v":0},{"$f":"'[2]5.2 Asset Age Profile'!BQ140","v":0},{"$f":"'[2]5.2 Asset Age Profile'!BR140","v":0},{"$f":"'[2]5.2 Asset Age Profile'!BS140","v":0},{"$f":"'[2]5.2 Asset Age Profile'!BT140","v":0},{"$f":"'[2]5.2 Asset Age Profile'!BU140","v":0},{"$f":"'[2]5.2 Asset Age Profile'!BV140","v":0},{"$f":"'[2]5.2 Asset Age Profile'!BW140","v":0},{"$f":"'[2]5.2 Asset Age Profile'!BX140","v":0},{"$f":"'[2]5.2 Asset Age Profile'!BY140","v":0},{"$f":"'[2]5.2 Asset Age Profile'!BZ140","v":0},{"$f":"'[2]5.2 Asset Age Profile'!CA140","v":0},{"$f":"'[2]5.2 Asset Age Profile'!CB140","v":0},{"$f":"'[2]5.2 Asset Age Profile'!CC140","v":0},{"$f":"'[2]5.2 Asset Age Profile'!CD140","v":0},{"$f":"'[2]5.2 Asset Age Profile'!CE140","v":0},{"$f":"'[2]5.2 Asset Age Profile'!CF140","v":0},{"$f":"'[2]5.2 Asset Age Profile'!CG140","v":0},{"$f":"'[2]5.2 Asset Age Profile'!CH140","v":0},{"$f":"'[2]5.2 Asset Age Profile'!CI140","v":0},{"$f":"'[2]5.2 Asset Age Profile'!CJ140","v":0},{"$f":"'[2]5.2 Asset Age Profile'!CK140","v":0},{"$f":"'[2]5.2 Asset Age Profile'!CL140","v":0},{"$f":"'[2]5.2 Asset Age Profile'!CM140","v":0},{"$f":"'[2]5.2 Asset Age Profile'!CN140","v":0},{"$f":"'[2]5.2 Asset Age Profile'!CO140","v":0},{"$f":"'[2]5.2 Asset Age Profile'!CP140","v":0},{"$f":"'[2]5.2 Asset Age Profile'!CQ140","v":0},{"$f":"'[2]5.2 Asset Age Profile'!CR140","v":0},{"$f":"'[2]5.2 Asset Age Profile'!CS140","v":0},{"$f":"'[2]5.2 Asset Age Profile'!CT140","v":0},{"$f":"'[2]5.2 Asset Age Profile'!CU140","v":0},{"$f":"'[2]5.2 Asset Age Profile'!CV140","v":0},{"$f":"'[2]5.2 Asset Age Profile'!CW140","v":0},{"$f":"'[2]5.2 Asset Age Profile'!CX140","v":0},{"$f":"'[2]5.2 Asset Age Profile'!CY140","v":0},{"$f":"'[2]5.2 Asset Age Profile'!CZ140","v":0},{"$f":"'[2]5.2 Asset Age Profile'!DA140","v":0},{"$f":"'[2]5.2 Asset Age Profile'!DB140","v":0},{"$f":"'[2]5.2 Asset Age Profile'!DC140","v":0},{"$f":"'[2]5.2 Asset Age Profile'!DD140","v":0},{"$f":"'[2]5.2 Asset Age Profile'!DE140","v":0},{"$f":"'[2]5.2 Asset Age Profile'!DF140","v":0},{"$f":"'[2]5.2 Asset Age Profile'!DG140","v":0},{"$f":"'[2]5.2 Asset Age Profile'!DH140","v":0},{"$f":"'[2]5.2 Asset Age Profile'!DI140","v":0},{"$f":"'[2]5.2 Asset Age Profile'!DJ140","v":0},{"$f":"'[2]5.2 Asset Age Profile'!DK140","v":0},{"$f":"'[2]5.2 Asset Age Profile'!DL140","v":0},{"$f":"'[2]5.2 Asset Age Profile'!DM140","v":0},{"$f":"'[2]5.2 Asset Age Profile'!DN140","v":0},{"$f":"'[2]5.2 Asset Age Profile'!DO140","v":0},{"$f":"'[2]5.2 Asset Age Profile'!DP140","v":0},{"$f":"'[2]5.2 Asset Age Profile'!DQ140","v":0},{"$f":"'[2]5.2 Asset Age Profile'!DR140","v":0},{"$f":"'[2]5.2 Asset Age Profile'!DS140","v":0},{"$f":"'[2]5.2 Asset Age Profile'!DT140","v":0},{"$f":"'[2]5.2 Asset Age Profile'!DU140","v":0},{"$f":"'[2]5.2 Asset Age Profile'!DV140","v":0},{"$f":"'[2]5.2 Asset Age Profile'!DW140","v":0},{"$f":"'[2]5.2 Asset Age Profile'!DX140","v":0},{"$f":"'[2]5.2 Asset Age Profile'!DY140","v":0},{"$f":"'[2]5.2 Asset Age Profile'!DZ140","v":0},{"$f":"'[2]5.2 Asset Age Profile'!EA140","v":0},{"$f":"'[2]5.2 Asset Age Profile'!EB140","v":0},{"$f":"'[2]5.2 Asset Age Profile'!EC140","v":0},{"$f":"'[2]5.2 Asset Age Profile'!ED140","v":0},{"$f":"'[2]5.2 Asset Age Profile'!EE140","v":0},{"$f":"'[2]5.2 Asset Age Profile'!EF140","v":0},{"$f":"'[2]5.2 Asset Age Profile'!EG140","v":0},{"$f":"'[2]5.2 Asset Age Profile'!EH140","v":0},{"$f":"'[2]5.2 Asset Age Profile'!EI140","v":0},{"$f":"'[2]5.2 Asset Age Profile'!EJ140","v":0}]
["ED_ASS521_00131",null,null,null,null,null,null,null,null,null,null,null,null,{"$f":"'[2]5.2 Asset Age Profile'!N141","v":0},{"$f":"'[2]5.2 Asset Age Profile'!O141","v":0},{"$f":"'[2]5.2 Asset Age Profile'!P141","v":0},{"$f":"'[2]5.2 Asset Age Profile'!Q141","v":0},{"$f":"'[2]5.2 Asset Age Profile'!R141","v":0},{"$f":"'[2]5.2 Asset Age Profile'!S141","v":0},{"$f":"'[2]5.2 Asset Age Profile'!T141","v":0},{"$f":"'[2]5.2 Asset Age Profile'!U141","v":0},{"$f":"'[2]5.2 Asset Age Profile'!V141","v":0},{"$f":"'[2]5.2 Asset Age Profile'!W141","v":0},{"$f":"'[2]5.2 Asset Age Profile'!X141","v":0},{"$f":"'[2]5.2 Asset Age Profile'!Y141","v":0},{"$f":"'[2]5.2 Asset Age Profile'!Z141","v":0},{"$f":"'[2]5.2 Asset Age Profile'!AA141","v":0},{"$f":"'[2]5.2 Asset Age Profile'!AB141","v":0},{"$f":"'[2]5.2 Asset Age Profile'!AC141","v":0},{"$f":"'[2]5.2 Asset Age Profile'!AD141","v":0},{"$f":"'[2]5.2 Asset Age Profile'!AE141","v":0},{"$f":"'[2]5.2 Asset Age Profile'!AF141","v":0},{"$f":"'[2]5.2 Asset Age Profile'!AG141","v":0},{"$f":"'[2]5.2 Asset Age Profile'!AH141","v":0},{"$f":"'[2]5.2 Asset Age Profile'!AI141","v":0},{"$f":"'[2]5.2 Asset Age Profile'!AJ141","v":0},{"$f":"'[2]5.2 Asset Age Profile'!AK141","v":0},{"$f":"'[2]5.2 Asset Age Profile'!AL141","v":0},{"$f":"'[2]5.2 Asset Age Profile'!AM141","v":0},{"$f":"'[2]5.2 Asset Age Profile'!AN141","v":0},{"$f":"'[2]5.2 Asset Age Profile'!AO141","v":0},{"$f":"'[2]5.2 Asset Age Profile'!AP141","v":0},{"$f":"'[2]5.2 Asset Age Profile'!AQ141","v":0},{"$f":"'[2]5.2 Asset Age Profile'!AR141","v":0},{"$f":"'[2]5.2 Asset Age Profile'!AS141","v":0},{"$f":"'[2]5.2 Asset Age Profile'!AT141","v":0},{"$f":"'[2]5.2 Asset Age Profile'!AU141","v":0},{"$f":"'[2]5.2 Asset Age Profile'!AV141","v":0},{"$f":"'[2]5.2 Asset Age Profile'!AW141","v":0},{"$f":"'[2]5.2 Asset Age Profile'!AX141","v":0},{"$f":"'[2]5.2 Asset Age Profile'!AY141","v":0},{"$f":"'[2]5.2 Asset Age Profile'!AZ141","v":0},{"$f":"'[2]5.2 Asset Age Profile'!BA141","v":0},{"$f":"'[2]5.2 Asset Age Profile'!BB141","v":0},{"$f":"'[2]5.2 Asset Age Profile'!BC141","v":0},{"$f":"'[2]5.2 Asset Age Profile'!BD141","v":0},{"$f":"'[2]5.2 Asset Age Profile'!BE141","v":0},{"$f":"'[2]5.2 Asset Age Profile'!BF141","v":0},{"$f":"'[2]5.2 Asset Age Profile'!BG141","v":0},{"$f":"'[2]5.2 Asset Age Profile'!BH141","v":0},{"$f":"'[2]5.2 Asset Age Profile'!BI141","v":0},{"$f":"'[2]5.2 Asset Age Profile'!BJ141","v":0},{"$f":"'[2]5.2 Asset Age Profile'!BK141","v":0},{"$f":"'[2]5.2 Asset Age Profile'!BL141","v":0},{"$f":"'[2]5.2 Asset Age Profile'!BM141","v":0},{"$f":"'[2]5.2 Asset Age Profile'!BN141","v":0},{"$f":"'[2]5.2 Asset Age Profile'!BO141","v":0},{"$f":"'[2]5.2 Asset Age Profile'!BP141","v":0},{"$f":"'[2]5.2 Asset Age Profile'!BQ141","v":0},{"$f":"'[2]5.2 Asset Age Profile'!BR141","v":0},{"$f":"'[2]5.2 Asset Age Profile'!BS141","v":0},{"$f":"'[2]5.2 Asset Age Profile'!BT141","v":0},{"$f":"'[2]5.2 Asset Age Profile'!BU141","v":0},{"$f":"'[2]5.2 Asset Age Profile'!BV141","v":0},{"$f":"'[2]5.2 Asset Age Profile'!BW141","v":0},{"$f":"'[2]5.2 Asset Age Profile'!BX141","v":0},{"$f":"'[2]5.2 Asset Age Profile'!BY141","v":0},{"$f":"'[2]5.2 Asset Age Profile'!BZ141","v":0},{"$f":"'[2]5.2 Asset Age Profile'!CA141","v":0},{"$f":"'[2]5.2 Asset Age Profile'!CB141","v":0},{"$f":"'[2]5.2 Asset Age Profile'!CC141","v":0},{"$f":"'[2]5.2 Asset Age Profile'!CD141","v":0},{"$f":"'[2]5.2 Asset Age Profile'!CE141","v":0},{"$f":"'[2]5.2 Asset Age Profile'!CF141","v":0},{"$f":"'[2]5.2 Asset Age Profile'!CG141","v":0},{"$f":"'[2]5.2 Asset Age Profile'!CH141","v":0},{"$f":"'[2]5.2 Asset Age Profile'!CI141","v":0},{"$f":"'[2]5.2 Asset Age Profile'!CJ141","v":0},{"$f":"'[2]5.2 Asset Age Profile'!CK141","v":0},{"$f":"'[2]5.2 Asset Age Profile'!CL141","v":0},{"$f":"'[2]5.2 Asset Age Profile'!CM141","v":0},{"$f":"'[2]5.2 Asset Age Profile'!CN141","v":0},{"$f":"'[2]5.2 Asset Age Profile'!CO141","v":0},{"$f":"'[2]5.2 Asset Age Profile'!CP141","v":0},{"$f":"'[2]5.2 Asset Age Profile'!CQ141","v":0},{"$f":"'[2]5.2 Asset Age Profile'!CR141","v":0},{"$f":"'[2]5.2 Asset Age Profile'!CS141","v":0},{"$f":"'[2]5.2 Asset Age Profile'!CT141","v":0},{"$f":"'[2]5.2 Asset Age Profile'!CU141","v":0},{"$f":"'[2]5.2 Asset Age Profile'!CV141","v":0},{"$f":"'[2]5.2 Asset Age Profile'!CW141","v":0},{"$f":"'[2]5.2 Asset Age Profile'!CX141","v":0},{"$f":"'[2]5.2 Asset Age Profile'!CY141","v":0},{"$f":"'[2]5.2 Asset Age Profile'!CZ141","v":0},{"$f":"'[2]5.2 Asset Age Profile'!DA141","v":0},{"$f":"'[2]5.2 Asset Age Profile'!DB141","v":0},{"$f":"'[2]5.2 Asset Age Profile'!DC141","v":0},{"$f":"'[2]5.2 Asset Age Profile'!DD141","v":0},{"$f":"'[2]5.2 Asset Age Profile'!DE141","v":0},{"$f":"'[2]5.2 Asset Age Profile'!DF141","v":0},{"$f":"'[2]5.2 Asset Age Profile'!DG141","v":0},{"$f":"'[2]5.2 Asset Age Profile'!DH141","v":0},{"$f":"'[2]5.2 Asset Age Profile'!DI141","v":0},{"$f":"'[2]5.2 Asset Age Profile'!DJ141","v":0},{"$f":"'[2]5.2 Asset Age Profile'!DK141","v":0},{"$f":"'[2]5.2 Asset Age Profile'!DL141","v":0},{"$f":"'[2]5.2 Asset Age Profile'!DM141","v":0},{"$f":"'[2]5.2 Asset Age Profile'!DN141","v":0},{"$f":"'[2]5.2 Asset Age Profile'!DO141","v":0},{"$f":"'[2]5.2 Asset Age Profile'!DP141","v":0},{"$f":"'[2]5.2 Asset Age Profile'!DQ141","v":0},{"$f":"'[2]5.2 Asset Age Profile'!DR141","v":0},{"$f":"'[2]5.2 Asset Age Profile'!DS141","v":0},{"$f":"'[2]5.2 Asset Age Profile'!DT141","v":0},{"$f":"'[2]5.2 Asset Age Profile'!DU141","v":0},{"$f":"'[2]5.2 Asset Age Profile'!DV141","v":0},{"$f":"'[2]5.2 Asset Age Profile'!DW141","v":0},{"$f":"'[2]5.2 Asset Age Profile'!DX141","v":0},{"$f":"'[2]5.2 Asset Age Profile'!DY141","v":0},{"$f":"'[2]5.2 Asset Age Profile'!DZ141","v":0},{"$f":"'[2]5.2 Asset Age Profile'!EA141","v":0},{"$f":"'[2]5.2 Asset Age Profile'!EB141","v":0},{"$f":"'[2]5.2 Asset Age Profile'!EC141","v":0},{"$f":"'[2]5.2 Asset Age Profile'!ED141","v":0},{"$f":"'[2]5.2 Asset Age Profile'!EE141","v":0},{"$f":"'[2]5.2 Asset Age Profile'!EF141","v":0},{"$f":"'[2]5.2 Asset Age Profile'!EG141","v":0},{"$f":"'[2]5.2 Asset Age Profile'!EH141","v":0},{"$f":"'[2]5.2 Asset Age Profile'!EI141","v":0},{"$f":"'[2]5.2 Asset Age Profile'!EJ141","v":0}]
["ED_ASS521_00132",null,null,null,null,null,null,null,null,null,null,null,null,{"$f":"'[2]5.2 Asset Age Profile'!N142","v":0},{"$f":"'[2]5.2 Asset Age Profile'!O142","v":0},{"$f":"'[2]5.2 Asset Age Profile'!P142","v":0},{"$f":"'[2]5.2 Asset Age Profile'!Q142","v":0},{"$f":"'[2]5.2 Asset Age Profile'!R142","v":0},{"$f":"'[2]5.2 Asset Age Profile'!S142","v":0},{"$f":"'[2]5.2 Asset Age Profile'!T142","v":0},{"$f":"'[2]5.2 Asset Age Profile'!U142","v":0},{"$f":"'[2]5.2 Asset Age Profile'!V142","v":0},{"$f":"'[2]5.2 Asset Age Profile'!W142","v":0},{"$f":"'[2]5.2 Asset Age Profile'!X142","v":0},{"$f":"'[2]5.2 Asset Age Profile'!Y142","v":0},{"$f":"'[2]5.2 Asset Age Profile'!Z142","v":0},{"$f":"'[2]5.2 Asset Age Profile'!AA142","v":0},{"$f":"'[2]5.2 Asset Age Profile'!AB142","v":0},{"$f":"'[2]5.2 Asset Age Profile'!AC142","v":0},{"$f":"'[2]5.2 Asset Age Profile'!AD142","v":0},{"$f":"'[2]5.2 Asset Age Profile'!AE142","v":0},{"$f":"'[2]5.2 Asset Age Profile'!AF142","v":0},{"$f":"'[2]5.2 Asset Age Profile'!AG142","v":0},{"$f":"'[2]5.2 Asset Age Profile'!AH142","v":0},{"$f":"'[2]5.2 Asset Age Profile'!AI142","v":0},{"$f":"'[2]5.2 Asset Age Profile'!AJ142","v":0},{"$f":"'[2]5.2 Asset Age Profile'!AK142","v":0},{"$f":"'[2]5.2 Asset Age Profile'!AL142","v":0},{"$f":"'[2]5.2 Asset Age Profile'!AM142","v":0},{"$f":"'[2]5.2 Asset Age Profile'!AN142","v":0},{"$f":"'[2]5.2 Asset Age Profile'!AO142","v":0},{"$f":"'[2]5.2 Asset Age Profile'!AP142","v":0},{"$f":"'[2]5.2 Asset Age Profile'!AQ142","v":0},{"$f":"'[2]5.2 Asset Age Profile'!AR142","v":0},{"$f":"'[2]5.2 Asset Age Profile'!AS142","v":0},{"$f":"'[2]5.2 Asset Age Profile'!AT142","v":0},{"$f":"'[2]5.2 Asset Age Profile'!AU142","v":0},{"$f":"'[2]5.2 Asset Age Profile'!AV142","v":0},{"$f":"'[2]5.2 Asset Age Profile'!AW142","v":0},{"$f":"'[2]5.2 Asset Age Profile'!AX142","v":0},{"$f":"'[2]5.2 Asset Age Profile'!AY142","v":0},{"$f":"'[2]5.2 Asset Age Profile'!AZ142","v":0},{"$f":"'[2]5.2 Asset Age Profile'!BA142","v":0},{"$f":"'[2]5.2 Asset Age Profile'!BB142","v":0},{"$f":"'[2]5.2 Asset Age Profile'!BC142","v":0},{"$f":"'[2]5.2 Asset Age Profile'!BD142","v":0},{"$f":"'[2]5.2 Asset Age Profile'!BE142","v":0},{"$f":"'[2]5.2 Asset Age Profile'!BF142","v":0},{"$f":"'[2]5.2 Asset Age Profile'!BG142","v":0},{"$f":"'[2]5.2 Asset Age Profile'!BH142","v":0},{"$f":"'[2]5.2 Asset Age Profile'!BI142","v":0},{"$f":"'[2]5.2 Asset Age Profile'!BJ142","v":0},{"$f":"'[2]5.2 Asset Age Profile'!BK142","v":0},{"$f":"'[2]5.2 Asset Age Profile'!BL142","v":0},{"$f":"'[2]5.2 Asset Age Profile'!BM142","v":0},{"$f":"'[2]5.2 Asset Age Profile'!BN142","v":0},{"$f":"'[2]5.2 Asset Age Profile'!BO142","v":0},{"$f":"'[2]5.2 Asset Age Profile'!BP142","v":0},{"$f":"'[2]5.2 Asset Age Profile'!BQ142","v":0},{"$f":"'[2]5.2 Asset Age Profile'!BR142","v":0},{"$f":"'[2]5.2 Asset Age Profile'!BS142","v":0},{"$f":"'[2]5.2 Asset Age Profile'!BT142","v":0},{"$f":"'[2]5.2 Asset Age Profile'!BU142","v":0},{"$f":"'[2]5.2 Asset Age Profile'!BV142","v":0},{"$f":"'[2]5.2 Asset Age Profile'!BW142","v":0},{"$f":"'[2]5.2 Asset Age Profile'!BX142","v":0},{"$f":"'[2]5.2 Asset Age Profile'!BY142","v":0},{"$f":"'[2]5.2 Asset Age Profile'!BZ142","v":0},{"$f":"'[2]5.2 Asset Age Profile'!CA142","v":0},{"$f":"'[2]5.2 Asset Age Profile'!CB142","v":0},{"$f":"'[2]5.2 Asset Age Profile'!CC142","v":0},{"$f":"'[2]5.2 Asset Age Profile'!CD142","v":0},{"$f":"'[2]5.2 Asset Age Profile'!CE142","v":0},{"$f":"'[2]5.2 Asset Age Profile'!CF142","v":0},{"$f":"'[2]5.2 Asset Age Profile'!CG142","v":0},{"$f":"'[2]5.2 Asset Age Profile'!CH142","v":0},{"$f":"'[2]5.2 Asset Age Profile'!CI142","v":0},{"$f":"'[2]5.2 Asset Age Profile'!CJ142","v":0},{"$f":"'[2]5.2 Asset Age Profile'!CK142","v":0},{"$f":"'[2]5.2 Asset Age Profile'!CL142","v":0},{"$f":"'[2]5.2 Asset Age Profile'!CM142","v":0},{"$f":"'[2]5.2 Asset Age Profile'!CN142","v":0},{"$f":"'[2]5.2 Asset Age Profile'!CO142","v":0},{"$f":"'[2]5.2 Asset Age Profile'!CP142","v":0},{"$f":"'[2]5.2 Asset Age Profile'!CQ142","v":0},{"$f":"'[2]5.2 Asset Age Profile'!CR142","v":0},{"$f":"'[2]5.2 Asset Age Profile'!CS142","v":0},{"$f":"'[2]5.2 Asset Age Profile'!CT142","v":0},{"$f":"'[2]5.2 Asset Age Profile'!CU142","v":0},{"$f":"'[2]5.2 Asset Age Profile'!CV142","v":0},{"$f":"'[2]5.2 Asset Age Profile'!CW142","v":0},{"$f":"'[2]5.2 Asset Age Profile'!CX142","v":0},{"$f":"'[2]5.2 Asset Age Profile'!CY142","v":0},{"$f":"'[2]5.2 Asset Age Profile'!CZ142","v":0},{"$f":"'[2]5.2 Asset Age Profile'!DA142","v":0},{"$f":"'[2]5.2 Asset Age Profile'!DB142","v":0},{"$f":"'[2]5.2 Asset Age Profile'!DC142","v":0},{"$f":"'[2]5.2 Asset Age Profile'!DD142","v":0},{"$f":"'[2]5.2 Asset Age Profile'!DE142","v":0},{"$f":"'[2]5.2 Asset Age Profile'!DF142","v":0},{"$f":"'[2]5.2 Asset Age Profile'!DG142","v":0},{"$f":"'[2]5.2 Asset Age Profile'!DH142","v":0},{"$f":"'[2]5.2 Asset Age Profile'!DI142","v":0},{"$f":"'[2]5.2 Asset Age Profile'!DJ142","v":0},{"$f":"'[2]5.2 Asset Age Profile'!DK142","v":0},{"$f":"'[2]5.2 Asset Age Profile'!DL142","v":0},{"$f":"'[2]5.2 Asset Age Profile'!DM142","v":0},{"$f":"'[2]5.2 Asset Age Profile'!DN142","v":0},{"$f":"'[2]5.2 Asset Age Profile'!DO142","v":0},{"$f":"'[2]5.2 Asset Age Profile'!DP142","v":0},{"$f":"'[2]5.2 Asset Age Profile'!DQ142","v":0},{"$f":"'[2]5.2 Asset Age Profile'!DR142","v":0},{"$f":"'[2]5.2 Asset Age Profile'!DS142","v":0},{"$f":"'[2]5.2 Asset Age Profile'!DT142","v":0},{"$f":"'[2]5.2 Asset Age Profile'!DU142","v":0},{"$f":"'[2]5.2 Asset Age Profile'!DV142","v":0},{"$f":"'[2]5.2 Asset Age Profile'!DW142","v":0},{"$f":"'[2]5.2 Asset Age Profile'!DX142","v":0},{"$f":"'[2]5.2 Asset Age Profile'!DY142","v":0},{"$f":"'[2]5.2 Asset Age Profile'!DZ142","v":0},{"$f":"'[2]5.2 Asset Age Profile'!EA142","v":0},{"$f":"'[2]5.2 Asset Age Profile'!EB142","v":0},{"$f":"'[2]5.2 Asset Age Profile'!EC142","v":0},{"$f":"'[2]5.2 Asset Age Profile'!ED142","v":0},{"$f":"'[2]5.2 Asset Age Profile'!EE142","v":0},{"$f":"'[2]5.2 Asset Age Profile'!EF142","v":0},{"$f":"'[2]5.2 Asset Age Profile'!EG142","v":0},{"$f":"'[2]5.2 Asset Age Profile'!EH142","v":0},{"$f":"'[2]5.2 Asset Age Profile'!EI142","v":0},{"$f":"'[2]5.2 Asset Age Profile'!EJ142","v":0}]
["ED_ASS521_00133",null,null,null,null,null,null,null,null,null,null,null,null,{"$f":"'[2]5.2 Asset Age Profile'!N143","v":0},{"$f":"'[2]5.2 Asset Age Profile'!O143","v":0},{"$f":"'[2]5.2 Asset Age Profile'!P143","v":0},{"$f":"'[2]5.2 Asset Age Profile'!Q143","v":0},{"$f":"'[2]5.2 Asset Age Profile'!R143","v":0},{"$f":"'[2]5.2 Asset Age Profile'!S143","v":0},{"$f":"'[2]5.2 Asset Age Profile'!T143","v":0},{"$f":"'[2]5.2 Asset Age Profile'!U143","v":0},{"$f":"'[2]5.2 Asset Age Profile'!V143","v":0},{"$f":"'[2]5.2 Asset Age Profile'!W143","v":0},{"$f":"'[2]5.2 Asset Age Profile'!X143","v":0},{"$f":"'[2]5.2 Asset Age Profile'!Y143","v":0},{"$f":"'[2]5.2 Asset Age Profile'!Z143","v":0},{"$f":"'[2]5.2 Asset Age Profile'!AA143","v":0},{"$f":"'[2]5.2 Asset Age Profile'!AB143","v":0},{"$f":"'[2]5.2 Asset Age Profile'!AC143","v":0},{"$f":"'[2]5.2 Asset Age Profile'!AD143","v":0},{"$f":"'[2]5.2 Asset Age Profile'!AE143","v":0},{"$f":"'[2]5.2 Asset Age Profile'!AF143","v":0},{"$f":"'[2]5.2 Asset Age Profile'!AG143","v":0},{"$f":"'[2]5.2 Asset Age Profile'!AH143","v":0},{"$f":"'[2]5.2 Asset Age Profile'!AI143","v":0},{"$f":"'[2]5.2 Asset Age Profile'!AJ143","v":0},{"$f":"'[2]5.2 Asset Age Profile'!AK143","v":0},{"$f":"'[2]5.2 Asset Age Profile'!AL143","v":0},{"$f":"'[2]5.2 Asset Age Profile'!AM143","v":0},{"$f":"'[2]5.2 Asset Age Profile'!AN143","v":0},{"$f":"'[2]5.2 Asset Age Profile'!AO143","v":0},{"$f":"'[2]5.2 Asset Age Profile'!AP143","v":0},{"$f":"'[2]5.2 Asset Age Profile'!AQ143","v":0},{"$f":"'[2]5.2 Asset Age Profile'!AR143","v":0},{"$f":"'[2]5.2 Asset Age Profile'!AS143","v":0},{"$f":"'[2]5.2 Asset Age Profile'!AT143","v":0},{"$f":"'[2]5.2 Asset Age Profile'!AU143","v":0},{"$f":"'[2]5.2 Asset Age Profile'!AV143","v":0},{"$f":"'[2]5.2 Asset Age Profile'!AW143","v":0},{"$f":"'[2]5.2 Asset Age Profile'!AX143","v":0},{"$f":"'[2]5.2 Asset Age Profile'!AY143","v":0},{"$f":"'[2]5.2 Asset Age Profile'!AZ143","v":0},{"$f":"'[2]5.2 Asset Age Profile'!BA143","v":0},{"$f":"'[2]5.2 Asset Age Profile'!BB143","v":0},{"$f":"'[2]5.2 Asset Age Profile'!BC143","v":0},{"$f":"'[2]5.2 Asset Age Profile'!BD143","v":0},{"$f":"'[2]5.2 Asset Age Profile'!BE143","v":0},{"$f":"'[2]5.2 Asset Age Profile'!BF143","v":0},{"$f":"'[2]5.2 Asset Age Profile'!BG143","v":0},{"$f":"'[2]5.2 Asset Age Profile'!BH143","v":0},{"$f":"'[2]5.2 Asset Age Profile'!BI143","v":0},{"$f":"'[2]5.2 Asset Age Profile'!BJ143","v":0},{"$f":"'[2]5.2 Asset Age Profile'!BK143","v":0},{"$f":"'[2]5.2 Asset Age Profile'!BL143","v":0},{"$f":"'[2]5.2 Asset Age Profile'!BM143","v":0},{"$f":"'[2]5.2 Asset Age Profile'!BN143","v":0},{"$f":"'[2]5.2 Asset Age Profile'!BO143","v":0},{"$f":"'[2]5.2 Asset Age Profile'!BP143","v":0},{"$f":"'[2]5.2 Asset Age Profile'!BQ143","v":0},{"$f":"'[2]5.2 Asset Age Profile'!BR143","v":0},{"$f":"'[2]5.2 Asset Age Profile'!BS143","v":0},{"$f":"'[2]5.2 Asset Age Profile'!BT143","v":0},{"$f":"'[2]5.2 Asset Age Profile'!BU143","v":0},{"$f":"'[2]5.2 Asset Age Profile'!BV143","v":0},{"$f":"'[2]5.2 Asset Age Profile'!BW143","v":0},{"$f":"'[2]5.2 Asset Age Profile'!BX143","v":0},{"$f":"'[2]5.2 Asset Age Profile'!BY143","v":0},{"$f":"'[2]5.2 Asset Age Profile'!BZ143","v":0},{"$f":"'[2]5.2 Asset Age Profile'!CA143","v":0},{"$f":"'[2]5.2 Asset Age Profile'!CB143","v":0},{"$f":"'[2]5.2 Asset Age Profile'!CC143","v":0},{"$f":"'[2]5.2 Asset Age Profile'!CD143","v":0},{"$f":"'[2]5.2 Asset Age Profile'!CE143","v":0},{"$f":"'[2]5.2 Asset Age Profile'!CF143","v":0},{"$f":"'[2]5.2 Asset Age Profile'!CG143","v":0},{"$f":"'[2]5.2 Asset Age Profile'!CH143","v":0},{"$f":"'[2]5.2 Asset Age Profile'!CI143","v":0},{"$f":"'[2]5.2 Asset Age Profile'!CJ143","v":0},{"$f":"'[2]5.2 Asset Age Profile'!CK143","v":0},{"$f":"'[2]5.2 Asset Age Profile'!CL143","v":0},{"$f":"'[2]5.2 Asset Age Profile'!CM143","v":0},{"$f":"'[2]5.2 Asset Age Profile'!CN143","v":0},{"$f":"'[2]5.2 Asset Age Profile'!CO143","v":0},{"$f":"'[2]5.2 Asset Age Profile'!CP143","v":0},{"$f":"'[2]5.2 Asset Age Profile'!CQ143","v":0},{"$f":"'[2]5.2 Asset Age Profile'!CR143","v":0},{"$f":"'[2]5.2 Asset Age Profile'!CS143","v":0},{"$f":"'[2]5.2 Asset Age Profile'!CT143","v":0},{"$f":"'[2]5.2 Asset Age Profile'!CU143","v":0},{"$f":"'[2]5.2 Asset Age Profile'!CV143","v":0},{"$f":"'[2]5.2 Asset Age Profile'!CW143","v":0},{"$f":"'[2]5.2 Asset Age Profile'!CX143","v":0},{"$f":"'[2]5.2 Asset Age Profile'!CY143","v":0},{"$f":"'[2]5.2 Asset Age Profile'!CZ143","v":0},{"$f":"'[2]5.2 Asset Age Profile'!DA143","v":0},{"$f":"'[2]5.2 Asset Age Profile'!DB143","v":0},{"$f":"'[2]5.2 Asset Age Profile'!DC143","v":0},{"$f":"'[2]5.2 Asset Age Profile'!DD143","v":0},{"$f":"'[2]5.2 Asset Age Profile'!DE143","v":0},{"$f":"'[2]5.2 Asset Age Profile'!DF143","v":0},{"$f":"'[2]5.2 Asset Age Profile'!DG143","v":0},{"$f":"'[2]5.2 Asset Age Profile'!DH143","v":0},{"$f":"'[2]5.2 Asset Age Profile'!DI143","v":0},{"$f":"'[2]5.2 Asset Age Profile'!DJ143","v":0},{"$f":"'[2]5.2 Asset Age Profile'!DK143","v":0},{"$f":"'[2]5.2 Asset Age Profile'!DL143","v":0},{"$f":"'[2]5.2 Asset Age Profile'!DM143","v":0},{"$f":"'[2]5.2 Asset Age Profile'!DN143","v":0},{"$f":"'[2]5.2 Asset Age Profile'!DO143","v":0},{"$f":"'[2]5.2 Asset Age Profile'!DP143","v":0},{"$f":"'[2]5.2 Asset Age Profile'!DQ143","v":0},{"$f":"'[2]5.2 Asset Age Profile'!DR143","v":0},{"$f":"'[2]5.2 Asset Age Profile'!DS143","v":0},{"$f":"'[2]5.2 Asset Age Profile'!DT143","v":0},{"$f":"'[2]5.2 Asset Age Profile'!DU143","v":0},{"$f":"'[2]5.2 Asset Age Profile'!DV143","v":0},{"$f":"'[2]5.2 Asset Age Profile'!DW143","v":0},{"$f":"'[2]5.2 Asset Age Profile'!DX143","v":0},{"$f":"'[2]5.2 Asset Age Profile'!DY143","v":0},{"$f":"'[2]5.2 Asset Age Profile'!DZ143","v":0},{"$f":"'[2]5.2 Asset Age Profile'!EA143","v":0},{"$f":"'[2]5.2 Asset Age Profile'!EB143","v":0},{"$f":"'[2]5.2 Asset Age Profile'!EC143","v":0},{"$f":"'[2]5.2 Asset Age Profile'!ED143","v":0},{"$f":"'[2]5.2 Asset Age Profile'!EE143","v":0},{"$f":"'[2]5.2 Asset Age Profile'!EF143","v":0},{"$f":"'[2]5.2 Asset Age Profile'!EG143","v":0},{"$f":"'[2]5.2 Asset Age Profile'!EH143","v":0},{"$f":"'[2]5.2 Asset Age Profile'!EI143","v":0},{"$f":"'[2]5.2 Asset Age Profile'!EJ143","v":0}]
["ED_ASS521_00134",null,null,null,null,null,null,null,null,null,null,null,null,{"$f":"'[2]5.2 Asset Age Profile'!N144","v":0},{"$f":"'[2]5.2 Asset Age Profile'!O144","v":0},{"$f":"'[2]5.2 Asset Age Profile'!P144","v":0},{"$f":"'[2]5.2 Asset Age Profile'!Q144","v":0},{"$f":"'[2]5.2 Asset Age Profile'!R144","v":0},{"$f":"'[2]5.2 Asset Age Profile'!S144","v":0},{"$f":"'[2]5.2 Asset Age Profile'!T144","v":0},{"$f":"'[2]5.2 Asset Age Profile'!U144","v":0},{"$f":"'[2]5.2 Asset Age Profile'!V144","v":0},{"$f":"'[2]5.2 Asset Age Profile'!W144","v":0},{"$f":"'[2]5.2 Asset Age Profile'!X144","v":0},{"$f":"'[2]5.2 Asset Age Profile'!Y144","v":0},{"$f":"'[2]5.2 Asset Age Profile'!Z144","v":0},{"$f":"'[2]5.2 Asset Age Profile'!AA144","v":0},{"$f":"'[2]5.2 Asset Age Profile'!AB144","v":0},{"$f":"'[2]5.2 Asset Age Profile'!AC144","v":0},{"$f":"'[2]5.2 Asset Age Profile'!AD144","v":0},{"$f":"'[2]5.2 Asset Age Profile'!AE144","v":0},{"$f":"'[2]5.2 Asset Age Profile'!AF144","v":0},{"$f":"'[2]5.2 Asset Age Profile'!AG144","v":0},{"$f":"'[2]5.2 Asset Age Profile'!AH144","v":0},{"$f":"'[2]5.2 Asset Age Profile'!AI144","v":0},{"$f":"'[2]5.2 Asset Age Profile'!AJ144","v":0},{"$f":"'[2]5.2 Asset Age Profile'!AK144","v":0},{"$f":"'[2]5.2 Asset Age Profile'!AL144","v":0},{"$f":"'[2]5.2 Asset Age Profile'!AM144","v":0},{"$f":"'[2]5.2 Asset Age Profile'!AN144","v":0},{"$f":"'[2]5.2 Asset Age Profile'!AO144","v":0},{"$f":"'[2]5.2 Asset Age Profile'!AP144","v":0},{"$f":"'[2]5.2 Asset Age Profile'!AQ144","v":0},{"$f":"'[2]5.2 Asset Age Profile'!AR144","v":0},{"$f":"'[2]5.2 Asset Age Profile'!AS144","v":0},{"$f":"'[2]5.2 Asset Age Profile'!AT144","v":0},{"$f":"'[2]5.2 Asset Age Profile'!AU144","v":0},{"$f":"'[2]5.2 Asset Age Profile'!AV144","v":0},{"$f":"'[2]5.2 Asset Age Profile'!AW144","v":0},{"$f":"'[2]5.2 Asset Age Profile'!AX144","v":0},{"$f":"'[2]5.2 Asset Age Profile'!AY144","v":0},{"$f":"'[2]5.2 Asset Age Profile'!AZ144","v":0},{"$f":"'[2]5.2 Asset Age Profile'!BA144","v":0},{"$f":"'[2]5.2 Asset Age Profile'!BB144","v":0},{"$f":"'[2]5.2 Asset Age Profile'!BC144","v":0},{"$f":"'[2]5.2 Asset Age Profile'!BD144","v":0},{"$f":"'[2]5.2 Asset Age Profile'!BE144","v":0},{"$f":"'[2]5.2 Asset Age Profile'!BF144","v":0},{"$f":"'[2]5.2 Asset Age Profile'!BG144","v":0},{"$f":"'[2]5.2 Asset Age Profile'!BH144","v":0},{"$f":"'[2]5.2 Asset Age Profile'!BI144","v":0},{"$f":"'[2]5.2 Asset Age Profile'!BJ144","v":0},{"$f":"'[2]5.2 Asset Age Profile'!BK144","v":0},{"$f":"'[2]5.2 Asset Age Profile'!BL144","v":0},{"$f":"'[2]5.2 Asset Age Profile'!BM144","v":0},{"$f":"'[2]5.2 Asset Age Profile'!BN144","v":0},{"$f":"'[2]5.2 Asset Age Profile'!BO144","v":0},{"$f":"'[2]5.2 Asset Age Profile'!BP144","v":0},{"$f":"'[2]5.2 Asset Age Profile'!BQ144","v":0},{"$f":"'[2]5.2 Asset Age Profile'!BR144","v":0},{"$f":"'[2]5.2 Asset Age Profile'!BS144","v":0},{"$f":"'[2]5.2 Asset Age Profile'!BT144","v":0},{"$f":"'[2]5.2 Asset Age Profile'!BU144","v":0},{"$f":"'[2]5.2 Asset Age Profile'!BV144","v":0},{"$f":"'[2]5.2 Asset Age Profile'!BW144","v":0},{"$f":"'[2]5.2 Asset Age Profile'!BX144","v":0},{"$f":"'[2]5.2 Asset Age Profile'!BY144","v":0},{"$f":"'[2]5.2 Asset Age Profile'!BZ144","v":0},{"$f":"'[2]5.2 Asset Age Profile'!CA144","v":0},{"$f":"'[2]5.2 Asset Age Profile'!CB144","v":0},{"$f":"'[2]5.2 Asset Age Profile'!CC144","v":0},{"$f":"'[2]5.2 Asset Age Profile'!CD144","v":0},{"$f":"'[2]5.2 Asset Age Profile'!CE144","v":0},{"$f":"'[2]5.2 Asset Age Profile'!CF144","v":0},{"$f":"'[2]5.2 Asset Age Profile'!CG144","v":0},{"$f":"'[2]5.2 Asset Age Profile'!CH144","v":0},{"$f":"'[2]5.2 Asset Age Profile'!CI144","v":0},{"$f":"'[2]5.2 Asset Age Profile'!CJ144","v":0},{"$f":"'[2]5.2 Asset Age Profile'!CK144","v":0},{"$f":"'[2]5.2 Asset Age Profile'!CL144","v":0},{"$f":"'[2]5.2 Asset Age Profile'!CM144","v":0},{"$f":"'[2]5.2 Asset Age Profile'!CN144","v":0},{"$f":"'[2]5.2 Asset Age Profile'!CO144","v":0},{"$f":"'[2]5.2 Asset Age Profile'!CP144","v":0},{"$f":"'[2]5.2 Asset Age Profile'!CQ144","v":0},{"$f":"'[2]5.2 Asset Age Profile'!CR144","v":0},{"$f":"'[2]5.2 Asset Age Profile'!CS144","v":0},{"$f":"'[2]5.2 Asset Age Profile'!CT144","v":0},{"$f":"'[2]5.2 Asset Age Profile'!CU144","v":0},{"$f":"'[2]5.2 Asset Age Profile'!CV144","v":0},{"$f":"'[2]5.2 Asset Age Profile'!CW144","v":0},{"$f":"'[2]5.2 Asset Age Profile'!CX144","v":0},{"$f":"'[2]5.2 Asset Age Profile'!CY144","v":0},{"$f":"'[2]5.2 Asset Age Profile'!CZ144","v":0},{"$f":"'[2]5.2 Asset Age Profile'!DA144","v":0},{"$f":"'[2]5.2 Asset Age Profile'!DB144","v":0},{"$f":"'[2]5.2 Asset Age Profile'!DC144","v":0},{"$f":"'[2]5.2 Asset Age Profile'!DD144","v":0},{"$f":"'[2]5.2 Asset Age Profile'!DE144","v":0},{"$f":"'[2]5.2 Asset Age Profile'!DF144","v":0},{"$f":"'[2]5.2 Asset Age Profile'!DG144","v":0},{"$f":"'[2]5.2 Asset Age Profile'!DH144","v":0},{"$f":"'[2]5.2 Asset Age Profile'!DI144","v":0},{"$f":"'[2]5.2 Asset Age Profile'!DJ144","v":0},{"$f":"'[2]5.2 Asset Age Profile'!DK144","v":0},{"$f":"'[2]5.2 Asset Age Profile'!DL144","v":0},{"$f":"'[2]5.2 Asset Age Profile'!DM144","v":0},{"$f":"'[2]5.2 Asset Age Profile'!DN144","v":0},{"$f":"'[2]5.2 Asset Age Profile'!DO144","v":0},{"$f":"'[2]5.2 Asset Age Profile'!DP144","v":0},{"$f":"'[2]5.2 Asset Age Profile'!DQ144","v":0},{"$f":"'[2]5.2 Asset Age Profile'!DR144","v":0},{"$f":"'[2]5.2 Asset Age Profile'!DS144","v":0},{"$f":"'[2]5.2 Asset Age Profile'!DT144","v":0},{"$f":"'[2]5.2 Asset Age Profile'!DU144","v":0},{"$f":"'[2]5.2 Asset Age Profile'!DV144","v":0},{"$f":"'[2]5.2 Asset Age Profile'!DW144","v":0},{"$f":"'[2]5.2 Asset Age Profile'!DX144","v":0},{"$f":"'[2]5.2 Asset Age Profile'!DY144","v":0},{"$f":"'[2]5.2 Asset Age Profile'!DZ144","v":0},{"$f":"'[2]5.2 Asset Age Profile'!EA144","v":0},{"$f":"'[2]5.2 Asset Age Profile'!EB144","v":0},{"$f":"'[2]5.2 Asset Age Profile'!EC144","v":0},{"$f":"'[2]5.2 Asset Age Profile'!ED144","v":0},{"$f":"'[2]5.2 Asset Age Profile'!EE144","v":0},{"$f":"'[2]5.2 Asset Age Profile'!EF144","v":0},{"$f":"'[2]5.2 Asset Age Profile'!EG144","v":0},{"$f":"'[2]5.2 Asset Age Profile'!EH144","v":0},{"$f":"'[2]5.2 Asset Age Profile'!EI144","v":0},{"$f":"'[2]5.2 Asset Age Profile'!EJ144","v":0}]
["ED_ASS521_00135",null,null,null,null,null,null,null,null,null,null,null,null,{"$f":"'[2]5.2 Asset Age Profile'!N145","v":0},{"$f":"'[2]5.2 Asset Age Profile'!O145","v":0},{"$f":"'[2]5.2 Asset Age Profile'!P145","v":0},{"$f":"'[2]5.2 Asset Age Profile'!Q145","v":0},{"$f":"'[2]5.2 Asset Age Profile'!R145","v":0},{"$f":"'[2]5.2 Asset Age Profile'!S145","v":0},{"$f":"'[2]5.2 Asset Age Profile'!T145","v":0},{"$f":"'[2]5.2 Asset Age Profile'!U145","v":0},{"$f":"'[2]5.2 Asset Age Profile'!V145","v":0},{"$f":"'[2]5.2 Asset Age Profile'!W145","v":0},{"$f":"'[2]5.2 Asset Age Profile'!X145","v":0},{"$f":"'[2]5.2 Asset Age Profile'!Y145","v":0},{"$f":"'[2]5.2 Asset Age Profile'!Z145","v":0},{"$f":"'[2]5.2 Asset Age Profile'!AA145","v":0},{"$f":"'[2]5.2 Asset Age Profile'!AB145","v":0},{"$f":"'[2]5.2 Asset Age Profile'!AC145","v":0},{"$f":"'[2]5.2 Asset Age Profile'!AD145","v":0},{"$f":"'[2]5.2 Asset Age Profile'!AE145","v":0},{"$f":"'[2]5.2 Asset Age Profile'!AF145","v":0},{"$f":"'[2]5.2 Asset Age Profile'!AG145","v":0},{"$f":"'[2]5.2 Asset Age Profile'!AH145","v":0},{"$f":"'[2]5.2 Asset Age Profile'!AI145","v":0},{"$f":"'[2]5.2 Asset Age Profile'!AJ145","v":0},{"$f":"'[2]5.2 Asset Age Profile'!AK145","v":0},{"$f":"'[2]5.2 Asset Age Profile'!AL145","v":0},{"$f":"'[2]5.2 Asset Age Profile'!AM145","v":0},{"$f":"'[2]5.2 Asset Age Profile'!AN145","v":0},{"$f":"'[2]5.2 Asset Age Profile'!AO145","v":0},{"$f":"'[2]5.2 Asset Age Profile'!AP145","v":0},{"$f":"'[2]5.2 Asset Age Profile'!AQ145","v":0},{"$f":"'[2]5.2 Asset Age Profile'!AR145","v":0},{"$f":"'[2]5.2 Asset Age Profile'!AS145","v":0},{"$f":"'[2]5.2 Asset Age Profile'!AT145","v":0},{"$f":"'[2]5.2 Asset Age Profile'!AU145","v":0},{"$f":"'[2]5.2 Asset Age Profile'!AV145","v":0},{"$f":"'[2]5.2 Asset Age Profile'!AW145","v":0},{"$f":"'[2]5.2 Asset Age Profile'!AX145","v":0},{"$f":"'[2]5.2 Asset Age Profile'!AY145","v":0},{"$f":"'[2]5.2 Asset Age Profile'!AZ145","v":0},{"$f":"'[2]5.2 Asset Age Profile'!BA145","v":0},{"$f":"'[2]5.2 Asset Age Profile'!BB145","v":0},{"$f":"'[2]5.2 Asset Age Profile'!BC145","v":0},{"$f":"'[2]5.2 Asset Age Profile'!BD145","v":0},{"$f":"'[2]5.2 Asset Age Profile'!BE145","v":0},{"$f":"'[2]5.2 Asset Age Profile'!BF145","v":0},{"$f":"'[2]5.2 Asset Age Profile'!BG145","v":0},{"$f":"'[2]5.2 Asset Age Profile'!BH145","v":0},{"$f":"'[2]5.2 Asset Age Profile'!BI145","v":0},{"$f":"'[2]5.2 Asset Age Profile'!BJ145","v":0},{"$f":"'[2]5.2 Asset Age Profile'!BK145","v":0},{"$f":"'[2]5.2 Asset Age Profile'!BL145","v":0},{"$f":"'[2]5.2 Asset Age Profile'!BM145","v":0},{"$f":"'[2]5.2 Asset Age Profile'!BN145","v":0},{"$f":"'[2]5.2 Asset Age Profile'!BO145","v":0},{"$f":"'[2]5.2 Asset Age Profile'!BP145","v":0},{"$f":"'[2]5.2 Asset Age Profile'!BQ145","v":0},{"$f":"'[2]5.2 Asset Age Profile'!BR145","v":0},{"$f":"'[2]5.2 Asset Age Profile'!BS145","v":0},{"$f":"'[2]5.2 Asset Age Profile'!BT145","v":0},{"$f":"'[2]5.2 Asset Age Profile'!BU145","v":0},{"$f":"'[2]5.2 Asset Age Profile'!BV145","v":0},{"$f":"'[2]5.2 Asset Age Profile'!BW145","v":0},{"$f":"'[2]5.2 Asset Age Profile'!BX145","v":0},{"$f":"'[2]5.2 Asset Age Profile'!BY145","v":0},{"$f":"'[2]5.2 Asset Age Profile'!BZ145","v":0},{"$f":"'[2]5.2 Asset Age Profile'!CA145","v":0},{"$f":"'[2]5.2 Asset Age Profile'!CB145","v":0},{"$f":"'[2]5.2 Asset Age Profile'!CC145","v":0},{"$f":"'[2]5.2 Asset Age Profile'!CD145","v":0},{"$f":"'[2]5.2 Asset Age Profile'!CE145","v":0},{"$f":"'[2]5.2 Asset Age Profile'!CF145","v":0},{"$f":"'[2]5.2 Asset Age Profile'!CG145","v":0},{"$f":"'[2]5.2 Asset Age Profile'!CH145","v":0},{"$f":"'[2]5.2 Asset Age Profile'!CI145","v":0},{"$f":"'[2]5.2 Asset Age Profile'!CJ145","v":0},{"$f":"'[2]5.2 Asset Age Profile'!CK145","v":0},{"$f":"'[2]5.2 Asset Age Profile'!CL145","v":0},{"$f":"'[2]5.2 Asset Age Profile'!CM145","v":0},{"$f":"'[2]5.2 Asset Age Profile'!CN145","v":0},{"$f":"'[2]5.2 Asset Age Profile'!CO145","v":0},{"$f":"'[2]5.2 Asset Age Profile'!CP145","v":0},{"$f":"'[2]5.2 Asset Age Profile'!CQ145","v":0},{"$f":"'[2]5.2 Asset Age Profile'!CR145","v":0},{"$f":"'[2]5.2 Asset Age Profile'!CS145","v":0},{"$f":"'[2]5.2 Asset Age Profile'!CT145","v":0},{"$f":"'[2]5.2 Asset Age Profile'!CU145","v":0},{"$f":"'[2]5.2 Asset Age Profile'!CV145","v":0},{"$f":"'[2]5.2 Asset Age Profile'!CW145","v":0},{"$f":"'[2]5.2 Asset Age Profile'!CX145","v":0},{"$f":"'[2]5.2 Asset Age Profile'!CY145","v":0},{"$f":"'[2]5.2 Asset Age Profile'!CZ145","v":0},{"$f":"'[2]5.2 Asset Age Profile'!DA145","v":0},{"$f":"'[2]5.2 Asset Age Profile'!DB145","v":0},{"$f":"'[2]5.2 Asset Age Profile'!DC145","v":0},{"$f":"'[2]5.2 Asset Age Profile'!DD145","v":0},{"$f":"'[2]5.2 Asset Age Profile'!DE145","v":0},{"$f":"'[2]5.2 Asset Age Profile'!DF145","v":0},{"$f":"'[2]5.2 Asset Age Profile'!DG145","v":0},{"$f":"'[2]5.2 Asset Age Profile'!DH145","v":0},{"$f":"'[2]5.2 Asset Age Profile'!DI145","v":0},{"$f":"'[2]5.2 Asset Age Profile'!DJ145","v":0},{"$f":"'[2]5.2 Asset Age Profile'!DK145","v":0},{"$f":"'[2]5.2 Asset Age Profile'!DL145","v":0},{"$f":"'[2]5.2 Asset Age Profile'!DM145","v":0},{"$f":"'[2]5.2 Asset Age Profile'!DN145","v":0},{"$f":"'[2]5.2 Asset Age Profile'!DO145","v":0},{"$f":"'[2]5.2 Asset Age Profile'!DP145","v":0},{"$f":"'[2]5.2 Asset Age Profile'!DQ145","v":0},{"$f":"'[2]5.2 Asset Age Profile'!DR145","v":0},{"$f":"'[2]5.2 Asset Age Profile'!DS145","v":0},{"$f":"'[2]5.2 Asset Age Profile'!DT145","v":0},{"$f":"'[2]5.2 Asset Age Profile'!DU145","v":0},{"$f":"'[2]5.2 Asset Age Profile'!DV145","v":0},{"$f":"'[2]5.2 Asset Age Profile'!DW145","v":0},{"$f":"'[2]5.2 Asset Age Profile'!DX145","v":0},{"$f":"'[2]5.2 Asset Age Profile'!DY145","v":0},{"$f":"'[2]5.2 Asset Age Profile'!DZ145","v":0},{"$f":"'[2]5.2 Asset Age Profile'!EA145","v":0},{"$f":"'[2]5.2 Asset Age Profile'!EB145","v":0},{"$f":"'[2]5.2 Asset Age Profile'!EC145","v":0},{"$f":"'[2]5.2 Asset Age Profile'!ED145","v":0},{"$f":"'[2]5.2 Asset Age Profile'!EE145","v":0},{"$f":"'[2]5.2 Asset Age Profile'!EF145","v":0},{"$f":"'[2]5.2 Asset Age Profile'!EG145","v":0},{"$f":"'[2]5.2 Asset Age Profile'!EH145","v":0},{"$f":"'[2]5.2 Asset Age Profile'!EI145","v":0},{"$f":"'[2]5.2 Asset Age Profile'!EJ145","v":0}]
["ED_ASS521_00136",null,null,null,null,null,null,null,null,null,null,null,null,{"$f":"'[2]5.2 Asset Age Profile'!N146","v":0},{"$f":"'[2]5.2 Asset Age Profile'!O146","v":0},{"$f":"'[2]5.2 Asset Age Profile'!P146","v":0},{"$f":"'[2]5.2 Asset Age Profile'!Q146","v":0},{"$f":"'[2]5.2 Asset Age Profile'!R146","v":0},{"$f":"'[2]5.2 Asset Age Profile'!S146","v":0},{"$f":"'[2]5.2 Asset Age Profile'!T146","v":0},{"$f":"'[2]5.2 Asset Age Profile'!U146","v":0},{"$f":"'[2]5.2 Asset Age Profile'!V146","v":0},{"$f":"'[2]5.2 Asset Age Profile'!W146","v":0},{"$f":"'[2]5.2 Asset Age Profile'!X146","v":0},{"$f":"'[2]5.2 Asset Age Profile'!Y146","v":0},{"$f":"'[2]5.2 Asset Age Profile'!Z146","v":0},{"$f":"'[2]5.2 Asset Age Profile'!AA146","v":0},{"$f":"'[2]5.2 Asset Age Profile'!AB146","v":0},{"$f":"'[2]5.2 Asset Age Profile'!AC146","v":0},{"$f":"'[2]5.2 Asset Age Profile'!AD146","v":0},{"$f":"'[2]5.2 Asset Age Profile'!AE146","v":0},{"$f":"'[2]5.2 Asset Age Profile'!AF146","v":0},{"$f":"'[2]5.2 Asset Age Profile'!AG146","v":0},{"$f":"'[2]5.2 Asset Age Profile'!AH146","v":0},{"$f":"'[2]5.2 Asset Age Profile'!AI146","v":0},{"$f":"'[2]5.2 Asset Age Profile'!AJ146","v":0},{"$f":"'[2]5.2 Asset Age Profile'!AK146","v":0},{"$f":"'[2]5.2 Asset Age Profile'!AL146","v":0},{"$f":"'[2]5.2 Asset Age Profile'!AM146","v":0},{"$f":"'[2]5.2 Asset Age Profile'!AN146","v":0},{"$f":"'[2]5.2 Asset Age Profile'!AO146","v":0},{"$f":"'[2]5.2 Asset Age Profile'!AP146","v":0},{"$f":"'[2]5.2 Asset Age Profile'!AQ146","v":0},{"$f":"'[2]5.2 Asset Age Profile'!AR146","v":0},{"$f":"'[2]5.2 Asset Age Profile'!AS146","v":0},{"$f":"'[2]5.2 Asset Age Profile'!AT146","v":0},{"$f":"'[2]5.2 Asset Age Profile'!AU146","v":0},{"$f":"'[2]5.2 Asset Age Profile'!AV146","v":0},{"$f":"'[2]5.2 Asset Age Profile'!AW146","v":0},{"$f":"'[2]5.2 Asset Age Profile'!AX146","v":0},{"$f":"'[2]5.2 Asset Age Profile'!AY146","v":0},{"$f":"'[2]5.2 Asset Age Profile'!AZ146","v":0},{"$f":"'[2]5.2 Asset Age Profile'!BA146","v":0},{"$f":"'[2]5.2 Asset Age Profile'!BB146","v":0},{"$f":"'[2]5.2 Asset Age Profile'!BC146","v":0},{"$f":"'[2]5.2 Asset Age Profile'!BD146","v":0},{"$f":"'[2]5.2 Asset Age Profile'!BE146","v":0},{"$f":"'[2]5.2 Asset Age Profile'!BF146","v":0},{"$f":"'[2]5.2 Asset Age Profile'!BG146","v":0},{"$f":"'[2]5.2 Asset Age Profile'!BH146","v":0},{"$f":"'[2]5.2 Asset Age Profile'!BI146","v":0},{"$f":"'[2]5.2 Asset Age Profile'!BJ146","v":0},{"$f":"'[2]5.2 Asset Age Profile'!BK146","v":0},{"$f":"'[2]5.2 Asset Age Profile'!BL146","v":0},{"$f":"'[2]5.2 Asset Age Profile'!BM146","v":0},{"$f":"'[2]5.2 Asset Age Profile'!BN146","v":0},{"$f":"'[2]5.2 Asset Age Profile'!BO146","v":0},{"$f":"'[2]5.2 Asset Age Profile'!BP146","v":0},{"$f":"'[2]5.2 Asset Age Profile'!BQ146","v":0},{"$f":"'[2]5.2 Asset Age Profile'!BR146","v":0},{"$f":"'[2]5.2 Asset Age Profile'!BS146","v":0},{"$f":"'[2]5.2 Asset Age Profile'!BT146","v":0},{"$f":"'[2]5.2 Asset Age Profile'!BU146","v":0},{"$f":"'[2]5.2 Asset Age Profile'!BV146","v":0},{"$f":"'[2]5.2 Asset Age Profile'!BW146","v":0},{"$f":"'[2]5.2 Asset Age Profile'!BX146","v":0},{"$f":"'[2]5.2 Asset Age Profile'!BY146","v":0},{"$f":"'[2]5.2 Asset Age Profile'!BZ146","v":0},{"$f":"'[2]5.2 Asset Age Profile'!CA146","v":0},{"$f":"'[2]5.2 Asset Age Profile'!CB146","v":0},{"$f":"'[2]5.2 Asset Age Profile'!CC146","v":0},{"$f":"'[2]5.2 Asset Age Profile'!CD146","v":0},{"$f":"'[2]5.2 Asset Age Profile'!CE146","v":0},{"$f":"'[2]5.2 Asset Age Profile'!CF146","v":0},{"$f":"'[2]5.2 Asset Age Profile'!CG146","v":0},{"$f":"'[2]5.2 Asset Age Profile'!CH146","v":0},{"$f":"'[2]5.2 Asset Age Profile'!CI146","v":0},{"$f":"'[2]5.2 Asset Age Profile'!CJ146","v":0},{"$f":"'[2]5.2 Asset Age Profile'!CK146","v":0},{"$f":"'[2]5.2 Asset Age Profile'!CL146","v":0},{"$f":"'[2]5.2 Asset Age Profile'!CM146","v":0},{"$f":"'[2]5.2 Asset Age Profile'!CN146","v":0},{"$f":"'[2]5.2 Asset Age Profile'!CO146","v":0},{"$f":"'[2]5.2 Asset Age Profile'!CP146","v":0},{"$f":"'[2]5.2 Asset Age Profile'!CQ146","v":0},{"$f":"'[2]5.2 Asset Age Profile'!CR146","v":0},{"$f":"'[2]5.2 Asset Age Profile'!CS146","v":0},{"$f":"'[2]5.2 Asset Age Profile'!CT146","v":0},{"$f":"'[2]5.2 Asset Age Profile'!CU146","v":0},{"$f":"'[2]5.2 Asset Age Profile'!CV146","v":0},{"$f":"'[2]5.2 Asset Age Profile'!CW146","v":0},{"$f":"'[2]5.2 Asset Age Profile'!CX146","v":0},{"$f":"'[2]5.2 Asset Age Profile'!CY146","v":0},{"$f":"'[2]5.2 Asset Age Profile'!CZ146","v":0},{"$f":"'[2]5.2 Asset Age Profile'!DA146","v":0},{"$f":"'[2]5.2 Asset Age Profile'!DB146","v":0},{"$f":"'[2]5.2 Asset Age Profile'!DC146","v":0},{"$f":"'[2]5.2 Asset Age Profile'!DD146","v":0},{"$f":"'[2]5.2 Asset Age Profile'!DE146","v":0},{"$f":"'[2]5.2 Asset Age Profile'!DF146","v":0},{"$f":"'[2]5.2 Asset Age Profile'!DG146","v":0},{"$f":"'[2]5.2 Asset Age Profile'!DH146","v":0},{"$f":"'[2]5.2 Asset Age Profile'!DI146","v":0},{"$f":"'[2]5.2 Asset Age Profile'!DJ146","v":0},{"$f":"'[2]5.2 Asset Age Profile'!DK146","v":0},{"$f":"'[2]5.2 Asset Age Profile'!DL146","v":0},{"$f":"'[2]5.2 Asset Age Profile'!DM146","v":0},{"$f":"'[2]5.2 Asset Age Profile'!DN146","v":0},{"$f":"'[2]5.2 Asset Age Profile'!DO146","v":0},{"$f":"'[2]5.2 Asset Age Profile'!DP146","v":0},{"$f":"'[2]5.2 Asset Age Profile'!DQ146","v":0},{"$f":"'[2]5.2 Asset Age Profile'!DR146","v":0},{"$f":"'[2]5.2 Asset Age Profile'!DS146","v":0},{"$f":"'[2]5.2 Asset Age Profile'!DT146","v":0},{"$f":"'[2]5.2 Asset Age Profile'!DU146","v":0},{"$f":"'[2]5.2 Asset Age Profile'!DV146","v":0},{"$f":"'[2]5.2 Asset Age Profile'!DW146","v":0},{"$f":"'[2]5.2 Asset Age Profile'!DX146","v":0},{"$f":"'[2]5.2 Asset Age Profile'!DY146","v":0},{"$f":"'[2]5.2 Asset Age Profile'!DZ146","v":0},{"$f":"'[2]5.2 Asset Age Profile'!EA146","v":0},{"$f":"'[2]5.2 Asset Age Profile'!EB146","v":0},{"$f":"'[2]5.2 Asset Age Profile'!EC146","v":0},{"$f":"'[2]5.2 Asset Age Profile'!ED146","v":0},{"$f":"'[2]5.2 Asset Age Profile'!EE146","v":0},{"$f":"'[2]5.2 Asset Age Profile'!EF146","v":0},{"$f":"'[2]5.2 Asset Age Profile'!EG146","v":0},{"$f":"'[2]5.2 Asset Age Profile'!EH146","v":0},{"$f":"'[2]5.2 Asset Age Profile'!EI146","v":0},{"$f":"'[2]5.2 Asset Age Profile'!EJ146","v":0}]
["ED_ASS521_00137",null,null,null,null,null,null,null,null,null,null,null,null,{"$f":"'[2]5.2 Asset Age Profile'!N147","v":0},{"$f":"'[2]5.2 Asset Age Profile'!O147","v":0},{"$f":"'[2]5.2 Asset Age Profile'!P147","v":0},{"$f":"'[2]5.2 Asset Age Profile'!Q147","v":0},{"$f":"'[2]5.2 Asset Age Profile'!R147","v":0},{"$f":"'[2]5.2 Asset Age Profile'!S147","v":0},{"$f":"'[2]5.2 Asset Age Profile'!T147","v":0},{"$f":"'[2]5.2 Asset Age Profile'!U147","v":0},{"$f":"'[2]5.2 Asset Age Profile'!V147","v":0},{"$f":"'[2]5.2 Asset Age Profile'!W147","v":0},{"$f":"'[2]5.2 Asset Age Profile'!X147","v":0},{"$f":"'[2]5.2 Asset Age Profile'!Y147","v":0},{"$f":"'[2]5.2 Asset Age Profile'!Z147","v":0},{"$f":"'[2]5.2 Asset Age Profile'!AA147","v":0},{"$f":"'[2]5.2 Asset Age Profile'!AB147","v":0},{"$f":"'[2]5.2 Asset Age Profile'!AC147","v":0},{"$f":"'[2]5.2 Asset Age Profile'!AD147","v":0},{"$f":"'[2]5.2 Asset Age Profile'!AE147","v":0},{"$f":"'[2]5.2 Asset Age Profile'!AF147","v":0},{"$f":"'[2]5.2 Asset Age Profile'!AG147","v":0},{"$f":"'[2]5.2 Asset Age Profile'!AH147","v":0},{"$f":"'[2]5.2 Asset Age Profile'!AI147","v":0},{"$f":"'[2]5.2 Asset Age Profile'!AJ147","v":0},{"$f":"'[2]5.2 Asset Age Profile'!AK147","v":0},{"$f":"'[2]5.2 Asset Age Profile'!AL147","v":0},{"$f":"'[2]5.2 Asset Age Profile'!AM147","v":0},{"$f":"'[2]5.2 Asset Age Profile'!AN147","v":0},{"$f":"'[2]5.2 Asset Age Profile'!AO147","v":0},{"$f":"'[2]5.2 Asset Age Profile'!AP147","v":0},{"$f":"'[2]5.2 Asset Age Profile'!AQ147","v":0},{"$f":"'[2]5.2 Asset Age Profile'!AR147","v":0},{"$f":"'[2]5.2 Asset Age Profile'!AS147","v":0},{"$f":"'[2]5.2 Asset Age Profile'!AT147","v":0},{"$f":"'[2]5.2 Asset Age Profile'!AU147","v":0},{"$f":"'[2]5.2 Asset Age Profile'!AV147","v":0},{"$f":"'[2]5.2 Asset Age Profile'!AW147","v":0},{"$f":"'[2]5.2 Asset Age Profile'!AX147","v":0},{"$f":"'[2]5.2 Asset Age Profile'!AY147","v":0},{"$f":"'[2]5.2 Asset Age Profile'!AZ147","v":0},{"$f":"'[2]5.2 Asset Age Profile'!BA147","v":0},{"$f":"'[2]5.2 Asset Age Profile'!BB147","v":0},{"$f":"'[2]5.2 Asset Age Profile'!BC147","v":0},{"$f":"'[2]5.2 Asset Age Profile'!BD147","v":0},{"$f":"'[2]5.2 Asset Age Profile'!BE147","v":0},{"$f":"'[2]5.2 Asset Age Profile'!BF147","v":0},{"$f":"'[2]5.2 Asset Age Profile'!BG147","v":0},{"$f":"'[2]5.2 Asset Age Profile'!BH147","v":0},{"$f":"'[2]5.2 Asset Age Profile'!BI147","v":0},{"$f":"'[2]5.2 Asset Age Profile'!BJ147","v":0},{"$f":"'[2]5.2 Asset Age Profile'!BK147","v":0},{"$f":"'[2]5.2 Asset Age Profile'!BL147","v":0},{"$f":"'[2]5.2 Asset Age Profile'!BM147","v":0},{"$f":"'[2]5.2 Asset Age Profile'!BN147","v":0},{"$f":"'[2]5.2 Asset Age Profile'!BO147","v":0},{"$f":"'[2]5.2 Asset Age Profile'!BP147","v":0},{"$f":"'[2]5.2 Asset Age Profile'!BQ147","v":0},{"$f":"'[2]5.2 Asset Age Profile'!BR147","v":0},{"$f":"'[2]5.2 Asset Age Profile'!BS147","v":0},{"$f":"'[2]5.2 Asset Age Profile'!BT147","v":0},{"$f":"'[2]5.2 Asset Age Profile'!BU147","v":0},{"$f":"'[2]5.2 Asset Age Profile'!BV147","v":0},{"$f":"'[2]5.2 Asset Age Profile'!BW147","v":0},{"$f":"'[2]5.2 Asset Age Profile'!BX147","v":0},{"$f":"'[2]5.2 Asset Age Profile'!BY147","v":0},{"$f":"'[2]5.2 Asset Age Profile'!BZ147","v":0},{"$f":"'[2]5.2 Asset Age Profile'!CA147","v":0},{"$f":"'[2]5.2 Asset Age Profile'!CB147","v":0},{"$f":"'[2]5.2 Asset Age Profile'!CC147","v":0},{"$f":"'[2]5.2 Asset Age Profile'!CD147","v":0},{"$f":"'[2]5.2 Asset Age Profile'!CE147","v":0},{"$f":"'[2]5.2 Asset Age Profile'!CF147","v":0},{"$f":"'[2]5.2 Asset Age Profile'!CG147","v":0},{"$f":"'[2]5.2 Asset Age Profile'!CH147","v":0},{"$f":"'[2]5.2 Asset Age Profile'!CI147","v":0},{"$f":"'[2]5.2 Asset Age Profile'!CJ147","v":0},{"$f":"'[2]5.2 Asset Age Profile'!CK147","v":0},{"$f":"'[2]5.2 Asset Age Profile'!CL147","v":0},{"$f":"'[2]5.2 Asset Age Profile'!CM147","v":0},{"$f":"'[2]5.2 Asset Age Profile'!CN147","v":0},{"$f":"'[2]5.2 Asset Age Profile'!CO147","v":0},{"$f":"'[2]5.2 Asset Age Profile'!CP147","v":0},{"$f":"'[2]5.2 Asset Age Profile'!CQ147","v":0},{"$f":"'[2]5.2 Asset Age Profile'!CR147","v":0},{"$f":"'[2]5.2 Asset Age Profile'!CS147","v":0},{"$f":"'[2]5.2 Asset Age Profile'!CT147","v":0},{"$f":"'[2]5.2 Asset Age Profile'!CU147","v":0},{"$f":"'[2]5.2 Asset Age Profile'!CV147","v":0},{"$f":"'[2]5.2 Asset Age Profile'!CW147","v":0},{"$f":"'[2]5.2 Asset Age Profile'!CX147","v":0},{"$f":"'[2]5.2 Asset Age Profile'!CY147","v":0},{"$f":"'[2]5.2 Asset Age Profile'!CZ147","v":0},{"$f":"'[2]5.2 Asset Age Profile'!DA147","v":0},{"$f":"'[2]5.2 Asset Age Profile'!DB147","v":0},{"$f":"'[2]5.2 Asset Age Profile'!DC147","v":0},{"$f":"'[2]5.2 Asset Age Profile'!DD147","v":0},{"$f":"'[2]5.2 Asset Age Profile'!DE147","v":0},{"$f":"'[2]5.2 Asset Age Profile'!DF147","v":0},{"$f":"'[2]5.2 Asset Age Profile'!DG147","v":0},{"$f":"'[2]5.2 Asset Age Profile'!DH147","v":0},{"$f":"'[2]5.2 Asset Age Profile'!DI147","v":0},{"$f":"'[2]5.2 Asset Age Profile'!DJ147","v":0},{"$f":"'[2]5.2 Asset Age Profile'!DK147","v":0},{"$f":"'[2]5.2 Asset Age Profile'!DL147","v":0},{"$f":"'[2]5.2 Asset Age Profile'!DM147","v":0},{"$f":"'[2]5.2 Asset Age Profile'!DN147","v":0},{"$f":"'[2]5.2 Asset Age Profile'!DO147","v":0},{"$f":"'[2]5.2 Asset Age Profile'!DP147","v":0},{"$f":"'[2]5.2 Asset Age Profile'!DQ147","v":0},{"$f":"'[2]5.2 Asset Age Profile'!DR147","v":0},{"$f":"'[2]5.2 Asset Age Profile'!DS147","v":0},{"$f":"'[2]5.2 Asset Age Profile'!DT147","v":0},{"$f":"'[2]5.2 Asset Age Profile'!DU147","v":0},{"$f":"'[2]5.2 Asset Age Profile'!DV147","v":0},{"$f":"'[2]5.2 Asset Age Profile'!DW147","v":0},{"$f":"'[2]5.2 Asset Age Profile'!DX147","v":0},{"$f":"'[2]5.2 Asset Age Profile'!DY147","v":0},{"$f":"'[2]5.2 Asset Age Profile'!DZ147","v":0},{"$f":"'[2]5.2 Asset Age Profile'!EA147","v":0},{"$f":"'[2]5.2 Asset Age Profile'!EB147","v":0},{"$f":"'[2]5.2 Asset Age Profile'!EC147","v":0},{"$f":"'[2]5.2 Asset Age Profile'!ED147","v":0},{"$f":"'[2]5.2 Asset Age Profile'!EE147","v":0},{"$f":"'[2]5.2 Asset Age Profile'!EF147","v":0},{"$f":"'[2]5.2 Asset Age Profile'!EG147","v":0},{"$f":"'[2]5.2 Asset Age Profile'!EH147","v":0},{"$f":"'[2]5.2 Asset Age Profile'!EI147","v":0},{"$f":"'[2]5.2 Asset Age Profile'!EJ147","v":0}]
["ED_ASS521_00138",null,null,null,null,null,null,null,null,null,null,null,null,{"$f":"'[2]5.2 Asset Age Profile'!N148","v":0},{"$f":"'[2]5.2 Asset Age Profile'!O148","v":0},{"$f":"'[2]5.2 Asset Age Profile'!P148","v":0},{"$f":"'[2]5.2 Asset Age Profile'!Q148","v":0},{"$f":"'[2]5.2 Asset Age Profile'!R148","v":0},{"$f":"'[2]5.2 Asset Age Profile'!S148","v":0},{"$f":"'[2]5.2 Asset Age Profile'!T148","v":0},{"$f":"'[2]5.2 Asset Age Profile'!U148","v":0},{"$f":"'[2]5.2 Asset Age Profile'!V148","v":0},{"$f":"'[2]5.2 Asset Age Profile'!W148","v":0},{"$f":"'[2]5.2 Asset Age Profile'!X148","v":0},{"$f":"'[2]5.2 Asset Age Profile'!Y148","v":0},{"$f":"'[2]5.2 Asset Age Profile'!Z148","v":0},{"$f":"'[2]5.2 Asset Age Profile'!AA148","v":0},{"$f":"'[2]5.2 Asset Age Profile'!AB148","v":0},{"$f":"'[2]5.2 Asset Age Profile'!AC148","v":0},{"$f":"'[2]5.2 Asset Age Profile'!AD148","v":0},{"$f":"'[2]5.2 Asset Age Profile'!AE148","v":0},{"$f":"'[2]5.2 Asset Age Profile'!AF148","v":0},{"$f":"'[2]5.2 Asset Age Profile'!AG148","v":0},{"$f":"'[2]5.2 Asset Age Profile'!AH148","v":0},{"$f":"'[2]5.2 Asset Age Profile'!AI148","v":0},{"$f":"'[2]5.2 Asset Age Profile'!AJ148","v":0},{"$f":"'[2]5.2 Asset Age Profile'!AK148","v":0},{"$f":"'[2]5.2 Asset Age Profile'!AL148","v":0},{"$f":"'[2]5.2 Asset Age Profile'!AM148","v":0},{"$f":"'[2]5.2 Asset Age Profile'!AN148","v":0},{"$f":"'[2]5.2 Asset Age Profile'!AO148","v":0},{"$f":"'[2]5.2 Asset Age Profile'!AP148","v":0},{"$f":"'[2]5.2 Asset Age Profile'!AQ148","v":0},{"$f":"'[2]5.2 Asset Age Profile'!AR148","v":0},{"$f":"'[2]5.2 Asset Age Profile'!AS148","v":0},{"$f":"'[2]5.2 Asset Age Profile'!AT148","v":0},{"$f":"'[2]5.2 Asset Age Profile'!AU148","v":0},{"$f":"'[2]5.2 Asset Age Profile'!AV148","v":0},{"$f":"'[2]5.2 Asset Age Profile'!AW148","v":0},{"$f":"'[2]5.2 Asset Age Profile'!AX148","v":0},{"$f":"'[2]5.2 Asset Age Profile'!AY148","v":0},{"$f":"'[2]5.2 Asset Age Profile'!AZ148","v":0},{"$f":"'[2]5.2 Asset Age Profile'!BA148","v":0},{"$f":"'[2]5.2 Asset Age Profile'!BB148","v":0},{"$f":"'[2]5.2 Asset Age Profile'!BC148","v":0},{"$f":"'[2]5.2 Asset Age Profile'!BD148","v":0},{"$f":"'[2]5.2 Asset Age Profile'!BE148","v":0},{"$f":"'[2]5.2 Asset Age Profile'!BF148","v":0},{"$f":"'[2]5.2 Asset Age Profile'!BG148","v":0},{"$f":"'[2]5.2 Asset Age Profile'!BH148","v":0},{"$f":"'[2]5.2 Asset Age Profile'!BI148","v":0},{"$f":"'[2]5.2 Asset Age Profile'!BJ148","v":0},{"$f":"'[2]5.2 Asset Age Profile'!BK148","v":0},{"$f":"'[2]5.2 Asset Age Profile'!BL148","v":0},{"$f":"'[2]5.2 Asset Age Profile'!BM148","v":0},{"$f":"'[2]5.2 Asset Age Profile'!BN148","v":0},{"$f":"'[2]5.2 Asset Age Profile'!BO148","v":0},{"$f":"'[2]5.2 Asset Age Profile'!BP148","v":0},{"$f":"'[2]5.2 Asset Age Profile'!BQ148","v":0},{"$f":"'[2]5.2 Asset Age Profile'!BR148","v":0},{"$f":"'[2]5.2 Asset Age Profile'!BS148","v":0},{"$f":"'[2]5.2 Asset Age Profile'!BT148","v":0},{"$f":"'[2]5.2 Asset Age Profile'!BU148","v":0},{"$f":"'[2]5.2 Asset Age Profile'!BV148","v":0},{"$f":"'[2]5.2 Asset Age Profile'!BW148","v":0},{"$f":"'[2]5.2 Asset Age Profile'!BX148","v":0},{"$f":"'[2]5.2 Asset Age Profile'!BY148","v":0},{"$f":"'[2]5.2 Asset Age Profile'!BZ148","v":0},{"$f":"'[2]5.2 Asset Age Profile'!CA148","v":0},{"$f":"'[2]5.2 Asset Age Profile'!CB148","v":0},{"$f":"'[2]5.2 Asset Age Profile'!CC148","v":0},{"$f":"'[2]5.2 Asset Age Profile'!CD148","v":0},{"$f":"'[2]5.2 Asset Age Profile'!CE148","v":0},{"$f":"'[2]5.2 Asset Age Profile'!CF148","v":0},{"$f":"'[2]5.2 Asset Age Profile'!CG148","v":0},{"$f":"'[2]5.2 Asset Age Profile'!CH148","v":0},{"$f":"'[2]5.2 Asset Age Profile'!CI148","v":0},{"$f":"'[2]5.2 Asset Age Profile'!CJ148","v":0},{"$f":"'[2]5.2 Asset Age Profile'!CK148","v":0},{"$f":"'[2]5.2 Asset Age Profile'!CL148","v":0},{"$f":"'[2]5.2 Asset Age Profile'!CM148","v":0},{"$f":"'[2]5.2 Asset Age Profile'!CN148","v":0},{"$f":"'[2]5.2 Asset Age Profile'!CO148","v":0},{"$f":"'[2]5.2 Asset Age Profile'!CP148","v":0},{"$f":"'[2]5.2 Asset Age Profile'!CQ148","v":0},{"$f":"'[2]5.2 Asset Age Profile'!CR148","v":0},{"$f":"'[2]5.2 Asset Age Profile'!CS148","v":0},{"$f":"'[2]5.2 Asset Age Profile'!CT148","v":0},{"$f":"'[2]5.2 Asset Age Profile'!CU148","v":0},{"$f":"'[2]5.2 Asset Age Profile'!CV148","v":0},{"$f":"'[2]5.2 Asset Age Profile'!CW148","v":0},{"$f":"'[2]5.2 Asset Age Profile'!CX148","v":0},{"$f":"'[2]5.2 Asset Age Profile'!CY148","v":0},{"$f":"'[2]5.2 Asset Age Profile'!CZ148","v":0},{"$f":"'[2]5.2 Asset Age Profile'!DA148","v":0},{"$f":"'[2]5.2 Asset Age Profile'!DB148","v":0},{"$f":"'[2]5.2 Asset Age Profile'!DC148","v":0},{"$f":"'[2]5.2 Asset Age Profile'!DD148","v":0},{"$f":"'[2]5.2 Asset Age Profile'!DE148","v":0},{"$f":"'[2]5.2 Asset Age Profile'!DF148","v":0},{"$f":"'[2]5.2 Asset Age Profile'!DG148","v":0},{"$f":"'[2]5.2 Asset Age Profile'!DH148","v":0},{"$f":"'[2]5.2 Asset Age Profile'!DI148","v":0},{"$f":"'[2]5.2 Asset Age Profile'!DJ148","v":0},{"$f":"'[2]5.2 Asset Age Profile'!DK148","v":0},{"$f":"'[2]5.2 Asset Age Profile'!DL148","v":0},{"$f":"'[2]5.2 Asset Age Profile'!DM148","v":0},{"$f":"'[2]5.2 Asset Age Profile'!DN148","v":0},{"$f":"'[2]5.2 Asset Age Profile'!DO148","v":0},{"$f":"'[2]5.2 Asset Age Profile'!DP148","v":0},{"$f":"'[2]5.2 Asset Age Profile'!DQ148","v":0},{"$f":"'[2]5.2 Asset Age Profile'!DR148","v":0},{"$f":"'[2]5.2 Asset Age Profile'!DS148","v":0},{"$f":"'[2]5.2 Asset Age Profile'!DT148","v":0},{"$f":"'[2]5.2 Asset Age Profile'!DU148","v":0},{"$f":"'[2]5.2 Asset Age Profile'!DV148","v":0},{"$f":"'[2]5.2 Asset Age Profile'!DW148","v":0},{"$f":"'[2]5.2 Asset Age Profile'!DX148","v":0},{"$f":"'[2]5.2 Asset Age Profile'!DY148","v":0},{"$f":"'[2]5.2 Asset Age Profile'!DZ148","v":0},{"$f":"'[2]5.2 Asset Age Profile'!EA148","v":0},{"$f":"'[2]5.2 Asset Age Profile'!EB148","v":0},{"$f":"'[2]5.2 Asset Age Profile'!EC148","v":0},{"$f":"'[2]5.2 Asset Age Profile'!ED148","v":0},{"$f":"'[2]5.2 Asset Age Profile'!EE148","v":0},{"$f":"'[2]5.2 Asset Age Profile'!EF148","v":0},{"$f":"'[2]5.2 Asset Age Profile'!EG148","v":0},{"$f":"'[2]5.2 Asset Age Profile'!EH148","v":0},{"$f":"'[2]5.2 Asset Age Profile'!EI148","v":0},{"$f":"'[2]5.2 Asset Age Profile'!EJ148","v":0}]

{"sheet":"5.3 MD - Network level","index":18,"n_rows":17,"n_cols":4,"rows_kept":17,"cut":false,"hidden":false,"merged":[]}
[null,{"$f":"(LOOKUP(dms_Model,dms_Model_List,dms_Worksheet_List))","v":"REGULATORY REPORTING STATEMENT"}]
[null,"Australian Distribution Co."]
[null,{"$f":"CONCATENATE(\"Category Analysis RIN response \",CRY)","v":"Category Analysis RIN response 2014-15"}]
[null,"5.3 MAXIMUM DEMAND AT NETWORK LEVEL"]
[]
[]
[null,"TABLE 5.3.1 - RAW AND WEATHER CORRECTED COINCIDENT MD AT NETWORK LEVEL \n(Summed at transmission connection point)"]
[]
[]
[null,null,"UNIT",{"$f":"CRY","v":"2014-15"}]
["ED_MDN531_00001","Raw network coincident MD","MW",2161.5780880000002]
["ED_MDN531_00002","Date MD occurred",null,"2014-07-10"]
["ED_MDN531_00003","Half hour time period MD occurred",null,"18:30:00"]
["ED_MDN531_00004","Winter/summer peaking",null,"Winter"]
["ED_MDN531_00005","Embedded generation","MW",105.10977000000001]
["ED_MDN531_00006","Weather corrected (10% POE) network coincident MD","MW",2485.3268387622184]
["ED_MDN531_00007","Weather corrected (50% POE) network coincident MD","MW",2202.1135449321191]

{"sheet":"5.4 MD & utilisation-Spatial","index":19,"n_rows":11436,"n_cols":7,"rows_kept":11436,"cut":false,"hidden":false,"merged":[[27,3,28,3],[27,4,28,4],[29,3,30,3],[29,4,30,4],[31,3,32,3],[31,4,32,4],[19,4,20,4],[21,3,22,3],[21,4,22,4],[23,3,24,3],[23,4,24,4],[25,3,26,3],[25,4,26,4],[11,2,32,2],[11,3,12,3],[11,4,12,4],[13,3,14,3],[13,4,14,4],[15,3,16,3],[15,4,16,4],[17,3,18,3],[17,4,18,4],[19,3,20,3],[71,3,72,3],[71,4,72,4],[73,3,74,3],[73,4,74,4],[75,3,76,3],[75,4,76,4],[63,4,64,4],[65,3,66,3],[65,4,66,4],[67,3,68,3],[67,4,68,4],[69,3,70,3],[69,4,70,4],[55,2,76,2],[55,3,56,3],[55,4,56,4],[57,3,58,3],[57,4,58,4],[59,3,60,3],[59,4,60,4],[61,3,62,3],[61,4,62,4],[63,3,64,3],[49,3,50,3],[49,4,50,4],[51,3,52,3],[51,4,52,4],[53,3,54,3],[53,4,54,4],[41,4,42,4],[43,3,44,3],[43,4,44,4],[45,3,46,3],[45,4,46,4],[47,3,48,3],[47,4,48,4],[33,2,54,2],[33,3,34,3],[33,4,34,4],[35,3,36,3],[35,4,36,4],[37,3,38,3],[37,4,38,4],[39,3,40,3],[39,4,40,4],[41,3,42,3],[115,3,116,3],[115,4,116,4],[117,3,118,3],[117,4,118,4],[119,3,120,3],[119,4,120,4],[107,4,108,4],[109,3,110,3],[109,4,110,4],[111,3,112,3],[111,4,112,4],[113,3,114,3],[113,4,114,4],[99,2,120,2],[99,3,100,3],[99,4,100,4],[101,3,102,3],[101,4,102,4],[103,3,104,3],[103,4,104,4],[105,3,106,3],[105,4,106,4],[107,3,108,3],[93,3,94,3],[93,4,94,4],[95,3,96,3],[95,4,96,4],[97,3,98,3],[97,4,98,4],[85,4,86,4],[87,3,88,3],[87,4,88,4],[89,3,90,3],[89,4,90,4],[91,3,92,3],[91,4,92,4],[77,2,98,2],[77,3,78,3],[77,4,78,4],[79,3,80,3],[79,4,80,4],[81,3,82,3],[81,4,82,4],[83,3,84,3],[83,4,84,4],[85,3,86,3],[159,3,160,3],[159,4,160,4],[161,3,162,3],[161,4,162,4],[163,3,164,3],[163,4,164,4],[151,4,152,4],[153,3,154,3],[153,4,154,4],[155,3,156,3],[155,4,156,4],[157,3,158,3],[157,4,158,4],[143,2,164,2],[143,3,144,3],[143,4,144,4],[145,3,146,3],[145,4,146,4],[147,3,148,3],[147,4,148,4],[149,3,150,3],[149,4,150,4],[151,3,152,3],[137,3,138,3],[137,4,138,4],[139,3,140,3],[139,4,140,4],[141,3,142,3],[141,4,142,4],[129,4,130,4],[131,3,132,3],[131,4,132,4],[133,3,134,3],[133,4,134,4],[135,3,136,3],[135,4,136,4],[121,2,142,2],[121,3,122,3],[121,4,122,4],[123,3,124,3],[123,4,124,4],[125,3,126,3],[125,4,126,4],[127,3,128,3],[127,4,128,4],[129,3,130,3],[203,3,204,3],[203,4,204,4],[205,3,206,3],[205,4,206,4],[207,3,208,3],[207,4,208,4],[195,4,196,4],[197,3,198,3],[197,4,198,4],[199,3,200,3],[199,4,200,4],[201,3,202,3],[201,4,202,4],[187,2,208,2],[187,3,188,3],[187,4,188,4],[189,3,190,3],[189,4,190,4],[191,3,192,3],[191,4,192,4],[193,3,194,3],[193,4,194,4],[195,3,196,3],[181,3,182,3],[181,4,182,4],[183,3,184,3],[183,4,184,4],[185,3,186,3],[185,4,186,4],[173,4,174,4],[175,3,176,3],[175,4,176,4],[177,3,178,3],[177,4,178,4],[179,3,180,3],[179,4,180,4],[165,2,186,2],[165,3,166,3],[165,4,166,4],[167,3,168,3],[167,4,168,4],[169,3,170,3],[169,4,170,4],[171,3,172,3],[171,4,172,4],[173,3,174,3],[247,3,248,3],[247,4,248,4],[249,3,250,3],[249,4,250,4],[251,3,252,3],[251,4,252,4],[239,4,240,4],[241,3,242,3],[241,4,242,4],[243,3,244,3],[243,4,244,4],[245,3,246,3],[245,4,246,4],[231,2,252,2],[231,3,232,3],[231,4,232,4],[233,3,234,3],[233,4,234,4],[235,3,236,3],[235,4,236,4],[237,3,238,3],[237,4,238,4],[239,3,240,3],[225,3,226,3],[225,4,226,4],[227,3,228,3],[227,4,228,4],[229,3,230,3],[229,4,230,4],[217,4,218,4],[219,3,220,3],[219,4,220,4],[221,3,222,3],[221,4,222,4],[223,3,224,3],[223,4,224,4],[209,2,230,2],[209,3,210,3],[209,4,210,4],[211,3,212,3],[211,4,212,4],[213,3,214,3],[213,4,214,4],[215,3,216,3],[215,4,216,4],[217,3,218,3],[291,3,292,3],[291,4,292,4],[293,3,294,3],[293,4,294,4],[295,3,296,3],[295,4,296,4],[283,4,284,4],[285,3,286,3],[285,4,286,4],[287,3,288,3],[287,4,288,4],[289,3,290,3],[289,4,290,4],[275,2,296,2],[275,3,276,3],[275,4,276,4],[277,3,278,3],[277,4,278,4],[279,3,280,3],[279,4,280,4],[281,3,282,3],[281,4,282,4],[283,3,284,3],[269,3,270,3],[269,4,270,4],[271,3,272,3],[271,4,272,4],[273,3,274,3],[273,4,274,4],[261,4,262,4],[263,3,264,3],[263,4,264,4],[265,3,266,3],[265,4,266,4],[267,3,268,3],[267,4,268,4],[253,2,274,2],[253,3,254,3],[253,4,254,4],[255,3,256,3],[255,4,256,4],[257,3,258,3],[257,4,258,4],[259,3,260,3],[259,4,260,4],[261,3,262,3],[335,3,336,3],[335,4,336,4],[337,3,338,3],[337,4,338,4],[339,3,340,3],[339,4,340,4],[327,4,328,4],[329,3,330,3],[329,4,330,4],[331,3,332,3],[331,4,332,4],[333,3,334,3],[333,4,334,4],[319,2,340,2],[319,3,320,3],[319,4,320,4],[321,3,322,3],[321,4,322,4],[323,3,324,3],[323,4,324,4],[325,3,326,3],[325,4,326,4],[327,3,328,3],[313,3,314,3],[313,4,314,4],[315,3,316,3],[315,4,316,4],[317,3,318,3],[317,4,318,4],[305,4,306,4],[307,3,308,3],[307,4,308,4],[309,3,310,3],[309,4,310,4],[311,3,312,3],[311,4,312,4],[297,2,318,2],[297,3,298,3],[297,4,298,4],[299,3,300,3],[299,4,300,4],[301,3,302,3],[301,4,302,4],[303,3,304,3],[303,4,304,4],[305,3,306,3],[379,3,380,3],[379,4,380,4],[381,3,382,3],[381,4,382,4],[383,3,384,3],[383,4,384,4],[371,4,372,4],[373,3,374,3],[373,4,374,4],[375,3,376,3],[375,4,376,4],[377,3,378,3],[377,4,378,4],[363,2,384,2],[363,3,364,3],[363,4,364,4],[365,3,366,3],[365,4,366,4],[367,3,368,3],[367,4,368,4],[369,3,370,3],[369,4,370,4],[371,3,372,3],[357,3,358,3],[357,4,358,4],[359,3,360,3],[359,4,360,4],[361,3,362,3],[361,4,362,4],[349,4,350,4],[351,3,352,3],[351,4,352,4],[353,3,354,3],[353,4,354,4],[355,3,356,3],[355,4,356,4],[341,2,362,2],[341,3,342,3],[341,4,342,4],[343,3,344,3],[343,4,344,4],[345,3,346,3],[345,4,346,4],[347,3,348,3],[347,4,348,4],[349,3,350,3],[423,3,424,3],[423,4,424,4],[425,3,426,3],[425,4,426,4],[427,3,428,3],[427,4,428,4],[415,4,416,4],[417,3,418,3],[417,4,418,4],[419,3,420,3],[419,4,420,4],[421,3,422,3],[421,4,422,4],[407,2,428,2],[407,3,408,3],[407,4,408,4],[409,3,410,3],[409,4,410,4],[411,3,412,3],[411,4,412,4],[413,3,414,3],[413,4,414,4],[415,3,416,3],[401,3,402,3],[401,4,402,4],[403,3,404,3],[403,4,404,4],[405,3,406,3],[405,4,406,4],[393,4,394,4],[395,3,396,3],[395,4,396,4],[397,3,398,3],[397,4,398,4],[399,3,400,3],[399,4,400,4],[385,2,406,2],[385,3,386,3],[385,4,386,4],[387,3,388,3],[387,4,388,4],[389,3,390,3],[389,4,390,4],[391,3,392,3],[391,4,392,4],[393,3,394,3],[467,3,468,3],[467,4,468,4],[469,3,470,3],[469,4,470,4],[471,3,472,3],[471,4,472,4],[459,4,460,4],[461,3,462,3],[461,4,462,4],[463,3,464,3],[463,4,464,4],[465,3,466,3],[465,4,466,4],[451,2,472,2],[451,3,452,3],[451,4,452,4],[453,3,454,3],[453,4,454,4],[455,3,456,3],[455,4,456,4],[457,3,458,3],[457,4,458,4],[459,3,460,3],[445,3,446,3],[445,4,446,4],[447,3,448,3],[447,4,448,4],[449,3,450,3],[449,4,450,4],[437,4,438,4],[439,3,440,3],[439,4,440,4],[441,3,442,3],[441,4,442,4],[443,3,444,3],[443,4,444,4],[429,2,450,2],[429,3,430,3],[429,4,430,4],[431,3,432,3],[431,4,432,4],[433,3,434,3],[433,4,434,4],[435,3,436,3],[435,4,436,4],[437,3,438,3],[511,3,512,3],[511,4,512,4],[513,3,514,3],[513,4,514,4],[515,3,516,3],[515,4,516,4],[503,4,504,4],[505,3,506,3],[505,4,506,4],[507,3,508,3],[507,4,508,4],[509,3,510,3],[509,4,510,4],[495,2,516,2],[495,3,496,3],[495,4,496,4],[497,3,498,3],[497,4,498,4],[499,3,500,3],[499,4,500,4],[501,3,502,3],[501,4,502,4],[503,3,504,3],[489,3,490,3],[489,4,490,4],[491,3,492,3],[491,4,492,4],[493,3,494,3],[493,4,494,4],[481,4,482,4],[483,3,484,3],[483,4,484,4],[485,3,486,3],[485,4,486,4],[487,3,488,3],[487,4,488,4],[473,2,494,2],[473,3,474,3],[473,4,474,4],[475,3,476,3],[475,4,476,4],[477,3,478,3],[477,4,478,4],[479,3,480,3],[479,4,480,4],[481,3,482,3],[555,3,556,3],[555,4,556,4],[557,3,558,3],[557,4,558,4],[559,3,560,3],[559,4,560,4],[547,4,548,4],[549,3,550,3],[549,4,550,4],[551,3,552,3],[551,4,552,4],[553,3,554,3],[553,4,554,4],[539,2,560,2],[539,3,540,3],[539,4,540,4],[541,3,542,3],[541,4,542,4],[543,3,544,3],[543,4,544,4],[545,3,546,3],[545,4,546,4],[547,3,548,3],[533,3,534,3],[533,4,534,4],[535,3,536,3],[535,4,536,4],[537,3,538,3],[537,4,538,4],[525,4,526,4],[527,3,528,3],[527,4,528,4],[529,3,530,3],[529,4,530,4],[531,3,532,3],[531,4,532,4],[517,2,538,2],[517,3,518,3],[517,4,518,4],[519,3,520,3],[519,4,520,4],[521,3,522,3],[521,4,522,4],[523,3,524,3],[523,4,524,4],[525,3,526,3],[599,3,600,3],[599,4,600,4],[601,3,602,3],[601,4,602,4],[603,3,604,3],[603,4,604,4],[591,4,592,4],[593,3,594,3],[593,4,594,4],[595,3,596,3],[595,4,596,4],[597,3,598,3],[597,4,598,4],[583,2,604,2],[583,3,584,3],[583,4,584,4],[585,3,586,3],[585,4,586,4],[587,3,588,3],[587,4,588,4],[589,3,590,3],[589,4,590,4],[591,3,592,3],[577,3,578,3],[577,4,578,4],[579,3,580,3],[579,4,580,4],[581,3,582,3],[581,4,582,4],[569,4,570,4],[571,3,572,3],[571,4,572,4],[573,3,574,3],[573,4,574,4],[575,3,576,3],[575,4,576,4],[561,2,582,2],[561,3,562,3],[561,4,562,4],[563,3,564,3],[563,4,564,4],[565,3,566,3],[565,4,566,4],[567,3,568,3],[567,4,568,4],[569,3,570,3],[643,3,644,3],[643,4,644,4],[645,3,646,3],[645,4,646,4],[647,3,648,3],[647,4,648,4],[635,4,636,4],[637,3,638,3],[637,4,638,4],[639,3,640,3],[639,4,640,4],[641,3,642,3],[641,4,642,4],[627,2,648,2],[627,3,628,3],[627,4,628,4],[629,3,630,3],[629,4,630,4],[631,3,632,3],[631,4,632,4],[633,3,634,3],[633,4,634,4],[635,3,636,3],[621,3,622,3],[621,4,622,4],[623,3,624,3],[623,4,624,4],[625,3,626,3],[625,4,626,4],[613,4,614,4],[615,3,616,3],[615,4,616,4],[617,3,618,3],[617,4,618,4],[619,3,620,3],[619,4,620,4],[605,2,626,2],[605,3,606,3],[605,4,606,4],[607,3,608,3],[607,4,608,4],[609,3,610,3],[609,4,610,4],[611,3,612,3],[611,4,612,4],[613,3,614,3],[687,3,688,3],[687,4,688,4],[689,3,690,3],[689,4,690,4],[691,3,692,3],[691,4,692,4],[679,4,680,4],[681,3,682,3],[681,4,682,4],[683,3,684,3],[683,4,684,4],[685,3,686,3],[685,4,686,4],[671,2,692,2],[671,3,672,3],[671,4,672,4],[673,3,674,3],[673,4,674,4],[675,3,676,3],[675,4,676,4],[677,3,678,3],[677,4,678,4],[679,3,680,3],[665,3,666,3],[665,4,666,4],[667,3,668,3],[667,4,668,4],[669,3,670,3],[669,4,670,4],[657,4,658,4],[659,3,660,3],[659,4,660,4],[661,3,662,3],[661,4,662,4],[663,3,664,3],[663,4,664,4],[649,2,670,2],[649,3,650,3],[649,4,650,4],[651,3,652,3],[651,4,652,4],[653,3,654,3],[653,4,654,4],[655,3,656,3],[655,4,656,4],[657,3,658,3],[731,3,732,3],[731,4,732,4],[733,3,734,3],[733,4,734,4],[735,3,736,3],[735,4,736,4],[723,4,724,4],[725,3,726,3],[725,4,726,4],[727,3,728,3],[727,4,728,4],[729,3,730,3],[729,4,730,4],[715,2,736,2],[715,3,716,3],[715,4,716,4],[717,3,718,3],[717,4,718,4],[719,3,720,3],[719,4,720,4],[721,3,722,3],[721,4,722,4],[723,3,724,3],[709,3,710,3],[709,4,710,4],[711,3,712,3],[711,4,712,4],[713,3,714,3],[713,4,714,4],[701,4,702,4],[703,3,704,3],[703,4,704,4],[705,3,706,3],[705,4,706,4],[707,3,708,3],[707,4,708,4],[693,2,714,2],[693,3,694,3],[693,4,694,4],[695,3,696,3],[695,4,696,4],[697,3,698,3],[697,4,698,4],[699,3,700,3],[699,4,700,4],[701,3,702,3],[775,3,776,3],[775,4,776,4],[777,3,778,3],[777,4,778,4],[779,3,780,3],[779,4,780,4],[767,4,768,4],[769,3,770,3],[769,4,770,4],[771,3,772,3],[771,4,772,4],[773,3,774,3],[773,4,774,4],[759,2,780,2],[759,3,760,3],[759,4,760,4],[761,3,762,3],[761,4,762,4],[763,3,764,3],[763,4,764,4],[765,3,766,3],[765,4,766,4],[767,3,768,3],[753,3,754,3],[753,4,754,4],[755,3,756,3],[755,4,756,4],[757,3,758,3],[757,4,758,4],[745,4,746,4],[747,3,748,3],[747,4,748,4],[749,3,750,3],[749,4,750,4],[751,3,752,3],[751,4,752,4],[737,2,758,2],[737,3,738,3],[737,4,738,4],[739,3,740,3],[739,4,740,4],[741,3,742,3],[741,4,742,4],[743,3,744,3],[743,4,744,4],[745,3,746,3],[819,3,820,3],[819,4,820,4],[821,3,822,3],[821,4,822,4],[823,3,824,3],[823,4,824,4],[811,4,812,4],[813,3,814,3],[813,4,814,4],[815,3,816,3],[815,4,816,4],[817,3,818,3],[817,4,818,4],[803,2,824,2],[803,3,804,3],[803,4,804,4],[805,3,806,3],[805,4,806,4],[807,3,808,3],[807,4,808,4],[809,3,810,3],[809,4,810,4],[811,3,812,3],[797,3,798,3],[797,4,798,4],[799,3,800,3],[799,4,800,4],[801,3,802,3],[801,4,802,4],[789,4,790,4],[791,3,792,3],[791,4,792,4],[793,3,794,3],[793,4,794,4],[795,3,796,3],[795,4,796,4],[781,2,802,2],[781,3,782,3],[781,4,782,4],[783,3,784,3],[783,4,784,4],[785,3,786,3],[785,4,786,4],[787,3,788,3],[787,4,788,4],[789,3,790,3],[863,3,864,3],[863,4,864,4],[865,3,866,3],[865,4,866,4],[867,3,868,3],[867,4,868,4],[855,4,856,4],[857,3,858,3],[857,4,858,4],[859,3,860,3],[859,4,860,4],[861,3,862,3],[861,4,862,4],[847,2,868,2],[847,3,848,3],[847,4,848,4],[849,3,850,3],[849,4,850,4],[851,3,852,3],[851,4,852,4],[853,3,854,3],[853,4,854,4],[855,3,856,3],[841,3,842,3],[841,4,842,4],[843,3,844,3],[843,4,844,4],[845,3,846,3],[845,4,846,4],[833,4,834,4],[835,3,836,3],[835,4,836,4],[837,3,838,3],[837,4,838,4],[839,3,840,3],[839,4,840,4],[825,2,846,2],[825,3,826,3],[825,4,826,4],[827,3,828,3],[827,4,828,4],[829,3,830,3],[829,4,830,4],[831,3,832,3],[831,4,832,4],[833,3,834,3],[907,3,908,3],[907,4,908,4],[909,3,910,3],[909,4,910,4],[911,3,912,3],[911,4,912,4],[899,4,900,4],[901,3,902,3],[901,4,902,4],[903,3,904,3],[903,4,904,4],[905,3,906,3],[905,4,906,4],[891,2,912,2],[891,3,892,3],[891,4,892,4],[893,3,894,3],[893,4,894,4],[895,3,896,3],[895,4,896,4],[897,3,898,3],[897,4,898,4],[899,3,900,3],[885,3,886,3],[885,4,886,4],[887,3,888,3],[887,4,888,4],[889,3,890,3],[889,4,890,4],[877,4,878,4],[879,3,880,3],[879,4,880,4],[881,3,882,3],[881,4,882,4],[883,3,884,3],[883,4,884,4],[869,2,890,2],[869,3,870,3],[869,4,870,4],[871,3,872,3],[871,4,872,4],[873,3,874,3],[873,4,874,4],[875,3,876,3],[875,4,876,4],[877,3,878,3],[951,3,952,3],[951,4,952,4],[953,3,954,3],[953,4,954,4],[955,3,956,3],[955,4,956,4],[943,4,944,4],[945,3,946,3],[945,4,946,4],[947,3,948,3],[947,4,948,4],[949,3,950,3],[949,4,950,4],[935,2,956,2],[935,3,936,3],[935,4,936,4],[937,3,938,3],[937,4,938,4],[939,3,940,3],[939,4,940,4],[941,3,942,3],[941,4,942,4],[943,3,944,3],[929,3,930,3],[929,4,930,4],[931,3,932,3],[931,4,932,4],[933,3,934,3],[933,4,934,4],[921,4,922,4],[923,3,924,3],[923,4,924,4],[925,3,926,3],[925,4,926,4],[927,3,928,3],[927,4,928,4],[913,2,934,2],[913,3,914,3],[913,4,914,4],[915,3,916,3],[915,4,916,4],[917,3,918,3],[917,4,918,4],[919,3,920,3],[919,4,920,4],[921,3,922,3],[995,3,996,3],[995,4,996,4],[997,3,998,3],[997,4,998,4],[999,3,1000,3],[999,4,1000,4],[987,4,988,4],[989,3,990,3],[989,4,990,4],[991,3,992,3],[991,4,992,4]],"merged_total":11937,"flags":["merged_cut"]}
[null,{"$f":"(LOOKUP(dms_Model,dms_Model_List,dms_Worksheet_List))","v":"REGULATORY REPORTING STATEMENT"},null,null,null,"Worksheet navigation"]
[null,"Australian Distribution Co."]
[null,{"$f":"CONCATENATE(\"Category Analysis RIN response \",CRY)","v":"Category Analysis RIN response 2014-15"}]
[null,"5.4 MAXIMUM DEMAND AND UTILISATION AT SPATIAL LEVEL"]
[]
[]
[]
[null,"TABLE 5.4.1 NON-COINCIDENT & COINCIDENT MAXIMUM DEMAND"]
[]
[]
[null,"NETWORK LEVEL","SUBSTATION","FORECASTING ELEMENTS","UNIT","MAX DEMAND",{"$f":"CRY","v":"2014-15"}]
["ED_MDU541_00001","SUBTRANSMISSION SUBSTATION","Adaminaby 33kV","Substation Rating","MVA","Non-Coincident",6]
["ED_MDU541_00002",null,null,null,null,"Coincident",6]
["ED_MDU541_00003",null,null,"Raw Adjusted MD","MW","Non-Coincident",2.133]
["ED_MDU541_00004",null,null,null,null,"Coincident",1.458]
["ED_MDU541_00005",null,null,"Raw Adjusted MD","MVA","Non-Coincident",2.1439088133593742]
["ED_MDU541_00006",null,null,null,null,"Coincident",1.4582499785702039]
["ED_MDU541_00007",null,null,"Date MD occurred",null,"Non-Coincident","2014-07-12"]
["ED_MDU541_00008",null,null,null,null,"Coincident","2014-07-10"]
["ED_MDU541_00009",null,null,"Half hour time period MD occurred",null,"Non-Coincident",1]
["ED_MDU541_00010",null,null,null,null,"Coincident","18:30:00"]
["ED_MDU541_00011",null,null,"Winter/Summer Peaking",null,"Non-Coincident","Winter"]
["ED_MDU541_00012",null,null,null,null,"Coincident","Winter"]
["ED_MDU541_00013",null,null,"Adjustments - Embedded generation","MW","Non-Coincident",0]
["ED_MDU541_00014",null,null,null,null,"Coincident",0]
["ED_MDU541_00015",null,null,"Weather Corrected MD 10% POE","MW","Non-Coincident",1.8854923363940197]
["ED_MDU541_00016",null,null,null,null,"Coincident",1.2888175463959122]
["ED_MDU541_00017",null,null,"Weather Corrected MD 10% POE","MVA","Non-Coincident",1.8951353199796985]
["ED_MDU541_00018",null,null,null,null,"Coincident",1.2888175463959122]
["ED_MDU541_00019",null,null,"Weather Corrected MD 50% POE","MW","Non-Coincident",1.6196086185583807]
["ED_MDU541_00020",null,null,null,null,"Coincident",1.1070742455968678]
["ED_MDU541_00021",null,null,"Weather Corrected MD 50% POE","MVA","Non-Coincident",1.6278917916174935]
["ED_MDU541_00022",null,null,null,null,"Coincident",1.1070742455968678]
["ED_MDU541_00023",null,"Ballina 132kV","Substation Rating","MVA","Non-Coincident",134.4]
["ED_MDU541_00024",null,null,null,null,"Coincident",134.4]
["ED_MDU541_00025",null,null,"Raw Adjusted MD","MW","Non-Coincident",32.483333587646484]
["ED_MDU541_00026",null,null,null,null,"Coincident",14.183333396911621]
["ED_MDU541_00027",null,null,"Raw Adjusted MD","MVA","Non-Coincident",32.681661312914159]
["ED_MDU541_00028",null,null,null,null,"Coincident",14.256414317286415]
["ED_MDU541_00029",null,null,"Date MD occurred",null,"Non-Coincident","2014-05-16"]
["ED_MDU541_00030",null,null,null,null,"Coincident","2014-07-10"]
["ED_MDU541_00031",null,null,"Half hour time period MD occurred",null,"Non-Coincident","10:00:00"]
["ED_MDU541_00032",null,null,null,null,"Coincident","18:30:00"]
["ED_MDU541_00033",null,null,"Winter/Summer Peaking",null,"Non-Coincident","Winter"]
["ED_MDU541_00034",null,null,null,null,"Coincident","Winter"]
["ED_MDU541_00035",null,null,"Adjustments - Embedded generation","MW","Non-Coincident",0]
["ED_MDU541_00036",null,null,null,null,"Coincident",0]
["ED_MDU541_00037",null,null,"Weather Corrected MD 10% POE","MW","Non-Coincident",22.149331848455756]
["ED_MDU541_00038",null,null,null,null,"Coincident",9.6711551256843133]
["ED_MDU541_00039",null,null,"Weather Corrected MD 10% POE","MVA","Non-Coincident",22.284565093216496]
["ED_MDU541_00040",null,null,null,null,"Coincident",9.6711551256843133]
["ED_MDU541_00041",null,null,"Weather Corrected MD 50% POE","MW","Non-Coincident",16.103242407990383]
["ED_MDU541_00042",null,null,null,null,"Coincident",7.0312258816525484]
["ED_MDU541_00043",null,null,"Weather Corrected MD 50% POE","MVA","Non-Coincident",16.201561117416968]
["ED_MDU541_00044",null,null,null,null,"Coincident",7.0312258816525484]
["ED_MDU541_00045",null,"Bega 132kV","Substation Rating","MVA","Non-Coincident",144]
["ED_MDU541_00046",null,null,null,null,"Coincident",144]
["ED_MDU541_00047",null,null,"Raw Adjusted MD","MW","Non-Coincident",38.716667175292969]
["ED_MDU541_00048",null,null,null,null,"Coincident",34.783332824707031]
["ED_MDU541_00049",null,null,"Raw Adjusted MD","MVA","Non-Coincident",38.716789522639793]
["ED_MDU541_00050",null,null,null,null,"Coincident",34.797800507585833]
["ED_MDU541_00051",null,null,"Date MD occurred",null,"Non-Coincident","2014-08-11"]
["ED_MDU541_00052",null,null,null,null,"Coincident","2014-07-10"]
["ED_MDU541_00053",null,null,"Half hour time period MD occurred",null,"Non-Coincident","18:30:00"]
["ED_MDU541_00054",null,null,null,null,"Coincident","18:30:00"]
["ED_MDU541_00055",null,null,"Winter/Summer Peaking",null,"Non-Coincident","Winter"]
["ED_MDU541_00056",null,null,null,null,"Coincident","Winter"]
["ED_MDU541_00057",null,null,"Adjustments - Embedded generation","MW","Non-Coincident",0]
["ED_MDU541_00058",null,null,null,null,"Coincident",0]
["ED_MDU541_00059",null,null,"Weather Corrected MD 10% POE","MW","Non-Coincident",39.0768015405841]
["ED_MDU541_00060",null,null,null,null,"Coincident",35.106880134004612]
["ED_MDU541_00061",null,null,"Weather Corrected MD 10% POE","MVA","Non-Coincident",39.076925025980437]
["ED_MDU541_00062",null,null,null,null,"Coincident",35.106880134004612]
["ED_MDU541_00063",null,null,"Weather Corrected MD 50% POE","MW","Non-Coincident",36.698991299868254]
["ED_MDU541_00064",null,null,null,null,"Coincident",32.970638276658065]
["ED_MDU541_00065",null,null,"Weather Corrected MD 50% POE","MVA","Non-Coincident",36.699107271219724]
["ED_MDU541_00066",null,null,null,null,"Coincident",32.970638276658065]
["ED_MDU541_00067",null,"Boambee South 66kV","Substation Rating","MVA","Non-Coincident",72]
["ED_MDU541_00068",null,null,null,null,"Coincident",72]
["ED_MDU541_00069",null,null,"Raw Adjusted MD","MW","Non-Coincident",7.8480005000000004]
["ED_MDU541_00070",null,null,null,null,"Coincident",7.8480005000000004]
["ED_MDU541_00071",null,null,"Raw Adjusted MD","MVA","Non-Coincident",7.8709028610446108]
["ED_MDU541_00072",null,null,null,null,"Coincident",7.8709028610446108]
["ED_MDU541_00073",null,null,"Date MD occurred",null,"Non-Coincident","2014-07-10"]
["ED_MDU541_00074",null,null,null,null,"Coincident","2014-07-10"]
["ED_MDU541_00075",null,null,"Half hour time period MD occurred",null,"Non-Coincident","18:30:00"]
["ED_MDU541_00076",null,null,null,null,"Coincident","18:30:00"]
["ED_MDU541_00077",null,null,"Winter/Summer Peaking",null,"Non-Coincident","Winter"]
["ED_MDU541_00078",null,null,null,null,"Coincident","Winter"]
["ED_MDU541_00079",null,null,"Adjustments - Embedded generation","MW","Non-Coincident",0]
["ED_MDU541_00080",null,null,null,null,"Coincident",0]
["ED_MDU541_00081",null,null,"Weather Corrected MD 10% POE","MW","Non-Coincident",7.9924410148996392]
["ED_MDU541_00082",null,null,null,null,"Coincident",7.9924410148996392]
["ED_MDU541_00083",null,null,"Weather Corrected MD 10% POE","MVA","Non-Coincident",8.0157648882545125]
["ED_MDU541_00084",null,null,null,null,"Coincident",7.9924410148996392]
["ED_MDU541_00085",null,null,"Weather Corrected MD 50% POE","MW","Non-Coincident",7.5100776218371568]
["ED_MDU541_00086",null,null,null,null,"Coincident",7.5100776218371568]
["ED_MDU541_00087",null,null,"Weather Corrected MD 50% POE","MVA","Non-Coincident",7.5319938423022759]
["ED_MDU541_00088",null,null,null,null,"Coincident",7.5100776218371568]
["ED_MDU541_00089",null,"Boundary Street","Substation Rating","MVA","Non-Coincident",27]
["ED_MDU541_00090",null,null,null,null,"Coincident",27]
["ED_MDU541_00091",null,null,"Raw Adjusted MD","MW","Non-Coincident",4.2901936134821375]
["ED_MDU541_00092",null,null,null,null,"Coincident",3.9036539262590595]
["ED_MDU541_00093",null,null,"Raw Adjusted MD","MVA","Non-Coincident",4.5159932773496188]
["ED_MDU541_00094",null,null,null,null,"Coincident",4.1091093960621681]
["ED_MDU541_00095",null,null,"Date MD occurred",null,"Non-Coincident","2014-07-12"]
["ED_MDU541_00096",null,null,null,null,"Coincident","2014-07-10"]
["ED_MDU541_00097",null,null,"Half hour time period MD occurred",null,"Non-Coincident","18:30:00"]
["ED_MDU541_00098",null,null,null,null,"Coincident","18:30:00"]
["ED_MDU541_00099",null,null,"Winter/Summer Peaking",null,"Non-Coincident","Winter"]
["ED_MDU541_00100",null,null,null,null,"Coincident","Winter"]
["ED_MDU541_00101",null,null,"Adjustments - Embedded generation","MW","Non-Coincident",0]
["ED_MDU541_00102",null,null,null,null,"Coincident",0]
["ED_MDU541_00103",null,null,"Weather Corrected MD 10% POE","MW","Non-Coincident",4.3720270365415468]
["ED_MDU541_00104",null,null,null,null,"Coincident",3.978114286794117]
["ED_MDU541_00105",null,null,"Weather Corrected MD 10% POE","MVA","Non-Coincident",4.6021337226753127]
["ED_MDU541_00106",null,null,null,null,"Coincident",3.978114286794117]
["ED_MDU541_00107",null,null,"Weather Corrected MD 50% POE","MW","Non-Coincident",4.1366197197357577]
["ED_MDU541_00108",null,null,null,null,"Coincident",3.7639167984497242]
["ED_MDU541_00109",null,null,"Weather Corrected MD 50% POE","MVA","Non-Coincident",4.3543365470902717]
["ED_MDU541_00110",null,null,null,null,"Coincident",3.7639167984497242]
["ED_MDU541_00111",null,"Cartwrights Hill 33kV","Substation Rating","MVA","Non-Coincident",9.9]
["ED_MDU541_00112",null,null,null,null,"Coincident",10.799999999999999]
["ED_MDU541_00113",null,null,"Raw Adjusted MD","MW","Non-Coincident",1.8354999721050262]
["ED_MDU541_00114",null,null,null,null,"Coincident",0.98483334481716156]
["ED_MDU541_00115",null,null,"Raw Adjusted MD","MVA","Non-Coincident",1.9174666272354519]
["ED_MDU541_00116",null,null,null,null,"Coincident",0.99227129409689896]
["ED_MDU541_00117",null,null,"Date MD occurred",null,"Non-Coincident","2015-01-03"]
["ED_MDU541_00118",null,null,null,null,"Coincident","2014-07-10"]
["ED_MDU541_00119",null,null,"Half hour time period MD occurred",null,"Non-Coincident","20:30:00"]
["ED_MDU541_00120",null,null,null,null,"Coincident","18:30:00"]
["ED_MDU541_00121",null,null,"Winter/Summer Peaking",null,"Non-Coincident","Summer"]
["ED_MDU541_00122",null,null,null,null,"Coincident","Winter"]
["ED_MDU541_00123",null,null,"Adjustments - Embedded generation","MW","Non-Coincident",0]
["ED_MDU541_00124",null,null,null,null,"Coincident",0]
["ED_MDU541_00125",null,null,"Weather Corrected MD 10% POE","MW","Non-Coincident",1.7423482874417491]
["ED_MDU541_00126",null,null,null,null,"Coincident",0.93485301979592006]
["ED_MDU541_00127",null,null,"Weather Corrected MD 10% POE","MVA","Non-Coincident",1.8201551320967455]
["ED_MDU541_00128",null,null,null,null,"Coincident",0.93485301979592006]
["ED_MDU541_00129",null,null,"Weather Corrected MD 50% POE","MW","Non-Coincident",1.486697186917209]
["ED_MDU541_00130",null,null,null,null,"Coincident",0.79768400194677958]
["ED_MDU541_00131",null,null,"Weather Corrected MD 50% POE","MVA","Non-Coincident",1.5530875968629327]
["ED_MDU541_00132",null,null,null,null,"Coincident",0.79768400194677958]
["ED_MDU541_00133",null,"Casino 132/66kV","Substation Rating","MVA","Non-Coincident",66]
["ED_MDU541_00134",null,null,null,null,"Coincident",72]
["ED_MDU541_00135",null,null,"Raw Adjusted MD","MW","Non-Coincident",27.149999618530273]
["ED_MDU541_00136",null,null,null,null,"Coincident",19.933332443237305]
["ED_MDU541_00137",null,null,"Raw Adjusted MD","MVA","Non-Coincident",27.909501204340994]
["ED_MDU541_00138",null,null,null,null,"Coincident",20.010587698717334]
["ED_MDU541_00139",null,null,"Date MD occurred",null,"Non-Coincident","2014-12-17"]
["ED_MDU541_00140",null,null,null,null,"Coincident","2014-07-10"]
["ED_MDU541_00141",null,null,"Half hour time period MD occurred",null,"Non-Coincident","19:00:00"]
["ED_MDU541_00142",null,null,null,null,"Coincident","18:30:00"]
["ED_MDU541_00143",null,null,"Winter/Summer Peaking",null,"Non-Coincident","Summer"]
["ED_MDU541_00144",null,null,null,null,"Coincident","Winter"]
["ED_MDU541_00145",null,null,"Adjustments - Embedded generation","MW","Non-Coincident",0]
["ED_MDU541_00146",null,null,null,null,"Coincident",0]
["ED_MDU541_00147",null,null,"Weather Corrected MD 10% POE","MW","Non-Coincident",27.424166343887318]
["ED_MDU541_00148",null,null,null,null,"Coincident",20.134623660850647]
["ED_MDU541_00149",null,null,"Weather Corrected MD 10% POE","MVA","Non-Coincident",28.191337545374317]
["ED_MDU541_00150",null,null,null,null,"Coincident",20.134623660850647]
["ED_MDU541_00151",null,null,"Weather Corrected MD 50% POE","MW","Non-Coincident",24.938576212940845]
["ED_MDU541_00152",null,null,null,null,"Coincident",18.309721447446197]
["ED_MDU541_00153",null,null,"Weather Corrected MD 50% POE","MVA","Non-Coincident",25.636214829799709]
["ED_MDU541_00154",null,null,null,null,"Coincident",18.309721447446197]
["ED_MDU541_00155",null,"Casino 66/33kV","Substation Rating","MVA","Non-Coincident",12.65]
["ED_MDU541_00156",null,null,null,null,"Coincident",13.799999999999999]
["ED_MDU541_00157",null,null,"Raw Adjusted MD","MW","Non-Coincident",3.0166666507720947]
["ED_MDU541_00158",null,null,null,null,"Coincident",2.8316667079925537]
["ED_MDU541_00159",null,null,"Raw Adjusted MD","MVA","Non-Coincident",3.1037360889302135]
["ED_MDU541_00160",null,null,null,null,"Coincident",2.8762866354329493]
["ED_MDU541_00161",null,null,"Date MD occurred",null,"Non-Coincident","2014-11-15"]
["ED_MDU541_00162",null,null,null,null,"Coincident","2014-07-10"]
["ED_MDU541_00163",null,null,"Half hour time period MD occurred",null,"Non-Coincident","20:00:00"]
["ED_MDU541_00164",null,null,null,null,"Coincident","18:30:00"]
["ED_MDU541_00165",null,null,"Winter/Summer Peaking",null,"Non-Coincident","Summer"]
["ED_MDU541_00166",null,null,null,null,"Coincident","Winter"]
["ED_MDU541_00167",null,null,"Adjustments - Embedded generation","MW","Non-Coincident",0]
["ED_MDU541_00168",null,null,null,null,"Coincident",0]
["ED_MDU541_00169",null,null,"Weather Corrected MD 10% POE","MW","Non-Coincident",2.937083037636139]
["ED_MDU541_00170",null,null,null,null,"Coincident",2.7569636353938072]
["ED_MDU541_00171",null,null,"Weather Corrected MD 10% POE","MVA","Non-Coincident",3.0218554700974014]
["ED_MDU541_00172",null,null,null,null,"Coincident",2.7569636353938072]
["ED_MDU541_00173",null,null,"Weather Corrected MD 50% POE","MW","Non-Coincident",2.697017002655143]
["ED_MDU541_00174",null,null,null,null,"Coincident",2.5316198776400376]
["ED_MDU541_00175",null,null,"Weather Corrected MD 50% POE","MVA","Non-Coincident",2.7748604578025571]
["ED_MDU541_00176",null,null,null,null,"Coincident",2.5316198776400376]
["ED_MDU541_00177",null,"Coleambally 132","Substation Rating","MVA","Non-Coincident",55.000000000000007]
["ED_MDU541_00178",null,null,null,null,"Coincident",60]
["ED_MDU541_00179",null,null,"Raw Adjusted MD","MW","Non-Coincident",10.186367999999998]
["ED_MDU541_00180",null,null,null,null,"Coincident",3.5857599999999996]
["ED_MDU541_00181",null,null,"Raw Adjusted MD","MVA","Non-Coincident",11.024158069828278]
["ED_MDU541_00182",null,null,null,null,"Coincident",3.5952116057450634]
["ED_MDU541_00183",null,null,"Date MD occurred",null,"Non-Coincident","2015-01-03"]
["ED_MDU541_00184",null,null,null,null,"Coincident","2014-07-10"]
["ED_MDU541_00185",null,null,"Half hour time period MD occurred",null,"Non-Coincident","18:00:00"]
["ED_MDU541_00186",null,null,null,null,"Coincident","18:30:00"]
["ED_MDU541_00187",null,null,"Winter/Summer Peaking",null,"Non-Coincident","Summer"]
["ED_MDU541_00188",null,null,null,null,"Coincident","Winter"]
["ED_MDU541_00189",null,null,"Adjustments - Embedded generation","MW","Non-Coincident",0]
["ED_MDU541_00190",null,null,null,null,"Coincident",0]
["ED_MDU541_00191",null,null,"Weather Corrected MD 10% POE","MW","Non-Coincident",11.194953446905771]
["ED_MDU541_00192",null,null,null,null,"Coincident",3.9407977673471879]
["ED_MDU541_00193",null,null,"Weather Corrected MD 10% POE","MVA","Non-Coincident",12.115695838110128]
["ED_MDU541_00194",null,null,null,null,"Coincident",3.9407977673471879]
["ED_MDU541_00195",null,null,"Weather Corrected MD 50% POE","MW","Non-Coincident",9.6170514855788607]
["ED_MDU541_00196",null,null,null,null,"Coincident",3.3853517303644693]
["ED_MDU541_00197",null,null,"Weather Corrected MD 50% POE","MVA","Non-Coincident",10.408017434938365]
["ED_MDU541_00198",null,null,null,null,"Coincident",3.3853517303644693]
["ED_MDU541_00199",null,"Dubbo 132/66kV","Substation Rating","MVA","Non-Coincident",148.5]
["ED_MDU541_00200",null,null,null,null,"Coincident",162]
["ED_MDU541_00201",null,null,"Raw Adjusted MD","MW","Non-Coincident",61.587000000000003]
["ED_MDU541_00202",null,null,null,null,"Coincident",44.809199999999997]
["ED_MDU541_00203",null,null,"Raw Adjusted MD","MVA","Non-Coincident",62.053228012408837]
["ED_MDU541_00204",null,null,null,null,"Coincident",44.82057675532522]
["ED_MDU541_00205",null,null,"Date MD occurred",null,"Non-Coincident","2015-02-24"]
["ED_MDU541_00206",null,null,null,null,"Coincident","2014-07-10"]
["ED_MDU541_00207",null,null,"Half hour time period MD occurred",null,"Non-Coincident","15:00:00"]
["ED_MDU541_00208",null,null,null,null,"Coincident","18:30:00"]
["ED_MDU541_00209",null,null,"Winter/Summer Peaking",null,"Non-Coincident","Summer"]
["ED_MDU541_00210",null,null,null,null,"Coincident","Winter"]
["ED_MDU541_00211",null,null,"Adjustments - Embedded generation","MW","Non-Coincident",0]
["ED_MDU541_00212",null,null,null,null,"Coincident",0]
["ED_MDU541_00213",null,null,"Weather Corrected MD 10% POE","MW","Non-Coincident",63.480474498659298]
["ED_MDU541_00214",null,null,null,null,"Coincident",46.186845891264774]
["ED_MDU541_00215",null,null,"Weather Corrected MD 10% POE","MVA","Non-Coincident",63.961036556435772]
["ED_MDU541_00216",null,null,null,null,"Coincident",46.186845891264774]
["ED_MDU541_00217",null,null,"Weather Corrected MD 50% POE","MW","Non-Coincident",59.238460253160405]
["ED_MDU541_00218",null,null,null,null,"Coincident",43.100459726499338]
["ED_MDU541_00219",null,null,"Weather Corrected MD 50% POE","MVA","Non-Coincident",59.686909269705957]
["ED_MDU541_00220",null,null,null,null,"Coincident",43.100459726499338]
["ED_MDU541_00221",null,"Goulburn 132/33kV","Substation Rating","MVA","Non-Coincident",72]
["ED_MDU541_00222",null,null,null,null,"Coincident",72]
["ED_MDU541_00223",null,null,"Raw Adjusted MD","MW","Non-Coincident",8.6472000000000016]
["ED_MDU541_00224",null,null,null,null,"Coincident",8.4239999999999995]
["ED_MDU541_00225",null,null,"Raw Adjusted MD","MVA","Non-Coincident",8.680814597720655]
["ED_MDU541_00226",null,null,null,null,"Coincident",8.4534991192996536]
["ED_MDU541_00227",null,null,"Date MD occurred",null,"Non-Coincident","2014-06-24"]
["ED_MDU541_00228",null,null,null,null,"Coincident","2014-07-10"]
["ED_MDU541_00229",null,null,"Half hour time period MD occurred",null,"Non-Coincident","18:00:00"]
["ED_MDU541_00230",null,null,null,null,"Coincident","18:30:00"]
["ED_MDU541_00231",null,null,"Winter/Summer Peaking",null,"Non-Coincident","Winter"]
["ED_MDU541_00232",null,null,null,null,"Coincident","Winter"]
["ED_MDU541_00233",null,null,"Adjustments - Embedded generation","MW","Non-Coincident",0]
["ED_MDU541_00234",null,null,null,null,"Coincident",0]
["ED_MDU541_00235",null,null,"Weather Corrected MD 10% POE","MW","Non-Coincident",8.9266164755028132]
["ED_MDU541_00236",null,null,null,null,"Coincident",8.6962042267596082]
["ED_MDU541_00237",null,null,"Weather Corrected MD 10% POE","MVA","Non-Coincident",8.9613172597833408]
["ED_MDU541_00238",null,null,null,null,"Coincident",8.6962042267596082]
["ED_MDU541_00239",null,null,"Weather Corrected MD 50% POE","MW","Non-Coincident",8.5733707081325754]
["ED_MDU541_00240",null,null,null,null,"Coincident",8.352076376781941]
["ED_MDU541_00241",null,null,"Weather Corrected MD 50% POE","MVA","Non-Coincident",8.606698306368294]
["ED_MDU541_00242",null,null,null,null,"Coincident",8.352076376781941]
["ED_MDU541_00243",null,"Goulburn 132/66kV","Substation Rating","MVA","Non-Coincident",144]
["ED_MDU541_00244",null,null,null,null,"Coincident",144]
["ED_MDU541_00245",null,null,"Raw Adjusted MD","MW","Non-Coincident",29.231999999999999]
["ED_MDU541_00246",null,null,null,null,"Coincident",22.968]
["ED_MDU541_00247",null,null,"Raw Adjusted MD","MVA","Non-Coincident",29.763866458509721]
["ED_MDU541_00248",null,null,null,null,"Coincident",23.70218675481231]
["ED_MDU541_00249",null,null,"Date MD occurred",null,"Non-Coincident","2014-06-16"]
["ED_MDU541_00250",null,null,null,null,"Coincident","2014-07-10"]
["ED_MDU541_00251",null,null,"Half hour time period MD occurred",null,"Non-Coincident","18:00:00"]
["ED_MDU541_00252",null,null,null,null,"Coincident","18:30:00"]
["ED_MDU541_00253",null,null,"Winter/Summer Peaking",null,"Non-Coincident","Winter"]
["ED_MDU541_00254",null,null,null,null,"Coincident","Winter"]
["ED_MDU541_00255",null,null,"Adjustments - Embedded generation","MW","Non-Coincident",3.1286059999999996]
["ED_MDU541_00256",null,null,null,null,"Coincident",8.504194]
["ED_MDU541_00257",null,null,"Weather Corrected MD 10% POE","MW","Non-Coincident",29.868155013344932]
["ED_MDU541_00258",null,null,null,null,"Coincident",23.467836081913873]
["ED_MDU541_00259",null,null,"Weather Corrected MD 10% POE","MVA","Non-Coincident",30.411596099454918]
["ED_MDU541_00260",null,null,null,null,"Coincident",23.467836081913873]
["ED_MDU541_00261",null,null,"Weather Corrected MD 50% POE","MW","Non-Coincident",27.229275943823133]
["ED_MDU541_00262",null,null,null,null,"Coincident",21.394431098718176]
["ED_MDU541_00263",null,null,"Weather Corrected MD 50% POE","MVA","Non-Coincident",27.724703508273912]
["ED_MDU541_00264",null,null,null,null,"Coincident",21.394431098718176]
["ED_MDU541_00265",null,"Hawks Nest 132/33kV","Substation Rating","MVA","Non-Coincident",33]
["ED_MDU541_00266",null,null,null,null,"Coincident",36]
["ED_MDU541_00267",null,null,"Raw Adjusted MD","MW","Non-Coincident",7.92]
["ED_MDU541_00268",null,null,null,null,"Coincident",6.84]
["ED_MDU541_00269",null,null,"Raw Adjusted MD","MVA","Non-Coincident",8.0312280505536631]
["ED_MDU541_00270",null,null,null,null,"Coincident",6.8415156215563808]
["ED_MDU541_00271",null,null,"Date MD occurred",null,"Non-Coincident","2015-01-14"]
["ED_MDU541_00272",null,null,null,null,"Coincident","2014-07-10"]
["ED_MDU541_00273",null,null,"Half hour time period MD occurred",null,"Non-Coincident","18:00:00"]
["ED_MDU541_00274",null,null,null,null,"Coincident","18:30:00"]
["ED_MDU541_00275",null,null,"Winter/Summer Peaking",null,"Non-Coincident","Summer"]
["ED_MDU541_00276",null,null,null,null,"Coincident","Winter"]
["ED_MDU541_00277",null,null,"Adjustments - Embedded generation","MW","Non-Coincident",0]
["ED_MDU541_00278",null,null,null,null,"Coincident",0]
["ED_MDU541_00279",null,null,"Weather Corrected MD 10% POE","MW","Non-Coincident",7.6845793356610752]
["ED_MDU541_00280",null,null,null,null,"Coincident",6.6366821535254745]
["ED_MDU541_00281",null,null,"Weather Corrected MD 10% POE","MVA","Non-Coincident",7.792501151169982]
["ED_MDU541_00282",null,null,null,null,"Coincident",6.6366821535254745]
["ED_MDU541_00283",null,null,"Weather Corrected MD 50% POE","MW","Non-Coincident",6.8084989477779878]
["ED_MDU541_00284",null,null,null,null,"Coincident",5.8800672730809893]
["ED_MDU541_00285",null,null,"Weather Corrected MD 50% POE","MVA","Non-Coincident",6.9041171378231914]
["ED_MDU541_00286",null,null,null,null,"Coincident",5.8800672730809893]
["ED_MDU541_00287",null,"Hay 132","Substation Rating","MVA","Non-Coincident",66]
["ED_MDU541_00288",null,null,null,null,"Coincident",72]
["ED_MDU541_00289",null,null,"Raw Adjusted MD","MW","Non-Coincident",8.1972000000000005]
["ED_MDU541_00290",null,null,null,null,"Coincident",5.0687999999999995]
["ED_MDU541_00291",null,null,"Raw Adjusted MD","MVA","Non-Coincident",8.4825389123775921]
["ED_MDU541_00292",null,null,null,null,"Coincident",5.0687999999999995]
["ED_MDU541_00293",null,null,"Date MD occurred",null,"Non-Coincident","2015-02-11"]
["ED_MDU541_00294",null,null,null,null,"Coincident","2014-07-10"]
["ED_MDU541_00295",null,null,"Half hour time period MD occurred",null,"Non-Coincident","17:30:00"]
["ED_MDU541_00296",null,null,null,null,"Coincident","18:30:00"]
["ED_MDU541_00297",null,null,"Winter/Summer Peaking",null,"Non-Coincident","Summer"]
["ED_MDU541_00298",null,null,null,null,"Coincident","Winter"]
["ED_MDU541_00299",null,null,"Adjustments - Embedded generation","MW","Non-Coincident",0]
["ED_MDU541_00300",null,null,null,null,"Coincident",0]
["ED_MDU541_00301",null,null,"Weather Corrected MD 10% POE","MW","Non-Coincident",9.005413513497917]
["ED_MDU541_00302",null,null,null,null,"Coincident",5.5685648779117543]
["ED_MDU541_00303",null,null,"Weather Corrected MD 10% POE","MVA","Non-Coincident",9.3188857842064472]
["ED_MDU541_00304",null,null,null,null,"Coincident",5.5685648779117543]
["ED_MDU541_00305",null,null,"Weather Corrected MD 50% POE","MW","Non-Coincident",8.0183545496340898]
["ED_MDU541_00306",null,null,null,null,"Coincident",4.9582095765853298]
["ED_MDU541_00307",null,null,"Weather Corrected MD 50% POE","MVA","Non-Coincident",8.2974679744926405]
["ED_MDU541_00308",null,null,null,null,"Coincident",4.9582095765853298]
["ED_MDU541_00309",null,"Herons Creek","Substation Rating","MVA","Non-Coincident",72]
["ED_MDU541_00310",null,null,null,null,"Coincident",72]
["ED_MDU541_00311",null,null,"Raw Adjusted MD","MW","Non-Coincident",9.9719999999999995]
["ED_MDU541_00312",null,null,null,null,"Coincident",9]
["ED_MDU541_00313",null,null,"Raw Adjusted MD","MVA","Non-Coincident",10.350109564637469]
["ED_MDU541_00314",null,null,null,null,"Coincident",9.2075586340788504]
["ED_MDU541_00315",null,null,"Date MD occurred",null,"Non-Coincident","2014-04-10"]
["ED_MDU541_00316",null,null,null,null,"Coincident","2014-07-10"]
["ED_MDU541_00317",null,null,"Half hour time period MD occurred",null,"Non-Coincident","18:30:00"]
["ED_MDU541_00318",null,null,null,null,"Coincident","18:30:00"]
["ED_MDU541_00319",null,null,"Winter/Summer Peaking",null,"Non-Coincident","Winter"]
["ED_MDU541_00320",null,null,null,null,"Coincident","Winter"]
["ED_MDU541_00321",null,null,"Adjustments - Embedded generation","MW","Non-Coincident",0]
["ED_MDU541_00322",null,null,null,null,"Coincident",0]
["ED_MDU541_00323",null,null,"Weather Corrected MD 10% POE","MW","Non-Coincident",9.8047162208182037]
["ED_MDU541_00324",null,null,null,null,"Coincident",8.8490218599442283]
["ED_MDU541_00325",null,null,"Weather Corrected MD 10% POE","MVA","Non-Coincident",10.17648286558831]
["ED_MDU541_00326",null,null,null,null,"Coincident",8.8490218599442283]
["ED_MDU541_00327",null,null,"Weather Corrected MD 50% POE","MW","Non-Coincident",9.2346615732389861]
["ED_MDU541_00328",null,null,null,null,"Coincident",8.3345321058113591]
["ED_MDU541_00329",null,null,"Weather Corrected MD 50% POE","MVA","Non-Coincident",9.5848133850151349]
["ED_MDU541_00330",null,null,null,null,"Coincident",8.3345321058113591]
["ED_MDU541_00331",null,"Hillston","Substation Rating","MVA","Non-Coincident",50.6]
["ED_MDU541_00332",null,null,null,null,"Coincident",55.199999999999996]
["ED_MDU541_00333",null,null,"Raw Adjusted MD","MW","Non-Coincident",9.7333335876464844]
["ED_MDU541_00334",null,null,null,null,"Coincident",5.7733335494995117]
["ED_MDU541_00335",null,null,"Raw Adjusted MD","MVA","Non-Coincident",9.7473388588743344]
["ED_MDU541_00336",null,null,null,null,"Coincident",5.8627451108560669]
["ED_MDU541_00337",null,null,"Date MD occurred",null,"Non-Coincident","2014-12-01"]
["ED_MDU541_00338",null,null,null,null,"Coincident","2014-07-10"]
["ED_MDU541_00339",null,null,"Half hour time period MD occurred",null,"Non-Coincident","17:00:00"]
["ED_MDU541_00340",null,null,null,null,"Coincident","18:30:00"]
["ED_MDU541_00341",null,null,"Winter/Summer Peaking",null,"Non-Coincident","Summer"]
["ED_MDU541_00342",null,null,null,null,"Coincident","Winter"]
["ED_MDU541_00343",null,null,"Adjustments - Embedded generation","MW","Non-Coincident",0]
["ED_MDU541_00344",null,null,null,null,"Coincident",0]
["ED_MDU541_00345",null,null,"Weather Corrected MD 10% POE","MW","Non-Coincident",9.4262201081875929]
["ED_MDU541_00346",null,null,null,null,"Coincident",5.5911689767457418]
["ED_MDU541_00347",null,null,"Weather Corrected MD 10% POE","MVA","Non-Coincident",9.4397834745388849]
["ED_MDU541_00348",null,null,null,null,"Coincident",5.5911689767457418]
["ED_MDU541_00349",null,null,"Weather Corrected MD 50% POE","MW","Non-Coincident",8.3062158675711117]
["ED_MDU541_00350",null,null,null,null,"Coincident",4.9268376867815631]
["ED_MDU541_00351",null,null,"Weather Corrected MD 50% POE","MVA","Non-Coincident",8.3181676624063421]
["ED_MDU541_00352",null,null,null,null,"Coincident",4.9268376867815631]
["ED_MDU541_00353",null,"Jindabyne 33kV","Substation Rating","MVA","Non-Coincident",18]
["ED_MDU541_00354",null,null,null,null,"Coincident",18]
["ED_MDU541_00355",null,null,"Raw Adjusted MD","MW","Non-Coincident",0.74790000000000001]
["ED_MDU541_00356",null,null,null,null,"Coincident",0.65339999999999998]
["ED_MDU541_00357",null,null,"Raw Adjusted MD","MVA","Non-Coincident",0.74790000000000001]
["ED_MDU541_00358",null,null,null,null,"Coincident",0.65339999999999998]
["ED_MDU541_00359",null,null,"Date MD occurred",null,"Non-Coincident","2014-08-03"]
["ED_MDU541_00360",null,null,null,null,"Coincident","2014-07-10"]
["ED_MDU541_00361",null,null,"Half hour time period MD occurred",null,"Non-Coincident","07:30:00"]
["ED_MDU541_00362",null,null,null,null,"Coincident","18:30:00"]
["ED_MDU541_00363",null,null,"Winter/Summer Peaking",null,"Non-Coincident","Winter"]
["ED_MDU541_00364",null,null,null,null,"Coincident","Winter"]
["ED_MDU541_00365",null,null,"Adjustments - Embedded generation","MW","Non-Coincident",0]
["ED_MDU541_00366",null,null,null,null,"Coincident",0]
["ED_MDU541_00367",null,null,"Weather Corrected MD 10% POE","MW","Non-Coincident",0.84605919097430815]
["ED_MDU541_00368",null,null,null,null,"Coincident",0.73915640511112846]
["ED_MDU541_00369",null,null,"Weather Corrected MD 10% POE","MVA","Non-Coincident",0.84605919097430815]
["ED_MDU541_00370",null,null,null,null,"Coincident",0.73915640511112846]
["ED_MDU541_00371",null,null,"Weather Corrected MD 50% POE","MW","Non-Coincident",0.70200410247409106]
["ED_MDU541_00372",null,null,null,null,"Coincident",0.61330322310010843]
["ED_MDU541_00373",null,null,"Weather Corrected MD 50% POE","MVA","Non-Coincident",0.70200410247409106]
["ED_MDU541_00374",null,null,null,null,"Coincident",0.61330322310010843]
["ED_MDU541_00375",null,"Lismore 132/66kV","Substation Rating","MVA","Non-Coincident",396.00000000000006]
["ED_MDU541_00376",null,null,null,null,"Coincident",432]
["ED_MDU541_00377",null,null,"Raw Adjusted MD","MW","Non-Coincident",73.138465999999994]
["ED_MDU541_00378",null,null,null,null,"Coincident",66.35826999999999]
["ED_MDU541_00379",null,null,"Raw Adjusted MD","MVA","Non-Coincident",73.189491280673153]
["ED_MDU541_00380",null,null,null,null,"Coincident",69.307508432021436]
["ED_MDU541_00381",null,null,"Date MD occurred",null,"Non-Coincident","2015-03-20"]
["ED_MDU541_00382",null,null,null,null,"Coincident","2014-07-10"]
["ED_MDU541_00383",null,null,"Half hour time period MD occurred",null,"Non-Coincident","14:00:00"]
["ED_MDU541_00384",null,null,null,null,"Coincident","18:30:00"]
["ED_MDU541_00385",null,null,"Winter/Summer Peaking",null,"Non-Coincident","Summer"]
["ED_MDU541_00386",null,null,null,null,"Coincident","Winter"]
["ED_MDU541_00387",null,null,"Adjustments - Embedded generation","MW","Non-Coincident",0]
["ED_MDU541_00388",null,null,null,null,"Coincident",0]
["ED_MDU541_00389",null,null,"Weather Corrected MD 10% POE","MW","Non-Coincident",79.620815428120551]
["ED_MDU541_00390",null,null,null,null,"Coincident",72.239682574138058]
["ED_MDU541_00391",null,null,"Weather Corrected MD 10% POE","MVA","Non-Coincident",79.676363140245741]
["ED_MDU541_00392",null,null,null,null,"Coincident",72.239682574138058]
["ED_MDU541_00393",null,null,"Weather Corrected MD 50% POE","MW","Non-Coincident",68.489056138447609]
["ED_MDU541_00394",null,null,null,null,"Coincident",62.139876973633321]
["ED_MDU541_00395",null,null,"Weather Corrected MD 50% POE","MVA","Non-Coincident",68.536837743718138]
["ED_MDU541_00396",null,null,null,null,"Coincident",62.139876973633321]
["ED_MDU541_00397",null,"Maclean 66/33kV","Substation Rating","MVA","Non-Coincident",11]
["ED_MDU541_00398",null,null,null,null,"Coincident",12]
["ED_MDU541_00399",null,null,"Raw Adjusted MD","MW","Non-Coincident",0.4543082734758544]
["ED_MDU541_00400",null,null,null,null,"Coincident",0.28356558183557812]
["ED_MDU541_00401",null,null,"Raw Adjusted MD","MVA","Non-Coincident",0.47821923523774151]
["ED_MDU541_00402",null,null,null,null,"Coincident",0.29849008614271383]
["ED_MDU541_00403",null,null,"Date MD occurred",null,"Non-Coincident","2015-01-01"]
["ED_MDU541_00404",null,null,null,null,"Coincident","2014-07-10"]
["ED_MDU541_00405",null,null,"Half hour time period MD occurred",null,"Non-Coincident","20:30:00"]
["ED_MDU541_00406",null,null,null,null,"Coincident","18:30:00"]
["ED_MDU541_00407",null,null,"Winter/Summer Peaking",null,"Non-Coincident","Summer"]
["ED_MDU541_00408",null,null,null,null,"Coincident","Winter"]
["ED_MDU541_00409",null,null,"Adjustments - Embedded generation","MW","Non-Coincident",0]
["ED_MDU541_00410",null,null,null,null,"Coincident",0]
["ED_MDU541_00411",null,null,"Weather Corrected MD 10% POE","MW","Non-Coincident",0.48154106766755583]
["ED_MDU541_00412",null,null,null,null,"Coincident",0.30056347419376955]
["ED_MDU541_00413",null,null,"Weather Corrected MD 10% POE","MVA","Non-Coincident",0.50688533438690098]
["ED_MDU541_00414",null,null,null,null,"Coincident",0.30056347419376955]
["ED_MDU541_00415",null,null,"Weather Corrected MD 50% POE","MW","Non-Coincident",0.38731882630880393]
["ED_MDU541_00416",null,null,null,null,"Coincident",0.24175278054663574]
["ED_MDU541_00417",null,null,"Weather Corrected MD 50% POE","MVA","Non-Coincident",0.40770402769347791]
["ED_MDU541_00418",null,null,null,null,"Coincident",0.24175278054663574]
["ED_MDU541_00419",null,"Marulan South 33kV","Substation Rating","MVA","Non-Coincident",16.5]
["ED_MDU541_00420",null,null,null,null,"Coincident",18]
["ED_MDU541_00421",null,null,"Raw Adjusted MD","MW","Non-Coincident",6.6016664505004883]
["ED_MDU541_00422",null,null,null,null,"Coincident",3.9800000190734863]
["ED_MDU541_00423",null,null,"Raw Adjusted MD","MVA","Non-Coincident",7.3247556158649338]
["ED_MDU541_00424",null,null,null,null,"Coincident",4.6017931165434236]
["ED_MDU541_00425",null,null,"Date MD occurred",null,"Non-Coincident","2014-10-21"]
["ED_MDU541_00426",null,null,null,null,"Coincident","2014-07-10"]
["ED_MDU541_00427",null,null,"Half hour time period MD occurred",null,"Non-Coincident","15:30:00"]
["ED_MDU541_00428",null,null,null,null,"Coincident","18:30:00"]
["ED_MDU541_00429",null,null,"Winter/Summer Peaking",null,"Non-Coincident","Summer"]
["ED_MDU541_00430",null,null,null,null,"Coincident","Winter"]
["ED_MDU541_00431",null,null,"Adjustments - Embedded generation","MW","Non-Coincident",0]
["ED_MDU541_00432",null,null,null,null,"Coincident",0]
["ED_MDU541_00433",null,null,"Weather Corrected MD 10% POE","MW","Non-Coincident",6.3088187591465115]
["ED_MDU541_00434",null,null,null,null,"Coincident",3.8034485640865272]
["ED_MDU541_00435",null,null,"Weather Corrected MD 10% POE","MVA","Non-Coincident",6.9998319336520138]
["ED_MDU541_00436",null,null,null,null,"Coincident",3.8034485640865272]
["ED_MDU541_00437",null,null,"Weather Corrected MD 50% POE","MW","Non-Coincident",4.7767925860439364]
["ED_MDU541_00438",null,null,null,null,"Coincident",2.8798235606289433]
["ED_MDU541_00439",null,null,"Weather Corrected MD 50% POE","MVA","Non-Coincident",5.3000009289767611]
["ED_MDU541_00440",null,null,null,null,"Coincident",2.8798235606289433]
["ED_MDU541_00441",null,"Moruya North","Substation Rating","MVA","Non-Coincident",90]
["ED_MDU541_00442",null,null,null,null,"Coincident",90]
["ED_MDU541_00443",null,null,"Raw Adjusted MD","MW","Non-Coincident",23.779999732971191]
["ED_MDU541_00444",null,null,null,null,"Coincident",21.765000343322754]
["ED_MDU541_00445",null,null,"Raw Adjusted MD","MVA","Non-Coincident",23.787039376450409]
["ED_MDU541_00446",null,null,null,null,"Coincident",21.786146978654536]
["ED_MDU541_00447",null,null,"Date MD occurred",null,"Non-Coincident","2014-07-12"]
["ED_MDU541_00448",null,null,null,null,"Coincident","2014-07-10"]
["ED_MDU541_00449",null,null,"Half hour time period MD occurred",null,"Non-Coincident","18:30:00"]
["ED_MDU541_00450",null,null,null,null,"Coincident","18:30:00"]
["ED_MDU541_00451",null,null,"Winter/Summer Peaking",null,"Non-Coincident","Winter"]
["ED_MDU541_00452",null,null,null,null,"Coincident","Winter"]
["ED_MDU541_00453",null,null,"Adjustments - Embedded generation","MW","Non-Coincident",0]
["ED_MDU541_00454",null,null,null,null,"Coincident",0]
["ED_MDU541_00455",null,null,"Weather Corrected MD 10% POE","MW","Non-Coincident",24.562626913705003]
["ED_MDU541_00456",null,null,null,null,"Coincident",22.481311573290832]
["ED_MDU541_00457",null,null,"Weather Corrected MD 10% POE","MVA","Non-Coincident",24.569898239959297]
["ED_MDU541_00458",null,null,null,null,"Coincident",22.481311573290832]
["ED_MDU541_00459",null,null,"Weather Corrected MD 50% POE","MW","Non-Coincident",23.201298221735453]
["ED_MDU541_00460",null,null,null,null,"Coincident",21.235335131709501]
["ED_MDU541_00461",null,null,"Weather Corrected MD 50% POE","MVA","Non-Coincident",23.208166550985666]
["ED_MDU541_00462",null,null,null,null,"Coincident",21.235335131709501]
["ED_MDU541_00463",null,"Morven","Substation Rating","MVA","Non-Coincident",36]
["ED_MDU541_00464",null,null,null,null,"Coincident",36]
["ED_MDU541_00465",null,null,"Raw Adjusted MD","MW","Non-Coincident",7.320000171661377]
["ED_MDU541_00466",null,null,null,null,"Coincident",5.003333568572998]
["ED_MDU541_00467",null,null,"Raw Adjusted MD","MVA","Non-Coincident",7.3209458376743122]
["ED_MDU541_00468",null,null,null,null,"Coincident",5.0047716030545883]
["ED_MDU541_00469",null,null,"Date MD occurred",null,"Non-Coincident","2014-07-22"]
["ED_MDU541_00470",null,null,null,null,"Coincident","2014-07-10"]
["ED_MDU541_00471",null,null,"Half hour time period MD occurred",null,"Non-Coincident","01:30:00"]
["ED_MDU541_00472",null,null,null,null,"Coincident","18:30:00"]
["ED_MDU541_00473",null,null,"Winter/Summer Peaking",null,"Non-Coincident","Winter"]
["ED_MDU541_00474",null,null,null,null,"Coincident","Winter"]
["ED_MDU541_00475",null,null,"Adjustments - Embedded generation","MW","Non-Coincident",0]
["ED_MDU541_00476",null,null,null,null,"Coincident",0]
["ED_MDU541_00477",null,null,"Weather Corrected MD 10% POE","MW","Non-Coincident",5.9407820203181272]
["ED_MDU541_00478",null,null,null,null,"Coincident",4.0606165858991208]
["ED_MDU541_00479",null,null,"Weather Corrected MD 10% POE","MVA","Non-Coincident",5.9415495060442369]
["ED_MDU541_00480",null,null,null,null,"Coincident",4.0606165858991208]
["ED_MDU541_00481",null,null,"Weather Corrected MD 50% POE","MW","Non-Coincident",5.656889700276591]
["ED_MDU541_00482",null,null,null,null,"Coincident",3.8665717851595183]
["ED_MDU541_00483",null,null,"Weather Corrected MD 50% POE","MVA","Non-Coincident",5.6576205101403918]
["ED_MDU541_00484",null,null,null,null,"Coincident",3.8665717851595183]
["ED_MDU541_00485",null,"Nyngan 132","Substation Rating","MVA","Non-Coincident",82.5]
["ED_MDU541_00486",null,null,null,null,"Coincident",90]
["ED_MDU541_00487",null,null,"Raw Adjusted MD","MW","Non-Coincident",33.404400000000003]
["ED_MDU541_00488",null,null,null,null,"Coincident",24.551099999999998]
["ED_MDU541_00489",null,null,"Raw Adjusted MD","MVA","Non-Coincident",33.513775205428587]
["ED_MDU541_00490",null,null,null,null,"Coincident",24.701787823961244]
["ED_MDU541_00491",null,null,"Date MD occurred",null,"Non-Coincident","2015-02-09"]
["ED_MDU541_00492",null,null,null,null,"Coincident","2014-07-10"]
["ED_MDU541_00493",null,null,"Half hour time period MD occurred",null,"Non-Coincident","18:00:00"]
["ED_MDU541_00494",null,null,null,null,"Coincident","18:30:00"]
["ED_MDU541_00495",null,null,"Winter/Summer Peaking",null,"Non-Coincident","Summer"]
["ED_MDU541_00496",null,null,null,null,"Coincident","Winter"]
["ED_MDU541_00497",null,null,"Adjustments - Embedded generation","MW","Non-Coincident",0]
["ED_MDU541_00498",null,null,null,null,"Coincident",0]
["ED_MDU541_00499",null,null,"Weather Corrected MD 10% POE","MW","Non-Coincident",31.202581335654266]
["ED_MDU541_00500",null,null,null,null,"Coincident",22.932838028217279]
["ED_MDU541_00501",null,null,"Weather Corrected MD 10% POE","MVA","Non-Coincident",31.304747180377998]
["ED_MDU541_00502",null,null,null,null,"Coincident",22.932838028217279]
["ED_MDU541_00503",null,null,"Weather Corrected MD 50% POE","MW","Non-Coincident",27.816415259560433]
["ED_MDU541_00504",null,null,null,null,"Coincident",20.444120914579937]
["ED_MDU541_00505",null,null,"Weather Corrected MD 50% POE","MVA","Non-Coincident",27.90749386397486]
["ED_MDU541_00506",null,null,null,null,"Coincident",20.444120914579937]
["ED_MDU541_00507",null,"Oura 11/33kV","Substation Rating","MVA","Non-Coincident",6.6000000000000005]
["ED_MDU541_00508",null,null,null,null,"Coincident",7.1999999999999993]
["ED_MDU541_00509",null,null,"Raw Adjusted MD","MW","Non-Coincident",1.4619318994012491]
["ED_MDU541_00510",null,null,null,null,"Coincident",1.020048765622741]
["ED_MDU541_00511",null,null,"Raw Adjusted MD","MVA","Non-Coincident",1.6039571812084141]
["ED_MDU541_00512",null,null,null,null,"Coincident",1.1109962803674271]
["ED_MDU541_00513",null,null,"Date MD occurred",null,"Non-Coincident","2014-11-23"]
["ED_MDU541_00514",null,null,null,null,"Coincident","2014-07-10"]
["ED_MDU541_00515",null,null,"Half hour time period MD occurred",null,"Non-Coincident","20:30:00"]
["ED_MDU541_00516",null,null,null,null,"Coincident","18:30:00"]
["ED_MDU541_00517",null,null,"Winter/Summer Peaking",null,"Non-Coincident","Summer"]
["ED_MDU541_00518",null,null,null,null,"Coincident","Winter"]
["ED_MDU541_00519",null,null,"Adjustments - Embedded generation","MW","Non-Coincident",0]
["ED_MDU541_00520",null,null,null,null,"Coincident",0]
["ED_MDU541_00521",null,null,"Weather Corrected MD 10% POE","MW","Non-Coincident",1.3466426161134661]
["ED_MDU541_00522",null,null,null,null,"Coincident",0.93960678938882869]
["ED_MDU541_00523",null,null,"Weather Corrected MD 10% POE","MVA","Non-Coincident",1.4774676546295453]
["ED_MDU541_00524",null,null,null,null,"Coincident",0.93960678938882869]
["ED_MDU541_00525",null,null,"Weather Corrected MD 50% POE","MW","Non-Coincident",1.2228709718891593]
["ED_MDU541_00526",null,null,null,null,"Coincident",0.85324632830181801]
["ED_MDU541_00527",null,null,"Weather Corrected MD 50% POE","MVA","Non-Coincident",1.3416717138850702]
["ED_MDU541_00528",null,null,null,null,"Coincident",0.85324632830181801]
["ED_MDU541_00529",null,"Pinnacles Place","Substation Rating","MVA","Non-Coincident",33]
["ED_MDU541_00530",null,null,null,null,"Coincident",36]
["ED_MDU541_00531",null,null,"Raw Adjusted MD","MW","Non-Coincident",6.7140000000000004]
["ED_MDU541_00532",null,null,null,null,"Coincident",3.726]
["ED_MDU541_00533",null,null,"Raw Adjusted MD","MVA","Non-Coincident",6.7246323319568928]
["ED_MDU541_00534",null,null,null,null,"Coincident",4.4981636253031088]
["ED_MDU541_00535",null,null,"Date MD occurred",null,"Non-Coincident","2015-01-03"]
["ED_MDU541_00536",null,null,null,null,"Coincident","2014-07-10"]
["ED_MDU541_00537",null,null,"Half hour time period MD occurred",null,"Non-Coincident","19:00:00"]
["ED_MDU541_00538",null,null,null,null,"Coincident","18:30:00"]
["ED_MDU541_00539",null,null,"Winter/Summer Peaking",null,"Non-Coincident","Summer"]
["ED_MDU541_00540",null,null,null,null,"Coincident","Winter"]
["ED_MDU541_00541",null,null,"Adjustments - Embedded generation","MW","Non-Coincident",0]
["ED_MDU541_00542",null,null,null,null,"Coincident",0]
["ED_MDU541_00543",null,null,"Weather Corrected MD 10% POE","MW","Non-Coincident",6.9825729101426948]
["ED_MDU541_00544",null,null,null,null,"Coincident",3.8750471646100206]
["ED_MDU541_00545",null,null,"Weather Corrected MD 10% POE","MVA","Non-Coincident",6.9936305558224445]
["ED_MDU541_00546",null,null,null,null,"Coincident",3.8750471646100206]
["ED_MDU541_00547",null,null,"Weather Corrected MD 50% POE","MW","Non-Coincident",6.0643714036270007]
["ED_MDU541_00548",null,null,null,null,"Coincident",3.3654822534873698]
["ED_MDU541_00549",null,null,"Weather Corrected MD 50% POE","MVA","Non-Coincident",6.0739749797177431]
["ED_MDU541_00550",null,null,null,null,"Coincident",3.3654822534873698]
["ED_MDU541_00551",null,"Quirindi 66/33kV","Substation Rating","MVA","Non-Coincident",17.600000000000001]
["ED_MDU541_00552",null,null,null,null,"Coincident",19.2]
["ED_MDU541_00553",null,null,"Raw Adjusted MD","MW","Non-Coincident",5]
["ED_MDU541_00554",null,null,null,null,"Coincident",3.7033333778381348]
["ED_MDU541_00555",null,null,"Raw Adjusted MD","MVA","Non-Coincident",5.2041532709088267]
["ED_MDU541_00556",null,null,null,null,"Coincident",3.7369343193866826]
["ED_MDU541_00557",null,null,"Date MD occurred",null,"Non-Coincident","2014-11-23"]
["ED_MDU541_00558",null,null,null,null,"Coincident","2014-07-10"]
["ED_MDU541_00559",null,null,"Half hour time period MD occurred",null,"Non-Coincident","18:30:00"]
["ED_MDU541_00560",null,null,null,null,"Coincident","18:30:00"]
["ED_MDU541_00561",null,null,"Winter/Summer Peaking",null,"Non-Coincident","Summer"]
["ED_MDU541_00562",null,null,null,null,"Coincident","Winter"]
["ED_MDU541_00563",null,null,"Adjustments - Embedded generation","MW","Non-Coincident",0]
["ED_MDU541_00564",null,null,null,null,"Coincident",0]
["ED_MDU541_00565",null,null,"Weather Corrected MD 10% POE","MW","Non-Coincident",4.2138954561425432]
["ED_MDU541_00566",null,null,null,null,"Coincident",3.1210919386906268]
["ED_MDU541_00567",null,null,"Weather Corrected MD 10% POE","MVA","Non-Coincident",4.3859515642704121]
["ED_MDU541_00568",null,null,null,null,"Coincident",3.1210919386906268]
["ED_MDU541_00569",null,null,"Weather Corrected MD 50% POE","MW","Non-Coincident",3.777672343709972]
["ED_MDU541_00570",null,null,null,null,"Coincident",2.7979960161994311]
["ED_MDU541_00571",null,null,"Weather Corrected MD 50% POE","MVA","Non-Coincident",3.931917176788013]
["ED_MDU541_00572",null,null,null,null,"Coincident",2.7979960161994311]
["ED_MDU541_00573",null,"Snowy Adit 66kV","Substation Rating","MVA","Non-Coincident",36]
["ED_MDU541_00574",null,null,null,null,"Coincident",36]
["ED_MDU541_00575",null,null,"Raw Adjusted MD","MW","Non-Coincident",12.300000190734863]
["ED_MDU541_00576",null,null,null,null,"Coincident",12.133333206176758]
["ED_MDU541_00577",null,null,"Raw Adjusted MD","MVA","Non-Coincident",12.383232573809092]
["ED_MDU541_00578",null,null,null,null,"Coincident",12.200139328356656]
["ED_MDU541_00579",null,null,"Date MD occurred",null,"Non-Coincident","2014-07-09"]
["ED_MDU541_00580",null,null,null,null,"Coincident","2014-07-10"]
["ED_MDU541_00581",null,null,"Half hour time period MD occurred",null,"Non-Coincident","19:30:00"]
["ED_MDU541_00582",null,null,null,null,"Coincident","18:30:00"]
["ED_MDU541_00583",null,null,"Winter/Summer Peaking",null,"Non-Coincident","Winter"]
["ED_MDU541_00584",null,null,null,null,"Coincident","Winter"]
["ED_MDU541_00585",null,null,"Adjustments - Embedded generation","MW","Non-Coincident",1.0649999999999999]
["ED_MDU541_00586",null,null,null,null,"Coincident",1.0647]
["ED_MDU541_00587",null,null,"Weather Corrected MD 10% POE","MW","Non-Coincident",12.131706902127339]
["ED_MDU541_00588",null,null,null,null,"Coincident",11.967320318747985]
["ED_MDU541_00589",null,null,"Weather Corrected MD 10% POE","MVA","Non-Coincident",12.213800468026854]
["ED_MDU541_00590",null,null,null,null,"Coincident",11.967320318747985]
["ED_MDU541_00591",null,null,"Weather Corrected MD 50% POE","MW","Non-Coincident",9.440425784537803]
["ED_MDU541_00592",null,null,null,null,"Coincident",9.3125064939642392]
["ED_MDU541_00593",null,null,"Weather Corrected MD 50% POE","MVA","Non-Coincident",9.504307827066091]
["ED_MDU541_00594",null,null,null,null,"Coincident",9.3125064939642392]
["ED_MDU541_00595",null,"Steeple Flat 132/66kV","Substation Rating","MVA","Non-Coincident",36]
["ED_MDU541_00596",null,null,null,null,"Coincident",36]
["ED_MDU541_00597",null,null,"Raw Adjusted MD","MW","Non-Coincident",4.7983331680297852]
["ED_MDU541_00598",null,null,null,null,"Coincident",3.5850000381469727]
["ED_MDU541_00599",null,null,"Raw Adjusted MD","MVA","Non-Coincident",4.8303044666495012]
["ED_MDU541_00600",null,null,null,null,"Coincident",4.1059584981864647]
["ED_MDU541_00601",null,null,"Date MD occurred",null,"Non-Coincident","2014-07-15"]
["ED_MDU541_00602",null,null,null,null,"Coincident","2014-07-10"]
["ED_MDU541_00603",null,null,"Half hour time period MD occurred",null,"Non-Coincident","08:00:00"]
["ED_MDU541_00604",null,null,null,null,"Coincident","18:30:00"]
["ED_MDU541_00605",null,null,"Winter/Summer Peaking",null,"Non-Coincident","Winter"]
["ED_MDU541_00606",null,null,null,null,"Coincident","Winter"]
["ED_MDU541_00607",null,null,"Adjustments - Embedded generation","MW","Non-Coincident",1.0975280000000001]
["ED_MDU541_00608",null,null,null,null,"Coincident",3.5175999999999999E-2]
["ED_MDU541_00609",null,null,"Weather Corrected MD 10% POE","MW","Non-Coincident",4.8976110488962137]
["ED_MDU541_00610",null,null,null,null,"Coincident",3.6591739635977212]
["ED_MDU541_00611",null,null,"Weather Corrected MD 10% POE","MVA","Non-Coincident",4.9302438361338234]
["ED_MDU541_00612",null,null,null,null,"Coincident",3.6591739635977212]
["ED_MDU541_00613",null,null,"Weather Corrected MD 50% POE","MW","Non-Coincident",4.5718184031345022]
["ED_MDU541_00614",null,null,null,null,"Coincident",3.4157630526452185]
["ED_MDU541_00615",null,null,"Weather Corrected MD 50% POE","MVA","Non-Coincident",4.6022804336528509]
["ED_MDU541_00616",null,null,null,null,"Coincident",3.4157630526452185]
["ED_MDU541_00617",null,"Stroud 132/33kV","Substation Rating","MVA","Non-Coincident",132]
["ED_MDU541_00618",null,null,null,null,"Coincident",144]
["ED_MDU541_00619",null,null,"Raw Adjusted MD","MW","Non-Coincident",32.448]
["ED_MDU541_00620",null,null,null,null,"Coincident",24.672000000000001]
["ED_MDU541_00621",null,null,"Raw Adjusted MD","MVA","Non-Coincident",32.451550101651534]
["ED_MDU541_00622",null,null,null,null,"Coincident",25.210740568257805]
["ED_MDU541_00623",null,null,"Date MD occurred",null,"Non-Coincident","2015-01-09"]
["ED_MDU541_00624",null,null,null,null,"Coincident","2014-07-10"]
["ED_MDU541_00625",null,null,"Half hour time period MD occurred",null,"Non-Coincident","14:30:00"]
["ED_MDU541_00626",null,null,null,null,"Coincident","18:30:00"]
["ED_MDU541_00627",null,null,"Winter/Summer Peaking",null,"Non-Coincident","Summer"]
["ED_MDU541_00628",null,null,null,null,"Coincident","Winter"]
["ED_MDU541_00629",null,null,"Adjustments - Embedded generation","MW","Non-Coincident",1.2835999999999998E-2]
["ED_MDU541_00630",null,null,null,null,"Coincident",4.1015999999999997E-2]
["ED_MDU541_00631",null,null,"Weather Corrected MD 10% POE","MW","Non-Coincident",33.379648443948547]
["ED_MDU541_00632",null,null,null,null,"Coincident",25.380383580162061]
["ED_MDU541_00633",null,null,"Weather Corrected MD 10% POE","MVA","Non-Coincident",33.383300476279302]
["ED_MDU541_00634",null,null,null,null,"Coincident",25.380383580162061]
["ED_MDU541_00635",null,null,"Weather Corrected MD 50% POE","MW","Non-Coincident",29.159023314920223]
["ED_MDU541_00636",null,null,null,null,"Coincident",22.171210035309162]
["ED_MDU541_00637",null,null,"Weather Corrected MD 50% POE","MVA","Non-Coincident",29.162213573081814]
["ED_MDU541_00638",null,null,null,null,"Coincident",22.171210035309162]
["ED_MDU541_00639",null,"Temora 132/66kV","Substation Rating","MVA","Non-Coincident",132]
["ED_MDU541_00640",null,null,null,null,"Coincident",144]
["ED_MDU541_00641",null,null,"Raw Adjusted MD","MW","Non-Coincident",17.46]
["ED_MDU541_00642",null,null,null,null,"Coincident",13.226400000000002]
["ED_MDU541_00643",null,null,"Raw Adjusted MD","MVA","Non-Coincident",17.518690471607744]
["ED_MDU541_00644",null,null,null,null,"Coincident",13.374850309442721]
["ED_MDU541_00645",null,null,"Date MD occurred",null,"Non-Coincident","2014-11-23"]
["ED_MDU541_00646",null,null,null,null,"Coincident","2014-07-10"]
["ED_MDU541_00647",null,null,"Half hour time period MD occurred",null,"Non-Coincident","18:00:00"]
["ED_MDU541_00648",null,null,null,null,"Coincident","18:30:00"]
["ED_MDU541_00649",null,null,"Winter/Summer Peaking",null,"Non-Coincident","Summer"]
["ED_MDU541_00650",null,null,null,null,"Coincident","Winter"]
["ED_MDU541_00651",null,null,"Adjustments - Embedded generation","MW","Non-Coincident",0]
["ED_MDU541_00652",null,null,null,null,"Coincident",0]
["ED_MDU541_00653",null,null,"Weather Corrected MD 10% POE","MW","Non-Coincident",18.37558516192502]
["ED_MDU541_00654",null,null,null,null,"Coincident",13.919979357713924]
["ED_MDU541_00655",null,null,"Weather Corrected MD 10% POE","MVA","Non-Coincident",18.437353303919387]
["ED_MDU541_00656",null,null,null,null,"Coincident",13.919979357713924]
["ED_MDU541_00657",null,null,"Weather Corrected MD 50% POE","MW","Non-Coincident",17.227913479292901]
["ED_MDU541_00658",null,null,null,null,"Coincident",13.050588478953015]
["ED_MDU541_00659",null,null,"Weather Corrected MD 50% POE","MVA","Non-Coincident",17.285823809585978]
["ED_MDU541_00660",null,null,null,null,"Coincident",13.050588478953015]
["ED_MDU541_00661",null,"Terranora 110/66kV","Substation Rating","MVA","Non-Coincident",330]
["ED_MDU541_00662",null,null,null,null,"Coincident",360]
["ED_MDU541_00663",null,null,"Raw Adjusted MD","MW","Non-Coincident",89.192542000000003]
["ED_MDU541_00664",null,null,null,null,"Coincident",56.011676000000001]
["ED_MDU541_00665",null,null,"Raw Adjusted MD","MVA","Non-Coincident",89.503148204025564]
["ED_MDU541_00666",null,null,null,null,"Coincident",56.330490387325405]
["ED_MDU541_00667",null,null,"Date MD occurred",null,"Non-Coincident","2015-03-19"]
["ED_MDU541_00668",null,null,null,null,"Coincident","2014-07-10"]
["ED_MDU541_00669",null,null,"Half hour time period MD occurred",null,"Non-Coincident","19:00:00"]
["ED_MDU541_00670",null,null,null,null,"Coincident","18:30:00"]
["ED_MDU541_00671",null,null,"Winter/Summer Peaking",null,"Non-Coincident","Summer"]
["ED_MDU541_00672",null,null,null,null,"Coincident","Winter"]
["ED_MDU541_00673",null,null,"Adjustments - Embedded generation","MW","Non-Coincident",1.0263]
["ED_MDU541_00674",null,null,null,null,"Coincident",20.075099999999999]
["ED_MDU541_00675",null,null,"Weather Corrected MD 10% POE","MW","Non-Coincident",89.371959399654287]
["ED_MDU541_00676",null,null,null,null,"Coincident",56.124347631874762]
["ED_MDU541_00677",null,null,"Weather Corrected MD 10% POE","MVA","Non-Coincident",89.683190411048187]
["ED_MDU541_00678",null,null,null,null,"Coincident",56.124347631874762]
["ED_MDU541_00679",null,null,"Weather Corrected MD 50% POE","MW","Non-Coincident",74.796509134945921]
["ED_MDU541_00680",null,null,null,null,"Coincident",46.971167562391386]
["ED_MDU541_00681",null,null,"Weather Corrected MD 50% POE","MVA","Non-Coincident",75.056982255857406]
["ED_MDU541_00682",null,null,null,null,"Coincident",46.971167562391386]
["ED_MDU541_00683",null,"Yanco 33/66kV","Substation Rating","MVA","Non-Coincident",16.5]
["ED_MDU541_00684",null,null,null,null,"Coincident",18]
["ED_MDU541_00685",null,null,"Raw Adjusted MD","MW","Non-Coincident",8.7733335494995117]
["ED_MDU541_00686",null,null,null,null,"Coincident",6.4716668128967285]
["ED_MDU541_00687",null,null,"Raw Adjusted MD","MVA","Non-Coincident",8.9429204441457113]
["ED_MDU541_00688",null,null,null,null,"Coincident",6.4736941028522033]
["ED_MDU541_00689",null,null,"Date MD occurred",null,"Non-Coincident","2015-02-08"]
["ED_MDU541_00690",null,null,null,null,"Coincident","2014-07-10"]
["ED_MDU541_00691",null,null,"Half hour time period MD occurred",null,"Non-Coincident","19:30:00"]
["ED_MDU541_00692",null,null,null,null,"Coincident","18:30:00"]
["ED_MDU541_00693",null,null,"Winter/Summer Peaking",null,"Non-Coincident","Summer"]
["ED_MDU541_00694",null,null,null,null,"Coincident","Winter"]
["ED_MDU541_00695",null,null,"Adjustments - Embedded generation","MW","Non-Coincident",0]
["ED_MDU541_00696",null,null,null,null,"Coincident",0]
["ED_MDU541_00697",null,null,"Weather Corrected MD 10% POE","MW","Non-Coincident",9.7648191382873826]
["ED_MDU541_00698",null,null,null,null,"Coincident",7.2030381148335936]
["ED_MDU541_00699",null,null,"Weather Corrected MD 10% POE","MVA","Non-Coincident",9.9535712637025178]
["ED_MDU541_00700",null,null,null,null,"Coincident",7.2030381148335936]
["ED_MDU541_00701",null,null,"Weather Corrected MD 50% POE","MW","Non-Coincident",9.0806280028453408]
["ED_MDU541_00702",null,null,null,null,"Coincident",6.6983431730607492]
["ED_MDU541_00703",null,null,"Weather Corrected MD 50% POE","MVA","Non-Coincident",9.2561548417317656]
["ED_MDU541_00704",null,null,null,null,"Coincident",6.6983431730607492]
["ED_MDU541_00705",null,"<Enter substation name>","Substation Rating","MVA","Non-Coincident"]
["ED_MDU541_00706",null,null,null,null,"Coincident"]
["ED_MDU541_00707",null,null,"Raw Adjusted MD","MW","Non-Coincident"]
["ED_MDU541_00708",null,null,null,null,"Coincident"]
["ED_MDU541_00709",null,null,"Raw Adjusted MD","MVA","Non-Coincident"]
["ED_MDU541_00710",null,null,null,null,"Coincident"]
["ED_MDU541_00711",null,null,"Date MD occurred",null,"Non-Coincident"]
["ED_MDU541_00712",null,null,null,null,"Coincident"]
["ED_MDU541_00713",null,null,"Half hour time period MD occurred",null,"Non-Coincident"]
["ED_MDU541_00714",null,null,null,null,"Coincident"]
["ED_MDU541_00715",null,null,"Winter/Summer Peaking",null,"Non-Coincident"]
["ED_MDU541_00716",null,null,null,null,"Coincident"]
["ED_MDU541_00717",null,null,"Adjustments - Embedded generation","MW","Non-Coincident"]
["ED_MDU541_00718",null,null,null,null,"Coincident"]
["ED_MDU541_00719",null,null,"Weather Corrected MD 10% POE","MW","Non-Coincident"]
["ED_MDU541_00720",null,null,null,null,"Coincident"]
["ED_MDU541_00721",null,null,"Weather Corrected MD 10% POE","MVA","Non-Coincident"]
["ED_MDU541_00722",null,null,null,null,"Coincident"]
["ED_MDU541_00723",null,null,"Weather Corrected MD 50% POE","MW","Non-Coincident"]
["ED_MDU541_00724",null,null,null,null,"Coincident"]
["ED_MDU541_00725",null,null,"Weather Corrected MD 50% POE","MVA","Non-Coincident"]
["ED_MDU541_00726",null,null,null,null,"Coincident"]
["ED_MDU541_00727",null,"<Enter substation name>","Substation Rating","MVA","Non-Coincident"]
["ED_MDU541_00728",null,null,null,null,"Coincident"]
["ED_MDU541_00729",null,null,"Raw Adjusted MD","MW","Non-Coincident"]
["ED_MDU541_00730",null,null,null,null,"Coincident"]
["ED_MDU541_00731",null,null,"Raw Adjusted MD","MVA","Non-Coincident"]
["ED_MDU541_00732",null,null,null,null,"Coincident"]
["ED_MDU541_00733",null,null,"Date MD occurred",null,"Non-Coincident"]
["ED_MDU541_00734",null,null,null,null,"Coincident"]
["ED_MDU541_00735",null,null,"Half hour time period MD occurred",null,"Non-Coincident"]
["ED_MDU541_00736",null,null,null,null,"Coincident"]
["ED_MDU541_00737",null,null,"Winter/Summer Peaking",null,"Non-Coincident"]
["ED_MDU541_00738",null,null,null,null,"Coincident"]
["ED_MDU541_00739",null,null,"Adjustments - Embedded generation","MW","Non-Coincident"]
["ED_MDU541_00740",null,null,null,null,"Coincident"]
["ED_MDU541_00741",null,null,"Weather Corrected MD 10% POE","MW","Non-Coincident"]
["ED_MDU541_00742",null,null,null,null,"Coincident"]
["ED_MDU541_00743",null,null,"Weather Corrected MD 10% POE","MVA","Non-Coincident"]
["ED_MDU541_00744",null,null,null,null,"Coincident"]
["ED_MDU541_00745",null,null,"Weather Corrected MD 50% POE","MW","Non-Coincident"]
["ED_MDU541_00746",null,null,null,null,"Coincident"]
["ED_MDU541_00747",null,null,"Weather Corrected MD 50% POE","MVA","Non-Coincident"]
["ED_MDU541_00748",null,null,null,null,"Coincident"]
["ED_MDU541_00749",null,"<Enter substation name>","Substation Rating","MVA","Non-Coincident"]
["ED_MDU541_00750",null,null,null,null,"Coincident"]
["ED_MDU541_00751",null,null,"Raw Adjusted MD","MW","Non-Coincident"]
["ED_MDU541_00752",null,null,null,null,"Coincident"]
["ED_MDU541_00753",null,null,"Raw Adjusted MD","MVA","Non-Coincident"]
["ED_MDU541_00754",null,null,null,null,"Coincident"]
["ED_MDU541_00755",null,null,"Date MD occurred",null,"Non-Coincident"]
["ED_MDU541_00756",null,null,null,null,"Coincident"]
["ED_MDU541_00757",null,null,"Half hour time period MD occurred",null,"Non-Coincident"]
["ED_MDU541_00758",null,null,null,null,"Coincident"]
["ED_MDU541_00759",null,null,"Winter/Summer Peaking",null,"Non-Coincident"]
["ED_MDU541_00760",null,null,null,null,"Coincident"]
["ED_MDU541_00761",null,null,"Adjustments - Embedded generation","MW","Non-Coincident"]
["ED_MDU541_00762",null,null,null,null,"Coincident"]
["ED_MDU541_00763",null,null,"Weather Corrected MD 10% POE","MW","Non-Coincident"]
["ED_MDU541_00764",null,null,null,null,"Coincident"]
["ED_MDU541_00765",null,null,"Weather Corrected MD 10% POE","MVA","Non-Coincident"]
["ED_MDU541_00766",null,null,null,null,"Coincident"]
["ED_MDU541_00767",null,null,"Weather Corrected MD 50% POE","MW","Non-Coincident"]
["ED_MDU541_00768",null,null,null,null,"Coincident"]
["ED_MDU541_00769",null,null,"Weather Corrected MD 50% POE","MVA","Non-Coincident"]
["ED_MDU541_00770",null,null,null,null,"Coincident"]
["ED_MDU541_00771",null,"<Enter substation name>","Substation Rating","MVA","Non-Coincident"]
["ED_MDU541_00772",null,null,null,null,"Coincident"]
["ED_MDU541_00773",null,null,"Raw Adjusted MD","MW","Non-Coincident"]
["ED_MDU541_00774",null,null,null,null,"Coincident"]
["ED_MDU541_00775",null,null,"Raw Adjusted MD","MVA","Non-Coincident"]
["ED_MDU541_00776",null,null,null,null,"Coincident"]
["ED_MDU541_00777",null,null,"Date MD occurred",null,"Non-Coincident"]
["ED_MDU541_00778",null,null,null,null,"Coincident"]
["ED_MDU541_00779",null,null,"Half hour time period MD occurred",null,"Non-Coincident"]
["ED_MDU541_00780",null,null,null,null,"Coincident"]
["ED_MDU541_00781",null,null,"Winter/Summer Peaking",null,"Non-Coincident"]
["ED_MDU541_00782",null,null,null,null,"Coincident"]
["ED_MDU541_00783",null,null,"Adjustments - Embedded generation","MW","Non-Coincident"]
["ED_MDU541_00784",null,null,null,null,"Coincident"]
["ED_MDU541_00785",null,null,"Weather Corrected MD 10% POE","MW","Non-Coincident"]
["ED_MDU541_00786",null,null,null,null,"Coincident"]
["ED_MDU541_00787",null,null,"Weather Corrected MD 10% POE","MVA","Non-Coincident"]
["ED_MDU541_00788",null,null,null,null,"Coincident"]
["ED_MDU541_00789",null,null,"Weather Corrected MD 50% POE","MW","Non-Coincident"]
["ED_MDU541_00790",null,null,null,null,"Coincident"]
["ED_MDU541_00791",null,null,"Weather Corrected MD 50% POE","MVA","Non-Coincident"]
["ED_MDU541_00792",null,null,null,null,"Coincident"]
["ED_MDU541_00793",null,"<Enter substation name>","Substation Rating","MVA","Non-Coincident"]
["ED_MDU541_00794",null,null,null,null,"Coincident"]
["ED_MDU541_00795",null,null,"Raw Adjusted MD","MW","Non-Coincident"]
["ED_MDU541_00796",null,null,null,null,"Coincident"]
["ED_MDU541_00797",null,null,"Raw Adjusted MD","MVA","Non-Coincident"]
["ED_MDU541_00798",null,null,null,null,"Coincident"]
["ED_MDU541_00799",null,null,"Date MD occurred",null,"Non-Coincident"]
["ED_MDU541_00800",null,null,null,null,"Coincident"]
["ED_MDU541_00801",null,null,"Half hour time period MD occurred",null,"Non-Coincident"]
["ED_MDU541_00802",null,null,null,null,"Coincident"]
["ED_MDU541_00803",null,null,"Winter/Summer Peaking",null,"Non-Coincident"]
["ED_MDU541_00804",null,null,null,null,"Coincident"]
["ED_MDU541_00805",null,null,"Adjustments - Embedded generation","MW","Non-Coincident"]
["ED_MDU541_00806",null,null,null,null,"Coincident"]
["ED_MDU541_00807",null,null,"Weather Corrected MD 10% POE","MW","Non-Coincident"]
["ED_MDU541_00808",null,null,null,null,"Coincident"]
["ED_MDU541_00809",null,null,"Weather Corrected MD 10% POE","MVA","Non-Coincident"]
["ED_MDU541_00810",null,null,null,null,"Coincident"]
["ED_MDU541_00811",null,null,"Weather Corrected MD 50% POE","MW","Non-Coincident"]
["ED_MDU541_00812",null,null,null,null,"Coincident"]
["ED_MDU541_00813",null,null,"Weather Corrected MD 50% POE","MVA","Non-Coincident"]
["ED_MDU541_00814",null,null,null,null,"Coincident"]
["ED_MDU541_00815",null,"<Enter substation name>","Substation Rating","MVA","Non-Coincident"]
["ED_MDU541_00816",null,null,null,null,"Coincident"]
["ED_MDU541_00817",null,null,"Raw Adjusted MD","MW","Non-Coincident"]
["ED_MDU541_00818",null,null,null,null,"Coincident"]
["ED_MDU541_00819",null,null,"Raw Adjusted MD","MVA","Non-Coincident"]
["ED_MDU541_00820",null,null,null,null,"Coincident"]
["ED_MDU541_00821",null,null,"Date MD occurred",null,"Non-Coincident"]
["ED_MDU541_00822",null,null,null,null,"Coincident"]
["ED_MDU541_00823",null,null,"Half hour time period MD occurred",null,"Non-Coincident"]
["ED_MDU541_00824",null,null,null,null,"Coincident"]
["ED_MDU541_00825",null,null,"Winter/Summer Peaking",null,"Non-Coincident"]
["ED_MDU541_00826",null,null,null,null,"Coincident"]
["ED_MDU541_00827",null,null,"Adjustments - Embedded generation","MW","Non-Coincident"]
["ED_MDU541_00828",null,null,null,null,"Coincident"]
["ED_MDU541_00829",null,null,"Weather Corrected MD 10% POE","MW","Non-Coincident"]
["ED_MDU541_00830",null,null,null,null,"Coincident"]
["ED_MDU541_00831",null,null,"Weather Corrected MD 10% POE","MVA","Non-Coincident"]
["ED_MDU541_00832",null,null,null,null,"Coincident"]
["ED_MDU541_00833",null,null,"Weather Corrected MD 50% POE","MW","Non-Coincident"]
["ED_MDU541_00834",null,null,null,null,"Coincident"]
["ED_MDU541_00835",null,null,"Weather Corrected MD 50% POE","MVA","Non-Coincident"]
["ED_MDU541_00836",null,null,null,null,"Coincident"]
["ED_MDU541_00837",null,"<Enter substation name>","Substation Rating","MVA","Non-Coincident"]
["ED_MDU541_00838",null,null,null,null,"Coincident"]
["ED_MDU541_00839",null,null,"Raw Adjusted MD","MW","Non-Coincident"]
["ED_MDU541_00840",null,null,null,null,"Coincident"]
["ED_MDU541_00841",null,null,"Raw Adjusted MD","MVA","Non-Coincident"]
["ED_MDU541_00842",null,null,null,null,"Coincident"]
["ED_MDU541_00843",null,null,"Date MD occurred",null,"Non-Coincident"]
["ED_MDU541_00844",null,null,null,null,"Coincident"]
["ED_MDU541_00845",null,null,"Half hour time period MD occurred",null,"Non-Coincident"]
["ED_MDU541_00846",null,null,null,null,"Coincident"]
["ED_MDU541_00847",null,null,"Winter/Summer Peaking",null,"Non-Coincident"]
["ED_MDU541_00848",null,null,null,null,"Coincident"]
["ED_MDU541_00849",null,null,"Adjustments - Embedded generation","MW","Non-Coincident"]
["ED_MDU541_00850",null,null,null,null,"Coincident"]
["ED_MDU541_00851",null,null,"Weather Corrected MD 10% POE","MW","Non-Coincident"]
["ED_MDU541_00852",null,null,null,null,"Coincident"]
["ED_MDU541_00853",null,null,"Weather Corrected MD 10% POE","MVA","Non-Coincident"]
["ED_MDU541_00854",null,null,null,null,"Coincident"]
["ED_MDU541_00855",null,null,"Weather Corrected MD 50% POE","MW","Non-Coincident"]
["ED_MDU541_00856",null,null,null,null,"Coincident"]
["ED_MDU541_00857",null,null,"Weather Corrected MD 50% POE","MVA","Non-Coincident"]
["ED_MDU541_00858",null,null,null,null,"Coincident"]
["ED_MDU541_00859",null,"<Enter substation name>","Substation Rating","MVA","Non-Coincident"]
["ED_MDU541_00860",null,null,null,null,"Coincident"]
["ED_MDU541_00861",null,null,"Raw Adjusted MD","MW","Non-Coincident"]
["ED_MDU541_00862",null,null,null,null,"Coincident"]
["ED_MDU541_00863",null,null,"Raw Adjusted MD","MVA","Non-Coincident"]
["ED_MDU541_00864",null,null,null,null,"Coincident"]
["ED_MDU541_00865",null,null,"Date MD occurred",null,"Non-Coincident"]
["ED_MDU541_00866",null,null,null,null,"Coincident"]
["ED_MDU541_00867",null,null,"Half hour time period MD occurred",null,"Non-Coincident"]
["ED_MDU541_00868",null,null,null,null,"Coincident"]
["ED_MDU541_00869",null,null,"Winter/Summer Peaking",null,"Non-Coincident"]
["ED_MDU541_00870",null,null,null,null,"Coincident"]
["ED_MDU541_00871",null,null,"Adjustments - Embedded generation","MW","Non-Coincident"]
["ED_MDU541_00872",null,null,null,null,"Coincident"]
["ED_MDU541_00873",null,null,"Weather Corrected MD 10% POE","MW","Non-Coincident"]
["ED_MDU541_00874",null,null,null,null,"Coincident"]
["ED_MDU541_00875",null,null,"Weather Corrected MD 10% POE","MVA","Non-Coincident"]
["ED_MDU541_00876",null,null,null,null,"Coincident"]
["ED_MDU541_00877",null,null,"Weather Corrected MD 50% POE","MW","Non-Coincident"]
["ED_MDU541_00878",null,null,null,null,"Coincident"]
["ED_MDU541_00879",null,null,"Weather Corrected MD 50% POE","MVA","Non-Coincident"]
["ED_MDU541_00880",null,null,null,null,"Coincident"]
["ED_MDU541_00881",null,"<Enter substation name>","Substation Rating","MVA","Non-Coincident"]
["ED_MDU541_00882",null,null,null,null,"Coincident"]
["ED_MDU541_00883",null,null,"Raw Adjusted MD","MW","Non-Coincident"]
["ED_MDU541_00884",null,null,null,null,"Coincident"]
["ED_MDU541_00885",null,null,"Raw Adjusted MD","MVA","Non-Coincident"]
["ED_MDU541_00886",null,null,null,null,"Coincident"]
["ED_MDU541_00887",null,null,"Date MD occurred",null,"Non-Coincident"]
["ED_MDU541_00888",null,null,null,null,"Coincident"]
["ED_MDU541_00889",null,null,"Half hour time period MD occurred",null,"Non-Coincident"]
["ED_MDU541_00890",null,null,null,null,"Coincident"]
["ED_MDU541_00891",null,null,"Winter/Summer Peaking",null,"Non-Coincident"]
["ED_MDU541_00892",null,null,null,null,"Coincident"]
["ED_MDU541_00893",null,null,"Adjustments - Embedded generation","MW","Non-Coincident"]
["ED_MDU541_00894",null,null,null,null,"Coincident"]
["ED_MDU541_00895",null,null,"Weather Corrected MD 10% POE","MW","Non-Coincident"]
["ED_MDU541_00896",null,null,null,null,"Coincident"]
["ED_MDU541_00897",null,null,"Weather Corrected MD 10% POE","MVA","Non-Coincident"]
["ED_MDU541_00898",null,null,null,null,"Coincident"]
["ED_MDU541_00899",null,null,"Weather Corrected MD 50% POE","MW","Non-Coincident"]
["ED_MDU541_00900",null,null,null,null,"Coincident"]
["ED_MDU541_00901",null,null,"Weather Corrected MD 50% POE","MVA","Non-Coincident"]
["ED_MDU541_00902",null,null,null,null,"Coincident"]
["ED_MDU541_00903",null,"<Enter substation name>","Substation Rating","MVA","Non-Coincident"]
["ED_MDU541_00904",null,null,null,null,"Coincident"]
["ED_MDU541_00905",null,null,"Raw Adjusted MD","MW","Non-Coincident"]
["ED_MDU541_00906",null,null,null,null,"Coincident"]
["ED_MDU541_00907",null,null,"Raw Adjusted MD","MVA","Non-Coincident"]
["ED_MDU541_00908",null,null,null,null,"Coincident"]
["ED_MDU541_00909",null,null,"Date MD occurred",null,"Non-Coincident"]
["ED_MDU541_00910",null,null,null,null,"Coincident"]
["ED_MDU541_00911",null,null,"Half hour time period MD occurred",null,"Non-Coincident"]
["ED_MDU541_00912",null,null,null,null,"Coincident"]
["ED_MDU541_00913",null,null,"Winter/Summer Peaking",null,"Non-Coincident"]
["ED_MDU541_00914",null,null,null,null,"Coincident"]
["ED_MDU541_00915",null,null,"Adjustments - Embedded generation","MW","Non-Coincident"]
["ED_MDU541_00916",null,null,null,null,"Coincident"]
["ED_MDU541_00917",null,null,"Weather Corrected MD 10% POE","MW","Non-Coincident"]
["ED_MDU541_00918",null,null,null,null,"Coincident"]
["ED_MDU541_00919",null,null,"Weather Corrected MD 10% POE","MVA","Non-Coincident"]
["ED_MDU541_00920",null,null,null,null,"Coincident"]
["ED_MDU541_00921",null,null,"Weather Corrected MD 50% POE","MW","Non-Coincident"]
["ED_MDU541_00922",null,null,null,null,"Coincident"]
["ED_MDU541_00923",null,null,"Weather Corrected MD 50% POE","MVA","Non-Coincident"]
["ED_MDU541_00924",null,null,null,null,"Coincident"]
["ED_MDU541_00925",null,"<Enter substation name>","Substation Rating","MVA","Non-Coincident"]
["ED_MDU541_00926",null,null,null,null,"Coincident"]
["ED_MDU541_00927",null,null,"Raw Adjusted MD","MW","Non-Coincident"]
["ED_MDU541_00928",null,null,null,null,"Coincident"]
["ED_MDU541_00929",null,null,"Raw Adjusted MD","MVA","Non-Coincident"]
["ED_MDU541_00930",null,null,null,null,"Coincident"]
["ED_MDU541_00931",null,null,"Date MD occurred",null,"Non-Coincident"]
["ED_MDU541_00932",null,null,null,null,"Coincident"]
["ED_MDU541_00933",null,null,"Half hour time period MD occurred",null,"Non-Coincident"]
["ED_MDU541_00934",null,null,null,null,"Coincident"]
["ED_MDU541_00935",null,null,"Winter/Summer Peaking",null,"Non-Coincident"]
["ED_MDU541_00936",null,null,null,null,"Coincident"]
["ED_MDU541_00937",null,null,"Adjustments - Embedded generation","MW","Non-Coincident"]
["ED_MDU541_00938",null,null,null,null,"Coincident"]
["ED_MDU541_00939",null,null,"Weather Corrected MD 10% POE","MW","Non-Coincident"]
["ED_MDU541_00940",null,null,null,null,"Coincident"]
["ED_MDU541_00941",null,null,"Weather Corrected MD 10% POE","MVA","Non-Coincident"]
["ED_MDU541_00942",null,null,null,null,"Coincident"]
["ED_MDU541_00943",null,null,"Weather Corrected MD 50% POE","MW","Non-Coincident"]
["ED_MDU541_00944",null,null,null,null,"Coincident"]
["ED_MDU541_00945",null,null,"Weather Corrected MD 50% POE","MVA","Non-Coincident"]
["ED_MDU541_00946",null,null,null,null,"Coincident"]
["ED_MDU541_00947",null,"<Enter substation name>","Substation Rating","MVA","Non-Coincident"]
["ED_MDU541_00948",null,null,null,null,"Coincident"]
["ED_MDU541_00949",null,null,"Raw Adjusted MD","MW","Non-Coincident"]
["ED_MDU541_00950",null,null,null,null,"Coincident"]
["ED_MDU541_00951",null,null,"Raw Adjusted MD","MVA","Non-Coincident"]
["ED_MDU541_00952",null,null,null,null,"Coincident"]
["ED_MDU541_00953",null,null,"Date MD occurred",null,"Non-Coincident"]
["ED_MDU541_00954",null,null,null,null,"Coincident"]
["ED_MDU541_00955",null,null,"Half hour time period MD occurred",null,"Non-Coincident"]
["ED_MDU541_00956",null,null,null,null,"Coincident"]
["ED_MDU541_00957",null,null,"Winter/Summer Peaking",null,"Non-Coincident"]
["ED_MDU541_00958",null,null,null,null,"Coincident"]
["ED_MDU541_00959",null,null,"Adjustments - Embedded generation","MW","Non-Coincident"]
["ED_MDU541_00960",null,null,null,null,"Coincident"]
["ED_MDU541_00961",null,null,"Weather Corrected MD 10% POE","MW","Non-Coincident"]
["ED_MDU541_00962",null,null,null,null,"Coincident"]
["ED_MDU541_00963",null,null,"Weather Corrected MD 10% POE","MVA","Non-Coincident"]
["ED_MDU541_00964",null,null,null,null,"Coincident"]
["ED_MDU541_00965",null,null,"Weather Corrected MD 50% POE","MW","Non-Coincident"]
["ED_MDU541_00966",null,null,null,null,"Coincident"]
["ED_MDU541_00967",null,null,"Weather Corrected MD 50% POE","MVA","Non-Coincident"]
["ED_MDU541_00968",null,null,null,null,"Coincident"]
["ED_MDU541_00969",null,"<Enter substation name>","Substation Rating","MVA","Non-Coincident"]
["ED_MDU541_00970",null,null,null,null,"Coincident"]
["ED_MDU541_00971",null,null,"Raw Adjusted MD","MW","Non-Coincident"]
["ED_MDU541_00972",null,null,null,null,"Coincident"]
["ED_MDU541_00973",null,null,"Raw Adjusted MD","MVA","Non-Coincident"]
["ED_MDU541_00974",null,null,null,null,"Coincident"]
["ED_MDU541_00975",null,null,"Date MD occurred",null,"Non-Coincident"]
["ED_MDU541_00976",null,null,null,null,"Coincident"]
["ED_MDU541_00977",null,null,"Half hour time period MD occurred",null,"Non-Coincident"]
["ED_MDU541_00978",null,null,null,null,"Coincident"]
["ED_MDU541_00979",null,null,"Winter/Summer Peaking",null,"Non-Coincident"]
["ED_MDU541_00980",null,null,null,null,"Coincident"]
["ED_MDU541_00981",null,null,"Adjustments - Embedded generation","MW","Non-Coincident"]
["ED_MDU541_00982",null,null,null,null,"Coincident"]
["ED_MDU541_00983",null,null,"Weather Corrected MD 10% POE","MW","Non-Coincident"]
["ED_MDU541_00984",null,null,null,null,"Coincident"]
["ED_MDU541_00985",null,null,"Weather Corrected MD 10% POE","MVA","Non-Coincident"]
["ED_MDU541_00986",null,null,null,null,"Coincident"]
["ED_MDU541_00987",null,null,"Weather Corrected MD 50% POE","MW","Non-Coincident"]
["ED_MDU541_00988",null,null,null,null,"Coincident"]
["ED_MDU541_00989",null,null,"Weather Corrected MD 50% POE","MVA","Non-Coincident"]
["ED_MDU541_00990",null,null,null,null,"Coincident"]
["ED_MDU541_00991",null,"<Enter substation name>","Substation Rating","MVA","Non-Coincident"]
["ED_MDU541_00992",null,null,null,null,"Coincident"]
["ED_MDU541_00993",null,null,"Raw Adjusted MD","MW","Non-Coincident"]
["ED_MDU541_00994",null,null,null,null,"Coincident"]
["ED_MDU541_00995",null,null,"Raw Adjusted MD","MVA","Non-Coincident"]
["ED_MDU541_00996",null,null,null,null,"Coincident"]
["ED_MDU541_00997",null,null,"Date MD occurred",null,"Non-Coincident"]
["ED_MDU541_00998",null,null,null,null,"Coincident"]
["ED_MDU541_00999",null,null,"Half hour time period MD occurred",null,"Non-Coincident"]
["ED_MDU541_01000",null,null,null,null,"Coincident"]
["ED_MDU541_01001",null,null,"Winter/Summer Peaking",null,"Non-Coincident"]
["ED_MDU541_01002",null,null,null,null,"Coincident"]
["ED_MDU541_01003",null,null,"Adjustments - Embedded generation","MW","Non-Coincident"]
["ED_MDU541_01004",null,null,null,null,"Coincident"]
["ED_MDU541_01005",null,null,"Weather Corrected MD 10% POE","MW","Non-Coincident"]
["ED_MDU541_01006",null,null,null,null,"Coincident"]
["ED_MDU541_01007",null,null,"Weather Corrected MD 10% POE","MVA","Non-Coincident"]
["ED_MDU541_01008",null,null,null,null,"Coincident"]
["ED_MDU541_01009",null,null,"Weather Corrected MD 50% POE","MW","Non-Coincident"]
["ED_MDU541_01010",null,null,null,null,"Coincident"]
["ED_MDU541_01011",null,null,"Weather Corrected MD 50% POE","MVA","Non-Coincident"]
["ED_MDU541_01012",null,null,null,null,"Coincident"]
["ED_MDU541_01013",null,"<Enter substation name>","Substation Rating","MVA","Non-Coincident"]
["ED_MDU541_01014",null,null,null,null,"Coincident"]
["ED_MDU541_01015",null,null,"Raw Adjusted MD","MW","Non-Coincident"]
["ED_MDU541_01016",null,null,null,null,"Coincident"]
["ED_MDU541_01017",null,null,"Raw Adjusted MD","MVA","Non-Coincident"]
["ED_MDU541_01018",null,null,null,null,"Coincident"]
["ED_MDU541_01019",null,null,"Date MD occurred",null,"Non-Coincident"]
["ED_MDU541_01020",null,null,null,null,"Coincident"]
["ED_MDU541_01021",null,null,"Half hour time period MD occurred",null,"Non-Coincident"]
["ED_MDU541_01022",null,null,null,null,"Coincident"]
["ED_MDU541_01023",null,null,"Winter/Summer Peaking",null,"Non-Coincident"]
["ED_MDU541_01024",null,null,null,null,"Coincident"]
["ED_MDU541_01025",null,null,"Adjustments - Embedded generation","MW","Non-Coincident"]
["ED_MDU541_01026",null,null,null,null,"Coincident"]
["ED_MDU541_01027",null,null,"Weather Corrected MD 10% POE","MW","Non-Coincident"]
["ED_MDU541_01028",null,null,null,null,"Coincident"]
["ED_MDU541_01029",null,null,"Weather Corrected MD 10% POE","MVA","Non-Coincident"]
["ED_MDU541_01030",null,null,null,null,"Coincident"]
["ED_MDU541_01031",null,null,"Weather Corrected MD 50% POE","MW","Non-Coincident"]
["ED_MDU541_01032",null,null,null,null,"Coincident"]
["ED_MDU541_01033",null,null,"Weather Corrected MD 50% POE","MVA","Non-Coincident"]
["ED_MDU541_01034",null,null,null,null,"Coincident"]
["ED_MDU541_01035",null,"<Enter substation name>","Substation Rating","MVA","Non-Coincident"]
["ED_MDU541_01036",null,null,null,null,"Coincident"]
["ED_MDU541_01037",null,null,"Raw Adjusted MD","MW","Non-Coincident"]
["ED_MDU541_01038",null,null,null,null,"Coincident"]
["ED_MDU541_01039",null,null,"Raw Adjusted MD","MVA","Non-Coincident"]
["ED_MDU541_01040",null,null,null,null,"Coincident"]
["ED_MDU541_01041",null,null,"Date MD occurred",null,"Non-Coincident"]
["ED_MDU541_01042",null,null,null,null,"Coincident"]
["ED_MDU541_01043",null,null,"Half hour time period MD occurred",null,"Non-Coincident"]
["ED_MDU541_01044",null,null,null,null,"Coincident"]
["ED_MDU541_01045",null,null,"Winter/Summer Peaking",null,"Non-Coincident"]
["ED_MDU541_01046",null,null,null,null,"Coincident"]
["ED_MDU541_01047",null,null,"Adjustments - Embedded generation","MW","Non-Coincident"]
["ED_MDU541_01048",null,null,null,null,"Coincident"]
["ED_MDU541_01049",null,null,"Weather Corrected MD 10% POE","MW","Non-Coincident"]
["ED_MDU541_01050",null,null,null,null,"Coincident"]
["ED_MDU541_01051",null,null,"Weather Corrected MD 10% POE","MVA","Non-Coincident"]
["ED_MDU541_01052",null,null,null,null,"Coincident"]
["ED_MDU541_01053",null,null,"Weather Corrected MD 50% POE","MW","Non-Coincident"]
["ED_MDU541_01054",null,null,null,null,"Coincident"]
["ED_MDU541_01055",null,null,"Weather Corrected MD 50% POE","MVA","Non-Coincident"]
["ED_MDU541_01056",null,null,null,null,"Coincident"]
["ED_MDU541_01057",null,"<Enter substation name>","Substation Rating","MVA","Non-Coincident"]
["ED_MDU541_01058",null,null,null,null,"Coincident"]
["ED_MDU541_01059",null,null,"Raw Adjusted MD","MW","Non-Coincident"]
["ED_MDU541_01060",null,null,null,null,"Coincident"]
["ED_MDU541_01061",null,null,"Raw Adjusted MD","MVA","Non-Coincident"]
["ED_MDU541_01062",null,null,null,null,"Coincident"]
["ED_MDU541_01063",null,null,"Date MD occurred",null,"Non-Coincident"]
["ED_MDU541_01064",null,null,null,null,"Coincident"]
["ED_MDU541_01065",null,null,"Half hour time period MD occurred",null,"Non-Coincident"]
["ED_MDU541_01066",null,null,null,null,"Coincident"]
["ED_MDU541_01067",null,null,"Winter/Summer Peaking",null,"Non-Coincident"]
["ED_MDU541_01068",null,null,null,null,"Coincident"]
["ED_MDU541_01069",null,null,"Adjustments - Embedded generation","MW","Non-Coincident"]
["ED_MDU541_01070",null,null,null,null,"Coincident"]
["ED_MDU541_01071",null,null,"Weather Corrected MD 10% POE","MW","Non-Coincident"]
["ED_MDU541_01072",null,null,null,null,"Coincident"]
["ED_MDU541_01073",null,null,"Weather Corrected MD 10% POE","MVA","Non-Coincident"]
["ED_MDU541_01074",null,null,null,null,"Coincident"]
["ED_MDU541_01075",null,null,"Weather Corrected MD 50% POE","MW","Non-Coincident"]
["ED_MDU541_01076",null,null,null,null,"Coincident"]
["ED_MDU541_01077",null,null,"Weather Corrected MD 50% POE","MVA","Non-Coincident"]
["ED_MDU541_01078",null,null,null,null,"Coincident"]
["ED_MDU541_01079",null,"<Enter substation name>","Substation Rating","MVA","Non-Coincident"]
["ED_MDU541_01080",null,null,null,null,"Coincident"]
["ED_MDU541_01081",null,null,"Raw Adjusted MD","MW","Non-Coincident"]
["ED_MDU541_01082",null,null,null,null,"Coincident"]
["ED_MDU541_01083",null,null,"Raw Adjusted MD","MVA","Non-Coincident"]
["ED_MDU541_01084",null,null,null,null,"Coincident"]
["ED_MDU541_01085",null,null,"Date MD occurred",null,"Non-Coincident"]
["ED_MDU541_01086",null,null,null,null,"Coincident"]
["ED_MDU541_01087",null,null,"Half hour time period MD occurred",null,"Non-Coincident"]
["ED_MDU541_01088",null,null,null,null,"Coincident"]
["ED_MDU541_01089",null,null,"Winter/Summer Peaking",null,"Non-Coincident"]
["ED_MDU541_01090",null,null,null,null,"Coincident"]
["ED_MDU541_01091",null,null,"Adjustments - Embedded generation","MW","Non-Coincident"]
["ED_MDU541_01092",null,null,null,null,"Coincident"]
["ED_MDU541_01093",null,null,"Weather Corrected MD 10% POE","MW","Non-Coincident"]
["ED_MDU541_01094",null,null,null,null,"Coincident"]
["ED_MDU541_01095",null,null,"Weather Corrected MD 10% POE","MVA","Non-Coincident"]
["ED_MDU541_01096",null,null,null,null,"Coincident"]
["ED_MDU541_01097",null,null,"Weather Corrected MD 50% POE","MW","Non-Coincident"]
["ED_MDU541_01098",null,null,null,null,"Coincident"]
["ED_MDU541_01099",null,null,"Weather Corrected MD 50% POE","MVA","Non-Coincident"]
["ED_MDU541_01100",null,null,null,null,"Coincident"]
["ED_MDU541_01101",null,"<Enter substation name>","Substation Rating","MVA","Non-Coincident"]
["ED_MDU541_01102",null,null,null,null,"Coincident"]
["ED_MDU541_01103",null,null,"Raw Adjusted MD","MW","Non-Coincident"]
["ED_MDU541_01104",null,null,null,null,"Coincident"]
["ED_MDU541_01105",null,null,"Raw Adjusted MD","MVA","Non-Coincident"]
["ED_MDU541_01106",null,null,null,null,"Coincident"]
["ED_MDU541_01107",null,null,"Date MD occurred",null,"Non-Coincident"]
["ED_MDU541_01108",null,null,null,null,"Coincident"]
["ED_MDU541_01109",null,null,"Half hour time period MD occurred",null,"Non-Coincident"]
["ED_MDU541_01110",null,null,null,null,"Coincident"]
["ED_MDU541_01111",null,null,"Winter/Summer Peaking",null,"Non-Coincident"]
["ED_MDU541_01112",null,null,null,null,"Coincident"]
["ED_MDU541_01113",null,null,"Adjustments - Embedded generation","MW","Non-Coincident"]
["ED_MDU541_01114",null,null,null,null,"Coincident"]
["ED_MDU541_01115",null,null,"Weather Corrected MD 10% POE","MW","Non-Coincident"]
["ED_MDU541_01116",null,null,null,null,"Coincident"]
["ED_MDU541_01117",null,null,"Weather Corrected MD 10% POE","MVA","Non-Coincident"]
["ED_MDU541_01118",null,null,null,null,"Coincident"]
["ED_MDU541_01119",null,null,"Weather Corrected MD 50% POE","MW","Non-Coincident"]
["ED_MDU541_01120",null,null,null,null,"Coincident"]
["ED_MDU541_01121",null,null,"Weather Corrected MD 50% POE","MVA","Non-Coincident"]
["ED_MDU541_01122",null,null,null,null,"Coincident"]
[]
[]
[]
[]
[]
[]
[null,"NETWORK LEVEL","SUBSTATION","FORECASTING ELEMENTS","UNIT","MAX DEMAND"]
["ED_MDU541_01130","ZONE SUBSTATION","Adaminaby 11kV","Substation Rating","MVA","Non-Coincident",9.6]
["ED_MDU541_01131",null,null,null,null,"Coincident",9.6]
["ED_MDU541_01132",null,null,"Raw Adjusted MD","MW","Non-Coincident",1.3056666851043701]
["ED_MDU541_01133",null,null,null,null,"Coincident",1.2091666460037231]
["ED_MDU541_01134",null,null,"Raw Adjusted MD","MVA","Non-Coincident",1.3177621096453693]
["ED_MDU541_01135",null,null,null,null,"Coincident",1.2233988638848601]
["ED_MDU541_01136",null,null,"Date MD occurred",null,"Non-Coincident","2014-08-02"]
["ED_MDU541_01137",null,null,null,null,"Coincident","2014-07-10"]
["ED_MDU541_01138",null,null,"Half hour time period MD occurred",null,"Non-Coincident","19:00:00"]
["ED_MDU541_01139",null,null,null,null,"Coincident","18:30:00"]
["ED_MDU541_01140",null,null,"Winter/Summer Peaking",null,"Non-Coincident","Winter"]
["ED_MDU541_01141",null,null,null,null,"Coincident","Winter"]
["ED_MDU541_01142",null,null,"Adjustments - Embedded generation","MW","Non-Coincident",0]
["ED_MDU541_01143",null,null,null,null,"Coincident",0]
["ED_MDU541_01144",null,null,"Weather Corrected MD 10% POE","MW","Non-Coincident",1.288410302185498]
["ED_MDU541_01145",null,null,null,null,"Coincident",1.1931856587470095]
["ED_MDU541_01146",null,null,"Weather Corrected MD 10% POE","MVA","Non-Coincident",1.3003458671851404]
["ED_MDU541_01147",null,null,null,null,"Coincident",1.1931856587470095]
["ED_MDU541_01148",null,null,"Weather Corrected MD 50% POE","MW","Non-Coincident",1.0528930577922901]
["ED_MDU541_01149",null,null,null,null,"Coincident",0.97507517179971481]
["ED_MDU541_01150",null,null,"Weather Corrected MD 50% POE","MVA","Non-Coincident",1.0626468400366849]
["ED_MDU541_01151",null,null,null,null,"Coincident",0.97507517179971481]
["ED_MDU541_01152",null,"Adelong","Substation Rating","MVA","Non-Coincident",6.6]
["ED_MDU541_01153",null,null,null,null,"Coincident",6.6]
["ED_MDU541_01154",null,null,"Raw Adjusted MD","MW","Non-Coincident",1.4357964999999999]
["ED_MDU541_01155",null,null,null,null,"Coincident",1.0379800000000001]
["ED_MDU541_01156",null,null,"Raw Adjusted MD","MVA","Non-Coincident",1.442334702174308]
["ED_MDU541_01157",null,null,null,null,"Coincident",1.04761428238176]
["ED_MDU541_01158",null,null,"Date MD occurred",null,"Non-Coincident","2014-08-10"]
["ED_MDU541_01159",null,null,null,null,"Coincident","2014-07-10"]
["ED_MDU541_01160",null,null,"Half hour time period MD occurred",null,"Non-Coincident","19:00:00"]
["ED_MDU541_01161",null,null,null,null,"Coincident","18:30:00"]
["ED_MDU541_01162",null,null,"Winter/Summer Peaking",null,"Non-Coincident","Winter"]
["ED_MDU541_01163",null,null,null,null,"Coincident","Winter"]
["ED_MDU541_01164",null,null,"Adjustments - Embedded generation","MW","Non-Coincident",0]
["ED_MDU541_01165",null,null,null,null,"Coincident",0]
["ED_MDU541_01166",null,null,"Weather Corrected MD 10% POE","MW","Non-Coincident",1.1971636334645537]
["ED_MDU541_01167",null,null,null,null,"Coincident",0.86546520225083268]
["ED_MDU541_01168",null,null,"Weather Corrected MD 10% POE","MVA","Non-Coincident",1.2026151705530761]
["ED_MDU541_01169",null,null,null,null,"Coincident",0.86546520225083268]
["ED_MDU541_01170",null,null,"Weather Corrected MD 50% POE","MW","Non-Coincident",1.133793145418178]
["ED_MDU541_01171",null,null,null,null,"Coincident",0.81965279138175962]
["ED_MDU541_01172",null,null,"Weather Corrected MD 50% POE","MVA","Non-Coincident",1.1389561116244538]
["ED_MDU541_01173",null,null,null,null,"Coincident",0.81965279138175962]
["ED_MDU541_01174",null,"Alstonville","Substation Rating","MVA","Non-Coincident",48]
["ED_MDU541_01175",null,null,null,null,"Coincident",48]
["ED_MDU541_01176",null,null,"Raw Adjusted MD","MW","Non-Coincident",11.233799999999999]
["ED_MDU541_01177",null,null,null,null,"Coincident",9.4589999999999996]
["ED_MDU541_01178",null,null,"Raw Adjusted MD","MVA","Non-Coincident",11.252681680381791]
["ED_MDU541_01179",null,null,null,null,"Coincident",9.5241857793724289]
["ED_MDU541_01180",null,null,"Date MD occurred",null,"Non-Coincident","2014-08-27"]
["ED_MDU541_01181",null,null,null,null,"Coincident","2014-07-10"]
["ED_MDU541_01182",null,null,"Half hour time period MD occurred",null,"Non-Coincident","18:30:00"]
["ED_MDU541_01183",null,null,null,null,"Coincident","18:30:00"]
["ED_MDU541_01184",null,null,"Winter/Summer Peaking",null,"Non-Coincident","Winter"]
["ED_MDU541_01185",null,null,null,null,"Coincident","Winter"]
["ED_MDU541_01186",null,null,"Adjustments - Embedded generation","MW","Non-Coincident",0]
["ED_MDU541_01187",null,null,null,null,"Coincident",0]
["ED_MDU541_01188",null,null,"Weather Corrected MD 10% POE","MW","Non-Coincident",11.227370496617526]
["ED_MDU541_01189",null,null,null,null,"Coincident",9.4535862777960418]
["ED_MDU541_01190",null,null,"Weather Corrected MD 10% POE","MVA","Non-Coincident",11.24624137034192]
["ED_MDU541_01191",null,null,null,null,"Coincident",9.4535862777960418]
["ED_MDU541_01192",null,null,"Weather Corrected MD 50% POE","MW","Non-Coincident",10.542656013672302]
["ED_MDU541_01193",null,null,null,null,"Coincident",8.8770481255965308]
["ED_MDU541_01194",null,null,"Weather Corrected MD 50% POE","MVA","Non-Coincident",10.560376024819494]
["ED_MDU541_01195",null,null,null,null,"Coincident",8.8770481255965308]
["ED_MDU541_01196",null,"Anona","Substation Rating","MVA","Non-Coincident",5.5]
["ED_MDU541_01197",null,null,null,null,"Coincident",6]
["ED_MDU541_01198",null,null,"Raw Adjusted MD","MW","Non-Coincident",1.2508200000000003]
["ED_MDU541_01199",null,null,null,null,"Coincident",0.9405]
["ED_MDU541_01200",null,null,"Raw Adjusted MD","MVA","Non-Coincident",1.251487200094352]
["ED_MDU541_01201",null,null,null,null,"Coincident",0.97089180159274191]
["ED_MDU541_01202",null,null,"Date MD occurred",null,"Non-Coincident","2015-01-03"]
["ED_MDU541_01203",null,null,null,null,"Coincident","2014-07-10"]
["ED_MDU541_01204",null,null,"Half hour time period MD occurred",null,"Non-Coincident","18:30:00"]
["ED_MDU541_01205",null,null,null,null,"Coincident","18:30:00"]
["ED_MDU541_01206",null,null,"Winter/Summer Peaking",null,"Non-Coincident","Summer"]
["ED_MDU541_01207",null,null,null,null,"Coincident","Winter"]
["ED_MDU541_01208",null,null,"Adjustments - Embedded generation","MW","Non-Coincident",0]
["ED_MDU541_01209",null,null,null,null,"Coincident",0]
["ED_MDU541_01210",null,null,"Weather Corrected MD 10% POE","MW","Non-Coincident",1.2407790059580088]
["ED_MDU541_01211",null,null,null,null,"Coincident",0.93295010881142537]
["ED_MDU541_01212",null,null,"Weather Corrected MD 10% POE","MVA","Non-Coincident",1.2414408500841381]
["ED_MDU541_01213",null,null,null,null,"Coincident",0.93295010881142537]
["ED_MDU541_01214",null,null,"Weather Corrected MD 50% POE","MW","Non-Coincident",1.1500476374453474]
["ED_MDU541_01215",null,null,null,null,"Coincident",0.86472858046509415]
["ED_MDU541_01216",null,null,"Weather Corrected MD 50% POE","MVA","Non-Coincident",1.1506610845378249]
["ED_MDU541_01217",null,null,null,null,"Coincident",0.86472858046509415]
["ED_MDU541_01218",null,"Ardlethan","Substation Rating","MVA","Non-Coincident",6.0500000000000007]
["ED_MDU541_01219",null,null,null,null,"Coincident",6.6]
["ED_MDU541_01220",null,null,"Raw Adjusted MD","MW","Non-Coincident",0.6167999999999999]
["ED_MDU541_01221",null,null,null,null,"Coincident",0.46920000000000001]
["ED_MDU541_01222",null,null,"Raw Adjusted MD","MVA","Non-Coincident",0.64286521137793728]
["ED_MDU541_01223",null,null,null,null,"Coincident",0.47442246995689402]
["ED_MDU541_01224",null,null,"Date MD occurred",null,"Non-Coincident","2015-02-09"]
["ED_MDU541_01225",null,null,null,null,"Coincident","2014-07-10"]
["ED_MDU541_01226",null,null,"Half hour time period MD occurred",null,"Non-Coincident","18:00:00"]
["ED_MDU541_01227",null,null,null,null,"Coincident","18:30:00"]
["ED_MDU541_01228",null,null,"Winter/Summer Peaking",null,"Non-Coincident","Summer"]
["ED_MDU541_01229",null,null,null,null,"Coincident","Winter"]
["ED_MDU541_01230",null,null,"Adjustments - Embedded generation","MW","Non-Coincident",0]
["ED_MDU541_01231",null,null,null,null,"Coincident",0]
["ED_MDU541_01232",null,null,"Weather Corrected MD 10% POE","MW","Non-Coincident",0.66133617821486634]
["ED_MDU541_01233",null,null,null,null,"Coincident",0.50307868809730105]
["ED_MDU541_01234",null,null,"Weather Corrected MD 10% POE","MVA","Non-Coincident",0.68928343385210322]
["ED_MDU541_01235",null,null,null,null,"Coincident",0.50307868809730105]
["ED_MDU541_01236",null,null,"Weather Corrected MD 50% POE","MW","Non-Coincident",0.6160592203306634]
["ED_MDU541_01237",null,null,null,null,"Coincident",0.46863648861729457]
["ED_MDU541_01238",null,null,"Weather Corrected MD 50% POE","MVA","Non-Coincident",0.64209312726848122]
["ED_MDU541_01239",null,null,null,null,"Coincident",0.46863648861729457]
["ED_MDU541_01240",null,"Ariah Park","Substation Rating","MVA","Non-Coincident",6.6000000000000005]
["ED_MDU541_01241",null,null,null,null,"Coincident",7.1999999999999993]
["ED_MDU541_01242",null,null,"Raw Adjusted MD","MW","Non-Coincident",0.81674999999999998]
["ED_MDU541_01243",null,null,null,null,"Coincident",0.55620000000000003]
["ED_MDU541_01244",null,null,"Raw Adjusted MD","MVA","Non-Coincident",0.83732957221156357]
["ED_MDU541_01245",null,null,null,null,"Coincident",0.55780617601457227]
["ED_MDU541_01246",null,null,"Date MD occurred",null,"Non-Coincident","2015-01-03"]
["ED_MDU541_01247",null,null,null,null,"Coincident","2014-07-10"]
["ED_MDU541_01248",null,null,"Half hour time period MD occurred",null,"Non-Coincident","18:00:00"]
["ED_MDU541_01249",null,null,null,null,"Coincident","18:30:00"]
["ED_MDU541_01250",null,null,"Winter/Summer Peaking",null,"Non-Coincident","Summer"]
["ED_MDU541_01251",null,null,null,null,"Coincident","Winter"]
["ED_MDU541_01252",null,null,"Adjustments - Embedded generation","MW","Non-Coincident",0]
["ED_MDU541_01253",null,null,null,null,"Coincident",0]
["ED_MDU541_01254",null,null,"Weather Corrected MD 10% POE","MW","Non-Coincident",0.88380664943637388]
["ED_MDU541_01255",null,null,null,null,"Coincident",0.60186502407898523]
["ED_MDU541_01256",null,null,"Weather Corrected MD 10% POE","MVA","Non-Coincident",0.90607584167774025]
["ED_MDU541_01257",null,null,null,null,"Coincident",0.60186502407898523]
["ED_MDU541_01258",null,null,"Weather Corrected MD 50% POE","MW","Non-Coincident",0.81854522459300594]
["ED_MDU541_01259",null,null,null,null,"Coincident",0.55742253311127021]
["ED_MDU541_01260",null,null,"Weather Corrected MD 50% POE","MVA","Non-Coincident",0.8391700309082093]
["ED_MDU541_01261",null,null,null,null,"Coincident",0.55742253311127021]
["ED_MDU541_01262",null,"Ashford","Substation Rating","MVA","Non-Coincident",3.3000000000000003]
["ED_MDU541_01263",null,null,null,null,"Coincident",3.5999999999999996]
["ED_MDU541_01264",null,null,"Raw Adjusted MD","MW","Non-Coincident",0.62562406351071076]
["ED_MDU541_01265",null,null,null,null,"Coincident",0.51355536744282404]
["ED_MDU541_01266",null,null,"Raw Adjusted MD","MVA","Non-Coincident",0.65855164580074821]
["ED_MDU541_01267",null,null,null,null,"Coincident",0.54058459730823583]
["ED_MDU541_01268",null,null,"Date MD occurred",null,"Non-Coincident","2014-11-15"]
["ED_MDU541_01269",null,null,null,null,"Coincident","2014-07-10"]
["ED_MDU541_01270",null,null,"Half hour time period MD occurred",null,"Non-Coincident","18:30:00"]
["ED_MDU541_01271",null,null,null,null,"Coincident","18:30:00"]
["ED_MDU541_01272",null,null,"Winter/Summer Peaking",null,"Non-Coincident","Summer"]
["ED_MDU541_01273",null,null,null,null,"Coincident","Winter"]
["ED_MDU541_01274",null,null,"Adjustments - Embedded generation","MW","Non-Coincident",0]
["ED_MDU541_01275",null,null,null,null,"Coincident",0]
["ED_MDU541_01276",null,null,"Weather Corrected MD 10% POE","MW","Non-Coincident",0.58905274587450773]
["ED_MDU541_01277",null,null,null,null,"Coincident",0.48353510837360597]
["ED_MDU541_01278",null,null,"Weather Corrected MD 10% POE","MVA","Non-Coincident",0.62005552197316616]
["ED_MDU541_01279",null,null,null,null,"Coincident",0.48353510837360597]
["ED_MDU541_01280",null,null,"Weather Corrected MD 50% POE","MW","Non-Coincident",0.53906888254009566]
["ED_MDU541_01281",null,null,null,null,"Coincident",0.44250490701454903]
["ED_MDU541_01282",null,null,"Weather Corrected MD 50% POE","MVA","Non-Coincident",0.56744092898957443]
["ED_MDU541_01283",null,null,null,null,"Coincident",0.44250490701454903]
["ED_MDU541_01284",null,"Ashley","Substation Rating","MVA","Non-Coincident",9]
["ED_MDU541_01285",null,null,null,null,"Coincident",9]
["ED_MDU541_01286",null,null,"Raw Adjusted MD","MW","Non-Coincident",5.8167]
["ED_MDU541_01287",null,null,null,null,"Coincident",5.7411000000000003]
["ED_MDU541_01288",null,null,"Raw Adjusted MD","MVA","Non-Coincident",5.977675743966044]
["ED_MDU541_01289",null,null,null,null,"Coincident",5.8861575666983299]
["ED_MDU541_01290",null,null,"Date MD occurred",null,"Non-Coincident","2014-07-12"]
["ED_MDU541_01291",null,null,null,null,"Coincident","2014-07-10"]
["ED_MDU541_01292",null,null,"Half hour time period MD occurred",null,"Non-Coincident","02:00:00"]
["ED_MDU541_01293",null,null,null,null,"Coincident","18:30:00"]
["ED_MDU541_01294",null,null,"Winter/Summer Peaking",null,"Non-Coincident","Winter"]
["ED_MDU541_01295",null,null,null,null,"Coincident","Winter"]
["ED_MDU541_01296",null,null,"Adjustments - Embedded generation","MW","Non-Coincident",0]
["ED_MDU541_01297",null,null,null,null,"Coincident",0]
["ED_MDU541_01298",null,null,"Weather Corrected MD 10% POE","MW","Non-Coincident",7.1283038322338736]
["ED_MDU541_01299",null,null,null,null,"Coincident",7.0356568382825131]
["ED_MDU541_01300",null,null,"Weather Corrected MD 10% POE","MVA","Non-Coincident",7.325577890137815]
["ED_MDU541_01301",null,null,null,null,"Coincident",7.0356568382825131]
["ED_MDU541_01302",null,null,"Weather Corrected MD 50% POE","MW","Non-Coincident",4.9326481445572501]
["ED_MDU541_01303",null,null,null,null,"Coincident",4.8685382197324305]
["ED_MDU541_01304",null,null,"Weather Corrected MD 50% POE","MVA","Non-Coincident",5.0691579705398233]
["ED_MDU541_01305",null,null,null,null,"Coincident",4.8685382197324305]
["ED_MDU541_01306",null,"Ashmont","Substation Rating","MVA","Non-Coincident",66]
["ED_MDU541_01307",null,null,null,null,"Coincident",72]
["ED_MDU541_01308",null,null,"Raw Adjusted MD","MW","Non-Coincident",17]
["ED_MDU541_01309",null,null,null,null,"Coincident",15.279999]
["ED_MDU541_01310",null,null,"Raw Adjusted MD","MVA","Non-Coincident",18.150746541120558]
["ED_MDU541_01311",null,null,null,null,"Coincident",15.671272106628772]
["ED_MDU541_01312",null,null,"Date MD occurred",null,"Non-Coincident","2015-02-23"]
["ED_MDU541_01313",null,null,null,null,"Coincident","2014-07-10"]
["ED_MDU541_01314",null,null,"Half hour time period MD occurred",null,"Non-Coincident","15:30:00"]
["ED_MDU541_01315",null,null,null,null,"Coincident","18:30:00"]
["ED_MDU541_01316",null,null,"Winter/Summer Peaking",null,"Non-Coincident","Summer"]
["ED_MDU541_01317",null,null,null,null,"Coincident","Winter"]
["ED_MDU541_01318",null,null,"Adjustments - Embedded generation","MW","Non-Coincident",0]
["ED_MDU541_01319",null,null,null,null,"Coincident",0]
["ED_MDU541_01320",null,null,"Weather Corrected MD 10% POE","MW","Non-Coincident",19.852382244159795]
["ED_MDU541_01321",null,null,null,null,"Coincident",17.843787108139967]
["ED_MDU541_01322",null,null,"Weather Corrected MD 10% POE","MVA","Non-Coincident",21.196209314775679]
["ED_MDU541_01323",null,null,null,null,"Coincident",17.843787108139967]
["ED_MDU541_01324",null,null,"Weather Corrected MD 50% POE","MW","Non-Coincident",18.781232830424283]
["ED_MDU541_01325",null,null,null,null,"Coincident",16.881012874567659]
["ED_MDU541_01326",null,null,"Weather Corrected MD 50% POE","MVA","Non-Coincident",20.052552754988437]
["ED_MDU541_01327",null,null,null,null,"Coincident",16.881012874567659]
["ED_MDU541_01328",null,"Attunga","Substation Rating","MVA","Non-Coincident",14.3]
["ED_MDU541_01329",null,null,null,null,"Coincident",15.6]
["ED_MDU541_01330",null,null,"Raw Adjusted MD","MW","Non-Coincident",2.7247837479882806]
["ED_MDU541_01331",null,null,null,null,"Coincident",1.8093202427418897]
["ED_MDU541_01332",null,null,"Raw Adjusted MD","MVA","Non-Coincident",2.8681934189350322]
["ED_MDU541_01333",null,null,null,null,"Coincident",1.9045476239388315]
["ED_MDU541_01334",null,null,"Date MD occurred",null,"Non-Coincident","2015-03-04"]
["ED_MDU541_01335",null,null,null,null,"Coincident","2014-07-10"]
["ED_MDU541_01336",null,null,"Half hour time period MD occurred",null,"Non-Coincident","19:30:00"]
["ED_MDU541_01337",null,null,null,null,"Coincident","18:30:00"]
["ED_MDU541_01338",null,null,"Winter/Summer Peaking",null,"Non-Coincident","Summer"]
["ED_MDU541_01339",null,null,null,null,"Coincident","Winter"]
["ED_MDU541_01340",null,null,"Adjustments - Embedded generation","MW","Non-Coincident",0]
["ED_MDU541_01341",null,null,null,null,"Coincident",0]
["ED_MDU541_01342",null,null,"Weather Corrected MD 10% POE","MW","Non-Coincident",2.724778432267764]
["ED_MDU541_01343",null,null,null,null,"Coincident",1.8093167129789343]
["ED_MDU541_01344",null,null,"Weather Corrected MD 10% POE","MVA","Non-Coincident",2.8681878234397513]
["ED_MDU541_01345",null,null,null,null,"Coincident",1.8093167129789343]
["ED_MDU541_01346",null,null,"Weather Corrected MD 50% POE","MW","Non-Coincident",2.4535303614496664]
["ED_MDU541_01347",null,null,null,null,"Coincident",1.6292016393705384]
["ED_MDU541_01348",null,null,"Weather Corrected MD 50% POE","MVA","Non-Coincident",2.5826635383680698]
["ED_MDU541_01349",null,null,null,null,"Coincident",1.6292016393705384]
["ED_MDU541_01350",null,"Ballina","Substation Rating","MVA","Non-Coincident",66]
["ED_MDU541_01351",null,null,null,null,"Coincident",72]
["ED_MDU541_01352",null,null,"Raw Adjusted MD","MW","Non-Coincident",24.224400000000003]
["ED_MDU541_01353",null,null,null,null,"Coincident",20.266200000000001]
["ED_MDU541_01354",null,null,"Raw Adjusted MD","MVA","Non-Coincident",24.66045912711278]
["ED_MDU541_01355",null,null,null,null,"Coincident",20.618680774482158]
["ED_MDU541_01356",null,null,"Date MD occurred",null,"Non-Coincident","2015-03-05"]
["ED_MDU541_01357",null,null,null,null,"Coincident","2014-07-10"]
["ED_MDU541_01358",null,null,"Half hour time period MD occurred",null,"Non-Coincident","16:00:00"]
["ED_MDU541_01359",null,null,null,null,"Coincident","18:30:00"]
["ED_MDU541_01360",null,null,"Winter/Summer Peaking",null,"Non-Coincident","Summer"]
["ED_MDU541_01361",null,null,null,null,"Coincident","Winter"]
["ED_MDU541_01362",null,null,"Adjustments - Embedded generation","MW","Non-Coincident",0]
["ED_MDU541_01363",null,null,null,null,"Coincident",0]
["ED_MDU541_01364",null,null,"Weather Corrected MD 10% POE","MW","Non-Coincident",23.382900658456499]
["ED_MDU541_01365",null,null,null,null,"Coincident",19.562199324829969]
["ED_MDU541_01366",null,null,"Weather Corrected MD 10% POE","MVA","Non-Coincident",23.803812105199917]
["ED_MDU541_01367",null,null,null,null,"Coincident",19.562199324829969]
["ED_MDU541_01368",null,null,"Weather Corrected MD 50% POE","MW","Non-Coincident",21.602072520608083]
["ED_MDU541_01369",null,null,null,null,"Coincident",18.072353582220718]
["ED_MDU541_01370",null,null,"Weather Corrected MD 50% POE","MVA","Non-Coincident",21.990927595952083]
["ED_MDU541_01371",null,null,null,null,"Coincident",18.072353582220718]
["ED_MDU541_01372",null,"Banora Point","Substation Rating","MVA","Non-Coincident",72]
["ED_MDU541_01373",null,null,null,null,"Coincident",72]
["ED_MDU541_01374",null,null,"Raw Adjusted MD","MW","Non-Coincident",12.86]
["ED_MDU541_01375",null,null,null,null,"Coincident",11.629999999999999]
["ED_MDU541_01376",null,null,"Raw Adjusted MD","MVA","Non-Coincident",12.9745134783544]
["ED_MDU541_01377",null,null,null,null,"Coincident",11.667124752911487]
["ED_MDU541_01378",null,null,"Date MD occurred",null,"Non-Coincident","2014-06-05"]
["ED_MDU541_01379",null,null,null,null,"Coincident","2014-07-10"]
["ED_MDU541_01380",null,null,"Half hour time period MD occurred",null,"Non-Coincident","18:30:00"]
["ED_MDU541_01381",null,null,null,null,"Coincident","18:30:00"]
["ED_MDU541_01382",null,null,"Winter/Summer Peaking",null,"Non-Coincident","Winter"]
["ED_MDU541_01383",null,null,null,null,"Coincident","Winter"]
["ED_MDU541_01384",null,null,"Adjustments - Embedded generation","MW","Non-Coincident",0]
["ED_MDU541_01385",null,null,null,null,"Coincident",0]
["ED_MDU541_01386",null,null,"Weather Corrected MD 10% POE","MW","Non-Coincident",11.23296516488724]
["ED_MDU541_01387",null,null,null,null,"Coincident",10.158583582242503]
["ED_MDU541_01388",null,null,"Weather Corrected MD 10% POE","MVA","Non-Coincident",11.332990508064928]
["ED_MDU541_01389",null,null,null,null,"Coincident",10.158583582242503]
["ED_MDU541_01390",null,null,"Weather Corrected MD 50% POE","MW","Non-Coincident",9.952371534858699]
["ED_MDU541_01391",null,null,null,null,"Coincident",9.0004728577299105]
["ED_MDU541_01392",null,null,"Weather Corrected MD 50% POE","MVA","Non-Coincident",10.040993671898512]
["ED_MDU541_01393",null,null,null,null,"Coincident",9.0004728577299105]
["ED_MDU541_01394",null,"Barham","Substation Rating","MVA","Non-Coincident",28.6]
["ED_MDU541_01395",null,null,null,null,"Coincident",31.2]
["ED_MDU541_01396",null,null,"Raw Adjusted MD","MW","Non-Coincident",5.9021999999999997]
["ED_MDU541_01397",null,null,null,null,"Coincident",4.1040000000000001]
["ED_MDU541_01398",null,null,"Raw Adjusted MD","MVA","Non-Coincident",6.1591373584293443]
["ED_MDU541_01399",null,null,null,null,"Coincident",4.1746905274523041]
["ED_MDU541_01400",null,null,"Date MD occurred",null,"Non-Coincident","2015-01-03"]
["ED_MDU541_01401",null,null,null,null,"Coincident","2014-07-10"]
["ED_MDU541_01402",null,null,"Half hour time period MD occurred",null,"Non-Coincident","18:00:00"]
["ED_MDU541_01403",null,null,null,null,"Coincident","18:30:00"]
["ED_MDU541_01404",null,null,"Winter/Summer Peaking",null,"Non-Coincident","Summer"]
["ED_MDU541_01405",null,null,null,null,"Coincident","Winter"]
["ED_MDU541_01406",null,null,"Adjustments - Embedded generation","MW","Non-Coincident",0]
["ED_MDU541_01407",null,null,null,null,"Coincident",0]
["ED_MDU541_01408",null,null,"Weather Corrected MD 10% POE","MW","Non-Coincident",5.7597028596343867]
["ED_MDU541_01409",null,null,null,null,"Coincident",4.0049169014841119]
["ED_MDU541_01410",null,null,"Weather Corrected MD 10% POE","MVA","Non-Coincident",6.0104369652377887]
["ED_MDU541_01411",null,null,null,null,"Coincident",4.0049169014841119]
["ED_MDU541_01412",null,null,"Weather Corrected MD 50% POE","MW","Non-Coincident",5.2631323348904839]
["ED_MDU541_01413",null,null,null,null,"Coincident",3.659634560399605]
["ED_MDU541_01414",null,null,"Weather Corrected MD 50% POE","MVA","Non-Coincident",5.4922494978451155]
["ED_MDU541_01415",null,null,null,null,"Coincident",3.659634560399605]
["ED_MDU541_01416",null,"Barraba","Substation Rating","MVA","Non-Coincident",11]
["ED_MDU541_01417",null,null,null,null,"Coincident",12]
["ED_MDU541_01418",null,null,"Raw Adjusted MD","MW","Non-Coincident",2.1919499999999998]
["ED_MDU541_01419",null,null,null,null,"Coincident",1.8207]
["ED_MDU541_01420",null,null,"Raw Adjusted MD","MVA","Non-Coincident",2.2776075967997644]
["ED_MDU541_01421",null,null,null,null,"Coincident",1.8325823890073811]
["ED_MDU541_01422",null,null,"Date MD occurred",null,"Non-Coincident","2014-11-22"]
["ED_MDU541_01423",null,null,null,null,"Coincident","2014-07-10"]
["ED_MDU541_01424",null,null,"Half hour time period MD occurred",null,"Non-Coincident","17:30:00"]
["ED_MDU541_01425",null,null,null,null,"Coincident","18:30:00"]
["ED_MDU541_01426",null,null,"Winter/Summer Peaking",null,"Non-Coincident","Summer"]
["ED_MDU541_01427",null,null,null,null,"Coincident","Winter"]
["ED_MDU541_01428",null,null,"Adjustments - Embedded generation","MW","Non-Coincident",0]
["ED_MDU541_01429",null,null,null,null,"Coincident",0]
["ED_MDU541_01430",null,null,"Weather Corrected MD 10% POE","MW","Non-Coincident",2.1313139994077481]
["ED_MDU541_01431",null,null,null,null,"Coincident",1.7703339030186305]
["ED_MDU541_01432",null,null,"Weather Corrected MD 10% POE","MVA","Non-Coincident",2.2146020466784258]
["ED_MDU541_01433",null,null,null,null,"Coincident",1.7703339030186305]
["ED_MDU541_01434",null,null,"Weather Corrected MD 50% POE","MW","Non-Coincident",1.9607463263576237]
["ED_MDU541_01435",null,null,null,null,"Coincident",1.6286552322814505]
["ED_MDU541_01436",null,null,"Weather Corrected MD 50% POE","MVA","Non-Coincident",2.0373688853803023]
["ED_MDU541_01437",null,null,null,null,"Coincident",1.6286552322814505]
["ED_MDU541_01438",null,"Batemans Bay","Substation Rating","MVA","Non-Coincident",99.000000000000014]
["ED_MDU541_01439",null,null,null,null,"Coincident",108]
["ED_MDU541_01440",null,null,"Raw Adjusted MD","MW","Non-Coincident",17.116666793823242]
["ED_MDU541_01441",null,null,null,null,"Coincident",16.066667556762695]
["ED_MDU541_01442",null,null,"Raw Adjusted MD","MVA","Non-Coincident",17.137816862813118]
["ED_MDU541_01443",null,null,null,null,"Coincident",16.08026578581099]
["ED_MDU541_01444",null,null,"Date MD occurred",null,"Non-Coincident","2015-01-03"]
["ED_MDU541_01445",null,null,null,null,"Coincident","2014-07-10"]
["ED_MDU541_01446",null,null,"Half hour time period MD occurred",null,"Non-Coincident","19:00:00"]
["ED_MDU541_01447",null,null,null,null,"Coincident","18:30:00"]
["ED_MDU541_01448",null,null,"Winter/Summer Peaking",null,"Non-Coincident","Summer"]
["ED_MDU541_01449",null,null,null,null,"Coincident","Winter"]
["ED_MDU541_01450",null,null,"Adjustments - Embedded generation","MW","Non-Coincident",0]
["ED_MDU541_01451",null,null,null,null,"Coincident",0]
["ED_MDU541_01452",null,null,"Weather Corrected MD 10% POE","MW","Non-Coincident",17.117592474594094]
["ED_MDU541_01453",null,null,null,null,"Coincident",16.067536452873608]
["ED_MDU541_01454",null,null,"Weather Corrected MD 10% POE","MVA","Non-Coincident",17.138743687393827]
["ED_MDU541_01455",null,null,null,null,"Coincident",16.067536452873608]
["ED_MDU541_01456",null,null,"Weather Corrected MD 50% POE","MW","Non-Coincident",15.282220702916019]
["ED_MDU541_01457",null,null,null,null,"Coincident",14.344753129822687]
["ED_MDU541_01458",null,null,"Weather Corrected MD 50% POE","MVA","Non-Coincident",15.301104053633686]
["ED_MDU541_01459",null,null,null,null,"Coincident",14.344753129822687]
["ED_MDU541_01460",null,"Batlow","Substation Rating","MVA","Non-Coincident",12]
["ED_MDU541_01461",null,null,null,null,"Coincident",12]
["ED_MDU541_01462",null,null,"Raw Adjusted MD","MW","Non-Coincident",1.9092]
["ED_MDU541_01463",null,null,null,null,"Coincident",1.4795999999999998]
["ED_MDU541_01464",null,null,"Raw Adjusted MD","MVA","Non-Coincident",1.9585297751119333]
["ED_MDU541_01465",null,null,null,null,"Coincident",1.5259404968739771]
["ED_MDU541_01466",null,null,"Date MD occurred",null,"Non-Coincident","2014-06-29"]
["ED_MDU541_01467",null,null,null,null,"Coincident","2014-07-10"]
["ED_MDU541_01468",null,null,"Half hour time period MD occurred",null,"Non-Coincident","18:00:00"]
["ED_MDU541_01469",null,null,null,null,"Coincident","18:30:00"]
["ED_MDU541_01470",null,null,"Winter/Summer Peaking",null,"Non-Coincident","Winter"]
["ED_MDU541_01471",null,null,null,null,"Coincident","Winter"]
["ED_MDU541_01472",null,null,"Adjustments - Embedded generation","MW","Non-Coincident",0]
["ED_MDU541_01473",null,null,null,null,"Coincident",0]
["ED_MDU541_01474",null,null,"Weather Corrected MD 10% POE","MW","Non-Coincident",1.7148667651360712]
["ED_MDU541_01475",null,null,null,null,"Coincident",1.3289947966139379]
["ED_MDU541_01476",null,null,"Weather Corrected MD 10% POE","MVA","Non-Coincident",1.7591753718148322]
["ED_MDU541_01477",null,null,null,null,"Coincident",1.3289947966139379]
["ED_MDU541_01478",null,null,"Weather Corrected MD 50% POE","MW","Non-Coincident",1.5874024669194022]
["ED_MDU541_01479",null,null,null,null,"Coincident",1.230211968391969]
["ED_MDU541_01480",null,null,"Weather Corrected MD 50% POE","MVA","Non-Coincident",1.6284176600396945]
["ED_MDU541_01481",null,null,null,null,"Coincident",1.230211968391969]
["ED_MDU541_01482",null,"Beelbangera","Substation Rating","MVA","Non-Coincident",27.500000000000004]
["ED_MDU541_01483",null,null,null,null,"Coincident",30]
["ED_MDU541_01484",null,null,"Raw Adjusted MD","MW","Non-Coincident",8.19]
["ED_MDU541_01485",null,null,null,null,"Coincident",4.5036000000000005]
["ED_MDU541_01486",null,null,"Raw Adjusted MD","MVA","Non-Coincident",8.8142307662098336]
["ED_MDU541_01487",null,null,null,null,"Coincident",4.6271218873074877]
["ED_MDU541_01488",null,null,"Date MD occurred",null,"Non-Coincident","2015-02-16"]
["ED_MDU541_01489",null,null,null,null,"Coincident","2014-07-10"]
["ED_MDU541_01490",null,null,"Half hour time period MD occurred",null,"Non-Coincident","17:30:00"]
["ED_MDU541_01491",null,null,null,null,"Coincident","18:30:00"]
["ED_MDU541_01492",null,null,"Winter/Summer Peaking",null,"Non-Coincident","Summer"]
["ED_MDU541_01493",null,null,null,null,"Coincident","Winter"]
["ED_MDU541_01494",null,null,"Adjustments - Embedded generation","MW","Non-Coincident",0]
["ED_MDU541_01495",null,null,null,null,"Coincident",0]
["ED_MDU541_01496",null,null,"Weather Corrected MD 10% POE","MW","Non-Coincident",8.1854198246843062]
["ED_MDU541_01497",null,null,null,null,"Coincident",4.5010814068923377]
["ED_MDU541_01498",null,null,"Weather Corrected MD 10% POE","MVA","Non-Coincident",8.8093014961021137]
["ED_MDU541_01499",null,null,null,null,"Coincident",4.5010814068923377]
["ED_MDU541_01500",null,null,"Weather Corrected MD 50% POE","MW","Non-Coincident",7.2030758684515659]
["ED_MDU541_01501",null,null,null,null,"Coincident",3.9609001808496309]
["ED_MDU541_01502",null,null,"Weather Corrected MD 50% POE","MVA","Non-Coincident",7.7520846069657399]
["ED_MDU541_01503",null,null,null,null,"Coincident",3.9609001808496309]
["ED_MDU541_01504",null,"Bellata","Substation Rating","MVA","Non-Coincident",5.83]
["ED_MDU541_01505",null,null,null,null,"Coincident",6.3599999999999994]
["ED_MDU541_01506",null,null,"Raw Adjusted MD","MW","Non-Coincident",1.06392]
["ED_MDU541_01507",null,null,null,null,"Coincident",0.72744000000000009]
["ED_MDU541_01508",null,null,"Raw Adjusted MD","MVA","Non-Coincident",1.139555028947703]
["ED_MDU541_01509",null,null,null,null,"Coincident",0.73060391458026019]
["ED_MDU541_01510",null,null,"Date MD occurred",null,"Non-Coincident","2014-10-26"]
["ED_MDU541_01511",null,null,null,null,"Coincident","2014-07-10"]
["ED_MDU541_01512",null,null,"Half hour time period MD occurred",null,"Non-Coincident","19:00:00"]
["ED_MDU541_01513",null,null,null,null,"Coincident","18:30:00"]
["ED_MDU541_01514",null,null,"Winter/Summer Peaking",null,"Non-Coincident","Summer"]
["ED_MDU541_01515",null,null,null,null,"Coincident","Winter"]
["ED_MDU541_01516",null,null,"Adjustments - Embedded generation","MW","Non-Coincident",0]
["ED_MDU541_01517",null,null,null,null,"Coincident",0]
["ED_MDU541_01518",null,null,"Weather Corrected MD 10% POE","MW","Non-Coincident",0.98831982117625661]
["ED_MDU541_01519",null,null,null,null,"Coincident",0.6757494649188438]
["ED_MDU541_01520",null,null,"Weather Corrected MD 10% POE","MVA","Non-Coincident",1.0585803654693]
["ED_MDU541_01521",null,null,null,null,"Coincident",0.6757494649188438]
["ED_MDU541_01522",null,null,"Weather Corrected MD 50% POE","MW","Non-Coincident",0.88372360787144999]
["ED_MDU541_01523",null,null,null,null,"Coincident",0.60423330824686794]
["ED_MDU541_01524",null,null,"Weather Corrected MD 50% POE","MVA","Non-Coincident",0.94654831335976275]
["ED_MDU541_01525",null,null,null,null,"Coincident",0.60423330824686794]
["ED_MDU541_01526",null,"Bendemeer","Substation Rating","MVA","Non-Coincident",4.8]
["ED_MDU541_01527",null,null,null,null,"Coincident",4.8]
["ED_MDU541_01528",null,null,"Raw Adjusted MD","MW","Non-Coincident",0.71249999105930328]
["ED_MDU541_01529",null,null,null,null,"Coincident",0.61650000512599945]
["ED_MDU541_01530",null,null,"Raw Adjusted MD","MVA","Non-Coincident",0.72990953067504072]
["ED_MDU541_01531",null,null,null,null,"Coincident",0.63175648504339577]
["ED_MDU541_01532",null,null,"Date MD occurred",null,"Non-Coincident","2014-06-30"]
["ED_MDU541_01533",null,null,null,null,"Coincident","2014-07-10"]
["ED_MDU541_01534",null,null,"Half hour time period MD occurred",null,"Non-Coincident","18:30:00"]
["ED_MDU541_01535",null,null,null,null,"Coincident","18:30:00"]
["ED_MDU541_01536",null,null,"Winter/Summer Peaking",null,"Non-Coincident","Winter"]
["ED_MDU541_01537",null,null,null,null,"Coincident","Winter"]
["ED_MDU541_01538",null,null,"Adjustments - Embedded generation","MW","Non-Coincident",0]
["ED_MDU541_01539",null,null,null,null,"Coincident",0]
["ED_MDU541_01540",null,null,"Weather Corrected MD 10% POE","MW","Non-Coincident",0.6716772198537917]
["ED_MDU541_01541",null,null,null,null,"Coincident",0.58117756446177116]
["ED_MDU541_01542",null,null,"Weather Corrected MD 10% POE","MVA","Non-Coincident",0.68808927783943119]
["ED_MDU541_01543",null,null,null,null,"Coincident",0.58117756446177116]
["ED_MDU541_01544",null,null,"Weather Corrected MD 50% POE","MW","Non-Coincident",0.62939394185250919]
["ED_MDU541_01545",null,null,null,null,"Coincident",0.54459140104894244]
["ED_MDU541_01546",null,null,"Weather Corrected MD 50% POE","MVA","Non-Coincident",0.64477283153964515]
["ED_MDU541_01547",null,null,null,null,"Coincident",0.54459140104894244]
["ED_MDU541_01548",null,"Bendick Murrell","Substation Rating","MVA","Non-Coincident",3.08]
["ED_MDU541_01549",null,null,null,null,"Coincident",3.36]
["ED_MDU541_01550",null,null,"Raw Adjusted MD","MW","Non-Coincident",1.3848000000000003]
["ED_MDU541_01551",null,null,null,null,"Coincident",0.85139999999999993]
["ED_MDU541_01552",null,null,"Raw Adjusted MD","MVA","Non-Coincident",1.5444487244644933]
["ED_MDU541_01553",null,null,null,null,"Coincident",0.90780337078025874]
["ED_MDU541_01554",null,null,"Date MD occurred",null,"Non-Coincident","2014-11-23"]
["ED_MDU541_01555",null,null,null,null,"Coincident","2014-07-10"]
["ED_MDU541_01556",null,null,"Half hour time period MD occurred",null,"Non-Coincident","15:00:00"]
["ED_MDU541_01557",null,null,null,null,"Coincident","18:30:00"]
["ED_MDU541_01558",null,null,"Winter/Summer Peaking",null,"Non-Coincident","Summer"]
["ED_MDU541_01559",null,null,null,null,"Coincident","Winter"]
["ED_MDU541_01560",null,null,"Adjustments - Embedded generation","MW","Non-Coincident",0]
["ED_MDU541_01561",null,null,null,null,"Coincident",0]
["ED_MDU541_01562",null,null,"Weather Corrected MD 10% POE","MW","Non-Coincident",1.3687849562556311]
["ED_MDU541_01563",null,null,null,null,"Coincident",0.84155366244659446]
["ED_MDU541_01564",null,null,"Weather Corrected MD 10% POE","MVA","Non-Coincident",1.5265873626192927]
["ED_MDU541_01565",null,null,null,null,"Coincident",0.84155366244659446]
["ED_MDU541_01566",null,null,"Weather Corrected MD 50% POE","MW","Non-Coincident",1.2732398777931924]
["ED_MDU541_01567",null,null,null,null,"Coincident",0.78281082607822328]
["ED_MDU541_01568",null,null,"Weather Corrected MD 50% POE","MVA","Non-Coincident",1.4200272278993522]
["ED_MDU541_01569",null,null,null,null,"Coincident",0.78281082607822328]
["ED_MDU541_01570",null,"Bermagui","Substation Rating","MVA","Non-Coincident",12]
["ED_MDU541_01571",null,null,null,null,"Coincident",12]
["ED_MDU541_01572",null,null,"Raw Adjusted MD","MW","Non-Coincident",2.8342499999999999]
["ED_MDU541_01573",null,null,null,null,"Coincident",2.3895]
["ED_MDU541_01574",null,null,"Raw Adjusted MD","MVA","Non-Coincident",2.8513710846713725]
["ED_MDU541_01575",null,null,null,null,"Coincident",2.3956108302476844]
["ED_MDU541_01576",null,null,"Date MD occurred",null,"Non-Coincident","2014-04-19"]
["ED_MDU541_01577",null,null,null,null,"Coincident","2014-07-10"]
["ED_MDU541_01578",null,null,"Half hour time period MD occurred",null,"Non-Coincident","18:30:00"]
["ED_MDU541_01579",null,null,null,null,"Coincident","18:30:00"]
["ED_MDU541_01580",null,null,"Winter/Summer Peaking",null,"Non-Coincident","Winter"]
["ED_MDU541_01581",null,null,null,null,"Coincident","Winter"]
["ED_MDU541_01582",null,null,"Adjustments - Embedded generation","MW","Non-Coincident",0]
["ED_MDU541_01583",null,null,null,null,"Coincident",0]
["ED_MDU541_01584",null,null,"Weather Corrected MD 10% POE","MW","Non-Coincident",2.6004952441773055]
["ED_MDU541_01585",null,null,null,null,"Coincident",2.1924259983987548]
["ED_MDU541_01586",null,null,"Weather Corrected MD 10% POE","MVA","Non-Coincident",2.6162042674684973]
["ED_MDU541_01587",null,null,null,null,"Coincident",2.1924259983987548]
["ED_MDU541_01588",null,null,"Weather Corrected MD 50% POE","MW","Non-Coincident",2.4695630686945558]
["ED_MDU541_01589",null,null,null,null,"Coincident",2.082039676332589]
["ED_MDU541_01590",null,null,"Weather Corrected MD 50% POE","MVA","Non-Coincident",2.484481159335965]
["ED_MDU541_01591",null,null,null,null,"Coincident",2.082039676332589]
["ED_MDU541_01592",null,"Bethungra","Substation Rating","MVA","Non-Coincident",6.6000000000000005]
["ED_MDU541_01593",null,null,null,null,"Coincident",7.1999999999999993]
["ED_MDU541_01594",null,null,"Raw Adjusted MD","MW","Non-Coincident",0.8331666886806488]
["ED_MDU541_01595",null,null,null,null,"Coincident",0.69083334505558014]
["ED_MDU541_01596",null,null,"Raw Adjusted MD","MVA","Non-Coincident",0.88986777273011775]
["ED_MDU541_01597",null,null,null,null,"Coincident",0.72194932046697435]
["ED_MDU541_01598",null,null,"Date MD occurred",null,"Non-Coincident","2014-11-23"]
["ED_MDU541_01599",null,null,null,null,"Coincident","2014-07-10"]
["ED_MDU541_01600",null,null,"Half hour time period MD occurred",null,"Non-Coincident","20:00:00"]
["ED_MDU541_01601",null,null,null,null,"Coincident","18:30:00"]
["ED_MDU541_01602",null,null,"Winter/Summer Peaking",null,"Non-Coincident","Summer"]
["ED_MDU541_01603",null,null,null,null,"Coincident","Winter"]
["ED_MDU541_01604",null,null,"Adjustments - Embedded generation","MW","Non-Coincident",0]
["ED_MDU541_01605",null,null,null,null,"Coincident",0]
["ED_MDU541_01606",null,null,"Weather Corrected MD 10% POE","MW","Non-Coincident",0.80313398751703591]
["ED_MDU541_01607",null,null,null,null,"Coincident",0.6659312556084277]
["ED_MDU541_01608",null,null,"Weather Corrected MD 10% POE","MVA","Non-Coincident",0.85779119879044941]
["ED_MDU541_01609",null,null,null,null,"Coincident",0.6659312556084277]
["ED_MDU541_01610",null,null,"Weather Corrected MD 50% POE","MW","Non-Coincident",0.77201484864662784]
["ED_MDU541_01611",null,null,null,null,"Coincident",0.64012832914345319]
["ED_MDU541_01612",null,null,"Weather Corrected MD 50% POE","MVA","Non-Coincident",0.82455424972358204]
["ED_MDU541_01613",null,null,null,null,"Coincident",0.64012832914345319]
["ED_MDU541_01614",null,"Bingara","Substation Rating","MVA","Non-Coincident",11]
["ED_MDU541_01615",null,null,null,null,"Coincident",12]
["ED_MDU541_01616",null,null,"Raw Adjusted MD","MW","Non-Coincident",2.3158039690772148]
["ED_MDU541_01617",null,null,null,null,"Coincident",1.9153017924249951]
["ED_MDU541_01618",null,null,"Raw Adjusted MD","MVA","Non-Coincident",2.4376883885023317]
["ED_MDU541_01619",null,null,null,null,"Coincident",2.0161071499210474]
["ED_MDU541_01620",null,null,"Date MD occurred",null,"Non-Coincident","2014-11-23"]
["ED_MDU541_01621",null,null,null,null,"Coincident","2014-07-10"]
["ED_MDU541_01622",null,null,"Half hour time period MD occurred",null,"Non-Coincident","17:00:00"]
["ED_MDU541_01623",null,null,null,null,"Coincident","18:30:00"]
["ED_MDU541_01624",null,null,"Winter/Summer Peaking",null,"Non-Coincident","Summer"]
["ED_MDU541_01625",null,null,null,null,"Coincident","Winter"]
["ED_MDU541_01626",null,null,"Adjustments - Embedded generation","MW","Non-Coincident",0]
["ED_MDU541_01627",null,null,null,null,"Coincident",0]
["ED_MDU541_01628",null,null,"Weather Corrected MD 10% POE","MW","Non-Coincident",2.1954030080468767]
["ED_MDU541_01629",null,null,null,null,"Coincident",1.8157233395203705]
["ED_MDU541_01630",null,null,"Weather Corrected MD 10% POE","MVA","Non-Coincident",2.3109505347861865]
["ED_MDU541_01631",null,null,null,null,"Coincident",1.8157233395203705]
["ED_MDU541_01632",null,null,"Weather Corrected MD 50% POE","MW","Non-Coincident",2.0316879202597322]
["ED_MDU541_01633",null,null,null,null,"Coincident",1.6803216365814642]
["ED_MDU541_01634",null,null,"Weather Corrected MD 50% POE","MVA","Non-Coincident",2.1386188634312973]
["ED_MDU541_01635",null,null,null,null,"Coincident",1.6803216365814642]
["ED_MDU541_01636",null,"Blayney","Substation Rating","MVA","Non-Coincident",48]
["ED_MDU541_01637",null,null,null,null,"Coincident",48]
["ED_MDU541_01638",null,null,"Raw Adjusted MD","MW","Non-Coincident",10.54]
["ED_MDU541_01639",null,null,null,null,"Coincident",10.27]
["ED_MDU541_01640",null,null,"Raw Adjusted MD","MVA","Non-Coincident",10.66225585886964]
["ED_MDU541_01641",null,null,null,null,"Coincident",10.384820653241922]
["ED_MDU541_01642",null,null,"Date MD occurred",null,"Non-Coincident","2014-09-02"]
["ED_MDU541_01643",null,null,null,null,"Coincident","2014-07-10"]
["ED_MDU541_01644",null,null,"Half hour time period MD occurred",null,"Non-Coincident","19:00:00"]
["ED_MDU541_01645",null,null,null,null,"Coincident","18:30:00"]
["ED_MDU541_01646",null,null,"Winter/Summer Peaking",null,"Non-Coincident","Winter"]
["ED_MDU541_01647",null,null,null,null,"Coincident","Winter"]
["ED_MDU541_01648",null,null,"Adjustments - Embedded generation","MW","Non-Coincident",0]
["ED_MDU541_01649",null,null,null,null,"Coincident",0]
["ED_MDU541_01650",null,null,"Weather Corrected MD 10% POE","MW","Non-Coincident",10.480698614120843]
["ED_MDU541_01651",null,null,null,null,"Coincident",10.212217719831219]
["ED_MDU541_01652",null,null,"Weather Corrected MD 10% POE","MVA","Non-Coincident",10.60226662271887]
["ED_MDU541_01653",null,null,null,null,"Coincident",10.212217719831219]
["ED_MDU541_01654",null,null,"Weather Corrected MD 50% POE","MW","Non-Coincident",9.621661855957182]
["ED_MDU541_01655",null,null,null,null,"Coincident",9.375186647123364]
["ED_MDU541_01656",null,null,"Weather Corrected MD 50% POE","MVA","Non-Coincident",9.7332657016833029]
["ED_MDU541_01657",null,null,null,null,"Coincident",9.375186647123364]
["ED_MDU541_01658",null,"Blue Cow","Substation Rating","MVA","Non-Coincident",9.6]
["ED_MDU541_01659",null,null,null,null,"Coincident",9.6]
["ED_MDU541_01660",null,null,"Raw Adjusted MD","MW","Non-Coincident",4.6283334960937497]
["ED_MDU541_01661",null,null,null,null,"Coincident",0.66200000000000003]
["ED_MDU541_01662",null,null,"Raw Adjusted MD","MVA","Non-Coincident",5.625]
["ED_MDU541_01663",null,null,null,null,"Coincident",0.79300000000000004]
["ED_MDU541_01664",null,null,"Date MD occurred",null,"Non-Coincident","2014-06-24"]
["ED_MDU541_01665",null,null,null,null,"Coincident","2014-07-10"]
["ED_MDU541_01666",null,null,"Half hour time period MD occurred",null,"Non-Coincident","03:30:00"]
["ED_MDU541_01667",null,null,null,null,"Coincident","18:30:00"]
["ED_MDU541_01668",null,null,"Winter/Summer Peaking",null,"Non-Coincident","Winter"]
["ED_MDU541_01669",null,null,null,null,"Coincident","Winter"]
["ED_MDU541_01670",null,null,"Adjustments - Embedded generation","MW","Non-Coincident",0]
["ED_MDU541_01671",null,null,null,null,"Coincident",0]
["ED_MDU541_01672",null,null,"Weather Corrected MD 10% POE","MW","Non-Coincident",3.492494601294168]
["ED_MDU541_01673",null,null,null,null,"Coincident",0.49953864128591047]
["ED_MDU541_01674",null,null,"Weather Corrected MD 10% POE","MVA","Non-Coincident",4.2445692707450844]
["ED_MDU541_01675",null,null,null,null,"Coincident",0.49953864128591047]
["ED_MDU541_01676",null,null,"Weather Corrected MD 50% POE","MW","Non-Coincident",2.3040205946140557]
["ED_MDU541_01677",null,null,null,null,"Coincident",0.32954877493633616]
["ED_MDU541_01678",null,null,"Weather Corrected MD 50% POE","MVA","Non-Coincident",2.8001689713246081]
["ED_MDU541_01679",null,null,null,null,"Coincident",0.32954877493633616]
["ED_MDU541_01680",null,"Boambee South 11kV","Substation Rating","MVA","Non-Coincident",66]
["ED_MDU541_01681",null,null,null,null,"Coincident",72]
["ED_MDU541_01682",null,null,"Raw Adjusted MD","MW","Non-Coincident",13.88]
["ED_MDU541_01683",null,null,null,null,"Coincident",12.599999499999999]
["ED_MDU541_01684",null,null,"Raw Adjusted MD","MVA","Non-Coincident",14.014920620538669]
["ED_MDU541_01685",null,null,null,null,"Coincident",12.696203660937401]
["ED_MDU541_01686",null,null,"Date MD occurred",null,"Non-Coincident","2014-11-21"]
["ED_MDU541_01687",null,null,null,null,"Coincident","2014-07-10"]
["ED_MDU541_01688",null,null,"Half hour time period MD occurred",null,"Non-Coincident","14:00:00"]
["ED_MDU541_01689",null,null,null,null,"Coincident","18:30:00"]
["ED_MDU541_01690",null,null,"Winter/Summer Peaking",null,"Non-Coincident","Summer"]
["ED_MDU541_01691",null,null,null,null,"Coincident","Winter"]
["ED_MDU541_01692",null,null,"Adjustments - Embedded generation","MW","Non-Coincident",0]
["ED_MDU541_01693",null,null,null,null,"Coincident",0]
["ED_MDU541_01694",null,null,"Weather Corrected MD 10% POE","MW","Non-Coincident",14.411120053024414]
["ED_MDU541_01695",null,null,null,null,"Coincident",13.08214016300775]
["ED_MDU541_01696",null,null,"Weather Corrected MD 10% POE","MVA","Non-Coincident",14.55120342912033]
["ED_MDU541_01697",null,null,null,null,"Coincident",13.08214016300775]
["ED_MDU541_01698",null,null,"Weather Corrected MD 50% POE","MW","Non-Coincident",11.612410421436596]
["ED_MDU541_01699",null,null,null,null,"Coincident",10.54152489221152]
["ED_MDU541_01700",null,null,"Weather Corrected MD 50% POE","MVA","Non-Coincident",11.725288924319157]
["ED_MDU541_01701",null,null,null,null,"Coincident",10.54152489221152]
["ED_MDU541_01702",null,"Bodalla","Substation Rating","MVA","Non-Coincident",7.7000000000000011]
["ED_MDU541_01703",null,null,null,null,"Coincident",8.4]
["ED_MDU541_01704",null,null,"Raw Adjusted MD","MW","Non-Coincident",1.494]
["ED_MDU541_01705",null,null,null,null,"Coincident",1.026]
["ED_MDU541_01706",null,null,"Raw Adjusted MD","MVA","Non-Coincident",1.5664855569075637]
["ED_MDU541_01707",null,null,null,null,"Coincident",1.0348434664237873]
["ED_MDU541_01708",null,null,"Date MD occurred",null,"Non-Coincident","2015-02-06"]
["ED_MDU541_01709",null,null,null,null,"Coincident","2014-07-10"]
["ED_MDU541_01710",null,null,"Half hour time period MD occurred",null,"Non-Coincident","08:00:00"]
["ED_MDU541_01711",null,null,null,null,"Coincident","18:30:00"]
["ED_MDU541_01712",null,null,"Winter/Summer Peaking",null,"Non-Coincident","Summer"]
["ED_MDU541_01713",null,null,null,null,"Coincident","Winter"]
["ED_MDU541_01714",null,null,"Adjustments - Embedded generation","MW","Non-Coincident",0]
["ED_MDU541_01715",null,null,null,null,"Coincident",0]
["ED_MDU541_01716",null,null,"Weather Corrected MD 10% POE","MW","Non-Coincident",0.95632493357726267]
["ED_MDU541_01717",null,null,null,null,"Coincident",0.65675326763739728]
["ED_MDU541_01718",null,null,"Weather Corrected MD 10% POE","MVA","Non-Coincident",1.002723692208412]
["ED_MDU541_01719",null,null,null,null,"Coincident",0.65675326763739728]
["ED_MDU541_01720",null,null,"Weather Corrected MD 50% POE","MW","Non-Coincident",0.88282496164676183]
["ED_MDU541_01721",null,null,null,null,"Coincident",0.60627738329958347]
["ED_MDU541_01722",null,null,"Weather Corrected MD 50% POE","MVA","Non-Coincident",0.92565766512525194]
["ED_MDU541_01723",null,null,null,null,"Coincident",0.60627738329958347]
["ED_MDU541_01724",null,"Boggabri","Substation Rating","MVA","Non-Coincident",19.8]
["ED_MDU541_01725",null,null,null,null,"Coincident",19.8]
["ED_MDU541_01726",null,null,"Raw Adjusted MD","MW","Non-Coincident",5.4143999999999997]
["ED_MDU541_01727",null,null,null,null,"Coincident",5.202]
["ED_MDU541_01728",null,null,"Raw Adjusted MD","MVA","Non-Coincident",5.5707158893628739]
["ED_MDU541_01729",null,null,null,null,"Coincident",5.3181078439610454]
["ED_MDU541_01730",null,null,"Date MD occurred",null,"Non-Coincident","2014-07-05"]
["ED_MDU541_01731",null,null,null,null,"Coincident","2014-07-10"]
["ED_MDU541_01732",null,null,"Half hour time period MD occurred",null,"Non-Coincident","19:30:00"]
["ED_MDU541_01733",null,null,null,null,"Coincident","18:30:00"]
["ED_MDU541_01734",null,null,"Winter/Summer Peaking",null,"Non-Coincident","Winter"]
["ED_MDU541_01735",null,null,null,null,"Coincident","Winter"]
["ED_MDU541_01736",null,null,"Adjustments - Embedded generation","MW","Non-Coincident",0]
["ED_MDU541_01737",null,null,null,null,"Coincident",0]
["ED_MDU541_01738",null,null,"Weather Corrected MD 10% POE","MW","Non-Coincident",5.4473426366052982]
["ED_MDU541_01739",null,null,null,null,"Coincident",5.2336503390257016]
["ED_MDU541_01740",null,null,"Weather Corrected MD 10% POE","MVA","Non-Coincident",5.604609593037269]
["ED_MDU541_01741",null,null,null,null,"Coincident",5.2336503390257016]
["ED_MDU541_01742",null,null,"Weather Corrected MD 50% POE","MW","Non-Coincident",4.3627840745761368]
["ED_MDU541_01743",null,null,null,null,"Coincident",4.1916376248420999]
["ED_MDU541_01744",null,null,"Weather Corrected MD 50% POE","MVA","Non-Coincident",4.4887393923796894]
["ED_MDU541_01745",null,null,null,null,"Coincident",4.1916376248420999]
["ED_MDU541_01746",null,"Bohnock","Substation Rating","MVA","Non-Coincident",16.8]
["ED_MDU541_01747",null,null,null,null,"Coincident",16.8]
["ED_MDU541_01748",null,null,"Raw Adjusted MD","MW","Non-Coincident",5.0581666231155396]
["ED_MDU541_01749",null,null,null,null,"Coincident",4.979166567325592]
["ED_MDU541_01750",null,null,"Raw Adjusted MD","MVA","Non-Coincident",5.1568789246731024]
["ED_MDU541_01751",null,null,null,null,"Coincident",5.0904343596158652]
["ED_MDU541_01752",null,null,"Date MD occurred",null,"Non-Coincident","2014-07-19"]
["ED_MDU541_01753",null,null,null,null,"Coincident","2014-07-10"]
["ED_MDU541_01754",null,null,"Half hour time period MD occurred",null,"Non-Coincident","18:30:00"]
["ED_MDU541_01755",null,null,null,null,"Coincident","18:30:00"]
["ED_MDU541_01756",null,null,"Winter/Summer Peaking",null,"Non-Coincident","Winter"]
["ED_MDU541_01757",null,null,null,null,"Coincident","Winter"]
["ED_MDU541_01758",null,null,"Adjustments - Embedded generation","MW","Non-Coincident",0]
["ED_MDU541_01759",null,null,null,null,"Coincident",0]
["ED_MDU541_01760",null,null,"Weather Corrected MD 10% POE","MW","Non-Coincident",6.0756084609521652]
["ED_MDU541_01761",null,null,null,null,"Coincident",5.9807176747966349]
["ED_MDU541_01762",null,null,"Weather Corrected MD 10% POE","MVA","Non-Coincident",6.194176578459885]
["ED_MDU541_01763",null,null,null,null,"Coincident",5.9807176747966349]
["ED_MDU541_01764",null,null,"Weather Corrected MD 50% POE","MW","Non-Coincident",5.5594337903684021]
["ED_MDU541_01765",null,null,null,null,"Coincident",5.4726047844609012]
["ED_MDU541_01766",null,null,"Weather Corrected MD 50% POE","MVA","Non-Coincident",5.6679285367249648]
["ED_MDU541_01767",null,null,null,null,"Coincident",5.4726047844609012]
["ED_MDU541_01768",null,"Bombala","Substation Rating","MVA","Non-Coincident",34.799999999999997]
["ED_MDU541_01769",null,null,null,null,"Coincident",34.799999999999997]
["ED_MDU541_01770",null,null,"Raw Adjusted MD","MW","Non-Coincident",4.6920000000000002]
["ED_MDU541_01771",null,null,null,null,"Coincident",3.552]
["ED_MDU541_01772",null,null,"Raw Adjusted MD","MVA","Non-Coincident",4.695451415998253]
["ED_MDU541_01773",null,null,null,null,"Coincident",3.8940878264363787]
["ED_MDU541_01774",null,null,"Date MD occurred",null,"Non-Coincident","2014-06-13"]
["ED_MDU541_01775",null,null,null,null,"Coincident","2014-07-10"]
["ED_MDU541_01776",null,null,"Half hour time period MD occurred",null,"Non-Coincident","08:30:00"]
["ED_MDU541_01777",null,null,null,null,"Coincident","18:30:00"]
["ED_MDU541_01778",null,null,"Winter/Summer Peaking",null,"Non-Coincident","Winter"]
["ED_MDU541_01779",null,null,null,null,"Coincident","Winter"]
["ED_MDU541_01780",null,null,"Adjustments - Embedded generation","MW","Non-Coincident",0]
["ED_MDU541_01781",null,null,null,null,"Coincident",0]
["ED_MDU541_01782",null,null,"Weather Corrected MD 10% POE","MW","Non-Coincident",4.8090717477975655]
["ED_MDU541_01783",null,null,null,null,"Coincident",3.6406272054938094]
["ED_MDU541_01784",null,null,"Weather Corrected MD 10% POE","MVA","Non-Coincident",4.8126092812943888]
["ED_MDU541_01785",null,null,null,null,"Coincident",3.6406272054938094]
["ED_MDU541_01786",null,null,"Weather Corrected MD 50% POE","MW","Non-Coincident",4.4910736929538748]
["ED_MDU541_01787",null,null,null,null,"Coincident",3.3998921051517828]
["ED_MDU541_01788",null,null,"Weather Corrected MD 50% POE","MVA","Non-Coincident",4.494377308382945]
["ED_MDU541_01789",null,null,null,null,"Coincident",3.3998921051517828]
["ED_MDU541_01790",null,"Bomen","Substation Rating","MVA","Non-Coincident",66]
["ED_MDU541_01791",null,null,null,null,"Coincident",72]
["ED_MDU541_01792",null,null,"Raw Adjusted MD","MW","Non-Coincident",10.8]
["ED_MDU541_01793",null,null,null,null,"Coincident",8.44]
["ED_MDU541_01794",null,null,"Raw Adjusted MD","MVA","Non-Coincident",10.846197490364998]
["ED_MDU541_01795",null,null,null,null,"Coincident",8.4706552284932481]
["ED_MDU541_01796",null,null,"Date MD occurred",null,"Non-Coincident","2014-12-16"]
["ED_MDU541_01797",null,null,null,null,"Coincident","2014-07-10"]
["ED_MDU541_01798",null,null,"Half hour time period MD occurred",null,"Non-Coincident","11:00:00"]
["ED_MDU541_01799",null,null,null,null,"Coincident","18:30:00"]
["ED_MDU541_01800",null,null,"Winter/Summer Peaking",null,"Non-Coincident","Summer"]
["ED_MDU541_01801",null,null,null,null,"Coincident","Winter"]
["ED_MDU541_01802",null,null,"Adjustments - Embedded generation","MW","Non-Coincident",0]
["ED_MDU541_01803",null,null,null,null,"Coincident",0]
["ED_MDU541_01804",null,null,"Weather Corrected MD 10% POE","MW","Non-Coincident",11.107169835471087]
["ED_MDU541_01805",null,null,null,null,"Coincident",8.680047538090367]
["ED_MDU541_01806",null,null,"Weather Corrected MD 10% POE","MVA","Non-Coincident",11.154681258754101]
["ED_MDU541_01807",null,null,null,null,"Coincident",8.680047538090367]
["ED_MDU541_01808",null,null,"Weather Corrected MD 50% POE","MW","Non-Coincident",9.5791166329613127]
["ED_MDU541_01809",null,null,null,null,"Coincident",7.4859022576105057]
["ED_MDU541_01810",null,null,"Weather Corrected MD 50% POE","MVA","Non-Coincident",9.6200917392906096]
["ED_MDU541_01811",null,null,null,null,"Coincident",7.4859022576105057]
["ED_MDU541_01812",null,"Bonalbo","Substation Rating","MVA","Non-Coincident",6.0500000000000007]
["ED_MDU541_01813",null,null,null,null,"Coincident",6.6]
["ED_MDU541_01814",null,null,"Raw Adjusted MD","MW","Non-Coincident",0.75791078910540088]
["ED_MDU541_01815",null,null,null,null,"Coincident",0.53499585017128637]
["ED_MDU541_01816",null,null,"Raw Adjusted MD","MVA","Non-Coincident",0.84212309900600102]
["ED_MDU541_01817",null,null,null,null,"Coincident",0.59443983352365148]
["ED_MDU541_01818",null,null,"Date MD occurred",null,"Non-Coincident","2014-11-15"]
["ED_MDU541_01819",null,null,null,null,"Coincident","2014-07-10"]
["ED_MDU541_01820",null,null,"Half hour time period MD occurred",null,"Non-Coincident","18:00:00"]
["ED_MDU541_01821",null,null,null,null,"Coincident","18:30:00"]
["ED_MDU541_01822",null,null,"Winter/Summer Peaking",null,"Non-Coincident","Summer"]
["ED_MDU541_01823",null,null,null,null,"Coincident","Winter"]
["ED_MDU541_01824",null,null,"Adjustments - Embedded generation","MW","Non-Coincident",0]
["ED_MDU541_01825",null,null,null,null,"Coincident",0]
["ED_MDU541_01826",null,null,"Weather Corrected MD 10% POE","MW","Non-Coincident",0.73124969876676182]
["ED_MDU541_01827",null,null,null,null,"Coincident",0.51617625702490877]
["ED_MDU541_01828",null,null,"Weather Corrected MD 10% POE","MVA","Non-Coincident",0.81249966529640205]
["ED_MDU541_01829",null,null,null,null,"Coincident",0.51617625702490877]
["ED_MDU541_01830",null,null,"Weather Corrected MD 50% POE","MW","Non-Coincident",0.67814411143210396]
["ED_MDU541_01831",null,null,null,null,"Coincident",0.47868996015019871]
["ED_MDU541_01832",null,null,"Weather Corrected MD 50% POE","MVA","Non-Coincident",0.75349345714678218]
["ED_MDU541_01833",null,null,null,null,"Coincident",0.47868996015019871]
["ED_MDU541_01834",null,"Booral","Substation Rating","MVA","Non-Coincident",5.5]
["ED_MDU541_01835",null,null,null,null,"Coincident",6]
["ED_MDU541_01836",null,null,"Raw Adjusted MD","MW","Non-Coincident",1.6620673518087288]
["ED_MDU541_01837",null,null,null,null,"Coincident",0.95482802357703955]
["ED_MDU541_01838",null,null,"Raw Adjusted MD","MVA","Non-Coincident",1.7495445808512935]
["ED_MDU541_01839",null,null,null,null,"Coincident",1.0050821300810944]
["ED_MDU541_01840",null,null,"Date MD occurred",null,"Non-Coincident","2014-11-23"]
["ED_MDU541_01841",null,null,null,null,"Coincident","2014-07-10"]
["ED_MDU541_01842",null,null,"Half hour time period MD occurred",null,"Non-Coincident","18:30:00"]
["ED_MDU541_01843",null,null,null,null,"Coincident","18:30:00"]
["ED_MDU541_01844",null,null,"Winter/Summer Peaking",null,"Non-Coincident","Summer"]
["ED_MDU541_01845",null,null,null,null,"Coincident","Winter"]
["ED_MDU541_01846",null,null,"Adjustments - Embedded generation","MW","Non-Coincident",0]
["ED_MDU541_01847",null,null,null,null,"Coincident",0]
["ED_MDU541_01848",null,null,"Weather Corrected MD 10% POE","MW","Non-Coincident",1.5196800625154854]
["ED_MDU541_01849",null,null,null,null,"Coincident",0.87302906767407473]
["ED_MDU541_01850",null,null,"Weather Corrected MD 10% POE","MVA","Non-Coincident",1.5996632237005108]
["ED_MDU541_01851",null,null,null,null,"Coincident",0.87302906767407473]
["ED_MDU541_01852",null,null,"Weather Corrected MD 50% POE","MW","Non-Coincident",1.338894611803092]
["ED_MDU541_01853",null,null,null,null,"Coincident",0.76917105349231019]
["ED_MDU541_01854",null,null,"Weather Corrected MD 50% POE","MVA","Non-Coincident",1.4093627492664125]
["ED_MDU541_01855",null,null,null,null,"Coincident",0.76917105349231019]
["ED_MDU541_01856",null,"Boorowa","Substation Rating","MVA","Non-Coincident",12]
["ED_MDU541_01857",null,null,null,null,"Coincident",12]
["ED_MDU541_01858",null,null,"Raw Adjusted MD","MW","Non-Coincident",2.8496666550636292]
["ED_MDU541_01859",null,null,null,null,"Coincident",2.8051666915416718]
["ED_MDU541_01860",null,null,"Raw Adjusted MD","MVA","Non-Coincident",2.9107128074746749]
["ED_MDU541_01861",null,null,null,null,"Coincident",2.874145260377889]
["ED_MDU541_01862",null,null,"Date MD occurred",null,"Non-Coincident","2014-08-11"]
["ED_MDU541_01863",null,null,null,null,"Coincident","2014-07-10"]
["ED_MDU541_01864",null,null,"Half hour time period MD occurred",null,"Non-Coincident","19:00:00"]
["ED_MDU541_01865",null,null,null,null,"Coincident","18:30:00"]
["ED_MDU541_01866",null,null,"Winter/Summer Peaking",null,"Non-Coincident","Winter"]
["ED_MDU541_01867",null,null,null,null,"Coincident","Winter"]
["ED_MDU541_01868",null,null,"Adjustments - Embedded generation","MW","Non-Coincident",0]
["ED_MDU541_01869",null,null,null,null,"Coincident",0]
["ED_MDU541_01870",null,null,"Weather Corrected MD 10% POE","MW","Non-Coincident",2.9598020620689396]
["ED_MDU541_01871",null,null,null,null,"Coincident",2.9135822406872904]
["ED_MDU541_01872",null,null,"Weather Corrected MD 10% POE","MVA","Non-Coincident",3.0232075581000371]
["ED_MDU541_01873",null,null,null,null,"Coincident",2.9135822406872904]
["ED_MDU541_01874",null,null,"Weather Corrected MD 50% POE","MW","Non-Coincident",2.8225177395518504]
["ED_MDU541_01875",null,null,null,null,"Coincident",2.7784417293887143]
["ED_MDU541_01876",null,null,"Weather Corrected MD 50% POE","MVA","Non-Coincident",2.8829823022421541]
["ED_MDU541_01877",null,null,null,null,"Coincident",2.7784417293887143]
["ED_MDU541_01878",null,"Bootawa","Substation Rating","MVA","Non-Coincident",11]
["ED_MDU541_01879",null,null,null,null,"Coincident",12]
["ED_MDU541_01880",null,null,"Raw Adjusted MD","MW","Non-Coincident",3.7300000000000004]
["ED_MDU541_01881",null,null,null,null,"Coincident",1.1900000000000004]
["ED_MDU541_01882",null,null,"Raw Adjusted MD","MVA","Non-Coincident",3.9566778994504981]
["ED_MDU541_01883",null,null,null,null,"Coincident",1.2491997438360292]
["ED_MDU541_01884",null,null,"Date MD occurred",null,"Non-Coincident","2014-11-14"]
["ED_MDU541_01885",null,null,null,null,"Coincident","2014-07-10"]
["ED_MDU541_01886",null,null,"Half hour time period MD occurred",null,"Non-Coincident","23:00:00"]
["ED_MDU541_01887",null,null,null,null,"Coincident","18:30:00"]
["ED_MDU541_01888",null,null,"Winter/Summer Peaking",null,"Non-Coincident","Summer"]
["ED_MDU541_01889",null,null,null,null,"Coincident","Winter"]
["ED_MDU541_01890",null,null,"Adjustments - Embedded generation","MW","Non-Coincident",0]
["ED_MDU541_01891",null,null,null,null,"Coincident",0]
["ED_MDU541_01892",null,null,"Weather Corrected MD 10% POE","MW","Non-Coincident",3.8209357382606877]
["ED_MDU541_01893",null,null,null,null,"Coincident",1.2190116698472437]
["ED_MDU541_01894",null,null,"Weather Corrected MD 10% POE","MVA","Non-Coincident",4.0531399439133065]
["ED_MDU541_01895",null,null,null,null,"Coincident",1.2190116698472437]
["ED_MDU541_01896",null,null,"Weather Corrected MD 50% POE","MW","Non-Coincident",3.7154191199847442]
["ED_MDU541_01897",null,null,null,null,"Coincident",1.1853481910943287]
["ED_MDU541_01898",null,null,"Weather Corrected MD 50% POE","MVA","Non-Coincident",3.9412109166861806]
["ED_MDU541_01899",null,null,null,null,"Coincident",1.1853481910943287]
["ED_MDU541_01900",null,"Boronia St","Substation Rating","MVA","Non-Coincident",66]
["ED_MDU541_01901",null,null,null,null,"Coincident",72]
["ED_MDU541_01902",null,null,"Raw Adjusted MD","MW","Non-Coincident",17.239999999999998]
["ED_MDU541_01903",null,null,null,null,"Coincident",15.735207999999998]
["ED_MDU541_01904",null,null,"Raw Adjusted MD","MVA","Non-Coincident",18.334535718146778]
["ED_MDU541_01905",null,null,null,null,"Coincident",16.101560138582471]
["ED_MDU541_01906",null,null,"Date MD occurred",null,"Non-Coincident","2015-01-14"]
["ED_MDU541_01907",null,null,null,null,"Coincident","2014-07-10"]
["ED_MDU541_01908",null,null,"Half hour time period MD occurred",null,"Non-Coincident","12:30:00"]
["ED_MDU541_01909",null,null,null,null,"Coincident","18:30:00"]
["ED_MDU541_01910",null,null,"Winter/Summer Peaking",null,"Non-Coincident","Summer"]
["ED_MDU541_01911",null,null,null,null,"Coincident","Winter"]
["ED_MDU541_01912",null,null,"Adjustments - Embedded generation","MW","Non-Coincident",0]
["ED_MDU541_01913",null,null,null,null,"Coincident",0]
["ED_MDU541_01914",null,null,"Weather Corrected MD 10% POE","MW","Non-Coincident",17.942570480427296]
["ED_MDU541_01915",null,null,null,null,"Coincident",16.376454673096486]
["ED_MDU541_01916",null,null,"Weather Corrected MD 10% POE","MVA","Non-Coincident",19.081711099116028]
["ED_MDU541_01917",null,null,null,null,"Coincident",16.376454673096486]
["ED_MDU541_01918",null,null,"Weather Corrected MD 50% POE","MW","Non-Coincident",16.387811623255583]
["ED_MDU541_01919",null,null,null,null,"Coincident",14.957402816516487]
["ED_MDU541_01920",null,null,"Weather Corrected MD 50% POE","MVA","Non-Coincident",17.428243477310932]
["ED_MDU541_01921",null,null,null,null,"Coincident",14.957402816516487]
["ED_MDU541_01922",null,"Borthwick St","Substation Rating","MVA","Non-Coincident",66]
["ED_MDU541_01923",null,null,null,null,"Coincident",72]
["ED_MDU541_01924",null,null,"Raw Adjusted MD","MW","Non-Coincident",17.066667556762695]
["ED_MDU541_01925",null,null,null,null,"Coincident",13.699999809265137]
["ED_MDU541_01926",null,null,"Raw Adjusted MD","MVA","Non-Coincident",17.27558051233974]
["ED_MDU541_01927",null,null,null,null,"Coincident",13.732829126757791]
["ED_MDU541_01928",null,null,"Date MD occurred",null,"Non-Coincident","2014-11-23"]
["ED_MDU541_01929",null,null,null,null,"Coincident","2014-07-10"]
["ED_MDU541_01930",null,null,"Half hour time period MD occurred",null,"Non-Coincident","17:00:00"]
["ED_MDU541_01931",null,null,null,null,"Coincident","18:30:00"]
["ED_MDU541_01932",null,null,"Winter/Summer Peaking",null,"Non-Coincident","Summer"]
["ED_MDU541_01933",null,null,null,null,"Coincident","Winter"]
["ED_MDU541_01934",null,null,"Adjustments - Embedded generation","MW","Non-Coincident",0]
["ED_MDU541_01935",null,null,null,null,"Coincident",0]
["ED_MDU541_01936",null,null,"Weather Corrected MD 10% POE","MW","Non-Coincident",18.10423422743272]
["ED_MDU541_01937",null,null,null,null,"Coincident",14.53289018713194]
["ED_MDU541_01938",null,null,"Weather Corrected MD 10% POE","MVA","Non-Coincident",18.32584802920935]
["ED_MDU541_01939",null,null,null,null,"Coincident",14.53289018713194]
["ED_MDU541_01940",null,null,"Weather Corrected MD 50% POE","MW","Non-Coincident",16.904731435167101]
["ED_MDU541_01941",null,null,null,null,"Coincident",13.570008126495544]
["ED_MDU541_01942",null,null,"Weather Corrected MD 50% POE","MVA","Non-Coincident",17.111662131837146]
["ED_MDU541_01943",null,null,null,null,"Coincident",13.570008126495544]
["ED_MDU541_01944",null,"Bourke 22kV","Substation Rating","MVA","Non-Coincident",24]
["ED_MDU541_01945",null,null,null,null,"Coincident",24]
["ED_MDU541_01946",null,null,"Raw Adjusted MD","MW","Non-Coincident",7.3878719999999998]
["ED_MDU541_01947",null,null,null,null,"Coincident",4.8056180000000008]
["ED_MDU541_01948",null,null,"Raw Adjusted MD","MVA","Non-Coincident",7.8331201645630326]
["ED_MDU541_01949",null,null,null,null,"Coincident",4.839103532748009]
["ED_MDU541_01950",null,null,"Date MD occurred",null,"Non-Coincident","2014-04-24"]
["ED_MDU541_01951",null,null,null,null,"Coincident","2014-07-10"]
["ED_MDU541_01952",null,null,"Half hour time period MD occurred",null,"Non-Coincident","19:00:00"]
["ED_MDU541_01953",null,null,null,null,"Coincident","18:30:00"]
["ED_MDU541_01954",null,null,"Winter/Summer Peaking",null,"Non-Coincident","Winter"]
["ED_MDU541_01955",null,null,null,null,"Coincident","Winter"]
["ED_MDU541_01956",null,null,"Adjustments - Embedded generation","MW","Non-Coincident",0]
["ED_MDU541_01957",null,null,null,null,"Coincident",0]
["ED_MDU541_01958",null,null,"Weather Corrected MD 10% POE","MW","Non-Coincident",5.0599619554274833]
["ED_MDU541_01959",null,null,null,null,"Coincident",3.2913732468994477]
["ED_MDU541_01960",null,null,"Weather Corrected MD 10% POE","MVA","Non-Coincident",5.3649129309469377]
["ED_MDU541_01961",null,null,null,null,"Coincident",3.2913732468994477]
["ED_MDU541_01962",null,null,"Weather Corrected MD 50% POE","MW","Non-Coincident",4.0262172020237328]
["ED_MDU541_01963",null,null,null,null,"Coincident",2.6189492533106815]
["ED_MDU541_01964",null,null,"Weather Corrected MD 50% POE","MVA","Non-Coincident",4.268867023153982]
["ED_MDU541_01965",null,null,null,null,"Coincident",2.6189492533106815]
["ED_MDU541_01966",null,"Bourke 33 kV","Substation Rating","MVA","Non-Coincident",14.3]
["ED_MDU541_01967",null,null,null,null,"Coincident",15.6]
["ED_MDU541_01968",null,null,"Raw Adjusted MD","MW","Non-Coincident",1.55385]
["ED_MDU541_01969",null,null,null,null,"Coincident",1.1650500000000001]
["ED_MDU541_01970",null,null,"Raw Adjusted MD","MVA","Non-Coincident",2.8006813157694324]
["ED_MDU541_01971",null,null,null,null,"Coincident",2.7448690542537726]
["ED_MDU541_01972",null,null,"Date MD occurred",null,"Non-Coincident","2015-03-03"]
["ED_MDU541_01973",null,null,null,null,"Coincident","2014-07-10"]
["ED_MDU541_01974",null,null,"Half hour time period MD occurred",null,"Non-Coincident","18:30:00"]
["ED_MDU541_01975",null,null,null,null,"Coincident","18:30:00"]
["ED_MDU541_01976",null,null,"Winter/Summer Peaking",null,"Non-Coincident","Summer"]
["ED_MDU541_01977",null,null,null,null,"Coincident","Winter"]
["ED_MDU541_01978",null,null,"Adjustments - Embedded generation","MW","Non-Coincident",0]
["ED_MDU541_01979",null,null,null,null,"Coincident",0]
["ED_MDU541_01980",null,null,"Weather Corrected MD 10% POE","MW","Non-Coincident",1.6576929409737078]
["ED_MDU541_01981",null,null,null,null,"Coincident",1.2429096507908863]
["ED_MDU541_01982",null,null,"Weather Corrected MD 10% POE","MVA","Non-Coincident",2.9878493078919743]
["ED_MDU541_01983",null,null,null,null,"Coincident",1.2429096507908863]
["ED_MDU541_01984",null,null,"Weather Corrected MD 50% POE","MW","Non-Coincident",1.5173565038661916]
["ED_MDU541_01985",null,null,null,null,"Coincident",1.1376878043757808]
["ED_MDU541_01986",null,null,"Weather Corrected MD 50% POE","MVA","Non-Coincident",2.7349049198695314]
["ED_MDU541_01987",null,null,null,null,"Coincident",1.1376878043757808]
["ED_MDU541_01988",null,"Bourkelands","Substation Rating","MVA","Non-Coincident",28.6]
["ED_MDU541_01989",null,null,null,null,"Coincident",31.2]
["ED_MDU541_01990",null,null,"Raw Adjusted MD","MW","Non-Coincident",10.0656]
["ED_MDU541_01991",null,null,null,null,"Coincident",8.0784000000000002]
["ED_MDU541_01992",null,null,"Raw Adjusted MD","MVA","Non-Coincident",10.412165930295195]
["ED_MDU541_01993",null,null,null,null,"Coincident",8.1581051917709413]
["ED_MDU541_01994",null,null,"Date MD occurred",null,"Non-Coincident","2015-02-08"]
["ED_MDU541_01995",null,null,null,null,"Coincident","2014-07-10"]
["ED_MDU541_01996",null,null,"Half hour time period MD occurred",null,"Non-Coincident","17:30:00"]
["ED_MDU541_01997",null,null,null,null,"Coincident","18:30:00"]
["ED_MDU541_01998",null,null,"Winter/Summer Peaking",null,"Non-Coincident","Summer"]
["ED_MDU541_01999",null,null,null,null,"Coincident","Winter"]
["ED_MDU541_02000",null,null,"Adjustments - Embedded generation","MW","Non-Coincident",0]
["ED_MDU541_02001",null,null,null,null,"Coincident",0]
["ED_MDU541_02002",null,null,"Weather Corrected MD 10% POE","MW","Non-Coincident",11.840367727439688]
["ED_MDU541_02003",null,null,null,null,"Coincident",9.5027843992756296]
["ED_MDU541_02004",null,null,"Weather Corrected MD 10% POE","MVA","Non-Coincident",12.248040201658545]
["ED_MDU541_02005",null,null,null,null,"Coincident",9.5027843992756296]
["ED_MDU541_02006",null,null,"Weather Corrected MD 50% POE","MW","Non-Coincident",11.078084825237482]
["ED_MDU541_02007",null,null,null,null,"Coincident",8.890995117250684]
["ED_MDU541_02008",null,null,"Weather Corrected MD 50% POE","MVA","Non-Coincident",11.459511344605181]
["ED_MDU541_02009",null,null,null,null,"Coincident",8.890995117250684]
["ED_MDU541_02010",null,"Brewarrina","Substation Rating","MVA","Non-Coincident",8.8000000000000007]
["ED_MDU541_02011",null,null,null,null,"Coincident",9.6]
["ED_MDU541_02012",null,null,"Raw Adjusted MD","MW","Non-Coincident",2.5379999999999998]
["ED_MDU541_02013",null,null,null,null,"Coincident",1.8917999999999999]
["ED_MDU541_02014",null,null,"Raw Adjusted MD","MVA","Non-Coincident",2.5441228272235596]
["ED_MDU541_02015",null,null,null,null,"Coincident",2.0261076970388321]
["ED_MDU541_02016",null,null,"Date MD occurred",null,"Non-Coincident","2015-03-03"]
["ED_MDU541_02017",null,null,null,null,"Coincident","2014-07-10"]
["ED_MDU541_02018",null,null,"Half hour time period MD occurred",null,"Non-Coincident","16:00:00"]
["ED_MDU541_02019",null,null,null,null,"Coincident","18:30:00"]
["ED_MDU541_02020",null,null,"Winter/Summer Peaking",null,"Non-Coincident","Summer"]
["ED_MDU541_02021",null,null,null,null,"Coincident","Winter"]
["ED_MDU541_02022",null,null,"Adjustments - Embedded generation","MW","Non-Coincident",0]
["ED_MDU541_02023",null,null,null,null,"Coincident",0]
["ED_MDU541_02024",null,null,"Weather Corrected MD 10% POE","MW","Non-Coincident",2.6041117333412109]
["ED_MDU541_02025",null,null,null,null,"Coincident",1.9410790296039806]
["ED_MDU541_02026",null,null,"Weather Corrected MD 10% POE","MVA","Non-Coincident",2.610394052574502]
["ED_MDU541_02027",null,null,null,null,"Coincident",1.9410790296039806]
["ED_MDU541_02028",null,null,"Weather Corrected MD 50% POE","MW","Non-Coincident",2.325496580161952]
["ED_MDU541_02029",null,null,null,null,"Coincident",1.733402060815753]
["ED_MDU541_02030",null,null,"Weather Corrected MD 50% POE","MVA","Non-Coincident",2.3311067510718457]
["ED_MDU541_02031",null,null,null,null,"Coincident",1.733402060815753]
["ED_MDU541_02032",null,"Brisbane Grove","Substation Rating","MVA","Non-Coincident",6]
["ED_MDU541_02033",null,null,null,null,"Coincident",6]
["ED_MDU541_02034",null,null,"Raw Adjusted MD","MW","Non-Coincident",1.9183333740234374]
["ED_MDU541_02035",null,null,null,null,"Coincident",1.8083333740234375]
["ED_MDU541_02036",null,null,"Raw Adjusted MD","MVA","Non-Coincident",1.9602756744590188]
["ED_MDU541_02037",null,null,null,null,"Coincident",1.8610936547113877]
["ED_MDU541_02038",null,null,"Date MD occurred",null,"Non-Coincident","2014-06-08"]
["ED_MDU541_02039",null,null,null,null,"Coincident","2014-07-10"]
["ED_MDU541_02040",null,null,"Half hour time period MD occurred",null,"Non-Coincident","18:30:00"]
["ED_MDU541_02041",null,null,null,null,"Coincident","18:30:00"]
["ED_MDU541_02042",null,null,"Winter/Summer Peaking",null,"Non-Coincident","Winter"]
["ED_MDU541_02043",null,null,null,null,"Coincident","Winter"]
["ED_MDU541_02044",null,null,"Adjustments - Embedded generation","MW","Non-Coincident",0]
["ED_MDU541_02045",null,null,null,null,"Coincident",0]
["ED_MDU541_02046",null,null,"Weather Corrected MD 10% POE","MW","Non-Coincident",1.9291754567091122]
["ED_MDU541_02047",null,null,null,null,"Coincident",1.8185537560643892]
["ED_MDU541_02048",null,null,"Weather Corrected MD 10% POE","MVA","Non-Coincident",1.9713548076467113]
["ED_MDU541_02049",null,null,null,null,"Coincident",1.8185537560643892]
["ED_MDU541_02050",null,null,"Weather Corrected MD 50% POE","MW","Non-Coincident",1.8443182609386666]
["ED_MDU541_02051",null,null,null,null,"Coincident",1.738562394179308]
["ED_MDU541_02052",null,null,"Weather Corrected MD 50% POE","MVA","Non-Coincident",1.8846423003609059]
["ED_MDU541_02053",null,null,null,null,"Coincident",1.738562394179308]
["ED_MDU541_02054",null,"Brogo","Substation Rating","MVA","Non-Coincident",3.5999999999999996]
["ED_MDU541_02055",null,null,null,null,"Coincident",3.5999999999999996]
["ED_MDU541_02056",null,null,"Raw Adjusted MD","MW","Non-Coincident",0.64766669273376465]
["ED_MDU541_02057",null,null,null,null,"Coincident",0.3268333375453949]
["ED_MDU541_02058",null,null,"Raw Adjusted MD","MVA","Non-Coincident",0.67838694048559489]
["ED_MDU541_02059",null,null,null,null,"Coincident",0.3308400546202101]
["ED_MDU541_02060",null,null,"Date MD occurred",null,"Non-Coincident","2014-09-25"]
["ED_MDU541_02061",null,null,null,null,"Coincident","2014-07-10"]
["ED_MDU541_02062",null,null,"Half hour time period MD occurred",null,"Non-Coincident",1]
["ED_MDU541_02063",null,null,null,null,"Coincident","18:30:00"]
["ED_MDU541_02064",null,null,"Winter/Summer Peaking",null,"Non-Coincident","Winter"]
["ED_MDU541_02065",null,null,null,null,"Coincident","Winter"]
["ED_MDU541_02066",null,null,"Adjustments - Embedded generation","MW","Non-Coincident",0]
["ED_MDU541_02067",null,null,null,null,"Coincident",0]
["ED_MDU541_02068",null,null,"Weather Corrected MD 10% POE","MW","Non-Coincident",0.49910989412898127]
["ED_MDU541_02069",null,null,null,null,"Coincident",0.25186682336798738]
["ED_MDU541_02070",null,null,"Weather Corrected MD 10% POE","MVA","Non-Coincident",0.52278376801357651]
["ED_MDU541_02071",null,null,null,null,"Coincident",0.25186682336798738]
["ED_MDU541_02072",null,null,"Weather Corrected MD 50% POE","MW","Non-Coincident",0.45390089335320505]
["ED_MDU541_02073",null,null,null,null,"Coincident",0.22905291495427624]
["ED_MDU541_02074",null,null,"Weather Corrected MD 50% POE","MVA","Non-Coincident",0.47543040545414528]
["ED_MDU541_02075",null,null,null,null,"Coincident",0.22905291495427624]
["ED_MDU541_02076",null,"Bulahdelah","Substation Rating","MVA","Non-Coincident",14.3]
["ED_MDU541_02077",null,null,null,null,"Coincident",15.6]
["ED_MDU541_02078",null,null,"Raw Adjusted MD","MW","Non-Coincident",3.0077389999999995]
["ED_MDU541_02079",null,null,null,null,"Coincident",2.2838569999999998]
["ED_MDU541_02080",null,null,"Raw Adjusted MD","MVA","Non-Coincident",3.4428509734943868]
["ED_MDU541_02081",null,null,null,null,"Coincident",2.3398543539834376]
["ED_MDU541_02082",null,null,"Date MD occurred",null,"Non-Coincident","2014-12-03"]
["ED_MDU541_02083",null,null,null,null,"Coincident","2014-07-10"]
["ED_MDU541_02084",null,null,"Half hour time period MD occurred",null,"Non-Coincident","14:30:00"]
["ED_MDU541_02085",null,null,null,null,"Coincident","18:30:00"]
["ED_MDU541_02086",null,null,"Winter/Summer Peaking",null,"Non-Coincident","Summer"]
["ED_MDU541_02087",null,null,null,null,"Coincident","Winter"]
["ED_MDU541_02088",null,null,"Adjustments - Embedded generation","MW","Non-Coincident",0]
["ED_MDU541_02089",null,null,null,null,"Coincident",0]
["ED_MDU541_02090",null,null,"Weather Corrected MD 10% POE","MW","Non-Coincident",2.8668850959228958]
["ED_MDU541_02091",null,null,null,null,"Coincident",2.1769028477933681]
["ED_MDU541_02092",null,null,"Weather Corrected MD 10% POE","MVA","Non-Coincident",3.2816205606253375]
["ED_MDU541_02093",null,null,null,null,"Coincident",2.1769028477933681]
["ED_MDU541_02094",null,null,"Weather Corrected MD 50% POE","MW","Non-Coincident",2.593184547423113]
["ED_MDU541_02095",null,null,null,null,"Coincident",1.9690746706825655]
["ED_MDU541_02096",null,null,"Weather Corrected MD 50% POE","MVA","Non-Coincident",2.9683253578672439]
["ED_MDU541_02097",null,null,null,null,"Coincident",1.9690746706825655]
["ED_MDU541_02098",null,"Bulgary","Substation Rating","MVA","Non-Coincident",5.5]
["ED_MDU541_02099",null,null,null,null,"Coincident",6]
["ED_MDU541_02100",null,null,"Raw Adjusted MD","MW","Non-Coincident",0.26899999380111694]
["ED_MDU541_02101",null,null,null,null,"Coincident",5.9000000357627869E-2]
["ED_MDU541_02102",null,null,"Raw Adjusted MD","MVA","Non-Coincident",0.27456510454210747]
["ED_MDU541_02103",null,null,null,null,"Coincident",6.6648330892742094E-2]
["ED_MDU541_02104",null,null,"Date MD occurred",null,"Non-Coincident","2015-03-28"]
["ED_MDU541_02105",null,null,null,null,"Coincident","2014-07-10"]
["ED_MDU541_02106",null,null,"Half hour time period MD occurred",null,"Non-Coincident","13:00:00"]
["ED_MDU541_02107",null,null,null,null,"Coincident","18:30:00"]
["ED_MDU541_02108",null,null,"Winter/Summer Peaking",null,"Non-Coincident","Summer"]
["ED_MDU541_02109",null,null,null,null,"Coincident","Winter"]
["ED_MDU541_02110",null,null,"Adjustments - Embedded generation","MW","Non-Coincident",0]
["ED_MDU541_02111",null,null,null,null,"Coincident",0]
["ED_MDU541_02112",null,null,"Weather Corrected MD 10% POE","MW","Non-Coincident",0.23677577240814851]
["ED_MDU541_02113",null,null,null,null,"Coincident",5.1932234121487814E-2]
["ED_MDU541_02114",null,null,"Weather Corrected MD 10% POE","MVA","Non-Coincident",0.24167422380071296]
["ED_MDU541_02115",null,null,null,null,"Coincident",5.1932234121487814E-2]
["ED_MDU541_02116",null,null,"Weather Corrected MD 50% POE","MW","Non-Coincident",0.18537406842313917]
["ED_MDU541_02117",null,null,null,null,"Coincident",4.0658254108906715E-2]
["ED_MDU541_02118",null,null,"Weather Corrected MD 50% POE","MVA","Non-Coincident",0.18920911393635745]
["ED_MDU541_02119",null,null,null,null,"Coincident",4.0658254108906715E-2]
["ED_MDU541_02120",null,"Bullocks Flat","Substation Rating","MVA","Non-Coincident",7.5]
["ED_MDU541_02121",null,null,null,null,"Coincident",7.5]
["ED_MDU541_02122",null,null,"Raw Adjusted MD","MW","Non-Coincident",0.79416999999999993]
["ED_MDU541_02123",null,null,null,null,"Coincident",0.76719999999999999]
["ED_MDU541_02124",null,null,"Raw Adjusted MD","MVA","Non-Coincident",0.8001570339002213]
["ED_MDU541_02125",null,null,null,null,"Coincident",0.77246089868678791]
["ED_MDU541_02126",null,null,"Date MD occurred",null,"Non-Coincident","2014-07-10"]
["ED_MDU541_02127",null,null,null,null,"Coincident","2014-07-10"]
["ED_MDU541_02128",null,null,"Half hour time period MD occurred",null,"Non-Coincident","19:00:00"]
["ED_MDU541_02129",null,null,null,null,"Coincident","18:30:00"]
["ED_MDU541_02130",null,null,"Winter/Summer Peaking",null,"Non-Coincident","Winter"]
["ED_MDU541_02131",null,null,null,null,"Coincident","Winter"]
["ED_MDU541_02132",null,null,"Adjustments - Embedded generation","MW","Non-Coincident",0]
["ED_MDU541_02133",null,null,null,null,"Coincident",0]
["ED_MDU541_02134",null,null,"Weather Corrected MD 10% POE","MW","Non-Coincident",0.87171099016606246]
["ED_MDU541_02135",null,null,null,null,"Coincident",0.84210769942884156]
["ED_MDU541_02136",null,null,"Weather Corrected MD 10% POE","MVA","Non-Coincident",0.87828258472304621]
["ED_MDU541_02137",null,null,null,null,"Coincident",0.84210769942884156]
["ED_MDU541_02138",null,null,"Weather Corrected MD 50% POE","MW","Non-Coincident",0.72842329297891728]
["ED_MDU541_02139",null,null,null,null,"Coincident",0.70368605005656892]
["ED_MDU541_02140",null,null,"Weather Corrected MD 50% POE","MVA","Non-Coincident",0.73391468014888805]
["ED_MDU541_02141",null,null,null,null,"Coincident",0.70368605005656892]
["ED_MDU541_02142",null,"Bullocks Portal","Substation Rating","MVA","Non-Coincident",7.5]
["ED_MDU541_02143",null,null,null,null,"Coincident",7.5]
["ED_MDU541_02144",null,null,"Raw Adjusted MD","MW","Non-Coincident",0.98333334922790527]
["ED_MDU541_02145",null,null,null,null,"Coincident",0.39333334565162659]
["ED_MDU541_02146",null,null,"Raw Adjusted MD","MVA","Non-Coincident",0.99573536646224747]
["ED_MDU541_02147",null,null,null,null,"Coincident",0.42718719577600212]
["ED_MDU541_02148",null,null,"Date MD occurred",null,"Non-Coincident","2014-08-03"]
["ED_MDU541_02149",null,null,null,null,"Coincident","2014-07-10"]
["ED_MDU541_02150",null,null,"Half hour time period MD occurred",null,"Non-Coincident","09:30:00"]
["ED_MDU541_02151",null,null,null,null,"Coincident","18:30:00"]
["ED_MDU541_02152",null,null,"Winter/Summer Peaking",null,"Non-Coincident","Winter"]
["ED_MDU541_02153",null,null,null,null,"Coincident","Winter"]
["ED_MDU541_02154",null,null,"Adjustments - Embedded generation","MW","Non-Coincident",0]
["ED_MDU541_02155",null,null,null,null,"Coincident",0]
["ED_MDU541_02156",null,null,"Weather Corrected MD 10% POE","MW","Non-Coincident",1.337936759965584]
["ED_MDU541_02157",null,null,null,null,"Coincident",0.53517471209612288]
["ED_MDU541_02158",null,null,"Weather Corrected MD 10% POE","MVA","Non-Coincident",1.3548111136815255]
["ED_MDU541_02159",null,null,null,null,"Coincident",0.53517471209612288]
["ED_MDU541_02160",null,null,"Weather Corrected MD 50% POE","MW","Non-Coincident",1.0461196797620176]
["ED_MDU541_02161",null,null,null,null,"Coincident",0.41844787824585022]
["ED_MDU541_02162",null,null,"Weather Corrected MD 50% POE","MVA","Non-Coincident",1.0593135720547788]
["ED_MDU541_02163",null,null,null,null,"Coincident",0.41844787824585022]
["ED_MDU541_02164",null,"Bundarra","Substation Rating","MVA","Non-Coincident",6]
["ED_MDU541_02165",null,null,null,null,"Coincident",6]
["ED_MDU541_02166",null,null,"Raw Adjusted MD","MW","Non-Coincident",1.476]
["ED_MDU541_02167",null,null,null,null,"Coincident",0.81]
["ED_MDU541_02168",null,null,"Raw Adjusted MD","MVA","Non-Coincident",1.9642280926613385]
["ED_MDU541_02169",null,null,null,null,"Coincident",1.2242646772655006]
["ED_MDU541_02170",null,null,"Date MD occurred",null,"Non-Coincident","2014-08-08"]
["ED_MDU541_02171",null,null,null,null,"Coincident","2014-07-10"]
["ED_MDU541_02172",null,null,"Half hour time period MD occurred",null,"Non-Coincident","01:30:00"]
["ED_MDU541_02173",null,null,null,null,"Coincident","18:30:00"]
["ED_MDU541_02174",null,null,"Winter/Summer Peaking",null,"Non-Coincident","Winter"]
["ED_MDU541_02175",null,null,null,null,"Coincident","Winter"]
["ED_MDU541_02176",null,null,"Adjustments - Embedded generation","MW","Non-Coincident",0]
["ED_MDU541_02177",null,null,null,null,"Coincident",0]
["ED_MDU541_02178",null,null,"Weather Corrected MD 10% POE","MW","Non-Coincident",1.3519592991941325]
["ED_MDU541_02179",null,null,null,null,"Coincident",0.74192888370409715]
["ED_MDU541_02180",null,null,"Weather Corrected MD 10% POE","MVA","Non-Coincident",1.7991574767017957]
["ED_MDU541_02181",null,null,null,null,"Coincident",0.74192888370409715]
["ED_MDU541_02182",null,null,"Weather Corrected MD 50% POE","MW","Non-Coincident",1.0395923576613364]
["ED_MDU541_02183",null,null,null,null,"Coincident",0.57050800115561151]
["ED_MDU541_02184",null,null,"Weather Corrected MD 50% POE","MVA","Non-Coincident",1.3834664727875547]
["ED_MDU541_02185",null,null,null,null,"Coincident",0.57050800115561151]
["ED_MDU541_02186",null,"Bungendore","Substation Rating","MVA","Non-Coincident",24]
["ED_MDU541_02187",null,null,null,null,"Coincident",24]
["ED_MDU541_02188",null,null,"Raw Adjusted MD","MW","Non-Coincident",7.51]
["ED_MDU541_02189",null,null,null,null,"Coincident",6.55]
["ED_MDU541_02190",null,null,"Raw Adjusted MD","MVA","Non-Coincident",7.5673641381923735]
["ED_MDU541_02191",null,null,null,null,"Coincident",6.5654398177121385]
["ED_MDU541_02192",null,null,"Date MD occurred",null,"Non-Coincident","2014-08-13"]
["ED_MDU541_02193",null,null,null,null,"Coincident","2014-07-10"]
["ED_MDU541_02194",null,null,"Half hour time period MD occurred",null,"Non-Coincident","07:00:00"]
["ED_MDU541_02195",null,null,null,null,"Coincident","18:30:00"]
["ED_MDU541_02196",null,null,"Winter/Summer Peaking",null,"Non-Coincident","Winter"]
["ED_MDU541_02197",null,null,null,null,"Coincident","Winter"]
["ED_MDU541_02198",null,null,"Adjustments - Embedded generation","MW","Non-Coincident",1.8599999999999999E-3]
["ED_MDU541_02199",null,null,null,null,"Coincident",2.1100000000000003E-3]
["ED_MDU541_02200",null,null,"Weather Corrected MD 10% POE","MW","Non-Coincident",8.3125809433727156]
["ED_MDU541_02201",null,null,null,null,"Coincident",7.2499873740467757]
["ED_MDU541_02202",null,null,"Weather Corrected MD 10% POE","MVA","Non-Coincident",8.3760754895739034]
["ED_MDU541_02203",null,null,null,null,"Coincident",7.2499873740467757]
["ED_MDU541_02204",null,null,"Weather Corrected MD 50% POE","MW","Non-Coincident",7.8425318153887478]
["ED_MDU541_02205",null,null,null,null,"Coincident",6.8400244195467774]
["ED_MDU541_02206",null,null,"Weather Corrected MD 50% POE","MVA","Non-Coincident",7.9024359537157851]
["ED_MDU541_02207",null,null,null,null,"Coincident",6.8400244195467774]
["ED_MDU541_02208",null,"Buronga Town","Substation Rating","MVA","Non-Coincident",66]
["ED_MDU541_02209",null,null,null,null,"Coincident",72]
["ED_MDU541_02210",null,null,"Raw Adjusted MD","MW","Non-Coincident",7.8433332443237305]
["ED_MDU541_02211",null,null,null,null,"Coincident",3.7950000762939453]
["ED_MDU541_02212",null,null,"Raw Adjusted MD","MVA","Non-Coincident",8.3276894300909436]
["ED_MDU541_02213",null,null,null,null,"Coincident",3.839773523067739]
["ED_MDU541_02214",null,null,"Date MD occurred",null,"Non-Coincident","2015-01-03"]
["ED_MDU541_02215",null,null,null,null,"Coincident","2014-07-10"]
["ED_MDU541_02216",null,null,"Half hour time period MD occurred",null,"Non-Coincident","16:00:00"]
["ED_MDU541_02217",null,null,null,null,"Coincident","18:30:00"]
["ED_MDU541_02218",null,null,"Winter/Summer Peaking",null,"Non-Coincident","Summer"]
["ED_MDU541_02219",null,null,null,null,"Coincident","Winter"]
["ED_MDU541_02220",null,null,"Adjustments - Embedded generation","MW","Non-Coincident",0]
["ED_MDU541_02221",null,null,null,null,"Coincident",0]
["ED_MDU541_02222",null,null,"Weather Corrected MD 10% POE","MW","Non-Coincident",7.650950482934169]
["ED_MDU541_02223",null,null,null,null,"Coincident",3.7019155965952919]
["ED_MDU541_02224",null,null,"Weather Corrected MD 10% POE","MVA","Non-Coincident",8.1234262885605215]
["ED_MDU541_02225",null,null,null,null,"Coincident",3.7019155965952919]
["ED_MDU541_02226",null,null,"Weather Corrected MD 50% POE","MW","Non-Coincident",7.101391573460937]
["ED_MDU541_02227",null,null,null,null,"Coincident",3.4360112880045182]
["ED_MDU541_02228",null,null,"Weather Corrected MD 50% POE","MVA","Non-Coincident",7.5399299893379155]
["ED_MDU541_02229",null,null,null,null,"Coincident",3.4360112880045182]
["ED_MDU541_02230",null,"Burraga","Substation Rating","MVA","Non-Coincident",3]
["ED_MDU541_02231",null,null,null,null,"Coincident",3]
["ED_MDU541_02232",null,null,"Raw Adjusted MD","MW","Non-Coincident",0.46483334350585936]
["ED_MDU541_02233",null,null,null,null,"Coincident",0.27733334350585936]
["ED_MDU541_02234",null,null,"Raw Adjusted MD","MVA","Non-Coincident",0.56319981998828461]
["ED_MDU541_02235",null,null,null,null,"Coincident",0.28753190023329139]
["ED_MDU541_02236",null,null,"Date MD occurred",null,"Non-Coincident","2014-08-21"]
["ED_MDU541_02237",null,null,null,null,"Coincident","2014-07-10"]
["ED_MDU541_02238",null,null,"Half hour time period MD occurred",null,"Non-Coincident","16:00:00"]
["ED_MDU541_02239",null,null,null,null,"Coincident","18:30:00"]
["ED_MDU541_02240",null,null,"Winter/Summer Peaking",null,"Non-Coincident","Winter"]
["ED_MDU541_02241",null,null,null,null,"Coincident","Winter"]
["ED_MDU541_02242",null,null,"Adjustments - Embedded generation","MW","Non-Coincident",0]
["ED_MDU541_02243",null,null,null,null,"Coincident",0]
["ED_MDU541_02244",null,null,"Weather Corrected MD 10% POE","MW","Non-Coincident",0.30450642500702918]
["ED_MDU541_02245",null,null,null,null,"Coincident",0.18167755421605447]
["ED_MDU541_02246",null,null,"Weather Corrected MD 10% POE","MVA","Non-Coincident",0.36894505556715324]
["ED_MDU541_02247",null,null,null,null,"Coincident",0.18167755421605447]
["ED_MDU541_02248",null,null,"Weather Corrected MD 50% POE","MW","Non-Coincident",0.22101510555824191]
["ED_MDU541_02249",null,null,null,null,"Coincident",0.1318641595877578]
["ED_MDU541_02250",null,null,"Weather Corrected MD 50% POE","MVA","Non-Coincident",0.26778558251926371]
["ED_MDU541_02251",null,null,null,null,"Coincident",0.1318641595877578]
["ED_MDU541_02252",null,"Burren Junction","Substation Rating","MVA","Non-Coincident",12]
["ED_MDU541_02253",null,null,null,null,"Coincident",12]
["ED_MDU541_02254",null,null,"Raw Adjusted MD","MW","Non-Coincident",2.3639999999999999]
["ED_MDU541_02255",null,null,null,null,"Coincident",1.36]
["ED_MDU541_02256",null,null,"Raw Adjusted MD","MVA","Non-Coincident",2.4224104859622781]
["ED_MDU541_02257",null,null,null,null,"Coincident",1.3971399357258385]
["ED_MDU541_02258",null,null,"Date MD occurred",null,"Non-Coincident","2014-09-02"]
["ED_MDU541_02259",null,null,null,null,"Coincident","2014-07-10"]
["ED_MDU541_02260",null,null,"Half hour time period MD occurred",null,"Non-Coincident","19:30:00"]
["ED_MDU541_02261",null,null,null,null,"Coincident","18:30:00"]
["ED_MDU541_02262",null,null,"Winter/Summer Peaking",null,"Non-Coincident","Winter"]
["ED_MDU541_02263",null,null,null,null,"Coincident","Winter"]
["ED_MDU541_02264",null,null,"Adjustments - Embedded generation","MW","Non-Coincident",0]
["ED_MDU541_02265",null,null,null,null,"Coincident",0]
["ED_MDU541_02266",null,null,"Weather Corrected MD 10% POE","MW","Non-Coincident",3.2782891409823351]
["ED_MDU541_02267",null,null,null,null,"Coincident",1.8859869846598882]
["ED_MDU541_02268",null,null,"Weather Corrected MD 10% POE","MVA","Non-Coincident",3.3592901823738908]
["ED_MDU541_02269",null,null,null,null,"Coincident",1.8859869846598882]
["ED_MDU541_02270",null,null,"Weather Corrected MD 50% POE","MW","Non-Coincident",2.9872819314727828]
["ED_MDU541_02271",null,null,null,null,"Coincident",1.7185716695444098]
["ED_MDU541_02272",null,null,"Weather Corrected MD 50% POE","MVA","Non-Coincident",3.0610926714574096]
["ED_MDU541_02273",null,null,null,null,"Coincident",1.7185716695444098]
["ED_MDU541_02274",null,"Byabarra","Substation Rating","MVA","Non-Coincident",6.0500000000000007]
["ED_MDU541_02275",null,null,null,null,"Coincident",6.6]
["ED_MDU541_02276",null,null,"Raw Adjusted MD","MW","Non-Coincident",1.4114999771118164]
["ED_MDU541_02277",null,null,null,null,"Coincident",1.0800000429153442]
["ED_MDU541_02278",null,null,"Raw Adjusted MD","MVA","Non-Coincident",1.5603777916452402]
["ED_MDU541_02279",null,null,null,null,"Coincident",1.1287090407365592]
["ED_MDU541_02280",null,null,"Date MD occurred",null,"Non-Coincident","2014-11-23"]
["ED_MDU541_02281",null,null,null,null,"Coincident","2014-07-10"]
["ED_MDU541_02282",null,null,"Half hour time period MD occurred",null,"Non-Coincident","17:30:00"]
["ED_MDU541_02283",null,null,null,null,"Coincident","18:30:00"]
["ED_MDU541_02284",null,null,"Winter/Summer Peaking",null,"Non-Coincident","Summer"]
["ED_MDU541_02285",null,null,null,null,"Coincident","Winter"]
["ED_MDU541_02286",null,null,"Adjustments - Embedded generation","MW","Non-Coincident",0]
["ED_MDU541_02287",null,null,null,null,"Coincident",0]
["ED_MDU541_02288",null,null,"Weather Corrected MD 10% POE","MW","Non-Coincident",1.2433266121560478]
["ED_MDU541_02289",null,null,null,null,"Coincident",0.95132328463364013]
["ED_MDU541_02290",null,null,"Weather Corrected MD 10% POE","MVA","Non-Coincident",1.3744663583626284]
["ED_MDU541_02291",null,null,null,null,"Coincident",0.95132328463364013]
["ED_MDU541_02292",null,null,"Weather Corrected MD 50% POE","MW","Non-Coincident",1.1322137042909022]
["ED_MDU541_02293",null,null,null,null,"Coincident",0.86630596461330867]
["ED_MDU541_02294",null,null,"Weather Corrected MD 50% POE","MVA","Non-Coincident",1.2516338279982568]
["ED_MDU541_02295",null,null,null,null,"Coincident",0.86630596461330867]
["ED_MDU541_02296",null,"Byrock","Substation Rating","MVA","Non-Coincident",2.4]
["ED_MDU541_02297",null,null,null,null,"Coincident",2.4]
["ED_MDU541_02298",null,null,"Raw Adjusted MD","MW","Non-Coincident",7.8E-2]
["ED_MDU541_02299",null,null,null,null,"Coincident",5.2999999999999999E-2]
["ED_MDU541_02300",null,null,"Raw Adjusted MD","MVA","Non-Coincident",8.6330759292386636E-2]
["ED_MDU541_02301",null,null,null,null,"Coincident",6.5331769134844148E-2]
["ED_MDU541_02302",null,null,"Date MD occurred",null,"Non-Coincident","2014-08-04"]
["ED_MDU541_02303",null,null,null,null,"Coincident","2014-07-10"]
["ED_MDU541_02304",null,null,"Half hour time period MD occurred",null,"Non-Coincident","19:30:00"]
["ED_MDU541_02305",null,null,null,null,"Coincident","18:30:00"]
["ED_MDU541_02306",null,null,"Winter/Summer Peaking",null,"Non-Coincident","Winter"]
["ED_MDU541_02307",null,null,null,null,"Coincident","Winter"]
["ED_MDU541_02308",null,null,"Adjustments - Embedded generation","MW","Non-Coincident",0]
["ED_MDU541_02309",null,null,null,null,"Coincident",0]
["ED_MDU541_02310",null,null,"Weather Corrected MD 10% POE","MW","Non-Coincident",8.2106118487151061E-2]
["ED_MDU541_02311",null,null,null,null,"Coincident",5.5790054869474442E-2]
["ED_MDU541_02312",null,null,"Weather Corrected MD 10% POE","MVA","Non-Coincident",9.0875430148030956E-2]
["ED_MDU541_02313",null,null,null,null,"Coincident",5.5790054869474442E-2]
["ED_MDU541_02314",null,null,"Weather Corrected MD 50% POE","MW","Non-Coincident",6.6081075966361397E-2]
["ED_MDU541_02315",null,null,null,null,"Coincident",4.4901243925860951E-2]
["ED_MDU541_02316",null,null,"Weather Corrected MD 50% POE","MVA","Non-Coincident",7.3138839269664885E-2]
["ED_MDU541_02317",null,null,null,null,"Coincident",4.4901243925860951E-2]
["ED_MDU541_02318",null,"Canowindra","Substation Rating","MVA","Non-Coincident",14.3]
["ED_MDU541_02319",null,null,null,null,"Coincident",15.6]
["ED_MDU541_02320",null,null,"Raw Adjusted MD","MW","Non-Coincident",5.1398999999999999]
["ED_MDU541_02321",null,null,null,null,"Coincident",3.5667]
["ED_MDU541_02322",null,null,"Raw Adjusted MD","MVA","Non-Coincident",5.4025735367507952]
["ED_MDU541_02323",null,null,null,null,"Coincident",3.6254087948809302]
["ED_MDU541_02324",null,null,"Date MD occurred",null,"Non-Coincident","2014-11-23"]
["ED_MDU541_02325",null,null,null,null,"Coincident","2014-07-10"]
["ED_MDU541_02326",null,null,"Half hour time period MD occurred",null,"Non-Coincident","16:00:00"]
["ED_MDU541_02327",null,null,null,null,"Coincident","18:30:00"]
["ED_MDU541_02328",null,null,"Winter/Summer Peaking",null,"Non-Coincident","Summer"]
["ED_MDU541_02329",null,null,null,null,"Coincident","Winter"]
["ED_MDU541_02330",null,null,"Adjustments - Embedded generation","MW","Non-Coincident",0]
["ED_MDU541_02331",null,null,null,null,"Coincident",0]
["ED_MDU541_02332",null,null,"Weather Corrected MD 10% POE","MW","Non-Coincident",5.3292325455970078]
["ED_MDU541_02333",null,null,null,null,"Coincident",3.6980823985643396]
["ED_MDU541_02334",null,null,"Weather Corrected MD 10% POE","MVA","Non-Coincident",5.6015818833116349]
["ED_MDU541_02335",null,null,null,null,"Coincident",3.6980823985643396]
["ED_MDU541_02336",null,null,"Weather Corrected MD 50% POE","MW","Non-Coincident",4.836641922062868]
["ED_MDU541_02337",null,null,null,null,"Coincident",3.3562619396139288]
["ED_MDU541_02338",null,null,"Weather Corrected MD 50% POE","MVA","Non-Coincident",5.0838175168537045]
["ED_MDU541_02339",null,null,null,null,"Coincident",3.3562619396139288]
["ED_MDU541_02340",null,"Captains Flat","Substation Rating","MVA","Non-Coincident",12]
["ED_MDU541_02341",null,null,null,null,"Coincident",12]
["ED_MDU541_02342",null,null,"Raw Adjusted MD","MW","Non-Coincident",2.9618739999999999]
["ED_MDU541_02343",null,null,null,null,"Coincident",2.7069220000000001]
["ED_MDU541_02344",null,null,"Raw Adjusted MD","MVA","Non-Coincident",2.9653014961214312]
["ED_MDU541_02345",null,null,null,null,"Coincident",2.7143142687293969]
["ED_MDU541_02346",null,null,"Date MD occurred",null,"Non-Coincident","2014-06-24"]
["ED_MDU541_02347",null,null,null,null,"Coincident","2014-07-10"]
["ED_MDU541_02348",null,null,"Half hour time period MD occurred",null,"Non-Coincident","18:30:00"]
["ED_MDU541_02349",null,null,null,null,"Coincident","18:30:00"]
["ED_MDU541_02350",null,null,"Winter/Summer Peaking",null,"Non-Coincident","Winter"]
["ED_MDU541_02351",null,null,null,null,"Coincident","Winter"]
["ED_MDU541_02352",null,null,"Adjustments - Embedded generation","MW","Non-Coincident",0]
["ED_MDU541_02353",null,null,null,null,"Coincident",0]
["ED_MDU541_02354",null,null,"Weather Corrected MD 10% POE","MW","Non-Coincident",3.1478966647541133]
["ED_MDU541_02355",null,null,null,null,"Coincident",2.8769322177613006]
["ED_MDU541_02356",null,null,"Weather Corrected MD 10% POE","MVA","Non-Coincident",3.1515394272784851]
["ED_MDU541_02357",null,null,null,null,"Coincident",2.8769322177613006]
["ED_MDU541_02358",null,null,"Weather Corrected MD 50% POE","MW","Non-Coincident",3.0027979947423633]
["ED_MDU541_02359",null,null,null,null,"Coincident",2.7443233417505226]
["ED_MDU541_02360",null,null,"Weather Corrected MD 50% POE","MVA","Non-Coincident",3.0062728483250685]
["ED_MDU541_02361",null,null,null,null,"Coincident",2.7443233417505226]
["ED_MDU541_02362",null,"Carathool","Substation Rating","MVA","Non-Coincident",3.3000000000000003]
["ED_MDU541_02363",null,null,null,null,"Coincident",3.5999999999999996]
["ED_MDU541_02364",null,null,"Raw Adjusted MD","MW","Non-Coincident",0.63050001859664917]
["ED_MDU541_02365",null,null,null,null,"Coincident",0.19966666400432587]
["ED_MDU541_02366",null,null,"Raw Adjusted MD","MVA","Non-Coincident",0.70480867754897703]
["ED_MDU541_02367",null,null,null,null,"Coincident",0.20342071341316612]
["ED_MDU541_02368",null,null,"Date MD occurred",null,"Non-Coincident","2014-10-03"]
["ED_MDU541_02369",null,null,null,null,"Coincident","2014-07-10"]
["ED_MDU541_02370",null,null,"Half hour time period MD occurred",null,"Non-Coincident","18:30:00"]
["ED_MDU541_02371",null,null,null,null,"Coincident","18:30:00"]
["ED_MDU541_02372",null,null,"Winter/Summer Peaking",null,"Non-Coincident","Summer"]
["ED_MDU541_02373",null,null,null,null,"Coincident","Winter"]
["ED_MDU541_02374",null,null,"Adjustments - Embedded generation","MW","Non-Coincident",0]
["ED_MDU541_02375",null,null,null,null,"Coincident",0]
["ED_MDU541_02376",null,null,"Weather Corrected MD 10% POE","MW","Non-Coincident",0.58954639267050957]
["ED_MDU541_02377",null,null,null,null,"Coincident",0.18669747506480183]
["ED_MDU541_02378",null,null,"Weather Corrected MD 10% POE","MVA","Non-Coincident",0.65902839193679941]
["ED_MDU541_02379",null,null,null,null,"Coincident",0.18669747506480183]
["ED_MDU541_02380",null,null,"Weather Corrected MD 50% POE","MW","Non-Coincident",0.47267250387991067]
["ED_MDU541_02381",null,null,null,null,"Coincident",0.14968586714134494]
["ED_MDU541_02382",null,null,"Weather Corrected MD 50% POE","MVA","Non-Coincident",0.52838013092349512]
["ED_MDU541_02383",null,null,null,null,"Coincident",0.14968586714134494]
["ED_MDU541_02384",null,"Caroona","Substation Rating","MVA","Non-Coincident",4.95]
["ED_MDU541_02385",null,null,null,null,"Coincident",5.3999999999999995]
["ED_MDU541_02386",null,null,"Raw Adjusted MD","MW","Non-Coincident",0.8073333352804184]
["ED_MDU541_02387",null,null,null,null,"Coincident",0.31816666945815086]
["ED_MDU541_02388",null,null,"Raw Adjusted MD","MVA","Non-Coincident",0.91667213603895403]
["ED_MDU541_02389",null,null,null,null,"Coincident",0.32211297302723108]
["ED_MDU541_02390",null,null,"Date MD occurred",null,"Non-Coincident","2015-01-25"]
["ED_MDU541_02391",null,null,null,null,"Coincident","2014-07-10"]
["ED_MDU541_02392",null,null,"Half hour time period MD occurred",null,"Non-Coincident","15:00:00"]
["ED_MDU541_02393",null,null,null,null,"Coincident","18:30:00"]
["ED_MDU541_02394",null,null,"Winter/Summer Peaking",null,"Non-Coincident","Summer"]
["ED_MDU541_02395",null,null,null,null,"Coincident","Winter"]
["ED_MDU541_02396",null,null,"Adjustments - Embedded generation","MW","Non-Coincident",0]
["ED_MDU541_02397",null,null,null,null,"Coincident",0]
["ED_MDU541_02398",null,null,"Weather Corrected MD 10% POE","MW","Non-Coincident",0.79617967491026764]
["ED_MDU541_02399",null,null,null,null,"Coincident",0.31377105885078554]
["ED_MDU541_02400",null,null,"Weather Corrected MD 10% POE","MVA","Non-Coincident",0.90400791268862268]
["ED_MDU541_02401",null,null,null,null,"Coincident",0.31377105885078554]
["ED_MDU541_02402",null,null,"Weather Corrected MD 50% POE","MW","Non-Coincident",0.67997489126726041]
["ED_MDU541_02403",null,null,null,null,"Coincident",0.26797524271003542]
["ED_MDU541_02404",null,null,"Weather Corrected MD 50% POE","MVA","Non-Coincident",0.77206527811008052]
["ED_MDU541_02405",null,null,null,null,"Coincident",0.26797524271003542]
["ED_MDU541_02406",null,"Cartwrights Hill 11kV","Substation Rating","MVA","Non-Coincident",22]
["ED_MDU541_02407",null,null,null,null,"Coincident",24]
["ED_MDU541_02408",null,null,"Raw Adjusted MD","MW","Non-Coincident",6.6041999999999996]
["ED_MDU541_02409",null,null,null,null,"Coincident",4.5197999999999992]
["ED_MDU541_02410",null,null,"Raw Adjusted MD","MVA","Non-Coincident",6.8727974217199215]
["ED_MDU541_02411",null,null,null,null,"Coincident",4.5647467662511128]
["ED_MDU541_02412",null,null,"Date MD occurred",null,"Non-Coincident","2015-02-23"]
["ED_MDU541_02413",null,null,null,null,"Coincident","2014-07-10"]
["ED_MDU541_02414",null,null,"Half hour time period MD occurred",null,"Non-Coincident","16:00:00"]
["ED_MDU541_02415",null,null,null,null,"Coincident","18:30:00"]
["ED_MDU541_02416",null,null,"Winter/Summer Peaking",null,"Non-Coincident","Summer"]
["ED_MDU541_02417",null,null,null,null,"Coincident","Winter"]
["ED_MDU541_02418",null,null,"Adjustments - Embedded generation","MW","Non-Coincident",0]
["ED_MDU541_02419",null,null,null,null,"Coincident",0]
["ED_MDU541_02420",null,null,"Weather Corrected MD 10% POE","MW","Non-Coincident",7.5120572950459268]
["ED_MDU541_02421",null,null,null,null,"Coincident",5.1411217955465576]
["ED_MDU541_02422",null,null,"Weather Corrected MD 10% POE","MVA","Non-Coincident",7.81757790636322]
["ED_MDU541_02423",null,null,null,null,"Coincident",5.1411217955465576]
["ED_MDU541_02424",null,null,"Weather Corrected MD 50% POE","MW","Non-Coincident",6.9765958659948861]
["ED_MDU541_02425",null,null,null,null,"Coincident",4.7746612754192306]
["ED_MDU541_02426",null,null,"Weather Corrected MD 50% POE","MVA","Non-Coincident",7.2603388874037007]
["ED_MDU541_02427",null,null,null,null,"Coincident",4.7746612754192306]
["ED_MDU541_02428",null,"Casino 66/11kV","Substation Rating","MVA","Non-Coincident",66]
["ED_MDU541_02429",null,null,null,null,"Coincident",72]
["ED_MDU541_02430",null,null,"Raw Adjusted MD","MW","Non-Coincident",23.583333969116211]
["ED_MDU541_02431",null,null,null,null,"Coincident",16.595000267028809]
["ED_MDU541_02432",null,null,"Raw Adjusted MD","MVA","Non-Coincident",24.091078054948124]
["ED_MDU541_02433",null,null,null,null,"Coincident",16.62550485331689]
["ED_MDU541_02434",null,null,"Date MD occurred",null,"Non-Coincident","2014-11-25"]
["ED_MDU541_02435",null,null,null,null,"Coincident","2014-07-10"]
["ED_MDU541_02436",null,null,"Half hour time period MD occurred",null,"Non-Coincident","16:30:00"]
["ED_MDU541_02437",null,null,null,null,"Coincident","18:30:00"]
["ED_MDU541_02438",null,null,"Winter/Summer Peaking",null,"Non-Coincident","Summer"]
["ED_MDU541_02439",null,null,null,null,"Coincident","Winter"]
["ED_MDU541_02440",null,null,"Adjustments - Embedded generation","MW","Non-Coincident",0]
["ED_MDU541_02441",null,null,null,null,"Coincident",0]
["ED_MDU541_02442",null,null,"Weather Corrected MD 10% POE","MW","Non-Coincident",24.3530412030901]
["ED_MDU541_02443",null,null,null,null,"Coincident",17.136623931013641]
["ED_MDU541_02444",null,null,"Weather Corrected MD 10% POE","MVA","Non-Coincident",24.877356919395638]
["ED_MDU541_02445",null,null,null,null,"Coincident",17.136623931013641]
["ED_MDU541_02446",null,null,"Weather Corrected MD 50% POE","MW","Non-Coincident",22.109884032429797]
["ED_MDU541_02447",null,null,null,null,"Coincident",15.558170524262758]
["ED_MDU541_02448",null,null,"Weather Corrected MD 50% POE","MVA","Non-Coincident",22.585905059422714]
["ED_MDU541_02449",null,null,null,null,"Coincident",15.558170524262758]
["ED_MDU541_02450",null,"Clearwater Cr","Substation Rating","MVA","Non-Coincident",72]
["ED_MDU541_02451",null,null,null,null,"Coincident",72]
["ED_MDU541_02452",null,null,"Raw Adjusted MD","MW","Non-Coincident",15.9599995]
["ED_MDU541_02453",null,null,null,null,"Coincident",15.1199995]
["ED_MDU541_02454",null,null,"Raw Adjusted MD","MVA","Non-Coincident",16.024830234358188]
["ED_MDU541_02455",null,null,null,null,"Coincident",15.188416141257134]
["ED_MDU541_02456",null,null,"Date MD occurred",null,"Non-Coincident","2014-07-13"]
["ED_MDU541_02457",null,null,null,null,"Coincident","2014-07-10"]
["ED_MDU541_02458",null,null,"Half hour time period MD occurred",null,"Non-Coincident","18:00:00"]
["ED_MDU541_02459",null,null,null,null,"Coincident","18:30:00"]
["ED_MDU541_02460",null,null,"Winter/Summer Peaking",null,"Non-Coincident","Winter"]
["ED_MDU541_02461",null,null,null,null,"Coincident","Winter"]
["ED_MDU541_02462",null,null,"Adjustments - Embedded generation","MW","Non-Coincident",0]
["ED_MDU541_02463",null,null,null,null,"Coincident",0]
["ED_MDU541_02464",null,null,"Weather Corrected MD 10% POE","MW","Non-Coincident",17.236017776830721]
["ED_MDU541_02465",null,null,null,null,"Coincident",16.328858918051445]
["ED_MDU541_02466",null,null,"Weather Corrected MD 10% POE","MVA","Non-Coincident",17.306031794680955]
["ED_MDU541_02467",null,null,null,null,"Coincident",16.328858918051445]
["ED_MDU541_02468",null,null,"Weather Corrected MD 50% POE","MW","Non-Coincident",16.084217715365451]
["ED_MDU541_02469",null,null,null,null,"Coincident",15.237679914351926]
["ED_MDU541_02470",null,null,"Weather Corrected MD 50% POE","MVA","Non-Coincident",16.149553033581729]
["ED_MDU541_02471",null,null,null,null,"Coincident",15.237679914351926]
["ED_MDU541_02472",null,"Clinton Street","Substation Rating","MVA","Non-Coincident",58.8]
["ED_MDU541_02473",null,null,null,null,"Coincident",58.8]
["ED_MDU541_02474",null,null,"Raw Adjusted MD","MW","Non-Coincident",13.862399619072676]
["ED_MDU541_02475",null,null,null,null,"Coincident",12.862399619072676]
["ED_MDU541_02476",null,null,"Raw Adjusted MD","MVA","Non-Coincident",14.39610900464727]
["ED_MDU541_02477",null,null,null,null,"Coincident",13.232306854897113]
["ED_MDU541_02478",null,null,"Date MD occurred",null,"Non-Coincident","2014-07-18"]
["ED_MDU541_02479",null,null,null,null,"Coincident","2014-07-10"]
["ED_MDU541_02480",null,null,"Half hour time period MD occurred",null,"Non-Coincident","11:00:00"]
["ED_MDU541_02481",null,null,null,null,"Coincident","18:30:00"]
["ED_MDU541_02482",null,null,"Winter/Summer Peaking",null,"Non-Coincident","Winter"]
["ED_MDU541_02483",null,null,null,null,"Coincident","Winter"]
["ED_MDU541_02484",null,null,"Adjustments - Embedded generation","MW","Non-Coincident",0]
["ED_MDU541_02485",null,null,null,null,"Coincident",0]
["ED_MDU541_02486",null,null,"Weather Corrected MD 10% POE","MW","Non-Coincident",14.44015970888568]
["ED_MDU541_02487",null,null,null,null,"Coincident",13.39848149258191]
["ED_MDU541_02488",null,null,"Weather Corrected MD 10% POE","MVA","Non-Coincident",14.996113149675606]
["ED_MDU541_02489",null,null,null,null,"Coincident",13.39848149258191]
["ED_MDU541_02490",null,null,"Weather Corrected MD 50% POE","MW","Non-Coincident",13.701970899598633]
["ED_MDU541_02491",null,null,null,null,"Coincident",12.713543839629398]
["ED_MDU541_02492",null,null,"Weather Corrected MD 50% POE","MVA","Non-Coincident",14.229503698460118]
["ED_MDU541_02493",null,null,null,null,"Coincident",12.713543839629398]
["ED_MDU541_02494",null,"Cobar CSA","Substation Rating","MVA","Non-Coincident",33]
["ED_MDU541_02495",null,null,null,null,"Coincident",36]
["ED_MDU541_02496",null,null,"Raw Adjusted MD","MW","Non-Coincident",15.205193999999999]
["ED_MDU541_02497",null,null,null,null,"Coincident",11.0868]
["ED_MDU541_02498",null,null,"Raw Adjusted MD","MVA","Non-Coincident",15.669079809268826]
["ED_MDU541_02499",null,null,null,null,"Coincident",11.302425495441234]
["ED_MDU541_02500",null,null,"Date MD occurred",null,"Non-Coincident","2014-12-05"]
["ED_MDU541_02501",null,null,null,null,"Coincident","2014-07-10"]
["ED_MDU541_02502",null,null,"Half hour time period MD occurred",null,"Non-Coincident","15:30:00"]
["ED_MDU541_02503",null,null,null,null,"Coincident","18:30:00"]
["ED_MDU541_02504",null,null,"Winter/Summer Peaking",null,"Non-Coincident","Summer"]
["ED_MDU541_02505",null,null,null,null,"Coincident","Winter"]
["ED_MDU541_02506",null,null,"Adjustments - Embedded generation","MW","Non-Coincident",0]
["ED_MDU541_02507",null,null,null,null,"Coincident",0]
["ED_MDU541_02508",null,null,"Weather Corrected MD 10% POE","MW","Non-Coincident",15.994953049439186]
["ED_MDU541_02509",null,null,null,null,"Coincident",11.662649320260062]
["ED_MDU541_02510",null,null,"Weather Corrected MD 10% POE","MVA","Non-Coincident",16.482933126481015]
["ED_MDU541_02511",null,null,null,null,"Coincident",11.662649320260062]
["ED_MDU541_02512",null,null,"Weather Corrected MD 50% POE","MW","Non-Coincident",14.393427245265112]
["ED_MDU541_02513",null,null,null,null,"Coincident",10.494903858694947]
["ED_MDU541_02514",null,null,"Weather Corrected MD 50% POE","MVA","Non-Coincident",14.832547367364295]
["ED_MDU541_02515",null,null,null,null,"Coincident",10.494903858694947]
["ED_MDU541_02516",null,"Cobar Elura","Substation Rating","MVA","Non-Coincident",36]
["ED_MDU541_02517",null,null,null,null,"Coincident",36]
["ED_MDU541_02518",null,null,"Raw Adjusted MD","MW","Non-Coincident",9.7899999999999991]
["ED_MDU541_02519",null,null,null,null,"Coincident",8.3059999999999992]
["ED_MDU541_02520",null,null,"Raw Adjusted MD","MVA","Non-Coincident",9.8419611866741263]
["ED_MDU541_02521",null,null,null,null,"Coincident",8.3103224967506524]
["ED_MDU541_02522",null,null,"Date MD occurred",null,"Non-Coincident","2014-04-14"]
["ED_MDU541_02523",null,null,null,null,"Coincident","2014-07-10"]
["ED_MDU541_02524",null,null,"Half hour time period MD occurred",null,"Non-Coincident","23:00:00"]
["ED_MDU541_02525",null,null,null,null,"Coincident","18:30:00"]
["ED_MDU541_02526",null,null,"Winter/Summer Peaking",null,"Non-Coincident","Winter"]
["ED_MDU541_02527",null,null,null,null,"Coincident","Winter"]
["ED_MDU541_02528",null,null,"Adjustments - Embedded generation","MW","Non-Coincident",0]
["ED_MDU541_02529",null,null,null,null,"Coincident",0]
["ED_MDU541_02530",null,null,"Weather Corrected MD 10% POE","MW","Non-Coincident",11.90065025725958]
["ED_MDU541_02531",null,null,null,null,"Coincident",10.096711035423704]
["ED_MDU541_02532",null,null,"Weather Corrected MD 10% POE","MVA","Non-Coincident",11.963813884385317]
["ED_MDU541_02533",null,null,null,null,"Coincident",10.096711035423704]
["ED_MDU541_02534",null,null,"Weather Corrected MD 50% POE","MW","Non-Coincident",9.0902477534251283]
["ED_MDU541_02535",null,null,null,null,"Coincident",7.7123184719049149]
["ED_MDU541_02536",null,null,"Weather Corrected MD 50% POE","MVA","Non-Coincident",9.138494950608969]
["ED_MDU541_02537",null,null,null,null,"Coincident",7.7123184719049149]
["ED_MDU541_02538",null,"Cobar Peak","Substation Rating","MVA","Non-Coincident",48.400000000000006]
["ED_MDU541_02539",null,null,null,null,"Coincident",52.8]
["ED_MDU541_02540",null,null,"Raw Adjusted MD","MW","Non-Coincident",14.596]
["ED_MDU541_02541",null,null,null,null,"Coincident",10.763399999999999]
["ED_MDU541_02542",null,null,"Raw Adjusted MD","MVA","Non-Coincident",16.423430122845836]
["ED_MDU541_02543",null,null,null,null,"Coincident",11.482490135854677]
["ED_MDU541_02544",null,null,"Date MD occurred",null,"Non-Coincident","2015-01-23"]
["ED_MDU541_02545",null,null,null,null,"Coincident","2014-07-10"]
["ED_MDU541_02546",null,null,"Half hour time period MD occurred",null,"Non-Coincident","15:00:00"]
["ED_MDU541_02547",null,null,null,null,"Coincident","18:30:00"]
["ED_MDU541_02548",null,null,"Winter/Summer Peaking",null,"Non-Coincident","Summer"]
["ED_MDU541_02549",null,null,null,null,"Coincident","Winter"]
["ED_MDU541_02550",null,null,"Adjustments - Embedded generation","MW","Non-Coincident",0]
["ED_MDU541_02551",null,null,null,null,"Coincident",0]
["ED_MDU541_02552",null,null,"Weather Corrected MD 10% POE","MW","Non-Coincident",14.359629496713357]
["ED_MDU541_02553",null,null,null,null,"Coincident",10.589095377152955]
["ED_MDU541_02554",null,null,"Weather Corrected MD 10% POE","MVA","Non-Coincident",16.157465855660984]
["ED_MDU541_02555",null,null,null,null,"Coincident",10.589095377152955]
["ED_MDU541_02556",null,null,"Weather Corrected MD 50% POE","MW","Non-Coincident",12.821128614360365]
["ED_MDU541_02557",null,null,null,null,"Coincident",9.4545721929163022]
["ED_MDU541_02558",null,null,"Weather Corrected MD 50% POE","MVA","Non-Coincident",14.426343511507723]
["ED_MDU541_02559",null,null,null,null,"Coincident",9.4545721929163022]
["ED_MDU541_02560",null,"Cobar Town","Substation Rating","MVA","Non-Coincident",28.6]
["ED_MDU541_02561",null,null,null,null,"Coincident",31.2]
["ED_MDU541_02562",null,null,"Raw Adjusted MD","MW","Non-Coincident",5.7393511114941855]
["ED_MDU541_02563",null,null,null,null,"Coincident",4.3571515760027522]
["ED_MDU541_02564",null,null,"Raw Adjusted MD","MVA","Non-Coincident",6.0414222226254584]
["ED_MDU541_02565",null,null,null,null,"Coincident",4.5864753431607923]
["ED_MDU541_02566",null,null,"Date MD occurred",null,"Non-Coincident","2015-02-10"]
["ED_MDU541_02567",null,null,null,null,"Coincident","2014-07-10"]
["ED_MDU541_02568",null,null,"Half hour time period MD occurred",null,"Non-Coincident","19:00:00"]
["ED_MDU541_02569",null,null,null,null,"Coincident","18:30:00"]
["ED_MDU541_02570",null,null,"Winter/Summer Peaking",null,"Non-Coincident","Summer"]
["ED_MDU541_02571",null,null,null,null,"Coincident","Winter"]
["ED_MDU541_02572",null,null,"Adjustments - Embedded generation","MW","Non-Coincident",0]
["ED_MDU541_02573",null,null,null,null,"Coincident",0]
["ED_MDU541_02574",null,null,"Weather Corrected MD 10% POE","MW","Non-Coincident",6.1591408155312193]
["ED_MDU541_02575",null,null,null,null,"Coincident",4.6758439394777067]
["ED_MDU541_02576",null,null,"Weather Corrected MD 10% POE","MVA","Non-Coincident",6.4833061216118093]
["ED_MDU541_02577",null,null,null,null,"Coincident",4.6758439394777067]
["ED_MDU541_02578",null,null,"Weather Corrected MD 50% POE","MW","Non-Coincident",5.504555294178453]
["ED_MDU541_02579",null,null,null,null,"Coincident",4.1789012920277466]
["ED_MDU541_02580",null,null,"Weather Corrected MD 50% POE","MVA","Non-Coincident",5.7942687307141609]
["ED_MDU541_02581",null,null,null,null,"Coincident",4.1789012920277466]
["ED_MDU541_02582",null,"Cobargo","Substation Rating","MVA","Non-Coincident",6.6]
["ED_MDU541_02583",null,null,null,null,"Coincident",6.6]
["ED_MDU541_02584",null,null,"Raw Adjusted MD","MW","Non-Coincident",1.3254999816417694]
["ED_MDU541_02585",null,null,null,null,"Coincident",1.2116667032241821]
["ED_MDU541_02586",null,null,"Raw Adjusted MD","MVA","Non-Coincident",1.3554298963841078]
["ED_MDU541_02587",null,null,null,null,"Coincident",1.24071423273176]
["ED_MDU541_02588",null,null,"Date MD occurred",null,"Non-Coincident","2014-08-05"]
["ED_MDU541_02589",null,null,null,null,"Coincident","2014-07-10"]
["ED_MDU541_02590",null,null,"Half hour time period MD occurred",null,"Non-Coincident","19:00:00"]
["ED_MDU541_02591",null,null,null,null,"Coincident","18:30:00"]
["ED_MDU541_02592",null,null,"Winter/Summer Peaking",null,"Non-Coincident","Winter"]
["ED_MDU541_02593",null,null,null,null,"Coincident","Winter"]
["ED_MDU541_02594",null,null,"Adjustments - Embedded generation","MW","Non-Coincident",0]
["ED_MDU541_02595",null,null,null,null,"Coincident",0]
["ED_MDU541_02596",null,null,"Weather Corrected MD 10% POE","MW","Non-Coincident",1.325618989004413]
["ED_MDU541_02597",null,null,null,null,"Coincident",1.2117754902937792]
["ED_MDU541_02598",null,null,"Weather Corrected MD 10% POE","MVA","Non-Coincident",1.3555515909442368]
["ED_MDU541_02599",null,null,null,null,"Coincident",1.2117754902937792]
["ED_MDU541_02600",null,null,"Weather Corrected MD 50% POE","MW","Non-Coincident",1.2521238488073003]
["ED_MDU541_02601",null,null,null,null,"Coincident",1.1445920761413815]
["ED_MDU541_02602",null,null,"Weather Corrected MD 50% POE","MVA","Non-Coincident",1.2803969235418871]
["ED_MDU541_02603",null,null,null,null,"Coincident",1.1445920761413815]
["ED_MDU541_02604",null,"Coffs Harbour North","Substation Rating","MVA","Non-Coincident",78.100000000000009]
["ED_MDU541_02605",null,null,null,null,"Coincident",85.2]
["ED_MDU541_02606",null,null,"Raw Adjusted MD","MW","Non-Coincident",22.88]
["ED_MDU541_02607",null,null,null,null,"Coincident",22.62]
["ED_MDU541_02608",null,null,"Raw Adjusted MD","MVA","Non-Coincident",22.899301299384661]
["ED_MDU541_02609",null,null,null,null,"Coincident",22.646730448345075]
["ED_MDU541_02610",null,null,"Date MD occurred",null,"Non-Coincident","2015-01-14"]
["ED_MDU541_02611",null,null,null,null,"Coincident","2014-07-10"]
["ED_MDU541_02612",null,null,"Half hour time period MD occurred",null,"Non-Coincident","16:00:00"]
["ED_MDU541_02613",null,null,null,null,"Coincident","18:30:00"]
["ED_MDU541_02614",null,null,"Winter/Summer Peaking",null,"Non-Coincident","Summer"]
["ED_MDU541_02615",null,null,null,null,"Coincident","Winter"]
["ED_MDU541_02616",null,null,"Adjustments - Embedded generation","MW","Non-Coincident",0]
["ED_MDU541_02617",null,null,null,null,"Coincident",0]
["ED_MDU541_02618",null,null,"Weather Corrected MD 10% POE","MW","Non-Coincident",22.642469391995412]
["ED_MDU541_02619",null,null,null,null,"Coincident",22.385168603450012]
["ED_MDU541_02620",null,null,"Weather Corrected MD 10% POE","MVA","Non-Coincident",22.661570313347816]
["ED_MDU541_02621",null,null,null,null,"Coincident",22.385168603450012]
["ED_MDU541_02622",null,null,"Weather Corrected MD 50% POE","MW","Non-Coincident",21.150914247822922]
["ED_MDU541_02623",null,null,null,null,"Coincident",20.910562949552208]
["ED_MDU541_02624",null,null,"Weather Corrected MD 50% POE","MVA","Non-Coincident",21.168756910766827]
["ED_MDU541_02625",null,null,null,null,"Coincident",20.910562949552208]
["ED_MDU541_02626",null,"Coffs Harbour South","Substation Rating","MVA","Non-Coincident",51.7]
["ED_MDU541_02627",null,null,null,null,"Coincident",56.4]
["ED_MDU541_02628",null,null,"Raw Adjusted MD","MW","Non-Coincident",20.050799237040337]
["ED_MDU541_02629",null,null,null,null,"Coincident",9.4566669464111328]
["ED_MDU541_02630",null,null,"Raw Adjusted MD","MVA","Non-Coincident",20.869302324466858]
["ED_MDU541_02631",null,null,null,null,"Coincident",9.4624451456133141]
["ED_MDU541_02632",null,null,"Date MD occurred",null,"Non-Coincident","2015-03-20"]
["ED_MDU541_02633",null,null,null,null,"Coincident","2014-07-10"]
["ED_MDU541_02634",null,null,"Half hour time period MD occurred",null,"Non-Coincident","14:30:00"]
["ED_MDU541_02635",null,null,null,null,"Coincident","18:30:00"]
["ED_MDU541_02636",null,null,"Winter/Summer Peaking",null,"Non-Coincident","Summer"]
["ED_MDU541_02637",null,null,null,null,"Coincident","Winter"]
["ED_MDU541_02638",null,null,"Adjustments - Embedded generation","MW","Non-Coincident",0]
["ED_MDU541_02639",null,null,null,null,"Coincident",0]
["ED_MDU541_02640",null,null,"Weather Corrected MD 10% POE","MW","Non-Coincident",19.628205222454]
["ED_MDU541_02641",null,null,null,null,"Coincident",9.2573566445002111]
["ED_MDU541_02642",null,null,"Weather Corrected MD 10% POE","MVA","Non-Coincident",20.429457401247017]
["ED_MDU541_02643",null,null,null,null,"Coincident",9.2573566445002111]
["ED_MDU541_02644",null,null,"Weather Corrected MD 50% POE","MW","Non-Coincident",15.940460261442075]
["ED_MDU541_02645",null,null,null,null,"Coincident",7.5180855327944736]
["ED_MDU541_02646",null,null,"Weather Corrected MD 50% POE","MVA","Non-Coincident",16.591173272167726]
["ED_MDU541_02647",null,null,null,null,"Coincident",7.5180855327944736]
["ED_MDU541_02648",null,"Coleambally 33/11","Substation Rating","MVA","Non-Coincident",18]
["ED_MDU541_02649",null,null,null,null,"Coincident",18]
["ED_MDU541_02650",null,null,"Raw Adjusted MD","MW","Non-Coincident",3.9239999999999999]
["ED_MDU541_02651",null,null,null,null,"Coincident",1.35]
["ED_MDU541_02652",null,null,"Raw Adjusted MD","MVA","Non-Coincident",4.3632831675241981]
["ED_MDU541_02653",null,null,null,null,"Coincident",1.4019215384606944]
["ED_MDU541_02654",null,null,"Date MD occurred",null,"Non-Coincident","2014-05-22"]
["ED_MDU541_02655",null,null,null,null,"Coincident","2014-07-10"]
["ED_MDU541_02656",null,null,"Half hour time period MD occurred",null,"Non-Coincident","07:00:00"]
["ED_MDU541_02657",null,null,null,null,"Coincident","18:30:00"]
["ED_MDU541_02658",null,null,"Winter/Summer Peaking",null,"Non-Coincident","Winter"]
["ED_MDU541_02659",null,null,null,null,"Coincident","Winter"]
["ED_MDU541_02660",null,null,"Adjustments - Embedded generation","MW","Non-Coincident",0]
["ED_MDU541_02661",null,null,null,null,"Coincident",0]
["ED_MDU541_02662",null,null,"Weather Corrected MD 10% POE","MW","Non-Coincident",4.482754562415594]
["ED_MDU541_02663",null,null,null,null,"Coincident",1.5422320742255486]
["ED_MDU541_02664",null,null,"Weather Corrected MD 10% POE","MVA","Non-Coincident",4.9845890739883441]
["ED_MDU541_02665",null,null,null,null,"Coincident",1.5422320742255486]
["ED_MDU541_02666",null,null,"Weather Corrected MD 50% POE","MW","Non-Coincident",3.616177633323491]
["ED_MDU541_02667",null,null,null,null,"Coincident",1.2440978096296416]
["ED_MDU541_02668",null,null,"Weather Corrected MD 50% POE","MVA","Non-Coincident",4.0210007640820287]
["ED_MDU541_02669",null,null,null,null,"Coincident",1.2440978096296416]
["ED_MDU541_02670",null,"Colly Blue","Substation Rating","MVA","Non-Coincident",3.3000000000000003]
["ED_MDU541_02671",null,null,null,null,"Coincident",3.5999999999999996]
["ED_MDU541_02672",null,null,"Raw Adjusted MD","MW","Non-Coincident",0.96016669273376465]
["ED_MDU541_02673",null,null,null,null,"Coincident",0.72466665506362915]
["ED_MDU541_02674",null,null,"Raw Adjusted MD","MVA","Non-Coincident",1.0383047583498639]
["ED_MDU541_02675",null,null,null,null,"Coincident",0.73625251859002716]
["ED_MDU541_02676",null,null,"Date MD occurred",null,"Non-Coincident","2014-11-22"]
["ED_MDU541_02677",null,null,null,null,"Coincident","2014-07-10"]
["ED_MDU541_02678",null,null,"Half hour time period MD occurred",null,"Non-Coincident","20:30:00"]
["ED_MDU541_02679",null,null,null,null,"Coincident","18:30:00"]
["ED_MDU541_02680",null,null,"Winter/Summer Peaking",null,"Non-Coincident","Summer"]
["ED_MDU541_02681",null,null,null,null,"Coincident","Winter"]
["ED_MDU541_02682",null,null,"Adjustments - Embedded generation","MW","Non-Coincident",0]
["ED_MDU541_02683",null,null,null,null,"Coincident",0]
["ED_MDU541_02684",null,null,"Weather Corrected MD 10% POE","MW","Non-Coincident",0.90513805517570411]
["ED_MDU541_02685",null,null,null,null,"Coincident",0.68313488874254336]
["ED_MDU541_02686",null,null,"Weather Corrected MD 10% POE","MVA","Non-Coincident",0.97879790745154072]
["ED_MDU541_02687",null,null,null,null,"Coincident",0.68313488874254336]
["ED_MDU541_02688",null,null,"Weather Corrected MD 50% POE","MW","Non-Coincident",0.80034661588034839]
["ED_MDU541_02689",null,null,null,null,"Coincident",0.60404564062745059]
["ED_MDU541_02690",null,null,"Weather Corrected MD 50% POE","MVA","Non-Coincident",0.86547857355035074]
["ED_MDU541_02691",null,null,null,null,"Coincident",0.60404564062745059]
["ED_MDU541_02692",null,"Condobolin","Substation Rating","MVA","Non-Coincident",22]
["ED_MDU541_02693",null,null,null,null,"Coincident",24]
["ED_MDU541_02694",null,null,"Raw Adjusted MD","MW","Non-Coincident",7.8911999999999995]
["ED_MDU541_02695",null,null,null,null,"Coincident",5.8823999999999996]
["ED_MDU541_02696",null,null,"Raw Adjusted MD","MVA","Non-Coincident",7.9963326093903815]
["ED_MDU541_02697",null,null,null,null,"Coincident",6.5480002076970028]
["ED_MDU541_02698",null,null,"Date MD occurred",null,"Non-Coincident","2015-02-09"]
["ED_MDU541_02699",null,null,null,null,"Coincident","2014-07-10"]
["ED_MDU541_02700",null,null,"Half hour time period MD occurred",null,"Non-Coincident","19:00:00"]
["ED_MDU541_02701",null,null,null,null,"Coincident","18:30:00"]
["ED_MDU541_02702",null,null,"Winter/Summer Peaking",null,"Non-Coincident","Summer"]
["ED_MDU541_02703",null,null,null,null,"Coincident","Winter"]
["ED_MDU541_02704",null,null,"Adjustments - Embedded generation","MW","Non-Coincident",0]
["ED_MDU541_02705",null,null,null,null,"Coincident",0]
["ED_MDU541_02706",null,null,"Weather Corrected MD 10% POE","MW","Non-Coincident",9.0482300561695368]
["ED_MDU541_02707",null,null,null,null,"Coincident",6.7448941203380581]
["ED_MDU541_02708",null,null,"Weather Corrected MD 10% POE","MVA","Non-Coincident",9.1687775060085439]
["ED_MDU541_02709",null,null,null,null,"Coincident",6.7448941203380581]
["ED_MDU541_02710",null,null,"Weather Corrected MD 50% POE","MW","Non-Coincident",8.4375193671113511]
["ED_MDU541_02711",null,null,null,null,"Coincident",6.289647192454356]
["ED_MDU541_02712",null,null,"Weather Corrected MD 50% POE","MVA","Non-Coincident",8.5499304614754905]
["ED_MDU541_02713",null,null,null,null,"Coincident",6.289647192454356]
["ED_MDU541_02714",null,"Coolamon","Substation Rating","MVA","Non-Coincident",17.600000000000001]
["ED_MDU541_02715",null,null,null,null,"Coincident",19.2]
["ED_MDU541_02716",null,null,"Raw Adjusted MD","MW","Non-Coincident",4.2300000000000004]
["ED_MDU541_02717",null,null,null,null,"Coincident",3.1680000000000001]
["ED_MDU541_02718",null,null,"Raw Adjusted MD","MVA","Non-Coincident",4.3985606736749698]
["ED_MDU541_02719",null,null,null,null,"Coincident",3.1810639729499313]
["ED_MDU541_02720",null,null,"Date MD occurred",null,"Non-Coincident","2015-02-08"]
["ED_MDU541_02721",null,null,null,null,"Coincident","2014-07-10"]
["ED_MDU541_02722",null,null,"Half hour time period MD occurred",null,"Non-Coincident","18:30:00"]
["ED_MDU541_02723",null,null,null,null,"Coincident","18:30:00"]
["ED_MDU541_02724",null,null,"Winter/Summer Peaking",null,"Non-Coincident","Summer"]
["ED_MDU541_02725",null,null,null,null,"Coincident","Winter"]
["ED_MDU541_02726",null,null,"Adjustments - Embedded generation","MW","Non-Coincident",0]
["ED_MDU541_02727",null,null,null,null,"Coincident",0]
["ED_MDU541_02728",null,null,"Weather Corrected MD 10% POE","MW","Non-Coincident",4.46580991443727]
["ED_MDU541_02729",null,null,null,null,"Coincident",3.3446065742168489]
["ED_MDU541_02730",null,null,"Weather Corrected MD 10% POE","MVA","Non-Coincident",4.6437673441493033]
["ED_MDU541_02731",null,null,null,null,"Coincident",3.3446065742168489]
["ED_MDU541_02732",null,null,"Weather Corrected MD 50% POE","MW","Non-Coincident",4.1317494366131546]
["ED_MDU541_02733",null,null,null,null,"Coincident",3.0944165993358093]
["ED_MDU541_02734",null,null,"Weather Corrected MD 50% POE","MVA","Non-Coincident",4.2963949374386123]
["ED_MDU541_02735",null,null,null,null,"Coincident",3.0944165993358093]
["ED_MDU541_02736",null,"Cooma 11kV","Substation Rating","MVA","Non-Coincident",0]
["ED_MDU541_02737",null,null,null,null,"Coincident",0]
["ED_MDU541_02738",null,null,"Raw Adjusted MD","MW","Non-Coincident",12.863992]
["ED_MDU541_02739",null,null,null,null,"Coincident",11.253324000000001]
["ED_MDU541_02740",null,null,"Raw Adjusted MD","MVA","Non-Coincident",12.993931313131315]
["ED_MDU541_02741",null,null,null,null,"Coincident",11.366993939393939]
["ED_MDU541_02742",null,null,"Date MD occurred",null,"Non-Coincident","2014-08-03"]
["ED_MDU541_02743",null,null,null,null,"Coincident","2014-07-10"]
["ED_MDU541_02744",null,null,"Half hour time period MD occurred",null,"Non-Coincident","23:00:00"]
["ED_MDU541_02745",null,null,null,null,"Coincident","18:30:00"]
["ED_MDU541_02746",null,null,"Winter/Summer Peaking",null,"Non-Coincident","Winter"]
["ED_MDU541_02747",null,null,null,null,"Coincident","Winter"]
["ED_MDU541_02748",null,null,"Adjustments - Embedded generation","MW","Non-Coincident",0]
["ED_MDU541_02749",null,null,null,null,"Coincident",0]
["ED_MDU541_02750",null,null,"Weather Corrected MD 10% POE","MW","Non-Coincident",13.334864953970898]
["ED_MDU541_02751",null,null,null,null,"Coincident",11.665240138774932]
["ED_MDU541_02752",null,null,"Weather Corrected MD 10% POE","MVA","Non-Coincident",13.469560559566565]
["ED_MDU541_02753",null,null,null,null,"Coincident",11.665240138774932]
["ED_MDU541_02754",null,null,"Weather Corrected MD 50% POE","MW","Non-Coincident",12.41217691920308]
["ED_MDU541_02755",null,null,null,null,"Coincident",10.858079546155976]
["ED_MDU541_02756",null,null,"Weather Corrected MD 50% POE","MVA","Non-Coincident",12.537552443639475]
["ED_MDU541_02757",null,null,null,null,"Coincident",10.858079546155976]
["ED_MDU541_02758",null,"Coonabarabran","Substation Rating","MVA","Non-Coincident",22]
["ED_MDU541_02759",null,null,null,null,"Coincident",24]
["ED_MDU541_02760",null,null,"Raw Adjusted MD","MW","Non-Coincident",8.4492000000000012]
["ED_MDU541_02761",null,null,null,null,"Coincident",7.1153999999999993]
["ED_MDU541_02762",null,null,"Raw Adjusted MD","MVA","Non-Coincident",8.5285931805896347]
["ED_MDU541_02763",null,null,null,null,"Coincident",7.1154145711968173]
["ED_MDU541_02764",null,null,"Date MD occurred",null,"Non-Coincident","2014-11-23"]
["ED_MDU541_02765",null,null,null,null,"Coincident","2014-07-10"]
["ED_MDU541_02766",null,null,"Half hour time period MD occurred",null,"Non-Coincident","17:30:00"]
["ED_MDU541_02767",null,null,null,null,"Coincident","18:30:00"]
["ED_MDU541_02768",null,null,"Winter/Summer Peaking",null,"Non-Coincident","Summer"]
["ED_MDU541_02769",null,null,null,null,"Coincident","Winter"]
["ED_MDU541_02770",null,null,"Adjustments - Embedded generation","MW","Non-Coincident",0]
["ED_MDU541_02771",null,null,null,null,"Coincident",0]
["ED_MDU541_02772",null,null,"Weather Corrected MD 10% POE","MW","Non-Coincident",7.9422211985160303]
["ED_MDU541_02773",null,null,null,null,"Coincident",6.6884534294277502]
["ED_MDU541_02774",null,null,"Weather Corrected MD 10% POE","MVA","Non-Coincident",8.0168505364292777]
["ED_MDU541_02775",null,null,null,null,"Coincident",6.6884534294277502]
["ED_MDU541_02776",null,null,"Weather Corrected MD 50% POE","MW","Non-Coincident",7.2207320897584175]
["ED_MDU541_02777",null,null,null,null,"Coincident",6.0808593844940386]
["ED_MDU541_02778",null,null,"Weather Corrected MD 50% POE","MVA","Non-Coincident",7.2885819319673315]
["ED_MDU541_02779",null,null,null,null,"Coincident",6.0808593844940386]
["ED_MDU541_02780",null,"Coonamble","Substation Rating","MVA","Non-Coincident",22]
["ED_MDU541_02781",null,null,null,null,"Coincident",24]
["ED_MDU541_02782",null,null,"Raw Adjusted MD","MW","Non-Coincident",5.7492000000000001]
["ED_MDU541_02783",null,null,null,null,"Coincident",4.1598000000000006]
["ED_MDU541_02784",null,null,"Raw Adjusted MD","MVA","Non-Coincident",5.7796194926655851]
["ED_MDU541_02785",null,null,null,null,"Coincident",4.1732513799194981]
["ED_MDU541_02786",null,null,"Date MD occurred",null,"Non-Coincident","2014-11-23"]
["ED_MDU541_02787",null,null,null,null,"Coincident","2014-07-10"]
["ED_MDU541_02788",null,null,"Half hour time period MD occurred",null,"Non-Coincident","18:30:00"]
["ED_MDU541_02789",null,null,null,null,"Coincident","18:30:00"]
["ED_MDU541_02790",null,null,"Winter/Summer Peaking",null,"Non-Coincident","Summer"]
["ED_MDU541_02791",null,null,null,null,"Coincident","Winter"]
["ED_MDU541_02792",null,null,"Adjustments - Embedded generation","MW","Non-Coincident",0]
["ED_MDU541_02793",null,null,null,null,"Coincident",0]
["ED_MDU541_02794",null,null,"Weather Corrected MD 10% POE","MW","Non-Coincident",5.9331735687636762]
["ED_MDU541_02795",null,null,null,null,"Coincident",4.2929129985638257]
["ED_MDU541_02796",null,null,"Weather Corrected MD 10% POE","MVA","Non-Coincident",5.9645664807964192]
["ED_MDU541_02797",null,null,null,null,"Coincident",4.2929129985638257]
["ED_MDU541_02798",null,null,"Weather Corrected MD 50% POE","MW","Non-Coincident",5.5254400650883104]
["ED_MDU541_02799",null,null,null,null,"Coincident",3.9978998091481177]
["ED_MDU541_02800",null,null,"Weather Corrected MD 50% POE","MVA","Non-Coincident",5.5546756254330685]
["ED_MDU541_02801",null,null,null,null,"Coincident",3.9978998091481177]
["ED_MDU541_02802",null,"Coopernook","Substation Rating","MVA","Non-Coincident",15.950000000000001]
["ED_MDU541_02803",null,null,null,null,"Coincident",17.399999999999999]
["ED_MDU541_02804",null,null,"Raw Adjusted MD","MW","Non-Coincident",2.3886667191982269]
["ED_MDU541_02805",null,null,null,null,"Coincident",1.8200000002980232]
["ED_MDU541_02806",null,null,"Raw Adjusted MD","MVA","Non-Coincident",2.4193355904874396]
["ED_MDU541_02807",null,null,null,null,"Coincident",1.8507555212108306]
["ED_MDU541_02808",null,null,"Date MD occurred",null,"Non-Coincident","2014-10-22"]
["ED_MDU541_02809",null,null,null,null,"Coincident","2014-07-10"]
["ED_MDU541_02810",null,null,"Half hour time period MD occurred",null,"Non-Coincident","19:00:00"]
["ED_MDU541_02811",null,null,null,null,"Coincident","18:30:00"]
["ED_MDU541_02812",null,null,"Winter/Summer Peaking",null,"Non-Coincident","Summer"]
["ED_MDU541_02813",null,null,null,null,"Coincident","Winter"]
["ED_MDU541_02814",null,null,"Adjustments - Embedded generation","MW","Non-Coincident",0]
["ED_MDU541_02815",null,null,null,null,"Coincident",0]
["ED_MDU541_02816",null,null,"Weather Corrected MD 10% POE","MW","Non-Coincident",2.3135151237191676]
["ED_MDU541_02817",null,null,null,null,"Coincident",1.762739645517263]
["ED_MDU541_02818",null,null,"Weather Corrected MD 10% POE","MVA","Non-Coincident",2.3432190991564799]
["ED_MDU541_02819",null,null,null,null,"Coincident",1.762739645517263]
["ED_MDU541_02820",null,null,"Weather Corrected MD 50% POE","MW","Non-Coincident",2.1448100534005903]
["ED_MDU541_02821",null,null,null,null,"Coincident",1.6341979676170704]
["ED_MDU541_02822",null,null,"Weather Corrected MD 50% POE","MVA","Non-Coincident",2.1723479694015428]
["ED_MDU541_02823",null,null,null,null,"Coincident",1.6341979676170704]
["ED_MDU541_02824",null,"Cootamundra","Substation Rating","MVA","Non-Coincident",41.800000000000004]
["ED_MDU541_02825",null,null,null,null,"Coincident",45.6]
["ED_MDU541_02826",null,null,"Raw Adjusted MD","MW","Non-Coincident",8.6745000000000001]
["ED_MDU541_02827",null,null,null,null,"Coincident",7.0635000000000003]
["ED_MDU541_02828",null,null,"Raw Adjusted MD","MVA","Non-Coincident",9.3281981379042342]
["ED_MDU541_02829",null,null,null,null,"Coincident",7.2157593155536999]
["ED_MDU541_02830",null,null,"Date MD occurred",null,"Non-Coincident","2015-02-23"]
["ED_MDU541_02831",null,null,null,null,"Coincident","2014-07-10"]
["ED_MDU541_02832",null,null,"Half hour time period MD occurred",null,"Non-Coincident","16:00:00"]
["ED_MDU541_02833",null,null,null,null,"Coincident","18:30:00"]
["ED_MDU541_02834",null,null,"Winter/Summer Peaking",null,"Non-Coincident","Summer"]
["ED_MDU541_02835",null,null,null,null,"Coincident","Winter"]
["ED_MDU541_02836",null,null,"Adjustments - Embedded generation","MW","Non-Coincident",0]
["ED_MDU541_02837",null,null,null,null,"Coincident",0]
["ED_MDU541_02838",null,null,"Weather Corrected MD 10% POE","MW","Non-Coincident",10.006950058227824]
["ED_MDU541_02839",null,null,null,null,"Coincident",8.1484917558697614]
["ED_MDU541_02840",null,null,"Weather Corrected MD 10% POE","MVA","Non-Coincident",10.761059761284391]
["ED_MDU541_02841",null,null,null,null,"Coincident",8.1484917558697614]
["ED_MDU541_02842",null,null,"Weather Corrected MD 50% POE","MW","Non-Coincident",9.3596205990604222]
["ED_MDU541_02843",null,null,null,null,"Coincident",7.6213822239279834]
["ED_MDU541_02844",null,null,"Weather Corrected MD 50% POE","MVA","Non-Coincident",10.064948463155863]
["ED_MDU541_02845",null,null,null,null,"Coincident",7.6213822239279834]
["ED_MDU541_02846",null,"Copeton","Substation Rating","MVA","Non-Coincident",3.3000000000000003]
["ED_MDU541_02847",null,null,null,null,"Coincident",3.5999999999999996]
["ED_MDU541_02848",null,null,"Raw Adjusted MD","MW","Non-Coincident",0.94699177789952294]
["ED_MDU541_02849",null,null,null,null,"Coincident",0.70398856527241649]
["ED_MDU541_02850",null,null,"Raw Adjusted MD","MVA","Non-Coincident",0.99683345042055049]
["ED_MDU541_02851",null,null,null,null,"Coincident",0.74104059502359632]
["ED_MDU541_02852",null,null,"Date MD occurred",null,"Non-Coincident","2015-03-25"]
["ED_MDU541_02853",null,null,null,null,"Coincident","2014-07-10"]
["ED_MDU541_02854",null,null,"Half hour time period MD occurred",null,"Non-Coincident","11:00:00"]
["ED_MDU541_02855",null,null,null,null,"Coincident","18:30:00"]
["ED_MDU541_02856",null,null,"Winter/Summer Peaking",null,"Non-Coincident","Summer"]
["ED_MDU541_02857",null,null,null,null,"Coincident","Winter"]
["ED_MDU541_02858",null,null,"Adjustments - Embedded generation","MW","Non-Coincident",0]
["ED_MDU541_02859",null,null,null,null,"Coincident",0]
["ED_MDU541_02860",null,null,"Weather Corrected MD 10% POE","MW","Non-Coincident",0.77562987539445971]
["ED_MDU541_02861",null,null,null,null,"Coincident",0.57659905387193744]
["ED_MDU541_02862",null,null,"Weather Corrected MD 10% POE","MVA","Non-Coincident",0.81645250041522066]
["ED_MDU541_02863",null,null,null,null,"Coincident",0.57659905387193744]
["ED_MDU541_02864",null,null,"Weather Corrected MD 50% POE","MW","Non-Coincident",0.69981858743423764]
["ED_MDU541_02865",null,null,null,null,"Coincident",0.52024135247673753]
["ED_MDU541_02866",null,null,"Weather Corrected MD 50% POE","MVA","Non-Coincident",0.7366511446676185]
["ED_MDU541_02867",null,null,null,null,"Coincident",0.52024135247673753]
["ED_MDU541_02868",null,"Corowa","Substation Rating","MVA","Non-Coincident",66]
["ED_MDU541_02869",null,null,null,null,"Coincident",72]
["ED_MDU541_02870",null,null,"Raw Adjusted MD","MW","Non-Coincident",15.012]
["ED_MDU541_02871",null,null,null,null,"Coincident",12.468]
["ED_MDU541_02872",null,null,"Raw Adjusted MD","MVA","Non-Coincident",15.923449500657828]
["ED_MDU541_02873",null,null,null,null,"Coincident",12.745679267893099]
["ED_MDU541_02874",null,null,"Date MD occurred",null,"Non-Coincident","2015-02-11"]
["ED_MDU541_02875",null,null,null,null,"Coincident","2014-07-10"]
["ED_MDU541_02876",null,null,"Half hour time period MD occurred",null,"Non-Coincident","17:30:00"]
["ED_MDU541_02877",null,null,null,null,"Coincident","18:30:00"]
["ED_MDU541_02878",null,null,"Winter/Summer Peaking",null,"Non-Coincident","Summer"]
["ED_MDU541_02879",null,null,null,null,"Coincident","Winter"]
["ED_MDU541_02880",null,null,"Adjustments - Embedded generation","MW","Non-Coincident",0]
["ED_MDU541_02881",null,null,null,null,"Coincident",0]
["ED_MDU541_02882",null,null,"Weather Corrected MD 10% POE","MW","Non-Coincident",16.255096648337361]
["ED_MDU541_02883",null,null,null,null,"Coincident",13.500435985309768]
["ED_MDU541_02884",null,null,"Weather Corrected MD 10% POE","MVA","Non-Coincident",17.242020424201456]
["ED_MDU541_02885",null,null,null,null,"Coincident",13.500435985309768]
["ED_MDU541_02886",null,null,"Weather Corrected MD 50% POE","MW","Non-Coincident",15.159354687222631]
["ED_MDU541_02887",null,null,null,null,"Coincident",12.590383309371953]
["ED_MDU541_02888",null,null,"Weather Corrected MD 50% POE","MVA","Non-Coincident",16.079750787673202]
["ED_MDU541_02889",null,null,null,null,"Coincident",12.590383309371953]
["ED_MDU541_02890",null,"Cowra","Substation Rating","MVA","Non-Coincident",66]
["ED_MDU541_02891",null,null,null,null,"Coincident",72]
["ED_MDU541_02892",null,null,"Raw Adjusted MD","MW","Non-Coincident",16.803000000000001]
["ED_MDU541_02893",null,null,null,null,"Coincident",12.827999999999999]
["ED_MDU541_02894",null,null,"Raw Adjusted MD","MVA","Non-Coincident",16.952178178629435]
["ED_MDU541_02895",null,null,null,null,"Coincident",12.855472920122388]
["ED_MDU541_02896",null,null,"Date MD occurred",null,"Non-Coincident","2015-02-09"]
["ED_MDU541_02897",null,null,null,null,"Coincident","2014-07-10"]
["ED_MDU541_02898",null,null,"Half hour time period MD occurred",null,"Non-Coincident","17:00:00"]
["ED_MDU541_02899",null,null,null,null,"Coincident","18:30:00"]
["ED_MDU541_02900",null,null,"Winter/Summer Peaking",null,"Non-Coincident","Summer"]
["ED_MDU541_02901",null,null,null,null,"Coincident","Winter"]
["ED_MDU541_02902",null,null,"Adjustments - Embedded generation","MW","Non-Coincident",0]
["ED_MDU541_02903",null,null,null,null,"Coincident",0]
["ED_MDU541_02904",null,null,"Weather Corrected MD 10% POE","MW","Non-Coincident",19.017494956875634]
["ED_MDU541_02905",null,null,null,null,"Coincident",14.518623180789181]
["ED_MDU541_02906",null,null,"Weather Corrected MD 10% POE","MVA","Non-Coincident",19.186333572584804]
["ED_MDU541_02907",null,null,null,null,"Coincident",14.518623180789181]
["ED_MDU541_02908",null,null,"Weather Corrected MD 50% POE","MW","Non-Coincident",17.850546648854497]
["ED_MDU541_02909",null,null,null,null,"Coincident",13.627733881539335]
["ED_MDU541_02910",null,null,"Weather Corrected MD 50% POE","MVA","Non-Coincident",18.009025017991906]
["ED_MDU541_02911",null,null,null,null,"Coincident",13.627733881539335]
["ED_MDU541_02912",null,"Crescent Head","Substation Rating","MVA","Non-Coincident",9.0750000000000011]
["ED_MDU541_02913",null,null,null,null,"Coincident",9.9]
["ED_MDU541_02914",null,null,"Raw Adjusted MD","MW","Non-Coincident",1.7450000047683716]
["ED_MDU541_02915",null,null,null,null,"Coincident",1.5349999666213989]
["ED_MDU541_02916",null,null,"Raw Adjusted MD","MVA","Non-Coincident",1.8294740375486502]
["ED_MDU541_02917",null,null,null,null,"Coincident",1.5718442497485625]
["ED_MDU541_02918",null,null,"Date MD occurred",null,"Non-Coincident","2014-12-30"]
["ED_MDU541_02919",null,null,null,null,"Coincident","2014-07-10"]
["ED_MDU541_02920",null,null,"Half hour time period MD occurred",null,"Non-Coincident","21:30:00"]
["ED_MDU541_02921",null,null,null,null,"Coincident","18:30:00"]
["ED_MDU541_02922",null,null,"Winter/Summer Peaking",null,"Non-Coincident","Summer"]
["ED_MDU541_02923",null,null,null,null,"Coincident","Winter"]
["ED_MDU541_02924",null,null,"Adjustments - Embedded generation","MW","Non-Coincident",0]
["ED_MDU541_02925",null,null,null,null,"Coincident",0]
["ED_MDU541_02926",null,null,"Weather Corrected MD 10% POE","MW","Non-Coincident",1.5625178694759283]
["ED_MDU541_02927",null,null,null,null,"Coincident",1.3744784360669717]
["ED_MDU541_02928",null,null,"Weather Corrected MD 10% POE","MVA","Non-Coincident",1.6381580903155843]
["ED_MDU541_02929",null,null,null,null,"Coincident",1.3744784360669717]
["ED_MDU541_02930",null,null,"Weather Corrected MD 50% POE","MW","Non-Coincident",1.3054213176591709]
["ED_MDU541_02931",null,null,null,null,"Coincident",1.1483218759645069]
["ED_MDU541_02932",null,null,"Weather Corrected MD 50% POE","MVA","Non-Coincident",1.3686157032629995]
["ED_MDU541_02933",null,null,null,null,"Coincident",1.1483218759645069]
["ED_MDU541_02934",null,"Crookwell","Substation Rating","MVA","Non-Coincident",24]
["ED_MDU541_02935",null,null,null,null,"Coincident",24]
["ED_MDU541_02936",null,null,"Raw Adjusted MD","MW","Non-Coincident",4.6143999999999998]
["ED_MDU541_02937",null,null,null,null,"Coincident",4.3503999999999996]
["ED_MDU541_02938",null,null,"Raw Adjusted MD","MVA","Non-Coincident",4.6233787818001666]
["ED_MDU541_02939",null,null,null,null,"Coincident",4.3834910653496264]
["ED_MDU541_02940",null,null,"Date MD occurred",null,"Non-Coincident","2014-07-19"]
["ED_MDU541_02941",null,null,null,null,"Coincident","2014-07-10"]
["ED_MDU541_02942",null,null,"Half hour time period MD occurred",null,"Non-Coincident","02:00:00"]
["ED_MDU541_02943",null,null,null,null,"Coincident","18:30:00"]
["ED_MDU541_02944",null,null,"Winter/Summer Peaking",null,"Non-Coincident","Winter"]
["ED_MDU541_02945",null,null,null,null,"Coincident","Winter"]
["ED_MDU541_02946",null,null,"Adjustments - Embedded generation","MW","Non-Coincident",0]
["ED_MDU541_02947",null,null,null,null,"Coincident",0]
["ED_MDU541_02948",null,null,"Weather Corrected MD 10% POE","MW","Non-Coincident",4.5423811142697232]
["ED_MDU541_02949",null,null,null,null,"Coincident",4.2825014735434728]
["ED_MDU541_02950",null,null,"Weather Corrected MD 10% POE","MVA","Non-Coincident",4.5512197604378555]
["ED_MDU541_02951",null,null,null,null,"Coincident",4.2825014735434728]
["ED_MDU541_02952",null,null,"Weather Corrected MD 50% POE","MW","Non-Coincident",4.3752892725638048]
["ED_MDU541_02953",null,null,null,null,"Coincident",4.1249693245842529]
["ED_MDU541_02954",null,null,"Weather Corrected MD 50% POE","MVA","Non-Coincident",4.3838027884469017]
["ED_MDU541_02955",null,null,null,null,"Coincident",4.1249693245842529]
["ED_MDU541_02956",null,"Cudgel","Substation Rating","MVA","Non-Coincident",1.1000000000000001]
["ED_MDU541_02957",null,null,null,null,"Coincident",1.2]
["ED_MDU541_02958",null,null,"Raw Adjusted MD","MW","Non-Coincident",0.4316666564941406]
["ED_MDU541_02959",null,null,null,null,"Coincident",0]
["ED_MDU541_02960",null,null,"Raw Adjusted MD","MVA","Non-Coincident",0.51827547624364856]
["ED_MDU541_02961",null,null,null,null,"Coincident",0]
["ED_MDU541_02962",null,null,"Date MD occurred",null,"Non-Coincident","2015-02-22"]
["ED_MDU541_02963",null,null,null,null,"Coincident","2014-07-10"]
["ED_MDU541_02964",null,null,"Half hour time period MD occurred",null,"Non-Coincident","21:00:00"]
["ED_MDU541_02965",null,null,null,null,"Coincident","18:30:00"]
["ED_MDU541_02966",null,null,"Winter/Summer Peaking",null,"Non-Coincident","Summer"]
["ED_MDU541_02967",null,null,null,null,"Coincident","Winter"]
["ED_MDU541_02968",null,null,"Adjustments - Embedded generation","MW","Non-Coincident",0]
["ED_MDU541_02969",null,null,null,null,"Coincident",0]
["ED_MDU541_02970",null,null,"Weather Corrected MD 10% POE","MW","Non-Coincident",0.19035333160704102]
["ED_MDU541_02971",null,null,null,null,"Coincident",0]
["ED_MDU541_02972",null,null,"Weather Corrected MD 10% POE","MVA","Non-Coincident",0.22854548089132637]
["ED_MDU541_02973",null,null,null,null,"Coincident",0]
["ED_MDU541_02974",null,null,"Weather Corrected MD 50% POE","MW","Non-Coincident",0.14859693108588945]
["ED_MDU541_02975",null,null,null,null,"Coincident",0]
["ED_MDU541_02976",null,null,"Weather Corrected MD 50% POE","MVA","Non-Coincident",0.17841115144812991]
["ED_MDU541_02977",null,null,null,null,"Coincident",0]
["ED_MDU541_02978",null,"Cudgen 11kV","Substation Rating","MVA","Non-Coincident",66]
["ED_MDU541_02979",null,null,null,null,"Coincident",72]
["ED_MDU541_02980",null,null,"Raw Adjusted MD","MW","Non-Coincident",12.234]
["ED_MDU541_02981",null,null,null,null,"Coincident",10.698]
["ED_MDU541_02982",null,null,"Raw Adjusted MD","MVA","Non-Coincident",12.241310591599252]
["ED_MDU541_02983",null,null,null,null,"Coincident",10.743986829850453]
["ED_MDU541_02984",null,null,"Date MD occurred",null,"Non-Coincident","2015-01-18"]
["ED_MDU541_02985",null,null,null,null,"Coincident","2014-07-10"]
["ED_MDU541_02986",null,null,"Half hour time period MD occurred",null,"Non-Coincident","18:00:00"]
["ED_MDU541_02987",null,null,null,null,"Coincident","18:30:00"]
["ED_MDU541_02988",null,null,"Winter/Summer Peaking",null,"Non-Coincident","Summer"]
["ED_MDU541_02989",null,null,null,null,"Coincident","Winter"]
["ED_MDU541_02990",null,null,"Adjustments - Embedded generation","MW","Non-Coincident",0.1905]
["ED_MDU541_02991",null,null,null,null,"Coincident",0.1545]
["ED_MDU541_02992",null,null,"Weather Corrected MD 10% POE","MW","Non-Coincident",10.812399919966978]
["ED_MDU541_02993",null,null,null,null,"Coincident",9.454884285091282]
["ED_MDU541_02994",null,null,"Weather Corrected MD 10% POE","MVA","Non-Coincident",10.818861015276987]
["ED_MDU541_02995",null,null,null,null,"Coincident",9.454884285091282]
["ED_MDU541_02996",null,null,"Weather Corrected MD 50% POE","MW","Non-Coincident",10.025721700454946]
["ED_MDU541_02997",null,null,null,null,"Coincident",8.766974885684732]
["ED_MDU541_02998",null,null,"Weather Corrected MD 50% POE","MVA","Non-Coincident",10.031712705591433]
["ED_MDU541_02999",null,null,null,null,"Coincident",8.766974885684732]
["ED_MDU541_03000",null,"Cudgen 33kV","Substation Rating","MVA","Non-Coincident",96]
["ED_MDU541_03001",null,null,null,null,"Coincident",96]
["ED_MDU541_03002",null,null,"Raw Adjusted MD","MW","Non-Coincident",10.199999809265137]
["ED_MDU541_03003",null,null,null,null,"Coincident",9.9600000381469727]
["ED_MDU541_03004",null,null,"Raw Adjusted MD","MVA","Non-Coincident",10.241495843676132]
["ED_MDU541_03005",null,null,null,null,"Coincident",10.009609840834475]
["ED_MDU541_03006",null,null,"Date MD occurred",null,"Non-Coincident","2014-07-01"]
["ED_MDU541_03007",null,null,null,null,"Coincident","2014-07-10"]
["ED_MDU541_03008",null,null,"Half hour time period MD occurred",null,"Non-Coincident","18:30:00"]
["ED_MDU541_03009",null,null,null,null,"Coincident","18:30:00"]
["ED_MDU541_03010",null,null,"Winter/Summer Peaking",null,"Non-Coincident","Winter"]
["ED_MDU541_03011",null,null,null,null,"Coincident","Winter"]
["ED_MDU541_03012",null,null,"Adjustments - Embedded generation","MW","Non-Coincident",0]
["ED_MDU541_03013",null,null,null,null,"Coincident",0]
["ED_MDU541_03014",null,null,"Weather Corrected MD 10% POE","MW","Non-Coincident",9.7953082693018168]
["ED_MDU541_03015",null,null,null,null,"Coincident",9.5648306431621677]
["ED_MDU541_03016",null,null,"Weather Corrected MD 10% POE","MVA","Non-Coincident",9.8351579219106373]
["ED_MDU541_03017",null,null,null,null,"Coincident",9.5648306431621677]
["ED_MDU541_03018",null,null,"Weather Corrected MD 50% POE","MW","Non-Coincident",9.2212553099898251]
["ED_MDU541_03019",null,null,null,null,"Coincident",9.0042847996757516]
["ED_MDU541_03020",null,null,"Weather Corrected MD 50% POE","MVA","Non-Coincident",9.2587695781085699]
["ED_MDU541_03021",null,null,null,null,"Coincident",9.0042847996757516]
["ED_MDU541_03022",null,"Culcairn","Substation Rating","MVA","Non-Coincident",18]
["ED_MDU541_03023",null,null,null,null,"Coincident",18]
["ED_MDU541_03024",null,null,"Raw Adjusted MD","MW","Non-Coincident",3.7919999999999998]
["ED_MDU541_03025",null,null,null,null,"Coincident",2.6579999999999999]
["ED_MDU541_03026",null,null,"Raw Adjusted MD","MVA","Non-Coincident",3.818607599636286]
["ED_MDU541_03027",null,null,null,null,"Coincident",2.7122986561217775]
["ED_MDU541_03028",null,null,"Date MD occurred",null,"Non-Coincident","2014-07-22"]
["ED_MDU541_03029",null,null,null,null,"Coincident","2014-07-10"]
["ED_MDU541_03030",null,null,"Half hour time period MD occurred",null,"Non-Coincident","01:30:00"]
["ED_MDU541_03031",null,null,null,null,"Coincident","18:30:00"]
["ED_MDU541_03032",null,null,"Winter/Summer Peaking",null,"Non-Coincident","Winter"]
["ED_MDU541_03033",null,null,null,null,"Coincident","Winter"]
["ED_MDU541_03034",null,null,"Adjustments - Embedded generation","MW","Non-Coincident",0]
["ED_MDU541_03035",null,null,null,null,"Coincident",0]
["ED_MDU541_03036",null,null,"Weather Corrected MD 10% POE","MW","Non-Coincident",3.8134810012624736]
["ED_MDU541_03037",null,null,null,null,"Coincident",2.6730570942393603]
["ED_MDU541_03038",null,null,"Weather Corrected MD 10% POE","MVA","Non-Coincident",3.8402393281881526]
["ED_MDU541_03039",null,null,null,null,"Coincident",2.6730570942393603]
["ED_MDU541_03040",null,null,"Weather Corrected MD 50% POE","MW","Non-Coincident",3.4559376725626709]
["ED_MDU541_03041",null,null,null,null,"Coincident",2.4224373242804798]
["ED_MDU541_03042",null,null,"Weather Corrected MD 50% POE","MVA","Non-Coincident",3.4801871994507261]
["ED_MDU541_03043",null,null,null,null,"Coincident",2.4224373242804798]
["ED_MDU541_03044",null,"Cumnock","Substation Rating","MVA","Non-Coincident",6]
["ED_MDU541_03045",null,null,null,null,"Coincident",6]
["ED_MDU541_03046",null,null,"Raw Adjusted MD","MW","Non-Coincident",1.5382499999999999]
["ED_MDU541_03047",null,null,null,null,"Coincident",1.32525]
["ED_MDU541_03048",null,null,"Raw Adjusted MD","MVA","Non-Coincident",1.5442283267056074]
["ED_MDU541_03049",null,null,null,null,"Coincident",1.3305374149192499]
["ED_MDU541_03050",null,null,"Date MD occurred",null,"Non-Coincident","2014-07-20"]
["ED_MDU541_03051",null,null,null,null,"Coincident","2014-07-10"]
["ED_MDU541_03052",null,null,"Half hour time period MD occurred",null,"Non-Coincident","18:30:00"]
["ED_MDU541_03053",null,null,null,null,"Coincident","18:30:00"]
["ED_MDU541_03054",null,null,"Winter/Summer Peaking",null,"Non-Coincident","Winter"]
["ED_MDU541_03055",null,null,null,null,"Coincident","Winter"]
["ED_MDU541_03056",null,null,"Adjustments - Embedded generation","MW","Non-Coincident",0]
["ED_MDU541_03057",null,null,null,null,"Coincident",0]
["ED_MDU541_03058",null,null,"Weather Corrected MD 10% POE","MW","Non-Coincident",1.4092546993358965]
["ED_MDU541_03059",null,null,null,null,"Coincident",1.2141165547179569]
["ED_MDU541_03060",null,null,"Weather Corrected MD 10% POE","MVA","Non-Coincident",1.4147316926751083]
["ED_MDU541_03061",null,null,null,null,"Coincident",1.2141165547179569]
["ED_MDU541_03062",null,null,"Weather Corrected MD 50% POE","MW","Non-Coincident",1.3364808237708743]
["ED_MDU541_03063",null,null,null,null,"Coincident",1.1514196078026011]
["ED_MDU541_03064",null,null,"Weather Corrected MD 50% POE","MVA","Non-Coincident",1.3416749853182701]
["ED_MDU541_03065",null,null,null,null,"Coincident",1.1514196078026011]
["ED_MDU541_03066",null,"Currabubula","Substation Rating","MVA","Non-Coincident",1.6500000000000001]
["ED_MDU541_03067",null,null,null,null,"Coincident",1.7999999999999998]
["ED_MDU541_03068",null,null,"Raw Adjusted MD","MW","Non-Coincident",1.2406040235092026]
["ED_MDU541_03069",null,null,null,null,"Coincident",0.86191506028467424]
["ED_MDU541_03070",null,null,"Raw Adjusted MD","MVA","Non-Coincident",1.3058989721149501]
["ED_MDU541_03071",null,null,null,null,"Coincident",0.90727901082597295]
["ED_MDU541_03072",null,null,"Date MD occurred",null,"Non-Coincident","2014-11-23"]
["ED_MDU541_03073",null,null,null,null,"Coincident","2014-07-10"]
["ED_MDU541_03074",null,null,"Half hour time period MD occurred",null,"Non-Coincident","18:00:00"]
["ED_MDU541_03075",null,null,null,null,"Coincident","18:30:00"]
["ED_MDU541_03076",null,null,"Winter/Summer Peaking",null,"Non-Coincident","Summer"]
["ED_MDU541_03077",null,null,null,null,"Coincident","Winter"]
["ED_MDU541_03078",null,null,"Adjustments - Embedded generation","MW","Non-Coincident",0]
["ED_MDU541_03079",null,null,null,null,"Coincident",0]
["ED_MDU541_03080",null,null,"Weather Corrected MD 10% POE","MW","Non-Coincident",1.1750073365039377]
["ED_MDU541_03081",null,null,null,null,"Coincident",0.81634147567329207]
["ED_MDU541_03082",null,null,"Weather Corrected MD 10% POE","MVA","Non-Coincident",1.2368498278988818]
["ED_MDU541_03083",null,null,null,null,"Coincident",0.81634147567329207]
["ED_MDU541_03084",null,null,"Weather Corrected MD 50% POE","MW","Non-Coincident",1.0975713975919776]
["ED_MDU541_03085",null,null,null,null,"Coincident",0.76254251912411775]
["ED_MDU541_03086",null,null,"Weather Corrected MD 50% POE","MVA","Non-Coincident",1.1553383132547133]
["ED_MDU541_03087",null,null,null,null,"Coincident",0.76254251912411775]
["ED_MDU541_03088",null,"Dareton","Substation Rating","MVA","Non-Coincident",66]
["ED_MDU541_03089",null,null,null,null,"Coincident",72]
["ED_MDU541_03090",null,null,"Raw Adjusted MD","MW","Non-Coincident",14.8788]
["ED_MDU541_03091",null,null,null,null,"Coincident",6.5213999999999999]
["ED_MDU541_03092",null,null,"Raw Adjusted MD","MVA","Non-Coincident",16.101331220740722]
["ED_MDU541_03093",null,null,null,null,"Coincident",6.5441668010526737]
["ED_MDU541_03094",null,null,"Date MD occurred",null,"Non-Coincident","2015-02-21"]
["ED_MDU541_03095",null,null,null,null,"Coincident","2014-07-10"]
["ED_MDU541_03096",null,null,"Half hour time period MD occurred",null,"Non-Coincident","15:30:00"]
["ED_MDU541_03097",null,null,null,null,"Coincident","18:30:00"]
["ED_MDU541_03098",null,null,"Winter/Summer Peaking",null,"Non-Coincident","Summer"]
["ED_MDU541_03099",null,null,null,null,"Coincident","Winter"]
["ED_MDU541_03100",null,null,"Adjustments - Embedded generation","MW","Non-Coincident",0]
["ED_MDU541_03101",null,null,null,null,"Coincident",0]
["ED_MDU541_03102",null,null,"Weather Corrected MD 10% POE","MW","Non-Coincident",14.58486841036992]
["ED_MDU541_03103",null,null,null,null,"Coincident",6.3925693504440142]
["ED_MDU541_03104",null,null,"Weather Corrected MD 10% POE","MVA","Non-Coincident",15.783248453254583]
["ED_MDU541_03105",null,null,null,null,"Coincident",6.3925693504440142]
["ED_MDU541_03106",null,null,"Weather Corrected MD 50% POE","MW","Non-Coincident",12.250768216224277]
["ED_MDU541_03107",null,null,null,null,"Coincident",5.3695297903920345]
["ED_MDU541_03108",null,null,"Weather Corrected MD 50% POE","MVA","Non-Coincident",13.257364623353366]
["ED_MDU541_03109",null,null,null,null,"Coincident",5.3695297903920345]
["ED_MDU541_03110",null,"Darlington Point","Substation Rating","MVA","Non-Coincident",29.150000000000002]
["ED_MDU541_03111",null,null,null,null,"Coincident",31.799999999999997]
["ED_MDU541_03112",null,null,"Raw Adjusted MD","MW","Non-Coincident",3.0483334064483643]
["ED_MDU541_03113",null,null,null,null,"Coincident",1.0188332796096802]
["ED_MDU541_03114",null,null,"Raw Adjusted MD","MVA","Non-Coincident",3.7947248271466281]
["ED_MDU541_03115",null,null,null,null,"Coincident",1.1077460412914621]
["ED_MDU541_03116",null,null,"Date MD occurred",null,"Non-Coincident","2014-12-21"]
["ED_MDU541_03117",null,null,null,null,"Coincident","2014-07-10"]
["ED_MDU541_03118",null,null,"Half hour time period MD occurred",null,"Non-Coincident","19:00:00"]
["ED_MDU541_03119",null,null,null,null,"Coincident","18:30:00"]
["ED_MDU541_03120",null,null,"Winter/Summer Peaking",null,"Non-Coincident","Summer"]
["ED_MDU541_03121",null,null,null,null,"Coincident","Winter"]
["ED_MDU541_03122",null,null,"Adjustments - Embedded generation","MW","Non-Coincident",0]
["ED_MDU541_03123",null,null,null,null,"Coincident",0]
["ED_MDU541_03124",null,null,"Weather Corrected MD 10% POE","MW","Non-Coincident",2.9958524797099217]
["ED_MDU541_03125",null,null,null,null,"Coincident",1.0012927721990488]
["ED_MDU541_03126",null,null,"Weather Corrected MD 10% POE","MVA","Non-Coincident",3.729393825221198]
["ED_MDU541_03127",null,null,null,null,"Coincident",1.0012927721990488]
["ED_MDU541_03128",null,null,"Weather Corrected MD 50% POE","MW","Non-Coincident",2.4462977504808716]
["ED_MDU541_03129",null,null,null,null,"Coincident",0.81761711325667874]
["ED_MDU541_03130",null,null,"Weather Corrected MD 50% POE","MVA","Non-Coincident",3.0452793610782996]
["ED_MDU541_03131",null,null,null,null,"Coincident",0.81761711325667874]
["ED_MDU541_03132",null,"Deniliquin","Substation Rating","MVA","Non-Coincident",66]
["ED_MDU541_03133",null,null,null,null,"Coincident",72]
["ED_MDU541_03134",null,null,"Raw Adjusted MD","MW","Non-Coincident",20.399999999999999]
["ED_MDU541_03135",null,null,null,null,"Coincident",16.8]
["ED_MDU541_03136",null,null,"Raw Adjusted MD","MVA","Non-Coincident",21.441082062246764]
["ED_MDU541_03137",null,null,null,null,"Coincident",17.505610529198918]
["ED_MDU541_03138",null,null,"Date MD occurred",null,"Non-Coincident","2015-01-07"]
["ED_MDU541_03139",null,null,null,null,"Coincident","2014-07-10"]
["ED_MDU541_03140",null,null,"Half hour time period MD occurred",null,"Non-Coincident","17:30:00"]
["ED_MDU541_03141",null,null,null,null,"Coincident","18:30:00"]
["ED_MDU541_03142",null,null,"Winter/Summer Peaking",null,"Non-Coincident","Summer"]
["ED_MDU541_03143",null,null,null,null,"Coincident","Winter"]
["ED_MDU541_03144",null,null,"Adjustments - Embedded generation","MW","Non-Coincident",0]
["ED_MDU541_03145",null,null,null,null,"Coincident",0]
["ED_MDU541_03146",null,null,"Weather Corrected MD 10% POE","MW","Non-Coincident",22.683461842612751]
["ED_MDU541_03147",null,null,null,null,"Coincident",18.68049798803403]
["ED_MDU541_03148",null,null,"Weather Corrected MD 10% POE","MVA","Non-Coincident",23.841076805063881]
["ED_MDU541_03149",null,null,null,null,"Coincident",18.68049798803403]
["ED_MDU541_03150",null,null,"Weather Corrected MD 50% POE","MW","Non-Coincident",20.874106748664488]
["ED_MDU541_03151",null,null,null,null,"Coincident",17.190440851841345]
["ED_MDU541_03152",null,null,"Weather Corrected MD 50% POE","MVA","Non-Coincident",21.93938410657913]
["ED_MDU541_03153",null,null,null,null,"Coincident",17.190440851841345]
["ED_MDU541_03154",null,"Dorrigo","Substation Rating","MVA","Non-Coincident",18]
["ED_MDU541_03155",null,null,null,null,"Coincident",18]
["ED_MDU541_03156",null,null,"Raw Adjusted MD","MW","Non-Coincident",2.8435740000000003]
["ED_MDU541_03157",null,null,null,null,"Coincident",2.3637219999999997]
["ED_MDU541_03158",null,null,"Raw Adjusted MD","MVA","Non-Coincident",2.9932357894736841]
["ED_MDU541_03159",null,null,null,null,"Coincident",2.4881284210526315]
["ED_MDU541_03160",null,null,"Date MD occurred",null,"Non-Coincident","2014-07-15"]
["ED_MDU541_03161",null,null,null,null,"Coincident","2014-07-10"]
["ED_MDU541_03162",null,null,"Half hour time period MD occurred",null,"Non-Coincident","00:30:00"]
["ED_MDU541_03163",null,null,null,null,"Coincident","18:30:00"]
["ED_MDU541_03164",null,null,"Winter/Summer Peaking",null,"Non-Coincident","Winter"]
["ED_MDU541_03165",null,null,null,null,"Coincident","Winter"]
["ED_MDU541_03166",null,null,"Adjustments - Embedded generation","MW","Non-Coincident",0]
["ED_MDU541_03167",null,null,null,null,"Coincident",0]
["ED_MDU541_03168",null,null,"Weather Corrected MD 10% POE","MW","Non-Coincident",2.6723730146669169]
["ED_MDU541_03169",null,null,null,null,"Coincident",2.2214111139623984]
["ED_MDU541_03170",null,null,"Weather Corrected MD 10% POE","MVA","Non-Coincident",2.8130242259651754]
["ED_MDU541_03171",null,null,null,null,"Coincident",2.2214111139623984]
["ED_MDU541_03172",null,null,"Weather Corrected MD 50% POE","MW","Non-Coincident",2.4864510017383372]
["ED_MDU541_03173",null,null,null,null,"Coincident",2.0668633679766888]
["ED_MDU541_03174",null,null,"Weather Corrected MD 50% POE","MVA","Non-Coincident",2.6173168439350918]
["ED_MDU541_03175",null,null,null,null,"Coincident",2.0668633679766888]
["ED_MDU541_03176",null,"Dubbo Phillip St","Substation Rating","MVA","Non-Coincident",66]
["ED_MDU541_03177",null,null,null,null,"Coincident",72]
["ED_MDU541_03178",null,null,"Raw Adjusted MD","MW","Non-Coincident",21.364799999999999]
["ED_MDU541_03179",null,null,null,null,"Coincident",13.876800000000001]
["ED_MDU541_03180",null,null,"Raw Adjusted MD","MVA","Non-Coincident",23.418591998666358]
["ED_MDU541_03181",null,null,null,null,"Coincident",14.466872723570912]
["ED_MDU541_03182",null,null,"Date MD occurred",null,"Non-Coincident","2014-11-24"]
["ED_MDU541_03183",null,null,null,null,"Coincident","2014-07-10"]
["ED_MDU541_03184",null,null,"Half hour time period MD occurred",null,"Non-Coincident","15:00:00"]
["ED_MDU541_03185",null,null,null,null,"Coincident","18:30:00"]
["ED_MDU541_03186",null,null,"Winter/Summer Peaking",null,"Non-Coincident","Summer"]
["ED_MDU541_03187",null,null,null,null,"Coincident","Winter"]
["ED_MDU541_03188",null,null,"Adjustments - Embedded generation","MW","Non-Coincident",0]
["ED_MDU541_03189",null,null,null,null,"Coincident",0]
["ED_MDU541_03190",null,null,"Weather Corrected MD 10% POE","MW","Non-Coincident",24.66943138813981]
["ED_MDU541_03191",null,null,null,null,"Coincident",16.023214141341768]
["ED_MDU541_03192",null,null,"Weather Corrected MD 10% POE","MVA","Non-Coincident",27.040896639235548]
["ED_MDU541_03193",null,null,null,null,"Coincident",16.023214141341768]
["ED_MDU541_03194",null,null,"Weather Corrected MD 50% POE","MW","Non-Coincident",22.28906135304457]
["ED_MDU541_03195",null,null,null,null,"Coincident",14.477123426567482]
["ED_MDU541_03196",null,null,"Weather Corrected MD 50% POE","MVA","Non-Coincident",24.431702326265309]
["ED_MDU541_03197",null,null,null,null,"Coincident",14.477123426567482]
["ED_MDU541_03198",null,"Dubbo South","Substation Rating","MVA","Non-Coincident",66]
["ED_MDU541_03199",null,null,null,null,"Coincident",72]
["ED_MDU541_03200",null,null,"Raw Adjusted MD","MW","Non-Coincident",14.94]
["ED_MDU541_03201",null,null,null,null,"Coincident",10.242000000000001]
["ED_MDU541_03202",null,null,"Raw Adjusted MD","MVA","Non-Coincident",15.616910834092637]
["ED_MDU541_03203",null,null,null,null,"Coincident",10.423742514087731]
["ED_MDU541_03204",null,null,"Date MD occurred",null,"Non-Coincident","2014-11-23"]
["ED_MDU541_03205",null,null,null,null,"Coincident","2014-07-10"]
["ED_MDU541_03206",null,null,"Half hour time period MD occurred",null,"Non-Coincident","17:00:00"]
["ED_MDU541_03207",null,null,null,null,"Coincident","18:30:00"]
["ED_MDU541_03208",null,null,"Winter/Summer Peaking",null,"Non-Coincident","Summer"]
["ED_MDU541_03209",null,null,null,null,"Coincident","Winter"]
["ED_MDU541_03210",null,null,"Adjustments - Embedded generation","MW","Non-Coincident",8.2799999999999996E-4]
["ED_MDU541_03211",null,null,null,null,"Coincident",8.3999999999999995E-5]
["ED_MDU541_03212",null,null,"Weather Corrected MD 10% POE","MW","Non-Coincident",14.993229479857819]
["ED_MDU541_03213",null,null,null,null,"Coincident",10.278491053059156]
["ED_MDU541_03214",null,null,"Weather Corrected MD 10% POE","MVA","Non-Coincident",15.672552068408883]
["ED_MDU541_03215",null,null,null,null,"Coincident",10.278491053059156]
["ED_MDU541_03216",null,null,"Weather Corrected MD 50% POE","MW","Non-Coincident",13.799178513935843]
["ED_MDU541_03217",null,null,null,null,"Coincident",9.459918764372885]
["ED_MDU541_03218",null,null,"Weather Corrected MD 50% POE","MVA","Non-Coincident",14.42440029691185]
["ED_MDU541_03219",null,null,null,null,"Coincident",9.459918764372885]
["ED_MDU541_03220",null,"Dubbo West","Substation Rating","MVA","Non-Coincident",50.6]
["ED_MDU541_03221",null,null,null,null,"Coincident",55.199999999999996]
["ED_MDU541_03222",null,null,"Raw Adjusted MD","MW","Non-Coincident",13.28]
["ED_MDU541_03223",null,null,null,null,"Coincident",9.92]
["ED_MDU541_03224",null,null,"Raw Adjusted MD","MVA","Non-Coincident",13.961894570580313]
["ED_MDU541_03225",null,null,null,null,"Coincident",10.167561162835462]
["ED_MDU541_03226",null,null,"Date MD occurred",null,"Non-Coincident","2014-11-23"]
["ED_MDU541_03227",null,null,null,null,"Coincident","2014-07-10"]
["ED_MDU541_03228",null,null,"Half hour time period MD occurred",null,"Non-Coincident","17:00:00"]
["ED_MDU541_03229",null,null,null,null,"Coincident","18:30:00"]
["ED_MDU541_03230",null,null,"Winter/Summer Peaking",null,"Non-Coincident","Summer"]
["ED_MDU541_03231",null,null,null,null,"Coincident","Winter"]
["ED_MDU541_03232",null,null,"Adjustments - Embedded generation","MW","Non-Coincident",0]
["ED_MDU541_03233",null,null,null,null,"Coincident",0]
["ED_MDU541_03234",null,null,"Weather Corrected MD 10% POE","MW","Non-Coincident",13.35523110348892]
["ED_MDU541_03235",null,null,null,null,"Coincident",9.9761967279073875]
["ED_MDU541_03236",null,null,"Weather Corrected MD 10% POE","MVA","Non-Coincident",14.04098860185597]
["ED_MDU541_03237",null,null,null,null,"Coincident",9.9761967279073875]
["ED_MDU541_03238",null,null,"Weather Corrected MD 50% POE","MW","Non-Coincident",12.352704386087373]
["ED_MDU541_03239",null,null,null,null,"Coincident",9.2273213486435814]
["ED_MDU541_03240",null,null,"Weather Corrected MD 50% POE","MVA","Non-Coincident",12.986984661151876]
["ED_MDU541_03241",null,null,null,null,"Coincident",9.2273213486435814]
["ED_MDU541_03242",null,"Dunedoo","Substation Rating","MVA","Non-Coincident",16.5]
["ED_MDU541_03243",null,null,null,null,"Coincident",18]
["ED_MDU541_03244",null,null,"Raw Adjusted MD","MW","Non-Coincident",5.4]
["ED_MDU541_03245",null,null,null,null,"Coincident",4.0176000000000007]
["ED_MDU541_03246",null,null,"Raw Adjusted MD","MVA","Non-Coincident",5.4021163852697578]
["ED_MDU541_03247",null,null,null,null,"Coincident",4.0196897790749979]
["ED_MDU541_03248",null,null,"Date MD occurred",null,"Non-Coincident","2014-11-23"]
["ED_MDU541_03249",null,null,null,null,"Coincident","2014-07-10"]
["ED_MDU541_03250",null,null,"Half hour time period MD occurred",null,"Non-Coincident","18:00:00"]
["ED_MDU541_03251",null,null,null,null,"Coincident","18:30:00"]
["ED_MDU541_03252",null,null,"Winter/Summer Peaking",null,"Non-Coincident","Summer"]
["ED_MDU541_03253",null,null,null,null,"Coincident","Winter"]
["ED_MDU541_03254",null,null,"Adjustments - Embedded generation","MW","Non-Coincident",0]
["ED_MDU541_03255",null,null,null,null,"Coincident",0]
["ED_MDU541_03256",null,null,"Weather Corrected MD 10% POE","MW","Non-Coincident",4.4514963196787898]
["ED_MDU541_03257",null,null,null,null,"Coincident",3.3119132618410201]
["ED_MDU541_03258",null,null,"Weather Corrected MD 10% POE","MVA","Non-Coincident",4.4532409643527435]
["ED_MDU541_03259",null,null,null,null,"Coincident",3.3119132618410201]
["ED_MDU541_03260",null,null,"Weather Corrected MD 50% POE","MW","Non-Coincident",4.1804849709586236]
["ED_MDU541_03261",null,null,null,null,"Coincident",3.1102808183932162]
["ED_MDU541_03262",null,null,"Weather Corrected MD 50% POE","MVA","Non-Coincident",4.1821233999980647]
["ED_MDU541_03263",null,null,null,null,"Coincident",3.1102808183932162]
["ED_MDU541_03264",null,"Dungog","Substation Rating","MVA","Non-Coincident",35.200000000000003]
["ED_MDU541_03265",null,null,null,null,"Coincident",38.4]
["ED_MDU541_03266",null,null,"Raw Adjusted MD","MW","Non-Coincident",7.8570000000000002]
["ED_MDU541_03267",null,null,null,null,"Coincident",5.3070000000000004]
["ED_MDU541_03268",null,null,"Raw Adjusted MD","MVA","Non-Coincident",7.8921470462732763]
["ED_MDU541_03269",null,null,null,null,"Coincident",5.4236897035136513]
["ED_MDU541_03270",null,null,"Date MD occurred",null,"Non-Coincident","2014-11-23"]
["ED_MDU541_03271",null,null,null,null,"Coincident","2014-07-10"]
["ED_MDU541_03272",null,null,"Half hour time period MD occurred",null,"Non-Coincident","17:30:00"]
["ED_MDU541_03273",null,null,null,null,"Coincident","18:30:00"]
["ED_MDU541_03274",null,null,"Winter/Summer Peaking",null,"Non-Coincident","Summer"]
["ED_MDU541_03275",null,null,null,null,"Coincident","Winter"]
["ED_MDU541_03276",null,null,"Adjustments - Embedded generation","MW","Non-Coincident",1.4507999999999998E-2]
["ED_MDU541_03277",null,null,null,null,"Coincident",4.0871999999999999E-2]
["ED_MDU541_03278",null,null,"Weather Corrected MD 10% POE","MW","Non-Coincident",7.0213765123706144]
["ED_MDU541_03279",null,null,null,null,"Coincident",4.7425792479509807]
["ED_MDU541_03280",null,null,"Weather Corrected MD 10% POE","MVA","Non-Coincident",7.0527855291941322]
["ED_MDU541_03281",null,null,null,null,"Coincident",4.7425792479509807]
["ED_MDU541_03282",null,null,"Weather Corrected MD 50% POE","MW","Non-Coincident",6.3140886128173399]
["ED_MDU541_03283",null,null,null,null,"Coincident",4.2648425949117508]
["ED_MDU541_03284",null,null,"Weather Corrected MD 50% POE","MVA","Non-Coincident",6.3423336891375959]
["ED_MDU541_03285",null,null,null,null,"Coincident",4.2648425949117508]
["ED_MDU541_03286",null,"Dunoon","Substation Rating","MVA","Non-Coincident",24]
["ED_MDU541_03287",null,null,null,null,"Coincident",24]
["ED_MDU541_03288",null,null,"Raw Adjusted MD","MW","Non-Coincident",5.7381360000000008]
["ED_MDU541_03289",null,null,null,null,"Coincident",4.95017]
["ED_MDU541_03290",null,null,"Raw Adjusted MD","MVA","Non-Coincident",5.7394226919675466]
["ED_MDU541_03291",null,null,null,null,"Coincident",4.965308306996052]
["ED_MDU541_03292",null,null,"Date MD occurred",null,"Non-Coincident","2014-08-27"]
["ED_MDU541_03293",null,null,null,null,"Coincident","2014-07-10"]
["ED_MDU541_03294",null,null,"Half hour time period MD occurred",null,"Non-Coincident","18:30:00"]
["ED_MDU541_03295",null,null,null,null,"Coincident","18:30:00"]
["ED_MDU541_03296",null,null,"Winter/Summer Peaking",null,"Non-Coincident","Winter"]
["ED_MDU541_03297",null,null,null,null,"Coincident","Winter"]
["ED_MDU541_03298",null,null,"Adjustments - Embedded generation","MW","Non-Coincident",0]
["ED_MDU541_03299",null,null,null,null,"Coincident",0]
["ED_MDU541_03300",null,null,"Weather Corrected MD 10% POE","MW","Non-Coincident",6.0320359142539681]
["ED_MDU541_03301",null,null,null,null,"Coincident",5.2037113135106177]
["ED_MDU541_03302",null,null,"Weather Corrected MD 10% POE","MVA","Non-Coincident",6.0333885089221351]
["ED_MDU541_03303",null,null,null,null,"Coincident",5.2037113135106177]
["ED_MDU541_03304",null,null,"Weather Corrected MD 50% POE","MW","Non-Coincident",5.7267037047787595]
["ED_MDU541_03305",null,null,null,null,"Coincident",4.9403075978479194]
["ED_MDU541_03306",null,null,"Weather Corrected MD 50% POE","MVA","Non-Coincident",5.7279878332235103]
["ED_MDU541_03307",null,null,null,null,"Coincident",4.9403075978479194]
["ED_MDU541_03308",null,"Eden South","Substation Rating","MVA","Non-Coincident",38.4]
["ED_MDU541_03309",null,null,null,null,"Coincident",38.4]
["ED_MDU541_03310",null,null,"Raw Adjusted MD","MW","Non-Coincident",4.3966665267944336]
["ED_MDU541_03311",null,null,null,null,"Coincident",3.9666666984558105]
["ED_MDU541_03312",null,null,"Raw Adjusted MD","MVA","Non-Coincident",4.46456440497606]
["ED_MDU541_03313",null,null,null,null,"Coincident",4.0267759748171814]
["ED_MDU541_03314",null,null,"Date MD occurred",null,"Non-Coincident","2014-09-03"]
["ED_MDU541_03315",null,null,null,null,"Coincident","2014-07-10"]
["ED_MDU541_03316",null,null,"Half hour time period MD occurred",null,"Non-Coincident","18:30:00"]
["ED_MDU541_03317",null,null,null,null,"Coincident","18:30:00"]
["ED_MDU541_03318",null,null,"Winter/Summer Peaking",null,"Non-Coincident","Winter"]
["ED_MDU541_03319",null,null,null,null,"Coincident","Winter"]
["ED_MDU541_03320",null,null,"Adjustments - Embedded generation","MW","Non-Coincident",0]
["ED_MDU541_03321",null,null,null,null,"Coincident",0]
["ED_MDU541_03322",null,null,"Weather Corrected MD 10% POE","MW","Non-Coincident",4.505761594894782]
["ED_MDU541_03323",null,null,null,null,"Coincident",4.065092123937176]
["ED_MDU541_03324",null,null,"Weather Corrected MD 10% POE","MVA","Non-Coincident",4.575344232108951]
["ED_MDU541_03325",null,null,null,null,"Coincident",4.065092123937176]
["ED_MDU541_03326",null,null,"Weather Corrected MD 50% POE","MW","Non-Coincident",4.2715596051004301]
["ED_MDU541_03327",null,null,null,null,"Coincident",3.8537953999378085]
["ED_MDU541_03328",null,null,"Weather Corrected MD 50% POE","MVA","Non-Coincident",4.3375254526226721]
["ED_MDU541_03329",null,null,null,null,"Coincident",3.8537953999378085]
["ED_MDU541_03330",null,"Edrom","Substation Rating","MVA","Non-Coincident",12]
["ED_MDU541_03331",null,null,null,null,"Coincident",12]
["ED_MDU541_03332",null,null,"Raw Adjusted MD","MW","Non-Coincident",1.8300000429153442]
["ED_MDU541_03333",null,null,null,null,"Coincident",0.18500000238418579]
["ED_MDU541_03334",null,null,"Raw Adjusted MD","MVA","Non-Coincident",1.8797642412845783]
["ED_MDU541_03335",null,null,null,null,"Coincident",0.24678487889907308]
["ED_MDU541_03336",null,null,"Date MD occurred",null,"Non-Coincident","2014-08-15"]
["ED_MDU541_03337",null,null,null,null,"Coincident","2014-07-10"]
["ED_MDU541_03338",null,null,"Half hour time period MD occurred",null,"Non-Coincident","09:00:00"]
["ED_MDU541_03339",null,null,null,null,"Coincident","18:30:00"]
["ED_MDU541_03340",null,null,"Winter/Summer Peaking",null,"Non-Coincident","Winter"]
["ED_MDU541_03341",null,null,null,null,"Coincident","Winter"]
["ED_MDU541_03342",null,null,"Adjustments - Embedded generation","MW","Non-Coincident",0]
["ED_MDU541_03343",null,null,null,null,"Coincident",0]
["ED_MDU541_03344",null,null,"Weather Corrected MD 10% POE","MW","Non-Coincident",2.0338206355515354]
["ED_MDU541_03345",null,null,null,null,"Coincident",0.20560481617619608]
["ED_MDU541_03346",null,null,"Weather Corrected MD 10% POE","MVA","Non-Coincident",2.0891274394758623]
["ED_MDU541_03347",null,null,null,null,"Coincident",0.20560481617619608]
["ED_MDU541_03348",null,null,"Weather Corrected MD 50% POE","MW","Non-Coincident",1.503377625104581]
["ED_MDU541_03349",null,null,null,null,"Coincident",0.15198079656085839]
["ED_MDU541_03350",null,null,"Weather Corrected MD 50% POE","MVA","Non-Coincident",1.5442598002986245]
["ED_MDU541_03351",null,null,null,null,"Coincident",0.15198079656085839]
["ED_MDU541_03352",null,"Egansford","Substation Rating","MVA","Non-Coincident",8.25]
["ED_MDU541_03353",null,null,null,null,"Coincident",9]
["ED_MDU541_03354",null,null,"Raw Adjusted MD","MW","Non-Coincident",1.1400000154972076]
["ED_MDU541_03355",null,null,null,null,"Coincident",8.0333329737186432E-2]
["ED_MDU541_03356",null,null,"Raw Adjusted MD","MVA","Non-Coincident",1.3446073905247076]
["ED_MDU541_03357",null,null,null,null,"Coincident",8.282595181571667E-2]
["ED_MDU541_03358",null,null,"Date MD occurred",null,"Non-Coincident","2015-02-01"]
["ED_MDU541_03359",null,null,null,null,"Coincident","2014-07-10"]
["ED_MDU541_03360",null,null,"Half hour time period MD occurred",null,"Non-Coincident","17:00:00"]
["ED_MDU541_03361",null,null,null,null,"Coincident","18:30:00"]
["ED_MDU541_03362",null,null,"Winter/Summer Peaking",null,"Non-Coincident","Summer"]
["ED_MDU541_03363",null,null,null,null,"Coincident","Winter"]
["ED_MDU541_03364",null,null,"Adjustments - Embedded generation","MW","Non-Coincident",0]
["ED_MDU541_03365",null,null,null,null,"Coincident",0]
["ED_MDU541_03366",null,null,"Weather Corrected MD 10% POE","MW","Non-Coincident",1.2560962403279787]
["ED_MDU541_03367",null,null,null,null,"Coincident",8.8514379021212258E-2]
["ED_MDU541_03368",null,null,"Weather Corrected MD 10% POE","MVA","Non-Coincident",1.4815405833294362]
["ED_MDU541_03369",null,null,null,null,"Coincident",8.8514379021212258E-2]
["ED_MDU541_03370",null,null,"Weather Corrected MD 50% POE","MW","Non-Coincident",0.9996391083929923]
["ED_MDU541_03371",null,null,null,null,"Coincident",7.0442400895667348E-2]
["ED_MDU541_03372",null,null,"Weather Corrected MD 50% POE","MVA","Non-Coincident",1.1790544866058723]
["ED_MDU541_03373",null,null,null,null,"Coincident",7.0442400895667348E-2]
["ED_MDU541_03374",null,"Ellerslie","Substation Rating","MVA","Non-Coincident",5.5]
["ED_MDU541_03375",null,null,null,null,"Coincident",6]
["ED_MDU541_03376",null,null,"Raw Adjusted MD","MW","Non-Coincident",3.8900001049041748]
["ED_MDU541_03377",null,null,null,null,"Coincident",0]
["ED_MDU541_03378",null,null,"Raw Adjusted MD","MVA","Non-Coincident",3.9582729575385822]
["ED_MDU541_03379",null,null,null,null,"Coincident",0]
["ED_MDU541_03380",null,null,"Date MD occurred",null,"Non-Coincident","2015-01-03"]
["ED_MDU541_03381",null,null,null,null,"Coincident","2014-07-10"]
["ED_MDU541_03382",null,null,"Half hour time period MD occurred",null,"Non-Coincident","12:30:00"]
["ED_MDU541_03383",null,null,null,null,"Coincident","18:30:00"]
["ED_MDU541_03384",null,null,"Winter/Summer Peaking",null,"Non-Coincident","Summer"]
["ED_MDU541_03385",null,null,null,null,"Coincident","Winter"]
["ED_MDU541_03386",null,null,"Adjustments - Embedded generation","MW","Non-Coincident",0]
["ED_MDU541_03387",null,null,null,null,"Coincident",0]
["ED_MDU541_03388",null,null,"Weather Corrected MD 10% POE","MW","Non-Coincident",2.989955963936076]
["ED_MDU541_03389",null,null,null,null,"Coincident",0]
["ED_MDU541_03390",null,null,"Weather Corrected MD 10% POE","MVA","Non-Coincident",3.0424322666106756]
["ED_MDU541_03391",null,null,null,null,"Coincident",0]
["ED_MDU541_03392",null,null,"Weather Corrected MD 50% POE","MW","Non-Coincident",2.5638483005623445]
["ED_MDU541_03393",null,null,null,null,"Coincident",0]
["ED_MDU541_03394",null,null,"Weather Corrected MD 50% POE","MVA","Non-Coincident",2.6088460467013719]
["ED_MDU541_03395",null,null,null,null,"Coincident",0]
["ED_MDU541_03396",null,"Emmaville 66/11kV","Substation Rating","MVA","Non-Coincident",3.5999999999999996]
["ED_MDU541_03397",null,null,null,null,"Coincident",3.5999999999999996]
["ED_MDU541_03398",null,null,"Raw Adjusted MD","MW","Non-Coincident",0.88691308192224971]
["ED_MDU541_03399",null,null,null,null,"Coincident",0.85592380865579032]
["ED_MDU541_03400",null,null,"Raw Adjusted MD","MVA","Non-Coincident",0.93359271781289455]
["ED_MDU541_03401",null,null,null,null,"Coincident",0.90097243016398987]
["ED_MDU541_03402",null,null,"Date MD occurred",null,"Non-Coincident","2014-07-01"]
["ED_MDU541_03403",null,null,null,null,"Coincident","2014-07-10"]
["ED_MDU541_03404",null,null,"Half hour time period MD occurred",null,"Non-Coincident",1]
["ED_MDU541_03405",null,null,null,null,"Coincident","18:30:00"]
["ED_MDU541_03406",null,null,"Winter/Summer Peaking",null,"Non-Coincident","Winter"]
["ED_MDU541_03407",null,null,null,null,"Coincident","Winter"]
["ED_MDU541_03408",null,null,"Adjustments - Embedded generation","MW","Non-Coincident",0]
["ED_MDU541_03409",null,null,null,null,"Coincident",0]
["ED_MDU541_03410",null,null,"Weather Corrected MD 10% POE","MW","Non-Coincident",1.0022533512381389]
["ED_MDU541_03411",null,null,null,null,"Coincident",0.96723402001300063]
["ED_MDU541_03412",null,null,"Weather Corrected MD 10% POE","MVA","Non-Coincident",1.0550035276190937]
["ED_MDU541_03413",null,null,null,null,"Coincident",0.96723402001300063]
["ED_MDU541_03414",null,null,"Weather Corrected MD 50% POE","MW","Non-Coincident",0.90140449796653754]
["ED_MDU541_03415",null,null,null,null,"Coincident",0.86990888596072724]
["ED_MDU541_03416",null,null,"Weather Corrected MD 50% POE","MVA","Non-Coincident",0.94884683996477648]
["ED_MDU541_03417",null,null,null,null,"Coincident",0.86990888596072724]
["ED_MDU541_03418",null,"Emmaville 66/22kV","Substation Rating","MVA","Non-Coincident",2.75]
["ED_MDU541_03419",null,null,null,null,"Coincident",3]
["ED_MDU541_03420",null,null,"Raw Adjusted MD","MW","Non-Coincident",0.14940670768240094]
["ED_MDU541_03421",null,null,null,null,"Coincident",0.11008048530890778]
["ED_MDU541_03422",null,null,"Raw Adjusted MD","MVA","Non-Coincident",0.15727021861305363]
["ED_MDU541_03423",null,null,null,null,"Coincident",0.1158741950620082]
["ED_MDU541_03424",null,null,"Date MD occurred",null,"Non-Coincident","2014-12-18"]
["ED_MDU541_03425",null,null,null,null,"Coincident","2014-07-10"]
["ED_MDU541_03426",null,null,"Half hour time period MD occurred",null,"Non-Coincident","00:30:00"]
["ED_MDU541_03427",null,null,null,null,"Coincident","18:30:00"]
["ED_MDU541_03428",null,null,"Winter/Summer Peaking",null,"Non-Coincident","Summer"]
["ED_MDU541_03429",null,null,null,null,"Coincident","Winter"]
["ED_MDU541_03430",null,null,"Adjustments - Embedded generation","MW","Non-Coincident",0]
["ED_MDU541_03431",null,null,null,null,"Coincident",0]
["ED_MDU541_03432",null,null,"Weather Corrected MD 10% POE","MW","Non-Coincident",0.13006604818048634]
["ED_MDU541_03433",null,null,null,null,"Coincident",9.583059507847147E-2]
["ED_MDU541_03434",null,null,"Weather Corrected MD 10% POE","MVA","Non-Coincident",0.13691162966366982]
["ED_MDU541_03435",null,null,null,null,"Coincident",9.583059507847147E-2]
["ED_MDU541_03436",null,null,"Weather Corrected MD 50% POE","MW","Non-Coincident",0.11528998736432254]
["ED_MDU541_03437",null,null,null,null,"Coincident",8.4943828541490601E-2]
["ED_MDU541_03438",null,null,"Weather Corrected MD 50% POE","MVA","Non-Coincident",0.12135788143612898]
["ED_MDU541_03439",null,null,null,null,"Coincident",8.4943828541490601E-2]
["ED_MDU541_03440",null,"Euberta","Substation Rating","MVA","Non-Coincident",5.5]
["ED_MDU541_03441",null,null,null,null,"Coincident",6]
["ED_MDU541_03442",null,null,"Raw Adjusted MD","MW","Non-Coincident",1.4161666333675385]
["ED_MDU541_03443",null,null,null,null,"Coincident",0.76116667687892914]
["ED_MDU541_03444",null,null,"Raw Adjusted MD","MVA","Non-Coincident",1.5716716963396518]
["ED_MDU541_03445",null,null,null,null,"Coincident",0.77245923484106982]
["ED_MDU541_03446",null,null,"Date MD occurred",null,"Non-Coincident","2015-01-03"]
["ED_MDU541_03447",null,null,null,null,"Coincident","2014-07-10"]
["ED_MDU541_03448",null,null,"Half hour time period MD occurred",null,"Non-Coincident","20:30:00"]
["ED_MDU541_03449",null,null,null,null,"Coincident","18:30:00"]
["ED_MDU541_03450",null,null,"Winter/Summer Peaking",null,"Non-Coincident","Summer"]
["ED_MDU541_03451",null,null,null,null,"Coincident","Winter"]
["ED_MDU541_03452",null,null,"Adjustments - Embedded generation","MW","Non-Coincident",0]
["ED_MDU541_03453",null,null,null,null,"Coincident",0]
["ED_MDU541_03454",null,null,"Weather Corrected MD 10% POE","MW","Non-Coincident",1.382724922367693]
["ED_MDU541_03455",null,null,null,null,"Coincident",0.74319229771256756]
["ED_MDU541_03456",null,null,"Weather Corrected MD 10% POE","MVA","Non-Coincident",1.5345578501175829]
["ED_MDU541_03457",null,null,null,null,"Coincident",0.74319229771256756]
["ED_MDU541_03458",null,null,"Weather Corrected MD 50% POE","MW","Non-Coincident",1.140663431806217]
["ED_MDU541_03459",null,null,null,null,"Coincident",0.6130881588140904]
["ED_MDU541_03460",null,null,"Weather Corrected MD 50% POE","MVA","Non-Coincident",1.2659163043239225]
["ED_MDU541_03461",null,null,null,null,"Coincident",0.6130881588140904]
["ED_MDU541_03462",null,"Eucumbene","Substation Rating","MVA","Non-Coincident",0.72]
["ED_MDU541_03463",null,null,null,null,"Coincident",0.72]
["ED_MDU541_03464",null,null,"Raw Adjusted MD","MW","Non-Coincident",0.2070000022649765]
["ED_MDU541_03465",null,null,null,null,"Coincident",0.16099999845027924]
["ED_MDU541_03466",null,null,"Raw Adjusted MD","MVA","Non-Coincident",0.21444113675154813]
["ED_MDU541_03467",null,null,null,null,"Coincident",0.1679459424140908]
["ED_MDU541_03468",null,null,"Date MD occurred",null,"Non-Coincident","2014-04-19"]
["ED_MDU541_03469",null,null,null,null,"Coincident","2014-07-10"]
["ED_MDU541_03470",null,null,"Half hour time period MD occurred",null,"Non-Coincident","19:30:00"]
["ED_MDU541_03471",null,null,null,null,"Coincident","18:30:00"]
["ED_MDU541_03472",null,null,"Winter/Summer Peaking",null,"Non-Coincident","Winter"]
["ED_MDU541_03473",null,null,null,null,"Coincident","Winter"]
["ED_MDU541_03474",null,null,"Adjustments - Embedded generation","MW","Non-Coincident",0]
["ED_MDU541_03475",null,null,null,null,"Coincident",0]
["ED_MDU541_03476",null,null,"Weather Corrected MD 10% POE","MW","Non-Coincident",0.17374507081417948]
["ED_MDU541_03477",null,null,null,null,"Coincident",0.13513505229830353]
["ED_MDU541_03478",null,null,"Weather Corrected MD 10% POE","MVA","Non-Coincident",0.17999077334635752]
["ED_MDU541_03479",null,null,null,null,"Coincident",0.13513505229830353]
["ED_MDU541_03480",null,null,"Weather Corrected MD 50% POE","MW","Non-Coincident",0.15013271323407437]
["ED_MDU541_03481",null,null,null,null,"Coincident",0.11676988566928088]
["ED_MDU541_03482",null,null,"Weather Corrected MD 50% POE","MVA","Non-Coincident",0.15552961032482218]
["ED_MDU541_03483",null,null,null,null,"Coincident",0.11676988566928088]
["ED_MDU541_03484",null,"Eulomogo","Substation Rating","MVA","Non-Coincident",66]
["ED_MDU541_03485",null,null,null,null,"Coincident",72]
["ED_MDU541_03486",null,null,"Raw Adjusted MD","MW","Non-Coincident",17.200800000000001]
["ED_MDU541_03487",null,null,null,null,"Coincident",13.571999999999999]
["ED_MDU541_03488",null,null,"Raw Adjusted MD","MVA","Non-Coincident",18.037166908358973]
["ED_MDU541_03489",null,null,null,null,"Coincident",13.830982611513905]
["ED_MDU541_03490",null,null,"Date MD occurred",null,"Non-Coincident","2014-11-23"]
["ED_MDU541_03491",null,null,null,null,"Coincident","2014-07-10"]
["ED_MDU541_03492",null,null,"Half hour time period MD occurred",null,"Non-Coincident","17:00:00"]
["ED_MDU541_03493",null,null,null,null,"Coincident","18:30:00"]
["ED_MDU541_03494",null,null,"Winter/Summer Peaking",null,"Non-Coincident","Summer"]
["ED_MDU541_03495",null,null,null,null,"Coincident","Winter"]
["ED_MDU541_03496",null,null,"Adjustments - Embedded generation","MW","Non-Coincident",0]
["ED_MDU541_03497",null,null,null,null,"Coincident",0]
["ED_MDU541_03498",null,null,"Weather Corrected MD 10% POE","MW","Non-Coincident",17.66916005550387]
["ED_MDU541_03499",null,null,null,null,"Coincident",13.941551571630301]
["ED_MDU541_03500",null,null,"Weather Corrected MD 10% POE","MVA","Non-Coincident",18.528300372751996]
["ED_MDU541_03501",null,null,null,null,"Coincident",13.941551571630301]
["ED_MDU541_03502",null,null,"Weather Corrected MD 50% POE","MW","Non-Coincident",16.493436691594855]
["ED_MDU541_03503",null,null,null,null,"Coincident",13.013866958416198]
["ED_MDU541_03504",null,null,"Weather Corrected MD 50% POE","MVA","Non-Coincident",17.295408963463814]
["ED_MDU541_03505",null,null,null,null,"Coincident",13.013866958416198]
["ED_MDU541_03506",null,"Ewingsdale","Substation Rating","MVA","Non-Coincident",108]
["ED_MDU541_03507",null,null,null,null,"Coincident",108]
["ED_MDU541_03508",null,null,"Raw Adjusted MD","MW","Non-Coincident",14.507999999999999]
["ED_MDU541_03509",null,null,null,null,"Coincident",14.196]
["ED_MDU541_03510",null,null,"Raw Adjusted MD","MVA","Non-Coincident",14.660057980785751]
["ED_MDU541_03511",null,null,null,null,"Coincident",14.347861861615479]
["ED_MDU541_03512",null,null,"Date MD occurred",null,"Non-Coincident","2014-07-01"]
["ED_MDU541_03513",null,null,null,null,"Coincident","2014-07-10"]
["ED_MDU541_03514",null,null,"Half hour time period MD occurred",null,"Non-Coincident","18:30:00"]
["ED_MDU541_03515",null,null,null,null,"Coincident","18:30:00"]
["ED_MDU541_03516",null,null,"Winter/Summer Peaking",null,"Non-Coincident","Winter"]
["ED_MDU541_03517",null,null,null,null,"Coincident","Winter"]
["ED_MDU541_03518",null,null,"Adjustments - Embedded generation","MW","Non-Coincident",0]
["ED_MDU541_03519",null,null,null,null,"Coincident",0]
["ED_MDU541_03520",null,null,"Weather Corrected MD 10% POE","MW","Non-Coincident",15.292537330340185]
["ED_MDU541_03521",null,null,null,null,"Coincident",14.963665559795235]
["ED_MDU541_03522",null,null,"Weather Corrected MD 10% POE","MVA","Non-Coincident",15.452818027027687]
["ED_MDU541_03523",null,null,null,null,"Coincident",14.963665559795235]
["ED_MDU541_03524",null,null,"Weather Corrected MD 50% POE","MW","Non-Coincident",14.622822965207922]
["ED_MDU541_03525",null,null,null,null,"Coincident",14.308353654128181]
["ED_MDU541_03526",null,null,"Weather Corrected MD 50% POE","MVA","Non-Coincident",14.776084402585719]
["ED_MDU541_03527",null,null,null,null,"Coincident",14.308353654128181]
["ED_MDU541_03528",null,"Failford","Substation Rating","MVA","Non-Coincident",38.4]
["ED_MDU541_03529",null,null,null,null,"Coincident",38.4]
["ED_MDU541_03530",null,null,"Raw Adjusted MD","MW","Non-Coincident",3.5840000510215759]
["ED_MDU541_03531",null,null,null,null,"Coincident",2.9526667594909668]
["ED_MDU541_03532",null,null,"Raw Adjusted MD","MVA","Non-Coincident",3.6513367899748581]
["ED_MDU541_03533",null,null,null,null,"Coincident",3.0285421849581091]
["ED_MDU541_03534",null,null,"Date MD occurred",null,"Non-Coincident","2014-08-11"]
["ED_MDU541_03535",null,null,null,null,"Coincident","2014-07-10"]
["ED_MDU541_03536",null,null,"Half hour time period MD occurred",null,"Non-Coincident","18:30:00"]
["ED_MDU541_03537",null,null,null,null,"Coincident","18:30:00"]
["ED_MDU541_03538",null,null,"Winter/Summer Peaking",null,"Non-Coincident","Winter"]
["ED_MDU541_03539",null,null,null,null,"Coincident","Winter"]
["ED_MDU541_03540",null,null,"Adjustments - Embedded generation","MW","Non-Coincident",0]
["ED_MDU541_03541",null,null,null,null,"Coincident",0]
["ED_MDU541_03542",null,null,"Weather Corrected MD 10% POE","MW","Non-Coincident",3.8507646618800031]
["ED_MDU541_03543",null,null,null,null,"Coincident",3.1724399145905897]
["ED_MDU541_03544",null,null,"Weather Corrected MD 10% POE","MVA","Non-Coincident",3.9231134149816187]
["ED_MDU541_03545",null,null,null,null,"Coincident",3.1724399145905897]
["ED_MDU541_03546",null,null,"Weather Corrected MD 50% POE","MW","Non-Coincident",3.4803718250537532]
["ED_MDU541_03547",null,null,null,null,"Coincident",2.8672929833178906]
["ED_MDU541_03548",null,null,"Weather Corrected MD 50% POE","MVA","Non-Coincident",3.5457615811105931]
["ED_MDU541_03549",null,null,null,null,"Coincident",2.8672929833178906]
["ED_MDU541_03550",null,"Finley Town","Substation Rating","MVA","Non-Coincident",66]
["ED_MDU541_03551",null,null,null,null,"Coincident",72]
["ED_MDU541_03552",null,null,"Raw Adjusted MD","MW","Non-Coincident",12.7188]
["ED_MDU541_03553",null,null,null,null,"Coincident",10.8324]
["ED_MDU541_03554",null,null,"Raw Adjusted MD","MVA","Non-Coincident",13.122332341470397]
["ED_MDU541_03555",null,null,null,null,"Coincident",11.050610336085514]
["ED_MDU541_03556",null,null,"Date MD occurred",null,"Non-Coincident","2015-02-11"]
["ED_MDU541_03557",null,null,null,null,"Coincident","2014-07-10"]
["ED_MDU541_03558",null,null,"Half hour time period MD occurred",null,"Non-Coincident","17:30:00"]
["ED_MDU541_03559",null,null,null,null,"Coincident","18:30:00"]
["ED_MDU541_03560",null,null,"Winter/Summer Peaking",null,"Non-Coincident","Summer"]
["ED_MDU541_03561",null,null,null,null,"Coincident","Winter"]
["ED_MDU541_03562",null,null,"Adjustments - Embedded generation","MW","Non-Coincident",0.23200000000000001]
["ED_MDU541_03563",null,null,null,null,"Coincident",0]
["ED_MDU541_03564",null,null,"Weather Corrected MD 10% POE","MW","Non-Coincident",13.697033598496132]
["ED_MDU541_03565",null,null,null,null,"Coincident",11.665546022608225]
["ED_MDU541_03566",null,null,"Weather Corrected MD 10% POE","MVA","Non-Coincident",14.131602586073566]
["ED_MDU541_03567",null,null,null,null,"Coincident",11.665546022608225]
["ED_MDU541_03568",null,null,"Weather Corrected MD 50% POE","MW","Non-Coincident",12.508325802263634]
["ED_MDU541_03569",null,null,null,null,"Coincident",10.653142467877519]
["ED_MDU541_03570",null,null,"Weather Corrected MD 50% POE","MVA","Non-Coincident",12.905180379650027]
["ED_MDU541_03571",null,null,null,null,"Coincident",10.653142467877519]
["ED_MDU541_03572",null,"Forbes Town","Substation Rating","MVA","Non-Coincident",66]
["ED_MDU541_03573",null,null,null,null,"Coincident",72]
["ED_MDU541_03574",null,null,"Raw Adjusted MD","MW","Non-Coincident",12.301200000000001]
["ED_MDU541_03575",null,null,null,null,"Coincident",9.1620000000000008]
["ED_MDU541_03576",null,null,"Raw Adjusted MD","MVA","Non-Coincident",12.375843942131787]
["ED_MDU541_03577",null,null,null,null,"Coincident",9.2336919246853792]
["ED_MDU541_03578",null,null,"Date MD occurred",null,"Non-Coincident","2015-02-09"]
["ED_MDU541_03579",null,null,null,null,"Coincident","2014-07-10"]
["ED_MDU541_03580",null,null,"Half hour time period MD occurred",null,"Non-Coincident","17:00:00"]
["ED_MDU541_03581",null,null,null,null,"Coincident","18:30:00"]
["ED_MDU541_03582",null,null,"Winter/Summer Peaking",null,"Non-Coincident","Summer"]
["ED_MDU541_03583",null,null,null,null,"Coincident","Winter"]
["ED_MDU541_03584",null,null,"Adjustments - Embedded generation","MW","Non-Coincident",0]
["ED_MDU541_03585",null,null,null,null,"Coincident",0]
["ED_MDU541_03586",null,null,"Weather Corrected MD 10% POE","MW","Non-Coincident",13.80534512125169]
["ED_MDU541_03587",null,null,null,null,"Coincident",10.28229538588983]
["ED_MDU541_03588",null,null,"Weather Corrected MD 10% POE","MVA","Non-Coincident",13.889116247836093]
["ED_MDU541_03589",null,null,null,null,"Coincident",10.28229538588983]
["ED_MDU541_03590",null,null,"Weather Corrected MD 50% POE","MW","Non-Coincident",13.113664598052393]
["ED_MDU541_03591",null,null,null,null,"Coincident",9.7671280076216966]
["ED_MDU541_03592",null,null,"Weather Corrected MD 50% POE","MVA","Non-Coincident",13.193238592572659]
["ED_MDU541_03593",null,null,null,null,"Coincident",9.7671280076216966]
["ED_MDU541_03594",null,"Forest Hill","Substation Rating","MVA","Non-Coincident",25.08]
["ED_MDU541_03595",null,null,null,null,"Coincident",25.08]
["ED_MDU541_03596",null,null,"Raw Adjusted MD","MW","Non-Coincident",5.75]
["ED_MDU541_03597",null,null,null,null,"Coincident",3.79]
["ED_MDU541_03598",null,null,"Raw Adjusted MD","MVA","Non-Coincident",6.040281450396165]
["ED_MDU541_03599",null,null,null,null,"Coincident",3.9146519640959143]
["ED_MDU541_03600",null,null,"Date MD occurred",null,"Non-Coincident","2014-08-06"]
["ED_MDU541_03601",null,null,null,null,"Coincident","2014-07-10"]
["ED_MDU541_03602",null,null,"Half hour time period MD occurred",null,"Non-Coincident","09:00:00"]
["ED_MDU541_03603",null,null,null,null,"Coincident","18:30:00"]
["ED_MDU541_03604",null,null,"Winter/Summer Peaking",null,"Non-Coincident","Winter"]
["ED_MDU541_03605",null,null,null,null,"Coincident","Winter"]
["ED_MDU541_03606",null,null,"Adjustments - Embedded generation","MW","Non-Coincident",0]
["ED_MDU541_03607",null,null,null,null,"Coincident",0]
["ED_MDU541_03608",null,null,"Weather Corrected MD 10% POE","MW","Non-Coincident",5.4368036719742312]
["ED_MDU541_03609",null,null,null,null,"Coincident",3.5835627681360585]
["ED_MDU541_03610",null,null,"Weather Corrected MD 10% POE","MVA","Non-Coincident",5.7112738033516015]
["ED_MDU541_03611",null,null,null,null,"Coincident",3.5835627681360585]
["ED_MDU541_03612",null,null,"Weather Corrected MD 50% POE","MW","Non-Coincident",4.8349784639470519]
["ED_MDU541_03613",null,null,null,null,"Coincident",3.1868814571059696]
["ED_MDU541_03614",null,null,"Weather Corrected MD 50% POE","MVA","Non-Coincident",5.0790662137120561]
["ED_MDU541_03615",null,null,null,null,"Coincident",3.1868814571059696]
["ED_MDU541_03616",null,"Forster","Substation Rating","MVA","Non-Coincident",60]
["ED_MDU541_03617",null,null,null,null,"Coincident",60]
["ED_MDU541_03618",null,null,"Raw Adjusted MD","MW","Non-Coincident",14.814]
["ED_MDU541_03619",null,null,null,null,"Coincident",14.814]
["ED_MDU541_03620",null,null,"Raw Adjusted MD","MVA","Non-Coincident",14.816526345942224]
["ED_MDU541_03621",null,null,null,null,"Coincident",14.816526345942224]
["ED_MDU541_03622",null,null,"Date MD occurred",null,"Non-Coincident","2014-07-10"]
["ED_MDU541_03623",null,null,null,null,"Coincident","2014-07-10"]
["ED_MDU541_03624",null,null,"Half hour time period MD occurred",null,"Non-Coincident","18:30:00"]
["ED_MDU541_03625",null,null,null,null,"Coincident","18:30:00"]
["ED_MDU541_03626",null,null,"Winter/Summer Peaking",null,"Non-Coincident","Winter"]
["ED_MDU541_03627",null,null,null,null,"Coincident","Winter"]
["ED_MDU541_03628",null,null,"Adjustments - Embedded generation","MW","Non-Coincident",0]
["ED_MDU541_03629",null,null,null,null,"Coincident",0]
["ED_MDU541_03630",null,null,"Weather Corrected MD 10% POE","MW","Non-Coincident",15.651321098661302]
["ED_MDU541_03631",null,null,null,null,"Coincident",15.651321098661302]
["ED_MDU541_03632",null,null,"Weather Corrected MD 10% POE","MVA","Non-Coincident",15.653990239443539]
["ED_MDU541_03633",null,null,null,null,"Coincident",15.651321098661302]
["ED_MDU541_03634",null,null,"Weather Corrected MD 50% POE","MW","Non-Coincident",14.777493042860756]
["ED_MDU541_03635",null,null,null,null,"Coincident",14.777493042860756]
["ED_MDU541_03636",null,null,"Weather Corrected MD 50% POE","MVA","Non-Coincident",14.780013162989356]
["ED_MDU541_03637",null,null,null,null,"Coincident",14.777493042860756]
["ED_MDU541_03638",null,"Galloway St","Substation Rating","MVA","Non-Coincident",34.199999999999996]
["ED_MDU541_03639",null,null,null,null,"Coincident",34.199999999999996]
["ED_MDU541_03640",null,null,"Raw Adjusted MD","MW","Non-Coincident",10.983333587646484]
["ED_MDU541_03641",null,null,null,null,"Coincident",10.316666603088379]
["ED_MDU541_03642",null,null,"Raw Adjusted MD","MVA","Non-Coincident",11.012128196550687]
["ED_MDU541_03643",null,null,null,null,"Coincident",10.424903480695635]
["ED_MDU541_03644",null,null,"Date MD occurred",null,"Non-Coincident","2014-07-19"]
["ED_MDU541_03645",null,null,null,null,"Coincident","2014-07-10"]
["ED_MDU541_03646",null,null,"Half hour time period MD occurred",null,"Non-Coincident","02:30:00"]
["ED_MDU541_03647",null,null,null,null,"Coincident","18:30:00"]
["ED_MDU541_03648",null,null,"Winter/Summer Peaking",null,"Non-Coincident","Winter"]
["ED_MDU541_03649",null,null,null,null,"Coincident","Winter"]
["ED_MDU541_03650",null,null,"Adjustments - Embedded generation","MW","Non-Coincident",0]
["ED_MDU541_03651",null,null,null,null,"Coincident",0]
["ED_MDU541_03652",null,null,"Weather Corrected MD 10% POE","MW","Non-Coincident",11.589865607954103]
["ED_MDU541_03653",null,null,null,null,"Coincident",10.886383309558019]
["ED_MDU541_03654",null,null,"Weather Corrected MD 10% POE","MVA","Non-Coincident",11.620250339945553]
["ED_MDU541_03655",null,null,null,null,"Coincident",10.886383309558019]
["ED_MDU541_03656",null,null,"Weather Corrected MD 50% POE","MW","Non-Coincident",11.087272312017291]
["ED_MDU541_03657",null,null,null,null,"Coincident",10.414296449066104]
["ED_MDU541_03658",null,null,"Weather Corrected MD 50% POE","MVA","Non-Coincident",11.116339413320491]
["ED_MDU541_03659",null,null,null,null,"Coincident",10.414296449066104]
["ED_MDU541_03660",null,"Ganmurra","Substation Rating","MVA","Non-Coincident",2.75]
["ED_MDU541_03661",null,null,null,null,"Coincident",3]
["ED_MDU541_03662",null,null,"Raw Adjusted MD","MW","Non-Coincident",0.54466664791107178]
["ED_MDU541_03663",null,null,null,null,"Coincident",0.22366666793823242]
["ED_MDU541_03664",null,null,"Raw Adjusted MD","MVA","Non-Coincident",0.56749349641247626]
["ED_MDU541_03665",null,null,null,null,"Coincident",0.22390523915460112]
["ED_MDU541_03666",null,null,"Date MD occurred",null,"Non-Coincident","2015-02-08"]
["ED_MDU541_03667",null,null,null,null,"Coincident","2014-07-10"]
["ED_MDU541_03668",null,null,"Half hour time period MD occurred",null,"Non-Coincident","19:00:00"]
["ED_MDU541_03669",null,null,null,null,"Coincident","18:30:00"]
["ED_MDU541_03670",null,null,"Winter/Summer Peaking",null,"Non-Coincident","Summer"]
["ED_MDU541_03671",null,null,null,null,"Coincident","Winter"]
["ED_MDU541_03672",null,null,"Adjustments - Embedded generation","MW","Non-Coincident",0]
["ED_MDU541_03673",null,null,null,null,"Coincident",0]
["ED_MDU541_03674",null,null,"Weather Corrected MD 10% POE","MW","Non-Coincident",0.48396040650939404]
["ED_MDU541_03675",null,null,null,null,"Coincident",0.19873772692551941]
["ED_MDU541_03676",null,null,"Weather Corrected MD 10% POE","MVA","Non-Coincident",0.50424307100232213]
["ED_MDU541_03677",null,null,null,null,"Coincident",0.19873772692551941]
["ED_MDU541_03678",null,null,"Weather Corrected MD 50% POE","MW","Non-Coincident",0.42221230887183187]
["ED_MDU541_03679",null,null,null,null,"Coincident",0.17338094897135853]
["ED_MDU541_03680",null,null,"Weather Corrected MD 50% POE","MVA","Non-Coincident",0.43990712541146887]
["ED_MDU541_03681",null,null,null,null,"Coincident",0.17338094897135853]
["ED_MDU541_03682",null,"Geurie","Substation Rating","MVA","Non-Coincident",7.15]
["ED_MDU541_03683",null,null,null,null,"Coincident",7.8]
["ED_MDU541_03684",null,null,"Raw Adjusted MD","MW","Non-Coincident",1.2015]
["ED_MDU541_03685",null,null,null,null,"Coincident",0.83429999999999993]
["ED_MDU541_03686",null,null,"Raw Adjusted MD","MVA","Non-Coincident",1.2589293308204397]
["ED_MDU541_03687",null,null,null,null,"Coincident",0.8489252617280274]
["ED_MDU541_03688",null,null,"Date MD occurred",null,"Non-Coincident","2014-11-23"]
["ED_MDU541_03689",null,null,null,null,"Coincident","2014-07-10"]
["ED_MDU541_03690",null,null,"Half hour time period MD occurred",null,"Non-Coincident","20:00:00"]
["ED_MDU541_03691",null,null,null,null,"Coincident","18:30:00"]
["ED_MDU541_03692",null,null,"Winter/Summer Peaking",null,"Non-Coincident","Summer"]
["ED_MDU541_03693",null,null,null,null,"Coincident","Winter"]
["ED_MDU541_03694",null,null,"Adjustments - Embedded generation","MW","Non-Coincident",0]
["ED_MDU541_03695",null,null,null,null,"Coincident",0]
["ED_MDU541_03696",null,null,"Weather Corrected MD 10% POE","MW","Non-Coincident",1.2636100037729312]
["ED_MDU541_03697",null,null,null,null,"Coincident",0.87742807003558587]
["ED_MDU541_03698",null,null,"Weather Corrected MD 10% POE","MVA","Non-Coincident",1.3240080703020136]
["ED_MDU541_03699",null,null,null,null,"Coincident",0.87742807003558587]
["ED_MDU541_03700",null,null,"Weather Corrected MD 50% POE","MW","Non-Coincident",1.1406915519268355]
["ED_MDU541_03701",null,null,null,null,"Coincident",0.79207570684357786]
["ED_MDU541_03702",null,null,"Weather Corrected MD 50% POE","MVA","Non-Coincident",1.1952143588346065]
["ED_MDU541_03703",null,null,null,null,"Coincident",0.79207570684357786]
["ED_MDU541_03704",null,"Gilgandra","Substation Rating","MVA","Non-Coincident",26.400000000000002]
["ED_MDU541_03705",null,null,null,null,"Coincident",28.799999999999997]
["ED_MDU541_03706",null,null,"Raw Adjusted MD","MW","Non-Coincident",6.7845000000000004]
["ED_MDU541_03707",null,null,null,null,"Coincident",4.6875]
["ED_MDU541_03708",null,null,"Raw Adjusted MD","MVA","Non-Coincident",7.0180667209709542]
["ED_MDU541_03709",null,null,null,null,"Coincident",4.7594163836020904]
["ED_MDU541_03710",null,null,"Date MD occurred",null,"Non-Coincident","2014-11-23"]
["ED_MDU541_03711",null,null,null,null,"Coincident","2014-07-10"]
["ED_MDU541_03712",null,null,"Half hour time period MD occurred",null,"Non-Coincident","18:00:00"]
["ED_MDU541_03713",null,null,null,null,"Coincident","18:30:00"]
["ED_MDU541_03714",null,null,"Winter/Summer Peaking",null,"Non-Coincident","Summer"]
["ED_MDU541_03715",null,null,null,null,"Coincident","Winter"]
["ED_MDU541_03716",null,null,"Adjustments - Embedded generation","MW","Non-Coincident",0]
["ED_MDU541_03717",null,null,null,null,"Coincident",0]
["ED_MDU541_03718",null,null,"Weather Corrected MD 10% POE","MW","Non-Coincident",6.6452329061473474]
["ED_MDU541_03719",null,null,null,null,"Coincident",4.5912785389587576]
["ED_MDU541_03720",null,null,"Weather Corrected MD 10% POE","MVA","Non-Coincident",6.8740051458079154]
["ED_MDU541_03721",null,null,null,null,"Coincident",4.5912785389587576]
["ED_MDU541_03722",null,null,"Weather Corrected MD 50% POE","MW","Non-Coincident",6.1949403545636095]
["ED_MDU541_03723",null,null,null,null,"Coincident",4.2801655113887414]
["ED_MDU541_03724",null,null,"Weather Corrected MD 50% POE","MVA","Non-Coincident",6.408210588954657]
["ED_MDU541_03725",null,null,null,null,"Coincident",4.2801655113887414]
["ED_MDU541_03726",null,"Ginkgo","Substation Rating","MVA","Non-Coincident",19.2]
["ED_MDU541_03727",null,null,null,null,"Coincident",19.2]
["ED_MDU541_03728",null,null,"Raw Adjusted MD","MW","Non-Coincident",5.8656000000000006]
["ED_MDU541_03729",null,null,null,null,"Coincident",1.4136]
["ED_MDU541_03730",null,null,"Raw Adjusted MD","MVA","Non-Coincident",6.3204796273700632]
["ED_MDU541_03731",null,null,null,null,"Coincident",1.4450830287564793]
["ED_MDU541_03732",null,null,"Date MD occurred",null,"Non-Coincident","2014-07-08"]
["ED_MDU541_03733",null,null,null,null,"Coincident","2014-07-10"]
["ED_MDU541_03734",null,null,"Half hour time period MD occurred",null,"Non-Coincident","21:30:00"]
["ED_MDU541_03735",null,null,null,null,"Coincident","18:30:00"]
["ED_MDU541_03736",null,null,"Winter/Summer Peaking",null,"Non-Coincident","Winter"]
["ED_MDU541_03737",null,null,null,null,"Coincident","Winter"]
["ED_MDU541_03738",null,null,"Adjustments - Embedded generation","MW","Non-Coincident",0]
["ED_MDU541_03739",null,null,null,null,"Coincident",0]
["ED_MDU541_03740",null,null,"Weather Corrected MD 10% POE","MW","Non-Coincident",7.3641591118752681]
["ED_MDU541_03741",null,null,null,null,"Coincident",1.7747502933283685]
["ED_MDU541_03742",null,null,"Weather Corrected MD 10% POE","MVA","Non-Coincident",7.9352525980836131]
["ED_MDU541_03743",null,null,null,null,"Coincident",1.7747502933283685]
["ED_MDU541_03744",null,null,"Weather Corrected MD 50% POE","MW","Non-Coincident",5.5042679873278173]
["ED_MDU541_03745",null,null,null,null,"Coincident",1.3265195763240933]
["ED_MDU541_03746",null,null,"Weather Corrected MD 50% POE","MVA","Non-Coincident",5.9311261725127329]
["ED_MDU541_03747",null,null,null,null,"Coincident",1.3265195763240933]
["ED_MDU541_03748",null,"Girilambone","Substation Rating","MVA","Non-Coincident",13.750000000000002]
["ED_MDU541_03749",null,null,null,null,"Coincident",15]
["ED_MDU541_03750",null,null,"Raw Adjusted MD","MW","Non-Coincident",1.4497460000000002]
["ED_MDU541_03751",null,null,null,null,"Coincident",0.82884999999999986]
["ED_MDU541_03752",null,null,"Raw Adjusted MD","MVA","Non-Coincident",1.6998763109755957]
["ED_MDU541_03753",null,null,null,null,"Coincident",0.97384548057481879]
["ED_MDU541_03754",null,null,"Date MD occurred",null,"Non-Coincident","2015-03-28"]
["ED_MDU541_03755",null,null,null,null,"Coincident","2014-07-10"]
["ED_MDU541_03756",null,null,"Half hour time period MD occurred",null,"Non-Coincident","22:00:00"]
["ED_MDU541_03757",null,null,null,null,"Coincident","18:30:00"]
["ED_MDU541_03758",null,null,"Winter/Summer Peaking",null,"Non-Coincident","Summer"]
["ED_MDU541_03759",null,null,null,null,"Coincident","Winter"]
["ED_MDU541_03760",null,null,"Adjustments - Embedded generation","MW","Non-Coincident",0]
["ED_MDU541_03761",null,null,null,null,"Coincident",0]
["ED_MDU541_03762",null,null,"Weather Corrected MD 10% POE","MW","Non-Coincident",1.3772063692255201]
["ED_MDU541_03763",null,null,null,null,"Coincident",0.78737758140568892]
["ED_MDU541_03764",null,null,"Weather Corrected MD 10% POE","MVA","Non-Coincident",1.6148211358204616]
["ED_MDU541_03765",null,null,null,null,"Coincident",0.78737758140568892]
["ED_MDU541_03766",null,null,"Weather Corrected MD 50% POE","MW","Non-Coincident",1.2134423876162115]
["ED_MDU541_03767",null,null,null,null,"Coincident",0.69375030038068497]
["ED_MDU541_03768",null,null,"Weather Corrected MD 50% POE","MVA","Non-Coincident",1.4228023180905236]
["ED_MDU541_03769",null,null,null,null,"Coincident",0.69375030038068497]
["ED_MDU541_03770",null,"Glen Innes","Substation Rating","MVA","Non-Coincident",48]
["ED_MDU541_03771",null,null,null,null,"Coincident",48]
["ED_MDU541_03772",null,null,"Raw Adjusted MD","MW","Non-Coincident",7.62]
["ED_MDU541_03773",null,null,null,null,"Coincident",7.62]
["ED_MDU541_03774",null,null,"Raw Adjusted MD","MVA","Non-Coincident",7.7623965371526857]
["ED_MDU541_03775",null,null,null,null,"Coincident",7.7623965371526857]
["ED_MDU541_03776",null,null,"Date MD occurred",null,"Non-Coincident","2014-07-10"]
["ED_MDU541_03777",null,null,null,null,"Coincident","2014-07-10"]
["ED_MDU541_03778",null,null,"Half hour time period MD occurred",null,"Non-Coincident","18:30:00"]
["ED_MDU541_03779",null,null,null,null,"Coincident","18:30:00"]
["ED_MDU541_03780",null,null,"Winter/Summer Peaking",null,"Non-Coincident","Winter"]
["ED_MDU541_03781",null,null,null,null,"Coincident","Winter"]
["ED_MDU541_03782",null,null,"Adjustments - Embedded generation","MW","Non-Coincident",0]
["ED_MDU541_03783",null,null,null,null,"Coincident",0]
["ED_MDU541_03784",null,null,"Weather Corrected MD 10% POE","MW","Non-Coincident",7.6377266360902549]
["ED_MDU541_03785",null,null,null,null,"Coincident",7.6377266360902549]
["ED_MDU541_03786",null,null,"Weather Corrected MD 10% POE","MVA","Non-Coincident",7.7804544346070648]
["ED_MDU541_03787",null,null,null,null,"Coincident",7.6377266360902549]
["ED_MDU541_03788",null,null,"Weather Corrected MD 50% POE","MW","Non-Coincident",7.3637655325059868]
["ED_MDU541_03789",null,null,null,null,"Coincident",7.3637655325059868]
["ED_MDU541_03790",null,null,"Weather Corrected MD 50% POE","MVA","Non-Coincident",7.5013737624578454]
["ED_MDU541_03791",null,null,null,null,"Coincident",7.3637655325059868]
["ED_MDU541_03792",null,"Gloucester","Substation Rating","MVA","Non-Coincident",28.6]
["ED_MDU541_03793",null,null,null,null,"Coincident",31.2]
["ED_MDU541_03794",null,null,"Raw Adjusted MD","MW","Non-Coincident",7.9]
["ED_MDU541_03795",null,null,null,null,"Coincident",6.07]
["ED_MDU541_03796",null,null,"Raw Adjusted MD","MVA","Non-Coincident",7.9010695478523667]
["ED_MDU541_03797",null,null,null,null,"Coincident",6.2293579123373535]
["ED_MDU541_03798",null,null,"Date MD occurred",null,"Non-Coincident","2014-11-23"]
["ED_MDU541_03799",null,null,null,null,"Coincident","2014-07-10"]
["ED_MDU541_03800",null,null,"Half hour time period MD occurred",null,"Non-Coincident","14:00:00"]
["ED_MDU541_03801",null,null,null,null,"Coincident","18:30:00"]
["ED_MDU541_03802",null,null,"Winter/Summer Peaking",null,"Non-Coincident","Summer"]
["ED_MDU541_03803",null,null,null,null,"Coincident","Winter"]
["ED_MDU541_03804",null,null,"Adjustments - Embedded generation","MW","Non-Coincident",0]
["ED_MDU541_03805",null,null,null,null,"Coincident",0]
["ED_MDU541_03806",null,null,"Weather Corrected MD 10% POE","MW","Non-Coincident",8.195497111969777]
["ED_MDU541_03807",null,null,null,null,"Coincident",6.2970465151463983]
["ED_MDU541_03808",null,null,"Weather Corrected MD 10% POE","MVA","Non-Coincident",8.1966066659362564]
["ED_MDU541_03809",null,null,null,null,"Coincident",6.2970465151463983]
["ED_MDU541_03810",null,null,"Weather Corrected MD 50% POE","MW","Non-Coincident",7.5266576779721479]
["ED_MDU541_03811",null,null,null,null,"Coincident",5.7831407728216373]
["ED_MDU541_03812",null,null,"Weather Corrected MD 50% POE","MVA","Non-Coincident",7.5276766805740438]
["ED_MDU541_03813",null,null,null,null,"Coincident",5.7831407728216373]
["ED_MDU541_03814",null,"Goddard Lane","Substation Rating","MVA","Non-Coincident",66]
["ED_MDU541_03815",null,null,null,null,"Coincident",72]
["ED_MDU541_03816",null,null,"Raw Adjusted MD","MW","Non-Coincident",10.215]
["ED_MDU541_03817",null,null,null,null,"Coincident",7.5810000000000004]
["ED_MDU541_03818",null,null,"Raw Adjusted MD","MVA","Non-Coincident",10.476917915112249]
["ED_MDU541_03819",null,null,null,null,"Coincident",7.8144978725443393]
["ED_MDU541_03820",null,null,"Date MD occurred",null,"Non-Coincident","2015-02-25"]
["ED_MDU541_03821",null,null,null,null,"Coincident","2014-07-10"]
["ED_MDU541_03822",null,null,"Half hour time period MD occurred",null,"Non-Coincident","14:30:00"]
["ED_MDU541_03823",null,null,null,null,"Coincident","18:30:00"]
["ED_MDU541_03824",null,null,"Winter/Summer Peaking",null,"Non-Coincident","Summer"]
["ED_MDU541_03825",null,null,null,null,"Coincident","Winter"]
["ED_MDU541_03826",null,null,"Adjustments - Embedded generation","MW","Non-Coincident",0]
["ED_MDU541_03827",null,null,null,null,"Coincident",0]
["ED_MDU541_03828",null,null,"Weather Corrected MD 10% POE","MW","Non-Coincident",10.965116633067101]
["ED_MDU541_03829",null,null,null,null,"Coincident",8.1376944880354074]
["ED_MDU541_03830",null,null,"Weather Corrected MD 10% POE","MVA","Non-Coincident",11.246267928955069]
["ED_MDU541_03831",null,null,null,null,"Coincident",8.1376944880354074]
["ED_MDU541_03832",null,null,"Weather Corrected MD 50% POE","MW","Non-Coincident",9.8786875598521764]
["ED_MDU541_03833",null,null,null,null,"Coincident",7.331407772025389]
["ED_MDU541_03834",null,null,"Weather Corrected MD 50% POE","MVA","Non-Coincident",10.131982249007518]
["ED_MDU541_03835",null,null,null,null,"Coincident",7.331407772025389]
["ED_MDU541_03836",null,"Googong Dam","Substation Rating","MVA","Non-Coincident",24.750000000000004]
["ED_MDU541_03837",null,null,null,null,"Coincident",27]
["ED_MDU541_03838",null,null,"Raw Adjusted MD","MW","Non-Coincident",3.5183334350585938]
["ED_MDU541_03839",null,null,null,null,"Coincident",2.5166666507720947]
["ED_MDU541_03840",null,null,"Raw Adjusted MD","MVA","Non-Coincident",3.5243200677026865]
["ED_MDU541_03841",null,null,null,null,"Coincident",2.5274910771990395]
["ED_MDU541_03842",null,null,"Date MD occurred",null,"Non-Coincident","2014-10-15"]
["ED_MDU541_03843",null,null,null,null,"Coincident","2014-07-10"]
["ED_MDU541_03844",null,null,"Half hour time period MD occurred",null,"Non-Coincident","07:30:00"]
["ED_MDU541_03845",null,null,null,null,"Coincident","18:30:00"]
["ED_MDU541_03846",null,null,"Winter/Summer Peaking",null,"Non-Coincident","Summer"]
["ED_MDU541_03847",null,null,null,null,"Coincident","Winter"]
["ED_MDU541_03848",null,null,"Adjustments - Embedded generation","MW","Non-Coincident",0]
["ED_MDU541_03849",null,null,null,null,"Coincident",0]
["ED_MDU541_03850",null,null,"Weather Corrected MD 10% POE","MW","Non-Coincident",2.4421752938974923]
["ED_MDU541_03851",null,null,null,null,"Coincident",1.7468898928816283]
["ED_MDU541_03852",null,null,"Weather Corrected MD 10% POE","MVA","Non-Coincident",2.446330785867457]
["ED_MDU541_03853",null,null,null,null,"Coincident",1.7468898928816283]
["ED_MDU541_03854",null,null,"Weather Corrected MD 50% POE","MW","Non-Coincident",2.106155423111427]
["ED_MDU541_03855",null,null,null,null,"Coincident",1.5065346171770799]
["ED_MDU541_03856",null,null,"Weather Corrected MD 50% POE","MVA","Non-Coincident",2.1097391592871659]
["ED_MDU541_03857",null,null,null,null,"Coincident",1.5065346171770799]
["ED_MDU541_03858",null,"Goondiwindi 22kV","Substation Rating","MVA","Non-Coincident",60]
["ED_MDU541_03859",null,null,null,null,"Coincident",60]
["ED_MDU541_03860",null,null,"Raw Adjusted MD","MW","Non-Coincident",16.14]
["ED_MDU541_03861",null,null,null,null,"Coincident",16.02]
["ED_MDU541_03862",null,null,"Raw Adjusted MD","MVA","Non-Coincident",16.373274443433726]
["ED_MDU541_03863",null,null,null,null,"Coincident",16.233638686382051]
["ED_MDU541_03864",null,null,"Date MD occurred",null,"Non-Coincident","2014-07-10"]
["ED_MDU541_03865",null,null,null,null,"Coincident","2014-07-10"]
["ED_MDU541_03866",null,null,"Half hour time period MD occurred",null,"Non-Coincident","19:00:00"]
["ED_MDU541_03867",null,null,null,null,"Coincident","18:30:00"]
["ED_MDU541_03868",null,null,"Winter/Summer Peaking",null,"Non-Coincident","Winter"]
["ED_MDU541_03869",null,null,null,null,"Coincident","Winter"]
["ED_MDU541_03870",null,null,"Adjustments - Embedded generation","MW","Non-Coincident",0]
["ED_MDU541_03871",null,null,null,null,"Coincident",0]
["ED_MDU541_03872",null,null,"Weather Corrected MD 10% POE","MW","Non-Coincident",17.164764015862335]
["ED_MDU541_03873",null,null,null,null,"Coincident",17.037144952547372]
["ED_MDU541_03874",null,null,"Weather Corrected MD 10% POE","MVA","Non-Coincident",17.412849565581759]
["ED_MDU541_03875",null,null,null,null,"Coincident",17.037144952547372]
["ED_MDU541_03876",null,null,"Weather Corrected MD 50% POE","MW","Non-Coincident",15.288693032716619]
["ED_MDU541_03877",null,null,null,null,"Coincident",15.175022452547722]
["ED_MDU541_03878",null,null,"Weather Corrected MD 50% POE","MVA","Non-Coincident",15.509663377080686]
["ED_MDU541_03879",null,null,null,null,"Coincident",15.175022452547722]
["ED_MDU541_03880",null,"Goondiwindi 33kV","Substation Rating","MVA","Non-Coincident",5.5]
["ED_MDU541_03881",null,null,null,null,"Coincident",6]
["ED_MDU541_03882",null,null,"Raw Adjusted MD","MW","Non-Coincident",5.1980200000000005]
["ED_MDU541_03883",null,null,null,null,"Coincident",3.8021599999999998]
["ED_MDU541_03884",null,null,"Raw Adjusted MD","MVA","Non-Coincident",5.1980291628654802]
["ED_MDU541_03885",null,null,null,null,"Coincident",3.8938008045610135]
["ED_MDU541_03886",null,null,"Date MD occurred",null,"Non-Coincident","2015-03-09"]
["ED_MDU541_03887",null,null,null,null,"Coincident","2014-07-10"]
["ED_MDU541_03888",null,null,"Half hour time period MD occurred",null,"Non-Coincident","17:00:00"]
["ED_MDU541_03889",null,null,null,null,"Coincident","18:30:00"]
["ED_MDU541_03890",null,null,"Winter/Summer Peaking",null,"Non-Coincident","Summer"]
["ED_MDU541_03891",null,null,null,null,"Coincident","Winter"]
["ED_MDU541_03892",null,null,"Adjustments - Embedded generation","MW","Non-Coincident",0]
["ED_MDU541_03893",null,null,null,null,"Coincident",0]
["ED_MDU541_03894",null,null,"Weather Corrected MD 10% POE","MW","Non-Coincident",5.1421822762957374]
["ED_MDU541_03895",null,null,null,null,"Coincident",3.761316763621648]
["ED_MDU541_03896",null,null,"Weather Corrected MD 10% POE","MVA","Non-Coincident",5.1421913407326709]
["ED_MDU541_03897",null,null,null,null,"Coincident",3.761316763621648]
["ED_MDU541_03898",null,null,"Weather Corrected MD 50% POE","MW","Non-Coincident",4.839335200320015]
["ED_MDU541_03899",null,null,null,null,"Coincident",3.5397952922937477]
["ED_MDU541_03900",null,null,"Weather Corrected MD 50% POE","MVA","Non-Coincident",4.8393437309100182]
["ED_MDU541_03901",null,null,null,null,"Coincident",3.5397952922937477]
["ED_MDU541_03902",null,"Goulburn North","Substation Rating","MVA","Non-Coincident",42]
["ED_MDU541_03903",null,null,null,null,"Coincident",42]
["ED_MDU541_03904",null,null,"Raw Adjusted MD","MW","Non-Coincident",6.8336668107658625]
["ED_MDU541_03905",null,null,null,null,"Coincident",6.354666480794549]
["ED_MDU541_03906",null,null,"Raw Adjusted MD","MVA","Non-Coincident",6.851861291130839]
["ED_MDU541_03907",null,null,null,null,"Coincident",6.3594520662052236]
["ED_MDU541_03908",null,null,"Date MD occurred",null,"Non-Coincident","2014-06-24"]
["ED_MDU541_03909",null,null,null,null,"Coincident","2014-07-10"]
["ED_MDU541_03910",null,null,"Half hour time period MD occurred",null,"Non-Coincident","18:30:00"]
["ED_MDU541_03911",null,null,null,null,"Coincident","18:30:00"]
["ED_MDU541_03912",null,null,"Winter/Summer Peaking",null,"Non-Coincident","Winter"]
["ED_MDU541_03913",null,null,null,null,"Coincident","Winter"]
["ED_MDU541_03914",null,null,"Adjustments - Embedded generation","MW","Non-Coincident",0]
["ED_MDU541_03915",null,null,null,null,"Coincident",0]
["ED_MDU541_03916",null,null,"Weather Corrected MD 10% POE","MW","Non-Coincident",7.2633031951472002]
["ED_MDU541_03917",null,null,null,null,"Coincident",6.7541878514380018]
["ED_MDU541_03918",null,null,"Weather Corrected MD 10% POE","MVA","Non-Coincident",7.282641572482305]
["ED_MDU541_03919",null,null,null,null,"Coincident",6.7541878514380018]
["ED_MDU541_03920",null,null,"Weather Corrected MD 50% POE","MW","Non-Coincident",6.8857945939845431]
["ED_MDU541_03921",null,null,null,null,"Coincident",6.4031404093472277]
["ED_MDU541_03922",null,null,"Weather Corrected MD 50% POE","MVA","Non-Coincident",6.904127863370773]
["ED_MDU541_03923",null,null,null,null,"Coincident",6.4031404093472277]
["ED_MDU541_03924",null,"Grafton North","Substation Rating","MVA","Non-Coincident",60.500000000000007]
["ED_MDU541_03925",null,null,null,null,"Coincident",66]
["ED_MDU541_03926",null,null,"Raw Adjusted MD","MW","Non-Coincident",15.898933205753565]
["ED_MDU541_03927",null,null,null,null,"Coincident",11.016666412353516]
["ED_MDU541_03928",null,null,"Raw Adjusted MD","MVA","Non-Coincident",16.274620989345735]
["ED_MDU541_03929",null,null,null,null,"Coincident",11.042325131063262]
["ED_MDU541_03930",null,null,"Date MD occurred",null,"Non-Coincident","2014-11-24"]
["ED_MDU541_03931",null,null,null,null,"Coincident","2014-07-10"]
["ED_MDU541_03932",null,null,"Half hour time period MD occurred",null,"Non-Coincident","14:30:00"]
["ED_MDU541_03933",null,null,null,null,"Coincident","18:30:00"]
["ED_MDU541_03934",null,null,"Winter/Summer Peaking",null,"Non-Coincident","Summer"]
["ED_MDU541_03935",null,null,null,null,"Coincident","Winter"]
["ED_MDU541_03936",null,null,"Adjustments - Embedded generation","MW","Non-Coincident",0]
["ED_MDU541_03937",null,null,null,null,"Coincident",0]
["ED_MDU541_03938",null,null,"Weather Corrected MD 10% POE","MW","Non-Coincident",16.257429111203837]
["ED_MDU541_03939",null,null,null,null,"Coincident",11.265074890421154]
["ED_MDU541_03940",null,null,"Weather Corrected MD 10% POE","MVA","Non-Coincident",16.641588062666361]
["ED_MDU541_03941",null,null,null,null,"Coincident",11.265074890421154]
["ED_MDU541_03942",null,null,"Weather Corrected MD 50% POE","MW","Non-Coincident",14.919004479015159]
["ED_MDU541_03943",null,null,null,null,"Coincident",10.337655578692512]
["ED_MDU541_03944",null,null,"Weather Corrected MD 50% POE","MVA","Non-Coincident",15.271536793830757]
["ED_MDU541_03945",null,null,null,null,"Coincident",10.337655578692512]
["ED_MDU541_03946",null,"Grafton South","Substation Rating","MVA","Non-Coincident",55.000000000000007]
["ED_MDU541_03947",null,null,null,null,"Coincident",60]
["ED_MDU541_03948",null,null,"Raw Adjusted MD","MW","Non-Coincident",17.260000000000002]
["ED_MDU541_03949",null,null,null,null,"Coincident",11.96]
["ED_MDU541_03950",null,null,"Raw Adjusted MD","MVA","Non-Coincident",18.373829214401663]
["ED_MDU541_03951",null,null,null,null,"Coincident",12.179146111283828]
["ED_MDU541_03952",null,null,"Date MD occurred",null,"Non-Coincident","2014-11-24"]
["ED_MDU541_03953",null,null,null,null,"Coincident","2014-07-10"]
["ED_MDU541_03954",null,null,"Half hour time period MD occurred",null,"Non-Coincident","15:30:00"]
["ED_MDU541_03955",null,null,null,null,"Coincident","18:30:00"]
["ED_MDU541_03956",null,null,"Winter/Summer Peaking",null,"Non-Coincident","Summer"]
["ED_MDU541_03957",null,null,null,null,"Coincident","Winter"]
["ED_MDU541_03958",null,null,"Adjustments - Embedded generation","MW","Non-Coincident",0]
["ED_MDU541_03959",null,null,null,null,"Coincident",0]
["ED_MDU541_03960",null,null,"Weather Corrected MD 10% POE","MW","Non-Coincident",17.192316147944215]
["ED_MDU541_03961",null,null,null,null,"Coincident",11.913099717810706]
["ED_MDU541_03962",null,null,"Weather Corrected MD 10% POE","MVA","Non-Coincident",18.301777560969111]
["ED_MDU541_03963",null,null,null,null,"Coincident",11.913099717810706]
["ED_MDU541_03964",null,null,"Weather Corrected MD 50% POE","MW","Non-Coincident",16.184296592238258]
["ED_MDU541_03965",null,null,null,null,"Coincident",11.214611080137285]
["ED_MDU541_03966",null,null,"Weather Corrected MD 50% POE","MVA","Non-Coincident",17.228708084647078]
["ED_MDU541_03967",null,null,null,null,"Coincident",11.214611080137285]
["ED_MDU541_03968",null,"Grenfell","Substation Rating","MVA","Non-Coincident",15.6]
["ED_MDU541_03969",null,null,null,null,"Coincident",15.6]
["ED_MDU541_03970",null,null,"Raw Adjusted MD","MW","Non-Coincident",4.1665081643817086]
["ED_MDU541_03971",null,null,null,null,"Coincident",3.9777906331494264]
["ED_MDU541_03972",null,null,"Raw Adjusted MD","MVA","Non-Coincident",4.38579806777022]
["ED_MDU541_03973",null,null,null,null,"Coincident",4.1871480348941335]
["ED_MDU541_03974",null,null,"Date MD occurred",null,"Non-Coincident","2014-08-11"]
["ED_MDU541_03975",null,null,null,null,"Coincident","2014-07-10"]
["ED_MDU541_03976",null,null,"Half hour time period MD occurred",null,"Non-Coincident","19:00:00"]
["ED_MDU541_03977",null,null,null,null,"Coincident","18:30:00"]
["ED_MDU541_03978",null,null,"Winter/Summer Peaking",null,"Non-Coincident","Winter"]
["ED_MDU541_03979",null,null,null,null,"Coincident","Winter"]
["ED_MDU541_03980",null,null,"Adjustments - Embedded generation","MW","Non-Coincident",0]
["ED_MDU541_03981",null,null,null,null,"Coincident",0]
["ED_MDU541_03982",null,null,"Weather Corrected MD 10% POE","MW","Non-Coincident",4.2933506618306971]
["ED_MDU541_03983",null,null,null,null,"Coincident",4.0988879353342984]
["ED_MDU541_03984",null,null,"Weather Corrected MD 10% POE","MVA","Non-Coincident",4.5193164861375763]
["ED_MDU541_03985",null,null,null,null,"Coincident",4.0988879353342984]
["ED_MDU541_03986",null,null,"Weather Corrected MD 50% POE","MW","Non-Coincident",4.1050701903056677]
["ED_MDU541_03987",null,null,null,null,"Coincident",3.9191354264013514]
["ED_MDU541_03988",null,null,"Weather Corrected MD 50% POE","MVA","Non-Coincident",4.3211265161112298]
["ED_MDU541_03989",null,null,null,null,"Coincident",3.9191354264013514]
["ED_MDU541_03990",null,"Gresford","Substation Rating","MVA","Non-Coincident",15.950000000000001]
["ED_MDU541_03991",null,null,null,null,"Coincident",17.399999999999999]
["ED_MDU541_03992",null,null,"Raw Adjusted MD","MW","Non-Coincident",2.4163333773612976]
["ED_MDU541_03993",null,null,null,null,"Coincident",1.6219999864697456]
["ED_MDU541_03994",null,null,"Raw Adjusted MD","MVA","Non-Coincident",2.4252692592654053]
["ED_MDU541_03995",null,null,null,null,"Coincident",1.6615426844752954]
["ED_MDU541_03996",null,null,"Date MD occurred",null,"Non-Coincident","2014-11-23"]
["ED_MDU541_03997",null,null,null,null,"Coincident","2014-07-10"]
["ED_MDU541_03998",null,null,"Half hour time period MD occurred",null,"Non-Coincident","18:00:00"]
["ED_MDU541_03999",null,null,null,null,"Coincident","18:30:00"]
["ED_MDU541_04000",null,null,"Winter/Summer Peaking",null,"Non-Coincident","Summer"]
["ED_MDU541_04001",null,null,null,null,"Coincident","Winter"]
["ED_MDU541_04002",null,null,"Adjustments - Embedded generation","MW","Non-Coincident",2.0000000000000001E-4]
["ED_MDU541_04003",null,null,null,null,"Coincident",1.4399999999999998E-4]
["ED_MDU541_04004",null,null,"Weather Corrected MD 10% POE","MW","Non-Coincident",2.3562224871033854]
["ED_MDU541_04005",null,null,null,null,"Coincident",1.5816496506681974]
["ED_MDU541_04006",null,null,"Weather Corrected MD 10% POE","MVA","Non-Coincident",2.3649360719430534]
["ED_MDU541_04007",null,null,null,null,"Coincident",1.5816496506681974]
["ED_MDU541_04008",null,null,"Weather Corrected MD 50% POE","MW","Non-Coincident",2.0881943041853104]
["ED_MDU541_04009",null,null,null,null,"Coincident",1.4017317166861827]
["ED_MDU541_04010",null,null,"Weather Corrected MD 50% POE","MVA","Non-Coincident",2.0959166896267627]
["ED_MDU541_04011",null,null,null,null,"Coincident",1.4017317166861827]
["ED_MDU541_04012",null,"Griffith","Substation Rating","MVA","Non-Coincident",110.00000000000001]
["ED_MDU541_04013",null,null,null,null,"Coincident",120]
["ED_MDU541_04014",null,null,"Raw Adjusted MD","MW","Non-Coincident",24.471]
["ED_MDU541_04015",null,null,null,null,"Coincident",15.381]
["ED_MDU541_04016",null,null,"Raw Adjusted MD","MVA","Non-Coincident",24.634672029479102]
["ED_MDU541_04017",null,null,null,null,"Coincident",15.433260251806811]
["ED_MDU541_04018",null,null,"Date MD occurred",null,"Non-Coincident","2015-02-11"]
["ED_MDU541_04019",null,null,null,null,"Coincident","2014-07-10"]
["ED_MDU541_04020",null,null,"Half hour time period MD occurred",null,"Non-Coincident","14:30:00"]
["ED_MDU541_04021",null,null,null,null,"Coincident","18:30:00"]
["ED_MDU541_04022",null,null,"Winter/Summer Peaking",null,"Non-Coincident","Summer"]
["ED_MDU541_04023",null,null,null,null,"Coincident","Winter"]
["ED_MDU541_04024",null,null,"Adjustments - Embedded generation","MW","Non-Coincident",0]
["ED_MDU541_04025",null,null,null,null,"Coincident",0]
["ED_MDU541_04026",null,null,"Weather Corrected MD 10% POE","MW","Non-Coincident",25.260440694857504]
["ED_MDU541_04027",null,null,null,null,"Coincident",15.877194978856739]
["ED_MDU541_04028",null,null,"Weather Corrected MD 10% POE","MVA","Non-Coincident",25.429392825708874]
["ED_MDU541_04029",null,null,null,null,"Coincident",15.877194978856739]
["ED_MDU541_04030",null,null,"Weather Corrected MD 50% POE","MW","Non-Coincident",22.822392831732017]
["ED_MDU541_04031",null,null,null,null,"Coincident",14.344784608102248]
["ED_MDU541_04032",null,null,"Weather Corrected MD 50% POE","MVA","Non-Coincident",22.975038304019169]
["ED_MDU541_04033",null,null,null,null,"Coincident",14.344784608102248]
["ED_MDU541_04034",null,"Gulargambone","Substation Rating","MVA","Non-Coincident",3.3000000000000003]
["ED_MDU541_04035",null,null,null,null,"Coincident",3.5999999999999996]
["ED_MDU541_04036",null,null,"Raw Adjusted MD","MW","Non-Coincident",1.5433921096740209]
["ED_MDU541_04037",null,null,null,null,"Coincident",1.0948922490288453]
["ED_MDU541_04038",null,null,"Raw Adjusted MD","MVA","Non-Coincident",1.6246232733410748]
["ED_MDU541_04039",null,null,null,null,"Coincident",1.1525181568724687]
["ED_MDU541_04040",null,null,"Date MD occurred",null,"Non-Coincident","2014-11-23"]
["ED_MDU541_04041",null,null,null,null,"Coincident","2014-07-10"]
["ED_MDU541_04042",null,null,"Half hour time period MD occurred",null,"Non-Coincident","19:00:00"]
["ED_MDU541_04043",null,null,null,null,"Coincident","18:30:00"]
["ED_MDU541_04044",null,null,"Winter/Summer Peaking",null,"Non-Coincident","Summer"]
["ED_MDU541_04045",null,null,null,null,"Coincident","Winter"]
["ED_MDU541_04046",null,null,"Adjustments - Embedded generation","MW","Non-Coincident",0]
["ED_MDU541_04047",null,null,null,null,"Coincident",0]
["ED_MDU541_04048",null,null,"Weather Corrected MD 10% POE","MW","Non-Coincident",1.4767980936695415]
["ED_MDU541_04049",null,null,null,null,"Coincident",1.0476500274974632]
["ED_MDU541_04050",null,null,"Weather Corrected MD 10% POE","MVA","Non-Coincident",1.5545243091258334]
["ED_MDU541_04051",null,null,null,null,"Coincident",1.0476500274974632]
["ED_MDU541_04052",null,null,"Weather Corrected MD 50% POE","MW","Non-Coincident",1.3650481665835057]
["ED_MDU541_04053",null,null,null,null,"Coincident",0.96837391339196754]
["ED_MDU541_04054",null,null,"Weather Corrected MD 50% POE","MVA","Non-Coincident",1.4368928069300062]
["ED_MDU541_04055",null,null,null,null,"Coincident",0.96837391339196754]
["ED_MDU541_04056",null,"Gulgong","Substation Rating","MVA","Non-Coincident",5.5]
["ED_MDU541_04057",null,null,null,null,"Coincident",6]
["ED_MDU541_04058",null,null,"Raw Adjusted MD","MW","Non-Coincident",4.3440000000000003]
["ED_MDU541_04059",null,null,null,null,"Coincident",3.7240000000000002]
["ED_MDU541_04060",null,null,"Raw Adjusted MD","MVA","Non-Coincident",4.502991450136232]
["ED_MDU541_04061",null,null,null,null,"Coincident",3.8060441405743051]
["ED_MDU541_04062",null,null,"Date MD occurred",null,"Non-Coincident","2014-11-23"]
["ED_MDU541_04063",null,null,null,null,"Coincident","2014-07-10"]
["ED_MDU541_04064",null,null,"Half hour time period MD occurred",null,"Non-Coincident","16:30:00"]
["ED_MDU541_04065",null,null,null,null,"Coincident","18:30:00"]
["ED_MDU541_04066",null,null,"Winter/Summer Peaking",null,"Non-Coincident","Summer"]
["ED_MDU541_04067",null,null,null,null,"Coincident","Winter"]
["ED_MDU541_04068",null,null,"Adjustments - Embedded generation","MW","Non-Coincident",0]
["ED_MDU541_04069",null,null,null,null,"Coincident",0]
["ED_MDU541_04070",null,null,"Weather Corrected MD 10% POE","MW","Non-Coincident",4.1103219549822176]
["ED_MDU541_04071",null,null,null,null,"Coincident",3.5236737938199303]
["ED_MDU541_04072",null,null,"Weather Corrected MD 10% POE","MVA","Non-Coincident",4.2607607321805174]
["ED_MDU541_04073",null,null,null,null,"Coincident",3.5236737938199303]
["ED_MDU541_04074",null,null,"Weather Corrected MD 50% POE","MW","Non-Coincident",3.501040734540064]
["ED_MDU541_04075",null,null,null,null,"Coincident",3.0013526002364634]
["ED_MDU541_04076",null,null,"Weather Corrected MD 50% POE","MVA","Non-Coincident",3.6291796717800602]
["ED_MDU541_04077",null,null,null,null,"Coincident",3.0013526002364634]
["ED_MDU541_04078",null,"Gundagai South","Substation Rating","MVA","Non-Coincident",17.600000000000001]
["ED_MDU541_04079",null,null,null,null,"Coincident",19.2]
["ED_MDU541_04080",null,null,"Raw Adjusted MD","MW","Non-Coincident",5.0599999999999996]
["ED_MDU541_04081",null,null,null,null,"Coincident",0]
["ED_MDU541_04082",null,null,"Raw Adjusted MD","MVA","Non-Coincident",5.1868294747369514]
["ED_MDU541_04083",null,null,null,null,"Coincident",0]
["ED_MDU541_04084",null,null,"Date MD occurred",null,"Non-Coincident","2015-01-02"]
["ED_MDU541_04085",null,null,null,null,"Coincident","2014-07-10"]
["ED_MDU541_04086",null,null,"Half hour time period MD occurred",null,"Non-Coincident","18:00:00"]
["ED_MDU541_04087",null,null,null,null,"Coincident","18:30:00"]
["ED_MDU541_04088",null,null,"Winter/Summer Peaking",null,"Non-Coincident","Summer"]
["ED_MDU541_04089",null,null,null,null,"Coincident","Winter"]
["ED_MDU541_04090",null,null,"Adjustments - Embedded generation","MW","Non-Coincident",0]
["ED_MDU541_04091",null,null,null,null,"Coincident",0]
["ED_MDU541_04092",null,null,"Weather Corrected MD 10% POE","MW","Non-Coincident",5.858559028559073]
["ED_MDU541_04093",null,null,null,null,"Coincident",0]
["ED_MDU541_04094",null,null,"Weather Corrected MD 10% POE","MVA","Non-Coincident",6.0054044760506882]
["ED_MDU541_04095",null,null,null,null,"Coincident",0]
["ED_MDU541_04096",null,null,"Weather Corrected MD 50% POE","MW","Non-Coincident",5.5649816575552]
["ED_MDU541_04097",null,null,null,null,"Coincident",0]
["ED_MDU541_04098",null,null,"Weather Corrected MD 50% POE","MVA","Non-Coincident",5.7044685548967999]
["ED_MDU541_04099",null,null,null,null,"Coincident",0]
["ED_MDU541_04100",null,"Gunnedah 22kV","Substation Rating","MVA","Non-Coincident",66]
["ED_MDU541_04101",null,null,null,null,"Coincident",72]
["ED_MDU541_04102",null,null,"Raw Adjusted MD","MW","Non-Coincident",20.342400000000001]
["ED_MDU541_04103",null,null,null,null,"Coincident",16.8384]
["ED_MDU541_04104",null,null,"Raw Adjusted MD","MVA","Non-Coincident",20.358759632158339]
["ED_MDU541_04105",null,null,null,null,"Coincident",16.838794066084425]
["ED_MDU541_04106",null,null,"Date MD occurred",null,"Non-Coincident","2015-02-09"]
["ED_MDU541_04107",null,null,null,null,"Coincident","2014-07-10"]
["ED_MDU541_04108",null,null,"Half hour time period MD occurred",null,"Non-Coincident","18:00:00"]
["ED_MDU541_04109",null,null,null,null,"Coincident","18:30:00"]
["ED_MDU541_04110",null,null,"Winter/Summer Peaking",null,"Non-Coincident","Summer"]
["ED_MDU541_04111",null,null,null,null,"Coincident","Winter"]
["ED_MDU541_04112",null,null,"Adjustments - Embedded generation","MW","Non-Coincident",0]
["ED_MDU541_04113",null,null,null,null,"Coincident",0]
["ED_MDU541_04114",null,null,"Weather Corrected MD 10% POE","MW","Non-Coincident",22.297499607728859]
["ED_MDU541_04115",null,null,null,null,"Coincident",18.456731624330541]
["ED_MDU541_04116",null,null,"Weather Corrected MD 10% POE","MVA","Non-Coincident",22.315431557333284]
["ED_MDU541_04117",null,null,null,null,"Coincident",18.456731624330541]
["ED_MDU541_04118",null,null,"Weather Corrected MD 50% POE","MW","Non-Coincident",20.285262411400154]
["ED_MDU541_04119",null,null,null,null,"Coincident",16.791104421706404]
["ED_MDU541_04120",null,null,"Weather Corrected MD 50% POE","MVA","Non-Coincident",20.301576092739907]
["ED_MDU541_04121",null,null,null,null,"Coincident",16.791104421706404]
["ED_MDU541_04122",null,"Guyra","Substation Rating","MVA","Non-Coincident",12]
["ED_MDU541_04123",null,null,null,null,"Coincident",12]
["ED_MDU541_04124",null,null,"Raw Adjusted MD","MW","Non-Coincident",5.1947999999999999]
["ED_MDU541_04125",null,null,null,null,"Coincident",4.1633999999999993]
["ED_MDU541_04126",null,null,"Raw Adjusted MD","MVA","Non-Coincident",5.3854354587164073]
["ED_MDU541_04127",null,null,null,null,"Coincident",4.3903195555676806]
["ED_MDU541_04128",null,null,"Date MD occurred",null,"Non-Coincident","2014-07-19"]
["ED_MDU541_04129",null,null,null,null,"Coincident","2014-07-10"]
["ED_MDU541_04130",null,null,"Half hour time period MD occurred",null,"Non-Coincident","01:30:00"]
["ED_MDU541_04131",null,null,null,null,"Coincident","18:30:00"]
["ED_MDU541_04132",null,null,"Winter/Summer Peaking",null,"Non-Coincident","Winter"]
["ED_MDU541_04133",null,null,null,null,"Coincident","Winter"]
["ED_MDU541_04134",null,null,"Adjustments - Embedded generation","MW","Non-Coincident",0]
["ED_MDU541_04135",null,null,null,null,"Coincident",0]
["ED_MDU541_04136",null,null,"Weather Corrected MD 10% POE","MW","Non-Coincident",4.4740759461673205]
["ED_MDU541_04137",null,null,null,null,"Coincident",3.5857718861694421]
["ED_MDU541_04138",null,null,"Weather Corrected MD 10% POE","MVA","Non-Coincident",4.638262733017565]
["ED_MDU541_04139",null,null,null,null,"Coincident",3.5857718861694421]
["ED_MDU541_04140",null,null,"Weather Corrected MD 50% POE","MW","Non-Coincident",4.30238334875569]
["ED_MDU541_04141",null,null,null,null,"Coincident",3.4481679437532602]
["ED_MDU541_04142",null,null,"Weather Corrected MD 50% POE","MVA","Non-Coincident",4.4602694701201067]
["ED_MDU541_04143",null,null,null,null,"Coincident",3.4481679437532602]
["ED_MDU541_04144",null,"Hallidays Point 11kV","Substation Rating","MVA","Non-Coincident",35.200000000000003]
["ED_MDU541_04145",null,null,null,null,"Coincident",38.4]
["ED_MDU541_04146",null,null,"Raw Adjusted MD","MW","Non-Coincident",1.67]
["ED_MDU541_04147",null,null,null,null,"Coincident",0]
["ED_MDU541_04148",null,null,"Raw Adjusted MD","MVA","Non-Coincident",1.6796725871431015]
["ED_MDU541_04149",null,null,null,null,"Coincident",0]
["ED_MDU541_04150",null,null,"Date MD occurred",null,"Non-Coincident","2015-01-25"]
["ED_MDU541_04151",null,null,null,null,"Coincident","2014-07-10"]
["ED_MDU541_04152",null,null,"Half hour time period MD occurred",null,"Non-Coincident","18:30:00"]
["ED_MDU541_04153",null,null,null,null,"Coincident","18:30:00"]
["ED_MDU541_04154",null,null,"Winter/Summer Peaking",null,"Non-Coincident","Summer"]
["ED_MDU541_04155",null,null,null,null,"Coincident","Winter"]
["ED_MDU541_04156",null,null,"Adjustments - Embedded generation","MW","Non-Coincident",0]
["ED_MDU541_04157",null,null,null,null,"Coincident",0]
["ED_MDU541_04158",null,null,"Weather Corrected MD 10% POE","MW","Non-Coincident",1.4983251256119305]
["ED_MDU541_04159",null,null,null,null,"Coincident",0]
["ED_MDU541_04160",null,null,"Weather Corrected MD 10% POE","MVA","Non-Coincident",1.5070033773162301]
["ED_MDU541_04161",null,null,null,null,"Coincident",0]
["ED_MDU541_04162",null,null,"Weather Corrected MD 50% POE","MW","Non-Coincident",1.244443718883772]
["ED_MDU541_04163",null,null,null,null,"Coincident",0]
["ED_MDU541_04164",null,null,"Weather Corrected MD 50% POE","MVA","Non-Coincident",1.2516514975158612]
["ED_MDU541_04165",null,null,null,null,"Coincident",0]
["ED_MDU541_04166",null,"Hammond Ave","Substation Rating","MVA","Non-Coincident",72]
["ED_MDU541_04167",null,null,null,null,"Coincident",72]
["ED_MDU541_04168",null,null,"Raw Adjusted MD","MW","Non-Coincident",16.577999999999999]
["ED_MDU541_04169",null,null,null,null,"Coincident",10.878]
["ED_MDU541_04170",null,null,"Raw Adjusted MD","MVA","Non-Coincident",17.698736904084427]
["ED_MDU541_04171",null,null,null,null,"Coincident",11.351977801246795]
["ED_MDU541_04172",null,null,"Date MD occurred",null,"Non-Coincident","2014-06-24"]
["ED_MDU541_04173",null,null,null,null,"Coincident","2014-07-10"]
["ED_MDU541_04174",null,null,"Half hour time period MD occurred",null,"Non-Coincident","10:30:00"]
["ED_MDU541_04175",null,null,null,null,"Coincident","18:30:00"]
["ED_MDU541_04176",null,null,"Winter/Summer Peaking",null,"Non-Coincident","Winter"]
["ED_MDU541_04177",null,null,null,null,"Coincident","Winter"]
["ED_MDU541_04178",null,null,"Adjustments - Embedded generation","MW","Non-Coincident",0]
["ED_MDU541_04179",null,null,null,null,"Coincident",0]
["ED_MDU541_04180",null,null,"Weather Corrected MD 10% POE","MW","Non-Coincident",17.891817841920005]
["ED_MDU541_04181",null,null,null,null,"Coincident",11.740088942237051]
["ED_MDU541_04182",null,null,"Weather Corrected MD 10% POE","MVA","Non-Coincident",19.101373912410772]
["ED_MDU541_04183",null,null,null,null,"Coincident",11.740088942237051]
["ED_MDU541_04184",null,null,"Weather Corrected MD 50% POE","MW","Non-Coincident",16.176430485431098]
["ED_MDU541_04185",null,null,null,null,"Coincident",10.61450179880079]
["ED_MDU541_04186",null,null,"Weather Corrected MD 50% POE","MVA","Non-Coincident",17.27001973753503]
["ED_MDU541_04187",null,null,null,null,"Coincident",10.61450179880079]
["ED_MDU541_04188",null,"Hanwood","Substation Rating","MVA","Non-Coincident",55.000000000000007]
["ED_MDU541_04189",null,null,null,null,"Coincident",60]
["ED_MDU541_04190",null,null,"Raw Adjusted MD","MW","Non-Coincident",10.44]
["ED_MDU541_04191",null,null,null,null,"Coincident",6.84]
["ED_MDU541_04192",null,null,"Raw Adjusted MD","MVA","Non-Coincident",10.896237882865812]
["ED_MDU541_04193",null,null,null,null,"Coincident",8.0265559239315092]
["ED_MDU541_04194",null,null,"Date MD occurred",null,"Non-Coincident","2015-03-13"]
["ED_MDU541_04195",null,null,null,null,"Coincident","2014-07-10"]
["ED_MDU541_04196",null,null,"Half hour time period MD occurred",null,"Non-Coincident","14:30:00"]
["ED_MDU541_04197",null,null,null,null,"Coincident","18:30:00"]
["ED_MDU541_04198",null,null,"Winter/Summer Peaking",null,"Non-Coincident","Summer"]
["ED_MDU541_04199",null,null,null,null,"Coincident","Winter"]
["ED_MDU541_04200",null,null,"Adjustments - Embedded generation","MW","Non-Coincident",0]
["ED_MDU541_04201",null,null,null,null,"Coincident",0]
["ED_MDU541_04202",null,null,"Weather Corrected MD 10% POE","MW","Non-Coincident",10.202795162080202]
["ED_MDU541_04203",null,null,null,null,"Coincident",6.6845899337766834]
["ED_MDU541_04204",null,null,"Weather Corrected MD 10% POE","MVA","Non-Coincident",10.648666968982598]
["ED_MDU541_04205",null,null,null,null,"Coincident",6.6845899337766834]
["ED_MDU541_04206",null,null,"Weather Corrected MD 50% POE","MW","Non-Coincident",8.9947231761725046]
["ED_MDU541_04207",null,null,null,null,"Coincident",5.8930944947337096]
["ED_MDU541_04208",null,null,"Weather Corrected MD 50% POE","MVA","Non-Coincident",9.3878010936879246]
["ED_MDU541_04209",null,null,null,null,"Coincident",5.8930944947337096]
["ED_MDU541_04210",null,"Harrington","Substation Rating","MVA","Non-Coincident",15.675000000000001]
["ED_MDU541_04211",null,null,null,null,"Coincident",17.099999999999998]
["ED_MDU541_04212",null,null,"Raw Adjusted MD","MW","Non-Coincident",2.874333418905735]
["ED_MDU541_04213",null,null,null,null,"Coincident",2.8396666571497917]
["ED_MDU541_04214",null,null,"Raw Adjusted MD","MVA","Non-Coincident",2.9463253464950498]
["ED_MDU541_04215",null,null,null,null,"Coincident",2.8783537248487416]
["ED_MDU541_04216",null,null,"Date MD occurred",null,"Non-Coincident","2015-01-25"]
["ED_MDU541_04217",null,null,null,null,"Coincident","2014-07-10"]
["ED_MDU541_04218",null,null,"Half hour time period MD occurred",null,"Non-Coincident","19:00:00"]
["ED_MDU541_04219",null,null,null,null,"Coincident","18:30:00"]
["ED_MDU541_04220",null,null,"Winter/Summer Peaking",null,"Non-Coincident","Summer"]
["ED_MDU541_04221",null,null,null,null,"Coincident","Winter"]
["ED_MDU541_04222",null,null,"Adjustments - Embedded generation","MW","Non-Coincident",0]
["ED_MDU541_04223",null,null,null,null,"Coincident",0]
["ED_MDU541_04224",null,null,"Weather Corrected MD 10% POE","MW","Non-Coincident",2.6416373025225335]
["ED_MDU541_04225",null,null,null,null,"Coincident",2.6097770421888438]
["ED_MDU541_04226",null,null,"Weather Corrected MD 10% POE","MVA","Non-Coincident",2.7078010120454308]
["ED_MDU541_04227",null,null,null,null,"Coincident",2.6097770421888438]
["ED_MDU541_04228",null,null,"Weather Corrected MD 50% POE","MW","Non-Coincident",2.3013819551573467]
["ED_MDU541_04229",null,null,null,null,"Coincident",2.2736254466659833]
["ED_MDU541_04230",null,null,"Weather Corrected MD 50% POE","MVA","Non-Coincident",2.3590234667444463]
["ED_MDU541_04231",null,null,null,null,"Coincident",2.2736254466659833]
["ED_MDU541_04232",null,"Hastings Point","Substation Rating","MVA","Non-Coincident",39.6]
["ED_MDU541_04233",null,null,null,null,"Coincident",39.6]
["ED_MDU541_04234",null,null,"Raw Adjusted MD","MW","Non-Coincident",10.013333320617676]
["ED_MDU541_04235",null,null,null,null,"Coincident",9.7066669464111328]
["ED_MDU541_04236",null,null,"Raw Adjusted MD","MVA","Non-Coincident",10.075775116608815]
["ED_MDU541_04237",null,null,null,null,"Coincident",9.774552836509411]
["ED_MDU541_04238",null,null,"Date MD occurred",null,"Non-Coincident","2014-07-07"]
["ED_MDU541_04239",null,null,null,null,"Coincident","2014-07-10"]
["ED_MDU541_04240",null,null,"Half hour time period MD occurred",null,"Non-Coincident","18:30:00"]
["ED_MDU541_04241",null,null,null,null,"Coincident","18:30:00"]
["ED_MDU541_04242",null,null,"Winter/Summer Peaking",null,"Non-Coincident","Winter"]
["ED_MDU541_04243",null,null,null,null,"Coincident","Winter"]
["ED_MDU541_04244",null,null,"Adjustments - Embedded generation","MW","Non-Coincident",0]
["ED_MDU541_04245",null,null,null,null,"Coincident",0]
["ED_MDU541_04246",null,null,"Weather Corrected MD 10% POE","MW","Non-Coincident",9.586431885916598]
["ED_MDU541_04247",null,null,null,null,"Coincident",9.2928397109733307]
["ED_MDU541_04248",null,null,"Weather Corrected MD 10% POE","MVA","Non-Coincident",9.6462115821413157]
["ED_MDU541_04249",null,null,null,null,"Coincident",9.2928397109733307]
["ED_MDU541_04250",null,null,"Weather Corrected MD 50% POE","MW","Non-Coincident",9.0552579392866654]
["ED_MDU541_04251",null,null,null,null,"Coincident",8.7779333930211116]
["ED_MDU541_04252",null,null,"Weather Corrected MD 50% POE","MVA","Non-Coincident",9.1117253064248249]
["ED_MDU541_04253",null,null,null,null,"Coincident",8.7779333930211116]
["ED_MDU541_04254",null,"Hay Town","Substation Rating","MVA","Non-Coincident",14.3]
["ED_MDU541_04255",null,null,null,null,"Coincident",15.6]
["ED_MDU541_04256",null,null,"Raw Adjusted MD","MW","Non-Coincident",4.2317999999999998]
["ED_MDU541_04257",null,null,null,null,"Coincident",3.1806000000000005]
["ED_MDU541_04258",null,null,"Raw Adjusted MD","MVA","Non-Coincident",4.488379315521362]
["ED_MDU541_04259",null,null,null,null,"Coincident",3.2349325371636426]
["ED_MDU541_04260",null,null,"Date MD occurred",null,"Non-Coincident","2015-02-11"]
["ED_MDU541_04261",null,null,null,null,"Coincident","2014-07-10"]
["ED_MDU541_04262",null,null,"Half hour time period MD occurred",null,"Non-Coincident","17:30:00"]
["ED_MDU541_04263",null,null,null,null,"Coincident","18:30:00"]
["ED_MDU541_04264",null,null,"Winter/Summer Peaking",null,"Non-Coincident","Summer"]
["ED_MDU541_04265",null,null,null,null,"Coincident","Winter"]
["ED_MDU541_04266",null,null,"Adjustments - Embedded generation","MW","Non-Coincident",0]
["ED_MDU541_04267",null,null,null,null,"Coincident",0]
["ED_MDU541_04268",null,null,"Weather Corrected MD 10% POE","MW","Non-Coincident",4.8511546813281878]
["ED_MDU541_04269",null,null,null,null,"Coincident",3.6461039225465379]
["ED_MDU541_04270",null,null,"Weather Corrected MD 10% POE","MVA","Non-Coincident",5.1452862441675098]
["ED_MDU541_04271",null,null,null,null,"Coincident",3.6461039225465379]
["ED_MDU541_04272",null,null,"Weather Corrected MD 50% POE","MW","Non-Coincident",4.5843515933576171]
["ED_MDU541_04273",null,null,null,null,"Coincident",3.4455760380531313]
["ED_MDU541_04274",null,null,"Weather Corrected MD 50% POE","MVA","Non-Coincident",4.8623065519882154]
["ED_MDU541_04275",null,null,null,null,"Coincident",3.4455760380531313]
["ED_MDU541_04276",null,"Henty","Substation Rating","MVA","Non-Coincident",12]
["ED_MDU541_04277",null,null,null,null,"Coincident",12]
["ED_MDU541_04278",null,null,"Raw Adjusted MD","MW","Non-Coincident",2.3220000000000001]
["ED_MDU541_04279",null,null,null,null,"Coincident",1.476]
["ED_MDU541_04280",null,null,"Raw Adjusted MD","MVA","Non-Coincident",2.3304265703943559]
["ED_MDU541_04281",null,null,null,null,"Coincident",1.496359582453362]
["ED_MDU541_04282",null,null,"Date MD occurred",null,"Non-Coincident","2014-07-23"]
["ED_MDU541_04283",null,null,null,null,"Coincident","2014-07-10"]
["ED_MDU541_04284",null,null,"Half hour time period MD occurred",null,"Non-Coincident","01:30:00"]
["ED_MDU541_04285",null,null,null,null,"Coincident","18:30:00"]
["ED_MDU541_04286",null,null,"Winter/Summer Peaking",null,"Non-Coincident","Winter"]
["ED_MDU541_04287",null,null,null,null,"Coincident","Winter"]
["ED_MDU541_04288",null,null,"Adjustments - Embedded generation","MW","Non-Coincident",0]
["ED_MDU541_04289",null,null,null,null,"Coincident",0]
["ED_MDU541_04290",null,null,"Weather Corrected MD 10% POE","MW","Non-Coincident",1.7145663978037571]
["ED_MDU541_04291",null,null,null,null,"Coincident",1.0898794156582021]
["ED_MDU541_04292",null,null,"Weather Corrected MD 10% POE","MVA","Non-Coincident",1.7207885831814014]
["ED_MDU541_04293",null,null,null,null,"Coincident",1.0898794156582021]
["ED_MDU541_04294",null,null,"Weather Corrected MD 50% POE","MW","Non-Coincident",1.6373761225268066]
["ED_MDU541_04295",null,null,null,null,"Coincident",1.0408127290480476]
["ED_MDU541_04296",null,null,"Weather Corrected MD 50% POE","MVA","Non-Coincident",1.6433181833185848]
["ED_MDU541_04297",null,null,null,null,"Coincident",1.0408127290480476]
["ED_MDU541_04298",null,"Hillgrove","Substation Rating","MVA","Non-Coincident",6.8750000000000009]
["ED_MDU541_04299",null,null,null,null,"Coincident",7.5]
["ED_MDU541_04300",null,null,"Raw Adjusted MD","MW","Non-Coincident",1.24]
["ED_MDU541_04301",null,null,null,null,"Coincident",0.95483331298828122]
["ED_MDU541_04302",null,null,"Raw Adjusted MD","MVA","Non-Coincident",1.6334864138743448]
["ED_MDU541_04303",null,null,null,null,"Coincident",1.2328206080523052]
["ED_MDU541_04304",null,null,"Date MD occurred",null,"Non-Coincident","2015-03-05"]
["ED_MDU541_04305",null,null,null,null,"Coincident","2014-07-10"]
["ED_MDU541_04306",null,null,"Half hour time period MD occurred",null,"Non-Coincident","02:00:00"]
["ED_MDU541_04307",null,null,null,null,"Coincident","18:30:00"]
["ED_MDU541_04308",null,null,"Winter/Summer Peaking",null,"Non-Coincident","Summer"]
["ED_MDU541_04309",null,null,null,null,"Coincident","Winter"]
["ED_MDU541_04310",null,null,"Adjustments - Embedded generation","MW","Non-Coincident",0]
["ED_MDU541_04311",null,null,null,null,"Coincident",0]
["ED_MDU541_04312",null,null,"Weather Corrected MD 10% POE","MW","Non-Coincident",1.2253549983460972]
["ED_MDU541_04313",null,null,null,null,"Coincident",0.94355626827222083]
["ED_MDU541_04314",null,null,"Weather Corrected MD 10% POE","MVA","Non-Coincident",1.6141941467511047]
["ED_MDU541_04315",null,null,null,null,"Coincident",0.94355626827222083]
["ED_MDU541_04316",null,null,"Weather Corrected MD 50% POE","MW","Non-Coincident",1.0511067717608975]
["ED_MDU541_04317",null,null,null,null,"Coincident",0.80938045256844748]
["ED_MDU541_04318",null,null,"Weather Corrected MD 50% POE","MVA","Non-Coincident",1.3846521219376999]
["ED_MDU541_04319",null,null,null,null,"Coincident",0.80938045256844748]
["ED_MDU541_04320",null,"Holbrook","Substation Rating","MVA","Non-Coincident",16.8]
["ED_MDU541_04321",null,null,null,null,"Coincident",16.8]
["ED_MDU541_04322",null,null,"Raw Adjusted MD","MW","Non-Coincident",3.5369999999999999]
["ED_MDU541_04323",null,null,null,null,"Coincident",2.3841000000000001]
["ED_MDU541_04324",null,null,"Raw Adjusted MD","MVA","Non-Coincident",3.5452145830682804]
["ED_MDU541_04325",null,null,null,null,"Coincident",2.3841042468818348]
["ED_MDU541_04326",null,null,"Date MD occurred",null,"Non-Coincident","2014-08-05"]
["ED_MDU541_04327",null,null,null,null,"Coincident","2014-07-10"]
["ED_MDU541_04328",null,null,"Half hour time period MD occurred",null,"Non-Coincident","01:30:00"]
["ED_MDU541_04329",null,null,null,null,"Coincident","18:30:00"]
["ED_MDU541_04330",null,null,"Winter/Summer Peaking",null,"Non-Coincident","Winter"]
["ED_MDU541_04331",null,null,null,null,"Coincident","Winter"]
["ED_MDU541_04332",null,null,"Adjustments - Embedded generation","MW","Non-Coincident",0]
["ED_MDU541_04333",null,null,null,null,"Coincident",0]
["ED_MDU541_04334",null,null,"Weather Corrected MD 10% POE","MW","Non-Coincident",2.7438398329042593]
["ED_MDU541_04335",null,null,null,null,"Coincident",1.8494737194308861]
["ED_MDU541_04336",null,null,"Weather Corrected MD 10% POE","MVA","Non-Coincident",2.7502123237816836]
["ED_MDU541_04337",null,null,null,null,"Coincident",1.8494737194308861]
["ED_MDU541_04338",null,null,"Weather Corrected MD 50% POE","MW","Non-Coincident",2.6064461991966388]
["ED_MDU541_04339",null,null,null,null,"Coincident",1.7568641174737649]
["ED_MDU541_04340",null,null,"Weather Corrected MD 50% POE","MVA","Non-Coincident",2.6124995972221705]
["ED_MDU541_04341",null,null,null,null,"Coincident",1.7568641174737649]
["ED_MDU541_04342",null,"Ivanhoe","Substation Rating","MVA","Non-Coincident",2.2000000000000002]
["ED_MDU541_04343",null,null,null,null,"Coincident",2.4]
["ED_MDU541_04344",null,null,"Raw Adjusted MD","MW","Non-Coincident",0.78250002861022949]
["ED_MDU541_04345",null,null,null,null,"Coincident",0.609333336353302]
["ED_MDU541_04346",null,null,"Raw Adjusted MD","MVA","Non-Coincident",0.7992967506446631]
["ED_MDU541_04347",null,null,null,null,"Coincident",0.62065378026742624]
["ED_MDU541_04348",null,null,"Date MD occurred",null,"Non-Coincident","2015-02-23"]
["ED_MDU541_04349",null,null,null,null,"Coincident","2014-07-10"]
["ED_MDU541_04350",null,null,"Half hour time period MD occurred",null,"Non-Coincident","14:00:00"]
["ED_MDU541_04351",null,null,null,null,"Coincident","18:30:00"]
["ED_MDU541_04352",null,null,"Winter/Summer Peaking",null,"Non-Coincident","Summer"]
["ED_MDU541_04353",null,null,null,null,"Coincident","Winter"]
["ED_MDU541_04354",null,null,"Adjustments - Embedded generation","MW","Non-Coincident",0]
["ED_MDU541_04355",null,null,null,null,"Coincident",0]
["ED_MDU541_04356",null,null,"Weather Corrected MD 10% POE","MW","Non-Coincident",0.90859180606542977]
["ED_MDU541_04357",null,null,null,null,"Coincident",0.70752109435243427]
["ED_MDU541_04358",null,null,"Weather Corrected MD 10% POE","MVA","Non-Coincident",0.9280951459392317]
["ED_MDU541_04359",null,null,null,null,"Coincident",0.70752109435243427]
["ED_MDU541_04360",null,null,"Weather Corrected MD 50% POE","MW","Non-Coincident",0.84535951140444054]
["ED_MDU541_04361",null,null,null,null,"Coincident",0.6582820609181651]
["ED_MDU541_04362",null,null,"Weather Corrected MD 50% POE","MVA","Non-Coincident",0.86350554106969668]
["ED_MDU541_04363",null,null,null,null,"Coincident",0.6582820609181651]
["ED_MDU541_04364",null,"Jelbart","Substation Rating","MVA","Non-Coincident",96.800000000000011]
["ED_MDU541_04365",null,null,null,null,"Coincident",105.6]
["ED_MDU541_04366",null,null,"Raw Adjusted MD","MW","Non-Coincident",41.333333969116211]
["ED_MDU541_04367",null,null,null,null,"Coincident",28.016667366027832]
["ED_MDU541_04368",null,null,"Raw Adjusted MD","MVA","Non-Coincident",41.430558464127898]
["ED_MDU541_04369",null,null,null,null,"Coincident",28.054164579685462]
["ED_MDU541_04370",null,null,"Date MD occurred",null,"Non-Coincident","2015-01-07"]
["ED_MDU541_04371",null,null,null,null,"Coincident","2014-07-10"]
["ED_MDU541_04372",null,null,"Half hour time period MD occurred",null,"Non-Coincident","16:30:00"]
["ED_MDU541_04373",null,null,null,null,"Coincident","18:30:00"]
["ED_MDU541_04374",null,null,"Winter/Summer Peaking",null,"Non-Coincident","Summer"]
["ED_MDU541_04375",null,null,null,null,"Coincident","Winter"]
["ED_MDU541_04376",null,null,"Adjustments - Embedded generation","MW","Non-Coincident",0]
["ED_MDU541_04377",null,null,null,null,"Coincident",0]
["ED_MDU541_04378",null,null,"Weather Corrected MD 10% POE","MW","Non-Coincident",45.20911266548115]
["ED_MDU541_04379",null,null,null,null,"Coincident",30.643757709176246]
["ED_MDU541_04380",null,null,"Weather Corrected MD 10% POE","MVA","Non-Coincident",45.315453788413841]
["ED_MDU541_04381",null,null,null,null,"Coincident",30.643757709176246]
["ED_MDU541_04382",null,null,"Weather Corrected MD 50% POE","MW","Non-Coincident",41.834713241693585]
["ED_MDU541_04383",null,null,null,null,"Coincident",28.356513561704112]
["ED_MDU541_04384",null,null,"Weather Corrected MD 50% POE","MVA","Non-Coincident",41.933117083781944]
["ED_MDU541_04385",null,null,null,null,"Coincident",28.356513561704112]
["ED_MDU541_04386",null,"Jerilderie","Substation Rating","MVA","Non-Coincident",24]
["ED_MDU541_04387",null,null,null,null,"Coincident",24]
["ED_MDU541_04388",null,null,"Raw Adjusted MD","MW","Non-Coincident",6.1890000000000001]
["ED_MDU541_04389",null,null,null,null,"Coincident",3.9809999999999999]
["ED_MDU541_04390",null,null,"Raw Adjusted MD","MVA","Non-Coincident",6.4184984225284341]
["ED_MDU541_04391",null,null,null,null,"Coincident",3.9949030025771588]
["ED_MDU541_04392",null,null,"Date MD occurred",null,"Non-Coincident","2014-05-22"]
["ED_MDU541_04393",null,null,null,null,"Coincident","2014-07-10"]
["ED_MDU541_04394",null,null,"Half hour time period MD occurred",null,"Non-Coincident","23:00:00"]
["ED_MDU541_04395",null,null,null,null,"Coincident","18:30:00"]
["ED_MDU541_04396",null,null,"Winter/Summer Peaking",null,"Non-Coincident","Winter"]
["ED_MDU541_04397",null,null,null,null,"Coincident","Winter"]
["ED_MDU541_04398",null,null,"Adjustments - Embedded generation","MW","Non-Coincident",0]
["ED_MDU541_04399",null,null,null,null,"Coincident",0]
["ED_MDU541_04400",null,null,"Weather Corrected MD 10% POE","MW","Non-Coincident",6.8194877371586191]
["ED_MDU541_04401",null,null,null,null,"Coincident",4.3865536729081374]
["ED_MDU541_04402",null,null,"Weather Corrected MD 10% POE","MVA","Non-Coincident",7.0723656945232829]
["ED_MDU541_04403",null,null,null,null,"Coincident",4.3865536729081374]
["ED_MDU541_04404",null,null,"Weather Corrected MD 50% POE","MW","Non-Coincident",5.9490009777283674]
["ED_MDU541_04405",null,null,null,null,"Coincident",3.8266235082140296]
["ED_MDU541_04406",null,null,"Weather Corrected MD 50% POE","MVA","Non-Coincident",6.1695998369962259]
["ED_MDU541_04407",null,null,null,null,"Coincident",3.8266235082140296]
["ED_MDU541_04408",null,"Jindabyne 11kV","Substation Rating","MVA","Non-Coincident",72]
["ED_MDU541_04409",null,null,null,null,"Coincident",72]
["ED_MDU541_04410",null,null,"Raw Adjusted MD","MW","Non-Coincident",11.625599999999999]
["ED_MDU541_04411",null,null,null,null,"Coincident",10.368]
["ED_MDU541_04412",null,null,"Raw Adjusted MD","MVA","Non-Coincident",11.859233243342503]
["ED_MDU541_04413",null,null,null,null,"Coincident",10.618836817655689]
["ED_MDU541_04414",null,null,"Date MD occurred",null,"Non-Coincident","2014-08-02"]
["ED_MDU541_04415",null,null,null,null,"Coincident","2014-07-10"]
["ED_MDU541_04416",null,null,"Half hour time period MD occurred",null,"Non-Coincident","19:30:00"]
["ED_MDU541_04417",null,null,null,null,"Coincident","18:30:00"]
["ED_MDU541_04418",null,null,"Winter/Summer Peaking",null,"Non-Coincident","Winter"]
["ED_MDU541_04419",null,null,null,null,"Coincident","Winter"]
["ED_MDU541_04420",null,null,"Adjustments - Embedded generation","MW","Non-Coincident",1.0158]
["ED_MDU541_04421",null,null,null,null,"Coincident",1.0647]
["ED_MDU541_04422",null,null,"Weather Corrected MD 10% POE","MW","Non-Coincident",11.398081688414562]
["ED_MDU541_04423",null,null,null,null,"Coincident",10.165093495861049]
["ED_MDU541_04424",null,null,"Weather Corrected MD 10% POE","MVA","Non-Coincident",11.627142622280092]
["ED_MDU541_04425",null,null,null,null,"Coincident",10.165093495861049]
["ED_MDU541_04426",null,null,"Weather Corrected MD 50% POE","MW","Non-Coincident",10.468806877721764]
["ED_MDU541_04427",null,null,null,null,"Coincident",9.3363430453670588]
["ED_MDU541_04428",null,null,"Weather Corrected MD 50% POE","MVA","Non-Coincident",10.679192690477102]
["ED_MDU541_04429",null,null,null,null,"Coincident",9.3363430453670588]
["ED_MDU541_04430",null,"Jindabyne East","Substation Rating","MVA","Non-Coincident",24]
["ED_MDU541_04431",null,null,null,null,"Coincident",24]
["ED_MDU541_04432",null,null,"Raw Adjusted MD","MW","Non-Coincident",4.08]
["ED_MDU541_04433",null,null,null,null,"Coincident",3.67]
["ED_MDU541_04434",null,null,"Raw Adjusted MD","MVA","Non-Coincident",4.161586236040292]
["ED_MDU541_04435",null,null,null,null,"Coincident",3.7458510381487407]
["ED_MDU541_04436",null,null,"Date MD occurred",null,"Non-Coincident","2014-07-12"]
["ED_MDU541_04437",null,null,null,null,"Coincident","2014-07-10"]
["ED_MDU541_04438",null,null,"Half hour time period MD occurred",null,"Non-Coincident","19:30:00"]
["ED_MDU541_04439",null,null,null,null,"Coincident","18:30:00"]
["ED_MDU541_04440",null,null,"Winter/Summer Peaking",null,"Non-Coincident","Winter"]
["ED_MDU541_04441",null,null,null,null,"Coincident","Winter"]
["ED_MDU541_04442",null,null,"Adjustments - Embedded generation","MW","Non-Coincident",0]
["ED_MDU541_04443",null,null,null,null,"Coincident",0]
["ED_MDU541_04444",null,null,"Weather Corrected MD 10% POE","MW","Non-Coincident",4.078028785100793]
["ED_MDU541_04445",null,null,null,null,"Coincident",3.6682268728725269]
["ED_MDU541_04446",null,null,"Weather Corrected MD 10% POE","MVA","Non-Coincident",4.1595756034930327]
["ED_MDU541_04447",null,null,null,null,"Coincident",3.6682268728725269]
["ED_MDU541_04448",null,null,"Weather Corrected MD 50% POE","MW","Non-Coincident",3.4779612396741428]
["ED_MDU541_04449",null,null,null,null,"Coincident",3.1284602327461037]
["ED_MDU541_04450",null,null,"Weather Corrected MD 50% POE","MVA","Non-Coincident",3.547508731497437]
["ED_MDU541_04451",null,null,null,null,"Coincident",3.1284602327461037]
["ED_MDU541_04452",null,"Johns River","Substation Rating","MVA","Non-Coincident",3.5999999999999996]
["ED_MDU541_04453",null,null,null,null,"Coincident",3.5999999999999996]
["ED_MDU541_04454",null,null,"Raw Adjusted MD","MW","Non-Coincident",0.9869999885559082]
["ED_MDU541_04455",null,null,null,null,"Coincident",0.91500002145767212]
["ED_MDU541_04456",null,null,"Raw Adjusted MD","MVA","Non-Coincident",1.0554832954810636]
["ED_MDU541_04457",null,null,null,null,"Coincident",0.97033707967932881]
["ED_MDU541_04458",null,null,"Date MD occurred",null,"Non-Coincident","2014-06-23"]
["ED_MDU541_04459",null,null,null,null,"Coincident","2014-07-10"]
["ED_MDU541_04460",null,null,"Half hour time period MD occurred",null,"Non-Coincident","18:00:00"]
["ED_MDU541_04461",null,null,null,null,"Coincident","18:30:00"]
["ED_MDU541_04462",null,null,"Winter/Summer Peaking",null,"Non-Coincident","Winter"]
["ED_MDU541_04463",null,null,null,null,"Coincident","Winter"]
["ED_MDU541_04464",null,null,"Adjustments - Embedded generation","MW","Non-Coincident",0]
["ED_MDU541_04465",null,null,null,null,"Coincident",0]
["ED_MDU541_04466",null,null,"Weather Corrected MD 10% POE","MW","Non-Coincident",1.0892223573685422]
["ED_MDU541_04467",null,null,null,null,"Coincident",1.009765442675016]
["ED_MDU541_04468",null,null,"Weather Corrected MD 10% POE","MVA","Non-Coincident",1.1647983957417036]
["ED_MDU541_04469",null,null,null,null,"Coincident",1.009765442675016]
["ED_MDU541_04470",null,null,"Weather Corrected MD 50% POE","MW","Non-Coincident",0.95153737349837775]
["ED_MDU541_04471",null,null,null,null,"Coincident",0.8821243437324261]
["ED_MDU541_04472",null,null,"Weather Corrected MD 50% POE","MVA","Non-Coincident",1.0175600956418587]
["ED_MDU541_04473",null,null,null,null,"Coincident",0.8821243437324261]
["ED_MDU541_04474",null,"Jugiong","Substation Rating","MVA","Non-Coincident",14.3]
["ED_MDU541_04475",null,null,null,null,"Coincident",15.6]
["ED_MDU541_04476",null,null,"Raw Adjusted MD","MW","Non-Coincident",1.7685]
["ED_MDU541_04477",null,null,null,null,"Coincident",0.56100000000000005]
["ED_MDU541_04478",null,null,"Raw Adjusted MD","MVA","Non-Coincident",1.9898080937618079]
["ED_MDU541_04479",null,null,null,null,"Coincident",0.56100802133302874]
["ED_MDU541_04480",null,null,"Date MD occurred",null,"Non-Coincident","2015-03-05"]
["ED_MDU541_04481",null,null,null,null,"Coincident","2014-07-10"]
["ED_MDU541_04482",null,null,"Half hour time period MD occurred",null,"Non-Coincident","11:30:00"]
["ED_MDU541_04483",null,null,null,null,"Coincident","18:30:00"]
["ED_MDU541_04484",null,null,"Winter/Summer Peaking",null,"Non-Coincident","Summer"]
["ED_MDU541_04485",null,null,null,null,"Coincident","Winter"]
["ED_MDU541_04486",null,null,"Adjustments - Embedded generation","MW","Non-Coincident",0]
["ED_MDU541_04487",null,null,null,null,"Coincident",0]
["ED_MDU541_04488",null,null,"Weather Corrected MD 10% POE","MW","Non-Coincident",2.0039952422662721]
["ED_MDU541_04489",null,null,null,null,"Coincident",0.63570332536690921]
["ED_MDU541_04490",null,null,"Weather Corrected MD 10% POE","MVA","Non-Coincident",2.2547729448241918]
["ED_MDU541_04491",null,null,null,null,"Coincident",0.63570332536690921]
["ED_MDU541_04492",null,null,"Weather Corrected MD 50% POE","MW","Non-Coincident",1.7642761659729305]
["ED_MDU541_04493",null,null,null,null,"Coincident",0.55966012389641739]
["ED_MDU541_04494",null,null,"Weather Corrected MD 50% POE","MVA","Non-Coincident",1.985055693912348]
["ED_MDU541_04495",null,null,null,null,"Coincident",0.55966012389641739]
["ED_MDU541_04496",null,"Junee","Substation Rating","MVA","Non-Coincident",27.500000000000004]
["ED_MDU541_04497",null,null,null,null,"Coincident",30]
["ED_MDU541_04498",null,null,"Raw Adjusted MD","MW","Non-Coincident",5.3324999999999996]
["ED_MDU541_04499",null,null,null,null,"Coincident",4.6665000000000001]
["ED_MDU541_04500",null,null,"Raw Adjusted MD","MVA","Non-Coincident",5.5427159633161791]
["ED_MDU541_04501",null,null,null,null,"Coincident",4.7314865000335784]
["ED_MDU541_04502",null,null,"Date MD occurred",null,"Non-Coincident","2015-02-08"]
["ED_MDU541_04503",null,null,null,null,"Coincident","2014-07-10"]
["ED_MDU541_04504",null,null,"Half hour time period MD occurred",null,"Non-Coincident","18:00:00"]
["ED_MDU541_04505",null,null,null,null,"Coincident","18:30:00"]
["ED_MDU541_04506",null,null,"Winter/Summer Peaking",null,"Non-Coincident","Summer"]
["ED_MDU541_04507",null,null,null,null,"Coincident","Winter"]
["ED_MDU541_04508",null,null,"Adjustments - Embedded generation","MW","Non-Coincident",0]
["ED_MDU541_04509",null,null,null,null,"Coincident",0]
["ED_MDU541_04510",null,null,"Weather Corrected MD 10% POE","MW","Non-Coincident",6.0876297751310551]
["ED_MDU541_04511",null,null,null,null,"Coincident",5.3273182082792445]
["ED_MDU541_04512",null,null,"Weather Corrected MD 10% POE","MVA","Non-Coincident",6.3276142022274326]
["ED_MDU541_04513",null,null,null,null,"Coincident",5.3273182082792445]
["ED_MDU541_04514",null,null,"Weather Corrected MD 50% POE","MW","Non-Coincident",5.8031763828540246]
["ED_MDU541_04515",null,null,null,null,"Coincident",5.0783914844047455]
["ED_MDU541_04516",null,null,"Weather Corrected MD 50% POE","MVA","Non-Coincident",6.0319471870950672]
["ED_MDU541_04517",null,null,null,null,"Coincident",5.0783914844047455]
["ED_MDU541_04518",null,"Junee Reefs","Substation Rating","MVA","Non-Coincident",3.5999999999999996]
["ED_MDU541_04519",null,null,null,null,"Coincident",3.5999999999999996]
["ED_MDU541_04520",null,null,"Raw Adjusted MD","MW","Non-Coincident",0.18226667022705079]
["ED_MDU541_04521",null,null,null,null,"Coincident",0.127]
["ED_MDU541_04522",null,null,"Raw Adjusted MD","MVA","Non-Coincident",0.19079334116427304]
["ED_MDU541_04523",null,null,null,null,"Coincident",0.13121737689803131]
["ED_MDU541_04524",null,null,"Date MD occurred",null,"Non-Coincident","2014-07-13"]
["ED_MDU541_04525",null,null,null,null,"Coincident","2014-07-10"]
["ED_MDU541_04526",null,null,"Half hour time period MD occurred",null,"Non-Coincident","21:00:00"]
["ED_MDU541_04527",null,null,null,null,"Coincident","18:30:00"]
["ED_MDU541_04528",null,null,"Winter/Summer Peaking",null,"Non-Coincident","Winter"]
["ED_MDU541_04529",null,null,null,null,"Coincident","Winter"]
["ED_MDU541_04530",null,null,"Adjustments - Embedded generation","MW","Non-Coincident",0]
["ED_MDU541_04531",null,null,null,null,"Coincident",0]
["ED_MDU541_04532",null,null,"Weather Corrected MD 10% POE","MW","Non-Coincident",0.1702199547664075]
["ED_MDU541_04533",null,null,null,null,"Coincident",0.11860607443151373]
["ED_MDU541_04534",null,null,"Weather Corrected MD 10% POE","MVA","Non-Coincident",0.17818306474934614]
["ED_MDU541_04535",null,null,null,null,"Coincident",0.11860607443151373]
["ED_MDU541_04536",null,null,"Weather Corrected MD 50% POE","MW","Non-Coincident",0.1497028878087551]
["ED_MDU541_04537",null,null,null,null,"Coincident",0.10431016668065639]
["ED_MDU541_04538",null,null,"Weather Corrected MD 50% POE","MVA","Non-Coincident",0.15670618282208393]
["ED_MDU541_04539",null,null,null,null,"Coincident",0.10431016668065639]
["ED_MDU541_04540",null,"Kanangra Dr","Substation Rating","MVA","Non-Coincident",60.500000000000007]
["ED_MDU541_04541",null,null,null,null,"Coincident",66]
["ED_MDU541_04542",null,null,"Raw Adjusted MD","MW","Non-Coincident",10.720000499999999]
["ED_MDU541_04543",null,null,null,null,"Coincident",9]
["ED_MDU541_04544",null,null,"Raw Adjusted MD","MVA","Non-Coincident",10.744152396536466]
["ED_MDU541_04545",null,null,null,null,"Coincident",9.0174053917964674]
["ED_MDU541_04546",null,null,"Date MD occurred",null,"Non-Coincident","2014-10-22"]
["ED_MDU541_04547",null,null,null,null,"Coincident","2014-07-10"]
["ED_MDU541_04548",null,null,"Half hour time period MD occurred",null,"Non-Coincident","18:00:00"]
["ED_MDU541_04549",null,null,null,null,"Coincident","18:30:00"]
["ED_MDU541_04550",null,null,"Winter/Summer Peaking",null,"Non-Coincident","Summer"]
["ED_MDU541_04551",null,null,null,null,"Coincident","Winter"]
["ED_MDU541_04552",null,null,"Adjustments - Embedded generation","MW","Non-Coincident",0]
["ED_MDU541_04553",null,null,null,null,"Coincident",0]
["ED_MDU541_04554",null,null,"Weather Corrected MD 10% POE","MW","Non-Coincident",10.442164034109988]
["ED_MDU541_04555",null,null,null,null,"Coincident",8.7667417839196826]
["ED_MDU541_04556",null,null,"Weather Corrected MD 10% POE","MVA","Non-Coincident",10.465689971946338]
["ED_MDU541_04557",null,null,null,null,"Coincident",8.7667417839196826]
["ED_MDU541_04558",null,null,"Weather Corrected MD 50% POE","MW","Non-Coincident",9.6593416841122544]
["ED_MDU541_04559",null,null,null,null,"Coincident",8.1095215580456639]
["ED_MDU541_04560",null,null,"Weather Corrected MD 50% POE","MVA","Non-Coincident",9.6811039425156071]
["ED_MDU541_04561",null,null,null,null,"Coincident",8.1095215580456639]
["ED_MDU541_04562",null,"Keepit Dam","Substation Rating","MVA","Non-Coincident",1.6500000000000001]
["ED_MDU541_04563",null,null,null,null,"Coincident",1.7999999999999998]
["ED_MDU541_04564",null,null,"Raw Adjusted MD","MW","Non-Coincident",0.185]
["ED_MDU541_04565",null,null,null,null,"Coincident",8.6400000000000005E-2]
["ED_MDU541_04566",null,null,"Raw Adjusted MD","MVA","Non-Coincident",0.20235859260234046]
["ED_MDU541_04567",null,null,null,null,"Coincident",8.6400000000000005E-2]
["ED_MDU541_04568",null,null,"Date MD occurred",null,"Non-Coincident","2015-01-25"]
["ED_MDU541_04569",null,null,null,null,"Coincident","2014-07-10"]
["ED_MDU541_04570",null,null,"Half hour time period MD occurred",null,"Non-Coincident","18:30:00"]
["ED_MDU541_04571",null,null,null,null,"Coincident","18:30:00"]
["ED_MDU541_04572",null,null,"Winter/Summer Peaking",null,"Non-Coincident","Summer"]
["ED_MDU541_04573",null,null,null,null,"Coincident","Winter"]
["ED_MDU541_04574",null,null,"Adjustments - Embedded generation","MW","Non-Coincident",0]
["ED_MDU541_04575",null,null,null,null,"Coincident",0]
["ED_MDU541_04576",null,null,"Weather Corrected MD 10% POE","MW","Non-Coincident",0.26181385248956313]
["ED_MDU541_04577",null,null,null,null,"Coincident",0.12227414516269326]
["ED_MDU541_04578",null,null,"Weather Corrected MD 10% POE","MVA","Non-Coincident",0.28637990655991769]
["ED_MDU541_04579",null,null,null,null,"Coincident",0.12227414516269326]
["ED_MDU541_04580",null,null,"Weather Corrected MD 50% POE","MW","Non-Coincident",0.22156938081604813]
["ED_MDU541_04581",null,null,null,null,"Coincident",0.10347888920273815]
["ED_MDU541_04582",null,null,"Weather Corrected MD 50% POE","MVA","Non-Coincident",0.24235928684166225]
["ED_MDU541_04583",null,null,null,null,"Coincident",0.10347888920273815]
["ED_MDU541_04584",null,"Kew","Substation Rating","MVA","Non-Coincident",15.6]
["ED_MDU541_04585",null,null,null,null,"Coincident",15.6]
["ED_MDU541_04586",null,null,"Raw Adjusted MD","MW","Non-Coincident",3.0699999332427979]
["ED_MDU541_04587",null,null,null,null,"Coincident",2.1616666316986084]
["ED_MDU541_04588",null,null,"Raw Adjusted MD","MVA","Non-Coincident",3.2262925406641685]
["ED_MDU541_04589",null,null,null,null,"Coincident",2.2086905059425068]
["ED_MDU541_04590",null,null,"Date MD occurred",null,"Non-Coincident","2014-07-18"]
["ED_MDU541_04591",null,null,null,null,"Coincident","2014-07-10"]
["ED_MDU541_04592",null,null,"Half hour time period MD occurred",null,"Non-Coincident","08:30:00"]
["ED_MDU541_04593",null,null,null,null,"Coincident","18:30:00"]
["ED_MDU541_04594",null,null,"Winter/Summer Peaking",null,"Non-Coincident","Winter"]
["ED_MDU541_04595",null,null,null,null,"Coincident","Winter"]
["ED_MDU541_04596",null,null,"Adjustments - Embedded generation","MW","Non-Coincident",0]
["ED_MDU541_04597",null,null,null,null,"Coincident",0]
["ED_MDU541_04598",null,null,"Weather Corrected MD 10% POE","MW","Non-Coincident",3.1627319754652423]
["ED_MDU541_04599",null,null,null,null,"Coincident",2.2269616693925625]
["ED_MDU541_04600",null,null,"Weather Corrected MD 10% POE","MVA","Non-Coincident",3.3237455382565191]
["ED_MDU541_04601",null,null,null,null,"Coincident",2.2269616693925625]
["ED_MDU541_04602",null,null,"Weather Corrected MD 50% POE","MW","Non-Coincident",2.9239524220821802]
["ED_MDU541_04603",null,null,null,null,"Coincident",2.0588307885769241]
["ED_MDU541_04604",null,null,"Weather Corrected MD 50% POE","MVA","Non-Coincident",3.0728098025253585]
["ED_MDU541_04605",null,null,null,null,"Coincident",2.0588307885769241]
["ED_MDU541_04606",null,"Koolkhan 11kV","Substation Rating","MVA","Non-Coincident",9]
["ED_MDU541_04607",null,null,null,null,"Coincident",9]
["ED_MDU541_04608",null,null,"Raw Adjusted MD","MW","Non-Coincident",2.2099999999999991]
["ED_MDU541_04609",null,null,null,null,"Coincident",1.2200000000000006]
["ED_MDU541_04610",null,null,"Raw Adjusted MD","MVA","Non-Coincident",2.2173181999884446]
["ED_MDU541_04611",null,null,null,null,"Coincident",1.5340469353966983]
["ED_MDU541_04612",null,null,"Date MD occurred",null,"Non-Coincident","2014-08-27"]
["ED_MDU541_04613",null,null,null,null,"Coincident","2014-07-10"]
["ED_MDU541_04614",null,null,"Half hour time period MD occurred",null,"Non-Coincident","14:30:00"]
["ED_MDU541_04615",null,null,null,null,"Coincident","18:30:00"]
["ED_MDU541_04616",null,null,"Winter/Summer Peaking",null,"Non-Coincident","Winter"]
["ED_MDU541_04617",null,null,null,null,"Coincident","Winter"]
["ED_MDU541_04618",null,null,"Adjustments - Embedded generation","MW","Non-Coincident",0]
["ED_MDU541_04619",null,null,null,null,"Coincident",0]
["ED_MDU541_04620",null,null,"Weather Corrected MD 10% POE","MW","Non-Coincident",2.0772561295571186]
["ED_MDU541_04621",null,null,null,null,"Coincident",1.1467205783075507]
["ED_MDU541_04622",null,null,"Weather Corrected MD 10% POE","MVA","Non-Coincident",2.0841347611332828]
["ED_MDU541_04623",null,null,null,null,"Coincident",1.1467205783075507]
["ED_MDU541_04624",null,null,"Weather Corrected MD 50% POE","MW","Non-Coincident",1.8541782984210291]
["ED_MDU541_04625",null,null,null,null,"Coincident",1.0235735403048223]
["ED_MDU541_04626",null,null,"Weather Corrected MD 50% POE","MVA","Non-Coincident",1.8603182294626945]
["ED_MDU541_04627",null,null,null,null,"Coincident",1.0235735403048223]
["ED_MDU541_04628",null,"Kooringal","Substation Rating","MVA","Non-Coincident",55.000000000000007]
["ED_MDU541_04629",null,null,null,null,"Coincident",60]
["ED_MDU541_04630",null,null,"Raw Adjusted MD","MW","Non-Coincident",15.237599999999999]
["ED_MDU541_04631",null,null,null,null,"Coincident",11.952]
["ED_MDU541_04632",null,null,"Raw Adjusted MD","MVA","Non-Coincident",15.931670194929342]
["ED_MDU541_04633",null,null,null,null,"Coincident",12.143484178768464]
["ED_MDU541_04634",null,null,"Date MD occurred",null,"Non-Coincident","2015-02-08"]
["ED_MDU541_04635",null,null,null,null,"Coincident","2014-07-10"]
["ED_MDU541_04636",null,null,"Half hour time period MD occurred",null,"Non-Coincident","18:00:00"]
["ED_MDU541_04637",null,null,null,null,"Coincident","18:30:00"]
["ED_MDU541_04638",null,null,"Winter/Summer Peaking",null,"Non-Coincident","Summer"]
["ED_MDU541_04639",null,null,null,null,"Coincident","Winter"]
["ED_MDU541_04640",null,null,"Adjustments - Embedded generation","MW","Non-Coincident",0]
["ED_MDU541_04641",null,null,null,null,"Coincident",0]
["ED_MDU541_04642",null,null,"Weather Corrected MD 10% POE","MW","Non-Coincident",17.223336709163291]
["ED_MDU541_04643",null,null,null,null,"Coincident",13.509563208636509]
["ED_MDU541_04644",null,null,"Weather Corrected MD 10% POE","MVA","Non-Coincident",18.007856887345071]
["ED_MDU541_04645",null,null,null,null,"Coincident",13.509563208636509]
["ED_MDU541_04646",null,null,"Weather Corrected MD 50% POE","MW","Non-Coincident",15.97123550133897]
["ED_MDU541_04647",null,null,null,null,"Coincident",12.527445707460714]
["ED_MDU541_04648",null,null,"Weather Corrected MD 50% POE","MVA","Non-Coincident",16.698722673707113]
["ED_MDU541_04649",null,null,null,null,"Coincident",12.527445707460714]
["ED_MDU541_04650",null,"Kootingal","Substation Rating","MVA","Non-Coincident",35.200000000000003]
["ED_MDU541_04651",null,null,null,null,"Coincident",38.4]
["ED_MDU541_04652",null,null,"Raw Adjusted MD","MW","Non-Coincident",5.91]
["ED_MDU541_04653",null,null,null,null,"Coincident",4.17]
["ED_MDU541_04654",null,null,"Raw Adjusted MD","MVA","Non-Coincident",6.1693597722940421]
["ED_MDU541_04655",null,null,null,null,"Coincident",4.2537630399447499]
["ED_MDU541_04656",null,null,"Date MD occurred",null,"Non-Coincident","2014-11-23"]
["ED_MDU541_04657",null,null,null,null,"Coincident","2014-07-10"]
["ED_MDU541_04658",null,null,"Half hour time period MD occurred",null,"Non-Coincident","18:00:00"]
["ED_MDU541_04659",null,null,null,null,"Coincident","18:30:00"]
["ED_MDU541_04660",null,null,"Winter/Summer Peaking",null,"Non-Coincident","Summer"]
["ED_MDU541_04661",null,null,null,null,"Coincident","Winter"]
["ED_MDU541_04662",null,null,"Adjustments - Embedded generation","MW","Non-Coincident",0]
["ED_MDU541_04663",null,null,null,null,"Coincident",0]
["ED_MDU541_04664",null,null,"Weather Corrected MD 10% POE","MW","Non-Coincident",4.9048329162227926]
["ED_MDU541_04665",null,null,null,null,"Coincident",3.4607704332739502]
["ED_MDU541_04666",null,null,"Weather Corrected MD 10% POE","MVA","Non-Coincident",5.120081029300942]
["ED_MDU541_04667",null,null,null,null,"Coincident",3.4607704332739502]
["ED_MDU541_04668",null,null,"Weather Corrected MD 50% POE","MW","Non-Coincident",4.5535946296524061]
["ED_MDU541_04669",null,null,null,null,"Coincident",3.2129424036633729]
["ED_MDU541_04670",null,null,"Weather Corrected MD 50% POE","MVA","Non-Coincident",4.7534286848581617]
["ED_MDU541_04671",null,null,null,null,"Coincident",3.2129424036633729]
["ED_MDU541_04672",null,"Koraleigh","Substation Rating","MVA","Non-Coincident",11]
["ED_MDU541_04673",null,null,null,null,"Coincident",12]
["ED_MDU541_04674",null,null,"Raw Adjusted MD","MW","Non-Coincident",3.8853599999999999]
["ED_MDU541_04675",null,null,null,null,"Coincident",1.7232000000000001]
["ED_MDU541_04676",null,null,"Raw Adjusted MD","MVA","Non-Coincident",4.0309387889175392]
["ED_MDU541_04677",null,null,null,null,"Coincident",1.7272408999326065]
["ED_MDU541_04678",null,null,"Date MD occurred",null,"Non-Coincident","2015-02-28"]
["ED_MDU541_04679",null,null,null,null,"Coincident","2014-07-10"]
["ED_MDU541_04680",null,null,"Half hour time period MD occurred",null,"Non-Coincident","18:30:00"]
["ED_MDU541_04681",null,null,null,null,"Coincident","18:30:00"]
["ED_MDU541_04682",null,null,"Winter/Summer Peaking",null,"Non-Coincident","Summer"]
["ED_MDU541_04683",null,null,null,null,"Coincident","Winter"]
["ED_MDU541_04684",null,null,"Adjustments - Embedded generation","MW","Non-Coincident",0]
["ED_MDU541_04685",null,null,null,null,"Coincident",0]
["ED_MDU541_04686",null,null,"Weather Corrected MD 10% POE","MW","Non-Coincident",3.7937242968467846]
["ED_MDU541_04687",null,null,null,null,"Coincident",1.6825585552757993]
["ED_MDU541_04688",null,null,"Weather Corrected MD 10% POE","MVA","Non-Coincident",3.9358696292283399]
["ED_MDU541_04689",null,null,null,null,"Coincident",1.6825585552757993]
["ED_MDU541_04690",null,null,"Weather Corrected MD 50% POE","MW","Non-Coincident",3.4781890328068563]
["ED_MDU541_04691",null,null,null,null,"Coincident",1.5426151865805937]
["ED_MDU541_04692",null,null,"Weather Corrected MD 50% POE","MVA","Non-Coincident",3.6085117177118047]
["ED_MDU541_04693",null,null,null,null,"Coincident",1.5426151865805937]
["ED_MDU541_04694",null,"Koree Island","Substation Rating","MVA","Non-Coincident",13.799999999999999]
["ED_MDU541_04695",null,null,null,null,"Coincident",13.799999999999999]
["ED_MDU541_04696",null,null,"Raw Adjusted MD","MW","Non-Coincident",1.4706001049041748]
["ED_MDU541_04697",null,null,null,null,"Coincident",1.3466666030883789]
["ED_MDU541_04698",null,null,"Raw Adjusted MD","MVA","Non-Coincident",1.4887824584019622]
["ED_MDU541_04699",null,null,null,null,"Coincident",1.353718929153964]
["ED_MDU541_04700",null,null,"Date MD occurred",null,"Non-Coincident","2014-08-06"]
["ED_MDU541_04701",null,null,null,null,"Coincident","2014-07-10"]
["ED_MDU541_04702",null,null,"Half hour time period MD occurred",null,"Non-Coincident","07:00:00"]
["ED_MDU541_04703",null,null,null,null,"Coincident","18:30:00"]
["ED_MDU541_04704",null,null,"Winter/Summer Peaking",null,"Non-Coincident","Winter"]
["ED_MDU541_04705",null,null,null,null,"Coincident","Winter"]
["ED_MDU541_04706",null,null,"Adjustments - Embedded generation","MW","Non-Coincident",0]
["ED_MDU541_04707",null,null,null,null,"Coincident",0]
["ED_MDU541_04708",null,null,"Weather Corrected MD 10% POE","MW","Non-Coincident",1.5539972323491251]
["ED_MDU541_04709",null,null,null,null,"Coincident",1.4230355125894005]
["ED_MDU541_04710",null,null,"Weather Corrected MD 10% POE","MVA","Non-Coincident",1.5732106996397428]
["ED_MDU541_04711",null,null,null,null,"Coincident",1.4230355125894005]
["ED_MDU541_04712",null,null,"Weather Corrected MD 50% POE","MW","Non-Coincident",1.4004177625590351]
["ED_MDU541_04713",null,null,null,null,"Coincident",1.2823988145525733]
["ED_MDU541_04714",null,null,"Weather Corrected MD 50% POE","MVA","Non-Coincident",1.4177323885532229]
["ED_MDU541_04715",null,null,null,null,"Coincident",1.2823988145525733]
["ED_MDU541_04716",null,"Kyogle","Substation Rating","MVA","Non-Coincident",22]
["ED_MDU541_04717",null,null,null,null,"Coincident",24]
["ED_MDU541_04718",null,null,"Raw Adjusted MD","MW","Non-Coincident",7.1280000000000001]
["ED_MDU541_04719",null,null,null,null,"Coincident",5.742]
["ED_MDU541_04720",null,null,"Raw Adjusted MD","MVA","Non-Coincident",7.6480303346678751]
["ED_MDU541_04721",null,null,null,null,"Coincident",5.8786192256345364]
["ED_MDU541_04722",null,null,"Date MD occurred",null,"Non-Coincident","2014-11-15"]
["ED_MDU541_04723",null,null,null,null,"Coincident","2014-07-10"]
["ED_MDU541_04724",null,null,"Half hour time period MD occurred",null,"Non-Coincident","18:00:00"]
["ED_MDU541_04725",null,null,null,null,"Coincident","18:30:00"]
["ED_MDU541_04726",null,null,"Winter/Summer Peaking",null,"Non-Coincident","Summer"]
["ED_MDU541_04727",null,null,null,null,"Coincident","Winter"]
["ED_MDU541_04728",null,null,"Adjustments - Embedded generation","MW","Non-Coincident",0]
["ED_MDU541_04729",null,null,null,null,"Coincident",0]
["ED_MDU541_04730",null,null,"Weather Corrected MD 10% POE","MW","Non-Coincident",6.9150115255224067]
["ED_MDU541_04731",null,null,null,null,"Coincident",5.5704259511152721]
["ED_MDU541_04732",null,null,"Weather Corrected MD 10% POE","MVA","Non-Coincident",7.419503074042276]
["ED_MDU541_04733",null,null,null,null,"Coincident",5.5704259511152721]
["ED_MDU541_04734",null,null,"Weather Corrected MD 50% POE","MW","Non-Coincident",6.3040871657773021]
["ED_MDU541_04735",null,null,null,null,"Coincident",5.0782924390983828]
["ED_MDU541_04736",null,null,"Weather Corrected MD 50% POE","MVA","Non-Coincident",6.7640081195644273]
["ED_MDU541_04737",null,null,null,null,"Coincident",5.0782924390983828]
["ED_MDU541_04738",null,"Kywong","Substation Rating","MVA","Non-Coincident",2.75]
["ED_MDU541_04739",null,null,null,null,"Coincident",3]
["ED_MDU541_04740",null,null,"Raw Adjusted MD","MW","Non-Coincident",0.33900000154972076]
["ED_MDU541_04741",null,null,null,null,"Coincident",5.3833331912755966E-2]
["ED_MDU541_04742",null,null,"Raw Adjusted MD","MVA","Non-Coincident",0.37110914848286669]
["ED_MDU541_04743",null,null,null,null,"Coincident",5.6504177455791144E-2]
["ED_MDU541_04744",null,null,"Date MD occurred",null,"Non-Coincident","2014-12-21"]
["ED_MDU541_04745",null,null,null,null,"Coincident","2014-07-10"]
["ED_MDU541_04746",null,null,"Half hour time period MD occurred",null,"Non-Coincident","17:00:00"]
["ED_MDU541_04747",null,null,null,null,"Coincident","18:30:00"]
["ED_MDU541_04748",null,null,"Winter/Summer Peaking",null,"Non-Coincident","Summer"]
["ED_MDU541_04749",null,null,null,null,"Coincident","Winter"]
["ED_MDU541_04750",null,null,"Adjustments - Embedded generation","MW","Non-Coincident",0]
["ED_MDU541_04751",null,null,null,null,"Coincident",0]
["ED_MDU541_04752",null,null,"Weather Corrected MD 10% POE","MW","Non-Coincident",0.27908826449429003]
["ED_MDU541_04753",null,null,null,null,"Coincident",4.4319324798801067E-2]
["ED_MDU541_04754",null,null,"Weather Corrected MD 10% POE","MVA","Non-Coincident",0.30552273662112722]
["ED_MDU541_04755",null,null,null,null,"Coincident",4.4319324798801067E-2]
["ED_MDU541_04756",null,null,"Weather Corrected MD 50% POE","MW","Non-Coincident",0.22277575755780321]
["ED_MDU541_04757",null,null,null,null,"Coincident",3.5376876825665468E-2]
["ED_MDU541_04758",null,null,"Weather Corrected MD 50% POE","MVA","Non-Coincident",0.24387646404708402]
["ED_MDU541_04759",null,null,null,null,"Coincident",3.5376876825665468E-2]
["ED_MDU541_04760",null,"Lake Cargelligo","Substation Rating","MVA","Non-Coincident",16.5]
["ED_MDU541_04761",null,null,null,null,"Coincident",18]
["ED_MDU541_04762",null,null,"Raw Adjusted MD","MW","Non-Coincident",3.2508000000000004]
["ED_MDU541_04763",null,null,null,null,"Coincident",2.2571999999999997]
["ED_MDU541_04764",null,null,"Raw Adjusted MD","MVA","Non-Coincident",3.2808188733912149]
["ED_MDU541_04765",null,null,null,null,"Coincident",2.5974392928420866]
["ED_MDU541_04766",null,null,"Date MD occurred",null,"Non-Coincident","2015-02-10"]
["ED_MDU541_04767",null,null,null,null,"Coincident","2014-07-10"]
["ED_MDU541_04768",null,null,"Half hour time period MD occurred",null,"Non-Coincident","18:00:00"]
["ED_MDU541_04769",null,null,null,null,"Coincident","18:30:00"]
["ED_MDU541_04770",null,null,"Winter/Summer Peaking",null,"Non-Coincident","Summer"]
["ED_MDU541_04771",null,null,null,null,"Coincident","Winter"]
["ED_MDU541_04772",null,null,"Adjustments - Embedded generation","MW","Non-Coincident",2.0788000000000001E-2]
["ED_MDU541_04773",null,null,null,null,"Coincident",1.635E-2]
["ED_MDU541_04774",null,null,"Weather Corrected MD 10% POE","MW","Non-Coincident",3.3184367226380074]
["ED_MDU541_04775",null,null,null,null,"Coincident",2.3041637044230674]
["ED_MDU541_04776",null,null,"Weather Corrected MD 10% POE","MVA","Non-Coincident",3.3490801740449307]
["ED_MDU541_04777",null,null,null,null,"Coincident",2.3041637044230674]
["ED_MDU541_04778",null,null,"Weather Corrected MD 50% POE","MW","Non-Coincident",3.0197207992256652]
["ED_MDU541_04779",null,null,null,null,"Coincident",2.0967496579340992]
["ED_MDU541_04780",null,null,"Weather Corrected MD 50% POE","MVA","Non-Coincident",3.0476058171747153]
["ED_MDU541_04781",null,null,null,null,"Coincident",2.0967496579340992]
["ED_MDU541_04782",null,"Lake Cathie","Substation Rating","MVA","Non-Coincident",25.2]
["ED_MDU541_04783",null,null,null,null,"Coincident",25.2]
["ED_MDU541_04784",null,null,"Raw Adjusted MD","MW","Non-Coincident",4.6979999244213104]
["ED_MDU541_04785",null,null,null,null,"Coincident",4.6979999244213104]
["ED_MDU541_04786",null,null,"Raw Adjusted MD","MVA","Non-Coincident",4.7702571046031963]
["ED_MDU541_04787",null,null,null,null,"Coincident",4.7702571046031963]
["ED_MDU541_04788",null,null,"Date MD occurred",null,"Non-Coincident","2014-07-10"]
["ED_MDU541_04789",null,null,null,null,"Coincident","2014-07-10"]
["ED_MDU541_04790",null,null,"Half hour time period MD occurred",null,"Non-Coincident","18:30:00"]
["ED_MDU541_04791",null,null,null,null,"Coincident","18:30:00"]
["ED_MDU541_04792",null,null,"Winter/Summer Peaking",null,"Non-Coincident","Winter"]
["ED_MDU541_04793",null,null,null,null,"Coincident","Winter"]
["ED_MDU541_04794",null,null,"Adjustments - Embedded generation","MW","Non-Coincident",0]
["ED_MDU541_04795",null,null,null,null,"Coincident",0]
["ED_MDU541_04796",null,null,"Weather Corrected MD 10% POE","MW","Non-Coincident",5.1505670077686023]
["ED_MDU541_04797",null,null,null,null,"Coincident",5.1505670077686023]
["ED_MDU541_04798",null,null,"Weather Corrected MD 10% POE","MVA","Non-Coincident",5.2297848567056811]
["ED_MDU541_04799",null,null,null,null,"Coincident",5.1505670077686023]
["ED_MDU541_04800",null,null,"Weather Corrected MD 50% POE","MW","Non-Coincident",4.8127397674274937]
["ED_MDU541_04801",null,null,null,null,"Coincident",4.8127397674274937]
["ED_MDU541_04802",null,null,"Weather Corrected MD 50% POE","MVA","Non-Coincident",4.886761693808511]
["ED_MDU541_04803",null,null,null,null,"Coincident",4.8127397674274937]
["ED_MDU541_04804",null,"Laurieton","Substation Rating","MVA","Non-Coincident",48]
["ED_MDU541_04805",null,null,null,null,"Coincident",48]
["ED_MDU541_04806",null,null,"Raw Adjusted MD","MW","Non-Coincident",6.9266667366027832]
["ED_MDU541_04807",null,null,null,null,"Coincident",6.880000114440918]
["ED_MDU541_04808",null,null,"Raw Adjusted MD","MVA","Non-Coincident",7.0347363069626994]
["ED_MDU541_04809",null,null,null,null,"Coincident",6.9989732453356357]
["ED_MDU541_04810",null,null,"Date MD occurred",null,"Non-Coincident","2014-07-20"]
["ED_MDU541_04811",null,null,null,null,"Coincident","2014-07-10"]
["ED_MDU541_04812",null,null,"Half hour time period MD occurred",null,"Non-Coincident","18:00:00"]
["ED_MDU541_04813",null,null,null,null,"Coincident","18:30:00"]
["ED_MDU541_04814",null,null,"Winter/Summer Peaking",null,"Non-Coincident","Winter"]
["ED_MDU541_04815",null,null,null,null,"Coincident","Winter"]
["ED_MDU541_04816",null,null,"Adjustments - Embedded generation","MW","Non-Coincident",0]
["ED_MDU541_04817",null,null,null,null,"Coincident",0]
["ED_MDU541_04818",null,null,"Weather Corrected MD 10% POE","MW","Non-Coincident",7.4368720436796574]
["ED_MDU541_04819",null,null,null,null,"Coincident",7.3867680454759341]
["ED_MDU541_04820",null,null,"Weather Corrected MD 10% POE","MVA","Non-Coincident",7.5529018163169228]
["ED_MDU541_04821",null,null,null,null,"Coincident",7.3867680454759341]
["ED_MDU541_04822",null,null,"Weather Corrected MD 50% POE","MW","Non-Coincident",6.9825063342724727]
["ED_MDU541_04823",null,null,null,null,"Coincident",6.935463507291578]
["ED_MDU541_04824",null,null,"Weather Corrected MD 50% POE","MVA","Non-Coincident",7.091447111745234]
["ED_MDU541_04825",null,null,null,null,"Coincident",6.935463507291578]
["ED_MDU541_04826",null,"Leeton","Substation Rating","MVA","Non-Coincident",55.000000000000007]
["ED_MDU541_04827",null,null,null,null,"Coincident",60]
["ED_MDU541_04828",null,null,"Raw Adjusted MD","MW","Non-Coincident",17.7]
["ED_MDU541_04829",null,null,null,null,"Coincident",11.616]
["ED_MDU541_04830",null,null,"Raw Adjusted MD","MVA","Non-Coincident",18.977821687432936]
["ED_MDU541_04831",null,null,null,null,"Coincident",12.075655510157615]
["ED_MDU541_04832",null,null,"Date MD occurred",null,"Non-Coincident","2015-02-10"]
["ED_MDU541_04833",null,null,null,null,"Coincident","2014-07-10"]
["ED_MDU541_04834",null,null,"Half hour time period MD occurred",null,"Non-Coincident","18:00:00"]
["ED_MDU541_04835",null,null,null,null,"Coincident","18:30:00"]
["ED_MDU541_04836",null,null,"Winter/Summer Peaking",null,"Non-Coincident","Summer"]
["ED_MDU541_04837",null,null,null,null,"Coincident","Winter"]
["ED_MDU541_04838",null,null,"Adjustments - Embedded generation","MW","Non-Coincident",0]
["ED_MDU541_04839",null,null,null,null,"Coincident",0]
["ED_MDU541_04840",null,null,"Weather Corrected MD 10% POE","MW","Non-Coincident",19.631282833361286]
["ED_MDU541_04841",null,null,null,null,"Coincident",12.883445276402526]
["ED_MDU541_04842",null,null,"Weather Corrected MD 10% POE","MVA","Non-Coincident",21.048530232039194]
["ED_MDU541_04843",null,null,null,null,"Coincident",12.883445276402526]
["ED_MDU541_04844",null,null,"Weather Corrected MD 50% POE","MW","Non-Coincident",17.934300865505751]
["ED_MDU541_04845",null,null,null,null,"Coincident",11.769764906989536]
["ED_MDU541_04846",null,null,"Weather Corrected MD 50% POE","MVA","Non-Coincident",19.229037509284876]
["ED_MDU541_04847",null,null,null,null,"Coincident",11.769764906989536]
["ED_MDU541_04848",null,"Lennox Head","Substation Rating","MVA","Non-Coincident",38.4]
["ED_MDU541_04849",null,null,null,null,"Coincident",38.4]
["ED_MDU541_04850",null,null,"Raw Adjusted MD","MW","Non-Coincident",4.524]
["ED_MDU541_04851",null,null,null,null,"Coincident",4.008]
["ED_MDU541_04852",null,null,"Raw Adjusted MD","MVA","Non-Coincident",4.5288713825852902]
["ED_MDU541_04853",null,null,null,null,"Coincident",4.0151791989897534]
["ED_MDU541_04854",null,null,"Date MD occurred",null,"Non-Coincident","2014-06-10"]
["ED_MDU541_04855",null,null,null,null,"Coincident","2014-07-10"]
["ED_MDU541_04856",null,null,"Half hour time period MD occurred",null,"Non-Coincident","18:30:00"]
["ED_MDU541_04857",null,null,null,null,"Coincident","18:30:00"]
["ED_MDU541_04858",null,null,"Winter/Summer Peaking",null,"Non-Coincident","Winter"]
["ED_MDU541_04859",null,null,null,null,"Coincident","Winter"]
["ED_MDU541_04860",null,null,"Adjustments - Embedded generation","MW","Non-Coincident",0]
["ED_MDU541_04861",null,null,null,null,"Coincident",0]
["ED_MDU541_04862",null,null,"Weather Corrected MD 10% POE","MW","Non-Coincident",5.1707161740445624]
["ED_MDU541_04863",null,null,null,null,"Coincident",4.5809527907981007]
["ED_MDU541_04864",null,null,"Weather Corrected MD 10% POE","MVA","Non-Coincident",5.1762839319410521]
["ED_MDU541_04865",null,null,null,null,"Coincident",4.5809527907981007]
["ED_MDU541_04866",null,null,"Weather Corrected MD 50% POE","MW","Non-Coincident",4.9366678577340108]
["ED_MDU541_04867",null,null,null,null,"Coincident",4.3735996405388855]
["ED_MDU541_04868",null,null,"Weather Corrected MD 50% POE","MVA","Non-Coincident",4.9419835955393889]
["ED_MDU541_04869",null,null,null,null,"Coincident",4.3735996405388855]
["ED_MDU541_04870",null,"Lightning Ridge","Substation Rating","MVA","Non-Coincident",14.3]
["ED_MDU541_04871",null,null,null,null,"Coincident",15.6]
["ED_MDU541_04872",null,null,"Raw Adjusted MD","MW","Non-Coincident",3.0671999999999997]
["ED_MDU541_04873",null,null,null,null,"Coincident",2.448]
["ED_MDU541_04874",null,null,"Raw Adjusted MD","MVA","Non-Coincident",3.1037929827873505]
["ED_MDU541_04875",null,null,null,null,"Coincident",2.448]
["ED_MDU541_04876",null,null,"Date MD occurred",null,"Non-Coincident","2014-11-24"]
["ED_MDU541_04877",null,null,null,null,"Coincident","2014-07-10"]
["ED_MDU541_04878",null,null,"Half hour time period MD occurred",null,"Non-Coincident","15:30:00"]
["ED_MDU541_04879",null,null,null,null,"Coincident","18:30:00"]
["ED_MDU541_04880",null,null,"Winter/Summer Peaking",null,"Non-Coincident","Summer"]
["ED_MDU541_04881",null,null,null,null,"Coincident","Winter"]
["ED_MDU541_04882",null,null,"Adjustments - Embedded generation","MW","Non-Coincident",0]
["ED_MDU541_04883",null,null,null,null,"Coincident",0]
["ED_MDU541_04884",null,null,"Weather Corrected MD 10% POE","MW","Non-Coincident",3.1590118780708907]
["ED_MDU541_04885",null,null,null,null,"Coincident",2.5212770857842792]
["ED_MDU541_04886",null,null,"Weather Corrected MD 10% POE","MVA","Non-Coincident",3.196700215081612]
["ED_MDU541_04887",null,null,null,null,"Coincident",2.5212770857842792]
["ED_MDU541_04888",null,null,"Weather Corrected MD 50% POE","MW","Non-Coincident",2.8709536428767342]
["ED_MDU541_04889",null,null,null,null,"Coincident",2.2913714520612434]
["ED_MDU541_04890",null,null,"Weather Corrected MD 50% POE","MVA","Non-Coincident",2.9052053242920541]
["ED_MDU541_04891",null,null,null,null,"Coincident",2.2913714520612434]
["ED_MDU541_04892",null,"Lismore East","Substation Rating","MVA","Non-Coincident",57.599999999999994]
["ED_MDU541_04893",null,null,null,null,"Coincident",57.599999999999994]
["ED_MDU541_04894",null,null,"Raw Adjusted MD","MW","Non-Coincident",12.25]
["ED_MDU541_04895",null,null,null,null,"Coincident",10]
["ED_MDU541_04896",null,null,"Raw Adjusted MD","MVA","Non-Coincident",12.37295841745215]
["ED_MDU541_04897",null,null,null,null,"Coincident",10.079067417177049]
["ED_MDU541_04898",null,null,"Date MD occurred",null,"Non-Coincident","2014-07-20"]
["ED_MDU541_04899",null,null,null,null,"Coincident","2014-07-10"]
["ED_MDU541_04900",null,null,"Half hour time period MD occurred",null,"Non-Coincident","18:30:00"]
["ED_MDU541_04901",null,null,null,null,"Coincident","18:30:00"]
["ED_MDU541_04902",null,null,"Winter/Summer Peaking",null,"Non-Coincident","Winter"]
["ED_MDU541_04903",null,null,null,null,"Coincident","Winter"]
["ED_MDU541_04904",null,null,"Adjustments - Embedded generation","MW","Non-Coincident",0]
["ED_MDU541_04905",null,null,null,null,"Coincident",0]
["ED_MDU541_04906",null,null,"Weather Corrected MD 10% POE","MW","Non-Coincident",12.685559384782051]
["ED_MDU541_04907",null,null,null,null,"Coincident",10.355558681454736]
["ED_MDU541_04908",null,null,"Weather Corrected MD 10% POE","MVA","Non-Coincident",12.812889695512505]
["ED_MDU541_04909",null,null,null,null,"Coincident",10.355558681454736]
["ED_MDU541_04910",null,null,"Weather Corrected MD 50% POE","MW","Non-Coincident",11.500323845995124]
["ED_MDU541_04911",null,null,null,null,"Coincident",9.3880194661184699]
["ED_MDU541_04912",null,null,"Weather Corrected MD 50% POE","MVA","Non-Coincident",11.615757447651514]
["ED_MDU541_04913",null,null,null,null,"Coincident",9.3880194661184699]
["ED_MDU541_04914",null,"Lismore South","Substation Rating","MVA","Non-Coincident",80.300000000000011]
["ED_MDU541_04915",null,null,null,null,"Coincident",87.6]
["ED_MDU541_04916",null,null,"Raw Adjusted MD","MW","Non-Coincident",22.038]
["ED_MDU541_04917",null,null,null,null,"Coincident",13.266]
["ED_MDU541_04918",null,null,"Raw Adjusted MD","MVA","Non-Coincident",22.064447511777857]
["ED_MDU541_04919",null,null,null,null,"Coincident",13.276985953144637]
["ED_MDU541_04920",null,null,"Date MD occurred",null,"Non-Coincident","2014-11-24"]
["ED_MDU541_04921",null,null,null,null,"Coincident","2014-07-10"]
["ED_MDU541_04922",null,null,"Half hour time period MD occurred",null,"Non-Coincident","14:00:00"]
["ED_MDU541_04923",null,null,null,null,"Coincident","18:30:00"]
["ED_MDU541_04924",null,null,"Winter/Summer Peaking",null,"Non-Coincident","Summer"]
["ED_MDU541_04925",null,null,null,null,"Coincident","Winter"]
["ED_MDU541_04926",null,null,"Adjustments - Embedded generation","MW","Non-Coincident",0]
["ED_MDU541_04927",null,null,null,null,"Coincident",0]
["ED_MDU541_04928",null,null,"Weather Corrected MD 10% POE","MW","Non-Coincident",22.959552279009134]
["ED_MDU541_04929",null,null,null,null,"Coincident",13.820737840699481]
["ED_MDU541_04930",null,null,"Weather Corrected MD 10% POE","MVA","Non-Coincident",22.987105733465679]
["ED_MDU541_04931",null,null,null,null,"Coincident",13.820737840699481]
["ED_MDU541_04932",null,null,"Weather Corrected MD 50% POE","MW","Non-Coincident",20.07699186815714]
["ED_MDU541_04933",null,null,null,null,"Coincident",12.085551053769517]
["ED_MDU541_04934",null,null,"Weather Corrected MD 50% POE","MVA","Non-Coincident",20.101086000060988]
["ED_MDU541_04935",null,null,null,null,"Coincident",12.085551053769517]
["ED_MDU541_04936",null,"Lismore Uni","Substation Rating","MVA","Non-Coincident",66]
["ED_MDU541_04937",null,null,null,null,"Coincident",72]
["ED_MDU541_04938",null,null,"Raw Adjusted MD","MW","Non-Coincident",15.717000000000001]
["ED_MDU541_04939",null,null,null,null,"Coincident",12.129]
["ED_MDU541_04940",null,null,"Raw Adjusted MD","MVA","Non-Coincident",16.118015324474658]
["ED_MDU541_04941",null,null,null,null,"Coincident",12.215602523003112]
["ED_MDU541_04942",null,null,"Date MD occurred",null,"Non-Coincident","2015-03-05"]
["ED_MDU541_04943",null,null,null,null,"Coincident","2014-07-10"]
["ED_MDU541_04944",null,null,"Half hour time period MD occurred",null,"Non-Coincident","15:30:00"]
["ED_MDU541_04945",null,null,null,null,"Coincident","18:30:00"]
["ED_MDU541_04946",null,null,"Winter/Summer Peaking",null,"Non-Coincident","Summer"]
["ED_MDU541_04947",null,null,null,null,"Coincident","Winter"]
["ED_MDU541_04948",null,null,"Adjustments - Embedded generation","MW","Non-Coincident",0]
["ED_MDU541_04949",null,null,null,null,"Coincident",0]
["ED_MDU541_04950",null,null,"Weather Corrected MD 10% POE","MW","Non-Coincident",16.315698721904969]
["ED_MDU541_04951",null,null,null,null,"Coincident",12.591023083157431]
["ED_MDU541_04952",null,null,"Weather Corrected MD 10% POE","MVA","Non-Coincident",16.731989694545771]
["ED_MDU541_04953",null,null,null,null,"Coincident",12.591023083157431]
["ED_MDU541_04954",null,null,"Weather Corrected MD 50% POE","MW","Non-Coincident",15.097891970253116]
["ED_MDU541_04955",null,null,null,null,"Coincident",11.651226805828086]
["ED_MDU541_04956",null,null,"Weather Corrected MD 50% POE","MVA","Non-Coincident",15.483110908176027]
["ED_MDU541_04957",null,null,null,null,"Coincident",11.651226805828086]
["ED_MDU541_04958",null,"Lockhart","Substation Rating","MVA","Non-Coincident",15.6]
["ED_MDU541_04959",null,null,null,null,"Coincident",15.6]
["ED_MDU541_04960",null,null,"Raw Adjusted MD","MW","Non-Coincident",3.4163999999999999]
["ED_MDU541_04961",null,null,null,null,"Coincident",2.0511000000000004]
["ED_MDU541_04962",null,null,"Raw Adjusted MD","MVA","Non-Coincident",3.4342916256485849]
["ED_MDU541_04963",null,null,null,null,"Coincident",2.1078916504412657]
["ED_MDU541_04964",null,null,"Date MD occurred",null,"Non-Coincident","2014-08-06"]
["ED_MDU541_04965",null,null,null,null,"Coincident","2014-07-10"]
["ED_MDU541_04966",null,null,"Half hour time period MD occurred",null,"Non-Coincident","09:00:00"]
["ED_MDU541_04967",null,null,null,null,"Coincident","18:30:00"]
["ED_MDU541_04968",null,null,"Winter/Summer Peaking",null,"Non-Coincident","Winter"]
["ED_MDU541_04969",null,null,null,null,"Coincident","Winter"]
["ED_MDU541_04970",null,null,"Adjustments - Embedded generation","MW","Non-Coincident",0]
["ED_MDU541_04971",null,null,null,null,"Coincident",0]
["ED_MDU541_04972",null,null,"Weather Corrected MD 10% POE","MW","Non-Coincident",2.7899738514882526]
["ED_MDU541_04973",null,null,null,null,"Coincident",1.6750132791205821]
["ED_MDU541_04974",null,null,"Weather Corrected MD 10% POE","MVA","Non-Coincident",2.8045848946097167]
["ED_MDU541_04975",null,null,null,null,"Coincident",1.6750132791205821]
["ED_MDU541_04976",null,null,"Weather Corrected MD 50% POE","MW","Non-Coincident",2.5280681702307488]
["ED_MDU541_04977",null,null,null,null,"Coincident",1.5177732771222019]
["ED_MDU541_04978",null,null,"Weather Corrected MD 50% POE","MVA","Non-Coincident",2.5413076179874143]
["ED_MDU541_04979",null,null,null,null,"Coincident",1.5177732771222019]
["ED_MDU541_04980",null,"Macksville","Substation Rating","MVA","Non-Coincident",72]
["ED_MDU541_04981",null,null,null,null,"Coincident",72]
["ED_MDU541_04982",null,null,"Raw Adjusted MD","MW","Non-Coincident",8.94]
["ED_MDU541_04983",null,null,null,null,"Coincident",8.92]
["ED_MDU541_04984",null,null,"Raw Adjusted MD","MVA","Non-Coincident",9.0649655266856914]
["ED_MDU541_04985",null,null,null,null,"Coincident",9.0230815135407045]
["ED_MDU541_04986",null,null,"Date MD occurred",null,"Non-Coincident","2014-08-13"]
["ED_MDU541_04987",null,null,null,null,"Coincident","2014-07-10"]
["ED_MDU541_04988",null,null,"Half hour time period MD occurred",null,"Non-Coincident","18:30:00"]
["ED_MDU541_04989",null,null,null,null,"Coincident","18:30:00"]
["ED_MDU541_04990",null,null,"Winter/Summer Peaking",null,"Non-Coincident","Winter"]
["ED_MDU541_04991",null,null,null,null,"Coincident","Winter"]
["ED_MDU541_04992",null,null,"Adjustments - Embedded generation","MW","Non-Coincident",0]
["ED_MDU541_04993",null,null,null,null,"Coincident",0]
["ED_MDU541_04994",null,null,"Weather Corrected MD 10% POE","MW","Non-Coincident",9.8201503593747912]
["ED_MDU541_04995",null,null,null,null,"Coincident",9.7981813429108655]
["ED_MDU541_04996",null,null,"Weather Corrected MD 10% POE","MVA","Non-Coincident",9.9574188450338479]
["ED_MDU541_04997",null,null,null,null,"Coincident",9.7981813429108655]
["ED_MDU541_04998",null,null,"Weather Corrected MD 50% POE","MW","Non-Coincident",9.2910489334901971]
["ED_MDU541_04999",null,null,null,null,"Coincident",9.2702635891199741]
["ED_MDU541_05000",null,null,"Weather Corrected MD 50% POE","MVA","Non-Coincident",9.4209215088186244]
["ED_MDU541_05001",null,null,null,null,"Coincident",9.2702635891199741]
["ED_MDU541_05002",null,"Maclean 66/11kV","Substation Rating","MVA","Non-Coincident",35.200000000000003]
["ED_MDU541_05003",null,null,null,null,"Coincident",38.4]
["ED_MDU541_05004",null,null,"Raw Adjusted MD","MW","Non-Coincident",8.3520000000000003]
["ED_MDU541_05005",null,null,null,null,"Coincident",7.08]
["ED_MDU541_05006",null,null,"Raw Adjusted MD","MVA","Non-Coincident",8.3554475643139536]
["ED_MDU541_05007",null,null,null,null,"Coincident",7.1731097858599648]
["ED_MDU541_05008",null,null,"Date MD occurred",null,"Non-Coincident","2015-01-18"]
["ED_MDU541_05009",null,null,null,null,"Coincident","2014-07-10"]
["ED_MDU541_05010",null,null,"Half hour time period MD occurred",null,"Non-Coincident","17:30:00"]
["ED_MDU541_05011",null,null,null,null,"Coincident","18:30:00"]
["ED_MDU541_05012",null,null,"Winter/Summer Peaking",null,"Non-Coincident","Summer"]
["ED_MDU541_05013",null,null,null,null,"Coincident","Winter"]
["ED_MDU541_05014",null,null,"Adjustments - Embedded generation","MW","Non-Coincident",0.85599999999999998]
["ED_MDU541_05015",null,null,null,null,"Coincident",0.59599999999999997]
["ED_MDU541_05016",null,null,"Weather Corrected MD 10% POE","MW","Non-Coincident",7.6033173049242126]
["ED_MDU541_05017",null,null,null,null,"Coincident",6.4453408188294325]
["ED_MDU541_05018",null,null,"Weather Corrected MD 10% POE","MVA","Non-Coincident",7.6064558256866786]
["ED_MDU541_05019",null,null,null,null,"Coincident",6.4453408188294325]
["ED_MDU541_05020",null,null,"Weather Corrected MD 50% POE","MW","Non-Coincident",6.7316765196297128]
["ED_MDU541_05021",null,null,null,null,"Coincident",5.7064499232493251]
["ED_MDU541_05022",null,null,"Weather Corrected MD 50% POE","MVA","Non-Coincident",6.7344552418210624]
["ED_MDU541_05023",null,null,null,null,"Coincident",5.7064499232493251]
["ED_MDU541_05024",null,"Madgwick Dr","Substation Rating","MVA","Non-Coincident",34.199999999999996]
["ED_MDU541_05025",null,null,null,null,"Coincident",34.199999999999996]
["ED_MDU541_05026",null,null,"Raw Adjusted MD","MW","Non-Coincident",10.08]
["ED_MDU541_05027",null,null,null,null,"Coincident",9.7919999999999998]
["ED_MDU541_05028",null,null,"Raw Adjusted MD","MVA","Non-Coincident",10.172405025361504]
["ED_MDU541_05029",null,null,null,null,"Coincident",9.877392368434089]
["ED_MDU541_05030",null,null,"Date MD occurred",null,"Non-Coincident","2014-06-30"]
["ED_MDU541_05031",null,null,null,null,"Coincident","2014-07-10"]
["ED_MDU541_05032",null,null,"Half hour time period MD occurred",null,"Non-Coincident","18:30:00"]
["ED_MDU541_05033",null,null,null,null,"Coincident","18:30:00"]
["ED_MDU541_05034",null,null,"Winter/Summer Peaking",null,"Non-Coincident","Winter"]
["ED_MDU541_05035",null,null,null,null,"Coincident","Winter"]
["ED_MDU541_05036",null,null,"Adjustments - Embedded generation","MW","Non-Coincident",0]
["ED_MDU541_05037",null,null,null,null,"Coincident",0]
["ED_MDU541_05038",null,null,"Weather Corrected MD 10% POE","MW","Non-Coincident",10.561492842880698]
["ED_MDU541_05039",null,null,null,null,"Coincident",10.259735904512677]
["ED_MDU541_05040",null,null,"Weather Corrected MD 10% POE","MVA","Non-Coincident",10.658311792682458]
["ED_MDU541_05041",null,null,null,null,"Coincident",10.259735904512677]
["ED_MDU541_05042",null,null,"Weather Corrected MD 50% POE","MW","Non-Coincident",10.008141835486391]
["ED_MDU541_05043",null,null,null,null,"Coincident",9.722194925901066]
["ED_MDU541_05044",null,null,"Weather Corrected MD 50% POE","MVA","Non-Coincident",10.099888125181794]
["ED_MDU541_05045",null,null,null,null,"Coincident",9.722194925901066]
["ED_MDU541_05046",null,"Maher Street","Substation Rating","MVA","Non-Coincident",72]
["ED_MDU541_05047",null,null,null,null,"Coincident",72]
["ED_MDU541_05048",null,null,"Raw Adjusted MD","MW","Non-Coincident",13.32]
["ED_MDU541_05049",null,null,null,null,"Coincident",11.654999999999999]
["ED_MDU541_05050",null,null,"Raw Adjusted MD","MVA","Non-Coincident",13.479885014346378]
["ED_MDU541_05051",null,null,null,null,"Coincident",11.770167001788886]
["ED_MDU541_05052",null,null,"Date MD occurred",null,"Non-Coincident","2014-08-13"]
["ED_MDU541_05053",null,null,null,null,"Coincident","2014-07-10"]
["ED_MDU541_05054",null,null,"Half hour time period MD occurred",null,"Non-Coincident","18:30:00"]
["ED_MDU541_05055",null,null,null,null,"Coincident","18:30:00"]
["ED_MDU541_05056",null,null,"Winter/Summer Peaking",null,"Non-Coincident","Winter"]
["ED_MDU541_05057",null,null,null,null,"Coincident","Winter"]
["ED_MDU541_05058",null,null,"Adjustments - Embedded generation","MW","Non-Coincident",0]
["ED_MDU541_05059",null,null,null,null,"Coincident",0]
["ED_MDU541_05060",null,null,"Weather Corrected MD 10% POE","MW","Non-Coincident",13.478996113281516]
["ED_MDU541_05061",null,null,null,null,"Coincident",11.794121599121326]
["ED_MDU541_05062",null,null,"Weather Corrected MD 10% POE","MVA","Non-Coincident",13.640789618307551]
["ED_MDU541_05063",null,null,null,null,"Coincident",11.794121599121326]
["ED_MDU541_05064",null,null,"Weather Corrected MD 50% POE","MW","Non-Coincident",12.705708676816297]
["ED_MDU541_05065",null,null,null,null,"Coincident",11.117495092214257]
["ED_MDU541_05066",null,null,"Weather Corrected MD 50% POE","MVA","Non-Coincident",12.85822011931432]
["ED_MDU541_05067",null,null,null,null,"Coincident",11.117495092214257]
["ED_MDU541_05068",null,"Mallanganee","Substation Rating","MVA","Non-Coincident",12.6]
["ED_MDU541_05069",null,null,null,null,"Coincident",12.6]
["ED_MDU541_05070",null,null,"Raw Adjusted MD","MW","Non-Coincident",1.2916666269302368]
["ED_MDU541_05071",null,null,null,null,"Coincident",1.2916666269302368]
["ED_MDU541_05072",null,null,"Raw Adjusted MD","MVA","Non-Coincident",1.3007358636900328]
["ED_MDU541_05073",null,null,null,null,"Coincident",1.3007358636900328]
["ED_MDU541_05074",null,null,"Date MD occurred",null,"Non-Coincident","2014-07-10"]
["ED_MDU541_05075",null,null,null,null,"Coincident","2014-07-10"]
["ED_MDU541_05076",null,null,"Half hour time period MD occurred",null,"Non-Coincident","18:30:00"]
["ED_MDU541_05077",null,null,null,null,"Coincident","18:30:00"]
["ED_MDU541_05078",null,null,"Winter/Summer Peaking",null,"Non-Coincident","Winter"]
["ED_MDU541_05079",null,null,null,null,"Coincident","Winter"]
["ED_MDU541_05080",null,null,"Adjustments - Embedded generation","MW","Non-Coincident",0]
["ED_MDU541_05081",null,null,null,null,"Coincident",0]
["ED_MDU541_05082",null,null,"Weather Corrected MD 10% POE","MW","Non-Coincident",1.2620126714975155]
["ED_MDU541_05083",null,null,null,null,"Coincident",1.2620126714975155]
["ED_MDU541_05084",null,null,"Weather Corrected MD 10% POE","MVA","Non-Coincident",1.270873697611409]
["ED_MDU541_05085",null,null,null,null,"Coincident",1.2620126714975155]
["ED_MDU541_05086",null,null,"Weather Corrected MD 50% POE","MW","Non-Coincident",1.1622334629702231]
["ED_MDU541_05087",null,null,null,null,"Coincident",1.1622334629702231]
["ED_MDU541_05088",null,null,"Weather Corrected MD 50% POE","MVA","Non-Coincident",1.1703939048567531]
["ED_MDU541_05089",null,null,null,null,"Coincident",1.1622334629702231]
["ED_MDU541_05090",null,"Mandurama","Substation Rating","MVA","Non-Coincident",9]
["ED_MDU541_05091",null,null,null,null,"Coincident",9]
["ED_MDU541_05092",null,null,"Raw Adjusted MD","MW","Non-Coincident",2.1933000000000002]
["ED_MDU541_05093",null,null,null,null,"Coincident",1.7293499999999999]
["ED_MDU541_05094",null,null,"Raw Adjusted MD","MVA","Non-Coincident",2.2130165956223644]
["ED_MDU541_05095",null,null,null,null,"Coincident",1.7459036184738264]
["ED_MDU541_05096",null,null,"Date MD occurred",null,"Non-Coincident","2014-06-29"]
["ED_MDU541_05097",null,null,null,null,"Coincident","2014-07-10"]
["ED_MDU541_05098",null,null,"Half hour time period MD occurred",null,"Non-Coincident","18:30:00"]
["ED_MDU541_05099",null,null,null,null,"Coincident","18:30:00"]
["ED_MDU541_05100",null,null,"Winter/Summer Peaking",null,"Non-Coincident","Winter"]
["ED_MDU541_05101",null,null,null,null,"Coincident","Winter"]
["ED_MDU541_05102",null,null,"Adjustments - Embedded generation","MW","Non-Coincident",0]
["ED_MDU541_05103",null,null,null,null,"Coincident",0]
["ED_MDU541_05104",null,null,"Weather Corrected MD 10% POE","MW","Non-Coincident",1.9555296747035167]
["ED_MDU541_05105",null,null,null,null,"Coincident",1.5418753672313528]
["ED_MDU541_05106",null,null,"Weather Corrected MD 10% POE","MVA","Non-Coincident",1.9731088420876695]
["ED_MDU541_05107",null,null,null,null,"Coincident",1.5418753672313528]
["ED_MDU541_05108",null,null,"Weather Corrected MD 50% POE","MW","Non-Coincident",1.8209932476315231]
["ED_MDU541_05109",null,null,null,null,"Coincident",1.4357975073138987]
["ED_MDU541_05110",null,null,"Weather Corrected MD 50% POE","MVA","Non-Coincident",1.8373630043882851]
["ED_MDU541_05111",null,null,null,null,"Coincident",1.4357975073138987]
["ED_MDU541_05112",null,"Manildra","Substation Rating","MVA","Non-Coincident",52.800000000000004]
["ED_MDU541_05113",null,null,null,null,"Coincident",57.599999999999994]
["ED_MDU541_05114",null,null,"Raw Adjusted MD","MW","Non-Coincident",10.134]
["ED_MDU541_05115",null,null,null,null,"Coincident",9.3960000000000008]
["ED_MDU541_05116",null,null,"Raw Adjusted MD","MVA","Non-Coincident",10.477389186242915]
["ED_MDU541_05117",null,null,null,null,"Coincident",9.7595123566702853]
["ED_MDU541_05118",null,null,"Date MD occurred",null,"Non-Coincident","2015-02-09"]
["ED_MDU541_05119",null,null,null,null,"Coincident","2014-07-10"]
["ED_MDU541_05120",null,null,"Half hour time period MD occurred",null,"Non-Coincident","19:00:00"]
["ED_MDU541_05121",null,null,null,null,"Coincident","18:30:00"]
["ED_MDU541_05122",null,null,"Winter/Summer Peaking",null,"Non-Coincident","Summer"]
["ED_MDU541_05123",null,null,null,null,"Coincident","Winter"]
["ED_MDU541_05124",null,null,"Adjustments - Embedded generation","MW","Non-Coincident",0]
["ED_MDU541_05125",null,null,null,null,"Coincident",0]
["ED_MDU541_05126",null,null,"Weather Corrected MD 10% POE","MW","Non-Coincident",10.228195321795463]
["ED_MDU541_05127",null,null,null,null,"Coincident",9.483335626957782]
["ED_MDU541_05128",null,null,"Weather Corrected MD 10% POE","MVA","Non-Coincident",10.574776303469523]
["ED_MDU541_05129",null,null,null,null,"Coincident",9.483335626957782]
["ED_MDU541_05130",null,null,"Weather Corrected MD 50% POE","MW","Non-Coincident",9.7176859013666768]
["ED_MDU541_05131",null,null,null,null,"Coincident",9.0100036243577364]
["ED_MDU541_05132",null,null,"Weather Corrected MD 50% POE","MVA","Non-Coincident",10.046968342045043]
["ED_MDU541_05133",null,null,null,null,"Coincident",9.0100036243577364]
["ED_MDU541_05134",null,"Manilla","Substation Rating","MVA","Non-Coincident",14.3]
["ED_MDU541_05135",null,null,null,null,"Coincident",15.6]
["ED_MDU541_05136",null,null,"Raw Adjusted MD","MW","Non-Coincident",4.0866699367956922]
["ED_MDU541_05137",null,null,null,null,"Coincident",0]
["ED_MDU541_05138",null,null,"Raw Adjusted MD","MVA","Non-Coincident",4.5407443742174358]
["ED_MDU541_05139",null,null,null,null,"Coincident",0]
["ED_MDU541_05140",null,null,"Date MD occurred",null,"Non-Coincident","2014-11-15"]
["ED_MDU541_05141",null,null,null,null,"Coincident","2014-07-10"]
["ED_MDU541_05142",null,null,"Half hour time period MD occurred",null,"Non-Coincident","20:30:00"]
["ED_MDU541_05143",null,null,null,null,"Coincident","18:30:00"]
["ED_MDU541_05144",null,null,"Winter/Summer Peaking",null,"Non-Coincident","Summer"]
["ED_MDU541_05145",null,null,null,null,"Coincident","Winter"]
["ED_MDU541_05146",null,null,"Adjustments - Embedded generation","MW","Non-Coincident",0]
["ED_MDU541_05147",null,null,null,null,"Coincident",0]
["ED_MDU541_05148",null,null,"Weather Corrected MD 10% POE","MW","Non-Coincident",4.2180690201427042]
["ED_MDU541_05149",null,null,null,null,"Coincident",0]
["ED_MDU541_05150",null,null,"Weather Corrected MD 10% POE","MVA","Non-Coincident",4.6867433557141158]
["ED_MDU541_05151",null,null,null,null,"Coincident",0]
["ED_MDU541_05152",null,null,"Weather Corrected MD 50% POE","MW","Non-Coincident",3.9157930251750162]
["ED_MDU541_05153",null,null,null,null,"Coincident",0]
["ED_MDU541_05154",null,null,"Weather Corrected MD 50% POE","MVA","Non-Coincident",4.3508811390833513]
["ED_MDU541_05155",null,null,null,null,"Coincident",0]
["ED_MDU541_05156",null,"Marilba","Substation Rating","MVA","Non-Coincident",4.8]
["ED_MDU541_05157",null,null,null,null,"Coincident",4.8]
["ED_MDU541_05158",null,null,"Raw Adjusted MD","MW","Non-Coincident",1.272]
["ED_MDU541_05159",null,null,null,null,"Coincident",1.224]
["ED_MDU541_05160",null,null,"Raw Adjusted MD","MVA","Non-Coincident",1.292626782950129]
["ED_MDU541_05161",null,null,null,null,"Coincident",1.2430868835282594]
["ED_MDU541_05162",null,null,"Date MD occurred",null,"Non-Coincident","2014-08-02"]
["ED_MDU541_05163",null,null,null,null,"Coincident","2014-07-10"]
["ED_MDU541_05164",null,null,"Half hour time period MD occurred",null,"Non-Coincident","19:00:00"]
["ED_MDU541_05165",null,null,null,null,"Coincident","18:30:00"]
["ED_MDU541_05166",null,null,"Winter/Summer Peaking",null,"Non-Coincident","Winter"]
["ED_MDU541_05167",null,null,null,null,"Coincident","Winter"]
["ED_MDU541_05168",null,null,"Adjustments - Embedded generation","MW","Non-Coincident",0]
["ED_MDU541_05169",null,null,null,null,"Coincident",0]
["ED_MDU541_05170",null,null,"Weather Corrected MD 10% POE","MW","Non-Coincident",1.3258201425997038]
["ED_MDU541_05171",null,null,null,null,"Coincident",1.2757891938223564]
["ED_MDU541_05172",null,null,"Weather Corrected MD 10% POE","MVA","Non-Coincident",1.3473196742917737]
["ED_MDU541_05173",null,null,null,null,"Coincident",1.2757891938223564]
["ED_MDU541_05174",null,null,"Weather Corrected MD 50% POE","MW","Non-Coincident",1.2599795369323461]
["ED_MDU541_05175",null,null,null,null,"Coincident",1.2124331393122576]
["ED_MDU541_05176",null,null,"Weather Corrected MD 50% POE","MVA","Non-Coincident",1.2804113957608896]
["ED_MDU541_05177",null,null,null,null,"Coincident",1.2124331393122576]
["ED_MDU541_05178",null,"Martins Creek","Substation Rating","MVA","Non-Coincident",17.600000000000001]
["ED_MDU541_05179",null,null,null,null,"Coincident",19.2]
["ED_MDU541_05180",null,null,"Raw Adjusted MD","MW","Non-Coincident",2.8410000000000002]
["ED_MDU541_05181",null,null,null,null,"Coincident",1.7070000000000001]
["ED_MDU541_05182",null,null,"Raw Adjusted MD","MVA","Non-Coincident",2.8410000000000002]
["ED_MDU541_05183",null,null,null,null,"Coincident",1.7645560348144231]
["ED_MDU541_05184",null,null,"Date MD occurred",null,"Non-Coincident","2014-11-23"]
["ED_MDU541_05185",null,null,null,null,"Coincident","2014-07-10"]
["ED_MDU541_05186",null,null,"Half hour time period MD occurred",null,"Non-Coincident","17:30:00"]
["ED_MDU541_05187",null,null,null,null,"Coincident","18:30:00"]
["ED_MDU541_05188",null,null,"Winter/Summer Peaking",null,"Non-Coincident","Summer"]
["ED_MDU541_05189",null,null,null,null,"Coincident","Winter"]
["ED_MDU541_05190",null,null,"Adjustments - Embedded generation","MW","Non-Coincident",0]
["ED_MDU541_05191",null,null,null,null,"Coincident",0]
["ED_MDU541_05192",null,null,"Weather Corrected MD 10% POE","MW","Non-Coincident",2.7484117389799279]
["ED_MDU541_05193",null,null,null,null,"Coincident",1.6513688273279608]
["ED_MDU541_05194",null,null,"Weather Corrected MD 10% POE","MVA","Non-Coincident",2.7484117389799279]
["ED_MDU541_05195",null,null,null,null,"Coincident",1.6513688273279608]
["ED_MDU541_05196",null,null,"Weather Corrected MD 50% POE","MW","Non-Coincident",2.4353579816699717]
["ED_MDU541_05197",null,null,null,null,"Coincident",1.4632721135905109]
["ED_MDU541_05198",null,null,"Weather Corrected MD 50% POE","MVA","Non-Coincident",2.4353579816699717]
["ED_MDU541_05199",null,null,null,null,"Coincident",1.4632721135905109]
["ED_MDU541_05200",null,"Marulan North","Substation Rating","MVA","Non-Coincident",33]
["ED_MDU541_05201",null,null,null,null,"Coincident",36]
["ED_MDU541_05202",null,null,"Raw Adjusted MD","MW","Non-Coincident",3.6]
["ED_MDU541_05203",null,null,null,null,"Coincident",2.76]
["ED_MDU541_05204",null,null,"Raw Adjusted MD","MVA","Non-Coincident",3.7822744480008321]
["ED_MDU541_05205",null,null,null,null,"Coincident",2.7602898398537787]
["ED_MDU541_05206",null,null,"Date MD occurred",null,"Non-Coincident","2015-03-20"]
["ED_MDU541_05207",null,null,null,null,"Coincident","2014-07-10"]
["ED_MDU541_05208",null,null,"Half hour time period MD occurred",null,"Non-Coincident","10:00:00"]
["ED_MDU541_05209",null,null,null,null,"Coincident","18:30:00"]
["ED_MDU541_05210",null,null,"Winter/Summer Peaking",null,"Non-Coincident","Summer"]
["ED_MDU541_05211",null,null,null,null,"Coincident","Winter"]
["ED_MDU541_05212",null,null,"Adjustments - Embedded generation","MW","Non-Coincident",0]
["ED_MDU541_05213",null,null,null,null,"Coincident",0]
["ED_MDU541_05214",null,null,"Weather Corrected MD 10% POE","MW","Non-Coincident",3.352768682666865]
["ED_MDU541_05215",null,null,null,null,"Coincident",2.5704559900445965]
["ED_MDU541_05216",null,null,"Weather Corrected MD 10% POE","MVA","Non-Coincident",3.5225253662523039]
["ED_MDU541_05217",null,null,null,null,"Coincident",2.5704559900445965]
["ED_MDU541_05218",null,null,"Weather Corrected MD 50% POE","MW","Non-Coincident",2.9662491729764371]
["ED_MDU541_05219",null,null,null,null,"Coincident",2.2741243659486017]
["ED_MDU541_05220",null,null,"Weather Corrected MD 50% POE","MVA","Non-Coincident",3.116435681486772]
["ED_MDU541_05221",null,null,null,null,"Coincident",2.2741243659486017]
["ED_MDU541_05222",null,"Marulan South 11kV","Substation Rating","MVA","Non-Coincident",3.5999999999999996]
["ED_MDU541_05223",null,null,null,null,"Coincident",3.5999999999999996]
["ED_MDU541_05224",null,null,"Raw Adjusted MD","MW","Non-Coincident",1.1066666259765625]
["ED_MDU541_05225",null,null,null,null,"Coincident",0]
["ED_MDU541_05226",null,null,"Raw Adjusted MD","MVA","Non-Coincident",1.2424764353949198]
["ED_MDU541_05227",null,null,null,null,"Coincident",0]
["ED_MDU541_05228",null,null,"Date MD occurred",null,"Non-Coincident","2014-04-03"]
["ED_MDU541_05229",null,null,null,null,"Coincident","2014-07-10"]
["ED_MDU541_05230",null,null,"Half hour time period MD occurred",null,"Non-Coincident","19:30:00"]
["ED_MDU541_05231",null,null,null,null,"Coincident","18:30:00"]
["ED_MDU541_05232",null,null,"Winter/Summer Peaking",null,"Non-Coincident","Winter"]
["ED_MDU541_05233",null,null,null,null,"Coincident","Winter"]
["ED_MDU541_05234",null,null,"Adjustments - Embedded generation","MW","Non-Coincident",0]
["ED_MDU541_05235",null,null,null,null,"Coincident",0]
["ED_MDU541_05236",null,null,"Weather Corrected MD 10% POE","MW","Non-Coincident",1.1066666259765625]
["ED_MDU541_05237",null,null,null,null,"Coincident",0]
["ED_MDU541_05238",null,null,"Weather Corrected MD 10% POE","MVA","Non-Coincident",1.2424764353949198]
["ED_MDU541_05239",null,null,null,null,"Coincident",0]
["ED_MDU541_05240",null,null,"Weather Corrected MD 50% POE","MW","Non-Coincident",1.1066666259765625]
["ED_MDU541_05241",null,null,null,null,"Coincident",0]
["ED_MDU541_05242",null,null,"Weather Corrected MD 50% POE","MVA","Non-Coincident",1.2424764353949198]
["ED_MDU541_05243",null,null,null,null,"Coincident",0]
["ED_MDU541_05244",null,"Mates Gully","Substation Rating","MVA","Non-Coincident",1.1000000000000001]
["ED_MDU541_05245",null,null,null,null,"Coincident",1.2]
["ED_MDU541_05246",null,null,"Raw Adjusted MD","MW","Non-Coincident",0.58933334350585942]
["ED_MDU541_05247",null,null,null,null,"Coincident",0.28100000000000003]
["ED_MDU541_05248",null,null,"Raw Adjusted MD","MVA","Non-Coincident",0.63274578771349232]
["ED_MDU541_05249",null,null,null,null,"Coincident",0.28983098523104811]
["ED_MDU541_05250",null,null,"Date MD occurred",null,"Non-Coincident","2015-01-04"]
["ED_MDU541_05251",null,null,null,null,"Coincident","2014-07-10"]
["ED_MDU541_05252",null,null,"Half hour time period MD occurred",null,"Non-Coincident","18:30:00"]
["ED_MDU541_05253",null,null,null,null,"Coincident","18:30:00"]
["ED_MDU541_05254",null,null,"Winter/Summer Peaking",null,"Non-Coincident","Summer"]
["ED_MDU541_05255",null,null,null,null,"Coincident","Winter"]
["ED_MDU541_05256",null,null,"Adjustments - Embedded generation","MW","Non-Coincident",0]
["ED_MDU541_05257",null,null,null,null,"Coincident",0]
["ED_MDU541_05258",null,null,"Weather Corrected MD 10% POE","MW","Non-Coincident",0.53962922598857077]
["ED_MDU541_05259",null,null,null,null,"Coincident",0.25730058238471409]
["ED_MDU541_05260",null,null,"Weather Corrected MD 10% POE","MVA","Non-Coincident",0.57938028355927484]
["ED_MDU541_05261",null,null,null,null,"Coincident",0.25730058238471409]
["ED_MDU541_05262",null,null,"Weather Corrected MD 50% POE","MW","Non-Coincident",0.46802220358718177]
["ED_MDU541_05263",null,null,null,null,"Coincident",0.22315764186298839]
["ED_MDU541_05264",null,null,"Weather Corrected MD 50% POE","MVA","Non-Coincident",0.50249842663659072]
["ED_MDU541_05265",null,null,null,null,"Coincident",0.22315764186298839]
["ED_MDU541_05266",null,"Menindee","Substation Rating","MVA","Non-Coincident",11]
["ED_MDU541_05267",null,null,null,null,"Coincident",12]
["ED_MDU541_05268",null,null,"Raw Adjusted MD","MW","Non-Coincident",1.4816666841506958]
["ED_MDU541_05269",null,null,null,null,"Coincident",0.57050001621246338]
["ED_MDU541_05270",null,null,"Raw Adjusted MD","MVA","Non-Coincident",1.6199880016354189]
["ED_MDU541_05271",null,null,null,null,"Coincident",0.58187672125984846]
["ED_MDU541_05272",null,null,"Date MD occurred",null,"Non-Coincident","2015-01-03"]
["ED_MDU541_05273",null,null,null,null,"Coincident","2014-07-10"]
["ED_MDU541_05274",null,null,"Half hour time period MD occurred",null,"Non-Coincident","21:30:00"]
["ED_MDU541_05275",null,null,null,null,"Coincident","18:30:00"]
["ED_MDU541_05276",null,null,"Winter/Summer Peaking",null,"Non-Coincident","Summer"]
["ED_MDU541_05277",null,null,null,null,"Coincident","Winter"]
["ED_MDU541_05278",null,null,"Adjustments - Embedded generation","MW","Non-Coincident",0]
["ED_MDU541_05279",null,null,null,null,"Coincident",0]
["ED_MDU541_05280",null,null,"Weather Corrected MD 10% POE","MW","Non-Coincident",1.2680856282277242]
["ED_MDU541_05281",null,null,null,null,"Coincident",0.48826289961253477]
["ED_MDU541_05282",null,null,"Weather Corrected MD 10% POE","MVA","Non-Coincident",1.3864680395056319]
["ED_MDU541_05283",null,null,null,null,"Coincident",0.48826289961253477]
["ED_MDU541_05284",null,null,"Weather Corrected MD 50% POE","MW","Non-Coincident",1.0583474829293169]
["ED_MDU541_05285",null,null,null,null,"Coincident",0.40750545492334617]
["ED_MDU541_05286",null,null,"Weather Corrected MD 50% POE","MVA","Non-Coincident",1.1571497437625871]
["ED_MDU541_05287",null,null,null,null,"Coincident",0.40750545492334617]
["ED_MDU541_05288",null,"Merrywinebone","Substation Rating","MVA","Non-Coincident",6]
["ED_MDU541_05289",null,null,null,null,"Coincident",6]
["ED_MDU541_05290",null,null,"Raw Adjusted MD","MW","Non-Coincident",2.8079999999999998]
["ED_MDU541_05291",null,null,null,null,"Coincident",1.0044]
["ED_MDU541_05292",null,null,"Raw Adjusted MD","MVA","Non-Coincident",2.8266305029133187]
["ED_MDU541_05293",null,null,null,null,"Coincident",1.3680236840055071]
["ED_MDU541_05294",null,null,"Date MD occurred",null,"Non-Coincident","2014-06-10"]
["ED_MDU541_05295",null,null,null,null,"Coincident","2014-07-10"]
["ED_MDU541_05296",null,null,"Half hour time period MD occurred",null,"Non-Coincident","19:30:00"]
["ED_MDU541_05297",null,null,null,null,"Coincident","18:30:00"]
["ED_MDU541_05298",null,null,"Winter/Summer Peaking",null,"Non-Coincident","Winter"]
["ED_MDU541_05299",null,null,null,null,"Coincident","Winter"]
["ED_MDU541_05300",null,null,"Adjustments - Embedded generation","MW","Non-Coincident",0]
["ED_MDU541_05301",null,null,null,null,"Coincident",0]
["ED_MDU541_05302",null,null,"Weather Corrected MD 10% POE","MW","Non-Coincident",4.0053056496445878]
["ED_MDU541_05303",null,null,null,null,"Coincident",1.4326670208344103]
["ED_MDU541_05304",null,null,"Weather Corrected MD 10% POE","MVA","Non-Coincident",4.0318800294787884]
["ED_MDU541_05305",null,null,null,null,"Coincident",1.4326670208344103]
["ED_MDU541_05306",null,null,"Weather Corrected MD 50% POE","MW","Non-Coincident",3.0268391090006794]
["ED_MDU541_05307",null,null,null,null,"Coincident",1.0826770659117815]
["ED_MDU541_05308",null,null,"Weather Corrected MD 50% POE","MVA","Non-Coincident",3.0469215644274548]
["ED_MDU541_05309",null,null,null,null,"Coincident",1.0826770659117815]
["ED_MDU541_05310",null,"Miller St","Substation Rating","MVA","Non-Coincident",38.4]
["ED_MDU541_05311",null,null,null,null,"Coincident",38.4]
["ED_MDU541_05312",null,null,"Raw Adjusted MD","MW","Non-Coincident",10.800000190734863]
["ED_MDU541_05313",null,null,null,null,"Coincident",8.6233329772949219]
["ED_MDU541_05314",null,null,"Raw Adjusted MD","MVA","Non-Coincident",11.161507479113219]
["ED_MDU541_05315",null,null,null,null,"Coincident",8.7930577293209655]
["ED_MDU541_05316",null,null,"Date MD occurred",null,"Non-Coincident","2014-07-18"]
["ED_MDU541_05317",null,null,null,null,"Coincident","2014-07-10"]
["ED_MDU541_05318",null,null,"Half hour time period MD occurred",null,"Non-Coincident","10:00:00"]
["ED_MDU541_05319",null,null,null,null,"Coincident","18:30:00"]
["ED_MDU541_05320",null,null,"Winter/Summer Peaking",null,"Non-Coincident","Winter"]
["ED_MDU541_05321",null,null,null,null,"Coincident","Winter"]
["ED_MDU541_05322",null,null,"Adjustments - Embedded generation","MW","Non-Coincident",0]
["ED_MDU541_05323",null,null,null,null,"Coincident",0]
["ED_MDU541_05324",null,null,"Weather Corrected MD 10% POE","MW","Non-Coincident",11.571990168745323]
["ED_MDU541_05325",null,null,null,null,"Coincident",9.2397335808087817]
["ED_MDU541_05326",null,null,"Weather Corrected MD 10% POE","MVA","Non-Coincident",11.959338197741927]
["ED_MDU541_05327",null,null,null,null,"Coincident",9.2397335808087817]
["ED_MDU541_05328",null,null,"Weather Corrected MD 50% POE","MW","Non-Coincident",10.607407913726]
["ED_MDU541_05329",null,null,null,null,"Coincident",8.4695563750567473]
["ED_MDU541_05330",null,null,"Weather Corrected MD 50% POE","MVA","Non-Coincident",10.962468580753013]
["ED_MDU541_05331",null,null,null,null,"Coincident",8.4695563750567473]
["ED_MDU541_05332",null,"Moama","Substation Rating","MVA","Non-Coincident",66]
["ED_MDU541_05333",null,null,null,null,"Coincident",72]
["ED_MDU541_05334",null,null,"Raw Adjusted MD","MW","Non-Coincident",13.801920000000001]
["ED_MDU541_05335",null,null,null,null,"Coincident",7.5897600000000001]
["ED_MDU541_05336",null,null,"Raw Adjusted MD","MVA","Non-Coincident",14.164709822823763]
["ED_MDU541_05337",null,null,null,null,"Coincident",7.6183609449802265]
["ED_MDU541_05338",null,null,"Date MD occurred",null,"Non-Coincident","2015-01-03"]
["ED_MDU541_05339",null,null,null,null,"Coincident","2014-07-10"]
["ED_MDU541_05340",null,null,"Half hour time period MD occurred",null,"Non-Coincident","18:00:00"]
["ED_MDU541_05341",null,null,null,null,"Coincident","18:30:00"]
["ED_MDU541_05342",null,null,"Winter/Summer Peaking",null,"Non-Coincident","Summer"]
["ED_MDU541_05343",null,null,null,null,"Coincident","Winter"]
["ED_MDU541_05344",null,null,"Adjustments - Embedded generation","MW","Non-Coincident",0]
["ED_MDU541_05345",null,null,null,null,"Coincident",0]
["ED_MDU541_05346",null,null,"Weather Corrected MD 10% POE","MW","Non-Coincident",14.434105243390521]
["ED_MDU541_05347",null,null,null,null,"Coincident",7.937402521683623]
["ED_MDU541_05348",null,null,"Weather Corrected MD 10% POE","MVA","Non-Coincident",14.813512346450761]
["ED_MDU541_05349",null,null,null,null,"Coincident",7.937402521683623]
["ED_MDU541_05350",null,null,"Weather Corrected MD 50% POE","MW","Non-Coincident",13.007162240401982]
["ED_MDU541_05351",null,null,null,null,"Coincident",7.1527178599581314]
["ED_MDU541_05352",null,null,"Weather Corrected MD 50% POE","MVA","Non-Coincident",13.349061489537998]
["ED_MDU541_05353",null,null,null,null,"Coincident",7.1527178599581314]
["ED_MDU541_05354",null,"Molong 11kV","Substation Rating","MVA","Non-Coincident",9]
["ED_MDU541_05355",null,null,null,null,"Coincident",9]
["ED_MDU541_05356",null,null,"Raw Adjusted MD","MW","Non-Coincident",3.2416665554046631]
["ED_MDU541_05357",null,null,null,null,"Coincident",2.8016667366027832]
["ED_MDU541_05358",null,null,"Raw Adjusted MD","MVA","Non-Coincident",3.2445461678389989]
["ED_MDU541_05359",null,null,null,null,"Coincident",2.8057689288482295]
["ED_MDU541_05360",null,null,"Date MD occurred",null,"Non-Coincident","2014-07-13"]
["ED_MDU541_05361",null,null,null,null,"Coincident","2014-07-10"]
["ED_MDU541_05362",null,null,"Half hour time period MD occurred",null,"Non-Coincident","19:00:00"]
["ED_MDU541_05363",null,null,null,null,"Coincident","18:30:00"]
["ED_MDU541_05364",null,null,"Winter/Summer Peaking",null,"Non-Coincident","Winter"]
["ED_MDU541_05365",null,null,null,null,"Coincident","Winter"]
["ED_MDU541_05366",null,null,"Adjustments - Embedded generation","MW","Non-Coincident",0]
["ED_MDU541_05367",null,null,null,null,"Coincident",0]
["ED_MDU541_05368",null,null,"Weather Corrected MD 10% POE","MW","Non-Coincident",3.3331267677681247]
["ED_MDU541_05369",null,null,null,null,"Coincident",2.8807128168586686]
["ED_MDU541_05370",null,null,"Weather Corrected MD 10% POE","MVA","Non-Coincident",3.3360876254385969]
["ED_MDU541_05371",null,null,null,null,"Coincident",2.8807128168586686]
["ED_MDU541_05372",null,null,"Weather Corrected MD 50% POE","MW","Non-Coincident",3.1068900396508305]
["ED_MDU541_05373",null,null,null,null,"Coincident",2.6851837872898185]
["ED_MDU541_05374",null,null,"Weather Corrected MD 50% POE","MVA","Non-Coincident",3.1096499284417911]
["ED_MDU541_05375",null,null,null,null,"Coincident",2.6851837872898185]
["ED_MDU541_05376",null,"Monteagle","Substation Rating","MVA","Non-Coincident",1.1000000000000001]
["ED_MDU541_05377",null,null,null,null,"Coincident",1.2]
["ED_MDU541_05378",null,null,"Raw Adjusted MD","MW","Non-Coincident",0.81374999999999997]
["ED_MDU541_05379",null,null,null,null,"Coincident",0.5907]
["ED_MDU541_05380",null,null,"Raw Adjusted MD","MVA","Non-Coincident",0.94999215917816926]
["ED_MDU541_05381",null,null,null,null,"Coincident",0.6183975177828579]
["ED_MDU541_05382",null,null,"Date MD occurred",null,"Non-Coincident","2014-11-14"]
["ED_MDU541_05383",null,null,null,null,"Coincident","2014-07-10"]
["ED_MDU541_05384",null,null,"Half hour time period MD occurred",null,"Non-Coincident","18:00:00"]
["ED_MDU541_05385",null,null,null,null,"Coincident","18:30:00"]
["ED_MDU541_05386",null,null,"Winter/Summer Peaking",null,"Non-Coincident","Summer"]
["ED_MDU541_05387",null,null,null,null,"Coincident","Winter"]
["ED_MDU541_05388",null,null,"Adjustments - Embedded generation","MW","Non-Coincident",0]
["ED_MDU541_05389",null,null,null,null,"Coincident",0]
["ED_MDU541_05390",null,null,"Weather Corrected MD 10% POE","MW","Non-Coincident",0.80352344120921382]
["ED_MDU541_05391",null,null,null,null,"Coincident",0.58327655511186804]
["ED_MDU541_05392",null,null,"Weather Corrected MD 10% POE","MVA","Non-Coincident",0.93805341795958685]
["ED_MDU541_05393",null,null,null,null,"Coincident",0.58327655511186804]
["ED_MDU541_05394",null,null,"Weather Corrected MD 50% POE","MW","Non-Coincident",0.69188419415179825]
["ED_MDU541_05395",null,null,null,null,"Coincident",0.5022377800128629]
["ED_MDU541_05396",null,null,"Weather Corrected MD 50% POE","MVA","Non-Coincident",0.8077229609874218]
["ED_MDU541_05397",null,null,null,null,"Coincident",0.5022377800128629]
["ED_MDU541_05398",null,"Moonee","Substation Rating","MVA","Non-Coincident",38.4]
["ED_MDU541_05399",null,null,null,null,"Coincident",38.4]
["ED_MDU541_05400",null,null,"Raw Adjusted MD","MW","Non-Coincident",4.6050000000000004]
["ED_MDU541_05401",null,null,null,null,"Coincident",4.3739999999999997]
["ED_MDU541_05402",null,null,"Raw Adjusted MD","MVA","Non-Coincident",4.6550817393467971]
["ED_MDU541_05403",null,null,null,null,"Coincident",4.3980173942357252]
["ED_MDU541_05404",null,null,"Date MD occurred",null,"Non-Coincident","2014-08-27"]
["ED_MDU541_05405",null,null,null,null,"Coincident","2014-07-10"]
["ED_MDU541_05406",null,null,"Half hour time period MD occurred",null,"Non-Coincident","18:00:00"]
["ED_MDU541_05407",null,null,null,null,"Coincident","18:30:00"]
["ED_MDU541_05408",null,null,"Winter/Summer Peaking",null,"Non-Coincident","Winter"]
["ED_MDU541_05409",null,null,null,null,"Coincident","Winter"]
["ED_MDU541_05410",null,null,"Adjustments - Embedded generation","MW","Non-Coincident",0]
["ED_MDU541_05411",null,null,null,null,"Coincident",0]
["ED_MDU541_05412",null,null,"Weather Corrected MD 10% POE","MW","Non-Coincident",4.8291254901708962]
["ED_MDU541_05413",null,null,null,null,"Coincident",4.5868827131395218]
["ED_MDU541_05414",null,null,"Weather Corrected MD 10% POE","MVA","Non-Coincident",4.8816447092961317]
["ED_MDU541_05415",null,null,null,null,"Coincident",4.5868827131395218]
["ED_MDU541_05416",null,null,"Weather Corrected MD 50% POE","MW","Non-Coincident",4.4971845007178377]
["ED_MDU541_05417",null,null,null,null,"Coincident",4.2715928352095158]
["ED_MDU541_05418",null,null,"Weather Corrected MD 50% POE","MVA","Non-Coincident",4.5460936911541907]
["ED_MDU541_05419",null,null,null,null,"Coincident",4.2715928352095158]
["ED_MDU541_05420",null,"Moree","Substation Rating","MVA","Non-Coincident",66]
["ED_MDU541_05421",null,null,null,null,"Coincident",72]
["ED_MDU541_05422",null,null,"Raw Adjusted MD","MW","Non-Coincident",19.152000000000001]
["ED_MDU541_05423",null,null,null,null,"Coincident",18.324000000000002]
["ED_MDU541_05424",null,null,"Raw Adjusted MD","MVA","Non-Coincident",19.367330843459044]
["ED_MDU541_05425",null,null,null,null,"Coincident",18.374993877550001]
["ED_MDU541_05426",null,null,"Date MD occurred",null,"Non-Coincident","2015-03-04"]
["ED_MDU541_05427",null,null,null,null,"Coincident","2014-07-10"]
["ED_MDU541_05428",null,null,"Half hour time period MD occurred",null,"Non-Coincident","18:00:00"]
["ED_MDU541_05429",null,null,null,null,"Coincident","18:30:00"]
["ED_MDU541_05430",null,null,"Winter/Summer Peaking",null,"Non-Coincident","Summer"]
["ED_MDU541_05431",null,null,null,null,"Coincident","Winter"]
["ED_MDU541_05432",null,null,"Adjustments - Embedded generation","MW","Non-Coincident",0]
["ED_MDU541_05433",null,null,null,null,"Coincident",0]
["ED_MDU541_05434",null,null,"Weather Corrected MD 10% POE","MW","Non-Coincident",20.103382753661347]
["ED_MDU541_05435",null,null,null,null,"Coincident",19.234251544386517]
["ED_MDU541_05436",null,null,"Weather Corrected MD 10% POE","MVA","Non-Coincident",20.329410237199667]
["ED_MDU541_05437",null,null,null,null,"Coincident",19.234251544386517]
["ED_MDU541_05438",null,null,"Weather Corrected MD 50% POE","MW","Non-Coincident",18.439344375729281]
["ED_MDU541_05439",null,null,null,null,"Coincident",17.642154675274821]
["ED_MDU541_05440",null,null,"Weather Corrected MD 50% POE","MVA","Non-Coincident",18.646662649395612]
["ED_MDU541_05441",null,null,null,null,"Coincident",17.642154675274821]
["ED_MDU541_05442",null,"Morrow St","Substation Rating","MVA","Non-Coincident",49.500000000000007]
["ED_MDU541_05443",null,null,null,null,"Coincident",54]
["ED_MDU541_05444",null,null,"Raw Adjusted MD","MW","Non-Coincident",11.72]
["ED_MDU541_05445",null,null,null,null,"Coincident",1.8025199999999999]
["ED_MDU541_05446",null,null,"Raw Adjusted MD","MVA","Non-Coincident",12.805623764580934]
["ED_MDU541_05447",null,null,null,null,"Coincident",1.9673974967962118]
["ED_MDU541_05448",null,null,"Date MD occurred",null,"Non-Coincident","2015-02-23"]
["ED_MDU541_05449",null,null,null,null,"Coincident","2014-07-10"]
["ED_MDU541_05450",null,null,"Half hour time period MD occurred",null,"Non-Coincident","15:00:00"]
["ED_MDU541_05451",null,null,null,null,"Coincident","18:30:00"]
["ED_MDU541_05452",null,null,"Winter/Summer Peaking",null,"Non-Coincident","Summer"]
["ED_MDU541_05453",null,null,null,null,"Coincident","Winter"]
["ED_MDU541_05454",null,null,"Adjustments - Embedded generation","MW","Non-Coincident",0]
["ED_MDU541_05455",null,null,null,null,"Coincident",0]
["ED_MDU541_05456",null,null,"Weather Corrected MD 10% POE","MW","Non-Coincident",13.428591924595381]
["ED_MDU541_05457",null,null,null,null,"Coincident",2.0652991054540668]
["ED_MDU541_05458",null,null,"Weather Corrected MD 10% POE","MVA","Non-Coincident",14.6724825831449]
["ED_MDU541_05459",null,null,null,null,"Coincident",2.0652991054540668]
["ED_MDU541_05460",null,null,"Weather Corrected MD 50% POE","MW","Non-Coincident",12.485065299849339]
["ED_MDU541_05461",null,null,null,null,"Coincident",1.9201859986590808]
["ED_MDU541_05462",null,null,"Weather Corrected MD 50% POE","MVA","Non-Coincident",13.641557073898932]
["ED_MDU541_05463",null,null,null,null,"Coincident",1.9201859986590808]
["ED_MDU541_05464",null,"Moruya Town","Substation Rating","MVA","Non-Coincident",38.4]
["ED_MDU541_05465",null,null,null,null,"Coincident",38.4]
["ED_MDU541_05466",null,null,"Raw Adjusted MD","MW","Non-Coincident",6.4]
["ED_MDU541_05467",null,null,null,null,"Coincident",5.76]
["ED_MDU541_05468",null,null,"Raw Adjusted MD","MVA","Non-Coincident",6.4776538962806587]
["ED_MDU541_05469",null,null,null,null,"Coincident",5.8836723226230063]
["ED_MDU541_05470",null,null,"Date MD occurred",null,"Non-Coincident","2014-07-13"]
["ED_MDU541_05471",null,null,null,null,"Coincident","2014-07-10"]
["ED_MDU541_05472",null,null,"Half hour time period MD occurred",null,"Non-Coincident","18:30:00"]
["ED_MDU541_05473",null,null,null,null,"Coincident","18:30:00"]
["ED_MDU541_05474",null,null,"Winter/Summer Peaking",null,"Non-Coincident","Winter"]
["ED_MDU541_05475",null,null,null,null,"Coincident","Winter"]
["ED_MDU541_05476",null,null,"Adjustments - Embedded generation","MW","Non-Coincident",0]
["ED_MDU541_05477",null,null,null,null,"Coincident",0]
["ED_MDU541_05478",null,null,"Weather Corrected MD 10% POE","MW","Non-Coincident",6.4720997768676707]
["ED_MDU541_05479",null,null,null,null,"Coincident",5.8248897991809034]
["ED_MDU541_05480",null,null,"Weather Corrected MD 10% POE","MVA","Non-Coincident",6.5506284901162575]
["ED_MDU541_05481",null,null,null,null,"Coincident",5.8248897991809034]
["ED_MDU541_05482",null,null,"Weather Corrected MD 50% POE","MW","Non-Coincident",6.145125208408162]
["ED_MDU541_05483",null,null,null,null,"Coincident",5.5306126875673449]
["ED_MDU541_05484",null,null,"Weather Corrected MD 50% POE","MVA","Non-Coincident",6.2196866014652539]
["ED_MDU541_05485",null,null,null,null,"Coincident",5.5306126875673449]
["ED_MDU541_05486",null,"Mossy Point","Substation Rating","MVA","Non-Coincident",30]
["ED_MDU541_05487",null,null,null,null,"Coincident",30]
["ED_MDU541_05488",null,null,"Raw Adjusted MD","MW","Non-Coincident",7.2632320000000004]
["ED_MDU541_05489",null,null,null,null,"Coincident",6.1878380000000002]
["ED_MDU541_05490",null,null,"Raw Adjusted MD","MVA","Non-Coincident",7.3209054381493175]
["ED_MDU541_05491",null,null,null,null,"Coincident",6.2348409292033269]
["ED_MDU541_05492",null,null,"Date MD occurred",null,"Non-Coincident","2014-07-12"]
["ED_MDU541_05493",null,null,null,null,"Coincident","2014-07-10"]
["ED_MDU541_05494",null,null,"Half hour time period MD occurred",null,"Non-Coincident","18:00:00"]
["ED_MDU541_05495",null,null,null,null,"Coincident","18:30:00"]
["ED_MDU541_05496",null,null,"Winter/Summer Peaking",null,"Non-Coincident","Winter"]
["ED_MDU541_05497",null,null,null,null,"Coincident","Winter"]
["ED_MDU541_05498",null,null,"Adjustments - Embedded generation","MW","Non-Coincident",0]
["ED_MDU541_05499",null,null,null,null,"Coincident",0]
["ED_MDU541_05500",null,null,"Weather Corrected MD 10% POE","MW","Non-Coincident",7.2485882726292843]
["ED_MDU541_05501",null,null,null,null,"Coincident",6.1753624226418546]
["ED_MDU541_05502",null,null,"Weather Corrected MD 10% POE","MVA","Non-Coincident",7.306145432776634]
["ED_MDU541_05503",null,null,null,null,"Coincident",6.1753624226418546]
["ED_MDU541_05504",null,null,"Weather Corrected MD 50% POE","MW","Non-Coincident",6.8030511326432173]
["ED_MDU541_05505",null,null,null,null,"Coincident",5.7957915036326444]
["ED_MDU541_05506",null,null,"Weather Corrected MD 50% POE","MVA","Non-Coincident",6.8570705208061096]
["ED_MDU541_05507",null,null,null,null,"Coincident",5.7957915036326444]
["ED_MDU541_05508",null,"Moulamein","Substation Rating","MVA","Non-Coincident",12]
["ED_MDU541_05509",null,null,null,null,"Coincident",12]
["ED_MDU541_05510",null,null,"Raw Adjusted MD","MW","Non-Coincident",2.9580000000000002]
["ED_MDU541_05511",null,null,null,null,"Coincident",1.8720000000000001]
["ED_MDU541_05512",null,null,"Raw Adjusted MD","MVA","Non-Coincident",3.0530804116498471]
["ED_MDU541_05513",null,null,null,null,"Coincident",1.8720000000000001]
["ED_MDU541_05514",null,null,"Date MD occurred",null,"Non-Coincident","2014-05-22"]
["ED_MDU541_05515",null,null,null,null,"Coincident","2014-07-10"]
["ED_MDU541_05516",null,null,"Half hour time period MD occurred",null,"Non-Coincident","23:30:00"]
["ED_MDU541_05517",null,null,null,null,"Coincident","18:30:00"]
["ED_MDU541_05518",null,null,"Winter/Summer Peaking",null,"Non-Coincident","Winter"]
["ED_MDU541_05519",null,null,null,null,"Coincident","Winter"]
["ED_MDU541_05520",null,null,"Adjustments - Embedded generation","MW","Non-Coincident",0]
["ED_MDU541_05521",null,null,null,null,"Coincident",0]
["ED_MDU541_05522",null,null,"Weather Corrected MD 10% POE","MW","Non-Coincident",2.9780834627571293]
["ED_MDU541_05523",null,null,null,null,"Coincident",1.8847100210552217]
["ED_MDU541_05524",null,null,"Weather Corrected MD 10% POE","MVA","Non-Coincident",3.0738094267755707]
["ED_MDU541_05525",null,null,null,null,"Coincident",1.8847100210552217]
["ED_MDU541_05526",null,null,"Weather Corrected MD 50% POE","MW","Non-Coincident",2.5911125734498195]
["ED_MDU541_05527",null,null,null,null,"Coincident",1.6398116083495815]
["ED_MDU541_05528",null,null,"Weather Corrected MD 50% POE","MVA","Non-Coincident",2.6743999467137489]
["ED_MDU541_05529",null,null,null,null,"Coincident",1.6398116083495815]
["ED_MDU541_05530",null,"Mt Gipps 33","Substation Rating","MVA","Non-Coincident",3.3000000000000003]
["ED_MDU541_05531",null,null,null,null,"Coincident",3.5999999999999996]
["ED_MDU541_05532",null,null,"Raw Adjusted MD","MW","Non-Coincident",0.93420000000000003]
["ED_MDU541_05533",null,null,null,null,"Coincident",0.57629999999999992]
["ED_MDU541_05534",null,null,"Raw Adjusted MD","MVA","Non-Coincident",0.98210928108841333]
["ED_MDU541_05535",null,null,null,null,"Coincident",0.76342791408226618]
["ED_MDU541_05536",null,null,"Date MD occurred",null,"Non-Coincident","2015-02-11"]
["ED_MDU541_05537",null,null,null,null,"Coincident","2014-07-10"]
["ED_MDU541_05538",null,null,"Half hour time period MD occurred",null,"Non-Coincident","18:30:00"]
["ED_MDU541_05539",null,null,null,null,"Coincident","18:30:00"]
["ED_MDU541_05540",null,null,"Winter/Summer Peaking",null,"Non-Coincident","Summer"]
["ED_MDU541_05541",null,null,null,null,"Coincident","Winter"]
["ED_MDU541_05542",null,null,"Adjustments - Embedded generation","MW","Non-Coincident",0]
["ED_MDU541_05543",null,null,null,null,"Coincident",0]
["ED_MDU541_05544",null,null,"Weather Corrected MD 10% POE","MW","Non-Coincident",0.96682754482214128]
["ED_MDU541_05545",null,null,null,null,"Coincident",0.59642765369406969]
["ED_MDU541_05546",null,null,"Weather Corrected MD 10% POE","MVA","Non-Coincident",1.0164100888265348]
["ED_MDU541_05547",null,null,null,null,"Coincident",0.59642765369406969]
["ED_MDU541_05548",null,null,"Weather Corrected MD 50% POE","MW","Non-Coincident",0.87878119058367365]
["ED_MDU541_05549",null,null,null,null,"Coincident",0.54211260986231113]
["ED_MDU541_05550",null,null,"Weather Corrected MD 50% POE","MVA","Non-Coincident",0.92384838719562368]
["ED_MDU541_05551",null,null,null,null,"Coincident",0.54211260986231113]
["ED_MDU541_05552",null,"Mt Gipps 6.6","Substation Rating","MVA","Non-Coincident",4.8]
["ED_MDU541_05553",null,null,null,null,"Coincident",4.8]
["ED_MDU541_05554",null,null,"Raw Adjusted MD","MW","Non-Coincident",0.80928]
["ED_MDU541_05555",null,null,null,null,"Coincident",1.008E-2]
["ED_MDU541_05556",null,null,"Raw Adjusted MD","MVA","Non-Coincident",0.96734136932108916]
["ED_MDU541_05557",null,null,null,null,"Coincident",1.4255272708720798E-2]
["ED_MDU541_05558",null,null,"Date MD occurred",null,"Non-Coincident","2014-07-05"]
["ED_MDU541_05559",null,null,null,null,"Coincident","2014-07-10"]
["ED_MDU541_05560",null,null,"Half hour time period MD occurred",null,"Non-Coincident","01:30:00"]
["ED_MDU541_05561",null,null,null,null,"Coincident","18:30:00"]
["ED_MDU541_05562",null,null,"Winter/Summer Peaking",null,"Non-Coincident","Winter"]
["ED_MDU541_05563",null,null,null,null,"Coincident","Winter"]
["ED_MDU541_05564",null,null,"Adjustments - Embedded generation","MW","Non-Coincident",0]
["ED_MDU541_05565",null,null,null,null,"Coincident",0]
["ED_MDU541_05566",null,null,"Weather Corrected MD 10% POE","MW","Non-Coincident",0.98341795526421016]
["ED_MDU541_05567",null,null,null,null,"Coincident",1.2248978090479486E-2]
["ED_MDU541_05568",null,null,"Weather Corrected MD 10% POE","MVA","Non-Coincident",1.1754904006774252]
["ED_MDU541_05569",null,null,null,null,"Coincident",1.2248978090479486E-2]
["ED_MDU541_05570",null,null,"Weather Corrected MD 50% POE","MW","Non-Coincident",0.67116173116726552]
["ED_MDU541_05571",null,null,null,null,"Coincident",8.359665690695477E-3]
["ED_MDU541_05572",null,null,"Weather Corrected MD 50% POE","MVA","Non-Coincident",0.80224706907776699]
["ED_MDU541_05573",null,null,null,null,"Coincident",8.359665690695477E-3]
["ED_MDU541_05574",null,"Mudgee","Substation Rating","MVA","Non-Coincident",66]
["ED_MDU541_05575",null,null,null,null,"Coincident",72]
["ED_MDU541_05576",null,null,"Raw Adjusted MD","MW","Non-Coincident",21.133333206176758]
["ED_MDU541_05577",null,null,null,null,"Coincident",20.733333587646484]
["ED_MDU541_05578",null,null,"Raw Adjusted MD","MVA","Non-Coincident",21.146035493368217]
["ED_MDU541_05579",null,null,null,null,"Coincident",20.739353616464733]
["ED_MDU541_05580",null,null,"Date MD occurred",null,"Non-Coincident","2014-11-23"]
["ED_MDU541_05581",null,null,null,null,"Coincident","2014-07-10"]
["ED_MDU541_05582",null,null,"Half hour time period MD occurred",null,"Non-Coincident","17:00:00"]
["ED_MDU541_05583",null,null,null,null,"Coincident","18:30:00"]
["ED_MDU541_05584",null,null,"Winter/Summer Peaking",null,"Non-Coincident","Summer"]
["ED_MDU541_05585",null,null,null,null,"Coincident","Winter"]
["ED_MDU541_05586",null,null,"Adjustments - Embedded generation","MW","Non-Coincident",0]
["ED_MDU541_05587",null,null,null,null,"Coincident",0]
["ED_MDU541_05588",null,null,"Weather Corrected MD 10% POE","MW","Non-Coincident",20.254322305511078]
["ED_MDU541_05589",null,null,null,null,"Coincident",19.870960101510732]
["ED_MDU541_05590",null,null,"Weather Corrected MD 10% POE","MVA","Non-Coincident",20.266496259154973]
["ED_MDU541_05591",null,null,null,null,"Coincident",19.870960101510732]
["ED_MDU541_05592",null,null,"Weather Corrected MD 50% POE","MW","Non-Coincident",18.968454640719173]
["ED_MDU541_05593",null,null,null,null,"Coincident",18.609430602893525]
["ED_MDU541_05594",null,null,"Weather Corrected MD 50% POE","MVA","Non-Coincident",18.979855717684835]
["ED_MDU541_05595",null,null,null,null,"Coincident",18.609430602893525]
["ED_MDU541_05596",null,"Mullumbimby","Substation Rating","MVA","Non-Coincident",31.2]
["ED_MDU541_05597",null,null,null,null,"Coincident",31.2]
["ED_MDU541_05598",null,null,"Raw Adjusted MD","MW","Non-Coincident",7.2359999999999998]
["ED_MDU541_05599",null,null,null,null,"Coincident",7.0259999999999998]
["ED_MDU541_05600",null,null,"Raw Adjusted MD","MVA","Non-Coincident",7.2574830347717665]
["ED_MDU541_05601",null,null,null,null,"Coincident",7.0467209395576322]
["ED_MDU541_05602",null,null,"Date MD occurred",null,"Non-Coincident","2014-07-08"]
["ED_MDU541_05603",null,null,null,null,"Coincident","2014-07-10"]
["ED_MDU541_05604",null,null,"Half hour time period MD occurred",null,"Non-Coincident","18:30:00"]
["ED_MDU541_05605",null,null,null,null,"Coincident","18:30:00"]
["ED_MDU541_05606",null,null,"Winter/Summer Peaking",null,"Non-Coincident","Winter"]
["ED_MDU541_05607",null,null,null,null,"Coincident","Winter"]
["ED_MDU541_05608",null,null,"Adjustments - Embedded generation","MW","Non-Coincident",0]
["ED_MDU541_05609",null,null,null,null,"Coincident",0]
["ED_MDU541_05610",null,null,"Weather Corrected MD 10% POE","MW","Non-Coincident",7.7635253281361436]
["ED_MDU541_05611",null,null,null,null,"Coincident",7.5382157207690081]
["ED_MDU541_05612",null,null,"Weather Corrected MD 10% POE","MVA","Non-Coincident",7.7865745382765308]
["ED_MDU541_05613",null,null,null,null,"Coincident",7.5382157207690081]
["ED_MDU541_05614",null,null,"Weather Corrected MD 50% POE","MW","Non-Coincident",7.358484000871961]
["ED_MDU541_05615",null,null,null,null,"Coincident",7.1449293242297394]
["ED_MDU541_05616",null,null,"Weather Corrected MD 50% POE","MVA","Non-Coincident",7.3803306796528094]
["ED_MDU541_05617",null,null,null,null,"Coincident",7.1449293242297394]
["ED_MDU541_05618",null,"Mulwala","Substation Rating","MVA","Non-Coincident",66]
["ED_MDU541_05619",null,null,null,null,"Coincident",72]
["ED_MDU541_05620",null,null,"Raw Adjusted MD","MW","Non-Coincident",12.36]
["ED_MDU541_05621",null,null,null,null,"Coincident",0]
["ED_MDU541_05622",null,null,"Raw Adjusted MD","MVA","Non-Coincident",12.772548688495965]
["ED_MDU541_05623",null,null,null,null,"Coincident",0]
["ED_MDU541_05624",null,null,"Date MD occurred",null,"Non-Coincident","2015-01-07"]
["ED_MDU541_05625",null,null,null,null,"Coincident","2014-07-10"]
["ED_MDU541_05626",null,null,"Half hour time period MD occurred",null,"Non-Coincident","17:30:00"]
["ED_MDU541_05627",null,null,null,null,"Coincident","18:30:00"]
["ED_MDU541_05628",null,null,"Winter/Summer Peaking",null,"Non-Coincident","Summer"]
["ED_MDU541_05629",null,null,null,null,"Coincident","Winter"]
["ED_MDU541_05630",null,null,"Adjustments - Embedded generation","MW","Non-Coincident",0]
["ED_MDU541_05631",null,null,null,null,"Coincident",0]
["ED_MDU541_05632",null,null,"Weather Corrected MD 10% POE","MW","Non-Coincident",12.846314186940901]
["ED_MDU541_05633",null,null,null,null,"Coincident",0]
["ED_MDU541_05634",null,null,"Weather Corrected MD 10% POE","MVA","Non-Coincident",13.275094936927115]
["ED_MDU541_05635",null,null,null,null,"Coincident",0]
["ED_MDU541_05636",null,null,"Weather Corrected MD 50% POE","MW","Non-Coincident",11.493514447407023]
["ED_MDU541_05637",null,null,null,null,"Coincident",0]
["ED_MDU541_05638",null,null,"Weather Corrected MD 50% POE","MVA","Non-Coincident",11.877141818886571]
["ED_MDU541_05639",null,null,null,null,"Coincident",0]
["ED_MDU541_05640",null,"Mumbil","Substation Rating","MVA","Non-Coincident",5.83]
["ED_MDU541_05641",null,null,null,null,"Coincident",6.3599999999999994]
["ED_MDU541_05642",null,null,"Raw Adjusted MD","MW","Non-Coincident",1.4233346005763177]
["ED_MDU541_05643",null,null,null,null,"Coincident",0]
["ED_MDU541_05644",null,null,"Raw Adjusted MD","MVA","Non-Coincident",1.4982469479750711]
["ED_MDU541_05645",null,null,null,null,"Coincident",0]
["ED_MDU541_05646",null,null,"Date MD occurred",null,"Non-Coincident","2014-11-23"]
["ED_MDU541_05647",null,null,null,null,"Coincident","2014-07-10"]
["ED_MDU541_05648",null,null,"Half hour time period MD occurred",null,"Non-Coincident","14:00:00"]
["ED_MDU541_05649",null,null,null,null,"Coincident","18:30:00"]
["ED_MDU541_05650",null,null,"Winter/Summer Peaking",null,"Non-Coincident","Summer"]
["ED_MDU541_05651",null,null,null,null,"Coincident","Winter"]
["ED_MDU541_05652",null,null,"Adjustments - Embedded generation","MW","Non-Coincident",0]
["ED_MDU541_05653",null,null,null,null,"Coincident",0]
["ED_MDU541_05654",null,null,"Weather Corrected MD 10% POE","MW","Non-Coincident",1.2576062743627068]
["ED_MDU541_05655",null,null,null,null,"Coincident",0]
["ED_MDU541_05656",null,null,"Weather Corrected MD 10% POE","MVA","Non-Coincident",1.3237960782765334]
["ED_MDU541_05657",null,null,null,null,"Coincident",0]
["ED_MDU541_05658",null,null,"Weather Corrected MD 50% POE","MW","Non-Coincident",1.1238450710353334]
["ED_MDU541_05659",null,null,null,null,"Coincident",0]
["ED_MDU541_05660",null,null,"Weather Corrected MD 50% POE","MVA","Non-Coincident",1.1829948116161404]
["ED_MDU541_05661",null,null,null,null,"Coincident",0]
["ED_MDU541_05662",null,"Munga","Substation Rating","MVA","Non-Coincident",6.6000000000000005]
["ED_MDU541_05663",null,null,null,null,"Coincident",7.1999999999999993]
["ED_MDU541_05664",null,null,"Raw Adjusted MD","MW","Non-Coincident",1.283758]
["ED_MDU541_05665",null,null,null,null,"Coincident",1.033552]
["ED_MDU541_05666",null,null,"Raw Adjusted MD","MVA","Non-Coincident",1.3157393149055021]
["ED_MDU541_05667",null,null,null,null,"Coincident",1.0355279138217377]
["ED_MDU541_05668",null,null,"Date MD occurred",null,"Non-Coincident","2014-11-23"]
["ED_MDU541_05669",null,null,null,null,"Coincident","2014-07-10"]
["ED_MDU541_05670",null,null,"Half hour time period MD occurred",null,"Non-Coincident","14:30:00"]
["ED_MDU541_05671",null,null,null,null,"Coincident","18:30:00"]
["ED_MDU541_05672",null,null,"Winter/Summer Peaking",null,"Non-Coincident","Summer"]
["ED_MDU541_05673",null,null,null,null,"Coincident","Winter"]
["ED_MDU541_05674",null,null,"Adjustments - Embedded generation","MW","Non-Coincident",0]
["ED_MDU541_05675",null,null,null,null,"Coincident",0]
["ED_MDU541_05676",null,null,"Weather Corrected MD 10% POE","MW","Non-Coincident",1.1922300335829603]
["ED_MDU541_05677",null,null,null,null,"Coincident",0.95986294587432819]
["ED_MDU541_05678",null,null,"Weather Corrected MD 10% POE","MVA","Non-Coincident",1.2219311798611638]
["ED_MDU541_05679",null,null,null,null,"Coincident",0.95986294587432819]
["ED_MDU541_05680",null,null,"Weather Corrected MD 50% POE","MW","Non-Coincident",1.0871527128117398]
["ED_MDU541_05681",null,null,null,null,"Coincident",0.87526532308425675]
["ED_MDU541_05682",null,null,"Weather Corrected MD 50% POE","MVA","Non-Coincident",1.1142361454048011]
["ED_MDU541_05683",null,null,null,null,"Coincident",0.87526532308425675]
["ED_MDU541_05684",null,"Mungindi","Substation Rating","MVA","Non-Coincident",18.599999999999998]
["ED_MDU541_05685",null,null,null,null,"Coincident",18.599999999999998]
["ED_MDU541_05686",null,null,"Raw Adjusted MD","MW","Non-Coincident",4.9518163404137274]
["ED_MDU541_05687",null,null,null,null,"Coincident",4.3779326946238344]
["ED_MDU541_05688",null,null,"Raw Adjusted MD","MVA","Non-Coincident",5.2124382530670816]
["ED_MDU541_05689",null,null,null,null,"Coincident",4.608350204867194]
["ED_MDU541_05690",null,null,"Date MD occurred",null,"Non-Coincident","2014-06-30"]
["ED_MDU541_05691",null,null,null,null,"Coincident","2014-07-10"]
["ED_MDU541_05692",null,null,"Half hour time period MD occurred",null,"Non-Coincident","18:30:00"]
["ED_MDU541_05693",null,null,null,null,"Coincident","18:30:00"]
["ED_MDU541_05694",null,null,"Winter/Summer Peaking",null,"Non-Coincident","Winter"]
["ED_MDU541_05695",null,null,null,null,"Coincident","Winter"]
["ED_MDU541_05696",null,null,"Adjustments - Embedded generation","MW","Non-Coincident",0]
["ED_MDU541_05697",null,null,null,null,"Coincident",0]
["ED_MDU541_05698",null,null,"Weather Corrected MD 10% POE","MW","Non-Coincident",5.4667929115130081]
["ED_MDU541_05699",null,null,null,null,"Coincident",4.8332267953320303]
["ED_MDU541_05700",null,null,"Weather Corrected MD 10% POE","MVA","Non-Coincident",5.7545188542242185]
["ED_MDU541_05701",null,null,null,null,"Coincident",4.8332267953320303]
["ED_MDU541_05702",null,null,"Weather Corrected MD 50% POE","MW","Non-Coincident",4.1995017931490093]
["ED_MDU541_05703",null,null,null,null,"Coincident",3.7128065617680757]
["ED_MDU541_05704",null,null,"Weather Corrected MD 50% POE","MVA","Non-Coincident",4.4205282033147464]
["ED_MDU541_05705",null,null,null,null,"Coincident",3.7128065617680757]
["ED_MDU541_05706",null,"Murgha","Substation Rating","MVA","Non-Coincident",1.2]
["ED_MDU541_05707",null,null,null,null,"Coincident",1.2]
["ED_MDU541_05708",null,null,"Raw Adjusted MD","MW","Non-Coincident",0.54630000000000001]
["ED_MDU541_05709",null,null,null,null,"Coincident",0.19350000000000001]
["ED_MDU541_05710",null,null,"Raw Adjusted MD","MVA","Non-Coincident",0.60390268255738022]
["ED_MDU541_05711",null,null,null,null,"Coincident",0.19350000000000001]
["ED_MDU541_05712",null,null,"Date MD occurred",null,"Non-Coincident","2014-08-27"]
["ED_MDU541_05713",null,null,null,null,"Coincident","2014-07-10"]
["ED_MDU541_05714",null,null,"Half hour time period MD occurred",null,"Non-Coincident","14:00:00"]
["ED_MDU541_05715",null,null,null,null,"Coincident","18:30:00"]
["ED_MDU541_05716",null,null,"Winter/Summer Peaking",null,"Non-Coincident","Winter"]
["ED_MDU541_05717",null,null,null,null,"Coincident","Winter"]
["ED_MDU541_05718",null,null,"Adjustments - Embedded generation","MW","Non-Coincident",0]
["ED_MDU541_05719",null,null,null,null,"Coincident",0]
["ED_MDU541_05720",null,null,"Weather Corrected MD 10% POE","MW","Non-Coincident",0.55436102538450105]
["ED_MDU541_05721",null,null,null,null,"Coincident",0.19635522315925491]
["ED_MDU541_05722",null,null,"Weather Corrected MD 10% POE","MVA","Non-Coincident",0.61281367441874457]
["ED_MDU541_05723",null,null,null,null,"Coincident",0.19635522315925491]
["ED_MDU541_05724",null,null,"Weather Corrected MD 50% POE","MW","Non-Coincident",0.48731764411222334]
["ED_MDU541_05725",null,null,null,null,"Coincident",0.17260839124238553]
["ED_MDU541_05726",null,null,"Weather Corrected MD 50% POE","MVA","Non-Coincident",0.53870113955137178]
["ED_MDU541_05727",null,null,null,null,"Coincident",0.17260839124238553]
["ED_MDU541_05728",null,"Murrami","Substation Rating","MVA","Non-Coincident",12]
["ED_MDU541_05729",null,null,null,null,"Coincident",12]
["ED_MDU541_05730",null,null,"Raw Adjusted MD","MW","Non-Coincident",1.200699970126152]
["ED_MDU541_05731",null,null,null,null,"Coincident",0.17866666987538338]
["ED_MDU541_05732",null,null,"Raw Adjusted MD","MVA","Non-Coincident",1.4282615542861183]
["ED_MDU541_05733",null,null,null,null,"Coincident",0.19535295944286066]
["ED_MDU541_05734",null,null,"Date MD occurred",null,"Non-Coincident","2014-05-16"]
["ED_MDU541_05735",null,null,null,null,"Coincident","2014-07-10"]
["ED_MDU541_05736",null,null,"Half hour time period MD occurred",null,"Non-Coincident","17:00:00"]
["ED_MDU541_05737",null,null,null,null,"Coincident","18:30:00"]
["ED_MDU541_05738",null,null,"Winter/Summer Peaking",null,"Non-Coincident","Winter"]
["ED_MDU541_05739",null,null,null,null,"Coincident","Winter"]
["ED_MDU541_05740",null,null,"Adjustments - Embedded generation","MW","Non-Coincident",0]
["ED_MDU541_05741",null,null,null,null,"Coincident",0]
["ED_MDU541_05742",null,null,"Weather Corrected MD 10% POE","MW","Non-Coincident",1.6352800450956633]
["ED_MDU541_05743",null,null,null,null,"Coincident",0.24333309506138487]
["ED_MDU541_05744",null,null,"Weather Corrected MD 10% POE","MVA","Non-Coincident",1.9452050279105231]
["ED_MDU541_05745",null,null,null,null,"Coincident",0.24333309506138487]
["ED_MDU541_05746",null,null,"Weather Corrected MD 50% POE","MW","Non-Coincident",1.3153719196414444]
["ED_MDU541_05747",null,null,null,null,"Coincident",0.19573009609156192]
["ED_MDU541_05748",null,null,"Weather Corrected MD 50% POE","MVA","Non-Coincident",1.5646666021104496]
["ED_MDU541_05749",null,null,null,null,"Coincident",0.19573009609156192]
["ED_MDU541_05750",null,"Murrumbateman","Substation Rating","MVA","Non-Coincident",15]
["ED_MDU541_05751",null,null,null,null,"Coincident",15]
["ED_MDU541_05752",null,null,"Raw Adjusted MD","MW","Non-Coincident",5.7096]
["ED_MDU541_05753",null,null,null,null,"Coincident",5.0183999999999997]
["ED_MDU541_05754",null,null,"Raw Adjusted MD","MVA","Non-Coincident",5.7110980380308654]
["ED_MDU541_05755",null,null,null,null,"Coincident",5.0187305486547089]
["ED_MDU541_05756",null,null,"Date MD occurred",null,"Non-Coincident","2014-08-04"]
["ED_MDU541_05757",null,null,null,null,"Coincident","2014-07-10"]
["ED_MDU541_05758",null,null,"Half hour time period MD occurred",null,"Non-Coincident","07:30:00"]
["ED_MDU541_05759",null,null,null,null,"Coincident","18:30:00"]
["ED_MDU541_05760",null,null,"Winter/Summer Peaking",null,"Non-Coincident","Winter"]
["ED_MDU541_05761",null,null,null,null,"Coincident","Winter"]
["ED_MDU541_05762",null,null,"Adjustments - Embedded generation","MW","Non-Coincident",0]
["ED_MDU541_05763",null,null,null,null,"Coincident",0]
["ED_MDU541_05764",null,null,"Weather Corrected MD 10% POE","MW","Non-Coincident",6.1195329742407099]
["ED_MDU541_05765",null,null,null,null,"Coincident",5.3787067882040027]
["ED_MDU541_05766",null,null,"Weather Corrected MD 10% POE","MVA","Non-Coincident",6.1211385671240199]
["ED_MDU541_05767",null,null,null,null,"Coincident",5.3787067882040027]
["ED_MDU541_05768",null,null,"Weather Corrected MD 50% POE","MW","Non-Coincident",5.7274585575879229]
["ED_MDU541_05769",null,null,null,null,"Coincident",5.0340966136680727]
["ED_MDU541_05770",null,null,"Weather Corrected MD 50% POE","MVA","Non-Coincident",5.7289612812006929]
["ED_MDU541_05771",null,null,null,null,"Coincident",5.0340966136680727]
["ED_MDU541_05772",null,"Murrumburrah","Substation Rating","MVA","Non-Coincident",22]
["ED_MDU541_05773",null,null,null,null,"Coincident",24]
["ED_MDU541_05774",null,null,"Raw Adjusted MD","MW","Non-Coincident",4.3125]
["ED_MDU541_05775",null,null,null,null,"Coincident",4.1745000000000001]
["ED_MDU541_05776",null,null,"Raw Adjusted MD","MVA","Non-Coincident",4.5408964148062223]
["ED_MDU541_05777",null,null,null,null,"Coincident",4.2397560366134277]
["ED_MDU541_05778",null,null,"Date MD occurred",null,"Non-Coincident","2014-11-23"]
["ED_MDU541_05779",null,null,null,null,"Coincident","2014-07-10"]
["ED_MDU541_05780",null,null,"Half hour time period MD occurred",null,"Non-Coincident","17:00:00"]
["ED_MDU541_05781",null,null,null,null,"Coincident","18:30:00"]
["ED_MDU541_05782",null,null,"Winter/Summer Peaking",null,"Non-Coincident","Summer"]
["ED_MDU541_05783",null,null,null,null,"Coincident","Winter"]
["ED_MDU541_05784",null,null,"Adjustments - Embedded generation","MW","Non-Coincident",0]
["ED_MDU541_05785",null,null,null,null,"Coincident",0]
["ED_MDU541_05786",null,null,"Weather Corrected MD 10% POE","MW","Non-Coincident",4.5530811765501777]
["ED_MDU541_05787",null,null,null,null,"Coincident",4.4073825789005721]
["ED_MDU541_05788",null,null,"Weather Corrected MD 10% POE","MVA","Non-Coincident",4.7942191283289048]
["ED_MDU541_05789",null,null,null,null,"Coincident",4.4073825789005721]
["ED_MDU541_05790",null,null,"Weather Corrected MD 50% POE","MW","Non-Coincident",4.2785483892905898]
["ED_MDU541_05791",null,null,null,null,"Coincident",4.1416348408332908]
["ED_MDU541_05792",null,null,"Weather Corrected MD 50% POE","MVA","Non-Coincident",4.5051466762909165]
["ED_MDU541_05793",null,null,null,null,"Coincident",4.1416348408332908]
["ED_MDU541_05794",null,"Murrurundi","Substation Rating","MVA","Non-Coincident",17.600000000000001]
["ED_MDU541_05795",null,null,null,null,"Coincident",19.2]
["ED_MDU541_05796",null,null,"Raw Adjusted MD","MW","Non-Coincident",2.6183333396911621]
["ED_MDU541_05797",null,null,null,null,"Coincident",2.0750000476837158]
["ED_MDU541_05798",null,null,"Raw Adjusted MD","MVA","Non-Coincident",2.698210312232395]
["ED_MDU541_05799",null,null,null,null,"Coincident",2.0928817928704992]
["ED_MDU541_05800",null,null,"Date MD occurred",null,"Non-Coincident","2014-11-23"]
["ED_MDU541_05801",null,null,null,null,"Coincident","2014-07-10"]
["ED_MDU541_05802",null,null,"Half hour time period MD occurred",null,"Non-Coincident","19:00:00"]
["ED_MDU541_05803",null,null,null,null,"Coincident","18:30:00"]
["ED_MDU541_05804",null,null,"Winter/Summer Peaking",null,"Non-Coincident","Summer"]
["ED_MDU541_05805",null,null,null,null,"Coincident","Winter"]
["ED_MDU541_05806",null,null,"Adjustments - Embedded generation","MW","Non-Coincident",0]
["ED_MDU541_05807",null,null,null,null,"Coincident",0]
["ED_MDU541_05808",null,null,"Weather Corrected MD 10% POE","MW","Non-Coincident",2.0225118843500272]
["ED_MDU541_05809",null,null,null,null,"Coincident",1.6028181717161341]
["ED_MDU541_05810",null,null,"Weather Corrected MD 10% POE","MVA","Non-Coincident",2.0842122506867287]
["ED_MDU541_05811",null,null,null,null,"Coincident",1.6028181717161341]
["ED_MDU541_05812",null,null,"Weather Corrected MD 50% POE","MW","Non-Coincident",1.8444468856329443]
["ED_MDU541_05813",null,null,null,null,"Coincident",1.4617036408702149]
["ED_MDU541_05814",null,null,"Weather Corrected MD 50% POE","MVA","Non-Coincident",1.9007150585978285]
["ED_MDU541_05815",null,null,null,null,"Coincident",1.4617036408702149]
["ED_MDU541_05816",null,"Murwillumbah","Substation Rating","MVA","Non-Coincident",55.000000000000007]
["ED_MDU541_05817",null,null,null,null,"Coincident",60]
["ED_MDU541_05818",null,null,"Raw Adjusted MD","MW","Non-Coincident",16.71253358758986]
["ED_MDU541_05819",null,null,null,null,"Coincident",14.050000190734863]
["ED_MDU541_05820",null,null,"Raw Adjusted MD","MVA","Non-Coincident",17.751311332722054]
["ED_MDU541_05821",null,null,null,null,"Coincident",14.722358550008687]
["ED_MDU541_05822",null,null,"Date MD occurred",null,"Non-Coincident","2015-03-05"]
["ED_MDU541_05823",null,null,null,null,"Coincident","2014-07-10"]
["ED_MDU541_05824",null,null,"Half hour time period MD occurred",null,"Non-Coincident","20:00:00"]
["ED_MDU541_05825",null,null,null,null,"Coincident","18:30:00"]
["ED_MDU541_05826",null,null,"Winter/Summer Peaking",null,"Non-Coincident","Summer"]
["ED_MDU541_05827",null,null,null,null,"Coincident","Winter"]
["ED_MDU541_05828",null,null,"Adjustments - Embedded generation","MW","Non-Coincident",0]
["ED_MDU541_05829",null,null,null,null,"Coincident",0]
["ED_MDU541_05830",null,null,"Weather Corrected MD 10% POE","MW","Non-Coincident",15.106364644063291]
["ED_MDU541_05831",null,null,null,null,"Coincident",12.699715756323439]
["ED_MDU541_05832",null,null,"Weather Corrected MD 10% POE","MVA","Non-Coincident",16.045309976311252]
["ED_MDU541_05833",null,null,null,null,"Coincident",12.699715756323439]
["ED_MDU541_05834",null,null,"Weather Corrected MD 50% POE","MW","Non-Coincident",13.597913432715538]
["ED_MDU541_05835",null,null,null,null,"Coincident",11.431581293282605]
["ED_MDU541_05836",null,null,"Weather Corrected MD 50% POE","MVA","Non-Coincident",14.443100057478878]
["ED_MDU541_05837",null,null,null,null,"Coincident",11.431581293282605]
["ED_MDU541_05838",null,"Nambucca Heads","Substation Rating","MVA","Non-Coincident",56.4]
["ED_MDU541_05839",null,null,null,null,"Coincident",56.4]
["ED_MDU541_05840",null,null,"Raw Adjusted MD","MW","Non-Coincident",7.5662719999999997]
["ED_MDU541_05841",null,null,null,null,"Coincident",7.5662719999999997]
["ED_MDU541_05842",null,null,"Raw Adjusted MD","MVA","Non-Coincident",7.5866570773633883]
["ED_MDU541_05843",null,null,null,null,"Coincident",7.5866570773633883]
["ED_MDU541_05844",null,null,"Date MD occurred",null,"Non-Coincident","2014-07-10"]
["ED_MDU541_05845",null,null,null,null,"Coincident","2014-07-10"]
["ED_MDU541_05846",null,null,"Half hour time period MD occurred",null,"Non-Coincident","18:30:00"]
["ED_MDU541_05847",null,null,null,null,"Coincident","18:30:00"]
["ED_MDU541_05848",null,null,"Winter/Summer Peaking",null,"Non-Coincident","Winter"]
["ED_MDU541_05849",null,null,null,null,"Coincident","Winter"]
["ED_MDU541_05850",null,null,"Adjustments - Embedded generation","MW","Non-Coincident",0]
["ED_MDU541_05851",null,null,null,null,"Coincident",0]
["ED_MDU541_05852",null,null,"Weather Corrected MD 10% POE","MW","Non-Coincident",8.0069914150533119]
["ED_MDU541_05853",null,null,null,null,"Coincident",8.0069914150533119]
["ED_MDU541_05854",null,null,"Weather Corrected MD 10% POE","MVA","Non-Coincident",8.0285638802572912]
["ED_MDU541_05855",null,null,null,null,"Coincident",8.0069914150533119]
["ED_MDU541_05856",null,null,"Weather Corrected MD 50% POE","MW","Non-Coincident",7.4968227565530166]
["ED_MDU541_05857",null,null,null,null,"Coincident",7.4968227565530166]
["ED_MDU541_05858",null,null,"Weather Corrected MD 50% POE","MVA","Non-Coincident",7.5170207235137525]
["ED_MDU541_05859",null,null,null,null,"Coincident",7.4968227565530166]
["ED_MDU541_05860",null,"Nana Glen","Substation Rating","MVA","Non-Coincident",16.8]
["ED_MDU541_05861",null,null,null,null,"Coincident",16.8]
["ED_MDU541_05862",null,null,"Raw Adjusted MD","MW","Non-Coincident",2.6999172038427348]
["ED_MDU541_05863",null,null,null,null,"Coincident",2.0285086382292064]
["ED_MDU541_05864",null,null,"Raw Adjusted MD","MVA","Non-Coincident",2.8420181093081425]
["ED_MDU541_05865",null,null,null,null,"Coincident",2.1352722507675859]
["ED_MDU541_05866",null,null,"Date MD occurred",null,"Non-Coincident","2014-08-27"]
["ED_MDU541_05867",null,null,null,null,"Coincident","2014-07-10"]
["ED_MDU541_05868",null,null,"Half hour time period MD occurred",null,"Non-Coincident","11:30:00"]
["ED_MDU541_05869",null,null,null,null,"Coincident","18:30:00"]
["ED_MDU541_05870",null,null,"Winter/Summer Peaking",null,"Non-Coincident","Winter"]
["ED_MDU541_05871",null,null,null,null,"Coincident","Winter"]
["ED_MDU541_05872",null,null,"Adjustments - Embedded generation","MW","Non-Coincident",0]
["ED_MDU541_05873",null,null,null,null,"Coincident",0]
["ED_MDU541_05874",null,null,"Weather Corrected MD 10% POE","MW","Non-Coincident",2.265804707792344]
["ED_MDU541_05875",null,null,null,null,"Coincident",1.7023501371654999]
["ED_MDU541_05876",null,null,"Weather Corrected MD 10% POE","MVA","Non-Coincident",2.3850575871498361]
["ED_MDU541_05877",null,null,null,null,"Coincident",1.7023501371654999]
["ED_MDU541_05878",null,null,"Weather Corrected MD 50% POE","MW","Non-Coincident",2.0989956599802899]
["ED_MDU541_05879",null,null,null,null,"Coincident",1.5770227404809125]
["ED_MDU541_05880",null,null,"Weather Corrected MD 50% POE","MVA","Non-Coincident",2.2094691157687265]
["ED_MDU541_05881",null,null,null,null,"Coincident",1.5770227404809125]
["ED_MDU541_05882",null,"Nangus","Substation Rating","MVA","Non-Coincident",4.18]
["ED_MDU541_05883",null,null,null,null,"Coincident",4.5599999999999996]
["ED_MDU541_05884",null,null,"Raw Adjusted MD","MW","Non-Coincident",0.9486]
["ED_MDU541_05885",null,null,null,null,"Coincident",0.42180000000000001]
["ED_MDU541_05886",null,null,"Raw Adjusted MD","MVA","Non-Coincident",1.0666727708158674]
["ED_MDU541_05887",null,null,null,null,"Coincident",0.43067881303820837]
["ED_MDU541_05888",null,null,"Date MD occurred",null,"Non-Coincident","2015-02-24"]
["ED_MDU541_05889",null,null,null,null,"Coincident","2014-07-10"]
["ED_MDU541_05890",null,null,"Half hour time period MD occurred",null,"Non-Coincident","18:00:00"]
["ED_MDU541_05891",null,null,null,null,"Coincident","18:30:00"]
["ED_MDU541_05892",null,null,"Winter/Summer Peaking",null,"Non-Coincident","Summer"]
["ED_MDU541_05893",null,null,null,null,"Coincident","Winter"]
["ED_MDU541_05894",null,null,"Adjustments - Embedded generation","MW","Non-Coincident",0]
["ED_MDU541_05895",null,null,null,null,"Coincident",0]
["ED_MDU541_05896",null,null,"Weather Corrected MD 10% POE","MW","Non-Coincident",1.0016431233898169]
["ED_MDU541_05897",null,null,null,null,"Coincident",0.44538590496081037]
["ED_MDU541_05898",null,null,"Weather Corrected MD 10% POE","MVA","Non-Coincident",1.126318201343955]
["ED_MDU541_05899",null,null,null,null,"Coincident",0.44538590496081037]
["ED_MDU541_05900",null,null,"Weather Corrected MD 50% POE","MW","Non-Coincident",0.82528266176408716]
["ED_MDU541_05901",null,null,null,null,"Coincident",0.36696629425689642]
["ED_MDU541_05902",null,null,"Weather Corrected MD 50% POE","MVA","Non-Coincident",0.92800605474403663]
["ED_MDU541_05903",null,null,null,null,"Coincident",0.36696629425689642]
["ED_MDU541_05904",null,"Narooma","Substation Rating","MVA","Non-Coincident",34.199999999999996]
["ED_MDU541_05905",null,null,null,null,"Coincident",34.199999999999996]
["ED_MDU541_05906",null,null,"Raw Adjusted MD","MW","Non-Coincident",6.516]
["ED_MDU541_05907",null,null,null,null,"Coincident",6.03]
["ED_MDU541_05908",null,null,"Raw Adjusted MD","MVA","Non-Coincident",6.6108783077591138]
["ED_MDU541_05909",null,null,null,null,"Coincident",6.122805239430698]
["ED_MDU541_05910",null,null,"Date MD occurred",null,"Non-Coincident","2014-07-15"]
["ED_MDU541_05911",null,null,null,null,"Coincident","2014-07-10"]
["ED_MDU541_05912",null,null,"Half hour time period MD occurred",null,"Non-Coincident","18:00:00"]
["ED_MDU541_05913",null,null,null,null,"Coincident","18:30:00"]
["ED_MDU541_05914",null,null,"Winter/Summer Peaking",null,"Non-Coincident","Winter"]
["ED_MDU541_05915",null,null,null,null,"Coincident","Winter"]
["ED_MDU541_05916",null,null,"Adjustments - Embedded generation","MW","Non-Coincident",0]
["ED_MDU541_05917",null,null,null,null,"Coincident",0]
["ED_MDU541_05918",null,null,"Weather Corrected MD 10% POE","MW","Non-Coincident",6.7632094981408413]
["ED_MDU541_05919",null,null,null,null,"Coincident",6.2587712206551984]
["ED_MDU541_05920",null,null,"Weather Corrected MD 10% POE","MVA","Non-Coincident",6.8616873790806761]
["ED_MDU541_05921",null,null,null,null,"Coincident",6.2587712206551984]
["ED_MDU541_05922",null,null,"Weather Corrected MD 50% POE","MW","Non-Coincident",6.4272794706072851]
["ED_MDU541_05923",null,null,null,null,"Coincident",5.9478967476614377]
["ED_MDU541_05924",null,null,"Weather Corrected MD 50% POE","MVA","Non-Coincident",6.5208659346444406]
["ED_MDU541_05925",null,null,null,null,"Coincident",5.9478967476614377]
["ED_MDU541_05926",null,"Narrabri","Substation Rating","MVA","Non-Coincident",72]
["ED_MDU541_05927",null,null,null,null,"Coincident",72]
["ED_MDU541_05928",null,null,"Raw Adjusted MD","MW","Non-Coincident",18.324000000000002]
["ED_MDU541_05929",null,null,null,null,"Coincident",16.920000000000002]
["ED_MDU541_05930",null,null,"Raw Adjusted MD","MVA","Non-Coincident",18.691134822690675]
["ED_MDU541_05931",null,null,null,null,"Coincident",17.337093181961041]
["ED_MDU541_05932",null,null,"Date MD occurred",null,"Non-Coincident","2014-06-29"]
["ED_MDU541_05933",null,null,null,null,"Coincident","2014-07-10"]
["ED_MDU541_05934",null,null,"Half hour time period MD occurred",null,"Non-Coincident","19:00:00"]
["ED_MDU541_05935",null,null,null,null,"Coincident","18:30:00"]
["ED_MDU541_05936",null,null,"Winter/Summer Peaking",null,"Non-Coincident","Winter"]
["ED_MDU541_05937",null,null,null,null,"Coincident","Winter"]
["ED_MDU541_05938",null,null,"Adjustments - Embedded generation","MW","Non-Coincident",0]
["ED_MDU541_05939",null,null,null,null,"Coincident",0]
["ED_MDU541_05940",null,null,"Weather Corrected MD 10% POE","MW","Non-Coincident",18.758397221445513]
["ED_MDU541_05941",null,null,null,null,"Coincident",17.321113347896645]
["ED_MDU541_05942",null,null,"Weather Corrected MD 10% POE","MVA","Non-Coincident",19.134235512094747]
["ED_MDU541_05943",null,null,null,null,"Coincident",17.321113347896645]
["ED_MDU541_05944",null,null,"Weather Corrected MD 50% POE","MW","Non-Coincident",16.069283315081254]
["ED_MDU541_05945",null,null,null,null,"Coincident",14.838041567953221]
["ED_MDU541_05946",null,null,"Weather Corrected MD 50% POE","MVA","Non-Coincident",16.391243229982397]
["ED_MDU541_05947",null,null,null,null,"Coincident",14.838041567953221]
["ED_MDU541_05948",null,"Narrandera","Substation Rating","MVA","Non-Coincident",35.200000000000003]
["ED_MDU541_05949",null,null,null,null,"Coincident",38.4]
["ED_MDU541_05950",null,null,"Raw Adjusted MD","MW","Non-Coincident",8.5806000000000004]
["ED_MDU541_05951",null,null,null,null,"Coincident",6.4367999999999999]
["ED_MDU541_05952",null,null,"Raw Adjusted MD","MVA","Non-Coincident",8.8913476127075359]
["ED_MDU541_05953",null,null,null,null,"Coincident",6.4411837421393283]
["ED_MDU541_05954",null,null,"Date MD occurred",null,"Non-Coincident","2014-11-23"]
["ED_MDU541_05955",null,null,null,null,"Coincident","2014-07-10"]
["ED_MDU541_05956",null,null,"Half hour time period MD occurred",null,"Non-Coincident","17:00:00"]
["ED_MDU541_05957",null,null,null,null,"Coincident","18:30:00"]
["ED_MDU541_05958",null,null,"Winter/Summer Peaking",null,"Non-Coincident","Summer"]
["ED_MDU541_05959",null,null,null,null,"Coincident","Winter"]
["ED_MDU541_05960",null,null,"Adjustments - Embedded generation","MW","Non-Coincident",0]
["ED_MDU541_05961",null,null,null,null,"Coincident",0]
["ED_MDU541_05962",null,null,"Weather Corrected MD 10% POE","MW","Non-Coincident",9.629593600675916]
["ED_MDU541_05963",null,null,null,null,"Coincident",7.2237102404063505]
["ED_MDU541_05964",null,null,"Weather Corrected MD 10% POE","MVA","Non-Coincident",9.9783306613422802]
["ED_MDU541_05965",null,null,null,null,"Coincident",7.2237102404063505]
["ED_MDU541_05966",null,null,"Weather Corrected MD 50% POE","MW","Non-Coincident",8.9714680362442287]
["ED_MDU541_05967",null,null,null,null,"Coincident",6.7300125230982504]
["ED_MDU541_05968",null,null,"Weather Corrected MD 50% POE","MVA","Non-Coincident",9.2963709888052222]
["ED_MDU541_05969",null,null,null,null,"Coincident",6.7300125230982504]
["ED_MDU541_05970",null,"Narromine","Substation Rating","MVA","Non-Coincident",57.599999999999994]
["ED_MDU541_05971",null,null,null,null,"Coincident",57.599999999999994]
["ED_MDU541_05972",null,null,"Raw Adjusted MD","MW","Non-Coincident",13.017599745711777]
["ED_MDU541_05973",null,null,null,null,"Coincident",11.750733333348762]
["ED_MDU541_05974",null,null,"Raw Adjusted MD","MVA","Non-Coincident",13.051022985088503]
["ED_MDU541_05975",null,null,null,null,"Coincident",11.805279821809519]
["ED_MDU541_05976",null,null,"Date MD occurred",null,"Non-Coincident","2014-07-13"]
["ED_MDU541_05977",null,null,null,null,"Coincident","2014-07-10"]
["ED_MDU541_05978",null,null,"Half hour time period MD occurred",null,"Non-Coincident","19:00:00"]
["ED_MDU541_05979",null,null,null,null,"Coincident","18:30:00"]
["ED_MDU541_05980",null,null,"Winter/Summer Peaking",null,"Non-Coincident","Winter"]
["ED_MDU541_05981",null,null,null,null,"Coincident","Winter"]
["ED_MDU541_05982",null,null,"Adjustments - Embedded generation","MW","Non-Coincident",0]
["ED_MDU541_05983",null,null,null,null,"Coincident",0]
["ED_MDU541_05984",null,null,"Weather Corrected MD 10% POE","MW","Non-Coincident",12.405461081504829]
["ED_MDU541_05985",null,null,null,null,"Coincident",11.198167703229608]
["ED_MDU541_05986",null,null,"Weather Corrected MD 10% POE","MVA","Non-Coincident",12.437312628902603]
["ED_MDU541_05987",null,null,null,null,"Coincident",11.198167703229608]
["ED_MDU541_05988",null,null,"Weather Corrected MD 50% POE","MW","Non-Coincident",10.613969007678081]
["ED_MDU541_05989",null,null,null,null,"Coincident",9.5810227579580545]
["ED_MDU541_05990",null,null,"Weather Corrected MD 50% POE","MVA","Non-Coincident",10.641220823205567]
["ED_MDU541_05991",null,null,null,null,"Coincident",9.5810227579580545]
["ED_MDU541_05992",null,"Nericon","Substation Rating","MVA","Non-Coincident",8.8000000000000007]
["ED_MDU541_05993",null,null,null,null,"Coincident",9.6]
["ED_MDU541_05994",null,null,"Raw Adjusted MD","MW","Non-Coincident",1.5583333373069763]
["ED_MDU541_05995",null,null,null,null,"Coincident",0.23500000685453415]
["ED_MDU541_05996",null,null,"Raw Adjusted MD","MVA","Non-Coincident",1.7124551909034154]
["ED_MDU541_05997",null,null,null,null,"Coincident",0.2390225536146878]
["ED_MDU541_05998",null,null,"Date MD occurred",null,"Non-Coincident","2015-01-04"]
["ED_MDU541_05999",null,null,null,null,"Coincident","2014-07-10"]
["ED_MDU541_06000",null,null,"Half hour time period MD occurred",null,"Non-Coincident","00:30:00"]
["ED_MDU541_06001",null,null,null,null,"Coincident","18:30:00"]
["ED_MDU541_06002",null,null,"Winter/Summer Peaking",null,"Non-Coincident","Summer"]
["ED_MDU541_06003",null,null,null,null,"Coincident","Winter"]
["ED_MDU541_06004",null,null,"Adjustments - Embedded generation","MW","Non-Coincident",0]
["ED_MDU541_06005",null,null,null,null,"Coincident",0]
["ED_MDU541_06006",null,null,"Weather Corrected MD 10% POE","MW","Non-Coincident",1.3381925344218704]
["ED_MDU541_06007",null,null,null,null,"Coincident",0.20180230200637583]
["ED_MDU541_06008",null,null,"Weather Corrected MD 10% POE","MVA","Non-Coincident",1.4705420830944511]
["ED_MDU541_06009",null,null,null,null,"Coincident",0.20180230200637583]
["ED_MDU541_06010",null,null,"Weather Corrected MD 50% POE","MW","Non-Coincident",1.0654313262563329]
["ED_MDU541_06011",null,null,null,null,"Coincident",0.16066932727368841]
["ED_MDU541_06012",null,null,"Weather Corrected MD 50% POE","MVA","Non-Coincident",1.1708043212062518]
["ED_MDU541_06013",null,null,null,null,"Coincident",0.16066932727368841]
["ED_MDU541_06014",null,"Nevertire","Substation Rating","MVA","Non-Coincident",40.799999999999997]
["ED_MDU541_06015",null,null,null,null,"Coincident",40.799999999999997]
["ED_MDU541_06016",null,null,"Raw Adjusted MD","MW","Non-Coincident",8.2829999999999995]
["ED_MDU541_06017",null,null,null,null,"Coincident",5.109]
["ED_MDU541_06018",null,null,"Raw Adjusted MD","MVA","Non-Coincident",8.4504653718005383]
["ED_MDU541_06019",null,null,null,null,"Coincident",5.1231867036054819]
["ED_MDU541_06020",null,null,"Date MD occurred",null,"Non-Coincident","2014-06-29"]
["ED_MDU541_06021",null,null,null,null,"Coincident","2014-07-10"]
["ED_MDU541_06022",null,null,"Half hour time period MD occurred",null,"Non-Coincident","19:00:00"]
["ED_MDU541_06023",null,null,null,null,"Coincident","18:30:00"]
["ED_MDU541_06024",null,null,"Winter/Summer Peaking",null,"Non-Coincident","Winter"]
["ED_MDU541_06025",null,null,null,null,"Coincident","Winter"]
["ED_MDU541_06026",null,null,"Adjustments - Embedded generation","MW","Non-Coincident",0]
["ED_MDU541_06027",null,null,null,null,"Coincident",0]
["ED_MDU541_06028",null,null,"Weather Corrected MD 10% POE","MW","Non-Coincident",8.4044910900134333]
["ED_MDU541_06029",null,null,null,null,"Coincident",5.1839363731593178]
["ED_MDU541_06030",null,null,"Weather Corrected MD 10% POE","MVA","Non-Coincident",8.5744127639459951]
["ED_MDU541_06031",null,null,null,null,"Coincident",5.1839363731593178]
["ED_MDU541_06032",null,null,"Weather Corrected MD 50% POE","MW","Non-Coincident",6.6170951131304934]
["ED_MDU541_06033",null,null,null,null,"Coincident",4.0814606945531438]
["ED_MDU541_06034",null,null,"Weather Corrected MD 50% POE","MVA","Non-Coincident",6.7508792847301455]
["ED_MDU541_06035",null,null,null,null,"Coincident",4.0814606945531438]
["ED_MDU541_06036",null,"North St","Substation Rating","MVA","Non-Coincident",22]
["ED_MDU541_06037",null,null,null,null,"Coincident",24]
["ED_MDU541_06038",null,null,"Raw Adjusted MD","MW","Non-Coincident",8.4250001907348633]
["ED_MDU541_06039",null,null,null,null,"Coincident",8.2783336639404297]
["ED_MDU541_06040",null,null,"Raw Adjusted MD","MVA","Non-Coincident",8.5191924084895145]
["ED_MDU541_06041",null,null,null,null,"Coincident",8.496191944764389]
["ED_MDU541_06042",null,null,"Date MD occurred",null,"Non-Coincident","2015-01-14"]
["ED_MDU541_06043",null,null,null,null,"Coincident","2014-07-10"]
["ED_MDU541_06044",null,null,"Half hour time period MD occurred",null,"Non-Coincident","18:30:00"]
["ED_MDU541_06045",null,null,null,null,"Coincident","18:30:00"]
["ED_MDU541_06046",null,null,"Winter/Summer Peaking",null,"Non-Coincident","Summer"]
["ED_MDU541_06047",null,null,null,null,"Coincident","Winter"]
["ED_MDU541_06048",null,null,"Adjustments - Embedded generation","MW","Non-Coincident",0]
["ED_MDU541_06049",null,null,null,null,"Coincident",0]
["ED_MDU541_06050",null,null,"Weather Corrected MD 10% POE","MW","Non-Coincident",9.132137980684039]
["ED_MDU541_06051",null,null,null,null,"Coincident",8.9731612531455163]
["ED_MDU541_06052",null,null,"Weather Corrected MD 10% POE","MVA","Non-Coincident",9.2342360589948331]
["ED_MDU541_06053",null,null,null,null,"Coincident",8.9731612531455163]
["ED_MDU541_06054",null,null,"Weather Corrected MD 50% POE","MW","Non-Coincident",8.6119733332143511]
["ED_MDU541_06055",null,null,null,null,"Coincident",8.4620518864447867]
["ED_MDU541_06056",null,null,"Weather Corrected MD 50% POE","MVA","Non-Coincident",8.7082559265834814]
["ED_MDU541_06057",null,null,null,null,"Coincident",8.4620518864447867]
["ED_MDU541_06058",null,"Nundle","Substation Rating","MVA","Non-Coincident",5.5]
["ED_MDU541_06059",null,null,null,null,"Coincident",6]
["ED_MDU541_06060",null,null,"Raw Adjusted MD","MW","Non-Coincident",1.5929999351501465]
["ED_MDU541_06061",null,null,null,null,"Coincident",1.1358333230018616]
["ED_MDU541_06062",null,null,"Raw Adjusted MD","MVA","Non-Coincident",1.7186255520054599]
["ED_MDU541_06063",null,null,null,null,"Coincident",1.176356472220889]
["ED_MDU541_06064",null,null,"Date MD occurred",null,"Non-Coincident","2014-11-23"]
["ED_MDU541_06065",null,null,null,null,"Coincident","2014-07-10"]
["ED_MDU541_06066",null,null,"Half hour time period MD occurred",null,"Non-Coincident","18:30:00"]
["ED_MDU541_06067",null,null,null,null,"Coincident","18:30:00"]
["ED_MDU541_06068",null,null,"Winter/Summer Peaking",null,"Non-Coincident","Summer"]
["ED_MDU541_06069",null,null,null,null,"Coincident","Winter"]
["ED_MDU541_06070",null,null,"Adjustments - Embedded generation","MW","Non-Coincident",0]
["ED_MDU541_06071",null,null,null,null,"Coincident",0]
["ED_MDU541_06072",null,null,"Weather Corrected MD 10% POE","MW","Non-Coincident",1.2696984631083765]
["ED_MDU541_06073",null,null,null,null,"Coincident",0.90531442766619707]
["ED_MDU541_06074",null,null,"Weather Corrected MD 10% POE","MVA","Non-Coincident",1.3698281926385909]
["ED_MDU541_06075",null,null,null,null,"Coincident",0.90531442766619707]
["ED_MDU541_06076",null,null,"Weather Corrected MD 50% POE","MW","Non-Coincident",1.1785201088939596]
["ED_MDU541_06077",null,null,null,null,"Coincident",0.84030286629193962]
["ED_MDU541_06078",null,null,"Weather Corrected MD 50% POE","MVA","Non-Coincident",1.2714594194296127]
["ED_MDU541_06079",null,null,null,null,"Coincident",0.84030286629193962]
["ED_MDU541_06080",null,"Nymboida","Substation Rating","MVA","Non-Coincident",1.44]
["ED_MDU541_06081",null,null,null,null,"Coincident",1.44]
["ED_MDU541_06082",null,null,"Raw Adjusted MD","MW","Non-Coincident",0.51]
["ED_MDU541_06083",null,null,null,null,"Coincident",0.42]
["ED_MDU541_06084",null,null,"Raw Adjusted MD","MVA","Non-Coincident",0.5159302278409359]
["ED_MDU541_06085",null,null,null,null,"Coincident",0.42273395889140486]
["ED_MDU541_06086",null,null,"Date MD occurred",null,"Non-Coincident","2014-05-08"]
["ED_MDU541_06087",null,null,null,null,"Coincident","2014-07-10"]
["ED_MDU541_06088",null,null,"Half hour time period MD occurred",null,"Non-Coincident","19:00:00"]
["ED_MDU541_06089",null,null,null,null,"Coincident","18:30:00"]
["ED_MDU541_06090",null,null,"Winter/Summer Peaking",null,"Non-Coincident","Winter"]
["ED_MDU541_06091",null,null,null,null,"Coincident","Winter"]
["ED_MDU541_06092",null,null,"Adjustments - Embedded generation","MW","Non-Coincident",0]
["ED_MDU541_06093",null,null,null,null,"Coincident",0]
["ED_MDU541_06094",null,null,"Weather Corrected MD 10% POE","MW","Non-Coincident",0.5131455152068134]
["ED_MDU541_06095",null,null,null,null,"Coincident",0.42259042428796395]
["ED_MDU541_06096",null,null,"Weather Corrected MD 10% POE","MVA","Non-Coincident",0.5191123187768738]
["ED_MDU541_06097",null,null,null,null,"Coincident",0.42259042428796395]
["ED_MDU541_06098",null,null,"Weather Corrected MD 50% POE","MW","Non-Coincident",0.47469266900755691]
["ED_MDU541_06099",null,null,null,null,"Coincident",0.39092337447681158]
["ED_MDU541_06100",null,null,"Weather Corrected MD 50% POE","MVA","Non-Coincident",0.48021234681468783]
["ED_MDU541_06101",null,null,null,null,"Coincident",0.39092337447681158]
["ED_MDU541_06102",null,"Nyngan Town","Substation Rating","MVA","Non-Coincident",22]
["ED_MDU541_06103",null,null,null,null,"Coincident",24]
["ED_MDU541_06104",null,null,"Raw Adjusted MD","MW","Non-Coincident",6.5663999999999998]
["ED_MDU541_06105",null,null,null,null,"Coincident",4.3064999999999998]
["ED_MDU541_06106",null,null,"Raw Adjusted MD","MVA","Non-Coincident",6.8382386745418593]
["ED_MDU541_06107",null,null,null,null,"Coincident",4.3065304701116416]
["ED_MDU541_06108",null,null,"Date MD occurred",null,"Non-Coincident","2014-11-23"]
["ED_MDU541_06109",null,null,null,null,"Coincident","2014-07-10"]
["ED_MDU541_06110",null,null,"Half hour time period MD occurred",null,"Non-Coincident","19:30:00"]
["ED_MDU541_06111",null,null,null,null,"Coincident","18:30:00"]
["ED_MDU541_06112",null,null,"Winter/Summer Peaking",null,"Non-Coincident","Summer"]
["ED_MDU541_06113",null,null,null,null,"Coincident","Winter"]
["ED_MDU541_06114",null,null,"Adjustments - Embedded generation","MW","Non-Coincident",0]
["ED_MDU541_06115",null,null,null,null,"Coincident",0]
["ED_MDU541_06116",null,null,"Weather Corrected MD 10% POE","MW","Non-Coincident",6.2574074388949734]
["ED_MDU541_06117",null,null,null,null,"Coincident",4.1038506846371225]
["ED_MDU541_06118",null,null,"Weather Corrected MD 10% POE","MVA","Non-Coincident",6.5164543054059365]
["ED_MDU541_06119",null,null,null,null,"Coincident",4.1038506846371225]
["ED_MDU541_06120",null,null,"Weather Corrected MD 50% POE","MW","Non-Coincident",5.7352156411348494]
["ED_MDU541_06121",null,null,null,null,"Coincident",3.7613770343791466]
["ED_MDU541_06122",null,null,"Weather Corrected MD 50% POE","MVA","Non-Coincident",5.9726445851677807]
["ED_MDU541_06123",null,null,null,null,"Coincident",3.7613770343791466]
["ED_MDU541_06124",null,"Oaks Estate","Substation Rating","MVA","Non-Coincident",72]
["ED_MDU541_06125",null,null,null,null,"Coincident",72]
["ED_MDU541_06126",null,null,"Raw Adjusted MD","MW","Non-Coincident",16.313599499999999]
["ED_MDU541_06127",null,null,null,null,"Coincident",14.937601000000001]
["ED_MDU541_06128",null,null,"Raw Adjusted MD","MVA","Non-Coincident",16.875897861933161]
["ED_MDU541_06129",null,null,null,null,"Coincident",15.186676406482132]
["ED_MDU541_06130",null,null,"Date MD occurred",null,"Non-Coincident","2014-07-21"]
["ED_MDU541_06131",null,null,null,null,"Coincident","2014-07-10"]
["ED_MDU541_06132",null,null,"Half hour time period MD occurred",null,"Non-Coincident","08:30:00"]
["ED_MDU541_06133",null,null,null,null,"Coincident","18:30:00"]
["ED_MDU541_06134",null,null,"Winter/Summer Peaking",null,"Non-Coincident","Winter"]
["ED_MDU541_06135",null,null,null,null,"Coincident","Winter"]
["ED_MDU541_06136",null,null,"Adjustments - Embedded generation","MW","Non-Coincident",1.6320000000000002E-3]
["ED_MDU541_06137",null,null,null,null,"Coincident",6.1499999999999999E-4]
["ED_MDU541_06138",null,null,"Weather Corrected MD 10% POE","MW","Non-Coincident",19.240456037286602]
["ED_MDU541_06139",null,null,null,null,"Coincident",17.617586808051062]
["ED_MDU541_06140",null,null,"Weather Corrected MD 10% POE","MVA","Non-Coincident",19.903637508219077]
["ED_MDU541_06141",null,null,null,null,"Coincident",17.617586808051062]
["ED_MDU541_06142",null,null,"Weather Corrected MD 50% POE","MW","Non-Coincident",15.307478030677453]
["ED_MDU541_06143",null,null,null,null,"Coincident",14.016342569800464]
["ED_MDU541_06144",null,null,"Weather Corrected MD 50% POE","MVA","Non-Coincident",15.835097322911386]
["ED_MDU541_06145",null,null,null,null,"Coincident",14.016342569800464]
["ED_MDU541_06146",null,"Oaky","Substation Rating","MVA","Non-Coincident",8.4]
["ED_MDU541_06147",null,null,null,null,"Coincident",8.4]
["ED_MDU541_06148",null,null,"Raw Adjusted MD","MW","Non-Coincident",0.40200000628829002]
["ED_MDU541_06149",null,null,null,null,"Coincident",0.31366667151451111]
["ED_MDU541_06150",null,null,"Raw Adjusted MD","MVA","Non-Coincident",0.40787866496218883]
["ED_MDU541_06151",null,null,null,null,"Coincident",0.31860298994891151]
["ED_MDU541_06152",null,null,"Date MD occurred",null,"Non-Coincident","2014-07-12"]
["ED_MDU541_06153",null,null,null,null,"Coincident","2014-07-10"]
["ED_MDU541_06154",null,null,"Half hour time period MD occurred",null,"Non-Coincident","08:30:00"]
["ED_MDU541_06155",null,null,null,null,"Coincident","18:30:00"]
["ED_MDU541_06156",null,null,"Winter/Summer Peaking",null,"Non-Coincident","Winter"]
["ED_MDU541_06157",null,null,null,null,"Coincident","Winter"]
["ED_MDU541_06158",null,null,"Adjustments - Embedded generation","MW","Non-Coincident",0]
["ED_MDU541_06159",null,null,null,null,"Coincident",0]
["ED_MDU541_06160",null,null,"Weather Corrected MD 10% POE","MW","Non-Coincident",0.38522247923507641]
["ED_MDU541_06161",null,null,null,null,"Coincident",0.30057574866698211]
["ED_MDU541_06162",null,null,"Weather Corrected MD 10% POE","MVA","Non-Coincident",0.39085579125873854]
["ED_MDU541_06163",null,null,null,null,"Coincident",0.30057574866698211]
["ED_MDU541_06164",null,null,"Weather Corrected MD 50% POE","MW","Non-Coincident",0.35251375336265484]
["ED_MDU541_06165",null,null,null,null,"Coincident",0.27505426355903051]
["ED_MDU541_06166",null,null,"Weather Corrected MD 50% POE","MVA","Non-Coincident",0.35766874839115703]
["ED_MDU541_06167",null,null,null,null,"Coincident",0.27505426355903051]
["ED_MDU541_06168",null,"Oberon 132kV","Substation Rating","MVA","Non-Coincident",99.000000000000014]
["ED_MDU541_06169",null,null,null,null,"Coincident",108]
["ED_MDU541_06170",null,null,"Raw Adjusted MD","MW","Non-Coincident",22.65]
["ED_MDU541_06171",null,null,null,null,"Coincident",18.48]
["ED_MDU541_06172",null,null,"Raw Adjusted MD","MVA","Non-Coincident",25.860643843493147]
["ED_MDU541_06173",null,null,null,null,"Coincident",22.165919786916128]
["ED_MDU541_06174",null,null,"Date MD occurred",null,"Non-Coincident","2014-11-28"]
["ED_MDU541_06175",null,null,null,null,"Coincident","2014-07-10"]
["ED_MDU541_06176",null,null,"Half hour time period MD occurred",null,"Non-Coincident","07:00:00"]
["ED_MDU541_06177",null,null,null,null,"Coincident","18:30:00"]
["ED_MDU541_06178",null,null,"Winter/Summer Peaking",null,"Non-Coincident","Summer"]
["ED_MDU541_06179",null,null,null,null,"Coincident","Winter"]
["ED_MDU541_06180",null,null,"Adjustments - Embedded generation","MW","Non-Coincident",0]
["ED_MDU541_06181",null,null,null,null,"Coincident",0]
["ED_MDU541_06182",null,null,"Weather Corrected MD 10% POE","MW","Non-Coincident",17.843070575612387]
["ED_MDU541_06183",null,null,null,null,"Coincident",14.558054933214876]
["ED_MDU541_06184",null,null,"Weather Corrected MD 10% POE","MVA","Non-Coincident",20.372330826941468]
["ED_MDU541_06185",null,null,null,null,"Coincident",14.558054933214876]
["ED_MDU541_06186",null,null,"Weather Corrected MD 50% POE","MW","Non-Coincident",10.530836409095619]
["ED_MDU541_06187",null,null,null,null,"Coincident",8.5920466596064919]
["ED_MDU541_06188",null,null,"Weather Corrected MD 50% POE","MVA","Non-Coincident",12.023585419413338]
["ED_MDU541_06189",null,null,null,null,"Coincident",8.5920466596064919]
["ED_MDU541_06190",null,"Oberon Town","Substation Rating","MVA","Non-Coincident",36]
["ED_MDU541_06191",null,null,null,null,"Coincident",36]
["ED_MDU541_06192",null,null,"Raw Adjusted MD","MW","Non-Coincident",5.3758819999999998]
["ED_MDU541_06193",null,null,null,null,"Coincident",5.0999379999999999]
["ED_MDU541_06194",null,null,"Raw Adjusted MD","MVA","Non-Coincident",5.4680675112584565]
["ED_MDU541_06195",null,null,null,null,"Coincident",5.1959896411433499]
["ED_MDU541_06196",null,null,"Date MD occurred",null,"Non-Coincident","2014-07-18"]
["ED_MDU541_06197",null,null,null,null,"Coincident","2014-07-10"]
["ED_MDU541_06198",null,null,"Half hour time period MD occurred",null,"Non-Coincident","18:30:00"]
["ED_MDU541_06199",null,null,null,null,"Coincident","18:30:00"]
["ED_MDU541_06200",null,null,"Winter/Summer Peaking",null,"Non-Coincident","Winter"]
["ED_MDU541_06201",null,null,null,null,"Coincident","Winter"]
["ED_MDU541_06202",null,null,"Adjustments - Embedded generation","MW","Non-Coincident",0]
["ED_MDU541_06203",null,null,null,null,"Coincident",0]
["ED_MDU541_06204",null,null,"Weather Corrected MD 10% POE","MW","Non-Coincident",3.1956660655766149]
["ED_MDU541_06205",null,null,null,null,"Coincident",3.0316325401384683]
["ED_MDU541_06206",null,null,"Weather Corrected MD 10% POE","MVA","Non-Coincident",3.2504652799318556]
["ED_MDU541_06207",null,null,null,null,"Coincident",3.0316325401384683]
["ED_MDU541_06208",null,null,"Weather Corrected MD 50% POE","MW","Non-Coincident",2.9832602716344936]
["ED_MDU541_06209",null,null,null,null,"Coincident",2.8301295346882753]
["ED_MDU541_06210",null,null,"Weather Corrected MD 50% POE","MVA","Non-Coincident",3.0344171559109094]
["ED_MDU541_06211",null,null,null,null,"Coincident",2.8301295346882753]
["ED_MDU541_06212",null,"Orange Industrial","Substation Rating","MVA","Non-Coincident",24]
["ED_MDU541_06213",null,null,null,null,"Coincident",24]
["ED_MDU541_06214",null,null,"Raw Adjusted MD","MW","Non-Coincident",10.803000000000001]
["ED_MDU541_06215",null,null,null,null,"Coincident",9.7814999999999994]
["ED_MDU541_06216",null,null,"Raw Adjusted MD","MVA","Non-Coincident",10.903162809478724]
["ED_MDU541_06217",null,null,null,null,"Coincident",9.8956174390484595]
["ED_MDU541_06218",null,null,"Date MD occurred",null,"Non-Coincident","2014-05-04"]
["ED_MDU541_06219",null,null,null,null,"Coincident","2014-07-10"]
["ED_MDU541_06220",null,null,"Half hour time period MD occurred",null,"Non-Coincident","18:30:00"]
["ED_MDU541_06221",null,null,null,null,"Coincident","18:30:00"]
["ED_MDU541_06222",null,null,"Winter/Summer Peaking",null,"Non-Coincident","Winter"]
["ED_MDU541_06223",null,null,null,null,"Coincident","Winter"]
["ED_MDU541_06224",null,null,"Adjustments - Embedded generation","MW","Non-Coincident",0]
["ED_MDU541_06225",null,null,null,null,"Coincident",0]
["ED_MDU541_06226",null,null,"Weather Corrected MD 10% POE","MW","Non-Coincident",10.561586233031818]
["ED_MDU541_06227",null,null,null,null,"Coincident",9.5629136108859303]
["ED_MDU541_06228",null,null,"Weather Corrected MD 10% POE","MVA","Non-Coincident",10.659510712310933]
["ED_MDU541_06229",null,null,null,null,"Coincident",9.5629136108859303]
["ED_MDU541_06230",null,null,"Weather Corrected MD 50% POE","MW","Non-Coincident",10.082493008863178]
["ED_MDU541_06231",null,null,null,null,"Coincident",9.1291220370448176]
["ED_MDU541_06232",null,null,"Weather Corrected MD 50% POE","MVA","Non-Coincident",10.175975451362236]
["ED_MDU541_06233",null,null,null,null,"Coincident",9.1291220370448176]
["ED_MDU541_06234",null,"Orange North","Substation Rating","MVA","Non-Coincident",60]
["ED_MDU541_06235",null,null,null,null,"Coincident",60]
["ED_MDU541_06236",null,null,"Raw Adjusted MD","MW","Non-Coincident",14.949]
["ED_MDU541_06237",null,null,null,null,"Coincident",13.077]
["ED_MDU541_06238",null,null,"Raw Adjusted MD","MVA","Non-Coincident",15.219655293402672]
["ED_MDU541_06239",null,null,null,null,"Coincident",13.31167011497806]
["ED_MDU541_06240",null,null,"Date MD occurred",null,"Non-Coincident","2014-07-18"]
["ED_MDU541_06241",null,null,null,null,"Coincident","2014-07-10"]
["ED_MDU541_06242",null,null,"Half hour time period MD occurred",null,"Non-Coincident","09:30:00"]
["ED_MDU541_06243",null,null,null,null,"Coincident","18:30:00"]
["ED_MDU541_06244",null,null,"Winter/Summer Peaking",null,"Non-Coincident","Winter"]
["ED_MDU541_06245",null,null,null,null,"Coincident","Winter"]
["ED_MDU541_06246",null,null,"Adjustments - Embedded generation","MW","Non-Coincident",0]
["ED_MDU541_06247",null,null,null,null,"Coincident",0]
["ED_MDU541_06248",null,null,"Weather Corrected MD 10% POE","MW","Non-Coincident",15.717454279742769]
["ED_MDU541_06249",null,null,null,null,"Coincident",13.749224002688889]
["ED_MDU541_06250",null,null,"Weather Corrected MD 10% POE","MVA","Non-Coincident",16.002022625426552]
["ED_MDU541_06251",null,null,null,null,"Coincident",13.749224002688889]
["ED_MDU541_06252",null,null,"Weather Corrected MD 50% POE","MW","Non-Coincident",14.732348951570227]
["ED_MDU541_06253",null,null,null,null,"Coincident",12.88747924541333]
["ED_MDU541_06254",null,null,"Weather Corrected MD 50% POE","MVA","Non-Coincident",14.999081724865952]
["ED_MDU541_06255",null,null,null,null,"Coincident",12.88747924541333]
["ED_MDU541_06256",null,"Orange South","Substation Rating","MVA","Non-Coincident",72]
["ED_MDU541_06257",null,null,null,null,"Coincident",72]
["ED_MDU541_06258",null,null,"Raw Adjusted MD","MW","Non-Coincident",23.79]
["ED_MDU541_06259",null,null,null,null,"Coincident",20.37]
["ED_MDU541_06260",null,null,"Raw Adjusted MD","MVA","Non-Coincident",24.457740615191746]
["ED_MDU541_06261",null,null,null,null,"Coincident",20.71013143367275]
["ED_MDU541_06262",null,null,"Date MD occurred",null,"Non-Coincident","2014-06-30"]
["ED_MDU541_06263",null,null,null,null,"Coincident","2014-07-10"]
["ED_MDU541_06264",null,null,"Half hour time period MD occurred",null,"Non-Coincident","10:30:00"]
["ED_MDU541_06265",null,null,null,null,"Coincident","18:30:00"]
["ED_MDU541_06266",null,null,"Winter/Summer Peaking",null,"Non-Coincident","Winter"]
["ED_MDU541_06267",null,null,null,null,"Coincident","Winter"]
["ED_MDU541_06268",null,null,"Adjustments - Embedded generation","MW","Non-Coincident",0]
["ED_MDU541_06269",null,null,null,null,"Coincident",0]
["ED_MDU541_06270",null,null,"Weather Corrected MD 10% POE","MW","Non-Coincident",24.360662555071382]
["ED_MDU541_06271",null,null,null,null,"Coincident",20.858625315124172]
["ED_MDU541_06272",null,null,"Weather Corrected MD 10% POE","MVA","Non-Coincident",25.044420596307276]
["ED_MDU541_06273",null,null,null,null,"Coincident",20.858625315124172]
["ED_MDU541_06274",null,null,"Weather Corrected MD 50% POE","MW","Non-Coincident",23.215296816015403]
["ED_MDU541_06275",null,null,null,null,"Coincident",19.877914928214956]
["ED_MDU541_06276",null,null,"Weather Corrected MD 50% POE","MVA","Non-Coincident",23.866906592298928]
["ED_MDU541_06277",null,null,null,null,"Coincident",19.877914928214956]
["ED_MDU541_06278",null,"Orange West","Substation Rating","MVA","Non-Coincident",72]
["ED_MDU541_06279",null,null,null,null,"Coincident",72]
["ED_MDU541_06280",null,null,"Raw Adjusted MD","MW","Non-Coincident",13.545]
["ED_MDU541_06281",null,null,null,null,"Coincident",11.916]
["ED_MDU541_06282",null,null,"Raw Adjusted MD","MVA","Non-Coincident",13.7211405229303]
["ED_MDU541_06283",null,null,null,null,"Coincident",12.103030044166626]
["ED_MDU541_06284",null,null,"Date MD occurred",null,"Non-Coincident","2014-06-29"]
["ED_MDU541_06285",null,null,null,null,"Coincident","2014-07-10"]
["ED_MDU541_06286",null,null,"Half hour time period MD occurred",null,"Non-Coincident","18:30:00"]
["ED_MDU541_06287",null,null,null,null,"Coincident","18:30:00"]
["ED_MDU541_06288",null,null,"Winter/Summer Peaking",null,"Non-Coincident","Winter"]
["ED_MDU541_06289",null,null,null,null,"Coincident","Winter"]
["ED_MDU541_06290",null,null,"Adjustments - Embedded generation","MW","Non-Coincident",0]
["ED_MDU541_06291",null,null,null,null,"Coincident",0]
["ED_MDU541_06292",null,null,"Weather Corrected MD 10% POE","MW","Non-Coincident",13.118341767047614]
["ED_MDU541_06293",null,null,null,null,"Coincident",11.540654152538897]
["ED_MDU541_06294",null,null,"Weather Corrected MD 10% POE","MVA","Non-Coincident",13.288933984015216]
["ED_MDU541_06295",null,null,null,null,"Coincident",11.540654152538897]
["ED_MDU541_06296",null,null,"Weather Corrected MD 50% POE","MW","Non-Coincident",12.479959633869093]
["ED_MDU541_06297",null,null,null,null,"Coincident",10.979047545011747]
["ED_MDU541_06298",null,null,"Weather Corrected MD 50% POE","MVA","Non-Coincident",12.642250266283913]
["ED_MDU541_06299",null,null,null,null,"Coincident",10.979047545011747]
["ED_MDU541_06300",null,"Oura 66/11kV","Substation Rating","MVA","Non-Coincident",15.180000000000001]
["ED_MDU541_06301",null,null,null,null,"Coincident",16.559999999999999]
["ED_MDU541_06302",null,null,"Raw Adjusted MD","MW","Non-Coincident",3.5396999999999998]
["ED_MDU541_06303",null,null,null,null,"Coincident",1.7604000000000002]
["ED_MDU541_06304",null,null,"Raw Adjusted MD","MVA","Non-Coincident",3.7877591436098466]
["ED_MDU541_06305",null,null,null,null,"Coincident",1.7752967104120936]
["ED_MDU541_06306",null,null,"Date MD occurred",null,"Non-Coincident","2015-01-03"]
["ED_MDU541_06307",null,null,null,null,"Coincident","2014-07-10"]
["ED_MDU541_06308",null,null,"Half hour time period MD occurred",null,"Non-Coincident","20:30:00"]
["ED_MDU541_06309",null,null,null,null,"Coincident","18:30:00"]
["ED_MDU541_06310",null,null,"Winter/Summer Peaking",null,"Non-Coincident","Summer"]
["ED_MDU541_06311",null,null,null,null,"Coincident","Winter"]
["ED_MDU541_06312",null,null,"Adjustments - Embedded generation","MW","Non-Coincident",0]
["ED_MDU541_06313",null,null,null,null,"Coincident",0]
["ED_MDU541_06314",null,null,"Weather Corrected MD 10% POE","MW","Non-Coincident",3.3153622402961935]
["ED_MDU541_06315",null,null,null,null,"Coincident",1.6488300386522643]
["ED_MDU541_06316",null,null,"Weather Corrected MD 10% POE","MVA","Non-Coincident",3.5476999858916667]
["ED_MDU541_06317",null,null,null,null,"Coincident",1.6488300386522643]
["ED_MDU541_06318",null,null,"Weather Corrected MD 50% POE","MW","Non-Coincident",2.9645967296602675]
["ED_MDU541_06319",null,null,null,null,"Coincident",1.4743837282520935]
["ED_MDU541_06320",null,null,"Weather Corrected MD 50% POE","MVA","Non-Coincident",3.1723531287641684]
["ED_MDU541_06321",null,null,null,null,"Coincident",1.4743837282520935]
["ED_MDU541_06322",null,"Owen St","Substation Rating","MVA","Non-Coincident",48]
["ED_MDU541_06323",null,null,null,null,"Coincident",48]
["ED_MDU541_06324",null,null,"Raw Adjusted MD","MW","Non-Coincident",15.336]
["ED_MDU541_06325",null,null,null,null,"Coincident",15.336]
["ED_MDU541_06326",null,null,"Raw Adjusted MD","MVA","Non-Coincident",15.42709214336908]
["ED_MDU541_06327",null,null,null,null,"Coincident",15.42709214336908]
["ED_MDU541_06328",null,null,"Date MD occurred",null,"Non-Coincident","2014-07-10"]
["ED_MDU541_06329",null,null,null,null,"Coincident","2014-07-10"]
["ED_MDU541_06330",null,null,"Half hour time period MD occurred",null,"Non-Coincident","18:30:00"]
["ED_MDU541_06331",null,null,null,null,"Coincident","18:30:00"]
["ED_MDU541_06332",null,null,"Winter/Summer Peaking",null,"Non-Coincident","Winter"]
["ED_MDU541_06333",null,null,null,null,"Coincident","Winter"]
["ED_MDU541_06334",null,null,"Adjustments - Embedded generation","MW","Non-Coincident",0]
["ED_MDU541_06335",null,null,null,null,"Coincident",0]
["ED_MDU541_06336",null,null,"Weather Corrected MD 10% POE","MW","Non-Coincident",16.221013899123442]
["ED_MDU541_06337",null,null,null,null,"Coincident",16.221013899123442]
["ED_MDU541_06338",null,null,"Weather Corrected MD 10% POE","MVA","Non-Coincident",16.317362811727168]
["ED_MDU541_06339",null,null,null,null,"Coincident",16.221013899123442]
["ED_MDU541_06340",null,null,"Weather Corrected MD 50% POE","MW","Non-Coincident",15.37004290438]
["ED_MDU541_06341",null,null,null,null,"Coincident",15.37004290438]
["ED_MDU541_06342",null,null,"Weather Corrected MD 50% POE","MVA","Non-Coincident",15.461337254395302]
["ED_MDU541_06343",null,null,null,null,"Coincident",15.37004290438]
["ED_MDU541_06344",null,"Oxley Vale","Substation Rating","MVA","Non-Coincident",66]
["ED_MDU541_06345",null,null,null,null,"Coincident",72]
["ED_MDU541_06346",null,null,"Raw Adjusted MD","MW","Non-Coincident",14.802]
["ED_MDU541_06347",null,null,null,null,"Coincident",11.682]
["ED_MDU541_06348",null,null,"Raw Adjusted MD","MVA","Non-Coincident",14.802175110435629]
["ED_MDU541_06349",null,null,null,null,"Coincident",11.863980107872738]
["ED_MDU541_06350",null,null,"Date MD occurred",null,"Non-Coincident","2014-12-03"]
["ED_MDU541_06351",null,null,null,null,"Coincident","2014-07-10"]
["ED_MDU541_06352",null,null,"Half hour time period MD occurred",null,"Non-Coincident","13:30:00"]
["ED_MDU541_06353",null,null,null,null,"Coincident","18:30:00"]
["ED_MDU541_06354",null,null,"Winter/Summer Peaking",null,"Non-Coincident","Summer"]
["ED_MDU541_06355",null,null,null,null,"Coincident","Winter"]
["ED_MDU541_06356",null,null,"Adjustments - Embedded generation","MW","Non-Coincident",0]
["ED_MDU541_06357",null,null,null,null,"Coincident",0]
["ED_MDU541_06358",null,null,"Weather Corrected MD 10% POE","MW","Non-Coincident",16.057481489131028]
["ED_MDU541_06359",null,null,null,null,"Coincident",12.672848179707383]
["ED_MDU541_06360",null,null,"Weather Corrected MD 10% POE","MVA","Non-Coincident",16.057671452148099]
["ED_MDU541_06361",null,null,null,null,"Coincident",12.672848179707383]
["ED_MDU541_06362",null,null,"Weather Corrected MD 50% POE","MW","Non-Coincident",14.707130725871968]
["ED_MDU541_06363",null,null,null,null,"Coincident",11.607127492206212]
["ED_MDU541_06364",null,null,"Weather Corrected MD 50% POE","MVA","Non-Coincident",14.707304713986295]
["ED_MDU541_06365",null,null,null,null,"Coincident",11.607127492206212]
["ED_MDU541_06366",null,"Pacific Palms","Substation Rating","MVA","Non-Coincident",15.6]
["ED_MDU541_06367",null,null,null,null,"Coincident",15.6]
["ED_MDU541_06368",null,null,"Raw Adjusted MD","MW","Non-Coincident",4.5883331298828125]
["ED_MDU541_06369",null,null,null,null,"Coincident",3.5883333683013916]
["ED_MDU541_06370",null,null,"Raw Adjusted MD","MVA","Non-Coincident",4.6234794167695705]
["ED_MDU541_06371",null,null,null,null,"Coincident",3.6896401982192777]
["ED_MDU541_06372",null,null,"Date MD occurred",null,"Non-Coincident","2014-04-19"]
["ED_MDU541_06373",null,null,null,null,"Coincident","2014-07-10"]
["ED_MDU541_06374",null,null,"Half hour time period MD occurred",null,"Non-Coincident","18:30:00"]
["ED_MDU541_06375",null,null,null,null,"Coincident","18:30:00"]
["ED_MDU541_06376",null,null,"Winter/Summer Peaking",null,"Non-Coincident","Winter"]
["ED_MDU541_06377",null,null,null,null,"Coincident","Winter"]
["ED_MDU541_06378",null,null,"Adjustments - Embedded generation","MW","Non-Coincident",0]
["ED_MDU541_06379",null,null,null,null,"Coincident",0]
["ED_MDU541_06380",null,null,"Weather Corrected MD 10% POE","MW","Non-Coincident",3.7707386533347087]
["ED_MDU541_06381",null,null,null,null,"Coincident",2.9489287176605607]
["ED_MDU541_06382",null,null,"Weather Corrected MD 10% POE","MVA","Non-Coincident",3.7996222279866814]
["ED_MDU541_06383",null,null,null,null,"Coincident",2.9489287176605607]
["ED_MDU541_06384",null,null,"Weather Corrected MD 50% POE","MW","Non-Coincident",3.523807322146026]
["ED_MDU541_06385",null,null,null,null,"Coincident",2.7558145931405602]
["ED_MDU541_06386",null,null,"Weather Corrected MD 50% POE","MVA","Non-Coincident",3.5507994213620142]
["ED_MDU541_06387",null,null,null,null,"Coincident",2.7558145931405602]
["ED_MDU541_06388",null,"Pambula","Substation Rating","MVA","Non-Coincident",38.4]
["ED_MDU541_06389",null,null,null,null,"Coincident",38.4]
["ED_MDU541_06390",null,null,"Raw Adjusted MD","MW","Non-Coincident",15.230400000000001]
["ED_MDU541_06391",null,null,null,null,"Coincident",13.852799999999998]
["ED_MDU541_06392",null,null,"Raw Adjusted MD","MVA","Non-Coincident",15.240928223700815]
["ED_MDU541_06393",null,null,null,null,"Coincident",13.871999999999998]
["ED_MDU541_06394",null,null,"Date MD occurred",null,"Non-Coincident","2014-07-18"]
["ED_MDU541_06395",null,null,null,null,"Coincident","2014-07-10"]
["ED_MDU541_06396",null,null,"Half hour time period MD occurred",null,"Non-Coincident","18:00:00"]
["ED_MDU541_06397",null,null,null,null,"Coincident","18:30:00"]
["ED_MDU541_06398",null,null,"Winter/Summer Peaking",null,"Non-Coincident","Winter"]
["ED_MDU541_06399",null,null,null,null,"Coincident","Winter"]
["ED_MDU541_06400",null,null,"Adjustments - Embedded generation","MW","Non-Coincident",0]
["ED_MDU541_06401",null,null,null,null,"Coincident",0]
["ED_MDU541_06402",null,null,"Weather Corrected MD 10% POE","MW","Non-Coincident",16.025681108316746]
["ED_MDU541_06403",null,null,null,null,"Coincident",14.57614739319323]
["ED_MDU541_06404",null,null,"Weather Corrected MD 10% POE","MVA","Non-Coincident",16.036759081033566]
["ED_MDU541_06405",null,null,null,null,"Coincident",14.57614739319323]
["ED_MDU541_06406",null,null,"Weather Corrected MD 50% POE","MW","Non-Coincident",15.055921146562767]
["ED_MDU541_06407",null,null,null,null,"Coincident",13.694102877081669]
["ED_MDU541_06408",null,null,"Weather Corrected MD 50% POE","MVA","Non-Coincident",15.066328759353818]
["ED_MDU541_06409",null,null,null,null,"Coincident",13.694102877081669]
["ED_MDU541_06410",null,"Parkes Town","Substation Rating","MVA","Non-Coincident",66]
["ED_MDU541_06411",null,null,null,null,"Coincident",72]
["ED_MDU541_06412",null,null,"Raw Adjusted MD","MW","Non-Coincident",15.864000000000001]
["ED_MDU541_06413",null,null,null,null,"Coincident",12.948]
["ED_MDU541_06414",null,null,"Raw Adjusted MD","MVA","Non-Coincident",16.665465250031279]
["ED_MDU541_06415",null,null,null,null,"Coincident",12.966372044639163]
["ED_MDU541_06416",null,null,"Date MD occurred",null,"Non-Coincident","2015-02-09"]
["ED_MDU541_06417",null,null,null,null,"Coincident","2014-07-10"]
["ED_MDU541_06418",null,null,"Half hour time period MD occurred",null,"Non-Coincident","18:00:00"]
["ED_MDU541_06419",null,null,null,null,"Coincident","18:30:00"]
["ED_MDU541_06420",null,null,"Winter/Summer Peaking",null,"Non-Coincident","Summer"]
["ED_MDU541_06421",null,null,null,null,"Coincident","Winter"]
["ED_MDU541_06422",null,null,"Adjustments - Embedded generation","MW","Non-Coincident",0]
["ED_MDU541_06423",null,null,null,null,"Coincident",0]
["ED_MDU541_06424",null,null,"Weather Corrected MD 10% POE","MW","Non-Coincident",17.765395636329835]
["ED_MDU541_06425",null,null,null,null,"Coincident",14.499895530710962]
["ED_MDU541_06426",null,null,"Weather Corrected MD 10% POE","MVA","Non-Coincident",18.662921308012617]
["ED_MDU541_06427",null,null,null,null,"Coincident",14.499895530710962]
["ED_MDU541_06428",null,null,"Weather Corrected MD 50% POE","MW","Non-Coincident",16.818953204946098]
["ED_MDU541_06429",null,null,null,null,"Coincident",13.727420959256309]
["ED_MDU541_06430",null,null,"Weather Corrected MD 50% POE","MVA","Non-Coincident",17.668663652227142]
["ED_MDU541_06431",null,null,null,null,"Coincident",13.727420959256309]
["ED_MDU541_06432",null,"Parsons Creek","Substation Rating","MVA","Non-Coincident",3.5999999999999996]
["ED_MDU541_06433",null,null,null,null,"Coincident",3.5999999999999996]
["ED_MDU541_06434",null,null,"Raw Adjusted MD","MW","Non-Coincident",0.12359999999999999]
["ED_MDU541_06435",null,null,null,null,"Coincident",7.1999999999999995E-2]
["ED_MDU541_06436",null,null,"Raw Adjusted MD","MVA","Non-Coincident",0.12362329877494775]
["ED_MDU541_06437",null,null,null,null,"Coincident",7.2159822616189959E-2]
["ED_MDU541_06438",null,null,"Date MD occurred",null,"Non-Coincident","2014-04-30"]
["ED_MDU541_06439",null,null,null,null,"Coincident","2014-07-10"]
["ED_MDU541_06440",null,null,"Half hour time period MD occurred",null,"Non-Coincident","21:00:00"]
["ED_MDU541_06441",null,null,null,null,"Coincident","18:30:00"]
["ED_MDU541_06442",null,null,"Winter/Summer Peaking",null,"Non-Coincident","Winter"]
["ED_MDU541_06443",null,null,null,null,"Coincident","Winter"]
["ED_MDU541_06444",null,null,"Adjustments - Embedded generation","MW","Non-Coincident",0]
["ED_MDU541_06445",null,null,null,null,"Coincident",0]
["ED_MDU541_06446",null,null,"Weather Corrected MD 10% POE","MW","Non-Coincident",9.2569791597395062E-2]
["ED_MDU541_06447",null,null,null,null,"Coincident",5.3924150445084501E-2]
["ED_MDU541_06448",null,null,"Weather Corrected MD 10% POE","MVA","Non-Coincident",9.2587241134137702E-2]
["ED_MDU541_06449",null,null,null,null,"Coincident",5.3924150445084501E-2]
["ED_MDU541_06450",null,null,"Weather Corrected MD 50% POE","MW","Non-Coincident",8.2283719409790568E-2]
["ED_MDU541_06451",null,null,null,null,"Coincident",4.7932263733858581E-2]
["ED_MDU541_06452",null,null,"Weather Corrected MD 50% POE","MVA","Non-Coincident",8.2299230007366567E-2]
["ED_MDU541_06453",null,null,null,null,"Coincident",4.7932263733858581E-2]
["ED_MDU541_06454",null,"Paytens Bridge","Substation Rating","MVA","Non-Coincident",11]
["ED_MDU541_06455",null,null,null,null,"Coincident",12]
["ED_MDU541_06456",null,null,"Raw Adjusted MD","MW","Non-Coincident",3.0710249999999997]
["ED_MDU541_06457",null,null,null,null,"Coincident",1.4274]
["ED_MDU541_06458",null,null,"Raw Adjusted MD","MVA","Non-Coincident",3.2527164279452641]
["ED_MDU541_06459",null,null,null,null,"Coincident",1.4735389314504046]
["ED_MDU541_06460",null,null,"Date MD occurred",null,"Non-Coincident","2015-02-09"]
["ED_MDU541_06461",null,null,null,null,"Coincident","2014-07-10"]
["ED_MDU541_06462",null,null,"Half hour time period MD occurred",null,"Non-Coincident","18:00:00"]
["ED_MDU541_06463",null,null,null,null,"Coincident","18:30:00"]
["ED_MDU541_06464",null,null,"Winter/Summer Peaking",null,"Non-Coincident","Summer"]
["ED_MDU541_06465",null,null,null,null,"Coincident","Winter"]
["ED_MDU541_06466",null,null,"Adjustments - Embedded generation","MW","Non-Coincident",0]
["ED_MDU541_06467",null,null,null,null,"Coincident",0]
["ED_MDU541_06468",null,null,"Weather Corrected MD 10% POE","MW","Non-Coincident",3.1318377709855185]
["ED_MDU541_06469",null,null,null,null,"Coincident",1.4556655300118786]
["ED_MDU541_06470",null,null,"Weather Corrected MD 10% POE","MVA","Non-Coincident",3.3171270723436228]
["ED_MDU541_06471",null,null,null,null,"Coincident",1.4556655300118786]
["ED_MDU541_06472",null,null,"Weather Corrected MD 50% POE","MW","Non-Coincident",2.83940008325414]
["ED_MDU541_06473",null,null,null,null,"Coincident",1.3197416754461326]
["ED_MDU541_06474",null,null,"Weather Corrected MD 50% POE","MVA","Non-Coincident",3.0073878579008286]
["ED_MDU541_06475",null,null,null,null,"Coincident",1.3197416754461326]
["ED_MDU541_06476",null,"Peak Hill","Substation Rating","MVA","Non-Coincident",12]
["ED_MDU541_06477",null,null,null,null,"Coincident",12]
["ED_MDU541_06478",null,null,"Raw Adjusted MD","MW","Non-Coincident",1.6051199999999999]
["ED_MDU541_06479",null,null,null,null,"Coincident",1.272]
["ED_MDU541_06480",null,null,"Raw Adjusted MD","MVA","Non-Coincident",1.6116956933614979]
["ED_MDU541_06481",null,null,null,null,"Coincident",1.286552587965218]
["ED_MDU541_06482",null,null,"Date MD occurred",null,"Non-Coincident","2014-07-02"]
["ED_MDU541_06483",null,null,null,null,"Coincident","2014-07-10"]
["ED_MDU541_06484",null,null,"Half hour time period MD occurred",null,"Non-Coincident","23:00:00"]
["ED_MDU541_06485",null,null,null,null,"Coincident","18:30:00"]
["ED_MDU541_06486",null,null,"Winter/Summer Peaking",null,"Non-Coincident","Winter"]
["ED_MDU541_06487",null,null,null,null,"Coincident","Winter"]
["ED_MDU541_06488",null,null,"Adjustments - Embedded generation","MW","Non-Coincident",0]
["ED_MDU541_06489",null,null,null,null,"Coincident",0]
["ED_MDU541_06490",null,null,"Weather Corrected MD 10% POE","MW","Non-Coincident",1.4896996959588016]
["ED_MDU541_06491",null,null,null,null,"Coincident",1.1805335509242896]
["ED_MDU541_06492",null,null,"Weather Corrected MD 10% POE","MVA","Non-Coincident",1.4958025470860332]
["ED_MDU541_06493",null,null,null,null,"Coincident",1.1805335509242896]
["ED_MDU541_06494",null,null,"Weather Corrected MD 50% POE","MW","Non-Coincident",1.4010046505661211]
["ED_MDU541_06495",null,null,null,null,"Coincident",1.1102459102871476]
["ED_MDU541_06496",null,null,"Weather Corrected MD 50% POE","MVA","Non-Coincident",1.4067441447971789]
["ED_MDU541_06497",null,null,null,null,"Coincident",1.1102459102871476]
["ED_MDU541_06498",null,"Perisher","Substation Rating","MVA","Non-Coincident",24]
["ED_MDU541_06499",null,null,null,null,"Coincident",24]
["ED_MDU541_06500",null,null,"Raw Adjusted MD","MW","Non-Coincident",9.4609161168446683]
["ED_MDU541_06501",null,null,null,null,"Coincident",7.2671222720465485]
["ED_MDU541_06502",null,null,"Raw Adjusted MD","MVA","Non-Coincident",9.9588590703628093]
["ED_MDU541_06503",null,null,null,null,"Coincident",7.6496023916279468]
["ED_MDU541_06504",null,null,"Date MD occurred",null,"Non-Coincident","2014-06-30"]
["ED_MDU541_06505",null,null,null,null,"Coincident","2014-07-10"]
["ED_MDU541_06506",null,null,"Half hour time period MD occurred",null,"Non-Coincident","08:30:00"]
["ED_MDU541_06507",null,null,null,null,"Coincident","18:30:00"]
["ED_MDU541_06508",null,null,"Winter/Summer Peaking",null,"Non-Coincident","Winter"]
["ED_MDU541_06509",null,null,null,null,"Coincident","Winter"]
["ED_MDU541_06510",null,null,"Adjustments - Embedded generation","MW","Non-Coincident",0]
["ED_MDU541_06511",null,null,null,null,"Coincident",0]
["ED_MDU541_06512",null,null,"Weather Corrected MD 10% POE","MW","Non-Coincident",10.926304156836657]
["ED_MDU541_06513",null,null,null,null,"Coincident",8.3927166575264245]
["ED_MDU541_06514",null,null,"Weather Corrected MD 10% POE","MVA","Non-Coincident",11.501372796670168]
["ED_MDU541_06515",null,null,null,null,"Coincident",8.3927166575264245]
["ED_MDU541_06516",null,null,"Weather Corrected MD 50% POE","MW","Non-Coincident",8.9583676073983245]
["ED_MDU541_06517",null,null,null,null,"Coincident",6.8811045311980719]
["ED_MDU541_06518",null,null,"Weather Corrected MD 50% POE","MVA","Non-Coincident",9.4298606393666589]
["ED_MDU541_06519",null,null,null,null,"Coincident",6.8811045311980719]
["ED_MDU541_06520",null,"Pindari","Substation Rating","MVA","Non-Coincident",0.36]
["ED_MDU541_06521",null,null,null,null,"Coincident",0.36]
["ED_MDU541_06522",null,null,"Raw Adjusted MD","MW","Non-Coincident",9.8000000000000004E-2]
["ED_MDU541_06523",null,null,null,null,"Coincident",9.8000000000000004E-2]
["ED_MDU541_06524",null,null,"Raw Adjusted MD","MVA","Non-Coincident",0.1]
["ED_MDU541_06525",null,null,null,null,"Coincident",0.1]
["ED_MDU541_06526",null,null,"Date MD occurred",null,"Non-Coincident","2014-07-10"]
["ED_MDU541_06527",null,null,null,null,"Coincident","2014-07-10"]
["ED_MDU541_06528",null,null,"Half hour time period MD occurred",null,"Non-Coincident","18:30:00"]
["ED_MDU541_06529",null,null,null,null,"Coincident","18:30:00"]
["ED_MDU541_06530",null,null,"Winter/Summer Peaking",null,"Non-Coincident","Winter"]
["ED_MDU541_06531",null,null,null,null,"Coincident","Winter"]
["ED_MDU541_06532",null,null,"Adjustments - Embedded generation","MW","Non-Coincident",0]
["ED_MDU541_06533",null,null,null,null,"Coincident",0]
["ED_MDU541_06534",null,null,"Weather Corrected MD 10% POE","MW","Non-Coincident",9.8000000000000004E-2]
["ED_MDU541_06535",null,null,null,null,"Coincident",9.8000000000000004E-2]
["ED_MDU541_06536",null,null,"Weather Corrected MD 10% POE","MVA","Non-Coincident",0.1]
["ED_MDU541_06537",null,null,null,null,"Coincident",0.1]
["ED_MDU541_06538",null,null,"Weather Corrected MD 50% POE","MW","Non-Coincident",9.8000000000000004E-2]
["ED_MDU541_06539",null,null,null,null,"Coincident",9.8000000000000004E-2]
["ED_MDU541_06540",null,null,"Weather Corrected MD 50% POE","MVA","Non-Coincident",0.1]
["ED_MDU541_06541",null,null,null,null,"Coincident",0.1]
["ED_MDU541_06542",null,"Prince St","Substation Rating","MVA","Non-Coincident",33]
["ED_MDU541_06543",null,null,null,null,"Coincident",36]
["ED_MDU541_06544",null,null,"Raw Adjusted MD","MW","Non-Coincident",6.8550000190734863]
["ED_MDU541_06545",null,null,null,null,"Coincident",5.9650001525878906]
["ED_MDU541_06546",null,null,"Raw Adjusted MD","MVA","Non-Coincident",7.5206207072246292]
["ED_MDU541_06547",null,null,null,null,"Coincident",6.1438611375650796]
["ED_MDU541_06548",null,null,"Date MD occurred",null,"Non-Coincident","2014-11-25"]
["ED_MDU541_06549",null,null,null,null,"Coincident","2014-07-10"]
["ED_MDU541_06550",null,null,"Half hour time period MD occurred",null,"Non-Coincident","12:00:00"]
["ED_MDU541_06551",null,null,null,null,"Coincident","18:30:00"]
["ED_MDU541_06552",null,null,"Winter/Summer Peaking",null,"Non-Coincident","Summer"]
["ED_MDU541_06553",null,null,null,null,"Coincident","Winter"]
["ED_MDU541_06554",null,null,"Adjustments - Embedded generation","MW","Non-Coincident",0]
["ED_MDU541_06555",null,null,null,null,"Coincident",0]
["ED_MDU541_06556",null,null,"Weather Corrected MD 10% POE","MW","Non-Coincident",7.3021758249664268]
["ED_MDU541_06557",null,null,null,null,"Coincident",6.3541181311383159]
["ED_MDU541_06558",null,null,"Weather Corrected MD 10% POE","MVA","Non-Coincident",8.0112172960227213]
["ED_MDU541_06559",null,null,null,null,"Coincident",6.3541181311383159]
["ED_MDU541_06560",null,null,"Weather Corrected MD 50% POE","MW","Non-Coincident",6.5701677765267235]
["ED_MDU541_06561",null,null,null,null,"Coincident",5.7171483122485771]
["ED_MDU541_06562",null,null,"Weather Corrected MD 50% POE","MVA","Non-Coincident",7.2081312461856575]
["ED_MDU541_06563",null,null,null,null,"Coincident",5.7171483122485771]
["ED_MDU541_06564",null,"Providence Portal","Substation Rating","MVA","Non-Coincident",0.6]
["ED_MDU541_06565",null,null,null,null,"Coincident",0.6]
["ED_MDU541_06566",null,null,"Raw Adjusted MD","MW","Non-Coincident",0.28499999999999998]
["ED_MDU541_06567",null,null,null,null,"Coincident",0.28499999999999998]
["ED_MDU541_06568",null,null,"Raw Adjusted MD","MVA","Non-Coincident",0.3]
["ED_MDU541_06569",null,null,null,null,"Coincident",0.3]
["ED_MDU541_06570",null,null,"Date MD occurred",null,"Non-Coincident","2014-07-10"]
["ED_MDU541_06571",null,null,null,null,"Coincident","2014-07-10"]
["ED_MDU541_06572",null,null,"Half hour time period MD occurred",null,"Non-Coincident","18:30:00"]
["ED_MDU541_06573",null,null,null,null,"Coincident","18:30:00"]
["ED_MDU541_06574",null,null,"Winter/Summer Peaking",null,"Non-Coincident","Winter"]
["ED_MDU541_06575",null,null,null,null,"Coincident","Winter"]
["ED_MDU541_06576",null,null,"Adjustments - Embedded generation","MW","Non-Coincident",0]
["ED_MDU541_06577",null,null,null,null,"Coincident",0]
["ED_MDU541_06578",null,null,"Weather Corrected MD 10% POE","MW","Non-Coincident",0.28499999999999998]
["ED_MDU541_06579",null,null,null,null,"Coincident",0.28499999999999998]
["ED_MDU541_06580",null,null,"Weather Corrected MD 10% POE","MVA","Non-Coincident",0.3]
["ED_MDU541_06581",null,null,null,null,"Coincident",0.3]
["ED_MDU541_06582",null,null,"Weather Corrected MD 50% POE","MW","Non-Coincident",0.28499999999999998]
["ED_MDU541_06583",null,null,null,null,"Coincident",0.28499999999999998]
["ED_MDU541_06584",null,null,"Weather Corrected MD 50% POE","MVA","Non-Coincident",0.3]
["ED_MDU541_06585",null,null,null,null,"Coincident",0.3]
["ED_MDU541_06586",null,"Queanbeyan South","Substation Rating","MVA","Non-Coincident",72]
["ED_MDU541_06587",null,null,null,null,"Coincident",72]
["ED_MDU541_06588",null,null,"Raw Adjusted MD","MW","Non-Coincident",27.968]
["ED_MDU541_06589",null,null,null,null,"Coincident",25.968]
["ED_MDU541_06590",null,null,"Raw Adjusted MD","MVA","Non-Coincident",28.248080430358449]
["ED_MDU541_06591",null,null,null,null,"Coincident",26.219656748325292]
["ED_MDU541_06592",null,null,"Date MD occurred",null,"Non-Coincident","2014-06-24"]
["ED_MDU541_06593",null,null,null,null,"Coincident","2014-07-10"]
["ED_MDU541_06594",null,null,"Half hour time period MD occurred",null,"Non-Coincident","18:30:00"]
["ED_MDU541_06595",null,null,null,null,"Coincident","18:30:00"]
["ED_MDU541_06596",null,null,"Winter/Summer Peaking",null,"Non-Coincident","Winter"]
["ED_MDU541_06597",null,null,null,null,"Coincident","Winter"]
["ED_MDU541_06598",null,null,"Adjustments - Embedded generation","MW","Non-Coincident",0]
["ED_MDU541_06599",null,null,null,null,"Coincident",0]
["ED_MDU541_06600",null,null,"Weather Corrected MD 10% POE","MW","Non-Coincident",30.467140724377078]
["ED_MDU541_06601",null,null,null,null,"Coincident",28.288426427725398]
["ED_MDU541_06602",null,null,"Weather Corrected MD 10% POE","MVA","Non-Coincident",30.77224834329423]
["ED_MDU541_06603",null,null,null,null,"Coincident",28.288426427725398]
["ED_MDU541_06604",null,null,"Weather Corrected MD 50% POE","MW","Non-Coincident",28.70141477972469]
["ED_MDU541_06605",null,null,null,null,"Coincident",26.648968070648266]
["ED_MDU541_06606",null,null,"Weather Corrected MD 50% POE","MVA","Non-Coincident",28.988839858507642]
["ED_MDU541_06607",null,null,null,null,"Coincident",26.648968070648266]
["ED_MDU541_06608",null,"Quira","Substation Rating","MVA","Non-Coincident",5.5]
["ED_MDU541_06609",null,null,null,null,"Coincident",6]
["ED_MDU541_06610",null,null,"Raw Adjusted MD","MW","Non-Coincident",1.4674499999999999]
["ED_MDU541_06611",null,null,null,null,"Coincident",0.69502500000000011]
["ED_MDU541_06612",null,null,"Raw Adjusted MD","MVA","Non-Coincident",1.5568505076355275]
["ED_MDU541_06613",null,null,null,null,"Coincident",0.70010068784782675]
["ED_MDU541_06614",null,null,"Date MD occurred",null,"Non-Coincident","2014-11-27"]
["ED_MDU541_06615",null,null,null,null,"Coincident","2014-07-10"]
["ED_MDU541_06616",null,null,"Half hour time period MD occurred",null,"Non-Coincident","23:30:00"]
["ED_MDU541_06617",null,null,null,null,"Coincident","18:30:00"]
["ED_MDU541_06618",null,null,"Winter/Summer Peaking",null,"Non-Coincident","Summer"]
["ED_MDU541_06619",null,null,null,null,"Coincident","Winter"]
["ED_MDU541_06620",null,null,"Adjustments - Embedded generation","MW","Non-Coincident",0]
["ED_MDU541_06621",null,null,null,null,"Coincident",0]
["ED_MDU541_06622",null,null,"Weather Corrected MD 10% POE","MW","Non-Coincident",1.3545338383565682]
["ED_MDU541_06623",null,null,null,null,"Coincident",0.64154477563376877]
["ED_MDU541_06624",null,null,"Weather Corrected MD 10% POE","MVA","Non-Coincident",1.4370552276772106]
["ED_MDU541_06625",null,null,null,null,"Coincident",0.64154477563376877]
["ED_MDU541_06626",null,null,"Weather Corrected MD 50% POE","MW","Non-Coincident",1.0767624104669173]
["ED_MDU541_06627",null,null,null,null,"Coincident",0.50998452712853548]
["ED_MDU541_06628",null,null,"Weather Corrected MD 50% POE","MVA","Non-Coincident",1.1423613106669901]
["ED_MDU541_06629",null,null,null,null,"Coincident",0.50998452712853548]
["ED_MDU541_06630",null,"Quirindi 66/11kV","Substation Rating","MVA","Non-Coincident",30.800000000000004]
["ED_MDU541_06631",null,null,null,null,"Coincident",33.6]
["ED_MDU541_06632",null,null,"Raw Adjusted MD","MW","Non-Coincident",6.0999999046325684]
["ED_MDU541_06633",null,null,null,null,"Coincident",4.6933331489562988]
["ED_MDU541_06634",null,null,"Raw Adjusted MD","MVA","Non-Coincident",6.3821529759423159]
["ED_MDU541_06635",null,null,null,null,"Coincident",4.7788467232352936]
["ED_MDU541_06636",null,null,"Date MD occurred",null,"Non-Coincident","2014-11-23"]
["ED_MDU541_06637",null,null,null,null,"Coincident","2014-07-10"]
["ED_MDU541_06638",null,null,"Half hour time period MD occurred",null,"Non-Coincident","17:00:00"]
["ED_MDU541_06639",null,null,null,null,"Coincident","18:30:00"]
["ED_MDU541_06640",null,null,"Winter/Summer Peaking",null,"Non-Coincident","Summer"]
["ED_MDU541_06641",null,null,null,null,"Coincident","Winter"]
["ED_MDU541_06642",null,null,"Adjustments - Embedded generation","MW","Non-Coincident",0]
["ED_MDU541_06643",null,null,null,null,"Coincident",0]
["ED_MDU541_06644",null,null,"Weather Corrected MD 10% POE","MW","Non-Coincident",5.7622875788353198]
["ED_MDU541_06645",null,null,null,null,"Coincident",4.4334976607177419]
["ED_MDU541_06646",null,null,"Weather Corrected MD 10% POE","MVA","Non-Coincident",6.0288199007298937]
["ED_MDU541_06647",null,null,null,null,"Coincident",4.4334976607177419]
["ED_MDU541_06648",null,null,"Weather Corrected MD 50% POE","MW","Non-Coincident",5.3011205462570512]
["ED_MDU541_06649",null,null,null,null,"Coincident",4.0786762582515443]
["ED_MDU541_06650",null,null,"Weather Corrected MD 50% POE","MVA","Non-Coincident",5.5463217703380092]
["ED_MDU541_06651",null,null,null,null,"Coincident",4.0786762582515443]
["ED_MDU541_06652",null,"Raglan","Substation Rating","MVA","Non-Coincident",72]
["ED_MDU541_06653",null,null,null,null,"Coincident",72]
["ED_MDU541_06654",null,null,"Raw Adjusted MD","MW","Non-Coincident",21.189599999999999]
["ED_MDU541_06655",null,null,null,null,"Coincident",19.385999999999999]
["ED_MDU541_06656",null,null,"Raw Adjusted MD","MVA","Non-Coincident",21.452464943684209]
["ED_MDU541_06657",null,null,null,null,"Coincident",19.736756961567927]
["ED_MDU541_06658",null,null,"Date MD occurred",null,"Non-Coincident","2014-07-17"]
["ED_MDU541_06659",null,null,null,null,"Coincident","2014-07-10"]
["ED_MDU541_06660",null,null,"Half hour time period MD occurred",null,"Non-Coincident","22:30:00"]
["ED_MDU541_06661",null,null,null,null,"Coincident","18:30:00"]
["ED_MDU541_06662",null,null,"Winter/Summer Peaking",null,"Non-Coincident","Winter"]
["ED_MDU541_06663",null,null,null,null,"Coincident","Winter"]
["ED_MDU541_06664",null,null,"Adjustments - Embedded generation","MW","Non-Coincident",0]
["ED_MDU541_06665",null,null,null,null,"Coincident",0]
["ED_MDU541_06666",null,null,"Weather Corrected MD 10% POE","MW","Non-Coincident",21.362476018194215]
["ED_MDU541_06667",null,null,null,null,"Coincident",19.544161290855566]
["ED_MDU541_06668",null,null,"Weather Corrected MD 10% POE","MVA","Non-Coincident",21.627485553790823]
["ED_MDU541_06669",null,null,null,null,"Coincident",19.544161290855566]
["ED_MDU541_06670",null,null,"Weather Corrected MD 50% POE","MW","Non-Coincident",19.80554289464758]
["ED_MDU541_06671",null,null,null,null,"Coincident",18.119749997906425]
["ED_MDU541_06672",null,null,"Weather Corrected MD 50% POE","MVA","Non-Coincident",20.051238090292458]
["ED_MDU541_06673",null,null,null,null,"Coincident",18.119749997906425]
["ED_MDU541_06674",null,"Raleigh","Substation Rating","MVA","Non-Coincident",72]
["ED_MDU541_06675",null,null,null,null,"Coincident",72]
["ED_MDU541_06676",null,null,"Raw Adjusted MD","MW","Non-Coincident",9.6227999999999998]
["ED_MDU541_06677",null,null,null,null,"Coincident",9.6227999999999998]
["ED_MDU541_06678",null,null,"Raw Adjusted MD","MVA","Non-Coincident",9.784448338051563]
["ED_MDU541_06679",null,null,null,null,"Coincident",9.784448338051563]
["ED_MDU541_06680",null,null,"Date MD occurred",null,"Non-Coincident","2014-07-10"]
["ED_MDU541_06681",null,null,null,null,"Coincident","2014-07-10"]
["ED_MDU541_06682",null,null,"Half hour time period MD occurred",null,"Non-Coincident","18:30:00"]
["ED_MDU541_06683",null,null,null,null,"Coincident","18:30:00"]
["ED_MDU541_06684",null,null,"Winter/Summer Peaking",null,"Non-Coincident","Winter"]
["ED_MDU541_06685",null,null,null,null,"Coincident","Winter"]
["ED_MDU541_06686",null,null,"Adjustments - Embedded generation","MW","Non-Coincident",0]
["ED_MDU541_06687",null,null,null,null,"Coincident",0]
["ED_MDU541_06688",null,null,"Weather Corrected MD 10% POE","MW","Non-Coincident",9.6134577902505782]
["ED_MDU541_06689",null,null,null,null,"Coincident",9.6134577902505782]
["ED_MDU541_06690",null,null,"Weather Corrected MD 10% POE","MVA","Non-Coincident",9.7749491934516062]
["ED_MDU541_06691",null,null,null,null,"Coincident",9.6134577902505782]
["ED_MDU541_06692",null,null,"Weather Corrected MD 50% POE","MW","Non-Coincident",9.059719844698142]
["ED_MDU541_06693",null,null,null,null,"Coincident",9.059719844698142]
["ED_MDU541_06694",null,null,"Weather Corrected MD 50% POE","MVA","Non-Coincident",9.2119092964282228]
["ED_MDU541_06695",null,null,null,null,"Coincident",9.059719844698142]
["ED_MDU541_06696",null,"Rappville","Substation Rating","MVA","Non-Coincident",12.375000000000002]
["ED_MDU541_06697",null,null,null,null,"Coincident",13.5]
["ED_MDU541_06698",null,null,"Raw Adjusted MD","MW","Non-Coincident",1.1749999523162842]
["ED_MDU541_06699",null,null,null,null,"Coincident",0.43549999594688416]
["ED_MDU541_06700",null,null,"Raw Adjusted MD","MVA","Non-Coincident",1.2180143310411169]
["ED_MDU541_06701",null,null,null,null,"Coincident",0.43598614666701302]
["ED_MDU541_06702",null,null,"Date MD occurred",null,"Non-Coincident","2014-10-27"]
["ED_MDU541_06703",null,null,null,null,"Coincident","2014-07-10"]
["ED_MDU541_06704",null,null,"Half hour time period MD occurred",null,"Non-Coincident","16:00:00"]
["ED_MDU541_06705",null,null,null,null,"Coincident","18:30:00"]
["ED_MDU541_06706",null,null,"Winter/Summer Peaking",null,"Non-Coincident","Summer"]
["ED_MDU541_06707",null,null,null,null,"Coincident","Winter"]
["ED_MDU541_06708",null,null,"Adjustments - Embedded generation","MW","Non-Coincident",0]
["ED_MDU541_06709",null,null,null,null,"Coincident",0]
["ED_MDU541_06710",null,null,"Weather Corrected MD 10% POE","MW","Non-Coincident",1.035862499962328]
["ED_MDU541_06711",null,null,null,null,"Coincident",0.38393032582327463]
["ED_MDU541_06712",null,null,"Weather Corrected MD 10% POE","MVA","Non-Coincident",1.0737833371439773]
["ED_MDU541_06713",null,null,null,null,"Coincident",0.38393032582327463]
["ED_MDU541_06714",null,null,"Weather Corrected MD 50% POE","MW","Non-Coincident",0.82180921941584695]
["ED_MDU541_06715",null,null,null,null,"Coincident",0.30459397978628605]
["ED_MDU541_06716",null,null,"Weather Corrected MD 50% POE","MVA","Non-Coincident",0.85189399766100971]
["ED_MDU541_06717",null,null,null,null,"Coincident",0.30459397978628605]
["ED_MDU541_06718",null,"Redcliff","Substation Rating","MVA","Non-Coincident",1.1000000000000001]
["ED_MDU541_06719",null,null,null,null,"Coincident",1.2]
["ED_MDU541_06720",null,null,"Raw Adjusted MD","MW","Non-Coincident",0.4543082734758544]
["ED_MDU541_06721",null,null,null,null,"Coincident",0.28356558183557812]
["ED_MDU541_06722",null,null,"Raw Adjusted MD","MVA","Non-Coincident",0.47821923523774151]
["ED_MDU541_06723",null,null,null,null,"Coincident",0.29849008614271383]
["ED_MDU541_06724",null,null,"Date MD occurred",null,"Non-Coincident","2015-01-01"]
["ED_MDU541_06725",null,null,null,null,"Coincident","2014-07-10"]
["ED_MDU541_06726",null,null,"Half hour time period MD occurred",null,"Non-Coincident","20:30:00"]
["ED_MDU541_06727",null,null,null,null,"Coincident","18:30:00"]
["ED_MDU541_06728",null,null,"Winter/Summer Peaking",null,"Non-Coincident","Summer"]
["ED_MDU541_06729",null,null,null,null,"Coincident","Winter"]
["ED_MDU541_06730",null,null,"Adjustments - Embedded generation","MW","Non-Coincident",0]
["ED_MDU541_06731",null,null,null,null,"Coincident",0]
["ED_MDU541_06732",null,null,"Weather Corrected MD 10% POE","MW","Non-Coincident",0.48154106766755583]
["ED_MDU541_06733",null,null,null,null,"Coincident",0.30056347419376955]
["ED_MDU541_06734",null,null,"Weather Corrected MD 10% POE","MVA","Non-Coincident",0.50688533438690098]
["ED_MDU541_06735",null,null,null,null,"Coincident",0.30056347419376955]
["ED_MDU541_06736",null,null,"Weather Corrected MD 50% POE","MW","Non-Coincident",0.38731882630880393]
["ED_MDU541_06737",null,null,null,null,"Coincident",0.24175278054663574]
["ED_MDU541_06738",null,null,"Weather Corrected MD 50% POE","MVA","Non-Coincident",0.40770402769347791]
["ED_MDU541_06739",null,null,null,null,"Coincident",0.24175278054663574]
["ED_MDU541_06740",null,"Ringwood Road","Substation Rating","MVA","Non-Coincident",5.5]
["ED_MDU541_06741",null,null,null,null,"Coincident",6]
["ED_MDU541_06742",null,null,"Raw Adjusted MD","MW","Non-Coincident",1.8483333587646484]
["ED_MDU541_06743",null,null,null,null,"Coincident",0.50499999523162842]
["ED_MDU541_06744",null,null,"Raw Adjusted MD","MVA","Non-Coincident",2.2276027470601178]
["ED_MDU541_06745",null,null,null,null,"Coincident",0.62105333230249671]
["ED_MDU541_06746",null,null,"Date MD occurred",null,"Non-Coincident","2015-02-11"]
["ED_MDU541_06747",null,null,null,null,"Coincident","2014-07-10"]
["ED_MDU541_06748",null,null,"Half hour time period MD occurred",null,"Non-Coincident","12:30:00"]
["ED_MDU541_06749",null,null,null,null,"Coincident","18:30:00"]
["ED_MDU541_06750",null,null,"Winter/Summer Peaking",null,"Non-Coincident","Summer"]
["ED_MDU541_06751",null,null,null,null,"Coincident","Winter"]
["ED_MDU541_06752",null,null,"Adjustments - Embedded generation","MW","Non-Coincident",0]
["ED_MDU541_06753",null,null,null,null,"Coincident",0]
["ED_MDU541_06754",null,null,"Weather Corrected MD 10% POE","MW","Non-Coincident",2.0036170651760536]
["ED_MDU541_06755",null,null,null,null,"Coincident",0.54742647129205113]
["ED_MDU541_06756",null,null,"Weather Corrected MD 10% POE","MVA","Non-Coincident",2.4147499460950992]
["ED_MDU541_06757",null,null,null,null,"Coincident",0.54742647129205113]
["ED_MDU541_06758",null,null,"Weather Corrected MD 50% POE","MW","Non-Coincident",1.8068052351418407]
["ED_MDU541_06759",null,null,null,null,"Coincident",0.49365371825618437]
["ED_MDU541_06760",null,null,"Weather Corrected MD 50% POE","MVA","Non-Coincident",2.1775532460738631]
["ED_MDU541_06761",null,null,null,null,"Coincident",0.49365371825618437]
["ED_MDU541_06762",null,"Rocks Ferry","Substation Rating","MVA","Non-Coincident",34.1]
["ED_MDU541_06763",null,null,null,null,"Coincident",37.199999999999996]
["ED_MDU541_06764",null,null,"Raw Adjusted MD","MW","Non-Coincident",9.0550003051757813]
["ED_MDU541_06765",null,null,null,null,"Coincident",8.3216667175292969]
["ED_MDU541_06766",null,null,"Raw Adjusted MD","MVA","Non-Coincident",9.4571048829320219]
["ED_MDU541_06767",null,null,null,null,"Coincident",8.4629626514679916]
["ED_MDU541_06768",null,null,"Date MD occurred",null,"Non-Coincident","2015-01-14"]
["ED_MDU541_06769",null,null,null,null,"Coincident","2014-07-10"]
["ED_MDU541_06770",null,null,"Half hour time period MD occurred",null,"Non-Coincident","19:00:00"]
["ED_MDU541_06771",null,null,null,null,"Coincident","18:30:00"]
["ED_MDU541_06772",null,null,"Winter/Summer Peaking",null,"Non-Coincident","Summer"]
["ED_MDU541_06773",null,null,null,null,"Coincident","Winter"]
["ED_MDU541_06774",null,null,"Adjustments - Embedded generation","MW","Non-Coincident",0]
["ED_MDU541_06775",null,null,null,null,"Coincident",0]
["ED_MDU541_06776",null,null,"Weather Corrected MD 10% POE","MW","Non-Coincident",9.1564431712800101]
["ED_MDU541_06777",null,null,null,null,"Coincident",8.4148940719345546]
["ED_MDU541_06778",null,null,"Weather Corrected MD 10% POE","MVA","Non-Coincident",9.5630525131959931]
["ED_MDU541_06779",null,null,null,null,"Coincident",8.4148940719345546]
["ED_MDU541_06780",null,null,"Weather Corrected MD 50% POE","MW","Non-Coincident",8.3384384502456879]
["ED_MDU541_06781",null,null,null,null,"Coincident",7.6631367630008134]
["ED_MDU541_06782",null,null,"Weather Corrected MD 50% POE","MVA","Non-Coincident",8.708722730663208]
["ED_MDU541_06783",null,null,null,null,"Coincident",7.6631367630008134]
["ED_MDU541_06784",null,"Russell Street","Substation Rating","MVA","Non-Coincident",108]
["ED_MDU541_06785",null,null,null,null,"Coincident",108]
["ED_MDU541_06786",null,null,"Raw Adjusted MD","MW","Non-Coincident",20.640000343322754]
["ED_MDU541_06787",null,null,null,null,"Coincident",17.299999713897705]
["ED_MDU541_06788",null,null,"Raw Adjusted MD","MVA","Non-Coincident",21.551841221242931]
["ED_MDU541_06789",null,null,null,null,"Coincident",17.85430837371878]
["ED_MDU541_06790",null,null,"Date MD occurred",null,"Non-Coincident","2014-07-04"]
["ED_MDU541_06791",null,null,null,null,"Coincident","2014-07-10"]
["ED_MDU541_06792",null,null,"Half hour time period MD occurred",null,"Non-Coincident","10:00:00"]
["ED_MDU541_06793",null,null,null,null,"Coincident","18:30:00"]
["ED_MDU541_06794",null,null,"Winter/Summer Peaking",null,"Non-Coincident","Winter"]
["ED_MDU541_06795",null,null,null,null,"Coincident","Winter"]
["ED_MDU541_06796",null,null,"Adjustments - Embedded generation","MW","Non-Coincident",0]
["ED_MDU541_06797",null,null,null,null,"Coincident",0]
["ED_MDU541_06798",null,null,"Weather Corrected MD 10% POE","MW","Non-Coincident",21.554367812020672]
["ED_MDU541_06799",null,null,null,null,"Coincident",18.066402654001763]
["ED_MDU541_06800",null,null,"Weather Corrected MD 10% POE","MVA","Non-Coincident",22.506603923542134]
["ED_MDU541_06801",null,null,null,null,"Coincident",18.066402654001763]
["ED_MDU541_06802",null,null,"Weather Corrected MD 50% POE","MW","Non-Coincident",20.159155215224732]
["ED_MDU541_06803",null,null,null,null,"Coincident",16.896965777843725]
["ED_MDU541_06804",null,null,"Weather Corrected MD 50% POE","MVA","Non-Coincident",21.049753155332148]
["ED_MDU541_06805",null,null,null,null,"Coincident",16.896965777843725]
["ED_MDU541_06806",null,"Sawtell","Substation Rating","MVA","Non-Coincident",60]
["ED_MDU541_06807",null,null,null,null,"Coincident",60]
["ED_MDU541_06808",null,null,"Raw Adjusted MD","MW","Non-Coincident",7.8120000000000003]
["ED_MDU541_06809",null,null,null,null,"Coincident",7.8120000000000003]
["ED_MDU541_06810",null,null,"Raw Adjusted MD","MVA","Non-Coincident",7.8218489987981741]
["ED_MDU541_06811",null,null,null,null,"Coincident",7.8218489987981741]
["ED_MDU541_06812",null,null,"Date MD occurred",null,"Non-Coincident","2014-07-10"]
["ED_MDU541_06813",null,null,null,null,"Coincident","2014-07-10"]
["ED_MDU541_06814",null,null,"Half hour time period MD occurred",null,"Non-Coincident","18:30:00"]
["ED_MDU541_06815",null,null,null,null,"Coincident","18:30:00"]
["ED_MDU541_06816",null,null,"Winter/Summer Peaking",null,"Non-Coincident","Winter"]
["ED_MDU541_06817",null,null,null,null,"Coincident","Winter"]
["ED_MDU541_06818",null,null,"Adjustments - Embedded generation","MW","Non-Coincident",0]
["ED_MDU541_06819",null,null,null,null,"Coincident",0]
["ED_MDU541_06820",null,null,"Weather Corrected MD 10% POE","MW","Non-Coincident",7.9134837436386274]
["ED_MDU541_06821",null,null,null,null,"Coincident",7.9134837436386274]
["ED_MDU541_06822",null,null,"Weather Corrected MD 10% POE","MVA","Non-Coincident",7.9234606883237868]
["ED_MDU541_06823",null,null,null,null,"Coincident",7.9134837436386274]
["ED_MDU541_06824",null,null,"Weather Corrected MD 50% POE","MW","Non-Coincident",7.4381505173319642]
["ED_MDU541_06825",null,null,null,null,"Coincident",7.4381505173319642]
["ED_MDU541_06826",null,null,"Weather Corrected MD 50% POE","MVA","Non-Coincident",7.4475281844474068]
["ED_MDU541_06827",null,null,null,null,"Coincident",7.4381505173319642]
["ED_MDU541_06828",null,"Smithtown","Substation Rating","MVA","Non-Coincident",13.799999999999999]
["ED_MDU541_06829",null,null,null,null,"Coincident",13.799999999999999]
["ED_MDU541_06830",null,null,"Raw Adjusted MD","MW","Non-Coincident",3.5086666494607925]
["ED_MDU541_06831",null,null,null,null,"Coincident",3.4163333773612976]
["ED_MDU541_06832",null,null,"Raw Adjusted MD","MVA","Non-Coincident",3.661169268882805]
["ED_MDU541_06833",null,null,null,null,"Coincident",3.5247949179335047]
["ED_MDU541_06834",null,null,"Date MD occurred",null,"Non-Coincident","2014-07-02"]
["ED_MDU541_06835",null,null,null,null,"Coincident","2014-07-10"]
["ED_MDU541_06836",null,null,"Half hour time period MD occurred",null,"Non-Coincident","08:30:00"]
["ED_MDU541_06837",null,null,null,null,"Coincident","18:30:00"]
["ED_MDU541_06838",null,null,"Winter/Summer Peaking",null,"Non-Coincident","Winter"]
["ED_MDU541_06839",null,null,null,null,"Coincident","Winter"]
["ED_MDU541_06840",null,null,"Adjustments - Embedded generation","MW","Non-Coincident",0]
["ED_MDU541_06841",null,null,null,null,"Coincident",0]
["ED_MDU541_06842",null,null,"Weather Corrected MD 10% POE","MW","Non-Coincident",3.5692376902399068]
["ED_MDU541_06843",null,null,null,null,"Coincident",3.4753104444323459]
["ED_MDU541_06844",null,null,"Weather Corrected MD 10% POE","MVA","Non-Coincident",3.7243730027339019]
["ED_MDU541_06845",null,null,null,null,"Coincident",3.4753104444323459]
["ED_MDU541_06846",null,null,"Weather Corrected MD 50% POE","MW","Non-Coincident",3.3508660560741279]
["ED_MDU541_06847",null,null,null,null,"Coincident",3.2626854284354203]
["ED_MDU541_06848",null,null,"Weather Corrected MD 50% POE","MVA","Non-Coincident",3.4965099436067737]
["ED_MDU541_06849",null,null,null,null,"Coincident",3.2626854284354203]
["ED_MDU541_06850",null,"Snapper","Substation Rating","MVA","Non-Coincident",17.600000000000001]
["ED_MDU541_06851",null,null,null,null,"Coincident",19.2]
["ED_MDU541_06852",null,null,"Raw Adjusted MD","MW","Non-Coincident",4.68]
["ED_MDU541_06853",null,null,null,null,"Coincident",3.4079999999999999]
["ED_MDU541_06854",null,null,"Raw Adjusted MD","MVA","Non-Coincident",4.8254923064906032]
["ED_MDU541_06855",null,null,null,null,"Coincident",3.504328751701244]
["ED_MDU541_06856",null,null,"Date MD occurred",null,"Non-Coincident","2014-11-03"]
["ED_MDU541_06857",null,null,null,null,"Coincident","2014-07-10"]
["ED_MDU541_06858",null,null,"Half hour time period MD occurred",null,"Non-Coincident","04:30:00"]
["ED_MDU541_06859",null,null,null,null,"Coincident","18:30:00"]
["ED_MDU541_06860",null,null,"Winter/Summer Peaking",null,"Non-Coincident","Summer"]
["ED_MDU541_06861",null,null,null,null,"Coincident","Winter"]
["ED_MDU541_06862",null,null,"Adjustments - Embedded generation","MW","Non-Coincident",0]
["ED_MDU541_06863",null,null,null,null,"Coincident",0]
["ED_MDU541_06864",null,null,"Weather Corrected MD 10% POE","MW","Non-Coincident",5.0128501775408205]
["ED_MDU541_06865",null,null,null,null,"Coincident",3.6503832062092134]
["ED_MDU541_06866",null,null,"Weather Corrected MD 10% POE","MVA","Non-Coincident",5.1686901635284794]
["ED_MDU541_06867",null,null,null,null,"Coincident",3.6503832062092134]
["ED_MDU541_06868",null,null,"Weather Corrected MD 50% POE","MW","Non-Coincident",4.1858218511540217]
["ED_MDU541_06869",null,null,null,null,"Coincident",3.048136937763442]
["ED_MDU541_06870",null,null,"Weather Corrected MD 50% POE","MVA","Non-Coincident",4.3159510980948692]
["ED_MDU541_06871",null,null,null,null,"Coincident",3.048136937763442]
["ED_MDU541_06872",null,"Snowy Adit 11kV","Substation Rating","MVA","Non-Coincident",11]
["ED_MDU541_06873",null,null,null,null,"Coincident",12]
["ED_MDU541_06874",null,null,"Raw Adjusted MD","MW","Non-Coincident",6.5556000000000003E-2]
["ED_MDU541_06875",null,null,null,null,"Coincident",3.32E-3]
["ED_MDU541_06876",null,null,"Raw Adjusted MD","MVA","Non-Coincident",8.3108121504459481E-2]
["ED_MDU541_06877",null,null,null,null,"Coincident",4.1729107347270207E-3]
["ED_MDU541_06878",null,null,"Date MD occurred",null,"Non-Coincident","2015-02-20"]
["ED_MDU541_06879",null,null,null,null,"Coincident","2014-07-10"]
["ED_MDU541_06880",null,null,"Half hour time period MD occurred",null,"Non-Coincident","11:30:00"]
["ED_MDU541_06881",null,null,null,null,"Coincident","18:30:00"]
["ED_MDU541_06882",null,null,"Winter/Summer Peaking",null,"Non-Coincident","Summer"]
["ED_MDU541_06883",null,null,null,null,"Coincident","Winter"]
["ED_MDU541_06884",null,null,"Adjustments - Embedded generation","MW","Non-Coincident",0]
["ED_MDU541_06885",null,null,null,null,"Coincident",0]
["ED_MDU541_06886",null,null,"Weather Corrected MD 10% POE","MW","Non-Coincident",2.9013147037639408E-2]
["ED_MDU541_06887",null,null,null,null,"Coincident",1.4693338239819822E-3]
["ED_MDU541_06888",null,null,"Weather Corrected MD 10% POE","MVA","Non-Coincident",3.6781196980152614E-2]
["ED_MDU541_06889",null,null,null,null,"Coincident",1.4693338239819822E-3]
["ED_MDU541_06890",null,null,"Weather Corrected MD 50% POE","MW","Non-Coincident",1.0661957289348618E-2]
["ED_MDU541_06891",null,null,null,null,"Coincident",5.3996122705225161E-4]
["ED_MDU541_06892",null,null,"Weather Corrected MD 50% POE","MVA","Non-Coincident",1.3516615441432399E-2]
["ED_MDU541_06893",null,null,null,null,"Coincident",5.3996122705225161E-4]
["ED_MDU541_06894",null,"South West Rocks","Substation Rating","MVA","Non-Coincident",31.35]
["ED_MDU541_06895",null,null,null,null,"Coincident",34.199999999999996]
["ED_MDU541_06896",null,null,"Raw Adjusted MD","MW","Non-Coincident",6.36]
["ED_MDU541_06897",null,null,null,null,"Coincident",5.5860000000000003]
["ED_MDU541_06898",null,null,"Raw Adjusted MD","MVA","Non-Coincident",6.3646405240201904]
["ED_MDU541_06899",null,null,null,null,"Coincident",5.6262758553060657]
["ED_MDU541_06900",null,null,"Date MD occurred",null,"Non-Coincident","2015-01-02"]
["ED_MDU541_06901",null,null,null,null,"Coincident","2014-07-10"]
["ED_MDU541_06902",null,null,"Half hour time period MD occurred",null,"Non-Coincident","19:30:00"]
["ED_MDU541_06903",null,null,null,null,"Coincident","18:30:00"]
["ED_MDU541_06904",null,null,"Winter/Summer Peaking",null,"Non-Coincident","Summer"]
["ED_MDU541_06905",null,null,null,null,"Coincident","Winter"]
["ED_MDU541_06906",null,null,"Adjustments - Embedded generation","MW","Non-Coincident",0]
["ED_MDU541_06907",null,null,null,null,"Coincident",0]
["ED_MDU541_06908",null,null,"Weather Corrected MD 10% POE","MW","Non-Coincident",5.8179364434326084]
["ED_MDU541_06909",null,null,null,null,"Coincident",5.1099045555054321]
["ED_MDU541_06910",null,null,"Weather Corrected MD 10% POE","MVA","Non-Coincident",5.8221814550385336]
["ED_MDU541_06911",null,null,null,null,"Coincident",5.1099045555054321]
["ED_MDU541_06912",null,null,"Weather Corrected MD 50% POE","MW","Non-Coincident",5.1559128548716098]
["ED_MDU541_06913",null,null,null,null,"Coincident",4.5284479885711963]
["ED_MDU541_06914",null,null,"Weather Corrected MD 50% POE","MVA","Non-Coincident",5.1596748261686285]
["ED_MDU541_06915",null,null,null,null,"Coincident",4.5284479885711963]
["ED_MDU541_06916",null,"Spring Ridge","Substation Rating","MVA","Non-Coincident",1.6500000000000001]
["ED_MDU541_06917",null,null,null,null,"Coincident",1.7999999999999998]
["ED_MDU541_06918",null,null,"Raw Adjusted MD","MW","Non-Coincident",0.77833330631256104]
["ED_MDU541_06919",null,null,null,null,"Coincident",0.45983332395553589]
["ED_MDU541_06920",null,null,"Raw Adjusted MD","MVA","Non-Coincident",0.82066402042442577]
["ED_MDU541_06921",null,null,null,null,"Coincident",0.47947615321919146]
["ED_MDU541_06922",null,null,"Date MD occurred",null,"Non-Coincident","2014-11-22"]
["ED_MDU541_06923",null,null,null,null,"Coincident","2014-07-10"]
["ED_MDU541_06924",null,null,"Half hour time period MD occurred",null,"Non-Coincident","19:30:00"]
["ED_MDU541_06925",null,null,null,null,"Coincident","18:30:00"]
["ED_MDU541_06926",null,null,"Winter/Summer Peaking",null,"Non-Coincident","Summer"]
["ED_MDU541_06927",null,null,null,null,"Coincident","Winter"]
["ED_MDU541_06928",null,null,"Adjustments - Embedded generation","MW","Non-Coincident",0]
["ED_MDU541_06929",null,null,null,null,"Coincident",0]
["ED_MDU541_06930",null,null,"Weather Corrected MD 10% POE","MW","Non-Coincident",0.63134991380109817]
["ED_MDU541_06931",null,null,null,null,"Coincident",0.37299666747861848]
["ED_MDU541_06932",null,null,"Weather Corrected MD 10% POE","MVA","Non-Coincident",0.66568673645652288]
["ED_MDU541_06933",null,null,null,null,"Coincident",0.37299666747861848]
["ED_MDU541_06934",null,null,"Weather Corrected MD 50% POE","MW","Non-Coincident",0.44920039455658012]
["ED_MDU541_06935",null,null,null,null,"Coincident",0.2653841341181688]
["ED_MDU541_06936",null,null,"Weather Corrected MD 50% POE","MVA","Non-Coincident",0.47363076818532401]
["ED_MDU541_06937",null,null,null,null,"Coincident",0.2653841341181688]
["ED_MDU541_06938",null,"Steeple Flat 22kV","Substation Rating","MVA","Non-Coincident",5.5]
["ED_MDU541_06939",null,null,null,null,"Coincident",6]
["ED_MDU541_06940",null,null,"Raw Adjusted MD","MW","Non-Coincident",0.56283330917358398]
["ED_MDU541_06941",null,null,null,null,"Coincident",0]
["ED_MDU541_06942",null,null,"Raw Adjusted MD","MVA","Non-Coincident",0.58133603463412076]
["ED_MDU541_06943",null,null,null,null,"Coincident",0]
["ED_MDU541_06944",null,null,"Date MD occurred",null,"Non-Coincident","2014-12-19"]
["ED_MDU541_06945",null,null,null,null,"Coincident","2014-07-10"]
["ED_MDU541_06946",null,null,"Half hour time period MD occurred",null,"Non-Coincident",1]
["ED_MDU541_06947",null,null,null,null,"Coincident","18:30:00"]
["ED_MDU541_06948",null,null,"Winter/Summer Peaking",null,"Non-Coincident","Summer"]
["ED_MDU541_06949",null,null,null,null,"Coincident","Winter"]
["ED_MDU541_06950",null,null,"Adjustments - Embedded generation","MW","Non-Coincident",0]
["ED_MDU541_06951",null,null,null,null,"Coincident",0]
["ED_MDU541_06952",null,null,"Weather Corrected MD 10% POE","MW","Non-Coincident",0.48703941733921463]
["ED_MDU541_06953",null,null,null,null,"Coincident",0]
["ED_MDU541_06954",null,null,"Weather Corrected MD 10% POE","MVA","Non-Coincident",0.50305047510819967]
["ED_MDU541_06955",null,null,null,null,"Coincident",0]
["ED_MDU541_06956",null,null,"Weather Corrected MD 50% POE","MW","Non-Coincident",0.45179070281052713]
["ED_MDU541_06957",null,null,null,null,"Coincident",0]
["ED_MDU541_06958",null,null,"Weather Corrected MD 50% POE","MVA","Non-Coincident",0.46664298536644105]
["ED_MDU541_06959",null,null,null,null,"Coincident",0]
["ED_MDU541_06960",null,"Stewart","Substation Rating","MVA","Non-Coincident",60]
["ED_MDU541_06961",null,null,null,null,"Coincident",60]
["ED_MDU541_06962",null,null,"Raw Adjusted MD","MW","Non-Coincident",18.28575]
["ED_MDU541_06963",null,null,null,null,"Coincident",17.361000000000001]
["ED_MDU541_06964",null,null,"Raw Adjusted MD","MVA","Non-Coincident",18.328339521762466]
["ED_MDU541_06965",null,null,null,null,"Coincident",17.371862999186355]
["ED_MDU541_06966",null,null,"Date MD occurred",null,"Non-Coincident","2014-07-18"]
["ED_MDU541_06967",null,null,null,null,"Coincident","2014-07-10"]
["ED_MDU541_06968",null,null,"Half hour time period MD occurred",null,"Non-Coincident","22:30:00"]
["ED_MDU541_06969",null,null,null,null,"Coincident","18:30:00"]
["ED_MDU541_06970",null,null,"Winter/Summer Peaking",null,"Non-Coincident","Winter"]
["ED_MDU541_06971",null,null,null,null,"Coincident","Winter"]
["ED_MDU541_06972",null,null,"Adjustments - Embedded generation","MW","Non-Coincident",0]
["ED_MDU541_06973",null,null,null,null,"Coincident",0]
["ED_MDU541_06974",null,null,"Weather Corrected MD 10% POE","MW","Non-Coincident",19.411303827106082]
["ED_MDU541_06975",null,null,null,null,"Coincident",18.429632131161625]
["ED_MDU541_06976",null,null,"Weather Corrected MD 10% POE","MVA","Non-Coincident",19.456514887455388]
["ED_MDU541_06977",null,null,null,null,"Coincident",18.429632131161625]
["ED_MDU541_06978",null,null,"Weather Corrected MD 50% POE","MW","Non-Coincident",18.380080176759336]
["ED_MDU541_06979",null,null,null,null,"Coincident",17.450559695321157]
["ED_MDU541_06980",null,null,"Weather Corrected MD 50% POE","MVA","Non-Coincident",18.422889403872468]
["ED_MDU541_06981",null,null,null,null,"Coincident",17.450559695321157]
["ED_MDU541_06982",null,"Stroud 33/11kV","Substation Rating","MVA","Non-Coincident",14.3]
["ED_MDU541_06983",null,null,null,null,"Coincident",15.6]
["ED_MDU541_06984",null,null,"Raw Adjusted MD","MW","Non-Coincident",2.8108746481438902]
["ED_MDU541_06985",null,null,null,null,"Coincident",1.6888586306530726]
["ED_MDU541_06986",null,null,"Raw Adjusted MD","MVA","Non-Coincident",2.9588154190988321]
["ED_MDU541_06987",null,null,null,null,"Coincident",1.7777459270032343]
["ED_MDU541_06988",null,null,"Date MD occurred",null,"Non-Coincident","2014-11-21"]
["ED_MDU541_06989",null,null,null,null,"Coincident","2014-07-10"]
["ED_MDU541_06990",null,null,"Half hour time period MD occurred",null,"Non-Coincident","19:30:00"]
["ED_MDU541_06991",null,null,null,null,"Coincident","18:30:00"]
["ED_MDU541_06992",null,null,"Winter/Summer Peaking",null,"Non-Coincident","Summer"]
["ED_MDU541_06993",null,null,null,null,"Coincident","Winter"]
["ED_MDU541_06994",null,null,"Adjustments - Embedded generation","MW","Non-Coincident",0]
["ED_MDU541_06995",null,null,null,null,"Coincident",0]
["ED_MDU541_06996",null,null,"Weather Corrected MD 10% POE","MW","Non-Coincident",2.9309581571173569]
["ED_MDU541_06997",null,null,null,null,"Coincident",1.7610084402018062]
["ED_MDU541_06998",null,null,"Weather Corrected MD 10% POE","MVA","Non-Coincident",3.0852191127551132]
["ED_MDU541_06999",null,null,null,null,"Coincident",1.7610084402018062]
["ED_MDU541_07000",null,null,"Weather Corrected MD 50% POE","MW","Non-Coincident",2.5682563660831788]
["ED_MDU541_07001",null,null,null,null,"Coincident",1.5430862178266864]
["ED_MDU541_07002",null,null,"Weather Corrected MD 50% POE","MVA","Non-Coincident",2.7034277537717677]
["ED_MDU541_07003",null,null,null,null,"Coincident",1.5430862178266864]
["ED_MDU541_07004",null,"Suffolk Park","Substation Rating","MVA","Non-Coincident",33]
["ED_MDU541_07005",null,null,null,null,"Coincident",36]
["ED_MDU541_07006",null,null,"Raw Adjusted MD","MW","Non-Coincident",9.24]
["ED_MDU541_07007",null,null,null,null,"Coincident",10.96]
["ED_MDU541_07008",null,null,"Raw Adjusted MD","MVA","Non-Coincident",9.3515346334171259]
["ED_MDU541_07009",null,null,null,null,"Coincident",11.013083128715591]
["ED_MDU541_07010",null,null,"Date MD occurred",null,"Non-Coincident","2015-03-05"]
["ED_MDU541_07011",null,null,null,null,"Coincident","2014-07-10"]
["ED_MDU541_07012",null,null,"Half hour time period MD occurred",null,"Non-Coincident","19:00:00"]
["ED_MDU541_07013",null,null,null,null,"Coincident","18:30:00"]
["ED_MDU541_07014",null,null,"Winter/Summer Peaking",null,"Non-Coincident","Summer"]
["ED_MDU541_07015",null,null,null,null,"Coincident","Winter"]
["ED_MDU541_07016",null,null,"Adjustments - Embedded generation","MW","Non-Coincident",0]
["ED_MDU541_07017",null,null,null,null,"Coincident",0]
["ED_MDU541_07018",null,null,"Weather Corrected MD 10% POE","MW","Non-Coincident",9.6308488280548836]
["ED_MDU541_07019",null,null,null,null,"Coincident",11.423604237606225]
["ED_MDU541_07020",null,null,"Weather Corrected MD 10% POE","MVA","Non-Coincident",9.7471013381774885]
["ED_MDU541_07021",null,null,null,null,"Coincident",11.423604237606225]
["ED_MDU541_07022",null,null,"Weather Corrected MD 50% POE","MW","Non-Coincident",9.1653952663138654]
["ED_MDU541_07023",null,null,null,null,"Coincident",10.871507805064931]
["ED_MDU541_07024",null,null,"Weather Corrected MD 50% POE","MVA","Non-Coincident",9.2760293573475643]
["ED_MDU541_07025",null,null,null,null,"Coincident",10.871507805064931]
["ED_MDU541_07026",null,"Sunset Strip 22","Substation Rating","MVA","Non-Coincident",5.5]
["ED_MDU541_07027",null,null,null,null,"Coincident",6]
["ED_MDU541_07028",null,null,"Raw Adjusted MD","MW","Non-Coincident",1.9484999999999999]
["ED_MDU541_07029",null,null,null,null,"Coincident",0.495]
["ED_MDU541_07030",null,null,"Raw Adjusted MD","MVA","Non-Coincident",1.9580843955253817]
["ED_MDU541_07031",null,null,null,null,"Coincident",0.495]
["ED_MDU541_07032",null,null,"Date MD occurred",null,"Non-Coincident","2015-02-23"]
["ED_MDU541_07033",null,null,null,null,"Coincident","2014-07-10"]
["ED_MDU541_07034",null,null,"Half hour time period MD occurred",null,"Non-Coincident","14:00:00"]
["ED_MDU541_07035",null,null,null,null,"Coincident","18:30:00"]
["ED_MDU541_07036",null,null,"Winter/Summer Peaking",null,"Non-Coincident","Summer"]
["ED_MDU541_07037",null,null,null,null,"Coincident","Winter"]
["ED_MDU541_07038",null,null,"Adjustments - Embedded generation","MW","Non-Coincident",0]
["ED_MDU541_07039",null,null,null,null,"Coincident",0]
["ED_MDU541_07040",null,null,"Weather Corrected MD 10% POE","MW","Non-Coincident",1.3267463671660817]
["ED_MDU541_07041",null,null,null,null,"Coincident",0.33704873068884295]
["ED_MDU541_07042",null,null,"Weather Corrected MD 10% POE","MVA","Non-Coincident",1.3332724446332529]
["ED_MDU541_07043",null,null,null,null,"Coincident",0.33704873068884295]
["ED_MDU541_07044",null,null,"Weather Corrected MD 50% POE","MW","Non-Coincident",0.98745834137361088]
["ED_MDU541_07045",null,null,null,null,"Coincident",0.25085546778544388]
["ED_MDU541_07046",null,null,"Weather Corrected MD 50% POE","MVA","Non-Coincident",0.99231550909676314]
["ED_MDU541_07047",null,null,null,null,"Coincident",0.25085546778544388]
["ED_MDU541_07048",null,"Sunset Strip 33","Substation Rating","MVA","Non-Coincident",9.6]
["ED_MDU541_07049",null,null,null,null,"Coincident",9.6]
["ED_MDU541_07050",null,null,"Raw Adjusted MD","MW","Non-Coincident",2.8784999999999998]
["ED_MDU541_07051",null,null,null,null,"Coincident",2.8784999999999998]
["ED_MDU541_07052",null,null,"Raw Adjusted MD","MVA","Non-Coincident",3.03]
["ED_MDU541_07053",null,null,null,null,"Coincident",3.03]
["ED_MDU541_07054",null,null,"Date MD occurred",null,"Non-Coincident","2014-07-10"]
["ED_MDU541_07055",null,null,null,null,"Coincident","2014-07-10"]
["ED_MDU541_07056",null,null,"Half hour time period MD occurred",null,"Non-Coincident","18:30:00"]
["ED_MDU541_07057",null,null,null,null,"Coincident","18:30:00"]
["ED_MDU541_07058",null,null,"Winter/Summer Peaking",null,"Non-Coincident","Winter"]
["ED_MDU541_07059",null,null,null,null,"Coincident","Winter"]
["ED_MDU541_07060",null,null,"Adjustments - Embedded generation","MW","Non-Coincident",0]
["ED_MDU541_07061",null,null,null,null,"Coincident",0]
["ED_MDU541_07062",null,null,"Weather Corrected MD 10% POE","MW","Non-Coincident",2.8784999999999998]
["ED_MDU541_07063",null,null,null,null,"Coincident",2.8784999999999998]
["ED_MDU541_07064",null,null,"Weather Corrected MD 10% POE","MVA","Non-Coincident",3.03]
["ED_MDU541_07065",null,null,null,null,"Coincident",3.03]
["ED_MDU541_07066",null,null,"Weather Corrected MD 50% POE","MW","Non-Coincident",2.8784999999999998]
["ED_MDU541_07067",null,null,null,null,"Coincident",2.8784999999999998]
["ED_MDU541_07068",null,null,"Weather Corrected MD 50% POE","MVA","Non-Coincident",3.03]
["ED_MDU541_07069",null,null,null,null,"Coincident",3.03]
["ED_MDU541_07070",null,"Sutton","Substation Rating","MVA","Non-Coincident",9.6]
["ED_MDU541_07071",null,null,null,null,"Coincident",9.6]
["ED_MDU541_07072",null,null,"Raw Adjusted MD","MW","Non-Coincident",3.3786666564941408]
["ED_MDU541_07073",null,null,null,null,"Coincident",3.0815000305175779]
["ED_MDU541_07074",null,null,"Raw Adjusted MD","MVA","Non-Coincident",3.4608724922043752]
["ED_MDU541_07075",null,null,null,null,"Coincident",3.162461610530606]
["ED_MDU541_07076",null,null,"Date MD occurred",null,"Non-Coincident","2014-07-09"]
["ED_MDU541_07077",null,null,null,null,"Coincident","2014-07-10"]
["ED_MDU541_07078",null,null,"Half hour time period MD occurred",null,"Non-Coincident","19:00:00"]
["ED_MDU541_07079",null,null,null,null,"Coincident","18:30:00"]
["ED_MDU541_07080",null,null,"Winter/Summer Peaking",null,"Non-Coincident","Winter"]
["ED_MDU541_07081",null,null,null,null,"Coincident","Winter"]
["ED_MDU541_07082",null,null,"Adjustments - Embedded generation","MW","Non-Coincident",0]
["ED_MDU541_07083",null,null,null,null,"Coincident",0]
["ED_MDU541_07084",null,null,"Weather Corrected MD 10% POE","MW","Non-Coincident",3.5008503112704479]
["ED_MDU541_07085",null,null,null,null,"Coincident",3.1929371665837389]
["ED_MDU541_07086",null,null,"Weather Corrected MD 10% POE","MVA","Non-Coincident",3.5860289793054432]
["ED_MDU541_07087",null,null,null,null,"Coincident",3.1929371665837389]
["ED_MDU541_07088",null,null,"Weather Corrected MD 50% POE","MW","Non-Coincident",3.277875649782394]
["ED_MDU541_07089",null,null,null,null,"Coincident",2.9895739774808971]
["ED_MDU541_07090",null,null,"Weather Corrected MD 50% POE","MVA","Non-Coincident",3.357629154504933]
["ED_MDU541_07091",null,null,null,null,"Coincident",2.9895739774808971]
["ED_MDU541_07092",null,"Talbingo","Substation Rating","MVA","Non-Coincident",6]
["ED_MDU541_07093",null,null,null,null,"Coincident",6]
["ED_MDU541_07094",null,null,"Raw Adjusted MD","MW","Non-Coincident",1.1845319999999999]
["ED_MDU541_07095",null,null,null,null,"Coincident",0.300286]
["ED_MDU541_07096",null,null,"Raw Adjusted MD","MVA","Non-Coincident",1.3897547479177756]
["ED_MDU541_07097",null,null,null,null,"Coincident",0.38479946554016942]
["ED_MDU541_07098",null,null,"Date MD occurred",null,"Non-Coincident","2014-09-23"]
["ED_MDU541_07099",null,null,null,null,"Coincident","2014-07-10"]
["ED_MDU541_07100",null,null,"Half hour time period MD occurred",null,"Non-Coincident","13:00:00"]
["ED_MDU541_07101",null,null,null,null,"Coincident","18:30:00"]
["ED_MDU541_07102",null,null,"Winter/Summer Peaking",null,"Non-Coincident","Winter"]
["ED_MDU541_07103",null,null,null,null,"Coincident","Winter"]
["ED_MDU541_07104",null,null,"Adjustments - Embedded generation","MW","Non-Coincident",0]
["ED_MDU541_07105",null,null,null,null,"Coincident",0]
["ED_MDU541_07106",null,null,"Weather Corrected MD 10% POE","MW","Non-Coincident",0.8714480034605806]
["ED_MDU541_07107",null,null,null,null,"Coincident",0.22091732023040656]
["ED_MDU541_07108",null,null,"Weather Corrected MD 10% POE","MVA","Non-Coincident",1.0224282673433966]
["ED_MDU541_07109",null,null,null,null,"Coincident",0.22091732023040656]
["ED_MDU541_07110",null,null,"Weather Corrected MD 50% POE","MW","Non-Coincident",0.66818151285513661]
["ED_MDU541_07111",null,null,null,null,"Coincident",0.16938803997630927]
["ED_MDU541_07112",null,null,"Weather Corrected MD 50% POE","MVA","Non-Coincident",0.78394541469652868]
["ED_MDU541_07113",null,null,null,null,"Coincident",0.16938803997630927]
["ED_MDU541_07114",null,"Tamworth East","Substation Rating","MVA","Non-Coincident",83.600000000000009]
["ED_MDU541_07115",null,null,null,null,"Coincident",91.2]
["ED_MDU541_07116",null,null,"Raw Adjusted MD","MW","Non-Coincident",28.7775]
["ED_MDU541_07117",null,null,null,null,"Coincident",22.869]
["ED_MDU541_07118",null,null,"Raw Adjusted MD","MVA","Non-Coincident",28.973163246356101]
["ED_MDU541_07119",null,null,null,null,"Coincident",23.033154061048609]
["ED_MDU541_07120",null,null,"Date MD occurred",null,"Non-Coincident","2014-11-24"]
["ED_MDU541_07121",null,null,null,null,"Coincident","2014-07-10"]
["ED_MDU541_07122",null,null,"Half hour time period MD occurred",null,"Non-Coincident","16:00:00"]
["ED_MDU541_07123",null,null,null,null,"Coincident","18:30:00"]
["ED_MDU541_07124",null,null,"Winter/Summer Peaking",null,"Non-Coincident","Summer"]
["ED_MDU541_07125",null,null,null,null,"Coincident","Winter"]
["ED_MDU541_07126",null,null,"Adjustments - Embedded generation","MW","Non-Coincident",0]
["ED_MDU541_07127",null,null,null,null,"Coincident",0]
["ED_MDU541_07128",null,null,"Weather Corrected MD 10% POE","MW","Non-Coincident",30.424820094068252]
["ED_MDU541_07129",null,null,null,null,"Coincident",24.17809784488739]
["ED_MDU541_07130",null,null,"Weather Corrected MD 10% POE","MVA","Non-Coincident",30.631683757326204]
["ED_MDU541_07131",null,null,null,null,"Coincident",24.17809784488739]
["ED_MDU541_07132",null,null,"Weather Corrected MD 50% POE","MW","Non-Coincident",28.024485017439865]
["ED_MDU541_07133",null,null,null,null,"Coincident",22.270591533796619]
["ED_MDU541_07134",null,null,"Weather Corrected MD 50% POE","MVA","Non-Coincident",28.215028383471321]
["ED_MDU541_07135",null,null,null,null,"Coincident",22.270591533796619]
["ED_MDU541_07136",null,"Tamworth South","Substation Rating","MVA","Non-Coincident",72]
["ED_MDU541_07137",null,null,null,null,"Coincident",72]
["ED_MDU541_07138",null,null,"Raw Adjusted MD","MW","Non-Coincident",20.12]
["ED_MDU541_07139",null,null,null,null,"Coincident",19.600000000000001]
["ED_MDU541_07140",null,null,"Raw Adjusted MD","MVA","Non-Coincident",20.405254225321478]
["ED_MDU541_07141",null,null,null,null,"Coincident",19.92068271922426]
["ED_MDU541_07142",null,null,"Date MD occurred",null,"Non-Coincident","2014-06-30"]
["ED_MDU541_07143",null,null,null,null,"Coincident","2014-07-10"]
["ED_MDU541_07144",null,null,"Half hour time period MD occurred",null,"Non-Coincident","18:30:00"]
["ED_MDU541_07145",null,null,null,null,"Coincident","18:30:00"]
["ED_MDU541_07146",null,null,"Winter/Summer Peaking",null,"Non-Coincident","Winter"]
["ED_MDU541_07147",null,null,null,null,"Coincident","Winter"]
["ED_MDU541_07148",null,null,"Adjustments - Embedded generation","MW","Non-Coincident",0]
["ED_MDU541_07149",null,null,null,null,"Coincident",0]
["ED_MDU541_07150",null,null,"Weather Corrected MD 10% POE","MW","Non-Coincident",21.919073453839161]
["ED_MDU541_07151",null,null,null,null,"Coincident",21.352576525608725]
["ED_MDU541_07152",null,null,"Weather Corrected MD 10% POE","MVA","Non-Coincident",22.229834304626412]
["ED_MDU541_07153",null,null,null,null,"Coincident",21.352576525608725]
["ED_MDU541_07154",null,null,"Weather Corrected MD 50% POE","MW","Non-Coincident",21.018672014815206]
["ED_MDU541_07155",null,null,null,null,"Coincident",20.475445899124157]
["ED_MDU541_07156",null,null,"Weather Corrected MD 50% POE","MVA","Non-Coincident",21.316667293287988]
["ED_MDU541_07157",null,null,null,null,"Coincident",20.475445899124157]
["ED_MDU541_07158",null,"Tarcutta","Substation Rating","MVA","Non-Coincident",2.4]
["ED_MDU541_07159",null,null,null,null,"Coincident",2.4]
["ED_MDU541_07160",null,null,"Raw Adjusted MD","MW","Non-Coincident",0.96139212015898479]
["ED_MDU541_07161",null,null,null,null,"Coincident",0.73904876562274113]
["ED_MDU541_07162",null,null,"Raw Adjusted MD","MVA","Non-Coincident",1.0682134668433163]
["ED_MDU541_07163",null,null,null,null,"Coincident",0.82116529513637904]
["ED_MDU541_07164",null,null,"Date MD occurred",null,"Non-Coincident","2014-07-20"]
["ED_MDU541_07165",null,null,null,null,"Coincident","2014-07-10"]
["ED_MDU541_07166",null,null,"Half hour time period MD occurred",null,"Non-Coincident","18:30:00"]
["ED_MDU541_07167",null,null,null,null,"Coincident","18:30:00"]
["ED_MDU541_07168",null,null,"Winter/Summer Peaking",null,"Non-Coincident","Winter"]
["ED_MDU541_07169",null,null,null,null,"Coincident","Winter"]
["ED_MDU541_07170",null,null,"Adjustments - Embedded generation","MW","Non-Coincident",0]
["ED_MDU541_07171",null,null,null,null,"Coincident",0]
["ED_MDU541_07172",null,null,"Weather Corrected MD 10% POE","MW","Non-Coincident",0.80392662204387688]
["ED_MDU541_07173",null,null,null,null,"Coincident",0.61800067341360621]
["ED_MDU541_07174",null,null,"Weather Corrected MD 10% POE","MVA","Non-Coincident",0.89325180227097423]
["ED_MDU541_07175",null,null,null,null,"Coincident",0.61800067341360621]
["ED_MDU541_07176",null,null,"Weather Corrected MD 50% POE","MW","Non-Coincident",0.75831294461738952]
["ED_MDU541_07177",null,null,null,null,"Coincident",0.58293617549366827]
["ED_MDU541_07178",null,null,"Weather Corrected MD 50% POE","MVA","Non-Coincident",0.84256993846376604]
["ED_MDU541_07179",null,null,null,null,"Coincident",0.58293617549366827]
["ED_MDU541_07180",null,"Tea Gardens","Substation Rating","MVA","Non-Coincident",35.200000000000003]
["ED_MDU541_07181",null,null,null,null,"Coincident",38.4]
["ED_MDU541_07182",null,null,"Raw Adjusted MD","MW","Non-Coincident",7.9]
["ED_MDU541_07183",null,null,null,null,"Coincident",6.84]
["ED_MDU541_07184",null,null,"Raw Adjusted MD","MVA","Non-Coincident",7.9355214069398103]
["ED_MDU541_07185",null,null,null,null,"Coincident",6.8457285952628881]
["ED_MDU541_07186",null,null,"Date MD occurred",null,"Non-Coincident","2015-01-14"]
["ED_MDU541_07187",null,null,null,null,"Coincident","2014-07-10"]
["ED_MDU541_07188",null,null,"Half hour time period MD occurred",null,"Non-Coincident","18:00:00"]
["ED_MDU541_07189",null,null,null,null,"Coincident","18:30:00"]
["ED_MDU541_07190",null,null,"Winter/Summer Peaking",null,"Non-Coincident","Summer"]
["ED_MDU541_07191",null,null,null,null,"Coincident","Winter"]
["ED_MDU541_07192",null,null,"Adjustments - Embedded generation","MW","Non-Coincident",0]
["ED_MDU541_07193",null,null,null,null,"Coincident",0]
["ED_MDU541_07194",null,null,"Weather Corrected MD 10% POE","MW","Non-Coincident",7.7437800652152964]
["ED_MDU541_07195",null,null,null,null,"Coincident",6.7047412210218509]
["ED_MDU541_07196",null,null,"Weather Corrected MD 10% POE","MVA","Non-Coincident",7.7785990478670559]
["ED_MDU541_07197",null,null,null,null,"Coincident",6.7047412210218509]
["ED_MDU541_07198",null,null,"Weather Corrected MD 50% POE","MW","Non-Coincident",6.8406608357857897]
["ED_MDU541_07199",null,null,null,null,"Coincident",5.92280001478162]
["ED_MDU541_07200",null,null,"Weather Corrected MD 50% POE","MVA","Non-Coincident",6.8714190506320136]
["ED_MDU541_07201",null,null,null,null,"Coincident",5.92280001478162]
["ED_MDU541_07202",null,"Telegraph Point","Substation Rating","MVA","Non-Coincident",15.6]
["ED_MDU541_07203",null,null,null,null,"Coincident",15.6]
["ED_MDU541_07204",null,null,"Raw Adjusted MD","MW","Non-Coincident",1.5233333110809326]
["ED_MDU541_07205",null,null,null,null,"Coincident",1.4500000476837158]
["ED_MDU541_07206",null,null,"Raw Adjusted MD","MVA","Non-Coincident",1.5436572865360101]
["ED_MDU541_07207",null,null,null,null,"Coincident",1.4641410915315602]
["ED_MDU541_07208",null,null,"Date MD occurred",null,"Non-Coincident","2014-07-08"]
["ED_MDU541_07209",null,null,null,null,"Coincident","2014-07-10"]
["ED_MDU541_07210",null,null,"Half hour time period MD occurred",null,"Non-Coincident","18:30:00"]
["ED_MDU541_07211",null,null,null,null,"Coincident","18:30:00"]
["ED_MDU541_07212",null,null,"Winter/Summer Peaking",null,"Non-Coincident","Winter"]
["ED_MDU541_07213",null,null,null,null,"Coincident","Winter"]
["ED_MDU541_07214",null,null,"Adjustments - Embedded generation","MW","Non-Coincident",0]
["ED_MDU541_07215",null,null,null,null,"Coincident",0]
["ED_MDU541_07216",null,null,"Weather Corrected MD 10% POE","MW","Non-Coincident",1.5275427479024757]
["ED_MDU541_07217",null,null,null,null,"Coincident",1.4540068422227441]
["ED_MDU541_07218",null,null,"Weather Corrected MD 10% POE","MVA","Non-Coincident",1.5479228847307853]
["ED_MDU541_07219",null,null,null,null,"Coincident",1.4540068422227441]
["ED_MDU541_07220",null,null,"Weather Corrected MD 50% POE","MW","Non-Coincident",1.4352498831476717]
["ED_MDU541_07221",null,null,null,null,"Coincident",1.3661569558440547]
["ED_MDU541_07222",null,null,"Weather Corrected MD 50% POE","MVA","Non-Coincident",1.45439866902717]
["ED_MDU541_07223",null,null,null,null,"Coincident",1.3661569558440547]
["ED_MDU541_07224",null,"Temora 66/11kV","Substation Rating","MVA","Non-Coincident",24.750000000000004]
["ED_MDU541_07225",null,null,null,null,"Coincident",27]
["ED_MDU541_07226",null,null,"Raw Adjusted MD","MW","Non-Coincident",6.4335000000000004]
["ED_MDU541_07227",null,null,null,null,"Coincident",5.2934999999999999]
["ED_MDU541_07228",null,null,"Raw Adjusted MD","MVA","Non-Coincident",6.7290919521135981]
["ED_MDU541_07229",null,null,null,null,"Coincident",5.375093603836123]
["ED_MDU541_07230",null,null,"Date MD occurred",null,"Non-Coincident","2014-11-23"]
["ED_MDU541_07231",null,null,null,null,"Coincident","2014-07-10"]
["ED_MDU541_07232",null,null,"Half hour time period MD occurred",null,"Non-Coincident","18:00:00"]
["ED_MDU541_07233",null,null,null,null,"Coincident","18:30:00"]
["ED_MDU541_07234",null,null,"Winter/Summer Peaking",null,"Non-Coincident","Summer"]
["ED_MDU541_07235",null,null,null,null,"Coincident","Winter"]
["ED_MDU541_07236",null,null,"Adjustments - Embedded generation","MW","Non-Coincident",0]
["ED_MDU541_07237",null,null,null,null,"Coincident",0]
["ED_MDU541_07238",null,null,"Weather Corrected MD 10% POE","MW","Non-Coincident",6.8200962136829073]
["ED_MDU541_07239",null,null,null,null,"Coincident",5.6115923380944226]
["ED_MDU541_07240",null,null,"Weather Corrected MD 10% POE","MVA","Non-Coincident",7.1334506169478624]
["ED_MDU541_07241",null,null,null,null,"Coincident",5.6115923380944226]
["ED_MDU541_07242",null,null,"Weather Corrected MD 50% POE","MW","Non-Coincident",6.3757191243293487]
["ED_MDU541_07243",null,null,null,null,"Coincident",5.2459577500019279]
["ED_MDU541_07244",null,null,"Weather Corrected MD 50% POE","MVA","Non-Coincident",6.6686562910486327]
["ED_MDU541_07245",null,null,null,null,"Coincident",5.2459577500019279]
["ED_MDU541_07246",null,"Terranora 11kV","Substation Rating","MVA","Non-Coincident",72]
["ED_MDU541_07247",null,null,null,null,"Coincident",72]
["ED_MDU541_07248",null,null,"Raw Adjusted MD","MW","Non-Coincident",5.3159999999999998]
["ED_MDU541_07249",null,null,null,null,"Coincident",4.758]
["ED_MDU541_07250",null,null,"Raw Adjusted MD","MVA","Non-Coincident",5.3262328150391625]
["ED_MDU541_07251",null,null,null,null,"Coincident",4.7674483741305478]
["ED_MDU541_07252",null,null,"Date MD occurred",null,"Non-Coincident","2014-08-03"]
["ED_MDU541_07253",null,null,null,null,"Coincident","2014-07-10"]
["ED_MDU541_07254",null,null,"Half hour time period MD occurred",null,"Non-Coincident","18:30:00"]
["ED_MDU541_07255",null,null,null,null,"Coincident","18:30:00"]
["ED_MDU541_07256",null,null,"Winter/Summer Peaking",null,"Non-Coincident","Winter"]
["ED_MDU541_07257",null,null,null,null,"Coincident","Winter"]
["ED_MDU541_07258",null,null,"Adjustments - Embedded generation","MW","Non-Coincident",0]
["ED_MDU541_07259",null,null,null,null,"Coincident",0]
["ED_MDU541_07260",null,null,"Weather Corrected MD 10% POE","MW","Non-Coincident",5.1034769517455416]
["ED_MDU541_07261",null,null,null,null,"Coincident",4.5677846757722511]
["ED_MDU541_07262",null,null,"Weather Corrected MD 10% POE","MVA","Non-Coincident",5.1133006793045785]
["ED_MDU541_07263",null,null,null,null,"Coincident",4.5677846757722511]
["ED_MDU541_07264",null,null,"Weather Corrected MD 50% POE","MW","Non-Coincident",4.8092514959378292]
["ED_MDU541_07265",null,null,null,null,"Coincident",4.3044429303371317]
["ED_MDU541_07266",null,null,"Weather Corrected MD 50% POE","MVA","Non-Coincident",4.8185088663356375]
["ED_MDU541_07267",null,null,null,null,"Coincident",4.3044429303371317]
["ED_MDU541_07268",null,"Texas 66/22kV","Substation Rating","MVA","Non-Coincident",11]
["ED_MDU541_07269",null,null,null,null,"Coincident",12]
["ED_MDU541_07270",null,null,"Raw Adjusted MD","MW","Non-Coincident",2.8048122501541197]
["ED_MDU541_07271",null,null,null,null,"Coincident",1.892568927756924]
["ED_MDU541_07272",null,null,"Raw Adjusted MD","MVA","Non-Coincident",2.9524339475306522]
["ED_MDU541_07273",null,null,null,null,"Coincident",1.9921778186914991]
["ED_MDU541_07274",null,null,"Date MD occurred",null,"Non-Coincident","2014-11-22"]
["ED_MDU541_07275",null,null,null,null,"Coincident","2014-07-10"]
["ED_MDU541_07276",null,null,"Half hour time period MD occurred",null,"Non-Coincident","20:30:00"]
["ED_MDU541_07277",null,null,null,null,"Coincident","18:30:00"]
["ED_MDU541_07278",null,null,"Winter/Summer Peaking",null,"Non-Coincident","Summer"]
["ED_MDU541_07279",null,null,null,null,"Coincident","Winter"]
["ED_MDU541_07280",null,null,"Adjustments - Embedded generation","MW","Non-Coincident",0]
["ED_MDU541_07281",null,null,null,null,"Coincident",0]
["ED_MDU541_07282",null,null,"Weather Corrected MD 10% POE","MW","Non-Coincident",2.5163771948174283]
["ED_MDU541_07283",null,null,null,null,"Coincident",1.6979451259762253]
["ED_MDU541_07284",null,null,"Weather Corrected MD 10% POE","MVA","Non-Coincident",2.6488180998078192]
["ED_MDU541_07285",null,null,null,null,"Coincident",1.6979451259762253]
["ED_MDU541_07286",null,null,"Weather Corrected MD 50% POE","MW","Non-Coincident",2.2106948225179126]
["ED_MDU541_07287",null,null,null,null,"Coincident",1.4916835626415321]
["ED_MDU541_07288",null,null,"Weather Corrected MD 50% POE","MVA","Non-Coincident",2.3270471815978024]
["ED_MDU541_07289",null,null,null,null,"Coincident",1.4916835626415321]
["ED_MDU541_07290",null,"Texas 66/33kV","Substation Rating","MVA","Non-Coincident",13.750000000000002]
["ED_MDU541_07291",null,null,null,null,"Coincident",15]
["ED_MDU541_07292",null,null,"Raw Adjusted MD","MW","Non-Coincident",1.8505122669043716]
["ED_MDU541_07293",null,null,null,null,"Coincident",0.96551433450249902]
["ED_MDU541_07294",null,null,"Raw Adjusted MD","MVA","Non-Coincident",1.947907649373023]
["ED_MDU541_07295",null,null,null,null,"Coincident",1.0163308784236833]
["ED_MDU541_07296",null,null,"Date MD occurred",null,"Non-Coincident","2014-10-30"]
["ED_MDU541_07297",null,null,null,null,"Coincident","2014-07-10"]
["ED_MDU541_07298",null,null,"Half hour time period MD occurred",null,"Non-Coincident","20:30:00"]
["ED_MDU541_07299",null,null,null,null,"Coincident","18:30:00"]
["ED_MDU541_07300",null,null,"Winter/Summer Peaking",null,"Non-Coincident","Summer"]
["ED_MDU541_07301",null,null,null,null,"Coincident","Winter"]
["ED_MDU541_07302",null,null,"Adjustments - Embedded generation","MW","Non-Coincident",0]
["ED_MDU541_07303",null,null,null,null,"Coincident",0]
["ED_MDU541_07304",null,null,"Weather Corrected MD 10% POE","MW","Non-Coincident",1.7373788179673533]
["ED_MDU541_07305",null,null,null,null,"Coincident",0.90648637310285562]
["ED_MDU541_07306",null,null,"Weather Corrected MD 10% POE","MVA","Non-Coincident",1.828819808386688]
["ED_MDU541_07307",null,null,null,null,"Coincident",0.90648637310285562]
["ED_MDU541_07308",null,null,"Weather Corrected MD 50% POE","MW","Non-Coincident",1.4755930839606424]
["ED_MDU541_07309",null,null,null,null,"Coincident",0.76989831407065934]
["ED_MDU541_07310",null,null,"Weather Corrected MD 50% POE","MVA","Non-Coincident",1.5532558778533081]
["ED_MDU541_07311",null,null,null,null,"Coincident",0.76989831407065934]
["ED_MDU541_07312",null,"Tharbogang","Substation Rating","MVA","Non-Coincident",55.000000000000007]
["ED_MDU541_07313",null,null,null,null,"Coincident",60]
["ED_MDU541_07314",null,null,"Raw Adjusted MD","MW","Non-Coincident",13.9176]
["ED_MDU541_07315",null,null,null,null,"Coincident",7.9560000000000004]
["ED_MDU541_07316",null,null,"Raw Adjusted MD","MVA","Non-Coincident",13.976483403202682]
["ED_MDU541_07317",null,null,null,null,"Coincident",7.9625945520288797]
["ED_MDU541_07318",null,null,"Date MD occurred",null,"Non-Coincident","2015-02-21"]
["ED_MDU541_07319",null,null,null,null,"Coincident","2014-07-10"]
["ED_MDU541_07320",null,null,"Half hour time period MD occurred",null,"Non-Coincident","17:00:00"]
["ED_MDU541_07321",null,null,null,null,"Coincident","18:30:00"]
["ED_MDU541_07322",null,null,"Winter/Summer Peaking",null,"Non-Coincident","Summer"]
["ED_MDU541_07323",null,null,null,null,"Coincident","Winter"]
["ED_MDU541_07324",null,null,"Adjustments - Embedded generation","MW","Non-Coincident",0]
["ED_MDU541_07325",null,null,null,null,"Coincident",0]
["ED_MDU541_07326",null,null,"Weather Corrected MD 10% POE","MW","Non-Coincident",13.338050405584966]
["ED_MDU541_07327",null,null,null,null,"Coincident",7.624700309452348]
["ED_MDU541_07328",null,null,"Weather Corrected MD 10% POE","MVA","Non-Coincident",13.394481816170826]
["ED_MDU541_07329",null,null,null,null,"Coincident",7.624700309452348]
["ED_MDU541_07330",null,null,"Weather Corrected MD 50% POE","MW","Non-Coincident",12.139318536707309]
["ED_MDU541_07331",null,null,null,null,"Coincident",6.9394448955310803]
["ED_MDU541_07332",null,null,"Weather Corrected MD 50% POE","MVA","Non-Coincident",12.190678281778494]
["ED_MDU541_07333",null,null,null,null,"Coincident",6.9394448955310803]
["ED_MDU541_07334",null,"Thredbo (Snowmaker)","Substation Rating","MVA","Non-Coincident",19.2]
["ED_MDU541_07335",null,null,null,null,"Coincident",19.2]
["ED_MDU541_07336",null,null,"Raw Adjusted MD","MW","Non-Coincident",9.0500001907348633]
["ED_MDU541_07337",null,null,null,null,"Coincident",2.0999999716877937E-2]
["ED_MDU541_07338",null,null,"Raw Adjusted MD","MVA","Non-Coincident",9.5565372271737044]
["ED_MDU541_07339",null,null,null,null,"Coincident",4.9115780626987189E-2]
["ED_MDU541_07340",null,null,"Date MD occurred",null,"Non-Coincident","2014-07-21"]
["ED_MDU541_07341",null,null,null,null,"Coincident","2014-07-10"]
["ED_MDU541_07342",null,null,"Half hour time period MD occurred",null,"Non-Coincident","02:30:00"]
["ED_MDU541_07343",null,null,null,null,"Coincident","18:30:00"]
["ED_MDU541_07344",null,null,"Winter/Summer Peaking",null,"Non-Coincident","Winter"]
["ED_MDU541_07345",null,null,null,null,"Coincident","Winter"]
["ED_MDU541_07346",null,null,"Adjustments - Embedded generation","MW","Non-Coincident",0]
["ED_MDU541_07347",null,null,null,null,"Coincident",0]
["ED_MDU541_07348",null,null,"Weather Corrected MD 10% POE","MW","Non-Coincident",11.327445575500681]
["ED_MDU541_07349",null,null,null,null,"Coincident",2.6284679432603295E-2]
["ED_MDU541_07350",null,null,"Weather Corrected MD 10% POE","MVA","Non-Coincident",11.96145337564532]
["ED_MDU541_07351",null,null,null,null,"Coincident",2.6284679432603295E-2]
["ED_MDU541_07352",null,null,"Weather Corrected MD 50% POE","MW","Non-Coincident",7.5327991036796851]
["ED_MDU541_07353",null,null,null,null,"Coincident",1.7479422730457068E-2]
["ED_MDU541_07354",null,null,"Weather Corrected MD 50% POE","MVA","Non-Coincident",7.9544169659614354]
["ED_MDU541_07355",null,null,null,null,"Coincident",1.7479422730457068E-2]
["ED_MDU541_07356",null,"Thredbo (Village)","Substation Rating","MVA","Non-Coincident",19.2]
["ED_MDU541_07357",null,null,null,null,"Coincident",19.2]
["ED_MDU541_07358",null,null,"Raw Adjusted MD","MW","Non-Coincident",6.717499852180481]
["ED_MDU541_07359",null,null,null,null,"Coincident",6.1320000886917114]
["ED_MDU541_07360",null,null,"Raw Adjusted MD","MVA","Non-Coincident",6.8062684097308166]
["ED_MDU541_07361",null,null,null,null,"Coincident",6.1924350348413304]
["ED_MDU541_07362",null,null,"Date MD occurred",null,"Non-Coincident","2014-08-03"]
["ED_MDU541_07363",null,null,null,null,"Coincident","2014-07-10"]
["ED_MDU541_07364",null,null,"Half hour time period MD occurred",null,"Non-Coincident","09:30:00"]
["ED_MDU541_07365",null,null,null,null,"Coincident","18:30:00"]
["ED_MDU541_07366",null,null,"Winter/Summer Peaking",null,"Non-Coincident","Winter"]
["ED_MDU541_07367",null,null,null,null,"Coincident","Winter"]
["ED_MDU541_07368",null,null,"Adjustments - Embedded generation","MW","Non-Coincident",0]
["ED_MDU541_07369",null,null,null,null,"Coincident",0]
["ED_MDU541_07370",null,null,"Weather Corrected MD 10% POE","MW","Non-Coincident",8.454846339217772]
["ED_MDU541_07371",null,null,null,null,"Coincident",7.7179188154547402]
["ED_MDU541_07372",null,null,"Weather Corrected MD 10% POE","MVA","Non-Coincident",8.5665731022036287]
["ED_MDU541_07373",null,null,null,null,"Coincident",7.7179188154547402]
["ED_MDU541_07374",null,null,"Weather Corrected MD 50% POE","MW","Non-Coincident",7.0393806285574207]
["ED_MDU541_07375",null,null,null,null,"Coincident",6.4258256179398989]
["ED_MDU541_07376",null,null,"Weather Corrected MD 50% POE","MVA","Non-Coincident",7.1324026870904005]
["ED_MDU541_07377",null,null,null,null,"Coincident",6.4258256179398989]
["ED_MDU541_07378",null,"Trundle","Substation Rating","MVA","Non-Coincident",11]
["ED_MDU541_07379",null,null,null,null,"Coincident",12]
["ED_MDU541_07380",null,null,"Raw Adjusted MD","MW","Non-Coincident",2.1132]
["ED_MDU541_07381",null,null,null,null,"Coincident",1.6137000000000001]
["ED_MDU541_07382",null,null,"Raw Adjusted MD","MVA","Non-Coincident",2.1468999627369691]
["ED_MDU541_07383",null,null,null,null,"Coincident",1.6143526566398061]
["ED_MDU541_07384",null,null,"Date MD occurred",null,"Non-Coincident","2014-11-23"]
["ED_MDU541_07385",null,null,null,null,"Coincident","2014-07-10"]
["ED_MDU541_07386",null,null,"Half hour time period MD occurred",null,"Non-Coincident","18:30:00"]
["ED_MDU541_07387",null,null,null,null,"Coincident","18:30:00"]
["ED_MDU541_07388",null,null,"Winter/Summer Peaking",null,"Non-Coincident","Summer"]
["ED_MDU541_07389",null,null,null,null,"Coincident","Winter"]
["ED_MDU541_07390",null,null,"Adjustments - Embedded generation","MW","Non-Coincident",0]
["ED_MDU541_07391",null,null,null,null,"Coincident",0]
["ED_MDU541_07392",null,null,"Weather Corrected MD 10% POE","MW","Non-Coincident",2.3044134367434874]
["ED_MDU541_07393",null,null,null,null,"Coincident",1.7597160528454316]
["ED_MDU541_07394",null,null,"Weather Corrected MD 10% POE","MVA","Non-Coincident",2.3411627491364584]
["ED_MDU541_07395",null,null,null,null,"Coincident",1.7597160528454316]
["ED_MDU541_07396",null,null,"Weather Corrected MD 50% POE","MW","Non-Coincident",2.1483909426457779]
["ED_MDU541_07397",null,null,null,null,"Coincident",1.6405728109726918]
["ED_MDU541_07398",null,null,"Weather Corrected MD 50% POE","MVA","Non-Coincident",2.1826521080402528]
["ED_MDU541_07399",null,null,null,null,"Coincident",1.6405728109726918]
["ED_MDU541_07400",null,"Tumbarumba","Substation Rating","MVA","Non-Coincident",30]
["ED_MDU541_07401",null,null,null,null,"Coincident",30]
["ED_MDU541_07402",null,null,"Raw Adjusted MD","MW","Non-Coincident",8.5283999999999995]
["ED_MDU541_07403",null,null,null,null,"Coincident",6.3107999999999995]
["ED_MDU541_07404",null,null,"Raw Adjusted MD","MVA","Non-Coincident",8.659515459885732]
["ED_MDU541_07405",null,null,null,null,"Coincident",6.344720930033092]
["ED_MDU541_07406",null,null,"Date MD occurred",null,"Non-Coincident","2014-08-14"]
["ED_MDU541_07407",null,null,null,null,"Coincident","2014-07-10"]
["ED_MDU541_07408",null,null,"Half hour time period MD occurred",null,"Non-Coincident","01:00:00"]
["ED_MDU541_07409",null,null,null,null,"Coincident","18:30:00"]
["ED_MDU541_07410",null,null,"Winter/Summer Peaking",null,"Non-Coincident","Winter"]
["ED_MDU541_07411",null,null,null,null,"Coincident","Winter"]
["ED_MDU541_07412",null,null,"Adjustments - Embedded generation","MW","Non-Coincident",0]
["ED_MDU541_07413",null,null,null,null,"Coincident",0]
["ED_MDU541_07414",null,null,"Weather Corrected MD 10% POE","MW","Non-Coincident",8.4229093414997198]
["ED_MDU541_07415",null,null,null,null,"Coincident",6.2327395844867066]
["ED_MDU541_07416",null,null,"Weather Corrected MD 10% POE","MVA","Non-Coincident",8.5524029900019674]
["ED_MDU541_07417",null,null,null,null,"Coincident",6.2327395844867066]
["ED_MDU541_07418",null,null,"Weather Corrected MD 50% POE","MW","Non-Coincident",7.8354640166891576]
["ED_MDU541_07419",null,null,null,null,"Coincident",5.7980449224381987]
["ED_MDU541_07420",null,null,"Weather Corrected MD 50% POE","MVA","Non-Coincident",7.9559262919068203]
["ED_MDU541_07421",null,null,null,null,"Coincident",5.7980449224381987]
["ED_MDU541_07422",null,"Tumut","Substation Rating","MVA","Non-Coincident",66]
["ED_MDU541_07423",null,null,null,null,"Coincident",66]
["ED_MDU541_07424",null,null,"Raw Adjusted MD","MW","Non-Coincident",15.852]
["ED_MDU541_07425",null,null,null,null,"Coincident",13.670999999999999]
["ED_MDU541_07426",null,null,"Raw Adjusted MD","MVA","Non-Coincident",16.642127057560881]
["ED_MDU541_07427",null,null,null,null,"Coincident",14.164939286844826]
["ED_MDU541_07428",null,null,"Date MD occurred",null,"Non-Coincident","2014-06-24"]
["ED_MDU541_07429",null,null,null,null,"Coincident","2014-07-10"]
["ED_MDU541_07430",null,null,"Half hour time period MD occurred",null,"Non-Coincident","18:00:00"]
["ED_MDU541_07431",null,null,null,null,"Coincident","18:30:00"]
["ED_MDU541_07432",null,null,"Winter/Summer Peaking",null,"Non-Coincident","Winter"]
["ED_MDU541_07433",null,null,null,null,"Coincident","Winter"]
["ED_MDU541_07434",null,null,"Adjustments - Embedded generation","MW","Non-Coincident",0]
["ED_MDU541_07435",null,null,null,null,"Coincident",0]
["ED_MDU541_07436",null,null,"Weather Corrected MD 10% POE","MW","Non-Coincident",16.692360295651667]
["ED_MDU541_07437",null,null,null,null,"Coincident",14.395739187601182]
["ED_MDU541_07438",null,null,"Weather Corrected MD 10% POE","MVA","Non-Coincident",17.524374270175343]
["ED_MDU541_07439",null,null,null,null,"Coincident",14.395739187601182]
["ED_MDU541_07440",null,null,"Weather Corrected MD 50% POE","MW","Non-Coincident",15.157703771313097]
["ED_MDU541_07441",null,null,null,null,"Coincident",13.072228630937504]
["ED_MDU541_07442",null,null,"Weather Corrected MD 50% POE","MVA","Non-Coincident",15.9132243289845]
["ED_MDU541_07443",null,null,null,null,"Coincident",13.072228630937504]
["ED_MDU541_07444",null,"Tuncurry","Substation Rating","MVA","Non-Coincident",38.4]
["ED_MDU541_07445",null,null,null,null,"Coincident",38.4]
["ED_MDU541_07446",null,null,"Raw Adjusted MD","MW","Non-Coincident",9.3480000000000008]
["ED_MDU541_07447",null,null,null,null,"Coincident",9.3480000000000008]
["ED_MDU541_07448",null,null,"Raw Adjusted MD","MVA","Non-Coincident",9.3480693193835478]
["ED_MDU541_07449",null,null,null,null,"Coincident",9.3480693193835478]
["ED_MDU541_07450",null,null,"Date MD occurred",null,"Non-Coincident","2014-07-10"]
["ED_MDU541_07451",null,null,null,null,"Coincident","2014-07-10"]
["ED_MDU541_07452",null,null,"Half hour time period MD occurred",null,"Non-Coincident","18:30:00"]
["ED_MDU541_07453",null,null,null,null,"Coincident","18:30:00"]
["ED_MDU541_07454",null,null,"Winter/Summer Peaking",null,"Non-Coincident","Winter"]
["ED_MDU541_07455",null,null,null,null,"Coincident","Winter"]
["ED_MDU541_07456",null,null,"Adjustments - Embedded generation","MW","Non-Coincident",0]
["ED_MDU541_07457",null,null,null,null,"Coincident",0]
["ED_MDU541_07458",null,null,"Weather Corrected MD 10% POE","MW","Non-Coincident",10.089829990258794]
["ED_MDU541_07459",null,null,null,null,"Coincident",10.089829990258794]
["ED_MDU541_07460",null,null,"Weather Corrected MD 10% POE","MVA","Non-Coincident",10.089904810626255]
["ED_MDU541_07461",null,null,null,null,"Coincident",10.089829990258794]
["ED_MDU541_07462",null,null,"Weather Corrected MD 50% POE","MW","Non-Coincident",9.2538940630219422]
["ED_MDU541_07463",null,null,null,null,"Coincident",9.2538940630219422]
["ED_MDU541_07464",null,null,"Weather Corrected MD 50% POE","MVA","Non-Coincident",9.253962684570066]
["ED_MDU541_07465",null,null,null,null,"Coincident",9.2538940630219422]
["ED_MDU541_07466",null,"Tuross","Substation Rating","MVA","Non-Coincident",9.6]
["ED_MDU541_07467",null,null,null,null,"Coincident",9.6]
["ED_MDU541_07468",null,null,"Raw Adjusted MD","MW","Non-Coincident",2.19]
["ED_MDU541_07469",null,null,null,null,"Coincident",1.8916666259765624]
["ED_MDU541_07470",null,null,"Raw Adjusted MD","MVA","Non-Coincident",2.2256334910254747]
["ED_MDU541_07471",null,null,null,null,"Coincident",1.9257734356925711]
["ED_MDU541_07472",null,null,"Date MD occurred",null,"Non-Coincident","2014-04-19"]
["ED_MDU541_07473",null,null,null,null,"Coincident","2014-07-10"]
["ED_MDU541_07474",null,null,"Half hour time period MD occurred",null,"Non-Coincident","18:30:00"]
["ED_MDU541_07475",null,null,null,null,"Coincident","18:30:00"]
["ED_MDU541_07476",null,null,"Winter/Summer Peaking",null,"Non-Coincident","Winter"]
["ED_MDU541_07477",null,null,null,null,"Coincident","Winter"]
["ED_MDU541_07478",null,null,"Adjustments - Embedded generation","MW","Non-Coincident",0]
["ED_MDU541_07479",null,null,null,null,"Coincident",0]
["ED_MDU541_07480",null,null,"Weather Corrected MD 10% POE","MW","Non-Coincident",2.2312933162321045]
["ED_MDU541_07481",null,null,null,null,"Coincident",1.92733474843874]
["ED_MDU541_07482",null,null,"Weather Corrected MD 10% POE","MVA","Non-Coincident",2.2675986908253276]
["ED_MDU541_07483",null,null,null,null,"Coincident",1.92733474843874]
["ED_MDU541_07484",null,null,"Weather Corrected MD 50% POE","MW","Non-Coincident",2.0894117982800045]
["ED_MDU541_07485",null,null,null,null,"Coincident",1.8047810806976978]
["ED_MDU541_07486",null,null,"Weather Corrected MD 50% POE","MVA","Non-Coincident",2.1234086186281926]
["ED_MDU541_07487",null,null,null,null,"Coincident",1.8047810806976978]
["ED_MDU541_07488",null,"Tweed Heads","Substation Rating","MVA","Non-Coincident",55.000000000000007]
["ED_MDU541_07489",null,null,null,null,"Coincident",60]
["ED_MDU541_07490",null,null,"Raw Adjusted MD","MW","Non-Coincident",15.899999618530273]
["ED_MDU541_07491",null,null,null,null,"Coincident",11.875]
["ED_MDU541_07492",null,null,"Raw Adjusted MD","MVA","Non-Coincident",16.801094907619621]
["ED_MDU541_07493",null,null,null,null,"Coincident",12.142215721058195]
["ED_MDU541_07494",null,null,"Date MD occurred",null,"Non-Coincident","2015-01-19"]
["ED_MDU541_07495",null,null,null,null,"Coincident","2014-07-10"]
["ED_MDU541_07496",null,null,"Half hour time period MD occurred",null,"Non-Coincident","14:30:00"]
["ED_MDU541_07497",null,null,null,null,"Coincident","18:30:00"]
["ED_MDU541_07498",null,null,"Winter/Summer Peaking",null,"Non-Coincident","Summer"]
["ED_MDU541_07499",null,null,null,null,"Coincident","Winter"]
["ED_MDU541_07500",null,null,"Adjustments - Embedded generation","MW","Non-Coincident",0]
["ED_MDU541_07501",null,null,null,null,"Coincident",0]
["ED_MDU541_07502",null,null,"Weather Corrected MD 10% POE","MW","Non-Coincident",15.34868021451422]
["ED_MDU541_07503",null,null,null,null,"Coincident",11.463244145926854]
["ED_MDU541_07504",null,null,"Weather Corrected MD 10% POE","MVA","Non-Coincident",16.218530765889017]
["ED_MDU541_07505",null,null,null,null,"Coincident",11.463244145926854]
["ED_MDU541_07506",null,null,"Weather Corrected MD 50% POE","MW","Non-Coincident",14.312233719055117]
["ED_MDU541_07507",null,null,null,null,"Coincident",10.689168521470044]
["ED_MDU541_07508",null,null,"Weather Corrected MD 50% POE","MVA","Non-Coincident",15.123346089495437]
["ED_MDU541_07509",null,null,null,null,"Coincident",10.689168521470044]
["ED_MDU541_07510",null,"Tweed Heads South","Substation Rating","MVA","Non-Coincident",66]
["ED_MDU541_07511",null,null,null,null,"Coincident",72]
["ED_MDU541_07512",null,null,"Raw Adjusted MD","MW","Non-Coincident",14.46]
["ED_MDU541_07513",null,null,null,null,"Coincident",11.955]
["ED_MDU541_07514",null,null,"Raw Adjusted MD","MVA","Non-Coincident",14.850692105083857]
["ED_MDU541_07515",null,null,null,null,"Coincident",12.032674266346612]
["ED_MDU541_07516",null,null,"Date MD occurred",null,"Non-Coincident","2014-12-17"]
["ED_MDU541_07517",null,null,null,null,"Coincident","2014-07-10"]
["ED_MDU541_07518",null,null,"Half hour time period MD occurred",null,"Non-Coincident","16:30:00"]
["ED_MDU541_07519",null,null,null,null,"Coincident","18:30:00"]
["ED_MDU541_07520",null,null,"Winter/Summer Peaking",null,"Non-Coincident","Summer"]
["ED_MDU541_07521",null,null,null,null,"Coincident","Winter"]
["ED_MDU541_07522",null,null,"Adjustments - Embedded generation","MW","Non-Coincident",0]
["ED_MDU541_07523",null,null,null,null,"Coincident",0]
["ED_MDU541_07524",null,null,"Weather Corrected MD 10% POE","MW","Non-Coincident",14.146196300970132]
["ED_MDU541_07525",null,null,null,null,"Coincident",11.695558560034435]
["ED_MDU541_07526",null,null,"Weather Corrected MD 10% POE","MVA","Non-Coincident",14.528409801091534]
["ED_MDU541_07527",null,null,null,null,"Coincident",11.695558560034435]
["ED_MDU541_07528",null,null,"Weather Corrected MD 50% POE","MW","Non-Coincident",13.057134232096573]
["ED_MDU541_07529",null,null,null,null,"Coincident",10.795161808071544]
["ED_MDU541_07530",null,null,"Weather Corrected MD 50% POE","MVA","Non-Coincident",13.409922562629095]
["ED_MDU541_07531",null,null,null,null,"Coincident",10.795161808071544]
["ED_MDU541_07532",null,"Ulan Town","Substation Rating","MVA","Non-Coincident",6.0500000000000007]
["ED_MDU541_07533",null,null,null,null,"Coincident",6.6]
["ED_MDU541_07534",null,null,"Raw Adjusted MD","MW","Non-Coincident",1.8723007634156423]
["ED_MDU541_07535",null,null,null,null,"Coincident",1.6112229005500407]
["ED_MDU541_07536",null,null,"Raw Adjusted MD","MVA","Non-Coincident",1.9708429088585708]
["ED_MDU541_07537",null,null,null,null,"Coincident",1.6960241058421481]
["ED_MDU541_07538",null,null,"Date MD occurred",null,"Non-Coincident","2014-11-23"]
["ED_MDU541_07539",null,null,null,null,"Coincident","2014-07-10"]
["ED_MDU541_07540",null,null,"Half hour time period MD occurred",null,"Non-Coincident","18:30:00"]
["ED_MDU541_07541",null,null,null,null,"Coincident","18:30:00"]
["ED_MDU541_07542",null,null,"Winter/Summer Peaking",null,"Non-Coincident","Summer"]
["ED_MDU541_07543",null,null,null,null,"Coincident","Winter"]
["ED_MDU541_07544",null,null,"Adjustments - Embedded generation","MW","Non-Coincident",0]
["ED_MDU541_07545",null,null,null,null,"Coincident",0]
["ED_MDU541_07546",null,null,"Weather Corrected MD 10% POE","MW","Non-Coincident",1.6834035671554179]
["ED_MDU541_07547",null,null,null,null,"Coincident",1.4486659575571144]
["ED_MDU541_07548",null,null,"Weather Corrected MD 10% POE","MVA","Non-Coincident",1.7720037549004399]
["ED_MDU541_07549",null,null,null,null,"Coincident",1.4486659575571144]
["ED_MDU541_07550",null,null,"Weather Corrected MD 50% POE","MW","Non-Coincident",1.4486281057760573]
["ED_MDU541_07551",null,null,null,null,"Coincident",1.2466281187370636]
["ED_MDU541_07552",null,null,"Weather Corrected MD 50% POE","MVA","Non-Coincident",1.5248716902905866]
["ED_MDU541_07553",null,null,null,null,"Coincident",1.2466281187370636]
["ED_MDU541_07554",null,"Ulong","Substation Rating","MVA","Non-Coincident",1.2]
["ED_MDU541_07555",null,null,null,null,"Coincident",1.2]
["ED_MDU541_07556",null,null,"Raw Adjusted MD","MW","Non-Coincident",0.39966666698455811]
["ED_MDU541_07557",null,null,null,null,"Coincident",0.25733333826065063]
["ED_MDU541_07558",null,null,"Raw Adjusted MD","MVA","Non-Coincident",0.40789176861340604]
["ED_MDU541_07559",null,null,null,null,"Coincident",0.26678064889540415]
["ED_MDU541_07560",null,null,"Date MD occurred",null,"Non-Coincident","2014-04-14"]
["ED_MDU541_07561",null,null,null,null,"Coincident","2014-07-10"]
["ED_MDU541_07562",null,null,"Half hour time period MD occurred",null,"Non-Coincident","18:30:00"]
["ED_MDU541_07563",null,null,null,null,"Coincident","18:30:00"]
["ED_MDU541_07564",null,null,"Winter/Summer Peaking",null,"Non-Coincident","Winter"]
["ED_MDU541_07565",null,null,null,null,"Coincident","Winter"]
["ED_MDU541_07566",null,null,"Adjustments - Embedded generation","MW","Non-Coincident",0]
["ED_MDU541_07567",null,null,null,null,"Coincident",0]
["ED_MDU541_07568",null,null,"Weather Corrected MD 10% POE","MW","Non-Coincident",0.33552204004694042]
["ED_MDU541_07569",null,null,null,null,"Coincident",0.21603254351116261]
["ED_MDU541_07570",null,null,"Weather Corrected MD 10% POE","MVA","Non-Coincident",0.34242705141285223]
["ED_MDU541_07571",null,null,null,null,"Coincident",0.21603254351116261]
["ED_MDU541_07572",null,null,"Weather Corrected MD 50% POE","MW","Non-Coincident",0.31442927412568356]
["ED_MDU541_07573",null,null,null,null,"Coincident",0.20245154635515702]
["ED_MDU541_07574",null,null,"Weather Corrected MD 50% POE","MVA","Non-Coincident",0.32090019839435308]
["ED_MDU541_07575",null,null,null,null,"Coincident",0.20245154635515702]
["ED_MDU541_07576",null,"Union Rd","Substation Rating","MVA","Non-Coincident",135.30000000000001]
["ED_MDU541_07577",null,null,null,null,"Coincident",147.6]
["ED_MDU541_07578",null,null,"Raw Adjusted MD","MW","Non-Coincident",40.668019999999999]
["ED_MDU541_07579",null,null,null,null,"Coincident",31.166931999999999]
["ED_MDU541_07580",null,null,"Raw Adjusted MD","MVA","Non-Coincident",40.861246658899873]
["ED_MDU541_07581",null,null,null,null,"Coincident",31.202177259474507]
["ED_MDU541_07582",null,null,"Date MD occurred",null,"Non-Coincident","2015-02-23"]
["ED_MDU541_07583",null,null,null,null,"Coincident","2014-07-10"]
["ED_MDU541_07584",null,null,"Half hour time period MD occurred",null,"Non-Coincident","16:00:00"]
["ED_MDU541_07585",null,null,null,null,"Coincident","18:30:00"]
["ED_MDU541_07586",null,null,"Winter/Summer Peaking",null,"Non-Coincident","Summer"]
["ED_MDU541_07587",null,null,null,null,"Coincident","Winter"]
["ED_MDU541_07588",null,null,"Adjustments - Embedded generation","MW","Non-Coincident",0.93164000000000013]
["ED_MDU541_07589",null,null,null,null,"Coincident",1.0840179999999999]
["ED_MDU541_07590",null,null,"Weather Corrected MD 10% POE","MW","Non-Coincident",44.926532040047782]
["ED_MDU541_07591",null,null,null,null,"Coincident",34.430546879046247]
["ED_MDU541_07592",null,null,"Weather Corrected MD 10% POE","MVA","Non-Coincident",45.1399922400294]
["ED_MDU541_07593",null,null,null,null,"Coincident",34.430546879046247]
["ED_MDU541_07594",null,null,"Weather Corrected MD 50% POE","MW","Non-Coincident",41.578287530115418]
["ED_MDU541_07595",null,null,null,null,"Coincident",31.864537789829825]
["ED_MDU541_07596",null,null,"Weather Corrected MD 50% POE","MVA","Non-Coincident",41.775839158697835]
["ED_MDU541_07597",null,null,null,null,"Coincident",31.864537789829825]
["ED_MDU541_07598",null,"Upper Manilla","Substation Rating","MVA","Non-Coincident",1.6500000000000001]
["ED_MDU541_07599",null,null,null,null,"Coincident",1.7999999999999998]
["ED_MDU541_07600",null,null,"Raw Adjusted MD","MW","Non-Coincident",0.66766668111085892]
["ED_MDU541_07601",null,null,null,null,"Coincident",0.22116666287183762]
["ED_MDU541_07602",null,null,"Raw Adjusted MD","MVA","Non-Coincident",0.71153242839682973]
["ED_MDU541_07603",null,null,null,null,"Coincident",0.23758984271285943]
["ED_MDU541_07604",null,null,"Date MD occurred",null,"Non-Coincident","2014-11-15"]
["ED_MDU541_07605",null,null,null,null,"Coincident","2014-07-10"]
["ED_MDU541_07606",null,null,"Half hour time period MD occurred",null,"Non-Coincident","16:30:00"]
["ED_MDU541_07607",null,null,null,null,"Coincident","18:30:00"]
["ED_MDU541_07608",null,null,"Winter/Summer Peaking",null,"Non-Coincident","Summer"]
["ED_MDU541_07609",null,null,null,null,"Coincident","Winter"]
["ED_MDU541_07610",null,null,"Adjustments - Embedded generation","MW","Non-Coincident",0]
["ED_MDU541_07611",null,null,null,null,"Coincident",0]
["ED_MDU541_07612",null,null,"Weather Corrected MD 10% POE","MW","Non-Coincident",0.51985504882808753]
["ED_MDU541_07613",null,null,null,null,"Coincident",0.17220360035802659]
["ED_MDU541_07614",null,null,"Weather Corrected MD 10% POE","MVA","Non-Coincident",0.55400956161474935]
["ED_MDU541_07615",null,null,null,null,"Coincident",0.17220360035802659]
["ED_MDU541_07616",null,null,"Weather Corrected MD 50% POE","MW","Non-Coincident",0.42574930479779066]
["ED_MDU541_07617",null,null,null,null,"Coincident",0.14103078021725887]
["ED_MDU541_07618",null,null,"Weather Corrected MD 50% POE","MVA","Non-Coincident",0.45372106367059367]
["ED_MDU541_07619",null,null,null,null,"Coincident",0.14103078021725887]
["ED_MDU541_07620",null,"Uralla","Substation Rating","MVA","Non-Coincident",12]
["ED_MDU541_07621",null,null,null,null,"Coincident",12]
["ED_MDU541_07622",null,null,"Raw Adjusted MD","MW","Non-Coincident",3.9043333530426025]
["ED_MDU541_07623",null,null,null,null,"Coincident",3.034333348274231]
["ED_MDU541_07624",null,null,"Raw Adjusted MD","MVA","Non-Coincident",3.9531497202376924]
["ED_MDU541_07625",null,null,null,null,"Coincident",3.1160648080508664]
["ED_MDU541_07626",null,null,"Date MD occurred",null,"Non-Coincident","2014-07-09"]
["ED_MDU541_07627",null,null,null,null,"Coincident","2014-07-10"]
["ED_MDU541_07628",null,null,"Half hour time period MD occurred",null,"Non-Coincident","02:00:00"]
["ED_MDU541_07629",null,null,null,null,"Coincident","18:30:00"]
["ED_MDU541_07630",null,null,"Winter/Summer Peaking",null,"Non-Coincident","Winter"]
["ED_MDU541_07631",null,null,null,null,"Coincident","Winter"]
["ED_MDU541_07632",null,null,"Adjustments - Embedded generation","MW","Non-Coincident",0]
["ED_MDU541_07633",null,null,null,null,"Coincident",0]
["ED_MDU541_07634",null,null,"Weather Corrected MD 10% POE","MW","Non-Coincident",3.1987114479450236]
["ED_MDU541_07635",null,null,null,null,"Coincident",2.4859447030675277]
["ED_MDU541_07636",null,null,"Weather Corrected MD 10% POE","MVA","Non-Coincident",3.2387053363952343]
["ED_MDU541_07637",null,null,null,null,"Coincident",2.4859447030675277]
["ED_MDU541_07638",null,null,"Weather Corrected MD 50% POE","MW","Non-Coincident",3.0742440110966047]
["ED_MDU541_07639",null,null,null,null,"Coincident",2.3892122624041159]
["ED_MDU541_07640",null,null,"Weather Corrected MD 50% POE","MVA","Non-Coincident",3.1126816676496878]
["ED_MDU541_07641",null,null,null,null,"Coincident",2.3892122624041159]
["ED_MDU541_07642",null,"Uranquinty","Substation Rating","MVA","Non-Coincident",35.200000000000003]
["ED_MDU541_07643",null,null,null,null,"Coincident",38.4]
["ED_MDU541_07644",null,null,"Raw Adjusted MD","MW","Non-Coincident",4.3600000000000003]
["ED_MDU541_07645",null,null,null,null,"Coincident",3.6749999999999998]
["ED_MDU541_07646",null,null,"Raw Adjusted MD","MVA","Non-Coincident",4.4067221378253469]
["ED_MDU541_07647",null,null,null,null,"Coincident",3.6780599505717686]
["ED_MDU541_07648",null,null,"Date MD occurred",null,"Non-Coincident","2014-11-23"]
["ED_MDU541_07649",null,null,null,null,"Coincident","2014-07-10"]
["ED_MDU541_07650",null,null,"Half hour time period MD occurred",null,"Non-Coincident","17:30:00"]
["ED_MDU541_07651",null,null,null,null,"Coincident","18:30:00"]
["ED_MDU541_07652",null,null,"Winter/Summer Peaking",null,"Non-Coincident","Summer"]
["ED_MDU541_07653",null,null,null,null,"Coincident","Winter"]
["ED_MDU541_07654",null,null,"Adjustments - Embedded generation","MW","Non-Coincident",0]
["ED_MDU541_07655",null,null,null,null,"Coincident",0]
["ED_MDU541_07656",null,null,"Weather Corrected MD 10% POE","MW","Non-Coincident",4.9445513049129728]
["ED_MDU541_07657",null,null,null,null,"Coincident",4.1677123957695352]
["ED_MDU541_07658",null,null,"Weather Corrected MD 10% POE","MVA","Non-Coincident",4.9975375451773401]
["ED_MDU541_07659",null,null,null,null,"Coincident",4.1677123957695352]
["ED_MDU541_07660",null,null,"Weather Corrected MD 50% POE","MW","Non-Coincident",4.824090230844523]
["ED_MDU541_07661",null,null,null,null,"Coincident",4.0661769720994538]
["ED_MDU541_07662",null,null,"Weather Corrected MD 50% POE","MVA","Non-Coincident",4.8757855998003548]
["ED_MDU541_07663",null,null,null,null,"Coincident",4.0661769720994538]
["ED_MDU541_07664",null,"Urbenville","Substation Rating","MVA","Non-Coincident",11.55]
["ED_MDU541_07665",null,null,null,null,"Coincident",12.6]
["ED_MDU541_07666",null,null,"Raw Adjusted MD","MW","Non-Coincident",1.0826666951179504]
["ED_MDU541_07667",null,null,null,null,"Coincident",0.72266668081283569]
["ED_MDU541_07668",null,null,"Raw Adjusted MD","MVA","Non-Coincident",1.102012558877385]
["ED_MDU541_07669",null,null,null,null,"Coincident",0.72758431394165712]
["ED_MDU541_07670",null,null,"Date MD occurred",null,"Non-Coincident","2015-03-26"]
["ED_MDU541_07671",null,null,null,null,"Coincident","2014-07-10"]
["ED_MDU541_07672",null,null,"Half hour time period MD occurred",null,"Non-Coincident",1]
["ED_MDU541_07673",null,null,null,null,"Coincident","18:30:00"]
["ED_MDU541_07674",null,null,"Winter/Summer Peaking",null,"Non-Coincident","Summer"]
["ED_MDU541_07675",null,null,null,null,"Coincident","Winter"]
["ED_MDU541_07676",null,null,"Adjustments - Embedded generation","MW","Non-Coincident",0]
["ED_MDU541_07677",null,null,null,null,"Coincident",0]
["ED_MDU541_07678",null,null,"Weather Corrected MD 10% POE","MW","Non-Coincident",0.81346354599774728]
["ED_MDU541_07679",null,null,null,null,"Coincident",0.54297689528944748]
["ED_MDU541_07680",null,null,"Weather Corrected MD 10% POE","MVA","Non-Coincident",0.82799909512390235]
["ED_MDU541_07681",null,null,null,null,"Coincident",0.54297689528944748]
["ED_MDU541_07682",null,null,"Weather Corrected MD 50% POE","MW","Non-Coincident",0.71050586874477906]
["ED_MDU541_07683",null,null,null,null,"Coincident",0.47425391413549606]
["ED_MDU541_07684",null,null,"Weather Corrected MD 50% POE","MVA","Non-Coincident",0.72320169637021248]
["ED_MDU541_07685",null,null,null,null,"Coincident",0.47425391413549606]
["ED_MDU541_07686",null,"Walcha","Substation Rating","MVA","Non-Coincident",7.68]
["ED_MDU541_07687",null,null,null,null,"Coincident",7.68]
["ED_MDU541_07688",null,null,"Raw Adjusted MD","MW","Non-Coincident",2.0093333125114441]
["ED_MDU541_07689",null,null,null,null,"Coincident",1.7036666572093964]
["ED_MDU541_07690",null,null,"Raw Adjusted MD","MVA","Non-Coincident",2.041758625377081]
["ED_MDU541_07691",null,null,null,null,"Coincident",1.7602201129567288]
["ED_MDU541_07692",null,null,"Date MD occurred",null,"Non-Coincident","2014-07-11"]
["ED_MDU541_07693",null,null,null,null,"Coincident","2014-07-10"]
["ED_MDU541_07694",null,null,"Half hour time period MD occurred",null,"Non-Coincident","01:30:00"]
["ED_MDU541_07695",null,null,null,null,"Coincident","18:30:00"]
["ED_MDU541_07696",null,null,"Winter/Summer Peaking",null,"Non-Coincident","Winter"]
["ED_MDU541_07697",null,null,null,null,"Coincident","Winter"]
["ED_MDU541_07698",null,null,"Adjustments - Embedded generation","MW","Non-Coincident",0]
["ED_MDU541_07699",null,null,null,null,"Coincident",0]
["ED_MDU541_07700",null,null,"Weather Corrected MD 10% POE","MW","Non-Coincident",1.8202540930502653]
["ED_MDU541_07701",null,null,null,null,"Coincident",1.5433508152525615]
["ED_MDU541_07702",null,null,"Weather Corrected MD 10% POE","MVA","Non-Coincident",1.8496281685680498]
["ED_MDU541_07703",null,null,null,null,"Coincident",1.5433508152525615]
["ED_MDU541_07704",null,null,"Weather Corrected MD 50% POE","MW","Non-Coincident",1.7393657184539515]
["ED_MDU541_07705",null,null,null,null,"Coincident",1.4747674568333651]
["ED_MDU541_07706",null,null,"Weather Corrected MD 50% POE","MVA","Non-Coincident",1.7674344700430742]
["ED_MDU541_07707",null,null,null,null,"Coincident",1.4747674568333651]
["ED_MDU541_07708",null,"Walcha South","Substation Rating","MVA","Non-Coincident",24]
["ED_MDU541_07709",null,null,null,null,"Coincident",24]
["ED_MDU541_07710",null,null,"Raw Adjusted MD","MW","Non-Coincident",1.3480031893737134]
["ED_MDU541_07711",null,null,null,null,"Coincident",1.1857793107368124]
["ED_MDU541_07712",null,null,"Raw Adjusted MD","MVA","Non-Coincident",1.4977813215263482]
["ED_MDU541_07713",null,null,null,null,"Coincident",1.3175325674853471]
["ED_MDU541_07714",null,null,"Date MD occurred",null,"Non-Coincident","2014-07-19"]
["ED_MDU541_07715",null,null,null,null,"Coincident","2014-07-10"]
["ED_MDU541_07716",null,null,"Half hour time period MD occurred",null,"Non-Coincident","02:00:00"]
["ED_MDU541_07717",null,null,null,null,"Coincident","18:30:00"]
["ED_MDU541_07718",null,null,"Winter/Summer Peaking",null,"Non-Coincident","Winter"]
["ED_MDU541_07719",null,null,null,null,"Coincident","Winter"]
["ED_MDU541_07720",null,null,"Adjustments - Embedded generation","MW","Non-Coincident",0]
["ED_MDU541_07721",null,null,null,null,"Coincident",0]
["ED_MDU541_07722",null,null,"Weather Corrected MD 10% POE","MW","Non-Coincident",1.2265328516498202]
["ED_MDU541_07723",null,null,null,null,"Coincident",1.0789271797651296]
["ED_MDU541_07724",null,null,"Weather Corrected MD 10% POE","MVA","Non-Coincident",1.3628142796109113]
["ED_MDU541_07725",null,null,null,null,"Coincident",1.0789271797651296]
["ED_MDU541_07726",null,null,"Weather Corrected MD 50% POE","MW","Non-Coincident",1.1779242572103781]
["ED_MDU541_07727",null,null,null,null,"Coincident",1.036168330183278]
["ED_MDU541_07728",null,null,"Weather Corrected MD 50% POE","MVA","Non-Coincident",1.3088047302337535]
["ED_MDU541_07729",null,null,null,null,"Coincident",1.036168330183278]
["ED_MDU541_07730",null,"Walgett","Substation Rating","MVA","Non-Coincident",28.6]
["ED_MDU541_07731",null,null,null,null,"Coincident",31.2]
["ED_MDU541_07732",null,null,"Raw Adjusted MD","MW","Non-Coincident",4.6968000000000005]
["ED_MDU541_07733",null,null,null,null,"Coincident",3.6911999999999998]
["ED_MDU541_07734",null,null,"Raw Adjusted MD","MVA","Non-Coincident",4.7033007643568787]
["ED_MDU541_07735",null,null,null,null,"Coincident",3.8164226181071719]
["ED_MDU541_07736",null,null,"Date MD occurred",null,"Non-Coincident","2014-11-23"]
["ED_MDU541_07737",null,null,null,null,"Coincident","2014-07-10"]
["ED_MDU541_07738",null,null,"Half hour time period MD occurred",null,"Non-Coincident","19:30:00"]
["ED_MDU541_07739",null,null,null,null,"Coincident","18:30:00"]
["ED_MDU541_07740",null,null,"Winter/Summer Peaking",null,"Non-Coincident","Summer"]
["ED_MDU541_07741",null,null,null,null,"Coincident","Winter"]
["ED_MDU541_07742",null,null,"Adjustments - Embedded generation","MW","Non-Coincident",0]
["ED_MDU541_07743",null,null,null,null,"Coincident",0]
["ED_MDU541_07744",null,null,"Weather Corrected MD 10% POE","MW","Non-Coincident",5.1243944383662248]
["ED_MDU541_07745",null,null,null,null,"Coincident",4.0272450925944057]
["ED_MDU541_07746",null,null,"Weather Corrected MD 10% POE","MVA","Non-Coincident",5.1314870292186177]
["ED_MDU541_07747",null,null,null,null,"Coincident",4.0272450925944057]
["ED_MDU541_07748",null,null,"Weather Corrected MD 50% POE","MW","Non-Coincident",4.6189539157914403]
["ED_MDU541_07749",null,null,null,null,"Coincident",3.630021013023625]
["ED_MDU541_07750",null,null,"Weather Corrected MD 50% POE","MVA","Non-Coincident",4.6253469346514819]
["ED_MDU541_07751",null,null,null,null,"Coincident",3.630021013023625]
["ED_MDU541_07752",null,"Wallangra","Substation Rating","MVA","Non-Coincident",1.1000000000000001]
["ED_MDU541_07753",null,null,null,null,"Coincident",1.2]
["ED_MDU541_07754",null,null,"Raw Adjusted MD","MW","Non-Coincident",0.61673127436084973]
["ED_MDU541_07755",null,null,null,null,"Coincident",0.27876149191372024]
["ED_MDU541_07756",null,null,"Raw Adjusted MD","MVA","Non-Coincident",0.68525697151205522]
["ED_MDU541_07757",null,null,null,null,"Coincident",0.30973499101524471]
["ED_MDU541_07758",null,null,"Date MD occurred",null,"Non-Coincident","2014-10-14"]
["ED_MDU541_07759",null,null,null,null,"Coincident","2014-07-10"]
["ED_MDU541_07760",null,null,"Half hour time period MD occurred",null,"Non-Coincident","09:30:00"]
["ED_MDU541_07761",null,null,null,null,"Coincident","18:30:00"]
["ED_MDU541_07762",null,null,"Winter/Summer Peaking",null,"Non-Coincident","Summer"]
["ED_MDU541_07763",null,null,null,null,"Coincident","Winter"]
["ED_MDU541_07764",null,null,"Adjustments - Embedded generation","MW","Non-Coincident",0]
["ED_MDU541_07765",null,null,null,null,"Coincident",0]
["ED_MDU541_07766",null,null,"Weather Corrected MD 10% POE","MW","Non-Coincident",0.604053882608801]
["ED_MDU541_07767",null,null,null,null,"Coincident",0.27303133230402926]
["ED_MDU541_07768",null,null,"Weather Corrected MD 10% POE","MVA","Non-Coincident",0.67117098067644554]
["ED_MDU541_07769",null,null,null,null,"Coincident",0.27303133230402926]
["ED_MDU541_07770",null,null,"Weather Corrected MD 50% POE","MW","Non-Coincident",0.46721057173992403]
["ED_MDU541_07771",null,null,null,null,"Coincident",0.21117838746066214]
["ED_MDU541_07772",null,null,"Weather Corrected MD 50% POE","MVA","Non-Coincident",0.51912285748880449]
["ED_MDU541_07773",null,null,null,null,"Coincident",0.21117838746066214]
["ED_MDU541_07774",null,"Warialda","Substation Rating","MVA","Non-Coincident",8.8000000000000007]
["ED_MDU541_07775",null,null,null,null,"Coincident",9.6]
["ED_MDU541_07776",null,null,"Raw Adjusted MD","MW","Non-Coincident",2.9503332823514938]
["ED_MDU541_07777",null,null,null,null,"Coincident",2.2243333458900452]
["ED_MDU541_07778",null,null,"Raw Adjusted MD","MVA","Non-Coincident",3.0858981967614851]
["ED_MDU541_07779",null,null,null,null,"Coincident",2.3677967845037484]
["ED_MDU541_07780",null,null,"Date MD occurred",null,"Non-Coincident","2014-11-23"]
["ED_MDU541_07781",null,null,null,null,"Coincident","2014-07-10"]
["ED_MDU541_07782",null,null,"Half hour time period MD occurred",null,"Non-Coincident","18:30:00"]
["ED_MDU541_07783",null,null,null,null,"Coincident","18:30:00"]
["ED_MDU541_07784",null,null,"Winter/Summer Peaking",null,"Non-Coincident","Summer"]
["ED_MDU541_07785",null,null,null,null,"Coincident","Winter"]
["ED_MDU541_07786",null,null,"Adjustments - Embedded generation","MW","Non-Coincident",0]
["ED_MDU541_07787",null,null,null,null,"Coincident",0]
["ED_MDU541_07788",null,null,"Weather Corrected MD 10% POE","MW","Non-Coincident",2.9246407565064225]
["ED_MDU541_07789",null,null,null,null,"Coincident",2.204963079378397]
["ED_MDU541_07790",null,null,"Weather Corrected MD 10% POE","MVA","Non-Coincident",3.0590251246072904]
["ED_MDU541_07791",null,null,null,null,"Coincident",2.204963079378397]
["ED_MDU541_07792",null,null,"Weather Corrected MD 50% POE","MW","Non-Coincident",2.7376582166392693]
["ED_MDU541_07793",null,null,null,null,"Coincident",2.0639920572184085]
["ED_MDU541_07794",null,null,"Weather Corrected MD 50% POE","MVA","Non-Coincident",2.8634509208203749]
["ED_MDU541_07795",null,null,null,null,"Coincident",2.0639920572184085]
["ED_MDU541_07796",null,"Warrawidgee","Substation Rating","MVA","Non-Coincident",6.0500000000000007]
["ED_MDU541_07797",null,null,null,null,"Coincident",6.6]
["ED_MDU541_07798",null,null,"Raw Adjusted MD","MW","Non-Coincident",1.1799999475479126]
["ED_MDU541_07799",null,null,null,null,"Coincident",0.12950000166893005]
["ED_MDU541_07800",null,null,"Raw Adjusted MD","MVA","Non-Coincident",1.4196643981530337]
["ED_MDU541_07801",null,null,null,null,"Coincident",0.13439291258078187]
["ED_MDU541_07802",null,null,"Date MD occurred",null,"Non-Coincident","2015-01-04"]
["ED_MDU541_07803",null,null,null,null,"Coincident","2014-07-10"]
["ED_MDU541_07804",null,null,"Half hour time period MD occurred",null,"Non-Coincident","16:30:00"]
["ED_MDU541_07805",null,null,null,null,"Coincident","18:30:00"]
["ED_MDU541_07806",null,null,"Winter/Summer Peaking",null,"Non-Coincident","Summer"]
["ED_MDU541_07807",null,null,null,null,"Coincident","Winter"]
["ED_MDU541_07808",null,null,"Adjustments - Embedded generation","MW","Non-Coincident",0]
["ED_MDU541_07809",null,null,null,null,"Coincident",0]
["ED_MDU541_07810",null,null,"Weather Corrected MD 10% POE","MW","Non-Coincident",1.1311983031112425]
["ED_MDU541_07811",null,null,null,null,"Coincident",0.12414422767154291]
["ED_MDU541_07812",null,null,"Weather Corrected MD 10% POE","MVA","Non-Coincident",1.3609508725109061]
["ED_MDU541_07813",null,null,null,null,"Coincident",0.12414422767154291]
["ED_MDU541_07814",null,null,"Weather Corrected MD 50% POE","MW","Non-Coincident",0.94352911959804286]
["ED_MDU541_07815",null,null,null,null,"Coincident",0.10354832880843784]
["ED_MDU541_07816",null,null,"Weather Corrected MD 50% POE","MVA","Non-Coincident",1.1351650502167745]
["ED_MDU541_07817",null,null,null,null,"Coincident",0.10354832880843784]
["ED_MDU541_07818",null,"Wathagar","Substation Rating","MVA","Non-Coincident",6]
["ED_MDU541_07819",null,null,null,null,"Coincident",6]
["ED_MDU541_07820",null,null,"Raw Adjusted MD","MW","Non-Coincident",5.217672351558214]
["ED_MDU541_07821",null,null,null,null,"Coincident",2.9985223388524589]
["ED_MDU541_07822",null,null,"Raw Adjusted MD","MVA","Non-Coincident",5.4922866858507522]
["ED_MDU541_07823",null,null,null,null,"Coincident",3.1563393040552197]
["ED_MDU541_07824",null,null,"Date MD occurred",null,"Non-Coincident","2014-07-08"]
["ED_MDU541_07825",null,null,null,null,"Coincident","2014-07-10"]
["ED_MDU541_07826",null,null,"Half hour time period MD occurred",null,"Non-Coincident","06:30:00"]
["ED_MDU541_07827",null,null,null,null,"Coincident","18:30:00"]
["ED_MDU541_07828",null,null,"Winter/Summer Peaking",null,"Non-Coincident","Winter"]
["ED_MDU541_07829",null,null,null,null,"Coincident","Winter"]
["ED_MDU541_07830",null,null,"Adjustments - Embedded generation","MW","Non-Coincident",0]
["ED_MDU541_07831",null,null,null,null,"Coincident",0]
["ED_MDU541_07832",null,null,"Weather Corrected MD 10% POE","MW","Non-Coincident",5.9286560926892102]
["ED_MDU541_07833",null,null,null,null,"Coincident",3.4071146165384105]
["ED_MDU541_07834",null,null,"Weather Corrected MD 10% POE","MVA","Non-Coincident",6.2406906238833804]
["ED_MDU541_07835",null,null,null,null,"Coincident",3.4071146165384105]
["ED_MDU541_07836",null,null,"Weather Corrected MD 50% POE","MW","Non-Coincident",4.6346664673328162]
["ED_MDU541_07837",null,null,null,null,"Coincident",2.6634771214174826]
["ED_MDU541_07838",null,null,"Weather Corrected MD 50% POE","MVA","Non-Coincident",4.8785962814029649]
["ED_MDU541_07839",null,null,null,null,"Coincident",2.6634771214174826]
["ED_MDU541_07840",null,"Wee Waa","Substation Rating","MVA","Non-Coincident",24]
["ED_MDU541_07841",null,null,null,null,"Coincident",24]
["ED_MDU541_07842",null,null,"Raw Adjusted MD","MW","Non-Coincident",8.7840000000000007]
["ED_MDU541_07843",null,null,null,null,"Coincident",7.3056000000000001]
["ED_MDU541_07844",null,null,"Raw Adjusted MD","MVA","Non-Coincident",9.1530298721243124]
["ED_MDU541_07845",null,null,null,null,"Coincident",7.5380679965094508]
["ED_MDU541_07846",null,null,"Date MD occurred",null,"Non-Coincident","2014-06-27"]
["ED_MDU541_07847",null,null,null,null,"Coincident","2014-07-10"]
["ED_MDU541_07848",null,null,"Half hour time period MD occurred",null,"Non-Coincident","08:30:00"]
["ED_MDU541_07849",null,null,null,null,"Coincident","18:30:00"]
["ED_MDU541_07850",null,null,"Winter/Summer Peaking",null,"Non-Coincident","Winter"]
["ED_MDU541_07851",null,null,null,null,"Coincident","Winter"]
["ED_MDU541_07852",null,null,"Adjustments - Embedded generation","MW","Non-Coincident",0]
["ED_MDU541_07853",null,null,null,null,"Coincident",0]
["ED_MDU541_07854",null,null,"Weather Corrected MD 10% POE","MW","Non-Coincident",9.2169784631617588]
["ED_MDU541_07855",null,null,null,null,"Coincident",7.6657055852088503]
["ED_MDU541_07856",null,null,"Weather Corrected MD 10% POE","MVA","Non-Coincident",9.6041984521910297]
["ED_MDU541_07857",null,null,null,null,"Coincident",7.6657055852088503]
["ED_MDU541_07858",null,null,"Weather Corrected MD 50% POE","MW","Non-Coincident",7.7040347567108256]
["ED_MDU541_07859",null,null,null,null,"Coincident",6.4073993987507514]
["ED_MDU541_07860",null,null,"Weather Corrected MD 50% POE","MVA","Non-Coincident",8.0276935637588949]
["ED_MDU541_07861",null,null,null,null,"Coincident",6.4073993987507514]
["ED_MDU541_07862",null,"Wellington 11kV","Substation Rating","MVA","Non-Coincident",16.5]
["ED_MDU541_07863",null,null,null,null,"Coincident",18]
["ED_MDU541_07864",null,null,"Raw Adjusted MD","MW","Non-Coincident",8.8782927865589798]
["ED_MDU541_07865",null,null,null,null,"Coincident",7.6649918800242549]
["ED_MDU541_07866",null,null,"Raw Adjusted MD","MVA","Non-Coincident",9.3455713542726091]
["ED_MDU541_07867",null,null,null,null,"Coincident",8.0684125052886895]
["ED_MDU541_07868",null,null,"Date MD occurred",null,"Non-Coincident","2014-11-23"]
["ED_MDU541_07869",null,null,null,null,"Coincident","2014-07-10"]
["ED_MDU541_07870",null,null,"Half hour time period MD occurred",null,"Non-Coincident","18:00:00"]
["ED_MDU541_07871",null,null,null,null,"Coincident","18:30:00"]
["ED_MDU541_07872",null,null,"Winter/Summer Peaking",null,"Non-Coincident","Summer"]
["ED_MDU541_07873",null,null,null,null,"Coincident","Winter"]
["ED_MDU541_07874",null,null,"Adjustments - Embedded generation","MW","Non-Coincident",0]
["ED_MDU541_07875",null,null,null,null,"Coincident",0]
["ED_MDU541_07876",null,null,"Weather Corrected MD 10% POE","MW","Non-Coincident",9.2909691611597758]
["ED_MDU541_07877",null,null,null,null,"Coincident",8.0212722073842304]
["ED_MDU541_07878",null,null,"Weather Corrected MD 10% POE","MVA","Non-Coincident",9.7799675380629214]
["ED_MDU541_07879",null,null,null,null,"Coincident",8.0212722073842304]
["ED_MDU541_07880",null,null,"Weather Corrected MD 50% POE","MW","Non-Coincident",8.7062030810884945]
["ED_MDU541_07881",null,null,null,null,"Coincident",7.5164198260518971]
["ED_MDU541_07882",null,null,"Weather Corrected MD 50% POE","MVA","Non-Coincident",9.1644242958826254]
["ED_MDU541_07883",null,null,null,null,"Coincident",7.5164198260518971]
["ED_MDU541_07884",null,"Wenna","Substation Rating","MVA","Non-Coincident",9]
["ED_MDU541_07885",null,null,null,null,"Coincident",9]
["ED_MDU541_07886",null,null,"Raw Adjusted MD","MW","Non-Coincident",2.432285873663663]
["ED_MDU541_07887",null,null,null,null,"Coincident",0.26888862990752083]
["ED_MDU541_07888",null,null,"Raw Adjusted MD","MVA","Non-Coincident",2.4819243608812891]
["ED_MDU541_07889",null,null,null,null,"Coincident",0.27437615296685802]
["ED_MDU541_07890",null,null,"Date MD occurred",null,"Non-Coincident","2014-07-04"]
["ED_MDU541_07891",null,null,null,null,"Coincident","2014-07-10"]
["ED_MDU541_07892",null,null,"Half hour time period MD occurred",null,"Non-Coincident","03:00:00"]
["ED_MDU541_07893",null,null,null,null,"Coincident","18:30:00"]
["ED_MDU541_07894",null,null,"Winter/Summer Peaking",null,"Non-Coincident","Winter"]
["ED_MDU541_07895",null,null,null,null,"Coincident","Winter"]
["ED_MDU541_07896",null,null,"Adjustments - Embedded generation","MW","Non-Coincident",0]
["ED_MDU541_07897",null,null,null,null,"Coincident",0]
["ED_MDU541_07898",null,null,"Weather Corrected MD 10% POE","MW","Non-Coincident",3.4033445890967871]
["ED_MDU541_07899",null,null,null,null,"Coincident",0.37623894196573071]
["ED_MDU541_07900",null,null,"Weather Corrected MD 10% POE","MVA","Non-Coincident",3.4728006011191703]
["ED_MDU541_07901",null,null,null,null,"Coincident",0.37623894196573071]
["ED_MDU541_07902",null,null,"Weather Corrected MD 50% POE","MW","Non-Coincident",2.1636531242559727]
["ED_MDU541_07903",null,null,null,null,"Coincident",0.2391913427922841]
["ED_MDU541_07904",null,null,"Weather Corrected MD 50% POE","MVA","Non-Coincident",2.2078093104652781]
["ED_MDU541_07905",null,null,null,null,"Coincident",0.2391913427922841]
["ED_MDU541_07906",null,"Werris Creek","Substation Rating","MVA","Non-Coincident",15.950000000000001]
["ED_MDU541_07907",null,null,null,null,"Coincident",17.399999999999999]
["ED_MDU541_07908",null,null,"Raw Adjusted MD","MW","Non-Coincident",2.2822575698844747]
["ED_MDU541_07909",null,null,null,null,"Coincident",1.9149289006733261]
["ED_MDU541_07910",null,null,"Raw Adjusted MD","MVA","Non-Coincident",2.4023763893520789]
["ED_MDU541_07911",null,null,null,null,"Coincident",2.015714632287712]
["ED_MDU541_07912",null,null,"Date MD occurred",null,"Non-Coincident","2014-11-21"]
["ED_MDU541_07913",null,null,null,null,"Coincident","2014-07-10"]
["ED_MDU541_07914",null,null,"Half hour time period MD occurred",null,"Non-Coincident","19:00:00"]
["ED_MDU541_07915",null,null,null,null,"Coincident","18:30:00"]
["ED_MDU541_07916",null,null,"Winter/Summer Peaking",null,"Non-Coincident","Summer"]
["ED_MDU541_07917",null,null,null,null,"Coincident","Winter"]
["ED_MDU541_07918",null,null,"Adjustments - Embedded generation","MW","Non-Coincident",0]
["ED_MDU541_07919",null,null,null,null,"Coincident",0]
["ED_MDU541_07920",null,null,"Weather Corrected MD 10% POE","MW","Non-Coincident",2.2680176021456115]
["ED_MDU541_07921",null,null,null,null,"Coincident",1.9029808514576607]
["ED_MDU541_07922",null,null,"Weather Corrected MD 10% POE","MVA","Non-Coincident",2.38738694962696]
["ED_MDU541_07923",null,null,null,null,"Coincident",1.9029808514576607]
["ED_MDU541_07924",null,null,"Weather Corrected MD 50% POE","MW","Non-Coincident",2.0139876236172665]
["ED_MDU541_07925",null,null,null,null,"Coincident",1.6898369215435729]
["ED_MDU541_07926",null,null,"Weather Corrected MD 50% POE","MVA","Non-Coincident",2.1199869722287019]
["ED_MDU541_07927",null,null,null,null,"Coincident",1.6898369215435729]
["ED_MDU541_07928",null,"West Jemalong","Substation Rating","MVA","Non-Coincident",8.8000000000000007]
["ED_MDU541_07929",null,null,null,null,"Coincident",9.6]
["ED_MDU541_07930",null,null,"Raw Adjusted MD","MW","Non-Coincident",2.0362499999999999]
["ED_MDU541_07931",null,null,null,null,"Coincident",0.91304999999999992]
["ED_MDU541_07932",null,null,"Raw Adjusted MD","MVA","Non-Coincident",2.1686353479780784]
["ED_MDU541_07933",null,null,null,null,"Coincident",0.91544313040188352]
["ED_MDU541_07934",null,null,"Date MD occurred",null,"Non-Coincident","2015-02-10"]
["ED_MDU541_07935",null,null,null,null,"Coincident","2014-07-10"]
["ED_MDU541_07936",null,null,"Half hour time period MD occurred",null,"Non-Coincident","18:00:00"]
["ED_MDU541_07937",null,null,null,null,"Coincident","18:30:00"]
["ED_MDU541_07938",null,null,"Winter/Summer Peaking",null,"Non-Coincident","Summer"]
["ED_MDU541_07939",null,null,null,null,"Coincident","Winter"]
["ED_MDU541_07940",null,null,"Adjustments - Embedded generation","MW","Non-Coincident",0]
["ED_MDU541_07941",null,null,null,null,"Coincident",0]
["ED_MDU541_07942",null,null,"Weather Corrected MD 10% POE","MW","Non-Coincident",2.0778272570413203]
["ED_MDU541_07943",null,null,null,null,"Coincident",0.93169315017388699]
["ED_MDU541_07944",null,null,"Weather Corrected MD 10% POE","MVA","Non-Coincident",2.2129157208653849]
["ED_MDU541_07945",null,null,null,null,"Coincident",0.93169315017388699]
["ED_MDU541_07946",null,null,"Weather Corrected MD 50% POE","MW","Non-Coincident",1.764984351887781]
["ED_MDU541_07947",null,null,null,null,"Coincident",0.7914150828685762]
["ED_MDU541_07948",null,null,"Weather Corrected MD 50% POE","MVA","Non-Coincident",1.8797335563570394]
["ED_MDU541_07949",null,null,null,null,"Coincident",0.7914150828685762]
["ED_MDU541_07950",null,"West Wyalong","Substation Rating","MVA","Non-Coincident",27.500000000000004]
["ED_MDU541_07951",null,null,null,null,"Coincident",30]
["ED_MDU541_07952",null,null,"Raw Adjusted MD","MW","Non-Coincident",7.1583333015441895]
["ED_MDU541_07953",null,null,null,null,"Coincident",5.3479999899864197]
["ED_MDU541_07954",null,null,"Raw Adjusted MD","MVA","Non-Coincident",7.4287679799993667]
["ED_MDU541_07955",null,null,null,null,"Coincident",5.550880371902827]
["ED_MDU541_07956",null,null,"Date MD occurred",null,"Non-Coincident","2015-02-09"]
["ED_MDU541_07957",null,null,null,null,"Coincident","2014-07-10"]
["ED_MDU541_07958",null,null,"Half hour time period MD occurred",null,"Non-Coincident","19:00:00"]
["ED_MDU541_07959",null,null,null,null,"Coincident","18:30:00"]
["ED_MDU541_07960",null,null,"Winter/Summer Peaking",null,"Non-Coincident","Summer"]
["ED_MDU541_07961",null,null,null,null,"Coincident","Winter"]
["ED_MDU541_07962",null,null,"Adjustments - Embedded generation","MW","Non-Coincident",0]
["ED_MDU541_07963",null,null,null,null,"Coincident",0]
["ED_MDU541_07964",null,null,"Weather Corrected MD 10% POE","MW","Non-Coincident",8.2719615365253087]
["ED_MDU541_07965",null,null,null,null,"Coincident",6.1799930725441801]
["ED_MDU541_07966",null,null,"Weather Corrected MD 10% POE","MVA","Non-Coincident",8.5844679767941976]
["ED_MDU541_07967",null,null,null,null,"Coincident",6.1799930725441801]
["ED_MDU541_07968",null,null,"Weather Corrected MD 50% POE","MW","Non-Coincident",7.7854029216407215]
["ED_MDU541_07969",null,null,null,null,"Coincident",5.8164845073633362]
["ED_MDU541_07970",null,null,"Weather Corrected MD 50% POE","MVA","Non-Coincident",8.079527663681402]
["ED_MDU541_07971",null,null,null,null,"Coincident",5.8164845073633362]
["ED_MDU541_07972",null,"Whitbread St","Substation Rating","MVA","Non-Coincident",44]
["ED_MDU541_07973",null,null,null,null,"Coincident",48]
["ED_MDU541_07974",null,null,"Raw Adjusted MD","MW","Non-Coincident",18.916666507720947]
["ED_MDU541_07975",null,null,null,null,"Coincident",13.449999809265137]
["ED_MDU541_07976",null,null,"Raw Adjusted MD","MVA","Non-Coincident",20.192931788227334]
["ED_MDU541_07977",null,null,null,null,"Coincident",13.740400111263479]
["ED_MDU541_07978",null,null,"Date MD occurred",null,"Non-Coincident","2014-11-24"]
["ED_MDU541_07979",null,null,null,null,"Coincident","2014-07-10"]
["ED_MDU541_07980",null,null,"Half hour time period MD occurred",null,"Non-Coincident","16:30:00"]
["ED_MDU541_07981",null,null,null,null,"Coincident","18:30:00"]
["ED_MDU541_07982",null,null,"Winter/Summer Peaking",null,"Non-Coincident","Summer"]
["ED_MDU541_07983",null,null,null,null,"Coincident","Winter"]
["ED_MDU541_07984",null,null,"Adjustments - Embedded generation","MW","Non-Coincident",0]
["ED_MDU541_07985",null,null,null,null,"Coincident",0]
["ED_MDU541_07986",null,null,"Weather Corrected MD 10% POE","MW","Non-Coincident",19.173156888622525]
["ED_MDU541_07987",null,null,null,null,"Coincident",13.632367858773042]
["ED_MDU541_07988",null,null,"Weather Corrected MD 10% POE","MVA","Non-Coincident",20.466727002821198]
["ED_MDU541_07989",null,null,null,null,"Coincident",13.632367858773042]
["ED_MDU541_07990",null,null,"Weather Corrected MD 50% POE","MW","Non-Coincident",17.680669925103647]
["ED_MDU541_07991",null,null,null,null,"Coincident",12.571189909345941]
["ED_MDU541_07992",null,null,"Weather Corrected MD 50% POE","MVA","Non-Coincident",18.873545274060774]
["ED_MDU541_07993",null,null,null,null,"Coincident",12.571189909345941]
["ED_MDU541_07994",null,"Whitton","Substation Rating","MVA","Non-Coincident",13.750000000000002]
["ED_MDU541_07995",null,null,null,null,"Coincident",15]
["ED_MDU541_07996",null,null,"Raw Adjusted MD","MW","Non-Coincident",4.4926666766405106]
["ED_MDU541_07997",null,null,null,null,"Coincident",0.99143332988023758]
["ED_MDU541_07998",null,null,"Raw Adjusted MD","MVA","Non-Coincident",5.1086071608940049]
["ED_MDU541_07999",null,null,null,null,"Coincident",1.0771170074196659]
["ED_MDU541_08000",null,null,"Date MD occurred",null,"Non-Coincident","2015-01-03"]
["ED_MDU541_08001",null,null,null,null,"Coincident","2014-07-10"]
["ED_MDU541_08002",null,null,"Half hour time period MD occurred",null,"Non-Coincident","15:30:00"]
["ED_MDU541_08003",null,null,null,null,"Coincident","18:30:00"]
["ED_MDU541_08004",null,null,"Winter/Summer Peaking",null,"Non-Coincident","Summer"]
["ED_MDU541_08005",null,null,null,null,"Coincident","Winter"]
["ED_MDU541_08006",null,null,"Adjustments - Embedded generation","MW","Non-Coincident",0]
["ED_MDU541_08007",null,null,null,null,"Coincident",0]
["ED_MDU541_08008",null,null,"Weather Corrected MD 10% POE","MW","Non-Coincident",3.4140998486252121]
["ED_MDU541_08009",null,null,null,null,"Coincident",0.75341720743841301]
["ED_MDU541_08010",null,null,"Weather Corrected MD 10% POE","MVA","Non-Coincident",3.882169809164655]
["ED_MDU541_08011",null,null,null,null,"Coincident",0.75341720743841301]
["ED_MDU541_08012",null,null,"Weather Corrected MD 50% POE","MW","Non-Coincident",2.7576257856638229]
["ED_MDU541_08013",null,null,null,null,"Coincident",0.60854773167563359]
["ED_MDU541_08014",null,null,"Weather Corrected MD 50% POE","MVA","Non-Coincident",3.1356937537690848]
["ED_MDU541_08015",null,null,null,null,"Coincident",0.60854773167563359]
["ED_MDU541_08016",null,"Widgelli","Substation Rating","MVA","Non-Coincident",0.82500000000000007]
["ED_MDU541_08017",null,null,null,null,"Coincident",0.89999999999999991]
["ED_MDU541_08018",null,null,"Raw Adjusted MD","MW","Non-Coincident",0.47499999999999998]
["ED_MDU541_08019",null,null,null,null,"Coincident",0]
["ED_MDU541_08020",null,null,"Raw Adjusted MD","MVA","Non-Coincident",0.56940407444977059]
["ED_MDU541_08021",null,null,null,null,"Coincident",0]
["ED_MDU541_08022",null,null,"Date MD occurred",null,"Non-Coincident","2014-12-25"]
["ED_MDU541_08023",null,null,null,null,"Coincident","2014-07-10"]
["ED_MDU541_08024",null,null,"Half hour time period MD occurred",null,"Non-Coincident","00:30:00"]
["ED_MDU541_08025",null,null,null,null,"Coincident","18:30:00"]
["ED_MDU541_08026",null,null,"Winter/Summer Peaking",null,"Non-Coincident","Summer"]
["ED_MDU541_08027",null,null,null,null,"Coincident","Winter"]
["ED_MDU541_08028",null,null,"Adjustments - Embedded generation","MW","Non-Coincident",0]
["ED_MDU541_08029",null,null,null,null,"Coincident",0]
["ED_MDU541_08030",null,null,"Weather Corrected MD 10% POE","MW","Non-Coincident",0.45399765497911548]
["ED_MDU541_08031",null,null,null,null,"Coincident",0]
["ED_MDU541_08032",null,null,"Weather Corrected MD 10% POE","MVA","Non-Coincident",0.54422760954894644]
["ED_MDU541_08033",null,null,null,null,"Coincident",0]
["ED_MDU541_08034",null,null,"Weather Corrected MD 50% POE","MW","Non-Coincident",0.31788883659877487]
["ED_MDU541_08035",null,null,null,null,"Coincident",0]
["ED_MDU541_08036",null,null,"Weather Corrected MD 50% POE","MVA","Non-Coincident",0.38106778690829429]
["ED_MDU541_08037",null,null,null,null,"Coincident",0]
["ED_MDU541_08038",null,"Wilcannia","Substation Rating","MVA","Non-Coincident",7.7000000000000011]
["ED_MDU541_08039",null,null,null,null,"Coincident",8.4]
["ED_MDU541_08040",null,null,"Raw Adjusted MD","MW","Non-Coincident",1.1524999737739563]
["ED_MDU541_08041",null,null,null,null,"Coincident",0.87800002098083496]
["ED_MDU541_08042",null,null,"Raw Adjusted MD","MVA","Non-Coincident",1.2908905578474377]
["ED_MDU541_08043",null,null,null,null,"Coincident",0.99151289400429565]
["ED_MDU541_08044",null,null,"Date MD occurred",null,"Non-Coincident","2014-12-15"]
["ED_MDU541_08045",null,null,null,null,"Coincident","2014-07-10"]
["ED_MDU541_08046",null,null,"Half hour time period MD occurred",null,"Non-Coincident","18:00:00"]
["ED_MDU541_08047",null,null,null,null,"Coincident","18:30:00"]
["ED_MDU541_08048",null,null,"Winter/Summer Peaking",null,"Non-Coincident","Summer"]
["ED_MDU541_08049",null,null,null,null,"Coincident","Winter"]
["ED_MDU541_08050",null,null,"Adjustments - Embedded generation","MW","Non-Coincident",0]
["ED_MDU541_08051",null,null,null,null,"Coincident",0]
["ED_MDU541_08052",null,null,"Weather Corrected MD 10% POE","MW","Non-Coincident",1.1612620146052051]
["ED_MDU541_08053",null,null,null,null,"Coincident",0.88467513786476837]
["ED_MDU541_08054",null,null,"Weather Corrected MD 10% POE","MVA","Non-Coincident",1.3007047322803398]
["ED_MDU541_08055",null,null,null,null,"Coincident",0.88467513786476837]
["ED_MDU541_08056",null,null,"Weather Corrected MD 50% POE","MW","Non-Coincident",1.1374506414014547]
["ED_MDU541_08057",null,null,null,null,"Coincident",0.86653510606588191]
["ED_MDU541_08058",null,null,"Weather Corrected MD 50% POE","MVA","Non-Coincident",1.2740341227032748]
["ED_MDU541_08059",null,null,null,null,"Coincident",0.86653510606588191]
["ED_MDU541_08060",null,"Willbriggie","Substation Rating","MVA","Non-Coincident",8.8000000000000007]
["ED_MDU541_08061",null,null,null,null,"Coincident",9.6]
["ED_MDU541_08062",null,null,"Raw Adjusted MD","MW","Non-Coincident",1.248]
["ED_MDU541_08063",null,null,null,null,"Coincident",0.45600000000000002]
["ED_MDU541_08064",null,null,"Raw Adjusted MD","MVA","Non-Coincident",1.2756174975281578]
["ED_MDU541_08065",null,null,null,null,"Coincident",0.45993042952168323]
["ED_MDU541_08066",null,null,"Date MD occurred",null,"Non-Coincident","2014-11-14"]
["ED_MDU541_08067",null,null,null,null,"Coincident","2014-07-10"]
["ED_MDU541_08068",null,null,"Half hour time period MD occurred",null,"Non-Coincident","17:30:00"]
["ED_MDU541_08069",null,null,null,null,"Coincident","18:30:00"]
["ED_MDU541_08070",null,null,"Winter/Summer Peaking",null,"Non-Coincident","Summer"]
["ED_MDU541_08071",null,null,null,null,"Coincident","Winter"]
["ED_MDU541_08072",null,null,"Adjustments - Embedded generation","MW","Non-Coincident",0]
["ED_MDU541_08073",null,null,null,null,"Coincident",0]
["ED_MDU541_08074",null,null,"Weather Corrected MD 10% POE","MW","Non-Coincident",1.1126825146803481]
["ED_MDU541_08075",null,null,null,null,"Coincident",0.40655707267166569]
["ED_MDU541_08076",null,null,"Weather Corrected MD 10% POE","MVA","Non-Coincident",1.1373055167627271]
["ED_MDU541_08077",null,null,null,null,"Coincident",0.40655707267166569]
["ED_MDU541_08078",null,null,"Weather Corrected MD 50% POE","MW","Non-Coincident",0.86207929410107731]
["ED_MDU541_08079",null,null,null,null,"Coincident",0.3149905113061629]
["ED_MDU541_08080",null,null,"Weather Corrected MD 50% POE","MVA","Non-Coincident",0.8811565960032508]
["ED_MDU541_08081",null,null,null,null,"Coincident",0.3149905113061629]
["ED_MDU541_08082",null,"Wingham","Substation Rating","MVA","Non-Coincident",22]
["ED_MDU541_08083",null,null,null,null,"Coincident",24]
["ED_MDU541_08084",null,null,"Raw Adjusted MD","MW","Non-Coincident",8.4407822216658861]
["ED_MDU541_08085",null,null,null,null,"Coincident",0]
["ED_MDU541_08086",null,null,"Raw Adjusted MD","MVA","Non-Coincident",8.8850339175430388]
["ED_MDU541_08087",null,null,null,null,"Coincident",0]
["ED_MDU541_08088",null,null,"Date MD occurred",null,"Non-Coincident","2015-01-14"]
["ED_MDU541_08089",null,null,null,null,"Coincident","2014-07-10"]
["ED_MDU541_08090",null,null,"Half hour time period MD occurred",null,"Non-Coincident","18:30:00"]
["ED_MDU541_08091",null,null,null,null,"Coincident","18:30:00"]
["ED_MDU541_08092",null,null,"Winter/Summer Peaking",null,"Non-Coincident","Summer"]
["ED_MDU541_08093",null,null,null,null,"Coincident","Winter"]
["ED_MDU541_08094",null,null,"Adjustments - Embedded generation","MW","Non-Coincident",0]
["ED_MDU541_08095",null,null,null,null,"Coincident",0]
["ED_MDU541_08096",null,null,"Weather Corrected MD 10% POE","MW","Non-Coincident",9.406144611188207]
["ED_MDU541_08097",null,null,null,null,"Coincident",0]
["ED_MDU541_08098",null,null,"Weather Corrected MD 10% POE","MVA","Non-Coincident",9.9012048538823247]
["ED_MDU541_08099",null,null,null,null,"Coincident",0]
["ED_MDU541_08100",null,null,"Weather Corrected MD 50% POE","MW","Non-Coincident",8.4798104886903776]
["ED_MDU541_08101",null,null,null,null,"Coincident",0]
["ED_MDU541_08102",null,null,"Weather Corrected MD 50% POE","MVA","Non-Coincident",8.9261163038846085]
["ED_MDU541_08103",null,null,null,null,"Coincident",0]
["ED_MDU541_08104",null,"Woodburn","Substation Rating","MVA","Non-Coincident",24]
["ED_MDU541_08105",null,null,null,null,"Coincident",24]
["ED_MDU541_08106",null,null,"Raw Adjusted MD","MW","Non-Coincident",6.06]
["ED_MDU541_08107",null,null,null,null,"Coincident",5.94]
["ED_MDU541_08108",null,null,"Raw Adjusted MD","MVA","Non-Coincident",6.2151427980377081]
["ED_MDU541_08109",null,null,null,null,"Coincident",6.0848993418133057]
["ED_MDU541_08110",null,null,"Date MD occurred",null,"Non-Coincident","2014-08-27"]
["ED_MDU541_08111",null,null,null,null,"Coincident","2014-07-10"]
["ED_MDU541_08112",null,null,"Half hour time period MD occurred",null,"Non-Coincident","18:00:00"]
["ED_MDU541_08113",null,null,null,null,"Coincident","18:30:00"]
["ED_MDU541_08114",null,null,"Winter/Summer Peaking",null,"Non-Coincident","Winter"]
["ED_MDU541_08115",null,null,null,null,"Coincident","Winter"]
["ED_MDU541_08116",null,null,"Adjustments - Embedded generation","MW","Non-Coincident",0]
["ED_MDU541_08117",null,null,null,null,"Coincident",0]
["ED_MDU541_08118",null,null,"Weather Corrected MD 10% POE","MW","Non-Coincident",6.4151837351177035]
["ED_MDU541_08119",null,null,null,null,"Coincident",6.2881503938282446]
["ED_MDU541_08120",null,null,"Weather Corrected MD 10% POE","MVA","Non-Coincident",6.5794196352154186]
["ED_MDU541_08121",null,null,null,null,"Coincident",6.2881503938282446]
["ED_MDU541_08122",null,null,"Weather Corrected MD 50% POE","MW","Non-Coincident",5.9936189335807404]
["ED_MDU541_08123",null,null,null,null,"Coincident",5.8749334101434982]
["ED_MDU541_08124",null,null,"Weather Corrected MD 50% POE","MVA","Non-Coincident",6.1470623018526052]
["ED_MDU541_08125",null,null,null,null,"Coincident",5.8749334101434982]
["ED_MDU541_08126",null,"Woodlawn","Substation Rating","MVA","Non-Coincident",5.5]
["ED_MDU541_08127",null,null,null,null,"Coincident",6]
["ED_MDU541_08128",null,null,"Raw Adjusted MD","MW","Non-Coincident",5.0666666030883789]
["ED_MDU541_08129",null,null,null,null,"Coincident",3.6616666316986084]
["ED_MDU541_08130",null,null,"Raw Adjusted MD","MVA","Non-Coincident",5.0674307559913645]
["ED_MDU541_08131",null,null,null,null,"Coincident",3.6667670088678586]
["ED_MDU541_08132",null,null,"Date MD occurred",null,"Non-Coincident","2015-02-14"]
["ED_MDU541_08133",null,null,null,null,"Coincident","2014-07-10"]
["ED_MDU541_08134",null,null,"Half hour time period MD occurred",null,"Non-Coincident","06:00:00"]
["ED_MDU541_08135",null,null,null,null,"Coincident","18:30:00"]
["ED_MDU541_08136",null,null,"Winter/Summer Peaking",null,"Non-Coincident","Summer"]
["ED_MDU541_08137",null,null,null,null,"Coincident","Winter"]
["ED_MDU541_08138",null,null,"Adjustments - Embedded generation","MW","Non-Coincident",5.7010800000000001]
["ED_MDU541_08139",null,null,null,null,"Coincident",4.9281939999999995]
["ED_MDU541_08140",null,null,"Weather Corrected MD 10% POE","MW","Non-Coincident",4.6893556789884689]
["ED_MDU541_08141",null,null,null,null,"Coincident",3.3889850189574298]
["ED_MDU541_08142",null,null,"Weather Corrected MD 10% POE","MVA","Non-Coincident",4.6900629259885074]
["ED_MDU541_08143",null,null,null,null,"Coincident",3.3889850189574298]
["ED_MDU541_08144",null,null,"Weather Corrected MD 50% POE","MW","Non-Coincident",4.0971191773564373]
["ED_MDU541_08145",null,null,null,null,"Coincident",2.9609772564616543]
["ED_MDU541_08146",null,null,"Weather Corrected MD 50% POE","MVA","Non-Coincident",4.0977371034523333]
["ED_MDU541_08147",null,null,null,null,"Coincident",2.9609772564616543]
["ED_MDU541_08148",null,"Woolgoolga","Substation Rating","MVA","Non-Coincident",72]
["ED_MDU541_08149",null,null,null,null,"Coincident",72]
["ED_MDU541_08150",null,null,"Raw Adjusted MD","MW","Non-Coincident",10.728]
["ED_MDU541_08151",null,null,null,null,"Coincident",10.103999999999999]
["ED_MDU541_08152",null,null,"Raw Adjusted MD","MVA","Non-Coincident",10.728966399425435]
["ED_MDU541_08153",null,null,null,null,"Coincident",10.104712563947576]
["ED_MDU541_08154",null,null,"Date MD occurred",null,"Non-Coincident","2014-04-14"]
["ED_MDU541_08155",null,null,null,null,"Coincident","2014-07-10"]
["ED_MDU541_08156",null,null,"Half hour time period MD occurred",null,"Non-Coincident","18:30:00"]
["ED_MDU541_08157",null,null,null,null,"Coincident","18:30:00"]
["ED_MDU541_08158",null,null,"Winter/Summer Peaking",null,"Non-Coincident","Winter"]
["ED_MDU541_08159",null,null,null,null,"Coincident","Winter"]
["ED_MDU541_08160",null,null,"Adjustments - Embedded generation","MW","Non-Coincident",0]
["ED_MDU541_08161",null,null,null,null,"Coincident",0]
["ED_MDU541_08162",null,null,"Weather Corrected MD 10% POE","MW","Non-Coincident",10.809672881928527]
["ED_MDU541_08163",null,null,null,null,"Coincident",10.180922333986375]
["ED_MDU541_08164",null,null,"Weather Corrected MD 10% POE","MVA","Non-Coincident",10.810646638608453]
["ED_MDU541_08165",null,null,null,null,"Coincident",10.180922333986375]
["ED_MDU541_08166",null,null,"Weather Corrected MD 50% POE","MW","Non-Coincident",10.122177865615068]
["ED_MDU541_08167",null,null,null,null,"Coincident",9.5334158421117294]
["ED_MDU541_08168",null,null,"Weather Corrected MD 50% POE","MVA","Non-Coincident",10.123089691386273]
["ED_MDU541_08169",null,null,null,null,"Coincident",9.5334158421117294]
["ED_MDU541_08170",null,"Wynne St 66/11kV","Substation Rating","MVA","Non-Coincident",30]
["ED_MDU541_08171",null,null,null,null,"Coincident",30]
["ED_MDU541_08172",null,null,"Raw Adjusted MD","MW","Non-Coincident",6.0713999999999997]
["ED_MDU541_08173",null,null,null,null,"Coincident",4.5990000000000002]
["ED_MDU541_08174",null,null,"Raw Adjusted MD","MVA","Non-Coincident",6.294137758263636]
["ED_MDU541_08175",null,null,null,null,"Coincident",4.7384742734344352]
["ED_MDU541_08176",null,null,"Date MD occurred",null,"Non-Coincident","2014-07-18"]
["ED_MDU541_08177",null,null,null,null,"Coincident","2014-07-10"]
["ED_MDU541_08178",null,null,"Half hour time period MD occurred",null,"Non-Coincident","09:30:00"]
["ED_MDU541_08179",null,null,null,null,"Coincident","18:30:00"]
["ED_MDU541_08180",null,null,"Winter/Summer Peaking",null,"Non-Coincident","Winter"]
["ED_MDU541_08181",null,null,null,null,"Coincident","Winter"]
["ED_MDU541_08182",null,null,"Adjustments - Embedded generation","MW","Non-Coincident",0]
["ED_MDU541_08183",null,null,null,null,"Coincident",0]
["ED_MDU541_08184",null,null,"Weather Corrected MD 10% POE","MW","Non-Coincident",6.7454740358627028]
["ED_MDU541_08185",null,null,null,null,"Coincident",5.1096015895728453]
["ED_MDU541_08186",null,null,"Weather Corrected MD 10% POE","MVA","Non-Coincident",6.9929411382070743]
["ED_MDU541_08187",null,null,null,null,"Coincident",5.1096015895728453]
["ED_MDU541_08188",null,null,"Weather Corrected MD 50% POE","MW","Non-Coincident",6.1072598901555049]
["ED_MDU541_08189",null,null,null,null,"Coincident",4.6261633617987892]
["ED_MDU541_08190",null,null,"Weather Corrected MD 50% POE","MVA","Non-Coincident",6.3313132183939107]
["ED_MDU541_08191",null,null,null,null,"Coincident",4.6261633617987892]
["ED_MDU541_08192",null,"Yallaroi","Substation Rating","MVA","Non-Coincident",5.5]
["ED_MDU541_08193",null,null,null,null,"Coincident",6]
["ED_MDU541_08194",null,null,"Raw Adjusted MD","MW","Non-Coincident",1.9755909469266399]
["ED_MDU541_08195",null,null,null,null,"Coincident",1.3951286800966116]
["ED_MDU541_08196",null,null,"Raw Adjusted MD","MVA","Non-Coincident",2.0795694178175159]
["ED_MDU541_08197",null,null,null,null,"Coincident",1.4685565053648544]
["ED_MDU541_08198",null,null,"Date MD occurred",null,"Non-Coincident","2014-10-27"]
["ED_MDU541_08199",null,null,null,null,"Coincident","2014-07-10"]
["ED_MDU541_08200",null,null,"Half hour time period MD occurred",null,"Non-Coincident","20:00:00"]
["ED_MDU541_08201",null,null,null,null,"Coincident","18:30:00"]
["ED_MDU541_08202",null,null,"Winter/Summer Peaking",null,"Non-Coincident","Summer"]
["ED_MDU541_08203",null,null,null,null,"Coincident","Winter"]
["ED_MDU541_08204",null,null,"Adjustments - Embedded generation","MW","Non-Coincident",0]
["ED_MDU541_08205",null,null,null,null,"Coincident",0]
["ED_MDU541_08206",null,null,"Weather Corrected MD 10% POE","MW","Non-Coincident",1.769729264699706]
["ED_MDU541_08207",null,null,null,null,"Coincident",1.2497526661730192]
["ED_MDU541_08208",null,null,"Weather Corrected MD 10% POE","MVA","Non-Coincident",1.8628729102102173]
["ED_MDU541_08209",null,null,null,null,"Coincident",1.2497526661730192]
["ED_MDU541_08210",null,null,"Weather Corrected MD 50% POE","MW","Non-Coincident",1.5673185607876428]
["ED_MDU541_08211",null,null,null,null,"Coincident",1.106813674361194]
["ED_MDU541_08212",null,null,"Weather Corrected MD 50% POE","MVA","Non-Coincident",1.6498090113554136]
["ED_MDU541_08213",null,null,null,null,"Coincident",1.106813674361194]
["ED_MDU541_08214",null,"Yamba","Substation Rating","MVA","Non-Coincident",58.300000000000004]
["ED_MDU541_08215",null,null,null,null,"Coincident",63.599999999999994]
["ED_MDU541_08216",null,null,"Raw Adjusted MD","MW","Non-Coincident",10.3734]
["ED_MDU541_08217",null,null,null,null,"Coincident",9.5562000000000005]
["ED_MDU541_08218",null,null,"Raw Adjusted MD","MVA","Non-Coincident",10.373435137889473]
["ED_MDU541_08219",null,null,null,null,"Coincident",9.8113550256832536]
["ED_MDU541_08220",null,null,"Date MD occurred",null,"Non-Coincident","2014-12-30"]
["ED_MDU541_08221",null,null,null,null,"Coincident","2014-07-10"]
["ED_MDU541_08222",null,null,"Half hour time period MD occurred",null,"Non-Coincident","17:30:00"]
["ED_MDU541_08223",null,null,null,null,"Coincident","18:30:00"]
["ED_MDU541_08224",null,null,"Winter/Summer Peaking",null,"Non-Coincident","Summer"]
["ED_MDU541_08225",null,null,null,null,"Coincident","Winter"]
["ED_MDU541_08226",null,null,"Adjustments - Embedded generation","MW","Non-Coincident",0]
["ED_MDU541_08227",null,null,null,null,"Coincident",0]
["ED_MDU541_08228",null,null,"Weather Corrected MD 10% POE","MW","Non-Coincident",9.537194364430837]
["ED_MDU541_08229",null,null,null,null,"Coincident",8.7858693181959602]
["ED_MDU541_08230",null,null,"Weather Corrected MD 10% POE","MVA","Non-Coincident",9.5372266698351851]
["ED_MDU541_08231",null,null,null,null,"Coincident",8.7858693181959602]
["ED_MDU541_08232",null,null,"Weather Corrected MD 50% POE","MW","Non-Coincident",8.5008159782552823]
["ED_MDU541_08233",null,null,null,null,"Coincident",7.8311351776084157]
["ED_MDU541_08234",null,null,"Weather Corrected MD 50% POE","MVA","Non-Coincident",8.5008447731279642]
["ED_MDU541_08235",null,null,null,null,"Coincident",7.8311351776084157]
["ED_MDU541_08236",null,"Yanco 33/11","Substation Rating","MVA","Non-Coincident",5.5]
["ED_MDU541_08237",null,null,null,null,"Coincident",6]
["ED_MDU541_08238",null,null,"Raw Adjusted MD","MW","Non-Coincident",2.2016665935516357]
["ED_MDU541_08239",null,null,null,null,"Coincident",1.2683333158493042]
["ED_MDU541_08240",null,null,"Raw Adjusted MD","MVA","Non-Coincident",2.3645807365630098]
["ED_MDU541_08241",null,null,null,null,"Coincident",1.3355941207124848]
["ED_MDU541_08242",null,null,"Date MD occurred",null,"Non-Coincident","2015-02-08"]
["ED_MDU541_08243",null,null,null,null,"Coincident","2014-07-10"]
["ED_MDU541_08244",null,null,"Half hour time period MD occurred",null,"Non-Coincident","19:00:00"]
["ED_MDU541_08245",null,null,null,null,"Coincident","18:30:00"]
["ED_MDU541_08246",null,null,"Winter/Summer Peaking",null,"Non-Coincident","Summer"]
["ED_MDU541_08247",null,null,null,null,"Coincident","Winter"]
["ED_MDU541_08248",null,null,"Adjustments - Embedded generation","MW","Non-Coincident",0]
["ED_MDU541_08249",null,null,null,null,"Coincident",0]
["ED_MDU541_08250",null,null,"Weather Corrected MD 10% POE","MW","Non-Coincident",2.0377136629180148]
["ED_MDU541_08251",null,null,null,null,"Coincident",1.1738835182447085]
["ED_MDU541_08252",null,null,"Weather Corrected MD 10% POE","MVA","Non-Coincident",2.1884959730412441]
["ED_MDU541_08253",null,null,null,null,"Coincident",1.1738835182447085]
["ED_MDU541_08254",null,null,"Weather Corrected MD 50% POE","MW","Non-Coincident",1.8381216035773646]
["ED_MDU541_08255",null,null,null,null,"Coincident",1.0589027763003307]
["ED_MDU541_08256",null,null,"Weather Corrected MD 50% POE","MVA","Non-Coincident",1.9741349339674257]
["ED_MDU541_08257",null,null,null,null,"Coincident",1.0589027763003307]
["ED_MDU541_08258",null,"Yarrandale","Substation Rating","MVA","Non-Coincident",60.500000000000007]
["ED_MDU541_08259",null,null,null,null,"Coincident",66]
["ED_MDU541_08260",null,null,"Raw Adjusted MD","MW","Non-Coincident",7.7549999999999999]
["ED_MDU541_08261",null,null,null,null,"Coincident",5.79]
["ED_MDU541_08262",null,null,"Raw Adjusted MD","MVA","Non-Coincident",7.7727504784342587]
["ED_MDU541_08263",null,null,null,null,"Coincident",5.9130449008949704]
["ED_MDU541_08264",null,null,"Date MD occurred",null,"Non-Coincident","2014-11-24"]
["ED_MDU541_08265",null,null,null,null,"Coincident","2014-07-10"]
["ED_MDU541_08266",null,null,"Half hour time period MD occurred",null,"Non-Coincident","11:30:00"]
["ED_MDU541_08267",null,null,null,null,"Coincident","18:30:00"]
["ED_MDU541_08268",null,null,"Winter/Summer Peaking",null,"Non-Coincident","Summer"]
["ED_MDU541_08269",null,null,null,null,"Coincident","Winter"]
["ED_MDU541_08270",null,null,"Adjustments - Embedded generation","MW","Non-Coincident",0]
["ED_MDU541_08271",null,null,null,null,"Coincident",0]
["ED_MDU541_08272",null,null,"Weather Corrected MD 10% POE","MW","Non-Coincident",8.6265472683324642]
["ED_MDU541_08273",null,null,null,null,"Coincident",6.4407103396060563]
["ED_MDU541_08274",null,null,"Weather Corrected MD 10% POE","MVA","Non-Coincident",8.6462926379325484]
["ED_MDU541_08275",null,null,null,null,"Coincident",6.4407103396060563]
["ED_MDU541_08276",null,null,"Weather Corrected MD 50% POE","MW","Non-Coincident",7.2833709373507949]
["ED_MDU541_08277",null,null,null,null,"Coincident",5.4378746263392781]
["ED_MDU541_08278",null,null,"Weather Corrected MD 50% POE","MVA","Non-Coincident",7.3000419004394024]
["ED_MDU541_08279",null,null,null,null,"Coincident",5.4378746263392781]
["ED_MDU541_08280",null,"Yass","Substation Rating","MVA","Non-Coincident",24]
["ED_MDU541_08281",null,null,null,null,"Coincident",24]
["ED_MDU541_08282",null,null,"Raw Adjusted MD","MW","Non-Coincident",10.668799999999999]
["ED_MDU541_08283",null,null,null,null,"Coincident",10.150399999999999]
["ED_MDU541_08284",null,null,"Raw Adjusted MD","MVA","Non-Coincident",10.91610010947133]
["ED_MDU541_08285",null,null,null,null,"Coincident",10.426970198480475]
["ED_MDU541_08286",null,null,"Date MD occurred",null,"Non-Coincident","2014-06-24"]
["ED_MDU541_08287",null,null,null,null,"Coincident","2014-07-10"]
["ED_MDU541_08288",null,null,"Half hour time period MD occurred",null,"Non-Coincident","18:30:00"]
["ED_MDU541_08289",null,null,null,null,"Coincident","18:30:00"]
["ED_MDU541_08290",null,null,"Winter/Summer Peaking",null,"Non-Coincident","Winter"]
["ED_MDU541_08291",null,null,null,null,"Coincident","Winter"]
["ED_MDU541_08292",null,null,"Adjustments - Embedded generation","MW","Non-Coincident",0]
["ED_MDU541_08293",null,null,null,null,"Coincident",0]
["ED_MDU541_08294",null,null,"Weather Corrected MD 10% POE","MW","Non-Coincident",11.04538753769484]
["ED_MDU541_08295",null,null,null,null,"Coincident",10.508689043061798]
["ED_MDU541_08296",null,null,"Weather Corrected MD 10% POE","MVA","Non-Coincident",11.301416851884364]
["ED_MDU541_08297",null,null,null,null,"Coincident",10.508689043061798]
["ED_MDU541_08298",null,null,"Weather Corrected MD 50% POE","MW","Non-Coincident",10.483481039701214]
["ED_MDU541_08299",null,null,null,null,"Coincident",9.9740857402316294]
["ED_MDU541_08300",null,null,"Weather Corrected MD 50% POE","MVA","Non-Coincident",10.726485502129858]
["ED_MDU541_08301",null,null,null,null,"Coincident",9.9740857402316294]
["ED_MDU541_08302",null,"Yenda","Substation Rating","MVA","Non-Coincident",20.900000000000002]
["ED_MDU541_08303",null,null,null,null,"Coincident",22.8]
["ED_MDU541_08304",null,null,"Raw Adjusted MD","MW","Non-Coincident",6.8600001335144043]
["ED_MDU541_08305",null,null,null,null,"Coincident",2.7383332252502441]
["ED_MDU541_08306",null,null,"Raw Adjusted MD","MVA","Non-Coincident",6.8664263504705314]
["ED_MDU541_08307",null,null,null,null,"Coincident",2.8784089173796641]
["ED_MDU541_08308",null,null,"Date MD occurred",null,"Non-Coincident","2015-01-03"]
["ED_MDU541_08309",null,null,null,null,"Coincident","2014-07-10"]
["ED_MDU541_08310",null,null,"Half hour time period MD occurred",null,"Non-Coincident","20:30:00"]
["ED_MDU541_08311",null,null,null,null,"Coincident","18:30:00"]
["ED_MDU541_08312",null,null,"Winter/Summer Peaking",null,"Non-Coincident","Summer"]
["ED_MDU541_08313",null,null,null,null,"Coincident","Winter"]
["ED_MDU541_08314",null,null,"Adjustments - Embedded generation","MW","Non-Coincident",0]
["ED_MDU541_08315",null,null,null,null,"Coincident",0]
["ED_MDU541_08316",null,null,"Weather Corrected MD 10% POE","MW","Non-Coincident",5.6482091401311925]
["ED_MDU541_08317",null,null,null,null,"Coincident",2.2546178499357721]
["ED_MDU541_08318",null,null,"Weather Corrected MD 10% POE","MVA","Non-Coincident",5.6535001921197683]
["ED_MDU541_08319",null,null,null,null,"Coincident",2.2546178499357721]
["ED_MDU541_08320",null,null,"Weather Corrected MD 50% POE","MW","Non-Coincident",4.9109515317405688]
["ED_MDU541_08321",null,null,null,null,"Coincident",1.9603238316657887]
["ED_MDU541_08322",null,null,"Weather Corrected MD 50% POE","MVA","Non-Coincident",4.9155519456457828]
["ED_MDU541_08323",null,null,null,null,"Coincident",1.9603238316657887]
["ED_MDU541_08324",null,"Young","Substation Rating","MVA","Non-Coincident",66]
["ED_MDU541_08325",null,null,null,null,"Coincident",72]
["ED_MDU541_08326",null,null,"Raw Adjusted MD","MW","Non-Coincident",14.231999999999999]
["ED_MDU541_08327",null,null,null,null,"Coincident",13.182]
["ED_MDU541_08328",null,null,"Raw Adjusted MD","MVA","Non-Coincident",15.583546707986599]
["ED_MDU541_08329",null,null,null,null,"Coincident",13.189678692068279]
["ED_MDU541_08330",null,null,"Date MD occurred",null,"Non-Coincident","2015-01-09"]
["ED_MDU541_08331",null,null,null,null,"Coincident","2014-07-10"]
["ED_MDU541_08332",null,null,"Half hour time period MD occurred",null,"Non-Coincident","14:30:00"]
["ED_MDU541_08333",null,null,null,null,"Coincident","18:30:00"]
["ED_MDU541_08334",null,null,"Winter/Summer Peaking",null,"Non-Coincident","Summer"]
["ED_MDU541_08335",null,null,null,null,"Coincident","Winter"]
["ED_MDU541_08336",null,null,"Adjustments - Embedded generation","MW","Non-Coincident",0]
["ED_MDU541_08337",null,null,null,null,"Coincident",0]
["ED_MDU541_08338",null,null,"Weather Corrected MD 10% POE","MW","Non-Coincident",16.310368412123495]
["ED_MDU541_08339",null,null,null,null,"Coincident",15.107031788126188]
["ED_MDU541_08340",null,null,"Weather Corrected MD 10% POE","MVA","Non-Coincident",17.859288081421845]
["ED_MDU541_08341",null,null,null,null,"Coincident",15.107031788126188]
["ED_MDU541_08342",null,null,"Weather Corrected MD 50% POE","MW","Non-Coincident",15.353456882690988]
["ED_MDU541_08343",null,null,null,null,"Coincident",14.220718706269858]
["ED_MDU541_08344",null,null,"Weather Corrected MD 50% POE","MVA","Non-Coincident",16.811503123979296]
["ED_MDU541_08345",null,null,null,null,"Coincident",14.220718706269858]
["ED_MDU541_08346",null,"<Enter substation name>","Substation Rating","MVA","Non-Coincident"]
["ED_MDU541_08347",null,null,null,null,"Coincident"]
["ED_MDU541_08348",null,null,"Raw Adjusted MD","MW","Non-Coincident"]
["ED_MDU541_08349",null,null,null,null,"Coincident"]
["ED_MDU541_08350",null,null,"Raw Adjusted MD","MVA","Non-Coincident"]
["ED_MDU541_08351",null,null,null,null,"Coincident"]
["ED_MDU541_08352",null,null,"Date MD occurred",null,"Non-Coincident"]
["ED_MDU541_08353",null,null,null,null,"Coincident"]
["ED_MDU541_08354",null,null,"Half hour time period MD occurred",null,"Non-Coincident"]
["ED_MDU541_08355",null,null,null,null,"Coincident"]
["ED_MDU541_08356",null,null,"Winter/Summer Peaking",null,"Non-Coincident"]
["ED_MDU541_08357",null,null,null,null,"Coincident"]
["ED_MDU541_08358",null,null,"Adjustments - Embedded generation","MW","Non-Coincident"]
["ED_MDU541_08359",null,null,null,null,"Coincident"]
["ED_MDU541_08360",null,null,"Weather Corrected MD 10% POE","MW","Non-Coincident"]
["ED_MDU541_08361",null,null,null,null,"Coincident"]
["ED_MDU541_08362",null,null,"Weather Corrected MD 10% POE","MVA","Non-Coincident"]
["ED_MDU541_08363",null,null,null,null,"Coincident"]
["ED_MDU541_08364",null,null,"Weather Corrected MD 50% POE","MW","Non-Coincident"]
["ED_MDU541_08365",null,null,null,null,"Coincident"]
["ED_MDU541_08366",null,null,"Weather Corrected MD 50% POE","MVA","Non-Coincident"]
["ED_MDU541_08367",null,null,null,null,"Coincident"]
["ED_MDU541_08368",null,"<Enter substation name>","Substation Rating","MVA","Non-Coincident"]
["ED_MDU541_08369",null,null,null,null,"Coincident"]
["ED_MDU541_08370",null,null,"Raw Adjusted MD","MW","Non-Coincident"]
["ED_MDU541_08371",null,null,null,null,"Coincident"]
["ED_MDU541_08372",null,null,"Raw Adjusted MD","MVA","Non-Coincident"]
["ED_MDU541_08373",null,null,null,null,"Coincident"]
["ED_MDU541_08374",null,null,"Date MD occurred",null,"Non-Coincident"]
["ED_MDU541_08375",null,null,null,null,"Coincident"]
["ED_MDU541_08376",null,null,"Half hour time period MD occurred",null,"Non-Coincident"]
["ED_MDU541_08377",null,null,null,null,"Coincident"]
["ED_MDU541_08378",null,null,"Winter/Summer Peaking",null,"Non-Coincident"]
["ED_MDU541_08379",null,null,null,null,"Coincident"]
["ED_MDU541_08380",null,null,"Adjustments - Embedded generation","MW","Non-Coincident"]
["ED_MDU541_08381",null,null,null,null,"Coincident"]
["ED_MDU541_08382",null,null,"Weather Corrected MD 10% POE","MW","Non-Coincident"]
["ED_MDU541_08383",null,null,null,null,"Coincident"]
["ED_MDU541_08384",null,null,"Weather Corrected MD 10% POE","MVA","Non-Coincident"]
["ED_MDU541_08385",null,null,null,null,"Coincident"]
["ED_MDU541_08386",null,null,"Weather Corrected MD 50% POE","MW","Non-Coincident"]
["ED_MDU541_08387",null,null,null,null,"Coincident"]
["ED_MDU541_08388",null,null,"Weather Corrected MD 50% POE","MVA","Non-Coincident"]
["ED_MDU541_08389",null,null,null,null,"Coincident"]
["ED_MDU541_08390",null,"<Enter substation name>","Substation Rating","MVA","Non-Coincident"]
["ED_MDU541_08391",null,null,null,null,"Coincident"]
["ED_MDU541_08392",null,null,"Raw Adjusted MD","MW","Non-Coincident"]
["ED_MDU541_08393",null,null,null,null,"Coincident"]
["ED_MDU541_08394",null,null,"Raw Adjusted MD","MVA","Non-Coincident"]
["ED_MDU541_08395",null,null,null,null,"Coincident"]
["ED_MDU541_08396",null,null,"Date MD occurred",null,"Non-Coincident"]
["ED_MDU541_08397",null,null,null,null,"Coincident"]
["ED_MDU541_08398",null,null,"Half hour time period MD occurred",null,"Non-Coincident"]
["ED_MDU541_08399",null,null,null,null,"Coincident"]
["ED_MDU541_08400",null,null,"Winter/Summer Peaking",null,"Non-Coincident"]
["ED_MDU541_08401",null,null,null,null,"Coincident"]
["ED_MDU541_08402",null,null,"Adjustments - Embedded generation","MW","Non-Coincident"]
["ED_MDU541_08403",null,null,null,null,"Coincident"]
["ED_MDU541_08404",null,null,"Weather Corrected MD 10% POE","MW","Non-Coincident"]
["ED_MDU541_08405",null,null,null,null,"Coincident"]
["ED_MDU541_08406",null,null,"Weather Corrected MD 10% POE","MVA","Non-Coincident"]
["ED_MDU541_08407",null,null,null,null,"Coincident"]
["ED_MDU541_08408",null,null,"Weather Corrected MD 50% POE","MW","Non-Coincident"]
["ED_MDU541_08409",null,null,null,null,"Coincident"]
["ED_MDU541_08410",null,null,"Weather Corrected MD 50% POE","MVA","Non-Coincident"]
["ED_MDU541_08411",null,null,null,null,"Coincident"]
["ED_MDU541_08412",null,"<Enter substation name>","Substation Rating","MVA","Non-Coincident"]
["ED_MDU541_08413",null,null,null,null,"Coincident"]
["ED_MDU541_08414",null,null,"Raw Adjusted MD","MW","Non-Coincident"]
["ED_MDU541_08415",null,null,null,null,"Coincident"]
["ED_MDU541_08416",null,null,"Raw Adjusted MD","MVA","Non-Coincident"]
["ED_MDU541_08417",null,null,null,null,"Coincident"]
["ED_MDU541_08418",null,null,"Date MD occurred",null,"Non-Coincident"]
["ED_MDU541_08419",null,null,null,null,"Coincident"]
["ED_MDU541_08420",null,null,"Half hour time period MD occurred",null,"Non-Coincident"]
["ED_MDU541_08421",null,null,null,null,"Coincident"]
["ED_MDU541_08422",null,null,"Winter/Summer Peaking",null,"Non-Coincident"]
["ED_MDU541_08423",null,null,null,null,"Coincident"]
["ED_MDU541_08424",null,null,"Adjustments - Embedded generation","MW","Non-Coincident"]
["ED_MDU541_08425",null,null,null,null,"Coincident"]
["ED_MDU541_08426",null,null,"Weather Corrected MD 10% POE","MW","Non-Coincident"]
["ED_MDU541_08427",null,null,null,null,"Coincident"]
["ED_MDU541_08428",null,null,"Weather Corrected MD 10% POE","MVA","Non-Coincident"]
["ED_MDU541_08429",null,null,null,null,"Coincident"]
["ED_MDU541_08430",null,null,"Weather Corrected MD 50% POE","MW","Non-Coincident"]
["ED_MDU541_08431",null,null,null,null,"Coincident"]
["ED_MDU541_08432",null,null,"Weather Corrected MD 50% POE","MVA","Non-Coincident"]
["ED_MDU541_08433",null,null,null,null,"Coincident"]
["ED_MDU541_08434",null,"<Enter substation name>","Substation Rating","MVA","Non-Coincident"]
["ED_MDU541_08435",null,null,null,null,"Coincident"]
["ED_MDU541_08436",null,null,"Raw Adjusted MD","MW","Non-Coincident"]
["ED_MDU541_08437",null,null,null,null,"Coincident"]
["ED_MDU541_08438",null,null,"Raw Adjusted MD","MVA","Non-Coincident"]
["ED_MDU541_08439",null,null,null,null,"Coincident"]
["ED_MDU541_08440",null,null,"Date MD occurred",null,"Non-Coincident"]
["ED_MDU541_08441",null,null,null,null,"Coincident"]
["ED_MDU541_08442",null,null,"Half hour time period MD occurred",null,"Non-Coincident"]
["ED_MDU541_08443",null,null,null,null,"Coincident"]
["ED_MDU541_08444",null,null,"Winter/Summer Peaking",null,"Non-Coincident"]
["ED_MDU541_08445",null,null,null,null,"Coincident"]
["ED_MDU541_08446",null,null,"Adjustments - Embedded generation","MW","Non-Coincident"]
["ED_MDU541_08447",null,null,null,null,"Coincident"]
["ED_MDU541_08448",null,null,"Weather Corrected MD 10% POE","MW","Non-Coincident"]
["ED_MDU541_08449",null,null,null,null,"Coincident"]
["ED_MDU541_08450",null,null,"Weather Corrected MD 10% POE","MVA","Non-Coincident"]
["ED_MDU541_08451",null,null,null,null,"Coincident"]
["ED_MDU541_08452",null,null,"Weather Corrected MD 50% POE","MW","Non-Coincident"]
["ED_MDU541_08453",null,null,null,null,"Coincident"]
["ED_MDU541_08454",null,null,"Weather Corrected MD 50% POE","MVA","Non-Coincident"]
["ED_MDU541_08455",null,null,null,null,"Coincident"]
["ED_MDU541_08456",null,"<Enter substation name>","Substation Rating","MVA","Non-Coincident"]
["ED_MDU541_08457",null,null,null,null,"Coincident"]
["ED_MDU541_08458",null,null,"Raw Adjusted MD","MW","Non-Coincident"]
["ED_MDU541_08459",null,null,null,null,"Coincident"]
["ED_MDU541_08460",null,null,"Raw Adjusted MD","MVA","Non-Coincident"]
["ED_MDU541_08461",null,null,null,null,"Coincident"]
["ED_MDU541_08462",null,null,"Date MD occurred",null,"Non-Coincident"]
["ED_MDU541_08463",null,null,null,null,"Coincident"]
["ED_MDU541_08464",null,null,"Half hour time period MD occurred",null,"Non-Coincident"]
["ED_MDU541_08465",null,null,null,null,"Coincident"]
["ED_MDU541_08466",null,null,"Winter/Summer Peaking",null,"Non-Coincident"]
["ED_MDU541_08467",null,null,null,null,"Coincident"]
["ED_MDU541_08468",null,null,"Adjustments - Embedded generation","MW","Non-Coincident"]
["ED_MDU541_08469",null,null,null,null,"Coincident"]
["ED_MDU541_08470",null,null,"Weather Corrected MD 10% POE","MW","Non-Coincident"]
["ED_MDU541_08471",null,null,null,null,"Coincident"]
["ED_MDU541_08472",null,null,"Weather Corrected MD 10% POE","MVA","Non-Coincident"]
["ED_MDU541_08473",null,null,null,null,"Coincident"]
["ED_MDU541_08474",null,null,"Weather Corrected MD 50% POE","MW","Non-Coincident"]
["ED_MDU541_08475",null,null,null,null,"Coincident"]
["ED_MDU541_08476",null,null,"Weather Corrected MD 50% POE","MVA","Non-Coincident"]
["ED_MDU541_08477",null,null,null,null,"Coincident"]
["ED_MDU541_08478",null,"<Enter substation name>","Substation Rating","MVA","Non-Coincident"]
["ED_MDU541_08479",null,null,null,null,"Coincident"]
["ED_MDU541_08480",null,null,"Raw Adjusted MD","MW","Non-Coincident"]
["ED_MDU541_08481",null,null,null,null,"Coincident"]
["ED_MDU541_08482",null,null,"Raw Adjusted MD","MVA","Non-Coincident"]
["ED_MDU541_08483",null,null,null,null,"Coincident"]
["ED_MDU541_08484",null,null,"Date MD occurred",null,"Non-Coincident"]
["ED_MDU541_08485",null,null,null,null,"Coincident"]
["ED_MDU541_08486",null,null,"Half hour time period MD occurred",null,"Non-Coincident"]
["ED_MDU541_08487",null,null,null,null,"Coincident"]
["ED_MDU541_08488",null,null,"Winter/Summer Peaking",null,"Non-Coincident"]
["ED_MDU541_08489",null,null,null,null,"Coincident"]
["ED_MDU541_08490",null,null,"Adjustments - Embedded generation","MW","Non-Coincident"]
["ED_MDU541_08491",null,null,null,null,"Coincident"]
["ED_MDU541_08492",null,null,"Weather Corrected MD 10% POE","MW","Non-Coincident"]
["ED_MDU541_08493",null,null,null,null,"Coincident"]
["ED_MDU541_08494",null,null,"Weather Corrected MD 10% POE","MVA","Non-Coincident"]
["ED_MDU541_08495",null,null,null,null,"Coincident"]
["ED_MDU541_08496",null,null,"Weather Corrected MD 50% POE","MW","Non-Coincident"]
["ED_MDU541_08497",null,null,null,null,"Coincident"]
["ED_MDU541_08498",null,null,"Weather Corrected MD 50% POE","MVA","Non-Coincident"]
["ED_MDU541_08499",null,null,null,null,"Coincident"]
["ED_MDU541_08500",null,"<Enter substation name>","Substation Rating","MVA","Non-Coincident"]
["ED_MDU541_08501",null,null,null,null,"Coincident"]
["ED_MDU541_08502",null,null,"Raw Adjusted MD","MW","Non-Coincident"]
["ED_MDU541_08503",null,null,null,null,"Coincident"]
["ED_MDU541_08504",null,null,"Raw Adjusted MD","MVA","Non-Coincident"]
["ED_MDU541_08505",null,null,null,null,"Coincident"]
["ED_MDU541_08506",null,null,"Date MD occurred",null,"Non-Coincident"]
["ED_MDU541_08507",null,null,null,null,"Coincident"]
["ED_MDU541_08508",null,null,"Half hour time period MD occurred",null,"Non-Coincident"]
["ED_MDU541_08509",null,null,null,null,"Coincident"]
["ED_MDU541_08510",null,null,"Winter/Summer Peaking",null,"Non-Coincident"]
["ED_MDU541_08511",null,null,null,null,"Coincident"]
["ED_MDU541_08512",null,null,"Adjustments - Embedded generation","MW","Non-Coincident"]
["ED_MDU541_08513",null,null,null,null,"Coincident"]
["ED_MDU541_08514",null,null,"Weather Corrected MD 10% POE","MW","Non-Coincident"]
["ED_MDU541_08515",null,null,null,null,"Coincident"]
["ED_MDU541_08516",null,null,"Weather Corrected MD 10% POE","MVA","Non-Coincident"]
["ED_MDU541_08517",null,null,null,null,"Coincident"]
["ED_MDU541_08518",null,null,"Weather Corrected MD 50% POE","MW","Non-Coincident"]
["ED_MDU541_08519",null,null,null,null,"Coincident"]
["ED_MDU541_08520",null,null,"Weather Corrected MD 50% POE","MVA","Non-Coincident"]
["ED_MDU541_08521",null,null,null,null,"Coincident"]
["ED_MDU541_08522",null,"<Enter substation name>","Substation Rating","MVA","Non-Coincident"]
["ED_MDU541_08523",null,null,null,null,"Coincident"]
["ED_MDU541_08524",null,null,"Raw Adjusted MD","MW","Non-Coincident"]
["ED_MDU541_08525",null,null,null,null,"Coincident"]
["ED_MDU541_08526",null,null,"Raw Adjusted MD","MVA","Non-Coincident"]
["ED_MDU541_08527",null,null,null,null,"Coincident"]
["ED_MDU541_08528",null,null,"Date MD occurred",null,"Non-Coincident"]
["ED_MDU541_08529",null,null,null,null,"Coincident"]
["ED_MDU541_08530",null,null,"Half hour time period MD occurred",null,"Non-Coincident"]
["ED_MDU541_08531",null,null,null,null,"Coincident"]
["ED_MDU541_08532",null,null,"Winter/Summer Peaking",null,"Non-Coincident"]
["ED_MDU541_08533",null,null,null,null,"Coincident"]
["ED_MDU541_08534",null,null,"Adjustments - Embedded generation","MW","Non-Coincident"]
["ED_MDU541_08535",null,null,null,null,"Coincident"]
["ED_MDU541_08536",null,null,"Weather Corrected MD 10% POE","MW","Non-Coincident"]
["ED_MDU541_08537",null,null,null,null,"Coincident"]
["ED_MDU541_08538",null,null,"Weather Corrected MD 10% POE","MVA","Non-Coincident"]
["ED_MDU541_08539",null,null,null,null,"Coincident"]
["ED_MDU541_08540",null,null,"Weather Corrected MD 50% POE","MW","Non-Coincident"]
["ED_MDU541_08541",null,null,null,null,"Coincident"]
["ED_MDU541_08542",null,null,"Weather Corrected MD 50% POE","MVA","Non-Coincident"]
["ED_MDU541_08543",null,null,null,null,"Coincident"]
["ED_MDU541_08544",null,"<Enter substation name>","Substation Rating","MVA","Non-Coincident"]
["ED_MDU541_08545",null,null,null,null,"Coincident"]
["ED_MDU541_08546",null,null,"Raw Adjusted MD","MW","Non-Coincident"]
["ED_MDU541_08547",null,null,null,null,"Coincident"]
["ED_MDU541_08548",null,null,"Raw Adjusted MD","MVA","Non-Coincident"]
["ED_MDU541_08549",null,null,null,null,"Coincident"]
["ED_MDU541_08550",null,null,"Date MD occurred",null,"Non-Coincident"]
["ED_MDU541_08551",null,null,null,null,"Coincident"]
["ED_MDU541_08552",null,null,"Half hour time period MD occurred",null,"Non-Coincident"]
["ED_MDU541_08553",null,null,null,null,"Coincident"]
["ED_MDU541_08554",null,null,"Winter/Summer Peaking",null,"Non-Coincident"]
["ED_MDU541_08555",null,null,null,null,"Coincident"]
["ED_MDU541_08556",null,null,"Adjustments - Embedded generation","MW","Non-Coincident"]
["ED_MDU541_08557",null,null,null,null,"Coincident"]
["ED_MDU541_08558",null,null,"Weather Corrected MD 10% POE","MW","Non-Coincident"]
["ED_MDU541_08559",null,null,null,null,"Coincident"]
["ED_MDU541_08560",null,null,"Weather Corrected MD 10% POE","MVA","Non-Coincident"]
["ED_MDU541_08561",null,null,null,null,"Coincident"]
["ED_MDU541_08562",null,null,"Weather Corrected MD 50% POE","MW","Non-Coincident"]
["ED_MDU541_08563",null,null,null,null,"Coincident"]
["ED_MDU541_08564",null,null,"Weather Corrected MD 50% POE","MVA","Non-Coincident"]
["ED_MDU541_08565",null,null,null,null,"Coincident"]
["ED_MDU541_08566",null,"<Enter substation name>","Substation Rating","MVA","Non-Coincident"]
["ED_MDU541_08567",null,null,null,null,"Coincident"]
["ED_MDU541_08568",null,null,"Raw Adjusted MD","MW","Non-Coincident"]
["ED_MDU541_08569",null,null,null,null,"Coincident"]
["ED_MDU541_08570",null,null,"Raw Adjusted MD","MVA","Non-Coincident"]
["ED_MDU541_08571",null,null,null,null,"Coincident"]
["ED_MDU541_08572",null,null,"Date MD occurred",null,"Non-Coincident"]
["ED_MDU541_08573",null,null,null,null,"Coincident"]
["ED_MDU541_08574",null,null,"Half hour time period MD occurred",null,"Non-Coincident"]
["ED_MDU541_08575",null,null,null,null,"Coincident"]
["ED_MDU541_08576",null,null,"Winter/Summer Peaking",null,"Non-Coincident"]
["ED_MDU541_08577",null,null,null,null,"Coincident"]
["ED_MDU541_08578",null,null,"Adjustments - Embedded generation","MW","Non-Coincident"]
["ED_MDU541_08579",null,null,null,null,"Coincident"]
["ED_MDU541_08580",null,null,"Weather Corrected MD 10% POE","MW","Non-Coincident"]
["ED_MDU541_08581",null,null,null,null,"Coincident"]
["ED_MDU541_08582",null,null,"Weather Corrected MD 10% POE","MVA","Non-Coincident"]
["ED_MDU541_08583",null,null,null,null,"Coincident"]
["ED_MDU541_08584",null,null,"Weather Corrected MD 50% POE","MW","Non-Coincident"]
["ED_MDU541_08585",null,null,null,null,"Coincident"]
["ED_MDU541_08586",null,null,"Weather Corrected MD 50% POE","MVA","Non-Coincident"]
["ED_MDU541_08587",null,null,null,null,"Coincident"]
["ED_MDU541_08588",null,"<Enter substation name>","Substation Rating","MVA","Non-Coincident"]
["ED_MDU541_08589",null,null,null,null,"Coincident"]
["ED_MDU541_08590",null,null,"Raw Adjusted MD","MW","Non-Coincident"]
["ED_MDU541_08591",null,null,null,null,"Coincident"]
["ED_MDU541_08592",null,null,"Raw Adjusted MD","MVA","Non-Coincident"]
["ED_MDU541_08593",null,null,null,null,"Coincident"]
["ED_MDU541_08594",null,null,"Date MD occurred",null,"Non-Coincident"]
["ED_MDU541_08595",null,null,null,null,"Coincident"]
["ED_MDU541_08596",null,null,"Half hour time period MD occurred",null,"Non-Coincident"]
["ED_MDU541_08597",null,null,null,null,"Coincident"]
["ED_MDU541_08598",null,null,"Winter/Summer Peaking",null,"Non-Coincident"]
["ED_MDU541_08599",null,null,null,null,"Coincident"]
["ED_MDU541_08600",null,null,"Adjustments - Embedded generation","MW","Non-Coincident"]
["ED_MDU541_08601",null,null,null,null,"Coincident"]
["ED_MDU541_08602",null,null,"Weather Corrected MD 10% POE","MW","Non-Coincident"]
["ED_MDU541_08603",null,null,null,null,"Coincident"]
["ED_MDU541_08604",null,null,"Weather Corrected MD 10% POE","MVA","Non-Coincident"]
["ED_MDU541_08605",null,null,null,null,"Coincident"]
["ED_MDU541_08606",null,null,"Weather Corrected MD 50% POE","MW","Non-Coincident"]
["ED_MDU541_08607",null,null,null,null,"Coincident"]
["ED_MDU541_08608",null,null,"Weather Corrected MD 50% POE","MVA","Non-Coincident"]
["ED_MDU541_08609",null,null,null,null,"Coincident"]
["ED_MDU541_08610",null,"<Enter substation name>","Substation Rating","MVA","Non-Coincident"]
["ED_MDU541_08611",null,null,null,null,"Coincident"]
["ED_MDU541_08612",null,null,"Raw Adjusted MD","MW","Non-Coincident"]
["ED_MDU541_08613",null,null,null,null,"Coincident"]
["ED_MDU541_08614",null,null,"Raw Adjusted MD","MVA","Non-Coincident"]
["ED_MDU541_08615",null,null,null,null,"Coincident"]
["ED_MDU541_08616",null,null,"Date MD occurred",null,"Non-Coincident"]
["ED_MDU541_08617",null,null,null,null,"Coincident"]
["ED_MDU541_08618",null,null,"Half hour time period MD occurred",null,"Non-Coincident"]
["ED_MDU541_08619",null,null,null,null,"Coincident"]
["ED_MDU541_08620",null,null,"Winter/Summer Peaking",null,"Non-Coincident"]
["ED_MDU541_08621",null,null,null,null,"Coincident"]
["ED_MDU541_08622",null,null,"Adjustments - Embedded generation","MW","Non-Coincident"]
["ED_MDU541_08623",null,null,null,null,"Coincident"]
["ED_MDU541_08624",null,null,"Weather Corrected MD 10% POE","MW","Non-Coincident"]
["ED_MDU541_08625",null,null,null,null,"Coincident"]
["ED_MDU541_08626",null,null,"Weather Corrected MD 10% POE","MVA","Non-Coincident"]
["ED_MDU541_08627",null,null,null,null,"Coincident"]
["ED_MDU541_08628",null,null,"Weather Corrected MD 50% POE","MW","Non-Coincident"]
["ED_MDU541_08629",null,null,null,null,"Coincident"]
["ED_MDU541_08630",null,null,"Weather Corrected MD 50% POE","MVA","Non-Coincident"]
["ED_MDU541_08631",null,null,null,null,"Coincident"]
["ED_MDU541_08632",null,"<Enter substation name>","Substation Rating","MVA","Non-Coincident"]
["ED_MDU541_08633",null,null,null,null,"Coincident"]
["ED_MDU541_08634",null,null,"Raw Adjusted MD","MW","Non-Coincident"]
["ED_MDU541_08635",null,null,null,null,"Coincident"]
["ED_MDU541_08636",null,null,"Raw Adjusted MD","MVA","Non-Coincident"]
["ED_MDU541_08637",null,null,null,null,"Coincident"]
["ED_MDU541_08638",null,null,"Date MD occurred",null,"Non-Coincident"]
["ED_MDU541_08639",null,null,null,null,"Coincident"]
["ED_MDU541_08640",null,null,"Half hour time period MD occurred",null,"Non-Coincident"]
["ED_MDU541_08641",null,null,null,null,"Coincident"]
["ED_MDU541_08642",null,null,"Winter/Summer Peaking",null,"Non-Coincident"]
["ED_MDU541_08643",null,null,null,null,"Coincident"]
["ED_MDU541_08644",null,null,"Adjustments - Embedded generation","MW","Non-Coincident"]
["ED_MDU541_08645",null,null,null,null,"Coincident"]
["ED_MDU541_08646",null,null,"Weather Corrected MD 10% POE","MW","Non-Coincident"]
["ED_MDU541_08647",null,null,null,null,"Coincident"]
["ED_MDU541_08648",null,null,"Weather Corrected MD 10% POE","MVA","Non-Coincident"]
["ED_MDU541_08649",null,null,null,null,"Coincident"]
["ED_MDU541_08650",null,null,"Weather Corrected MD 50% POE","MW","Non-Coincident"]
["ED_MDU541_08651",null,null,null,null,"Coincident"]
["ED_MDU541_08652",null,null,"Weather Corrected MD 50% POE","MVA","Non-Coincident"]
["ED_MDU541_08653",null,null,null,null,"Coincident"]
["ED_MDU541_08654",null,"<Enter substation name>","Substation Rating","MVA","Non-Coincident"]
["ED_MDU541_08655",null,null,null,null,"Coincident"]
["ED_MDU541_08656",null,null,"Raw Adjusted MD","MW","Non-Coincident"]
["ED_MDU541_08657",null,null,null,null,"Coincident"]
["ED_MDU541_08658",null,null,"Raw Adjusted MD","MVA","Non-Coincident"]
["ED_MDU541_08659",null,null,null,null,"Coincident"]
["ED_MDU541_08660",null,null,"Date MD occurred",null,"Non-Coincident"]
["ED_MDU541_08661",null,null,null,null,"Coincident"]
["ED_MDU541_08662",null,null,"Half hour time period MD occurred",null,"Non-Coincident"]
["ED_MDU541_08663",null,null,null,null,"Coincident"]
["ED_MDU541_08664",null,null,"Winter/Summer Peaking",null,"Non-Coincident"]
["ED_MDU541_08665",null,null,null,null,"Coincident"]
["ED_MDU541_08666",null,null,"Adjustments - Embedded generation","MW","Non-Coincident"]
["ED_MDU541_08667",null,null,null,null,"Coincident"]
["ED_MDU541_08668",null,null,"Weather Corrected MD 10% POE","MW","Non-Coincident"]
["ED_MDU541_08669",null,null,null,null,"Coincident"]
["ED_MDU541_08670",null,null,"Weather Corrected MD 10% POE","MVA","Non-Coincident"]
["ED_MDU541_08671",null,null,null,null,"Coincident"]
["ED_MDU541_08672",null,null,"Weather Corrected MD 50% POE","MW","Non-Coincident"]
["ED_MDU541_08673",null,null,null,null,"Coincident"]
["ED_MDU541_08674",null,null,"Weather Corrected MD 50% POE","MVA","Non-Coincident"]
["ED_MDU541_08675",null,null,null,null,"Coincident"]
["ED_MDU541_08676",null,"<Enter substation name>","Substation Rating","MVA","Non-Coincident"]
["ED_MDU541_08677",null,null,null,null,"Coincident"]
["ED_MDU541_08678",null,null,"Raw Adjusted MD","MW","Non-Coincident"]
["ED_MDU541_08679",null,null,null,null,"Coincident"]
["ED_MDU541_08680",null,null,"Raw Adjusted MD","MVA","Non-Coincident"]
["ED_MDU541_08681",null,null,null,null,"Coincident"]
["ED_MDU541_08682",null,null,"Date MD occurred",null,"Non-Coincident"]
["ED_MDU541_08683",null,null,null,null,"Coincident"]
["ED_MDU541_08684",null,null,"Half hour time period MD occurred",null,"Non-Coincident"]
["ED_MDU541_08685",null,null,null,null,"Coincident"]
["ED_MDU541_08686",null,null,"Winter/Summer Peaking",null,"Non-Coincident"]
["ED_MDU541_08687",null,null,null,null,"Coincident"]
["ED_MDU541_08688",null,null,"Adjustments - Embedded generation","MW","Non-Coincident"]
["ED_MDU541_08689",null,null,null,null,"Coincident"]
["ED_MDU541_08690",null,null,"Weather Corrected MD 10% POE","MW","Non-Coincident"]
["ED_MDU541_08691",null,null,null,null,"Coincident"]
["ED_MDU541_08692",null,null,"Weather Corrected MD 10% POE","MVA","Non-Coincident"]
["ED_MDU541_08693",null,null,null,null,"Coincident"]
["ED_MDU541_08694",null,null,"Weather Corrected MD 50% POE","MW","Non-Coincident"]
["ED_MDU541_08695",null,null,null,null,"Coincident"]
["ED_MDU541_08696",null,null,"Weather Corrected MD 50% POE","MVA","Non-Coincident"]
["ED_MDU541_08697",null,null,null,null,"Coincident"]
["ED_MDU541_08698",null,"<Enter substation name>","Substation Rating","MVA","Non-Coincident"]
["ED_MDU541_08699",null,null,null,null,"Coincident"]
["ED_MDU541_08700",null,null,"Raw Adjusted MD","MW","Non-Coincident"]
["ED_MDU541_08701",null,null,null,null,"Coincident"]
["ED_MDU541_08702",null,null,"Raw Adjusted MD","MVA","Non-Coincident"]
["ED_MDU541_08703",null,null,null,null,"Coincident"]
["ED_MDU541_08704",null,null,"Date MD occurred",null,"Non-Coincident"]
["ED_MDU541_08705",null,null,null,null,"Coincident"]
["ED_MDU541_08706",null,null,"Half hour time period MD occurred",null,"Non-Coincident"]
["ED_MDU541_08707",null,null,null,null,"Coincident"]
["ED_MDU541_08708",null,null,"Winter/Summer Peaking",null,"Non-Coincident"]
["ED_MDU541_08709",null,null,null,null,"Coincident"]
["ED_MDU541_08710",null,null,"Adjustments - Embedded generation","MW","Non-Coincident"]
["ED_MDU541_08711",null,null,null,null,"Coincident"]
["ED_MDU541_08712",null,null,"Weather Corrected MD 10% POE","MW","Non-Coincident"]
["ED_MDU541_08713",null,null,null,null,"Coincident"]
["ED_MDU541_08714",null,null,"Weather Corrected MD 10% POE","MVA","Non-Coincident"]
["ED_MDU541_08715",null,null,null,null,"Coincident"]
["ED_MDU541_08716",null,null,"Weather Corrected MD 50% POE","MW","Non-Coincident"]
["ED_MDU541_08717",null,null,null,null,"Coincident"]
["ED_MDU541_08718",null,null,"Weather Corrected MD 50% POE","MVA","Non-Coincident"]
["ED_MDU541_08719",null,null,null,null,"Coincident"]
["ED_MDU541_08720",null,"<Enter substation name>","Substation Rating","MVA","Non-Coincident"]
["ED_MDU541_08721",null,null,null,null,"Coincident"]
["ED_MDU541_08722",null,null,"Raw Adjusted MD","MW","Non-Coincident"]
["ED_MDU541_08723",null,null,null,null,"Coincident"]
["ED_MDU541_08724",null,null,"Raw Adjusted MD","MVA","Non-Coincident"]
["ED_MDU541_08725",null,null,null,null,"Coincident"]
["ED_MDU541_08726",null,null,"Date MD occurred",null,"Non-Coincident"]
["ED_MDU541_08727",null,null,null,null,"Coincident"]
["ED_MDU541_08728",null,null,"Half hour time period MD occurred",null,"Non-Coincident"]
["ED_MDU541_08729",null,null,null,null,"Coincident"]
["ED_MDU541_08730",null,null,"Winter/Summer Peaking",null,"Non-Coincident"]
["ED_MDU541_08731",null,null,null,null,"Coincident"]
["ED_MDU541_08732",null,null,"Adjustments - Embedded generation","MW","Non-Coincident"]
["ED_MDU541_08733",null,null,null,null,"Coincident"]
["ED_MDU541_08734",null,null,"Weather Corrected MD 10% POE","MW","Non-Coincident"]
["ED_MDU541_08735",null,null,null,null,"Coincident"]
["ED_MDU541_08736",null,null,"Weather Corrected MD 10% POE","MVA","Non-Coincident"]
["ED_MDU541_08737",null,null,null,null,"Coincident"]
["ED_MDU541_08738",null,null,"Weather Corrected MD 50% POE","MW","Non-Coincident"]
["ED_MDU541_08739",null,null,null,null,"Coincident"]
["ED_MDU541_08740",null,null,"Weather Corrected MD 50% POE","MVA","Non-Coincident"]
["ED_MDU541_08741",null,null,null,null,"Coincident"]
["ED_MDU541_08742",null,"<Enter substation name>","Substation Rating","MVA","Non-Coincident"]
["ED_MDU541_08743",null,null,null,null,"Coincident"]
["ED_MDU541_08744",null,null,"Raw Adjusted MD","MW","Non-Coincident"]
["ED_MDU541_08745",null,null,null,null,"Coincident"]
["ED_MDU541_08746",null,null,"Raw Adjusted MD","MVA","Non-Coincident"]
["ED_MDU541_08747",null,null,null,null,"Coincident"]
["ED_MDU541_08748",null,null,"Date MD occurred",null,"Non-Coincident"]
["ED_MDU541_08749",null,null,null,null,"Coincident"]
["ED_MDU541_08750",null,null,"Half hour time period MD occurred",null,"Non-Coincident"]
["ED_MDU541_08751",null,null,null,null,"Coincident"]
["ED_MDU541_08752",null,null,"Winter/Summer Peaking",null,"Non-Coincident"]
["ED_MDU541_08753",null,null,null,null,"Coincident"]
["ED_MDU541_08754",null,null,"Adjustments - Embedded generation","MW","Non-Coincident"]
["ED_MDU541_08755",null,null,null,null,"Coincident"]
["ED_MDU541_08756",null,null,"Weather Corrected MD 10% POE","MW","Non-Coincident"]
["ED_MDU541_08757",null,null,null,null,"Coincident"]
["ED_MDU541_08758",null,null,"Weather Corrected MD 10% POE","MVA","Non-Coincident"]
["ED_MDU541_08759",null,null,null,null,"Coincident"]
["ED_MDU541_08760",null,null,"Weather Corrected MD 50% POE","MW","Non-Coincident"]
["ED_MDU541_08761",null,null,null,null,"Coincident"]
["ED_MDU541_08762",null,null,"Weather Corrected MD 50% POE","MVA","Non-Coincident"]
["ED_MDU541_08763",null,null,null,null,"Coincident"]
["ED_MDU541_08764",null,"<Enter substation name>","Substation Rating","MVA","Non-Coincident"]
["ED_MDU541_08765",null,null,null,null,"Coincident"]
["ED_MDU541_08766",null,null,"Raw Adjusted MD","MW","Non-Coincident"]
["ED_MDU541_08767",null,null,null,null,"Coincident"]
["ED_MDU541_08768",null,null,"Raw Adjusted MD","MVA","Non-Coincident"]
["ED_MDU541_08769",null,null,null,null,"Coincident"]
["ED_MDU541_08770",null,null,"Date MD occurred",null,"Non-Coincident"]
["ED_MDU541_08771",null,null,null,null,"Coincident"]
["ED_MDU541_08772",null,null,"Half hour time period MD occurred",null,"Non-Coincident"]
["ED_MDU541_08773",null,null,null,null,"Coincident"]
["ED_MDU541_08774",null,null,"Winter/Summer Peaking",null,"Non-Coincident"]
["ED_MDU541_08775",null,null,null,null,"Coincident"]
["ED_MDU541_08776",null,null,"Adjustments - Embedded generation","MW","Non-Coincident"]
["ED_MDU541_08777",null,null,null,null,"Coincident"]
["ED_MDU541_08778",null,null,"Weather Corrected MD 10% POE","MW","Non-Coincident"]
["ED_MDU541_08779",null,null,null,null,"Coincident"]
["ED_MDU541_08780",null,null,"Weather Corrected MD 10% POE","MVA","Non-Coincident"]
["ED_MDU541_08781",null,null,null,null,"Coincident"]
["ED_MDU541_08782",null,null,"Weather Corrected MD 50% POE","MW","Non-Coincident"]
["ED_MDU541_08783",null,null,null,null,"Coincident"]
["ED_MDU541_08784",null,null,"Weather Corrected MD 50% POE","MVA","Non-Coincident"]
["ED_MDU541_08785",null,null,null,null,"Coincident"]
["ED_MDU541_08786",null,"<Enter substation name>","Substation Rating","MVA","Non-Coincident"]
["ED_MDU541_08787",null,null,null,null,"Coincident"]
["ED_MDU541_08788",null,null,"Raw Adjusted MD","MW","Non-Coincident"]
["ED_MDU541_08789",null,null,null,null,"Coincident"]
["ED_MDU541_08790",null,null,"Raw Adjusted MD","MVA","Non-Coincident"]
["ED_MDU541_08791",null,null,null,null,"Coincident"]
["ED_MDU541_08792",null,null,"Date MD occurred",null,"Non-Coincident"]
["ED_MDU541_08793",null,null,null,null,"Coincident"]
["ED_MDU541_08794",null,null,"Half hour time period MD occurred",null,"Non-Coincident"]
["ED_MDU541_08795",null,null,null,null,"Coincident"]
["ED_MDU541_08796",null,null,"Winter/Summer Peaking",null,"Non-Coincident"]
["ED_MDU541_08797",null,null,null,null,"Coincident"]
["ED_MDU541_08798",null,null,"Adjustments - Embedded generation","MW","Non-Coincident"]
["ED_MDU541_08799",null,null,null,null,"Coincident"]
["ED_MDU541_08800",null,null,"Weather Corrected MD 10% POE","MW","Non-Coincident"]
["ED_MDU541_08801",null,null,null,null,"Coincident"]
["ED_MDU541_08802",null,null,"Weather Corrected MD 10% POE","MVA","Non-Coincident"]
["ED_MDU541_08803",null,null,null,null,"Coincident"]
["ED_MDU541_08804",null,null,"Weather Corrected MD 50% POE","MW","Non-Coincident"]
["ED_MDU541_08805",null,null,null,null,"Coincident"]
["ED_MDU541_08806",null,null,"Weather Corrected MD 50% POE","MVA","Non-Coincident"]
["ED_MDU541_08807",null,null,null,null,"Coincident"]
["ED_MDU541_08808",null,"<Enter substation name>","Substation Rating","MVA","Non-Coincident"]
["ED_MDU541_08809",null,null,null,null,"Coincident"]
["ED_MDU541_08810",null,null,"Raw Adjusted MD","MW","Non-Coincident"]
["ED_MDU541_08811",null,null,null,null,"Coincident"]
["ED_MDU541_08812",null,null,"Raw Adjusted MD","MVA","Non-Coincident"]
["ED_MDU541_08813",null,null,null,null,"Coincident"]
["ED_MDU541_08814",null,null,"Date MD occurred",null,"Non-Coincident"]
["ED_MDU541_08815",null,null,null,null,"Coincident"]
["ED_MDU541_08816",null,null,"Half hour time period MD occurred",null,"Non-Coincident"]
["ED_MDU541_08817",null,null,null,null,"Coincident"]
["ED_MDU541_08818",null,null,"Winter/Summer Peaking",null,"Non-Coincident"]
["ED_MDU541_08819",null,null,null,null,"Coincident"]
["ED_MDU541_08820",null,null,"Adjustments - Embedded generation","MW","Non-Coincident"]
["ED_MDU541_08821",null,null,null,null,"Coincident"]
["ED_MDU541_08822",null,null,"Weather Corrected MD 10% POE","MW","Non-Coincident"]
["ED_MDU541_08823",null,null,null,null,"Coincident"]
["ED_MDU541_08824",null,null,"Weather Corrected MD 10% POE","MVA","Non-Coincident"]
["ED_MDU541_08825",null,null,null,null,"Coincident"]
["ED_MDU541_08826",null,null,"Weather Corrected MD 50% POE","MW","Non-Coincident"]
["ED_MDU541_08827",null,null,null,null,"Coincident"]
["ED_MDU541_08828",null,null,"Weather Corrected MD 50% POE","MVA","Non-Coincident"]
["ED_MDU541_08829",null,null,null,null,"Coincident"]
["ED_MDU541_08830",null,"<Enter substation name>","Substation Rating","MVA","Non-Coincident"]
["ED_MDU541_08831",null,null,null,null,"Coincident"]
["ED_MDU541_08832",null,null,"Raw Adjusted MD","MW","Non-Coincident"]
["ED_MDU541_08833",null,null,null,null,"Coincident"]
["ED_MDU541_08834",null,null,"Raw Adjusted MD","MVA","Non-Coincident"]
["ED_MDU541_08835",null,null,null,null,"Coincident"]
["ED_MDU541_08836",null,null,"Date MD occurred",null,"Non-Coincident"]
["ED_MDU541_08837",null,null,null,null,"Coincident"]
["ED_MDU541_08838",null,null,"Half hour time period MD occurred",null,"Non-Coincident"]
["ED_MDU541_08839",null,null,null,null,"Coincident"]
["ED_MDU541_08840",null,null,"Winter/Summer Peaking",null,"Non-Coincident"]
["ED_MDU541_08841",null,null,null,null,"Coincident"]
["ED_MDU541_08842",null,null,"Adjustments - Embedded generation","MW","Non-Coincident"]
["ED_MDU541_08843",null,null,null,null,"Coincident"]
["ED_MDU541_08844",null,null,"Weather Corrected MD 10% POE","MW","Non-Coincident"]
["ED_MDU541_08845",null,null,null,null,"Coincident"]
["ED_MDU541_08846",null,null,"Weather Corrected MD 10% POE","MVA","Non-Coincident"]
["ED_MDU541_08847",null,null,null,null,"Coincident"]
["ED_MDU541_08848",null,null,"Weather Corrected MD 50% POE","MW","Non-Coincident"]
["ED_MDU541_08849",null,null,null,null,"Coincident"]
["ED_MDU541_08850",null,null,"Weather Corrected MD 50% POE","MVA","Non-Coincident"]
["ED_MDU541_08851",null,null,null,null,"Coincident"]
["ED_MDU541_08852",null,"<Enter substation name>","Substation Rating","MVA","Non-Coincident"]
["ED_MDU541_08853",null,null,null,null,"Coincident"]
["ED_MDU541_08854",null,null,"Raw Adjusted MD","MW","Non-Coincident"]
["ED_MDU541_08855",null,null,null,null,"Coincident"]
["ED_MDU541_08856",null,null,"Raw Adjusted MD","MVA","Non-Coincident"]
["ED_MDU541_08857",null,null,null,null,"Coincident"]
["ED_MDU541_08858",null,null,"Date MD occurred",null,"Non-Coincident"]
["ED_MDU541_08859",null,null,null,null,"Coincident"]
["ED_MDU541_08860",null,null,"Half hour time period MD occurred",null,"Non-Coincident"]
["ED_MDU541_08861",null,null,null,null,"Coincident"]
["ED_MDU541_08862",null,null,"Winter/Summer Peaking",null,"Non-Coincident"]
["ED_MDU541_08863",null,null,null,null,"Coincident"]
["ED_MDU541_08864",null,null,"Adjustments - Embedded generation","MW","Non-Coincident"]
["ED_MDU541_08865",null,null,null,null,"Coincident"]
["ED_MDU541_08866",null,null,"Weather Corrected MD 10% POE","MW","Non-Coincident"]
["ED_MDU541_08867",null,null,null,null,"Coincident"]
["ED_MDU541_08868",null,null,"Weather Corrected MD 10% POE","MVA","Non-Coincident"]
["ED_MDU541_08869",null,null,null,null,"Coincident"]
["ED_MDU541_08870",null,null,"Weather Corrected MD 50% POE","MW","Non-Coincident"]
["ED_MDU541_08871",null,null,null,null,"Coincident"]
["ED_MDU541_08872",null,null,"Weather Corrected MD 50% POE","MVA","Non-Coincident"]
["ED_MDU541_08873",null,null,null,null,"Coincident"]
["ED_MDU541_08874",null,"<Enter substation name>","Substation Rating","MVA","Non-Coincident"]
["ED_MDU541_08875",null,null,null,null,"Coincident"]
["ED_MDU541_08876",null,null,"Raw Adjusted MD","MW","Non-Coincident"]
["ED_MDU541_08877",null,null,null,null,"Coincident"]
["ED_MDU541_08878",null,null,"Raw Adjusted MD","MVA","Non-Coincident"]
["ED_MDU541_08879",null,null,null,null,"Coincident"]
["ED_MDU541_08880",null,null,"Date MD occurred",null,"Non-Coincident"]
["ED_MDU541_08881",null,null,null,null,"Coincident"]
["ED_MDU541_08882",null,null,"Half hour time period MD occurred",null,"Non-Coincident"]
["ED_MDU541_08883",null,null,null,null,"Coincident"]
["ED_MDU541_08884",null,null,"Winter/Summer Peaking",null,"Non-Coincident"]
["ED_MDU541_08885",null,null,null,null,"Coincident"]
["ED_MDU541_08886",null,null,"Adjustments - Embedded generation","MW","Non-Coincident"]
["ED_MDU541_08887",null,null,null,null,"Coincident"]
["ED_MDU541_08888",null,null,"Weather Corrected MD 10% POE","MW","Non-Coincident"]
["ED_MDU541_08889",null,null,null,null,"Coincident"]
["ED_MDU541_08890",null,null,"Weather Corrected MD 10% POE","MVA","Non-Coincident"]
["ED_MDU541_08891",null,null,null,null,"Coincident"]
["ED_MDU541_08892",null,null,"Weather Corrected MD 50% POE","MW","Non-Coincident"]
["ED_MDU541_08893",null,null,null,null,"Coincident"]
["ED_MDU541_08894",null,null,"Weather Corrected MD 50% POE","MVA","Non-Coincident"]
["ED_MDU541_08895",null,null,null,null,"Coincident"]
["ED_MDU541_08896",null,"<Enter substation name>","Substation Rating","MVA","Non-Coincident"]
["ED_MDU541_08897",null,null,null,null,"Coincident"]
["ED_MDU541_08898",null,null,"Raw Adjusted MD","MW","Non-Coincident"]
["ED_MDU541_08899",null,null,null,null,"Coincident"]
["ED_MDU541_08900",null,null,"Raw Adjusted MD","MVA","Non-Coincident"]
["ED_MDU541_08901",null,null,null,null,"Coincident"]
["ED_MDU541_08902",null,null,"Date MD occurred",null,"Non-Coincident"]
["ED_MDU541_08903",null,null,null,null,"Coincident"]
["ED_MDU541_08904",null,null,"Half hour time period MD occurred",null,"Non-Coincident"]
["ED_MDU541_08905",null,null,null,null,"Coincident"]
["ED_MDU541_08906",null,null,"Winter/Summer Peaking",null,"Non-Coincident"]
["ED_MDU541_08907",null,null,null,null,"Coincident"]
["ED_MDU541_08908",null,null,"Adjustments - Embedded generation","MW","Non-Coincident"]
["ED_MDU541_08909",null,null,null,null,"Coincident"]
["ED_MDU541_08910",null,null,"Weather Corrected MD 10% POE","MW","Non-Coincident"]
["ED_MDU541_08911",null,null,null,null,"Coincident"]
["ED_MDU541_08912",null,null,"Weather Corrected MD 10% POE","MVA","Non-Coincident"]
["ED_MDU541_08913",null,null,null,null,"Coincident"]
["ED_MDU541_08914",null,null,"Weather Corrected MD 50% POE","MW","Non-Coincident"]
["ED_MDU541_08915",null,null,null,null,"Coincident"]
["ED_MDU541_08916",null,null,"Weather Corrected MD 50% POE","MVA","Non-Coincident"]
["ED_MDU541_08917",null,null,null,null,"Coincident"]
["ED_MDU541_08918",null,"<Enter substation name>","Substation Rating","MVA","Non-Coincident"]
["ED_MDU541_08919",null,null,null,null,"Coincident"]
["ED_MDU541_08920",null,null,"Raw Adjusted MD","MW","Non-Coincident"]
["ED_MDU541_08921",null,null,null,null,"Coincident"]
["ED_MDU541_08922",null,null,"Raw Adjusted MD","MVA","Non-Coincident"]
["ED_MDU541_08923",null,null,null,null,"Coincident"]
["ED_MDU541_08924",null,null,"Date MD occurred",null,"Non-Coincident"]
["ED_MDU541_08925",null,null,null,null,"Coincident"]
["ED_MDU541_08926",null,null,"Half hour time period MD occurred",null,"Non-Coincident"]
["ED_MDU541_08927",null,null,null,null,"Coincident"]
["ED_MDU541_08928",null,null,"Winter/Summer Peaking",null,"Non-Coincident"]
["ED_MDU541_08929",null,null,null,null,"Coincident"]
["ED_MDU541_08930",null,null,"Adjustments - Embedded generation","MW","Non-Coincident"]
["ED_MDU541_08931",null,null,null,null,"Coincident"]
["ED_MDU541_08932",null,null,"Weather Corrected MD 10% POE","MW","Non-Coincident"]
["ED_MDU541_08933",null,null,null,null,"Coincident"]
["ED_MDU541_08934",null,null,"Weather Corrected MD 10% POE","MVA","Non-Coincident"]
["ED_MDU541_08935",null,null,null,null,"Coincident"]
["ED_MDU541_08936",null,null,"Weather Corrected MD 50% POE","MW","Non-Coincident"]
["ED_MDU541_08937",null,null,null,null,"Coincident"]
["ED_MDU541_08938",null,null,"Weather Corrected MD 50% POE","MVA","Non-Coincident"]
["ED_MDU541_08939",null,null,null,null,"Coincident"]
["ED_MDU541_08940",null,"<Enter substation name>","Substation Rating","MVA","Non-Coincident"]
["ED_MDU541_08941",null,null,null,null,"Coincident"]
["ED_MDU541_08942",null,null,"Raw Adjusted MD","MW","Non-Coincident"]
["ED_MDU541_08943",null,null,null,null,"Coincident"]
["ED_MDU541_08944",null,null,"Raw Adjusted MD","MVA","Non-Coincident"]
["ED_MDU541_08945",null,null,null,null,"Coincident"]
["ED_MDU541_08946",null,null,"Date MD occurred",null,"Non-Coincident"]
["ED_MDU541_08947",null,null,null,null,"Coincident"]
["ED_MDU541_08948",null,null,"Half hour time period MD occurred",null,"Non-Coincident"]
["ED_MDU541_08949",null,null,null,null,"Coincident"]
["ED_MDU541_08950",null,null,"Winter/Summer Peaking",null,"Non-Coincident"]
["ED_MDU541_08951",null,null,null,null,"Coincident"]
["ED_MDU541_08952",null,null,"Adjustments - Embedded generation","MW","Non-Coincident"]
["ED_MDU541_08953",null,null,null,null,"Coincident"]
["ED_MDU541_08954",null,null,"Weather Corrected MD 10% POE","MW","Non-Coincident"]
["ED_MDU541_08955",null,null,null,null,"Coincident"]
["ED_MDU541_08956",null,null,"Weather Corrected MD 10% POE","MVA","Non-Coincident"]
["ED_MDU541_08957",null,null,null,null,"Coincident"]
["ED_MDU541_08958",null,null,"Weather Corrected MD 50% POE","MW","Non-Coincident"]
["ED_MDU541_08959",null,null,null,null,"Coincident"]
["ED_MDU541_08960",null,null,"Weather Corrected MD 50% POE","MVA","Non-Coincident"]
["ED_MDU541_08961",null,null,null,null,"Coincident"]
["ED_MDU541_08962",null,"<Enter substation name>","Substation Rating","MVA","Non-Coincident"]
["ED_MDU541_08963",null,null,null,null,"Coincident"]
["ED_MDU541_08964",null,null,"Raw Adjusted MD","MW","Non-Coincident"]
["ED_MDU541_08965",null,null,null,null,"Coincident"]
["ED_MDU541_08966",null,null,"Raw Adjusted MD","MVA","Non-Coincident"]
["ED_MDU541_08967",null,null,null,null,"Coincident"]
["ED_MDU541_08968",null,null,"Date MD occurred",null,"Non-Coincident"]
["ED_MDU541_08969",null,null,null,null,"Coincident"]
["ED_MDU541_08970",null,null,"Half hour time period MD occurred",null,"Non-Coincident"]
["ED_MDU541_08971",null,null,null,null,"Coincident"]
["ED_MDU541_08972",null,null,"Winter/Summer Peaking",null,"Non-Coincident"]
["ED_MDU541_08973",null,null,null,null,"Coincident"]
["ED_MDU541_08974",null,null,"Adjustments - Embedded generation","MW","Non-Coincident"]
["ED_MDU541_08975",null,null,null,null,"Coincident"]
["ED_MDU541_08976",null,null,"Weather Corrected MD 10% POE","MW","Non-Coincident"]
["ED_MDU541_08977",null,null,null,null,"Coincident"]
["ED_MDU541_08978",null,null,"Weather Corrected MD 10% POE","MVA","Non-Coincident"]
["ED_MDU541_08979",null,null,null,null,"Coincident"]
["ED_MDU541_08980",null,null,"Weather Corrected MD 50% POE","MW","Non-Coincident"]
["ED_MDU541_08981",null,null,null,null,"Coincident"]
["ED_MDU541_08982",null,null,"Weather Corrected MD 50% POE","MVA","Non-Coincident"]
["ED_MDU541_08983",null,null,null,null,"Coincident"]
["ED_MDU541_08984",null,"<Enter substation name>","Substation Rating","MVA","Non-Coincident"]
["ED_MDU541_08985",null,null,null,null,"Coincident"]
["ED_MDU541_08986",null,null,"Raw Adjusted MD","MW","Non-Coincident"]
["ED_MDU541_08987",null,null,null,null,"Coincident"]
["ED_MDU541_08988",null,null,"Raw Adjusted MD","MVA","Non-Coincident"]
["ED_MDU541_08989",null,null,null,null,"Coincident"]
["ED_MDU541_08990",null,null,"Date MD occurred",null,"Non-Coincident"]
["ED_MDU541_08991",null,null,null,null,"Coincident"]
["ED_MDU541_08992",null,null,"Half hour time period MD occurred",null,"Non-Coincident"]
["ED_MDU541_08993",null,null,null,null,"Coincident"]
["ED_MDU541_08994",null,null,"Winter/Summer Peaking",null,"Non-Coincident"]
["ED_MDU541_08995",null,null,null,null,"Coincident"]
["ED_MDU541_08996",null,null,"Adjustments - Embedded generation","MW","Non-Coincident"]
["ED_MDU541_08997",null,null,null,null,"Coincident"]
["ED_MDU541_08998",null,null,"Weather Corrected MD 10% POE","MW","Non-Coincident"]
["ED_MDU541_08999",null,null,null,null,"Coincident"]
["ED_MDU541_09000",null,null,"Weather Corrected MD 10% POE","MVA","Non-Coincident"]
["ED_MDU541_09001",null,null,null,null,"Coincident"]
["ED_MDU541_09002",null,null,"Weather Corrected MD 50% POE","MW","Non-Coincident"]
["ED_MDU541_09003",null,null,null,null,"Coincident"]
["ED_MDU541_09004",null,null,"Weather Corrected MD 50% POE","MVA","Non-Coincident"]
["ED_MDU541_09005",null,null,null,null,"Coincident"]
["ED_MDU541_09006",null,"<Enter substation name>","Substation Rating","MVA","Non-Coincident"]
["ED_MDU541_09007",null,null,null,null,"Coincident"]
["ED_MDU541_09008",null,null,"Raw Adjusted MD","MW","Non-Coincident"]
["ED_MDU541_09009",null,null,null,null,"Coincident"]
["ED_MDU541_09010",null,null,"Raw Adjusted MD","MVA","Non-Coincident"]
["ED_MDU541_09011",null,null,null,null,"Coincident"]
["ED_MDU541_09012",null,null,"Date MD occurred",null,"Non-Coincident"]
["ED_MDU541_09013",null,null,null,null,"Coincident"]
["ED_MDU541_09014",null,null,"Half hour time period MD occurred",null,"Non-Coincident"]
["ED_MDU541_09015",null,null,null,null,"Coincident"]
["ED_MDU541_09016",null,null,"Winter/Summer Peaking",null,"Non-Coincident"]
["ED_MDU541_09017",null,null,null,null,"Coincident"]
["ED_MDU541_09018",null,null,"Adjustments - Embedded generation","MW","Non-Coincident"]
["ED_MDU541_09019",null,null,null,null,"Coincident"]
["ED_MDU541_09020",null,null,"Weather Corrected MD 10% POE","MW","Non-Coincident"]
["ED_MDU541_09021",null,null,null,null,"Coincident"]
["ED_MDU541_09022",null,null,"Weather Corrected MD 10% POE","MVA","Non-Coincident"]
["ED_MDU541_09023",null,null,null,null,"Coincident"]
["ED_MDU541_09024",null,null,"Weather Corrected MD 50% POE","MW","Non-Coincident"]
["ED_MDU541_09025",null,null,null,null,"Coincident"]
["ED_MDU541_09026",null,null,"Weather Corrected MD 50% POE","MVA","Non-Coincident"]
["ED_MDU541_09027",null,null,null,null,"Coincident"]
["ED_MDU541_09028",null,"<Enter substation name>","Substation Rating","MVA","Non-Coincident"]
["ED_MDU541_09029",null,null,null,null,"Coincident"]
["ED_MDU541_09030",null,null,"Raw Adjusted MD","MW","Non-Coincident"]
["ED_MDU541_09031",null,null,null,null,"Coincident"]
["ED_MDU541_09032",null,null,"Raw Adjusted MD","MVA","Non-Coincident"]
["ED_MDU541_09033",null,null,null,null,"Coincident"]
["ED_MDU541_09034",null,null,"Date MD occurred",null,"Non-Coincident"]
["ED_MDU541_09035",null,null,null,null,"Coincident"]
["ED_MDU541_09036",null,null,"Half hour time period MD occurred",null,"Non-Coincident"]
["ED_MDU541_09037",null,null,null,null,"Coincident"]
["ED_MDU541_09038",null,null,"Winter/Summer Peaking",null,"Non-Coincident"]
["ED_MDU541_09039",null,null,null,null,"Coincident"]
["ED_MDU541_09040",null,null,"Adjustments - Embedded generation","MW","Non-Coincident"]
["ED_MDU541_09041",null,null,null,null,"Coincident"]
["ED_MDU541_09042",null,null,"Weather Corrected MD 10% POE","MW","Non-Coincident"]
["ED_MDU541_09043",null,null,null,null,"Coincident"]
["ED_MDU541_09044",null,null,"Weather Corrected MD 10% POE","MVA","Non-Coincident"]
["ED_MDU541_09045",null,null,null,null,"Coincident"]
["ED_MDU541_09046",null,null,"Weather Corrected MD 50% POE","MW","Non-Coincident"]
["ED_MDU541_09047",null,null,null,null,"Coincident"]
["ED_MDU541_09048",null,null,"Weather Corrected MD 50% POE","MVA","Non-Coincident"]
["ED_MDU541_09049",null,null,null,null,"Coincident"]
["ED_MDU541_09050",null,"<Enter substation name>","Substation Rating","MVA","Non-Coincident"]
["ED_MDU541_09051",null,null,null,null,"Coincident"]
["ED_MDU541_09052",null,null,"Raw Adjusted MD","MW","Non-Coincident"]
["ED_MDU541_09053",null,null,null,null,"Coincident"]
["ED_MDU541_09054",null,null,"Raw Adjusted MD","MVA","Non-Coincident"]
["ED_MDU541_09055",null,null,null,null,"Coincident"]
["ED_MDU541_09056",null,null,"Date MD occurred",null,"Non-Coincident"]
["ED_MDU541_09057",null,null,null,null,"Coincident"]
["ED_MDU541_09058",null,null,"Half hour time period MD occurred",null,"Non-Coincident"]
["ED_MDU541_09059",null,null,null,null,"Coincident"]
["ED_MDU541_09060",null,null,"Winter/Summer Peaking",null,"Non-Coincident"]
["ED_MDU541_09061",null,null,null,null,"Coincident"]
["ED_MDU541_09062",null,null,"Adjustments - Embedded generation","MW","Non-Coincident"]
["ED_MDU541_09063",null,null,null,null,"Coincident"]
["ED_MDU541_09064",null,null,"Weather Corrected MD 10% POE","MW","Non-Coincident"]
["ED_MDU541_09065",null,null,null,null,"Coincident"]
["ED_MDU541_09066",null,null,"Weather Corrected MD 10% POE","MVA","Non-Coincident"]
["ED_MDU541_09067",null,null,null,null,"Coincident"]
["ED_MDU541_09068",null,null,"Weather Corrected MD 50% POE","MW","Non-Coincident"]
["ED_MDU541_09069",null,null,null,null,"Coincident"]
["ED_MDU541_09070",null,null,"Weather Corrected MD 50% POE","MVA","Non-Coincident"]
["ED_MDU541_09071",null,null,null,null,"Coincident"]
["ED_MDU541_09072",null,"<Enter substation name>","Substation Rating","MVA","Non-Coincident"]
["ED_MDU541_09073",null,null,null,null,"Coincident"]
["ED_MDU541_09074",null,null,"Raw Adjusted MD","MW","Non-Coincident"]
["ED_MDU541_09075",null,null,null,null,"Coincident"]
["ED_MDU541_09076",null,null,"Raw Adjusted MD","MVA","Non-Coincident"]
["ED_MDU541_09077",null,null,null,null,"Coincident"]
["ED_MDU541_09078",null,null,"Date MD occurred",null,"Non-Coincident"]
["ED_MDU541_09079",null,null,null,null,"Coincident"]
["ED_MDU541_09080",null,null,"Half hour time period MD occurred",null,"Non-Coincident"]
["ED_MDU541_09081",null,null,null,null,"Coincident"]
["ED_MDU541_09082",null,null,"Winter/Summer Peaking",null,"Non-Coincident"]
["ED_MDU541_09083",null,null,null,null,"Coincident"]
["ED_MDU541_09084",null,null,"Adjustments - Embedded generation","MW","Non-Coincident"]
["ED_MDU541_09085",null,null,null,null,"Coincident"]
["ED_MDU541_09086",null,null,"Weather Corrected MD 10% POE","MW","Non-Coincident"]
["ED_MDU541_09087",null,null,null,null,"Coincident"]
["ED_MDU541_09088",null,null,"Weather Corrected MD 10% POE","MVA","Non-Coincident"]
["ED_MDU541_09089",null,null,null,null,"Coincident"]
["ED_MDU541_09090",null,null,"Weather Corrected MD 50% POE","MW","Non-Coincident"]
["ED_MDU541_09091",null,null,null,null,"Coincident"]
["ED_MDU541_09092",null,null,"Weather Corrected MD 50% POE","MVA","Non-Coincident"]
["ED_MDU541_09093",null,null,null,null,"Coincident"]
["ED_MDU541_09094",null,"<Enter substation name>","Substation Rating","MVA","Non-Coincident"]
["ED_MDU541_09095",null,null,null,null,"Coincident"]
["ED_MDU541_09096",null,null,"Raw Adjusted MD","MW","Non-Coincident"]
["ED_MDU541_09097",null,null,null,null,"Coincident"]
["ED_MDU541_09098",null,null,"Raw Adjusted MD","MVA","Non-Coincident"]
["ED_MDU541_09099",null,null,null,null,"Coincident"]
["ED_MDU541_09100",null,null,"Date MD occurred",null,"Non-Coincident"]
["ED_MDU541_09101",null,null,null,null,"Coincident"]
["ED_MDU541_09102",null,null,"Half hour time period MD occurred",null,"Non-Coincident"]
["ED_MDU541_09103",null,null,null,null,"Coincident"]
["ED_MDU541_09104",null,null,"Winter/Summer Peaking",null,"Non-Coincident"]
["ED_MDU541_09105",null,null,null,null,"Coincident"]
["ED_MDU541_09106",null,null,"Adjustments - Embedded generation","MW","Non-Coincident"]
["ED_MDU541_09107",null,null,null,null,"Coincident"]
["ED_MDU541_09108",null,null,"Weather Corrected MD 10% POE","MW","Non-Coincident"]
["ED_MDU541_09109",null,null,null,null,"Coincident"]
["ED_MDU541_09110",null,null,"Weather Corrected MD 10% POE","MVA","Non-Coincident"]
["ED_MDU541_09111",null,null,null,null,"Coincident"]
["ED_MDU541_09112",null,null,"Weather Corrected MD 50% POE","MW","Non-Coincident"]
["ED_MDU541_09113",null,null,null,null,"Coincident"]
["ED_MDU541_09114",null,null,"Weather Corrected MD 50% POE","MVA","Non-Coincident"]
["ED_MDU541_09115",null,null,null,null,"Coincident"]
["ED_MDU541_09116",null,"<Enter substation name>","Substation Rating","MVA","Non-Coincident"]
["ED_MDU541_09117",null,null,null,null,"Coincident"]
["ED_MDU541_09118",null,null,"Raw Adjusted MD","MW","Non-Coincident"]
["ED_MDU541_09119",null,null,null,null,"Coincident"]
["ED_MDU541_09120",null,null,"Raw Adjusted MD","MVA","Non-Coincident"]
["ED_MDU541_09121",null,null,null,null,"Coincident"]
["ED_MDU541_09122",null,null,"Date MD occurred",null,"Non-Coincident"]
["ED_MDU541_09123",null,null,null,null,"Coincident"]
["ED_MDU541_09124",null,null,"Half hour time period MD occurred",null,"Non-Coincident"]
["ED_MDU541_09125",null,null,null,null,"Coincident"]
["ED_MDU541_09126",null,null,"Winter/Summer Peaking",null,"Non-Coincident"]
["ED_MDU541_09127",null,null,null,null,"Coincident"]
["ED_MDU541_09128",null,null,"Adjustments - Embedded generation","MW","Non-Coincident"]
["ED_MDU541_09129",null,null,null,null,"Coincident"]
["ED_MDU541_09130",null,null,"Weather Corrected MD 10% POE","MW","Non-Coincident"]
["ED_MDU541_09131",null,null,null,null,"Coincident"]
["ED_MDU541_09132",null,null,"Weather Corrected MD 10% POE","MVA","Non-Coincident"]
["ED_MDU541_09133",null,null,null,null,"Coincident"]
["ED_MDU541_09134",null,null,"Weather Corrected MD 50% POE","MW","Non-Coincident"]
["ED_MDU541_09135",null,null,null,null,"Coincident"]
["ED_MDU541_09136",null,null,"Weather Corrected MD 50% POE","MVA","Non-Coincident"]
["ED_MDU541_09137",null,null,null,null,"Coincident"]
["ED_MDU541_09138",null,"<Enter substation name>","Substation Rating","MVA","Non-Coincident"]
["ED_MDU541_09139",null,null,null,null,"Coincident"]
["ED_MDU541_09140",null,null,"Raw Adjusted MD","MW","Non-Coincident"]
["ED_MDU541_09141",null,null,null,null,"Coincident"]
["ED_MDU541_09142",null,null,"Raw Adjusted MD","MVA","Non-Coincident"]
["ED_MDU541_09143",null,null,null,null,"Coincident"]
["ED_MDU541_09144",null,null,"Date MD occurred",null,"Non-Coincident"]
["ED_MDU541_09145",null,null,null,null,"Coincident"]
["ED_MDU541_09146",null,null,"Half hour time period MD occurred",null,"Non-Coincident"]
["ED_MDU541_09147",null,null,null,null,"Coincident"]
["ED_MDU541_09148",null,null,"Winter/Summer Peaking",null,"Non-Coincident"]
["ED_MDU541_09149",null,null,null,null,"Coincident"]
["ED_MDU541_09150",null,null,"Adjustments - Embedded generation","MW","Non-Coincident"]
["ED_MDU541_09151",null,null,null,null,"Coincident"]
["ED_MDU541_09152",null,null,"Weather Corrected MD 10% POE","MW","Non-Coincident"]
["ED_MDU541_09153",null,null,null,null,"Coincident"]
["ED_MDU541_09154",null,null,"Weather Corrected MD 10% POE","MVA","Non-Coincident"]
["ED_MDU541_09155",null,null,null,null,"Coincident"]
["ED_MDU541_09156",null,null,"Weather Corrected MD 50% POE","MW","Non-Coincident"]
["ED_MDU541_09157",null,null,null,null,"Coincident"]
["ED_MDU541_09158",null,null,"Weather Corrected MD 50% POE","MVA","Non-Coincident"]
["ED_MDU541_09159",null,null,null,null,"Coincident"]
["ED_MDU541_09160",null,"<Enter substation name>","Substation Rating","MVA","Non-Coincident"]
["ED_MDU541_09161",null,null,null,null,"Coincident"]
["ED_MDU541_09162",null,null,"Raw Adjusted MD","MW","Non-Coincident"]
["ED_MDU541_09163",null,null,null,null,"Coincident"]
["ED_MDU541_09164",null,null,"Raw Adjusted MD","MVA","Non-Coincident"]
["ED_MDU541_09165",null,null,null,null,"Coincident"]
["ED_MDU541_09166",null,null,"Date MD occurred",null,"Non-Coincident"]
["ED_MDU541_09167",null,null,null,null,"Coincident"]
["ED_MDU541_09168",null,null,"Half hour time period MD occurred",null,"Non-Coincident"]
["ED_MDU541_09169",null,null,null,null,"Coincident"]
["ED_MDU541_09170",null,null,"Winter/Summer Peaking",null,"Non-Coincident"]
["ED_MDU541_09171",null,null,null,null,"Coincident"]
["ED_MDU541_09172",null,null,"Adjustments - Embedded generation","MW","Non-Coincident"]
["ED_MDU541_09173",null,null,null,null,"Coincident"]
["ED_MDU541_09174",null,null,"Weather Corrected MD 10% POE","MW","Non-Coincident"]
["ED_MDU541_09175",null,null,null,null,"Coincident"]
["ED_MDU541_09176",null,null,"Weather Corrected MD 10% POE","MVA","Non-Coincident"]
["ED_MDU541_09177",null,null,null,null,"Coincident"]
["ED_MDU541_09178",null,null,"Weather Corrected MD 50% POE","MW","Non-Coincident"]
["ED_MDU541_09179",null,null,null,null,"Coincident"]
["ED_MDU541_09180",null,null,"Weather Corrected MD 50% POE","MVA","Non-Coincident"]
["ED_MDU541_09181",null,null,null,null,"Coincident"]
["ED_MDU541_09182",null,"<Enter substation name>","Substation Rating","MVA","Non-Coincident"]
["ED_MDU541_09183",null,null,null,null,"Coincident"]
["ED_MDU541_09184",null,null,"Raw Adjusted MD","MW","Non-Coincident"]
["ED_MDU541_09185",null,null,null,null,"Coincident"]
["ED_MDU541_09186",null,null,"Raw Adjusted MD","MVA","Non-Coincident"]
["ED_MDU541_09187",null,null,null,null,"Coincident"]
["ED_MDU541_09188",null,null,"Date MD occurred",null,"Non-Coincident"]
["ED_MDU541_09189",null,null,null,null,"Coincident"]
["ED_MDU541_09190",null,null,"Half hour time period MD occurred",null,"Non-Coincident"]
["ED_MDU541_09191",null,null,null,null,"Coincident"]
["ED_MDU541_09192",null,null,"Winter/Summer Peaking",null,"Non-Coincident"]
["ED_MDU541_09193",null,null,null,null,"Coincident"]
["ED_MDU541_09194",null,null,"Adjustments - Embedded generation","MW","Non-Coincident"]
["ED_MDU541_09195",null,null,null,null,"Coincident"]
["ED_MDU541_09196",null,null,"Weather Corrected MD 10% POE","MW","Non-Coincident"]
["ED_MDU541_09197",null,null,null,null,"Coincident"]
["ED_MDU541_09198",null,null,"Weather Corrected MD 10% POE","MVA","Non-Coincident"]
["ED_MDU541_09199",null,null,null,null,"Coincident"]
["ED_MDU541_09200",null,null,"Weather Corrected MD 50% POE","MW","Non-Coincident"]
["ED_MDU541_09201",null,null,null,null,"Coincident"]
["ED_MDU541_09202",null,null,"Weather Corrected MD 50% POE","MVA","Non-Coincident"]
["ED_MDU541_09203",null,null,null,null,"Coincident"]
["ED_MDU541_09204",null,"<Enter substation name>","Substation Rating","MVA","Non-Coincident"]
["ED_MDU541_09205",null,null,null,null,"Coincident"]
["ED_MDU541_09206",null,null,"Raw Adjusted MD","MW","Non-Coincident"]
["ED_MDU541_09207",null,null,null,null,"Coincident"]
["ED_MDU541_09208",null,null,"Raw Adjusted MD","MVA","Non-Coincident"]
["ED_MDU541_09209",null,null,null,null,"Coincident"]
["ED_MDU541_09210",null,null,"Date MD occurred",null,"Non-Coincident"]
["ED_MDU541_09211",null,null,null,null,"Coincident"]
["ED_MDU541_09212",null,null,"Half hour time period MD occurred",null,"Non-Coincident"]
["ED_MDU541_09213",null,null,null,null,"Coincident"]
["ED_MDU541_09214",null,null,"Winter/Summer Peaking",null,"Non-Coincident"]
["ED_MDU541_09215",null,null,null,null,"Coincident"]
["ED_MDU541_09216",null,null,"Adjustments - Embedded generation","MW","Non-Coincident"]
["ED_MDU541_09217",null,null,null,null,"Coincident"]
["ED_MDU541_09218",null,null,"Weather Corrected MD 10% POE","MW","Non-Coincident"]
["ED_MDU541_09219",null,null,null,null,"Coincident"]
["ED_MDU541_09220",null,null,"Weather Corrected MD 10% POE","MVA","Non-Coincident"]
["ED_MDU541_09221",null,null,null,null,"Coincident"]
["ED_MDU541_09222",null,null,"Weather Corrected MD 50% POE","MW","Non-Coincident"]
["ED_MDU541_09223",null,null,null,null,"Coincident"]
["ED_MDU541_09224",null,null,"Weather Corrected MD 50% POE","MVA","Non-Coincident"]
["ED_MDU541_09225",null,null,null,null,"Coincident"]
["ED_MDU541_09226",null,"<Enter substation name>","Substation Rating","MVA","Non-Coincident"]
["ED_MDU541_09227",null,null,null,null,"Coincident"]
["ED_MDU541_09228",null,null,"Raw Adjusted MD","MW","Non-Coincident"]
["ED_MDU541_09229",null,null,null,null,"Coincident"]
["ED_MDU541_09230",null,null,"Raw Adjusted MD","MVA","Non-Coincident"]
["ED_MDU541_09231",null,null,null,null,"Coincident"]
["ED_MDU541_09232",null,null,"Date MD occurred",null,"Non-Coincident"]
["ED_MDU541_09233",null,null,null,null,"Coincident"]
["ED_MDU541_09234",null,null,"Half hour time period MD occurred",null,"Non-Coincident"]
["ED_MDU541_09235",null,null,null,null,"Coincident"]
["ED_MDU541_09236",null,null,"Winter/Summer Peaking",null,"Non-Coincident"]
["ED_MDU541_09237",null,null,null,null,"Coincident"]
["ED_MDU541_09238",null,null,"Adjustments - Embedded generation","MW","Non-Coincident"]
["ED_MDU541_09239",null,null,null,null,"Coincident"]
["ED_MDU541_09240",null,null,"Weather Corrected MD 10% POE","MW","Non-Coincident"]
["ED_MDU541_09241",null,null,null,null,"Coincident"]
["ED_MDU541_09242",null,null,"Weather Corrected MD 10% POE","MVA","Non-Coincident"]
["ED_MDU541_09243",null,null,null,null,"Coincident"]
["ED_MDU541_09244",null,null,"Weather Corrected MD 50% POE","MW","Non-Coincident"]
["ED_MDU541_09245",null,null,null,null,"Coincident"]
["ED_MDU541_09246",null,null,"Weather Corrected MD 50% POE","MVA","Non-Coincident"]
["ED_MDU541_09247",null,null,null,null,"Coincident"]
["ED_MDU541_09248",null,"<Enter substation name>","Substation Rating","MVA","Non-Coincident"]
["ED_MDU541_09249",null,null,null,null,"Coincident"]
["ED_MDU541_09250",null,null,"Raw Adjusted MD","MW","Non-Coincident"]
["ED_MDU541_09251",null,null,null,null,"Coincident"]
["ED_MDU541_09252",null,null,"Raw Adjusted MD","MVA","Non-Coincident"]
["ED_MDU541_09253",null,null,null,null,"Coincident"]
["ED_MDU541_09254",null,null,"Date MD occurred",null,"Non-Coincident"]
["ED_MDU541_09255",null,null,null,null,"Coincident"]
["ED_MDU541_09256",null,null,"Half hour time period MD occurred",null,"Non-Coincident"]
["ED_MDU541_09257",null,null,null,null,"Coincident"]
["ED_MDU541_09258",null,null,"Winter/Summer Peaking",null,"Non-Coincident"]
["ED_MDU541_09259",null,null,null,null,"Coincident"]
["ED_MDU541_09260",null,null,"Adjustments - Embedded generation","MW","Non-Coincident"]
["ED_MDU541_09261",null,null,null,null,"Coincident"]
["ED_MDU541_09262",null,null,"Weather Corrected MD 10% POE","MW","Non-Coincident"]
["ED_MDU541_09263",null,null,null,null,"Coincident"]
["ED_MDU541_09264",null,null,"Weather Corrected MD 10% POE","MVA","Non-Coincident"]
["ED_MDU541_09265",null,null,null,null,"Coincident"]
["ED_MDU541_09266",null,null,"Weather Corrected MD 50% POE","MW","Non-Coincident"]
["ED_MDU541_09267",null,null,null,null,"Coincident"]
["ED_MDU541_09268",null,null,"Weather Corrected MD 50% POE","MVA","Non-Coincident"]
["ED_MDU541_09269",null,null,null,null,"Coincident"]
["ED_MDU541_09270",null,"<Enter substation name>","Substation Rating","MVA","Non-Coincident"]
["ED_MDU541_09271",null,null,null,null,"Coincident"]
["ED_MDU541_09272",null,null,"Raw Adjusted MD","MW","Non-Coincident"]
["ED_MDU541_09273",null,null,null,null,"Coincident"]
["ED_MDU541_09274",null,null,"Raw Adjusted MD","MVA","Non-Coincident"]
["ED_MDU541_09275",null,null,null,null,"Coincident"]
["ED_MDU541_09276",null,null,"Date MD occurred",null,"Non-Coincident"]
["ED_MDU541_09277",null,null,null,null,"Coincident"]
["ED_MDU541_09278",null,null,"Half hour time period MD occurred",null,"Non-Coincident"]
["ED_MDU541_09279",null,null,null,null,"Coincident"]
["ED_MDU541_09280",null,null,"Winter/Summer Peaking",null,"Non-Coincident"]
["ED_MDU541_09281",null,null,null,null,"Coincident"]
["ED_MDU541_09282",null,null,"Adjustments - Embedded generation","MW","Non-Coincident"]
["ED_MDU541_09283",null,null,null,null,"Coincident"]
["ED_MDU541_09284",null,null,"Weather Corrected MD 10% POE","MW","Non-Coincident"]
["ED_MDU541_09285",null,null,null,null,"Coincident"]
["ED_MDU541_09286",null,null,"Weather Corrected MD 10% POE","MVA","Non-Coincident"]
["ED_MDU541_09287",null,null,null,null,"Coincident"]
["ED_MDU541_09288",null,null,"Weather Corrected MD 50% POE","MW","Non-Coincident"]
["ED_MDU541_09289",null,null,null,null,"Coincident"]
["ED_MDU541_09290",null,null,"Weather Corrected MD 50% POE","MVA","Non-Coincident"]
["ED_MDU541_09291",null,null,null,null,"Coincident"]
["ED_MDU541_09292",null,"<Enter substation name>","Substation Rating","MVA","Non-Coincident"]
["ED_MDU541_09293",null,null,null,null,"Coincident"]
["ED_MDU541_09294",null,null,"Raw Adjusted MD","MW","Non-Coincident"]
["ED_MDU541_09295",null,null,null,null,"Coincident"]
["ED_MDU541_09296",null,null,"Raw Adjusted MD","MVA","Non-Coincident"]
["ED_MDU541_09297",null,null,null,null,"Coincident"]
["ED_MDU541_09298",null,null,"Date MD occurred",null,"Non-Coincident"]
["ED_MDU541_09299",null,null,null,null,"Coincident"]
["ED_MDU541_09300",null,null,"Half hour time period MD occurred",null,"Non-Coincident"]
["ED_MDU541_09301",null,null,null,null,"Coincident"]
["ED_MDU541_09302",null,null,"Winter/Summer Peaking",null,"Non-Coincident"]
["ED_MDU541_09303",null,null,null,null,"Coincident"]
["ED_MDU541_09304",null,null,"Adjustments - Embedded generation","MW","Non-Coincident"]
["ED_MDU541_09305",null,null,null,null,"Coincident"]
["ED_MDU541_09306",null,null,"Weather Corrected MD 10% POE","MW","Non-Coincident"]
["ED_MDU541_09307",null,null,null,null,"Coincident"]
["ED_MDU541_09308",null,null,"Weather Corrected MD 10% POE","MVA","Non-Coincident"]
["ED_MDU541_09309",null,null,null,null,"Coincident"]
["ED_MDU541_09310",null,null,"Weather Corrected MD 50% POE","MW","Non-Coincident"]
["ED_MDU541_09311",null,null,null,null,"Coincident"]
["ED_MDU541_09312",null,null,"Weather Corrected MD 50% POE","MVA","Non-Coincident"]
["ED_MDU541_09313",null,null,null,null,"Coincident"]
["ED_MDU541_09314",null,"<Enter substation name>","Substation Rating","MVA","Non-Coincident"]
["ED_MDU541_09315",null,null,null,null,"Coincident"]
["ED_MDU541_09316",null,null,"Raw Adjusted MD","MW","Non-Coincident"]
["ED_MDU541_09317",null,null,null,null,"Coincident"]
["ED_MDU541_09318",null,null,"Raw Adjusted MD","MVA","Non-Coincident"]
["ED_MDU541_09319",null,null,null,null,"Coincident"]
["ED_MDU541_09320",null,null,"Date MD occurred",null,"Non-Coincident"]
["ED_MDU541_09321",null,null,null,null,"Coincident"]
["ED_MDU541_09322",null,null,"Half hour time period MD occurred",null,"Non-Coincident"]
["ED_MDU541_09323",null,null,null,null,"Coincident"]
["ED_MDU541_09324",null,null,"Winter/Summer Peaking",null,"Non-Coincident"]
["ED_MDU541_09325",null,null,null,null,"Coincident"]
["ED_MDU541_09326",null,null,"Adjustments - Embedded generation","MW","Non-Coincident"]
["ED_MDU541_09327",null,null,null,null,"Coincident"]
["ED_MDU541_09328",null,null,"Weather Corrected MD 10% POE","MW","Non-Coincident"]
["ED_MDU541_09329",null,null,null,null,"Coincident"]
["ED_MDU541_09330",null,null,"Weather Corrected MD 10% POE","MVA","Non-Coincident"]
["ED_MDU541_09331",null,null,null,null,"Coincident"]
["ED_MDU541_09332",null,null,"Weather Corrected MD 50% POE","MW","Non-Coincident"]
["ED_MDU541_09333",null,null,null,null,"Coincident"]
["ED_MDU541_09334",null,null,"Weather Corrected MD 50% POE","MVA","Non-Coincident"]
["ED_MDU541_09335",null,null,null,null,"Coincident"]
["ED_MDU541_09336",null,"<Enter substation name>","Substation Rating","MVA","Non-Coincident"]
["ED_MDU541_09337",null,null,null,null,"Coincident"]
["ED_MDU541_09338",null,null,"Raw Adjusted MD","MW","Non-Coincident"]
["ED_MDU541_09339",null,null,null,null,"Coincident"]
["ED_MDU541_09340",null,null,"Raw Adjusted MD","MVA","Non-Coincident"]
["ED_MDU541_09341",null,null,null,null,"Coincident"]
["ED_MDU541_09342",null,null,"Date MD occurred",null,"Non-Coincident"]
["ED_MDU541_09343",null,null,null,null,"Coincident"]
["ED_MDU541_09344",null,null,"Half hour time period MD occurred",null,"Non-Coincident"]
["ED_MDU541_09345",null,null,null,null,"Coincident"]
["ED_MDU541_09346",null,null,"Winter/Summer Peaking",null,"Non-Coincident"]
["ED_MDU541_09347",null,null,null,null,"Coincident"]
["ED_MDU541_09348",null,null,"Adjustments - Embedded generation","MW","Non-Coincident"]
["ED_MDU541_09349",null,null,null,null,"Coincident"]
["ED_MDU541_09350",null,null,"Weather Corrected MD 10% POE","MW","Non-Coincident"]
["ED_MDU541_09351",null,null,null,null,"Coincident"]
["ED_MDU541_09352",null,null,"Weather Corrected MD 10% POE","MVA","Non-Coincident"]
["ED_MDU541_09353",null,null,null,null,"Coincident"]
["ED_MDU541_09354",null,null,"Weather Corrected MD 50% POE","MW","Non-Coincident"]
["ED_MDU541_09355",null,null,null,null,"Coincident"]
["ED_MDU541_09356",null,null,"Weather Corrected MD 50% POE","MVA","Non-Coincident"]
["ED_MDU541_09357",null,null,null,null,"Coincident"]
["ED_MDU541_09358",null,"<Enter substation name>","Substation Rating","MVA","Non-Coincident"]
["ED_MDU541_09359",null,null,null,null,"Coincident"]
["ED_MDU541_09360",null,null,"Raw Adjusted MD","MW","Non-Coincident"]
["ED_MDU541_09361",null,null,null,null,"Coincident"]
["ED_MDU541_09362",null,null,"Raw Adjusted MD","MVA","Non-Coincident"]
["ED_MDU541_09363",null,null,null,null,"Coincident"]
["ED_MDU541_09364",null,null,"Date MD occurred",null,"Non-Coincident"]
["ED_MDU541_09365",null,null,null,null,"Coincident"]
["ED_MDU541_09366",null,null,"Half hour time period MD occurred",null,"Non-Coincident"]
["ED_MDU541_09367",null,null,null,null,"Coincident"]
["ED_MDU541_09368",null,null,"Winter/Summer Peaking",null,"Non-Coincident"]
["ED_MDU541_09369",null,null,null,null,"Coincident"]
["ED_MDU541_09370",null,null,"Adjustments - Embedded generation","MW","Non-Coincident"]
["ED_MDU541_09371",null,null,null,null,"Coincident"]
["ED_MDU541_09372",null,null,"Weather Corrected MD 10% POE","MW","Non-Coincident"]
["ED_MDU541_09373",null,null,null,null,"Coincident"]
["ED_MDU541_09374",null,null,"Weather Corrected MD 10% POE","MVA","Non-Coincident"]
["ED_MDU541_09375",null,null,null,null,"Coincident"]
["ED_MDU541_09376",null,null,"Weather Corrected MD 50% POE","MW","Non-Coincident"]
["ED_MDU541_09377",null,null,null,null,"Coincident"]
["ED_MDU541_09378",null,null,"Weather Corrected MD 50% POE","MVA","Non-Coincident"]
["ED_MDU541_09379",null,null,null,null,"Coincident"]
["ED_MDU541_09380",null,"<Enter substation name>","Substation Rating","MVA","Non-Coincident"]
["ED_MDU541_09381",null,null,null,null,"Coincident"]
["ED_MDU541_09382",null,null,"Raw Adjusted MD","MW","Non-Coincident"]
["ED_MDU541_09383",null,null,null,null,"Coincident"]
["ED_MDU541_09384",null,null,"Raw Adjusted MD","MVA","Non-Coincident"]
["ED_MDU541_09385",null,null,null,null,"Coincident"]
["ED_MDU541_09386",null,null,"Date MD occurred",null,"Non-Coincident"]
["ED_MDU541_09387",null,null,null,null,"Coincident"]
["ED_MDU541_09388",null,null,"Half hour time period MD occurred",null,"Non-Coincident"]
["ED_MDU541_09389",null,null,null,null,"Coincident"]
["ED_MDU541_09390",null,null,"Winter/Summer Peaking",null,"Non-Coincident"]
["ED_MDU541_09391",null,null,null,null,"Coincident"]
["ED_MDU541_09392",null,null,"Adjustments - Embedded generation","MW","Non-Coincident"]
["ED_MDU541_09393",null,null,null,null,"Coincident"]
["ED_MDU541_09394",null,null,"Weather Corrected MD 10% POE","MW","Non-Coincident"]
["ED_MDU541_09395",null,null,null,null,"Coincident"]
["ED_MDU541_09396",null,null,"Weather Corrected MD 10% POE","MVA","Non-Coincident"]
["ED_MDU541_09397",null,null,null,null,"Coincident"]
["ED_MDU541_09398",null,null,"Weather Corrected MD 50% POE","MW","Non-Coincident"]
["ED_MDU541_09399",null,null,null,null,"Coincident"]
["ED_MDU541_09400",null,null,"Weather Corrected MD 50% POE","MVA","Non-Coincident"]
["ED_MDU541_09401",null,null,null,null,"Coincident"]
["ED_MDU541_09402",null,"<Enter substation name>","Substation Rating","MVA","Non-Coincident"]
["ED_MDU541_09403",null,null,null,null,"Coincident"]
["ED_MDU541_09404",null,null,"Raw Adjusted MD","MW","Non-Coincident"]
["ED_MDU541_09405",null,null,null,null,"Coincident"]
["ED_MDU541_09406",null,null,"Raw Adjusted MD","MVA","Non-Coincident"]
["ED_MDU541_09407",null,null,null,null,"Coincident"]
["ED_MDU541_09408",null,null,"Date MD occurred",null,"Non-Coincident"]
["ED_MDU541_09409",null,null,null,null,"Coincident"]
["ED_MDU541_09410",null,null,"Half hour time period MD occurred",null,"Non-Coincident"]
["ED_MDU541_09411",null,null,null,null,"Coincident"]
["ED_MDU541_09412",null,null,"Winter/Summer Peaking",null,"Non-Coincident"]
["ED_MDU541_09413",null,null,null,null,"Coincident"]
["ED_MDU541_09414",null,null,"Adjustments - Embedded generation","MW","Non-Coincident"]
["ED_MDU541_09415",null,null,null,null,"Coincident"]
["ED_MDU541_09416",null,null,"Weather Corrected MD 10% POE","MW","Non-Coincident"]
["ED_MDU541_09417",null,null,null,null,"Coincident"]
["ED_MDU541_09418",null,null,"Weather Corrected MD 10% POE","MVA","Non-Coincident"]
["ED_MDU541_09419",null,null,null,null,"Coincident"]
["ED_MDU541_09420",null,null,"Weather Corrected MD 50% POE","MW","Non-Coincident"]
["ED_MDU541_09421",null,null,null,null,"Coincident"]
["ED_MDU541_09422",null,null,"Weather Corrected MD 50% POE","MVA","Non-Coincident"]
["ED_MDU541_09423",null,null,null,null,"Coincident"]
["ED_MDU541_09424",null,"<Enter substation name>","Substation Rating","MVA","Non-Coincident"]
["ED_MDU541_09425",null,null,null,null,"Coincident"]
["ED_MDU541_09426",null,null,"Raw Adjusted MD","MW","Non-Coincident"]
["ED_MDU541_09427",null,null,null,null,"Coincident"]
["ED_MDU541_09428",null,null,"Raw Adjusted MD","MVA","Non-Coincident"]
["ED_MDU541_09429",null,null,null,null,"Coincident"]
["ED_MDU541_09430",null,null,"Date MD occurred",null,"Non-Coincident"]
["ED_MDU541_09431",null,null,null,null,"Coincident"]
["ED_MDU541_09432",null,null,"Half hour time period MD occurred",null,"Non-Coincident"]
["ED_MDU541_09433",null,null,null,null,"Coincident"]
["ED_MDU541_09434",null,null,"Winter/Summer Peaking",null,"Non-Coincident"]
["ED_MDU541_09435",null,null,null,null,"Coincident"]
["ED_MDU541_09436",null,null,"Adjustments - Embedded generation","MW","Non-Coincident"]
["ED_MDU541_09437",null,null,null,null,"Coincident"]
["ED_MDU541_09438",null,null,"Weather Corrected MD 10% POE","MW","Non-Coincident"]
["ED_MDU541_09439",null,null,null,null,"Coincident"]
["ED_MDU541_09440",null,null,"Weather Corrected MD 10% POE","MVA","Non-Coincident"]
["ED_MDU541_09441",null,null,null,null,"Coincident"]
["ED_MDU541_09442",null,null,"Weather Corrected MD 50% POE","MW","Non-Coincident"]
["ED_MDU541_09443",null,null,null,null,"Coincident"]
["ED_MDU541_09444",null,null,"Weather Corrected MD 50% POE","MVA","Non-Coincident"]
["ED_MDU541_09445",null,null,null,null,"Coincident"]
["ED_MDU541_09446",null,"<Enter substation name>","Substation Rating","MVA","Non-Coincident"]
["ED_MDU541_09447",null,null,null,null,"Coincident"]
["ED_MDU541_09448",null,null,"Raw Adjusted MD","MW","Non-Coincident"]
["ED_MDU541_09449",null,null,null,null,"Coincident"]
["ED_MDU541_09450",null,null,"Raw Adjusted MD","MVA","Non-Coincident"]
["ED_MDU541_09451",null,null,null,null,"Coincident"]
["ED_MDU541_09452",null,null,"Date MD occurred",null,"Non-Coincident"]
["ED_MDU541_09453",null,null,null,null,"Coincident"]
["ED_MDU541_09454",null,null,"Half hour time period MD occurred",null,"Non-Coincident"]
["ED_MDU541_09455",null,null,null,null,"Coincident"]
["ED_MDU541_09456",null,null,"Winter/Summer Peaking",null,"Non-Coincident"]
["ED_MDU541_09457",null,null,null,null,"Coincident"]
["ED_MDU541_09458",null,null,"Adjustments - Embedded generation","MW","Non-Coincident"]
["ED_MDU541_09459",null,null,null,null,"Coincident"]
["ED_MDU541_09460",null,null,"Weather Corrected MD 10% POE","MW","Non-Coincident"]
["ED_MDU541_09461",null,null,null,null,"Coincident"]
["ED_MDU541_09462",null,null,"Weather Corrected MD 10% POE","MVA","Non-Coincident"]
["ED_MDU541_09463",null,null,null,null,"Coincident"]
["ED_MDU541_09464",null,null,"Weather Corrected MD 50% POE","MW","Non-Coincident"]
["ED_MDU541_09465",null,null,null,null,"Coincident"]
["ED_MDU541_09466",null,null,"Weather Corrected MD 50% POE","MVA","Non-Coincident"]
["ED_MDU541_09467",null,null,null,null,"Coincident"]
["ED_MDU541_09468",null,"<Enter substation name>","Substation Rating","MVA","Non-Coincident"]
["ED_MDU541_09469",null,null,null,null,"Coincident"]
["ED_MDU541_09470",null,null,"Raw Adjusted MD","MW","Non-Coincident"]
["ED_MDU541_09471",null,null,null,null,"Coincident"]
["ED_MDU541_09472",null,null,"Raw Adjusted MD","MVA","Non-Coincident"]
["ED_MDU541_09473",null,null,null,null,"Coincident"]
["ED_MDU541_09474",null,null,"Date MD occurred",null,"Non-Coincident"]
["ED_MDU541_09475",null,null,null,null,"Coincident"]
["ED_MDU541_09476",null,null,"Half hour time period MD occurred",null,"Non-Coincident"]
["ED_MDU541_09477",null,null,null,null,"Coincident"]
["ED_MDU541_09478",null,null,"Winter/Summer Peaking",null,"Non-Coincident"]
["ED_MDU541_09479",null,null,null,null,"Coincident"]
["ED_MDU541_09480",null,null,"Adjustments - Embedded generation","MW","Non-Coincident"]
["ED_MDU541_09481",null,null,null,null,"Coincident"]
["ED_MDU541_09482",null,null,"Weather Corrected MD 10% POE","MW","Non-Coincident"]
["ED_MDU541_09483",null,null,null,null,"Coincident"]
["ED_MDU541_09484",null,null,"Weather Corrected MD 10% POE","MVA","Non-Coincident"]
["ED_MDU541_09485",null,null,null,null,"Coincident"]
["ED_MDU541_09486",null,null,"Weather Corrected MD 50% POE","MW","Non-Coincident"]
["ED_MDU541_09487",null,null,null,null,"Coincident"]
["ED_MDU541_09488",null,null,"Weather Corrected MD 50% POE","MVA","Non-Coincident"]
["ED_MDU541_09489",null,null,null,null,"Coincident"]
["ED_MDU541_09490",null,"<Enter substation name>","Substation Rating","MVA","Non-Coincident"]
["ED_MDU541_09491",null,null,null,null,"Coincident"]
["ED_MDU541_09492",null,null,"Raw Adjusted MD","MW","Non-Coincident"]
["ED_MDU541_09493",null,null,null,null,"Coincident"]
["ED_MDU541_09494",null,null,"Raw Adjusted MD","MVA","Non-Coincident"]
["ED_MDU541_09495",null,null,null,null,"Coincident"]
["ED_MDU541_09496",null,null,"Date MD occurred",null,"Non-Coincident"]
["ED_MDU541_09497",null,null,null,null,"Coincident"]
["ED_MDU541_09498",null,null,"Half hour time period MD occurred",null,"Non-Coincident"]
["ED_MDU541_09499",null,null,null,null,"Coincident"]
["ED_MDU541_09500",null,null,"Winter/Summer Peaking",null,"Non-Coincident"]
["ED_MDU541_09501",null,null,null,null,"Coincident"]
["ED_MDU541_09502",null,null,"Adjustments - Embedded generation","MW","Non-Coincident"]
["ED_MDU541_09503",null,null,null,null,"Coincident"]
["ED_MDU541_09504",null,null,"Weather Corrected MD 10% POE","MW","Non-Coincident"]
["ED_MDU541_09505",null,null,null,null,"Coincident"]
["ED_MDU541_09506",null,null,"Weather Corrected MD 10% POE","MVA","Non-Coincident"]
["ED_MDU541_09507",null,null,null,null,"Coincident"]
["ED_MDU541_09508",null,null,"Weather Corrected MD 50% POE","MW","Non-Coincident"]
["ED_MDU541_09509",null,null,null,null,"Coincident"]
["ED_MDU541_09510",null,null,"Weather Corrected MD 50% POE","MVA","Non-Coincident"]
["ED_MDU541_09511",null,null,null,null,"Coincident"]
["ED_MDU541_09512",null,"<Enter substation name>","Substation Rating","MVA","Non-Coincident"]
["ED_MDU541_09513",null,null,null,null,"Coincident"]
["ED_MDU541_09514",null,null,"Raw Adjusted MD","MW","Non-Coincident"]
["ED_MDU541_09515",null,null,null,null,"Coincident"]
["ED_MDU541_09516",null,null,"Raw Adjusted MD","MVA","Non-Coincident"]
["ED_MDU541_09517",null,null,null,null,"Coincident"]
["ED_MDU541_09518",null,null,"Date MD occurred",null,"Non-Coincident"]
["ED_MDU541_09519",null,null,null,null,"Coincident"]
["ED_MDU541_09520",null,null,"Half hour time period MD occurred",null,"Non-Coincident"]
["ED_MDU541_09521",null,null,null,null,"Coincident"]
["ED_MDU541_09522",null,null,"Winter/Summer Peaking",null,"Non-Coincident"]
["ED_MDU541_09523",null,null,null,null,"Coincident"]
["ED_MDU541_09524",null,null,"Adjustments - Embedded generation","MW","Non-Coincident"]
["ED_MDU541_09525",null,null,null,null,"Coincident"]
["ED_MDU541_09526",null,null,"Weather Corrected MD 10% POE","MW","Non-Coincident"]
["ED_MDU541_09527",null,null,null,null,"Coincident"]
["ED_MDU541_09528",null,null,"Weather Corrected MD 10% POE","MVA","Non-Coincident"]
["ED_MDU541_09529",null,null,null,null,"Coincident"]
["ED_MDU541_09530",null,null,"Weather Corrected MD 50% POE","MW","Non-Coincident"]
["ED_MDU541_09531",null,null,null,null,"Coincident"]
["ED_MDU541_09532",null,null,"Weather Corrected MD 50% POE","MVA","Non-Coincident"]
["ED_MDU541_09533",null,null,null,null,"Coincident"]
["ED_MDU541_09534",null,"<Enter substation name>","Substation Rating","MVA","Non-Coincident"]
["ED_MDU541_09535",null,null,null,null,"Coincident"]
["ED_MDU541_09536",null,null,"Raw Adjusted MD","MW","Non-Coincident"]
["ED_MDU541_09537",null,null,null,null,"Coincident"]
["ED_MDU541_09538",null,null,"Raw Adjusted MD","MVA","Non-Coincident"]
["ED_MDU541_09539",null,null,null,null,"Coincident"]
["ED_MDU541_09540",null,null,"Date MD occurred",null,"Non-Coincident"]
["ED_MDU541_09541",null,null,null,null,"Coincident"]
["ED_MDU541_09542",null,null,"Half hour time period MD occurred",null,"Non-Coincident"]
["ED_MDU541_09543",null,null,null,null,"Coincident"]
["ED_MDU541_09544",null,null,"Winter/Summer Peaking",null,"Non-Coincident"]
["ED_MDU541_09545",null,null,null,null,"Coincident"]
["ED_MDU541_09546",null,null,"Adjustments - Embedded generation","MW","Non-Coincident"]
["ED_MDU541_09547",null,null,null,null,"Coincident"]
["ED_MDU541_09548",null,null,"Weather Corrected MD 10% POE","MW","Non-Coincident"]
["ED_MDU541_09549",null,null,null,null,"Coincident"]
["ED_MDU541_09550",null,null,"Weather Corrected MD 10% POE","MVA","Non-Coincident"]
["ED_MDU541_09551",null,null,null,null,"Coincident"]
["ED_MDU541_09552",null,null,"Weather Corrected MD 50% POE","MW","Non-Coincident"]
["ED_MDU541_09553",null,null,null,null,"Coincident"]
["ED_MDU541_09554",null,null,"Weather Corrected MD 50% POE","MVA","Non-Coincident"]
["ED_MDU541_09555",null,null,null,null,"Coincident"]
["ED_MDU541_09556",null,"<Enter substation name>","Substation Rating","MVA","Non-Coincident"]
["ED_MDU541_09557",null,null,null,null,"Coincident"]
["ED_MDU541_09558",null,null,"Raw Adjusted MD","MW","Non-Coincident"]
["ED_MDU541_09559",null,null,null,null,"Coincident"]
["ED_MDU541_09560",null,null,"Raw Adjusted MD","MVA","Non-Coincident"]
["ED_MDU541_09561",null,null,null,null,"Coincident"]
["ED_MDU541_09562",null,null,"Date MD occurred",null,"Non-Coincident"]
["ED_MDU541_09563",null,null,null,null,"Coincident"]
["ED_MDU541_09564",null,null,"Half hour time period MD occurred",null,"Non-Coincident"]
["ED_MDU541_09565",null,null,null,null,"Coincident"]
["ED_MDU541_09566",null,null,"Winter/Summer Peaking",null,"Non-Coincident"]
["ED_MDU541_09567",null,null,null,null,"Coincident"]
["ED_MDU541_09568",null,null,"Adjustments - Embedded generation","MW","Non-Coincident"]
["ED_MDU541_09569",null,null,null,null,"Coincident"]
["ED_MDU541_09570",null,null,"Weather Corrected MD 10% POE","MW","Non-Coincident"]
["ED_MDU541_09571",null,null,null,null,"Coincident"]
["ED_MDU541_09572",null,null,"Weather Corrected MD 10% POE","MVA","Non-Coincident"]
["ED_MDU541_09573",null,null,null,null,"Coincident"]
["ED_MDU541_09574",null,null,"Weather Corrected MD 50% POE","MW","Non-Coincident"]
["ED_MDU541_09575",null,null,null,null,"Coincident"]
["ED_MDU541_09576",null,null,"Weather Corrected MD 50% POE","MVA","Non-Coincident"]
["ED_MDU541_09577",null,null,null,null,"Coincident"]
["ED_MDU541_09578",null,"<Enter substation name>","Substation Rating","MVA","Non-Coincident"]
["ED_MDU541_09579",null,null,null,null,"Coincident"]
["ED_MDU541_09580",null,null,"Raw Adjusted MD","MW","Non-Coincident"]
["ED_MDU541_09581",null,null,null,null,"Coincident"]
["ED_MDU541_09582",null,null,"Raw Adjusted MD","MVA","Non-Coincident"]
["ED_MDU541_09583",null,null,null,null,"Coincident"]
["ED_MDU541_09584",null,null,"Date MD occurred",null,"Non-Coincident"]
["ED_MDU541_09585",null,null,null,null,"Coincident"]
["ED_MDU541_09586",null,null,"Half hour time period MD occurred",null,"Non-Coincident"]
["ED_MDU541_09587",null,null,null,null,"Coincident"]
["ED_MDU541_09588",null,null,"Winter/Summer Peaking",null,"Non-Coincident"]
["ED_MDU541_09589",null,null,null,null,"Coincident"]
["ED_MDU541_09590",null,null,"Adjustments - Embedded generation","MW","Non-Coincident"]
["ED_MDU541_09591",null,null,null,null,"Coincident"]
["ED_MDU541_09592",null,null,"Weather Corrected MD 10% POE","MW","Non-Coincident"]
["ED_MDU541_09593",null,null,null,null,"Coincident"]
["ED_MDU541_09594",null,null,"Weather Corrected MD 10% POE","MVA","Non-Coincident"]
["ED_MDU541_09595",null,null,null,null,"Coincident"]
["ED_MDU541_09596",null,null,"Weather Corrected MD 50% POE","MW","Non-Coincident"]
["ED_MDU541_09597",null,null,null,null,"Coincident"]
["ED_MDU541_09598",null,null,"Weather Corrected MD 50% POE","MVA","Non-Coincident"]
["ED_MDU541_09599",null,null,null,null,"Coincident"]
["ED_MDU541_09600",null,"<Enter substation name>","Substation Rating","MVA","Non-Coincident"]
["ED_MDU541_09601",null,null,null,null,"Coincident"]
["ED_MDU541_09602",null,null,"Raw Adjusted MD","MW","Non-Coincident"]
["ED_MDU541_09603",null,null,null,null,"Coincident"]
["ED_MDU541_09604",null,null,"Raw Adjusted MD","MVA","Non-Coincident"]
["ED_MDU541_09605",null,null,null,null,"Coincident"]
["ED_MDU541_09606",null,null,"Date MD occurred",null,"Non-Coincident"]
["ED_MDU541_09607",null,null,null,null,"Coincident"]
["ED_MDU541_09608",null,null,"Half hour time period MD occurred",null,"Non-Coincident"]
["ED_MDU541_09609",null,null,null,null,"Coincident"]
["ED_MDU541_09610",null,null,"Winter/Summer Peaking",null,"Non-Coincident"]
["ED_MDU541_09611",null,null,null,null,"Coincident"]
["ED_MDU541_09612",null,null,"Adjustments - Embedded generation","MW","Non-Coincident"]
["ED_MDU541_09613",null,null,null,null,"Coincident"]
["ED_MDU541_09614",null,null,"Weather Corrected MD 10% POE","MW","Non-Coincident"]
["ED_MDU541_09615",null,null,null,null,"Coincident"]
["ED_MDU541_09616",null,null,"Weather Corrected MD 10% POE","MVA","Non-Coincident"]
["ED_MDU541_09617",null,null,null,null,"Coincident"]
["ED_MDU541_09618",null,null,"Weather Corrected MD 50% POE","MW","Non-Coincident"]
["ED_MDU541_09619",null,null,null,null,"Coincident"]
["ED_MDU541_09620",null,null,"Weather Corrected MD 50% POE","MVA","Non-Coincident"]
["ED_MDU541_09621",null,null,null,null,"Coincident"]
["ED_MDU541_09622",null,"<Enter substation name>","Substation Rating","MVA","Non-Coincident"]
["ED_MDU541_09623",null,null,null,null,"Coincident"]
["ED_MDU541_09624",null,null,"Raw Adjusted MD","MW","Non-Coincident"]
["ED_MDU541_09625",null,null,null,null,"Coincident"]
["ED_MDU541_09626",null,null,"Raw Adjusted MD","MVA","Non-Coincident"]
["ED_MDU541_09627",null,null,null,null,"Coincident"]
["ED_MDU541_09628",null,null,"Date MD occurred",null,"Non-Coincident"]
["ED_MDU541_09629",null,null,null,null,"Coincident"]
["ED_MDU541_09630",null,null,"Half hour time period MD occurred",null,"Non-Coincident"]
["ED_MDU541_09631",null,null,null,null,"Coincident"]
["ED_MDU541_09632",null,null,"Winter/Summer Peaking",null,"Non-Coincident"]
["ED_MDU541_09633",null,null,null,null,"Coincident"]
["ED_MDU541_09634",null,null,"Adjustments - Embedded generation","MW","Non-Coincident"]
["ED_MDU541_09635",null,null,null,null,"Coincident"]
["ED_MDU541_09636",null,null,"Weather Corrected MD 10% POE","MW","Non-Coincident"]
["ED_MDU541_09637",null,null,null,null,"Coincident"]
["ED_MDU541_09638",null,null,"Weather Corrected MD 10% POE","MVA","Non-Coincident"]
["ED_MDU541_09639",null,null,null,null,"Coincident"]
["ED_MDU541_09640",null,null,"Weather Corrected MD 50% POE","MW","Non-Coincident"]
["ED_MDU541_09641",null,null,null,null,"Coincident"]
["ED_MDU541_09642",null,null,"Weather Corrected MD 50% POE","MVA","Non-Coincident"]
["ED_MDU541_09643",null,null,null,null,"Coincident"]
["ED_MDU541_09644",null,"<Enter substation name>","Substation Rating","MVA","Non-Coincident"]
["ED_MDU541_09645",null,null,null,null,"Coincident"]
["ED_MDU541_09646",null,null,"Raw Adjusted MD","MW","Non-Coincident"]
["ED_MDU541_09647",null,null,null,null,"Coincident"]
["ED_MDU541_09648",null,null,"Raw Adjusted MD","MVA","Non-Coincident"]
["ED_MDU541_09649",null,null,null,null,"Coincident"]
["ED_MDU541_09650",null,null,"Date MD occurred",null,"Non-Coincident"]
["ED_MDU541_09651",null,null,null,null,"Coincident"]
["ED_MDU541_09652",null,null,"Half hour time period MD occurred",null,"Non-Coincident"]
["ED_MDU541_09653",null,null,null,null,"Coincident"]
["ED_MDU541_09654",null,null,"Winter/Summer Peaking",null,"Non-Coincident"]
["ED_MDU541_09655",null,null,null,null,"Coincident"]
["ED_MDU541_09656",null,null,"Adjustments - Embedded generation","MW","Non-Coincident"]
["ED_MDU541_09657",null,null,null,null,"Coincident"]
["ED_MDU541_09658",null,null,"Weather Corrected MD 10% POE","MW","Non-Coincident"]
["ED_MDU541_09659",null,null,null,null,"Coincident"]
["ED_MDU541_09660",null,null,"Weather Corrected MD 10% POE","MVA","Non-Coincident"]
["ED_MDU541_09661",null,null,null,null,"Coincident"]
["ED_MDU541_09662",null,null,"Weather Corrected MD 50% POE","MW","Non-Coincident"]
["ED_MDU541_09663",null,null,null,null,"Coincident"]
["ED_MDU541_09664",null,null,"Weather Corrected MD 50% POE","MVA","Non-Coincident"]
["ED_MDU541_09665",null,null,null,null,"Coincident"]
["ED_MDU541_09666",null,"<Enter substation name>","Substation Rating","MVA","Non-Coincident"]
["ED_MDU541_09667",null,null,null,null,"Coincident"]
["ED_MDU541_09668",null,null,"Raw Adjusted MD","MW","Non-Coincident"]
["ED_MDU541_09669",null,null,null,null,"Coincident"]
["ED_MDU541_09670",null,null,"Raw Adjusted MD","MVA","Non-Coincident"]
["ED_MDU541_09671",null,null,null,null,"Coincident"]
["ED_MDU541_09672",null,null,"Date MD occurred",null,"Non-Coincident"]
["ED_MDU541_09673",null,null,null,null,"Coincident"]
["ED_MDU541_09674",null,null,"Half hour time period MD occurred",null,"Non-Coincident"]
["ED_MDU541_09675",null,null,null,null,"Coincident"]
["ED_MDU541_09676",null,null,"Winter/Summer Peaking",null,"Non-Coincident"]
["ED_MDU541_09677",null,null,null,null,"Coincident"]
["ED_MDU541_09678",null,null,"Adjustments - Embedded generation","MW","Non-Coincident"]
["ED_MDU541_09679",null,null,null,null,"Coincident"]
["ED_MDU541_09680",null,null,"Weather Corrected MD 10% POE","MW","Non-Coincident"]
["ED_MDU541_09681",null,null,null,null,"Coincident"]
["ED_MDU541_09682",null,null,"Weather Corrected MD 10% POE","MVA","Non-Coincident"]
["ED_MDU541_09683",null,null,null,null,"Coincident"]
["ED_MDU541_09684",null,null,"Weather Corrected MD 50% POE","MW","Non-Coincident"]
["ED_MDU541_09685",null,null,null,null,"Coincident"]
["ED_MDU541_09686",null,null,"Weather Corrected MD 50% POE","MVA","Non-Coincident"]
["ED_MDU541_09687",null,null,null,null,"Coincident"]
["ED_MDU541_09688",null,"<Enter substation name>","Substation Rating","MVA","Non-Coincident"]
["ED_MDU541_09689",null,null,null,null,"Coincident"]
["ED_MDU541_09690",null,null,"Raw Adjusted MD","MW","Non-Coincident"]
["ED_MDU541_09691",null,null,null,null,"Coincident"]
["ED_MDU541_09692",null,null,"Raw Adjusted MD","MVA","Non-Coincident"]
["ED_MDU541_09693",null,null,null,null,"Coincident"]
["ED_MDU541_09694",null,null,"Date MD occurred",null,"Non-Coincident"]
["ED_MDU541_09695",null,null,null,null,"Coincident"]
["ED_MDU541_09696",null,null,"Half hour time period MD occurred",null,"Non-Coincident"]
["ED_MDU541_09697",null,null,null,null,"Coincident"]
["ED_MDU541_09698",null,null,"Winter/Summer Peaking",null,"Non-Coincident"]
["ED_MDU541_09699",null,null,null,null,"Coincident"]
["ED_MDU541_09700",null,null,"Adjustments - Embedded generation","MW","Non-Coincident"]
["ED_MDU541_09701",null,null,null,null,"Coincident"]
["ED_MDU541_09702",null,null,"Weather Corrected MD 10% POE","MW","Non-Coincident"]
["ED_MDU541_09703",null,null,null,null,"Coincident"]
["ED_MDU541_09704",null,null,"Weather Corrected MD 10% POE","MVA","Non-Coincident"]
["ED_MDU541_09705",null,null,null,null,"Coincident"]
["ED_MDU541_09706",null,null,"Weather Corrected MD 50% POE","MW","Non-Coincident"]
["ED_MDU541_09707",null,null,null,null,"Coincident"]
["ED_MDU541_09708",null,null,"Weather Corrected MD 50% POE","MVA","Non-Coincident"]
["ED_MDU541_09709",null,null,null,null,"Coincident"]
["ED_MDU541_09710",null,"<Enter substation name>","Substation Rating","MVA","Non-Coincident"]
["ED_MDU541_09711",null,null,null,null,"Coincident"]
["ED_MDU541_09712",null,null,"Raw Adjusted MD","MW","Non-Coincident"]
["ED_MDU541_09713",null,null,null,null,"Coincident"]
["ED_MDU541_09714",null,null,"Raw Adjusted MD","MVA","Non-Coincident"]
["ED_MDU541_09715",null,null,null,null,"Coincident"]
["ED_MDU541_09716",null,null,"Date MD occurred",null,"Non-Coincident"]
["ED_MDU541_09717",null,null,null,null,"Coincident"]
["ED_MDU541_09718",null,null,"Half hour time period MD occurred",null,"Non-Coincident"]
["ED_MDU541_09719",null,null,null,null,"Coincident"]
["ED_MDU541_09720",null,null,"Winter/Summer Peaking",null,"Non-Coincident"]
["ED_MDU541_09721",null,null,null,null,"Coincident"]
["ED_MDU541_09722",null,null,"Adjustments - Embedded generation","MW","Non-Coincident"]
["ED_MDU541_09723",null,null,null,null,"Coincident"]
["ED_MDU541_09724",null,null,"Weather Corrected MD 10% POE","MW","Non-Coincident"]
["ED_MDU541_09725",null,null,null,null,"Coincident"]
["ED_MDU541_09726",null,null,"Weather Corrected MD 10% POE","MVA","Non-Coincident"]
["ED_MDU541_09727",null,null,null,null,"Coincident"]
["ED_MDU541_09728",null,null,"Weather Corrected MD 50% POE","MW","Non-Coincident"]
["ED_MDU541_09729",null,null,null,null,"Coincident"]
["ED_MDU541_09730",null,null,"Weather Corrected MD 50% POE","MVA","Non-Coincident"]
["ED_MDU541_09731",null,null,null,null,"Coincident"]
["ED_MDU541_09732",null,"<Enter substation name>","Substation Rating","MVA","Non-Coincident"]
["ED_MDU541_09733",null,null,null,null,"Coincident"]
["ED_MDU541_09734",null,null,"Raw Adjusted MD","MW","Non-Coincident"]
["ED_MDU541_09735",null,null,null,null,"Coincident"]
["ED_MDU541_09736",null,null,"Raw Adjusted MD","MVA","Non-Coincident"]
["ED_MDU541_09737",null,null,null,null,"Coincident"]
["ED_MDU541_09738",null,null,"Date MD occurred",null,"Non-Coincident"]
["ED_MDU541_09739",null,null,null,null,"Coincident"]
["ED_MDU541_09740",null,null,"Half hour time period MD occurred",null,"Non-Coincident"]
["ED_MDU541_09741",null,null,null,null,"Coincident"]
["ED_MDU541_09742",null,null,"Winter/Summer Peaking",null,"Non-Coincident"]
["ED_MDU541_09743",null,null,null,null,"Coincident"]
["ED_MDU541_09744",null,null,"Adjustments - Embedded generation","MW","Non-Coincident"]
["ED_MDU541_09745",null,null,null,null,"Coincident"]
["ED_MDU541_09746",null,null,"Weather Corrected MD 10% POE","MW","Non-Coincident"]
["ED_MDU541_09747",null,null,null,null,"Coincident"]
["ED_MDU541_09748",null,null,"Weather Corrected MD 10% POE","MVA","Non-Coincident"]
["ED_MDU541_09749",null,null,null,null,"Coincident"]
["ED_MDU541_09750",null,null,"Weather Corrected MD 50% POE","MW","Non-Coincident"]
["ED_MDU541_09751",null,null,null,null,"Coincident"]
["ED_MDU541_09752",null,null,"Weather Corrected MD 50% POE","MVA","Non-Coincident"]
["ED_MDU541_09753",null,null,null,null,"Coincident"]
["ED_MDU541_09754",null,"<Enter substation name>","Substation Rating","MVA","Non-Coincident"]
["ED_MDU541_09755",null,null,null,null,"Coincident"]
["ED_MDU541_09756",null,null,"Raw Adjusted MD","MW","Non-Coincident"]
["ED_MDU541_09757",null,null,null,null,"Coincident"]
["ED_MDU541_09758",null,null,"Raw Adjusted MD","MVA","Non-Coincident"]
["ED_MDU541_09759",null,null,null,null,"Coincident"]
["ED_MDU541_09760",null,null,"Date MD occurred",null,"Non-Coincident"]
["ED_MDU541_09761",null,null,null,null,"Coincident"]
["ED_MDU541_09762",null,null,"Half hour time period MD occurred",null,"Non-Coincident"]
["ED_MDU541_09763",null,null,null,null,"Coincident"]
["ED_MDU541_09764",null,null,"Winter/Summer Peaking",null,"Non-Coincident"]
["ED_MDU541_09765",null,null,null,null,"Coincident"]
["ED_MDU541_09766",null,null,"Adjustments - Embedded generation","MW","Non-Coincident"]
["ED_MDU541_09767",null,null,null,null,"Coincident"]
["ED_MDU541_09768",null,null,"Weather Corrected MD 10% POE","MW","Non-Coincident"]
["ED_MDU541_09769",null,null,null,null,"Coincident"]
["ED_MDU541_09770",null,null,"Weather Corrected MD 10% POE","MVA","Non-Coincident"]
["ED_MDU541_09771",null,null,null,null,"Coincident"]
["ED_MDU541_09772",null,null,"Weather Corrected MD 50% POE","MW","Non-Coincident"]
["ED_MDU541_09773",null,null,null,null,"Coincident"]
["ED_MDU541_09774",null,null,"Weather Corrected MD 50% POE","MVA","Non-Coincident"]
["ED_MDU541_09775",null,null,null,null,"Coincident"]
["ED_MDU541_09776",null,"<Enter substation name>","Substation Rating","MVA","Non-Coincident"]
["ED_MDU541_09777",null,null,null,null,"Coincident"]
["ED_MDU541_09778",null,null,"Raw Adjusted MD","MW","Non-Coincident"]
["ED_MDU541_09779",null,null,null,null,"Coincident"]
["ED_MDU541_09780",null,null,"Raw Adjusted MD","MVA","Non-Coincident"]
["ED_MDU541_09781",null,null,null,null,"Coincident"]
["ED_MDU541_09782",null,null,"Date MD occurred",null,"Non-Coincident"]
["ED_MDU541_09783",null,null,null,null,"Coincident"]
["ED_MDU541_09784",null,null,"Half hour time period MD occurred",null,"Non-Coincident"]
["ED_MDU541_09785",null,null,null,null,"Coincident"]
["ED_MDU541_09786",null,null,"Winter/Summer Peaking",null,"Non-Coincident"]
["ED_MDU541_09787",null,null,null,null,"Coincident"]
["ED_MDU541_09788",null,null,"Adjustments - Embedded generation","MW","Non-Coincident"]
["ED_MDU541_09789",null,null,null,null,"Coincident"]
["ED_MDU541_09790",null,null,"Weather Corrected MD 10% POE","MW","Non-Coincident"]
["ED_MDU541_09791",null,null,null,null,"Coincident"]
["ED_MDU541_09792",null,null,"Weather Corrected MD 10% POE","MVA","Non-Coincident"]
["ED_MDU541_09793",null,null,null,null,"Coincident"]
["ED_MDU541_09794",null,null,"Weather Corrected MD 50% POE","MW","Non-Coincident"]
["ED_MDU541_09795",null,null,null,null,"Coincident"]
["ED_MDU541_09796",null,null,"Weather Corrected MD 50% POE","MVA","Non-Coincident"]
["ED_MDU541_09797",null,null,null,null,"Coincident"]
["ED_MDU541_09798",null,"<Enter substation name>","Substation Rating","MVA","Non-Coincident"]
["ED_MDU541_09799",null,null,null,null,"Coincident"]
["ED_MDU541_09800",null,null,"Raw Adjusted MD","MW","Non-Coincident"]
["ED_MDU541_09801",null,null,null,null,"Coincident"]
["ED_MDU541_09802",null,null,"Raw Adjusted MD","MVA","Non-Coincident"]
["ED_MDU541_09803",null,null,null,null,"Coincident"]
["ED_MDU541_09804",null,null,"Date MD occurred",null,"Non-Coincident"]
["ED_MDU541_09805",null,null,null,null,"Coincident"]
["ED_MDU541_09806",null,null,"Half hour time period MD occurred",null,"Non-Coincident"]
["ED_MDU541_09807",null,null,null,null,"Coincident"]
["ED_MDU541_09808",null,null,"Winter/Summer Peaking",null,"Non-Coincident"]
["ED_MDU541_09809",null,null,null,null,"Coincident"]
["ED_MDU541_09810",null,null,"Adjustments - Embedded generation","MW","Non-Coincident"]
["ED_MDU541_09811",null,null,null,null,"Coincident"]
["ED_MDU541_09812",null,null,"Weather Corrected MD 10% POE","MW","Non-Coincident"]
["ED_MDU541_09813",null,null,null,null,"Coincident"]
["ED_MDU541_09814",null,null,"Weather Corrected MD 10% POE","MVA","Non-Coincident"]
["ED_MDU541_09815",null,null,null,null,"Coincident"]
["ED_MDU541_09816",null,null,"Weather Corrected MD 50% POE","MW","Non-Coincident"]
["ED_MDU541_09817",null,null,null,null,"Coincident"]
["ED_MDU541_09818",null,null,"Weather Corrected MD 50% POE","MVA","Non-Coincident"]
["ED_MDU541_09819",null,null,null,null,"Coincident"]
["ED_MDU541_09820",null,"<Enter substation name>","Substation Rating","MVA","Non-Coincident"]
["ED_MDU541_09821",null,null,null,null,"Coincident"]
["ED_MDU541_09822",null,null,"Raw Adjusted MD","MW","Non-Coincident"]
["ED_MDU541_09823",null,null,null,null,"Coincident"]
["ED_MDU541_09824",null,null,"Raw Adjusted MD","MVA","Non-Coincident"]
["ED_MDU541_09825",null,null,null,null,"Coincident"]
["ED_MDU541_09826",null,null,"Date MD occurred",null,"Non-Coincident"]
["ED_MDU541_09827",null,null,null,null,"Coincident"]
["ED_MDU541_09828",null,null,"Half hour time period MD occurred",null,"Non-Coincident"]
["ED_MDU541_09829",null,null,null,null,"Coincident"]
["ED_MDU541_09830",null,null,"Winter/Summer Peaking",null,"Non-Coincident"]
["ED_MDU541_09831",null,null,null,null,"Coincident"]
["ED_MDU541_09832",null,null,"Adjustments - Embedded generation","MW","Non-Coincident"]
["ED_MDU541_09833",null,null,null,null,"Coincident"]
["ED_MDU541_09834",null,null,"Weather Corrected MD 10% POE","MW","Non-Coincident"]
["ED_MDU541_09835",null,null,null,null,"Coincident"]
["ED_MDU541_09836",null,null,"Weather Corrected MD 10% POE","MVA","Non-Coincident"]
["ED_MDU541_09837",null,null,null,null,"Coincident"]
["ED_MDU541_09838",null,null,"Weather Corrected MD 50% POE","MW","Non-Coincident"]
["ED_MDU541_09839",null,null,null,null,"Coincident"]
["ED_MDU541_09840",null,null,"Weather Corrected MD 50% POE","MVA","Non-Coincident"]
["ED_MDU541_09841",null,null,null,null,"Coincident"]
["ED_MDU541_09842",null,"<Enter substation name>","Substation Rating","MVA","Non-Coincident"]
["ED_MDU541_09843",null,null,null,null,"Coincident"]
["ED_MDU541_09844",null,null,"Raw Adjusted MD","MW","Non-Coincident"]
["ED_MDU541_09845",null,null,null,null,"Coincident"]
["ED_MDU541_09846",null,null,"Raw Adjusted MD","MVA","Non-Coincident"]
["ED_MDU541_09847",null,null,null,null,"Coincident"]
["ED_MDU541_09848",null,null,"Date MD occurred",null,"Non-Coincident"]
["ED_MDU541_09849",null,null,null,null,"Coincident"]
["ED_MDU541_09850",null,null,"Half hour time period MD occurred",null,"Non-Coincident"]
["ED_MDU541_09851",null,null,null,null,"Coincident"]
["ED_MDU541_09852",null,null,"Winter/Summer Peaking",null,"Non-Coincident"]
["ED_MDU541_09853",null,null,null,null,"Coincident"]
["ED_MDU541_09854",null,null,"Adjustments - Embedded generation","MW","Non-Coincident"]
["ED_MDU541_09855",null,null,null,null,"Coincident"]
["ED_MDU541_09856",null,null,"Weather Corrected MD 10% POE","MW","Non-Coincident"]
["ED_MDU541_09857",null,null,null,null,"Coincident"]
["ED_MDU541_09858",null,null,"Weather Corrected MD 10% POE","MVA","Non-Coincident"]
["ED_MDU541_09859",null,null,null,null,"Coincident"]
["ED_MDU541_09860",null,null,"Weather Corrected MD 50% POE","MW","Non-Coincident"]
["ED_MDU541_09861",null,null,null,null,"Coincident"]
["ED_MDU541_09862",null,null,"Weather Corrected MD 50% POE","MVA","Non-Coincident"]
["ED_MDU541_09863",null,null,null,null,"Coincident"]
["ED_MDU541_09864",null,"<Enter substation name>","Substation Rating","MVA","Non-Coincident"]
["ED_MDU541_09865",null,null,null,null,"Coincident"]
["ED_MDU541_09866",null,null,"Raw Adjusted MD","MW","Non-Coincident"]
["ED_MDU541_09867",null,null,null,null,"Coincident"]
["ED_MDU541_09868",null,null,"Raw Adjusted MD","MVA","Non-Coincident"]
["ED_MDU541_09869",null,null,null,null,"Coincident"]
["ED_MDU541_09870",null,null,"Date MD occurred",null,"Non-Coincident"]
["ED_MDU541_09871",null,null,null,null,"Coincident"]
["ED_MDU541_09872",null,null,"Half hour time period MD occurred",null,"Non-Coincident"]
["ED_MDU541_09873",null,null,null,null,"Coincident"]
["ED_MDU541_09874",null,null,"Winter/Summer Peaking",null,"Non-Coincident"]
["ED_MDU541_09875",null,null,null,null,"Coincident"]
["ED_MDU541_09876",null,null,"Adjustments - Embedded generation","MW","Non-Coincident"]
["ED_MDU541_09877",null,null,null,null,"Coincident"]
["ED_MDU541_09878",null,null,"Weather Corrected MD 10% POE","MW","Non-Coincident"]
["ED_MDU541_09879",null,null,null,null,"Coincident"]
["ED_MDU541_09880",null,null,"Weather Corrected MD 10% POE","MVA","Non-Coincident"]
["ED_MDU541_09881",null,null,null,null,"Coincident"]
["ED_MDU541_09882",null,null,"Weather Corrected MD 50% POE","MW","Non-Coincident"]
["ED_MDU541_09883",null,null,null,null,"Coincident"]
["ED_MDU541_09884",null,null,"Weather Corrected MD 50% POE","MVA","Non-Coincident"]
["ED_MDU541_09885",null,null,null,null,"Coincident"]
["ED_MDU541_09886",null,"<Enter substation name>","Substation Rating","MVA","Non-Coincident"]
["ED_MDU541_09887",null,null,null,null,"Coincident"]
["ED_MDU541_09888",null,null,"Raw Adjusted MD","MW","Non-Coincident"]
["ED_MDU541_09889",null,null,null,null,"Coincident"]
["ED_MDU541_09890",null,null,"Raw Adjusted MD","MVA","Non-Coincident"]
["ED_MDU541_09891",null,null,null,null,"Coincident"]
["ED_MDU541_09892",null,null,"Date MD occurred",null,"Non-Coincident"]
["ED_MDU541_09893",null,null,null,null,"Coincident"]
["ED_MDU541_09894",null,null,"Half hour time period MD occurred",null,"Non-Coincident"]
["ED_MDU541_09895",null,null,null,null,"Coincident"]
["ED_MDU541_09896",null,null,"Winter/Summer Peaking",null,"Non-Coincident"]
["ED_MDU541_09897",null,null,null,null,"Coincident"]
["ED_MDU541_09898",null,null,"Adjustments - Embedded generation","MW","Non-Coincident"]
["ED_MDU541_09899",null,null,null,null,"Coincident"]
["ED_MDU541_09900",null,null,"Weather Corrected MD 10% POE","MW","Non-Coincident"]
["ED_MDU541_09901",null,null,null,null,"Coincident"]
["ED_MDU541_09902",null,null,"Weather Corrected MD 10% POE","MVA","Non-Coincident"]
["ED_MDU541_09903",null,null,null,null,"Coincident"]
["ED_MDU541_09904",null,null,"Weather Corrected MD 50% POE","MW","Non-Coincident"]
["ED_MDU541_09905",null,null,null,null,"Coincident"]
["ED_MDU541_09906",null,null,"Weather Corrected MD 50% POE","MVA","Non-Coincident"]
["ED_MDU541_09907",null,null,null,null,"Coincident"]
["ED_MDU541_09908",null,"<Enter substation name>","Substation Rating","MVA","Non-Coincident"]
["ED_MDU541_09909",null,null,null,null,"Coincident"]
["ED_MDU541_09910",null,null,"Raw Adjusted MD","MW","Non-Coincident"]
["ED_MDU541_09911",null,null,null,null,"Coincident"]
["ED_MDU541_09912",null,null,"Raw Adjusted MD","MVA","Non-Coincident"]
["ED_MDU541_09913",null,null,null,null,"Coincident"]
["ED_MDU541_09914",null,null,"Date MD occurred",null,"Non-Coincident"]
["ED_MDU541_09915",null,null,null,null,"Coincident"]
["ED_MDU541_09916",null,null,"Half hour time period MD occurred",null,"Non-Coincident"]
["ED_MDU541_09917",null,null,null,null,"Coincident"]
["ED_MDU541_09918",null,null,"Winter/Summer Peaking",null,"Non-Coincident"]
["ED_MDU541_09919",null,null,null,null,"Coincident"]
["ED_MDU541_09920",null,null,"Adjustments - Embedded generation","MW","Non-Coincident"]
["ED_MDU541_09921",null,null,null,null,"Coincident"]
["ED_MDU541_09922",null,null,"Weather Corrected MD 10% POE","MW","Non-Coincident"]
["ED_MDU541_09923",null,null,null,null,"Coincident"]
["ED_MDU541_09924",null,null,"Weather Corrected MD 10% POE","MVA","Non-Coincident"]
["ED_MDU541_09925",null,null,null,null,"Coincident"]
["ED_MDU541_09926",null,null,"Weather Corrected MD 50% POE","MW","Non-Coincident"]
["ED_MDU541_09927",null,null,null,null,"Coincident"]
["ED_MDU541_09928",null,null,"Weather Corrected MD 50% POE","MVA","Non-Coincident"]
["ED_MDU541_09929",null,null,null,null,"Coincident"]
["ED_MDU541_09930",null,"<Enter substation name>","Substation Rating","MVA","Non-Coincident"]
["ED_MDU541_09931",null,null,null,null,"Coincident"]
["ED_MDU541_09932",null,null,"Raw Adjusted MD","MW","Non-Coincident"]
["ED_MDU541_09933",null,null,null,null,"Coincident"]
["ED_MDU541_09934",null,null,"Raw Adjusted MD","MVA","Non-Coincident"]
["ED_MDU541_09935",null,null,null,null,"Coincident"]
["ED_MDU541_09936",null,null,"Date MD occurred",null,"Non-Coincident"]
["ED_MDU541_09937",null,null,null,null,"Coincident"]
["ED_MDU541_09938",null,null,"Half hour time period MD occurred",null,"Non-Coincident"]
["ED_MDU541_09939",null,null,null,null,"Coincident"]
["ED_MDU541_09940",null,null,"Winter/Summer Peaking",null,"Non-Coincident"]
["ED_MDU541_09941",null,null,null,null,"Coincident"]
["ED_MDU541_09942",null,null,"Adjustments - Embedded generation","MW","Non-Coincident"]
["ED_MDU541_09943",null,null,null,null,"Coincident"]
["ED_MDU541_09944",null,null,"Weather Corrected MD 10% POE","MW","Non-Coincident"]
["ED_MDU541_09945",null,null,null,null,"Coincident"]
["ED_MDU541_09946",null,null,"Weather Corrected MD 10% POE","MVA","Non-Coincident"]
["ED_MDU541_09947",null,null,null,null,"Coincident"]
["ED_MDU541_09948",null,null,"Weather Corrected MD 50% POE","MW","Non-Coincident"]
["ED_MDU541_09949",null,null,null,null,"Coincident"]
["ED_MDU541_09950",null,null,"Weather Corrected MD 50% POE","MVA","Non-Coincident"]
["ED_MDU541_09951",null,null,null,null,"Coincident"]
["ED_MDU541_09952",null,"<Enter substation name>","Substation Rating","MVA","Non-Coincident"]
["ED_MDU541_09953",null,null,null,null,"Coincident"]
["ED_MDU541_09954",null,null,"Raw Adjusted MD","MW","Non-Coincident"]
["ED_MDU541_09955",null,null,null,null,"Coincident"]
["ED_MDU541_09956",null,null,"Raw Adjusted MD","MVA","Non-Coincident"]
["ED_MDU541_09957",null,null,null,null,"Coincident"]
["ED_MDU541_09958",null,null,"Date MD occurred",null,"Non-Coincident"]
["ED_MDU541_09959",null,null,null,null,"Coincident"]
["ED_MDU541_09960",null,null,"Half hour time period MD occurred",null,"Non-Coincident"]
["ED_MDU541_09961",null,null,null,null,"Coincident"]
["ED_MDU541_09962",null,null,"Winter/Summer Peaking",null,"Non-Coincident"]
["ED_MDU541_09963",null,null,null,null,"Coincident"]
["ED_MDU541_09964",null,null,"Adjustments - Embedded generation","MW","Non-Coincident"]
["ED_MDU541_09965",null,null,null,null,"Coincident"]
["ED_MDU541_09966",null,null,"Weather Corrected MD 10% POE","MW","Non-Coincident"]
["ED_MDU541_09967",null,null,null,null,"Coincident"]
["ED_MDU541_09968",null,null,"Weather Corrected MD 10% POE","MVA","Non-Coincident"]
["ED_MDU541_09969",null,null,null,null,"Coincident"]
["ED_MDU541_09970",null,null,"Weather Corrected MD 50% POE","MW","Non-Coincident"]
["ED_MDU541_09971",null,null,null,null,"Coincident"]
["ED_MDU541_09972",null,null,"Weather Corrected MD 50% POE","MVA","Non-Coincident"]
["ED_MDU541_09973",null,null,null,null,"Coincident"]
["ED_MDU541_09974",null,"<Enter substation name>","Substation Rating","MVA","Non-Coincident"]
["ED_MDU541_09975",null,null,null,null,"Coincident"]
["ED_MDU541_09976",null,null,"Raw Adjusted MD","MW","Non-Coincident"]
["ED_MDU541_09977",null,null,null,null,"Coincident"]
["ED_MDU541_09978",null,null,"Raw Adjusted MD","MVA","Non-Coincident"]
["ED_MDU541_09979",null,null,null,null,"Coincident"]
["ED_MDU541_09980",null,null,"Date MD occurred",null,"Non-Coincident"]
["ED_MDU541_09981",null,null,null,null,"Coincident"]
["ED_MDU541_09982",null,null,"Half hour time period MD occurred",null,"Non-Coincident"]
["ED_MDU541_09983",null,null,null,null,"Coincident"]
["ED_MDU541_09984",null,null,"Winter/Summer Peaking",null,"Non-Coincident"]
["ED_MDU541_09985",null,null,null,null,"Coincident"]
["ED_MDU541_09986",null,null,"Adjustments - Embedded generation","MW","Non-Coincident"]
["ED_MDU541_09987",null,null,null,null,"Coincident"]
["ED_MDU541_09988",null,null,"Weather Corrected MD 10% POE","MW","Non-Coincident"]
["ED_MDU541_09989",null,null,null,null,"Coincident"]
["ED_MDU541_09990",null,null,"Weather Corrected MD 10% POE","MVA","Non-Coincident"]
["ED_MDU541_09991",null,null,null,null,"Coincident"]
["ED_MDU541_09992",null,null,"Weather Corrected MD 50% POE","MW","Non-Coincident"]
["ED_MDU541_09993",null,null,null,null,"Coincident"]
["ED_MDU541_09994",null,null,"Weather Corrected MD 50% POE","MVA","Non-Coincident"]
["ED_MDU541_09995",null,null,null,null,"Coincident"]
["ED_MDU541_09996",null,"<Enter substation name>","Substation Rating","MVA","Non-Coincident"]
["ED_MDU541_09997",null,null,null,null,"Coincident"]
["ED_MDU541_09998",null,null,"Raw Adjusted MD","MW","Non-Coincident"]
["ED_MDU541_09999",null,null,null,null,"Coincident"]
["ED_MDU541_10000",null,null,"Raw Adjusted MD","MVA","Non-Coincident"]
["ED_MDU541_10001",null,null,null,null,"Coincident"]
["ED_MDU541_10002",null,null,"Date MD occurred",null,"Non-Coincident"]
["ED_MDU541_10003",null,null,null,null,"Coincident"]
["ED_MDU541_10004",null,null,"Half hour time period MD occurred",null,"Non-Coincident"]
["ED_MDU541_10005",null,null,null,null,"Coincident"]
["ED_MDU541_10006",null,null,"Winter/Summer Peaking",null,"Non-Coincident"]
["ED_MDU541_10007",null,null,null,null,"Coincident"]
["ED_MDU541_10008",null,null,"Adjustments - Embedded generation","MW","Non-Coincident"]
["ED_MDU541_10009",null,null,null,null,"Coincident"]
["ED_MDU541_10010",null,null,"Weather Corrected MD 10% POE","MW","Non-Coincident"]
["ED_MDU541_10011",null,null,null,null,"Coincident"]
["ED_MDU541_10012",null,null,"Weather Corrected MD 10% POE","MVA","Non-Coincident"]
["ED_MDU541_10013",null,null,null,null,"Coincident"]
["ED_MDU541_10014",null,null,"Weather Corrected MD 50% POE","MW","Non-Coincident"]
["ED_MDU541_10015",null,null,null,null,"Coincident"]
["ED_MDU541_10016",null,null,"Weather Corrected MD 50% POE","MVA","Non-Coincident"]
["ED_MDU541_10017",null,null,null,null,"Coincident"]
["ED_MDU541_10018",null,"<Enter substation name>","Substation Rating","MVA","Non-Coincident"]
["ED_MDU541_10019",null,null,null,null,"Coincident"]
["ED_MDU541_10020",null,null,"Raw Adjusted MD","MW","Non-Coincident"]
["ED_MDU541_10021",null,null,null,null,"Coincident"]
["ED_MDU541_10022",null,null,"Raw Adjusted MD","MVA","Non-Coincident"]
["ED_MDU541_10023",null,null,null,null,"Coincident"]
["ED_MDU541_10024",null,null,"Date MD occurred",null,"Non-Coincident"]
["ED_MDU541_10025",null,null,null,null,"Coincident"]
["ED_MDU541_10026",null,null,"Half hour time period MD occurred",null,"Non-Coincident"]
["ED_MDU541_10027",null,null,null,null,"Coincident"]
["ED_MDU541_10028",null,null,"Winter/Summer Peaking",null,"Non-Coincident"]
["ED_MDU541_10029",null,null,null,null,"Coincident"]
["ED_MDU541_10030",null,null,"Adjustments - Embedded generation","MW","Non-Coincident"]
["ED_MDU541_10031",null,null,null,null,"Coincident"]
["ED_MDU541_10032",null,null,"Weather Corrected MD 10% POE","MW","Non-Coincident"]
["ED_MDU541_10033",null,null,null,null,"Coincident"]
["ED_MDU541_10034",null,null,"Weather Corrected MD 10% POE","MVA","Non-Coincident"]
["ED_MDU541_10035",null,null,null,null,"Coincident"]
["ED_MDU541_10036",null,null,"Weather Corrected MD 50% POE","MW","Non-Coincident"]
["ED_MDU541_10037",null,null,null,null,"Coincident"]
["ED_MDU541_10038",null,null,"Weather Corrected MD 50% POE","MVA","Non-Coincident"]
["ED_MDU541_10039",null,null,null,null,"Coincident"]
["ED_MDU541_10040",null,"<Enter substation name>","Substation Rating","MVA","Non-Coincident"]
["ED_MDU541_10041",null,null,null,null,"Coincident"]
["ED_MDU541_10042",null,null,"Raw Adjusted MD","MW","Non-Coincident"]
["ED_MDU541_10043",null,null,null,null,"Coincident"]
["ED_MDU541_10044",null,null,"Raw Adjusted MD","MVA","Non-Coincident"]
["ED_MDU541_10045",null,null,null,null,"Coincident"]
["ED_MDU541_10046",null,null,"Date MD occurred",null,"Non-Coincident"]
["ED_MDU541_10047",null,null,null,null,"Coincident"]
["ED_MDU541_10048",null,null,"Half hour time period MD occurred",null,"Non-Coincident"]
["ED_MDU541_10049",null,null,null,null,"Coincident"]
["ED_MDU541_10050",null,null,"Winter/Summer Peaking",null,"Non-Coincident"]
["ED_MDU541_10051",null,null,null,null,"Coincident"]
["ED_MDU541_10052",null,null,"Adjustments - Embedded generation","MW","Non-Coincident"]
["ED_MDU541_10053",null,null,null,null,"Coincident"]
["ED_MDU541_10054",null,null,"Weather Corrected MD 10% POE","MW","Non-Coincident"]
["ED_MDU541_10055",null,null,null,null,"Coincident"]
["ED_MDU541_10056",null,null,"Weather Corrected MD 10% POE","MVA","Non-Coincident"]
["ED_MDU541_10057",null,null,null,null,"Coincident"]
["ED_MDU541_10058",null,null,"Weather Corrected MD 50% POE","MW","Non-Coincident"]
["ED_MDU541_10059",null,null,null,null,"Coincident"]
["ED_MDU541_10060",null,null,"Weather Corrected MD 50% POE","MVA","Non-Coincident"]
["ED_MDU541_10061",null,null,null,null,"Coincident"]
["ED_MDU541_10062",null,"<Enter substation name>","Substation Rating","MVA","Non-Coincident"]
["ED_MDU541_10063",null,null,null,null,"Coincident"]
["ED_MDU541_10064",null,null,"Raw Adjusted MD","MW","Non-Coincident"]
["ED_MDU541_10065",null,null,null,null,"Coincident"]
["ED_MDU541_10066",null,null,"Raw Adjusted MD","MVA","Non-Coincident"]
["ED_MDU541_10067",null,null,null,null,"Coincident"]
["ED_MDU541_10068",null,null,"Date MD occurred",null,"Non-Coincident"]
["ED_MDU541_10069",null,null,null,null,"Coincident"]
["ED_MDU541_10070",null,null,"Half hour time period MD occurred",null,"Non-Coincident"]
["ED_MDU541_10071",null,null,null,null,"Coincident"]
["ED_MDU541_10072",null,null,"Winter/Summer Peaking",null,"Non-Coincident"]
["ED_MDU541_10073",null,null,null,null,"Coincident"]
["ED_MDU541_10074",null,null,"Adjustments - Embedded generation","MW","Non-Coincident"]
["ED_MDU541_10075",null,null,null,null,"Coincident"]
["ED_MDU541_10076",null,null,"Weather Corrected MD 10% POE","MW","Non-Coincident"]
["ED_MDU541_10077",null,null,null,null,"Coincident"]
["ED_MDU541_10078",null,null,"Weather Corrected MD 10% POE","MVA","Non-Coincident"]
["ED_MDU541_10079",null,null,null,null,"Coincident"]
["ED_MDU541_10080",null,null,"Weather Corrected MD 50% POE","MW","Non-Coincident"]
["ED_MDU541_10081",null,null,null,null,"Coincident"]
["ED_MDU541_10082",null,null,"Weather Corrected MD 50% POE","MVA","Non-Coincident"]
["ED_MDU541_10083",null,null,null,null,"Coincident"]
["ED_MDU541_10084",null,"<Enter substation name>","Substation Rating","MVA","Non-Coincident"]
["ED_MDU541_10085",null,null,null,null,"Coincident"]
["ED_MDU541_10086",null,null,"Raw Adjusted MD","MW","Non-Coincident"]
["ED_MDU541_10087",null,null,null,null,"Coincident"]
["ED_MDU541_10088",null,null,"Raw Adjusted MD","MVA","Non-Coincident"]
["ED_MDU541_10089",null,null,null,null,"Coincident"]
["ED_MDU541_10090",null,null,"Date MD occurred",null,"Non-Coincident"]
["ED_MDU541_10091",null,null,null,null,"Coincident"]
["ED_MDU541_10092",null,null,"Half hour time period MD occurred",null,"Non-Coincident"]
["ED_MDU541_10093",null,null,null,null,"Coincident"]
["ED_MDU541_10094",null,null,"Winter/Summer Peaking",null,"Non-Coincident"]
["ED_MDU541_10095",null,null,null,null,"Coincident"]
["ED_MDU541_10096",null,null,"Adjustments - Embedded generation","MW","Non-Coincident"]
["ED_MDU541_10097",null,null,null,null,"Coincident"]
["ED_MDU541_10098",null,null,"Weather Corrected MD 10% POE","MW","Non-Coincident"]
["ED_MDU541_10099",null,null,null,null,"Coincident"]
["ED_MDU541_10100",null,null,"Weather Corrected MD 10% POE","MVA","Non-Coincident"]
["ED_MDU541_10101",null,null,null,null,"Coincident"]
["ED_MDU541_10102",null,null,"Weather Corrected MD 50% POE","MW","Non-Coincident"]
["ED_MDU541_10103",null,null,null,null,"Coincident"]
["ED_MDU541_10104",null,null,"Weather Corrected MD 50% POE","MVA","Non-Coincident"]
["ED_MDU541_10105",null,null,null,null,"Coincident"]
["ED_MDU541_10106",null,"<Enter substation name>","Substation Rating","MVA","Non-Coincident"]
["ED_MDU541_10107",null,null,null,null,"Coincident"]
["ED_MDU541_10108",null,null,"Raw Adjusted MD","MW","Non-Coincident"]
["ED_MDU541_10109",null,null,null,null,"Coincident"]
["ED_MDU541_10110",null,null,"Raw Adjusted MD","MVA","Non-Coincident"]
["ED_MDU541_10111",null,null,null,null,"Coincident"]
["ED_MDU541_10112",null,null,"Date MD occurred",null,"Non-Coincident"]
["ED_MDU541_10113",null,null,null,null,"Coincident"]
["ED_MDU541_10114",null,null,"Half hour time period MD occurred",null,"Non-Coincident"]
["ED_MDU541_10115",null,null,null,null,"Coincident"]
["ED_MDU541_10116",null,null,"Winter/Summer Peaking",null,"Non-Coincident"]
["ED_MDU541_10117",null,null,null,null,"Coincident"]
["ED_MDU541_10118",null,null,"Adjustments - Embedded generation","MW","Non-Coincident"]
["ED_MDU541_10119",null,null,null,null,"Coincident"]
["ED_MDU541_10120",null,null,"Weather Corrected MD 10% POE","MW","Non-Coincident"]
["ED_MDU541_10121",null,null,null,null,"Coincident"]
["ED_MDU541_10122",null,null,"Weather Corrected MD 10% POE","MVA","Non-Coincident"]
["ED_MDU541_10123",null,null,null,null,"Coincident"]
["ED_MDU541_10124",null,null,"Weather Corrected MD 50% POE","MW","Non-Coincident"]
["ED_MDU541_10125",null,null,null,null,"Coincident"]
["ED_MDU541_10126",null,null,"Weather Corrected MD 50% POE","MVA","Non-Coincident"]
["ED_MDU541_10127",null,null,null,null,"Coincident"]
["ED_MDU541_10128",null,"<Enter substation name>","Substation Rating","MVA","Non-Coincident"]
["ED_MDU541_10129",null,null,null,null,"Coincident"]
["ED_MDU541_10130",null,null,"Raw Adjusted MD","MW","Non-Coincident"]
["ED_MDU541_10131",null,null,null,null,"Coincident"]
["ED_MDU541_10132",null,null,"Raw Adjusted MD","MVA","Non-Coincident"]
["ED_MDU541_10133",null,null,null,null,"Coincident"]
["ED_MDU541_10134",null,null,"Date MD occurred",null,"Non-Coincident"]
["ED_MDU541_10135",null,null,null,null,"Coincident"]
["ED_MDU541_10136",null,null,"Half hour time period MD occurred",null,"Non-Coincident"]
["ED_MDU541_10137",null,null,null,null,"Coincident"]
["ED_MDU541_10138",null,null,"Winter/Summer Peaking",null,"Non-Coincident"]
["ED_MDU541_10139",null,null,null,null,"Coincident"]
["ED_MDU541_10140",null,null,"Adjustments - Embedded generation","MW","Non-Coincident"]
["ED_MDU541_10141",null,null,null,null,"Coincident"]
["ED_MDU541_10142",null,null,"Weather Corrected MD 10% POE","MW","Non-Coincident"]
["ED_MDU541_10143",null,null,null,null,"Coincident"]
["ED_MDU541_10144",null,null,"Weather Corrected MD 10% POE","MVA","Non-Coincident"]
["ED_MDU541_10145",null,null,null,null,"Coincident"]
["ED_MDU541_10146",null,null,"Weather Corrected MD 50% POE","MW","Non-Coincident"]
["ED_MDU541_10147",null,null,null,null,"Coincident"]
["ED_MDU541_10148",null,null,"Weather Corrected MD 50% POE","MVA","Non-Coincident"]
["ED_MDU541_10149",null,null,null,null,"Coincident"]
["ED_MDU541_10150",null,"<Enter substation name>","Substation Rating","MVA","Non-Coincident"]
["ED_MDU541_10151",null,null,null,null,"Coincident"]
["ED_MDU541_10152",null,null,"Raw Adjusted MD","MW","Non-Coincident"]
["ED_MDU541_10153",null,null,null,null,"Coincident"]
["ED_MDU541_10154",null,null,"Raw Adjusted MD","MVA","Non-Coincident"]
["ED_MDU541_10155",null,null,null,null,"Coincident"]
["ED_MDU541_10156",null,null,"Date MD occurred",null,"Non-Coincident"]
["ED_MDU541_10157",null,null,null,null,"Coincident"]
["ED_MDU541_10158",null,null,"Half hour time period MD occurred",null,"Non-Coincident"]
["ED_MDU541_10159",null,null,null,null,"Coincident"]
["ED_MDU541_10160",null,null,"Winter/Summer Peaking",null,"Non-Coincident"]
["ED_MDU541_10161",null,null,null,null,"Coincident"]
["ED_MDU541_10162",null,null,"Adjustments - Embedded generation","MW","Non-Coincident"]
["ED_MDU541_10163",null,null,null,null,"Coincident"]
["ED_MDU541_10164",null,null,"Weather Corrected MD 10% POE","MW","Non-Coincident"]
["ED_MDU541_10165",null,null,null,null,"Coincident"]
["ED_MDU541_10166",null,null,"Weather Corrected MD 10% POE","MVA","Non-Coincident"]
["ED_MDU541_10167",null,null,null,null,"Coincident"]
["ED_MDU541_10168",null,null,"Weather Corrected MD 50% POE","MW","Non-Coincident"]
["ED_MDU541_10169",null,null,null,null,"Coincident"]
["ED_MDU541_10170",null,null,"Weather Corrected MD 50% POE","MVA","Non-Coincident"]
["ED_MDU541_10171",null,null,null,null,"Coincident"]
["ED_MDU541_10172",null,"<Enter substation name>","Substation Rating","MVA","Non-Coincident"]
["ED_MDU541_10173",null,null,null,null,"Coincident"]
["ED_MDU541_10174",null,null,"Raw Adjusted MD","MW","Non-Coincident"]
["ED_MDU541_10175",null,null,null,null,"Coincident"]
["ED_MDU541_10176",null,null,"Raw Adjusted MD","MVA","Non-Coincident"]
["ED_MDU541_10177",null,null,null,null,"Coincident"]
["ED_MDU541_10178",null,null,"Date MD occurred",null,"Non-Coincident"]
["ED_MDU541_10179",null,null,null,null,"Coincident"]
["ED_MDU541_10180",null,null,"Half hour time period MD occurred",null,"Non-Coincident"]
["ED_MDU541_10181",null,null,null,null,"Coincident"]
["ED_MDU541_10182",null,null,"Winter/Summer Peaking",null,"Non-Coincident"]
["ED_MDU541_10183",null,null,null,null,"Coincident"]
["ED_MDU541_10184",null,null,"Adjustments - Embedded generation","MW","Non-Coincident"]
["ED_MDU541_10185",null,null,null,null,"Coincident"]
["ED_MDU541_10186",null,null,"Weather Corrected MD 10% POE","MW","Non-Coincident"]
["ED_MDU541_10187",null,null,null,null,"Coincident"]
["ED_MDU541_10188",null,null,"Weather Corrected MD 10% POE","MVA","Non-Coincident"]
["ED_MDU541_10189",null,null,null,null,"Coincident"]
["ED_MDU541_10190",null,null,"Weather Corrected MD 50% POE","MW","Non-Coincident"]
["ED_MDU541_10191",null,null,null,null,"Coincident"]
["ED_MDU541_10192",null,null,"Weather Corrected MD 50% POE","MVA","Non-Coincident"]
["ED_MDU541_10193",null,null,null,null,"Coincident"]
["ED_MDU541_10194",null,"<Enter substation name>","Substation Rating","MVA","Non-Coincident"]
["ED_MDU541_10195",null,null,null,null,"Coincident"]
["ED_MDU541_10196",null,null,"Raw Adjusted MD","MW","Non-Coincident"]
["ED_MDU541_10197",null,null,null,null,"Coincident"]
["ED_MDU541_10198",null,null,"Raw Adjusted MD","MVA","Non-Coincident"]
["ED_MDU541_10199",null,null,null,null,"Coincident"]
["ED_MDU541_10200",null,null,"Date MD occurred",null,"Non-Coincident"]
["ED_MDU541_10201",null,null,null,null,"Coincident"]
["ED_MDU541_10202",null,null,"Half hour time period MD occurred",null,"Non-Coincident"]
["ED_MDU541_10203",null,null,null,null,"Coincident"]
["ED_MDU541_10204",null,null,"Winter/Summer Peaking",null,"Non-Coincident"]
["ED_MDU541_10205",null,null,null,null,"Coincident"]
["ED_MDU541_10206",null,null,"Adjustments - Embedded generation","MW","Non-Coincident"]
["ED_MDU541_10207",null,null,null,null,"Coincident"]
["ED_MDU541_10208",null,null,"Weather Corrected MD 10% POE","MW","Non-Coincident"]
["ED_MDU541_10209",null,null,null,null,"Coincident"]
["ED_MDU541_10210",null,null,"Weather Corrected MD 10% POE","MVA","Non-Coincident"]
["ED_MDU541_10211",null,null,null,null,"Coincident"]
["ED_MDU541_10212",null,null,"Weather Corrected MD 50% POE","MW","Non-Coincident"]
["ED_MDU541_10213",null,null,null,null,"Coincident"]
["ED_MDU541_10214",null,null,"Weather Corrected MD 50% POE","MVA","Non-Coincident"]
["ED_MDU541_10215",null,null,null,null,"Coincident"]
["ED_MDU541_10216",null,"<Enter substation name>","Substation Rating","MVA","Non-Coincident"]
["ED_MDU541_10217",null,null,null,null,"Coincident"]
["ED_MDU541_10218",null,null,"Raw Adjusted MD","MW","Non-Coincident"]
["ED_MDU541_10219",null,null,null,null,"Coincident"]
["ED_MDU541_10220",null,null,"Raw Adjusted MD","MVA","Non-Coincident"]
["ED_MDU541_10221",null,null,null,null,"Coincident"]
["ED_MDU541_10222",null,null,"Date MD occurred",null,"Non-Coincident"]
["ED_MDU541_10223",null,null,null,null,"Coincident"]
["ED_MDU541_10224",null,null,"Half hour time period MD occurred",null,"Non-Coincident"]
["ED_MDU541_10225",null,null,null,null,"Coincident"]
["ED_MDU541_10226",null,null,"Winter/Summer Peaking",null,"Non-Coincident"]
["ED_MDU541_10227",null,null,null,null,"Coincident"]
["ED_MDU541_10228",null,null,"Adjustments - Embedded generation","MW","Non-Coincident"]
["ED_MDU541_10229",null,null,null,null,"Coincident"]
["ED_MDU541_10230",null,null,"Weather Corrected MD 10% POE","MW","Non-Coincident"]
["ED_MDU541_10231",null,null,null,null,"Coincident"]
["ED_MDU541_10232",null,null,"Weather Corrected MD 10% POE","MVA","Non-Coincident"]
["ED_MDU541_10233",null,null,null,null,"Coincident"]
["ED_MDU541_10234",null,null,"Weather Corrected MD 50% POE","MW","Non-Coincident"]
["ED_MDU541_10235",null,null,null,null,"Coincident"]
["ED_MDU541_10236",null,null,"Weather Corrected MD 50% POE","MVA","Non-Coincident"]
["ED_MDU541_10237",null,null,null,null,"Coincident"]
["ED_MDU541_10238",null,"<Enter substation name>","Substation Rating","MVA","Non-Coincident"]
["ED_MDU541_10239",null,null,null,null,"Coincident"]
["ED_MDU541_10240",null,null,"Raw Adjusted MD","MW","Non-Coincident"]
["ED_MDU541_10241",null,null,null,null,"Coincident"]
["ED_MDU541_10242",null,null,"Raw Adjusted MD","MVA","Non-Coincident"]
["ED_MDU541_10243",null,null,null,null,"Coincident"]
["ED_MDU541_10244",null,null,"Date MD occurred",null,"Non-Coincident"]
["ED_MDU541_10245",null,null,null,null,"Coincident"]
["ED_MDU541_10246",null,null,"Half hour time period MD occurred",null,"Non-Coincident"]
["ED_MDU541_10247",null,null,null,null,"Coincident"]
["ED_MDU541_10248",null,null,"Winter/Summer Peaking",null,"Non-Coincident"]
["ED_MDU541_10249",null,null,null,null,"Coincident"]
["ED_MDU541_10250",null,null,"Adjustments - Embedded generation","MW","Non-Coincident"]
["ED_MDU541_10251",null,null,null,null,"Coincident"]
["ED_MDU541_10252",null,null,"Weather Corrected MD 10% POE","MW","Non-Coincident"]
["ED_MDU541_10253",null,null,null,null,"Coincident"]
["ED_MDU541_10254",null,null,"Weather Corrected MD 10% POE","MVA","Non-Coincident"]
["ED_MDU541_10255",null,null,null,null,"Coincident"]
["ED_MDU541_10256",null,null,"Weather Corrected MD 50% POE","MW","Non-Coincident"]
["ED_MDU541_10257",null,null,null,null,"Coincident"]
["ED_MDU541_10258",null,null,"Weather Corrected MD 50% POE","MVA","Non-Coincident"]
["ED_MDU541_10259",null,null,null,null,"Coincident"]
["ED_MDU541_10260",null,"<Enter substation name>","Substation Rating","MVA","Non-Coincident"]
["ED_MDU541_10261",null,null,null,null,"Coincident"]
["ED_MDU541_10262",null,null,"Raw Adjusted MD","MW","Non-Coincident"]
["ED_MDU541_10263",null,null,null,null,"Coincident"]
["ED_MDU541_10264",null,null,"Raw Adjusted MD","MVA","Non-Coincident"]
["ED_MDU541_10265",null,null,null,null,"Coincident"]
["ED_MDU541_10266",null,null,"Date MD occurred",null,"Non-Coincident"]
["ED_MDU541_10267",null,null,null,null,"Coincident"]
["ED_MDU541_10268",null,null,"Half hour time period MD occurred",null,"Non-Coincident"]
["ED_MDU541_10269",null,null,null,null,"Coincident"]
["ED_MDU541_10270",null,null,"Winter/Summer Peaking",null,"Non-Coincident"]
["ED_MDU541_10271",null,null,null,null,"Coincident"]
["ED_MDU541_10272",null,null,"Adjustments - Embedded generation","MW","Non-Coincident"]
["ED_MDU541_10273",null,null,null,null,"Coincident"]
["ED_MDU541_10274",null,null,"Weather Corrected MD 10% POE","MW","Non-Coincident"]
["ED_MDU541_10275",null,null,null,null,"Coincident"]
["ED_MDU541_10276",null,null,"Weather Corrected MD 10% POE","MVA","Non-Coincident"]
["ED_MDU541_10277",null,null,null,null,"Coincident"]
["ED_MDU541_10278",null,null,"Weather Corrected MD 50% POE","MW","Non-Coincident"]
["ED_MDU541_10279",null,null,null,null,"Coincident"]
["ED_MDU541_10280",null,null,"Weather Corrected MD 50% POE","MVA","Non-Coincident"]
["ED_MDU541_10281",null,null,null,null,"Coincident"]
["ED_MDU541_10282",null,"<Enter substation name>","Substation Rating","MVA","Non-Coincident"]
["ED_MDU541_10283",null,null,null,null,"Coincident"]
["ED_MDU541_10284",null,null,"Raw Adjusted MD","MW","Non-Coincident"]
["ED_MDU541_10285",null,null,null,null,"Coincident"]
["ED_MDU541_10286",null,null,"Raw Adjusted MD","MVA","Non-Coincident"]
["ED_MDU541_10287",null,null,null,null,"Coincident"]
["ED_MDU541_10288",null,null,"Date MD occurred",null,"Non-Coincident"]
["ED_MDU541_10289",null,null,null,null,"Coincident"]
["ED_MDU541_10290",null,null,"Half hour time period MD occurred",null,"Non-Coincident"]
["ED_MDU541_10291",null,null,null,null,"Coincident"]
["ED_MDU541_10292",null,null,"Winter/Summer Peaking",null,"Non-Coincident"]
["ED_MDU541_10293",null,null,null,null,"Coincident"]
["ED_MDU541_10294",null,null,"Adjustments - Embedded generation","MW","Non-Coincident"]
["ED_MDU541_10295",null,null,null,null,"Coincident"]
["ED_MDU541_10296",null,null,"Weather Corrected MD 10% POE","MW","Non-Coincident"]
["ED_MDU541_10297",null,null,null,null,"Coincident"]
["ED_MDU541_10298",null,null,"Weather Corrected MD 10% POE","MVA","Non-Coincident"]
["ED_MDU541_10299",null,null,null,null,"Coincident"]
["ED_MDU541_10300",null,null,"Weather Corrected MD 50% POE","MW","Non-Coincident"]
["ED_MDU541_10301",null,null,null,null,"Coincident"]
["ED_MDU541_10302",null,null,"Weather Corrected MD 50% POE","MVA","Non-Coincident"]
["ED_MDU541_10303",null,null,null,null,"Coincident"]
["ED_MDU541_10304",null,"<Enter substation name>","Substation Rating","MVA","Non-Coincident"]
["ED_MDU541_10305",null,null,null,null,"Coincident"]
["ED_MDU541_10306",null,null,"Raw Adjusted MD","MW","Non-Coincident"]
["ED_MDU541_10307",null,null,null,null,"Coincident"]
["ED_MDU541_10308",null,null,"Raw Adjusted MD","MVA","Non-Coincident"]
["ED_MDU541_10309",null,null,null,null,"Coincident"]
["ED_MDU541_10310",null,null,"Date MD occurred",null,"Non-Coincident"]
["ED_MDU541_10311",null,null,null,null,"Coincident"]
["ED_MDU541_10312",null,null,"Half hour time period MD occurred",null,"Non-Coincident"]
["ED_MDU541_10313",null,null,null,null,"Coincident"]
["ED_MDU541_10314",null,null,"Winter/Summer Peaking",null,"Non-Coincident"]
["ED_MDU541_10315",null,null,null,null,"Coincident"]
["ED_MDU541_10316",null,null,"Adjustments - Embedded generation","MW","Non-Coincident"]
["ED_MDU541_10317",null,null,null,null,"Coincident"]
["ED_MDU541_10318",null,null,"Weather Corrected MD 10% POE","MW","Non-Coincident"]
["ED_MDU541_10319",null,null,null,null,"Coincident"]
["ED_MDU541_10320",null,null,"Weather Corrected MD 10% POE","MVA","Non-Coincident"]
["ED_MDU541_10321",null,null,null,null,"Coincident"]
["ED_MDU541_10322",null,null,"Weather Corrected MD 50% POE","MW","Non-Coincident"]
["ED_MDU541_10323",null,null,null,null,"Coincident"]
["ED_MDU541_10324",null,null,"Weather Corrected MD 50% POE","MVA","Non-Coincident"]
["ED_MDU541_10325",null,null,null,null,"Coincident"]
["ED_MDU541_10326",null,"<Enter substation name>","Substation Rating","MVA","Non-Coincident"]
["ED_MDU541_10327",null,null,null,null,"Coincident"]
["ED_MDU541_10328",null,null,"Raw Adjusted MD","MW","Non-Coincident"]
["ED_MDU541_10329",null,null,null,null,"Coincident"]
["ED_MDU541_10330",null,null,"Raw Adjusted MD","MVA","Non-Coincident"]
["ED_MDU541_10331",null,null,null,null,"Coincident"]
["ED_MDU541_10332",null,null,"Date MD occurred",null,"Non-Coincident"]
["ED_MDU541_10333",null,null,null,null,"Coincident"]
["ED_MDU541_10334",null,null,"Half hour time period MD occurred",null,"Non-Coincident"]
["ED_MDU541_10335",null,null,null,null,"Coincident"]
["ED_MDU541_10336",null,null,"Winter/Summer Peaking",null,"Non-Coincident"]
["ED_MDU541_10337",null,null,null,null,"Coincident"]
["ED_MDU541_10338",null,null,"Adjustments - Embedded generation","MW","Non-Coincident"]
["ED_MDU541_10339",null,null,null,null,"Coincident"]
["ED_MDU541_10340",null,null,"Weather Corrected MD 10% POE","MW","Non-Coincident"]
["ED_MDU541_10341",null,null,null,null,"Coincident"]
["ED_MDU541_10342",null,null,"Weather Corrected MD 10% POE","MVA","Non-Coincident"]
["ED_MDU541_10343",null,null,null,null,"Coincident"]
["ED_MDU541_10344",null,null,"Weather Corrected MD 50% POE","MW","Non-Coincident"]
["ED_MDU541_10345",null,null,null,null,"Coincident"]
["ED_MDU541_10346",null,null,"Weather Corrected MD 50% POE","MVA","Non-Coincident"]
["ED_MDU541_10347",null,null,null,null,"Coincident"]
["ED_MDU541_10348",null,"<Enter substation name>","Substation Rating","MVA","Non-Coincident"]
["ED_MDU541_10349",null,null,null,null,"Coincident"]
["ED_MDU541_10350",null,null,"Raw Adjusted MD","MW","Non-Coincident"]
["ED_MDU541_10351",null,null,null,null,"Coincident"]
["ED_MDU541_10352",null,null,"Raw Adjusted MD","MVA","Non-Coincident"]
["ED_MDU541_10353",null,null,null,null,"Coincident"]
["ED_MDU541_10354",null,null,"Date MD occurred",null,"Non-Coincident"]
["ED_MDU541_10355",null,null,null,null,"Coincident"]
["ED_MDU541_10356",null,null,"Half hour time period MD occurred",null,"Non-Coincident"]
["ED_MDU541_10357",null,null,null,null,"Coincident"]
["ED_MDU541_10358",null,null,"Winter/Summer Peaking",null,"Non-Coincident"]
["ED_MDU541_10359",null,null,null,null,"Coincident"]
["ED_MDU541_10360",null,null,"Adjustments - Embedded generation","MW","Non-Coincident"]
["ED_MDU541_10361",null,null,null,null,"Coincident"]
["ED_MDU541_10362",null,null,"Weather Corrected MD 10% POE","MW","Non-Coincident"]
["ED_MDU541_10363",null,null,null,null,"Coincident"]
["ED_MDU541_10364",null,null,"Weather Corrected MD 10% POE","MVA","Non-Coincident"]
["ED_MDU541_10365",null,null,null,null,"Coincident"]
["ED_MDU541_10366",null,null,"Weather Corrected MD 50% POE","MW","Non-Coincident"]
["ED_MDU541_10367",null,null,null,null,"Coincident"]
["ED_MDU541_10368",null,null,"Weather Corrected MD 50% POE","MVA","Non-Coincident"]
["ED_MDU541_10369",null,null,null,null,"Coincident"]
["ED_MDU541_10370",null,"<Enter substation name>","Substation Rating","MVA","Non-Coincident"]
["ED_MDU541_10371",null,null,null,null,"Coincident"]
["ED_MDU541_10372",null,null,"Raw Adjusted MD","MW","Non-Coincident"]
["ED_MDU541_10373",null,null,null,null,"Coincident"]
["ED_MDU541_10374",null,null,"Raw Adjusted MD","MVA","Non-Coincident"]
["ED_MDU541_10375",null,null,null,null,"Coincident"]
["ED_MDU541_10376",null,null,"Date MD occurred",null,"Non-Coincident"]
["ED_MDU541_10377",null,null,null,null,"Coincident"]
["ED_MDU541_10378",null,null,"Half hour time period MD occurred",null,"Non-Coincident"]
["ED_MDU541_10379",null,null,null,null,"Coincident"]
["ED_MDU541_10380",null,null,"Winter/Summer Peaking",null,"Non-Coincident"]
["ED_MDU541_10381",null,null,null,null,"Coincident"]
["ED_MDU541_10382",null,null,"Adjustments - Embedded generation","MW","Non-Coincident"]
["ED_MDU541_10383",null,null,null,null,"Coincident"]
["ED_MDU541_10384",null,null,"Weather Corrected MD 10% POE","MW","Non-Coincident"]
["ED_MDU541_10385",null,null,null,null,"Coincident"]
["ED_MDU541_10386",null,null,"Weather Corrected MD 10% POE","MVA","Non-Coincident"]
["ED_MDU541_10387",null,null,null,null,"Coincident"]
["ED_MDU541_10388",null,null,"Weather Corrected MD 50% POE","MW","Non-Coincident"]
["ED_MDU541_10389",null,null,null,null,"Coincident"]
["ED_MDU541_10390",null,null,"Weather Corrected MD 50% POE","MVA","Non-Coincident"]
["ED_MDU541_10391",null,null,null,null,"Coincident"]
["ED_MDU541_10392",null,"<Enter substation name>","Substation Rating","MVA","Non-Coincident"]
["ED_MDU541_10393",null,null,null,null,"Coincident"]
["ED_MDU541_10394",null,null,"Raw Adjusted MD","MW","Non-Coincident"]
["ED_MDU541_10395",null,null,null,null,"Coincident"]
["ED_MDU541_10396",null,null,"Raw Adjusted MD","MVA","Non-Coincident"]
["ED_MDU541_10397",null,null,null,null,"Coincident"]
["ED_MDU541_10398",null,null,"Date MD occurred",null,"Non-Coincident"]
["ED_MDU541_10399",null,null,null,null,"Coincident"]
["ED_MDU541_10400",null,null,"Half hour time period MD occurred",null,"Non-Coincident"]
["ED_MDU541_10401",null,null,null,null,"Coincident"]
["ED_MDU541_10402",null,null,"Winter/Summer Peaking",null,"Non-Coincident"]
["ED_MDU541_10403",null,null,null,null,"Coincident"]
["ED_MDU541_10404",null,null,"Adjustments - Embedded generation","MW","Non-Coincident"]
["ED_MDU541_10405",null,null,null,null,"Coincident"]
["ED_MDU541_10406",null,null,"Weather Corrected MD 10% POE","MW","Non-Coincident"]
["ED_MDU541_10407",null,null,null,null,"Coincident"]
["ED_MDU541_10408",null,null,"Weather Corrected MD 10% POE","MVA","Non-Coincident"]
["ED_MDU541_10409",null,null,null,null,"Coincident"]
["ED_MDU541_10410",null,null,"Weather Corrected MD 50% POE","MW","Non-Coincident"]
["ED_MDU541_10411",null,null,null,null,"Coincident"]
["ED_MDU541_10412",null,null,"Weather Corrected MD 50% POE","MVA","Non-Coincident"]
["ED_MDU541_10413",null,null,null,null,"Coincident"]
["ED_MDU541_10414",null,"<Enter substation name>","Substation Rating","MVA","Non-Coincident"]
["ED_MDU541_10415",null,null,null,null,"Coincident"]
["ED_MDU541_10416",null,null,"Raw Adjusted MD","MW","Non-Coincident"]
["ED_MDU541_10417",null,null,null,null,"Coincident"]
["ED_MDU541_10418",null,null,"Raw Adjusted MD","MVA","Non-Coincident"]
["ED_MDU541_10419",null,null,null,null,"Coincident"]
["ED_MDU541_10420",null,null,"Date MD occurred",null,"Non-Coincident"]
["ED_MDU541_10421",null,null,null,null,"Coincident"]
["ED_MDU541_10422",null,null,"Half hour time period MD occurred",null,"Non-Coincident"]
["ED_MDU541_10423",null,null,null,null,"Coincident"]
["ED_MDU541_10424",null,null,"Winter/Summer Peaking",null,"Non-Coincident"]
["ED_MDU541_10425",null,null,null,null,"Coincident"]
["ED_MDU541_10426",null,null,"Adjustments - Embedded generation","MW","Non-Coincident"]
["ED_MDU541_10427",null,null,null,null,"Coincident"]
["ED_MDU541_10428",null,null,"Weather Corrected MD 10% POE","MW","Non-Coincident"]
["ED_MDU541_10429",null,null,null,null,"Coincident"]
["ED_MDU541_10430",null,null,"Weather Corrected MD 10% POE","MVA","Non-Coincident"]
["ED_MDU541_10431",null,null,null,null,"Coincident"]
["ED_MDU541_10432",null,null,"Weather Corrected MD 50% POE","MW","Non-Coincident"]
["ED_MDU541_10433",null,null,null,null,"Coincident"]
["ED_MDU541_10434",null,null,"Weather Corrected MD 50% POE","MVA","Non-Coincident"]
["ED_MDU541_10435",null,null,null,null,"Coincident"]
["ED_MDU541_10436",null,"<Enter substation name>","Substation Rating","MVA","Non-Coincident"]
["ED_MDU541_10437",null,null,null,null,"Coincident"]
["ED_MDU541_10438",null,null,"Raw Adjusted MD","MW","Non-Coincident"]
["ED_MDU541_10439",null,null,null,null,"Coincident"]
["ED_MDU541_10440",null,null,"Raw Adjusted MD","MVA","Non-Coincident"]
["ED_MDU541_10441",null,null,null,null,"Coincident"]
["ED_MDU541_10442",null,null,"Date MD occurred",null,"Non-Coincident"]
["ED_MDU541_10443",null,null,null,null,"Coincident"]
["ED_MDU541_10444",null,null,"Half hour time period MD occurred",null,"Non-Coincident"]
["ED_MDU541_10445",null,null,null,null,"Coincident"]
["ED_MDU541_10446",null,null,"Winter/Summer Peaking",null,"Non-Coincident"]
["ED_MDU541_10447",null,null,null,null,"Coincident"]
["ED_MDU541_10448",null,null,"Adjustments - Embedded generation","MW","Non-Coincident"]
["ED_MDU541_10449",null,null,null,null,"Coincident"]
["ED_MDU541_10450",null,null,"Weather Corrected MD 10% POE","MW","Non-Coincident"]
["ED_MDU541_10451",null,null,null,null,"Coincident"]
["ED_MDU541_10452",null,null,"Weather Corrected MD 10% POE","MVA","Non-Coincident"]
["ED_MDU541_10453",null,null,null,null,"Coincident"]
["ED_MDU541_10454",null,null,"Weather Corrected MD 50% POE","MW","Non-Coincident"]
["ED_MDU541_10455",null,null,null,null,"Coincident"]
["ED_MDU541_10456",null,null,"Weather Corrected MD 50% POE","MVA","Non-Coincident"]
["ED_MDU541_10457",null,null,null,null,"Coincident"]
["ED_MDU541_10458",null,"<Enter substation name>","Substation Rating","MVA","Non-Coincident"]
["ED_MDU541_10459",null,null,null,null,"Coincident"]
["ED_MDU541_10460",null,null,"Raw Adjusted MD","MW","Non-Coincident"]
["ED_MDU541_10461",null,null,null,null,"Coincident"]
["ED_MDU541_10462",null,null,"Raw Adjusted MD","MVA","Non-Coincident"]
["ED_MDU541_10463",null,null,null,null,"Coincident"]
["ED_MDU541_10464",null,null,"Date MD occurred",null,"Non-Coincident"]
["ED_MDU541_10465",null,null,null,null,"Coincident"]
["ED_MDU541_10466",null,null,"Half hour time period MD occurred",null,"Non-Coincident"]
["ED_MDU541_10467",null,null,null,null,"Coincident"]
["ED_MDU541_10468",null,null,"Winter/Summer Peaking",null,"Non-Coincident"]
["ED_MDU541_10469",null,null,null,null,"Coincident"]
["ED_MDU541_10470",null,null,"Adjustments - Embedded generation","MW","Non-Coincident"]
["ED_MDU541_10471",null,null,null,null,"Coincident"]
["ED_MDU541_10472",null,null,"Weather Corrected MD 10% POE","MW","Non-Coincident"]
["ED_MDU541_10473",null,null,null,null,"Coincident"]
["ED_MDU541_10474",null,null,"Weather Corrected MD 10% POE","MVA","Non-Coincident"]
["ED_MDU541_10475",null,null,null,null,"Coincident"]
["ED_MDU541_10476",null,null,"Weather Corrected MD 50% POE","MW","Non-Coincident"]
["ED_MDU541_10477",null,null,null,null,"Coincident"]
["ED_MDU541_10478",null,null,"Weather Corrected MD 50% POE","MVA","Non-Coincident"]
["ED_MDU541_10479",null,null,null,null,"Coincident"]
["ED_MDU541_10480",null,"<Enter substation name>","Substation Rating","MVA","Non-Coincident"]
["ED_MDU541_10481",null,null,null,null,"Coincident"]
["ED_MDU541_10482",null,null,"Raw Adjusted MD","MW","Non-Coincident"]
["ED_MDU541_10483",null,null,null,null,"Coincident"]
["ED_MDU541_10484",null,null,"Raw Adjusted MD","MVA","Non-Coincident"]
["ED_MDU541_10485",null,null,null,null,"Coincident"]
["ED_MDU541_10486",null,null,"Date MD occurred",null,"Non-Coincident"]
["ED_MDU541_10487",null,null,null,null,"Coincident"]
["ED_MDU541_10488",null,null,"Half hour time period MD occurred",null,"Non-Coincident"]
["ED_MDU541_10489",null,null,null,null,"Coincident"]
["ED_MDU541_10490",null,null,"Winter/Summer Peaking",null,"Non-Coincident"]
["ED_MDU541_10491",null,null,null,null,"Coincident"]
["ED_MDU541_10492",null,null,"Adjustments - Embedded generation","MW","Non-Coincident"]
["ED_MDU541_10493",null,null,null,null,"Coincident"]
["ED_MDU541_10494",null,null,"Weather Corrected MD 10% POE","MW","Non-Coincident"]
["ED_MDU541_10495",null,null,null,null,"Coincident"]
["ED_MDU541_10496",null,null,"Weather Corrected MD 10% POE","MVA","Non-Coincident"]
["ED_MDU541_10497",null,null,null,null,"Coincident"]
["ED_MDU541_10498",null,null,"Weather Corrected MD 50% POE","MW","Non-Coincident"]
["ED_MDU541_10499",null,null,null,null,"Coincident"]
["ED_MDU541_10500",null,null,"Weather Corrected MD 50% POE","MVA","Non-Coincident"]
["ED_MDU541_10501",null,null,null,null,"Coincident"]
["ED_MDU541_10502",null,"<Enter substation name>","Substation Rating","MVA","Non-Coincident"]
["ED_MDU541_10503",null,null,null,null,"Coincident"]
["ED_MDU541_10504",null,null,"Raw Adjusted MD","MW","Non-Coincident"]
["ED_MDU541_10505",null,null,null,null,"Coincident"]
["ED_MDU541_10506",null,null,"Raw Adjusted MD","MVA","Non-Coincident"]
["ED_MDU541_10507",null,null,null,null,"Coincident"]
["ED_MDU541_10508",null,null,"Date MD occurred",null,"Non-Coincident"]
["ED_MDU541_10509",null,null,null,null,"Coincident"]
["ED_MDU541_10510",null,null,"Half hour time period MD occurred",null,"Non-Coincident"]
["ED_MDU541_10511",null,null,null,null,"Coincident"]
["ED_MDU541_10512",null,null,"Winter/Summer Peaking",null,"Non-Coincident"]
["ED_MDU541_10513",null,null,null,null,"Coincident"]
["ED_MDU541_10514",null,null,"Adjustments - Embedded generation","MW","Non-Coincident"]
["ED_MDU541_10515",null,null,null,null,"Coincident"]
["ED_MDU541_10516",null,null,"Weather Corrected MD 10% POE","MW","Non-Coincident"]
["ED_MDU541_10517",null,null,null,null,"Coincident"]
["ED_MDU541_10518",null,null,"Weather Corrected MD 10% POE","MVA","Non-Coincident"]
["ED_MDU541_10519",null,null,null,null,"Coincident"]
["ED_MDU541_10520",null,null,"Weather Corrected MD 50% POE","MW","Non-Coincident"]
["ED_MDU541_10521",null,null,null,null,"Coincident"]
["ED_MDU541_10522",null,null,"Weather Corrected MD 50% POE","MVA","Non-Coincident"]
["ED_MDU541_10523",null,null,null,null,"Coincident"]
["ED_MDU541_10524",null,"<Enter substation name>","Substation Rating","MVA","Non-Coincident"]
["ED_MDU541_10525",null,null,null,null,"Coincident"]
["ED_MDU541_10526",null,null,"Raw Adjusted MD","MW","Non-Coincident"]
["ED_MDU541_10527",null,null,null,null,"Coincident"]
["ED_MDU541_10528",null,null,"Raw Adjusted MD","MVA","Non-Coincident"]
["ED_MDU541_10529",null,null,null,null,"Coincident"]
["ED_MDU541_10530",null,null,"Date MD occurred",null,"Non-Coincident"]
["ED_MDU541_10531",null,null,null,null,"Coincident"]
["ED_MDU541_10532",null,null,"Half hour time period MD occurred",null,"Non-Coincident"]
["ED_MDU541_10533",null,null,null,null,"Coincident"]
["ED_MDU541_10534",null,null,"Winter/Summer Peaking",null,"Non-Coincident"]
["ED_MDU541_10535",null,null,null,null,"Coincident"]
["ED_MDU541_10536",null,null,"Adjustments - Embedded generation","MW","Non-Coincident"]
["ED_MDU541_10537",null,null,null,null,"Coincident"]
["ED_MDU541_10538",null,null,"Weather Corrected MD 10% POE","MW","Non-Coincident"]
["ED_MDU541_10539",null,null,null,null,"Coincident"]
["ED_MDU541_10540",null,null,"Weather Corrected MD 10% POE","MVA","Non-Coincident"]
["ED_MDU541_10541",null,null,null,null,"Coincident"]
["ED_MDU541_10542",null,null,"Weather Corrected MD 50% POE","MW","Non-Coincident"]
["ED_MDU541_10543",null,null,null,null,"Coincident"]
["ED_MDU541_10544",null,null,"Weather Corrected MD 50% POE","MVA","Non-Coincident"]
["ED_MDU541_10545",null,null,null,null,"Coincident"]
["ED_MDU541_10546",null,"<Enter substation name>","Substation Rating","MVA","Non-Coincident"]
["ED_MDU541_10547",null,null,null,null,"Coincident"]
["ED_MDU541_10548",null,null,"Raw Adjusted MD","MW","Non-Coincident"]
["ED_MDU541_10549",null,null,null,null,"Coincident"]
["ED_MDU541_10550",null,null,"Raw Adjusted MD","MVA","Non-Coincident"]
["ED_MDU541_10551",null,null,null,null,"Coincident"]
["ED_MDU541_10552",null,null,"Date MD occurred",null,"Non-Coincident"]
["ED_MDU541_10553",null,null,null,null,"Coincident"]
["ED_MDU541_10554",null,null,"Half hour time period MD occurred",null,"Non-Coincident"]
["ED_MDU541_10555",null,null,null,null,"Coincident"]
["ED_MDU541_10556",null,null,"Winter/Summer Peaking",null,"Non-Coincident"]
["ED_MDU541_10557",null,null,null,null,"Coincident"]
["ED_MDU541_10558",null,null,"Adjustments - Embedded generation","MW","Non-Coincident"]
["ED_MDU541_10559",null,null,null,null,"Coincident"]
["ED_MDU541_10560",null,null,"Weather Corrected MD 10% POE","MW","Non-Coincident"]
["ED_MDU541_10561",null,null,null,null,"Coincident"]
["ED_MDU541_10562",null,null,"Weather Corrected MD 10% POE","MVA","Non-Coincident"]
["ED_MDU541_10563",null,null,null,null,"Coincident"]
["ED_MDU541_10564",null,null,"Weather Corrected MD 50% POE","MW","Non-Coincident"]
["ED_MDU541_10565",null,null,null,null,"Coincident"]
["ED_MDU541_10566",null,null,"Weather Corrected MD 50% POE","MVA","Non-Coincident"]
["ED_MDU541_10567",null,null,null,null,"Coincident"]
["ED_MDU541_10568",null,"<Enter substation name>","Substation Rating","MVA","Non-Coincident"]
["ED_MDU541_10569",null,null,null,null,"Coincident"]
["ED_MDU541_10570",null,null,"Raw Adjusted MD","MW","Non-Coincident"]
["ED_MDU541_10571",null,null,null,null,"Coincident"]
["ED_MDU541_10572",null,null,"Raw Adjusted MD","MVA","Non-Coincident"]
["ED_MDU541_10573",null,null,null,null,"Coincident"]
["ED_MDU541_10574",null,null,"Date MD occurred",null,"Non-Coincident"]
["ED_MDU541_10575",null,null,null,null,"Coincident"]
["ED_MDU541_10576",null,null,"Half hour time period MD occurred",null,"Non-Coincident"]
["ED_MDU541_10577",null,null,null,null,"Coincident"]
["ED_MDU541_10578",null,null,"Winter/Summer Peaking",null,"Non-Coincident"]
["ED_MDU541_10579",null,null,null,null,"Coincident"]
["ED_MDU541_10580",null,null,"Adjustments - Embedded generation","MW","Non-Coincident"]
["ED_MDU541_10581",null,null,null,null,"Coincident"]
["ED_MDU541_10582",null,null,"Weather Corrected MD 10% POE","MW","Non-Coincident"]
["ED_MDU541_10583",null,null,null,null,"Coincident"]
["ED_MDU541_10584",null,null,"Weather Corrected MD 10% POE","MVA","Non-Coincident"]
["ED_MDU541_10585",null,null,null,null,"Coincident"]
["ED_MDU541_10586",null,null,"Weather Corrected MD 50% POE","MW","Non-Coincident"]
["ED_MDU541_10587",null,null,null,null,"Coincident"]
["ED_MDU541_10588",null,null,"Weather Corrected MD 50% POE","MVA","Non-Coincident"]
["ED_MDU541_10589",null,null,null,null,"Coincident"]
["ED_MDU541_10590",null,"<Enter substation name>","Substation Rating","MVA","Non-Coincident"]
["ED_MDU541_10591",null,null,null,null,"Coincident"]
["ED_MDU541_10592",null,null,"Raw Adjusted MD","MW","Non-Coincident"]
["ED_MDU541_10593",null,null,null,null,"Coincident"]
["ED_MDU541_10594",null,null,"Raw Adjusted MD","MVA","Non-Coincident"]
["ED_MDU541_10595",null,null,null,null,"Coincident"]
["ED_MDU541_10596",null,null,"Date MD occurred",null,"Non-Coincident"]
["ED_MDU541_10597",null,null,null,null,"Coincident"]
["ED_MDU541_10598",null,null,"Half hour time period MD occurred",null,"Non-Coincident"]
["ED_MDU541_10599",null,null,null,null,"Coincident"]
["ED_MDU541_10600",null,null,"Winter/Summer Peaking",null,"Non-Coincident"]
["ED_MDU541_10601",null,null,null,null,"Coincident"]
["ED_MDU541_10602",null,null,"Adjustments - Embedded generation","MW","Non-Coincident"]
["ED_MDU541_10603",null,null,null,null,"Coincident"]
["ED_MDU541_10604",null,null,"Weather Corrected MD 10% POE","MW","Non-Coincident"]
["ED_MDU541_10605",null,null,null,null,"Coincident"]
["ED_MDU541_10606",null,null,"Weather Corrected MD 10% POE","MVA","Non-Coincident"]
["ED_MDU541_10607",null,null,null,null,"Coincident"]
["ED_MDU541_10608",null,null,"Weather Corrected MD 50% POE","MW","Non-Coincident"]
["ED_MDU541_10609",null,null,null,null,"Coincident"]
["ED_MDU541_10610",null,null,"Weather Corrected MD 50% POE","MVA","Non-Coincident"]
["ED_MDU541_10611",null,null,null,null,"Coincident"]
["ED_MDU541_10612",null,"<Enter substation name>","Substation Rating","MVA","Non-Coincident"]
["ED_MDU541_10613",null,null,null,null,"Coincident"]
["ED_MDU541_10614",null,null,"Raw Adjusted MD","MW","Non-Coincident"]
["ED_MDU541_10615",null,null,null,null,"Coincident"]
["ED_MDU541_10616",null,null,"Raw Adjusted MD","MVA","Non-Coincident"]
["ED_MDU541_10617",null,null,null,null,"Coincident"]
["ED_MDU541_10618",null,null,"Date MD occurred",null,"Non-Coincident"]
["ED_MDU541_10619",null,null,null,null,"Coincident"]
["ED_MDU541_10620",null,null,"Half hour time period MD occurred",null,"Non-Coincident"]
["ED_MDU541_10621",null,null,null,null,"Coincident"]
["ED_MDU541_10622",null,null,"Winter/Summer Peaking",null,"Non-Coincident"]
["ED_MDU541_10623",null,null,null,null,"Coincident"]
["ED_MDU541_10624",null,null,"Adjustments - Embedded generation","MW","Non-Coincident"]
["ED_MDU541_10625",null,null,null,null,"Coincident"]
["ED_MDU541_10626",null,null,"Weather Corrected MD 10% POE","MW","Non-Coincident"]
["ED_MDU541_10627",null,null,null,null,"Coincident"]
["ED_MDU541_10628",null,null,"Weather Corrected MD 10% POE","MVA","Non-Coincident"]
["ED_MDU541_10629",null,null,null,null,"Coincident"]
["ED_MDU541_10630",null,null,"Weather Corrected MD 50% POE","MW","Non-Coincident"]
["ED_MDU541_10631",null,null,null,null,"Coincident"]
["ED_MDU541_10632",null,null,"Weather Corrected MD 50% POE","MVA","Non-Coincident"]
["ED_MDU541_10633",null,null,null,null,"Coincident"]
["ED_MDU541_10634",null,"<Enter substation name>","Substation Rating","MVA","Non-Coincident"]
["ED_MDU541_10635",null,null,null,null,"Coincident"]
["ED_MDU541_10636",null,null,"Raw Adjusted MD","MW","Non-Coincident"]
["ED_MDU541_10637",null,null,null,null,"Coincident"]
["ED_MDU541_10638",null,null,"Raw Adjusted MD","MVA","Non-Coincident"]
["ED_MDU541_10639",null,null,null,null,"Coincident"]
["ED_MDU541_10640",null,null,"Date MD occurred",null,"Non-Coincident"]
["ED_MDU541_10641",null,null,null,null,"Coincident"]
["ED_MDU541_10642",null,null,"Half hour time period MD occurred",null,"Non-Coincident"]
["ED_MDU541_10643",null,null,null,null,"Coincident"]
["ED_MDU541_10644",null,null,"Winter/Summer Peaking",null,"Non-Coincident"]
["ED_MDU541_10645",null,null,null,null,"Coincident"]
["ED_MDU541_10646",null,null,"Adjustments - Embedded generation","MW","Non-Coincident"]
["ED_MDU541_10647",null,null,null,null,"Coincident"]
["ED_MDU541_10648",null,null,"Weather Corrected MD 10% POE","MW","Non-Coincident"]
["ED_MDU541_10649",null,null,null,null,"Coincident"]
["ED_MDU541_10650",null,null,"Weather Corrected MD 10% POE","MVA","Non-Coincident"]
["ED_MDU541_10651",null,null,null,null,"Coincident"]
["ED_MDU541_10652",null,null,"Weather Corrected MD 50% POE","MW","Non-Coincident"]
["ED_MDU541_10653",null,null,null,null,"Coincident"]
["ED_MDU541_10654",null,null,"Weather Corrected MD 50% POE","MVA","Non-Coincident"]
["ED_MDU541_10655",null,null,null,null,"Coincident"]
["ED_MDU541_10656",null,"<Enter substation name>","Substation Rating","MVA","Non-Coincident"]
["ED_MDU541_10657",null,null,null,null,"Coincident"]
["ED_MDU541_10658",null,null,"Raw Adjusted MD","MW","Non-Coincident"]
["ED_MDU541_10659",null,null,null,null,"Coincident"]
["ED_MDU541_10660",null,null,"Raw Adjusted MD","MVA","Non-Coincident"]
["ED_MDU541_10661",null,null,null,null,"Coincident"]
["ED_MDU541_10662",null,null,"Date MD occurred",null,"Non-Coincident"]
["ED_MDU541_10663",null,null,null,null,"Coincident"]
["ED_MDU541_10664",null,null,"Half hour time period MD occurred",null,"Non-Coincident"]
["ED_MDU541_10665",null,null,null,null,"Coincident"]
["ED_MDU541_10666",null,null,"Winter/Summer Peaking",null,"Non-Coincident"]
["ED_MDU541_10667",null,null,null,null,"Coincident"]
["ED_MDU541_10668",null,null,"Adjustments - Embedded generation","MW","Non-Coincident"]
["ED_MDU541_10669",null,null,null,null,"Coincident"]
["ED_MDU541_10670",null,null,"Weather Corrected MD 10% POE","MW","Non-Coincident"]
["ED_MDU541_10671",null,null,null,null,"Coincident"]
["ED_MDU541_10672",null,null,"Weather Corrected MD 10% POE","MVA","Non-Coincident"]
["ED_MDU541_10673",null,null,null,null,"Coincident"]
["ED_MDU541_10674",null,null,"Weather Corrected MD 50% POE","MW","Non-Coincident"]
["ED_MDU541_10675",null,null,null,null,"Coincident"]
["ED_MDU541_10676",null,null,"Weather Corrected MD 50% POE","MVA","Non-Coincident"]
["ED_MDU541_10677",null,null,null,null,"Coincident"]
["ED_MDU541_10678",null,"<Enter substation name>","Substation Rating","MVA","Non-Coincident"]
["ED_MDU541_10679",null,null,null,null,"Coincident"]
["ED_MDU541_10680",null,null,"Raw Adjusted MD","MW","Non-Coincident"]
["ED_MDU541_10681",null,null,null,null,"Coincident"]
["ED_MDU541_10682",null,null,"Raw Adjusted MD","MVA","Non-Coincident"]
["ED_MDU541_10683",null,null,null,null,"Coincident"]
["ED_MDU541_10684",null,null,"Date MD occurred",null,"Non-Coincident"]
["ED_MDU541_10685",null,null,null,null,"Coincident"]
["ED_MDU541_10686",null,null,"Half hour time period MD occurred",null,"Non-Coincident"]
["ED_MDU541_10687",null,null,null,null,"Coincident"]
["ED_MDU541_10688",null,null,"Winter/Summer Peaking",null,"Non-Coincident"]
["ED_MDU541_10689",null,null,null,null,"Coincident"]
["ED_MDU541_10690",null,null,"Adjustments - Embedded generation","MW","Non-Coincident"]
["ED_MDU541_10691",null,null,null,null,"Coincident"]
["ED_MDU541_10692",null,null,"Weather Corrected MD 10% POE","MW","Non-Coincident"]
["ED_MDU541_10693",null,null,null,null,"Coincident"]
["ED_MDU541_10694",null,null,"Weather Corrected MD 10% POE","MVA","Non-Coincident"]
["ED_MDU541_10695",null,null,null,null,"Coincident"]
["ED_MDU541_10696",null,null,"Weather Corrected MD 50% POE","MW","Non-Coincident"]
["ED_MDU541_10697",null,null,null,null,"Coincident"]
["ED_MDU541_10698",null,null,"Weather Corrected MD 50% POE","MVA","Non-Coincident"]
["ED_MDU541_10699",null,null,null,null,"Coincident"]
["ED_MDU541_10700",null,"<Enter substation name>","Substation Rating","MVA","Non-Coincident"]
["ED_MDU541_10701",null,null,null,null,"Coincident"]
["ED_MDU541_10702",null,null,"Raw Adjusted MD","MW","Non-Coincident"]
["ED_MDU541_10703",null,null,null,null,"Coincident"]
["ED_MDU541_10704",null,null,"Raw Adjusted MD","MVA","Non-Coincident"]
["ED_MDU541_10705",null,null,null,null,"Coincident"]
["ED_MDU541_10706",null,null,"Date MD occurred",null,"Non-Coincident"]
["ED_MDU541_10707",null,null,null,null,"Coincident"]
["ED_MDU541_10708",null,null,"Half hour time period MD occurred",null,"Non-Coincident"]
["ED_MDU541_10709",null,null,null,null,"Coincident"]
["ED_MDU541_10710",null,null,"Winter/Summer Peaking",null,"Non-Coincident"]
["ED_MDU541_10711",null,null,null,null,"Coincident"]
["ED_MDU541_10712",null,null,"Adjustments - Embedded generation","MW","Non-Coincident"]
["ED_MDU541_10713",null,null,null,null,"Coincident"]
["ED_MDU541_10714",null,null,"Weather Corrected MD 10% POE","MW","Non-Coincident"]
["ED_MDU541_10715",null,null,null,null,"Coincident"]
["ED_MDU541_10716",null,null,"Weather Corrected MD 10% POE","MVA","Non-Coincident"]
["ED_MDU541_10717",null,null,null,null,"Coincident"]
["ED_MDU541_10718",null,null,"Weather Corrected MD 50% POE","MW","Non-Coincident"]
["ED_MDU541_10719",null,null,null,null,"Coincident"]
["ED_MDU541_10720",null,null,"Weather Corrected MD 50% POE","MVA","Non-Coincident"]
["ED_MDU541_10721",null,null,null,null,"Coincident"]
["ED_MDU541_10722",null,"<Enter substation name>","Substation Rating","MVA","Non-Coincident"]
["ED_MDU541_10723",null,null,null,null,"Coincident"]
["ED_MDU541_10724",null,null,"Raw Adjusted MD","MW","Non-Coincident"]
["ED_MDU541_10725",null,null,null,null,"Coincident"]
["ED_MDU541_10726",null,null,"Raw Adjusted MD","MVA","Non-Coincident"]
["ED_MDU541_10727",null,null,null,null,"Coincident"]
["ED_MDU541_10728",null,null,"Date MD occurred",null,"Non-Coincident"]
["ED_MDU541_10729",null,null,null,null,"Coincident"]
["ED_MDU541_10730",null,null,"Half hour time period MD occurred",null,"Non-Coincident"]
["ED_MDU541_10731",null,null,null,null,"Coincident"]
["ED_MDU541_10732",null,null,"Winter/Summer Peaking",null,"Non-Coincident"]
["ED_MDU541_10733",null,null,null,null,"Coincident"]
["ED_MDU541_10734",null,null,"Adjustments - Embedded generation","MW","Non-Coincident"]
["ED_MDU541_10735",null,null,null,null,"Coincident"]
["ED_MDU541_10736",null,null,"Weather Corrected MD 10% POE","MW","Non-Coincident"]
["ED_MDU541_10737",null,null,null,null,"Coincident"]
["ED_MDU541_10738",null,null,"Weather Corrected MD 10% POE","MVA","Non-Coincident"]
["ED_MDU541_10739",null,null,null,null,"Coincident"]
["ED_MDU541_10740",null,null,"Weather Corrected MD 50% POE","MW","Non-Coincident"]
["ED_MDU541_10741",null,null,null,null,"Coincident"]
["ED_MDU541_10742",null,null,"Weather Corrected MD 50% POE","MVA","Non-Coincident"]
["ED_MDU541_10743",null,null,null,null,"Coincident"]
["ED_MDU541_10744",null,"<Enter substation name>","Substation Rating","MVA","Non-Coincident"]
["ED_MDU541_10745",null,null,null,null,"Coincident"]
["ED_MDU541_10746",null,null,"Raw Adjusted MD","MW","Non-Coincident"]
["ED_MDU541_10747",null,null,null,null,"Coincident"]
["ED_MDU541_10748",null,null,"Raw Adjusted MD","MVA","Non-Coincident"]
["ED_MDU541_10749",null,null,null,null,"Coincident"]
["ED_MDU541_10750",null,null,"Date MD occurred",null,"Non-Coincident"]
["ED_MDU541_10751",null,null,null,null,"Coincident"]
["ED_MDU541_10752",null,null,"Half hour time period MD occurred",null,"Non-Coincident"]
["ED_MDU541_10753",null,null,null,null,"Coincident"]
["ED_MDU541_10754",null,null,"Winter/Summer Peaking",null,"Non-Coincident"]
["ED_MDU541_10755",null,null,null,null,"Coincident"]
["ED_MDU541_10756",null,null,"Adjustments - Embedded generation","MW","Non-Coincident"]
["ED_MDU541_10757",null,null,null,null,"Coincident"]
["ED_MDU541_10758",null,null,"Weather Corrected MD 10% POE","MW","Non-Coincident"]
["ED_MDU541_10759",null,null,null,null,"Coincident"]
["ED_MDU541_10760",null,null,"Weather Corrected MD 10% POE","MVA","Non-Coincident"]
["ED_MDU541_10761",null,null,null,null,"Coincident"]
["ED_MDU541_10762",null,null,"Weather Corrected MD 50% POE","MW","Non-Coincident"]
["ED_MDU541_10763",null,null,null,null,"Coincident"]
["ED_MDU541_10764",null,null,"Weather Corrected MD 50% POE","MVA","Non-Coincident"]
["ED_MDU541_10765",null,null,null,null,"Coincident"]
["ED_MDU541_10766",null,"<Enter substation name>","Substation Rating","MVA","Non-Coincident"]
["ED_MDU541_10767",null,null,null,null,"Coincident"]
["ED_MDU541_10768",null,null,"Raw Adjusted MD","MW","Non-Coincident"]
["ED_MDU541_10769",null,null,null,null,"Coincident"]
["ED_MDU541_10770",null,null,"Raw Adjusted MD","MVA","Non-Coincident"]
["ED_MDU541_10771",null,null,null,null,"Coincident"]
["ED_MDU541_10772",null,null,"Date MD occurred",null,"Non-Coincident"]
["ED_MDU541_10773",null,null,null,null,"Coincident"]
["ED_MDU541_10774",null,null,"Half hour time period MD occurred",null,"Non-Coincident"]
["ED_MDU541_10775",null,null,null,null,"Coincident"]
["ED_MDU541_10776",null,null,"Winter/Summer Peaking",null,"Non-Coincident"]
["ED_MDU541_10777",null,null,null,null,"Coincident"]
["ED_MDU541_10778",null,null,"Adjustments - Embedded generation","MW","Non-Coincident"]
["ED_MDU541_10779",null,null,null,null,"Coincident"]
["ED_MDU541_10780",null,null,"Weather Corrected MD 10% POE","MW","Non-Coincident"]
["ED_MDU541_10781",null,null,null,null,"Coincident"]
["ED_MDU541_10782",null,null,"Weather Corrected MD 10% POE","MVA","Non-Coincident"]
["ED_MDU541_10783",null,null,null,null,"Coincident"]
["ED_MDU541_10784",null,null,"Weather Corrected MD 50% POE","MW","Non-Coincident"]
["ED_MDU541_10785",null,null,null,null,"Coincident"]
["ED_MDU541_10786",null,null,"Weather Corrected MD 50% POE","MVA","Non-Coincident"]
["ED_MDU541_10787",null,null,null,null,"Coincident"]
["ED_MDU541_10788",null,"<Enter substation name>","Substation Rating","MVA","Non-Coincident"]
["ED_MDU541_10789",null,null,null,null,"Coincident"]
["ED_MDU541_10790",null,null,"Raw Adjusted MD","MW","Non-Coincident"]
["ED_MDU541_10791",null,null,null,null,"Coincident"]
["ED_MDU541_10792",null,null,"Raw Adjusted MD","MVA","Non-Coincident"]
["ED_MDU541_10793",null,null,null,null,"Coincident"]
["ED_MDU541_10794",null,null,"Date MD occurred",null,"Non-Coincident"]
["ED_MDU541_10795",null,null,null,null,"Coincident"]
["ED_MDU541_10796",null,null,"Half hour time period MD occurred",null,"Non-Coincident"]
["ED_MDU541_10797",null,null,null,null,"Coincident"]
["ED_MDU541_10798",null,null,"Winter/Summer Peaking",null,"Non-Coincident"]
["ED_MDU541_10799",null,null,null,null,"Coincident"]
["ED_MDU541_10800",null,null,"Adjustments - Embedded generation","MW","Non-Coincident"]
["ED_MDU541_10801",null,null,null,null,"Coincident"]
["ED_MDU541_10802",null,null,"Weather Corrected MD 10% POE","MW","Non-Coincident"]
["ED_MDU541_10803",null,null,null,null,"Coincident"]
["ED_MDU541_10804",null,null,"Weather Corrected MD 10% POE","MVA","Non-Coincident"]
["ED_MDU541_10805",null,null,null,null,"Coincident"]
["ED_MDU541_10806",null,null,"Weather Corrected MD 50% POE","MW","Non-Coincident"]
["ED_MDU541_10807",null,null,null,null,"Coincident"]
["ED_MDU541_10808",null,null,"Weather Corrected MD 50% POE","MVA","Non-Coincident"]
["ED_MDU541_10809",null,null,null,null,"Coincident"]
["ED_MDU541_10810",null,"<Enter substation name>","Substation Rating","MVA","Non-Coincident"]
["ED_MDU541_10811",null,null,null,null,"Coincident"]
["ED_MDU541_10812",null,null,"Raw Adjusted MD","MW","Non-Coincident"]
["ED_MDU541_10813",null,null,null,null,"Coincident"]
["ED_MDU541_10814",null,null,"Raw Adjusted MD","MVA","Non-Coincident"]
["ED_MDU541_10815",null,null,null,null,"Coincident"]
["ED_MDU541_10816",null,null,"Date MD occurred",null,"Non-Coincident"]
["ED_MDU541_10817",null,null,null,null,"Coincident"]
["ED_MDU541_10818",null,null,"Half hour time period MD occurred",null,"Non-Coincident"]
["ED_MDU541_10819",null,null,null,null,"Coincident"]
["ED_MDU541_10820",null,null,"Winter/Summer Peaking",null,"Non-Coincident"]
["ED_MDU541_10821",null,null,null,null,"Coincident"]
["ED_MDU541_10822",null,null,"Adjustments - Embedded generation","MW","Non-Coincident"]
["ED_MDU541_10823",null,null,null,null,"Coincident"]
["ED_MDU541_10824",null,null,"Weather Corrected MD 10% POE","MW","Non-Coincident"]
["ED_MDU541_10825",null,null,null,null,"Coincident"]
["ED_MDU541_10826",null,null,"Weather Corrected MD 10% POE","MVA","Non-Coincident"]
["ED_MDU541_10827",null,null,null,null,"Coincident"]
["ED_MDU541_10828",null,null,"Weather Corrected MD 50% POE","MW","Non-Coincident"]
["ED_MDU541_10829",null,null,null,null,"Coincident"]
["ED_MDU541_10830",null,null,"Weather Corrected MD 50% POE","MVA","Non-Coincident"]
["ED_MDU541_10831",null,null,null,null,"Coincident"]
["ED_MDU541_10832",null,"<Enter substation name>","Substation Rating","MVA","Non-Coincident"]
["ED_MDU541_10833",null,null,null,null,"Coincident"]
["ED_MDU541_10834",null,null,"Raw Adjusted MD","MW","Non-Coincident"]
["ED_MDU541_10835",null,null,null,null,"Coincident"]
["ED_MDU541_10836",null,null,"Raw Adjusted MD","MVA","Non-Coincident"]
["ED_MDU541_10837",null,null,null,null,"Coincident"]
["ED_MDU541_10838",null,null,"Date MD occurred",null,"Non-Coincident"]
["ED_MDU541_10839",null,null,null,null,"Coincident"]
["ED_MDU541_10840",null,null,"Half hour time period MD occurred",null,"Non-Coincident"]
["ED_MDU541_10841",null,null,null,null,"Coincident"]
["ED_MDU541_10842",null,null,"Winter/Summer Peaking",null,"Non-Coincident"]
["ED_MDU541_10843",null,null,null,null,"Coincident"]
["ED_MDU541_10844",null,null,"Adjustments - Embedded generation","MW","Non-Coincident"]
["ED_MDU541_10845",null,null,null,null,"Coincident"]
["ED_MDU541_10846",null,null,"Weather Corrected MD 10% POE","MW","Non-Coincident"]
["ED_MDU541_10847",null,null,null,null,"Coincident"]
["ED_MDU541_10848",null,null,"Weather Corrected MD 10% POE","MVA","Non-Coincident"]
["ED_MDU541_10849",null,null,null,null,"Coincident"]
["ED_MDU541_10850",null,null,"Weather Corrected MD 50% POE","MW","Non-Coincident"]
["ED_MDU541_10851",null,null,null,null,"Coincident"]
["ED_MDU541_10852",null,null,"Weather Corrected MD 50% POE","MVA","Non-Coincident"]
["ED_MDU541_10853",null,null,null,null,"Coincident"]
["ED_MDU541_10854",null,"<Enter substation name>","Substation Rating","MVA","Non-Coincident"]
["ED_MDU541_10855",null,null,null,null,"Coincident"]
["ED_MDU541_10856",null,null,"Raw Adjusted MD","MW","Non-Coincident"]
["ED_MDU541_10857",null,null,null,null,"Coincident"]
["ED_MDU541_10858",null,null,"Raw Adjusted MD","MVA","Non-Coincident"]
["ED_MDU541_10859",null,null,null,null,"Coincident"]
["ED_MDU541_10860",null,null,"Date MD occurred",null,"Non-Coincident"]
["ED_MDU541_10861",null,null,null,null,"Coincident"]
["ED_MDU541_10862",null,null,"Half hour time period MD occurred",null,"Non-Coincident"]
["ED_MDU541_10863",null,null,null,null,"Coincident"]
["ED_MDU541_10864",null,null,"Winter/Summer Peaking",null,"Non-Coincident"]
["ED_MDU541_10865",null,null,null,null,"Coincident"]
["ED_MDU541_10866",null,null,"Adjustments - Embedded generation","MW","Non-Coincident"]
["ED_MDU541_10867",null,null,null,null,"Coincident"]
["ED_MDU541_10868",null,null,"Weather Corrected MD 10% POE","MW","Non-Coincident"]
["ED_MDU541_10869",null,null,null,null,"Coincident"]
["ED_MDU541_10870",null,null,"Weather Corrected MD 10% POE","MVA","Non-Coincident"]
["ED_MDU541_10871",null,null,null,null,"Coincident"]
["ED_MDU541_10872",null,null,"Weather Corrected MD 50% POE","MW","Non-Coincident"]
["ED_MDU541_10873",null,null,null,null,"Coincident"]
["ED_MDU541_10874",null,null,"Weather Corrected MD 50% POE","MVA","Non-Coincident"]
["ED_MDU541_10875",null,null,null,null,"Coincident"]
["ED_MDU541_10876",null,"<Enter substation name>","Substation Rating","MVA","Non-Coincident"]
["ED_MDU541_10877",null,null,null,null,"Coincident"]
["ED_MDU541_10878",null,null,"Raw Adjusted MD","MW","Non-Coincident"]
["ED_MDU541_10879",null,null,null,null,"Coincident"]
["ED_MDU541_10880",null,null,"Raw Adjusted MD","MVA","Non-Coincident"]
["ED_MDU541_10881",null,null,null,null,"Coincident"]
["ED_MDU541_10882",null,null,"Date MD occurred",null,"Non-Coincident"]
["ED_MDU541_10883",null,null,null,null,"Coincident"]
["ED_MDU541_10884",null,null,"Half hour time period MD occurred",null,"Non-Coincident"]
["ED_MDU541_10885",null,null,null,null,"Coincident"]
["ED_MDU541_10886",null,null,"Winter/Summer Peaking",null,"Non-Coincident"]
["ED_MDU541_10887",null,null,null,null,"Coincident"]
["ED_MDU541_10888",null,null,"Adjustments - Embedded generation","MW","Non-Coincident"]
["ED_MDU541_10889",null,null,null,null,"Coincident"]
["ED_MDU541_10890",null,null,"Weather Corrected MD 10% POE","MW","Non-Coincident"]
["ED_MDU541_10891",null,null,null,null,"Coincident"]
["ED_MDU541_10892",null,null,"Weather Corrected MD 10% POE","MVA","Non-Coincident"]
["ED_MDU541_10893",null,null,null,null,"Coincident"]
["ED_MDU541_10894",null,null,"Weather Corrected MD 50% POE","MW","Non-Coincident"]
["ED_MDU541_10895",null,null,null,null,"Coincident"]
["ED_MDU541_10896",null,null,"Weather Corrected MD 50% POE","MVA","Non-Coincident"]
["ED_MDU541_10897",null,null,null,null,"Coincident"]
["ED_MDU541_10898",null,"<Enter substation name>","Substation Rating","MVA","Non-Coincident"]
["ED_MDU541_10899",null,null,null,null,"Coincident"]
["ED_MDU541_10900",null,null,"Raw Adjusted MD","MW","Non-Coincident"]
["ED_MDU541_10901",null,null,null,null,"Coincident"]
["ED_MDU541_10902",null,null,"Raw Adjusted MD","MVA","Non-Coincident"]
["ED_MDU541_10903",null,null,null,null,"Coincident"]
["ED_MDU541_10904",null,null,"Date MD occurred",null,"Non-Coincident"]
["ED_MDU541_10905",null,null,null,null,"Coincident"]
["ED_MDU541_10906",null,null,"Half hour time period MD occurred",null,"Non-Coincident"]
["ED_MDU541_10907",null,null,null,null,"Coincident"]
["ED_MDU541_10908",null,null,"Winter/Summer Peaking",null,"Non-Coincident"]
["ED_MDU541_10909",null,null,null,null,"Coincident"]
["ED_MDU541_10910",null,null,"Adjustments - Embedded generation","MW","Non-Coincident"]
["ED_MDU541_10911",null,null,null,null,"Coincident"]
["ED_MDU541_10912",null,null,"Weather Corrected MD 10% POE","MW","Non-Coincident"]
["ED_MDU541_10913",null,null,null,null,"Coincident"]
["ED_MDU541_10914",null,null,"Weather Corrected MD 10% POE","MVA","Non-Coincident"]
["ED_MDU541_10915",null,null,null,null,"Coincident"]
["ED_MDU541_10916",null,null,"Weather Corrected MD 50% POE","MW","Non-Coincident"]
["ED_MDU541_10917",null,null,null,null,"Coincident"]
["ED_MDU541_10918",null,null,"Weather Corrected MD 50% POE","MVA","Non-Coincident"]
["ED_MDU541_10919",null,null,null,null,"Coincident"]
["ED_MDU541_10920",null,"<Enter substation name>","Substation Rating","MVA","Non-Coincident"]
["ED_MDU541_10921",null,null,null,null,"Coincident"]
["ED_MDU541_10922",null,null,"Raw Adjusted MD","MW","Non-Coincident"]
["ED_MDU541_10923",null,null,null,null,"Coincident"]
["ED_MDU541_10924",null,null,"Raw Adjusted MD","MVA","Non-Coincident"]
["ED_MDU541_10925",null,null,null,null,"Coincident"]
["ED_MDU541_10926",null,null,"Date MD occurred",null,"Non-Coincident"]
["ED_MDU541_10927",null,null,null,null,"Coincident"]
["ED_MDU541_10928",null,null,"Half hour time period MD occurred",null,"Non-Coincident"]
["ED_MDU541_10929",null,null,null,null,"Coincident"]
["ED_MDU541_10930",null,null,"Winter/Summer Peaking",null,"Non-Coincident"]
["ED_MDU541_10931",null,null,null,null,"Coincident"]
["ED_MDU541_10932",null,null,"Adjustments - Embedded generation","MW","Non-Coincident"]
["ED_MDU541_10933",null,null,null,null,"Coincident"]
["ED_MDU541_10934",null,null,"Weather Corrected MD 10% POE","MW","Non-Coincident"]
["ED_MDU541_10935",null,null,null,null,"Coincident"]
["ED_MDU541_10936",null,null,"Weather Corrected MD 10% POE","MVA","Non-Coincident"]
["ED_MDU541_10937",null,null,null,null,"Coincident"]
["ED_MDU541_10938",null,null,"Weather Corrected MD 50% POE","MW","Non-Coincident"]
["ED_MDU541_10939",null,null,null,null,"Coincident"]
["ED_MDU541_10940",null,null,"Weather Corrected MD 50% POE","MVA","Non-Coincident"]
["ED_MDU541_10941",null,null,null,null,"Coincident"]
["ED_MDU541_10942",null,"<Enter substation name>","Substation Rating","MVA","Non-Coincident"]
["ED_MDU541_10943",null,null,null,null,"Coincident"]
["ED_MDU541_10944",null,null,"Raw Adjusted MD","MW","Non-Coincident"]
["ED_MDU541_10945",null,null,null,null,"Coincident"]
["ED_MDU541_10946",null,null,"Raw Adjusted MD","MVA","Non-Coincident"]
["ED_MDU541_10947",null,null,null,null,"Coincident"]
["ED_MDU541_10948",null,null,"Date MD occurred",null,"Non-Coincident"]
["ED_MDU541_10949",null,null,null,null,"Coincident"]
["ED_MDU541_10950",null,null,"Half hour time period MD occurred",null,"Non-Coincident"]
["ED_MDU541_10951",null,null,null,null,"Coincident"]
["ED_MDU541_10952",null,null,"Winter/Summer Peaking",null,"Non-Coincident"]
["ED_MDU541_10953",null,null,null,null,"Coincident"]
["ED_MDU541_10954",null,null,"Adjustments - Embedded generation","MW","Non-Coincident"]
["ED_MDU541_10955",null,null,null,null,"Coincident"]
["ED_MDU541_10956",null,null,"Weather Corrected MD 10% POE","MW","Non-Coincident"]
["ED_MDU541_10957",null,null,null,null,"Coincident"]
["ED_MDU541_10958",null,null,"Weather Corrected MD 10% POE","MVA","Non-Coincident"]
["ED_MDU541_10959",null,null,null,null,"Coincident"]
["ED_MDU541_10960",null,null,"Weather Corrected MD 50% POE","MW","Non-Coincident"]
["ED_MDU541_10961",null,null,null,null,"Coincident"]
["ED_MDU541_10962",null,null,"Weather Corrected MD 50% POE","MVA","Non-Coincident"]
["ED_MDU541_10963",null,null,null,null,"Coincident"]
["ED_MDU541_10964",null,"<Enter substation name>","Substation Rating","MVA","Non-Coincident"]
["ED_MDU541_10965",null,null,null,null,"Coincident"]
["ED_MDU541_10966",null,null,"Raw Adjusted MD","MW","Non-Coincident"]
["ED_MDU541_10967",null,null,null,null,"Coincident"]
["ED_MDU541_10968",null,null,"Raw Adjusted MD","MVA","Non-Coincident"]
["ED_MDU541_10969",null,null,null,null,"Coincident"]
["ED_MDU541_10970",null,null,"Date MD occurred",null,"Non-Coincident"]
["ED_MDU541_10971",null,null,null,null,"Coincident"]
["ED_MDU541_10972",null,null,"Half hour time period MD occurred",null,"Non-Coincident"]
["ED_MDU541_10973",null,null,null,null,"Coincident"]
["ED_MDU541_10974",null,null,"Winter/Summer Peaking",null,"Non-Coincident"]
["ED_MDU541_10975",null,null,null,null,"Coincident"]
["ED_MDU541_10976",null,null,"Adjustments - Embedded generation","MW","Non-Coincident"]
["ED_MDU541_10977",null,null,null,null,"Coincident"]
["ED_MDU541_10978",null,null,"Weather Corrected MD 10% POE","MW","Non-Coincident"]
["ED_MDU541_10979",null,null,null,null,"Coincident"]
["ED_MDU541_10980",null,null,"Weather Corrected MD 10% POE","MVA","Non-Coincident"]
["ED_MDU541_10981",null,null,null,null,"Coincident"]
["ED_MDU541_10982",null,null,"Weather Corrected MD 50% POE","MW","Non-Coincident"]
["ED_MDU541_10983",null,null,null,null,"Coincident"]
["ED_MDU541_10984",null,null,"Weather Corrected MD 50% POE","MVA","Non-Coincident"]
["ED_MDU541_10985",null,null,null,null,"Coincident"]
["ED_MDU541_10986",null,"<Enter substation name>","Substation Rating","MVA","Non-Coincident"]
["ED_MDU541_10987",null,null,null,null,"Coincident"]
["ED_MDU541_10988",null,null,"Raw Adjusted MD","MW","Non-Coincident"]
["ED_MDU541_10989",null,null,null,null,"Coincident"]
["ED_MDU541_10990",null,null,"Raw Adjusted MD","MVA","Non-Coincident"]
["ED_MDU541_10991",null,null,null,null,"Coincident"]
["ED_MDU541_10992",null,null,"Date MD occurred",null,"Non-Coincident"]
["ED_MDU541_10993",null,null,null,null,"Coincident"]
["ED_MDU541_10994",null,null,"Half hour time period MD occurred",null,"Non-Coincident"]
["ED_MDU541_10995",null,null,null,null,"Coincident"]
["ED_MDU541_10996",null,null,"Winter/Summer Peaking",null,"Non-Coincident"]
["ED_MDU541_10997",null,null,null,null,"Coincident"]
["ED_MDU541_10998",null,null,"Adjustments - Embedded generation","MW","Non-Coincident"]
["ED_MDU541_10999",null,null,null,null,"Coincident"]
["ED_MDU541_11000",null,null,"Weather Corrected MD 10% POE","MW","Non-Coincident"]
["ED_MDU541_11001",null,null,null,null,"Coincident"]
["ED_MDU541_11002",null,null,"Weather Corrected MD 10% POE","MVA","Non-Coincident"]
["ED_MDU541_11003",null,null,null,null,"Coincident"]
["ED_MDU541_11004",null,null,"Weather Corrected MD 50% POE","MW","Non-Coincident"]
["ED_MDU541_11005",null,null,null,null,"Coincident"]
["ED_MDU541_11006",null,null,"Weather Corrected MD 50% POE","MVA","Non-Coincident"]
["ED_MDU541_11007",null,null,null,null,"Coincident"]
["ED_MDU541_11008",null,"<Enter substation name>","Substation Rating","MVA","Non-Coincident"]
["ED_MDU541_11009",null,null,null,null,"Coincident"]
["ED_MDU541_11010",null,null,"Raw Adjusted MD","MW","Non-Coincident"]
["ED_MDU541_11011",null,null,null,null,"Coincident"]
["ED_MDU541_11012",null,null,"Raw Adjusted MD","MVA","Non-Coincident"]
["ED_MDU541_11013",null,null,null,null,"Coincident"]
["ED_MDU541_11014",null,null,"Date MD occurred",null,"Non-Coincident"]
["ED_MDU541_11015",null,null,null,null,"Coincident"]
["ED_MDU541_11016",null,null,"Half hour time period MD occurred",null,"Non-Coincident"]
["ED_MDU541_11017",null,null,null,null,"Coincident"]
["ED_MDU541_11018",null,null,"Winter/Summer Peaking",null,"Non-Coincident"]
["ED_MDU541_11019",null,null,null,null,"Coincident"]
["ED_MDU541_11020",null,null,"Adjustments - Embedded generation","MW","Non-Coincident"]
["ED_MDU541_11021",null,null,null,null,"Coincident"]
["ED_MDU541_11022",null,null,"Weather Corrected MD 10% POE","MW","Non-Coincident"]
["ED_MDU541_11023",null,null,null,null,"Coincident"]
["ED_MDU541_11024",null,null,"Weather Corrected MD 10% POE","MVA","Non-Coincident"]
["ED_MDU541_11025",null,null,null,null,"Coincident"]
["ED_MDU541_11026",null,null,"Weather Corrected MD 50% POE","MW","Non-Coincident"]
["ED_MDU541_11027",null,null,null,null,"Coincident"]
["ED_MDU541_11028",null,null,"Weather Corrected MD 50% POE","MVA","Non-Coincident"]
["ED_MDU541_11029",null,null,null,null,"Coincident"]
["ED_MDU541_11030",null,"<Enter substation name>","Substation Rating","MVA","Non-Coincident"]
["ED_MDU541_11031",null,null,null,null,"Coincident"]
["ED_MDU541_11032",null,null,"Raw Adjusted MD","MW","Non-Coincident"]
["ED_MDU541_11033",null,null,null,null,"Coincident"]
["ED_MDU541_11034",null,null,"Raw Adjusted MD","MVA","Non-Coincident"]
["ED_MDU541_11035",null,null,null,null,"Coincident"]
["ED_MDU541_11036",null,null,"Date MD occurred",null,"Non-Coincident"]
["ED_MDU541_11037",null,null,null,null,"Coincident"]
["ED_MDU541_11038",null,null,"Half hour time period MD occurred",null,"Non-Coincident"]
["ED_MDU541_11039",null,null,null,null,"Coincident"]
["ED_MDU541_11040",null,null,"Winter/Summer Peaking",null,"Non-Coincident"]
["ED_MDU541_11041",null,null,null,null,"Coincident"]
["ED_MDU541_11042",null,null,"Adjustments - Embedded generation","MW","Non-Coincident"]
["ED_MDU541_11043",null,null,null,null,"Coincident"]
["ED_MDU541_11044",null,null,"Weather Corrected MD 10% POE","MW","Non-Coincident"]
["ED_MDU541_11045",null,null,null,null,"Coincident"]
["ED_MDU541_11046",null,null,"Weather Corrected MD 10% POE","MVA","Non-Coincident"]
["ED_MDU541_11047",null,null,null,null,"Coincident"]
["ED_MDU541_11048",null,null,"Weather Corrected MD 50% POE","MW","Non-Coincident"]
["ED_MDU541_11049",null,null,null,null,"Coincident"]
["ED_MDU541_11050",null,null,"Weather Corrected MD 50% POE","MVA","Non-Coincident"]
["ED_MDU541_11051",null,null,null,null,"Coincident"]
["ED_MDU541_11052",null,"<Enter substation name>","Substation Rating","MVA","Non-Coincident"]
["ED_MDU541_11053",null,null,null,null,"Coincident"]
["ED_MDU541_11054",null,null,"Raw Adjusted MD","MW","Non-Coincident"]
["ED_MDU541_11055",null,null,null,null,"Coincident"]
["ED_MDU541_11056",null,null,"Raw Adjusted MD","MVA","Non-Coincident"]
["ED_MDU541_11057",null,null,null,null,"Coincident"]
["ED_MDU541_11058",null,null,"Date MD occurred",null,"Non-Coincident"]
["ED_MDU541_11059",null,null,null,null,"Coincident"]
["ED_MDU541_11060",null,null,"Half hour time period MD occurred",null,"Non-Coincident"]
["ED_MDU541_11061",null,null,null,null,"Coincident"]
["ED_MDU541_11062",null,null,"Winter/Summer Peaking",null,"Non-Coincident"]
["ED_MDU541_11063",null,null,null,null,"Coincident"]
["ED_MDU541_11064",null,null,"Adjustments - Embedded generation","MW","Non-Coincident"]
["ED_MDU541_11065",null,null,null,null,"Coincident"]
["ED_MDU541_11066",null,null,"Weather Corrected MD 10% POE","MW","Non-Coincident"]
["ED_MDU541_11067",null,null,null,null,"Coincident"]
["ED_MDU541_11068",null,null,"Weather Corrected MD 10% POE","MVA","Non-Coincident"]
["ED_MDU541_11069",null,null,null,null,"Coincident"]
["ED_MDU541_11070",null,null,"Weather Corrected MD 50% POE","MW","Non-Coincident"]
["ED_MDU541_11071",null,null,null,null,"Coincident"]
["ED_MDU541_11072",null,null,"Weather Corrected MD 50% POE","MVA","Non-Coincident"]
["ED_MDU541_11073",null,null,null,null,"Coincident"]
["ED_MDU541_11074",null,"<Enter substation name>","Substation Rating","MVA","Non-Coincident"]
["ED_MDU541_11075",null,null,null,null,"Coincident"]
["ED_MDU541_11076",null,null,"Raw Adjusted MD","MW","Non-Coincident"]
["ED_MDU541_11077",null,null,null,null,"Coincident"]
["ED_MDU541_11078",null,null,"Raw Adjusted MD","MVA","Non-Coincident"]
["ED_MDU541_11079",null,null,null,null,"Coincident"]
["ED_MDU541_11080",null,null,"Date MD occurred",null,"Non-Coincident"]
["ED_MDU541_11081",null,null,null,null,"Coincident"]
["ED_MDU541_11082",null,null,"Half hour time period MD occurred",null,"Non-Coincident"]
["ED_MDU541_11083",null,null,null,null,"Coincident"]
["ED_MDU541_11084",null,null,"Winter/Summer Peaking",null,"Non-Coincident"]
["ED_MDU541_11085",null,null,null,null,"Coincident"]
["ED_MDU541_11086",null,null,"Adjustments - Embedded generation","MW","Non-Coincident"]
["ED_MDU541_11087",null,null,null,null,"Coincident"]
["ED_MDU541_11088",null,null,"Weather Corrected MD 10% POE","MW","Non-Coincident"]
["ED_MDU541_11089",null,null,null,null,"Coincident"]
["ED_MDU541_11090",null,null,"Weather Corrected MD 10% POE","MVA","Non-Coincident"]
["ED_MDU541_11091",null,null,null,null,"Coincident"]
["ED_MDU541_11092",null,null,"Weather Corrected MD 50% POE","MW","Non-Coincident"]
["ED_MDU541_11093",null,null,null,null,"Coincident"]
["ED_MDU541_11094",null,null,"Weather Corrected MD 50% POE","MVA","Non-Coincident"]
["ED_MDU541_11095",null,null,null,null,"Coincident"]
["ED_MDU541_11096",null,"<Enter substation name>","Substation Rating","MVA","Non-Coincident"]
["ED_MDU541_11097",null,null,null,null,"Coincident"]
["ED_MDU541_11098",null,null,"Raw Adjusted MD","MW","Non-Coincident"]
["ED_MDU541_11099",null,null,null,null,"Coincident"]
["ED_MDU541_11100",null,null,"Raw Adjusted MD","MVA","Non-Coincident"]
["ED_MDU541_11101",null,null,null,null,"Coincident"]
["ED_MDU541_11102",null,null,"Date MD occurred",null,"Non-Coincident"]
["ED_MDU541_11103",null,null,null,null,"Coincident"]
["ED_MDU541_11104",null,null,"Half hour time period MD occurred",null,"Non-Coincident"]
["ED_MDU541_11105",null,null,null,null,"Coincident"]
["ED_MDU541_11106",null,null,"Winter/Summer Peaking",null,"Non-Coincident"]
["ED_MDU541_11107",null,null,null,null,"Coincident"]
["ED_MDU541_11108",null,null,"Adjustments - Embedded generation","MW","Non-Coincident"]
["ED_MDU541_11109",null,null,null,null,"Coincident"]
["ED_MDU541_11110",null,null,"Weather Corrected MD 10% POE","MW","Non-Coincident"]
["ED_MDU541_11111",null,null,null,null,"Coincident"]
["ED_MDU541_11112",null,null,"Weather Corrected MD 10% POE","MVA","Non-Coincident"]
["ED_MDU541_11113",null,null,null,null,"Coincident"]
["ED_MDU541_11114",null,null,"Weather Corrected MD 50% POE","MW","Non-Coincident"]
["ED_MDU541_11115",null,null,null,null,"Coincident"]
["ED_MDU541_11116",null,null,"Weather Corrected MD 50% POE","MVA","Non-Coincident"]
["ED_MDU541_11117",null,null,null,null,"Coincident"]
["ED_MDU541_11118",null,"<Enter substation name>","Substation Rating","MVA","Non-Coincident"]
["ED_MDU541_11119",null,null,null,null,"Coincident"]
["ED_MDU541_11120",null,null,"Raw Adjusted MD","MW","Non-Coincident"]
["ED_MDU541_11121",null,null,null,null,"Coincident"]
["ED_MDU541_11122",null,null,"Raw Adjusted MD","MVA","Non-Coincident"]
["ED_MDU541_11123",null,null,null,null,"Coincident"]
["ED_MDU541_11124",null,null,"Date MD occurred",null,"Non-Coincident"]
["ED_MDU541_11125",null,null,null,null,"Coincident"]
["ED_MDU541_11126",null,null,"Half hour time period MD occurred",null,"Non-Coincident"]
["ED_MDU541_11127",null,null,null,null,"Coincident"]
["ED_MDU541_11128",null,null,"Winter/Summer Peaking",null,"Non-Coincident"]
["ED_MDU541_11129",null,null,null,null,"Coincident"]
["ED_MDU541_11130",null,null,"Adjustments - Embedded generation","MW","Non-Coincident"]
["ED_MDU541_11131",null,null,null,null,"Coincident"]
["ED_MDU541_11132",null,null,"Weather Corrected MD 10% POE","MW","Non-Coincident"]
["ED_MDU541_11133",null,null,null,null,"Coincident"]
["ED_MDU541_11134",null,null,"Weather Corrected MD 10% POE","MVA","Non-Coincident"]
["ED_MDU541_11135",null,null,null,null,"Coincident"]
["ED_MDU541_11136",null,null,"Weather Corrected MD 50% POE","MW","Non-Coincident"]
["ED_MDU541_11137",null,null,null,null,"Coincident"]
["ED_MDU541_11138",null,null,"Weather Corrected MD 50% POE","MVA","Non-Coincident"]
["ED_MDU541_11139",null,null,null,null,"Coincident"]
["ED_MDU541_11140",null,"<Enter substation name>","Substation Rating","MVA","Non-Coincident"]
["ED_MDU541_11141",null,null,null,null,"Coincident"]
["ED_MDU541_11142",null,null,"Raw Adjusted MD","MW","Non-Coincident"]
["ED_MDU541_11143",null,null,null,null,"Coincident"]
["ED_MDU541_11144",null,null,"Raw Adjusted MD","MVA","Non-Coincident"]
["ED_MDU541_11145",null,null,null,null,"Coincident"]
["ED_MDU541_11146",null,null,"Date MD occurred",null,"Non-Coincident"]
["ED_MDU541_11147",null,null,null,null,"Coincident"]
["ED_MDU541_11148",null,null,"Half hour time period MD occurred",null,"Non-Coincident"]
["ED_MDU541_11149",null,null,null,null,"Coincident"]
["ED_MDU541_11150",null,null,"Winter/Summer Peaking",null,"Non-Coincident"]
["ED_MDU541_11151",null,null,null,null,"Coincident"]
["ED_MDU541_11152",null,null,"Adjustments - Embedded generation","MW","Non-Coincident"]
["ED_MDU541_11153",null,null,null,null,"Coincident"]
["ED_MDU541_11154",null,null,"Weather Corrected MD 10% POE","MW","Non-Coincident"]
["ED_MDU541_11155",null,null,null,null,"Coincident"]
["ED_MDU541_11156",null,null,"Weather Corrected MD 10% POE","MVA","Non-Coincident"]
["ED_MDU541_11157",null,null,null,null,"Coincident"]
["ED_MDU541_11158",null,null,"Weather Corrected MD 50% POE","MW","Non-Coincident"]
["ED_MDU541_11159",null,null,null,null,"Coincident"]
["ED_MDU541_11160",null,null,"Weather Corrected MD 50% POE","MVA","Non-Coincident"]
["ED_MDU541_11161",null,null,null,null,"Coincident"]
["ED_MDU541_11162",null,"<Enter substation name>","Substation Rating","MVA","Non-Coincident"]
["ED_MDU541_11163",null,null,null,null,"Coincident"]
["ED_MDU541_11164",null,null,"Raw Adjusted MD","MW","Non-Coincident"]
["ED_MDU541_11165",null,null,null,null,"Coincident"]
["ED_MDU541_11166",null,null,"Raw Adjusted MD","MVA","Non-Coincident"]
["ED_MDU541_11167",null,null,null,null,"Coincident"]
["ED_MDU541_11168",null,null,"Date MD occurred",null,"Non-Coincident"]
["ED_MDU541_11169",null,null,null,null,"Coincident"]
["ED_MDU541_11170",null,null,"Half hour time period MD occurred",null,"Non-Coincident"]
["ED_MDU541_11171",null,null,null,null,"Coincident"]
["ED_MDU541_11172",null,null,"Winter/Summer Peaking",null,"Non-Coincident"]
["ED_MDU541_11173",null,null,null,null,"Coincident"]
["ED_MDU541_11174",null,null,"Adjustments - Embedded generation","MW","Non-Coincident"]
["ED_MDU541_11175",null,null,null,null,"Coincident"]
["ED_MDU541_11176",null,null,"Weather Corrected MD 10% POE","MW","Non-Coincident"]
["ED_MDU541_11177",null,null,null,null,"Coincident"]
["ED_MDU541_11178",null,null,"Weather Corrected MD 10% POE","MVA","Non-Coincident"]
["ED_MDU541_11179",null,null,null,null,"Coincident"]
["ED_MDU541_11180",null,null,"Weather Corrected MD 50% POE","MW","Non-Coincident"]
["ED_MDU541_11181",null,null,null,null,"Coincident"]
["ED_MDU541_11182",null,null,"Weather Corrected MD 50% POE","MVA","Non-Coincident"]
["ED_MDU541_11183",null,null,null,null,"Coincident"]
["ED_MDU541_11184",null,"<Enter substation name>","Substation Rating","MVA","Non-Coincident"]
["ED_MDU541_11185",null,null,null,null,"Coincident"]
["ED_MDU541_11186",null,null,"Raw Adjusted MD","MW","Non-Coincident"]
["ED_MDU541_11187",null,null,null,null,"Coincident"]
["ED_MDU541_11188",null,null,"Raw Adjusted MD","MVA","Non-Coincident"]
["ED_MDU541_11189",null,null,null,null,"Coincident"]
["ED_MDU541_11190",null,null,"Date MD occurred",null,"Non-Coincident"]
["ED_MDU541_11191",null,null,null,null,"Coincident"]
["ED_MDU541_11192",null,null,"Half hour time period MD occurred",null,"Non-Coincident"]
["ED_MDU541_11193",null,null,null,null,"Coincident"]
["ED_MDU541_11194",null,null,"Winter/Summer Peaking",null,"Non-Coincident"]
["ED_MDU541_11195",null,null,null,null,"Coincident"]
["ED_MDU541_11196",null,null,"Adjustments - Embedded generation","MW","Non-Coincident"]
["ED_MDU541_11197",null,null,null,null,"Coincident"]
["ED_MDU541_11198",null,null,"Weather Corrected MD 10% POE","MW","Non-Coincident"]
["ED_MDU541_11199",null,null,null,null,"Coincident"]
["ED_MDU541_11200",null,null,"Weather Corrected MD 10% POE","MVA","Non-Coincident"]
["ED_MDU541_11201",null,null,null,null,"Coincident"]
["ED_MDU541_11202",null,null,"Weather Corrected MD 50% POE","MW","Non-Coincident"]
["ED_MDU541_11203",null,null,null,null,"Coincident"]
["ED_MDU541_11204",null,null,"Weather Corrected MD 50% POE","MVA","Non-Coincident"]
["ED_MDU541_11205",null,null,null,null,"Coincident"]
["ED_MDU541_11206",null,"<Enter substation name>","Substation Rating","MVA","Non-Coincident"]
["ED_MDU541_11207",null,null,null,null,"Coincident"]
["ED_MDU541_11208",null,null,"Raw Adjusted MD","MW","Non-Coincident"]
["ED_MDU541_11209",null,null,null,null,"Coincident"]
["ED_MDU541_11210",null,null,"Raw Adjusted MD","MVA","Non-Coincident"]
["ED_MDU541_11211",null,null,null,null,"Coincident"]
["ED_MDU541_11212",null,null,"Date MD occurred",null,"Non-Coincident"]
["ED_MDU541_11213",null,null,null,null,"Coincident"]
["ED_MDU541_11214",null,null,"Half hour time period MD occurred",null,"Non-Coincident"]
["ED_MDU541_11215",null,null,null,null,"Coincident"]
["ED_MDU541_11216",null,null,"Winter/Summer Peaking",null,"Non-Coincident"]
["ED_MDU541_11217",null,null,null,null,"Coincident"]
["ED_MDU541_11218",null,null,"Adjustments - Embedded generation","MW","Non-Coincident"]
["ED_MDU541_11219",null,null,null,null,"Coincident"]
["ED_MDU541_11220",null,null,"Weather Corrected MD 10% POE","MW","Non-Coincident"]
["ED_MDU541_11221",null,null,null,null,"Coincident"]
["ED_MDU541_11222",null,null,"Weather Corrected MD 10% POE","MVA","Non-Coincident"]
["ED_MDU541_11223",null,null,null,null,"Coincident"]
["ED_MDU541_11224",null,null,"Weather Corrected MD 50% POE","MW","Non-Coincident"]
["ED_MDU541_11225",null,null,null,null,"Coincident"]
["ED_MDU541_11226",null,null,"Weather Corrected MD 50% POE","MVA","Non-Coincident"]
["ED_MDU541_11227",null,null,null,null,"Coincident"]
["ED_MDU541_11228",null,"<Enter substation name>","Substation Rating","MVA","Non-Coincident"]
["ED_MDU541_11229",null,null,null,null,"Coincident"]
["ED_MDU541_11230",null,null,"Raw Adjusted MD","MW","Non-Coincident"]
["ED_MDU541_11231",null,null,null,null,"Coincident"]
["ED_MDU541_11232",null,null,"Raw Adjusted MD","MVA","Non-Coincident"]
["ED_MDU541_11233",null,null,null,null,"Coincident"]
["ED_MDU541_11234",null,null,"Date MD occurred",null,"Non-Coincident"]
["ED_MDU541_11235",null,null,null,null,"Coincident"]
["ED_MDU541_11236",null,null,"Half hour time period MD occurred",null,"Non-Coincident"]
["ED_MDU541_11237",null,null,null,null,"Coincident"]
["ED_MDU541_11238",null,null,"Winter/Summer Peaking",null,"Non-Coincident"]
["ED_MDU541_11239",null,null,null,null,"Coincident"]
["ED_MDU541_11240",null,null,"Adjustments - Embedded generation","MW","Non-Coincident"]
["ED_MDU541_11241",null,null,null,null,"Coincident"]
["ED_MDU541_11242",null,null,"Weather Corrected MD 10% POE","MW","Non-Coincident"]
["ED_MDU541_11243",null,null,null,null,"Coincident"]
["ED_MDU541_11244",null,null,"Weather Corrected MD 10% POE","MVA","Non-Coincident"]
["ED_MDU541_11245",null,null,null,null,"Coincident"]
["ED_MDU541_11246",null,null,"Weather Corrected MD 50% POE","MW","Non-Coincident"]
["ED_MDU541_11247",null,null,null,null,"Coincident"]
["ED_MDU541_11248",null,null,"Weather Corrected MD 50% POE","MVA","Non-Coincident"]
["ED_MDU541_11249",null,null,null,null,"Coincident"]
["ED_MDU541_11250",null,"<Enter substation name>","Substation Rating","MVA","Non-Coincident"]
["ED_MDU541_11251",null,null,null,null,"Coincident"]
["ED_MDU541_11252",null,null,"Raw Adjusted MD","MW","Non-Coincident"]
["ED_MDU541_11253",null,null,null,null,"Coincident"]
["ED_MDU541_11254",null,null,"Raw Adjusted MD","MVA","Non-Coincident"]
["ED_MDU541_11255",null,null,null,null,"Coincident"]
["ED_MDU541_11256",null,null,"Date MD occurred",null,"Non-Coincident"]
["ED_MDU541_11257",null,null,null,null,"Coincident"]
["ED_MDU541_11258",null,null,"Half hour time period MD occurred",null,"Non-Coincident"]
["ED_MDU541_11259",null,null,null,null,"Coincident"]
["ED_MDU541_11260",null,null,"Winter/Summer Peaking",null,"Non-Coincident"]
["ED_MDU541_11261",null,null,null,null,"Coincident"]
["ED_MDU541_11262",null,null,"Adjustments - Embedded generation","MW","Non-Coincident"]
["ED_MDU541_11263",null,null,null,null,"Coincident"]
["ED_MDU541_11264",null,null,"Weather Corrected MD 10% POE","MW","Non-Coincident"]
["ED_MDU541_11265",null,null,null,null,"Coincident"]
["ED_MDU541_11266",null,null,"Weather Corrected MD 10% POE","MVA","Non-Coincident"]
["ED_MDU541_11267",null,null,null,null,"Coincident"]
["ED_MDU541_11268",null,null,"Weather Corrected MD 50% POE","MW","Non-Coincident"]
["ED_MDU541_11269",null,null,null,null,"Coincident"]
["ED_MDU541_11270",null,null,"Weather Corrected MD 50% POE","MVA","Non-Coincident"]
["ED_MDU541_11271",null,null,null,null,"Coincident"]
["ED_MDU541_11272",null,"<Enter substation name>","Substation Rating","MVA","Non-Coincident"]
["ED_MDU541_11273",null,null,null,null,"Coincident"]
["ED_MDU541_11274",null,null,"Raw Adjusted MD","MW","Non-Coincident"]
["ED_MDU541_11275",null,null,null,null,"Coincident"]
["ED_MDU541_11276",null,null,"Raw Adjusted MD","MVA","Non-Coincident"]
["ED_MDU541_11277",null,null,null,null,"Coincident"]
["ED_MDU541_11278",null,null,"Date MD occurred",null,"Non-Coincident"]
["ED_MDU541_11279",null,null,null,null,"Coincident"]
["ED_MDU541_11280",null,null,"Half hour time period MD occurred",null,"Non-Coincident"]
["ED_MDU541_11281",null,null,null,null,"Coincident"]
["ED_MDU541_11282",null,null,"Winter/Summer Peaking",null,"Non-Coincident"]
["ED_MDU541_11283",null,null,null,null,"Coincident"]
["ED_MDU541_11284",null,null,"Adjustments - Embedded generation","MW","Non-Coincident"]
["ED_MDU541_11285",null,null,null,null,"Coincident"]
["ED_MDU541_11286",null,null,"Weather Corrected MD 10% POE","MW","Non-Coincident"]
["ED_MDU541_11287",null,null,null,null,"Coincident"]
["ED_MDU541_11288",null,null,"Weather Corrected MD 10% POE","MVA","Non-Coincident"]
["ED_MDU541_11289",null,null,null,null,"Coincident"]
["ED_MDU541_11290",null,null,"Weather Corrected MD 50% POE","MW","Non-Coincident"]
["ED_MDU541_11291",null,null,null,null,"Coincident"]
["ED_MDU541_11292",null,null,"Weather Corrected MD 50% POE","MVA","Non-Coincident"]
["ED_MDU541_11293",null,null,null,null,"Coincident"]
["ED_MDU541_11294",null,"<Enter substation name>","Substation Rating","MVA","Non-Coincident"]
["ED_MDU541_11295",null,null,null,null,"Coincident"]
["ED_MDU541_11296",null,null,"Raw Adjusted MD","MW","Non-Coincident"]
["ED_MDU541_11297",null,null,null,null,"Coincident"]
["ED_MDU541_11298",null,null,"Raw Adjusted MD","MVA","Non-Coincident"]
["ED_MDU541_11299",null,null,null,null,"Coincident"]
["ED_MDU541_11300",null,null,"Date MD occurred",null,"Non-Coincident"]
["ED_MDU541_11301",null,null,null,null,"Coincident"]
["ED_MDU541_11302",null,null,"Half hour time period MD occurred",null,"Non-Coincident"]
["ED_MDU541_11303",null,null,null,null,"Coincident"]
["ED_MDU541_11304",null,null,"Winter/Summer Peaking",null,"Non-Coincident"]
["ED_MDU541_11305",null,null,null,null,"Coincident"]
["ED_MDU541_11306",null,null,"Adjustments - Embedded generation","MW","Non-Coincident"]
["ED_MDU541_11307",null,null,null,null,"Coincident"]
["ED_MDU541_11308",null,null,"Weather Corrected MD 10% POE","MW","Non-Coincident"]
["ED_MDU541_11309",null,null,null,null,"Coincident"]
["ED_MDU541_11310",null,null,"Weather Corrected MD 10% POE","MVA","Non-Coincident"]
["ED_MDU541_11311",null,null,null,null,"Coincident"]
["ED_MDU541_11312",null,null,"Weather Corrected MD 50% POE","MW","Non-Coincident"]
["ED_MDU541_11313",null,null,null,null,"Coincident"]
["ED_MDU541_11314",null,null,"Weather Corrected MD 50% POE","MVA","Non-Coincident"]
["ED_MDU541_11315",null,null,null,null,"Coincident"]
["ED_MDU541_11316",null,"<Enter substation name>","Substation Rating","MVA","Non-Coincident"]
["ED_MDU541_11317",null,null,null,null,"Coincident"]
["ED_MDU541_11318",null,null,"Raw Adjusted MD","MW","Non-Coincident"]
["ED_MDU541_11319",null,null,null,null,"Coincident"]
["ED_MDU541_11320",null,null,"Raw Adjusted MD","MVA","Non-Coincident"]
["ED_MDU541_11321",null,null,null,null,"Coincident"]
["ED_MDU541_11322",null,null,"Date MD occurred",null,"Non-Coincident"]
["ED_MDU541_11323",null,null,null,null,"Coincident"]
["ED_MDU541_11324",null,null,"Half hour time period MD occurred",null,"Non-Coincident"]
["ED_MDU541_11325",null,null,null,null,"Coincident"]
["ED_MDU541_11326",null,null,"Winter/Summer Peaking",null,"Non-Coincident"]
["ED_MDU541_11327",null,null,null,null,"Coincident"]
["ED_MDU541_11328",null,null,"Adjustments - Embedded generation","MW","Non-Coincident"]
["ED_MDU541_11329",null,null,null,null,"Coincident"]
["ED_MDU541_11330",null,null,"Weather Corrected MD 10% POE","MW","Non-Coincident"]
["ED_MDU541_11331",null,null,null,null,"Coincident"]
["ED_MDU541_11332",null,null,"Weather Corrected MD 10% POE","MVA","Non-Coincident"]
["ED_MDU541_11333",null,null,null,null,"Coincident"]
["ED_MDU541_11334",null,null,"Weather Corrected MD 50% POE","MW","Non-Coincident"]
["ED_MDU541_11335",null,null,null,null,"Coincident"]
["ED_MDU541_11336",null,null,"Weather Corrected MD 50% POE","MVA","Non-Coincident"]
["ED_MDU541_11337",null,null,null,null,"Coincident"]
["ED_MDU541_11338",null,"<Enter substation name>","Substation Rating","MVA","Non-Coincident"]
["ED_MDU541_11339",null,null,null,null,"Coincident"]
["ED_MDU541_11340",null,null,"Raw Adjusted MD","MW","Non-Coincident"]
["ED_MDU541_11341",null,null,null,null,"Coincident"]
["ED_MDU541_11342",null,null,"Raw Adjusted MD","MVA","Non-Coincident"]
["ED_MDU541_11343",null,null,null,null,"Coincident"]
["ED_MDU541_11344",null,null,"Date MD occurred",null,"Non-Coincident"]
["ED_MDU541_11345",null,null,null,null,"Coincident"]
["ED_MDU541_11346",null,null,"Half hour time period MD occurred",null,"Non-Coincident"]
["ED_MDU541_11347",null,null,null,null,"Coincident"]
["ED_MDU541_11348",null,null,"Winter/Summer Peaking",null,"Non-Coincident"]
["ED_MDU541_11349",null,null,null,null,"Coincident"]
["ED_MDU541_11350",null,null,"Adjustments - Embedded generation","MW","Non-Coincident"]
["ED_MDU541_11351",null,null,null,null,"Coincident"]
["ED_MDU541_11352",null,null,"Weather Corrected MD 10% POE","MW","Non-Coincident"]
["ED_MDU541_11353",null,null,null,null,"Coincident"]
["ED_MDU541_11354",null,null,"Weather Corrected MD 10% POE","MVA","Non-Coincident"]
["ED_MDU541_11355",null,null,null,null,"Coincident"]
["ED_MDU541_11356",null,null,"Weather Corrected MD 50% POE","MW","Non-Coincident"]
["ED_MDU541_11357",null,null,null,null,"Coincident"]
["ED_MDU541_11358",null,null,"Weather Corrected MD 50% POE","MVA","Non-Coincident"]
["ED_MDU541_11359",null,null,null,null,"Coincident"]
["ED_MDU541_11360",null,"<Enter substation name>","Substation Rating","MVA","Non-Coincident"]
["ED_MDU541_11361",null,null,null,null,"Coincident"]
["ED_MDU541_11362",null,null,"Raw Adjusted MD","MW","Non-Coincident"]
["ED_MDU541_11363",null,null,null,null,"Coincident"]
["ED_MDU541_11364",null,null,"Raw Adjusted MD","MVA","Non-Coincident"]
["ED_MDU541_11365",null,null,null,null,"Coincident"]
["ED_MDU541_11366",null,null,"Date MD occurred",null,"Non-Coincident"]
["ED_MDU541_11367",null,null,null,null,"Coincident"]
["ED_MDU541_11368",null,null,"Half hour time period MD occurred",null,"Non-Coincident"]
["ED_MDU541_11369",null,null,null,null,"Coincident"]
["ED_MDU541_11370",null,null,"Winter/Summer Peaking",null,"Non-Coincident"]
["ED_MDU541_11371",null,null,null,null,"Coincident"]
["ED_MDU541_11372",null,null,"Adjustments - Embedded generation","MW","Non-Coincident"]
["ED_MDU541_11373",null,null,null,null,"Coincident"]
["ED_MDU541_11374",null,null,"Weather Corrected MD 10% POE","MW","Non-Coincident"]
["ED_MDU541_11375",null,null,null,null,"Coincident"]
["ED_MDU541_11376",null,null,"Weather Corrected MD 10% POE","MVA","Non-Coincident"]
["ED_MDU541_11377",null,null,null,null,"Coincident"]
["ED_MDU541_11378",null,null,"Weather Corrected MD 50% POE","MW","Non-Coincident"]
["ED_MDU541_11379",null,null,null,null,"Coincident"]
["ED_MDU541_11380",null,null,"Weather Corrected MD 50% POE","MVA","Non-Coincident"]
["ED_MDU541_11381",null,null,null,null,"Coincident"]
["ED_MDU541_11382",null,"<Enter substation name>","Substation Rating","MVA","Non-Coincident"]
["ED_MDU541_11383",null,null,null,null,"Coincident"]
["ED_MDU541_11384",null,null,"Raw Adjusted MD","MW","Non-Coincident"]
["ED_MDU541_11385",null,null,null,null,"Coincident"]
["ED_MDU541_11386",null,null,"Raw Adjusted MD","MVA","Non-Coincident"]
["ED_MDU541_11387",null,null,null,null,"Coincident"]
["ED_MDU541_11388",null,null,"Date MD occurred",null,"Non-Coincident"]
["ED_MDU541_11389",null,null,null,null,"Coincident"]
["ED_MDU541_11390",null,null,"Half hour time period MD occurred",null,"Non-Coincident"]
["ED_MDU541_11391",null,null,null,null,"Coincident"]
["ED_MDU541_11392",null,null,"Winter/Summer Peaking",null,"Non-Coincident"]
["ED_MDU541_11393",null,null,null,null,"Coincident"]
["ED_MDU541_11394",null,null,"Adjustments - Embedded generation","MW","Non-Coincident"]
["ED_MDU541_11395",null,null,null,null,"Coincident"]
["ED_MDU541_11396",null,null,"Weather Corrected MD 10% POE","MW","Non-Coincident"]
["ED_MDU541_11397",null,null,null,null,"Coincident"]
["ED_MDU541_11398",null,null,"Weather Corrected MD 10% POE","MVA","Non-Coincident"]
["ED_MDU541_11399",null,null,null,null,"Coincident"]
["ED_MDU541_11400",null,null,"Weather Corrected MD 50% POE","MW","Non-Coincident"]
["ED_MDU541_11401",null,null,null,null,"Coincident"]
["ED_MDU541_11402",null,null,"Weather Corrected MD 50% POE","MVA","Non-Coincident"]
["ED_MDU541_11403",null,null,null,null,"Coincident"]
["ED_MDU541_11404",null,"<Enter substation name>","Substation Rating","MVA","Non-Coincident"]
["ED_MDU541_11405",null,null,null,null,"Coincident"]
["ED_MDU541_11406",null,null,"Raw Adjusted MD","MW","Non-Coincident"]
["ED_MDU541_11407",null,null,null,null,"Coincident"]
["ED_MDU541_11408",null,null,"Raw Adjusted MD","MVA","Non-Coincident"]
["ED_MDU541_11409",null,null,null,null,"Coincident"]
["ED_MDU541_11410",null,null,"Date MD occurred",null,"Non-Coincident"]
["ED_MDU541_11411",null,null,null,null,"Coincident"]
["ED_MDU541_11412",null,null,"Half hour time period MD occurred",null,"Non-Coincident"]
["ED_MDU541_11413",null,null,null,null,"Coincident"]
["ED_MDU541_11414",null,null,"Winter/Summer Peaking",null,"Non-Coincident"]
["ED_MDU541_11415",null,null,null,null,"Coincident"]
["ED_MDU541_11416",null,null,"Adjustments - Embedded generation","MW","Non-Coincident"]
["ED_MDU541_11417",null,null,null,null,"Coincident"]
["ED_MDU541_11418",null,null,"Weather Corrected MD 10% POE","MW","Non-Coincident"]
["ED_MDU541_11419",null,null,null,null,"Coincident"]
["ED_MDU541_11420",null,null,"Weather Corrected MD 10% POE","MVA","Non-Coincident"]
["ED_MDU541_11421",null,null,null,null,"Coincident"]
["ED_MDU541_11422",null,null,"Weather Corrected MD 50% POE","MW","Non-Coincident"]
["ED_MDU541_11423",null,null,null,null,"Coincident"]
["ED_MDU541_11424",null,null,"Weather Corrected MD 50% POE","MVA","Non-Coincident"]
["ED_MDU541_11425",null,null,null,null,"Coincident"]

{"sheet":"6.3 Sustained interruptions","index":20,"n_rows":59999,"n_cols":16,"rows_kept":4500,"cut":true,"hidden":false,"merged":[[8,13,10,13],[11,13,15,13],[19,13,20,13]],"bounds":{"rows_first":2000,"rows_last":500,"rows_between":2000,"halvings":0}}
[null,{"$f":"(LOOKUP(dms_Model,dms_Model_List,dms_Worksheet_List))","v":"REGULATORY REPORTING STATEMENT"}]
[null,"Australian Distribution Co."]
[null,{"$f":"CONCATENATE(\"Category Analysis RIN response \",CRY)","v":"Category Analysis RIN response 2014-15"}]
[null,"6.3 SUSTAINED INTERRUPTIONS TO SUPPLY"]
[]
[null,{"$f":"CONCATENATE(\"TABLE 6.3.1 - SUSTAINED INTERRUPTIONS TO SUPPLY (for \", CRY,\")\")","v":"TABLE 6.3.1 - SUSTAINED INTERRUPTIONS TO SUPPLY (for 2014-15)"}]
[]
[null,"Date of event\n(DD/MM/YYYY)","Time of interruption\n(HH:MM)","Asset ID\n(eg. feeder ID)","Feeder classification\n(CBD, Urban, Short rural, Long rural)","Reason for interruption\n\n(select from options in drop-down box)","Detailed reason for interruption\n\n(select from options in column 'O' that correspond with reason in column 'F')","Number of customers affected by the interruption","Average duration of sustained customer\ninterruption\n(minutes)","Effect on unplanned SAIDI (by feeder classification)","Effect on unplanned SAIFI\n(by feeder classification)","MED",null,"Reason for interruption","Detailed reason for interruption"]
["SUS631_00001","2014-07-01","00:03:04","NBI8B2 M18 Myall Vale","Short Rural","Animal","Animal impact",11,109,2.2415572372947298E-3,2.0564745296281899E-5,"N",null,"Animal","Animal impact","Animal"]
["SUS631_00002","2014-07-01","00:27:27","DEN22 Macauley St","Urban","Asset failure","HV",97,48,2.4320427905810599E-2,5.06675581371054E-4,"N",null,null,"Animal nesting/burrowing, etc and other","Asset failure"]
["SUS631_00003","2014-07-01","05:02:00","TUN3B2 Beach St","Short Rural","Planned",null,57,109,null,null,"N",null,null,"Other","Other"]
["SUS631_00004","2014-07-01","05:19:54","BNY3B4 Millthorpe","Long Rural","Asset failure","HV",2,211,3.1165877057261798E-3,1.4770557847043501E-5,"N",null,"Asset failure","LV","Overloads"]
["SUS631_00005","2014-07-01","05:56:15","BJN8B2 M9 Carbeen/Merah Nth","Long Rural","Animal","Animal impact",8,146,8.6260057826733991E-3,5.9082231388173902E-5,"N",null,null,"Distribution substation","Planned"]
["SUS631_00006","2014-07-01","06:42:16","LHD3B4 Knockrow","Short Rural","Animal","Animal impact",3,88,4.9355388711076504E-4,5.60856689898597E-6,"N",null,null,"HV","Network business"]
["SUS631_00007","2014-07-01","06:47:48","WRA2W09 Gravesend","Long Rural","Weather",null,7,184,9.5122392534960094E-3,5.16969524646522E-5,"N",null,null,"Zone substation","Third party"]
["SUS631_00008","2014-07-01","07:39:28","NBI8B2 M18 Myall Vale","Short Rural","Animal","Animal impact",11,67,1.3778379348508901E-3,2.0564745296281899E-5,"N",null,null,"Subtransmission","Unknown"]
["SUS631_00009","2014-07-01","07:43:53","MRE2M35 Eastern Rural","Long Rural","Asset failure","HV",2,196,2.8950293380205199E-3,1.4770557847043501E-5,"N",null,"Other","insert description of 'other'","Vegetation"]
["SUS631_00010","2014-07-01","07:53:42","KEW3B2 Lorne","Short Rural","Third party","Vehicle impact",408,34,2.59340133409111E-2,7.6276509826209203E-4,"N",null,"Overloads","-","Weather"]
["SUS631_00011","2014-07-01","08:06:00","MCV3B8 Macksville Nth","Short Rural","Planned",null,9,51,null,null,"N",null,"Planned","-","2 - STPIS Exclusion (3.3)(a)"]
["SUS631_00012","2014-07-01","08:29:48","BMR668 Oxley Hwy","Short Rural","Planned",null,116,442.12068965517199,null,null,"N",null,"Network business","Network error","3 - STPIS Exclusion (3.3)(a)"]
["SUS631_00013","2014-07-01","08:29:48","BMR670 Watsons Ck","Short Rural","Planned",null,142,431,null,null,"N",null,null,"Switching and protection error","4 - STPIS Exclusion (3.3)(a)"]
["SUS631_00014","2014-07-01","08:29:51","BMR669 Bendemeer","Short Rural","Planned",null,40,440,null,null,"N",null,"Third party","Fire","5 - STPIS Exclusion (3.3)(a)"]
["SUS631_00015","2014-07-01","08:30:00","GYA3B1 Ben Lomond","Long Rural","Planned",null,73,187.534246575342,null,null,"N",null,null,"Other","6 - STPIS Exclusion (3.3)(a)"]
["SUS631_00016","2014-07-01","08:30:00","RVL3K1 Rappville","Long Rural","Planned",null,32,376,null,null,"N",null,null,"Dig-in","7 - STPIS Exclusion (3.3)(a)"]
["SUS631_00017","2014-07-01","08:30:00","SGN3B1 Armidale Rd","Long Rural","Planned",null,63,245.41269841269801,null,null,"N",null,null,"Unauthorised access"]
["SUS631_00018","2014-07-01","08:30:00","WJL3B1 Grudgery","Short Rural","Asset failure","HV",8,230,3.4399210313780602E-3,1.49561783972959E-5,"N",null,null,"Vehicle impact"]
["SUS631_00019","2014-07-01","08:30:00","WRA2W11 Warialda Town","Short Rural","Planned",null,141,422.22695035460998,null,null,"N",null,"Unknown","Unknown"]
["SUS631_00020","2014-07-01","08:30:00","LIU3B6 Cynthia Wilson","Urban","Planned",null,1,60,null,null,"N",null,"Vegetation","Blow-in/Fall-in - NSP responsibility"]
["SUS631_00021","2014-07-01","08:31:00","AHY2T05 Gins","Short Rural","Planned",null,35,17,null,null,"N",null,null,"Grow-in - NSP responsibility"]
["SUS631_00022","2014-07-01","08:33:00","HLP3B1 Tallwoods","Short Rural","Planned",null,399,454.508771929825,null,null,"N",null,null,"Blow-in/Fall-in - Other responsible party"]
["SUS631_00023","2014-07-01","08:33:00","HLP3B5 Hallidays Point","Short Rural","Planned",null,12,434,null,null,"N",null,null,"Grow-in - Other responsible party"]
["SUS631_00024","2014-07-01","08:37:00","MBL122 Stuart Town","Long Rural","Planned",null,20,160,null,null,"N",null,"Weather","-"]
["SUS631_00025","2014-07-01","08:38:00","HIL1111 Hillston 132 - Merriwagga","Long Rural","Planned",null,2,224,null,null,"N",null,"2 - STPIS Exclusion (3.3)(a)","-"]
["SUS631_00026","2014-07-01","08:41:38","MUD82 Abattoir No.1","Short Rural","Animal","Animal impact",2,141,5.2720528850468097E-4,3.7390445993239802E-6,"N",null,"3 - STPIS Exclusion (3.3)(a)","-"]
["SUS631_00027","2014-07-01","08:44:10","MUD92 Industrial","Short Rural","Third party","Vehicle impact",31,354,2.05161377164907E-2,5.7955191289521702E-5,"N",null,"4 - STPIS Exclusion (3.3)(a)","-"]
["SUS631_00028","2014-07-01","08:45:30","MWN3B9 Racecourse Rd","Short Rural","Planned",null,38,316.052631578947,null,null,"N",null,"5 - STPIS Exclusion (3.3)(a)","-"]
["SUS631_00029","2014-07-01","09:00:00","ANN8B1 No.1 72 Line","Long Rural","Planned",null,5,361.8,null,null,"N",null,"6 - STPIS Exclusion (3.3)(a)","-"]
["SUS631_00030","2014-07-01","09:00:00","AVE3B3 Wollongbar","Short Rural","Planned",null,1,281,null,null,"N",null,"7 - STPIS Exclusion (3.3)(a)","-"]
["SUS631_00031","2014-07-01","09:00:00","BBS3B4 Boambee Valley","Short Rural","Planned",null,9,165,null,null,"N"]
["SUS631_00032","2014-07-01","09:00:00","BYA7882 Comboyne","Short Rural","Planned",null,16,260,null,null,"N"]
["SUS631_00033","2014-07-01","09:00:00","MRH3B3 No.1 Town Sth","Short Rural","Planned",null,56,201,null,null,"N"]
["SUS631_00034","2014-07-01","09:00:00","SMN3B3 Kinchella","Short Rural","Planned",null,47,248,null,null,"N"]
["SUS631_00035","2014-07-01","09:00:49","UQT8B2 Uranquinty Nth","Short Rural","Planned",null,199,262.70351758793998,null,null,"N"]
["SUS631_00036","2014-07-01","09:01:47","BBI0101 M1 Maules Ck","Long Rural","Planned",null,206,400.364077669903,null,null,"N"]
["SUS631_00037","2014-07-01","09:03:00","BTS8B4 Wallangra/Bukkulla","Long Rural","Planned",null,6,161,null,null,"N"]
["SUS631_00038","2014-07-01","09:03:00","PYB12 Eugowra","Short Rural","Planned",null,17,391,null,null,"N"]
["SUS631_00039","2014-07-01","09:07:14","MRN8B2 Brayton Rd","Short Rural","Planned",null,116,382,null,null,"N"]
["SUS631_00040","2014-07-01","09:09:00","BRO3B1 Brogo Pumps","Short Rural","Planned",null,24,322.875,null,null,"N"]
["SUS631_00041","2014-07-01","09:15:00","CBB72 Binnaway","Long Rural","Planned",null,2,175,null,null,"N"]
["SUS631_00042","2014-07-01","09:15:00","DNO142 Merrygoen","Long Rural","Planned",null,15,295,null,null,"N"]
["SUS631_00043","2014-07-01","09:15:00","SUN4B1 Sunset Strip Backbone - Wilcannia","Long Rural","Asset failure","HV",1,365,2.6956268070854402E-3,7.3852789235217402E-6,"N"]
["SUS631_00044","2014-07-01","09:16:17","GID22 Rural Nth/Sth/West","Long Rural","Planned",null,58,303.81034482758599,null,null,"N"]
["SUS631_00045","2014-07-01","09:17:00","GFH3B5 Jensen Rd","Short Rural","Planned",null,12,227,null,null,"N"]
["SUS631_00046","2014-07-01","09:20:00","NVE32 Auscott/Warren Town","Short Rural","Planned",null,62,285,null,null,"N"]
["SUS631_00047","2014-07-01","09:22:00","KYG3B4 Nth Kyogle No.2","Short Rural","Planned",null,7,92,null,null,"N"]
["SUS631_00048","2014-07-01","09:26:00","MUA5005 East","Long Rural","Planned",null,43,157,null,null,"N"]
["SUS631_00049","2014-07-01","09:26:00","CHI2538 Farrer Rd","Short Rural","Planned",null,115,350.2,null,null,"N"]
["SUS631_00050","2014-07-01","09:29:00","ALU22 West Albury/Howlong","Short Rural","Planned",null,1,316,null,null,"N"]
["SUS631_00051","2014-07-01","09:30:00","EUL52 Rural Sth","Long Rural","Planned",null,1,335,null,null,"N"]
["SUS631_00052","2014-07-01","09:30:00","TEM2 No.2 Lines 21/22/23/24/25","Long Rural","Planned",null,1,256,null,null,"N"]
["SUS631_00053","2014-07-01","09:30:00","EWE3B8 Federal","Short Rural","Planned",null,19,108,null,null,"N"]
["SUS631_00054","2014-07-01","09:30:02","KIS7682 Pappinbarra","Short Rural","Other",null,75,86.4,1.21145045018097E-2,1.4021417247464901E-4,"N"]
["SUS631_00055","2014-07-01","09:32:39","OBR3B2 Black Springs","Long Rural","Planned",null,12,322.33333333333297,null,null,"N"]
["SUS631_00056","2014-07-01","09:33:00","STH3B10 Hillvue","Short Rural","Planned",null,116,286.491379310345,null,null,"N"]
["SUS631_00057","2014-07-01","09:34:00","JIN22 Jindabyne East","Long Rural","Planned",null,9,335.33333333333297,null,null,"N"]
["SUS631_00058","2014-07-01","09:35:00","MCV3B8 Macksville Nth","Short Rural","Planned",null,32,208,null,null,"N"]
["SUS631_00059","2014-07-01","09:38:00","MPTD2 Surf Beach","Short Rural","Planned",null,27,297,null,null,"N"]
["SUS631_00060","2014-07-01","09:39:00","CRO5522 Tuena Redground","Long Rural","Planned",null,2,193,null,null,"N"]
["SUS631_00061","2014-07-01","09:40:00","GDI8B2 Boggabilla","Long Rural","Planned",null,12,303.08333333333297,null,null,"N"]
["SUS631_00062","2014-07-01","09:40:00","YOU3B9 Weedallion","Long Rural","Planned",null,3,297,null,null,"N"]
["SUS631_00063","2014-07-01","09:43:00","MRE2M35 Eastern Rural","Long Rural","Planned",null,1,96,null,null,"N"]
["SUS631_00064","2014-07-01","09:49:00","CRO5522 Tuena Redground","Long Rural","Planned",null,1,26,null,null,"N"]
["SUS631_00065","2014-07-01","09:53:00","KOO1708 Vincent Rd","Short Rural","Planned",null,29,257,null,null,"N"]
["SUS631_00066","2014-07-01","09:56:00","MOA24 Perricoota","Long Rural","Planned",null,1,133,null,null,"N"]
["SUS631_00067","2014-07-01","09:56:00","PYB32 Forbes","Long Rural","Planned",null,1,159,null,null,"N"]
["SUS631_00068","2014-07-01","09:58:00","MCV3B8 Macksville Nth","Short Rural","Planned",null,33,318,null,null,"N"]
["SUS631_00069","2014-07-01","10:00:00","LIU3B8 Lismore Square No.1","Urban","Planned",null,1,60,null,null,"N"]
["SUS631_00070","2014-07-01","10:04:00","ELL8B1 Wentworth","Short Rural","Planned",null,2,74,null,null,"N"]
["SUS631_00071","2014-07-01","10:06:00","MRE2M36 Moree Eastern Town","Urban","Planned",null,77,480,null,null,"N"]
["SUS631_00072","2014-07-01","10:10:00","HAT42 Hay 132 - Carrathool","Long Rural","Planned",null,1,56,null,null,"N"]
["SUS631_00073","2014-07-01","10:12:00","JER32 Coleambally","Long Rural","Asset failure","LV",4,107,3.1608993792673098E-3,2.9541115694087002E-5,"N"]
["SUS631_00074","2014-07-01","10:15:00","LEE3B3 Leeton CBD","Urban","Planned",null,129,255,null,null,"N"]
["SUS631_00075","2014-07-01","10:18:00","STF8B1 Nimmitabel","Short Rural","Planned",null,18,83,null,null,"N"]
["SUS631_00076","2014-07-01","10:19:43","MLN3B4 Townsend","Short Rural","Animal","Animal impact",5,122,1.14040860279381E-3,9.3476114983099506E-6,"N"]
["SUS631_00077","2014-07-01","10:24:55","NME8B2 Narromine Town Sth","Short Rural","Asset failure","LV",1,65,1.2151894947802899E-4,1.8695222996619901E-6,"N"]
["SUS631_00078","2014-07-01","10:30:00","NARF2 Tilba","Short Rural","Planned",null,1,216,null,null,"N"]
["SUS631_00079","2014-07-01","10:30:00","WBG3B1 Kooba Settlers Rd","Short Rural","Planned",null,1,60,null,null,"N"]
["SUS631_00080","2014-07-01","10:44:00","SWT22 Mt Panorama","Short Rural","Planned",null,1,166,null,null,"N"]
["SUS631_00081","2014-07-01","10:50:26","DUG3B1 Clarencetown","Short Rural","Third party","Vehicle impact",736,158,0.21740300918309399,1.3759684125512199E-3,"N"]
["SUS631_00082","2014-07-01","11:00:00","CRO5522 Tuena Redground","Long Rural","Planned",null,1,73,null,null,"N"]
["SUS631_00083","2014-07-01","11:02:01","CDN42 Burcher","Long Rural","Other",null,1,62,4.5788729325834797E-4,7.3852789235217402E-6,"N"]
["SUS631_00084","2014-07-01","11:08:20","MUA5006 West","Short Rural","Asset failure","HV",3,200,1.1217133797971901E-3,5.60856689898597E-6,"N"]
["SUS631_00085","2014-07-01","11:14:00","JUN1 Illabo 31/32 Lines","Long Rural","Other",null,1,87,6.4251926634639202E-4,7.3852789235217402E-6,"N"]
["SUS631_00086","2014-07-01","11:14:03","7L3 Kamarah","Long Rural","Asset failure","LV",1,203,1.49921162147491E-3,7.3852789235217402E-6,"N"]
["SUS631_00087","2014-07-01","11:23:00","TDL8B2 Tullamore/Tottenham","Long Rural","Planned",null,1,212,null,null,"N"]
["SUS631_00088","2014-07-01","11:38:00","DBS3B1 Rural Sth","Long Rural","Planned",null,2,98,null,null,"N"]
["SUS631_00089","2014-07-01","12:05:00","GLS5/4 Ben Venue","Short Rural","Asset failure","LV",73,29,3.9577787083844296E-3,1.3647512787532499E-4,"N"]
["SUS631_00090","2014-07-01","12:47:00","ALU82 Nth Albury","Urban","Planned",null,79,119,null,null,"N"]
["SUS631_00091","2014-07-01","12:52:31","BYA7882 Comboyne","Short Rural","Asset failure","LV",32,64,3.82878166970776E-3,5.9824713589183703E-5,"N"]
["SUS631_00092","2014-07-01","12:55:00","HAT42 Hay 132 - Carrathool","Long Rural","Other",null,1,10,7.3852789235217406E-5,7.3852789235217402E-6,"N"]
["SUS631_00093","2014-07-01","12:56:00","YAS6282 Kangiara","Long Rural","Asset failure","HV",1,81,5.9820759280526095E-4,7.3852789235217402E-6,"N"]
["SUS631_00094","2014-07-01","13:04:40","MOA25 Moama East","Short Rural","Asset failure","HV",1,20,3.7390445993239802E-5,1.8695222996619901E-6,"N"]
["SUS631_00095","2014-07-01","13:16:00","ELL8B2 Pooncarie","Long Rural","Planned",null,1,98,null,null,"N"]
["SUS631_00096","2014-07-01","13:25:22","MDA22 Sth","Short Rural","Asset failure","HV",1,98,1.83213185366875E-4,1.8695222996619901E-6,"N"]
["SUS631_00097","2014-07-01","13:30:00","CRO5522 Tuena Redground","Long Rural","Planned",null,2,44,null,null,"N"]
["SUS631_00098","2014-07-01","13:33:11","BUL4806 Naval Base","Short Rural","Animal","Animal impact",2,242,9.0484879303640302E-4,3.7390445993239802E-6,"N"]
["SUS631_00099","2014-07-01","13:50:00","SWT22 Mt Panorama","Short Rural","Asset failure","HV",1,5,9.3476114983099506E-6,1.8695222996619901E-6,"N"]
["SUS631_00100","2014-07-01","14:32:45","DEN62 Nth Rural","Long Rural","Animal","Animal impact",1,55,4.0619034079369601E-4,7.3852789235217402E-6,"N"]
["SUS631_00101","2014-07-01","15:36:24","DUG3B6 Sandy Ck/Wallarobba","Short Rural","Asset failure","HV",18,190,6.3937662648440099E-3,3.36514013939158E-5,"N"]
["SUS631_00102","2014-07-01","16:45:00","MEN8B1 Menindee","Short Rural","Weather",null,2,14.5,5.4216146690197699E-5,3.7390445993239802E-6,"N"]
["SUS631_00103","2014-07-01","17:24:37","NDA3B2 May St","Short Rural","Asset failure","HV",11,81,1.66574436899883E-3,2.0564745296281899E-5,"N"]
["SUS631_00104","2014-07-01","17:40:45","HAT12 Booligal","Long Rural","Animal","Animal impact",1,74,5.4651064034060904E-4,7.3852789235217402E-6,"N"]
["SUS631_00105","2014-07-01","18:00:50","QUI3B1 Quira","Short Rural","Weather",null,24,64,2.8715862522808201E-3,4.4868535191887801E-5,"N"]
["SUS631_00106","2014-07-01","18:00:55","BJN8B2 M9 Carbeen/Merah Nth","Long Rural","Animal","Animal impact",8,111,6.5581276840873098E-3,5.9082231388173902E-5,"N"]
["SUS631_00107","2014-07-01","18:34:29","BTS8B8 Delungra","Long Rural","Asset failure","LV",1,154,1.13733295422235E-3,7.3852789235217402E-6,"N"]
["SUS631_00108","2014-07-01","19:55:03","DBS3B1 Rural Sth","Long Rural","Asset failure","HV",2,59,8.7146291297556596E-4,1.4770557847043501E-5,"N"]
["SUS631_00109","2014-07-01","20:44:58","WHI716 Stanbridge","Short Rural","Animal","Animal impact",5,63,5.8889952439352702E-4,9.3476114983099506E-6,"N"]
["SUS631_00110","2014-07-01","21:30:20","WGM4981 Mt George/Elands","Long Rural","Asset failure","HV",14,532,5.5005557422390002E-2,1.0339390492930399E-4,"N"]
["SUS631_00111","2014-07-01","23:57:47","CNK3B4 Lansdowne","Short Rural","Animal","Animal impact",369,207,0.14279972181508199,6.8985372857527404E-4,"N"]
["SUS631_00112","2014-07-02","01:41:17","DEN42 Crispe St","Short Rural","Asset failure","HV",5,743,6.9452753432442896E-3,9.3476114983099506E-6,"N"]
["SUS631_00113","2014-07-02","03:06:00","SLI3B10 Jiggi","Short Rural","Other",null,292,159.79452054794501,8.7231910502228505E-2,5.4590051150130105E-4,"N"]
["SUS631_00114","2014-07-02","06:22:00","ETH3B12 Mathews/Denison","Urban","Asset failure","LV",1,109,5.6935709659221496E-4,5.2234596017634396E-6,"N"]
["SUS631_00115","2014-07-02","06:56:58","ORW3B7 Cargo Rd","Short Rural","Asset failure","HV",2,196,7.3285274146750001E-4,3.7390445993239802E-6,"N"]
["SUS631_00116","2014-07-02","06:57:51","OXY3B9 Forest Hills","Short Rural","Overloads",null,1,84,1.57039873171607E-4,1.8695222996619901E-6,"N"]
["SUS631_00117","2014-07-02","07:16:00","GLS5/3 Rockvale","Short Rural","Asset failure","LV",1,91,1.70126529269241E-4,1.8695222996619901E-6,"N"]
["SUS631_00118","2014-07-02","07:22:53","EWE3B3 Northern","Short Rural","Animal","Animal impact",2,130,4.86075797912117E-4,3.7390445993239802E-6,"N"]
["SUS631_00119","2014-07-02","07:30:15","MUL3B2 Main Arm","Short Rural","Animal","Animal impact",11,169,3.47544195507164E-3,2.0564745296281899E-5,"N"]
["SUS631_00120","2014-07-02","07:43:00","DTN23 Wentworth","Long Rural","Asset failure","HV",26,9,1.72815526810409E-3,1.9201725201156499E-4,"N"]
["SUS631_00121","2014-07-02","07:50:35","MRH3B5 Galong","Short Rural","Other",null,1,192,3.5894828153510197E-4,1.8695222996619901E-6,"N"]
["SUS631_00122","2014-07-02","07:59:00","GDI8B3 Talwood","Long Rural","Asset failure","LV",1,104,7.6806900804626105E-4,7.3852789235217402E-6,"N"]
["SUS631_00123","2014-07-02","08:00:00","SWR3B6 Stuarts Pt","Short Rural","Planned",null,2,266,null,null,"N"]
["SUS631_00124","2014-07-02","08:03:59","RAG3B3 Raglan Industrial","Short Rural","Other",null,1,155,2.89775956447608E-4,1.8695222996619901E-6,"N"]
["SUS631_00125","2014-07-02","08:10:00","SWT12 Stewarts Mt","Long Rural","Planned",null,2,230,null,null,"N"]
["SUS631_00126","2014-07-02","08:22:05","CWD53 Canowindra No.1","Short Rural","Animal","Animal impact",44,23,1.8919565672579301E-3,8.2258981185127597E-5,"N"]
["SUS631_00127","2014-07-02","08:24:32","MUL3B5 Ocean Shores","Short Rural","Asset failure","LV",126,216,5.08809189076007E-2,2.3555980975741101E-4,"N"]
["SUS631_00128","2014-07-02","08:27:06","KOO1709 Cochrane St","Short Rural","Other",null,1,277,5.1785767700637103E-4,1.8695222996619901E-6,"N"]
["SUS631_00129","2014-07-02","08:30:00","GLR3B5 Barrington","Long Rural","Planned",null,8,111,null,null,"N"]
["SUS631_00130","2014-07-02","08:30:00","GDL3B8 Rural","Short Rural","Planned",null,21,309,null,null,"N"]
["SUS631_00131","2014-07-02","08:30:00","GYA3B3 Guyra Town/Black Mtn","Short Rural","Planned",null,1,260,null,null,"N"]
["SUS631_00132","2014-07-02","08:34:05","UMA590 Upper Manilla","Short Rural","Overloads",null,3,83,4.65511052615836E-4,5.60856689898597E-6,"N"]
["SUS631_00133","2014-07-02","08:35:24","CSO3B2 Kyogle Rd","Long Rural","Planned",null,58,277,null,null,"N"]
["SUS631_00134","2014-07-02","08:41:00","TEA3B8 Hawks Nest","Short Rural","Asset failure","LV",1,187,3.4960067003679199E-4,1.8695222996619901E-6,"N"]
["SUS631_00135","2014-07-02","08:45:56","WRA2W09 Gravesend","Long Rural","Planned",null,22,365.40909090909099,null,null,"N"]
["SUS631_00136","2014-07-02","08:47:55","WLA4/2 Uralla Rd/Wollun","Short Rural","Asset failure","HV",5,57,5.3281385540366699E-4,9.3476114983099506E-6,"N"]
["SUS631_00137","2014-07-02","08:48:00","DOR3B4 Fernbrook/Deervale","Short Rural","Planned",null,8,223,null,null,"N"]
["SUS631_00138","2014-07-02","08:50:00","PSK3B3 East","Short Rural","Planned",null,28,210,null,null,"N"]
["SUS631_00139","2014-07-02","08:53:56","MEN8B1 Menindee","Short Rural","Animal","Animal impact",1,61,1.14040860279381E-4,1.8695222996619901E-6,"N"]
["SUS631_00140","2014-07-02","08:59:23","PKT3B3 Telescope","Short Rural","Animal","Animal impact",1,112,2.0938649756214301E-4,1.8695222996619901E-6,"N"]
["SUS631_00141","2014-07-02","09:00:00","DNO142 Merrygoen","Long Rural","Planned",null,16,283,null,null,"N"]
["SUS631_00142","2014-07-02","09:00:00","OBR3B8 Tarana Duckmaloi","Long Rural","Planned",null,32,340,null,null,"N"]
["SUS631_00143","2014-07-02","09:00:00","AVE3B1 Alstonville Nth","Short Rural","Planned",null,11,334,null,null,"N"]
["SUS631_00144","2014-07-02","09:00:00","BTS8B10 Tingha","Short Rural","Planned",null,29,364.65517241379303,null,null,"N"]
["SUS631_00145","2014-07-02","09:00:00","DUG3B6 Sandy Ck/Wallarobba","Short Rural","Planned",null,2,200,null,null,"N"]
["SUS631_00146","2014-07-02","09:00:00","MRH3B3 No.1 Town Sth","Short Rural","Planned",null,18,334,null,null,"N"]
["SUS631_00147","2014-07-02","09:00:00","MWN3B3 Boat Harbour","Short Rural","Planned",null,1,312,null,null,"N"]
["SUS631_00148","2014-07-02","09:00:00","MWN3B4 Bray Pk","Short Rural","Planned",null,2,312,null,null,"N"]
["SUS631_00149","2014-07-02","09:00:00","RAG3B11 Gilmour St","Short Rural","Planned",null,24,491.625,null,null,"N"]
["SUS631_00150","2014-07-02","09:00:00","RGL3B8 Kalang/Valla","Short Rural","Planned",null,5,270,null,null,"N"]
["SUS631_00151","2014-07-02","09:00:00","SFP3B1 Byron No.4","Short Rural","Planned",null,104,580.99038461538498,null,null,"N"]
["SUS631_00152","2014-07-02","09:00:00","SFP3B5 Suffolk No.2","Short Rural","Planned",null,35,269,null,null,"N"]
["SUS631_00153","2014-07-02","09:01:00","MGA3B2 Willawarrin","Long Rural","Planned",null,18,298,null,null,"N"]
["SUS631_00154","2014-07-02","09:03:00","MGE3B2 Bonalbo Rd","Short Rural","Planned",null,3,211,null,null,"N"]
["SUS631_00155","2014-07-02","09:03:07","PYB32 Forbes","Long Rural","Planned",null,8,309,null,null,"N"]
["SUS631_00156","2014-07-02","09:05:00","RAG3B6 Limekilns","Long Rural","Planned",null,117,9,null,null,"N"]
["SUS631_00157","2014-07-02","09:05:00","CHS3B12 Sth Interconnector","Urban","Planned",null,210,225,null,null,"N"]
["SUS631_00158","2014-07-02","09:06:00","CBL3B1 Premer","Long Rural","Planned",null,185,349,null,null,"N"]
["SUS631_00159","2014-07-02","09:07:00","MCV3B9 Bowraville Rural","Long Rural","Planned",null,1,156,null,null,"N"]
["SUS631_00160","2014-07-02","09:09:00","CRO5522 Tuena Redground","Long Rural","Planned",null,4,307,null,null,"N"]
["SUS631_00161","2014-07-02","09:10:00","GDH8B2 M73 Pullaming","Long Rural","Planned",null,4,360,null,null,"N"]
["SUS631_00162","2014-07-02","09:10:00","SFP3B1 Byron No.4","Short Rural","Planned",null,16,197,null,null,"N"]
["SUS631_00163","2014-07-02","09:11:00","CLN3B2 Marrar 91 Line","Long Rural","Planned",null,3,82,null,null,"N"]
["SUS631_00164","2014-07-02","09:13:00","CHI2538 Farrer Rd","Short Rural","Planned",null,6,347,null,null,"N"]
["SUS631_00165","2014-07-02","09:15:00","CBB72 Binnaway","Long Rural","Planned",null,1,185,null,null,"N"]
["SUS631_00166","2014-07-02","09:15:00","CBB72 Binnaway","Long Rural","Planned",null,1,205,null,null,"N"]
["SUS631_00167","2014-07-02","09:15:00","OXY3B3 Alexandra/Fiona","Short Rural","Planned",null,28,287,null,null,"N"]
["SUS631_00168","2014-07-02","09:18:00","FBS42 Rural Sth","Long Rural","Planned",null,21,115,null,null,"N"]
["SUS631_00169","2014-07-02","09:20:00","MOU12 Moulamein","Long Rural","Planned",null,1,197,null,null,"N"]
["SUS631_00170","2014-07-02","09:20:00","PYB12 Eugowra","Short Rural","Planned",null,1,283,null,null,"N"]
["SUS631_00171","2014-07-02","09:23:00","TDL8B2 Tullamore/Tottenham","Long Rural","Planned",null,1,70,null,null,"N"]
["SUS631_00172","2014-07-02","09:28:00","WWL8B4 West Wyalong Sth West Town","Short Rural","Planned",null,72,210,null,null,"N"]
["SUS631_00173","2014-07-02","09:28:40","CRO5542 Crookwell Town and Biala","Long Rural","Asset failure","LV",1,285,2.1048044932037002E-3,7.3852789235217402E-6,"N"]
["SUS631_00174","2014-07-02","09:30:00","RAG3B6 Limekilns","Long Rural","Planned",null,64,257,null,null,"N"]
["SUS631_00175","2014-07-02","09:30:00","MRN8B2 Brayton Rd","Short Rural","Planned",null,1,129,null,null,"N"]
["SUS631_00176","2014-07-02","09:30:12","YAN2319 Euroley Rd","Short Rural","Planned",null,5,335,null,null,"N"]
["SUS631_00177","2014-07-02","09:31:00","MRN8B2 Brayton Rd","Short Rural","Planned",null,1,141,null,null,"N"]
["SUS631_00178","2014-07-02","09:31:04","AHY2T04 Northern","Long Rural","Planned",null,15,369.066666666667,null,null,"N"]
["SUS631_00179","2014-07-02","09:33:00","79P Griffith 132 - Goolgowi","Long Rural","Planned",null,33,348.33333333333297,null,null,"N"]
["SUS631_00180","2014-07-02","09:34:13","MUA5005 East","Long Rural","Vegetation","Grow-in",33,167,4.0700272147528298E-2,2.4371420447621801E-4,"N"]
["SUS631_00181","2014-07-02","09:36:00","BEE1342 Rossetto Rd","Short Rural","Asset failure","HV",95,22,3.9073016062935598E-3,1.7760461846788901E-4,"N"]
["SUS631_00182","2014-07-02","09:37:00","CNK3B3 Coopernook/Moorland","Short Rural","Planned",null,1,84,null,null,"N"]
["SUS631_00183","2014-07-02","09:38:00","NARF2 Tilba","Short Rural","Planned",null,15,265,null,null,"N"]
["SUS631_00184","2014-07-02","09:40:49","CBY804 Channel Nine Rd","Short Rural","Planned",null,10,242,null,null,"N"]
["SUS631_00185","2014-07-02","09:41:00","BET2 Bethungra Lines 41 and 42","Short Rural","Planned",null,7,264,null,null,"N"]
["SUS631_00186","2014-07-02","09:41:00","BPT3B1 Fraser Dr","Urban","Planned",null,100,188,null,null,"N"]
["SUS631_00187","2014-07-02","09:42:00","BRD22 No.2 Moulamein","Long Rural","Planned",null,1,166,null,null,"N"]
["SUS631_00188","2014-07-02","09:42:00","ORI830 Leeds Pde","Short Rural","Planned",null,1,313,null,null,"N"]
["SUS631_00189","2014-07-02","09:43:00","DUN3B4 Mt Nardi","Short Rural","Vegetation","Blow-in/Fall-in",7,182,2.3817714097693799E-3,1.3086656097633901E-5,"N"]
["SUS631_00190","2014-07-02","09:45:00","DUG3B6 Sandy Ck/Wallarobba","Short Rural","Asset failure","LV",1,240,4.4868535191887798E-4,1.8695222996619901E-6,"N"]
["SUS631_00191","2014-07-02","09:47:00","BJN8B2 M9 Carbeen/Merah Nth","Long Rural","Asset failure","HV",4,153,4.5197907011953102E-3,2.9541115694087002E-5,"N"]
["SUS631_00192","2014-07-02","09:51:00","DTN25 Dareton","Short Rural","Planned",null,12,125,null,null,"N"]
["SUS631_00193","2014-07-02","09:51:00","MRN8B2 Brayton Rd","Short Rural","Planned",null,1,75,null,null,"N"]
["SUS631_00194","2014-07-02","09:53:16","JER22 Jerilderie Town","Short Rural","Planned",null,25,267,null,null,"N"]
["SUS631_00195","2014-07-02","09:54:00","NDL616 Woolomin","Long Rural","Planned",null,1,136,null,null,"N"]
["SUS631_00196","2014-07-02","09:58:00","CBR32 Cobar Town Sth","Short Rural","Planned",null,61,270,null,null,"N"]
["SUS631_00197","2014-07-02","10:00:00","UQT8B1 The Rock","Long Rural","Planned",null,2,225,null,null,"N"]
["SUS631_00198","2014-07-02","10:07:00","CUD3B5 Salt No.1","Short Rural","Planned",null,33,87,null,null,"N"]
["SUS631_00199","2014-07-02","10:09:00","MRN8B2 Brayton Rd","Short Rural","Planned",null,1,110,null,null,"N"]
["SUS631_00200","2014-07-02","10:10:00","LGR8B2 M34 Goodooga","Long Rural","Planned",null,1,175,null,null,"N"]
["SUS631_00201","2014-07-02","10:15:07","NSK3B3 Aldavilla","Short Rural","Animal","Animal impact",8,86,1.2862313421674501E-3,1.49561783972959E-5,"N"]
["SUS631_00202","2014-07-02","10:19:00","NARF2 Tilba","Short Rural","Planned",null,1,107,null,null,"N"]
["SUS631_00203","2014-07-02","10:21:00","MRN8B2 Brayton Rd","Short Rural","Planned",null,1,104,null,null,"N"]
["SUS631_00204","2014-07-02","10:23:00","GNF42 Rural No.2","Long Rural","Planned",null,1,275,null,null,"N"]
["SUS631_00205","2014-07-02","10:28:00","TDL8B2 Tullamore/Tottenham","Long Rural","Planned",null,2,194,null,null,"N"]
["SUS631_00206","2014-07-02","10:45:00","DNO142 Merrygoen","Long Rural","Planned",null,3,68,null,null,"N"]
["SUS631_00207","2014-07-02","11:00:00","BJN8B1 M42 Burren Town","Short Rural","Asset failure","HV",3,8,4.4868535191887801E-5,5.60856689898597E-6,"N"]
["SUS631_00208","2014-07-02","11:23:00","JIN62 Kurrajong St","Urban","Planned",null,32,27,null,null,"N"]
["SUS631_00209","2014-07-02","11:26:22","HEN3B1 Yerong Ck","Short Rural","Vegetation","Grow-in",17,113,3.5913523376506799E-3,3.1781879094253799E-5,"N"]
["SUS631_00210","2014-07-02","12:03:00","KYW2198 Kywong Nth","Short Rural","Vegetation","Blow-in/Fall-in",2,234,8.7493643624181197E-4,3.7390445993239802E-6,"N"]
["SUS631_00211","2014-07-02","12:14:00","DNO142 Merrygoen","Long Rural","Planned",null,2,46,null,null,"N"]
["SUS631_00212","2014-07-02","12:24:56","79C Griffith 132 - Darlington Point","Short Rural","Asset failure","HV",95,277.95789473684198,4.9366605844874498E-2,1.7760461846788901E-4,"N"]
["SUS631_00213","2014-07-02","12:24:56","DPR1097 Bringagee","Short Rural","Asset failure","HV",30,98,5.4963955610062504E-3,5.60856689898597E-5,"N"]
["SUS631_00214","2014-07-02","12:24:56","WBG3B1 Kooba Settlers Rd","Short Rural","Asset failure","HV",17,97,3.0828422721426202E-3,3.1781879094253799E-5,"N"]
["SUS631_00215","2014-07-02","12:24:56","WBG3B2 Pellizer Rd","Short Rural","Asset failure","HV",46,97,8.3418085010917992E-3,8.5998025784451599E-5,"N"]
["SUS631_00216","2014-07-02","12:24:56","WBG3B3 Kidman Way Sth","Short Rural","Asset failure","HV",20,97,3.6268732613442601E-3,3.7390445993239802E-5,"N"]
["SUS631_00217","2014-07-02","12:24:56","WBG3B4 Kidman Way Nth","Short Rural","Asset failure","HV",11,97,1.99478029373934E-3,2.0564745296281899E-5,"N"]
["SUS631_00218","2014-07-02","12:37:56","KOO1713 Lake Albert","Short Rural","Asset failure","HV",33,39,2.40607519966498E-3,6.1694235888845697E-5,"N"]
["SUS631_00219","2014-07-02","12:38:00","NVE32 Auscott/Warren Town","Short Rural","Asset failure","HV",10,85,1.58909395471269E-3,1.8695222996619901E-5,"N"]
["SUS631_00220","2014-07-02","12:57:52","BBI0101 M1 Maules Ck","Long Rural","Asset failure","LV",1,148,1.09302128068122E-3,7.3852789235217402E-6,"N"]
["SUS631_00221","2014-07-02","13:05:00","LOC3794 Lockhart","Long Rural","Other",null,5,155,5.7235911657293496E-3,3.6926394617608703E-5,"N"]
["SUS631_00222","2014-07-02","13:18:00","MRN8B2 Brayton Rd","Short Rural","Planned",null,1,65,null,null,"N"]
["SUS631_00223","2014-07-02","13:23:00","MRN8B2 Brayton Rd","Short Rural","Planned",null,1,57,null,null,"N"]
["SUS631_00224","2014-07-02","13:27:51","SLI3B2 Sth Gundurimba","Short Rural","Asset failure","LV",1,96,1.7947414076755099E-4,1.8695222996619901E-6,"N"]
["SUS631_00225","2014-07-02","13:29:00","MRN8B2 Brayton Rd","Short Rural","Planned",null,2,82,null,null,"N"]
["SUS631_00226","2014-07-02","13:29:14","GBN6222 Taralga","Long Rural","Vegetation","Blow-in/Fall-in",42,112,3.4740352056246301E-2,3.1018171478791303E-4,"N"]
["SUS631_00227","2014-07-02","13:36:00","MRN8B2 Brayton Rd","Short Rural","Planned",null,1,73,null,null,"N"]
["SUS631_00228","2014-07-02","13:41:00","SUT5323 Gundaroo","Long Rural","Other",null,37,27,7.3778936445982202E-3,2.7325532017030501E-4,"N"]
["SUS631_00229","2014-07-02","13:56:53","BBI0401 M4 Wean","Short Rural","Asset failure","HV",1,79,1.4769226167329701E-4,1.8695222996619901E-6,"N"]
["SUS631_00230","2014-07-02","14:24:12","LIU3B6 Cynthia Wilson","Urban","Asset failure","LV",97,82,4.1547397672426399E-2,5.06675581371054E-4,"N"]
["SUS631_00231","2014-07-02","14:27:13","FIN22 Rural Nth","Long Rural","Asset failure","HV",1,72,5.3174008249356596E-4,7.3852789235217402E-6,"N"]
["SUS631_00232","2014-07-02","14:33:59","AVE3B6 Wardell","Short Rural","Animal","Animal impact",10,122,2.2808172055876299E-3,1.8695222996619901E-5,"N"]
["SUS631_00233","2014-07-02","14:54:53","BRE8B4 M56 Brewarrina","Long Rural","Asset failure","LV",1,264,1.94971363580974E-3,7.3852789235217402E-6,"N"]
["SUS631_00234","2014-07-02","14:56:48","JER22 Jerilderie Town","Short Rural","Other",null,25,5,2.33690287457749E-4,4.6738057491549802E-5,"N"]
["SUS631_00235","2014-07-02","15:08:08","MRH3B4 No.2 Town Nth","Short Rural","Asset failure","LV",1,90,1.6825700696957899E-4,1.8695222996619901E-6,"N"]
["SUS631_00236","2014-07-02","15:37:12","ALU32 Lavington West/Jindera","Long Rural","Third party","Vehicle impact",1580,359.67721518987298,4.1969801594481702,1.16687406991644E-2,"N"]
["SUS631_00237","2014-07-02","15:38:59","DTN23 Wentworth","Long Rural","Animal","Animal impact",3,130,2.8802587801734802E-3,2.2155836770565199E-5,"N"]
["SUS631_00238","2014-07-02","15:43:01","CFN3B13 Karangi Dam","Short Rural","Third party","Vehicle impact",1,152,2.8416738954862301E-4,1.8695222996619901E-6,"N"]
["SUS631_00239","2014-07-02","16:00:38","NME8B6 River West","Long Rural","Other",null,3,72,1.5952202474807001E-3,2.2155836770565199E-5,"N"]
["SUS631_00240","2014-07-02","16:50:46","ORS3B5 Lords Place","Urban","Third party","Vehicle impact",1,161,8.4097699588391397E-4,5.2234596017634396E-6,"N"]
["SUS631_00241","2014-07-02","17:28:55","ELI3B4 Lynwood","Short Rural","Asset failure","LV",1,111,2.07516975262481E-4,1.8695222996619901E-6,"N"]
["SUS631_00242","2014-07-02","17:40:00","CNB32 Coonamble Town No.2","Short Rural","Asset failure","LV",20,58,2.1686458676079099E-3,3.7390445993239802E-5,"N"]
["SUS631_00243","2014-07-02","18:02:00","MLS3B5 City Central","Urban","Asset failure","HV",27,71,1.00133720565805E-2,1.41033409247613E-4,"N"]
["SUS631_00244","2014-07-02","18:40:07","LHD3B5 Lennox West","Short Rural","Asset failure","LV",1,68,1.27127516377015E-4,1.8695222996619901E-6,"N"]
["SUS631_00245","2014-07-02","19:35:00","AHY2T04 Northern","Long Rural","Asset failure","HV",220,3,4.8742840895243502E-3,1.6247613631747799E-3,"N"]
["SUS631_00246","2014-07-02","19:35:00","AHY2T05 Gins","Short Rural","Asset failure","HV",153,3,8.5811073554485401E-4,2.8603691184828501E-4,"N"]
["SUS631_00247","2014-07-03","00:28:01","EUL32 Dubbo Nth/East Town","Short Rural","Asset failure","HV",40,51,3.8138254913104601E-3,7.4780891986479605E-5,"N"]
["SUS631_00248","2014-07-03","02:56:38","BRD22 No.2 Moulamein","Long Rural","Animal","Animal impact",12,48,4.2539206599485199E-3,8.8623347082260903E-5,"N"]
["SUS631_00249","2014-07-03","07:26:24","CCN3B1 Walbundrie","Long Rural","Asset failure","HV",2,113,1.6690730367159099E-3,1.4770557847043501E-5,"N"]
["SUS631_00250","2014-07-03","08:00:00","BHL42 Railwaytown","Short Rural","Planned",null,161,408,null,null,"N"]
["SUS631_00251","2014-07-03","08:06:00","SLI3B2 Sth Gundurimba","Short Rural","Planned",null,33,456.75757575757598,null,null,"N"]
["SUS631_00252","2014-07-03","08:30:00","BPT3B3 Fingal","Short Rural","Planned",null,92,384,null,null,"N"]
["SUS631_00253","2014-07-03","08:30:00","FBS82 Forbes Town No.1","Short Rural","Planned",null,9,302,null,null,"N"]
["SUS631_00254","2014-07-03","08:30:00","GRN3B6 Grafton East","Short Rural","Planned",null,171,264,null,null,"N"]
["SUS631_00255","2014-07-03","08:30:00","BPT3B1 Fraser Dr","Urban","Planned",null,86,372.15116279069798,null,null,"N"]
["SUS631_00256","2014-07-03","08:30:00","BPT3B4 Terranora","Urban","Planned",null,111,380,null,null,"N"]
["SUS631_00257","2014-07-03","08:32:00","QDI3B1 West Rural","Short Rural","Planned",null,4,486.25,null,null,"N"]
["SUS631_00258","2014-07-03","08:47:00","WWL8B4 West Wyalong Sth West Town","Short Rural","Planned",null,3,135,null,null,"N"]
["SUS631_00259","2014-07-03","08:47:25","CRA22 Rural","Long Rural","Animal","Animal impact",1,105,7.7545428696978297E-4,7.3852789235217402E-6,"N"]
["SUS631_00260","2014-07-03","08:49:37","CRO5522 Tuena Redground","Long Rural","Asset failure","HV",1,231,1.70599943133352E-3,7.3852789235217402E-6,"N"]
["SUS631_00261","2014-07-03","08:50:00","ETH3B10 Ebsworth/Bridge","Urban","Planned",null,1,201,null,null,"N"]
["SUS631_00262","2014-07-03","08:52:00","WWA8B4 M8/M21 Spring Plains Rd","Short Rural","Planned",null,1,684,null,null,"N"]
["SUS631_00263","2014-07-03","08:52:50","GDI4B1 Waggamba East","Long Rural","Animal","Animal impact",1,141,1.04132432821657E-3,7.3852789235217402E-6,"N"]
["SUS631_00264","2014-07-03","08:54:00","WRA2W10 Kooloona/Gragin","Short Rural","Planned",null,4,260,null,null,"N"]
["SUS631_00265","2014-07-03","09:00:00","CRO5522 Tuena Redground","Long Rural","Planned",null,26,360,null,null,"N"]
["SUS631_00266","2014-07-03","09:00:00","HIL1111 Hillston 132 - Merriwagga","Long Rural","Planned",null,1,446,null,null,"N"]
["SUS631_00267","2014-07-03","09:00:00","MRE2M34 Southern Rural","Long Rural","Planned",null,3,35,null,null,"N"]
["SUS631_00268","2014-07-03","09:00:00","MUL3B1 Goonengerry","Short Rural","Planned",null,6,205,null,null,"N"]
["SUS631_00269","2014-07-03","09:00:00","PHS3B7 Fitzroy St - Rural Nth","Short Rural","Planned",null,9,306,null,null,"N"]
["SUS631_00270","2014-07-03","09:00:27","NARD2 Narooma","Short Rural","Planned",null,19,255.26315789473699,null,null,"N"]
["SUS631_00271","2014-07-03","09:00:53","NGN3B1 Glenreagh","Short Rural","Planned",null,48,215.916666666667,null,null,"N"]
["SUS631_00272","2014-07-03","09:01:00","NME8B1 Rural Sth","Long Rural","Planned",null,14,360,null,null,"N"]
["SUS631_00273","2014-07-03","09:01:00","HAY1306 Hay Town East","Short Rural","Planned",null,1,268,null,null,"N"]
["SUS631_00274","2014-07-03","09:01:03","UNI8/8 Tilbuster/Puddledock","Short Rural","Planned",null,68,358,null,null,"N"]
["SUS631_00275","2014-07-03","09:01:54","MUL3B1 Goonengerry","Short Rural","Planned",null,30,279.16666666666703,null,null,"N"]
["SUS631_00276","2014-07-03","09:02:00","WLS9/8 Oorundumby","Long Rural","Planned",null,10,246,null,null,"N"]
["SUS631_00277","2014-07-03","09:02:00","BOM8B4 Bombala","Short Rural","Planned",null,114,447.64912280701799,null,null,"N"]
["SUS631_00278","2014-07-03","09:02:00","WGM4983 Wingham/Hillside","Short Rural","Planned",null,1,68,null,null,"N"]
["SUS631_00279","2014-07-03","09:05:00","GLR3B5 Barrington","Long Rural","Planned",null,27,322.555555555556,null,null,"N"]
["SUS631_00280","2014-07-03","09:05:00","CNK3B4 Lansdowne","Short Rural","Planned",null,3,148,null,null,"N"]
["SUS631_00281","2014-07-03","09:08:00","BLH3B3 Bulahdelah Central/Wootton/Seal Rocks","Long Rural","Planned",null,10,259,null,null,"N"]
["SUS631_00282","2014-07-03","09:08:00","GLR3B2 Stratford","Short Rural","Planned",null,3,259,null,null,"N"]
["SUS631_00283","2014-07-03","09:08:00","JIN72 Kosciuszko Rd","Urban","Planned",null,88,332,null,null,"N"]
["SUS631_00284","2014-07-03","09:09:00","OBR3B2 Black Springs","Long Rural","Planned",null,21,7,null,null,"N"]
["SUS631_00285","2014-07-03","09:10:00","AVE3B1 Alstonville Nth","Short Rural","Planned",null,32,278.125,null,null,"N"]
["SUS631_00286","2014-07-03","09:10:00","KTE3B4 Kundle Kundle","Short Rural","Planned",null,2,47,null,null,"N"]
["SUS631_00287","2014-07-03","09:12:00","CWD33 Eugowra","Short Rural","Planned",null,9,352,null,null,"N"]
["SUS631_00288","2014-07-03","09:12:00","PYB12 Eugowra","Short Rural","Planned",null,3,356,null,null,"N"]
["SUS631_00289","2014-07-03","09:12:00","ALJ8B8 West Albury","Urban","Planned",null,106,339,null,null,"N"]
["SUS631_00290","2014-07-03","09:15:00","CBB72 Binnaway","Long Rural","Planned",null,1,150,null,null,"N"]
["SUS631_00291","2014-07-03","09:15:00","MRE2M34 Southern Rural","Long Rural","Planned",null,6,295,null,null,"N"]
["SUS631_00292","2014-07-03","09:15:00","FHL3B6 Gregadoo","Short Rural","Planned",null,42,383.47619047619003,null,null,"N"]
["SUS631_00293","2014-07-03","09:15:00","NHD3B4 Valla","Short Rural","Planned",null,251,308.68127490039802,null,null,"N"]
["SUS631_00294","2014-07-03","09:15:00","TEM4 Temora East","Short Rural","Planned",null,24,295,null,null,"N"]
["SUS631_00295","2014-07-03","09:15:17","SUT5323 Gundaroo","Long Rural","Animal","Animal impact",1,139,1.0265537703695201E-3,7.3852789235217402E-6,"N"]
["SUS631_00296","2014-07-03","09:20:06","GDI8B2 Boggabilla","Long Rural","Planned",null,207,481.87439613526601,null,null,"N"]
["SUS631_00297","2014-07-03","09:21:00","MRE2M17 Western Rural","Long Rural","Planned",null,1,142,null,null,"N"]
["SUS631_00298","2014-07-03","09:21:00","YOU3B1 Berthong","Long Rural","Planned",null,9,179,null,null,"N"]
["SUS631_00299","2014-07-03","09:21:00","APA3B3 Fdr No.3 Line 81","Short Rural","Planned",null,2,304,null,null,"N"]
["SUS631_00300","2014-07-03","09:24:00","TDL8B2 Tullamore/Tottenham","Long Rural","Planned",null,1,203,null,null,"N"]
["SUS631_00301","2014-07-03","09:26:00","PKT3B9 Parkes Town No.3","Short Rural","Planned",null,58,345,null,null,"N"]
["SUS631_00302","2014-07-03","09:30:00","CFL Braidwood","Long Rural","Planned",null,3,85,null,null,"N"]
["SUS631_00303","2014-07-03","09:31:00","GNF12 Rural No.1","Long Rural","Planned",null,1,195,null,null,"N"]
["SUS631_00304","2014-07-03","09:31:00","GFH3B4 Coolah St","Urban","Planned",null,11,351.54545454545502,null,null,"N"]
["SUS631_00305","2014-07-03","09:31:32","CNB42 Rural Nth","Long Rural","Planned",null,19,313,null,null,"N"]
["SUS631_00306","2014-07-03","09:32:00","CBR42 Margretvale","Long Rural","Planned",null,13,305,null,null,"N"]
["SUS631_00307","2014-07-03","09:32:25","CBY802 Bull Rd","Short Rural","Planned",null,58,332,null,null,"N"]
["SUS631_00308","2014-07-03","09:32:25","CBY804 Channel Nine Rd","Short Rural","Planned",null,48,327,null,null,"N"]
["SUS631_00309","2014-07-03","09:33:00","GID32 Rural East","Long Rural","Planned",null,8,116,null,null,"N"]
["SUS631_00310","2014-07-03","09:35:00","OBR3B2 Black Springs","Long Rural","Planned",null,41,148,null,null,"N"]
["SUS631_00311","2014-07-03","09:35:00","CMK4005 West","Short Rural","Planned",null,18,288.38888888888903,null,null,"N"]
["SUS631_00312","2014-07-03","09:40:00","KOO1714 Plumpton Rd","Short Rural","Planned",null,48,245,null,null,"N"]
["SUS631_00313","2014-07-03","09:41:00","MLA3B3 West/Nth Rural","Short Rural","Other",null,17,317.82352941176498,1.0101028985073699E-2,3.1781879094253799E-5,"N"]
["SUS631_00314","2014-07-03","09:44:00","BET2 Bethungra Lines 41 and 42","Short Rural","Planned",null,4,226.5,null,null,"N"]
["SUS631_00315","2014-07-03","09:45:00","BTA3B1 M12 Edgeroi","Long Rural","Asset failure","HV",1,37,2.7325532017030501E-4,7.3852789235217402E-6,"N"]
["SUS631_00316","2014-07-03","09:48:00","NSK3B3 Aldavilla","Short Rural","Planned",null,11,227,null,null,"N"]
["SUS631_00317","2014-07-03","09:48:20","CDN52 Tottenham","Long Rural","Other",null,10,109,8.0499540266386997E-3,7.3852789235217406E-5,"N"]
["SUS631_00318","2014-07-03","09:52:10","BOO1012 Rye Pk","Long Rural","Animal","Animal impact",7,457,2.3625507276346099E-2,5.16969524646522E-5,"N"]
["SUS631_00319","2014-07-03","09:54:11","MLA3B2 Halls Ck","Short Rural","Animal","Animal impact",1,79,1.4769226167329701E-4,1.8695222996619901E-6,"N"]
["SUS631_00320","2014-07-03","09:57:00","MOA24 Perricoota","Long Rural","Planned",null,1,28,null,null,"N"]
["SUS631_00321","2014-07-03","10:00:00","FFD3381 Nabiac","Long Rural","Planned",null,1,30,null,null,"N"]
["SUS631_00322","2014-07-03","10:00:00","LEE3B3 Leeton CBD","Urban","Planned",null,4,300,null,null,"N"]
["SUS631_00323","2014-07-03","10:02:31","CRA52 Howlong","Short Rural","Asset failure","LV",1,77,1.43953217073973E-4,1.8695222996619901E-6,"N"]
["SUS631_00324","2014-07-03","10:05:00","79P Griffith 132 - Goolgowi","Long Rural","Planned",null,29,200,null,null,"N"]
["SUS631_00325","2014-07-03","10:06:00","BBI1101 M11 Ghoolendaadi","Short Rural","Planned",null,11,194,null,null,"N"]
["SUS631_00326","2014-07-03","10:10:00","TDL8B2 Tullamore/Tottenham","Long Rural","Planned",null,2,322,null,null,"N"]
["SUS631_00327","2014-07-03","10:26:00","WGT8B7 M36 Carinda","Long Rural","Planned",null,3,57,null,null,"N"]
["SUS631_00328","2014-07-03","10:30:00","MRE2M34 Southern Rural","Long Rural","Planned",null,2,40,null,null,"N"]
["SUS631_00329","2014-07-03","10:31:38","MUL3B1 Goonengerry","Short Rural","Overloads",null,4,78,5.8329095749454099E-4,7.4780891986479603E-6,"N"]
["SUS631_00330","2014-07-03","10:32:00","HAT42 Hay 132 - Carrathool","Long Rural","Planned",null,1,175,null,null,"N"]
["SUS631_00331","2014-07-03","10:40:00","BYA7882 Comboyne","Short Rural","Planned",null,16,160,null,null,"N"]
["SUS631_00332","2014-07-03","10:40:00","MPTC2 Broulee","Short Rural","Planned",null,72,173,null,null,"N"]
["SUS631_00333","2014-07-03","10:40:30","HGE3B1 Grafton Rd","Short Rural","Asset failure","HV",11,112,2.3032514731835701E-3,2.0564745296281899E-5,"N"]
["SUS631_00334","2014-07-03","10:49:56","TUM12 Ournie","Short Rural","Animal","Animal impact",1,61,1.14040860279381E-4,1.8695222996619901E-6,"N"]
["SUS631_00335","2014-07-03","11:00:00","DNO142 Merrygoen","Long Rural","Planned",null,1,105,null,null,"N"]
["SUS631_00336","2014-07-03","11:00:00","TFD62 No.6","Long Rural","Planned",null,25,92,null,null,"N"]
["SUS631_00337","2014-07-03","11:04:16","MON1012 Monteagle Rural","Short Rural","Animal","Animal impact",2,60,2.2434267595943899E-4,3.7390445993239802E-6,"N"]
["SUS631_00338","2014-07-03","11:07:58","ORS3B6 Peisley St Sth","Short Rural","Asset failure","HV",1,282,5.2720528850468097E-4,1.8695222996619901E-6,"N"]
["SUS631_00339","2014-07-03","11:33:00","DOR3B4 Fernbrook/Deervale","Short Rural","Vegetation","Grow-in",8,141,2.1088211540187299E-3,1.49561783972959E-5,"N"]
["SUS631_00340","2014-07-03","11:40:28","NBI3B1 M14 Spring Ck","Short Rural","Asset failure","LV",1,79,1.4769226167329701E-4,1.8695222996619901E-6,"N"]
["SUS631_00341","2014-07-03","12:00:00","MRE2M34 Southern Rural","Long Rural","Planned",null,11,46,null,null,"N"]
["SUS631_00342","2014-07-03","12:04:07","MBL122 Stuart Town","Long Rural","Asset failure","HV",1,138,1.019168491446E-3,7.3852789235217402E-6,"N"]
["SUS631_00343","2014-07-03","12:23:00","CDN52 Tottenham","Long Rural","Other",null,12,48,4.2539206599485199E-3,8.8623347082260903E-5,"N"]
["SUS631_00344","2014-07-03","13:00:00","CBB72 Binnaway","Long Rural","Planned",null,1,75,null,null,"N"]
["SUS631_00345","2014-07-03","13:00:00","KTE3B6 Cundletown","Short Rural","Planned",null,1,65,null,null,"N"]
["SUS631_00346","2014-07-03","13:29:42","MRH3B3 No.1 Town Sth","Short Rural","Animal","Animal impact",6,156,1.74987287248362E-3,1.1217133797971899E-5,"N"]
["SUS631_00347","2014-07-03","14:50:28","CRO5532 Binda Bigga","Long Rural","Other",null,1,154,1.13733295422235E-3,7.3852789235217402E-6,"N"]
["SUS631_00348","2014-07-03","15:06:58","UQT8B1 The Rock","Long Rural","Asset failure","HV",12,341,3.0220561355050999E-2,8.8623347082260903E-5,"N"]
["SUS631_00349","2014-07-03","15:23:12","HIL1111 Hillston 132 - Merriwagga","Long Rural","Animal","Animal impact",42,78,2.4194173753457199E-2,3.1018171478791303E-4,"N"]
["SUS631_00350","2014-07-03","15:24:27","MCV3B2 Taylors Arm West","Short Rural","Asset failure","HV",1,142,2.6547216655200298E-4,1.8695222996619901E-6,"N"]
["SUS631_00351","2014-07-03","15:26:20","TDL8B2 Tullamore/Tottenham","Long Rural","Other",null,1,109,8.0499540266386999E-4,7.3852789235217402E-6,"N"]
["SUS631_00352","2014-07-03","15:34:51","MWN3B1 Uki","Long Rural","Asset failure","HV",2,127,1.8758608465745199E-3,1.4770557847043501E-5,"N"]
["SUS631_00353","2014-07-03","15:36:00","HEN3B3 Henty","Long Rural","Asset failure","HV",2,24,3.5449338832904399E-4,1.4770557847043501E-5,"N"]
["SUS631_00354","2014-07-03","15:38:47","HAT42 Hay 132 - Carrathool","Long Rural","Third party","Fire",1,123,9.0838930759317403E-4,7.3852789235217402E-6,"N"]
["SUS631_00355","2014-07-03","15:57:05","DTN25 Dareton","Short Rural","Vegetation","Blow-in/Fall-in",1,91,1.70126529269241E-4,1.8695222996619901E-6,"N"]
["SUS631_00356","2014-07-03","16:13:00","QSH5252 Dane St","Short Rural","Asset failure","HV",2,8,2.9912356794591801E-5,3.7390445993239802E-6,"N"]
["SUS631_00357","2014-07-03","16:21:35","DBS3B1 Rural Sth","Long Rural","Asset failure","HV",2,53,7.82839565893305E-4,1.4770557847043501E-5,"N"]
["SUS631_00358","2014-07-03","16:50:29","GLR3B5 Barrington","Long Rural","Asset failure","LV",1,96,7.0898677665808701E-4,7.3852789235217402E-6,"N"]
["SUS631_00359","2014-07-03","17:34:49","GNG5212 Jerrawa/Dalton","Long Rural","Asset failure","HV",1,200,1.47705578470435E-3,7.3852789235217402E-6,"N"]
["SUS631_00360","2014-07-03","17:47:54","NSK3B2 Frederickton","Short Rural","Asset failure","HV",1,68,1.27127516377015E-4,1.8695222996619901E-6,"N"]
["SUS631_00361","2014-07-03","18:03:42","MBM6212 Euroka Ave","Long Rural","Asset failure","HV",2,156,2.3042070241387799E-3,1.4770557847043501E-5,"N"]
["SUS631_00362","2014-07-03","18:40:00","AVE3B3 Wollongbar","Short Rural","Asset failure","HV",1,883,1.65078819060154E-3,1.8695222996619901E-6,"N"]
["SUS631_00363","2014-07-03","18:40:49","BON3B1 Peacock Ck","Short Rural","Asset failure","HV",4,120,8.9737070383775499E-4,7.4780891986479603E-6,"N"]
["SUS631_00364","2014-07-03","19:59:16","BTA3B2 M13 Millie","Short Rural","Asset failure","HV",22,192.136363636364,7.9024707606712308E-3,4.1129490592563798E-5,"N"]
["SUS631_00365","2014-07-03","20:20:54","STH3B10 Hillvue","Short Rural","Asset failure","LV",1,54,1.00954204181747E-4,1.8695222996619901E-6,"N"]
["SUS631_00366","2014-07-04","02:54:40","ATA3B1 Attunga","Short Rural","Asset failure","HV",32,266,1.5913373814722898E-2,5.9824713589183703E-5,"N"]
["SUS631_00367","2014-07-04","02:54:40","KTL3B4 Porcupine Lane","Short Rural","Asset failure","HV",67,204,2.55526307917801E-2,1.25257994077353E-4,"N"]
["SUS631_00368","2014-07-04","03:54:00","ATA3B1 Attunga","Short Rural","Asset failure","HV",5,16,1.4956178397295899E-4,9.3476114983099506E-6,"N"]
["SUS631_00369","2014-07-04","05:12:22","MLN3B1 Iluka/Harwood Sugar Mill","Short Rural","Asset failure","HV",14,109,2.8528910292841998E-3,2.61733121952679E-5,"N"]
["SUS631_00370","2014-07-04","06:07:26","GNF12 Rural No.1","Long Rural","Asset failure","LV",1,91,6.7206038204047905E-4,7.3852789235217402E-6,"N"]
["SUS631_00371","2014-07-04","07:42:57","DTN23 Wentworth","Long Rural","Asset failure","HV",1,196,1.44751466901026E-3,7.3852789235217402E-6,"N"]
["SUS631_00372","2014-07-04","08:00:37","JUN2 Junee Sth","Short Rural","Asset failure","LV",1,354,6.6181089408034501E-4,1.8695222996619901E-6,"N"]
["SUS631_00373","2014-07-04","08:16:43","ORW3B1 Manning Rd","Short Rural","Animal","Animal impact",1,39,7.2911369686817597E-5,1.8695222996619901E-6,"N"]
["SUS631_00374","2014-07-04","08:23:20","ANN8B1 No.1 72 Line","Long Rural","Asset failure","HV",1,65,4.8004313002891302E-4,7.3852789235217402E-6,"N"]
["SUS631_00375","2014-07-04","08:26:00","MLN3B3 Ashby/Tullymorgan","Short Rural","Asset failure","LV",1,124,2.31820765158087E-4,1.8695222996619901E-6,"N"]
["SUS631_00376","2014-07-04","08:30:00","UNI8/4 City Nth","Short Rural","Planned",null,42,247.21428571428601,null,null,"N"]
["SUS631_00377","2014-07-04","08:30:00","ALJ8B8 West Albury","Urban","Planned",null,1,60,null,null,"N"]
["SUS631_00378","2014-07-04","08:35:00","NVE12 Nevertire","Long Rural","Planned",null,1,92,null,null,"N"]
["SUS631_00379","2014-07-04","08:37:00","CUD3B1 Chinderah","Short Rural","Asset failure","LV",1,71,1.32736083276001E-4,1.8695222996619901E-6,"N"]
["SUS631_00380","2014-07-04","08:42:33","CBC72 Central","Long Rural","Asset failure","LV",1,210,1.5509085739395701E-3,7.3852789235217402E-6,"N"]
["SUS631_00381","2014-07-04","08:48:00","YLI2H13 Gunyerwarildi","Short Rural","Planned",null,19,189.68421052631601,null,null,"N"]
["SUS631_00382","2014-07-04","08:49:00","ALU52 Fallon St","Urban","Planned",null,13,241,null,null,"N"]
["SUS631_00383","2014-07-04","09:00:00","MOU12 Moulamein","Long Rural","Planned",null,1,162,null,null,"N"]
["SUS631_00384","2014-07-04","09:00:00","QDI3B4 East Rural","Long Rural","Planned",null,2,300,null,null,"N"]
["SUS631_00385","2014-07-04","09:00:00","BBS3B6 Linden Ave","Short Rural","Planned",null,38,342,null,null,"N"]
["SUS631_00386","2014-07-04","09:00:00","MCV3B5 Scotts Head","Short Rural","Planned",null,23,208.304347826087,null,null,"N"]
["SUS631_00387","2014-07-04","09:00:00","MUL3B1 Goonengerry","Short Rural","Planned",null,17,335,null,null,"N"]
["SUS631_00388","2014-07-04","09:00:00","MWN3B4 Bray Pk","Short Rural","Planned",null,49,283.67346938775501,null,null,"N"]
["SUS631_00389","2014-07-04","09:01:00","RAG3B6 Limekilns","Long Rural","Planned",null,78,193,null,null,"N"]
["SUS631_00390","2014-07-04","09:01:25","PSK3B1 Dondingalong","Short Rural","Planned",null,314,360.95222929936301,null,null,"N"]
["SUS631_00391","2014-07-04","09:04:00","CHI2538 Farrer Rd","Short Rural","Planned",null,9,336,null,null,"N"]
["SUS631_00392","2014-07-04","09:04:00","HAM3B6 North Wagga","Short Rural","Planned",null,47,337,null,null,"N"]
["SUS631_00393","2014-07-04","09:04:55","CRO5532 Binda Bigga","Long Rural","Planned",null,23,340,null,null,"N"]
["SUS631_00394","2014-07-04","09:05:00","DOR3B1 Nth Dorrigo","Long Rural","Planned",null,10,224,null,null,"N"]
["SUS631_00395","2014-07-04","09:05:00","MLN3B4 Townsend","Short Rural","Asset failure","LV",15,136,3.8138254913104601E-3,2.8042834494929901E-5,"N"]
["SUS631_00396","2014-07-04","09:05:45","HIL1401 Upper Lachlan","Long Rural","Animal","Animal impact",1,91,6.7206038204047905E-4,7.3852789235217402E-6,"N"]
["SUS631_00397","2014-07-04","09:08:00","CWD13 Cargo","Long Rural","Planned",null,31,312,null,null,"N"]
["SUS631_00398","2014-07-04","09:08:00","WWA8B8 M24 Tulladunna Ln/Helebah","Short Rural","Asset failure","HV",1,493,9.2167449373336098E-4,1.8695222996619901E-6,"N"]
["SUS631_00399","2014-07-04","09:10:00","BUN3B3 Gundaroo Rd","Long Rural","Planned",null,2,33,null,null,"N"]
["SUS631_00400","2014-07-04","09:10:00","TDL8B1 Bogan Gate","Long Rural","Planned",null,3,201,null,null,"N"]
["SUS631_00401","2014-07-04","09:10:00","PKT3B9 Parkes Town No.3","Short Rural","Planned",null,1,158,null,null,"N"]
["SUS631_00402","2014-07-04","09:10:00","WGA3B2 Double Crossing","Short Rural","Planned",null,33,325,null,null,"N"]
["SUS631_00403","2014-07-04","09:10:00","DBS3B2 Boundary Rd","Urban","Planned",null,158,405,null,null,"N"]
["SUS631_00404","2014-07-04","09:11:14","GDI8B1 Boobera/Tulloona","Long Rural","Planned",null,2,369,null,null,"N"]
["SUS631_00405","2014-07-04","09:11:14","MGI2U23 Boomi Rd","Long Rural","Planned",null,9,376,null,null,"N"]
["SUS631_00406","2014-07-04","09:16:32","BTS8B5 Kings Plains","Long Rural","Planned",null,31,395.03225806451599,null,null,"N"]
["SUS631_00407","2014-07-04","09:23:00","CFN3B22 Korora Moonee","Short Rural","Planned",null,9,297,null,null,"N"]
["SUS631_00408","2014-07-04","09:26:00","ALU82 Nth Albury","Urban","Planned",null,3,217,null,null,"N"]
["SUS631_00409","2014-07-04","09:30:00","GDI8B2 Boggabilla","Long Rural","Planned",null,9,149,null,null,"N"]
["SUS631_00410","2014-07-04","09:30:00","RBV Euston","Long Rural","Planned",null,5,123,null,null,"N"]
["SUS631_00411","2014-07-04","09:31:25","BET2 Bethungra Lines 41 and 42","Short Rural","Planned",null,7,204,null,null,"N"]
["SUS631_00412","2014-07-04","09:32:44","HAT22 Hay 132 - Hay Town (Maude)","Long Rural","Animal","Animal impact",40,65,1.9201725201156501E-2,2.9541115694087E-4,"N"]
["SUS631_00413","2014-07-04","09:33:00","KYG3B4 Nth Kyogle No.2","Short Rural","Planned",null,1,252,null,null,"N"]
["SUS631_00414","2014-07-04","09:33:00","ETH3B3 Carthage/Roderick","Urban","Planned",null,155,190,null,null,"N"]
["SUS631_00415","2014-07-04","09:34:00","CCN3B3 Holbrook","Short Rural","Other",null,2,129,4.8233675331279402E-4,3.7390445993239802E-6,"N"]
["SUS631_00416","2014-07-04","09:35:00","TEM2 No.2 Lines 21/22/23/24/25","Long Rural","Planned",null,1,190,null,null,"N"]
["SUS631_00417","2014-07-04","09:37:29","ANN8B1 No.1 72 Line","Long Rural","Planned",null,14,261,null,null,"N"]
["SUS631_00418","2014-07-04","09:40:00","WJL3B3 West Plain","Long Rural","Planned",null,1,96,null,null,"N"]
["SUS631_00419","2014-07-04","09:43:00","GID12 Gilgandra Town No.1","Urban","Planned",null,1,76,null,null,"N"]
["SUS631_00420","2014-07-04","09:46:51","FBS42 Rural Sth","Long Rural","Asset failure","HV",62,123.935483870968,5.67484832483411E-2,4.5788729325834797E-4,"N"]
["SUS631_00421","2014-07-04","09:47:00","MBM6212 Euroka Ave","Long Rural","Planned",null,1,96,null,null,"N"]
["SUS631_00422","2014-07-04","09:55:00","FBS42 Rural Sth","Long Rural","Planned",null,2,165,null,null,"N"]
["SUS631_00423","2014-07-04","09:55:00","LOC3786 Urana","Long Rural","Planned",null,1,135,null,null,"N"]
["SUS631_00424","2014-07-04","10:00:00","COO22 Polo Flat","Short Rural","Planned",null,2,270,null,null,"N"]
["SUS631_00425","2014-07-04","10:02:00","PHS3B7 Fitzroy St - Rural Nth","Short Rural","Planned",null,3,187,null,null,"N"]
["SUS631_00426","2014-07-04","10:03:00","NVE22 Gin Gin","Short Rural","Planned",null,5,215.8,null,null,"N"]
["SUS631_00427","2014-07-04","10:06:08","DNO142 Merrygoen","Long Rural","Asset failure","HV",1,109,8.0499540266386999E-4,7.3852789235217402E-6,"N"]
["SUS631_00428","2014-07-04","10:14:18","MDI3B1 Ardglen","Long Rural","Animal","Animal impact",3,191,4.2317648231779597E-3,2.2155836770565199E-5,"N"]
["SUS631_00429","2014-07-04","10:22:17","GDH6301 M63 Curlewis","Short Rural","Asset failure","HV",21,165,6.4778947683288004E-3,3.9259968292901797E-5,"N"]
["SUS631_00430","2014-07-04","10:24:07","GLS5/4 Ben Venue","Short Rural","Asset failure","HV",24,127,5.6983039693697503E-3,4.4868535191887801E-5,"N"]
["SUS631_00431","2014-07-04","10:26:00","GNF42 Rural No.2","Long Rural","Planned",null,19,147,null,null,"N"]
["SUS631_00432","2014-07-04","10:29:44","DBW3B5 Rural West","Short Rural","Asset failure","HV",1,63,1.17779904878705E-4,1.8695222996619901E-6,"N"]
["SUS631_00433","2014-07-04","10:39:00","GDM5422 Michelago","Long Rural","Weather",null,1,17,1.2554974169987001E-4,7.3852789235217402E-6,"N"]
["SUS631_00434","2014-07-04","10:40:00","MLO52 West","Short Rural","Planned",null,41,85,null,null,"N"]
["SUS631_00435","2014-07-04","10:54:00","BRI Braidwood","Long Rural","Other",null,1,81,5.9820759280526095E-4,7.3852789235217402E-6,"N"]
["SUS631_00436","2014-07-04","10:59:00","MBM6212 Euroka Ave","Long Rural","Planned",null,14,75,null,null,"N"]
["SUS631_00437","2014-07-04","11:00:00","COW92 Broula","Long Rural","Planned",null,1,69,null,null,"N"]
["SUS631_00438","2014-07-04","11:00:00","NVE12 Nevertire","Long Rural","Planned",null,2,79,null,null,"N"]
["SUS631_00439","2014-07-04","11:09:00","CDN72 Kiacatoo","Long Rural","Other",null,5,86,3.17566993711435E-3,3.6926394617608703E-5,"N"]
["SUS631_00440","2014-07-04","11:34:00","BTS8B8 Delungra","Long Rural","Asset failure","HV",3,10,2.2155836770565199E-4,2.2155836770565199E-5,"N"]
["SUS631_00441","2014-07-04","11:42:00","DUN3B4 Mt Nardi","Short Rural","Asset failure","LV",8,82,1.2264066285782699E-3,1.49561783972959E-5,"N"]
["SUS631_00442","2014-07-04","12:14:19","ELI3B8 Bexhill","Short Rural","Asset failure","HV",1,170,3.1781879094253801E-4,1.8695222996619901E-6,"N"]
["SUS631_00443","2014-07-04","12:20:00","JIN62 Kurrajong St","Urban","Other",null,16,55,4.5966444495518302E-3,8.3575353628214993E-5,"N"]
["SUS631_00444","2014-07-04","12:26:31","STH3B10 Hillvue","Short Rural","Asset failure","LV",1,128,2.39298854356735E-4,1.8695222996619901E-6,"N"]
["SUS631_00445","2014-07-04","12:31:49","DPT934 Darlington Point Town","Short Rural","Animal","Animal impact",67,92,1.15237354551165E-2,1.25257994077353E-4,"N"]
["SUS631_00446","2014-07-04","13:15:00","MLA3B1 Rushes Ck","Short Rural","Asset failure","LV",1,95,1.7760461846788901E-4,1.8695222996619901E-6,"N"]
["SUS631_00447","2014-07-04","14:07:00","RAG3B6 Limekilns","Long Rural","Planned",null,181,4,null,null,"N"]
["SUS631_00448","2014-07-04","14:11:00","BRO3B2 Mumbulla","Short Rural","Vegetation","Grow-in",19,131,4.6532410038586901E-3,3.5520923693577801E-5,"N"]
["SUS631_00449","2014-07-04","15:11:04","DEN62 Nth Rural","Long Rural","Asset failure","HV",1,49,3.6187866725256499E-4,7.3852789235217402E-6,"N"]
["SUS631_00450","2014-07-04","15:49:00","MGI2U24 Mungindi Town","Short Rural","Asset failure","LV",35,211,1.38064221830038E-2,6.54332804881697E-5,"N"]
["SUS631_00451","2014-07-04","16:28:29","BAT32 Rural Sth/Kunama","Short Rural","Asset failure","HV",1,293,5.4777003380096295E-4,1.8695222996619901E-6,"N"]
["SUS631_00452","2014-07-04","17:20:14","MOA24 Perricoota","Long Rural","Asset failure","HV",1,159,1.1742593488399599E-3,7.3852789235217402E-6,"N"]
["SUS631_00453","2014-07-04","17:53:21","MGE3B1 Mallanganee/Casino Rd","Short Rural","Asset failure","HV",1,127,2.3742933205707299E-4,1.8695222996619901E-6,"N"]
["SUS631_00454","2014-07-04","19:51:58","WGN42 Wellington Town No.2","Short Rural","Asset failure","LV",1,113,2.1125601986180499E-4,1.8695222996619901E-6,"N"]
["SUS631_00455","2014-07-04","20:06:13","MOU12 Moulamein","Long Rural","Asset failure","LV",1,250,1.8463197308804401E-3,7.3852789235217402E-6,"N"]
["SUS631_00456","2014-07-04","20:26:18","HGE3B1 Grafton Rd","Short Rural","Animal","Animal impact",13,279,6.7807573808740399E-3,2.4303789895605898E-5,"N"]
["SUS631_00457","2014-07-04","21:17:38","NME8B1 Rural Sth","Long Rural","Animal","Animal impact",4,37,1.09302128068122E-3,2.9541115694087002E-5,"N"]
["SUS631_00458","2014-07-04","22:01:57","COW92 Broula","Long Rural","Weather",null,2,43,6.3513398742287E-4,1.4770557847043501E-5,"N"]
["SUS631_00459","2014-07-05","01:02:40","WWA8B8 M24 Tulladunna Ln/Helebah","Short Rural","Animal","Animal impact",10,91,1.70126529269241E-3,1.8695222996619901E-5,"N"]
["SUS631_00460","2014-07-05","05:46:00","BNG8B1 Alcheringa Drive","Long Rural","Animal","Animal impact",561,3,1.24294244282871E-2,4.1431414760956997E-3,"N"]
["SUS631_00461","2014-07-05","05:46:00","BNG8B2 Sturt Hwy","Short Rural","Animal","Animal impact",805,3,4.5148963536837099E-3,1.5049654512278999E-3,"N"]
["SUS631_00462","2014-07-05","05:46:00","BNG8B4 Silver City Hwy","Short Rural","Animal","Animal impact",271,3,1.5199216296252001E-3,5.0664054320839899E-4,"N"]
["SUS631_00463","2014-07-05","05:50:00","EWE3B8 Federal","Short Rural","Animal","Animal impact",2,103,3.8512159373036998E-4,3.7390445993239802E-6,"N"]
["SUS631_00464","2014-07-05","06:56:28","MDA52 Monument","Short Rural","Animal","Animal impact",3,116,6.5059376028237296E-4,5.60856689898597E-6,"N"]
["SUS631_00465","2014-07-05","07:35:38","NYN62 Nyngan Sth","Short Rural","Animal","Animal impact",10,63,1.1777990487870499E-3,1.8695222996619901E-5,"N"]
["SUS631_00466","2014-07-05","07:36:31","JIN82 Waste Point","Short Rural","Other",null,2,305,1.14040860279381E-3,3.7390445993239802E-6,"N"]
["SUS631_00467","2014-07-05","08:09:20","MRE2M17 Western Rural","Long Rural","Animal","Animal impact",1,156,1.15210351206939E-3,7.3852789235217402E-6,"N"]
["SUS631_00468","2014-07-05","09:07:54","RBV Euston","Long Rural","Third party","Vehicle impact",1,133,9.8224209682839202E-4,7.3852789235217402E-6,"N"]
["SUS631_00469","2014-07-05","09:11:00","HAT22 Hay 132 - Hay Town (Maude)","Long Rural","Planned",null,1,195,null,null,"N"]
["SUS631_00470","2014-07-05","09:13:00","ORS3B4 Anson St Nth","Urban","Planned",null,93,463.27956989247298,null,null,"N"]
["SUS631_00471","2014-07-05","10:38:20","NME8B3 Trangie Rural","Long Rural","Animal","Animal impact",1,2788,2.0590157638778601E-2,7.3852789235217402E-6,"N"]
["SUS631_00472","2014-07-05","12:22:44","NGN3B3 Nana Glen","Short Rural","Asset failure","LV",2,108,4.0381681672699E-4,3.7390445993239802E-6,"N"]
["SUS631_00473","2014-07-05","13:37:04","CTM3B1 Coota Nth","Short Rural","Third party","Vehicle impact",159,74,2.1996799377822999E-2,2.9725404564625598E-4,"N"]
["SUS631_00474","2014-07-05","15:08:00","KTL3B2 Moonbi","Short Rural","Third party","Vehicle impact",1,99,1.8508270766653701E-4,1.8695222996619901E-6,"N"]
["SUS631_00475","2014-07-05","16:54:35","LIU3B6 Cynthia Wilson","Urban","Asset failure","LV",97,190,9.6268360460500205E-2,5.06675581371054E-4,"N"]
["SUS631_00476","2014-07-05","17:14:54","DEN62 Nth Rural","Long Rural","Asset failure","HV",14,255.92857142857099,2.6461454382978401E-2,1.0339390492930399E-4,"N"]
["SUS631_00477","2014-07-05","19:05:40","DEN62 Nth Rural","Long Rural","Asset failure","HV",97,7,5.0146043890712602E-3,7.1637205558160904E-4,"N"]
["SUS631_00478","2014-07-05","20:08:30","TUN3B5 Banksia Gardens","Short Rural","Asset failure","HV",1,892,1.6676138912984999E-3,1.8695222996619901E-6,"N"]
["SUS631_00479","2014-07-05","21:37:00","ESH3B1 Kiah/Nethercote","Short Rural","Third party","Fire",6,71,7.9641649965600796E-4,1.1217133797971899E-5,"N"]
["SUS631_00480","2014-07-05","22:25:09","PKH42 Rural West","Short Rural","Animal","Animal impact",10,89,1.6638748466991701E-3,1.8695222996619901E-5,"N"]
["SUS631_00481","2014-07-06","07:14:24","SUT5323 Gundaroo","Long Rural","Asset failure","HV",1,69,5.0958424572299999E-4,7.3852789235217402E-6,"N"]
["SUS631_00482","2014-07-06","07:49:25","WWA8B8 M24 Tulladunna Ln/Helebah","Short Rural","Asset failure","HV",22,116,4.7710209087374004E-3,4.1129490592563798E-5,"N"]
["SUS631_00483","2014-07-06","08:33:45","GDH6101 M61 Kelvin","Long Rural","Asset failure","HV",1,101,7.4591317127569595E-4,7.3852789235217402E-6,"N"]
["SUS631_00484","2014-07-06","08:45:00","COW52 Cowra Town Nth","Short Rural","Planned",null,13,278,null,null,"N"]
["SUS631_00485","2014-07-06","08:47:21","GLR3B7 Gangat/Coolongolook","Long Rural","Asset failure","LV",1,315,2.3263628609093501E-3,7.3852789235217402E-6,"N"]
["SUS631_00486","2014-07-06","08:51:10","GLR3B7 Gangat/Coolongolook","Long Rural","Asset failure","LV",128,72,6.8062730559176401E-2,9.4531570221078297E-4,"N"]
["SUS631_00487","2014-07-06","09:00:00","GFH3B8 Canal St","Urban","Planned",null,39,180,null,null,"N"]
["SUS631_00488","2014-07-06","09:00:20","GDG8B1 Brungle","Short Rural","Asset failure","HV",2,64,2.39298854356735E-4,3.7390445993239802E-6,"N"]
["SUS631_00489","2014-07-06","09:03:00","PKT3B9 Parkes Town No.3","Short Rural","Planned",null,45,329.11111111111097,null,null,"N"]
["SUS631_00490","2014-07-06","09:16:29","GDG8B1 Brungle","Short Rural","Asset failure","LV",1,193,3.6081780383476398E-4,1.8695222996619901E-6,"N"]
["SUS631_00491","2014-07-06","09:22:19","LOC3786 Urana","Long Rural","Animal","Animal impact",6,123,5.4503358455590496E-3,4.4311673541130499E-5,"N"]
["SUS631_00492","2014-07-06","09:31:18","EWE3B7 Brunswick No.2","Short Rural","Asset failure","LV",136,115,2.92393287667135E-2,2.5425503275403098E-4,"N"]
["SUS631_00493","2014-07-06","10:40:00","GDG8B8 Burra/ Coolac","Long Rural","Asset failure","HV",1,11,8.1238068158739202E-5,7.3852789235217402E-6,"N"]
["SUS631_00494","2014-07-06","10:42:44","BNK24792 Old Bar No.1","Short Rural","Asset failure","HV",4,141,1.05441057700936E-3,7.4780891986479603E-6,"N"]
["SUS631_00495","2014-07-06","17:32:00","SFP3B1 Byron No.4","Short Rural","Asset failure","LV",9,62,1.0431934432113901E-3,1.68257006969579E-5,"N"]
["SUS631_00496","2014-07-06","17:37:00","TSH3B1 Terranora Heights","Short Rural","Asset failure","LV",15,133,3.72969698782567E-3,2.8042834494929901E-5,"N"]
["SUS631_00497","2014-07-06","17:56:58","WHI719 Whitton Sth","Short Rural","Third party","Vehicle impact",1,968,1.8096975860728099E-3,1.8695222996619901E-6,"N"]
["SUS631_00498","2014-07-06","18:25:00","NVE42 Warren Rural Nth","Long Rural","Asset failure","HV",5,70,2.58484762323261E-3,3.6926394617608703E-5,"N"]
["SUS631_00499","2014-07-06","18:44:00","WBN3B3 Coraki","Short Rural","Asset failure","HV",1,82,1.5330082857228301E-4,1.8695222996619901E-6,"N"]
["SUS631_00500","2014-07-06","18:45:12","BJN8B4 M31 Cryon","Short Rural","Animal","Animal impact",33,406,2.50478597708713E-2,6.1694235888845697E-5,"N"]
["SUS631_00501","2014-07-06","18:47:54","DBS3B1 Rural Sth","Long Rural","Overloads",null,111,9,7.3778936445982202E-3,8.1976596051091405E-4,"N"]
["SUS631_00502","2014-07-06","19:07:00","FBS42 Rural Sth","Long Rural","Asset failure","LV",14,53,5.4798769612531299E-3,1.0339390492930399E-4,"N"]
["SUS631_00503","2014-07-06","21:27:42","CHD3B2 Beranghi","Short Rural","Other",null,7,100,1.30866560976339E-3,1.3086656097633901E-5,"N"]
["SUS631_00504","2014-07-06","21:27:42","PSK3B2 Kundabung","Short Rural","Other",null,675,100,0.12619275522718401,1.2619275522718399E-3,"N"]
["SUS631_00505","2014-07-07","05:13:00","CDN72 Kiacatoo","Long Rural","Asset failure","LV",1,139,1.0265537703695201E-3,7.3852789235217402E-6,"N"]
["SUS631_00506","2014-07-07","06:46:12","MTG4B1 Tibooburra Backbone Line","Long Rural","Overloads",null,16,288,3.4031365279588201E-2,1.1816446277634801E-4,"N"]
["SUS631_00507","2014-07-07","07:18:42","YOU3B6 Murringo","Short Rural","Other",null,2,62,2.31820765158087E-4,3.7390445993239802E-6,"N"]
["SUS631_00508","2014-07-07","07:49:21","PAM3B1 Bald Hills No.3","Long Rural","Animal","Animal impact",17,113,1.4187120812085299E-2,1.2554974169987001E-4,"N"]
["SUS631_00509","2014-07-07","07:56:29","DTN23 Wentworth","Long Rural","Animal","Animal impact",8,99,5.8491409074292204E-3,5.9082231388173902E-5,"N"]
["SUS631_00510","2014-07-07","08:00:00","MWN3B8 Industrial","Short Rural","Vegetation","Grow-in",29,192,1.0409500164518E-2,5.4216146690197699E-5,"N"]
["SUS631_00511","2014-07-07","08:10:45","CFL Braidwood","Long Rural","Animal","Animal impact",1,48,3.5449338832904399E-4,7.3852789235217402E-6,"N"]
["SUS631_00512","2014-07-07","08:22:24","MUL3B2 Main Arm","Short Rural","Asset failure","LV",90,71.3888888888889,1.20116807753283E-2,1.6825700696957899E-4,"N"]
["SUS631_00513","2014-07-07","08:30:00","CSO3B3 Leeville","Short Rural","Planned",null,3,180,null,null,"N"]
["SUS631_00514","2014-07-07","08:31:00","WGM4981 Mt George/Elands","Long Rural","Planned",null,1,41,null,null,"N"]
["SUS631_00515","2014-07-07","08:33:00","GDH6501 M65 Wandobah","Short Rural","Planned",null,4,285,null,null,"N"]
["SUS631_00516","2014-07-07","08:44:00","WLS9/8 Oorundumby","Long Rural","Planned",null,13,311.769230769231,null,null,"N"]
["SUS631_00517","2014-07-07","08:48:00","TMT62 Gocup","Long Rural","Planned",null,19,226.68421052631601,null,null,"N"]
["SUS631_00518","2014-07-07","08:56:45","WWA8B1 M6 Culgoora","Short Rural","Asset failure","HV",1,165,3.0847117944422803E-4,1.8695222996619901E-6,"N"]
["SUS631_00519","2014-07-07","08:58:00","NYN52 Nyngan West","Long Rural","Planned",null,4,152,null,null,"N"]
["SUS631_00520","2014-07-07","09:00:00","BTS8B4 Wallangra/Bukkulla","Long Rural","Planned",null,1,209,null,null,"N"]
["SUS631_00521","2014-07-07","09:00:00","MUD72 Eurunderee","Short Rural","Planned",null,3,342,null,null,"N"]
["SUS631_00522","2014-07-07","09:00:00","RKF3B5 King Creek","Short Rural","Planned",null,58,96,null,null,"N"]
["SUS631_00523","2014-07-07","09:00:54","UNI8/8 Tilbuster/Puddledock","Short Rural","Planned",null,23,291,null,null,"N"]
["SUS631_00524","2014-07-07","09:01:00","OXY3B9 Forest Hills","Short Rural","Planned",null,3,239.666666666667,null,null,"N"]
["SUS631_00525","2014-07-07","09:01:00","WGM4982 Bungay/The Bight","Short Rural","Planned",null,45,257,null,null,"N"]
["SUS631_00526","2014-07-07","09:01:49","KEW3B2 Lorne","Short Rural","Vegetation","Grow-in",79,240,3.54461428015913E-2,1.4769226167329701E-4,"N"]
["SUS631_00527","2014-07-07","09:03:00","BKE4B1 M81 Enngonia","Long Rural","Planned",null,1,50,null,null,"N"]
["SUS631_00528","2014-07-07","09:03:00","AVE3B1 Alstonville Nth","Short Rural","Planned",null,2,165,null,null,"N"]
["SUS631_00529","2014-07-07","09:04:00","BWA3B1 Abbotts Falls/Krambach","Long Rural","Planned",null,12,312,null,null,"N"]
["SUS631_00530","2014-07-07","09:05:00","MSW3B3 Esplanade","Urban","Planned",null,92,77,null,null,"N"]
["SUS631_00531","2014-07-07","09:08:22","GID22 Rural Nth/Sth/West","Long Rural","Planned",null,8,97,null,null,"N"]
["SUS631_00532","2014-07-07","09:10:00","WWA8B2 M7 Yarrie Lake","Short Rural","Planned",null,2,378,null,null,"N"]
["SUS631_00533","2014-07-07","09:15:00","YOU3B6 Murringo","Short Rural","Planned",null,129,290.83720930232602,null,null,"N"]
["SUS631_00534","2014-07-07","09:16:00","MRH3B3 No.1 Town Sth","Short Rural","Planned",null,56,122,null,null,"N"]
["SUS631_00535","2014-07-07","09:22:00","BBI0101 M1 Maules Ck","Long Rural","Planned",null,1,332,null,null,"N"]
["SUS631_00536","2014-07-07","09:22:00","DUG3B1 Clarencetown","Short Rural","Planned",null,26,327,null,null,"N"]
["SUS631_00537","2014-07-07","09:30:00","GNF42 Rural No.2","Long Rural","Planned",null,13,212,null,null,"N"]
["SUS631_00538","2014-07-07","09:30:00","TUM12 Ournie","Short Rural","Planned",null,3,150,null,null,"N"]
["SUS631_00539","2014-07-07","09:33:00","HEN3B1 Yerong Ck","Short Rural","Planned",null,11,280,null,null,"N"]
["SUS631_00540","2014-07-07","09:34:03","GDI8B3 Talwood","Long Rural","Asset failure","HV",3,287,6.35872515315222E-3,2.2155836770565199E-5,"N"]
["SUS631_00541","2014-07-07","09:34:15","YAN2319 Euroley Rd","Short Rural","Planned",null,5,178,null,null,"N"]
["SUS631_00542","2014-07-07","09:38:00","BKE4B1 M81 Enngonia","Long Rural","Planned",null,1,208,null,null,"N"]
["SUS631_00543","2014-07-07","09:38:00","WGT8B8 M54 Brewarrina","Long Rural","Planned",null,1,243,null,null,"N"]
["SUS631_00544","2014-07-07","09:40:00","HIL1401 Upper Lachlan","Long Rural","Planned",null,4,240,null,null,"N"]
["SUS631_00545","2014-07-07","09:40:00","JER42 Hartwood","Long Rural","Planned",null,12,213,null,null,"N"]
["SUS631_00546","2014-07-07","09:43:00","WHI719 Whitton Sth","Short Rural","Asset failure","HV",1,57,1.06562771080733E-4,1.8695222996619901E-6,"N"]
["SUS631_00547","2014-07-07","09:45:00","BOM8B2 Nimmitabel","Long Rural","Planned",null,10,235,null,null,"N"]
["SUS631_00548","2014-07-07","09:48:00","CNB42 Rural Nth","Long Rural","Planned",null,2,51,null,null,"N"]
["SUS631_00549","2014-07-07","10:00:00","CBB72 Binnaway","Long Rural","Planned",null,1,106,null,null,"N"]
["SUS631_00550","2014-07-07","10:01:00","MDA52 Monument","Short Rural","Planned",null,1,204,null,null,"N"]
["SUS631_00551","2014-07-07","10:09:00","MOA24 Perricoota","Long Rural","Planned",null,2,161,null,null,"N"]
["SUS631_00552","2014-07-07","10:14:02","MRE2M17 Western Rural","Long Rural","Asset failure","HV",1,85,6.2774870849934797E-4,7.3852789235217402E-6,"N"]
["SUS631_00553","2014-07-07","10:21:00","COO22 Polo Flat","Short Rural","Planned",null,11,264,null,null,"N"]
["SUS631_00554","2014-07-07","10:32:53","NGN3B3 Nana Glen","Short Rural","Asset failure","HV",8,178,2.66219975471867E-3,1.49561783972959E-5,"N"]
["SUS631_00555","2014-07-07","10:32:53","NGN3B3 Nana Glen","Short Rural","Asset failure","HV",156,52,1.51655648948581E-2,2.9164547874727098E-4,"N"]
["SUS631_00556","2014-07-07","10:41:00","KOR23 Speewa","Short Rural","Planned",null,1,108,null,null,"N"]
["SUS631_00557","2014-07-07","10:46:00","FBS82 Forbes Town No.1","Short Rural","Planned",null,38,109,null,null,"N"]
["SUS631_00558","2014-07-07","10:47:00","PKT3B9 Parkes Town No.3","Short Rural","Planned",null,22,195,null,null,"N"]
["SUS631_00559","2014-07-07","10:55:00","NME8B1 Rural Sth","Long Rural","Planned",null,6,107,null,null,"N"]
["SUS631_00560","2014-07-07","10:56:26","HAM3B2 Day St/Morgan St","Urban","Planned",null,114,178.385964912281,null,null,"N"]
["SUS631_00561","2014-07-07","10:56:26","HAM3B7 Tarcutta St","Urban","Planned",null,40,187.45,null,null,"N"]
["SUS631_00562","2014-07-07","11:10:00","WWA8B1 M6 Culgoora","Short Rural","Animal","Animal impact",9,31,5.2159672160569505E-4,1.68257006969579E-5,"N"]
["SUS631_00563","2014-07-07","11:29:03","STH3B9 Winton","Short Rural","Third party","Vehicle impact",3,167,9.3663067213065705E-4,5.60856689898597E-6,"N"]
["SUS631_00564","2014-07-07","11:42:00","WWA8B1 M6 Culgoora","Short Rural","Animal","Animal impact",8,24,3.5894828153510197E-4,1.49561783972959E-5,"N"]
["SUS631_00565","2014-07-07","12:07:00","WGM4981 Mt George/Elands","Long Rural","Planned",null,1,28,null,null,"N"]
["SUS631_00566","2014-07-07","12:13:00","MGY2223 Borambula","Short Rural","Asset failure","LV",1,353,6.59941371780683E-4,1.8695222996619901E-6,"N"]
["SUS631_00567","2014-07-07","12:13:52","79P Griffith 132 - Goolgowi","Long Rural","Asset failure","LV",1,91,6.7206038204047905E-4,7.3852789235217402E-6,"N"]
["SUS631_00568","2014-07-07","12:38:28","MCV3B9 Bowraville Rural","Long Rural","Asset failure","LV",7,48,2.4814537183033098E-3,5.16969524646522E-5,"N"]
["SUS631_00569","2014-07-07","12:42:29","BAT32 Rural Sth/Kunama","Short Rural","Asset failure","HV",18,237,7.9753821303580504E-3,3.36514013939158E-5,"N"]
["SUS631_00570","2014-07-07","13:00:00","MRH3B4 No.2 Town Nth","Short Rural","Planned",null,51,80,null,null,"N"]
["SUS631_00571","2014-07-07","13:01:00","MRE2M38 Tareelaroi","Long Rural","Planned",null,1,60,null,null,"N"]
["SUS631_00572","2014-07-07","13:09:00","WTE3686 Spence St","Urban","Other",null,69,32,1.1533398800693701E-2,3.6041871252167701E-4,"N"]
["SUS631_00573","2014-07-07","13:26:00","GID22 Rural Nth/Sth/West","Long Rural","Planned",null,5,54,null,null,"N"]
["SUS631_00574","2014-07-07","13:44:20","MLN3B5 Woodford Dale-Leigh","Short Rural","Asset failure","HV",46,83.826086956521706,7.2088779874966303E-3,8.5998025784451599E-5,"N"]
["SUS631_00575","2014-07-07","14:19:52","ORW3B8 Northern Distributor Sth","Short Rural","Asset failure","HV",59,81,8.9344470700846498E-3,1.10301815680057E-4,"N"]
["SUS631_00576","2014-07-07","14:31:00","CFL Braidwood","Long Rural","Other",null,3,51,1.1299476752988299E-3,2.2155836770565199E-5,"N"]
["SUS631_00577","2014-07-07","14:41:29","FBS62 Rural West","Short Rural","Asset failure","HV",1,59,1.10301815680057E-4,1.8695222996619901E-6,"N"]
["SUS631_00578","2014-07-07","14:58:00","MUD62 Mudgee East","Long Rural","Asset failure","LV",1,337,2.4888389972268299E-3,7.3852789235217402E-6,"N"]
["SUS631_00579","2014-07-07","15:01:29","HAT22 Hay 132 - Hay Town (Maude)","Long Rural","Animal","Animal impact",40,51.95,1.5346609603078201E-2,2.9541115694087E-4,"N"]
["SUS631_00580","2014-07-07","15:36:41","BEE1341 Yoogali","Short Rural","Asset failure","LV",29,101,5.4758308157099702E-3,5.4216146690197699E-5,"N"]
["SUS631_00581","2014-07-07","16:58:36","BOO1012 Rye Pk","Long Rural","Animal","Animal impact",3,144,3.1904404949613901E-3,2.2155836770565199E-5,"N"]
["SUS631_00582","2014-07-07","17:07:00","BCW Blue Cow Pump Stn","Short Rural","Weather",null,6,22,2.4677694355538301E-4,1.1217133797971899E-5,"N"]
["SUS631_00583","2014-07-07","17:24:28","7L3 Kamarah","Long Rural","Asset failure","HV",4,76,2.2451247927506102E-3,2.9541115694087002E-5,"N"]
["SUS631_00584","2014-07-07","17:25:00","MUD32 Cudgegong","Short Rural","Asset failure","HV",133,87,2.16322425293889E-2,2.4864646585504501E-4,"N"]
["SUS631_00585","2014-07-07","17:26:32","MLA3B2 Halls Ck","Short Rural","Animal","Animal impact",14,127,3.3240106487990198E-3,2.61733121952679E-5,"N"]
["SUS631_00586","2014-07-07","17:39:20","BTS8B8 Delungra","Long Rural","Asset failure","HV",37,92.243243243243199,2.5205956965979701E-2,2.7325532017030501E-4,"N"]
["SUS631_00587","2014-07-07","18:15:00","LRN3B5 Kew Rd","Short Rural","Asset failure","LV",55,109,1.12077861864736E-2,1.0282372648140899E-4,"N"]
["SUS631_00588","2014-07-07","18:30:34","ALU32 Lavington West/Jindera","Long Rural","Asset failure","LV",36,171,4.54637770531999E-2,2.6587004124678298E-4,"N"]
["SUS631_00589","2014-07-07","18:31:13","HAN3B8 Millis Rd","Short Rural","Animal","Animal impact",1,60,1.1217133797971899E-4,1.8695222996619901E-6,"N"]
["SUS631_00590","2014-07-07","19:37:39","CCN3B4 Hurricane Hill","Short Rural","Weather",null,15,73,2.0471269181298801E-3,2.8042834494929901E-5,"N"]
["SUS631_00591","2014-07-07","19:46:00","CFN3B15 Park Beach Plaza No.2","Urban","Planned",null,13,396,null,null,"N"]
["SUS631_00592","2014-07-07","19:53:35","AVE3B3 Wollongbar","Short Rural","Overloads",null,2,59,2.20603631360115E-4,3.7390445993239802E-6,"N"]
["SUS631_00593","2014-07-07","20:31:49","COW102 Wyangala","Long Rural","Animal","Animal impact",1,111,8.1976596051091405E-4,7.3852789235217402E-6,"N"]
["SUS631_00594","2014-07-07","21:28:20","QDI3B4 East Rural","Long Rural","Asset failure","HV",52,244,9.3704418981643903E-2,3.8403450402313101E-4,"N"]
["SUS631_00595","2014-07-08","05:23:33","FIN22 Rural Nth","Long Rural","Asset failure","LV",1,108,7.9761012374034797E-4,7.3852789235217402E-6,"N"]
["SUS631_00596","2014-07-08","06:39:58","HAT22 Hay 132 - Hay Town (Maude)","Long Rural","Animal","Animal impact",5,86,3.17566993711435E-3,3.6926394617608703E-5,"N"]
["SUS631_00597","2014-07-08","07:21:07","MOU12 Moulamein","Long Rural","Asset failure","HV",1,45,3.3233755155847802E-4,7.3852789235217402E-6,"N"]
["SUS631_00598","2014-07-08","07:39:49","MWN3B8 Industrial","Short Rural","Asset failure","HV",17,38,1.2077114055816501E-3,3.1781879094253799E-5,"N"]
["SUS631_00599","2014-07-08","08:05:13","CPM3B5 Shelley Beach","Short Rural","Asset failure","LV",1,277,5.1785767700637103E-4,1.8695222996619901E-6,"N"]
["SUS631_00600","2014-07-08","08:06:46","GID22 Rural Nth/Sth/West","Long Rural","Asset failure","LV",1,188,1.38843243762209E-3,7.3852789235217402E-6,"N"]
["SUS631_00601","2014-07-08","08:06:51","MCV3B10 Warrell Ck","Short Rural","Asset failure","LV",1,166,3.1034070174388998E-4,1.8695222996619901E-6,"N"]
["SUS631_00602","2014-07-08","08:30:00","HIL1111 Hillston 132 - Merriwagga","Long Rural","Planned",null,6,230,null,null,"N"]
["SUS631_00603","2014-07-08","08:30:00","DUN3B5 Rosebank","Short Rural","Planned",null,1,60,null,null,"N"]
["SUS631_00604","2014-07-08","08:30:00","GDH6501 M65 Wandobah","Short Rural","Planned",null,10,386.9,null,null,"N"]
["SUS631_00605","2014-07-08","08:30:49","NVE42 Warren Rural Nth","Long Rural","Asset failure","LV",10,70,5.16969524646522E-3,7.3852789235217406E-5,"N"]
["SUS631_00606","2014-07-08","08:33:53","KYG3B1 Nth Kyogle No.1","Long Rural","Planned",null,87,395,null,null,"N"]
["SUS631_00607","2014-07-08","08:35:00","GLR3B5 Barrington","Long Rural","Planned",null,26,265,null,null,"N"]
["SUS631_00608","2014-07-08","08:35:00","SGN3B6 Rushforth Rd","Short Rural","Planned",null,93,202,null,null,"N"]
["SUS631_00609","2014-07-08","08:47:00","MLS3B6 Airport","Short Rural","Planned",null,43,393.13953488372101,null,null,"N"]
["SUS631_00610","2014-07-08","08:53:00","NYN52 Nyngan West","Long Rural","Planned",null,16,75,null,null,"N"]
["SUS631_00611","2014-07-08","08:54:00","WWL8B4 West Wyalong Sth West Town","Short Rural","Planned",null,1,149,null,null,"N"]
["SUS631_00612","2014-07-08","08:55:00","BKE4B1 M81 Enngonia","Long Rural","Planned",null,15,296,null,null,"N"]
["SUS631_00613","2014-07-08","08:57:20","OXY3B3 Alexandra/Fiona","Short Rural","Asset failure","LV",1,219,4.0942538362597597E-4,1.8695222996619901E-6,"N"]
["SUS631_00614","2014-07-08","09:00:00","BWA3B1 Abbotts Falls/Krambach","Long Rural","Planned",null,8,325,null,null,"N"]
["SUS631_00615","2014-07-08","09:00:00","CRO5522 Tuena Redground","Long Rural","Planned",null,1,85,null,null,"N"]
["SUS631_00616","2014-07-08","09:00:00","DEN62 Nth Rural","Long Rural","Planned",null,2,137,null,null,"N"]
["SUS631_00617","2014-07-08","09:00:00","URA3B2 Gostwyck/Arding","Long Rural","Planned",null,8,97,null,null,"N"]
["SUS631_00618","2014-07-08","09:00:00","MCV3B3 Industrial","Short Rural","Planned",null,55,245,null,null,"N"]
["SUS631_00619","2014-07-08","09:00:00","MUD72 Eurunderee","Short Rural","Planned",null,25,344.08,null,null,"N"]
["SUS631_00620","2014-07-08","09:00:00","PKT3B9 Parkes Town No.3","Short Rural","Planned",null,38,193,null,null,"N"]
["SUS631_00621","2014-07-08","09:00:00","GFH3B4 Coolah St","Urban","Planned",null,68,173,null,null,"N"]
["SUS631_00622","2014-07-08","09:01:04","MGA3B2 Willawarrin","Long Rural","Planned",null,160,299.66874999999999,null,null,"N"]
["SUS631_00623","2014-07-08","09:02:00","WLS9/8 Oorundumby","Long Rural","Planned",null,10,313,null,null,"N"]
["SUS631_00624","2014-07-08","09:02:00","BRO3B1 Brogo Pumps","Short Rural","Planned",null,26,328.84615384615398,null,null,"N"]
["SUS631_00625","2014-07-08","09:02:12","MRN8B3 Marulan Town","Long Rural","Planned",null,66,384,null,null,"N"]
["SUS631_00626","2014-07-08","09:03:00","CHI2524 Estella","Short Rural","Planned",null,6,44,null,null,"N"]
["SUS631_00627","2014-07-08","09:03:00","CHI2538 Farrer Rd","Short Rural","Planned",null,92,44.3913043478261,null,null,"N"]
["SUS631_00628","2014-07-08","09:03:00","MRH3B3 No.1 Town Sth","Short Rural","Planned",null,35,260,null,null,"N"]
["SUS631_00629","2014-07-08","09:04:00","DUG3B6 Sandy Ck/Wallarobba","Short Rural","Planned",null,2,296,null,null,"N"]
["SUS631_00630","2014-07-08","09:07:00","CWD13 Cargo","Long Rural","Planned",null,4,221,null,null,"N"]
["SUS631_00631","2014-07-08","09:08:00","KYG3B1 Nth Kyogle No.1","Long Rural","Planned",null,12,272,null,null,"N"]
["SUS631_00632","2014-07-08","09:08:00","CHI2538 Farrer Rd","Short Rural","Planned",null,6,5,null,null,"N"]
["SUS631_00633","2014-07-08","09:08:00","DOR3B4 Fernbrook/Deervale","Short Rural","Planned",null,3,232,null,null,"N"]
["SUS631_00634","2014-07-08","09:08:00","DBS3B2 Boundary Rd","Urban","Planned",null,71,312,null,null,"N"]
["SUS631_00635","2014-07-08","09:09:00","BTS8B5 Kings Plains","Long Rural","Planned",null,11,363,null,null,"N"]
["SUS631_00636","2014-07-08","09:09:00","ALJ8B6 Newmarket","Urban","Planned",null,86,398,null,null,"N"]
["SUS631_00637","2014-07-08","09:10:37","WWA8B2 M7 Yarrie Lake","Short Rural","Planned",null,24,372,null,null,"N"]
["SUS631_00638","2014-07-08","09:12:00","BWA3B1 Abbotts Falls/Krambach","Long Rural","Planned",null,19,318,null,null,"N"]
["SUS631_00639","2014-07-08","09:12:00","NVE32 Auscott/Warren Town","Short Rural","Planned",null,3,85,null,null,"N"]
["SUS631_00640","2014-07-08","09:13:00","EME1E10 Deepwater","Short Rural","Vegetation","Grow-in",8,96,1.4357931261404101E-3,1.49561783972959E-5,"N"]
["SUS631_00641","2014-07-08","09:15:00","CBB72 Binnaway","Long Rural","Planned",null,1,214,null,null,"N"]
["SUS631_00642","2014-07-08","09:15:00","FIN52 Tocumwal","Long Rural","Planned",null,4,127,null,null,"N"]
["SUS631_00643","2014-07-08","09:18:56","BMR670 Watsons Ck","Short Rural","Third party","Fire",12,72,1.61526726690796E-3,2.24342675959439E-5,"N"]
["SUS631_00644","2014-07-08","09:19:00","DTN23 Wentworth","Long Rural","Planned",null,2,302,null,null,"N"]
["SUS631_00645","2014-07-08","09:19:30","CHI2538 Farrer Rd","Short Rural","Planned",null,7,303,null,null,"N"]
["SUS631_00646","2014-07-08","09:20:00","DNO142 Merrygoen","Long Rural","Planned",null,3,246,null,null,"N"]
["SUS631_00647","2014-07-08","09:20:00","TUM12 Ournie","Short Rural","Planned",null,2,204,null,null,"N"]
["SUS631_00648","2014-07-08","09:23:00","TUM42 Laurel Hill","Long Rural","Planned",null,2,35,null,null,"N"]
["SUS631_00649","2014-07-08","09:24:06","ETH3B12 Mathews/Denison","Urban","Asset failure","LV",1,192,1.0029042435385799E-3,5.2234596017634396E-6,"N"]
["SUS631_00650","2014-07-08","09:25:00","GID12 Gilgandra Town No.1","Urban","Planned",null,45,415.33333333333297,null,null,"N"]
["SUS631_00651","2014-07-08","09:27:00","CHI2524 Estella","Short Rural","Planned",null,22,244,null,null,"N"]
["SUS631_00652","2014-07-08","09:29:00","NVE42 Warren Rural Nth","Long Rural","Planned",null,4,288,null,null,"N"]
["SUS631_00653","2014-07-08","09:30:00","NVE12 Nevertire","Long Rural","Planned",null,3,336,null,null,"N"]
["SUS631_00654","2014-07-08","09:30:00","WGT8B8 M54 Brewarrina","Long Rural","Planned",null,1,501,null,null,"N"]
["SUS631_00655","2014-07-08","09:30:00","CBY802 Bull Rd","Short Rural","Planned",null,4,275,null,null,"N"]
["SUS631_00656","2014-07-08","09:30:00","ORW3B2 Mountain View","Short Rural","Planned",null,6,284,null,null,"N"]
["SUS631_00657","2014-07-08","09:32:00","GDL3B8 Rural","Short Rural","Planned",null,118,269.22881355932202,null,null,"N"]
["SUS631_00658","2014-07-08","09:32:05","79P Griffith 132 - Goolgowi","Long Rural","Planned",null,51,261,null,null,"N"]
["SUS631_00659","2014-07-08","09:33:00","MRE2M37 Gingham Rd","Short Rural","Planned",null,3,218,null,null,"N"]
["SUS631_00660","2014-07-08","09:35:16","BET1 Mt Ulandra Line 43","Short Rural","Planned",null,5,267,null,null,"N"]
["SUS631_00661","2014-07-08","09:39:00","TXS3X06 Yelarbon","Long Rural","Planned",null,11,263,null,null,"N"]
["SUS631_00662","2014-07-08","09:39:00","YOU3B9 Weedallion","Long Rural","Planned",null,21,269,null,null,"N"]
["SUS631_00663","2014-07-08","09:40:00","DTN23 Wentworth","Long Rural","Planned",null,14,348,null,null,"N"]
["SUS631_00664","2014-07-08","09:41:00","COO22 Polo Flat","Short Rural","Planned",null,13,318,null,null,"N"]
["SUS631_00665","2014-07-08","09:45:00","GNF42 Rural No.2","Long Rural","Planned",null,15,285,null,null,"N"]
["SUS631_00666","2014-07-08","09:45:00","AVE3B1 Alstonville Nth","Short Rural","Planned",null,46,271,null,null,"N"]
["SUS631_00667","2014-07-08","09:50:00","TUM12 Ournie","Short Rural","Planned",null,1,232,null,null,"N"]
["SUS631_00668","2014-07-08","10:02:00","BOM8B3 Southern Rural","Long Rural","Planned",null,19,80,null,null,"N"]
["SUS631_00669","2014-07-08","10:03:00","ORS3B2 Jeager Ave","Short Rural","Other",null,1,40,7.4780891986479605E-5,1.8695222996619901E-6,"N"]
["SUS631_00670","2014-07-08","10:10:00","CRA22 Rural","Long Rural","Planned",null,34,102,null,null,"N"]
["SUS631_00671","2014-07-08","10:12:00","DEN62 Nth Rural","Long Rural","Planned",null,3,130.333333333333,null,null,"N"]
["SUS631_00672","2014-07-08","10:17:16","NME8B5 River East","Short Rural","Asset failure","HV",6,45,5.0477102090873698E-4,1.1217133797971899E-5,"N"]
["SUS631_00673","2014-07-08","10:19:00","MDA42 West","Short Rural","Planned",null,10,251,null,null,"N"]
["SUS631_00674","2014-07-08","10:20:00","HAT42 Hay 132 - Carrathool","Long Rural","Planned",null,3,303,null,null,"N"]
["SUS631_00675","2014-07-08","10:21:50","MGI2U30 Curragundi","Long Rural","Asset failure","HV",11,176.90909090909099,1.4371752785173299E-2,8.1238068158739202E-5,"N"]
["SUS631_00676","2014-07-08","10:26:00","DBW3B5 Rural West","Short Rural","Vegetation","Grow-in",47,47,4.12977475995334E-3,8.7867548084113594E-5,"N"]
["SUS631_00677","2014-07-08","10:28:00","SWT22 Mt Panorama","Short Rural","Planned",null,22,197.68181818181799,null,null,"N"]
["SUS631_00678","2014-07-08","10:41:00","NARF2 Tilba","Short Rural","Asset failure","HV",25,82,3.8325207143070799E-3,4.6738057491549802E-5,"N"]
["SUS631_00679","2014-07-08","10:54:00","SWT22 Mt Panorama","Short Rural","Planned",null,12,173.75,null,null,"N"]
["SUS631_00680","2014-07-08","11:00:00","SLI3B3 Ballina St","Urban","Planned",null,1,60,null,null,"N"]
["SUS631_00681","2014-07-08","11:01:00","DOR3B6 Leigh/Megan","Short Rural","Asset failure","LV",76,221,3.1400496545122801E-2,1.4208369477431099E-4,"N"]
["SUS631_00682","2014-07-08","11:08:35","ETH3B5 Kable Ave","Urban","Asset failure","LV",1,95,4.9622866216752701E-4,5.2234596017634396E-6,"N"]
["SUS631_00683","2014-07-08","11:08:45","URA3B4 Balala Town/Nth West","Short Rural","Asset failure","HV",36,47,3.1632317310280899E-3,6.7302802787831695E-5,"N"]
["SUS631_00684","2014-07-08","11:52:34","DTN25 Dareton","Short Rural","Asset failure","HV",5,70.400000000000006,6.5807184948102099E-4,9.3476114983099506E-6,"N"]
["SUS631_00685","2014-07-08","12:24:17","FOR17259 Strand St/Tuncurry","Urban","Asset failure","LV",55,200,5.7458055619397798E-2,2.8729027809698901E-4,"N"]
["SUS631_00686","2014-07-08","12:26:33","TURA2 Tuross","Short Rural","Third party","Other",18,82,2.7594149143011001E-3,3.36514013939158E-5,"N"]
["SUS631_00687","2014-07-08","13:08:00","CRO5522 Tuena Redground","Long Rural","Planned",null,1,57,null,null,"N"]
["SUS631_00688","2014-07-08","13:18:00","NYN62 Nyngan Sth","Short Rural","Planned",null,2,117,null,null,"N"]
["SUS631_00689","2014-07-08","13:26:00","NVE22 Gin Gin","Short Rural","Planned",null,27,53,null,null,"N"]
["SUS631_00690","2014-07-08","13:56:23","CRA42 Corurgan","Short Rural","Other",null,1,110,2.0564745296281899E-4,1.8695222996619901E-6,"N"]
["SUS631_00691","2014-07-08","14:08:49","WHI719 Whitton Sth","Short Rural","Animal","Animal impact",3,73,4.0942538362597597E-4,5.60856689898597E-6,"N"]
["SUS631_00692","2014-07-08","14:18:39","GYA8K1 Wandsworth","Long Rural","Asset failure","HV",55,94.909090909090907,3.85511559807835E-2,4.0619034079369601E-4,"N"]
["SUS631_00693","2014-07-08","15:47:35","GRN3B5 Koolkhan","Short Rural","Overloads",null,1,28,5.2346624390535698E-5,1.8695222996619901E-6,"N"]
["SUS631_00694","2014-07-08","15:51:47","SGN3B1 Armidale Rd","Long Rural","Asset failure","HV",1,95,7.0160149773456596E-4,7.3852789235217402E-6,"N"]
["SUS631_00695","2014-07-08","15:57:00","DUN3B4 Mt Nardi","Short Rural","Asset failure","LV",3,109,6.11333791989471E-4,5.60856689898597E-6,"N"]
["SUS631_00696","2014-07-08","16:41:27","URA3B2 Gostwyck/Arding","Long Rural","Third party","Vehicle impact",1,108,7.9761012374034797E-4,7.3852789235217402E-6,"N"]
["SUS631_00697","2014-07-08","17:06:00","CNB52 Coonamble Town No.1","Short Rural","Asset failure","LV",60,27,3.0286261254524201E-3,1.1217133797971899E-4,"N"]
["SUS631_00698","2014-07-08","17:38:15","FFD3382 Tuncurry Rd","Short Rural","Animal","Animal impact",148,67.959459459459495,1.8803655290000301E-2,2.7668930034997497E-4,"N"]
["SUS631_00699","2014-07-08","18:32:27","BRL20408 Deep Ck","Short Rural","Asset failure","HV",6,79,8.8615357003978305E-4,1.1217133797971899E-5,"N"]
["SUS631_00700","2014-07-08","21:01:11","LOC3794 Lockhart","Long Rural","Animal","Animal impact",1,94,6.9421621881104404E-4,7.3852789235217402E-6,"N"]
["SUS631_00701","2014-07-08","23:41:25","CDN62 Tallebung","Long Rural","Animal","Animal impact",8,74,4.3720851227248697E-3,5.9082231388173902E-5,"N"]
["SUS631_00702","2014-07-09","03:12:01","PKT3B10 Tichbourne","Long Rural","Other",null,51,271.50980392156902,0.102263957254006,3.7664922509960899E-4,"N"]
["SUS631_00703","2014-07-09","05:12:53","NGN3B1 Glenreagh","Short Rural","Asset failure","HV",1,168,3.14079746343214E-4,1.8695222996619901E-6,"N"]
["SUS631_00704","2014-07-09","07:31:43","DUG3B7 Salisbury","Short Rural","Asset failure","LV",2,272,1.01702013101612E-3,3.7390445993239802E-6,"N"]
["SUS631_00705","2014-07-09","08:00:00","BHL72 West","Short Rural","Planned",null,2,240,null,null,"N"]
["SUS631_00706","2014-07-09","08:00:00","CHI2538 Farrer Rd","Short Rural","Planned",null,32,495,null,null,"N"]
["SUS631_00707","2014-07-09","08:29:00","CHI2524 Estella","Short Rural","Asset failure","HV",6,22,2.4677694355538301E-4,1.1217133797971899E-5,"N"]
["SUS631_00708","2014-07-09","08:29:00","CHI2538 Farrer Rd","Short Rural","Asset failure","HV",92,22,3.7839131345158701E-3,1.7199605156890301E-4,"N"]
["SUS631_00709","2014-07-09","08:30:00","MCV3B9 Bowraville Rural","Long Rural","Planned",null,4,24,null,null,"N"]
["SUS631_00710","2014-07-09","08:30:00","SFP3B5 Suffolk No.2","Short Rural","Planned",null,2,248,null,null,"N"]
["SUS631_00711","2014-07-09","08:30:00","SLI3B10 Jiggi","Short Rural","Planned",null,1,30,null,null,"N"]
["SUS631_00712","2014-07-09","08:30:00","STR3B1 Stroud Nth","Short Rural","Planned",null,1,959,null,null,"N"]
["SUS631_00713","2014-07-09","08:30:00","MRE2M36 Moree Eastern Town","Urban","Planned",null,8,400,null,null,"N"]
["SUS631_00714","2014-07-09","08:34:07","DEN22 Macauley St","Urban","Asset failure","LV",1,145,7.5740164225569903E-4,5.2234596017634396E-6,"N"]
["SUS631_00715","2014-07-09","08:35:00","MGA3B1 Turners Flat","Short Rural","Planned",null,65,240,null,null,"N"]
["SUS631_00716","2014-07-09","08:36:00","NME8B1 Rural Sth","Long Rural","Asset failure","LV",5,14,5.1696952464652202E-4,3.6926394617608703E-5,"N"]
["SUS631_00717","2014-07-09","08:39:30","GYA3B3 Guyra Town/Black Mtn","Short Rural","Planned",null,44,291.27272727272702,null,null,"N"]
["SUS631_00718","2014-07-09","08:41:35","WGA3B5 East Woolgoolga","Short Rural","Overloads",null,96,143,2.5664802129759801E-2,1.7947414076755099E-4,"N"]
["SUS631_00719","2014-07-09","08:45:00","DOR3B1 Nth Dorrigo","Long Rural","Planned",null,2,145,null,null,"N"]
["SUS631_00720","2014-07-09","08:45:00","TDL8B2 Tullamore/Tottenham","Long Rural","Planned",null,3,353,null,null,"N"]
["SUS631_00721","2014-07-09","08:45:00","WRA2W08 Northern","Long Rural","Planned",null,29,214,null,null,"N"]
["SUS631_00722","2014-07-09","08:45:00","YLI2H08 Yetman","Long Rural","Planned",null,8,221,null,null,"N"]
["SUS631_00723","2014-07-09","08:45:00","MGA3B1 Turners Flat","Short Rural","Planned",null,62,213,null,null,"N"]
["SUS631_00724","2014-07-09","08:49:35","BOO1042 Kenyu","Long Rural","Planned",null,44,364,null,null,"N"]
["SUS631_00725","2014-07-09","09:00:00","BKE4B1 M81 Enngonia","Long Rural","Planned",null,2,309,null,null,"N"]
["SUS631_00726","2014-07-09","09:00:00","BWA3B1 Abbotts Falls/Krambach","Long Rural","Planned",null,2,108,null,null,"N"]
["SUS631_00727","2014-07-09","09:00:00","COW102 Wyangala","Long Rural","Planned",null,1,180,null,null,"N"]
["SUS631_00728","2014-07-09","09:00:00","CRO5522 Tuena Redground","Long Rural","Planned",null,4,240,null,null,"N"]
["SUS631_00729","2014-07-09","09:00:00","YAR3B2 Troy","Long Rural","Planned",null,3,356,null,null,"N"]
["SUS631_00730","2014-07-09","09:00:00","GDH6501 M65 Wandobah","Short Rural","Planned",null,1,347,null,null,"N"]
["SUS631_00731","2014-07-09","09:00:00","RGL3B11 Raleigh/Repton","Short Rural","Planned",null,4,385,null,null,"N"]
["SUS631_00732","2014-07-09","09:01:00","KIS7682 Pappinbarra","Short Rural","Planned",null,15,230,null,null,"N"]
["SUS631_00733","2014-07-09","09:01:00","MYT3B7 Bergalia","Short Rural","Planned",null,21,332,null,null,"N"]
["SUS631_00734","2014-07-09","09:01:01","BAR32 Gonn","Short Rural","Planned",null,123,512.292682926829,null,null,"N"]
["SUS631_00735","2014-07-09","09:01:03","BDA2D08 Bundarra Sth","Long Rural","Planned",null,19,381,null,null,"N"]
["SUS631_00736","2014-07-09","09:03:00","WJL3B1 Grudgery","Short Rural","Planned",null,1,195,null,null,"N"]
["SUS631_00737","2014-07-09","09:03:02","PSK3B1 Dondingalong","Short Rural","Planned",null,67,162,null,null,"N"]
["SUS631_00738","2014-07-09","09:05:00","GBN6222 Taralga","Long Rural","Planned",null,10,305,null,null,"N"]
["SUS631_00739","2014-07-09","09:05:00","AVE3B2 Alstonville 2","Urban","Planned",null,71,269,null,null,"N"]
["SUS631_00740","2014-07-09","09:05:00","AVE3B5 Alstonville 1","Urban","Planned",null,50,577.6,null,null,"N"]
["SUS631_00741","2014-07-09","09:05:00","AVE3B5 Alstonville 1","Urban","Planned",null,104,260,null,null,"N"]
["SUS631_00742","2014-07-09","09:08:00","SUT5323 Gundaroo","Long Rural","Planned",null,26,97,null,null,"N"]
["SUS631_00743","2014-07-09","09:08:00","NDA3B6 Paynters Siding","Short Rural","Other",null,6,174,1.95178128084712E-3,1.1217133797971899E-5,"N"]
["SUS631_00744","2014-07-09","09:11:00","TUM12 Ournie","Short Rural","Planned",null,3,178,null,null,"N"]
["SUS631_00745","2014-07-09","09:12:00","BBI2801 M28 Boggabri Town","Short Rural","Planned",null,51,327.70588235294099,null,null,"N"]
["SUS631_00746","2014-07-09","09:15:00","EWE3B8 Federal","Short Rural","Planned",null,8,145,null,null,"N"]
["SUS631_00747","2014-07-09","09:15:00","MCV3B10 Warrell Ck","Short Rural","Planned",null,18,285,null,null,"N"]
["SUS631_00748","2014-07-09","09:15:00","MON1012 Monteagle Rural","Short Rural","Planned",null,11,182,null,null,"N"]
["SUS631_00749","2014-07-09","09:16:00","CNB22 Rural Sth","Long Rural","Planned",null,52,160,null,null,"N"]
["SUS631_00750","2014-07-09","09:17:00","PYB12 Eugowra","Short Rural","Planned",null,1,199,null,null,"N"]
["SUS631_00751","2014-07-09","09:18:00","WWL8B4 West Wyalong Sth West Town","Short Rural","Planned",null,8,258,null,null,"N"]
["SUS631_00752","2014-07-09","09:19:00","DNO142 Merrygoen","Long Rural","Planned",null,2,139,null,null,"N"]
["SUS631_00753","2014-07-09","09:20:00","CLN3B4 Ganmain 93 Line","Short Rural","Planned",null,10,274,null,null,"N"]
["SUS631_00754","2014-07-09","09:20:00","GDH6501 M65 Wandobah","Short Rural","Planned",null,3,352,null,null,"N"]
["SUS631_00755","2014-07-09","09:21:00","SWT22 Mt Panorama","Short Rural","Planned",null,15,319,null,null,"N"]
["SUS631_00756","2014-07-09","09:22:00","CDN62 Tallebung","Long Rural","Planned",null,13,247,null,null,"N"]
["SUS631_00757","2014-07-09","09:22:00","HIL1111 Hillston 132 - Merriwagga","Long Rural","Planned",null,4,263,null,null,"N"]
["SUS631_00758","2014-07-09","09:25:19","FIN42 Berrigan","Long Rural","Third party","Vehicle impact",1,321,2.3706745344504801E-3,7.3852789235217402E-6,"N"]
["SUS631_00759","2014-07-09","09:30:00","CBR42 Margretvale","Long Rural","Planned",null,1,360,null,null,"N"]
["SUS631_00760","2014-07-09","09:30:00","GBN6222 Taralga","Long Rural","Planned",null,5,150,null,null,"N"]
["SUS631_00761","2014-07-09","09:30:00","MCV3B9 Bowraville Rural","Long Rural","Planned",null,4,162,null,null,"N"]
["SUS631_00762","2014-07-09","09:30:00","NME8B1 Rural Sth","Long Rural","Planned",null,1,29,null,null,"N"]
["SUS631_00763","2014-07-09","09:30:00","WGT8B8 M54 Brewarrina","Long Rural","Planned",null,4,229,null,null,"N"]
["SUS631_00764","2014-07-09","09:30:00","CNK3B3 Coopernook/Moorland","Short Rural","Planned",null,4,107,null,null,"N"]
["SUS631_00765","2014-07-09","09:36:00","YAR3B2 Troy","Long Rural","Planned",null,1,193,null,null,"N"]
["SUS631_00766","2014-07-09","09:40:00","79P Griffith 132 - Goolgowi","Long Rural","Planned",null,34,1428.2941176470599,null,null,"N"]
["SUS631_00767","2014-07-09","09:41:00","BRI Braidwood","Long Rural","Planned",null,1,139,null,null,"N"]
["SUS631_00768","2014-07-09","09:45:00","GNF42 Rural No.2","Long Rural","Planned",null,5,285,null,null,"N"]
["SUS631_00769","2014-07-09","10:00:00","MCV3B9 Bowraville Rural","Long Rural","Planned",null,6,17,null,null,"N"]
["SUS631_00770","2014-07-09","10:00:00","SLI3B10 Jiggi","Short Rural","Planned",null,1,30,null,null,"N"]
["SUS631_00771","2014-07-09","10:01:32","GID32 Rural East","Long Rural","Vegetation","Grow-in",9,89,5.9156084177409201E-3,6.6467510311695705E-5,"N"]
["SUS631_00772","2014-07-09","10:02:00","LEE3B7 Corbie Hill","Short Rural","Planned",null,41,261,null,null,"N"]
["SUS631_00773","2014-07-09","10:02:00","LEE3B2 Parkview","Urban","Planned",null,58,276.77586206896598,null,null,"N"]
["SUS631_00774","2014-07-09","10:03:00","CBB72 Binnaway","Long Rural","Planned",null,3,262,null,null,"N"]
["SUS631_00775","2014-07-09","10:03:00","COO22 Polo Flat","Short Rural","Planned",null,3,185,null,null,"N"]
["SUS631_00776","2014-07-09","10:06:00","JER22 Jerilderie Town","Short Rural","Planned",null,5,138,null,null,"N"]
["SUS631_00777","2014-07-09","10:08:00","LOC3794 Lockhart","Long Rural","Planned",null,4,265.5,null,null,"N"]
["SUS631_00778","2014-07-09","10:11:00","HAY2036 East Rural","Short Rural","Planned",null,1,79,null,null,"N"]
["SUS631_00779","2014-07-09","10:14:00","ORS3B6 Peisley St Sth","Short Rural","Planned",null,94,219.659574468085,null,null,"N"]
["SUS631_00780","2014-07-09","10:20:00","MWN3B1 Uki","Long Rural","Other",null,6,25,1.10779183852826E-3,4.4311673541130499E-5,"N"]
["SUS631_00781","2014-07-09","10:20:00","MLO52 West","Short Rural","Planned",null,1,160,null,null,"N"]
["SUS631_00782","2014-07-09","10:35:00","ALU22 West Albury/Howlong","Short Rural","Planned",null,73,208,null,null,"N"]
["SUS631_00783","2014-07-09","10:46:00","DBW3B2 Rural Sth/Minore Rd","Short Rural","Planned",null,2,91,null,null,"N"]
["SUS631_00784","2014-07-09","10:48:00","RAG3B7 View St","Short Rural","Other",null,12,21,4.7111961951482202E-4,2.24342675959439E-5,"N"]
["SUS631_00785","2014-07-09","10:49:25","RAG3B6 Limekilns","Long Rural","Asset failure","HV",1,85,6.2774870849934797E-4,7.3852789235217402E-6,"N"]
["SUS631_00786","2014-07-09","11:00:00","MCV3B9 Bowraville Rural","Long Rural","Planned",null,5,48,null,null,"N"]
["SUS631_00787","2014-07-09","11:04:00","HAT22 Hay 132 - Hay Town (Maude)","Long Rural","Weather",null,1,13,9.6008626005782699E-5,7.3852789235217402E-6,"N"]
["SUS631_00788","2014-07-09","11:15:00","MBM6222 Patemans Ln","Long Rural","Other",null,1,11,8.1238068158739202E-5,7.3852789235217402E-6,"N"]
["SUS631_00789","2014-07-09","11:22:40","THA2230 Brown Rd","Short Rural","Asset failure","HV",39,162,1.18116418892645E-2,7.2911369686817597E-5,"N"]
["SUS631_00790","2014-07-09","11:36:00","PHS3B8 Fitzroy St Sth","Urban","Third party","Vehicle impact",26,3,4.0742984893754798E-4,1.3580994964584899E-4,"N"]
["SUS631_00791","2014-07-09","11:59:00","YOU3B3 Bribaree","Long Rural","Asset failure","HV",2,21,3.1018171478791303E-4,1.4770557847043501E-5,"N"]
["SUS631_00792","2014-07-09","12:30:00","MCV3B9 Bowraville Rural","Long Rural","Planned",null,4,82,null,null,"N"]
["SUS631_00793","2014-07-09","12:36:28","MWN3B9 Racecourse Rd","Short Rural","Asset failure","HV",155,114,3.30344590350274E-2,2.89775956447608E-4,"N"]
["SUS631_00794","2014-07-09","12:43:00","WWA8B3 M9 Merah North/Doreen Ln","Short Rural","Other",null,2,22,8.2258981185127597E-5,3.7390445993239802E-6,"N"]
["SUS631_00795","2014-07-09","13:08:00","CSO3B2 Kyogle Rd","Long Rural","Asset failure","LV",8,118,6.9717033038045302E-3,5.9082231388173902E-5,"N"]
["SUS631_00796","2014-07-09","13:12:00","NME8B1 Rural Sth","Long Rural","Planned",null,9,130,null,null,"N"]
["SUS631_00797","2014-07-09","13:37:16","CWD13 Cargo","Long Rural","Animal","Animal impact",1,79,5.8343703495821798E-4,7.3852789235217402E-6,"N"]
["SUS631_00798","2014-07-09","13:57:00","MLA3B3 West/Nth Rural","Short Rural","Other",null,287,21,1.1267610900062799E-2,5.3655290000299101E-4,"N"]
["SUS631_00799","2014-07-09","13:58:00","MLA3B1 Rushes Ck","Short Rural","Other",null,101,15,2.83232628398792E-3,1.88821752265861E-4,"N"]
["SUS631_00800","2014-07-09","13:58:00","MLA3B2 Halls Ck","Short Rural","Other",null,136,15,3.8138254913104601E-3,2.5425503275403098E-4,"N"]
["SUS631_00801","2014-07-09","13:58:00","MLA3B4 Manilla","Short Rural","Other",null,1079,13,2.6223789297358701E-2,2.0172145613352901E-3,"N"]
["SUS631_00802","2014-07-09","14:13:34","BKE8B3 M87 Bourke No.2","Short Rural","Asset failure","HV",855,20.239766081871299,3.2352083395650703E-2,1.5984415662110001E-3,"N"]
["SUS631_00803","2014-07-09","14:27:30","HOL1843 Holbrook Nth","Long Rural","Vegetation","Blow-in/Fall-in",1,105,7.7545428696978297E-4,7.3852789235217402E-6,"N"]
["SUS631_00804","2014-07-09","14:40:17","LCO22 Lake Cargelligo","Long Rural","Vegetation","Blow-in/Fall-in",19,109,1.52949126506135E-2,1.40320299546913E-4,"N"]
["SUS631_00805","2014-07-09","14:54:03","RKF3B3 Telegraph Point","Short Rural","Other",null,71,58,7.6986928300080797E-3,1.32736083276001E-4,"N"]
["SUS631_00806","2014-07-09","15:15:00","TSH3B4 Industrial","Urban","Third party","Vehicle impact",58,123,3.72641607989804E-2,3.0296065690227901E-4,"N"]
["SUS631_00807","2014-07-09","15:41:00","EWE3B8 Federal","Short Rural","Asset failure","LV",4,20,1.4956178397295899E-4,7.4780891986479603E-6,"N"]
["SUS631_00808","2014-07-09","15:52:16","SGN3B1 Armidale Rd","Long Rural","Asset failure","HV",1,298,2.2008131192094802E-3,7.3852789235217402E-6,"N"]
["SUS631_00809","2014-07-09","15:52:50","BOO1042 Kenyu","Long Rural","Asset failure","HV",1,156,1.15210351206939E-3,7.3852789235217402E-6,"N"]
["SUS631_00810","2014-07-09","15:55:48","COBD2 Sth Cobargo","Long Rural","Asset failure","HV",191,317,0.44715648298247102,1.41058827439265E-3,"N"]
["SUS631_00811","2014-07-09","16:30:01","ELI3B10 Tregeagle","Short Rural","Third party","Vehicle impact",1,79,1.4769226167329701E-4,1.8695222996619901E-6,"N"]
["SUS631_00812","2014-07-09","16:42:39","OES5512 Gilmore Rd","Urban","Overloads",null,100,48,2.50726060884645E-2,5.2234596017634405E-4,"N"]
["SUS631_00813","2014-07-09","17:19:10","ORS3B9 Peisley St Nth","Urban","Third party","Vehicle impact",1,47,2.4550260128288197E-4,5.2234596017634396E-6,"N"]
["SUS631_00814","2014-07-09","17:30:00","RCF10 Brooms Head","Short Rural","Asset failure","LV",82,127,1.9469205228679998E-2,1.5330082857228301E-4,"N"]
["SUS631_00815","2014-07-09","17:36:27","NARC2 Dalmeny","Short Rural","Other",null,1,31,5.7955191289521702E-5,1.8695222996619901E-6,"N"]
["SUS631_00816","2014-07-09","18:15:06","PKH42 Rural West","Short Rural","Weather",null,78,405.05128205128199,5.9065687535520897E-2,1.45822739373635E-4,"N"]
["SUS631_00817","2014-07-09","18:20:07","GNF12 Rural No.1","Long Rural","Vegetation","Blow-in/Fall-in",337,880.40059347181,2.1911753302142798,2.4888389972268299E-3,"N"]
["SUS631_00818","2014-07-09","18:36:44","NARF2 Tilba","Short Rural","Asset failure","HV",23,132,5.6758697017737997E-3,4.29990128922258E-5,"N"]
["SUS631_00819","2014-07-09","19:08:37","COW32 Woodstock","Long Rural","Weather",null,5,199,7.3483525289041399E-3,3.6926394617608703E-5,"N"]
["SUS631_00820","2014-07-09","19:21:01","TMT62 Gocup","Long Rural","Weather",null,3,103,2.2820511873682201E-3,2.2155836770565199E-5,"N"]
["SUS631_00821","2014-07-09","20:12:19","SWT12 Stewarts Mt","Long Rural","Asset failure","HV",1,796,5.8786820231233102E-3,7.3852789235217402E-6,"N"]
["SUS631_00822","2014-07-09","21:05:00","TMT62 Gocup","Long Rural","Weather",null,1,10,7.3852789235217406E-5,7.3852789235217402E-6,"N"]
["SUS631_00823","2014-07-09","21:22:22","UNI8/8 Tilbuster/Puddledock","Short Rural","Asset failure","HV",3,55,3.0847117944422803E-4,5.60856689898597E-6,"N"]
["SUS631_00824","2014-07-09","21:59:20","PKH42 Rural West","Short Rural","Asset failure","HV",1,594,1.11049624599922E-3,1.8695222996619901E-6,"N"]
["SUS631_00825","2014-07-09","22:20:25","THA2229 Three Way Bridge","Short Rural","Weather",null,1,137,2.5612455505369299E-4,1.8695222996619901E-6,"N"]
["SUS631_00826","2014-07-09","23:25:22","NAN3B1 Eurongilly","Short Rural","Animal","Animal impact",3,742,4.1615566390475903E-3,5.60856689898597E-6,"N"]
["SUS631_00827","2014-07-10","00:25:00","FFD3381 Nabiac","Long Rural","Asset failure","HV",49,70,2.5331506707679599E-2,3.6187866725256499E-4,"N"]
["SUS631_00828","2014-07-10","00:52:59","MCV3B2 Taylors Arm West","Short Rural","Other",null,74,30,4.1503395052496202E-3,1.38344650174987E-4,"N"]
["SUS631_00829","2014-07-10","01:11:04","EWE3B11 Byron No.3","Short Rural","Asset failure","LV",102,105,2.0022583829379902E-2,1.9069127456552301E-4,"N"]
["SUS631_00830","2014-07-10","02:02:19","PKH42 Rural West","Short Rural","Asset failure","HV",23,323,1.38886811641889E-2,4.29990128922258E-5,"N"]
["SUS631_00831","2014-07-10","04:41:54","MCV3B2 Taylors Arm West","Short Rural","Asset failure","HV",22,697,2.8667254943017001E-2,4.1129490592563798E-5,"N"]
["SUS631_00832","2014-07-10","07:09:49","PKH42 Rural West","Short Rural","Asset failure","HV",78,5,7.29113696868176E-4,1.45822739373635E-4,"N"]
["SUS631_00833","2014-07-10","07:18:02","PKH42 Rural West","Short Rural","Asset failure","HV",10,7,1.3086656097633899E-4,1.8695222996619901E-5,"N"]
["SUS631_00834","2014-07-10","08:00:00","BHL72 West","Short Rural","Planned",null,5,420,null,null,"N"]
["SUS631_00835","2014-07-10","08:00:01","GFH3B10 Ricemill","Short Rural","Asset failure","LV",1,182,3.40253058538482E-4,1.8695222996619901E-6,"N"]
["SUS631_00836","2014-07-10","08:12:13","ORI828 Clifton Grove","Short Rural","Asset failure","LV",1,197,3.6829589303341201E-4,1.8695222996619901E-6,"N"]
["SUS631_00837","2014-07-10","08:30:00","ELI3B3 Ross St","Short Rural","Planned",null,115,473,null,null,"N"]
["SUS631_00838","2014-07-10","08:30:00","LIU3B5 Lismore Heights","Short Rural","Planned",null,149,473,null,null,"N"]
["SUS631_00839","2014-07-10","08:32:00","SLI3B10 Jiggi","Short Rural","Planned",null,6,198,null,null,"N"]
["SUS631_00840","2014-07-10","08:32:00","QSH5312 Wirilda Cres","Urban","Planned",null,98,417.60204081632702,null,null,"N"]
["SUS631_00841","2014-07-10","08:40:00","GLR3B5 Barrington","Long Rural","Planned",null,2,190,null,null,"N"]
["SUS631_00842","2014-07-10","08:40:00","GYA3B3 Guyra Town/Black Mtn","Short Rural","Planned",null,57,170,null,null,"N"]
["SUS631_00843","2014-07-10","08:47:00","DOR3B1 Nth Dorrigo","Long Rural","Planned",null,1,116,null,null,"N"]
["SUS631_00844","2014-07-10","08:49:21","DBS3B9 Keswick","Urban","Asset failure","LV",1,21,1.0969265163703201E-4,5.2234596017634396E-6,"N"]
["SUS631_00845","2014-07-10","09:00:00","DBS3B1 Rural Sth","Long Rural","Planned",null,11,353.18181818181802,null,null,"N"]
["SUS631_00846","2014-07-10","09:00:00","WLS9/4 Tia","Long Rural","Planned",null,7,134,null,null,"N"]
["SUS631_00847","2014-07-10","09:00:00","SMN3B2 Smithtown/Gladstone","Short Rural","Planned",null,15,348,null,null,"N"]
["SUS631_00848","2014-07-10","09:00:00","TPT3B2 Telegraph Pt","Short Rural","Planned",null,5,319.8,null,null,"N"]
["SUS631_00849","2014-07-10","09:00:00","DBS3B2 Boundary Rd","Urban","Planned",null,88,352,null,null,"N"]
["SUS631_00850","2014-07-10","09:00:06","BBI0101 M1 Maules Ck","Long Rural","Planned",null,129,346,null,null,"N"]
["SUS631_00851","2014-07-10","09:01:00","WGA3B2 Double Crossing","Short Rural","Planned",null,86,59,null,null,"N"]
["SUS631_00852","2014-07-10","09:01:23","MWN3B9 Racecourse Rd","Short Rural","Planned",null,155,354.33548387096801,null,null,"N"]
["SUS631_00853","2014-07-10","09:02:00","BKE4B1 M81 Enngonia","Long Rural","Planned",null,5,329,null,null,"N"]
["SUS631_00854","2014-07-10","09:02:00","LCO22 Lake Cargelligo","Long Rural","Planned",null,4,308,null,null,"N"]
["SUS631_00855","2014-07-10","09:02:00","MUL3B1 Goonengerry","Short Rural","Planned",null,72,318,null,null,"N"]
["SUS631_00856","2014-07-10","09:05:00","STF8B1 Nimmitabel","Short Rural","Other",null,1,345,6.4498519338338704E-4,1.8695222996619901E-6,"N"]
["SUS631_00857","2014-07-10","09:06:00","YAR3B2 Troy","Long Rural","Planned",null,3,339,null,null,"N"]
["SUS631_00858","2014-07-10","09:06:00","CTM3B1 Coota Nth","Short Rural","Planned",null,143,299,null,null,"N"]
["SUS631_00859","2014-07-10","09:10:00","NARD2 Narooma","Short Rural","Planned",null,140,260,null,null,"N"]
["SUS631_00860","2014-07-10","09:10:00","NVE22 Gin Gin","Short Rural","Planned",null,4,347.5,null,null,"N"]
["SUS631_00861","2014-07-10","09:10:48","NYN52 Nyngan West","Long Rural","Planned",null,29,303,null,null,"N"]
["SUS631_00862","2014-07-10","09:14:18","CLY1523 Coleambally 132 - Darlington Point (Bore Pumpers)","Short Rural","Animal","Animal impact",1,241,4.5055487421853999E-4,1.8695222996619901E-6,"N"]
["SUS631_00863","2014-07-10","09:15:00","CBB72 Binnaway","Long Rural","Planned",null,13,273,null,null,"N"]
["SUS631_00864","2014-07-10","09:15:00","CNB42 Rural Nth","Long Rural","Planned",null,2,197,null,null,"N"]
["SUS631_00865","2014-07-10","09:15:00","DNO122 Craboon","Long Rural","Planned",null,3,25,null,null,"N"]
["SUS631_00866","2014-07-10","09:15:00","MCV3B9 Bowraville Rural","Long Rural","Planned",null,13,284.07692307692298,null,null,"N"]
["SUS631_00867","2014-07-10","09:17:00","CBR42 Margretvale","Long Rural","Planned",null,204,301,null,null,"N"]
["SUS631_00868","2014-07-10","09:24:00","BMU1417 Koorawatha/Murringo","Long Rural","Planned",null,10,201,null,null,"N"]
["SUS631_00869","2014-07-10","09:25:00","BLH3B1 Crawford/Girvan/Booral","Short Rural","Planned",null,9,75,null,null,"N"]
["SUS631_00870","2014-07-10","09:27:03","NDA3B3 Gillenbah","Long Rural","Asset failure","LV",1,125,9.2315986544021797E-4,7.3852789235217402E-6,"N"]
["SUS631_00871","2014-07-10","09:30:00","MOU12 Moulamein","Long Rural","Planned",null,2,195,null,null,"N"]
["SUS631_00872","2014-07-10","09:30:00","BBA3B2 Gladstone","Short Rural","Planned",null,5,20,null,null,"N"]
["SUS631_00873","2014-07-10","09:30:00","BERD2 Cuttagee","Short Rural","Planned",null,21,120,null,null,"N"]
["SUS631_00874","2014-07-10","09:30:00","NGN3B1 Glenreagh","Short Rural","Planned",null,12,125,null,null,"N"]
["SUS631_00875","2014-07-10","09:30:00","STF8B1 Nimmitabel","Short Rural","Planned",null,7,220,null,null,"N"]
["SUS631_00876","2014-07-10","09:30:21","WGT8B8 M54 Brewarrina","Long Rural","Planned",null,8,265,null,null,"N"]
["SUS631_00877","2014-07-10","09:30:53","HAT42 Hay 132 - Carrathool","Long Rural","Planned",null,62,305.03225806451599,null,null,"N"]
["SUS631_00878","2014-07-10","09:30:53","CAR2217 Uardry","Short Rural","Planned",null,58,343,null,null,"N"]
["SUS631_00879","2014-07-10","09:30:53","CAR2218 Wyvern","Short Rural","Planned",null,21,339,null,null,"N"]
["SUS631_00880","2014-07-10","09:31:21","BET2 Bethungra Lines 41 and 42","Short Rural","Planned",null,68,380.95588235294099,null,null,"N"]
["SUS631_00881","2014-07-10","09:32:00","KYG3B1 Nth Kyogle No.1","Long Rural","Planned",null,1,112,null,null,"N"]
["SUS631_00882","2014-07-10","09:32:00","BTS8B11 Inverell West","Short Rural","Planned",null,48,349,null,null,"N"]
["SUS631_00883","2014-07-10","09:32:10","MGA3B1 Turners Flat","Short Rural","Weather",null,264,131.81060606060601,6.5055636983637893E-2,4.9355388711076504E-4,"N"]
["SUS631_00884","2014-07-10","09:32:31","MGA3B1 Turners Flat","Short Rural","Weather",null,1,243,4.5429391881786401E-4,1.8695222996619901E-6,"N"]
["SUS631_00885","2014-07-10","09:34:00","CBY804 Channel Nine Rd","Short Rural","Planned",null,1,313,null,null,"N"]
["SUS631_00886","2014-07-10","09:35:00","BBA3B3 Cobbadah","Long Rural","Planned",null,6,5,null,null,"N"]
["SUS631_00887","2014-07-10","09:38:00","JER22 Jerilderie Town","Short Rural","Planned",null,10,229.4,null,null,"N"]
["SUS631_00888","2014-07-10","09:39:00","MRE2M37 Gingham Rd","Short Rural","Planned",null,80,321,null,null,"N"]
["SUS631_00889","2014-07-10","09:40:00","MAH3B4 Nth Bega","Short Rural","Planned",null,5,158,null,null,"N"]
["SUS631_00890","2014-07-10","09:50:00","BWA3B1 Abbotts Falls/Krambach","Long Rural","Planned",null,1,117,null,null,"N"]
["SUS631_00891","2014-07-10","09:57:00","GID22 Rural Nth/Sth/West","Long Rural","Planned",null,10,109,null,null,"N"]
["SUS631_00892","2014-07-10","09:59:56","CST5362 Sth Goulburn/Collector","Long Rural","Asset failure","HV",1,82,6.0559287172878297E-4,7.3852789235217402E-6,"N"]
["SUS631_00893","2014-07-10","10:05:00","GDL3B8 Rural","Short Rural","Planned",null,1,291,null,null,"N"]
["SUS631_00894","2014-07-10","10:06:48","FBS92 Rural East No.1","Short Rural","Third party","Vehicle impact",125,75.207999999999998,1.75753791391224E-2,2.33690287457749E-4,"N"]
["SUS631_00895","2014-07-10","10:30:00","LEE3B5 Wamoon","Short Rural","Planned",null,69,250,null,null,"N"]
["SUS631_00896","2014-07-10","10:41:18","DBS3B8 Margaret Cres","Short Rural","Asset failure","LV",1,80,1.4956178397295899E-4,1.8695222996619901E-6,"N"]
["SUS631_00897","2014-07-10","10:50:00","DUG3B7 Salisbury","Short Rural","Overloads",null,2,25,9.3476114983099496E-5,3.7390445993239802E-6,"N"]
["SUS631_00898","2014-07-10","11:06:00","BBA3B3 Cobbadah","Long Rural","Planned",null,15,7,null,null,"N"]
["SUS631_00899","2014-07-10","11:12:23","IVA1365 Nth East SWER","Short Rural","Other",null,1,345,6.4498519338338704E-4,1.8695222996619901E-6,"N"]
["SUS631_00900","2014-07-10","11:16:00","BBS3B3 Pine Ck Way","Short Rural","Asset failure","HV",3,44,2.4677694355538301E-4,5.60856689898597E-6,"N"]
["SUS631_00901","2014-07-10","11:16:00","BKE8B2 M80 Brewarrina","Short Rural","Animal","Animal impact",1,14,2.61733121952679E-5,1.8695222996619901E-6,"N"]
["SUS631_00902","2014-07-10","11:18:00","PYB32 Forbes","Long Rural","Other",null,3,58,1.2850385326927799E-3,2.2155836770565199E-5,"N"]
["SUS631_00903","2014-07-10","11:25:00","MYT3B6 Moruya Nth","Short Rural","Vegetation","Blow-in/Fall-in",6,10,1.1217133797971899E-4,1.1217133797971899E-5,"N"]
["SUS631_00904","2014-07-10","11:30:00","BBA3B2 Gladstone","Short Rural","Planned",null,4,10,null,null,"N"]
["SUS631_00905","2014-07-10","11:43:21","LEE3B5 Wamoon","Short Rural","Animal","Animal impact",14,102,2.6696778439173202E-3,2.61733121952679E-5,"N"]
["SUS631_00906","2014-07-10","11:49:00","CBY806 Coleambally Town","Short Rural","Planned",null,10,141,null,null,"N"]
["SUS631_00907","2014-07-10","11:53:38","GDM5422 Michelago","Long Rural","Asset failure","HV",1,90,6.6467510311695702E-4,7.3852789235217402E-6,"N"]
["SUS631_00908","2014-07-10","12:35:00","SWT12 Stewarts Mt","Long Rural","Other",null,12,84,7.44436115490992E-3,8.8623347082260903E-5,"N"]
["SUS631_00909","2014-07-10","12:45:00","RGL3B7 Bellingen Rural","Short Rural","Vegetation","Blow-in/Fall-in",1359,59,0.14990016750919799,2.5406808052406498E-3,"N"]
["SUS631_00910","2014-07-10","12:45:08","GBN6222 Taralga","Long Rural","Vegetation","Blow-in/Fall-in",81,267.28395061728401,0.15989128869424599,5.9820759280526095E-4,"N"]
["SUS631_00911","2014-07-10","12:45:28","RGL3B7 Bellingen Rural","Short Rural","Vegetation","Blow-in/Fall-in",43,229,1.84091860847716E-2,8.0389458885465602E-5,"N"]
["SUS631_00912","2014-07-10","13:00:00","FFD3381 Nabiac","Long Rural","Planned",null,1,30,null,null,"N"]
["SUS631_00913","2014-07-10","13:25:00","MWN3B1 Uki","Long Rural","Asset failure","LV",54,89,3.5493650506445498E-2,3.9880506187017398E-4,"N"]
["SUS631_00914","2014-07-10","13:38:00","GDI4B1 Waggamba East","Long Rural","Planned",null,1,22,null,null,"N"]
["SUS631_00915","2014-07-10","13:40:08","BPM3B3 Oxley","Urban","Asset failure","HV",65,127,4.3119659012557203E-2,3.3952487411462401E-4,"N"]
["SUS631_00916","2014-07-10","13:46:00","BBA3B3 Cobbadah","Long Rural","Planned",null,14,14,null,null,"N"]
["SUS631_00917","2014-07-10","13:57:00","PPM3B3 Smiths Lake","Short Rural","Asset failure","LV",220,77,3.1669707756274097E-2,4.1129490592563798E-4,"N"]
["SUS631_00918","2014-07-10","14:02:04","BTS8B10 Tingha","Short Rural","Vegetation","Grow-in",1,78,1.45822739373635E-4,1.8695222996619901E-6,"N"]
["SUS631_00919","2014-07-10","14:11:00","WOO8642 Woodlawn","Long Rural","Other",null,8,62,3.6630983460667899E-3,5.9082231388173902E-5,"N"]
["SUS631_00920","2014-07-10","14:13:10","CUD3B3 Duranbah","Short Rural","Animal","Animal impact",543,44,4.4666626783524302E-2,1.0151506087164601E-3,"N"]
["SUS631_00921","2014-07-10","14:13:10","MWN3B5 Tumbulgum","Short Rural","Animal","Animal impact",26,44,2.1387335108133199E-3,4.8607579791211702E-5,"N"]
["SUS631_00922","2014-07-10","14:20:51","OBR3B5 Oberon Town","Short Rural","Asset failure","LV",57,189,2.01403637342586E-2,1.06562771080733E-4,"N"]
["SUS631_00923","2014-07-10","14:25:00","MCR3B3 Hilldale","Short Rural","Asset failure","LV",3,90,5.0477102090873698E-4,5.60856689898597E-6,"N"]
["SUS631_00924","2014-07-10","14:27:00","PKH52 Alectown","Long Rural","Asset failure","HV",2,57,8.4192179728147904E-4,1.4770557847043501E-5,"N"]
["SUS631_00925","2014-07-10","14:35:00","BBA3B3 Cobbadah","Long Rural","Planned",null,7,39,null,null,"N"]
["SUS631_00926","2014-07-10","14:39:54","WGA3B3 Wooli","Short Rural","Asset failure","HV",589,186.735144312394,0.20562314917292299,1.1011486345009101E-3,"N"]
["SUS631_00927","2014-07-10","15:00:22","RGL3B7 Bellingen Rural","Short Rural","Vegetation","Blow-in/Fall-in",2,225,8.4128503484789605E-4,3.7390445993239802E-6,"N"]
["SUS631_00928","2014-07-10","15:00:22","RGL3B7 Bellingen Rural","Short Rural","Vegetation","Blow-in/Fall-in",1357,79.642593957258697,0.20204862253597,2.5369417606413199E-3,"N"]
["SUS631_00929","2014-07-10","15:19:29","STF8B1 Nimmitabel","Short Rural","Asset failure","LV",2,1119,4.1839909066435296E-3,3.7390445993239802E-6,"N"]
["SUS631_00930","2014-07-10","15:23:09","YAS6232 Wee Jasper","Long Rural","Weather",null,6,117,5.1844658043122601E-3,4.4311673541130499E-5,"N"]
["SUS631_00931","2014-07-10","15:23:46","GRS3B1 Allyn River","Short Rural","Weather",null,7,314,4.1092100146570502E-3,1.3086656097633901E-5,"N"]
["SUS631_00932","2014-07-10","15:28:00","FIN42 Berrigan","Long Rural","Weather",null,1,8,5.9082231388173902E-5,7.3852789235217402E-6,"N"]
["SUS631_00933","2014-07-10","15:44:09","SMN3B1 Yarrahapinni/Frederickton","Short Rural","Vegetation","Grow-in",1,118,2.20603631360115E-4,1.8695222996619901E-6,"N"]
["SUS631_00934","2014-07-10","17:00:15","YAM3B3 Yamba Sth","Short Rural","Asset failure","LV",119,142,3.1591187819688303E-2,2.2247315365977701E-4,"N"]
["SUS631_00935","2014-07-10","17:26:24","CDN52 Tottenham","Long Rural","Asset failure","LV",1,37,2.7325532017030501E-4,7.3852789235217402E-6,"N"]
["SUS631_00936","2014-07-10","17:35:00","MLN3B4 Townsend","Short Rural","Asset failure","LV",110,18,3.70165415333074E-3,2.0564745296281899E-4,"N"]
["SUS631_00937","2014-07-10","17:59:18","PAM3B1 Bald Hills No.3","Long Rural","Weather",null,1,890,6.5728982419343499E-3,7.3852789235217402E-6,"N"]
["SUS631_00938","2014-07-10","18:30:32","BBS3B3 Pine Ck Way","Short Rural","Asset failure","LV",6,92,1.03197630941342E-3,1.1217133797971899E-5,"N"]
["SUS631_00939","2014-07-10","18:46:05","QSH5252 Dane St","Short Rural","Animal","Animal impact",1,64,1.19649427178367E-4,1.8695222996619901E-6,"N"]
["SUS631_00940","2014-07-10","18:50:24","GNF12 Rural No.1","Long Rural","Asset failure","HV",1,67,4.9481368787595702E-4,7.3852789235217402E-6,"N"]
["SUS631_00941","2014-07-10","19:05:27","DUN3B3 Nimbin","Short Rural","Overloads",null,3,121,6.7863659477730297E-4,5.60856689898597E-6,"N"]
["SUS631_00942","2014-07-10","20:21:17","GDG3B3 Town East","Short Rural","Asset failure","Zone substation",98,97,1.7771678980586899E-2,1.83213185366875E-4,"N"]
["SUS631_00943","2014-07-10","21:22:02","BTS8B10 Tingha","Short Rural","Overloads",null,15,61,1.7106129041907199E-3,2.8042834494929901E-5,"N"]
["SUS631_00944","2014-07-10","22:48:09","HAT42 Hay 132 - Carrathool","Long Rural","Animal","Animal impact",4,511,1.50955101196784E-2,2.9541115694087002E-5,"N"]
["SUS631_00945","2014-07-11","00:00:32","ELI3B8 Bexhill","Short Rural","Animal","Animal impact",8,104,1.5554425533187801E-3,1.49561783972959E-5,"N"]
["SUS631_00946","2014-07-11","00:12:48","WBN3B2 Evans Head Sth","Short Rural","Other",null,985,131,0.24123380993688501,1.8414794651670601E-3,"N"]
["SUS631_00947","2014-07-11","00:12:48","WBN3B3 Coraki","Short Rural","Other",null,838,131,0.205232419012294,1.56665968711675E-3,"N"]
["SUS631_00948","2014-07-11","00:12:48","WBN3B4 Broadwater","Short Rural","Other",null,325,130,7.8987317160719106E-2,6.0759474739014699E-4,"N"]
["SUS631_00949","2014-07-11","00:12:48","WBN3B5 Evans Head Nth","Short Rural","Other",null,919,131,0.22506992013400701,1.7180909933893699E-3,"N"]
["SUS631_00950","2014-07-11","00:12:48","WBN3B6 Swan Bay","Short Rural","Other",null,385,132,9.5009123268822396E-2,7.1976608536986595E-4,"N"]
["SUS631_00951","2014-07-11","00:12:48","WBN3B7 Gap Rd","Short Rural","Other",null,16,132,3.9484310968861203E-3,2.9912356794591801E-5,"N"]
["SUS631_00952","2014-07-11","00:12:48","WBN3B8 Woodburn/Aux TX2","Short Rural","Other",null,350,132,8.6371930244383999E-2,6.5433280488169697E-4,"N"]
["SUS631_00953","2014-07-11","01:17:46","NAN3B1 Eurongilly","Short Rural","Animal","Animal impact",3,551,3.09032036134127E-3,5.60856689898597E-6,"N"]
["SUS631_00954","2014-07-11","05:20:42","MYT3B2 Kiora","Short Rural","Animal","Animal impact",115,86,1.84895755436571E-2,2.14995064461129E-4,"N"]
["SUS631_00955","2014-07-11","06:00:06","BTS8B4 Wallangra/Bukkulla","Long Rural","Other",null,69,104.04347826087,5.30189173919626E-2,5.0958424572299999E-4,"N"]
["SUS631_00956","2014-07-11","06:05:00","BHL42 Railwaytown","Short Rural","Other",null,66,8,9.8710777422153094E-4,1.2338847177769099E-4,"N"]
["SUS631_00957","2014-07-11","06:07:00","HAM3B5 Edward St","Urban","Planned",null,56,66,null,null,"N"]
["SUS631_00958","2014-07-11","06:07:46","AVE3B6 Wardell","Short Rural","Animal","Animal impact",1,138,2.57994077353355E-4,1.8695222996619901E-6,"N"]
["SUS631_00959","2014-07-11","06:15:42","WBN3B5 Evans Head Nth","Short Rural","Asset failure","LV",75,201,2.8183048667404498E-2,1.4021417247464901E-4,"N"]
["SUS631_00960","2014-07-11","06:23:02","BAL3B13 Ballina Heights","Short Rural","Animal","Animal impact",2,92,3.4399210313780602E-4,3.7390445993239802E-6,"N"]
["SUS631_00961","2014-07-11","06:43:57","DNO122 Craboon","Long Rural","Other",null,6,140,6.2036342957582603E-3,4.4311673541130499E-5,"N"]
["SUS631_00962","2014-07-11","06:44:59","DTN24 Mourquong","Short Rural","Weather",null,7,187,2.44720469025755E-3,1.3086656097633901E-5,"N"]
["SUS631_00963","2014-07-11","07:08:10","GID42 Town No.2","Short Rural","Asset failure","LV",1,268,5.0103197630941296E-4,1.8695222996619901E-6,"N"]
["SUS631_00964","2014-07-11","07:46:19","URA3B3 Uralla Town Sth East","Short Rural","Asset failure","LV",1,123,2.2995124285842499E-4,1.8695222996619901E-6,"N"]
["SUS631_00965","2014-07-11","08:30:00","SLI3B10 Jiggi","Short Rural","Planned",null,4,194,null,null,"N"]
["SUS631_00966","2014-07-11","08:31:00","WRA2W10 Kooloona/Gragin","Short Rural","Planned",null,7,212,null,null,"N"]
["SUS631_00967","2014-07-11","08:31:00","WRA2W11 Warialda Town","Short Rural","Planned",null,30,213,null,null,"N"]
["SUS631_00968","2014-07-11","08:36:00","EWE3B1 Brunswick No.1","Short Rural","Planned",null,2,694,null,null,"N"]
["SUS631_00969","2014-07-11","08:45:00","SWR3B4 Arakoon","Short Rural","Planned",null,103,170,null,null,"N"]
["SUS631_00970","2014-07-11","08:50:00","DUN3B4 Mt Nardi","Short Rural","Planned",null,72,370.375,null,null,"N"]
["SUS631_00971","2014-07-11","08:56:00","ALJ8B7 Macauley St CBD","Urban","Planned",null,22,293,null,null,"N"]
["SUS631_00972","2014-07-11","09:00:00","BTS8B5 Kings Plains","Long Rural","Planned",null,11,370,null,null,"N"]
["SUS631_00973","2014-07-11","09:00:00","BYA7882 Comboyne","Short Rural","Planned",null,1,191,null,null,"N"]
["SUS631_00974","2014-07-11","09:00:07","DOR3B1 Nth Dorrigo","Long Rural","Planned",null,74,352.243243243243,null,null,"N"]
["SUS631_00975","2014-07-11","09:01:00","CBR42 Margretvale","Long Rural","Planned",null,3,285,null,null,"N"]
["SUS631_00976","2014-07-11","09:01:00","HAM3B8 Lake Albert Rd","Short Rural","Planned",null,68,354.47058823529397,null,null,"N"]
["SUS631_00977","2014-07-11","09:01:07","JNR4081 Quarry","Short Rural","Planned",null,214,324.18691588784998,null,null,"N"]
["SUS631_00978","2014-07-11","09:02:00","MRE2M17 Western Rural","Long Rural","Planned",null,18,50,null,null,"N"]
["SUS631_00979","2014-07-11","09:02:00","YAR3B2 Troy","Long Rural","Planned",null,5,113,null,null,"N"]
["SUS631_00980","2014-07-11","09:05:00","BOO1042 Kenyu","Long Rural","Planned",null,7,95,null,null,"N"]
["SUS631_00981","2014-07-11","09:06:00","WGN72 Yeoval","Long Rural","Asset failure","HV",1,334,2.4666831604562602E-3,7.3852789235217402E-6,"N"]
["SUS631_00982","2014-07-11","09:06:00","FBS82 Forbes Town No.1","Short Rural","Planned",null,15,282,null,null,"N"]
["SUS631_00983","2014-07-11","09:12:00","RVL3K1 Rappville","Long Rural","Planned",null,2,108,null,null,"N"]
["SUS631_00984","2014-07-11","09:13:00","RAG3B6 Limekilns","Long Rural","Planned",null,9,132,null,null,"N"]
["SUS631_00985","2014-07-11","09:15:00","MUD72 Eurunderee","Short Rural","Planned",null,21,241,null,null,"N"]
["SUS631_00986","2014-07-11","09:16:00","DEN62 Nth Rural","Long Rural","Planned",null,1,331,null,null,"N"]
["SUS631_00987","2014-07-11","09:17:00","WGN72 Yeoval","Long Rural","Planned",null,7,176,null,null,"N"]
["SUS631_00988","2014-07-11","09:18:00","GLR3B5 Barrington","Long Rural","Planned",null,24,131,null,null,"N"]
["SUS631_00989","2014-07-11","09:20:00","BWA3B1 Abbotts Falls/Krambach","Long Rural","Planned",null,2,160,null,null,"N"]
["SUS631_00990","2014-07-11","09:20:00","GGB112 Gulargambone","Long Rural","Planned",null,9,99,null,null,"N"]
["SUS631_00991","2014-07-11","09:24:00","SWT12 Stewarts Mt","Long Rural","Planned",null,1,18,null,null,"N"]
["SUS631_00992","2014-07-11","09:30:00","BRI Braidwood","Long Rural","Planned",null,6,141.166666666667,null,null,"N"]
["SUS631_00993","2014-07-11","09:30:00","CRO5522 Tuena Redground","Long Rural","Planned",null,13,201,null,null,"N"]
["SUS631_00994","2014-07-11","09:30:00","WGT8B8 M54 Brewarrina","Long Rural","Planned",null,1,270,null,null,"N"]
["SUS631_00995","2014-07-11","09:30:00","BHL72 West","Short Rural","Planned",null,144,375,null,null,"N"]
["SUS631_00996","2014-07-11","09:30:00","SWR3B6 Stuarts Pt","Short Rural","Planned",null,63,46,null,null,"N"]
["SUS631_00997","2014-07-11","09:30:00","THA2224 Bromley Rd","Short Rural","Planned",null,4,150,null,null,"N"]
["SUS631_00998","2014-07-11","09:30:00","WWA8B2 M7 Yarrie Lake","Short Rural","Asset failure","HV",3,180,1.0095420418174701E-3,5.60856689898597E-6,"N"]
["SUS631_00999","2014-07-11","09:32:00","GID32 Rural East","Long Rural","Planned",null,6,98,null,null,"N"]
["SUS631_01000","2014-07-11","09:34:09","MTG4B1 Tibooburra Backbone Line","Long Rural","Other",null,21,194.95238095238099,3.0235331912898001E-2,1.55090857393957E-4,"N"]
["SUS631_01001","2014-07-11","09:35:00","ORS3B7 Anson St Sth","Short Rural","Planned",null,12,273,null,null,"N"]
["SUS631_01002","2014-07-11","09:35:11","BBA3B4 Barraba","Short Rural","Planned",null,28,31.678571428571399,null,null,"N"]
["SUS631_01003","2014-07-11","09:36:00","BNK24798 Koorainghat","Short Rural","Planned",null,3,279,null,null,"N"]
["SUS631_01004","2014-07-11","09:36:22","THA2224 Bromley Rd","Short Rural","Animal","Animal impact",2,112,4.1877299512428601E-4,3.7390445993239802E-6,"N"]
["SUS631_01005","2014-07-11","09:42:00","YAR3B2 Troy","Long Rural","Planned",null,1,282,null,null,"N"]
["SUS631_01006","2014-07-11","09:50:00","MOU12 Moulamein","Long Rural","Planned",null,1,282,null,null,"N"]
["SUS631_01007","2014-07-11","09:50:00","TEM1 No.1 Lines 26/27","Long Rural","Planned",null,1,269,null,null,"N"]
["SUS631_01008","2014-07-11","09:55:00","MRE2M37 Gingham Rd","Short Rural","Asset failure","HV",9,92,1.5479644641201299E-3,1.68257006969579E-5,"N"]
["SUS631_01009","2014-07-11","09:55:31","WGM4981 Mt George/Elands","Long Rural","Asset failure","HV",3,350,7.7545428696978299E-3,2.2155836770565199E-5,"N"]
["SUS631_01010","2014-07-11","10:01:00","HAT42 Hay 132 - Carrathool","Long Rural","Planned",null,3,184,null,null,"N"]
["SUS631_01011","2014-07-11","10:04:00","MAH3B3 Glebe","Short Rural","Planned",null,8,280,null,null,"N"]
["SUS631_01012","2014-07-11","10:05:00","OBR3B2 Black Springs","Long Rural","Planned",null,33,129,null,null,"N"]
["SUS631_01013","2014-07-11","10:05:00","STF8B1 Nimmitabel","Short Rural","Planned",null,10,213,null,null,"N"]
["SUS631_01014","2014-07-11","10:14:04","WBN3B3 Coraki","Short Rural","Animal","Animal impact",40,79,5.90769046693189E-3,7.4780891986479605E-5,"N"]
["SUS631_01015","2014-07-11","10:14:04","WBN3B3 Coraki","Short Rural","Asset failure","HV",10,316,5.90769046693189E-3,1.8695222996619901E-5,"N"]
["SUS631_01016","2014-07-11","10:18:32","GGG22 Tallawang","Short Rural","Weather",null,3,176,9.8710777422153094E-4,5.60856689898597E-6,"N"]
["SUS631_01017","2014-07-11","10:30:00","TSH3B8 Hillcrest","Short Rural","Planned",null,2,30,null,null,"N"]
["SUS631_01018","2014-07-11","10:32:00","SWT12 Stewarts Mt","Long Rural","Planned",null,1,22,null,null,"N"]
["SUS631_01019","2014-07-11","11:02:00","BBA3B4 Barraba","Short Rural","Planned",null,5,26,null,null,"N"]
["SUS631_01020","2014-07-11","11:05:00","TXS3X06 Yelarbon","Long Rural","Other",null,1,65,4.8004313002891302E-4,7.3852789235217402E-6,"N"]
["SUS631_01021","2014-07-11","11:36:00","LOC3786 Urana","Long Rural","Asset failure","HV",7,372,1.9231266316850602E-2,5.16969524646522E-5,"N"]
["SUS631_01022","2014-07-11","11:38:48","CDN82 Condobolin Town No.1","Urban","Asset failure","LV",49,80,2.0475961638912701E-2,2.5594952048640902E-4,"N"]
["SUS631_01023","2014-07-11","11:46:48","GBN6222 Taralga","Long Rural","Asset failure","HV",18,38,5.0515307836888701E-3,1.32935020623391E-4,"N"]
["SUS631_01024","2014-07-11","12:01:00","RVL3K1 Rappville","Long Rural","Planned",null,1,69,null,null,"N"]
["SUS631_01025","2014-07-11","12:26:20","CBL3B1 Premer","Long Rural","Animal","Animal impact",1,68,5.0219896679947905E-4,7.3852789235217402E-6,"N"]
["SUS631_01026","2014-07-11","12:30:00","PSK3B1 Dondingalong","Short Rural","Weather",null,2,82,3.0660165714456602E-4,3.7390445993239802E-6,"N"]
["SUS631_01027","2014-07-11","13:06:00","WCK519 Russell/Henry","Short Rural","Planned",null,39,60,null,null,"N"]
["SUS631_01028","2014-07-11","13:26:00","UQT8B5 Uranquinty East","Short Rural","Other",null,1,67,1.25257994077353E-4,1.8695222996619901E-6,"N"]
["SUS631_01029","2014-07-11","13:31:00","TXS2X04 Glen Lyon","Long Rural","Planned",null,1,99,null,null,"N"]
["SUS631_01030","2014-07-11","13:35:00","BBA3B1 Burindi","Long Rural","Planned",null,22,40,null,null,"N"]
["SUS631_01031","2014-07-11","13:37:00","BBA3B1 Burindi","Long Rural","Planned",null,4,23,null,null,"N"]
["SUS631_01032","2014-07-11","13:49:00","PKT3B3 Telescope","Short Rural","Asset failure","HV",1,41,7.6650414286141599E-5,1.8695222996619901E-6,"N"]
["SUS631_01033","2014-07-11","14:07:00","RAG3B11 Gilmour St","Short Rural","Planned",null,5,24,null,null,"N"]
["SUS631_01034","2014-07-11","14:09:00","BODA2 Nerrigundah","Short Rural","Other",null,2,66,2.4677694355538301E-4,3.7390445993239802E-6,"N"]
["SUS631_01035","2014-07-11","15:00:00","JNR4081 Quarry","Short Rural","Planned",null,2,17,null,null,"N"]
["SUS631_01036","2014-07-11","15:05:00","DUG3B1 Clarencetown","Short Rural","Weather",null,1,67,1.25257994077353E-4,1.8695222996619901E-6,"N"]
["SUS631_01037","2014-07-11","16:02:02","COW32 Woodstock","Long Rural","Animal","Animal impact",150,110.8,0.12274333570893101,1.10779183852826E-3,"N"]
["SUS631_01038","2014-07-11","17:24:00","MGI2U23 Boomi Rd","Long Rural","Asset failure","LV",1,43,3.17566993711435E-4,7.3852789235217402E-6,"N"]
["SUS631_01039","2014-07-11","18:31:28","EME1E10 Deepwater","Short Rural","Asset failure","HV",1,70,1.3086656097633899E-4,1.8695222996619901E-6,"N"]
["SUS631_01040","2014-07-11","19:20:31","WTR2Z07 Moomin Ck","Short Rural","Asset failure","HV",2,68,2.5425503275403098E-4,3.7390445993239802E-6,"N"]
["SUS631_01041","2014-07-11","19:45:24","HAT22 Hay 132 - Hay Town (Maude)","Long Rural","Animal","Animal impact",5,67,2.4740684393797798E-3,3.6926394617608703E-5,"N"]
["SUS631_01042","2014-07-11","20:32:42","NAN3B1 Eurongilly","Short Rural","Animal","Animal impact",3,90,5.0477102090873698E-4,5.60856689898597E-6,"N"]
["SUS631_01043","2014-07-11","22:04:22","WWA8B6 M25 Wee Waa Town","Short Rural","Asset failure","LV",78,141,2.0561006251682602E-2,1.45822739373635E-4,"N"]
["SUS631_01044","2014-07-12","00:58:23","BPM3B4 Hastings River Dr","Urban","Asset failure","HV",20,157,1.6401663149537199E-2,1.04469192035269E-4,"N"]
["SUS631_01045","2014-07-12","03:32:32","BBA3B3 Cobbadah","Long Rural","Asset failure","HV",49,129.75510204081601,4.6955603395751298E-2,3.6187866725256499E-4,"N"]
["SUS631_01046","2014-07-12","06:43:00","RKF3B4 Wauchope Town","Urban","Asset failure","LV",1,87,4.54440985353419E-4,5.2234596017634396E-6,"N"]
["SUS631_01047","2014-07-12","07:14:24","CNK3B4 Lansdowne","Short Rural","Asset failure","HV",10,214,4.0007777212766604E-3,1.8695222996619901E-5,"N"]
["SUS631_01048","2014-07-12","08:00:05","WGN82 Neurea","Short Rural","Other",null,1,107,2.0003888606383299E-4,1.8695222996619901E-6,"N"]
["SUS631_01049","2014-07-12","08:15:00","WWL8B4 West Wyalong Sth West Town","Short Rural","Planned",null,6,342,null,null,"N"]
["SUS631_01050","2014-07-12","08:36:00","DUG3B7 Salisbury","Short Rural","Asset failure","LV",1,94,1.75735096168227E-4,1.8695222996619901E-6,"N"]
["SUS631_01051","2014-07-12","08:36:49","NYN52 Nyngan West","Long Rural","Asset failure","LV",20,208,3.0722760321850499E-2,1.47705578470435E-4,"N"]
["SUS631_01052","2014-07-12","09:15:46","WWA8B6 M25 Wee Waa Town","Short Rural","Asset failure","LV",78,180,2.6248093087254301E-2,1.45822739373635E-4,"N"]
["SUS631_01053","2014-07-12","09:28:10","DUN3B3 Nimbin","Short Rural","Overloads",null,4,140,1.04693248781071E-3,7.4780891986479603E-6,"N"]
["SUS631_01054","2014-07-12","09:49:00","EUL72 Sth Dubbo","Short Rural","Planned",null,17,240,null,null,"N"]
["SUS631_01055","2014-07-12","10:12:16","PAM3B1 Bald Hills No.3","Long Rural","Asset failure","LV",4,94,2.7768648752441801E-3,2.9541115694087002E-5,"N"]
["SUS631_01056","2014-07-12","10:18:10","CCN3B3 Holbrook","Short Rural","Asset failure","LV",1,177,3.3090544704017201E-4,1.8695222996619901E-6,"N"]
["SUS631_01057","2014-07-12","11:39:45","AVE3B3 Wollongbar","Short Rural","Asset failure","HV",1,110,2.0564745296281899E-4,1.8695222996619901E-6,"N"]
["SUS631_01058","2014-07-12","12:07:26","DEN62 Nth Rural","Long Rural","Asset failure","LV",1,181,1.33673548515744E-3,7.3852789235217402E-6,"N"]
["SUS631_01059","2014-07-12","13:45:31","WBN3B8 Woodburn/Aux TX2","Short Rural","Asset failure","HV",3,251,1.40775029164548E-3,5.60856689898597E-6,"N"]
["SUS631_01060","2014-07-12","15:14:03","NAN3B1 Eurongilly","Short Rural","Other",null,52,39,3.7913912237145199E-3,9.7215159582423499E-5,"N"]
["SUS631_01061","2014-07-12","15:32:39","PCR32 Adjungbilly","Short Rural","Other",null,39,232.05128205128199,1.6919176811941002E-2,7.2911369686817597E-5,"N"]
["SUS631_01062","2014-07-12","15:48:15","WBN3B8 Woodburn/Aux TX2","Short Rural","Asset failure","HV",20,127,4.7485866411414602E-3,3.7390445993239802E-5,"N"]
["SUS631_01063","2014-07-12","16:31:49","BAR32 Gonn","Short Rural","Asset failure","HV",12,84,1.88447847805929E-3,2.24342675959439E-5,"N"]
["SUS631_01064","2014-07-12","16:44:40","DUG3B1 Clarencetown","Short Rural","Asset failure","LV",1,239,4.4681582961921597E-4,1.8695222996619901E-6,"N"]
["SUS631_01065","2014-07-12","16:45:00","STR3B2 Wards River","Short Rural","Animal","Animal impact",37,94,6.5021985582243997E-3,6.9172325087493594E-5,"N"]
["SUS631_01066","2014-07-12","16:58:09","THA2230 Brown Rd","Short Rural","Asset failure","HV",39,155,1.1301262301456699E-2,7.2911369686817597E-5,"N"]
["SUS631_01067","2014-07-12","17:01:46","GBN5752 Gibson St","Short Rural","Third party","Vehicle impact",1,96,1.7947414076755099E-4,1.8695222996619901E-6,"N"]
["SUS631_01068","2014-07-12","17:01:48","ETH3B8 Scott/Goonoo","Short Rural","Asset failure","LV",1,62,1.15910382579043E-4,1.8695222996619901E-6,"N"]
["SUS631_01069","2014-07-12","17:25:56","LEE3B7 Corbie Hill","Short Rural","Animal","Animal impact",8,63,9.4223923902964296E-4,1.49561783972959E-5,"N"]
["SUS631_01070","2014-07-12","18:19:54","BLH3B3 Bulahdelah Central/Wootton/Seal Rocks","Long Rural","Asset failure","LV",1,190,1.40320299546913E-3,7.3852789235217402E-6,"N"]
["SUS631_01071","2014-07-12","19:14:20","ELI3B5 Oliver Ave","Short Rural","Animal","Animal impact",27,39,1.9686069815440799E-3,5.0477102090873703E-5,"N"]
["SUS631_01072","2014-07-12","19:17:27","BJN8B2 M9 Carbeen/Merah Nth","Long Rural","Asset failure","HV",2,176,2.5996181810796501E-3,1.4770557847043501E-5,"N"]
["SUS631_01073","2014-07-12","19:23:03","HAN3B4 Hanwood Ave","Short Rural","Asset failure","LV",70,115,1.5049654512279E-2,1.3086656097633899E-4,"N"]
["SUS631_01074","2014-07-12","23:37:39","QSH5302 Karri Cres","Short Rural","Asset failure","LV",40,102,7.6276509826209201E-3,7.4780891986479605E-5,"N"]
["SUS631_01075","2014-07-13","00:57:24","BYA7881 Yarras","Short Rural","Third party","Fire",324,37,2.24118333283479E-2,6.0572522509048498E-4,"N"]
["SUS631_01076","2014-07-13","00:57:24","BYA7882 Comboyne","Short Rural","Third party","Fire",420,37,2.9052376536747301E-2,7.8519936585803602E-4,"N"]
["SUS631_01077","2014-07-13","00:57:24","KEW3B2 Lorne","Short Rural","Third party","Fire",63,37,4.3578564805121E-3,1.17779904878705E-4,"N"]
["SUS631_01078","2014-07-13","06:30:00","RKF3B4 Wauchope Town","Urban","Planned",null,54,183,null,null,"N"]
["SUS631_01079","2014-07-13","06:39:23","KYG3B5 Casino Rd","Long Rural","Asset failure","HV",20,274,4.0471328500899198E-2,1.47705578470435E-4,"N"]
["SUS631_01080","2014-07-13","06:46:12","BWA3B1 Abbotts Falls/Krambach","Long Rural","Animal","Animal impact",6,90,3.9880506187017399E-3,4.4311673541130499E-5,"N"]
["SUS631_01081","2014-07-13","08:00:00","SLI3B9 City Centre No.1","Urban","Planned",null,4,240,null,null,"N"]
["SUS631_01082","2014-07-13","08:08:00","BTS8B6 Inverell East","Short Rural","Planned",null,50,269,null,null,"N"]
["SUS631_01083","2014-07-13","08:31:00","RKF3B4 Wauchope Town","Urban","Planned",null,25,249,null,null,"N"]
["SUS631_01084","2014-07-13","08:33:00","ELI3B3 Ross St","Short Rural","Planned",null,115,384,null,null,"N"]
["SUS631_01085","2014-07-13","08:33:00","LIU3B5 Lismore Heights","Short Rural","Planned",null,149,384,null,null,"N"]
["SUS631_01086","2014-07-13","08:33:34","QSH5312 Wirilda Cres","Urban","Planned",null,98,414.09183673469403,null,null,"N"]
["SUS631_01087","2014-07-13","09:04:00","HAT42 Hay 132 - Carrathool","Long Rural","Other",null,8,54,3.1904404949613901E-3,5.9082231388173902E-5,"N"]
["SUS631_01088","2014-07-13","09:42:00","BPM3B9 Nth Shore","Short Rural","Asset failure","LV",125,84,1.96299841464509E-2,2.33690287457749E-4,"N"]
["SUS631_01089","2014-07-13","09:57:29","ATA3B1 Attunga","Short Rural","Other",null,23,176,7.5678262690317402E-3,4.29990128922258E-5,"N"]
["SUS631_01090","2014-07-13","10:57:52","GRS3B2 Paterson River","Short Rural","Asset failure","HV",1,84,1.57039873171607E-4,1.8695222996619901E-6,"N"]
["SUS631_01091","2014-07-13","11:11:00","BAL3B3 Ballina Central No.2","Urban","Asset failure","LV",1,60,3.1340757610580599E-4,5.2234596017634396E-6,"N"]
["SUS631_01092","2014-07-13","11:13:32","JER42 Hartwood","Long Rural","Asset failure","HV",129,223,0.21245231879295001,9.5270098113430499E-4,"N"]
["SUS631_01093","2014-07-13","11:48:38","KEW3B3 Middle Brother","Short Rural","Vegetation","Blow-in/Fall-in",23,75,3.2249259669169298E-3,4.29990128922258E-5,"N"]
["SUS631_01094","2014-07-13","11:55:27","MGE3B2 Bonalbo Rd","Short Rural","Asset failure","HV",13,262,6.3675929526487403E-3,2.4303789895605898E-5,"N"]
["SUS631_01095","2014-07-13","13:00:43","ELI3B4 Lynwood","Short Rural","Asset failure","LV",10,144,2.6921121115132699E-3,1.8695222996619901E-5,"N"]
["SUS631_01096","2014-07-13","13:25:33","YAS6232 Wee Jasper","Long Rural","Overloads",null,1,140,1.0339390492930399E-3,7.3852789235217402E-6,"N"]
["SUS631_01097","2014-07-13","13:27:49","MGA3B2 Willawarrin","Long Rural","Vegetation","Blow-in/Fall-in",321,84.616822429906506,0.20059894612069801,2.3706745344504801E-3,"N"]
["SUS631_01098","2014-07-13","13:36:28","KOO1711 Kooringal Rd","Short Rural","Asset failure","HV",38,199,1.4137327630043999E-2,7.1041847387155602E-5,"N"]
["SUS631_01099","2014-07-13","13:48:43","BAL3B3 Ballina Central No.2","Urban","Asset failure","LV",1,73,3.8131255092873099E-4,5.2234596017634396E-6,"N"]
["SUS631_01100","2014-07-13","14:02:14","GNF42 Rural No.2","Long Rural","Other",null,3,101,2.2377395138270901E-3,2.2155836770565199E-5,"N"]
["SUS631_01101","2014-07-13","14:17:00","RKF3B4 Wauchope Town","Urban","Animal","Animal impact",25,20,2.61172980088172E-3,1.3058649004408601E-4,"N"]
["SUS631_01102","2014-07-13","15:24:19","AVE3B6 Wardell","Short Rural","Asset failure","LV",1,74,1.38344650174987E-4,1.8695222996619901E-6,"N"]
["SUS631_01103","2014-07-13","15:24:31","SWR3B6 Stuarts Pt","Short Rural","Vegetation","Blow-in/Fall-in",1,174,3.2529688014118599E-4,1.8695222996619901E-6,"N"]
["SUS631_01104","2014-07-13","16:51:29","GNI3B7 Glen Innes Northern Town","Short Rural","Animal","Animal impact",1,42,7.8519936585803594E-5,1.8695222996619901E-6,"N"]
["SUS631_01105","2014-07-13","17:03:39","WWA8B3 M9 Merah North/Doreen Ln","Short Rural","Vegetation","Blow-in/Fall-in",6,273.66666666666703,3.0697556160449902E-3,1.1217133797971899E-5,"N"]
["SUS631_01106","2014-07-13","17:03:39","WWA8B3 M9 Merah North/Doreen Ln","Short Rural","Vegetation","Blow-in/Fall-in",135,105.148148148148,2.6537869043701999E-2,2.5238551045436898E-4,"N"]
["SUS631_01107","2014-07-13","17:19:53","BPM3B9 Nth Shore","Short Rural","Asset failure","LV",125,72,1.68257006969579E-2,2.33690287457749E-4,"N"]
["SUS631_01108","2014-07-13","18:11:00","BHL72 West","Short Rural","Animal","Animal impact",148,207,5.7274685172444703E-2,2.7668930034997497E-4,"N"]
["SUS631_01109","2014-07-13","18:13:12","JER42 Hartwood","Long Rural","Animal","Animal impact",9,118,7.8431662167800908E-3,6.6467510311695705E-5,"N"]
["SUS631_01110","2014-07-13","18:18:43","GRN3B2 Carrs Ck/Copmanhurst","Long Rural","Weather",null,22,98,1.59226613591129E-2,1.62476136317478E-4,"N"]
["SUS631_01111","2014-07-13","18:21:18","GID22 Rural Nth/Sth/West","Long Rural","Overloads",null,94,91.585106382978694,6.3579866252598705E-2,6.9421621881104404E-4,"N"]
["SUS631_01112","2014-07-13","18:21:18","YAR3B2 Troy","Long Rural","Overloads",null,160,85.28125,0.100772130911454,1.18164462776348E-3,"N"]
["SUS631_01113","2014-07-13","18:22:13","CSO3B1 Casino Nth","Short Rural","Asset failure","LV",1,98,1.83213185366875E-4,1.8695222996619901E-6,"N"]
["SUS631_01114","2014-07-13","18:27:03","BNG8B2 Sturt Hwy","Short Rural","Animal","Animal impact",3,79,4.4307678501989201E-4,5.60856689898597E-6,"N"]
["SUS631_01115","2014-07-13","20:05:35","PSK3B5 Central","Urban","Overloads",null,75,50,1.9587973506612899E-2,3.9175947013225798E-4,"N"]
["SUS631_01116","2014-07-13","22:28:00","BNY3B6 Blayney Town West","Short Rural","Planned",null,71,28,null,null,"N"]
["SUS631_01117","2014-07-13","23:30:48","FFD3381 Nabiac","Long Rural","Overloads",null,30,77,1.70599943133352E-2,2.2155836770565199E-4,"N"]
["SUS631_01118","2014-07-14","05:16:25","GGG22 Tallawang","Short Rural","Asset failure","HV",25,582,2.7201549460081999E-2,4.6738057491549802E-5,"N"]
["SUS631_01119","2014-07-14","05:16:25","GGG22 Tallawang","Short Rural","Asset failure","HV",115,139.92173913043499,3.0082483323861101E-2,2.14995064461129E-4,"N"]
["SUS631_01120","2014-07-14","06:51:00","MUD82 Abattoir No.1","Short Rural","Asset failure","LV",1,513,9.5906493972660104E-4,1.8695222996619901E-6,"N"]
["SUS631_01121","2014-07-14","07:03:17","JGG3B4 Fdr 4 Sth/East","Short Rural","Animal","Animal impact",3,171,9.5906493972660104E-4,5.60856689898597E-6,"N"]
["SUS631_01122","2014-07-14","07:51:46","MRE2M35 Eastern Rural","Long Rural","Animal","Animal impact",1,47,3.4710810940552202E-4,7.3852789235217402E-6,"N"]
["SUS631_01123","2014-07-14","08:17:30","CFL Braidwood","Long Rural","Asset failure","HV",1,104,7.6806900804626105E-4,7.3852789235217402E-6,"N"]
["SUS631_01124","2014-07-14","08:35:00","FIN42 Berrigan","Long Rural","Asset failure","HV",6,96,4.2539206599485199E-3,4.4311673541130499E-5,"N"]
["SUS631_01125","2014-07-14","08:50:00","SGN3B4 Ulmarra","Long Rural","Planned",null,3,100,null,null,"N"]
["SUS631_01126","2014-07-14","08:52:22","BBS3B4 Boambee Valley","Short Rural","Vegetation","Blow-in/Fall-in",1,199,3.7203493763273598E-4,1.8695222996619901E-6,"N"]
["SUS631_01127","2014-07-14","08:55:00","MRH3B4 No.2 Town Nth","Short Rural","Planned",null,14,296,null,null,"N"]
["SUS631_01128","2014-07-14","08:56:00","GDH6301 M63 Curlewis","Short Rural","Planned",null,1,65,null,null,"N"]
["SUS631_01129","2014-07-14","09:00:00","GID22 Rural Nth/Sth/West","Long Rural","Planned",null,2,116,null,null,"N"]
["SUS631_01130","2014-07-14","09:00:00","YOU3B9 Weedallion","Long Rural","Planned",null,7,280,null,null,"N"]
["SUS631_01131","2014-07-14","09:00:00","GFH3B4 Coolah St","Urban","Planned",null,9,309,null,null,"N"]
["SUS631_01132","2014-07-14","09:01:00","MRE2M17 Western Rural","Long Rural","Planned",null,22,292,null,null,"N"]
["SUS631_01133","2014-07-14","09:02:00","PPM3B4 Pacific Palms","Short Rural","Planned",null,2,273,null,null,"N"]
["SUS631_01134","2014-07-14","09:03:00","SWR3B6 Stuarts Pt","Short Rural","Other",null,63,127,1.49580479195956E-2,1.17779904878705E-4,"N"]
["SUS631_01135","2014-07-14","09:08:00","PKT3B9 Parkes Town No.3","Short Rural","Planned",null,22,137,null,null,"N"]
["SUS631_01136","2014-07-14","09:10:00","UNI8/1 Duval","Short Rural","Planned",null,13,120,null,null,"N"]
["SUS631_01137","2014-07-14","09:15:00","CNB22 Rural Sth","Long Rural","Planned",null,3,325,null,null,"N"]
["SUS631_01138","2014-07-14","09:15:26","MRN8B3 Marulan Town","Long Rural","Planned",null,35,355,null,null,"N"]
["SUS631_01139","2014-07-14","09:18:00","EME1E10 Deepwater","Short Rural","Planned",null,27,241,null,null,"N"]
["SUS631_01140","2014-07-14","09:25:00","BNK24798 Koorainghat","Short Rural","Planned",null,2,109,null,null,"N"]
["SUS631_01141","2014-07-14","09:25:00","WWA8B4 M8/M21 Spring Plains Rd","Short Rural","Other",null,3,642,3.60069994914899E-3,5.60856689898597E-6,"N"]
["SUS631_01142","2014-07-14","09:30:00","HIL1111 Hillston 132 - Merriwagga","Long Rural","Planned",null,4,285,null,null,"N"]
["SUS631_01143","2014-07-14","09:30:00","ELI3B4 Lynwood","Short Rural","Asset failure","LV",1,37,6.9172325087493594E-5,1.8695222996619901E-6,"N"]
["SUS631_01144","2014-07-14","09:30:00","HEN3B1 Yerong Ck","Short Rural","Planned",null,17,210,null,null,"N"]
["SUS631_01145","2014-07-14","09:30:00","KTL3B2 Moonbi","Short Rural","Planned",null,2,208,null,null,"N"]
["SUS631_01146","2014-07-14","09:30:00","WWL8B4 West Wyalong Sth West Town","Short Rural","Planned",null,22,252,null,null,"N"]
["SUS631_01147","2014-07-14","09:32:00","GDI8B3 Talwood","Long Rural","Planned",null,2,308,null,null,"N"]
["SUS631_01148","2014-07-14","09:32:00","MGI2U24 Mungindi Town","Short Rural","Planned",null,64,124,null,null,"N"]
["SUS631_01149","2014-07-14","09:36:00","LOC3786 Urana","Long Rural","Planned",null,7,348,null,null,"N"]
["SUS631_01150","2014-07-14","09:37:00","MAH3B7 Candelo","Short Rural","Planned",null,1,70,null,null,"N"]
["SUS631_01151","2014-07-14","09:41:00","BTS8B5 Kings Plains","Long Rural","Planned",null,1,214,null,null,"N"]
["SUS631_01152","2014-07-14","09:44:00","CTM3B2 Rural","Long Rural","Asset failure","HV",1,80,5.9082231388174001E-4,7.3852789235217402E-6,"N"]
["SUS631_01153","2014-07-14","09:44:00","MAR5515 Binalong","Long Rural","Planned",null,45,29,null,null,"N"]
["SUS631_01154","2014-07-14","09:44:00","MOA24 Perricoota","Long Rural","Planned",null,2,236,null,null,"N"]
["SUS631_01155","2014-07-14","09:53:00","MDA42 West","Short Rural","Planned",null,6,138.666666666667,null,null,"N"]
["SUS631_01156","2014-07-14","09:54:58","NBI3B2 M5 Eulah Ck/Turrawan","Short Rural","Planned",null,86,95.244186046511601,null,null,"N"]
["SUS631_01157","2014-07-14","10:00:00","CBB72 Binnaway","Long Rural","Planned",null,1,205,null,null,"N"]
["SUS631_01158","2014-07-14","10:03:00","BUN3B1 Wamboin","Long Rural","Planned",null,1,48,null,null,"N"]
["SUS631_01159","2014-07-14","10:04:00","BKE4B3 M83 Louth","Long Rural","Planned",null,1,176,null,null,"N"]
["SUS631_01160","2014-07-14","10:08:00","HAT42 Hay 132 - Carrathool","Long Rural","Planned",null,1,110,null,null,"N"]
["SUS631_01161","2014-07-14","10:10:39","GDI4B2 Waggamba Nth","Long Rural","Weather",null,1,180,1.3293502062339099E-3,7.3852789235217402E-6,"N"]
["SUS631_01162","2014-07-14","10:12:00","CBY804 Channel Nine Rd","Short Rural","Planned",null,1,110,null,null,"N"]
["SUS631_01163","2014-07-14","10:17:40","FIN52 Tocumwal","Long Rural","Asset failure","LV",1,164,1.2111857434575701E-3,7.3852789235217402E-6,"N"]
["SUS631_01164","2014-07-14","10:23:00","WGT8B5 M35 Cumborah","Long Rural","Asset failure","LV",1,139,1.0265537703695201E-3,7.3852789235217402E-6,"N"]
["SUS631_01165","2014-07-14","10:27:00","ALJ8B6 Newmarket","Urban","Planned",null,63,135,null,null,"N"]
["SUS631_01166","2014-07-14","10:29:07","TSH3B1 Terranora Heights","Short Rural","Asset failure","LV",15,170,4.7672818641380796E-3,2.8042834494929901E-5,"N"]
["SUS631_01167","2014-07-14","10:30:00","GDI8B1 Boobera/Tulloona","Long Rural","Asset failure","HV",1,176,1.2998090905398301E-3,7.3852789235217402E-6,"N"]
["SUS631_01168","2014-07-14","10:51:30","WOO8642 Woodlawn","Long Rural","Asset failure","LV",1,127,9.3793042328726105E-4,7.3852789235217402E-6,"N"]
["SUS631_01169","2014-07-14","10:59:00","BRE8B2 M51 Goodooga","Long Rural","Asset failure","HV",1,123,9.0838930759317403E-4,7.3852789235217402E-6,"N"]
["SUS631_01170","2014-07-14","11:08:00","BODC2 Potato Pt","Short Rural","Asset failure","HV",164,57,1.7476294457240301E-2,3.0660165714456602E-4,"N"]
["SUS631_01171","2014-07-14","11:09:00","CBB42 Tambar Springs","Long Rural","Asset failure","LV",1,252,1.86109028872748E-3,7.3852789235217402E-6,"N"]
["SUS631_01172","2014-07-14","11:13:25","WWL8B3 Lines 61/62/65","Long Rural","Other",null,4,68,2.0087958671979101E-3,2.9541115694087002E-5,"N"]
["SUS631_01173","2014-07-14","11:31:00","GDH6301 M63 Curlewis","Short Rural","Planned",null,3,87,null,null,"N"]
["SUS631_01174","2014-07-14","11:38:00","BAL3B4 Ballina Nth","Short Rural","Asset failure","HV",8,78,1.16658191498908E-3,1.49561783972959E-5,"N"]
["SUS631_01175","2014-07-14","11:38:06","MWA8B1 Barooga","Short Rural","Animal","Animal impact",3,120,6.7302802787831705E-4,5.60856689898597E-6,"N"]
["SUS631_01176","2014-07-14","11:40:00","BERB2 Wallaga Lake","Short Rural","Other",null,6,130,1.45822739373635E-3,1.1217133797971899E-5,"N"]
["SUS631_01177","2014-07-14","11:53:37","LHD3B7 Tintenbar","Short Rural","Asset failure","LV",1,143,2.6734168885166499E-4,1.8695222996619901E-6,"N"]
["SUS631_01178","2014-07-14","12:21:11","CFL Braidwood","Long Rural","Animal","Animal impact",1,100,7.3852789235217403E-4,7.3852789235217402E-6,"N"]
["SUS631_01179","2014-07-14","12:54:26","NDA3B3 Gillenbah","Long Rural","Animal","Animal impact",2,120,1.77246694164522E-3,1.4770557847043501E-5,"N"]
["SUS631_01180","2014-07-14","13:22:00","RGL3B7 Bellingen Rural","Short Rural","Asset failure","HV",1,38,7.1041847387155602E-5,1.8695222996619901E-6,"N"]
["SUS631_01181","2014-07-14","13:29:00","SGN3B2 Clarenza","Short Rural","Planned",null,7,26,null,null,"N"]
["SUS631_01182","2014-07-14","13:30:00","CBB72 Binnaway","Long Rural","Planned",null,1,83,null,null,"N"]
["SUS631_01183","2014-07-14","13:45:00","GDH6301 M63 Curlewis","Short Rural","Planned",null,1,74,null,null,"N"]
["SUS631_01184","2014-07-14","14:10:57","ALU32 Lavington West/Jindera","Long Rural","Animal","Animal impact",32,110,2.59961818107965E-2,2.3632892555269601E-4,"N"]
["SUS631_01185","2014-07-14","14:16:00","MWA8B1 Barooga","Short Rural","Animal","Animal impact",2,7,2.61733121952679E-5,3.7390445993239802E-6,"N"]
["SUS631_01186","2014-07-14","14:23:11","SLI3B2 Sth Gundurimba","Short Rural","Asset failure","LV",1,116,2.1686458676079101E-4,1.8695222996619901E-6,"N"]
["SUS631_01187","2014-07-14","14:37:00","MAH3B3 Glebe","Short Rural","Asset failure","LV",1,3,5.60856689898597E-6,1.8695222996619901E-6,"N"]
["SUS631_01188","2014-07-14","14:54:52","NBI3B1 M14 Spring Ck","Short Rural","Asset failure","HV",1,153,2.8603691184828501E-4,1.8695222996619901E-6,"N"]
["SUS631_01189","2014-07-14","14:59:12","KKN3B2 Junction Hill","Urban","Third party","Vehicle impact",83,96,4.1620526106851102E-2,4.3354714694636599E-4,"N"]
["SUS631_01190","2014-07-14","15:51:40","AHY2T04 Northern","Long Rural","Animal","Animal impact",34,149.38235294117601,3.7509831652566897E-2,2.5109948339973898E-4,"N"]
["SUS631_01191","2014-07-14","16:28:00","SGN3B1 Armidale Rd","Long Rural","Third party","Fire",1,2531,1.8692140955433499E-2,7.3852789235217402E-6,"N"]
["SUS631_01192","2014-07-14","16:58:12","TUM22 Tooma","Long Rural","Other",null,34,108,2.7118744207171801E-2,2.5109948339973898E-4,"N"]
["SUS631_01193","2014-07-14","17:16:24","NYN52 Nyngan West","Long Rural","Asset failure","HV",1,114,8.4192179728147904E-4,7.3852789235217402E-6,"N"]
["SUS631_01194","2014-07-14","17:42:06","ESH3B1 Kiah/Nethercote","Short Rural","Asset failure","HV",97,161,2.9196329753821301E-2,1.8134366306721299E-4,"N"]
["SUS631_01195","2014-07-14","17:55:00","CST5372 Tarago","Short Rural","Asset failure","LV",5,41,3.8325207143070802E-4,9.3476114983099506E-6,"N"]
["SUS631_01196","2014-07-14","20:12:56","CPM3B5 Shelley Beach","Short Rural","Animal","Animal impact",79,45,6.6461517752983796E-3,1.4769226167329701E-4,"N"]
["SUS631_01197","2014-07-14","20:13:40","CRA22 Rural","Long Rural","Animal","Animal impact",10,107,7.9022484481682705E-3,7.3852789235217406E-5,"N"]
["SUS631_01198","2014-07-14","21:44:31","WWA8B8 M24 Tulladunna Ln/Helebah","Short Rural","Animal","Animal impact",10,90,1.6825700696957899E-3,1.8695222996619901E-5,"N"]
["SUS631_01199","2014-07-14","22:12:35","HAM3B7 Tarcutta St","Urban","Animal","Animal impact",286,114.986013986014,0.17177869246359201,1.49390944610434E-3,"N"]
["SUS631_01200","2014-07-14","22:12:35","MSW3B1 Trail St","Urban","Animal","Animal impact",58,153,4.6352980506048802E-2,3.0296065690227901E-4,"N"]
["SUS631_01201","2014-07-14","22:12:35","MSW3B4 Johnston St","Urban","Animal","Animal impact",290,154.889655172414,0.23462735839200999,1.5148032845114E-3,"N"]
["SUS631_01202","2014-07-14","22:58:59","DBW3B4 West/Sth","Urban","Asset failure","LV",52,82,2.22728317419193E-2,2.7161989929169901E-4,"N"]
["SUS631_01203","2014-07-14","23:00:24","MOU12 Moulamein","Long Rural","Animal","Animal impact",22,102,1.6572565904382799E-2,1.62476136317478E-4,"N"]
["SUS631_01204","2014-07-14","23:07:37","CNK3B4 Lansdowne","Short Rural","Animal","Animal impact",2,80,2.9912356794591799E-4,3.7390445993239802E-6,"N"]
["SUS631_01205","2014-07-14","23:26:39","SLI3B2 Sth Gundurimba","Short Rural","Asset failure","LV",4,135,1.0095420418174701E-3,7.4780891986479603E-6,"N"]
["SUS631_01206","2014-07-14","23:45:04","KYG3B1 Nth Kyogle No.1","Long Rural","Asset failure","LV",1,626,4.6231846061246104E-3,7.3852789235217402E-6,"N"]
["SUS631_01207","2014-07-15","01:34:41","MRE2M38 Tareelaroi","Long Rural","Animal","Animal impact",183,45,6.0817771935201603E-2,1.3515060430044799E-3,"N"]
["SUS631_01208","2014-07-15","05:12:33","WWA8B8 M24 Tulladunna Ln/Helebah","Short Rural","Animal","Animal impact",10,63,1.1777990487870499E-3,1.8695222996619901E-5,"N"]
["SUS631_01209","2014-07-15","06:23:10","MRE2M37 Gingham Rd","Short Rural","Animal","Animal impact",22,185,7.6089557596242998E-3,4.1129490592563798E-5,"N"]
["SUS631_01210","2014-07-15","06:23:40","MOU12 Moulamein","Long Rural","Other",null,11,78,6.3365693163816598E-3,8.1238068158739202E-5,"N"]
["SUS631_01211","2014-07-15","06:58:54","CDN72 Kiacatoo","Long Rural","Asset failure","HV",12,147.5,1.3071943694633501E-2,8.8623347082260903E-5,"N"]
["SUS631_01212","2014-07-15","07:18:00","DBW3B4 West/Sth","Urban","Asset failure","LV",52,187,5.0792921167547703E-2,2.7161989929169901E-4,"N"]
["SUS631_01213","2014-07-15","07:18:25","WHI716 Stanbridge","Short Rural","Animal","Animal impact",2,97,3.6268732613442599E-4,3.7390445993239802E-6,"N"]
["SUS631_01214","2014-07-15","07:34:02","CFN3B20 Ocean","Urban","Asset failure","LV",74,449,0.173554668728192,3.8653601053049497E-4,"N"]
["SUS631_01215","2014-07-15","07:37:25","BAR12 East Barham","Short Rural","Animal","Animal impact",20,85,3.1781879094253799E-3,3.7390445993239802E-5,"N"]
["SUS631_01216","2014-07-15","07:45:41","GDI4B1 Waggamba East","Long Rural","Overloads",null,49,165,5.9709980096673297E-2,3.6187866725256499E-4,"N"]
["SUS631_01217","2014-07-15","08:03:00","BAT12 Rural Nth","Short Rural","Planned",null,1,143,null,null,"N"]
["SUS631_01218","2014-07-15","08:20:05","CDN72 Kiacatoo","Long Rural","Asset failure","HV",10,13,9.6008626005782702E-4,7.3852789235217406E-5,"N"]
["SUS631_01219","2014-07-15","08:30:00","HIL1401 Upper Lachlan","Long Rural","Planned",null,6,291,null,null,"N"]
["SUS631_01220","2014-07-15","08:30:00","RVL3K1 Rappville","Long Rural","Planned",null,70,378.65714285714301,null,null,"N"]
["SUS631_01221","2014-07-15","08:30:00","STR3B1 Stroud Nth","Short Rural","Planned",null,24,85,null,null,"N"]
["SUS631_01222","2014-07-15","08:30:07","RVL3K1 Rappville","Long Rural","Planned",null,75,307,null,null,"N"]
["SUS631_01223","2014-07-15","08:30:45","7L3 Kamarah","Long Rural","Asset failure","LV",1,247,1.8241638941098701E-3,7.3852789235217402E-6,"N"]
["SUS631_01224","2014-07-15","08:36:00","FOR17260 Pioneer Pk","Urban","Other",null,98,144,7.3713461900085694E-2,5.1189904097281695E-4,"N"]
["SUS631_01225","2014-07-15","08:37:00","BTS8B5 Kings Plains","Long Rural","Planned",null,1,303,null,null,"N"]
["SUS631_01226","2014-07-15","08:38:00","GRS3B1 Allyn River","Short Rural","Planned",null,2,192,null,null,"N"]
["SUS631_01227","2014-07-15","08:50:00","GDI8B2 Boggabilla","Long Rural","Planned",null,3,465,null,null,"N"]
["SUS631_01228","2014-07-15","08:54:00","WGA3B6 Corindi","Short Rural","Planned",null,134,466,null,null,"N"]
["SUS631_01229","2014-07-15","08:54:47","PKT3B2 Parkes Town No.2","Short Rural","Asset failure","LV",1,155,2.89775956447608E-4,1.8695222996619901E-6,"N"]
["SUS631_01230","2014-07-15","08:56:07","OBR3B8 Tarana Duckmaloi","Long Rural","Asset failure","HV",1,236,1.74292582595113E-3,7.3852789235217402E-6,"N"]
["SUS631_01231","2014-07-15","08:57:00","GDG8B8 Burra/ Coolac","Long Rural","Asset failure","LV",1,214,1.5804496896336499E-3,7.3852789235217402E-6,"N"]
["SUS631_01232","2014-07-15","09:00:00","BAR32 Gonn","Short Rural","Planned",null,58,399.22413793103402,null,null,"N"]
["SUS631_01233","2014-07-15","09:00:00","PSK3B1 Dondingalong","Short Rural","Planned",null,11,309.18181818181802,null,null,"N"]
["SUS631_01234","2014-07-15","09:00:00","WGA3B4 Hearnes Lake","Short Rural","Planned",null,7,355,null,null,"N"]
["SUS631_01235","2014-07-15","09:00:00","YOU3B4 Young Town 7","Urban","Planned",null,69,472,null,null,"N"]
["SUS631_01236","2014-07-15","09:01:15","CBR42 Margretvale","Long Rural","Planned",null,16,358,null,null,"N"]
["SUS631_01237","2014-07-15","09:01:21","NBI8B5 M6 Wee Waa","Long Rural","Planned",null,23,85,null,null,"N"]
["SUS631_01238","2014-07-15","09:01:48","UNI8/8 Tilbuster/Puddledock","Short Rural","Planned",null,68,355,null,null,"N"]
["SUS631_01239","2014-07-15","09:02:00","GDH6501 M65 Wandobah","Short Rural","Planned",null,6,256,null,null,"N"]
["SUS631_01240","2014-07-15","09:02:00","MAH3B7 Candelo","Short Rural","Planned",null,26,366.769230769231,null,null,"N"]
["SUS631_01241","2014-07-15","09:02:00","TFD102 No.10","Short Rural","Planned",null,15,97,null,null,"N"]
["SUS631_01242","2014-07-15","09:02:29","WRA2W08 Northern","Long Rural","Planned",null,16,212,null,null,"N"]
["SUS631_01243","2014-07-15","09:02:40","WWA8B2 M7 Yarrie Lake","Short Rural","Planned",null,64,381.78125,null,null,"N"]
["SUS631_01244","2014-07-15","09:03:00","LCO22 Lake Cargelligo","Long Rural","Planned",null,3,78,null,null,"N"]
["SUS631_01245","2014-07-15","09:04:00","TEM4 Temora East","Short Rural","Planned",null,24,331,null,null,"N"]
["SUS631_01246","2014-07-15","09:05:00","BWA3B1 Abbotts Falls/Krambach","Long Rural","Planned",null,6,307.66666666666703,null,null,"N"]
["SUS631_01247","2014-07-15","09:05:00","BWA3B1 Abbotts Falls/Krambach","Long Rural","Planned",null,32,324,null,null,"N"]
["SUS631_01248","2014-07-15","09:06:00","NME8B1 Rural Sth","Long Rural","Planned",null,4,576.25,null,null,"N"]
["SUS631_01249","2014-07-15","09:06:00","KTE3B6 Cundletown","Short Rural","Planned",null,65,256,null,null,"N"]
["SUS631_01250","2014-07-15","09:08:00","CRO5512 Woodhouselee","Long Rural","Planned",null,1,188,null,null,"N"]
["SUS631_01251","2014-07-15","09:08:00","DBS3B1 Rural Sth","Long Rural","Planned",null,13,287,null,null,"N"]
["SUS631_01252","2014-07-15","09:15:00","GLR3B5 Barrington","Long Rural","Planned",null,7,235,null,null,"N"]
["SUS631_01253","2014-07-15","09:15:00","WLGR4236 Limestone","Short Rural","Planned",null,1,99,null,null,"N"]
["SUS631_01254","2014-07-15","09:15:13","GID22 Rural Nth/Sth/West","Long Rural","Planned",null,55,313.60000000000002,null,null,"N"]
["SUS631_01255","2014-07-15","09:15:21","CWD13 Cargo","Long Rural","Planned",null,32,366.78125,null,null,"N"]
["SUS631_01256","2014-07-15","09:16:00","EME1E08 Rocky Ck","Short Rural","Planned",null,36,201.361111111111,null,null,"N"]
["SUS631_01257","2014-07-15","09:17:00","TDL8B1 Bogan Gate","Long Rural","Planned",null,14,365,null,null,"N"]
["SUS631_01258","2014-07-15","09:19:31","WBN3B8 Woodburn/Aux TX2","Short Rural","Asset failure","LV",5,178,1.6638748466991701E-3,9.3476114983099506E-6,"N"]
["SUS631_01259","2014-07-15","09:20:00","MUA5005 East","Long Rural","Planned",null,27,171.777777777778,null,null,"N"]
["SUS631_01260","2014-07-15","09:29:00","MCV3B9 Bowraville Rural","Long Rural","Planned",null,2,321,null,null,"N"]
["SUS631_01261","2014-07-15","09:30:00","BBA3B1 Burindi","Long Rural","Planned",null,102,30,null,null,"N"]
["SUS631_01262","2014-07-15","09:30:00","MDA22 Sth","Short Rural","Planned",null,3,178,null,null,"N"]
["SUS631_01263","2014-07-15","09:30:00","RGL3B5 Urunga No.1","Short Rural","Planned",null,141,138,null,null,"N"]
["SUS631_01264","2014-07-15","09:31:00","LOC3786 Urana","Long Rural","Planned",null,1,59,null,null,"N"]
["SUS631_01265","2014-07-15","09:31:00","WGA3B2 Double Crossing","Short Rural","Planned",null,461,299,null,null,"N"]
["SUS631_01266","2014-07-15","09:32:00","BOM8B2 Nimmitabel","Long Rural","Planned",null,23,277,null,null,"N"]
["SUS631_01267","2014-07-15","09:32:00","STF8B1 Nimmitabel","Short Rural","Planned",null,11,277,null,null,"N"]
["SUS631_01268","2014-07-15","09:33:36","YAN2319 Euroley Rd","Short Rural","Planned",null,10,351.5,null,null,"N"]
["SUS631_01269","2014-07-15","09:37:00","GDI4B1 Waggamba East","Long Rural","Other",null,5,167,6.1667079011406599E-3,3.6926394617608703E-5,"N"]
["SUS631_01270","2014-07-15","09:37:00","MLN3B6 South Arm","Short Rural","Planned",null,9,196,null,null,"N"]
["SUS631_01271","2014-07-15","09:38:00","NME8B1 Rural Sth","Long Rural","Planned",null,3,61,null,null,"N"]
["SUS631_01272","2014-07-15","09:40:00","CCN3B1 Walbundrie","Long Rural","Planned",null,7,89.714285714285694,null,null,"N"]
["SUS631_01273","2014-07-15","09:40:00","OBR3B7 Jenolan Caves","Short Rural","Planned",null,1,228,null,null,"N"]
["SUS631_01274","2014-07-15","09:44:00","CST5362 Sth Goulburn/Collector","Long Rural","Planned",null,5,139,null,null,"N"]
["SUS631_01275","2014-07-15","09:45:00","LOC3794 Lockhart","Long Rural","Other",null,23,113,1.9194339922233E-2,1.69861415241E-4,"N"]
["SUS631_01276","2014-07-15","09:49:00","79C Griffith 132 - Darlington Point","Short Rural","Planned",null,1,191,null,null,"N"]
["SUS631_01277","2014-07-15","09:51:00","ORW3B7 Cargo Rd","Short Rural","Planned",null,7,210,null,null,"N"]
["SUS631_01278","2014-07-15","09:54:00","BKE4B2 M82 Wanaaring","Long Rural","Planned",null,139,139,null,null,"N"]
["SUS631_01279","2014-07-15","09:54:00","BTH82 Lloyds Rd","Long Rural","Planned",null,1,31,null,null,"N"]
["SUS631_01280","2014-07-15","09:59:00","CLN3B4 Ganmain 93 Line","Short Rural","Other",null,2,105,3.9259968292901801E-4,3.7390445993239802E-6,"N"]
["SUS631_01281","2014-07-15","10:00:00","MOA22 Northern Rural","Short Rural","Other",null,1,69,1.2899703867667701E-4,1.8695222996619901E-6,"N"]
["SUS631_01282","2014-07-15","10:02:00","NSK3B3 Aldavilla","Short Rural","Planned",null,26,13,null,null,"N"]
["SUS631_01283","2014-07-15","10:03:00","HAT22 Hay 132 - Hay Town (Maude)","Long Rural","Planned",null,3,254,null,null,"N"]
["SUS631_01284","2014-07-15","10:14:00","MWA8B4 North St and Rural","Long Rural","Planned",null,1,121,null,null,"N"]
["SUS631_01285","2014-07-15","10:15:00","CBB72 Binnaway","Long Rural","Planned",null,3,73,null,null,"N"]
["SUS631_01286","2014-07-15","10:21:00","KTL3B1 Kootingal","Short Rural","Planned",null,98,87,null,null,"N"]
["SUS631_01287","2014-07-15","10:24:00","MUL3B1 Goonengerry","Short Rural","Planned",null,1,129,null,null,"N"]
["SUS631_01288","2014-07-15","10:30:00","BBYL2 Surfside","Short Rural","Planned",null,1,60,null,null,"N"]
["SUS631_01289","2014-07-15","10:31:00","GID22 Rural Nth/Sth/West","Long Rural","Planned",null,1,104,null,null,"N"]
["SUS631_01290","2014-07-15","10:48:00","RGL3B6 Bellingen Town","Short Rural","Asset failure","HV",2,133,4.9729293171008905E-4,3.7390445993239802E-6,"N"]
["SUS631_01291","2014-07-15","11:05:00","ULN28 Ulan/Gulgong","Short Rural","Asset failure","HV",3,38,2.13125542161467E-4,5.60856689898597E-6,"N"]
["SUS631_01292","2014-07-15","11:21:00","ORI832 Kearneys Dr","Short Rural","Planned",null,75,156,null,null,"N"]
["SUS631_01293","2014-07-15","11:25:00","COW52 Cowra Town Nth","Short Rural","Overloads",null,41,35,2.6827645000149598E-3,7.6650414286141599E-5,"N"]
["SUS631_01294","2014-07-15","11:31:33","BBA3B1 Burindi","Long Rural","Planned",null,56,33,null,null,"N"]
["SUS631_01295","2014-07-15","12:28:00","NVE32 Auscott/Warren Town","Short Rural","Weather",null,1,11,2.0564745296281899E-5,1.8695222996619901E-6,"N"]
["SUS631_01296","2014-07-15","12:30:11","LOC3794 Lockhart","Long Rural","Other",null,36,68,1.8079162804781199E-2,2.6587004124678298E-4,"N"]
["SUS631_01297","2014-07-15","12:31:00","MOA22 Northern Rural","Short Rural","Planned",null,1,53,null,null,"N"]
["SUS631_01298","2014-07-15","12:50:17","CTM3B4 Conkey","Short Rural","Asset failure","HV",24,111.083333333333,4.9841464508988704E-3,4.4868535191887801E-5,"N"]
["SUS631_01299","2014-07-15","12:53:00","ATA3B2 Somerton","Short Rural","Asset failure","HV",9,59,9.9271634112051707E-4,1.68257006969579E-5,"N"]
["SUS631_01300","2014-07-15","13:00:32","CBB72 Binnaway","Long Rural","Animal","Animal impact",3,151,3.3455313523553499E-3,2.2155836770565199E-5,"N"]
["SUS631_01301","2014-07-15","13:13:00","CST5372 Tarago","Short Rural","Other",null,6,43,4.8233675331279402E-4,1.1217133797971899E-5,"N"]
["SUS631_01302","2014-07-15","13:15:00","GID32 Rural East","Long Rural","Planned",null,1,60,null,null,"N"]
["SUS631_01303","2014-07-15","13:30:00","BPM3B10 Port Sth","Urban","Other",null,3,36,5.6413363699045103E-4,1.5670378805290301E-5,"N"]
["SUS631_01304","2014-07-15","14:10:00","GDH8B3 M71 Abattoir/Coal Loader","Urban","Overloads",null,1,6,3.1340757610580602E-5,5.2234596017634396E-6,"N"]
["SUS631_01305","2014-07-15","14:49:08","TMT62 Gocup","Long Rural","Weather",null,7,85,4.3942409594954403E-3,5.16969524646522E-5,"N"]
["SUS631_01306","2014-07-15","15:12:06","YEN3B6 East Mirrool","Short Rural","Animal","Animal impact",1,79,1.4769226167329701E-4,1.8695222996619901E-6,"N"]
["SUS631_01307","2014-07-15","15:22:47","BTS8B4 Wallangra/Bukkulla","Long Rural","Animal","Animal impact",36,34,9.0395814023906205E-3,2.6587004124678298E-4,"N"]
["SUS631_01308","2014-07-15","15:49:09","YOU3B6 Murringo","Short Rural","Weather",null,51,34,3.2417516676138901E-3,9.5345637282761504E-5,"N"]
["SUS631_01309","2014-07-15","17:07:05","WGA3B3 Wooli","Short Rural","Asset failure","HV",1233,5,1.15256049774162E-2,2.30512099548323E-3,"N"]
["SUS631_01310","2014-07-15","17:07:14","WGA3B6 Corindi","Short Rural","Asset failure","HV",1675,5,1.5657249259669201E-2,3.13144985193383E-3,"N"]
["SUS631_01311","2014-07-15","17:35:40","YOU3B4 Young Town 7","Urban","Asset failure","HV",69,33,1.18938175132154E-2,3.6041871252167701E-4,"N"]
["SUS631_01312","2014-07-15","17:40:44","MWN3B1 Uki","Long Rural","Overloads",null,3,2582,5.7206370541599397E-2,2.2155836770565199E-5,"N"]
["SUS631_01313","2014-07-15","17:53:03","NVE12 Nevertire","Long Rural","Other",null,130,222.83076923076899,0.21393675985657801,9.6008626005782702E-4,"N"]
["SUS631_01314","2014-07-15","18:26:50","GNG5222 Collector/Cullerin Rd","Short Rural","Asset failure","LV",2,102,3.8138254913104602E-4,3.7390445993239802E-6,"N"]
["SUS631_01315","2014-07-15","19:53:06","CHD3B1 Crescent Head","Short Rural","Asset failure","LV",1,126,2.3555980975741101E-4,1.8695222996619901E-6,"N"]
["SUS631_01316","2014-07-15","20:59:16","MGA3B1 Turners Flat","Short Rural","Animal","Animal impact",96,59,1.0588974305285499E-2,1.7947414076755099E-4,"N"]
["SUS631_01317","2014-07-15","21:07:40","MGA3B1 Turners Flat","Short Rural","Animal","Animal impact",10,178,3.3277496933983401E-3,1.8695222996619901E-5,"N"]
["SUS631_01318","2014-07-16","00:21:08","CRA22 Rural","Long Rural","Asset failure","LV",1,138,1.019168491446E-3,7.3852789235217402E-6,"N"]
["SUS631_01319","2014-07-16","03:35:59","SMN3B3 Kinchella","Short Rural","Animal","Animal impact",12,81,1.81717567527145E-3,2.24342675959439E-5,"N"]
["SUS631_01320","2014-07-16","05:27:05","BBA3B4 Barraba","Short Rural","Asset failure","LV",41,111,8.5081959857617202E-3,7.6650414286141599E-5,"N"]
["SUS631_01321","2014-07-16","06:09:26","FBS62 Rural West","Short Rural","Asset failure","LV",6,202,2.2658610271903299E-3,1.1217133797971899E-5,"N"]
["SUS631_01322","2014-07-16","06:31:07","MBL122 Stuart Town","Long Rural","Weather",null,11,102,8.2862829521913994E-3,8.1238068158739202E-5,"N"]
["SUS631_01323","2014-07-16","06:44:06","YOU3B3 Bribaree","Long Rural","Asset failure","HV",5,52,1.9201725201156499E-3,3.6926394617608703E-5,"N"]
["SUS631_01324","2014-07-16","07:01:42","GDI4B1 Waggamba East","Long Rural","Animal","Animal impact",239,124,0.21887012617748999,1.7650816627216999E-3,"N"]
["SUS631_01325","2014-07-16","07:06:46","LHD3B4 Knockrow","Short Rural","Asset failure","LV",136,101.32352941176499,2.5762017289342201E-2,2.5425503275403098E-4,"N"]
["SUS631_01326","2014-07-16","07:42:29","CHS3B1 Toormina","Urban","Asset failure","HV",1,20424,0.106683938906417,5.2234596017634396E-6,"N"]
["SUS631_01327","2014-07-16","07:48:00","CBB52 Baradine","Long Rural","Asset failure","HV",3,68,1.5065969003984401E-3,2.2155836770565199E-5,"N"]
["SUS631_01328","2014-07-16","08:06:10","LEE3B5 Wamoon","Short Rural","Weather",null,5,37,3.4586162543746803E-4,9.3476114983099506E-6,"N"]
["SUS631_01329","2014-07-16","08:09:11","GYA3B3 Guyra Town/Black Mtn","Short Rural","Asset failure","HV",3,159,8.9176213693876896E-4,5.60856689898597E-6,"N"]
["SUS631_01330","2014-07-16","08:12:31","GDG8B8 Burra/ Coolac","Long Rural","Asset failure","HV",24,270.5,4.79452307715032E-2,1.77246694164522E-4,"N"]
["SUS631_01331","2014-07-16","08:15:21","DOR3B4 Fernbrook/Deervale","Short Rural","Overloads",null,4,137,1.02449822021477E-3,7.4780891986479603E-6,"N"]
["SUS631_01332","2014-07-16","08:16:00","MUL3B1 Goonengerry","Short Rural","Planned",null,157,387.433121019108,null,null,"N"]
["SUS631_01333","2014-07-16","08:30:00","DNO122 Craboon","Long Rural","Planned",null,3,255,null,null,"N"]
["SUS631_01334","2014-07-16","08:32:50","JER32 Coleambally","Long Rural","Asset failure","HV",1,224,1.65430247886887E-3,7.3852789235217402E-6,"N"]
["SUS631_01335","2014-07-16","08:37:52","MLN3B3 Ashby/Tullymorgan","Short Rural","Planned",null,57,180.771929824561,null,null,"N"]
["SUS631_01336","2014-07-16","08:45:00","DUG3B1 Clarencetown","Short Rural","Planned",null,45,345.933333333333,null,null,"N"]
["SUS631_01337","2014-07-16","08:48:00","MUD82 Abattoir No.1","Short Rural","Planned",null,1,88,null,null,"N"]
["SUS631_01338","2014-07-16","08:51:00","MRE2M37 Gingham Rd","Short Rural","Planned",null,6,304,null,null,"N"]
["SUS631_01339","2014-07-16","08:55:03","DBW3B4 West/Sth","Urban","Planned",null,4,365,null,null,"N"]
["SUS631_01340","2014-07-16","08:59:00","GDL3B8 Rural","Short Rural","Planned",null,1,130,null,null,"N"]
["SUS631_01341","2014-07-16","09:00:00","MCV3B9 Bowraville Rural","Long Rural","Planned",null,32,373.5625,null,null,"N"]
["SUS631_01342","2014-07-16","09:00:00","NHD3B4 Valla","Short Rural","Planned",null,1,230,null,null,"N"]
["SUS631_01343","2014-07-16","09:00:00","YAN2314 Leeton Rd","Short Rural","Planned",null,2,180,null,null,"N"]
["SUS631_01344","2014-07-16","09:01:00","MGA3B2 Willawarrin","Long Rural","Planned",null,68,324.01470588235298,null,null,"N"]
["SUS631_01345","2014-07-16","09:01:03","CBR42 Margretvale","Long Rural","Planned",null,64,354.90625,null,null,"N"]
["SUS631_01346","2014-07-16","09:01:29","YAS6232 Wee Jasper","Long Rural","Asset failure","HV",2,148,2.1860425613624401E-3,1.4770557847043501E-5,"N"]
["SUS631_01347","2014-07-16","09:02:00","GDG3B6 Town Sth","Short Rural","Planned",null,3,325,null,null,"N"]
["SUS631_01348","2014-07-16","09:02:06","CFN3B13 Karangi Dam","Short Rural","Planned",null,76,330.48684210526301,null,null,"N"]
["SUS631_01349","2014-07-16","09:03:48","MYT3B2 Kiora","Short Rural","Planned",null,106,493.50943396226398,null,null,"N"]
["SUS631_01350","2014-07-16","09:04:00","CAR2217 Uardry","Short Rural","Planned",null,1,112,null,null,"N"]
["SUS631_01351","2014-07-16","09:05:00","GFH3B1 Blumer Ave","Urban","Planned",null,113,242,null,null,"N"]
["SUS631_01352","2014-07-16","09:06:26","FIN22 Rural Nth","Long Rural","Weather",null,3,120,2.6587004124678298E-3,2.2155836770565199E-5,"N"]
["SUS631_01353","2014-07-16","09:10:00","FBS92 Rural East No.1","Short Rural","Planned",null,25,252,null,null,"N"]
["SUS631_01354","2014-07-16","09:13:57","ALU22 West Albury/Howlong","Short Rural","Asset failure","HV",1,393,7.3472226376716202E-4,1.8695222996619901E-6,"N"]
["SUS631_01355","2014-07-16","09:14:00","CRO5522 Tuena Redground","Long Rural","Planned",null,4,324,null,null,"N"]
["SUS631_01356","2014-07-16","09:14:00","PKT3B9 Parkes Town No.3","Short Rural","Planned",null,79,402.86075949367103,null,null,"N"]
["SUS631_01357","2014-07-16","09:20:00","WGM4981 Mt George/Elands","Long Rural","Planned",null,15,209,null,null,"N"]
["SUS631_01358","2014-07-16","09:23:00","DBS3B2 Boundary Rd","Urban","Planned",null,47,98,null,null,"N"]
["SUS631_01359","2014-07-16","09:26:00","DEN62 Nth Rural","Long Rural","Planned",null,12,328,null,null,"N"]
["SUS631_01360","2014-07-16","09:27:00","BRI Braidwood","Long Rural","Planned",null,26,123,null,null,"N"]
["SUS631_01361","2014-07-16","09:29:00","PAM3B1 Bald Hills No.3","Long Rural","Planned",null,10,21,null,null,"N"]
["SUS631_01362","2014-07-16","09:29:00","SUT5333 Eagle Hawk","Short Rural","Planned",null,2,119,null,null,"N"]
["SUS631_01363","2014-07-16","09:30:00","BRI Braidwood","Long Rural","Planned",null,6,191,null,null,"N"]
["SUS631_01364","2014-07-16","09:30:00","CPM3B5 Shelley Beach","Short Rural","Planned",null,154,320,null,null,"N"]
["SUS631_01365","2014-07-16","09:30:31","WJL3B3 West Plain","Long Rural","Weather",null,30,190.53333333333299,4.2214254326850303E-2,2.2155836770565199E-4,"N"]
["SUS631_01366","2014-07-16","09:31:02","KOR23 Speewa","Short Rural","Planned",null,37,302,null,null,"N"]
["SUS631_01367","2014-07-16","09:32:00","BHL72 West","Short Rural","Planned",null,127,341,null,null,"N"]
["SUS631_01368","2014-07-16","09:32:00","PSK3B1 Dondingalong","Short Rural","Planned",null,34,88,null,null,"N"]
["SUS631_01369","2014-07-16","09:33:00","COO22 Polo Flat","Short Rural","Planned",null,28,337.392857142857,null,null,"N"]
["SUS631_01370","2014-07-16","09:35:26","MBM6222 Patemans Ln","Long Rural","Planned",null,126,195,null,null,"N"]
["SUS631_01371","2014-07-16","09:37:55","NVE42 Warren Rural Nth","Long Rural","Asset failure","HV",9,62,4.1209856393251299E-3,6.6467510311695705E-5,"N"]
["SUS631_01372","2014-07-16","09:41:12","ALU42 Lavington CBD","Urban","Asset failure","LV",1,22,1.14916111238796E-4,5.2234596017634396E-6,"N"]
["SUS631_01373","2014-07-16","09:46:00","WGT8B8 M54 Brewarrina","Long Rural","Planned",null,22,299,null,null,"N"]
["SUS631_01374","2014-07-16","09:51:00","ANN8B1 No.1 72 Line","Long Rural","Other",null,3,73,1.6173760842512601E-3,2.2155836770565199E-5,"N"]
["SUS631_01375","2014-07-16","09:52:00","EWE3B5 Bangalow","Short Rural","Planned",null,4,313.25,null,null,"N"]
["SUS631_01376","2014-07-16","09:53:00","FFD3381 Nabiac","Long Rural","Planned",null,5,219,null,null,"N"]
["SUS631_01377","2014-07-16","09:53:00","JIN2442 Jindabyne 66/33/11 - Bullocks Flat","Short Rural","Planned",null,2,246,null,null,"N"]
["SUS631_01378","2014-07-16","09:56:00","MAH3B7 Candelo","Short Rural","Planned",null,15,114,null,null,"N"]
["SUS631_01379","2014-07-16","10:02:00","TAR438 Humula","Short Rural","Vegetation","Grow-in",4,228,1.7050043372917401E-3,7.4780891986479603E-6,"N"]
["SUS631_01380","2014-07-16","10:02:06","BAR22 Wakool","Long Rural","Asset failure","LV",21,343,5.3196164086127103E-2,1.55090857393957E-4,"N"]
["SUS631_01381","2014-07-16","10:04:00","BRO3B1 Brogo Pumps","Short Rural","Planned",null,1,28,null,null,"N"]
["SUS631_01382","2014-07-16","10:04:14","MGE3B4 Deep Ck/Tenterfield Rd","Long Rural","Planned",null,10,162,null,null,"N"]
["SUS631_01383","2014-07-16","10:27:13","LCO22 Lake Cargelligo","Long Rural","Asset failure","HV",1,71,5.2435480357004404E-4,7.3852789235217402E-6,"N"]
["SUS631_01384","2014-07-16","10:31:52","LOC3786 Urana","Long Rural","Weather",null,1,131,9.6747153898134905E-4,7.3852789235217402E-6,"N"]
["SUS631_01385","2014-07-16","10:39:00","EUL32 Dubbo Nth/East Town","Short Rural","Asset failure","LV",1,57,1.06562771080733E-4,1.8695222996619901E-6,"N"]
["SUS631_01386","2014-07-16","10:42:26","HAM3B6 North Wagga","Short Rural","Asset failure","HV",6,82,9.1980497143369898E-4,1.1217133797971899E-5,"N"]
["SUS631_01387","2014-07-16","10:42:32","GDG8B8 Burra/ Coolac","Long Rural","Asset failure","HV",1,77,5.6866647711117403E-4,7.3852789235217402E-6,"N"]
["SUS631_01388","2014-07-16","10:43:34","WWL8B3 Lines 61/62/65","Long Rural","Asset failure","HV",1,73,5.3912536141708701E-4,7.3852789235217402E-6,"N"]
["SUS631_01389","2014-07-16","10:43:46","CCN3B4 Hurricane Hill","Short Rural","Weather",null,2,83,3.1034070174388998E-4,3.7390445993239802E-6,"N"]
["SUS631_01390","2014-07-16","10:45:52","FIN22 Rural Nth","Long Rural","Asset failure","HV",1,104,7.6806900804626105E-4,7.3852789235217402E-6,"N"]
["SUS631_01391","2014-07-16","10:57:00","GDI8B2 Boggabilla","Long Rural","Animal","Animal impact",1,7,5.16969524646522E-5,7.3852789235217402E-6,"N"]
["SUS631_01392","2014-07-16","11:00:43","WGT8B5 M35 Cumborah","Long Rural","Asset failure","HV",35,202.2,5.2265618941763403E-2,2.5848476232326101E-4,"N"]
["SUS631_01393","2014-07-16","11:10:26","CDN62 Tallebung","Long Rural","Weather",null,4,114,3.3676871891259201E-3,2.9541115694087002E-5,"N"]
["SUS631_01394","2014-07-16","11:13:06","WRA2W10 Kooloona/Gragin","Short Rural","Asset failure","LV",78,14.9871794871795,2.1854715683048702E-3,1.45822739373635E-4,"N"]
["SUS631_01395","2014-07-16","11:13:21","GDI8B5 Macintyre Gin","Short Rural","Animal","Animal impact",10,61,1.14040860279381E-3,1.8695222996619901E-5,"N"]
["SUS631_01396","2014-07-16","11:20:00","TXS3X06 Yelarbon","Long Rural","Asset failure","HV",1,56,4.1357561971721798E-4,7.3852789235217402E-6,"N"]
["SUS631_01397","2014-07-16","11:26:05","WWL8B3 Lines 61/62/65","Long Rural","Asset failure","HV",1,61,4.50502014334826E-4,7.3852789235217402E-6,"N"]
["SUS631_01398","2014-07-16","11:37:00","GFH3B1 Blumer Ave","Urban","Planned",null,113,141,null,null,"N"]
["SUS631_01399","2014-07-16","11:37:22","BNY3B2 Blayney Town","Short Rural","Other",null,44,24,1.9742155484430601E-3,8.2258981185127597E-5,"N"]
["SUS631_01400","2014-07-16","12:00:00","MUD42 Abattoir No.2","Long Rural","Planned",null,2,152,null,null,"N"]
["SUS631_01401","2014-07-16","12:58:00","BRD22 No.2 Moulamein","Long Rural","Asset failure","LV",1,38,2.80640599093826E-4,7.3852789235217402E-6,"N"]
["SUS631_01402","2014-07-16","13:00:00","YAN2314 Leeton Rd","Short Rural","Planned",null,2,180,null,null,"N"]
["SUS631_01403","2014-07-16","13:04:00","ESH3B6 Eden Town","Short Rural","Planned",null,2,24,null,null,"N"]
["SUS631_01404","2014-07-16","13:05:27","RAG3B11 Gilmour St","Short Rural","Other",null,2,50,1.8695222996619899E-4,3.7390445993239802E-6,"N"]
["SUS631_01405","2014-07-16","13:10:48","JER42 Hartwood","Long Rural","Animal","Animal impact",1,112,8.2715123943443499E-4,7.3852789235217402E-6,"N"]
["SUS631_01406","2014-07-16","13:35:53","DOR3B6 Leigh/Megan","Short Rural","Asset failure","HV",9,80,1.34605605575663E-3,1.68257006969579E-5,"N"]
["SUS631_01407","2014-07-16","13:55:00","MDI3B1 Ardglen","Long Rural","Asset failure","HV",1,276,2.038336982892E-3,7.3852789235217402E-6,"N"]
["SUS631_01408","2014-07-16","13:56:53","MBM6212 Euroka Ave","Long Rural","Asset failure","HV",1,53,3.9141978294665201E-4,7.3852789235217402E-6,"N"]
["SUS631_01409","2014-07-16","14:10:01","RGL3B8 Kalang/Valla","Short Rural","Vegetation","Blow-in/Fall-in",131,64,1.5674074960366099E-2,2.44907421255721E-4,"N"]
["SUS631_01410","2014-07-16","14:27:03","CST5362 Sth Goulburn/Collector","Long Rural","Animal","Animal impact",1,54,3.9880506187017398E-4,7.3852789235217402E-6,"N"]
["SUS631_01411","2014-07-16","14:30:59","SRG3B1 Blackville","Long Rural","Weather",null,160,14.981249999999999,1.7702513579681601E-2,1.18164462776348E-3,"N"]
["SUS631_01412","2014-07-16","14:35:00","JIN2442 Jindabyne 66/33/11 - Bullocks Flat","Short Rural","Planned",null,2,34,null,null,"N"]
["SUS631_01413","2014-07-16","14:39:00","MDI3B1 Ardglen","Long Rural","Asset failure","HV",9,55,3.6557130671432598E-3,6.6467510311695705E-5,"N"]
["SUS631_01414","2014-07-16","14:43:00","RAG3B8 Raglan","Urban","Asset failure","LV",34,242,4.2978625603309603E-2,1.77597626459957E-4,"N"]
["SUS631_01415","2014-07-16","14:44:31","QSH5252 Dane St","Short Rural","Animal","Animal impact",1,30,5.60856689898597E-5,1.8695222996619901E-6,"N"]
["SUS631_01416","2014-07-16","14:49:00","NDL616 Woolomin","Long Rural","Animal","Animal impact",463,20,6.8387682831811306E-2,3.4193841415905701E-3,"N"]
["SUS631_01417","2014-07-16","14:49:00","NDL615 Nundle","Short Rural","Animal","Animal impact",390,20,1.4582273937363501E-2,7.29113696868176E-4,"N"]
["SUS631_01418","2014-07-16","14:55:57","GDM5422 Michelago","Long Rural","Animal","Animal impact",1,35,2.5848476232326101E-4,7.3852789235217402E-6,"N"]
["SUS631_01419","2014-07-16","15:01:53","HPT3B3 Round Mtn","Short Rural","Asset failure","LV",4,84,6.2815949268642897E-4,7.4780891986479603E-6,"N"]
["SUS631_01420","2014-07-16","15:21:52","TMT62 Gocup","Long Rural","Other",null,2,39,5.7605175603469595E-4,1.4770557847043501E-5,"N"]
["SUS631_01421","2014-07-16","15:40:22","BTS8B4 Wallangra/Bukkulla","Long Rural","Animal","Animal impact",36,59,1.5686332433560199E-2,2.6587004124678298E-4,"N"]
["SUS631_01422","2014-07-16","15:47:29","DEN62 Nth Rural","Long Rural","Asset failure","HV",16,2,2.3632892555269601E-4,1.1816446277634801E-4,"N"]
["SUS631_01423","2014-07-16","15:47:29","DEN62 Nth Rural","Long Rural","Asset failure","HV",46,28.347826086956498,9.6304037162723496E-3,3.3972283048199999E-4,"N"]
["SUS631_01424","2014-07-16","16:14:53","DBW3B4 West/Sth","Urban","Other",null,65,41,1.39205198386996E-2,3.3952487411462401E-4,"N"]
["SUS631_01425","2014-07-16","16:15:00","WBN3B3 Coraki","Short Rural","Asset failure","HV",1,109,2.0377793066315701E-4,1.8695222996619901E-6,"N"]
["SUS631_01426","2014-07-16","16:26:00","EUC1412 Eucumbene Town No.3","Short Rural","Asset failure","HV",2,34,1.27127516377015E-4,3.7390445993239802E-6,"N"]
["SUS631_01427","2014-07-16","16:34:22","YOU3B8 Young Town 5","Short Rural","Asset failure","HV",108,42,8.4801531512667897E-3,2.01908408363495E-4,"N"]
["SUS631_01428","2014-07-16","17:21:12","ORS3B7 Anson St Sth","Short Rural","Weather",null,3,61,3.4212258083814401E-4,5.60856689898597E-6,"N"]
["SUS631_01429","2014-07-16","17:50:22","HPT3B5 Bogangar","Short Rural","Asset failure","LV",88,185,3.0435823038497199E-2,1.64517962370255E-4,"N"]
["SUS631_01430","2014-07-16","18:10:34","MBM6222 Patemans Ln","Long Rural","Animal","Animal impact",1,87,6.4251926634639202E-4,7.3852789235217402E-6,"N"]
["SUS631_01431","2014-07-16","18:47:41","WGT8B3 M40 Walgett Town","Short Rural","Overloads",null,35,101,6.6087613293051399E-3,6.54332804881697E-5,"N"]
["SUS631_01432","2014-07-16","21:11:00","ELI3B6 Nth Lismore","Short Rural","Asset failure","LV",80,42,6.2815949268642899E-3,1.4956178397295899E-4,"N"]
["SUS631_01433","2014-07-16","21:38:07","BMR669 Bendemeer","Short Rural","Asset failure","HV",1,68,1.27127516377015E-4,1.8695222996619901E-6,"N"]
["SUS631_01434","2014-07-16","22:12:07","FBS42 Rural Sth","Long Rural","Asset failure","HV",21,193.38095238095201,2.9991617708421799E-2,1.55090857393957E-4,"N"]
["SUS631_01435","2014-07-16","23:23:32","COW62 Cowra Town Centre","Urban","Asset failure","HV",83,88,3.8152148931280203E-2,4.3354714694636599E-4,"N"]
["SUS631_01436","2014-07-17","04:44:39","WGT8B3 M40 Walgett Town","Short Rural","Overloads",null,41,119,9.1213993000508493E-3,7.6650414286141599E-5,"N"]
["SUS631_01437","2014-07-17","06:29:19","YAS6262 Hall","Long Rural","Asset failure","HV",6,87.8333333333333,3.8920419926959599E-3,4.4311673541130499E-5,"N"]
["SUS631_01438","2014-07-17","06:52:24","EWE3B8 Federal","Short Rural","Asset failure","HV",43,161,1.294270288056E-2,8.0389458885465602E-5,"N"]
["SUS631_01439","2014-07-17","07:02:53","MLA3B1 Rushes Ck","Short Rural","Asset failure","LV",4,511.25,3.8231731028087702E-3,7.4780891986479603E-6,"N"]
["SUS631_01440","2014-07-17","07:28:20","SLI3B2 Sth Gundurimba","Short Rural","Asset failure","LV",43,122,9.8075139840267996E-3,8.0389458885465602E-5,"N"]
["SUS631_01441","2014-07-17","07:34:08","TMT72 Pyneboard East","Urban","Asset failure","HV",2,68,7.1039050583982801E-4,1.04469192035269E-5,"N"]
["SUS631_01442","2014-07-17","08:00:00","BHL72 West","Short Rural","Planned",null,28,240,null,null,"N"]
["SUS631_01443","2014-07-17","08:21:21","LEE3B4 Industrial Estate","Urban","Asset failure","HV",63,35.507936507936499,1.1684879129144799E-2,3.2907795491109702E-4,"N"]
["SUS631_01444","2014-07-17","08:21:21","LEE3B8 Leeton Nth","Urban","Asset failure","HV",43,188.16279069767401,4.2263011637867998E-2,2.2460876287582799E-4,"N"]
["SUS631_01445","2014-07-17","08:30:00","SGN3B1 Armidale Rd","Long Rural","Planned",null,63,325.30158730158701,null,null,"N"]
["SUS631_01446","2014-07-17","08:45:00","HPT3B3 Round Mtn","Short Rural","Planned",null,48,305.16666666666703,null,null,"N"]
["SUS631_01447","2014-07-17","08:46:23","BGA2K13 Horton Valley","Short Rural","Planned",null,51,258,null,null,"N"]
["SUS631_01448","2014-07-17","08:47:00","MAH3B7 Candelo","Short Rural","Planned",null,122,279.63934426229503,null,null,"N"]
["SUS631_01449","2014-07-17","08:52:01","BAR12 East Barham","Short Rural","Asset failure","HV",3,43,2.4116837665639701E-4,5.60856689898597E-6,"N"]
["SUS631_01450","2014-07-17","09:00:00","BOO1042 Kenyu","Long Rural","Planned",null,4,317.5,null,null,"N"]
["SUS631_01451","2014-07-17","09:00:00","URA3B2 Gostwyck/Arding","Long Rural","Planned",null,2,297,null,null,"N"]
["SUS631_01452","2014-07-17","09:00:00","DBS3B8 Margaret Cres","Short Rural","Planned",null,122,243.68852459016401,null,null,"N"]
["SUS631_01453","2014-07-17","09:00:00","NHD3B4 Valla","Short Rural","Planned",null,4,644.75,null,null,"N"]
["SUS631_01454","2014-07-17","09:00:00","PSK3B1 Dondingalong","Short Rural","Planned",null,21,340.80952380952402,null,null,"N"]
["SUS631_01455","2014-07-17","09:00:00","WWA8B8 M24 Tulladunna Ln/Helebah","Short Rural","Planned",null,19,354,null,null,"N"]
["SUS631_01456","2014-07-17","09:00:00","TSH3B2 Terranora Inlet","Urban","Planned",null,61,290,null,null,"N"]
["SUS631_01457","2014-07-17","09:00:06","CBC72 Central","Long Rural","Planned",null,203,243,null,null,"N"]
["SUS631_01458","2014-07-17","09:00:07","UNI8/6 Dumaresq/Booralong","Short Rural","Planned",null,103,276.22330097087399,null,null,"N"]
["SUS631_01459","2014-07-17","09:01:28","HIL1114 Lower Lachlan","Short Rural","Planned",null,69,282,null,null,"N"]
["SUS631_01460","2014-07-17","09:01:39","BNY3B1 Kings Plains","Short Rural","Planned",null,54,348.87037037036998,null,null,"N"]
["SUS631_01461","2014-07-17","09:02:28","RKF3B3 Telegraph Point","Short Rural","Planned",null,37,376.10810810810801,null,null,"N"]
["SUS631_01462","2014-07-17","09:03:00","COW42 Lachlan","Short Rural","Planned",null,1,281,null,null,"N"]
["SUS631_01463","2014-07-17","09:03:00","YOU3B6 Murringo","Short Rural","Planned",null,33,339,null,null,"N"]
["SUS631_01464","2014-07-17","09:04:00","NGN3B2 Coramba","Short Rural","Planned",null,113,516.08849557522103,null,null,"N"]
["SUS631_01465","2014-07-17","09:06:00","DEN62 Nth Rural","Long Rural","Planned",null,2,82,null,null,"N"]
["SUS631_01466","2014-07-17","09:06:00","PAM3B1 Bald Hills No.3","Long Rural","Planned",null,17,344,null,null,"N"]
["SUS631_01467","2014-07-17","09:06:00","MUD72 Eurunderee","Short Rural","Planned",null,14,235,null,null,"N"]
["SUS631_01468","2014-07-17","09:08:00","CRA22 Rural","Long Rural","Planned",null,21,128,null,null,"N"]
["SUS631_01469","2014-07-17","09:10:00","CBL3B1 Premer","Long Rural","Planned",null,12,333,null,null,"N"]
["SUS631_01470","2014-07-17","09:10:00","GDI4B1 Waggamba East","Long Rural","Planned",null,16,346,null,null,"N"]
["SUS631_01471","2014-07-17","09:10:00","MOU22 Balranald/Tooleybuc","Long Rural","Planned",null,21,321.19047619047598,null,null,"N"]
["SUS631_01472","2014-07-17","09:10:00","BPM3B6 Widderson St","Urban","Planned",null,47,180,null,null,"N"]
["SUS631_01473","2014-07-17","09:12:00","MPTD2 Surf Beach","Short Rural","Planned",null,1,396,null,null,"N"]
["SUS631_01474","2014-07-17","09:13:00","MRE2M35 Eastern Rural","Long Rural","Planned",null,34,329.5,null,null,"N"]
["SUS631_01475","2014-07-17","09:13:00","GLR3B2 Stratford","Short Rural","Planned",null,23,229.65217391304299,null,null,"N"]
["SUS631_01476","2014-07-17","09:15:00","CTM3B1 Coota Nth","Short Rural","Planned",null,143,255,null,null,"N"]
["SUS631_01477","2014-07-17","09:15:13","MRN8B2 Brayton Rd","Short Rural","Planned",null,116,326,null,null,"N"]
["SUS631_01478","2014-07-17","09:16:00","JER22 Jerilderie Town","Short Rural","Planned",null,2,235,null,null,"N"]
["SUS631_01479","2014-07-17","09:16:04","CDN62 Tallebung","Long Rural","Planned",null,1,360,null,null,"N"]
["SUS631_01480","2014-07-17","09:16:04","CDN62 Tallebung","Long Rural","Planned",null,25,196,null,null,"N"]
["SUS631_01481","2014-07-17","09:18:00","MCV3B9 Bowraville Rural","Long Rural","Planned",null,7,360,null,null,"N"]
["SUS631_01482","2014-07-17","09:18:00","TFD62 No.6","Long Rural","Planned",null,1,484,null,null,"N"]
["SUS631_01483","2014-07-17","09:19:00","BWA3B1 Abbotts Falls/Krambach","Long Rural","Planned",null,5,162,null,null,"N"]
["SUS631_01484","2014-07-17","09:20:00","JNR4081 Quarry","Short Rural","Other",null,1,200,3.7390445993239798E-4,1.8695222996619901E-6,"N"]
["SUS631_01485","2014-07-17","09:21:00","MRE2M37 Gingham Rd","Short Rural","Planned",null,7,262,null,null,"N"]
["SUS631_01486","2014-07-17","09:22:00","NARE2 Kianga/Narooma Sth","Short Rural","Planned",null,48,26,null,null,"N"]
["SUS631_01487","2014-07-17","09:25:26","THA2224 Bromley Rd","Short Rural","Animal","Animal impact",2,92,3.4399210313780602E-4,3.7390445993239802E-6,"N"]
["SUS631_01488","2014-07-17","09:30:00","MPTC2 Broulee","Short Rural","Planned",null,75,349,null,null,"N"]
["SUS631_01489","2014-07-17","09:31:00","AVE3B7 Alstonville East","Short Rural","Planned",null,30,269.73333333333301,null,null,"N"]
["SUS631_01490","2014-07-17","09:33:00","GID12 Gilgandra Town No.1","Urban","Planned",null,74,203,null,null,"N"]
["SUS631_01491","2014-07-17","09:34:58","BDA2D08 Bundarra Sth","Long Rural","Planned",null,19,345.52631578947398,null,null,"N"]
["SUS631_01492","2014-07-17","09:35:00","GDH6201 M62 Carroll","Short Rural","Asset failure","HV",3,95,5.3281385540366699E-4,5.60856689898597E-6,"N"]
["SUS631_01493","2014-07-17","09:35:42","FIN52 Tocumwal","Long Rural","Animal","Animal impact",4,74,2.1860425613624401E-3,2.9541115694087002E-5,"N"]
["SUS631_01494","2014-07-17","09:36:00","ORS3B2 Jeager Ave","Short Rural","Planned",null,19,200,null,null,"N"]
["SUS631_01495","2014-07-17","09:37:20","YAN2319 Euroley Rd","Short Rural","Planned",null,6,383.5,null,null,"N"]
["SUS631_01496","2014-07-17","09:39:00","SWT22 Mt Panorama","Short Rural","Planned",null,11,525.27272727272702,null,null,"N"]
["SUS631_01497","2014-07-17","09:41:00","BRE8B2 M51 Goodooga","Long Rural","Planned",null,10,185,null,null,"N"]
["SUS631_01498","2014-07-17","09:45:00","LOC3786 Urana","Long Rural","Planned",null,3,372.33333333333297,null,null,"N"]
["SUS631_01499","2014-07-17","09:47:00","MGE3B4 Deep Ck/Tenterfield Rd","Long Rural","Planned",null,1,128,null,null,"N"]
["SUS631_01500","2014-07-17","09:48:00","FHL3B2 Ladysmith","Short Rural","Planned",null,8,105,null,null,"N"]
["SUS631_01501","2014-07-17","09:51:00","CFL Braidwood","Long Rural","Planned",null,56,246,null,null,"N"]
["SUS631_01502","2014-07-17","09:51:00","GDG8B1 Brungle","Short Rural","Planned",null,1,79,null,null,"N"]
["SUS631_01503","2014-07-17","09:52:00","NDA3B3 Gillenbah","Long Rural","Planned",null,1,153,null,null,"N"]
["SUS631_01504","2014-07-17","09:59:00","GDM5422 Michelago","Long Rural","Asset failure","LV",15,51,5.6497383764941298E-3,1.1077918385282599E-4,"N"]
["SUS631_01505","2014-07-17","10:00:00","HAT42 Hay 132 - Carrathool","Long Rural","Asset failure","HV",5,416,1.5361380160925199E-2,3.6926394617608703E-5,"N"]
["SUS631_01506","2014-07-17","10:01:00","79P Griffith 132 - Goolgowi","Long Rural","Planned",null,1,70,null,null,"N"]
["SUS631_01507","2014-07-17","10:01:11","LGR8B2 M34 Goodooga","Long Rural","Planned",null,8,196,null,null,"N"]
["SUS631_01508","2014-07-17","10:04:00","SUT5323 Gundaroo","Long Rural","Planned",null,8,96,null,null,"N"]
["SUS631_01509","2014-07-17","10:09:00","MRH3B4 No.2 Town Nth","Short Rural","Planned",null,32,92,null,null,"N"]
["SUS631_01510","2014-07-17","10:13:00","DUN3B4 Mt Nardi","Short Rural","Asset failure","HV",7,123,1.60965870000897E-3,1.3086656097633901E-5,"N"]
["SUS631_01511","2014-07-17","10:13:58","ESH3B6 Eden Town","Short Rural","Asset failure","LV",1,256,4.7859770871347E-4,1.8695222996619901E-6,"N"]
["SUS631_01512","2014-07-17","10:16:00","RGL3B7 Bellingen Rural","Short Rural","Planned",null,32,12,null,null,"N"]
["SUS631_01513","2014-07-17","10:17:00","WWL8B4 West Wyalong Sth West Town","Short Rural","Planned",null,1,390,null,null,"N"]
["SUS631_01514","2014-07-17","10:18:00","OBR3B2 Black Springs","Long Rural","Planned",null,1,190,null,null,"N"]
["SUS631_01515","2014-07-17","10:20:00","CRO5512 Woodhouselee","Long Rural","Asset failure","HV",1,140,1.0339390492930399E-3,7.3852789235217402E-6,"N"]
["SUS631_01516","2014-07-17","10:31:00","MAH3B4 Nth Bega","Short Rural","Planned",null,1,260,null,null,"N"]
["SUS631_01517","2014-07-17","10:33:00","GID22 Rural Nth/Sth/West","Long Rural","Planned",null,4,175,null,null,"N"]
["SUS631_01518","2014-07-17","10:35:00","UQT8B1 The Rock","Long Rural","Planned",null,14,132,null,null,"N"]
["SUS631_01519","2014-07-17","10:39:00","NME8B1 Rural Sth","Long Rural","Planned",null,1,8,null,null,"N"]
["SUS631_01520","2014-07-17","10:40:24","TFD62 No.6","Long Rural","Weather",null,81,364.79012345679001,0.21822022163221999,5.9820759280526095E-4,"N"]
["SUS631_01521","2014-07-17","10:50:00","GLR3B2 Stratford","Short Rural","Asset failure","LV",8,147,2.1985582244024998E-3,1.49561783972959E-5,"N"]
["SUS631_01522","2014-07-17","10:57:05","IVA1144 Lake Morrison","Long Rural","Weather",null,1,244,1.8020080573393101E-3,7.3852789235217402E-6,"N"]
["SUS631_01523","2014-07-17","11:11:00","JUN3 Old Junee/Marrar 33/34 Lines","Long Rural","Planned",null,14,208,null,null,"N"]
["SUS631_01524","2014-07-17","11:25:00","STF8B1 Nimmitabel","Short Rural","Planned",null,7,96,null,null,"N"]
["SUS631_01525","2014-07-17","11:27:58","CTM3B2 Rural","Long Rural","Asset failure","HV",1,61,4.50502014334826E-4,7.3852789235217402E-6,"N"]
["SUS631_01526","2014-07-17","11:30:00","WBN3B4 Broadwater","Short Rural","Asset failure","HV",3,61,3.4212258083814401E-4,5.60856689898597E-6,"N"]
["SUS631_01527","2014-07-17","11:50:47","GNG5212 Jerrawa/Dalton","Long Rural","Vegetation","Blow-in/Fall-in",444,91,0.29839480962597298,3.2790638420436501E-3,"N"]
["SUS631_01528","2014-07-17","11:50:47","GNG5222 Collector/Cullerin Rd","Short Rural","Vegetation","Blow-in/Fall-in",153,93,2.66014328018905E-2,2.8603691184828501E-4,"N"]
["SUS631_01529","2014-07-17","11:50:47","YAS6252 Gunning","Short Rural","Vegetation","Blow-in/Fall-in",6,91,1.0207591756154499E-3,1.1217133797971899E-5,"N"]
["SUS631_01530","2014-07-17","11:50:47","YAS6252 Gunning","Urban","Vegetation","Blow-in/Fall-in",241,91,0.114555692526274,1.2588537640249901E-3,"N"]
["SUS631_01531","2014-07-17","12:18:00","NME8B1 Rural Sth","Long Rural","Planned",null,2,24,null,null,"N"]
["SUS631_01532","2014-07-17","13:01:04","CHS3B11 Sth Jetty No.2","Short Rural","Asset failure","LV",19,60,2.1312554216146701E-3,3.5520923693577801E-5,"N"]
["SUS631_01533","2014-07-17","13:23:46","WWA8B3 M9 Merah North/Doreen Ln","Short Rural","Animal","Animal impact",1,98,1.83213185366875E-4,1.8695222996619901E-6,"N"]
["SUS631_01534","2014-07-17","13:28:17","HOL1890 Wantagong/Woomargama","Long Rural","Asset failure","HV",16,60,7.0898677665808697E-3,1.1816446277634801E-4,"N"]
["SUS631_01535","2014-07-17","13:47:00","HIL1114 Lower Lachlan","Short Rural","Animal","Animal impact",69,6,7.7398223206006397E-4,1.2899703867667701E-4,"N"]
["SUS631_01536","2014-07-17","14:29:00","SUT5323 Gundaroo","Long Rural","Planned",null,1,62,null,null,"N"]
["SUS631_01537","2014-07-17","15:07:15","RKF3B3 Telegraph Point","Short Rural","Other",null,71,139,1.8450315575364199E-2,1.32736083276001E-4,"N"]
["SUS631_01538","2014-07-17","16:34:17","COW102 Wyangala","Long Rural","Animal","Animal impact",2,66,9.7485681790486999E-4,1.4770557847043501E-5,"N"]
["SUS631_01539","2014-07-17","17:04:00","KOO1711 Kooringal Rd","Short Rural","Asset failure","HV",38,19,1.3497951003559601E-3,7.1041847387155602E-5,"N"]
["SUS631_01540","2014-07-17","17:45:55","CFN3B13 Karangi Dam","Short Rural","Animal","Animal impact",8,764.875,1.14396069516317E-2,1.49561783972959E-5,"N"]
["SUS631_01541","2014-07-17","18:00:00","GID12 Gilgandra Town No.1","Urban","Asset failure","LV",1,29,1.5148032845113999E-4,5.2234596017634396E-6,"N"]
["SUS631_01542","2014-07-17","18:59:00","ORN3B5 Peisley St Nth","Urban","Asset failure","LV",92,89,4.2769687219239003E-2,4.8055828336223598E-4,"N"]
["SUS631_01543","2014-07-17","19:05:16","NME8B6 River West","Long Rural","Animal","Animal impact",3,72,1.5952202474807001E-3,2.2155836770565199E-5,"N"]
["SUS631_01544","2014-07-17","21:45:31","WGT8B3 M40 Walgett Town","Short Rural","Other",null,41,59,4.5223744428823497E-3,7.6650414286141599E-5,"N"]
["SUS631_01545","2014-07-18","04:30:46","BDA2D08 Bundarra Sth","Long Rural","Asset failure","HV",22,238.863636363636,3.8809640743106798E-2,1.62476136317478E-4,"N"]
["SUS631_01546","2014-07-18","05:37:59","GDH6901 M69 Emerald Hill","Short Rural","Animal","Animal impact",1,105,1.9629984146450901E-4,1.8695222996619901E-6,"N"]
["SUS631_01547","2014-07-18","05:48:52","BTH92 Lagoon/Trunkey","Long Rural","Other",null,180,253.222222222222,0.33662101333412098,1.3293502062339099E-3,"N"]
["SUS631_01548","2014-07-18","06:33:07","ORW3B7 Cargo Rd","Short Rural","Vegetation","Blow-in/Fall-in",1,65,1.2151894947802899E-4,1.8695222996619901E-6,"N"]
["SUS631_01549","2014-07-18","07:06:43","CDN62 Tallebung","Long Rural","Asset failure","HV",2,178,2.62915929677374E-3,1.4770557847043501E-5,"N"]
["SUS631_01550","2014-07-18","07:22:55","YAM3B1 Angourie","Short Rural","Other",null,358,3,2.00786694983698E-3,6.6928898327899304E-4,"N"]
["SUS631_01551","2014-07-18","07:22:55","YAM3B3 Yamba Sth","Short Rural","Other",null,835,3,4.68315336065329E-3,1.5610511202177599E-3,"N"]
["SUS631_01552","2014-07-18","07:22:55","YAM3B4 Yamba West","Short Rural","Other",null,1850,3,1.0375848763124E-2,3.45861625437468E-3,"N"]
["SUS631_01553","2014-07-18","07:22:55","YAM3B5 Yamba Rural","Short Rural","Other",null,981,3,5.5020041279052398E-3,1.8340013759684101E-3,"N"]
["SUS631_01554","2014-07-18","07:22:55","YAM3B6 Iluka","Short Rural","Other",null,1654,3,9.2765696509228002E-3,3.0921898836409299E-3,"N"]
["SUS631_01555","2014-07-18","07:22:55","YAM3B2 Yamba Nth","Urban","Other",null,537,3,8.4149934184409008E-3,2.80499780614697E-3,"N"]
["SUS631_01556","2014-07-18","07:40:32","ORS3B2 Jeager Ave","Short Rural","Asset failure","HV",3,252,1.4133588585444599E-3,5.60856689898597E-6,"N"]
["SUS631_01557","2014-07-18","08:03:26","CBC72 Central","Long Rural","Asset failure","LV",1,288,2.1269603299742599E-3,7.3852789235217402E-6,"N"]
["SUS631_01558","2014-07-18","08:05:00","BHL72 West","Short Rural","Planned",null,116,205,null,null,"N"]
["SUS631_01559","2014-07-18","08:15:00","MNE3B3 Crystal Waters","Short Rural","Planned",null,1,90,null,null,"N"]
["SUS631_01560","2014-07-18","08:25:21","FFD3381 Nabiac","Long Rural","Vegetation","Blow-in/Fall-in",71,203.88732394366201,0.106909297696901,5.2435480357004404E-4,"N"]
["SUS631_01561","2014-07-18","08:30:00","DUG3B1 Clarencetown","Short Rural","Planned",null,29,351.96551724137902,null,null,"N"]
["SUS631_01562","2014-07-18","08:30:00","DUN3B1 Tullera","Short Rural","Planned",null,4,230,null,null,"N"]
["SUS631_01563","2014-07-18","08:30:00","LIU3B5 Lismore Heights","Short Rural","Planned",null,1,30,null,null,"N"]
["SUS631_01564","2014-07-18","08:36:08","NBI8B6 Narrabri Town No.2","Short Rural","Asset failure","HV",1,54,1.00954204181747E-4,1.8695222996619901E-6,"N"]
["SUS631_01565","2014-07-18","08:37:03","BOM8B2 Nimmitabel","Long Rural","Weather",null,12,241,2.13582266468249E-2,8.8623347082260903E-5,"N"]
["SUS631_01566","2014-07-18","08:39:35","BOM8B2 Nimmitabel","Long Rural","Asset failure","HV",8,312,1.8433656193110302E-2,5.9082231388173902E-5,"N"]
["SUS631_01567","2014-07-18","08:49:00","SUT5333 Eagle Hawk","Short Rural","Planned",null,1,33,null,null,"N"]
["SUS631_01568","2014-07-18","08:53:00","EWE3B7 Brunswick No.2","Short Rural","Planned",null,64,76,null,null,"N"]
["SUS631_01569","2014-07-18","08:53:28","BOM8B3 Southern Rural","Long Rural","Asset failure","HV",59,379.016949152542,0.16514960728779299,4.3573145648778298E-4,"N"]
["SUS631_01570","2014-07-18","08:57:00","PSK3B5 Central","Urban","Planned",null,138,315,null,null,"N"]
["SUS631_01571","2014-07-18","09:00:00","AVE3B1 Alstonville Nth","Short Rural","Planned",null,42,276,null,null,"N"]
["SUS631_01572","2014-07-18","09:00:00","CHI2524 Estella","Short Rural","Planned",null,6,492,null,null,"N"]
["SUS631_01573","2014-07-18","09:00:00","CHI2527 Euberta - Ganmurra","Short Rural","Planned",null,6,465,null,null,"N"]
["SUS631_01574","2014-07-18","09:00:00","CHI2538 Farrer Rd","Short Rural","Planned",null,92,492,null,null,"N"]
["SUS631_01575","2014-07-18","09:00:00","CSO3B1 Casino Nth","Short Rural","Planned",null,78,270,null,null,"N"]
["SUS631_01576","2014-07-18","09:00:00","EUB1180 Millwood Rd","Short Rural","Planned",null,103,489,null,null,"N"]
["SUS631_01577","2014-07-18","09:00:00","EUB1201 The Gap","Short Rural","Planned",null,52,488,null,null,"N"]
["SUS631_01578","2014-07-18","09:00:00","EUB417 Collingullie","Short Rural","Planned",null,167,492,null,null,"N"]
["SUS631_01579","2014-07-18","09:00:00","GAN4951 West Ganmurra","Short Rural","Planned",null,64,494,null,null,"N"]
["SUS631_01580","2014-07-18","09:00:00","GAN4952 East Ganmurra","Short Rural","Planned",null,105,494,null,null,"N"]
["SUS631_01581","2014-07-18","09:00:00","HAM3B6 North Wagga","Short Rural","Planned",null,47,465,null,null,"N"]
["SUS631_01582","2014-07-18","09:00:00","NHD3B4 Valla","Short Rural","Planned",null,271,362,null,null,"N"]
["SUS631_01583","2014-07-18","09:00:00","CSO3B9 Casino Central No.2","Urban","Planned",null,75,270,null,null,"N"]
["SUS631_01584","2014-07-18","09:00:17","CHI2538 Farrer Rd","Short Rural","Planned",null,20,541.79999999999995,null,null,"N"]
["SUS631_01585","2014-07-18","09:00:40","PSK3B1 Dondingalong","Short Rural","Planned",null,313,335.18210862619799,null,null,"N"]
["SUS631_01586","2014-07-18","09:03:00","SFP3B1 Byron No.4","Short Rural","Planned",null,533,267,null,null,"N"]
["SUS631_01587","2014-07-18","09:05:00","DEN62 Nth Rural","Long Rural","Planned",null,5,316,null,null,"N"]
["SUS631_01588","2014-07-18","09:05:00","NME8B1 Rural Sth","Long Rural","Planned",null,4,130,null,null,"N"]
["SUS631_01589","2014-07-18","09:05:43","BOM8B3 Southern Rural","Long Rural","Vegetation","Blow-in/Fall-in",2,438,6.4695043370050498E-3,1.4770557847043501E-5,"N"]
["SUS631_01590","2014-07-18","09:06:00","BWA3B1 Abbotts Falls/Krambach","Long Rural","Planned",null,1,114,null,null,"N"]
["SUS631_01591","2014-07-18","09:07:00","SUT5323 Gundaroo","Long Rural","Planned",null,1,359,null,null,"N"]
["SUS631_01592","2014-07-18","09:08:00","RAG3B6 Limekilns","Long Rural","Planned",null,13,232,null,null,"N"]
["SUS631_01593","2014-07-18","09:08:00","GDH6301 M63 Curlewis","Short Rural","Planned",null,1,132,null,null,"N"]
["SUS631_01594","2014-07-18","09:10:10","CDN62 Tallebung","Long Rural","Planned",null,21,215,null,null,"N"]
["SUS631_01595","2014-07-18","09:11:00","TDL8B1 Bogan Gate","Long Rural","Planned",null,8,132,null,null,"N"]
["SUS631_01596","2014-07-18","09:11:00","TDL8B2 Tullamore/Tottenham","Long Rural","Planned",null,6,374,null,null,"N"]
["SUS631_01597","2014-07-18","09:11:00","EME1E08 Rocky Ck","Short Rural","Planned",null,26,158,null,null,"N"]
["SUS631_01598","2014-07-18","09:12:38","NYN52 Nyngan West","Long Rural","Planned",null,57,212.842105263158,null,null,"N"]
["SUS631_01599","2014-07-18","09:14:00","MRE2M37 Gingham Rd","Short Rural","Planned",null,7,355.71428571428601,null,null,"N"]
["SUS631_01600","2014-07-18","09:15:01","WGM4983 Wingham/Hillside","Short Rural","Asset failure","LV",4,154,1.15162573659179E-3,7.4780891986479603E-6,"N"]
["SUS631_01601","2014-07-18","09:17:00","BRI Braidwood","Long Rural","Planned",null,35,220,null,null,"N"]
["SUS631_01602","2014-07-18","09:20:00","YOU3B6 Murringo","Short Rural","Other",null,10,80,1.49561783972959E-3,1.8695222996619901E-5,"N"]
["SUS631_01603","2014-07-18","09:20:54","BBA3B1 Burindi","Long Rural","Asset failure","HV",18,56,7.44436115490992E-3,1.32935020623391E-4,"N"]
["SUS631_01604","2014-07-18","09:21:16","CDN62 Tallebung","Long Rural","Planned",null,20,280,null,null,"N"]
["SUS631_01605","2014-07-18","09:29:00","ANN8B1 No.1 72 Line","Long Rural","Planned",null,4,139,null,null,"N"]
["SUS631_01606","2014-07-18","09:30:00","MNE3B6 Emerald Beach","Short Rural","Planned",null,1,90,null,null,"N"]
["SUS631_01607","2014-07-18","09:34:00","CNA3B2 Caroona","Short Rural","Planned",null,1,163,null,null,"N"]
["SUS631_01608","2014-07-18","09:35:00","JNR4081 Quarry","Short Rural","Planned",null,13,130,null,null,"N"]
["SUS631_01609","2014-07-18","09:36:06","BDA2D08 Bundarra Sth","Long Rural","Planned",null,19,331.31578947368399,null,null,"N"]
["SUS631_01610","2014-07-18","09:37:00","DBW3B5 Rural West","Short Rural","Planned",null,1,148,null,null,"N"]
["SUS631_01611","2014-07-18","09:40:00","BODC2 Potato Pt","Short Rural","Planned",null,148,65,null,null,"N"]
["SUS631_01612","2014-07-18","09:41:00","MWN3B1 Uki","Long Rural","Planned",null,5,139,null,null,"N"]
["SUS631_01613","2014-07-18","09:47:33","79F Griffith 132 - Yenda","Short Rural","Animal","Animal impact",2,148,5.5337860069994897E-4,3.7390445993239802E-6,"N"]
["SUS631_01614","2014-07-18","09:53:00","DUN3B4 Mt Nardi","Short Rural","Asset failure","LV",3,72,4.0381681672699E-4,5.60856689898597E-6,"N"]
["SUS631_01615","2014-07-18","09:53:00","SUT5333 Eagle Hawk","Short Rural","Planned",null,1,99,null,null,"N"]
["SUS631_01616","2014-07-18","10:00:00","DBS3B1 Rural Sth","Long Rural","Vegetation","Grow-in",1,85,6.2774870849934797E-4,7.3852789235217402E-6,"N"]
["SUS631_01617","2014-07-18","10:00:00","LIU3B5 Lismore Heights","Short Rural","Planned",null,1,30,null,null,"N"]
["SUS631_01618","2014-07-18","10:01:23","RGL3B6 Bellingen Town","Short Rural","Asset failure","HV",45,162,1.36288175645359E-2,8.4128503484789605E-5,"N"]
["SUS631_01619","2014-07-18","10:02:00","CAR2218 Wyvern","Short Rural","Planned",null,1,214,null,null,"N"]
["SUS631_01620","2014-07-18","10:04:00","BRI Braidwood","Long Rural","Planned",null,2,154,null,null,"N"]
["SUS631_01621","2014-07-18","10:07:00","DNO122 Craboon","Long Rural","Asset failure","LV",3,158,3.50062220974931E-3,2.2155836770565199E-5,"N"]
["SUS631_01622","2014-07-18","10:09:00","COW42 Lachlan","Short Rural","Planned",null,23,108,null,null,"N"]
["SUS631_01623","2014-07-18","10:15:00","WGA3B2 Double Crossing","Short Rural","Planned",null,2,135,null,null,"N"]
["SUS631_01624","2014-07-18","10:15:59","HGE3B1 Grafton Rd","Short Rural","Asset failure","HV",21,128,5.02527594149143E-3,3.9259968292901797E-5,"N"]
["SUS631_01625","2014-07-18","10:17:00","DBW3B5 Rural West","Short Rural","Planned",null,17,302.64705882352899,null,null,"N"]
["SUS631_01626","2014-07-18","10:19:00","STL3B4 Crossmaglen","Short Rural","Vegetation","Blow-in/Fall-in",13,120,2.9164547874727001E-3,2.4303789895605898E-5,"N"]
["SUS631_01627","2014-07-18","10:25:00","CWD13 Cargo","Long Rural","Planned",null,1,214,null,null,"N"]
["SUS631_01628","2014-07-18","10:25:00","MLN3B5 Woodford Dale-Leigh","Short Rural","Other",null,1,300,5.60856689898597E-4,1.8695222996619901E-6,"N"]
["SUS631_01629","2014-07-18","10:32:00","DUN3B3 Nimbin","Short Rural","Planned",null,2,146,null,null,"N"]
["SUS631_01630","2014-07-18","10:34:00","BOM8B2 Nimmitabel","Long Rural","Weather",null,162,124,0.148355483015705,1.1964151856105199E-3,"N"]
["SUS631_01631","2014-07-18","10:34:00","BOM8B3 Southern Rural","Long Rural","Weather",null,528,124,0.48352898168081598,3.89942727161948E-3,"N"]
["SUS631_01632","2014-07-18","10:34:00","BOM8B1 Timber Mill","Short Rural","Weather",null,1,123,2.2995124285842499E-4,1.8695222996619901E-6,"N"]
["SUS631_01633","2014-07-18","10:34:00","BOM8B4 Bombala","Short Rural","Weather",null,725,122,0.16535924740510299,1.3554036672549399E-3,"N"]
["SUS631_01634","2014-07-18","10:34:00","BOM8B5 Cathcart","Short Rural","Weather",null,139,125,3.2482949956627101E-2,2.5986359965301701E-4,"N"]
["SUS631_01635","2014-07-18","10:34:00","STF8B1 Nimmitabel","Short Rural","Weather",null,30,124,6.9546229547425998E-3,5.60856689898597E-5,"N"]
["SUS631_01636","2014-07-18","10:37:00","BAL3B13 Ballina Heights","Short Rural","Planned",null,1,27,null,null,"N"]
["SUS631_01637","2014-07-18","10:44:00","CTM3B2 Rural","Long Rural","Animal","Animal impact",1,13,9.6008626005782699E-5,7.3852789235217402E-6,"N"]
["SUS631_01638","2014-07-18","10:46:57","YAM3B3 Yamba Sth","Short Rural","Vegetation","Blow-in/Fall-in",835,282.62155688622801,0.44118669797493298,1.5610511202177599E-3,"N"]
["SUS631_01639","2014-07-18","10:48:00","SUT5333 Eagle Hawk","Short Rural","Planned",null,2,45,null,null,"N"]
["SUS631_01640","2014-07-18","11:00:00","STL3B7 Sawtell Town","Short Rural","Asset failure","LV",131,10,2.44907421255721E-3,2.44907421255721E-4,"N"]
["SUS631_01641","2014-07-18","11:49:22","AVE3B1 Alstonville Nth","Short Rural","Vegetation","Blow-in/Fall-in",2,102,3.8138254913104602E-4,3.7390445993239802E-6,"N"]
["SUS631_01642","2014-07-18","11:51:34","NDA3B2 May St","Short Rural","Asset failure","HV",1,152,2.8416738954862301E-4,1.8695222996619901E-6,"N"]
["SUS631_01643","2014-07-18","11:55:00","WGT8B4 M43 Walgett Town","Short Rural","Asset failure","LV",1,213,3.9820824982800398E-4,1.8695222996619901E-6,"N"]
["SUS631_01644","2014-07-18","12:00:00","KEW3B3 Middle Brother","Short Rural","Planned",null,186,160,null,null,"N"]
["SUS631_01645","2014-07-18","12:07:54","SFP3B4 Talofa","Short Rural","Vegetation","Blow-in/Fall-in",4,90,6.7302802787831705E-4,7.4780891986479603E-6,"N"]
["SUS631_01646","2014-07-18","12:22:18","MWN3B8 Industrial","Short Rural","Vegetation","Blow-in/Fall-in",8,152,2.2733391163889801E-3,1.49561783972959E-5,"N"]
["SUS631_01647","2014-07-18","12:22:18","MWN3B8 Industrial","Short Rural","Vegetation","Blow-in/Fall-in",361,95.578947368421098,6.4505997427537307E-2,6.7489755017797895E-4,"N"]
["SUS631_01648","2014-07-18","12:28:00","MTG4B1 Tibooburra Backbone Line","Long Rural","Other",null,12,104,9.2168280965551404E-3,8.8623347082260903E-5,"N"]
["SUS631_01649","2014-07-18","12:34:44","RVL3K1 Rappville","Long Rural","Vegetation","Blow-in/Fall-in",48,70.5625,2.5013939713968099E-2,3.5449338832904399E-4,"N"]
["SUS631_01650","2014-07-18","12:35:10","KKN3B1 Coaldale","Short Rural","Vegetation","Blow-in/Fall-in",3,77,4.3185965122192002E-4,5.60856689898597E-6,"N"]
["SUS631_01651","2014-07-18","12:45:00","SUT5333 Eagle Hawk","Short Rural","Planned",null,2,39,null,null,"N"]
["SUS631_01652","2014-07-18","12:45:00","WGA3B5 East Woolgoolga","Short Rural","Planned",null,1,90,null,null,"N"]
["SUS631_01653","2014-07-18","12:45:02","BNY3B4 Millthorpe","Long Rural","Vegetation","Blow-in/Fall-in",1,141,1.04132432821657E-3,7.3852789235217402E-6,"N"]
["SUS631_01654","2014-07-18","12:55:22","MWN3B9 Racecourse Rd","Short Rural","Asset failure","HV",14,150.28571428571399,3.9334749184888303E-3,2.61733121952679E-5,"N"]
["SUS631_01655","2014-07-18","12:57:13","SFP3B4 Talofa","Short Rural","Vegetation","Blow-in/Fall-in",73,297.42465753424699,4.0591068170261098E-2,1.3647512787532499E-4,"N"]
["SUS631_01656","2014-07-18","13:05:56","WGA3B3 Wooli","Short Rural","Weather",null,2,100,3.7390445993239798E-4,3.7390445993239802E-6,"N"]
["SUS631_01657","2014-07-18","13:13:01","URA3B2 Gostwyck/Arding","Long Rural","Third party","Vehicle impact",77,63.935064935064901,3.6357728140497599E-2,5.6866647711117403E-4,"N"]
["SUS631_01658","2014-07-18","13:25:00","STL3B4 Crossmaglen","Short Rural","Weather",null,13,75,1.82278424217044E-3,2.4303789895605898E-5,"N"]
["SUS631_01659","2014-07-18","13:26:30","MWN3B5 Tumbulgum","Short Rural","Weather",null,622,39,4.5350871945200599E-2,1.1628428703897599E-3,"N"]
["SUS631_01660","2014-07-18","13:33:19","NARF2 Tilba","Short Rural","Third party","Other",1,67,1.25257994077353E-4,1.8695222996619901E-6,"N"]
["SUS631_01661","2014-07-18","13:45:00","WGA3B6 Corindi","Short Rural","Planned",null,1,90,null,null,"N"]
["SUS631_01662","2014-07-18","13:51:48","CLA3B3 Piallaway","Short Rural","Asset failure","HV",7,42,5.4963955610062495E-4,1.3086656097633901E-5,"N"]
["SUS631_01663","2014-07-18","13:58:10","BTH22 Piper St","Urban","Overloads",null,90,27,1.2693006832285201E-2,4.7011136415871002E-4,"N"]
["SUS631_01664","2014-07-18","13:58:46","MWN3B1 Uki","Long Rural","Weather",null,1,117,8.6407763405204404E-4,7.3852789235217402E-6,"N"]
["SUS631_01665","2014-07-18","14:12:00","CDN62 Tallebung","Long Rural","Asset failure","HV",1,8,5.9082231388173902E-5,7.3852789235217402E-6,"N"]
["SUS631_01666","2014-07-18","14:12:30","BRI Braidwood","Long Rural","Weather",null,1,82,6.0559287172878297E-4,7.3852789235217402E-6,"N"]
["SUS631_01667","2014-07-18","14:39:40","ORW3B7 Cargo Rd","Short Rural","Vegetation","Blow-in/Fall-in",1,84,1.57039873171607E-4,1.8695222996619901E-6,"N"]
["SUS631_01668","2014-07-18","14:46:00","KTE3B6 Cundletown","Short Rural","Asset failure","LV",1,95,1.7760461846788901E-4,1.8695222996619901E-6,"N"]
["SUS631_01669","2014-07-18","15:27:02","UBV3B1 Woodenbong","Short Rural","Asset failure","HV",252,80.619047619047606,3.7981215039933E-2,4.7111961951482202E-4,"N"]
["SUS631_01670","2014-07-18","15:53:01","MWN3B5 Tumbulgum","Short Rural","Weather",null,11,170,3.4960067003679202E-3,2.0564745296281899E-5,"N"]
["SUS631_01671","2014-07-18","16:31:00","MWN3B1 Uki","Long Rural","Weather",null,1,44,3.2495227263495702E-4,7.3852789235217402E-6,"N"]
["SUS631_01672","2014-07-18","16:49:51","GGG22 Tallawang","Short Rural","Asset failure","HV",18,130,4.3746821812090603E-3,3.36514013939158E-5,"N"]
["SUS631_01673","2014-07-18","17:04:42","ORS3B2 Jeager Ave","Short Rural","Weather",null,19,108,3.8362597589063998E-3,3.5520923693577801E-5,"N"]
["SUS631_01674","2014-07-18","17:52:00","DUG3B1 Clarencetown","Short Rural","Asset failure","LV",1,131,2.44907421255721E-4,1.8695222996619901E-6,"N"]
["SUS631_01675","2014-07-18","17:53:30","CUD3B3 Duranbah","Short Rural","Weather",null,63,119,1.40158086805659E-2,1.17779904878705E-4,"N"]
["SUS631_01676","2014-07-18","18:00:00","NYN52 Nyngan West","Long Rural","Asset failure","LV",1,120,8.8623347082260903E-4,7.3852789235217402E-6,"N"]
["SUS631_01677","2014-07-18","18:58:39","NARC2 Dalmeny","Short Rural","Asset failure","LV",1,112,2.0938649756214301E-4,1.8695222996619901E-6,"N"]
["SUS631_01678","2014-07-18","19:00:57","GLS5/9 Gara Dangersleigh","Short Rural","Asset failure","HV",4,92.5,6.9172325087493605E-4,7.4780891986479603E-6,"N"]
["SUS631_01679","2014-07-18","19:20:36","BRL20420 Stroud Sth","Short Rural","Asset failure","LV",36,177,1.19125960934462E-2,6.7302802787831695E-5,"N"]
["SUS631_01680","2014-07-18","19:52:11","CBB42 Tambar Springs","Long Rural","Animal","Animal impact",7,95,4.9112104841419601E-3,5.16969524646522E-5,"N"]
["SUS631_01681","2014-07-18","22:23:04","ALU22 West Albury/Howlong","Short Rural","Asset failure","LV",1,110,2.0564745296281899E-4,1.8695222996619901E-6,"N"]
["SUS631_01682","2014-07-18","22:46:35","NSK3B3 Aldavilla","Short Rural","Vegetation","Blow-in/Fall-in",1041,61,0.118716535550836,1.9461727139481299E-3,"N"]
["SUS631_01683","2014-07-19","02:13:46","NME8B1 Rural Sth","Long Rural","Animal","Animal impact",321,78.566978193146397,0.18625673445121799,2.3706745344504801E-3,"N"]
["SUS631_01684","2014-07-19","02:53:31","MLS3B4 City West","Urban","Overloads",null,128,115,7.6889325337957795E-2,6.6860282902571995E-4,"N"]
["SUS631_01685","2014-07-19","04:19:25","DBS3B1 Rural Sth","Long Rural","Asset failure","HV",1,126,9.3054514436374E-4,7.3852789235217402E-6,"N"]
["SUS631_01686","2014-07-19","06:00:05","GDI8B3 Talwood","Long Rural","Animal","Animal impact",145,196,0.209889627006488,1.07086544391065E-3,"N"]
["SUS631_01687","2014-07-19","06:40:43","CST5372 Tarago","Short Rural","Asset failure","HV",2,199,7.4406987526547195E-4,3.7390445993239802E-6,"N"]
["SUS631_01688","2014-07-19","06:52:51","TNA3B1 Bilambil Hts","Short Rural","Vegetation","Blow-in/Fall-in",9,96,1.61526726690796E-3,1.68257006969579E-5,"N"]
["SUS631_01689","2014-07-19","07:10:28","YLI2H13 Gunyerwarildi","Short Rural","Asset failure","HV",40,132.44999999999999,9.9047291436092193E-3,7.4780891986479605E-5,"N"]
["SUS631_01690","2014-07-19","07:14:11","BTS8B4 Wallangra/Bukkulla","Long Rural","Asset failure","Subtransmission",204,50,7.5329845019921807E-2,1.5065969003984401E-3,"N"]
["SUS631_01691","2014-07-19","07:46:23","DUN3B5 Rosebank","Short Rural","Vegetation","Grow-in",1,219,4.0942538362597597E-4,1.8695222996619901E-6,"N"]
["SUS631_01692","2014-07-19","08:00:00","MSW3B4 Johnston St","Urban","Planned",null,2,178,null,null,"N"]
["SUS631_01693","2014-07-19","08:33:45","QDI3B4 East Rural","Long Rural","Asset failure","HV",1,233,1.72076998918057E-3,7.3852789235217402E-6,"N"]
["SUS631_01694","2014-07-19","08:39:25","ORW3B7 Cargo Rd","Short Rural","Asset failure","LV",1,61,1.14040860279381E-4,1.8695222996619901E-6,"N"]
["SUS631_01695","2014-07-19","09:07:15","NAN3B2 Mundarlo","Short Rural","Weather",null,1,92,1.7199605156890301E-4,1.8695222996619901E-6,"N"]
["SUS631_01696","2014-07-19","09:14:47","RAG3B6 Limekilns","Long Rural","Asset failure","LV",1,101,7.4591317127569595E-4,7.3852789235217402E-6,"N"]
["SUS631_01697","2014-07-19","09:18:37","CHD3B1 Crescent Head","Short Rural","Asset failure","LV",1,107,2.0003888606383299E-4,1.8695222996619901E-6,"N"]
["SUS631_01698","2014-07-19","09:25:00","BBYL2 Surfside","Short Rural","Vegetation","Grow-in",1,143,2.6734168885166499E-4,1.8695222996619901E-6,"N"]
["SUS631_01699","2014-07-19","09:31:00","DBS3B8 Margaret Cres","Short Rural","Weather",null,4,12,8.9737070383775493E-5,7.4780891986479603E-6,"N"]
["SUS631_01700","2014-07-19","09:35:00","CST5342 Bourke St/Citizen St","Urban","Planned",null,3,133,null,null,"N"]
["SUS631_01701","2014-07-19","09:44:10","MWA8B4 North St and Rural","Long Rural","Other",null,1,156,1.15210351206939E-3,7.3852789235217402E-6,"N"]
["SUS631_01702","2014-07-19","09:57:34","RAG3B5 OConnell","Long Rural","Overloads",null,13,89,8.5447677145146592E-3,9.6008626005782699E-5,"N"]
["SUS631_01703","2014-07-19","10:27:10","TUM12 Ournie","Short Rural","Asset failure","HV",1,114,2.13125542161467E-4,1.8695222996619901E-6,"N"]
["SUS631_01704","2014-07-19","11:29:16","CRO5532 Binda Bigga","Long Rural","Weather",null,1,102,7.5329845019921798E-4,7.3852789235217402E-6,"N"]
["SUS631_01705","2014-07-19","13:22:55","MYT3B3 Moruya","Short Rural","Asset failure","HV",919,54.3536452665941,9.3384508390416093E-2,1.7180909933893699E-3,"N"]
["SUS631_01706","2014-07-19","13:50:00","WBN3B3 Coraki","Short Rural","Asset failure","HV",1,145,2.71080733450989E-4,1.8695222996619901E-6,"N"]
["SUS631_01707","2014-07-19","14:18:00","SFP3B4 Talofa","Short Rural","Asset failure","LV",1,74,1.38344650174987E-4,1.8695222996619901E-6,"N"]
["SUS631_01708","2014-07-19","14:23:00","JER12 Finley Rd","Long Rural","Asset failure","HV",1,102,7.5329845019921798E-4,7.3852789235217402E-6,"N"]
["SUS631_01709","2014-07-19","14:26:15","STR3B2 Wards River","Short Rural","Asset failure","HV",1,123,2.2995124285842499E-4,1.8695222996619901E-6,"N"]
["SUS631_01710","2014-07-19","15:03:38","MAH3B4 Nth Bega","Short Rural","Asset failure","HV",2,130,4.86075797912117E-4,3.7390445993239802E-6,"N"]
["SUS631_01711","2014-07-19","15:20:00","TPT3B2 Telegraph Pt","Short Rural","Asset failure","LV",3,111,6.2255092578744305E-4,5.60856689898597E-6,"N"]
["SUS631_01712","2014-07-19","15:29:16","PPM3B2 Coomba Park","Short Rural","Vegetation","Blow-in/Fall-in",1,133,2.4864646585504501E-4,1.8695222996619901E-6,"N"]
["SUS631_01713","2014-07-19","16:56:04","BLH3B3 Bulahdelah Central/Wootton/Seal Rocks","Long Rural","Vegetation","Blow-in/Fall-in",353,163.59773371104799,0.42649985783338101,2.6070034600031802E-3,"N"]
["SUS631_01714","2014-07-19","18:11:13","NME8B1 Rural Sth","Long Rural","Animal","Animal impact",321,61.732087227414297,0.14634668714850699,2.3706745344504801E-3,"N"]
["SUS631_01715","2014-07-19","19:14:52","CDN52 Tottenham","Long Rural","Asset failure","HV",11,209,1.6978756245176502E-2,8.1238068158739202E-5,"N"]
["SUS631_01716","2014-07-19","20:31:09","MAR5515 Binalong","Long Rural","Animal","Animal impact",1,39,2.8802587801734798E-4,7.3852789235217402E-6,"N"]
["SUS631_01717","2014-07-19","22:43:00","NME8B4 Narromine Town Nth","Short Rural","Planned",null,61,347,null,null,"N"]
["SUS631_01718","2014-07-19","23:35:00","CHS3B9 Bonville","Short Rural","Planned",null,23,545,null,null,"N"]
["SUS631_01719","2014-07-20","03:06:00","MGA3B2 Willawarrin","Long Rural","Animal","Animal impact",64,296.984375,0.14037199649937801,4.7265785110539203E-4,"N"]
["SUS631_01720","2014-07-20","04:03:49","ELI3B10 Tregeagle","Short Rural","Asset failure","LV",5,77,7.1976608536986595E-4,9.3476114983099506E-6,"N"]
["SUS631_01721","2014-07-20","04:37:50","YOU3B3 Bribaree","Long Rural","Asset failure","HV",23,223,3.7879095598743001E-2,1.69861415241E-4,"N"]
["SUS631_01722","2014-07-20","05:57:16","COBD2 Sth Cobargo","Long Rural","Animal","Animal impact",66,144,7.0189690889150697E-2,4.87428408952435E-4,"N"]
["SUS631_01723","2014-07-20","07:19:13","WTE3686 Spence St","Urban","Asset failure","LV",87,93,4.2263011637867998E-2,4.54440985353419E-4,"N"]
["SUS631_01724","2014-07-20","07:51:26","CFL Braidwood","Long Rural","Animal","Animal impact",1,94,6.9421621881104404E-4,7.3852789235217402E-6,"N"]
["SUS631_01725","2014-07-20","07:56:47","SMN3B3 Kinchella","Short Rural","Animal","Animal impact",4,83,6.2068140348778104E-4,7.4780891986479603E-6,"N"]
["SUS631_01726","2014-07-20","07:59:36","LCO22 Lake Cargelligo","Long Rural","Planned",null,55,256.90909090909099,null,null,"N"]
["SUS631_01727","2014-07-20","08:02:00","LCO22 Lake Cargelligo","Long Rural","Asset failure","HV",123,251.43089430894301,0.22839713598883299,9.0838930759317403E-4,"N"]
["SUS631_01728","2014-07-20","08:29:08","SFP3B4 Talofa","Short Rural","Asset failure","HV",1,137,2.5612455505369299E-4,1.8695222996619901E-6,"N"]
["SUS631_01729","2014-07-20","08:39:19","PPM3B3 Smiths Lake","Short Rural","Asset failure","LV",1,242,4.52424396518202E-4,1.8695222996619901E-6,"N"]
["SUS631_01730","2014-07-20","08:44:28","COBD2 Sth Cobargo","Long Rural","Asset failure","HV",66,119,5.8003980665339801E-2,4.87428408952435E-4,"N"]
["SUS631_01731","2014-07-20","08:46:00","EWE3B11 Byron No.3","Short Rural","Planned",null,84,344,null,null,"N"]
["SUS631_01732","2014-07-20","08:47:00","PKT3B10 Tichbourne","Long Rural","Planned",null,83,612.42168674698803,null,null,"N"]
["SUS631_01733","2014-07-20","08:51:00","TMT12 Tumut Nth","Urban","Planned",null,47,457.468085106383,null,null,"N"]
["SUS631_01734","2014-07-20","09:02:00","COW62 Cowra Town Centre","Urban","Planned",null,72,334,null,null,"N"]
["SUS631_01735","2014-07-20","09:08:00","NARD2 Narooma","Short Rural","Planned",null,218,362.57798165137598,null,null,"N"]
["SUS631_01736","2014-07-20","09:09:38","CSO3B3 Leeville","Short Rural","Weather",null,3,76,4.2625108432293399E-4,5.60856689898597E-6,"N"]
["SUS631_01737","2014-07-20","09:17:00","DBW3B4 West/Sth","Urban","Planned",null,52,339,null,null,"N"]
["SUS631_01738","2014-07-20","09:22:56","DOR3B4 Fernbrook/Deervale","Short Rural","Overloads",null,2,138,5.1598815470670903E-4,3.7390445993239802E-6,"N"]
["SUS631_01739","2014-07-20","10:30:16","STH3B11 Robert St","Urban","Asset failure","LV",1,91,4.7533482376047297E-4,5.2234596017634396E-6,"N"]
["SUS631_01740","2014-07-20","10:33:39","STH3B4 Coledale","Short Rural","Asset failure","LV",1,87,1.62648440070593E-4,1.8695222996619901E-6,"N"]
["SUS631_01741","2014-07-20","10:40:05","BHL72 West","Short Rural","Overloads",null,148,53,1.46645329185487E-2,2.7668930034997497E-4,"N"]
["SUS631_01742","2014-07-20","11:04:12","RKF3B2 Cameron St","Short Rural","Asset failure","HV",868,59,9.5741976010289803E-2,1.62274535610661E-3,"N"]
["SUS631_01743","2014-07-20","11:46:00","HAY2036 East Rural","Short Rural","Weather",null,1,32,5.9824713589183703E-5,1.8695222996619901E-6,"N"]
["SUS631_01744","2014-07-20","12:29:00","SWT12 Stewarts Mt","Long Rural","Asset failure","LV",1,187,1.38104715869857E-3,7.3852789235217402E-6,"N"]
["SUS631_01745","2014-07-20","12:30:02","MCV3B10 Warrell Ck","Short Rural","Weather",null,12,39.3333333333333,8.8241452544045903E-4,2.24342675959439E-5,"N"]
["SUS631_01746","2014-07-20","13:18:56","GDG8B8 Burra/ Coolac","Long Rural","Asset failure","HV",1,67,4.9481368787595702E-4,7.3852789235217402E-6,"N"]
["SUS631_01747","2014-07-20","15:25:18","7L3 Kamarah","Long Rural","Asset failure","HV",388,177.03865979381399,0.50730219453563197,2.86548822232644E-3,"N"]
["SUS631_01748","2014-07-20","15:41:49","MOU22 Balranald/Tooleybuc","Long Rural","Asset failure","HV",1,60,4.43116735411305E-4,7.3852789235217402E-6,"N"]
["SUS631_01749","2014-07-20","15:46:13","MDI3B4 Blandford","Short Rural","Asset failure","HV",1,114,2.13125542161467E-4,1.8695222996619901E-6,"N"]
["SUS631_01750","2014-07-20","16:00:00","GLS5/7 City Nth","Urban","Asset failure","LV",1,48,2.5072606088464498E-4,5.2234596017634396E-6,"N"]
["SUS631_01751","2014-07-20","16:14:39","PKT3B2 Parkes Town No.2","Short Rural","Asset failure","LV",23,85,3.6549160958391901E-3,4.29990128922258E-5,"N"]
["SUS631_01752","2014-07-20","16:43:00","GDH8B2 M73 Pullaming","Long Rural","Asset failure","HV",6,81,3.58924555683157E-3,4.4311673541130499E-5,"N"]
["SUS631_01753","2014-07-20","17:14:26","EUL42 Rural East","Long Rural","Other",null,1431,83,0.87717173358344802,1.05683341395596E-2,"N"]
["SUS631_01754","2014-07-20","17:14:26","EUL52 Rural Sth","Long Rural","Other",null,560,84,0.34740352056246299,4.1357561971721796E-3,"N"]
["SUS631_01755","2014-07-20","17:14:26","EUL32 Dubbo Nth/East Town","Short Rural","Other",null,1430,83,0.221893601746882,2.6734168885166501E-3,"N"]
["SUS631_01756","2014-07-20","17:14:26","EUL72 Sth Dubbo","Short Rural","Other",null,995,88,0.163695372558404,1.8601746881636799E-3,"N"]
["SUS631_01757","2014-07-20","17:14:26","EUL82 Hawthorn St","Short Rural","Other",null,65,91,1.10582244025007E-2,1.2151894947802899E-4,"N"]
["SUS631_01758","2014-07-20","17:14:26","GUE112 Maryvale","Short Rural","Other",null,282,38,2.0033800963177899E-2,5.2720528850468097E-4,"N"]
["SUS631_01759","2014-07-20","17:14:26","GUE122 Geurie","Short Rural","Other",null,134,38,9.5196075498788606E-3,2.5051598815470702E-4,"N"]
["SUS631_01760","2014-07-20","17:14:26","GUE132 Ponto","Short Rural","Other",null,61,38,4.3335526906164903E-3,1.14040860279381E-4,"N"]
["SUS631_01761","2014-07-20","17:14:26","EUL62 Dubbo Sth/East Town","Urban","Other",null,1283,85,0.56964438687031205,6.7016986690624902E-3,"N"]
["SUS631_01762","2014-07-20","17:19:06","WGN72 Yeoval","Long Rural","Other",null,155,28,3.2052110528084397E-2,1.1447182331458701E-3,"N"]
["SUS631_01763","2014-07-20","17:22:05","MBL122 Stuart Town","Long Rural","Other",null,163,25,3.00950116133511E-2,1.20380046453404E-3,"N"]
["SUS631_01764","2014-07-20","17:22:05","MBL122 Stuart Town","Long Rural","Other",null,168,25,3.1018171478791299E-2,1.2407268591516499E-3,"N"]
["SUS631_01765","2014-07-20","17:22:05","WGN32 Geurie","Long Rural","Asset failure","Subtransmission",129,25,2.38175245283576E-2,9.5270098113430499E-4,"N"]
["SUS631_01766","2014-07-20","17:22:05","WGN42 Wellington Town No.2","Short Rural","Other",null,1069,25,4.9962983458466698E-2,1.9985193383386698E-3,"N"]
["SUS631_01767","2014-07-20","17:22:05","WGN52 Nth","Short Rural","Other",null,1193,25,5.57585025874189E-2,2.2303401034967502E-3,"N"]
["SUS631_01768","2014-07-20","17:27:00","LRN3B6 Dunbogan","Short Rural","Asset failure","LV",1,127,2.3742933205707299E-4,1.8695222996619901E-6,"N"]
["SUS631_01769","2014-07-20","17:43:15","WJL3B3 West Plain","Long Rural","Asset failure","HV",12,282,2.4991783877197599E-2,8.8623347082260903E-5,"N"]
["SUS631_01770","2014-07-20","18:19:47","ALU32 Lavington West/Jindera","Long Rural","Third party","Vehicle impact",4,1396,4.1239397508945397E-2,2.9541115694087002E-5,"N"]
["SUS631_01771","2014-07-20","18:20:00","ALU32 Lavington West/Jindera","Long Rural","Third party","Vehicle impact",426,85,0.26742094982072201,3.1461288214202601E-3,"N"]
["SUS631_01772","2014-07-20","18:48:36","FFD3381 Nabiac","Long Rural","Asset failure","LV",2,90,1.3293502062339099E-3,1.4770557847043501E-5,"N"]
["SUS631_01773","2014-07-20","19:00:38","WGM4981 Mt George/Elands","Long Rural","Asset failure","HV",1,112,8.2715123943443499E-4,7.3852789235217402E-6,"N"]
["SUS631_01774","2014-07-20","19:05:25","MSW3B3 Esplanade","Urban","Overloads",null,69,98,3.5321033827124398E-2,3.6041871252167701E-4,"N"]
["SUS631_01775","2014-07-20","19:18:00","WJL3B3 West Plain","Long Rural","Asset failure","HV",1,31,2.2894364662917399E-4,7.3852789235217402E-6,"N"]
["SUS631_01776","2014-07-20","19:29:46","DUN3B2 Bullfrog Ck","Short Rural","Asset failure","LV",1,809,1.5124435404265499E-3,1.8695222996619901E-6,"N"]
["SUS631_01777","2014-07-20","19:37:00","GOU42 Goulburn No.4","Short Rural","Asset failure","LV",50,118,1.10301815680057E-2,9.3476114983099496E-5,"N"]
["SUS631_01778","2014-07-20","19:59:36","SLI3B10 Jiggi","Short Rural","Asset failure","LV",1,781,1.46009691603601E-3,1.8695222996619901E-6,"N"]
["SUS631_01779","2014-07-20","21:34:53","BEE1341 Yoogali","Short Rural","Overloads",null,4,83,6.2068140348778104E-4,7.4780891986479603E-6,"N"]
["SUS631_01780","2014-07-20","21:49:36","URA3B2 Gostwyck/Arding","Long Rural","Third party","Vehicle impact",77,104.324675324675,5.9325945592650198E-2,5.6866647711117403E-4,"N"]
["SUS631_01781","2014-07-20","21:52:04","AVE3B5 Alstonville 1","Urban","Animal","Animal impact",1039,50,0.27135872631161101,5.4271745262322096E-3,"N"]
["SUS631_01782","2014-07-21","00:15:59","GBN6222 Taralga","Long Rural","Weather",null,1,100,7.3852789235217403E-4,7.3852789235217402E-6,"N"]
["SUS631_01783","2014-07-21","06:08:36","MWN3B5 Tumbulgum","Short Rural","Asset failure","LV",1,244,4.5616344111752601E-4,1.8695222996619901E-6,"N"]
["SUS631_01784","2014-07-21","06:59:29","BTS8B5 Kings Plains","Long Rural","Asset failure","HV",3,172,3.81080392453722E-3,2.2155836770565199E-5,"N"]
["SUS631_01785","2014-07-21","07:41:17","RGL3B6 Bellingen Town","Short Rural","Asset failure","LV",1,146,2.7295025575065101E-4,1.8695222996619901E-6,"N"]
["SUS631_01786","2014-07-21","08:06:26","GGB112 Gulargambone","Long Rural","Asset failure","HV",433,214.09237875288699,0.68463012676831303,3.1978257738849202E-3,"N"]
["SUS631_01787","2014-07-21","08:20:00","SLI3B2 Sth Gundurimba","Short Rural","Planned",null,2,90,null,null,"N"]
["SUS631_01788","2014-07-21","08:31:00","MLS3B4 City West","Urban","Planned",null,2,29,null,null,"N"]
["SUS631_01789","2014-07-21","08:32:00","BAL3B11 Ballina East No.1","Short Rural","Planned",null,40,385,null,null,"N"]
["SUS631_01790","2014-07-21","08:33:19","TUM22 Tooma","Long Rural","Asset failure","HV",1,35,2.5848476232326101E-4,7.3852789235217402E-6,"N"]
["SUS631_01791","2014-07-21","09:00:00","URA3B2 Gostwyck/Arding","Long Rural","Planned",null,6,78,null,null,"N"]
["SUS631_01792","2014-07-21","09:00:36","BLH3B2 Bulahdelah Nth/Markwell/Newells Ck","Short Rural","Planned",null,15,118,null,null,"N"]
["SUS631_01793","2014-07-21","09:01:00","GNF42 Rural No.2","Long Rural","Planned",null,1,35,null,null,"N"]
["SUS631_01794","2014-07-21","09:01:00","ADE32 Adelong Town","Short Rural","Planned",null,1,97,null,null,"N"]
["SUS631_01795","2014-07-21","09:01:00","STR3B1 Stroud Nth","Short Rural","Planned",null,10,337.3,null,null,"N"]
["SUS631_01796","2014-07-21","09:01:00","MLS3B4 City West","Urban","Planned",null,1,18,null,null,"N"]
["SUS631_01797","2014-07-21","09:02:00","BKE4B1 M81 Enngonia","Long Rural","Planned",null,6,368,null,null,"N"]
["SUS631_01798","2014-07-21","09:02:00","HAM3B8 Lake Albert Rd","Short Rural","Planned",null,67,575,null,null,"N"]
["SUS631_01799","2014-07-21","09:02:00","TFD102 No.10","Short Rural","Planned",null,9,174.666666666667,null,null,"N"]
["SUS631_01800","2014-07-21","09:03:00","WGN72 Yeoval","Long Rural","Planned",null,4,200.5,null,null,"N"]
["SUS631_01801","2014-07-21","09:04:00","PYB32 Forbes","Long Rural","Other",null,5,23,8.4930707620500096E-4,3.6926394617608703E-5,"N"]
["SUS631_01802","2014-07-21","09:04:06","OBR3B1 Industrial","Long Rural","Asset failure","HV",11,67,5.4429505666355304E-3,8.1238068158739202E-5,"N"]
["SUS631_01803","2014-07-21","09:15:00","BWA3B1 Abbotts Falls/Krambach","Long Rural","Planned",null,2,190,null,null,"N"]
["SUS631_01804","2014-07-21","09:15:00","YOU3B9 Weedallion","Long Rural","Planned",null,1,121,null,null,"N"]
["SUS631_01805","2014-07-21","09:15:00","MRH3B4 No.2 Town Nth","Short Rural","Planned",null,1,224,null,null,"N"]
["SUS631_01806","2014-07-21","09:15:00","PKT3B9 Parkes Town No.3","Short Rural","Planned",null,41,169,null,null,"N"]
["SUS631_01807","2014-07-21","09:18:53","PCR12 Gobarralong","Short Rural","Planned",null,4,236,null,null,"N"]
["SUS631_01808","2014-07-21","09:18:53","PCR22 Nanangroe","Short Rural","Planned",null,6,278,null,null,"N"]
["SUS631_01809","2014-07-21","09:18:53","PCR32 Adjungbilly","Short Rural","Planned",null,5,248,null,null,"N"]
["SUS631_01810","2014-07-21","09:20:00","STF8B1 Nimmitabel","Short Rural","Planned",null,7,305,null,null,"N"]
["SUS631_01811","2014-07-21","09:20:00","TUM32 Tumbarumba Town","Short Rural","Planned",null,17,188,null,null,"N"]
["SUS631_01812","2014-07-21","09:26:00","BOO1042 Kenyu","Long Rural","Planned",null,8,208,null,null,"N"]
["SUS631_01813","2014-07-21","09:27:06","CRO5532 Binda Bigga","Long Rural","Weather",null,1,91,6.7206038204047905E-4,7.3852789235217402E-6,"N"]
["SUS631_01814","2014-07-21","09:30:00","JIN32 Cobbon Cres","Urban","Planned",null,47,307,null,null,"N"]
["SUS631_01815","2014-07-21","09:31:00","MON1012 Monteagle Rural","Short Rural","Planned",null,5,266,null,null,"N"]
["SUS631_01816","2014-07-21","09:33:00","NDL616 Woolomin","Long Rural","Planned",null,2,194,null,null,"N"]
["SUS631_01817","2014-07-21","09:36:00","HIL1401 Upper Lachlan","Long Rural","Planned",null,4,251,null,null,"N"]
["SUS631_01818","2014-07-21","09:37:00","BRI Braidwood","Long Rural","Planned",null,4,154,null,null,"N"]
["SUS631_01819","2014-07-21","09:39:00","RAG3B6 Limekilns","Long Rural","Other",null,58,69.5,2.97700593407162E-2,4.2834617756426101E-4,"N"]
["SUS631_01820","2014-07-21","09:43:12","FIN42 Berrigan","Long Rural","Asset failure","HV",1,302,2.2303542349035701E-3,7.3852789235217402E-6,"N"]
["SUS631_01821","2014-07-21","09:53:00","GRN3B2 Carrs Ck/Copmanhurst","Long Rural","Planned",null,1,121,null,null,"N"]
["SUS631_01822","2014-07-21","09:53:07","MUL3B5 Ocean Shores","Short Rural","Asset failure","HV",74,256,3.5416230444796699E-2,1.38344650174987E-4,"N"]
["SUS631_01823","2014-07-21","09:59:38","RGL3B11 Raleigh/Repton","Short Rural","Asset failure","LV",1,115,2.14995064461129E-4,1.8695222996619901E-6,"N"]
["SUS631_01824","2014-07-21","10:00:00","CBB72 Binnaway","Long Rural","Planned",null,13,290,null,null,"N"]
["SUS631_01825","2014-07-21","10:00:00","GNF42 Rural No.2","Long Rural","Planned",null,1,16,null,null,"N"]
["SUS631_01826","2014-07-21","10:01:00","TUM22 Tooma","Long Rural","Other",null,7,143,7.3926642024452699E-3,5.16969524646522E-5,"N"]
["SUS631_01827","2014-07-21","10:03:00","MDA52 Monument","Short Rural","Planned",null,1,215,null,null,"N"]
["SUS631_01828","2014-07-21","10:08:00","CDN52 Tottenham","Long Rural","Planned",null,1,191,null,null,"N"]
["SUS631_01829","2014-07-21","10:13:25","GNI3B8 Glen Innes Central Town","Short Rural","Asset failure","HV",7,42,5.4963955610062495E-4,1.3086656097633901E-5,"N"]
["SUS631_01830","2014-07-21","10:13:49","NAN3B3 Nangus/Kimo/Cooba","Short Rural","Animal","Animal impact",4,147,1.0992791122012499E-3,7.4780891986479603E-6,"N"]
["SUS631_01831","2014-07-21","10:16:00","HAM3B2 Day St/Morgan St","Urban","Planned",null,4,166,null,null,"N"]
["SUS631_01832","2014-07-21","10:22:00","MRN8B3 Marulan Town","Long Rural","Planned",null,16,267,null,null,"N"]
["SUS631_01833","2014-07-21","10:28:37","TNA3B1 Bilambil Hts","Short Rural","Asset failure","LV",12,240,5.3842242230265304E-3,2.24342675959439E-5,"N"]
["SUS631_01834","2014-07-21","10:30:00","YLI2H08 Yetman","Long Rural","Planned",null,4,127,null,null,"N"]
["SUS631_01835","2014-07-21","10:32:00","HEN3B3 Henty","Long Rural","Planned",null,9,158,null,null,"N"]
["SUS631_01836","2014-07-21","10:35:00","ORI828 Clifton Grove","Short Rural","Planned",null,11,382.09090909090901,null,null,"N"]
["SUS631_01837","2014-07-21","10:38:00","URA3B2 Gostwyck/Arding","Long Rural","Animal","Animal impact",5,38,1.40320299546913E-3,3.6926394617608703E-5,"N"]
["SUS631_01838","2014-07-21","10:55:25","JER42 Hartwood","Long Rural","Asset failure","HV",9,485,3.2236742501172401E-2,6.6467510311695705E-5,"N"]
["SUS631_01839","2014-07-21","11:03:21","GDH6501 M65 Wandobah","Short Rural","Other",null,1,209,3.90730160629356E-4,1.8695222996619901E-6,"N"]
["SUS631_01840","2014-07-21","11:07:00","TPT3B3 Rollands Plains","Short Rural","Planned",null,3,78,null,null,"N"]
["SUS631_01841","2014-07-21","11:44:00","MUA5005 East","Long Rural","Other",null,2,32,4.7265785110539203E-4,1.4770557847043501E-5,"N"]
["SUS631_01842","2014-07-21","12:14:35","SWT22 Mt Panorama","Short Rural","Asset failure","LV",1,54,1.00954204181747E-4,1.8695222996619901E-6,"N"]
["SUS631_01843","2014-07-21","12:25:13","NHD3B1 Nambucca Central","Short Rural","Overloads",null,18,33,1.11049624599922E-3,3.36514013939158E-5,"N"]
["SUS631_01844","2014-07-21","12:33:42","BEE1341 Yoogali","Short Rural","Asset failure","LV",29,152,8.2408542969100492E-3,5.4216146690197699E-5,"N"]
["SUS631_01845","2014-07-21","13:10:00","SLI3B2 Sth Gundurimba","Short Rural","Planned",null,4,91,null,null,"N"]
["SUS631_01846","2014-07-21","13:24:25","COW52 Cowra Town Nth","Short Rural","Overloads",null,41,42,3.2193174000179499E-3,7.6650414286141599E-5,"N"]
["SUS631_01847","2014-07-21","13:39:22","RKF3B4 Wauchope Town","Urban","Asset failure","HV",57,49,1.45891226677253E-2,2.97737197300516E-4,"N"]
["SUS631_01848","2014-07-21","13:50:38","PPM3B1 Boomerang Beach","Short Rural","Asset failure","LV",1,158,2.9538452334659402E-4,1.8695222996619901E-6,"N"]
["SUS631_01849","2014-07-21","14:05:00","BUN3B1 Wamboin","Long Rural","Asset failure","HV",3,13,2.8802587801734798E-4,2.2155836770565199E-5,"N"]
["SUS631_01850","2014-07-21","14:21:50","BLH3B3 Bulahdelah Central/Wootton/Seal Rocks","Long Rural","Vegetation","Blow-in/Fall-in",392,59.224489795918402,0.171456635488481,2.8950293380205199E-3,"N"]
["SUS631_01851","2014-07-21","14:44:00","STR3B2 Wards River","Short Rural","Other",null,1,3,5.60856689898597E-6,1.8695222996619901E-6,"N"]
["SUS631_01852","2014-07-21","14:48:00","CWD63 Canowindra No.2","Short Rural","Overloads",null,3,37,2.07516975262481E-4,5.60856689898597E-6,"N"]
["SUS631_01853","2014-07-21","14:51:00","BRD22 No.2 Moulamein","Long Rural","Asset failure","HV",1,8,5.9082231388173902E-5,7.3852789235217402E-6,"N"]
["SUS631_01854","2014-07-21","14:55:00","SLI3B10 Jiggi","Short Rural","Asset failure","LV",6,119,1.3348389219586601E-3,1.1217133797971899E-5,"N"]
["SUS631_01855","2014-07-21","15:37:00","BHL72 West","Short Rural","Asset failure","LV",2,2,7.4780891986479603E-6,3.7390445993239802E-6,"N"]
["SUS631_01856","2014-07-21","16:24:44","BRL20408 Deep Ck","Short Rural","Asset failure","LV",1,290,5.4216146690197703E-4,1.8695222996619901E-6,"N"]
["SUS631_01857","2014-07-21","16:55:31","MRE2M37 Gingham Rd","Short Rural","Animal","Animal impact",95,32,5.6833477909724499E-3,1.7760461846788901E-4,"N"]
["SUS631_01858","2014-07-21","17:35:53","FIN52 Tocumwal","Long Rural","Animal","Animal impact",1,238,1.7576963837981801E-3,7.3852789235217402E-6,"N"]
["SUS631_01859","2014-07-21","17:56:48","CFN3B13 Karangi Dam","Short Rural","Asset failure","LV",5,100,9.3476114983099504E-4,9.3476114983099506E-6,"N"]
["SUS631_01860","2014-07-21","17:59:17","BJN8B2 M9 Carbeen/Merah Nth","Long Rural","Animal","Animal impact",8,91,5.3764830563238298E-3,5.9082231388173902E-5,"N"]
["SUS631_01861","2014-07-21","18:08:35","CRO5502 Narrawa Bevendale","Long Rural","Weather",null,1,88,6.4990454526991405E-4,7.3852789235217402E-6,"N"]
["SUS631_01862","2014-07-21","18:34:01","CFN3B22 Korora Moonee","Short Rural","Overloads",null,7,166,2.1723849122072302E-3,1.3086656097633901E-5,"N"]
["SUS631_01863","2014-07-21","20:39:00","ETH3B13 Armidale/Crawford","Long Rural","Asset failure","HV",23,68,1.1550576236387999E-2,1.69861415241E-4,"N"]
["SUS631_01864","2014-07-21","20:46:55","WGA3B1 West Woolgoolga","Short Rural","Overloads",null,4,95,7.1041847387155602E-4,7.4780891986479603E-6,"N"]
["SUS631_01865","2014-07-21","21:28:12","MRE2M38 Tareelaroi","Long Rural","Animal","Animal impact",183,23,3.1084638989102999E-2,1.3515060430044799E-3,"N"]
["SUS631_01866","2014-07-21","23:02:54","YAS6262 Hall","Long Rural","Asset failure","HV",1,552,4.0766739657839999E-3,7.3852789235217402E-6,"N"]
["SUS631_01867","2014-07-22","00:55:27","NBI3B2 M5 Eulah Ck/Turrawan","Short Rural","Animal","Animal impact",156,32.262820512820497,9.4093057341988005E-3,2.9164547874727098E-4,"N"]
["SUS631_01868","2014-07-22","06:45:15","YAN2319 Euroley Rd","Short Rural","Asset failure","HV",44,118,9.7065597798450497E-3,8.2258981185127597E-5,"N"]
["SUS631_01869","2014-07-22","07:32:00","KPT28 Keepit No.2","Short Rural","Planned",null,11,3,null,null,"N"]
["SUS631_01870","2014-07-22","07:51:08","YAN2318 Back Yanco Rd","Short Rural","Asset failure","HV",66,55,6.7863659477730197E-3,1.2338847177769099E-4,"N"]
["SUS631_01871","2014-07-22","08:00:00","MUD72 Eurunderee","Short Rural","Planned",null,2,360,null,null,"N"]
["SUS631_01872","2014-07-22","08:32:00","BHL32 Sth","Short Rural","Planned",null,214,404,null,null,"N"]
["SUS631_01873","2014-07-22","08:36:00","WGN82 Neurea","Short Rural","Planned",null,2,272,null,null,"N"]
["SUS631_01874","2014-07-22","08:45:00","CNB22 Rural Sth","Long Rural","Planned",null,14,59,null,null,"N"]
["SUS631_01875","2014-07-22","08:45:00","WWL8B3 Lines 61/62/65","Long Rural","Planned",null,4,158,null,null,"N"]
["SUS631_01876","2014-07-22","08:45:00","WBN3B5 Evans Head Nth","Short Rural","Planned",null,25,310,null,null,"N"]
["SUS631_01877","2014-07-22","08:46:00","SLI3B10 Jiggi","Short Rural","Asset failure","LV",2,184,6.8798420627561203E-4,3.7390445993239802E-6,"N"]
["SUS631_01878","2014-07-22","08:50:00","NHD3B1 Nambucca Central","Short Rural","Planned",null,152,88,null,null,"N"]
["SUS631_01879","2014-07-22","09:00:00","GLR3B5 Barrington","Long Rural","Planned",null,69,373,null,null,"N"]
["SUS631_01880","2014-07-22","09:00:00","MCV3B10 Warrell Ck","Short Rural","Planned",null,18,270,null,null,"N"]
["SUS631_01881","2014-07-22","09:00:00","MRE2M37 Gingham Rd","Short Rural","Planned",null,5,267,null,null,"N"]
["SUS631_01882","2014-07-22","09:00:00","UNI8/2 City Central","Short Rural","Planned",null,2,147,null,null,"N"]
["SUS631_01883","2014-07-22","09:00:00","DBS3B2 Boundary Rd","Urban","Planned",null,3,360,null,null,"N"]
["SUS631_01884","2014-07-22","09:00:07","HGN3B1 Crowdy Head","Short Rural","Planned",null,142,356.64788732394402,null,null,"N"]
["SUS631_01885","2014-07-22","09:01:11","GDI8B2 Boggabilla","Long Rural","Planned",null,62,350,null,null,"N"]
["SUS631_01886","2014-07-22","09:01:43","TUM12 Ournie","Short Rural","Planned",null,24,273,null,null,"N"]
["SUS631_01887","2014-07-22","09:01:45","GLR3B7 Gangat/Coolongolook","Long Rural","Planned",null,20,179,null,null,"N"]
["SUS631_01888","2014-07-22","09:02:00","GID22 Rural Nth/Sth/West","Long Rural","Planned",null,10,257,null,null,"N"]
["SUS631_01889","2014-07-22","09:02:00","BON3B3 Bottle Ck","Short Rural","Planned",null,8,351.875,null,null,"N"]
["SUS631_01890","2014-07-22","09:03:00","BTA3B1 M12 Edgeroi","Long Rural","Planned",null,17,174,null,null,"N"]
["SUS631_01891","2014-07-22","09:03:00","RGL3B6 Bellingen Town","Short Rural","Other",null,44,220,1.8096975860728101E-2,8.2258981185127597E-5,"N"]
["SUS631_01892","2014-07-22","09:05:00","NBI8B2 M18 Myall Vale","Short Rural","Planned",null,1,149,null,null,"N"]
["SUS631_01893","2014-07-22","09:05:00","WGM4982 Bungay/The Bight","Short Rural","Planned",null,3,163,null,null,"N"]
["SUS631_01894","2014-07-22","09:06:00","BBYL2 Surfside","Short Rural","Planned",null,26,314,null,null,"N"]
["SUS631_01895","2014-07-22","09:07:00","HIL1111 Hillston 132 - Merriwagga","Long Rural","Planned",null,16,252,null,null,"N"]
["SUS631_01896","2014-07-22","09:07:00","MOU12 Moulamein","Long Rural","Planned",null,21,201,null,null,"N"]
["SUS631_01897","2014-07-22","09:10:00","BKE4B1 M81 Enngonia","Long Rural","Planned",null,11,300,null,null,"N"]
["SUS631_01898","2014-07-22","09:12:00","MWA8B4 North St and Rural","Long Rural","Planned",null,1,131,null,null,"N"]
["SUS631_01899","2014-07-22","09:15:00","KTL3B3 Tintinhull","Short Rural","Planned",null,1,353,null,null,"N"]
["SUS631_01900","2014-07-22","09:15:02","BRI Braidwood","Long Rural","Planned",null,143,303,null,null,"N"]
["SUS631_01901","2014-07-22","09:16:02","GDI8B2 Boggabilla","Long Rural","Asset failure","HV",1,227,1.67645831563944E-3,7.3852789235217402E-6,"N"]
["SUS631_01902","2014-07-22","09:19:00","YAR3B2 Troy","Long Rural","Planned",null,4,220,null,null,"N"]
["SUS631_01903","2014-07-22","09:21:28","MRE2M34 Southern Rural","Long Rural","Third party","Fire",90,37,2.4592978815327401E-2,6.6467510311695702E-4,"N"]
["SUS631_01904","2014-07-22","09:30:00","BGA2K09 Abbotts Ln/Gineoi","Long Rural","Planned",null,10,205,null,null,"N"]
["SUS631_01905","2014-07-22","09:30:00","COW102 Wyangala","Long Rural","Planned",null,29,305,null,null,"N"]
["SUS631_01906","2014-07-22","09:30:00","EWE3B8 Federal","Short Rural","Planned",null,1,105,null,null,"N"]
["SUS631_01907","2014-07-22","09:30:00","UNI8/1 Duval","Short Rural","Planned",null,64,19,null,null,"N"]
["SUS631_01908","2014-07-22","09:30:00","UQT8B2 Uranquinty Nth","Short Rural","Planned",null,48,466.20833333333297,null,null,"N"]
["SUS631_01909","2014-07-22","09:30:05","HAT42 Hay 132 - Carrathool","Long Rural","Planned",null,15,342,null,null,"N"]
["SUS631_01910","2014-07-22","09:30:05","CAR2218 Wyvern","Short Rural","Planned",null,20,347,null,null,"N"]
["SUS631_01911","2014-07-22","09:30:23","NDL616 Woolomin","Long Rural","Planned",null,34,173.76470588235301,null,null,"N"]
["SUS631_01912","2014-07-22","09:30:47","CMK4005 West","Short Rural","Planned",null,140,296,null,null,"N"]
["SUS631_01913","2014-07-22","09:31:01","JER22 Jerilderie Town","Short Rural","Planned",null,12,205,null,null,"N"]
["SUS631_01914","2014-07-22","09:32:00","COO22 Polo Flat","Short Rural","Planned",null,56,430,null,null,"N"]
["SUS631_01915","2014-07-22","09:32:00","YEN3B3 Bilbul","Short Rural","Planned",null,48,324,null,null,"N"]
["SUS631_01916","2014-07-22","09:32:00","YEN3B7 Mt Bingar","Short Rural","Planned",null,30,339.96666666666698,null,null,"N"]
["SUS631_01917","2014-07-22","09:34:00","CLN3B1 Grong Grong 94/95 Line","Long Rural","Planned",null,51,580.45098039215702,null,null,"N"]
["SUS631_01918","2014-07-22","09:34:00","CLN3B4 Ganmain 93 Line","Short Rural","Planned",null,32,284,null,null,"N"]
["SUS631_01919","2014-07-22","09:35:00","BBA3B2 Gladstone","Short Rural","Planned",null,3,143,null,null,"N"]
["SUS631_01920","2014-07-22","09:35:00","MOA22 Northern Rural","Short Rural","Planned",null,2,27,null,null,"N"]
["SUS631_01921","2014-07-22","09:37:00","MRH3B3 No.1 Town Sth","Short Rural","Planned",null,2,119,null,null,"N"]
["SUS631_01922","2014-07-22","09:37:00","ALU12 Lavington East","Urban","Asset failure","LV",53,271,7.5024550260128303E-2,2.7684335889346202E-4,"N"]
["SUS631_01923","2014-07-22","09:38:00","YOU3B9 Weedallion","Long Rural","Planned",null,3,185,null,null,"N"]
["SUS631_01924","2014-07-22","09:40:00","TDL8B2 Tullamore/Tottenham","Long Rural","Other",null,1,360,2.6587004124678298E-3,7.3852789235217402E-6,"N"]
["SUS631_01925","2014-07-22","09:43:00","BTA3B2 M13 Millie","Short Rural","Planned",null,1,101,null,null,"N"]
["SUS631_01926","2014-07-22","09:47:00","BBA3B2 Gladstone","Short Rural","Planned",null,11,113,null,null,"N"]
["SUS631_01927","2014-07-22","09:48:00","MRE2M37 Gingham Rd","Short Rural","Planned",null,7,301,null,null,"N"]
["SUS631_01928","2014-07-22","09:54:00","OBR3B1 Industrial","Long Rural","Planned",null,3,208,null,null,"N"]
["SUS631_01929","2014-07-22","10:00:00","DUG3B1 Clarencetown","Short Rural","Planned",null,5,338,null,null,"N"]
["SUS631_01930","2014-07-22","10:15:42","LHD3B7 Tintenbar","Short Rural","Asset failure","HV",281,50.533807829181498,2.6547216655200299E-2,5.2533576620501896E-4,"N"]
["SUS631_01931","2014-07-22","10:18:00","COW92 Broula","Long Rural","Planned",null,1,100,null,null,"N"]
["SUS631_01932","2014-07-22","10:29:32","MAH3B4 Nth Bega","Short Rural","Vegetation","Blow-in/Fall-in",13,378,9.1868325805390203E-3,2.4303789895605898E-5,"N"]
["SUS631_01933","2014-07-22","10:32:27","STR3B2 Wards River","Short Rural","Asset failure","HV",1,412,7.7024318746073996E-4,1.8695222996619901E-6,"N"]
["SUS631_01934","2014-07-22","10:46:54","ALJ8B2 Olive St CBD","Urban","Asset failure","LV",1,12,6.2681515221161299E-5,5.2234596017634396E-6,"N"]
["SUS631_01935","2014-07-22","10:47:00","BJN8B5 M30 Collarenebri","Long Rural","Planned",null,4,133,null,null,"N"]
["SUS631_01936","2014-07-22","10:49:00","CSO3B2 Kyogle Rd","Long Rural","Asset failure","HV",4,66,1.94971363580974E-3,2.9541115694087002E-5,"N"]
["SUS631_01937","2014-07-22","10:56:11","MWA8B3 ADI and Romney St","Urban","Asset failure","LV",1,125,6.5293245022043E-4,5.2234596017634396E-6,"N"]
["SUS631_01938","2014-07-22","10:58:13","BLH3B3 Bulahdelah Central/Wootton/Seal Rocks","Long Rural","Asset failure","HV",30,310,6.8683093988752206E-2,2.2155836770565199E-4,"N"]
["SUS631_01939","2014-07-22","11:07:00","UNI8/4 City Nth","Short Rural","Asset failure","LV",58,26,2.81923962789028E-3,1.08432293380395E-4,"N"]
["SUS631_01940","2014-07-22","11:23:39","MBM6212 Euroka Ave","Long Rural","Animal","Animal impact",1,112,8.2715123943443499E-4,7.3852789235217402E-6,"N"]
["SUS631_01941","2014-07-22","11:27:00","GBN6222 Taralga","Long Rural","Planned",null,3,8,null,null,"N"]
["SUS631_01942","2014-07-22","12:01:17","EWE3B8 Federal","Short Rural","Vegetation","Grow-in",827,56.116082224909299,8.6760790882713601E-2,1.5460949418204699E-3,"N"]
["SUS631_01943","2014-07-22","12:05:21","MRH3B2 McMahons Reef","Short Rural","Animal","Animal impact",8,96,1.4357931261404101E-3,1.49561783972959E-5,"N"]
["SUS631_01944","2014-07-22","12:06:21","YEN3B2 East Yenda","Short Rural","Asset failure","HV",25,70,3.2716640244084801E-3,4.6738057491549802E-5,"N"]
["SUS631_01945","2014-07-22","12:07:00","CNK3B4 Lansdowne","Short Rural","Asset failure","HV",3,34,1.9069127456552301E-4,5.60856689898597E-6,"N"]
["SUS631_01946","2014-07-22","12:14:00","BAR32 Gonn","Short Rural","Animal","Animal impact",2,67,2.5051598815470702E-4,3.7390445993239802E-6,"N"]
["SUS631_01947","2014-07-22","12:16:00","GNG5212 Jerrawa/Dalton","Long Rural","Other",null,1,29,2.1417308878213099E-4,7.3852789235217402E-6,"N"]
["SUS631_01948","2014-07-22","12:20:24","CHI2524 Estella","Short Rural","Animal","Animal impact",6,185,2.0751697526248101E-3,1.1217133797971899E-5,"N"]
["SUS631_01949","2014-07-22","12:20:24","CHI2538 Farrer Rd","Short Rural","Animal","Animal impact",834,73.836930455635496,0.115125183213185,1.5591815979181E-3,"N"]
["SUS631_01950","2014-07-22","12:23:17","CHI2527 Euberta - Ganmurra","Short Rural","Animal","Animal impact",6,177,1.9854326822410298E-3,1.1217133797971899E-5,"N"]
["SUS631_01951","2014-07-22","12:23:17","EUB1180 Millwood Rd","Short Rural","Animal","Animal impact",102,177,3.3752355598097597E-2,1.9069127456552301E-4,"N"]
["SUS631_01952","2014-07-22","12:23:17","EUB1201 The Gap","Short Rural","Animal","Animal impact",52,177,1.7207083246089001E-2,9.7215159582423499E-5,"N"]
["SUS631_01953","2014-07-22","12:23:17","EUB417 Collingullie","Short Rural","Animal","Animal impact",167,177,5.5261209655708798E-2,3.1221022404355199E-4,"N"]
["SUS631_01954","2014-07-22","12:23:17","GAN4951 West Ganmurra","Short Rural","Animal","Animal impact",64,177,2.1177948610570999E-2,1.19649427178367E-4,"N"]
["SUS631_01955","2014-07-22","12:23:17","GAN4952 East Ganmurra","Short Rural","Animal","Animal impact",105,177,3.4745071939218101E-2,1.9629984146450901E-4,"N"]
["SUS631_01956","2014-07-22","12:43:00","MOA22 Northern Rural","Short Rural","Planned",null,1,52,null,null,"N"]
["SUS631_01957","2014-07-22","12:55:19","NBI8B5 M6 Wee Waa","Long Rural","Asset failure","HV",1,77,5.6866647711117403E-4,7.3852789235217402E-6,"N"]
["SUS631_01958","2014-07-22","13:07:51","WWL8B3 Lines 61/62/65","Long Rural","Animal","Animal impact",4,43,1.27026797484574E-3,2.9541115694087002E-5,"N"]
["SUS631_01959","2014-07-22","13:08:38","MRE2M34 Southern Rural","Long Rural","Third party","Fire",9,175,1.1631814304546699E-2,6.6467510311695705E-5,"N"]
["SUS631_01960","2014-07-22","13:12:00","KTL3B3 Tintinhull","Short Rural","Planned",null,1,122,null,null,"N"]
["SUS631_01961","2014-07-22","13:13:00","SWT12 Stewarts Mt","Long Rural","Asset failure","HV",1,72,5.3174008249356596E-4,7.3852789235217402E-6,"N"]
["SUS631_01962","2014-07-22","13:21:43","MAH3B4 Nth Bega","Short Rural","Other",null,50,11,1.0282372648140899E-3,9.3476114983099496E-5,"N"]
["SUS631_01963","2014-07-22","13:51:00","BBI0101 M1 Maules Ck","Long Rural","Asset failure","LV",2,94,1.38843243762209E-3,1.4770557847043501E-5,"N"]
["SUS631_01964","2014-07-22","13:57:09","QUI3B3 Bemboka","Short Rural","Asset failure","HV",16,201,6.0123837157129599E-3,2.9912356794591801E-5,"N"]
["SUS631_01965","2014-07-22","13:59:43","CBY806 Coleambally Town","Short Rural","Third party","Vehicle impact",1,67,1.25257994077353E-4,1.8695222996619901E-6,"N"]
["SUS631_01966","2014-07-22","14:22:00","COW92 Broula","Long Rural","Planned",null,1,46,null,null,"N"]
["SUS631_01967","2014-07-22","14:32:00","MOU22 Balranald/Tooleybuc","Long Rural","Other",null,2,16,2.3632892555269601E-4,1.4770557847043501E-5,"N"]
["SUS631_01968","2014-07-22","14:32:45","GYA8K1 Wandsworth","Long Rural","Asset failure","LV",1,91,6.7206038204047905E-4,7.3852789235217402E-6,"N"]
["SUS631_01969","2014-07-22","14:55:00","MOU22 Balranald/Tooleybuc","Long Rural","Animal","Animal impact",1,11,8.1238068158739202E-5,7.3852789235217402E-6,"N"]
["SUS631_01970","2014-07-22","14:56:37","URA3B2 Gostwyck/Arding","Long Rural","Animal","Animal impact",1,55,4.0619034079369601E-4,7.3852789235217402E-6,"N"]
["SUS631_01971","2014-07-22","15:03:20","UBV3B1 Woodenbong","Short Rural","Weather",null,7,425.857142857143,5.5730459752923898E-3,1.3086656097633901E-5,"N"]
["SUS631_01972","2014-07-22","15:51:11","CLN3B1 Grong Grong 94/95 Line","Long Rural","Asset failure","LV",32,54,1.27617619798456E-2,2.3632892555269601E-4,"N"]
["SUS631_01973","2014-07-22","15:52:25","WGA3B2 Double Crossing","Short Rural","Asset failure","LV",1,102,1.9069127456552301E-4,1.8695222996619901E-6,"N"]
["SUS631_01974","2014-07-22","16:17:54","GDM5422 Michelago","Long Rural","Asset failure","LV",1,1214,8.9657286131554007E-3,7.3852789235217402E-6,"N"]
["SUS631_01975","2014-07-22","17:12:03","NBI8B5 M6 Wee Waa","Long Rural","Asset failure","HV",1,91,6.7206038204047905E-4,7.3852789235217402E-6,"N"]
["SUS631_01976","2014-07-22","17:14:03","BON3B3 Bottle Ck","Short Rural","Asset failure","HV",3,259.33333333333297,1.4544883491370299E-3,5.60856689898597E-6,"N"]
["SUS631_01977","2014-07-22","17:16:40","BOO1012 Rye Pk","Long Rural","Third party","Other",20,126,1.8610902887274801E-2,1.47705578470435E-4,"N"]
["SUS631_01978","2014-07-22","17:49:14","CRO5502 Narrawa Bevendale","Long Rural","Animal","Animal impact",5,43,1.58783496855718E-3,3.6926394617608703E-5,"N"]
["SUS631_01979","2014-07-22","18:03:16","YAM3B5 Yamba Rural","Short Rural","Asset failure","HV",129,73.697674418604606,1.77735485028865E-2,2.4116837665639701E-4,"N"]
["SUS631_01980","2014-07-22","19:28:12","BTS8B8 Delungra","Long Rural","Asset failure","HV",1,76,5.6128119818765298E-4,7.3852789235217402E-6,"N"]
["SUS631_01981","2014-07-22","19:31:42","SLI3B2 Sth Gundurimba","Short Rural","Third party","Fire",1,75,1.4021417247464901E-4,1.8695222996619901E-6,"N"]
["SUS631_01982","2014-07-22","19:58:55","BNK24798 Koorainghat","Short Rural","Animal","Animal impact",10,62,1.15910382579043E-3,1.8695222996619901E-5,"N"]
["SUS631_01983","2014-07-22","21:46:48","WRA2W10 Kooloona/Gragin","Short Rural","Animal","Animal impact",2,38,1.4208369477431099E-4,3.7390445993239802E-6,"N"]
["SUS631_01984","2014-07-22","22:06:34","CFL Braidwood","Long Rural","Animal","Animal impact",3,66,1.4622852268573101E-3,2.2155836770565199E-5,"N"]
["SUS631_01985","2014-07-23","00:05:00","SLI3B9 City Centre No.1","Urban","Planned",null,14,212,null,null,"N"]
["SUS631_01986","2014-07-23","04:08:15","KYG3B1 Nth Kyogle No.1","Long Rural","Asset failure","LV",1,352,2.5996181810796501E-3,7.3852789235217402E-6,"N"]
["SUS631_01987","2014-07-23","06:32:41","BRD22 No.2 Moulamein","Long Rural","Animal","Animal impact",6,183,8.1090362580268707E-3,4.4311673541130499E-5,"N"]
["SUS631_01988","2014-07-23","06:35:44","DEN62 Nth Rural","Long Rural","Animal","Animal impact",1,62,4.5788729325834797E-4,7.3852789235217402E-6,"N"]
["SUS631_01989","2014-07-23","06:53:15","CFL Braidwood","Long Rural","Asset failure","HV",1,185,1.36627660085152E-3,7.3852789235217402E-6,"N"]
["SUS631_01990","2014-07-23","08:16:00","PAM3B2 Pambula No.4","Short Rural","Planned",null,64,442,null,null,"N"]
["SUS631_01991","2014-07-23","08:30:00","BHL72 West","Short Rural","Planned",null,16,227,null,null,"N"]
["SUS631_01992","2014-07-23","08:30:00","BOU3B8 Mangoplah Rd","Short Rural","Planned",null,1,60,null,null,"N"]
["SUS631_02018","2014-07-23","09:07:00","BYA7882 Comboyne","Short Rural","Planned",null,27,131,null,null,"N"]
["SUS631_02030","2014-07-23","09:17:21","NSK3B3 Aldavilla","Short Rural","Asset failure","HV",1039,52.388835418671803,0.101761837815201,1.94243366934881E-3,"N"]
["SUS631_02061","2014-07-23","10:08:00","CMK4006 East","Short Rural","Planned",null,1,42,null,null,"N"]
["SUS631_02087","2014-07-23","18:27:00","DEN62 Nth Rural","Long Rural","Animal","Animal impact",1,124,9.1577458651669595E-4,7.3852789235217402E-6,"N"]
["SUS631_02109","2014-07-24","08:38:00","QSH5272 Banksia Cres","Short Rural","Planned",null,118,220,null,null,"N"]
["SUS631_02140","2014-07-24","09:11:00","BKE4B2 M82 Wanaaring","Long Rural","Planned",null,3,121,null,null,"N"]
["SUS631_02187","2014-07-24","11:23:27","WRA2W09 Gravesend","Long Rural","Asset failure","HV",1,69,5.0958424572299999E-4,7.3852789235217402E-6,"N"]
["SUS631_02210","2014-07-25","06:13:00","CRA12 Corowa Town No.1","Short Rural","Asset failure","LV",87,347,5.6439008704495801E-2,1.62648440070593E-4,"N"]
["SUS631_02235","2014-07-25","09:00:56","NAN3B1 Eurongilly","Short Rural","Planned",null,102,16.196078431372499,null,null,"N"]
["SUS631_02266","2014-07-25","09:45:00","OBR3B1 Industrial","Long Rural","Planned",null,1,155,null,null,"N"]
["SUS631_02297","2014-07-25","12:35:11","CNB22 Rural Sth","Long Rural","Asset failure","HV",76,86.763157894736807,4.8698529221702397E-2,5.6128119818765298E-4,"N"]
["SUS631_02309","2014-07-25","15:30:00","BNY3B2 Blayney Town","Short Rural","Asset failure","HV",3,2443.6666666666702,1.37054679788221E-2,5.60856689898597E-6,"N"]
["SUS631_02345","2014-07-26","08:23:00","LHD3B4 Knockrow","Short Rural","Third party","Vehicle impact",1,362,6.7676707247764096E-4,1.8695222996619901E-6,"N"]
["SUS631_02376","2014-07-26","13:49:05","ORN3B4 Metro Plaza","Urban","5 - STPIS Exclusion (3.3)(a)"," ",345,133,0.239678443826915,1.8020935626083901E-3,"N"]
["SUS631_02423","2014-07-27","11:50:41","CNB42 Rural Nth","Long Rural","Weather",null,14,159.57142857142901,1.6498713115147601E-2,1.0339390492930399E-4,"N"]
["SUS631_02432","2014-07-27","16:02:55","ELI3B5 Oliver Ave","Short Rural","Third party","Vehicle impact",84,178,2.7953097424546099E-2,1.57039873171607E-4,"N"]
["SUS631_02471","2014-07-28","09:30:00","ETH3B6 Chelmsford/Carthage","Short Rural","Planned",null,56,273,null,null,"N"]
["SUS631_02502","2014-07-28","12:47:35","DEN52 Caldwell","Long Rural","Animal","Animal impact",1,72,5.3174008249356596E-4,7.3852789235217402E-6,"N"]
["SUS631_02533","2014-07-29","08:38:00","RGL3B11 Raleigh/Repton","Short Rural","Planned",null,13,359,null,null,"N"]
["SUS631_02559","2014-07-29","09:09:00","WWL8B4 West Wyalong Sth West Town","Short Rural","Planned",null,53,341,null,null,"N"]
["SUS631_02581","2014-07-29","09:30:00","GDI8B3 Talwood","Long Rural","Asset failure","HV",2,72,1.06348016498713E-3,1.4770557847043501E-5,"N"]
["SUS631_02599","2014-07-29","09:52:00","RGL3B8 Kalang/Valla","Short Rural","Planned",null,11,354.27272727272702,null,null,"N"]
["SUS631_02630","2014-07-29","14:59:00","SFP3B4 Talofa","Short Rural","Asset failure","HV",1,112,2.0938649756214301E-4,1.8695222996619901E-6,"N"]
["SUS631_02654","2014-07-30","04:05:00","KOO1709 Cochrane St","Short Rural","Planned",null,44,135,null,null,"N"]
["SUS631_02707","2014-07-30","09:30:00","CBB52 Baradine","Long Rural","Planned",null,1,162,null,null,"N"]
["SUS631_02738","2014-07-30","11:39:12","BJN8B4 M31 Cryon","Short Rural","Vegetation","Blow-in/Fall-in",33,200.12121212121201,1.23463252669678E-2,6.1694235888845697E-5,"N"]
["SUS631_02740","2014-07-30","12:26:00","JER12 Finley Rd","Long Rural","Asset failure","HV",1,41,3.02796435864391E-4,7.3852789235217402E-6,"N"]
["SUS631_02781","2014-07-31","08:31:00","BPM3B9 Nth Shore","Short Rural","Planned",null,37,347,null,null,"N"]
["SUS631_02817","2014-07-31","09:23:00","MOA22 Northern Rural","Short Rural","Planned",null,3,84,null,null,"N"]
["SUS631_02835","2014-07-31","09:39:00","COW62 Cowra Town Centre","Urban","Planned",null,43,277.37209302325601,null,null,"N"]
["SUS631_02866","2014-07-31","13:14:30","MAH3B7 Candelo","Short Rural","Weather",null,37,29.351351351351401,2.0303012174329202E-3,6.9172325087493594E-5,"N"]
["SUS631_02904","2014-07-31","20:03:09","JIN82 Waste Point","Short Rural","Vegetation","Blow-in/Fall-in",262,115.480916030534,5.6564266698573201E-2,4.8981484251144102E-4,"N"]
["SUS631_02914","2014-08-01","00:33:18","ADA12 Adaminaby","Short Rural","Weather",null,29,516,2.7975531692142001E-2,5.4216146690197699E-5,"N"]
["SUS631_02945","2014-08-01","09:01:00","RGL3B6 Bellingen Town","Short Rural","Other",null,33,270,1.66574436899883E-2,6.1694235888845697E-5,"N"]
["SUS631_02976","2014-08-01","09:35:00","DUN3B4 Mt Nardi","Short Rural","Planned",null,53,228,null,null,"N"]
["SUS631_03003","2014-08-01","13:30:00","CFN3B8 Nth Jetty","Urban","Planned",null,1,90,null,null,"N"]
["SUS631_03053","2014-08-02","08:46:49","BLH3B3 Bulahdelah Central/Wootton/Seal Rocks","Long Rural","Weather",null,2,266,3.9289683873135698E-3,1.4770557847043501E-5,"N"]
["SUS631_03071","2014-08-02","15:42:00","MCV3B9 Bowraville Rural","Long Rural","Vegetation","Blow-in/Fall-in",21,23,3.5670897200609998E-3,1.55090857393957E-4,"N"]
["SUS631_03102","2014-08-03","14:39:28","BUN3B3 Gundaroo Rd","Long Rural","Asset failure","HV",21,321,4.9784165223460103E-2,1.55090857393957E-4,"N"]
["SUS631_03126","2014-08-04","07:23:29","LHD3B4 Knockrow","Short Rural","Vegetation","Blow-in/Fall-in",1,304,5.6833477909724503E-4,1.8695222996619901E-6,"N"]
["SUS631_03150","2014-08-04","09:45:00","GBN6222 Taralga","Long Rural","Planned",null,2,144,null,null,"N"]
["SUS631_03181","2014-08-04","14:43:27","BOM8B5 Cathcart","Short Rural","Asset failure","HV",1,54,1.00954204181747E-4,1.8695222996619901E-6,"N"]
["SUS631_03228","2014-08-05","09:00:21","ANN8B1 No.1 72 Line","Long Rural","Planned",null,87,296.83908045977,null,null,"N"]
["SUS631_03253","2014-08-05","09:20:00","PSK3B1 Dondingalong","Short Rural","Planned",null,34,20,null,null,"N"]
["SUS631_03260","2014-08-05","09:39:00","BOM8B2 Nimmitabel","Long Rural","Planned",null,1,214,null,null,"N"]
["SUS631_03307","2014-08-05","15:38:39","BBYH2 Nelligen","Short Rural","Vegetation","Blow-in/Fall-in",1,261,4.8794532021177999E-4,1.8695222996619901E-6,"N"]
["SUS631_03338","2014-08-06","08:53:00","GDM5422 Michelago","Long Rural","Planned",null,12,247,null,null,"N"]
["SUS631_03348","2014-08-06","09:00:00","MUL3B1 Goonengerry","Short Rural","Planned",null,2,559,null,null,"N"]
["SUS631_03386","2014-08-06","09:35:14","MUR1483 Yarmawl","Short Rural","Planned",null,66,295,null,null,"N"]
["SUS631_03417","2014-08-06","16:36:06","JER22 Jerilderie Town","Short Rural","Animal","Animal impact",58,3,3.2529688014118599E-4,1.08432293380395E-4,"N"]
["SUS631_03435","2014-08-07","06:13:16","GDI8B1 Boobera/Tulloona","Long Rural","Animal","Animal impact",116,77.568965517241395,6.6452739753848605E-2,8.5669235512852201E-4,"N"]
["SUS631_03475","2014-08-07","09:15:00","GBN6222 Taralga","Long Rural","Planned",null,8,183,null,null,"N"]
["SUS631_03496","2014-08-07","09:35:00","MAH3B3 Glebe","Short Rural","Planned",null,62,165,null,null,"N"]
["SUS631_03543","2014-08-07","16:38:47","ORN3B6 Byng St East","Short Rural","Asset failure","HV",49,53,4.85514941222219E-3,9.1606592683437501E-5,"N"]
["SUS631_03545","2014-08-07","17:29:44","MBM6222 Patemans Ln","Long Rural","Animal","Animal impact",4,58,1.7133847102570399E-3,2.9541115694087002E-5,"N"]
["SUS631_03574","2014-08-08","09:00:08","TPT3B3 Rollands Plains","Short Rural","Planned",null,22,322,null,null,"N"]
["SUS631_03622","2014-08-08","11:05:00","DNO142 Merrygoen","Long Rural","Planned",null,4,152,null,null,"N"]
["SUS631_03653","2014-08-09","00:39:15","ARD No.2 Ardlethan Town Sth","Short Rural","Asset failure","HV",16,361.75,1.08207950704436E-2,2.9912356794591801E-5,"N"]
["SUS631_03671","2014-08-09","11:35:00","NYN42 Nyngan Nth","Short Rural","Asset failure","LV",1,56,1.04693248781071E-4,1.8695222996619901E-6,"N"]
["SUS631_03697","2014-08-10","08:49:05","CDN52 Tottenham","Long Rural","Animal","Animal impact",11,22,1.78723749949226E-3,8.1238068158739202E-5,"N"]
["SUS631_03732","2014-08-11","08:30:00","WLA4/5 Walcha Town East","Short Rural","Planned",null,74,621,null,null,"N"]
["SUS631_03750","2014-08-11","09:03:00","MRE2M34 Southern Rural","Long Rural","Planned",null,2,339.5,null,null,"N"]
["SUS631_03781","2014-08-11","10:30:00","RAG3B7 View St","Short Rural","Planned",null,34,133,null,null,"N"]
["SUS631_03824","2014-08-12","08:42:05","NYM72 Blaxland Ck","Short Rural","Planned",null,95,334,null,null,"N"]
["SUS631_03858","2014-08-12","09:21:00","COW32 Woodstock","Long Rural","Vegetation","Grow-in",11,159,1.2916852837239499E-2,8.1238068158739202E-5,"N"]
["SUS631_03889","2014-08-12","10:18:00","BAR32 Gonn","Short Rural","Planned",null,2,186,null,null,"N"]
["SUS631_03907","2014-08-12","13:55:20","WGM4982 Bungay/The Bight","Short Rural","Asset failure","HV",1,102,1.9069127456552301E-4,1.8695222996619901E-6,"N"]
["SUS631_03919","2014-08-12","18:13:55","WWL8B3 Lines 61/62/65","Long Rural","Asset failure","HV",1,89,6.5728982419343499E-4,7.3852789235217402E-6,"N"]
["SUS631_03968","2014-08-13","09:04:00","MLA3B4 Manilla","Short Rural","Planned",null,20,228,null,null,"N"]
["SUS631_03986","2014-08-13","09:29:00","BOM8B3 Southern Rural","Long Rural","Planned",null,23,161,null,null,"N"]
["SUS631_04017","2014-08-13","10:46:00","NARC2 Dalmeny","Short Rural","Planned",null,156,196,null,null,"N"]
["SUS631_04046","2014-08-14","01:11:50","HPT3B5 Bogangar","Short Rural","Asset failure","Subtransmission",1236,313,0.72325835302563501,2.3107295623822199E-3,"N"]
["SUS631_04065","2014-08-14","08:45:00","NAN3B3 Nangus/Kimo/Cooba","Short Rural","Planned",null,15,238,null,null,"N"]
["SUS631_04096","2014-08-14","09:21:00","JIN82 Waste Point","Short Rural","Planned",null,466,14.596566523605199,null,null,"N"]
["SUS631_04143","2014-08-14","11:37:00","SUT5333 Eagle Hawk","Short Rural","Planned",null,1,33,null,null,"N"]
["SUS631_04169","2014-08-15","01:16:11","WWA8B2 M7 Yarrie Lake","Short Rural","Asset failure","HV",115,330.017391304348,7.0952110316771899E-2,2.14995064461129E-4,"N"]
["SUS631_04191","2014-08-15","09:00:00","PSK3B1 Dondingalong","Short Rural","Planned",null,144,523.73611111111097,null,null,"N"]
["SUS631_04222","2014-08-15","09:32:00","NDL616 Woolomin","Long Rural","Planned",null,142,323,null,null,"N"]
["SUS631_04253","2014-08-15","13:06:00","PPM3B1 Boomerang Beach","Short Rural","Other",null,185,41.037837837837799,1.41934132990338E-2,3.4586162543746803E-4,"N"]
["SUS631_04268","2014-08-15","18:15:00","GRN3B3 Grafton Rural","Short Rural","Asset failure","HV",29,31,1.68070054739613E-3,5.4216146690197699E-5,"N"]
["SUS631_04301","2014-08-16","13:50:41","MGI2U23 Boomi Rd","Long Rural","Asset failure","HV",7,223,1.1528420399617399E-2,5.16969524646522E-5,"N"]
["SUS631_04332","2014-08-17","01:25:13","MRH3B5 Galong","Short Rural","Weather",null,4,353,2.6397654871227298E-3,7.4780891986479603E-6,"N"]
["SUS631_04350","2014-08-17","07:42:01","BKE4B2 M82 Wanaaring","Long Rural","Weather",null,7,113,5.8417556285057003E-3,5.16969524646522E-5,"N"]
["SUS631_04391","2014-08-17","15:41:16","MRE2M34 Southern Rural","Long Rural","Asset failure","HV",5,74,2.7325532017030501E-3,3.6926394617608703E-5,"N"]
["SUS631_04427","2014-08-18","08:36:22","BAT32 Rural Sth/Kunama","Short Rural","Weather",null,1,87,1.62648440070593E-4,1.8695222996619901E-6,"N"]
["SUS631_04458","2014-08-18","10:55:00","RVL3K1 Rappville","Long Rural","Asset failure","HV",1,79,5.8343703495821798E-4,7.3852789235217402E-6,"N"]
["SUS631_04489","2014-08-18","17:03:05","ETH3B3 Carthage/Roderick","Urban","Weather",null,90,86,4.0429577317648999E-2,4.7011136415871002E-4,"N"]
["SUS631_04518","2014-08-19","07:40:00","DUN3B2 Bullfrog Ck","Short Rural","Vegetation","Grow-in",23,300,1.28997038676677E-2,4.29990128922258E-5,"N"]
["SUS631_04537","2014-08-19","09:00:00","SMN3B3 Kinchella","Short Rural","Planned",null,20,336,null,null,"N"]
["SUS631_04568","2014-08-19","10:13:37","JIN82 Waste Point","Short Rural","Asset failure","HV",12,222.333333333333,4.9878854954981903E-3,2.24342675959439E-5,"N"]
["SUS631_04586","2014-08-19","11:45:00","RVL3K1 Rappville","Long Rural","Asset failure","HV",2,47,6.9421621881104404E-4,1.4770557847043501E-5,"N"]
["SUS631_04613","2014-08-19","21:50:50","CHS3B12 Sth Interconnector","Urban","Animal","Animal impact",79,31,1.2792252564718699E-2,4.1265330853931201E-4,"N"]
["SUS631_04663","2014-08-20","09:15:08","HOL1843 Holbrook Nth","Long Rural","Planned",null,51,278,null,null,"N"]
["SUS631_04694","2014-08-20","10:52:57","CUD3B4 Kingscliff No.1","Urban","Asset failure","LV",101,179,9.4434926140281206E-2,5.27569419778107E-4,"N"]
["SUS631_04696","2014-08-20","11:22:15","MWN3B3 Boat Harbour","Short Rural","Asset failure","HV",92,152,2.6143399838473299E-2,1.7199605156890301E-4,"N"]
["SUS631_04740","2014-08-21","08:47:00","PKT3B4 Cooks Myall","Long Rural","Planned",null,23,154,null,null,"N"]
["SUS631_04773","2014-08-21","09:30:00","YLI2H18 Croppa Ck","Long Rural","Planned",null,3,173.333333333333,null,null,"N"]
["SUS631_04791","2014-08-21","09:51:00","SWT12 Stewarts Mt","Long Rural","Planned",null,13,180,null,null,"N"]
["SUS631_04822","2014-08-21","16:26:26","MCV3B10 Warrell Ck","Short Rural","Asset failure","HV",518,318,0.30795519128952198,9.6841255122491097E-4,"N"]
["SUS631_04863","2014-08-22","09:34:00","DBS3B1 Rural Sth","Long Rural","Planned",null,242,255,null,null,"N"]
["SUS631_04870","2014-08-22","09:50:00","MOU22 Balranald/Tooleybuc","Long Rural","Planned",null,23,171,null,null,"N"]
["SUS631_04901","2014-08-22","13:15:00","GDG3B2 Tumblong","Short Rural","Vegetation","Grow-in",5,83,7.7585175435972598E-4,9.3476114983099506E-6,"N"]
["SUS631_04932","2014-08-23","16:27:33","EWE3B8 Federal","Short Rural","Vegetation","Grow-in",1,152,2.8416738954862301E-4,1.8695222996619901E-6,"N"]
["SUS631_04962","2014-08-24","15:41:22","DBW3B4 West/Sth","Urban","Third party","Other",1098,43,0.24662042163765899,5.7353586427362603E-3,"N"]
["SUS631_05009","2014-08-25","09:39:00","ORW3B7 Cargo Rd","Short Rural","Planned",null,2,319,null,null,"N"]
["SUS631_05027","2014-08-25","10:53:39","WGT8B8 M54 Brewarrina","Long Rural","Planned",null,17,26.352941176470601,null,null,"N"]
["SUS631_05058","2014-08-25","18:00:38","BAL3B6 Ballina West","Short Rural","Asset failure","HV",1,78,1.45822739373635E-4,1.8695222996619901E-6,"N"]
["SUS631_05085","2014-08-26","09:00:34","FBS42 Rural Sth","Long Rural","Planned",null,14,379.42857142857099,null,null,"N"]
["SUS631_05106","2014-08-26","09:24:00","GAN4952 East Ganmurra","Short Rural","Planned",null,3,205,null,null,"N"]
["SUS631_05137","2014-08-26","11:04:00","BAT12 Rural Nth","Short Rural","Other",null,1,96,1.7947414076755099E-4,1.8695222996619901E-6,"N"]
["SUS631_05155","2014-08-26","14:42:41","MOA22 Northern Rural","Short Rural","Other",null,149,4,1.1142352905985501E-3,2.7855882264963698E-4,"N"]
["SUS631_05184","2014-08-27","05:21:50","TPT3B2 Telegraph Pt","Short Rural","Weather",null,13,64,1.5554425533187801E-3,2.4303789895605898E-5,"N"]
["SUS631_05216","2014-08-27","09:16:00","BEE1346 Beelbangera","Short Rural","Planned",null,7,191,null,null,"N"]
["SUS631_05263","2014-08-27","14:16:33","ELI3B4 Lynwood","Short Rural","Asset failure","Zone substation",505,6,5.6646525679758296E-3,9.4410876132930497E-4,"N"]
["SUS631_05294","2014-08-27","18:24:21","CHS3B9 Bonville","Short Rural","Weather",null,12,210,4.7111961951482196E-3,2.24342675959439E-5,"N"]
["SUS631_05307","2014-08-28","06:49:00","PAM3B2 Pambula No.4","Short Rural","Planned",null,2,19,null,null,"N"]
["SUS631_05342","2014-08-28","09:04:00","ALU82 Nth Albury","Urban","Planned",null,51,81,null,null,"N"]
["SUS631_05373","2014-08-28","09:39:00","TUN3B3 South St","Short Rural","Planned",null,62,25,null,null,"N"]
["SUS631_05391","2014-08-28","11:03:52","SWT12 Stewarts Mt","Long Rural","Vegetation","Grow-in",33,119,2.90019903326699E-2,2.4371420447621801E-4,"N"]
["SUS631_05434","2014-08-29","06:15:28","GDH6101 M61 Kelvin","Long Rural","Asset failure","HV",14,306.142857142857,3.1653305466214199E-2,1.0339390492930399E-4,"N"]
["SUS631_05452","2014-08-29","09:00:00","MCV3B9 Bowraville Rural","Long Rural","Planned",null,12,131,null,null,"N"]
["SUS631_05499","2014-08-29","10:15:00","DEN62 Nth Rural","Long Rural","Asset failure","LV",1,289,2.13434560889778E-3,7.3852789235217402E-6,"N"]
["SUS631_05501","2014-08-29","10:24:00","JIN82 Waste Point","Short Rural","Planned",null,15,116,null,null,"N"]
["SUS631_05529","2014-08-30","07:56:22","MUR823 Colando","Short Rural","Animal","Animal impact",12,98,2.1985582244024998E-3,2.24342675959439E-5,"N"]
["SUS631_05578","2014-09-01","02:23:02","HGE3B1 Grafton Rd","Short Rural","Asset failure","HV",6,80,8.9737070383775499E-4,1.1217133797971899E-5,"N"]
["SUS631_05609","2014-09-01","10:17:53","DTN24 Mourquong","Short Rural","Animal","Animal impact",1,53,9.9084681882085507E-5,1.8695222996619901E-6,"N"]
["SUS631_05627","2014-09-01","13:20:10","THA2230 Brown Rd","Short Rural","Planned",null,18,131,null,null,"N"]
["SUS631_05656","2014-09-02","05:28:11","SMN3B3 Kinchella","Short Rural","Animal","Animal impact",122,57.540983606557397,1.3124046543627199E-2,2.2808172055876301E-4,"N"]
["SUS631_05688","2014-09-02","09:01:39","GUE132 Ponto","Short Rural","Asset failure","LV",2,98,3.6642637073375001E-4,3.7390445993239802E-6,"N"]
["SUS631_05706","2014-09-02","09:30:00","CNB22 Rural Sth","Long Rural","Planned",null,3,158,null,null,"N"]
["SUS631_05737","2014-09-02","12:30:00","RGL3B8 Kalang/Valla","Short Rural","Other",null,28,91,4.7635428195387502E-3,5.2346624390535698E-5,"N"]
["SUS631_05783","2014-09-03","01:01:16","GDI4B3 Toobeah Rd","Short Rural","Planned",null,25,6,null,null,"N"]
["SUS631_05814","2014-09-03","08:31:30","TDL8B1 Bogan Gate","Long Rural","Planned",null,10,383,null,null,"N"]
["SUS631_05816","2014-09-03","08:35:00","WWL8B2 Lines 63/64","Long Rural","Planned",null,3,133,null,null,"N"]
["SUS631_05863","2014-09-03","09:35:01","DBW3B2 Rural Sth/Minore Rd","Short Rural","Planned",null,126,359.11904761904799,null,null,"N"]
["SUS631_05878","2014-09-03","09:45:00","COW102 Wyangala","Long Rural","Planned",null,1,73,null,null,"N"]
["SUS631_05924","2014-09-03","12:22:03","MCV3B5 Scotts Head","Short Rural","Vegetation","Blow-in/Fall-in",192,167.9375,6.0280877030301203E-2,3.5894828153510197E-4,"N"]
["SUS631_05942","2014-09-03","14:44:00","THN3B6 Green Bank","Short Rural","Asset failure","LV",1,204,3.8138254913104602E-4,1.8695222996619901E-6,"N"]
["SUS631_05973","2014-09-04","08:52:00","CFN3B12 Korora Bay","Short Rural","Planned",null,82,177,null,null,"N"]
["SUS631_06005","2014-09-04","09:20:00","CNB42 Rural Nth","Long Rural","Planned",null,20,182,null,null,"N"]
["SUS631_06021","2014-09-04","09:35:00","YOU3B1 Berthong","Long Rural","Planned",null,7,292,null,null,"N"]
["SUS631_06052","2014-09-04","12:55:00","GDM5422 Michelago","Long Rural","Planned",null,34,64,null,null,"N"]
["SUS631_06099","2014-09-05","09:04:00","QSH5282 Oleria St","Urban","Planned",null,15,301,null,null,"N"]
["SUS631_06128","2014-09-05","09:50:00","BERB2 Wallaga Lake","Short Rural","Planned",null,37,59,null,null,"N"]
["SUS631_06147","2014-09-05","12:11:00","GNI3B4 Glen Innes Southern Town","Short Rural","Asset failure","LV",88,59,9.7065597798450497E-3,1.64517962370255E-4,"N"]
["SUS631_06178","2014-09-06","08:35:30","HAT22 Hay 132 - Hay Town (Maude)","Long Rural","Animal","Animal impact",1,101,7.4591317127569595E-4,7.3852789235217402E-6,"N"]
["SUS631_06209","2014-09-07","18:37:43","NME8B5 River East","Short Rural","Asset failure","HV",1,74,1.38344650174987E-4,1.8695222996619901E-6,"N"]
["SUS631_06227","2014-09-08","09:00:45","BOO1012 Rye Pk","Long Rural","Planned",null,34,323,null,null,"N"]
["SUS631_06257","2014-09-08","09:56:25","CHD3B2 Beranghi","Short Rural","Third party","Vehicle impact",7,333,4.3578564805121E-3,1.3086656097633901E-5,"N"]
["SUS631_06288","2014-09-08","16:44:04","YOU3B7 Young Town 6","Short Rural","Other",null,33,126,7.77347372199456E-3,6.1694235888845697E-5,"N"]
["SUS631_06306","2014-09-09","08:00:38","BMU1417 Koorawatha/Murringo","Long Rural","Planned",null,198,13,null,null,"N"]
["SUS631_06350","2014-09-09","09:03:00","UQT8B1 The Rock","Long Rural","Planned",null,7,106,null,null,"N"]
["SUS631_06383","2014-09-09","10:02:01","WWA8B5 M20/M23 Wee Waa Town/Airport","Short Rural","Planned",null,35,117.314285714286,null,null,"N"]
["SUS631_06414","2014-09-09","18:10:00","SMN3B1 Yarrahapinni/Frederickton","Short Rural","Vegetation","Grow-in",1,5,9.3476114983099506E-6,1.8695222996619901E-6,"N"]
["SUS631_06445","2014-09-09","23:05:47","CDN52 Tottenham","Long Rural","Asset failure","HV",5,764.6,2.8233921324623601E-2,3.6926394617608703E-5,"N"]
["SUS631_06449","2014-09-09","23:29:54","CMK4005 West","Short Rural","Weather",null,1,167,3.1221022404355199E-4,1.8695222996619901E-6,"N"]
["SUS631_06493","2014-09-10","06:35:15","GNF42 Rural No.2","Long Rural","Weather",null,1,115,8.4930707620500096E-4,7.3852789235217402E-6,"N"]
["SUS631_06524","2014-09-10","07:24:00","DNO142 Merrygoen","Long Rural","Weather",null,5,121,4.4680937487306602E-3,3.6926394617608703E-5,"N"]
["SUS631_06542","2014-09-10","08:18:40","TUM32 Tumbarumba Town","Short Rural","Vegetation","Blow-in/Fall-in",2,250,9.3476114983099504E-4,3.7390445993239802E-6,"N"]
["SUS631_06572","2014-09-10","09:04:02","NME8B1 Rural Sth","Long Rural","Planned",null,24,297.375,null,null,"N"]
["SUS631_06619","2014-09-10","10:05:00","EUB1201 The Gap","Short Rural","Planned",null,1,295,null,null,"N"]
["SUS631_06621","2014-09-10","10:08:00","OPM3B7 Port East","Urban","Planned",null,33,92,null,null,"N"]
["SUS631_06652","2014-09-10","13:02:19","ALU82 Nth Albury","Urban","Weather",null,1,83,4.3354714694636599E-4,5.2234596017634396E-6,"N"]
["SUS631_06699","2014-09-11","08:24:00","GDH8B9 M60 Gunnedah CBD","Urban","Planned",null,79,409,null,null,"N"]
["SUS631_06729","2014-09-11","09:03:00","MRE2M38 Tareelaroi","Long Rural","Planned",null,30,304,null,null,"N"]
["SUS631_06747","2014-09-11","09:22:00","TMT12 Tumut Nth","Urban","Planned",null,5,92,null,null,"N"]
["SUS631_06778","2014-09-11","10:25:37","ETH3B13 Armidale/Crawford","Long Rural","Asset failure","HV",19,55,7.71761647508022E-3,1.40320299546913E-4,"N"]
["SUS631_06794","2014-09-11","14:24:00","STF8B1 Nimmitabel","Short Rural","Asset failure","HV",11,74,1.52179115192486E-3,2.0564745296281899E-5,"N"]
["SUS631_06826","2014-09-12","08:50:00","TDL8B2 Tullamore/Tottenham","Long Rural","Planned",null,1,284,null,null,"N"]
["SUS631_06857","2014-09-12","09:23:00","DTN25 Dareton","Short Rural","Planned",null,2,58,null,null,"N"]
["SUS631_06888","2014-09-12","10:12:00","MRH3B6 Kingsvale","Long Rural","Other",null,1,69,5.0958424572299999E-4,7.3852789235217402E-6,"N"]
["SUS631_06921","2014-09-13","08:47:00","79P Griffith 132 - Goolgowi","Long Rural","Other",null,2,148,2.1860425613624401E-3,1.4770557847043501E-5,"N"]
["SUS631_06965","2014-09-14","08:29:00","GNI3B8 Glen Innes Central Town","Short Rural","Planned",null,78,341,null,null,"N"]
["SUS631_06983","2014-09-14","15:48:49","SWR3B6 Stuarts Pt","Short Rural","Vegetation","Blow-in/Fall-in",113,58,1.2252849151984701E-2,2.1125601986180499E-4,"N"]
["SUS631_07014","2014-09-15","09:00:00","MWN3B3 Boat Harbour","Short Rural","Vegetation","Grow-in",6,247,2.7706320480990702E-3,1.1217133797971899E-5,"N"]
["SUS631_07044","2014-09-15","09:46:00","CNK3B2 Jones Island","Short Rural","Planned",null,2,94,null,null,"N"]
["SUS631_07062","2014-09-15","10:34:24","JER22 Jerilderie Town","Short Rural","Weather",null,1,247,4.6177200801651198E-4,1.8695222996619901E-6,"N"]
["SUS631_07093","2014-09-15","18:10:37","BON3B1 Peacock Ck","Short Rural","Asset failure","Subtransmission",143,67,1.7911893153061499E-2,2.6734168885166499E-4,"N"]
["SUS631_07124","2014-09-16","08:30:00","BOO1032 Boorowa Town","Short Rural","Planned",null,180,348,null,null,"N"]
["SUS631_07143","2014-09-16","09:00:00","MPTB2 Tomakin/Rosedale","Short Rural","Planned",null,452,262,null,null,"N"]
["SUS631_07172","2014-09-16","09:13:00","NME8B1 Rural Sth","Long Rural","Planned",null,1,72,null,null,"N"]
["SUS631_07219","2014-09-16","12:27:00","NHD3B4 Valla","Short Rural","Asset failure","LV",41,15,1.1497562142921199E-3,7.6650414286141599E-5,"N"]
["SUS631_07250","2014-09-16","17:06:00","MLN3B5 Woodford Dale-Leigh","Short Rural","Weather",null,1,12,2.24342675959439E-5,1.8695222996619901E-6,"N"]
["SUS631_07266","2014-09-17","04:03:08","WBN3B6 Swan Bay","Short Rural","Animal","Animal impact",35,280.11428571428598,1.8328796625886198E-2,6.54332804881697E-5,"N"]
["SUS631_07298","2014-09-17","09:01:00","BNY3B1 Kings Plains","Short Rural","Planned",null,4,59,null,null,"N"]
["SUS631_07329","2014-09-17","09:31:00","STH3B9 Winton","Short Rural","Planned",null,11,214,null,null,"N"]
["SUS631_07347","2014-09-17","09:54:00","GFH3B6 Illilliwa","Urban","Planned",null,89,147,null,null,"N"]
["SUS631_07393","2014-09-18","08:27:19","GDH6201 M62 Carroll","Short Rural","Weather",null,1,117,2.1873410906045299E-4,1.8695222996619901E-6,"N"]
["SUS631_07408","2014-09-18","08:38:00","GLS5/5 City Sth","Short Rural","Planned",null,26,322,null,null,"N"]
["SUS631_07426","2014-09-18","09:02:00","YAR3B2 Troy","Long Rural","Planned",null,19,339.36842105263202,null,null,"N"]
["SUS631_07457","2014-09-18","09:32:00","GDI4B2 Waggamba Nth","Long Rural","Planned",null,1,163,null,null,"N"]
["SUS631_07488","2014-09-18","13:34:14","KTL3B3 Tintinhull","Short Rural","Asset failure","LV",4,165,1.2338847177769099E-3,7.4780891986479603E-6,"N"]
["SUS631_07534","2014-09-19","09:00:00","EME1E08 Rocky Ck","Short Rural","Planned",null,5,77,null,null,"N"]
["SUS631_07565","2014-09-19","09:40:00","CLN3B1 Grong Grong 94/95 Line","Long Rural","Planned",null,52,684.538461538462,null,null,"N"]
["SUS631_07583","2014-09-19","11:39:36","YAS6272 Yass Town Nth","Short Rural","Asset failure","LV",1,40,7.4780891986479605E-5,1.8695222996619901E-6,"N"]
["SUS631_07615","2014-09-20","09:18:06","OBR3B1 Industrial","Long Rural","Asset failure","LV",3,58,1.2850385326927799E-3,2.2155836770565199E-5,"N"]
["SUS631_07644","2014-09-21","07:32:00","TMT12 Tumut Nth","Urban","Planned",null,1,18,null,null,"N"]
["SUS631_07662","2014-09-21","13:30:11","BAL3B11 Ballina East No.1","Short Rural","Asset failure","LV",1,166,3.1034070174388998E-4,1.8695222996619901E-6,"N"]
["SUS631_07693","2014-09-22","08:49:00","WGN32 Geurie","Long Rural","Planned",null,4,214,null,null,"N"]
["SUS631_07714","2014-09-22","09:30:00","COW92 Broula","Long Rural","Planned",null,1,209,null,null,"N"]
["SUS631_07770","2014-09-23","08:00:00","ALJ8B3 East Albury","Urban","Planned",null,1,120,null,null,"N"]
["SUS631_07772","2014-09-23","08:30:00","ORS3B2 Jeager Ave","Short Rural","Planned",null,18,386,null,null,"N"]
["SUS631_07819","2014-09-23","09:15:00","CBB72 Binnaway","Long Rural","Planned",null,2,262,null,null,"N"]
["SUS631_07837","2014-09-23","09:30:00","OBR3B7 Jenolan Caves","Short Rural","Planned",null,11,300,null,null,"N"]
["SUS631_07880","2014-09-23","15:01:00","SRG3B1 Blackville","Long Rural","Asset failure","HV",11,154,1.25106624964458E-2,8.1238068158739202E-5,"N"]
["SUS631_07898","2014-09-24","08:00:00","CFN3B13 Karangi Dam","Short Rural","Planned",null,2,180,null,null,"N"]
["SUS631_07929","2014-09-24","09:01:11","WWL8B2 Lines 63/64","Long Rural","Planned",null,29,73,null,null,"N"]
["SUS631_07964","2014-09-24","09:30:00","URA3B3 Uralla Town Sth East","Short Rural","Vegetation","Grow-in",35,136,8.8989261463910709E-3,6.54332804881697E-5,"N"]
["SUS631_07977","2014-09-24","09:40:00","BRI Braidwood","Long Rural","Planned",null,2,103,null,null,"N"]
["SUS631_08008","2014-09-24","13:26:00","BTH62 Mitchell College","Urban","Planned",null,1,25,null,null,"N"]
["SUS631_08055","2014-09-25","08:00:00","ALJ8B3 East Albury","Urban","Planned",null,1,180,null,null,"N"]
["SUS631_08059","2014-09-25","08:11:00","NDL616 Woolomin","Long Rural","Asset failure","HV",63,42,1.95414480316385E-2,4.6527257218187E-4,"N"]
["SUS631_08087","2014-09-25","09:01:00","PKT3B9 Parkes Town No.3","Short Rural","Planned",null,247,308,null,null,"N"]
["SUS631_08134","2014-09-25","10:57:17","BTS8B4 Wallangra/Bukkulla","Long Rural","Weather",null,1,246,1.81677861518635E-3,7.3852789235217402E-6,"N"]
["SUS631_08165","2014-09-25","14:49:00","RAG3B6 Limekilns","Long Rural","Asset failure","LV",2,38,5.6128119818765298E-4,1.4770557847043501E-5,"N"]
["SUS631_08186","2014-09-25","18:34:10","SMN3B2 Smithtown/Gladstone","Short Rural","Weather",null,311,217.630225080386,0.126534877808023,5.8142143519487898E-4,"N"]
["SUS631_08213","2014-09-26","08:45:00","CST5362 Sth Goulburn/Collector","Long Rural","Other",null,8,279,1.6483942557300499E-2,5.9082231388173902E-5,"N"]
["SUS631_08244","2014-09-26","09:15:00","CNK3B2 Jones Island","Short Rural","Planned",null,6,181,null,null,"N"]
["SUS631_08262","2014-09-26","09:38:00","COO22 Polo Flat","Short Rural","Planned",null,4,163,null,null,"N"]
["SUS631_08309","2014-09-27","08:00:00","CUD3B4 Kingscliff No.1","Urban","Planned",null,31,252,null,null,"N"]
["SUS631_08339","2014-09-28","06:31:00","WTE3682 Taree West","Short Rural","Planned",null,93,309,null,null,"N"]
["SUS631_08370","2014-09-28","15:59:48","DBS3B1 Rural Sth","Long Rural","Asset failure","HV",1,46,3.3972283048199999E-4,7.3852789235217402E-6,"N"]
["SUS631_08401","2014-09-29","09:04:44","BMU1417 Koorawatha/Murringo","Long Rural","Overloads",null,1,157,1.15948879099291E-3,7.3852789235217402E-6,"N"]
["SUS631_08408","2014-09-29","09:14:05","WGT8B4 M43 Walgett Town","Short Rural","Asset failure","HV",425,10,7.94546977356346E-3,7.9454697735634595E-4,"N"]
["SUS631_08449","2014-09-29","11:00:00","NHD3B4 Valla","Short Rural","Vegetation","Grow-in",77,44,6.3339415512548196E-3,1.43953217073973E-4,"N"]
["SUS631_08480","2014-09-30","07:53:36","CHI2538 Farrer Rd","Short Rural","Asset failure","HV",16,442,1.32212617032096E-2,2.9912356794591801E-5,"N"]
["SUS631_08498","2014-09-30","08:36:34","FOR17262 Wells St","Short Rural","Planned",null,340,402.47647058823497,null,null,"N"]
["SUS631_08531","2014-09-30","09:07:00","ORW3B4 Glendale Cres/Redgum Ave","Short Rural","Planned",null,53,271,null,null,"N"]
["SUS631_08575","2014-09-30","10:18:59","SWT12 Stewarts Mt","Long Rural","Other",null,2,242,3.5744749989845199E-3,1.4770557847043501E-5,"N"]
["SUS631_08577","2014-09-30","10:20:00","ORW3B8 Northern Distributor Sth","Short Rural","Planned",null,9,242.333333333333,null,null,"N"]
["SUS631_08608","2014-09-30","17:32:57","JYE3B2 Kalkite","Short Rural","Asset failure","LV",4,118,8.8241452544045903E-4,7.4780891986479603E-6,"N"]
["SUS631_08658","2014-10-01","09:00:00","ALU32 Lavington West/Jindera","Long Rural","Planned",null,1,60,null,null,"N"]
["SUS631_08685","2014-10-01","09:16:00","WGA3B2 Double Crossing","Short Rural","Planned",null,245,73,null,null,"N"]
["SUS631_08716","2014-10-01","10:14:00","GBN6222 Taralga","Long Rural","Other",null,10,174,1.28503853269278E-2,7.3852789235217406E-5,"N"]
["SUS631_08734","2014-10-01","12:50:46","CWD53 Canowindra No.1","Short Rural","Asset failure","LV",1,224,4.1877299512428601E-4,1.8695222996619901E-6,"N"]
["SUS631_08753","2014-10-01","17:25:00","MWN3B1 Uki","Long Rural","Vegetation","Grow-in",1,243,1.79462277841578E-3,7.3852789235217402E-6,"N"]
["SUS631_08782","2014-10-02","08:31:00","MLN3B3 Ashby/Tullymorgan","Short Rural","Planned",null,8,232,null,null,"N"]
["SUS631_08813","2014-10-02","09:06:00","PYB32 Forbes","Long Rural","Planned",null,4,368.75,null,null,"N"]
["SUS631_08844","2014-10-02","09:45:00","GNF32 Grenfell Town No.2","Short Rural","Planned",null,80,297,null,null,"N"]
["SUS631_08880","2014-10-02","16:46:00","BYA7882 Comboyne","Short Rural","Asset failure","LV",1,131,2.44907421255721E-4,1.8695222996619901E-6,"N"]
["SUS631_08892","2014-10-03","05:27:58","QDI3B3 Quirindi","Short Rural","Asset failure","LV",1,99,1.8508270766653701E-4,1.8695222996619901E-6,"N"]
["SUS631_08939","2014-10-03","09:30:00","PYB32 Forbes","Long Rural","Planned",null,1,315,null,null,"N"]
["SUS631_08970","2014-10-03","11:27:28","ANN8B1 No.1 72 Line","Long Rural","Other",null,4,188,5.5537297504883497E-3,2.9541115694087002E-5,"N"]
["SUS631_09003","2014-10-04","08:40:35","YOU3B3 Bribaree","Long Rural","Asset failure","HV",1,217,1.6026055264042199E-3,7.3852789235217402E-6,"N"]
["SUS631_09018","2014-10-04","17:33:29","ALU32 Lavington West/Jindera","Long Rural","Asset failure","HV",2,85,1.2554974169987001E-3,1.4770557847043501E-5,"N"]
["SUS631_09049","2014-10-05","19:24:18","JER42 Hartwood","Long Rural","Weather",null,1,111,8.1976596051091405E-4,7.3852789235217402E-6,"N"]
["SUS631_09080","2014-10-06","16:59:57","YAS6282 Kangiara","Long Rural","Weather",null,1,68,5.0219896679947905E-4,7.3852789235217402E-6,"N"]
["SUS631_09102","2014-10-07","06:29:41","FBS42 Rural Sth","Long Rural","Weather",null,1,136,1.00439793359896E-3,7.3852789235217402E-6,"N"]
["SUS631_09128","2014-10-07","08:31:20","GLR3B5 Barrington","Long Rural","Planned",null,81,400.23456790123498,null,null,"N"]
["SUS631_09175","2014-10-07","10:07:00","MPTD2 Surf Beach","Short Rural","Planned",null,52,161,null,null,"N"]
["SUS631_09206","2014-10-07","13:44:00","ATA3B2 Somerton","Short Rural","Animal","Animal impact",10,44,8.2258981185127597E-4,1.8695222996619901E-5,"N"]
["SUS631_09225","2014-10-08","06:23:00","HPT3B5 Bogangar","Short Rural","Planned",null,67,102,null,null,"N"]
["SUS631_09254","2014-10-08","09:00:00","MOA23 Moama West","Short Rural","Planned",null,24,54,null,null,"N"]
["SUS631_09285","2014-10-08","09:32:33","MWB8B1 M30 Merrywinebone","Long Rural","Planned",null,3,284,null,null,"N"]
["SUS631_09303","2014-10-08","10:03:14","CST5362 Sth Goulburn/Collector","Long Rural","Planned",null,28,104,null,null,"N"]
["SUS631_09324","2014-10-08","12:42:00","RKF3B5 King Creek","Short Rural","Planned",null,8,114,null,null,"N"]
["SUS631_09364","2014-10-09","08:31:00","MUD92 Industrial","Short Rural","Planned",null,37,416,null,null,"N"]
["SUS631_09382","2014-10-09","09:00:51","CB 82578 East Seaham","Short Rural","Planned",null,96,357.4375,null,null,"N"]
["SUS631_09413","2014-10-09","09:31:00","YOU3B6 Murringo","Short Rural","Planned",null,51,208,null,null,"N"]
["SUS631_09447","2014-10-09","12:59:00","GBN6222 Taralga","Long Rural","Asset failure","LV",43,26,8.2567418364973104E-3,3.17566993711435E-4,"N"]
["SUS631_09490","2014-10-10","08:00:00","CFN3B13 Karangi Dam","Short Rural","Planned",null,1,90,null,null,"N"]
["SUS631_09521","2014-10-10","09:13:00","DEN62 Nth Rural","Long Rural","Planned",null,10,266,null,null,"N"]
["SUS631_09539","2014-10-10","09:33:00","CRO5502 Narrawa Bevendale","Long Rural","Planned",null,1,122,null,null,"N"]
["SUS631_09574","2014-10-10","18:52:30","MTG4B1 Tibooburra Backbone Line","Long Rural","Asset failure","HV",12,192,1.70156826397941E-2,8.8623347082260903E-5,"N"]
["SUS631_09600","2014-10-11","16:10:00","MGI2U24 Mungindi Town","Short Rural","Vegetation","Grow-in",1,163,3.0473213484490401E-4,1.8695222996619901E-6,"N"]
["SUS631_09618","2014-10-12","05:20:48","YAS6252 Gunning","Short Rural","Asset failure","HV",33,89.454545454545496,5.5188298286022001E-3,6.1694235888845697E-5,"N"]
["SUS631_09649","2014-10-12","14:31:00","OBR3B6 Interconnector No.1","Short Rural","Weather",null,2,5,1.8695222996619901E-5,3.7390445993239802E-6,"N"]
["SUS631_09669","2014-10-12","18:30:49","TUM22 Tooma","Long Rural","Weather",null,1,293,2.1638867245918699E-3,7.3852789235217402E-6,"N"]
["SUS631_09697","2014-10-13","06:42:38","CDN72 Kiacatoo","Long Rural","Weather",null,1,54,3.9880506187017398E-4,7.3852789235217402E-6,"N"]
["SUS631_09728","2014-10-13","07:53:17","PKT3B4 Cooks Myall","Long Rural","Weather",null,1,193,1.4253588322396999E-3,7.3852789235217402E-6,"N"]
["SUS631_09775","2014-10-13","09:00:00","BTS8B4 Wallangra/Bukkulla","Long Rural","Planned",null,36,150,null,null,"N"]
["SUS631_09796","2014-10-13","09:16:00","DBS3B8 Margaret Cres","Short Rural","Planned",null,40,109,null,null,"N"]
["SUS631_09836","2014-10-13","10:04:58","CBB52 Baradine","Long Rural","Weather",null,2,170,2.5109948339973901E-3,1.4770557847043501E-5,"N"]
["SUS631_09854","2014-10-13","10:30:00","KTL3B1 Kootingal","Short Rural","Planned",null,1,102,null,null,"N"]
["SUS631_09885","2014-10-13","11:13:49","BNY3B1 Kings Plains","Short Rural","Weather",null,4,356,2.66219975471867E-3,7.4780891986479603E-6,"N"]
["SUS631_09923","2014-10-13","12:47:06","PKT3B4 Cooks Myall","Long Rural","Weather",null,1,48,3.5449338832904399E-4,7.3852789235217402E-6,"N"]
["SUS631_09933","2014-10-13","12:59:58","7L3 Kamarah","Long Rural","Weather",null,1,148,1.09302128068122E-3,7.3852789235217402E-6,"N"]
["SUS631_09964","2014-10-13","14:23:16","STR3B1 Stroud Nth","Short Rural","Asset failure","HV",2,247,9.2354401603302299E-4,3.7390445993239802E-6,"N"]
["SUS631_10011","2014-10-13","15:21:54","EUL42 Rural East","Long Rural","Vegetation","Blow-in/Fall-in",2,233,3.4415399783611299E-3,1.4770557847043501E-5,"N"]
["SUS631_10018","2014-10-13","15:30:23","ORW3B8 Northern Distributor Sth","Short Rural","Weather",null,2,95,3.5520923693577801E-4,3.7390445993239802E-6,"N"]
["SUS631_10043","2014-10-13","16:05:48","NARF2 Tilba","Short Rural","Weather",null,2,239,8.9363165923843097E-4,3.7390445993239802E-6,"N"]
["SUS631_10090","2014-10-13","17:19:30","DOR3B2 Peaks Rd","Short Rural","Asset failure","HV",4,1181,8.8316233436032399E-3,7.4780891986479603E-6,"N"]
["SUS631_10121","2014-10-13","17:58:51","CST5362 Sth Goulburn/Collector","Long Rural","Weather",null,1,6,4.4311673541130499E-5,7.3852789235217402E-6,"N"]
["SUS631_10145","2014-10-13","18:36:35","DNO112 Dunedoo No.2","Long Rural","Weather",null,9,225,1.49551898201315E-2,6.6467510311695705E-5,"N"]
["SUS631_10169","2014-10-13","19:52:19","EUL42 Rural East","Long Rural","Weather",null,1,132,9.7485681790486999E-4,7.3852789235217402E-6,"N"]
["SUS631_10200","2014-10-14","05:36:45","URA3B2 Gostwyck/Arding","Long Rural","Weather",null,18,90,1.19641518561052E-2,1.32935020623391E-4,"N"]
["SUS631_10218","2014-10-14","07:16:26","ORS3B6 Peisley St Sth","Short Rural","Weather",null,2,137,5.1224911010738501E-4,3.7390445993239802E-6,"N"]
["SUS631_10268","2014-10-14","09:49:00","MRN8B3 Marulan Town","Long Rural","Planned",null,5,311,null,null,"N"]
["SUS631_10295","2014-10-14","11:35:33","MUD72 Eurunderee","Short Rural","Weather",null,1,99,1.8508270766653701E-4,1.8695222996619901E-6,"N"]
["SUS631_10326","2014-10-14","14:40:12","ORS3B6 Peisley St Sth","Short Rural","Weather",null,1,45,8.4128503484789605E-5,1.8695222996619901E-6,"N"]
["SUS631_10357","2014-10-14","22:50:02","OBR3B8 Tarana Duckmaloi","Long Rural","Weather",null,2,2174,3.2111192759472502E-2,1.4770557847043501E-5,"N"]
["SUS631_10367","2014-10-15","06:31:37","WTE3684 Edinburgh Dr","Short Rural","Weather",null,1,84,1.57039873171607E-4,1.8695222996619901E-6,"N"]
["SUS631_10405","2014-10-15","09:15:00","NVE22 Gin Gin","Short Rural","Planned",null,6,348,null,null,"N"]
["SUS631_10436","2014-10-15","10:00:28","HAT32 Hay 132 - Hay Town","Short Rural","Planned",null,5,122,null,null,"N"]
["SUS631_10454","2014-10-15","11:14:00","YAR3B1 University","Short Rural","Animal","Animal impact",6,109,1.2226675839789401E-3,1.1217133797971899E-5,"N"]
["SUS631_10490","2014-10-16","05:35:00","MSW3B2 Morrow St","Urban","Planned",null,2,37,null,null,"N"]
["SUS631_10502","2014-10-16","08:30:00","BBS3B3 Pine Ck Way","Short Rural","Planned",null,23,350,null,null,"N"]
["SUS631_10533","2014-10-16","09:03:00","ALU62 Thurgoona","Short Rural","Planned",null,5,273,null,null,"N"]
["SUS631_10564","2014-10-16","09:40:00","HOL1845 Bardwell St","Short Rural","Planned",null,22,294,null,null,"N"]
["SUS631_10589","2014-10-16","11:17:00","GDL3B8 Rural","Short Rural","Planned",null,1,40,null,null,"N"]
["SUS631_10641","2014-10-17","09:00:00","BHL32 Sth","Short Rural","Planned",null,5,344,null,null,"N"]
["SUS631_10672","2014-10-17","09:31:09","MDA52 Monument","Short Rural","Planned",null,69,300,null,null,"N"]
["SUS631_10690","2014-10-17","10:38:00","LOC3781 Boree Ck","Short Rural","Planned",null,3,51,null,null,"N"]
["SUS631_10712","2014-10-17","15:40:09","GGB112 Gulargambone","Long Rural","Overloads",null,2,89,1.31457964838687E-3,1.4770557847043501E-5,"N"]
["SUS631_10738","2014-10-17","22:50:26","BOM8B3 Southern Rural","Long Rural","Animal","Animal impact",1,544,4.0175917343958298E-3,7.3852789235217402E-6,"N"]
["SUS631_10769","2014-10-18","17:22:22","QSH5282 Oleria St","Urban","Asset failure","HV",1863,31.8641975308642,0.31008023233948301,9.7313052380852902E-3,"N"]
["SUS631_10800","2014-10-19","22:12:08","KOO1709 Cochrane St","Short Rural","Asset failure","LV",1,103,1.9256079686518499E-4,1.8695222996619901E-6,"N"]
["SUS631_10839","2014-10-20","09:10:00","MRE2M36 Moree Eastern Town","Urban","Planned",null,38,448,null,null,"N"]
["SUS631_10848","2014-10-20","09:33:00","BNY3B6 Blayney Town West","Short Rural","Planned",null,12,237,null,null,"N"]
["SUS631_10895","2014-10-20","18:54:59","DNO142 Merrygoen","Long Rural","Asset failure","HV",2,101,1.4918263425513899E-3,1.4770557847043501E-5,"N"]
["SUS631_10926","2014-10-21","08:59:39","BJN8B4 M31 Cryon","Short Rural","Asset failure","HV",9,504,8.4801531512667897E-3,1.68257006969579E-5,"N"]
["SUS631_10934","2014-10-21","09:10:00","NDA3B7 Sandigo","Short Rural","Planned",null,1,340,null,null,"N"]
["SUS631_10974","2014-10-21","14:42:18","DTN25 Dareton","Short Rural","Animal","Animal impact",14,71,1.85830516586402E-3,2.61733121952679E-5,"N"]
["SUS631_11005","2014-10-22","08:55:43","GRN3B3 Grafton Rural","Short Rural","Animal","Animal impact",12,69,1.5479644641201299E-3,2.24342675959439E-5,"N"]
["SUS631_11036","2014-10-22","10:19:06","HAN3B8 Millis Rd","Short Rural","Animal","Animal impact",1,58,1.08432293380395E-4,1.8695222996619901E-6,"N"]
["SUS631_11061","2014-10-22","13:12:00","WGM4983 Wingham/Hillside","Short Rural","Planned",null,2,56,null,null,"N"]
["SUS631_11084","2014-10-23","06:26:10","NVE42 Warren Rural Nth","Long Rural","Weather",null,6,340,1.50659690039844E-2,4.4311673541130499E-5,"N"]
["SUS631_11131","2014-10-23","09:07:18","CWD13 Cargo","Long Rural","Planned",null,31,146,null,null,"N"]
["SUS631_11162","2014-10-23","09:46:00","UMA590 Upper Manilla","Short Rural","Planned",null,4,264,null,null,"N"]
["SUS631_11184","2014-10-23","12:30:00","CFL Braidwood","Long Rural","Planned",null,4,100,null,null,"N"]
["SUS631_11210","2014-10-23","16:20:45","COW32 Woodstock","Long Rural","Asset failure","HV",32,205,4.84474297383026E-2,2.3632892555269601E-4,"N"]
["SUS631_11241","2014-10-23","20:27:35","WLS9/8 Oorundumby","Long Rural","Weather",null,32,30,7.0898677665808697E-3,2.3632892555269601E-4,"N"]
["SUS631_11272","2014-10-24","08:47:00","MRE2M34 Southern Rural","Long Rural","Planned",null,7,339,null,null,"N"]
["SUS631_11283","2014-10-24","09:05:00","COO32 Victoria St","Urban","Planned",null,32,67,null,null,"N"]
["SUS631_11320","2014-10-24","09:49:00","ANN8B1 No.1 72 Line","Long Rural","Planned",null,1,98,null,null,"N"]
["SUS631_11338","2014-10-24","11:06:00","CTM3B4 Conkey","Short Rural","Animal","Animal impact",1,29,5.4216146690197699E-5,1.8695222996619901E-6,"N"]
["SUS631_11369","2014-10-24","18:18:22","CST5382 Deccan St/Kingsdale","Short Rural","Asset failure","LV",1,76,1.4208369477431099E-4,1.8695222996619901E-6,"N"]
["SUS631_11406","2014-10-25","16:46:43","GDM5422 Michelago","Long Rural","Asset failure","HV",15,187.333333333333,2.0752633775096101E-2,1.1077918385282599E-4,"N"]
["SUS631_11446","2014-10-25","21:34:15","GBN6222 Taralga","Long Rural","Asset failure","HV",1,96,7.0898677665808701E-4,7.3852789235217402E-6,"N"]
["SUS631_11477","2014-10-26","14:54:48","WWL8B3 Lines 61/62/65","Long Rural","Weather",null,1,103,7.6068372912274E-4,7.3852789235217402E-6,"N"]
["SUS631_11495","2014-10-26","19:34:27","ELI3B8 Bexhill","Short Rural","Weather",null,251,205.50199203187299,9.6431829738865105E-2,4.6925009721516002E-4,"N"]
["SUS631_11533","2014-10-27","09:06:41","BOM8B3 Southern Rural","Long Rural","Weather",null,1,56,4.1357561971721798E-4,7.3852789235217402E-6,"N"]
["SUS631_11556","2014-10-27","09:40:35","BRI Braidwood","Long Rural","Planned",null,49,120,null,null,"N"]
["SUS631_11574","2014-10-27","10:41:04","MAH3B7 Candelo","Short Rural","Other",null,1,193,3.6081780383476398E-4,1.8695222996619901E-6,"N"]
["SUS631_11605","2014-10-27","13:15:55","HOL1890 Wantagong/Woomargama","Long Rural","Asset failure","HV",5,116,4.2834617756426097E-3,3.6926394617608703E-5,"N"]
["SUS631_11628","2014-10-27","13:58:00","TDL3B2 Numulla","Short Rural","Weather",null,10,151.19999999999999,2.8267177170889302E-3,1.8695222996619901E-5,"N"]
["SUS631_11653","2014-10-27","15:55:53","GDI8B6 Goondiwindi Town Sth","Urban","Other",null,23,49,5.8868389711873997E-3,1.20139570840559E-4,"N"]
["SUS631_11684","2014-10-28","04:47:48","CST5362 Sth Goulburn/Collector","Long Rural","Asset failure","HV",36,346.41666666666703,9.2101813455239698E-2,2.6587004124678298E-4,"N"]
["SUS631_11731","2014-10-28","09:07:00","CRO5532 Binda Bigga","Long Rural","Planned",null,28,252,null,null,"N"]
["SUS631_11755","2014-10-28","09:33:19","OBR3B1 Industrial","Long Rural","Planned",null,20,141,null,null,"N"]
["SUS631_11792","2014-10-28","13:00:30","RAG3B3 Raglan Industrial","Short Rural","Animal","Animal impact",2,117,4.3746821812090599E-4,3.7390445993239802E-6,"N"]
["SUS631_11810","2014-10-28","17:25:42","DNO142 Merrygoen","Long Rural","Vegetation","Grow-in",1,116,8.5669235512852201E-4,7.3852789235217402E-6,"N"]
["SUS631_11841","2014-10-29","08:45:00","BHL32 Sth","Short Rural","Planned",null,111,200,null,null,"N"]
["SUS631_11854","2014-10-29","09:00:04","ANN8B1 No.1 72 Line","Long Rural","Planned",null,87,366.83908045977,null,null,"N"]
["SUS631_11889","2014-10-29","09:31:18","YAS6282 Kangiara","Long Rural","Animal","Animal impact",2,42,6.2036342957582605E-4,1.4770557847043501E-5,"N"]
["SUS631_11920","2014-10-29","12:29:00","RAG3B6 Limekilns","Long Rural","Planned",null,8,94,null,null,"N"]
["SUS631_11967","2014-10-30","06:25:41","NME8B6 River West","Long Rural","Animal","Animal impact",5,28,1.0339390492930399E-3,3.6926394617608703E-5,"N"]
["SUS631_11977","2014-10-30","08:14:44","MAH3B1 Tathra 2","Short Rural","Asset failure","HV",8,284,4.2475546648320399E-3,1.49561783972959E-5,"N"]
["SUS631_11999","2014-10-30","09:00:30","CRO5542 Crookwell Town and Biala","Long Rural","Planned",null,71,311,null,null,"N"]
["SUS631_12046","2014-10-30","10:17:00","MLO52 West","Short Rural","Planned",null,1,238,null,null,"N"]
["SUS631_12077","2014-10-30","22:22:33","ORS3B2 Jeager Ave","Short Rural","Asset failure","LV",60,112,1.2563189853728601E-2,1.1217133797971899E-4,"N"]
["SUS631_12104","2014-10-31","09:00:00","DBS3B9 Keswick","Urban","Planned",null,2,180,null,null,"N"]
["SUS631_12125","2014-10-31","09:30:00","WGT8B9 M33 Collarenebri","Long Rural","Asset failure","HV",5,44,1.6247613631747799E-3,3.6926394617608703E-5,"N"]
["SUS631_12156","2014-10-31","12:56:00","SWT12 Stewarts Mt","Long Rural","Planned",null,3,277,null,null,"N"]
["SUS631_12174","2014-10-31","15:48:33","MUL3B2 Main Arm","Short Rural","Weather",null,1,249,4.65511052615836E-4,1.8695222996619901E-6,"N"]
["SUS631_12199","2014-10-31","18:51:17","CFN3B13 Karangi Dam","Short Rural","Weather",null,1,110,2.0564745296281899E-4,1.8695222996619901E-6,"N"]
["SUS631_12235","2014-11-01","02:29:47","BTS8B6 Inverell East","Short Rural","Weather",null,7,188,2.4602913463551801E-3,1.3086656097633901E-5,"N"]
["SUS631_12282","2014-11-01","08:13:16","BBA3B1 Burindi","Long Rural","Animal","Animal impact",1,100,7.3852789235217403E-4,7.3852789235217402E-6,"N"]
["SUS631_12313","2014-11-01","12:53:53","GDI4B1 Waggamba East","Long Rural","Weather",null,1,183,1.3515060430044799E-3,7.3852789235217402E-6,"N"]
["SUS631_12326","2014-11-01","14:45:44","GDI4B1 Waggamba East","Long Rural","Weather",null,1,20,1.47705578470435E-4,7.3852789235217402E-6,"N"]
["SUS631_12361","2014-11-01","17:26:39","BTA3B2 M13 Millie","Short Rural","Weather",null,38,179,1.27164906823009E-2,7.1041847387155602E-5,"N"]
["SUS631_12392","2014-11-01","18:48:43","MLA3B3 West/Nth Rural","Short Rural","Animal","Animal impact",2,982,3.67174179653615E-3,3.7390445993239802E-6,"N"]
["SUS631_12410","2014-11-01","20:05:01","WLS9/5 Uralla/Walcha Rd/Wollun","Short Rural","Weather",null,4,253,1.8919565672579301E-3,7.4780891986479603E-6,"N"]
["SUS631_12449","2014-11-02","09:25:59","GDI4B1 Waggamba East","Long Rural","Weather",null,1,127,9.3793042328726105E-4,7.3852789235217402E-6,"N"]
["SUS631_12458","2014-11-02","11:40:02","MRH3B5 Galong","Short Rural","Asset failure","LV",1,160,2.9912356794591799E-4,1.8695222996619901E-6,"N"]
["SUS631_12489","2014-11-02","22:08:39","ELI3B10 Tregeagle","Short Rural","Weather",null,12,57,1.2787532529688001E-3,2.24342675959439E-5,"N"]
["SUS631_12520","2014-11-03","09:22:00","DTN24 Mourquong","Short Rural","Planned",null,3,114,null,null,"N"]
["SUS631_12548","2014-11-03","10:12:05","BAL3B3 Ballina Central No.2","Urban","Asset failure","HV",114,181,0.107780865422787,5.95474394601032E-4,"N"]
["SUS631_12597","2014-11-03","18:57:45","GDH6501 M65 Wandobah","Short Rural","Animal","Animal impact",3,35,1.9629984146450901E-4,5.60856689898597E-6,"N"]
["SUS631_12628","2014-11-04","09:06:00","YOU3B6 Murringo","Short Rural","Planned",null,10,209,null,null,"N"]
["SUS631_12646","2014-11-04","10:42:46","GGB112 Gulargambone","Long Rural","Asset failure","HV",9,165.666666666667,1.10114508749709E-2,6.6467510311695705E-5,"N"]
["SUS631_12671","2014-11-04","14:24:14","MPTB2 Tomakin/Rosedale","Short Rural","Other",null,651,45,5.4767655768598003E-2,1.21705901707996E-3,"N"]
["SUS631_12694","2014-11-04","19:20:22","MUD52 Mudgee West","Urban","Asset failure","LV",1,71,3.70865631725204E-4,5.2234596017634396E-6,"N"]
["SUS631_12725","2014-11-05","08:59:00","YLI2H08 Yetman","Long Rural","Planned",null,10,1,null,null,"Y"]
["SUS631_12756","2014-11-05","09:30:00","GGB122 Warrumbungles","Long Rural","Asset failure","HV",9,90,5.9820759280526103E-3,6.6467510311695705E-5,"Y"]
["SUS631_12798","2014-11-05","13:16:12","MBL122 Stuart Town","Long Rural","Weather",null,23,527.04347826086996,8.95243511109306E-2,1.69861415241E-4,"Y"]
["SUS631_12804","2014-11-05","14:11:00","URA3B1 Kentucky Salisbury","Short Rural","Weather",null,1,2911,5.4421794143160503E-3,1.8695222996619901E-6,"Y"]
["SUS631_12851","2014-11-05","17:23:47","MGI2U24 Mungindi Town","Short Rural","Weather",null,382,207,0.147830606323472,7.1415751847088004E-4,"Y"]
["SUS631_12882","2014-11-05","17:54:45","UMA590 Upper Manilla","Short Rural","Weather",null,36,628.805555555556,4.2320376297448503E-2,6.7302802787831695E-5,"Y"]
["SUS631_12893","2014-11-05","18:37:48","ETH3B13 Armidale/Crawford","Long Rural","Weather",null,1,416,3.0722760321850499E-3,7.3852789235217402E-6,"Y"]
["SUS631_12930","2014-11-05","19:07:37","GLS5/3 Rockvale","Short Rural","Vegetation","Blow-in/Fall-in",785,315.36305732484101,0.46281894050432199,1.46757500523466E-3,"Y"]
["SUS631_12961","2014-11-05","20:14:00","GDH8B8 M75 East Gunnedah","Short Rural","Weather",null,64,167,1.99814543387874E-2,1.19649427178367E-4,"Y"]
["SUS631_12992","2014-11-05","21:20:16","YLI2H03 North Star","Short Rural","Weather",null,1,141,2.6360264425234102E-4,1.8695222996619901E-6,"Y"]
["SUS631_13020","2014-11-06","06:15:23","ELI3B4 Lynwood","Short Rural","Vegetation","Blow-in/Fall-in",1,343,6.4124614878406302E-4,1.8695222996619901E-6,"N"]
["SUS631_13040","2014-11-06","07:22:56","GDL3B8 Rural","Short Rural","Weather",null,38,303.15789473684202,2.1536896892106101E-2,7.1041847387155602E-5,"N"]
["SUS631_13087","2014-11-06","09:00:00","PHS3B3 Erskine St OH Nth - Nth Dubbo","Short Rural","Planned",null,87,213,null,null,"N"]
["SUS631_13118","2014-11-06","09:30:00","COW92 Broula","Long Rural","Planned",null,18,299.444444444444,null,null,"N"]
["SUS631_13143","2014-11-06","10:10:23","GDH8B7 M74 Blackjack Colliery","Short Rural","Weather",null,175,54,1.76669857318058E-2,3.27166402440848E-4,"N"]
["SUS631_13166","2014-11-06","12:02:17","WHI719 Whitton Sth","Short Rural","Asset failure","HV",2,156,5.8329095749454099E-4,3.7390445993239802E-6,"N"]
["SUS631_13197","2014-11-06","14:22:05","CNB42 Rural Nth","Long Rural","Asset failure","HV",13,165.07692307692301,1.58488085698777E-2,9.6008626005782699E-5,"N"]
["SUS631_13228","2014-11-06","18:29:35","CNB42 Rural Nth","Long Rural","Asset failure","HV",13,138,1.3249190388798E-2,9.6008626005782699E-5,"N"]
["SUS631_13242","2014-11-06","22:43:59","SGN3B6 Rushforth Rd","Short Rural","Asset failure","HV",1742,42.205510907003401,0.13745101851574901,3.2567078460111901E-3,"N"]
["SUS631_13276","2014-11-07","09:05:00","GDM5422 Michelago","Long Rural","Planned",null,1,189,null,null,"N"]
["SUS631_13294","2014-11-07","09:30:00","ARD No.1 Line 141 Nth","Short Rural","Planned",null,1,180,null,null,"N"]
["SUS631_13325","2014-11-07","11:33:00","ELI3B4 Lynwood","Short Rural","Asset failure","LV",4,38,2.8416738954862301E-4,7.4780891986479603E-6,"N"]
["SUS631_13365","2014-11-07","17:42:52","MCV3B9 Bowraville Rural","Long Rural","Weather",null,4,168,4.9629074366066101E-3,2.9541115694087002E-5,"N"]
["SUS631_13402","2014-11-08","15:00:00","GDH8B8 M75 East Gunnedah","Short Rural","Third party","Vehicle impact",15,101,2.83232628398792E-3,2.8042834494929901E-5,"N"]
["SUS631_13433","2014-11-09","11:18:30","CDN42 Burcher","Long Rural","Animal","Animal impact",1,102,7.5329845019921798E-4,7.3852789235217402E-6,"N"]
["SUS631_13451","2014-11-09","20:57:03","JER22 Jerilderie Town","Short Rural","Animal","Animal impact",1,86,1.6077891777093099E-4,1.8695222996619901E-6,"N"]
["SUS631_13464","2014-11-10","07:08:03","ORI828 Clifton Grove","Short Rural","Animal","Animal impact",5,417,3.8979539947952501E-3,9.3476114983099506E-6,"N"]
["SUS631_13512","2014-11-10","09:39:55","LRN3B5 Kew Rd","Short Rural","Vegetation","Blow-in/Fall-in",1,132,2.4677694355538301E-4,1.8695222996619901E-6,"N"]
["SUS631_13530","2014-11-10","10:48:08","MRH3B6 Kingsvale","Long Rural","Asset failure","HV",4,55,1.6247613631747799E-3,2.9541115694087002E-5,"N"]
["SUS631_13561","2014-11-10","17:27:27","KTL3B1 Kootingal","Short Rural","Weather",null,548,373,0.38213783614010899,1.02449822021477E-3,"N"]
["SUS631_13587","2014-11-10","21:21:26","CLA3B2 Gowrie","Short Rural","Weather",null,1,67,1.25257994077353E-4,1.8695222996619901E-6,"N"]
["SUS631_13609","2014-11-11","06:33:21","UNI8/6 Dumaresq/Booralong","Short Rural","Animal","Animal impact",2,169,6.3189853728575298E-4,3.7390445993239802E-6,"N"]
["SUS631_13640","2014-11-11","08:48:00","WWA8B3 M9 Merah North/Doreen Ln","Short Rural","Overloads",null,92,56,9.6317788878585702E-3,1.7199605156890301E-4,"N"]
["SUS631_13687","2014-11-11","09:31:00","CBB52 Baradine","Long Rural","Planned",null,1,72,null,null,"N"]
["SUS631_13714","2014-11-11","10:41:54","NBI8B1 M8 Wee Waa","Short Rural","Weather",null,5,39,3.64556848434088E-4,9.3476114983099506E-6,"N"]
["SUS631_13748","2014-11-11","16:51:09","UNI8/8 Tilbuster/Puddledock","Short Rural","Weather",null,1,180,3.3651401393915798E-4,1.8695222996619901E-6,"N"]
["SUS631_13766","2014-11-11","18:39:03","TFD32 No.3","Long Rural","Weather",null,1,251,1.8537050098039599E-3,7.3852789235217402E-6,"N"]
["SUS631_13797","2014-11-12","08:30:00","ALU52 Fallon St","Urban","Planned",null,1,150,null,null,"N"]
["SUS631_13809","2014-11-12","09:00:00","MUD62 Mudgee East","Long Rural","Planned",null,3,228,null,null,"N"]
["SUS631_13845","2014-11-12","09:30:00","BLH3B3 Bulahdelah Central/Wootton/Seal Rocks","Long Rural","Planned",null,25,287,null,null,"N"]
["SUS631_13876","2014-11-12","10:42:36","OKY3B1 Wollomombi","Short Rural","Other",null,84,77,1.2092070234213799E-2,1.57039873171607E-4,"N"]
["SUS631_13923","2014-11-12","20:33:00","HAY1305 Irrigation Area","Short Rural","5 - STPIS Exclusion (3.3)(a)",null,82,15,2.2995124285842502E-3,1.5330082857228301E-4,"N"]
["SUS631_13936","2014-11-13","06:33:57","SWT52 Bathurst Gaol","Urban","Vegetation","Blow-in/Fall-in",1,114,5.95474394601032E-4,5.2234596017634396E-6,"N"]
["SUS631_13955","2014-11-13","09:00:00","RGL3B8 Kalang/Valla","Short Rural","Planned",null,2,290,null,null,"N"]
["SUS631_14002","2014-11-13","09:45:00","JRF Line 131/132","Short Rural","Planned",null,7,297,null,null,"N"]
["SUS631_14033","2014-11-13","14:40:00","WGM4981 Mt George/Elands","Long Rural","Asset failure","HV",158,64,7.4679940474651901E-2,1.1668740699164401E-3,"N"]
["SUS631_14063","2014-11-14","03:52:20","BRD22 No.2 Moulamein","Long Rural","Animal","Animal impact",566,136.5,0.57057926435236705,4.1800678707133096E-3,"N"]
["SUS631_14081","2014-11-14","08:30:47","STR3B1 Stroud Nth","Short Rural","Planned",null,79,277.59493670886098,null,null,"N"]
["SUS631_14112","2014-11-14","09:17:00","AVE3B7 Alstonville East","Short Rural","Planned",null,27,252.888888888889,null,null,"N"]
["SUS631_14130","2014-11-14","09:48:00","BAR22 Wakool","Long Rural","Planned",null,1,153,null,null,"N"]
["SUS631_14158","2014-11-14","14:24:59","MRE2M17 Western Rural","Long Rural","Animal","Animal impact",1,63,4.6527257218187E-4,7.3852789235217402E-6,"N"]
["SUS631_14191","2014-11-14","22:33:46","WBG3B1 Kooba Settlers Rd","Short Rural","Asset failure","HV",2,58,2.1686458676079101E-4,3.7390445993239802E-6,"N"]
["SUS631_14238","2014-11-15","16:14:00","SGN3B3 Waterview Hts","Short Rural","Asset failure","LV",6,101,1.13293051359517E-3,1.1217133797971899E-5,"N"]
["SUS631_14240","2014-11-15","17:18:24","JUN2 Junee Sth","Short Rural","Weather",null,33,166,1.02412431575484E-2,6.1694235888845697E-5,"N"]
["SUS631_14285","2014-11-16","05:11:48","CRO5532 Binda Bigga","Long Rural","Weather",null,1,40,2.9541115694087E-4,7.3852789235217402E-6,"N"]
["SUS631_14317","2014-11-16","08:55:01","MDA42 West","Short Rural","Weather",null,1,232,4.3372917352158203E-4,1.8695222996619901E-6,"N"]
["SUS631_14348","2014-11-16","13:10:01","ORI831 Abattoirs","Short Rural","Vegetation","Blow-in/Fall-in",184,135.51086956521701,4.6614669019772098E-2,3.4399210313780602E-4,"N"]
["SUS631_14366","2014-11-16","17:51:00","WGT8B2 M38/M39 Pilliga","Long Rural","Asset failure","HV",3,49,1.0856360017577E-3,2.2155836770565199E-5,"N"]
["SUS631_14408","2014-11-17","09:00:00","GDH6501 M65 Wandobah","Short Rural","Planned",null,9,408,null,null,"N"]
["SUS631_14414","2014-11-17","09:03:00","ALJ8B6 Newmarket","Urban","Planned",null,168,237,null,null,"N"]
["SUS631_14445","2014-11-17","10:14:00","MRN8B3 Marulan Town","Long Rural","Planned",null,1,141,null,null,"N"]
["SUS631_14476","2014-11-17","14:56:00","MUA5006 West","Short Rural","Vegetation","Grow-in",16,30,8.9737070383775499E-4,2.9912356794591801E-5,"N"]
["SUS631_14507","2014-11-18","08:30:00","LIU3B3 East Lismore","Short Rural","Planned",null,1,30,null,null,"N"]
["SUS631_14553","2014-11-18","09:30:00","WGT8B6 M32 Come-By-Chance","Long Rural","Planned",null,1,129,null,null,"N"]
["SUS631_14584","2014-11-18","10:39:00","HAN3B4 Hanwood Ave","Short Rural","Planned",null,3,332,null,null,"N"]
["SUS631_14602","2014-11-18","15:29:00","GDM5422 Michelago","Long Rural","Asset failure","HV",1,18,1.32935020623391E-4,7.3852789235217402E-6,"N"]
["SUS631_14630","2014-11-19","06:21:50","CSO3B2 Kyogle Rd","Long Rural","Animal","Animal impact",1,95,7.0160149773456596E-4,7.3852789235217402E-6,"N"]
["SUS631_14650","2014-11-19","08:47:00","BBA3B3 Cobbadah","Long Rural","Asset failure","HV",1,1640,1.21118574345757E-2,7.3852789235217402E-6,"N"]
["SUS631_14681","2014-11-19","09:15:00","GLR3B5 Barrington","Long Rural","Planned",null,3,55,null,null,"N"]
["SUS631_14712","2014-11-19","10:15:00","MRE2M37 Gingham Rd","Short Rural","Planned",null,1,75,null,null,"N"]
["SUS631_14729","2014-11-19","11:40:06","NYN52 Nyngan West","Long Rural","Asset failure","LV",1,98,7.2375733450513095E-4,7.3852789235217402E-6,"N"]
["SUS631_14760","2014-11-19","17:49:15","CBR42 Margretvale","Long Rural","Animal","Animal impact",4,151,4.4607084698071297E-3,2.9541115694087002E-5,"N"]
["SUS631_14791","2014-11-20","06:03:41","ELI3B6 Nth Lismore","Short Rural","Weather",null,7,69,9.0297927073674101E-4,1.3086656097633901E-5,"N"]
["SUS631_14838","2014-11-20","09:06:00","GID22 Rural Nth/Sth/West","Long Rural","Planned",null,3,184,null,null,"N"]
["SUS631_14852","2014-11-20","09:20:00","JNR4081 Quarry","Short Rural","Planned",null,51,315.49019607843098,null,null,"N"]
["SUS631_14886","2014-11-20","10:13:00","LOC3786 Urana","Long Rural","Planned",null,7,138,null,null,"N"]
["SUS631_14917","2014-11-20","17:02:13","ORW3B2 Mountain View","Short Rural","Asset failure","LV",76,310,4.4045945380036498E-2,1.4208369477431099E-4,"N"]
["SUS631_14948","2014-11-21","08:30:00","DBS3B2 Boundary Rd","Urban","Planned",null,5,420,null,null,"N"]
["SUS631_14979","2014-11-21","09:17:00","BTH82 Lloyds Rd","Long Rural","Planned",null,1,11,null,null,"N"]
["SUS631_14996","2014-11-21","09:37:00","COO102 Northern Rural","Long Rural","Planned",null,49,357,null,null,"N"]
["SUS631_15043","2014-11-21","15:17:10","MLN3B5 Woodford Dale-Leigh","Short Rural","Weather",null,1,91,1.70126529269241E-4,1.8695222996619901E-6,"N"]
["SUS631_15045","2014-11-21","15:27:34","MUL3B2 Main Arm","Short Rural","Vegetation","Blow-in/Fall-in",50,157.1,1.46850976638449E-2,9.3476114983099496E-5,"N"]
["SUS631_15074","2014-11-22","00:22:36","STL3B4 Crossmaglen","Short Rural","Weather",null,3,56,3.14079746343214E-4,5.60856689898597E-6,"N"]
["SUS631_15122","2014-11-22","17:36:56","BNG8B1 Alcheringa Drive","Long Rural","Weather",null,13,456,4.3779933458636899E-2,9.6008626005782699E-5,"N"]
["SUS631_15153","2014-11-22","23:15:31","MWN3B1 Uki","Long Rural","Asset failure","HV",7,442,2.2850052989376299E-2,5.16969524646522E-5,"N"]
["SUS631_15184","2014-11-23","07:05:00","PSK3B5 Central","Urban","Planned",null,28,220,null,null,"N"]
["SUS631_15201","2014-11-23","09:07:00","YAS6272 Yass Town Nth","Short Rural","Planned",null,296,476.375,null,null,"N"]
["SUS631_15232","2014-11-23","15:33:31","CDN42 Burcher","Long Rural","Weather",null,56,230.17857142857099,9.5196245324195294E-2,4.1357561971721798E-4,"N"]
["SUS631_15250","2014-11-23","16:50:08","BOO1042 Kenyu","Long Rural","Weather",null,122,145,0.13064558415710001,9.0100402866965298E-4,"N"]
["SUS631_15281","2014-11-23","17:54:46","YLI2H08 Yetman","Long Rural","Weather",null,1,122,9.0100402866965298E-4,7.3852789235217402E-6,"N"]
["SUS631_15324","2014-11-23","19:58:07","GYA3B1 Ben Lomond","Long Rural","Weather",null,1,191,1.41058827439265E-3,7.3852789235217402E-6,"N"]
["SUS631_15358","2014-11-23","22:01:27","CPD2C03 Copeton Dam","Short Rural","Weather",null,1,747,1.39653315784751E-3,1.8695222996619901E-6,"N"]
["SUS631_15389","2014-11-24","06:01:49","BGA2K09 Abbotts Ln/Gineoi","Long Rural","Weather",null,42,381.73809523809501,0.118408176980824,3.1018171478791303E-4,"N"]
["SUS631_15391","2014-11-24","06:05:53","WWA8B3 M9 Merah North/Doreen Ln","Short Rural","Weather",null,1,521,9.7402111812389699E-4,1.8695222996619901E-6,"N"]
["SUS631_15423","2014-11-24","08:23:41","MRE2M38 Tareelaroi","Long Rural","Weather",null,1,42,3.1018171478791303E-4,7.3852789235217402E-6,"N"]
["SUS631_15468","2014-11-24","09:57:00","GNF22 Grenfell Town No.1","Short Rural","Planned",null,34,208,null,null,"N"]
["SUS631_15486","2014-11-24","10:31:00","PSK3B1 Dondingalong","Short Rural","Other",null,2,20,7.4780891986479605E-5,3.7390445993239802E-6,"N"]
["SUS631_15517","2014-11-24","13:33:00","BGA2K17 Bingara Town/Keera Rd","Short Rural","Weather",null,3,15,8.4128503484789605E-5,5.60856689898597E-6,"N"]
["SUS631_15546","2014-11-24","15:30:34","RAG3B6 Limekilns","Long Rural","Weather",null,1,325,2.4002156501445699E-3,7.3852789235217402E-6,"N"]
["SUS631_15565","2014-11-24","16:15:04","PKT3B4 Cooks Myall","Long Rural","Animal","Animal impact",1,45,3.3233755155847802E-4,7.3852789235217402E-6,"N"]
["SUS631_15596","2014-11-24","16:53:19","FIN52 Tocumwal","Long Rural","Weather",null,33,165.81818181818201,4.0412246269511003E-2,2.4371420447621801E-4,"N"]
["SUS631_15643","2014-11-24","18:05:00","BBYG2 Batehaven","Short Rural","Planned",null,39,273,null,null,"N"]
["SUS631_15673","2014-11-24","18:57:32","BNK24798 Koorainghat","Short Rural","Weather",null,2,183,6.8424516167628802E-4,3.7390445993239802E-6,"N"]
["SUS631_15704","2014-11-24","20:04:39","WWA8B2 M7 Yarrie Lake","Short Rural","Weather",null,2,170,6.35637581885077E-4,3.7390445993239802E-6,"N"]
["SUS631_15722","2014-11-24","20:52:29","FIN42 Berrigan","Long Rural","Other",null,1,566,4.1800678707133096E-3,7.3852789235217402E-6,"N"]
["SUS631_15753","2014-11-25","01:10:39","WWA8B2 M7 Yarrie Lake","Short Rural","Weather",null,1,831,1.55357303101911E-3,1.8695222996619901E-6,"N"]
["SUS631_15768","2014-11-25","06:32:45","KIS7681 Bellangry","Short Rural","Weather",null,4,158,1.18153809338638E-3,7.4780891986479603E-6,"N"]
["SUS631_15801","2014-11-25","08:13:55","CSO3B2 Kyogle Rd","Long Rural","Weather",null,1,145,1.07086544391065E-3,7.3852789235217402E-6,"N"]
["SUS631_15832","2014-11-25","09:06:00","NVE12 Nevertire","Long Rural","Planned",null,3,240,null,null,"N"]
["SUS631_15850","2014-11-25","09:22:02","CRO5512 Woodhouselee","Long Rural","Planned",null,110,336.1,null,null,"N"]
["SUS631_15895","2014-11-25","12:13:18","DNO122 Craboon","Long Rural","Third party","Vehicle impact",14,202,2.0885568795719501E-2,1.0339390492930399E-4,"N"]
["SUS631_15911","2014-11-25","14:17:00","CDN52 Tottenham","Long Rural","Weather",null,1,16,1.1816446277634801E-4,7.3852789235217402E-6,"N"]
["SUS631_15958","2014-11-25","20:58:21","SMN3B1 Yarrahapinni/Frederickton","Short Rural","Weather",null,1,65,1.2151894947802899E-4,1.8695222996619901E-6,"N"]
["SUS631_15989","2014-11-26","08:49:00","GID12 Gilgandra Town No.1","Urban","Planned",null,71,346.25352112676097,null,null,"N"]
["SUS631_15994","2014-11-26","09:00:00","WOO8642 Woodlawn","Long Rural","Planned",null,63,355,null,null,"N"]
["SUS631_16037","2014-11-26","09:48:00","SLI3B2 Sth Gundurimba","Short Rural","Planned",null,6,300,null,null,"N"]
["SUS631_16068","2014-11-26","13:14:18","BMR670 Watsons Ck","Short Rural","Asset failure","LV",1,151,2.82297867248961E-4,1.8695222996619901E-6,"N"]
["SUS631_16086","2014-11-26","16:19:15","TDL8B2 Tullamore/Tottenham","Long Rural","Asset failure","LV",1,2794,2.0634469312319801E-2,7.3852789235217402E-6,"N"]
["SUS631_16117","2014-11-27","02:44:36","YAR3B2 Troy","Long Rural","Weather",null,18,80,1.06348016498713E-2,1.32935020623391E-4,"N"]
["SUS631_16147","2014-11-27","08:51:00","BHL32 Sth","Short Rural","Planned",null,127,353,null,null,"N"]
["SUS631_16194","2014-11-27","09:40:00","AHY2T04 Northern","Long Rural","Planned",null,32,339.40625,null,null,"N"]
["SUS631_16196","2014-11-27","09:43:00","CDN62 Tallebung","Long Rural","Planned",null,1,320,null,null,"N"]
["SUS631_16244","2014-11-27","17:42:47","NSK3B2 Frederickton","Short Rural","Third party","Vehicle impact",1029,58.515063168124399,0.112567676707248,1.9237384463521899E-3,"N"]
["SUS631_16273","2014-11-28","08:30:00","DUG3B6 Sandy Ck/Wallarobba","Short Rural","Planned",null,152,411.51973684210498,null,null,"N"]
["SUS631_16304","2014-11-28","09:25:00","GBN6222 Taralga","Long Rural","Planned",null,15,160,null,null,"N"]
["SUS631_16322","2014-11-28","09:44:30","MLN3B6 South Arm","Short Rural","Third party","Vehicle impact",1,30,5.60856689898597E-5,1.8695222996619901E-6,"N"]
["SUS631_16339","2014-11-28","10:30:00","SWT12 Stewarts Mt","Long Rural","Planned",null,32,270,null,null,"N"]
["SUS631_16383","2014-11-28","21:17:18","FIN52 Tocumwal","Long Rural","Third party","Vehicle impact",3,609.33333333333303,1.35002898721978E-2,2.2155836770565199E-5,"N"]
["SUS631_16401","2014-11-29","08:11:00","THA2223 West End","Urban","Other",null,1,127,6.6337936942395699E-4,5.2234596017634396E-6,"N"]
["SUS631_16432","2014-11-29","16:06:00","BKE4B1 M81 Enngonia","Long Rural","Weather",null,112,155,0.12820844211233701,8.2715123943443499E-4,"N"]
["SUS631_16478","2014-11-30","08:56:28","GDM5422 Michelago","Long Rural","Vegetation","Grow-in",23,107,1.8175171430787E-2,1.69861415241E-4,"N"]
["SUS631_16509","2014-11-30","14:16:02","ARD No.2 Ardlethan Town Sth","Short Rural","Vegetation","Grow-in",1,122,2.2808172055876301E-4,1.8695222996619901E-6,"N"]
["SUS631_16511","2014-11-30","14:20:10","LCO22 Lake Cargelligo","Long Rural","Weather",null,1,90,6.6467510311695702E-4,7.3852789235217402E-6,"N"]
["SUS631_16559","2014-11-30","16:31:33","NAN3B1 Eurongilly","Short Rural","Asset failure","LV",1,135,2.5238551045436898E-4,1.8695222996619901E-6,"N"]
["SUS631_16588","2014-11-30","17:51:37","ORS3B6 Peisley St Sth","Short Rural","Weather",null,1,261,4.8794532021177999E-4,1.8695222996619901E-6,"N"]
["SUS631_16606","2014-11-30","18:58:31","COO102 Northern Rural","Long Rural","Weather",null,2,82,1.2111857434575701E-3,1.4770557847043501E-5,"N"]
["SUS631_16637","2014-11-30","21:00:37","CDN62 Tallebung","Long Rural","Weather",null,1,115,8.4930707620500096E-4,7.3852789235217402E-6,"N"]
["SUS631_16682","2014-12-01","07:15:47","COO12 Nimmitabel","Short Rural","Weather",null,16,59,1.76482905088092E-3,2.9912356794591801E-5,"N"]
["SUS631_16685","2014-12-01","07:53:00","DNO142 Merrygoen","Long Rural","Asset failure","LV",1,312,2.3042070241387799E-3,7.3852789235217402E-6,"N"]
["SUS631_16716","2014-12-01","09:15:00","DNO112 Dunedoo No.2","Long Rural","Other",null,9,110,7.31142613428653E-3,6.6467510311695705E-5,"N"]
["SUS631_16747","2014-12-01","10:51:00","WJL3B3 West Plain","Long Rural","Weather",null,4,128,3.7812628088431301E-3,2.9541115694087002E-5,"N"]
["SUS631_16781","2014-12-01","15:59:00","CBB72 Binnaway","Long Rural","Weather",null,9,73,4.8521282527537899E-3,6.6467510311695705E-5,"N"]
["SUS631_16824","2014-12-01","19:19:41","WGT8B6 M32 Come-By-Chance","Long Rural","Weather",null,3,487,1.07898925072653E-2,2.2155836770565199E-5,"N"]
["SUS631_16842","2014-12-01","20:23:00","MWA8B4 North St and Rural","Long Rural","Weather",null,1,10,7.3852789235217406E-5,7.3852789235217402E-6,"N"]
["SUS631_16873","2014-12-01","22:34:25","TDL8B1 Bogan Gate","Long Rural","Weather",null,1,214,1.5804496896336499E-3,7.3852789235217402E-6,"N"]
["SUS631_16904","2014-12-02","02:21:13","NME8B1 Rural Sth","Long Rural","Weather",null,12,614.33333333333303,5.4444276224202302E-2,8.8623347082260903E-5,"N"]
["SUS631_16921","2014-12-02","05:28:45","TUM22 Tooma","Long Rural","Weather",null,1,424,3.13135826357322E-3,7.3852789235217402E-6,"N"]
["SUS631_16952","2014-12-02","06:29:35","CRO5512 Woodhouselee","Long Rural","Weather",null,16,163,1.9260807432544699E-2,1.1816446277634801E-4,"N"]
["SUS631_16999","2014-12-02","07:25:58","GBN6212 Towrang","Short Rural","Weather",null,7,135,1.76669857318058E-3,1.3086656097633901E-5,"N"]
["SUS631_17003","2014-12-02","07:32:04","MBM6222 Patemans Ln","Long Rural","Weather",null,4,71,2.0974192142801801E-3,2.9541115694087002E-5,"N"]
["SUS631_17031","2014-12-02","08:24:28","KYG3B5 Casino Rd","Long Rural","Asset failure","HV",6,302,1.3382125409421399E-2,4.4311673541130499E-5,"N"]
["SUS631_17078","2014-12-02","09:11:00","MGA3B2 Willawarrin","Long Rural","Planned",null,1,133,null,null,"N"]
["SUS631_17109","2014-12-02","09:43:47","GBN6222 Taralga","Long Rural","Weather",null,13,12,1.15210351206939E-3,9.6008626005782699E-5,"N"]
["SUS631_17126","2014-12-02","10:35:00","CRO5522 Tuena Redground","Long Rural","Weather",null,1,6,4.4311673541130499E-5,7.3852789235217402E-6,"N"]
["SUS631_17157","2014-12-02","12:46:43","TDL8B1 Bogan Gate","Long Rural","Weather",null,9,3,1.9940253093508699E-4,6.6467510311695705E-5,"N"]
["SUS631_17188","2014-12-02","16:45:54","GBN5702 Kingsdale","Short Rural","Weather",null,1,63,1.17779904878705E-4,1.8695222996619901E-6,"N"]
["SUS631_17206","2014-12-02","18:55:05","BNY3B2 Blayney Town","Short Rural","Weather",null,1,115,2.14995064461129E-4,1.8695222996619901E-6,"N"]
["SUS631_17253","2014-12-03","08:13:29","TUM42 Laurel Hill","Long Rural","Asset failure","HV",1,141,1.04132432821657E-3,7.3852789235217402E-6,"N"]
["SUS631_17267","2014-12-03","09:00:00","DNO142 Merrygoen","Long Rural","Planned",null,5,157,null,null,"N"]
["SUS631_17314","2014-12-03","09:56:00","CFL Braidwood","Long Rural","Planned",null,18,245,null,null,"N"]
["SUS631_17316","2014-12-03","10:01:07","CRO5522 Tuena Redground","Long Rural","Weather",null,1,130,9.6008626005782702E-4,7.3852789235217402E-6,"N"]
["SUS631_17348","2014-12-03","12:03:03","GNF42 Rural No.2","Long Rural","Weather",null,1,166,1.22595630130461E-3,7.3852789235217402E-6,"N"]
["SUS631_17393","2014-12-03","14:06:30","CBR22 Cobar Town Nth","Short Rural","Overloads",null,1217,51,0.116035640573121,2.2752086386886401E-3,"N"]
["SUS631_17424","2014-12-03","15:07:07","GNI3B3 Red Range/Kookabookra","Long Rural","Weather",null,1,99,7.3114261342865298E-4,7.3852789235217402E-6,"N"]
["SUS631_17442","2014-12-03","15:37:24","NYN52 Nyngan West","Long Rural","Weather",null,10,84,6.2036342957582603E-3,7.3852789235217406E-5,"N"]
["SUS631_17475","2014-12-03","16:50:08","WGM4981 Mt George/Elands","Long Rural","Weather",null,3,70,1.5509085739395701E-3,2.2155836770565199E-5,"N"]
["SUS631_17503","2014-12-03","18:54:50","MOU22 Balranald/Tooleybuc","Long Rural","Weather",null,19,55,7.71761647508022E-3,1.40320299546913E-4,"N"]
["SUS631_17521","2014-12-03","19:57:16","DUG3B1 Clarencetown","Short Rural","Weather",null,4,78,5.8329095749454099E-4,7.4780891986479603E-6,"N"]
["SUS631_17552","2014-12-03","22:25:45","CRA52 Howlong","Short Rural","Weather",null,1,125,2.33690287457749E-4,1.8695222996619901E-6,"N"]
["SUS631_17602","2014-12-04","07:13:14","RGL3B7 Bellingen Rural","Short Rural","Asset failure","LV",5,174,1.6264844007059299E-3,9.3476114983099506E-6,"N"]
["SUS631_17629","2014-12-04","09:00:00","CST5382 Deccan St/Kingsdale","Short Rural","Planned",null,172,301,null,null,"N"]
["SUS631_17660","2014-12-04","09:17:00","CNB42 Rural Nth","Long Rural","Planned",null,1,647,null,null,"N"]
["SUS631_17678","2014-12-04","09:40:00","BODB2 Bodalla","Short Rural","Planned",null,2,125,null,null,"N"]
["SUS631_17697","2014-12-04","10:17:32","DUG3B1 Clarencetown","Short Rural","Weather",null,2,317,1.1852771379856999E-3,3.7390445993239802E-6,"N"]
["SUS631_17739","2014-12-04","13:39:41","ORW3B7 Cargo Rd","Short Rural","Asset failure","HV",2,43,1.6077891777093099E-4,3.7390445993239802E-6,"N"]
["SUS631_17757","2014-12-04","14:36:21","TFD32 No.3","Long Rural","Weather",null,37,30,8.1976596051091394E-3,2.7325532017030501E-4,"N"]
["SUS631_17788","2014-12-04","15:47:29","BRE8B4 M56 Brewarrina","Long Rural","Weather",null,62,43,1.9689153610108999E-2,4.5788729325834797E-4,"N"]
["SUS631_17824","2014-12-04","17:08:16","KKN3B1 Coaldale","Short Rural","Weather",null,1,400,7.4780891986479597E-4,1.8695222996619901E-6,"N"]
["SUS631_17836","2014-12-04","17:21:39","PKH42 Rural West","Short Rural","Weather",null,79,37,5.4646136819120001E-3,1.4769226167329701E-4,"N"]
["SUS631_17867","2014-12-04","18:11:32","MSW3B6 Forsyth St","Urban","Weather",null,23,76,9.1306073838824907E-3,1.20139570840559E-4,"N"]
["SUS631_17914","2014-12-04","19:23:38","BERB2 Wallaga Lake","Short Rural","Weather",null,3,131,7.3472226376716202E-4,5.60856689898597E-6,"N"]
["SUS631_17947","2014-12-04","19:57:15","ORI831 Abattoirs","Short Rural","Weather",null,1,121,2.26212198259101E-4,1.8695222996619901E-6,"N"]
["SUS631_17975","2014-12-04","20:31:48","CMK4006 East","Short Rural","Weather",null,2,17,6.3563758188507705E-5,3.7390445993239802E-6,"N"]
["SUS631_17993","2014-12-04","20:51:53","CRO5512 Woodhouselee","Long Rural","Weather",null,1,98,7.2375733450513095E-4,7.3852789235217402E-6,"N"]
["SUS631_18024","2014-12-04","21:28:53","BRE8B2 M51 Goodooga","Long Rural","Weather",null,1,984,7.2671144607454E-3,7.3852789235217402E-6,"N"]
["SUS631_18046","2014-12-04","21:55:18","BKE4B2 M82 Wanaaring","Long Rural","Weather",null,1,617,4.5567170958129202E-3,7.3852789235217402E-6,"N"]
["SUS631_18072","2014-12-04","23:18:10","WBN3B4 Broadwater","Short Rural","Asset failure","Subtransmission",325,124,7.5341748676378203E-2,6.0759474739014699E-4,"N"]
["SUS631_18103","2014-12-05","02:16:00","MYT3B6 Moruya Nth","Short Rural","Weather",null,1,67,1.25257994077353E-4,1.8695222996619901E-6,"N"]
["SUS631_18121","2014-12-05","05:45:00","WBN3B8 Woodburn/Aux TX2","Short Rural","Other",null,23,45,1.93495558015016E-3,4.29990128922258E-5,"N"]
["SUS631_18169","2014-12-05","07:06:43","GNI3B3 Red Range/Kookabookra","Long Rural","Weather",null,1,129,9.5270098113430499E-4,7.3852789235217402E-6,"N"]
["SUS631_18198","2014-12-05","08:17:53","DOR3B1 Nth Dorrigo","Long Rural","Asset failure","HV",1,420,3.1018171478791302E-3,7.3852789235217402E-6,"N"]
["SUS631_18229","2014-12-05","09:02:00","COO102 Northern Rural","Long Rural","Weather",null,1,17,1.2554974169987001E-4,7.3852789235217402E-6,"N"]
["SUS631_18260","2014-12-05","09:41:56","NBI8B5 M6 Wee Waa","Long Rural","Other",null,103,290,0.22059828144559501,7.6068372912274E-4,"N"]
["SUS631_18268","2014-12-05","09:56:00","COW72 Cowra Town Sth","Short Rural","Planned",null,55,257.18181818181802,null,null,"N"]
["SUS631_18308","2014-12-05","12:50:01","JER12 Finley Rd","Long Rural","Animal","Animal impact",1,106,7.82839565893305E-4,7.3852789235217402E-6,"N"]
["SUS631_18339","2014-12-05","15:44:00","TMT62 Gocup","Long Rural","Weather",null,6,49,2.1712720035153899E-3,4.4311673541130499E-5,"N"]
["SUS631_18357","2014-12-05","16:36:26","CBB72 Binnaway","Long Rural","Weather",null,6,171,7.57729617553331E-3,4.4311673541130499E-5,"N"]
["SUS631_18391","2014-12-05","17:55:23","MLN3B5 Woodford Dale-Leigh","Short Rural","Weather",null,1,87,1.62648440070593E-4,1.8695222996619901E-6,"N"]
["SUS631_18434","2014-12-05","19:46:16","DNO122 Craboon","Long Rural","Weather",null,1,383,2.8285618277088301E-3,7.3852789235217402E-6,"N"]
["SUS631_18465","2014-12-05","20:37:13","WCK519 Russell/Henry","Short Rural","Weather",null,1,566,1.0581496216086901E-3,1.8695222996619901E-6,"N"]
["SUS631_18467","2014-12-05","20:41:19","COO102 Northern Rural","Long Rural","Weather",null,1,45,3.3233755155847802E-4,7.3852789235217402E-6,"N"]
["SUS631_18518","2014-12-05","22:16:02","NVE12 Nevertire","Long Rural","Weather",null,12,761,6.7442367129600597E-2,8.8623347082260903E-5,"N"]
["SUS631_18544","2014-12-05","23:28:31","WLS9/5 Uralla/Walcha Rd/Wollun","Short Rural","Weather",null,2,392,1.465705482935E-3,3.7390445993239802E-6,"N"]
["SUS631_18562","2014-12-06","00:41:52","NSK3B3 Aldavilla","Short Rural","Weather",null,26,73,3.5483533247584599E-3,4.8607579791211702E-5,"N"]
["SUS631_18593","2014-12-06","05:41:42","GYA3B1 Ben Lomond","Long Rural","Weather",null,1,296,2.1860425613624401E-3,7.3852789235217402E-6,"N"]
["SUS631_18613","2014-12-06","06:13:00","URA3B1 Kentucky Salisbury","Short Rural","Weather",null,3,426.33333333333297,2.39111902126769E-3,5.60856689898597E-6,"N"]
["SUS631_18641","2014-12-06","06:58:33","GLS5/9 Gara Dangersleigh","Short Rural","Weather",null,1,540,1.0095420418174701E-3,1.8695222996619901E-6,"N"]
["SUS631_18672","2014-12-06","07:52:18","NDL616 Woolomin","Long Rural","Weather",null,3,156,3.4563105362081801E-3,2.2155836770565199E-5,"N"]
["SUS631_18703","2014-12-06","08:52:00","DNO112 Dunedoo No.2","Long Rural","Weather",null,3,354,7.8431662167800908E-3,2.2155836770565199E-5,"N"]
["SUS631_18740","2014-12-06","10:04:57","WLS9/5 Uralla/Walcha Rd/Wollun","Short Rural","Weather",null,1,50,9.3476114983099496E-5,1.8695222996619901E-6,"N"]
["SUS631_18780","2014-12-06","12:17:44","LHD3B4 Knockrow","Short Rural","Weather",null,4,142,1.06188866620801E-3,7.4780891986479603E-6,"N"]
["SUS631_18798","2014-12-06","12:40:36","CTM3B2 Rural","Long Rural","Weather",null,2,83,1.22595630130461E-3,1.4770557847043501E-5,"N"]
["SUS631_18829","2014-12-06","13:21:28","SWT12 Stewarts Mt","Long Rural","Weather",null,1,394,2.90979989586757E-3,7.3852789235217402E-6,"N"]
["SUS631_18863","2014-12-06","14:25:46","CST5362 Sth Goulburn/Collector","Long Rural","Weather",null,1,89,6.5728982419343499E-4,7.3852789235217402E-6,"N"]
["SUS631_18877","2014-12-06","14:54:46","CNB42 Rural Nth","Long Rural","Weather",null,1,283,2.09003393535665E-3,7.3852789235217402E-6,"N"]
["SUS631_18908","2014-12-06","15:40:52","BRE8B2 M51 Goodooga","Long Rural","Asset failure","HV",5,278,1.0265537703695199E-2,3.6926394617608703E-5,"N"]
["SUS631_18939","2014-12-06","16:27:10","WNA2V05 Bullarah","Short Rural","Weather",null,1,244,4.5616344111752601E-4,1.8695222996619901E-6,"N"]
["SUS631_18962","2014-12-06","17:05:56","ORS3B2 Jeager Ave","Short Rural","Weather",null,1,110,2.0564745296281899E-4,1.8695222996619901E-6,"N"]
["SUS631_18987","2014-12-06","18:20:41","ULN29 Linburn","Long Rural","Weather",null,3,299,6.624595194399E-3,2.2155836770565199E-5,"N"]
["SUS631_19034","2014-12-06","20:02:07","WWA8B8 M24 Tulladunna Ln/Helebah","Short Rural","Weather",null,1,290,5.4216146690197703E-4,1.8695222996619901E-6,"N"]
["SUS631_19065","2014-12-06","21:36:00","DNO112 Dunedoo No.2","Long Rural","Weather",null,5,7,2.5848476232326101E-4,3.6926394617608703E-5,"N"]
["SUS631_19085","2014-12-06","23:29:15","PKT3B10 Tichbourne","Long Rural","Weather",null,2,2252,3.3263296271541898E-2,1.4770557847043501E-5,"N"]
["SUS631_19113","2014-12-07","07:13:10","GLS5/9 Gara Dangersleigh","Short Rural","Weather",null,2,188,7.0294038467290799E-4,3.7390445993239802E-6,"N"]
["SUS631_19144","2014-12-07","08:35:23","MWA8B3 ADI and Romney St","Urban","Asset failure","LV",97,350,0.17733645347986901,5.06675581371054E-4,"N"]
["SUS631_19162","2014-12-07","09:29:55","MRE2M34 Southern Rural","Long Rural","Weather",null,1,336,2.4814537183033098E-3,7.3852789235217402E-6,"N"]
["SUS631_19212","2014-12-07","14:33:00","BMR670 Watsons Ck","Short Rural","Asset failure","LV",1,155,2.89775956447608E-4,1.8695222996619901E-6,"N"]
["SUS631_19223","2014-12-07","15:10:11","MWA8B1 Barooga","Short Rural","Weather",null,6,122.5,1.37409889025156E-3,1.1217133797971899E-5,"N"]
["SUS631_19270","2014-12-07","16:58:59","BBI1101 M11 Ghoolendaadi","Short Rural","Weather",null,1,212,3.9633872752834203E-4,1.8695222996619901E-6,"N"]
["SUS631_19272","2014-12-07","17:04:59","MRE2M34 Southern Rural","Long Rural","Weather",null,89,37,2.4319723495157101E-2,6.5728982419343499E-4,"N"]
["SUS631_19307","2014-12-07","18:37:47","GDI4B2 Waggamba Nth","Long Rural","Weather",null,43,420,0.133378137358803,3.17566993711435E-4,"N"]
["SUS631_19349","2014-12-07","21:32:15","SWT12 Stewarts Mt","Long Rural","Asset failure","HV",2,187,2.7620943173971299E-3,1.4770557847043501E-5,"N"]
["SUS631_19380","2014-12-08","04:43:00","MRE2M34 Southern Rural","Long Rural","Weather",null,40,39,1.15210351206939E-2,2.9541115694087E-4,"N"]
["SUS631_19398","2014-12-08","06:08:53","GRS3B3 Gresford Rd","Short Rural","Weather",null,170,21,6.6741946097933101E-3,3.1781879094253801E-4,"N"]
["SUS631_19434","2014-12-08","07:48:25","SLI3B2 Sth Gundurimba","Short Rural","Other",null,9,396,6.6629774759953296E-3,1.68257006969579E-5,"N"]
["SUS631_19459","2014-12-08","08:44:00","MUD42 Abattoir No.2","Long Rural","Weather",null,11,20,1.6247613631747799E-3,8.1238068158739202E-5,"N"]
["SUS631_19477","2014-12-08","09:12:00","WGM4983 Wingham/Hillside","Short Rural","Planned",null,8,180,null,null,"N"]
["SUS631_19508","2014-12-08","09:55:00","HOL1890 Wantagong/Woomargama","Long Rural","Planned",null,2,304,null,null,"N"]
["SUS631_19557","2014-12-08","13:23:50","TXS3X06 Yelarbon","Long Rural","Weather",null,2,76,1.1225623963753101E-3,1.4770557847043501E-5,"N"]
["SUS631_19585","2014-12-08","14:17:51","GLR3B5 Barrington","Long Rural","Weather",null,3,244,5.4060241720179196E-3,2.2155836770565199E-5,"N"]
["SUS631_19587","2014-12-08","14:18:00","MRE2M34 Southern Rural","Long Rural","Weather",null,40,66,1.9497136358097401E-2,2.9541115694087E-4,"N"]
["SUS631_19634","2014-12-08","15:50:05","KTL3B4 Porcupine Lane","Short Rural","Weather",null,1,166,3.1034070174388998E-4,1.8695222996619901E-6,"N"]
["SUS631_19656","2014-12-08","16:36:06","CSO3B3 Leeville","Short Rural","Weather",null,4,498,3.7240884209266902E-3,7.4780891986479603E-6,"N"]
["SUS631_19695","2014-12-08","18:24:00","TNA3B2 Banora Tie","Short Rural","Asset failure","LV",79,295,4.3569217193622702E-2,1.4769226167329701E-4,"N"]
["SUS631_19713","2014-12-08","19:11:00","TFD62 No.6","Long Rural","Weather",null,1,12,8.8623347082260903E-5,7.3852789235217402E-6,"N"]
["SUS631_19744","2014-12-08","23:51:27","CSO3B3 Leeville","Short Rural","Weather",null,48,63,5.6534354341778604E-3,8.9737070383775493E-5,"N"]
["SUS631_19783","2014-12-09","09:00:00","BWA3B1 Abbotts Falls/Krambach","Long Rural","Planned",null,171,252,null,null,"N"]
["SUS631_19792","2014-12-09","09:02:00","HAT42 Hay 132 - Carrathool","Long Rural","Planned",null,1,174,null,null,"N"]
["SUS631_19823","2014-12-09","09:40:00","TFD62 No.6","Long Rural","Planned",null,13,363,null,null,"N"]
["SUS631_19870","2014-12-09","12:00:16","GDI8B2 Boggabilla","Long Rural","Weather",null,12,69,6.1150109486760003E-3,8.8623347082260903E-5,"N"]
["SUS631_19878","2014-12-09","12:37:40","RGL3B6 Bellingen Town","Short Rural","Vegetation","Blow-in/Fall-in",1,90,1.6825700696957899E-4,1.8695222996619901E-6,"N"]
["SUS631_19931","2014-12-09","16:28:19","DUN3B5 Rosebank","Short Rural","Vegetation","Blow-in/Fall-in",4,262,1.9592593700457702E-3,7.4780891986479603E-6,"N"]
["SUS631_19949","2014-12-09","18:30:22","MWN3B7 Norco","Short Rural","Weather",null,66,77,9.5009123268822403E-3,1.2338847177769099E-4,"N"]
["SUS631_19980","2014-12-10","03:50:09","LEE3B5 Wamoon","Short Rural","Third party","Fire",1,40,7.4780891986479605E-5,1.8695222996619901E-6,"N"]
["SUS631_20005","2014-12-10","08:37:00","BRD22 No.2 Moulamein","Long Rural","Planned",null,47,80,null,null,"N"]
["SUS631_20028","2014-12-10","09:02:00","WBN3B5 Evans Head Nth","Short Rural","Planned",null,340,415,null,null,"N"]
["SUS631_20059","2014-12-10","09:35:32","GDL3B8 Rural","Short Rural","Planned",null,75,293,null,null,"N"]
["SUS631_20077","2014-12-10","10:08:00","ORI831 Abattoirs","Short Rural","Planned",null,4,245,null,null,"N"]
["SUS631_20128","2014-12-10","14:40:52","BGA2K09 Abbotts Ln/Gineoi","Long Rural","Weather",null,1,270,1.99402530935087E-3,7.3852789235217402E-6,"N"]
["SUS631_20154","2014-12-10","15:53:15","GBN6222 Taralga","Long Rural","Weather",null,32,83,1.9615300820873802E-2,2.3632892555269601E-4,"N"]
["SUS631_20185","2014-12-10","17:15:52","CRO5522 Tuena Redground","Long Rural","Weather",null,1,66,4.87428408952435E-4,7.3852789235217402E-6,"N"]
["SUS631_20216","2014-12-10","17:41:44","QUI3B1 Quira","Short Rural","Weather",null,3,133,7.4593939756513396E-4,5.60856689898597E-6,"N"]
["SUS631_20227","2014-12-10","18:07:54","GUE132 Ponto","Short Rural","Weather",null,25,39,1.82278424217044E-3,4.6738057491549802E-5,"N"]
["SUS631_20264","2014-12-10","19:13:33","ULN29 Linburn","Long Rural","Weather",null,2,154,2.2746659084447E-3,1.4770557847043501E-5,"N"]
["SUS631_20295","2014-12-10","21:01:04","GBN6222 Taralga","Long Rural","Weather",null,1,131,9.6747153898134905E-4,7.3852789235217402E-6,"N"]
["SUS631_20313","2014-12-10","21:44:43","BBI0101 M1 Maules Ck","Long Rural","Asset failure","HV",1,102,7.5329845019921798E-4,7.3852789235217402E-6,"N"]
["SUS631_20350","2014-12-11","05:45:03","DBW3B5 Rural West","Short Rural","Weather",null,1,277,5.1785767700637103E-4,1.8695222996619901E-6,"Y"]
["SUS631_20390","2014-12-11","07:14:43","MUD62 Mudgee East","Long Rural","Weather",null,3,214,4.7413490689009602E-3,2.2155836770565199E-5,"Y"]
["SUS631_20392","2014-12-11","07:17:01","RGL3B7 Bellingen Rural","Short Rural","Animal","Animal impact",6,66,7.4033083066614804E-4,1.1217133797971899E-5,"Y"]
["SUS631_20423","2014-12-11","08:12:04","WWL8B2 Lines 63/64","Long Rural","Weather",null,1,61,4.50502014334826E-4,7.3852789235217402E-6,"Y"]
["SUS631_20477","2014-12-11","09:06:36","AHY2T04 Northern","Long Rural","Planned",null,15,298,null,null,"Y"]
["SUS631_20500","2014-12-11","09:33:57","KIS7682 Pappinbarra","Short Rural","Weather",null,1,77,1.43953217073973E-4,1.8695222996619901E-6,"Y"]
["SUS631_20531","2014-12-11","10:20:41","ETH3B13 Armidale/Crawford","Long Rural","Weather",null,1,73,5.3912536141708701E-4,7.3852789235217402E-6,"Y"]
["SUS631_20549","2014-12-11","11:01:47","PKT3B2 Parkes Town No.2","Short Rural","Third party","Vehicle impact",1,240,4.4868535191887798E-4,1.8695222996619901E-6,"Y"]
["SUS631_20572","2014-12-11","11:56:06","TFD32 No.3","Long Rural","Weather",null,62,298,0.13645041339098801,4.5788729325834797E-4,"Y"]
["SUS631_20597","2014-12-11","12:57:17","WLA4/1 Fennings Mill","Short Rural","Weather",null,1,51,9.5345637282761504E-5,1.8695222996619901E-6,"Y"]
["SUS631_20628","2014-12-11","14:07:00","BBA3B1 Burindi","Long Rural","Weather",null,1,1541,1.1380714821146999E-2,7.3852789235217402E-6,"Y"]
["SUS631_20659","2014-12-11","14:23:24","MLA3B4 Manilla","Short Rural","Weather",null,1,1332,2.49020370314977E-3,1.8695222996619901E-6,"Y"]
["SUS631_20699","2014-12-11","15:27:04","NBI8B7 Narrabri Town No.3","Urban","Asset failure","HV",1349,64.839881393624907,0.456890787906646,7.0464470027788804E-3,"Y"]
["SUS631_20736","2014-12-11","16:26:50","GLS5/3 Rockvale","Short Rural","Weather",null,6,151,1.69378720349376E-3,1.1217133797971899E-5,"Y"]
["SUS631_20754","2014-12-11","16:50:49","STR3B2 Wards River","Short Rural","Weather",null,4,156,1.16658191498908E-3,7.4780891986479603E-6,"Y"]
["SUS631_20785","2014-12-11","17:38:30","GDI4B1 Waggamba East","Long Rural","Weather",null,1,122,9.0100402866965298E-4,7.3852789235217402E-6,"Y"]
["SUS631_20822","2014-12-11","18:39:55","DUN3B2 Bullfrog Ck","Short Rural","Vegetation","Blow-in/Fall-in",450,428,0.36006999491489899,8.4128503484789605E-4,"Y"]
["SUS631_20833","2014-12-11","18:56:29","GNI3B3 Red Range/Kookabookra","Long Rural","Weather",null,6,139,6.1593226222171399E-3,4.4311673541130499E-5,"Y"]
["SUS631_20864","2014-12-11","20:33:46","DOR3B6 Leigh/Megan","Short Rural","Weather",null,1,136,2.5425503275403098E-4,1.8695222996619901E-6,"Y"]
["SUS631_20895","2014-12-12","00:02:00","MLN3B5 Woodford Dale-Leigh","Short Rural","Weather",null,1,9,1.68257006969579E-5,1.8695222996619901E-6,"N"]
["SUS631_20921","2014-12-12","06:43:49","GDI4B2 Waggamba Nth","Long Rural","Weather",null,1,297,2.1934278402859601E-3,7.3852789235217402E-6,"N"]
["SUS631_20943","2014-12-12","08:02:00","KKN3B2 Junction Hill","Urban","Planned",null,84,508,null,null,"N"]
["SUS631_20990","2014-12-12","09:16:00","NGN3B3 Nana Glen","Short Rural","Planned",null,6,269,null,null,"N"]
["SUS631_21021","2014-12-12","09:54:00","PHS3B2 Wingewarra St","Urban","Planned",null,70,131,null,null,"N"]
["SUS631_21044","2014-12-12","10:43:11","KKN3B1 Coaldale","Short Rural","Weather",null,7,127,1.6620053243995099E-3,1.3086656097633901E-5,"N"]
["SUS631_21069","2014-12-12","12:40:47","EME1E10 Deepwater","Short Rural","Weather",null,1,166,3.1034070174388998E-4,1.8695222996619901E-6,"N"]
["SUS631_21100","2014-12-12","15:43:00","GRN3B3 Grafton Rural","Short Rural","Weather",null,1,112,2.0938649756214301E-4,1.8695222996619901E-6,"N"]
["SUS631_21118","2014-12-12","17:37:04","AVE3B1 Alstonville Nth","Short Rural","Vegetation","Blow-in/Fall-in",294,305,0.167640064610691,5.4963955610062495E-4,"N"]
["SUS631_21143","2014-12-12","20:53:16","YAM3B1 Angourie","Short Rural","Weather",null,1,237,4.4307678501989201E-4,1.8695222996619901E-6,"N"]
["SUS631_21179","2014-12-13","09:07:40","WGA3B1 West Woolgoolga","Short Rural","Vegetation","Blow-in/Fall-in",91,50,8.5063264634620602E-3,1.70126529269241E-4,"N"]
["SUS631_21197","2014-12-13","12:27:01","EME1E09 Rosevalley","Short Rural","Weather",null,1,69,1.2899703867667701E-4,1.8695222996619901E-6,"N"]
["SUS631_21228","2014-12-14","08:49:00","CHS3B2 City Centre","Urban","Planned",null,6,224,null,null,"N"]
["SUS631_21266","2014-12-14","14:42:55","WRA2W10 Kooloona/Gragin","Short Rural","Weather",null,1,285,5.3281385540366699E-4,1.8695222996619901E-6,"N"]
["SUS631_21305","2014-12-14","21:24:14","MWA8B4 North St and Rural","Long Rural","Asset failure","HV",97,118.525773195876,8.4908551783729497E-2,7.1637205558160904E-4,"N"]
["SUS631_21336","2014-12-15","08:40:00","BAT42 Batlow Town","Short Rural","Planned",null,12,230,null,null,"N"]
["SUS631_21354","2014-12-15","09:05:00","NVE12 Nevertire","Long Rural","Planned",null,2,100,null,null,"N"]
["SUS631_21393","2014-12-15","09:57:00","WGM4981 Mt George/Elands","Long Rural","Planned",null,2,135,null,null,"N"]
["SUS631_21415","2014-12-15","11:26:09","WGM4981 Mt George/Elands","Long Rural","Weather",null,1,185,1.36627660085152E-3,7.3852789235217402E-6,"N"]
["SUS631_21433","2014-12-15","13:11:00","MSW3B6 Forsyth St","Urban","Planned",null,79,162,null,null,"N"]
["SUS631_21464","2014-12-15","17:03:20","MUD42 Abattoir No.2","Long Rural","Weather",null,1,87,6.4251926634639202E-4,7.3852789235217402E-6,"N"]
["SUS631_21488","2014-12-15","18:31:16","WJL3B2 Warroo","Short Rural","Asset failure","LV",1,113,2.1125601986180499E-4,1.8695222996619901E-6,"N"]
["SUS631_21541","2014-12-16","04:42:51","GNI3B7 Glen Innes Northern Town","Short Rural","Third party","Other",448,63,5.2765397385660003E-2,8.3754599024857203E-4,"N"]
["SUS631_21543","2014-12-16","04:52:19","ALU32 Lavington West/Jindera","Long Rural","Weather",null,72,417.70833333333297,0.22211226362491601,5.3174008249356596E-4,"N"]
["SUS631_21590","2014-12-16","08:22:27","GDG8B1 Brungle","Short Rural","Weather",null,222,35.252252252252298,1.4630881517154699E-2,4.15033950524962E-4,"N"]
["SUS631_21615","2014-12-16","09:00:00","QDI3B4 East Rural","Long Rural","Planned",null,1,208,null,null,"N"]
["SUS631_21651","2014-12-16","09:40:00","BOO1042 Kenyu","Long Rural","Planned",null,23,220,null,null,"N"]
["SUS631_21669","2014-12-16","10:17:00","MOA23 Moama West","Short Rural","Planned",null,96,125,null,null,"N"]
["SUS631_21700","2014-12-16","12:40:00","RGL3B8 Kalang/Valla","Short Rural","Planned",null,3,97,null,null,"N"]
["SUS631_21742","2014-12-16","15:06:59","CBL3B2 Spring Ridge","Short Rural","Vegetation","Grow-in",123,47,1.0807708414345999E-2,2.2995124285842499E-4,"N"]
["SUS631_21748","2014-12-16","15:46:40","LGR8B2 M34 Goodooga","Long Rural","Weather",null,28,214.392857142857,4.4333829377901E-2,2.0678780985860899E-4,"N"]
["SUS631_21779","2014-12-16","17:00:45","PPM3B4 Pacific Palms","Short Rural","Weather",null,2,268,1.00206395261883E-3,3.7390445993239802E-6,"N"]
["SUS631_21826","2014-12-16","18:49:49","BTS8B10 Tingha","Short Rural","Weather",null,394,27.502538071065999,2.0258143639137301E-2,7.3659178606682403E-4,"N"]
["SUS631_21837","2014-12-16","19:08:26","CBY806 Coleambally Town","Short Rural","Vegetation","Grow-in",1,121,2.26212198259101E-4,1.8695222996619901E-6,"N"]
["SUS631_21858","2014-12-16","20:13:28","NDL616 Woolomin","Long Rural","Vegetation","Blow-in/Fall-in",1,150,1.10779183852826E-3,7.3852789235217402E-6,"N"]
["SUS631_21905","2014-12-17","07:56:45","BOU3B8 Mangoplah Rd","Short Rural","Vegetation","Blow-in/Fall-in",1,61,1.14040860279381E-4,1.8695222996619901E-6,"N"]
["SUS631_21936","2014-12-17","09:00:42","MAH3B1 Tathra 2","Short Rural","Planned",null,290,347.95517241379298,null,null,"N"]
["SUS631_21964","2014-12-17","09:22:00","GBN6212 Towrang","Short Rural","Planned",null,42,73,null,null,"N"]
["SUS631_21984","2014-12-17","09:39:06","LHD3B4 Knockrow","Short Rural","Planned",null,16,209,null,null,"N"]
["SUS631_22015","2014-12-17","11:08:03","LCO22 Lake Cargelligo","Long Rural","Other",null,1,45,3.3233755155847802E-4,7.3852789235217402E-6,"N"]
["SUS631_22033","2014-12-17","13:09:37","GNF12 Rural No.1","Long Rural","Asset failure","LV",1,4,2.9541115694087002E-5,7.3852789235217402E-6,"N"]
["SUS631_22087","2014-12-17","20:20:01","GYA3B3 Guyra Town/Black Mtn","Short Rural","Weather",null,1,63,1.17779904878705E-4,1.8695222996619901E-6,"N"]
["SUS631_22094","2014-12-17","20:33:06","GDH6201 M62 Carroll","Short Rural","Weather",null,6,179,2.00786694983698E-3,1.1217133797971899E-5,"N"]
["SUS631_22141","2014-12-18","06:49:10","EME1E10 Deepwater","Short Rural","Weather",null,1,363,6.7863659477730297E-4,1.8695222996619901E-6,"Y"]
["SUS631_22172","2014-12-18","08:59:00","TAL1414 Talbingo Town","Short Rural","Planned",null,321,382,null,null,"Y"]
["SUS631_22186","2014-12-18","09:07:00","DBS3B2 Boundary Rd","Urban","Planned",null,143,222.958041958042,null,null,"Y"]
["SUS631_22220","2014-12-18","09:35:00","ORI831 Abattoirs","Short Rural","Planned",null,1,161,null,null,"Y"]
["SUS631_22251","2014-12-18","10:07:00","LOC3786 Urana","Long Rural","Planned",null,10,248,null,null,"Y"]
["SUS631_22269","2014-12-18","10:47:49","MGE3B1 Mallanganee/Casino Rd","Short Rural","Weather",null,1,1735,3.2436211899135501E-3,1.8695222996619901E-6,"Y"]
["SUS631_22309","2014-12-18","13:38:05","AHY2T05 Gins","Short Rural","Vegetation","Grow-in",1,309,5.7768239059555497E-4,1.8695222996619901E-6,"Y"]
["SUS631_22346","2014-12-18","15:07:02","BTS8B6 Inverell East","Short Rural","Weather",null,179,90,3.0118004247554699E-2,3.3464449163949598E-4,"Y"]
["SUS631_22348","2014-12-18","15:16:15","TXS2X04 Glen Lyon","Long Rural","Weather",null,14,64,6.6172099154754799E-3,1.0339390492930399E-4,"Y"]
["SUS631_22379","2014-12-18","16:22:51","SMN3B2 Smithtown/Gladstone","Short Rural","Weather",null,4,229,1.7124824264903801E-3,7.4780891986479603E-6,"Y"]
["SUS631_22408","2014-12-18","17:20:28","SGN3B7 Grafton Sth Town","Short Rural","Weather",null,622,217,0.252336902874578,1.1628428703897599E-3,"Y"]
["SUS631_22456","2014-12-18","18:51:18","SMN3B3 Kinchella","Short Rural","Weather",null,4,136,1.01702013101612E-3,7.4780891986479603E-6,"Y"]
["SUS631_22487","2014-12-18","19:55:49","CSO3B2 Kyogle Rd","Long Rural","Asset failure","HV",6,119,5.2730891513945296E-3,4.4311673541130499E-5,"Y"]
["SUS631_22505","2014-12-18","21:32:26","BTS8B4 Wallangra/Bukkulla","Long Rural","Weather",null,1,101,7.4591317127569595E-4,7.3852789235217402E-6,"Y"]
["SUS631_22531","2014-12-19","06:07:06","BPM3B9 Nth Shore","Short Rural","Weather",null,2,82,3.0660165714456602E-4,3.7390445993239802E-6,"N"]
["SUS631_22553","2014-12-19","07:35:45","DNO112 Dunedoo No.2","Long Rural","Weather",null,1,71,5.2435480357004404E-4,7.3852789235217402E-6,"N"]
["SUS631_22584","2014-12-19","08:41:02","DUN3B3 Nimbin","Short Rural","Vegetation","Blow-in/Fall-in",4,327,2.4453351679578801E-3,7.4780891986479603E-6,"N"]
["SUS631_22615","2014-12-19","09:19:00","URA3B1 Kentucky Salisbury","Short Rural","Weather",null,2,7,2.61733121952679E-5,3.7390445993239802E-6,"N"]
["SUS631_22658","2014-12-19","10:21:00","MAH3B4 Nth Bega","Short Rural","Planned",null,13,58,null,null,"N"]
["SUS631_22663","2014-12-19","10:59:26","WGT8B2 M38/M39 Pilliga","Long Rural","Other",null,18,8,1.06348016498713E-3,1.32935020623391E-4,"N"]
["SUS631_22710","2014-12-19","17:50:26","EME2E04 Torrington","Short Rural","Asset failure","HV",112,286.65178571428601,6.0021013430648203E-2,2.0938649756214301E-4,"N"]
["SUS631_22741","2014-12-20","08:00:40","RGL3B7 Bellingen Rural","Short Rural","Asset failure","HV",32,246,1.4716879542939199E-2,5.9824713589183703E-5,"N"]
["SUS631_22753","2014-12-20","10:29:00","KYG3B1 Nth Kyogle No.1","Long Rural","Asset failure","LV",1,100,7.3852789235217403E-4,7.3852789235217402E-6,"N"]
["SUS631_22789","2014-12-20","20:52:53","CFL Braidwood","Long Rural","Asset failure","HV",3,107,2.3706745344504801E-3,2.2155836770565199E-5,"N"]
["SUS631_22820","2014-12-21","11:35:52","CSO3B3 Leeville","Short Rural","Weather",null,12,74,1.6601358020998499E-3,2.24342675959439E-5,"N"]
["SUS631_22851","2014-12-21","19:27:24","BON3B3 Bottle Ck","Short Rural","Asset failure","HV",1,341,6.3750710418473901E-4,1.8695222996619901E-6,"N"]
["SUS631_22880","2014-12-22","08:30:00","ALU8B10 Ettamogah","Long Rural","Planned",null,1,120,null,null,"N"]
["SUS631_22899","2014-12-22","10:13:00","EUC1412 Eucumbene Town No.3","Short Rural","Planned",null,1,44,null,null,"N"]
["SUS631_22946","2014-12-22","16:29:10","COO102 Northern Rural","Long Rural","Weather",null,2,87,1.2850385326927799E-3,1.4770557847043501E-5,"N"]
["SUS631_22977","2014-12-22","18:55:15","GGB112 Gulargambone","Long Rural","Weather",null,1,69,5.0958424572299999E-4,7.3852789235217402E-6,"N"]
["SUS631_23003","2014-12-22","22:02:52","BBN3B3 Bomen Rd","Short Rural","Asset failure","Subtransmission",95,14,2.4864646585504501E-3,1.7760461846788901E-4,"N"]
["SUS631_23025","2014-12-23","01:40:37","NME8B3 Trangie Rural","Long Rural","Other",null,11,32,2.5996181810796501E-3,8.1238068158739202E-5,"N"]
["SUS631_23056","2014-12-23","08:04:29","WCK516 Dewhurst/Gordon","Short Rural","Weather",null,1,224,4.1877299512428601E-4,1.8695222996619901E-6,"N"]
["SUS631_23087","2014-12-23","10:36:49","GDI8B2 Boggabilla","Long Rural","Weather",null,1,118,8.7146291297556596E-4,7.3852789235217402E-6,"N"]
["SUS631_23102","2014-12-23","11:33:55","CNB42 Rural Nth","Long Rural","Weather",null,105,96.895238095238099,7.5137827767910198E-2,7.7545428696978297E-4,"N"]
["SUS631_23135","2014-12-23","12:32:25","ORN3B6 Byng St East","Short Rural","Weather",null,1,165,3.0847117944422803E-4,1.8695222996619901E-6,"N"]
["SUS631_23153","2014-12-23","13:36:00","MUA5027 Mine","Short Rural","Weather",null,1,8,1.49561783972959E-5,1.8695222996619901E-6,"N"]
["SUS631_23184","2014-12-23","15:28:33","WWA8B6 M25 Wee Waa Town","Short Rural","Weather",null,74,26,3.5969609045496702E-3,1.38344650174987E-4,"N"]
["SUS631_23225","2014-12-23","17:32:58","LCO22 Lake Cargelligo","Long Rural","Weather",null,1,59,4.3573145648778298E-4,7.3852789235217402E-6,"N"]
["SUS631_23261","2014-12-23","18:41:36","GNF42 Rural No.2","Long Rural","Weather",null,1,1019,7.5255992230686599E-3,7.3852789235217402E-6,"N"]
["SUS631_23292","2014-12-23","20:21:25","WWL8B3 Lines 61/62/65","Long Rural","Weather",null,3,90,1.99402530935087E-3,2.2155836770565199E-5,"N"]
["SUS631_23310","2014-12-23","21:17:55","BYR8A1 M85","Short Rural","Weather",null,2,674,2.52011605994436E-3,3.7390445993239802E-6,"N"]
["SUS631_23352","2014-12-24","05:59:52","WGT8B2 M38/M39 Pilliga","Long Rural","Weather",null,6,210,9.3054514436374004E-3,4.4311673541130499E-5,"N"]
["SUS631_23371","2014-12-24","07:56:49","COW92 Broula","Long Rural","Weather",null,1,379,2.7990207120147399E-3,7.3852789235217402E-6,"N"]
["SUS631_23389","2014-12-24","08:36:00","MAH3B4 Nth Bega","Short Rural","Weather",null,19,2,7.1041847387155602E-5,3.5520923693577801E-5,"N"]
["SUS631_23420","2014-12-24","11:53:18","GNF12 Rural No.1","Long Rural","Weather",null,1,89,6.5728982419343499E-4,7.3852789235217402E-6,"N"]
["SUS631_23447","2014-12-24","15:26:51","YOU3B8 Young Town 5","Short Rural","Asset failure","LV",26,97,4.7149352397475404E-3,4.8607579791211702E-5,"N"]
["SUS631_23468","2014-12-24","17:12:11","FBS62 Rural West","Short Rural","Weather",null,1,59,1.10301815680057E-4,1.8695222996619901E-6,"N"]
["SUS631_23499","2014-12-24","20:15:59","ATA3B2 Somerton","Short Rural","Weather",null,1,250,4.6738057491549801E-4,1.8695222996619901E-6,"N"]
["SUS631_23546","2014-12-25","12:38:28","WJL3B3 West Plain","Long Rural","Weather",null,48,88,3.1195418172955802E-2,3.5449338832904399E-4,"N"]
["SUS631_23574","2014-12-25","14:30:57","MRN8B3 Marulan Town","Long Rural","Weather",null,1,210,1.5509085739395701E-3,7.3852789235217402E-6,"N"]
["SUS631_23607","2014-12-25","15:51:55","MRN8B3 Marulan Town","Long Rural","Weather",null,1,184,1.358891321928E-3,7.3852789235217402E-6,"N"]
["SUS631_23625","2014-12-25","16:27:18","MLS3B3 City Sth","Short Rural","Third party","Fire",1,36,6.7302802787831695E-5,1.8695222996619901E-6,"N"]
["SUS631_23656","2014-12-25","18:19:48","BWA3B1 Abbotts Falls/Krambach","Long Rural","Weather",null,50,42,1.55090857393957E-2,3.6926394617608702E-4,"N"]
["SUS631_23673","2014-12-25","19:17:24","GLS5/9 Gara Dangersleigh","Short Rural","Animal","Animal impact",62,303.48387096774201,3.5176931590439997E-2,1.15910382579043E-4,"N"]
["SUS631_23704","2014-12-25","21:34:29","ORW3B7 Cargo Rd","Short Rural","Weather",null,3,245,1.37409889025156E-3,5.60856689898597E-6,"N"]
["SUS631_23735","2014-12-26","08:43:28","PKH52 Alectown","Long Rural","Weather",null,1,65,4.8004313002891302E-4,7.3852789235217402E-6,"N"]
["SUS631_23782","2014-12-26","17:07:32","NBI8B2 M18 Myall Vale","Short Rural","Asset failure","HV",9,222,3.7353055547246598E-3,1.68257006969579E-5,"N"]
["SUS631_23796","2014-12-26","20:12:01","GNF42 Rural No.2","Long Rural","Weather",null,1,51,3.7664922509960899E-4,7.3852789235217402E-6,"N"]
["SUS631_23814","2014-12-27","05:44:29","UQT8B5 Uranquinty East","Short Rural","Animal","Animal impact",5,98,9.1606592683437496E-4,9.3476114983099506E-6,"N"]
["SUS631_23861","2014-12-27","17:23:48","WWA8B5 M20/M23 Wee Waa Town/Airport","Short Rural","Animal","Animal impact",1,96,1.7947414076755099E-4,1.8695222996619901E-6,"N"]
["SUS631_23892","2014-12-28","07:27:18","MWN3B3 Boat Harbour","Short Rural","Asset failure","LV",115,189.34782608695701,4.0708848075139803E-2,2.14995064461129E-4,"N"]
["SUS631_23923","2014-12-28","13:22:39","RGL3B6 Bellingen Town","Short Rural","Vegetation","Blow-in/Fall-in",1147,118,0.25303236517005201,2.1443420777123002E-3,"N"]
["SUS631_23940","2014-12-28","16:59:17","MRN8B3 Marulan Town","Long Rural","Weather",null,1,170,1.2554974169987001E-3,7.3852789235217402E-6,"N"]
["SUS631_23971","2014-12-29","07:18:04","BTH32 Gormans Hill","Urban","Overloads",null,1,76,3.9698292973402099E-4,5.2234596017634396E-6,"N"]
["SUS631_23989","2014-12-29","09:05:00","HIL1114 Lower Lachlan","Short Rural","Weather",null,1,74,1.38344650174987E-4,1.8695222996619901E-6,"N"]
["SUS631_24018","2014-12-29","12:00:27","WRA2W08 Northern","Long Rural","Weather",null,1,99,7.3114261342865298E-4,7.3852789235217402E-6,"N"]
["SUS631_24050","2014-12-29","14:35:59","PKT3B2 Parkes Town No.2","Short Rural","Weather",null,2,85,3.1781879094253801E-4,3.7390445993239802E-6,"N"]
["SUS631_24097","2014-12-29","16:48:11","OBR3B8 Tarana Duckmaloi","Long Rural","Weather",null,1,56,4.1357561971721798E-4,7.3852789235217402E-6,"N"]
["SUS631_24128","2014-12-29","20:30:37","BRI Braidwood","Long Rural","Weather",null,1,55,4.0619034079369601E-4,7.3852789235217402E-6,"N"]
["SUS631_24145","2014-12-30","06:12:34","YEN3B5 Yenda Town","Urban","Animal","Animal impact",374,182.02673796791399,0.35560268276885099,1.9535738910595301E-3,"N"]
["SUS631_24176","2014-12-30","10:38:56","GRN3B7 Grafton West","Urban","Asset failure","LV",1,219,1.1439376527861899E-3,5.2234596017634396E-6,"N"]
["SUS631_24207","2014-12-30","14:52:15","MRN8B3 Marulan Town","Long Rural","Vegetation","Blow-in/Fall-in",1,158,1.1668740699164401E-3,7.3852789235217402E-6,"N"]
["SUS631_24225","2014-12-30","19:12:00","BTS8B8 Delungra","Long Rural","Asset failure","LV",1,88,6.4990454526991405E-4,7.3852789235217402E-6,"N"]
["SUS631_24268","2014-12-31","13:39:00","CRA12 Corowa Town No.1","Short Rural","Animal","Animal impact",23,99,4.25690227633035E-3,4.29990128922258E-5,"N"]
["SUS631_24273","2014-12-31","14:01:00","ANN8B1 No.1 72 Line","Long Rural","Animal","Animal impact",1,30,2.2155836770565199E-4,7.3852789235217402E-6,"N"]
["SUS631_24304","2015-01-01","03:10:54","RKF3B5 King Creek","Short Rural","Asset failure","HV",243,76,3.45263378301576E-2,4.5429391881786401E-4,"N"]
["SUS631_24335","2015-01-01","10:50:51","MUD42 Abattoir No.2","Long Rural","Animal","Animal impact",1,110,8.1238068158739202E-4,7.3852789235217402E-6,"N"]
["SUS631_24367","2015-01-01","17:17:00","DOR3B3 Dorrigo Town","Short Rural","Vegetation","Blow-in/Fall-in",37,1,6.9172325087493594E-5,6.9172325087493594E-5,"N"]
["SUS631_24412","2015-01-02","00:27:13","CNA3B1 Pine Ridge","Short Rural","Weather",null,18,78,2.6248093087254299E-3,3.36514013939158E-5,"N"]
["SUS631_24443","2015-01-02","06:19:46","MDI3B4 Blandford","Short Rural","Weather",null,1,144,2.6921121115132699E-4,1.8695222996619901E-6,"N"]
["SUS631_24461","2015-01-02","07:15:11","WTR2Z08 Poison Gate","Long Rural","Weather",null,1,498,3.67786890391383E-3,7.3852789235217402E-6,"N"]
["SUS631_24490","2015-01-02","08:13:00","LHD3B8 Midgen Flat","Short Rural","Weather",null,3,146,8.1885076725195195E-4,5.60856689898597E-6,"N"]
["SUS631_24509","2015-01-02","08:40:18","WNA2V05 Bullarah","Short Rural","Weather",null,1,586,1.09554006760193E-3,1.8695222996619901E-6,"N"]
["SUS631_24540","2015-01-02","10:03:44","MRE2M38 Tareelaroi","Long Rural","Weather",null,117,31,2.6786406655613399E-2,8.6407763405204404E-4,"N"]
["SUS631_24571","2015-01-02","12:22:00","MWB8B1 M30 Merrywinebone","Long Rural","Weather",null,2,449,6.6319804733225296E-3,1.4770557847043501E-5,"N"]
["SUS631_24617","2015-01-02","15:27:29","COO102 Northern Rural","Long Rural","Weather",null,1,59,4.3573145648778298E-4,7.3852789235217402E-6,"N"]
["SUS631_24619","2015-01-02","15:35:25","SWT12 Stewarts Mt","Long Rural","Weather",null,205,52,7.8727073324741798E-2,1.5139821793219599E-3,"N"]
["SUS631_24650","2015-01-02","17:19:42","PKH52 Alectown","Long Rural","Weather",null,7,119,6.1519373432936102E-3,5.16969524646522E-5,"N"]
["SUS631_24697","2015-01-02","19:04:30","TDL8B2 Tullamore/Tottenham","Long Rural","Weather",null,1,1354,9.9996676624484401E-3,7.3852789235217402E-6,"N"]
["SUS631_24712","2015-01-02","19:44:46","COW72 Cowra Town Sth","Short Rural","Weather",null,20,98,3.6642637073374998E-3,3.7390445993239802E-5,"N"]
["SUS631_24745","2015-01-03","06:48:36","GRS3B3 Gresford Rd","Short Rural","Weather",null,2,112,4.1877299512428601E-4,3.7390445993239802E-6,"N"]
["SUS631_24776","2015-01-03","12:33:40","TDL8B1 Bogan Gate","Long Rural","Animal","Animal impact",1,182,1.34412076408096E-3,7.3852789235217402E-6,"N"]
["SUS631_24807","2015-01-03","18:35:35","MBM6212 Euroka Ave","Long Rural","Weather",null,2,217,3.2052110528084398E-3,1.4770557847043501E-5,"N"]
["SUS631_24839","2015-01-04","09:48:20","OXY3B1 Hallsville","Short Rural","Vegetation","Blow-in/Fall-in",5,71,6.6368041638000701E-4,9.3476114983099506E-6,"N"]
["SUS631_24855","2015-01-04","12:12:31","GDI8B3 Talwood","Long Rural","Third party","Other",41,75,2.2709732689829398E-2,3.02796435864391E-4,"N"]
["SUS631_24902","2015-01-04","15:17:00","LCO22 Lake Cargelligo","Long Rural","Weather",null,1,261,1.92755779903918E-3,7.3852789235217402E-6,"N"]
["SUS631_24933","2015-01-04","16:22:46","CBR42 Margretvale","Long Rural","Weather",null,14,4,4.1357561971721798E-4,1.0339390492930399E-4,"N"]
["SUS631_24962","2015-01-04","17:35:19","NME8B1 Rural Sth","Long Rural","Weather",null,29,79,1.6919674013788299E-2,2.1417308878213099E-4,"N"]
["SUS631_24981","2015-01-04","18:41:37","ORN3B1 William St Nth","Short Rural","Weather",null,1,87,1.62648440070593E-4,1.8695222996619901E-6,"N"]
["SUS631_25012","2015-01-04","20:22:22","YEN3B7 Mt Bingar","Short Rural","Animal","Animal impact",15,83,2.3275552630791798E-3,2.8042834494929901E-5,"N"]
["SUS631_25043","2015-01-05","07:19:37","WOO8642 Woodlawn","Long Rural","Weather",null,1,101,7.4591317127569595E-4,7.3852789235217402E-6,"N"]
["SUS631_25061","2015-01-05","08:20:49","KIN12I2 BH3 SWER","Short Rural","Weather",null,8,163,2.4378570787592399E-3,1.49561783972959E-5,"N"]
["SUS631_25091","2015-01-05","09:24:00","UQT8B2 Uranquinty Nth","Short Rural","Vegetation","Blow-in/Fall-in",1,117,2.1873410906045299E-4,1.8695222996619901E-6,"N"]
["SUS631_25109","2015-01-05","10:26:00","WGT8B9 M33 Collarenebri","Long Rural","Planned",null,1,229,null,null,"N"]
["SUS631_25140","2015-01-05","14:25:45","YOU3B3 Bribaree","Long Rural","Asset failure","LV",1,73,5.3912536141708701E-4,7.3852789235217402E-6,"N"]
["SUS631_25184","2015-01-05","18:25:58","ULN29 Linburn","Long Rural","Third party","Vehicle impact",1,4128,3.0486431396297801E-2,7.3852789235217402E-6,"N"]
["SUS631_25217","2015-01-05","21:12:06","BUN3B3 Gundaroo Rd","Long Rural","Weather",null,1,291,2.1491161667448301E-3,7.3852789235217402E-6,"N"]
["SUS631_25248","2015-01-06","08:11:00","MAR5515 Binalong","Long Rural","Weather",null,1,184,1.358891321928E-3,7.3852789235217402E-6,"N"]
["SUS631_25266","2015-01-06","09:05:32","YAN2314 Leeton Rd","Short Rural","Planned",null,46,190.73913043478299,null,null,"N"]
["SUS631_25283","2015-01-06","09:19:11","TXS3X06 Yelarbon","Long Rural","Weather",null,1,70,5.1696952464652202E-4,7.3852789235217402E-6,"N"]
["SUS631_25327","2015-01-06","10:49:06","ELI3B4 Lynwood","Short Rural","Asset failure","HV",1,75,1.4021417247464901E-4,1.8695222996619901E-6,"N"]
["SUS631_25345","2015-01-06","12:50:07","MAH3B7 Candelo","Short Rural","Asset failure","HV",2,62,2.31820765158087E-4,3.7390445993239802E-6,"N"]
["SUS631_25376","2015-01-06","16:22:50","CBB72 Binnaway","Long Rural","Weather",null,10,68,5.0219896679947898E-3,7.3852789235217406E-5,"N"]
["SUS631_25406","2015-01-06","18:56:36","MGY2221 Lower Tarcutta","Short Rural","Weather",null,38,286,2.03179683527265E-2,7.1041847387155602E-5,"N"]
["SUS631_25424","2015-01-06","22:43:49","SWT82 Eglinton","Short Rural","Third party","Vehicle impact",1,75,1.4021417247464901E-4,1.8695222996619901E-6,"N"]
["SUS631_25455","2015-01-07","08:47:00","SLI3B2 Sth Gundurimba","Short Rural","Planned",null,21,141,null,null,"N"]
["SUS631_25502","2015-01-07","09:32:00","COW92 Broula","Long Rural","Planned",null,16,280,null,null,"N"]
["SUS631_25533","2015-01-07","11:30:00","RKF3B4 Wauchope Town","Urban","Planned",null,3,35,null,null,"N"]
["SUS631_25563","2015-01-07","14:43:20","BAT12 Rural Nth","Short Rural","Weather",null,15,87,2.4397266010588998E-3,2.8042834494929901E-5,"N"]
["SUS631_25581","2015-01-07","16:18:46","RAG3B6 Limekilns","Long Rural","Weather",null,4,163,4.81520185813618E-3,2.9541115694087002E-5,"N"]
["SUS631_25612","2015-01-07","18:31:33","JYE3B2 Kalkite","Short Rural","Weather",null,1,56,1.04693248781071E-4,1.8695222996619901E-6,"N"]
["SUS631_25628","2015-01-07","19:17:27","YAS6232 Wee Jasper","Long Rural","Weather",null,18,157,2.0870798237872398E-2,1.32935020623391E-4,"N"]
["SUS631_25660","2015-01-08","07:37:46","ORW3B8 Northern Distributor Sth","Short Rural","Weather",null,2,83,3.1034070174388998E-4,3.7390445993239802E-6,"N"]
["SUS631_25691","2015-01-08","09:00:00","UNI8/8 Tilbuster/Puddledock","Short Rural","Planned",null,12,170,null,null,"N"]
["SUS631_25738","2015-01-08","09:42:00","NHD3B4 Valla","Short Rural","Planned",null,4,57,null,null,"N"]
["SUS631_25755","2015-01-08","10:21:40","MRE2M38 Tareelaroi","Long Rural","Asset failure","LV",1,238,1.7576963837981801E-3,7.3852789235217402E-6,"N"]
["SUS631_25770","2015-01-08","11:47:19","GFH3B4 Coolah St","Urban","Asset failure","LV",1,192,1.0029042435385799E-3,5.2234596017634396E-6,"N"]
["SUS631_25817","2015-01-08","17:29:02","DNO112 Dunedoo No.2","Long Rural","Weather",null,1,53,3.9141978294665201E-4,7.3852789235217402E-6,"N"]
["SUS631_25848","2015-01-08","19:31:50","BMU1417 Koorawatha/Murringo","Long Rural","Weather",null,1,132,9.7485681790486999E-4,7.3852789235217402E-6,"N"]
["SUS631_25882","2015-01-08","20:51:34","COBD2 Sth Cobargo","Long Rural","Weather",null,1,1034,7.6363784069214801E-3,7.3852789235217402E-6,"N"]
["SUS631_25896","2015-01-08","22:14:30","JER32 Coleambally","Long Rural","Weather",null,1,763,5.6349678186470896E-3,7.3852789235217402E-6,"N"]
["SUS631_25927","2015-01-09","07:21:48","COBD2 Sth Cobargo","Long Rural","Weather",null,1,168,1.2407268591516499E-3,7.3852789235217402E-6,"N"]
["SUS631_25945","2015-01-09","08:38:00","NYN42 Nyngan Nth","Short Rural","Planned",null,1,26,null,null,"N"]
["SUS631_25977","2015-01-09","09:16:45","COO102 Northern Rural","Long Rural","Weather",null,2,144,2.1269603299742599E-3,1.4770557847043501E-5,"N"]
["SUS631_26006","2015-01-09","10:07:00","SWT22 Mt Panorama","Short Rural","Planned",null,5,46,null,null,"N"]
["SUS631_26053","2015-01-09","14:05:13","CFL Braidwood","Long Rural","Weather",null,3,109,2.4149862079916101E-3,2.2155836770565199E-5,"N"]
["SUS631_26084","2015-01-09","16:36:20","UQT8B5 Uranquinty East","Short Rural","Weather",null,3,176,9.8710777422153094E-4,5.60856689898597E-6,"N"]
["SUS631_26104","2015-01-09","17:27:51","CLN3B4 Ganmain 93 Line","Short Rural","Weather",null,7,96,1.2563189853728601E-3,1.3086656097633901E-5,"N"]
["SUS631_26132","2015-01-09","19:15:26","CST5362 Sth Goulburn/Collector","Long Rural","Weather",null,1,134,9.8962737575191404E-4,7.3852789235217402E-6,"N"]
["SUS631_26163","2015-01-09","23:25:00","KOO1713 Lake Albert","Short Rural","Weather",null,1,800,1.49561783972959E-3,1.8695222996619901E-6,"N"]
["SUS631_26181","2015-01-10","08:20:22","RGL3B7 Bellingen Rural","Short Rural","Asset failure","LV",6,308,3.4548772097753601E-3,1.1217133797971899E-5,"N"]
["SUS631_26227","2015-01-10","15:31:30","SUT5333 Eagle Hawk","Short Rural","Weather",null,1,160,2.9912356794591799E-4,1.8695222996619901E-6,"N"]
["SUS631_26242","2015-01-10","16:51:59","NVE12 Nevertire","Long Rural","Other",null,9,353.222222222222,2.3477801697875601E-2,6.6467510311695705E-5,"N"]
["SUS631_26260","2015-01-10","19:36:00","CFL Braidwood","Long Rural","Weather",null,1,69,5.0958424572299999E-4,7.3852789235217402E-6,"N"]
["SUS631_26291","2015-01-11","08:23:05","NGN3B1 Glenreagh","Short Rural","Asset failure","HV",1,45,8.4128503484789605E-5,1.8695222996619901E-6,"N"]
["SUS631_26326","2015-01-11","14:34:01","SLI3B2 Sth Gundurimba","Short Rural","Third party","Vehicle impact",1,114,2.13125542161467E-4,1.8695222996619901E-6,"N"]
["SUS631_26368","2015-01-12","07:08:34","CBB42 Tambar Springs","Long Rural","Weather",null,3,189,4.1874531496368297E-3,2.2155836770565199E-5,"N"]
["SUS631_26399","2015-01-12","09:24:00","MDA42 West","Short Rural","Planned",null,50,84,null,null,"N"]
["SUS631_26417","2015-01-12","09:57:00","CMK4022 Yeoval","Short Rural","Planned",null,1,181,null,null,"N"]
["SUS631_26449","2015-01-12","12:26:00","GID22 Rural Nth/Sth/West","Long Rural","Planned",null,3,154,null,null,"N"]
["SUS631_26465","2015-01-12","14:05:47","SWT12 Stewarts Mt","Long Rural","Weather",null,1,141,1.04132432821657E-3,7.3852789235217402E-6,"N"]
["SUS631_26496","2015-01-13","00:24:12","WTE3684 Edinburgh Dr","Short Rural","Asset failure","HV",1,469,8.7680595854147301E-4,1.8695222996619901E-6,"N"]
["SUS631_26527","2015-01-13","09:01:00","WRA2W10 Kooloona/Gragin","Short Rural","Planned",null,5,211,null,null,"N"]
["SUS631_26548","2015-01-13","09:26:00","NVE12 Nevertire","Long Rural","Planned",null,7,342,null,null,"N"]
["SUS631_26575","2015-01-13","10:22:00","WGT8B9 M33 Collarenebri","Long Rural","Planned",null,4,243,null,null,"N"]
["SUS631_26606","2015-01-13","15:20:01","HIL1401 Upper Lachlan","Long Rural","Asset failure","HV",9,216,1.4356982227326299E-2,6.6467510311695705E-5,"N"]
["SUS631_26653","2015-01-14","07:31:52","WGN72 Yeoval","Long Rural","Weather",null,1,112,8.2715123943443499E-4,7.3852789235217402E-6,"N"]
["SUS631_26671","2015-01-14","08:50:22","ETH3B8 Scott/Goonoo","Short Rural","Other",null,1,329,6.1507283658879502E-4,1.8695222996619901E-6,"N"]
["SUS631_26701","2015-01-14","09:15:00","CBB52 Baradine","Long Rural","Planned",null,2,280,null,null,"N"]
["SUS631_26732","2015-01-14","10:00:00","CBB52 Baradine","Long Rural","Planned",null,1,100,null,null,"N"]
["SUS631_26763","2015-01-14","12:42:52","CST5372 Tarago","Short Rural","Other",null,4,2,1.49561783972959E-5,7.4780891986479603E-6,"N"]
["SUS631_26798","2015-01-14","20:11:00","ORW3B6 Bel-Air/Aux TX2","Urban","Asset failure","LV",99,127,6.5674557572971706E-2,5.1712250057458099E-4,"N"]
["SUS631_26811","2015-01-15","03:24:25","CSO3B2 Kyogle Rd","Long Rural","Asset failure","HV",1,222,1.63953192102183E-3,7.3852789235217402E-6,"N"]
["SUS631_26858","2015-01-15","09:01:45","HAT42 Hay 132 - Carrathool","Long Rural","Planned",null,6,244,null,null,"N"]
["SUS631_26889","2015-01-15","09:22:00","TDL8B1 Bogan Gate","Long Rural","Other",null,4,48,1.4179735533161699E-3,2.9541115694087002E-5,"N"]
["SUS631_26893","2015-01-15","09:30:00","CNB52 Coonamble Town No.1","Short Rural","Planned",null,42,93,null,null,"N"]
["SUS631_26937","2015-01-15","14:02:42","HOL1890 Wantagong/Woomargama","Long Rural","Asset failure","LV",1,1385,1.0228611309077601E-2,7.3852789235217402E-6,"N"]
["SUS631_26968","2015-01-16","02:56:58","MRE2M19 Moree Western Town","Short Rural","Animal","Animal impact",58,56,6.0722084293021502E-3,1.08432293380395E-4,"N"]
["SUS631_26999","2015-01-16","09:00:00","CPM3B3 Livingstone Rd","Short Rural","Planned",null,80,155,null,null,"N"]
["SUS631_27020","2015-01-16","09:16:00","BMU1417 Koorawatha/Murringo","Long Rural","Planned",null,4,234,null,null,"N"]
["SUS631_27047","2015-01-16","10:45:00","COO92 Western Rural","Long Rural","Weather",null,3,172,3.81080392453722E-3,2.2155836770565199E-5,"N"]
["SUS631_27065","2015-01-16","14:26:35","RAG3B6 Limekilns","Long Rural","Network Business","Switching and protection error",1077,24,0.19089468961518999,7.9539454006329197E-3,"N"]
["SUS631_27096","2015-01-16","22:10:20","KYG3B1 Nth Kyogle No.1","Long Rural","Asset failure","HV",4,53,1.56567913178661E-3,2.9541115694087002E-5,"N"]
["SUS631_27143","2015-01-17","20:19:22","KTL3B2 Moonbi","Short Rural","Asset failure","LV",1,158,2.9538452334659402E-4,1.8695222996619901E-6,"N"]
["SUS631_27173","2015-01-18","09:15:39","OBR3B8 Tarana Duckmaloi","Long Rural","Animal","Animal impact",1,51,3.7664922509960899E-4,7.3852789235217402E-6,"N"]
["SUS631_27204","2015-01-19","07:34:41","COW102 Wyangala","Long Rural","Other",null,3,126,2.7916354330912202E-3,2.2155836770565199E-5,"N"]
["SUS631_27206","2015-01-19","08:06:49","GDH8B2 M73 Pullaming","Long Rural","Asset failure","LV",1,166,1.22595630130461E-3,7.3852789235217402E-6,"N"]
["SUS631_27242","2015-01-19","09:30:00","YOU3B6 Murringo","Short Rural","Planned",null,2,143,null,null,"N"]
["SUS631_27283","2015-01-19","16:03:53","CLY1523 Coleambally 132 - Darlington Point (Bore Pumpers)","Short Rural","Animal","Animal impact",1,62,1.15910382579043E-4,1.8695222996619901E-6,"N"]
["SUS631_27301","2015-01-19","17:57:04","BBYF2 Deep Ck","Short Rural","Asset failure","LV",1,96,1.7947414076755099E-4,1.8695222996619901E-6,"N"]
["SUS631_27332","2015-01-19","21:49:30","MWN3B5 Tumbulgum","Short Rural","Asset failure","HV",15,387,1.0852576949537901E-2,2.8042834494929901E-5,"N"]
["SUS631_27365","2015-01-20","06:18:59","DOR3B2 Peaks Rd","Short Rural","Weather",null,1,150,2.8042834494929899E-4,1.8695222996619901E-6,"N"]
["SUS631_27380","2015-01-20","06:45:00","CHD3B2 Beranghi","Short Rural","Weather",null,18,95,3.1968831324220002E-3,3.36514013939158E-5,"N"]
["SUS631_27411","2015-01-20","08:14:30","MWN3B5 Tumbulgum","Short Rural","Asset failure","HV",3,406,2.2770781609883E-3,5.60856689898597E-6,"N"]
["SUS631_27458","2015-01-20","09:31:00","BBYJ2 Catalina","Short Rural","Planned",null,142,313,null,null,"N"]
["SUS631_27492","2015-01-20","10:48:21","CUD3B3 Duranbah","Short Rural","Weather",null,7,104,1.36101223415393E-3,1.3086656097633901E-5,"N"]
["SUS631_27519","2015-01-20","13:00:00","BPM3B9 Nth Shore","Short Rural","Planned",null,36,48,null,null,"N"]
["SUS631_27537","2015-01-20","15:05:09","URA3B2 Gostwyck/Arding","Long Rural","Weather",null,2,207,3.0575054743380002E-3,1.4770557847043501E-5,"N"]
["SUS631_27568","2015-01-20","16:56:38","SMN3B3 Kinchella","Short Rural","Weather",null,2,51,1.9069127456552301E-4,3.7390445993239802E-6,"N"]
["SUS631_27587","2015-01-20","18:19:00","TPT3B2 Telegraph Pt","Short Rural","Weather",null,1,12,2.24342675959439E-5,1.8695222996619901E-6,"N"]
["SUS631_27616","2015-01-20","20:04:46","GDI8B4 Goondiwindi Town Nth","Short Rural","Vegetation","Blow-in/Fall-in",1832,164.489628820961,0.56337119739164299,3.4249648529807702E-3,"N"]
["SUS631_27647","2015-01-21","01:05:08","GDI4B1 Waggamba East","Long Rural","Weather",null,2,512,7.5625256176862698E-3,1.4770557847043501E-5,"N"]
["SUS631_27694","2015-01-21","07:27:27","HOL1843 Holbrook Nth","Long Rural","Weather",null,9,115,7.6437636858450097E-3,6.6467510311695705E-5,"N"]
["SUS631_27714","2015-01-21","08:35:00","BWA3B1 Abbotts Falls/Krambach","Long Rural","Planned",null,4,130,null,null,"N"]
["SUS631_27726","2015-01-21","08:51:00","BOM8B4 Bombala","Short Rural","Planned",null,49,379,null,null,"N"]
["SUS631_27773","2015-01-21","09:38:00","BTH52 Turon West","Urban","Planned",null,31,198,null,null,"N"]
["SUS631_27804","2015-01-21","11:32:51","MLN3B4 Townsend","Short Rural","Asset failure","HV",213,157.845070422535,6.28552092369358E-2,3.9820824982800398E-4,"N"]
["SUS631_27813","2015-01-21","12:31:00","GRS3B2 Paterson River","Short Rural","Vegetation","Grow-in",1,104,1.94430319164847E-4,1.8695222996619901E-6,"N"]
["SUS631_27852","2015-01-21","16:43:08","GDI8B1 Boobera/Tulloona","Long Rural","Weather",null,1,85,6.2774870849934797E-4,7.3852789235217402E-6,"N"]
["SUS631_27883","2015-01-21","21:03:46","NVE32 Auscott/Warren Town","Short Rural","Asset failure","LV",1,141,2.6360264425234102E-4,1.8695222996619901E-6,"N"]
["SUS631_27901","2015-01-22","07:23:43","BBS3B8 Sth Coffs Interconnector","Urban","Asset failure","HV",5,67,1.7498589665907499E-3,2.6117298008817199E-5,"N"]
["SUS631_27936","2015-01-22","09:00:11","CPM3B5 Shelley Beach","Short Rural","Planned",null,207,207.46859903381599,null,null,"N"]
["SUS631_27962","2015-01-22","09:29:40","MRE2M17 Western Rural","Long Rural","Vegetation","Blow-in/Fall-in",1,90,6.6467510311695702E-4,7.3852789235217402E-6,"N"]
["SUS631_28009","2015-01-22","11:48:00","MBM6222 Patemans Ln","Long Rural","Weather",null,1,6,4.4311673541130499E-5,7.3852789235217402E-6,"N"]
["SUS631_28011","2015-01-22","12:02:00","BPM3B10 Port Sth","Urban","Asset failure","LV",1,54,2.82066818495226E-4,5.2234596017634396E-6,"N"]
["SUS631_28063","2015-01-23","00:01:36","HIL1111 Hillston 132 - Merriwagga","Long Rural","Animal","Animal impact",16,21,2.4814537183033098E-3,1.1816446277634801E-4,"N"]
["SUS631_28088","2015-01-23","09:00:00","COW62 Cowra Town Centre","Urban","Planned",null,2,304,null,null,"N"]
["SUS631_28119","2015-01-23","10:03:00","WRA2W11 Warialda Town","Short Rural","Animal","Animal impact",16,15,4.4868535191887798E-4,2.9912356794591801E-5,"N"]
["SUS631_28137","2015-01-23","12:31:35","BUN3B1 Wamboin","Long Rural","Other",null,29,67,1.43495969484028E-2,2.1417308878213099E-4,"N"]
["SUS631_28158","2015-01-23","16:00:12","MYT3B2 Kiora","Short Rural","Weather",null,13,364,8.8465795220005403E-3,2.4303789895605898E-5,"N"]
["SUS631_28198","2015-01-23","21:23:56","COO102 Northern Rural","Long Rural","Weather",null,1,83,6.12978150652305E-4,7.3852789235217402E-6,"N"]
["SUS631_28216","2015-01-24","08:37:51","CFL Braidwood","Long Rural","Weather",null,1,172,1.27026797484574E-3,7.3852789235217402E-6,"N"]
["SUS631_28247","2015-01-24","14:30:16","JUN1 Illabo 31/32 Lines","Long Rural","Weather",null,5,189,6.9790885827280503E-3,3.6926394617608703E-5,"N"]
["SUS631_28285","2015-01-24","16:20:48","CFL Braidwood","Long Rural","Weather",null,1,198,1.4622852268573101E-3,7.3852789235217402E-6,"N"]
["SUS631_28324","2015-01-24","17:25:05","JUN1 Illabo 31/32 Lines","Long Rural","Weather",null,1,134,9.8962737575191404E-4,7.3852789235217402E-6,"N"]
["SUS631_28355","2015-01-24","18:14:06","SWT12 Stewarts Mt","Long Rural","Weather",null,1,1131,8.3527504625030904E-3,7.3852789235217402E-6,"N"]
["SUS631_28373","2015-01-24","19:03:02","OBR3B1 Industrial","Long Rural","Weather",null,1,316,2.3337481398328702E-3,7.3852789235217402E-6,"N"]
["SUS631_28408","2015-01-24","20:42:27","BUN3B3 Gundaroo Rd","Long Rural","Weather",null,1,87,6.4251926634639202E-4,7.3852789235217402E-6,"N"]
["SUS631_28421","2015-01-24","22:10:54","MRN8B2 Brayton Rd","Short Rural","Weather",null,3,336,1.88447847805929E-3,5.60856689898597E-6,"N"]
["SUS631_28452","2015-01-25","06:24:58","BTS8B4 Wallangra/Bukkulla","Long Rural","Asset failure","HV",1,75,5.5389591926413096E-4,7.3852789235217402E-6,"N"]
["SUS631_28483","2015-01-25","09:06:24","CFL Braidwood","Long Rural","Weather",null,1,57,4.2096089864073898E-4,7.3852789235217402E-6,"N"]
["SUS631_28507","2015-01-25","12:09:58","BMU1417 Koorawatha/Murringo","Long Rural","Weather",null,1,50,3.6926394617608702E-4,7.3852789235217402E-6,"N"]
["SUS631_28531","2015-01-25","16:37:09","GNF12 Rural No.1","Long Rural","Weather",null,1,51,3.7664922509960899E-4,7.3852789235217402E-6,"N"]
["SUS631_28562","2015-01-25","19:11:37","SLI3B6 Caniaba","Short Rural","Weather",null,1,341,6.3750710418473901E-4,1.8695222996619901E-6,"N"]
["SUS631_28609","2015-01-26","06:09:58","CSO3B6 Casino East","Short Rural","Weather",null,3,27,1.51431306272621E-4,5.60856689898597E-6,"N"]
["SUS631_28630","2015-01-26","08:48:00","DUN3B4 Mt Nardi","Short Rural","Weather",null,1,224,4.1877299512428601E-4,1.8695222996619901E-6,"N"]
["SUS631_28657","2015-01-26","13:09:13","BGA2K09 Abbotts Ln/Gineoi","Long Rural","Weather",null,11,367,2.9814371014257299E-2,8.1238068158739202E-5,"N"]
["SUS631_28688","2015-01-26","13:09:28","RGL3B7 Bellingen Rural","Short Rural","Weather",null,3,113,6.3376805958541499E-4,5.60856689898597E-6,"N"]
["SUS631_28719","2015-01-26","15:37:30","DNO142 Merrygoen","Long Rural","Animal","Animal impact",1,111,8.1976596051091405E-4,7.3852789235217402E-6,"N"]
["SUS631_28757","2015-01-26","17:48:59","TXS3X06 Yelarbon","Long Rural","Weather",null,1,63,4.6527257218187E-4,7.3852789235217402E-6,"N"]
["SUS631_28767","2015-01-26","18:24:00","AHY2T04 Northern","Long Rural","Weather",null,219,51,8.2486180296814399E-2,1.6173760842512601E-3,"N"]
["SUS631_28798","2015-01-26","20:13:01","UQT8B5 Uranquinty East","Short Rural","Animal","Animal impact",4,50,3.7390445993239798E-4,7.4780891986479603E-6,"N"]
["SUS631_28816","2015-01-26","23:04:12","ORS3B6 Peisley St Sth","Short Rural","Weather",null,1,51,9.5345637282761504E-5,1.8695222996619901E-6,"N"]
["SUS631_28852","2015-01-27","07:57:48","GDI4B1 Waggamba East","Long Rural","Weather",null,1,186,1.3736618797750399E-3,7.3852789235217402E-6,"N"]
["SUS631_28893","2015-01-27","09:34:01","LCO32 Brotherony","Short Rural","Weather",null,1,144,2.6921121115132699E-4,1.8695222996619901E-6,"N"]
["SUS631_28924","2015-01-27","10:21:29","YAR3B2 Troy","Long Rural","Weather",null,1,277,2.04572226181552E-3,7.3852789235217402E-6,"N"]
["SUS631_28955","2015-01-27","11:34:13","GNF42 Rural No.2","Long Rural","Weather",null,1,142,1.04870960714009E-3,7.3852789235217402E-6,"N"]
["SUS631_28979","2015-01-27","12:11:49","DNO142 Merrygoen","Long Rural","Weather",null,1,142,1.04870960714009E-3,7.3852789235217402E-6,"N"]
["SUS631_29003","2015-01-27","13:06:42","ORI827 Clergate Rd Nth","Short Rural","Weather",null,1,92,1.7199605156890301E-4,1.8695222996619901E-6,"N"]
["SUS631_29021","2015-01-27","13:37:39","ORS3B6 Peisley St Sth","Short Rural","Weather",null,1,75,1.4021417247464901E-4,1.8695222996619901E-6,"N"]
["SUS631_29052","2015-01-27","14:37:44","CBB72 Binnaway","Long Rural","Weather",null,4,107,3.1608993792673098E-3,2.9541115694087002E-5,"N"]
["SUS631_29102","2015-01-27","16:38:02","BNG8B1 Alcheringa Drive","Long Rural","Vegetation","Blow-in/Fall-in",1,195,1.4401293900867401E-3,7.3852789235217402E-6,"N"]
["SUS631_29129","2015-01-27","17:14:35","BGA2K09 Abbotts Ln/Gineoi","Long Rural","Weather",null,44,43,1.3972947723303099E-2,3.2495227263495702E-4,"N"]
["SUS631_29160","2015-01-27","17:59:07","WLS9/4 Tia","Long Rural","Weather",null,2,220,3.2495227263495698E-3,1.4770557847043501E-5,"N"]
["SUS631_29162","2015-01-27","18:03:41","MGI2U30 Curragundi","Long Rural","Weather",null,111,48,3.9348766104523897E-2,8.1976596051091405E-4,"N"]
["SUS631_29201","2015-01-27","19:03:20","CBB72 Binnaway","Long Rural","Weather",null,2,251,3.7074100196079198E-3,1.4770557847043501E-5,"N"]
["SUS631_29239","2015-01-27","20:15:12","KYG3B6 Bentley","Short Rural","Weather",null,117,101.461538461538,2.2193099219287499E-2,2.1873410906045299E-4,"N"]
["SUS631_29257","2015-01-27","21:14:00","BTH92 Lagoon/Trunkey","Long Rural","Weather",null,3,109,2.4149862079916101E-3,2.2155836770565199E-5,"N"]
["SUS631_29288","2015-01-28","07:09:55","MNE3B3 Crystal Waters","Short Rural","Asset failure","LV",1,462,8.6371930244384003E-4,1.8695222996619901E-6,"N"]
["SUS631_29324","2015-01-28","09:00:00","RGL3B8 Kalang/Valla","Short Rural","Planned",null,9,220,null,null,"N"]
["SUS631_29336","2015-01-28","09:05:46","FIN42 Berrigan","Long Rural","Planned",null,127,278.06299212598401,null,null,"N"]
["SUS631_29367","2015-01-28","09:53:22","WGT8B2 M38/M39 Pilliga","Long Rural","Weather",null,1,167,1.2333415802281301E-3,7.3852789235217402E-6,"N"]
["SUS631_29414","2015-01-28","14:19:46","TXS3X06 Yelarbon","Long Rural","Weather",null,15,112,1.24072685915165E-2,1.1077918385282599E-4,"N"]
["SUS631_29423","2015-01-28","15:39:35","MWB8B1 M30 Merrywinebone","Long Rural","Weather",null,1,123,9.0838930759317403E-4,7.3852789235217402E-6,"N"]
["SUS631_29475","2015-01-29","08:39:07","GNI3B1 Matherson/Wellingrove","Short Rural","Planned",null,30,263,null,null,"N"]
["SUS631_29493","2015-01-29","09:00:00","CFN3B20 Ocean","Urban","Planned",null,243,163.251028806584,null,null,"N"]
["SUS631_29524","2015-01-29","09:30:17","THA2232 Mansell Rd","Short Rural","Planned",null,40,280,null,null,"N"]
["SUS631_29546","2015-01-29","10:23:00","WTE3685 Tinonee","Short Rural","Planned",null,15,288,null,null,"N"]
["SUS631_29572","2015-01-29","13:55:00","PSK3B5 Central","Urban","Asset failure","LV",1,48,2.5072606088464498E-4,5.2234596017634396E-6,"N"]
["SUS631_29603","2015-01-29","19:00:13","UBV3B1 Woodenbong","Short Rural","Asset failure","LV",315,108,6.3601148634500906E-2,5.8889952439352702E-4,"N"]
["SUS631_29621","2015-01-30","07:02:41","GDH8B8 M75 East Gunnedah","Short Rural","Animal","Animal impact",21,133.95238095238099,5.2589662289491803E-3,3.9259968292901797E-5,"N"]
["SUS631_29673","2015-01-30","09:24:40","ORS3B2 Jeager Ave","Short Rural","Weather",null,1,76,1.4208369477431099E-4,1.8695222996619901E-6,"N"]
["SUS631_29682","2015-01-30","09:36:00","FIN52 Tocumwal","Long Rural","Planned",null,20,69,null,null,"N"]
["SUS631_29729","2015-01-30","13:28:58","NARC2 Dalmeny","Short Rural","Vegetation","Blow-in/Fall-in",1,103,1.9256079686518499E-4,1.8695222996619901E-6,"N"]
["SUS631_29760","2015-01-30","23:22:32","BWA3B1 Abbotts Falls/Krambach","Long Rural","Weather",null,83,505.39759036144602,0.30979768028388999,6.12978150652305E-4,"N"]
["SUS631_29768","2015-01-31","06:43:40","MCV3B9 Bowraville Rural","Long Rural","Weather",null,7,68,3.5153927675963502E-3,5.16969524646522E-5,"N"]
["SUS631_29808","2015-01-31","15:22:52","NGN3B1 Glenreagh","Short Rural","Weather",null,1,243,4.5429391881786401E-4,1.8695222996619901E-6,"N"]
["SUS631_29839","2015-01-31","22:14:00","CSO3B2 Kyogle Rd","Long Rural","Weather",null,2,209,3.08704659003209E-3,1.4770557847043501E-5,"N"]
["SUS631_29857","2015-02-01","10:38:53","GYA3B3 Guyra Town/Black Mtn","Short Rural","Vegetation","Blow-in/Fall-in",1,34,6.3563758188507705E-5,1.8695222996619901E-6,"N"]
["SUS631_29895","2015-02-01","19:56:09","NVE42 Warren Rural Nth","Long Rural","Animal","Animal impact",3,22,4.87428408952435E-4,2.2155836770565199E-5,"N"]
["SUS631_29918","2015-02-02","07:33:15","YAR3B2 Troy","Long Rural","Weather",null,1,84,6.2036342957582605E-4,7.3852789235217402E-6,"N"]
["SUS631_29965","2015-02-02","10:01:00","GNF42 Rural No.2","Long Rural","Planned",null,1,91,null,null,"N"]
["SUS631_29967","2015-02-02","10:04:46","MUD92 Industrial","Short Rural","Third party","Vehicle impact",36,161,1.08357512488409E-2,6.7302802787831695E-5,"N"]
["SUS631_30022","2015-02-02","19:21:50","DUN3B2 Bullfrog Ck","Short Rural","Weather",null,3,135,7.5715653136310601E-4,5.60856689898597E-6,"N"]
["SUS631_30044","2015-02-03","08:00:00","BHL42 Railwaytown","Short Rural","Planned",null,2,360,null,null,"N"]
["SUS631_30075","2015-02-03","09:02:53","BRI Braidwood","Long Rural","Planned",null,82,219,null,null,"N"]
["SUS631_30093","2015-02-03","09:30:00","MUL3B1 Goonengerry","Short Rural","Planned",null,35,151.71428571428601,null,null,"N"]
["SUS631_30117","2015-02-03","10:04:00","ORW3B8 Northern Distributor Sth","Short Rural","Planned",null,26,289.730769230769,null,null,"N"]
["SUS631_30154","2015-02-03","16:15:45","ESH3B1 Kiah/Nethercote","Short Rural","Asset failure","HV",48,151,1.3550297627950099E-2,8.9737070383775493E-5,"N"]
["SUS631_30172","2015-02-04","05:59:06","CSO3B2 Kyogle Rd","Long Rural","Asset failure","HV",1,109,8.0499540266386999E-4,7.3852789235217402E-6,"N"]
["SUS631_30203","2015-02-04","09:03:27","PSK3B2 Kundabung","Short Rural","Planned",null,275,388.46909090909099,null,null,"N"]
["SUS631_30244","2015-02-04","11:05:00","DOR3B1 Nth Dorrigo","Long Rural","Vegetation","Blow-in/Fall-in",4,71,2.0974192142801801E-3,2.9541115694087002E-5,"N"]
["SUS631_30280","2015-02-04","17:54:39","BWA3B1 Abbotts Falls/Krambach","Long Rural","Other",null,1,111,8.1976596051091405E-4,7.3852789235217402E-6,"N"]
["SUS631_30282","2015-02-04","18:17:07","LRN3B3 Lake St","Urban","Third party","Fire",1,119,6.2159169260984904E-4,5.2234596017634396E-6,"N"]
["SUS631_30329","2015-02-05","09:09:00","GYA3B3 Guyra Town/Black Mtn","Short Rural","Planned",null,1,29,null,null,"N"]
["SUS631_30367","2015-02-05","10:18:00","MRN8B3 Marulan Town","Long Rural","Asset failure","Subtransmission",1,548,4.0471328500899196E-3,7.3852789235217402E-6,"N"]
["SUS631_30377","2015-02-05","11:10:02","BBI0101 M1 Maules Ck","Long Rural","Weather",null,57,120.87719298245599,5.0884571783064797E-2,4.2096089864073898E-4,"N"]
["SUS631_30408","2015-02-05","18:39:45","NARF2 Tilba","Short Rural","Asset failure","HV",2,114,4.2625108432293399E-4,3.7390445993239802E-6,"N"]
["SUS631_30439","2015-02-06","08:38:00","DUG3B7 Salisbury","Short Rural","Planned",null,20,209,null,null,"N"]
["SUS631_30466","2015-02-06","09:18:00","WGA3B6 Corindi","Short Rural","Planned",null,56,147,null,null,"N"]
["SUS631_30487","2015-02-06","09:44:00","ANN8B1 No.1 72 Line","Long Rural","Planned",null,1,56,null,null,"N"]
["SUS631_30518","2015-02-06","13:39:18","CSO3B2 Kyogle Rd","Long Rural","Weather",null,1,147,1.0856360017577E-3,7.3852789235217402E-6,"N"]
["SUS631_30565","2015-02-07","10:12:39","RAG3B5 OConnell","Long Rural","Weather",null,1,86,6.3513398742287E-4,7.3852789235217402E-6,"N"]
["SUS631_30589","2015-02-07","22:42:57","CSO3B2 Kyogle Rd","Long Rural","Animal","Animal impact",1,58,4.2834617756426101E-4,7.3852789235217402E-6,"N"]
["SUS631_30613","2015-02-08","10:50:17","NSK3B2 Frederickton","Short Rural","Third party","Fire",1,31,5.7955191289521702E-5,1.8695222996619901E-6,"N"]
["SUS631_30644","2015-02-08","18:04:18","SFP3B1 Byron No.4","Short Rural","Asset failure","LV",39,106,7.7286051868026701E-3,7.2911369686817597E-5,"N"]
["SUS631_30675","2015-02-09","08:01:32","CBB52 Baradine","Long Rural","Asset failure","LV",3,224,4.9629074366066101E-3,2.2155836770565199E-5,"N"]
["SUS631_30688","2015-02-09","09:00:00","CRO5502 Narrawa Bevendale","Long Rural","Planned",null,14,190,null,null,"N"]
["SUS631_30723","2015-02-09","09:43:00","SUT5333 Eagle Hawk","Short Rural","Planned",null,2,77,null,null,"N"]
["SUS631_30754","2015-02-09","11:34:40","TSH3B8 Hillcrest","Short Rural","Asset failure","Zone substation",1384,21,5.4335796117376101E-2,2.5874188627321901E-3,"N"]
["SUS631_30781","2015-02-09","15:42:52","MCV3B10 Warrell Ck","Short Rural","Animal","Animal impact",1,150,2.8042834494929899E-4,1.8695222996619901E-6,"N"]
["SUS631_30802","2015-02-09","20:30:20","BJN8B3 M37 Yarran","Long Rural","Weather",null,214,541.182242990654,0.85531130796982402,1.5804496896336499E-3,"N"]
["SUS631_30849","2015-02-10","09:06:01","RGL3B8 Kalang/Valla","Short Rural","Planned",null,242,317.87603305785098,null,null,"N"]
["SUS631_30880","2015-02-10","10:00:00","RAG3B6 Limekilns","Long Rural","Planned",null,64,314.515625,null,null,"N"]
["SUS631_30904","2015-02-10","13:00:29","MWN3B1 Uki","Long Rural","Weather",null,4,85,2.5109948339973901E-3,2.9541115694087002E-5,"N"]
["SUS631_30928","2015-02-10","17:53:57","CBB52 Baradine","Long Rural","Animal","Animal impact",3,63,1.3958177165456101E-3,2.2155836770565199E-5,"N"]
["SUS631_30959","2015-02-10","20:46:29","PKT3B9 Parkes Town No.3","Short Rural","Weather",null,5,319,2.9818880679608698E-3,9.3476114983099506E-6,"N"]
["SUS631_30977","2015-02-11","06:32:43","GBN5702 Kingsdale","Short Rural","Animal","Animal impact",1,56,1.04693248781071E-4,1.8695222996619901E-6,"N"]
["SUS631_31003","2015-02-11","08:57:00","WWA8B4 M8/M21 Spring Plains Rd","Short Rural","Planned",null,20,378,null,null,"N"]
["SUS631_31038","2015-02-11","09:27:00","CLN3B4 Ganmain 93 Line","Short Rural","Planned",null,60,167.85,null,null,"N"]
["SUS631_31085","2015-02-11","14:44:52","BRL20408 Deep Ck","Short Rural","Other",null,1,78,1.45822739373635E-4,1.8695222996619901E-6,"N"]
["SUS631_31087","2015-02-11","14:49:57","MDI3B1 Ardglen","Long Rural","Overloads",null,124,27.411290322580601,2.5102563061050399E-2,9.1577458651669595E-4,"N"]
["SUS631_31126","2015-02-11","17:39:34","GNG5222 Collector/Cullerin Rd","Short Rural","Weather",null,10,54,1.0095420418174701E-3,1.8695222996619901E-5,"N"]
["SUS631_31164","2015-02-11","19:23:47","QUI3B1 Quira","Short Rural","Weather",null,1,146,2.7295025575065101E-4,1.8695222996619901E-6,"N"]
["SUS631_31195","2015-02-11","21:39:15","DEN62 Nth Rural","Long Rural","Weather",null,2,251,3.7074100196079198E-3,1.4770557847043501E-5,"N"]
["SUS631_31213","2015-02-11","23:13:19","NDA3B3 Gillenbah","Long Rural","Weather",null,49,30,1.0856360017577E-2,3.6187866725256499E-4,"N"]
["SUS631_31253","2015-02-12","06:47:40","DEN62 Nth Rural","Long Rural","Weather",null,1,394,2.90979989586757E-3,7.3852789235217402E-6,"N"]
["SUS631_31274","2015-02-12","07:40:19","ALU22 West Albury/Howlong","Short Rural","Weather",null,1,134,2.5051598815470702E-4,1.8695222996619901E-6,"N"]
["SUS631_31292","2015-02-12","08:17:08","QUI3B1 Quira","Short Rural","Weather",null,2,684,2.5575065059376002E-3,3.7390445993239802E-6,"N"]
["SUS631_31323","2015-02-12","09:00:00","WGM4983 Wingham/Hillside","Short Rural","Planned",null,3,803.66666666666697,null,null,"N"]
["SUS631_31348","2015-02-12","09:20:00","NVE12 Nevertire","Long Rural","Planned",null,1,41,null,null,"N"]
["SUS631_31400","2015-02-12","14:13:53","QUI3B1 Quira","Short Rural","Weather",null,1,175,3.27166402440848E-4,1.8695222996619901E-6,"N"]
["SUS631_31431","2015-02-12","16:53:07","PKT3B10 Tichbourne","Long Rural","Weather",null,1,268,1.9792547515038298E-3,7.3852789235217402E-6,"N"]
["SUS631_31449","2015-02-12","17:41:41","LEE3B8 Leeton Nth","Urban","Vegetation","Grow-in",1,193,1.0081277031403399E-3,5.2234596017634396E-6,"N"]
["SUS631_31475","2015-02-12","19:08:11","DBS3B1 Rural Sth","Long Rural","Weather",null,1,45,3.3233755155847802E-4,7.3852789235217402E-6,"N"]
["SUS631_31510","2015-02-13","05:10:06","TUM42 Laurel Hill","Long Rural","Weather",null,1,227,1.67645831563944E-3,7.3852789235217402E-6,"N"]
["SUS631_31528","2015-02-13","08:36:12","KKN3B1 Coaldale","Short Rural","Planned",null,59,205.42372881355899,null,null,"N"]
["SUS631_31559","2015-02-13","09:15:00","BAL3B6 Ballina West","Short Rural","Planned",null,29,190,null,null,"N"]
["SUS631_31602","2015-02-13","12:30:13","NVE42 Warren Rural Nth","Long Rural","Weather",null,286,80,0.16897518177017801,2.1121897721272198E-3,"N"]
["SUS631_31607","2015-02-13","13:07:09","ORW3B7 Cargo Rd","Short Rural","Weather",null,1,63,1.17779904878705E-4,1.8695222996619901E-6,"N"]
["SUS631_31638","2015-02-13","16:07:23","ORI828 Clifton Grove","Short Rural","Weather",null,15,1,2.8042834494929901E-5,2.8042834494929901E-5,"N"]
["SUS631_31685","2015-02-13","17:24:10","ORW3B1 Manning Rd","Short Rural","Weather",null,1,310,5.7955191289521698E-4,1.8695222996619901E-6,"N"]
["SUS631_31697","2015-02-13","18:06:48","MDA52 Monument","Short Rural","Weather",null,3,198,1.11049624599922E-3,5.60856689898597E-6,"N"]
["SUS631_31746","2015-02-14","04:40:08","JER22 Jerilderie Town","Short Rural","Weather",null,2,215,8.0389458885465599E-4,3.7390445993239802E-6,"N"]
["SUS631_31764","2015-02-14","09:46:00","MDA52 Monument","Short Rural","Weather",null,1,112,2.0938649756214301E-4,1.8695222996619901E-6,"N"]
["SUS631_31795","2015-02-14","15:22:54","NDA3B2 May St","Short Rural","Weather",null,1,129,2.4116837665639701E-4,1.8695222996619901E-6,"N"]
["SUS631_31824","2015-02-14","17:15:32","LEE3B5 Wamoon","Short Rural","Weather",null,17,206,6.5470670934162896E-3,3.1781879094253799E-5,"N"]
["SUS631_31843","2015-02-14","18:56:57","LCO32 Brotherony","Short Rural","Weather",null,6,297,3.33148873799767E-3,1.1217133797971899E-5,"N"]
["SUS631_31874","2015-02-14","21:34:00","LCO22 Lake Cargelligo","Long Rural","Asset failure","LV",25,237,4.3757777621866299E-2,1.84631973088044E-4,"N"]
["SUS631_31892","2015-02-15","07:06:01","UNI8/8 Tilbuster/Puddledock","Short Rural","Animal","Animal impact",2,180,6.7302802787831705E-4,3.7390445993239802E-6,"N"]
["SUS631_31947","2015-02-15","16:19:04","DBW3B3 West/Nth","Short Rural","Animal","Animal impact",1,55,1.0282372648140899E-4,1.8695222996619901E-6,"N"]
["SUS631_31969","2015-02-15","18:23:23","BHL72 West","Short Rural","Overloads",null,142,133,3.5307798151416402E-2,2.6547216655200298E-4,"N"]
["SUS631_32000","2015-02-16","06:59:34","BUN3B3 Gundaroo Rd","Long Rural","Animal","Animal impact",1,93,6.8683093988752201E-4,7.3852789235217402E-6,"Y"]
["SUS631_32031","2015-02-16","09:07:00","DNO142 Merrygoen","Long Rural","Planned",null,4,135,null,null,"Y"]
["SUS631_32046","2015-02-16","09:31:00","THA2223 West End","Urban","Planned",null,22,125,null,null,"Y"]
["SUS631_32079","2015-02-16","11:15:00","STF8B1 Nimmitabel","Short Rural","Planned",null,1,48,null,null,"Y"]
["SUS631_32110","2015-02-16","16:42:13","JER32 Coleambally","Long Rural","Weather",null,7,80,4.1357561971721796E-3,5.16969524646522E-5,"Y"]
["SUS631_32128","2015-02-16","19:12:00","GFH3B6 Illilliwa","Urban","Weather",null,1298,701.14946070878295,4.75382879588809,6.7800505630889497E-3,"Y"]
["SUS631_32169","2015-02-16","20:37:00","GFH3B4 Coolah St","Urban","Vegetation","Grow-in",1,1342,7.00988278556654E-3,5.2234596017634396E-6,"Y"]
["SUS631_32205","2015-02-17","07:00:00","BAT42 Batlow Town","Short Rural","Planned",null,2,21,null,null,"N"]
["SUS631_32236","2015-02-17","08:57:00","THA2223 West End","Urban","Vegetation","Grow-in",1,607,3.1706399782704098E-3,5.2234596017634396E-6,"N"]
["SUS631_32238","2015-02-17","09:00:00","BWA3B1 Abbotts Falls/Krambach","Long Rural","Planned",null,6,360,null,null,"N"]
["SUS631_32268","2015-02-17","09:19:00","URA3B1 Kentucky Salisbury","Short Rural","Planned",null,7,280.142857142857,null,null,"N"]
["SUS631_32315","2015-02-17","10:56:00","THA2223 West End","Urban","Weather",null,1,473,2.4706963916341102E-3,5.2234596017634396E-6,"N"]
["SUS631_32346","2015-02-17","14:25:00","BOO1012 Rye Pk","Long Rural","Planned",null,69,17,null,null,"N"]
["SUS631_32364","2015-02-17","16:04:00","TUM42 Laurel Hill","Long Rural","Weather",null,1,8,5.9082231388173902E-5,7.3852789235217402E-6,"N"]
["SUS631_32391","2015-02-17","17:04:03","MRH3B6 Kingsvale","Long Rural","Weather",null,1,107,7.9022484481682702E-4,7.3852789235217402E-6,"N"]
["SUS631_32412","2015-02-17","18:10:53","BAT32 Rural Sth/Kunama","Short Rural","Weather",null,6,77,8.6371930244384003E-4,1.1217133797971899E-5,"N"]
["SUS631_32443","2015-02-17","20:18:45","TUM22 Tooma","Long Rural","Weather",null,1,12,8.8623347082260903E-5,7.3852789235217402E-6,"N"]
["SUS631_32474","2015-02-18","08:02:39","GNF12 Rural No.1","Long Rural","Weather",null,1,63,4.6527257218187E-4,7.3852789235217402E-6,"N"]
["SUS631_32518","2015-02-18","09:15:00","DTN25 Dareton","Short Rural","Planned",null,2,164,null,null,"N"]
["SUS631_32551","2015-02-18","10:35:00","THA2225 Hillston Rd","Short Rural","Planned",null,4,160,null,null,"N"]
["SUS631_32569","2015-02-18","13:18:24","YEN3B6 East Mirrool","Short Rural","Animal","Animal impact",1,54,1.00954204181747E-4,1.8695222996619901E-6,"N"]
["SUS631_32600","2015-02-18","18:13:57","JGG3B4 Fdr 4 Sth/East","Short Rural","Weather",null,1,59,1.10301815680057E-4,1.8695222996619901E-6,"N"]
["SUS631_32613","2015-02-18","19:55:47","NBI3B1 M14 Spring Ck","Short Rural","Animal","Animal impact",1,76,1.4208369477431099E-4,1.8695222996619901E-6,"N"]
["SUS631_32648","2015-02-19","08:47:12","BBI1101 M11 Ghoolendaadi","Short Rural","Asset failure","HV",1,758,1.41709790314379E-3,1.8695222996619901E-6,"N"]
["SUS631_32679","2015-02-19","09:10:00","DBS3B2 Boundary Rd","Urban","Planned",null,16,195,null,null,"N"]
["SUS631_32710","2015-02-19","10:01:00","GNF12 Rural No.1","Long Rural","Planned",null,108,251,null,null,"N"]
["SUS631_32740","2015-02-19","14:41:00","JNR4081 Quarry","Short Rural","Planned",null,3,1458,null,null,"N"]
["SUS631_32758","2015-02-19","17:45:21","TEM2 No.2 Lines 21/22/23/24/25","Long Rural","Weather",null,2,63,9.3054514436374E-4,1.4770557847043501E-5,"N"]
["SUS631_32805","2015-02-20","08:30:00","MBL122 Stuart Town","Long Rural","Planned",null,20,356.35,null,null,"N"]
["SUS631_32836","2015-02-20","09:30:10","BDA2D06 Bundarra Nth","Short Rural","Animal","Animal impact",45,174,1.46383596063534E-2,8.4128503484789605E-5,"N"]
["SUS631_32863","2015-02-20","11:01:59","COO92 Western Rural","Long Rural","Weather",null,1,46,3.3972283048199999E-4,7.3852789235217402E-6,"N"]
["SUS631_32884","2015-02-20","14:28:40","BMU1417 Koorawatha/Murringo","Long Rural","Asset failure","HV",1,61,4.50502014334826E-4,7.3852789235217402E-6,"N"]
["SUS631_32915","2015-02-20","19:24:44","ETH3B6 Chelmsford/Carthage","Short Rural","Vegetation","Grow-in",1564,25.2148337595908,7.3726481409470204E-2,2.9239328766713498E-3,"N"]
["SUS631_32946","2015-02-21","00:30:56","WBN3B3 Coraki","Short Rural","Asset failure","Subtransmission",837,518.35125448028703,0.81111094493135105,1.56479016481709E-3,"N"]
["SUS631_32962","2015-02-21","08:15:27","ELI3B4 Lynwood","Short Rural","Vegetation","Grow-in",1,567,1.06001914390835E-3,1.8695222996619901E-6,"N"]
["SUS631_32994","2015-02-21","15:41:25","STL3B4 Crossmaglen","Short Rural","Vegetation","Blow-in/Fall-in",1,115,2.14995064461129E-4,1.8695222996619901E-6,"N"]
["SUS631_33041","2015-02-22","08:51:00","YAS6272 Yass Town Nth","Short Rural","Planned",null,232,393,null,null,"N"]
["SUS631_33043","2015-02-22","08:57:34","WWA8B3 M9 Merah North/Doreen Ln","Short Rural","Animal","Animal impact",4,121,9.0484879303640302E-4,7.4780891986479603E-6,"N"]
["SUS631_33085","2015-02-22","19:39:40","ESH3B2 Wharf","Short Rural","Vegetation","Grow-in",1,102,1.9069127456552301E-4,1.8695222996619901E-6,"N"]
["SUS631_33120","2015-02-23","09:01:12","MUA5005 East","Long Rural","Planned",null,34,294,null,null,"N"]
["SUS631_33151","2015-02-23","10:04:50","GLR3B5 Barrington","Long Rural","Asset failure","HV",97,78,5.5877020335365499E-2,7.1637205558160904E-4,"N"]
["SUS631_33169","2015-02-23","11:49:49","HAM3B7 Tarcutta St","Urban","Other",null,273,2,2.8520089425628399E-3,1.42600447128142E-3,"N"]
["SUS631_33212","2015-02-23","18:22:23","ANN8B1 No.1 72 Line","Long Rural","Weather",null,1,146,1.0782507228341699E-3,7.3852789235217402E-6,"N"]
["SUS631_33230","2015-02-23","19:51:31","MOA25 Moama East","Short Rural","Vegetation","Blow-in/Fall-in",7,145,1.8975651341569201E-3,1.3086656097633901E-5,"N"]
["SUS631_33248","2015-02-23","21:58:01","KKN3B1 Coaldale","Short Rural","Animal","Animal impact",1,68,1.27127516377015E-4,1.8695222996619901E-6,"N"]
["SUS631_33279","2015-02-24","06:31:09","ORI830 Leeds Pde","Short Rural","Weather",null,2,250,9.3476114983099504E-4,3.7390445993239802E-6,"N"]
["SUS631_33307","2015-02-24","09:00:00","CNB22 Rural Sth","Long Rural","Planned",null,11,137,null,null,"N"]
["SUS631_33356","2015-02-24","10:05:00","CBB42 Tambar Springs","Long Rural","Planned",null,2,132,null,null,"N"]
["SUS631_33358","2015-02-24","10:09:24","WWL8B3 Lines 61/62/65","Long Rural","Asset failure","LV",1,286,2.1121897721272198E-3,7.3852789235217402E-6,"N"]
["SUS631_33405","2015-02-24","17:45:59","MLO52 West","Short Rural","Weather",null,1,79,1.4769226167329701E-4,1.8695222996619901E-6,"N"]
["SUS631_33434","2015-02-25","07:30:00","OPM3B4 Hill St","Urban","Planned",null,13,67,null,null,"N"]
["SUS631_33466","2015-02-25","09:00:00","SMN3B3 Kinchella","Short Rural","Planned",null,21,287.28571428571399,null,null,"N"]
["SUS631_33484","2015-02-25","09:09:00","BOU3B1 Deakin Ave","Short Rural","Planned",null,155,325,null,null,"N"]
["SUS631_33515","2015-02-25","10:30:23","GDI4B2 Waggamba Nth","Long Rural","Planned",null,7,297,null,null,"N"]
["SUS631_33533","2015-02-25","13:22:00","THA2223 West End","Urban","Other",null,56,20,5.8502747539750499E-3,2.9251373769875299E-4,"N"]
["SUS631_33563","2015-02-25","15:49:45","ORI827 Clergate Rd Nth","Short Rural","Weather",null,1,122,2.2808172055876301E-4,1.8695222996619901E-6,"N"]
["SUS631_33594","2015-02-25","17:13:16","NME8B1 Rural Sth","Long Rural","Weather",null,45,119.6,3.9747571166393998E-2,3.3233755155847802E-4,"N"]
["SUS631_33641","2015-02-25","20:30:03","EUL52 Rural Sth","Long Rural","Weather",null,15,287,3.1793625765761099E-2,1.1077918385282599E-4,"N"]
["SUS631_33656","2015-02-25","23:30:00","MUD42 Abattoir No.2","Long Rural","Weather",null,1,27,1.9940253093508699E-4,7.3852789235217402E-6,"N"]
["SUS631_33702","2015-02-26","09:00:02","MWN3B7 Norco","Short Rural","Planned",null,71,303,null,null,"N"]
["SUS631_33720","2015-02-26","09:15:00","AVE3B4 Rous/Uralba","Short Rural","Planned",null,13,315,null,null,"N"]
["SUS631_33751","2015-02-26","09:58:40","GDI4B1 Waggamba East","Long Rural","Other",null,928,5,3.4267694205140899E-2,6.8535388410281804E-3,"N"]
["SUS631_33783","2015-02-26","12:49:00","CNB42 Rural Nth","Long Rural","Asset failure","HV",3,40.3333333333333,8.9361874974613095E-4,2.2155836770565199E-5,"N"]
["SUS631_33799","2015-02-26","15:56:20","WLS9/4 Tia","Long Rural","Weather",null,7,75,3.8772714348489202E-3,5.16969524646522E-5,"N"]
["SUS631_33830","2015-02-26","17:24:08","CBB42 Tambar Springs","Long Rural","Weather",null,6,98,4.3425440070307903E-3,4.4311673541130499E-5,"N"]
["SUS631_33848","2015-02-26","18:18:46","NAN3B1 Eurongilly","Short Rural","Asset failure","HV",4,159,1.18901618258503E-3,7.4780891986479603E-6,"N"]
["SUS631_33878","2015-02-26","19:17:50","BTA3B2 M13 Millie","Short Rural","Weather",null,1,200,3.7390445993239798E-4,1.8695222996619901E-6,"N"]
["SUS631_33909","2015-02-26","20:26:54","BBI0101 M1 Maules Ck","Long Rural","Weather",null,8,102,6.0263876015937403E-3,5.9082231388173902E-5,"N"]
["SUS631_33956","2015-02-26","23:40:24","GDH6101 M61 Kelvin","Long Rural","Weather",null,9,160,1.06348016498713E-2,6.6467510311695705E-5,"N"]
["SUS631_33987","2015-02-27","02:56:17","GNI3B5 Dundee/Rangers Valley","Long Rural","Weather",null,1,789,5.8269850706586601E-3,7.3852789235217402E-6,"N"]
["SUS631_34005","2015-02-27","04:46:00","AFD2A04 Ashford and Rural","Short Rural","Weather",null,1,165,3.0847117944422803E-4,1.8695222996619901E-6,"N"]
["SUS631_34035","2015-02-27","06:47:05","WLS9/8 Oorundumby","Long Rural","Weather",null,1,244,1.8020080573393101E-3,7.3852789235217402E-6,"N"]
["SUS631_34066","2015-02-27","07:42:12","KTL3B4 Porcupine Lane","Short Rural","Weather",null,1,155,2.89775956447608E-4,1.8695222996619901E-6,"N"]
["SUS631_34084","2015-02-27","08:10:13","KTL3B4 Porcupine Lane","Short Rural","Weather",null,1,110,2.0564745296281899E-4,1.8695222996619901E-6,"N"]
["SUS631_34128","2015-02-27","09:15:00","BRI Braidwood","Long Rural","Planned",null,1,37,null,null,"N"]
["SUS631_34161","2015-02-27","09:53:09","GDI8B3 Talwood","Long Rural","Weather",null,1,138,1.019168491446E-3,7.3852789235217402E-6,"N"]
["SUS631_34163","2015-02-27","09:54:07","LEE3B8 Leeton Nth","Urban","Animal","Animal impact",13,76,5.1607780865422798E-3,6.7904974822924699E-5,"N"]
["SUS631_34194","2015-02-27","11:03:00","SWT12 Stewarts Mt","Long Rural","Planned",null,2,144,null,null,"N"]
["SUS631_34227","2015-02-27","13:19:47","NVE12 Nevertire","Long Rural","Planned",null,7,77,null,null,"N"]
["SUS631_34271","2015-02-27","19:06:52","GDM5422 Michelago","Long Rural","Asset failure","HV",162,162.51851851851899,0.19443962349848001,1.1964151856105199E-3,"N"]
["SUS631_34302","2015-02-28","07:18:04","KIS7681 Bellangry","Short Rural","Weather",null,12,80,1.79474140767551E-3,2.24342675959439E-5,"N"]
["SUS631_34320","2015-02-28","09:10:59","BBYJ2 Catalina","Short Rural","Vegetation","Grow-in",1,79,1.4769226167329701E-4,1.8695222996619901E-6,"N"]
["SUS631_34350","2015-02-28","14:06:00","WWA8B5 M20/M23 Wee Waa Town/Airport","Short Rural","Animal","Animal impact",11,85,1.7480033501839601E-3,2.0564745296281899E-5,"N"]
["SUS631_34368","2015-02-28","18:01:12","MGI2U30 Curragundi","Long Rural","Weather",null,13,44,4.2243795442544396E-3,9.6008626005782699E-5,"N"]
["SUS631_34399","2015-03-01","08:39:00","GNI3B4 Glen Innes Southern Town","Short Rural","Planned",null,44,99,null,null,"N"]
["SUS631_34430","2015-03-01","14:10:19","GLS5/9 Gara Dangersleigh","Short Rural","Asset failure","HV",78,57,8.3118961442972105E-3,1.45822739373635E-4,"N"]
["SUS631_34477","2015-03-01","18:07:17","CBB72 Binnaway","Long Rural","Weather",null,11,158,1.2835614769080799E-2,8.1238068158739202E-5,"N"]
["SUS631_34507","2015-03-01","19:18:48","ELI3B7 Sth Lismore","Short Rural","Asset failure","LV",69,177,2.2832475845771898E-2,1.2899703867667701E-4,"N"]
["SUS631_34525","2015-03-01","19:52:18","CSO3B3 Leeville","Short Rural","Weather",null,5,931,8.7026263049265595E-3,9.3476114983099506E-6,"N"]
["SUS631_34556","2015-03-01","20:17:00","STH3B3 Warral","Long Rural","Weather",null,17,261,3.2768482583665999E-2,1.2554974169987001E-4,"N"]
["SUS631_34572","2015-03-01","21:10:00","GGG32 Gulgong","Short Rural","Vegetation","Grow-in",1,395,7.3846130836648604E-4,1.8695222996619901E-6,"N"]
["SUS631_34604","2015-03-02","05:31:15","BLH3B2 Bulahdelah Nth/Markwell/Newells Ck","Short Rural","Weather",null,2,238,8.8989261463910696E-4,3.7390445993239802E-6,"N"]
["SUS631_34635","2015-03-02","08:45:00","MUD72 Eurunderee","Short Rural","Planned",null,3,67,null,null,"N"]
["SUS631_34666","2015-03-02","09:45:00","GNF42 Rural No.2","Long Rural","Planned",null,13,152,null,null,"N"]
["SUS631_34699","2015-03-02","12:16:29","KTL3B1 Kootingal","Short Rural","Weather",null,1,288,5.3842242230265301E-4,1.8695222996619901E-6,"N"]
["SUS631_34714","2015-03-02","14:15:37","GLR3B5 Barrington","Long Rural","Weather",null,1,166,1.22595630130461E-3,7.3852789235217402E-6,"N"]
["SUS631_34761","2015-03-03","08:19:32","BBI0201 M2 Willala","Short Rural","Weather",null,1,82,1.5330082857228301E-4,1.8695222996619901E-6,"N"]
["SUS631_34792","2015-03-03","09:01:00","RGL3B8 Kalang/Valla","Short Rural","Planned",null,14,204,null,null,"N"]
["SUS631_34822","2015-03-03","09:47:00","PAM3B2 Pambula No.4","Short Rural","Planned",null,67,255,null,null,"N"]
["SUS631_34840","2015-03-03","10:47:00","KTL3B1 Kootingal","Short Rural","Overloads",null,3,154,8.6371930244384003E-4,5.60856689898597E-6,"N"]
["SUS631_34871","2015-03-03","16:34:00","MGI2U30 Curragundi","Long Rural","Asset failure","HV",30,129,2.8581029434029199E-2,2.2155836770565199E-4,"N"]
["SUS631_34902","2015-03-04","08:16:02","STH3B3 Warral","Long Rural","Overloads",null,4,99,2.9245704537146102E-3,2.9541115694087002E-5,"N"]
["SUS631_34921","2015-03-04","09:00:00","KEW3B2 Lorne","Short Rural","Planned",null,2,672.5,null,null,"N"]
["SUS631_34950","2015-03-04","09:33:00","CDN62 Tallebung","Long Rural","Planned",null,13,314,null,null,"N"]
["SUS631_34968","2015-03-04","10:02:00","BAL3B6 Ballina West","Short Rural","Asset failure","LV",82,112,1.7169692800095698E-2,1.5330082857228301E-4,"N"]
["SUS631_34999","2015-03-04","14:53:12","SWT12 Stewarts Mt","Long Rural","Animal","Animal impact",1,169,1.24811213807517E-3,7.3852789235217402E-6,"N"]
["SUS631_35044","2015-03-05","09:05:00","GLR3B2 Stratford","Short Rural","Planned",null,29,778.93103448275895,null,null,"N"]
["SUS631_35076","2015-03-05","12:08:00","GDH8B1 M70 Industrial/CBD","Short Rural","Planned",null,1,114,null,null,"N"]
["SUS631_35107","2015-03-05","16:55:19","KTE3B4 Kundle Kundle","Short Rural","Vegetation","Blow-in/Fall-in",197,45,1.6573315186503498E-2,3.6829589303341201E-4,"N"]
["SUS631_35125","2015-03-05","21:12:54","WGM4981 Mt George/Elands","Long Rural","Vegetation","Blow-in/Fall-in",13,56,5.3764830563238298E-3,9.6008626005782699E-5,"N"]
["SUS631_35143","2015-03-06","08:48:00","SGN3B6 Rushforth Rd","Short Rural","Planned",null,94,153,null,null,"N"]
["SUS631_35186","2015-03-06","11:03:00","PSK3B1 Dondingalong","Short Rural","Other",null,136,46,1.1695731506685399E-2,2.5425503275403098E-4,"N"]
["SUS631_35204","2015-03-06","12:11:19","MAH3B7 Candelo","Short Rural","Weather",null,2,97,3.6268732613442599E-4,3.7390445993239802E-6,"N"]
["SUS631_35235","2015-03-06","20:22:55","CWD33 Eugowra","Short Rural","Weather",null,2,76,2.8416738954862301E-4,3.7390445993239802E-6,"N"]
["SUS631_35266","2015-03-07","09:02:07","COW102 Wyangala","Long Rural","Asset failure","HV",1,82,6.0559287172878297E-4,7.3852789235217402E-6,"N"]
["SUS631_35312","2015-03-08","01:05:04","GDI8B3 Talwood","Long Rural","Planned",null,473,10,null,null,"N"]
["SUS631_35314","2015-03-08","01:05:04","GDI8B5 Macintyre Gin","Short Rural","Planned",null,120,9,null,null,"N"]
["SUS631_35361","2015-03-08","21:11:07","ORI829 Clergate Rd Sth","Short Rural","Other",null,1,31,5.7955191289521702E-5,1.8695222996619901E-6,"N"]
["SUS631_35393","2015-03-09","09:06:59","BNY3B4 Millthorpe","Long Rural","Asset failure","HV",2,63,9.3054514436374E-4,1.4770557847043501E-5,"N"]
["SUS631_35422","2015-03-09","10:20:00","MOU12 Moulamein","Long Rural","Planned",null,1,110,null,null,"N"]
["SUS631_35440","2015-03-09","14:14:46","SGN3B1 Armidale Rd","Long Rural","Vegetation","Blow-in/Fall-in",173,144.196531791908,0.18423316802617301,1.2776532537692601E-3,"N"]
["SUS631_35471","2015-03-09","17:18:26","SGN3B4 Ulmarra","Long Rural","Weather",null,73,428.12328767123302,0.23081212219682501,5.3912536141708701E-4,"N"]
["SUS631_35488","2015-03-09","18:58:48","CUD3B7 Kingscliff No.2","Short Rural","Other",null,1,139,2.5986359965301701E-4,1.8695222996619901E-6,"N"]
["SUS631_35519","2015-03-10","08:30:39","WGM4981 Mt George/Elands","Long Rural","Weather",null,1,460,3.3972283048199999E-3,7.3852789235217402E-6,"N"]
["SUS631_35550","2015-03-10","09:58:00","JGG3B4 Fdr 4 Sth/East","Short Rural","Planned",null,1,154,null,null,"N"]
["SUS631_35597","2015-03-10","16:13:00","OBR3B2 Black Springs","Long Rural","Other",null,8,58,3.4267694205140902E-3,5.9082231388173902E-5,"N"]
["SUS631_35615","2015-03-10","17:48:16","GLR3B5 Barrington","Long Rural","Animal","Animal impact",2,75,1.10779183852826E-3,1.4770557847043501E-5,"N"]
["SUS631_35629","2015-03-10","18:55:00","ULN29 Linburn","Long Rural","Weather",null,2,1184,1.74883404908995E-2,1.4770557847043501E-5,"N"]
["SUS631_35676","2015-03-11","08:14:47","NDL616 Woolomin","Long Rural","Vegetation","Grow-in",3,111,2.4592978815327401E-3,2.2155836770565199E-5,"N"]
["SUS631_35707","2015-03-11","09:00:00","NDA3B6 Paynters Siding","Short Rural","Planned",null,50,286,null,null,"N"]
["SUS631_35742","2015-03-11","09:20:00","CUD3B4 Kingscliff No.1","Urban","Planned",null,151,190,null,null,"N"]
["SUS631_35755","2015-03-11","09:35:00","LEE3B7 Corbie Hill","Short Rural","Planned",null,1,135,null,null,"N"]
["SUS631_35786","2015-03-11","11:32:02","MRE2M37 Gingham Rd","Short Rural","Vegetation","Grow-in",1,64,1.19649427178367E-4,1.8695222996619901E-6,"N"]
["SUS631_35804","2015-03-11","15:38:13","CRO5522 Tuena Redground","Long Rural","Weather",null,12,39,3.4563105362081801E-3,8.8623347082260903E-5,"N"]
["SUS631_35837","2015-03-11","18:11:05","CRO5522 Tuena Redground","Long Rural","Weather",null,2,175,2.58484762323261E-3,1.4770557847043501E-5,"N"]
["SUS631_35865","2015-03-11","21:32:00","ORS3B7 Anson St Sth","Short Rural","Asset failure","LV",1,99,1.8508270766653701E-4,1.8695222996619901E-6,"N"]
["SUS631_35912","2015-03-12","08:42:00","BHL42 Railwaytown","Short Rural","Planned",null,152,222,null,null,"N"]
["SUS631_35943","2015-03-12","09:23:00","CRA32 Corowa Town No.2","Urban","Planned",null,87,128,null,null,"N"]
["SUS631_35964","2015-03-12","10:00:00","HAT22 Hay 132 - Hay Town (Maude)","Long Rural","Planned",null,51,247,null,null,"N"]
["SUS631_35991","2015-03-12","13:30:14","WRA2W11 Warialda Town","Short Rural","Asset failure","Zone substation",675,4,5.0477102090873702E-3,1.2619275522718399E-3,"N"]
["SUS631_36022","2015-03-12","16:23:34","STH3B9 Winton","Short Rural","Weather",null,10,100,1.8695222996619901E-3,1.8695222996619901E-5,"N"]
["SUS631_36040","2015-03-12","18:02:48","CLA3B2 Gowrie","Short Rural","Weather",null,1,251,4.6925009721516002E-4,1.8695222996619901E-6,"N"]
["SUS631_36087","2015-03-13","08:27:08","STH3B9 Winton","Short Rural","Weather",null,1,52,9.7215159582423499E-5,1.8695222996619901E-6,"N"]
["SUS631_36117","2015-03-13","09:08:00","NVE42 Warren Rural Nth","Long Rural","Planned",null,1,161,null,null,"N"]
["SUS631_36119","2015-03-13","09:11:00","TDL8B1 Bogan Gate","Long Rural","Planned",null,42,334,null,null,"N"]
["SUS631_36150","2015-03-13","09:45:00","DUG3B1 Clarencetown","Short Rural","Planned",null,47,45,null,null,"N"]
["SUS631_36186","2015-03-13","12:08:04","GLR3B5 Barrington","Long Rural","Weather",null,1,185,1.36627660085152E-3,7.3852789235217402E-6,"N"]
["SUS631_36227","2015-03-13","18:35:36","CDN72 Kiacatoo","Long Rural","Asset failure","HV",2,78,1.15210351206939E-3,1.4770557847043501E-5,"N"]
["SUS631_36258","2015-03-14","11:01:04","MCV3B10 Warrell Ck","Short Rural","Weather",null,1,56,1.04693248781071E-4,1.8695222996619901E-6,"N"]
["SUS631_36276","2015-03-14","19:30:43","MUD32 Cudgegong","Short Rural","Animal","Animal impact",5,111,1.0375848763124001E-3,9.3476114983099506E-6,"N"]
["SUS631_36309","2015-03-15","06:25:02","CDN72 Kiacatoo","Long Rural","Animal","Animal impact",196,175.12244897959201,0.25349231377095999,1.44751466901026E-3,"N"]
["SUS631_36324","2015-03-15","08:46:00","TUN3B6 Tuncurry Town","Urban","Planned",null,236,535.67796610169501,null,null,"N"]
["SUS631_36355","2015-03-15","16:42:07","MRE2M34 Southern Rural","Long Rural","Asset failure","HV",40,160,4.72657851105392E-2,2.9541115694087E-4,"N"]
["SUS631_36386","2015-03-16","08:58:00","GDH6201 M62 Carroll","Short Rural","Planned",null,1,352,null,null,"N"]
["SUS631_36408","2015-03-16","09:20:00","WGM4983 Wingham/Hillside","Short Rural","Planned",null,1,122,null,null,"N"]
["SUS631_36434","2015-03-16","10:00:00","AHY2T04 Northern","Long Rural","Planned",null,5,272,null,null,"N"]
["SUS631_36465","2015-03-16","13:26:10","UQT8B1 The Rock","Long Rural","Weather",null,1,72,5.3174008249356596E-4,7.3852789235217402E-6,"N"]
["SUS631_36512","2015-03-17","08:32:25","DNO142 Merrygoen","Long Rural","Animal","Animal impact",3,177,3.9215831083900497E-3,2.2155836770565199E-5,"N"]
["SUS631_36531","2015-03-17","09:00:00","URA3B2 Gostwyck/Arding","Long Rural","Planned",null,15,177.8,null,null,"N"]
["SUS631_36560","2015-03-17","09:22:45","NVE12 Nevertire","Long Rural","Planned",null,8,274,null,null,"N"]
["SUS631_36591","2015-03-17","10:40:00","UQT8B2 Uranquinty Nth","Short Rural","Planned",null,41,220,null,null,"N"]
["SUS631_36622","2015-03-17","15:20:29","MRE2M19 Moree Western Town","Short Rural","Other",null,52,63,6.1245550536926799E-3,9.7215159582423499E-5,"N"]
["SUS631_36658","2015-03-18","02:10:52","BTS8B5 Kings Plains","Long Rural","Weather",null,31,21,4.80781657921266E-3,2.2894364662917399E-4,"N"]
["SUS631_36670","2015-03-18","04:20:14","MRE2M35 Eastern Rural","Long Rural","Vegetation","Blow-in/Fall-in",8,447.5,2.6439298546207801E-2,5.9082231388173902E-5,"N"]
["SUS631_36717","2015-03-18","08:09:52","GNI3B3 Red Range/Kookabookra","Long Rural","Weather",null,1,47,3.4710810940552202E-4,7.3852789235217402E-6,"N"]
["SUS631_36748","2015-03-18","08:55:33","QSH5252 Dane St","Short Rural","Weather",null,2,81,3.02862612545242E-4,3.7390445993239802E-6,"N"]
["SUS631_36753","2015-03-18","09:00:00","BRI Braidwood","Long Rural","Planned",null,49,362.10204081632702,null,null,"N"]
["SUS631_36796","2015-03-18","09:34:04","SUT5323 Gundaroo","Long Rural","Weather",null,1,143,1.0560948860636099E-3,7.3852789235217402E-6,"N"]
["SUS631_36827","2015-03-18","10:10:25","WRA2W08 Northern","Long Rural","Weather",null,13,304.30769230769198,2.9216163421452002E-2,9.6008626005782699E-5,"N"]
["SUS631_36858","2015-03-18","12:44:38","GBN6212 Towrang","Short Rural","Other",null,15,379,1.06282342735784E-2,2.8042834494929901E-5,"N"]
["SUS631_36880","2015-03-18","14:33:18","BTS8B5 Kings Plains","Long Rural","Weather",null,1,55,4.0619034079369601E-4,7.3852789235217402E-6,"N"]
["SUS631_36906","2015-03-18","17:41:57","DUG3B1 Clarencetown","Short Rural","Weather",null,747,156.61445783132501,0.21871728335975599,1.39653315784751E-3,"N"]
["SUS631_36924","2015-03-19","06:08:51","BAR22 Wakool","Long Rural","Asset failure","HV",1,152,1.1225623963753101E-3,7.3852789235217402E-6,"N"]
["SUS631_36955","2015-03-19","09:00:00","MWN3B3 Boat Harbour","Short Rural","Planned",null,98,311,null,null,"N"]
["SUS631_37003","2015-03-19","09:36:55","MGI2U30 Curragundi","Long Rural","Planned",null,15,297,null,null,"N"]
["SUS631_37032","2015-03-19","11:56:52","CST5362 Sth Goulburn/Collector","Long Rural","Asset failure","LV",1,226,1.6690730367159099E-3,7.3852789235217402E-6,"N"]
["SUS631_37063","2015-03-19","19:33:14","MWN3B1 Uki","Long Rural","Vegetation","Grow-in",3,162,3.58924555683157E-3,2.2155836770565199E-5,"N"]
["SUS631_37094","2015-03-20","08:33:07","LOC3781 Boree Ck","Short Rural","Vegetation","Grow-in",8,326,4.8757141575184702E-3,1.49561783972959E-5,"N"]
["SUS631_37102","2015-03-20","09:00:00","MUD82 Abattoir No.1","Short Rural","Planned",null,2,171,null,null,"N"]
["SUS631_37142","2015-03-20","09:30:00","MGA3B2 Willawarrin","Long Rural","Planned",null,12,167,null,null,"N"]
["SUS631_37160","2015-03-20","09:56:00","ADE32 Adelong Town","Short Rural","Other",null,2,109,4.0755586132631402E-4,3.7390445993239802E-6,"N"]
["SUS631_37191","2015-03-20","13:01:58","GLR3B3 Invergordon","Short Rural","Weather",null,1,93,1.7386557386856499E-4,1.8695222996619901E-6,"N"]
["SUS631_37225","2015-03-20","22:35:15","WGA3B5 East Woolgoolga","Short Rural","Animal","Animal impact",1259,108,0.25420268612963998,2.3537285752744498E-3,"N"]
["SUS631_37239","2015-03-21","08:04:17","MLS3B6 Airport","Short Rural","Other",null,1,77,1.43953217073973E-4,1.8695222996619901E-6,"N"]
["SUS631_37270","2015-03-21","14:51:06","EUL42 Rural East","Long Rural","Animal","Animal impact",75,34,1.88324612549804E-2,5.5389591926413096E-4,"N"]
["SUS631_37317","2015-03-21","17:08:02","MRE2M38 Tareelaroi","Long Rural","Weather",null,3,2142.3333333333298,4.7465187641474199E-2,2.2155836770565199E-5,"N"]
["SUS631_37352","2015-03-21","18:34:43","BTS8B10 Tingha","Short Rural","Weather",null,6,279,3.1295803296341701E-3,1.1217133797971899E-5,"N"]
["SUS631_37378","2015-03-21","20:09:50","NBI3B2 M5 Eulah Ck/Turrawan","Short Rural","Weather",null,39,41,2.98936615715952E-3,7.2911369686817597E-5,"N"]
["SUS631_37396","2015-03-21","22:16:41","GNI3B3 Red Range/Kookabookra","Long Rural","Weather",null,2,42,6.2036342957582605E-4,1.4770557847043501E-5,"N"]
["SUS631_37427","2015-03-22","08:09:00","MSW3B1 Trail St","Urban","Planned",null,30,276,null,null,"N"]
["SUS631_37447","2015-03-22","09:02:00","COW62 Cowra Town Centre","Urban","Planned",null,186,299.93548387096803,null,null,"N"]
["SUS631_37475","2015-03-22","12:44:11","TXS2X08 Bonshaw","Long Rural","Weather",null,1,55,4.0619034079369601E-4,7.3852789235217402E-6,"N"]
["SUS631_37506","2015-03-22","18:21:07","COW102 Wyangala","Long Rural","Animal","Animal impact",1,78,5.7605175603469595E-4,7.3852789235217402E-6,"N"]
["SUS631_37553","2015-03-23","09:50:33","MRE2M35 Eastern Rural","Long Rural","Weather",null,1,438,3.2347521685025201E-3,7.3852789235217402E-6,"N"]
["SUS631_37574","2015-03-23","13:18:33","BNK24796 Islands","Short Rural","Asset failure","HV",3,280,1.5703987317160701E-3,5.60856689898597E-6,"N"]
["SUS631_37585","2015-03-23","17:29:43","DUN3B5 Rosebank","Short Rural","Weather",null,3,110,6.1694235888845703E-4,5.60856689898597E-6,"N"]
["SUS631_37632","2015-03-24","08:49:00","SLI3B8 Carrington St Nth","Short Rural","Planned",null,20,306,null,null,"N"]
["SUS631_37663","2015-03-24","09:25:45","BOO1012 Rye Pk","Long Rural","Weather",null,7,134.71428571428601,6.9643180248810102E-3,5.16969524646522E-5,"N"]
["SUS631_37673","2015-03-24","09:30:18","MAH3B4 Nth Bega","Short Rural","Planned",null,5,242,null,null,"N"]
["SUS631_37711","2015-03-24","10:48:17","NME8B3 Trangie Rural","Long Rural","Weather",null,1,203,1.49921162147491E-3,7.3852789235217402E-6,"N"]
["SUS631_37742","2015-03-24","14:40:12","BTS8B4 Wallangra/Bukkulla","Long Rural","Vegetation","Blow-in/Fall-in",19,143.36842105263199,2.0117499787673201E-2,1.40320299546913E-4,"N"]
["SUS631_37760","2015-03-24","16:19:18","GID22 Rural Nth/Sth/West","Long Rural","Other",null,1,178,1.31457964838687E-3,7.3852789235217402E-6,"N"]
["SUS631_37796","2015-03-24","19:00:51","KTL3B1 Kootingal","Short Rural","Weather",null,564,291,0.30683347790972398,1.05441057700936E-3,"N"]
["SUS631_37821","2015-03-24","20:10:00","GDH6501 M65 Wandobah","Short Rural","Weather",null,4,1110,8.3006790104992404E-3,7.4780891986479603E-6,"N"]
["SUS631_37868","2015-03-25","08:30:16","HIL1401 Upper Lachlan","Long Rural","Planned",null,53,298,null,null,"N"]
["SUS631_37899","2015-03-25","09:08:00","MWN3B1 Uki","Long Rural","Asset failure","LV",1,81,5.9820759280526095E-4,7.3852789235217402E-6,"N"]
["SUS631_37923","2015-03-25","09:31:00","CHI2526 Olympic Hwy","Short Rural","Planned",null,63,336.33333333333297,null,null,"N"]
["SUS631_37947","2015-03-25","10:26:48","BGA2K17 Bingara Town/Keera Rd","Short Rural","Vegetation","Blow-in/Fall-in",1,281,5.2533576620501896E-4,1.8695222996619901E-6,"N"]
["SUS631_37978","2015-03-25","16:33:41","CHS3B3 Sth Jetty No.1","Urban","Other",null,1,384,2.0058084870771598E-3,5.2234596017634396E-6,"N"]
["SUS631_37996","2015-03-26","08:00:00","TPT3B2 Telegraph Pt","Short Rural","Planned",null,20,534,null,null,"N"]
["SUS631_38018","2015-03-26","08:49:30","WWA8B2 M7 Yarrie Lake","Short Rural","Animal","Animal impact",1,311,5.8142143519487898E-4,1.8695222996619901E-6,"N"]
["SUS631_38057","2015-03-26","09:22:39","DNO122 Craboon","Long Rural","Asset failure","HV",1,360,2.6587004124678298E-3,7.3852789235217402E-6,"N"]
["SUS631_38075","2015-03-26","09:42:00","LOC3794 Lockhart","Long Rural","Planned",null,1,262,null,null,"N"]
["SUS631_38106","2015-03-26","12:02:00","WGA3B5 East Woolgoolga","Short Rural","Planned",null,105,108,null,null,"N"]
["SUS631_38145","2015-03-26","19:25:51","AVE3B3 Wollongbar","Short Rural","Weather",null,4,357,2.6696778439173202E-3,7.4780891986479603E-6,"N"]
["SUS631_38183","2015-03-27","06:17:04","CSO3B7 Tatham/Clovass","Short Rural","Weather",null,2,206,7.7024318746073996E-4,3.7390445993239802E-6,"N"]
["SUS631_38214","2015-03-27","09:00:00","SMN3B3 Kinchella","Short Rural","Planned",null,22,278,null,null,"N"]
["SUS631_38232","2015-03-27","09:14:00","MUD82 Abattoir No.1","Short Rural","Planned",null,11,186,null,null,"N"]
["SUS631_38268","2015-03-27","10:17:00","BJN8B2 M9 Carbeen/Merah Nth","Long Rural","Planned",null,1,227,null,null,"N"]
["SUS631_38280","2015-03-27","12:33:00","RGL3B8 Kalang/Valla","Short Rural","Planned",null,6,203,null,null,"N"]
["SUS631_38311","2015-03-28","07:39:00","BAL3B5 Ballina East No.2","Short Rural","Asset failure","LV",1,102,1.9069127456552301E-4,1.8695222996619901E-6,"N"]
["SUS631_38342","2015-03-28","20:03:41","KTE3B6 Cundletown","Short Rural","Asset failure","HV",1477,169.24238320920799,0.46732635876880702,2.76128443660076E-3,"N"]
["SUS631_38367","2015-03-29","11:38:08","TUM12 Ournie","Short Rural","Asset failure","HV",3,104,5.8329095749454099E-4,5.60856689898597E-6,"N"]
["SUS631_38390","2015-03-30","08:07:31","BTS8B11 Inverell West","Short Rural","Other",null,1,178,3.3277496933983402E-4,1.8695222996619901E-6,"N"]
["SUS631_38421","2015-03-30","09:36:00","DNO142 Merrygoen","Long Rural","Weather",null,4,34,1.00439793359896E-3,2.9541115694087002E-5,"N"]
["SUS631_38468","2015-03-30","13:28:00","COO102 Northern Rural","Long Rural","Other",null,1,88,6.4990454526991405E-4,7.3852789235217402E-6,"N"]
["SUS631_38490","2015-03-31","06:52:21","KKN3B1 Coaldale","Short Rural","Animal","Animal impact",257,145.832684824903,7.0067826269031699E-2,4.8046723101313201E-4,"N"]
["SUS631_38516","2015-03-31","09:03:00","PKT3B2 Parkes Town No.2","Short Rural","Planned",null,38,1290.6315789473699,null,null,"N"]
["SUS631_38547","2015-03-31","09:38:03","CHI2526 Olympic Hwy","Short Rural","Planned",null,27,301.48148148148101,null,null,"N"]
["SUS631_38578","2015-03-31","13:26:37","HOL1853 Young St","Short Rural","Asset failure","LV",1,145,2.71080733450989E-4,1.8695222996619901E-6,"N"]
["SUS631_38617","2015-04-01","08:43:02","WGM4981 Mt George/Elands","Long Rural","Animal","Animal impact",10,104,7.6806900804626101E-3,7.3852789235217406E-5,"N"]
["SUS631_38626","2015-04-01","09:08:22","FIN32 Finley Town","Urban","Other",null,1,159,8.3053007668038698E-4,5.2234596017634396E-6,"N"]
["SUS631_38673","2015-04-01","10:04:00","GDI8B5 Macintyre Gin","Short Rural","Planned",null,40,186,null,null,"N"]
["SUS631_38704","2015-04-01","14:34:55","WGN52 Nth","Short Rural","Asset failure","LV",61,96,1.09479225868206E-2,1.14040860279381E-4,"N"]
["SUS631_38712","2015-04-01","15:42:53","WBN3B7 Gap Rd","Short Rural","Asset failure","Subtransmission",16,91,2.7220244683078599E-3,2.9912356794591801E-5,"N"]
["SUS631_38752","2015-04-02","09:05:00","PYB32 Forbes","Long Rural","Planned",null,4,118,null,null,"N"]
["SUS631_38783","2015-04-02","09:51:00","BRE8B2 M51 Goodooga","Long Rural","Planned",null,3,140,null,null,"N"]
["SUS631_38814","2015-04-02","15:14:22","GGG22 Tallawang","Short Rural","Asset failure","HV",2,104,3.8886063832969399E-4,3.7390445993239802E-6,"N"]
["SUS631_38839","2015-04-02","22:56:15","BNK24796 Islands","Short Rural","Asset failure","HV",2,84,3.14079746343214E-4,3.7390445993239802E-6,"N"]
["SUS631_38862","2015-04-03","14:06:52","QSH5292 Cameron Rd","Urban","Weather",null,36,190,3.5728463676061903E-2,1.8804454566348399E-4,"N"]
["SUS631_38880","2015-04-03","18:46:57","PKT3B4 Cooks Myall","Long Rural","Weather",null,4,31,9.1577458651669595E-4,2.9541115694087002E-5,"N"]
["SUS631_38911","2015-04-04","08:45:24","CRA52 Howlong","Short Rural","Animal","Animal impact",2,115,4.2999012892225801E-4,3.7390445993239802E-6,"N"]
["SUS631_38962","2015-04-04","19:01:27","BTS8B5 Kings Plains","Long Rural","Weather",null,133,29,2.8485020808023401E-2,9.8224209682839202E-4,"N"]
["SUS631_38988","2015-04-05","07:39:01","LCO22 Lake Cargelligo","Long Rural","Asset failure","LV",1,134,9.8962737575191404E-4,7.3852789235217402E-6,"N"]
["SUS631_39019","2015-04-05","21:08:03","CLY1523 Coleambally 132 - Darlington Point (Bore Pumpers)","Short Rural","Asset failure","HV",2,101,3.77643504531722E-4,3.7390445993239802E-6,"N"]
["SUS631_39050","2015-04-06","08:30:09","WGN32 Geurie","Long Rural","Asset failure","HV",1,105,7.7545428696978297E-4,7.3852789235217402E-6,"N"]
["SUS631_39061","2015-04-06","10:10:42","NME8B1 Rural Sth","Long Rural","Weather",null,2,39,5.7605175603469595E-4,1.4770557847043501E-5,"N"]
["SUS631_39098","2015-04-06","14:31:17","WGN32 Geurie","Long Rural","Weather",null,2,1263,1.86552145608159E-2,1.4770557847043501E-5,"N"]
["SUS631_39116","2015-04-06","15:31:24","ARD No.1 Line 141 Nth","Short Rural","Weather",null,1,563,1.0525410547097E-3,1.8695222996619901E-6,"N"]
["SUS631_39147","2015-04-06","16:41:12","YOU3B9 Weedallion","Long Rural","Weather",null,2,116,1.7133847102570399E-3,1.4770557847043501E-5,"N"]
["SUS631_39184","2015-04-06","17:51:54","TMT62 Gocup","Long Rural","Weather",null,1,446,3.2938343998906998E-3,7.3852789235217402E-6,"N"]
["SUS631_39195","2015-04-06","18:29:00","GDH6901 M69 Emerald Hill","Short Rural","Weather",null,1,896,1.6750919804971399E-3,1.8695222996619901E-6,"N"]
["SUS631_39226","2015-04-06","19:45:00","PPM3B2 Coomba Park","Short Rural","Asset failure","LV",1,201,3.7577398223205999E-4,1.8695222996619901E-6,"N"]
["SUS631_39273","2015-04-06","22:45:04","NBI8B2 M18 Myall Vale","Short Rural","Weather",null,1,49,9.1606592683437501E-5,1.8695222996619901E-6,"N"]
["SUS631_39283","2015-04-07","00:25:00","OKY3B2 Jeogla","Short Rural","Weather",null,142,548,0.14547874727049701,2.6547216655200298E-4,"N"]
["SUS631_39334","2015-04-07","07:30:00","GRN3B3 Grafton Rural","Short Rural","Weather",null,1,2,3.7390445993239802E-6,1.8695222996619901E-6,"N"]
["SUS631_39352","2015-04-07","08:15:22","CDN42 Burcher","Long Rural","Weather",null,2,476,7.0307855351927004E-3,1.4770557847043501E-5,"N"]
["SUS631_39383","2015-04-07","09:24:04","NME8B1 Rural Sth","Long Rural","Asset failure","HV",10,38,2.8064059909382599E-3,7.3852789235217406E-5,"N"]
["SUS631_39406","2015-04-07","10:10:11","MOA25 Moama East","Short Rural","Animal","Animal impact",1,67,1.25257994077353E-4,1.8695222996619901E-6,"N"]
["SUS631_39431","2015-04-07","11:39:42","FBS102 Rural East No.2","Short Rural","Weather",null,2,98,3.6642637073375001E-4,3.7390445993239802E-6,"N"]
["SUS631_39462","2015-04-07","13:04:29","ORI831 Abattoirs","Short Rural","Weather",null,1,161,3.0099309024557999E-4,1.8695222996619901E-6,"N"]
["SUS631_39509","2015-04-07","15:12:03","ORI831 Abattoirs","Short Rural","Weather",null,183,77.836065573770497,2.6629475636385399E-2,3.4212258083814401E-4,"N"]
["SUS631_39533","2015-04-07","17:18:05","MUA5005 East","Long Rural","Asset failure","HV",264,34,6.6290263617531195E-2,1.94971363580974E-3,"N"]
["SUS631_39541","2015-04-07","17:39:38","BUN3B1 Wamboin","Long Rural","Weather",null,2,67,9.8962737575191404E-4,1.4770557847043501E-5,"N"]
["SUS631_39588","2015-04-08","06:57:51","NARF2 Tilba","Short Rural","Vegetation","Blow-in/Fall-in",1,120,2.2434267595943899E-4,1.8695222996619901E-6,"N"]
["SUS631_39619","2015-04-08","09:01:00","GID12 Gilgandra Town No.1","Urban","Planned",null,1,332,null,null,"N"]
["SUS631_39628","2015-04-08","09:03:00","ALU32 Lavington West/Jindera","Long Rural","Planned",null,3,225,null,null,"N"]
["SUS631_39667","2015-04-08","10:02:00","WGN32 Geurie","Long Rural","Other",null,28,128,2.6468839661901899E-2,2.0678780985860899E-4,"N"]
["SUS631_39698","2015-04-08","13:21:14","RGL3B5 Urunga No.1","Short Rural","Asset failure","LV",1,107,2.0003888606383299E-4,1.8695222996619901E-6,"N"]
["SUS631_39716","2015-04-08","16:01:57","MRE2M19 Moree Western Town","Short Rural","Asset failure","LV",54,42,4.2400765756333897E-3,1.00954204181747E-4,"N"]
["SUS631_39755","2015-04-09","08:54:00","TFD102 No.10","Short Rural","Planned",null,2,37,null,null,"N"]
["SUS631_39777","2015-04-09","09:06:22","BOM8B3 Southern Rural","Long Rural","Weather",null,2,69,1.019168491446E-3,1.4770557847043501E-5,"N"]
["SUS631_39824","2015-04-09","10:54:46","HEN3B1 Yerong Ck","Short Rural","Asset failure","LV",1,51,9.5345637282761504E-5,1.8695222996619901E-6,"N"]
["SUS631_39855","2015-04-09","14:31:00","BBA3B1 Burindi","Long Rural","Weather",null,3,4,8.8623347082260903E-5,2.2155836770565199E-5,"N"]
["SUS631_39882","2015-04-10","02:52:26","CLN3B4 Ganmain 93 Line","Short Rural","Overloads",null,1,123,2.2995124285842499E-4,1.8695222996619901E-6,"N"]
["SUS631_39903","2015-04-10","08:54:00","ELI3B8 Bexhill","Short Rural","Weather",null,2,1,3.7390445993239802E-6,3.7390445993239802E-6,"N"]
["SUS631_39934","2015-04-10","09:45:00","RBV Euston","Long Rural","Planned",null,1,60,null,null,"N"]
["SUS631_39952","2015-04-10","10:58:00","BRE8B7 M53 Collerina","Long Rural","Planned",null,1,65,null,null,"N"]
["SUS631_39977","2015-04-10","19:02:13","NARF2 Tilba","Short Rural","Other",null,1,79,1.4769226167329701E-4,1.8695222996619901E-6,"N"]
["SUS631_40013","2015-04-11","20:30:50","SMN3B3 Kinchella","Short Rural","Asset failure","LV",3,183,1.02636774251443E-3,5.60856689898597E-6,"N"]
["SUS631_40031","2015-04-12","08:30:00","BAL3B10 Airport","Urban","Planned",null,18,421,null,null,"N"]
["SUS631_40062","2015-04-12","15:33:31","NVE42 Warren Rural Nth","Long Rural","Asset failure","HV",37,140,3.82557448238426E-2,2.7325532017030501E-4,"N"]
["SUS631_40104","2015-04-13","09:16:00","WGM4981 Mt George/Elands","Long Rural","Planned",null,3,148,null,null,"N"]
["SUS631_40139","2015-04-13","10:53:00","TDL8B2 Tullamore/Tottenham","Long Rural","Planned",null,18,292,null,null,"N"]
["SUS631_40170","2015-04-14","00:46:00","TMT12 Tumut Nth","Urban","Planned",null,30,259,null,null,"N"]
["SUS631_40188","2015-04-14","08:39:00","PHS3B3 Erskine St OH Nth - Nth Dubbo","Short Rural","Planned",null,56,328,null,null,"N"]
["SUS631_40227","2015-04-14","09:15:00","RKF3B5 King Creek","Short Rural","Planned",null,60,255,null,null,"N"]
["SUS631_40236","2015-04-14","09:31:00","CNB42 Rural Nth","Long Rural","Planned",null,1,189,null,null,"N"]
["SUS631_40267","2015-04-14","11:37:51","MEN8B1 Menindee","Short Rural","Weather",null,1,1519,2.8398043731865598E-3,1.8695222996619901E-6,"N"]
["SUS631_40298","2015-04-14","16:02:00","CBB42 Tambar Springs","Long Rural","Weather",null,5,662.6,2.4467429073627499E-2,3.6926394617608703E-5,"N"]
["SUS631_40326","2015-04-15","08:30:00","OXY3B1 Hallsville","Short Rural","Planned",null,1,375,null,null,"N"]
["SUS631_40346","2015-04-15","09:02:00","DTN24 Mourquong","Short Rural","Planned",null,2,388,null,null,"N"]
["SUS631_40377","2015-04-15","09:34:00","MAH3B6 Tathra 1","Short Rural","Planned",null,39,151,null,null,"N"]
["SUS631_40424","2015-04-15","16:12:07","BOO1012 Rye Pk","Long Rural","Weather",null,9,145,9.6377889951958801E-3,6.6467510311695705E-5,"N"]
["SUS631_40449","2015-04-15","17:43:00","MDA52 Monument","Short Rural","Weather",null,1,138,2.57994077353355E-4,1.8695222996619901E-6,"N"]
["SUS631_40472","2015-04-15","18:27:51","ORW3B1 Manning Rd","Short Rural","Weather",null,1,188,3.51470192336454E-4,1.8695222996619901E-6,"N"]
["SUS631_40503","2015-04-15","19:49:36","SWT12 Stewarts Mt","Long Rural","Weather",null,69,252.231884057971,0.12853339438497199,5.0958424572299999E-4,"N"]
["SUS631_40534","2015-04-16","08:30:00","ALU22 West Albury/Howlong","Short Rural","Planned",null,3,60,null,null,"N"]
["SUS631_40548","2015-04-16","08:45:47","CRO5532 Binda Bigga","Long Rural","Weather",null,1,113,8.3453651835795702E-4,7.3852789235217402E-6,"N"]
["SUS631_40582","2015-04-16","09:20:00","BAR22 Wakool","Long Rural","Planned",null,12,287.5,null,null,"N"]
["SUS631_40613","2015-04-16","09:54:56","ORW3B1 Manning Rd","Short Rural","Weather",null,1,51,9.5345637282761504E-5,1.8695222996619901E-6,"N"]
["SUS631_40660","2015-04-16","13:05:00","WNA2V05 Bullarah","Short Rural","Asset failure","LV",1,40,7.4780891986479605E-5,1.8695222996619901E-6,"N"]
["SUS631_40671","2015-04-16","15:37:00","HIL1111 Hillston 132 - Merriwagga","Long Rural","Other",null,4,72,2.1269603299742599E-3,2.9541115694087002E-5,"N"]
["SUS631_40708","2015-04-17","08:30:00","ALU32 Lavington West/Jindera","Long Rural","Planned",null,1,180,null,null,"N"]
["SUS631_40739","2015-04-17","09:27:32","79C Griffith 132 - Darlington Point","Short Rural","Third party","Vehicle impact",8,244,3.6493075289402098E-3,1.49561783972959E-5,"N"]
["SUS631_40770","2015-04-17","13:02:25","BNG8B1 Alcheringa Drive","Long Rural","Asset failure","LV",3,85,1.88324612549804E-3,2.2155836770565199E-5,"N"]
["SUS631_40798","2015-04-17","18:33:16","JER32 Coleambally","Long Rural","Asset failure","Zone substation",305,11,2.4777610788415502E-2,2.2525100716741298E-3,"N"]
["SUS631_40818","2015-04-18","06:49:53","CRA22 Rural","Long Rural","Asset failure","HV",21,343.80952380952402,5.3321713827827001E-2,1.55090857393957E-4,"N"]
["SUS631_40836","2015-04-18","12:37:00","GLR3B1 Gloucester No.1","Urban","Planned",null,119,312,null,null,"N"]
["SUS631_40867","2015-04-19","01:01:15","CNB42 Rural Nth","Long Rural","Planned",null,475,108,null,null,"N"]
["SUS631_40893","2015-04-19","08:10:51","MUD42 Abattoir No.2","Long Rural","Asset failure","HV",5,207,7.6437636858450097E-3,3.6926394617608703E-5,"N"]
["SUS631_40944","2015-04-20","07:29:14","MRE2M38 Tareelaroi","Long Rural","Weather",null,1,745,5.5020327980236997E-3,7.3852789235217402E-6,"N"]
["SUS631_40975","2015-04-20","10:00:00","WGM4981 Mt George/Elands","Long Rural","Planned",null,3,258,null,null,"N"]
["SUS631_40977","2015-04-20","10:09:48","WTR2Z08 Poison Gate","Long Rural","Other",null,1,169,1.24811213807517E-3,7.3852789235217402E-6,"N"]
["SUS631_41020","2015-04-20","18:10:22","TDL8B2 Tullamore/Tottenham","Long Rural","Asset failure","LV",1,154,1.13733295422235E-3,7.3852789235217402E-6,"N"]
["SUS631_41054","2015-04-21","00:10:11","TEA3B1 North Arm Cove","Short Rural","Weather",null,385,3125.78441558442,2.2498336125153302,7.1976608536986595E-4,"Y"]
["SUS631_41072","2015-04-21","00:52:42","BRL20408 Deep Ck","Short Rural","Weather",null,2,6609,2.47113457569322E-2,3.7390445993239802E-6,"Y"]
["SUS631_41103","2015-04-21","05:45:36","CB 82574 Seaham","Short Rural","Vegetation","Blow-in/Fall-in",1,6154,1.1505040232119901E-2,1.8695222996619901E-6,"Y"]
["SUS631_41143","2015-04-21","08:10:12","MRN8B3 Marulan Town","Long Rural","Other",null,1,126,9.3054514436374E-4,7.3852789235217402E-6,"Y"]
["SUS631_41151","2015-04-21","08:31:21","IVA1325 Nth SWER","Long Rural","Planned",null,40,217,null,null,"Y"]
["SUS631_41182","2015-04-21","09:30:00","CLN3B2 Marrar 91 Line","Long Rural","Planned",null,3,270,null,null,"Y"]
["SUS631_41229","2015-04-21","14:07:42","JER12 Finley Rd","Long Rural","Weather",null,1,55,4.0619034079369601E-4,7.3852789235217402E-6,"Y"]
["SUS631_41242","2015-04-21","16:28:52","BBI2601 M26 Boggabri Town","Short Rural","Vegetation","Grow-in",1,52,9.7215159582423499E-5,1.8695222996619901E-6,"Y"]
["SUS631_41290","2015-04-22","09:00:00","SMN3B2 Smithtown/Gladstone","Short Rural","Planned",null,16,393,null,null,"N"]
["SUS631_41308","2015-04-22","09:13:00","HIL1117 Hillston 132 - Ivanhoe","Long Rural","Planned",null,4,157,null,null,"N"]
["SUS631_41339","2015-04-22","10:28:00","NBI8B6 Narrabri Town No.2","Short Rural","Asset failure","LV",68,344,4.3731865633693301E-2,1.27127516377015E-4,"N"]
["SUS631_41365","2015-04-22","13:54:00","OBR3B1 Industrial","Long Rural","Other",null,43,81,2.57229264906262E-2,3.17566993711435E-4,"N"]
["SUS631_41387","2015-04-22","17:26:00","CHS3B1 Toormina","Urban","Asset failure","HV",16,136,1.13662480934372E-2,8.3575353628214993E-5,"N"]
["SUS631_41418","2015-04-23","08:38:33","ALJ8B8 West Albury","Urban","Third party","Vehicle impact",1,83,4.3354714694636599E-4,5.2234596017634396E-6,"N"]
["SUS631_41465","2015-04-23","09:40:00","TAL1414 Talbingo Town","Short Rural","Planned",null,52,240,null,null,"N"]
["SUS631_41492","2015-04-23","12:26:47","EWE3B5 Bangalow","Short Rural","Asset failure","HV",2,131,4.8981484251144102E-4,3.7390445993239802E-6,"N"]
["SUS631_41497","2015-04-23","13:06:33","TEA3B4 Tea Gardens","Short Rural","Vegetation","Blow-in/Fall-in",1,2633,4.9224522150100201E-3,1.8695222996619901E-6,"N"]
["SUS631_41544","2015-04-24","09:00:00","CRO5512 Woodhouselee","Long Rural","Planned",null,6,342,null,null,"N"]
["SUS631_41575","2015-04-24","09:36:04","TXS3X06 Yelarbon","Long Rural","Planned",null,135,39.977777777777803,null,null,"N"]
["SUS631_41587","2015-04-24","10:00:00","79P Griffith 132 - Goolgowi","Long Rural","Planned",null,1,132,null,null,"N"]
["SUS631_41623","2015-04-24","13:18:48","GAN4951 West Ganmurra","Short Rural","Asset failure","HV",72,156,2.0998474469803501E-2,1.3460560557566301E-4,"N"]
["SUS631_41654","2015-04-25","08:00:32","LOC3786 Urana","Long Rural","Weather",null,7,66,3.4119988626670501E-3,5.16969524646522E-5,"N"]
["SUS631_41672","2015-04-25","10:35:15","TEA3B8 Hawks Nest","Short Rural","Vegetation","Blow-in/Fall-in",1,24,4.4868535191887801E-5,1.8695222996619901E-6,"N"]
["SUS631_41714","2015-04-25","14:23:49","CRO5522 Tuena Redground","Long Rural","Weather",null,1,54,3.9880506187017398E-4,7.3852789235217402E-6,"N"]
["SUS631_41733","2015-04-25","15:48:25","COBD2 Sth Cobargo","Long Rural","Weather",null,36,86,2.2864823547223301E-2,2.6587004124678298E-4,"N"]
["SUS631_41780","2015-04-25","18:32:45","COW32 Woodstock","Long Rural","Weather",null,780,26,0.149773456569021,5.7605175603469604E-3,"N"]
["SUS631_41782","2015-04-25","18:40:06","RAG3B6 Limekilns","Long Rural","Weather",null,3,297,6.58028352085787E-3,2.2155836770565199E-5,"N"]
["SUS631_41813","2015-04-26","06:19:47","FIN52 Tocumwal","Long Rural","Animal","Animal impact",4,102,3.0131938007968702E-3,2.9541115694087002E-5,"N"]
["SUS631_41859","2015-04-26","13:24:30","DTN25 Dareton","Short Rural","Weather",null,1,71,1.32736083276001E-4,1.8695222996619901E-6,"N"]
["SUS631_41890","2015-04-27","07:35:08","ALJ8B5 Kiewa St CBD","Urban","Vegetation","Grow-in",1,160,8.3575353628215004E-4,5.2234596017634396E-6,"N"]
["SUS631_41908","2015-04-27","09:06:37","MGI2U30 Curragundi","Long Rural","Planned",null,15,607.73333333333301,null,null,"N"]
["SUS631_41936","2015-04-27","11:20:10","GDM5422 Michelago","Long Rural","Asset failure","LV",1,64,4.7265785110539203E-4,7.3852789235217402E-6,"N"]
["SUS631_41969","2015-04-28","07:42:06","WLGR4236 Limestone","Short Rural","Animal","Animal impact",69,178,2.2961472884448601E-2,1.2899703867667701E-4,"N"]
["SUS631_41987","2015-04-28","08:48:33","BTH82 Lloyds Rd","Long Rural","Weather",null,3,88,1.94971363580974E-3,2.2155836770565199E-5,"N"]
["SUS631_42018","2015-04-28","09:33:33","CRO5512 Woodhouselee","Long Rural","Weather",null,19,84,1.1786905161940701E-2,1.40320299546913E-4,"N"]
["SUS631_42063","2015-04-28","16:46:41","HEN3B3 Henty","Long Rural","Asset failure","HV",29,114,2.4415732121162902E-2,2.1417308878213099E-4,"N"]
["SUS631_42095","2015-04-29","08:44:34","MCR3B1 Paterson","Short Rural","Weather",null,1,422,7.8893841045736004E-4,1.8695222996619901E-6,"N"]
["SUS631_42126","2015-04-29","09:48:18","BAR22 Wakool","Long Rural","Planned",null,9,287,null,null,"N"]
["SUS631_42144","2015-04-29","11:09:00","TSH3B2 Terranora Inlet","Urban","Asset failure","LV",1,95,4.9622866216752701E-4,5.2234596017634396E-6,"N"]
["SUS631_42158","2015-04-29","18:27:16","KTL3B2 Moonbi","Short Rural","Asset failure","LV",1,113,2.1125601986180499E-4,1.8695222996619901E-6,"N"]
["SUS631_42205","2015-04-30","09:00:03","MAH3B1 Tathra 2","Short Rural","Planned",null,302,307,null,null,"N"]
["SUS631_42223","2015-04-30","09:18:00","GID22 Rural Nth/Sth/West","Long Rural","Planned",null,1,212,null,null,"N"]
["SUS631_42254","2015-04-30","10:25:00","GDI8B6 Goondiwindi Town Sth","Urban","Asset failure","LV",1,267,1.3946637136708401E-3,5.2234596017634396E-6,"N"]
["SUS631_42285","2015-05-01","06:40:41","SFP3B3 Suffolk No.1","Short Rural","Animal","Animal impact",2,150,5.60856689898597E-4,3.7390445993239802E-6,"N"]
["SUS631_42302","2015-05-01","09:00:00","MUD92 Industrial","Short Rural","Planned",null,59,177,null,null,"N"]
["SUS631_42333","2015-05-01","10:11:29","MDI3B4 Blandford","Short Rural","Planned",null,39,214,null,null,"N"]
["SUS631_42380","2015-05-01","19:34:24","BBS3B3 Pine Ck Way","Short Rural","Asset failure","HV",8,51,7.6276509826209203E-4,1.49561783972959E-5,"N"]
["SUS631_42408","2015-05-01","23:20:17","MUL3B2 Main Arm","Short Rural","Vegetation","Blow-in/Fall-in",87,899.43678160919501,0.14629198947085001,1.62648440070593E-4,"N"]
["SUS631_42428","2015-05-02","06:22:17","MWN3B1 Uki","Long Rural","Weather",null,2,309,4.5641023747364402E-3,1.4770557847043501E-5,"N"]
["SUS631_42459","2015-05-02","09:25:25","MUL3B3 Mullumbimby West","Short Rural","Vegetation","Blow-in/Fall-in",9,206,3.4660943435733298E-3,1.68257006969579E-5,"N"]
["SUS631_42490","2015-05-02","19:50:10","RAG3B6 Limekilns","Long Rural","Asset failure","LV",5,78,2.8802587801734802E-3,3.6926394617608703E-5,"N"]
["SUS631_42507","2015-05-03","09:00:00","WWL8B1 West Wyalong Nth East Town","Short Rural","Planned",null,130,297.39999999999998,null,null,"N"]
["SUS631_42538","2015-05-04","00:05:27","NVE42 Warren Rural Nth","Long Rural","Animal","Animal impact",5,82,3.0279643586439199E-3,3.6926394617608703E-5,"N"]
["SUS631_42569","2015-05-04","09:00:00","WHI716 Stanbridge","Short Rural","Other",null,5,141,1.3180132212617E-3,9.3476114983099506E-6,"N"]
["SUS631_42587","2015-05-04","09:47:05","CNB42 Rural Nth","Long Rural","Planned",null,99,308.414141414141,null,null,"N"]
["SUS631_42630","2015-05-05","07:26:44","ORS3B5 Lords Place","Urban","Asset failure","LV",1,70,3.65642172123441E-4,5.2234596017634396E-6,"N"]
["SUS631_42664","2015-05-05","09:06:20","NSK3B4 Cochrane St","Urban","Planned",null,132,235,null,null,"N"]
["SUS631_42695","2015-05-05","10:28:00","MBL122 Stuart Town","Long Rural","Weather",null,4,205,6.0559287172878302E-3,2.9541115694087002E-5,"N"]
["SUS631_42726","2015-05-05","16:43:01","ORS3B2 Jeager Ave","Short Rural","Asset failure","HV",2,97,3.6268732613442599E-4,3.7390445993239802E-6,"N"]
["SUS631_42757","2015-05-06","08:30:00","BLH3B3 Bulahdelah Central/Wootton/Seal Rocks","Long Rural","Planned",null,1,338,null,null,"N"]
["SUS631_42774","2015-05-06","09:00:00","CPM3B3 Livingstone Rd","Short Rural","Planned",null,205,225,null,null,"N"]
["SUS631_42792","2015-05-06","09:26:52","RGL3B7 Bellingen Rural","Short Rural","Vegetation","Grow-in",1,246,4.5990248571684998E-4,1.8695222996619901E-6,"N"]
["SUS631_42823","2015-05-06","12:38:22","CUD3B3 Duranbah","Short Rural","Other",null,540,2,2.0190840836349501E-3,1.0095420418174701E-3,"N"]
["SUS631_42852","2015-05-07","02:38:13","GDI4B1 Waggamba East","Long Rural","Asset failure","HV",21,606.71428571428601,9.4095838764590503E-2,1.55090857393957E-4,"N"]
["SUS631_42900","2015-05-07","09:15:08","ESH3B1 Kiah/Nethercote","Short Rural","Planned",null,207,294.02898550724598,null,null,"N"]
["SUS631_42931","2015-05-07","10:01:59","KOR23 Speewa","Short Rural","Planned",null,21,305,null,null,"N"]
["SUS631_42933","2015-05-07","10:04:53","MCV3B4 Bowraville Town","Short Rural","Third party","Fire",1,88,1.64517962370255E-4,1.8695222996619901E-6,"N"]
["SUS631_42979","2015-05-08","09:00:00","SMN3B1 Yarrahapinni/Frederickton","Short Rural","Planned",null,2,145,null,null,"N"]
["SUS631_43010","2015-05-08","09:40:00","JUN1 Illabo 31/32 Lines","Long Rural","Planned",null,3,185,null,null,"N"]
["SUS631_43028","2015-05-08","10:28:00","TFD32 No.3","Long Rural","Planned",null,1,31,null,null,"N"]
["SUS631_43059","2015-05-09","02:49:37","GRS3B3 Gresford Rd","Short Rural","Animal","Animal impact",9,406,6.8312344829649096E-3,1.68257006969579E-5,"N"]
["SUS631_43102","2015-05-10","12:09:15","MRE2M38 Tareelaroi","Long Rural","Third party","Vehicle impact",113,58,4.8403118064761497E-2,8.3453651835795702E-4,"N"]
["SUS631_43107","2015-05-10","13:10:34","TMT62 Gocup","Long Rural","Animal","Animal impact",1,165,1.2185710223810899E-3,7.3852789235217402E-6,"N"]
["SUS631_43138","2015-05-11","08:40:00","PPM3B4 Pacific Palms","Short Rural","Planned",null,18,150,null,null,"N"]
["SUS631_43169","2015-05-11","09:48:30","CBR42 Margretvale","Long Rural","Planned",null,6,259,null,null,"N"]
["SUS631_43201","2015-05-11","14:22:56","CBB42 Tambar Springs","Long Rural","Animal","Animal impact",1,1143,8.4413738095853504E-3,7.3852789235217402E-6,"N"]
["SUS631_43246","2015-05-12","09:00:00","RGL3B7 Bellingen Rural","Short Rural","Vegetation","Grow-in",17,221.470588235294,7.0387514582273903E-3,3.1781879094253799E-5,"N"]
["SUS631_43264","2015-05-12","09:13:00","PKT3B2 Parkes Town No.2","Short Rural","Planned",null,21,237,null,null,"N"]
["SUS631_43295","2015-05-12","10:07:00","SWT12 Stewarts Mt","Long Rural","Planned",null,26,207,null,null,"N"]
["SUS631_43324","2015-05-12","16:40:36","ALU22 West Albury/Howlong","Short Rural","Animal","Animal impact",66,65,8.0202506655499394E-3,1.2338847177769099E-4,"N"]
["SUS631_43343","2015-05-13","08:33:00","LHD3B4 Knockrow","Short Rural","Planned",null,13,362.84615384615398,null,null,"N"]
["SUS631_43374","2015-05-13","09:14:03","STR3B2 Wards River","Short Rural","Planned",null,77,527.70129870129904,null,null,"N"]
["SUS631_43392","2015-05-13","09:31:08","HOL1843 Holbrook Nth","Long Rural","Planned",null,39,374.87179487179498,null,null,"N"]
["SUS631_43423","2015-05-13","16:14:57","TMT62 Gocup","Long Rural","Third party","Other",1,30,2.2155836770565199E-4,7.3852789235217402E-6,"N"]
["SUS631_43453","2015-05-14","08:44:00","TXS3X06 Yelarbon","Long Rural","Planned",null,1,146,null,null,"N"]
["SUS631_43500","2015-05-14","09:23:01","CBL3B1 Premer","Long Rural","Planned",null,17,167,null,null,"N"]
["SUS631_43531","2015-05-14","10:33:00","BAL3B3 Ballina Central No.2","Urban","Other",null,1,297,1.5513675017237399E-3,5.2234596017634396E-6,"N"]
["SUS631_43546","2015-05-14","14:03:00","ALU32 Lavington West/Jindera","Long Rural","Asset failure","HV",2,58,8.5669235512852201E-4,1.4770557847043501E-5,"N"]
["SUS631_43579","2015-05-15","08:50:32","BNY3B2 Blayney Town","Short Rural","Other",null,1,61,1.14040860279381E-4,1.8695222996619901E-6,"N"]
["SUS631_43610","2015-05-15","09:29:00","ALU32 Lavington West/Jindera","Long Rural","Planned",null,9,172,null,null,"N"]
["SUS631_43628","2015-05-15","09:44:00","OBR3B7 Jenolan Caves","Short Rural","Planned",null,1,50,null,null,"N"]
["SUS631_43673","2015-05-16","05:24:23","BOM8B2 Nimmitabel","Long Rural","Third party","Fire",1,17,1.2554974169987001E-4,7.3852789235217402E-6,"N"]
["SUS631_43689","2015-05-16","09:00:00","GLR3B6 Gloucester No.2","Urban","Planned",null,257,158,null,null,"N"]
["SUS631_43736","2015-05-17","14:54:00","GYA8K1 Wandsworth","Long Rural","Asset failure","HV",7,23,1.1890299066870001E-3,5.16969524646522E-5,"N"]
["SUS631_43738","2015-05-17","17:30:08","ORS3B2 Jeager Ave","Short Rural","Asset failure","HV",5,74,6.9172325087493605E-4,9.3476114983099506E-6,"N"]
["SUS631_43768","2015-05-18","09:00:00","OKY3B1 Wollomombi","Short Rural","Planned",null,4,380,null,null,"N"]
["SUS631_43815","2015-05-18","12:07:00","CRO5522 Tuena Redground","Long Rural","Asset failure","HV",26,42,8.0647245844857503E-3,1.9201725201156499E-4,"N"]
["SUS631_43846","2015-05-19","08:45:00","CFN3B13 Karangi Dam","Short Rural","Planned",null,16,286,null,null,"N"]
["SUS631_43864","2015-05-19","09:02:00","GDH8B1 M70 Industrial/CBD","Short Rural","Planned",null,57,328,null,null,"N"]
["SUS631_43895","2015-05-19","09:51:00","OXY3B3 Alexandra/Fiona","Short Rural","Planned",null,71,261,null,null,"N"]
["SUS631_43925","2015-05-19","12:46:01","HAN3B4 Hanwood Ave","Short Rural","Weather",null,3,129,7.2350512996918997E-4,5.60856689898597E-6,"N"]
["SUS631_43943","2015-05-19","14:38:24","ALU32 Lavington West/Jindera","Long Rural","Weather",null,4,67,1.9792547515038298E-3,2.9541115694087002E-5,"N"]
["SUS631_43974","2015-05-19","17:10:54","YEN3B6 East Mirrool","Short Rural","Weather",null,1,218,4.0755586132631402E-4,1.8695222996619901E-6,"N"]
["SUS631_44022","2015-05-20","06:26:51","EUL52 Rural Sth","Long Rural","Weather",null,1,178,1.31457964838687E-3,7.3852789235217402E-6,"N"]
["SUS631_44051","2015-05-20","08:33:00","HAY2036 East Rural","Short Rural","Planned",null,46,339.93478260869603,null,null,"N"]
["SUS631_44053","2015-05-20","08:34:00","WGM4981 Mt George/Elands","Long Rural","Planned",null,19,266,null,null,"N"]
["SUS631_44100","2015-05-20","09:30:00","CPM3B4 Major Innes","Short Rural","Planned",null,1,15,null,null,"N"]
["SUS631_44117","2015-05-20","10:03:18","TPT3B2 Telegraph Pt","Short Rural","Planned",null,69,195,null,null,"N"]
["SUS631_44161","2015-05-20","18:12:00","COBD2 Sth Cobargo","Long Rural","Weather",null,40,90,2.65870041246783E-2,2.9541115694087E-4,"N"]
["SUS631_44179","2015-05-21","04:14:49","DNO112 Dunedoo No.2","Long Rural","Weather",null,46,359.86956521739103,0.122255907299979,3.3972283048199999E-4,"N"]
["SUS631_44210","2015-05-21","09:01:26","MRN8B3 Marulan Town","Long Rural","Planned",null,123,349.89430894308902,null,null,"N"]
["SUS631_44244","2015-05-21","10:15:00","MWA8B1 Barooga","Short Rural","Planned",null,47,263,null,null,"N"]
["SUS631_44258","2015-05-21","14:43:00","FFD3381 Nabiac","Long Rural","Asset failure","HV",33,81,1.97408505625736E-2,2.4371420447621801E-4,"N"]
["SUS631_44289","2015-05-22","06:48:38","MRE2M34 Southern Rural","Long Rural","Weather",null,1,256,1.8906314044215701E-3,7.3852789235217402E-6,"N"]
["SUS631_44336","2015-05-22","09:38:00","MDA42 West","Short Rural","Planned",null,26,162,null,null,"N"]
["SUS631_44367","2015-05-22","14:00:00","OBR3B2 Black Springs","Long Rural","Planned",null,73,22,null,null,"N"]
["SUS631_44384","2015-05-22","20:46:57","MCR3B1 Paterson","Short Rural","Asset failure","HV",42,151,1.1856510424456301E-2,7.8519936585803594E-5,"N"]
["SUS631_44415","2015-05-23","13:35:47","ORN3B7 Peisley St Sth","Urban","Other",null,33,54,9.3082050103424508E-3,1.72374166858194E-4,"N"]
["SUS631_44446","2015-05-24","09:02:00","CSO3B6 Casino East","Short Rural","Planned",null,308,409.08441558441598,null,null,"N"]
["SUS631_44466","2015-05-25","00:48:14","GDG3B2 Tumblong","Short Rural","Animal","Animal impact",6,60,6.7302802787831705E-4,1.1217133797971899E-5,"N"]
["SUS631_44494","2015-05-25","09:00:44","MRH3B2 McMahons Reef","Short Rural","Planned",null,40,357.67500000000001,null,null,"N"]
["SUS631_44525","2015-05-25","10:05:00","MYT3B7 Bergalia","Short Rural","Planned",null,13,279,null,null,"N"]
["SUS631_44543","2015-05-25","12:41:19","BUN3B3 Gundaroo Rd","Long Rural","Other",null,2,110,1.6247613631747799E-3,1.4770557847043501E-5,"N"]
["SUS631_44589","2015-05-26","08:36:00","HAT42 Hay 132 - Carrathool","Long Rural","Planned",null,1,370,null,null,"N"]
["SUS631_44620","2015-05-26","09:19:00","BRD22 No.2 Moulamein","Long Rural","Planned",null,2,149,null,null,"N"]
["SUS631_44651","2015-05-26","10:17:00","SWT12 Stewarts Mt","Long Rural","Planned",null,1,201,null,null,"N"]
["SUS631_44682","2015-05-26","18:50:00","LIU3B4 Base Hospital","Urban","Asset failure","LV",1,67,3.4997179331815002E-4,5.2234596017634396E-6,"N"]
["SUS631_44688","2015-05-27","03:50:00","WGA3B5 East Woolgoolga","Short Rural","Asset failure","LV",2,119,4.4494630731955402E-4,3.7390445993239802E-6,"N"]
["SUS631_44730","2015-05-27","09:09:00","EUL32 Dubbo Nth/East Town","Short Rural","Planned",null,112,266,null,null,"N"]
["SUS631_44761","2015-05-27","10:05:00","BAL3B12 Ballina Central No.3","Urban","Planned",null,72,43,null,null,"N"]
["SUS631_44779","2015-05-27","10:45:59","MAH3B5 Factory","Urban","Asset failure","Subtransmission",249,3,3.90192432251729E-3,1.3006414408391E-3,"N"]
["SUS631_44811","2015-05-27","17:15:00","GDH8B7 M74 Blackjack Colliery","Short Rural","Asset failure","LV",1,85,1.5890939547126901E-4,1.8695222996619901E-6,"N"]
["SUS631_44856","2015-05-28","09:00:00","GYA3B4 East of Guyra","Long Rural","Planned",null,11,126,null,null,"N"]
["SUS631_44858","2015-05-28","09:00:00","TEM2 No.2 Lines 21/22/23/24/25","Long Rural","Planned",null,4,338,null,null,"N"]
["SUS631_44889","2015-05-28","09:23:41","GDI4B2 Waggamba Nth","Long Rural","Planned",null,65,337,null,null,"N"]
["SUS631_44938","2015-05-28","15:06:02","DUN3B2 Bullfrog Ck","Short Rural","Third party","Vehicle impact",17,165,5.2440100505518799E-3,3.1781879094253799E-5,"N"]
["SUS631_44966","2015-05-29","08:40:00","GLR3B3 Invergordon","Short Rural","Planned",null,78,338,null,null,"N"]
["SUS631_44984","2015-05-29","09:03:00","BOO1042 Kenyu","Long Rural","Planned",null,7,132,null,null,"N"]
["SUS631_45015","2015-05-29","10:28:00","EUL72 Sth Dubbo","Short Rural","Planned",null,51,121,null,null,"N"]
["SUS631_45033","2015-05-29","13:45:35","CSO3B2 Kyogle Rd","Long Rural","Asset failure","LV",1,196,1.44751466901026E-3,7.3852789235217402E-6,"N"]
["SUS631_45063","2015-05-30","08:50:00","GDM5422 Michelago","Long Rural","Planned",null,2,242,null,null,"N"]
["SUS631_45094","2015-05-30","17:29:16","LCO32 Brotherony","Short Rural","Asset failure","LV",1,49,9.1606592683437501E-5,1.8695222996619901E-6,"N"]
["SUS631_45126","2015-05-31","09:16:00","ASM3B7 Chaston St","Urban","Planned",null,9,322,null,null,"N"]
["SUS631_45171","2015-06-01","09:01:00","TFD102 No.10","Short Rural","Planned",null,17,164.41176470588201,null,null,"N"]
["SUS631_45202","2015-06-01","12:02:28","GLS5/9 Gara Dangersleigh","Short Rural","Asset failure","LV",1,294,5.4963955610062495E-4,1.8695222996619901E-6,"N"]
["SUS631_45220","2015-06-01","16:27:00","MUD42 Abattoir No.2","Long Rural","Asset failure","HV",33,122,2.9733132946098501E-2,2.4371420447621801E-4,"N"]
["SUS631_45253","2015-06-02","08:57:48","UQT8B5 Uranquinty East","Short Rural","Asset failure","HV",4,704.5,5.2683138404474904E-3,7.4780891986479603E-6,"N"]
["SUS631_45281","2015-06-02","09:29:00","DNO122 Craboon","Long Rural","Planned",null,3,70,null,null,"N"]
["SUS631_45299","2015-06-02","10:11:00","GDH6101 M61 Kelvin","Long Rural","Other",null,1,49,3.6187866725256499E-4,7.3852789235217402E-6,"N"]
["SUS631_45330","2015-06-02","19:10:29","BTS8B10 Tingha","Short Rural","Overloads",null,4,69,5.1598815470670903E-4,7.4780891986479603E-6,"N"]
["SUS631_45352","2015-06-03","08:45:00","IVA10215 Ivanhoe Town","Short Rural","Planned",null,26,242,null,null,"N"]
["SUS631_45378","2015-06-03","09:15:22","SLI3B10 Jiggi","Short Rural","Planned",null,58,229,null,null,"N"]
["SUS631_45409","2015-06-03","11:03:00","CLA3B2 Gowrie","Short Rural","Planned",null,3,78,null,null,"N"]
["SUS631_45456","2015-06-04","08:30:00","ALU62 Thurgoona","Short Rural","Planned",null,11,130,null,null,"N"]
["SUS631_45475","2015-06-04","09:00:00","WGA3B3 Wooli","Short Rural","Planned",null,16,86,null,null,"N"]
["SUS631_45517","2015-06-04","09:40:00","FIN22 Rural Nth","Long Rural","Planned",null,5,128,null,null,"N"]
["SUS631_45535","2015-06-04","12:58:00","EUB1180 Millwood Rd","Short Rural","Other",null,4,135.75,1.0151506087164601E-3,7.4780891986479603E-6,"N"]
["SUS631_45566","2015-06-05","08:06:29","HPT3B2 Bogangar Beach","Short Rural","Asset failure","LV",1,116,2.1686458676079101E-4,1.8695222996619901E-6,"N"]
["SUS631_45602","2015-06-05","09:20:00","GDH6201 M62 Carroll","Short Rural","Planned",null,4,353,null,null,"N"]
["SUS631_45614","2015-06-05","09:37:43","STR3B1 Stroud Nth","Short Rural","Planned",null,66,292.66666666666703,null,null,"N"]
["SUS631_45645","2015-06-05","13:03:00","LEE3B5 Wamoon","Short Rural","Planned",null,41,173.951219512195,null,null,"N"]
["SUS631_45663","2015-06-05","18:31:16","BPM3B9 Nth Shore","Short Rural","Third party","Vehicle impact",1,140,2.6173312195267902E-4,1.8695222996619901E-6,"N"]
["SUS631_45697","2015-06-06","20:14:05","GNF22 Grenfell Town No.1","Short Rural","Asset failure","LV",89,218,3.6272471658041899E-2,1.6638748466991701E-4,"N"]
["SUS631_45724","2015-06-07","11:58:48","DUN3B3 Nimbin","Short Rural","Vegetation","Grow-in",1,160,2.9912356794591799E-4,1.8695222996619901E-6,"N"]
["SUS631_45771","2015-06-09","07:16:27","BKE4B1 M81 Enngonia","Long Rural","Planned",null,10,488,null,null,"N"]
["SUS631_45802","2015-06-09","09:30:00","FIN22 Rural Nth","Long Rural","Planned",null,3,226,null,null,"N"]
["SUS631_45824","2015-06-09","10:39:00","CLA3B2 Gowrie","Short Rural","Planned",null,22,292,null,null,"N"]
["SUS631_45850","2015-06-09","14:35:00","OBR3B2 Black Springs","Long Rural","Weather",null,14,107,1.10631478274356E-2,1.0339390492930399E-4,"N"]
["SUS631_45881","2015-06-10","08:38:00","BPT3B7 Darlington Dr","Urban","Planned",null,438,202,null,null,"N"]
["SUS631_45899","2015-06-10","09:02:00","CFL Braidwood","Long Rural","Planned",null,1,168,null,null,"N"]
["SUS631_45947","2015-06-10","10:07:00","BAR32 Gonn","Short Rural","Planned",null,3,182,null,null,"N"]
["SUS631_45976","2015-06-10","16:34:00","WTE3681 Taree Sth","Urban","Asset failure","LV",1,132,6.8949666743277403E-4,5.2234596017634396E-6,"N"]
["SUS631_46007","2015-06-11","09:00:00","TXS3X06 Yelarbon","Long Rural","Planned",null,1,39,null,null,"N"]
["SUS631_46009","2015-06-11","09:00:00","CBR22 Cobar Town Nth","Short Rural","Planned",null,82,387.09756097561001,null,null,"N"]
["SUS631_46046","2015-06-11","09:29:44","NDL616 Woolomin","Long Rural","Planned",null,468,403.02136752136698,null,null,"N"]
["SUS631_46086","2015-06-11","13:42:00","NYN52 Nyngan West","Long Rural","Planned",null,8,34,null,null,"N"]
["SUS631_46117","2015-06-12","07:11:08","BKE8B1 M86 Bourke No.1","Short Rural","Other",null,377,100,7.0480990697256996E-2,7.0480990697257E-4,"N"]
["SUS631_46135","2015-06-12","08:56:00","WGM4983 Wingham/Hillside","Short Rural","Planned",null,2,123,null,null,"N"]
["SUS631_46169","2015-06-12","09:25:00","NAN3B3 Nangus/Kimo/Cooba","Short Rural","Planned",null,16,245,null,null,"N"]
["SUS631_46183","2015-06-12","09:39:00","WWA8B3 M9 Merah North/Doreen Ln","Short Rural","Other",null,15,249,6.9826657892375302E-3,2.8042834494929901E-5,"N"]
["SUS631_46214","2015-06-12","13:11:00","NVE32 Auscott/Warren Town","Short Rural","Planned",null,6,59,null,null,"N"]
["SUS631_46245","2015-06-13","14:19:40","MGA3B2 Willawarrin","Long Rural","Asset failure","LV",1,154,1.13733295422235E-3,7.3852789235217402E-6,"N"]
["SUS631_46268","2015-06-14","14:00:13","DNO122 Craboon","Long Rural","Asset failure","HV",1,103,7.6068372912274E-4,7.3852789235217402E-6,"N"]
["SUS631_46322","2015-06-15","09:09:00","DEN12 Mathoura/Moama","Long Rural","Planned",null,6,227,null,null,"N"]
["SUS631_46324","2015-06-15","09:14:00","DNO142 Merrygoen","Long Rural","Planned",null,2,260,null,null,"N"]
["SUS631_46371","2015-06-15","14:43:15","BHL42 Railwaytown","Short Rural","Other",null,1,109,2.0377793066315701E-4,1.8695222996619901E-6,"N"]
["SUS631_46391","2015-06-15","20:28:26","COO82 Cooma Nth","Short Rural","Asset failure","LV",26,147,7.1453142293081296E-3,4.8607579791211702E-5,"N"]
["SUS631_46419","2015-06-16","08:31:33","BLH3B3 Bulahdelah Central/Wootton/Seal Rocks","Long Rural","Planned",null,190,415.65789473684202,null,null,"N"]
["SUS631_46450","2015-06-16","09:41:00","ORI831 Abattoirs","Short Rural","Planned",null,16,275,null,null,"N"]
["SUS631_46481","2015-06-16","14:37:45","GGB112 Gulargambone","Long Rural","Asset failure","HV",83,195.71084337349399,0.119966470833687,6.12978150652305E-4,"N"]
["SUS631_46518","2015-06-17","08:33:29","ALU32 Lavington West/Jindera","Long Rural","Asset failure","HV",1,81,5.9820759280526095E-4,7.3852789235217402E-6,"N"]
["SUS631_46529","2015-06-17","09:10:00","MRH3B2 McMahons Reef","Short Rural","Planned",null,11,322,null,null,"N"]
["SUS631_46576","2015-06-17","16:39:58","CRA22 Rural","Long Rural","Weather",null,10,74,5.4651064034060897E-3,7.3852789235217406E-5,"N"]
["SUS631_46607","2015-06-18","09:00:00","PKT3B2 Parkes Town No.2","Short Rural","Planned",null,60,240,null,null,"N"]
["SUS631_46613","2015-06-18","09:02:00","WTE3684 Edinburgh Dr","Short Rural","Planned",null,6,341,null,null,"N"]
["SUS631_46655","2015-06-18","12:57:38","CLN3B3 Rannock 92 Line","Long Rural","Asset failure","LV",4,240,7.0898677665808697E-3,2.9541115694087002E-5,"N"]
["SUS631_46686","2015-06-19","07:50:00","EUB417 Collingullie","Short Rural","Asset failure","LV",17,191,6.0703389070024798E-3,3.1781879094253799E-5,"N"]
["SUS631_46717","2015-06-19","09:12:00","ALU32 Lavington West/Jindera","Long Rural","Planned",null,1,130,null,null,"N"]
["SUS631_46740","2015-06-19","10:00:00","BPT3B3 Fingal","Short Rural","Planned",null,1,30,null,null,"N"]
["SUS631_46765","2015-06-19","14:52:00","TSH3B5 West Tweed","Urban","Asset failure","LV",1,176,9.1932888991036498E-4,5.2234596017634396E-6,"N"]
["SUS631_46812","2015-06-20","19:56:40","MWN3B5 Tumbulgum","Short Rural","Animal","Animal impact",4,59,4.4120726272023E-4,7.4780891986479603E-6,"N"]
["SUS631_46814","2015-06-20","22:44:00","MCV3B4 Bowraville Town","Short Rural","Asset failure","LV",1,44,8.2258981185127597E-5,1.8695222996619901E-6,"N"]
["SUS631_46863","2015-06-22","08:32:00","WGM4983 Wingham/Hillside","Short Rural","Planned",null,61,361.13114754098399,null,null,"N"]
["SUS631_46891","2015-06-22","09:37:00","OBR3B7 Jenolan Caves","Short Rural","Planned",null,22,189,null,null,"N"]
["SUS631_46922","2015-06-22","13:02:00","SUN4B1 Sunset Strip Backbone - Wilcannia","Long Rural","Animal","Animal impact",1,11,8.1238068158739202E-5,7.3852789235217402E-6,"N"]
["SUS631_46940","2015-06-22","19:35:06","MRH3B4 No.2 Town Nth","Short Rural","Overloads",null,4,56,4.1877299512428601E-4,7.4780891986479603E-6,"N"]
["SUS631_46962","2015-06-23","09:00:00","NSK3B2 Frederickton","Short Rural","Planned",null,97,331.20618556700998,null,null,"N"]
["SUS631_47001","2015-06-23","09:59:00","BBI0101 M1 Maules Ck","Long Rural","Planned",null,17,61,null,null,"N"]
["SUS631_47019","2015-06-23","12:31:00","BJN8B2 M9 Carbeen/Merah Nth","Long Rural","Planned",null,3,82,null,null,"N"]
["SUS631_47050","2015-06-24","08:32:00","BNK24798 Koorainghat","Short Rural","Planned",null,39,349.461538461538,null,null,"N"]
["SUS631_47085","2015-06-24","09:13:00","NBI8B5 M6 Wee Waa","Long Rural","Other",null,2,122,1.8020080573393101E-3,1.4770557847043501E-5,"N"]
["SUS631_47127","2015-06-24","13:21:57","WWA8B3 M9 Merah North/Doreen Ln","Short Rural","Asset failure","HV",11,62,1.27501420836948E-3,2.0564745296281899E-5,"N"]
["SUS631_47129","2015-06-24","13:44:51","YAS6282 Kangiara","Long Rural","Asset failure","HV",1,2668,1.9703924167956001E-2,7.3852789235217402E-6,"N"]
["SUS631_47176","2015-06-25","09:02:49","RKF3B3 Telegraph Point","Short Rural","Planned",null,23,377.56521739130397,null,null,"N"]
["SUS631_47212","2015-06-25","10:31:00","BRE8B2 M51 Goodooga","Long Rural","Planned",null,3,1,null,null,"N"]
["SUS631_47237","2015-06-25","14:22:46","FIN52 Tocumwal","Long Rural","Other",null,1,1468,1.08415894597299E-2,7.3852789235217402E-6,"N"]
["SUS631_47255","2015-06-25","20:23:27","SLI3B7 Lismore Square No.2","Urban","Asset failure","LV",1,66,3.4474833371638702E-4,5.2234596017634396E-6,"N"]
["SUS631_47286","2015-06-26","09:00:14","CLN3B2 Marrar 91 Line","Long Rural","Planned",null,48,319.77083333333297,null,null,"N"]
["SUS631_47307","2015-06-26","09:35:00","BJN8B3 M37 Yarran","Long Rural","Other",null,1,55,4.0619034079369601E-4,7.3852789235217402E-6,"N"]
["SUS631_47334","2015-06-26","11:01:00","GDH6101 M61 Kelvin","Long Rural","Vegetation","Grow-in",9,131,8.7072438508321408E-3,6.6467510311695705E-5,"N"]
["SUS631_47365","2015-06-26","21:16:15","MUA5005 East","Long Rural","Asset failure","HV",267,176.539325842697,0.34811250733912102,1.9718694725803102E-3,"N"]
["SUS631_47412","2015-06-28","08:26:44","GDI4B1 Waggamba East","Long Rural","Asset failure","HV",2,164,2.4223714869151302E-3,1.4770557847043501E-5,"N"]
["SUS631_47434","2015-06-28","15:40:17","EWE3B5 Bangalow","Short Rural","Other",null,1,233,4.3559869582124398E-4,1.8695222996619901E-6,"N"]
["SUS631_47473","2015-06-29","09:03:42","KEW3B2 Lorne","Short Rural","Planned",null,63,320,null,null,"N"]
["SUS631_47491","2015-06-29","09:31:00","QDI3B4 East Rural","Long Rural","Planned",null,5,70,null,null,"N"]
["SUS631_47522","2015-06-29","11:46:28","BAR12 East Barham","Short Rural","Animal","Animal impact",3,195,1.0936705453022601E-3,5.60856689898597E-6,"N"]
["SUS631_47533","2015-06-29","14:11:45","WJL3B2 Warroo","Short Rural","Animal","Animal impact",2,62,2.31820765158087E-4,3.7390445993239802E-6,"N"]
["SUS631_47570","2015-06-30","08:37:00","GRN3B4 Grafton Interconnector","Urban","Planned",null,183,298.47540983606598,null,null,"N"]
["SUS631_47601","2015-06-30","09:09:00","QSH5282 Oleria St","Urban","Planned",null,112,299,null,null,"N"]
["SUS631_47619","2015-06-30","09:34:00","BTS8B4 Wallangra/Bukkulla","Long Rural","Planned",null,36,156,null,null,"N"]
["SUS631_47656","2015-06-30","13:06:40","URA3B2 Gostwyck/Arding","Long Rural","Asset failure","HV",6,101,4.4754790276541803E-3,4.4311673541130499E-5,"N"]
["SUS631_47680","2015-06-30","21:36:55","MUL3B3 Mullumbimby West","Short Rural","Asset failure","HV",57,11,1.1721904818880701E-3,1.06562771080733E-4,"N"]
["SUS631_47727",null,null,null,null,null," "]
["SUS631_47758",null,null,null,null,null," "]
["SUS631_47783",null,null,null,null,null," "]
["SUS631_47806",null,null,null,null,null," "]
["SUS631_47837",null,null,null,null,null," "]
["SUS631_47855",null,null,null,null,null," "]
["SUS631_47878",null,null,null,null,null," "]
["SUS631_47916",null,null,null,null,null," "]
["SUS631_47934",null,null,null,null,null," "]
["SUS631_47965",null,null,null,null,null," "]
["SUS631_48005",null,null,null,null,null," "]
["SUS631_48042",null,null,null,null,null," "]
["SUS631_48073",null,null,null,null,null," "]
["SUS631_48091",null,null,null,null,null," "]
["SUS631_48128",null,null,null,null,null," "]
["SUS631_48139",null,null,null,null,null," "]
["SUS631_48170",null,null,null,null,null," "]
["SUS631_48201",null,null,null,null,null," "]
["SUS631_48227",null,null,null,null,null," "]
["SUS631_48278",null,null,null,null,null," "]
["SUS631_48280",null,null,null,null,null," "]
["SUS631_48327",null,null,null,null,null," "]
["SUS631_48350",null,null,null,null,null," "]
["SUS631_48375",null,null,null,null,null," "]
["SUS631_48406",null,null,null,null,null," "]
["SUS631_48437",null,null,null,null,null," "]
["SUS631_48477",null,null,null,null,null," "]
["SUS631_48485",null,null,null,null,null," "]
["SUS631_48532",null,null,null,null,null," "]
["SUS631_48563",null,null,null,null,null," "]
["SUS631_48572",null,null,null,null,null," "]
["SUS631_48611",null,null,null,null,null," "]
["SUS631_48642",null,null,null,null,null," "]
["SUS631_48673",null,null,null,null,null," "]
["SUS631_48699",null,null,null,null,null," "]
["SUS631_48721",null,null,null,null,null," "]
["SUS631_48739",null,null,null,null,null," "]
["SUS631_48770",null,null,null,null,null," "]
["SUS631_48822",null,null,null,null,null," "]
["SUS631_48847",null,null,null,null,null," "]
["SUS631_48878",null,null,null,null,null," "]
["SUS631_48909",null,null,null,null,null," "]
["SUS631_48921",null,null,null,null,null," "]
["SUS631_48957",null,null,null,null,null," "]
["SUS631_48975",null,null,null,null,null," "]
["SUS631_49006",null,null,null,null,null," "]
["SUS631_49044",null,null,null,null,null," "]
["SUS631_49083",null,null,null,null,null," "]
["SUS631_49085",null,null,null,null,null," "]
["SUS631_49132",null,null,null,null,null," "]
["SUS631_49143",null,null,null,null,null," "]
["SUS631_49193",null,null,null,null,null," "]
["SUS631_49211",null,null,null,null,null," "]
["SUS631_49242",null,null,null,null,null," "]
["SUS631_49266",null,null,null,null,null," "]
["SUS631_49290",null,null,null,null,null," "]
["SUS631_49321",null,null,null,null,null," "]
["SUS631_49368",null,null,null,null,null," "]
["SUS631_49393",null,null,null,null,null," "]
["SUS631_49400",null,null,null,null,null," "]
["SUS631_49447",null,null,null,null,null," "]
["SUS631_49478",null,null,null,null,null," "]
["SUS631_49492",null,null,null,null,null," "]
["SUS631_49526",null,null,null,null,null," "]
["SUS631_49557",null,null,null,null,null," "]
["SUS631_49575",null,null,null,null,null," "]
["SUS631_49615",null,null,null,null,null," "]
["SUS631_49636",null,null,null,null,null," "]
["SUS631_49683",null,null,null,null,null," "]
["SUS631_49714",null,null,null,null,null," "]
["SUS631_49742",null,null,null,null,null," "]
["SUS631_49762",null,null,null,null,null," "]
["SUS631_49793",null,null,null,null,null," "]
["SUS631_49811",null,null,null,null,null," "]
["SUS631_49837",null,null,null,null,null," "]
["SUS631_49872",null,null,null,null,null," "]
["SUS631_49890",null,null,null,null,null," "]
["SUS631_49921",null,null,null,null,null," "]
["SUS631_49964",null,null,null,null,null," "]
["SUS631_49998",null,null,null,null,null," "]
["SUS631_50029",null,null,null,null,null," "]
["SUS631_50047",null,null,null,null,null," "]
["SUS631_50087",null,null,null,null,null," "]
["SUS631_50095",null,null,null,null,null," "]
["SUS631_50126",null,null,null,null,null," "]
["SUS631_50157",null,null,null,null,null," "]
["SUS631_50186",null,null,null,null,null," "]
["SUS631_50205",null,null,null,null,null," "]
["SUS631_50236",null,null,null,null,null," "]
["SUS631_50283",null,null,null,null,null," "]
["SUS631_50309",null,null,null,null,null," "]
["SUS631_50331",null,null,null,null,null," "]
["SUS631_50362",null,null,null,null,null," "]
["SUS631_50393",null,null,null,null,null," "]
["SUS631_50408",null,null,null,null,null," "]
["SUS631_50441",null,null,null,null,null," "]
["SUS631_50472",null,null,null,null,null," "]
["SUS631_50519",null,null,null,null,null," "]
["SUS631_50531",null,null,null,null,null," "]
["SUS631_50567",null,null,null,null,null," "]
["SUS631_50598",null,null,null,null,null," "]
["SUS631_50629",null,null,null,null,null," "]
["SUS631_50658",null,null,null,null,null," "]
["SUS631_50677",null,null,null,null,null," "]
["SUS631_50695",null,null,null,null,null," "]
["SUS631_50726",null,null,null,null,null," "]
["SUS631_50753",null,null,null,null,null," "]
["SUS631_50803",null,null,null,null,null," "]
["SUS631_50834",null,null,null,null,null," "]
["SUS631_50865",null,null,null,null,null," "]
["SUS631_50880",null,null,null,null,null," "]
["SUS631_50913",null,null,null,null,null," "]
["SUS631_50931",null,null,null,null,null," "]
["SUS631_50962",null,null,null,null,null," "]
["SUS631_51003",null,null,null,null,null," "]
["SUS631_51010",null,null,null,null,null," "]
["SUS631_51041",null,null,null,null,null," "]
["SUS631_51088",null,null,null,null,null," "]
["SUS631_51102",null,null,null,null,null," "]
["SUS631_51149",null,null,null,null,null," "]
["SUS631_51167",null,null,null,null,null," "]
["SUS631_51198",null,null,null,null,null," "]
["SUS631_51225",null,null,null,null,null," "]
["SUS631_51246",null,null,null,null,null," "]
["SUS631_51277",null,null,null,null,null," "]
["SUS631_51324",null,null,null,null,null," "]
["SUS631_51352",null,null,null,null,null," "]
["SUS631_51356",null,null,null,null,null," "]
["SUS631_51403",null,null,null,null,null," "]
["SUS631_51434",null,null,null,null,null," "]
["SUS631_51447",null,null,null,null,null," "]
["SUS631_51482",null,null,null,null,null," "]
["SUS631_51513",null,null,null,null,null," "]
["SUS631_51531",null,null,null,null,null," "]
["SUS631_51574",null,null,null,null,null," "]
["SUS631_51592",null,null,null,null,null," "]
["SUS631_51639",null,null,null,null,null," "]
["SUS631_51670",null,null,null,null,null," "]
["SUS631_51673",null,null,null,null,null," "]
["SUS631_51718",null,null,null,null,null," "]
["SUS631_51749",null,null,null,null,null," "]
["SUS631_51767",null,null,null,null,null," "]
["SUS631_51796",null,null,null,null,null," "]
["SUS631_51828",null,null,null,null,null," "]
["SUS631_51846",null,null,null,null,null," "]
["SUS631_51877",null,null,null,null,null," "]
["SUS631_51923",null,null,null,null,null," "]
["SUS631_51954",null,null,null,null,null," "]
["SUS631_51985",null,null,null,null,null," "]
["SUS631_52003",null,null,null,null,null," "]
["SUS631_52018",null,null,null,null,null," "]
["SUS631_52051",null,null,null,null,null," "]
["SUS631_52082",null,null,null,null,null," "]
["SUS631_52113",null,null,null,null,null," "]
["SUS631_52145",null,null,null,null,null," "]
["SUS631_52161",null,null,null,null,null," "]
["SUS631_52192",null,null,null,null,null," "]
["SUS631_52239",null,null,null,null,null," "]
["SUS631_52268",null,null,null,null,null," "]
["SUS631_52287",null,null,null,null,null," "]
["SUS631_52318",null,null,null,null,null," "]
["SUS631_52349",null,null,null,null,null," "]
["SUS631_52367",null,null,null,null,null," "]
["SUS631_52397",null,null,null,null,null," "]
["SUS631_52428",null,null,null,null,null," "]
["SUS631_52475",null,null,null,null,null," "]
["SUS631_52490",null,null,null,null,null," "]
["SUS631_52523",null,null,null,null,null," "]
["SUS631_52554",null,null,null,null,null," "]
["SUS631_52585",null,null,null,null,null," "]
["SUS631_52617",null,null,null,null,null," "]
["SUS631_52633",null,null,null,null,null," "]
["SUS631_52651",null,null,null,null,null," "]
["SUS631_52682",null,null,null,null,null," "]
["SUS631_52712",null,null,null,null,null," "]
["SUS631_52759",null,null,null,null,null," "]
["SUS631_52790",null,null,null,null,null," "]
["SUS631_52821",null,null,null,null,null," "]
["SUS631_52839",null,null,null,null,null," "]
["SUS631_52869",null,null,null,null,null," "]
["SUS631_52887",null,null,null,null,null," "]
["SUS631_52918",null,null,null,null,null," "]
["SUS631_52962",null,null,null,null,null," "]
["SUS631_52966",null,null,null,null,null," "]
["SUS631_52997",null,null,null,null,null," "]
["SUS631_53028",null,null,null,null,null," "]
["SUS631_53061",null,null,null,null,null," "]
["SUS631_53105",null,null,null,null,null," "]
["SUS631_53123",null,null,null,null,null," "]
["SUS631_53154",null,null,null,null,null," "]
["SUS631_53184",null,null,null,null,null," "]
["SUS631_53202",null,null,null,null,null," "]
["SUS631_53233",null,null,null,null,null," "]
["SUS631_53280",null,null,null,null,null," "]
["SUS631_53283",null,null,null,null,null," "]
["SUS631_53312",null,null,null,null,null," "]
["SUS631_53359",null,null,null,null,null," "]
["SUS631_53390",null,null,null,null,null," "]
["SUS631_53406",null,null,null,null,null," "]
["SUS631_53438",null,null,null,null,null," "]
["SUS631_53469",null,null,null,null,null," "]
["SUS631_53487",null,null,null,null,null," "]
["SUS631_53533",null,null,null,null,null," "]
["SUS631_53548",null,null,null,null,null," "]
["SUS631_53595",null,null,null,null,null," "]
["SUS631_53626",null,null,null,null,null," "]
["SUS631_53632",null,null,null,null,null," "]
["SUS631_53674",null,null,null,null,null," "]
["SUS631_53705",null,null,null,null,null," "]
["SUS631_53723",null,null,null,null,null," "]
["SUS631_53755",null,null,null,null,null," "]
["SUS631_53784",null,null,null,null,null," "]
["SUS631_53802",null,null,null,null,null," "]
["SUS631_53833",null,null,null,null,null," "]
["SUS631_53882",null,null,null,null,null," "]
["SUS631_53910",null,null,null,null,null," "]
["SUS631_53941",null,null,null,null,null," "]
["SUS631_53959",null,null,null,null,null," "]
["SUS631_53977",null,null,null,null,null," "]
["SUS631_54020",null,null,null,null,null," "]
["SUS631_54038",null,null,null,null,null," "]
["SUS631_54069",null,null,null,null,null," "]
["SUS631_54104",null,null,null,null,null," "]
["SUS631_54117",null,null,null,null,null," "]
["SUS631_54148",null,null,null,null,null," "]
["SUS631_54195",null,null,null,null,null," "]
["SUS631_54227",null,null,null,null,null," "]
["SUS631_54243",null,null,null,null,null," "]
["SUS631_54274",null,null,null,null,null," "]
["SUS631_54305",null,null,null,null,null," "]
["SUS631_54326",null,null,null,null,null," "]
["SUS631_54353",null,null,null,null,null," "]
["SUS631_54384",null,null,null,null,null," "]
["SUS631_54431",null,null,null,null,null," "]
["SUS631_54449",null,null,null,null,null," "]
["SUS631_54479",null,null,null,null,null," "]
["SUS631_54510",null,null,null,null,null," "]
["SUS631_54541",null,null,null,null,null," "]
["SUS631_54548",null,null,null,null,null," "]
["SUS631_54589",null,null,null,null,null," "]
["SUS631_54620",null,null,null,null,null," "]
["SUS631_54638",null,null,null,null,null," "]
["SUS631_54671",null,null,null,null,null," "]
["SUS631_54715",null,null,null,null,null," "]
["SUS631_54746",null,null,null,null,null," "]
["SUS631_54748",null,null,null,null,null," "]
["SUS631_54798",null,null,null,null,null," "]
["SUS631_54825",null,null,null,null,null," "]
["SUS631_54843",null,null,null,null,null," "]
["SUS631_54874",null,null,null,null,null," "]
["SUS631_54893",null,null,null,null,null," "]
["SUS631_54922",null,null,null,null,null," "]
["SUS631_54953",null,null,null,null,null," "]
["SUS631_54984",null,null,null,null,null," "]
["SUS631_55020",null,null,null,null,null," "]
["SUS631_55061",null,null,null,null,null," "]
["SUS631_55079",null,null,null,null,null," "]
["SUS631_55110",null,null,null,null,null," "]
["SUS631_55143",null,null,null,null,null," "]
["SUS631_55158",null,null,null,null,null," "]
["SUS631_55189",null,null,null,null,null," "]
["SUS631_55236",null,null,null,null,null," "]
["SUS631_55242",null,null,null,null,null," "]
["SUS631_55268",null,null,null,null,null," "]
["SUS631_55315",null,null,null,null,null," "]
["SUS631_55346",null,null,null,null,null," "]
["SUS631_55365",null,null,null,null,null," "]
["SUS631_55394",null,null,null,null,null," "]
["SUS631_55425",null,null,null,null,null," "]
["SUS631_55443",null,null,null,null,null," "]
["SUS631_55492",null,null,null,null,null," "]
["SUS631_55504",null,null,null,null,null," "]
["SUS631_55551",null,null,null,null,null," "]
["SUS631_55553",null,null,null,null,null," "]
["SUS631_55587",null,null,null,null,null," "]
["SUS631_55630",null,null,null,null,null," "]
["SUS631_55661",null,null,null,null,null," "]
["SUS631_55679",null,null,null,null,null," "]
["SUS631_55714",null,null,null,null,null," "]
["SUS631_55740",null,null,null,null,null," "]
["SUS631_55758",null,null,null,null,null," "]
["SUS631_55789",null,null,null,null,null," "]
["SUS631_55813",null,null,null,null,null," "]
["SUS631_55866",null,null,null,null,null," "]
["SUS631_55897",null,null,null,null,null," "]
["SUS631_55915",null,null,null,null,null," "]
["SUS631_55936",null,null,null,null,null," "]
["SUS631_55976",null,null,null,null,null," "]
["SUS631_55994",null,null,null,null,null," "]
["SUS631_56025",null,null,null,null,null," "]
["SUS631_56063",null,null,null,null,null," "]
["SUS631_56073",null,null,null,null,null," "]
["SUS631_56104",null,null,null,null,null," "]
["SUS631_56151",null,null,null,null,null," "]
["SUS631_56158",null,null,null,null,null," "]
["SUS631_56199",null,null,null,null,null," "]
["SUS631_56230",null,null,null,null,null," "]
["SUS631_56261",null,null,null,null,null," "]
["SUS631_56285",null,null,null,null,null," "]
["SUS631_56309",null,null,null,null,null," "]
["SUS631_56340",null,null,null,null,null," "]
["SUS631_56358",null,null,null,null,null," "]
["SUS631_56408",null,null,null,null,null," "]
["SUS631_56435",null,null,null,null,null," "]
["SUS631_56466",null,null,null,null,null," "]
["SUS631_56497",null,null,null,null,null," "]
["SUS631_56507",null,null,null,null,null," "]
["SUS631_56545",null,null,null,null,null," "]
["SUS631_56576",null,null,null,null,null," "]
["SUS631_56594",null,null,null,null,null," "]
["SUS631_56630",null,null,null,null,null," "]
["SUS631_56671",null,null,null,null,null," "]
["SUS631_56702",null,null,null,null,null," "]
["SUS631_56704",null,null,null,null,null," "]
["SUS631_56757",null,null,null,null,null," "]
["SUS631_56781",null,null,null,null,null," "]
["SUS631_56799",null,null,null,null,null," "]
["SUS631_56830",null,null,null,null,null," "]
["SUS631_56852",null,null,null,null,null," "]
["SUS631_56878",null,null,null,null,null," "]
["SUS631_56909",null,null,null,null,null," "]
["SUS631_56940",null,null,null,null,null," "]
["SUS631_56979",null,null,null,null,null," "]
["SUS631_57017",null,null,null,null,null," "]
["SUS631_57035",null,null,null,null,null," "]
["SUS631_57066",null,null,null,null,null," "]
["SUS631_57102",null,null,null,null,null," "]
["SUS631_57114",null,null,null,null,null," "]
["SUS631_57145",null,null,null,null,null," "]
["SUS631_57176",null,null,null,null,null," "]
["SUS631_57201",null,null,null,null,null," "]
["SUS631_57224",null,null,null,null,null," "]
["SUS631_57271",null,null,null,null,null," "]
["SUS631_57302",null,null,null,null,null," "]
["SUS631_57324",null,null,null,null,null," "]
["SUS631_57350",null,null,null,null,null," "]
["SUS631_57381",null,null,null,null,null," "]
["SUS631_57399",null,null,null,null,null," "]
["SUS631_57423",null,null,null,null,null," "]
["SUS631_57460",null,null,null,null,null," "]
["SUS631_57507",null,null,null,null,null," "]
["SUS631_57509",null,null,null,null,null," "]
["SUS631_57546",null,null,null,null,null," "]
["SUS631_57586",null,null,null,null,null," "]
["SUS631_57617",null,null,null,null,null," "]
["SUS631_57635",null,null,null,null,null," "]
["SUS631_57673",null,null,null,null,null," "]
["SUS631_57696",null,null,null,null,null," "]
["SUS631_57714",null,null,null,null,null," "]
["SUS631_57745",null,null,null,null,null," "]
["SUS631_57772",null,null,null,null,null," "]
["SUS631_57822",null,null,null,null,null," "]
["SUS631_57824",null,null,null,null,null," "]
["SUS631_57871",null,null,null,null,null," "]
["SUS631_57895",null,null,null,null,null," "]
["SUS631_57932",null,null,null,null,null," "]
["SUS631_57950",null,null,null,null,null," "]
["SUS631_57981",null,null,null,null,null," "]
["SUS631_58022",null,null,null,null,null," "]
["SUS631_58029",null,null,null,null,null," "]
["SUS631_58060",null,null,null,null,null," "]
["SUS631_58107",null,null,null,null,null," "]
["SUS631_58117",null,null,null,null,null," "]
["SUS631_58168",null,null,null,null,null," "]
["SUS631_58186",null,null,null,null,null," "]
["SUS631_58217",null,null,null,null,null," "]
["SUS631_58244",null,null,null,null,null," "]
["SUS631_58265",null,null,null,null,null," "]
["SUS631_58296",null,null,null,null,null," "]
["SUS631_58314",null,null,null,null,null," "]
["SUS631_58367",null,null,null,null,null," "]
["SUS631_58391",null,null,null,null,null," "]
["SUS631_58422",null,null,null,null,null," "]
["SUS631_58453",null,null,null,null,null," "]
["SUS631_58466",null,null,null,null,null," "]
["SUS631_58501",null,null,null,null,null," "]
["SUS631_58532",null,null,null,null,null," "]
["SUS631_58550",null,null,null,null,null," "]
["SUS631_58589",null,null,null,null,null," "]
["SUS631_58627",null,null,null,null,null," "]
["SUS631_58629",null,null,null,null,null," "]
["SUS631_58660",null,null,null,null,null," "]
["SUS631_58688",null,null,null,null,null," "]
["SUS631_58737",null,null,null,null,null," "]
["SUS631_58755",null,null,null,null,null," "]
["SUS631_58786",null,null,null,null,null," "]
["SUS631_58811",null,null,null,null,null," "]
["SUS631_58834",null,null,null,null,null," "]
["SUS631_58865",null,null,null,null,null," "]
["SUS631_58896",null,null,null,null,null," "]
["SUS631_58938",null,null,null,null,null," "]
["SUS631_58973",null,null,null,null,null," "]
["SUS631_58991",null,null,null,null,null," "]
["SUS631_59022",null,null,null,null,null," "]
["SUS631_59033",null,null,null,null,null," "]
["SUS631_59070",null,null,null,null,null," "]
["SUS631_59101",null,null,null,null,null," "]
["SUS631_59132",null,null,null,null,null," "]
["SUS631_59160",null,null,null,null,null," "]
["SUS631_59180",null,null,null,null,null," "]
["SUS631_59227",null,null,null,null,null," "]
["SUS631_59258",null,null,null,null,null," "]
["SUS631_59283",null,null,null,null,null," "]
["SUS631_59306",null,null,null,null,null," "]
["SUS631_59337",null,null,null,null,null," "]
["SUS631_59355",null,null,null,null,null," "]
["SUS631_59382",null,null,null,null,null," "]
["SUS631_59416",null,null,null,null,null," "]
["SUS631_59434",null,null,null,null,null," "]
["SUS631_59465",null,null,null,null,null," "]
["SUS631_59492",null,null,null,null,null," "]
["SUS631_59493",null,null,null,null,null," "]
["SUS631_59494",null,null,null,null,null," "]
["SUS631_59495",null,null,null,null,null," "]
["SUS631_59496",null,null,null,null,null," "]
["SUS631_59497",null,null,null,null,null," "]
["SUS631_59498",null,null,null,null,null," "]
["SUS631_59499",null,null,null,null,null," "]
["SUS631_59500",null,null,null,null,null," "]
["SUS631_59501",null,null,null,null,null," "]
["SUS631_59502",null,null,null,null,null," "]
["SUS631_59503",null,null,null,null,null," "]
["SUS631_59504",null,null,null,null,null," "]
["SUS631_59505",null,null,null,null,null," "]
["SUS631_59506",null,null,null,null,null," "]
["SUS631_59507",null,null,null,null,null," "]
["SUS631_59508",null,null,null,null,null," "]
["SUS631_59509",null,null,null,null,null," "]
["SUS631_59510",null,null,null,null,null," "]
["SUS631_59511",null,null,null,null,null," "]
["SUS631_59512",null,null,null,null,null," "]
["SUS631_59513",null,null,null,null,null," "]
["SUS631_59514",null,null,null,null,null," "]
["SUS631_59515",null,null,null,null,null," "]
["SUS631_59516",null,null,null,null,null," "]
["SUS631_59517",null,null,null,null,null," "]
["SUS631_59518",null,null,null,null,null," "]
["SUS631_59519",null,null,null,null,null," "]
["SUS631_59520",null,null,null,null,null," "]
["SUS631_59521",null,null,null,null,null," "]
["SUS631_59522",null,null,null,null,null," "]
["SUS631_59523",null,null,null,null,null," "]
["SUS631_59524",null,null,null,null,null," "]
["SUS631_59525",null,null,null,null,null," "]
["SUS631_59526",null,null,null,null,null," "]
["SUS631_59527",null,null,null,null,null," "]
["SUS631_59528",null,null,null,null,null," "]
["SUS631_59529",null,null,null,null,null," "]
["SUS631_59530",null,null,null,null,null," "]
["SUS631_59531",null,null,null,null,null," "]
["SUS631_59532",null,null,null,null,null," "]
["SUS631_59533",null,null,null,null,null," "]
["SUS631_59534",null,null,null,null,null," "]
["SUS631_59535",null,null,null,null,null," "]
["SUS631_59536",null,null,null,null,null," "]
["SUS631_59537",null,null,null,null,null," "]
["SUS631_59538",null,null,null,null,null," "]
["SUS631_59539",null,null,null,null,null," "]
["SUS631_59540",null,null,null,null,null," "]
["SUS631_59541",null,null,null,null,null," "]
["SUS631_59542",null,null,null,null,null," "]
["SUS631_59543",null,null,null,null,null," "]
["SUS631_59544",null,null,null,null,null," "]
["SUS631_59545",null,null,null,null,null," "]
["SUS631_59546",null,null,null,null,null," "]
["SUS631_59547",null,null,null,null,null," "]
["SUS631_59548",null,null,null,null,null," "]
["SUS631_59549",null,null,null,null,null," "]
["SUS631_59550",null,null,null,null,null," "]
["SUS631_59551",null,null,null,null,null," "]
["SUS631_59552",null,null,null,null,null," "]
["SUS631_59553",null,null,null,null,null," "]
["SUS631_59554",null,null,null,null,null," "]
["SUS631_59555",null,null,null,null,null," "]
["SUS631_59556",null,null,null,null,null," "]
["SUS631_59557",null,null,null,null,null," "]
["SUS631_59558",null,null,null,null,null," "]
["SUS631_59559",null,null,null,null,null," "]
["SUS631_59560",null,null,null,null,null," "]
["SUS631_59561",null,null,null,null,null," "]
["SUS631_59562",null,null,null,null,null," "]
["SUS631_59563",null,null,null,null,null," "]
["SUS631_59564",null,null,null,null,null," "]
["SUS631_59565",null,null,null,null,null," "]
["SUS631_59566",null,null,null,null,null," "]
["SUS631_59567",null,null,null,null,null," "]
["SUS631_59568",null,null,null,null,null," "]
["SUS631_59569",null,null,null,null,null," "]
["SUS631_59570",null,null,null,null,null," "]
["SUS631_59571",null,null,null,null,null," "]
["SUS631_59572",null,null,null,null,null," "]
["SUS631_59573",null,null,null,null,null," "]
["SUS631_59574",null,null,null,null,null," "]
["SUS631_59575",null,null,null,null,null," "]
["SUS631_59576",null,null,null,null,null," "]
["SUS631_59577",null,null,null,null,null," "]
["SUS631_59578",null,null,null,null,null," "]
["SUS631_59579",null,null,null,null,null," "]
["SUS631_59580",null,null,null,null,null," "]
["SUS631_59581",null,null,null,null,null," "]
["SUS631_59582",null,null,null,null,null," "]
["SUS631_59583",null,null,null,null,null," "]
["SUS631_59584",null,null,null,null,null," "]
["SUS631_59585",null,null,null,null,null," "]
["SUS631_59586",null,null,null,null,null," "]
["SUS631_59587",null,null,null,null,null," "]
["SUS631_59588",null,null,null,null,null," "]
["SUS631_59589",null,null,null,null,null," "]
["SUS631_59590",null,null,null,null,null," "]
["SUS631_59591",null,null,null,null,null," "]
["SUS631_59592",null,null,null,null,null," "]
["SUS631_59593",null,null,null,null,null," "]
["SUS631_59594",null,null,null,null,null," "]
["SUS631_59595",null,null,null,null,null," "]
["SUS631_59596",null,null,null,null,null," "]
["SUS631_59597",null,null,null,null,null," "]
["SUS631_59598",null,null,null,null,null," "]
["SUS631_59599",null,null,null,null,null," "]
["SUS631_59600",null,null,null,null,null," "]
["SUS631_59601",null,null,null,null,null," "]
["SUS631_59602",null,null,null,null,null," "]
["SUS631_59603",null,null,null,null,null," "]
["SUS631_59604",null,null,null,null,null," "]
["SUS631_59605",null,null,null,null,null," "]
["SUS631_59606",null,null,null,null,null," "]
["SUS631_59607",null,null,null,null,null," "]
["SUS631_59608",null,null,null,null,null," "]
["SUS631_59609",null,null,null,null,null," "]
["SUS631_59610",null,null,null,null,null," "]
["SUS631_59611",null,null,null,null,null," "]
["SUS631_59612",null,null,null,null,null," "]
["SUS631_59613",null,null,null,null,null," "]
["SUS631_59614",null,null,null,null,null," "]
["SUS631_59615",null,null,null,null,null," "]
["SUS631_59616",null,null,null,null,null," "]
["SUS631_59617",null,null,null,null,null," "]
["SUS631_59618",null,null,null,null,null," "]
["SUS631_59619",null,null,null,null,null," "]
["SUS631_59620",null,null,null,null,null," "]
["SUS631_59621",null,null,null,null,null," "]
["SUS631_59622",null,null,null,null,null," "]
["SUS631_59623",null,null,null,null,null," "]
["SUS631_59624",null,null,null,null,null," "]
["SUS631_59625",null,null,null,null,null," "]
["SUS631_59626",null,null,null,null,null," "]
["SUS631_59627",null,null,null,null,null," "]
["SUS631_59628",null,null,null,null,null," "]
["SUS631_59629",null,null,null,null,null," "]
["SUS631_59630",null,null,null,null,null," "]
["SUS631_59631",null,null,null,null,null," "]
["SUS631_59632",null,null,null,null,null," "]
["SUS631_59633",null,null,null,null,null," "]
["SUS631_59634",null,null,null,null,null," "]
["SUS631_59635",null,null,null,null,null," "]
["SUS631_59636",null,null,null,null,null," "]
["SUS631_59637",null,null,null,null,null," "]
["SUS631_59638",null,null,null,null,null," "]
["SUS631_59639",null,null,null,null,null," "]
["SUS631_59640",null,null,null,null,null," "]
["SUS631_59641",null,null,null,null,null," "]
["SUS631_59642",null,null,null,null,null," "]
["SUS631_59643",null,null,null,null,null," "]
["SUS631_59644",null,null,null,null,null," "]
["SUS631_59645",null,null,null,null,null," "]
["SUS631_59646",null,null,null,null,null," "]
["SUS631_59647",null,null,null,null,null," "]
["SUS631_59648",null,null,null,null,null," "]
["SUS631_59649",null,null,null,null,null," "]
["SUS631_59650",null,null,null,null,null," "]
["SUS631_59651",null,null,null,null,null," "]
["SUS631_59652",null,null,null,null,null," "]
["SUS631_59653",null,null,null,null,null," "]
["SUS631_59654",null,null,null,null,null," "]
["SUS631_59655",null,null,null,null,null," "]
["SUS631_59656",null,null,null,null,null," "]
["SUS631_59657",null,null,null,null,null," "]
["SUS631_59658",null,null,null,null,null," "]
["SUS631_59659",null,null,null,null,null," "]
["SUS631_59660",null,null,null,null,null," "]
["SUS631_59661",null,null,null,null,null," "]
["SUS631_59662",null,null,null,null,null," "]
["SUS631_59663",null,null,null,null,null," "]
["SUS631_59664",null,null,null,null,null," "]
["SUS631_59665",null,null,null,null,null," "]
["SUS631_59666",null,null,null,null,null," "]
["SUS631_59667",null,null,null,null,null," "]
["SUS631_59668",null,null,null,null,null," "]
["SUS631_59669",null,null,null,null,null," "]
["SUS631_59670",null,null,null,null,null," "]
["SUS631_59671",null,null,null,null,null," "]
["SUS631_59672",null,null,null,null,null," "]
["SUS631_59673",null,null,null,null,null," "]
["SUS631_59674",null,null,null,null,null," "]
["SUS631_59675",null,null,null,null,null," "]
["SUS631_59676",null,null,null,null,null," "]
["SUS631_59677",null,null,null,null,null," "]
["SUS631_59678",null,null,null,null,null," "]
["SUS631_59679",null,null,null,null,null," "]
["SUS631_59680",null,null,null,null,null," "]
["SUS631_59681",null,null,null,null,null," "]
["SUS631_59682",null,null,null,null,null," "]
["SUS631_59683",null,null,null,null,null," "]
["SUS631_59684",null,null,null,null,null," "]
["SUS631_59685",null,null,null,null,null," "]
["SUS631_59686",null,null,null,null,null," "]
["SUS631_59687",null,null,null,null,null," "]
["SUS631_59688",null,null,null,null,null," "]
["SUS631_59689",null,null,null,null,null," "]
["SUS631_59690",null,null,null,null,null," "]
["SUS631_59691",null,null,null,null,null," "]
["SUS631_59692",null,null,null,null,null," "]
["SUS631_59693",null,null,null,null,null," "]
["SUS631_59694",null,null,null,null,null," "]
["SUS631_59695",null,null,null,null,null," "]
["SUS631_59696",null,null,null,null,null," "]
["SUS631_59697",null,null,null,null,null," "]
["SUS631_59698",null,null,null,null,null," "]
["SUS631_59699",null,null,null,null,null," "]
["SUS631_59700",null,null,null,null,null," "]
["SUS631_59701",null,null,null,null,null," "]
["SUS631_59702",null,null,null,null,null," "]
["SUS631_59703",null,null,null,null,null," "]
["SUS631_59704",null,null,null,null,null," "]
["SUS631_59705",null,null,null,null,null," "]
["SUS631_59706",null,null,null,null,null," "]
["SUS631_59707",null,null,null,null,null," "]
["SUS631_59708",null,null,null,null,null," "]
["SUS631_59709",null,null,null,null,null," "]
["SUS631_59710",null,null,null,null,null," "]
["SUS631_59711",null,null,null,null,null," "]
["SUS631_59712",null,null,null,null,null," "]
["SUS631_59713",null,null,null,null,null," "]
["SUS631_59714",null,null,null,null,null," "]
["SUS631_59715",null,null,null,null,null," "]
["SUS631_59716",null,null,null,null,null," "]
["SUS631_59717",null,null,null,null,null," "]
["SUS631_59718",null,null,null,null,null," "]
["SUS631_59719",null,null,null,null,null," "]
["SUS631_59720",null,null,null,null,null," "]
["SUS631_59721",null,null,null,null,null," "]
["SUS631_59722",null,null,null,null,null," "]
["SUS631_59723",null,null,null,null,null," "]
["SUS631_59724",null,null,null,null,null," "]
["SUS631_59725",null,null,null,null,null," "]
["SUS631_59726",null,null,null,null,null," "]
["SUS631_59727",null,null,null,null,null," "]
["SUS631_59728",null,null,null,null,null," "]
["SUS631_59729",null,null,null,null,null," "]
["SUS631_59730",null,null,null,null,null," "]
["SUS631_59731",null,null,null,null,null," "]
["SUS631_59732",null,null,null,null,null," "]
["SUS631_59733",null,null,null,null,null," "]
["SUS631_59734",null,null,null,null,null," "]
["SUS631_59735",null,null,null,null,null," "]
["SUS631_59736",null,null,null,null,null," "]
["SUS631_59737",null,null,null,null,null," "]
["SUS631_59738",null,null,null,null,null," "]
["SUS631_59739",null,null,null,null,null," "]
["SUS631_59740",null,null,null,null,null," "]
["SUS631_59741",null,null,null,null,null," "]
["SUS631_59742",null,null,null,null,null," "]
["SUS631_59743",null,null,null,null,null," "]
["SUS631_59744",null,null,null,null,null," "]
["SUS631_59745",null,null,null,null,null," "]
["SUS631_59746",null,null,null,null,null," "]
["SUS631_59747",null,null,null,null,null," "]
["SUS631_59748",null,null,null,null,null," "]
["SUS631_59749",null,null,null,null,null," "]
["SUS631_59750",null,null,null,null,null," "]
["SUS631_59751",null,null,null,null,null," "]
["SUS631_59752",null,null,null,null,null," "]
["SUS631_59753",null,null,null,null,null," "]
["SUS631_59754",null,null,null,null,null," "]
["SUS631_59755",null,null,null,null,null," "]
["SUS631_59756",null,null,null,null,null," "]
["SUS631_59757",null,null,null,null,null," "]
["SUS631_59758",null,null,null,null,null," "]
["SUS631_59759",null,null,null,null,null," "]
["SUS631_59760",null,null,null,null,null," "]
["SUS631_59761",null,null,null,null,null," "]
["SUS631_59762",null,null,null,null,null," "]
["SUS631_59763",null,null,null,null,null," "]
["SUS631_59764",null,null,null,null,null," "]
["SUS631_59765",null,null,null,null,null," "]
["SUS631_59766",null,null,null,null,null," "]
["SUS631_59767",null,null,null,null,null," "]
["SUS631_59768",null,null,null,null,null," "]
["SUS631_59769",null,null,null,null,null," "]
["SUS631_59770",null,null,null,null,null," "]
["SUS631_59771",null,null,null,null,null," "]
["SUS631_59772",null,null,null,null,null," "]
["SUS631_59773",null,null,null,null,null," "]
["SUS631_59774",null,null,null,null,null," "]
["SUS631_59775",null,null,null,null,null," "]
["SUS631_59776",null,null,null,null,null," "]
["SUS631_59777",null,null,null,null,null," "]
["SUS631_59778",null,null,null,null,null," "]
["SUS631_59779",null,null,null,null,null," "]
["SUS631_59780",null,null,null,null,null," "]
["SUS631_59781",null,null,null,null,null," "]
["SUS631_59782",null,null,null,null,null," "]
["SUS631_59783",null,null,null,null,null," "]
["SUS631_59784",null,null,null,null,null," "]
["SUS631_59785",null,null,null,null,null," "]
["SUS631_59786",null,null,null,null,null," "]
["SUS631_59787",null,null,null,null,null," "]
["SUS631_59788",null,null,null,null,null," "]
["SUS631_59789",null,null,null,null,null," "]
["SUS631_59790",null,null,null,null,null," "]
["SUS631_59791",null,null,null,null,null," "]
["SUS631_59792",null,null,null,null,null," "]
["SUS631_59793",null,null,null,null,null," "]
["SUS631_59794",null,null,null,null,null," "]
["SUS631_59795",null,null,null,null,null," "]
["SUS631_59796",null,null,null,null,null," "]
["SUS631_59797",null,null,null,null,null," "]
["SUS631_59798",null,null,null,null,null," "]
["SUS631_59799",null,null,null,null,null," "]
["SUS631_59800",null,null,null,null,null," "]
["SUS631_59801",null,null,null,null,null," "]
["SUS631_59802",null,null,null,null,null," "]
["SUS631_59803",null,null,null,null,null," "]
["SUS631_59804",null,null,null,null,null," "]
["SUS631_59805",null,null,null,null,null," "]
["SUS631_59806",null,null,null,null,null," "]
["SUS631_59807",null,null,null,null,null," "]
["SUS631_59808",null,null,null,null,null," "]
["SUS631_59809",null,null,null,null,null," "]
["SUS631_59810",null,null,null,null,null," "]
["SUS631_59811",null,null,null,null,null," "]
["SUS631_59812",null,null,null,null,null," "]
["SUS631_59813",null,null,null,null,null," "]
["SUS631_59814",null,null,null,null,null," "]
["SUS631_59815",null,null,null,null,null," "]
["SUS631_59816",null,null,null,null,null," "]
["SUS631_59817",null,null,null,null,null," "]
["SUS631_59818",null,null,null,null,null," "]
["SUS631_59819",null,null,null,null,null," "]
["SUS631_59820",null,null,null,null,null," "]
["SUS631_59821",null,null,null,null,null," "]
["SUS631_59822",null,null,null,null,null," "]
["SUS631_59823",null,null,null,null,null," "]
["SUS631_59824",null,null,null,null,null," "]
["SUS631_59825",null,null,null,null,null," "]
["SUS631_59826",null,null,null,null,null," "]
["SUS631_59827",null,null,null,null,null," "]
["SUS631_59828",null,null,null,null,null," "]
["SUS631_59829",null,null,null,null,null," "]
["SUS631_59830",null,null,null,null,null," "]
["SUS631_59831",null,null,null,null,null," "]
["SUS631_59832",null,null,null,null,null," "]
["SUS631_59833",null,null,null,null,null," "]
["SUS631_59834",null,null,null,null,null," "]
["SUS631_59835",null,null,null,null,null," "]
["SUS631_59836",null,null,null,null,null," "]
["SUS631_59837",null,null,null,null,null," "]
["SUS631_59838",null,null,null,null,null," "]
["SUS631_59839",null,null,null,null,null," "]
["SUS631_59840",null,null,null,null,null," "]
["SUS631_59841",null,null,null,null,null," "]
["SUS631_59842",null,null,null,null,null," "]
["SUS631_59843",null,null,null,null,null," "]
["SUS631_59844",null,null,null,null,null," "]
["SUS631_59845",null,null,null,null,null," "]
["SUS631_59846",null,null,null,null,null," "]
["SUS631_59847",null,null,null,null,null," "]
["SUS631_59848",null,null,null,null,null," "]
["SUS631_59849",null,null,null,null,null," "]
["SUS631_59850",null,null,null,null,null," "]
["SUS631_59851",null,null,null,null,null," "]
["SUS631_59852",null,null,null,null,null," "]
["SUS631_59853",null,null,null,null,null," "]
["SUS631_59854",null,null,null,null,null," "]
["SUS631_59855",null,null,null,null,null," "]
["SUS631_59856",null,null,null,null,null," "]
["SUS631_59857",null,null,null,null,null," "]
["SUS631_59858",null,null,null,null,null," "]
["SUS631_59859",null,null,null,null,null," "]
["SUS631_59860",null,null,null,null,null," "]
["SUS631_59861",null,null,null,null,null," "]
["SUS631_59862",null,null,null,null,null," "]
["SUS631_59863",null,null,null,null,null," "]
["SUS631_59864",null,null,null,null,null," "]
["SUS631_59865",null,null,null,null,null," "]
["SUS631_59866",null,null,null,null,null," "]
["SUS631_59867",null,null,null,null,null," "]
["SUS631_59868",null,null,null,null,null," "]
["SUS631_59869",null,null,null,null,null," "]
["SUS631_59870",null,null,null,null,null," "]
["SUS631_59871",null,null,null,null,null," "]
["SUS631_59872",null,null,null,null,null," "]
["SUS631_59873",null,null,null,null,null," "]
["SUS631_59874",null,null,null,null,null," "]
["SUS631_59875",null,null,null,null,null," "]
["SUS631_59876",null,null,null,null,null," "]
["SUS631_59877",null,null,null,null,null," "]
["SUS631_59878",null,null,null,null,null," "]
["SUS631_59879",null,null,null,null,null," "]
["SUS631_59880",null,null,null,null,null," "]
["SUS631_59881",null,null,null,null,null," "]
["SUS631_59882",null,null,null,null,null," "]
["SUS631_59883",null,null,null,null,null," "]
["SUS631_59884",null,null,null,null,null," "]
["SUS631_59885",null,null,null,null,null," "]
["SUS631_59886",null,null,null,null,null," "]
["SUS631_59887",null,null,null,null,null," "]
["SUS631_59888",null,null,null,null,null," "]
["SUS631_59889",null,null,null,null,null," "]
["SUS631_59890",null,null,null,null,null," "]
["SUS631_59891",null,null,null,null,null," "]
["SUS631_59892",null,null,null,null,null," "]
["SUS631_59893",null,null,null,null,null," "]
["SUS631_59894",null,null,null,null,null," "]
["SUS631_59895",null,null,null,null,null," "]
["SUS631_59896",null,null,null,null,null," "]
["SUS631_59897",null,null,null,null,null," "]
["SUS631_59898",null,null,null,null,null," "]
["SUS631_59899",null,null,null,null,null," "]
["SUS631_59900",null,null,null,null,null," "]
["SUS631_59901",null,null,null,null,null," "]
["SUS631_59902",null,null,null,null,null," "]
["SUS631_59903",null,null,null,null,null," "]
["SUS631_59904",null,null,null,null,null," "]
["SUS631_59905",null,null,null,null,null," "]
["SUS631_59906",null,null,null,null,null," "]
["SUS631_59907",null,null,null,null,null," "]
["SUS631_59908",null,null,null,null,null," "]
["SUS631_59909",null,null,null,null,null," "]
["SUS631_59910",null,null,null,null,null," "]
["SUS631_59911",null,null,null,null,null," "]
["SUS631_59912",null,null,null,null,null," "]
["SUS631_59913",null,null,null,null,null," "]
["SUS631_59914",null,null,null,null,null," "]
["SUS631_59915",null,null,null,null,null," "]
["SUS631_59916",null,null,null,null,null," "]
["SUS631_59917",null,null,null,null,null," "]
["SUS631_59918",null,null,null,null,null," "]
["SUS631_59919",null,null,null,null,null," "]
["SUS631_59920",null,null,null,null,null," "]
["SUS631_59921",null,null,null,null,null," "]
["SUS631_59922",null,null,null,null,null," "]
["SUS631_59923",null,null,null,null,null," "]
["SUS631_59924",null,null,null,null,null," "]
["SUS631_59925",null,null,null,null,null," "]
["SUS631_59926",null,null,null,null,null," "]
["SUS631_59927",null,null,null,null,null," "]
["SUS631_59928",null,null,null,null,null," "]
["SUS631_59929",null,null,null,null,null," "]
["SUS631_59930",null,null,null,null,null," "]
["SUS631_59931",null,null,null,null,null," "]
["SUS631_59932",null,null,null,null,null," "]
["SUS631_59933",null,null,null,null,null," "]
["SUS631_59934",null,null,null,null,null," "]
["SUS631_59935",null,null,null,null,null," "]
["SUS631_59936",null,null,null,null,null," "]
["SUS631_59937",null,null,null,null,null," "]
["SUS631_59938",null,null,null,null,null," "]
["SUS631_59939",null,null,null,null,null," "]
["SUS631_59940",null,null,null,null,null," "]
["SUS631_59941",null,null,null,null,null," "]
["SUS631_59942",null,null,null,null,null," "]
["SUS631_59943",null,null,null,null,null," "]
["SUS631_59944",null,null,null,null,null," "]
["SUS631_59945",null,null,null,null,null," "]
["SUS631_59946",null,null,null,null,null," "]
["SUS631_59947",null,null,null,null,null," "]
["SUS631_59948",null,null,null,null,null," "]
["SUS631_59949",null,null,null,null,null," "]
["SUS631_59950",null,null,null,null,null," "]
["SUS631_59951",null,null,null,null,null," "]
["SUS631_59952",null,null,null,null,null," "]
["SUS631_59953",null,null,null,null,null," "]
["SUS631_59954",null,null,null,null,null," "]
["SUS631_59955",null,null,null,null,null," "]
["SUS631_59956",null,null,null,null,null," "]
["SUS631_59957",null,null,null,null,null," "]
["SUS631_59958",null,null,null,null,null," "]
["SUS631_59959",null,null,null,null,null," "]
["SUS631_59960",null,null,null,null,null," "]
["SUS631_59961",null,null,null,null,null," "]
["SUS631_59962",null,null,null,null,null," "]
["SUS631_59963",null,null,null,null,null," "]
["SUS631_59964",null,null,null,null,null," "]
["SUS631_59965",null,null,null,null,null," "]
["SUS631_59966",null,null,null,null,null," "]
["SUS631_59967",null,null,null,null,null," "]
["SUS631_59968",null,null,null,null,null," "]
["SUS631_59969",null,null,null,null,null," "]
["SUS631_59970",null,null,null,null,null," "]
["SUS631_59971",null,null,null,null,null," "]
["SUS631_59972",null,null,null,null,null," "]
["SUS631_59973",null,null,null,null,null," "]
["SUS631_59974",null,null,null,null,null," "]
["SUS631_59975",null,null,null,null,null," "]
["SUS631_59976",null,null,null,null,null," "]
["SUS631_59977",null,null,null,null,null," "]
["SUS631_59978",null,null,null,null,null," "]
["SUS631_59979",null,null,null,null,null," "]
["SUS631_59980",null,null,null,null,null," "]
["SUS631_59981",null,null,null,null,null," "]
["SUS631_59982",null,null,null,null,null," "]
["SUS631_59983",null,null,null,null,null," "]
["SUS631_59984",null,null,null,null,null," "]
["SUS631_59985",null,null,null,null,null," "]
["SUS631_59986",null,null,null,null,null," "]
["SUS631_59987",null,null,null,null,null," "]
["SUS631_59988",null,null,null,null,null," "]
["SUS631_59989",null,null,null,null,null," "]
["SUS631_59990",null,null,null,null,null," "]
["SUS631_59991",null,null,null,null,null," "]

{"sheet":"Sheet1","index":21,"n_rows":0,"n_cols":0,"rows_kept":0,"cut":false,"hidden":false,"merged":[]}